{"text_format":"1","workbook":"xlsx","n_sheets":26,"sheets":["TOTAL FUNCFAC","TAX DEPR","GROSS PLANT","FORM 1","BOOKDPR","ELEC OPS","GP","IP","SCH M","REGASSETS&DDS","ACCUMDIT","data>","BOOKDEPR June19data","BOOKDEPR Lookup","ELEC OPS June19data","ELEC OPS Lookup","GP June19data","GP Lookup","IP June19data","IP Lookup","SCH M June19data","SCH M Lookup","REGASSETS June19data","REGASSETS Lookup","DDS June19data","DDS Lookup"],"not_rendered":{"charts":0,"images":0,"macros":1,"external_links":0,"defined_names":8,"comments":0,"pivot_tables":0},"unopened":[],"bounds":{"document_bytes":16777216,"sheet_cells":100000,"rows_first":2000,"rows_last":500,"rows_between":2000,"halvings":0,"cell_chars":16384,"cell_head_chars":4096},"cells_cut":0,"cells_raw":0,"read":"whole","date_system":"1900"}

{"sheet":"TOTAL FUNCFAC","index":0,"n_rows":75,"n_cols":8,"rows_kept":75,"cut":false,"hidden":false,"merged":[]}
["PacifiCorp"]
["12 Months Ended December 2019"]
["FUNCTIONAL FACTORS "]
[]
[]
["Function","Description","Generation","Transmission","Distribution","Customer","Common","Total"]
["ACCMDIT","Deferred Income Tax",{"$f":"ACCUMDIT!D50","v":0.48957775195825809},{"$f":"ACCUMDIT!E50","v":0.25916426304393436},{"$f":"ACCUMDIT!F50","v":0.25052913014522121},{"$f":"ACCUMDIT!G50","v":7.2885485258627396E-4},{"$f":"ACCUMDIT!H50","v":0},{"$f":"ROUND(SUM(C7:G7),4)","v":1}]
["BOOKDEPR","Book Depreciation",{"$f":"BOOKDPR!C13","v":0.60234129712751361},{"$f":"BOOKDPR!D13","v":0.16398963153322593},{"$f":"BOOKDPR!E13","v":0.23218204758136782},{"$f":"BOOKDPR!F13","v":1.4870237578926734E-3},{"$f":"BOOKDPR!G13","v":0},1]
["COM_EQ","Communication Equipment Acct 397",0,0,0,0,0,0]
["CUST","Distribution Retail",0,0,0,1,0,1]
["DDS2","Deferred Debits - Situs",{"$f":"'REGASSETS&DDS'!F35","v":0.99892817890970409},{"$f":"'REGASSETS&DDS'!G35","v":5.7817611722337771E-2},{"$f":"'REGASSETS&DDS'!H35","v":0.31709950266222642},{"$f":"'REGASSETS&DDS'!I35","v":-0.37968683892949606},{"$f":"'REGASSETS&DDS'!J35","v":5.8415456352276874E-3},1]
["DDS6","Deferred Debits - Situs",0,0,0,0,0,0]
["DDSO2","Deferred Debits - System Overhead",{"$f":"'REGASSETS&DDS'!F34","v":0.4028162177397816},{"$f":"'REGASSETS&DDS'!G34","v":7.6722554164325926E-2},{"$f":"'REGASSETS&DDS'!H34","v":0.28290906169609503},{"$f":"'REGASSETS&DDS'!I34","v":0.12045549073824321},{"$f":"'REGASSETS&DDS'!J34","v":0.11709667566155414},1]
["DDSO6","Deferred Debits - System Overhead",{"$f":"IF('REGASSETS&DDS'!F55=0,0,'REGASSETS&DDS'!F55)","v":0},{"$f":"'REGASSETS&DDS'!G55","v":0},{"$f":"'REGASSETS&DDS'!H55","v":0},{"$f":"'REGASSETS&DDS'!I55","v":0},{"$f":"'REGASSETS&DDS'!J55","v":0},0]
["DEFSG","Deferred Debit - System Generation",{"$f":"'REGASSETS&DDS'!F54","v":0.83640102745600842},{"$f":"'REGASSETS&DDS'!G54","v":0.16359897254399164},{"$f":"'REGASSETS&DDS'!H54","v":0},{"$f":"'REGASSETS&DDS'!I54","v":0},{"$f":"'REGASSETS&DDS'!J54","v":0},1]
["COMMON","Common",0,0,0,0,1,1]
["DPW","Distribution Poles & Wires",{"$f":"'FORM 1'!C15","v":0},{"$f":"'FORM 1'!D15","v":0},{"$f":"'FORM 1'!E15","v":1},{"$f":"'FORM 1'!F15","v":0},{"$f":"'FORM 1'!G15","v":0},1]
["ESD","Environmental Services Department",0.3,0.1,0.6,0,0,1]
["FERC","FERC Fees",{"$f":"'FORM 1'!C39","v":0.5039659548614267},{"$f":"'FORM 1'!D39","v":0.49603404513857335},{"$f":"'FORM 1'!E39","v":0},{"$f":"'FORM 1'!F39","v":0},{"$f":"'FORM 1'!G39","v":0},1]
["G","General Plant",{"$f":"GP!E38","v":0.21249991655715922},{"$f":"GP!F38","v":0.35285672896315307},{"$f":"GP!G38","v":0.42023616439400902},{"$f":"GP!H38","v":1.4407190085678622E-2},{"$f":"GP!I38","v":0},1]
["G-DGP","General Plant - DGP Factor",{"$f":"+C72","v":0.66150158807380643},{"$f":"+D72","v":0.33849841192619368},{"$f":"+E72","v":0},{"$f":"+F72","v":0},{"$f":"+G72","v":0},1]
["G-DGU","General Plant - DGU Factor",{"$f":"+C21","v":0.66150158807380643},{"$f":"+D21","v":0.33849841192619368},{"$f":"+E21","v":0},{"$f":"+F21","v":0},{"$f":"+G21","v":0},1]
["GP","Total Plant",{"$f":"'GROSS PLANT'!E42","v":0.47257293179736909},{"$f":"'GROSS PLANT'!F42","v":0.2480047855515477},{"$f":"'GROSS PLANT'!G42","v":0.27258888162029649},{"$f":"'GROSS PLANT'!H42","v":6.8334010307866894E-3},{"$f":"'GROSS PLANT'!I42","v":0},1]
["G-SG","General Plant - SG Factor",{"$f":"GP!E34","v":0.41520717416269698},{"$f":"GP!F34","v":0.58479282583730308},{"$f":"GP!G34","v":0},{"$f":"GP!H34","v":0},{"$f":"GP!I34","v":0},1]
["G-SITUS","General Plant - SITUS Factor",{"$f":"GP!E36","v":0},{"$f":"GP!F36","v":0.30584193030238616},{"$f":"GP!G36","v":0.69415806969761396},{"$f":"GP!H36","v":0},{"$f":"GP!I36","v":0},1]
["I","Intangible Plant",{"$f":"IP!D35","v":0.37925153315718207},{"$f":"IP!E35","v":0.12915011933279472},{"$f":"IP!F35","v":9.7219825876935034E-2},{"$f":"IP!G35","v":0.1974764268033545},{"$f":"IP!H35","v":0.19690209482973356},1]
["I-DGP","Intangible Plant - DGP Factor",1,0,0,0,0,1]
["I-DGU","Intangible Plant - DGU Factor",1,0,0,0,0,1]
["I-SG","Intangible Plant - SG Factor",{"$f":"IP!D33","v":0.83342518698501189},{"$f":"IP!E33","v":0.16657481301498811},{"$f":"IP!F33","v":0},{"$f":"IP!G33","v":0},{"$f":"IP!H33","v":0},1]
["I-SITUS","Intangible Plant - SITUS Factor",{"$f":"IP!D34","v":3.1996672282594778},{"$f":"IP!E34","v":-1.3175885101434937},{"$f":"IP!F34","v":-0.88207871811598393},{"$f":"IP!G34","v":0},{"$f":"IP!H34","v":0},1]
["LABOR","Direct Labor Expense",{"$f":"'FORM 1'!C25","v":0.40374068006387048},{"$f":"'FORM 1'!D25","v":7.601625700893419E-2},{"$f":"'FORM 1'!E25","v":0.26680973951410497},{"$f":"'FORM 1'!F25","v":0.12850834325699395},{"$f":"'FORM 1'!G25","v":0.12492498015609642},1]
["MSS","Materials & Supplies",{"$f":"'FORM 1'!C32","v":0.86792897872630492},{"$f":"'FORM 1'!D32","v":4.474655146177238E-3},{"$f":"'FORM 1'!E32","v":0.12759636612751779},{"$f":"'FORM 1'!F32","v":0},{"$f":"'FORM 1'!G32","v":0},1]
["NONE","Not Functionalized",0,0,0,0,0,{"$f":"ROUND(SUM(C33:G33),4)","v":0}]
["NUTIL","Non-Utility",0,0,0,0,0,{"$f":"ROUND(SUM(C34:G34),4)","v":0}]
["OTHDGP","Other Revenues - DGP Factor",{"$f":"C39","v":0.17767616630527819},{"$f":"D39","v":0.82232383369472184},{"$f":"E39","v":0},{"$f":"F39","v":0},{"$f":"G39","v":0},{"$f":"ROUND(SUM(C35:G35),4)","v":1}]
["OTHDGU","Other Revenues - DGU Factor",{"$f":"C39","v":0.17767616630527819},{"$f":"D39","v":0.82232383369472184},{"$f":"E39","v":0},{"$f":"F39","v":0},{"$f":"G39","v":0},1]
["OTHSE","Other Revenues - SE Factor",{"$f":"'ELEC OPS'!E25","v":0},{"$f":"'ELEC OPS'!F25","v":1},{"$f":"'ELEC OPS'!G25","v":0},{"$f":"'ELEC OPS'!H25","v":0},{"$f":"'ELEC OPS'!I25","v":0},1]
["OTHSG","Other Revenues - SG Factor",{"$f":"'ELEC OPS'!E26","v":0.17767616630527819},{"$f":"'ELEC OPS'!F26","v":0.82232383369472184},{"$f":"'ELEC OPS'!G26","v":0},{"$f":"'ELEC OPS'!H26","v":0},{"$f":"'ELEC OPS'!I26","v":0},1]
["OTHSGR","Other Revenues - Rolled-In SG Factor",{"$f":"+C38","v":0.17767616630527819},{"$f":"+D38","v":0.82232383369472184},{"$f":"+E38","v":0},{"$f":"+F38","v":0},{"$f":"+G38","v":0},1]
["OTHSITUS","Other Revenues - SITUS",{"$f":"'ELEC OPS'!E23","v":-4.1067990691210088E-2},{"$f":"'ELEC OPS'!F23","v":1.0410679906912101},{"$f":"'ELEC OPS'!G23","v":0},{"$f":"'ELEC OPS'!H23","v":0},{"$f":"'ELEC OPS'!I23","v":0},1]
["OTHSO","Other Revenues - SO Factor",{"$f":"'ELEC OPS'!E27","v":0.48163253328475958},{"$f":"'ELEC OPS'!F27","v":0.24645722788130284},{"$f":"'ELEC OPS'!G27","v":0.2719102388339375},{"$f":"'ELEC OPS'!H27","v":0},{"$f":"'ELEC OPS'!I27","v":0},1]
["P","Production",{"$f":"'FORM 1'!C13","v":1},{"$f":"'FORM 1'!D13","v":0},{"$f":"'FORM 1'!E13","v":0},{"$f":"'FORM 1'!F13","v":0},{"$f":"'FORM 1'!G13","v":0},1]
["SCHMA","Schedule M Additions",{"$f":"'SCH M'!F65","v":0.44290794849571818},{"$f":"'SCH M'!G65","v":0.21721973304783168},{"$f":"'SCH M'!H65","v":0.32875659700412879},{"$f":"'SCH M'!I65","v":8.5266299796286169E-3},{"$f":"'SCH M'!J65","v":2.5890914726928063E-3},1]
["SCHMAF","Schedule M Additions - Flow Through",1,0,0,0,0,1]
["SCHMAP","Schedule M Additions - Permanent",{"$f":"'SCH M'!F16","v":0.77048510177866869},{"$f":"'SCH M'!G16","v":2.9260529617282923E-2},{"$f":"'SCH M'!H16","v":0.10270164031247228},{"$f":"'SCH M'!I16","v":4.9466026504005493E-2},{"$f":"'SCH M'!J16","v":4.8086701787570588E-2},1]
["SCHMAP-SO","Schedule M Additions - Permanent-SO",{"$f":"'SCH M'!F15","v":0.7848556923320037},{"$f":"'SCH M'!G15","v":2.7428443361608983E-2},{"$f":"'SCH M'!H15","v":9.627119403850902E-2},{"$f":"'SCH M'!I15","v":4.6368815740354022E-2},{"$f":"'SCH M'!J15","v":4.5075854527524294E-2},1]
["SCHMAT","Schedule M Additions - Temporary",{"$f":"+'SCH M'!F$57","v":0.44221134832536801},{"$f":"+'SCH M'!G$57","v":0.21761943251348859},{"$f":"+'SCH M'!H$57","v":0.32923730794432032},{"$f":"+'SCH M'!I$57","v":8.4395714338567126E-3},{"$f":"+'SCH M'!J$57","v":2.4923397829664661E-3},1]
["SCHMAT-GPS","Schedule M Additions - Temporary-GPS",0,0,0,0,0,0]
["SCHMAT-SE","Schedule M Additions - Temporary-SE",{"$f":"'SCH M'!F53","v":0.99998712814754276},{"$f":"'SCH M'!G53","v":1.6410142564951978E-6},{"$f":"'SCH M'!H53","v":5.7598019626638176E-6},{"$f":"'SCH M'!I53","v":2.7741963582674212E-6},{"$f":"'SCH M'!J53","v":2.6968398799804077E-6},1]
["SCHMAT-SITUS","Schedule M Additions - Temporary-SITUS",{"$f":"'SCH M'!F55","v":1.912737346730389},{"$f":"'SCH M'!G55","v":-0.31224367602071079},{"$f":"'SCH M'!H55","v":-0.59137612313542931},{"$f":"'SCH M'!I55","v":-4.6232315370133359E-3},{"$f":"'SCH M'!J55","v":-4.4943160372351706E-3},1]
["SCHMAT-SNP","Schedule M Additions - Temporary-SNP",{"$f":"'SCH M'!F54","v":0.48150590051014114},{"$f":"'SCH M'!G54","v":0.24647885924355842},{"$f":"'SCH M'!H54","v":0.2719197247278955},{"$f":"'SCH M'!I54","v":9.5515518404740735E-5},{"$f":"'SCH M'!J54","v":0},1]
["SCHMAT-SO","Schedule M Additions - Temporary-SO",{"$f":"'SCH M'!F56","v":0.40434735908850228},{"$f":"'SCH M'!G56","v":7.7343776610668602E-2},{"$f":"'SCH M'!H56","v":0.26684946595306536},{"$f":"'SCH M'!I56","v":0.12750742579104132},{"$f":"'SCH M'!J56","v":0.12395197255672238},1]
["SCHMD","Schedule M Deductions",{"$f":"+'SCH M'!F$136","v":0.56168484201931601},{"$f":"+'SCH M'!G$136","v":0.2022802600028939},{"$f":"+'SCH M'!H$136","v":0.22472605183871322},{"$f":"+'SCH M'!I$136","v":8.737718596395298E-3},{"$f":"+'SCH M'!J$136","v":2.5711275426813854E-3},1]
["SCHMDF","Schedule M Deductions - Flow Through",1,0,0,0,0,1]
["SCHMDP","Schedule M Deductions - Permanent",{"$f":"'SCH M'!F77","v":0.49891259385918429},{"$f":"'SCH M'!G77","v":0.28426901665317961},{"$f":"'SCH M'!H77","v":0.27304176842993483},{"$f":"'SCH M'!I77","v":-2.8509168340140188E-2},{"$f":"'SCH M'!J77","v":-2.7714210602158656E-2},1]
["SCHMDP-SO","Schedule M Deductions - Permanent- SO",{"$f":"'SCH M'!F76","v":" "},{"$f":"'SCH M'!G76","v":" "},{"$f":"'SCH M'!H76","v":" "},{"$f":"'SCH M'!I76","v":" "},{"$f":"'SCH M'!J76","v":" "},0]
["SCHMDT","Schedule M Deductions - Temporary",{"$f":"'SCH M'!F129","v":0.56169046239423281},{"$f":"'SCH M'!G129","v":0.2022729190590081},{"$f":"'SCH M'!H129","v":0.22472172584355496},{"$f":"'SCH M'!I129","v":8.741053533014586E-3},{"$f":"'SCH M'!J129","v":2.5738391701894451E-3},1]
["SCHMDT-GPS","Schedule M Deductions - Temporary-GPS",{"$f":"'SCH M'!F120","v":0.48163253328475963},{"$f":"'SCH M'!G120","v":0.24645722788130286},{"$f":"'SCH M'!H120","v":0.2719102388339375},{"$f":"'SCH M'!I120","v":0},{"$f":"'SCH M'!J120","v":0},1]
["SCHMDT-SG","Schedule M Deductions - Temporary-SG",{"$f":"'SCH M'!F122","v":1.0104536174352028},{"$f":"'SCH M'!G122","v":-1.0453617435202747E-2},{"$f":"'SCH M'!H122","v":0},{"$f":"'SCH M'!I122","v":0},{"$f":"'SCH M'!J122","v":0},1]
["SCHMDT-SITUS","Schedule M Deductions - Temporary-SITUS",{"$f":"'SCH M'!F128","v":1.2150495447371918},{"$f":"'SCH M'!G128","v":3.1461811165058737E-2},{"$f":"'SCH M'!H128","v":5.8537764971097417E-2},{"$f":"'SCH M'!I128","v":-0.24314897887738771},{"$f":"'SCH M'!J128","v":-6.1900141995960306E-2},1]
["SCHMDT-SNP","Schedule M Deductions - Temporary-SNP",{"$f":"'SCH M'!F124","v":0.48163253328475958},{"$f":"'SCH M'!G124","v":0.24645722788130284},{"$f":"'SCH M'!H124","v":0.2719102388339375},{"$f":"'SCH M'!I124","v":0},{"$f":"'SCH M'!J124","v":0},1]
["SCHMDT-SO","Schedule M Deductions - Temporary-SO",{"$f":"'SCH M'!F125","v":0.4104805366529094},{"$f":"'SCH M'!G125","v":0.11671191674891901},{"$f":"'SCH M'!H125","v":0.29522694930176102},{"$f":"'SCH M'!I125","v":9.0918630479312326E-2},{"$f":"'SCH M'!J125","v":8.6661966817098202E-2},1]
["T","Transmission",{"$f":"'FORM 1'!C14","v":0},{"$f":"'FORM 1'!D14","v":1},{"$f":"'FORM 1'!E14","v":0},{"$f":"'FORM 1'!F14","v":0},{"$f":"'FORM 1'!G14","v":0},{"$f":"ROUND(SUM(C63:G63),4)","v":1}]
["TAXDEPR ","Tax Depreciation ",{"$f":"+'TAX DEPR'!C$24","v":0.44570887564486761},{"$f":"+'TAX DEPR'!D$24","v":0.26188623774335446},{"$f":"+'TAX DEPR'!E$24","v":0.28234162671178875},{"$f":"+'TAX DEPR'!F$24","v":1.0063259899989269E-2},{"$f":"+'TAX DEPR'!G$24","v":0},{"$f":"ROUND(SUM(C64:G64),4)","v":1}]
["TD","Transmission / Distribution",{"$f":"'FORM 1'!C18","v":0},{"$f":"'FORM 1'!D18","v":0.47544887306110878},{"$f":"'FORM 1'!E18","v":0.52455112693889117},{"$f":"'FORM 1'!F18","v":0},{"$f":"'FORM 1'!G18","v":0},{"$f":"ROUND(SUM(C65:G65),4)","v":1}]
["CWC","Cash Working Capital",0.73765372026018083,0.10329042962594512,0.10949286125029886,5.4105865139466157E-2,-4.5428762758910881E-3,{"$f":"ROUND(SUM(C66:G66),4)","v":1}]
["DITEXP","Deferred Income Tax - Expense",0,0,0,0,0,0]
["FIT","Federal Income Taxes",0.39712114352865002,0.23677511465436804,0.35765988433144191,-9.8596648805061859E-4,9.4298239735889581E-3,1]
["IBT","Income Before Taxes",0.51092175849809995,0.1920809719291795,0.29014729146154333,-7.9985348794320667E-4,7.649831599119146E-3,1]
["NONE","Not Functionalized",0,0,0,0,0,0]
["NUTIL","Non-Utility",0,0,0,0,0,0]
["PT","Production / Transmission",0.66150158807380643,0.33849841192619368,0,0,0,1]
["PTD","Prod, Trans, Dist Plant",0.48163253326465139,0.24645722789086338,0.27191023884448529,0,0,1]
["REVREQ","Revenue Requirement",0.66382173971753078,0.14846059667139863,0.15133188449626964,3.8203097531272025E-2,-1.8173184164714062E-3,1]
["SIT","State Income Taxes",0.51092175849810306,0.19208097192918147,0.2901472914615455,-7.9985348795087968E-4,7.6498315991191425E-3,1]

{"sheet":"TAX DEPR","index":1,"n_rows":330,"n_cols":7,"rows_kept":330,"cut":false,"hidden":false,"merged":[]}
[{"$f":"+'TOTAL FUNCFAC'!$A$1","v":"PacifiCorp"}]
[{"$f":"+'TOTAL FUNCFAC'!A2","v":"12 Months Ended December 2019"}]
["Tax Depreciation"]
[]
[null,"Total",{"$f":"'TOTAL FUNCFAC'!C6","v":"Generation"},{"$f":"'TOTAL FUNCFAC'!D6","v":"Transmission"},{"$f":"'TOTAL FUNCFAC'!E6","v":"Distribution"},"General","Mining"]
[]
[]
["Total",{"$f":"SUM(C8:G8)","v":672674068.5},270024360,154219983.5,166880753.5,81548971.5,0]
[]
[]
[]
["Conversion to COS Functions","Total",{"$f":"'TOTAL FUNCFAC'!C6","v":"Generation"},{"$f":"'TOTAL FUNCFAC'!D6","v":"Transmission"},{"$f":"'TOTAL FUNCFAC'!E6","v":"Distribution"},{"$f":"'TOTAL FUNCFAC'!F6","v":"Customer"},{"$f":"'TOTAL FUNCFAC'!G6","v":"Common"}]
[]
["Percent of GenPlant in Functions",{"$f":"SUM(C14:F14)","v":1},0.36533192508250861,0.26909103969484749,0.28256809158074059,8.3008943641903379E-2,0]
[]
[]
[]
["Allocation of GenPlant to Functions",{"$f":"SUM(C18:F18)","v":81548971.5},{"$f":"+$F$8*C14","v":29792442.746593632},{"$f":"+$F$8*D14","v":21944097.526980486},{"$f":"+$F$8*E14","v":23043137.247127205},{"$f":"+$F$8*F14","v":6769293.9792986847},{"$f":"+$F$8*G14","v":0}]
["Assignment of Mining to Prod Function",{"$f":"SUM(C19:F19)","v":0},{"$f":"G8","v":0}]
[]
["Adjusted Totals",{"$f":"SUM(C21:F21)","v":672674068.5},{"$f":"+C8+C18+C19","v":299816802.74659365},{"$f":"+D8+D18+D19","v":176164081.02698049},{"$f":"+E8+E18+E19","v":189923890.74712721},{"$f":"+F18+F19","v":6769293.9792986847},{"$f":"+G18+G19","v":0}]
[]
[]
["TAXDEPR FACTOR",{"$f":"SUM(C24:F24)","v":1.0000000000000002},{"$f":"C21/$B$21","v":0.44570887564486761},{"$f":"D21/$B$21","v":0.26188623774335446},0.28234162671178875,1.0063259899989269E-2,0]
[]
[]
[]
[]
[]
[]
[]
[]
[]
[]
[]
[]
[]
[]
[]
[]
[]
[]
[]
[]
[]
[]
[]
[]
[]
[]
[]
[]
[]
[]
[]
[]
[]
[]
[]
[]
[]
[]
[]
[]
[]
[]
[]
[]
[]
[]
[]
[]
[]
[]
[]
[]
[]
[]
[]
[]
[]
[]
[]
[]
[]
[]
[]
[]
[]
[]
[]
[]
[]
[]
[]
[]
[]
[]
[]
[]
[]
[]
[]
[]
[]
[]
[]
[]
[]
[]
[]
[]
[]
[]
[]
[]
[]
[]
[]
[]
[]
[]
[]
[]
[]
[]
[]
[]
[]
[]
[]
[]
[]
[]
[]
[]
[]
[]
[]
[]
[]
[]
[]
[]
[]
[]
[]
[]
[]
[]
[]
[]
[]
[]
[]
[]
[]
[]
[]
[]
[]
[]
[]
[]
[]
[]
[]
[]
[]
[]
[]
[]
[]
[]
[]
[]
[]
[]
[]
[]
[]
[]
[]
[]
[]
[]
[]
[]
[]
[]
[]
[]
[]
[]
[]
[]
[]
[]
[]
[]
[]
[]
[]
[]
[]
[]
[]
[]
[]
[]
[]
[]
[]
[]
[]
[]
[]
[]
[]
[]
[]
[]
[]
[]
[]
[]
[]
[]
[]
[]
[]
[]
[]
[]
[]
[]
[]
[]
[]
[]
[]
[]
[]
[]
[]
[]
[]
[]
[]
[]
[]
[]
[]
[]
[]
[]
[]
[]
[]
[]
[]
[]
[]
[]
[]
[]
[]
[]
[]
[]
[]
[]
[]
[]
[]
[]
[]
[]
[]
[]
[]
[]
[]
[]
[]
[]
[]
[]
[]
[]
[]
[]
[]
[]
[]
[]
[]
[]
[]
[]
[]
[]
[]
[]
[]
[]
[]
[]
[]
[]
[]
[]
[]
[]
[]
[]
[]
[]
[]
[]
[]
[]
[]
[]
[]
[]
[]
[]
[]
["TAXDEPR Factor",null,{"$f":"#REF!/#REF!","v":{"$error":"#REF!"}},{"$f":"#REF!/#REF!","v":{"$error":"#REF!"}},{"$f":"#REF!/#REF!","v":{"$error":"#REF!"}},{"$f":"#REF!/#REF!","v":{"$error":"#REF!"}},{"$f":"#REF!/#REF!","v":{"$error":"#REF!"}}]

{"sheet":"GROSS PLANT","index":2,"n_rows":52,"n_cols":9,"rows_kept":52,"cut":false,"hidden":false,"merged":[]}
[]
[{"$f":"+'TOTAL FUNCFAC'!A2","v":"12 Months Ended December 2019"}]
["Gross Plant"]
["(In 000's)"]
[]
[null,"Alloc."]
["Description","Factor","Funct.","Amount",{"$f":"'TOTAL FUNCFAC'!C6","v":"Generation"},{"$f":"'TOTAL FUNCFAC'!D6","v":"Transmission"},{"$f":"'TOTAL FUNCFAC'!E6","v":"Distribution"},{"$f":"'TOTAL FUNCFAC'!F6","v":"Customer"},{"$f":"'TOTAL FUNCFAC'!G6","v":"Common"}]
[]
["Production Plant",null,"P",12415781.772602299,{"$f":"$D9*VLOOKUP(+$C9,$C$45:$I$51,3)","v":12415781.772602299},{"$f":"$D9*VLOOKUP(+$C9,$C$45:$I$51,4)","v":0},{"$f":"$D9*VLOOKUP(+$C9,$C$45:$I$51,5)","v":0},{"$f":"$D9*VLOOKUP(+$C9,$C$45:$I$51,6)","v":0},{"$f":"$D9*VLOOKUP(+$C9,$C$45:$I$51,7)","v":0}]
["Transmission Plant",null,"T",6353306.6107176896,{"$f":"$D10*VLOOKUP(+$C10,$C$45:$I$51,3)","v":0},{"$f":"$D10*VLOOKUP(+$C10,$C$45:$I$51,4)","v":6353306.6107176896},{"$f":"$D10*VLOOKUP(+$C10,$C$45:$I$51,5)","v":0},{"$f":"$D10*VLOOKUP(+$C10,$C$45:$I$51,6)","v":0},{"$f":"$D10*VLOOKUP(+$C10,$C$45:$I$51,7)","v":0}]
["Distribution Plant",null,"DPW",7009447.9790930804,{"$f":"$D11*VLOOKUP(+$C11,$C$45:$I$51,3)","v":0},{"$f":"$D11*VLOOKUP(+$C11,$C$45:$I$51,4)","v":0},{"$f":"$D11*VLOOKUP(+$C11,$C$45:$I$51,5)","v":7009447.9790930804},{"$f":"$D11*VLOOKUP(+$C11,$C$45:$I$51,6)","v":0},{"$f":"$D11*VLOOKUP(+$C11,$C$45:$I$51,7)","v":0}]
["Mining","SE","P",{"$f":"1854.828+89232.07377+6888.538","v":97975.439769999997},{"$f":"$D12*VLOOKUP(+$C12,$C$45:$I$51,3)","v":97975.439769999997},{"$f":"$D12*VLOOKUP(+$C12,$C$45:$I$51,4)","v":0},{"$f":"$D12*VLOOKUP(+$C12,$C$45:$I$51,5)","v":0},{"$f":"$D12*VLOOKUP(+$C12,$C$45:$I$51,6)","v":0},{"$f":"$D12*VLOOKUP(+$C12,$C$45:$I$51,7)","v":0}]
["General Plant"]
["Business Centers",{"$f":"GP!B7","v":"CN"},{"$f":"GP!C7","v":"CUST"},{"$f":"GP!D7","v":17840.856436923077},{"$f":"$D14*VLOOKUP(+$C14,$C$45:$I$51,3)","v":0},{"$f":"$D14*VLOOKUP(+$C14,$C$45:$I$51,4)","v":0},{"$f":"$D14*VLOOKUP(+$C14,$C$45:$I$51,5)","v":0},{"$f":"$D14*VLOOKUP(+$C14,$C$45:$I$51,6)","v":17840.856436923077},{"$f":"$D14*VLOOKUP(+$C14,$C$45:$I$51,7)","v":0}]
["Utah Mine",{"$f":"GP!B8","v":"SE"},{"$f":"GP!C8","v":"P"},{"$f":"GP!D8","v":5543.4293353846097},{"$f":"$D15*VLOOKUP(+$C15,$C$45:$I$51,3)","v":5543.4293353846097},0,0,0,0]
[null,{"$f":"GP!B9","v":"SG"},{"$f":"GP!C9","v":"P"},{"$f":"GP!D9","v":122160.12520307682},{"$f":"$D16*VLOOKUP(+$C16,$C$45:$I$51,3)","v":122160.12520307682},0,0,0,0]
[null,{"$f":"GP!B10","v":"SG"},{"$f":"GP!C10","v":"T"},{"$f":"GP!D10","v":172054.74584153801},{"$f":"$D17*VLOOKUP(+$C17,$C$45:$I$51,3)","v":0},172054.74584153801,0,0,0]
[null,{"$f":"GP!B12","v":"SO"},{"$f":"GP!C12","v":"DPW"},{"$f":"GP!D12","v":0},0,0,0,0,0]
[null,{"$f":"GP!B17","v":"SSGCT"},{"$f":"GP!C17","v":"DPW"},{"$f":"GP!D17","v":0},0,0,0,0,0]
[null,{"$f":"GP!B18","v":"SSGCT"},{"$f":"GP!C18","v":"P"},{"$f":"GP!D18","v":0},0,0,0,0,0]
["General Plant",{"$f":"GP!B19","v":"SITUS"},{"$f":"GP!C19","v":"DPW"},{"$f":"GP!D19","v":228135.19767384604},0,0,228135.19767384604,0,0]
["General Plant",{"$f":"GP!B20","v":"SITUS"},{"$f":"GP!C20","v":"P"},{"$f":"GP!D20","v":0},0,0,0,0,0]
["General Plant",{"$f":"GP!B21","v":"SITUS"},{"$f":"GP!C21","v":"TD"},{"$f":"GP!D21","v":411382.38854846155},0,195591.29303255322,215791.0955159083,0,0]
["Total General Plant",null,null,{"$f":"SUBTOTAL(9,D14:D23)","v":957116.74303923012},127703.55453846144,367646.03887409123,443926.29318975436,17840.856436923077,0]
[]
["Intangible Plant"]
["Customer Service Sys",{"$f":"IP!A7","v":"CN"},{"$f":"IP!B7","v":"CUST"},{"$f":"IP!C7","v":170389.2728961535},{"$f":"$D27*VLOOKUP(+$C27,$C$45:$I$52,3)","v":0},{"$f":"$D27*VLOOKUP(+$C27,$C$45:$I$52,4)","v":0},{"$f":"$D27*VLOOKUP(+$C27,$C$45:$I$52,5)","v":0},{"$f":"$D27*VLOOKUP(+$C27,$C$45:$I$52,6)","v":170389.2728961535},{"$f":"$D27*VLOOKUP(+$C27,$C$45:$I$52,7)","v":0}]
["Customer Service Sys",{"$f":"IP!A8","v":"SE"},{"$f":"IP!B8","v":"P"},{"$f":"IP!C8","v":6.7630846153846198},6.7630846153846198,0,0,0,0]
["Washington Hydro",{"$f":"IP!A9","v":"SG"},{"$f":"IP!B9","v":"P"},{"$f":"IP!C9","v":116902.14166076922},116902.14166076922,0,0,0,0]
["Utah Hydro",{"$f":"IP!A10","v":"SG"},{"$f":"IP!B10","v":"T"},{"$f":"IP!C10","v":60409.797681538497},0,60409.797681538497,0,0,0]
["Colorado Steam-UPD",{"$f":"IP!A11","v":"SG-P"},{"$f":"IP!B11","v":"P"},{"$f":"IP!C11","v":175395.32401769201},175395.32401769201,0,0,0,0]
[null,{"$f":"IP!A12","v":"SG-U"},{"$f":"IP!B12","v":"P"},{"$f":"IP!C12","v":9951.3918599999997},9951.3918599999997,0,0,0,0]
["Oregon Trans",{"$f":"IP!A15","v":"SO"},{"$f":"IP!B15","v":"P"},{"$f":"IP!C15","v":30029.67716153846},30029.67716153846,0,0,0,0]
["Utah Mine",{"$f":"IP!A16","v":"SO"},{"$f":"IP!B16","v":"PTD"},{"$f":"IP!C16","v":90439.779593076935},43558.740155128944,22289.537368705765,24591.502069242215,0,0]
["Utah",{"$f":"IP!A18","v":"SO"},{"$f":"IP!B18","v":"TD"},{"$f":"IP!C18","v":41887.255897692303},0,19915.248612180087,21972.007285512213,0,0]
["Utah G/O",{"$f":"IP!A19","v":"SO"},{"$f":"IP!B19","v":"LABOR"},{"$f":"IP!C19","v":0},{"$f":"$D36*VLOOKUP(+$C36,$C$45:$I$52,3)","v":0},0,0,0,0]
["Utah G/O",{"$f":"IP!A25","v":"SITUS"},{"$f":"IP!B25","v":"TD"},{"$f":"IP!C25","v":16559.743528461539},0,7873.3113987880279,8686.4321296735106,0,0]
["Total Intangible Plant",null,null,{"$f":"SUBTOTAL(9,D27:D37)","v":711971.14738153783},375844.03793974395,110487.89506121239,55249.941484427938,170389.2728961535,0]
[]
["Total Gross Plant",null,null,{"$f":"SUBTOTAL(9,D8:D38)","v":27545599.692603838},13017304.804850504,6831440.5446529929,7508624.2137672631,188230.12933307659,0]
[]
[null,"GP Factor",null,{"$f":"SUM(E42:I42)","v":0.99999999999999989},{"$f":"E40/$D40","v":0.47257293179736909},{"$f":"F40/$D40","v":0.2480047855515477},{"$f":"G40/$D40","v":0.27258888162029649},{"$f":"H40/$D40","v":6.8334010307866894E-3},{"$f":"I40/$D40","v":0}]
[]
[]
[null,"Functional Allocators:",null,null,"Prod","Trans","DPW","CUST","DMISC"]
[null,null,"P",{"$f":"SUM(E46:F46)","v":1},{"$f":"'FORM 1'!$C$13","v":1},{"$f":"'FORM 1'!$D$13","v":0},{"$f":"'FORM 1'!$E$13","v":0},{"$f":"'FORM 1'!$F$13","v":0},{"$f":"'FORM 1'!$G$13","v":0}]
[null,null,"T",{"$f":"SUM(E47:F47)","v":1},{"$f":"'FORM 1'!$C$14","v":0},{"$f":"'FORM 1'!$D$14","v":1},{"$f":"'FORM 1'!$E$14","v":0},{"$f":"'FORM 1'!$F$14","v":0},{"$f":"'FORM 1'!$G$14","v":0}]
[null,null,"TD",{"$f":"SUM(E48:I48)","v":1},{"$f":"'FORM 1'!$C$18","v":0},{"$f":"'FORM 1'!$D$18","v":0.47544887306110878},{"$f":"'FORM 1'!$E$18","v":0.52455112693889117},{"$f":"'FORM 1'!$F$18","v":0},{"$f":"'FORM 1'!$G$18","v":0}]
[null,null,"CUST",{"$f":"SUM(E49:I49)","v":1},0,0,0,1,0]
[null,null,"DPW",{"$f":"SUM(E50:I50)","v":1},0,0,1,0,0]
[null,null,"PTD",{"$f":"SUM(E51:I51)","v":0.99999999999999989},{"$f":"'FORM 1'!$C$16","v":0.48163253328475958},{"$f":"'FORM 1'!$D$16","v":0.24645722788130284},{"$f":"'FORM 1'!$E$16","v":0.2719102388339375},{"$f":"'FORM 1'!$F$16","v":0},{"$f":"'FORM 1'!$G$16","v":0}]
[null,null,"LABOR",{"$f":"SUM(E52:I52)","v":1},{"$f":"'SCH M'!F147","v":0.40374068006387048},{"$f":"'SCH M'!G147","v":7.601625700893419E-2},{"$f":"'SCH M'!H147","v":0.26680973951410497},{"$f":"'SCH M'!I147","v":0.12850834325699395},{"$f":"'SCH M'!J147","v":0.12492498015609642}]

{"sheet":"FORM 1","index":3,"n_rows":39,"n_cols":9,"rows_kept":39,"cut":false,"hidden":false,"merged":[]}
[{"$f":"+'TOTAL FUNCFAC'!A1","v":"PacifiCorp"}]
["12 Months Ended December 2018"]
["FERC FORM 1 Funtionalization Factors"]
[]
[]
["Factor","Total",{"$f":"'TOTAL FUNCFAC'!C6","v":"Generation"},{"$f":"'TOTAL FUNCFAC'!D6","v":"Transmission"},{"$f":"'TOTAL FUNCFAC'!E6","v":"Distribution"},{"$f":"'TOTAL FUNCFAC'!F6","v":"Customer"},{"$f":"'TOTAL FUNCFAC'!G6","v":"Common"}]
[]
["PLANT",{"$f":"SUM(C8:G8)","v":25778536.362413071},{"$f":"+'GROSS PLANT'!D9","v":12415781.772602299},{"$f":"+'GROSS PLANT'!D10","v":6353306.6107176896},{"$f":"+'GROSS PLANT'!D11","v":7009447.9790930804},0,0,null,"TOTAL COMPANY"]
["UNCLASSIFIED PLANT",{"$f":"SUM(C9:G9)","v":0},null,null,null,0,0]
["TOTAL PLANT",{"$f":"SUM(C10:G10)","v":25778536.362413071},{"$f":"C8+C9","v":12415781.772602299},{"$f":"D8+D9","v":6353306.6107176896},{"$f":"E8+E9","v":7009447.9790930804},0,0]
[]
["PLANT %"]
["P",{"$f":"SUM(C13:G13)","v":1},{"$f":"C10/C10","v":1}]
["T",1,null,{"$f":"D10/D10","v":1}]
["DPW",1,null,null,{"$f":"E10/E10","v":1}]
["PTD",0.99999999999999989,{"$f":"C10/$B10","v":0.48163253328475958},{"$f":"D10/$B10","v":0.24645722788130284},{"$f":"E10/$B10","v":0.2719102388339375},{"$f":"F10/$B10","v":0},{"$f":"G10/$B10","v":0}]
["PT",1,{"$f":"C10/(C10+D10)","v":0.66150158809184112},{"$f":"D10/(C10+D10)","v":0.33849841190815888}]
["TD",1,null,{"$f":"D10/(D10+E10)","v":0.47544887306110878},{"$f":"E10/(D10+E10)","v":0.52455112693889117}]
[]
[]
[]
[]
["LABOR",{"$f":"SUM(C23:G23)","v":351120432},141761602,26690861,93682351,{"$f":"38573572+6548333","v":45121905},43863713]
[]
["LABOR %",{"$f":"B23/$B23","v":1},0.40374068006387048,7.601625700893419E-2,0.26680973951410497,0.12850834325699395,0.12492498015609642]
[]
[]
[]
[]
["Material & Supplies",{"$f":"SUM(C30:G30)","v":85232490},73975748,381386,10875356,0,0]
[]
["Material & Supplies %",{"$f":"B30/$B30","v":1},0.86792897872630492,4.474655146177238E-3,0.12759636612751779,0,0]
[]
[]
[]
[]
["FERC (MWh)",32352108,{"$f":"B37-D37","v":16304361},16047747,0,0,0]
[]
["FERC %",{"$f":"B37/$B37","v":1},{"$f":"C37/$B37","v":0.5039659548614267},{"$f":"D37/$B37","v":0.49603404513857335},0,0,0]

{"sheet":"BOOKDPR","index":4,"n_rows":22,"n_cols":7,"rows_kept":22,"cut":false,"hidden":false,"merged":[]}
[{"$f":"+'TOTAL FUNCFAC'!$A$1","v":"PacifiCorp"}]
[{"$f":"+'TOTAL FUNCFAC'!A2","v":"12 Months Ended December 2019"}]
["Depreciation Expense"]
[]
[]
["Function","Amount",{"$f":"'TOTAL FUNCFAC'!C6","v":"Generation"},{"$f":"'TOTAL FUNCFAC'!D6","v":"Transmission"},{"$f":"'TOTAL FUNCFAC'!E6","v":"Distribution"},{"$f":"'TOTAL FUNCFAC'!F6","v":"Customer"},{"$f":"'TOTAL FUNCFAC'!G6","v":"Common"}]
["CUST",{"$f":"SUMIFS(tblDeprExpJune19[Total ($000)],tblDeprExpJune19[FUNC],A7)","v":1040.3454399999998},{"$f":"VLOOKUP($A7,$A$16:$G$22,3,FALSE)*$B7","v":0},{"$f":"VLOOKUP($A7,$A$16:$G$22,4,FALSE)*$B7","v":0},{"$f":"VLOOKUP($A7,$A$16:$G$22,5,FALSE)*$B7","v":0},{"$f":"VLOOKUP($A7,$A$16:$G$22,6,FALSE)*$B7","v":1040.3454399999998},{"$f":"VLOOKUP($A7,$A$16:$G$22,7,FALSE)*$B7","v":0}]
["DPW",{"$f":"SUMIFS(tblDeprExpJune19[Total ($000)],tblDeprExpJune19[FUNC],A8)","v":158205.35260000007},{"$f":"VLOOKUP($A8,$A$16:$G$22,3,FALSE)*$B8","v":0},{"$f":"VLOOKUP($A8,$A$16:$G$22,4,FALSE)*$B8","v":0},{"$f":"VLOOKUP($A8,$A$16:$G$22,5,FALSE)*$B8","v":158205.35260000007},{"$f":"VLOOKUP($A8,$A$16:$G$22,6,FALSE)*$B8","v":0},{"$f":"VLOOKUP($A8,$A$16:$G$22,7,FALSE)*$B8","v":0}]
["P",{"$f":"SUMIFS(tblDeprExpJune19[Total ($000)],tblDeprExpJune19[FUNC],A9)","v":413909.84275999968},{"$f":"VLOOKUP($A9,$A$16:$G$22,3,FALSE)*$B9","v":413909.84275999968},{"$f":"VLOOKUP($A9,$A$16:$G$22,4,FALSE)*$B9","v":0},{"$f":"VLOOKUP($A9,$A$16:$G$22,5,FALSE)*$B9","v":0},{"$f":"VLOOKUP($A9,$A$16:$G$22,6,FALSE)*$B9","v":0},{"$f":"VLOOKUP($A9,$A$16:$G$22,7,FALSE)*$B9","v":0}]
["PTD",{"$f":"SUMIFS(tblDeprExpJune19[Total ($000)],tblDeprExpJune19[FUNC],A10)","v":15567.253899999998},{"$f":"VLOOKUP($A10,$A$16:$G$22,3,FALSE)*$B10","v":7497.6959321440527},{"$f":"VLOOKUP($A10,$A$16:$G$22,4,FALSE)*$B10","v":3836.6622419184},{"$f":"VLOOKUP($A10,$A$16:$G$22,5,FALSE)*$B10","v":4232.8957259375447},{"$f":"VLOOKUP($A10,$A$16:$G$22,6,FALSE)*$B10","v":0},{"$f":"VLOOKUP($A10,$A$16:$G$22,7,FALSE)*$B10","v":0}]
["T",{"$f":"SUMIFS(tblDeprExpJune19[Total ($000)],tblDeprExpJune19[FUNC],A11)","v":110893.08869000002},{"$f":"VLOOKUP($A11,$A$16:$G$22,3,FALSE)*$B11","v":0},{"$f":"VLOOKUP($A11,$A$16:$G$22,4,FALSE)*$B11","v":110893.08869000002},{"$f":"VLOOKUP($A11,$A$16:$G$22,5,FALSE)*$B11","v":0},{"$f":"VLOOKUP($A11,$A$16:$G$22,6,FALSE)*$B11","v":0},{"$f":"VLOOKUP($A11,$A$16:$G$22,7,FALSE)*$B11","v":0}]
["Book Depreciation",{"$f":"SUM(B7:B11)","v":699615.88338999974},421407.53869214375,114729.75093191842,162438.2483259376,1040.3454399999998,0]
["BookDepr Factor",{"$f":"B12/$B12","v":1},0.60234129712751361,0.16398963153322593,0.23218204758136782,1.4870237578926734E-3,0]
[]
[]
["P",{"$f":"'FORM 1'!$B$13","v":1},{"$f":"'FORM 1'!$C$13","v":1},{"$f":"'FORM 1'!$D$13","v":0},{"$f":"'FORM 1'!$E$13","v":0},{"$f":"'FORM 1'!$F$13","v":0},{"$f":"'FORM 1'!$G$13","v":0}]
["T",{"$f":"'FORM 1'!$B$14","v":1},{"$f":"'FORM 1'!$C$14","v":0},{"$f":"'FORM 1'!$D$14","v":1},{"$f":"'FORM 1'!$E$14","v":0},{"$f":"'FORM 1'!$F$14","v":0},{"$f":"'FORM 1'!$G$14","v":0}]
["DPW",{"$f":"'FORM 1'!$B$15","v":1},{"$f":"'FORM 1'!$C$15","v":0},{"$f":"'FORM 1'!$D$15","v":0},{"$f":"'FORM 1'!$E$15","v":1},{"$f":"'FORM 1'!$F$15","v":0},{"$f":"'FORM 1'!$G$15","v":0}]
["CUST",{"$f":"'FORM 1'!$B$15","v":1},0,0,0,1,0]
["PTD",{"$f":"'FORM 1'!$B$16","v":0.99999999999999989},{"$f":"'FORM 1'!$C$16","v":0.48163253328475958},{"$f":"'FORM 1'!$D$16","v":0.24645722788130284},{"$f":"'FORM 1'!$E$16","v":0.2719102388339375},{"$f":"'FORM 1'!$F$16","v":0},{"$f":"'FORM 1'!$G$16","v":0}]
["TD",{"$f":"'FORM 1'!$B$18","v":1},{"$f":"'FORM 1'!$C$18","v":0},{"$f":"'FORM 1'!$D$18","v":0.47544887306110878},{"$f":"'FORM 1'!$E$18","v":0.52455112693889117},{"$f":"'FORM 1'!$F$18","v":0},{"$f":"'FORM 1'!$G$18","v":0}]
["G",{"$f":"GP!$D$38","v":0.99999999999999989},{"$f":"GP!$E$38","v":0.21249991655715922},{"$f":"GP!$F$38","v":0.35285672896315307},{"$f":"GP!$G$38","v":0.42023616439400902},{"$f":"GP!$H$38","v":1.4407190085678622E-2},{"$f":"GP!$I$38","v":0}]

{"sheet":"ELEC OPS","index":5,"n_rows":41,"n_cols":9,"rows_kept":41,"cut":false,"hidden":false,"merged":[]}
[{"$f":"+'TOTAL FUNCFAC'!A1","v":"PacifiCorp"}]
[{"$f":"+'TOTAL FUNCFAC'!A2:A2","v":"12 Months Ended December 2019"}]
["Account 456"]
[]
["Main"]
["Account","Factor","Function","Amount",{"$f":"'TOTAL FUNCFAC'!C6","v":"Generation"},{"$f":"'TOTAL FUNCFAC'!D6","v":"Transmission"},{"$f":"'TOTAL FUNCFAC'!E6","v":"Distribution"},{"$f":"'TOTAL FUNCFAC'!F6","v":"Customer"},{"$f":"'TOTAL FUNCFAC'!G6","v":"Common"}]
["456","OTHER","P",{"$f":"SUMIFS(tblELECOPSJune19[Total ($000)],tblELECOPSJune19[Alloc4Func],B7,tblELECOPSJune19[FUNC],C7)","v":-10294.097170000001},{"$f":"$D7*VLOOKUP(+$C7,$C$31:$I37,3,FALSE)","v":-10294.097170000001},{"$f":"$D7*VLOOKUP(+$C7,$C$31:$I37,4,FALSE)","v":0},{"$f":"$D7*VLOOKUP(+$C7,$C$31:$I37,5,FALSE)","v":0},{"$f":"$D7*VLOOKUP(+$C7,$C$31:$I37,6,FALSE)","v":0},{"$f":"$D7*VLOOKUP(+$C7,$C$31:$I37,7,FALSE)","v":0}]
["456","OTHER","T",{"$f":"SUMIFS(tblELECOPSJune19[Total ($000)],tblELECOPSJune19[Alloc4Func],B8,tblELECOPSJune19[FUNC],C8)","v":0},{"$f":"$D8*VLOOKUP(+$C8,$C$31:$I38,3,FALSE)","v":0},{"$f":"$D8*VLOOKUP(+$C8,$C$31:$I38,4,FALSE)","v":0},{"$f":"$D8*VLOOKUP(+$C8,$C$31:$I38,5,FALSE)","v":0},{"$f":"$D8*VLOOKUP(+$C8,$C$31:$I38,6,FALSE)","v":0},{"$f":"$D8*VLOOKUP(+$C8,$C$31:$I38,7,FALSE)","v":0}]
["456","SE","P",{"$f":"SUMIFS(tblELECOPSJune19[Total ($000)],tblELECOPSJune19[Alloc4Func],B9,tblELECOPSJune19[FUNC],C9)","v":0},{"$f":"$D9*VLOOKUP(+$C9,$C$31:$I38,3,FALSE)","v":0},{"$f":"$D9*VLOOKUP(+$C9,$C$31:$I38,4,FALSE)","v":0},{"$f":"$D9*VLOOKUP(+$C9,$C$31:$I38,5,FALSE)","v":0},{"$f":"$D9*VLOOKUP(+$C9,$C$31:$I38,6,FALSE)","v":0},{"$f":"$D9*VLOOKUP(+$C9,$C$31:$I38,7,FALSE)","v":0}]
["456","SE","T",{"$f":"SUMIFS(tblELECOPSJune19[Total ($000)],tblELECOPSJune19[Alloc4Func],B10,tblELECOPSJune19[FUNC],C10)","v":-17028.84503},{"$f":"$D10*VLOOKUP(+$C10,$C$31:$I39,3,FALSE)","v":0},{"$f":"$D10*VLOOKUP(+$C10,$C$31:$I39,4,FALSE)","v":-17028.84503},{"$f":"$D10*VLOOKUP(+$C10,$C$31:$I39,5,FALSE)","v":0},{"$f":"$D10*VLOOKUP(+$C10,$C$31:$I39,6,FALSE)","v":0},{"$f":"$D10*VLOOKUP(+$C10,$C$31:$I39,7,FALSE)","v":0}]
["456","SG","P",{"$f":"SUMIFS(tblELECOPSJune19[Total ($000)],tblELECOPSJune19[Alloc4Func],B11,tblELECOPSJune19[FUNC],C11)","v":-21316.890840000004},{"$f":"$D11*VLOOKUP(+$C11,$C$31:$I40,3,FALSE)","v":-21316.890840000004},{"$f":"$D11*VLOOKUP(+$C11,$C$31:$I40,4,FALSE)","v":0},{"$f":"$D11*VLOOKUP(+$C11,$C$31:$I40,5,FALSE)","v":0},{"$f":"$D11*VLOOKUP(+$C11,$C$31:$I40,6,FALSE)","v":0},{"$f":"$D11*VLOOKUP(+$C11,$C$31:$I40,7,FALSE)","v":0}]
["456","SG","T",{"$f":"SUMIFS(tblELECOPSJune19[Total ($000)],tblELECOPSJune19[Alloc4Func],B12,tblELECOPSJune19[FUNC],C12)","v":-98659.194210000016},{"$f":"$D12*VLOOKUP(+$C12,$C$31:$I40,3,FALSE)","v":0},{"$f":"$D12*VLOOKUP(+$C12,$C$31:$I40,4,FALSE)","v":-98659.194210000016},{"$f":"$D12*VLOOKUP(+$C12,$C$31:$I40,5,FALSE)","v":0},{"$f":"$D12*VLOOKUP(+$C12,$C$31:$I40,6,FALSE)","v":0},{"$f":"$D12*VLOOKUP(+$C12,$C$31:$I40,7,FALSE)","v":0}]
["456","SO","PTD",{"$f":"SUMIFS(tblELECOPSJune19[Total ($000)],tblELECOPSJune19[Alloc4Func],B13,tblELECOPSJune19[FUNC],C13)","v":-4091.8717099999999},{"$f":"$D13*VLOOKUP(+$C13,$C$31:$I41,3,FALSE)","v":-1970.778537563541},{"$f":"$D13*VLOOKUP(+$C13,$C$31:$I41,4,FALSE)","v":-1008.4713584925263},{"$f":"$D13*VLOOKUP(+$C13,$C$31:$I41,5,FALSE)","v":-1112.6218139439322},{"$f":"$D13*VLOOKUP(+$C13,$C$31:$I41,6,FALSE)","v":0},{"$f":"$D13*VLOOKUP(+$C13,$C$31:$I41,7,FALSE)","v":0}]
["456","SITUS","COMMON",{"$f":"SUMIFS(tblELECOPSJune19[Total ($000)],tblELECOPSJune19[Alloc4Func],B14,tblELECOPSJune19[FUNC],C14)","v":0},{"$f":"$D14*VLOOKUP(+$C14,$C$31:$I42,3,FALSE)","v":0},{"$f":"$D14*VLOOKUP(+$C14,$C$31:$I42,4,FALSE)","v":0},{"$f":"$D14*VLOOKUP(+$C14,$C$31:$I42,5,FALSE)","v":0},{"$f":"$D14*VLOOKUP(+$C14,$C$31:$I42,6,FALSE)","v":0},{"$f":"$D14*VLOOKUP(+$C14,$C$31:$I42,7,FALSE)","v":0}]
["456","SITUS","P",{"$f":"SUMIFS(tblELECOPSJune19[Total ($000)],tblELECOPSJune19[Alloc4Func],B15,tblELECOPSJune19[FUNC],C15)","v":-158.27517},{"$f":"$D15*VLOOKUP(+$C15,$C$31:$I43,3,FALSE)","v":-158.27517},{"$f":"$D15*VLOOKUP(+$C15,$C$31:$I43,4,FALSE)","v":0},{"$f":"$D15*VLOOKUP(+$C15,$C$31:$I43,5,FALSE)","v":0},{"$f":"$D15*VLOOKUP(+$C15,$C$31:$I43,6,FALSE)","v":0},{"$f":"$D15*VLOOKUP(+$C15,$C$31:$I43,7,FALSE)","v":0}]
["456","SITUS","T",{"$f":"SUMIFS(tblELECOPSJune19[Total ($000)],tblELECOPSJune19[Alloc4Func],B16,tblELECOPSJune19[FUNC],C16)","v":4012.2540799999997},{"$f":"$D16*VLOOKUP(+$C16,$C$31:$I44,3,FALSE)","v":0},{"$f":"$D16*VLOOKUP(+$C16,$C$31:$I44,4,FALSE)","v":4012.2540799999997},{"$f":"$D16*VLOOKUP(+$C16,$C$31:$I44,5,FALSE)","v":0},{"$f":"$D16*VLOOKUP(+$C16,$C$31:$I44,6,FALSE)","v":0},{"$f":"$D16*VLOOKUP(+$C16,$C$31:$I44,7,FALSE)","v":0}]
["Total Situs Revenues",null,null,{"$f":"SUMIF($B:$B,\"SITUS\",D:D)","v":3853.9789099999998},-158.27517,4012.2540799999997,0,0,0]
["Total CN Revenues",null,null,{"$f":"SUMIF($B:$B,\"CN\",D:D)","v":0},0,0,0,0,{"$f":"SUMIF($B:$B,\"CN\",I:I)","v":0}]
["Total SE Revenues",null,null,{"$f":"SUMIF($B:$B,\"SE\",D:D)","v":-17028.84503},0,-17028.84503,0,0,0]
["Total SG Revenues",null,null,{"$f":"SUMIF($B:$B,\"SG\",D:D)","v":-119976.08505000002},-21316.890840000004,-98659.194210000016,0,0,0]
["Total SO Revenues",null,null,{"$f":"SUMIF($B:$B,\"SO\",D:D)","v":-4091.8717099999999},-1970.778537563541,-1008.4713584925263,-1112.6218139439322,0,0]
["Total Operation",null,null,{"$f":"SUM(D7:D16)","v":-147536.92005000002},-33740.041717563545,-112684.25651849253,-1112.6218139439322,0,0]
["OTHSITUS",null,null,{"$f":"SUM(E23:I23)","v":1},{"$f":"E17/$D$17","v":-4.1067990691210088E-2},{"$f":"F17/$D$17","v":1.0410679906912101},{"$f":"G17/$D$17","v":0},{"$f":"H17/$D$17","v":0},{"$f":"I17/$D$17","v":0}]
["CN Factor",null,null,0,{"$f":"IF(ISERROR(E18/$D$18),\" \",(E18/$D$18))","v":" "},{"$f":"IF(ISERROR(F18/$D$18),\" \",(F18/$D$18))","v":" "},{"$f":"IF(ISERROR(G18/$D$18),\" \",(G18/$D$18))","v":" "},{"$f":"IF(ISERROR(H18/$D$18),\" \",(H18/$D$18))","v":" "},{"$f":"IF(ISERROR(I18/$D$18),\" \",(I18/$D$18))","v":" "}]
["OTHSE",null,null,1,{"$f":"E19/$D$19","v":0},{"$f":"F19/$D$19","v":1},{"$f":"G19/$D$19","v":0},{"$f":"H19/$D$19","v":0},{"$f":"I19/$D$19","v":0}]
["OTHSG",null,null,1,{"$f":"E20/$D$20","v":0.17767616630527819},{"$f":"F20/$D$20","v":0.82232383369472184},{"$f":"G20/$D$20","v":0},{"$f":"H20/$D$20","v":0},{"$f":"I20/$D$20","v":0}]
["OTHSO",null,null,{"$f":"SUM(E27:I27)","v":0.99999999999999989},{"$f":"IFERROR(E21/$D$21,0)","v":0.48163253328475958},{"$f":"IFERROR(F21/$D$21,0)","v":0.24645722788130284},0.2719102388339375,0,0]
["Total Operation Factor",null,null,0.99999999999999989,{"$f":"E22/$D$22","v":0.22868880349494283},{"$f":"F22/$D$22","v":0.76376988539752644},{"$f":"G22/$D$22","v":7.5413111075306885E-3},{"$f":"H22/$D$22","v":0},{"$f":"I22/$D$22","v":0}]
[]
[null,null,null,"Total","Prod","Trans","DPW","CUST","DMSC"]
[null,null,"P",{"$f":"SUM(E31:I31)","v":1},{"$f":"'FORM 1'!$C$13","v":1},{"$f":"'FORM 1'!$D$13","v":0},{"$f":"'FORM 1'!$E$13","v":0},{"$f":"'FORM 1'!$F$13","v":0},{"$f":"'FORM 1'!$G$13","v":0}]
[null,null,"T",{"$f":"SUM(E32:I32)","v":1},{"$f":"'FORM 1'!$C$14","v":0},{"$f":"'FORM 1'!$D$14","v":1},{"$f":"'FORM 1'!$E$14","v":0},{"$f":"'FORM 1'!$F$14","v":0},{"$f":"'FORM 1'!$G$14","v":0}]
[null,null,"TD",1,{"$f":"'FORM 1'!$C$18","v":0},{"$f":"'FORM 1'!$D$18","v":0.47544887306110878},{"$f":"'FORM 1'!$E$18","v":0.52455112693889117},{"$f":"'FORM 1'!$F$18","v":0},{"$f":"'FORM 1'!$G$18","v":0}]
[null,null,"CUST",1,0,0,0,1,0]
[null,null,"DPW",1,0,0,1,0,0]
[null,null,"PTD",0.99999999999999989,{"$f":"'FORM 1'!$C$16","v":0.48163253328475958},{"$f":"'FORM 1'!$D$16","v":0.24645722788130284},{"$f":"'FORM 1'!$E$16","v":0.2719102388339375},{"$f":"'FORM 1'!$F$16","v":0},{"$f":"'FORM 1'!$G$16","v":0}]
[null,null,"COMMON",1,0,0,0,0,1]
[]
[]
[]
[null,null,null,"BASED ON TOTAL COMPANY DATA"]

{"sheet":"GP","index":6,"n_rows":51,"n_cols":9,"rows_kept":51,"cut":false,"hidden":false,"merged":[]}
[{"$f":"+'TOTAL FUNCFAC'!$A$1","v":"PacifiCorp"}]
[{"$f":"+'TOTAL FUNCFAC'!A2","v":"12 Months Ended December 2019"}]
["General Plant"]
[]
[null,"Alloc."]
["Description","Factor","Funct.","Amount",{"$f":"'TOTAL FUNCFAC'!C6","v":"Generation"},{"$f":"'TOTAL FUNCFAC'!D6","v":"Transmission"},{"$f":"'TOTAL FUNCFAC'!E6","v":"Distribution"},{"$f":"'TOTAL FUNCFAC'!F6","v":"Customer"},{"$f":"'TOTAL FUNCFAC'!G6","v":"Common"}]
["Business Centers","CN","CUST",{"$f":"SUMIFS(tblGPJune19[Total ($000)],tblGPJune19[Alloc4FUNC],B7,tblGPJune19[FUNC],C7)","v":17840.856436923077},{"$f":"$D7*VLOOKUP(+$C7,$B$45:$H$51,3)","v":0},{"$f":"$D7*VLOOKUP(+$C7,$B$45:$H$51,4)","v":0},{"$f":"$D7*VLOOKUP(+$C7,$B$45:$H$51,5)","v":0},{"$f":"$D7*VLOOKUP(+$C7,$B$45:$H$51,6)","v":17840.856436923077},{"$f":"$D7*VLOOKUP(+$C7,$B$45:$H$51,7)","v":0}]
[null,"SE","P",{"$f":"SUMIFS(tblGPJune19[Total ($000)],tblGPJune19[Alloc4FUNC],B8,tblGPJune19[FUNC],C8)","v":5543.4293353846097},5543.4293353846097,0,0,0,0]
[null,"SG","P",{"$f":"SUMIFS(tblGPJune19[Total ($000)],tblGPJune19[Alloc4FUNC],B9,tblGPJune19[FUNC],C9)","v":122160.12520307682},122160.12520307682,0,0,0,0]
[null,"SG","T",{"$f":"SUMIFS(tblGPJune19[Total ($000)],tblGPJune19[Alloc4FUNC],B10,tblGPJune19[FUNC],C10)","v":172054.74584153801},0,172054.74584153801,0,0,0]
[null,"SG","TD",{"$f":"SUMIFS(tblGPJune19[Total ($000)],tblGPJune19[Alloc4FUNC],B11,tblGPJune19[FUNC],C11)","v":0},0,0,0,0,0]
["General Plant","SO","DPW",{"$f":"SUMIFS(tblGPJune19[Total ($000)],tblGPJune19[Alloc4FUNC],B12,tblGPJune19[FUNC],C12)","v":0},0,0,0,0,0]
[null,"SO","PTD",{"$f":"SUMIFS(tblGPJune19[Total ($000)],tblGPJune19[Alloc4FUNC],B13,tblGPJune19[FUNC],C13)","v":281213.30819384614},135441.47801878996,69307.052380785783,76464.777794270383,0,0]
[null,"SO","TD",0,0,0,0,0,0]
[null,"SO","P",0,0,0,0,0,0]
[null,"SSGCH","P",0,0,0,0,0,0]
[null,"SSGCT","DPW",0,0,0,0,0,0]
[null,"SSGCT","P",{"$f":"SUMIFS(tblGPJune19[Total ($000)],tblGPJune19[Alloc4FUNC],B18,tblGPJune19[FUNC],C18)","v":0},0,0,0,0,0]
[null,"SITUS","DPW",{"$f":"SUMIFS(tblGPJune19[Total ($000)],tblGPJune19[Alloc4FUNC],B19,tblGPJune19[FUNC],C19)","v":228135.19767384604},0,0,228135.19767384604,0,0]
[null,"SITUS","P",{"$f":"SUMIFS(tblGPJune19[Total ($000)],tblGPJune19[Alloc4FUNC],B20,tblGPJune19[FUNC],C20)","v":0},0,0,0,0,0]
[null,"SITUS","TD",{"$f":"SUMIFS(tblGPJune19[Total ($000)],tblGPJune19[Alloc4FUNC],B21,tblGPJune19[FUNC],C21)","v":411382.38854846155},0,195591.29303255322,215791.0955159083,0,0]
["Total-CUST",null,null,{"$f":"SUMIF($C:$C,\"CUST\",D:D)","v":17840.856436923077},0,0,0,17840.856436923077,0]
["Total-TD",null,null,{"$f":"SUMIF($C:$C,\"TD\",D:D)","v":411382.38854846155},0,195591.29303255322,215791.0955159083,0,0]
["Total-PTD",null,null,{"$f":"SUMIF($C:$C,\"PTD\",D:D)","v":281213.30819384614},135441.47801878996,69307.052380785783,76464.777794270383,0,0]
["Total-DPW",null,null,{"$f":"SUMIF($C:$C,\"DPW\",D:D)","v":228135.19767384604},0,0,228135.19767384604,0,0]
["Total-SSGCH",null,null,{"$f":"SUMIF($B:$B,\"SSGCH\",D:D)","v":0},0,0,0,0,0]
["Total-SSGCT",null,null,{"$f":"SUMIF($B:$B,\"SSGCT\",D:D)","v":0},0,0,0,0,0]
["Total-G-SG",null,null,{"$f":"SUMIF($B:$B,\"SG\",D:D)","v":294214.87104461482},122160.12520307682,172054.74584153801,0,0,0]
["Total-SE",null,null,{"$f":"SUMIF($B:$B,\"SE\",D:D)","v":5543.4293353846097},5543.4293353846097,0,0,0,0]
["Total-G-Situs",null,null,{"$f":"SUMIF($B:$B,\"SITUS\",D:D)","v":639517.58622230752},0,195591.29303255322,443926.29318975436,0,0]
["Total-SO",null,null,{"$f":"SUMIF($B:$B,\"SO\",D:D)","v":281213.30819384614},135441.47801878996,69307.052380785783,76464.777794270383,0,0]
["Total-General Plant",null,null,{"$f":"SUM(D7:D21)","v":1238330.0512330763},263145.0325572514,436953.09125487704,520391.07098402467,17840.856436923077,0]
[]
["G-SG Factor",null,null,{"$f":"SUM(E34:I34)","v":1},{"$f":"E28/$D$28","v":0.41520717416269698},{"$f":"F28/$D$28","v":0.58479282583730308},{"$f":"G28/$D$28","v":0},{"$f":"H28/$D$28","v":0},{"$f":"I28/$D$28","v":0}]
[".",null,null,{"$f":"SUM(E35:I35)","v":1},{"$f":"E29/$D$29","v":1},{"$f":"F29/$D$29","v":0},{"$f":"G29/$D$29","v":0},{"$f":"H29/$D$29","v":0},{"$f":"I29/$D$29","v":0}]
["G-SITUS Factor",null,null,{"$f":"SUM(E36:I36)","v":1},{"$f":"E30/$D$30","v":0},{"$f":"F30/$D$30","v":0.30584193030238616},{"$f":"G30/$D$30","v":0.69415806969761396},{"$f":"H30/$D$30","v":0},{"$f":"I30/$D$30","v":0}]
["SO Factor",null,null,{"$f":"SUM(E37:I37)","v":0.99999999999999989},{"$f":"E31/$D$31","v":0.48163253328475958},{"$f":"F31/$D$31","v":0.24645722788130284},{"$f":"G31/$D$31","v":0.2719102388339375},{"$f":"H31/$D$31","v":0},{"$f":"I31/$D$31","v":0}]
["G Allocator",null,null,{"$f":"SUM(E38:I38)","v":0.99999999999999989},{"$f":"E32/$D$32","v":0.21249991655715922},{"$f":"F32/$D$32","v":0.35285672896315307},{"$f":"G32/$D$32","v":0.42023616439400902},{"$f":"H32/$D$32","v":1.4407190085678622E-2},{"$f":"I32/$D$32","v":0}]
["Total Gen. Plant",null,null,{"$f":"D32","v":1238330.0512330763}]
["Mining",null,"acct 399 from JAM",{"$f":"'GROSS PLANT'!D12","v":97975.439769999997},{"$f":"D29","v":5543.4293353846097},{"$f":"SUM(D40+E40)","v":103518.86910538461}]
["Total ",null,"P",{"$f":"SUM(D39:D40)","v":1336305.4910030763}]
[]
[]
[null,"Functional Allocators:",null,"Prod","Trans","DPW","CUST","DMISC"]
[null,"P",{"$f":"SUM(D45:H45)","v":1},{"$f":"'FORM 1'!$C$13","v":1},{"$f":"'FORM 1'!$D$13","v":0},{"$f":"'FORM 1'!$E$13","v":0},{"$f":"'FORM 1'!$F$13","v":0},{"$f":"'FORM 1'!$G$13","v":0}]
[null,"T",1,{"$f":"'FORM 1'!$C$14","v":0},{"$f":"'FORM 1'!$D$14","v":1},{"$f":"'FORM 1'!$E$14","v":0},{"$f":"'FORM 1'!$F$14","v":0},{"$f":"'FORM 1'!$G$14","v":0}]
[null,"TD",1,{"$f":"'FORM 1'!$C$18","v":0},{"$f":"'FORM 1'!$D$18","v":0.47544887306110878},{"$f":"'FORM 1'!$E$18","v":0.52455112693889117},{"$f":"'FORM 1'!$F$18","v":0},{"$f":"'FORM 1'!$G$18","v":0}]
[null,"CUST",1,0,0,0,1,0]
[null,"DPW",1,0,0,1,0,0]
[null,"PTD",0.99999999999999989,{"$f":"'FORM 1'!$C$16","v":0.48163253328475958},{"$f":"'FORM 1'!$D$16","v":0.24645722788130284},{"$f":"'FORM 1'!$E$16","v":0.2719102388339375},{"$f":"'FORM 1'!$F$16","v":0},{"$f":"'FORM 1'!$G$16","v":0}]
[null,"GP",{"$f":"SUM(D51:H51)","v":0.99999999999999989},{"$f":"+'GROSS PLANT'!E42","v":0.47257293179736909},{"$f":"+'GROSS PLANT'!F42","v":0.2480047855515477},{"$f":"+'GROSS PLANT'!G42","v":0.27258888162029649},{"$f":"+'GROSS PLANT'!H42","v":6.8334010307866894E-3},{"$f":"+'GROSS PLANT'!I42","v":0}]

{"sheet":"IP","index":7,"n_rows":46,"n_cols":8,"rows_kept":46,"cut":false,"hidden":false,"merged":[]}
[{"$f":"+'TOTAL FUNCFAC'!A1","v":"PacifiCorp"}]
[{"$f":"+'TOTAL FUNCFAC'!A2","v":"12 Months Ended December 2019"}]
["Intangible Plant"]
["(In 000's)"]
["Alloc."]
["Factor","Funct.","Amount",{"$f":"'TOTAL FUNCFAC'!C6","v":"Generation"},{"$f":"'TOTAL FUNCFAC'!D6","v":"Transmission"},{"$f":"'TOTAL FUNCFAC'!E6","v":"Distribution"},{"$f":"'TOTAL FUNCFAC'!F6","v":"Customer"},{"$f":"'TOTAL FUNCFAC'!G6","v":"Common"}]
["CN","CUST",{"$f":"SUMIFS(tblIPJune19[Total ($000)],tblIPJune19[Alloc4FUNC],A7,tblIPJune19[FUNC],B7)","v":170389.2728961535},{"$f":"$C7*VLOOKUP(+$B7,$B$39:$H$46,3)","v":0},{"$f":"$C7*VLOOKUP(+$B7,$B$39:$H$46,4)","v":0},{"$f":"$C7*VLOOKUP(+$B7,$B$39:$H$46,5)","v":0},{"$f":"$C7*VLOOKUP(+$B7,$B$39:$H$46,6)","v":170389.2728961535},{"$f":"$C7*VLOOKUP(+$B7,$B$39:$H$46,7)","v":0}]
["SE","P",{"$f":"SUMIFS(tblIPJune19[Total ($000)],tblIPJune19[Alloc4FUNC],A8,tblIPJune19[FUNC],B8)","v":6.7630846153846198},6.7630846153846198,0,0,0,0]
["SG","P",{"$f":"SUMIFS(tblIPJune19[Total ($000)],tblIPJune19[Alloc4FUNC],A9,tblIPJune19[FUNC],B9)","v":116902.14166076922},116902.14166076922,0,0,0,0]
["SG","T",{"$f":"SUMIFS(tblIPJune19[Total ($000)],tblIPJune19[Alloc4FUNC],A10,tblIPJune19[FUNC],B10)","v":60409.797681538497},0,60409.797681538497,0,0,0]
["SG-P","P",{"$f":"SUMIFS(tblIPJune19[Total ($000)],tblIPJune19[Alloc4FUNC],A11,tblIPJune19[FUNC],B11)","v":175395.32401769201},175395.32401769201,0,0,0,0]
["SG-U","P",{"$f":"SUMIFS(tblIPJune19[Total ($000)],tblIPJune19[Alloc4FUNC],A12,tblIPJune19[FUNC],B12)","v":9951.3918599999997},9951.3918599999997,0,0,0,0]
["SO","CUST",{"$f":"SUMIFS(tblIPJune19[Total ($000)],tblIPJune19[Alloc4FUNC],A13,tblIPJune19[FUNC],B13)","v":8608.1682123076916},0,0,0,8608.1682123076916,0]
["SO","DPW",{"$f":"SUMIFS(tblIPJune19[Total ($000)],tblIPJune19[Alloc4FUNC],A14,tblIPJune19[FUNC],B14)","v":32714.814050000001},0,0,32714.814050000001,0,0]
["SO","P",{"$f":"SUMIFS(tblIPJune19[Total ($000)],tblIPJune19[Alloc4FUNC],A15,tblIPJune19[FUNC],B15)","v":30029.67716153846},30029.67716153846,0,0,0,0]
["SO","PTD",{"$f":"SUMIFS(tblIPJune19[Total ($000)],tblIPJune19[Alloc4FUNC],A16,tblIPJune19[FUNC],B16)","v":90439.779593076935},43558.740155128944,22289.537368705765,24591.502069242215,0,0]
["SO","T",{"$f":"SUMIFS(tblIPJune19[Total ($000)],tblIPJune19[Alloc4FUNC],A17,tblIPJune19[FUNC],B17)","v":1239.5300299999999},0,1239.5300299999999,0,0,0]
["SO","TD",{"$f":"SUMIFS(tblIPJune19[Total ($000)],tblIPJune19[Alloc4FUNC],A18,tblIPJune19[FUNC],B18)","v":41887.255897692303},0,19915.248612180087,21972.007285512213,0,0]
["SO","LABOR",{"$f":"SUMIFS(tblIPJune19[Total ($000)],tblIPJune19[Alloc4FUNC],A19,tblIPJune19[FUNC],B19)","v":0},0,0,0,0,0]
["SO","COMMON",{"$f":"SUMIFS(tblIPJune19[Total ($000)],tblIPJune19[Alloc4FUNC],A20,tblIPJune19[FUNC],B20)","v":178476.85262461501},0,0,0,0,178476.85262461501]
["SITUS","DPW",{"$f":"SUMIFS(tblIPJune19[Total ($000)],tblIPJune19[Alloc4FUNC],A21,tblIPJune19[FUNC],B21)","v":157.66159999999999},0,0,157.66159999999999,0,0]
["SITUS","P",{"$f":"SUMIFS(tblIPJune19[Total ($000)],tblIPJune19[Alloc4FUNC],A22,tblIPJune19[FUNC],B22)","v":-32081.21485},-32081.21485,0,0,0,0]
["SITUS","PTD",{"$f":"SUMIFS(tblIPJune19[Total ($000)],tblIPJune19[Alloc4FUNC],A23,tblIPJune19[FUNC],B23)","v":0},0,0,0,0,0]
["SITUS","T",{"$f":"SUMIFS(tblIPJune19[Total ($000)],tblIPJune19[Alloc4FUNC],A24,tblIPJune19[FUNC],B24)","v":5337.3874215384658},0,5337.3874215384658,0,0,0]
["SITUS","TD",{"$f":"SUMIFS(tblIPJune19[Total ($000)],tblIPJune19[Alloc4FUNC],A25,tblIPJune19[FUNC],B25)","v":16559.743528461539},0,7873.3113987880279,8686.4321296735106,0,0]
["Total-DGP"]
["Total-DGU"]
["Total-SG",null,{"$f":"SUMIF($A:$A,\"SG\",C:C)+SUMIF($A:$A,\"SG-P\",C:C)+SUMIF($A:$A,\"SG-U\",C:C)","v":362658.65521999972},302248.85753846122,60409.797681538497,0,0,0]
["Total-SITUS",null,{"$f":"SUMIF($A:$A,\"SITUS\",C:C)","v":-10026.422299999995},-32081.21485,13210.698820326494,8844.0937296735101,0,0]
["Total-Intangible",null,{"$f":"SUM(C7:C25)","v":906424.34646999906},{"$f":"SUM(D7:D25)","v":343762.82308974396},117064.81251275085,88122.417134427946,178997.44110846121,178476.85262461501]
["I-DGP FACTOR",null,{"$f":"SUM(D31:H31)","v":{"$error":"#DIV/0!"}},{"$f":"D26/$C$26","v":{"$error":"#DIV/0!"}},{"$f":"E26/$C$26","v":{"$error":"#DIV/0!"}},{"$f":"F26/$C$26","v":{"$error":"#DIV/0!"}},{"$f":"G26/$C$26","v":{"$error":"#DIV/0!"}},{"$f":"H26/$C$26","v":{"$error":"#DIV/0!"}}]
["I-DGU FACTOR",null,{"$f":"SUM(D32:H32)","v":{"$error":"#DIV/0!"}},{"$f":"D27/$C$27","v":{"$error":"#DIV/0!"}},{"$f":"E27/$C$27","v":{"$error":"#DIV/0!"}},{"$f":"F27/$C$27","v":{"$error":"#DIV/0!"}},{"$f":"G27/$C$27","v":{"$error":"#DIV/0!"}},{"$f":"H27/$C$27","v":{"$error":"#DIV/0!"}}]
["I-SG FACTOR",null,{"$f":"SUM(D33:H33)","v":1},{"$f":"D28/$C$28","v":0.83342518698501189},{"$f":"E28/$C$28","v":0.16657481301498811},{"$f":"F28/$C$28","v":0},{"$f":"G28/$C$28","v":0},{"$f":"H28/$C$28","v":0}]
["I-Situs FACTOR",null,{"$f":"SUM(D34:H34)","v":1.0000000000000002},{"$f":"D29/$C$29","v":3.1996672282594778},{"$f":"E29/$C$29","v":-1.3175885101434937},{"$f":"F29/$C$29","v":-0.88207871811598393},{"$f":"G29/$C$29","v":0},{"$f":"H29/$C$29","v":0}]
["I FACTOR",null,{"$f":"SUM(D35:H35)","v":0.99999999999999989},{"$f":"D30/$C$30","v":0.37925153315718207},{"$f":"E30/$C$30","v":0.12915011933279472},{"$f":"F30/$C$30","v":9.7219825876935034E-2},{"$f":"G30/$C$30","v":0.1974764268033545},{"$f":"H30/$C$30","v":0.19690209482973356}]
[]
[]
[null,"Functional Allocators:",null,"Prod","Trans","DPW","CUST","Common"]
[null,"P",{"$f":"SUM(D39:H39)","v":1},{"$f":"'FORM 1'!$C$13","v":1},{"$f":"'FORM 1'!$D$13","v":0},{"$f":"'FORM 1'!$E$13","v":0},{"$f":"'FORM 1'!$F$13","v":0},{"$f":"'FORM 1'!$G$13","v":0}]
[null,"T",1,{"$f":"'FORM 1'!$C$14","v":0},{"$f":"'FORM 1'!$D$14","v":1},{"$f":"'FORM 1'!$E$14","v":0},{"$f":"'FORM 1'!$F$14","v":0},{"$f":"'FORM 1'!$G$14","v":0}]
[null,"TD",1,{"$f":"'FORM 1'!$C$18","v":0},{"$f":"'FORM 1'!$D$18","v":0.47544887306110878},{"$f":"'FORM 1'!$E$18","v":0.52455112693889117},{"$f":"'FORM 1'!$F$18","v":0},{"$f":"'FORM 1'!$G$18","v":0}]
[null,"CUST",1,0,0,0,1,0]
[null,"DPW",1,0,0,1,0,0]
[null,"PTD",0.99999999999999989,{"$f":"'FORM 1'!$C$16","v":0.48163253328475958},{"$f":"'FORM 1'!$D$16","v":0.24645722788130284},{"$f":"'FORM 1'!$E$16","v":0.2719102388339375},{"$f":"'FORM 1'!$F$16","v":0},{"$f":"'FORM 1'!$G$16","v":0}]
[null,"COMMON",1,{"$f":"'TOTAL FUNCFAC'!C16","v":0},{"$f":"'TOTAL FUNCFAC'!D16","v":0},{"$f":"'TOTAL FUNCFAC'!E16","v":0},{"$f":"'TOTAL FUNCFAC'!F16","v":0},{"$f":"'TOTAL FUNCFAC'!G16","v":1}]
[null,"LABOR",{"$f":"SUM(D46:H46)","v":1},{"$f":"'SCH M'!F147","v":0.40374068006387048},{"$f":"'SCH M'!G147","v":7.601625700893419E-2},{"$f":"'SCH M'!H147","v":0.26680973951410497},{"$f":"'SCH M'!I147","v":0.12850834325699395},{"$f":"'SCH M'!J147","v":0.12492498015609642}]

{"sheet":"SCH M","index":8,"n_rows":153,"n_cols":10,"rows_kept":153,"cut":false,"hidden":false,"merged":[]}
[null,{"$f":"+'TOTAL FUNCFAC'!A1","v":"PacifiCorp"}]
[null,{"$f":"+'TOTAL FUNCFAC'!A2","v":"12 Months Ended December 2019"}]
[null,"Schedule M"]
[null,"Primary","PITA"]
[null,"Account","Factor","Function","Amount",{"$f":"'TOTAL FUNCFAC'!C6","v":"Generation"},{"$f":"'TOTAL FUNCFAC'!D6","v":"Transmission"},{"$f":"'TOTAL FUNCFAC'!E6","v":"Distribution"},{"$f":"'TOTAL FUNCFAC'!F6","v":"Customer"},{"$f":"'TOTAL FUNCFAC'!G6","v":"Common"}]
[null,"ADDITIONS"]
[{"$f":"IF(C7=\"\",\"\",B7&\"-\"&C7)","v":"SCHMAP-SCHMDEXP"},"SCHMAP","SCHMDEXP","LABOR",{"$f":"SUMIFS(tblSchMJune19[Total ($000)],tblSchMJune19[Primary Name],B7,tblSchMJune19[Alloc4FUNC],C7,tblSchMJune19[FUNC],D7)","v":129.28995},{"$f":"VLOOKUP($D7,$D$141:$J$153,3,FALSE)*$E7","v":52.199612338423812},{"$f":"VLOOKUP($D7,$D$141:$J$153,4,FALSE)*$E7","v":9.828138067872251},{"$f":"VLOOKUP($D7,$D$141:$J$153,5,FALSE)*$E7","v":34.495817881291657},{"$f":"VLOOKUP($D7,$D$141:$J$153,6,FALSE)*$E7","v":16.614837274279587},{"$f":"VLOOKUP($D7,$D$141:$J$153,7,FALSE)*$E7","v":16.151544438132699}]
[{"$f":"IF(C8=\"\",\"\",B8&\"-\"&C8)","v":"SCHMAP-SE"},"SCHMAP","SE","P",{"$f":"SUMIFS(tblSchMJune19[Total ($000)],tblSchMJune19[Primary Name],B8,tblSchMJune19[Alloc4FUNC],C8,tblSchMJune19[FUNC],D8)","v":58.125},{"$f":"VLOOKUP($D8,$D$141:$J$153,3,FALSE)*$E8","v":58.125},{"$f":"VLOOKUP($D8,$D$141:$J$153,4,FALSE)*$E8","v":0},{"$f":"VLOOKUP($D8,$D$141:$J$153,5,FALSE)*$E8","v":0},{"$f":"VLOOKUP($D8,$D$141:$J$153,6,FALSE)*$E8","v":0},{"$f":"VLOOKUP($D8,$D$141:$J$153,7,FALSE)*$E8","v":0}]
[{"$f":"IF(C9=\"\",\"\",B9&\"-\"&C9)","v":"SCHMAP-SO"},"SCHMAP","SO","P",{"$f":"SUMIFS(tblSchMJune19[Total ($000)],tblSchMJune19[Primary Name],B9,tblSchMJune19[Alloc4FUNC],C9,tblSchMJune19[FUNC],D9)","v":1515.6276},{"$f":"VLOOKUP($D9,$D$141:$J$153,3,FALSE)*$E9","v":1515.6276},{"$f":"VLOOKUP($D9,$D$141:$J$153,4,FALSE)*$E9","v":0},{"$f":"VLOOKUP($D9,$D$141:$J$153,5,FALSE)*$E9","v":0},{"$f":"VLOOKUP($D9,$D$141:$J$153,6,FALSE)*$E9","v":0},{"$f":"VLOOKUP($D9,$D$141:$J$153,7,FALSE)*$E9","v":0}]
[{"$f":"IF(C10=\"\",\"\",B10&\"-\"&C10)","v":"SCHMAP-SO"},"SCHMAP","SO","LABOR",{"$f":"SUMIFS(tblSchMJune19[Total ($000)],tblSchMJune19[Primary Name],B10,tblSchMJune19[Alloc4FUNC],C10,tblSchMJune19[FUNC],D10)","v":855.59120000000007},{"$f":"VLOOKUP($D10,$D$141:$J$153,3,FALSE)*$E10","v":345.43697294466307},{"$f":"VLOOKUP($D10,$D$141:$J$153,4,FALSE)*$E10","v":65.038840553782421},{"$f":"VLOOKUP($D10,$D$141:$J$153,5,FALSE)*$E10","v":228.28006520256051},{"$f":"VLOOKUP($D10,$D$141:$J$153,6,FALSE)*$E10","v":109.95060761726337},{"$f":"VLOOKUP($D10,$D$141:$J$153,7,FALSE)*$E10","v":106.88471368173073}]
[{"$f":"IF(C11=\"\",\"\",B11&\"-\"&C11)","v":"SCHMAP-SO"},"SCHMAP","SO","PTD",{"$f":"SUMIFS(tblSchMJune19[Total ($000)],tblSchMJune19[Primary Name],B11,tblSchMJune19[Alloc4FUNC],C11,tblSchMJune19[FUNC],D11)","v":0},{"$f":"VLOOKUP($D11,$D$141:$J$153,3,FALSE)*$E11","v":0},{"$f":"VLOOKUP($D11,$D$141:$J$153,4,FALSE)*$E11","v":0},{"$f":"VLOOKUP($D11,$D$141:$J$153,5,FALSE)*$E11","v":0},{"$f":"VLOOKUP($D11,$D$141:$J$153,6,FALSE)*$E11","v":0},{"$f":"VLOOKUP($D11,$D$141:$J$153,7,FALSE)*$E11","v":0}]
[]
[{"$f":"IF(C13=\"\",\"\",B13&\"-\"&C13)","v":""},"Total-SO",null,null,{"$f":"SUMIF($A:$A,\"SCHMAP-SO\",E:E)","v":2371.2188000000001},1861.064572944663,65.038840553782421,228.28006520256051,109.95060761726337,106.88471368173073]
[{"$f":"IF(C14=\"\",\"\",B14&\"-\"&C14)","v":""},"Total SCHMAP",null,null,{"$f":"SUMIF($B:$B,\"SCHMAP\",E:E)","v":2558.63375},1971.3891852830868,74.866978621654667,262.77588308385214,126.56544489154297,123.03625811986343]
[{"$f":"IF(C15=\"\",\"\",B15&\"-\"&C15)","v":""},"SCHMAP-SO",null,null,{"$f":"SUM(F15:J15)","v":1},{"$f":"IF(ISERROR(F13/$E13),\" \",(F13/$E13))","v":0.7848556923320037},2.7428443361608983E-2,9.627119403850902E-2,4.6368815740354022E-2,4.5075854527524294E-2]
[{"$f":"IF(C16=\"\",\"\",B16&\"-\"&C16)","v":""},"SCHMAP FACTOR",null,null,{"$f":"SUM(F16:J16)","v":0.99999999999999989},0.77048510177866869,2.9260529617282923E-2,0.10270164031247228,4.9466026504005493E-2,4.8086701787570588E-2]
[]
[{"$f":"IF(C18=\"\",\"\",B18&\"-\"&C18)","v":"SCHMAT-CIAC"},"SCHMAT","CIAC","DPW",{"$f":"SUMIFS(tblSchMJune19[Total ($000)],tblSchMJune19[Primary Name],B18,tblSchMJune19[Alloc4FUNC],C18,tblSchMJune19[FUNC],D18)","v":103001.23149999999},{"$f":"VLOOKUP($D18,$D$141:$J$153,3,FALSE)*$E18","v":0},{"$f":"VLOOKUP($D18,$D$141:$J$153,4,FALSE)*$E18","v":0},{"$f":"VLOOKUP($D18,$D$141:$J$153,5,FALSE)*$E18","v":103001.23149999999},{"$f":"VLOOKUP($D18,$D$141:$J$153,6,FALSE)*$E18","v":0},{"$f":"VLOOKUP($D18,$D$141:$J$153,7,FALSE)*$E18","v":0}]
["SCHMAT-BADDEBT","SCHMAT","BADDEBT","CUST",{"$f":"SUMIFS(tblSchMJune19[Total ($000)],tblSchMJune19[Primary Name],B19,tblSchMJune19[Alloc4FUNC],C19,tblSchMJune19[FUNC],D19)","v":397.32795039732798},0,0,0,397.32795039732798,0]
["SCHMAT-SCHMDEXP","SCHMAT","SCHMDEXP","GP",{"$f":"SUMIFS(tblSchMJune19[Total ($000)],tblSchMJune19[Primary Name],B20,tblSchMJune19[Alloc4FUNC],C20,tblSchMJune19[FUNC],D20)","v":984007.98239999998},465015.53715478198,244038.68865612312,268229.63542786037,6724.1211612344905,0]
[{"$f":"IF(C21=\"\",\"\",B21&\"-\"&C21)","v":"SCHMAT-GPS"},"SCHMAT","GPS","GP",{"$f":"SUMIFS(tblSchMJune19[Total ($000)],tblSchMJune19[Primary Name],B21,tblSchMJune19[Alloc4FUNC],C21,tblSchMJune19[FUNC],D21)","v":-591.04174999999998},-279.31033261214765,-146.58118246076145,-161.11140962340286,-4.0388253036879682,0]
[{"$f":"IF(C22=\"\",\"\",B22&\"-\"&C22)","v":"SCHMAT-SE"},"SCHMAT","SE","LABOR",{"$f":"SUMIFS(tblSchMJune19[Total ($000)],tblSchMJune19[Primary Name],B22,tblSchMJune19[Alloc4FUNC],C22,tblSchMJune19[FUNC],D22)","v":0.76100000000000001},0.30724665752860542,5.7848371583798922E-2,0.20304221177023388,9.7794849218572399E-2,9.5067909898789382E-2]
["SCHMAT-SE","SCHMAT","SE","P",{"$f":"SUMIFS(tblSchMJune19[Total ($000)],tblSchMJune19[Primary Name],B23,tblSchMJune19[Alloc4FUNC],C23,tblSchMJune19[FUNC],D23)","v":35250.834989999988},35250.834989999988,0,0,0,0]
["SCHMAT-SG","SCHMAT","SG","DPW",{"$f":"SUMIFS(tblSchMJune19[Total ($000)],tblSchMJune19[Primary Name],B24,tblSchMJune19[Alloc4FUNC],C24,tblSchMJune19[FUNC],D24)","v":0},0,0,0,0,0]
[{"$f":"IF(C25=\"\",\"\",B25&\"-\"&C25)","v":"SCHMAT-SG"},"SCHMAT","SG","P",{"$f":"SUMIFS(tblSchMJune19[Total ($000)],tblSchMJune19[Primary Name],B25,tblSchMJune19[Alloc4FUNC],C25,tblSchMJune19[FUNC],D25)","v":-403.66629999999998},-403.66629999999998,0,0,0,0]
["SCHMAT-SG","SCHMAT","SG","T",{"$f":"SUMIFS(tblSchMJune19[Total ($000)],tblSchMJune19[Primary Name],B26,tblSchMJune19[Alloc4FUNC],C26,tblSchMJune19[FUNC],D26)","v":0},0,0,0,0,0]
["SCHMAT-SGCT","SCHMAT","SGCT","P",{"$f":"SUMIFS(tblSchMJune19[Total ($000)],tblSchMJune19[Primary Name],B27,tblSchMJune19[Alloc4FUNC],C27,tblSchMJune19[FUNC],D27)","v":0},0,0,0,0,0]
["SCHMAT-SNP","SCHMAT","SNP","GP",{"$f":"SUMIFS(tblSchMJune19[Total ($000)],tblSchMJune19[Primary Name],B28,tblSchMJune19[Alloc4FUNC],C28,tblSchMJune19[FUNC],D28)","v":584.92201},276.41830913851004,145.06345765443024,159.44323654099588,3.9970066660638222,0]
["SCHMAT-SNP","SCHMAT","SNP","PTD",{"$f":"SUMIFS(tblSchMJune19[Total ($000)],tblSchMJune19[Primary Name],B29,tblSchMJune19[Alloc4FUNC],C29,tblSchMJune19[FUNC],D29)","v":41261.750999999997},19873.001661894959,10169.256768988575,11219.492569116459,0,0]
["SCHMAT-SNPD","SCHMAT","SNPD","DPW",{"$f":"SUMIFS(tblSchMJune19[Total ($000)],tblSchMJune19[Primary Name],B30,tblSchMJune19[Alloc4FUNC],C30,tblSchMJune19[FUNC],D30)","v":2098.8620000000001},0,0,2098.8620000000001,0,0]
[{"$f":"IF(C31=\"\",\"\",B31&\"-\"&C31)","v":"SCHMAT-SO"},"SCHMAT","SO","COMMON",{"$f":"SUMIFS(tblSchMJune19[Total ($000)],tblSchMJune19[Primary Name],B31,tblSchMJune19[Alloc4FUNC],C31,tblSchMJune19[FUNC],D31)","v":0},0,0,0,0,0]
[{"$f":"IF(C32=\"\",\"\",B32&\"-\"&C32)","v":"SCHMAT-SO"},"SCHMAT","SO","LABOR",{"$f":"SUMIFS(tblSchMJune19[Total ($000)],tblSchMJune19[Primary Name],B32,tblSchMJune19[Alloc4FUNC],C32,tblSchMJune19[FUNC],D32)","v":24189.227059999994},9766.1749834237762,1838.7745010404251,6453.9213709261376,3108.5174941478458,3021.8387104618096]
["SCHMAT-SO","SCHMAT","SO","PTD",{"$f":"SUMIFS(tblSchMJune19[Total ($000)],tblSchMJune19[Primary Name],B33,tblSchMJune19[Alloc4FUNC],C33,tblSchMJune19[FUNC],D33)","v":189.88243},91.453555787166025,46.797897321165536,51.630976891668418,0,0]
[{"$f":"IF(C34=\"\",\"\",B34&\"-\"&C34)","v":"SCHMAT-OTHER"},"SCHMAT","OTHER","COMMON",{"$f":"SUMIFS(tblSchMJune19[Total ($000)],tblSchMJune19[Primary Name],B34,tblSchMJune19[Alloc4FUNC],C34,tblSchMJune19[FUNC],D34)","v":0},0,0,0,0,0]
[{"$f":"IF(C35=\"\",\"\",B35&\"-\"&C35)","v":"SCHMAT-OTHER"},"SCHMAT","OTHER","GP",{"$f":"SUMIFS(tblSchMJune19[Total ($000)],tblSchMJune19[Primary Name],B35,tblSchMJune19[Alloc4FUNC],C35,tblSchMJune19[FUNC],D35)","v":-15034.472610000001},-7104.8847993349436,-3728.6211555236678,-4098.2300745108805,-102.73658063050826,0]
[{"$f":"IF(C36=\"\",\"\",B36&\"-\"&C36)","v":"SCHMAT-OTHER"},"SCHMAT","OTHER","P",{"$f":"SUMIFS(tblSchMJune19[Total ($000)],tblSchMJune19[Primary Name],B36,tblSchMJune19[Alloc4FUNC],C36,tblSchMJune19[FUNC],D36)","v":-21879.450990000001},-21879.450990000001,0,0,0,0]
[{"$f":"IF(C37=\"\",\"\",B37&\"-\"&C37)","v":"SCHMAT-OTHER"},"SCHMAT","OTHER","PTD",{"$f":"SUMIFS(tblSchMJune19[Total ($000)],tblSchMJune19[Primary Name],B37,tblSchMJune19[Alloc4FUNC],C37,tblSchMJune19[FUNC],D37)","v":44976.14097},21661.972712753563,11084.695024264891,12229.473232981542,0,0]
[{"$f":"IF(C38=\"\",\"\",B38&\"-\"&C38)","v":"SCHMAT-OTHER"},"SCHMAT","OTHER","CUST",{"$f":"SUMIFS(tblSchMJune19[Total ($000)],tblSchMJune19[Primary Name],B38,tblSchMJune19[Alloc4FUNC],C38,tblSchMJune19[FUNC],D38)","v":51.026310000000002},0,0,0,51.026310000000002,0]
["SCHMAT-TROJD","SCHMAT","TROJD","P",{"$f":"SUMIFS(tblSchMJune19[Total ($000)],tblSchMJune19[Primary Name],B39,tblSchMJune19[Alloc4FUNC],C39,tblSchMJune19[FUNC],D39)","v":-50.973880000000001},-50.973880000000001,0,0,0,0]
["SCHMAT-SITUS","SCHMAT","SITUS","COMMON",{"$f":"SUMIFS(tblSchMJune19[Total ($000)],tblSchMJune19[Primary Name],B40,tblSchMJune19[Alloc4FUNC],C40,tblSchMJune19[FUNC],D40)","v":0},0,0,0,0,0]
["SCHMAT-SITUS","SCHMAT","SITUS","DPW",{"$f":"SUMIFS(tblSchMJune19[Total ($000)],tblSchMJune19[Primary Name],B41,tblSchMJune19[Alloc4FUNC],C41,tblSchMJune19[FUNC],D41)","v":-1288.51127},0,0,-1288.51127,0,0]
["SCHMAT-SITUS","SCHMAT","SITUS","ESD",{"$f":"SUMIFS(tblSchMJune19[Total ($000)],tblSchMJune19[Primary Name],B42,tblSchMJune19[Alloc4FUNC],C42,tblSchMJune19[FUNC],D42)","v":103.76456},31.129367999999999,10.376456000000001,62.258735999999999,0,0]
["SCHMAT-SITUS","SCHMAT","SITUS","GP",{"$f":"SUMIFS(tblSchMJune19[Total ($000)],tblSchMJune19[Primary Name],B43,tblSchMJune19[Alloc4FUNC],C43,tblSchMJune19[FUNC],D43)","v":0},0,0,0,0,0]
["SCHMAT-SITUS","SCHMAT","SITUS","LABOR",{"$f":"SUMIFS(tblSchMJune19[Total ($000)],tblSchMJune19[Primary Name],B44,tblSchMJune19[Alloc4FUNC],C44,tblSchMJune19[FUNC],D44)","v":-185.29744000000005},-74.812114439694255,-14.085617822137566,-49.439161699030507,-23.812267024162249,-23.148279014975472]
["SCHMAT-SITUS","SCHMAT","SITUS","P",{"$f":"SUMIFS(tblSchMJune19[Total ($000)],tblSchMJune19[Primary Name],B45,tblSchMJune19[Alloc4FUNC],C45,tblSchMJune19[FUNC],D45)","v":13030.962730000001},13030.962730000001,0,0,0,0]
["SCHMAT-SITUS","SCHMAT","SITUS","PTD",{"$f":"SUMIFS(tblSchMJune19[Total ($000)],tblSchMJune19[Primary Name],B46,tblSchMJune19[Alloc4FUNC],C46,tblSchMJune19[FUNC],D46)","v":-6510.35088},-3135.5967869070637,-1604.5230304194004,-1770.2310626735352,0,0]
["SCHMAT-SITUS","SCHMAT","SITUS","T",{"$f":"SUMIFS(tblSchMJune19[Total ($000)],tblSchMJune19[Primary Name],B47,tblSchMJune19[Alloc4FUNC],C47,tblSchMJune19[FUNC],D47)","v":0},0,0,0,0,0]
[null,"Total-SE",null,null,{"$f":"SUMIF($A:$A,\"SCHMAT-SE\",E:E)","v":35251.595989999987},35251.142236657521,5.7848371583798922E-2,0.20304221177023388,9.7794849218572399E-2,9.5067909898789382E-2]
[{"$f":"IF(C49=\"\",\"\",B49&\"-\"&C49)","v":""},"Total-SNP",null,null,{"$f":"SUMIF($A:$A,\"SCHMAT-SNP\",E:E)","v":41846.673009999999},20149.419971033469,10314.320226643005,11378.935805657455,3.9970066660638222,0]
["","Total-SITUS",null,null,{"$f":"SUMIF($A:$A,\"SCHMAT-SITUS\",E:E)","v":5150.5677000000014},9851.6831966532445,-1608.2321922415379,-3045.922758372566,-23.812267024162249,-23.148279014975472]
[null,"Total-SO",null,null,{"$f":"SUMIF($A:$A,\"SCHMAT-SO\",E:E)","v":24379.109489999995},9857.6285392109421,1885.5723983615906,6505.5523478178056,3108.5174941478458,3021.8387104618096]
["","Total-SCHMAT",null,null,{"$f":"SUMIF($B:$B,\"SCHMAT\",E:E)","v":1203200.9117903973},532069.09750914376,261839.89962353828,396138.62911402201,10154.500044336586,2998.785499356733]
[null,"SCHMAT-SE",null,null,{"$f":"SUM(F53:J53)","v":1.0000000000000002},{"$f":"IF(ISERROR(F48/$E48),\" \",(F48/$E48))","v":0.99998712814754276},1.6410142564951978E-6,5.7598019626638176E-6,2.7741963582674212E-6,2.6968398799804077E-6]
["","SCHMAT-SNP",null,null,{"$f":"SUM(F54:J54)","v":0.99999999999999978},0.48150590051014114,0.24647885924355842,0.2719197247278955,9.5515518404740735E-5,0]
["","SCHMAT-SITUS",null,null,{"$f":"SUM(F55:J55)","v":1.0000000000000002},1.912737346730389,-0.31224367602071079,-0.59137612313542931,-4.6232315370133359E-3,-4.4943160372351706E-3]
[null,"SCHMAT-SO",null,null,{"$f":"SUM(F56:J56)","v":1},0.40434735908850228,7.7343776610668602E-2,0.26684946595306536,0.12750742579104132,0.12395197255672238]
["","SCHMAT FACTOR",null,null,{"$f":"SUM(F57:J57)","v":1},0.44221134832536801,0.21761943251348859,0.32923730794432032,8.4395714338567126E-3,2.4923397829664661E-3]
[]
[{"$f":"IF(C59=\"\",\"\",B59&\"-\"&C59)","v":"SCHMAF-DGP"},"SCHMAF","DGP","P",0,{"$f":"VLOOKUP($D59,$D$141:$J$153,3,FALSE)*$E59","v":0},{"$f":"VLOOKUP($D59,$D$141:$J$153,4,FALSE)*$E59","v":0},{"$f":"VLOOKUP($D59,$D$141:$J$153,5,FALSE)*$E59","v":0},{"$f":"VLOOKUP($D59,$D$141:$J$153,6,FALSE)*$E59","v":0},{"$f":"VLOOKUP($D59,$D$141:$J$153,7,FALSE)*$E59","v":0}]
[{"$f":"IF(C60=\"\",\"\",B60&\"-\"&C60)","v":"SCHMAF-TROJP"},"SCHMAF","TROJP","P",0,{"$f":"VLOOKUP($D60,$D$141:$J$153,3,FALSE)*$E60","v":0},{"$f":"VLOOKUP($D60,$D$141:$J$153,4,FALSE)*$E60","v":0},{"$f":"VLOOKUP($D60,$D$141:$J$153,5,FALSE)*$E60","v":0},{"$f":"VLOOKUP($D60,$D$141:$J$153,6,FALSE)*$E60","v":0},{"$f":"VLOOKUP($D60,$D$141:$J$153,7,FALSE)*$E60","v":0}]
[{"$f":"IF(C61=\"\",\"\",B61&\"-\"&C61)","v":""},"Total-SCHMAF",null,null,{"$f":"SUMIF($A:$A,\"SCHMAF\",E:E)","v":0},0,0,0,0,0]
["","SCHMAF FACTOR",null,null,{"$f":"SUM(F62:J62)","v":0},{"$f":"IF(ISERROR(F61/$E61),\" \",(F61/$E61))","v":" "},{"$f":"IF(ISERROR(G61/$E61),\" \",(G61/$E61))","v":" "},{"$f":"IF(ISERROR(H61/$E61),\" \",(H61/$E61))","v":" "},{"$f":"IF(ISERROR(I61/$E61),\" \",(I61/$E61))","v":" "},{"$f":"IF(ISERROR(J61/$E61),\" \",(J61/$E61))","v":" "}]
[]
["","Total-SCHMA",null,null,{"$f":"SUM(E61,E52,E14)","v":1205759.5455403973},534040.48669442686,261914.76660215994,396401.40499710588,10281.065489228129,3121.8217574765963]
["","SCHMA FACTOR",null,null,{"$f":"SUM(F65:J65)","v":1},{"$f":"IF(ISERROR(F64/$E64),\" \",(F64/$E64))","v":0.44290794849571818},{"$f":"IF(ISERROR(G64/$E64),\" \",(G64/$E64))","v":0.21721973304783168},{"$f":"IF(ISERROR(H64/$E64),\" \",(H64/$E64))","v":0.32875659700412879},{"$f":"IF(ISERROR(I64/$E64),\" \",(I64/$E64))","v":8.5266299796286169E-3},{"$f":"IF(ISERROR(J64/$E64),\" \",(J64/$E64))","v":2.5890914726928063E-3}]
[]
["","DEDUCTIONS"]
["SCHMDP-SCHMDEXP","SCHMDP","SCHMDEXP","LABOR",{"$f":"SUMIFS(tblSchMJune19[Total ($000)],tblSchMJune19[Primary Name],B68,tblSchMJune19[Alloc4FUNC],C68,tblSchMJune19[FUNC],D68)","v":-19.356909999999999},{"$f":"VLOOKUP($D68,$D$141:$J$153,3,FALSE)*$E68","v":-7.8151720073351347},{"$f":"VLOOKUP($D68,$D$141:$J$153,4,FALSE)*$E68","v":-1.4714398454588082},{"$f":"VLOOKUP($D68,$D$141:$J$153,5,FALSE)*$E68","v":-5.1646121148979738},{"$f":"VLOOKUP($D68,$D$141:$J$153,6,FALSE)*$E68","v":-2.4875244346747385},{"$f":"VLOOKUP($D68,$D$141:$J$153,7,FALSE)*$E68","v":-2.4181615976333442}]
["SCHMDP-SE","SCHMDP","SE","P",{"$f":"SUMIFS(tblSchMJune19[Total ($000)],tblSchMJune19[Primary Name],B69,tblSchMJune19[Alloc4FUNC],C69,tblSchMJune19[FUNC],D69)","v":0},0,0,0,0,0]
["SCHMDP-SG","SCHMDP","SG","P",{"$f":"SUMIFS(tblSchMJune19[Total ($000)],tblSchMJune19[Primary Name],B70,tblSchMJune19[Alloc4FUNC],C70,tblSchMJune19[FUNC],D70)","v":0},0,0,0,0,0]
["SCHMDP-SNP","SCHMDP","SNP","PTD",{"$f":"SUMIFS(tblSchMJune19[Total ($000)],tblSchMJune19[Primary Name],B71,tblSchMJune19[Alloc4FUNC],C71,tblSchMJune19[FUNC],D71)","v":106.6104},51.347037026501532,26.274903647316847,28.988459326181609,0,0]
["SCHMDP-SO","SCHMDP","SO","LABOR",{"$f":"SUMIFS(tblSchMJune19[Total ($000)],tblSchMJune19[Primary Name],B72,tblSchMJune19[Alloc4FUNC],C72,tblSchMJune19[FUNC],D72)","v":0},0,0,0,0,0]
["SCHMDP-SITUS","SCHMDP","SITUS","PTD",{"$f":"SUMIFS(tblSchMJune19[Total ($000)],tblSchMJune19[Primary Name],B73,tblSchMJune19[Alloc4FUNC],C73,tblSchMJune19[FUNC],D73)","v":0},0,0,0,0,0]
[null,"Total-SO",null,null,{"$f":"SUMIF($A:$A,\"SCHMDP-SO\",E:E)","v":0},0,0,0,0,0]
["","Total-SCHMDP",null,null,{"$f":"SUMIF($B:$B,\"SCHMDP\",E:E)","v":87.253489999999999},43.531865019166396,24.80346380185804,23.823847211283635,-2.4875244346747385,-2.4181615976333442]
["","SCHMDP-SO",null,null,{"$f":"SUM(F76:J76)","v":0},{"$f":"IF(ISERROR(F74/$E74),\" \",(F74/$E74))","v":" "}," "," "," "," "]
["","SCHMDP FACTOR",null,null,{"$f":"SUM(F77:J77)","v":1},0.49891259385918429,0.28426901665317961,0.27304176842993483,-2.8509168340140188E-2,-2.7714210602158656E-2]
[]
["SCHMDT-BADDEBT","SCHMDT","BADDEBT","CUST",{"$f":"SUMIFS(tblSchMJune19[Total ($000)],tblSchMJune19[Primary Name],B79,tblSchMJune19[Alloc4FUNC],C79,tblSchMJune19[FUNC],D79)","v":0},{"$f":"VLOOKUP($D79,$D$141:$J$153,3,FALSE)*$E79","v":0},{"$f":"VLOOKUP($D79,$D$141:$J$153,4,FALSE)*$E79","v":0},{"$f":"VLOOKUP($D79,$D$141:$J$153,5,FALSE)*$E79","v":0},{"$f":"VLOOKUP($D79,$D$141:$J$153,6,FALSE)*$E79","v":0},{"$f":"VLOOKUP($D79,$D$141:$J$153,7,FALSE)*$E79","v":0}]
["SCHMDT-CN","SCHMDT","CN","CUST",{"$f":"SUMIFS(tblSchMJune19[Total ($000)],tblSchMJune19[Primary Name],B80,tblSchMJune19[Alloc4FUNC],C80,tblSchMJune19[FUNC],D80)","v":0},0,0,0,0,0]
["SCHMDT-GPS","SCHMDT","GPS","GP",{"$f":"SUMIFS(tblSchMJune19[Total ($000)],tblSchMJune19[Primary Name],B81,tblSchMJune19[Alloc4FUNC],C81,tblSchMJune19[FUNC],D81)","v":0},0,0,0,0,0]
["SCHMDT-GPS","SCHMDT","GPS","P",{"$f":"SUMIFS(tblSchMJune19[Total ($000)],tblSchMJune19[Primary Name],B82,tblSchMJune19[Alloc4FUNC],C82,tblSchMJune19[FUNC],D82)","v":0},0,0,0,0,0]
["SCHMDT-GPS","SCHMDT","GPS","PTD",{"$f":"SUMIFS(tblSchMJune19[Total ($000)],tblSchMJune19[Primary Name],B83,tblSchMJune19[Alloc4FUNC],C83,tblSchMJune19[FUNC],D83)","v":68082.72050000001},32790.85314733324,16779.478561047552,18512.388791619214,0,0]
["SCHMDT-SG","SCHMDT","SG","P",{"$f":"SUMIFS(tblSchMJune19[Total ($000)],tblSchMJune19[Primary Name],B84,tblSchMJune19[Alloc4FUNC],C84,tblSchMJune19[FUNC],D84)","v":146912.34539},146912.34539,0,0,0,0]
[{"$f":"IF(C85=\"\",\"\",B85&\"-\"&C85)","v":"SCHMDT-SG"},"SCHMDT","SG","T",{"$f":"SUMIFS(tblSchMJune19[Total ($000)],tblSchMJune19[Primary Name],B85,tblSchMJune19[Alloc4FUNC],C85,tblSchMJune19[FUNC],D85)","v":-1519.87724},0,-1519.87724,0,0,0]
["SCHMDT-SE","SCHMDT","SE","P",{"$f":"SUMIFS(tblSchMJune19[Total ($000)],tblSchMJune19[Primary Name],B86,tblSchMJune19[Alloc4FUNC],C86,tblSchMJune19[FUNC],D86)","v":-1171.5892000000003},-1171.5892000000003,0,0,0,0]
[{"$f":"IF(C87=\"\",\"\",B87&\"-\"&C87)","v":"SCHMDT-SNPD"},"SCHMDT","SNPD","DPW",{"$f":"SUMIFS(tblSchMJune19[Total ($000)],tblSchMJune19[Primary Name],B87,tblSchMJune19[Alloc4FUNC],C87,tblSchMJune19[FUNC],D87)","v":-22.004100000000001},0,0,-22.004100000000001,0,0]
[{"$f":"IF(C88=\"\",\"\",B88&\"-\"&C88)","v":"SCHMDT-SNPD"},"SCHMDT","SNPD","P",{"$f":"SUMIFS(tblSchMJune19[Total ($000)],tblSchMJune19[Primary Name],B88,tblSchMJune19[Alloc4FUNC],C88,tblSchMJune19[FUNC],D88)","v":1548.0737300000001},1548.0737300000001,0,0,0,0]
["SCHMDT-SNP","SCHMDT","SNP","PTD",{"$f":"SUMIFS(tblSchMJune19[Total ($000)],tblSchMJune19[Primary Name],B89,tblSchMJune19[Alloc4FUNC],C89,tblSchMJune19[FUNC],D89)","v":74705.322020000007},35980.513494346334,18411.666573029252,20313.141952624414,0,0]
["SCHMDT-SO","SCHMDT","SO","ESD",{"$f":"SUMIFS(tblSchMJune19[Total ($000)],tblSchMJune19[Primary Name],B90,tblSchMJune19[Alloc4FUNC],C90,tblSchMJune19[FUNC],D90)","v":1875.55908},562.66772400000002,187.55590800000002,1125.335448,0,0]
["SCHMDT-SO","SCHMDT","SO","GP",{"$f":"SUMIFS(tblSchMJune19[Total ($000)],tblSchMJune19[Primary Name],B91,tblSchMJune19[Alloc4FUNC],C91,tblSchMJune19[FUNC],D91)","v":5977.1570000000002},2824.6426073031671,1482.3635399929321,1629.3065418989265,40.84431080497388,0]
["SCHMDT-SO","SCHMDT","SO","LABOR",{"$f":"SUMIFS(tblSchMJune19[Total ($000)],tblSchMJune19[Primary Name],B92,tblSchMJune19[Alloc4FUNC],C92,tblSchMJune19[FUNC],D92)","v":16000.41152},6460.0170283865873,1216.2913943530314,4269.0656297696842,2056.1863758653203,1998.8510916253765]
["SCHMDT-SO","SCHMDT","SO","PTD",{"$f":"SUMIFS(tblSchMJune19[Total ($000)],tblSchMJune19[Primary Name],B93,tblSchMJune19[Alloc4FUNC],C93,tblSchMJune19[FUNC],D93)","v":-788.2103699999999},-379.6277572644176,-194.26014277749601,-214.32246995808623,0,0]
[{"$f":"IF(C94=\"\",\"\",B94&\"-\"&C94)","v":"SCHMDT-OTHER"},"SCHMDT","OTHER","CUST",{"$f":"SUMIFS(tblSchMJune19[Total ($000)],tblSchMJune19[Primary Name],B94,tblSchMJune19[Alloc4FUNC],C94,tblSchMJune19[FUNC],D94)","v":6.59795},0,0,0,6.59795,0]
["SCHMDT-OTHER","SCHMDT","OTHER","DDS2",{"$f":"SUMIFS(tblSchMJune19[Total ($000)],tblSchMJune19[Primary Name],B95,tblSchMJune19[Alloc4FUNC],C95,tblSchMJune19[FUNC],D95)","v":-124.29100000000001},-124.15778228486604,-7.1862087785810846,-39.412614285390788,47.191656897385997,-0.72605154854808451]
[{"$f":"IF(C96=\"\",\"\",B96&\"-\"&C96)","v":"SCHMDT-OTHER"},"SCHMDT","OTHER","COMMON",{"$f":"SUMIFS(tblSchMJune19[Total ($000)],tblSchMJune19[Primary Name],B96,tblSchMJune19[Alloc4FUNC],C96,tblSchMJune19[FUNC],D96)","v":444.44798000000003},0,0,0,0,444.44798000000003]
["SCHMDT-OTHER","SCHMDT","OTHER","DPW",{"$f":"SUMIFS(tblSchMJune19[Total ($000)],tblSchMJune19[Primary Name],B97,tblSchMJune19[Alloc4FUNC],C97,tblSchMJune19[FUNC],D97)","v":0},0,0,0,0,0]
["SCHMDT-OTHER","SCHMDT","OTHER","LABOR",{"$f":"SUMIFS(tblSchMJune19[Total ($000)],tblSchMJune19[Primary Name],B98,tblSchMJune19[Alloc4FUNC],C98,tblSchMJune19[FUNC],D98)","v":0},0,0,0,0,0]
["SCHMDT-OTHER","SCHMDT","OTHER","P",{"$f":"SUMIFS(tblSchMJune19[Total ($000)],tblSchMJune19[Primary Name],B99,tblSchMJune19[Alloc4FUNC],C99,tblSchMJune19[FUNC],D99)","v":48353.10052},48353.10052,0,0,0,0]
["SCHMDT-OTHER","SCHMDT","OTHER","PT",{"$f":"SUMIFS(tblSchMJune19[Total ($000)],tblSchMJune19[Primary Name],B100,tblSchMJune19[Alloc4FUNC],C100,tblSchMJune19[FUNC],D100)","v":0},0,0,0,0,0]
["SCHMDT-OTHER","SCHMDT","OTHER","GP",{"$f":"SUMIFS(tblSchMJune19[Total ($000)],tblSchMJune19[Primary Name],B101,tblSchMJune19[Alloc4FUNC],C101,tblSchMJune19[FUNC],D101)","v":24141.412980000001},11408.578309689661,5987.1859490162506,6580.6807649519096,164.96795634217918,0]
["SCHMDT-OTHER","SCHMDT","OTHER","PTD",{"$f":"SUMIFS(tblSchMJune19[Total ($000)],tblSchMJune19[Primary Name],B102,tblSchMJune19[Alloc4FUNC],C102,tblSchMJune19[FUNC],D102)","v":429.34305999999998},206.78558563603053,105.81470037767588,116.74277398629356,0,0]
["SCHMDT-TAXDEPR","SCHMDT","TAXDEPR","TAXDEPR",{"$f":"SUMIFS(tblSchMJune19[Total ($000)],tblSchMJune19[Primary Name],B103,tblSchMJune19[Alloc4FUNC],C103,tblSchMJune19[FUNC],D103)","v":590717.64099999995},263288.0955936985,154700.82057011948,166784.17968729042,5944.545148891556,0]
["SCHMDT-SITUS","SCHMDT","SITUS","COMMON",{"$f":"SUMIFS(tblSchMJune19[Total ($000)],tblSchMJune19[Primary Name],B104,tblSchMJune19[Alloc4FUNC],C104,tblSchMJune19[FUNC],D104)","v":0},0,0,0,0,0]
[{"$f":"IF(C105=\"\",\"\",B105&\"-\"&C105)","v":"SCHMDT-SITUS"},"SCHMDT","SITUS","DDS2",{"$f":"SUMIFS(tblSchMJune19[Total ($000)],tblSchMJune19[Primary Name],B105,tblSchMJune19[Alloc4FUNC],C105,tblSchMJune19[FUNC],D105)","v":-496.84906999999998},-496.31653668808008,-28.726626613864617,-157.5505929951897,188.64705281335992,-2.9023665162254355]
["SCHMDT-SITUS","SCHMDT","SITUS","GP",{"$f":"SUMIFS(tblSchMJune19[Total ($000)],tblSchMJune19[Primary Name],B106,tblSchMJune19[Alloc4FUNC],C106,tblSchMJune19[FUNC],D106)","v":-187.21990000000002},-88.475057033810273,-46.431431150482211,-51.034063158063752,-1.2793486576437811,0]
["SCHMDT-SITUS","SCHMDT","SITUS","LABOR",{"$f":"SUMIFS(tblSchMJune19[Total ($000)],tblSchMJune19[Primary Name],B107,tblSchMJune19[Alloc4FUNC],C107,tblSchMJune19[FUNC],D107)","v":548.76951999999994},221.56057920312375,41.715404870989445,146.41705268448041,70.521461845135804,68.555021396270547]
["SCHMDT-SITUS","SCHMDT","SITUS","P",{"$f":"SUMIFS(tblSchMJune19[Total ($000)],tblSchMJune19[Primary Name],B108,tblSchMJune19[Alloc4FUNC],C108,tblSchMJune19[FUNC],D108)","v":-925.62107000000015},-925.62107000000015,0,0,0,0]
["SCHMDT-SITUS","SCHMDT","SITUS","PTD",{"$f":"SUMIFS(tblSchMJune19[Total ($000)],tblSchMJune19[Primary Name],B109,tblSchMJune19[Alloc4FUNC],C109,tblSchMJune19[FUNC],D109)","v":0.29848000000000002},0.14375767853483504,7.3562553378011278E-2,8.1159768087153666E-2,0,0]
["","Total-GPS",null,null,{"$f":"SUMIF($A:$A,\"SCHMDT-GPS\",E:E)","v":68082.72050000001},32790.85314733324,16779.478561047552,18512.388791619214,0,0]
[{"$f":"IF(C111=\"\",\"\",B111&\"-\"&C111)","v":""},"Total-CN",null,null,{"$f":"SUMIF($A:$A,\"SCHMDT-CN\",E:E)","v":0},0,0,0,0,0]
["","Total-SG",null,null,{"$f":"SUMIF($A:$A,\"SCHMDT-SG\",E:E)","v":145392.46815},146912.34539,-1519.87724,0,0,0]
[{"$f":"IF(C113=\"\",\"\",B113&\"-\"&C113)","v":""},"Total-SE",null,null,{"$f":"SUMIF($A:$A,\"SCHMDT-SE\",E:E)","v":-1171.5892000000003},-1171.5892000000003,0,0,0,0]
["","Total-SNP",null,null,{"$f":"SUMIF($A:$A,\"SCHMDT-SNP\",E:E)","v":74705.322020000007},35980.513494346334,18411.666573029252,20313.141952624414,0,0]
["","Total SO",null,null,{"$f":"SUMIF($A:$A,\"SCHMDT-SO\",E:E)","v":23064.917229999999},9467.6996024253367,2691.9506995684674,6809.3851497105243,2097.030686670294,1998.8510916253765]
[{"$f":"IF(C116=\"\",\"\",B116&\"-\"&C116)","v":""},"Total OTHER",null,null,{"$f":"SUMIF($A:$A,\"SCHMDT-OTHER\",E:E)","v":73250.611489999996},59844.306633040833,6085.8144406153451,6658.0109246528118,218.75756323956517,443.72192845145196]
[{"$f":"IF(C117=\"\",\"\",B117&\"-\"&C117)","v":""},"Total TAXDEPR",null,null,{"$f":"SUMIF($A:$A,\"SCHMDT-TAXDEPR\",E:E)","v":590717.64099999995},263288.0955936985,154700.82057011948,166784.17968729042,5944.545148891556,0]
["","Total-SITUS",null,null,{"$f":"SUMIF($A:$A,\"SCHMDT-SITUS\",E:E)+SUMIF($A:$A,\"SCHMDT-CN\",E:E)","v":-1060.6220400000002},-1288.7083268402318,-33.36909033997938,-62.086443700685898,257.8891660008519,65.652654880045105]
["","Total SCHMDT",null,null,{"$f":"SUMIF($B:$B,\"SCHMDT\",E:E)","v":974507.53877999994},547371.59006400395,197116.48451404012,218993.01596219666,8518.2225648022668,2508.2256749568737]
["","SCHMDT-GPS",null,null,{"$f":"SUM(F120:J120)","v":1},{"$f":"IF(ISERROR(F110/$E110),\" \",(F110/$E110))","v":0.48163253328475963},0.24645722788130286,0.2719102388339375,0,0]
[{"$f":"IF(C121=\"\",\"\",B121&\"-\"&C121)","v":""},"SCHMDT-CN",null,null,{"$f":"SUM(F121:J121)","v":0}," "," "," "," "," "]
["","SCHMDT-SG",null,null,{"$f":"SUM(F122:J122)","v":1},1.0104536174352028,-1.0453617435202747E-2,0,0,0]
[{"$f":"IF(C123=\"\",\"\",B123&\"-\"&C123)","v":""},"SCHMDT-SE",null,null,{"$f":"SUM(F123:J123)","v":1},1,0,0,0,0]
["","SCHMDT-SNP",null,null,0.99999999999999989,0.48163253328475958,0.24645722788130284,0.2719102388339375,0,0]
["","SCHMDT-SO",null,null,1,0.4104805366529094,0.11671191674891901,0.29522694930176102,9.0918630479312326E-2,8.6661966817098202E-2]
[{"$f":"IF(C126=\"\",\"\",B126&\"-\"&C126)","v":""},"SCHMDT-OTHER",null,null,{"$f":"SUM(F126:J126)","v":1.0000000000000002},0.81698030112978159,8.30820974299466E-2,9.0893588315801951E-2,2.9864264446369769E-3,6.0575866798330807E-3]
[{"$f":"IF(C127=\"\",\"\",B127&\"-\"&C127)","v":""},"SCHMDT-TAXDEPR",null,null,{"$f":"SUM(F127:J127)","v":1},0.44570887564486755,0.26188623774335446,0.28234162671178875,1.0063259899989269E-2,0]
[{"$f":"IF(C128=\"\",\"\",B128&\"-\"&C128)","v":""},"SCHMDT-SITUS",null,null,0.99999999999999989,{"$f":"IF(ISERROR(F118/$E118),\" \",(F118/$E118))","v":1.2150495447371918},3.1461811165058737E-2,5.8537764971097417E-2,-0.24314897887738771,-6.1900141995960306E-2]
["","SCHMDT FACTOR",null,null,1,0.56169046239423281,0.2022729190590081,0.22472172584355496,8.741053533014586E-3,2.5738391701894451E-3]
[]
["SCHMDF-DGP","SCHMDF","DGP","P",0,{"$f":"VLOOKUP($D131,$D$141:$J$153,3,FALSE)*$E131","v":0},{"$f":"VLOOKUP($D131,$D$141:$J$153,4,FALSE)*$E131","v":0},{"$f":"VLOOKUP($D131,$D$141:$J$153,5,FALSE)*$E131","v":0},{"$f":"VLOOKUP($D131,$D$141:$J$153,6,FALSE)*$E131","v":0},{"$f":"VLOOKUP($D131,$D$141:$J$153,7,FALSE)*$E131","v":0}]
["","Total-SCHMDF",null,null,{"$f":"SUMIF($A:$A,\"SCHMDF\",E:E)","v":0},0,0,0,0,0]
["","SCHMDF FACTOR",null,null,{"$f":"SUM(F133:J133)","v":0},{"$f":"IF(ISERROR(F132/$E132),\" \",(F132/$E132))","v":" "},{"$f":"IF(ISERROR(G132/$E132),\" \",(G132/$E132))","v":" "},{"$f":"IF(ISERROR(H132/$E132),\" \",(H132/$E132))","v":" "},{"$f":"IF(ISERROR(I132/$E132),\" \",(I132/$E132))","v":" "},{"$f":"IF(ISERROR(J132/$E132),\" \",(J132/$E132))","v":" "}]
[]
["","Total-SCHMD",null,null,{"$f":"SUM(E132,E119,E75)","v":974594.79226999998},547415.12192902307,197141.28797784197,219016.83980940795,8515.7350403675919,2505.8075133592401]
["","SCHMD FACTOR",null,null,{"$f":"SUM(F136:J136)","v":0.99999999999999978},{"$f":"IF(ISERROR(F135/$E135),\" \",(F135/$E135))","v":0.56168484201931601},{"$f":"IF(ISERROR(G135/$E135),\" \",(G135/$E135))","v":0.2022802600028939},{"$f":"IF(ISERROR(H135/$E135),\" \",(H135/$E135))","v":0.22472605183871322},{"$f":"IF(ISERROR(I135/$E135),\" \",(I135/$E135))","v":8.737718596395298E-3},{"$f":"IF(ISERROR(J135/$E135),\" \",(J135/$E135))","v":2.5711275426813854E-3}]
[]
["","Net SCHM"]
[""]
[null,null,null,null,"Total","Generation","Transmission","Poles & Wires","Customers","Common"]
[null,null,null,"COMMON",{"$f":"SUM(F141:J141)","v":1},0,0,0,0,1]
[null,null,null,"DPW",{"$f":"SUM(F142:J142)","v":1},0,0,1,0,0]
[null,null,null,"DDS2",0.99999999999999978,{"$f":"'REGASSETS&DDS'!F35","v":0.99892817890970409},{"$f":"'REGASSETS&DDS'!G35","v":5.7817611722337771E-2},{"$f":"'REGASSETS&DDS'!H35","v":0.31709950266222642},{"$f":"'REGASSETS&DDS'!I35","v":-0.37968683892949606},{"$f":"'REGASSETS&DDS'!J35","v":5.8415456352276874E-3}]
[null,null,null,"CUST",1,0,0,0,1,0]
[null,null,null,"ESD",1,0.3,0.1,0.6,0,0]
[null,null,null,"GP",0.99999999999999989,{"$f":"'GROSS PLANT'!E42","v":0.47257293179736909},{"$f":"'GROSS PLANT'!F42","v":0.2480047855515477},{"$f":"'GROSS PLANT'!G42","v":0.27258888162029649},{"$f":"'GROSS PLANT'!H42","v":6.8334010307866894E-3},{"$f":"'GROSS PLANT'!I42","v":0}]
[null,null,null,"LABOR",1,{"$f":"'FORM 1'!C25","v":0.40374068006387048},{"$f":"'FORM 1'!D25","v":7.601625700893419E-2},{"$f":"'FORM 1'!E25","v":0.26680973951410497},{"$f":"'FORM 1'!F25","v":0.12850834325699395},{"$f":"'FORM 1'!G25","v":0.12492498015609642}]
[null,null,null,"P",1,{"$f":"'FORM 1'!C13","v":1},{"$f":"'FORM 1'!D13","v":0},{"$f":"'FORM 1'!E13","v":0},{"$f":"'FORM 1'!F13","v":0},{"$f":"'FORM 1'!G13","v":0}]
[null,null,null,"PT",{"$f":"SUM(F149:J149)","v":1},{"$f":"+'FORM 1'!C17","v":0.66150158809184112},{"$f":"+'FORM 1'!D17","v":0.33849841190815888},0,0,0]
[null,null,null,"PTD",0.99999999999999989,{"$f":"'FORM 1'!C16","v":0.48163253328475958},{"$f":"'FORM 1'!D16","v":0.24645722788130284},{"$f":"'FORM 1'!E16","v":0.2719102388339375},{"$f":"'FORM 1'!F16","v":0},{"$f":"'FORM 1'!G16","v":0}]
[null,null,null,"T",1,{"$f":"'FORM 1'!C14","v":0},{"$f":"'FORM 1'!D14","v":1},{"$f":"'FORM 1'!E14","v":0},{"$f":"'FORM 1'!F14","v":0},{"$f":"'FORM 1'!G14","v":0}]
[null,null,null,"TAXDEPR",1.0000000000000002,{"$f":"'TAX DEPR'!C24","v":0.44570887564486761},{"$f":"'TAX DEPR'!D24","v":0.26188623774335446},{"$f":"'TAX DEPR'!E24","v":0.28234162671178875},{"$f":"'TAX DEPR'!F24","v":1.0063259899989269E-2},{"$f":"'TAX DEPR'!G24","v":0}]
[null,null,null,"TD",1,{"$f":"'FORM 1'!C18","v":0},{"$f":"'FORM 1'!D18","v":0.47544887306110878},{"$f":"'FORM 1'!E18","v":0.52455112693889117},{"$f":"'FORM 1'!F18","v":0},{"$f":"'FORM 1'!G18","v":0}]

{"sheet":"REGASSETS&DDS","index":9,"n_rows":84,"n_cols":10,"rows_kept":84,"cut":false,"hidden":false,"merged":[]}
[null,{"$f":"+'TOTAL FUNCFAC'!A1","v":"PacifiCorp"}]
[null,{"$f":"+'TOTAL FUNCFAC'!A2","v":"12 Months Ended December 2019"}]
[null,"Reg Assets / Deferred Debits"]
[]
[null,"Pri-Acct","Factor","Function","Total",{"$f":"'TOTAL FUNCFAC'!C6","v":"Generation"},{"$f":"'TOTAL FUNCFAC'!D6","v":"Transmission"},{"$f":"'TOTAL FUNCFAC'!E6","v":"Distribution"},{"$f":"'TOTAL FUNCFAC'!F6","v":"Customer"},{"$f":"'TOTAL FUNCFAC'!G6","v":"Common"}]
[{"$f":"\"RA\"&\"-\"&C6","v":"RA-SE"},"182M","SE","P",{"$f":"SUMIFS(tblREGASSJune19[Total ($000)],tblREGASSJune19[Alloc4FUNC],C6,tblREGASSJune19[FUNC],D6)","v":188480.99890000001},{"$f":"VLOOKUP($D6,$D$72:$J$84,3,FALSE)*$E6","v":188480.99890000001},{"$f":"VLOOKUP($D6,$D$72:$J$84,4,FALSE)*$E6","v":0},{"$f":"VLOOKUP($D6,$D$72:$J$84,5,FALSE)*$E6","v":0},{"$f":"VLOOKUP($D6,$D$72:$J$84,6,FALSE)*$E6","v":0},{"$f":"VLOOKUP($D6,$D$72:$J$84,7,FALSE)*$E6","v":0}]
["RA-SG","182M","SG","P",{"$f":"SUMIFS(tblREGASSJune19[Total ($000)],tblREGASSJune19[Alloc4FUNC],C7,tblREGASSJune19[FUNC],D7)","v":3448.66939},3448.66939,0,0,0,0]
["RA-SGCT","182M","SGCT","P",{"$f":"SUMIFS(tblREGASSJune19[Total ($000)],tblREGASSJune19[Alloc4FUNC],C8,tblREGASSJune19[FUNC],D8)","v":0},0,0,0,0,0]
["RA-SG-P","182M","SG-P","P",{"$f":"SUMIFS(tblREGASSJune19[Total ($000)],tblREGASSJune19[Alloc4FUNC],C9,tblREGASSJune19[FUNC],D9)","v":0},0,0,0,0,0]
["RA-SO","182M","SO","COMMON",{"$f":"SUMIFS(tblREGASSJune19[Total ($000)],tblREGASSJune19[Alloc4FUNC],C10,tblREGASSJune19[FUNC],D10)","v":0},0,0,0,0,{"$f":"VLOOKUP($D10,$D$72:$J$84,7,FALSE)*$E10","v":0}]
["RA-SO","182M","SO","LABOR",{"$f":"SUMIFS(tblREGASSJune19[Total ($000)],tblREGASSJune19[Alloc4FUNC],C11,tblREGASSJune19[FUNC],D11)","v":429168.0478199998},173272.5994885304,32623.748623107665,114506.2150466311,55151.674804186528,53613.809857544111]
["RA-SO","182M","SO","ESD",{"$f":"SUMIFS(tblREGASSJune19[Total ($000)],tblREGASSJune19[Alloc4FUNC],C12,tblREGASSJune19[FUNC],D12)","v":25043.915013846163},7513.1745041538488,2504.3915013846163,15026.349008307698,0,0]
["RA-SO","182M","SO","P",{"$f":"SUMIFS(tblREGASSJune19[Total ($000)],tblREGASSJune19[Alloc4FUNC],C13,tblREGASSJune19[FUNC],D13)","v":3647.4046899999967},3647.4046899999967,0,0,0,0]
["RA-SO","182M","SO","TD",{"$f":"SUMIFS(tblREGASSJune19[Total ($000)],tblREGASSJune19[Alloc4FUNC],C14,tblREGASSJune19[FUNC],D14)","v":0},0,0,0,0,0]
[{"$f":"\"RA\"&\"-\"&C15","v":"RA-OTHER"},"182M","OTHER","CUST",{"$f":"SUMIFS(tblREGASSJune19[Total ($000)],tblREGASSJune19[Alloc4FUNC],C15,tblREGASSJune19[FUNC],D15)","v":109206.08778461648},0,0,0,109206.08778461648,0]
[{"$f":"\"RA\"&\"-\"&C16","v":"RA-OTHER"},"182M","OTHER","COMMON",{"$f":"SUMIFS(tblREGASSJune19[Total ($000)],tblREGASSJune19[Alloc4FUNC],C16,tblREGASSJune19[FUNC],D16)","v":151.60127153846199},0,0,0,0,151.60127153846199]
["RA-OTHER","182M","OTHER","LABOR",{"$f":"SUMIFS(tblREGASSJune19[Total ($000)],tblREGASSJune19[Alloc4FUNC],C17,tblREGASSJune19[FUNC],D17)","v":6416.6109500000002},2590.646868658278,487.7667471015414,1712.0142961328536,824.58804250918604,801.59499559814105]
["RA-OTHER","182M","OTHER","P",{"$f":"SUMIFS(tblREGASSJune19[Total ($000)],tblREGASSJune19[Alloc4FUNC],C18,tblREGASSJune19[FUNC],D18)","v":-14296.316262308199},-14296.316262308199,0,0,0,0]
["RA-OTHER","182M","OTHER","DPW",{"$f":"SUMIFS(tblREGASSJune19[Total ($000)],tblREGASSJune19[Alloc4FUNC],C19,tblREGASSJune19[FUNC],D19)","v":0},0,0,0,0,0]
["RA-OTHER","182M","OTHER","PTD",{"$f":"SUMIFS(tblREGASSJune19[Total ($000)],tblREGASSJune19[Alloc4FUNC],C20,tblREGASSJune19[FUNC],D20)","v":2333.8444615384601},1124.0554203033741,575.19283629690074,634.596204938185,0,0]
["RA-OTHER","182M","OTHER","ESD",{"$f":"SUMIFS(tblREGASSJune19[Total ($000)],tblREGASSJune19[Alloc4FUNC],C21,tblREGASSJune19[FUNC],D21)","v":0},0,0,0,0,0]
["RA-TROJD","182M","TROJD","P",{"$f":"SUMIFS(tblREGASSJune19[Total ($000)],tblREGASSJune19[Alloc4FUNC],C22,tblREGASSJune19[FUNC],D22)","v":0},0,0,0,0,0]
["RA-TROJP","182M","TROJP","P",{"$f":"SUMIFS(tblREGASSJune19[Total ($000)],tblREGASSJune19[Alloc4FUNC],C23,tblREGASSJune19[FUNC],D23)","v":0},0,0,0,0,0]
["RA-SITUS","182M","SITUS","COMMON",{"$f":"SUMIFS(tblREGASSJune19[Total ($000)],tblREGASSJune19[Alloc4FUNC],C24,tblREGASSJune19[FUNC],D24)","v":60.712623846153797},0,0,0,0,60.712623846153797]
["RA-SITUS","182M","SITUS","LABOR",{"$f":"SUMIFS(tblREGASSJune19[Total ($000)],tblREGASSJune19[Alloc4FUNC],C25,tblREGASSJune19[FUNC],D25)","v":-691.27112923076925},-279.09427582415049,-52.547843822462312,-184.43786992368274,-88.834107558837516,-86.357032101636207]
["RA-SITUS","182M","SITUS","P",{"$f":"SUMIFS(tblREGASSJune19[Total ($000)],tblREGASSJune19[Alloc4FUNC],C26,tblREGASSJune19[FUNC],D26)","v":-3502.3892530769185},-3502.3892530769185,0,0,0,0]
["RA-SITUS","182M","SITUS","PTD",{"$f":"SUMIFS(tblREGASSJune19[Total ($000)],tblREGASSJune19[Alloc4FUNC],C27,tblREGASSJune19[FUNC],D27)","v":0},0,0,0,0,0]
[{"$f":"\"RA\"&\"-\"&C28","v":"RA-SITUS"},"182M","SITUS","ESD",{"$f":"SUMIFS(tblREGASSJune19[Total ($000)],tblREGASSJune19[Alloc4FUNC],C28,tblREGASSJune19[FUNC],D28)","v":-2012.7169846153865},-603.81509538461592,-201.27169846153868,-1207.6301907692318,0,0]
["RA-SITUS","182M","SITUS","CUST",{"$f":"SUMIFS(tblREGASSJune19[Total ($000)],tblREGASSJune19[Alloc4FUNC],C29,tblREGASSJune19[FUNC],D29)","v":1755.6608200000003},0,0,0,1755.6608200000003,0]
[null,"Total-SO",null,null,{"$f":"SUMIF($A:$A,\"RA-SO\",E:E)","v":457859.36752384598},184433.17868268423,35128.140124492282,129532.56405493879,55151.674804186528,{"$f":"SUMIF($A:$A,\"RA-SO\",J:J)","v":53613.809857544111}]
[null,"Total-OTHER",null,null,{"$f":"SUMIF($A:$A,\"RA-OTHER\",E:E)","v":103811.8282053852},-10581.613973346548,1062.9595833984422,2346.6105010710385,110030.67582712567,953.19626713660307]
[null,"Total SITUS",null,null,{"$f":"SUMIF($A:$A,\"RA-SITUS\",E:E)","v":-4390.0039230769207},-4385.298624285685,-253.81954228400099,-1392.0680606929145,1666.8267124411627,-25.644408255482411]
[null,"Total RA",null,null,{"$f":"SUMIF($B:$B,\"182M\",E:E)","v":749210.86009615427},361395.93437505193,35937.280165606724,130487.10649531694,166849.17734375337,54541.361716425235]
[null,"DDSO2 FACTOR",null,null,{"$f":"SUM(F34:J34)","v":0.99999999999999989},{"$f":"F30/$E30","v":0.4028162177397816},{"$f":"G30/$E30","v":7.6722554164325926E-2},{"$f":"H30/$E30","v":0.28290906169609503},{"$f":"I30/$E30","v":0.12045549073824321},{"$f":"J30/$E30","v":0.11709667566155414}]
[null,"DDS2 FACTOR",null,null,{"$f":"SUM(F35:J35)","v":0.99999999999999978},{"$f":"F32/$E32","v":0.99892817890970409},{"$f":"G32/$E32","v":5.7817611722337771E-2},{"$f":"H32/$E32","v":0.31709950266222642},{"$f":"I32/$E32","v":-0.37968683892949606},{"$f":"J32/$E32","v":5.8415456352276874E-3}]
[]
[{"$f":"\"DD\"&\"-\"&C37","v":"DD-SE"},"186M","SE","P",{"$f":"SUMIFS(tblDDSJune19[Total ($000)],tblDDSJune19[Alloc4FUNC],C37,tblDDSJune19[FUNC],D37)","v":1648.1862646153847},{"$f":"VLOOKUP($D37,$D$72:$J$84,3,FALSE)*$E37","v":1648.1862646153847},{"$f":"VLOOKUP($D37,$D$72:$J$84,4,FALSE)*$E37","v":0},{"$f":"VLOOKUP($D37,$D$72:$J$84,5,FALSE)*$E37","v":0},{"$f":"VLOOKUP($D37,$D$72:$J$84,6,FALSE)*$E37","v":0},{"$f":"VLOOKUP($D37,$D$72:$J$84,7,FALSE)*$E37","v":0}]
["DD-SG","186M","SG","P",{"$f":"SUMIFS(tblDDSJune19[Total ($000)],tblDDSJune19[Alloc4FUNC],C38,tblDDSJune19[FUNC],D38)","v":58241.612257692301},{"$f":"VLOOKUP($D38,$D$72:$J$84,3,FALSE)*$E38","v":58241.612257692301},{"$f":"VLOOKUP($D38,$D$72:$J$84,4,FALSE)*$E38","v":0},{"$f":"VLOOKUP($D38,$D$72:$J$84,5,FALSE)*$E38","v":0},{"$f":"VLOOKUP($D38,$D$72:$J$84,6,FALSE)*$E38","v":0},{"$f":"VLOOKUP($D38,$D$72:$J$84,7,FALSE)*$E38","v":0}]
["DD-SG","186M","SG","T",{"$f":"SUMIFS(tblDDSJune19[Total ($000)],tblDDSJune19[Alloc4FUNC],C39,tblDDSJune19[FUNC],D39)","v":11391.984959230769},{"$f":"VLOOKUP($D39,$D$72:$J$84,3,FALSE)*$E39","v":0},{"$f":"VLOOKUP($D39,$D$72:$J$84,4,FALSE)*$E39","v":11391.984959230769},{"$f":"VLOOKUP($D39,$D$72:$J$84,5,FALSE)*$E39","v":0},{"$f":"VLOOKUP($D39,$D$72:$J$84,6,FALSE)*$E39","v":0},{"$f":"VLOOKUP($D39,$D$72:$J$84,7,FALSE)*$E39","v":0}]
["DD-SO","186M","SO","COMMON",{"$f":"SUMIFS(tblDDSJune19[Total ($000)],tblDDSJune19[Alloc4FUNC],C40,tblDDSJune19[FUNC],D40)","v":0},{"$f":"VLOOKUP($D40,$D$72:$J$84,3,FALSE)*$E40","v":0},{"$f":"VLOOKUP($D40,$D$72:$J$84,4,FALSE)*$E40","v":0},{"$f":"VLOOKUP($D40,$D$72:$J$84,5,FALSE)*$E40","v":0},{"$f":"VLOOKUP($D40,$D$72:$J$84,6,FALSE)*$E40","v":0},{"$f":"VLOOKUP($D40,$D$72:$J$84,7,FALSE)*$E40","v":0}]
[]
["DD-OTHER","186M","OTHER","COMMON",{"$f":"SUMIFS(tblDDSJune19[Total ($000)],tblDDSJune19[Alloc4FUNC],C42,tblDDSJune19[FUNC],D42)","v":0},{"$f":"VLOOKUP($D42,$D$72:$J$84,3,FALSE)*$E42","v":0},{"$f":"VLOOKUP($D42,$D$72:$J$84,4,FALSE)*$E42","v":0},{"$f":"VLOOKUP($D42,$D$72:$J$84,5,FALSE)*$E42","v":0},{"$f":"VLOOKUP($D42,$D$72:$J$84,6,FALSE)*$E42","v":0},{"$f":"VLOOKUP($D42,$D$72:$J$84,7,FALSE)*$E42","v":0}]
["DD-OTHER","186M","OTHER","LABOR",{"$f":"SUMIFS(tblDDSJune19[Total ($000)],tblDDSJune19[Alloc4FUNC],C43,tblDDSJune19[FUNC],D43)","v":0},0,0,0,0,0]
["DD-OTHER","186M","OTHER","P",{"$f":"SUMIFS(tblDDSJune19[Total ($000)],tblDDSJune19[Alloc4FUNC],C44,tblDDSJune19[FUNC],D44)","v":0},0,0,0,0,0]
["DD-OTHER","186M","OTHER","PTD",{"$f":"SUMIFS(tblDDSJune19[Total ($000)],tblDDSJune19[Alloc4FUNC],C45,tblDDSJune19[FUNC],D45)","v":2722.9434646153873},1311.458158853889,671.08909796661874,740.39620779487916,0,0]
["DD-OTHER","186M","OTHER","T",{"$f":"SUMIFS(tblDDSJune19[Total ($000)],tblDDSJune19[Alloc4FUNC],C46,tblDDSJune19[FUNC],D46)","v":1370.02169307692},0,1370.02169307692,0,0,0]
["DD-SITUS","186M","SITUS","T",0,0,0,0,0,0]
["DD-SITUS","186M","SITUS","LABOR",0,0,0,0,0,0]
[null,"Total SITUS",null,null,{"$f":"SUMIF($A:$A,\"DD-SITUS\",E:E)","v":0},0,0,0,0,0]
[null,"Total SG",null,null,{"$f":"SUMIF($A:$A,\"DD-SG\",E:E)","v":69633.597216923066},58241.612257692301,11391.984959230769,0,0,0]
[null,"Total-SO",null,null,{"$f":"SUMIF($A:$A,\"DD-SO\",E:E)","v":0},0,0,0,0,0]
[null,"Total-DD",null,null,{"$f":"SUMIF($B:$B,\"186M\",E:E)","v":75374.748639230762},61201.256681161569,13433.095750274308,740.39620779487916,0,0]
[null,"DDS6 FACTOR",null,null,{"$f":"SUM(F53:J53)","v":0},{"$f":"IFERROR(F49/$E49,0)","v":0},{"$f":"IFERROR(G49/$E49,0)","v":0},{"$f":"IFERROR(H49/$E49,0)","v":0},{"$f":"IFERROR(I49/$E49,0)","v":0},{"$f":"IFERROR(J49/$E49,0)","v":0}]
[null,"DEFSG FACTOR",null,null,{"$f":"SUM(F54:J54)","v":1},{"$f":"F50/$E50","v":0.83640102745600842},{"$f":"G50/$E50","v":0.16359897254399164},{"$f":"H50/$E50","v":0},{"$f":"I50/$E50","v":0},{"$f":"J50/$E50","v":0}]
[null,"DDSO6 FACTOR",null,null,{"$f":"SUM(F55:J55)","v":0},{"$f":"IFERROR(F51/$E51,0)","v":0},{"$f":"IFERROR(G51/$E51,0)","v":0},{"$f":"IFERROR(H51/$E51,0)","v":0},{"$f":"IFERROR(I51/$E51,0)","v":0},{"$f":"IFERROR(J51/$E51,0)","v":0}]
[]
[null,"Major Adjustment"]
[null,"1998 Early Retirement",null,"LABOR",0,{"$f":"VLOOKUP($D58,$D$72:$J$84,3,FALSE)*$E58","v":0},{"$f":"VLOOKUP($D58,$D$72:$J$84,4,FALSE)*$E58","v":0},{"$f":"VLOOKUP($D58,$D$72:$J$84,5,FALSE)*$E58","v":0},{"$f":"VLOOKUP($D58,$D$72:$J$84,6,FALSE)*$E58","v":0},{"$f":"VLOOKUP($D58,$D$72:$J$84,7,FALSE)*$E58","v":0}]
[null,"1999 Early Retirement",null,"LABOR",0,{"$f":"VLOOKUP($D59,$D$72:$J$84,3,FALSE)*$E59","v":0},{"$f":"VLOOKUP($D59,$D$72:$J$84,4,FALSE)*$E59","v":0},{"$f":"VLOOKUP($D59,$D$72:$J$84,5,FALSE)*$E59","v":0},{"$f":"VLOOKUP($D59,$D$72:$J$84,6,FALSE)*$E59","v":0},{"$f":"VLOOKUP($D59,$D$72:$J$84,7,FALSE)*$E59","v":0}]
[null,"Transition Planning",null,"PTD",0,{"$f":"VLOOKUP($D60,$D$72:$J$84,3,FALSE)*$E60","v":0},{"$f":"VLOOKUP($D60,$D$72:$J$84,4,FALSE)*$E60","v":0},{"$f":"VLOOKUP($D60,$D$72:$J$84,5,FALSE)*$E60","v":0},{"$f":"VLOOKUP($D60,$D$72:$J$84,6,FALSE)*$E60","v":0},{"$f":"VLOOKUP($D60,$D$72:$J$84,7,FALSE)*$E60","v":0}]
[null,"Environmental Clean-up",null,"ESD",0,{"$f":"VLOOKUP($D61,$D$72:$J$84,3,FALSE)*$E61","v":0},{"$f":"VLOOKUP($D61,$D$72:$J$84,4,FALSE)*$E61","v":0},{"$f":"VLOOKUP($D61,$D$72:$J$84,5,FALSE)*$E61","v":0},{"$f":"VLOOKUP($D61,$D$72:$J$84,6,FALSE)*$E61","v":0},{"$f":"VLOOKUP($D61,$D$72:$J$84,7,FALSE)*$E61","v":0}]
[null,"Y2K",null,"PTD",0,{"$f":"VLOOKUP($D62,$D$72:$J$84,3,FALSE)*$E62","v":0},{"$f":"VLOOKUP($D62,$D$72:$J$84,4,FALSE)*$E62","v":0},{"$f":"VLOOKUP($D62,$D$72:$J$84,5,FALSE)*$E62","v":0},{"$f":"VLOOKUP($D62,$D$72:$J$84,6,FALSE)*$E62","v":0},{"$f":"VLOOKUP($D62,$D$72:$J$84,7,FALSE)*$E62","v":0}]
[null,"Subtotal Major Adjustments",null,null,{"$f":"SUM(E58:E62)","v":0},0,0,0,0,0]
[]
[null,"Total 186M SO",null,null,{"$f":"+E51+E63","v":0},0,0,0,0,0]
[]
[null,"Total 182 &186",null,null,{"$f":"SUM(E52,E33)","v":824585.608735385},{"$f":"SUM(F33,F52)","v":422597.19105621352},{"$f":"SUM(G33,G52)","v":49370.375915881028},{"$f":"SUM(H33,H52)","v":131227.50270311182},{"$f":"SUM(I33,I52)","v":166849.17734375337},{"$f":"SUM(J33,J52)","v":54541.361716425235}]
[]
[]
[]
[null,null,null,null,"Total","Production","Transmission","Poles & Wires","Customers","Common"]
[null,null,null,"COMMON",{"$f":"SUM(F72:J72)","v":1},0,0,0,0,1]
[null,null,null,"DPW",{"$f":"SUM(F73:J73)","v":1},0,0,1,0,0]
[null,null,null,"CUST",1,0,0,0,1,0]
[null,null,null,"ESD",1,0.3,0.1,0.6,0,0]
[null,null,null,"GP",0.99999999999999989,{"$f":"'GROSS PLANT'!$E$42","v":0.47257293179736909},{"$f":"'GROSS PLANT'!$F$42","v":0.2480047855515477},{"$f":"'GROSS PLANT'!$G$42","v":0.27258888162029649},{"$f":"'GROSS PLANT'!$H$42","v":6.8334010307866894E-3},{"$f":"'GROSS PLANT'!$I$42","v":0}]
[null,null,null,"RETAIL",1,0,0,0,1,0]
[null,null,null,"LABOR",1,{"$f":"'FORM 1'!$C$25","v":0.40374068006387048},{"$f":"'FORM 1'!$D$25","v":7.601625700893419E-2},{"$f":"'FORM 1'!$E$25","v":0.26680973951410497},{"$f":"'FORM 1'!$F$25","v":0.12850834325699395},{"$f":"'FORM 1'!$G$25","v":0.12492498015609642}]
[null,null,null,"P",1,{"$f":"'FORM 1'!$C$13","v":1},{"$f":"'FORM 1'!$D$13","v":0},{"$f":"'FORM 1'!$E$13","v":0},{"$f":"'FORM 1'!$F$13","v":0},{"$f":"'FORM 1'!$G$13","v":0}]
[null,null,null,"PT",{"$f":"SUM(F80:J80)","v":1},{"$f":"'FORM 1'!$C$17","v":0.66150158809184112},{"$f":"'FORM 1'!$D$17","v":0.33849841190815888},{"$f":"'FORM 1'!$E$17","v":0},{"$f":"'FORM 1'!$F$17","v":0},{"$f":"'FORM 1'!$G$17","v":0}]
[null,null,null,"PTD",0.99999999999999989,{"$f":"'FORM 1'!$C$16","v":0.48163253328475958},{"$f":"'FORM 1'!$D$16","v":0.24645722788130284},{"$f":"'FORM 1'!$E$16","v":0.2719102388339375},{"$f":"'FORM 1'!$F$16","v":0},{"$f":"'FORM 1'!$G$16","v":0}]
[null,null,null,"T",1,{"$f":"'FORM 1'!$C$14","v":0},{"$f":"'FORM 1'!$D$14","v":1},{"$f":"'FORM 1'!$E$14","v":0},{"$f":"'FORM 1'!$F$14","v":0},{"$f":"'FORM 1'!$G$14","v":0}]
[null,null,null,"TAXDEPR",1.0000000000000002,{"$f":"'TAX DEPR'!C24","v":0.44570887564486761},{"$f":"'TAX DEPR'!D24","v":0.26188623774335446},{"$f":"'TAX DEPR'!E24","v":0.28234162671178875},{"$f":"'TAX DEPR'!F24","v":1.0063259899989269E-2},{"$f":"'TAX DEPR'!G24","v":0}]
[null,null,null,"TD",1,{"$f":"'FORM 1'!$C$18","v":0},{"$f":"'FORM 1'!$D$18","v":0.47544887306110878},{"$f":"'FORM 1'!$E$18","v":0.52455112693889117},{"$f":"'FORM 1'!$F$18","v":0},{"$f":"'FORM 1'!$G$18","v":0}]

{"sheet":"ACCUMDIT","index":10,"n_rows":72,"n_cols":14,"rows_kept":72,"cut":false,"hidden":false,"merged":[]}
[{"$f":"+'TOTAL FUNCFAC'!A1","v":"PacifiCorp"}]
[{"$f":"+'TOTAL FUNCFAC'!A2","v":"12 Months Ended December 2019"}]
["Deferred Income Tax - Balance"]
[]
[]
[]
["DITBALRL"]
["Pacific Division",null,"Total",{"$f":"'TOTAL FUNCFAC'!C6","v":"Generation"},{"$f":"'TOTAL FUNCFAC'!D6","v":"Transmission"},{"$f":"'TOTAL FUNCFAC'!E6","v":"Distribution"},{"$f":"'TOTAL FUNCFAC'!F6","v":"Customer"},{"$f":"'TOTAL FUNCFAC'!G6","v":"Common"}]
["Pacific Division"]
["Production","P",27220098.154177498,{"$f":"VLOOKUP($B10,$B$59:$H$72,3,FALSE)*$C10","v":27220098.154177498},{"$f":"VLOOKUP($B10,$B$59:$H$72,4,FALSE)*$C10","v":0},{"$f":"VLOOKUP($B10,$B$59:$H$72,5,FALSE)*$C10","v":0},{"$f":"VLOOKUP($B10,$B$59:$H$72,6,FALSE)*$C10","v":0},{"$f":"VLOOKUP($B10,$B$59:$H$72,7,FALSE)*$C10","v":0}]
["Transmission","T",15178602.694262128,{"$f":"VLOOKUP($B11,$B$59:$H$72,3,FALSE)*$C11","v":0},{"$f":"VLOOKUP($B11,$B$59:$H$72,4,FALSE)*$C11","v":15178602.694262128},{"$f":"VLOOKUP($B11,$B$59:$H$72,5,FALSE)*$C11","v":0},{"$f":"VLOOKUP($B11,$B$59:$H$72,6,FALSE)*$C11","v":0},{"$f":"VLOOKUP($B11,$B$59:$H$72,7,FALSE)*$C11","v":0}]
["Distribution","DPW",9472460.2271434348,{"$f":"VLOOKUP($B12,$B$59:$H$72,3,FALSE)*$C12","v":0},{"$f":"VLOOKUP($B12,$B$59:$H$72,4,FALSE)*$C12","v":0},{"$f":"VLOOKUP($B12,$B$59:$H$72,5,FALSE)*$C12","v":9472460.2271434348},{"$f":"VLOOKUP($B12,$B$59:$H$72,6,FALSE)*$C12","v":0},{"$f":"VLOOKUP($B12,$B$59:$H$72,7,FALSE)*$C12","v":0}]
["General","G",-728332.04704540374,{"$f":"VLOOKUP($B13,$B$59:$H$72,3,FALSE)*$C13","v":-154770.49922305325},{"$f":"VLOOKUP($B13,$B$59:$H$72,4,FALSE)*$C13","v":-256996.86371947848},{"$f":"VLOOKUP($B13,$B$59:$H$72,5,FALSE)*$C13","v":-306071.4658555974},{"$f":"VLOOKUP($B13,$B$59:$H$72,6,FALSE)*$C13","v":-10493.218247274557},{"$f":"VLOOKUP($B13,$B$59:$H$72,7,FALSE)*$C13","v":0}]
["Mining Plant","P",5011.5961061759654,{"$f":"VLOOKUP($B14,$B$59:$H$72,3,FALSE)*$C14","v":5011.5961061759654},{"$f":"VLOOKUP($B14,$B$59:$H$72,4,FALSE)*$C14","v":0},{"$f":"VLOOKUP($B14,$B$59:$H$72,5,FALSE)*$C14","v":0},{"$f":"VLOOKUP($B14,$B$59:$H$72,6,FALSE)*$C14","v":0},{"$f":"VLOOKUP($B14,$B$59:$H$72,7,FALSE)*$C14","v":0}]
[]
["     Total Pacific Division",null,{"$f":"SUM(C10:C14)","v":51147840.62464384},{"$f":"SUM(D10:D14)","v":27070339.25106062},14921605.83054265,9166388.7612878382,-10493.218247274557,0]
[]
["Utah Division"]
["Production","P",47828603.434620768,{"$f":"VLOOKUP($B19,$B$59:$H$72,3,FALSE)*$C19","v":47828603.434620768},{"$f":"VLOOKUP($B19,$B$59:$H$72,4,FALSE)*$C19","v":0},{"$f":"VLOOKUP($B19,$B$59:$H$72,5,FALSE)*$C19","v":0},{"$f":"VLOOKUP($B19,$B$59:$H$72,6,FALSE)*$C19","v":0},{"$f":"VLOOKUP($B19,$B$59:$H$72,7,FALSE)*$C19","v":0}]
["Transmission","T",35428532.147136107,{"$f":"VLOOKUP($B20,$B$59:$H$72,3,FALSE)*$C20","v":0},{"$f":"VLOOKUP($B20,$B$59:$H$72,4,FALSE)*$C20","v":35428532.147136107},{"$f":"VLOOKUP($B20,$B$59:$H$72,5,FALSE)*$C20","v":0},{"$f":"VLOOKUP($B20,$B$59:$H$72,6,FALSE)*$C20","v":0},{"$f":"VLOOKUP($B20,$B$59:$H$72,7,FALSE)*$C20","v":0}]
["Distribution","DPW",26651813.842690226,{"$f":"VLOOKUP($B21,$B$59:$H$72,3,FALSE)*$C21","v":0},{"$f":"VLOOKUP($B21,$B$59:$H$72,4,FALSE)*$C21","v":0},{"$f":"VLOOKUP($B21,$B$59:$H$72,5,FALSE)*$C21","v":26651813.842690226},{"$f":"VLOOKUP($B21,$B$59:$H$72,6,FALSE)*$C21","v":0},{"$f":"VLOOKUP($B21,$B$59:$H$72,7,FALSE)*$C21","v":0}]
["General","G",-1028839.2689447916,{"$f":"VLOOKUP($B22,$B$59:$H$72,3,FALSE)*$C22","v":-218628.25880149691},{"$f":"VLOOKUP($B22,$B$59:$H$72,4,FALSE)*$C22","v":-363032.85906870087},{"$f":"VLOOKUP($B22,$B$59:$H$72,5,FALSE)*$C22","v":-432355.4681592955},{"$f":"VLOOKUP($B22,$B$59:$H$72,6,FALSE)*$C22","v":-14822.682915298245},{"$f":"VLOOKUP($B22,$B$59:$H$72,7,FALSE)*$C22","v":0}]
["Mining Plant","P",12879.036069297566,{"$f":"VLOOKUP($B23,$B$59:$H$72,3,FALSE)*$C23","v":12879.036069297566},{"$f":"VLOOKUP($B23,$B$59:$H$72,4,FALSE)*$C23","v":0},{"$f":"VLOOKUP($B23,$B$59:$H$72,5,FALSE)*$C23","v":0},{"$f":"VLOOKUP($B23,$B$59:$H$72,6,FALSE)*$C23","v":0},{"$f":"VLOOKUP($B23,$B$59:$H$72,7,FALSE)*$C23","v":0}]
[]
["     Total Utah Division",null,{"$f":"SUM(C19:C23)","v":108892989.19157162},47622854.211888567,35065499.288067408,26219458.37453093,-14822.682915298245,0]
[]
["PACIFICORP"]
["Prod / Other Prod","P",419767578.74785858,{"$f":"VLOOKUP($B28,$B$59:$H$72,3,FALSE)*$C28","v":419767578.74785858},{"$f":"VLOOKUP($B28,$B$59:$H$72,4,FALSE)*$C28","v":0},{"$f":"VLOOKUP($B28,$B$59:$H$72,5,FALSE)*$C28","v":0},{"$f":"VLOOKUP($B28,$B$59:$H$72,6,FALSE)*$C28","v":0},{"$f":"VLOOKUP($B28,$B$59:$H$72,7,FALSE)*$C28","v":0}]
["Cholla Unit 4","P",38176672.882874727,38176672.882874727,0,0,0,0]
["Gadsby Unit 4, 5 & 6","P",6256580.9824943421,6256580.9824943421,0,0,0,0]
["Hydro-PPL","P",35385873.713941403,35385873.713941403,0,0,0,0]
["Hydro-UPL","P",10830685.419231307,10830685.419231307,0,0,0,0]
["Transmission","T",273721104.93146706,0,273721104.93146706,0,0,0]
["Distribution","DPW",997655109.37295508,0,0,997655109.37295508,0,0,null,null,null,null,null," "]
["General/ Intangibles","G",41663080.443843447,8853401.1178309452,14701098.28394331,17508333.122559816,600247.91950937221,0]
["Mining","P",3030.4852769907025,3030.4852769907025,0,0,0,0]
["WCA - CAEE 2007+","P",-3609.8806393779132,-3609.8806393779132,0,0,0,0]
["WCA - CAGE 2007+","PT",1820648665.5457134,1204361983.6157808,616286681.92993271,0,0,0]
["WCA - CAGW 2007+","PT",435660180.41147649,288189901.21056974,147470279.20090678,0,0,0]
["WCA_CAGW 2007+ -Marengo","P",0,0,0,0,0,0]
["WCA CAGW 2007+ -Goodnoe","P",0,0,0,0,0,0]
["WCA - General 2007+","G",188203551.8955138,39993239.073557667,66408889.701098025,79089938.77389954,2711484.3469585488,0]
["WCA - JBG 2007+","P",158314760.99434766,158314760.99434766,0,0,0,0]
["OREGON EXTRA BOOK DEPR","P",-77310602.000672609,-77310602.000672609,0,0,0,0]
[]
["     Total PC (Post Merger)",null,{"$f":"SUM(C28:C44)","v":4348972663.9456825},{"$f":"SUM(D28:D44)","v":2132819496.3624523},1118588054.0473478,1094253381.2694144,3311732.266467921,0]
[]
["Total Deferred Taxes ",null,{"$f":"C16+C25+C46","v":4509013493.761898},2207512689.8254013,1168575159.1659579,1129639228.4052331,3286416.3653053483,0]
[]
["ACCMDITRL FACTOR",null,1,{"$f":"D48/$C$48","v":0.48957775195825809},{"$f":"E48/$C$48","v":0.25916426304393436},{"$f":"F48/$C$48","v":0.25052913014522121},{"$f":"G48/$C$48","v":7.2885485258627396E-4},{"$f":"H48/$C$48","v":0}]
[]
[]
[]
[null,"ACCUMDIT",{"$f":"SUM(D54:F54)","v":0.40916639709420199},9.962591977161854E-2,0.30954047732258344,0]
[]
[]
[]
[null,null,"Total","Production","Transmission","Poles & Wires","Customers","Miscellaneous"]
[null,"DMSC",{"$f":"SUM(D59:H59)","v":1},0,0,0,0,1]
[null,"DPW",{"$f":"SUM(D60:H60)","v":1},0,0,1,0,0]
[null,"DDS2",0.99999999999999978,{"$f":"'REGASSETS&DDS'!F35","v":0.99892817890970409},{"$f":"'REGASSETS&DDS'!G35","v":5.7817611722337771E-2},{"$f":"'REGASSETS&DDS'!H35","v":0.31709950266222642},{"$f":"'REGASSETS&DDS'!I35","v":-0.37968683892949606},{"$f":"'REGASSETS&DDS'!J35","v":5.8415456352276874E-3}]
[null,"CUST",1,0,0,0,1,0]
[null,"ESD",1,0.3,0.1,0.6,0,0]
[null,"G",{"$f":"SUM(D64:H64)","v":0.99999999999999989},{"$f":"GP!E38","v":0.21249991655715922},{"$f":"GP!F38","v":0.35285672896315307},{"$f":"GP!G38","v":0.42023616439400902},{"$f":"GP!H38","v":1.4407190085678622E-2},{"$f":"GP!I38","v":0}]
[null,"GP",0.99999999999999989,{"$f":"'GROSS PLANT'!E42","v":0.47257293179736909},{"$f":"'GROSS PLANT'!F42","v":0.2480047855515477},{"$f":"'GROSS PLANT'!G42","v":0.27258888162029649},{"$f":"'GROSS PLANT'!H42","v":6.8334010307866894E-3},{"$f":"'GROSS PLANT'!I42","v":0}]
[null,"LABOR",1,{"$f":"'FORM 1'!C25","v":0.40374068006387048},{"$f":"'FORM 1'!D25","v":7.601625700893419E-2},{"$f":"'FORM 1'!E25","v":0.26680973951410497},{"$f":"'FORM 1'!F25","v":0.12850834325699395},{"$f":"'FORM 1'!G25","v":0.12492498015609642}]
[null,"P",1,1,0,0,0,0]
[null,"PT",{"$f":"SUM(D68:H68)","v":1},{"$f":"+'FORM 1'!C17","v":0.66150158809184112},{"$f":"+'FORM 1'!D17","v":0.33849841190815888},{"$f":"+'FORM 1'!E17","v":0},{"$f":"+'FORM 1'!F17","v":0},{"$f":"+'FORM 1'!G17","v":0}]
[null,"PTD",0.99999999999999989,{"$f":"'FORM 1'!C16","v":0.48163253328475958},{"$f":"'FORM 1'!D16","v":0.24645722788130284},{"$f":"'FORM 1'!E16","v":0.2719102388339375},{"$f":"'FORM 1'!F16","v":0},{"$f":"'FORM 1'!G16","v":0}]
[null,"T",1,0,1,0,0,0]
[null,"TAXDEPR",1.0000000000000002,{"$f":"'TAX DEPR'!C24","v":0.44570887564486761},{"$f":"'TAX DEPR'!D24","v":0.26188623774335446},{"$f":"'TAX DEPR'!E24","v":0.28234162671178875},{"$f":"'TAX DEPR'!F24","v":1.0063259899989269E-2},{"$f":"'TAX DEPR'!G24","v":0}]
[null,"TD",1,{"$f":"'FORM 1'!C18","v":0},{"$f":"'FORM 1'!D18","v":0.47544887306110878},{"$f":"'FORM 1'!E18","v":0.52455112693889117},{"$f":"'FORM 1'!F18","v":0},{"$f":"'FORM 1'!G18","v":0}]

{"sheet":"data>","index":11,"n_rows":0,"n_cols":0,"rows_kept":0,"cut":false,"hidden":false,"merged":[]}

{"sheet":"BOOKDEPR June19data","index":12,"n_rows":277,"n_cols":10,"rows_kept":277,"cut":false,"hidden":false,"merged":[]}
["Concat","Primary Account","Primary Name","Secondary Acct","Secondary  Name","Alloc","Total ($000)","Alloc4Func","FUNC","Investigate?"]
[{"$f":"CONCATENATE(tblDeprExpJune19[[#This Row],[Primary Account]],tblDeprExpJune19[[#This Row],[Primary Name]],tblDeprExpJune19[[#This Row],[Secondary Acct]],tblDeprExpJune19[[#This Row],[Secondary  Name]],tblDeprExpJune19[[#This Row],[Alloc4Func]])","v":"4030000DEPN EXPENSE-ELECT3102000LAND RIGHTSSG"},"4030000","DEPN EXPENSE-ELECT","3102000","LAND RIGHTS","SG",909.22958000000006,{"$f":"IF(OR(tblDeprExpJune19[[#This Row],[Alloc]]=\"IDU\",tblDeprExpJune19[[#This Row],[Alloc]]=\"OR\",tblDeprExpJune19[[#This Row],[Alloc]]=\"UT\",tblDeprExpJune19[[#This Row],[Alloc]]=\"WYU\",tblDeprExpJune19[[#This Row],[Alloc]]=\"WYP\",tblDeprExpJune19[[#This Row],[Alloc]]=\"CA\",tblDeprExpJune19[[#This Row],[Alloc]]=\"WA\"),\"SITUS\",tblDeprExpJune19[[#This Row],[Alloc]])","v":"SG"},{"$f":"INDEX(tblDeprExpLookup[FUNC],MATCH(tblDeprExpJune19[[#This Row],[Concat]],tblDeprExpLookup[Concat],0))","v":"P"},{"$f":"IF(tblDeprExpJune19[[#This Row],[Total ($000)]]=0,\"NO\",IF(ISNA(tblDeprExpJune19[[#This Row],[FUNC]]),\"YES\",IF(_xlfn.ISFORMULA(tblDeprExpJune19[[#This Row],[FUNC]]),\"NO\",\"YES\")))","v":"NO"}]
[{"$f":"CONCATENATE(tblDeprExpJune19[[#This Row],[Primary Account]],tblDeprExpJune19[[#This Row],[Primary Name]],tblDeprExpJune19[[#This Row],[Secondary Acct]],tblDeprExpJune19[[#This Row],[Secondary  Name]],tblDeprExpJune19[[#This Row],[Alloc4Func]])","v":"4030000DEPN EXPENSE-ELECT3110000STRUCTURES AND IMPROVEMENTSSG"},"4030000","DEPN EXPENSE-ELECT","3110000","STRUCTURES AND IMPROVEMENTS","SG",30218.72911,{"$f":"IF(OR(tblDeprExpJune19[[#This Row],[Alloc]]=\"IDU\",tblDeprExpJune19[[#This Row],[Alloc]]=\"OR\",tblDeprExpJune19[[#This Row],[Alloc]]=\"UT\",tblDeprExpJune19[[#This Row],[Alloc]]=\"WYU\",tblDeprExpJune19[[#This Row],[Alloc]]=\"WYP\",tblDeprExpJune19[[#This Row],[Alloc]]=\"CA\",tblDeprExpJune19[[#This Row],[Alloc]]=\"WA\"),\"SITUS\",tblDeprExpJune19[[#This Row],[Alloc]])","v":"SG"},{"$f":"INDEX(tblDeprExpLookup[FUNC],MATCH(tblDeprExpJune19[[#This Row],[Concat]],tblDeprExpLookup[Concat],0))","v":"P"},{"$f":"IF(tblDeprExpJune19[[#This Row],[Total ($000)]]=0,\"NO\",IF(ISNA(tblDeprExpJune19[[#This Row],[FUNC]]),\"YES\",IF(_xlfn.ISFORMULA(tblDeprExpJune19[[#This Row],[FUNC]]),\"NO\",\"YES\")))","v":"NO"}]
[{"$f":"CONCATENATE(tblDeprExpJune19[[#This Row],[Primary Account]],tblDeprExpJune19[[#This Row],[Primary Name]],tblDeprExpJune19[[#This Row],[Secondary Acct]],tblDeprExpJune19[[#This Row],[Secondary  Name]],tblDeprExpJune19[[#This Row],[Alloc4Func]])","v":"4030000DEPN EXPENSE-ELECT3120000BOILER PLANT EQUIPMENTSG"},"4030000","DEPN EXPENSE-ELECT","3120000","BOILER PLANT EQUIPMENT","SG",165812.29199999999,{"$f":"IF(OR(tblDeprExpJune19[[#This Row],[Alloc]]=\"IDU\",tblDeprExpJune19[[#This Row],[Alloc]]=\"OR\",tblDeprExpJune19[[#This Row],[Alloc]]=\"UT\",tblDeprExpJune19[[#This Row],[Alloc]]=\"WYU\",tblDeprExpJune19[[#This Row],[Alloc]]=\"WYP\",tblDeprExpJune19[[#This Row],[Alloc]]=\"CA\",tblDeprExpJune19[[#This Row],[Alloc]]=\"WA\"),\"SITUS\",tblDeprExpJune19[[#This Row],[Alloc]])","v":"SG"},{"$f":"INDEX(tblDeprExpLookup[FUNC],MATCH(tblDeprExpJune19[[#This Row],[Concat]],tblDeprExpLookup[Concat],0))","v":"P"},{"$f":"IF(tblDeprExpJune19[[#This Row],[Total ($000)]]=0,\"NO\",IF(ISNA(tblDeprExpJune19[[#This Row],[FUNC]]),\"YES\",IF(_xlfn.ISFORMULA(tblDeprExpJune19[[#This Row],[FUNC]]),\"NO\",\"YES\")))","v":"NO"}]
[{"$f":"CONCATENATE(tblDeprExpJune19[[#This Row],[Primary Account]],tblDeprExpJune19[[#This Row],[Primary Name]],tblDeprExpJune19[[#This Row],[Secondary Acct]],tblDeprExpJune19[[#This Row],[Secondary  Name]],tblDeprExpJune19[[#This Row],[Alloc4Func]])","v":"4030000DEPN EXPENSE-ELECT3140000TURBOGENERATOR UNITSSG"},"4030000","DEPN EXPENSE-ELECT","3140000","TURBOGENERATOR UNITS","SG",34575.18922,{"$f":"IF(OR(tblDeprExpJune19[[#This Row],[Alloc]]=\"IDU\",tblDeprExpJune19[[#This Row],[Alloc]]=\"OR\",tblDeprExpJune19[[#This Row],[Alloc]]=\"UT\",tblDeprExpJune19[[#This Row],[Alloc]]=\"WYU\",tblDeprExpJune19[[#This Row],[Alloc]]=\"WYP\",tblDeprExpJune19[[#This Row],[Alloc]]=\"CA\",tblDeprExpJune19[[#This Row],[Alloc]]=\"WA\"),\"SITUS\",tblDeprExpJune19[[#This Row],[Alloc]])","v":"SG"},{"$f":"INDEX(tblDeprExpLookup[FUNC],MATCH(tblDeprExpJune19[[#This Row],[Concat]],tblDeprExpLookup[Concat],0))","v":"P"},{"$f":"IF(tblDeprExpJune19[[#This Row],[Total ($000)]]=0,\"NO\",IF(ISNA(tblDeprExpJune19[[#This Row],[FUNC]]),\"YES\",IF(_xlfn.ISFORMULA(tblDeprExpJune19[[#This Row],[FUNC]]),\"NO\",\"YES\")))","v":"NO"}]
[{"$f":"CONCATENATE(tblDeprExpJune19[[#This Row],[Primary Account]],tblDeprExpJune19[[#This Row],[Primary Name]],tblDeprExpJune19[[#This Row],[Secondary Acct]],tblDeprExpJune19[[#This Row],[Secondary  Name]],tblDeprExpJune19[[#This Row],[Alloc4Func]])","v":"4030000DEPN EXPENSE-ELECT3150000ACCESSORY ELECTRIC EQUIPMENTSG"},"4030000","DEPN EXPENSE-ELECT","3150000","ACCESSORY ELECTRIC EQUIPMENT","SG",14892.25612,{"$f":"IF(OR(tblDeprExpJune19[[#This Row],[Alloc]]=\"IDU\",tblDeprExpJune19[[#This Row],[Alloc]]=\"OR\",tblDeprExpJune19[[#This Row],[Alloc]]=\"UT\",tblDeprExpJune19[[#This Row],[Alloc]]=\"WYU\",tblDeprExpJune19[[#This Row],[Alloc]]=\"WYP\",tblDeprExpJune19[[#This Row],[Alloc]]=\"CA\",tblDeprExpJune19[[#This Row],[Alloc]]=\"WA\"),\"SITUS\",tblDeprExpJune19[[#This Row],[Alloc]])","v":"SG"},{"$f":"INDEX(tblDeprExpLookup[FUNC],MATCH(tblDeprExpJune19[[#This Row],[Concat]],tblDeprExpLookup[Concat],0))","v":"P"},{"$f":"IF(tblDeprExpJune19[[#This Row],[Total ($000)]]=0,\"NO\",IF(ISNA(tblDeprExpJune19[[#This Row],[FUNC]]),\"YES\",IF(_xlfn.ISFORMULA(tblDeprExpJune19[[#This Row],[FUNC]]),\"NO\",\"YES\")))","v":"NO"}]
[{"$f":"CONCATENATE(tblDeprExpJune19[[#This Row],[Primary Account]],tblDeprExpJune19[[#This Row],[Primary Name]],tblDeprExpJune19[[#This Row],[Secondary Acct]],tblDeprExpJune19[[#This Row],[Secondary  Name]],tblDeprExpJune19[[#This Row],[Alloc4Func]])","v":"4030000DEPN EXPENSE-ELECT3157000ACCESSORY ELECTRIC EQUIP-SUPV & ALARMSG"},"4030000","DEPN EXPENSE-ELECT","3157000","ACCESSORY ELECTRIC EQUIP-SUPV & ALARM","SG",1.2496100000000001,{"$f":"IF(OR(tblDeprExpJune19[[#This Row],[Alloc]]=\"IDU\",tblDeprExpJune19[[#This Row],[Alloc]]=\"OR\",tblDeprExpJune19[[#This Row],[Alloc]]=\"UT\",tblDeprExpJune19[[#This Row],[Alloc]]=\"WYU\",tblDeprExpJune19[[#This Row],[Alloc]]=\"WYP\",tblDeprExpJune19[[#This Row],[Alloc]]=\"CA\",tblDeprExpJune19[[#This Row],[Alloc]]=\"WA\"),\"SITUS\",tblDeprExpJune19[[#This Row],[Alloc]])","v":"SG"},{"$f":"INDEX(tblDeprExpLookup[FUNC],MATCH(tblDeprExpJune19[[#This Row],[Concat]],tblDeprExpLookup[Concat],0))","v":"P"},{"$f":"IF(tblDeprExpJune19[[#This Row],[Total ($000)]]=0,\"NO\",IF(ISNA(tblDeprExpJune19[[#This Row],[FUNC]]),\"YES\",IF(_xlfn.ISFORMULA(tblDeprExpJune19[[#This Row],[FUNC]]),\"NO\",\"YES\")))","v":"NO"}]
[{"$f":"CONCATENATE(tblDeprExpJune19[[#This Row],[Primary Account]],tblDeprExpJune19[[#This Row],[Primary Name]],tblDeprExpJune19[[#This Row],[Secondary Acct]],tblDeprExpJune19[[#This Row],[Secondary  Name]],tblDeprExpJune19[[#This Row],[Alloc4Func]])","v":"4030000DEPN EXPENSE-ELECT3160000MISCELLANEOUS POWER PLANT EQUIPMENTSG"},"4030000","DEPN EXPENSE-ELECT","3160000","MISCELLANEOUS POWER PLANT EQUIPMENT","SG",1386.09052,{"$f":"IF(OR(tblDeprExpJune19[[#This Row],[Alloc]]=\"IDU\",tblDeprExpJune19[[#This Row],[Alloc]]=\"OR\",tblDeprExpJune19[[#This Row],[Alloc]]=\"UT\",tblDeprExpJune19[[#This Row],[Alloc]]=\"WYU\",tblDeprExpJune19[[#This Row],[Alloc]]=\"WYP\",tblDeprExpJune19[[#This Row],[Alloc]]=\"CA\",tblDeprExpJune19[[#This Row],[Alloc]]=\"WA\"),\"SITUS\",tblDeprExpJune19[[#This Row],[Alloc]])","v":"SG"},{"$f":"INDEX(tblDeprExpLookup[FUNC],MATCH(tblDeprExpJune19[[#This Row],[Concat]],tblDeprExpLookup[Concat],0))","v":"P"},{"$f":"IF(tblDeprExpJune19[[#This Row],[Total ($000)]]=0,\"NO\",IF(ISNA(tblDeprExpJune19[[#This Row],[FUNC]]),\"YES\",IF(_xlfn.ISFORMULA(tblDeprExpJune19[[#This Row],[FUNC]]),\"NO\",\"YES\")))","v":"NO"}]
[{"$f":"CONCATENATE(tblDeprExpJune19[[#This Row],[Primary Account]],tblDeprExpJune19[[#This Row],[Primary Name]],tblDeprExpJune19[[#This Row],[Secondary Acct]],tblDeprExpJune19[[#This Row],[Secondary  Name]],tblDeprExpJune19[[#This Row],[Alloc4Func]])","v":"4030000DEPN EXPENSE-ELECT3302000LAND RIGHTSSG-P"},"4030000","DEPN EXPENSE-ELECT","3302000","LAND RIGHTS","SG-P",101.52704,{"$f":"IF(OR(tblDeprExpJune19[[#This Row],[Alloc]]=\"IDU\",tblDeprExpJune19[[#This Row],[Alloc]]=\"OR\",tblDeprExpJune19[[#This Row],[Alloc]]=\"UT\",tblDeprExpJune19[[#This Row],[Alloc]]=\"WYU\",tblDeprExpJune19[[#This Row],[Alloc]]=\"WYP\",tblDeprExpJune19[[#This Row],[Alloc]]=\"CA\",tblDeprExpJune19[[#This Row],[Alloc]]=\"WA\"),\"SITUS\",tblDeprExpJune19[[#This Row],[Alloc]])","v":"SG-P"},{"$f":"INDEX(tblDeprExpLookup[FUNC],MATCH(tblDeprExpJune19[[#This Row],[Concat]],tblDeprExpLookup[Concat],0))","v":"P"},{"$f":"IF(tblDeprExpJune19[[#This Row],[Total ($000)]]=0,\"NO\",IF(ISNA(tblDeprExpJune19[[#This Row],[FUNC]]),\"YES\",IF(_xlfn.ISFORMULA(tblDeprExpJune19[[#This Row],[FUNC]]),\"NO\",\"YES\")))","v":"NO"}]
[{"$f":"CONCATENATE(tblDeprExpJune19[[#This Row],[Primary Account]],tblDeprExpJune19[[#This Row],[Primary Name]],tblDeprExpJune19[[#This Row],[Secondary Acct]],tblDeprExpJune19[[#This Row],[Secondary  Name]],tblDeprExpJune19[[#This Row],[Alloc4Func]])","v":"4030000DEPN EXPENSE-ELECT3302000LAND RIGHTSSG-U"},"4030000","DEPN EXPENSE-ELECT","3302000","LAND RIGHTS","SG-U",9.7788900000000005,{"$f":"IF(OR(tblDeprExpJune19[[#This Row],[Alloc]]=\"IDU\",tblDeprExpJune19[[#This Row],[Alloc]]=\"OR\",tblDeprExpJune19[[#This Row],[Alloc]]=\"UT\",tblDeprExpJune19[[#This Row],[Alloc]]=\"WYU\",tblDeprExpJune19[[#This Row],[Alloc]]=\"WYP\",tblDeprExpJune19[[#This Row],[Alloc]]=\"CA\",tblDeprExpJune19[[#This Row],[Alloc]]=\"WA\"),\"SITUS\",tblDeprExpJune19[[#This Row],[Alloc]])","v":"SG-U"},{"$f":"INDEX(tblDeprExpLookup[FUNC],MATCH(tblDeprExpJune19[[#This Row],[Concat]],tblDeprExpLookup[Concat],0))","v":"P"},{"$f":"IF(tblDeprExpJune19[[#This Row],[Total ($000)]]=0,\"NO\",IF(ISNA(tblDeprExpJune19[[#This Row],[FUNC]]),\"YES\",IF(_xlfn.ISFORMULA(tblDeprExpJune19[[#This Row],[FUNC]]),\"NO\",\"YES\")))","v":"NO"}]
[{"$f":"CONCATENATE(tblDeprExpJune19[[#This Row],[Primary Account]],tblDeprExpJune19[[#This Row],[Primary Name]],tblDeprExpJune19[[#This Row],[Secondary Acct]],tblDeprExpJune19[[#This Row],[Secondary  Name]],tblDeprExpJune19[[#This Row],[Alloc4Func]])","v":"4030000DEPN EXPENSE-ELECT3303000WATER RIGHTSSG-P"},"4030000","DEPN EXPENSE-ELECT","3303000","WATER RIGHTS","SG-P",0.33545999999999998,{"$f":"IF(OR(tblDeprExpJune19[[#This Row],[Alloc]]=\"IDU\",tblDeprExpJune19[[#This Row],[Alloc]]=\"OR\",tblDeprExpJune19[[#This Row],[Alloc]]=\"UT\",tblDeprExpJune19[[#This Row],[Alloc]]=\"WYU\",tblDeprExpJune19[[#This Row],[Alloc]]=\"WYP\",tblDeprExpJune19[[#This Row],[Alloc]]=\"CA\",tblDeprExpJune19[[#This Row],[Alloc]]=\"WA\"),\"SITUS\",tblDeprExpJune19[[#This Row],[Alloc]])","v":"SG-P"},{"$f":"INDEX(tblDeprExpLookup[FUNC],MATCH(tblDeprExpJune19[[#This Row],[Concat]],tblDeprExpLookup[Concat],0))","v":"P"},{"$f":"IF(tblDeprExpJune19[[#This Row],[Total ($000)]]=0,\"NO\",IF(ISNA(tblDeprExpJune19[[#This Row],[FUNC]]),\"YES\",IF(_xlfn.ISFORMULA(tblDeprExpJune19[[#This Row],[FUNC]]),\"NO\",\"YES\")))","v":"NO"}]
[{"$f":"CONCATENATE(tblDeprExpJune19[[#This Row],[Primary Account]],tblDeprExpJune19[[#This Row],[Primary Name]],tblDeprExpJune19[[#This Row],[Secondary Acct]],tblDeprExpJune19[[#This Row],[Secondary  Name]],tblDeprExpJune19[[#This Row],[Alloc4Func]])","v":"4030000DEPN EXPENSE-ELECT3303000WATER RIGHTSSG-U"},"4030000","DEPN EXPENSE-ELECT","3303000","WATER RIGHTS","SG-U",1.8231999999999999,{"$f":"IF(OR(tblDeprExpJune19[[#This Row],[Alloc]]=\"IDU\",tblDeprExpJune19[[#This Row],[Alloc]]=\"OR\",tblDeprExpJune19[[#This Row],[Alloc]]=\"UT\",tblDeprExpJune19[[#This Row],[Alloc]]=\"WYU\",tblDeprExpJune19[[#This Row],[Alloc]]=\"WYP\",tblDeprExpJune19[[#This Row],[Alloc]]=\"CA\",tblDeprExpJune19[[#This Row],[Alloc]]=\"WA\"),\"SITUS\",tblDeprExpJune19[[#This Row],[Alloc]])","v":"SG-U"},{"$f":"INDEX(tblDeprExpLookup[FUNC],MATCH(tblDeprExpJune19[[#This Row],[Concat]],tblDeprExpLookup[Concat],0))","v":"P"},{"$f":"IF(tblDeprExpJune19[[#This Row],[Total ($000)]]=0,\"NO\",IF(ISNA(tblDeprExpJune19[[#This Row],[FUNC]]),\"YES\",IF(_xlfn.ISFORMULA(tblDeprExpJune19[[#This Row],[FUNC]]),\"NO\",\"YES\")))","v":"NO"}]
[{"$f":"CONCATENATE(tblDeprExpJune19[[#This Row],[Primary Account]],tblDeprExpJune19[[#This Row],[Primary Name]],tblDeprExpJune19[[#This Row],[Secondary Acct]],tblDeprExpJune19[[#This Row],[Secondary  Name]],tblDeprExpJune19[[#This Row],[Alloc4Func]])","v":"4030000DEPN EXPENSE-ELECT3304000FLOOD RIGHTSSG-P"},"4030000","DEPN EXPENSE-ELECT","3304000","FLOOD RIGHTS","SG-P",13.16475,{"$f":"IF(OR(tblDeprExpJune19[[#This Row],[Alloc]]=\"IDU\",tblDeprExpJune19[[#This Row],[Alloc]]=\"OR\",tblDeprExpJune19[[#This Row],[Alloc]]=\"UT\",tblDeprExpJune19[[#This Row],[Alloc]]=\"WYU\",tblDeprExpJune19[[#This Row],[Alloc]]=\"WYP\",tblDeprExpJune19[[#This Row],[Alloc]]=\"CA\",tblDeprExpJune19[[#This Row],[Alloc]]=\"WA\"),\"SITUS\",tblDeprExpJune19[[#This Row],[Alloc]])","v":"SG-P"},{"$f":"INDEX(tblDeprExpLookup[FUNC],MATCH(tblDeprExpJune19[[#This Row],[Concat]],tblDeprExpLookup[Concat],0))","v":"P"},{"$f":"IF(tblDeprExpJune19[[#This Row],[Total ($000)]]=0,\"NO\",IF(ISNA(tblDeprExpJune19[[#This Row],[FUNC]]),\"YES\",IF(_xlfn.ISFORMULA(tblDeprExpJune19[[#This Row],[FUNC]]),\"NO\",\"YES\")))","v":"NO"}]
[{"$f":"CONCATENATE(tblDeprExpJune19[[#This Row],[Primary Account]],tblDeprExpJune19[[#This Row],[Primary Name]],tblDeprExpJune19[[#This Row],[Secondary Acct]],tblDeprExpJune19[[#This Row],[Secondary  Name]],tblDeprExpJune19[[#This Row],[Alloc4Func]])","v":"4030000DEPN EXPENSE-ELECT3304000FLOOD RIGHTSSG-U"},"4030000","DEPN EXPENSE-ELECT","3304000","FLOOD RIGHTS","SG-U",3.0307499999999998,{"$f":"IF(OR(tblDeprExpJune19[[#This Row],[Alloc]]=\"IDU\",tblDeprExpJune19[[#This Row],[Alloc]]=\"OR\",tblDeprExpJune19[[#This Row],[Alloc]]=\"UT\",tblDeprExpJune19[[#This Row],[Alloc]]=\"WYU\",tblDeprExpJune19[[#This Row],[Alloc]]=\"WYP\",tblDeprExpJune19[[#This Row],[Alloc]]=\"CA\",tblDeprExpJune19[[#This Row],[Alloc]]=\"WA\"),\"SITUS\",tblDeprExpJune19[[#This Row],[Alloc]])","v":"SG-U"},{"$f":"INDEX(tblDeprExpLookup[FUNC],MATCH(tblDeprExpJune19[[#This Row],[Concat]],tblDeprExpLookup[Concat],0))","v":"P"},{"$f":"IF(tblDeprExpJune19[[#This Row],[Total ($000)]]=0,\"NO\",IF(ISNA(tblDeprExpJune19[[#This Row],[FUNC]]),\"YES\",IF(_xlfn.ISFORMULA(tblDeprExpJune19[[#This Row],[FUNC]]),\"NO\",\"YES\")))","v":"NO"}]
[{"$f":"CONCATENATE(tblDeprExpJune19[[#This Row],[Primary Account]],tblDeprExpJune19[[#This Row],[Primary Name]],tblDeprExpJune19[[#This Row],[Secondary Acct]],tblDeprExpJune19[[#This Row],[Secondary  Name]],tblDeprExpJune19[[#This Row],[Alloc4Func]])","v":"4030000DEPN EXPENSE-ELECT3305000LAND RIGHTS - FISH/WILDLIFESG-P"},"4030000","DEPN EXPENSE-ELECT","3305000","LAND RIGHTS - FISH/WILDLIFE","SG-P",1.87443,{"$f":"IF(OR(tblDeprExpJune19[[#This Row],[Alloc]]=\"IDU\",tblDeprExpJune19[[#This Row],[Alloc]]=\"OR\",tblDeprExpJune19[[#This Row],[Alloc]]=\"UT\",tblDeprExpJune19[[#This Row],[Alloc]]=\"WYU\",tblDeprExpJune19[[#This Row],[Alloc]]=\"WYP\",tblDeprExpJune19[[#This Row],[Alloc]]=\"CA\",tblDeprExpJune19[[#This Row],[Alloc]]=\"WA\"),\"SITUS\",tblDeprExpJune19[[#This Row],[Alloc]])","v":"SG-P"},{"$f":"INDEX(tblDeprExpLookup[FUNC],MATCH(tblDeprExpJune19[[#This Row],[Concat]],tblDeprExpLookup[Concat],0))","v":"P"},{"$f":"IF(tblDeprExpJune19[[#This Row],[Total ($000)]]=0,\"NO\",IF(ISNA(tblDeprExpJune19[[#This Row],[FUNC]]),\"YES\",IF(_xlfn.ISFORMULA(tblDeprExpJune19[[#This Row],[FUNC]]),\"NO\",\"YES\")))","v":"NO"}]
[{"$f":"CONCATENATE(tblDeprExpJune19[[#This Row],[Primary Account]],tblDeprExpJune19[[#This Row],[Primary Name]],tblDeprExpJune19[[#This Row],[Secondary Acct]],tblDeprExpJune19[[#This Row],[Secondary  Name]],tblDeprExpJune19[[#This Row],[Alloc4Func]])","v":"4030000DEPN EXPENSE-ELECT3310000STRUCTURES AND IMPROVESG-P"},"4030000","DEPN EXPENSE-ELECT","3310000","STRUCTURES AND IMPROVE","SG-P",0.73597999999999997,{"$f":"IF(OR(tblDeprExpJune19[[#This Row],[Alloc]]=\"IDU\",tblDeprExpJune19[[#This Row],[Alloc]]=\"OR\",tblDeprExpJune19[[#This Row],[Alloc]]=\"UT\",tblDeprExpJune19[[#This Row],[Alloc]]=\"WYU\",tblDeprExpJune19[[#This Row],[Alloc]]=\"WYP\",tblDeprExpJune19[[#This Row],[Alloc]]=\"CA\",tblDeprExpJune19[[#This Row],[Alloc]]=\"WA\"),\"SITUS\",tblDeprExpJune19[[#This Row],[Alloc]])","v":"SG-P"},{"$f":"INDEX(tblDeprExpLookup[FUNC],MATCH(tblDeprExpJune19[[#This Row],[Concat]],tblDeprExpLookup[Concat],0))","v":"P"},{"$f":"IF(tblDeprExpJune19[[#This Row],[Total ($000)]]=0,\"NO\",IF(ISNA(tblDeprExpJune19[[#This Row],[FUNC]]),\"YES\",IF(_xlfn.ISFORMULA(tblDeprExpJune19[[#This Row],[FUNC]]),\"NO\",\"YES\")))","v":"NO"}]
[{"$f":"CONCATENATE(tblDeprExpJune19[[#This Row],[Primary Account]],tblDeprExpJune19[[#This Row],[Primary Name]],tblDeprExpJune19[[#This Row],[Secondary Acct]],tblDeprExpJune19[[#This Row],[Secondary  Name]],tblDeprExpJune19[[#This Row],[Alloc4Func]])","v":"4030000DEPN EXPENSE-ELECT3310000STRUCTURES AND IMPROVESG-U"},"4030000","DEPN EXPENSE-ELECT","3310000","STRUCTURES AND IMPROVE","SG-U",258.98570000000001,{"$f":"IF(OR(tblDeprExpJune19[[#This Row],[Alloc]]=\"IDU\",tblDeprExpJune19[[#This Row],[Alloc]]=\"OR\",tblDeprExpJune19[[#This Row],[Alloc]]=\"UT\",tblDeprExpJune19[[#This Row],[Alloc]]=\"WYU\",tblDeprExpJune19[[#This Row],[Alloc]]=\"WYP\",tblDeprExpJune19[[#This Row],[Alloc]]=\"CA\",tblDeprExpJune19[[#This Row],[Alloc]]=\"WA\"),\"SITUS\",tblDeprExpJune19[[#This Row],[Alloc]])","v":"SG-U"},{"$f":"INDEX(tblDeprExpLookup[FUNC],MATCH(tblDeprExpJune19[[#This Row],[Concat]],tblDeprExpLookup[Concat],0))","v":"P"},{"$f":"IF(tblDeprExpJune19[[#This Row],[Total ($000)]]=0,\"NO\",IF(ISNA(tblDeprExpJune19[[#This Row],[FUNC]]),\"YES\",IF(_xlfn.ISFORMULA(tblDeprExpJune19[[#This Row],[FUNC]]),\"NO\",\"YES\")))","v":"NO"}]
[{"$f":"CONCATENATE(tblDeprExpJune19[[#This Row],[Primary Account]],tblDeprExpJune19[[#This Row],[Primary Name]],tblDeprExpJune19[[#This Row],[Secondary Acct]],tblDeprExpJune19[[#This Row],[Secondary  Name]],tblDeprExpJune19[[#This Row],[Alloc4Func]])","v":"4030000DEPN EXPENSE-ELECT3311000STRUCTURES AND IMPROVE-PRODUCTIONSG-P"},"4030000","DEPN EXPENSE-ELECT","3311000","STRUCTURES AND IMPROVE-PRODUCTION","SG-P",2077.2230199999999,{"$f":"IF(OR(tblDeprExpJune19[[#This Row],[Alloc]]=\"IDU\",tblDeprExpJune19[[#This Row],[Alloc]]=\"OR\",tblDeprExpJune19[[#This Row],[Alloc]]=\"UT\",tblDeprExpJune19[[#This Row],[Alloc]]=\"WYU\",tblDeprExpJune19[[#This Row],[Alloc]]=\"WYP\",tblDeprExpJune19[[#This Row],[Alloc]]=\"CA\",tblDeprExpJune19[[#This Row],[Alloc]]=\"WA\"),\"SITUS\",tblDeprExpJune19[[#This Row],[Alloc]])","v":"SG-P"},{"$f":"INDEX(tblDeprExpLookup[FUNC],MATCH(tblDeprExpJune19[[#This Row],[Concat]],tblDeprExpLookup[Concat],0))","v":"P"},{"$f":"IF(tblDeprExpJune19[[#This Row],[Total ($000)]]=0,\"NO\",IF(ISNA(tblDeprExpJune19[[#This Row],[FUNC]]),\"YES\",IF(_xlfn.ISFORMULA(tblDeprExpJune19[[#This Row],[FUNC]]),\"NO\",\"YES\")))","v":"NO"}]
[{"$f":"CONCATENATE(tblDeprExpJune19[[#This Row],[Primary Account]],tblDeprExpJune19[[#This Row],[Primary Name]],tblDeprExpJune19[[#This Row],[Secondary Acct]],tblDeprExpJune19[[#This Row],[Secondary  Name]],tblDeprExpJune19[[#This Row],[Alloc4Func]])","v":"4030000DEPN EXPENSE-ELECT3311000STRUCTURES AND IMPROVE-PRODUCTIONSG-U"},"4030000","DEPN EXPENSE-ELECT","3311000","STRUCTURES AND IMPROVE-PRODUCTION","SG-U",240.90837999999999,{"$f":"IF(OR(tblDeprExpJune19[[#This Row],[Alloc]]=\"IDU\",tblDeprExpJune19[[#This Row],[Alloc]]=\"OR\",tblDeprExpJune19[[#This Row],[Alloc]]=\"UT\",tblDeprExpJune19[[#This Row],[Alloc]]=\"WYU\",tblDeprExpJune19[[#This Row],[Alloc]]=\"WYP\",tblDeprExpJune19[[#This Row],[Alloc]]=\"CA\",tblDeprExpJune19[[#This Row],[Alloc]]=\"WA\"),\"SITUS\",tblDeprExpJune19[[#This Row],[Alloc]])","v":"SG-U"},{"$f":"INDEX(tblDeprExpLookup[FUNC],MATCH(tblDeprExpJune19[[#This Row],[Concat]],tblDeprExpLookup[Concat],0))","v":"P"},{"$f":"IF(tblDeprExpJune19[[#This Row],[Total ($000)]]=0,\"NO\",IF(ISNA(tblDeprExpJune19[[#This Row],[FUNC]]),\"YES\",IF(_xlfn.ISFORMULA(tblDeprExpJune19[[#This Row],[FUNC]]),\"NO\",\"YES\")))","v":"NO"}]
[{"$f":"CONCATENATE(tblDeprExpJune19[[#This Row],[Primary Account]],tblDeprExpJune19[[#This Row],[Primary Name]],tblDeprExpJune19[[#This Row],[Secondary Acct]],tblDeprExpJune19[[#This Row],[Secondary  Name]],tblDeprExpJune19[[#This Row],[Alloc4Func]])","v":"4030000DEPN EXPENSE-ELECT3312000STRUCTURES AND IMPROVE-FISH/WILDLIFESG-P"},"4030000","DEPN EXPENSE-ELECT","3312000","STRUCTURES AND IMPROVE-FISH/WILDLIFE","SG-P",5806.3015400000004,{"$f":"IF(OR(tblDeprExpJune19[[#This Row],[Alloc]]=\"IDU\",tblDeprExpJune19[[#This Row],[Alloc]]=\"OR\",tblDeprExpJune19[[#This Row],[Alloc]]=\"UT\",tblDeprExpJune19[[#This Row],[Alloc]]=\"WYU\",tblDeprExpJune19[[#This Row],[Alloc]]=\"WYP\",tblDeprExpJune19[[#This Row],[Alloc]]=\"CA\",tblDeprExpJune19[[#This Row],[Alloc]]=\"WA\"),\"SITUS\",tblDeprExpJune19[[#This Row],[Alloc]])","v":"SG-P"},{"$f":"INDEX(tblDeprExpLookup[FUNC],MATCH(tblDeprExpJune19[[#This Row],[Concat]],tblDeprExpLookup[Concat],0))","v":"P"},{"$f":"IF(tblDeprExpJune19[[#This Row],[Total ($000)]]=0,\"NO\",IF(ISNA(tblDeprExpJune19[[#This Row],[FUNC]]),\"YES\",IF(_xlfn.ISFORMULA(tblDeprExpJune19[[#This Row],[FUNC]]),\"NO\",\"YES\")))","v":"NO"}]
[{"$f":"CONCATENATE(tblDeprExpJune19[[#This Row],[Primary Account]],tblDeprExpJune19[[#This Row],[Primary Name]],tblDeprExpJune19[[#This Row],[Secondary Acct]],tblDeprExpJune19[[#This Row],[Secondary  Name]],tblDeprExpJune19[[#This Row],[Alloc4Func]])","v":"4030000DEPN EXPENSE-ELECT3312000STRUCTURES AND IMPROVE-FISH/WILDLIFESG-U"},"4030000","DEPN EXPENSE-ELECT","3312000","STRUCTURES AND IMPROVE-FISH/WILDLIFE","SG-U",12.13646,{"$f":"IF(OR(tblDeprExpJune19[[#This Row],[Alloc]]=\"IDU\",tblDeprExpJune19[[#This Row],[Alloc]]=\"OR\",tblDeprExpJune19[[#This Row],[Alloc]]=\"UT\",tblDeprExpJune19[[#This Row],[Alloc]]=\"WYU\",tblDeprExpJune19[[#This Row],[Alloc]]=\"WYP\",tblDeprExpJune19[[#This Row],[Alloc]]=\"CA\",tblDeprExpJune19[[#This Row],[Alloc]]=\"WA\"),\"SITUS\",tblDeprExpJune19[[#This Row],[Alloc]])","v":"SG-U"},{"$f":"INDEX(tblDeprExpLookup[FUNC],MATCH(tblDeprExpJune19[[#This Row],[Concat]],tblDeprExpLookup[Concat],0))","v":"P"},{"$f":"IF(tblDeprExpJune19[[#This Row],[Total ($000)]]=0,\"NO\",IF(ISNA(tblDeprExpJune19[[#This Row],[FUNC]]),\"YES\",IF(_xlfn.ISFORMULA(tblDeprExpJune19[[#This Row],[FUNC]]),\"NO\",\"YES\")))","v":"NO"}]
[{"$f":"CONCATENATE(tblDeprExpJune19[[#This Row],[Primary Account]],tblDeprExpJune19[[#This Row],[Primary Name]],tblDeprExpJune19[[#This Row],[Secondary Acct]],tblDeprExpJune19[[#This Row],[Secondary  Name]],tblDeprExpJune19[[#This Row],[Alloc4Func]])","v":"4030000DEPN EXPENSE-ELECT3313000STRUCTURES AND IMPROVE-RECREATIONSG-P"},"4030000","DEPN EXPENSE-ELECT","3313000","STRUCTURES AND IMPROVE-RECREATION","SG-P",555.52065000000005,{"$f":"IF(OR(tblDeprExpJune19[[#This Row],[Alloc]]=\"IDU\",tblDeprExpJune19[[#This Row],[Alloc]]=\"OR\",tblDeprExpJune19[[#This Row],[Alloc]]=\"UT\",tblDeprExpJune19[[#This Row],[Alloc]]=\"WYU\",tblDeprExpJune19[[#This Row],[Alloc]]=\"WYP\",tblDeprExpJune19[[#This Row],[Alloc]]=\"CA\",tblDeprExpJune19[[#This Row],[Alloc]]=\"WA\"),\"SITUS\",tblDeprExpJune19[[#This Row],[Alloc]])","v":"SG-P"},{"$f":"INDEX(tblDeprExpLookup[FUNC],MATCH(tblDeprExpJune19[[#This Row],[Concat]],tblDeprExpLookup[Concat],0))","v":"P"},{"$f":"IF(tblDeprExpJune19[[#This Row],[Total ($000)]]=0,\"NO\",IF(ISNA(tblDeprExpJune19[[#This Row],[FUNC]]),\"YES\",IF(_xlfn.ISFORMULA(tblDeprExpJune19[[#This Row],[FUNC]]),\"NO\",\"YES\")))","v":"NO"}]
[{"$f":"CONCATENATE(tblDeprExpJune19[[#This Row],[Primary Account]],tblDeprExpJune19[[#This Row],[Primary Name]],tblDeprExpJune19[[#This Row],[Secondary Acct]],tblDeprExpJune19[[#This Row],[Secondary  Name]],tblDeprExpJune19[[#This Row],[Alloc4Func]])","v":"4030000DEPN EXPENSE-ELECT3313000STRUCTURES AND IMPROVE-RECREATIONSG-U"},"4030000","DEPN EXPENSE-ELECT","3313000","STRUCTURES AND IMPROVE-RECREATION","SG-U",98.000439999999998,{"$f":"IF(OR(tblDeprExpJune19[[#This Row],[Alloc]]=\"IDU\",tblDeprExpJune19[[#This Row],[Alloc]]=\"OR\",tblDeprExpJune19[[#This Row],[Alloc]]=\"UT\",tblDeprExpJune19[[#This Row],[Alloc]]=\"WYU\",tblDeprExpJune19[[#This Row],[Alloc]]=\"WYP\",tblDeprExpJune19[[#This Row],[Alloc]]=\"CA\",tblDeprExpJune19[[#This Row],[Alloc]]=\"WA\"),\"SITUS\",tblDeprExpJune19[[#This Row],[Alloc]])","v":"SG-U"},{"$f":"INDEX(tblDeprExpLookup[FUNC],MATCH(tblDeprExpJune19[[#This Row],[Concat]],tblDeprExpLookup[Concat],0))","v":"P"},{"$f":"IF(tblDeprExpJune19[[#This Row],[Total ($000)]]=0,\"NO\",IF(ISNA(tblDeprExpJune19[[#This Row],[FUNC]]),\"YES\",IF(_xlfn.ISFORMULA(tblDeprExpJune19[[#This Row],[FUNC]]),\"NO\",\"YES\")))","v":"NO"}]
[{"$f":"CONCATENATE(tblDeprExpJune19[[#This Row],[Primary Account]],tblDeprExpJune19[[#This Row],[Primary Name]],tblDeprExpJune19[[#This Row],[Secondary Acct]],tblDeprExpJune19[[#This Row],[Secondary  Name]],tblDeprExpJune19[[#This Row],[Alloc4Func]])","v":"4030000DEPN EXPENSE-ELECT3320000\"RESERVOIRS, DAMS & WATERWAYS\"SG-P"},"4030000","DEPN EXPENSE-ELECT","3320000","\"RESERVOIRS, DAMS & WATERWAYS\"","SG-P",86.801329999999993,{"$f":"IF(OR(tblDeprExpJune19[[#This Row],[Alloc]]=\"IDU\",tblDeprExpJune19[[#This Row],[Alloc]]=\"OR\",tblDeprExpJune19[[#This Row],[Alloc]]=\"UT\",tblDeprExpJune19[[#This Row],[Alloc]]=\"WYU\",tblDeprExpJune19[[#This Row],[Alloc]]=\"WYP\",tblDeprExpJune19[[#This Row],[Alloc]]=\"CA\",tblDeprExpJune19[[#This Row],[Alloc]]=\"WA\"),\"SITUS\",tblDeprExpJune19[[#This Row],[Alloc]])","v":"SG-P"},{"$f":"INDEX(tblDeprExpLookup[FUNC],MATCH(tblDeprExpJune19[[#This Row],[Concat]],tblDeprExpLookup[Concat],0))","v":"P"},{"$f":"IF(tblDeprExpJune19[[#This Row],[Total ($000)]]=0,\"NO\",IF(ISNA(tblDeprExpJune19[[#This Row],[FUNC]]),\"YES\",IF(_xlfn.ISFORMULA(tblDeprExpJune19[[#This Row],[FUNC]]),\"NO\",\"YES\")))","v":"NO"}]
[{"$f":"CONCATENATE(tblDeprExpJune19[[#This Row],[Primary Account]],tblDeprExpJune19[[#This Row],[Primary Name]],tblDeprExpJune19[[#This Row],[Secondary Acct]],tblDeprExpJune19[[#This Row],[Secondary  Name]],tblDeprExpJune19[[#This Row],[Alloc4Func]])","v":"4030000DEPN EXPENSE-ELECT3320000\"RESERVOIRS, DAMS & WATERWAYS\"SG-U"},"4030000","DEPN EXPENSE-ELECT","3320000","\"RESERVOIRS, DAMS & WATERWAYS\"","SG-U",889.80484999999999,{"$f":"IF(OR(tblDeprExpJune19[[#This Row],[Alloc]]=\"IDU\",tblDeprExpJune19[[#This Row],[Alloc]]=\"OR\",tblDeprExpJune19[[#This Row],[Alloc]]=\"UT\",tblDeprExpJune19[[#This Row],[Alloc]]=\"WYU\",tblDeprExpJune19[[#This Row],[Alloc]]=\"WYP\",tblDeprExpJune19[[#This Row],[Alloc]]=\"CA\",tblDeprExpJune19[[#This Row],[Alloc]]=\"WA\"),\"SITUS\",tblDeprExpJune19[[#This Row],[Alloc]])","v":"SG-U"},{"$f":"INDEX(tblDeprExpLookup[FUNC],MATCH(tblDeprExpJune19[[#This Row],[Concat]],tblDeprExpLookup[Concat],0))","v":"P"},{"$f":"IF(tblDeprExpJune19[[#This Row],[Total ($000)]]=0,\"NO\",IF(ISNA(tblDeprExpJune19[[#This Row],[FUNC]]),\"YES\",IF(_xlfn.ISFORMULA(tblDeprExpJune19[[#This Row],[FUNC]]),\"NO\",\"YES\")))","v":"NO"}]
[{"$f":"CONCATENATE(tblDeprExpJune19[[#This Row],[Primary Account]],tblDeprExpJune19[[#This Row],[Primary Name]],tblDeprExpJune19[[#This Row],[Secondary Acct]],tblDeprExpJune19[[#This Row],[Secondary  Name]],tblDeprExpJune19[[#This Row],[Alloc4Func]])","v":"4030000DEPN EXPENSE-ELECT3321000\"RESERVOIRS, DAMS, & WTRWYS-PRODUCTION\"SG-P"},"4030000","DEPN EXPENSE-ELECT","3321000","\"RESERVOIRS, DAMS, & WTRWYS-PRODUCTION\"","SG-P",13145.50692,{"$f":"IF(OR(tblDeprExpJune19[[#This Row],[Alloc]]=\"IDU\",tblDeprExpJune19[[#This Row],[Alloc]]=\"OR\",tblDeprExpJune19[[#This Row],[Alloc]]=\"UT\",tblDeprExpJune19[[#This Row],[Alloc]]=\"WYU\",tblDeprExpJune19[[#This Row],[Alloc]]=\"WYP\",tblDeprExpJune19[[#This Row],[Alloc]]=\"CA\",tblDeprExpJune19[[#This Row],[Alloc]]=\"WA\"),\"SITUS\",tblDeprExpJune19[[#This Row],[Alloc]])","v":"SG-P"},{"$f":"INDEX(tblDeprExpLookup[FUNC],MATCH(tblDeprExpJune19[[#This Row],[Concat]],tblDeprExpLookup[Concat],0))","v":"P"},{"$f":"IF(tblDeprExpJune19[[#This Row],[Total ($000)]]=0,\"NO\",IF(ISNA(tblDeprExpJune19[[#This Row],[FUNC]]),\"YES\",IF(_xlfn.ISFORMULA(tblDeprExpJune19[[#This Row],[FUNC]]),\"NO\",\"YES\")))","v":"NO"}]
[{"$f":"CONCATENATE(tblDeprExpJune19[[#This Row],[Primary Account]],tblDeprExpJune19[[#This Row],[Primary Name]],tblDeprExpJune19[[#This Row],[Secondary Acct]],tblDeprExpJune19[[#This Row],[Secondary  Name]],tblDeprExpJune19[[#This Row],[Alloc4Func]])","v":"4030000DEPN EXPENSE-ELECT3321000\"RESERVOIRS, DAMS, & WTRWYS-PRODUCTION\"SG-U"},"4030000","DEPN EXPENSE-ELECT","3321000","\"RESERVOIRS, DAMS, & WTRWYS-PRODUCTION\"","SG-U",3230.0842600000001,{"$f":"IF(OR(tblDeprExpJune19[[#This Row],[Alloc]]=\"IDU\",tblDeprExpJune19[[#This Row],[Alloc]]=\"OR\",tblDeprExpJune19[[#This Row],[Alloc]]=\"UT\",tblDeprExpJune19[[#This Row],[Alloc]]=\"WYU\",tblDeprExpJune19[[#This Row],[Alloc]]=\"WYP\",tblDeprExpJune19[[#This Row],[Alloc]]=\"CA\",tblDeprExpJune19[[#This Row],[Alloc]]=\"WA\"),\"SITUS\",tblDeprExpJune19[[#This Row],[Alloc]])","v":"SG-U"},{"$f":"INDEX(tblDeprExpLookup[FUNC],MATCH(tblDeprExpJune19[[#This Row],[Concat]],tblDeprExpLookup[Concat],0))","v":"P"},{"$f":"IF(tblDeprExpJune19[[#This Row],[Total ($000)]]=0,\"NO\",IF(ISNA(tblDeprExpJune19[[#This Row],[FUNC]]),\"YES\",IF(_xlfn.ISFORMULA(tblDeprExpJune19[[#This Row],[FUNC]]),\"NO\",\"YES\")))","v":"NO"}]
[{"$f":"CONCATENATE(tblDeprExpJune19[[#This Row],[Primary Account]],tblDeprExpJune19[[#This Row],[Primary Name]],tblDeprExpJune19[[#This Row],[Secondary Acct]],tblDeprExpJune19[[#This Row],[Secondary  Name]],tblDeprExpJune19[[#This Row],[Alloc4Func]])","v":"4030000DEPN EXPENSE-ELECT3322000\"RESERVOIRS, DAMS, & WTRWYS-FISH/WILDLIFSG-P"},"4030000","DEPN EXPENSE-ELECT","3322000","\"RESERVOIRS, DAMS, & WTRWYS-FISH/WILDLIF","SG-P",2727.7239300000001,{"$f":"IF(OR(tblDeprExpJune19[[#This Row],[Alloc]]=\"IDU\",tblDeprExpJune19[[#This Row],[Alloc]]=\"OR\",tblDeprExpJune19[[#This Row],[Alloc]]=\"UT\",tblDeprExpJune19[[#This Row],[Alloc]]=\"WYU\",tblDeprExpJune19[[#This Row],[Alloc]]=\"WYP\",tblDeprExpJune19[[#This Row],[Alloc]]=\"CA\",tblDeprExpJune19[[#This Row],[Alloc]]=\"WA\"),\"SITUS\",tblDeprExpJune19[[#This Row],[Alloc]])","v":"SG-P"},{"$f":"INDEX(tblDeprExpLookup[FUNC],MATCH(tblDeprExpJune19[[#This Row],[Concat]],tblDeprExpLookup[Concat],0))","v":"P"},{"$f":"IF(tblDeprExpJune19[[#This Row],[Total ($000)]]=0,\"NO\",IF(ISNA(tblDeprExpJune19[[#This Row],[FUNC]]),\"YES\",IF(_xlfn.ISFORMULA(tblDeprExpJune19[[#This Row],[FUNC]]),\"NO\",\"YES\")))","v":"NO"}]
[{"$f":"CONCATENATE(tblDeprExpJune19[[#This Row],[Primary Account]],tblDeprExpJune19[[#This Row],[Primary Name]],tblDeprExpJune19[[#This Row],[Secondary Acct]],tblDeprExpJune19[[#This Row],[Secondary  Name]],tblDeprExpJune19[[#This Row],[Alloc4Func]])","v":"4030000DEPN EXPENSE-ELECT3322000\"RESERVOIRS, DAMS, & WTRWYS-FISH/WILDLIFSG-U"},"4030000","DEPN EXPENSE-ELECT","3322000","\"RESERVOIRS, DAMS, & WTRWYS-FISH/WILDLIF","SG-U",13.013339999999999,{"$f":"IF(OR(tblDeprExpJune19[[#This Row],[Alloc]]=\"IDU\",tblDeprExpJune19[[#This Row],[Alloc]]=\"OR\",tblDeprExpJune19[[#This Row],[Alloc]]=\"UT\",tblDeprExpJune19[[#This Row],[Alloc]]=\"WYU\",tblDeprExpJune19[[#This Row],[Alloc]]=\"WYP\",tblDeprExpJune19[[#This Row],[Alloc]]=\"CA\",tblDeprExpJune19[[#This Row],[Alloc]]=\"WA\"),\"SITUS\",tblDeprExpJune19[[#This Row],[Alloc]])","v":"SG-U"},{"$f":"INDEX(tblDeprExpLookup[FUNC],MATCH(tblDeprExpJune19[[#This Row],[Concat]],tblDeprExpLookup[Concat],0))","v":"P"},{"$f":"IF(tblDeprExpJune19[[#This Row],[Total ($000)]]=0,\"NO\",IF(ISNA(tblDeprExpJune19[[#This Row],[FUNC]]),\"YES\",IF(_xlfn.ISFORMULA(tblDeprExpJune19[[#This Row],[FUNC]]),\"NO\",\"YES\")))","v":"NO"}]
[{"$f":"CONCATENATE(tblDeprExpJune19[[#This Row],[Primary Account]],tblDeprExpJune19[[#This Row],[Primary Name]],tblDeprExpJune19[[#This Row],[Secondary Acct]],tblDeprExpJune19[[#This Row],[Secondary  Name]],tblDeprExpJune19[[#This Row],[Alloc4Func]])","v":"4030000DEPN EXPENSE-ELECT3323000\"RESERVOIRS, DAMS, & WTRWYS-RECREATION\"SG-P"},"4030000","DEPN EXPENSE-ELECT","3323000","\"RESERVOIRS, DAMS, & WTRWYS-RECREATION\"","SG-P",3.6333299999999999,{"$f":"IF(OR(tblDeprExpJune19[[#This Row],[Alloc]]=\"IDU\",tblDeprExpJune19[[#This Row],[Alloc]]=\"OR\",tblDeprExpJune19[[#This Row],[Alloc]]=\"UT\",tblDeprExpJune19[[#This Row],[Alloc]]=\"WYU\",tblDeprExpJune19[[#This Row],[Alloc]]=\"WYP\",tblDeprExpJune19[[#This Row],[Alloc]]=\"CA\",tblDeprExpJune19[[#This Row],[Alloc]]=\"WA\"),\"SITUS\",tblDeprExpJune19[[#This Row],[Alloc]])","v":"SG-P"},{"$f":"INDEX(tblDeprExpLookup[FUNC],MATCH(tblDeprExpJune19[[#This Row],[Concat]],tblDeprExpLookup[Concat],0))","v":"P"},{"$f":"IF(tblDeprExpJune19[[#This Row],[Total ($000)]]=0,\"NO\",IF(ISNA(tblDeprExpJune19[[#This Row],[FUNC]]),\"YES\",IF(_xlfn.ISFORMULA(tblDeprExpJune19[[#This Row],[FUNC]]),\"NO\",\"YES\")))","v":"NO"}]
[{"$f":"CONCATENATE(tblDeprExpJune19[[#This Row],[Primary Account]],tblDeprExpJune19[[#This Row],[Primary Name]],tblDeprExpJune19[[#This Row],[Secondary Acct]],tblDeprExpJune19[[#This Row],[Secondary  Name]],tblDeprExpJune19[[#This Row],[Alloc4Func]])","v":"4030000DEPN EXPENSE-ELECT3323000\"RESERVOIRS, DAMS, & WTRWYS-RECREATION\"SG-U"},"4030000","DEPN EXPENSE-ELECT","3323000","\"RESERVOIRS, DAMS, & WTRWYS-RECREATION\"","SG-U",3.17639,{"$f":"IF(OR(tblDeprExpJune19[[#This Row],[Alloc]]=\"IDU\",tblDeprExpJune19[[#This Row],[Alloc]]=\"OR\",tblDeprExpJune19[[#This Row],[Alloc]]=\"UT\",tblDeprExpJune19[[#This Row],[Alloc]]=\"WYU\",tblDeprExpJune19[[#This Row],[Alloc]]=\"WYP\",tblDeprExpJune19[[#This Row],[Alloc]]=\"CA\",tblDeprExpJune19[[#This Row],[Alloc]]=\"WA\"),\"SITUS\",tblDeprExpJune19[[#This Row],[Alloc]])","v":"SG-U"},{"$f":"INDEX(tblDeprExpLookup[FUNC],MATCH(tblDeprExpJune19[[#This Row],[Concat]],tblDeprExpLookup[Concat],0))","v":"P"},{"$f":"IF(tblDeprExpJune19[[#This Row],[Total ($000)]]=0,\"NO\",IF(ISNA(tblDeprExpJune19[[#This Row],[FUNC]]),\"YES\",IF(_xlfn.ISFORMULA(tblDeprExpJune19[[#This Row],[FUNC]]),\"NO\",\"YES\")))","v":"NO"}]
[{"$f":"CONCATENATE(tblDeprExpJune19[[#This Row],[Primary Account]],tblDeprExpJune19[[#This Row],[Primary Name]],tblDeprExpJune19[[#This Row],[Secondary Acct]],tblDeprExpJune19[[#This Row],[Secondary  Name]],tblDeprExpJune19[[#This Row],[Alloc4Func]])","v":"4030000DEPN EXPENSE-ELECT3330000\"WATER WHEELS, TURB & GENERATORS\"SG-P"},"4030000","DEPN EXPENSE-ELECT","3330000","\"WATER WHEELS, TURB & GENERATORS\"","SG-P",2535.4767200000001,{"$f":"IF(OR(tblDeprExpJune19[[#This Row],[Alloc]]=\"IDU\",tblDeprExpJune19[[#This Row],[Alloc]]=\"OR\",tblDeprExpJune19[[#This Row],[Alloc]]=\"UT\",tblDeprExpJune19[[#This Row],[Alloc]]=\"WYU\",tblDeprExpJune19[[#This Row],[Alloc]]=\"WYP\",tblDeprExpJune19[[#This Row],[Alloc]]=\"CA\",tblDeprExpJune19[[#This Row],[Alloc]]=\"WA\"),\"SITUS\",tblDeprExpJune19[[#This Row],[Alloc]])","v":"SG-P"},{"$f":"INDEX(tblDeprExpLookup[FUNC],MATCH(tblDeprExpJune19[[#This Row],[Concat]],tblDeprExpLookup[Concat],0))","v":"P"},{"$f":"IF(tblDeprExpJune19[[#This Row],[Total ($000)]]=0,\"NO\",IF(ISNA(tblDeprExpJune19[[#This Row],[FUNC]]),\"YES\",IF(_xlfn.ISFORMULA(tblDeprExpJune19[[#This Row],[FUNC]]),\"NO\",\"YES\")))","v":"NO"}]
[{"$f":"CONCATENATE(tblDeprExpJune19[[#This Row],[Primary Account]],tblDeprExpJune19[[#This Row],[Primary Name]],tblDeprExpJune19[[#This Row],[Secondary Acct]],tblDeprExpJune19[[#This Row],[Secondary  Name]],tblDeprExpJune19[[#This Row],[Alloc4Func]])","v":"4030000DEPN EXPENSE-ELECT3330000\"WATER WHEELS, TURB & GENERATORS\"SG-U"},"4030000","DEPN EXPENSE-ELECT","3330000","\"WATER WHEELS, TURB & GENERATORS\"","SG-U",2055.0659300000002,{"$f":"IF(OR(tblDeprExpJune19[[#This Row],[Alloc]]=\"IDU\",tblDeprExpJune19[[#This Row],[Alloc]]=\"OR\",tblDeprExpJune19[[#This Row],[Alloc]]=\"UT\",tblDeprExpJune19[[#This Row],[Alloc]]=\"WYU\",tblDeprExpJune19[[#This Row],[Alloc]]=\"WYP\",tblDeprExpJune19[[#This Row],[Alloc]]=\"CA\",tblDeprExpJune19[[#This Row],[Alloc]]=\"WA\"),\"SITUS\",tblDeprExpJune19[[#This Row],[Alloc]])","v":"SG-U"},{"$f":"INDEX(tblDeprExpLookup[FUNC],MATCH(tblDeprExpJune19[[#This Row],[Concat]],tblDeprExpLookup[Concat],0))","v":"P"},{"$f":"IF(tblDeprExpJune19[[#This Row],[Total ($000)]]=0,\"NO\",IF(ISNA(tblDeprExpJune19[[#This Row],[FUNC]]),\"YES\",IF(_xlfn.ISFORMULA(tblDeprExpJune19[[#This Row],[FUNC]]),\"NO\",\"YES\")))","v":"NO"}]
[{"$f":"CONCATENATE(tblDeprExpJune19[[#This Row],[Primary Account]],tblDeprExpJune19[[#This Row],[Primary Name]],tblDeprExpJune19[[#This Row],[Secondary Acct]],tblDeprExpJune19[[#This Row],[Secondary  Name]],tblDeprExpJune19[[#This Row],[Alloc4Func]])","v":"4030000DEPN EXPENSE-ELECT3340000ACCESSORY ELECTRIC EQUIPMENTSG-P"},"4030000","DEPN EXPENSE-ELECT","3340000","ACCESSORY ELECTRIC EQUIPMENT","SG-P",2669.9101099999998,{"$f":"IF(OR(tblDeprExpJune19[[#This Row],[Alloc]]=\"IDU\",tblDeprExpJune19[[#This Row],[Alloc]]=\"OR\",tblDeprExpJune19[[#This Row],[Alloc]]=\"UT\",tblDeprExpJune19[[#This Row],[Alloc]]=\"WYU\",tblDeprExpJune19[[#This Row],[Alloc]]=\"WYP\",tblDeprExpJune19[[#This Row],[Alloc]]=\"CA\",tblDeprExpJune19[[#This Row],[Alloc]]=\"WA\"),\"SITUS\",tblDeprExpJune19[[#This Row],[Alloc]])","v":"SG-P"},{"$f":"INDEX(tblDeprExpLookup[FUNC],MATCH(tblDeprExpJune19[[#This Row],[Concat]],tblDeprExpLookup[Concat],0))","v":"P"},{"$f":"IF(tblDeprExpJune19[[#This Row],[Total ($000)]]=0,\"NO\",IF(ISNA(tblDeprExpJune19[[#This Row],[FUNC]]),\"YES\",IF(_xlfn.ISFORMULA(tblDeprExpJune19[[#This Row],[FUNC]]),\"NO\",\"YES\")))","v":"NO"}]
[{"$f":"CONCATENATE(tblDeprExpJune19[[#This Row],[Primary Account]],tblDeprExpJune19[[#This Row],[Primary Name]],tblDeprExpJune19[[#This Row],[Secondary Acct]],tblDeprExpJune19[[#This Row],[Secondary  Name]],tblDeprExpJune19[[#This Row],[Alloc4Func]])","v":"4030000DEPN EXPENSE-ELECT3340000ACCESSORY ELECTRIC EQUIPMENTSG-U"},"4030000","DEPN EXPENSE-ELECT","3340000","ACCESSORY ELECTRIC EQUIPMENT","SG-U",652.20980999999995,{"$f":"IF(OR(tblDeprExpJune19[[#This Row],[Alloc]]=\"IDU\",tblDeprExpJune19[[#This Row],[Alloc]]=\"OR\",tblDeprExpJune19[[#This Row],[Alloc]]=\"UT\",tblDeprExpJune19[[#This Row],[Alloc]]=\"WYU\",tblDeprExpJune19[[#This Row],[Alloc]]=\"WYP\",tblDeprExpJune19[[#This Row],[Alloc]]=\"CA\",tblDeprExpJune19[[#This Row],[Alloc]]=\"WA\"),\"SITUS\",tblDeprExpJune19[[#This Row],[Alloc]])","v":"SG-U"},{"$f":"INDEX(tblDeprExpLookup[FUNC],MATCH(tblDeprExpJune19[[#This Row],[Concat]],tblDeprExpLookup[Concat],0))","v":"P"},{"$f":"IF(tblDeprExpJune19[[#This Row],[Total ($000)]]=0,\"NO\",IF(ISNA(tblDeprExpJune19[[#This Row],[FUNC]]),\"YES\",IF(_xlfn.ISFORMULA(tblDeprExpJune19[[#This Row],[FUNC]]),\"NO\",\"YES\")))","v":"NO"}]
[{"$f":"CONCATENATE(tblDeprExpJune19[[#This Row],[Primary Account]],tblDeprExpJune19[[#This Row],[Primary Name]],tblDeprExpJune19[[#This Row],[Secondary Acct]],tblDeprExpJune19[[#This Row],[Secondary  Name]],tblDeprExpJune19[[#This Row],[Alloc4Func]])","v":"4030000DEPN EXPENSE-ELECT3347000ACCESSORY ELECT EQUIP - SUPV & ALARMSG-P"},"4030000","DEPN EXPENSE-ELECT","3347000","ACCESSORY ELECT EQUIP - SUPV & ALARM","SG-P",-106.63538,{"$f":"IF(OR(tblDeprExpJune19[[#This Row],[Alloc]]=\"IDU\",tblDeprExpJune19[[#This Row],[Alloc]]=\"OR\",tblDeprExpJune19[[#This Row],[Alloc]]=\"UT\",tblDeprExpJune19[[#This Row],[Alloc]]=\"WYU\",tblDeprExpJune19[[#This Row],[Alloc]]=\"WYP\",tblDeprExpJune19[[#This Row],[Alloc]]=\"CA\",tblDeprExpJune19[[#This Row],[Alloc]]=\"WA\"),\"SITUS\",tblDeprExpJune19[[#This Row],[Alloc]])","v":"SG-P"},{"$f":"INDEX(tblDeprExpLookup[FUNC],MATCH(tblDeprExpJune19[[#This Row],[Concat]],tblDeprExpLookup[Concat],0))","v":"P"},{"$f":"IF(tblDeprExpJune19[[#This Row],[Total ($000)]]=0,\"NO\",IF(ISNA(tblDeprExpJune19[[#This Row],[FUNC]]),\"YES\",IF(_xlfn.ISFORMULA(tblDeprExpJune19[[#This Row],[FUNC]]),\"NO\",\"YES\")))","v":"NO"}]
[{"$f":"CONCATENATE(tblDeprExpJune19[[#This Row],[Primary Account]],tblDeprExpJune19[[#This Row],[Primary Name]],tblDeprExpJune19[[#This Row],[Secondary Acct]],tblDeprExpJune19[[#This Row],[Secondary  Name]],tblDeprExpJune19[[#This Row],[Alloc4Func]])","v":"4030000DEPN EXPENSE-ELECT3347000ACCESSORY ELECT EQUIP - SUPV & ALARMSG-U"},"4030000","DEPN EXPENSE-ELECT","3347000","ACCESSORY ELECT EQUIP - SUPV & ALARM","SG-U",2.3988999999999998,{"$f":"IF(OR(tblDeprExpJune19[[#This Row],[Alloc]]=\"IDU\",tblDeprExpJune19[[#This Row],[Alloc]]=\"OR\",tblDeprExpJune19[[#This Row],[Alloc]]=\"UT\",tblDeprExpJune19[[#This Row],[Alloc]]=\"WYU\",tblDeprExpJune19[[#This Row],[Alloc]]=\"WYP\",tblDeprExpJune19[[#This Row],[Alloc]]=\"CA\",tblDeprExpJune19[[#This Row],[Alloc]]=\"WA\"),\"SITUS\",tblDeprExpJune19[[#This Row],[Alloc]])","v":"SG-U"},{"$f":"INDEX(tblDeprExpLookup[FUNC],MATCH(tblDeprExpJune19[[#This Row],[Concat]],tblDeprExpLookup[Concat],0))","v":"P"},{"$f":"IF(tblDeprExpJune19[[#This Row],[Total ($000)]]=0,\"NO\",IF(ISNA(tblDeprExpJune19[[#This Row],[FUNC]]),\"YES\",IF(_xlfn.ISFORMULA(tblDeprExpJune19[[#This Row],[FUNC]]),\"NO\",\"YES\")))","v":"NO"}]
[{"$f":"CONCATENATE(tblDeprExpJune19[[#This Row],[Primary Account]],tblDeprExpJune19[[#This Row],[Primary Name]],tblDeprExpJune19[[#This Row],[Secondary Acct]],tblDeprExpJune19[[#This Row],[Secondary  Name]],tblDeprExpJune19[[#This Row],[Alloc4Func]])","v":"4030000DEPN EXPENSE-ELECT3350000MISC POWER PLANT EQUIPSG-U"},"4030000","DEPN EXPENSE-ELECT","3350000","MISC POWER PLANT EQUIP","SG-U",5.2705099999999998,{"$f":"IF(OR(tblDeprExpJune19[[#This Row],[Alloc]]=\"IDU\",tblDeprExpJune19[[#This Row],[Alloc]]=\"OR\",tblDeprExpJune19[[#This Row],[Alloc]]=\"UT\",tblDeprExpJune19[[#This Row],[Alloc]]=\"WYU\",tblDeprExpJune19[[#This Row],[Alloc]]=\"WYP\",tblDeprExpJune19[[#This Row],[Alloc]]=\"CA\",tblDeprExpJune19[[#This Row],[Alloc]]=\"WA\"),\"SITUS\",tblDeprExpJune19[[#This Row],[Alloc]])","v":"SG-U"},{"$f":"INDEX(tblDeprExpLookup[FUNC],MATCH(tblDeprExpJune19[[#This Row],[Concat]],tblDeprExpLookup[Concat],0))","v":"P"},{"$f":"IF(tblDeprExpJune19[[#This Row],[Total ($000)]]=0,\"NO\",IF(ISNA(tblDeprExpJune19[[#This Row],[FUNC]]),\"YES\",IF(_xlfn.ISFORMULA(tblDeprExpJune19[[#This Row],[FUNC]]),\"NO\",\"YES\")))","v":"NO"}]
[{"$f":"CONCATENATE(tblDeprExpJune19[[#This Row],[Primary Account]],tblDeprExpJune19[[#This Row],[Primary Name]],tblDeprExpJune19[[#This Row],[Secondary Acct]],tblDeprExpJune19[[#This Row],[Secondary  Name]],tblDeprExpJune19[[#This Row],[Alloc4Func]])","v":"4030000DEPN EXPENSE-ELECT3351000MISC POWER PLANT EQUIP - PRODUCTIONSG-P"},"4030000","DEPN EXPENSE-ELECT","3351000","MISC POWER PLANT EQUIP - PRODUCTION","SG-P",49.949590000000001,{"$f":"IF(OR(tblDeprExpJune19[[#This Row],[Alloc]]=\"IDU\",tblDeprExpJune19[[#This Row],[Alloc]]=\"OR\",tblDeprExpJune19[[#This Row],[Alloc]]=\"UT\",tblDeprExpJune19[[#This Row],[Alloc]]=\"WYU\",tblDeprExpJune19[[#This Row],[Alloc]]=\"WYP\",tblDeprExpJune19[[#This Row],[Alloc]]=\"CA\",tblDeprExpJune19[[#This Row],[Alloc]]=\"WA\"),\"SITUS\",tblDeprExpJune19[[#This Row],[Alloc]])","v":"SG-P"},{"$f":"INDEX(tblDeprExpLookup[FUNC],MATCH(tblDeprExpJune19[[#This Row],[Concat]],tblDeprExpLookup[Concat],0))","v":"P"},{"$f":"IF(tblDeprExpJune19[[#This Row],[Total ($000)]]=0,\"NO\",IF(ISNA(tblDeprExpJune19[[#This Row],[FUNC]]),\"YES\",IF(_xlfn.ISFORMULA(tblDeprExpJune19[[#This Row],[FUNC]]),\"NO\",\"YES\")))","v":"NO"}]
[{"$f":"CONCATENATE(tblDeprExpJune19[[#This Row],[Primary Account]],tblDeprExpJune19[[#This Row],[Primary Name]],tblDeprExpJune19[[#This Row],[Secondary Acct]],tblDeprExpJune19[[#This Row],[Secondary  Name]],tblDeprExpJune19[[#This Row],[Alloc4Func]])","v":"4030000DEPN EXPENSE-ELECT3360000\"ROADS, RAILROADS & BRIDGES\"SG-P"},"4030000","DEPN EXPENSE-ELECT","3360000","\"ROADS, RAILROADS & BRIDGES\"","SG-P",764.57245,{"$f":"IF(OR(tblDeprExpJune19[[#This Row],[Alloc]]=\"IDU\",tblDeprExpJune19[[#This Row],[Alloc]]=\"OR\",tblDeprExpJune19[[#This Row],[Alloc]]=\"UT\",tblDeprExpJune19[[#This Row],[Alloc]]=\"WYU\",tblDeprExpJune19[[#This Row],[Alloc]]=\"WYP\",tblDeprExpJune19[[#This Row],[Alloc]]=\"CA\",tblDeprExpJune19[[#This Row],[Alloc]]=\"WA\"),\"SITUS\",tblDeprExpJune19[[#This Row],[Alloc]])","v":"SG-P"},{"$f":"INDEX(tblDeprExpLookup[FUNC],MATCH(tblDeprExpJune19[[#This Row],[Concat]],tblDeprExpLookup[Concat],0))","v":"P"},{"$f":"IF(tblDeprExpJune19[[#This Row],[Total ($000)]]=0,\"NO\",IF(ISNA(tblDeprExpJune19[[#This Row],[FUNC]]),\"YES\",IF(_xlfn.ISFORMULA(tblDeprExpJune19[[#This Row],[FUNC]]),\"NO\",\"YES\")))","v":"NO"}]
[{"$f":"CONCATENATE(tblDeprExpJune19[[#This Row],[Primary Account]],tblDeprExpJune19[[#This Row],[Primary Name]],tblDeprExpJune19[[#This Row],[Secondary Acct]],tblDeprExpJune19[[#This Row],[Secondary  Name]],tblDeprExpJune19[[#This Row],[Alloc4Func]])","v":"4030000DEPN EXPENSE-ELECT3360000\"ROADS, RAILROADS & BRIDGES\"SG-U"},"4030000","DEPN EXPENSE-ELECT","3360000","\"ROADS, RAILROADS & BRIDGES\"","SG-U",75.901390000000006,{"$f":"IF(OR(tblDeprExpJune19[[#This Row],[Alloc]]=\"IDU\",tblDeprExpJune19[[#This Row],[Alloc]]=\"OR\",tblDeprExpJune19[[#This Row],[Alloc]]=\"UT\",tblDeprExpJune19[[#This Row],[Alloc]]=\"WYU\",tblDeprExpJune19[[#This Row],[Alloc]]=\"WYP\",tblDeprExpJune19[[#This Row],[Alloc]]=\"CA\",tblDeprExpJune19[[#This Row],[Alloc]]=\"WA\"),\"SITUS\",tblDeprExpJune19[[#This Row],[Alloc]])","v":"SG-U"},{"$f":"INDEX(tblDeprExpLookup[FUNC],MATCH(tblDeprExpJune19[[#This Row],[Concat]],tblDeprExpLookup[Concat],0))","v":"P"},{"$f":"IF(tblDeprExpJune19[[#This Row],[Total ($000)]]=0,\"NO\",IF(ISNA(tblDeprExpJune19[[#This Row],[FUNC]]),\"YES\",IF(_xlfn.ISFORMULA(tblDeprExpJune19[[#This Row],[FUNC]]),\"NO\",\"YES\")))","v":"NO"}]
[{"$f":"CONCATENATE(tblDeprExpJune19[[#This Row],[Primary Account]],tblDeprExpJune19[[#This Row],[Primary Name]],tblDeprExpJune19[[#This Row],[Secondary Acct]],tblDeprExpJune19[[#This Row],[Secondary  Name]],tblDeprExpJune19[[#This Row],[Alloc4Func]])","v":"4030000DEPN EXPENSE-ELECT3410000STRUCTURES & IMPROVEMENTSSG"},"4030000","DEPN EXPENSE-ELECT","3410000","STRUCTURES & IMPROVEMENTS","SG",6634.4162399999996,{"$f":"IF(OR(tblDeprExpJune19[[#This Row],[Alloc]]=\"IDU\",tblDeprExpJune19[[#This Row],[Alloc]]=\"OR\",tblDeprExpJune19[[#This Row],[Alloc]]=\"UT\",tblDeprExpJune19[[#This Row],[Alloc]]=\"WYU\",tblDeprExpJune19[[#This Row],[Alloc]]=\"WYP\",tblDeprExpJune19[[#This Row],[Alloc]]=\"CA\",tblDeprExpJune19[[#This Row],[Alloc]]=\"WA\"),\"SITUS\",tblDeprExpJune19[[#This Row],[Alloc]])","v":"SG"},{"$f":"INDEX(tblDeprExpLookup[FUNC],MATCH(tblDeprExpJune19[[#This Row],[Concat]],tblDeprExpLookup[Concat],0))","v":"P"},{"$f":"IF(tblDeprExpJune19[[#This Row],[Total ($000)]]=0,\"NO\",IF(ISNA(tblDeprExpJune19[[#This Row],[FUNC]]),\"YES\",IF(_xlfn.ISFORMULA(tblDeprExpJune19[[#This Row],[FUNC]]),\"NO\",\"YES\")))","v":"NO"}]
[{"$f":"CONCATENATE(tblDeprExpJune19[[#This Row],[Primary Account]],tblDeprExpJune19[[#This Row],[Primary Name]],tblDeprExpJune19[[#This Row],[Secondary Acct]],tblDeprExpJune19[[#This Row],[Secondary  Name]],tblDeprExpJune19[[#This Row],[Alloc4Func]])","v":"4030000DEPN EXPENSE-ELECT3420000\"FUEL HOLDERS,PRODUCERS, ACCES\"SG"},"4030000","DEPN EXPENSE-ELECT","3420000","\"FUEL HOLDERS,PRODUCERS, ACCES\"","SG",494.58949000000001,{"$f":"IF(OR(tblDeprExpJune19[[#This Row],[Alloc]]=\"IDU\",tblDeprExpJune19[[#This Row],[Alloc]]=\"OR\",tblDeprExpJune19[[#This Row],[Alloc]]=\"UT\",tblDeprExpJune19[[#This Row],[Alloc]]=\"WYU\",tblDeprExpJune19[[#This Row],[Alloc]]=\"WYP\",tblDeprExpJune19[[#This Row],[Alloc]]=\"CA\",tblDeprExpJune19[[#This Row],[Alloc]]=\"WA\"),\"SITUS\",tblDeprExpJune19[[#This Row],[Alloc]])","v":"SG"},{"$f":"INDEX(tblDeprExpLookup[FUNC],MATCH(tblDeprExpJune19[[#This Row],[Concat]],tblDeprExpLookup[Concat],0))","v":"P"},{"$f":"IF(tblDeprExpJune19[[#This Row],[Total ($000)]]=0,\"NO\",IF(ISNA(tblDeprExpJune19[[#This Row],[FUNC]]),\"YES\",IF(_xlfn.ISFORMULA(tblDeprExpJune19[[#This Row],[FUNC]]),\"NO\",\"YES\")))","v":"NO"}]
[{"$f":"CONCATENATE(tblDeprExpJune19[[#This Row],[Primary Account]],tblDeprExpJune19[[#This Row],[Primary Name]],tblDeprExpJune19[[#This Row],[Secondary Acct]],tblDeprExpJune19[[#This Row],[Secondary  Name]],tblDeprExpJune19[[#This Row],[Alloc4Func]])","v":"4030000DEPN EXPENSE-ELECT3430000PRIME MOVERSSG"},"4030000","DEPN EXPENSE-ELECT","3430000","PRIME MOVERS","SG",95082.537679999994,{"$f":"IF(OR(tblDeprExpJune19[[#This Row],[Alloc]]=\"IDU\",tblDeprExpJune19[[#This Row],[Alloc]]=\"OR\",tblDeprExpJune19[[#This Row],[Alloc]]=\"UT\",tblDeprExpJune19[[#This Row],[Alloc]]=\"WYU\",tblDeprExpJune19[[#This Row],[Alloc]]=\"WYP\",tblDeprExpJune19[[#This Row],[Alloc]]=\"CA\",tblDeprExpJune19[[#This Row],[Alloc]]=\"WA\"),\"SITUS\",tblDeprExpJune19[[#This Row],[Alloc]])","v":"SG"},{"$f":"INDEX(tblDeprExpLookup[FUNC],MATCH(tblDeprExpJune19[[#This Row],[Concat]],tblDeprExpLookup[Concat],0))","v":"P"},{"$f":"IF(tblDeprExpJune19[[#This Row],[Total ($000)]]=0,\"NO\",IF(ISNA(tblDeprExpJune19[[#This Row],[FUNC]]),\"YES\",IF(_xlfn.ISFORMULA(tblDeprExpJune19[[#This Row],[FUNC]]),\"NO\",\"YES\")))","v":"NO"}]
[{"$f":"CONCATENATE(tblDeprExpJune19[[#This Row],[Primary Account]],tblDeprExpJune19[[#This Row],[Primary Name]],tblDeprExpJune19[[#This Row],[Secondary Acct]],tblDeprExpJune19[[#This Row],[Secondary  Name]],tblDeprExpJune19[[#This Row],[Alloc4Func]])","v":"4030000DEPN EXPENSE-ELECT3440000GENERATORSSG"},"4030000","DEPN EXPENSE-ELECT","3440000","GENERATORS","SG",14613.07504,{"$f":"IF(OR(tblDeprExpJune19[[#This Row],[Alloc]]=\"IDU\",tblDeprExpJune19[[#This Row],[Alloc]]=\"OR\",tblDeprExpJune19[[#This Row],[Alloc]]=\"UT\",tblDeprExpJune19[[#This Row],[Alloc]]=\"WYU\",tblDeprExpJune19[[#This Row],[Alloc]]=\"WYP\",tblDeprExpJune19[[#This Row],[Alloc]]=\"CA\",tblDeprExpJune19[[#This Row],[Alloc]]=\"WA\"),\"SITUS\",tblDeprExpJune19[[#This Row],[Alloc]])","v":"SG"},{"$f":"INDEX(tblDeprExpLookup[FUNC],MATCH(tblDeprExpJune19[[#This Row],[Concat]],tblDeprExpLookup[Concat],0))","v":"P"},{"$f":"IF(tblDeprExpJune19[[#This Row],[Total ($000)]]=0,\"NO\",IF(ISNA(tblDeprExpJune19[[#This Row],[FUNC]]),\"YES\",IF(_xlfn.ISFORMULA(tblDeprExpJune19[[#This Row],[FUNC]]),\"NO\",\"YES\")))","v":"NO"}]
[{"$f":"CONCATENATE(tblDeprExpJune19[[#This Row],[Primary Account]],tblDeprExpJune19[[#This Row],[Primary Name]],tblDeprExpJune19[[#This Row],[Secondary Acct]],tblDeprExpJune19[[#This Row],[Secondary  Name]],tblDeprExpJune19[[#This Row],[Alloc4Func]])","v":"4030000DEPN EXPENSE-ELECT3450000ACCESSORY ELECTRIC EQUIPMENTSG"},"4030000","DEPN EXPENSE-ELECT","3450000","ACCESSORY ELECTRIC EQUIPMENT","SG",9557.2595700000002,{"$f":"IF(OR(tblDeprExpJune19[[#This Row],[Alloc]]=\"IDU\",tblDeprExpJune19[[#This Row],[Alloc]]=\"OR\",tblDeprExpJune19[[#This Row],[Alloc]]=\"UT\",tblDeprExpJune19[[#This Row],[Alloc]]=\"WYU\",tblDeprExpJune19[[#This Row],[Alloc]]=\"WYP\",tblDeprExpJune19[[#This Row],[Alloc]]=\"CA\",tblDeprExpJune19[[#This Row],[Alloc]]=\"WA\"),\"SITUS\",tblDeprExpJune19[[#This Row],[Alloc]])","v":"SG"},{"$f":"INDEX(tblDeprExpLookup[FUNC],MATCH(tblDeprExpJune19[[#This Row],[Concat]],tblDeprExpLookup[Concat],0))","v":"P"},{"$f":"IF(tblDeprExpJune19[[#This Row],[Total ($000)]]=0,\"NO\",IF(ISNA(tblDeprExpJune19[[#This Row],[FUNC]]),\"YES\",IF(_xlfn.ISFORMULA(tblDeprExpJune19[[#This Row],[FUNC]]),\"NO\",\"YES\")))","v":"NO"}]
[{"$f":"CONCATENATE(tblDeprExpJune19[[#This Row],[Primary Account]],tblDeprExpJune19[[#This Row],[Primary Name]],tblDeprExpJune19[[#This Row],[Secondary Acct]],tblDeprExpJune19[[#This Row],[Secondary  Name]],tblDeprExpJune19[[#This Row],[Alloc4Func]])","v":"4030000DEPN EXPENSE-ELECT3460000MISCELLANEOUS PWR PLANT EQUIPSG"},"4030000","DEPN EXPENSE-ELECT","3460000","MISCELLANEOUS PWR PLANT EQUIP","SG",447.14704,{"$f":"IF(OR(tblDeprExpJune19[[#This Row],[Alloc]]=\"IDU\",tblDeprExpJune19[[#This Row],[Alloc]]=\"OR\",tblDeprExpJune19[[#This Row],[Alloc]]=\"UT\",tblDeprExpJune19[[#This Row],[Alloc]]=\"WYU\",tblDeprExpJune19[[#This Row],[Alloc]]=\"WYP\",tblDeprExpJune19[[#This Row],[Alloc]]=\"CA\",tblDeprExpJune19[[#This Row],[Alloc]]=\"WA\"),\"SITUS\",tblDeprExpJune19[[#This Row],[Alloc]])","v":"SG"},{"$f":"INDEX(tblDeprExpLookup[FUNC],MATCH(tblDeprExpJune19[[#This Row],[Concat]],tblDeprExpLookup[Concat],0))","v":"P"},{"$f":"IF(tblDeprExpJune19[[#This Row],[Total ($000)]]=0,\"NO\",IF(ISNA(tblDeprExpJune19[[#This Row],[FUNC]]),\"YES\",IF(_xlfn.ISFORMULA(tblDeprExpJune19[[#This Row],[FUNC]]),\"NO\",\"YES\")))","v":"NO"}]
[{"$f":"CONCATENATE(tblDeprExpJune19[[#This Row],[Primary Account]],tblDeprExpJune19[[#This Row],[Primary Name]],tblDeprExpJune19[[#This Row],[Secondary Acct]],tblDeprExpJune19[[#This Row],[Secondary  Name]],tblDeprExpJune19[[#This Row],[Alloc4Func]])","v":"4030000DEPN EXPENSE-ELECT3502000LAND RIGHTSSG"},"4030000","DEPN EXPENSE-ELECT","3502000","LAND RIGHTS","SG",2674.7986599999999,{"$f":"IF(OR(tblDeprExpJune19[[#This Row],[Alloc]]=\"IDU\",tblDeprExpJune19[[#This Row],[Alloc]]=\"OR\",tblDeprExpJune19[[#This Row],[Alloc]]=\"UT\",tblDeprExpJune19[[#This Row],[Alloc]]=\"WYU\",tblDeprExpJune19[[#This Row],[Alloc]]=\"WYP\",tblDeprExpJune19[[#This Row],[Alloc]]=\"CA\",tblDeprExpJune19[[#This Row],[Alloc]]=\"WA\"),\"SITUS\",tblDeprExpJune19[[#This Row],[Alloc]])","v":"SG"},{"$f":"INDEX(tblDeprExpLookup[FUNC],MATCH(tblDeprExpJune19[[#This Row],[Concat]],tblDeprExpLookup[Concat],0))","v":"T"},{"$f":"IF(tblDeprExpJune19[[#This Row],[Total ($000)]]=0,\"NO\",IF(ISNA(tblDeprExpJune19[[#This Row],[FUNC]]),\"YES\",IF(_xlfn.ISFORMULA(tblDeprExpJune19[[#This Row],[FUNC]]),\"NO\",\"YES\")))","v":"NO"}]
[{"$f":"CONCATENATE(tblDeprExpJune19[[#This Row],[Primary Account]],tblDeprExpJune19[[#This Row],[Primary Name]],tblDeprExpJune19[[#This Row],[Secondary Acct]],tblDeprExpJune19[[#This Row],[Secondary  Name]],tblDeprExpJune19[[#This Row],[Alloc4Func]])","v":"4030000DEPN EXPENSE-ELECT3520000STRUCTURES & IMPROVEMENTSSG"},"4030000","DEPN EXPENSE-ELECT","3520000","STRUCTURES & IMPROVEMENTS","SG",3871.80782,{"$f":"IF(OR(tblDeprExpJune19[[#This Row],[Alloc]]=\"IDU\",tblDeprExpJune19[[#This Row],[Alloc]]=\"OR\",tblDeprExpJune19[[#This Row],[Alloc]]=\"UT\",tblDeprExpJune19[[#This Row],[Alloc]]=\"WYU\",tblDeprExpJune19[[#This Row],[Alloc]]=\"WYP\",tblDeprExpJune19[[#This Row],[Alloc]]=\"CA\",tblDeprExpJune19[[#This Row],[Alloc]]=\"WA\"),\"SITUS\",tblDeprExpJune19[[#This Row],[Alloc]])","v":"SG"},{"$f":"INDEX(tblDeprExpLookup[FUNC],MATCH(tblDeprExpJune19[[#This Row],[Concat]],tblDeprExpLookup[Concat],0))","v":"T"},{"$f":"IF(tblDeprExpJune19[[#This Row],[Total ($000)]]=0,\"NO\",IF(ISNA(tblDeprExpJune19[[#This Row],[FUNC]]),\"YES\",IF(_xlfn.ISFORMULA(tblDeprExpJune19[[#This Row],[FUNC]]),\"NO\",\"YES\")))","v":"NO"}]
[{"$f":"CONCATENATE(tblDeprExpJune19[[#This Row],[Primary Account]],tblDeprExpJune19[[#This Row],[Primary Name]],tblDeprExpJune19[[#This Row],[Secondary Acct]],tblDeprExpJune19[[#This Row],[Secondary  Name]],tblDeprExpJune19[[#This Row],[Alloc4Func]])","v":"4030000DEPN EXPENSE-ELECT3530000STATION EQUIPMENTSG"},"4030000","DEPN EXPENSE-ELECT","3530000","STATION EQUIPMENT","SG",34643.797030000002,{"$f":"IF(OR(tblDeprExpJune19[[#This Row],[Alloc]]=\"IDU\",tblDeprExpJune19[[#This Row],[Alloc]]=\"OR\",tblDeprExpJune19[[#This Row],[Alloc]]=\"UT\",tblDeprExpJune19[[#This Row],[Alloc]]=\"WYU\",tblDeprExpJune19[[#This Row],[Alloc]]=\"WYP\",tblDeprExpJune19[[#This Row],[Alloc]]=\"CA\",tblDeprExpJune19[[#This Row],[Alloc]]=\"WA\"),\"SITUS\",tblDeprExpJune19[[#This Row],[Alloc]])","v":"SG"},{"$f":"INDEX(tblDeprExpLookup[FUNC],MATCH(tblDeprExpJune19[[#This Row],[Concat]],tblDeprExpLookup[Concat],0))","v":"T"},{"$f":"IF(tblDeprExpJune19[[#This Row],[Total ($000)]]=0,\"NO\",IF(ISNA(tblDeprExpJune19[[#This Row],[FUNC]]),\"YES\",IF(_xlfn.ISFORMULA(tblDeprExpJune19[[#This Row],[FUNC]]),\"NO\",\"YES\")))","v":"NO"}]
[{"$f":"CONCATENATE(tblDeprExpJune19[[#This Row],[Primary Account]],tblDeprExpJune19[[#This Row],[Primary Name]],tblDeprExpJune19[[#This Row],[Secondary Acct]],tblDeprExpJune19[[#This Row],[Secondary  Name]],tblDeprExpJune19[[#This Row],[Alloc4Func]])","v":"4030000DEPN EXPENSE-ELECT3534000STATION EQUIPMENT, STEP-UP TRANSFORMERSSG"},"4030000","DEPN EXPENSE-ELECT","3534000","STATION EQUIPMENT, STEP-UP TRANSFORMERS","SG",2833.4663300000002,{"$f":"IF(OR(tblDeprExpJune19[[#This Row],[Alloc]]=\"IDU\",tblDeprExpJune19[[#This Row],[Alloc]]=\"OR\",tblDeprExpJune19[[#This Row],[Alloc]]=\"UT\",tblDeprExpJune19[[#This Row],[Alloc]]=\"WYU\",tblDeprExpJune19[[#This Row],[Alloc]]=\"WYP\",tblDeprExpJune19[[#This Row],[Alloc]]=\"CA\",tblDeprExpJune19[[#This Row],[Alloc]]=\"WA\"),\"SITUS\",tblDeprExpJune19[[#This Row],[Alloc]])","v":"SG"},{"$f":"INDEX(tblDeprExpLookup[FUNC],MATCH(tblDeprExpJune19[[#This Row],[Concat]],tblDeprExpLookup[Concat],0))","v":"T"},{"$f":"IF(tblDeprExpJune19[[#This Row],[Total ($000)]]=0,\"NO\",IF(ISNA(tblDeprExpJune19[[#This Row],[FUNC]]),\"YES\",IF(_xlfn.ISFORMULA(tblDeprExpJune19[[#This Row],[FUNC]]),\"NO\",\"YES\")))","v":"NO"}]
[{"$f":"CONCATENATE(tblDeprExpJune19[[#This Row],[Primary Account]],tblDeprExpJune19[[#This Row],[Primary Name]],tblDeprExpJune19[[#This Row],[Secondary Acct]],tblDeprExpJune19[[#This Row],[Secondary  Name]],tblDeprExpJune19[[#This Row],[Alloc4Func]])","v":"4030000DEPN EXPENSE-ELECT3537000STATION EQUIPMENT-SUPERVISORY & ALARMSG"},"4030000","DEPN EXPENSE-ELECT","3537000","STATION EQUIPMENT-SUPERVISORY & ALARM","SG",392.12709000000001,{"$f":"IF(OR(tblDeprExpJune19[[#This Row],[Alloc]]=\"IDU\",tblDeprExpJune19[[#This Row],[Alloc]]=\"OR\",tblDeprExpJune19[[#This Row],[Alloc]]=\"UT\",tblDeprExpJune19[[#This Row],[Alloc]]=\"WYU\",tblDeprExpJune19[[#This Row],[Alloc]]=\"WYP\",tblDeprExpJune19[[#This Row],[Alloc]]=\"CA\",tblDeprExpJune19[[#This Row],[Alloc]]=\"WA\"),\"SITUS\",tblDeprExpJune19[[#This Row],[Alloc]])","v":"SG"},{"$f":"INDEX(tblDeprExpLookup[FUNC],MATCH(tblDeprExpJune19[[#This Row],[Concat]],tblDeprExpLookup[Concat],0))","v":"T"},{"$f":"IF(tblDeprExpJune19[[#This Row],[Total ($000)]]=0,\"NO\",IF(ISNA(tblDeprExpJune19[[#This Row],[FUNC]]),\"YES\",IF(_xlfn.ISFORMULA(tblDeprExpJune19[[#This Row],[FUNC]]),\"NO\",\"YES\")))","v":"NO"}]
[{"$f":"CONCATENATE(tblDeprExpJune19[[#This Row],[Primary Account]],tblDeprExpJune19[[#This Row],[Primary Name]],tblDeprExpJune19[[#This Row],[Secondary Acct]],tblDeprExpJune19[[#This Row],[Secondary  Name]],tblDeprExpJune19[[#This Row],[Alloc4Func]])","v":"4030000DEPN EXPENSE-ELECT3540000TOWERS AND FIXTURESSG"},"4030000","DEPN EXPENSE-ELECT","3540000","TOWERS AND FIXTURES","SG",19921.49885,{"$f":"IF(OR(tblDeprExpJune19[[#This Row],[Alloc]]=\"IDU\",tblDeprExpJune19[[#This Row],[Alloc]]=\"OR\",tblDeprExpJune19[[#This Row],[Alloc]]=\"UT\",tblDeprExpJune19[[#This Row],[Alloc]]=\"WYU\",tblDeprExpJune19[[#This Row],[Alloc]]=\"WYP\",tblDeprExpJune19[[#This Row],[Alloc]]=\"CA\",tblDeprExpJune19[[#This Row],[Alloc]]=\"WA\"),\"SITUS\",tblDeprExpJune19[[#This Row],[Alloc]])","v":"SG"},{"$f":"INDEX(tblDeprExpLookup[FUNC],MATCH(tblDeprExpJune19[[#This Row],[Concat]],tblDeprExpLookup[Concat],0))","v":"T"},{"$f":"IF(tblDeprExpJune19[[#This Row],[Total ($000)]]=0,\"NO\",IF(ISNA(tblDeprExpJune19[[#This Row],[FUNC]]),\"YES\",IF(_xlfn.ISFORMULA(tblDeprExpJune19[[#This Row],[FUNC]]),\"NO\",\"YES\")))","v":"NO"}]
[{"$f":"CONCATENATE(tblDeprExpJune19[[#This Row],[Primary Account]],tblDeprExpJune19[[#This Row],[Primary Name]],tblDeprExpJune19[[#This Row],[Secondary Acct]],tblDeprExpJune19[[#This Row],[Secondary  Name]],tblDeprExpJune19[[#This Row],[Alloc4Func]])","v":"4030000DEPN EXPENSE-ELECT3550000POLES AND FIXTURESSG"},"4030000","DEPN EXPENSE-ELECT","3550000","POLES AND FIXTURES","SG",20881.82144,{"$f":"IF(OR(tblDeprExpJune19[[#This Row],[Alloc]]=\"IDU\",tblDeprExpJune19[[#This Row],[Alloc]]=\"OR\",tblDeprExpJune19[[#This Row],[Alloc]]=\"UT\",tblDeprExpJune19[[#This Row],[Alloc]]=\"WYU\",tblDeprExpJune19[[#This Row],[Alloc]]=\"WYP\",tblDeprExpJune19[[#This Row],[Alloc]]=\"CA\",tblDeprExpJune19[[#This Row],[Alloc]]=\"WA\"),\"SITUS\",tblDeprExpJune19[[#This Row],[Alloc]])","v":"SG"},{"$f":"INDEX(tblDeprExpLookup[FUNC],MATCH(tblDeprExpJune19[[#This Row],[Concat]],tblDeprExpLookup[Concat],0))","v":"T"},{"$f":"IF(tblDeprExpJune19[[#This Row],[Total ($000)]]=0,\"NO\",IF(ISNA(tblDeprExpJune19[[#This Row],[FUNC]]),\"YES\",IF(_xlfn.ISFORMULA(tblDeprExpJune19[[#This Row],[FUNC]]),\"NO\",\"YES\")))","v":"NO"}]
[{"$f":"CONCATENATE(tblDeprExpJune19[[#This Row],[Primary Account]],tblDeprExpJune19[[#This Row],[Primary Name]],tblDeprExpJune19[[#This Row],[Secondary Acct]],tblDeprExpJune19[[#This Row],[Secondary  Name]],tblDeprExpJune19[[#This Row],[Alloc4Func]])","v":"4030000DEPN EXPENSE-ELECT3560000OVERHEAD CONDUCTORS & DEVICESSG"},"4030000","DEPN EXPENSE-ELECT","3560000","OVERHEAD CONDUCTORS & DEVICES","SG",23526.11822,{"$f":"IF(OR(tblDeprExpJune19[[#This Row],[Alloc]]=\"IDU\",tblDeprExpJune19[[#This Row],[Alloc]]=\"OR\",tblDeprExpJune19[[#This Row],[Alloc]]=\"UT\",tblDeprExpJune19[[#This Row],[Alloc]]=\"WYU\",tblDeprExpJune19[[#This Row],[Alloc]]=\"WYP\",tblDeprExpJune19[[#This Row],[Alloc]]=\"CA\",tblDeprExpJune19[[#This Row],[Alloc]]=\"WA\"),\"SITUS\",tblDeprExpJune19[[#This Row],[Alloc]])","v":"SG"},{"$f":"INDEX(tblDeprExpLookup[FUNC],MATCH(tblDeprExpJune19[[#This Row],[Concat]],tblDeprExpLookup[Concat],0))","v":"T"},{"$f":"IF(tblDeprExpJune19[[#This Row],[Total ($000)]]=0,\"NO\",IF(ISNA(tblDeprExpJune19[[#This Row],[FUNC]]),\"YES\",IF(_xlfn.ISFORMULA(tblDeprExpJune19[[#This Row],[FUNC]]),\"NO\",\"YES\")))","v":"NO"}]
[{"$f":"CONCATENATE(tblDeprExpJune19[[#This Row],[Primary Account]],tblDeprExpJune19[[#This Row],[Primary Name]],tblDeprExpJune19[[#This Row],[Secondary Acct]],tblDeprExpJune19[[#This Row],[Secondary  Name]],tblDeprExpJune19[[#This Row],[Alloc4Func]])","v":"4030000DEPN EXPENSE-ELECT3570000UNDERGROUND CONDUITSG"},"4030000","DEPN EXPENSE-ELECT","3570000","UNDERGROUND CONDUIT","SG",56.845640000000003,{"$f":"IF(OR(tblDeprExpJune19[[#This Row],[Alloc]]=\"IDU\",tblDeprExpJune19[[#This Row],[Alloc]]=\"OR\",tblDeprExpJune19[[#This Row],[Alloc]]=\"UT\",tblDeprExpJune19[[#This Row],[Alloc]]=\"WYU\",tblDeprExpJune19[[#This Row],[Alloc]]=\"WYP\",tblDeprExpJune19[[#This Row],[Alloc]]=\"CA\",tblDeprExpJune19[[#This Row],[Alloc]]=\"WA\"),\"SITUS\",tblDeprExpJune19[[#This Row],[Alloc]])","v":"SG"},{"$f":"INDEX(tblDeprExpLookup[FUNC],MATCH(tblDeprExpJune19[[#This Row],[Concat]],tblDeprExpLookup[Concat],0))","v":"T"},{"$f":"IF(tblDeprExpJune19[[#This Row],[Total ($000)]]=0,\"NO\",IF(ISNA(tblDeprExpJune19[[#This Row],[FUNC]]),\"YES\",IF(_xlfn.ISFORMULA(tblDeprExpJune19[[#This Row],[FUNC]]),\"NO\",\"YES\")))","v":"NO"}]
[{"$f":"CONCATENATE(tblDeprExpJune19[[#This Row],[Primary Account]],tblDeprExpJune19[[#This Row],[Primary Name]],tblDeprExpJune19[[#This Row],[Secondary Acct]],tblDeprExpJune19[[#This Row],[Secondary  Name]],tblDeprExpJune19[[#This Row],[Alloc4Func]])","v":"4030000DEPN EXPENSE-ELECT3580000UNDERGROUND CONDUCTORS & DEVICESSG"},"4030000","DEPN EXPENSE-ELECT","3580000","UNDERGROUND CONDUCTORS & DEVICES","SG",133.37685999999999,{"$f":"IF(OR(tblDeprExpJune19[[#This Row],[Alloc]]=\"IDU\",tblDeprExpJune19[[#This Row],[Alloc]]=\"OR\",tblDeprExpJune19[[#This Row],[Alloc]]=\"UT\",tblDeprExpJune19[[#This Row],[Alloc]]=\"WYU\",tblDeprExpJune19[[#This Row],[Alloc]]=\"WYP\",tblDeprExpJune19[[#This Row],[Alloc]]=\"CA\",tblDeprExpJune19[[#This Row],[Alloc]]=\"WA\"),\"SITUS\",tblDeprExpJune19[[#This Row],[Alloc]])","v":"SG"},{"$f":"INDEX(tblDeprExpLookup[FUNC],MATCH(tblDeprExpJune19[[#This Row],[Concat]],tblDeprExpLookup[Concat],0))","v":"T"},{"$f":"IF(tblDeprExpJune19[[#This Row],[Total ($000)]]=0,\"NO\",IF(ISNA(tblDeprExpJune19[[#This Row],[FUNC]]),\"YES\",IF(_xlfn.ISFORMULA(tblDeprExpJune19[[#This Row],[FUNC]]),\"NO\",\"YES\")))","v":"NO"}]
[{"$f":"CONCATENATE(tblDeprExpJune19[[#This Row],[Primary Account]],tblDeprExpJune19[[#This Row],[Primary Name]],tblDeprExpJune19[[#This Row],[Secondary Acct]],tblDeprExpJune19[[#This Row],[Secondary  Name]],tblDeprExpJune19[[#This Row],[Alloc4Func]])","v":"4030000DEPN EXPENSE-ELECT3590000ROADS AND TRAILSSG"},"4030000","DEPN EXPENSE-ELECT","3590000","ROADS AND TRAILS","SG",157.57888,{"$f":"IF(OR(tblDeprExpJune19[[#This Row],[Alloc]]=\"IDU\",tblDeprExpJune19[[#This Row],[Alloc]]=\"OR\",tblDeprExpJune19[[#This Row],[Alloc]]=\"UT\",tblDeprExpJune19[[#This Row],[Alloc]]=\"WYU\",tblDeprExpJune19[[#This Row],[Alloc]]=\"WYP\",tblDeprExpJune19[[#This Row],[Alloc]]=\"CA\",tblDeprExpJune19[[#This Row],[Alloc]]=\"WA\"),\"SITUS\",tblDeprExpJune19[[#This Row],[Alloc]])","v":"SG"},{"$f":"INDEX(tblDeprExpLookup[FUNC],MATCH(tblDeprExpJune19[[#This Row],[Concat]],tblDeprExpLookup[Concat],0))","v":"T"},{"$f":"IF(tblDeprExpJune19[[#This Row],[Total ($000)]]=0,\"NO\",IF(ISNA(tblDeprExpJune19[[#This Row],[FUNC]]),\"YES\",IF(_xlfn.ISFORMULA(tblDeprExpJune19[[#This Row],[FUNC]]),\"NO\",\"YES\")))","v":"NO"}]
[{"$f":"CONCATENATE(tblDeprExpJune19[[#This Row],[Primary Account]],tblDeprExpJune19[[#This Row],[Primary Name]],tblDeprExpJune19[[#This Row],[Secondary Acct]],tblDeprExpJune19[[#This Row],[Secondary  Name]],tblDeprExpJune19[[#This Row],[Alloc4Func]])","v":"4030000DEPN EXPENSE-ELECT3602000LAND RIGHTSSITUS"},"4030000","DEPN EXPENSE-ELECT","3602000","LAND RIGHTS","CA",25.184270000000001,{"$f":"IF(OR(tblDeprExpJune19[[#This Row],[Alloc]]=\"IDU\",tblDeprExpJune19[[#This Row],[Alloc]]=\"OR\",tblDeprExpJune19[[#This Row],[Alloc]]=\"UT\",tblDeprExpJune19[[#This Row],[Alloc]]=\"WYU\",tblDeprExpJune19[[#This Row],[Alloc]]=\"WYP\",tblDeprExpJune19[[#This Row],[Alloc]]=\"CA\",tblDeprExpJune19[[#This Row],[Alloc]]=\"WA\"),\"SITUS\",tblDeprExpJune19[[#This Row],[Alloc]])","v":"SITUS"},{"$f":"INDEX(tblDeprExpLookup[FUNC],MATCH(tblDeprExpJune19[[#This Row],[Concat]],tblDeprExpLookup[Concat],0))","v":"DPW"},{"$f":"IF(tblDeprExpJune19[[#This Row],[Total ($000)]]=0,\"NO\",IF(ISNA(tblDeprExpJune19[[#This Row],[FUNC]]),\"YES\",IF(_xlfn.ISFORMULA(tblDeprExpJune19[[#This Row],[FUNC]]),\"NO\",\"YES\")))","v":"NO"}]
[{"$f":"CONCATENATE(tblDeprExpJune19[[#This Row],[Primary Account]],tblDeprExpJune19[[#This Row],[Primary Name]],tblDeprExpJune19[[#This Row],[Secondary Acct]],tblDeprExpJune19[[#This Row],[Secondary  Name]],tblDeprExpJune19[[#This Row],[Alloc4Func]])","v":"4030000DEPN EXPENSE-ELECT3602000LAND RIGHTSSITUS"},"4030000","DEPN EXPENSE-ELECT","3602000","LAND RIGHTS","IDU",26.51013,{"$f":"IF(OR(tblDeprExpJune19[[#This Row],[Alloc]]=\"IDU\",tblDeprExpJune19[[#This Row],[Alloc]]=\"OR\",tblDeprExpJune19[[#This Row],[Alloc]]=\"UT\",tblDeprExpJune19[[#This Row],[Alloc]]=\"WYU\",tblDeprExpJune19[[#This Row],[Alloc]]=\"WYP\",tblDeprExpJune19[[#This Row],[Alloc]]=\"CA\",tblDeprExpJune19[[#This Row],[Alloc]]=\"WA\"),\"SITUS\",tblDeprExpJune19[[#This Row],[Alloc]])","v":"SITUS"},{"$f":"INDEX(tblDeprExpLookup[FUNC],MATCH(tblDeprExpJune19[[#This Row],[Concat]],tblDeprExpLookup[Concat],0))","v":"DPW"},{"$f":"IF(tblDeprExpJune19[[#This Row],[Total ($000)]]=0,\"NO\",IF(ISNA(tblDeprExpJune19[[#This Row],[FUNC]]),\"YES\",IF(_xlfn.ISFORMULA(tblDeprExpJune19[[#This Row],[FUNC]]),\"NO\",\"YES\")))","v":"NO"}]
[{"$f":"CONCATENATE(tblDeprExpJune19[[#This Row],[Primary Account]],tblDeprExpJune19[[#This Row],[Primary Name]],tblDeprExpJune19[[#This Row],[Secondary Acct]],tblDeprExpJune19[[#This Row],[Secondary  Name]],tblDeprExpJune19[[#This Row],[Alloc4Func]])","v":"4030000DEPN EXPENSE-ELECT3602000LAND RIGHTSSITUS"},"4030000","DEPN EXPENSE-ELECT","3602000","LAND RIGHTS","OR",61.992040000000003,{"$f":"IF(OR(tblDeprExpJune19[[#This Row],[Alloc]]=\"IDU\",tblDeprExpJune19[[#This Row],[Alloc]]=\"OR\",tblDeprExpJune19[[#This Row],[Alloc]]=\"UT\",tblDeprExpJune19[[#This Row],[Alloc]]=\"WYU\",tblDeprExpJune19[[#This Row],[Alloc]]=\"WYP\",tblDeprExpJune19[[#This Row],[Alloc]]=\"CA\",tblDeprExpJune19[[#This Row],[Alloc]]=\"WA\"),\"SITUS\",tblDeprExpJune19[[#This Row],[Alloc]])","v":"SITUS"},{"$f":"INDEX(tblDeprExpLookup[FUNC],MATCH(tblDeprExpJune19[[#This Row],[Concat]],tblDeprExpLookup[Concat],0))","v":"DPW"},{"$f":"IF(tblDeprExpJune19[[#This Row],[Total ($000)]]=0,\"NO\",IF(ISNA(tblDeprExpJune19[[#This Row],[FUNC]]),\"YES\",IF(_xlfn.ISFORMULA(tblDeprExpJune19[[#This Row],[FUNC]]),\"NO\",\"YES\")))","v":"NO"}]
[{"$f":"CONCATENATE(tblDeprExpJune19[[#This Row],[Primary Account]],tblDeprExpJune19[[#This Row],[Primary Name]],tblDeprExpJune19[[#This Row],[Secondary Acct]],tblDeprExpJune19[[#This Row],[Secondary  Name]],tblDeprExpJune19[[#This Row],[Alloc4Func]])","v":"4030000DEPN EXPENSE-ELECT3602000LAND RIGHTSSITUS"},"4030000","DEPN EXPENSE-ELECT","3602000","LAND RIGHTS","UT",184.67504,{"$f":"IF(OR(tblDeprExpJune19[[#This Row],[Alloc]]=\"IDU\",tblDeprExpJune19[[#This Row],[Alloc]]=\"OR\",tblDeprExpJune19[[#This Row],[Alloc]]=\"UT\",tblDeprExpJune19[[#This Row],[Alloc]]=\"WYU\",tblDeprExpJune19[[#This Row],[Alloc]]=\"WYP\",tblDeprExpJune19[[#This Row],[Alloc]]=\"CA\",tblDeprExpJune19[[#This Row],[Alloc]]=\"WA\"),\"SITUS\",tblDeprExpJune19[[#This Row],[Alloc]])","v":"SITUS"},{"$f":"INDEX(tblDeprExpLookup[FUNC],MATCH(tblDeprExpJune19[[#This Row],[Concat]],tblDeprExpLookup[Concat],0))","v":"DPW"},{"$f":"IF(tblDeprExpJune19[[#This Row],[Total ($000)]]=0,\"NO\",IF(ISNA(tblDeprExpJune19[[#This Row],[FUNC]]),\"YES\",IF(_xlfn.ISFORMULA(tblDeprExpJune19[[#This Row],[FUNC]]),\"NO\",\"YES\")))","v":"NO"}]
[{"$f":"CONCATENATE(tblDeprExpJune19[[#This Row],[Primary Account]],tblDeprExpJune19[[#This Row],[Primary Name]],tblDeprExpJune19[[#This Row],[Secondary Acct]],tblDeprExpJune19[[#This Row],[Secondary  Name]],tblDeprExpJune19[[#This Row],[Alloc4Func]])","v":"4030000DEPN EXPENSE-ELECT3602000LAND RIGHTSSITUS"},"4030000","DEPN EXPENSE-ELECT","3602000","LAND RIGHTS","WA",7.6099899999999998,{"$f":"IF(OR(tblDeprExpJune19[[#This Row],[Alloc]]=\"IDU\",tblDeprExpJune19[[#This Row],[Alloc]]=\"OR\",tblDeprExpJune19[[#This Row],[Alloc]]=\"UT\",tblDeprExpJune19[[#This Row],[Alloc]]=\"WYU\",tblDeprExpJune19[[#This Row],[Alloc]]=\"WYP\",tblDeprExpJune19[[#This Row],[Alloc]]=\"CA\",tblDeprExpJune19[[#This Row],[Alloc]]=\"WA\"),\"SITUS\",tblDeprExpJune19[[#This Row],[Alloc]])","v":"SITUS"},{"$f":"INDEX(tblDeprExpLookup[FUNC],MATCH(tblDeprExpJune19[[#This Row],[Concat]],tblDeprExpLookup[Concat],0))","v":"DPW"},{"$f":"IF(tblDeprExpJune19[[#This Row],[Total ($000)]]=0,\"NO\",IF(ISNA(tblDeprExpJune19[[#This Row],[FUNC]]),\"YES\",IF(_xlfn.ISFORMULA(tblDeprExpJune19[[#This Row],[FUNC]]),\"NO\",\"YES\")))","v":"NO"}]
[{"$f":"CONCATENATE(tblDeprExpJune19[[#This Row],[Primary Account]],tblDeprExpJune19[[#This Row],[Primary Name]],tblDeprExpJune19[[#This Row],[Secondary Acct]],tblDeprExpJune19[[#This Row],[Secondary  Name]],tblDeprExpJune19[[#This Row],[Alloc4Func]])","v":"4030000DEPN EXPENSE-ELECT3602000LAND RIGHTSSITUS"},"4030000","DEPN EXPENSE-ELECT","3602000","LAND RIGHTS","WYP",43.042729999999999,{"$f":"IF(OR(tblDeprExpJune19[[#This Row],[Alloc]]=\"IDU\",tblDeprExpJune19[[#This Row],[Alloc]]=\"OR\",tblDeprExpJune19[[#This Row],[Alloc]]=\"UT\",tblDeprExpJune19[[#This Row],[Alloc]]=\"WYU\",tblDeprExpJune19[[#This Row],[Alloc]]=\"WYP\",tblDeprExpJune19[[#This Row],[Alloc]]=\"CA\",tblDeprExpJune19[[#This Row],[Alloc]]=\"WA\"),\"SITUS\",tblDeprExpJune19[[#This Row],[Alloc]])","v":"SITUS"},{"$f":"INDEX(tblDeprExpLookup[FUNC],MATCH(tblDeprExpJune19[[#This Row],[Concat]],tblDeprExpLookup[Concat],0))","v":"DPW"},{"$f":"IF(tblDeprExpJune19[[#This Row],[Total ($000)]]=0,\"NO\",IF(ISNA(tblDeprExpJune19[[#This Row],[FUNC]]),\"YES\",IF(_xlfn.ISFORMULA(tblDeprExpJune19[[#This Row],[FUNC]]),\"NO\",\"YES\")))","v":"NO"}]
[{"$f":"CONCATENATE(tblDeprExpJune19[[#This Row],[Primary Account]],tblDeprExpJune19[[#This Row],[Primary Name]],tblDeprExpJune19[[#This Row],[Secondary Acct]],tblDeprExpJune19[[#This Row],[Secondary  Name]],tblDeprExpJune19[[#This Row],[Alloc4Func]])","v":"4030000DEPN EXPENSE-ELECT3602000LAND RIGHTSSITUS"},"4030000","DEPN EXPENSE-ELECT","3602000","LAND RIGHTS","WYU",79.910179999999997,{"$f":"IF(OR(tblDeprExpJune19[[#This Row],[Alloc]]=\"IDU\",tblDeprExpJune19[[#This Row],[Alloc]]=\"OR\",tblDeprExpJune19[[#This Row],[Alloc]]=\"UT\",tblDeprExpJune19[[#This Row],[Alloc]]=\"WYU\",tblDeprExpJune19[[#This Row],[Alloc]]=\"WYP\",tblDeprExpJune19[[#This Row],[Alloc]]=\"CA\",tblDeprExpJune19[[#This Row],[Alloc]]=\"WA\"),\"SITUS\",tblDeprExpJune19[[#This Row],[Alloc]])","v":"SITUS"},{"$f":"INDEX(tblDeprExpLookup[FUNC],MATCH(tblDeprExpJune19[[#This Row],[Concat]],tblDeprExpLookup[Concat],0))","v":"DPW"},{"$f":"IF(tblDeprExpJune19[[#This Row],[Total ($000)]]=0,\"NO\",IF(ISNA(tblDeprExpJune19[[#This Row],[FUNC]]),\"YES\",IF(_xlfn.ISFORMULA(tblDeprExpJune19[[#This Row],[FUNC]]),\"NO\",\"YES\")))","v":"NO"}]
[{"$f":"CONCATENATE(tblDeprExpJune19[[#This Row],[Primary Account]],tblDeprExpJune19[[#This Row],[Primary Name]],tblDeprExpJune19[[#This Row],[Secondary Acct]],tblDeprExpJune19[[#This Row],[Secondary  Name]],tblDeprExpJune19[[#This Row],[Alloc4Func]])","v":"4030000DEPN EXPENSE-ELECT3610000STRUCTURES & IMPROVEMENTSSITUS"},"4030000","DEPN EXPENSE-ELECT","3610000","STRUCTURES & IMPROVEMENTS","CA",106.20262,{"$f":"IF(OR(tblDeprExpJune19[[#This Row],[Alloc]]=\"IDU\",tblDeprExpJune19[[#This Row],[Alloc]]=\"OR\",tblDeprExpJune19[[#This Row],[Alloc]]=\"UT\",tblDeprExpJune19[[#This Row],[Alloc]]=\"WYU\",tblDeprExpJune19[[#This Row],[Alloc]]=\"WYP\",tblDeprExpJune19[[#This Row],[Alloc]]=\"CA\",tblDeprExpJune19[[#This Row],[Alloc]]=\"WA\"),\"SITUS\",tblDeprExpJune19[[#This Row],[Alloc]])","v":"SITUS"},{"$f":"INDEX(tblDeprExpLookup[FUNC],MATCH(tblDeprExpJune19[[#This Row],[Concat]],tblDeprExpLookup[Concat],0))","v":"DPW"},{"$f":"IF(tblDeprExpJune19[[#This Row],[Total ($000)]]=0,\"NO\",IF(ISNA(tblDeprExpJune19[[#This Row],[FUNC]]),\"YES\",IF(_xlfn.ISFORMULA(tblDeprExpJune19[[#This Row],[FUNC]]),\"NO\",\"YES\")))","v":"NO"}]
[{"$f":"CONCATENATE(tblDeprExpJune19[[#This Row],[Primary Account]],tblDeprExpJune19[[#This Row],[Primary Name]],tblDeprExpJune19[[#This Row],[Secondary Acct]],tblDeprExpJune19[[#This Row],[Secondary  Name]],tblDeprExpJune19[[#This Row],[Alloc4Func]])","v":"4030000DEPN EXPENSE-ELECT3610000STRUCTURES & IMPROVEMENTSSITUS"},"4030000","DEPN EXPENSE-ELECT","3610000","STRUCTURES & IMPROVEMENTS","IDU",49.675829999999998,{"$f":"IF(OR(tblDeprExpJune19[[#This Row],[Alloc]]=\"IDU\",tblDeprExpJune19[[#This Row],[Alloc]]=\"OR\",tblDeprExpJune19[[#This Row],[Alloc]]=\"UT\",tblDeprExpJune19[[#This Row],[Alloc]]=\"WYU\",tblDeprExpJune19[[#This Row],[Alloc]]=\"WYP\",tblDeprExpJune19[[#This Row],[Alloc]]=\"CA\",tblDeprExpJune19[[#This Row],[Alloc]]=\"WA\"),\"SITUS\",tblDeprExpJune19[[#This Row],[Alloc]])","v":"SITUS"},{"$f":"INDEX(tblDeprExpLookup[FUNC],MATCH(tblDeprExpJune19[[#This Row],[Concat]],tblDeprExpLookup[Concat],0))","v":"DPW"},{"$f":"IF(tblDeprExpJune19[[#This Row],[Total ($000)]]=0,\"NO\",IF(ISNA(tblDeprExpJune19[[#This Row],[FUNC]]),\"YES\",IF(_xlfn.ISFORMULA(tblDeprExpJune19[[#This Row],[FUNC]]),\"NO\",\"YES\")))","v":"NO"}]
[{"$f":"CONCATENATE(tblDeprExpJune19[[#This Row],[Primary Account]],tblDeprExpJune19[[#This Row],[Primary Name]],tblDeprExpJune19[[#This Row],[Secondary Acct]],tblDeprExpJune19[[#This Row],[Secondary  Name]],tblDeprExpJune19[[#This Row],[Alloc4Func]])","v":"4030000DEPN EXPENSE-ELECT3610000STRUCTURES & IMPROVEMENTSSITUS"},"4030000","DEPN EXPENSE-ELECT","3610000","STRUCTURES & IMPROVEMENTS","OR",572.19455000000005,{"$f":"IF(OR(tblDeprExpJune19[[#This Row],[Alloc]]=\"IDU\",tblDeprExpJune19[[#This Row],[Alloc]]=\"OR\",tblDeprExpJune19[[#This Row],[Alloc]]=\"UT\",tblDeprExpJune19[[#This Row],[Alloc]]=\"WYU\",tblDeprExpJune19[[#This Row],[Alloc]]=\"WYP\",tblDeprExpJune19[[#This Row],[Alloc]]=\"CA\",tblDeprExpJune19[[#This Row],[Alloc]]=\"WA\"),\"SITUS\",tblDeprExpJune19[[#This Row],[Alloc]])","v":"SITUS"},{"$f":"INDEX(tblDeprExpLookup[FUNC],MATCH(tblDeprExpJune19[[#This Row],[Concat]],tblDeprExpLookup[Concat],0))","v":"DPW"},{"$f":"IF(tblDeprExpJune19[[#This Row],[Total ($000)]]=0,\"NO\",IF(ISNA(tblDeprExpJune19[[#This Row],[FUNC]]),\"YES\",IF(_xlfn.ISFORMULA(tblDeprExpJune19[[#This Row],[FUNC]]),\"NO\",\"YES\")))","v":"NO"}]
[{"$f":"CONCATENATE(tblDeprExpJune19[[#This Row],[Primary Account]],tblDeprExpJune19[[#This Row],[Primary Name]],tblDeprExpJune19[[#This Row],[Secondary Acct]],tblDeprExpJune19[[#This Row],[Secondary  Name]],tblDeprExpJune19[[#This Row],[Alloc4Func]])","v":"4030000DEPN EXPENSE-ELECT3610000STRUCTURES & IMPROVEMENTSSITUS"},"4030000","DEPN EXPENSE-ELECT","3610000","STRUCTURES & IMPROVEMENTS","UT",956.27450999999996,{"$f":"IF(OR(tblDeprExpJune19[[#This Row],[Alloc]]=\"IDU\",tblDeprExpJune19[[#This Row],[Alloc]]=\"OR\",tblDeprExpJune19[[#This Row],[Alloc]]=\"UT\",tblDeprExpJune19[[#This Row],[Alloc]]=\"WYU\",tblDeprExpJune19[[#This Row],[Alloc]]=\"WYP\",tblDeprExpJune19[[#This Row],[Alloc]]=\"CA\",tblDeprExpJune19[[#This Row],[Alloc]]=\"WA\"),\"SITUS\",tblDeprExpJune19[[#This Row],[Alloc]])","v":"SITUS"},{"$f":"INDEX(tblDeprExpLookup[FUNC],MATCH(tblDeprExpJune19[[#This Row],[Concat]],tblDeprExpLookup[Concat],0))","v":"DPW"},{"$f":"IF(tblDeprExpJune19[[#This Row],[Total ($000)]]=0,\"NO\",IF(ISNA(tblDeprExpJune19[[#This Row],[FUNC]]),\"YES\",IF(_xlfn.ISFORMULA(tblDeprExpJune19[[#This Row],[FUNC]]),\"NO\",\"YES\")))","v":"NO"}]
[{"$f":"CONCATENATE(tblDeprExpJune19[[#This Row],[Primary Account]],tblDeprExpJune19[[#This Row],[Primary Name]],tblDeprExpJune19[[#This Row],[Secondary Acct]],tblDeprExpJune19[[#This Row],[Secondary  Name]],tblDeprExpJune19[[#This Row],[Alloc4Func]])","v":"4030000DEPN EXPENSE-ELECT3610000STRUCTURES & IMPROVEMENTSSITUS"},"4030000","DEPN EXPENSE-ELECT","3610000","STRUCTURES & IMPROVEMENTS","WA",88.427670000000006,{"$f":"IF(OR(tblDeprExpJune19[[#This Row],[Alloc]]=\"IDU\",tblDeprExpJune19[[#This Row],[Alloc]]=\"OR\",tblDeprExpJune19[[#This Row],[Alloc]]=\"UT\",tblDeprExpJune19[[#This Row],[Alloc]]=\"WYU\",tblDeprExpJune19[[#This Row],[Alloc]]=\"WYP\",tblDeprExpJune19[[#This Row],[Alloc]]=\"CA\",tblDeprExpJune19[[#This Row],[Alloc]]=\"WA\"),\"SITUS\",tblDeprExpJune19[[#This Row],[Alloc]])","v":"SITUS"},{"$f":"INDEX(tblDeprExpLookup[FUNC],MATCH(tblDeprExpJune19[[#This Row],[Concat]],tblDeprExpLookup[Concat],0))","v":"DPW"},{"$f":"IF(tblDeprExpJune19[[#This Row],[Total ($000)]]=0,\"NO\",IF(ISNA(tblDeprExpJune19[[#This Row],[FUNC]]),\"YES\",IF(_xlfn.ISFORMULA(tblDeprExpJune19[[#This Row],[FUNC]]),\"NO\",\"YES\")))","v":"NO"}]
[{"$f":"CONCATENATE(tblDeprExpJune19[[#This Row],[Primary Account]],tblDeprExpJune19[[#This Row],[Primary Name]],tblDeprExpJune19[[#This Row],[Secondary Acct]],tblDeprExpJune19[[#This Row],[Secondary  Name]],tblDeprExpJune19[[#This Row],[Alloc4Func]])","v":"4030000DEPN EXPENSE-ELECT3610000STRUCTURES & IMPROVEMENTSSITUS"},"4030000","DEPN EXPENSE-ELECT","3610000","STRUCTURES & IMPROVEMENTS","WYP",223.71132,{"$f":"IF(OR(tblDeprExpJune19[[#This Row],[Alloc]]=\"IDU\",tblDeprExpJune19[[#This Row],[Alloc]]=\"OR\",tblDeprExpJune19[[#This Row],[Alloc]]=\"UT\",tblDeprExpJune19[[#This Row],[Alloc]]=\"WYU\",tblDeprExpJune19[[#This Row],[Alloc]]=\"WYP\",tblDeprExpJune19[[#This Row],[Alloc]]=\"CA\",tblDeprExpJune19[[#This Row],[Alloc]]=\"WA\"),\"SITUS\",tblDeprExpJune19[[#This Row],[Alloc]])","v":"SITUS"},{"$f":"INDEX(tblDeprExpLookup[FUNC],MATCH(tblDeprExpJune19[[#This Row],[Concat]],tblDeprExpLookup[Concat],0))","v":"DPW"},{"$f":"IF(tblDeprExpJune19[[#This Row],[Total ($000)]]=0,\"NO\",IF(ISNA(tblDeprExpJune19[[#This Row],[FUNC]]),\"YES\",IF(_xlfn.ISFORMULA(tblDeprExpJune19[[#This Row],[FUNC]]),\"NO\",\"YES\")))","v":"NO"}]
[{"$f":"CONCATENATE(tblDeprExpJune19[[#This Row],[Primary Account]],tblDeprExpJune19[[#This Row],[Primary Name]],tblDeprExpJune19[[#This Row],[Secondary Acct]],tblDeprExpJune19[[#This Row],[Secondary  Name]],tblDeprExpJune19[[#This Row],[Alloc4Func]])","v":"4030000DEPN EXPENSE-ELECT3610000STRUCTURES & IMPROVEMENTSSITUS"},"4030000","DEPN EXPENSE-ELECT","3610000","STRUCTURES & IMPROVEMENTS","WYU",88.664640000000006,{"$f":"IF(OR(tblDeprExpJune19[[#This Row],[Alloc]]=\"IDU\",tblDeprExpJune19[[#This Row],[Alloc]]=\"OR\",tblDeprExpJune19[[#This Row],[Alloc]]=\"UT\",tblDeprExpJune19[[#This Row],[Alloc]]=\"WYU\",tblDeprExpJune19[[#This Row],[Alloc]]=\"WYP\",tblDeprExpJune19[[#This Row],[Alloc]]=\"CA\",tblDeprExpJune19[[#This Row],[Alloc]]=\"WA\"),\"SITUS\",tblDeprExpJune19[[#This Row],[Alloc]])","v":"SITUS"},{"$f":"INDEX(tblDeprExpLookup[FUNC],MATCH(tblDeprExpJune19[[#This Row],[Concat]],tblDeprExpLookup[Concat],0))","v":"DPW"},{"$f":"IF(tblDeprExpJune19[[#This Row],[Total ($000)]]=0,\"NO\",IF(ISNA(tblDeprExpJune19[[#This Row],[FUNC]]),\"YES\",IF(_xlfn.ISFORMULA(tblDeprExpJune19[[#This Row],[FUNC]]),\"NO\",\"YES\")))","v":"NO"}]
[{"$f":"CONCATENATE(tblDeprExpJune19[[#This Row],[Primary Account]],tblDeprExpJune19[[#This Row],[Primary Name]],tblDeprExpJune19[[#This Row],[Secondary Acct]],tblDeprExpJune19[[#This Row],[Secondary  Name]],tblDeprExpJune19[[#This Row],[Alloc4Func]])","v":"4030000DEPN EXPENSE-ELECT3620000STATION EQUIPMENTSITUS"},"4030000","DEPN EXPENSE-ELECT","3620000","STATION EQUIPMENT","CA",701.35086999999999,{"$f":"IF(OR(tblDeprExpJune19[[#This Row],[Alloc]]=\"IDU\",tblDeprExpJune19[[#This Row],[Alloc]]=\"OR\",tblDeprExpJune19[[#This Row],[Alloc]]=\"UT\",tblDeprExpJune19[[#This Row],[Alloc]]=\"WYU\",tblDeprExpJune19[[#This Row],[Alloc]]=\"WYP\",tblDeprExpJune19[[#This Row],[Alloc]]=\"CA\",tblDeprExpJune19[[#This Row],[Alloc]]=\"WA\"),\"SITUS\",tblDeprExpJune19[[#This Row],[Alloc]])","v":"SITUS"},{"$f":"INDEX(tblDeprExpLookup[FUNC],MATCH(tblDeprExpJune19[[#This Row],[Concat]],tblDeprExpLookup[Concat],0))","v":"DPW"},{"$f":"IF(tblDeprExpJune19[[#This Row],[Total ($000)]]=0,\"NO\",IF(ISNA(tblDeprExpJune19[[#This Row],[FUNC]]),\"YES\",IF(_xlfn.ISFORMULA(tblDeprExpJune19[[#This Row],[FUNC]]),\"NO\",\"YES\")))","v":"NO"}]
[{"$f":"CONCATENATE(tblDeprExpJune19[[#This Row],[Primary Account]],tblDeprExpJune19[[#This Row],[Primary Name]],tblDeprExpJune19[[#This Row],[Secondary Acct]],tblDeprExpJune19[[#This Row],[Secondary  Name]],tblDeprExpJune19[[#This Row],[Alloc4Func]])","v":"4030000DEPN EXPENSE-ELECT3620000STATION EQUIPMENTSITUS"},"4030000","DEPN EXPENSE-ELECT","3620000","STATION EQUIPMENT","IDU",690.87374,{"$f":"IF(OR(tblDeprExpJune19[[#This Row],[Alloc]]=\"IDU\",tblDeprExpJune19[[#This Row],[Alloc]]=\"OR\",tblDeprExpJune19[[#This Row],[Alloc]]=\"UT\",tblDeprExpJune19[[#This Row],[Alloc]]=\"WYU\",tblDeprExpJune19[[#This Row],[Alloc]]=\"WYP\",tblDeprExpJune19[[#This Row],[Alloc]]=\"CA\",tblDeprExpJune19[[#This Row],[Alloc]]=\"WA\"),\"SITUS\",tblDeprExpJune19[[#This Row],[Alloc]])","v":"SITUS"},{"$f":"INDEX(tblDeprExpLookup[FUNC],MATCH(tblDeprExpJune19[[#This Row],[Concat]],tblDeprExpLookup[Concat],0))","v":"DPW"},{"$f":"IF(tblDeprExpJune19[[#This Row],[Total ($000)]]=0,\"NO\",IF(ISNA(tblDeprExpJune19[[#This Row],[FUNC]]),\"YES\",IF(_xlfn.ISFORMULA(tblDeprExpJune19[[#This Row],[FUNC]]),\"NO\",\"YES\")))","v":"NO"}]
[{"$f":"CONCATENATE(tblDeprExpJune19[[#This Row],[Primary Account]],tblDeprExpJune19[[#This Row],[Primary Name]],tblDeprExpJune19[[#This Row],[Secondary Acct]],tblDeprExpJune19[[#This Row],[Secondary  Name]],tblDeprExpJune19[[#This Row],[Alloc4Func]])","v":"4030000DEPN EXPENSE-ELECT3620000STATION EQUIPMENTSITUS"},"4030000","DEPN EXPENSE-ELECT","3620000","STATION EQUIPMENT","OR",4891.5861699999996,{"$f":"IF(OR(tblDeprExpJune19[[#This Row],[Alloc]]=\"IDU\",tblDeprExpJune19[[#This Row],[Alloc]]=\"OR\",tblDeprExpJune19[[#This Row],[Alloc]]=\"UT\",tblDeprExpJune19[[#This Row],[Alloc]]=\"WYU\",tblDeprExpJune19[[#This Row],[Alloc]]=\"WYP\",tblDeprExpJune19[[#This Row],[Alloc]]=\"CA\",tblDeprExpJune19[[#This Row],[Alloc]]=\"WA\"),\"SITUS\",tblDeprExpJune19[[#This Row],[Alloc]])","v":"SITUS"},{"$f":"INDEX(tblDeprExpLookup[FUNC],MATCH(tblDeprExpJune19[[#This Row],[Concat]],tblDeprExpLookup[Concat],0))","v":"DPW"},{"$f":"IF(tblDeprExpJune19[[#This Row],[Total ($000)]]=0,\"NO\",IF(ISNA(tblDeprExpJune19[[#This Row],[FUNC]]),\"YES\",IF(_xlfn.ISFORMULA(tblDeprExpJune19[[#This Row],[FUNC]]),\"NO\",\"YES\")))","v":"NO"}]
[{"$f":"CONCATENATE(tblDeprExpJune19[[#This Row],[Primary Account]],tblDeprExpJune19[[#This Row],[Primary Name]],tblDeprExpJune19[[#This Row],[Secondary Acct]],tblDeprExpJune19[[#This Row],[Secondary  Name]],tblDeprExpJune19[[#This Row],[Alloc4Func]])","v":"4030000DEPN EXPENSE-ELECT3620000STATION EQUIPMENTSITUS"},"4030000","DEPN EXPENSE-ELECT","3620000","STATION EQUIPMENT","UT",11102.39457,{"$f":"IF(OR(tblDeprExpJune19[[#This Row],[Alloc]]=\"IDU\",tblDeprExpJune19[[#This Row],[Alloc]]=\"OR\",tblDeprExpJune19[[#This Row],[Alloc]]=\"UT\",tblDeprExpJune19[[#This Row],[Alloc]]=\"WYU\",tblDeprExpJune19[[#This Row],[Alloc]]=\"WYP\",tblDeprExpJune19[[#This Row],[Alloc]]=\"CA\",tblDeprExpJune19[[#This Row],[Alloc]]=\"WA\"),\"SITUS\",tblDeprExpJune19[[#This Row],[Alloc]])","v":"SITUS"},{"$f":"INDEX(tblDeprExpLookup[FUNC],MATCH(tblDeprExpJune19[[#This Row],[Concat]],tblDeprExpLookup[Concat],0))","v":"DPW"},{"$f":"IF(tblDeprExpJune19[[#This Row],[Total ($000)]]=0,\"NO\",IF(ISNA(tblDeprExpJune19[[#This Row],[FUNC]]),\"YES\",IF(_xlfn.ISFORMULA(tblDeprExpJune19[[#This Row],[FUNC]]),\"NO\",\"YES\")))","v":"NO"}]
[{"$f":"CONCATENATE(tblDeprExpJune19[[#This Row],[Primary Account]],tblDeprExpJune19[[#This Row],[Primary Name]],tblDeprExpJune19[[#This Row],[Secondary Acct]],tblDeprExpJune19[[#This Row],[Secondary  Name]],tblDeprExpJune19[[#This Row],[Alloc4Func]])","v":"4030000DEPN EXPENSE-ELECT3620000STATION EQUIPMENTSITUS"},"4030000","DEPN EXPENSE-ELECT","3620000","STATION EQUIPMENT","WA",1545.82132,{"$f":"IF(OR(tblDeprExpJune19[[#This Row],[Alloc]]=\"IDU\",tblDeprExpJune19[[#This Row],[Alloc]]=\"OR\",tblDeprExpJune19[[#This Row],[Alloc]]=\"UT\",tblDeprExpJune19[[#This Row],[Alloc]]=\"WYU\",tblDeprExpJune19[[#This Row],[Alloc]]=\"WYP\",tblDeprExpJune19[[#This Row],[Alloc]]=\"CA\",tblDeprExpJune19[[#This Row],[Alloc]]=\"WA\"),\"SITUS\",tblDeprExpJune19[[#This Row],[Alloc]])","v":"SITUS"},{"$f":"INDEX(tblDeprExpLookup[FUNC],MATCH(tblDeprExpJune19[[#This Row],[Concat]],tblDeprExpLookup[Concat],0))","v":"DPW"},{"$f":"IF(tblDeprExpJune19[[#This Row],[Total ($000)]]=0,\"NO\",IF(ISNA(tblDeprExpJune19[[#This Row],[FUNC]]),\"YES\",IF(_xlfn.ISFORMULA(tblDeprExpJune19[[#This Row],[FUNC]]),\"NO\",\"YES\")))","v":"NO"}]
[{"$f":"CONCATENATE(tblDeprExpJune19[[#This Row],[Primary Account]],tblDeprExpJune19[[#This Row],[Primary Name]],tblDeprExpJune19[[#This Row],[Secondary Acct]],tblDeprExpJune19[[#This Row],[Secondary  Name]],tblDeprExpJune19[[#This Row],[Alloc4Func]])","v":"4030000DEPN EXPENSE-ELECT3620000STATION EQUIPMENTSITUS"},"4030000","DEPN EXPENSE-ELECT","3620000","STATION EQUIPMENT","WYP",2327.2649799999999,{"$f":"IF(OR(tblDeprExpJune19[[#This Row],[Alloc]]=\"IDU\",tblDeprExpJune19[[#This Row],[Alloc]]=\"OR\",tblDeprExpJune19[[#This Row],[Alloc]]=\"UT\",tblDeprExpJune19[[#This Row],[Alloc]]=\"WYU\",tblDeprExpJune19[[#This Row],[Alloc]]=\"WYP\",tblDeprExpJune19[[#This Row],[Alloc]]=\"CA\",tblDeprExpJune19[[#This Row],[Alloc]]=\"WA\"),\"SITUS\",tblDeprExpJune19[[#This Row],[Alloc]])","v":"SITUS"},{"$f":"INDEX(tblDeprExpLookup[FUNC],MATCH(tblDeprExpJune19[[#This Row],[Concat]],tblDeprExpLookup[Concat],0))","v":"DPW"},{"$f":"IF(tblDeprExpJune19[[#This Row],[Total ($000)]]=0,\"NO\",IF(ISNA(tblDeprExpJune19[[#This Row],[FUNC]]),\"YES\",IF(_xlfn.ISFORMULA(tblDeprExpJune19[[#This Row],[FUNC]]),\"NO\",\"YES\")))","v":"NO"}]
[{"$f":"CONCATENATE(tblDeprExpJune19[[#This Row],[Primary Account]],tblDeprExpJune19[[#This Row],[Primary Name]],tblDeprExpJune19[[#This Row],[Secondary Acct]],tblDeprExpJune19[[#This Row],[Secondary  Name]],tblDeprExpJune19[[#This Row],[Alloc4Func]])","v":"4030000DEPN EXPENSE-ELECT3620000STATION EQUIPMENTSITUS"},"4030000","DEPN EXPENSE-ELECT","3620000","STATION EQUIPMENT","WYU",363.98189000000002,{"$f":"IF(OR(tblDeprExpJune19[[#This Row],[Alloc]]=\"IDU\",tblDeprExpJune19[[#This Row],[Alloc]]=\"OR\",tblDeprExpJune19[[#This Row],[Alloc]]=\"UT\",tblDeprExpJune19[[#This Row],[Alloc]]=\"WYU\",tblDeprExpJune19[[#This Row],[Alloc]]=\"WYP\",tblDeprExpJune19[[#This Row],[Alloc]]=\"CA\",tblDeprExpJune19[[#This Row],[Alloc]]=\"WA\"),\"SITUS\",tblDeprExpJune19[[#This Row],[Alloc]])","v":"SITUS"},{"$f":"INDEX(tblDeprExpLookup[FUNC],MATCH(tblDeprExpJune19[[#This Row],[Concat]],tblDeprExpLookup[Concat],0))","v":"DPW"},{"$f":"IF(tblDeprExpJune19[[#This Row],[Total ($000)]]=0,\"NO\",IF(ISNA(tblDeprExpJune19[[#This Row],[FUNC]]),\"YES\",IF(_xlfn.ISFORMULA(tblDeprExpJune19[[#This Row],[FUNC]]),\"NO\",\"YES\")))","v":"NO"}]
[{"$f":"CONCATENATE(tblDeprExpJune19[[#This Row],[Primary Account]],tblDeprExpJune19[[#This Row],[Primary Name]],tblDeprExpJune19[[#This Row],[Secondary Acct]],tblDeprExpJune19[[#This Row],[Secondary  Name]],tblDeprExpJune19[[#This Row],[Alloc4Func]])","v":"4030000DEPN EXPENSE-ELECT3627000STATION EQUIPMENT-SUPERVISORY & ALARMSITUS"},"4030000","DEPN EXPENSE-ELECT","3627000","STATION EQUIPMENT-SUPERVISORY & ALARM","CA",28.502279999999999,{"$f":"IF(OR(tblDeprExpJune19[[#This Row],[Alloc]]=\"IDU\",tblDeprExpJune19[[#This Row],[Alloc]]=\"OR\",tblDeprExpJune19[[#This Row],[Alloc]]=\"UT\",tblDeprExpJune19[[#This Row],[Alloc]]=\"WYU\",tblDeprExpJune19[[#This Row],[Alloc]]=\"WYP\",tblDeprExpJune19[[#This Row],[Alloc]]=\"CA\",tblDeprExpJune19[[#This Row],[Alloc]]=\"WA\"),\"SITUS\",tblDeprExpJune19[[#This Row],[Alloc]])","v":"SITUS"},{"$f":"INDEX(tblDeprExpLookup[FUNC],MATCH(tblDeprExpJune19[[#This Row],[Concat]],tblDeprExpLookup[Concat],0))","v":"DPW"},{"$f":"IF(tblDeprExpJune19[[#This Row],[Total ($000)]]=0,\"NO\",IF(ISNA(tblDeprExpJune19[[#This Row],[FUNC]]),\"YES\",IF(_xlfn.ISFORMULA(tblDeprExpJune19[[#This Row],[FUNC]]),\"NO\",\"YES\")))","v":"NO"}]
[{"$f":"CONCATENATE(tblDeprExpJune19[[#This Row],[Primary Account]],tblDeprExpJune19[[#This Row],[Primary Name]],tblDeprExpJune19[[#This Row],[Secondary Acct]],tblDeprExpJune19[[#This Row],[Secondary  Name]],tblDeprExpJune19[[#This Row],[Alloc4Func]])","v":"4030000DEPN EXPENSE-ELECT3627000STATION EQUIPMENT-SUPERVISORY & ALARMSITUS"},"4030000","DEPN EXPENSE-ELECT","3627000","STATION EQUIPMENT-SUPERVISORY & ALARM","IDU",10.74281,{"$f":"IF(OR(tblDeprExpJune19[[#This Row],[Alloc]]=\"IDU\",tblDeprExpJune19[[#This Row],[Alloc]]=\"OR\",tblDeprExpJune19[[#This Row],[Alloc]]=\"UT\",tblDeprExpJune19[[#This Row],[Alloc]]=\"WYU\",tblDeprExpJune19[[#This Row],[Alloc]]=\"WYP\",tblDeprExpJune19[[#This Row],[Alloc]]=\"CA\",tblDeprExpJune19[[#This Row],[Alloc]]=\"WA\"),\"SITUS\",tblDeprExpJune19[[#This Row],[Alloc]])","v":"SITUS"},{"$f":"INDEX(tblDeprExpLookup[FUNC],MATCH(tblDeprExpJune19[[#This Row],[Concat]],tblDeprExpLookup[Concat],0))","v":"DPW"},{"$f":"IF(tblDeprExpJune19[[#This Row],[Total ($000)]]=0,\"NO\",IF(ISNA(tblDeprExpJune19[[#This Row],[FUNC]]),\"YES\",IF(_xlfn.ISFORMULA(tblDeprExpJune19[[#This Row],[FUNC]]),\"NO\",\"YES\")))","v":"NO"}]
[{"$f":"CONCATENATE(tblDeprExpJune19[[#This Row],[Primary Account]],tblDeprExpJune19[[#This Row],[Primary Name]],tblDeprExpJune19[[#This Row],[Secondary Acct]],tblDeprExpJune19[[#This Row],[Secondary  Name]],tblDeprExpJune19[[#This Row],[Alloc4Func]])","v":"4030000DEPN EXPENSE-ELECT3627000STATION EQUIPMENT-SUPERVISORY & ALARMSITUS"},"4030000","DEPN EXPENSE-ELECT","3627000","STATION EQUIPMENT-SUPERVISORY & ALARM","OR",77.967640000000003,{"$f":"IF(OR(tblDeprExpJune19[[#This Row],[Alloc]]=\"IDU\",tblDeprExpJune19[[#This Row],[Alloc]]=\"OR\",tblDeprExpJune19[[#This Row],[Alloc]]=\"UT\",tblDeprExpJune19[[#This Row],[Alloc]]=\"WYU\",tblDeprExpJune19[[#This Row],[Alloc]]=\"WYP\",tblDeprExpJune19[[#This Row],[Alloc]]=\"CA\",tblDeprExpJune19[[#This Row],[Alloc]]=\"WA\"),\"SITUS\",tblDeprExpJune19[[#This Row],[Alloc]])","v":"SITUS"},{"$f":"INDEX(tblDeprExpLookup[FUNC],MATCH(tblDeprExpJune19[[#This Row],[Concat]],tblDeprExpLookup[Concat],0))","v":"DPW"},{"$f":"IF(tblDeprExpJune19[[#This Row],[Total ($000)]]=0,\"NO\",IF(ISNA(tblDeprExpJune19[[#This Row],[FUNC]]),\"YES\",IF(_xlfn.ISFORMULA(tblDeprExpJune19[[#This Row],[FUNC]]),\"NO\",\"YES\")))","v":"NO"}]
[{"$f":"CONCATENATE(tblDeprExpJune19[[#This Row],[Primary Account]],tblDeprExpJune19[[#This Row],[Primary Name]],tblDeprExpJune19[[#This Row],[Secondary Acct]],tblDeprExpJune19[[#This Row],[Secondary  Name]],tblDeprExpJune19[[#This Row],[Alloc4Func]])","v":"4030000DEPN EXPENSE-ELECT3627000STATION EQUIPMENT-SUPERVISORY & ALARMSITUS"},"4030000","DEPN EXPENSE-ELECT","3627000","STATION EQUIPMENT-SUPERVISORY & ALARM","UT",164.72662,{"$f":"IF(OR(tblDeprExpJune19[[#This Row],[Alloc]]=\"IDU\",tblDeprExpJune19[[#This Row],[Alloc]]=\"OR\",tblDeprExpJune19[[#This Row],[Alloc]]=\"UT\",tblDeprExpJune19[[#This Row],[Alloc]]=\"WYU\",tblDeprExpJune19[[#This Row],[Alloc]]=\"WYP\",tblDeprExpJune19[[#This Row],[Alloc]]=\"CA\",tblDeprExpJune19[[#This Row],[Alloc]]=\"WA\"),\"SITUS\",tblDeprExpJune19[[#This Row],[Alloc]])","v":"SITUS"},{"$f":"INDEX(tblDeprExpLookup[FUNC],MATCH(tblDeprExpJune19[[#This Row],[Concat]],tblDeprExpLookup[Concat],0))","v":"DPW"},{"$f":"IF(tblDeprExpJune19[[#This Row],[Total ($000)]]=0,\"NO\",IF(ISNA(tblDeprExpJune19[[#This Row],[FUNC]]),\"YES\",IF(_xlfn.ISFORMULA(tblDeprExpJune19[[#This Row],[FUNC]]),\"NO\",\"YES\")))","v":"NO"}]
[{"$f":"CONCATENATE(tblDeprExpJune19[[#This Row],[Primary Account]],tblDeprExpJune19[[#This Row],[Primary Name]],tblDeprExpJune19[[#This Row],[Secondary Acct]],tblDeprExpJune19[[#This Row],[Secondary  Name]],tblDeprExpJune19[[#This Row],[Alloc4Func]])","v":"4030000DEPN EXPENSE-ELECT3627000STATION EQUIPMENT-SUPERVISORY & ALARMSITUS"},"4030000","DEPN EXPENSE-ELECT","3627000","STATION EQUIPMENT-SUPERVISORY & ALARM","WA",27.07657,{"$f":"IF(OR(tblDeprExpJune19[[#This Row],[Alloc]]=\"IDU\",tblDeprExpJune19[[#This Row],[Alloc]]=\"OR\",tblDeprExpJune19[[#This Row],[Alloc]]=\"UT\",tblDeprExpJune19[[#This Row],[Alloc]]=\"WYU\",tblDeprExpJune19[[#This Row],[Alloc]]=\"WYP\",tblDeprExpJune19[[#This Row],[Alloc]]=\"CA\",tblDeprExpJune19[[#This Row],[Alloc]]=\"WA\"),\"SITUS\",tblDeprExpJune19[[#This Row],[Alloc]])","v":"SITUS"},{"$f":"INDEX(tblDeprExpLookup[FUNC],MATCH(tblDeprExpJune19[[#This Row],[Concat]],tblDeprExpLookup[Concat],0))","v":"DPW"},{"$f":"IF(tblDeprExpJune19[[#This Row],[Total ($000)]]=0,\"NO\",IF(ISNA(tblDeprExpJune19[[#This Row],[FUNC]]),\"YES\",IF(_xlfn.ISFORMULA(tblDeprExpJune19[[#This Row],[FUNC]]),\"NO\",\"YES\")))","v":"NO"}]
[{"$f":"CONCATENATE(tblDeprExpJune19[[#This Row],[Primary Account]],tblDeprExpJune19[[#This Row],[Primary Name]],tblDeprExpJune19[[#This Row],[Secondary Acct]],tblDeprExpJune19[[#This Row],[Secondary  Name]],tblDeprExpJune19[[#This Row],[Alloc4Func]])","v":"4030000DEPN EXPENSE-ELECT3627000STATION EQUIPMENT-SUPERVISORY & ALARMSITUS"},"4030000","DEPN EXPENSE-ELECT","3627000","STATION EQUIPMENT-SUPERVISORY & ALARM","WYP",39.51737,{"$f":"IF(OR(tblDeprExpJune19[[#This Row],[Alloc]]=\"IDU\",tblDeprExpJune19[[#This Row],[Alloc]]=\"OR\",tblDeprExpJune19[[#This Row],[Alloc]]=\"UT\",tblDeprExpJune19[[#This Row],[Alloc]]=\"WYU\",tblDeprExpJune19[[#This Row],[Alloc]]=\"WYP\",tblDeprExpJune19[[#This Row],[Alloc]]=\"CA\",tblDeprExpJune19[[#This Row],[Alloc]]=\"WA\"),\"SITUS\",tblDeprExpJune19[[#This Row],[Alloc]])","v":"SITUS"},{"$f":"INDEX(tblDeprExpLookup[FUNC],MATCH(tblDeprExpJune19[[#This Row],[Concat]],tblDeprExpLookup[Concat],0))","v":"DPW"},{"$f":"IF(tblDeprExpJune19[[#This Row],[Total ($000)]]=0,\"NO\",IF(ISNA(tblDeprExpJune19[[#This Row],[FUNC]]),\"YES\",IF(_xlfn.ISFORMULA(tblDeprExpJune19[[#This Row],[FUNC]]),\"NO\",\"YES\")))","v":"NO"}]
[{"$f":"CONCATENATE(tblDeprExpJune19[[#This Row],[Primary Account]],tblDeprExpJune19[[#This Row],[Primary Name]],tblDeprExpJune19[[#This Row],[Secondary Acct]],tblDeprExpJune19[[#This Row],[Secondary  Name]],tblDeprExpJune19[[#This Row],[Alloc4Func]])","v":"4030000DEPN EXPENSE-ELECT3627000STATION EQUIPMENT-SUPERVISORY & ALARMSITUS"},"4030000","DEPN EXPENSE-ELECT","3627000","STATION EQUIPMENT-SUPERVISORY & ALARM","WYU",4.6780900000000001,{"$f":"IF(OR(tblDeprExpJune19[[#This Row],[Alloc]]=\"IDU\",tblDeprExpJune19[[#This Row],[Alloc]]=\"OR\",tblDeprExpJune19[[#This Row],[Alloc]]=\"UT\",tblDeprExpJune19[[#This Row],[Alloc]]=\"WYU\",tblDeprExpJune19[[#This Row],[Alloc]]=\"WYP\",tblDeprExpJune19[[#This Row],[Alloc]]=\"CA\",tblDeprExpJune19[[#This Row],[Alloc]]=\"WA\"),\"SITUS\",tblDeprExpJune19[[#This Row],[Alloc]])","v":"SITUS"},{"$f":"INDEX(tblDeprExpLookup[FUNC],MATCH(tblDeprExpJune19[[#This Row],[Concat]],tblDeprExpLookup[Concat],0))","v":"DPW"},{"$f":"IF(tblDeprExpJune19[[#This Row],[Total ($000)]]=0,\"NO\",IF(ISNA(tblDeprExpJune19[[#This Row],[FUNC]]),\"YES\",IF(_xlfn.ISFORMULA(tblDeprExpJune19[[#This Row],[FUNC]]),\"NO\",\"YES\")))","v":"NO"}]
[{"$f":"CONCATENATE(tblDeprExpJune19[[#This Row],[Primary Account]],tblDeprExpJune19[[#This Row],[Primary Name]],tblDeprExpJune19[[#This Row],[Secondary Acct]],tblDeprExpJune19[[#This Row],[Secondary  Name]],tblDeprExpJune19[[#This Row],[Alloc4Func]])","v":"4030000DEPN EXPENSE-ELECT3640000\"POLES, TOWERS AND FIXTURES\"SITUS"},"4030000","DEPN EXPENSE-ELECT","3640000","\"POLES, TOWERS AND FIXTURES\"","CA",2617.3049500000002,{"$f":"IF(OR(tblDeprExpJune19[[#This Row],[Alloc]]=\"IDU\",tblDeprExpJune19[[#This Row],[Alloc]]=\"OR\",tblDeprExpJune19[[#This Row],[Alloc]]=\"UT\",tblDeprExpJune19[[#This Row],[Alloc]]=\"WYU\",tblDeprExpJune19[[#This Row],[Alloc]]=\"WYP\",tblDeprExpJune19[[#This Row],[Alloc]]=\"CA\",tblDeprExpJune19[[#This Row],[Alloc]]=\"WA\"),\"SITUS\",tblDeprExpJune19[[#This Row],[Alloc]])","v":"SITUS"},{"$f":"INDEX(tblDeprExpLookup[FUNC],MATCH(tblDeprExpJune19[[#This Row],[Concat]],tblDeprExpLookup[Concat],0))","v":"DPW"},{"$f":"IF(tblDeprExpJune19[[#This Row],[Total ($000)]]=0,\"NO\",IF(ISNA(tblDeprExpJune19[[#This Row],[FUNC]]),\"YES\",IF(_xlfn.ISFORMULA(tblDeprExpJune19[[#This Row],[FUNC]]),\"NO\",\"YES\")))","v":"NO"}]
[{"$f":"CONCATENATE(tblDeprExpJune19[[#This Row],[Primary Account]],tblDeprExpJune19[[#This Row],[Primary Name]],tblDeprExpJune19[[#This Row],[Secondary Acct]],tblDeprExpJune19[[#This Row],[Secondary  Name]],tblDeprExpJune19[[#This Row],[Alloc4Func]])","v":"4030000DEPN EXPENSE-ELECT3640000\"POLES, TOWERS AND FIXTURES\"SITUS"},"4030000","DEPN EXPENSE-ELECT","3640000","\"POLES, TOWERS AND FIXTURES\"","IDU",3272.4388800000002,{"$f":"IF(OR(tblDeprExpJune19[[#This Row],[Alloc]]=\"IDU\",tblDeprExpJune19[[#This Row],[Alloc]]=\"OR\",tblDeprExpJune19[[#This Row],[Alloc]]=\"UT\",tblDeprExpJune19[[#This Row],[Alloc]]=\"WYU\",tblDeprExpJune19[[#This Row],[Alloc]]=\"WYP\",tblDeprExpJune19[[#This Row],[Alloc]]=\"CA\",tblDeprExpJune19[[#This Row],[Alloc]]=\"WA\"),\"SITUS\",tblDeprExpJune19[[#This Row],[Alloc]])","v":"SITUS"},{"$f":"INDEX(tblDeprExpLookup[FUNC],MATCH(tblDeprExpJune19[[#This Row],[Concat]],tblDeprExpLookup[Concat],0))","v":"DPW"},{"$f":"IF(tblDeprExpJune19[[#This Row],[Total ($000)]]=0,\"NO\",IF(ISNA(tblDeprExpJune19[[#This Row],[FUNC]]),\"YES\",IF(_xlfn.ISFORMULA(tblDeprExpJune19[[#This Row],[FUNC]]),\"NO\",\"YES\")))","v":"NO"}]
[{"$f":"CONCATENATE(tblDeprExpJune19[[#This Row],[Primary Account]],tblDeprExpJune19[[#This Row],[Primary Name]],tblDeprExpJune19[[#This Row],[Secondary Acct]],tblDeprExpJune19[[#This Row],[Secondary  Name]],tblDeprExpJune19[[#This Row],[Alloc4Func]])","v":"4030000DEPN EXPENSE-ELECT3640000\"POLES, TOWERS AND FIXTURES\"SITUS"},"4030000","DEPN EXPENSE-ELECT","3640000","\"POLES, TOWERS AND FIXTURES\"","OR",12836.20946,{"$f":"IF(OR(tblDeprExpJune19[[#This Row],[Alloc]]=\"IDU\",tblDeprExpJune19[[#This Row],[Alloc]]=\"OR\",tblDeprExpJune19[[#This Row],[Alloc]]=\"UT\",tblDeprExpJune19[[#This Row],[Alloc]]=\"WYU\",tblDeprExpJune19[[#This Row],[Alloc]]=\"WYP\",tblDeprExpJune19[[#This Row],[Alloc]]=\"CA\",tblDeprExpJune19[[#This Row],[Alloc]]=\"WA\"),\"SITUS\",tblDeprExpJune19[[#This Row],[Alloc]])","v":"SITUS"},{"$f":"INDEX(tblDeprExpLookup[FUNC],MATCH(tblDeprExpJune19[[#This Row],[Concat]],tblDeprExpLookup[Concat],0))","v":"DPW"},{"$f":"IF(tblDeprExpJune19[[#This Row],[Total ($000)]]=0,\"NO\",IF(ISNA(tblDeprExpJune19[[#This Row],[FUNC]]),\"YES\",IF(_xlfn.ISFORMULA(tblDeprExpJune19[[#This Row],[FUNC]]),\"NO\",\"YES\")))","v":"NO"}]
[{"$f":"CONCATENATE(tblDeprExpJune19[[#This Row],[Primary Account]],tblDeprExpJune19[[#This Row],[Primary Name]],tblDeprExpJune19[[#This Row],[Secondary Acct]],tblDeprExpJune19[[#This Row],[Secondary  Name]],tblDeprExpJune19[[#This Row],[Alloc4Func]])","v":"4030000DEPN EXPENSE-ELECT3640000\"POLES, TOWERS AND FIXTURES\"SITUS"},"4030000","DEPN EXPENSE-ELECT","3640000","\"POLES, TOWERS AND FIXTURES\"","UT",14114.03808,{"$f":"IF(OR(tblDeprExpJune19[[#This Row],[Alloc]]=\"IDU\",tblDeprExpJune19[[#This Row],[Alloc]]=\"OR\",tblDeprExpJune19[[#This Row],[Alloc]]=\"UT\",tblDeprExpJune19[[#This Row],[Alloc]]=\"WYU\",tblDeprExpJune19[[#This Row],[Alloc]]=\"WYP\",tblDeprExpJune19[[#This Row],[Alloc]]=\"CA\",tblDeprExpJune19[[#This Row],[Alloc]]=\"WA\"),\"SITUS\",tblDeprExpJune19[[#This Row],[Alloc]])","v":"SITUS"},{"$f":"INDEX(tblDeprExpLookup[FUNC],MATCH(tblDeprExpJune19[[#This Row],[Concat]],tblDeprExpLookup[Concat],0))","v":"DPW"},{"$f":"IF(tblDeprExpJune19[[#This Row],[Total ($000)]]=0,\"NO\",IF(ISNA(tblDeprExpJune19[[#This Row],[FUNC]]),\"YES\",IF(_xlfn.ISFORMULA(tblDeprExpJune19[[#This Row],[FUNC]]),\"NO\",\"YES\")))","v":"NO"}]
[{"$f":"CONCATENATE(tblDeprExpJune19[[#This Row],[Primary Account]],tblDeprExpJune19[[#This Row],[Primary Name]],tblDeprExpJune19[[#This Row],[Secondary Acct]],tblDeprExpJune19[[#This Row],[Secondary  Name]],tblDeprExpJune19[[#This Row],[Alloc4Func]])","v":"4030000DEPN EXPENSE-ELECT3640000\"POLES, TOWERS AND FIXTURES\"SITUS"},"4030000","DEPN EXPENSE-ELECT","3640000","\"POLES, TOWERS AND FIXTURES\"","WA",3978.5670599999999,{"$f":"IF(OR(tblDeprExpJune19[[#This Row],[Alloc]]=\"IDU\",tblDeprExpJune19[[#This Row],[Alloc]]=\"OR\",tblDeprExpJune19[[#This Row],[Alloc]]=\"UT\",tblDeprExpJune19[[#This Row],[Alloc]]=\"WYU\",tblDeprExpJune19[[#This Row],[Alloc]]=\"WYP\",tblDeprExpJune19[[#This Row],[Alloc]]=\"CA\",tblDeprExpJune19[[#This Row],[Alloc]]=\"WA\"),\"SITUS\",tblDeprExpJune19[[#This Row],[Alloc]])","v":"SITUS"},{"$f":"INDEX(tblDeprExpLookup[FUNC],MATCH(tblDeprExpJune19[[#This Row],[Concat]],tblDeprExpLookup[Concat],0))","v":"DPW"},{"$f":"IF(tblDeprExpJune19[[#This Row],[Total ($000)]]=0,\"NO\",IF(ISNA(tblDeprExpJune19[[#This Row],[FUNC]]),\"YES\",IF(_xlfn.ISFORMULA(tblDeprExpJune19[[#This Row],[FUNC]]),\"NO\",\"YES\")))","v":"NO"}]
[{"$f":"CONCATENATE(tblDeprExpJune19[[#This Row],[Primary Account]],tblDeprExpJune19[[#This Row],[Primary Name]],tblDeprExpJune19[[#This Row],[Secondary Acct]],tblDeprExpJune19[[#This Row],[Secondary  Name]],tblDeprExpJune19[[#This Row],[Alloc4Func]])","v":"4030000DEPN EXPENSE-ELECT3640000\"POLES, TOWERS AND FIXTURES\"SITUS"},"4030000","DEPN EXPENSE-ELECT","3640000","\"POLES, TOWERS AND FIXTURES\"","WYP",5325.6214399999999,{"$f":"IF(OR(tblDeprExpJune19[[#This Row],[Alloc]]=\"IDU\",tblDeprExpJune19[[#This Row],[Alloc]]=\"OR\",tblDeprExpJune19[[#This Row],[Alloc]]=\"UT\",tblDeprExpJune19[[#This Row],[Alloc]]=\"WYU\",tblDeprExpJune19[[#This Row],[Alloc]]=\"WYP\",tblDeprExpJune19[[#This Row],[Alloc]]=\"CA\",tblDeprExpJune19[[#This Row],[Alloc]]=\"WA\"),\"SITUS\",tblDeprExpJune19[[#This Row],[Alloc]])","v":"SITUS"},{"$f":"INDEX(tblDeprExpLookup[FUNC],MATCH(tblDeprExpJune19[[#This Row],[Concat]],tblDeprExpLookup[Concat],0))","v":"DPW"},{"$f":"IF(tblDeprExpJune19[[#This Row],[Total ($000)]]=0,\"NO\",IF(ISNA(tblDeprExpJune19[[#This Row],[FUNC]]),\"YES\",IF(_xlfn.ISFORMULA(tblDeprExpJune19[[#This Row],[FUNC]]),\"NO\",\"YES\")))","v":"NO"}]
[{"$f":"CONCATENATE(tblDeprExpJune19[[#This Row],[Primary Account]],tblDeprExpJune19[[#This Row],[Primary Name]],tblDeprExpJune19[[#This Row],[Secondary Acct]],tblDeprExpJune19[[#This Row],[Secondary  Name]],tblDeprExpJune19[[#This Row],[Alloc4Func]])","v":"4030000DEPN EXPENSE-ELECT3640000\"POLES, TOWERS AND FIXTURES\"SITUS"},"4030000","DEPN EXPENSE-ELECT","3640000","\"POLES, TOWERS AND FIXTURES\"","WYU",1121.5202999999999,{"$f":"IF(OR(tblDeprExpJune19[[#This Row],[Alloc]]=\"IDU\",tblDeprExpJune19[[#This Row],[Alloc]]=\"OR\",tblDeprExpJune19[[#This Row],[Alloc]]=\"UT\",tblDeprExpJune19[[#This Row],[Alloc]]=\"WYU\",tblDeprExpJune19[[#This Row],[Alloc]]=\"WYP\",tblDeprExpJune19[[#This Row],[Alloc]]=\"CA\",tblDeprExpJune19[[#This Row],[Alloc]]=\"WA\"),\"SITUS\",tblDeprExpJune19[[#This Row],[Alloc]])","v":"SITUS"},{"$f":"INDEX(tblDeprExpLookup[FUNC],MATCH(tblDeprExpJune19[[#This Row],[Concat]],tblDeprExpLookup[Concat],0))","v":"DPW"},{"$f":"IF(tblDeprExpJune19[[#This Row],[Total ($000)]]=0,\"NO\",IF(ISNA(tblDeprExpJune19[[#This Row],[FUNC]]),\"YES\",IF(_xlfn.ISFORMULA(tblDeprExpJune19[[#This Row],[FUNC]]),\"NO\",\"YES\")))","v":"NO"}]
[{"$f":"CONCATENATE(tblDeprExpJune19[[#This Row],[Primary Account]],tblDeprExpJune19[[#This Row],[Primary Name]],tblDeprExpJune19[[#This Row],[Secondary Acct]],tblDeprExpJune19[[#This Row],[Secondary  Name]],tblDeprExpJune19[[#This Row],[Alloc4Func]])","v":"4030000DEPN EXPENSE-ELECT3650000OVERHEAD CONDUCTORS & DEVICESSITUS"},"4030000","DEPN EXPENSE-ELECT","3650000","OVERHEAD CONDUCTORS & DEVICES","CA",1118.0544500000001,{"$f":"IF(OR(tblDeprExpJune19[[#This Row],[Alloc]]=\"IDU\",tblDeprExpJune19[[#This Row],[Alloc]]=\"OR\",tblDeprExpJune19[[#This Row],[Alloc]]=\"UT\",tblDeprExpJune19[[#This Row],[Alloc]]=\"WYU\",tblDeprExpJune19[[#This Row],[Alloc]]=\"WYP\",tblDeprExpJune19[[#This Row],[Alloc]]=\"CA\",tblDeprExpJune19[[#This Row],[Alloc]]=\"WA\"),\"SITUS\",tblDeprExpJune19[[#This Row],[Alloc]])","v":"SITUS"},{"$f":"INDEX(tblDeprExpLookup[FUNC],MATCH(tblDeprExpJune19[[#This Row],[Concat]],tblDeprExpLookup[Concat],0))","v":"DPW"},{"$f":"IF(tblDeprExpJune19[[#This Row],[Total ($000)]]=0,\"NO\",IF(ISNA(tblDeprExpJune19[[#This Row],[FUNC]]),\"YES\",IF(_xlfn.ISFORMULA(tblDeprExpJune19[[#This Row],[FUNC]]),\"NO\",\"YES\")))","v":"NO"}]
[{"$f":"CONCATENATE(tblDeprExpJune19[[#This Row],[Primary Account]],tblDeprExpJune19[[#This Row],[Primary Name]],tblDeprExpJune19[[#This Row],[Secondary Acct]],tblDeprExpJune19[[#This Row],[Secondary  Name]],tblDeprExpJune19[[#This Row],[Alloc4Func]])","v":"4030000DEPN EXPENSE-ELECT3650000OVERHEAD CONDUCTORS & DEVICESSITUS"},"4030000","DEPN EXPENSE-ELECT","3650000","OVERHEAD CONDUCTORS & DEVICES","IDU",974.59765000000004,{"$f":"IF(OR(tblDeprExpJune19[[#This Row],[Alloc]]=\"IDU\",tblDeprExpJune19[[#This Row],[Alloc]]=\"OR\",tblDeprExpJune19[[#This Row],[Alloc]]=\"UT\",tblDeprExpJune19[[#This Row],[Alloc]]=\"WYU\",tblDeprExpJune19[[#This Row],[Alloc]]=\"WYP\",tblDeprExpJune19[[#This Row],[Alloc]]=\"CA\",tblDeprExpJune19[[#This Row],[Alloc]]=\"WA\"),\"SITUS\",tblDeprExpJune19[[#This Row],[Alloc]])","v":"SITUS"},{"$f":"INDEX(tblDeprExpLookup[FUNC],MATCH(tblDeprExpJune19[[#This Row],[Concat]],tblDeprExpLookup[Concat],0))","v":"DPW"},{"$f":"IF(tblDeprExpJune19[[#This Row],[Total ($000)]]=0,\"NO\",IF(ISNA(tblDeprExpJune19[[#This Row],[FUNC]]),\"YES\",IF(_xlfn.ISFORMULA(tblDeprExpJune19[[#This Row],[FUNC]]),\"NO\",\"YES\")))","v":"NO"}]
[{"$f":"CONCATENATE(tblDeprExpJune19[[#This Row],[Primary Account]],tblDeprExpJune19[[#This Row],[Primary Name]],tblDeprExpJune19[[#This Row],[Secondary Acct]],tblDeprExpJune19[[#This Row],[Secondary  Name]],tblDeprExpJune19[[#This Row],[Alloc4Func]])","v":"4030000DEPN EXPENSE-ELECT3650000OVERHEAD CONDUCTORS & DEVICESSITUS"},"4030000","DEPN EXPENSE-ELECT","3650000","OVERHEAD CONDUCTORS & DEVICES","OR",7071.8676999999998,{"$f":"IF(OR(tblDeprExpJune19[[#This Row],[Alloc]]=\"IDU\",tblDeprExpJune19[[#This Row],[Alloc]]=\"OR\",tblDeprExpJune19[[#This Row],[Alloc]]=\"UT\",tblDeprExpJune19[[#This Row],[Alloc]]=\"WYU\",tblDeprExpJune19[[#This Row],[Alloc]]=\"WYP\",tblDeprExpJune19[[#This Row],[Alloc]]=\"CA\",tblDeprExpJune19[[#This Row],[Alloc]]=\"WA\"),\"SITUS\",tblDeprExpJune19[[#This Row],[Alloc]])","v":"SITUS"},{"$f":"INDEX(tblDeprExpLookup[FUNC],MATCH(tblDeprExpJune19[[#This Row],[Concat]],tblDeprExpLookup[Concat],0))","v":"DPW"},{"$f":"IF(tblDeprExpJune19[[#This Row],[Total ($000)]]=0,\"NO\",IF(ISNA(tblDeprExpJune19[[#This Row],[FUNC]]),\"YES\",IF(_xlfn.ISFORMULA(tblDeprExpJune19[[#This Row],[FUNC]]),\"NO\",\"YES\")))","v":"NO"}]
[{"$f":"CONCATENATE(tblDeprExpJune19[[#This Row],[Primary Account]],tblDeprExpJune19[[#This Row],[Primary Name]],tblDeprExpJune19[[#This Row],[Secondary Acct]],tblDeprExpJune19[[#This Row],[Secondary  Name]],tblDeprExpJune19[[#This Row],[Alloc4Func]])","v":"4030000DEPN EXPENSE-ELECT3650000OVERHEAD CONDUCTORS & DEVICESSITUS"},"4030000","DEPN EXPENSE-ELECT","3650000","OVERHEAD CONDUCTORS & DEVICES","UT",6703.0341500000004,{"$f":"IF(OR(tblDeprExpJune19[[#This Row],[Alloc]]=\"IDU\",tblDeprExpJune19[[#This Row],[Alloc]]=\"OR\",tblDeprExpJune19[[#This Row],[Alloc]]=\"UT\",tblDeprExpJune19[[#This Row],[Alloc]]=\"WYU\",tblDeprExpJune19[[#This Row],[Alloc]]=\"WYP\",tblDeprExpJune19[[#This Row],[Alloc]]=\"CA\",tblDeprExpJune19[[#This Row],[Alloc]]=\"WA\"),\"SITUS\",tblDeprExpJune19[[#This Row],[Alloc]])","v":"SITUS"},{"$f":"INDEX(tblDeprExpLookup[FUNC],MATCH(tblDeprExpJune19[[#This Row],[Concat]],tblDeprExpLookup[Concat],0))","v":"DPW"},{"$f":"IF(tblDeprExpJune19[[#This Row],[Total ($000)]]=0,\"NO\",IF(ISNA(tblDeprExpJune19[[#This Row],[FUNC]]),\"YES\",IF(_xlfn.ISFORMULA(tblDeprExpJune19[[#This Row],[FUNC]]),\"NO\",\"YES\")))","v":"NO"}]
[{"$f":"CONCATENATE(tblDeprExpJune19[[#This Row],[Primary Account]],tblDeprExpJune19[[#This Row],[Primary Name]],tblDeprExpJune19[[#This Row],[Secondary Acct]],tblDeprExpJune19[[#This Row],[Secondary  Name]],tblDeprExpJune19[[#This Row],[Alloc4Func]])","v":"4030000DEPN EXPENSE-ELECT3650000OVERHEAD CONDUCTORS & DEVICESSITUS"},"4030000","DEPN EXPENSE-ELECT","3650000","OVERHEAD CONDUCTORS & DEVICES","WA",1850.29556,{"$f":"IF(OR(tblDeprExpJune19[[#This Row],[Alloc]]=\"IDU\",tblDeprExpJune19[[#This Row],[Alloc]]=\"OR\",tblDeprExpJune19[[#This Row],[Alloc]]=\"UT\",tblDeprExpJune19[[#This Row],[Alloc]]=\"WYU\",tblDeprExpJune19[[#This Row],[Alloc]]=\"WYP\",tblDeprExpJune19[[#This Row],[Alloc]]=\"CA\",tblDeprExpJune19[[#This Row],[Alloc]]=\"WA\"),\"SITUS\",tblDeprExpJune19[[#This Row],[Alloc]])","v":"SITUS"},{"$f":"INDEX(tblDeprExpLookup[FUNC],MATCH(tblDeprExpJune19[[#This Row],[Concat]],tblDeprExpLookup[Concat],0))","v":"DPW"},{"$f":"IF(tblDeprExpJune19[[#This Row],[Total ($000)]]=0,\"NO\",IF(ISNA(tblDeprExpJune19[[#This Row],[FUNC]]),\"YES\",IF(_xlfn.ISFORMULA(tblDeprExpJune19[[#This Row],[FUNC]]),\"NO\",\"YES\")))","v":"NO"}]
[{"$f":"CONCATENATE(tblDeprExpJune19[[#This Row],[Primary Account]],tblDeprExpJune19[[#This Row],[Primary Name]],tblDeprExpJune19[[#This Row],[Secondary Acct]],tblDeprExpJune19[[#This Row],[Secondary  Name]],tblDeprExpJune19[[#This Row],[Alloc4Func]])","v":"4030000DEPN EXPENSE-ELECT3650000OVERHEAD CONDUCTORS & DEVICESSITUS"},"4030000","DEPN EXPENSE-ELECT","3650000","OVERHEAD CONDUCTORS & DEVICES","WYP",2441.4628200000002,{"$f":"IF(OR(tblDeprExpJune19[[#This Row],[Alloc]]=\"IDU\",tblDeprExpJune19[[#This Row],[Alloc]]=\"OR\",tblDeprExpJune19[[#This Row],[Alloc]]=\"UT\",tblDeprExpJune19[[#This Row],[Alloc]]=\"WYU\",tblDeprExpJune19[[#This Row],[Alloc]]=\"WYP\",tblDeprExpJune19[[#This Row],[Alloc]]=\"CA\",tblDeprExpJune19[[#This Row],[Alloc]]=\"WA\"),\"SITUS\",tblDeprExpJune19[[#This Row],[Alloc]])","v":"SITUS"},{"$f":"INDEX(tblDeprExpLookup[FUNC],MATCH(tblDeprExpJune19[[#This Row],[Concat]],tblDeprExpLookup[Concat],0))","v":"DPW"},{"$f":"IF(tblDeprExpJune19[[#This Row],[Total ($000)]]=0,\"NO\",IF(ISNA(tblDeprExpJune19[[#This Row],[FUNC]]),\"YES\",IF(_xlfn.ISFORMULA(tblDeprExpJune19[[#This Row],[FUNC]]),\"NO\",\"YES\")))","v":"NO"}]
[{"$f":"CONCATENATE(tblDeprExpJune19[[#This Row],[Primary Account]],tblDeprExpJune19[[#This Row],[Primary Name]],tblDeprExpJune19[[#This Row],[Secondary Acct]],tblDeprExpJune19[[#This Row],[Secondary  Name]],tblDeprExpJune19[[#This Row],[Alloc4Func]])","v":"4030000DEPN EXPENSE-ELECT3650000OVERHEAD CONDUCTORS & DEVICESSITUS"},"4030000","DEPN EXPENSE-ELECT","3650000","OVERHEAD CONDUCTORS & DEVICES","WYU",341.47188,{"$f":"IF(OR(tblDeprExpJune19[[#This Row],[Alloc]]=\"IDU\",tblDeprExpJune19[[#This Row],[Alloc]]=\"OR\",tblDeprExpJune19[[#This Row],[Alloc]]=\"UT\",tblDeprExpJune19[[#This Row],[Alloc]]=\"WYU\",tblDeprExpJune19[[#This Row],[Alloc]]=\"WYP\",tblDeprExpJune19[[#This Row],[Alloc]]=\"CA\",tblDeprExpJune19[[#This Row],[Alloc]]=\"WA\"),\"SITUS\",tblDeprExpJune19[[#This Row],[Alloc]])","v":"SITUS"},{"$f":"INDEX(tblDeprExpLookup[FUNC],MATCH(tblDeprExpJune19[[#This Row],[Concat]],tblDeprExpLookup[Concat],0))","v":"DPW"},{"$f":"IF(tblDeprExpJune19[[#This Row],[Total ($000)]]=0,\"NO\",IF(ISNA(tblDeprExpJune19[[#This Row],[FUNC]]),\"YES\",IF(_xlfn.ISFORMULA(tblDeprExpJune19[[#This Row],[FUNC]]),\"NO\",\"YES\")))","v":"NO"}]
[{"$f":"CONCATENATE(tblDeprExpJune19[[#This Row],[Primary Account]],tblDeprExpJune19[[#This Row],[Primary Name]],tblDeprExpJune19[[#This Row],[Secondary Acct]],tblDeprExpJune19[[#This Row],[Secondary  Name]],tblDeprExpJune19[[#This Row],[Alloc4Func]])","v":"4030000DEPN EXPENSE-ELECT3660000UNDERGROUND CONDUITSITUS"},"4030000","DEPN EXPENSE-ELECT","3660000","UNDERGROUND CONDUIT","CA",540.20898999999997,{"$f":"IF(OR(tblDeprExpJune19[[#This Row],[Alloc]]=\"IDU\",tblDeprExpJune19[[#This Row],[Alloc]]=\"OR\",tblDeprExpJune19[[#This Row],[Alloc]]=\"UT\",tblDeprExpJune19[[#This Row],[Alloc]]=\"WYU\",tblDeprExpJune19[[#This Row],[Alloc]]=\"WYP\",tblDeprExpJune19[[#This Row],[Alloc]]=\"CA\",tblDeprExpJune19[[#This Row],[Alloc]]=\"WA\"),\"SITUS\",tblDeprExpJune19[[#This Row],[Alloc]])","v":"SITUS"},{"$f":"INDEX(tblDeprExpLookup[FUNC],MATCH(tblDeprExpJune19[[#This Row],[Concat]],tblDeprExpLookup[Concat],0))","v":"DPW"},{"$f":"IF(tblDeprExpJune19[[#This Row],[Total ($000)]]=0,\"NO\",IF(ISNA(tblDeprExpJune19[[#This Row],[FUNC]]),\"YES\",IF(_xlfn.ISFORMULA(tblDeprExpJune19[[#This Row],[FUNC]]),\"NO\",\"YES\")))","v":"NO"}]
[{"$f":"CONCATENATE(tblDeprExpJune19[[#This Row],[Primary Account]],tblDeprExpJune19[[#This Row],[Primary Name]],tblDeprExpJune19[[#This Row],[Secondary Acct]],tblDeprExpJune19[[#This Row],[Secondary  Name]],tblDeprExpJune19[[#This Row],[Alloc4Func]])","v":"4030000DEPN EXPENSE-ELECT3660000UNDERGROUND CONDUITSITUS"},"4030000","DEPN EXPENSE-ELECT","3660000","UNDERGROUND CONDUIT","IDU",240.49545000000001,{"$f":"IF(OR(tblDeprExpJune19[[#This Row],[Alloc]]=\"IDU\",tblDeprExpJune19[[#This Row],[Alloc]]=\"OR\",tblDeprExpJune19[[#This Row],[Alloc]]=\"UT\",tblDeprExpJune19[[#This Row],[Alloc]]=\"WYU\",tblDeprExpJune19[[#This Row],[Alloc]]=\"WYP\",tblDeprExpJune19[[#This Row],[Alloc]]=\"CA\",tblDeprExpJune19[[#This Row],[Alloc]]=\"WA\"),\"SITUS\",tblDeprExpJune19[[#This Row],[Alloc]])","v":"SITUS"},{"$f":"INDEX(tblDeprExpLookup[FUNC],MATCH(tblDeprExpJune19[[#This Row],[Concat]],tblDeprExpLookup[Concat],0))","v":"DPW"},{"$f":"IF(tblDeprExpJune19[[#This Row],[Total ($000)]]=0,\"NO\",IF(ISNA(tblDeprExpJune19[[#This Row],[FUNC]]),\"YES\",IF(_xlfn.ISFORMULA(tblDeprExpJune19[[#This Row],[FUNC]]),\"NO\",\"YES\")))","v":"NO"}]
[{"$f":"CONCATENATE(tblDeprExpJune19[[#This Row],[Primary Account]],tblDeprExpJune19[[#This Row],[Primary Name]],tblDeprExpJune19[[#This Row],[Secondary Acct]],tblDeprExpJune19[[#This Row],[Secondary  Name]],tblDeprExpJune19[[#This Row],[Alloc4Func]])","v":"4030000DEPN EXPENSE-ELECT3660000UNDERGROUND CONDUITSITUS"},"4030000","DEPN EXPENSE-ELECT","3660000","UNDERGROUND CONDUIT","OR",1906.3262,{"$f":"IF(OR(tblDeprExpJune19[[#This Row],[Alloc]]=\"IDU\",tblDeprExpJune19[[#This Row],[Alloc]]=\"OR\",tblDeprExpJune19[[#This Row],[Alloc]]=\"UT\",tblDeprExpJune19[[#This Row],[Alloc]]=\"WYU\",tblDeprExpJune19[[#This Row],[Alloc]]=\"WYP\",tblDeprExpJune19[[#This Row],[Alloc]]=\"CA\",tblDeprExpJune19[[#This Row],[Alloc]]=\"WA\"),\"SITUS\",tblDeprExpJune19[[#This Row],[Alloc]])","v":"SITUS"},{"$f":"INDEX(tblDeprExpLookup[FUNC],MATCH(tblDeprExpJune19[[#This Row],[Concat]],tblDeprExpLookup[Concat],0))","v":"DPW"},{"$f":"IF(tblDeprExpJune19[[#This Row],[Total ($000)]]=0,\"NO\",IF(ISNA(tblDeprExpJune19[[#This Row],[FUNC]]),\"YES\",IF(_xlfn.ISFORMULA(tblDeprExpJune19[[#This Row],[FUNC]]),\"NO\",\"YES\")))","v":"NO"}]
[{"$f":"CONCATENATE(tblDeprExpJune19[[#This Row],[Primary Account]],tblDeprExpJune19[[#This Row],[Primary Name]],tblDeprExpJune19[[#This Row],[Secondary Acct]],tblDeprExpJune19[[#This Row],[Secondary  Name]],tblDeprExpJune19[[#This Row],[Alloc4Func]])","v":"4030000DEPN EXPENSE-ELECT3660000UNDERGROUND CONDUITSITUS"},"4030000","DEPN EXPENSE-ELECT","3660000","UNDERGROUND CONDUIT","UT",5213.9743799999997,{"$f":"IF(OR(tblDeprExpJune19[[#This Row],[Alloc]]=\"IDU\",tblDeprExpJune19[[#This Row],[Alloc]]=\"OR\",tblDeprExpJune19[[#This Row],[Alloc]]=\"UT\",tblDeprExpJune19[[#This Row],[Alloc]]=\"WYU\",tblDeprExpJune19[[#This Row],[Alloc]]=\"WYP\",tblDeprExpJune19[[#This Row],[Alloc]]=\"CA\",tblDeprExpJune19[[#This Row],[Alloc]]=\"WA\"),\"SITUS\",tblDeprExpJune19[[#This Row],[Alloc]])","v":"SITUS"},{"$f":"INDEX(tblDeprExpLookup[FUNC],MATCH(tblDeprExpJune19[[#This Row],[Concat]],tblDeprExpLookup[Concat],0))","v":"DPW"},{"$f":"IF(tblDeprExpJune19[[#This Row],[Total ($000)]]=0,\"NO\",IF(ISNA(tblDeprExpJune19[[#This Row],[FUNC]]),\"YES\",IF(_xlfn.ISFORMULA(tblDeprExpJune19[[#This Row],[FUNC]]),\"NO\",\"YES\")))","v":"NO"}]
[{"$f":"CONCATENATE(tblDeprExpJune19[[#This Row],[Primary Account]],tblDeprExpJune19[[#This Row],[Primary Name]],tblDeprExpJune19[[#This Row],[Secondary Acct]],tblDeprExpJune19[[#This Row],[Secondary  Name]],tblDeprExpJune19[[#This Row],[Alloc4Func]])","v":"4030000DEPN EXPENSE-ELECT3660000UNDERGROUND CONDUITSITUS"},"4030000","DEPN EXPENSE-ELECT","3660000","UNDERGROUND CONDUIT","WA",531.9674,{"$f":"IF(OR(tblDeprExpJune19[[#This Row],[Alloc]]=\"IDU\",tblDeprExpJune19[[#This Row],[Alloc]]=\"OR\",tblDeprExpJune19[[#This Row],[Alloc]]=\"UT\",tblDeprExpJune19[[#This Row],[Alloc]]=\"WYU\",tblDeprExpJune19[[#This Row],[Alloc]]=\"WYP\",tblDeprExpJune19[[#This Row],[Alloc]]=\"CA\",tblDeprExpJune19[[#This Row],[Alloc]]=\"WA\"),\"SITUS\",tblDeprExpJune19[[#This Row],[Alloc]])","v":"SITUS"},{"$f":"INDEX(tblDeprExpLookup[FUNC],MATCH(tblDeprExpJune19[[#This Row],[Concat]],tblDeprExpLookup[Concat],0))","v":"DPW"},{"$f":"IF(tblDeprExpJune19[[#This Row],[Total ($000)]]=0,\"NO\",IF(ISNA(tblDeprExpJune19[[#This Row],[FUNC]]),\"YES\",IF(_xlfn.ISFORMULA(tblDeprExpJune19[[#This Row],[FUNC]]),\"NO\",\"YES\")))","v":"NO"}]
[{"$f":"CONCATENATE(tblDeprExpJune19[[#This Row],[Primary Account]],tblDeprExpJune19[[#This Row],[Primary Name]],tblDeprExpJune19[[#This Row],[Secondary Acct]],tblDeprExpJune19[[#This Row],[Secondary  Name]],tblDeprExpJune19[[#This Row],[Alloc4Func]])","v":"4030000DEPN EXPENSE-ELECT3660000UNDERGROUND CONDUITSITUS"},"4030000","DEPN EXPENSE-ELECT","3660000","UNDERGROUND CONDUIT","WYP",809.52656999999999,{"$f":"IF(OR(tblDeprExpJune19[[#This Row],[Alloc]]=\"IDU\",tblDeprExpJune19[[#This Row],[Alloc]]=\"OR\",tblDeprExpJune19[[#This Row],[Alloc]]=\"UT\",tblDeprExpJune19[[#This Row],[Alloc]]=\"WYU\",tblDeprExpJune19[[#This Row],[Alloc]]=\"WYP\",tblDeprExpJune19[[#This Row],[Alloc]]=\"CA\",tblDeprExpJune19[[#This Row],[Alloc]]=\"WA\"),\"SITUS\",tblDeprExpJune19[[#This Row],[Alloc]])","v":"SITUS"},{"$f":"INDEX(tblDeprExpLookup[FUNC],MATCH(tblDeprExpJune19[[#This Row],[Concat]],tblDeprExpLookup[Concat],0))","v":"DPW"},{"$f":"IF(tblDeprExpJune19[[#This Row],[Total ($000)]]=0,\"NO\",IF(ISNA(tblDeprExpJune19[[#This Row],[FUNC]]),\"YES\",IF(_xlfn.ISFORMULA(tblDeprExpJune19[[#This Row],[FUNC]]),\"NO\",\"YES\")))","v":"NO"}]
[{"$f":"CONCATENATE(tblDeprExpJune19[[#This Row],[Primary Account]],tblDeprExpJune19[[#This Row],[Primary Name]],tblDeprExpJune19[[#This Row],[Secondary Acct]],tblDeprExpJune19[[#This Row],[Secondary  Name]],tblDeprExpJune19[[#This Row],[Alloc4Func]])","v":"4030000DEPN EXPENSE-ELECT3660000UNDERGROUND CONDUITSITUS"},"4030000","DEPN EXPENSE-ELECT","3660000","UNDERGROUND CONDUIT","WYU",166.99006,{"$f":"IF(OR(tblDeprExpJune19[[#This Row],[Alloc]]=\"IDU\",tblDeprExpJune19[[#This Row],[Alloc]]=\"OR\",tblDeprExpJune19[[#This Row],[Alloc]]=\"UT\",tblDeprExpJune19[[#This Row],[Alloc]]=\"WYU\",tblDeprExpJune19[[#This Row],[Alloc]]=\"WYP\",tblDeprExpJune19[[#This Row],[Alloc]]=\"CA\",tblDeprExpJune19[[#This Row],[Alloc]]=\"WA\"),\"SITUS\",tblDeprExpJune19[[#This Row],[Alloc]])","v":"SITUS"},{"$f":"INDEX(tblDeprExpLookup[FUNC],MATCH(tblDeprExpJune19[[#This Row],[Concat]],tblDeprExpLookup[Concat],0))","v":"DPW"},{"$f":"IF(tblDeprExpJune19[[#This Row],[Total ($000)]]=0,\"NO\",IF(ISNA(tblDeprExpJune19[[#This Row],[FUNC]]),\"YES\",IF(_xlfn.ISFORMULA(tblDeprExpJune19[[#This Row],[FUNC]]),\"NO\",\"YES\")))","v":"NO"}]
[{"$f":"CONCATENATE(tblDeprExpJune19[[#This Row],[Primary Account]],tblDeprExpJune19[[#This Row],[Primary Name]],tblDeprExpJune19[[#This Row],[Secondary Acct]],tblDeprExpJune19[[#This Row],[Secondary  Name]],tblDeprExpJune19[[#This Row],[Alloc4Func]])","v":"4030000DEPN EXPENSE-ELECT3670000UNDERGROUND CONDUCTORS & DEVICESSITUS"},"4030000","DEPN EXPENSE-ELECT","3670000","UNDERGROUND CONDUCTORS & DEVICES","CA",493.49173000000002,{"$f":"IF(OR(tblDeprExpJune19[[#This Row],[Alloc]]=\"IDU\",tblDeprExpJune19[[#This Row],[Alloc]]=\"OR\",tblDeprExpJune19[[#This Row],[Alloc]]=\"UT\",tblDeprExpJune19[[#This Row],[Alloc]]=\"WYU\",tblDeprExpJune19[[#This Row],[Alloc]]=\"WYP\",tblDeprExpJune19[[#This Row],[Alloc]]=\"CA\",tblDeprExpJune19[[#This Row],[Alloc]]=\"WA\"),\"SITUS\",tblDeprExpJune19[[#This Row],[Alloc]])","v":"SITUS"},{"$f":"INDEX(tblDeprExpLookup[FUNC],MATCH(tblDeprExpJune19[[#This Row],[Concat]],tblDeprExpLookup[Concat],0))","v":"DPW"},{"$f":"IF(tblDeprExpJune19[[#This Row],[Total ($000)]]=0,\"NO\",IF(ISNA(tblDeprExpJune19[[#This Row],[FUNC]]),\"YES\",IF(_xlfn.ISFORMULA(tblDeprExpJune19[[#This Row],[FUNC]]),\"NO\",\"YES\")))","v":"NO"}]
[{"$f":"CONCATENATE(tblDeprExpJune19[[#This Row],[Primary Account]],tblDeprExpJune19[[#This Row],[Primary Name]],tblDeprExpJune19[[#This Row],[Secondary Acct]],tblDeprExpJune19[[#This Row],[Secondary  Name]],tblDeprExpJune19[[#This Row],[Alloc4Func]])","v":"4030000DEPN EXPENSE-ELECT3670000UNDERGROUND CONDUCTORS & DEVICESSITUS"},"4030000","DEPN EXPENSE-ELECT","3670000","UNDERGROUND CONDUCTORS & DEVICES","IDU",656.47145,{"$f":"IF(OR(tblDeprExpJune19[[#This Row],[Alloc]]=\"IDU\",tblDeprExpJune19[[#This Row],[Alloc]]=\"OR\",tblDeprExpJune19[[#This Row],[Alloc]]=\"UT\",tblDeprExpJune19[[#This Row],[Alloc]]=\"WYU\",tblDeprExpJune19[[#This Row],[Alloc]]=\"WYP\",tblDeprExpJune19[[#This Row],[Alloc]]=\"CA\",tblDeprExpJune19[[#This Row],[Alloc]]=\"WA\"),\"SITUS\",tblDeprExpJune19[[#This Row],[Alloc]])","v":"SITUS"},{"$f":"INDEX(tblDeprExpLookup[FUNC],MATCH(tblDeprExpJune19[[#This Row],[Concat]],tblDeprExpLookup[Concat],0))","v":"DPW"},{"$f":"IF(tblDeprExpJune19[[#This Row],[Total ($000)]]=0,\"NO\",IF(ISNA(tblDeprExpJune19[[#This Row],[FUNC]]),\"YES\",IF(_xlfn.ISFORMULA(tblDeprExpJune19[[#This Row],[FUNC]]),\"NO\",\"YES\")))","v":"NO"}]
[{"$f":"CONCATENATE(tblDeprExpJune19[[#This Row],[Primary Account]],tblDeprExpJune19[[#This Row],[Primary Name]],tblDeprExpJune19[[#This Row],[Secondary Acct]],tblDeprExpJune19[[#This Row],[Secondary  Name]],tblDeprExpJune19[[#This Row],[Alloc4Func]])","v":"4030000DEPN EXPENSE-ELECT3670000UNDERGROUND CONDUCTORS & DEVICESSITUS"},"4030000","DEPN EXPENSE-ELECT","3670000","UNDERGROUND CONDUCTORS & DEVICES","OR",3968.1588999999999,{"$f":"IF(OR(tblDeprExpJune19[[#This Row],[Alloc]]=\"IDU\",tblDeprExpJune19[[#This Row],[Alloc]]=\"OR\",tblDeprExpJune19[[#This Row],[Alloc]]=\"UT\",tblDeprExpJune19[[#This Row],[Alloc]]=\"WYU\",tblDeprExpJune19[[#This Row],[Alloc]]=\"WYP\",tblDeprExpJune19[[#This Row],[Alloc]]=\"CA\",tblDeprExpJune19[[#This Row],[Alloc]]=\"WA\"),\"SITUS\",tblDeprExpJune19[[#This Row],[Alloc]])","v":"SITUS"},{"$f":"INDEX(tblDeprExpLookup[FUNC],MATCH(tblDeprExpJune19[[#This Row],[Concat]],tblDeprExpLookup[Concat],0))","v":"DPW"},{"$f":"IF(tblDeprExpJune19[[#This Row],[Total ($000)]]=0,\"NO\",IF(ISNA(tblDeprExpJune19[[#This Row],[FUNC]]),\"YES\",IF(_xlfn.ISFORMULA(tblDeprExpJune19[[#This Row],[FUNC]]),\"NO\",\"YES\")))","v":"NO"}]
[{"$f":"CONCATENATE(tblDeprExpJune19[[#This Row],[Primary Account]],tblDeprExpJune19[[#This Row],[Primary Name]],tblDeprExpJune19[[#This Row],[Secondary Acct]],tblDeprExpJune19[[#This Row],[Secondary  Name]],tblDeprExpJune19[[#This Row],[Alloc4Func]])","v":"4030000DEPN EXPENSE-ELECT3670000UNDERGROUND CONDUCTORS & DEVICESSITUS"},"4030000","DEPN EXPENSE-ELECT","3670000","UNDERGROUND CONDUCTORS & DEVICES","UT",14029.260329999999,{"$f":"IF(OR(tblDeprExpJune19[[#This Row],[Alloc]]=\"IDU\",tblDeprExpJune19[[#This Row],[Alloc]]=\"OR\",tblDeprExpJune19[[#This Row],[Alloc]]=\"UT\",tblDeprExpJune19[[#This Row],[Alloc]]=\"WYU\",tblDeprExpJune19[[#This Row],[Alloc]]=\"WYP\",tblDeprExpJune19[[#This Row],[Alloc]]=\"CA\",tblDeprExpJune19[[#This Row],[Alloc]]=\"WA\"),\"SITUS\",tblDeprExpJune19[[#This Row],[Alloc]])","v":"SITUS"},{"$f":"INDEX(tblDeprExpLookup[FUNC],MATCH(tblDeprExpJune19[[#This Row],[Concat]],tblDeprExpLookup[Concat],0))","v":"DPW"},{"$f":"IF(tblDeprExpJune19[[#This Row],[Total ($000)]]=0,\"NO\",IF(ISNA(tblDeprExpJune19[[#This Row],[FUNC]]),\"YES\",IF(_xlfn.ISFORMULA(tblDeprExpJune19[[#This Row],[FUNC]]),\"NO\",\"YES\")))","v":"NO"}]
[{"$f":"CONCATENATE(tblDeprExpJune19[[#This Row],[Primary Account]],tblDeprExpJune19[[#This Row],[Primary Name]],tblDeprExpJune19[[#This Row],[Secondary Acct]],tblDeprExpJune19[[#This Row],[Secondary  Name]],tblDeprExpJune19[[#This Row],[Alloc4Func]])","v":"4030000DEPN EXPENSE-ELECT3670000UNDERGROUND CONDUCTORS & DEVICESSITUS"},"4030000","DEPN EXPENSE-ELECT","3670000","UNDERGROUND CONDUCTORS & DEVICES","WA",739.82178999999996,{"$f":"IF(OR(tblDeprExpJune19[[#This Row],[Alloc]]=\"IDU\",tblDeprExpJune19[[#This Row],[Alloc]]=\"OR\",tblDeprExpJune19[[#This Row],[Alloc]]=\"UT\",tblDeprExpJune19[[#This Row],[Alloc]]=\"WYU\",tblDeprExpJune19[[#This Row],[Alloc]]=\"WYP\",tblDeprExpJune19[[#This Row],[Alloc]]=\"CA\",tblDeprExpJune19[[#This Row],[Alloc]]=\"WA\"),\"SITUS\",tblDeprExpJune19[[#This Row],[Alloc]])","v":"SITUS"},{"$f":"INDEX(tblDeprExpLookup[FUNC],MATCH(tblDeprExpJune19[[#This Row],[Concat]],tblDeprExpLookup[Concat],0))","v":"DPW"},{"$f":"IF(tblDeprExpJune19[[#This Row],[Total ($000)]]=0,\"NO\",IF(ISNA(tblDeprExpJune19[[#This Row],[FUNC]]),\"YES\",IF(_xlfn.ISFORMULA(tblDeprExpJune19[[#This Row],[FUNC]]),\"NO\",\"YES\")))","v":"NO"}]
[{"$f":"CONCATENATE(tblDeprExpJune19[[#This Row],[Primary Account]],tblDeprExpJune19[[#This Row],[Primary Name]],tblDeprExpJune19[[#This Row],[Secondary Acct]],tblDeprExpJune19[[#This Row],[Secondary  Name]],tblDeprExpJune19[[#This Row],[Alloc4Func]])","v":"4030000DEPN EXPENSE-ELECT3670000UNDERGROUND CONDUCTORS & DEVICESSITUS"},"4030000","DEPN EXPENSE-ELECT","3670000","UNDERGROUND CONDUCTORS & DEVICES","WYP",1538.18253,{"$f":"IF(OR(tblDeprExpJune19[[#This Row],[Alloc]]=\"IDU\",tblDeprExpJune19[[#This Row],[Alloc]]=\"OR\",tblDeprExpJune19[[#This Row],[Alloc]]=\"UT\",tblDeprExpJune19[[#This Row],[Alloc]]=\"WYU\",tblDeprExpJune19[[#This Row],[Alloc]]=\"WYP\",tblDeprExpJune19[[#This Row],[Alloc]]=\"CA\",tblDeprExpJune19[[#This Row],[Alloc]]=\"WA\"),\"SITUS\",tblDeprExpJune19[[#This Row],[Alloc]])","v":"SITUS"},{"$f":"INDEX(tblDeprExpLookup[FUNC],MATCH(tblDeprExpJune19[[#This Row],[Concat]],tblDeprExpLookup[Concat],0))","v":"DPW"},{"$f":"IF(tblDeprExpJune19[[#This Row],[Total ($000)]]=0,\"NO\",IF(ISNA(tblDeprExpJune19[[#This Row],[FUNC]]),\"YES\",IF(_xlfn.ISFORMULA(tblDeprExpJune19[[#This Row],[FUNC]]),\"NO\",\"YES\")))","v":"NO"}]
[{"$f":"CONCATENATE(tblDeprExpJune19[[#This Row],[Primary Account]],tblDeprExpJune19[[#This Row],[Primary Name]],tblDeprExpJune19[[#This Row],[Secondary Acct]],tblDeprExpJune19[[#This Row],[Secondary  Name]],tblDeprExpJune19[[#This Row],[Alloc4Func]])","v":"4030000DEPN EXPENSE-ELECT3670000UNDERGROUND CONDUCTORS & DEVICESSITUS"},"4030000","DEPN EXPENSE-ELECT","3670000","UNDERGROUND CONDUCTORS & DEVICES","WYU",617.82042999999999,{"$f":"IF(OR(tblDeprExpJune19[[#This Row],[Alloc]]=\"IDU\",tblDeprExpJune19[[#This Row],[Alloc]]=\"OR\",tblDeprExpJune19[[#This Row],[Alloc]]=\"UT\",tblDeprExpJune19[[#This Row],[Alloc]]=\"WYU\",tblDeprExpJune19[[#This Row],[Alloc]]=\"WYP\",tblDeprExpJune19[[#This Row],[Alloc]]=\"CA\",tblDeprExpJune19[[#This Row],[Alloc]]=\"WA\"),\"SITUS\",tblDeprExpJune19[[#This Row],[Alloc]])","v":"SITUS"},{"$f":"INDEX(tblDeprExpLookup[FUNC],MATCH(tblDeprExpJune19[[#This Row],[Concat]],tblDeprExpLookup[Concat],0))","v":"DPW"},{"$f":"IF(tblDeprExpJune19[[#This Row],[Total ($000)]]=0,\"NO\",IF(ISNA(tblDeprExpJune19[[#This Row],[FUNC]]),\"YES\",IF(_xlfn.ISFORMULA(tblDeprExpJune19[[#This Row],[FUNC]]),\"NO\",\"YES\")))","v":"NO"}]
[{"$f":"CONCATENATE(tblDeprExpJune19[[#This Row],[Primary Account]],tblDeprExpJune19[[#This Row],[Primary Name]],tblDeprExpJune19[[#This Row],[Secondary Acct]],tblDeprExpJune19[[#This Row],[Secondary  Name]],tblDeprExpJune19[[#This Row],[Alloc4Func]])","v":"4030000DEPN EXPENSE-ELECT3680000LINE TRANSFORMERSSITUS"},"4030000","DEPN EXPENSE-ELECT","3680000","LINE TRANSFORMERS","CA",1381.5566699999999,{"$f":"IF(OR(tblDeprExpJune19[[#This Row],[Alloc]]=\"IDU\",tblDeprExpJune19[[#This Row],[Alloc]]=\"OR\",tblDeprExpJune19[[#This Row],[Alloc]]=\"UT\",tblDeprExpJune19[[#This Row],[Alloc]]=\"WYU\",tblDeprExpJune19[[#This Row],[Alloc]]=\"WYP\",tblDeprExpJune19[[#This Row],[Alloc]]=\"CA\",tblDeprExpJune19[[#This Row],[Alloc]]=\"WA\"),\"SITUS\",tblDeprExpJune19[[#This Row],[Alloc]])","v":"SITUS"},{"$f":"INDEX(tblDeprExpLookup[FUNC],MATCH(tblDeprExpJune19[[#This Row],[Concat]],tblDeprExpLookup[Concat],0))","v":"DPW"},{"$f":"IF(tblDeprExpJune19[[#This Row],[Total ($000)]]=0,\"NO\",IF(ISNA(tblDeprExpJune19[[#This Row],[FUNC]]),\"YES\",IF(_xlfn.ISFORMULA(tblDeprExpJune19[[#This Row],[FUNC]]),\"NO\",\"YES\")))","v":"NO"}]
[{"$f":"CONCATENATE(tblDeprExpJune19[[#This Row],[Primary Account]],tblDeprExpJune19[[#This Row],[Primary Name]],tblDeprExpJune19[[#This Row],[Secondary Acct]],tblDeprExpJune19[[#This Row],[Secondary  Name]],tblDeprExpJune19[[#This Row],[Alloc4Func]])","v":"4030000DEPN EXPENSE-ELECT3680000LINE TRANSFORMERSSITUS"},"4030000","DEPN EXPENSE-ELECT","3680000","LINE TRANSFORMERS","IDU",1944.8194800000001,{"$f":"IF(OR(tblDeprExpJune19[[#This Row],[Alloc]]=\"IDU\",tblDeprExpJune19[[#This Row],[Alloc]]=\"OR\",tblDeprExpJune19[[#This Row],[Alloc]]=\"UT\",tblDeprExpJune19[[#This Row],[Alloc]]=\"WYU\",tblDeprExpJune19[[#This Row],[Alloc]]=\"WYP\",tblDeprExpJune19[[#This Row],[Alloc]]=\"CA\",tblDeprExpJune19[[#This Row],[Alloc]]=\"WA\"),\"SITUS\",tblDeprExpJune19[[#This Row],[Alloc]])","v":"SITUS"},{"$f":"INDEX(tblDeprExpLookup[FUNC],MATCH(tblDeprExpJune19[[#This Row],[Concat]],tblDeprExpLookup[Concat],0))","v":"DPW"},{"$f":"IF(tblDeprExpJune19[[#This Row],[Total ($000)]]=0,\"NO\",IF(ISNA(tblDeprExpJune19[[#This Row],[FUNC]]),\"YES\",IF(_xlfn.ISFORMULA(tblDeprExpJune19[[#This Row],[FUNC]]),\"NO\",\"YES\")))","v":"NO"}]
[{"$f":"CONCATENATE(tblDeprExpJune19[[#This Row],[Primary Account]],tblDeprExpJune19[[#This Row],[Primary Name]],tblDeprExpJune19[[#This Row],[Secondary Acct]],tblDeprExpJune19[[#This Row],[Secondary  Name]],tblDeprExpJune19[[#This Row],[Alloc4Func]])","v":"4030000DEPN EXPENSE-ELECT3680000LINE TRANSFORMERSSITUS"},"4030000","DEPN EXPENSE-ELECT","3680000","LINE TRANSFORMERS","OR",11126.560820000001,{"$f":"IF(OR(tblDeprExpJune19[[#This Row],[Alloc]]=\"IDU\",tblDeprExpJune19[[#This Row],[Alloc]]=\"OR\",tblDeprExpJune19[[#This Row],[Alloc]]=\"UT\",tblDeprExpJune19[[#This Row],[Alloc]]=\"WYU\",tblDeprExpJune19[[#This Row],[Alloc]]=\"WYP\",tblDeprExpJune19[[#This Row],[Alloc]]=\"CA\",tblDeprExpJune19[[#This Row],[Alloc]]=\"WA\"),\"SITUS\",tblDeprExpJune19[[#This Row],[Alloc]])","v":"SITUS"},{"$f":"INDEX(tblDeprExpLookup[FUNC],MATCH(tblDeprExpJune19[[#This Row],[Concat]],tblDeprExpLookup[Concat],0))","v":"DPW"},{"$f":"IF(tblDeprExpJune19[[#This Row],[Total ($000)]]=0,\"NO\",IF(ISNA(tblDeprExpJune19[[#This Row],[FUNC]]),\"YES\",IF(_xlfn.ISFORMULA(tblDeprExpJune19[[#This Row],[FUNC]]),\"NO\",\"YES\")))","v":"NO"}]
[{"$f":"CONCATENATE(tblDeprExpJune19[[#This Row],[Primary Account]],tblDeprExpJune19[[#This Row],[Primary Name]],tblDeprExpJune19[[#This Row],[Secondary Acct]],tblDeprExpJune19[[#This Row],[Secondary  Name]],tblDeprExpJune19[[#This Row],[Alloc4Func]])","v":"4030000DEPN EXPENSE-ELECT3680000LINE TRANSFORMERSSITUS"},"4030000","DEPN EXPENSE-ELECT","3680000","LINE TRANSFORMERS","UT",12772.96053,{"$f":"IF(OR(tblDeprExpJune19[[#This Row],[Alloc]]=\"IDU\",tblDeprExpJune19[[#This Row],[Alloc]]=\"OR\",tblDeprExpJune19[[#This Row],[Alloc]]=\"UT\",tblDeprExpJune19[[#This Row],[Alloc]]=\"WYU\",tblDeprExpJune19[[#This Row],[Alloc]]=\"WYP\",tblDeprExpJune19[[#This Row],[Alloc]]=\"CA\",tblDeprExpJune19[[#This Row],[Alloc]]=\"WA\"),\"SITUS\",tblDeprExpJune19[[#This Row],[Alloc]])","v":"SITUS"},{"$f":"INDEX(tblDeprExpLookup[FUNC],MATCH(tblDeprExpJune19[[#This Row],[Concat]],tblDeprExpLookup[Concat],0))","v":"DPW"},{"$f":"IF(tblDeprExpJune19[[#This Row],[Total ($000)]]=0,\"NO\",IF(ISNA(tblDeprExpJune19[[#This Row],[FUNC]]),\"YES\",IF(_xlfn.ISFORMULA(tblDeprExpJune19[[#This Row],[FUNC]]),\"NO\",\"YES\")))","v":"NO"}]
[{"$f":"CONCATENATE(tblDeprExpJune19[[#This Row],[Primary Account]],tblDeprExpJune19[[#This Row],[Primary Name]],tblDeprExpJune19[[#This Row],[Secondary Acct]],tblDeprExpJune19[[#This Row],[Secondary  Name]],tblDeprExpJune19[[#This Row],[Alloc4Func]])","v":"4030000DEPN EXPENSE-ELECT3680000LINE TRANSFORMERSSITUS"},"4030000","DEPN EXPENSE-ELECT","3680000","LINE TRANSFORMERS","WA",3027.2314900000001,{"$f":"IF(OR(tblDeprExpJune19[[#This Row],[Alloc]]=\"IDU\",tblDeprExpJune19[[#This Row],[Alloc]]=\"OR\",tblDeprExpJune19[[#This Row],[Alloc]]=\"UT\",tblDeprExpJune19[[#This Row],[Alloc]]=\"WYU\",tblDeprExpJune19[[#This Row],[Alloc]]=\"WYP\",tblDeprExpJune19[[#This Row],[Alloc]]=\"CA\",tblDeprExpJune19[[#This Row],[Alloc]]=\"WA\"),\"SITUS\",tblDeprExpJune19[[#This Row],[Alloc]])","v":"SITUS"},{"$f":"INDEX(tblDeprExpLookup[FUNC],MATCH(tblDeprExpJune19[[#This Row],[Concat]],tblDeprExpLookup[Concat],0))","v":"DPW"},{"$f":"IF(tblDeprExpJune19[[#This Row],[Total ($000)]]=0,\"NO\",IF(ISNA(tblDeprExpJune19[[#This Row],[FUNC]]),\"YES\",IF(_xlfn.ISFORMULA(tblDeprExpJune19[[#This Row],[FUNC]]),\"NO\",\"YES\")))","v":"NO"}]
[{"$f":"CONCATENATE(tblDeprExpJune19[[#This Row],[Primary Account]],tblDeprExpJune19[[#This Row],[Primary Name]],tblDeprExpJune19[[#This Row],[Secondary Acct]],tblDeprExpJune19[[#This Row],[Secondary  Name]],tblDeprExpJune19[[#This Row],[Alloc4Func]])","v":"4030000DEPN EXPENSE-ELECT3680000LINE TRANSFORMERSSITUS"},"4030000","DEPN EXPENSE-ELECT","3680000","LINE TRANSFORMERS","WYP",3484.0718900000002,{"$f":"IF(OR(tblDeprExpJune19[[#This Row],[Alloc]]=\"IDU\",tblDeprExpJune19[[#This Row],[Alloc]]=\"OR\",tblDeprExpJune19[[#This Row],[Alloc]]=\"UT\",tblDeprExpJune19[[#This Row],[Alloc]]=\"WYU\",tblDeprExpJune19[[#This Row],[Alloc]]=\"WYP\",tblDeprExpJune19[[#This Row],[Alloc]]=\"CA\",tblDeprExpJune19[[#This Row],[Alloc]]=\"WA\"),\"SITUS\",tblDeprExpJune19[[#This Row],[Alloc]])","v":"SITUS"},{"$f":"INDEX(tblDeprExpLookup[FUNC],MATCH(tblDeprExpJune19[[#This Row],[Concat]],tblDeprExpLookup[Concat],0))","v":"DPW"},{"$f":"IF(tblDeprExpJune19[[#This Row],[Total ($000)]]=0,\"NO\",IF(ISNA(tblDeprExpJune19[[#This Row],[FUNC]]),\"YES\",IF(_xlfn.ISFORMULA(tblDeprExpJune19[[#This Row],[FUNC]]),\"NO\",\"YES\")))","v":"NO"}]
[{"$f":"CONCATENATE(tblDeprExpJune19[[#This Row],[Primary Account]],tblDeprExpJune19[[#This Row],[Primary Name]],tblDeprExpJune19[[#This Row],[Secondary Acct]],tblDeprExpJune19[[#This Row],[Secondary  Name]],tblDeprExpJune19[[#This Row],[Alloc4Func]])","v":"4030000DEPN EXPENSE-ELECT3680000LINE TRANSFORMERSSITUS"},"4030000","DEPN EXPENSE-ELECT","3680000","LINE TRANSFORMERS","WYU",493.61360000000002,{"$f":"IF(OR(tblDeprExpJune19[[#This Row],[Alloc]]=\"IDU\",tblDeprExpJune19[[#This Row],[Alloc]]=\"OR\",tblDeprExpJune19[[#This Row],[Alloc]]=\"UT\",tblDeprExpJune19[[#This Row],[Alloc]]=\"WYU\",tblDeprExpJune19[[#This Row],[Alloc]]=\"WYP\",tblDeprExpJune19[[#This Row],[Alloc]]=\"CA\",tblDeprExpJune19[[#This Row],[Alloc]]=\"WA\"),\"SITUS\",tblDeprExpJune19[[#This Row],[Alloc]])","v":"SITUS"},{"$f":"INDEX(tblDeprExpLookup[FUNC],MATCH(tblDeprExpJune19[[#This Row],[Concat]],tblDeprExpLookup[Concat],0))","v":"DPW"},{"$f":"IF(tblDeprExpJune19[[#This Row],[Total ($000)]]=0,\"NO\",IF(ISNA(tblDeprExpJune19[[#This Row],[FUNC]]),\"YES\",IF(_xlfn.ISFORMULA(tblDeprExpJune19[[#This Row],[FUNC]]),\"NO\",\"YES\")))","v":"NO"}]
[{"$f":"CONCATENATE(tblDeprExpJune19[[#This Row],[Primary Account]],tblDeprExpJune19[[#This Row],[Primary Name]],tblDeprExpJune19[[#This Row],[Secondary Acct]],tblDeprExpJune19[[#This Row],[Secondary  Name]],tblDeprExpJune19[[#This Row],[Alloc4Func]])","v":"4030000DEPN EXPENSE-ELECT3691000SERVICES - OVERHEADSITUS"},"4030000","DEPN EXPENSE-ELECT","3691000","SERVICES - OVERHEAD","CA",183.90922,{"$f":"IF(OR(tblDeprExpJune19[[#This Row],[Alloc]]=\"IDU\",tblDeprExpJune19[[#This Row],[Alloc]]=\"OR\",tblDeprExpJune19[[#This Row],[Alloc]]=\"UT\",tblDeprExpJune19[[#This Row],[Alloc]]=\"WYU\",tblDeprExpJune19[[#This Row],[Alloc]]=\"WYP\",tblDeprExpJune19[[#This Row],[Alloc]]=\"CA\",tblDeprExpJune19[[#This Row],[Alloc]]=\"WA\"),\"SITUS\",tblDeprExpJune19[[#This Row],[Alloc]])","v":"SITUS"},{"$f":"INDEX(tblDeprExpLookup[FUNC],MATCH(tblDeprExpJune19[[#This Row],[Concat]],tblDeprExpLookup[Concat],0))","v":"DPW"},{"$f":"IF(tblDeprExpJune19[[#This Row],[Total ($000)]]=0,\"NO\",IF(ISNA(tblDeprExpJune19[[#This Row],[FUNC]]),\"YES\",IF(_xlfn.ISFORMULA(tblDeprExpJune19[[#This Row],[FUNC]]),\"NO\",\"YES\")))","v":"NO"}]
[{"$f":"CONCATENATE(tblDeprExpJune19[[#This Row],[Primary Account]],tblDeprExpJune19[[#This Row],[Primary Name]],tblDeprExpJune19[[#This Row],[Secondary Acct]],tblDeprExpJune19[[#This Row],[Secondary  Name]],tblDeprExpJune19[[#This Row],[Alloc4Func]])","v":"4030000DEPN EXPENSE-ELECT3691000SERVICES - OVERHEADSITUS"},"4030000","DEPN EXPENSE-ELECT","3691000","SERVICES - OVERHEAD","IDU",198.54555999999999,{"$f":"IF(OR(tblDeprExpJune19[[#This Row],[Alloc]]=\"IDU\",tblDeprExpJune19[[#This Row],[Alloc]]=\"OR\",tblDeprExpJune19[[#This Row],[Alloc]]=\"UT\",tblDeprExpJune19[[#This Row],[Alloc]]=\"WYU\",tblDeprExpJune19[[#This Row],[Alloc]]=\"WYP\",tblDeprExpJune19[[#This Row],[Alloc]]=\"CA\",tblDeprExpJune19[[#This Row],[Alloc]]=\"WA\"),\"SITUS\",tblDeprExpJune19[[#This Row],[Alloc]])","v":"SITUS"},{"$f":"INDEX(tblDeprExpLookup[FUNC],MATCH(tblDeprExpJune19[[#This Row],[Concat]],tblDeprExpLookup[Concat],0))","v":"DPW"},{"$f":"IF(tblDeprExpJune19[[#This Row],[Total ($000)]]=0,\"NO\",IF(ISNA(tblDeprExpJune19[[#This Row],[FUNC]]),\"YES\",IF(_xlfn.ISFORMULA(tblDeprExpJune19[[#This Row],[FUNC]]),\"NO\",\"YES\")))","v":"NO"}]
[{"$f":"CONCATENATE(tblDeprExpJune19[[#This Row],[Primary Account]],tblDeprExpJune19[[#This Row],[Primary Name]],tblDeprExpJune19[[#This Row],[Secondary Acct]],tblDeprExpJune19[[#This Row],[Secondary  Name]],tblDeprExpJune19[[#This Row],[Alloc4Func]])","v":"4030000DEPN EXPENSE-ELECT3691000SERVICES - OVERHEADSITUS"},"4030000","DEPN EXPENSE-ELECT","3691000","SERVICES - OVERHEAD","OR",2193.0578599999999,{"$f":"IF(OR(tblDeprExpJune19[[#This Row],[Alloc]]=\"IDU\",tblDeprExpJune19[[#This Row],[Alloc]]=\"OR\",tblDeprExpJune19[[#This Row],[Alloc]]=\"UT\",tblDeprExpJune19[[#This Row],[Alloc]]=\"WYU\",tblDeprExpJune19[[#This Row],[Alloc]]=\"WYP\",tblDeprExpJune19[[#This Row],[Alloc]]=\"CA\",tblDeprExpJune19[[#This Row],[Alloc]]=\"WA\"),\"SITUS\",tblDeprExpJune19[[#This Row],[Alloc]])","v":"SITUS"},{"$f":"INDEX(tblDeprExpLookup[FUNC],MATCH(tblDeprExpJune19[[#This Row],[Concat]],tblDeprExpLookup[Concat],0))","v":"DPW"},{"$f":"IF(tblDeprExpJune19[[#This Row],[Total ($000)]]=0,\"NO\",IF(ISNA(tblDeprExpJune19[[#This Row],[FUNC]]),\"YES\",IF(_xlfn.ISFORMULA(tblDeprExpJune19[[#This Row],[FUNC]]),\"NO\",\"YES\")))","v":"NO"}]
[{"$f":"CONCATENATE(tblDeprExpJune19[[#This Row],[Primary Account]],tblDeprExpJune19[[#This Row],[Primary Name]],tblDeprExpJune19[[#This Row],[Secondary Acct]],tblDeprExpJune19[[#This Row],[Secondary  Name]],tblDeprExpJune19[[#This Row],[Alloc4Func]])","v":"4030000DEPN EXPENSE-ELECT3691000SERVICES - OVERHEADSITUS"},"4030000","DEPN EXPENSE-ELECT","3691000","SERVICES - OVERHEAD","UT",2044.13184,{"$f":"IF(OR(tblDeprExpJune19[[#This Row],[Alloc]]=\"IDU\",tblDeprExpJune19[[#This Row],[Alloc]]=\"OR\",tblDeprExpJune19[[#This Row],[Alloc]]=\"UT\",tblDeprExpJune19[[#This Row],[Alloc]]=\"WYU\",tblDeprExpJune19[[#This Row],[Alloc]]=\"WYP\",tblDeprExpJune19[[#This Row],[Alloc]]=\"CA\",tblDeprExpJune19[[#This Row],[Alloc]]=\"WA\"),\"SITUS\",tblDeprExpJune19[[#This Row],[Alloc]])","v":"SITUS"},{"$f":"INDEX(tblDeprExpLookup[FUNC],MATCH(tblDeprExpJune19[[#This Row],[Concat]],tblDeprExpLookup[Concat],0))","v":"DPW"},{"$f":"IF(tblDeprExpJune19[[#This Row],[Total ($000)]]=0,\"NO\",IF(ISNA(tblDeprExpJune19[[#This Row],[FUNC]]),\"YES\",IF(_xlfn.ISFORMULA(tblDeprExpJune19[[#This Row],[FUNC]]),\"NO\",\"YES\")))","v":"NO"}]
[{"$f":"CONCATENATE(tblDeprExpJune19[[#This Row],[Primary Account]],tblDeprExpJune19[[#This Row],[Primary Name]],tblDeprExpJune19[[#This Row],[Secondary Acct]],tblDeprExpJune19[[#This Row],[Secondary  Name]],tblDeprExpJune19[[#This Row],[Alloc4Func]])","v":"4030000DEPN EXPENSE-ELECT3691000SERVICES - OVERHEADSITUS"},"4030000","DEPN EXPENSE-ELECT","3691000","SERVICES - OVERHEAD","WA",537.24829999999997,{"$f":"IF(OR(tblDeprExpJune19[[#This Row],[Alloc]]=\"IDU\",tblDeprExpJune19[[#This Row],[Alloc]]=\"OR\",tblDeprExpJune19[[#This Row],[Alloc]]=\"UT\",tblDeprExpJune19[[#This Row],[Alloc]]=\"WYU\",tblDeprExpJune19[[#This Row],[Alloc]]=\"WYP\",tblDeprExpJune19[[#This Row],[Alloc]]=\"CA\",tblDeprExpJune19[[#This Row],[Alloc]]=\"WA\"),\"SITUS\",tblDeprExpJune19[[#This Row],[Alloc]])","v":"SITUS"},{"$f":"INDEX(tblDeprExpLookup[FUNC],MATCH(tblDeprExpJune19[[#This Row],[Concat]],tblDeprExpLookup[Concat],0))","v":"DPW"},{"$f":"IF(tblDeprExpJune19[[#This Row],[Total ($000)]]=0,\"NO\",IF(ISNA(tblDeprExpJune19[[#This Row],[FUNC]]),\"YES\",IF(_xlfn.ISFORMULA(tblDeprExpJune19[[#This Row],[FUNC]]),\"NO\",\"YES\")))","v":"NO"}]
[{"$f":"CONCATENATE(tblDeprExpJune19[[#This Row],[Primary Account]],tblDeprExpJune19[[#This Row],[Primary Name]],tblDeprExpJune19[[#This Row],[Secondary Acct]],tblDeprExpJune19[[#This Row],[Secondary  Name]],tblDeprExpJune19[[#This Row],[Alloc4Func]])","v":"4030000DEPN EXPENSE-ELECT3691000SERVICES - OVERHEADSITUS"},"4030000","DEPN EXPENSE-ELECT","3691000","SERVICES - OVERHEAD","WYP",359.27974999999998,{"$f":"IF(OR(tblDeprExpJune19[[#This Row],[Alloc]]=\"IDU\",tblDeprExpJune19[[#This Row],[Alloc]]=\"OR\",tblDeprExpJune19[[#This Row],[Alloc]]=\"UT\",tblDeprExpJune19[[#This Row],[Alloc]]=\"WYU\",tblDeprExpJune19[[#This Row],[Alloc]]=\"WYP\",tblDeprExpJune19[[#This Row],[Alloc]]=\"CA\",tblDeprExpJune19[[#This Row],[Alloc]]=\"WA\"),\"SITUS\",tblDeprExpJune19[[#This Row],[Alloc]])","v":"SITUS"},{"$f":"INDEX(tblDeprExpLookup[FUNC],MATCH(tblDeprExpJune19[[#This Row],[Concat]],tblDeprExpLookup[Concat],0))","v":"DPW"},{"$f":"IF(tblDeprExpJune19[[#This Row],[Total ($000)]]=0,\"NO\",IF(ISNA(tblDeprExpJune19[[#This Row],[FUNC]]),\"YES\",IF(_xlfn.ISFORMULA(tblDeprExpJune19[[#This Row],[FUNC]]),\"NO\",\"YES\")))","v":"NO"}]
[{"$f":"CONCATENATE(tblDeprExpJune19[[#This Row],[Primary Account]],tblDeprExpJune19[[#This Row],[Primary Name]],tblDeprExpJune19[[#This Row],[Secondary Acct]],tblDeprExpJune19[[#This Row],[Secondary  Name]],tblDeprExpJune19[[#This Row],[Alloc4Func]])","v":"4030000DEPN EXPENSE-ELECT3691000SERVICES - OVERHEADSITUS"},"4030000","DEPN EXPENSE-ELECT","3691000","SERVICES - OVERHEAD","WYU",69.203339999999997,{"$f":"IF(OR(tblDeprExpJune19[[#This Row],[Alloc]]=\"IDU\",tblDeprExpJune19[[#This Row],[Alloc]]=\"OR\",tblDeprExpJune19[[#This Row],[Alloc]]=\"UT\",tblDeprExpJune19[[#This Row],[Alloc]]=\"WYU\",tblDeprExpJune19[[#This Row],[Alloc]]=\"WYP\",tblDeprExpJune19[[#This Row],[Alloc]]=\"CA\",tblDeprExpJune19[[#This Row],[Alloc]]=\"WA\"),\"SITUS\",tblDeprExpJune19[[#This Row],[Alloc]])","v":"SITUS"},{"$f":"INDEX(tblDeprExpLookup[FUNC],MATCH(tblDeprExpJune19[[#This Row],[Concat]],tblDeprExpLookup[Concat],0))","v":"DPW"},{"$f":"IF(tblDeprExpJune19[[#This Row],[Total ($000)]]=0,\"NO\",IF(ISNA(tblDeprExpJune19[[#This Row],[FUNC]]),\"YES\",IF(_xlfn.ISFORMULA(tblDeprExpJune19[[#This Row],[FUNC]]),\"NO\",\"YES\")))","v":"NO"}]
[{"$f":"CONCATENATE(tblDeprExpJune19[[#This Row],[Primary Account]],tblDeprExpJune19[[#This Row],[Primary Name]],tblDeprExpJune19[[#This Row],[Secondary Acct]],tblDeprExpJune19[[#This Row],[Secondary  Name]],tblDeprExpJune19[[#This Row],[Alloc4Func]])","v":"4030000DEPN EXPENSE-ELECT3692000SERVICES - UNDERGROUNDSITUS"},"4030000","DEPN EXPENSE-ELECT","3692000","SERVICES - UNDERGROUND","CA",300.97951999999998,{"$f":"IF(OR(tblDeprExpJune19[[#This Row],[Alloc]]=\"IDU\",tblDeprExpJune19[[#This Row],[Alloc]]=\"OR\",tblDeprExpJune19[[#This Row],[Alloc]]=\"UT\",tblDeprExpJune19[[#This Row],[Alloc]]=\"WYU\",tblDeprExpJune19[[#This Row],[Alloc]]=\"WYP\",tblDeprExpJune19[[#This Row],[Alloc]]=\"CA\",tblDeprExpJune19[[#This Row],[Alloc]]=\"WA\"),\"SITUS\",tblDeprExpJune19[[#This Row],[Alloc]])","v":"SITUS"},{"$f":"INDEX(tblDeprExpLookup[FUNC],MATCH(tblDeprExpJune19[[#This Row],[Concat]],tblDeprExpLookup[Concat],0))","v":"DPW"},{"$f":"IF(tblDeprExpJune19[[#This Row],[Total ($000)]]=0,\"NO\",IF(ISNA(tblDeprExpJune19[[#This Row],[FUNC]]),\"YES\",IF(_xlfn.ISFORMULA(tblDeprExpJune19[[#This Row],[FUNC]]),\"NO\",\"YES\")))","v":"NO"}]
[{"$f":"CONCATENATE(tblDeprExpJune19[[#This Row],[Primary Account]],tblDeprExpJune19[[#This Row],[Primary Name]],tblDeprExpJune19[[#This Row],[Secondary Acct]],tblDeprExpJune19[[#This Row],[Secondary  Name]],tblDeprExpJune19[[#This Row],[Alloc4Func]])","v":"4030000DEPN EXPENSE-ELECT3692000SERVICES - UNDERGROUNDSITUS"},"4030000","DEPN EXPENSE-ELECT","3692000","SERVICES - UNDERGROUND","IDU",767.82660999999996,{"$f":"IF(OR(tblDeprExpJune19[[#This Row],[Alloc]]=\"IDU\",tblDeprExpJune19[[#This Row],[Alloc]]=\"OR\",tblDeprExpJune19[[#This Row],[Alloc]]=\"UT\",tblDeprExpJune19[[#This Row],[Alloc]]=\"WYU\",tblDeprExpJune19[[#This Row],[Alloc]]=\"WYP\",tblDeprExpJune19[[#This Row],[Alloc]]=\"CA\",tblDeprExpJune19[[#This Row],[Alloc]]=\"WA\"),\"SITUS\",tblDeprExpJune19[[#This Row],[Alloc]])","v":"SITUS"},{"$f":"INDEX(tblDeprExpLookup[FUNC],MATCH(tblDeprExpJune19[[#This Row],[Concat]],tblDeprExpLookup[Concat],0))","v":"DPW"},{"$f":"IF(tblDeprExpJune19[[#This Row],[Total ($000)]]=0,\"NO\",IF(ISNA(tblDeprExpJune19[[#This Row],[FUNC]]),\"YES\",IF(_xlfn.ISFORMULA(tblDeprExpJune19[[#This Row],[FUNC]]),\"NO\",\"YES\")))","v":"NO"}]
[{"$f":"CONCATENATE(tblDeprExpJune19[[#This Row],[Primary Account]],tblDeprExpJune19[[#This Row],[Primary Name]],tblDeprExpJune19[[#This Row],[Secondary Acct]],tblDeprExpJune19[[#This Row],[Secondary  Name]],tblDeprExpJune19[[#This Row],[Alloc4Func]])","v":"4030000DEPN EXPENSE-ELECT3692000SERVICES - UNDERGROUNDSITUS"},"4030000","DEPN EXPENSE-ELECT","3692000","SERVICES - UNDERGROUND","OR",4582.9732299999996,{"$f":"IF(OR(tblDeprExpJune19[[#This Row],[Alloc]]=\"IDU\",tblDeprExpJune19[[#This Row],[Alloc]]=\"OR\",tblDeprExpJune19[[#This Row],[Alloc]]=\"UT\",tblDeprExpJune19[[#This Row],[Alloc]]=\"WYU\",tblDeprExpJune19[[#This Row],[Alloc]]=\"WYP\",tblDeprExpJune19[[#This Row],[Alloc]]=\"CA\",tblDeprExpJune19[[#This Row],[Alloc]]=\"WA\"),\"SITUS\",tblDeprExpJune19[[#This Row],[Alloc]])","v":"SITUS"},{"$f":"INDEX(tblDeprExpLookup[FUNC],MATCH(tblDeprExpJune19[[#This Row],[Concat]],tblDeprExpLookup[Concat],0))","v":"DPW"},{"$f":"IF(tblDeprExpJune19[[#This Row],[Total ($000)]]=0,\"NO\",IF(ISNA(tblDeprExpJune19[[#This Row],[FUNC]]),\"YES\",IF(_xlfn.ISFORMULA(tblDeprExpJune19[[#This Row],[FUNC]]),\"NO\",\"YES\")))","v":"NO"}]
[{"$f":"CONCATENATE(tblDeprExpJune19[[#This Row],[Primary Account]],tblDeprExpJune19[[#This Row],[Primary Name]],tblDeprExpJune19[[#This Row],[Secondary Acct]],tblDeprExpJune19[[#This Row],[Secondary  Name]],tblDeprExpJune19[[#This Row],[Alloc4Func]])","v":"4030000DEPN EXPENSE-ELECT3692000SERVICES - UNDERGROUNDSITUS"},"4030000","DEPN EXPENSE-ELECT","3692000","SERVICES - UNDERGROUND","UT",5321.0758400000004,{"$f":"IF(OR(tblDeprExpJune19[[#This Row],[Alloc]]=\"IDU\",tblDeprExpJune19[[#This Row],[Alloc]]=\"OR\",tblDeprExpJune19[[#This Row],[Alloc]]=\"UT\",tblDeprExpJune19[[#This Row],[Alloc]]=\"WYU\",tblDeprExpJune19[[#This Row],[Alloc]]=\"WYP\",tblDeprExpJune19[[#This Row],[Alloc]]=\"CA\",tblDeprExpJune19[[#This Row],[Alloc]]=\"WA\"),\"SITUS\",tblDeprExpJune19[[#This Row],[Alloc]])","v":"SITUS"},{"$f":"INDEX(tblDeprExpLookup[FUNC],MATCH(tblDeprExpJune19[[#This Row],[Concat]],tblDeprExpLookup[Concat],0))","v":"DPW"},{"$f":"IF(tblDeprExpJune19[[#This Row],[Total ($000)]]=0,\"NO\",IF(ISNA(tblDeprExpJune19[[#This Row],[FUNC]]),\"YES\",IF(_xlfn.ISFORMULA(tblDeprExpJune19[[#This Row],[FUNC]]),\"NO\",\"YES\")))","v":"NO"}]
[{"$f":"CONCATENATE(tblDeprExpJune19[[#This Row],[Primary Account]],tblDeprExpJune19[[#This Row],[Primary Name]],tblDeprExpJune19[[#This Row],[Secondary Acct]],tblDeprExpJune19[[#This Row],[Secondary  Name]],tblDeprExpJune19[[#This Row],[Alloc4Func]])","v":"4030000DEPN EXPENSE-ELECT3692000SERVICES - UNDERGROUNDSITUS"},"4030000","DEPN EXPENSE-ELECT","3692000","SERVICES - UNDERGROUND","WA",1105.11862,{"$f":"IF(OR(tblDeprExpJune19[[#This Row],[Alloc]]=\"IDU\",tblDeprExpJune19[[#This Row],[Alloc]]=\"OR\",tblDeprExpJune19[[#This Row],[Alloc]]=\"UT\",tblDeprExpJune19[[#This Row],[Alloc]]=\"WYU\",tblDeprExpJune19[[#This Row],[Alloc]]=\"WYP\",tblDeprExpJune19[[#This Row],[Alloc]]=\"CA\",tblDeprExpJune19[[#This Row],[Alloc]]=\"WA\"),\"SITUS\",tblDeprExpJune19[[#This Row],[Alloc]])","v":"SITUS"},{"$f":"INDEX(tblDeprExpLookup[FUNC],MATCH(tblDeprExpJune19[[#This Row],[Concat]],tblDeprExpLookup[Concat],0))","v":"DPW"},{"$f":"IF(tblDeprExpJune19[[#This Row],[Total ($000)]]=0,\"NO\",IF(ISNA(tblDeprExpJune19[[#This Row],[FUNC]]),\"YES\",IF(_xlfn.ISFORMULA(tblDeprExpJune19[[#This Row],[FUNC]]),\"NO\",\"YES\")))","v":"NO"}]
[{"$f":"CONCATENATE(tblDeprExpJune19[[#This Row],[Primary Account]],tblDeprExpJune19[[#This Row],[Primary Name]],tblDeprExpJune19[[#This Row],[Secondary Acct]],tblDeprExpJune19[[#This Row],[Secondary  Name]],tblDeprExpJune19[[#This Row],[Alloc4Func]])","v":"4030000DEPN EXPENSE-ELECT3692000SERVICES - UNDERGROUNDSITUS"},"4030000","DEPN EXPENSE-ELECT","3692000","SERVICES - UNDERGROUND","WYP",935.88531999999998,{"$f":"IF(OR(tblDeprExpJune19[[#This Row],[Alloc]]=\"IDU\",tblDeprExpJune19[[#This Row],[Alloc]]=\"OR\",tblDeprExpJune19[[#This Row],[Alloc]]=\"UT\",tblDeprExpJune19[[#This Row],[Alloc]]=\"WYU\",tblDeprExpJune19[[#This Row],[Alloc]]=\"WYP\",tblDeprExpJune19[[#This Row],[Alloc]]=\"CA\",tblDeprExpJune19[[#This Row],[Alloc]]=\"WA\"),\"SITUS\",tblDeprExpJune19[[#This Row],[Alloc]])","v":"SITUS"},{"$f":"INDEX(tblDeprExpLookup[FUNC],MATCH(tblDeprExpJune19[[#This Row],[Concat]],tblDeprExpLookup[Concat],0))","v":"DPW"},{"$f":"IF(tblDeprExpJune19[[#This Row],[Total ($000)]]=0,\"NO\",IF(ISNA(tblDeprExpJune19[[#This Row],[FUNC]]),\"YES\",IF(_xlfn.ISFORMULA(tblDeprExpJune19[[#This Row],[FUNC]]),\"NO\",\"YES\")))","v":"NO"}]
[{"$f":"CONCATENATE(tblDeprExpJune19[[#This Row],[Primary Account]],tblDeprExpJune19[[#This Row],[Primary Name]],tblDeprExpJune19[[#This Row],[Secondary Acct]],tblDeprExpJune19[[#This Row],[Secondary  Name]],tblDeprExpJune19[[#This Row],[Alloc4Func]])","v":"4030000DEPN EXPENSE-ELECT3692000SERVICES - UNDERGROUNDSITUS"},"4030000","DEPN EXPENSE-ELECT","3692000","SERVICES - UNDERGROUND","WYU",320.88664,{"$f":"IF(OR(tblDeprExpJune19[[#This Row],[Alloc]]=\"IDU\",tblDeprExpJune19[[#This Row],[Alloc]]=\"OR\",tblDeprExpJune19[[#This Row],[Alloc]]=\"UT\",tblDeprExpJune19[[#This Row],[Alloc]]=\"WYU\",tblDeprExpJune19[[#This Row],[Alloc]]=\"WYP\",tblDeprExpJune19[[#This Row],[Alloc]]=\"CA\",tblDeprExpJune19[[#This Row],[Alloc]]=\"WA\"),\"SITUS\",tblDeprExpJune19[[#This Row],[Alloc]])","v":"SITUS"},{"$f":"INDEX(tblDeprExpLookup[FUNC],MATCH(tblDeprExpJune19[[#This Row],[Concat]],tblDeprExpLookup[Concat],0))","v":"DPW"},{"$f":"IF(tblDeprExpJune19[[#This Row],[Total ($000)]]=0,\"NO\",IF(ISNA(tblDeprExpJune19[[#This Row],[FUNC]]),\"YES\",IF(_xlfn.ISFORMULA(tblDeprExpJune19[[#This Row],[FUNC]]),\"NO\",\"YES\")))","v":"NO"}]
[{"$f":"CONCATENATE(tblDeprExpJune19[[#This Row],[Primary Account]],tblDeprExpJune19[[#This Row],[Primary Name]],tblDeprExpJune19[[#This Row],[Secondary Acct]],tblDeprExpJune19[[#This Row],[Secondary  Name]],tblDeprExpJune19[[#This Row],[Alloc4Func]])","v":"4030000DEPN EXPENSE-ELECT3700000METERSSITUS"},"4030000","DEPN EXPENSE-ELECT","3700000","METERS","CA",317.42977999999999,{"$f":"IF(OR(tblDeprExpJune19[[#This Row],[Alloc]]=\"IDU\",tblDeprExpJune19[[#This Row],[Alloc]]=\"OR\",tblDeprExpJune19[[#This Row],[Alloc]]=\"UT\",tblDeprExpJune19[[#This Row],[Alloc]]=\"WYU\",tblDeprExpJune19[[#This Row],[Alloc]]=\"WYP\",tblDeprExpJune19[[#This Row],[Alloc]]=\"CA\",tblDeprExpJune19[[#This Row],[Alloc]]=\"WA\"),\"SITUS\",tblDeprExpJune19[[#This Row],[Alloc]])","v":"SITUS"},{"$f":"INDEX(tblDeprExpLookup[FUNC],MATCH(tblDeprExpJune19[[#This Row],[Concat]],tblDeprExpLookup[Concat],0))","v":"DPW"},{"$f":"IF(tblDeprExpJune19[[#This Row],[Total ($000)]]=0,\"NO\",IF(ISNA(tblDeprExpJune19[[#This Row],[FUNC]]),\"YES\",IF(_xlfn.ISFORMULA(tblDeprExpJune19[[#This Row],[FUNC]]),\"NO\",\"YES\")))","v":"NO"}]
[{"$f":"CONCATENATE(tblDeprExpJune19[[#This Row],[Primary Account]],tblDeprExpJune19[[#This Row],[Primary Name]],tblDeprExpJune19[[#This Row],[Secondary Acct]],tblDeprExpJune19[[#This Row],[Secondary  Name]],tblDeprExpJune19[[#This Row],[Alloc4Func]])","v":"4030000DEPN EXPENSE-ELECT3700000METERSSITUS"},"4030000","DEPN EXPENSE-ELECT","3700000","METERS","IDU",635.85487000000001,{"$f":"IF(OR(tblDeprExpJune19[[#This Row],[Alloc]]=\"IDU\",tblDeprExpJune19[[#This Row],[Alloc]]=\"OR\",tblDeprExpJune19[[#This Row],[Alloc]]=\"UT\",tblDeprExpJune19[[#This Row],[Alloc]]=\"WYU\",tblDeprExpJune19[[#This Row],[Alloc]]=\"WYP\",tblDeprExpJune19[[#This Row],[Alloc]]=\"CA\",tblDeprExpJune19[[#This Row],[Alloc]]=\"WA\"),\"SITUS\",tblDeprExpJune19[[#This Row],[Alloc]])","v":"SITUS"},{"$f":"INDEX(tblDeprExpLookup[FUNC],MATCH(tblDeprExpJune19[[#This Row],[Concat]],tblDeprExpLookup[Concat],0))","v":"DPW"},{"$f":"IF(tblDeprExpJune19[[#This Row],[Total ($000)]]=0,\"NO\",IF(ISNA(tblDeprExpJune19[[#This Row],[FUNC]]),\"YES\",IF(_xlfn.ISFORMULA(tblDeprExpJune19[[#This Row],[FUNC]]),\"NO\",\"YES\")))","v":"NO"}]
[{"$f":"CONCATENATE(tblDeprExpJune19[[#This Row],[Primary Account]],tblDeprExpJune19[[#This Row],[Primary Name]],tblDeprExpJune19[[#This Row],[Secondary Acct]],tblDeprExpJune19[[#This Row],[Secondary  Name]],tblDeprExpJune19[[#This Row],[Alloc4Func]])","v":"4030000DEPN EXPENSE-ELECT3700000METERSSITUS"},"4030000","DEPN EXPENSE-ELECT","3700000","METERS","OR",3046.8791200000001,{"$f":"IF(OR(tblDeprExpJune19[[#This Row],[Alloc]]=\"IDU\",tblDeprExpJune19[[#This Row],[Alloc]]=\"OR\",tblDeprExpJune19[[#This Row],[Alloc]]=\"UT\",tblDeprExpJune19[[#This Row],[Alloc]]=\"WYU\",tblDeprExpJune19[[#This Row],[Alloc]]=\"WYP\",tblDeprExpJune19[[#This Row],[Alloc]]=\"CA\",tblDeprExpJune19[[#This Row],[Alloc]]=\"WA\"),\"SITUS\",tblDeprExpJune19[[#This Row],[Alloc]])","v":"SITUS"},{"$f":"INDEX(tblDeprExpLookup[FUNC],MATCH(tblDeprExpJune19[[#This Row],[Concat]],tblDeprExpLookup[Concat],0))","v":"DPW"},{"$f":"IF(tblDeprExpJune19[[#This Row],[Total ($000)]]=0,\"NO\",IF(ISNA(tblDeprExpJune19[[#This Row],[FUNC]]),\"YES\",IF(_xlfn.ISFORMULA(tblDeprExpJune19[[#This Row],[FUNC]]),\"NO\",\"YES\")))","v":"NO"}]
[{"$f":"CONCATENATE(tblDeprExpJune19[[#This Row],[Primary Account]],tblDeprExpJune19[[#This Row],[Primary Name]],tblDeprExpJune19[[#This Row],[Secondary Acct]],tblDeprExpJune19[[#This Row],[Secondary  Name]],tblDeprExpJune19[[#This Row],[Alloc4Func]])","v":"4030000DEPN EXPENSE-ELECT3700000METERSSITUS"},"4030000","DEPN EXPENSE-ELECT","3700000","METERS","UT",3526.9146700000001,{"$f":"IF(OR(tblDeprExpJune19[[#This Row],[Alloc]]=\"IDU\",tblDeprExpJune19[[#This Row],[Alloc]]=\"OR\",tblDeprExpJune19[[#This Row],[Alloc]]=\"UT\",tblDeprExpJune19[[#This Row],[Alloc]]=\"WYU\",tblDeprExpJune19[[#This Row],[Alloc]]=\"WYP\",tblDeprExpJune19[[#This Row],[Alloc]]=\"CA\",tblDeprExpJune19[[#This Row],[Alloc]]=\"WA\"),\"SITUS\",tblDeprExpJune19[[#This Row],[Alloc]])","v":"SITUS"},{"$f":"INDEX(tblDeprExpLookup[FUNC],MATCH(tblDeprExpJune19[[#This Row],[Concat]],tblDeprExpLookup[Concat],0))","v":"DPW"},{"$f":"IF(tblDeprExpJune19[[#This Row],[Total ($000)]]=0,\"NO\",IF(ISNA(tblDeprExpJune19[[#This Row],[FUNC]]),\"YES\",IF(_xlfn.ISFORMULA(tblDeprExpJune19[[#This Row],[FUNC]]),\"NO\",\"YES\")))","v":"NO"}]
[{"$f":"CONCATENATE(tblDeprExpJune19[[#This Row],[Primary Account]],tblDeprExpJune19[[#This Row],[Primary Name]],tblDeprExpJune19[[#This Row],[Secondary Acct]],tblDeprExpJune19[[#This Row],[Secondary  Name]],tblDeprExpJune19[[#This Row],[Alloc4Func]])","v":"4030000DEPN EXPENSE-ELECT3700000METERSSITUS"},"4030000","DEPN EXPENSE-ELECT","3700000","METERS","WA",515.51768000000004,{"$f":"IF(OR(tblDeprExpJune19[[#This Row],[Alloc]]=\"IDU\",tblDeprExpJune19[[#This Row],[Alloc]]=\"OR\",tblDeprExpJune19[[#This Row],[Alloc]]=\"UT\",tblDeprExpJune19[[#This Row],[Alloc]]=\"WYU\",tblDeprExpJune19[[#This Row],[Alloc]]=\"WYP\",tblDeprExpJune19[[#This Row],[Alloc]]=\"CA\",tblDeprExpJune19[[#This Row],[Alloc]]=\"WA\"),\"SITUS\",tblDeprExpJune19[[#This Row],[Alloc]])","v":"SITUS"},{"$f":"INDEX(tblDeprExpLookup[FUNC],MATCH(tblDeprExpJune19[[#This Row],[Concat]],tblDeprExpLookup[Concat],0))","v":"DPW"},{"$f":"IF(tblDeprExpJune19[[#This Row],[Total ($000)]]=0,\"NO\",IF(ISNA(tblDeprExpJune19[[#This Row],[FUNC]]),\"YES\",IF(_xlfn.ISFORMULA(tblDeprExpJune19[[#This Row],[FUNC]]),\"NO\",\"YES\")))","v":"NO"}]
[{"$f":"CONCATENATE(tblDeprExpJune19[[#This Row],[Primary Account]],tblDeprExpJune19[[#This Row],[Primary Name]],tblDeprExpJune19[[#This Row],[Secondary Acct]],tblDeprExpJune19[[#This Row],[Secondary  Name]],tblDeprExpJune19[[#This Row],[Alloc4Func]])","v":"4030000DEPN EXPENSE-ELECT3700000METERSSITUS"},"4030000","DEPN EXPENSE-ELECT","3700000","METERS","WYP",541.67397000000005,{"$f":"IF(OR(tblDeprExpJune19[[#This Row],[Alloc]]=\"IDU\",tblDeprExpJune19[[#This Row],[Alloc]]=\"OR\",tblDeprExpJune19[[#This Row],[Alloc]]=\"UT\",tblDeprExpJune19[[#This Row],[Alloc]]=\"WYU\",tblDeprExpJune19[[#This Row],[Alloc]]=\"WYP\",tblDeprExpJune19[[#This Row],[Alloc]]=\"CA\",tblDeprExpJune19[[#This Row],[Alloc]]=\"WA\"),\"SITUS\",tblDeprExpJune19[[#This Row],[Alloc]])","v":"SITUS"},{"$f":"INDEX(tblDeprExpLookup[FUNC],MATCH(tblDeprExpJune19[[#This Row],[Concat]],tblDeprExpLookup[Concat],0))","v":"DPW"},{"$f":"IF(tblDeprExpJune19[[#This Row],[Total ($000)]]=0,\"NO\",IF(ISNA(tblDeprExpJune19[[#This Row],[FUNC]]),\"YES\",IF(_xlfn.ISFORMULA(tblDeprExpJune19[[#This Row],[FUNC]]),\"NO\",\"YES\")))","v":"NO"}]
[{"$f":"CONCATENATE(tblDeprExpJune19[[#This Row],[Primary Account]],tblDeprExpJune19[[#This Row],[Primary Name]],tblDeprExpJune19[[#This Row],[Secondary Acct]],tblDeprExpJune19[[#This Row],[Secondary  Name]],tblDeprExpJune19[[#This Row],[Alloc4Func]])","v":"4030000DEPN EXPENSE-ELECT3700000METERSSITUS"},"4030000","DEPN EXPENSE-ELECT","3700000","METERS","WYU",97.392080000000007,{"$f":"IF(OR(tblDeprExpJune19[[#This Row],[Alloc]]=\"IDU\",tblDeprExpJune19[[#This Row],[Alloc]]=\"OR\",tblDeprExpJune19[[#This Row],[Alloc]]=\"UT\",tblDeprExpJune19[[#This Row],[Alloc]]=\"WYU\",tblDeprExpJune19[[#This Row],[Alloc]]=\"WYP\",tblDeprExpJune19[[#This Row],[Alloc]]=\"CA\",tblDeprExpJune19[[#This Row],[Alloc]]=\"WA\"),\"SITUS\",tblDeprExpJune19[[#This Row],[Alloc]])","v":"SITUS"},{"$f":"INDEX(tblDeprExpLookup[FUNC],MATCH(tblDeprExpJune19[[#This Row],[Concat]],tblDeprExpLookup[Concat],0))","v":"DPW"},{"$f":"IF(tblDeprExpJune19[[#This Row],[Total ($000)]]=0,\"NO\",IF(ISNA(tblDeprExpJune19[[#This Row],[FUNC]]),\"YES\",IF(_xlfn.ISFORMULA(tblDeprExpJune19[[#This Row],[FUNC]]),\"NO\",\"YES\")))","v":"NO"}]
[{"$f":"CONCATENATE(tblDeprExpJune19[[#This Row],[Primary Account]],tblDeprExpJune19[[#This Row],[Primary Name]],tblDeprExpJune19[[#This Row],[Secondary Acct]],tblDeprExpJune19[[#This Row],[Secondary  Name]],tblDeprExpJune19[[#This Row],[Alloc4Func]])","v":"4030000DEPN EXPENSE-ELECT3710000INSTALL ON CUSTOMERS PREMISESSITUS"},"4030000","DEPN EXPENSE-ELECT","3710000","INSTALL ON CUSTOMERS PREMISES","CA",13.37825,{"$f":"IF(OR(tblDeprExpJune19[[#This Row],[Alloc]]=\"IDU\",tblDeprExpJune19[[#This Row],[Alloc]]=\"OR\",tblDeprExpJune19[[#This Row],[Alloc]]=\"UT\",tblDeprExpJune19[[#This Row],[Alloc]]=\"WYU\",tblDeprExpJune19[[#This Row],[Alloc]]=\"WYP\",tblDeprExpJune19[[#This Row],[Alloc]]=\"CA\",tblDeprExpJune19[[#This Row],[Alloc]]=\"WA\"),\"SITUS\",tblDeprExpJune19[[#This Row],[Alloc]])","v":"SITUS"},{"$f":"INDEX(tblDeprExpLookup[FUNC],MATCH(tblDeprExpJune19[[#This Row],[Concat]],tblDeprExpLookup[Concat],0))","v":"DPW"},{"$f":"IF(tblDeprExpJune19[[#This Row],[Total ($000)]]=0,\"NO\",IF(ISNA(tblDeprExpJune19[[#This Row],[FUNC]]),\"YES\",IF(_xlfn.ISFORMULA(tblDeprExpJune19[[#This Row],[FUNC]]),\"NO\",\"YES\")))","v":"NO"}]
[{"$f":"CONCATENATE(tblDeprExpJune19[[#This Row],[Primary Account]],tblDeprExpJune19[[#This Row],[Primary Name]],tblDeprExpJune19[[#This Row],[Secondary Acct]],tblDeprExpJune19[[#This Row],[Secondary  Name]],tblDeprExpJune19[[#This Row],[Alloc4Func]])","v":"4030000DEPN EXPENSE-ELECT3710000INSTALL ON CUSTOMERS PREMISESSITUS"},"4030000","DEPN EXPENSE-ELECT","3710000","INSTALL ON CUSTOMERS PREMISES","IDU",9.7850900000000003,{"$f":"IF(OR(tblDeprExpJune19[[#This Row],[Alloc]]=\"IDU\",tblDeprExpJune19[[#This Row],[Alloc]]=\"OR\",tblDeprExpJune19[[#This Row],[Alloc]]=\"UT\",tblDeprExpJune19[[#This Row],[Alloc]]=\"WYU\",tblDeprExpJune19[[#This Row],[Alloc]]=\"WYP\",tblDeprExpJune19[[#This Row],[Alloc]]=\"CA\",tblDeprExpJune19[[#This Row],[Alloc]]=\"WA\"),\"SITUS\",tblDeprExpJune19[[#This Row],[Alloc]])","v":"SITUS"},{"$f":"INDEX(tblDeprExpLookup[FUNC],MATCH(tblDeprExpJune19[[#This Row],[Concat]],tblDeprExpLookup[Concat],0))","v":"DPW"},{"$f":"IF(tblDeprExpJune19[[#This Row],[Total ($000)]]=0,\"NO\",IF(ISNA(tblDeprExpJune19[[#This Row],[FUNC]]),\"YES\",IF(_xlfn.ISFORMULA(tblDeprExpJune19[[#This Row],[FUNC]]),\"NO\",\"YES\")))","v":"NO"}]
[{"$f":"CONCATENATE(tblDeprExpJune19[[#This Row],[Primary Account]],tblDeprExpJune19[[#This Row],[Primary Name]],tblDeprExpJune19[[#This Row],[Secondary Acct]],tblDeprExpJune19[[#This Row],[Secondary  Name]],tblDeprExpJune19[[#This Row],[Alloc4Func]])","v":"4030000DEPN EXPENSE-ELECT3710000INSTALL ON CUSTOMERS PREMISESSITUS"},"4030000","DEPN EXPENSE-ELECT","3710000","INSTALL ON CUSTOMERS PREMISES","OR",126.33029999999999,{"$f":"IF(OR(tblDeprExpJune19[[#This Row],[Alloc]]=\"IDU\",tblDeprExpJune19[[#This Row],[Alloc]]=\"OR\",tblDeprExpJune19[[#This Row],[Alloc]]=\"UT\",tblDeprExpJune19[[#This Row],[Alloc]]=\"WYU\",tblDeprExpJune19[[#This Row],[Alloc]]=\"WYP\",tblDeprExpJune19[[#This Row],[Alloc]]=\"CA\",tblDeprExpJune19[[#This Row],[Alloc]]=\"WA\"),\"SITUS\",tblDeprExpJune19[[#This Row],[Alloc]])","v":"SITUS"},{"$f":"INDEX(tblDeprExpLookup[FUNC],MATCH(tblDeprExpJune19[[#This Row],[Concat]],tblDeprExpLookup[Concat],0))","v":"DPW"},{"$f":"IF(tblDeprExpJune19[[#This Row],[Total ($000)]]=0,\"NO\",IF(ISNA(tblDeprExpJune19[[#This Row],[FUNC]]),\"YES\",IF(_xlfn.ISFORMULA(tblDeprExpJune19[[#This Row],[FUNC]]),\"NO\",\"YES\")))","v":"NO"}]
[{"$f":"CONCATENATE(tblDeprExpJune19[[#This Row],[Primary Account]],tblDeprExpJune19[[#This Row],[Primary Name]],tblDeprExpJune19[[#This Row],[Secondary Acct]],tblDeprExpJune19[[#This Row],[Secondary  Name]],tblDeprExpJune19[[#This Row],[Alloc4Func]])","v":"4030000DEPN EXPENSE-ELECT3710000INSTALL ON CUSTOMERS PREMISESSITUS"},"4030000","DEPN EXPENSE-ELECT","3710000","INSTALL ON CUSTOMERS PREMISES","UT",270.23674999999997,{"$f":"IF(OR(tblDeprExpJune19[[#This Row],[Alloc]]=\"IDU\",tblDeprExpJune19[[#This Row],[Alloc]]=\"OR\",tblDeprExpJune19[[#This Row],[Alloc]]=\"UT\",tblDeprExpJune19[[#This Row],[Alloc]]=\"WYU\",tblDeprExpJune19[[#This Row],[Alloc]]=\"WYP\",tblDeprExpJune19[[#This Row],[Alloc]]=\"CA\",tblDeprExpJune19[[#This Row],[Alloc]]=\"WA\"),\"SITUS\",tblDeprExpJune19[[#This Row],[Alloc]])","v":"SITUS"},{"$f":"INDEX(tblDeprExpLookup[FUNC],MATCH(tblDeprExpJune19[[#This Row],[Concat]],tblDeprExpLookup[Concat],0))","v":"DPW"},{"$f":"IF(tblDeprExpJune19[[#This Row],[Total ($000)]]=0,\"NO\",IF(ISNA(tblDeprExpJune19[[#This Row],[FUNC]]),\"YES\",IF(_xlfn.ISFORMULA(tblDeprExpJune19[[#This Row],[FUNC]]),\"NO\",\"YES\")))","v":"NO"}]
[{"$f":"CONCATENATE(tblDeprExpJune19[[#This Row],[Primary Account]],tblDeprExpJune19[[#This Row],[Primary Name]],tblDeprExpJune19[[#This Row],[Secondary Acct]],tblDeprExpJune19[[#This Row],[Secondary  Name]],tblDeprExpJune19[[#This Row],[Alloc4Func]])","v":"4030000DEPN EXPENSE-ELECT3710000INSTALL ON CUSTOMERS PREMISESSITUS"},"4030000","DEPN EXPENSE-ELECT","3710000","INSTALL ON CUSTOMERS PREMISES","WA",17.74851,{"$f":"IF(OR(tblDeprExpJune19[[#This Row],[Alloc]]=\"IDU\",tblDeprExpJune19[[#This Row],[Alloc]]=\"OR\",tblDeprExpJune19[[#This Row],[Alloc]]=\"UT\",tblDeprExpJune19[[#This Row],[Alloc]]=\"WYU\",tblDeprExpJune19[[#This Row],[Alloc]]=\"WYP\",tblDeprExpJune19[[#This Row],[Alloc]]=\"CA\",tblDeprExpJune19[[#This Row],[Alloc]]=\"WA\"),\"SITUS\",tblDeprExpJune19[[#This Row],[Alloc]])","v":"SITUS"},{"$f":"INDEX(tblDeprExpLookup[FUNC],MATCH(tblDeprExpJune19[[#This Row],[Concat]],tblDeprExpLookup[Concat],0))","v":"DPW"},{"$f":"IF(tblDeprExpJune19[[#This Row],[Total ($000)]]=0,\"NO\",IF(ISNA(tblDeprExpJune19[[#This Row],[FUNC]]),\"YES\",IF(_xlfn.ISFORMULA(tblDeprExpJune19[[#This Row],[FUNC]]),\"NO\",\"YES\")))","v":"NO"}]
[{"$f":"CONCATENATE(tblDeprExpJune19[[#This Row],[Primary Account]],tblDeprExpJune19[[#This Row],[Primary Name]],tblDeprExpJune19[[#This Row],[Secondary Acct]],tblDeprExpJune19[[#This Row],[Secondary  Name]],tblDeprExpJune19[[#This Row],[Alloc4Func]])","v":"4030000DEPN EXPENSE-ELECT3710000INSTALL ON CUSTOMERS PREMISESSITUS"},"4030000","DEPN EXPENSE-ELECT","3710000","INSTALL ON CUSTOMERS PREMISES","WYP",49.77064,{"$f":"IF(OR(tblDeprExpJune19[[#This Row],[Alloc]]=\"IDU\",tblDeprExpJune19[[#This Row],[Alloc]]=\"OR\",tblDeprExpJune19[[#This Row],[Alloc]]=\"UT\",tblDeprExpJune19[[#This Row],[Alloc]]=\"WYU\",tblDeprExpJune19[[#This Row],[Alloc]]=\"WYP\",tblDeprExpJune19[[#This Row],[Alloc]]=\"CA\",tblDeprExpJune19[[#This Row],[Alloc]]=\"WA\"),\"SITUS\",tblDeprExpJune19[[#This Row],[Alloc]])","v":"SITUS"},{"$f":"INDEX(tblDeprExpLookup[FUNC],MATCH(tblDeprExpJune19[[#This Row],[Concat]],tblDeprExpLookup[Concat],0))","v":"DPW"},{"$f":"IF(tblDeprExpJune19[[#This Row],[Total ($000)]]=0,\"NO\",IF(ISNA(tblDeprExpJune19[[#This Row],[FUNC]]),\"YES\",IF(_xlfn.ISFORMULA(tblDeprExpJune19[[#This Row],[FUNC]]),\"NO\",\"YES\")))","v":"NO"}]
[{"$f":"CONCATENATE(tblDeprExpJune19[[#This Row],[Primary Account]],tblDeprExpJune19[[#This Row],[Primary Name]],tblDeprExpJune19[[#This Row],[Secondary Acct]],tblDeprExpJune19[[#This Row],[Secondary  Name]],tblDeprExpJune19[[#This Row],[Alloc4Func]])","v":"4030000DEPN EXPENSE-ELECT3710000INSTALL ON CUSTOMERS PREMISESSITUS"},"4030000","DEPN EXPENSE-ELECT","3710000","INSTALL ON CUSTOMERS PREMISES","WYU",9.45106,{"$f":"IF(OR(tblDeprExpJune19[[#This Row],[Alloc]]=\"IDU\",tblDeprExpJune19[[#This Row],[Alloc]]=\"OR\",tblDeprExpJune19[[#This Row],[Alloc]]=\"UT\",tblDeprExpJune19[[#This Row],[Alloc]]=\"WYU\",tblDeprExpJune19[[#This Row],[Alloc]]=\"WYP\",tblDeprExpJune19[[#This Row],[Alloc]]=\"CA\",tblDeprExpJune19[[#This Row],[Alloc]]=\"WA\"),\"SITUS\",tblDeprExpJune19[[#This Row],[Alloc]])","v":"SITUS"},{"$f":"INDEX(tblDeprExpLookup[FUNC],MATCH(tblDeprExpJune19[[#This Row],[Concat]],tblDeprExpLookup[Concat],0))","v":"DPW"},{"$f":"IF(tblDeprExpJune19[[#This Row],[Total ($000)]]=0,\"NO\",IF(ISNA(tblDeprExpJune19[[#This Row],[FUNC]]),\"YES\",IF(_xlfn.ISFORMULA(tblDeprExpJune19[[#This Row],[FUNC]]),\"NO\",\"YES\")))","v":"NO"}]
[{"$f":"CONCATENATE(tblDeprExpJune19[[#This Row],[Primary Account]],tblDeprExpJune19[[#This Row],[Primary Name]],tblDeprExpJune19[[#This Row],[Secondary Acct]],tblDeprExpJune19[[#This Row],[Secondary  Name]],tblDeprExpJune19[[#This Row],[Alloc4Func]])","v":"4030000DEPN EXPENSE-ELECT3730000STREET LIGHTING & SIGNAL SYSTEMSSITUS"},"4030000","DEPN EXPENSE-ELECT","3730000","STREET LIGHTING & SIGNAL SYSTEMS","CA",23.480350000000001,{"$f":"IF(OR(tblDeprExpJune19[[#This Row],[Alloc]]=\"IDU\",tblDeprExpJune19[[#This Row],[Alloc]]=\"OR\",tblDeprExpJune19[[#This Row],[Alloc]]=\"UT\",tblDeprExpJune19[[#This Row],[Alloc]]=\"WYU\",tblDeprExpJune19[[#This Row],[Alloc]]=\"WYP\",tblDeprExpJune19[[#This Row],[Alloc]]=\"CA\",tblDeprExpJune19[[#This Row],[Alloc]]=\"WA\"),\"SITUS\",tblDeprExpJune19[[#This Row],[Alloc]])","v":"SITUS"},{"$f":"INDEX(tblDeprExpLookup[FUNC],MATCH(tblDeprExpJune19[[#This Row],[Concat]],tblDeprExpLookup[Concat],0))","v":"DPW"},{"$f":"IF(tblDeprExpJune19[[#This Row],[Total ($000)]]=0,\"NO\",IF(ISNA(tblDeprExpJune19[[#This Row],[FUNC]]),\"YES\",IF(_xlfn.ISFORMULA(tblDeprExpJune19[[#This Row],[FUNC]]),\"NO\",\"YES\")))","v":"NO"}]
[{"$f":"CONCATENATE(tblDeprExpJune19[[#This Row],[Primary Account]],tblDeprExpJune19[[#This Row],[Primary Name]],tblDeprExpJune19[[#This Row],[Secondary Acct]],tblDeprExpJune19[[#This Row],[Secondary  Name]],tblDeprExpJune19[[#This Row],[Alloc4Func]])","v":"4030000DEPN EXPENSE-ELECT3730000STREET LIGHTING & SIGNAL SYSTEMSSITUS"},"4030000","DEPN EXPENSE-ELECT","3730000","STREET LIGHTING & SIGNAL SYSTEMS","IDU",35.374859999999998,{"$f":"IF(OR(tblDeprExpJune19[[#This Row],[Alloc]]=\"IDU\",tblDeprExpJune19[[#This Row],[Alloc]]=\"OR\",tblDeprExpJune19[[#This Row],[Alloc]]=\"UT\",tblDeprExpJune19[[#This Row],[Alloc]]=\"WYU\",tblDeprExpJune19[[#This Row],[Alloc]]=\"WYP\",tblDeprExpJune19[[#This Row],[Alloc]]=\"CA\",tblDeprExpJune19[[#This Row],[Alloc]]=\"WA\"),\"SITUS\",tblDeprExpJune19[[#This Row],[Alloc]])","v":"SITUS"},{"$f":"INDEX(tblDeprExpLookup[FUNC],MATCH(tblDeprExpJune19[[#This Row],[Concat]],tblDeprExpLookup[Concat],0))","v":"DPW"},{"$f":"IF(tblDeprExpJune19[[#This Row],[Total ($000)]]=0,\"NO\",IF(ISNA(tblDeprExpJune19[[#This Row],[FUNC]]),\"YES\",IF(_xlfn.ISFORMULA(tblDeprExpJune19[[#This Row],[FUNC]]),\"NO\",\"YES\")))","v":"NO"}]
[{"$f":"CONCATENATE(tblDeprExpJune19[[#This Row],[Primary Account]],tblDeprExpJune19[[#This Row],[Primary Name]],tblDeprExpJune19[[#This Row],[Secondary Acct]],tblDeprExpJune19[[#This Row],[Secondary  Name]],tblDeprExpJune19[[#This Row],[Alloc4Func]])","v":"4030000DEPN EXPENSE-ELECT3730000STREET LIGHTING & SIGNAL SYSTEMSSITUS"},"4030000","DEPN EXPENSE-ELECT","3730000","STREET LIGHTING & SIGNAL SYSTEMS","OR",698.54164000000003,{"$f":"IF(OR(tblDeprExpJune19[[#This Row],[Alloc]]=\"IDU\",tblDeprExpJune19[[#This Row],[Alloc]]=\"OR\",tblDeprExpJune19[[#This Row],[Alloc]]=\"UT\",tblDeprExpJune19[[#This Row],[Alloc]]=\"WYU\",tblDeprExpJune19[[#This Row],[Alloc]]=\"WYP\",tblDeprExpJune19[[#This Row],[Alloc]]=\"CA\",tblDeprExpJune19[[#This Row],[Alloc]]=\"WA\"),\"SITUS\",tblDeprExpJune19[[#This Row],[Alloc]])","v":"SITUS"},{"$f":"INDEX(tblDeprExpLookup[FUNC],MATCH(tblDeprExpJune19[[#This Row],[Concat]],tblDeprExpLookup[Concat],0))","v":"DPW"},{"$f":"IF(tblDeprExpJune19[[#This Row],[Total ($000)]]=0,\"NO\",IF(ISNA(tblDeprExpJune19[[#This Row],[FUNC]]),\"YES\",IF(_xlfn.ISFORMULA(tblDeprExpJune19[[#This Row],[FUNC]]),\"NO\",\"YES\")))","v":"NO"}]
[{"$f":"CONCATENATE(tblDeprExpJune19[[#This Row],[Primary Account]],tblDeprExpJune19[[#This Row],[Primary Name]],tblDeprExpJune19[[#This Row],[Secondary Acct]],tblDeprExpJune19[[#This Row],[Secondary  Name]],tblDeprExpJune19[[#This Row],[Alloc4Func]])","v":"4030000DEPN EXPENSE-ELECT3730000STREET LIGHTING & SIGNAL SYSTEMSSITUS"},"4030000","DEPN EXPENSE-ELECT","3730000","STREET LIGHTING & SIGNAL SYSTEMS","UT",1041.35671,{"$f":"IF(OR(tblDeprExpJune19[[#This Row],[Alloc]]=\"IDU\",tblDeprExpJune19[[#This Row],[Alloc]]=\"OR\",tblDeprExpJune19[[#This Row],[Alloc]]=\"UT\",tblDeprExpJune19[[#This Row],[Alloc]]=\"WYU\",tblDeprExpJune19[[#This Row],[Alloc]]=\"WYP\",tblDeprExpJune19[[#This Row],[Alloc]]=\"CA\",tblDeprExpJune19[[#This Row],[Alloc]]=\"WA\"),\"SITUS\",tblDeprExpJune19[[#This Row],[Alloc]])","v":"SITUS"},{"$f":"INDEX(tblDeprExpLookup[FUNC],MATCH(tblDeprExpJune19[[#This Row],[Concat]],tblDeprExpLookup[Concat],0))","v":"DPW"},{"$f":"IF(tblDeprExpJune19[[#This Row],[Total ($000)]]=0,\"NO\",IF(ISNA(tblDeprExpJune19[[#This Row],[FUNC]]),\"YES\",IF(_xlfn.ISFORMULA(tblDeprExpJune19[[#This Row],[FUNC]]),\"NO\",\"YES\")))","v":"NO"}]
[{"$f":"CONCATENATE(tblDeprExpJune19[[#This Row],[Primary Account]],tblDeprExpJune19[[#This Row],[Primary Name]],tblDeprExpJune19[[#This Row],[Secondary Acct]],tblDeprExpJune19[[#This Row],[Secondary  Name]],tblDeprExpJune19[[#This Row],[Alloc4Func]])","v":"4030000DEPN EXPENSE-ELECT3730000STREET LIGHTING & SIGNAL SYSTEMSSITUS"},"4030000","DEPN EXPENSE-ELECT","3730000","STREET LIGHTING & SIGNAL SYSTEMS","WA",125.49684999999999,{"$f":"IF(OR(tblDeprExpJune19[[#This Row],[Alloc]]=\"IDU\",tblDeprExpJune19[[#This Row],[Alloc]]=\"OR\",tblDeprExpJune19[[#This Row],[Alloc]]=\"UT\",tblDeprExpJune19[[#This Row],[Alloc]]=\"WYU\",tblDeprExpJune19[[#This Row],[Alloc]]=\"WYP\",tblDeprExpJune19[[#This Row],[Alloc]]=\"CA\",tblDeprExpJune19[[#This Row],[Alloc]]=\"WA\"),\"SITUS\",tblDeprExpJune19[[#This Row],[Alloc]])","v":"SITUS"},{"$f":"INDEX(tblDeprExpLookup[FUNC],MATCH(tblDeprExpJune19[[#This Row],[Concat]],tblDeprExpLookup[Concat],0))","v":"DPW"},{"$f":"IF(tblDeprExpJune19[[#This Row],[Total ($000)]]=0,\"NO\",IF(ISNA(tblDeprExpJune19[[#This Row],[FUNC]]),\"YES\",IF(_xlfn.ISFORMULA(tblDeprExpJune19[[#This Row],[FUNC]]),\"NO\",\"YES\")))","v":"NO"}]
[{"$f":"CONCATENATE(tblDeprExpJune19[[#This Row],[Primary Account]],tblDeprExpJune19[[#This Row],[Primary Name]],tblDeprExpJune19[[#This Row],[Secondary Acct]],tblDeprExpJune19[[#This Row],[Secondary  Name]],tblDeprExpJune19[[#This Row],[Alloc4Func]])","v":"4030000DEPN EXPENSE-ELECT3730000STREET LIGHTING & SIGNAL SYSTEMSSITUS"},"4030000","DEPN EXPENSE-ELECT","3730000","STREET LIGHTING & SIGNAL SYSTEMS","WYP",245.56666999999999,{"$f":"IF(OR(tblDeprExpJune19[[#This Row],[Alloc]]=\"IDU\",tblDeprExpJune19[[#This Row],[Alloc]]=\"OR\",tblDeprExpJune19[[#This Row],[Alloc]]=\"UT\",tblDeprExpJune19[[#This Row],[Alloc]]=\"WYU\",tblDeprExpJune19[[#This Row],[Alloc]]=\"WYP\",tblDeprExpJune19[[#This Row],[Alloc]]=\"CA\",tblDeprExpJune19[[#This Row],[Alloc]]=\"WA\"),\"SITUS\",tblDeprExpJune19[[#This Row],[Alloc]])","v":"SITUS"},{"$f":"INDEX(tblDeprExpLookup[FUNC],MATCH(tblDeprExpJune19[[#This Row],[Concat]],tblDeprExpLookup[Concat],0))","v":"DPW"},{"$f":"IF(tblDeprExpJune19[[#This Row],[Total ($000)]]=0,\"NO\",IF(ISNA(tblDeprExpJune19[[#This Row],[FUNC]]),\"YES\",IF(_xlfn.ISFORMULA(tblDeprExpJune19[[#This Row],[FUNC]]),\"NO\",\"YES\")))","v":"NO"}]
[{"$f":"CONCATENATE(tblDeprExpJune19[[#This Row],[Primary Account]],tblDeprExpJune19[[#This Row],[Primary Name]],tblDeprExpJune19[[#This Row],[Secondary Acct]],tblDeprExpJune19[[#This Row],[Secondary  Name]],tblDeprExpJune19[[#This Row],[Alloc4Func]])","v":"4030000DEPN EXPENSE-ELECT3730000STREET LIGHTING & SIGNAL SYSTEMSSITUS"},"4030000","DEPN EXPENSE-ELECT","3730000","STREET LIGHTING & SIGNAL SYSTEMS","WYU",65.56814,{"$f":"IF(OR(tblDeprExpJune19[[#This Row],[Alloc]]=\"IDU\",tblDeprExpJune19[[#This Row],[Alloc]]=\"OR\",tblDeprExpJune19[[#This Row],[Alloc]]=\"UT\",tblDeprExpJune19[[#This Row],[Alloc]]=\"WYU\",tblDeprExpJune19[[#This Row],[Alloc]]=\"WYP\",tblDeprExpJune19[[#This Row],[Alloc]]=\"CA\",tblDeprExpJune19[[#This Row],[Alloc]]=\"WA\"),\"SITUS\",tblDeprExpJune19[[#This Row],[Alloc]])","v":"SITUS"},{"$f":"INDEX(tblDeprExpLookup[FUNC],MATCH(tblDeprExpJune19[[#This Row],[Concat]],tblDeprExpLookup[Concat],0))","v":"DPW"},{"$f":"IF(tblDeprExpJune19[[#This Row],[Total ($000)]]=0,\"NO\",IF(ISNA(tblDeprExpJune19[[#This Row],[FUNC]]),\"YES\",IF(_xlfn.ISFORMULA(tblDeprExpJune19[[#This Row],[FUNC]]),\"NO\",\"YES\")))","v":"NO"}]
[{"$f":"CONCATENATE(tblDeprExpJune19[[#This Row],[Primary Account]],tblDeprExpJune19[[#This Row],[Primary Name]],tblDeprExpJune19[[#This Row],[Secondary Acct]],tblDeprExpJune19[[#This Row],[Secondary  Name]],tblDeprExpJune19[[#This Row],[Alloc4Func]])","v":"4030000DEPN EXPENSE-ELECT3892000LAND RIGHTSSITUS"},"4030000","DEPN EXPENSE-ELECT","3892000","LAND RIGHTS","IDU",5.6939999999999998E-2,{"$f":"IF(OR(tblDeprExpJune19[[#This Row],[Alloc]]=\"IDU\",tblDeprExpJune19[[#This Row],[Alloc]]=\"OR\",tblDeprExpJune19[[#This Row],[Alloc]]=\"UT\",tblDeprExpJune19[[#This Row],[Alloc]]=\"WYU\",tblDeprExpJune19[[#This Row],[Alloc]]=\"WYP\",tblDeprExpJune19[[#This Row],[Alloc]]=\"CA\",tblDeprExpJune19[[#This Row],[Alloc]]=\"WA\"),\"SITUS\",tblDeprExpJune19[[#This Row],[Alloc]])","v":"SITUS"},{"$f":"INDEX(tblDeprExpLookup[FUNC],MATCH(tblDeprExpJune19[[#This Row],[Concat]],tblDeprExpLookup[Concat],0))","v":"G-SITUS"},{"$f":"IF(tblDeprExpJune19[[#This Row],[Total ($000)]]=0,\"NO\",IF(ISNA(tblDeprExpJune19[[#This Row],[FUNC]]),\"YES\",IF(_xlfn.ISFORMULA(tblDeprExpJune19[[#This Row],[FUNC]]),\"NO\",\"YES\")))","v":"NO"}]
[{"$f":"CONCATENATE(tblDeprExpJune19[[#This Row],[Primary Account]],tblDeprExpJune19[[#This Row],[Primary Name]],tblDeprExpJune19[[#This Row],[Secondary Acct]],tblDeprExpJune19[[#This Row],[Secondary  Name]],tblDeprExpJune19[[#This Row],[Alloc4Func]])","v":"4030000DEPN EXPENSE-ELECT3892000LAND RIGHTSSG"},"4030000","DEPN EXPENSE-ELECT","3892000","LAND RIGHTS","SG",2.4920000000000001E-2,{"$f":"IF(OR(tblDeprExpJune19[[#This Row],[Alloc]]=\"IDU\",tblDeprExpJune19[[#This Row],[Alloc]]=\"OR\",tblDeprExpJune19[[#This Row],[Alloc]]=\"UT\",tblDeprExpJune19[[#This Row],[Alloc]]=\"WYU\",tblDeprExpJune19[[#This Row],[Alloc]]=\"WYP\",tblDeprExpJune19[[#This Row],[Alloc]]=\"CA\",tblDeprExpJune19[[#This Row],[Alloc]]=\"WA\"),\"SITUS\",tblDeprExpJune19[[#This Row],[Alloc]])","v":"SG"},{"$f":"INDEX(tblDeprExpLookup[FUNC],MATCH(tblDeprExpJune19[[#This Row],[Concat]],tblDeprExpLookup[Concat],0))","v":"G-DGP"},{"$f":"IF(tblDeprExpJune19[[#This Row],[Total ($000)]]=0,\"NO\",IF(ISNA(tblDeprExpJune19[[#This Row],[FUNC]]),\"YES\",IF(_xlfn.ISFORMULA(tblDeprExpJune19[[#This Row],[FUNC]]),\"NO\",\"YES\")))","v":"NO"}]
[{"$f":"CONCATENATE(tblDeprExpJune19[[#This Row],[Primary Account]],tblDeprExpJune19[[#This Row],[Primary Name]],tblDeprExpJune19[[#This Row],[Secondary Acct]],tblDeprExpJune19[[#This Row],[Secondary  Name]],tblDeprExpJune19[[#This Row],[Alloc4Func]])","v":"4030000DEPN EXPENSE-ELECT3892000LAND RIGHTSSITUS"},"4030000","DEPN EXPENSE-ELECT","3892000","LAND RIGHTS","UT",1.70655,{"$f":"IF(OR(tblDeprExpJune19[[#This Row],[Alloc]]=\"IDU\",tblDeprExpJune19[[#This Row],[Alloc]]=\"OR\",tblDeprExpJune19[[#This Row],[Alloc]]=\"UT\",tblDeprExpJune19[[#This Row],[Alloc]]=\"WYU\",tblDeprExpJune19[[#This Row],[Alloc]]=\"WYP\",tblDeprExpJune19[[#This Row],[Alloc]]=\"CA\",tblDeprExpJune19[[#This Row],[Alloc]]=\"WA\"),\"SITUS\",tblDeprExpJune19[[#This Row],[Alloc]])","v":"SITUS"},{"$f":"INDEX(tblDeprExpLookup[FUNC],MATCH(tblDeprExpJune19[[#This Row],[Concat]],tblDeprExpLookup[Concat],0))","v":"G-SITUS"},{"$f":"IF(tblDeprExpJune19[[#This Row],[Total ($000)]]=0,\"NO\",IF(ISNA(tblDeprExpJune19[[#This Row],[FUNC]]),\"YES\",IF(_xlfn.ISFORMULA(tblDeprExpJune19[[#This Row],[FUNC]]),\"NO\",\"YES\")))","v":"NO"}]
[{"$f":"CONCATENATE(tblDeprExpJune19[[#This Row],[Primary Account]],tblDeprExpJune19[[#This Row],[Primary Name]],tblDeprExpJune19[[#This Row],[Secondary Acct]],tblDeprExpJune19[[#This Row],[Secondary  Name]],tblDeprExpJune19[[#This Row],[Alloc4Func]])","v":"4030000DEPN EXPENSE-ELECT3892000LAND RIGHTSSITUS"},"4030000","DEPN EXPENSE-ELECT","3892000","LAND RIGHTS","WYP",1.0377000000000001,{"$f":"IF(OR(tblDeprExpJune19[[#This Row],[Alloc]]=\"IDU\",tblDeprExpJune19[[#This Row],[Alloc]]=\"OR\",tblDeprExpJune19[[#This Row],[Alloc]]=\"UT\",tblDeprExpJune19[[#This Row],[Alloc]]=\"WYU\",tblDeprExpJune19[[#This Row],[Alloc]]=\"WYP\",tblDeprExpJune19[[#This Row],[Alloc]]=\"CA\",tblDeprExpJune19[[#This Row],[Alloc]]=\"WA\"),\"SITUS\",tblDeprExpJune19[[#This Row],[Alloc]])","v":"SITUS"},{"$f":"INDEX(tblDeprExpLookup[FUNC],MATCH(tblDeprExpJune19[[#This Row],[Concat]],tblDeprExpLookup[Concat],0))","v":"G-SITUS"},{"$f":"IF(tblDeprExpJune19[[#This Row],[Total ($000)]]=0,\"NO\",IF(ISNA(tblDeprExpJune19[[#This Row],[FUNC]]),\"YES\",IF(_xlfn.ISFORMULA(tblDeprExpJune19[[#This Row],[FUNC]]),\"NO\",\"YES\")))","v":"NO"}]
[{"$f":"CONCATENATE(tblDeprExpJune19[[#This Row],[Primary Account]],tblDeprExpJune19[[#This Row],[Primary Name]],tblDeprExpJune19[[#This Row],[Secondary Acct]],tblDeprExpJune19[[#This Row],[Secondary  Name]],tblDeprExpJune19[[#This Row],[Alloc4Func]])","v":"4030000DEPN EXPENSE-ELECT3892000LAND RIGHTSSITUS"},"4030000","DEPN EXPENSE-ELECT","3892000","LAND RIGHTS","WYU",0.43380000000000002,{"$f":"IF(OR(tblDeprExpJune19[[#This Row],[Alloc]]=\"IDU\",tblDeprExpJune19[[#This Row],[Alloc]]=\"OR\",tblDeprExpJune19[[#This Row],[Alloc]]=\"UT\",tblDeprExpJune19[[#This Row],[Alloc]]=\"WYU\",tblDeprExpJune19[[#This Row],[Alloc]]=\"WYP\",tblDeprExpJune19[[#This Row],[Alloc]]=\"CA\",tblDeprExpJune19[[#This Row],[Alloc]]=\"WA\"),\"SITUS\",tblDeprExpJune19[[#This Row],[Alloc]])","v":"SITUS"},{"$f":"INDEX(tblDeprExpLookup[FUNC],MATCH(tblDeprExpJune19[[#This Row],[Concat]],tblDeprExpLookup[Concat],0))","v":"G-SITUS"},{"$f":"IF(tblDeprExpJune19[[#This Row],[Total ($000)]]=0,\"NO\",IF(ISNA(tblDeprExpJune19[[#This Row],[FUNC]]),\"YES\",IF(_xlfn.ISFORMULA(tblDeprExpJune19[[#This Row],[FUNC]]),\"NO\",\"YES\")))","v":"NO"}]
[{"$f":"CONCATENATE(tblDeprExpJune19[[#This Row],[Primary Account]],tblDeprExpJune19[[#This Row],[Primary Name]],tblDeprExpJune19[[#This Row],[Secondary Acct]],tblDeprExpJune19[[#This Row],[Secondary  Name]],tblDeprExpJune19[[#This Row],[Alloc4Func]])","v":"4030000DEPN EXPENSE-ELECT3900000STRUCTURES AND IMPROVEMENTSSITUS"},"4030000","DEPN EXPENSE-ELECT","3900000","STRUCTURES AND IMPROVEMENTS","CA",55.724330000000002,{"$f":"IF(OR(tblDeprExpJune19[[#This Row],[Alloc]]=\"IDU\",tblDeprExpJune19[[#This Row],[Alloc]]=\"OR\",tblDeprExpJune19[[#This Row],[Alloc]]=\"UT\",tblDeprExpJune19[[#This Row],[Alloc]]=\"WYU\",tblDeprExpJune19[[#This Row],[Alloc]]=\"WYP\",tblDeprExpJune19[[#This Row],[Alloc]]=\"CA\",tblDeprExpJune19[[#This Row],[Alloc]]=\"WA\"),\"SITUS\",tblDeprExpJune19[[#This Row],[Alloc]])","v":"SITUS"},{"$f":"INDEX(tblDeprExpLookup[FUNC],MATCH(tblDeprExpJune19[[#This Row],[Concat]],tblDeprExpLookup[Concat],0))","v":"G-SITUS"},{"$f":"IF(tblDeprExpJune19[[#This Row],[Total ($000)]]=0,\"NO\",IF(ISNA(tblDeprExpJune19[[#This Row],[FUNC]]),\"YES\",IF(_xlfn.ISFORMULA(tblDeprExpJune19[[#This Row],[FUNC]]),\"NO\",\"YES\")))","v":"NO"}]
[{"$f":"CONCATENATE(tblDeprExpJune19[[#This Row],[Primary Account]],tblDeprExpJune19[[#This Row],[Primary Name]],tblDeprExpJune19[[#This Row],[Secondary Acct]],tblDeprExpJune19[[#This Row],[Secondary  Name]],tblDeprExpJune19[[#This Row],[Alloc4Func]])","v":"4030000DEPN EXPENSE-ELECT3900000STRUCTURES AND IMPROVEMENTSCN"},"4030000","DEPN EXPENSE-ELECT","3900000","STRUCTURES AND IMPROVEMENTS","CN",125.23521,{"$f":"IF(OR(tblDeprExpJune19[[#This Row],[Alloc]]=\"IDU\",tblDeprExpJune19[[#This Row],[Alloc]]=\"OR\",tblDeprExpJune19[[#This Row],[Alloc]]=\"UT\",tblDeprExpJune19[[#This Row],[Alloc]]=\"WYU\",tblDeprExpJune19[[#This Row],[Alloc]]=\"WYP\",tblDeprExpJune19[[#This Row],[Alloc]]=\"CA\",tblDeprExpJune19[[#This Row],[Alloc]]=\"WA\"),\"SITUS\",tblDeprExpJune19[[#This Row],[Alloc]])","v":"CN"},{"$f":"INDEX(tblDeprExpLookup[FUNC],MATCH(tblDeprExpJune19[[#This Row],[Concat]],tblDeprExpLookup[Concat],0))","v":"CUST"},{"$f":"IF(tblDeprExpJune19[[#This Row],[Total ($000)]]=0,\"NO\",IF(ISNA(tblDeprExpJune19[[#This Row],[FUNC]]),\"YES\",IF(_xlfn.ISFORMULA(tblDeprExpJune19[[#This Row],[FUNC]]),\"NO\",\"YES\")))","v":"NO"}]
[{"$f":"CONCATENATE(tblDeprExpJune19[[#This Row],[Primary Account]],tblDeprExpJune19[[#This Row],[Primary Name]],tblDeprExpJune19[[#This Row],[Secondary Acct]],tblDeprExpJune19[[#This Row],[Secondary  Name]],tblDeprExpJune19[[#This Row],[Alloc4Func]])","v":"4030000DEPN EXPENSE-ELECT3900000STRUCTURES AND IMPROVEMENTSSITUS"},"4030000","DEPN EXPENSE-ELECT","3900000","STRUCTURES AND IMPROVEMENTS","IDU",184.93602999999999,{"$f":"IF(OR(tblDeprExpJune19[[#This Row],[Alloc]]=\"IDU\",tblDeprExpJune19[[#This Row],[Alloc]]=\"OR\",tblDeprExpJune19[[#This Row],[Alloc]]=\"UT\",tblDeprExpJune19[[#This Row],[Alloc]]=\"WYU\",tblDeprExpJune19[[#This Row],[Alloc]]=\"WYP\",tblDeprExpJune19[[#This Row],[Alloc]]=\"CA\",tblDeprExpJune19[[#This Row],[Alloc]]=\"WA\"),\"SITUS\",tblDeprExpJune19[[#This Row],[Alloc]])","v":"SITUS"},{"$f":"INDEX(tblDeprExpLookup[FUNC],MATCH(tblDeprExpJune19[[#This Row],[Concat]],tblDeprExpLookup[Concat],0))","v":"G-SITUS"},{"$f":"IF(tblDeprExpJune19[[#This Row],[Total ($000)]]=0,\"NO\",IF(ISNA(tblDeprExpJune19[[#This Row],[FUNC]]),\"YES\",IF(_xlfn.ISFORMULA(tblDeprExpJune19[[#This Row],[FUNC]]),\"NO\",\"YES\")))","v":"NO"}]
[{"$f":"CONCATENATE(tblDeprExpJune19[[#This Row],[Primary Account]],tblDeprExpJune19[[#This Row],[Primary Name]],tblDeprExpJune19[[#This Row],[Secondary Acct]],tblDeprExpJune19[[#This Row],[Secondary  Name]],tblDeprExpJune19[[#This Row],[Alloc4Func]])","v":"4030000DEPN EXPENSE-ELECT3900000STRUCTURES AND IMPROVEMENTSSITUS"},"4030000","DEPN EXPENSE-ELECT","3900000","STRUCTURES AND IMPROVEMENTS","OR",626.08207000000004,{"$f":"IF(OR(tblDeprExpJune19[[#This Row],[Alloc]]=\"IDU\",tblDeprExpJune19[[#This Row],[Alloc]]=\"OR\",tblDeprExpJune19[[#This Row],[Alloc]]=\"UT\",tblDeprExpJune19[[#This Row],[Alloc]]=\"WYU\",tblDeprExpJune19[[#This Row],[Alloc]]=\"WYP\",tblDeprExpJune19[[#This Row],[Alloc]]=\"CA\",tblDeprExpJune19[[#This Row],[Alloc]]=\"WA\"),\"SITUS\",tblDeprExpJune19[[#This Row],[Alloc]])","v":"SITUS"},{"$f":"INDEX(tblDeprExpLookup[FUNC],MATCH(tblDeprExpJune19[[#This Row],[Concat]],tblDeprExpLookup[Concat],0))","v":"G-SITUS"},{"$f":"IF(tblDeprExpJune19[[#This Row],[Total ($000)]]=0,\"NO\",IF(ISNA(tblDeprExpJune19[[#This Row],[FUNC]]),\"YES\",IF(_xlfn.ISFORMULA(tblDeprExpJune19[[#This Row],[FUNC]]),\"NO\",\"YES\")))","v":"NO"}]
[{"$f":"CONCATENATE(tblDeprExpJune19[[#This Row],[Primary Account]],tblDeprExpJune19[[#This Row],[Primary Name]],tblDeprExpJune19[[#This Row],[Secondary Acct]],tblDeprExpJune19[[#This Row],[Secondary  Name]],tblDeprExpJune19[[#This Row],[Alloc4Func]])","v":"4030000DEPN EXPENSE-ELECT3900000STRUCTURES AND IMPROVEMENTSSE"},"4030000","DEPN EXPENSE-ELECT","3900000","STRUCTURES AND IMPROVEMENTS","SE",17.800730000000001,{"$f":"IF(OR(tblDeprExpJune19[[#This Row],[Alloc]]=\"IDU\",tblDeprExpJune19[[#This Row],[Alloc]]=\"OR\",tblDeprExpJune19[[#This Row],[Alloc]]=\"UT\",tblDeprExpJune19[[#This Row],[Alloc]]=\"WYU\",tblDeprExpJune19[[#This Row],[Alloc]]=\"WYP\",tblDeprExpJune19[[#This Row],[Alloc]]=\"CA\",tblDeprExpJune19[[#This Row],[Alloc]]=\"WA\"),\"SITUS\",tblDeprExpJune19[[#This Row],[Alloc]])","v":"SE"},{"$f":"INDEX(tblDeprExpLookup[FUNC],MATCH(tblDeprExpJune19[[#This Row],[Concat]],tblDeprExpLookup[Concat],0))","v":"P"},{"$f":"IF(tblDeprExpJune19[[#This Row],[Total ($000)]]=0,\"NO\",IF(ISNA(tblDeprExpJune19[[#This Row],[FUNC]]),\"YES\",IF(_xlfn.ISFORMULA(tblDeprExpJune19[[#This Row],[FUNC]]),\"NO\",\"YES\")))","v":"NO"}]
[{"$f":"CONCATENATE(tblDeprExpJune19[[#This Row],[Primary Account]],tblDeprExpJune19[[#This Row],[Primary Name]],tblDeprExpJune19[[#This Row],[Secondary Acct]],tblDeprExpJune19[[#This Row],[Secondary  Name]],tblDeprExpJune19[[#This Row],[Alloc4Func]])","v":"4030000DEPN EXPENSE-ELECT3900000STRUCTURES AND IMPROVEMENTSSG"},"4030000","DEPN EXPENSE-ELECT","3900000","STRUCTURES AND IMPROVEMENTS","SG",131.001,{"$f":"IF(OR(tblDeprExpJune19[[#This Row],[Alloc]]=\"IDU\",tblDeprExpJune19[[#This Row],[Alloc]]=\"OR\",tblDeprExpJune19[[#This Row],[Alloc]]=\"UT\",tblDeprExpJune19[[#This Row],[Alloc]]=\"WYU\",tblDeprExpJune19[[#This Row],[Alloc]]=\"WYP\",tblDeprExpJune19[[#This Row],[Alloc]]=\"CA\",tblDeprExpJune19[[#This Row],[Alloc]]=\"WA\"),\"SITUS\",tblDeprExpJune19[[#This Row],[Alloc]])","v":"SG"},{"$f":"INDEX(tblDeprExpLookup[FUNC],MATCH(tblDeprExpJune19[[#This Row],[Concat]],tblDeprExpLookup[Concat],0))","v":"G-DGU"},{"$f":"IF(tblDeprExpJune19[[#This Row],[Total ($000)]]=0,\"NO\",IF(ISNA(tblDeprExpJune19[[#This Row],[FUNC]]),\"YES\",IF(_xlfn.ISFORMULA(tblDeprExpJune19[[#This Row],[FUNC]]),\"NO\",\"YES\")))","v":"NO"}]
[{"$f":"CONCATENATE(tblDeprExpJune19[[#This Row],[Primary Account]],tblDeprExpJune19[[#This Row],[Primary Name]],tblDeprExpJune19[[#This Row],[Secondary Acct]],tblDeprExpJune19[[#This Row],[Secondary  Name]],tblDeprExpJune19[[#This Row],[Alloc4Func]])","v":"4030000DEPN EXPENSE-ELECT3900000STRUCTURES AND IMPROVEMENTSSO"},"4030000","DEPN EXPENSE-ELECT","3900000","STRUCTURES AND IMPROVEMENTS","SO",1578.5202899999999,{"$f":"IF(OR(tblDeprExpJune19[[#This Row],[Alloc]]=\"IDU\",tblDeprExpJune19[[#This Row],[Alloc]]=\"OR\",tblDeprExpJune19[[#This Row],[Alloc]]=\"UT\",tblDeprExpJune19[[#This Row],[Alloc]]=\"WYU\",tblDeprExpJune19[[#This Row],[Alloc]]=\"WYP\",tblDeprExpJune19[[#This Row],[Alloc]]=\"CA\",tblDeprExpJune19[[#This Row],[Alloc]]=\"WA\"),\"SITUS\",tblDeprExpJune19[[#This Row],[Alloc]])","v":"SO"},{"$f":"INDEX(tblDeprExpLookup[FUNC],MATCH(tblDeprExpJune19[[#This Row],[Concat]],tblDeprExpLookup[Concat],0))","v":"PTD"},{"$f":"IF(tblDeprExpJune19[[#This Row],[Total ($000)]]=0,\"NO\",IF(ISNA(tblDeprExpJune19[[#This Row],[FUNC]]),\"YES\",IF(_xlfn.ISFORMULA(tblDeprExpJune19[[#This Row],[FUNC]]),\"NO\",\"YES\")))","v":"NO"}]
[{"$f":"CONCATENATE(tblDeprExpJune19[[#This Row],[Primary Account]],tblDeprExpJune19[[#This Row],[Primary Name]],tblDeprExpJune19[[#This Row],[Secondary Acct]],tblDeprExpJune19[[#This Row],[Secondary  Name]],tblDeprExpJune19[[#This Row],[Alloc4Func]])","v":"4030000DEPN EXPENSE-ELECT3900000STRUCTURES AND IMPROVEMENTSSITUS"},"4030000","DEPN EXPENSE-ELECT","3900000","STRUCTURES AND IMPROVEMENTS","UT",677.8306,{"$f":"IF(OR(tblDeprExpJune19[[#This Row],[Alloc]]=\"IDU\",tblDeprExpJune19[[#This Row],[Alloc]]=\"OR\",tblDeprExpJune19[[#This Row],[Alloc]]=\"UT\",tblDeprExpJune19[[#This Row],[Alloc]]=\"WYU\",tblDeprExpJune19[[#This Row],[Alloc]]=\"WYP\",tblDeprExpJune19[[#This Row],[Alloc]]=\"CA\",tblDeprExpJune19[[#This Row],[Alloc]]=\"WA\"),\"SITUS\",tblDeprExpJune19[[#This Row],[Alloc]])","v":"SITUS"},{"$f":"INDEX(tblDeprExpLookup[FUNC],MATCH(tblDeprExpJune19[[#This Row],[Concat]],tblDeprExpLookup[Concat],0))","v":"G-SITUS"},{"$f":"IF(tblDeprExpJune19[[#This Row],[Total ($000)]]=0,\"NO\",IF(ISNA(tblDeprExpJune19[[#This Row],[FUNC]]),\"YES\",IF(_xlfn.ISFORMULA(tblDeprExpJune19[[#This Row],[FUNC]]),\"NO\",\"YES\")))","v":"NO"}]
[{"$f":"CONCATENATE(tblDeprExpJune19[[#This Row],[Primary Account]],tblDeprExpJune19[[#This Row],[Primary Name]],tblDeprExpJune19[[#This Row],[Secondary Acct]],tblDeprExpJune19[[#This Row],[Secondary  Name]],tblDeprExpJune19[[#This Row],[Alloc4Func]])","v":"4030000DEPN EXPENSE-ELECT3900000STRUCTURES AND IMPROVEMENTSSITUS"},"4030000","DEPN EXPENSE-ELECT","3900000","STRUCTURES AND IMPROVEMENTS","WA",289.81247999999999,{"$f":"IF(OR(tblDeprExpJune19[[#This Row],[Alloc]]=\"IDU\",tblDeprExpJune19[[#This Row],[Alloc]]=\"OR\",tblDeprExpJune19[[#This Row],[Alloc]]=\"UT\",tblDeprExpJune19[[#This Row],[Alloc]]=\"WYU\",tblDeprExpJune19[[#This Row],[Alloc]]=\"WYP\",tblDeprExpJune19[[#This Row],[Alloc]]=\"CA\",tblDeprExpJune19[[#This Row],[Alloc]]=\"WA\"),\"SITUS\",tblDeprExpJune19[[#This Row],[Alloc]])","v":"SITUS"},{"$f":"INDEX(tblDeprExpLookup[FUNC],MATCH(tblDeprExpJune19[[#This Row],[Concat]],tblDeprExpLookup[Concat],0))","v":"G-SITUS"},{"$f":"IF(tblDeprExpJune19[[#This Row],[Total ($000)]]=0,\"NO\",IF(ISNA(tblDeprExpJune19[[#This Row],[FUNC]]),\"YES\",IF(_xlfn.ISFORMULA(tblDeprExpJune19[[#This Row],[FUNC]]),\"NO\",\"YES\")))","v":"NO"}]
[{"$f":"CONCATENATE(tblDeprExpJune19[[#This Row],[Primary Account]],tblDeprExpJune19[[#This Row],[Primary Name]],tblDeprExpJune19[[#This Row],[Secondary Acct]],tblDeprExpJune19[[#This Row],[Secondary  Name]],tblDeprExpJune19[[#This Row],[Alloc4Func]])","v":"4030000DEPN EXPENSE-ELECT3900000STRUCTURES AND IMPROVEMENTSSITUS"},"4030000","DEPN EXPENSE-ELECT","3900000","STRUCTURES AND IMPROVEMENTS","WYP",177.96928,{"$f":"IF(OR(tblDeprExpJune19[[#This Row],[Alloc]]=\"IDU\",tblDeprExpJune19[[#This Row],[Alloc]]=\"OR\",tblDeprExpJune19[[#This Row],[Alloc]]=\"UT\",tblDeprExpJune19[[#This Row],[Alloc]]=\"WYU\",tblDeprExpJune19[[#This Row],[Alloc]]=\"WYP\",tblDeprExpJune19[[#This Row],[Alloc]]=\"CA\",tblDeprExpJune19[[#This Row],[Alloc]]=\"WA\"),\"SITUS\",tblDeprExpJune19[[#This Row],[Alloc]])","v":"SITUS"},{"$f":"INDEX(tblDeprExpLookup[FUNC],MATCH(tblDeprExpJune19[[#This Row],[Concat]],tblDeprExpLookup[Concat],0))","v":"G-SITUS"},{"$f":"IF(tblDeprExpJune19[[#This Row],[Total ($000)]]=0,\"NO\",IF(ISNA(tblDeprExpJune19[[#This Row],[FUNC]]),\"YES\",IF(_xlfn.ISFORMULA(tblDeprExpJune19[[#This Row],[FUNC]]),\"NO\",\"YES\")))","v":"NO"}]
[{"$f":"CONCATENATE(tblDeprExpJune19[[#This Row],[Primary Account]],tblDeprExpJune19[[#This Row],[Primary Name]],tblDeprExpJune19[[#This Row],[Secondary Acct]],tblDeprExpJune19[[#This Row],[Secondary  Name]],tblDeprExpJune19[[#This Row],[Alloc4Func]])","v":"4030000DEPN EXPENSE-ELECT3900000STRUCTURES AND IMPROVEMENTSSITUS"},"4030000","DEPN EXPENSE-ELECT","3900000","STRUCTURES AND IMPROVEMENTS","WYU",90.039720000000003,{"$f":"IF(OR(tblDeprExpJune19[[#This Row],[Alloc]]=\"IDU\",tblDeprExpJune19[[#This Row],[Alloc]]=\"OR\",tblDeprExpJune19[[#This Row],[Alloc]]=\"UT\",tblDeprExpJune19[[#This Row],[Alloc]]=\"WYU\",tblDeprExpJune19[[#This Row],[Alloc]]=\"WYP\",tblDeprExpJune19[[#This Row],[Alloc]]=\"CA\",tblDeprExpJune19[[#This Row],[Alloc]]=\"WA\"),\"SITUS\",tblDeprExpJune19[[#This Row],[Alloc]])","v":"SITUS"},{"$f":"INDEX(tblDeprExpLookup[FUNC],MATCH(tblDeprExpJune19[[#This Row],[Concat]],tblDeprExpLookup[Concat],0))","v":"G-SITUS"},{"$f":"IF(tblDeprExpJune19[[#This Row],[Total ($000)]]=0,\"NO\",IF(ISNA(tblDeprExpJune19[[#This Row],[FUNC]]),\"YES\",IF(_xlfn.ISFORMULA(tblDeprExpJune19[[#This Row],[FUNC]]),\"NO\",\"YES\")))","v":"NO"}]
[{"$f":"CONCATENATE(tblDeprExpJune19[[#This Row],[Primary Account]],tblDeprExpJune19[[#This Row],[Primary Name]],tblDeprExpJune19[[#This Row],[Secondary Acct]],tblDeprExpJune19[[#This Row],[Secondary  Name]],tblDeprExpJune19[[#This Row],[Alloc4Func]])","v":"4030000DEPN EXPENSE-ELECT3910000OFFICE FURNITURESITUS"},"4030000","DEPN EXPENSE-ELECT","3910000","OFFICE FURNITURE","CA",5.47804,{"$f":"IF(OR(tblDeprExpJune19[[#This Row],[Alloc]]=\"IDU\",tblDeprExpJune19[[#This Row],[Alloc]]=\"OR\",tblDeprExpJune19[[#This Row],[Alloc]]=\"UT\",tblDeprExpJune19[[#This Row],[Alloc]]=\"WYU\",tblDeprExpJune19[[#This Row],[Alloc]]=\"WYP\",tblDeprExpJune19[[#This Row],[Alloc]]=\"CA\",tblDeprExpJune19[[#This Row],[Alloc]]=\"WA\"),\"SITUS\",tblDeprExpJune19[[#This Row],[Alloc]])","v":"SITUS"},{"$f":"INDEX(tblDeprExpLookup[FUNC],MATCH(tblDeprExpJune19[[#This Row],[Concat]],tblDeprExpLookup[Concat],0))","v":"G-SITUS"},{"$f":"IF(tblDeprExpJune19[[#This Row],[Total ($000)]]=0,\"NO\",IF(ISNA(tblDeprExpJune19[[#This Row],[FUNC]]),\"YES\",IF(_xlfn.ISFORMULA(tblDeprExpJune19[[#This Row],[FUNC]]),\"NO\",\"YES\")))","v":"NO"}]
[{"$f":"CONCATENATE(tblDeprExpJune19[[#This Row],[Primary Account]],tblDeprExpJune19[[#This Row],[Primary Name]],tblDeprExpJune19[[#This Row],[Secondary Acct]],tblDeprExpJune19[[#This Row],[Secondary  Name]],tblDeprExpJune19[[#This Row],[Alloc4Func]])","v":"4030000DEPN EXPENSE-ELECT3910000OFFICE FURNITURECN"},"4030000","DEPN EXPENSE-ELECT","3910000","OFFICE FURNITURE","CN",53.29663,{"$f":"IF(OR(tblDeprExpJune19[[#This Row],[Alloc]]=\"IDU\",tblDeprExpJune19[[#This Row],[Alloc]]=\"OR\",tblDeprExpJune19[[#This Row],[Alloc]]=\"UT\",tblDeprExpJune19[[#This Row],[Alloc]]=\"WYU\",tblDeprExpJune19[[#This Row],[Alloc]]=\"WYP\",tblDeprExpJune19[[#This Row],[Alloc]]=\"CA\",tblDeprExpJune19[[#This Row],[Alloc]]=\"WA\"),\"SITUS\",tblDeprExpJune19[[#This Row],[Alloc]])","v":"CN"},{"$f":"INDEX(tblDeprExpLookup[FUNC],MATCH(tblDeprExpJune19[[#This Row],[Concat]],tblDeprExpLookup[Concat],0))","v":"CUST"},{"$f":"IF(tblDeprExpJune19[[#This Row],[Total ($000)]]=0,\"NO\",IF(ISNA(tblDeprExpJune19[[#This Row],[FUNC]]),\"YES\",IF(_xlfn.ISFORMULA(tblDeprExpJune19[[#This Row],[FUNC]]),\"NO\",\"YES\")))","v":"NO"}]
[{"$f":"CONCATENATE(tblDeprExpJune19[[#This Row],[Primary Account]],tblDeprExpJune19[[#This Row],[Primary Name]],tblDeprExpJune19[[#This Row],[Secondary Acct]],tblDeprExpJune19[[#This Row],[Secondary  Name]],tblDeprExpJune19[[#This Row],[Alloc4Func]])","v":"4030000DEPN EXPENSE-ELECT3910000OFFICE FURNITURESITUS"},"4030000","DEPN EXPENSE-ELECT","3910000","OFFICE FURNITURE","IDU",3.6108899999999999,{"$f":"IF(OR(tblDeprExpJune19[[#This Row],[Alloc]]=\"IDU\",tblDeprExpJune19[[#This Row],[Alloc]]=\"OR\",tblDeprExpJune19[[#This Row],[Alloc]]=\"UT\",tblDeprExpJune19[[#This Row],[Alloc]]=\"WYU\",tblDeprExpJune19[[#This Row],[Alloc]]=\"WYP\",tblDeprExpJune19[[#This Row],[Alloc]]=\"CA\",tblDeprExpJune19[[#This Row],[Alloc]]=\"WA\"),\"SITUS\",tblDeprExpJune19[[#This Row],[Alloc]])","v":"SITUS"},{"$f":"INDEX(tblDeprExpLookup[FUNC],MATCH(tblDeprExpJune19[[#This Row],[Concat]],tblDeprExpLookup[Concat],0))","v":"G-SITUS"},{"$f":"IF(tblDeprExpJune19[[#This Row],[Total ($000)]]=0,\"NO\",IF(ISNA(tblDeprExpJune19[[#This Row],[FUNC]]),\"YES\",IF(_xlfn.ISFORMULA(tblDeprExpJune19[[#This Row],[FUNC]]),\"NO\",\"YES\")))","v":"NO"}]
[{"$f":"CONCATENATE(tblDeprExpJune19[[#This Row],[Primary Account]],tblDeprExpJune19[[#This Row],[Primary Name]],tblDeprExpJune19[[#This Row],[Secondary Acct]],tblDeprExpJune19[[#This Row],[Secondary  Name]],tblDeprExpJune19[[#This Row],[Alloc4Func]])","v":"4030000DEPN EXPENSE-ELECT3910000OFFICE FURNITURESITUS"},"4030000","DEPN EXPENSE-ELECT","3910000","OFFICE FURNITURE","OR",75.311539999999994,{"$f":"IF(OR(tblDeprExpJune19[[#This Row],[Alloc]]=\"IDU\",tblDeprExpJune19[[#This Row],[Alloc]]=\"OR\",tblDeprExpJune19[[#This Row],[Alloc]]=\"UT\",tblDeprExpJune19[[#This Row],[Alloc]]=\"WYU\",tblDeprExpJune19[[#This Row],[Alloc]]=\"WYP\",tblDeprExpJune19[[#This Row],[Alloc]]=\"CA\",tblDeprExpJune19[[#This Row],[Alloc]]=\"WA\"),\"SITUS\",tblDeprExpJune19[[#This Row],[Alloc]])","v":"SITUS"},{"$f":"INDEX(tblDeprExpLookup[FUNC],MATCH(tblDeprExpJune19[[#This Row],[Concat]],tblDeprExpLookup[Concat],0))","v":"G-SITUS"},{"$f":"IF(tblDeprExpJune19[[#This Row],[Total ($000)]]=0,\"NO\",IF(ISNA(tblDeprExpJune19[[#This Row],[FUNC]]),\"YES\",IF(_xlfn.ISFORMULA(tblDeprExpJune19[[#This Row],[FUNC]]),\"NO\",\"YES\")))","v":"NO"}]
[{"$f":"CONCATENATE(tblDeprExpJune19[[#This Row],[Primary Account]],tblDeprExpJune19[[#This Row],[Primary Name]],tblDeprExpJune19[[#This Row],[Secondary Acct]],tblDeprExpJune19[[#This Row],[Secondary  Name]],tblDeprExpJune19[[#This Row],[Alloc4Func]])","v":"4030000DEPN EXPENSE-ELECT3910000OFFICE FURNITURESE"},"4030000","DEPN EXPENSE-ELECT","3910000","OFFICE FURNITURE","SE",0.19109000000000001,{"$f":"IF(OR(tblDeprExpJune19[[#This Row],[Alloc]]=\"IDU\",tblDeprExpJune19[[#This Row],[Alloc]]=\"OR\",tblDeprExpJune19[[#This Row],[Alloc]]=\"UT\",tblDeprExpJune19[[#This Row],[Alloc]]=\"WYU\",tblDeprExpJune19[[#This Row],[Alloc]]=\"WYP\",tblDeprExpJune19[[#This Row],[Alloc]]=\"CA\",tblDeprExpJune19[[#This Row],[Alloc]]=\"WA\"),\"SITUS\",tblDeprExpJune19[[#This Row],[Alloc]])","v":"SE"},{"$f":"INDEX(tblDeprExpLookup[FUNC],MATCH(tblDeprExpJune19[[#This Row],[Concat]],tblDeprExpLookup[Concat],0))","v":"P"},{"$f":"IF(tblDeprExpJune19[[#This Row],[Total ($000)]]=0,\"NO\",IF(ISNA(tblDeprExpJune19[[#This Row],[FUNC]]),\"YES\",IF(_xlfn.ISFORMULA(tblDeprExpJune19[[#This Row],[FUNC]]),\"NO\",\"YES\")))","v":"NO"}]
[{"$f":"CONCATENATE(tblDeprExpJune19[[#This Row],[Primary Account]],tblDeprExpJune19[[#This Row],[Primary Name]],tblDeprExpJune19[[#This Row],[Secondary Acct]],tblDeprExpJune19[[#This Row],[Secondary  Name]],tblDeprExpJune19[[#This Row],[Alloc4Func]])","v":"4030000DEPN EXPENSE-ELECT3910000OFFICE FURNITURESG"},"4030000","DEPN EXPENSE-ELECT","3910000","OFFICE FURNITURE","SG",69.888310000000004,{"$f":"IF(OR(tblDeprExpJune19[[#This Row],[Alloc]]=\"IDU\",tblDeprExpJune19[[#This Row],[Alloc]]=\"OR\",tblDeprExpJune19[[#This Row],[Alloc]]=\"UT\",tblDeprExpJune19[[#This Row],[Alloc]]=\"WYU\",tblDeprExpJune19[[#This Row],[Alloc]]=\"WYP\",tblDeprExpJune19[[#This Row],[Alloc]]=\"CA\",tblDeprExpJune19[[#This Row],[Alloc]]=\"WA\"),\"SITUS\",tblDeprExpJune19[[#This Row],[Alloc]])","v":"SG"},{"$f":"INDEX(tblDeprExpLookup[FUNC],MATCH(tblDeprExpJune19[[#This Row],[Concat]],tblDeprExpLookup[Concat],0))","v":"G-SG"},{"$f":"IF(tblDeprExpJune19[[#This Row],[Total ($000)]]=0,\"NO\",IF(ISNA(tblDeprExpJune19[[#This Row],[FUNC]]),\"YES\",IF(_xlfn.ISFORMULA(tblDeprExpJune19[[#This Row],[FUNC]]),\"NO\",\"YES\")))","v":"NO"}]
[{"$f":"CONCATENATE(tblDeprExpJune19[[#This Row],[Primary Account]],tblDeprExpJune19[[#This Row],[Primary Name]],tblDeprExpJune19[[#This Row],[Secondary Acct]],tblDeprExpJune19[[#This Row],[Secondary  Name]],tblDeprExpJune19[[#This Row],[Alloc4Func]])","v":"4030000DEPN EXPENSE-ELECT3910000OFFICE FURNITURESO"},"4030000","DEPN EXPENSE-ELECT","3910000","OFFICE FURNITURE","SO",596.54333999999994,{"$f":"IF(OR(tblDeprExpJune19[[#This Row],[Alloc]]=\"IDU\",tblDeprExpJune19[[#This Row],[Alloc]]=\"OR\",tblDeprExpJune19[[#This Row],[Alloc]]=\"UT\",tblDeprExpJune19[[#This Row],[Alloc]]=\"WYU\",tblDeprExpJune19[[#This Row],[Alloc]]=\"WYP\",tblDeprExpJune19[[#This Row],[Alloc]]=\"CA\",tblDeprExpJune19[[#This Row],[Alloc]]=\"WA\"),\"SITUS\",tblDeprExpJune19[[#This Row],[Alloc]])","v":"SO"},{"$f":"INDEX(tblDeprExpLookup[FUNC],MATCH(tblDeprExpJune19[[#This Row],[Concat]],tblDeprExpLookup[Concat],0))","v":"PTD"},{"$f":"IF(tblDeprExpJune19[[#This Row],[Total ($000)]]=0,\"NO\",IF(ISNA(tblDeprExpJune19[[#This Row],[FUNC]]),\"YES\",IF(_xlfn.ISFORMULA(tblDeprExpJune19[[#This Row],[FUNC]]),\"NO\",\"YES\")))","v":"NO"}]
[{"$f":"CONCATENATE(tblDeprExpJune19[[#This Row],[Primary Account]],tblDeprExpJune19[[#This Row],[Primary Name]],tblDeprExpJune19[[#This Row],[Secondary Acct]],tblDeprExpJune19[[#This Row],[Secondary  Name]],tblDeprExpJune19[[#This Row],[Alloc4Func]])","v":"4030000DEPN EXPENSE-ELECT3910000OFFICE FURNITURESITUS"},"4030000","DEPN EXPENSE-ELECT","3910000","OFFICE FURNITURE","UT",33.737780000000001,{"$f":"IF(OR(tblDeprExpJune19[[#This Row],[Alloc]]=\"IDU\",tblDeprExpJune19[[#This Row],[Alloc]]=\"OR\",tblDeprExpJune19[[#This Row],[Alloc]]=\"UT\",tblDeprExpJune19[[#This Row],[Alloc]]=\"WYU\",tblDeprExpJune19[[#This Row],[Alloc]]=\"WYP\",tblDeprExpJune19[[#This Row],[Alloc]]=\"CA\",tblDeprExpJune19[[#This Row],[Alloc]]=\"WA\"),\"SITUS\",tblDeprExpJune19[[#This Row],[Alloc]])","v":"SITUS"},{"$f":"INDEX(tblDeprExpLookup[FUNC],MATCH(tblDeprExpJune19[[#This Row],[Concat]],tblDeprExpLookup[Concat],0))","v":"G-SITUS"},{"$f":"IF(tblDeprExpJune19[[#This Row],[Total ($000)]]=0,\"NO\",IF(ISNA(tblDeprExpJune19[[#This Row],[FUNC]]),\"YES\",IF(_xlfn.ISFORMULA(tblDeprExpJune19[[#This Row],[FUNC]]),\"NO\",\"YES\")))","v":"NO"}]
[{"$f":"CONCATENATE(tblDeprExpJune19[[#This Row],[Primary Account]],tblDeprExpJune19[[#This Row],[Primary Name]],tblDeprExpJune19[[#This Row],[Secondary Acct]],tblDeprExpJune19[[#This Row],[Secondary  Name]],tblDeprExpJune19[[#This Row],[Alloc4Func]])","v":"4030000DEPN EXPENSE-ELECT3910000OFFICE FURNITURESITUS"},"4030000","DEPN EXPENSE-ELECT","3910000","OFFICE FURNITURE","WA",3.1331099999999998,{"$f":"IF(OR(tblDeprExpJune19[[#This Row],[Alloc]]=\"IDU\",tblDeprExpJune19[[#This Row],[Alloc]]=\"OR\",tblDeprExpJune19[[#This Row],[Alloc]]=\"UT\",tblDeprExpJune19[[#This Row],[Alloc]]=\"WYU\",tblDeprExpJune19[[#This Row],[Alloc]]=\"WYP\",tblDeprExpJune19[[#This Row],[Alloc]]=\"CA\",tblDeprExpJune19[[#This Row],[Alloc]]=\"WA\"),\"SITUS\",tblDeprExpJune19[[#This Row],[Alloc]])","v":"SITUS"},{"$f":"INDEX(tblDeprExpLookup[FUNC],MATCH(tblDeprExpJune19[[#This Row],[Concat]],tblDeprExpLookup[Concat],0))","v":"G-SITUS"},{"$f":"IF(tblDeprExpJune19[[#This Row],[Total ($000)]]=0,\"NO\",IF(ISNA(tblDeprExpJune19[[#This Row],[FUNC]]),\"YES\",IF(_xlfn.ISFORMULA(tblDeprExpJune19[[#This Row],[FUNC]]),\"NO\",\"YES\")))","v":"NO"}]
[{"$f":"CONCATENATE(tblDeprExpJune19[[#This Row],[Primary Account]],tblDeprExpJune19[[#This Row],[Primary Name]],tblDeprExpJune19[[#This Row],[Secondary Acct]],tblDeprExpJune19[[#This Row],[Secondary  Name]],tblDeprExpJune19[[#This Row],[Alloc4Func]])","v":"4030000DEPN EXPENSE-ELECT3910000OFFICE FURNITURESITUS"},"4030000","DEPN EXPENSE-ELECT","3910000","OFFICE FURNITURE","WYP",26.43169,{"$f":"IF(OR(tblDeprExpJune19[[#This Row],[Alloc]]=\"IDU\",tblDeprExpJune19[[#This Row],[Alloc]]=\"OR\",tblDeprExpJune19[[#This Row],[Alloc]]=\"UT\",tblDeprExpJune19[[#This Row],[Alloc]]=\"WYU\",tblDeprExpJune19[[#This Row],[Alloc]]=\"WYP\",tblDeprExpJune19[[#This Row],[Alloc]]=\"CA\",tblDeprExpJune19[[#This Row],[Alloc]]=\"WA\"),\"SITUS\",tblDeprExpJune19[[#This Row],[Alloc]])","v":"SITUS"},{"$f":"INDEX(tblDeprExpLookup[FUNC],MATCH(tblDeprExpJune19[[#This Row],[Concat]],tblDeprExpLookup[Concat],0))","v":"G-SITUS"},{"$f":"IF(tblDeprExpJune19[[#This Row],[Total ($000)]]=0,\"NO\",IF(ISNA(tblDeprExpJune19[[#This Row],[FUNC]]),\"YES\",IF(_xlfn.ISFORMULA(tblDeprExpJune19[[#This Row],[FUNC]]),\"NO\",\"YES\")))","v":"NO"}]
[{"$f":"CONCATENATE(tblDeprExpJune19[[#This Row],[Primary Account]],tblDeprExpJune19[[#This Row],[Primary Name]],tblDeprExpJune19[[#This Row],[Secondary Acct]],tblDeprExpJune19[[#This Row],[Secondary  Name]],tblDeprExpJune19[[#This Row],[Alloc4Func]])","v":"4030000DEPN EXPENSE-ELECT3910000OFFICE FURNITURESITUS"},"4030000","DEPN EXPENSE-ELECT","3910000","OFFICE FURNITURE","WYU",1.29941,{"$f":"IF(OR(tblDeprExpJune19[[#This Row],[Alloc]]=\"IDU\",tblDeprExpJune19[[#This Row],[Alloc]]=\"OR\",tblDeprExpJune19[[#This Row],[Alloc]]=\"UT\",tblDeprExpJune19[[#This Row],[Alloc]]=\"WYU\",tblDeprExpJune19[[#This Row],[Alloc]]=\"WYP\",tblDeprExpJune19[[#This Row],[Alloc]]=\"CA\",tblDeprExpJune19[[#This Row],[Alloc]]=\"WA\"),\"SITUS\",tblDeprExpJune19[[#This Row],[Alloc]])","v":"SITUS"},{"$f":"INDEX(tblDeprExpLookup[FUNC],MATCH(tblDeprExpJune19[[#This Row],[Concat]],tblDeprExpLookup[Concat],0))","v":"G-SITUS"},{"$f":"IF(tblDeprExpJune19[[#This Row],[Total ($000)]]=0,\"NO\",IF(ISNA(tblDeprExpJune19[[#This Row],[FUNC]]),\"YES\",IF(_xlfn.ISFORMULA(tblDeprExpJune19[[#This Row],[FUNC]]),\"NO\",\"YES\")))","v":"NO"}]
[{"$f":"CONCATENATE(tblDeprExpJune19[[#This Row],[Primary Account]],tblDeprExpJune19[[#This Row],[Primary Name]],tblDeprExpJune19[[#This Row],[Secondary Acct]],tblDeprExpJune19[[#This Row],[Secondary  Name]],tblDeprExpJune19[[#This Row],[Alloc4Func]])","v":"4030000DEPN EXPENSE-ELECT3912000COMPUTER EQUIPMENT - PERSONAL COMPUTERSSITUS"},"4030000","DEPN EXPENSE-ELECT","3912000","COMPUTER EQUIPMENT - PERSONAL COMPUTERS","CA",10.58996,{"$f":"IF(OR(tblDeprExpJune19[[#This Row],[Alloc]]=\"IDU\",tblDeprExpJune19[[#This Row],[Alloc]]=\"OR\",tblDeprExpJune19[[#This Row],[Alloc]]=\"UT\",tblDeprExpJune19[[#This Row],[Alloc]]=\"WYU\",tblDeprExpJune19[[#This Row],[Alloc]]=\"WYP\",tblDeprExpJune19[[#This Row],[Alloc]]=\"CA\",tblDeprExpJune19[[#This Row],[Alloc]]=\"WA\"),\"SITUS\",tblDeprExpJune19[[#This Row],[Alloc]])","v":"SITUS"},{"$f":"INDEX(tblDeprExpLookup[FUNC],MATCH(tblDeprExpJune19[[#This Row],[Concat]],tblDeprExpLookup[Concat],0))","v":"G-SITUS"},{"$f":"IF(tblDeprExpJune19[[#This Row],[Total ($000)]]=0,\"NO\",IF(ISNA(tblDeprExpJune19[[#This Row],[FUNC]]),\"YES\",IF(_xlfn.ISFORMULA(tblDeprExpJune19[[#This Row],[FUNC]]),\"NO\",\"YES\")))","v":"NO"}]
[{"$f":"CONCATENATE(tblDeprExpJune19[[#This Row],[Primary Account]],tblDeprExpJune19[[#This Row],[Primary Name]],tblDeprExpJune19[[#This Row],[Secondary Acct]],tblDeprExpJune19[[#This Row],[Secondary  Name]],tblDeprExpJune19[[#This Row],[Alloc4Func]])","v":"4030000DEPN EXPENSE-ELECT3912000COMPUTER EQUIPMENT - PERSONAL COMPUTERSCN"},"4030000","DEPN EXPENSE-ELECT","3912000","COMPUTER EQUIPMENT - PERSONAL COMPUTERS","CN",692.41407000000004,{"$f":"IF(OR(tblDeprExpJune19[[#This Row],[Alloc]]=\"IDU\",tblDeprExpJune19[[#This Row],[Alloc]]=\"OR\",tblDeprExpJune19[[#This Row],[Alloc]]=\"UT\",tblDeprExpJune19[[#This Row],[Alloc]]=\"WYU\",tblDeprExpJune19[[#This Row],[Alloc]]=\"WYP\",tblDeprExpJune19[[#This Row],[Alloc]]=\"CA\",tblDeprExpJune19[[#This Row],[Alloc]]=\"WA\"),\"SITUS\",tblDeprExpJune19[[#This Row],[Alloc]])","v":"CN"},{"$f":"INDEX(tblDeprExpLookup[FUNC],MATCH(tblDeprExpJune19[[#This Row],[Concat]],tblDeprExpLookup[Concat],0))","v":"CUST"},{"$f":"IF(tblDeprExpJune19[[#This Row],[Total ($000)]]=0,\"NO\",IF(ISNA(tblDeprExpJune19[[#This Row],[FUNC]]),\"YES\",IF(_xlfn.ISFORMULA(tblDeprExpJune19[[#This Row],[FUNC]]),\"NO\",\"YES\")))","v":"NO"}]
[{"$f":"CONCATENATE(tblDeprExpJune19[[#This Row],[Primary Account]],tblDeprExpJune19[[#This Row],[Primary Name]],tblDeprExpJune19[[#This Row],[Secondary Acct]],tblDeprExpJune19[[#This Row],[Secondary  Name]],tblDeprExpJune19[[#This Row],[Alloc4Func]])","v":"4030000DEPN EXPENSE-ELECT3912000COMPUTER EQUIPMENT - PERSONAL COMPUTERSSITUS"},"4030000","DEPN EXPENSE-ELECT","3912000","COMPUTER EQUIPMENT - PERSONAL COMPUTERS","IDU",59.065269999999998,{"$f":"IF(OR(tblDeprExpJune19[[#This Row],[Alloc]]=\"IDU\",tblDeprExpJune19[[#This Row],[Alloc]]=\"OR\",tblDeprExpJune19[[#This Row],[Alloc]]=\"UT\",tblDeprExpJune19[[#This Row],[Alloc]]=\"WYU\",tblDeprExpJune19[[#This Row],[Alloc]]=\"WYP\",tblDeprExpJune19[[#This Row],[Alloc]]=\"CA\",tblDeprExpJune19[[#This Row],[Alloc]]=\"WA\"),\"SITUS\",tblDeprExpJune19[[#This Row],[Alloc]])","v":"SITUS"},{"$f":"INDEX(tblDeprExpLookup[FUNC],MATCH(tblDeprExpJune19[[#This Row],[Concat]],tblDeprExpLookup[Concat],0))","v":"G-SITUS"},{"$f":"IF(tblDeprExpJune19[[#This Row],[Total ($000)]]=0,\"NO\",IF(ISNA(tblDeprExpJune19[[#This Row],[FUNC]]),\"YES\",IF(_xlfn.ISFORMULA(tblDeprExpJune19[[#This Row],[FUNC]]),\"NO\",\"YES\")))","v":"NO"}]
[{"$f":"CONCATENATE(tblDeprExpJune19[[#This Row],[Primary Account]],tblDeprExpJune19[[#This Row],[Primary Name]],tblDeprExpJune19[[#This Row],[Secondary Acct]],tblDeprExpJune19[[#This Row],[Secondary  Name]],tblDeprExpJune19[[#This Row],[Alloc4Func]])","v":"4030000DEPN EXPENSE-ELECT3912000COMPUTER EQUIPMENT - PERSONAL COMPUTERSSITUS"},"4030000","DEPN EXPENSE-ELECT","3912000","COMPUTER EQUIPMENT - PERSONAL COMPUTERS","OR",142.62985,{"$f":"IF(OR(tblDeprExpJune19[[#This Row],[Alloc]]=\"IDU\",tblDeprExpJune19[[#This Row],[Alloc]]=\"OR\",tblDeprExpJune19[[#This Row],[Alloc]]=\"UT\",tblDeprExpJune19[[#This Row],[Alloc]]=\"WYU\",tblDeprExpJune19[[#This Row],[Alloc]]=\"WYP\",tblDeprExpJune19[[#This Row],[Alloc]]=\"CA\",tblDeprExpJune19[[#This Row],[Alloc]]=\"WA\"),\"SITUS\",tblDeprExpJune19[[#This Row],[Alloc]])","v":"SITUS"},{"$f":"INDEX(tblDeprExpLookup[FUNC],MATCH(tblDeprExpJune19[[#This Row],[Concat]],tblDeprExpLookup[Concat],0))","v":"G-SITUS"},{"$f":"IF(tblDeprExpJune19[[#This Row],[Total ($000)]]=0,\"NO\",IF(ISNA(tblDeprExpJune19[[#This Row],[FUNC]]),\"YES\",IF(_xlfn.ISFORMULA(tblDeprExpJune19[[#This Row],[FUNC]]),\"NO\",\"YES\")))","v":"NO"}]
[{"$f":"CONCATENATE(tblDeprExpJune19[[#This Row],[Primary Account]],tblDeprExpJune19[[#This Row],[Primary Name]],tblDeprExpJune19[[#This Row],[Secondary Acct]],tblDeprExpJune19[[#This Row],[Secondary  Name]],tblDeprExpJune19[[#This Row],[Alloc4Func]])","v":"4030000DEPN EXPENSE-ELECT3912000COMPUTER EQUIPMENT - PERSONAL COMPUTERSSE"},"4030000","DEPN EXPENSE-ELECT","3912000","COMPUTER EQUIPMENT - PERSONAL COMPUTERS","SE",1.12859,{"$f":"IF(OR(tblDeprExpJune19[[#This Row],[Alloc]]=\"IDU\",tblDeprExpJune19[[#This Row],[Alloc]]=\"OR\",tblDeprExpJune19[[#This Row],[Alloc]]=\"UT\",tblDeprExpJune19[[#This Row],[Alloc]]=\"WYU\",tblDeprExpJune19[[#This Row],[Alloc]]=\"WYP\",tblDeprExpJune19[[#This Row],[Alloc]]=\"CA\",tblDeprExpJune19[[#This Row],[Alloc]]=\"WA\"),\"SITUS\",tblDeprExpJune19[[#This Row],[Alloc]])","v":"SE"},{"$f":"INDEX(tblDeprExpLookup[FUNC],MATCH(tblDeprExpJune19[[#This Row],[Concat]],tblDeprExpLookup[Concat],0))","v":"P"},{"$f":"IF(tblDeprExpJune19[[#This Row],[Total ($000)]]=0,\"NO\",IF(ISNA(tblDeprExpJune19[[#This Row],[FUNC]]),\"YES\",IF(_xlfn.ISFORMULA(tblDeprExpJune19[[#This Row],[FUNC]]),\"NO\",\"YES\")))","v":"NO"}]
[{"$f":"CONCATENATE(tblDeprExpJune19[[#This Row],[Primary Account]],tblDeprExpJune19[[#This Row],[Primary Name]],tblDeprExpJune19[[#This Row],[Secondary Acct]],tblDeprExpJune19[[#This Row],[Secondary  Name]],tblDeprExpJune19[[#This Row],[Alloc4Func]])","v":"4030000DEPN EXPENSE-ELECT3912000COMPUTER EQUIPMENT - PERSONAL COMPUTERSSG"},"4030000","DEPN EXPENSE-ELECT","3912000","COMPUTER EQUIPMENT - PERSONAL COMPUTERS","SG",292.41563000000002,{"$f":"IF(OR(tblDeprExpJune19[[#This Row],[Alloc]]=\"IDU\",tblDeprExpJune19[[#This Row],[Alloc]]=\"OR\",tblDeprExpJune19[[#This Row],[Alloc]]=\"UT\",tblDeprExpJune19[[#This Row],[Alloc]]=\"WYU\",tblDeprExpJune19[[#This Row],[Alloc]]=\"WYP\",tblDeprExpJune19[[#This Row],[Alloc]]=\"CA\",tblDeprExpJune19[[#This Row],[Alloc]]=\"WA\"),\"SITUS\",tblDeprExpJune19[[#This Row],[Alloc]])","v":"SG"},{"$f":"INDEX(tblDeprExpLookup[FUNC],MATCH(tblDeprExpJune19[[#This Row],[Concat]],tblDeprExpLookup[Concat],0))","v":"G-DGU"},{"$f":"IF(tblDeprExpJune19[[#This Row],[Total ($000)]]=0,\"NO\",IF(ISNA(tblDeprExpJune19[[#This Row],[FUNC]]),\"YES\",IF(_xlfn.ISFORMULA(tblDeprExpJune19[[#This Row],[FUNC]]),\"NO\",\"YES\")))","v":"NO"}]
[{"$f":"CONCATENATE(tblDeprExpJune19[[#This Row],[Primary Account]],tblDeprExpJune19[[#This Row],[Primary Name]],tblDeprExpJune19[[#This Row],[Secondary Acct]],tblDeprExpJune19[[#This Row],[Secondary  Name]],tblDeprExpJune19[[#This Row],[Alloc4Func]])","v":"4030000DEPN EXPENSE-ELECT3912000COMPUTER EQUIPMENT - PERSONAL COMPUTERSSO"},"4030000","DEPN EXPENSE-ELECT","3912000","COMPUTER EQUIPMENT - PERSONAL COMPUTERS","SO",8953.13789,{"$f":"IF(OR(tblDeprExpJune19[[#This Row],[Alloc]]=\"IDU\",tblDeprExpJune19[[#This Row],[Alloc]]=\"OR\",tblDeprExpJune19[[#This Row],[Alloc]]=\"UT\",tblDeprExpJune19[[#This Row],[Alloc]]=\"WYU\",tblDeprExpJune19[[#This Row],[Alloc]]=\"WYP\",tblDeprExpJune19[[#This Row],[Alloc]]=\"CA\",tblDeprExpJune19[[#This Row],[Alloc]]=\"WA\"),\"SITUS\",tblDeprExpJune19[[#This Row],[Alloc]])","v":"SO"},{"$f":"INDEX(tblDeprExpLookup[FUNC],MATCH(tblDeprExpJune19[[#This Row],[Concat]],tblDeprExpLookup[Concat],0))","v":"PTD"},{"$f":"IF(tblDeprExpJune19[[#This Row],[Total ($000)]]=0,\"NO\",IF(ISNA(tblDeprExpJune19[[#This Row],[FUNC]]),\"YES\",IF(_xlfn.ISFORMULA(tblDeprExpJune19[[#This Row],[FUNC]]),\"NO\",\"YES\")))","v":"NO"}]
[{"$f":"CONCATENATE(tblDeprExpJune19[[#This Row],[Primary Account]],tblDeprExpJune19[[#This Row],[Primary Name]],tblDeprExpJune19[[#This Row],[Secondary Acct]],tblDeprExpJune19[[#This Row],[Secondary  Name]],tblDeprExpJune19[[#This Row],[Alloc4Func]])","v":"4030000DEPN EXPENSE-ELECT3912000COMPUTER EQUIPMENT - PERSONAL COMPUTERSSITUS"},"4030000","DEPN EXPENSE-ELECT","3912000","COMPUTER EQUIPMENT - PERSONAL COMPUTERS","UT",112.61286,{"$f":"IF(OR(tblDeprExpJune19[[#This Row],[Alloc]]=\"IDU\",tblDeprExpJune19[[#This Row],[Alloc]]=\"OR\",tblDeprExpJune19[[#This Row],[Alloc]]=\"UT\",tblDeprExpJune19[[#This Row],[Alloc]]=\"WYU\",tblDeprExpJune19[[#This Row],[Alloc]]=\"WYP\",tblDeprExpJune19[[#This Row],[Alloc]]=\"CA\",tblDeprExpJune19[[#This Row],[Alloc]]=\"WA\"),\"SITUS\",tblDeprExpJune19[[#This Row],[Alloc]])","v":"SITUS"},{"$f":"INDEX(tblDeprExpLookup[FUNC],MATCH(tblDeprExpJune19[[#This Row],[Concat]],tblDeprExpLookup[Concat],0))","v":"G-SITUS"},{"$f":"IF(tblDeprExpJune19[[#This Row],[Total ($000)]]=0,\"NO\",IF(ISNA(tblDeprExpJune19[[#This Row],[FUNC]]),\"YES\",IF(_xlfn.ISFORMULA(tblDeprExpJune19[[#This Row],[FUNC]]),\"NO\",\"YES\")))","v":"NO"}]
[{"$f":"CONCATENATE(tblDeprExpJune19[[#This Row],[Primary Account]],tblDeprExpJune19[[#This Row],[Primary Name]],tblDeprExpJune19[[#This Row],[Secondary Acct]],tblDeprExpJune19[[#This Row],[Secondary  Name]],tblDeprExpJune19[[#This Row],[Alloc4Func]])","v":"4030000DEPN EXPENSE-ELECT3912000COMPUTER EQUIPMENT - PERSONAL COMPUTERSSITUS"},"4030000","DEPN EXPENSE-ELECT","3912000","COMPUTER EQUIPMENT - PERSONAL COMPUTERS","WA",53.026400000000002,{"$f":"IF(OR(tblDeprExpJune19[[#This Row],[Alloc]]=\"IDU\",tblDeprExpJune19[[#This Row],[Alloc]]=\"OR\",tblDeprExpJune19[[#This Row],[Alloc]]=\"UT\",tblDeprExpJune19[[#This Row],[Alloc]]=\"WYU\",tblDeprExpJune19[[#This Row],[Alloc]]=\"WYP\",tblDeprExpJune19[[#This Row],[Alloc]]=\"CA\",tblDeprExpJune19[[#This Row],[Alloc]]=\"WA\"),\"SITUS\",tblDeprExpJune19[[#This Row],[Alloc]])","v":"SITUS"},{"$f":"INDEX(tblDeprExpLookup[FUNC],MATCH(tblDeprExpJune19[[#This Row],[Concat]],tblDeprExpLookup[Concat],0))","v":"G-SITUS"},{"$f":"IF(tblDeprExpJune19[[#This Row],[Total ($000)]]=0,\"NO\",IF(ISNA(tblDeprExpJune19[[#This Row],[FUNC]]),\"YES\",IF(_xlfn.ISFORMULA(tblDeprExpJune19[[#This Row],[FUNC]]),\"NO\",\"YES\")))","v":"NO"}]
[{"$f":"CONCATENATE(tblDeprExpJune19[[#This Row],[Primary Account]],tblDeprExpJune19[[#This Row],[Primary Name]],tblDeprExpJune19[[#This Row],[Secondary Acct]],tblDeprExpJune19[[#This Row],[Secondary  Name]],tblDeprExpJune19[[#This Row],[Alloc4Func]])","v":"4030000DEPN EXPENSE-ELECT3912000COMPUTER EQUIPMENT - PERSONAL COMPUTERSSITUS"},"4030000","DEPN EXPENSE-ELECT","3912000","COMPUTER EQUIPMENT - PERSONAL COMPUTERS","WYP",349.63529999999997,{"$f":"IF(OR(tblDeprExpJune19[[#This Row],[Alloc]]=\"IDU\",tblDeprExpJune19[[#This Row],[Alloc]]=\"OR\",tblDeprExpJune19[[#This Row],[Alloc]]=\"UT\",tblDeprExpJune19[[#This Row],[Alloc]]=\"WYU\",tblDeprExpJune19[[#This Row],[Alloc]]=\"WYP\",tblDeprExpJune19[[#This Row],[Alloc]]=\"CA\",tblDeprExpJune19[[#This Row],[Alloc]]=\"WA\"),\"SITUS\",tblDeprExpJune19[[#This Row],[Alloc]])","v":"SITUS"},{"$f":"INDEX(tblDeprExpLookup[FUNC],MATCH(tblDeprExpJune19[[#This Row],[Concat]],tblDeprExpLookup[Concat],0))","v":"G-SITUS"},{"$f":"IF(tblDeprExpJune19[[#This Row],[Total ($000)]]=0,\"NO\",IF(ISNA(tblDeprExpJune19[[#This Row],[FUNC]]),\"YES\",IF(_xlfn.ISFORMULA(tblDeprExpJune19[[#This Row],[FUNC]]),\"NO\",\"YES\")))","v":"NO"}]
[{"$f":"CONCATENATE(tblDeprExpJune19[[#This Row],[Primary Account]],tblDeprExpJune19[[#This Row],[Primary Name]],tblDeprExpJune19[[#This Row],[Secondary Acct]],tblDeprExpJune19[[#This Row],[Secondary  Name]],tblDeprExpJune19[[#This Row],[Alloc4Func]])","v":"4030000DEPN EXPENSE-ELECT3912000COMPUTER EQUIPMENT - PERSONAL COMPUTERSSITUS"},"4030000","DEPN EXPENSE-ELECT","3912000","COMPUTER EQUIPMENT - PERSONAL COMPUTERS","WYU",6.7537200000000004,{"$f":"IF(OR(tblDeprExpJune19[[#This Row],[Alloc]]=\"IDU\",tblDeprExpJune19[[#This Row],[Alloc]]=\"OR\",tblDeprExpJune19[[#This Row],[Alloc]]=\"UT\",tblDeprExpJune19[[#This Row],[Alloc]]=\"WYU\",tblDeprExpJune19[[#This Row],[Alloc]]=\"WYP\",tblDeprExpJune19[[#This Row],[Alloc]]=\"CA\",tblDeprExpJune19[[#This Row],[Alloc]]=\"WA\"),\"SITUS\",tblDeprExpJune19[[#This Row],[Alloc]])","v":"SITUS"},{"$f":"INDEX(tblDeprExpLookup[FUNC],MATCH(tblDeprExpJune19[[#This Row],[Concat]],tblDeprExpLookup[Concat],0))","v":"G-SITUS"},{"$f":"IF(tblDeprExpJune19[[#This Row],[Total ($000)]]=0,\"NO\",IF(ISNA(tblDeprExpJune19[[#This Row],[FUNC]]),\"YES\",IF(_xlfn.ISFORMULA(tblDeprExpJune19[[#This Row],[FUNC]]),\"NO\",\"YES\")))","v":"NO"}]
[{"$f":"CONCATENATE(tblDeprExpJune19[[#This Row],[Primary Account]],tblDeprExpJune19[[#This Row],[Primary Name]],tblDeprExpJune19[[#This Row],[Secondary Acct]],tblDeprExpJune19[[#This Row],[Secondary  Name]],tblDeprExpJune19[[#This Row],[Alloc4Func]])","v":"4030000DEPN EXPENSE-ELECT3913000OFFICE EQUIPMENTCN"},"4030000","DEPN EXPENSE-ELECT","3913000","OFFICE EQUIPMENT","CN",0.16556999999999999,{"$f":"IF(OR(tblDeprExpJune19[[#This Row],[Alloc]]=\"IDU\",tblDeprExpJune19[[#This Row],[Alloc]]=\"OR\",tblDeprExpJune19[[#This Row],[Alloc]]=\"UT\",tblDeprExpJune19[[#This Row],[Alloc]]=\"WYU\",tblDeprExpJune19[[#This Row],[Alloc]]=\"WYP\",tblDeprExpJune19[[#This Row],[Alloc]]=\"CA\",tblDeprExpJune19[[#This Row],[Alloc]]=\"WA\"),\"SITUS\",tblDeprExpJune19[[#This Row],[Alloc]])","v":"CN"},{"$f":"INDEX(tblDeprExpLookup[FUNC],MATCH(tblDeprExpJune19[[#This Row],[Concat]],tblDeprExpLookup[Concat],0))","v":"CUST"},{"$f":"IF(tblDeprExpJune19[[#This Row],[Total ($000)]]=0,\"NO\",IF(ISNA(tblDeprExpJune19[[#This Row],[FUNC]]),\"YES\",IF(_xlfn.ISFORMULA(tblDeprExpJune19[[#This Row],[FUNC]]),\"NO\",\"YES\")))","v":"NO"}]
[{"$f":"CONCATENATE(tblDeprExpJune19[[#This Row],[Primary Account]],tblDeprExpJune19[[#This Row],[Primary Name]],tblDeprExpJune19[[#This Row],[Secondary Acct]],tblDeprExpJune19[[#This Row],[Secondary  Name]],tblDeprExpJune19[[#This Row],[Alloc4Func]])","v":"4030000DEPN EXPENSE-ELECT3913000OFFICE EQUIPMENTSITUS"},"4030000","DEPN EXPENSE-ELECT","3913000","OFFICE EQUIPMENT","IDU",0.14571999999999999,{"$f":"IF(OR(tblDeprExpJune19[[#This Row],[Alloc]]=\"IDU\",tblDeprExpJune19[[#This Row],[Alloc]]=\"OR\",tblDeprExpJune19[[#This Row],[Alloc]]=\"UT\",tblDeprExpJune19[[#This Row],[Alloc]]=\"WYU\",tblDeprExpJune19[[#This Row],[Alloc]]=\"WYP\",tblDeprExpJune19[[#This Row],[Alloc]]=\"CA\",tblDeprExpJune19[[#This Row],[Alloc]]=\"WA\"),\"SITUS\",tblDeprExpJune19[[#This Row],[Alloc]])","v":"SITUS"},{"$f":"INDEX(tblDeprExpLookup[FUNC],MATCH(tblDeprExpJune19[[#This Row],[Concat]],tblDeprExpLookup[Concat],0))","v":"G-SITUS"},{"$f":"IF(tblDeprExpJune19[[#This Row],[Total ($000)]]=0,\"NO\",IF(ISNA(tblDeprExpJune19[[#This Row],[FUNC]]),\"YES\",IF(_xlfn.ISFORMULA(tblDeprExpJune19[[#This Row],[FUNC]]),\"NO\",\"YES\")))","v":"NO"}]
[{"$f":"CONCATENATE(tblDeprExpJune19[[#This Row],[Primary Account]],tblDeprExpJune19[[#This Row],[Primary Name]],tblDeprExpJune19[[#This Row],[Secondary Acct]],tblDeprExpJune19[[#This Row],[Secondary  Name]],tblDeprExpJune19[[#This Row],[Alloc4Func]])","v":"4030000DEPN EXPENSE-ELECT3913000OFFICE EQUIPMENTSITUS"},"4030000","DEPN EXPENSE-ELECT","3913000","OFFICE EQUIPMENT","OR",0.76809000000000005,{"$f":"IF(OR(tblDeprExpJune19[[#This Row],[Alloc]]=\"IDU\",tblDeprExpJune19[[#This Row],[Alloc]]=\"OR\",tblDeprExpJune19[[#This Row],[Alloc]]=\"UT\",tblDeprExpJune19[[#This Row],[Alloc]]=\"WYU\",tblDeprExpJune19[[#This Row],[Alloc]]=\"WYP\",tblDeprExpJune19[[#This Row],[Alloc]]=\"CA\",tblDeprExpJune19[[#This Row],[Alloc]]=\"WA\"),\"SITUS\",tblDeprExpJune19[[#This Row],[Alloc]])","v":"SITUS"},{"$f":"INDEX(tblDeprExpLookup[FUNC],MATCH(tblDeprExpJune19[[#This Row],[Concat]],tblDeprExpLookup[Concat],0))","v":"G-SITUS"},{"$f":"IF(tblDeprExpJune19[[#This Row],[Total ($000)]]=0,\"NO\",IF(ISNA(tblDeprExpJune19[[#This Row],[FUNC]]),\"YES\",IF(_xlfn.ISFORMULA(tblDeprExpJune19[[#This Row],[FUNC]]),\"NO\",\"YES\")))","v":"NO"}]
[{"$f":"CONCATENATE(tblDeprExpJune19[[#This Row],[Primary Account]],tblDeprExpJune19[[#This Row],[Primary Name]],tblDeprExpJune19[[#This Row],[Secondary Acct]],tblDeprExpJune19[[#This Row],[Secondary  Name]],tblDeprExpJune19[[#This Row],[Alloc4Func]])","v":"4030000DEPN EXPENSE-ELECT3913000OFFICE EQUIPMENTSG"},"4030000","DEPN EXPENSE-ELECT","3913000","OFFICE EQUIPMENT","SG",8.2987300000000008,{"$f":"IF(OR(tblDeprExpJune19[[#This Row],[Alloc]]=\"IDU\",tblDeprExpJune19[[#This Row],[Alloc]]=\"OR\",tblDeprExpJune19[[#This Row],[Alloc]]=\"UT\",tblDeprExpJune19[[#This Row],[Alloc]]=\"WYU\",tblDeprExpJune19[[#This Row],[Alloc]]=\"WYP\",tblDeprExpJune19[[#This Row],[Alloc]]=\"CA\",tblDeprExpJune19[[#This Row],[Alloc]]=\"WA\"),\"SITUS\",tblDeprExpJune19[[#This Row],[Alloc]])","v":"SG"},{"$f":"INDEX(tblDeprExpLookup[FUNC],MATCH(tblDeprExpJune19[[#This Row],[Concat]],tblDeprExpLookup[Concat],0))","v":"G-SG"},{"$f":"IF(tblDeprExpJune19[[#This Row],[Total ($000)]]=0,\"NO\",IF(ISNA(tblDeprExpJune19[[#This Row],[FUNC]]),\"YES\",IF(_xlfn.ISFORMULA(tblDeprExpJune19[[#This Row],[FUNC]]),\"NO\",\"YES\")))","v":"NO"}]
[{"$f":"CONCATENATE(tblDeprExpJune19[[#This Row],[Primary Account]],tblDeprExpJune19[[#This Row],[Primary Name]],tblDeprExpJune19[[#This Row],[Secondary Acct]],tblDeprExpJune19[[#This Row],[Secondary  Name]],tblDeprExpJune19[[#This Row],[Alloc4Func]])","v":"4030000DEPN EXPENSE-ELECT3913000OFFICE EQUIPMENTSO"},"4030000","DEPN EXPENSE-ELECT","3913000","OFFICE EQUIPMENT","SO",21.547419999999999,{"$f":"IF(OR(tblDeprExpJune19[[#This Row],[Alloc]]=\"IDU\",tblDeprExpJune19[[#This Row],[Alloc]]=\"OR\",tblDeprExpJune19[[#This Row],[Alloc]]=\"UT\",tblDeprExpJune19[[#This Row],[Alloc]]=\"WYU\",tblDeprExpJune19[[#This Row],[Alloc]]=\"WYP\",tblDeprExpJune19[[#This Row],[Alloc]]=\"CA\",tblDeprExpJune19[[#This Row],[Alloc]]=\"WA\"),\"SITUS\",tblDeprExpJune19[[#This Row],[Alloc]])","v":"SO"},{"$f":"INDEX(tblDeprExpLookup[FUNC],MATCH(tblDeprExpJune19[[#This Row],[Concat]],tblDeprExpLookup[Concat],0))","v":"PTD"},{"$f":"IF(tblDeprExpJune19[[#This Row],[Total ($000)]]=0,\"NO\",IF(ISNA(tblDeprExpJune19[[#This Row],[FUNC]]),\"YES\",IF(_xlfn.ISFORMULA(tblDeprExpJune19[[#This Row],[FUNC]]),\"NO\",\"YES\")))","v":"NO"}]
[{"$f":"CONCATENATE(tblDeprExpJune19[[#This Row],[Primary Account]],tblDeprExpJune19[[#This Row],[Primary Name]],tblDeprExpJune19[[#This Row],[Secondary Acct]],tblDeprExpJune19[[#This Row],[Secondary  Name]],tblDeprExpJune19[[#This Row],[Alloc4Func]])","v":"4030000DEPN EXPENSE-ELECT3913000OFFICE EQUIPMENTSITUS"},"4030000","DEPN EXPENSE-ELECT","3913000","OFFICE EQUIPMENT","UT",1.0083200000000001,{"$f":"IF(OR(tblDeprExpJune19[[#This Row],[Alloc]]=\"IDU\",tblDeprExpJune19[[#This Row],[Alloc]]=\"OR\",tblDeprExpJune19[[#This Row],[Alloc]]=\"UT\",tblDeprExpJune19[[#This Row],[Alloc]]=\"WYU\",tblDeprExpJune19[[#This Row],[Alloc]]=\"WYP\",tblDeprExpJune19[[#This Row],[Alloc]]=\"CA\",tblDeprExpJune19[[#This Row],[Alloc]]=\"WA\"),\"SITUS\",tblDeprExpJune19[[#This Row],[Alloc]])","v":"SITUS"},{"$f":"INDEX(tblDeprExpLookup[FUNC],MATCH(tblDeprExpJune19[[#This Row],[Concat]],tblDeprExpLookup[Concat],0))","v":"G-SITUS"},{"$f":"IF(tblDeprExpJune19[[#This Row],[Total ($000)]]=0,\"NO\",IF(ISNA(tblDeprExpJune19[[#This Row],[FUNC]]),\"YES\",IF(_xlfn.ISFORMULA(tblDeprExpJune19[[#This Row],[FUNC]]),\"NO\",\"YES\")))","v":"NO"}]
[{"$f":"CONCATENATE(tblDeprExpJune19[[#This Row],[Primary Account]],tblDeprExpJune19[[#This Row],[Primary Name]],tblDeprExpJune19[[#This Row],[Secondary Acct]],tblDeprExpJune19[[#This Row],[Secondary  Name]],tblDeprExpJune19[[#This Row],[Alloc4Func]])","v":"4030000DEPN EXPENSE-ELECT3913000OFFICE EQUIPMENTSITUS"},"4030000","DEPN EXPENSE-ELECT","3913000","OFFICE EQUIPMENT","WYP",0.27062000000000003,{"$f":"IF(OR(tblDeprExpJune19[[#This Row],[Alloc]]=\"IDU\",tblDeprExpJune19[[#This Row],[Alloc]]=\"OR\",tblDeprExpJune19[[#This Row],[Alloc]]=\"UT\",tblDeprExpJune19[[#This Row],[Alloc]]=\"WYU\",tblDeprExpJune19[[#This Row],[Alloc]]=\"WYP\",tblDeprExpJune19[[#This Row],[Alloc]]=\"CA\",tblDeprExpJune19[[#This Row],[Alloc]]=\"WA\"),\"SITUS\",tblDeprExpJune19[[#This Row],[Alloc]])","v":"SITUS"},{"$f":"INDEX(tblDeprExpLookup[FUNC],MATCH(tblDeprExpJune19[[#This Row],[Concat]],tblDeprExpLookup[Concat],0))","v":"G-SITUS"},{"$f":"IF(tblDeprExpJune19[[#This Row],[Total ($000)]]=0,\"NO\",IF(ISNA(tblDeprExpJune19[[#This Row],[FUNC]]),\"YES\",IF(_xlfn.ISFORMULA(tblDeprExpJune19[[#This Row],[FUNC]]),\"NO\",\"YES\")))","v":"NO"}]
[{"$f":"CONCATENATE(tblDeprExpJune19[[#This Row],[Primary Account]],tblDeprExpJune19[[#This Row],[Primary Name]],tblDeprExpJune19[[#This Row],[Secondary Acct]],tblDeprExpJune19[[#This Row],[Secondary  Name]],tblDeprExpJune19[[#This Row],[Alloc4Func]])","v":"4030000DEPN EXPENSE-ELECT3913000OFFICE EQUIPMENTSITUS"},"4030000","DEPN EXPENSE-ELECT","3913000","OFFICE EQUIPMENT","WYU",1.0269699999999999,{"$f":"IF(OR(tblDeprExpJune19[[#This Row],[Alloc]]=\"IDU\",tblDeprExpJune19[[#This Row],[Alloc]]=\"OR\",tblDeprExpJune19[[#This Row],[Alloc]]=\"UT\",tblDeprExpJune19[[#This Row],[Alloc]]=\"WYU\",tblDeprExpJune19[[#This Row],[Alloc]]=\"WYP\",tblDeprExpJune19[[#This Row],[Alloc]]=\"CA\",tblDeprExpJune19[[#This Row],[Alloc]]=\"WA\"),\"SITUS\",tblDeprExpJune19[[#This Row],[Alloc]])","v":"SITUS"},{"$f":"INDEX(tblDeprExpLookup[FUNC],MATCH(tblDeprExpJune19[[#This Row],[Concat]],tblDeprExpLookup[Concat],0))","v":"G-SITUS"},{"$f":"IF(tblDeprExpJune19[[#This Row],[Total ($000)]]=0,\"NO\",IF(ISNA(tblDeprExpJune19[[#This Row],[FUNC]]),\"YES\",IF(_xlfn.ISFORMULA(tblDeprExpJune19[[#This Row],[FUNC]]),\"NO\",\"YES\")))","v":"NO"}]
[{"$f":"CONCATENATE(tblDeprExpJune19[[#This Row],[Primary Account]],tblDeprExpJune19[[#This Row],[Primary Name]],tblDeprExpJune19[[#This Row],[Secondary Acct]],tblDeprExpJune19[[#This Row],[Secondary  Name]],tblDeprExpJune19[[#This Row],[Alloc4Func]])","v":"4030000DEPN EXPENSE-ELECT3930000STORES EQUIPMENTSITUS"},"4030000","DEPN EXPENSE-ELECT","3930000","STORES EQUIPMENT","CA",7.1053600000000001,{"$f":"IF(OR(tblDeprExpJune19[[#This Row],[Alloc]]=\"IDU\",tblDeprExpJune19[[#This Row],[Alloc]]=\"OR\",tblDeprExpJune19[[#This Row],[Alloc]]=\"UT\",tblDeprExpJune19[[#This Row],[Alloc]]=\"WYU\",tblDeprExpJune19[[#This Row],[Alloc]]=\"WYP\",tblDeprExpJune19[[#This Row],[Alloc]]=\"CA\",tblDeprExpJune19[[#This Row],[Alloc]]=\"WA\"),\"SITUS\",tblDeprExpJune19[[#This Row],[Alloc]])","v":"SITUS"},{"$f":"INDEX(tblDeprExpLookup[FUNC],MATCH(tblDeprExpJune19[[#This Row],[Concat]],tblDeprExpLookup[Concat],0))","v":"G-SITUS"},{"$f":"IF(tblDeprExpJune19[[#This Row],[Total ($000)]]=0,\"NO\",IF(ISNA(tblDeprExpJune19[[#This Row],[FUNC]]),\"YES\",IF(_xlfn.ISFORMULA(tblDeprExpJune19[[#This Row],[FUNC]]),\"NO\",\"YES\")))","v":"NO"}]
[{"$f":"CONCATENATE(tblDeprExpJune19[[#This Row],[Primary Account]],tblDeprExpJune19[[#This Row],[Primary Name]],tblDeprExpJune19[[#This Row],[Secondary Acct]],tblDeprExpJune19[[#This Row],[Secondary  Name]],tblDeprExpJune19[[#This Row],[Alloc4Func]])","v":"4030000DEPN EXPENSE-ELECT3930000STORES EQUIPMENTSITUS"},"4030000","DEPN EXPENSE-ELECT","3930000","STORES EQUIPMENT","IDU",19.81007,{"$f":"IF(OR(tblDeprExpJune19[[#This Row],[Alloc]]=\"IDU\",tblDeprExpJune19[[#This Row],[Alloc]]=\"OR\",tblDeprExpJune19[[#This Row],[Alloc]]=\"UT\",tblDeprExpJune19[[#This Row],[Alloc]]=\"WYU\",tblDeprExpJune19[[#This Row],[Alloc]]=\"WYP\",tblDeprExpJune19[[#This Row],[Alloc]]=\"CA\",tblDeprExpJune19[[#This Row],[Alloc]]=\"WA\"),\"SITUS\",tblDeprExpJune19[[#This Row],[Alloc]])","v":"SITUS"},{"$f":"INDEX(tblDeprExpLookup[FUNC],MATCH(tblDeprExpJune19[[#This Row],[Concat]],tblDeprExpLookup[Concat],0))","v":"G-SITUS"},{"$f":"IF(tblDeprExpJune19[[#This Row],[Total ($000)]]=0,\"NO\",IF(ISNA(tblDeprExpJune19[[#This Row],[FUNC]]),\"YES\",IF(_xlfn.ISFORMULA(tblDeprExpJune19[[#This Row],[FUNC]]),\"NO\",\"YES\")))","v":"NO"}]
[{"$f":"CONCATENATE(tblDeprExpJune19[[#This Row],[Primary Account]],tblDeprExpJune19[[#This Row],[Primary Name]],tblDeprExpJune19[[#This Row],[Secondary Acct]],tblDeprExpJune19[[#This Row],[Secondary  Name]],tblDeprExpJune19[[#This Row],[Alloc4Func]])","v":"4030000DEPN EXPENSE-ELECT3930000STORES EQUIPMENTSITUS"},"4030000","DEPN EXPENSE-ELECT","3930000","STORES EQUIPMENT","OR",106.83363,{"$f":"IF(OR(tblDeprExpJune19[[#This Row],[Alloc]]=\"IDU\",tblDeprExpJune19[[#This Row],[Alloc]]=\"OR\",tblDeprExpJune19[[#This Row],[Alloc]]=\"UT\",tblDeprExpJune19[[#This Row],[Alloc]]=\"WYU\",tblDeprExpJune19[[#This Row],[Alloc]]=\"WYP\",tblDeprExpJune19[[#This Row],[Alloc]]=\"CA\",tblDeprExpJune19[[#This Row],[Alloc]]=\"WA\"),\"SITUS\",tblDeprExpJune19[[#This Row],[Alloc]])","v":"SITUS"},{"$f":"INDEX(tblDeprExpLookup[FUNC],MATCH(tblDeprExpJune19[[#This Row],[Concat]],tblDeprExpLookup[Concat],0))","v":"G-SITUS"},{"$f":"IF(tblDeprExpJune19[[#This Row],[Total ($000)]]=0,\"NO\",IF(ISNA(tblDeprExpJune19[[#This Row],[FUNC]]),\"YES\",IF(_xlfn.ISFORMULA(tblDeprExpJune19[[#This Row],[FUNC]]),\"NO\",\"YES\")))","v":"NO"}]
[{"$f":"CONCATENATE(tblDeprExpJune19[[#This Row],[Primary Account]],tblDeprExpJune19[[#This Row],[Primary Name]],tblDeprExpJune19[[#This Row],[Secondary Acct]],tblDeprExpJune19[[#This Row],[Secondary  Name]],tblDeprExpJune19[[#This Row],[Alloc4Func]])","v":"4030000DEPN EXPENSE-ELECT3930000STORES EQUIPMENTSG"},"4030000","DEPN EXPENSE-ELECT","3930000","STORES EQUIPMENT","SG",231.83697000000001,{"$f":"IF(OR(tblDeprExpJune19[[#This Row],[Alloc]]=\"IDU\",tblDeprExpJune19[[#This Row],[Alloc]]=\"OR\",tblDeprExpJune19[[#This Row],[Alloc]]=\"UT\",tblDeprExpJune19[[#This Row],[Alloc]]=\"WYU\",tblDeprExpJune19[[#This Row],[Alloc]]=\"WYP\",tblDeprExpJune19[[#This Row],[Alloc]]=\"CA\",tblDeprExpJune19[[#This Row],[Alloc]]=\"WA\"),\"SITUS\",tblDeprExpJune19[[#This Row],[Alloc]])","v":"SG"},{"$f":"INDEX(tblDeprExpLookup[FUNC],MATCH(tblDeprExpJune19[[#This Row],[Concat]],tblDeprExpLookup[Concat],0))","v":"G-DGU"},{"$f":"IF(tblDeprExpJune19[[#This Row],[Total ($000)]]=0,\"NO\",IF(ISNA(tblDeprExpJune19[[#This Row],[FUNC]]),\"YES\",IF(_xlfn.ISFORMULA(tblDeprExpJune19[[#This Row],[FUNC]]),\"NO\",\"YES\")))","v":"NO"}]
[{"$f":"CONCATENATE(tblDeprExpJune19[[#This Row],[Primary Account]],tblDeprExpJune19[[#This Row],[Primary Name]],tblDeprExpJune19[[#This Row],[Secondary Acct]],tblDeprExpJune19[[#This Row],[Secondary  Name]],tblDeprExpJune19[[#This Row],[Alloc4Func]])","v":"4030000DEPN EXPENSE-ELECT3930000STORES EQUIPMENTSO"},"4030000","DEPN EXPENSE-ELECT","3930000","STORES EQUIPMENT","SO",10.20806,{"$f":"IF(OR(tblDeprExpJune19[[#This Row],[Alloc]]=\"IDU\",tblDeprExpJune19[[#This Row],[Alloc]]=\"OR\",tblDeprExpJune19[[#This Row],[Alloc]]=\"UT\",tblDeprExpJune19[[#This Row],[Alloc]]=\"WYU\",tblDeprExpJune19[[#This Row],[Alloc]]=\"WYP\",tblDeprExpJune19[[#This Row],[Alloc]]=\"CA\",tblDeprExpJune19[[#This Row],[Alloc]]=\"WA\"),\"SITUS\",tblDeprExpJune19[[#This Row],[Alloc]])","v":"SO"},{"$f":"INDEX(tblDeprExpLookup[FUNC],MATCH(tblDeprExpJune19[[#This Row],[Concat]],tblDeprExpLookup[Concat],0))","v":"PTD"},{"$f":"IF(tblDeprExpJune19[[#This Row],[Total ($000)]]=0,\"NO\",IF(ISNA(tblDeprExpJune19[[#This Row],[FUNC]]),\"YES\",IF(_xlfn.ISFORMULA(tblDeprExpJune19[[#This Row],[FUNC]]),\"NO\",\"YES\")))","v":"NO"}]
[{"$f":"CONCATENATE(tblDeprExpJune19[[#This Row],[Primary Account]],tblDeprExpJune19[[#This Row],[Primary Name]],tblDeprExpJune19[[#This Row],[Secondary Acct]],tblDeprExpJune19[[#This Row],[Secondary  Name]],tblDeprExpJune19[[#This Row],[Alloc4Func]])","v":"4030000DEPN EXPENSE-ELECT3930000STORES EQUIPMENTSITUS"},"4030000","DEPN EXPENSE-ELECT","3930000","STORES EQUIPMENT","UT",129.45940999999999,{"$f":"IF(OR(tblDeprExpJune19[[#This Row],[Alloc]]=\"IDU\",tblDeprExpJune19[[#This Row],[Alloc]]=\"OR\",tblDeprExpJune19[[#This Row],[Alloc]]=\"UT\",tblDeprExpJune19[[#This Row],[Alloc]]=\"WYU\",tblDeprExpJune19[[#This Row],[Alloc]]=\"WYP\",tblDeprExpJune19[[#This Row],[Alloc]]=\"CA\",tblDeprExpJune19[[#This Row],[Alloc]]=\"WA\"),\"SITUS\",tblDeprExpJune19[[#This Row],[Alloc]])","v":"SITUS"},{"$f":"INDEX(tblDeprExpLookup[FUNC],MATCH(tblDeprExpJune19[[#This Row],[Concat]],tblDeprExpLookup[Concat],0))","v":"G-SITUS"},{"$f":"IF(tblDeprExpJune19[[#This Row],[Total ($000)]]=0,\"NO\",IF(ISNA(tblDeprExpJune19[[#This Row],[FUNC]]),\"YES\",IF(_xlfn.ISFORMULA(tblDeprExpJune19[[#This Row],[FUNC]]),\"NO\",\"YES\")))","v":"NO"}]
[{"$f":"CONCATENATE(tblDeprExpJune19[[#This Row],[Primary Account]],tblDeprExpJune19[[#This Row],[Primary Name]],tblDeprExpJune19[[#This Row],[Secondary Acct]],tblDeprExpJune19[[#This Row],[Secondary  Name]],tblDeprExpJune19[[#This Row],[Alloc4Func]])","v":"4030000DEPN EXPENSE-ELECT3930000STORES EQUIPMENTSITUS"},"4030000","DEPN EXPENSE-ELECT","3930000","STORES EQUIPMENT","WA",28.086359999999999,{"$f":"IF(OR(tblDeprExpJune19[[#This Row],[Alloc]]=\"IDU\",tblDeprExpJune19[[#This Row],[Alloc]]=\"OR\",tblDeprExpJune19[[#This Row],[Alloc]]=\"UT\",tblDeprExpJune19[[#This Row],[Alloc]]=\"WYU\",tblDeprExpJune19[[#This Row],[Alloc]]=\"WYP\",tblDeprExpJune19[[#This Row],[Alloc]]=\"CA\",tblDeprExpJune19[[#This Row],[Alloc]]=\"WA\"),\"SITUS\",tblDeprExpJune19[[#This Row],[Alloc]])","v":"SITUS"},{"$f":"INDEX(tblDeprExpLookup[FUNC],MATCH(tblDeprExpJune19[[#This Row],[Concat]],tblDeprExpLookup[Concat],0))","v":"G-SITUS"},{"$f":"IF(tblDeprExpJune19[[#This Row],[Total ($000)]]=0,\"NO\",IF(ISNA(tblDeprExpJune19[[#This Row],[FUNC]]),\"YES\",IF(_xlfn.ISFORMULA(tblDeprExpJune19[[#This Row],[FUNC]]),\"NO\",\"YES\")))","v":"NO"}]
[{"$f":"CONCATENATE(tblDeprExpJune19[[#This Row],[Primary Account]],tblDeprExpJune19[[#This Row],[Primary Name]],tblDeprExpJune19[[#This Row],[Secondary Acct]],tblDeprExpJune19[[#This Row],[Secondary  Name]],tblDeprExpJune19[[#This Row],[Alloc4Func]])","v":"4030000DEPN EXPENSE-ELECT3930000STORES EQUIPMENTSITUS"},"4030000","DEPN EXPENSE-ELECT","3930000","STORES EQUIPMENT","WYP",44.016889999999997,{"$f":"IF(OR(tblDeprExpJune19[[#This Row],[Alloc]]=\"IDU\",tblDeprExpJune19[[#This Row],[Alloc]]=\"OR\",tblDeprExpJune19[[#This Row],[Alloc]]=\"UT\",tblDeprExpJune19[[#This Row],[Alloc]]=\"WYU\",tblDeprExpJune19[[#This Row],[Alloc]]=\"WYP\",tblDeprExpJune19[[#This Row],[Alloc]]=\"CA\",tblDeprExpJune19[[#This Row],[Alloc]]=\"WA\"),\"SITUS\",tblDeprExpJune19[[#This Row],[Alloc]])","v":"SITUS"},{"$f":"INDEX(tblDeprExpLookup[FUNC],MATCH(tblDeprExpJune19[[#This Row],[Concat]],tblDeprExpLookup[Concat],0))","v":"G-SITUS"},{"$f":"IF(tblDeprExpJune19[[#This Row],[Total ($000)]]=0,\"NO\",IF(ISNA(tblDeprExpJune19[[#This Row],[FUNC]]),\"YES\",IF(_xlfn.ISFORMULA(tblDeprExpJune19[[#This Row],[FUNC]]),\"NO\",\"YES\")))","v":"NO"}]
[{"$f":"CONCATENATE(tblDeprExpJune19[[#This Row],[Primary Account]],tblDeprExpJune19[[#This Row],[Primary Name]],tblDeprExpJune19[[#This Row],[Secondary Acct]],tblDeprExpJune19[[#This Row],[Secondary  Name]],tblDeprExpJune19[[#This Row],[Alloc4Func]])","v":"4030000DEPN EXPENSE-ELECT3930000STORES EQUIPMENTSITUS"},"4030000","DEPN EXPENSE-ELECT","3930000","STORES EQUIPMENT","WYU",5.3499999999999999E-2,{"$f":"IF(OR(tblDeprExpJune19[[#This Row],[Alloc]]=\"IDU\",tblDeprExpJune19[[#This Row],[Alloc]]=\"OR\",tblDeprExpJune19[[#This Row],[Alloc]]=\"UT\",tblDeprExpJune19[[#This Row],[Alloc]]=\"WYU\",tblDeprExpJune19[[#This Row],[Alloc]]=\"WYP\",tblDeprExpJune19[[#This Row],[Alloc]]=\"CA\",tblDeprExpJune19[[#This Row],[Alloc]]=\"WA\"),\"SITUS\",tblDeprExpJune19[[#This Row],[Alloc]])","v":"SITUS"},{"$f":"INDEX(tblDeprExpLookup[FUNC],MATCH(tblDeprExpJune19[[#This Row],[Concat]],tblDeprExpLookup[Concat],0))","v":"G-SITUS"},{"$f":"IF(tblDeprExpJune19[[#This Row],[Total ($000)]]=0,\"NO\",IF(ISNA(tblDeprExpJune19[[#This Row],[FUNC]]),\"YES\",IF(_xlfn.ISFORMULA(tblDeprExpJune19[[#This Row],[FUNC]]),\"NO\",\"YES\")))","v":"NO"}]
[{"$f":"CONCATENATE(tblDeprExpJune19[[#This Row],[Primary Account]],tblDeprExpJune19[[#This Row],[Primary Name]],tblDeprExpJune19[[#This Row],[Secondary Acct]],tblDeprExpJune19[[#This Row],[Secondary  Name]],tblDeprExpJune19[[#This Row],[Alloc4Func]])","v":"4030000DEPN EXPENSE-ELECT3940000\"TLS, SHOP, GAR EQUIPMENT\"SITUS"},"4030000","DEPN EXPENSE-ELECT","3940000","\"TLS, SHOP, GAR EQUIPMENT\"","CA",30.36467,{"$f":"IF(OR(tblDeprExpJune19[[#This Row],[Alloc]]=\"IDU\",tblDeprExpJune19[[#This Row],[Alloc]]=\"OR\",tblDeprExpJune19[[#This Row],[Alloc]]=\"UT\",tblDeprExpJune19[[#This Row],[Alloc]]=\"WYU\",tblDeprExpJune19[[#This Row],[Alloc]]=\"WYP\",tblDeprExpJune19[[#This Row],[Alloc]]=\"CA\",tblDeprExpJune19[[#This Row],[Alloc]]=\"WA\"),\"SITUS\",tblDeprExpJune19[[#This Row],[Alloc]])","v":"SITUS"},{"$f":"INDEX(tblDeprExpLookup[FUNC],MATCH(tblDeprExpJune19[[#This Row],[Concat]],tblDeprExpLookup[Concat],0))","v":"G-SITUS"},{"$f":"IF(tblDeprExpJune19[[#This Row],[Total ($000)]]=0,\"NO\",IF(ISNA(tblDeprExpJune19[[#This Row],[FUNC]]),\"YES\",IF(_xlfn.ISFORMULA(tblDeprExpJune19[[#This Row],[FUNC]]),\"NO\",\"YES\")))","v":"NO"}]
[{"$f":"CONCATENATE(tblDeprExpJune19[[#This Row],[Primary Account]],tblDeprExpJune19[[#This Row],[Primary Name]],tblDeprExpJune19[[#This Row],[Secondary Acct]],tblDeprExpJune19[[#This Row],[Secondary  Name]],tblDeprExpJune19[[#This Row],[Alloc4Func]])","v":"4030000DEPN EXPENSE-ELECT3940000\"TLS, SHOP, GAR EQUIPMENT\"SITUS"},"4030000","DEPN EXPENSE-ELECT","3940000","\"TLS, SHOP, GAR EQUIPMENT\"","IDU",84.004519999999999,{"$f":"IF(OR(tblDeprExpJune19[[#This Row],[Alloc]]=\"IDU\",tblDeprExpJune19[[#This Row],[Alloc]]=\"OR\",tblDeprExpJune19[[#This Row],[Alloc]]=\"UT\",tblDeprExpJune19[[#This Row],[Alloc]]=\"WYU\",tblDeprExpJune19[[#This Row],[Alloc]]=\"WYP\",tblDeprExpJune19[[#This Row],[Alloc]]=\"CA\",tblDeprExpJune19[[#This Row],[Alloc]]=\"WA\"),\"SITUS\",tblDeprExpJune19[[#This Row],[Alloc]])","v":"SITUS"},{"$f":"INDEX(tblDeprExpLookup[FUNC],MATCH(tblDeprExpJune19[[#This Row],[Concat]],tblDeprExpLookup[Concat],0))","v":"G-SITUS"},{"$f":"IF(tblDeprExpJune19[[#This Row],[Total ($000)]]=0,\"NO\",IF(ISNA(tblDeprExpJune19[[#This Row],[FUNC]]),\"YES\",IF(_xlfn.ISFORMULA(tblDeprExpJune19[[#This Row],[FUNC]]),\"NO\",\"YES\")))","v":"NO"}]
[{"$f":"CONCATENATE(tblDeprExpJune19[[#This Row],[Primary Account]],tblDeprExpJune19[[#This Row],[Primary Name]],tblDeprExpJune19[[#This Row],[Secondary Acct]],tblDeprExpJune19[[#This Row],[Secondary  Name]],tblDeprExpJune19[[#This Row],[Alloc4Func]])","v":"4030000DEPN EXPENSE-ELECT3940000\"TLS, SHOP, GAR EQUIPMENT\"SITUS"},"4030000","DEPN EXPENSE-ELECT","3940000","\"TLS, SHOP, GAR EQUIPMENT\"","OR",434.90044,{"$f":"IF(OR(tblDeprExpJune19[[#This Row],[Alloc]]=\"IDU\",tblDeprExpJune19[[#This Row],[Alloc]]=\"OR\",tblDeprExpJune19[[#This Row],[Alloc]]=\"UT\",tblDeprExpJune19[[#This Row],[Alloc]]=\"WYU\",tblDeprExpJune19[[#This Row],[Alloc]]=\"WYP\",tblDeprExpJune19[[#This Row],[Alloc]]=\"CA\",tblDeprExpJune19[[#This Row],[Alloc]]=\"WA\"),\"SITUS\",tblDeprExpJune19[[#This Row],[Alloc]])","v":"SITUS"},{"$f":"INDEX(tblDeprExpLookup[FUNC],MATCH(tblDeprExpJune19[[#This Row],[Concat]],tblDeprExpLookup[Concat],0))","v":"G-SITUS"},{"$f":"IF(tblDeprExpJune19[[#This Row],[Total ($000)]]=0,\"NO\",IF(ISNA(tblDeprExpJune19[[#This Row],[FUNC]]),\"YES\",IF(_xlfn.ISFORMULA(tblDeprExpJune19[[#This Row],[FUNC]]),\"NO\",\"YES\")))","v":"NO"}]
[{"$f":"CONCATENATE(tblDeprExpJune19[[#This Row],[Primary Account]],tblDeprExpJune19[[#This Row],[Primary Name]],tblDeprExpJune19[[#This Row],[Secondary Acct]],tblDeprExpJune19[[#This Row],[Secondary  Name]],tblDeprExpJune19[[#This Row],[Alloc4Func]])","v":"4030000DEPN EXPENSE-ELECT3940000\"TLS, SHOP, GAR EQUIPMENT\"SE"},"4030000","DEPN EXPENSE-ELECT","3940000","\"TLS, SHOP, GAR EQUIPMENT\"","SE",3.3610699999999998,{"$f":"IF(OR(tblDeprExpJune19[[#This Row],[Alloc]]=\"IDU\",tblDeprExpJune19[[#This Row],[Alloc]]=\"OR\",tblDeprExpJune19[[#This Row],[Alloc]]=\"UT\",tblDeprExpJune19[[#This Row],[Alloc]]=\"WYU\",tblDeprExpJune19[[#This Row],[Alloc]]=\"WYP\",tblDeprExpJune19[[#This Row],[Alloc]]=\"CA\",tblDeprExpJune19[[#This Row],[Alloc]]=\"WA\"),\"SITUS\",tblDeprExpJune19[[#This Row],[Alloc]])","v":"SE"},{"$f":"INDEX(tblDeprExpLookup[FUNC],MATCH(tblDeprExpJune19[[#This Row],[Concat]],tblDeprExpLookup[Concat],0))","v":"P"},{"$f":"IF(tblDeprExpJune19[[#This Row],[Total ($000)]]=0,\"NO\",IF(ISNA(tblDeprExpJune19[[#This Row],[FUNC]]),\"YES\",IF(_xlfn.ISFORMULA(tblDeprExpJune19[[#This Row],[FUNC]]),\"NO\",\"YES\")))","v":"NO"}]
[{"$f":"CONCATENATE(tblDeprExpJune19[[#This Row],[Primary Account]],tblDeprExpJune19[[#This Row],[Primary Name]],tblDeprExpJune19[[#This Row],[Secondary Acct]],tblDeprExpJune19[[#This Row],[Secondary  Name]],tblDeprExpJune19[[#This Row],[Alloc4Func]])","v":"4030000DEPN EXPENSE-ELECT3940000\"TLS, SHOP, GAR EQUIPMENT\"SG"},"4030000","DEPN EXPENSE-ELECT","3940000","\"TLS, SHOP, GAR EQUIPMENT\"","SG",995.00591999999995,{"$f":"IF(OR(tblDeprExpJune19[[#This Row],[Alloc]]=\"IDU\",tblDeprExpJune19[[#This Row],[Alloc]]=\"OR\",tblDeprExpJune19[[#This Row],[Alloc]]=\"UT\",tblDeprExpJune19[[#This Row],[Alloc]]=\"WYU\",tblDeprExpJune19[[#This Row],[Alloc]]=\"WYP\",tblDeprExpJune19[[#This Row],[Alloc]]=\"CA\",tblDeprExpJune19[[#This Row],[Alloc]]=\"WA\"),\"SITUS\",tblDeprExpJune19[[#This Row],[Alloc]])","v":"SG"},{"$f":"INDEX(tblDeprExpLookup[FUNC],MATCH(tblDeprExpJune19[[#This Row],[Concat]],tblDeprExpLookup[Concat],0))","v":"G-SG"},{"$f":"IF(tblDeprExpJune19[[#This Row],[Total ($000)]]=0,\"NO\",IF(ISNA(tblDeprExpJune19[[#This Row],[FUNC]]),\"YES\",IF(_xlfn.ISFORMULA(tblDeprExpJune19[[#This Row],[FUNC]]),\"NO\",\"YES\")))","v":"NO"}]
[{"$f":"CONCATENATE(tblDeprExpJune19[[#This Row],[Primary Account]],tblDeprExpJune19[[#This Row],[Primary Name]],tblDeprExpJune19[[#This Row],[Secondary Acct]],tblDeprExpJune19[[#This Row],[Secondary  Name]],tblDeprExpJune19[[#This Row],[Alloc4Func]])","v":"4030000DEPN EXPENSE-ELECT3940000\"TLS, SHOP, GAR EQUIPMENT\"SO"},"4030000","DEPN EXPENSE-ELECT","3940000","\"TLS, SHOP, GAR EQUIPMENT\"","SO",89.418949999999995,{"$f":"IF(OR(tblDeprExpJune19[[#This Row],[Alloc]]=\"IDU\",tblDeprExpJune19[[#This Row],[Alloc]]=\"OR\",tblDeprExpJune19[[#This Row],[Alloc]]=\"UT\",tblDeprExpJune19[[#This Row],[Alloc]]=\"WYU\",tblDeprExpJune19[[#This Row],[Alloc]]=\"WYP\",tblDeprExpJune19[[#This Row],[Alloc]]=\"CA\",tblDeprExpJune19[[#This Row],[Alloc]]=\"WA\"),\"SITUS\",tblDeprExpJune19[[#This Row],[Alloc]])","v":"SO"},{"$f":"INDEX(tblDeprExpLookup[FUNC],MATCH(tblDeprExpJune19[[#This Row],[Concat]],tblDeprExpLookup[Concat],0))","v":"PTD"},{"$f":"IF(tblDeprExpJune19[[#This Row],[Total ($000)]]=0,\"NO\",IF(ISNA(tblDeprExpJune19[[#This Row],[FUNC]]),\"YES\",IF(_xlfn.ISFORMULA(tblDeprExpJune19[[#This Row],[FUNC]]),\"NO\",\"YES\")))","v":"NO"}]
[{"$f":"CONCATENATE(tblDeprExpJune19[[#This Row],[Primary Account]],tblDeprExpJune19[[#This Row],[Primary Name]],tblDeprExpJune19[[#This Row],[Secondary Acct]],tblDeprExpJune19[[#This Row],[Secondary  Name]],tblDeprExpJune19[[#This Row],[Alloc4Func]])","v":"4030000DEPN EXPENSE-ELECT3940000\"TLS, SHOP, GAR EQUIPMENT\"SITUS"},"4030000","DEPN EXPENSE-ELECT","3940000","\"TLS, SHOP, GAR EQUIPMENT\"","UT",575.69260999999995,{"$f":"IF(OR(tblDeprExpJune19[[#This Row],[Alloc]]=\"IDU\",tblDeprExpJune19[[#This Row],[Alloc]]=\"OR\",tblDeprExpJune19[[#This Row],[Alloc]]=\"UT\",tblDeprExpJune19[[#This Row],[Alloc]]=\"WYU\",tblDeprExpJune19[[#This Row],[Alloc]]=\"WYP\",tblDeprExpJune19[[#This Row],[Alloc]]=\"CA\",tblDeprExpJune19[[#This Row],[Alloc]]=\"WA\"),\"SITUS\",tblDeprExpJune19[[#This Row],[Alloc]])","v":"SITUS"},{"$f":"INDEX(tblDeprExpLookup[FUNC],MATCH(tblDeprExpJune19[[#This Row],[Concat]],tblDeprExpLookup[Concat],0))","v":"G-SITUS"},{"$f":"IF(tblDeprExpJune19[[#This Row],[Total ($000)]]=0,\"NO\",IF(ISNA(tblDeprExpJune19[[#This Row],[FUNC]]),\"YES\",IF(_xlfn.ISFORMULA(tblDeprExpJune19[[#This Row],[FUNC]]),\"NO\",\"YES\")))","v":"NO"}]
[{"$f":"CONCATENATE(tblDeprExpJune19[[#This Row],[Primary Account]],tblDeprExpJune19[[#This Row],[Primary Name]],tblDeprExpJune19[[#This Row],[Secondary Acct]],tblDeprExpJune19[[#This Row],[Secondary  Name]],tblDeprExpJune19[[#This Row],[Alloc4Func]])","v":"4030000DEPN EXPENSE-ELECT3940000\"TLS, SHOP, GAR EQUIPMENT\"SITUS"},"4030000","DEPN EXPENSE-ELECT","3940000","\"TLS, SHOP, GAR EQUIPMENT\"","WA",113.11076,{"$f":"IF(OR(tblDeprExpJune19[[#This Row],[Alloc]]=\"IDU\",tblDeprExpJune19[[#This Row],[Alloc]]=\"OR\",tblDeprExpJune19[[#This Row],[Alloc]]=\"UT\",tblDeprExpJune19[[#This Row],[Alloc]]=\"WYU\",tblDeprExpJune19[[#This Row],[Alloc]]=\"WYP\",tblDeprExpJune19[[#This Row],[Alloc]]=\"CA\",tblDeprExpJune19[[#This Row],[Alloc]]=\"WA\"),\"SITUS\",tblDeprExpJune19[[#This Row],[Alloc]])","v":"SITUS"},{"$f":"INDEX(tblDeprExpLookup[FUNC],MATCH(tblDeprExpJune19[[#This Row],[Concat]],tblDeprExpLookup[Concat],0))","v":"G-SITUS"},{"$f":"IF(tblDeprExpJune19[[#This Row],[Total ($000)]]=0,\"NO\",IF(ISNA(tblDeprExpJune19[[#This Row],[FUNC]]),\"YES\",IF(_xlfn.ISFORMULA(tblDeprExpJune19[[#This Row],[FUNC]]),\"NO\",\"YES\")))","v":"NO"}]
[{"$f":"CONCATENATE(tblDeprExpJune19[[#This Row],[Primary Account]],tblDeprExpJune19[[#This Row],[Primary Name]],tblDeprExpJune19[[#This Row],[Secondary Acct]],tblDeprExpJune19[[#This Row],[Secondary  Name]],tblDeprExpJune19[[#This Row],[Alloc4Func]])","v":"4030000DEPN EXPENSE-ELECT3940000\"TLS, SHOP, GAR EQUIPMENT\"SITUS"},"4030000","DEPN EXPENSE-ELECT","3940000","\"TLS, SHOP, GAR EQUIPMENT\"","WYP",155.86752000000001,{"$f":"IF(OR(tblDeprExpJune19[[#This Row],[Alloc]]=\"IDU\",tblDeprExpJune19[[#This Row],[Alloc]]=\"OR\",tblDeprExpJune19[[#This Row],[Alloc]]=\"UT\",tblDeprExpJune19[[#This Row],[Alloc]]=\"WYU\",tblDeprExpJune19[[#This Row],[Alloc]]=\"WYP\",tblDeprExpJune19[[#This Row],[Alloc]]=\"CA\",tblDeprExpJune19[[#This Row],[Alloc]]=\"WA\"),\"SITUS\",tblDeprExpJune19[[#This Row],[Alloc]])","v":"SITUS"},{"$f":"INDEX(tblDeprExpLookup[FUNC],MATCH(tblDeprExpJune19[[#This Row],[Concat]],tblDeprExpLookup[Concat],0))","v":"G-SITUS"},{"$f":"IF(tblDeprExpJune19[[#This Row],[Total ($000)]]=0,\"NO\",IF(ISNA(tblDeprExpJune19[[#This Row],[FUNC]]),\"YES\",IF(_xlfn.ISFORMULA(tblDeprExpJune19[[#This Row],[FUNC]]),\"NO\",\"YES\")))","v":"NO"}]
[{"$f":"CONCATENATE(tblDeprExpJune19[[#This Row],[Primary Account]],tblDeprExpJune19[[#This Row],[Primary Name]],tblDeprExpJune19[[#This Row],[Secondary Acct]],tblDeprExpJune19[[#This Row],[Secondary  Name]],tblDeprExpJune19[[#This Row],[Alloc4Func]])","v":"4030000DEPN EXPENSE-ELECT3940000\"TLS, SHOP, GAR EQUIPMENT\"SITUS"},"4030000","DEPN EXPENSE-ELECT","3940000","\"TLS, SHOP, GAR EQUIPMENT\"","WYU",16.868410000000001,{"$f":"IF(OR(tblDeprExpJune19[[#This Row],[Alloc]]=\"IDU\",tblDeprExpJune19[[#This Row],[Alloc]]=\"OR\",tblDeprExpJune19[[#This Row],[Alloc]]=\"UT\",tblDeprExpJune19[[#This Row],[Alloc]]=\"WYU\",tblDeprExpJune19[[#This Row],[Alloc]]=\"WYP\",tblDeprExpJune19[[#This Row],[Alloc]]=\"CA\",tblDeprExpJune19[[#This Row],[Alloc]]=\"WA\"),\"SITUS\",tblDeprExpJune19[[#This Row],[Alloc]])","v":"SITUS"},{"$f":"INDEX(tblDeprExpLookup[FUNC],MATCH(tblDeprExpJune19[[#This Row],[Concat]],tblDeprExpLookup[Concat],0))","v":"G-SITUS"},{"$f":"IF(tblDeprExpJune19[[#This Row],[Total ($000)]]=0,\"NO\",IF(ISNA(tblDeprExpJune19[[#This Row],[FUNC]]),\"YES\",IF(_xlfn.ISFORMULA(tblDeprExpJune19[[#This Row],[FUNC]]),\"NO\",\"YES\")))","v":"NO"}]
[{"$f":"CONCATENATE(tblDeprExpJune19[[#This Row],[Primary Account]],tblDeprExpJune19[[#This Row],[Primary Name]],tblDeprExpJune19[[#This Row],[Secondary Acct]],tblDeprExpJune19[[#This Row],[Secondary  Name]],tblDeprExpJune19[[#This Row],[Alloc4Func]])","v":"4030000DEPN EXPENSE-ELECT3950000LABORATORY EQUIPMENTSITUS"},"4030000","DEPN EXPENSE-ELECT","3950000","LABORATORY EQUIPMENT","CA",14.622590000000001,{"$f":"IF(OR(tblDeprExpJune19[[#This Row],[Alloc]]=\"IDU\",tblDeprExpJune19[[#This Row],[Alloc]]=\"OR\",tblDeprExpJune19[[#This Row],[Alloc]]=\"UT\",tblDeprExpJune19[[#This Row],[Alloc]]=\"WYU\",tblDeprExpJune19[[#This Row],[Alloc]]=\"WYP\",tblDeprExpJune19[[#This Row],[Alloc]]=\"CA\",tblDeprExpJune19[[#This Row],[Alloc]]=\"WA\"),\"SITUS\",tblDeprExpJune19[[#This Row],[Alloc]])","v":"SITUS"},{"$f":"INDEX(tblDeprExpLookup[FUNC],MATCH(tblDeprExpJune19[[#This Row],[Concat]],tblDeprExpLookup[Concat],0))","v":"G-SITUS"},{"$f":"IF(tblDeprExpJune19[[#This Row],[Total ($000)]]=0,\"NO\",IF(ISNA(tblDeprExpJune19[[#This Row],[FUNC]]),\"YES\",IF(_xlfn.ISFORMULA(tblDeprExpJune19[[#This Row],[FUNC]]),\"NO\",\"YES\")))","v":"NO"}]
[{"$f":"CONCATENATE(tblDeprExpJune19[[#This Row],[Primary Account]],tblDeprExpJune19[[#This Row],[Primary Name]],tblDeprExpJune19[[#This Row],[Secondary Acct]],tblDeprExpJune19[[#This Row],[Secondary  Name]],tblDeprExpJune19[[#This Row],[Alloc4Func]])","v":"4030000DEPN EXPENSE-ELECT3950000LABORATORY EQUIPMENTSITUS"},"4030000","DEPN EXPENSE-ELECT","3950000","LABORATORY EQUIPMENT","IDU",64.714640000000003,{"$f":"IF(OR(tblDeprExpJune19[[#This Row],[Alloc]]=\"IDU\",tblDeprExpJune19[[#This Row],[Alloc]]=\"OR\",tblDeprExpJune19[[#This Row],[Alloc]]=\"UT\",tblDeprExpJune19[[#This Row],[Alloc]]=\"WYU\",tblDeprExpJune19[[#This Row],[Alloc]]=\"WYP\",tblDeprExpJune19[[#This Row],[Alloc]]=\"CA\",tblDeprExpJune19[[#This Row],[Alloc]]=\"WA\"),\"SITUS\",tblDeprExpJune19[[#This Row],[Alloc]])","v":"SITUS"},{"$f":"INDEX(tblDeprExpLookup[FUNC],MATCH(tblDeprExpJune19[[#This Row],[Concat]],tblDeprExpLookup[Concat],0))","v":"G-SITUS"},{"$f":"IF(tblDeprExpJune19[[#This Row],[Total ($000)]]=0,\"NO\",IF(ISNA(tblDeprExpJune19[[#This Row],[FUNC]]),\"YES\",IF(_xlfn.ISFORMULA(tblDeprExpJune19[[#This Row],[FUNC]]),\"NO\",\"YES\")))","v":"NO"}]
[{"$f":"CONCATENATE(tblDeprExpJune19[[#This Row],[Primary Account]],tblDeprExpJune19[[#This Row],[Primary Name]],tblDeprExpJune19[[#This Row],[Secondary Acct]],tblDeprExpJune19[[#This Row],[Secondary  Name]],tblDeprExpJune19[[#This Row],[Alloc4Func]])","v":"4030000DEPN EXPENSE-ELECT3950000LABORATORY EQUIPMENTSITUS"},"4030000","DEPN EXPENSE-ELECT","3950000","LABORATORY EQUIPMENT","OR",390.43529999999998,{"$f":"IF(OR(tblDeprExpJune19[[#This Row],[Alloc]]=\"IDU\",tblDeprExpJune19[[#This Row],[Alloc]]=\"OR\",tblDeprExpJune19[[#This Row],[Alloc]]=\"UT\",tblDeprExpJune19[[#This Row],[Alloc]]=\"WYU\",tblDeprExpJune19[[#This Row],[Alloc]]=\"WYP\",tblDeprExpJune19[[#This Row],[Alloc]]=\"CA\",tblDeprExpJune19[[#This Row],[Alloc]]=\"WA\"),\"SITUS\",tblDeprExpJune19[[#This Row],[Alloc]])","v":"SITUS"},{"$f":"INDEX(tblDeprExpLookup[FUNC],MATCH(tblDeprExpJune19[[#This Row],[Concat]],tblDeprExpLookup[Concat],0))","v":"G-SITUS"},{"$f":"IF(tblDeprExpJune19[[#This Row],[Total ($000)]]=0,\"NO\",IF(ISNA(tblDeprExpJune19[[#This Row],[FUNC]]),\"YES\",IF(_xlfn.ISFORMULA(tblDeprExpJune19[[#This Row],[FUNC]]),\"NO\",\"YES\")))","v":"NO"}]
[{"$f":"CONCATENATE(tblDeprExpJune19[[#This Row],[Primary Account]],tblDeprExpJune19[[#This Row],[Primary Name]],tblDeprExpJune19[[#This Row],[Secondary Acct]],tblDeprExpJune19[[#This Row],[Secondary  Name]],tblDeprExpJune19[[#This Row],[Alloc4Func]])","v":"4030000DEPN EXPENSE-ELECT3950000LABORATORY EQUIPMENTSE"},"4030000","DEPN EXPENSE-ELECT","3950000","LABORATORY EQUIPMENT","SE",54.025109999999998,{"$f":"IF(OR(tblDeprExpJune19[[#This Row],[Alloc]]=\"IDU\",tblDeprExpJune19[[#This Row],[Alloc]]=\"OR\",tblDeprExpJune19[[#This Row],[Alloc]]=\"UT\",tblDeprExpJune19[[#This Row],[Alloc]]=\"WYU\",tblDeprExpJune19[[#This Row],[Alloc]]=\"WYP\",tblDeprExpJune19[[#This Row],[Alloc]]=\"CA\",tblDeprExpJune19[[#This Row],[Alloc]]=\"WA\"),\"SITUS\",tblDeprExpJune19[[#This Row],[Alloc]])","v":"SE"},{"$f":"INDEX(tblDeprExpLookup[FUNC],MATCH(tblDeprExpJune19[[#This Row],[Concat]],tblDeprExpLookup[Concat],0))","v":"P"},{"$f":"IF(tblDeprExpJune19[[#This Row],[Total ($000)]]=0,\"NO\",IF(ISNA(tblDeprExpJune19[[#This Row],[FUNC]]),\"YES\",IF(_xlfn.ISFORMULA(tblDeprExpJune19[[#This Row],[FUNC]]),\"NO\",\"YES\")))","v":"NO"}]
[{"$f":"CONCATENATE(tblDeprExpJune19[[#This Row],[Primary Account]],tblDeprExpJune19[[#This Row],[Primary Name]],tblDeprExpJune19[[#This Row],[Secondary Acct]],tblDeprExpJune19[[#This Row],[Secondary  Name]],tblDeprExpJune19[[#This Row],[Alloc4Func]])","v":"4030000DEPN EXPENSE-ELECT3950000LABORATORY EQUIPMENTSG"},"4030000","DEPN EXPENSE-ELECT","3950000","LABORATORY EQUIPMENT","SG",322.02873,{"$f":"IF(OR(tblDeprExpJune19[[#This Row],[Alloc]]=\"IDU\",tblDeprExpJune19[[#This Row],[Alloc]]=\"OR\",tblDeprExpJune19[[#This Row],[Alloc]]=\"UT\",tblDeprExpJune19[[#This Row],[Alloc]]=\"WYU\",tblDeprExpJune19[[#This Row],[Alloc]]=\"WYP\",tblDeprExpJune19[[#This Row],[Alloc]]=\"CA\",tblDeprExpJune19[[#This Row],[Alloc]]=\"WA\"),\"SITUS\",tblDeprExpJune19[[#This Row],[Alloc]])","v":"SG"},{"$f":"INDEX(tblDeprExpLookup[FUNC],MATCH(tblDeprExpJune19[[#This Row],[Concat]],tblDeprExpLookup[Concat],0))","v":"G-SG"},{"$f":"IF(tblDeprExpJune19[[#This Row],[Total ($000)]]=0,\"NO\",IF(ISNA(tblDeprExpJune19[[#This Row],[FUNC]]),\"YES\",IF(_xlfn.ISFORMULA(tblDeprExpJune19[[#This Row],[FUNC]]),\"NO\",\"YES\")))","v":"NO"}]
[{"$f":"CONCATENATE(tblDeprExpJune19[[#This Row],[Primary Account]],tblDeprExpJune19[[#This Row],[Primary Name]],tblDeprExpJune19[[#This Row],[Secondary Acct]],tblDeprExpJune19[[#This Row],[Secondary  Name]],tblDeprExpJune19[[#This Row],[Alloc4Func]])","v":"4030000DEPN EXPENSE-ELECT3950000LABORATORY EQUIPMENTSO"},"4030000","DEPN EXPENSE-ELECT","3950000","LABORATORY EQUIPMENT","SO",237.91082,{"$f":"IF(OR(tblDeprExpJune19[[#This Row],[Alloc]]=\"IDU\",tblDeprExpJune19[[#This Row],[Alloc]]=\"OR\",tblDeprExpJune19[[#This Row],[Alloc]]=\"UT\",tblDeprExpJune19[[#This Row],[Alloc]]=\"WYU\",tblDeprExpJune19[[#This Row],[Alloc]]=\"WYP\",tblDeprExpJune19[[#This Row],[Alloc]]=\"CA\",tblDeprExpJune19[[#This Row],[Alloc]]=\"WA\"),\"SITUS\",tblDeprExpJune19[[#This Row],[Alloc]])","v":"SO"},{"$f":"INDEX(tblDeprExpLookup[FUNC],MATCH(tblDeprExpJune19[[#This Row],[Concat]],tblDeprExpLookup[Concat],0))","v":"PTD"},{"$f":"IF(tblDeprExpJune19[[#This Row],[Total ($000)]]=0,\"NO\",IF(ISNA(tblDeprExpJune19[[#This Row],[FUNC]]),\"YES\",IF(_xlfn.ISFORMULA(tblDeprExpJune19[[#This Row],[FUNC]]),\"NO\",\"YES\")))","v":"NO"}]
[{"$f":"CONCATENATE(tblDeprExpJune19[[#This Row],[Primary Account]],tblDeprExpJune19[[#This Row],[Primary Name]],tblDeprExpJune19[[#This Row],[Secondary Acct]],tblDeprExpJune19[[#This Row],[Secondary  Name]],tblDeprExpJune19[[#This Row],[Alloc4Func]])","v":"4030000DEPN EXPENSE-ELECT3950000LABORATORY EQUIPMENTSITUS"},"4030000","DEPN EXPENSE-ELECT","3950000","LABORATORY EQUIPMENT","UT",388.29671000000002,{"$f":"IF(OR(tblDeprExpJune19[[#This Row],[Alloc]]=\"IDU\",tblDeprExpJune19[[#This Row],[Alloc]]=\"OR\",tblDeprExpJune19[[#This Row],[Alloc]]=\"UT\",tblDeprExpJune19[[#This Row],[Alloc]]=\"WYU\",tblDeprExpJune19[[#This Row],[Alloc]]=\"WYP\",tblDeprExpJune19[[#This Row],[Alloc]]=\"CA\",tblDeprExpJune19[[#This Row],[Alloc]]=\"WA\"),\"SITUS\",tblDeprExpJune19[[#This Row],[Alloc]])","v":"SITUS"},{"$f":"INDEX(tblDeprExpLookup[FUNC],MATCH(tblDeprExpJune19[[#This Row],[Concat]],tblDeprExpLookup[Concat],0))","v":"G-SITUS"},{"$f":"IF(tblDeprExpJune19[[#This Row],[Total ($000)]]=0,\"NO\",IF(ISNA(tblDeprExpJune19[[#This Row],[FUNC]]),\"YES\",IF(_xlfn.ISFORMULA(tblDeprExpJune19[[#This Row],[FUNC]]),\"NO\",\"YES\")))","v":"NO"}]
[{"$f":"CONCATENATE(tblDeprExpJune19[[#This Row],[Primary Account]],tblDeprExpJune19[[#This Row],[Primary Name]],tblDeprExpJune19[[#This Row],[Secondary Acct]],tblDeprExpJune19[[#This Row],[Secondary  Name]],tblDeprExpJune19[[#This Row],[Alloc4Func]])","v":"4030000DEPN EXPENSE-ELECT3950000LABORATORY EQUIPMENTSITUS"},"4030000","DEPN EXPENSE-ELECT","3950000","LABORATORY EQUIPMENT","WA",63.809330000000003,{"$f":"IF(OR(tblDeprExpJune19[[#This Row],[Alloc]]=\"IDU\",tblDeprExpJune19[[#This Row],[Alloc]]=\"OR\",tblDeprExpJune19[[#This Row],[Alloc]]=\"UT\",tblDeprExpJune19[[#This Row],[Alloc]]=\"WYU\",tblDeprExpJune19[[#This Row],[Alloc]]=\"WYP\",tblDeprExpJune19[[#This Row],[Alloc]]=\"CA\",tblDeprExpJune19[[#This Row],[Alloc]]=\"WA\"),\"SITUS\",tblDeprExpJune19[[#This Row],[Alloc]])","v":"SITUS"},{"$f":"INDEX(tblDeprExpLookup[FUNC],MATCH(tblDeprExpJune19[[#This Row],[Concat]],tblDeprExpLookup[Concat],0))","v":"G-SITUS"},{"$f":"IF(tblDeprExpJune19[[#This Row],[Total ($000)]]=0,\"NO\",IF(ISNA(tblDeprExpJune19[[#This Row],[FUNC]]),\"YES\",IF(_xlfn.ISFORMULA(tblDeprExpJune19[[#This Row],[FUNC]]),\"NO\",\"YES\")))","v":"NO"}]
[{"$f":"CONCATENATE(tblDeprExpJune19[[#This Row],[Primary Account]],tblDeprExpJune19[[#This Row],[Primary Name]],tblDeprExpJune19[[#This Row],[Secondary Acct]],tblDeprExpJune19[[#This Row],[Secondary  Name]],tblDeprExpJune19[[#This Row],[Alloc4Func]])","v":"4030000DEPN EXPENSE-ELECT3950000LABORATORY EQUIPMENTSITUS"},"4030000","DEPN EXPENSE-ELECT","3950000","LABORATORY EQUIPMENT","WYP",123.20592000000001,{"$f":"IF(OR(tblDeprExpJune19[[#This Row],[Alloc]]=\"IDU\",tblDeprExpJune19[[#This Row],[Alloc]]=\"OR\",tblDeprExpJune19[[#This Row],[Alloc]]=\"UT\",tblDeprExpJune19[[#This Row],[Alloc]]=\"WYU\",tblDeprExpJune19[[#This Row],[Alloc]]=\"WYP\",tblDeprExpJune19[[#This Row],[Alloc]]=\"CA\",tblDeprExpJune19[[#This Row],[Alloc]]=\"WA\"),\"SITUS\",tblDeprExpJune19[[#This Row],[Alloc]])","v":"SITUS"},{"$f":"INDEX(tblDeprExpLookup[FUNC],MATCH(tblDeprExpJune19[[#This Row],[Concat]],tblDeprExpLookup[Concat],0))","v":"G-SITUS"},{"$f":"IF(tblDeprExpJune19[[#This Row],[Total ($000)]]=0,\"NO\",IF(ISNA(tblDeprExpJune19[[#This Row],[FUNC]]),\"YES\",IF(_xlfn.ISFORMULA(tblDeprExpJune19[[#This Row],[FUNC]]),\"NO\",\"YES\")))","v":"NO"}]
[{"$f":"CONCATENATE(tblDeprExpJune19[[#This Row],[Primary Account]],tblDeprExpJune19[[#This Row],[Primary Name]],tblDeprExpJune19[[#This Row],[Secondary Acct]],tblDeprExpJune19[[#This Row],[Secondary  Name]],tblDeprExpJune19[[#This Row],[Alloc4Func]])","v":"4030000DEPN EXPENSE-ELECT3950000LABORATORY EQUIPMENTSITUS"},"4030000","DEPN EXPENSE-ELECT","3950000","LABORATORY EQUIPMENT","WYU",6.04,{"$f":"IF(OR(tblDeprExpJune19[[#This Row],[Alloc]]=\"IDU\",tblDeprExpJune19[[#This Row],[Alloc]]=\"OR\",tblDeprExpJune19[[#This Row],[Alloc]]=\"UT\",tblDeprExpJune19[[#This Row],[Alloc]]=\"WYU\",tblDeprExpJune19[[#This Row],[Alloc]]=\"WYP\",tblDeprExpJune19[[#This Row],[Alloc]]=\"CA\",tblDeprExpJune19[[#This Row],[Alloc]]=\"WA\"),\"SITUS\",tblDeprExpJune19[[#This Row],[Alloc]])","v":"SITUS"},{"$f":"INDEX(tblDeprExpLookup[FUNC],MATCH(tblDeprExpJune19[[#This Row],[Concat]],tblDeprExpLookup[Concat],0))","v":"G-SITUS"},{"$f":"IF(tblDeprExpJune19[[#This Row],[Total ($000)]]=0,\"NO\",IF(ISNA(tblDeprExpJune19[[#This Row],[FUNC]]),\"YES\",IF(_xlfn.ISFORMULA(tblDeprExpJune19[[#This Row],[FUNC]]),\"NO\",\"YES\")))","v":"NO"}]
[{"$f":"CONCATENATE(tblDeprExpJune19[[#This Row],[Primary Account]],tblDeprExpJune19[[#This Row],[Primary Name]],tblDeprExpJune19[[#This Row],[Secondary Acct]],tblDeprExpJune19[[#This Row],[Secondary  Name]],tblDeprExpJune19[[#This Row],[Alloc4Func]])","v":"4030000DEPN EXPENSE-ELECT3970000COMMUNICATION EQUIPMENTSITUS"},"4030000","DEPN EXPENSE-ELECT","3970000","COMMUNICATION EQUIPMENT","CA",248.01141000000001,{"$f":"IF(OR(tblDeprExpJune19[[#This Row],[Alloc]]=\"IDU\",tblDeprExpJune19[[#This Row],[Alloc]]=\"OR\",tblDeprExpJune19[[#This Row],[Alloc]]=\"UT\",tblDeprExpJune19[[#This Row],[Alloc]]=\"WYU\",tblDeprExpJune19[[#This Row],[Alloc]]=\"WYP\",tblDeprExpJune19[[#This Row],[Alloc]]=\"CA\",tblDeprExpJune19[[#This Row],[Alloc]]=\"WA\"),\"SITUS\",tblDeprExpJune19[[#This Row],[Alloc]])","v":"SITUS"},{"$f":"INDEX(tblDeprExpLookup[FUNC],MATCH(tblDeprExpJune19[[#This Row],[Concat]],tblDeprExpLookup[Concat],0))","v":"G-SITUS"},{"$f":"IF(tblDeprExpJune19[[#This Row],[Total ($000)]]=0,\"NO\",IF(ISNA(tblDeprExpJune19[[#This Row],[FUNC]]),\"YES\",IF(_xlfn.ISFORMULA(tblDeprExpJune19[[#This Row],[FUNC]]),\"NO\",\"YES\")))","v":"NO"}]
[{"$f":"CONCATENATE(tblDeprExpJune19[[#This Row],[Primary Account]],tblDeprExpJune19[[#This Row],[Primary Name]],tblDeprExpJune19[[#This Row],[Secondary Acct]],tblDeprExpJune19[[#This Row],[Secondary  Name]],tblDeprExpJune19[[#This Row],[Alloc4Func]])","v":"4030000DEPN EXPENSE-ELECT3970000COMMUNICATION EQUIPMENTCN"},"4030000","DEPN EXPENSE-ELECT","3970000","COMMUNICATION EQUIPMENT","CN",165.50706,{"$f":"IF(OR(tblDeprExpJune19[[#This Row],[Alloc]]=\"IDU\",tblDeprExpJune19[[#This Row],[Alloc]]=\"OR\",tblDeprExpJune19[[#This Row],[Alloc]]=\"UT\",tblDeprExpJune19[[#This Row],[Alloc]]=\"WYU\",tblDeprExpJune19[[#This Row],[Alloc]]=\"WYP\",tblDeprExpJune19[[#This Row],[Alloc]]=\"CA\",tblDeprExpJune19[[#This Row],[Alloc]]=\"WA\"),\"SITUS\",tblDeprExpJune19[[#This Row],[Alloc]])","v":"CN"},{"$f":"INDEX(tblDeprExpLookup[FUNC],MATCH(tblDeprExpJune19[[#This Row],[Concat]],tblDeprExpLookup[Concat],0))","v":"CUST"},{"$f":"IF(tblDeprExpJune19[[#This Row],[Total ($000)]]=0,\"NO\",IF(ISNA(tblDeprExpJune19[[#This Row],[FUNC]]),\"YES\",IF(_xlfn.ISFORMULA(tblDeprExpJune19[[#This Row],[FUNC]]),\"NO\",\"YES\")))","v":"NO"}]
[{"$f":"CONCATENATE(tblDeprExpJune19[[#This Row],[Primary Account]],tblDeprExpJune19[[#This Row],[Primary Name]],tblDeprExpJune19[[#This Row],[Secondary Acct]],tblDeprExpJune19[[#This Row],[Secondary  Name]],tblDeprExpJune19[[#This Row],[Alloc4Func]])","v":"4030000DEPN EXPENSE-ELECT3970000COMMUNICATION EQUIPMENTSITUS"},"4030000","DEPN EXPENSE-ELECT","3970000","COMMUNICATION EQUIPMENT","IDU",469.78739000000002,{"$f":"IF(OR(tblDeprExpJune19[[#This Row],[Alloc]]=\"IDU\",tblDeprExpJune19[[#This Row],[Alloc]]=\"OR\",tblDeprExpJune19[[#This Row],[Alloc]]=\"UT\",tblDeprExpJune19[[#This Row],[Alloc]]=\"WYU\",tblDeprExpJune19[[#This Row],[Alloc]]=\"WYP\",tblDeprExpJune19[[#This Row],[Alloc]]=\"CA\",tblDeprExpJune19[[#This Row],[Alloc]]=\"WA\"),\"SITUS\",tblDeprExpJune19[[#This Row],[Alloc]])","v":"SITUS"},{"$f":"INDEX(tblDeprExpLookup[FUNC],MATCH(tblDeprExpJune19[[#This Row],[Concat]],tblDeprExpLookup[Concat],0))","v":"G-SITUS"},{"$f":"IF(tblDeprExpJune19[[#This Row],[Total ($000)]]=0,\"NO\",IF(ISNA(tblDeprExpJune19[[#This Row],[FUNC]]),\"YES\",IF(_xlfn.ISFORMULA(tblDeprExpJune19[[#This Row],[FUNC]]),\"NO\",\"YES\")))","v":"NO"}]
[{"$f":"CONCATENATE(tblDeprExpJune19[[#This Row],[Primary Account]],tblDeprExpJune19[[#This Row],[Primary Name]],tblDeprExpJune19[[#This Row],[Secondary Acct]],tblDeprExpJune19[[#This Row],[Secondary  Name]],tblDeprExpJune19[[#This Row],[Alloc4Func]])","v":"4030000DEPN EXPENSE-ELECT3970000COMMUNICATION EQUIPMENTSITUS"},"4030000","DEPN EXPENSE-ELECT","3970000","COMMUNICATION EQUIPMENT","OR",3016.9095200000002,{"$f":"IF(OR(tblDeprExpJune19[[#This Row],[Alloc]]=\"IDU\",tblDeprExpJune19[[#This Row],[Alloc]]=\"OR\",tblDeprExpJune19[[#This Row],[Alloc]]=\"UT\",tblDeprExpJune19[[#This Row],[Alloc]]=\"WYU\",tblDeprExpJune19[[#This Row],[Alloc]]=\"WYP\",tblDeprExpJune19[[#This Row],[Alloc]]=\"CA\",tblDeprExpJune19[[#This Row],[Alloc]]=\"WA\"),\"SITUS\",tblDeprExpJune19[[#This Row],[Alloc]])","v":"SITUS"},{"$f":"INDEX(tblDeprExpLookup[FUNC],MATCH(tblDeprExpJune19[[#This Row],[Concat]],tblDeprExpLookup[Concat],0))","v":"G-SITUS"},{"$f":"IF(tblDeprExpJune19[[#This Row],[Total ($000)]]=0,\"NO\",IF(ISNA(tblDeprExpJune19[[#This Row],[FUNC]]),\"YES\",IF(_xlfn.ISFORMULA(tblDeprExpJune19[[#This Row],[FUNC]]),\"NO\",\"YES\")))","v":"NO"}]
[{"$f":"CONCATENATE(tblDeprExpJune19[[#This Row],[Primary Account]],tblDeprExpJune19[[#This Row],[Primary Name]],tblDeprExpJune19[[#This Row],[Secondary Acct]],tblDeprExpJune19[[#This Row],[Secondary  Name]],tblDeprExpJune19[[#This Row],[Alloc4Func]])","v":"4030000DEPN EXPENSE-ELECT3970000COMMUNICATION EQUIPMENTSE"},"4030000","DEPN EXPENSE-ELECT","3970000","COMMUNICATION EQUIPMENT","SE",11.15638,{"$f":"IF(OR(tblDeprExpJune19[[#This Row],[Alloc]]=\"IDU\",tblDeprExpJune19[[#This Row],[Alloc]]=\"OR\",tblDeprExpJune19[[#This Row],[Alloc]]=\"UT\",tblDeprExpJune19[[#This Row],[Alloc]]=\"WYU\",tblDeprExpJune19[[#This Row],[Alloc]]=\"WYP\",tblDeprExpJune19[[#This Row],[Alloc]]=\"CA\",tblDeprExpJune19[[#This Row],[Alloc]]=\"WA\"),\"SITUS\",tblDeprExpJune19[[#This Row],[Alloc]])","v":"SE"},{"$f":"INDEX(tblDeprExpLookup[FUNC],MATCH(tblDeprExpJune19[[#This Row],[Concat]],tblDeprExpLookup[Concat],0))","v":"P"},{"$f":"IF(tblDeprExpJune19[[#This Row],[Total ($000)]]=0,\"NO\",IF(ISNA(tblDeprExpJune19[[#This Row],[FUNC]]),\"YES\",IF(_xlfn.ISFORMULA(tblDeprExpJune19[[#This Row],[FUNC]]),\"NO\",\"YES\")))","v":"NO"}]
[{"$f":"CONCATENATE(tblDeprExpJune19[[#This Row],[Primary Account]],tblDeprExpJune19[[#This Row],[Primary Name]],tblDeprExpJune19[[#This Row],[Secondary Acct]],tblDeprExpJune19[[#This Row],[Secondary  Name]],tblDeprExpJune19[[#This Row],[Alloc4Func]])","v":"4030000DEPN EXPENSE-ELECT3970000COMMUNICATION EQUIPMENTSG"},"4030000","DEPN EXPENSE-ELECT","3970000","COMMUNICATION EQUIPMENT","SG",7604.4703,{"$f":"IF(OR(tblDeprExpJune19[[#This Row],[Alloc]]=\"IDU\",tblDeprExpJune19[[#This Row],[Alloc]]=\"OR\",tblDeprExpJune19[[#This Row],[Alloc]]=\"UT\",tblDeprExpJune19[[#This Row],[Alloc]]=\"WYU\",tblDeprExpJune19[[#This Row],[Alloc]]=\"WYP\",tblDeprExpJune19[[#This Row],[Alloc]]=\"CA\",tblDeprExpJune19[[#This Row],[Alloc]]=\"WA\"),\"SITUS\",tblDeprExpJune19[[#This Row],[Alloc]])","v":"SG"},{"$f":"INDEX(tblDeprExpLookup[FUNC],MATCH(tblDeprExpJune19[[#This Row],[Concat]],tblDeprExpLookup[Concat],0))","v":"G-SG"},{"$f":"IF(tblDeprExpJune19[[#This Row],[Total ($000)]]=0,\"NO\",IF(ISNA(tblDeprExpJune19[[#This Row],[FUNC]]),\"YES\",IF(_xlfn.ISFORMULA(tblDeprExpJune19[[#This Row],[FUNC]]),\"NO\",\"YES\")))","v":"NO"}]
[{"$f":"CONCATENATE(tblDeprExpJune19[[#This Row],[Primary Account]],tblDeprExpJune19[[#This Row],[Primary Name]],tblDeprExpJune19[[#This Row],[Secondary Acct]],tblDeprExpJune19[[#This Row],[Secondary  Name]],tblDeprExpJune19[[#This Row],[Alloc4Func]])","v":"4030000DEPN EXPENSE-ELECT3970000COMMUNICATION EQUIPMENTSO"},"4030000","DEPN EXPENSE-ELECT","3970000","COMMUNICATION EQUIPMENT","SO",3924.9867800000002,{"$f":"IF(OR(tblDeprExpJune19[[#This Row],[Alloc]]=\"IDU\",tblDeprExpJune19[[#This Row],[Alloc]]=\"OR\",tblDeprExpJune19[[#This Row],[Alloc]]=\"UT\",tblDeprExpJune19[[#This Row],[Alloc]]=\"WYU\",tblDeprExpJune19[[#This Row],[Alloc]]=\"WYP\",tblDeprExpJune19[[#This Row],[Alloc]]=\"CA\",tblDeprExpJune19[[#This Row],[Alloc]]=\"WA\"),\"SITUS\",tblDeprExpJune19[[#This Row],[Alloc]])","v":"SO"},{"$f":"INDEX(tblDeprExpLookup[FUNC],MATCH(tblDeprExpJune19[[#This Row],[Concat]],tblDeprExpLookup[Concat],0))","v":"PTD"},{"$f":"IF(tblDeprExpJune19[[#This Row],[Total ($000)]]=0,\"NO\",IF(ISNA(tblDeprExpJune19[[#This Row],[FUNC]]),\"YES\",IF(_xlfn.ISFORMULA(tblDeprExpJune19[[#This Row],[FUNC]]),\"NO\",\"YES\")))","v":"NO"}]
[{"$f":"CONCATENATE(tblDeprExpJune19[[#This Row],[Primary Account]],tblDeprExpJune19[[#This Row],[Primary Name]],tblDeprExpJune19[[#This Row],[Secondary Acct]],tblDeprExpJune19[[#This Row],[Secondary  Name]],tblDeprExpJune19[[#This Row],[Alloc4Func]])","v":"4030000DEPN EXPENSE-ELECT3970000COMMUNICATION EQUIPMENTSITUS"},"4030000","DEPN EXPENSE-ELECT","3970000","COMMUNICATION EQUIPMENT","UT",2634.1460900000002,{"$f":"IF(OR(tblDeprExpJune19[[#This Row],[Alloc]]=\"IDU\",tblDeprExpJune19[[#This Row],[Alloc]]=\"OR\",tblDeprExpJune19[[#This Row],[Alloc]]=\"UT\",tblDeprExpJune19[[#This Row],[Alloc]]=\"WYU\",tblDeprExpJune19[[#This Row],[Alloc]]=\"WYP\",tblDeprExpJune19[[#This Row],[Alloc]]=\"CA\",tblDeprExpJune19[[#This Row],[Alloc]]=\"WA\"),\"SITUS\",tblDeprExpJune19[[#This Row],[Alloc]])","v":"SITUS"},{"$f":"INDEX(tblDeprExpLookup[FUNC],MATCH(tblDeprExpJune19[[#This Row],[Concat]],tblDeprExpLookup[Concat],0))","v":"G-SITUS"},{"$f":"IF(tblDeprExpJune19[[#This Row],[Total ($000)]]=0,\"NO\",IF(ISNA(tblDeprExpJune19[[#This Row],[FUNC]]),\"YES\",IF(_xlfn.ISFORMULA(tblDeprExpJune19[[#This Row],[FUNC]]),\"NO\",\"YES\")))","v":"NO"}]
[{"$f":"CONCATENATE(tblDeprExpJune19[[#This Row],[Primary Account]],tblDeprExpJune19[[#This Row],[Primary Name]],tblDeprExpJune19[[#This Row],[Secondary Acct]],tblDeprExpJune19[[#This Row],[Secondary  Name]],tblDeprExpJune19[[#This Row],[Alloc4Func]])","v":"4030000DEPN EXPENSE-ELECT3970000COMMUNICATION EQUIPMENTSITUS"},"4030000","DEPN EXPENSE-ELECT","3970000","COMMUNICATION EQUIPMENT","WA",544.50414999999998,{"$f":"IF(OR(tblDeprExpJune19[[#This Row],[Alloc]]=\"IDU\",tblDeprExpJune19[[#This Row],[Alloc]]=\"OR\",tblDeprExpJune19[[#This Row],[Alloc]]=\"UT\",tblDeprExpJune19[[#This Row],[Alloc]]=\"WYU\",tblDeprExpJune19[[#This Row],[Alloc]]=\"WYP\",tblDeprExpJune19[[#This Row],[Alloc]]=\"CA\",tblDeprExpJune19[[#This Row],[Alloc]]=\"WA\"),\"SITUS\",tblDeprExpJune19[[#This Row],[Alloc]])","v":"SITUS"},{"$f":"INDEX(tblDeprExpLookup[FUNC],MATCH(tblDeprExpJune19[[#This Row],[Concat]],tblDeprExpLookup[Concat],0))","v":"G-SITUS"},{"$f":"IF(tblDeprExpJune19[[#This Row],[Total ($000)]]=0,\"NO\",IF(ISNA(tblDeprExpJune19[[#This Row],[FUNC]]),\"YES\",IF(_xlfn.ISFORMULA(tblDeprExpJune19[[#This Row],[FUNC]]),\"NO\",\"YES\")))","v":"NO"}]
[{"$f":"CONCATENATE(tblDeprExpJune19[[#This Row],[Primary Account]],tblDeprExpJune19[[#This Row],[Primary Name]],tblDeprExpJune19[[#This Row],[Secondary Acct]],tblDeprExpJune19[[#This Row],[Secondary  Name]],tblDeprExpJune19[[#This Row],[Alloc4Func]])","v":"4030000DEPN EXPENSE-ELECT3970000COMMUNICATION EQUIPMENTSITUS"},"4030000","DEPN EXPENSE-ELECT","3970000","COMMUNICATION EQUIPMENT","WYP",1075.6439800000001,{"$f":"IF(OR(tblDeprExpJune19[[#This Row],[Alloc]]=\"IDU\",tblDeprExpJune19[[#This Row],[Alloc]]=\"OR\",tblDeprExpJune19[[#This Row],[Alloc]]=\"UT\",tblDeprExpJune19[[#This Row],[Alloc]]=\"WYU\",tblDeprExpJune19[[#This Row],[Alloc]]=\"WYP\",tblDeprExpJune19[[#This Row],[Alloc]]=\"CA\",tblDeprExpJune19[[#This Row],[Alloc]]=\"WA\"),\"SITUS\",tblDeprExpJune19[[#This Row],[Alloc]])","v":"SITUS"},{"$f":"INDEX(tblDeprExpLookup[FUNC],MATCH(tblDeprExpJune19[[#This Row],[Concat]],tblDeprExpLookup[Concat],0))","v":"G-SITUS"},{"$f":"IF(tblDeprExpJune19[[#This Row],[Total ($000)]]=0,\"NO\",IF(ISNA(tblDeprExpJune19[[#This Row],[FUNC]]),\"YES\",IF(_xlfn.ISFORMULA(tblDeprExpJune19[[#This Row],[FUNC]]),\"NO\",\"YES\")))","v":"NO"}]
[{"$f":"CONCATENATE(tblDeprExpJune19[[#This Row],[Primary Account]],tblDeprExpJune19[[#This Row],[Primary Name]],tblDeprExpJune19[[#This Row],[Secondary Acct]],tblDeprExpJune19[[#This Row],[Secondary  Name]],tblDeprExpJune19[[#This Row],[Alloc4Func]])","v":"4030000DEPN EXPENSE-ELECT3970000COMMUNICATION EQUIPMENTSITUS"},"4030000","DEPN EXPENSE-ELECT","3970000","COMMUNICATION EQUIPMENT","WYU",254.75971999999999,{"$f":"IF(OR(tblDeprExpJune19[[#This Row],[Alloc]]=\"IDU\",tblDeprExpJune19[[#This Row],[Alloc]]=\"OR\",tblDeprExpJune19[[#This Row],[Alloc]]=\"UT\",tblDeprExpJune19[[#This Row],[Alloc]]=\"WYU\",tblDeprExpJune19[[#This Row],[Alloc]]=\"WYP\",tblDeprExpJune19[[#This Row],[Alloc]]=\"CA\",tblDeprExpJune19[[#This Row],[Alloc]]=\"WA\"),\"SITUS\",tblDeprExpJune19[[#This Row],[Alloc]])","v":"SITUS"},{"$f":"INDEX(tblDeprExpLookup[FUNC],MATCH(tblDeprExpJune19[[#This Row],[Concat]],tblDeprExpLookup[Concat],0))","v":"G-SITUS"},{"$f":"IF(tblDeprExpJune19[[#This Row],[Total ($000)]]=0,\"NO\",IF(ISNA(tblDeprExpJune19[[#This Row],[FUNC]]),\"YES\",IF(_xlfn.ISFORMULA(tblDeprExpJune19[[#This Row],[FUNC]]),\"NO\",\"YES\")))","v":"NO"}]
[{"$f":"CONCATENATE(tblDeprExpJune19[[#This Row],[Primary Account]],tblDeprExpJune19[[#This Row],[Primary Name]],tblDeprExpJune19[[#This Row],[Secondary Acct]],tblDeprExpJune19[[#This Row],[Secondary  Name]],tblDeprExpJune19[[#This Row],[Alloc4Func]])","v":"4030000DEPN EXPENSE-ELECT3972000MOBILE RADIO EQUIPMENTSITUS"},"4030000","DEPN EXPENSE-ELECT","3972000","MOBILE RADIO EQUIPMENT","CA",28.174029999999998,{"$f":"IF(OR(tblDeprExpJune19[[#This Row],[Alloc]]=\"IDU\",tblDeprExpJune19[[#This Row],[Alloc]]=\"OR\",tblDeprExpJune19[[#This Row],[Alloc]]=\"UT\",tblDeprExpJune19[[#This Row],[Alloc]]=\"WYU\",tblDeprExpJune19[[#This Row],[Alloc]]=\"WYP\",tblDeprExpJune19[[#This Row],[Alloc]]=\"CA\",tblDeprExpJune19[[#This Row],[Alloc]]=\"WA\"),\"SITUS\",tblDeprExpJune19[[#This Row],[Alloc]])","v":"SITUS"},{"$f":"INDEX(tblDeprExpLookup[FUNC],MATCH(tblDeprExpJune19[[#This Row],[Concat]],tblDeprExpLookup[Concat],0))","v":"G-SITUS"},{"$f":"IF(tblDeprExpJune19[[#This Row],[Total ($000)]]=0,\"NO\",IF(ISNA(tblDeprExpJune19[[#This Row],[FUNC]]),\"YES\",IF(_xlfn.ISFORMULA(tblDeprExpJune19[[#This Row],[FUNC]]),\"NO\",\"YES\")))","v":"NO"}]
[{"$f":"CONCATENATE(tblDeprExpJune19[[#This Row],[Primary Account]],tblDeprExpJune19[[#This Row],[Primary Name]],tblDeprExpJune19[[#This Row],[Secondary Acct]],tblDeprExpJune19[[#This Row],[Secondary  Name]],tblDeprExpJune19[[#This Row],[Alloc4Func]])","v":"4030000DEPN EXPENSE-ELECT3972000MOBILE RADIO EQUIPMENTSITUS"},"4030000","DEPN EXPENSE-ELECT","3972000","MOBILE RADIO EQUIPMENT","IDU",29.763310000000001,{"$f":"IF(OR(tblDeprExpJune19[[#This Row],[Alloc]]=\"IDU\",tblDeprExpJune19[[#This Row],[Alloc]]=\"OR\",tblDeprExpJune19[[#This Row],[Alloc]]=\"UT\",tblDeprExpJune19[[#This Row],[Alloc]]=\"WYU\",tblDeprExpJune19[[#This Row],[Alloc]]=\"WYP\",tblDeprExpJune19[[#This Row],[Alloc]]=\"CA\",tblDeprExpJune19[[#This Row],[Alloc]]=\"WA\"),\"SITUS\",tblDeprExpJune19[[#This Row],[Alloc]])","v":"SITUS"},{"$f":"INDEX(tblDeprExpLookup[FUNC],MATCH(tblDeprExpJune19[[#This Row],[Concat]],tblDeprExpLookup[Concat],0))","v":"G-SITUS"},{"$f":"IF(tblDeprExpJune19[[#This Row],[Total ($000)]]=0,\"NO\",IF(ISNA(tblDeprExpJune19[[#This Row],[FUNC]]),\"YES\",IF(_xlfn.ISFORMULA(tblDeprExpJune19[[#This Row],[FUNC]]),\"NO\",\"YES\")))","v":"NO"}]
[{"$f":"CONCATENATE(tblDeprExpJune19[[#This Row],[Primary Account]],tblDeprExpJune19[[#This Row],[Primary Name]],tblDeprExpJune19[[#This Row],[Secondary Acct]],tblDeprExpJune19[[#This Row],[Secondary  Name]],tblDeprExpJune19[[#This Row],[Alloc4Func]])","v":"4030000DEPN EXPENSE-ELECT3972000MOBILE RADIO EQUIPMENTSITUS"},"4030000","DEPN EXPENSE-ELECT","3972000","MOBILE RADIO EQUIPMENT","OR",230.94323,{"$f":"IF(OR(tblDeprExpJune19[[#This Row],[Alloc]]=\"IDU\",tblDeprExpJune19[[#This Row],[Alloc]]=\"OR\",tblDeprExpJune19[[#This Row],[Alloc]]=\"UT\",tblDeprExpJune19[[#This Row],[Alloc]]=\"WYU\",tblDeprExpJune19[[#This Row],[Alloc]]=\"WYP\",tblDeprExpJune19[[#This Row],[Alloc]]=\"CA\",tblDeprExpJune19[[#This Row],[Alloc]]=\"WA\"),\"SITUS\",tblDeprExpJune19[[#This Row],[Alloc]])","v":"SITUS"},{"$f":"INDEX(tblDeprExpLookup[FUNC],MATCH(tblDeprExpJune19[[#This Row],[Concat]],tblDeprExpLookup[Concat],0))","v":"G-SITUS"},{"$f":"IF(tblDeprExpJune19[[#This Row],[Total ($000)]]=0,\"NO\",IF(ISNA(tblDeprExpJune19[[#This Row],[FUNC]]),\"YES\",IF(_xlfn.ISFORMULA(tblDeprExpJune19[[#This Row],[FUNC]]),\"NO\",\"YES\")))","v":"NO"}]
[{"$f":"CONCATENATE(tblDeprExpJune19[[#This Row],[Primary Account]],tblDeprExpJune19[[#This Row],[Primary Name]],tblDeprExpJune19[[#This Row],[Secondary Acct]],tblDeprExpJune19[[#This Row],[Secondary  Name]],tblDeprExpJune19[[#This Row],[Alloc4Func]])","v":"4030000DEPN EXPENSE-ELECT3972000MOBILE RADIO EQUIPMENTSE"},"4030000","DEPN EXPENSE-ELECT","3972000","MOBILE RADIO EQUIPMENT","SE",7.4672200000000002,{"$f":"IF(OR(tblDeprExpJune19[[#This Row],[Alloc]]=\"IDU\",tblDeprExpJune19[[#This Row],[Alloc]]=\"OR\",tblDeprExpJune19[[#This Row],[Alloc]]=\"UT\",tblDeprExpJune19[[#This Row],[Alloc]]=\"WYU\",tblDeprExpJune19[[#This Row],[Alloc]]=\"WYP\",tblDeprExpJune19[[#This Row],[Alloc]]=\"CA\",tblDeprExpJune19[[#This Row],[Alloc]]=\"WA\"),\"SITUS\",tblDeprExpJune19[[#This Row],[Alloc]])","v":"SE"},{"$f":"INDEX(tblDeprExpLookup[FUNC],MATCH(tblDeprExpJune19[[#This Row],[Concat]],tblDeprExpLookup[Concat],0))","v":"P"},{"$f":"IF(tblDeprExpJune19[[#This Row],[Total ($000)]]=0,\"NO\",IF(ISNA(tblDeprExpJune19[[#This Row],[FUNC]]),\"YES\",IF(_xlfn.ISFORMULA(tblDeprExpJune19[[#This Row],[FUNC]]),\"NO\",\"YES\")))","v":"NO"}]
[{"$f":"CONCATENATE(tblDeprExpJune19[[#This Row],[Primary Account]],tblDeprExpJune19[[#This Row],[Primary Name]],tblDeprExpJune19[[#This Row],[Secondary Acct]],tblDeprExpJune19[[#This Row],[Secondary  Name]],tblDeprExpJune19[[#This Row],[Alloc4Func]])","v":"4030000DEPN EXPENSE-ELECT3972000MOBILE RADIO EQUIPMENTSG"},"4030000","DEPN EXPENSE-ELECT","3972000","MOBILE RADIO EQUIPMENT","SG",367.45465000000002,{"$f":"IF(OR(tblDeprExpJune19[[#This Row],[Alloc]]=\"IDU\",tblDeprExpJune19[[#This Row],[Alloc]]=\"OR\",tblDeprExpJune19[[#This Row],[Alloc]]=\"UT\",tblDeprExpJune19[[#This Row],[Alloc]]=\"WYU\",tblDeprExpJune19[[#This Row],[Alloc]]=\"WYP\",tblDeprExpJune19[[#This Row],[Alloc]]=\"CA\",tblDeprExpJune19[[#This Row],[Alloc]]=\"WA\"),\"SITUS\",tblDeprExpJune19[[#This Row],[Alloc]])","v":"SG"},{"$f":"INDEX(tblDeprExpLookup[FUNC],MATCH(tblDeprExpJune19[[#This Row],[Concat]],tblDeprExpLookup[Concat],0))","v":"G-SG"},{"$f":"IF(tblDeprExpJune19[[#This Row],[Total ($000)]]=0,\"NO\",IF(ISNA(tblDeprExpJune19[[#This Row],[FUNC]]),\"YES\",IF(_xlfn.ISFORMULA(tblDeprExpJune19[[#This Row],[FUNC]]),\"NO\",\"YES\")))","v":"NO"}]
[{"$f":"CONCATENATE(tblDeprExpJune19[[#This Row],[Primary Account]],tblDeprExpJune19[[#This Row],[Primary Name]],tblDeprExpJune19[[#This Row],[Secondary Acct]],tblDeprExpJune19[[#This Row],[Secondary  Name]],tblDeprExpJune19[[#This Row],[Alloc4Func]])","v":"4030000DEPN EXPENSE-ELECT3972000MOBILE RADIO EQUIPMENTSO"},"4030000","DEPN EXPENSE-ELECT","3972000","MOBILE RADIO EQUIPMENT","SO",45.10219,{"$f":"IF(OR(tblDeprExpJune19[[#This Row],[Alloc]]=\"IDU\",tblDeprExpJune19[[#This Row],[Alloc]]=\"OR\",tblDeprExpJune19[[#This Row],[Alloc]]=\"UT\",tblDeprExpJune19[[#This Row],[Alloc]]=\"WYU\",tblDeprExpJune19[[#This Row],[Alloc]]=\"WYP\",tblDeprExpJune19[[#This Row],[Alloc]]=\"CA\",tblDeprExpJune19[[#This Row],[Alloc]]=\"WA\"),\"SITUS\",tblDeprExpJune19[[#This Row],[Alloc]])","v":"SO"},{"$f":"INDEX(tblDeprExpLookup[FUNC],MATCH(tblDeprExpJune19[[#This Row],[Concat]],tblDeprExpLookup[Concat],0))","v":"PTD"},{"$f":"IF(tblDeprExpJune19[[#This Row],[Total ($000)]]=0,\"NO\",IF(ISNA(tblDeprExpJune19[[#This Row],[FUNC]]),\"YES\",IF(_xlfn.ISFORMULA(tblDeprExpJune19[[#This Row],[FUNC]]),\"NO\",\"YES\")))","v":"NO"}]
[{"$f":"CONCATENATE(tblDeprExpJune19[[#This Row],[Primary Account]],tblDeprExpJune19[[#This Row],[Primary Name]],tblDeprExpJune19[[#This Row],[Secondary Acct]],tblDeprExpJune19[[#This Row],[Secondary  Name]],tblDeprExpJune19[[#This Row],[Alloc4Func]])","v":"4030000DEPN EXPENSE-ELECT3972000MOBILE RADIO EQUIPMENTSITUS"},"4030000","DEPN EXPENSE-ELECT","3972000","MOBILE RADIO EQUIPMENT","UT",180.80713,{"$f":"IF(OR(tblDeprExpJune19[[#This Row],[Alloc]]=\"IDU\",tblDeprExpJune19[[#This Row],[Alloc]]=\"OR\",tblDeprExpJune19[[#This Row],[Alloc]]=\"UT\",tblDeprExpJune19[[#This Row],[Alloc]]=\"WYU\",tblDeprExpJune19[[#This Row],[Alloc]]=\"WYP\",tblDeprExpJune19[[#This Row],[Alloc]]=\"CA\",tblDeprExpJune19[[#This Row],[Alloc]]=\"WA\"),\"SITUS\",tblDeprExpJune19[[#This Row],[Alloc]])","v":"SITUS"},{"$f":"INDEX(tblDeprExpLookup[FUNC],MATCH(tblDeprExpJune19[[#This Row],[Concat]],tblDeprExpLookup[Concat],0))","v":"G-SITUS"},{"$f":"IF(tblDeprExpJune19[[#This Row],[Total ($000)]]=0,\"NO\",IF(ISNA(tblDeprExpJune19[[#This Row],[FUNC]]),\"YES\",IF(_xlfn.ISFORMULA(tblDeprExpJune19[[#This Row],[FUNC]]),\"NO\",\"YES\")))","v":"NO"}]
[{"$f":"CONCATENATE(tblDeprExpJune19[[#This Row],[Primary Account]],tblDeprExpJune19[[#This Row],[Primary Name]],tblDeprExpJune19[[#This Row],[Secondary Acct]],tblDeprExpJune19[[#This Row],[Secondary  Name]],tblDeprExpJune19[[#This Row],[Alloc4Func]])","v":"4030000DEPN EXPENSE-ELECT3972000MOBILE RADIO EQUIPMENTSITUS"},"4030000","DEPN EXPENSE-ELECT","3972000","MOBILE RADIO EQUIPMENT","WA",49.314410000000002,{"$f":"IF(OR(tblDeprExpJune19[[#This Row],[Alloc]]=\"IDU\",tblDeprExpJune19[[#This Row],[Alloc]]=\"OR\",tblDeprExpJune19[[#This Row],[Alloc]]=\"UT\",tblDeprExpJune19[[#This Row],[Alloc]]=\"WYU\",tblDeprExpJune19[[#This Row],[Alloc]]=\"WYP\",tblDeprExpJune19[[#This Row],[Alloc]]=\"CA\",tblDeprExpJune19[[#This Row],[Alloc]]=\"WA\"),\"SITUS\",tblDeprExpJune19[[#This Row],[Alloc]])","v":"SITUS"},{"$f":"INDEX(tblDeprExpLookup[FUNC],MATCH(tblDeprExpJune19[[#This Row],[Concat]],tblDeprExpLookup[Concat],0))","v":"G-SITUS"},{"$f":"IF(tblDeprExpJune19[[#This Row],[Total ($000)]]=0,\"NO\",IF(ISNA(tblDeprExpJune19[[#This Row],[FUNC]]),\"YES\",IF(_xlfn.ISFORMULA(tblDeprExpJune19[[#This Row],[FUNC]]),\"NO\",\"YES\")))","v":"NO"}]
[{"$f":"CONCATENATE(tblDeprExpJune19[[#This Row],[Primary Account]],tblDeprExpJune19[[#This Row],[Primary Name]],tblDeprExpJune19[[#This Row],[Secondary Acct]],tblDeprExpJune19[[#This Row],[Secondary  Name]],tblDeprExpJune19[[#This Row],[Alloc4Func]])","v":"4030000DEPN EXPENSE-ELECT3972000MOBILE RADIO EQUIPMENTSITUS"},"4030000","DEPN EXPENSE-ELECT","3972000","MOBILE RADIO EQUIPMENT","WYP",67.571879999999993,{"$f":"IF(OR(tblDeprExpJune19[[#This Row],[Alloc]]=\"IDU\",tblDeprExpJune19[[#This Row],[Alloc]]=\"OR\",tblDeprExpJune19[[#This Row],[Alloc]]=\"UT\",tblDeprExpJune19[[#This Row],[Alloc]]=\"WYU\",tblDeprExpJune19[[#This Row],[Alloc]]=\"WYP\",tblDeprExpJune19[[#This Row],[Alloc]]=\"CA\",tblDeprExpJune19[[#This Row],[Alloc]]=\"WA\"),\"SITUS\",tblDeprExpJune19[[#This Row],[Alloc]])","v":"SITUS"},{"$f":"INDEX(tblDeprExpLookup[FUNC],MATCH(tblDeprExpJune19[[#This Row],[Concat]],tblDeprExpLookup[Concat],0))","v":"G-SITUS"},{"$f":"IF(tblDeprExpJune19[[#This Row],[Total ($000)]]=0,\"NO\",IF(ISNA(tblDeprExpJune19[[#This Row],[FUNC]]),\"YES\",IF(_xlfn.ISFORMULA(tblDeprExpJune19[[#This Row],[FUNC]]),\"NO\",\"YES\")))","v":"NO"}]
[{"$f":"CONCATENATE(tblDeprExpJune19[[#This Row],[Primary Account]],tblDeprExpJune19[[#This Row],[Primary Name]],tblDeprExpJune19[[#This Row],[Secondary Acct]],tblDeprExpJune19[[#This Row],[Secondary  Name]],tblDeprExpJune19[[#This Row],[Alloc4Func]])","v":"4030000DEPN EXPENSE-ELECT3972000MOBILE RADIO EQUIPMENTSITUS"},"4030000","DEPN EXPENSE-ELECT","3972000","MOBILE RADIO EQUIPMENT","WYU",9.4274400000000007,{"$f":"IF(OR(tblDeprExpJune19[[#This Row],[Alloc]]=\"IDU\",tblDeprExpJune19[[#This Row],[Alloc]]=\"OR\",tblDeprExpJune19[[#This Row],[Alloc]]=\"UT\",tblDeprExpJune19[[#This Row],[Alloc]]=\"WYU\",tblDeprExpJune19[[#This Row],[Alloc]]=\"WYP\",tblDeprExpJune19[[#This Row],[Alloc]]=\"CA\",tblDeprExpJune19[[#This Row],[Alloc]]=\"WA\"),\"SITUS\",tblDeprExpJune19[[#This Row],[Alloc]])","v":"SITUS"},{"$f":"INDEX(tblDeprExpLookup[FUNC],MATCH(tblDeprExpJune19[[#This Row],[Concat]],tblDeprExpLookup[Concat],0))","v":"G-SITUS"},{"$f":"IF(tblDeprExpJune19[[#This Row],[Total ($000)]]=0,\"NO\",IF(ISNA(tblDeprExpJune19[[#This Row],[FUNC]]),\"YES\",IF(_xlfn.ISFORMULA(tblDeprExpJune19[[#This Row],[FUNC]]),\"NO\",\"YES\")))","v":"NO"}]
[{"$f":"CONCATENATE(tblDeprExpJune19[[#This Row],[Primary Account]],tblDeprExpJune19[[#This Row],[Primary Name]],tblDeprExpJune19[[#This Row],[Secondary Acct]],tblDeprExpJune19[[#This Row],[Secondary  Name]],tblDeprExpJune19[[#This Row],[Alloc4Func]])","v":"4030000DEPN EXPENSE-ELECT3980000MISCELLANEOUS EQUIPMENTSITUS"},"4030000","DEPN EXPENSE-ELECT","3980000","MISCELLANEOUS EQUIPMENT","CA",2.5078299999999998,{"$f":"IF(OR(tblDeprExpJune19[[#This Row],[Alloc]]=\"IDU\",tblDeprExpJune19[[#This Row],[Alloc]]=\"OR\",tblDeprExpJune19[[#This Row],[Alloc]]=\"UT\",tblDeprExpJune19[[#This Row],[Alloc]]=\"WYU\",tblDeprExpJune19[[#This Row],[Alloc]]=\"WYP\",tblDeprExpJune19[[#This Row],[Alloc]]=\"CA\",tblDeprExpJune19[[#This Row],[Alloc]]=\"WA\"),\"SITUS\",tblDeprExpJune19[[#This Row],[Alloc]])","v":"SITUS"},{"$f":"INDEX(tblDeprExpLookup[FUNC],MATCH(tblDeprExpJune19[[#This Row],[Concat]],tblDeprExpLookup[Concat],0))","v":"G-SITUS"},{"$f":"IF(tblDeprExpJune19[[#This Row],[Total ($000)]]=0,\"NO\",IF(ISNA(tblDeprExpJune19[[#This Row],[FUNC]]),\"YES\",IF(_xlfn.ISFORMULA(tblDeprExpJune19[[#This Row],[FUNC]]),\"NO\",\"YES\")))","v":"NO"}]
[{"$f":"CONCATENATE(tblDeprExpJune19[[#This Row],[Primary Account]],tblDeprExpJune19[[#This Row],[Primary Name]],tblDeprExpJune19[[#This Row],[Secondary Acct]],tblDeprExpJune19[[#This Row],[Secondary  Name]],tblDeprExpJune19[[#This Row],[Alloc4Func]])","v":"4030000DEPN EXPENSE-ELECT3980000MISCELLANEOUS EQUIPMENTCN"},"4030000","DEPN EXPENSE-ELECT","3980000","MISCELLANEOUS EQUIPMENT","CN",3.7269000000000001,{"$f":"IF(OR(tblDeprExpJune19[[#This Row],[Alloc]]=\"IDU\",tblDeprExpJune19[[#This Row],[Alloc]]=\"OR\",tblDeprExpJune19[[#This Row],[Alloc]]=\"UT\",tblDeprExpJune19[[#This Row],[Alloc]]=\"WYU\",tblDeprExpJune19[[#This Row],[Alloc]]=\"WYP\",tblDeprExpJune19[[#This Row],[Alloc]]=\"CA\",tblDeprExpJune19[[#This Row],[Alloc]]=\"WA\"),\"SITUS\",tblDeprExpJune19[[#This Row],[Alloc]])","v":"CN"},{"$f":"INDEX(tblDeprExpLookup[FUNC],MATCH(tblDeprExpJune19[[#This Row],[Concat]],tblDeprExpLookup[Concat],0))","v":"CUST"},{"$f":"IF(tblDeprExpJune19[[#This Row],[Total ($000)]]=0,\"NO\",IF(ISNA(tblDeprExpJune19[[#This Row],[FUNC]]),\"YES\",IF(_xlfn.ISFORMULA(tblDeprExpJune19[[#This Row],[FUNC]]),\"NO\",\"YES\")))","v":"NO"}]
[{"$f":"CONCATENATE(tblDeprExpJune19[[#This Row],[Primary Account]],tblDeprExpJune19[[#This Row],[Primary Name]],tblDeprExpJune19[[#This Row],[Secondary Acct]],tblDeprExpJune19[[#This Row],[Secondary  Name]],tblDeprExpJune19[[#This Row],[Alloc4Func]])","v":"4030000DEPN EXPENSE-ELECT3980000MISCELLANEOUS EQUIPMENTSITUS"},"4030000","DEPN EXPENSE-ELECT","3980000","MISCELLANEOUS EQUIPMENT","IDU",4.0062499999999996,{"$f":"IF(OR(tblDeprExpJune19[[#This Row],[Alloc]]=\"IDU\",tblDeprExpJune19[[#This Row],[Alloc]]=\"OR\",tblDeprExpJune19[[#This Row],[Alloc]]=\"UT\",tblDeprExpJune19[[#This Row],[Alloc]]=\"WYU\",tblDeprExpJune19[[#This Row],[Alloc]]=\"WYP\",tblDeprExpJune19[[#This Row],[Alloc]]=\"CA\",tblDeprExpJune19[[#This Row],[Alloc]]=\"WA\"),\"SITUS\",tblDeprExpJune19[[#This Row],[Alloc]])","v":"SITUS"},{"$f":"INDEX(tblDeprExpLookup[FUNC],MATCH(tblDeprExpJune19[[#This Row],[Concat]],tblDeprExpLookup[Concat],0))","v":"G-SITUS"},{"$f":"IF(tblDeprExpJune19[[#This Row],[Total ($000)]]=0,\"NO\",IF(ISNA(tblDeprExpJune19[[#This Row],[FUNC]]),\"YES\",IF(_xlfn.ISFORMULA(tblDeprExpJune19[[#This Row],[FUNC]]),\"NO\",\"YES\")))","v":"NO"}]
[{"$f":"CONCATENATE(tblDeprExpJune19[[#This Row],[Primary Account]],tblDeprExpJune19[[#This Row],[Primary Name]],tblDeprExpJune19[[#This Row],[Secondary Acct]],tblDeprExpJune19[[#This Row],[Secondary  Name]],tblDeprExpJune19[[#This Row],[Alloc4Func]])","v":"4030000DEPN EXPENSE-ELECT3980000MISCELLANEOUS EQUIPMENTSITUS"},"4030000","DEPN EXPENSE-ELECT","3980000","MISCELLANEOUS EQUIPMENT","OR",53.8005,{"$f":"IF(OR(tblDeprExpJune19[[#This Row],[Alloc]]=\"IDU\",tblDeprExpJune19[[#This Row],[Alloc]]=\"OR\",tblDeprExpJune19[[#This Row],[Alloc]]=\"UT\",tblDeprExpJune19[[#This Row],[Alloc]]=\"WYU\",tblDeprExpJune19[[#This Row],[Alloc]]=\"WYP\",tblDeprExpJune19[[#This Row],[Alloc]]=\"CA\",tblDeprExpJune19[[#This Row],[Alloc]]=\"WA\"),\"SITUS\",tblDeprExpJune19[[#This Row],[Alloc]])","v":"SITUS"},{"$f":"INDEX(tblDeprExpLookup[FUNC],MATCH(tblDeprExpJune19[[#This Row],[Concat]],tblDeprExpLookup[Concat],0))","v":"G-SITUS"},{"$f":"IF(tblDeprExpJune19[[#This Row],[Total ($000)]]=0,\"NO\",IF(ISNA(tblDeprExpJune19[[#This Row],[FUNC]]),\"YES\",IF(_xlfn.ISFORMULA(tblDeprExpJune19[[#This Row],[FUNC]]),\"NO\",\"YES\")))","v":"NO"}]
[{"$f":"CONCATENATE(tblDeprExpJune19[[#This Row],[Primary Account]],tblDeprExpJune19[[#This Row],[Primary Name]],tblDeprExpJune19[[#This Row],[Secondary Acct]],tblDeprExpJune19[[#This Row],[Secondary  Name]],tblDeprExpJune19[[#This Row],[Alloc4Func]])","v":"4030000DEPN EXPENSE-ELECT3980000MISCELLANEOUS EQUIPMENTSE"},"4030000","DEPN EXPENSE-ELECT","3980000","MISCELLANEOUS EQUIPMENT","SE",0.19828999999999999,{"$f":"IF(OR(tblDeprExpJune19[[#This Row],[Alloc]]=\"IDU\",tblDeprExpJune19[[#This Row],[Alloc]]=\"OR\",tblDeprExpJune19[[#This Row],[Alloc]]=\"UT\",tblDeprExpJune19[[#This Row],[Alloc]]=\"WYU\",tblDeprExpJune19[[#This Row],[Alloc]]=\"WYP\",tblDeprExpJune19[[#This Row],[Alloc]]=\"CA\",tblDeprExpJune19[[#This Row],[Alloc]]=\"WA\"),\"SITUS\",tblDeprExpJune19[[#This Row],[Alloc]])","v":"SE"},{"$f":"INDEX(tblDeprExpLookup[FUNC],MATCH(tblDeprExpJune19[[#This Row],[Concat]],tblDeprExpLookup[Concat],0))","v":"P"},{"$f":"IF(tblDeprExpJune19[[#This Row],[Total ($000)]]=0,\"NO\",IF(ISNA(tblDeprExpJune19[[#This Row],[FUNC]]),\"YES\",IF(_xlfn.ISFORMULA(tblDeprExpJune19[[#This Row],[FUNC]]),\"NO\",\"YES\")))","v":"NO"}]
[{"$f":"CONCATENATE(tblDeprExpJune19[[#This Row],[Primary Account]],tblDeprExpJune19[[#This Row],[Primary Name]],tblDeprExpJune19[[#This Row],[Secondary Acct]],tblDeprExpJune19[[#This Row],[Secondary  Name]],tblDeprExpJune19[[#This Row],[Alloc4Func]])","v":"4030000DEPN EXPENSE-ELECT3980000MISCELLANEOUS EQUIPMENTSG"},"4030000","DEPN EXPENSE-ELECT","3980000","MISCELLANEOUS EQUIPMENT","SG",132.16842,{"$f":"IF(OR(tblDeprExpJune19[[#This Row],[Alloc]]=\"IDU\",tblDeprExpJune19[[#This Row],[Alloc]]=\"OR\",tblDeprExpJune19[[#This Row],[Alloc]]=\"UT\",tblDeprExpJune19[[#This Row],[Alloc]]=\"WYU\",tblDeprExpJune19[[#This Row],[Alloc]]=\"WYP\",tblDeprExpJune19[[#This Row],[Alloc]]=\"CA\",tblDeprExpJune19[[#This Row],[Alloc]]=\"WA\"),\"SITUS\",tblDeprExpJune19[[#This Row],[Alloc]])","v":"SG"},{"$f":"INDEX(tblDeprExpLookup[FUNC],MATCH(tblDeprExpJune19[[#This Row],[Concat]],tblDeprExpLookup[Concat],0))","v":"G-SG"},{"$f":"IF(tblDeprExpJune19[[#This Row],[Total ($000)]]=0,\"NO\",IF(ISNA(tblDeprExpJune19[[#This Row],[FUNC]]),\"YES\",IF(_xlfn.ISFORMULA(tblDeprExpJune19[[#This Row],[FUNC]]),\"NO\",\"YES\")))","v":"NO"}]
[{"$f":"CONCATENATE(tblDeprExpJune19[[#This Row],[Primary Account]],tblDeprExpJune19[[#This Row],[Primary Name]],tblDeprExpJune19[[#This Row],[Secondary Acct]],tblDeprExpJune19[[#This Row],[Secondary  Name]],tblDeprExpJune19[[#This Row],[Alloc4Func]])","v":"4030000DEPN EXPENSE-ELECT3980000MISCELLANEOUS EQUIPMENTSO"},"4030000","DEPN EXPENSE-ELECT","3980000","MISCELLANEOUS EQUIPMENT","SO",109.87815999999999,{"$f":"IF(OR(tblDeprExpJune19[[#This Row],[Alloc]]=\"IDU\",tblDeprExpJune19[[#This Row],[Alloc]]=\"OR\",tblDeprExpJune19[[#This Row],[Alloc]]=\"UT\",tblDeprExpJune19[[#This Row],[Alloc]]=\"WYU\",tblDeprExpJune19[[#This Row],[Alloc]]=\"WYP\",tblDeprExpJune19[[#This Row],[Alloc]]=\"CA\",tblDeprExpJune19[[#This Row],[Alloc]]=\"WA\"),\"SITUS\",tblDeprExpJune19[[#This Row],[Alloc]])","v":"SO"},{"$f":"INDEX(tblDeprExpLookup[FUNC],MATCH(tblDeprExpJune19[[#This Row],[Concat]],tblDeprExpLookup[Concat],0))","v":"PTD"},{"$f":"IF(tblDeprExpJune19[[#This Row],[Total ($000)]]=0,\"NO\",IF(ISNA(tblDeprExpJune19[[#This Row],[FUNC]]),\"YES\",IF(_xlfn.ISFORMULA(tblDeprExpJune19[[#This Row],[FUNC]]),\"NO\",\"YES\")))","v":"NO"}]
[{"$f":"CONCATENATE(tblDeprExpJune19[[#This Row],[Primary Account]],tblDeprExpJune19[[#This Row],[Primary Name]],tblDeprExpJune19[[#This Row],[Secondary Acct]],tblDeprExpJune19[[#This Row],[Secondary  Name]],tblDeprExpJune19[[#This Row],[Alloc4Func]])","v":"4030000DEPN EXPENSE-ELECT3980000MISCELLANEOUS EQUIPMENTSITUS"},"4030000","DEPN EXPENSE-ELECT","3980000","MISCELLANEOUS EQUIPMENT","UT",64.995260000000002,{"$f":"IF(OR(tblDeprExpJune19[[#This Row],[Alloc]]=\"IDU\",tblDeprExpJune19[[#This Row],[Alloc]]=\"OR\",tblDeprExpJune19[[#This Row],[Alloc]]=\"UT\",tblDeprExpJune19[[#This Row],[Alloc]]=\"WYU\",tblDeprExpJune19[[#This Row],[Alloc]]=\"WYP\",tblDeprExpJune19[[#This Row],[Alloc]]=\"CA\",tblDeprExpJune19[[#This Row],[Alloc]]=\"WA\"),\"SITUS\",tblDeprExpJune19[[#This Row],[Alloc]])","v":"SITUS"},{"$f":"INDEX(tblDeprExpLookup[FUNC],MATCH(tblDeprExpJune19[[#This Row],[Concat]],tblDeprExpLookup[Concat],0))","v":"G-SITUS"},{"$f":"IF(tblDeprExpJune19[[#This Row],[Total ($000)]]=0,\"NO\",IF(ISNA(tblDeprExpJune19[[#This Row],[FUNC]]),\"YES\",IF(_xlfn.ISFORMULA(tblDeprExpJune19[[#This Row],[FUNC]]),\"NO\",\"YES\")))","v":"NO"}]
[{"$f":"CONCATENATE(tblDeprExpJune19[[#This Row],[Primary Account]],tblDeprExpJune19[[#This Row],[Primary Name]],tblDeprExpJune19[[#This Row],[Secondary Acct]],tblDeprExpJune19[[#This Row],[Secondary  Name]],tblDeprExpJune19[[#This Row],[Alloc4Func]])","v":"4030000DEPN EXPENSE-ELECT3980000MISCELLANEOUS EQUIPMENTSITUS"},"4030000","DEPN EXPENSE-ELECT","3980000","MISCELLANEOUS EQUIPMENT","WA",9.0481599999999993,{"$f":"IF(OR(tblDeprExpJune19[[#This Row],[Alloc]]=\"IDU\",tblDeprExpJune19[[#This Row],[Alloc]]=\"OR\",tblDeprExpJune19[[#This Row],[Alloc]]=\"UT\",tblDeprExpJune19[[#This Row],[Alloc]]=\"WYU\",tblDeprExpJune19[[#This Row],[Alloc]]=\"WYP\",tblDeprExpJune19[[#This Row],[Alloc]]=\"CA\",tblDeprExpJune19[[#This Row],[Alloc]]=\"WA\"),\"SITUS\",tblDeprExpJune19[[#This Row],[Alloc]])","v":"SITUS"},{"$f":"INDEX(tblDeprExpLookup[FUNC],MATCH(tblDeprExpJune19[[#This Row],[Concat]],tblDeprExpLookup[Concat],0))","v":"G-SITUS"},{"$f":"IF(tblDeprExpJune19[[#This Row],[Total ($000)]]=0,\"NO\",IF(ISNA(tblDeprExpJune19[[#This Row],[FUNC]]),\"YES\",IF(_xlfn.ISFORMULA(tblDeprExpJune19[[#This Row],[FUNC]]),\"NO\",\"YES\")))","v":"NO"}]
[{"$f":"CONCATENATE(tblDeprExpJune19[[#This Row],[Primary Account]],tblDeprExpJune19[[#This Row],[Primary Name]],tblDeprExpJune19[[#This Row],[Secondary Acct]],tblDeprExpJune19[[#This Row],[Secondary  Name]],tblDeprExpJune19[[#This Row],[Alloc4Func]])","v":"4030000DEPN EXPENSE-ELECT3980000MISCELLANEOUS EQUIPMENTSITUS"},"4030000","DEPN EXPENSE-ELECT","3980000","MISCELLANEOUS EQUIPMENT","WYP",8.3804200000000009,{"$f":"IF(OR(tblDeprExpJune19[[#This Row],[Alloc]]=\"IDU\",tblDeprExpJune19[[#This Row],[Alloc]]=\"OR\",tblDeprExpJune19[[#This Row],[Alloc]]=\"UT\",tblDeprExpJune19[[#This Row],[Alloc]]=\"WYU\",tblDeprExpJune19[[#This Row],[Alloc]]=\"WYP\",tblDeprExpJune19[[#This Row],[Alloc]]=\"CA\",tblDeprExpJune19[[#This Row],[Alloc]]=\"WA\"),\"SITUS\",tblDeprExpJune19[[#This Row],[Alloc]])","v":"SITUS"},{"$f":"INDEX(tblDeprExpLookup[FUNC],MATCH(tblDeprExpJune19[[#This Row],[Concat]],tblDeprExpLookup[Concat],0))","v":"G-SITUS"},{"$f":"IF(tblDeprExpJune19[[#This Row],[Total ($000)]]=0,\"NO\",IF(ISNA(tblDeprExpJune19[[#This Row],[FUNC]]),\"YES\",IF(_xlfn.ISFORMULA(tblDeprExpJune19[[#This Row],[FUNC]]),\"NO\",\"YES\")))","v":"NO"}]
[{"$f":"CONCATENATE(tblDeprExpJune19[[#This Row],[Primary Account]],tblDeprExpJune19[[#This Row],[Primary Name]],tblDeprExpJune19[[#This Row],[Secondary Acct]],tblDeprExpJune19[[#This Row],[Secondary  Name]],tblDeprExpJune19[[#This Row],[Alloc4Func]])","v":"4030000DEPN EXPENSE-ELECT3980000MISCELLANEOUS EQUIPMENTSITUS"},"4030000","DEPN EXPENSE-ELECT","3980000","MISCELLANEOUS EQUIPMENT","WYU",1.50508,{"$f":"IF(OR(tblDeprExpJune19[[#This Row],[Alloc]]=\"IDU\",tblDeprExpJune19[[#This Row],[Alloc]]=\"OR\",tblDeprExpJune19[[#This Row],[Alloc]]=\"UT\",tblDeprExpJune19[[#This Row],[Alloc]]=\"WYU\",tblDeprExpJune19[[#This Row],[Alloc]]=\"WYP\",tblDeprExpJune19[[#This Row],[Alloc]]=\"CA\",tblDeprExpJune19[[#This Row],[Alloc]]=\"WA\"),\"SITUS\",tblDeprExpJune19[[#This Row],[Alloc]])","v":"SITUS"},{"$f":"INDEX(tblDeprExpLookup[FUNC],MATCH(tblDeprExpJune19[[#This Row],[Concat]],tblDeprExpLookup[Concat],0))","v":"G-SITUS"},{"$f":"IF(tblDeprExpJune19[[#This Row],[Total ($000)]]=0,\"NO\",IF(ISNA(tblDeprExpJune19[[#This Row],[FUNC]]),\"YES\",IF(_xlfn.ISFORMULA(tblDeprExpJune19[[#This Row],[FUNC]]),\"NO\",\"YES\")))","v":"NO"}]
[{"$f":"CONCATENATE(tblDeprExpJune19[[#This Row],[Primary Account]],tblDeprExpJune19[[#This Row],[Primary Name]],tblDeprExpJune19[[#This Row],[Secondary Acct]],tblDeprExpJune19[[#This Row],[Secondary  Name]],tblDeprExpJune19[[#This Row],[Alloc4Func]])","v":"4032000DEPR - STEAM565131DEPR - PROD STEAM NOT CLASSIFIEDSG"},"4032000","DEPR - STEAM","565131","DEPR - PROD STEAM NOT CLASSIFIED","SG",-2125.0486999999998,{"$f":"IF(OR(tblDeprExpJune19[[#This Row],[Alloc]]=\"IDU\",tblDeprExpJune19[[#This Row],[Alloc]]=\"OR\",tblDeprExpJune19[[#This Row],[Alloc]]=\"UT\",tblDeprExpJune19[[#This Row],[Alloc]]=\"WYU\",tblDeprExpJune19[[#This Row],[Alloc]]=\"WYP\",tblDeprExpJune19[[#This Row],[Alloc]]=\"CA\",tblDeprExpJune19[[#This Row],[Alloc]]=\"WA\"),\"SITUS\",tblDeprExpJune19[[#This Row],[Alloc]])","v":"SG"},{"$f":"INDEX(tblDeprExpLookup[FUNC],MATCH(tblDeprExpJune19[[#This Row],[Concat]],tblDeprExpLookup[Concat],0))","v":"P"},{"$f":"IF(tblDeprExpJune19[[#This Row],[Total ($000)]]=0,\"NO\",IF(ISNA(tblDeprExpJune19[[#This Row],[FUNC]]),\"YES\",IF(_xlfn.ISFORMULA(tblDeprExpJune19[[#This Row],[FUNC]]),\"NO\",\"YES\")))","v":"NO"}]
[{"$f":"CONCATENATE(tblDeprExpJune19[[#This Row],[Primary Account]],tblDeprExpJune19[[#This Row],[Primary Name]],tblDeprExpJune19[[#This Row],[Secondary Acct]],tblDeprExpJune19[[#This Row],[Secondary  Name]],tblDeprExpJune19[[#This Row],[Alloc4Func]])","v":"4033000DEPR - HYDRO565133DEPR - PROD HYDRO NOT CLASSIFIEDSG-P"},"4033000","DEPR - HYDRO","565133","DEPR - PROD HYDRO NOT CLASSIFIED","SG-P",2190.0986800000001,{"$f":"IF(OR(tblDeprExpJune19[[#This Row],[Alloc]]=\"IDU\",tblDeprExpJune19[[#This Row],[Alloc]]=\"OR\",tblDeprExpJune19[[#This Row],[Alloc]]=\"UT\",tblDeprExpJune19[[#This Row],[Alloc]]=\"WYU\",tblDeprExpJune19[[#This Row],[Alloc]]=\"WYP\",tblDeprExpJune19[[#This Row],[Alloc]]=\"CA\",tblDeprExpJune19[[#This Row],[Alloc]]=\"WA\"),\"SITUS\",tblDeprExpJune19[[#This Row],[Alloc]])","v":"SG-P"},{"$f":"INDEX(tblDeprExpLookup[FUNC],MATCH(tblDeprExpJune19[[#This Row],[Concat]],tblDeprExpLookup[Concat],0))","v":"P"},{"$f":"IF(tblDeprExpJune19[[#This Row],[Total ($000)]]=0,\"NO\",IF(ISNA(tblDeprExpJune19[[#This Row],[FUNC]]),\"YES\",IF(_xlfn.ISFORMULA(tblDeprExpJune19[[#This Row],[FUNC]]),\"NO\",\"YES\")))","v":"NO"}]
[{"$f":"CONCATENATE(tblDeprExpJune19[[#This Row],[Primary Account]],tblDeprExpJune19[[#This Row],[Primary Name]],tblDeprExpJune19[[#This Row],[Secondary Acct]],tblDeprExpJune19[[#This Row],[Secondary  Name]],tblDeprExpJune19[[#This Row],[Alloc4Func]])","v":"4033000DEPR - HYDRO565133DEPR - PROD HYDRO NOT CLASSIFIEDSG-U"},"4033000","DEPR - HYDRO","565133","DEPR - PROD HYDRO NOT CLASSIFIED","SG-U",-245.45394999999999,{"$f":"IF(OR(tblDeprExpJune19[[#This Row],[Alloc]]=\"IDU\",tblDeprExpJune19[[#This Row],[Alloc]]=\"OR\",tblDeprExpJune19[[#This Row],[Alloc]]=\"UT\",tblDeprExpJune19[[#This Row],[Alloc]]=\"WYU\",tblDeprExpJune19[[#This Row],[Alloc]]=\"WYP\",tblDeprExpJune19[[#This Row],[Alloc]]=\"CA\",tblDeprExpJune19[[#This Row],[Alloc]]=\"WA\"),\"SITUS\",tblDeprExpJune19[[#This Row],[Alloc]])","v":"SG-U"},{"$f":"INDEX(tblDeprExpLookup[FUNC],MATCH(tblDeprExpJune19[[#This Row],[Concat]],tblDeprExpLookup[Concat],0))","v":"P"},{"$f":"IF(tblDeprExpJune19[[#This Row],[Total ($000)]]=0,\"NO\",IF(ISNA(tblDeprExpJune19[[#This Row],[FUNC]]),\"YES\",IF(_xlfn.ISFORMULA(tblDeprExpJune19[[#This Row],[FUNC]]),\"NO\",\"YES\")))","v":"NO"}]
[{"$f":"CONCATENATE(tblDeprExpJune19[[#This Row],[Primary Account]],tblDeprExpJune19[[#This Row],[Primary Name]],tblDeprExpJune19[[#This Row],[Secondary Acct]],tblDeprExpJune19[[#This Row],[Secondary  Name]],tblDeprExpJune19[[#This Row],[Alloc4Func]])","v":"4034000DEPR - OTHER565134DEPR - PROD OTHER NOT CLASSIFIEDSG"},"4034000","DEPR - OTHER","565134","DEPR - PROD OTHER NOT CLASSIFIED","SG",829.97761000000003,{"$f":"IF(OR(tblDeprExpJune19[[#This Row],[Alloc]]=\"IDU\",tblDeprExpJune19[[#This Row],[Alloc]]=\"OR\",tblDeprExpJune19[[#This Row],[Alloc]]=\"UT\",tblDeprExpJune19[[#This Row],[Alloc]]=\"WYU\",tblDeprExpJune19[[#This Row],[Alloc]]=\"WYP\",tblDeprExpJune19[[#This Row],[Alloc]]=\"CA\",tblDeprExpJune19[[#This Row],[Alloc]]=\"WA\"),\"SITUS\",tblDeprExpJune19[[#This Row],[Alloc]])","v":"SG"},{"$f":"INDEX(tblDeprExpLookup[FUNC],MATCH(tblDeprExpJune19[[#This Row],[Concat]],tblDeprExpLookup[Concat],0))","v":"P"},{"$f":"IF(tblDeprExpJune19[[#This Row],[Total ($000)]]=0,\"NO\",IF(ISNA(tblDeprExpJune19[[#This Row],[FUNC]]),\"YES\",IF(_xlfn.ISFORMULA(tblDeprExpJune19[[#This Row],[FUNC]]),\"NO\",\"YES\")))","v":"NO"}]
[{"$f":"CONCATENATE(tblDeprExpJune19[[#This Row],[Primary Account]],tblDeprExpJune19[[#This Row],[Primary Name]],tblDeprExpJune19[[#This Row],[Secondary Acct]],tblDeprExpJune19[[#This Row],[Secondary  Name]],tblDeprExpJune19[[#This Row],[Alloc4Func]])","v":"4035000DEPR-TRANSMISSION565141DEPR - TRANS ASSETS NOT CLASSIFIEDSG"},"4035000","DEPR-TRANSMISSION","565141","DEPR - TRANS ASSETS NOT CLASSIFIED","SG",1799.85187,{"$f":"IF(OR(tblDeprExpJune19[[#This Row],[Alloc]]=\"IDU\",tblDeprExpJune19[[#This Row],[Alloc]]=\"OR\",tblDeprExpJune19[[#This Row],[Alloc]]=\"UT\",tblDeprExpJune19[[#This Row],[Alloc]]=\"WYU\",tblDeprExpJune19[[#This Row],[Alloc]]=\"WYP\",tblDeprExpJune19[[#This Row],[Alloc]]=\"CA\",tblDeprExpJune19[[#This Row],[Alloc]]=\"WA\"),\"SITUS\",tblDeprExpJune19[[#This Row],[Alloc]])","v":"SG"},{"$f":"INDEX(tblDeprExpLookup[FUNC],MATCH(tblDeprExpJune19[[#This Row],[Concat]],tblDeprExpLookup[Concat],0))","v":"T"},{"$f":"IF(tblDeprExpJune19[[#This Row],[Total ($000)]]=0,\"NO\",IF(ISNA(tblDeprExpJune19[[#This Row],[FUNC]]),\"YES\",IF(_xlfn.ISFORMULA(tblDeprExpJune19[[#This Row],[FUNC]]),\"NO\",\"YES\")))","v":"NO"}]
[{"$f":"CONCATENATE(tblDeprExpJune19[[#This Row],[Primary Account]],tblDeprExpJune19[[#This Row],[Primary Name]],tblDeprExpJune19[[#This Row],[Secondary Acct]],tblDeprExpJune19[[#This Row],[Secondary  Name]],tblDeprExpJune19[[#This Row],[Alloc4Func]])","v":"4036000DEPR-DISTRIBUTION565161DEPR - DIST ASSETS NOT CLASSIFIEDSITUS"},"4036000","DEPR-DISTRIBUTION","565161","DEPR - DIST ASSETS NOT CLASSIFIED","CA",86.141210000000001,{"$f":"IF(OR(tblDeprExpJune19[[#This Row],[Alloc]]=\"IDU\",tblDeprExpJune19[[#This Row],[Alloc]]=\"OR\",tblDeprExpJune19[[#This Row],[Alloc]]=\"UT\",tblDeprExpJune19[[#This Row],[Alloc]]=\"WYU\",tblDeprExpJune19[[#This Row],[Alloc]]=\"WYP\",tblDeprExpJune19[[#This Row],[Alloc]]=\"CA\",tblDeprExpJune19[[#This Row],[Alloc]]=\"WA\"),\"SITUS\",tblDeprExpJune19[[#This Row],[Alloc]])","v":"SITUS"},{"$f":"INDEX(tblDeprExpLookup[FUNC],MATCH(tblDeprExpJune19[[#This Row],[Concat]],tblDeprExpLookup[Concat],0))","v":"DPW"},{"$f":"IF(tblDeprExpJune19[[#This Row],[Total ($000)]]=0,\"NO\",IF(ISNA(tblDeprExpJune19[[#This Row],[FUNC]]),\"YES\",IF(_xlfn.ISFORMULA(tblDeprExpJune19[[#This Row],[FUNC]]),\"NO\",\"YES\")))","v":"NO"}]
[{"$f":"CONCATENATE(tblDeprExpJune19[[#This Row],[Primary Account]],tblDeprExpJune19[[#This Row],[Primary Name]],tblDeprExpJune19[[#This Row],[Secondary Acct]],tblDeprExpJune19[[#This Row],[Secondary  Name]],tblDeprExpJune19[[#This Row],[Alloc4Func]])","v":"4036000DEPR-DISTRIBUTION565161DEPR - DIST ASSETS NOT CLASSIFIEDSITUS"},"4036000","DEPR-DISTRIBUTION","565161","DEPR - DIST ASSETS NOT CLASSIFIED","IDU",-2448.82566,{"$f":"IF(OR(tblDeprExpJune19[[#This Row],[Alloc]]=\"IDU\",tblDeprExpJune19[[#This Row],[Alloc]]=\"OR\",tblDeprExpJune19[[#This Row],[Alloc]]=\"UT\",tblDeprExpJune19[[#This Row],[Alloc]]=\"WYU\",tblDeprExpJune19[[#This Row],[Alloc]]=\"WYP\",tblDeprExpJune19[[#This Row],[Alloc]]=\"CA\",tblDeprExpJune19[[#This Row],[Alloc]]=\"WA\"),\"SITUS\",tblDeprExpJune19[[#This Row],[Alloc]])","v":"SITUS"},{"$f":"INDEX(tblDeprExpLookup[FUNC],MATCH(tblDeprExpJune19[[#This Row],[Concat]],tblDeprExpLookup[Concat],0))","v":"DPW"},{"$f":"IF(tblDeprExpJune19[[#This Row],[Total ($000)]]=0,\"NO\",IF(ISNA(tblDeprExpJune19[[#This Row],[FUNC]]),\"YES\",IF(_xlfn.ISFORMULA(tblDeprExpJune19[[#This Row],[FUNC]]),\"NO\",\"YES\")))","v":"NO"}]
[{"$f":"CONCATENATE(tblDeprExpJune19[[#This Row],[Primary Account]],tblDeprExpJune19[[#This Row],[Primary Name]],tblDeprExpJune19[[#This Row],[Secondary Acct]],tblDeprExpJune19[[#This Row],[Secondary  Name]],tblDeprExpJune19[[#This Row],[Alloc4Func]])","v":"4036000DEPR-DISTRIBUTION565161DEPR - DIST ASSETS NOT CLASSIFIEDSITUS"},"4036000","DEPR-DISTRIBUTION","565161","DEPR - DIST ASSETS NOT CLASSIFIED","OR",447.61811,{"$f":"IF(OR(tblDeprExpJune19[[#This Row],[Alloc]]=\"IDU\",tblDeprExpJune19[[#This Row],[Alloc]]=\"OR\",tblDeprExpJune19[[#This Row],[Alloc]]=\"UT\",tblDeprExpJune19[[#This Row],[Alloc]]=\"WYU\",tblDeprExpJune19[[#This Row],[Alloc]]=\"WYP\",tblDeprExpJune19[[#This Row],[Alloc]]=\"CA\",tblDeprExpJune19[[#This Row],[Alloc]]=\"WA\"),\"SITUS\",tblDeprExpJune19[[#This Row],[Alloc]])","v":"SITUS"},{"$f":"INDEX(tblDeprExpLookup[FUNC],MATCH(tblDeprExpJune19[[#This Row],[Concat]],tblDeprExpLookup[Concat],0))","v":"DPW"},{"$f":"IF(tblDeprExpJune19[[#This Row],[Total ($000)]]=0,\"NO\",IF(ISNA(tblDeprExpJune19[[#This Row],[FUNC]]),\"YES\",IF(_xlfn.ISFORMULA(tblDeprExpJune19[[#This Row],[FUNC]]),\"NO\",\"YES\")))","v":"NO"}]
[{"$f":"CONCATENATE(tblDeprExpJune19[[#This Row],[Primary Account]],tblDeprExpJune19[[#This Row],[Primary Name]],tblDeprExpJune19[[#This Row],[Secondary Acct]],tblDeprExpJune19[[#This Row],[Secondary  Name]],tblDeprExpJune19[[#This Row],[Alloc4Func]])","v":"4036000DEPR-DISTRIBUTION565161DEPR - DIST ASSETS NOT CLASSIFIEDSITUS"},"4036000","DEPR-DISTRIBUTION","565161","DEPR - DIST ASSETS NOT CLASSIFIED","UT",-22475.705419999998,{"$f":"IF(OR(tblDeprExpJune19[[#This Row],[Alloc]]=\"IDU\",tblDeprExpJune19[[#This Row],[Alloc]]=\"OR\",tblDeprExpJune19[[#This Row],[Alloc]]=\"UT\",tblDeprExpJune19[[#This Row],[Alloc]]=\"WYU\",tblDeprExpJune19[[#This Row],[Alloc]]=\"WYP\",tblDeprExpJune19[[#This Row],[Alloc]]=\"CA\",tblDeprExpJune19[[#This Row],[Alloc]]=\"WA\"),\"SITUS\",tblDeprExpJune19[[#This Row],[Alloc]])","v":"SITUS"},{"$f":"INDEX(tblDeprExpLookup[FUNC],MATCH(tblDeprExpJune19[[#This Row],[Concat]],tblDeprExpLookup[Concat],0))","v":"DPW"},{"$f":"IF(tblDeprExpJune19[[#This Row],[Total ($000)]]=0,\"NO\",IF(ISNA(tblDeprExpJune19[[#This Row],[FUNC]]),\"YES\",IF(_xlfn.ISFORMULA(tblDeprExpJune19[[#This Row],[FUNC]]),\"NO\",\"YES\")))","v":"NO"}]
[{"$f":"CONCATENATE(tblDeprExpJune19[[#This Row],[Primary Account]],tblDeprExpJune19[[#This Row],[Primary Name]],tblDeprExpJune19[[#This Row],[Secondary Acct]],tblDeprExpJune19[[#This Row],[Secondary  Name]],tblDeprExpJune19[[#This Row],[Alloc4Func]])","v":"4036000DEPR-DISTRIBUTION565161DEPR - DIST ASSETS NOT CLASSIFIEDSITUS"},"4036000","DEPR-DISTRIBUTION","565161","DEPR - DIST ASSETS NOT CLASSIFIED","WA",213.58618000000001,{"$f":"IF(OR(tblDeprExpJune19[[#This Row],[Alloc]]=\"IDU\",tblDeprExpJune19[[#This Row],[Alloc]]=\"OR\",tblDeprExpJune19[[#This Row],[Alloc]]=\"UT\",tblDeprExpJune19[[#This Row],[Alloc]]=\"WYU\",tblDeprExpJune19[[#This Row],[Alloc]]=\"WYP\",tblDeprExpJune19[[#This Row],[Alloc]]=\"CA\",tblDeprExpJune19[[#This Row],[Alloc]]=\"WA\"),\"SITUS\",tblDeprExpJune19[[#This Row],[Alloc]])","v":"SITUS"},{"$f":"INDEX(tblDeprExpLookup[FUNC],MATCH(tblDeprExpJune19[[#This Row],[Concat]],tblDeprExpLookup[Concat],0))","v":"DPW"},{"$f":"IF(tblDeprExpJune19[[#This Row],[Total ($000)]]=0,\"NO\",IF(ISNA(tblDeprExpJune19[[#This Row],[FUNC]]),\"YES\",IF(_xlfn.ISFORMULA(tblDeprExpJune19[[#This Row],[FUNC]]),\"NO\",\"YES\")))","v":"NO"}]
[{"$f":"CONCATENATE(tblDeprExpJune19[[#This Row],[Primary Account]],tblDeprExpJune19[[#This Row],[Primary Name]],tblDeprExpJune19[[#This Row],[Secondary Acct]],tblDeprExpJune19[[#This Row],[Secondary  Name]],tblDeprExpJune19[[#This Row],[Alloc4Func]])","v":"4036000DEPR-DISTRIBUTION565161DEPR - DIST ASSETS NOT CLASSIFIEDSITUS"},"4036000","DEPR-DISTRIBUTION","565161","DEPR - DIST ASSETS NOT CLASSIFIED","WYP",-1891.88697,{"$f":"IF(OR(tblDeprExpJune19[[#This Row],[Alloc]]=\"IDU\",tblDeprExpJune19[[#This Row],[Alloc]]=\"OR\",tblDeprExpJune19[[#This Row],[Alloc]]=\"UT\",tblDeprExpJune19[[#This Row],[Alloc]]=\"WYU\",tblDeprExpJune19[[#This Row],[Alloc]]=\"WYP\",tblDeprExpJune19[[#This Row],[Alloc]]=\"CA\",tblDeprExpJune19[[#This Row],[Alloc]]=\"WA\"),\"SITUS\",tblDeprExpJune19[[#This Row],[Alloc]])","v":"SITUS"},{"$f":"INDEX(tblDeprExpLookup[FUNC],MATCH(tblDeprExpJune19[[#This Row],[Concat]],tblDeprExpLookup[Concat],0))","v":"DPW"},{"$f":"IF(tblDeprExpJune19[[#This Row],[Total ($000)]]=0,\"NO\",IF(ISNA(tblDeprExpJune19[[#This Row],[FUNC]]),\"YES\",IF(_xlfn.ISFORMULA(tblDeprExpJune19[[#This Row],[FUNC]]),\"NO\",\"YES\")))","v":"NO"}]
[{"$f":"CONCATENATE(tblDeprExpJune19[[#This Row],[Primary Account]],tblDeprExpJune19[[#This Row],[Primary Name]],tblDeprExpJune19[[#This Row],[Secondary Acct]],tblDeprExpJune19[[#This Row],[Secondary  Name]],tblDeprExpJune19[[#This Row],[Alloc4Func]])","v":"4037000DEPR - GENERAL565201DEPR - GEN ASSETS NOT CLASSIFIEDSG"},"4037000","DEPR - GENERAL","565201","DEPR - GEN ASSETS NOT CLASSIFIED","SG",795.19635000000005,{"$f":"IF(OR(tblDeprExpJune19[[#This Row],[Alloc]]=\"IDU\",tblDeprExpJune19[[#This Row],[Alloc]]=\"OR\",tblDeprExpJune19[[#This Row],[Alloc]]=\"UT\",tblDeprExpJune19[[#This Row],[Alloc]]=\"WYU\",tblDeprExpJune19[[#This Row],[Alloc]]=\"WYP\",tblDeprExpJune19[[#This Row],[Alloc]]=\"CA\",tblDeprExpJune19[[#This Row],[Alloc]]=\"WA\"),\"SITUS\",tblDeprExpJune19[[#This Row],[Alloc]])","v":"SG"},{"$f":"INDEX(tblDeprExpLookup[FUNC],MATCH(tblDeprExpJune19[[#This Row],[Concat]],tblDeprExpLookup[Concat],0))","v":"P"},{"$f":"IF(tblDeprExpJune19[[#This Row],[Total ($000)]]=0,\"NO\",IF(ISNA(tblDeprExpJune19[[#This Row],[FUNC]]),\"YES\",IF(_xlfn.ISFORMULA(tblDeprExpJune19[[#This Row],[FUNC]]),\"NO\",\"YES\")))","v":"NO"}]
[{"$f":"CONCATENATE(tblDeprExpJune19[[#This Row],[Primary Account]],tblDeprExpJune19[[#This Row],[Primary Name]],tblDeprExpJune19[[#This Row],[Secondary Acct]],tblDeprExpJune19[[#This Row],[Secondary  Name]],tblDeprExpJune19[[#This Row],[Alloc4Func]])","v":"4039999DEPR EXP-ELEC, OTH565970DEPRECIATION-JOINT OWNER BILLED-CREDITSG"},"4039999","DEPR EXP-ELEC, OTH","565970","DEPRECIATION-JOINT OWNER BILLED-CREDIT","SG",-239.52799999999999,{"$f":"IF(OR(tblDeprExpJune19[[#This Row],[Alloc]]=\"IDU\",tblDeprExpJune19[[#This Row],[Alloc]]=\"OR\",tblDeprExpJune19[[#This Row],[Alloc]]=\"UT\",tblDeprExpJune19[[#This Row],[Alloc]]=\"WYU\",tblDeprExpJune19[[#This Row],[Alloc]]=\"WYP\",tblDeprExpJune19[[#This Row],[Alloc]]=\"CA\",tblDeprExpJune19[[#This Row],[Alloc]]=\"WA\"),\"SITUS\",tblDeprExpJune19[[#This Row],[Alloc]])","v":"SG"},{"$f":"INDEX(tblDeprExpLookup[FUNC],MATCH(tblDeprExpJune19[[#This Row],[Concat]],tblDeprExpLookup[Concat],0))","v":"P"},{"$f":"IF(tblDeprExpJune19[[#This Row],[Total ($000)]]=0,\"NO\",IF(ISNA(tblDeprExpJune19[[#This Row],[FUNC]]),\"YES\",IF(_xlfn.ISFORMULA(tblDeprExpJune19[[#This Row],[FUNC]]),\"NO\",\"YES\")))","v":"NO"}]
[null,null,null,null,null,null,{"$f":"SUBTOTAL(109,tblDeprExpJune19[Total ($000)])","v":724543.94783999934}]

{"sheet":"BOOKDEPR Lookup","index":13,"n_rows":127,"n_cols":9,"rows_kept":127,"cut":false,"hidden":false,"merged":[]}
["Concat","Primary Account","Primary Name","Secondary Acct","Secondary  Name","Alloc","Column1","Alloc4Func","FUNC"]
[{"$f":"CONCATENATE(tblDeprExpLookup[[#This Row],[Primary Account]],tblDeprExpLookup[[#This Row],[Primary Name]],tblDeprExpLookup[[#This Row],[Secondary Acct]],tblDeprExpLookup[[#This Row],[Secondary  Name]],tblDeprExpLookup[[#This Row],[Alloc4Func]])","v":"4030000DEPN EXPENSE-ELECT3420000\"FUEL HOLDERS,PRODUCERS, ACCES\"SG"},4030000,"DEPN EXPENSE-ELECT",3420000,"\"FUEL HOLDERS,PRODUCERS, ACCES\"","SG",null,{"$f":"IF(OR(tblDeprExpLookup[[#This Row],[Alloc]]=\"IDU\",tblDeprExpLookup[[#This Row],[Alloc]]=\"OR\",tblDeprExpLookup[[#This Row],[Alloc]]=\"UT\",tblDeprExpLookup[[#This Row],[Alloc]]=\"WYU\",tblDeprExpLookup[[#This Row],[Alloc]]=\"WYP\",tblDeprExpLookup[[#This Row],[Alloc]]=\"CA\",tblDeprExpLookup[[#This Row],[Alloc]]=\"WA\"),\"SITUS\",tblDeprExpLookup[[#This Row],[Alloc]])","v":"SG"},"P"]
[{"$f":"CONCATENATE(tblDeprExpLookup[[#This Row],[Primary Account]],tblDeprExpLookup[[#This Row],[Primary Name]],tblDeprExpLookup[[#This Row],[Secondary Acct]],tblDeprExpLookup[[#This Row],[Secondary  Name]],tblDeprExpLookup[[#This Row],[Alloc4Func]])","v":"4030000DEPN EXPENSE-ELECT3640000\"POLES, TOWERS AND FIXTURES\"SITUS"},4030000,"DEPN EXPENSE-ELECT",3640000,"\"POLES, TOWERS AND FIXTURES\"","SITUS",null,{"$f":"IF(OR(tblDeprExpLookup[[#This Row],[Alloc]]=\"IDU\",tblDeprExpLookup[[#This Row],[Alloc]]=\"OR\",tblDeprExpLookup[[#This Row],[Alloc]]=\"UT\",tblDeprExpLookup[[#This Row],[Alloc]]=\"WYU\",tblDeprExpLookup[[#This Row],[Alloc]]=\"WYP\",tblDeprExpLookup[[#This Row],[Alloc]]=\"CA\",tblDeprExpLookup[[#This Row],[Alloc]]=\"WA\"),\"SITUS\",tblDeprExpLookup[[#This Row],[Alloc]])","v":"SITUS"},"DPW"]
[{"$f":"CONCATENATE(tblDeprExpLookup[[#This Row],[Primary Account]],tblDeprExpLookup[[#This Row],[Primary Name]],tblDeprExpLookup[[#This Row],[Secondary Acct]],tblDeprExpLookup[[#This Row],[Secondary  Name]],tblDeprExpLookup[[#This Row],[Alloc4Func]])","v":"4030000DEPN EXPENSE-ELECT3320000\"RESERVOIRS, DAMS & WATERWAYS\"SG-P"},4030000,"DEPN EXPENSE-ELECT",3320000,"\"RESERVOIRS, DAMS & WATERWAYS\"","SG-P",null,{"$f":"IF(OR(tblDeprExpLookup[[#This Row],[Alloc]]=\"IDU\",tblDeprExpLookup[[#This Row],[Alloc]]=\"OR\",tblDeprExpLookup[[#This Row],[Alloc]]=\"UT\",tblDeprExpLookup[[#This Row],[Alloc]]=\"WYU\",tblDeprExpLookup[[#This Row],[Alloc]]=\"WYP\",tblDeprExpLookup[[#This Row],[Alloc]]=\"CA\",tblDeprExpLookup[[#This Row],[Alloc]]=\"WA\"),\"SITUS\",tblDeprExpLookup[[#This Row],[Alloc]])","v":"SG-P"},"P"]
[{"$f":"CONCATENATE(tblDeprExpLookup[[#This Row],[Primary Account]],tblDeprExpLookup[[#This Row],[Primary Name]],tblDeprExpLookup[[#This Row],[Secondary Acct]],tblDeprExpLookup[[#This Row],[Secondary  Name]],tblDeprExpLookup[[#This Row],[Alloc4Func]])","v":"4030000DEPN EXPENSE-ELECT3320000\"RESERVOIRS, DAMS & WATERWAYS\"SG-U"},4030000,"DEPN EXPENSE-ELECT",3320000,"\"RESERVOIRS, DAMS & WATERWAYS\"","SG-U",null,{"$f":"IF(OR(tblDeprExpLookup[[#This Row],[Alloc]]=\"IDU\",tblDeprExpLookup[[#This Row],[Alloc]]=\"OR\",tblDeprExpLookup[[#This Row],[Alloc]]=\"UT\",tblDeprExpLookup[[#This Row],[Alloc]]=\"WYU\",tblDeprExpLookup[[#This Row],[Alloc]]=\"WYP\",tblDeprExpLookup[[#This Row],[Alloc]]=\"CA\",tblDeprExpLookup[[#This Row],[Alloc]]=\"WA\"),\"SITUS\",tblDeprExpLookup[[#This Row],[Alloc]])","v":"SG-U"},"P"]
[{"$f":"CONCATENATE(tblDeprExpLookup[[#This Row],[Primary Account]],tblDeprExpLookup[[#This Row],[Primary Name]],tblDeprExpLookup[[#This Row],[Secondary Acct]],tblDeprExpLookup[[#This Row],[Secondary  Name]],tblDeprExpLookup[[#This Row],[Alloc4Func]])","v":"4030000DEPN EXPENSE-ELECT3322000\"RESERVOIRS, DAMS, & WTRWYS-FISH/WILDLIFSG-P"},4030000,"DEPN EXPENSE-ELECT",3322000,"\"RESERVOIRS, DAMS, & WTRWYS-FISH/WILDLIF","SG-P",null,{"$f":"IF(OR(tblDeprExpLookup[[#This Row],[Alloc]]=\"IDU\",tblDeprExpLookup[[#This Row],[Alloc]]=\"OR\",tblDeprExpLookup[[#This Row],[Alloc]]=\"UT\",tblDeprExpLookup[[#This Row],[Alloc]]=\"WYU\",tblDeprExpLookup[[#This Row],[Alloc]]=\"WYP\",tblDeprExpLookup[[#This Row],[Alloc]]=\"CA\",tblDeprExpLookup[[#This Row],[Alloc]]=\"WA\"),\"SITUS\",tblDeprExpLookup[[#This Row],[Alloc]])","v":"SG-P"},"P"]
[{"$f":"CONCATENATE(tblDeprExpLookup[[#This Row],[Primary Account]],tblDeprExpLookup[[#This Row],[Primary Name]],tblDeprExpLookup[[#This Row],[Secondary Acct]],tblDeprExpLookup[[#This Row],[Secondary  Name]],tblDeprExpLookup[[#This Row],[Alloc4Func]])","v":"4030000DEPN EXPENSE-ELECT3322000\"RESERVOIRS, DAMS, & WTRWYS-FISH/WILDLIFSG-U"},4030000,"DEPN EXPENSE-ELECT",3322000,"\"RESERVOIRS, DAMS, & WTRWYS-FISH/WILDLIF","SG-U",null,{"$f":"IF(OR(tblDeprExpLookup[[#This Row],[Alloc]]=\"IDU\",tblDeprExpLookup[[#This Row],[Alloc]]=\"OR\",tblDeprExpLookup[[#This Row],[Alloc]]=\"UT\",tblDeprExpLookup[[#This Row],[Alloc]]=\"WYU\",tblDeprExpLookup[[#This Row],[Alloc]]=\"WYP\",tblDeprExpLookup[[#This Row],[Alloc]]=\"CA\",tblDeprExpLookup[[#This Row],[Alloc]]=\"WA\"),\"SITUS\",tblDeprExpLookup[[#This Row],[Alloc]])","v":"SG-U"},"P"]
[{"$f":"CONCATENATE(tblDeprExpLookup[[#This Row],[Primary Account]],tblDeprExpLookup[[#This Row],[Primary Name]],tblDeprExpLookup[[#This Row],[Secondary Acct]],tblDeprExpLookup[[#This Row],[Secondary  Name]],tblDeprExpLookup[[#This Row],[Alloc4Func]])","v":"4030000DEPN EXPENSE-ELECT3321000\"RESERVOIRS, DAMS, & WTRWYS-PRODUCTION\"SG-P"},4030000,"DEPN EXPENSE-ELECT",3321000,"\"RESERVOIRS, DAMS, & WTRWYS-PRODUCTION\"","SG-P",null,{"$f":"IF(OR(tblDeprExpLookup[[#This Row],[Alloc]]=\"IDU\",tblDeprExpLookup[[#This Row],[Alloc]]=\"OR\",tblDeprExpLookup[[#This Row],[Alloc]]=\"UT\",tblDeprExpLookup[[#This Row],[Alloc]]=\"WYU\",tblDeprExpLookup[[#This Row],[Alloc]]=\"WYP\",tblDeprExpLookup[[#This Row],[Alloc]]=\"CA\",tblDeprExpLookup[[#This Row],[Alloc]]=\"WA\"),\"SITUS\",tblDeprExpLookup[[#This Row],[Alloc]])","v":"SG-P"},"P"]
[{"$f":"CONCATENATE(tblDeprExpLookup[[#This Row],[Primary Account]],tblDeprExpLookup[[#This Row],[Primary Name]],tblDeprExpLookup[[#This Row],[Secondary Acct]],tblDeprExpLookup[[#This Row],[Secondary  Name]],tblDeprExpLookup[[#This Row],[Alloc4Func]])","v":"4030000DEPN EXPENSE-ELECT3321000\"RESERVOIRS, DAMS, & WTRWYS-PRODUCTION\"SG-U"},4030000,"DEPN EXPENSE-ELECT",3321000,"\"RESERVOIRS, DAMS, & WTRWYS-PRODUCTION\"","SG-U",null,{"$f":"IF(OR(tblDeprExpLookup[[#This Row],[Alloc]]=\"IDU\",tblDeprExpLookup[[#This Row],[Alloc]]=\"OR\",tblDeprExpLookup[[#This Row],[Alloc]]=\"UT\",tblDeprExpLookup[[#This Row],[Alloc]]=\"WYU\",tblDeprExpLookup[[#This Row],[Alloc]]=\"WYP\",tblDeprExpLookup[[#This Row],[Alloc]]=\"CA\",tblDeprExpLookup[[#This Row],[Alloc]]=\"WA\"),\"SITUS\",tblDeprExpLookup[[#This Row],[Alloc]])","v":"SG-U"},"P"]
[{"$f":"CONCATENATE(tblDeprExpLookup[[#This Row],[Primary Account]],tblDeprExpLookup[[#This Row],[Primary Name]],tblDeprExpLookup[[#This Row],[Secondary Acct]],tblDeprExpLookup[[#This Row],[Secondary  Name]],tblDeprExpLookup[[#This Row],[Alloc4Func]])","v":"4030000DEPN EXPENSE-ELECT3323000\"RESERVOIRS, DAMS, & WTRWYS-RECREATION\"SG-P"},4030000,"DEPN EXPENSE-ELECT",3323000,"\"RESERVOIRS, DAMS, & WTRWYS-RECREATION\"","SG-P",null,{"$f":"IF(OR(tblDeprExpLookup[[#This Row],[Alloc]]=\"IDU\",tblDeprExpLookup[[#This Row],[Alloc]]=\"OR\",tblDeprExpLookup[[#This Row],[Alloc]]=\"UT\",tblDeprExpLookup[[#This Row],[Alloc]]=\"WYU\",tblDeprExpLookup[[#This Row],[Alloc]]=\"WYP\",tblDeprExpLookup[[#This Row],[Alloc]]=\"CA\",tblDeprExpLookup[[#This Row],[Alloc]]=\"WA\"),\"SITUS\",tblDeprExpLookup[[#This Row],[Alloc]])","v":"SG-P"},"P"]
[{"$f":"CONCATENATE(tblDeprExpLookup[[#This Row],[Primary Account]],tblDeprExpLookup[[#This Row],[Primary Name]],tblDeprExpLookup[[#This Row],[Secondary Acct]],tblDeprExpLookup[[#This Row],[Secondary  Name]],tblDeprExpLookup[[#This Row],[Alloc4Func]])","v":"4030000DEPN EXPENSE-ELECT3323000\"RESERVOIRS, DAMS, & WTRWYS-RECREATION\"SG-U"},4030000,"DEPN EXPENSE-ELECT",3323000,"\"RESERVOIRS, DAMS, & WTRWYS-RECREATION\"","SG-U",null,{"$f":"IF(OR(tblDeprExpLookup[[#This Row],[Alloc]]=\"IDU\",tblDeprExpLookup[[#This Row],[Alloc]]=\"OR\",tblDeprExpLookup[[#This Row],[Alloc]]=\"UT\",tblDeprExpLookup[[#This Row],[Alloc]]=\"WYU\",tblDeprExpLookup[[#This Row],[Alloc]]=\"WYP\",tblDeprExpLookup[[#This Row],[Alloc]]=\"CA\",tblDeprExpLookup[[#This Row],[Alloc]]=\"WA\"),\"SITUS\",tblDeprExpLookup[[#This Row],[Alloc]])","v":"SG-U"},"P"]
[{"$f":"CONCATENATE(tblDeprExpLookup[[#This Row],[Primary Account]],tblDeprExpLookup[[#This Row],[Primary Name]],tblDeprExpLookup[[#This Row],[Secondary Acct]],tblDeprExpLookup[[#This Row],[Secondary  Name]],tblDeprExpLookup[[#This Row],[Alloc4Func]])","v":"4030000DEPN EXPENSE-ELECT3360000\"ROADS, RAILROADS & BRIDGES\"SG-P"},4030000,"DEPN EXPENSE-ELECT",3360000,"\"ROADS, RAILROADS & BRIDGES\"","SG-P",null,{"$f":"IF(OR(tblDeprExpLookup[[#This Row],[Alloc]]=\"IDU\",tblDeprExpLookup[[#This Row],[Alloc]]=\"OR\",tblDeprExpLookup[[#This Row],[Alloc]]=\"UT\",tblDeprExpLookup[[#This Row],[Alloc]]=\"WYU\",tblDeprExpLookup[[#This Row],[Alloc]]=\"WYP\",tblDeprExpLookup[[#This Row],[Alloc]]=\"CA\",tblDeprExpLookup[[#This Row],[Alloc]]=\"WA\"),\"SITUS\",tblDeprExpLookup[[#This Row],[Alloc]])","v":"SG-P"},"P"]
[{"$f":"CONCATENATE(tblDeprExpLookup[[#This Row],[Primary Account]],tblDeprExpLookup[[#This Row],[Primary Name]],tblDeprExpLookup[[#This Row],[Secondary Acct]],tblDeprExpLookup[[#This Row],[Secondary  Name]],tblDeprExpLookup[[#This Row],[Alloc4Func]])","v":"4030000DEPN EXPENSE-ELECT3360000\"ROADS, RAILROADS & BRIDGES\"SG-U"},4030000,"DEPN EXPENSE-ELECT",3360000,"\"ROADS, RAILROADS & BRIDGES\"","SG-U",null,{"$f":"IF(OR(tblDeprExpLookup[[#This Row],[Alloc]]=\"IDU\",tblDeprExpLookup[[#This Row],[Alloc]]=\"OR\",tblDeprExpLookup[[#This Row],[Alloc]]=\"UT\",tblDeprExpLookup[[#This Row],[Alloc]]=\"WYU\",tblDeprExpLookup[[#This Row],[Alloc]]=\"WYP\",tblDeprExpLookup[[#This Row],[Alloc]]=\"CA\",tblDeprExpLookup[[#This Row],[Alloc]]=\"WA\"),\"SITUS\",tblDeprExpLookup[[#This Row],[Alloc]])","v":"SG-U"},"P"]
[{"$f":"CONCATENATE(tblDeprExpLookup[[#This Row],[Primary Account]],tblDeprExpLookup[[#This Row],[Primary Name]],tblDeprExpLookup[[#This Row],[Secondary Acct]],tblDeprExpLookup[[#This Row],[Secondary  Name]],tblDeprExpLookup[[#This Row],[Alloc4Func]])","v":"4030000DEPN EXPENSE-ELECT3940000\"TLS, SHOP, GAR EQUIPMENT\"SG"},4030000,"DEPN EXPENSE-ELECT",3940000,"\"TLS, SHOP, GAR EQUIPMENT\"","SG",null,{"$f":"IF(OR(tblDeprExpLookup[[#This Row],[Alloc]]=\"IDU\",tblDeprExpLookup[[#This Row],[Alloc]]=\"OR\",tblDeprExpLookup[[#This Row],[Alloc]]=\"UT\",tblDeprExpLookup[[#This Row],[Alloc]]=\"WYU\",tblDeprExpLookup[[#This Row],[Alloc]]=\"WYP\",tblDeprExpLookup[[#This Row],[Alloc]]=\"CA\",tblDeprExpLookup[[#This Row],[Alloc]]=\"WA\"),\"SITUS\",tblDeprExpLookup[[#This Row],[Alloc]])","v":"SG"},"G-SG"]
[{"$f":"CONCATENATE(tblDeprExpLookup[[#This Row],[Primary Account]],tblDeprExpLookup[[#This Row],[Primary Name]],tblDeprExpLookup[[#This Row],[Secondary Acct]],tblDeprExpLookup[[#This Row],[Secondary  Name]],tblDeprExpLookup[[#This Row],[Alloc4Func]])","v":"4030000DEPN EXPENSE-ELECT3940000\"TLS, SHOP, GAR EQUIPMENT\"SITUS"},4030000,"DEPN EXPENSE-ELECT",3940000,"\"TLS, SHOP, GAR EQUIPMENT\"","SITUS",null,{"$f":"IF(OR(tblDeprExpLookup[[#This Row],[Alloc]]=\"IDU\",tblDeprExpLookup[[#This Row],[Alloc]]=\"OR\",tblDeprExpLookup[[#This Row],[Alloc]]=\"UT\",tblDeprExpLookup[[#This Row],[Alloc]]=\"WYU\",tblDeprExpLookup[[#This Row],[Alloc]]=\"WYP\",tblDeprExpLookup[[#This Row],[Alloc]]=\"CA\",tblDeprExpLookup[[#This Row],[Alloc]]=\"WA\"),\"SITUS\",tblDeprExpLookup[[#This Row],[Alloc]])","v":"SITUS"},"G-SITUS"]
[{"$f":"CONCATENATE(tblDeprExpLookup[[#This Row],[Primary Account]],tblDeprExpLookup[[#This Row],[Primary Name]],tblDeprExpLookup[[#This Row],[Secondary Acct]],tblDeprExpLookup[[#This Row],[Secondary  Name]],tblDeprExpLookup[[#This Row],[Alloc4Func]])","v":"4030000DEPN EXPENSE-ELECT3940000\"TLS, SHOP, GAR EQUIPMENT\"SE"},4030000,"DEPN EXPENSE-ELECT",3940000,"\"TLS, SHOP, GAR EQUIPMENT\"","SE",null,{"$f":"IF(OR(tblDeprExpLookup[[#This Row],[Alloc]]=\"IDU\",tblDeprExpLookup[[#This Row],[Alloc]]=\"OR\",tblDeprExpLookup[[#This Row],[Alloc]]=\"UT\",tblDeprExpLookup[[#This Row],[Alloc]]=\"WYU\",tblDeprExpLookup[[#This Row],[Alloc]]=\"WYP\",tblDeprExpLookup[[#This Row],[Alloc]]=\"CA\",tblDeprExpLookup[[#This Row],[Alloc]]=\"WA\"),\"SITUS\",tblDeprExpLookup[[#This Row],[Alloc]])","v":"SE"},"P"]
[{"$f":"CONCATENATE(tblDeprExpLookup[[#This Row],[Primary Account]],tblDeprExpLookup[[#This Row],[Primary Name]],tblDeprExpLookup[[#This Row],[Secondary Acct]],tblDeprExpLookup[[#This Row],[Secondary  Name]],tblDeprExpLookup[[#This Row],[Alloc4Func]])","v":"4030000DEPN EXPENSE-ELECT3940000\"TLS, SHOP, GAR EQUIPMENT\"SO"},4030000,"DEPN EXPENSE-ELECT",3940000,"\"TLS, SHOP, GAR EQUIPMENT\"","SO",null,{"$f":"IF(OR(tblDeprExpLookup[[#This Row],[Alloc]]=\"IDU\",tblDeprExpLookup[[#This Row],[Alloc]]=\"OR\",tblDeprExpLookup[[#This Row],[Alloc]]=\"UT\",tblDeprExpLookup[[#This Row],[Alloc]]=\"WYU\",tblDeprExpLookup[[#This Row],[Alloc]]=\"WYP\",tblDeprExpLookup[[#This Row],[Alloc]]=\"CA\",tblDeprExpLookup[[#This Row],[Alloc]]=\"WA\"),\"SITUS\",tblDeprExpLookup[[#This Row],[Alloc]])","v":"SO"},"PTD"]
[{"$f":"CONCATENATE(tblDeprExpLookup[[#This Row],[Primary Account]],tblDeprExpLookup[[#This Row],[Primary Name]],tblDeprExpLookup[[#This Row],[Secondary Acct]],tblDeprExpLookup[[#This Row],[Secondary  Name]],tblDeprExpLookup[[#This Row],[Alloc4Func]])","v":"4030000DEPN EXPENSE-ELECT3330000\"WATER WHEELS, TURB & GENERATORS\"SG-P"},4030000,"DEPN EXPENSE-ELECT",3330000,"\"WATER WHEELS, TURB & GENERATORS\"","SG-P",null,{"$f":"IF(OR(tblDeprExpLookup[[#This Row],[Alloc]]=\"IDU\",tblDeprExpLookup[[#This Row],[Alloc]]=\"OR\",tblDeprExpLookup[[#This Row],[Alloc]]=\"UT\",tblDeprExpLookup[[#This Row],[Alloc]]=\"WYU\",tblDeprExpLookup[[#This Row],[Alloc]]=\"WYP\",tblDeprExpLookup[[#This Row],[Alloc]]=\"CA\",tblDeprExpLookup[[#This Row],[Alloc]]=\"WA\"),\"SITUS\",tblDeprExpLookup[[#This Row],[Alloc]])","v":"SG-P"},"P"]
[{"$f":"CONCATENATE(tblDeprExpLookup[[#This Row],[Primary Account]],tblDeprExpLookup[[#This Row],[Primary Name]],tblDeprExpLookup[[#This Row],[Secondary Acct]],tblDeprExpLookup[[#This Row],[Secondary  Name]],tblDeprExpLookup[[#This Row],[Alloc4Func]])","v":"4030000DEPN EXPENSE-ELECT3330000\"WATER WHEELS, TURB & GENERATORS\"SG-U"},4030000,"DEPN EXPENSE-ELECT",3330000,"\"WATER WHEELS, TURB & GENERATORS\"","SG-U",null,{"$f":"IF(OR(tblDeprExpLookup[[#This Row],[Alloc]]=\"IDU\",tblDeprExpLookup[[#This Row],[Alloc]]=\"OR\",tblDeprExpLookup[[#This Row],[Alloc]]=\"UT\",tblDeprExpLookup[[#This Row],[Alloc]]=\"WYU\",tblDeprExpLookup[[#This Row],[Alloc]]=\"WYP\",tblDeprExpLookup[[#This Row],[Alloc]]=\"CA\",tblDeprExpLookup[[#This Row],[Alloc]]=\"WA\"),\"SITUS\",tblDeprExpLookup[[#This Row],[Alloc]])","v":"SG-U"},"P"]
[{"$f":"CONCATENATE(tblDeprExpLookup[[#This Row],[Primary Account]],tblDeprExpLookup[[#This Row],[Primary Name]],tblDeprExpLookup[[#This Row],[Secondary Acct]],tblDeprExpLookup[[#This Row],[Secondary  Name]],tblDeprExpLookup[[#This Row],[Alloc4Func]])","v":"4030000DEPN EXPENSE-ELECT3347000ACCESSORY ELECT EQUIP - SUPV & ALARMSG-P"},4030000,"DEPN EXPENSE-ELECT",3347000,"ACCESSORY ELECT EQUIP - SUPV & ALARM","SG-P",null,{"$f":"IF(OR(tblDeprExpLookup[[#This Row],[Alloc]]=\"IDU\",tblDeprExpLookup[[#This Row],[Alloc]]=\"OR\",tblDeprExpLookup[[#This Row],[Alloc]]=\"UT\",tblDeprExpLookup[[#This Row],[Alloc]]=\"WYU\",tblDeprExpLookup[[#This Row],[Alloc]]=\"WYP\",tblDeprExpLookup[[#This Row],[Alloc]]=\"CA\",tblDeprExpLookup[[#This Row],[Alloc]]=\"WA\"),\"SITUS\",tblDeprExpLookup[[#This Row],[Alloc]])","v":"SG-P"},"P"]
[{"$f":"CONCATENATE(tblDeprExpLookup[[#This Row],[Primary Account]],tblDeprExpLookup[[#This Row],[Primary Name]],tblDeprExpLookup[[#This Row],[Secondary Acct]],tblDeprExpLookup[[#This Row],[Secondary  Name]],tblDeprExpLookup[[#This Row],[Alloc4Func]])","v":"4030000DEPN EXPENSE-ELECT3347000ACCESSORY ELECT EQUIP - SUPV & ALARMSG-U"},4030000,"DEPN EXPENSE-ELECT",3347000,"ACCESSORY ELECT EQUIP - SUPV & ALARM","SG-U",null,{"$f":"IF(OR(tblDeprExpLookup[[#This Row],[Alloc]]=\"IDU\",tblDeprExpLookup[[#This Row],[Alloc]]=\"OR\",tblDeprExpLookup[[#This Row],[Alloc]]=\"UT\",tblDeprExpLookup[[#This Row],[Alloc]]=\"WYU\",tblDeprExpLookup[[#This Row],[Alloc]]=\"WYP\",tblDeprExpLookup[[#This Row],[Alloc]]=\"CA\",tblDeprExpLookup[[#This Row],[Alloc]]=\"WA\"),\"SITUS\",tblDeprExpLookup[[#This Row],[Alloc]])","v":"SG-U"},"P"]
[{"$f":"CONCATENATE(tblDeprExpLookup[[#This Row],[Primary Account]],tblDeprExpLookup[[#This Row],[Primary Name]],tblDeprExpLookup[[#This Row],[Secondary Acct]],tblDeprExpLookup[[#This Row],[Secondary  Name]],tblDeprExpLookup[[#This Row],[Alloc4Func]])","v":"4030000DEPN EXPENSE-ELECT3150000ACCESSORY ELECTRIC EQUIPMENTSG"},4030000,"DEPN EXPENSE-ELECT",3150000,"ACCESSORY ELECTRIC EQUIPMENT","SG",null,{"$f":"IF(OR(tblDeprExpLookup[[#This Row],[Alloc]]=\"IDU\",tblDeprExpLookup[[#This Row],[Alloc]]=\"OR\",tblDeprExpLookup[[#This Row],[Alloc]]=\"UT\",tblDeprExpLookup[[#This Row],[Alloc]]=\"WYU\",tblDeprExpLookup[[#This Row],[Alloc]]=\"WYP\",tblDeprExpLookup[[#This Row],[Alloc]]=\"CA\",tblDeprExpLookup[[#This Row],[Alloc]]=\"WA\"),\"SITUS\",tblDeprExpLookup[[#This Row],[Alloc]])","v":"SG"},"P"]
[{"$f":"CONCATENATE(tblDeprExpLookup[[#This Row],[Primary Account]],tblDeprExpLookup[[#This Row],[Primary Name]],tblDeprExpLookup[[#This Row],[Secondary Acct]],tblDeprExpLookup[[#This Row],[Secondary  Name]],tblDeprExpLookup[[#This Row],[Alloc4Func]])","v":"4030000DEPN EXPENSE-ELECT3340000ACCESSORY ELECTRIC EQUIPMENTSG-P"},4030000,"DEPN EXPENSE-ELECT",3340000,"ACCESSORY ELECTRIC EQUIPMENT","SG-P",null,{"$f":"IF(OR(tblDeprExpLookup[[#This Row],[Alloc]]=\"IDU\",tblDeprExpLookup[[#This Row],[Alloc]]=\"OR\",tblDeprExpLookup[[#This Row],[Alloc]]=\"UT\",tblDeprExpLookup[[#This Row],[Alloc]]=\"WYU\",tblDeprExpLookup[[#This Row],[Alloc]]=\"WYP\",tblDeprExpLookup[[#This Row],[Alloc]]=\"CA\",tblDeprExpLookup[[#This Row],[Alloc]]=\"WA\"),\"SITUS\",tblDeprExpLookup[[#This Row],[Alloc]])","v":"SG-P"},"P"]
[{"$f":"CONCATENATE(tblDeprExpLookup[[#This Row],[Primary Account]],tblDeprExpLookup[[#This Row],[Primary Name]],tblDeprExpLookup[[#This Row],[Secondary Acct]],tblDeprExpLookup[[#This Row],[Secondary  Name]],tblDeprExpLookup[[#This Row],[Alloc4Func]])","v":"4030000DEPN EXPENSE-ELECT3340000ACCESSORY ELECTRIC EQUIPMENTSG-U"},4030000,"DEPN EXPENSE-ELECT",3340000,"ACCESSORY ELECTRIC EQUIPMENT","SG-U",null,{"$f":"IF(OR(tblDeprExpLookup[[#This Row],[Alloc]]=\"IDU\",tblDeprExpLookup[[#This Row],[Alloc]]=\"OR\",tblDeprExpLookup[[#This Row],[Alloc]]=\"UT\",tblDeprExpLookup[[#This Row],[Alloc]]=\"WYU\",tblDeprExpLookup[[#This Row],[Alloc]]=\"WYP\",tblDeprExpLookup[[#This Row],[Alloc]]=\"CA\",tblDeprExpLookup[[#This Row],[Alloc]]=\"WA\"),\"SITUS\",tblDeprExpLookup[[#This Row],[Alloc]])","v":"SG-U"},"P"]
[{"$f":"CONCATENATE(tblDeprExpLookup[[#This Row],[Primary Account]],tblDeprExpLookup[[#This Row],[Primary Name]],tblDeprExpLookup[[#This Row],[Secondary Acct]],tblDeprExpLookup[[#This Row],[Secondary  Name]],tblDeprExpLookup[[#This Row],[Alloc4Func]])","v":"4030000DEPN EXPENSE-ELECT3450000ACCESSORY ELECTRIC EQUIPMENTSG"},4030000,"DEPN EXPENSE-ELECT",3450000,"ACCESSORY ELECTRIC EQUIPMENT","SG",null,{"$f":"IF(OR(tblDeprExpLookup[[#This Row],[Alloc]]=\"IDU\",tblDeprExpLookup[[#This Row],[Alloc]]=\"OR\",tblDeprExpLookup[[#This Row],[Alloc]]=\"UT\",tblDeprExpLookup[[#This Row],[Alloc]]=\"WYU\",tblDeprExpLookup[[#This Row],[Alloc]]=\"WYP\",tblDeprExpLookup[[#This Row],[Alloc]]=\"CA\",tblDeprExpLookup[[#This Row],[Alloc]]=\"WA\"),\"SITUS\",tblDeprExpLookup[[#This Row],[Alloc]])","v":"SG"},"P"]
[{"$f":"CONCATENATE(tblDeprExpLookup[[#This Row],[Primary Account]],tblDeprExpLookup[[#This Row],[Primary Name]],tblDeprExpLookup[[#This Row],[Secondary Acct]],tblDeprExpLookup[[#This Row],[Secondary  Name]],tblDeprExpLookup[[#This Row],[Alloc4Func]])","v":"4030000DEPN EXPENSE-ELECT3157000ACCESSORY ELECTRIC EQUIP-SUPV & ALARMSG"},4030000,"DEPN EXPENSE-ELECT",3157000,"ACCESSORY ELECTRIC EQUIP-SUPV & ALARM","SG",null,{"$f":"IF(OR(tblDeprExpLookup[[#This Row],[Alloc]]=\"IDU\",tblDeprExpLookup[[#This Row],[Alloc]]=\"OR\",tblDeprExpLookup[[#This Row],[Alloc]]=\"UT\",tblDeprExpLookup[[#This Row],[Alloc]]=\"WYU\",tblDeprExpLookup[[#This Row],[Alloc]]=\"WYP\",tblDeprExpLookup[[#This Row],[Alloc]]=\"CA\",tblDeprExpLookup[[#This Row],[Alloc]]=\"WA\"),\"SITUS\",tblDeprExpLookup[[#This Row],[Alloc]])","v":"SG"},"P"]
[{"$f":"CONCATENATE(tblDeprExpLookup[[#This Row],[Primary Account]],tblDeprExpLookup[[#This Row],[Primary Name]],tblDeprExpLookup[[#This Row],[Secondary Acct]],tblDeprExpLookup[[#This Row],[Secondary  Name]],tblDeprExpLookup[[#This Row],[Alloc4Func]])","v":"4030000DEPN EXPENSE-ELECT3120000BOILER PLANT EQUIPMENTSG"},4030000,"DEPN EXPENSE-ELECT",3120000,"BOILER PLANT EQUIPMENT","SG",null,{"$f":"IF(OR(tblDeprExpLookup[[#This Row],[Alloc]]=\"IDU\",tblDeprExpLookup[[#This Row],[Alloc]]=\"OR\",tblDeprExpLookup[[#This Row],[Alloc]]=\"UT\",tblDeprExpLookup[[#This Row],[Alloc]]=\"WYU\",tblDeprExpLookup[[#This Row],[Alloc]]=\"WYP\",tblDeprExpLookup[[#This Row],[Alloc]]=\"CA\",tblDeprExpLookup[[#This Row],[Alloc]]=\"WA\"),\"SITUS\",tblDeprExpLookup[[#This Row],[Alloc]])","v":"SG"},"P"]
[{"$f":"CONCATENATE(tblDeprExpLookup[[#This Row],[Primary Account]],tblDeprExpLookup[[#This Row],[Primary Name]],tblDeprExpLookup[[#This Row],[Secondary Acct]],tblDeprExpLookup[[#This Row],[Secondary  Name]],tblDeprExpLookup[[#This Row],[Alloc4Func]])","v":"4030000DEPN EXPENSE-ELECT3970000COMMUNICATION EQUIPMENTSE"},4030000,"DEPN EXPENSE-ELECT",3970000,"COMMUNICATION EQUIPMENT","SE",null,{"$f":"IF(OR(tblDeprExpLookup[[#This Row],[Alloc]]=\"IDU\",tblDeprExpLookup[[#This Row],[Alloc]]=\"OR\",tblDeprExpLookup[[#This Row],[Alloc]]=\"UT\",tblDeprExpLookup[[#This Row],[Alloc]]=\"WYU\",tblDeprExpLookup[[#This Row],[Alloc]]=\"WYP\",tblDeprExpLookup[[#This Row],[Alloc]]=\"CA\",tblDeprExpLookup[[#This Row],[Alloc]]=\"WA\"),\"SITUS\",tblDeprExpLookup[[#This Row],[Alloc]])","v":"SE"},"P"]
[{"$f":"CONCATENATE(tblDeprExpLookup[[#This Row],[Primary Account]],tblDeprExpLookup[[#This Row],[Primary Name]],tblDeprExpLookup[[#This Row],[Secondary Acct]],tblDeprExpLookup[[#This Row],[Secondary  Name]],tblDeprExpLookup[[#This Row],[Alloc4Func]])","v":"4030000DEPN EXPENSE-ELECT3970000COMMUNICATION EQUIPMENTCN"},4030000,"DEPN EXPENSE-ELECT",3970000,"COMMUNICATION EQUIPMENT","CN",null,{"$f":"IF(OR(tblDeprExpLookup[[#This Row],[Alloc]]=\"IDU\",tblDeprExpLookup[[#This Row],[Alloc]]=\"OR\",tblDeprExpLookup[[#This Row],[Alloc]]=\"UT\",tblDeprExpLookup[[#This Row],[Alloc]]=\"WYU\",tblDeprExpLookup[[#This Row],[Alloc]]=\"WYP\",tblDeprExpLookup[[#This Row],[Alloc]]=\"CA\",tblDeprExpLookup[[#This Row],[Alloc]]=\"WA\"),\"SITUS\",tblDeprExpLookup[[#This Row],[Alloc]])","v":"CN"},"CUST"]
[{"$f":"CONCATENATE(tblDeprExpLookup[[#This Row],[Primary Account]],tblDeprExpLookup[[#This Row],[Primary Name]],tblDeprExpLookup[[#This Row],[Secondary Acct]],tblDeprExpLookup[[#This Row],[Secondary  Name]],tblDeprExpLookup[[#This Row],[Alloc4Func]])","v":"4030000DEPN EXPENSE-ELECT3970000COMMUNICATION EQUIPMENTSITUS"},4030000,"DEPN EXPENSE-ELECT",3970000,"COMMUNICATION EQUIPMENT","SITUS",null,{"$f":"IF(OR(tblDeprExpLookup[[#This Row],[Alloc]]=\"IDU\",tblDeprExpLookup[[#This Row],[Alloc]]=\"OR\",tblDeprExpLookup[[#This Row],[Alloc]]=\"UT\",tblDeprExpLookup[[#This Row],[Alloc]]=\"WYU\",tblDeprExpLookup[[#This Row],[Alloc]]=\"WYP\",tblDeprExpLookup[[#This Row],[Alloc]]=\"CA\",tblDeprExpLookup[[#This Row],[Alloc]]=\"WA\"),\"SITUS\",tblDeprExpLookup[[#This Row],[Alloc]])","v":"SITUS"},"G-SITUS"]
[{"$f":"CONCATENATE(tblDeprExpLookup[[#This Row],[Primary Account]],tblDeprExpLookup[[#This Row],[Primary Name]],tblDeprExpLookup[[#This Row],[Secondary Acct]],tblDeprExpLookup[[#This Row],[Secondary  Name]],tblDeprExpLookup[[#This Row],[Alloc4Func]])","v":"4030000DEPN EXPENSE-ELECT3970000COMMUNICATION EQUIPMENTSO"},4030000,"DEPN EXPENSE-ELECT",3970000,"COMMUNICATION EQUIPMENT","SO",null,{"$f":"IF(OR(tblDeprExpLookup[[#This Row],[Alloc]]=\"IDU\",tblDeprExpLookup[[#This Row],[Alloc]]=\"OR\",tblDeprExpLookup[[#This Row],[Alloc]]=\"UT\",tblDeprExpLookup[[#This Row],[Alloc]]=\"WYU\",tblDeprExpLookup[[#This Row],[Alloc]]=\"WYP\",tblDeprExpLookup[[#This Row],[Alloc]]=\"CA\",tblDeprExpLookup[[#This Row],[Alloc]]=\"WA\"),\"SITUS\",tblDeprExpLookup[[#This Row],[Alloc]])","v":"SO"},"PTD"]
[{"$f":"CONCATENATE(tblDeprExpLookup[[#This Row],[Primary Account]],tblDeprExpLookup[[#This Row],[Primary Name]],tblDeprExpLookup[[#This Row],[Secondary Acct]],tblDeprExpLookup[[#This Row],[Secondary  Name]],tblDeprExpLookup[[#This Row],[Alloc4Func]])","v":"4030000DEPN EXPENSE-ELECT3970000COMMUNICATION EQUIPMENTSG"},4030000,"DEPN EXPENSE-ELECT",3970000,"COMMUNICATION EQUIPMENT","SG",null,{"$f":"IF(OR(tblDeprExpLookup[[#This Row],[Alloc]]=\"IDU\",tblDeprExpLookup[[#This Row],[Alloc]]=\"OR\",tblDeprExpLookup[[#This Row],[Alloc]]=\"UT\",tblDeprExpLookup[[#This Row],[Alloc]]=\"WYU\",tblDeprExpLookup[[#This Row],[Alloc]]=\"WYP\",tblDeprExpLookup[[#This Row],[Alloc]]=\"CA\",tblDeprExpLookup[[#This Row],[Alloc]]=\"WA\"),\"SITUS\",tblDeprExpLookup[[#This Row],[Alloc]])","v":"SG"},"G-SG"]
[{"$f":"CONCATENATE(tblDeprExpLookup[[#This Row],[Primary Account]],tblDeprExpLookup[[#This Row],[Primary Name]],tblDeprExpLookup[[#This Row],[Secondary Acct]],tblDeprExpLookup[[#This Row],[Secondary  Name]],tblDeprExpLookup[[#This Row],[Alloc4Func]])","v":"4030000DEPN EXPENSE-ELECT3912000COMPUTER EQUIPMENT - PERSONAL COMPUTERSCN"},4030000,"DEPN EXPENSE-ELECT",3912000,"COMPUTER EQUIPMENT - PERSONAL COMPUTERS","CN",null,{"$f":"IF(OR(tblDeprExpLookup[[#This Row],[Alloc]]=\"IDU\",tblDeprExpLookup[[#This Row],[Alloc]]=\"OR\",tblDeprExpLookup[[#This Row],[Alloc]]=\"UT\",tblDeprExpLookup[[#This Row],[Alloc]]=\"WYU\",tblDeprExpLookup[[#This Row],[Alloc]]=\"WYP\",tblDeprExpLookup[[#This Row],[Alloc]]=\"CA\",tblDeprExpLookup[[#This Row],[Alloc]]=\"WA\"),\"SITUS\",tblDeprExpLookup[[#This Row],[Alloc]])","v":"CN"},"CUST"]
[{"$f":"CONCATENATE(tblDeprExpLookup[[#This Row],[Primary Account]],tblDeprExpLookup[[#This Row],[Primary Name]],tblDeprExpLookup[[#This Row],[Secondary Acct]],tblDeprExpLookup[[#This Row],[Secondary  Name]],tblDeprExpLookup[[#This Row],[Alloc4Func]])","v":"4030000DEPN EXPENSE-ELECT3912000COMPUTER EQUIPMENT - PERSONAL COMPUTERSSG"},4030000,"DEPN EXPENSE-ELECT",3912000,"COMPUTER EQUIPMENT - PERSONAL COMPUTERS","SG",null,{"$f":"IF(OR(tblDeprExpLookup[[#This Row],[Alloc]]=\"IDU\",tblDeprExpLookup[[#This Row],[Alloc]]=\"OR\",tblDeprExpLookup[[#This Row],[Alloc]]=\"UT\",tblDeprExpLookup[[#This Row],[Alloc]]=\"WYU\",tblDeprExpLookup[[#This Row],[Alloc]]=\"WYP\",tblDeprExpLookup[[#This Row],[Alloc]]=\"CA\",tblDeprExpLookup[[#This Row],[Alloc]]=\"WA\"),\"SITUS\",tblDeprExpLookup[[#This Row],[Alloc]])","v":"SG"},"G-DGU"]
[{"$f":"CONCATENATE(tblDeprExpLookup[[#This Row],[Primary Account]],tblDeprExpLookup[[#This Row],[Primary Name]],tblDeprExpLookup[[#This Row],[Secondary Acct]],tblDeprExpLookup[[#This Row],[Secondary  Name]],tblDeprExpLookup[[#This Row],[Alloc4Func]])","v":"4030000DEPN EXPENSE-ELECT3912000COMPUTER EQUIPMENT - PERSONAL COMPUTERSSITUS"},4030000,"DEPN EXPENSE-ELECT",3912000,"COMPUTER EQUIPMENT - PERSONAL COMPUTERS","SITUS",null,{"$f":"IF(OR(tblDeprExpLookup[[#This Row],[Alloc]]=\"IDU\",tblDeprExpLookup[[#This Row],[Alloc]]=\"OR\",tblDeprExpLookup[[#This Row],[Alloc]]=\"UT\",tblDeprExpLookup[[#This Row],[Alloc]]=\"WYU\",tblDeprExpLookup[[#This Row],[Alloc]]=\"WYP\",tblDeprExpLookup[[#This Row],[Alloc]]=\"CA\",tblDeprExpLookup[[#This Row],[Alloc]]=\"WA\"),\"SITUS\",tblDeprExpLookup[[#This Row],[Alloc]])","v":"SITUS"},"G-SITUS"]
[{"$f":"CONCATENATE(tblDeprExpLookup[[#This Row],[Primary Account]],tblDeprExpLookup[[#This Row],[Primary Name]],tblDeprExpLookup[[#This Row],[Secondary Acct]],tblDeprExpLookup[[#This Row],[Secondary  Name]],tblDeprExpLookup[[#This Row],[Alloc4Func]])","v":"4030000DEPN EXPENSE-ELECT3912000COMPUTER EQUIPMENT - PERSONAL COMPUTERSSE"},4030000,"DEPN EXPENSE-ELECT",3912000,"COMPUTER EQUIPMENT - PERSONAL COMPUTERS","SE",null,{"$f":"IF(OR(tblDeprExpLookup[[#This Row],[Alloc]]=\"IDU\",tblDeprExpLookup[[#This Row],[Alloc]]=\"OR\",tblDeprExpLookup[[#This Row],[Alloc]]=\"UT\",tblDeprExpLookup[[#This Row],[Alloc]]=\"WYU\",tblDeprExpLookup[[#This Row],[Alloc]]=\"WYP\",tblDeprExpLookup[[#This Row],[Alloc]]=\"CA\",tblDeprExpLookup[[#This Row],[Alloc]]=\"WA\"),\"SITUS\",tblDeprExpLookup[[#This Row],[Alloc]])","v":"SE"},"P"]
[{"$f":"CONCATENATE(tblDeprExpLookup[[#This Row],[Primary Account]],tblDeprExpLookup[[#This Row],[Primary Name]],tblDeprExpLookup[[#This Row],[Secondary Acct]],tblDeprExpLookup[[#This Row],[Secondary  Name]],tblDeprExpLookup[[#This Row],[Alloc4Func]])","v":"4030000DEPN EXPENSE-ELECT3912000COMPUTER EQUIPMENT - PERSONAL COMPUTERSSO"},4030000,"DEPN EXPENSE-ELECT",3912000,"COMPUTER EQUIPMENT - PERSONAL COMPUTERS","SO",null,{"$f":"IF(OR(tblDeprExpLookup[[#This Row],[Alloc]]=\"IDU\",tblDeprExpLookup[[#This Row],[Alloc]]=\"OR\",tblDeprExpLookup[[#This Row],[Alloc]]=\"UT\",tblDeprExpLookup[[#This Row],[Alloc]]=\"WYU\",tblDeprExpLookup[[#This Row],[Alloc]]=\"WYP\",tblDeprExpLookup[[#This Row],[Alloc]]=\"CA\",tblDeprExpLookup[[#This Row],[Alloc]]=\"WA\"),\"SITUS\",tblDeprExpLookup[[#This Row],[Alloc]])","v":"SO"},"PTD"]
[{"$f":"CONCATENATE(tblDeprExpLookup[[#This Row],[Primary Account]],tblDeprExpLookup[[#This Row],[Primary Name]],tblDeprExpLookup[[#This Row],[Secondary Acct]],tblDeprExpLookup[[#This Row],[Secondary  Name]],tblDeprExpLookup[[#This Row],[Alloc4Func]])","v":"4036000DEPR-DISTRIBUTION565161DEPR - DIST ASSETS NOT CLASSIFIEDSITUS"},4036000,"DEPR-DISTRIBUTION",565161,"DEPR - DIST ASSETS NOT CLASSIFIED","SITUS",null,{"$f":"IF(OR(tblDeprExpLookup[[#This Row],[Alloc]]=\"IDU\",tblDeprExpLookup[[#This Row],[Alloc]]=\"OR\",tblDeprExpLookup[[#This Row],[Alloc]]=\"UT\",tblDeprExpLookup[[#This Row],[Alloc]]=\"WYU\",tblDeprExpLookup[[#This Row],[Alloc]]=\"WYP\",tblDeprExpLookup[[#This Row],[Alloc]]=\"CA\",tblDeprExpLookup[[#This Row],[Alloc]]=\"WA\"),\"SITUS\",tblDeprExpLookup[[#This Row],[Alloc]])","v":"SITUS"},"DPW"]
[{"$f":"CONCATENATE(tblDeprExpLookup[[#This Row],[Primary Account]],tblDeprExpLookup[[#This Row],[Primary Name]],tblDeprExpLookup[[#This Row],[Secondary Acct]],tblDeprExpLookup[[#This Row],[Secondary  Name]],tblDeprExpLookup[[#This Row],[Alloc4Func]])","v":"4037000DEPR - GENERAL565201DEPR - GEN ASSETS NOT CLASSIFIEDSG"},4037000,"DEPR - GENERAL",565201,"DEPR - GEN ASSETS NOT CLASSIFIED","SG",null,{"$f":"IF(OR(tblDeprExpLookup[[#This Row],[Alloc]]=\"IDU\",tblDeprExpLookup[[#This Row],[Alloc]]=\"OR\",tblDeprExpLookup[[#This Row],[Alloc]]=\"UT\",tblDeprExpLookup[[#This Row],[Alloc]]=\"WYU\",tblDeprExpLookup[[#This Row],[Alloc]]=\"WYP\",tblDeprExpLookup[[#This Row],[Alloc]]=\"CA\",tblDeprExpLookup[[#This Row],[Alloc]]=\"WA\"),\"SITUS\",tblDeprExpLookup[[#This Row],[Alloc]])","v":"SG"},"P"]
[{"$f":"CONCATENATE(tblDeprExpLookup[[#This Row],[Primary Account]],tblDeprExpLookup[[#This Row],[Primary Name]],tblDeprExpLookup[[#This Row],[Secondary Acct]],tblDeprExpLookup[[#This Row],[Secondary  Name]],tblDeprExpLookup[[#This Row],[Alloc4Func]])","v":"4033000DEPR - HYDRO565133DEPR - PROD HYDRO NOT CLASSIFIEDSG-P"},4033000,"DEPR - HYDRO",565133,"DEPR - PROD HYDRO NOT CLASSIFIED","SG-P",null,{"$f":"IF(OR(tblDeprExpLookup[[#This Row],[Alloc]]=\"IDU\",tblDeprExpLookup[[#This Row],[Alloc]]=\"OR\",tblDeprExpLookup[[#This Row],[Alloc]]=\"UT\",tblDeprExpLookup[[#This Row],[Alloc]]=\"WYU\",tblDeprExpLookup[[#This Row],[Alloc]]=\"WYP\",tblDeprExpLookup[[#This Row],[Alloc]]=\"CA\",tblDeprExpLookup[[#This Row],[Alloc]]=\"WA\"),\"SITUS\",tblDeprExpLookup[[#This Row],[Alloc]])","v":"SG-P"},"P"]
[{"$f":"CONCATENATE(tblDeprExpLookup[[#This Row],[Primary Account]],tblDeprExpLookup[[#This Row],[Primary Name]],tblDeprExpLookup[[#This Row],[Secondary Acct]],tblDeprExpLookup[[#This Row],[Secondary  Name]],tblDeprExpLookup[[#This Row],[Alloc4Func]])","v":"4033000DEPR - HYDRO565133DEPR - PROD HYDRO NOT CLASSIFIEDSG-U"},4033000,"DEPR - HYDRO",565133,"DEPR - PROD HYDRO NOT CLASSIFIED","SG-U",null,{"$f":"IF(OR(tblDeprExpLookup[[#This Row],[Alloc]]=\"IDU\",tblDeprExpLookup[[#This Row],[Alloc]]=\"OR\",tblDeprExpLookup[[#This Row],[Alloc]]=\"UT\",tblDeprExpLookup[[#This Row],[Alloc]]=\"WYU\",tblDeprExpLookup[[#This Row],[Alloc]]=\"WYP\",tblDeprExpLookup[[#This Row],[Alloc]]=\"CA\",tblDeprExpLookup[[#This Row],[Alloc]]=\"WA\"),\"SITUS\",tblDeprExpLookup[[#This Row],[Alloc]])","v":"SG-U"},"P"]
[{"$f":"CONCATENATE(tblDeprExpLookup[[#This Row],[Primary Account]],tblDeprExpLookup[[#This Row],[Primary Name]],tblDeprExpLookup[[#This Row],[Secondary Acct]],tblDeprExpLookup[[#This Row],[Secondary  Name]],tblDeprExpLookup[[#This Row],[Alloc4Func]])","v":"4034000DEPR - OTHER565134DEPR - PROD OTHER NOT CLASSIFIEDSG"},4034000,"DEPR - OTHER",565134,"DEPR - PROD OTHER NOT CLASSIFIED","SG",null,{"$f":"IF(OR(tblDeprExpLookup[[#This Row],[Alloc]]=\"IDU\",tblDeprExpLookup[[#This Row],[Alloc]]=\"OR\",tblDeprExpLookup[[#This Row],[Alloc]]=\"UT\",tblDeprExpLookup[[#This Row],[Alloc]]=\"WYU\",tblDeprExpLookup[[#This Row],[Alloc]]=\"WYP\",tblDeprExpLookup[[#This Row],[Alloc]]=\"CA\",tblDeprExpLookup[[#This Row],[Alloc]]=\"WA\"),\"SITUS\",tblDeprExpLookup[[#This Row],[Alloc]])","v":"SG"},"P"]
[{"$f":"CONCATENATE(tblDeprExpLookup[[#This Row],[Primary Account]],tblDeprExpLookup[[#This Row],[Primary Name]],tblDeprExpLookup[[#This Row],[Secondary Acct]],tblDeprExpLookup[[#This Row],[Secondary  Name]],tblDeprExpLookup[[#This Row],[Alloc4Func]])","v":"4032000DEPR - STEAM565131DEPR - PROD STEAM NOT CLASSIFIEDSG"},4032000,"DEPR - STEAM",565131,"DEPR - PROD STEAM NOT CLASSIFIED","SG",null,{"$f":"IF(OR(tblDeprExpLookup[[#This Row],[Alloc]]=\"IDU\",tblDeprExpLookup[[#This Row],[Alloc]]=\"OR\",tblDeprExpLookup[[#This Row],[Alloc]]=\"UT\",tblDeprExpLookup[[#This Row],[Alloc]]=\"WYU\",tblDeprExpLookup[[#This Row],[Alloc]]=\"WYP\",tblDeprExpLookup[[#This Row],[Alloc]]=\"CA\",tblDeprExpLookup[[#This Row],[Alloc]]=\"WA\"),\"SITUS\",tblDeprExpLookup[[#This Row],[Alloc]])","v":"SG"},"P"]
[{"$f":"CONCATENATE(tblDeprExpLookup[[#This Row],[Primary Account]],tblDeprExpLookup[[#This Row],[Primary Name]],tblDeprExpLookup[[#This Row],[Secondary Acct]],tblDeprExpLookup[[#This Row],[Secondary  Name]],tblDeprExpLookup[[#This Row],[Alloc4Func]])","v":"4035000DEPR-TRANSMISSION565141DEPR - TRANS ASSETS NOT CLASSIFIEDSG"},4035000,"DEPR-TRANSMISSION",565141,"DEPR - TRANS ASSETS NOT CLASSIFIED","SG",null,{"$f":"IF(OR(tblDeprExpLookup[[#This Row],[Alloc]]=\"IDU\",tblDeprExpLookup[[#This Row],[Alloc]]=\"OR\",tblDeprExpLookup[[#This Row],[Alloc]]=\"UT\",tblDeprExpLookup[[#This Row],[Alloc]]=\"WYU\",tblDeprExpLookup[[#This Row],[Alloc]]=\"WYP\",tblDeprExpLookup[[#This Row],[Alloc]]=\"CA\",tblDeprExpLookup[[#This Row],[Alloc]]=\"WA\"),\"SITUS\",tblDeprExpLookup[[#This Row],[Alloc]])","v":"SG"},"T"]
[{"$f":"CONCATENATE(tblDeprExpLookup[[#This Row],[Primary Account]],tblDeprExpLookup[[#This Row],[Primary Name]],tblDeprExpLookup[[#This Row],[Secondary Acct]],tblDeprExpLookup[[#This Row],[Secondary  Name]],tblDeprExpLookup[[#This Row],[Alloc4Func]])","v":"4039999DEPR EXP-ELEC, OTH565970DEPRECIATION-JOINT OWNER BILLED-CREDITSG"},4039999,"DEPR EXP-ELEC, OTH",565970,"DEPRECIATION-JOINT OWNER BILLED-CREDIT","SG",null,{"$f":"IF(OR(tblDeprExpLookup[[#This Row],[Alloc]]=\"IDU\",tblDeprExpLookup[[#This Row],[Alloc]]=\"OR\",tblDeprExpLookup[[#This Row],[Alloc]]=\"UT\",tblDeprExpLookup[[#This Row],[Alloc]]=\"WYU\",tblDeprExpLookup[[#This Row],[Alloc]]=\"WYP\",tblDeprExpLookup[[#This Row],[Alloc]]=\"CA\",tblDeprExpLookup[[#This Row],[Alloc]]=\"WA\"),\"SITUS\",tblDeprExpLookup[[#This Row],[Alloc]])","v":"SG"},"P"]
[{"$f":"CONCATENATE(tblDeprExpLookup[[#This Row],[Primary Account]],tblDeprExpLookup[[#This Row],[Primary Name]],tblDeprExpLookup[[#This Row],[Secondary Acct]],tblDeprExpLookup[[#This Row],[Secondary  Name]],tblDeprExpLookup[[#This Row],[Alloc4Func]])","v":"4030000DEPN EXPENSE-ELECT3304000FLOOD RIGHTSSG-P"},4030000,"DEPN EXPENSE-ELECT",3304000,"FLOOD RIGHTS","SG-P",null,{"$f":"IF(OR(tblDeprExpLookup[[#This Row],[Alloc]]=\"IDU\",tblDeprExpLookup[[#This Row],[Alloc]]=\"OR\",tblDeprExpLookup[[#This Row],[Alloc]]=\"UT\",tblDeprExpLookup[[#This Row],[Alloc]]=\"WYU\",tblDeprExpLookup[[#This Row],[Alloc]]=\"WYP\",tblDeprExpLookup[[#This Row],[Alloc]]=\"CA\",tblDeprExpLookup[[#This Row],[Alloc]]=\"WA\"),\"SITUS\",tblDeprExpLookup[[#This Row],[Alloc]])","v":"SG-P"},"P"]
[{"$f":"CONCATENATE(tblDeprExpLookup[[#This Row],[Primary Account]],tblDeprExpLookup[[#This Row],[Primary Name]],tblDeprExpLookup[[#This Row],[Secondary Acct]],tblDeprExpLookup[[#This Row],[Secondary  Name]],tblDeprExpLookup[[#This Row],[Alloc4Func]])","v":"4030000DEPN EXPENSE-ELECT3304000FLOOD RIGHTSSG-U"},4030000,"DEPN EXPENSE-ELECT",3304000,"FLOOD RIGHTS","SG-U",null,{"$f":"IF(OR(tblDeprExpLookup[[#This Row],[Alloc]]=\"IDU\",tblDeprExpLookup[[#This Row],[Alloc]]=\"OR\",tblDeprExpLookup[[#This Row],[Alloc]]=\"UT\",tblDeprExpLookup[[#This Row],[Alloc]]=\"WYU\",tblDeprExpLookup[[#This Row],[Alloc]]=\"WYP\",tblDeprExpLookup[[#This Row],[Alloc]]=\"CA\",tblDeprExpLookup[[#This Row],[Alloc]]=\"WA\"),\"SITUS\",tblDeprExpLookup[[#This Row],[Alloc]])","v":"SG-U"},"P"]
[{"$f":"CONCATENATE(tblDeprExpLookup[[#This Row],[Primary Account]],tblDeprExpLookup[[#This Row],[Primary Name]],tblDeprExpLookup[[#This Row],[Secondary Acct]],tblDeprExpLookup[[#This Row],[Secondary  Name]],tblDeprExpLookup[[#This Row],[Alloc4Func]])","v":"4030000DEPN EXPENSE-ELECT3440000GENERATORSSG"},4030000,"DEPN EXPENSE-ELECT",3440000,"GENERATORS","SG",null,{"$f":"IF(OR(tblDeprExpLookup[[#This Row],[Alloc]]=\"IDU\",tblDeprExpLookup[[#This Row],[Alloc]]=\"OR\",tblDeprExpLookup[[#This Row],[Alloc]]=\"UT\",tblDeprExpLookup[[#This Row],[Alloc]]=\"WYU\",tblDeprExpLookup[[#This Row],[Alloc]]=\"WYP\",tblDeprExpLookup[[#This Row],[Alloc]]=\"CA\",tblDeprExpLookup[[#This Row],[Alloc]]=\"WA\"),\"SITUS\",tblDeprExpLookup[[#This Row],[Alloc]])","v":"SG"},"P"]
[{"$f":"CONCATENATE(tblDeprExpLookup[[#This Row],[Primary Account]],tblDeprExpLookup[[#This Row],[Primary Name]],tblDeprExpLookup[[#This Row],[Secondary Acct]],tblDeprExpLookup[[#This Row],[Secondary  Name]],tblDeprExpLookup[[#This Row],[Alloc4Func]])","v":"4030000DEPN EXPENSE-ELECT3710000INSTALL ON CUSTOMERS PREMISESSITUS"},4030000,"DEPN EXPENSE-ELECT",3710000,"INSTALL ON CUSTOMERS PREMISES","SITUS",null,{"$f":"IF(OR(tblDeprExpLookup[[#This Row],[Alloc]]=\"IDU\",tblDeprExpLookup[[#This Row],[Alloc]]=\"OR\",tblDeprExpLookup[[#This Row],[Alloc]]=\"UT\",tblDeprExpLookup[[#This Row],[Alloc]]=\"WYU\",tblDeprExpLookup[[#This Row],[Alloc]]=\"WYP\",tblDeprExpLookup[[#This Row],[Alloc]]=\"CA\",tblDeprExpLookup[[#This Row],[Alloc]]=\"WA\"),\"SITUS\",tblDeprExpLookup[[#This Row],[Alloc]])","v":"SITUS"},"DPW"]
[{"$f":"CONCATENATE(tblDeprExpLookup[[#This Row],[Primary Account]],tblDeprExpLookup[[#This Row],[Primary Name]],tblDeprExpLookup[[#This Row],[Secondary Acct]],tblDeprExpLookup[[#This Row],[Secondary  Name]],tblDeprExpLookup[[#This Row],[Alloc4Func]])","v":"4030000DEPN EXPENSE-ELECT3950000LABORATORY EQUIPMENTSG"},4030000,"DEPN EXPENSE-ELECT",3950000,"LABORATORY EQUIPMENT","SG",null,{"$f":"IF(OR(tblDeprExpLookup[[#This Row],[Alloc]]=\"IDU\",tblDeprExpLookup[[#This Row],[Alloc]]=\"OR\",tblDeprExpLookup[[#This Row],[Alloc]]=\"UT\",tblDeprExpLookup[[#This Row],[Alloc]]=\"WYU\",tblDeprExpLookup[[#This Row],[Alloc]]=\"WYP\",tblDeprExpLookup[[#This Row],[Alloc]]=\"CA\",tblDeprExpLookup[[#This Row],[Alloc]]=\"WA\"),\"SITUS\",tblDeprExpLookup[[#This Row],[Alloc]])","v":"SG"},"G-SG"]
[{"$f":"CONCATENATE(tblDeprExpLookup[[#This Row],[Primary Account]],tblDeprExpLookup[[#This Row],[Primary Name]],tblDeprExpLookup[[#This Row],[Secondary Acct]],tblDeprExpLookup[[#This Row],[Secondary  Name]],tblDeprExpLookup[[#This Row],[Alloc4Func]])","v":"4030000DEPN EXPENSE-ELECT3950000LABORATORY EQUIPMENTSITUS"},4030000,"DEPN EXPENSE-ELECT",3950000,"LABORATORY EQUIPMENT","SITUS",null,{"$f":"IF(OR(tblDeprExpLookup[[#This Row],[Alloc]]=\"IDU\",tblDeprExpLookup[[#This Row],[Alloc]]=\"OR\",tblDeprExpLookup[[#This Row],[Alloc]]=\"UT\",tblDeprExpLookup[[#This Row],[Alloc]]=\"WYU\",tblDeprExpLookup[[#This Row],[Alloc]]=\"WYP\",tblDeprExpLookup[[#This Row],[Alloc]]=\"CA\",tblDeprExpLookup[[#This Row],[Alloc]]=\"WA\"),\"SITUS\",tblDeprExpLookup[[#This Row],[Alloc]])","v":"SITUS"},"G-SITUS"]
[{"$f":"CONCATENATE(tblDeprExpLookup[[#This Row],[Primary Account]],tblDeprExpLookup[[#This Row],[Primary Name]],tblDeprExpLookup[[#This Row],[Secondary Acct]],tblDeprExpLookup[[#This Row],[Secondary  Name]],tblDeprExpLookup[[#This Row],[Alloc4Func]])","v":"4030000DEPN EXPENSE-ELECT3950000LABORATORY EQUIPMENTSE"},4030000,"DEPN EXPENSE-ELECT",3950000,"LABORATORY EQUIPMENT","SE",null,{"$f":"IF(OR(tblDeprExpLookup[[#This Row],[Alloc]]=\"IDU\",tblDeprExpLookup[[#This Row],[Alloc]]=\"OR\",tblDeprExpLookup[[#This Row],[Alloc]]=\"UT\",tblDeprExpLookup[[#This Row],[Alloc]]=\"WYU\",tblDeprExpLookup[[#This Row],[Alloc]]=\"WYP\",tblDeprExpLookup[[#This Row],[Alloc]]=\"CA\",tblDeprExpLookup[[#This Row],[Alloc]]=\"WA\"),\"SITUS\",tblDeprExpLookup[[#This Row],[Alloc]])","v":"SE"},"P"]
[{"$f":"CONCATENATE(tblDeprExpLookup[[#This Row],[Primary Account]],tblDeprExpLookup[[#This Row],[Primary Name]],tblDeprExpLookup[[#This Row],[Secondary Acct]],tblDeprExpLookup[[#This Row],[Secondary  Name]],tblDeprExpLookup[[#This Row],[Alloc4Func]])","v":"4030000DEPN EXPENSE-ELECT3950000LABORATORY EQUIPMENTSO"},4030000,"DEPN EXPENSE-ELECT",3950000,"LABORATORY EQUIPMENT","SO",null,{"$f":"IF(OR(tblDeprExpLookup[[#This Row],[Alloc]]=\"IDU\",tblDeprExpLookup[[#This Row],[Alloc]]=\"OR\",tblDeprExpLookup[[#This Row],[Alloc]]=\"UT\",tblDeprExpLookup[[#This Row],[Alloc]]=\"WYU\",tblDeprExpLookup[[#This Row],[Alloc]]=\"WYP\",tblDeprExpLookup[[#This Row],[Alloc]]=\"CA\",tblDeprExpLookup[[#This Row],[Alloc]]=\"WA\"),\"SITUS\",tblDeprExpLookup[[#This Row],[Alloc]])","v":"SO"},"PTD"]
[{"$f":"CONCATENATE(tblDeprExpLookup[[#This Row],[Primary Account]],tblDeprExpLookup[[#This Row],[Primary Name]],tblDeprExpLookup[[#This Row],[Secondary Acct]],tblDeprExpLookup[[#This Row],[Secondary  Name]],tblDeprExpLookup[[#This Row],[Alloc4Func]])","v":"4030000DEPN EXPENSE-ELECT3602000LAND RIGHTSSITUS"},4030000,"DEPN EXPENSE-ELECT",3602000,"LAND RIGHTS","SITUS",null,{"$f":"IF(OR(tblDeprExpLookup[[#This Row],[Alloc]]=\"IDU\",tblDeprExpLookup[[#This Row],[Alloc]]=\"OR\",tblDeprExpLookup[[#This Row],[Alloc]]=\"UT\",tblDeprExpLookup[[#This Row],[Alloc]]=\"WYU\",tblDeprExpLookup[[#This Row],[Alloc]]=\"WYP\",tblDeprExpLookup[[#This Row],[Alloc]]=\"CA\",tblDeprExpLookup[[#This Row],[Alloc]]=\"WA\"),\"SITUS\",tblDeprExpLookup[[#This Row],[Alloc]])","v":"SITUS"},"DPW"]
[{"$f":"CONCATENATE(tblDeprExpLookup[[#This Row],[Primary Account]],tblDeprExpLookup[[#This Row],[Primary Name]],tblDeprExpLookup[[#This Row],[Secondary Acct]],tblDeprExpLookup[[#This Row],[Secondary  Name]],tblDeprExpLookup[[#This Row],[Alloc4Func]])","v":"4030000DEPN EXPENSE-ELECT3892000LAND RIGHTSSG"},4030000,"DEPN EXPENSE-ELECT",3892000,"LAND RIGHTS","SG",null,{"$f":"IF(OR(tblDeprExpLookup[[#This Row],[Alloc]]=\"IDU\",tblDeprExpLookup[[#This Row],[Alloc]]=\"OR\",tblDeprExpLookup[[#This Row],[Alloc]]=\"UT\",tblDeprExpLookup[[#This Row],[Alloc]]=\"WYU\",tblDeprExpLookup[[#This Row],[Alloc]]=\"WYP\",tblDeprExpLookup[[#This Row],[Alloc]]=\"CA\",tblDeprExpLookup[[#This Row],[Alloc]]=\"WA\"),\"SITUS\",tblDeprExpLookup[[#This Row],[Alloc]])","v":"SG"},"G-DGP"]
[{"$f":"CONCATENATE(tblDeprExpLookup[[#This Row],[Primary Account]],tblDeprExpLookup[[#This Row],[Primary Name]],tblDeprExpLookup[[#This Row],[Secondary Acct]],tblDeprExpLookup[[#This Row],[Secondary  Name]],tblDeprExpLookup[[#This Row],[Alloc4Func]])","v":"4030000DEPN EXPENSE-ELECT3892000LAND RIGHTSSITUS"},4030000,"DEPN EXPENSE-ELECT",3892000,"LAND RIGHTS","SITUS",null,{"$f":"IF(OR(tblDeprExpLookup[[#This Row],[Alloc]]=\"IDU\",tblDeprExpLookup[[#This Row],[Alloc]]=\"OR\",tblDeprExpLookup[[#This Row],[Alloc]]=\"UT\",tblDeprExpLookup[[#This Row],[Alloc]]=\"WYU\",tblDeprExpLookup[[#This Row],[Alloc]]=\"WYP\",tblDeprExpLookup[[#This Row],[Alloc]]=\"CA\",tblDeprExpLookup[[#This Row],[Alloc]]=\"WA\"),\"SITUS\",tblDeprExpLookup[[#This Row],[Alloc]])","v":"SITUS"},"G-SITUS"]
[{"$f":"CONCATENATE(tblDeprExpLookup[[#This Row],[Primary Account]],tblDeprExpLookup[[#This Row],[Primary Name]],tblDeprExpLookup[[#This Row],[Secondary Acct]],tblDeprExpLookup[[#This Row],[Secondary  Name]],tblDeprExpLookup[[#This Row],[Alloc4Func]])","v":"4030000DEPN EXPENSE-ELECT3102000LAND RIGHTSSG"},4030000,"DEPN EXPENSE-ELECT",3102000,"LAND RIGHTS","SG",null,{"$f":"IF(OR(tblDeprExpLookup[[#This Row],[Alloc]]=\"IDU\",tblDeprExpLookup[[#This Row],[Alloc]]=\"OR\",tblDeprExpLookup[[#This Row],[Alloc]]=\"UT\",tblDeprExpLookup[[#This Row],[Alloc]]=\"WYU\",tblDeprExpLookup[[#This Row],[Alloc]]=\"WYP\",tblDeprExpLookup[[#This Row],[Alloc]]=\"CA\",tblDeprExpLookup[[#This Row],[Alloc]]=\"WA\"),\"SITUS\",tblDeprExpLookup[[#This Row],[Alloc]])","v":"SG"},"P"]
[{"$f":"CONCATENATE(tblDeprExpLookup[[#This Row],[Primary Account]],tblDeprExpLookup[[#This Row],[Primary Name]],tblDeprExpLookup[[#This Row],[Secondary Acct]],tblDeprExpLookup[[#This Row],[Secondary  Name]],tblDeprExpLookup[[#This Row],[Alloc4Func]])","v":"4030000DEPN EXPENSE-ELECT3302000LAND RIGHTSSG-P"},4030000,"DEPN EXPENSE-ELECT",3302000,"LAND RIGHTS","SG-P",null,{"$f":"IF(OR(tblDeprExpLookup[[#This Row],[Alloc]]=\"IDU\",tblDeprExpLookup[[#This Row],[Alloc]]=\"OR\",tblDeprExpLookup[[#This Row],[Alloc]]=\"UT\",tblDeprExpLookup[[#This Row],[Alloc]]=\"WYU\",tblDeprExpLookup[[#This Row],[Alloc]]=\"WYP\",tblDeprExpLookup[[#This Row],[Alloc]]=\"CA\",tblDeprExpLookup[[#This Row],[Alloc]]=\"WA\"),\"SITUS\",tblDeprExpLookup[[#This Row],[Alloc]])","v":"SG-P"},"P"]
[{"$f":"CONCATENATE(tblDeprExpLookup[[#This Row],[Primary Account]],tblDeprExpLookup[[#This Row],[Primary Name]],tblDeprExpLookup[[#This Row],[Secondary Acct]],tblDeprExpLookup[[#This Row],[Secondary  Name]],tblDeprExpLookup[[#This Row],[Alloc4Func]])","v":"4030000DEPN EXPENSE-ELECT3302000LAND RIGHTSSG-U"},4030000,"DEPN EXPENSE-ELECT",3302000,"LAND RIGHTS","SG-U",null,{"$f":"IF(OR(tblDeprExpLookup[[#This Row],[Alloc]]=\"IDU\",tblDeprExpLookup[[#This Row],[Alloc]]=\"OR\",tblDeprExpLookup[[#This Row],[Alloc]]=\"UT\",tblDeprExpLookup[[#This Row],[Alloc]]=\"WYU\",tblDeprExpLookup[[#This Row],[Alloc]]=\"WYP\",tblDeprExpLookup[[#This Row],[Alloc]]=\"CA\",tblDeprExpLookup[[#This Row],[Alloc]]=\"WA\"),\"SITUS\",tblDeprExpLookup[[#This Row],[Alloc]])","v":"SG-U"},"P"]
[{"$f":"CONCATENATE(tblDeprExpLookup[[#This Row],[Primary Account]],tblDeprExpLookup[[#This Row],[Primary Name]],tblDeprExpLookup[[#This Row],[Secondary Acct]],tblDeprExpLookup[[#This Row],[Secondary  Name]],tblDeprExpLookup[[#This Row],[Alloc4Func]])","v":"4030000DEPN EXPENSE-ELECT3502000LAND RIGHTSSG"},4030000,"DEPN EXPENSE-ELECT",3502000,"LAND RIGHTS","SG",null,{"$f":"IF(OR(tblDeprExpLookup[[#This Row],[Alloc]]=\"IDU\",tblDeprExpLookup[[#This Row],[Alloc]]=\"OR\",tblDeprExpLookup[[#This Row],[Alloc]]=\"UT\",tblDeprExpLookup[[#This Row],[Alloc]]=\"WYU\",tblDeprExpLookup[[#This Row],[Alloc]]=\"WYP\",tblDeprExpLookup[[#This Row],[Alloc]]=\"CA\",tblDeprExpLookup[[#This Row],[Alloc]]=\"WA\"),\"SITUS\",tblDeprExpLookup[[#This Row],[Alloc]])","v":"SG"},"T"]
[{"$f":"CONCATENATE(tblDeprExpLookup[[#This Row],[Primary Account]],tblDeprExpLookup[[#This Row],[Primary Name]],tblDeprExpLookup[[#This Row],[Secondary Acct]],tblDeprExpLookup[[#This Row],[Secondary  Name]],tblDeprExpLookup[[#This Row],[Alloc4Func]])","v":"4030000DEPN EXPENSE-ELECT3305000LAND RIGHTS - FISH/WILDLIFESG-P"},4030000,"DEPN EXPENSE-ELECT",3305000,"LAND RIGHTS - FISH/WILDLIFE","SG-P",null,{"$f":"IF(OR(tblDeprExpLookup[[#This Row],[Alloc]]=\"IDU\",tblDeprExpLookup[[#This Row],[Alloc]]=\"OR\",tblDeprExpLookup[[#This Row],[Alloc]]=\"UT\",tblDeprExpLookup[[#This Row],[Alloc]]=\"WYU\",tblDeprExpLookup[[#This Row],[Alloc]]=\"WYP\",tblDeprExpLookup[[#This Row],[Alloc]]=\"CA\",tblDeprExpLookup[[#This Row],[Alloc]]=\"WA\"),\"SITUS\",tblDeprExpLookup[[#This Row],[Alloc]])","v":"SG-P"},"P"]
[{"$f":"CONCATENATE(tblDeprExpLookup[[#This Row],[Primary Account]],tblDeprExpLookup[[#This Row],[Primary Name]],tblDeprExpLookup[[#This Row],[Secondary Acct]],tblDeprExpLookup[[#This Row],[Secondary  Name]],tblDeprExpLookup[[#This Row],[Alloc4Func]])","v":"4030000DEPN EXPENSE-ELECT3680000LINE TRANSFORMERSSITUS"},4030000,"DEPN EXPENSE-ELECT",3680000,"LINE TRANSFORMERS","SITUS",null,{"$f":"IF(OR(tblDeprExpLookup[[#This Row],[Alloc]]=\"IDU\",tblDeprExpLookup[[#This Row],[Alloc]]=\"OR\",tblDeprExpLookup[[#This Row],[Alloc]]=\"UT\",tblDeprExpLookup[[#This Row],[Alloc]]=\"WYU\",tblDeprExpLookup[[#This Row],[Alloc]]=\"WYP\",tblDeprExpLookup[[#This Row],[Alloc]]=\"CA\",tblDeprExpLookup[[#This Row],[Alloc]]=\"WA\"),\"SITUS\",tblDeprExpLookup[[#This Row],[Alloc]])","v":"SITUS"},"DPW"]
[{"$f":"CONCATENATE(tblDeprExpLookup[[#This Row],[Primary Account]],tblDeprExpLookup[[#This Row],[Primary Name]],tblDeprExpLookup[[#This Row],[Secondary Acct]],tblDeprExpLookup[[#This Row],[Secondary  Name]],tblDeprExpLookup[[#This Row],[Alloc4Func]])","v":"4030000DEPN EXPENSE-ELECT3700000METERSSITUS"},4030000,"DEPN EXPENSE-ELECT",3700000,"METERS","SITUS",null,{"$f":"IF(OR(tblDeprExpLookup[[#This Row],[Alloc]]=\"IDU\",tblDeprExpLookup[[#This Row],[Alloc]]=\"OR\",tblDeprExpLookup[[#This Row],[Alloc]]=\"UT\",tblDeprExpLookup[[#This Row],[Alloc]]=\"WYU\",tblDeprExpLookup[[#This Row],[Alloc]]=\"WYP\",tblDeprExpLookup[[#This Row],[Alloc]]=\"CA\",tblDeprExpLookup[[#This Row],[Alloc]]=\"WA\"),\"SITUS\",tblDeprExpLookup[[#This Row],[Alloc]])","v":"SITUS"},"DPW"]
[{"$f":"CONCATENATE(tblDeprExpLookup[[#This Row],[Primary Account]],tblDeprExpLookup[[#This Row],[Primary Name]],tblDeprExpLookup[[#This Row],[Secondary Acct]],tblDeprExpLookup[[#This Row],[Secondary  Name]],tblDeprExpLookup[[#This Row],[Alloc4Func]])","v":"4030000DEPN EXPENSE-ELECT3350000MISC POWER PLANT EQUIPSG-U"},4030000,"DEPN EXPENSE-ELECT",3350000,"MISC POWER PLANT EQUIP","SG-U",null,{"$f":"IF(OR(tblDeprExpLookup[[#This Row],[Alloc]]=\"IDU\",tblDeprExpLookup[[#This Row],[Alloc]]=\"OR\",tblDeprExpLookup[[#This Row],[Alloc]]=\"UT\",tblDeprExpLookup[[#This Row],[Alloc]]=\"WYU\",tblDeprExpLookup[[#This Row],[Alloc]]=\"WYP\",tblDeprExpLookup[[#This Row],[Alloc]]=\"CA\",tblDeprExpLookup[[#This Row],[Alloc]]=\"WA\"),\"SITUS\",tblDeprExpLookup[[#This Row],[Alloc]])","v":"SG-U"},"P"]
[{"$f":"CONCATENATE(tblDeprExpLookup[[#This Row],[Primary Account]],tblDeprExpLookup[[#This Row],[Primary Name]],tblDeprExpLookup[[#This Row],[Secondary Acct]],tblDeprExpLookup[[#This Row],[Secondary  Name]],tblDeprExpLookup[[#This Row],[Alloc4Func]])","v":"4030000DEPN EXPENSE-ELECT3351000MISC POWER PLANT EQUIP - PRODUCTIONSG-P"},4030000,"DEPN EXPENSE-ELECT",3351000,"MISC POWER PLANT EQUIP - PRODUCTION","SG-P",null,{"$f":"IF(OR(tblDeprExpLookup[[#This Row],[Alloc]]=\"IDU\",tblDeprExpLookup[[#This Row],[Alloc]]=\"OR\",tblDeprExpLookup[[#This Row],[Alloc]]=\"UT\",tblDeprExpLookup[[#This Row],[Alloc]]=\"WYU\",tblDeprExpLookup[[#This Row],[Alloc]]=\"WYP\",tblDeprExpLookup[[#This Row],[Alloc]]=\"CA\",tblDeprExpLookup[[#This Row],[Alloc]]=\"WA\"),\"SITUS\",tblDeprExpLookup[[#This Row],[Alloc]])","v":"SG-P"},"P"]
[{"$f":"CONCATENATE(tblDeprExpLookup[[#This Row],[Primary Account]],tblDeprExpLookup[[#This Row],[Primary Name]],tblDeprExpLookup[[#This Row],[Secondary Acct]],tblDeprExpLookup[[#This Row],[Secondary  Name]],tblDeprExpLookup[[#This Row],[Alloc4Func]])","v":"4030000DEPN EXPENSE-ELECT3353000MISC POWER PLANT EQUIP - RECREATIONSG-P"},4030000,"DEPN EXPENSE-ELECT",3353000,"MISC POWER PLANT EQUIP - RECREATION","SG-P",null,{"$f":"IF(OR(tblDeprExpLookup[[#This Row],[Alloc]]=\"IDU\",tblDeprExpLookup[[#This Row],[Alloc]]=\"OR\",tblDeprExpLookup[[#This Row],[Alloc]]=\"UT\",tblDeprExpLookup[[#This Row],[Alloc]]=\"WYU\",tblDeprExpLookup[[#This Row],[Alloc]]=\"WYP\",tblDeprExpLookup[[#This Row],[Alloc]]=\"CA\",tblDeprExpLookup[[#This Row],[Alloc]]=\"WA\"),\"SITUS\",tblDeprExpLookup[[#This Row],[Alloc]])","v":"SG-P"},"P"]
[{"$f":"CONCATENATE(tblDeprExpLookup[[#This Row],[Primary Account]],tblDeprExpLookup[[#This Row],[Primary Name]],tblDeprExpLookup[[#This Row],[Secondary Acct]],tblDeprExpLookup[[#This Row],[Secondary  Name]],tblDeprExpLookup[[#This Row],[Alloc4Func]])","v":"4030000DEPN EXPENSE-ELECT3980000MISCELLANEOUS EQUIPMENTCN"},4030000,"DEPN EXPENSE-ELECT",3980000,"MISCELLANEOUS EQUIPMENT","CN",null,{"$f":"IF(OR(tblDeprExpLookup[[#This Row],[Alloc]]=\"IDU\",tblDeprExpLookup[[#This Row],[Alloc]]=\"OR\",tblDeprExpLookup[[#This Row],[Alloc]]=\"UT\",tblDeprExpLookup[[#This Row],[Alloc]]=\"WYU\",tblDeprExpLookup[[#This Row],[Alloc]]=\"WYP\",tblDeprExpLookup[[#This Row],[Alloc]]=\"CA\",tblDeprExpLookup[[#This Row],[Alloc]]=\"WA\"),\"SITUS\",tblDeprExpLookup[[#This Row],[Alloc]])","v":"CN"},"CUST"]
[{"$f":"CONCATENATE(tblDeprExpLookup[[#This Row],[Primary Account]],tblDeprExpLookup[[#This Row],[Primary Name]],tblDeprExpLookup[[#This Row],[Secondary Acct]],tblDeprExpLookup[[#This Row],[Secondary  Name]],tblDeprExpLookup[[#This Row],[Alloc4Func]])","v":"4030000DEPN EXPENSE-ELECT3980000MISCELLANEOUS EQUIPMENTSG"},4030000,"DEPN EXPENSE-ELECT",3980000,"MISCELLANEOUS EQUIPMENT","SG",null,{"$f":"IF(OR(tblDeprExpLookup[[#This Row],[Alloc]]=\"IDU\",tblDeprExpLookup[[#This Row],[Alloc]]=\"OR\",tblDeprExpLookup[[#This Row],[Alloc]]=\"UT\",tblDeprExpLookup[[#This Row],[Alloc]]=\"WYU\",tblDeprExpLookup[[#This Row],[Alloc]]=\"WYP\",tblDeprExpLookup[[#This Row],[Alloc]]=\"CA\",tblDeprExpLookup[[#This Row],[Alloc]]=\"WA\"),\"SITUS\",tblDeprExpLookup[[#This Row],[Alloc]])","v":"SG"},"G-SG"]
[{"$f":"CONCATENATE(tblDeprExpLookup[[#This Row],[Primary Account]],tblDeprExpLookup[[#This Row],[Primary Name]],tblDeprExpLookup[[#This Row],[Secondary Acct]],tblDeprExpLookup[[#This Row],[Secondary  Name]],tblDeprExpLookup[[#This Row],[Alloc4Func]])","v":"4030000DEPN EXPENSE-ELECT3980000MISCELLANEOUS EQUIPMENTSITUS"},4030000,"DEPN EXPENSE-ELECT",3980000,"MISCELLANEOUS EQUIPMENT","SITUS",null,{"$f":"IF(OR(tblDeprExpLookup[[#This Row],[Alloc]]=\"IDU\",tblDeprExpLookup[[#This Row],[Alloc]]=\"OR\",tblDeprExpLookup[[#This Row],[Alloc]]=\"UT\",tblDeprExpLookup[[#This Row],[Alloc]]=\"WYU\",tblDeprExpLookup[[#This Row],[Alloc]]=\"WYP\",tblDeprExpLookup[[#This Row],[Alloc]]=\"CA\",tblDeprExpLookup[[#This Row],[Alloc]]=\"WA\"),\"SITUS\",tblDeprExpLookup[[#This Row],[Alloc]])","v":"SITUS"},"G-SITUS"]
[{"$f":"CONCATENATE(tblDeprExpLookup[[#This Row],[Primary Account]],tblDeprExpLookup[[#This Row],[Primary Name]],tblDeprExpLookup[[#This Row],[Secondary Acct]],tblDeprExpLookup[[#This Row],[Secondary  Name]],tblDeprExpLookup[[#This Row],[Alloc4Func]])","v":"4030000DEPN EXPENSE-ELECT3980000MISCELLANEOUS EQUIPMENTSE"},4030000,"DEPN EXPENSE-ELECT",3980000,"MISCELLANEOUS EQUIPMENT","SE",null,{"$f":"IF(OR(tblDeprExpLookup[[#This Row],[Alloc]]=\"IDU\",tblDeprExpLookup[[#This Row],[Alloc]]=\"OR\",tblDeprExpLookup[[#This Row],[Alloc]]=\"UT\",tblDeprExpLookup[[#This Row],[Alloc]]=\"WYU\",tblDeprExpLookup[[#This Row],[Alloc]]=\"WYP\",tblDeprExpLookup[[#This Row],[Alloc]]=\"CA\",tblDeprExpLookup[[#This Row],[Alloc]]=\"WA\"),\"SITUS\",tblDeprExpLookup[[#This Row],[Alloc]])","v":"SE"},"P"]
[{"$f":"CONCATENATE(tblDeprExpLookup[[#This Row],[Primary Account]],tblDeprExpLookup[[#This Row],[Primary Name]],tblDeprExpLookup[[#This Row],[Secondary Acct]],tblDeprExpLookup[[#This Row],[Secondary  Name]],tblDeprExpLookup[[#This Row],[Alloc4Func]])","v":"4030000DEPN EXPENSE-ELECT3980000MISCELLANEOUS EQUIPMENTSO"},4030000,"DEPN EXPENSE-ELECT",3980000,"MISCELLANEOUS EQUIPMENT","SO",null,{"$f":"IF(OR(tblDeprExpLookup[[#This Row],[Alloc]]=\"IDU\",tblDeprExpLookup[[#This Row],[Alloc]]=\"OR\",tblDeprExpLookup[[#This Row],[Alloc]]=\"UT\",tblDeprExpLookup[[#This Row],[Alloc]]=\"WYU\",tblDeprExpLookup[[#This Row],[Alloc]]=\"WYP\",tblDeprExpLookup[[#This Row],[Alloc]]=\"CA\",tblDeprExpLookup[[#This Row],[Alloc]]=\"WA\"),\"SITUS\",tblDeprExpLookup[[#This Row],[Alloc]])","v":"SO"},"PTD"]
[{"$f":"CONCATENATE(tblDeprExpLookup[[#This Row],[Primary Account]],tblDeprExpLookup[[#This Row],[Primary Name]],tblDeprExpLookup[[#This Row],[Secondary Acct]],tblDeprExpLookup[[#This Row],[Secondary  Name]],tblDeprExpLookup[[#This Row],[Alloc4Func]])","v":"4030000DEPN EXPENSE-ELECT3160000MISCELLANEOUS POWER PLANT EQUIPMENTSG"},4030000,"DEPN EXPENSE-ELECT",3160000,"MISCELLANEOUS POWER PLANT EQUIPMENT","SG",null,{"$f":"IF(OR(tblDeprExpLookup[[#This Row],[Alloc]]=\"IDU\",tblDeprExpLookup[[#This Row],[Alloc]]=\"OR\",tblDeprExpLookup[[#This Row],[Alloc]]=\"UT\",tblDeprExpLookup[[#This Row],[Alloc]]=\"WYU\",tblDeprExpLookup[[#This Row],[Alloc]]=\"WYP\",tblDeprExpLookup[[#This Row],[Alloc]]=\"CA\",tblDeprExpLookup[[#This Row],[Alloc]]=\"WA\"),\"SITUS\",tblDeprExpLookup[[#This Row],[Alloc]])","v":"SG"},"P"]
[{"$f":"CONCATENATE(tblDeprExpLookup[[#This Row],[Primary Account]],tblDeprExpLookup[[#This Row],[Primary Name]],tblDeprExpLookup[[#This Row],[Secondary Acct]],tblDeprExpLookup[[#This Row],[Secondary  Name]],tblDeprExpLookup[[#This Row],[Alloc4Func]])","v":"4030000DEPN EXPENSE-ELECT3460000MISCELLANEOUS PWR PLANT EQUIPSG"},4030000,"DEPN EXPENSE-ELECT",3460000,"MISCELLANEOUS PWR PLANT EQUIP","SG",null,{"$f":"IF(OR(tblDeprExpLookup[[#This Row],[Alloc]]=\"IDU\",tblDeprExpLookup[[#This Row],[Alloc]]=\"OR\",tblDeprExpLookup[[#This Row],[Alloc]]=\"UT\",tblDeprExpLookup[[#This Row],[Alloc]]=\"WYU\",tblDeprExpLookup[[#This Row],[Alloc]]=\"WYP\",tblDeprExpLookup[[#This Row],[Alloc]]=\"CA\",tblDeprExpLookup[[#This Row],[Alloc]]=\"WA\"),\"SITUS\",tblDeprExpLookup[[#This Row],[Alloc]])","v":"SG"},"P"]
[{"$f":"CONCATENATE(tblDeprExpLookup[[#This Row],[Primary Account]],tblDeprExpLookup[[#This Row],[Primary Name]],tblDeprExpLookup[[#This Row],[Secondary Acct]],tblDeprExpLookup[[#This Row],[Secondary  Name]],tblDeprExpLookup[[#This Row],[Alloc4Func]])","v":"4030000DEPN EXPENSE-ELECT3972000MOBILE RADIO EQUIPMENTSG"},4030000,"DEPN EXPENSE-ELECT",3972000,"MOBILE RADIO EQUIPMENT","SG",null,{"$f":"IF(OR(tblDeprExpLookup[[#This Row],[Alloc]]=\"IDU\",tblDeprExpLookup[[#This Row],[Alloc]]=\"OR\",tblDeprExpLookup[[#This Row],[Alloc]]=\"UT\",tblDeprExpLookup[[#This Row],[Alloc]]=\"WYU\",tblDeprExpLookup[[#This Row],[Alloc]]=\"WYP\",tblDeprExpLookup[[#This Row],[Alloc]]=\"CA\",tblDeprExpLookup[[#This Row],[Alloc]]=\"WA\"),\"SITUS\",tblDeprExpLookup[[#This Row],[Alloc]])","v":"SG"},"G-SG"]
[{"$f":"CONCATENATE(tblDeprExpLookup[[#This Row],[Primary Account]],tblDeprExpLookup[[#This Row],[Primary Name]],tblDeprExpLookup[[#This Row],[Secondary Acct]],tblDeprExpLookup[[#This Row],[Secondary  Name]],tblDeprExpLookup[[#This Row],[Alloc4Func]])","v":"4030000DEPN EXPENSE-ELECT3972000MOBILE RADIO EQUIPMENTSITUS"},4030000,"DEPN EXPENSE-ELECT",3972000,"MOBILE RADIO EQUIPMENT","SITUS",null,{"$f":"IF(OR(tblDeprExpLookup[[#This Row],[Alloc]]=\"IDU\",tblDeprExpLookup[[#This Row],[Alloc]]=\"OR\",tblDeprExpLookup[[#This Row],[Alloc]]=\"UT\",tblDeprExpLookup[[#This Row],[Alloc]]=\"WYU\",tblDeprExpLookup[[#This Row],[Alloc]]=\"WYP\",tblDeprExpLookup[[#This Row],[Alloc]]=\"CA\",tblDeprExpLookup[[#This Row],[Alloc]]=\"WA\"),\"SITUS\",tblDeprExpLookup[[#This Row],[Alloc]])","v":"SITUS"},"G-SITUS"]
[{"$f":"CONCATENATE(tblDeprExpLookup[[#This Row],[Primary Account]],tblDeprExpLookup[[#This Row],[Primary Name]],tblDeprExpLookup[[#This Row],[Secondary Acct]],tblDeprExpLookup[[#This Row],[Secondary  Name]],tblDeprExpLookup[[#This Row],[Alloc4Func]])","v":"4030000DEPN EXPENSE-ELECT3972000MOBILE RADIO EQUIPMENTSE"},4030000,"DEPN EXPENSE-ELECT",3972000,"MOBILE RADIO EQUIPMENT","SE",null,{"$f":"IF(OR(tblDeprExpLookup[[#This Row],[Alloc]]=\"IDU\",tblDeprExpLookup[[#This Row],[Alloc]]=\"OR\",tblDeprExpLookup[[#This Row],[Alloc]]=\"UT\",tblDeprExpLookup[[#This Row],[Alloc]]=\"WYU\",tblDeprExpLookup[[#This Row],[Alloc]]=\"WYP\",tblDeprExpLookup[[#This Row],[Alloc]]=\"CA\",tblDeprExpLookup[[#This Row],[Alloc]]=\"WA\"),\"SITUS\",tblDeprExpLookup[[#This Row],[Alloc]])","v":"SE"},"P"]
[{"$f":"CONCATENATE(tblDeprExpLookup[[#This Row],[Primary Account]],tblDeprExpLookup[[#This Row],[Primary Name]],tblDeprExpLookup[[#This Row],[Secondary Acct]],tblDeprExpLookup[[#This Row],[Secondary  Name]],tblDeprExpLookup[[#This Row],[Alloc4Func]])","v":"4030000DEPN EXPENSE-ELECT3972000MOBILE RADIO EQUIPMENTSO"},4030000,"DEPN EXPENSE-ELECT",3972000,"MOBILE RADIO EQUIPMENT","SO",null,{"$f":"IF(OR(tblDeprExpLookup[[#This Row],[Alloc]]=\"IDU\",tblDeprExpLookup[[#This Row],[Alloc]]=\"OR\",tblDeprExpLookup[[#This Row],[Alloc]]=\"UT\",tblDeprExpLookup[[#This Row],[Alloc]]=\"WYU\",tblDeprExpLookup[[#This Row],[Alloc]]=\"WYP\",tblDeprExpLookup[[#This Row],[Alloc]]=\"CA\",tblDeprExpLookup[[#This Row],[Alloc]]=\"WA\"),\"SITUS\",tblDeprExpLookup[[#This Row],[Alloc]])","v":"SO"},"PTD"]
[{"$f":"CONCATENATE(tblDeprExpLookup[[#This Row],[Primary Account]],tblDeprExpLookup[[#This Row],[Primary Name]],tblDeprExpLookup[[#This Row],[Secondary Acct]],tblDeprExpLookup[[#This Row],[Secondary  Name]],tblDeprExpLookup[[#This Row],[Alloc4Func]])","v":"4030000DEPN EXPENSE-ELECT3913000OFFICE EQUIPMENTCN"},4030000,"DEPN EXPENSE-ELECT",3913000,"OFFICE EQUIPMENT","CN",null,{"$f":"IF(OR(tblDeprExpLookup[[#This Row],[Alloc]]=\"IDU\",tblDeprExpLookup[[#This Row],[Alloc]]=\"OR\",tblDeprExpLookup[[#This Row],[Alloc]]=\"UT\",tblDeprExpLookup[[#This Row],[Alloc]]=\"WYU\",tblDeprExpLookup[[#This Row],[Alloc]]=\"WYP\",tblDeprExpLookup[[#This Row],[Alloc]]=\"CA\",tblDeprExpLookup[[#This Row],[Alloc]]=\"WA\"),\"SITUS\",tblDeprExpLookup[[#This Row],[Alloc]])","v":"CN"},"CUST"]
[{"$f":"CONCATENATE(tblDeprExpLookup[[#This Row],[Primary Account]],tblDeprExpLookup[[#This Row],[Primary Name]],tblDeprExpLookup[[#This Row],[Secondary Acct]],tblDeprExpLookup[[#This Row],[Secondary  Name]],tblDeprExpLookup[[#This Row],[Alloc4Func]])","v":"4030000DEPN EXPENSE-ELECT3913000OFFICE EQUIPMENTSG"},4030000,"DEPN EXPENSE-ELECT",3913000,"OFFICE EQUIPMENT","SG",null,{"$f":"IF(OR(tblDeprExpLookup[[#This Row],[Alloc]]=\"IDU\",tblDeprExpLookup[[#This Row],[Alloc]]=\"OR\",tblDeprExpLookup[[#This Row],[Alloc]]=\"UT\",tblDeprExpLookup[[#This Row],[Alloc]]=\"WYU\",tblDeprExpLookup[[#This Row],[Alloc]]=\"WYP\",tblDeprExpLookup[[#This Row],[Alloc]]=\"CA\",tblDeprExpLookup[[#This Row],[Alloc]]=\"WA\"),\"SITUS\",tblDeprExpLookup[[#This Row],[Alloc]])","v":"SG"},"G-SG"]
[{"$f":"CONCATENATE(tblDeprExpLookup[[#This Row],[Primary Account]],tblDeprExpLookup[[#This Row],[Primary Name]],tblDeprExpLookup[[#This Row],[Secondary Acct]],tblDeprExpLookup[[#This Row],[Secondary  Name]],tblDeprExpLookup[[#This Row],[Alloc4Func]])","v":"4030000DEPN EXPENSE-ELECT3913000OFFICE EQUIPMENTSITUS"},4030000,"DEPN EXPENSE-ELECT",3913000,"OFFICE EQUIPMENT","SITUS",null,{"$f":"IF(OR(tblDeprExpLookup[[#This Row],[Alloc]]=\"IDU\",tblDeprExpLookup[[#This Row],[Alloc]]=\"OR\",tblDeprExpLookup[[#This Row],[Alloc]]=\"UT\",tblDeprExpLookup[[#This Row],[Alloc]]=\"WYU\",tblDeprExpLookup[[#This Row],[Alloc]]=\"WYP\",tblDeprExpLookup[[#This Row],[Alloc]]=\"CA\",tblDeprExpLookup[[#This Row],[Alloc]]=\"WA\"),\"SITUS\",tblDeprExpLookup[[#This Row],[Alloc]])","v":"SITUS"},"G-SITUS"]
[{"$f":"CONCATENATE(tblDeprExpLookup[[#This Row],[Primary Account]],tblDeprExpLookup[[#This Row],[Primary Name]],tblDeprExpLookup[[#This Row],[Secondary Acct]],tblDeprExpLookup[[#This Row],[Secondary  Name]],tblDeprExpLookup[[#This Row],[Alloc4Func]])","v":"4030000DEPN EXPENSE-ELECT3913000OFFICE EQUIPMENTSO"},4030000,"DEPN EXPENSE-ELECT",3913000,"OFFICE EQUIPMENT","SO",null,{"$f":"IF(OR(tblDeprExpLookup[[#This Row],[Alloc]]=\"IDU\",tblDeprExpLookup[[#This Row],[Alloc]]=\"OR\",tblDeprExpLookup[[#This Row],[Alloc]]=\"UT\",tblDeprExpLookup[[#This Row],[Alloc]]=\"WYU\",tblDeprExpLookup[[#This Row],[Alloc]]=\"WYP\",tblDeprExpLookup[[#This Row],[Alloc]]=\"CA\",tblDeprExpLookup[[#This Row],[Alloc]]=\"WA\"),\"SITUS\",tblDeprExpLookup[[#This Row],[Alloc]])","v":"SO"},"PTD"]
[{"$f":"CONCATENATE(tblDeprExpLookup[[#This Row],[Primary Account]],tblDeprExpLookup[[#This Row],[Primary Name]],tblDeprExpLookup[[#This Row],[Secondary Acct]],tblDeprExpLookup[[#This Row],[Secondary  Name]],tblDeprExpLookup[[#This Row],[Alloc4Func]])","v":"4030000DEPN EXPENSE-ELECT3910000OFFICE FURNITURECN"},4030000,"DEPN EXPENSE-ELECT",3910000,"OFFICE FURNITURE","CN",null,{"$f":"IF(OR(tblDeprExpLookup[[#This Row],[Alloc]]=\"IDU\",tblDeprExpLookup[[#This Row],[Alloc]]=\"OR\",tblDeprExpLookup[[#This Row],[Alloc]]=\"UT\",tblDeprExpLookup[[#This Row],[Alloc]]=\"WYU\",tblDeprExpLookup[[#This Row],[Alloc]]=\"WYP\",tblDeprExpLookup[[#This Row],[Alloc]]=\"CA\",tblDeprExpLookup[[#This Row],[Alloc]]=\"WA\"),\"SITUS\",tblDeprExpLookup[[#This Row],[Alloc]])","v":"CN"},"CUST"]
[{"$f":"CONCATENATE(tblDeprExpLookup[[#This Row],[Primary Account]],tblDeprExpLookup[[#This Row],[Primary Name]],tblDeprExpLookup[[#This Row],[Secondary Acct]],tblDeprExpLookup[[#This Row],[Secondary  Name]],tblDeprExpLookup[[#This Row],[Alloc4Func]])","v":"4030000DEPN EXPENSE-ELECT3910000OFFICE FURNITURESG"},4030000,"DEPN EXPENSE-ELECT",3910000,"OFFICE FURNITURE","SG",null,{"$f":"IF(OR(tblDeprExpLookup[[#This Row],[Alloc]]=\"IDU\",tblDeprExpLookup[[#This Row],[Alloc]]=\"OR\",tblDeprExpLookup[[#This Row],[Alloc]]=\"UT\",tblDeprExpLookup[[#This Row],[Alloc]]=\"WYU\",tblDeprExpLookup[[#This Row],[Alloc]]=\"WYP\",tblDeprExpLookup[[#This Row],[Alloc]]=\"CA\",tblDeprExpLookup[[#This Row],[Alloc]]=\"WA\"),\"SITUS\",tblDeprExpLookup[[#This Row],[Alloc]])","v":"SG"},"G-SG"]
[{"$f":"CONCATENATE(tblDeprExpLookup[[#This Row],[Primary Account]],tblDeprExpLookup[[#This Row],[Primary Name]],tblDeprExpLookup[[#This Row],[Secondary Acct]],tblDeprExpLookup[[#This Row],[Secondary  Name]],tblDeprExpLookup[[#This Row],[Alloc4Func]])","v":"4030000DEPN EXPENSE-ELECT3910000OFFICE FURNITURESITUS"},4030000,"DEPN EXPENSE-ELECT",3910000,"OFFICE FURNITURE","SITUS",null,{"$f":"IF(OR(tblDeprExpLookup[[#This Row],[Alloc]]=\"IDU\",tblDeprExpLookup[[#This Row],[Alloc]]=\"OR\",tblDeprExpLookup[[#This Row],[Alloc]]=\"UT\",tblDeprExpLookup[[#This Row],[Alloc]]=\"WYU\",tblDeprExpLookup[[#This Row],[Alloc]]=\"WYP\",tblDeprExpLookup[[#This Row],[Alloc]]=\"CA\",tblDeprExpLookup[[#This Row],[Alloc]]=\"WA\"),\"SITUS\",tblDeprExpLookup[[#This Row],[Alloc]])","v":"SITUS"},"G-SITUS"]
[{"$f":"CONCATENATE(tblDeprExpLookup[[#This Row],[Primary Account]],tblDeprExpLookup[[#This Row],[Primary Name]],tblDeprExpLookup[[#This Row],[Secondary Acct]],tblDeprExpLookup[[#This Row],[Secondary  Name]],tblDeprExpLookup[[#This Row],[Alloc4Func]])","v":"4030000DEPN EXPENSE-ELECT3910000OFFICE FURNITURESE"},4030000,"DEPN EXPENSE-ELECT",3910000,"OFFICE FURNITURE","SE",null,{"$f":"IF(OR(tblDeprExpLookup[[#This Row],[Alloc]]=\"IDU\",tblDeprExpLookup[[#This Row],[Alloc]]=\"OR\",tblDeprExpLookup[[#This Row],[Alloc]]=\"UT\",tblDeprExpLookup[[#This Row],[Alloc]]=\"WYU\",tblDeprExpLookup[[#This Row],[Alloc]]=\"WYP\",tblDeprExpLookup[[#This Row],[Alloc]]=\"CA\",tblDeprExpLookup[[#This Row],[Alloc]]=\"WA\"),\"SITUS\",tblDeprExpLookup[[#This Row],[Alloc]])","v":"SE"},"P"]
[{"$f":"CONCATENATE(tblDeprExpLookup[[#This Row],[Primary Account]],tblDeprExpLookup[[#This Row],[Primary Name]],tblDeprExpLookup[[#This Row],[Secondary Acct]],tblDeprExpLookup[[#This Row],[Secondary  Name]],tblDeprExpLookup[[#This Row],[Alloc4Func]])","v":"4030000DEPN EXPENSE-ELECT3910000OFFICE FURNITURESO"},4030000,"DEPN EXPENSE-ELECT",3910000,"OFFICE FURNITURE","SO",null,{"$f":"IF(OR(tblDeprExpLookup[[#This Row],[Alloc]]=\"IDU\",tblDeprExpLookup[[#This Row],[Alloc]]=\"OR\",tblDeprExpLookup[[#This Row],[Alloc]]=\"UT\",tblDeprExpLookup[[#This Row],[Alloc]]=\"WYU\",tblDeprExpLookup[[#This Row],[Alloc]]=\"WYP\",tblDeprExpLookup[[#This Row],[Alloc]]=\"CA\",tblDeprExpLookup[[#This Row],[Alloc]]=\"WA\"),\"SITUS\",tblDeprExpLookup[[#This Row],[Alloc]])","v":"SO"},"PTD"]
[{"$f":"CONCATENATE(tblDeprExpLookup[[#This Row],[Primary Account]],tblDeprExpLookup[[#This Row],[Primary Name]],tblDeprExpLookup[[#This Row],[Secondary Acct]],tblDeprExpLookup[[#This Row],[Secondary  Name]],tblDeprExpLookup[[#This Row],[Alloc4Func]])","v":"4030000DEPN EXPENSE-ELECT3650000OVERHEAD CONDUCTORS & DEVICESSITUS"},4030000,"DEPN EXPENSE-ELECT",3650000,"OVERHEAD CONDUCTORS & DEVICES","SITUS",null,{"$f":"IF(OR(tblDeprExpLookup[[#This Row],[Alloc]]=\"IDU\",tblDeprExpLookup[[#This Row],[Alloc]]=\"OR\",tblDeprExpLookup[[#This Row],[Alloc]]=\"UT\",tblDeprExpLookup[[#This Row],[Alloc]]=\"WYU\",tblDeprExpLookup[[#This Row],[Alloc]]=\"WYP\",tblDeprExpLookup[[#This Row],[Alloc]]=\"CA\",tblDeprExpLookup[[#This Row],[Alloc]]=\"WA\"),\"SITUS\",tblDeprExpLookup[[#This Row],[Alloc]])","v":"SITUS"},"DPW"]
[{"$f":"CONCATENATE(tblDeprExpLookup[[#This Row],[Primary Account]],tblDeprExpLookup[[#This Row],[Primary Name]],tblDeprExpLookup[[#This Row],[Secondary Acct]],tblDeprExpLookup[[#This Row],[Secondary  Name]],tblDeprExpLookup[[#This Row],[Alloc4Func]])","v":"4030000DEPN EXPENSE-ELECT3560000OVERHEAD CONDUCTORS & DEVICESSG"},4030000,"DEPN EXPENSE-ELECT",3560000,"OVERHEAD CONDUCTORS & DEVICES","SG",null,{"$f":"IF(OR(tblDeprExpLookup[[#This Row],[Alloc]]=\"IDU\",tblDeprExpLookup[[#This Row],[Alloc]]=\"OR\",tblDeprExpLookup[[#This Row],[Alloc]]=\"UT\",tblDeprExpLookup[[#This Row],[Alloc]]=\"WYU\",tblDeprExpLookup[[#This Row],[Alloc]]=\"WYP\",tblDeprExpLookup[[#This Row],[Alloc]]=\"CA\",tblDeprExpLookup[[#This Row],[Alloc]]=\"WA\"),\"SITUS\",tblDeprExpLookup[[#This Row],[Alloc]])","v":"SG"},"T"]
[{"$f":"CONCATENATE(tblDeprExpLookup[[#This Row],[Primary Account]],tblDeprExpLookup[[#This Row],[Primary Name]],tblDeprExpLookup[[#This Row],[Secondary Acct]],tblDeprExpLookup[[#This Row],[Secondary  Name]],tblDeprExpLookup[[#This Row],[Alloc4Func]])","v":"4030000DEPN EXPENSE-ELECT3550000POLES AND FIXTURESSG"},4030000,"DEPN EXPENSE-ELECT",3550000,"POLES AND FIXTURES","SG",null,{"$f":"IF(OR(tblDeprExpLookup[[#This Row],[Alloc]]=\"IDU\",tblDeprExpLookup[[#This Row],[Alloc]]=\"OR\",tblDeprExpLookup[[#This Row],[Alloc]]=\"UT\",tblDeprExpLookup[[#This Row],[Alloc]]=\"WYU\",tblDeprExpLookup[[#This Row],[Alloc]]=\"WYP\",tblDeprExpLookup[[#This Row],[Alloc]]=\"CA\",tblDeprExpLookup[[#This Row],[Alloc]]=\"WA\"),\"SITUS\",tblDeprExpLookup[[#This Row],[Alloc]])","v":"SG"},"T"]
[{"$f":"CONCATENATE(tblDeprExpLookup[[#This Row],[Primary Account]],tblDeprExpLookup[[#This Row],[Primary Name]],tblDeprExpLookup[[#This Row],[Secondary Acct]],tblDeprExpLookup[[#This Row],[Secondary  Name]],tblDeprExpLookup[[#This Row],[Alloc4Func]])","v":"4030000DEPN EXPENSE-ELECT3430000PRIME MOVERSSG"},4030000,"DEPN EXPENSE-ELECT",3430000,"PRIME MOVERS","SG",null,{"$f":"IF(OR(tblDeprExpLookup[[#This Row],[Alloc]]=\"IDU\",tblDeprExpLookup[[#This Row],[Alloc]]=\"OR\",tblDeprExpLookup[[#This Row],[Alloc]]=\"UT\",tblDeprExpLookup[[#This Row],[Alloc]]=\"WYU\",tblDeprExpLookup[[#This Row],[Alloc]]=\"WYP\",tblDeprExpLookup[[#This Row],[Alloc]]=\"CA\",tblDeprExpLookup[[#This Row],[Alloc]]=\"WA\"),\"SITUS\",tblDeprExpLookup[[#This Row],[Alloc]])","v":"SG"},"P"]
[{"$f":"CONCATENATE(tblDeprExpLookup[[#This Row],[Primary Account]],tblDeprExpLookup[[#This Row],[Primary Name]],tblDeprExpLookup[[#This Row],[Secondary Acct]],tblDeprExpLookup[[#This Row],[Secondary  Name]],tblDeprExpLookup[[#This Row],[Alloc4Func]])","v":"4030000DEPN EXPENSE-ELECT3590000ROADS AND TRAILSSG"},4030000,"DEPN EXPENSE-ELECT",3590000,"ROADS AND TRAILS","SG",null,{"$f":"IF(OR(tblDeprExpLookup[[#This Row],[Alloc]]=\"IDU\",tblDeprExpLookup[[#This Row],[Alloc]]=\"OR\",tblDeprExpLookup[[#This Row],[Alloc]]=\"UT\",tblDeprExpLookup[[#This Row],[Alloc]]=\"WYU\",tblDeprExpLookup[[#This Row],[Alloc]]=\"WYP\",tblDeprExpLookup[[#This Row],[Alloc]]=\"CA\",tblDeprExpLookup[[#This Row],[Alloc]]=\"WA\"),\"SITUS\",tblDeprExpLookup[[#This Row],[Alloc]])","v":"SG"},"T"]
[{"$f":"CONCATENATE(tblDeprExpLookup[[#This Row],[Primary Account]],tblDeprExpLookup[[#This Row],[Primary Name]],tblDeprExpLookup[[#This Row],[Secondary Acct]],tblDeprExpLookup[[#This Row],[Secondary  Name]],tblDeprExpLookup[[#This Row],[Alloc4Func]])","v":"4030000DEPN EXPENSE-ELECT3691000SERVICES - OVERHEADSITUS"},4030000,"DEPN EXPENSE-ELECT",3691000,"SERVICES - OVERHEAD","SITUS",null,{"$f":"IF(OR(tblDeprExpLookup[[#This Row],[Alloc]]=\"IDU\",tblDeprExpLookup[[#This Row],[Alloc]]=\"OR\",tblDeprExpLookup[[#This Row],[Alloc]]=\"UT\",tblDeprExpLookup[[#This Row],[Alloc]]=\"WYU\",tblDeprExpLookup[[#This Row],[Alloc]]=\"WYP\",tblDeprExpLookup[[#This Row],[Alloc]]=\"CA\",tblDeprExpLookup[[#This Row],[Alloc]]=\"WA\"),\"SITUS\",tblDeprExpLookup[[#This Row],[Alloc]])","v":"SITUS"},"DPW"]
[{"$f":"CONCATENATE(tblDeprExpLookup[[#This Row],[Primary Account]],tblDeprExpLookup[[#This Row],[Primary Name]],tblDeprExpLookup[[#This Row],[Secondary Acct]],tblDeprExpLookup[[#This Row],[Secondary  Name]],tblDeprExpLookup[[#This Row],[Alloc4Func]])","v":"4030000DEPN EXPENSE-ELECT3692000SERVICES - UNDERGROUNDSITUS"},4030000,"DEPN EXPENSE-ELECT",3692000,"SERVICES - UNDERGROUND","SITUS",null,{"$f":"IF(OR(tblDeprExpLookup[[#This Row],[Alloc]]=\"IDU\",tblDeprExpLookup[[#This Row],[Alloc]]=\"OR\",tblDeprExpLookup[[#This Row],[Alloc]]=\"UT\",tblDeprExpLookup[[#This Row],[Alloc]]=\"WYU\",tblDeprExpLookup[[#This Row],[Alloc]]=\"WYP\",tblDeprExpLookup[[#This Row],[Alloc]]=\"CA\",tblDeprExpLookup[[#This Row],[Alloc]]=\"WA\"),\"SITUS\",tblDeprExpLookup[[#This Row],[Alloc]])","v":"SITUS"},"DPW"]
[{"$f":"CONCATENATE(tblDeprExpLookup[[#This Row],[Primary Account]],tblDeprExpLookup[[#This Row],[Primary Name]],tblDeprExpLookup[[#This Row],[Secondary Acct]],tblDeprExpLookup[[#This Row],[Secondary  Name]],tblDeprExpLookup[[#This Row],[Alloc4Func]])","v":"4030000DEPN EXPENSE-ELECT3620000STATION EQUIPMENTSITUS"},4030000,"DEPN EXPENSE-ELECT",3620000,"STATION EQUIPMENT","SITUS",null,{"$f":"IF(OR(tblDeprExpLookup[[#This Row],[Alloc]]=\"IDU\",tblDeprExpLookup[[#This Row],[Alloc]]=\"OR\",tblDeprExpLookup[[#This Row],[Alloc]]=\"UT\",tblDeprExpLookup[[#This Row],[Alloc]]=\"WYU\",tblDeprExpLookup[[#This Row],[Alloc]]=\"WYP\",tblDeprExpLookup[[#This Row],[Alloc]]=\"CA\",tblDeprExpLookup[[#This Row],[Alloc]]=\"WA\"),\"SITUS\",tblDeprExpLookup[[#This Row],[Alloc]])","v":"SITUS"},"DPW"]
[{"$f":"CONCATENATE(tblDeprExpLookup[[#This Row],[Primary Account]],tblDeprExpLookup[[#This Row],[Primary Name]],tblDeprExpLookup[[#This Row],[Secondary Acct]],tblDeprExpLookup[[#This Row],[Secondary  Name]],tblDeprExpLookup[[#This Row],[Alloc4Func]])","v":"4030000DEPN EXPENSE-ELECT3530000STATION EQUIPMENTSG"},4030000,"DEPN EXPENSE-ELECT",3530000,"STATION EQUIPMENT","SG",null,{"$f":"IF(OR(tblDeprExpLookup[[#This Row],[Alloc]]=\"IDU\",tblDeprExpLookup[[#This Row],[Alloc]]=\"OR\",tblDeprExpLookup[[#This Row],[Alloc]]=\"UT\",tblDeprExpLookup[[#This Row],[Alloc]]=\"WYU\",tblDeprExpLookup[[#This Row],[Alloc]]=\"WYP\",tblDeprExpLookup[[#This Row],[Alloc]]=\"CA\",tblDeprExpLookup[[#This Row],[Alloc]]=\"WA\"),\"SITUS\",tblDeprExpLookup[[#This Row],[Alloc]])","v":"SG"},"T"]
[{"$f":"CONCATENATE(tblDeprExpLookup[[#This Row],[Primary Account]],tblDeprExpLookup[[#This Row],[Primary Name]],tblDeprExpLookup[[#This Row],[Secondary Acct]],tblDeprExpLookup[[#This Row],[Secondary  Name]],tblDeprExpLookup[[#This Row],[Alloc4Func]])","v":"4030000DEPN EXPENSE-ELECT3534000STATION EQUIPMENT, STEP-UP TRANSFORMERSSG"},4030000,"DEPN EXPENSE-ELECT",3534000,"STATION EQUIPMENT, STEP-UP TRANSFORMERS","SG",null,{"$f":"IF(OR(tblDeprExpLookup[[#This Row],[Alloc]]=\"IDU\",tblDeprExpLookup[[#This Row],[Alloc]]=\"OR\",tblDeprExpLookup[[#This Row],[Alloc]]=\"UT\",tblDeprExpLookup[[#This Row],[Alloc]]=\"WYU\",tblDeprExpLookup[[#This Row],[Alloc]]=\"WYP\",tblDeprExpLookup[[#This Row],[Alloc]]=\"CA\",tblDeprExpLookup[[#This Row],[Alloc]]=\"WA\"),\"SITUS\",tblDeprExpLookup[[#This Row],[Alloc]])","v":"SG"},"T"]
[{"$f":"CONCATENATE(tblDeprExpLookup[[#This Row],[Primary Account]],tblDeprExpLookup[[#This Row],[Primary Name]],tblDeprExpLookup[[#This Row],[Secondary Acct]],tblDeprExpLookup[[#This Row],[Secondary  Name]],tblDeprExpLookup[[#This Row],[Alloc4Func]])","v":"4030000DEPN EXPENSE-ELECT3627000STATION EQUIPMENT-SUPERVISORY & ALARMSITUS"},4030000,"DEPN EXPENSE-ELECT",3627000,"STATION EQUIPMENT-SUPERVISORY & ALARM","SITUS",null,{"$f":"IF(OR(tblDeprExpLookup[[#This Row],[Alloc]]=\"IDU\",tblDeprExpLookup[[#This Row],[Alloc]]=\"OR\",tblDeprExpLookup[[#This Row],[Alloc]]=\"UT\",tblDeprExpLookup[[#This Row],[Alloc]]=\"WYU\",tblDeprExpLookup[[#This Row],[Alloc]]=\"WYP\",tblDeprExpLookup[[#This Row],[Alloc]]=\"CA\",tblDeprExpLookup[[#This Row],[Alloc]]=\"WA\"),\"SITUS\",tblDeprExpLookup[[#This Row],[Alloc]])","v":"SITUS"},"DPW"]
[{"$f":"CONCATENATE(tblDeprExpLookup[[#This Row],[Primary Account]],tblDeprExpLookup[[#This Row],[Primary Name]],tblDeprExpLookup[[#This Row],[Secondary Acct]],tblDeprExpLookup[[#This Row],[Secondary  Name]],tblDeprExpLookup[[#This Row],[Alloc4Func]])","v":"4030000DEPN EXPENSE-ELECT3537000STATION EQUIPMENT-SUPERVISORY & ALARMSG"},4030000,"DEPN EXPENSE-ELECT",3537000,"STATION EQUIPMENT-SUPERVISORY & ALARM","SG",null,{"$f":"IF(OR(tblDeprExpLookup[[#This Row],[Alloc]]=\"IDU\",tblDeprExpLookup[[#This Row],[Alloc]]=\"OR\",tblDeprExpLookup[[#This Row],[Alloc]]=\"UT\",tblDeprExpLookup[[#This Row],[Alloc]]=\"WYU\",tblDeprExpLookup[[#This Row],[Alloc]]=\"WYP\",tblDeprExpLookup[[#This Row],[Alloc]]=\"CA\",tblDeprExpLookup[[#This Row],[Alloc]]=\"WA\"),\"SITUS\",tblDeprExpLookup[[#This Row],[Alloc]])","v":"SG"},"T"]
[{"$f":"CONCATENATE(tblDeprExpLookup[[#This Row],[Primary Account]],tblDeprExpLookup[[#This Row],[Primary Name]],tblDeprExpLookup[[#This Row],[Secondary Acct]],tblDeprExpLookup[[#This Row],[Secondary  Name]],tblDeprExpLookup[[#This Row],[Alloc4Func]])","v":"4030000DEPN EXPENSE-ELECT3930000STORES EQUIPMENTSG"},4030000,"DEPN EXPENSE-ELECT",3930000,"STORES EQUIPMENT","SG",null,{"$f":"IF(OR(tblDeprExpLookup[[#This Row],[Alloc]]=\"IDU\",tblDeprExpLookup[[#This Row],[Alloc]]=\"OR\",tblDeprExpLookup[[#This Row],[Alloc]]=\"UT\",tblDeprExpLookup[[#This Row],[Alloc]]=\"WYU\",tblDeprExpLookup[[#This Row],[Alloc]]=\"WYP\",tblDeprExpLookup[[#This Row],[Alloc]]=\"CA\",tblDeprExpLookup[[#This Row],[Alloc]]=\"WA\"),\"SITUS\",tblDeprExpLookup[[#This Row],[Alloc]])","v":"SG"},"G-DGU"]
[{"$f":"CONCATENATE(tblDeprExpLookup[[#This Row],[Primary Account]],tblDeprExpLookup[[#This Row],[Primary Name]],tblDeprExpLookup[[#This Row],[Secondary Acct]],tblDeprExpLookup[[#This Row],[Secondary  Name]],tblDeprExpLookup[[#This Row],[Alloc4Func]])","v":"4030000DEPN EXPENSE-ELECT3930000STORES EQUIPMENTSITUS"},4030000,"DEPN EXPENSE-ELECT",3930000,"STORES EQUIPMENT","SITUS",null,{"$f":"IF(OR(tblDeprExpLookup[[#This Row],[Alloc]]=\"IDU\",tblDeprExpLookup[[#This Row],[Alloc]]=\"OR\",tblDeprExpLookup[[#This Row],[Alloc]]=\"UT\",tblDeprExpLookup[[#This Row],[Alloc]]=\"WYU\",tblDeprExpLookup[[#This Row],[Alloc]]=\"WYP\",tblDeprExpLookup[[#This Row],[Alloc]]=\"CA\",tblDeprExpLookup[[#This Row],[Alloc]]=\"WA\"),\"SITUS\",tblDeprExpLookup[[#This Row],[Alloc]])","v":"SITUS"},"G-SITUS"]
[{"$f":"CONCATENATE(tblDeprExpLookup[[#This Row],[Primary Account]],tblDeprExpLookup[[#This Row],[Primary Name]],tblDeprExpLookup[[#This Row],[Secondary Acct]],tblDeprExpLookup[[#This Row],[Secondary  Name]],tblDeprExpLookup[[#This Row],[Alloc4Func]])","v":"4030000DEPN EXPENSE-ELECT3930000STORES EQUIPMENTSO"},4030000,"DEPN EXPENSE-ELECT",3930000,"STORES EQUIPMENT","SO",null,{"$f":"IF(OR(tblDeprExpLookup[[#This Row],[Alloc]]=\"IDU\",tblDeprExpLookup[[#This Row],[Alloc]]=\"OR\",tblDeprExpLookup[[#This Row],[Alloc]]=\"UT\",tblDeprExpLookup[[#This Row],[Alloc]]=\"WYU\",tblDeprExpLookup[[#This Row],[Alloc]]=\"WYP\",tblDeprExpLookup[[#This Row],[Alloc]]=\"CA\",tblDeprExpLookup[[#This Row],[Alloc]]=\"WA\"),\"SITUS\",tblDeprExpLookup[[#This Row],[Alloc]])","v":"SO"},"PTD"]
[{"$f":"CONCATENATE(tblDeprExpLookup[[#This Row],[Primary Account]],tblDeprExpLookup[[#This Row],[Primary Name]],tblDeprExpLookup[[#This Row],[Secondary Acct]],tblDeprExpLookup[[#This Row],[Secondary  Name]],tblDeprExpLookup[[#This Row],[Alloc4Func]])","v":"4030000DEPN EXPENSE-ELECT3730000STREET LIGHTING & SIGNAL SYSTEMSSITUS"},4030000,"DEPN EXPENSE-ELECT",3730000,"STREET LIGHTING & SIGNAL SYSTEMS","SITUS",null,{"$f":"IF(OR(tblDeprExpLookup[[#This Row],[Alloc]]=\"IDU\",tblDeprExpLookup[[#This Row],[Alloc]]=\"OR\",tblDeprExpLookup[[#This Row],[Alloc]]=\"UT\",tblDeprExpLookup[[#This Row],[Alloc]]=\"WYU\",tblDeprExpLookup[[#This Row],[Alloc]]=\"WYP\",tblDeprExpLookup[[#This Row],[Alloc]]=\"CA\",tblDeprExpLookup[[#This Row],[Alloc]]=\"WA\"),\"SITUS\",tblDeprExpLookup[[#This Row],[Alloc]])","v":"SITUS"},"DPW"]
[{"$f":"CONCATENATE(tblDeprExpLookup[[#This Row],[Primary Account]],tblDeprExpLookup[[#This Row],[Primary Name]],tblDeprExpLookup[[#This Row],[Secondary Acct]],tblDeprExpLookup[[#This Row],[Secondary  Name]],tblDeprExpLookup[[#This Row],[Alloc4Func]])","v":"4030000DEPN EXPENSE-ELECT3610000STRUCTURES & IMPROVEMENTSSITUS"},4030000,"DEPN EXPENSE-ELECT",3610000,"STRUCTURES & IMPROVEMENTS","SITUS",null,{"$f":"IF(OR(tblDeprExpLookup[[#This Row],[Alloc]]=\"IDU\",tblDeprExpLookup[[#This Row],[Alloc]]=\"OR\",tblDeprExpLookup[[#This Row],[Alloc]]=\"UT\",tblDeprExpLookup[[#This Row],[Alloc]]=\"WYU\",tblDeprExpLookup[[#This Row],[Alloc]]=\"WYP\",tblDeprExpLookup[[#This Row],[Alloc]]=\"CA\",tblDeprExpLookup[[#This Row],[Alloc]]=\"WA\"),\"SITUS\",tblDeprExpLookup[[#This Row],[Alloc]])","v":"SITUS"},"DPW"]
[{"$f":"CONCATENATE(tblDeprExpLookup[[#This Row],[Primary Account]],tblDeprExpLookup[[#This Row],[Primary Name]],tblDeprExpLookup[[#This Row],[Secondary Acct]],tblDeprExpLookup[[#This Row],[Secondary  Name]],tblDeprExpLookup[[#This Row],[Alloc4Func]])","v":"4030000DEPN EXPENSE-ELECT3410000STRUCTURES & IMPROVEMENTSSG"},4030000,"DEPN EXPENSE-ELECT",3410000,"STRUCTURES & IMPROVEMENTS","SG",null,{"$f":"IF(OR(tblDeprExpLookup[[#This Row],[Alloc]]=\"IDU\",tblDeprExpLookup[[#This Row],[Alloc]]=\"OR\",tblDeprExpLookup[[#This Row],[Alloc]]=\"UT\",tblDeprExpLookup[[#This Row],[Alloc]]=\"WYU\",tblDeprExpLookup[[#This Row],[Alloc]]=\"WYP\",tblDeprExpLookup[[#This Row],[Alloc]]=\"CA\",tblDeprExpLookup[[#This Row],[Alloc]]=\"WA\"),\"SITUS\",tblDeprExpLookup[[#This Row],[Alloc]])","v":"SG"},"P"]
[{"$f":"CONCATENATE(tblDeprExpLookup[[#This Row],[Primary Account]],tblDeprExpLookup[[#This Row],[Primary Name]],tblDeprExpLookup[[#This Row],[Secondary Acct]],tblDeprExpLookup[[#This Row],[Secondary  Name]],tblDeprExpLookup[[#This Row],[Alloc4Func]])","v":"4030000DEPN EXPENSE-ELECT3520000STRUCTURES & IMPROVEMENTSSG"},4030000,"DEPN EXPENSE-ELECT",3520000,"STRUCTURES & IMPROVEMENTS","SG",null,{"$f":"IF(OR(tblDeprExpLookup[[#This Row],[Alloc]]=\"IDU\",tblDeprExpLookup[[#This Row],[Alloc]]=\"OR\",tblDeprExpLookup[[#This Row],[Alloc]]=\"UT\",tblDeprExpLookup[[#This Row],[Alloc]]=\"WYU\",tblDeprExpLookup[[#This Row],[Alloc]]=\"WYP\",tblDeprExpLookup[[#This Row],[Alloc]]=\"CA\",tblDeprExpLookup[[#This Row],[Alloc]]=\"WA\"),\"SITUS\",tblDeprExpLookup[[#This Row],[Alloc]])","v":"SG"},"T"]
[{"$f":"CONCATENATE(tblDeprExpLookup[[#This Row],[Primary Account]],tblDeprExpLookup[[#This Row],[Primary Name]],tblDeprExpLookup[[#This Row],[Secondary Acct]],tblDeprExpLookup[[#This Row],[Secondary  Name]],tblDeprExpLookup[[#This Row],[Alloc4Func]])","v":"4030000DEPN EXPENSE-ELECT3310000STRUCTURES AND IMPROVESG-P"},4030000,"DEPN EXPENSE-ELECT",3310000,"STRUCTURES AND IMPROVE","SG-P",null,{"$f":"IF(OR(tblDeprExpLookup[[#This Row],[Alloc]]=\"IDU\",tblDeprExpLookup[[#This Row],[Alloc]]=\"OR\",tblDeprExpLookup[[#This Row],[Alloc]]=\"UT\",tblDeprExpLookup[[#This Row],[Alloc]]=\"WYU\",tblDeprExpLookup[[#This Row],[Alloc]]=\"WYP\",tblDeprExpLookup[[#This Row],[Alloc]]=\"CA\",tblDeprExpLookup[[#This Row],[Alloc]]=\"WA\"),\"SITUS\",tblDeprExpLookup[[#This Row],[Alloc]])","v":"SG-P"},"P"]
[{"$f":"CONCATENATE(tblDeprExpLookup[[#This Row],[Primary Account]],tblDeprExpLookup[[#This Row],[Primary Name]],tblDeprExpLookup[[#This Row],[Secondary Acct]],tblDeprExpLookup[[#This Row],[Secondary  Name]],tblDeprExpLookup[[#This Row],[Alloc4Func]])","v":"4030000DEPN EXPENSE-ELECT3310000STRUCTURES AND IMPROVESG-U"},4030000,"DEPN EXPENSE-ELECT",3310000,"STRUCTURES AND IMPROVE","SG-U",null,{"$f":"IF(OR(tblDeprExpLookup[[#This Row],[Alloc]]=\"IDU\",tblDeprExpLookup[[#This Row],[Alloc]]=\"OR\",tblDeprExpLookup[[#This Row],[Alloc]]=\"UT\",tblDeprExpLookup[[#This Row],[Alloc]]=\"WYU\",tblDeprExpLookup[[#This Row],[Alloc]]=\"WYP\",tblDeprExpLookup[[#This Row],[Alloc]]=\"CA\",tblDeprExpLookup[[#This Row],[Alloc]]=\"WA\"),\"SITUS\",tblDeprExpLookup[[#This Row],[Alloc]])","v":"SG-U"},"P"]
[{"$f":"CONCATENATE(tblDeprExpLookup[[#This Row],[Primary Account]],tblDeprExpLookup[[#This Row],[Primary Name]],tblDeprExpLookup[[#This Row],[Secondary Acct]],tblDeprExpLookup[[#This Row],[Secondary  Name]],tblDeprExpLookup[[#This Row],[Alloc4Func]])","v":"4030000DEPN EXPENSE-ELECT3312000STRUCTURES AND IMPROVE-FISH/WILDLIFESG-P"},4030000,"DEPN EXPENSE-ELECT",3312000,"STRUCTURES AND IMPROVE-FISH/WILDLIFE","SG-P",null,{"$f":"IF(OR(tblDeprExpLookup[[#This Row],[Alloc]]=\"IDU\",tblDeprExpLookup[[#This Row],[Alloc]]=\"OR\",tblDeprExpLookup[[#This Row],[Alloc]]=\"UT\",tblDeprExpLookup[[#This Row],[Alloc]]=\"WYU\",tblDeprExpLookup[[#This Row],[Alloc]]=\"WYP\",tblDeprExpLookup[[#This Row],[Alloc]]=\"CA\",tblDeprExpLookup[[#This Row],[Alloc]]=\"WA\"),\"SITUS\",tblDeprExpLookup[[#This Row],[Alloc]])","v":"SG-P"},"P"]
[{"$f":"CONCATENATE(tblDeprExpLookup[[#This Row],[Primary Account]],tblDeprExpLookup[[#This Row],[Primary Name]],tblDeprExpLookup[[#This Row],[Secondary Acct]],tblDeprExpLookup[[#This Row],[Secondary  Name]],tblDeprExpLookup[[#This Row],[Alloc4Func]])","v":"4030000DEPN EXPENSE-ELECT3312000STRUCTURES AND IMPROVE-FISH/WILDLIFESG-U"},4030000,"DEPN EXPENSE-ELECT",3312000,"STRUCTURES AND IMPROVE-FISH/WILDLIFE","SG-U",null,{"$f":"IF(OR(tblDeprExpLookup[[#This Row],[Alloc]]=\"IDU\",tblDeprExpLookup[[#This Row],[Alloc]]=\"OR\",tblDeprExpLookup[[#This Row],[Alloc]]=\"UT\",tblDeprExpLookup[[#This Row],[Alloc]]=\"WYU\",tblDeprExpLookup[[#This Row],[Alloc]]=\"WYP\",tblDeprExpLookup[[#This Row],[Alloc]]=\"CA\",tblDeprExpLookup[[#This Row],[Alloc]]=\"WA\"),\"SITUS\",tblDeprExpLookup[[#This Row],[Alloc]])","v":"SG-U"},"P"]
[{"$f":"CONCATENATE(tblDeprExpLookup[[#This Row],[Primary Account]],tblDeprExpLookup[[#This Row],[Primary Name]],tblDeprExpLookup[[#This Row],[Secondary Acct]],tblDeprExpLookup[[#This Row],[Secondary  Name]],tblDeprExpLookup[[#This Row],[Alloc4Func]])","v":"4030000DEPN EXPENSE-ELECT3900000STRUCTURES AND IMPROVEMENTSCN"},4030000,"DEPN EXPENSE-ELECT",3900000,"STRUCTURES AND IMPROVEMENTS","CN",null,{"$f":"IF(OR(tblDeprExpLookup[[#This Row],[Alloc]]=\"IDU\",tblDeprExpLookup[[#This Row],[Alloc]]=\"OR\",tblDeprExpLookup[[#This Row],[Alloc]]=\"UT\",tblDeprExpLookup[[#This Row],[Alloc]]=\"WYU\",tblDeprExpLookup[[#This Row],[Alloc]]=\"WYP\",tblDeprExpLookup[[#This Row],[Alloc]]=\"CA\",tblDeprExpLookup[[#This Row],[Alloc]]=\"WA\"),\"SITUS\",tblDeprExpLookup[[#This Row],[Alloc]])","v":"CN"},"CUST"]
[{"$f":"CONCATENATE(tblDeprExpLookup[[#This Row],[Primary Account]],tblDeprExpLookup[[#This Row],[Primary Name]],tblDeprExpLookup[[#This Row],[Secondary Acct]],tblDeprExpLookup[[#This Row],[Secondary  Name]],tblDeprExpLookup[[#This Row],[Alloc4Func]])","v":"4030000DEPN EXPENSE-ELECT3900000STRUCTURES AND IMPROVEMENTSSG"},4030000,"DEPN EXPENSE-ELECT",3900000,"STRUCTURES AND IMPROVEMENTS","SG",null,{"$f":"IF(OR(tblDeprExpLookup[[#This Row],[Alloc]]=\"IDU\",tblDeprExpLookup[[#This Row],[Alloc]]=\"OR\",tblDeprExpLookup[[#This Row],[Alloc]]=\"UT\",tblDeprExpLookup[[#This Row],[Alloc]]=\"WYU\",tblDeprExpLookup[[#This Row],[Alloc]]=\"WYP\",tblDeprExpLookup[[#This Row],[Alloc]]=\"CA\",tblDeprExpLookup[[#This Row],[Alloc]]=\"WA\"),\"SITUS\",tblDeprExpLookup[[#This Row],[Alloc]])","v":"SG"},"G-DGU"]
[{"$f":"CONCATENATE(tblDeprExpLookup[[#This Row],[Primary Account]],tblDeprExpLookup[[#This Row],[Primary Name]],tblDeprExpLookup[[#This Row],[Secondary Acct]],tblDeprExpLookup[[#This Row],[Secondary  Name]],tblDeprExpLookup[[#This Row],[Alloc4Func]])","v":"4030000DEPN EXPENSE-ELECT3900000STRUCTURES AND IMPROVEMENTSSITUS"},4030000,"DEPN EXPENSE-ELECT",3900000,"STRUCTURES AND IMPROVEMENTS","SITUS",null,{"$f":"IF(OR(tblDeprExpLookup[[#This Row],[Alloc]]=\"IDU\",tblDeprExpLookup[[#This Row],[Alloc]]=\"OR\",tblDeprExpLookup[[#This Row],[Alloc]]=\"UT\",tblDeprExpLookup[[#This Row],[Alloc]]=\"WYU\",tblDeprExpLookup[[#This Row],[Alloc]]=\"WYP\",tblDeprExpLookup[[#This Row],[Alloc]]=\"CA\",tblDeprExpLookup[[#This Row],[Alloc]]=\"WA\"),\"SITUS\",tblDeprExpLookup[[#This Row],[Alloc]])","v":"SITUS"},"G-SITUS"]
[{"$f":"CONCATENATE(tblDeprExpLookup[[#This Row],[Primary Account]],tblDeprExpLookup[[#This Row],[Primary Name]],tblDeprExpLookup[[#This Row],[Secondary Acct]],tblDeprExpLookup[[#This Row],[Secondary  Name]],tblDeprExpLookup[[#This Row],[Alloc4Func]])","v":"4030000DEPN EXPENSE-ELECT3110000STRUCTURES AND IMPROVEMENTSSG"},4030000,"DEPN EXPENSE-ELECT",3110000,"STRUCTURES AND IMPROVEMENTS","SG",null,{"$f":"IF(OR(tblDeprExpLookup[[#This Row],[Alloc]]=\"IDU\",tblDeprExpLookup[[#This Row],[Alloc]]=\"OR\",tblDeprExpLookup[[#This Row],[Alloc]]=\"UT\",tblDeprExpLookup[[#This Row],[Alloc]]=\"WYU\",tblDeprExpLookup[[#This Row],[Alloc]]=\"WYP\",tblDeprExpLookup[[#This Row],[Alloc]]=\"CA\",tblDeprExpLookup[[#This Row],[Alloc]]=\"WA\"),\"SITUS\",tblDeprExpLookup[[#This Row],[Alloc]])","v":"SG"},"P"]
[{"$f":"CONCATENATE(tblDeprExpLookup[[#This Row],[Primary Account]],tblDeprExpLookup[[#This Row],[Primary Name]],tblDeprExpLookup[[#This Row],[Secondary Acct]],tblDeprExpLookup[[#This Row],[Secondary  Name]],tblDeprExpLookup[[#This Row],[Alloc4Func]])","v":"4030000DEPN EXPENSE-ELECT3900000STRUCTURES AND IMPROVEMENTSSE"},4030000,"DEPN EXPENSE-ELECT",3900000,"STRUCTURES AND IMPROVEMENTS","SE",null,{"$f":"IF(OR(tblDeprExpLookup[[#This Row],[Alloc]]=\"IDU\",tblDeprExpLookup[[#This Row],[Alloc]]=\"OR\",tblDeprExpLookup[[#This Row],[Alloc]]=\"UT\",tblDeprExpLookup[[#This Row],[Alloc]]=\"WYU\",tblDeprExpLookup[[#This Row],[Alloc]]=\"WYP\",tblDeprExpLookup[[#This Row],[Alloc]]=\"CA\",tblDeprExpLookup[[#This Row],[Alloc]]=\"WA\"),\"SITUS\",tblDeprExpLookup[[#This Row],[Alloc]])","v":"SE"},"P"]
[{"$f":"CONCATENATE(tblDeprExpLookup[[#This Row],[Primary Account]],tblDeprExpLookup[[#This Row],[Primary Name]],tblDeprExpLookup[[#This Row],[Secondary Acct]],tblDeprExpLookup[[#This Row],[Secondary  Name]],tblDeprExpLookup[[#This Row],[Alloc4Func]])","v":"4030000DEPN EXPENSE-ELECT3900000STRUCTURES AND IMPROVEMENTSSO"},4030000,"DEPN EXPENSE-ELECT",3900000,"STRUCTURES AND IMPROVEMENTS","SO",null,{"$f":"IF(OR(tblDeprExpLookup[[#This Row],[Alloc]]=\"IDU\",tblDeprExpLookup[[#This Row],[Alloc]]=\"OR\",tblDeprExpLookup[[#This Row],[Alloc]]=\"UT\",tblDeprExpLookup[[#This Row],[Alloc]]=\"WYU\",tblDeprExpLookup[[#This Row],[Alloc]]=\"WYP\",tblDeprExpLookup[[#This Row],[Alloc]]=\"CA\",tblDeprExpLookup[[#This Row],[Alloc]]=\"WA\"),\"SITUS\",tblDeprExpLookup[[#This Row],[Alloc]])","v":"SO"},"PTD"]
[{"$f":"CONCATENATE(tblDeprExpLookup[[#This Row],[Primary Account]],tblDeprExpLookup[[#This Row],[Primary Name]],tblDeprExpLookup[[#This Row],[Secondary Acct]],tblDeprExpLookup[[#This Row],[Secondary  Name]],tblDeprExpLookup[[#This Row],[Alloc4Func]])","v":"4030000DEPN EXPENSE-ELECT3311000STRUCTURES AND IMPROVE-PRODUCTIONSG-P"},4030000,"DEPN EXPENSE-ELECT",3311000,"STRUCTURES AND IMPROVE-PRODUCTION","SG-P",null,{"$f":"IF(OR(tblDeprExpLookup[[#This Row],[Alloc]]=\"IDU\",tblDeprExpLookup[[#This Row],[Alloc]]=\"OR\",tblDeprExpLookup[[#This Row],[Alloc]]=\"UT\",tblDeprExpLookup[[#This Row],[Alloc]]=\"WYU\",tblDeprExpLookup[[#This Row],[Alloc]]=\"WYP\",tblDeprExpLookup[[#This Row],[Alloc]]=\"CA\",tblDeprExpLookup[[#This Row],[Alloc]]=\"WA\"),\"SITUS\",tblDeprExpLookup[[#This Row],[Alloc]])","v":"SG-P"},"P"]
[{"$f":"CONCATENATE(tblDeprExpLookup[[#This Row],[Primary Account]],tblDeprExpLookup[[#This Row],[Primary Name]],tblDeprExpLookup[[#This Row],[Secondary Acct]],tblDeprExpLookup[[#This Row],[Secondary  Name]],tblDeprExpLookup[[#This Row],[Alloc4Func]])","v":"4030000DEPN EXPENSE-ELECT3311000STRUCTURES AND IMPROVE-PRODUCTIONSG-U"},4030000,"DEPN EXPENSE-ELECT",3311000,"STRUCTURES AND IMPROVE-PRODUCTION","SG-U",null,{"$f":"IF(OR(tblDeprExpLookup[[#This Row],[Alloc]]=\"IDU\",tblDeprExpLookup[[#This Row],[Alloc]]=\"OR\",tblDeprExpLookup[[#This Row],[Alloc]]=\"UT\",tblDeprExpLookup[[#This Row],[Alloc]]=\"WYU\",tblDeprExpLookup[[#This Row],[Alloc]]=\"WYP\",tblDeprExpLookup[[#This Row],[Alloc]]=\"CA\",tblDeprExpLookup[[#This Row],[Alloc]]=\"WA\"),\"SITUS\",tblDeprExpLookup[[#This Row],[Alloc]])","v":"SG-U"},"P"]
[{"$f":"CONCATENATE(tblDeprExpLookup[[#This Row],[Primary Account]],tblDeprExpLookup[[#This Row],[Primary Name]],tblDeprExpLookup[[#This Row],[Secondary Acct]],tblDeprExpLookup[[#This Row],[Secondary  Name]],tblDeprExpLookup[[#This Row],[Alloc4Func]])","v":"4030000DEPN EXPENSE-ELECT3313000STRUCTURES AND IMPROVE-RECREATIONSG-P"},4030000,"DEPN EXPENSE-ELECT",3313000,"STRUCTURES AND IMPROVE-RECREATION","SG-P",null,{"$f":"IF(OR(tblDeprExpLookup[[#This Row],[Alloc]]=\"IDU\",tblDeprExpLookup[[#This Row],[Alloc]]=\"OR\",tblDeprExpLookup[[#This Row],[Alloc]]=\"UT\",tblDeprExpLookup[[#This Row],[Alloc]]=\"WYU\",tblDeprExpLookup[[#This Row],[Alloc]]=\"WYP\",tblDeprExpLookup[[#This Row],[Alloc]]=\"CA\",tblDeprExpLookup[[#This Row],[Alloc]]=\"WA\"),\"SITUS\",tblDeprExpLookup[[#This Row],[Alloc]])","v":"SG-P"},"P"]
[{"$f":"CONCATENATE(tblDeprExpLookup[[#This Row],[Primary Account]],tblDeprExpLookup[[#This Row],[Primary Name]],tblDeprExpLookup[[#This Row],[Secondary Acct]],tblDeprExpLookup[[#This Row],[Secondary  Name]],tblDeprExpLookup[[#This Row],[Alloc4Func]])","v":"4030000DEPN EXPENSE-ELECT3313000STRUCTURES AND IMPROVE-RECREATIONSG-U"},4030000,"DEPN EXPENSE-ELECT",3313000,"STRUCTURES AND IMPROVE-RECREATION","SG-U",null,{"$f":"IF(OR(tblDeprExpLookup[[#This Row],[Alloc]]=\"IDU\",tblDeprExpLookup[[#This Row],[Alloc]]=\"OR\",tblDeprExpLookup[[#This Row],[Alloc]]=\"UT\",tblDeprExpLookup[[#This Row],[Alloc]]=\"WYU\",tblDeprExpLookup[[#This Row],[Alloc]]=\"WYP\",tblDeprExpLookup[[#This Row],[Alloc]]=\"CA\",tblDeprExpLookup[[#This Row],[Alloc]]=\"WA\"),\"SITUS\",tblDeprExpLookup[[#This Row],[Alloc]])","v":"SG-U"},"P"]
[{"$f":"CONCATENATE(tblDeprExpLookup[[#This Row],[Primary Account]],tblDeprExpLookup[[#This Row],[Primary Name]],tblDeprExpLookup[[#This Row],[Secondary Acct]],tblDeprExpLookup[[#This Row],[Secondary  Name]],tblDeprExpLookup[[#This Row],[Alloc4Func]])","v":"4030000DEPN EXPENSE-ELECT3540000TOWERS AND FIXTURESSG"},4030000,"DEPN EXPENSE-ELECT",3540000,"TOWERS AND FIXTURES","SG",null,{"$f":"IF(OR(tblDeprExpLookup[[#This Row],[Alloc]]=\"IDU\",tblDeprExpLookup[[#This Row],[Alloc]]=\"OR\",tblDeprExpLookup[[#This Row],[Alloc]]=\"UT\",tblDeprExpLookup[[#This Row],[Alloc]]=\"WYU\",tblDeprExpLookup[[#This Row],[Alloc]]=\"WYP\",tblDeprExpLookup[[#This Row],[Alloc]]=\"CA\",tblDeprExpLookup[[#This Row],[Alloc]]=\"WA\"),\"SITUS\",tblDeprExpLookup[[#This Row],[Alloc]])","v":"SG"},"T"]
[{"$f":"CONCATENATE(tblDeprExpLookup[[#This Row],[Primary Account]],tblDeprExpLookup[[#This Row],[Primary Name]],tblDeprExpLookup[[#This Row],[Secondary Acct]],tblDeprExpLookup[[#This Row],[Secondary  Name]],tblDeprExpLookup[[#This Row],[Alloc4Func]])","v":"4030000DEPN EXPENSE-ELECT3140000TURBOGENERATOR UNITSSG"},4030000,"DEPN EXPENSE-ELECT",3140000,"TURBOGENERATOR UNITS","SG",null,{"$f":"IF(OR(tblDeprExpLookup[[#This Row],[Alloc]]=\"IDU\",tblDeprExpLookup[[#This Row],[Alloc]]=\"OR\",tblDeprExpLookup[[#This Row],[Alloc]]=\"UT\",tblDeprExpLookup[[#This Row],[Alloc]]=\"WYU\",tblDeprExpLookup[[#This Row],[Alloc]]=\"WYP\",tblDeprExpLookup[[#This Row],[Alloc]]=\"CA\",tblDeprExpLookup[[#This Row],[Alloc]]=\"WA\"),\"SITUS\",tblDeprExpLookup[[#This Row],[Alloc]])","v":"SG"},"P"]
[{"$f":"CONCATENATE(tblDeprExpLookup[[#This Row],[Primary Account]],tblDeprExpLookup[[#This Row],[Primary Name]],tblDeprExpLookup[[#This Row],[Secondary Acct]],tblDeprExpLookup[[#This Row],[Secondary  Name]],tblDeprExpLookup[[#This Row],[Alloc4Func]])","v":"4030000DEPN EXPENSE-ELECT3670000UNDERGROUND CONDUCTORS & DEVICESSITUS"},4030000,"DEPN EXPENSE-ELECT",3670000,"UNDERGROUND CONDUCTORS & DEVICES","SITUS",null,{"$f":"IF(OR(tblDeprExpLookup[[#This Row],[Alloc]]=\"IDU\",tblDeprExpLookup[[#This Row],[Alloc]]=\"OR\",tblDeprExpLookup[[#This Row],[Alloc]]=\"UT\",tblDeprExpLookup[[#This Row],[Alloc]]=\"WYU\",tblDeprExpLookup[[#This Row],[Alloc]]=\"WYP\",tblDeprExpLookup[[#This Row],[Alloc]]=\"CA\",tblDeprExpLookup[[#This Row],[Alloc]]=\"WA\"),\"SITUS\",tblDeprExpLookup[[#This Row],[Alloc]])","v":"SITUS"},"DPW"]
[{"$f":"CONCATENATE(tblDeprExpLookup[[#This Row],[Primary Account]],tblDeprExpLookup[[#This Row],[Primary Name]],tblDeprExpLookup[[#This Row],[Secondary Acct]],tblDeprExpLookup[[#This Row],[Secondary  Name]],tblDeprExpLookup[[#This Row],[Alloc4Func]])","v":"4030000DEPN EXPENSE-ELECT3580000UNDERGROUND CONDUCTORS & DEVICESSG"},4030000,"DEPN EXPENSE-ELECT",3580000,"UNDERGROUND CONDUCTORS & DEVICES","SG",null,{"$f":"IF(OR(tblDeprExpLookup[[#This Row],[Alloc]]=\"IDU\",tblDeprExpLookup[[#This Row],[Alloc]]=\"OR\",tblDeprExpLookup[[#This Row],[Alloc]]=\"UT\",tblDeprExpLookup[[#This Row],[Alloc]]=\"WYU\",tblDeprExpLookup[[#This Row],[Alloc]]=\"WYP\",tblDeprExpLookup[[#This Row],[Alloc]]=\"CA\",tblDeprExpLookup[[#This Row],[Alloc]]=\"WA\"),\"SITUS\",tblDeprExpLookup[[#This Row],[Alloc]])","v":"SG"},"T"]
[{"$f":"CONCATENATE(tblDeprExpLookup[[#This Row],[Primary Account]],tblDeprExpLookup[[#This Row],[Primary Name]],tblDeprExpLookup[[#This Row],[Secondary Acct]],tblDeprExpLookup[[#This Row],[Secondary  Name]],tblDeprExpLookup[[#This Row],[Alloc4Func]])","v":"4030000DEPN EXPENSE-ELECT3660000UNDERGROUND CONDUITSITUS"},4030000,"DEPN EXPENSE-ELECT",3660000,"UNDERGROUND CONDUIT","SITUS",null,{"$f":"IF(OR(tblDeprExpLookup[[#This Row],[Alloc]]=\"IDU\",tblDeprExpLookup[[#This Row],[Alloc]]=\"OR\",tblDeprExpLookup[[#This Row],[Alloc]]=\"UT\",tblDeprExpLookup[[#This Row],[Alloc]]=\"WYU\",tblDeprExpLookup[[#This Row],[Alloc]]=\"WYP\",tblDeprExpLookup[[#This Row],[Alloc]]=\"CA\",tblDeprExpLookup[[#This Row],[Alloc]]=\"WA\"),\"SITUS\",tblDeprExpLookup[[#This Row],[Alloc]])","v":"SITUS"},"DPW"]
[{"$f":"CONCATENATE(tblDeprExpLookup[[#This Row],[Primary Account]],tblDeprExpLookup[[#This Row],[Primary Name]],tblDeprExpLookup[[#This Row],[Secondary Acct]],tblDeprExpLookup[[#This Row],[Secondary  Name]],tblDeprExpLookup[[#This Row],[Alloc4Func]])","v":"4030000DEPN EXPENSE-ELECT3570000UNDERGROUND CONDUITSG"},4030000,"DEPN EXPENSE-ELECT",3570000,"UNDERGROUND CONDUIT","SG",null,{"$f":"IF(OR(tblDeprExpLookup[[#This Row],[Alloc]]=\"IDU\",tblDeprExpLookup[[#This Row],[Alloc]]=\"OR\",tblDeprExpLookup[[#This Row],[Alloc]]=\"UT\",tblDeprExpLookup[[#This Row],[Alloc]]=\"WYU\",tblDeprExpLookup[[#This Row],[Alloc]]=\"WYP\",tblDeprExpLookup[[#This Row],[Alloc]]=\"CA\",tblDeprExpLookup[[#This Row],[Alloc]]=\"WA\"),\"SITUS\",tblDeprExpLookup[[#This Row],[Alloc]])","v":"SG"},"T"]
[{"$f":"CONCATENATE(tblDeprExpLookup[[#This Row],[Primary Account]],tblDeprExpLookup[[#This Row],[Primary Name]],tblDeprExpLookup[[#This Row],[Secondary Acct]],tblDeprExpLookup[[#This Row],[Secondary  Name]],tblDeprExpLookup[[#This Row],[Alloc4Func]])","v":"4030000DEPN EXPENSE-ELECT3303000WATER RIGHTSSG-P"},4030000,"DEPN EXPENSE-ELECT",3303000,"WATER RIGHTS","SG-P",null,{"$f":"IF(OR(tblDeprExpLookup[[#This Row],[Alloc]]=\"IDU\",tblDeprExpLookup[[#This Row],[Alloc]]=\"OR\",tblDeprExpLookup[[#This Row],[Alloc]]=\"UT\",tblDeprExpLookup[[#This Row],[Alloc]]=\"WYU\",tblDeprExpLookup[[#This Row],[Alloc]]=\"WYP\",tblDeprExpLookup[[#This Row],[Alloc]]=\"CA\",tblDeprExpLookup[[#This Row],[Alloc]]=\"WA\"),\"SITUS\",tblDeprExpLookup[[#This Row],[Alloc]])","v":"SG-P"},"P"]
[{"$f":"CONCATENATE(tblDeprExpLookup[[#This Row],[Primary Account]],tblDeprExpLookup[[#This Row],[Primary Name]],tblDeprExpLookup[[#This Row],[Secondary Acct]],tblDeprExpLookup[[#This Row],[Secondary  Name]],tblDeprExpLookup[[#This Row],[Alloc4Func]])","v":"4030000DEPN EXPENSE-ELECT3303000WATER RIGHTSSG-U"},4030000,"DEPN EXPENSE-ELECT",3303000,"WATER RIGHTS","SG-U",null,{"$f":"IF(OR(tblDeprExpLookup[[#This Row],[Alloc]]=\"IDU\",tblDeprExpLookup[[#This Row],[Alloc]]=\"OR\",tblDeprExpLookup[[#This Row],[Alloc]]=\"UT\",tblDeprExpLookup[[#This Row],[Alloc]]=\"WYU\",tblDeprExpLookup[[#This Row],[Alloc]]=\"WYP\",tblDeprExpLookup[[#This Row],[Alloc]]=\"CA\",tblDeprExpLookup[[#This Row],[Alloc]]=\"WA\"),\"SITUS\",tblDeprExpLookup[[#This Row],[Alloc]])","v":"SG-U"},"P"]

{"sheet":"ELEC OPS June19data","index":14,"n_rows":64,"n_cols":10,"rows_kept":64,"cut":false,"hidden":false,"merged":[]}
["Concat","Primary Account","Primary Name","Secondary Acct","Secondary  Name","Alloc","Total ($000)","Alloc4Func","FUNC","Investigate?"]
[{"$f":"CONCATENATE(tblELECOPSJune19[[#This Row],[Primary Account]],tblELECOPSJune19[[#This Row],[Primary Name]],tblELECOPSJune19[[#This Row],[Secondary Acct]],tblELECOPSJune19[[#This Row],[Secondary  Name]],tblELECOPSJune19[[#This Row],[Alloc4Func]])","v":"4561100Other Wheeling Rev301952Ancillary Rev Sch 6-Supp (Transm)SG"},4561100,"Other Wheeling Rev",301952,"Ancillary Rev Sch 6-Supp (Transm)","SG",531.85965999999996,{"$f":"IF(OR(tblELECOPSJune19[[#This Row],[Alloc]]=\"IDU\",tblELECOPSJune19[[#This Row],[Alloc]]=\"OR\",tblELECOPSJune19[[#This Row],[Alloc]]=\"UT\",tblELECOPSJune19[[#This Row],[Alloc]]=\"WYU\",tblELECOPSJune19[[#This Row],[Alloc]]=\"WYP\",tblELECOPSJune19[[#This Row],[Alloc]]=\"CA\",tblELECOPSJune19[[#This Row],[Alloc]]=\"WA\"),\"SITUS\",tblELECOPSJune19[[#This Row],[Alloc]])","v":"SG"},{"$f":"INDEX(tblELECOPSLookup[FUNC],MATCH(tblELECOPSJune19[[#This Row],[Concat]],tblELECOPSLookup[Concat],0))","v":"T"},{"$f":"IF(tblELECOPSJune19[[#This Row],[Total ($000)]]=0,\"NO\",IF(ISNA(tblELECOPSJune19[[#This Row],[FUNC]]),\"YES\",IF(_xlfn.ISFORMULA(tblELECOPSJune19[[#This Row],[FUNC]]),\"NO\",\"YES\")))","v":"NO"}]
[{"$f":"CONCATENATE(tblELECOPSJune19[[#This Row],[Primary Account]],tblELECOPSJune19[[#This Row],[Primary Name]],tblELECOPSJune19[[#This Row],[Secondary Acct]],tblELECOPSJune19[[#This Row],[Secondary  Name]],tblELECOPSJune19[[#This Row],[Alloc4Func]])","v":"4561100Other Wheeling Rev301953Ancillary Rev Sch 6-Supp (C&T)SG"},4561100,"Other Wheeling Rev",301953,"Ancillary Rev Sch 6-Supp (C&T)","SG",-1666.7689800000001,{"$f":"IF(OR(tblELECOPSJune19[[#This Row],[Alloc]]=\"IDU\",tblELECOPSJune19[[#This Row],[Alloc]]=\"OR\",tblELECOPSJune19[[#This Row],[Alloc]]=\"UT\",tblELECOPSJune19[[#This Row],[Alloc]]=\"WYU\",tblELECOPSJune19[[#This Row],[Alloc]]=\"WYP\",tblELECOPSJune19[[#This Row],[Alloc]]=\"CA\",tblELECOPSJune19[[#This Row],[Alloc]]=\"WA\"),\"SITUS\",tblELECOPSJune19[[#This Row],[Alloc]])","v":"SG"},{"$f":"INDEX(tblELECOPSLookup[FUNC],MATCH(tblELECOPSJune19[[#This Row],[Concat]],tblELECOPSLookup[Concat],0))","v":"T"},{"$f":"IF(tblELECOPSJune19[[#This Row],[Total ($000)]]=0,\"NO\",IF(ISNA(tblELECOPSJune19[[#This Row],[FUNC]]),\"YES\",IF(_xlfn.ISFORMULA(tblELECOPSJune19[[#This Row],[FUNC]]),\"NO\",\"YES\")))","v":"NO"}]
[{"$f":"CONCATENATE(tblELECOPSJune19[[#This Row],[Primary Account]],tblELECOPSJune19[[#This Row],[Primary Name]],tblELECOPSJune19[[#This Row],[Secondary Acct]],tblELECOPSJune19[[#This Row],[Secondary  Name]],tblELECOPSJune19[[#This Row],[Alloc4Func]])","v":"4561100Other Wheeling Rev301963Ancil Revenue Sch 2-Reactive (C&T)SG"},4561100,"Other Wheeling Rev",301963,"Ancil Revenue Sch 2-Reactive (C&T)","SG",-1032.7102299999999,{"$f":"IF(OR(tblELECOPSJune19[[#This Row],[Alloc]]=\"IDU\",tblELECOPSJune19[[#This Row],[Alloc]]=\"OR\",tblELECOPSJune19[[#This Row],[Alloc]]=\"UT\",tblELECOPSJune19[[#This Row],[Alloc]]=\"WYU\",tblELECOPSJune19[[#This Row],[Alloc]]=\"WYP\",tblELECOPSJune19[[#This Row],[Alloc]]=\"CA\",tblELECOPSJune19[[#This Row],[Alloc]]=\"WA\"),\"SITUS\",tblELECOPSJune19[[#This Row],[Alloc]])","v":"SG"},{"$f":"INDEX(tblELECOPSLookup[FUNC],MATCH(tblELECOPSJune19[[#This Row],[Concat]],tblELECOPSLookup[Concat],0))","v":"T"},{"$f":"IF(tblELECOPSJune19[[#This Row],[Total ($000)]]=0,\"NO\",IF(ISNA(tblELECOPSJune19[[#This Row],[FUNC]]),\"YES\",IF(_xlfn.ISFORMULA(tblELECOPSJune19[[#This Row],[FUNC]]),\"NO\",\"YES\")))","v":"NO"}]
[{"$f":"CONCATENATE(tblELECOPSJune19[[#This Row],[Primary Account]],tblELECOPSJune19[[#This Row],[Primary Name]],tblELECOPSJune19[[#This Row],[Secondary Acct]],tblELECOPSJune19[[#This Row],[Secondary  Name]],tblELECOPSJune19[[#This Row],[Alloc4Func]])","v":"4561100Other Wheeling Rev301966Primary Delivery and Distribution Sub ChSG"},4561100,"Other Wheeling Rev",301966,"Primary Delivery and Distribution Sub Ch","SG",-495.79295999999999,{"$f":"IF(OR(tblELECOPSJune19[[#This Row],[Alloc]]=\"IDU\",tblELECOPSJune19[[#This Row],[Alloc]]=\"OR\",tblELECOPSJune19[[#This Row],[Alloc]]=\"UT\",tblELECOPSJune19[[#This Row],[Alloc]]=\"WYU\",tblELECOPSJune19[[#This Row],[Alloc]]=\"WYP\",tblELECOPSJune19[[#This Row],[Alloc]]=\"CA\",tblELECOPSJune19[[#This Row],[Alloc]]=\"WA\"),\"SITUS\",tblELECOPSJune19[[#This Row],[Alloc]])","v":"SG"},{"$f":"INDEX(tblELECOPSLookup[FUNC],MATCH(tblELECOPSJune19[[#This Row],[Concat]],tblELECOPSLookup[Concat],0))","v":"T"},{"$f":"IF(tblELECOPSJune19[[#This Row],[Total ($000)]]=0,\"NO\",IF(ISNA(tblELECOPSJune19[[#This Row],[FUNC]]),\"YES\",IF(_xlfn.ISFORMULA(tblELECOPSJune19[[#This Row],[FUNC]]),\"NO\",\"YES\")))","v":"NO"}]
[{"$f":"CONCATENATE(tblELECOPSJune19[[#This Row],[Primary Account]],tblELECOPSJune19[[#This Row],[Primary Name]],tblELECOPSJune19[[#This Row],[Secondary Acct]],tblELECOPSJune19[[#This Row],[Secondary  Name]],tblELECOPSJune19[[#This Row],[Alloc4Func]])","v":"4561100Other Wheeling Rev301967Ancillary Revenue Sch 1 - SchedulingSG"},4561100,"Other Wheeling Rev",301967,"Ancillary Revenue Sch 1 - Scheduling","SG",-2041.3429100000001,{"$f":"IF(OR(tblELECOPSJune19[[#This Row],[Alloc]]=\"IDU\",tblELECOPSJune19[[#This Row],[Alloc]]=\"OR\",tblELECOPSJune19[[#This Row],[Alloc]]=\"UT\",tblELECOPSJune19[[#This Row],[Alloc]]=\"WYU\",tblELECOPSJune19[[#This Row],[Alloc]]=\"WYP\",tblELECOPSJune19[[#This Row],[Alloc]]=\"CA\",tblELECOPSJune19[[#This Row],[Alloc]]=\"WA\"),\"SITUS\",tblELECOPSJune19[[#This Row],[Alloc]])","v":"SG"},{"$f":"INDEX(tblELECOPSLookup[FUNC],MATCH(tblELECOPSJune19[[#This Row],[Concat]],tblELECOPSLookup[Concat],0))","v":"T"},{"$f":"IF(tblELECOPSJune19[[#This Row],[Total ($000)]]=0,\"NO\",IF(ISNA(tblELECOPSJune19[[#This Row],[FUNC]]),\"YES\",IF(_xlfn.ISFORMULA(tblELECOPSJune19[[#This Row],[FUNC]]),\"NO\",\"YES\")))","v":"NO"}]
[{"$f":"CONCATENATE(tblELECOPSJune19[[#This Row],[Primary Account]],tblELECOPSJune19[[#This Row],[Primary Name]],tblELECOPSJune19[[#This Row],[Secondary Acct]],tblELECOPSJune19[[#This Row],[Secondary  Name]],tblELECOPSJune19[[#This Row],[Alloc4Func]])","v":"4561100Other Wheeling Rev301969Ancillary Revenue Sch 3 - Reg&Freq (C&T)SG"},4561100,"Other Wheeling Rev",301969,"Ancillary Revenue Sch 3 - Reg&Freq (C&T)","SG",-3131.1574999999998,{"$f":"IF(OR(tblELECOPSJune19[[#This Row],[Alloc]]=\"IDU\",tblELECOPSJune19[[#This Row],[Alloc]]=\"OR\",tblELECOPSJune19[[#This Row],[Alloc]]=\"UT\",tblELECOPSJune19[[#This Row],[Alloc]]=\"WYU\",tblELECOPSJune19[[#This Row],[Alloc]]=\"WYP\",tblELECOPSJune19[[#This Row],[Alloc]]=\"CA\",tblELECOPSJune19[[#This Row],[Alloc]]=\"WA\"),\"SITUS\",tblELECOPSJune19[[#This Row],[Alloc]])","v":"SG"},{"$f":"INDEX(tblELECOPSLookup[FUNC],MATCH(tblELECOPSJune19[[#This Row],[Concat]],tblELECOPSLookup[Concat],0))","v":"T"},{"$f":"IF(tblELECOPSJune19[[#This Row],[Total ($000)]]=0,\"NO\",IF(ISNA(tblELECOPSJune19[[#This Row],[FUNC]]),\"YES\",IF(_xlfn.ISFORMULA(tblELECOPSJune19[[#This Row],[FUNC]]),\"NO\",\"YES\")))","v":"NO"}]
[{"$f":"CONCATENATE(tblELECOPSJune19[[#This Row],[Primary Account]],tblELECOPSJune19[[#This Row],[Primary Name]],tblELECOPSJune19[[#This Row],[Secondary Acct]],tblELECOPSJune19[[#This Row],[Secondary  Name]],tblELECOPSJune19[[#This Row],[Alloc4Func]])","v":"4561100Other Wheeling Rev301972Ancillary Revenue Sch 5&6-Spin&Supp (TraSG"},4561100,"Other Wheeling Rev",301972,"Ancillary Revenue Sch 5&6-Spin&Supp (Tra","SG",247.69057000000001,{"$f":"IF(OR(tblELECOPSJune19[[#This Row],[Alloc]]=\"IDU\",tblELECOPSJune19[[#This Row],[Alloc]]=\"OR\",tblELECOPSJune19[[#This Row],[Alloc]]=\"UT\",tblELECOPSJune19[[#This Row],[Alloc]]=\"WYU\",tblELECOPSJune19[[#This Row],[Alloc]]=\"WYP\",tblELECOPSJune19[[#This Row],[Alloc]]=\"CA\",tblELECOPSJune19[[#This Row],[Alloc]]=\"WA\"),\"SITUS\",tblELECOPSJune19[[#This Row],[Alloc]])","v":"SG"},{"$f":"INDEX(tblELECOPSLookup[FUNC],MATCH(tblELECOPSJune19[[#This Row],[Concat]],tblELECOPSLookup[Concat],0))","v":"T"},{"$f":"IF(tblELECOPSJune19[[#This Row],[Total ($000)]]=0,\"NO\",IF(ISNA(tblELECOPSJune19[[#This Row],[FUNC]]),\"YES\",IF(_xlfn.ISFORMULA(tblELECOPSJune19[[#This Row],[FUNC]]),\"NO\",\"YES\")))","v":"NO"}]
[{"$f":"CONCATENATE(tblELECOPSJune19[[#This Row],[Primary Account]],tblELECOPSJune19[[#This Row],[Primary Name]],tblELECOPSJune19[[#This Row],[Secondary Acct]],tblELECOPSJune19[[#This Row],[Secondary  Name]],tblELECOPSJune19[[#This Row],[Alloc4Func]])","v":"4561100Other Wheeling Rev301973Ancillary Revenue Sch 5&6-Spin&Supp (C&TSG"},4561100,"Other Wheeling Rev",301973,"Ancillary Revenue Sch 5&6-Spin&Supp (C&T","SG",-1705.2462800000001,{"$f":"IF(OR(tblELECOPSJune19[[#This Row],[Alloc]]=\"IDU\",tblELECOPSJune19[[#This Row],[Alloc]]=\"OR\",tblELECOPSJune19[[#This Row],[Alloc]]=\"UT\",tblELECOPSJune19[[#This Row],[Alloc]]=\"WYU\",tblELECOPSJune19[[#This Row],[Alloc]]=\"WYP\",tblELECOPSJune19[[#This Row],[Alloc]]=\"CA\",tblELECOPSJune19[[#This Row],[Alloc]]=\"WA\"),\"SITUS\",tblELECOPSJune19[[#This Row],[Alloc]])","v":"SG"},{"$f":"INDEX(tblELECOPSLookup[FUNC],MATCH(tblELECOPSJune19[[#This Row],[Concat]],tblELECOPSLookup[Concat],0))","v":"T"},{"$f":"IF(tblELECOPSJune19[[#This Row],[Total ($000)]]=0,\"NO\",IF(ISNA(tblELECOPSJune19[[#This Row],[FUNC]]),\"YES\",IF(_xlfn.ISFORMULA(tblELECOPSJune19[[#This Row],[FUNC]]),\"NO\",\"YES\")))","v":"NO"}]
[{"$f":"CONCATENATE(tblELECOPSJune19[[#This Row],[Primary Account]],tblELECOPSJune19[[#This Row],[Primary Name]],tblELECOPSJune19[[#This Row],[Secondary Acct]],tblELECOPSJune19[[#This Row],[Secondary  Name]],tblELECOPSJune19[[#This Row],[Alloc4Func]])","v":"4561100Other Wheeling Rev301974Ancil Revenue Sch 3a-Regulation (C&T)SG"},4561100,"Other Wheeling Rev",301974,"Ancil Revenue Sch 3a-Regulation (C&T)","SG",-3804.6260000000002,{"$f":"IF(OR(tblELECOPSJune19[[#This Row],[Alloc]]=\"IDU\",tblELECOPSJune19[[#This Row],[Alloc]]=\"OR\",tblELECOPSJune19[[#This Row],[Alloc]]=\"UT\",tblELECOPSJune19[[#This Row],[Alloc]]=\"WYU\",tblELECOPSJune19[[#This Row],[Alloc]]=\"WYP\",tblELECOPSJune19[[#This Row],[Alloc]]=\"CA\",tblELECOPSJune19[[#This Row],[Alloc]]=\"WA\"),\"SITUS\",tblELECOPSJune19[[#This Row],[Alloc]])","v":"SG"},{"$f":"INDEX(tblELECOPSLookup[FUNC],MATCH(tblELECOPSJune19[[#This Row],[Concat]],tblELECOPSLookup[Concat],0))","v":"T"},{"$f":"IF(tblELECOPSJune19[[#This Row],[Total ($000)]]=0,\"NO\",IF(ISNA(tblELECOPSJune19[[#This Row],[FUNC]]),\"YES\",IF(_xlfn.ISFORMULA(tblELECOPSJune19[[#This Row],[FUNC]]),\"NO\",\"YES\")))","v":"NO"}]
[{"$f":"CONCATENATE(tblELECOPSJune19[[#This Row],[Primary Account]],tblELECOPSJune19[[#This Row],[Primary Name]],tblELECOPSJune19[[#This Row],[Secondary Acct]],tblELECOPSJune19[[#This Row],[Secondary  Name]],tblELECOPSJune19[[#This Row],[Alloc4Func]])","v":"4561100Other Wheeling Rev302082I/C Anc Rev Sch 1-Scheduling-Nevada PwrSG"},4561100,"Other Wheeling Rev",302082,"I/C Anc Rev Sch 1-Scheduling-Nevada Pwr","SG",-9.6732200000000006,{"$f":"IF(OR(tblELECOPSJune19[[#This Row],[Alloc]]=\"IDU\",tblELECOPSJune19[[#This Row],[Alloc]]=\"OR\",tblELECOPSJune19[[#This Row],[Alloc]]=\"UT\",tblELECOPSJune19[[#This Row],[Alloc]]=\"WYU\",tblELECOPSJune19[[#This Row],[Alloc]]=\"WYP\",tblELECOPSJune19[[#This Row],[Alloc]]=\"CA\",tblELECOPSJune19[[#This Row],[Alloc]]=\"WA\"),\"SITUS\",tblELECOPSJune19[[#This Row],[Alloc]])","v":"SG"},{"$f":"INDEX(tblELECOPSLookup[FUNC],MATCH(tblELECOPSJune19[[#This Row],[Concat]],tblELECOPSLookup[Concat],0))","v":"T"},{"$f":"IF(tblELECOPSJune19[[#This Row],[Total ($000)]]=0,\"NO\",IF(ISNA(tblELECOPSJune19[[#This Row],[FUNC]]),\"YES\",IF(_xlfn.ISFORMULA(tblELECOPSJune19[[#This Row],[FUNC]]),\"NO\",\"YES\")))","v":"NO"}]
[{"$f":"CONCATENATE(tblELECOPSJune19[[#This Row],[Primary Account]],tblELECOPSJune19[[#This Row],[Primary Name]],tblELECOPSJune19[[#This Row],[Secondary Acct]],tblELECOPSJune19[[#This Row],[Secondary  Name]],tblELECOPSJune19[[#This Row],[Alloc4Func]])","v":"4561100Other Wheeling Rev302092I/C Anc Rev Sch 2-Reactive-Nevada PwrSG"},4561100,"Other Wheeling Rev",302092,"I/C Anc Rev Sch 2-Reactive-Nevada Pwr","SG",-6.6415199999999999,{"$f":"IF(OR(tblELECOPSJune19[[#This Row],[Alloc]]=\"IDU\",tblELECOPSJune19[[#This Row],[Alloc]]=\"OR\",tblELECOPSJune19[[#This Row],[Alloc]]=\"UT\",tblELECOPSJune19[[#This Row],[Alloc]]=\"WYU\",tblELECOPSJune19[[#This Row],[Alloc]]=\"WYP\",tblELECOPSJune19[[#This Row],[Alloc]]=\"CA\",tblELECOPSJune19[[#This Row],[Alloc]]=\"WA\"),\"SITUS\",tblELECOPSJune19[[#This Row],[Alloc]])","v":"SG"},{"$f":"INDEX(tblELECOPSLookup[FUNC],MATCH(tblELECOPSJune19[[#This Row],[Concat]],tblELECOPSLookup[Concat],0))","v":"T"},{"$f":"IF(tblELECOPSJune19[[#This Row],[Total ($000)]]=0,\"NO\",IF(ISNA(tblELECOPSJune19[[#This Row],[FUNC]]),\"YES\",IF(_xlfn.ISFORMULA(tblELECOPSJune19[[#This Row],[FUNC]]),\"NO\",\"YES\")))","v":"NO"}]
[{"$f":"CONCATENATE(tblELECOPSJune19[[#This Row],[Primary Account]],tblELECOPSJune19[[#This Row],[Primary Name]],tblELECOPSJune19[[#This Row],[Secondary Acct]],tblELECOPSJune19[[#This Row],[Secondary  Name]],tblELECOPSJune19[[#This Row],[Alloc4Func]])","v":"4561100Other Wheeling Rev302831I/C Other Wheeling Revenue-Sierra PacSG"},4561100,"Other Wheeling Rev",302831,"I/C Other Wheeling Revenue-Sierra Pac","SG",-36.159120000000001,{"$f":"IF(OR(tblELECOPSJune19[[#This Row],[Alloc]]=\"IDU\",tblELECOPSJune19[[#This Row],[Alloc]]=\"OR\",tblELECOPSJune19[[#This Row],[Alloc]]=\"UT\",tblELECOPSJune19[[#This Row],[Alloc]]=\"WYU\",tblELECOPSJune19[[#This Row],[Alloc]]=\"WYP\",tblELECOPSJune19[[#This Row],[Alloc]]=\"CA\",tblELECOPSJune19[[#This Row],[Alloc]]=\"WA\"),\"SITUS\",tblELECOPSJune19[[#This Row],[Alloc]])","v":"SG"},{"$f":"INDEX(tblELECOPSLookup[FUNC],MATCH(tblELECOPSJune19[[#This Row],[Concat]],tblELECOPSLookup[Concat],0))","v":"T"},{"$f":"IF(tblELECOPSJune19[[#This Row],[Total ($000)]]=0,\"NO\",IF(ISNA(tblELECOPSJune19[[#This Row],[FUNC]]),\"YES\",IF(_xlfn.ISFORMULA(tblELECOPSJune19[[#This Row],[FUNC]]),\"NO\",\"YES\")))","v":"NO"}]
[{"$f":"CONCATENATE(tblELECOPSJune19[[#This Row],[Primary Account]],tblELECOPSJune19[[#This Row],[Primary Name]],tblELECOPSJune19[[#This Row],[Secondary Acct]],tblELECOPSJune19[[#This Row],[Secondary  Name]],tblELECOPSJune19[[#This Row],[Alloc4Func]])","v":"4561100Other Wheeling Rev302832I/C Other Wheeling Revenue-Nevada PwrSG"},4561100,"Other Wheeling Rev",302832,"I/C Other Wheeling Revenue-Nevada Pwr","SG",1.03477,{"$f":"IF(OR(tblELECOPSJune19[[#This Row],[Alloc]]=\"IDU\",tblELECOPSJune19[[#This Row],[Alloc]]=\"OR\",tblELECOPSJune19[[#This Row],[Alloc]]=\"UT\",tblELECOPSJune19[[#This Row],[Alloc]]=\"WYU\",tblELECOPSJune19[[#This Row],[Alloc]]=\"WYP\",tblELECOPSJune19[[#This Row],[Alloc]]=\"CA\",tblELECOPSJune19[[#This Row],[Alloc]]=\"WA\"),\"SITUS\",tblELECOPSJune19[[#This Row],[Alloc]])","v":"SG"},{"$f":"INDEX(tblELECOPSLookup[FUNC],MATCH(tblELECOPSJune19[[#This Row],[Concat]],tblELECOPSLookup[Concat],0))","v":"T"},{"$f":"IF(tblELECOPSJune19[[#This Row],[Total ($000)]]=0,\"NO\",IF(ISNA(tblELECOPSJune19[[#This Row],[FUNC]]),\"YES\",IF(_xlfn.ISFORMULA(tblELECOPSJune19[[#This Row],[FUNC]]),\"NO\",\"YES\")))","v":"NO"}]
[{"$f":"CONCATENATE(tblELECOPSJune19[[#This Row],[Primary Account]],tblELECOPSJune19[[#This Row],[Primary Name]],tblELECOPSJune19[[#This Row],[Secondary Acct]],tblELECOPSJune19[[#This Row],[Secondary  Name]],tblELECOPSJune19[[#This Row],[Alloc4Func]])","v":"4561100Other Wheeling Rev302901USE OF FACILITY REVENUESG"},4561100,"Other Wheeling Rev",302901,"USE OF FACILITY REVENUE","SG",-895.36586,{"$f":"IF(OR(tblELECOPSJune19[[#This Row],[Alloc]]=\"IDU\",tblELECOPSJune19[[#This Row],[Alloc]]=\"OR\",tblELECOPSJune19[[#This Row],[Alloc]]=\"UT\",tblELECOPSJune19[[#This Row],[Alloc]]=\"WYU\",tblELECOPSJune19[[#This Row],[Alloc]]=\"WYP\",tblELECOPSJune19[[#This Row],[Alloc]]=\"CA\",tblELECOPSJune19[[#This Row],[Alloc]]=\"WA\"),\"SITUS\",tblELECOPSJune19[[#This Row],[Alloc]])","v":"SG"},{"$f":"INDEX(tblELECOPSLookup[FUNC],MATCH(tblELECOPSJune19[[#This Row],[Concat]],tblELECOPSLookup[Concat],0))","v":"T"},{"$f":"IF(tblELECOPSJune19[[#This Row],[Total ($000)]]=0,\"NO\",IF(ISNA(tblELECOPSJune19[[#This Row],[FUNC]]),\"YES\",IF(_xlfn.ISFORMULA(tblELECOPSJune19[[#This Row],[FUNC]]),\"NO\",\"YES\")))","v":"NO"}]
[{"$f":"CONCATENATE(tblELECOPSJune19[[#This Row],[Primary Account]],tblELECOPSJune19[[#This Row],[Primary Name]],tblELECOPSJune19[[#This Row],[Secondary Acct]],tblELECOPSJune19[[#This Row],[Secondary  Name]],tblELECOPSJune19[[#This Row],[Alloc4Func]])","v":"4561100Other Wheeling Rev302981Transmission Resales to Other PartiesSG"},4561100,"Other Wheeling Rev",302981,"Transmission Resales to Other Parties","SG",-557.44151999999997,{"$f":"IF(OR(tblELECOPSJune19[[#This Row],[Alloc]]=\"IDU\",tblELECOPSJune19[[#This Row],[Alloc]]=\"OR\",tblELECOPSJune19[[#This Row],[Alloc]]=\"UT\",tblELECOPSJune19[[#This Row],[Alloc]]=\"WYU\",tblELECOPSJune19[[#This Row],[Alloc]]=\"WYP\",tblELECOPSJune19[[#This Row],[Alloc]]=\"CA\",tblELECOPSJune19[[#This Row],[Alloc]]=\"WA\"),\"SITUS\",tblELECOPSJune19[[#This Row],[Alloc]])","v":"SG"},{"$f":"INDEX(tblELECOPSLookup[FUNC],MATCH(tblELECOPSJune19[[#This Row],[Concat]],tblELECOPSLookup[Concat],0))","v":"T"},{"$f":"IF(tblELECOPSJune19[[#This Row],[Total ($000)]]=0,\"NO\",IF(ISNA(tblELECOPSJune19[[#This Row],[FUNC]]),\"YES\",IF(_xlfn.ISFORMULA(tblELECOPSJune19[[#This Row],[FUNC]]),\"NO\",\"YES\")))","v":"NO"}]
[{"$f":"CONCATENATE(tblELECOPSJune19[[#This Row],[Primary Account]],tblELECOPSJune19[[#This Row],[Primary Name]],tblELECOPSJune19[[#This Row],[Secondary Acct]],tblELECOPSJune19[[#This Row],[Secondary  Name]],tblELECOPSJune19[[#This Row],[Alloc4Func]])","v":"4561100Other Wheeling Rev302982Transmission Rev-Unreserved Use ChargesSG"},4561100,"Other Wheeling Rev",302982,"Transmission Rev-Unreserved Use Charges","SG",-992.71835999999996,{"$f":"IF(OR(tblELECOPSJune19[[#This Row],[Alloc]]=\"IDU\",tblELECOPSJune19[[#This Row],[Alloc]]=\"OR\",tblELECOPSJune19[[#This Row],[Alloc]]=\"UT\",tblELECOPSJune19[[#This Row],[Alloc]]=\"WYU\",tblELECOPSJune19[[#This Row],[Alloc]]=\"WYP\",tblELECOPSJune19[[#This Row],[Alloc]]=\"CA\",tblELECOPSJune19[[#This Row],[Alloc]]=\"WA\"),\"SITUS\",tblELECOPSJune19[[#This Row],[Alloc]])","v":"SG"},{"$f":"INDEX(tblELECOPSLookup[FUNC],MATCH(tblELECOPSJune19[[#This Row],[Concat]],tblELECOPSLookup[Concat],0))","v":"T"},{"$f":"IF(tblELECOPSJune19[[#This Row],[Total ($000)]]=0,\"NO\",IF(ISNA(tblELECOPSJune19[[#This Row],[FUNC]]),\"YES\",IF(_xlfn.ISFORMULA(tblELECOPSJune19[[#This Row],[FUNC]]),\"NO\",\"YES\")))","v":"NO"}]
[{"$f":"CONCATENATE(tblELECOPSJune19[[#This Row],[Primary Account]],tblELECOPSJune19[[#This Row],[Primary Name]],tblELECOPSJune19[[#This Row],[Secondary Acct]],tblELECOPSJune19[[#This Row],[Secondary  Name]],tblELECOPSJune19[[#This Row],[Alloc4Func]])","v":"4561100Other Wheeling Rev302983Transmission Revenue - Deferral FeesSG"},4561100,"Other Wheeling Rev",302983,"Transmission Revenue - Deferral Fees","SG",-119.61958,{"$f":"IF(OR(tblELECOPSJune19[[#This Row],[Alloc]]=\"IDU\",tblELECOPSJune19[[#This Row],[Alloc]]=\"OR\",tblELECOPSJune19[[#This Row],[Alloc]]=\"UT\",tblELECOPSJune19[[#This Row],[Alloc]]=\"WYU\",tblELECOPSJune19[[#This Row],[Alloc]]=\"WYP\",tblELECOPSJune19[[#This Row],[Alloc]]=\"CA\",tblELECOPSJune19[[#This Row],[Alloc]]=\"WA\"),\"SITUS\",tblELECOPSJune19[[#This Row],[Alloc]])","v":"SG"},{"$f":"INDEX(tblELECOPSLookup[FUNC],MATCH(tblELECOPSJune19[[#This Row],[Concat]],tblELECOPSLookup[Concat],0))","v":"T"},{"$f":"IF(tblELECOPSJune19[[#This Row],[Total ($000)]]=0,\"NO\",IF(ISNA(tblELECOPSJune19[[#This Row],[FUNC]]),\"YES\",IF(_xlfn.ISFORMULA(tblELECOPSJune19[[#This Row],[FUNC]]),\"NO\",\"YES\")))","v":"NO"}]
[{"$f":"CONCATENATE(tblELECOPSJune19[[#This Row],[Primary Account]],tblELECOPSJune19[[#This Row],[Primary Name]],tblELECOPSJune19[[#This Row],[Secondary Acct]],tblELECOPSJune19[[#This Row],[Secondary  Name]],tblELECOPSJune19[[#This Row],[Alloc4Func]])","v":"4561910S/T FIRM WHEEL REV301926SHORT TERM FIRM WHEELINGSG"},4561910,"S/T FIRM WHEEL REV",301926,"SHORT TERM FIRM WHEELING","SG",-3337.8321700000001,{"$f":"IF(OR(tblELECOPSJune19[[#This Row],[Alloc]]=\"IDU\",tblELECOPSJune19[[#This Row],[Alloc]]=\"OR\",tblELECOPSJune19[[#This Row],[Alloc]]=\"UT\",tblELECOPSJune19[[#This Row],[Alloc]]=\"WYU\",tblELECOPSJune19[[#This Row],[Alloc]]=\"WYP\",tblELECOPSJune19[[#This Row],[Alloc]]=\"CA\",tblELECOPSJune19[[#This Row],[Alloc]]=\"WA\"),\"SITUS\",tblELECOPSJune19[[#This Row],[Alloc]])","v":"SG"},{"$f":"INDEX(tblELECOPSLookup[FUNC],MATCH(tblELECOPSJune19[[#This Row],[Concat]],tblELECOPSLookup[Concat],0))","v":"T"},{"$f":"IF(tblELECOPSJune19[[#This Row],[Total ($000)]]=0,\"NO\",IF(ISNA(tblELECOPSJune19[[#This Row],[FUNC]]),\"YES\",IF(_xlfn.ISFORMULA(tblELECOPSJune19[[#This Row],[FUNC]]),\"NO\",\"YES\")))","v":"NO"}]
[{"$f":"CONCATENATE(tblELECOPSJune19[[#This Row],[Primary Account]],tblELECOPSJune19[[#This Row],[Primary Name]],tblELECOPSJune19[[#This Row],[Secondary Acct]],tblELECOPSJune19[[#This Row],[Secondary  Name]],tblELECOPSJune19[[#This Row],[Alloc4Func]])","v":"4561910S/T FIRM WHEEL REV302812I/C ST Firm Wheeling Revenue-Nevada PwrSG"},4561910,"S/T FIRM WHEEL REV",302812,"I/C ST Firm Wheeling Revenue-Nevada Pwr","SG",-385.95334000000003,{"$f":"IF(OR(tblELECOPSJune19[[#This Row],[Alloc]]=\"IDU\",tblELECOPSJune19[[#This Row],[Alloc]]=\"OR\",tblELECOPSJune19[[#This Row],[Alloc]]=\"UT\",tblELECOPSJune19[[#This Row],[Alloc]]=\"WYU\",tblELECOPSJune19[[#This Row],[Alloc]]=\"WYP\",tblELECOPSJune19[[#This Row],[Alloc]]=\"CA\",tblELECOPSJune19[[#This Row],[Alloc]]=\"WA\"),\"SITUS\",tblELECOPSJune19[[#This Row],[Alloc]])","v":"SG"},{"$f":"INDEX(tblELECOPSLookup[FUNC],MATCH(tblELECOPSJune19[[#This Row],[Concat]],tblELECOPSLookup[Concat],0))","v":"T"},{"$f":"IF(tblELECOPSJune19[[#This Row],[Total ($000)]]=0,\"NO\",IF(ISNA(tblELECOPSJune19[[#This Row],[FUNC]]),\"YES\",IF(_xlfn.ISFORMULA(tblELECOPSJune19[[#This Row],[FUNC]]),\"NO\",\"YES\")))","v":"NO"}]
[{"$f":"CONCATENATE(tblELECOPSJune19[[#This Row],[Primary Account]],tblELECOPSJune19[[#This Row],[Primary Name]],tblELECOPSJune19[[#This Row],[Secondary Acct]],tblELECOPSJune19[[#This Row],[Secondary  Name]],tblELECOPSJune19[[#This Row],[Alloc4Func]])","v":"4561920L/T FIRM WHEEL REV301912POST-MERGER FIRM WHEELINGSG"},4561920,"L/T FIRM WHEEL REV",301912,"POST-MERGER FIRM WHEELING","SG",-13662.983609999999,{"$f":"IF(OR(tblELECOPSJune19[[#This Row],[Alloc]]=\"IDU\",tblELECOPSJune19[[#This Row],[Alloc]]=\"OR\",tblELECOPSJune19[[#This Row],[Alloc]]=\"UT\",tblELECOPSJune19[[#This Row],[Alloc]]=\"WYU\",tblELECOPSJune19[[#This Row],[Alloc]]=\"WYP\",tblELECOPSJune19[[#This Row],[Alloc]]=\"CA\",tblELECOPSJune19[[#This Row],[Alloc]]=\"WA\"),\"SITUS\",tblELECOPSJune19[[#This Row],[Alloc]])","v":"SG"},{"$f":"INDEX(tblELECOPSLookup[FUNC],MATCH(tblELECOPSJune19[[#This Row],[Concat]],tblELECOPSLookup[Concat],0))","v":"T"},{"$f":"IF(tblELECOPSJune19[[#This Row],[Total ($000)]]=0,\"NO\",IF(ISNA(tblELECOPSJune19[[#This Row],[FUNC]]),\"YES\",IF(_xlfn.ISFORMULA(tblELECOPSJune19[[#This Row],[FUNC]]),\"NO\",\"YES\")))","v":"NO"}]
[{"$f":"CONCATENATE(tblELECOPSJune19[[#This Row],[Primary Account]],tblELECOPSJune19[[#This Row],[Primary Name]],tblELECOPSJune19[[#This Row],[Secondary Acct]],tblELECOPSJune19[[#This Row],[Secondary  Name]],tblELECOPSJune19[[#This Row],[Alloc4Func]])","v":"4561920L/T FIRM WHEEL REV301916PRE-MERGER FIRM WHEELINGSG"},4561920,"L/T FIRM WHEEL REV",301916,"PRE-MERGER FIRM WHEELING","SG",-7749.8704299999999,{"$f":"IF(OR(tblELECOPSJune19[[#This Row],[Alloc]]=\"IDU\",tblELECOPSJune19[[#This Row],[Alloc]]=\"OR\",tblELECOPSJune19[[#This Row],[Alloc]]=\"UT\",tblELECOPSJune19[[#This Row],[Alloc]]=\"WYU\",tblELECOPSJune19[[#This Row],[Alloc]]=\"WYP\",tblELECOPSJune19[[#This Row],[Alloc]]=\"CA\",tblELECOPSJune19[[#This Row],[Alloc]]=\"WA\"),\"SITUS\",tblELECOPSJune19[[#This Row],[Alloc]])","v":"SG"},{"$f":"INDEX(tblELECOPSLookup[FUNC],MATCH(tblELECOPSJune19[[#This Row],[Concat]],tblELECOPSLookup[Concat],0))","v":"T"},{"$f":"IF(tblELECOPSJune19[[#This Row],[Total ($000)]]=0,\"NO\",IF(ISNA(tblELECOPSJune19[[#This Row],[FUNC]]),\"YES\",IF(_xlfn.ISFORMULA(tblELECOPSJune19[[#This Row],[FUNC]]),\"NO\",\"YES\")))","v":"NO"}]
[{"$f":"CONCATENATE(tblELECOPSJune19[[#This Row],[Primary Account]],tblELECOPSJune19[[#This Row],[Primary Name]],tblELECOPSJune19[[#This Row],[Secondary Acct]],tblELECOPSJune19[[#This Row],[Secondary  Name]],tblELECOPSJune19[[#This Row],[Alloc4Func]])","v":"4561920L/T FIRM WHEEL REV301917PRE-MERGER FIRM WHEELINGSG"},4561920,"L/T FIRM WHEEL REV",301917,"PRE-MERGER FIRM WHEELING","SG",-23578.537189999999,{"$f":"IF(OR(tblELECOPSJune19[[#This Row],[Alloc]]=\"IDU\",tblELECOPSJune19[[#This Row],[Alloc]]=\"OR\",tblELECOPSJune19[[#This Row],[Alloc]]=\"UT\",tblELECOPSJune19[[#This Row],[Alloc]]=\"WYU\",tblELECOPSJune19[[#This Row],[Alloc]]=\"WYP\",tblELECOPSJune19[[#This Row],[Alloc]]=\"CA\",tblELECOPSJune19[[#This Row],[Alloc]]=\"WA\"),\"SITUS\",tblELECOPSJune19[[#This Row],[Alloc]])","v":"SG"},{"$f":"INDEX(tblELECOPSLookup[FUNC],MATCH(tblELECOPSJune19[[#This Row],[Concat]],tblELECOPSLookup[Concat],0))","v":"T"},{"$f":"IF(tblELECOPSJune19[[#This Row],[Total ($000)]]=0,\"NO\",IF(ISNA(tblELECOPSJune19[[#This Row],[FUNC]]),\"YES\",IF(_xlfn.ISFORMULA(tblELECOPSJune19[[#This Row],[FUNC]]),\"NO\",\"YES\")))","v":"NO"}]
[{"$f":"CONCATENATE(tblELECOPSJune19[[#This Row],[Primary Account]],tblELECOPSJune19[[#This Row],[Primary Name]],tblELECOPSJune19[[#This Row],[Secondary Acct]],tblELECOPSJune19[[#This Row],[Secondary  Name]],tblELECOPSJune19[[#This Row],[Alloc4Func]])","v":"4561920L/T FIRM WHEEL REV302980Transmisson Point-to-Point RevenueSG"},4561920,"L/T FIRM WHEEL REV",302980,"Transmisson Point-to-Point Revenue","SG",-32394.420959999999,{"$f":"IF(OR(tblELECOPSJune19[[#This Row],[Alloc]]=\"IDU\",tblELECOPSJune19[[#This Row],[Alloc]]=\"OR\",tblELECOPSJune19[[#This Row],[Alloc]]=\"UT\",tblELECOPSJune19[[#This Row],[Alloc]]=\"WYU\",tblELECOPSJune19[[#This Row],[Alloc]]=\"WYP\",tblELECOPSJune19[[#This Row],[Alloc]]=\"CA\",tblELECOPSJune19[[#This Row],[Alloc]]=\"WA\"),\"SITUS\",tblELECOPSJune19[[#This Row],[Alloc]])","v":"SG"},{"$f":"INDEX(tblELECOPSLookup[FUNC],MATCH(tblELECOPSJune19[[#This Row],[Concat]],tblELECOPSLookup[Concat],0))","v":"T"},{"$f":"IF(tblELECOPSJune19[[#This Row],[Total ($000)]]=0,\"NO\",IF(ISNA(tblELECOPSJune19[[#This Row],[FUNC]]),\"YES\",IF(_xlfn.ISFORMULA(tblELECOPSJune19[[#This Row],[FUNC]]),\"NO\",\"YES\")))","v":"NO"}]
[{"$f":"CONCATENATE(tblELECOPSJune19[[#This Row],[Primary Account]],tblELECOPSJune19[[#This Row],[Primary Name]],tblELECOPSJune19[[#This Row],[Secondary Acct]],tblELECOPSJune19[[#This Row],[Secondary  Name]],tblELECOPSJune19[[#This Row],[Alloc4Func]])","v":"4561930NON-FIRM WHEEL REV301922NON-FIRM WHEELING REVENUESE"},4561930,"NON-FIRM WHEEL REV",301922,"NON-FIRM WHEELING REVENUE","SE",-17028.526539999999,{"$f":"IF(OR(tblELECOPSJune19[[#This Row],[Alloc]]=\"IDU\",tblELECOPSJune19[[#This Row],[Alloc]]=\"OR\",tblELECOPSJune19[[#This Row],[Alloc]]=\"UT\",tblELECOPSJune19[[#This Row],[Alloc]]=\"WYU\",tblELECOPSJune19[[#This Row],[Alloc]]=\"WYP\",tblELECOPSJune19[[#This Row],[Alloc]]=\"CA\",tblELECOPSJune19[[#This Row],[Alloc]]=\"WA\"),\"SITUS\",tblELECOPSJune19[[#This Row],[Alloc]])","v":"SE"},{"$f":"INDEX(tblELECOPSLookup[FUNC],MATCH(tblELECOPSJune19[[#This Row],[Concat]],tblELECOPSLookup[Concat],0))","v":"T"},{"$f":"IF(tblELECOPSJune19[[#This Row],[Total ($000)]]=0,\"NO\",IF(ISNA(tblELECOPSJune19[[#This Row],[FUNC]]),\"YES\",IF(_xlfn.ISFORMULA(tblELECOPSJune19[[#This Row],[FUNC]]),\"NO\",\"YES\")))","v":"NO"}]
[{"$f":"CONCATENATE(tblELECOPSJune19[[#This Row],[Primary Account]],tblELECOPSJune19[[#This Row],[Primary Name]],tblELECOPSJune19[[#This Row],[Secondary Acct]],tblELECOPSJune19[[#This Row],[Secondary  Name]],tblELECOPSJune19[[#This Row],[Alloc4Func]])","v":"4561930NON-FIRM WHEEL REV302822I/C Non-Firm Wheeling Revenue-Nevada PwrSE"},4561930,"NON-FIRM WHEEL REV",302822,"I/C Non-Firm Wheeling Revenue-Nevada Pwr","SE",-0.31849,{"$f":"IF(OR(tblELECOPSJune19[[#This Row],[Alloc]]=\"IDU\",tblELECOPSJune19[[#This Row],[Alloc]]=\"OR\",tblELECOPSJune19[[#This Row],[Alloc]]=\"UT\",tblELECOPSJune19[[#This Row],[Alloc]]=\"WYU\",tblELECOPSJune19[[#This Row],[Alloc]]=\"WYP\",tblELECOPSJune19[[#This Row],[Alloc]]=\"CA\",tblELECOPSJune19[[#This Row],[Alloc]]=\"WA\"),\"SITUS\",tblELECOPSJune19[[#This Row],[Alloc]])","v":"SE"},{"$f":"INDEX(tblELECOPSLookup[FUNC],MATCH(tblELECOPSJune19[[#This Row],[Concat]],tblELECOPSLookup[Concat],0))","v":"T"},{"$f":"IF(tblELECOPSJune19[[#This Row],[Total ($000)]]=0,\"NO\",IF(ISNA(tblELECOPSJune19[[#This Row],[FUNC]]),\"YES\",IF(_xlfn.ISFORMULA(tblELECOPSJune19[[#This Row],[FUNC]]),\"NO\",\"YES\")))","v":"NO"}]
[{"$f":"CONCATENATE(tblELECOPSJune19[[#This Row],[Primary Account]],tblELECOPSJune19[[#This Row],[Primary Name]],tblELECOPSJune19[[#This Row],[Secondary Acct]],tblELECOPSJune19[[#This Row],[Secondary  Name]],tblELECOPSJune19[[#This Row],[Alloc4Func]])","v":"4561990TRANSMN REV REFUND301913Transmission Tariff True-upSG"},4561990,"TRANSMN REV REFUND",301913,"Transmission Tariff True-up","SG",-679.26076,{"$f":"IF(OR(tblELECOPSJune19[[#This Row],[Alloc]]=\"IDU\",tblELECOPSJune19[[#This Row],[Alloc]]=\"OR\",tblELECOPSJune19[[#This Row],[Alloc]]=\"UT\",tblELECOPSJune19[[#This Row],[Alloc]]=\"WYU\",tblELECOPSJune19[[#This Row],[Alloc]]=\"WYP\",tblELECOPSJune19[[#This Row],[Alloc]]=\"CA\",tblELECOPSJune19[[#This Row],[Alloc]]=\"WA\"),\"SITUS\",tblELECOPSJune19[[#This Row],[Alloc]])","v":"SG"},{"$f":"INDEX(tblELECOPSLookup[FUNC],MATCH(tblELECOPSJune19[[#This Row],[Concat]],tblELECOPSLookup[Concat],0))","v":"T"},{"$f":"IF(tblELECOPSJune19[[#This Row],[Total ($000)]]=0,\"NO\",IF(ISNA(tblELECOPSJune19[[#This Row],[FUNC]]),\"YES\",IF(_xlfn.ISFORMULA(tblELECOPSJune19[[#This Row],[FUNC]]),\"NO\",\"YES\")))","v":"NO"}]
[{"$f":"CONCATENATE(tblELECOPSJune19[[#This Row],[Primary Account]],tblELECOPSJune19[[#This Row],[Primary Name]],tblELECOPSJune19[[#This Row],[Secondary Acct]],tblELECOPSJune19[[#This Row],[Secondary  Name]],tblELECOPSJune19[[#This Row],[Alloc4Func]])","v":"4561990TRANSMN REV REFUND305950Ancil Revenue Sch 5 - Subject to RefundSG"},4561990,"TRANSMN REV REFUND",305950,"Ancil Revenue Sch 5 - Subject to Refund","SG",-247.69057000000001,{"$f":"IF(OR(tblELECOPSJune19[[#This Row],[Alloc]]=\"IDU\",tblELECOPSJune19[[#This Row],[Alloc]]=\"OR\",tblELECOPSJune19[[#This Row],[Alloc]]=\"UT\",tblELECOPSJune19[[#This Row],[Alloc]]=\"WYU\",tblELECOPSJune19[[#This Row],[Alloc]]=\"WYP\",tblELECOPSJune19[[#This Row],[Alloc]]=\"CA\",tblELECOPSJune19[[#This Row],[Alloc]]=\"WA\"),\"SITUS\",tblELECOPSJune19[[#This Row],[Alloc]])","v":"SG"},{"$f":"INDEX(tblELECOPSLookup[FUNC],MATCH(tblELECOPSJune19[[#This Row],[Concat]],tblELECOPSLookup[Concat],0))","v":"T"},{"$f":"IF(tblELECOPSJune19[[#This Row],[Total ($000)]]=0,\"NO\",IF(ISNA(tblELECOPSJune19[[#This Row],[FUNC]]),\"YES\",IF(_xlfn.ISFORMULA(tblELECOPSJune19[[#This Row],[FUNC]]),\"NO\",\"YES\")))","v":"NO"}]
[{"$f":"CONCATENATE(tblELECOPSJune19[[#This Row],[Primary Account]],tblELECOPSJune19[[#This Row],[Primary Name]],tblELECOPSJune19[[#This Row],[Secondary Acct]],tblELECOPSJune19[[#This Row],[Secondary  Name]],tblELECOPSJune19[[#This Row],[Alloc4Func]])","v":"4561990TRANSMN REV REFUND305960Ancil Revenue Sch 6 - Subject to RefundSG"},4561990,"TRANSMN REV REFUND",305960,"Ancil Revenue Sch 6 - Subject to Refund","SG",-531.85965999999996,{"$f":"IF(OR(tblELECOPSJune19[[#This Row],[Alloc]]=\"IDU\",tblELECOPSJune19[[#This Row],[Alloc]]=\"OR\",tblELECOPSJune19[[#This Row],[Alloc]]=\"UT\",tblELECOPSJune19[[#This Row],[Alloc]]=\"WYU\",tblELECOPSJune19[[#This Row],[Alloc]]=\"WYP\",tblELECOPSJune19[[#This Row],[Alloc]]=\"CA\",tblELECOPSJune19[[#This Row],[Alloc]]=\"WA\"),\"SITUS\",tblELECOPSJune19[[#This Row],[Alloc]])","v":"SG"},{"$f":"INDEX(tblELECOPSLookup[FUNC],MATCH(tblELECOPSJune19[[#This Row],[Concat]],tblELECOPSLookup[Concat],0))","v":"T"},{"$f":"IF(tblELECOPSJune19[[#This Row],[Total ($000)]]=0,\"NO\",IF(ISNA(tblELECOPSJune19[[#This Row],[FUNC]]),\"YES\",IF(_xlfn.ISFORMULA(tblELECOPSJune19[[#This Row],[FUNC]]),\"NO\",\"YES\")))","v":"NO"}]
[{"$f":"CONCATENATE(tblELECOPSJune19[[#This Row],[Primary Account]],tblELECOPSJune19[[#This Row],[Primary Name]],tblELECOPSJune19[[#This Row],[Secondary Acct]],tblELECOPSJune19[[#This Row],[Secondary  Name]],tblELECOPSJune19[[#This Row],[Alloc4Func]])","v":"4562100USE OF FACIL REV301911\"INCOME FROM FISH, WILDLIFE\"SG"},4562100,"USE OF FACIL REV",301911,"\"INCOME FROM FISH, WILDLIFE\"","SG",-22.0444,{"$f":"IF(OR(tblELECOPSJune19[[#This Row],[Alloc]]=\"IDU\",tblELECOPSJune19[[#This Row],[Alloc]]=\"OR\",tblELECOPSJune19[[#This Row],[Alloc]]=\"UT\",tblELECOPSJune19[[#This Row],[Alloc]]=\"WYU\",tblELECOPSJune19[[#This Row],[Alloc]]=\"WYP\",tblELECOPSJune19[[#This Row],[Alloc]]=\"CA\",tblELECOPSJune19[[#This Row],[Alloc]]=\"WA\"),\"SITUS\",tblELECOPSJune19[[#This Row],[Alloc]])","v":"SG"},{"$f":"INDEX(tblELECOPSLookup[FUNC],MATCH(tblELECOPSJune19[[#This Row],[Concat]],tblELECOPSLookup[Concat],0))","v":"P"},{"$f":"IF(tblELECOPSJune19[[#This Row],[Total ($000)]]=0,\"NO\",IF(ISNA(tblELECOPSJune19[[#This Row],[FUNC]]),\"YES\",IF(_xlfn.ISFORMULA(tblELECOPSJune19[[#This Row],[FUNC]]),\"NO\",\"YES\")))","v":"NO"}]
[{"$f":"CONCATENATE(tblELECOPSJune19[[#This Row],[Primary Account]],tblELECOPSJune19[[#This Row],[Primary Name]],tblELECOPSJune19[[#This Row],[Secondary Acct]],tblELECOPSJune19[[#This Row],[Secondary  Name]],tblELECOPSJune19[[#This Row],[Alloc4Func]])","v":"4562300MISC OTHER REV301900ELECTRIC INCOME OTHERSG"},4562300,"MISC OTHER REV",301900,"ELECTRIC INCOME OTHER","SG",-35.513829999999999,{"$f":"IF(OR(tblELECOPSJune19[[#This Row],[Alloc]]=\"IDU\",tblELECOPSJune19[[#This Row],[Alloc]]=\"OR\",tblELECOPSJune19[[#This Row],[Alloc]]=\"UT\",tblELECOPSJune19[[#This Row],[Alloc]]=\"WYU\",tblELECOPSJune19[[#This Row],[Alloc]]=\"WYP\",tblELECOPSJune19[[#This Row],[Alloc]]=\"CA\",tblELECOPSJune19[[#This Row],[Alloc]]=\"WA\"),\"SITUS\",tblELECOPSJune19[[#This Row],[Alloc]])","v":"SG"},{"$f":"INDEX(tblELECOPSLookup[FUNC],MATCH(tblELECOPSJune19[[#This Row],[Concat]],tblELECOPSLookup[Concat],0))","v":"P"},{"$f":"IF(tblELECOPSJune19[[#This Row],[Total ($000)]]=0,\"NO\",IF(ISNA(tblELECOPSJune19[[#This Row],[FUNC]]),\"YES\",IF(_xlfn.ISFORMULA(tblELECOPSJune19[[#This Row],[FUNC]]),\"NO\",\"YES\")))","v":"NO"}]
[{"$f":"CONCATENATE(tblELECOPSJune19[[#This Row],[Primary Account]],tblELECOPSJune19[[#This Row],[Primary Name]],tblELECOPSJune19[[#This Row],[Secondary Acct]],tblELECOPSJune19[[#This Row],[Secondary  Name]],tblELECOPSJune19[[#This Row],[Alloc4Func]])","v":"4562300MISC OTHER REV301900ELECTRIC INCOME OTHERSITUS"},4562300,"MISC OTHER REV",301900,"ELECTRIC INCOME OTHER","UT",-24,{"$f":"IF(OR(tblELECOPSJune19[[#This Row],[Alloc]]=\"IDU\",tblELECOPSJune19[[#This Row],[Alloc]]=\"OR\",tblELECOPSJune19[[#This Row],[Alloc]]=\"UT\",tblELECOPSJune19[[#This Row],[Alloc]]=\"WYU\",tblELECOPSJune19[[#This Row],[Alloc]]=\"WYP\",tblELECOPSJune19[[#This Row],[Alloc]]=\"CA\",tblELECOPSJune19[[#This Row],[Alloc]]=\"WA\"),\"SITUS\",tblELECOPSJune19[[#This Row],[Alloc]])","v":"SITUS"},{"$f":"INDEX(tblELECOPSLookup[FUNC],MATCH(tblELECOPSJune19[[#This Row],[Concat]],tblELECOPSLookup[Concat],0))","v":"P"},{"$f":"IF(tblELECOPSJune19[[#This Row],[Total ($000)]]=0,\"NO\",IF(ISNA(tblELECOPSJune19[[#This Row],[FUNC]]),\"YES\",IF(_xlfn.ISFORMULA(tblELECOPSJune19[[#This Row],[FUNC]]),\"NO\",\"YES\")))","v":"NO"}]
[{"$f":"CONCATENATE(tblELECOPSJune19[[#This Row],[Primary Account]],tblELECOPSJune19[[#This Row],[Primary Name]],tblELECOPSJune19[[#This Row],[Secondary Acct]],tblELECOPSJune19[[#This Row],[Secondary  Name]],tblELECOPSJune19[[#This Row],[Alloc4Func]])","v":"4562300MISC OTHER REV301901WASHINGTON - COLSTRIP 3SITUS"},4562300,"MISC OTHER REV",301901,"WASHINGTON - COLSTRIP 3","WA",52.188000000000002,{"$f":"IF(OR(tblELECOPSJune19[[#This Row],[Alloc]]=\"IDU\",tblELECOPSJune19[[#This Row],[Alloc]]=\"OR\",tblELECOPSJune19[[#This Row],[Alloc]]=\"UT\",tblELECOPSJune19[[#This Row],[Alloc]]=\"WYU\",tblELECOPSJune19[[#This Row],[Alloc]]=\"WYP\",tblELECOPSJune19[[#This Row],[Alloc]]=\"CA\",tblELECOPSJune19[[#This Row],[Alloc]]=\"WA\"),\"SITUS\",tblELECOPSJune19[[#This Row],[Alloc]])","v":"SITUS"},{"$f":"INDEX(tblELECOPSLookup[FUNC],MATCH(tblELECOPSJune19[[#This Row],[Concat]],tblELECOPSLookup[Concat],0))","v":"P"},{"$f":"IF(tblELECOPSJune19[[#This Row],[Total ($000)]]=0,\"NO\",IF(ISNA(tblELECOPSJune19[[#This Row],[FUNC]]),\"YES\",IF(_xlfn.ISFORMULA(tblELECOPSJune19[[#This Row],[FUNC]]),\"NO\",\"YES\")))","v":"NO"}]
[{"$f":"CONCATENATE(tblELECOPSJune19[[#This Row],[Primary Account]],tblELECOPSJune19[[#This Row],[Primary Name]],tblELECOPSJune19[[#This Row],[Secondary Acct]],tblELECOPSJune19[[#This Row],[Secondary  Name]],tblELECOPSJune19[[#This Row],[Alloc4Func]])","v":"4562300MISC OTHER REV301915OTHER ELEC REV - MISCSG"},4562300,"MISC OTHER REV",301915,"OTHER ELEC REV - MISC","SG",-1669.71137,{"$f":"IF(OR(tblELECOPSJune19[[#This Row],[Alloc]]=\"IDU\",tblELECOPSJune19[[#This Row],[Alloc]]=\"OR\",tblELECOPSJune19[[#This Row],[Alloc]]=\"UT\",tblELECOPSJune19[[#This Row],[Alloc]]=\"WYU\",tblELECOPSJune19[[#This Row],[Alloc]]=\"WYP\",tblELECOPSJune19[[#This Row],[Alloc]]=\"CA\",tblELECOPSJune19[[#This Row],[Alloc]]=\"WA\"),\"SITUS\",tblELECOPSJune19[[#This Row],[Alloc]])","v":"SG"},{"$f":"INDEX(tblELECOPSLookup[FUNC],MATCH(tblELECOPSJune19[[#This Row],[Concat]],tblELECOPSLookup[Concat],0))","v":"P"},{"$f":"IF(tblELECOPSJune19[[#This Row],[Total ($000)]]=0,\"NO\",IF(ISNA(tblELECOPSJune19[[#This Row],[FUNC]]),\"YES\",IF(_xlfn.ISFORMULA(tblELECOPSJune19[[#This Row],[FUNC]]),\"NO\",\"YES\")))","v":"NO"}]
[{"$f":"CONCATENATE(tblELECOPSJune19[[#This Row],[Primary Account]],tblELECOPSJune19[[#This Row],[Primary Name]],tblELECOPSJune19[[#This Row],[Secondary Acct]],tblELECOPSJune19[[#This Row],[Secondary  Name]],tblELECOPSJune19[[#This Row],[Alloc4Func]])","v":"4562300MISC OTHER REV301939Estimated Other Electric RevenueSG"},4562300,"MISC OTHER REV",301939,"Estimated Other Electric Revenue","SG",-16.164950000000001,{"$f":"IF(OR(tblELECOPSJune19[[#This Row],[Alloc]]=\"IDU\",tblELECOPSJune19[[#This Row],[Alloc]]=\"OR\",tblELECOPSJune19[[#This Row],[Alloc]]=\"UT\",tblELECOPSJune19[[#This Row],[Alloc]]=\"WYU\",tblELECOPSJune19[[#This Row],[Alloc]]=\"WYP\",tblELECOPSJune19[[#This Row],[Alloc]]=\"CA\",tblELECOPSJune19[[#This Row],[Alloc]]=\"WA\"),\"SITUS\",tblELECOPSJune19[[#This Row],[Alloc]])","v":"SG"},{"$f":"INDEX(tblELECOPSLookup[FUNC],MATCH(tblELECOPSJune19[[#This Row],[Concat]],tblELECOPSLookup[Concat],0))","v":"P"},{"$f":"IF(tblELECOPSJune19[[#This Row],[Total ($000)]]=0,\"NO\",IF(ISNA(tblELECOPSJune19[[#This Row],[FUNC]]),\"YES\",IF(_xlfn.ISFORMULA(tblELECOPSJune19[[#This Row],[FUNC]]),\"NO\",\"YES\")))","v":"NO"}]
[{"$f":"CONCATENATE(tblELECOPSJune19[[#This Row],[Primary Account]],tblELECOPSJune19[[#This Row],[Primary Name]],tblELECOPSJune19[[#This Row],[Secondary Acct]],tblELECOPSJune19[[#This Row],[Secondary  Name]],tblELECOPSJune19[[#This Row],[Alloc4Func]])","v":"4562300MISC OTHER REV301940FLYASH & BY-PRODUCT SALESSG"},4562300,"MISC OTHER REV",301940,"FLYASH & BY-PRODUCT SALES","SG",-4256.1065900000003,{"$f":"IF(OR(tblELECOPSJune19[[#This Row],[Alloc]]=\"IDU\",tblELECOPSJune19[[#This Row],[Alloc]]=\"OR\",tblELECOPSJune19[[#This Row],[Alloc]]=\"UT\",tblELECOPSJune19[[#This Row],[Alloc]]=\"WYU\",tblELECOPSJune19[[#This Row],[Alloc]]=\"WYP\",tblELECOPSJune19[[#This Row],[Alloc]]=\"CA\",tblELECOPSJune19[[#This Row],[Alloc]]=\"WA\"),\"SITUS\",tblELECOPSJune19[[#This Row],[Alloc]])","v":"SG"},{"$f":"INDEX(tblELECOPSLookup[FUNC],MATCH(tblELECOPSJune19[[#This Row],[Concat]],tblELECOPSLookup[Concat],0))","v":"P"},{"$f":"IF(tblELECOPSJune19[[#This Row],[Total ($000)]]=0,\"NO\",IF(ISNA(tblELECOPSJune19[[#This Row],[FUNC]]),\"YES\",IF(_xlfn.ISFORMULA(tblELECOPSJune19[[#This Row],[FUNC]]),\"NO\",\"YES\")))","v":"NO"}]
[{"$f":"CONCATENATE(tblELECOPSJune19[[#This Row],[Primary Account]],tblELECOPSJune19[[#This Row],[Primary Name]],tblELECOPSJune19[[#This Row],[Secondary Acct]],tblELECOPSJune19[[#This Row],[Secondary  Name]],tblELECOPSJune19[[#This Row],[Alloc4Func]])","v":"4562300MISC OTHER REV301949THIRD PARTY TRN O&M REVSG"},4562300,"MISC OTHER REV",301949,"THIRD PARTY TRN O&M REV","SG",-367.99164999999999,{"$f":"IF(OR(tblELECOPSJune19[[#This Row],[Alloc]]=\"IDU\",tblELECOPSJune19[[#This Row],[Alloc]]=\"OR\",tblELECOPSJune19[[#This Row],[Alloc]]=\"UT\",tblELECOPSJune19[[#This Row],[Alloc]]=\"WYU\",tblELECOPSJune19[[#This Row],[Alloc]]=\"WYP\",tblELECOPSJune19[[#This Row],[Alloc]]=\"CA\",tblELECOPSJune19[[#This Row],[Alloc]]=\"WA\"),\"SITUS\",tblELECOPSJune19[[#This Row],[Alloc]])","v":"SG"},{"$f":"INDEX(tblELECOPSLookup[FUNC],MATCH(tblELECOPSJune19[[#This Row],[Concat]],tblELECOPSLookup[Concat],0))","v":"T"},{"$f":"IF(tblELECOPSJune19[[#This Row],[Total ($000)]]=0,\"NO\",IF(ISNA(tblELECOPSJune19[[#This Row],[FUNC]]),\"YES\",IF(_xlfn.ISFORMULA(tblELECOPSJune19[[#This Row],[FUNC]]),\"NO\",\"YES\")))","v":"NO"}]
[{"$f":"CONCATENATE(tblELECOPSJune19[[#This Row],[Primary Account]],tblELECOPSJune19[[#This Row],[Primary Name]],tblELECOPSJune19[[#This Row],[Secondary Acct]],tblELECOPSJune19[[#This Row],[Secondary  Name]],tblELECOPSJune19[[#This Row],[Alloc4Func]])","v":"4562300MISC OTHER REV301951NON-WHEELING SYS REVSG"},4562300,"MISC OTHER REV",301951,"NON-WHEELING SYS REV","SG",-537.59889999999996,{"$f":"IF(OR(tblELECOPSJune19[[#This Row],[Alloc]]=\"IDU\",tblELECOPSJune19[[#This Row],[Alloc]]=\"OR\",tblELECOPSJune19[[#This Row],[Alloc]]=\"UT\",tblELECOPSJune19[[#This Row],[Alloc]]=\"WYU\",tblELECOPSJune19[[#This Row],[Alloc]]=\"WYP\",tblELECOPSJune19[[#This Row],[Alloc]]=\"CA\",tblELECOPSJune19[[#This Row],[Alloc]]=\"WA\"),\"SITUS\",tblELECOPSJune19[[#This Row],[Alloc]])","v":"SG"},{"$f":"INDEX(tblELECOPSLookup[FUNC],MATCH(tblELECOPSJune19[[#This Row],[Concat]],tblELECOPSLookup[Concat],0))","v":"P"},{"$f":"IF(tblELECOPSJune19[[#This Row],[Total ($000)]]=0,\"NO\",IF(ISNA(tblELECOPSJune19[[#This Row],[FUNC]]),\"YES\",IF(_xlfn.ISFORMULA(tblELECOPSJune19[[#This Row],[FUNC]]),\"NO\",\"YES\")))","v":"NO"}]
[{"$f":"CONCATENATE(tblELECOPSJune19[[#This Row],[Primary Account]],tblELECOPSJune19[[#This Row],[Primary Name]],tblELECOPSJune19[[#This Row],[Secondary Acct]],tblELECOPSJune19[[#This Row],[Secondary  Name]],tblELECOPSJune19[[#This Row],[Alloc4Func]])","v":"4562300MISC OTHER REV301955OTHER REV WY REG KENNECOTTSITUS"},4562300,"MISC OTHER REV",301955,"OTHER REV WY REG KENNECOTT","WYP",-186.46316999999999,{"$f":"IF(OR(tblELECOPSJune19[[#This Row],[Alloc]]=\"IDU\",tblELECOPSJune19[[#This Row],[Alloc]]=\"OR\",tblELECOPSJune19[[#This Row],[Alloc]]=\"UT\",tblELECOPSJune19[[#This Row],[Alloc]]=\"WYU\",tblELECOPSJune19[[#This Row],[Alloc]]=\"WYP\",tblELECOPSJune19[[#This Row],[Alloc]]=\"CA\",tblELECOPSJune19[[#This Row],[Alloc]]=\"WA\"),\"SITUS\",tblELECOPSJune19[[#This Row],[Alloc]])","v":"SITUS"},{"$f":"INDEX(tblELECOPSLookup[FUNC],MATCH(tblELECOPSJune19[[#This Row],[Concat]],tblELECOPSLookup[Concat],0))","v":"P"},{"$f":"IF(tblELECOPSJune19[[#This Row],[Total ($000)]]=0,\"NO\",IF(ISNA(tblELECOPSJune19[[#This Row],[FUNC]]),\"YES\",IF(_xlfn.ISFORMULA(tblELECOPSJune19[[#This Row],[FUNC]]),\"NO\",\"YES\")))","v":"NO"}]
[{"$f":"CONCATENATE(tblELECOPSJune19[[#This Row],[Primary Account]],tblELECOPSJune19[[#This Row],[Primary Name]],tblELECOPSJune19[[#This Row],[Secondary Acct]],tblELECOPSJune19[[#This Row],[Secondary  Name]],tblELECOPSJune19[[#This Row],[Alloc4Func]])","v":"4562300MISC OTHER REV301958Wind-based Ancillary Services EstimateSG"},4562300,"MISC OTHER REV",301958,"Wind-based Ancillary Services Estimate","SG",-93.443399999999997,{"$f":"IF(OR(tblELECOPSJune19[[#This Row],[Alloc]]=\"IDU\",tblELECOPSJune19[[#This Row],[Alloc]]=\"OR\",tblELECOPSJune19[[#This Row],[Alloc]]=\"UT\",tblELECOPSJune19[[#This Row],[Alloc]]=\"WYU\",tblELECOPSJune19[[#This Row],[Alloc]]=\"WYP\",tblELECOPSJune19[[#This Row],[Alloc]]=\"CA\",tblELECOPSJune19[[#This Row],[Alloc]]=\"WA\"),\"SITUS\",tblELECOPSJune19[[#This Row],[Alloc]])","v":"SG"},{"$f":"INDEX(tblELECOPSLookup[FUNC],MATCH(tblELECOPSJune19[[#This Row],[Concat]],tblELECOPSLookup[Concat],0))","v":"P"},{"$f":"IF(tblELECOPSJune19[[#This Row],[Total ($000)]]=0,\"NO\",IF(ISNA(tblELECOPSJune19[[#This Row],[FUNC]]),\"YES\",IF(_xlfn.ISFORMULA(tblELECOPSJune19[[#This Row],[FUNC]]),\"NO\",\"YES\")))","v":"NO"}]
[{"$f":"CONCATENATE(tblELECOPSJune19[[#This Row],[Primary Account]],tblELECOPSJune19[[#This Row],[Primary Name]],tblELECOPSJune19[[#This Row],[Secondary Acct]],tblELECOPSJune19[[#This Row],[Secondary  Name]],tblELECOPSJune19[[#This Row],[Alloc4Func]])","v":"4562300MISC OTHER REV301959Wind-based Ancillary Services/RevenueSG"},4562300,"MISC OTHER REV",301959,"Wind-based Ancillary Services/Revenue","SG",-9930.8994999999995,{"$f":"IF(OR(tblELECOPSJune19[[#This Row],[Alloc]]=\"IDU\",tblELECOPSJune19[[#This Row],[Alloc]]=\"OR\",tblELECOPSJune19[[#This Row],[Alloc]]=\"UT\",tblELECOPSJune19[[#This Row],[Alloc]]=\"WYU\",tblELECOPSJune19[[#This Row],[Alloc]]=\"WYP\",tblELECOPSJune19[[#This Row],[Alloc]]=\"CA\",tblELECOPSJune19[[#This Row],[Alloc]]=\"WA\"),\"SITUS\",tblELECOPSJune19[[#This Row],[Alloc]])","v":"SG"},{"$f":"INDEX(tblELECOPSLookup[FUNC],MATCH(tblELECOPSJune19[[#This Row],[Concat]],tblELECOPSLookup[Concat],0))","v":"P"},{"$f":"IF(tblELECOPSJune19[[#This Row],[Total ($000)]]=0,\"NO\",IF(ISNA(tblELECOPSJune19[[#This Row],[FUNC]]),\"YES\",IF(_xlfn.ISFORMULA(tblELECOPSJune19[[#This Row],[FUNC]]),\"NO\",\"YES\")))","v":"NO"}]
[{"$f":"CONCATENATE(tblELECOPSJune19[[#This Row],[Primary Account]],tblELECOPSJune19[[#This Row],[Primary Name]],tblELECOPSJune19[[#This Row],[Secondary Acct]],tblELECOPSJune19[[#This Row],[Secondary  Name]],tblELECOPSJune19[[#This Row],[Alloc4Func]])","v":"4562300MISC OTHER REV302071I/C Transmission O&M Revenue-Sierra PacSG"},4562300,"MISC OTHER REV",302071,"I/C Transmission O&M Revenue-Sierra Pac","SG",-8.1148299999999995,{"$f":"IF(OR(tblELECOPSJune19[[#This Row],[Alloc]]=\"IDU\",tblELECOPSJune19[[#This Row],[Alloc]]=\"OR\",tblELECOPSJune19[[#This Row],[Alloc]]=\"UT\",tblELECOPSJune19[[#This Row],[Alloc]]=\"WYU\",tblELECOPSJune19[[#This Row],[Alloc]]=\"WYP\",tblELECOPSJune19[[#This Row],[Alloc]]=\"CA\",tblELECOPSJune19[[#This Row],[Alloc]]=\"WA\"),\"SITUS\",tblELECOPSJune19[[#This Row],[Alloc]])","v":"SG"},{"$f":"INDEX(tblELECOPSLookup[FUNC],MATCH(tblELECOPSJune19[[#This Row],[Concat]],tblELECOPSLookup[Concat],0))","v":"T"},{"$f":"IF(tblELECOPSJune19[[#This Row],[Total ($000)]]=0,\"NO\",IF(ISNA(tblELECOPSJune19[[#This Row],[FUNC]]),\"YES\",IF(_xlfn.ISFORMULA(tblELECOPSJune19[[#This Row],[FUNC]]),\"NO\",\"YES\")))","v":"NO"}]
[{"$f":"CONCATENATE(tblELECOPSJune19[[#This Row],[Primary Account]],tblELECOPSJune19[[#This Row],[Primary Name]],tblELECOPSJune19[[#This Row],[Secondary Acct]],tblELECOPSJune19[[#This Row],[Secondary  Name]],tblELECOPSJune19[[#This Row],[Alloc4Func]])","v":"4562300MISC OTHER REV361000STEAM SALESSG"},4562300,"MISC OTHER REV",361000,"STEAM SALES","SG",-632.83318999999995,{"$f":"IF(OR(tblELECOPSJune19[[#This Row],[Alloc]]=\"IDU\",tblELECOPSJune19[[#This Row],[Alloc]]=\"OR\",tblELECOPSJune19[[#This Row],[Alloc]]=\"UT\",tblELECOPSJune19[[#This Row],[Alloc]]=\"WYU\",tblELECOPSJune19[[#This Row],[Alloc]]=\"WYP\",tblELECOPSJune19[[#This Row],[Alloc]]=\"CA\",tblELECOPSJune19[[#This Row],[Alloc]]=\"WA\"),\"SITUS\",tblELECOPSJune19[[#This Row],[Alloc]])","v":"SG"},{"$f":"INDEX(tblELECOPSLookup[FUNC],MATCH(tblELECOPSJune19[[#This Row],[Concat]],tblELECOPSLookup[Concat],0))","v":"P"},{"$f":"IF(tblELECOPSJune19[[#This Row],[Total ($000)]]=0,\"NO\",IF(ISNA(tblELECOPSJune19[[#This Row],[FUNC]]),\"YES\",IF(_xlfn.ISFORMULA(tblELECOPSJune19[[#This Row],[FUNC]]),\"NO\",\"YES\")))","v":"NO"}]
[{"$f":"CONCATENATE(tblELECOPSJune19[[#This Row],[Primary Account]],tblELECOPSJune19[[#This Row],[Primary Name]],tblELECOPSJune19[[#This Row],[Secondary Acct]],tblELECOPSJune19[[#This Row],[Secondary  Name]],tblELECOPSJune19[[#This Row],[Alloc4Func]])","v":"4562300MISC OTHER REV362100Refined Coal Transaction Fee RevenueSG"},4562300,"MISC OTHER REV",362100,"Refined Coal Transaction Fee Revenue","SG",35.057810000000003,{"$f":"IF(OR(tblELECOPSJune19[[#This Row],[Alloc]]=\"IDU\",tblELECOPSJune19[[#This Row],[Alloc]]=\"OR\",tblELECOPSJune19[[#This Row],[Alloc]]=\"UT\",tblELECOPSJune19[[#This Row],[Alloc]]=\"WYU\",tblELECOPSJune19[[#This Row],[Alloc]]=\"WYP\",tblELECOPSJune19[[#This Row],[Alloc]]=\"CA\",tblELECOPSJune19[[#This Row],[Alloc]]=\"WA\"),\"SITUS\",tblELECOPSJune19[[#This Row],[Alloc]])","v":"SG"},{"$f":"INDEX(tblELECOPSLookup[FUNC],MATCH(tblELECOPSJune19[[#This Row],[Concat]],tblELECOPSLookup[Concat],0))","v":"P"},{"$f":"IF(tblELECOPSJune19[[#This Row],[Total ($000)]]=0,\"NO\",IF(ISNA(tblELECOPSJune19[[#This Row],[FUNC]]),\"YES\",IF(_xlfn.ISFORMULA(tblELECOPSJune19[[#This Row],[FUNC]]),\"NO\",\"YES\")))","v":"NO"}]
[{"$f":"CONCATENATE(tblELECOPSJune19[[#This Row],[Primary Account]],tblELECOPSJune19[[#This Row],[Primary Name]],tblELECOPSJune19[[#This Row],[Secondary Acct]],tblELECOPSJune19[[#This Row],[Secondary  Name]],tblELECOPSJune19[[#This Row],[Alloc4Func]])","v":"4562300MISC OTHER REV374400Timber Sales - Utility PropertySG"},4562300,"MISC OTHER REV",374400,"Timber Sales - Utility Property","SG",-506.10192999999998,{"$f":"IF(OR(tblELECOPSJune19[[#This Row],[Alloc]]=\"IDU\",tblELECOPSJune19[[#This Row],[Alloc]]=\"OR\",tblELECOPSJune19[[#This Row],[Alloc]]=\"UT\",tblELECOPSJune19[[#This Row],[Alloc]]=\"WYU\",tblELECOPSJune19[[#This Row],[Alloc]]=\"WYP\",tblELECOPSJune19[[#This Row],[Alloc]]=\"CA\",tblELECOPSJune19[[#This Row],[Alloc]]=\"WA\"),\"SITUS\",tblELECOPSJune19[[#This Row],[Alloc]])","v":"SG"},{"$f":"INDEX(tblELECOPSLookup[FUNC],MATCH(tblELECOPSJune19[[#This Row],[Concat]],tblELECOPSLookup[Concat],0))","v":"P"},{"$f":"IF(tblELECOPSJune19[[#This Row],[Total ($000)]]=0,\"NO\",IF(ISNA(tblELECOPSJune19[[#This Row],[FUNC]]),\"YES\",IF(_xlfn.ISFORMULA(tblELECOPSJune19[[#This Row],[FUNC]]),\"NO\",\"YES\")))","v":"NO"}]
[{"$f":"CONCATENATE(tblELECOPSJune19[[#This Row],[Primary Account]],tblELECOPSJune19[[#This Row],[Primary Name]],tblELECOPSJune19[[#This Row],[Secondary Acct]],tblELECOPSJune19[[#This Row],[Secondary  Name]],tblELECOPSJune19[[#This Row],[Alloc4Func]])","v":"4562310EIM - MISCELLANEOUS308001EIM Rev-Forecasting Fee: Pac to TCSG"},4562310,"EIM - MISCELLANEOUS",308001,"EIM Rev-Forecasting Fee: Pac to TC","SG",-14.74483,{"$f":"IF(OR(tblELECOPSJune19[[#This Row],[Alloc]]=\"IDU\",tblELECOPSJune19[[#This Row],[Alloc]]=\"OR\",tblELECOPSJune19[[#This Row],[Alloc]]=\"UT\",tblELECOPSJune19[[#This Row],[Alloc]]=\"WYU\",tblELECOPSJune19[[#This Row],[Alloc]]=\"WYP\",tblELECOPSJune19[[#This Row],[Alloc]]=\"CA\",tblELECOPSJune19[[#This Row],[Alloc]]=\"WA\"),\"SITUS\",tblELECOPSJune19[[#This Row],[Alloc]])","v":"SG"},{"$f":"INDEX(tblELECOPSLookup[FUNC],MATCH(tblELECOPSJune19[[#This Row],[Concat]],tblELECOPSLookup[Concat],0))","v":"P"},{"$f":"IF(tblELECOPSJune19[[#This Row],[Total ($000)]]=0,\"NO\",IF(ISNA(tblELECOPSJune19[[#This Row],[FUNC]]),\"YES\",IF(_xlfn.ISFORMULA(tblELECOPSJune19[[#This Row],[FUNC]]),\"NO\",\"YES\")))","v":"NO"}]
[{"$f":"CONCATENATE(tblELECOPSJune19[[#This Row],[Primary Account]],tblELECOPSJune19[[#This Row],[Primary Name]],tblELECOPSJune19[[#This Row],[Secondary Acct]],tblELECOPSJune19[[#This Row],[Secondary  Name]],tblELECOPSJune19[[#This Row],[Alloc4Func]])","v":"4562400M&S INVENTORY SALES362950M&S INVENTORY SALESSITUS"},4562400,"M&S INVENTORY SALES",362950,"M&S INVENTORY SALES","OR",-2E-3,{"$f":"IF(OR(tblELECOPSJune19[[#This Row],[Alloc]]=\"IDU\",tblELECOPSJune19[[#This Row],[Alloc]]=\"OR\",tblELECOPSJune19[[#This Row],[Alloc]]=\"UT\",tblELECOPSJune19[[#This Row],[Alloc]]=\"WYU\",tblELECOPSJune19[[#This Row],[Alloc]]=\"WYP\",tblELECOPSJune19[[#This Row],[Alloc]]=\"CA\",tblELECOPSJune19[[#This Row],[Alloc]]=\"WA\"),\"SITUS\",tblELECOPSJune19[[#This Row],[Alloc]])","v":"SITUS"},{"$f":"INDEX(tblELECOPSLookup[FUNC],MATCH(tblELECOPSJune19[[#This Row],[Concat]],tblELECOPSLookup[Concat],0))","v":"PTD"},{"$f":"IF(tblELECOPSJune19[[#This Row],[Total ($000)]]=0,\"NO\",IF(ISNA(tblELECOPSJune19[[#This Row],[FUNC]]),\"YES\",IF(_xlfn.ISFORMULA(tblELECOPSJune19[[#This Row],[FUNC]]),\"NO\",\"YES\")))","v":"NO"}]
[{"$f":"CONCATENATE(tblELECOPSJune19[[#This Row],[Primary Account]],tblELECOPSJune19[[#This Row],[Primary Name]],tblELECOPSJune19[[#This Row],[Secondary Acct]],tblELECOPSJune19[[#This Row],[Secondary  Name]],tblELECOPSJune19[[#This Row],[Alloc4Func]])","v":"4562400M&S INVENTORY SALES362950M&S INVENTORY SALESSG"},4562400,"M&S INVENTORY SALES",362950,"M&S INVENTORY SALES","SG",-2.2871000000000001,{"$f":"IF(OR(tblELECOPSJune19[[#This Row],[Alloc]]=\"IDU\",tblELECOPSJune19[[#This Row],[Alloc]]=\"OR\",tblELECOPSJune19[[#This Row],[Alloc]]=\"UT\",tblELECOPSJune19[[#This Row],[Alloc]]=\"WYU\",tblELECOPSJune19[[#This Row],[Alloc]]=\"WYP\",tblELECOPSJune19[[#This Row],[Alloc]]=\"CA\",tblELECOPSJune19[[#This Row],[Alloc]]=\"WA\"),\"SITUS\",tblELECOPSJune19[[#This Row],[Alloc]])","v":"SG"},{"$f":"INDEX(tblELECOPSLookup[FUNC],MATCH(tblELECOPSJune19[[#This Row],[Concat]],tblELECOPSLookup[Concat],0))","v":"PTD"},{"$f":"IF(tblELECOPSJune19[[#This Row],[Total ($000)]]=0,\"NO\",IF(ISNA(tblELECOPSJune19[[#This Row],[FUNC]]),\"YES\",IF(_xlfn.ISFORMULA(tblELECOPSJune19[[#This Row],[FUNC]]),\"NO\",\"YES\")))","v":"NO"}]
[{"$f":"CONCATENATE(tblELECOPSJune19[[#This Row],[Primary Account]],tblELECOPSJune19[[#This Row],[Primary Name]],tblELECOPSJune19[[#This Row],[Secondary Acct]],tblELECOPSJune19[[#This Row],[Secondary  Name]],tblELECOPSJune19[[#This Row],[Alloc4Func]])","v":"4562400M&S INVENTORY SALES362950M&S INVENTORY SALESSO"},4562400,"M&S INVENTORY SALES",362950,"M&S INVENTORY SALES","SO",-4091.8717099999999,{"$f":"IF(OR(tblELECOPSJune19[[#This Row],[Alloc]]=\"IDU\",tblELECOPSJune19[[#This Row],[Alloc]]=\"OR\",tblELECOPSJune19[[#This Row],[Alloc]]=\"UT\",tblELECOPSJune19[[#This Row],[Alloc]]=\"WYU\",tblELECOPSJune19[[#This Row],[Alloc]]=\"WYP\",tblELECOPSJune19[[#This Row],[Alloc]]=\"CA\",tblELECOPSJune19[[#This Row],[Alloc]]=\"WA\"),\"SITUS\",tblELECOPSJune19[[#This Row],[Alloc]])","v":"SO"},{"$f":"INDEX(tblELECOPSLookup[FUNC],MATCH(tblELECOPSJune19[[#This Row],[Concat]],tblELECOPSLookup[Concat],0))","v":"PTD"},{"$f":"IF(tblELECOPSJune19[[#This Row],[Total ($000)]]=0,\"NO\",IF(ISNA(tblELECOPSJune19[[#This Row],[FUNC]]),\"YES\",IF(_xlfn.ISFORMULA(tblELECOPSJune19[[#This Row],[FUNC]]),\"NO\",\"YES\")))","v":"NO"}]
[{"$f":"CONCATENATE(tblELECOPSJune19[[#This Row],[Primary Account]],tblELECOPSJune19[[#This Row],[Primary Name]],tblELECOPSJune19[[#This Row],[Secondary Acct]],tblELECOPSJune19[[#This Row],[Secondary  Name]],tblELECOPSJune19[[#This Row],[Alloc4Func]])","v":"4562400M&S INVENTORY SALES362950M&S INVENTORY SALESSITUS"},4562400,"M&S INVENTORY SALES",362950,"M&S INVENTORY SALES","UT",-47.416490000000003,{"$f":"IF(OR(tblELECOPSJune19[[#This Row],[Alloc]]=\"IDU\",tblELECOPSJune19[[#This Row],[Alloc]]=\"OR\",tblELECOPSJune19[[#This Row],[Alloc]]=\"UT\",tblELECOPSJune19[[#This Row],[Alloc]]=\"WYU\",tblELECOPSJune19[[#This Row],[Alloc]]=\"WYP\",tblELECOPSJune19[[#This Row],[Alloc]]=\"CA\",tblELECOPSJune19[[#This Row],[Alloc]]=\"WA\"),\"SITUS\",tblELECOPSJune19[[#This Row],[Alloc]])","v":"SITUS"},{"$f":"INDEX(tblELECOPSLookup[FUNC],MATCH(tblELECOPSJune19[[#This Row],[Concat]],tblELECOPSLookup[Concat],0))","v":"PTD"},{"$f":"IF(tblELECOPSJune19[[#This Row],[Total ($000)]]=0,\"NO\",IF(ISNA(tblELECOPSJune19[[#This Row],[FUNC]]),\"YES\",IF(_xlfn.ISFORMULA(tblELECOPSJune19[[#This Row],[FUNC]]),\"NO\",\"YES\")))","v":"NO"}]
[{"$f":"CONCATENATE(tblELECOPSJune19[[#This Row],[Primary Account]],tblELECOPSJune19[[#This Row],[Primary Name]],tblELECOPSJune19[[#This Row],[Secondary Acct]],tblELECOPSJune19[[#This Row],[Secondary  Name]],tblELECOPSJune19[[#This Row],[Alloc4Func]])","v":"4562400M&S INVENTORY SALES362950M&S INVENTORY SALESSITUS"},4562400,"M&S INVENTORY SALES",362950,"M&S INVENTORY SALES","WYP",-0.39045000000000002,{"$f":"IF(OR(tblELECOPSJune19[[#This Row],[Alloc]]=\"IDU\",tblELECOPSJune19[[#This Row],[Alloc]]=\"OR\",tblELECOPSJune19[[#This Row],[Alloc]]=\"UT\",tblELECOPSJune19[[#This Row],[Alloc]]=\"WYU\",tblELECOPSJune19[[#This Row],[Alloc]]=\"WYP\",tblELECOPSJune19[[#This Row],[Alloc]]=\"CA\",tblELECOPSJune19[[#This Row],[Alloc]]=\"WA\"),\"SITUS\",tblELECOPSJune19[[#This Row],[Alloc]])","v":"SITUS"},{"$f":"INDEX(tblELECOPSLookup[FUNC],MATCH(tblELECOPSJune19[[#This Row],[Concat]],tblELECOPSLookup[Concat],0))","v":"PTD"},{"$f":"IF(tblELECOPSJune19[[#This Row],[Total ($000)]]=0,\"NO\",IF(ISNA(tblELECOPSJune19[[#This Row],[FUNC]]),\"YES\",IF(_xlfn.ISFORMULA(tblELECOPSJune19[[#This Row],[FUNC]]),\"NO\",\"YES\")))","v":"NO"}]
[{"$f":"CONCATENATE(tblELECOPSJune19[[#This Row],[Primary Account]],tblELECOPSJune19[[#This Row],[Primary Name]],tblELECOPSJune19[[#This Row],[Secondary Acct]],tblELECOPSJune19[[#This Row],[Secondary  Name]],tblELECOPSJune19[[#This Row],[Alloc4Func]])","v":"4562500M&S INV COST OF SALE514950M&S INVENTORY COST OF SALESSITUS"},4562500,"M&S INV COST OF SALE",514950,"M&S INVENTORY COST OF SALES","UT",4535.6830900000004,{"$f":"IF(OR(tblELECOPSJune19[[#This Row],[Alloc]]=\"IDU\",tblELECOPSJune19[[#This Row],[Alloc]]=\"OR\",tblELECOPSJune19[[#This Row],[Alloc]]=\"UT\",tblELECOPSJune19[[#This Row],[Alloc]]=\"WYU\",tblELECOPSJune19[[#This Row],[Alloc]]=\"WYP\",tblELECOPSJune19[[#This Row],[Alloc]]=\"CA\",tblELECOPSJune19[[#This Row],[Alloc]]=\"WA\"),\"SITUS\",tblELECOPSJune19[[#This Row],[Alloc]])","v":"SITUS"},{"$f":"INDEX(tblELECOPSLookup[FUNC],MATCH(tblELECOPSJune19[[#This Row],[Concat]],tblELECOPSLookup[Concat],0))","v":"PTD"},{"$f":"IF(tblELECOPSJune19[[#This Row],[Total ($000)]]=0,\"NO\",IF(ISNA(tblELECOPSJune19[[#This Row],[FUNC]]),\"YES\",IF(_xlfn.ISFORMULA(tblELECOPSJune19[[#This Row],[FUNC]]),\"NO\",\"YES\")))","v":"NO"}]
[{"$f":"CONCATENATE(tblELECOPSJune19[[#This Row],[Primary Account]],tblELECOPSJune19[[#This Row],[Primary Name]],tblELECOPSJune19[[#This Row],[Secondary Acct]],tblELECOPSJune19[[#This Row],[Secondary  Name]],tblELECOPSJune19[[#This Row],[Alloc4Func]])","v":"4562700RNW ENRGY CRDT SALES301943Renewable Energy Credit Sales-DeferralSG"},4562700,"RNW ENRGY CRDT SALES",301943,"Renewable Energy Credit Sales-Deferral","SG",130.05258000000001,{"$f":"IF(OR(tblELECOPSJune19[[#This Row],[Alloc]]=\"IDU\",tblELECOPSJune19[[#This Row],[Alloc]]=\"OR\",tblELECOPSJune19[[#This Row],[Alloc]]=\"UT\",tblELECOPSJune19[[#This Row],[Alloc]]=\"WYU\",tblELECOPSJune19[[#This Row],[Alloc]]=\"WYP\",tblELECOPSJune19[[#This Row],[Alloc]]=\"CA\",tblELECOPSJune19[[#This Row],[Alloc]]=\"WA\"),\"SITUS\",tblELECOPSJune19[[#This Row],[Alloc]])","v":"SG"},{"$f":"INDEX(tblELECOPSLookup[FUNC],MATCH(tblELECOPSJune19[[#This Row],[Concat]],tblELECOPSLookup[Concat],0))","v":"P"},{"$f":"IF(tblELECOPSJune19[[#This Row],[Total ($000)]]=0,\"NO\",IF(ISNA(tblELECOPSJune19[[#This Row],[FUNC]]),\"YES\",IF(_xlfn.ISFORMULA(tblELECOPSJune19[[#This Row],[FUNC]]),\"NO\",\"YES\")))","v":"NO"}]
[{"$f":"CONCATENATE(tblELECOPSJune19[[#This Row],[Primary Account]],tblELECOPSJune19[[#This Row],[Primary Name]],tblELECOPSJune19[[#This Row],[Secondary Acct]],tblELECOPSJune19[[#This Row],[Secondary  Name]],tblELECOPSJune19[[#This Row],[Alloc4Func]])","v":"4562700RNW ENRGY CRDT SALES301944Renewable Energy Credit Sales-EstimateSG"},4562700,"RNW ENRGY CRDT SALES",301944,"Renewable Energy Credit Sales-Estimate","SG",-323.24554999999998,{"$f":"IF(OR(tblELECOPSJune19[[#This Row],[Alloc]]=\"IDU\",tblELECOPSJune19[[#This Row],[Alloc]]=\"OR\",tblELECOPSJune19[[#This Row],[Alloc]]=\"UT\",tblELECOPSJune19[[#This Row],[Alloc]]=\"WYU\",tblELECOPSJune19[[#This Row],[Alloc]]=\"WYP\",tblELECOPSJune19[[#This Row],[Alloc]]=\"CA\",tblELECOPSJune19[[#This Row],[Alloc]]=\"WA\"),\"SITUS\",tblELECOPSJune19[[#This Row],[Alloc]])","v":"SG"},{"$f":"INDEX(tblELECOPSLookup[FUNC],MATCH(tblELECOPSJune19[[#This Row],[Concat]],tblELECOPSLookup[Concat],0))","v":"P"},{"$f":"IF(tblELECOPSJune19[[#This Row],[Total ($000)]]=0,\"NO\",IF(ISNA(tblELECOPSJune19[[#This Row],[FUNC]]),\"YES\",IF(_xlfn.ISFORMULA(tblELECOPSJune19[[#This Row],[FUNC]]),\"NO\",\"YES\")))","v":"NO"}]
[{"$f":"CONCATENATE(tblELECOPSJune19[[#This Row],[Primary Account]],tblELECOPSJune19[[#This Row],[Primary Name]],tblELECOPSJune19[[#This Row],[Secondary Acct]],tblELECOPSJune19[[#This Row],[Secondary  Name]],tblELECOPSJune19[[#This Row],[Alloc4Func]])","v":"4562700RNW ENRGY CRDT SALES301945Renewable Energy Credit SalesSG"},4562700,"RNW ENRGY CRDT SALES",301945,"Renewable Energy Credit Sales","SG",-3437.7334999999998,{"$f":"IF(OR(tblELECOPSJune19[[#This Row],[Alloc]]=\"IDU\",tblELECOPSJune19[[#This Row],[Alloc]]=\"OR\",tblELECOPSJune19[[#This Row],[Alloc]]=\"UT\",tblELECOPSJune19[[#This Row],[Alloc]]=\"WYU\",tblELECOPSJune19[[#This Row],[Alloc]]=\"WYP\",tblELECOPSJune19[[#This Row],[Alloc]]=\"CA\",tblELECOPSJune19[[#This Row],[Alloc]]=\"WA\"),\"SITUS\",tblELECOPSJune19[[#This Row],[Alloc]])","v":"SG"},{"$f":"INDEX(tblELECOPSLookup[FUNC],MATCH(tblELECOPSJune19[[#This Row],[Concat]],tblELECOPSLookup[Concat],0))","v":"P"},{"$f":"IF(tblELECOPSJune19[[#This Row],[Total ($000)]]=0,\"NO\",IF(ISNA(tblELECOPSJune19[[#This Row],[FUNC]]),\"YES\",IF(_xlfn.ISFORMULA(tblELECOPSJune19[[#This Row],[FUNC]]),\"NO\",\"YES\")))","v":"NO"}]
[{"$f":"CONCATENATE(tblELECOPSJune19[[#This Row],[Primary Account]],tblELECOPSJune19[[#This Row],[Primary Name]],tblELECOPSJune19[[#This Row],[Secondary Acct]],tblELECOPSJune19[[#This Row],[Secondary  Name]],tblELECOPSJune19[[#This Row],[Alloc4Func]])","v":"4562700RNW ENRGY CRDT SALES352943Renwbl En Cr Sls-AmtOTHER"},4562700,"RNW ENRGY CRDT SALES",352943,"Renwbl En Cr Sls-Amt","OTHER",913.25513000000001,{"$f":"IF(OR(tblELECOPSJune19[[#This Row],[Alloc]]=\"IDU\",tblELECOPSJune19[[#This Row],[Alloc]]=\"OR\",tblELECOPSJune19[[#This Row],[Alloc]]=\"UT\",tblELECOPSJune19[[#This Row],[Alloc]]=\"WYU\",tblELECOPSJune19[[#This Row],[Alloc]]=\"WYP\",tblELECOPSJune19[[#This Row],[Alloc]]=\"CA\",tblELECOPSJune19[[#This Row],[Alloc]]=\"WA\"),\"SITUS\",tblELECOPSJune19[[#This Row],[Alloc]])","v":"OTHER"},{"$f":"INDEX(tblELECOPSLookup[FUNC],MATCH(tblELECOPSJune19[[#This Row],[Concat]],tblELECOPSLookup[Concat],0))","v":"P"},{"$f":"IF(tblELECOPSJune19[[#This Row],[Total ($000)]]=0,\"NO\",IF(ISNA(tblELECOPSJune19[[#This Row],[FUNC]]),\"YES\",IF(_xlfn.ISFORMULA(tblELECOPSJune19[[#This Row],[FUNC]]),\"NO\",\"YES\")))","v":"NO"}]
[{"$f":"CONCATENATE(tblELECOPSJune19[[#This Row],[Primary Account]],tblELECOPSJune19[[#This Row],[Primary Name]],tblELECOPSJune19[[#This Row],[Secondary Acct]],tblELECOPSJune19[[#This Row],[Secondary  Name]],tblELECOPSJune19[[#This Row],[Alloc4Func]])","v":"4562700RNW ENRGY CRDT SALES352950REC Sales - Wind Wake Loss IndemnitySG"},4562700,"RNW ENRGY CRDT SALES",352950,"REC Sales - Wind Wake Loss Indemnity","SG",-5.8592899999999997,{"$f":"IF(OR(tblELECOPSJune19[[#This Row],[Alloc]]=\"IDU\",tblELECOPSJune19[[#This Row],[Alloc]]=\"OR\",tblELECOPSJune19[[#This Row],[Alloc]]=\"UT\",tblELECOPSJune19[[#This Row],[Alloc]]=\"WYU\",tblELECOPSJune19[[#This Row],[Alloc]]=\"WYP\",tblELECOPSJune19[[#This Row],[Alloc]]=\"CA\",tblELECOPSJune19[[#This Row],[Alloc]]=\"WA\"),\"SITUS\",tblELECOPSJune19[[#This Row],[Alloc]])","v":"SG"},{"$f":"INDEX(tblELECOPSLookup[FUNC],MATCH(tblELECOPSJune19[[#This Row],[Concat]],tblELECOPSLookup[Concat],0))","v":"P"},{"$f":"IF(tblELECOPSJune19[[#This Row],[Total ($000)]]=0,\"NO\",IF(ISNA(tblELECOPSJune19[[#This Row],[FUNC]]),\"YES\",IF(_xlfn.ISFORMULA(tblELECOPSJune19[[#This Row],[FUNC]]),\"NO\",\"YES\")))","v":"NO"}]
[{"$f":"CONCATENATE(tblELECOPSJune19[[#This Row],[Primary Account]],tblELECOPSJune19[[#This Row],[Primary Name]],tblELECOPSJune19[[#This Row],[Secondary Acct]],tblELECOPSJune19[[#This Row],[Secondary  Name]],tblELECOPSJune19[[#This Row],[Alloc4Func]])","v":"4562800CA GHG Emission Allo352001CA GHG Allowance RevenuesOTHER"},4562800,"CA GHG Emission Allo",352001,"CA GHG Allowance Revenues","OTHER",-12010.676649999999,{"$f":"IF(OR(tblELECOPSJune19[[#This Row],[Alloc]]=\"IDU\",tblELECOPSJune19[[#This Row],[Alloc]]=\"OR\",tblELECOPSJune19[[#This Row],[Alloc]]=\"UT\",tblELECOPSJune19[[#This Row],[Alloc]]=\"WYU\",tblELECOPSJune19[[#This Row],[Alloc]]=\"WYP\",tblELECOPSJune19[[#This Row],[Alloc]]=\"CA\",tblELECOPSJune19[[#This Row],[Alloc]]=\"WA\"),\"SITUS\",tblELECOPSJune19[[#This Row],[Alloc]])","v":"OTHER"},{"$f":"INDEX(tblELECOPSLookup[FUNC],MATCH(tblELECOPSJune19[[#This Row],[Concat]],tblELECOPSLookup[Concat],0))","v":"P"},{"$f":"IF(tblELECOPSJune19[[#This Row],[Total ($000)]]=0,\"NO\",IF(ISNA(tblELECOPSJune19[[#This Row],[FUNC]]),\"YES\",IF(_xlfn.ISFORMULA(tblELECOPSJune19[[#This Row],[FUNC]]),\"NO\",\"YES\")))","v":"NO"}]
[{"$f":"CONCATENATE(tblELECOPSJune19[[#This Row],[Primary Account]],tblELECOPSJune19[[#This Row],[Primary Name]],tblELECOPSJune19[[#This Row],[Secondary Acct]],tblELECOPSJune19[[#This Row],[Secondary  Name]],tblELECOPSJune19[[#This Row],[Alloc4Func]])","v":"4562800CA GHG Emission Allo352002CA GHG Allowance Revenues - DeferralOTHER"},4562800,"CA GHG Emission Allo",352002,"CA GHG Allowance Revenues - Deferral","OTHER",11663.274939999999,{"$f":"IF(OR(tblELECOPSJune19[[#This Row],[Alloc]]=\"IDU\",tblELECOPSJune19[[#This Row],[Alloc]]=\"OR\",tblELECOPSJune19[[#This Row],[Alloc]]=\"UT\",tblELECOPSJune19[[#This Row],[Alloc]]=\"WYU\",tblELECOPSJune19[[#This Row],[Alloc]]=\"WYP\",tblELECOPSJune19[[#This Row],[Alloc]]=\"CA\",tblELECOPSJune19[[#This Row],[Alloc]]=\"WA\"),\"SITUS\",tblELECOPSJune19[[#This Row],[Alloc]])","v":"OTHER"},{"$f":"INDEX(tblELECOPSLookup[FUNC],MATCH(tblELECOPSJune19[[#This Row],[Concat]],tblELECOPSLookup[Concat],0))","v":"P"},{"$f":"IF(tblELECOPSJune19[[#This Row],[Total ($000)]]=0,\"NO\",IF(ISNA(tblELECOPSJune19[[#This Row],[FUNC]]),\"YES\",IF(_xlfn.ISFORMULA(tblELECOPSJune19[[#This Row],[FUNC]]),\"NO\",\"YES\")))","v":"NO"}]
[{"$f":"CONCATENATE(tblELECOPSJune19[[#This Row],[Primary Account]],tblELECOPSJune19[[#This Row],[Primary Name]],tblELECOPSJune19[[#This Row],[Secondary Acct]],tblELECOPSJune19[[#This Row],[Secondary  Name]],tblELECOPSJune19[[#This Row],[Alloc4Func]])","v":"4562800CA GHG Emission Allo352003CA GHG Allowance Revenues – AmortzOTHER"},4562800,"CA GHG Emission Allo",352003,"CA GHG Allowance Revenues – Amortz","OTHER",-10816.12629,{"$f":"IF(OR(tblELECOPSJune19[[#This Row],[Alloc]]=\"IDU\",tblELECOPSJune19[[#This Row],[Alloc]]=\"OR\",tblELECOPSJune19[[#This Row],[Alloc]]=\"UT\",tblELECOPSJune19[[#This Row],[Alloc]]=\"WYU\",tblELECOPSJune19[[#This Row],[Alloc]]=\"WYP\",tblELECOPSJune19[[#This Row],[Alloc]]=\"CA\",tblELECOPSJune19[[#This Row],[Alloc]]=\"WA\"),\"SITUS\",tblELECOPSJune19[[#This Row],[Alloc]])","v":"OTHER"},{"$f":"INDEX(tblELECOPSLookup[FUNC],MATCH(tblELECOPSJune19[[#This Row],[Concat]],tblELECOPSLookup[Concat],0))","v":"P"},{"$f":"IF(tblELECOPSJune19[[#This Row],[Total ($000)]]=0,\"NO\",IF(ISNA(tblELECOPSJune19[[#This Row],[FUNC]]),\"YES\",IF(_xlfn.ISFORMULA(tblELECOPSJune19[[#This Row],[FUNC]]),\"NO\",\"YES\")))","v":"NO"}]
[{"$f":"CONCATENATE(tblELECOPSJune19[[#This Row],[Primary Account]],tblELECOPSJune19[[#This Row],[Primary Name]],tblELECOPSJune19[[#This Row],[Secondary Acct]],tblELECOPSJune19[[#This Row],[Secondary  Name]],tblELECOPSJune19[[#This Row],[Alloc4Func]])","v":"4562800CA GHG Emission Allo352004CA GHG Allow Revenues - SOMAH AmortzOTHER"},4562800,"CA GHG Emission Allo",352004,"CA GHG Allow Revenues - SOMAH Amortz","OTHER",-43.824300000000001,{"$f":"IF(OR(tblELECOPSJune19[[#This Row],[Alloc]]=\"IDU\",tblELECOPSJune19[[#This Row],[Alloc]]=\"OR\",tblELECOPSJune19[[#This Row],[Alloc]]=\"UT\",tblELECOPSJune19[[#This Row],[Alloc]]=\"WYU\",tblELECOPSJune19[[#This Row],[Alloc]]=\"WYP\",tblELECOPSJune19[[#This Row],[Alloc]]=\"CA\",tblELECOPSJune19[[#This Row],[Alloc]]=\"WA\"),\"SITUS\",tblELECOPSJune19[[#This Row],[Alloc]])","v":"OTHER"},{"$f":"INDEX(tblELECOPSLookup[FUNC],MATCH(tblELECOPSJune19[[#This Row],[Concat]],tblELECOPSLookup[Concat],0))","v":"P"},{"$f":"IF(tblELECOPSJune19[[#This Row],[Total ($000)]]=0,\"NO\",IF(ISNA(tblELECOPSJune19[[#This Row],[FUNC]]),\"YES\",IF(_xlfn.ISFORMULA(tblELECOPSJune19[[#This Row],[FUNC]]),\"NO\",\"YES\")))","v":"NO"}]
[{"$f":"CONCATENATE(tblELECOPSJune19[[#This Row],[Primary Account]],tblELECOPSJune19[[#This Row],[Primary Name]],tblELECOPSJune19[[#This Row],[Secondary Acct]],tblELECOPSJune19[[#This Row],[Secondary  Name]],tblELECOPSJune19[[#This Row],[Alloc4Func]])","v":"4563500Oth Elec Rev-Def Trn305990FERC Transmission Refund-DeferralSITUS"},4563500,"Oth Elec Rev-Def Trn",305990,"FERC Transmission Refund-Deferral","OR",10945.31805,{"$f":"IF(OR(tblELECOPSJune19[[#This Row],[Alloc]]=\"IDU\",tblELECOPSJune19[[#This Row],[Alloc]]=\"OR\",tblELECOPSJune19[[#This Row],[Alloc]]=\"UT\",tblELECOPSJune19[[#This Row],[Alloc]]=\"WYU\",tblELECOPSJune19[[#This Row],[Alloc]]=\"WYP\",tblELECOPSJune19[[#This Row],[Alloc]]=\"CA\",tblELECOPSJune19[[#This Row],[Alloc]]=\"WA\"),\"SITUS\",tblELECOPSJune19[[#This Row],[Alloc]])","v":"SITUS"},{"$f":"INDEX(tblELECOPSLookup[FUNC],MATCH(tblELECOPSJune19[[#This Row],[Concat]],tblELECOPSLookup[Concat],0))","v":"T"},{"$f":"IF(tblELECOPSJune19[[#This Row],[Total ($000)]]=0,\"NO\",IF(ISNA(tblELECOPSJune19[[#This Row],[FUNC]]),\"YES\",IF(_xlfn.ISFORMULA(tblELECOPSJune19[[#This Row],[FUNC]]),\"NO\",\"YES\")))","v":"NO"}]
[{"$f":"CONCATENATE(tblELECOPSJune19[[#This Row],[Primary Account]],tblELECOPSJune19[[#This Row],[Primary Name]],tblELECOPSJune19[[#This Row],[Secondary Acct]],tblELECOPSJune19[[#This Row],[Secondary  Name]],tblELECOPSJune19[[#This Row],[Alloc4Func]])","v":"4563500Oth Elec Rev-Def Trn305991FERC Transmission Refund-AmortzSITUS"},4563500,"Oth Elec Rev-Def Trn",305991,"FERC Transmission Refund-Amortz","OR",-6933.0639700000002,{"$f":"IF(OR(tblELECOPSJune19[[#This Row],[Alloc]]=\"IDU\",tblELECOPSJune19[[#This Row],[Alloc]]=\"OR\",tblELECOPSJune19[[#This Row],[Alloc]]=\"UT\",tblELECOPSJune19[[#This Row],[Alloc]]=\"WYU\",tblELECOPSJune19[[#This Row],[Alloc]]=\"WYP\",tblELECOPSJune19[[#This Row],[Alloc]]=\"CA\",tblELECOPSJune19[[#This Row],[Alloc]]=\"WA\"),\"SITUS\",tblELECOPSJune19[[#This Row],[Alloc]])","v":"SITUS"},{"$f":"INDEX(tblELECOPSLookup[FUNC],MATCH(tblELECOPSJune19[[#This Row],[Concat]],tblELECOPSLookup[Concat],0))","v":"T"},{"$f":"IF(tblELECOPSJune19[[#This Row],[Total ($000)]]=0,\"NO\",IF(ISNA(tblELECOPSJune19[[#This Row],[FUNC]]),\"YES\",IF(_xlfn.ISFORMULA(tblELECOPSJune19[[#This Row],[FUNC]]),\"NO\",\"YES\")))","v":"NO"}]
[null,"Total",null,null,null,null,{"$f":"SUBTOTAL(109,tblELECOPSJune19[Total ($000)])","v":-143051.33300000004}]

{"sheet":"ELEC OPS Lookup","index":15,"n_rows":74,"n_cols":9,"rows_kept":74,"cut":false,"hidden":false,"merged":[]}
["Concat","Primary Account","Primary Name","Secondary Acct","Secondary  Name","Alloc","Total ($000)","Alloc4Func","FUNC"]
[{"$f":"CONCATENATE(tblELECOPSLookup[[#This Row],[Primary Account]],tblELECOPSLookup[[#This Row],[Primary Name]],tblELECOPSLookup[[#This Row],[Secondary Acct]],tblELECOPSLookup[[#This Row],[Secondary  Name]],tblELECOPSLookup[[#This Row],[Alloc4Func]])","v":"4562800CA GHG Emission Allo352002CA GHG Allowance Revenues - DeferralOTHER"},4562800,"CA GHG Emission Allo",352002,"CA GHG Allowance Revenues - Deferral","OTHER",null,{"$f":"IF(OR(tblELECOPSLookup[[#This Row],[Alloc]]=\"IDU\",tblELECOPSLookup[[#This Row],[Alloc]]=\"OR\",tblELECOPSLookup[[#This Row],[Alloc]]=\"UT\",tblELECOPSLookup[[#This Row],[Alloc]]=\"WYU\",tblELECOPSLookup[[#This Row],[Alloc]]=\"WYP\",tblELECOPSLookup[[#This Row],[Alloc]]=\"CA\",tblELECOPSLookup[[#This Row],[Alloc]]=\"WA\"),\"SITUS\",tblELECOPSLookup[[#This Row],[Alloc]])","v":"OTHER"},"P"]
[{"$f":"CONCATENATE(tblELECOPSLookup[[#This Row],[Primary Account]],tblELECOPSLookup[[#This Row],[Primary Name]],tblELECOPSLookup[[#This Row],[Secondary Acct]],tblELECOPSLookup[[#This Row],[Secondary  Name]],tblELECOPSLookup[[#This Row],[Alloc4Func]])","v":"4563500Oth Elec Rev-Def Trn305990FERC Transmission Refund-DeferralSITUS"},4563500,"Oth Elec Rev-Def Trn",305990,"FERC Transmission Refund-Deferral","OR",null,{"$f":"IF(OR(tblELECOPSLookup[[#This Row],[Alloc]]=\"IDU\",tblELECOPSLookup[[#This Row],[Alloc]]=\"OR\",tblELECOPSLookup[[#This Row],[Alloc]]=\"UT\",tblELECOPSLookup[[#This Row],[Alloc]]=\"WYU\",tblELECOPSLookup[[#This Row],[Alloc]]=\"WYP\",tblELECOPSLookup[[#This Row],[Alloc]]=\"CA\",tblELECOPSLookup[[#This Row],[Alloc]]=\"WA\"),\"SITUS\",tblELECOPSLookup[[#This Row],[Alloc]])","v":"SITUS"},"T"]
[{"$f":"CONCATENATE(tblELECOPSLookup[[#This Row],[Primary Account]],tblELECOPSLookup[[#This Row],[Primary Name]],tblELECOPSLookup[[#This Row],[Secondary Acct]],tblELECOPSLookup[[#This Row],[Secondary  Name]],tblELECOPSLookup[[#This Row],[Alloc4Func]])","v":"4562700RNW ENRGY CRDT SALES352943Renwbl En Cr Sls-AmtOTHER"},4562700,"RNW ENRGY CRDT SALES",352943,"Renwbl En Cr Sls-Amt","OTHER",null,{"$f":"IF(OR(tblELECOPSLookup[[#This Row],[Alloc]]=\"IDU\",tblELECOPSLookup[[#This Row],[Alloc]]=\"OR\",tblELECOPSLookup[[#This Row],[Alloc]]=\"UT\",tblELECOPSLookup[[#This Row],[Alloc]]=\"WYU\",tblELECOPSLookup[[#This Row],[Alloc]]=\"WYP\",tblELECOPSLookup[[#This Row],[Alloc]]=\"CA\",tblELECOPSLookup[[#This Row],[Alloc]]=\"WA\"),\"SITUS\",tblELECOPSLookup[[#This Row],[Alloc]])","v":"OTHER"},"P"]
[{"$f":"CONCATENATE(tblELECOPSLookup[[#This Row],[Primary Account]],tblELECOPSLookup[[#This Row],[Primary Name]],tblELECOPSLookup[[#This Row],[Secondary Acct]],tblELECOPSLookup[[#This Row],[Secondary  Name]],tblELECOPSLookup[[#This Row],[Alloc4Func]])","v":"4562500M&S INV COST OF SALE514950M&S INVENTORY COST OF SALESSITUS"},4562500,"M&S INV COST OF SALE",514950,"M&S INVENTORY COST OF SALES","UT",null,{"$f":"IF(OR(tblELECOPSLookup[[#This Row],[Alloc]]=\"IDU\",tblELECOPSLookup[[#This Row],[Alloc]]=\"OR\",tblELECOPSLookup[[#This Row],[Alloc]]=\"UT\",tblELECOPSLookup[[#This Row],[Alloc]]=\"WYU\",tblELECOPSLookup[[#This Row],[Alloc]]=\"WYP\",tblELECOPSLookup[[#This Row],[Alloc]]=\"CA\",tblELECOPSLookup[[#This Row],[Alloc]]=\"WA\"),\"SITUS\",tblELECOPSLookup[[#This Row],[Alloc]])","v":"SITUS"},"PTD"]
[{"$f":"CONCATENATE(tblELECOPSLookup[[#This Row],[Primary Account]],tblELECOPSLookup[[#This Row],[Primary Name]],tblELECOPSLookup[[#This Row],[Secondary Acct]],tblELECOPSLookup[[#This Row],[Secondary  Name]],tblELECOPSLookup[[#This Row],[Alloc4Func]])","v":"4562700RNW ENRGY CRDT SALES301943Renewable Energy Credit Sales-DeferralSG"},4562700,"RNW ENRGY CRDT SALES",301943,"Renewable Energy Credit Sales-Deferral","SG",null,{"$f":"IF(OR(tblELECOPSLookup[[#This Row],[Alloc]]=\"IDU\",tblELECOPSLookup[[#This Row],[Alloc]]=\"OR\",tblELECOPSLookup[[#This Row],[Alloc]]=\"UT\",tblELECOPSLookup[[#This Row],[Alloc]]=\"WYU\",tblELECOPSLookup[[#This Row],[Alloc]]=\"WYP\",tblELECOPSLookup[[#This Row],[Alloc]]=\"CA\",tblELECOPSLookup[[#This Row],[Alloc]]=\"WA\"),\"SITUS\",tblELECOPSLookup[[#This Row],[Alloc]])","v":"SG"},"P"]
[{"$f":"CONCATENATE(tblELECOPSLookup[[#This Row],[Primary Account]],tblELECOPSLookup[[#This Row],[Primary Name]],tblELECOPSLookup[[#This Row],[Secondary Acct]],tblELECOPSLookup[[#This Row],[Secondary  Name]],tblELECOPSLookup[[#This Row],[Alloc4Func]])","v":"4562300MISC OTHER REV301939Estimated Other Electric RevenueSG"},4562300,"MISC OTHER REV",301939,"Estimated Other Electric Revenue","SG",null,{"$f":"IF(OR(tblELECOPSLookup[[#This Row],[Alloc]]=\"IDU\",tblELECOPSLookup[[#This Row],[Alloc]]=\"OR\",tblELECOPSLookup[[#This Row],[Alloc]]=\"UT\",tblELECOPSLookup[[#This Row],[Alloc]]=\"WYU\",tblELECOPSLookup[[#This Row],[Alloc]]=\"WYP\",tblELECOPSLookup[[#This Row],[Alloc]]=\"CA\",tblELECOPSLookup[[#This Row],[Alloc]]=\"WA\"),\"SITUS\",tblELECOPSLookup[[#This Row],[Alloc]])","v":"SG"},"P"]
[{"$f":"CONCATENATE(tblELECOPSLookup[[#This Row],[Primary Account]],tblELECOPSLookup[[#This Row],[Primary Name]],tblELECOPSLookup[[#This Row],[Secondary Acct]],tblELECOPSLookup[[#This Row],[Secondary  Name]],tblELECOPSLookup[[#This Row],[Alloc4Func]])","v":"4562300MISC OTHER REV301901WASHINGTON - COLSTRIP 3SITUS"},4562300,"MISC OTHER REV",301901,"WASHINGTON - COLSTRIP 3","WA",null,{"$f":"IF(OR(tblELECOPSLookup[[#This Row],[Alloc]]=\"IDU\",tblELECOPSLookup[[#This Row],[Alloc]]=\"OR\",tblELECOPSLookup[[#This Row],[Alloc]]=\"UT\",tblELECOPSLookup[[#This Row],[Alloc]]=\"WYU\",tblELECOPSLookup[[#This Row],[Alloc]]=\"WYP\",tblELECOPSLookup[[#This Row],[Alloc]]=\"CA\",tblELECOPSLookup[[#This Row],[Alloc]]=\"WA\"),\"SITUS\",tblELECOPSLookup[[#This Row],[Alloc]])","v":"SITUS"},"P"]
[{"$f":"CONCATENATE(tblELECOPSLookup[[#This Row],[Primary Account]],tblELECOPSLookup[[#This Row],[Primary Name]],tblELECOPSLookup[[#This Row],[Secondary Acct]],tblELECOPSLookup[[#This Row],[Secondary  Name]],tblELECOPSLookup[[#This Row],[Alloc4Func]])","v":"4562300MISC OTHER REV301915OTHER ELEC REV - MISCSITUS"},4562300,"MISC OTHER REV",301915,"OTHER ELEC REV - MISC","CA",null,{"$f":"IF(OR(tblELECOPSLookup[[#This Row],[Alloc]]=\"IDU\",tblELECOPSLookup[[#This Row],[Alloc]]=\"OR\",tblELECOPSLookup[[#This Row],[Alloc]]=\"UT\",tblELECOPSLookup[[#This Row],[Alloc]]=\"WYU\",tblELECOPSLookup[[#This Row],[Alloc]]=\"WYP\",tblELECOPSLookup[[#This Row],[Alloc]]=\"CA\",tblELECOPSLookup[[#This Row],[Alloc]]=\"WA\"),\"SITUS\",tblELECOPSLookup[[#This Row],[Alloc]])","v":"SITUS"},"P"]
[{"$f":"CONCATENATE(tblELECOPSLookup[[#This Row],[Primary Account]],tblELECOPSLookup[[#This Row],[Primary Name]],tblELECOPSLookup[[#This Row],[Secondary Acct]],tblELECOPSLookup[[#This Row],[Secondary  Name]],tblELECOPSLookup[[#This Row],[Alloc4Func]])","v":"4561920L/T FIRM WHEEL REV302961TRANSM CAPACITY RE-ASSIGNMENT REVENUESG"},4561920,"L/T FIRM WHEEL REV",302961,"TRANSM CAPACITY RE-ASSIGNMENT REVENUE","SG",null,{"$f":"IF(OR(tblELECOPSLookup[[#This Row],[Alloc]]=\"IDU\",tblELECOPSLookup[[#This Row],[Alloc]]=\"OR\",tblELECOPSLookup[[#This Row],[Alloc]]=\"UT\",tblELECOPSLookup[[#This Row],[Alloc]]=\"WYU\",tblELECOPSLookup[[#This Row],[Alloc]]=\"WYP\",tblELECOPSLookup[[#This Row],[Alloc]]=\"CA\",tblELECOPSLookup[[#This Row],[Alloc]]=\"WA\"),\"SITUS\",tblELECOPSLookup[[#This Row],[Alloc]])","v":"SG"},"T"]
[{"$f":"CONCATENATE(tblELECOPSLookup[[#This Row],[Primary Account]],tblELECOPSLookup[[#This Row],[Primary Name]],tblELECOPSLookup[[#This Row],[Secondary Acct]],tblELECOPSLookup[[#This Row],[Secondary  Name]],tblELECOPSLookup[[#This Row],[Alloc4Func]])","v":"4562300MISC OTHER REV301915OTHER ELEC REV - MISCSITUS"},4562300,"MISC OTHER REV",301915,"OTHER ELEC REV - MISC","UT",null,{"$f":"IF(OR(tblELECOPSLookup[[#This Row],[Alloc]]=\"IDU\",tblELECOPSLookup[[#This Row],[Alloc]]=\"OR\",tblELECOPSLookup[[#This Row],[Alloc]]=\"UT\",tblELECOPSLookup[[#This Row],[Alloc]]=\"WYU\",tblELECOPSLookup[[#This Row],[Alloc]]=\"WYP\",tblELECOPSLookup[[#This Row],[Alloc]]=\"CA\",tblELECOPSLookup[[#This Row],[Alloc]]=\"WA\"),\"SITUS\",tblELECOPSLookup[[#This Row],[Alloc]])","v":"SITUS"},"P"]
[{"$f":"CONCATENATE(tblELECOPSLookup[[#This Row],[Primary Account]],tblELECOPSLookup[[#This Row],[Primary Name]],tblELECOPSLookup[[#This Row],[Secondary Acct]],tblELECOPSLookup[[#This Row],[Secondary  Name]],tblELECOPSLookup[[#This Row],[Alloc4Func]])","v":"4561100Other Wheeling Rev301963Ancil Revenue Sch 2-Reactive (C&T)SG"},4561100,"Other Wheeling Rev",301963,"Ancil Revenue Sch 2-Reactive (C&T)","SG",null,{"$f":"IF(OR(tblELECOPSLookup[[#This Row],[Alloc]]=\"IDU\",tblELECOPSLookup[[#This Row],[Alloc]]=\"OR\",tblELECOPSLookup[[#This Row],[Alloc]]=\"UT\",tblELECOPSLookup[[#This Row],[Alloc]]=\"WYU\",tblELECOPSLookup[[#This Row],[Alloc]]=\"WYP\",tblELECOPSLookup[[#This Row],[Alloc]]=\"CA\",tblELECOPSLookup[[#This Row],[Alloc]]=\"WA\"),\"SITUS\",tblELECOPSLookup[[#This Row],[Alloc]])","v":"SG"},"T"]
[{"$f":"CONCATENATE(tblELECOPSLookup[[#This Row],[Primary Account]],tblELECOPSLookup[[#This Row],[Primary Name]],tblELECOPSLookup[[#This Row],[Secondary Acct]],tblELECOPSLookup[[#This Row],[Secondary  Name]],tblELECOPSLookup[[#This Row],[Alloc4Func]])","v":"4562300MISC OTHER REV301915OTHER ELEC REV - MISCSITUS"},4562300,"MISC OTHER REV",301915,"OTHER ELEC REV - MISC","WA",null,{"$f":"IF(OR(tblELECOPSLookup[[#This Row],[Alloc]]=\"IDU\",tblELECOPSLookup[[#This Row],[Alloc]]=\"OR\",tblELECOPSLookup[[#This Row],[Alloc]]=\"UT\",tblELECOPSLookup[[#This Row],[Alloc]]=\"WYU\",tblELECOPSLookup[[#This Row],[Alloc]]=\"WYP\",tblELECOPSLookup[[#This Row],[Alloc]]=\"CA\",tblELECOPSLookup[[#This Row],[Alloc]]=\"WA\"),\"SITUS\",tblELECOPSLookup[[#This Row],[Alloc]])","v":"SITUS"},"P"]
[{"$f":"CONCATENATE(tblELECOPSLookup[[#This Row],[Primary Account]],tblELECOPSLookup[[#This Row],[Primary Name]],tblELECOPSLookup[[#This Row],[Secondary Acct]],tblELECOPSLookup[[#This Row],[Secondary  Name]],tblELECOPSLookup[[#This Row],[Alloc4Func]])","v":"4562300MISC OTHER REV301915OTHER ELEC REV - MISCSITUS"},4562300,"MISC OTHER REV",301915,"OTHER ELEC REV - MISC","OR",null,{"$f":"IF(OR(tblELECOPSLookup[[#This Row],[Alloc]]=\"IDU\",tblELECOPSLookup[[#This Row],[Alloc]]=\"OR\",tblELECOPSLookup[[#This Row],[Alloc]]=\"UT\",tblELECOPSLookup[[#This Row],[Alloc]]=\"WYU\",tblELECOPSLookup[[#This Row],[Alloc]]=\"WYP\",tblELECOPSLookup[[#This Row],[Alloc]]=\"CA\",tblELECOPSLookup[[#This Row],[Alloc]]=\"WA\"),\"SITUS\",tblELECOPSLookup[[#This Row],[Alloc]])","v":"SITUS"},"P"]
[{"$f":"CONCATENATE(tblELECOPSLookup[[#This Row],[Primary Account]],tblELECOPSLookup[[#This Row],[Primary Name]],tblELECOPSLookup[[#This Row],[Secondary Acct]],tblELECOPSLookup[[#This Row],[Secondary  Name]],tblELECOPSLookup[[#This Row],[Alloc4Func]])","v":"4562300MISC OTHER REV301900ELECTRIC INCOME OTHERSITUS"},4562300,"MISC OTHER REV",301900,"ELECTRIC INCOME OTHER","WYP",null,{"$f":"IF(OR(tblELECOPSLookup[[#This Row],[Alloc]]=\"IDU\",tblELECOPSLookup[[#This Row],[Alloc]]=\"OR\",tblELECOPSLookup[[#This Row],[Alloc]]=\"UT\",tblELECOPSLookup[[#This Row],[Alloc]]=\"WYU\",tblELECOPSLookup[[#This Row],[Alloc]]=\"WYP\",tblELECOPSLookup[[#This Row],[Alloc]]=\"CA\",tblELECOPSLookup[[#This Row],[Alloc]]=\"WA\"),\"SITUS\",tblELECOPSLookup[[#This Row],[Alloc]])","v":"SITUS"},"P"]
[{"$f":"CONCATENATE(tblELECOPSLookup[[#This Row],[Primary Account]],tblELECOPSLookup[[#This Row],[Primary Name]],tblELECOPSLookup[[#This Row],[Secondary Acct]],tblELECOPSLookup[[#This Row],[Secondary  Name]],tblELECOPSLookup[[#This Row],[Alloc4Func]])","v":"4561920L/T FIRM WHEEL REV302962TRANSM CAPACITY RE-ASSIGNMENT CONTRA REVSG"},4561920,"L/T FIRM WHEEL REV",302962,"TRANSM CAPACITY RE-ASSIGNMENT CONTRA REV","SG",null,{"$f":"IF(OR(tblELECOPSLookup[[#This Row],[Alloc]]=\"IDU\",tblELECOPSLookup[[#This Row],[Alloc]]=\"OR\",tblELECOPSLookup[[#This Row],[Alloc]]=\"UT\",tblELECOPSLookup[[#This Row],[Alloc]]=\"WYU\",tblELECOPSLookup[[#This Row],[Alloc]]=\"WYP\",tblELECOPSLookup[[#This Row],[Alloc]]=\"CA\",tblELECOPSLookup[[#This Row],[Alloc]]=\"WA\"),\"SITUS\",tblELECOPSLookup[[#This Row],[Alloc]])","v":"SG"},"T"]
[{"$f":"CONCATENATE(tblELECOPSLookup[[#This Row],[Primary Account]],tblELECOPSLookup[[#This Row],[Primary Name]],tblELECOPSLookup[[#This Row],[Secondary Acct]],tblELECOPSLookup[[#This Row],[Secondary  Name]],tblELECOPSLookup[[#This Row],[Alloc4Func]])","v":"4562400M&S INVENTORY SALES362950M&S INVENTORY SALESCN"},4562400,"M&S INVENTORY SALES",362950,"M&S INVENTORY SALES","CN",null,{"$f":"IF(OR(tblELECOPSLookup[[#This Row],[Alloc]]=\"IDU\",tblELECOPSLookup[[#This Row],[Alloc]]=\"OR\",tblELECOPSLookup[[#This Row],[Alloc]]=\"UT\",tblELECOPSLookup[[#This Row],[Alloc]]=\"WYU\",tblELECOPSLookup[[#This Row],[Alloc]]=\"WYP\",tblELECOPSLookup[[#This Row],[Alloc]]=\"CA\",tblELECOPSLookup[[#This Row],[Alloc]]=\"WA\"),\"SITUS\",tblELECOPSLookup[[#This Row],[Alloc]])","v":"CN"},"PTD"]
[{"$f":"CONCATENATE(tblELECOPSLookup[[#This Row],[Primary Account]],tblELECOPSLookup[[#This Row],[Primary Name]],tblELECOPSLookup[[#This Row],[Secondary Acct]],tblELECOPSLookup[[#This Row],[Secondary  Name]],tblELECOPSLookup[[#This Row],[Alloc4Func]])","v":"4562400M&S INVENTORY SALES362950M&S INVENTORY SALESSG"},4562400,"M&S INVENTORY SALES",362950,"M&S INVENTORY SALES","SG",null,{"$f":"IF(OR(tblELECOPSLookup[[#This Row],[Alloc]]=\"IDU\",tblELECOPSLookup[[#This Row],[Alloc]]=\"OR\",tblELECOPSLookup[[#This Row],[Alloc]]=\"UT\",tblELECOPSLookup[[#This Row],[Alloc]]=\"WYU\",tblELECOPSLookup[[#This Row],[Alloc]]=\"WYP\",tblELECOPSLookup[[#This Row],[Alloc]]=\"CA\",tblELECOPSLookup[[#This Row],[Alloc]]=\"WA\"),\"SITUS\",tblELECOPSLookup[[#This Row],[Alloc]])","v":"SG"},"PTD"]
[{"$f":"CONCATENATE(tblELECOPSLookup[[#This Row],[Primary Account]],tblELECOPSLookup[[#This Row],[Primary Name]],tblELECOPSLookup[[#This Row],[Secondary Acct]],tblELECOPSLookup[[#This Row],[Secondary  Name]],tblELECOPSLookup[[#This Row],[Alloc4Func]])","v":"4561100Other Wheeling Rev301974Ancil Revenue Sch 3a-Regulation (C&T)SG"},4561100,"Other Wheeling Rev",301974,"Ancil Revenue Sch 3a-Regulation (C&T)","SG",null,{"$f":"IF(OR(tblELECOPSLookup[[#This Row],[Alloc]]=\"IDU\",tblELECOPSLookup[[#This Row],[Alloc]]=\"OR\",tblELECOPSLookup[[#This Row],[Alloc]]=\"UT\",tblELECOPSLookup[[#This Row],[Alloc]]=\"WYU\",tblELECOPSLookup[[#This Row],[Alloc]]=\"WYP\",tblELECOPSLookup[[#This Row],[Alloc]]=\"CA\",tblELECOPSLookup[[#This Row],[Alloc]]=\"WA\"),\"SITUS\",tblELECOPSLookup[[#This Row],[Alloc]])","v":"SG"},"T"]
[{"$f":"CONCATENATE(tblELECOPSLookup[[#This Row],[Primary Account]],tblELECOPSLookup[[#This Row],[Primary Name]],tblELECOPSLookup[[#This Row],[Secondary Acct]],tblELECOPSLookup[[#This Row],[Secondary  Name]],tblELECOPSLookup[[#This Row],[Alloc4Func]])","v":"4561100Other Wheeling Rev301964Ancil Revenue Sch 3a-Regulation (Trans)SG"},4561100,"Other Wheeling Rev",301964,"Ancil Revenue Sch 3a-Regulation (Trans)","SG",null,{"$f":"IF(OR(tblELECOPSLookup[[#This Row],[Alloc]]=\"IDU\",tblELECOPSLookup[[#This Row],[Alloc]]=\"OR\",tblELECOPSLookup[[#This Row],[Alloc]]=\"UT\",tblELECOPSLookup[[#This Row],[Alloc]]=\"WYU\",tblELECOPSLookup[[#This Row],[Alloc]]=\"WYP\",tblELECOPSLookup[[#This Row],[Alloc]]=\"CA\",tblELECOPSLookup[[#This Row],[Alloc]]=\"WA\"),\"SITUS\",tblELECOPSLookup[[#This Row],[Alloc]])","v":"SG"},"T"]
[{"$f":"CONCATENATE(tblELECOPSLookup[[#This Row],[Primary Account]],tblELECOPSLookup[[#This Row],[Primary Name]],tblELECOPSLookup[[#This Row],[Secondary Acct]],tblELECOPSLookup[[#This Row],[Secondary  Name]],tblELECOPSLookup[[#This Row],[Alloc4Func]])","v":"4562700RNW ENRGY CRDT SALES352950REC Sales - Wind Wake Loss IndemnitySG"},4562700,"RNW ENRGY CRDT SALES",352950,"REC Sales - Wind Wake Loss Indemnity","SG",null,{"$f":"IF(OR(tblELECOPSLookup[[#This Row],[Alloc]]=\"IDU\",tblELECOPSLookup[[#This Row],[Alloc]]=\"OR\",tblELECOPSLookup[[#This Row],[Alloc]]=\"UT\",tblELECOPSLookup[[#This Row],[Alloc]]=\"WYU\",tblELECOPSLookup[[#This Row],[Alloc]]=\"WYP\",tblELECOPSLookup[[#This Row],[Alloc]]=\"CA\",tblELECOPSLookup[[#This Row],[Alloc]]=\"WA\"),\"SITUS\",tblELECOPSLookup[[#This Row],[Alloc]])","v":"SG"},"P"]
[{"$f":"CONCATENATE(tblELECOPSLookup[[#This Row],[Primary Account]],tblELECOPSLookup[[#This Row],[Primary Name]],tblELECOPSLookup[[#This Row],[Secondary Acct]],tblELECOPSLookup[[#This Row],[Secondary  Name]],tblELECOPSLookup[[#This Row],[Alloc4Func]])","v":"4562300MISC OTHER REV302071I/C Transmission O&M Revenue-Sierra PacSG"},4562300,"MISC OTHER REV",302071,"I/C Transmission O&M Revenue-Sierra Pac","SG",null,{"$f":"IF(OR(tblELECOPSLookup[[#This Row],[Alloc]]=\"IDU\",tblELECOPSLookup[[#This Row],[Alloc]]=\"OR\",tblELECOPSLookup[[#This Row],[Alloc]]=\"UT\",tblELECOPSLookup[[#This Row],[Alloc]]=\"WYU\",tblELECOPSLookup[[#This Row],[Alloc]]=\"WYP\",tblELECOPSLookup[[#This Row],[Alloc]]=\"CA\",tblELECOPSLookup[[#This Row],[Alloc]]=\"WA\"),\"SITUS\",tblELECOPSLookup[[#This Row],[Alloc]])","v":"SG"},"T"]
[{"$f":"CONCATENATE(tblELECOPSLookup[[#This Row],[Primary Account]],tblELECOPSLookup[[#This Row],[Primary Name]],tblELECOPSLookup[[#This Row],[Secondary Acct]],tblELECOPSLookup[[#This Row],[Secondary  Name]],tblELECOPSLookup[[#This Row],[Alloc4Func]])","v":"4562100USE OF FACIL REV301911\"INCOME FROM FISH, WILDLIFE\"SG"},4562100,"USE OF FACIL REV",301911,"\"INCOME FROM FISH, WILDLIFE\"","SG",null,{"$f":"IF(OR(tblELECOPSLookup[[#This Row],[Alloc]]=\"IDU\",tblELECOPSLookup[[#This Row],[Alloc]]=\"OR\",tblELECOPSLookup[[#This Row],[Alloc]]=\"UT\",tblELECOPSLookup[[#This Row],[Alloc]]=\"WYU\",tblELECOPSLookup[[#This Row],[Alloc]]=\"WYP\",tblELECOPSLookup[[#This Row],[Alloc]]=\"CA\",tblELECOPSLookup[[#This Row],[Alloc]]=\"WA\"),\"SITUS\",tblELECOPSLookup[[#This Row],[Alloc]])","v":"SG"},"P"]
[{"$f":"CONCATENATE(tblELECOPSLookup[[#This Row],[Primary Account]],tblELECOPSLookup[[#This Row],[Primary Name]],tblELECOPSLookup[[#This Row],[Secondary Acct]],tblELECOPSLookup[[#This Row],[Secondary  Name]],tblELECOPSLookup[[#This Row],[Alloc4Func]])","v":"4562300MISC OTHER REV301900ELECTRIC INCOME OTHERSITUS"},4562300,"MISC OTHER REV",301900,"ELECTRIC INCOME OTHER","UT",null,{"$f":"IF(OR(tblELECOPSLookup[[#This Row],[Alloc]]=\"IDU\",tblELECOPSLookup[[#This Row],[Alloc]]=\"OR\",tblELECOPSLookup[[#This Row],[Alloc]]=\"UT\",tblELECOPSLookup[[#This Row],[Alloc]]=\"WYU\",tblELECOPSLookup[[#This Row],[Alloc]]=\"WYP\",tblELECOPSLookup[[#This Row],[Alloc]]=\"CA\",tblELECOPSLookup[[#This Row],[Alloc]]=\"WA\"),\"SITUS\",tblELECOPSLookup[[#This Row],[Alloc]])","v":"SITUS"},"P"]
[{"$f":"CONCATENATE(tblELECOPSLookup[[#This Row],[Primary Account]],tblELECOPSLookup[[#This Row],[Primary Name]],tblELECOPSLookup[[#This Row],[Secondary Acct]],tblELECOPSLookup[[#This Row],[Secondary  Name]],tblELECOPSLookup[[#This Row],[Alloc4Func]])","v":"4562310EIM - MISCELLANEOUS308001EIM Rev-Forecasting Fee: Pac to TCSG"},4562310,"EIM - MISCELLANEOUS",308001,"EIM Rev-Forecasting Fee: Pac to TC","SG",null,{"$f":"IF(OR(tblELECOPSLookup[[#This Row],[Alloc]]=\"IDU\",tblELECOPSLookup[[#This Row],[Alloc]]=\"OR\",tblELECOPSLookup[[#This Row],[Alloc]]=\"UT\",tblELECOPSLookup[[#This Row],[Alloc]]=\"WYU\",tblELECOPSLookup[[#This Row],[Alloc]]=\"WYP\",tblELECOPSLookup[[#This Row],[Alloc]]=\"CA\",tblELECOPSLookup[[#This Row],[Alloc]]=\"WA\"),\"SITUS\",tblELECOPSLookup[[#This Row],[Alloc]])","v":"SG"},"P"]
[{"$f":"CONCATENATE(tblELECOPSLookup[[#This Row],[Primary Account]],tblELECOPSLookup[[#This Row],[Primary Name]],tblELECOPSLookup[[#This Row],[Secondary Acct]],tblELECOPSLookup[[#This Row],[Secondary  Name]],tblELECOPSLookup[[#This Row],[Alloc4Func]])","v":"4562300MISC OTHER REV301900ELECTRIC INCOME OTHERSG"},4562300,"MISC OTHER REV",301900,"ELECTRIC INCOME OTHER","SG",null,{"$f":"IF(OR(tblELECOPSLookup[[#This Row],[Alloc]]=\"IDU\",tblELECOPSLookup[[#This Row],[Alloc]]=\"OR\",tblELECOPSLookup[[#This Row],[Alloc]]=\"UT\",tblELECOPSLookup[[#This Row],[Alloc]]=\"WYU\",tblELECOPSLookup[[#This Row],[Alloc]]=\"WYP\",tblELECOPSLookup[[#This Row],[Alloc]]=\"CA\",tblELECOPSLookup[[#This Row],[Alloc]]=\"WA\"),\"SITUS\",tblELECOPSLookup[[#This Row],[Alloc]])","v":"SG"},"P"]
[{"$f":"CONCATENATE(tblELECOPSLookup[[#This Row],[Primary Account]],tblELECOPSLookup[[#This Row],[Primary Name]],tblELECOPSLookup[[#This Row],[Secondary Acct]],tblELECOPSLookup[[#This Row],[Secondary  Name]],tblELECOPSLookup[[#This Row],[Alloc4Func]])","v":"4561100Other Wheeling Rev301953Ancillary Rev Sch 6-Supp (C&T)SG"},4561100,"Other Wheeling Rev",301953,"Ancillary Rev Sch 6-Supp (C&T)","SG",null,{"$f":"IF(OR(tblELECOPSLookup[[#This Row],[Alloc]]=\"IDU\",tblELECOPSLookup[[#This Row],[Alloc]]=\"OR\",tblELECOPSLookup[[#This Row],[Alloc]]=\"UT\",tblELECOPSLookup[[#This Row],[Alloc]]=\"WYU\",tblELECOPSLookup[[#This Row],[Alloc]]=\"WYP\",tblELECOPSLookup[[#This Row],[Alloc]]=\"CA\",tblELECOPSLookup[[#This Row],[Alloc]]=\"WA\"),\"SITUS\",tblELECOPSLookup[[#This Row],[Alloc]])","v":"SG"},"T"]
[{"$f":"CONCATENATE(tblELECOPSLookup[[#This Row],[Primary Account]],tblELECOPSLookup[[#This Row],[Primary Name]],tblELECOPSLookup[[#This Row],[Secondary Acct]],tblELECOPSLookup[[#This Row],[Secondary  Name]],tblELECOPSLookup[[#This Row],[Alloc4Func]])","v":"4562300MISC OTHER REV301958Wind-based Ancillary Services EstimateSG"},4562300,"MISC OTHER REV",301958,"Wind-based Ancillary Services Estimate","SG",null,{"$f":"IF(OR(tblELECOPSLookup[[#This Row],[Alloc]]=\"IDU\",tblELECOPSLookup[[#This Row],[Alloc]]=\"OR\",tblELECOPSLookup[[#This Row],[Alloc]]=\"UT\",tblELECOPSLookup[[#This Row],[Alloc]]=\"WYU\",tblELECOPSLookup[[#This Row],[Alloc]]=\"WYP\",tblELECOPSLookup[[#This Row],[Alloc]]=\"CA\",tblELECOPSLookup[[#This Row],[Alloc]]=\"WA\"),\"SITUS\",tblELECOPSLookup[[#This Row],[Alloc]])","v":"SG"},"P"]
[{"$f":"CONCATENATE(tblELECOPSLookup[[#This Row],[Primary Account]],tblELECOPSLookup[[#This Row],[Primary Name]],tblELECOPSLookup[[#This Row],[Secondary Acct]],tblELECOPSLookup[[#This Row],[Secondary  Name]],tblELECOPSLookup[[#This Row],[Alloc4Func]])","v":"4561100Other Wheeling Rev301952Ancillary Rev Sch 6-Supp (Transm)SG"},4561100,"Other Wheeling Rev",301952,"Ancillary Rev Sch 6-Supp (Transm)","SG",null,{"$f":"IF(OR(tblELECOPSLookup[[#This Row],[Alloc]]=\"IDU\",tblELECOPSLookup[[#This Row],[Alloc]]=\"OR\",tblELECOPSLookup[[#This Row],[Alloc]]=\"UT\",tblELECOPSLookup[[#This Row],[Alloc]]=\"WYU\",tblELECOPSLookup[[#This Row],[Alloc]]=\"WYP\",tblELECOPSLookup[[#This Row],[Alloc]]=\"CA\",tblELECOPSLookup[[#This Row],[Alloc]]=\"WA\"),\"SITUS\",tblELECOPSLookup[[#This Row],[Alloc]])","v":"SG"},"T"]
[{"$f":"CONCATENATE(tblELECOPSLookup[[#This Row],[Primary Account]],tblELECOPSLookup[[#This Row],[Primary Name]],tblELECOPSLookup[[#This Row],[Secondary Acct]],tblELECOPSLookup[[#This Row],[Secondary  Name]],tblELECOPSLookup[[#This Row],[Alloc4Func]])","v":"4561930NON-FIRM WHEEL REV302822I/C Non-Firm Wheeling Revenue-Nevada PwrSE"},4561930,"NON-FIRM WHEEL REV",302822,"I/C Non-Firm Wheeling Revenue-Nevada Pwr","SE",null,{"$f":"IF(OR(tblELECOPSLookup[[#This Row],[Alloc]]=\"IDU\",tblELECOPSLookup[[#This Row],[Alloc]]=\"OR\",tblELECOPSLookup[[#This Row],[Alloc]]=\"UT\",tblELECOPSLookup[[#This Row],[Alloc]]=\"WYU\",tblELECOPSLookup[[#This Row],[Alloc]]=\"WYP\",tblELECOPSLookup[[#This Row],[Alloc]]=\"CA\",tblELECOPSLookup[[#This Row],[Alloc]]=\"WA\"),\"SITUS\",tblELECOPSLookup[[#This Row],[Alloc]])","v":"SE"},"T"]
[{"$f":"CONCATENATE(tblELECOPSLookup[[#This Row],[Primary Account]],tblELECOPSLookup[[#This Row],[Primary Name]],tblELECOPSLookup[[#This Row],[Secondary Acct]],tblELECOPSLookup[[#This Row],[Secondary  Name]],tblELECOPSLookup[[#This Row],[Alloc4Func]])","v":"4562400M&S INVENTORY SALES362950M&S INVENTORY SALESSITUS"},4562400,"M&S INVENTORY SALES",362950,"M&S INVENTORY SALES","UT",null,{"$f":"IF(OR(tblELECOPSLookup[[#This Row],[Alloc]]=\"IDU\",tblELECOPSLookup[[#This Row],[Alloc]]=\"OR\",tblELECOPSLookup[[#This Row],[Alloc]]=\"UT\",tblELECOPSLookup[[#This Row],[Alloc]]=\"WYU\",tblELECOPSLookup[[#This Row],[Alloc]]=\"WYP\",tblELECOPSLookup[[#This Row],[Alloc]]=\"CA\",tblELECOPSLookup[[#This Row],[Alloc]]=\"WA\"),\"SITUS\",tblELECOPSLookup[[#This Row],[Alloc]])","v":"SITUS"},"PTD"]
[{"$f":"CONCATENATE(tblELECOPSLookup[[#This Row],[Primary Account]],tblELECOPSLookup[[#This Row],[Primary Name]],tblELECOPSLookup[[#This Row],[Secondary Acct]],tblELECOPSLookup[[#This Row],[Secondary  Name]],tblELECOPSLookup[[#This Row],[Alloc4Func]])","v":"4562700RNW ENRGY CRDT SALES301944Renewable Energy Credit Sales-EstimateSG"},4562700,"RNW ENRGY CRDT SALES",301944,"Renewable Energy Credit Sales-Estimate","SG",null,{"$f":"IF(OR(tblELECOPSLookup[[#This Row],[Alloc]]=\"IDU\",tblELECOPSLookup[[#This Row],[Alloc]]=\"OR\",tblELECOPSLookup[[#This Row],[Alloc]]=\"UT\",tblELECOPSLookup[[#This Row],[Alloc]]=\"WYU\",tblELECOPSLookup[[#This Row],[Alloc]]=\"WYP\",tblELECOPSLookup[[#This Row],[Alloc]]=\"CA\",tblELECOPSLookup[[#This Row],[Alloc]]=\"WA\"),\"SITUS\",tblELECOPSLookup[[#This Row],[Alloc]])","v":"SG"},"P"]
[{"$f":"CONCATENATE(tblELECOPSLookup[[#This Row],[Primary Account]],tblELECOPSLookup[[#This Row],[Primary Name]],tblELECOPSLookup[[#This Row],[Secondary Acct]],tblELECOPSLookup[[#This Row],[Secondary  Name]],tblELECOPSLookup[[#This Row],[Alloc4Func]])","v":"4562300MISC OTHER REV301955OTHER REV WY REG KENNECOTTSITUS"},4562300,"MISC OTHER REV",301955,"OTHER REV WY REG KENNECOTT","WYP",null,{"$f":"IF(OR(tblELECOPSLookup[[#This Row],[Alloc]]=\"IDU\",tblELECOPSLookup[[#This Row],[Alloc]]=\"OR\",tblELECOPSLookup[[#This Row],[Alloc]]=\"UT\",tblELECOPSLookup[[#This Row],[Alloc]]=\"WYU\",tblELECOPSLookup[[#This Row],[Alloc]]=\"WYP\",tblELECOPSLookup[[#This Row],[Alloc]]=\"CA\",tblELECOPSLookup[[#This Row],[Alloc]]=\"WA\"),\"SITUS\",tblELECOPSLookup[[#This Row],[Alloc]])","v":"SITUS"},"P"]
[{"$f":"CONCATENATE(tblELECOPSLookup[[#This Row],[Primary Account]],tblELECOPSLookup[[#This Row],[Primary Name]],tblELECOPSLookup[[#This Row],[Secondary Acct]],tblELECOPSLookup[[#This Row],[Secondary  Name]],tblELECOPSLookup[[#This Row],[Alloc4Func]])","v":"4562300MISC OTHER REV361000STEAM SALESSG"},4562300,"MISC OTHER REV",361000,"STEAM SALES","SG",null,{"$f":"IF(OR(tblELECOPSLookup[[#This Row],[Alloc]]=\"IDU\",tblELECOPSLookup[[#This Row],[Alloc]]=\"OR\",tblELECOPSLookup[[#This Row],[Alloc]]=\"UT\",tblELECOPSLookup[[#This Row],[Alloc]]=\"WYU\",tblELECOPSLookup[[#This Row],[Alloc]]=\"WYP\",tblELECOPSLookup[[#This Row],[Alloc]]=\"CA\",tblELECOPSLookup[[#This Row],[Alloc]]=\"WA\"),\"SITUS\",tblELECOPSLookup[[#This Row],[Alloc]])","v":"SG"},"P"]
[{"$f":"CONCATENATE(tblELECOPSLookup[[#This Row],[Primary Account]],tblELECOPSLookup[[#This Row],[Primary Name]],tblELECOPSLookup[[#This Row],[Secondary Acct]],tblELECOPSLookup[[#This Row],[Secondary  Name]],tblELECOPSLookup[[#This Row],[Alloc4Func]])","v":"4561100Other Wheeling Rev301967Ancillary Revenue Sch 1 - SchedulingSG"},4561100,"Other Wheeling Rev",301967,"Ancillary Revenue Sch 1 - Scheduling","SG",null,{"$f":"IF(OR(tblELECOPSLookup[[#This Row],[Alloc]]=\"IDU\",tblELECOPSLookup[[#This Row],[Alloc]]=\"OR\",tblELECOPSLookup[[#This Row],[Alloc]]=\"UT\",tblELECOPSLookup[[#This Row],[Alloc]]=\"WYU\",tblELECOPSLookup[[#This Row],[Alloc]]=\"WYP\",tblELECOPSLookup[[#This Row],[Alloc]]=\"CA\",tblELECOPSLookup[[#This Row],[Alloc]]=\"WA\"),\"SITUS\",tblELECOPSLookup[[#This Row],[Alloc]])","v":"SG"},"T"]
[{"$f":"CONCATENATE(tblELECOPSLookup[[#This Row],[Primary Account]],tblELECOPSLookup[[#This Row],[Primary Name]],tblELECOPSLookup[[#This Row],[Secondary Acct]],tblELECOPSLookup[[#This Row],[Secondary  Name]],tblELECOPSLookup[[#This Row],[Alloc4Func]])","v":"4562300MISC OTHER REV301949THIRD PARTY TRN O&M REVSG"},4562300,"MISC OTHER REV",301949,"THIRD PARTY TRN O&M REV","SG",null,{"$f":"IF(OR(tblELECOPSLookup[[#This Row],[Alloc]]=\"IDU\",tblELECOPSLookup[[#This Row],[Alloc]]=\"OR\",tblELECOPSLookup[[#This Row],[Alloc]]=\"UT\",tblELECOPSLookup[[#This Row],[Alloc]]=\"WYU\",tblELECOPSLookup[[#This Row],[Alloc]]=\"WYP\",tblELECOPSLookup[[#This Row],[Alloc]]=\"CA\",tblELECOPSLookup[[#This Row],[Alloc]]=\"WA\"),\"SITUS\",tblELECOPSLookup[[#This Row],[Alloc]])","v":"SG"},"T"]
[{"$f":"CONCATENATE(tblELECOPSLookup[[#This Row],[Primary Account]],tblELECOPSLookup[[#This Row],[Primary Name]],tblELECOPSLookup[[#This Row],[Secondary Acct]],tblELECOPSLookup[[#This Row],[Secondary  Name]],tblELECOPSLookup[[#This Row],[Alloc4Func]])","v":"4562300MISC OTHER REV374400Timber Sales - Utility PropertySG"},4562300,"MISC OTHER REV",374400,"Timber Sales - Utility Property","SG",null,{"$f":"IF(OR(tblELECOPSLookup[[#This Row],[Alloc]]=\"IDU\",tblELECOPSLookup[[#This Row],[Alloc]]=\"OR\",tblELECOPSLookup[[#This Row],[Alloc]]=\"UT\",tblELECOPSLookup[[#This Row],[Alloc]]=\"WYU\",tblELECOPSLookup[[#This Row],[Alloc]]=\"WYP\",tblELECOPSLookup[[#This Row],[Alloc]]=\"CA\",tblELECOPSLookup[[#This Row],[Alloc]]=\"WA\"),\"SITUS\",tblELECOPSLookup[[#This Row],[Alloc]])","v":"SG"},"P"]
[{"$f":"CONCATENATE(tblELECOPSLookup[[#This Row],[Primary Account]],tblELECOPSLookup[[#This Row],[Primary Name]],tblELECOPSLookup[[#This Row],[Secondary Acct]],tblELECOPSLookup[[#This Row],[Secondary  Name]],tblELECOPSLookup[[#This Row],[Alloc4Func]])","v":"4561100Other Wheeling Rev301969Ancillary Revenue Sch 3 - Reg&Freq (C&T)SG"},4561100,"Other Wheeling Rev",301969,"Ancillary Revenue Sch 3 - Reg&Freq (C&T)","SG",null,{"$f":"IF(OR(tblELECOPSLookup[[#This Row],[Alloc]]=\"IDU\",tblELECOPSLookup[[#This Row],[Alloc]]=\"OR\",tblELECOPSLookup[[#This Row],[Alloc]]=\"UT\",tblELECOPSLookup[[#This Row],[Alloc]]=\"WYU\",tblELECOPSLookup[[#This Row],[Alloc]]=\"WYP\",tblELECOPSLookup[[#This Row],[Alloc]]=\"CA\",tblELECOPSLookup[[#This Row],[Alloc]]=\"WA\"),\"SITUS\",tblELECOPSLookup[[#This Row],[Alloc]])","v":"SG"},"T"]
[{"$f":"CONCATENATE(tblELECOPSLookup[[#This Row],[Primary Account]],tblELECOPSLookup[[#This Row],[Primary Name]],tblELECOPSLookup[[#This Row],[Secondary Acct]],tblELECOPSLookup[[#This Row],[Secondary  Name]],tblELECOPSLookup[[#This Row],[Alloc4Func]])","v":"4561100Other Wheeling Rev301968Ancillary Revenue Sch 3 - Reg&Freq (TranSG"},4561100,"Other Wheeling Rev",301968,"Ancillary Revenue Sch 3 - Reg&Freq (Tran","SG",null,{"$f":"IF(OR(tblELECOPSLookup[[#This Row],[Alloc]]=\"IDU\",tblELECOPSLookup[[#This Row],[Alloc]]=\"OR\",tblELECOPSLookup[[#This Row],[Alloc]]=\"UT\",tblELECOPSLookup[[#This Row],[Alloc]]=\"WYU\",tblELECOPSLookup[[#This Row],[Alloc]]=\"WYP\",tblELECOPSLookup[[#This Row],[Alloc]]=\"CA\",tblELECOPSLookup[[#This Row],[Alloc]]=\"WA\"),\"SITUS\",tblELECOPSLookup[[#This Row],[Alloc]])","v":"SG"},"T"]
[{"$f":"CONCATENATE(tblELECOPSLookup[[#This Row],[Primary Account]],tblELECOPSLookup[[#This Row],[Primary Name]],tblELECOPSLookup[[#This Row],[Secondary Acct]],tblELECOPSLookup[[#This Row],[Secondary  Name]],tblELECOPSLookup[[#This Row],[Alloc4Func]])","v":"4561100Other Wheeling Rev301973Ancillary Revenue Sch 5&6-Spin&Supp (C&TSG"},4561100,"Other Wheeling Rev",301973,"Ancillary Revenue Sch 5&6-Spin&Supp (C&T","SG",null,{"$f":"IF(OR(tblELECOPSLookup[[#This Row],[Alloc]]=\"IDU\",tblELECOPSLookup[[#This Row],[Alloc]]=\"OR\",tblELECOPSLookup[[#This Row],[Alloc]]=\"UT\",tblELECOPSLookup[[#This Row],[Alloc]]=\"WYU\",tblELECOPSLookup[[#This Row],[Alloc]]=\"WYP\",tblELECOPSLookup[[#This Row],[Alloc]]=\"CA\",tblELECOPSLookup[[#This Row],[Alloc]]=\"WA\"),\"SITUS\",tblELECOPSLookup[[#This Row],[Alloc]])","v":"SG"},"T"]
[{"$f":"CONCATENATE(tblELECOPSLookup[[#This Row],[Primary Account]],tblELECOPSLookup[[#This Row],[Primary Name]],tblELECOPSLookup[[#This Row],[Secondary Acct]],tblELECOPSLookup[[#This Row],[Secondary  Name]],tblELECOPSLookup[[#This Row],[Alloc4Func]])","v":"4561910S/T FIRM WHEEL REV301926SHORT TERM FIRM WHEELINGSG"},4561910,"S/T FIRM WHEEL REV",301926,"SHORT TERM FIRM WHEELING","SG",null,{"$f":"IF(OR(tblELECOPSLookup[[#This Row],[Alloc]]=\"IDU\",tblELECOPSLookup[[#This Row],[Alloc]]=\"OR\",tblELECOPSLookup[[#This Row],[Alloc]]=\"UT\",tblELECOPSLookup[[#This Row],[Alloc]]=\"WYU\",tblELECOPSLookup[[#This Row],[Alloc]]=\"WYP\",tblELECOPSLookup[[#This Row],[Alloc]]=\"CA\",tblELECOPSLookup[[#This Row],[Alloc]]=\"WA\"),\"SITUS\",tblELECOPSLookup[[#This Row],[Alloc]])","v":"SG"},"T"]
[{"$f":"CONCATENATE(tblELECOPSLookup[[#This Row],[Primary Account]],tblELECOPSLookup[[#This Row],[Primary Name]],tblELECOPSLookup[[#This Row],[Secondary Acct]],tblELECOPSLookup[[#This Row],[Secondary  Name]],tblELECOPSLookup[[#This Row],[Alloc4Func]])","v":"4562300MISC OTHER REV301951NON-WHEELING SYS REVSG"},4562300,"MISC OTHER REV",301951,"NON-WHEELING SYS REV","SG",null,{"$f":"IF(OR(tblELECOPSLookup[[#This Row],[Alloc]]=\"IDU\",tblELECOPSLookup[[#This Row],[Alloc]]=\"OR\",tblELECOPSLookup[[#This Row],[Alloc]]=\"UT\",tblELECOPSLookup[[#This Row],[Alloc]]=\"WYU\",tblELECOPSLookup[[#This Row],[Alloc]]=\"WYP\",tblELECOPSLookup[[#This Row],[Alloc]]=\"CA\",tblELECOPSLookup[[#This Row],[Alloc]]=\"WA\"),\"SITUS\",tblELECOPSLookup[[#This Row],[Alloc]])","v":"SG"},"P"]
[{"$f":"CONCATENATE(tblELECOPSLookup[[#This Row],[Primary Account]],tblELECOPSLookup[[#This Row],[Primary Name]],tblELECOPSLookup[[#This Row],[Secondary Acct]],tblELECOPSLookup[[#This Row],[Secondary  Name]],tblELECOPSLookup[[#This Row],[Alloc4Func]])","v":"4561100Other Wheeling Rev301972Ancillary Revenue Sch 5&6-Spin&Supp (TraSG"},4561100,"Other Wheeling Rev",301972,"Ancillary Revenue Sch 5&6-Spin&Supp (Tra","SG",null,{"$f":"IF(OR(tblELECOPSLookup[[#This Row],[Alloc]]=\"IDU\",tblELECOPSLookup[[#This Row],[Alloc]]=\"OR\",tblELECOPSLookup[[#This Row],[Alloc]]=\"UT\",tblELECOPSLookup[[#This Row],[Alloc]]=\"WYU\",tblELECOPSLookup[[#This Row],[Alloc]]=\"WYP\",tblELECOPSLookup[[#This Row],[Alloc]]=\"CA\",tblELECOPSLookup[[#This Row],[Alloc]]=\"WA\"),\"SITUS\",tblELECOPSLookup[[#This Row],[Alloc]])","v":"SG"},"T"]
[{"$f":"CONCATENATE(tblELECOPSLookup[[#This Row],[Primary Account]],tblELECOPSLookup[[#This Row],[Primary Name]],tblELECOPSLookup[[#This Row],[Secondary Acct]],tblELECOPSLookup[[#This Row],[Secondary  Name]],tblELECOPSLookup[[#This Row],[Alloc4Func]])","v":"4561100Other Wheeling Rev302082I/C Anc Rev Sch 1-Scheduling-Nevada PwrSG"},4561100,"Other Wheeling Rev",302082,"I/C Anc Rev Sch 1-Scheduling-Nevada Pwr","SG",null,{"$f":"IF(OR(tblELECOPSLookup[[#This Row],[Alloc]]=\"IDU\",tblELECOPSLookup[[#This Row],[Alloc]]=\"OR\",tblELECOPSLookup[[#This Row],[Alloc]]=\"UT\",tblELECOPSLookup[[#This Row],[Alloc]]=\"WYU\",tblELECOPSLookup[[#This Row],[Alloc]]=\"WYP\",tblELECOPSLookup[[#This Row],[Alloc]]=\"CA\",tblELECOPSLookup[[#This Row],[Alloc]]=\"WA\"),\"SITUS\",tblELECOPSLookup[[#This Row],[Alloc]])","v":"SG"},"T"]
[{"$f":"CONCATENATE(tblELECOPSLookup[[#This Row],[Primary Account]],tblELECOPSLookup[[#This Row],[Primary Name]],tblELECOPSLookup[[#This Row],[Secondary Acct]],tblELECOPSLookup[[#This Row],[Secondary  Name]],tblELECOPSLookup[[#This Row],[Alloc4Func]])","v":"4562300MISC OTHER REV301915OTHER ELEC REV - MISCSG"},4562300,"MISC OTHER REV",301915,"OTHER ELEC REV - MISC","SG",null,{"$f":"IF(OR(tblELECOPSLookup[[#This Row],[Alloc]]=\"IDU\",tblELECOPSLookup[[#This Row],[Alloc]]=\"OR\",tblELECOPSLookup[[#This Row],[Alloc]]=\"UT\",tblELECOPSLookup[[#This Row],[Alloc]]=\"WYU\",tblELECOPSLookup[[#This Row],[Alloc]]=\"WYP\",tblELECOPSLookup[[#This Row],[Alloc]]=\"CA\",tblELECOPSLookup[[#This Row],[Alloc]]=\"WA\"),\"SITUS\",tblELECOPSLookup[[#This Row],[Alloc]])","v":"SG"},"P"]
[{"$f":"CONCATENATE(tblELECOPSLookup[[#This Row],[Primary Account]],tblELECOPSLookup[[#This Row],[Primary Name]],tblELECOPSLookup[[#This Row],[Secondary Acct]],tblELECOPSLookup[[#This Row],[Secondary  Name]],tblELECOPSLookup[[#This Row],[Alloc4Func]])","v":"4561100Other Wheeling Rev302092I/C Anc Rev Sch 2-Reactive-Nevada PwrSG"},4561100,"Other Wheeling Rev",302092,"I/C Anc Rev Sch 2-Reactive-Nevada Pwr","SG",null,{"$f":"IF(OR(tblELECOPSLookup[[#This Row],[Alloc]]=\"IDU\",tblELECOPSLookup[[#This Row],[Alloc]]=\"OR\",tblELECOPSLookup[[#This Row],[Alloc]]=\"UT\",tblELECOPSLookup[[#This Row],[Alloc]]=\"WYU\",tblELECOPSLookup[[#This Row],[Alloc]]=\"WYP\",tblELECOPSLookup[[#This Row],[Alloc]]=\"CA\",tblELECOPSLookup[[#This Row],[Alloc]]=\"WA\"),\"SITUS\",tblELECOPSLookup[[#This Row],[Alloc]])","v":"SG"},"T"]
[{"$f":"CONCATENATE(tblELECOPSLookup[[#This Row],[Primary Account]],tblELECOPSLookup[[#This Row],[Primary Name]],tblELECOPSLookup[[#This Row],[Secondary Acct]],tblELECOPSLookup[[#This Row],[Secondary  Name]],tblELECOPSLookup[[#This Row],[Alloc4Func]])","v":"4562400M&S INVENTORY SALES362950M&S INVENTORY SALESSO"},4562400,"M&S INVENTORY SALES",362950,"M&S INVENTORY SALES","SO",null,{"$f":"IF(OR(tblELECOPSLookup[[#This Row],[Alloc]]=\"IDU\",tblELECOPSLookup[[#This Row],[Alloc]]=\"OR\",tblELECOPSLookup[[#This Row],[Alloc]]=\"UT\",tblELECOPSLookup[[#This Row],[Alloc]]=\"WYU\",tblELECOPSLookup[[#This Row],[Alloc]]=\"WYP\",tblELECOPSLookup[[#This Row],[Alloc]]=\"CA\",tblELECOPSLookup[[#This Row],[Alloc]]=\"WA\"),\"SITUS\",tblELECOPSLookup[[#This Row],[Alloc]])","v":"SO"},"PTD"]
[{"$f":"CONCATENATE(tblELECOPSLookup[[#This Row],[Primary Account]],tblELECOPSLookup[[#This Row],[Primary Name]],tblELECOPSLookup[[#This Row],[Secondary Acct]],tblELECOPSLookup[[#This Row],[Secondary  Name]],tblELECOPSLookup[[#This Row],[Alloc4Func]])","v":"4563500Oth Elec Rev-Def Trn305991FERC Transmission Refund-AmortzSITUS"},4563500,"Oth Elec Rev-Def Trn",305991,"FERC Transmission Refund-Amortz","OR",null,{"$f":"IF(OR(tblELECOPSLookup[[#This Row],[Alloc]]=\"IDU\",tblELECOPSLookup[[#This Row],[Alloc]]=\"OR\",tblELECOPSLookup[[#This Row],[Alloc]]=\"UT\",tblELECOPSLookup[[#This Row],[Alloc]]=\"WYU\",tblELECOPSLookup[[#This Row],[Alloc]]=\"WYP\",tblELECOPSLookup[[#This Row],[Alloc]]=\"CA\",tblELECOPSLookup[[#This Row],[Alloc]]=\"WA\"),\"SITUS\",tblELECOPSLookup[[#This Row],[Alloc]])","v":"SITUS"},"T"]
[{"$f":"CONCATENATE(tblELECOPSLookup[[#This Row],[Primary Account]],tblELECOPSLookup[[#This Row],[Primary Name]],tblELECOPSLookup[[#This Row],[Secondary Acct]],tblELECOPSLookup[[#This Row],[Secondary  Name]],tblELECOPSLookup[[#This Row],[Alloc4Func]])","v":"4561100Other Wheeling Rev302831I/C Other Wheeling Revenue-Sierra PacSG"},4561100,"Other Wheeling Rev",302831,"I/C Other Wheeling Revenue-Sierra Pac","SG",null,{"$f":"IF(OR(tblELECOPSLookup[[#This Row],[Alloc]]=\"IDU\",tblELECOPSLookup[[#This Row],[Alloc]]=\"OR\",tblELECOPSLookup[[#This Row],[Alloc]]=\"UT\",tblELECOPSLookup[[#This Row],[Alloc]]=\"WYU\",tblELECOPSLookup[[#This Row],[Alloc]]=\"WYP\",tblELECOPSLookup[[#This Row],[Alloc]]=\"CA\",tblELECOPSLookup[[#This Row],[Alloc]]=\"WA\"),\"SITUS\",tblELECOPSLookup[[#This Row],[Alloc]])","v":"SG"},"T"]
[{"$f":"CONCATENATE(tblELECOPSLookup[[#This Row],[Primary Account]],tblELECOPSLookup[[#This Row],[Primary Name]],tblELECOPSLookup[[#This Row],[Secondary Acct]],tblELECOPSLookup[[#This Row],[Secondary  Name]],tblELECOPSLookup[[#This Row],[Alloc4Func]])","v":"4561990TRANSMN REV REFUND301913Transmission Tariff True-upSG"},4561990,"TRANSMN REV REFUND",301913,"Transmission Tariff True-up","SG",null,{"$f":"IF(OR(tblELECOPSLookup[[#This Row],[Alloc]]=\"IDU\",tblELECOPSLookup[[#This Row],[Alloc]]=\"OR\",tblELECOPSLookup[[#This Row],[Alloc]]=\"UT\",tblELECOPSLookup[[#This Row],[Alloc]]=\"WYU\",tblELECOPSLookup[[#This Row],[Alloc]]=\"WYP\",tblELECOPSLookup[[#This Row],[Alloc]]=\"CA\",tblELECOPSLookup[[#This Row],[Alloc]]=\"WA\"),\"SITUS\",tblELECOPSLookup[[#This Row],[Alloc]])","v":"SG"},"T"]
[{"$f":"CONCATENATE(tblELECOPSLookup[[#This Row],[Primary Account]],tblELECOPSLookup[[#This Row],[Primary Name]],tblELECOPSLookup[[#This Row],[Secondary Acct]],tblELECOPSLookup[[#This Row],[Secondary  Name]],tblELECOPSLookup[[#This Row],[Alloc4Func]])","v":"4562300MISC OTHER REV301940FLYASH & BY-PRODUCT SALESSG"},4562300,"MISC OTHER REV",301940,"FLYASH & BY-PRODUCT SALES","SG",null,{"$f":"IF(OR(tblELECOPSLookup[[#This Row],[Alloc]]=\"IDU\",tblELECOPSLookup[[#This Row],[Alloc]]=\"OR\",tblELECOPSLookup[[#This Row],[Alloc]]=\"UT\",tblELECOPSLookup[[#This Row],[Alloc]]=\"WYU\",tblELECOPSLookup[[#This Row],[Alloc]]=\"WYP\",tblELECOPSLookup[[#This Row],[Alloc]]=\"CA\",tblELECOPSLookup[[#This Row],[Alloc]]=\"WA\"),\"SITUS\",tblELECOPSLookup[[#This Row],[Alloc]])","v":"SG"},"P"]
[{"$f":"CONCATENATE(tblELECOPSLookup[[#This Row],[Primary Account]],tblELECOPSLookup[[#This Row],[Primary Name]],tblELECOPSLookup[[#This Row],[Secondary Acct]],tblELECOPSLookup[[#This Row],[Secondary  Name]],tblELECOPSLookup[[#This Row],[Alloc4Func]])","v":"4562700RNW ENRGY CRDT SALES301945Renewable Energy Credit SalesSG"},4562700,"RNW ENRGY CRDT SALES",301945,"Renewable Energy Credit Sales","SG",null,{"$f":"IF(OR(tblELECOPSLookup[[#This Row],[Alloc]]=\"IDU\",tblELECOPSLookup[[#This Row],[Alloc]]=\"OR\",tblELECOPSLookup[[#This Row],[Alloc]]=\"UT\",tblELECOPSLookup[[#This Row],[Alloc]]=\"WYU\",tblELECOPSLookup[[#This Row],[Alloc]]=\"WYP\",tblELECOPSLookup[[#This Row],[Alloc]]=\"CA\",tblELECOPSLookup[[#This Row],[Alloc]]=\"WA\"),\"SITUS\",tblELECOPSLookup[[#This Row],[Alloc]])","v":"SG"},"P"]
[{"$f":"CONCATENATE(tblELECOPSLookup[[#This Row],[Primary Account]],tblELECOPSLookup[[#This Row],[Primary Name]],tblELECOPSLookup[[#This Row],[Secondary Acct]],tblELECOPSLookup[[#This Row],[Secondary  Name]],tblELECOPSLookup[[#This Row],[Alloc4Func]])","v":"4561920L/T FIRM WHEEL REV301916PRE-MERGER FIRM WHEELINGSG"},4561920,"L/T FIRM WHEEL REV",301916,"PRE-MERGER FIRM WHEELING","SG",null,{"$f":"IF(OR(tblELECOPSLookup[[#This Row],[Alloc]]=\"IDU\",tblELECOPSLookup[[#This Row],[Alloc]]=\"OR\",tblELECOPSLookup[[#This Row],[Alloc]]=\"UT\",tblELECOPSLookup[[#This Row],[Alloc]]=\"WYU\",tblELECOPSLookup[[#This Row],[Alloc]]=\"WYP\",tblELECOPSLookup[[#This Row],[Alloc]]=\"CA\",tblELECOPSLookup[[#This Row],[Alloc]]=\"WA\"),\"SITUS\",tblELECOPSLookup[[#This Row],[Alloc]])","v":"SG"},"T"]
[{"$f":"CONCATENATE(tblELECOPSLookup[[#This Row],[Primary Account]],tblELECOPSLookup[[#This Row],[Primary Name]],tblELECOPSLookup[[#This Row],[Secondary Acct]],tblELECOPSLookup[[#This Row],[Secondary  Name]],tblELECOPSLookup[[#This Row],[Alloc4Func]])","v":"4562800CA GHG Emission Allo352003CA GHG Allowance Revenues – AmortzOTHER"},4562800,"CA GHG Emission Allo",352003,"CA GHG Allowance Revenues – Amortz","OTHER",null,{"$f":"IF(OR(tblELECOPSLookup[[#This Row],[Alloc]]=\"IDU\",tblELECOPSLookup[[#This Row],[Alloc]]=\"OR\",tblELECOPSLookup[[#This Row],[Alloc]]=\"UT\",tblELECOPSLookup[[#This Row],[Alloc]]=\"WYU\",tblELECOPSLookup[[#This Row],[Alloc]]=\"WYP\",tblELECOPSLookup[[#This Row],[Alloc]]=\"CA\",tblELECOPSLookup[[#This Row],[Alloc]]=\"WA\"),\"SITUS\",tblELECOPSLookup[[#This Row],[Alloc]])","v":"OTHER"},"P"]
[{"$f":"CONCATENATE(tblELECOPSLookup[[#This Row],[Primary Account]],tblELECOPSLookup[[#This Row],[Primary Name]],tblELECOPSLookup[[#This Row],[Secondary Acct]],tblELECOPSLookup[[#This Row],[Secondary  Name]],tblELECOPSLookup[[#This Row],[Alloc4Func]])","v":"4562300MISC OTHER REV301959Wind-based Ancillary Services/RevenueSG"},4562300,"MISC OTHER REV",301959,"Wind-based Ancillary Services/Revenue","SG",null,{"$f":"IF(OR(tblELECOPSLookup[[#This Row],[Alloc]]=\"IDU\",tblELECOPSLookup[[#This Row],[Alloc]]=\"OR\",tblELECOPSLookup[[#This Row],[Alloc]]=\"UT\",tblELECOPSLookup[[#This Row],[Alloc]]=\"WYU\",tblELECOPSLookup[[#This Row],[Alloc]]=\"WYP\",tblELECOPSLookup[[#This Row],[Alloc]]=\"CA\",tblELECOPSLookup[[#This Row],[Alloc]]=\"WA\"),\"SITUS\",tblELECOPSLookup[[#This Row],[Alloc]])","v":"SG"},"P"]
[{"$f":"CONCATENATE(tblELECOPSLookup[[#This Row],[Primary Account]],tblELECOPSLookup[[#This Row],[Primary Name]],tblELECOPSLookup[[#This Row],[Secondary Acct]],tblELECOPSLookup[[#This Row],[Secondary  Name]],tblELECOPSLookup[[#This Row],[Alloc4Func]])","v":"4562800CA GHG Emission Allo352001CA GHG Allowance RevenuesOTHER"},4562800,"CA GHG Emission Allo",352001,"CA GHG Allowance Revenues","OTHER",null,{"$f":"IF(OR(tblELECOPSLookup[[#This Row],[Alloc]]=\"IDU\",tblELECOPSLookup[[#This Row],[Alloc]]=\"OR\",tblELECOPSLookup[[#This Row],[Alloc]]=\"UT\",tblELECOPSLookup[[#This Row],[Alloc]]=\"WYU\",tblELECOPSLookup[[#This Row],[Alloc]]=\"WYP\",tblELECOPSLookup[[#This Row],[Alloc]]=\"CA\",tblELECOPSLookup[[#This Row],[Alloc]]=\"WA\"),\"SITUS\",tblELECOPSLookup[[#This Row],[Alloc]])","v":"OTHER"},"P"]
[{"$f":"CONCATENATE(tblELECOPSLookup[[#This Row],[Primary Account]],tblELECOPSLookup[[#This Row],[Primary Name]],tblELECOPSLookup[[#This Row],[Secondary Acct]],tblELECOPSLookup[[#This Row],[Secondary  Name]],tblELECOPSLookup[[#This Row],[Alloc4Func]])","v":"4561930NON-FIRM WHEEL REV301922NON-FIRM WHEELING REVENUESE"},4561930,"NON-FIRM WHEEL REV",301922,"NON-FIRM WHEELING REVENUE","SE",null,{"$f":"IF(OR(tblELECOPSLookup[[#This Row],[Alloc]]=\"IDU\",tblELECOPSLookup[[#This Row],[Alloc]]=\"OR\",tblELECOPSLookup[[#This Row],[Alloc]]=\"UT\",tblELECOPSLookup[[#This Row],[Alloc]]=\"WYU\",tblELECOPSLookup[[#This Row],[Alloc]]=\"WYP\",tblELECOPSLookup[[#This Row],[Alloc]]=\"CA\",tblELECOPSLookup[[#This Row],[Alloc]]=\"WA\"),\"SITUS\",tblELECOPSLookup[[#This Row],[Alloc]])","v":"SE"},"T"]
[{"$f":"CONCATENATE(tblELECOPSLookup[[#This Row],[Primary Account]],tblELECOPSLookup[[#This Row],[Primary Name]],tblELECOPSLookup[[#This Row],[Secondary Acct]],tblELECOPSLookup[[#This Row],[Secondary  Name]],tblELECOPSLookup[[#This Row],[Alloc4Func]])","v":"4561920L/T FIRM WHEEL REV301912POST-MERGER FIRM WHEELINGSG"},4561920,"L/T FIRM WHEEL REV",301912,"POST-MERGER FIRM WHEELING","SG",null,{"$f":"IF(OR(tblELECOPSLookup[[#This Row],[Alloc]]=\"IDU\",tblELECOPSLookup[[#This Row],[Alloc]]=\"OR\",tblELECOPSLookup[[#This Row],[Alloc]]=\"UT\",tblELECOPSLookup[[#This Row],[Alloc]]=\"WYU\",tblELECOPSLookup[[#This Row],[Alloc]]=\"WYP\",tblELECOPSLookup[[#This Row],[Alloc]]=\"CA\",tblELECOPSLookup[[#This Row],[Alloc]]=\"WA\"),\"SITUS\",tblELECOPSLookup[[#This Row],[Alloc]])","v":"SG"},"T"]
[{"$f":"CONCATENATE(tblELECOPSLookup[[#This Row],[Primary Account]],tblELECOPSLookup[[#This Row],[Primary Name]],tblELECOPSLookup[[#This Row],[Secondary Acct]],tblELECOPSLookup[[#This Row],[Secondary  Name]],tblELECOPSLookup[[#This Row],[Alloc4Func]])","v":"4561100Other Wheeling Rev301966Primary Delivery and Distribution Sub ChSG"},4561100,"Other Wheeling Rev",301966,"Primary Delivery and Distribution Sub Ch","SG",null,{"$f":"IF(OR(tblELECOPSLookup[[#This Row],[Alloc]]=\"IDU\",tblELECOPSLookup[[#This Row],[Alloc]]=\"OR\",tblELECOPSLookup[[#This Row],[Alloc]]=\"UT\",tblELECOPSLookup[[#This Row],[Alloc]]=\"WYU\",tblELECOPSLookup[[#This Row],[Alloc]]=\"WYP\",tblELECOPSLookup[[#This Row],[Alloc]]=\"CA\",tblELECOPSLookup[[#This Row],[Alloc]]=\"WA\"),\"SITUS\",tblELECOPSLookup[[#This Row],[Alloc]])","v":"SG"},"T"]
[{"$f":"CONCATENATE(tblELECOPSLookup[[#This Row],[Primary Account]],tblELECOPSLookup[[#This Row],[Primary Name]],tblELECOPSLookup[[#This Row],[Secondary Acct]],tblELECOPSLookup[[#This Row],[Secondary  Name]],tblELECOPSLookup[[#This Row],[Alloc4Func]])","v":"4561920L/T FIRM WHEEL REV301917PRE-MERGER FIRM WHEELINGSG"},4561920,"L/T FIRM WHEEL REV",301917,"PRE-MERGER FIRM WHEELING","SG",null,{"$f":"IF(OR(tblELECOPSLookup[[#This Row],[Alloc]]=\"IDU\",tblELECOPSLookup[[#This Row],[Alloc]]=\"OR\",tblELECOPSLookup[[#This Row],[Alloc]]=\"UT\",tblELECOPSLookup[[#This Row],[Alloc]]=\"WYU\",tblELECOPSLookup[[#This Row],[Alloc]]=\"WYP\",tblELECOPSLookup[[#This Row],[Alloc]]=\"CA\",tblELECOPSLookup[[#This Row],[Alloc]]=\"WA\"),\"SITUS\",tblELECOPSLookup[[#This Row],[Alloc]])","v":"SG"},"T"]
[{"$f":"CONCATENATE(tblELECOPSLookup[[#This Row],[Primary Account]],tblELECOPSLookup[[#This Row],[Primary Name]],tblELECOPSLookup[[#This Row],[Secondary Acct]],tblELECOPSLookup[[#This Row],[Secondary  Name]],tblELECOPSLookup[[#This Row],[Alloc4Func]])","v":"4561100Other Wheeling Rev505961TRANSMISSION IMBALANCE PENALTY REVENUESG"},4561100,"Other Wheeling Rev",505961,"TRANSMISSION IMBALANCE PENALTY REVENUE","SG",null,{"$f":"IF(OR(tblELECOPSLookup[[#This Row],[Alloc]]=\"IDU\",tblELECOPSLookup[[#This Row],[Alloc]]=\"OR\",tblELECOPSLookup[[#This Row],[Alloc]]=\"UT\",tblELECOPSLookup[[#This Row],[Alloc]]=\"WYU\",tblELECOPSLookup[[#This Row],[Alloc]]=\"WYP\",tblELECOPSLookup[[#This Row],[Alloc]]=\"CA\",tblELECOPSLookup[[#This Row],[Alloc]]=\"WA\"),\"SITUS\",tblELECOPSLookup[[#This Row],[Alloc]])","v":"SG"},"T"]
[{"$f":"CONCATENATE(tblELECOPSLookup[[#This Row],[Primary Account]],tblELECOPSLookup[[#This Row],[Primary Name]],tblELECOPSLookup[[#This Row],[Secondary Acct]],tblELECOPSLookup[[#This Row],[Secondary  Name]],tblELECOPSLookup[[#This Row],[Alloc4Func]])","v":"4561100Other Wheeling Rev302981Transmission Resales to Other PartiesSG"},4561100,"Other Wheeling Rev",302981,"Transmission Resales to Other Parties","SG",null,{"$f":"IF(OR(tblELECOPSLookup[[#This Row],[Alloc]]=\"IDU\",tblELECOPSLookup[[#This Row],[Alloc]]=\"OR\",tblELECOPSLookup[[#This Row],[Alloc]]=\"UT\",tblELECOPSLookup[[#This Row],[Alloc]]=\"WYU\",tblELECOPSLookup[[#This Row],[Alloc]]=\"WYP\",tblELECOPSLookup[[#This Row],[Alloc]]=\"CA\",tblELECOPSLookup[[#This Row],[Alloc]]=\"WA\"),\"SITUS\",tblELECOPSLookup[[#This Row],[Alloc]])","v":"SG"},"T"]
[{"$f":"CONCATENATE(tblELECOPSLookup[[#This Row],[Primary Account]],tblELECOPSLookup[[#This Row],[Primary Name]],tblELECOPSLookup[[#This Row],[Secondary Acct]],tblELECOPSLookup[[#This Row],[Secondary  Name]],tblELECOPSLookup[[#This Row],[Alloc4Func]])","v":"4561100Other Wheeling Rev302982Transmission Rev-Unreserved Use ChargesSG"},4561100,"Other Wheeling Rev",302982,"Transmission Rev-Unreserved Use Charges","SG",null,{"$f":"IF(OR(tblELECOPSLookup[[#This Row],[Alloc]]=\"IDU\",tblELECOPSLookup[[#This Row],[Alloc]]=\"OR\",tblELECOPSLookup[[#This Row],[Alloc]]=\"UT\",tblELECOPSLookup[[#This Row],[Alloc]]=\"WYU\",tblELECOPSLookup[[#This Row],[Alloc]]=\"WYP\",tblELECOPSLookup[[#This Row],[Alloc]]=\"CA\",tblELECOPSLookup[[#This Row],[Alloc]]=\"WA\"),\"SITUS\",tblELECOPSLookup[[#This Row],[Alloc]])","v":"SG"},"T"]
[{"$f":"CONCATENATE(tblELECOPSLookup[[#This Row],[Primary Account]],tblELECOPSLookup[[#This Row],[Primary Name]],tblELECOPSLookup[[#This Row],[Secondary Acct]],tblELECOPSLookup[[#This Row],[Secondary  Name]],tblELECOPSLookup[[#This Row],[Alloc4Func]])","v":"4561100Other Wheeling Rev302901USE OF FACILITY REVENUESG"},4561100,"Other Wheeling Rev",302901,"USE OF FACILITY REVENUE","SG",null,{"$f":"IF(OR(tblELECOPSLookup[[#This Row],[Alloc]]=\"IDU\",tblELECOPSLookup[[#This Row],[Alloc]]=\"OR\",tblELECOPSLookup[[#This Row],[Alloc]]=\"UT\",tblELECOPSLookup[[#This Row],[Alloc]]=\"WYU\",tblELECOPSLookup[[#This Row],[Alloc]]=\"WYP\",tblELECOPSLookup[[#This Row],[Alloc]]=\"CA\",tblELECOPSLookup[[#This Row],[Alloc]]=\"WA\"),\"SITUS\",tblELECOPSLookup[[#This Row],[Alloc]])","v":"SG"},"T"]
[{"$f":"CONCATENATE(tblELECOPSLookup[[#This Row],[Primary Account]],tblELECOPSLookup[[#This Row],[Primary Name]],tblELECOPSLookup[[#This Row],[Secondary Acct]],tblELECOPSLookup[[#This Row],[Secondary  Name]],tblELECOPSLookup[[#This Row],[Alloc4Func]])","v":"4561990TRANSMN REV REFUND305950Ancil Revenue Sch 5 - Subject to RefundSG"},4561990,"TRANSMN REV REFUND",305950,"Ancil Revenue Sch 5 - Subject to Refund","SG",null,{"$f":"IF(OR(tblELECOPSLookup[[#This Row],[Alloc]]=\"IDU\",tblELECOPSLookup[[#This Row],[Alloc]]=\"OR\",tblELECOPSLookup[[#This Row],[Alloc]]=\"UT\",tblELECOPSLookup[[#This Row],[Alloc]]=\"WYU\",tblELECOPSLookup[[#This Row],[Alloc]]=\"WYP\",tblELECOPSLookup[[#This Row],[Alloc]]=\"CA\",tblELECOPSLookup[[#This Row],[Alloc]]=\"WA\"),\"SITUS\",tblELECOPSLookup[[#This Row],[Alloc]])","v":"SG"},"T"]
[{"$f":"CONCATENATE(tblELECOPSLookup[[#This Row],[Primary Account]],tblELECOPSLookup[[#This Row],[Primary Name]],tblELECOPSLookup[[#This Row],[Secondary Acct]],tblELECOPSLookup[[#This Row],[Secondary  Name]],tblELECOPSLookup[[#This Row],[Alloc4Func]])","v":"4561990TRANSMN REV REFUND305960Ancil Revenue Sch 6 - Subject to RefundSG"},4561990,"TRANSMN REV REFUND",305960,"Ancil Revenue Sch 6 - Subject to Refund","SG",null,{"$f":"IF(OR(tblELECOPSLookup[[#This Row],[Alloc]]=\"IDU\",tblELECOPSLookup[[#This Row],[Alloc]]=\"OR\",tblELECOPSLookup[[#This Row],[Alloc]]=\"UT\",tblELECOPSLookup[[#This Row],[Alloc]]=\"WYU\",tblELECOPSLookup[[#This Row],[Alloc]]=\"WYP\",tblELECOPSLookup[[#This Row],[Alloc]]=\"CA\",tblELECOPSLookup[[#This Row],[Alloc]]=\"WA\"),\"SITUS\",tblELECOPSLookup[[#This Row],[Alloc]])","v":"SG"},"T"]
[{"$f":"CONCATENATE(tblELECOPSLookup[[#This Row],[Primary Account]],tblELECOPSLookup[[#This Row],[Primary Name]],tblELECOPSLookup[[#This Row],[Secondary Acct]],tblELECOPSLookup[[#This Row],[Secondary  Name]],tblELECOPSLookup[[#This Row],[Alloc4Func]])","v":"4561990TRANSMN REV REFUND305931Ancil Revenue Sch 3a - Subject to RefundSG"},4561990,"TRANSMN REV REFUND",305931,"Ancil Revenue Sch 3a - Subject to Refund","SG",null,{"$f":"IF(OR(tblELECOPSLookup[[#This Row],[Alloc]]=\"IDU\",tblELECOPSLookup[[#This Row],[Alloc]]=\"OR\",tblELECOPSLookup[[#This Row],[Alloc]]=\"UT\",tblELECOPSLookup[[#This Row],[Alloc]]=\"WYU\",tblELECOPSLookup[[#This Row],[Alloc]]=\"WYP\",tblELECOPSLookup[[#This Row],[Alloc]]=\"CA\",tblELECOPSLookup[[#This Row],[Alloc]]=\"WA\"),\"SITUS\",tblELECOPSLookup[[#This Row],[Alloc]])","v":"SG"},"T"]
[{"$f":"CONCATENATE(tblELECOPSLookup[[#This Row],[Primary Account]],tblELECOPSLookup[[#This Row],[Primary Name]],tblELECOPSLookup[[#This Row],[Secondary Acct]],tblELECOPSLookup[[#This Row],[Secondary  Name]],tblELECOPSLookup[[#This Row],[Alloc4Func]])","v":"4561990TRANSMN REV REFUND305930Ancil Revenue Sch 3 - Subject to RefundSG"},4561990,"TRANSMN REV REFUND",305930,"Ancil Revenue Sch 3 - Subject to Refund","SG",null,{"$f":"IF(OR(tblELECOPSLookup[[#This Row],[Alloc]]=\"IDU\",tblELECOPSLookup[[#This Row],[Alloc]]=\"OR\",tblELECOPSLookup[[#This Row],[Alloc]]=\"UT\",tblELECOPSLookup[[#This Row],[Alloc]]=\"WYU\",tblELECOPSLookup[[#This Row],[Alloc]]=\"WYP\",tblELECOPSLookup[[#This Row],[Alloc]]=\"CA\",tblELECOPSLookup[[#This Row],[Alloc]]=\"WA\"),\"SITUS\",tblELECOPSLookup[[#This Row],[Alloc]])","v":"SG"},"T"]
[{"$f":"CONCATENATE(tblELECOPSLookup[[#This Row],[Primary Account]],tblELECOPSLookup[[#This Row],[Primary Name]],tblELECOPSLookup[[#This Row],[Secondary Acct]],tblELECOPSLookup[[#This Row],[Secondary  Name]],tblELECOPSLookup[[#This Row],[Alloc4Func]])","v":"4561920L/T FIRM WHEEL REV302980Transmisson Point-to-Point RevenueSG"},4561920,"L/T FIRM WHEEL REV",302980,"Transmisson Point-to-Point Revenue","SG",null,{"$f":"IF(OR(tblELECOPSLookup[[#This Row],[Alloc]]=\"IDU\",tblELECOPSLookup[[#This Row],[Alloc]]=\"OR\",tblELECOPSLookup[[#This Row],[Alloc]]=\"UT\",tblELECOPSLookup[[#This Row],[Alloc]]=\"WYU\",tblELECOPSLookup[[#This Row],[Alloc]]=\"WYP\",tblELECOPSLookup[[#This Row],[Alloc]]=\"CA\",tblELECOPSLookup[[#This Row],[Alloc]]=\"WA\"),\"SITUS\",tblELECOPSLookup[[#This Row],[Alloc]])","v":"SG"},"T"]
[{"$f":"CONCATENATE(tblELECOPSLookup[[#This Row],[Primary Account]],tblELECOPSLookup[[#This Row],[Primary Name]],tblELECOPSLookup[[#This Row],[Secondary Acct]],tblELECOPSLookup[[#This Row],[Secondary  Name]],tblELECOPSLookup[[#This Row],[Alloc4Func]])","v":"4561100Other Wheeling Rev302832I/C Other Wheeling Revenue-Nevada PwrSG"},4561100,"Other Wheeling Rev",302832,"I/C Other Wheeling Revenue-Nevada Pwr","SG",null,{"$f":"IF(OR(tblELECOPSLookup[[#This Row],[Alloc]]=\"IDU\",tblELECOPSLookup[[#This Row],[Alloc]]=\"OR\",tblELECOPSLookup[[#This Row],[Alloc]]=\"UT\",tblELECOPSLookup[[#This Row],[Alloc]]=\"WYU\",tblELECOPSLookup[[#This Row],[Alloc]]=\"WYP\",tblELECOPSLookup[[#This Row],[Alloc]]=\"CA\",tblELECOPSLookup[[#This Row],[Alloc]]=\"WA\"),\"SITUS\",tblELECOPSLookup[[#This Row],[Alloc]])","v":"SG"},"T"]
[{"$f":"CONCATENATE(tblELECOPSLookup[[#This Row],[Primary Account]],tblELECOPSLookup[[#This Row],[Primary Name]],tblELECOPSLookup[[#This Row],[Secondary Acct]],tblELECOPSLookup[[#This Row],[Secondary  Name]],tblELECOPSLookup[[#This Row],[Alloc4Func]])","v":"4561100Other Wheeling Rev302983Transmission Revenue - Deferral FeesSG"},4561100,"Other Wheeling Rev",302983,"Transmission Revenue - Deferral Fees","SG",null,{"$f":"IF(OR(tblELECOPSLookup[[#This Row],[Alloc]]=\"IDU\",tblELECOPSLookup[[#This Row],[Alloc]]=\"OR\",tblELECOPSLookup[[#This Row],[Alloc]]=\"UT\",tblELECOPSLookup[[#This Row],[Alloc]]=\"WYU\",tblELECOPSLookup[[#This Row],[Alloc]]=\"WYP\",tblELECOPSLookup[[#This Row],[Alloc]]=\"CA\",tblELECOPSLookup[[#This Row],[Alloc]]=\"WA\"),\"SITUS\",tblELECOPSLookup[[#This Row],[Alloc]])","v":"SG"},"T"]
[{"$f":"CONCATENATE(tblELECOPSLookup[[#This Row],[Primary Account]],tblELECOPSLookup[[#This Row],[Primary Name]],tblELECOPSLookup[[#This Row],[Secondary Acct]],tblELECOPSLookup[[#This Row],[Secondary  Name]],tblELECOPSLookup[[#This Row],[Alloc4Func]])","v":"4561910S/T FIRM WHEEL REV302812I/C ST Firm Wheeling Revenue-Nevada PwrSG"},4561910,"S/T FIRM WHEEL REV",302812,"I/C ST Firm Wheeling Revenue-Nevada Pwr","SG",null,{"$f":"IF(OR(tblELECOPSLookup[[#This Row],[Alloc]]=\"IDU\",tblELECOPSLookup[[#This Row],[Alloc]]=\"OR\",tblELECOPSLookup[[#This Row],[Alloc]]=\"UT\",tblELECOPSLookup[[#This Row],[Alloc]]=\"WYU\",tblELECOPSLookup[[#This Row],[Alloc]]=\"WYP\",tblELECOPSLookup[[#This Row],[Alloc]]=\"CA\",tblELECOPSLookup[[#This Row],[Alloc]]=\"WA\"),\"SITUS\",tblELECOPSLookup[[#This Row],[Alloc]])","v":"SG"},"T"]
[{"$f":"CONCATENATE(tblELECOPSLookup[[#This Row],[Primary Account]],tblELECOPSLookup[[#This Row],[Primary Name]],tblELECOPSLookup[[#This Row],[Secondary Acct]],tblELECOPSLookup[[#This Row],[Secondary  Name]],tblELECOPSLookup[[#This Row],[Alloc4Func]])","v":"4562800CA GHG Emission Allo352004CA GHG Allow Revenues - SOMAH AmortzOTHER"},4562800,"CA GHG Emission Allo",352004,"CA GHG Allow Revenues - SOMAH Amortz","OTHER",null,{"$f":"IF(OR(tblELECOPSLookup[[#This Row],[Alloc]]=\"IDU\",tblELECOPSLookup[[#This Row],[Alloc]]=\"OR\",tblELECOPSLookup[[#This Row],[Alloc]]=\"UT\",tblELECOPSLookup[[#This Row],[Alloc]]=\"WYU\",tblELECOPSLookup[[#This Row],[Alloc]]=\"WYP\",tblELECOPSLookup[[#This Row],[Alloc]]=\"CA\",tblELECOPSLookup[[#This Row],[Alloc]]=\"WA\"),\"SITUS\",tblELECOPSLookup[[#This Row],[Alloc]])","v":"OTHER"},"P"]
[{"$f":"CONCATENATE(tblELECOPSLookup[[#This Row],[Primary Account]],tblELECOPSLookup[[#This Row],[Primary Name]],tblELECOPSLookup[[#This Row],[Secondary Acct]],tblELECOPSLookup[[#This Row],[Secondary  Name]],tblELECOPSLookup[[#This Row],[Alloc4Func]])","v":"4562300MISC OTHER REV362100Refined Coal Transaction Fee RevenueSG"},4562300,"MISC OTHER REV","362100","Refined Coal Transaction Fee Revenue","SG",null,{"$f":"IF(OR(tblELECOPSLookup[[#This Row],[Alloc]]=\"IDU\",tblELECOPSLookup[[#This Row],[Alloc]]=\"OR\",tblELECOPSLookup[[#This Row],[Alloc]]=\"UT\",tblELECOPSLookup[[#This Row],[Alloc]]=\"WYU\",tblELECOPSLookup[[#This Row],[Alloc]]=\"WYP\",tblELECOPSLookup[[#This Row],[Alloc]]=\"CA\",tblELECOPSLookup[[#This Row],[Alloc]]=\"WA\"),\"SITUS\",tblELECOPSLookup[[#This Row],[Alloc]])","v":"SG"},"P"]

{"sheet":"GP June19data","index":16,"n_rows":249,"n_cols":10,"rows_kept":249,"cut":false,"hidden":false,"merged":[]}
["Concat","Primary Account","Primary Name","Secondary Acct","Secondary  Name","Alloc","Total ($000)","Alloc4FUNC","FUNC","Investigate?"]
[{"$f":"CONCATENATE(tblGPJune19[[#This Row],[Primary Account]],tblGPJune19[[#This Row],[Primary Name]],tblGPJune19[[#This Row],[Secondary Acct]],tblGPJune19[[#This Row],[Secondary  Name]],tblGPJune19[[#This Row],[Alloc4FUNC]])","v":"1010000ELEC PLANT IN SERV3890000LAND AND LAND RIGHTSSITUS"},1010000,"ELEC PLANT IN SERV",3890000,"LAND AND LAND RIGHTS","IDU",88.883499999999998,{"$f":"IF(OR(tblGPJune19[[#This Row],[Alloc]]=\"IDU\",tblGPJune19[[#This Row],[Alloc]]=\"OR\",tblGPJune19[[#This Row],[Alloc]]=\"UT\",tblGPJune19[[#This Row],[Alloc]]=\"WYU\",tblGPJune19[[#This Row],[Alloc]]=\"WYP\",tblGPJune19[[#This Row],[Alloc]]=\"CA\",tblGPJune19[[#This Row],[Alloc]]=\"WA\"),\"SITUS\",tblGPJune19[[#This Row],[Alloc]])","v":"SITUS"},{"$f":"INDEX(tblGPLookup[FUNC],MATCH(tblGPJune19[[#This Row],[Concat]],tblGPLookup[Concat],0))","v":"TD"},{"$f":"IF(tblGPJune19[[#This Row],[Total ($000)]]=0,\"NO\",IF(ISNA(tblGPJune19[[#This Row],[FUNC]]),\"YES\",IF(_xlfn.ISFORMULA(tblGPJune19[[#This Row],[FUNC]]),\"NO\",\"YES\")))","v":"NO"}]
[{"$f":"CONCATENATE(tblGPJune19[[#This Row],[Primary Account]],tblGPJune19[[#This Row],[Primary Name]],tblGPJune19[[#This Row],[Secondary Acct]],tblGPJune19[[#This Row],[Secondary  Name]],tblGPJune19[[#This Row],[Alloc4FUNC]])","v":"1010000ELEC PLANT IN SERV3890000LAND AND LAND RIGHTSSITUS"},1010000,"ELEC PLANT IN SERV",3890000,"LAND AND LAND RIGHTS","OR",228,{"$f":"IF(OR(tblGPJune19[[#This Row],[Alloc]]=\"IDU\",tblGPJune19[[#This Row],[Alloc]]=\"OR\",tblGPJune19[[#This Row],[Alloc]]=\"UT\",tblGPJune19[[#This Row],[Alloc]]=\"WYU\",tblGPJune19[[#This Row],[Alloc]]=\"WYP\",tblGPJune19[[#This Row],[Alloc]]=\"CA\",tblGPJune19[[#This Row],[Alloc]]=\"WA\"),\"SITUS\",tblGPJune19[[#This Row],[Alloc]])","v":"SITUS"},{"$f":"INDEX(tblGPLookup[FUNC],MATCH(tblGPJune19[[#This Row],[Concat]],tblGPLookup[Concat],0))","v":"TD"},{"$f":"IF(tblGPJune19[[#This Row],[Total ($000)]]=0,\"NO\",IF(ISNA(tblGPJune19[[#This Row],[FUNC]]),\"YES\",IF(_xlfn.ISFORMULA(tblGPJune19[[#This Row],[FUNC]]),\"NO\",\"YES\")))","v":"NO"}]
[{"$f":"CONCATENATE(tblGPJune19[[#This Row],[Primary Account]],tblGPJune19[[#This Row],[Primary Name]],tblGPJune19[[#This Row],[Secondary Acct]],tblGPJune19[[#This Row],[Secondary  Name]],tblGPJune19[[#This Row],[Alloc4FUNC]])","v":"1010000ELEC PLANT IN SERV3890000LAND AND LAND RIGHTSSITUS"},1010000,"ELEC PLANT IN SERV",3890000,"LAND AND LAND RIGHTS","UT",1327.3750199999999,{"$f":"IF(OR(tblGPJune19[[#This Row],[Alloc]]=\"IDU\",tblGPJune19[[#This Row],[Alloc]]=\"OR\",tblGPJune19[[#This Row],[Alloc]]=\"UT\",tblGPJune19[[#This Row],[Alloc]]=\"WYU\",tblGPJune19[[#This Row],[Alloc]]=\"WYP\",tblGPJune19[[#This Row],[Alloc]]=\"CA\",tblGPJune19[[#This Row],[Alloc]]=\"WA\"),\"SITUS\",tblGPJune19[[#This Row],[Alloc]])","v":"SITUS"},{"$f":"INDEX(tblGPLookup[FUNC],MATCH(tblGPJune19[[#This Row],[Concat]],tblGPLookup[Concat],0))","v":"TD"},{"$f":"IF(tblGPJune19[[#This Row],[Total ($000)]]=0,\"NO\",IF(ISNA(tblGPJune19[[#This Row],[FUNC]]),\"YES\",IF(_xlfn.ISFORMULA(tblGPJune19[[#This Row],[FUNC]]),\"NO\",\"YES\")))","v":"NO"}]
[{"$f":"CONCATENATE(tblGPJune19[[#This Row],[Primary Account]],tblGPJune19[[#This Row],[Primary Name]],tblGPJune19[[#This Row],[Secondary Acct]],tblGPJune19[[#This Row],[Secondary  Name]],tblGPJune19[[#This Row],[Alloc4FUNC]])","v":"1010000ELEC PLANT IN SERV3890000LAND AND LAND RIGHTSSITUS"},1010000,"ELEC PLANT IN SERV",3890000,"LAND AND LAND RIGHTS","WYU",434.01495,{"$f":"IF(OR(tblGPJune19[[#This Row],[Alloc]]=\"IDU\",tblGPJune19[[#This Row],[Alloc]]=\"OR\",tblGPJune19[[#This Row],[Alloc]]=\"UT\",tblGPJune19[[#This Row],[Alloc]]=\"WYU\",tblGPJune19[[#This Row],[Alloc]]=\"WYP\",tblGPJune19[[#This Row],[Alloc]]=\"CA\",tblGPJune19[[#This Row],[Alloc]]=\"WA\"),\"SITUS\",tblGPJune19[[#This Row],[Alloc]])","v":"SITUS"},{"$f":"INDEX(tblGPLookup[FUNC],MATCH(tblGPJune19[[#This Row],[Concat]],tblGPLookup[Concat],0))","v":"TD"},{"$f":"IF(tblGPJune19[[#This Row],[Total ($000)]]=0,\"NO\",IF(ISNA(tblGPJune19[[#This Row],[FUNC]]),\"YES\",IF(_xlfn.ISFORMULA(tblGPJune19[[#This Row],[FUNC]]),\"NO\",\"YES\")))","v":"NO"}]
[{"$f":"CONCATENATE(tblGPJune19[[#This Row],[Primary Account]],tblGPJune19[[#This Row],[Primary Name]],tblGPJune19[[#This Row],[Secondary Acct]],tblGPJune19[[#This Row],[Secondary  Name]],tblGPJune19[[#This Row],[Alloc4FUNC]])","v":"1010000ELEC PLANT IN SERV3891000LAND OWNED IN FEECN"},1010000,"ELEC PLANT IN SERV",3891000,"LAND OWNED IN FEE","CN",1128.5057899999999,{"$f":"IF(OR(tblGPJune19[[#This Row],[Alloc]]=\"IDU\",tblGPJune19[[#This Row],[Alloc]]=\"OR\",tblGPJune19[[#This Row],[Alloc]]=\"UT\",tblGPJune19[[#This Row],[Alloc]]=\"WYU\",tblGPJune19[[#This Row],[Alloc]]=\"WYP\",tblGPJune19[[#This Row],[Alloc]]=\"CA\",tblGPJune19[[#This Row],[Alloc]]=\"WA\"),\"SITUS\",tblGPJune19[[#This Row],[Alloc]])","v":"CN"},{"$f":"INDEX(tblGPLookup[FUNC],MATCH(tblGPJune19[[#This Row],[Concat]],tblGPLookup[Concat],0))","v":"CUST"},{"$f":"IF(tblGPJune19[[#This Row],[Total ($000)]]=0,\"NO\",IF(ISNA(tblGPJune19[[#This Row],[FUNC]]),\"YES\",IF(_xlfn.ISFORMULA(tblGPJune19[[#This Row],[FUNC]]),\"NO\",\"YES\")))","v":"NO"}]
[{"$f":"CONCATENATE(tblGPJune19[[#This Row],[Primary Account]],tblGPJune19[[#This Row],[Primary Name]],tblGPJune19[[#This Row],[Secondary Acct]],tblGPJune19[[#This Row],[Secondary  Name]],tblGPJune19[[#This Row],[Alloc4FUNC]])","v":"1010000ELEC PLANT IN SERV3891000LAND OWNED IN FEESITUS"},1010000,"ELEC PLANT IN SERV",3891000,"LAND OWNED IN FEE","IDU",100.14944,{"$f":"IF(OR(tblGPJune19[[#This Row],[Alloc]]=\"IDU\",tblGPJune19[[#This Row],[Alloc]]=\"OR\",tblGPJune19[[#This Row],[Alloc]]=\"UT\",tblGPJune19[[#This Row],[Alloc]]=\"WYU\",tblGPJune19[[#This Row],[Alloc]]=\"WYP\",tblGPJune19[[#This Row],[Alloc]]=\"CA\",tblGPJune19[[#This Row],[Alloc]]=\"WA\"),\"SITUS\",tblGPJune19[[#This Row],[Alloc]])","v":"SITUS"},{"$f":"INDEX(tblGPLookup[FUNC],MATCH(tblGPJune19[[#This Row],[Concat]],tblGPLookup[Concat],0))","v":"TD"},{"$f":"IF(tblGPJune19[[#This Row],[Total ($000)]]=0,\"NO\",IF(ISNA(tblGPJune19[[#This Row],[FUNC]]),\"YES\",IF(_xlfn.ISFORMULA(tblGPJune19[[#This Row],[FUNC]]),\"NO\",\"YES\")))","v":"NO"}]
[{"$f":"CONCATENATE(tblGPJune19[[#This Row],[Primary Account]],tblGPJune19[[#This Row],[Primary Name]],tblGPJune19[[#This Row],[Secondary Acct]],tblGPJune19[[#This Row],[Secondary  Name]],tblGPJune19[[#This Row],[Alloc4FUNC]])","v":"1010000ELEC PLANT IN SERV3891000LAND OWNED IN FEESITUS"},1010000,"ELEC PLANT IN SERV",3891000,"LAND OWNED IN FEE","OR",4724.7767115384604,{"$f":"IF(OR(tblGPJune19[[#This Row],[Alloc]]=\"IDU\",tblGPJune19[[#This Row],[Alloc]]=\"OR\",tblGPJune19[[#This Row],[Alloc]]=\"UT\",tblGPJune19[[#This Row],[Alloc]]=\"WYU\",tblGPJune19[[#This Row],[Alloc]]=\"WYP\",tblGPJune19[[#This Row],[Alloc]]=\"CA\",tblGPJune19[[#This Row],[Alloc]]=\"WA\"),\"SITUS\",tblGPJune19[[#This Row],[Alloc]])","v":"SITUS"},{"$f":"INDEX(tblGPLookup[FUNC],MATCH(tblGPJune19[[#This Row],[Concat]],tblGPLookup[Concat],0))","v":"TD"},{"$f":"IF(tblGPJune19[[#This Row],[Total ($000)]]=0,\"NO\",IF(ISNA(tblGPJune19[[#This Row],[FUNC]]),\"YES\",IF(_xlfn.ISFORMULA(tblGPJune19[[#This Row],[FUNC]]),\"NO\",\"YES\")))","v":"NO"}]
[{"$f":"CONCATENATE(tblGPJune19[[#This Row],[Primary Account]],tblGPJune19[[#This Row],[Primary Name]],tblGPJune19[[#This Row],[Secondary Acct]],tblGPJune19[[#This Row],[Secondary  Name]],tblGPJune19[[#This Row],[Alloc4FUNC]])","v":"1010000ELEC PLANT IN SERV3891000LAND OWNED IN FEESG"},1010000,"ELEC PLANT IN SERV",3891000,"LAND OWNED IN FEE","SG",0.33232,{"$f":"IF(OR(tblGPJune19[[#This Row],[Alloc]]=\"IDU\",tblGPJune19[[#This Row],[Alloc]]=\"OR\",tblGPJune19[[#This Row],[Alloc]]=\"UT\",tblGPJune19[[#This Row],[Alloc]]=\"WYU\",tblGPJune19[[#This Row],[Alloc]]=\"WYP\",tblGPJune19[[#This Row],[Alloc]]=\"CA\",tblGPJune19[[#This Row],[Alloc]]=\"WA\"),\"SITUS\",tblGPJune19[[#This Row],[Alloc]])","v":"SG"},{"$f":"INDEX(tblGPLookup[FUNC],MATCH(tblGPJune19[[#This Row],[Concat]],tblGPLookup[Concat],0))","v":"P"},{"$f":"IF(tblGPJune19[[#This Row],[Total ($000)]]=0,\"NO\",IF(ISNA(tblGPJune19[[#This Row],[FUNC]]),\"YES\",IF(_xlfn.ISFORMULA(tblGPJune19[[#This Row],[FUNC]]),\"NO\",\"YES\")))","v":"NO"}]
[{"$f":"CONCATENATE(tblGPJune19[[#This Row],[Primary Account]],tblGPJune19[[#This Row],[Primary Name]],tblGPJune19[[#This Row],[Secondary Acct]],tblGPJune19[[#This Row],[Secondary  Name]],tblGPJune19[[#This Row],[Alloc4FUNC]])","v":"1010000ELEC PLANT IN SERV3891000LAND OWNED IN FEESITUS"},1010000,"ELEC PLANT IN SERV",3891000,"LAND OWNED IN FEE","CA",719.07852384615398,{"$f":"IF(OR(tblGPJune19[[#This Row],[Alloc]]=\"IDU\",tblGPJune19[[#This Row],[Alloc]]=\"OR\",tblGPJune19[[#This Row],[Alloc]]=\"UT\",tblGPJune19[[#This Row],[Alloc]]=\"WYU\",tblGPJune19[[#This Row],[Alloc]]=\"WYP\",tblGPJune19[[#This Row],[Alloc]]=\"CA\",tblGPJune19[[#This Row],[Alloc]]=\"WA\"),\"SITUS\",tblGPJune19[[#This Row],[Alloc]])","v":"SITUS"},{"$f":"INDEX(tblGPLookup[FUNC],MATCH(tblGPJune19[[#This Row],[Concat]],tblGPLookup[Concat],0))","v":"TD"},{"$f":"IF(tblGPJune19[[#This Row],[Total ($000)]]=0,\"NO\",IF(ISNA(tblGPJune19[[#This Row],[FUNC]]),\"YES\",IF(_xlfn.ISFORMULA(tblGPJune19[[#This Row],[FUNC]]),\"NO\",\"YES\")))","v":"NO"}]
[{"$f":"CONCATENATE(tblGPJune19[[#This Row],[Primary Account]],tblGPJune19[[#This Row],[Primary Name]],tblGPJune19[[#This Row],[Secondary Acct]],tblGPJune19[[#This Row],[Secondary  Name]],tblGPJune19[[#This Row],[Alloc4FUNC]])","v":"1010000ELEC PLANT IN SERV3891000LAND OWNED IN FEESO"},1010000,"ELEC PLANT IN SERV",3891000,"LAND OWNED IN FEE","SO",7516.3022000000001,{"$f":"IF(OR(tblGPJune19[[#This Row],[Alloc]]=\"IDU\",tblGPJune19[[#This Row],[Alloc]]=\"OR\",tblGPJune19[[#This Row],[Alloc]]=\"UT\",tblGPJune19[[#This Row],[Alloc]]=\"WYU\",tblGPJune19[[#This Row],[Alloc]]=\"WYP\",tblGPJune19[[#This Row],[Alloc]]=\"CA\",tblGPJune19[[#This Row],[Alloc]]=\"WA\"),\"SITUS\",tblGPJune19[[#This Row],[Alloc]])","v":"SO"},{"$f":"INDEX(tblGPLookup[FUNC],MATCH(tblGPJune19[[#This Row],[Concat]],tblGPLookup[Concat],0))","v":"PTD"},{"$f":"IF(tblGPJune19[[#This Row],[Total ($000)]]=0,\"NO\",IF(ISNA(tblGPJune19[[#This Row],[FUNC]]),\"YES\",IF(_xlfn.ISFORMULA(tblGPJune19[[#This Row],[FUNC]]),\"NO\",\"YES\")))","v":"NO"}]
[{"$f":"CONCATENATE(tblGPJune19[[#This Row],[Primary Account]],tblGPJune19[[#This Row],[Primary Name]],tblGPJune19[[#This Row],[Secondary Acct]],tblGPJune19[[#This Row],[Secondary  Name]],tblGPJune19[[#This Row],[Alloc4FUNC]])","v":"1010000ELEC PLANT IN SERV3891000LAND OWNED IN FEESITUS"},1010000,"ELEC PLANT IN SERV",3891000,"LAND OWNED IN FEE","UT",2738.5387923076901,{"$f":"IF(OR(tblGPJune19[[#This Row],[Alloc]]=\"IDU\",tblGPJune19[[#This Row],[Alloc]]=\"OR\",tblGPJune19[[#This Row],[Alloc]]=\"UT\",tblGPJune19[[#This Row],[Alloc]]=\"WYU\",tblGPJune19[[#This Row],[Alloc]]=\"WYP\",tblGPJune19[[#This Row],[Alloc]]=\"CA\",tblGPJune19[[#This Row],[Alloc]]=\"WA\"),\"SITUS\",tblGPJune19[[#This Row],[Alloc]])","v":"SITUS"},{"$f":"INDEX(tblGPLookup[FUNC],MATCH(tblGPJune19[[#This Row],[Concat]],tblGPLookup[Concat],0))","v":"TD"},{"$f":"IF(tblGPJune19[[#This Row],[Total ($000)]]=0,\"NO\",IF(ISNA(tblGPJune19[[#This Row],[FUNC]]),\"YES\",IF(_xlfn.ISFORMULA(tblGPJune19[[#This Row],[FUNC]]),\"NO\",\"YES\")))","v":"NO"}]
[{"$f":"CONCATENATE(tblGPJune19[[#This Row],[Primary Account]],tblGPJune19[[#This Row],[Primary Name]],tblGPJune19[[#This Row],[Secondary Acct]],tblGPJune19[[#This Row],[Secondary  Name]],tblGPJune19[[#This Row],[Alloc4FUNC]])","v":"1010000ELEC PLANT IN SERV3891000LAND OWNED IN FEESITUS"},1010000,"ELEC PLANT IN SERV",3891000,"LAND OWNED IN FEE","WA",1098.82635,{"$f":"IF(OR(tblGPJune19[[#This Row],[Alloc]]=\"IDU\",tblGPJune19[[#This Row],[Alloc]]=\"OR\",tblGPJune19[[#This Row],[Alloc]]=\"UT\",tblGPJune19[[#This Row],[Alloc]]=\"WYU\",tblGPJune19[[#This Row],[Alloc]]=\"WYP\",tblGPJune19[[#This Row],[Alloc]]=\"CA\",tblGPJune19[[#This Row],[Alloc]]=\"WA\"),\"SITUS\",tblGPJune19[[#This Row],[Alloc]])","v":"SITUS"},{"$f":"INDEX(tblGPLookup[FUNC],MATCH(tblGPJune19[[#This Row],[Concat]],tblGPLookup[Concat],0))","v":"TD"},{"$f":"IF(tblGPJune19[[#This Row],[Total ($000)]]=0,\"NO\",IF(ISNA(tblGPJune19[[#This Row],[FUNC]]),\"YES\",IF(_xlfn.ISFORMULA(tblGPJune19[[#This Row],[FUNC]]),\"NO\",\"YES\")))","v":"NO"}]
[{"$f":"CONCATENATE(tblGPJune19[[#This Row],[Primary Account]],tblGPJune19[[#This Row],[Primary Name]],tblGPJune19[[#This Row],[Secondary Acct]],tblGPJune19[[#This Row],[Secondary  Name]],tblGPJune19[[#This Row],[Alloc4FUNC]])","v":"1010000ELEC PLANT IN SERV3891000LAND OWNED IN FEESITUS"},1010000,"ELEC PLANT IN SERV",3891000,"LAND OWNED IN FEE","WYP",1598.3215915384601,{"$f":"IF(OR(tblGPJune19[[#This Row],[Alloc]]=\"IDU\",tblGPJune19[[#This Row],[Alloc]]=\"OR\",tblGPJune19[[#This Row],[Alloc]]=\"UT\",tblGPJune19[[#This Row],[Alloc]]=\"WYU\",tblGPJune19[[#This Row],[Alloc]]=\"WYP\",tblGPJune19[[#This Row],[Alloc]]=\"CA\",tblGPJune19[[#This Row],[Alloc]]=\"WA\"),\"SITUS\",tblGPJune19[[#This Row],[Alloc]])","v":"SITUS"},{"$f":"INDEX(tblGPLookup[FUNC],MATCH(tblGPJune19[[#This Row],[Concat]],tblGPLookup[Concat],0))","v":"TD"},{"$f":"IF(tblGPJune19[[#This Row],[Total ($000)]]=0,\"NO\",IF(ISNA(tblGPJune19[[#This Row],[FUNC]]),\"YES\",IF(_xlfn.ISFORMULA(tblGPJune19[[#This Row],[FUNC]]),\"NO\",\"YES\")))","v":"NO"}]
[{"$f":"CONCATENATE(tblGPJune19[[#This Row],[Primary Account]],tblGPJune19[[#This Row],[Primary Name]],tblGPJune19[[#This Row],[Secondary Acct]],tblGPJune19[[#This Row],[Secondary  Name]],tblGPJune19[[#This Row],[Alloc4FUNC]])","v":"1010000ELEC PLANT IN SERV3891000LAND OWNED IN FEESITUS"},1010000,"ELEC PLANT IN SERV",3891000,"LAND OWNED IN FEE","WYU",221.27450999999999,{"$f":"IF(OR(tblGPJune19[[#This Row],[Alloc]]=\"IDU\",tblGPJune19[[#This Row],[Alloc]]=\"OR\",tblGPJune19[[#This Row],[Alloc]]=\"UT\",tblGPJune19[[#This Row],[Alloc]]=\"WYU\",tblGPJune19[[#This Row],[Alloc]]=\"WYP\",tblGPJune19[[#This Row],[Alloc]]=\"CA\",tblGPJune19[[#This Row],[Alloc]]=\"WA\"),\"SITUS\",tblGPJune19[[#This Row],[Alloc]])","v":"SITUS"},{"$f":"INDEX(tblGPLookup[FUNC],MATCH(tblGPJune19[[#This Row],[Concat]],tblGPLookup[Concat],0))","v":"TD"},{"$f":"IF(tblGPJune19[[#This Row],[Total ($000)]]=0,\"NO\",IF(ISNA(tblGPJune19[[#This Row],[FUNC]]),\"YES\",IF(_xlfn.ISFORMULA(tblGPJune19[[#This Row],[FUNC]]),\"NO\",\"YES\")))","v":"NO"}]
[{"$f":"CONCATENATE(tblGPJune19[[#This Row],[Primary Account]],tblGPJune19[[#This Row],[Primary Name]],tblGPJune19[[#This Row],[Secondary Acct]],tblGPJune19[[#This Row],[Secondary  Name]],tblGPJune19[[#This Row],[Alloc4FUNC]])","v":"1010000ELEC PLANT IN SERV3892000LAND RIGHTSSITUS"},1010000,"ELEC PLANT IN SERV",3892000,"LAND RIGHTS","IDU",4.8676399999999997,{"$f":"IF(OR(tblGPJune19[[#This Row],[Alloc]]=\"IDU\",tblGPJune19[[#This Row],[Alloc]]=\"OR\",tblGPJune19[[#This Row],[Alloc]]=\"UT\",tblGPJune19[[#This Row],[Alloc]]=\"WYU\",tblGPJune19[[#This Row],[Alloc]]=\"WYP\",tblGPJune19[[#This Row],[Alloc]]=\"CA\",tblGPJune19[[#This Row],[Alloc]]=\"WA\"),\"SITUS\",tblGPJune19[[#This Row],[Alloc]])","v":"SITUS"},{"$f":"INDEX(tblGPLookup[FUNC],MATCH(tblGPJune19[[#This Row],[Concat]],tblGPLookup[Concat],0))","v":"TD"},{"$f":"IF(tblGPJune19[[#This Row],[Total ($000)]]=0,\"NO\",IF(ISNA(tblGPJune19[[#This Row],[FUNC]]),\"YES\",IF(_xlfn.ISFORMULA(tblGPJune19[[#This Row],[FUNC]]),\"NO\",\"YES\")))","v":"NO"}]
[{"$f":"CONCATENATE(tblGPJune19[[#This Row],[Primary Account]],tblGPJune19[[#This Row],[Primary Name]],tblGPJune19[[#This Row],[Secondary Acct]],tblGPJune19[[#This Row],[Secondary  Name]],tblGPJune19[[#This Row],[Alloc4FUNC]])","v":"1010000ELEC PLANT IN SERV3892000LAND RIGHTSSG"},1010000,"ELEC PLANT IN SERV",3892000,"LAND RIGHTS","SG",1.2275499999999999,{"$f":"IF(OR(tblGPJune19[[#This Row],[Alloc]]=\"IDU\",tblGPJune19[[#This Row],[Alloc]]=\"OR\",tblGPJune19[[#This Row],[Alloc]]=\"UT\",tblGPJune19[[#This Row],[Alloc]]=\"WYU\",tblGPJune19[[#This Row],[Alloc]]=\"WYP\",tblGPJune19[[#This Row],[Alloc]]=\"CA\",tblGPJune19[[#This Row],[Alloc]]=\"WA\"),\"SITUS\",tblGPJune19[[#This Row],[Alloc]])","v":"SG"},{"$f":"INDEX(tblGPLookup[FUNC],MATCH(tblGPJune19[[#This Row],[Concat]],tblGPLookup[Concat],0))","v":"P"},{"$f":"IF(tblGPJune19[[#This Row],[Total ($000)]]=0,\"NO\",IF(ISNA(tblGPJune19[[#This Row],[FUNC]]),\"YES\",IF(_xlfn.ISFORMULA(tblGPJune19[[#This Row],[FUNC]]),\"NO\",\"YES\")))","v":"NO"}]
[{"$f":"CONCATENATE(tblGPJune19[[#This Row],[Primary Account]],tblGPJune19[[#This Row],[Primary Name]],tblGPJune19[[#This Row],[Secondary Acct]],tblGPJune19[[#This Row],[Secondary  Name]],tblGPJune19[[#This Row],[Alloc4FUNC]])","v":"1010000ELEC PLANT IN SERV3892000LAND RIGHTSSITUS"},1010000,"ELEC PLANT IN SERV",3892000,"LAND RIGHTS","UT",84.055809999999994,{"$f":"IF(OR(tblGPJune19[[#This Row],[Alloc]]=\"IDU\",tblGPJune19[[#This Row],[Alloc]]=\"OR\",tblGPJune19[[#This Row],[Alloc]]=\"UT\",tblGPJune19[[#This Row],[Alloc]]=\"WYU\",tblGPJune19[[#This Row],[Alloc]]=\"WYP\",tblGPJune19[[#This Row],[Alloc]]=\"CA\",tblGPJune19[[#This Row],[Alloc]]=\"WA\"),\"SITUS\",tblGPJune19[[#This Row],[Alloc]])","v":"SITUS"},{"$f":"INDEX(tblGPLookup[FUNC],MATCH(tblGPJune19[[#This Row],[Concat]],tblGPLookup[Concat],0))","v":"TD"},{"$f":"IF(tblGPJune19[[#This Row],[Total ($000)]]=0,\"NO\",IF(ISNA(tblGPJune19[[#This Row],[FUNC]]),\"YES\",IF(_xlfn.ISFORMULA(tblGPJune19[[#This Row],[FUNC]]),\"NO\",\"YES\")))","v":"NO"}]
[{"$f":"CONCATENATE(tblGPJune19[[#This Row],[Primary Account]],tblGPJune19[[#This Row],[Primary Name]],tblGPJune19[[#This Row],[Secondary Acct]],tblGPJune19[[#This Row],[Secondary  Name]],tblGPJune19[[#This Row],[Alloc4FUNC]])","v":"1010000ELEC PLANT IN SERV3892000LAND RIGHTSSITUS"},1010000,"ELEC PLANT IN SERV",3892000,"LAND RIGHTS","WYP",52.406599999999997,{"$f":"IF(OR(tblGPJune19[[#This Row],[Alloc]]=\"IDU\",tblGPJune19[[#This Row],[Alloc]]=\"OR\",tblGPJune19[[#This Row],[Alloc]]=\"UT\",tblGPJune19[[#This Row],[Alloc]]=\"WYU\",tblGPJune19[[#This Row],[Alloc]]=\"WYP\",tblGPJune19[[#This Row],[Alloc]]=\"CA\",tblGPJune19[[#This Row],[Alloc]]=\"WA\"),\"SITUS\",tblGPJune19[[#This Row],[Alloc]])","v":"SITUS"},{"$f":"INDEX(tblGPLookup[FUNC],MATCH(tblGPJune19[[#This Row],[Concat]],tblGPLookup[Concat],0))","v":"TD"},{"$f":"IF(tblGPJune19[[#This Row],[Total ($000)]]=0,\"NO\",IF(ISNA(tblGPJune19[[#This Row],[FUNC]]),\"YES\",IF(_xlfn.ISFORMULA(tblGPJune19[[#This Row],[FUNC]]),\"NO\",\"YES\")))","v":"NO"}]
[{"$f":"CONCATENATE(tblGPJune19[[#This Row],[Primary Account]],tblGPJune19[[#This Row],[Primary Name]],tblGPJune19[[#This Row],[Secondary Acct]],tblGPJune19[[#This Row],[Secondary  Name]],tblGPJune19[[#This Row],[Alloc4FUNC]])","v":"1010000ELEC PLANT IN SERV3892000LAND RIGHTSSITUS"},1010000,"ELEC PLANT IN SERV",3892000,"LAND RIGHTS","WYU",21.908149999999999,{"$f":"IF(OR(tblGPJune19[[#This Row],[Alloc]]=\"IDU\",tblGPJune19[[#This Row],[Alloc]]=\"OR\",tblGPJune19[[#This Row],[Alloc]]=\"UT\",tblGPJune19[[#This Row],[Alloc]]=\"WYU\",tblGPJune19[[#This Row],[Alloc]]=\"WYP\",tblGPJune19[[#This Row],[Alloc]]=\"CA\",tblGPJune19[[#This Row],[Alloc]]=\"WA\"),\"SITUS\",tblGPJune19[[#This Row],[Alloc]])","v":"SITUS"},{"$f":"INDEX(tblGPLookup[FUNC],MATCH(tblGPJune19[[#This Row],[Concat]],tblGPLookup[Concat],0))","v":"TD"},{"$f":"IF(tblGPJune19[[#This Row],[Total ($000)]]=0,\"NO\",IF(ISNA(tblGPJune19[[#This Row],[FUNC]]),\"YES\",IF(_xlfn.ISFORMULA(tblGPJune19[[#This Row],[FUNC]]),\"NO\",\"YES\")))","v":"NO"}]
[{"$f":"CONCATENATE(tblGPJune19[[#This Row],[Primary Account]],tblGPJune19[[#This Row],[Primary Name]],tblGPJune19[[#This Row],[Secondary Acct]],tblGPJune19[[#This Row],[Secondary  Name]],tblGPJune19[[#This Row],[Alloc4FUNC]])","v":"1010000ELEC PLANT IN SERV3900000STRUCTURES AND IMPROVEMENTSCN"},1010000,"ELEC PLANT IN SERV",3900000,"STRUCTURES AND IMPROVEMENTS","CN",8182.9015130769203,{"$f":"IF(OR(tblGPJune19[[#This Row],[Alloc]]=\"IDU\",tblGPJune19[[#This Row],[Alloc]]=\"OR\",tblGPJune19[[#This Row],[Alloc]]=\"UT\",tblGPJune19[[#This Row],[Alloc]]=\"WYU\",tblGPJune19[[#This Row],[Alloc]]=\"WYP\",tblGPJune19[[#This Row],[Alloc]]=\"CA\",tblGPJune19[[#This Row],[Alloc]]=\"WA\"),\"SITUS\",tblGPJune19[[#This Row],[Alloc]])","v":"CN"},{"$f":"INDEX(tblGPLookup[FUNC],MATCH(tblGPJune19[[#This Row],[Concat]],tblGPLookup[Concat],0))","v":"CUST"},{"$f":"IF(tblGPJune19[[#This Row],[Total ($000)]]=0,\"NO\",IF(ISNA(tblGPJune19[[#This Row],[FUNC]]),\"YES\",IF(_xlfn.ISFORMULA(tblGPJune19[[#This Row],[FUNC]]),\"NO\",\"YES\")))","v":"NO"}]
[{"$f":"CONCATENATE(tblGPJune19[[#This Row],[Primary Account]],tblGPJune19[[#This Row],[Primary Name]],tblGPJune19[[#This Row],[Secondary Acct]],tblGPJune19[[#This Row],[Secondary  Name]],tblGPJune19[[#This Row],[Alloc4FUNC]])","v":"1010000ELEC PLANT IN SERV3900000STRUCTURES AND IMPROVEMENTSSITUS"},1010000,"ELEC PLANT IN SERV",3900000,"STRUCTURES AND IMPROVEMENTS","IDU",11208.3371492308,{"$f":"IF(OR(tblGPJune19[[#This Row],[Alloc]]=\"IDU\",tblGPJune19[[#This Row],[Alloc]]=\"OR\",tblGPJune19[[#This Row],[Alloc]]=\"UT\",tblGPJune19[[#This Row],[Alloc]]=\"WYU\",tblGPJune19[[#This Row],[Alloc]]=\"WYP\",tblGPJune19[[#This Row],[Alloc]]=\"CA\",tblGPJune19[[#This Row],[Alloc]]=\"WA\"),\"SITUS\",tblGPJune19[[#This Row],[Alloc]])","v":"SITUS"},{"$f":"INDEX(tblGPLookup[FUNC],MATCH(tblGPJune19[[#This Row],[Concat]],tblGPLookup[Concat],0))","v":"TD"},{"$f":"IF(tblGPJune19[[#This Row],[Total ($000)]]=0,\"NO\",IF(ISNA(tblGPJune19[[#This Row],[FUNC]]),\"YES\",IF(_xlfn.ISFORMULA(tblGPJune19[[#This Row],[FUNC]]),\"NO\",\"YES\")))","v":"NO"}]
[{"$f":"CONCATENATE(tblGPJune19[[#This Row],[Primary Account]],tblGPJune19[[#This Row],[Primary Name]],tblGPJune19[[#This Row],[Secondary Acct]],tblGPJune19[[#This Row],[Secondary  Name]],tblGPJune19[[#This Row],[Alloc4FUNC]])","v":"1010000ELEC PLANT IN SERV3900000STRUCTURES AND IMPROVEMENTSSITUS"},1010000,"ELEC PLANT IN SERV",3900000,"STRUCTURES AND IMPROVEMENTS","OR",34054.7487738462,{"$f":"IF(OR(tblGPJune19[[#This Row],[Alloc]]=\"IDU\",tblGPJune19[[#This Row],[Alloc]]=\"OR\",tblGPJune19[[#This Row],[Alloc]]=\"UT\",tblGPJune19[[#This Row],[Alloc]]=\"WYU\",tblGPJune19[[#This Row],[Alloc]]=\"WYP\",tblGPJune19[[#This Row],[Alloc]]=\"CA\",tblGPJune19[[#This Row],[Alloc]]=\"WA\"),\"SITUS\",tblGPJune19[[#This Row],[Alloc]])","v":"SITUS"},{"$f":"INDEX(tblGPLookup[FUNC],MATCH(tblGPJune19[[#This Row],[Concat]],tblGPLookup[Concat],0))","v":"TD"},{"$f":"IF(tblGPJune19[[#This Row],[Total ($000)]]=0,\"NO\",IF(ISNA(tblGPJune19[[#This Row],[FUNC]]),\"YES\",IF(_xlfn.ISFORMULA(tblGPJune19[[#This Row],[FUNC]]),\"NO\",\"YES\")))","v":"NO"}]
[{"$f":"CONCATENATE(tblGPJune19[[#This Row],[Primary Account]],tblGPJune19[[#This Row],[Primary Name]],tblGPJune19[[#This Row],[Secondary Acct]],tblGPJune19[[#This Row],[Secondary  Name]],tblGPJune19[[#This Row],[Alloc4FUNC]])","v":"1010000ELEC PLANT IN SERV3900000STRUCTURES AND IMPROVEMENTSSE"},1010000,"ELEC PLANT IN SERV",3900000,"STRUCTURES AND IMPROVEMENTS","SE",1160.2707230769199,{"$f":"IF(OR(tblGPJune19[[#This Row],[Alloc]]=\"IDU\",tblGPJune19[[#This Row],[Alloc]]=\"OR\",tblGPJune19[[#This Row],[Alloc]]=\"UT\",tblGPJune19[[#This Row],[Alloc]]=\"WYU\",tblGPJune19[[#This Row],[Alloc]]=\"WYP\",tblGPJune19[[#This Row],[Alloc]]=\"CA\",tblGPJune19[[#This Row],[Alloc]]=\"WA\"),\"SITUS\",tblGPJune19[[#This Row],[Alloc]])","v":"SE"},{"$f":"INDEX(tblGPLookup[FUNC],MATCH(tblGPJune19[[#This Row],[Concat]],tblGPLookup[Concat],0))","v":"P"},{"$f":"IF(tblGPJune19[[#This Row],[Total ($000)]]=0,\"NO\",IF(ISNA(tblGPJune19[[#This Row],[FUNC]]),\"YES\",IF(_xlfn.ISFORMULA(tblGPJune19[[#This Row],[FUNC]]),\"NO\",\"YES\")))","v":"NO"}]
[{"$f":"CONCATENATE(tblGPJune19[[#This Row],[Primary Account]],tblGPJune19[[#This Row],[Primary Name]],tblGPJune19[[#This Row],[Secondary Acct]],tblGPJune19[[#This Row],[Secondary  Name]],tblGPJune19[[#This Row],[Alloc4FUNC]])","v":"1010000ELEC PLANT IN SERV3900000STRUCTURES AND IMPROVEMENTSSG"},1010000,"ELEC PLANT IN SERV",3900000,"STRUCTURES AND IMPROVEMENTS","SG",7609.3551515384597,{"$f":"IF(OR(tblGPJune19[[#This Row],[Alloc]]=\"IDU\",tblGPJune19[[#This Row],[Alloc]]=\"OR\",tblGPJune19[[#This Row],[Alloc]]=\"UT\",tblGPJune19[[#This Row],[Alloc]]=\"WYU\",tblGPJune19[[#This Row],[Alloc]]=\"WYP\",tblGPJune19[[#This Row],[Alloc]]=\"CA\",tblGPJune19[[#This Row],[Alloc]]=\"WA\"),\"SITUS\",tblGPJune19[[#This Row],[Alloc]])","v":"SG"},{"$f":"INDEX(tblGPLookup[FUNC],MATCH(tblGPJune19[[#This Row],[Concat]],tblGPLookup[Concat],0))","v":"P"},{"$f":"IF(tblGPJune19[[#This Row],[Total ($000)]]=0,\"NO\",IF(ISNA(tblGPJune19[[#This Row],[FUNC]]),\"YES\",IF(_xlfn.ISFORMULA(tblGPJune19[[#This Row],[FUNC]]),\"NO\",\"YES\")))","v":"NO"}]
[{"$f":"CONCATENATE(tblGPJune19[[#This Row],[Primary Account]],tblGPJune19[[#This Row],[Primary Name]],tblGPJune19[[#This Row],[Secondary Acct]],tblGPJune19[[#This Row],[Secondary  Name]],tblGPJune19[[#This Row],[Alloc4FUNC]])","v":"1010000ELEC PLANT IN SERV3900000STRUCTURES AND IMPROVEMENTSSITUS"},1010000,"ELEC PLANT IN SERV",3900000,"STRUCTURES AND IMPROVEMENTS","CA",3353.77267076923,{"$f":"IF(OR(tblGPJune19[[#This Row],[Alloc]]=\"IDU\",tblGPJune19[[#This Row],[Alloc]]=\"OR\",tblGPJune19[[#This Row],[Alloc]]=\"UT\",tblGPJune19[[#This Row],[Alloc]]=\"WYU\",tblGPJune19[[#This Row],[Alloc]]=\"WYP\",tblGPJune19[[#This Row],[Alloc]]=\"CA\",tblGPJune19[[#This Row],[Alloc]]=\"WA\"),\"SITUS\",tblGPJune19[[#This Row],[Alloc]])","v":"SITUS"},{"$f":"INDEX(tblGPLookup[FUNC],MATCH(tblGPJune19[[#This Row],[Concat]],tblGPLookup[Concat],0))","v":"TD"},{"$f":"IF(tblGPJune19[[#This Row],[Total ($000)]]=0,\"NO\",IF(ISNA(tblGPJune19[[#This Row],[FUNC]]),\"YES\",IF(_xlfn.ISFORMULA(tblGPJune19[[#This Row],[FUNC]]),\"NO\",\"YES\")))","v":"NO"}]
[{"$f":"CONCATENATE(tblGPJune19[[#This Row],[Primary Account]],tblGPJune19[[#This Row],[Primary Name]],tblGPJune19[[#This Row],[Secondary Acct]],tblGPJune19[[#This Row],[Secondary  Name]],tblGPJune19[[#This Row],[Alloc4FUNC]])","v":"1010000ELEC PLANT IN SERV3900000STRUCTURES AND IMPROVEMENTSSO"},1010000,"ELEC PLANT IN SERV",3900000,"STRUCTURES AND IMPROVEMENTS","SO",91863.975590769202,{"$f":"IF(OR(tblGPJune19[[#This Row],[Alloc]]=\"IDU\",tblGPJune19[[#This Row],[Alloc]]=\"OR\",tblGPJune19[[#This Row],[Alloc]]=\"UT\",tblGPJune19[[#This Row],[Alloc]]=\"WYU\",tblGPJune19[[#This Row],[Alloc]]=\"WYP\",tblGPJune19[[#This Row],[Alloc]]=\"CA\",tblGPJune19[[#This Row],[Alloc]]=\"WA\"),\"SITUS\",tblGPJune19[[#This Row],[Alloc]])","v":"SO"},{"$f":"INDEX(tblGPLookup[FUNC],MATCH(tblGPJune19[[#This Row],[Concat]],tblGPLookup[Concat],0))","v":"PTD"},{"$f":"IF(tblGPJune19[[#This Row],[Total ($000)]]=0,\"NO\",IF(ISNA(tblGPJune19[[#This Row],[FUNC]]),\"YES\",IF(_xlfn.ISFORMULA(tblGPJune19[[#This Row],[FUNC]]),\"NO\",\"YES\")))","v":"NO"}]
[{"$f":"CONCATENATE(tblGPJune19[[#This Row],[Primary Account]],tblGPJune19[[#This Row],[Primary Name]],tblGPJune19[[#This Row],[Secondary Acct]],tblGPJune19[[#This Row],[Secondary  Name]],tblGPJune19[[#This Row],[Alloc4FUNC]])","v":"1010000ELEC PLANT IN SERV3900000STRUCTURES AND IMPROVEMENTSSITUS"},1010000,"ELEC PLANT IN SERV",3900000,"STRUCTURES AND IMPROVEMENTS","UT",44191.501834615403,{"$f":"IF(OR(tblGPJune19[[#This Row],[Alloc]]=\"IDU\",tblGPJune19[[#This Row],[Alloc]]=\"OR\",tblGPJune19[[#This Row],[Alloc]]=\"UT\",tblGPJune19[[#This Row],[Alloc]]=\"WYU\",tblGPJune19[[#This Row],[Alloc]]=\"WYP\",tblGPJune19[[#This Row],[Alloc]]=\"CA\",tblGPJune19[[#This Row],[Alloc]]=\"WA\"),\"SITUS\",tblGPJune19[[#This Row],[Alloc]])","v":"SITUS"},{"$f":"INDEX(tblGPLookup[FUNC],MATCH(tblGPJune19[[#This Row],[Concat]],tblGPLookup[Concat],0))","v":"TD"},{"$f":"IF(tblGPJune19[[#This Row],[Total ($000)]]=0,\"NO\",IF(ISNA(tblGPJune19[[#This Row],[FUNC]]),\"YES\",IF(_xlfn.ISFORMULA(tblGPJune19[[#This Row],[FUNC]]),\"NO\",\"YES\")))","v":"NO"}]
[{"$f":"CONCATENATE(tblGPJune19[[#This Row],[Primary Account]],tblGPJune19[[#This Row],[Primary Name]],tblGPJune19[[#This Row],[Secondary Acct]],tblGPJune19[[#This Row],[Secondary  Name]],tblGPJune19[[#This Row],[Alloc4FUNC]])","v":"1010000ELEC PLANT IN SERV3900000STRUCTURES AND IMPROVEMENTSSITUS"},1010000,"ELEC PLANT IN SERV",3900000,"STRUCTURES AND IMPROVEMENTS","WA",11498.7371284615,{"$f":"IF(OR(tblGPJune19[[#This Row],[Alloc]]=\"IDU\",tblGPJune19[[#This Row],[Alloc]]=\"OR\",tblGPJune19[[#This Row],[Alloc]]=\"UT\",tblGPJune19[[#This Row],[Alloc]]=\"WYU\",tblGPJune19[[#This Row],[Alloc]]=\"WYP\",tblGPJune19[[#This Row],[Alloc]]=\"CA\",tblGPJune19[[#This Row],[Alloc]]=\"WA\"),\"SITUS\",tblGPJune19[[#This Row],[Alloc]])","v":"SITUS"},{"$f":"INDEX(tblGPLookup[FUNC],MATCH(tblGPJune19[[#This Row],[Concat]],tblGPLookup[Concat],0))","v":"TD"},{"$f":"IF(tblGPJune19[[#This Row],[Total ($000)]]=0,\"NO\",IF(ISNA(tblGPJune19[[#This Row],[FUNC]]),\"YES\",IF(_xlfn.ISFORMULA(tblGPJune19[[#This Row],[FUNC]]),\"NO\",\"YES\")))","v":"NO"}]
[{"$f":"CONCATENATE(tblGPJune19[[#This Row],[Primary Account]],tblGPJune19[[#This Row],[Primary Name]],tblGPJune19[[#This Row],[Secondary Acct]],tblGPJune19[[#This Row],[Secondary  Name]],tblGPJune19[[#This Row],[Alloc4FUNC]])","v":"1010000ELEC PLANT IN SERV3900000STRUCTURES AND IMPROVEMENTSSITUS"},1010000,"ELEC PLANT IN SERV",3900000,"STRUCTURES AND IMPROVEMENTS","WYP",9944.9704515384601,{"$f":"IF(OR(tblGPJune19[[#This Row],[Alloc]]=\"IDU\",tblGPJune19[[#This Row],[Alloc]]=\"OR\",tblGPJune19[[#This Row],[Alloc]]=\"UT\",tblGPJune19[[#This Row],[Alloc]]=\"WYU\",tblGPJune19[[#This Row],[Alloc]]=\"WYP\",tblGPJune19[[#This Row],[Alloc]]=\"CA\",tblGPJune19[[#This Row],[Alloc]]=\"WA\"),\"SITUS\",tblGPJune19[[#This Row],[Alloc]])","v":"SITUS"},{"$f":"INDEX(tblGPLookup[FUNC],MATCH(tblGPJune19[[#This Row],[Concat]],tblGPLookup[Concat],0))","v":"TD"},{"$f":"IF(tblGPJune19[[#This Row],[Total ($000)]]=0,\"NO\",IF(ISNA(tblGPJune19[[#This Row],[FUNC]]),\"YES\",IF(_xlfn.ISFORMULA(tblGPJune19[[#This Row],[FUNC]]),\"NO\",\"YES\")))","v":"NO"}]
[{"$f":"CONCATENATE(tblGPJune19[[#This Row],[Primary Account]],tblGPJune19[[#This Row],[Primary Name]],tblGPJune19[[#This Row],[Secondary Acct]],tblGPJune19[[#This Row],[Secondary  Name]],tblGPJune19[[#This Row],[Alloc4FUNC]])","v":"1010000ELEC PLANT IN SERV3900000STRUCTURES AND IMPROVEMENTSSITUS"},1010000,"ELEC PLANT IN SERV",3900000,"STRUCTURES AND IMPROVEMENTS","WYU",3847.7159830769201,{"$f":"IF(OR(tblGPJune19[[#This Row],[Alloc]]=\"IDU\",tblGPJune19[[#This Row],[Alloc]]=\"OR\",tblGPJune19[[#This Row],[Alloc]]=\"UT\",tblGPJune19[[#This Row],[Alloc]]=\"WYU\",tblGPJune19[[#This Row],[Alloc]]=\"WYP\",tblGPJune19[[#This Row],[Alloc]]=\"CA\",tblGPJune19[[#This Row],[Alloc]]=\"WA\"),\"SITUS\",tblGPJune19[[#This Row],[Alloc]])","v":"SITUS"},{"$f":"INDEX(tblGPLookup[FUNC],MATCH(tblGPJune19[[#This Row],[Concat]],tblGPLookup[Concat],0))","v":"TD"},{"$f":"IF(tblGPJune19[[#This Row],[Total ($000)]]=0,\"NO\",IF(ISNA(tblGPJune19[[#This Row],[FUNC]]),\"YES\",IF(_xlfn.ISFORMULA(tblGPJune19[[#This Row],[FUNC]]),\"NO\",\"YES\")))","v":"NO"}]
[{"$f":"CONCATENATE(tblGPJune19[[#This Row],[Primary Account]],tblGPJune19[[#This Row],[Primary Name]],tblGPJune19[[#This Row],[Secondary Acct]],tblGPJune19[[#This Row],[Secondary  Name]],tblGPJune19[[#This Row],[Alloc4FUNC]])","v":"1010000ELEC PLANT IN SERV3901000LEASEHOLD IMPROVEMENTS-OFFICE STRSITUS"},1010000,"ELEC PLANT IN SERV",3901000,"LEASEHOLD IMPROVEMENTS-OFFICE STR","IDU",333.77069999999998,{"$f":"IF(OR(tblGPJune19[[#This Row],[Alloc]]=\"IDU\",tblGPJune19[[#This Row],[Alloc]]=\"OR\",tblGPJune19[[#This Row],[Alloc]]=\"UT\",tblGPJune19[[#This Row],[Alloc]]=\"WYU\",tblGPJune19[[#This Row],[Alloc]]=\"WYP\",tblGPJune19[[#This Row],[Alloc]]=\"CA\",tblGPJune19[[#This Row],[Alloc]]=\"WA\"),\"SITUS\",tblGPJune19[[#This Row],[Alloc]])","v":"SITUS"},{"$f":"INDEX(tblGPLookup[FUNC],MATCH(tblGPJune19[[#This Row],[Concat]],tblGPLookup[Concat],0))","v":"TD"},{"$f":"IF(tblGPJune19[[#This Row],[Total ($000)]]=0,\"NO\",IF(ISNA(tblGPJune19[[#This Row],[FUNC]]),\"YES\",IF(_xlfn.ISFORMULA(tblGPJune19[[#This Row],[FUNC]]),\"NO\",\"YES\")))","v":"NO"}]
[{"$f":"CONCATENATE(tblGPJune19[[#This Row],[Primary Account]],tblGPJune19[[#This Row],[Primary Name]],tblGPJune19[[#This Row],[Secondary Acct]],tblGPJune19[[#This Row],[Secondary  Name]],tblGPJune19[[#This Row],[Alloc4FUNC]])","v":"1010000ELEC PLANT IN SERV3901000LEASEHOLD IMPROVEMENTS-OFFICE STRSITUS"},1010000,"ELEC PLANT IN SERV",3901000,"LEASEHOLD IMPROVEMENTS-OFFICE STR","OR",6045.2125123076903,{"$f":"IF(OR(tblGPJune19[[#This Row],[Alloc]]=\"IDU\",tblGPJune19[[#This Row],[Alloc]]=\"OR\",tblGPJune19[[#This Row],[Alloc]]=\"UT\",tblGPJune19[[#This Row],[Alloc]]=\"WYU\",tblGPJune19[[#This Row],[Alloc]]=\"WYP\",tblGPJune19[[#This Row],[Alloc]]=\"CA\",tblGPJune19[[#This Row],[Alloc]]=\"WA\"),\"SITUS\",tblGPJune19[[#This Row],[Alloc]])","v":"SITUS"},{"$f":"INDEX(tblGPLookup[FUNC],MATCH(tblGPJune19[[#This Row],[Concat]],tblGPLookup[Concat],0))","v":"TD"},{"$f":"IF(tblGPJune19[[#This Row],[Total ($000)]]=0,\"NO\",IF(ISNA(tblGPJune19[[#This Row],[FUNC]]),\"YES\",IF(_xlfn.ISFORMULA(tblGPJune19[[#This Row],[FUNC]]),\"NO\",\"YES\")))","v":"NO"}]
[{"$f":"CONCATENATE(tblGPJune19[[#This Row],[Primary Account]],tblGPJune19[[#This Row],[Primary Name]],tblGPJune19[[#This Row],[Secondary Acct]],tblGPJune19[[#This Row],[Secondary  Name]],tblGPJune19[[#This Row],[Alloc4FUNC]])","v":"1010000ELEC PLANT IN SERV3901000LEASEHOLD IMPROVEMENTS-OFFICE STRSITUS"},1010000,"ELEC PLANT IN SERV",3901000,"LEASEHOLD IMPROVEMENTS-OFFICE STR","CA",665.56828846153803,{"$f":"IF(OR(tblGPJune19[[#This Row],[Alloc]]=\"IDU\",tblGPJune19[[#This Row],[Alloc]]=\"OR\",tblGPJune19[[#This Row],[Alloc]]=\"UT\",tblGPJune19[[#This Row],[Alloc]]=\"WYU\",tblGPJune19[[#This Row],[Alloc]]=\"WYP\",tblGPJune19[[#This Row],[Alloc]]=\"CA\",tblGPJune19[[#This Row],[Alloc]]=\"WA\"),\"SITUS\",tblGPJune19[[#This Row],[Alloc]])","v":"SITUS"},{"$f":"INDEX(tblGPLookup[FUNC],MATCH(tblGPJune19[[#This Row],[Concat]],tblGPLookup[Concat],0))","v":"TD"},{"$f":"IF(tblGPJune19[[#This Row],[Total ($000)]]=0,\"NO\",IF(ISNA(tblGPJune19[[#This Row],[FUNC]]),\"YES\",IF(_xlfn.ISFORMULA(tblGPJune19[[#This Row],[FUNC]]),\"NO\",\"YES\")))","v":"NO"}]
[{"$f":"CONCATENATE(tblGPJune19[[#This Row],[Primary Account]],tblGPJune19[[#This Row],[Primary Name]],tblGPJune19[[#This Row],[Secondary Acct]],tblGPJune19[[#This Row],[Secondary  Name]],tblGPJune19[[#This Row],[Alloc4FUNC]])","v":"1010000ELEC PLANT IN SERV3901000LEASEHOLD IMPROVEMENTS-OFFICE STRSO"},1010000,"ELEC PLANT IN SERV",3901000,"LEASEHOLD IMPROVEMENTS-OFFICE STR","SO",4754.87799923077,{"$f":"IF(OR(tblGPJune19[[#This Row],[Alloc]]=\"IDU\",tblGPJune19[[#This Row],[Alloc]]=\"OR\",tblGPJune19[[#This Row],[Alloc]]=\"UT\",tblGPJune19[[#This Row],[Alloc]]=\"WYU\",tblGPJune19[[#This Row],[Alloc]]=\"WYP\",tblGPJune19[[#This Row],[Alloc]]=\"CA\",tblGPJune19[[#This Row],[Alloc]]=\"WA\"),\"SITUS\",tblGPJune19[[#This Row],[Alloc]])","v":"SO"},{"$f":"INDEX(tblGPLookup[FUNC],MATCH(tblGPJune19[[#This Row],[Concat]],tblGPLookup[Concat],0))","v":"PTD"},{"$f":"IF(tblGPJune19[[#This Row],[Total ($000)]]=0,\"NO\",IF(ISNA(tblGPJune19[[#This Row],[FUNC]]),\"YES\",IF(_xlfn.ISFORMULA(tblGPJune19[[#This Row],[FUNC]]),\"NO\",\"YES\")))","v":"NO"}]
[{"$f":"CONCATENATE(tblGPJune19[[#This Row],[Primary Account]],tblGPJune19[[#This Row],[Primary Name]],tblGPJune19[[#This Row],[Secondary Acct]],tblGPJune19[[#This Row],[Secondary  Name]],tblGPJune19[[#This Row],[Alloc4FUNC]])","v":"1010000ELEC PLANT IN SERV3901000LEASEHOLD IMPROVEMENTS-OFFICE STRSITUS"},1010000,"ELEC PLANT IN SERV",3901000,"LEASEHOLD IMPROVEMENTS-OFFICE STR","UT",18.70176,{"$f":"IF(OR(tblGPJune19[[#This Row],[Alloc]]=\"IDU\",tblGPJune19[[#This Row],[Alloc]]=\"OR\",tblGPJune19[[#This Row],[Alloc]]=\"UT\",tblGPJune19[[#This Row],[Alloc]]=\"WYU\",tblGPJune19[[#This Row],[Alloc]]=\"WYP\",tblGPJune19[[#This Row],[Alloc]]=\"CA\",tblGPJune19[[#This Row],[Alloc]]=\"WA\"),\"SITUS\",tblGPJune19[[#This Row],[Alloc]])","v":"SITUS"},{"$f":"INDEX(tblGPLookup[FUNC],MATCH(tblGPJune19[[#This Row],[Concat]],tblGPLookup[Concat],0))","v":"TD"},{"$f":"IF(tblGPJune19[[#This Row],[Total ($000)]]=0,\"NO\",IF(ISNA(tblGPJune19[[#This Row],[FUNC]]),\"YES\",IF(_xlfn.ISFORMULA(tblGPJune19[[#This Row],[FUNC]]),\"NO\",\"YES\")))","v":"NO"}]
[{"$f":"CONCATENATE(tblGPJune19[[#This Row],[Primary Account]],tblGPJune19[[#This Row],[Primary Name]],tblGPJune19[[#This Row],[Secondary Acct]],tblGPJune19[[#This Row],[Secondary  Name]],tblGPJune19[[#This Row],[Alloc4FUNC]])","v":"1010000ELEC PLANT IN SERV3901000LEASEHOLD IMPROVEMENTS-OFFICE STRSITUS"},1010000,"ELEC PLANT IN SERV",3901000,"LEASEHOLD IMPROVEMENTS-OFFICE STR","WA",2406.68957,{"$f":"IF(OR(tblGPJune19[[#This Row],[Alloc]]=\"IDU\",tblGPJune19[[#This Row],[Alloc]]=\"OR\",tblGPJune19[[#This Row],[Alloc]]=\"UT\",tblGPJune19[[#This Row],[Alloc]]=\"WYU\",tblGPJune19[[#This Row],[Alloc]]=\"WYP\",tblGPJune19[[#This Row],[Alloc]]=\"CA\",tblGPJune19[[#This Row],[Alloc]]=\"WA\"),\"SITUS\",tblGPJune19[[#This Row],[Alloc]])","v":"SITUS"},{"$f":"INDEX(tblGPLookup[FUNC],MATCH(tblGPJune19[[#This Row],[Concat]],tblGPLookup[Concat],0))","v":"TD"},{"$f":"IF(tblGPJune19[[#This Row],[Total ($000)]]=0,\"NO\",IF(ISNA(tblGPJune19[[#This Row],[FUNC]]),\"YES\",IF(_xlfn.ISFORMULA(tblGPJune19[[#This Row],[FUNC]]),\"NO\",\"YES\")))","v":"NO"}]
[{"$f":"CONCATENATE(tblGPJune19[[#This Row],[Primary Account]],tblGPJune19[[#This Row],[Primary Name]],tblGPJune19[[#This Row],[Secondary Acct]],tblGPJune19[[#This Row],[Secondary  Name]],tblGPJune19[[#This Row],[Alloc4FUNC]])","v":"1010000ELEC PLANT IN SERV3901000LEASEHOLD IMPROVEMENTS-OFFICE STRSITUS"},1010000,"ELEC PLANT IN SERV",3901000,"LEASEHOLD IMPROVEMENTS-OFFICE STR","WYP",4735.2415776923099,{"$f":"IF(OR(tblGPJune19[[#This Row],[Alloc]]=\"IDU\",tblGPJune19[[#This Row],[Alloc]]=\"OR\",tblGPJune19[[#This Row],[Alloc]]=\"UT\",tblGPJune19[[#This Row],[Alloc]]=\"WYU\",tblGPJune19[[#This Row],[Alloc]]=\"WYP\",tblGPJune19[[#This Row],[Alloc]]=\"CA\",tblGPJune19[[#This Row],[Alloc]]=\"WA\"),\"SITUS\",tblGPJune19[[#This Row],[Alloc]])","v":"SITUS"},{"$f":"INDEX(tblGPLookup[FUNC],MATCH(tblGPJune19[[#This Row],[Concat]],tblGPLookup[Concat],0))","v":"TD"},{"$f":"IF(tblGPJune19[[#This Row],[Total ($000)]]=0,\"NO\",IF(ISNA(tblGPJune19[[#This Row],[FUNC]]),\"YES\",IF(_xlfn.ISFORMULA(tblGPJune19[[#This Row],[FUNC]]),\"NO\",\"YES\")))","v":"NO"}]
[{"$f":"CONCATENATE(tblGPJune19[[#This Row],[Primary Account]],tblGPJune19[[#This Row],[Primary Name]],tblGPJune19[[#This Row],[Secondary Acct]],tblGPJune19[[#This Row],[Secondary  Name]],tblGPJune19[[#This Row],[Alloc4FUNC]])","v":"1010000ELEC PLANT IN SERV3910000OFFICE FURNITURECN"},1010000,"ELEC PLANT IN SERV",3910000,"OFFICE FURNITURE","CN",1170.8062615384599,{"$f":"IF(OR(tblGPJune19[[#This Row],[Alloc]]=\"IDU\",tblGPJune19[[#This Row],[Alloc]]=\"OR\",tblGPJune19[[#This Row],[Alloc]]=\"UT\",tblGPJune19[[#This Row],[Alloc]]=\"WYU\",tblGPJune19[[#This Row],[Alloc]]=\"WYP\",tblGPJune19[[#This Row],[Alloc]]=\"CA\",tblGPJune19[[#This Row],[Alloc]]=\"WA\"),\"SITUS\",tblGPJune19[[#This Row],[Alloc]])","v":"CN"},{"$f":"INDEX(tblGPLookup[FUNC],MATCH(tblGPJune19[[#This Row],[Concat]],tblGPLookup[Concat],0))","v":"CUST"},{"$f":"IF(tblGPJune19[[#This Row],[Total ($000)]]=0,\"NO\",IF(ISNA(tblGPJune19[[#This Row],[FUNC]]),\"YES\",IF(_xlfn.ISFORMULA(tblGPJune19[[#This Row],[FUNC]]),\"NO\",\"YES\")))","v":"NO"}]
[{"$f":"CONCATENATE(tblGPJune19[[#This Row],[Primary Account]],tblGPJune19[[#This Row],[Primary Name]],tblGPJune19[[#This Row],[Secondary Acct]],tblGPJune19[[#This Row],[Secondary  Name]],tblGPJune19[[#This Row],[Alloc4FUNC]])","v":"1010000ELEC PLANT IN SERV3910000OFFICE FURNITURESITUS"},1010000,"ELEC PLANT IN SERV",3910000,"OFFICE FURNITURE","IDU",75.951549999999997,{"$f":"IF(OR(tblGPJune19[[#This Row],[Alloc]]=\"IDU\",tblGPJune19[[#This Row],[Alloc]]=\"OR\",tblGPJune19[[#This Row],[Alloc]]=\"UT\",tblGPJune19[[#This Row],[Alloc]]=\"WYU\",tblGPJune19[[#This Row],[Alloc]]=\"WYP\",tblGPJune19[[#This Row],[Alloc]]=\"CA\",tblGPJune19[[#This Row],[Alloc]]=\"WA\"),\"SITUS\",tblGPJune19[[#This Row],[Alloc]])","v":"SITUS"},{"$f":"INDEX(tblGPLookup[FUNC],MATCH(tblGPJune19[[#This Row],[Concat]],tblGPLookup[Concat],0))","v":"DPW"},{"$f":"IF(tblGPJune19[[#This Row],[Total ($000)]]=0,\"NO\",IF(ISNA(tblGPJune19[[#This Row],[FUNC]]),\"YES\",IF(_xlfn.ISFORMULA(tblGPJune19[[#This Row],[FUNC]]),\"NO\",\"YES\")))","v":"NO"}]
[{"$f":"CONCATENATE(tblGPJune19[[#This Row],[Primary Account]],tblGPJune19[[#This Row],[Primary Name]],tblGPJune19[[#This Row],[Secondary Acct]],tblGPJune19[[#This Row],[Secondary  Name]],tblGPJune19[[#This Row],[Alloc4FUNC]])","v":"1010000ELEC PLANT IN SERV3910000OFFICE FURNITURESITUS"},1010000,"ELEC PLANT IN SERV",3910000,"OFFICE FURNITURE","OR",1530.17563384615,{"$f":"IF(OR(tblGPJune19[[#This Row],[Alloc]]=\"IDU\",tblGPJune19[[#This Row],[Alloc]]=\"OR\",tblGPJune19[[#This Row],[Alloc]]=\"UT\",tblGPJune19[[#This Row],[Alloc]]=\"WYU\",tblGPJune19[[#This Row],[Alloc]]=\"WYP\",tblGPJune19[[#This Row],[Alloc]]=\"CA\",tblGPJune19[[#This Row],[Alloc]]=\"WA\"),\"SITUS\",tblGPJune19[[#This Row],[Alloc]])","v":"SITUS"},{"$f":"INDEX(tblGPLookup[FUNC],MATCH(tblGPJune19[[#This Row],[Concat]],tblGPLookup[Concat],0))","v":"DPW"},{"$f":"IF(tblGPJune19[[#This Row],[Total ($000)]]=0,\"NO\",IF(ISNA(tblGPJune19[[#This Row],[FUNC]]),\"YES\",IF(_xlfn.ISFORMULA(tblGPJune19[[#This Row],[FUNC]]),\"NO\",\"YES\")))","v":"NO"}]
[{"$f":"CONCATENATE(tblGPJune19[[#This Row],[Primary Account]],tblGPJune19[[#This Row],[Primary Name]],tblGPJune19[[#This Row],[Secondary Acct]],tblGPJune19[[#This Row],[Secondary  Name]],tblGPJune19[[#This Row],[Alloc4FUNC]])","v":"1010000ELEC PLANT IN SERV3910000OFFICE FURNITURESE"},1010000,"ELEC PLANT IN SERV",3910000,"OFFICE FURNITURE","SE",4.6626899999999996,{"$f":"IF(OR(tblGPJune19[[#This Row],[Alloc]]=\"IDU\",tblGPJune19[[#This Row],[Alloc]]=\"OR\",tblGPJune19[[#This Row],[Alloc]]=\"UT\",tblGPJune19[[#This Row],[Alloc]]=\"WYU\",tblGPJune19[[#This Row],[Alloc]]=\"WYP\",tblGPJune19[[#This Row],[Alloc]]=\"CA\",tblGPJune19[[#This Row],[Alloc]]=\"WA\"),\"SITUS\",tblGPJune19[[#This Row],[Alloc]])","v":"SE"},{"$f":"INDEX(tblGPLookup[FUNC],MATCH(tblGPJune19[[#This Row],[Concat]],tblGPLookup[Concat],0))","v":"P"},{"$f":"IF(tblGPJune19[[#This Row],[Total ($000)]]=0,\"NO\",IF(ISNA(tblGPJune19[[#This Row],[FUNC]]),\"YES\",IF(_xlfn.ISFORMULA(tblGPJune19[[#This Row],[FUNC]]),\"NO\",\"YES\")))","v":"NO"}]
[{"$f":"CONCATENATE(tblGPJune19[[#This Row],[Primary Account]],tblGPJune19[[#This Row],[Primary Name]],tblGPJune19[[#This Row],[Secondary Acct]],tblGPJune19[[#This Row],[Secondary  Name]],tblGPJune19[[#This Row],[Alloc4FUNC]])","v":"1010000ELEC PLANT IN SERV3910000OFFICE FURNITURESG"},1010000,"ELEC PLANT IN SERV",3910000,"OFFICE FURNITURE","SG",1460.71235538462,{"$f":"IF(OR(tblGPJune19[[#This Row],[Alloc]]=\"IDU\",tblGPJune19[[#This Row],[Alloc]]=\"OR\",tblGPJune19[[#This Row],[Alloc]]=\"UT\",tblGPJune19[[#This Row],[Alloc]]=\"WYU\",tblGPJune19[[#This Row],[Alloc]]=\"WYP\",tblGPJune19[[#This Row],[Alloc]]=\"CA\",tblGPJune19[[#This Row],[Alloc]]=\"WA\"),\"SITUS\",tblGPJune19[[#This Row],[Alloc]])","v":"SG"},{"$f":"INDEX(tblGPLookup[FUNC],MATCH(tblGPJune19[[#This Row],[Concat]],tblGPLookup[Concat],0))","v":"P"},{"$f":"IF(tblGPJune19[[#This Row],[Total ($000)]]=0,\"NO\",IF(ISNA(tblGPJune19[[#This Row],[FUNC]]),\"YES\",IF(_xlfn.ISFORMULA(tblGPJune19[[#This Row],[FUNC]]),\"NO\",\"YES\")))","v":"NO"}]
[{"$f":"CONCATENATE(tblGPJune19[[#This Row],[Primary Account]],tblGPJune19[[#This Row],[Primary Name]],tblGPJune19[[#This Row],[Secondary Acct]],tblGPJune19[[#This Row],[Secondary  Name]],tblGPJune19[[#This Row],[Alloc4FUNC]])","v":"1010000ELEC PLANT IN SERV3910000OFFICE FURNITURESITUS"},1010000,"ELEC PLANT IN SERV",3910000,"OFFICE FURNITURE","CA",109.58557,{"$f":"IF(OR(tblGPJune19[[#This Row],[Alloc]]=\"IDU\",tblGPJune19[[#This Row],[Alloc]]=\"OR\",tblGPJune19[[#This Row],[Alloc]]=\"UT\",tblGPJune19[[#This Row],[Alloc]]=\"WYU\",tblGPJune19[[#This Row],[Alloc]]=\"WYP\",tblGPJune19[[#This Row],[Alloc]]=\"CA\",tblGPJune19[[#This Row],[Alloc]]=\"WA\"),\"SITUS\",tblGPJune19[[#This Row],[Alloc]])","v":"SITUS"},{"$f":"INDEX(tblGPLookup[FUNC],MATCH(tblGPJune19[[#This Row],[Concat]],tblGPLookup[Concat],0))","v":"DPW"},{"$f":"IF(tblGPJune19[[#This Row],[Total ($000)]]=0,\"NO\",IF(ISNA(tblGPJune19[[#This Row],[FUNC]]),\"YES\",IF(_xlfn.ISFORMULA(tblGPJune19[[#This Row],[FUNC]]),\"NO\",\"YES\")))","v":"NO"}]
[{"$f":"CONCATENATE(tblGPJune19[[#This Row],[Primary Account]],tblGPJune19[[#This Row],[Primary Name]],tblGPJune19[[#This Row],[Secondary Acct]],tblGPJune19[[#This Row],[Secondary  Name]],tblGPJune19[[#This Row],[Alloc4FUNC]])","v":"1010000ELEC PLANT IN SERV3910000OFFICE FURNITURESO"},1010000,"ELEC PLANT IN SERV",3910000,"OFFICE FURNITURE","SO",16848.368523846199,{"$f":"IF(OR(tblGPJune19[[#This Row],[Alloc]]=\"IDU\",tblGPJune19[[#This Row],[Alloc]]=\"OR\",tblGPJune19[[#This Row],[Alloc]]=\"UT\",tblGPJune19[[#This Row],[Alloc]]=\"WYU\",tblGPJune19[[#This Row],[Alloc]]=\"WYP\",tblGPJune19[[#This Row],[Alloc]]=\"CA\",tblGPJune19[[#This Row],[Alloc]]=\"WA\"),\"SITUS\",tblGPJune19[[#This Row],[Alloc]])","v":"SO"},{"$f":"INDEX(tblGPLookup[FUNC],MATCH(tblGPJune19[[#This Row],[Concat]],tblGPLookup[Concat],0))","v":"PTD"},{"$f":"IF(tblGPJune19[[#This Row],[Total ($000)]]=0,\"NO\",IF(ISNA(tblGPJune19[[#This Row],[FUNC]]),\"YES\",IF(_xlfn.ISFORMULA(tblGPJune19[[#This Row],[FUNC]]),\"NO\",\"YES\")))","v":"NO"}]
[{"$f":"CONCATENATE(tblGPJune19[[#This Row],[Primary Account]],tblGPJune19[[#This Row],[Primary Name]],tblGPJune19[[#This Row],[Secondary Acct]],tblGPJune19[[#This Row],[Secondary  Name]],tblGPJune19[[#This Row],[Alloc4FUNC]])","v":"1010000ELEC PLANT IN SERV3910000OFFICE FURNITURESITUS"},1010000,"ELEC PLANT IN SERV",3910000,"OFFICE FURNITURE","UT",672.93335000000002,{"$f":"IF(OR(tblGPJune19[[#This Row],[Alloc]]=\"IDU\",tblGPJune19[[#This Row],[Alloc]]=\"OR\",tblGPJune19[[#This Row],[Alloc]]=\"UT\",tblGPJune19[[#This Row],[Alloc]]=\"WYU\",tblGPJune19[[#This Row],[Alloc]]=\"WYP\",tblGPJune19[[#This Row],[Alloc]]=\"CA\",tblGPJune19[[#This Row],[Alloc]]=\"WA\"),\"SITUS\",tblGPJune19[[#This Row],[Alloc]])","v":"SITUS"},{"$f":"INDEX(tblGPLookup[FUNC],MATCH(tblGPJune19[[#This Row],[Concat]],tblGPLookup[Concat],0))","v":"DPW"},{"$f":"IF(tblGPJune19[[#This Row],[Total ($000)]]=0,\"NO\",IF(ISNA(tblGPJune19[[#This Row],[FUNC]]),\"YES\",IF(_xlfn.ISFORMULA(tblGPJune19[[#This Row],[FUNC]]),\"NO\",\"YES\")))","v":"NO"}]
[{"$f":"CONCATENATE(tblGPJune19[[#This Row],[Primary Account]],tblGPJune19[[#This Row],[Primary Name]],tblGPJune19[[#This Row],[Secondary Acct]],tblGPJune19[[#This Row],[Secondary  Name]],tblGPJune19[[#This Row],[Alloc4FUNC]])","v":"1010000ELEC PLANT IN SERV3910000OFFICE FURNITURESITUS"},1010000,"ELEC PLANT IN SERV",3910000,"OFFICE FURNITURE","WA",62.661540000000002,{"$f":"IF(OR(tblGPJune19[[#This Row],[Alloc]]=\"IDU\",tblGPJune19[[#This Row],[Alloc]]=\"OR\",tblGPJune19[[#This Row],[Alloc]]=\"UT\",tblGPJune19[[#This Row],[Alloc]]=\"WYU\",tblGPJune19[[#This Row],[Alloc]]=\"WYP\",tblGPJune19[[#This Row],[Alloc]]=\"CA\",tblGPJune19[[#This Row],[Alloc]]=\"WA\"),\"SITUS\",tblGPJune19[[#This Row],[Alloc]])","v":"SITUS"},{"$f":"INDEX(tblGPLookup[FUNC],MATCH(tblGPJune19[[#This Row],[Concat]],tblGPLookup[Concat],0))","v":"DPW"},{"$f":"IF(tblGPJune19[[#This Row],[Total ($000)]]=0,\"NO\",IF(ISNA(tblGPJune19[[#This Row],[FUNC]]),\"YES\",IF(_xlfn.ISFORMULA(tblGPJune19[[#This Row],[FUNC]]),\"NO\",\"YES\")))","v":"NO"}]
[{"$f":"CONCATENATE(tblGPJune19[[#This Row],[Primary Account]],tblGPJune19[[#This Row],[Primary Name]],tblGPJune19[[#This Row],[Secondary Acct]],tblGPJune19[[#This Row],[Secondary  Name]],tblGPJune19[[#This Row],[Alloc4FUNC]])","v":"1010000ELEC PLANT IN SERV3910000OFFICE FURNITURESITUS"},1010000,"ELEC PLANT IN SERV",3910000,"OFFICE FURNITURE","WYP",537.071437692308,{"$f":"IF(OR(tblGPJune19[[#This Row],[Alloc]]=\"IDU\",tblGPJune19[[#This Row],[Alloc]]=\"OR\",tblGPJune19[[#This Row],[Alloc]]=\"UT\",tblGPJune19[[#This Row],[Alloc]]=\"WYU\",tblGPJune19[[#This Row],[Alloc]]=\"WYP\",tblGPJune19[[#This Row],[Alloc]]=\"CA\",tblGPJune19[[#This Row],[Alloc]]=\"WA\"),\"SITUS\",tblGPJune19[[#This Row],[Alloc]])","v":"SITUS"},{"$f":"INDEX(tblGPLookup[FUNC],MATCH(tblGPJune19[[#This Row],[Concat]],tblGPLookup[Concat],0))","v":"DPW"},{"$f":"IF(tblGPJune19[[#This Row],[Total ($000)]]=0,\"NO\",IF(ISNA(tblGPJune19[[#This Row],[FUNC]]),\"YES\",IF(_xlfn.ISFORMULA(tblGPJune19[[#This Row],[FUNC]]),\"NO\",\"YES\")))","v":"NO"}]
[{"$f":"CONCATENATE(tblGPJune19[[#This Row],[Primary Account]],tblGPJune19[[#This Row],[Primary Name]],tblGPJune19[[#This Row],[Secondary Acct]],tblGPJune19[[#This Row],[Secondary  Name]],tblGPJune19[[#This Row],[Alloc4FUNC]])","v":"1010000ELEC PLANT IN SERV3910000OFFICE FURNITURESITUS"},1010000,"ELEC PLANT IN SERV",3910000,"OFFICE FURNITURE","WYU",26.209506153846199,{"$f":"IF(OR(tblGPJune19[[#This Row],[Alloc]]=\"IDU\",tblGPJune19[[#This Row],[Alloc]]=\"OR\",tblGPJune19[[#This Row],[Alloc]]=\"UT\",tblGPJune19[[#This Row],[Alloc]]=\"WYU\",tblGPJune19[[#This Row],[Alloc]]=\"WYP\",tblGPJune19[[#This Row],[Alloc]]=\"CA\",tblGPJune19[[#This Row],[Alloc]]=\"WA\"),\"SITUS\",tblGPJune19[[#This Row],[Alloc]])","v":"SITUS"},{"$f":"INDEX(tblGPLookup[FUNC],MATCH(tblGPJune19[[#This Row],[Concat]],tblGPLookup[Concat],0))","v":"DPW"},{"$f":"IF(tblGPJune19[[#This Row],[Total ($000)]]=0,\"NO\",IF(ISNA(tblGPJune19[[#This Row],[FUNC]]),\"YES\",IF(_xlfn.ISFORMULA(tblGPJune19[[#This Row],[FUNC]]),\"NO\",\"YES\")))","v":"NO"}]
[{"$f":"CONCATENATE(tblGPJune19[[#This Row],[Primary Account]],tblGPJune19[[#This Row],[Primary Name]],tblGPJune19[[#This Row],[Secondary Acct]],tblGPJune19[[#This Row],[Secondary  Name]],tblGPJune19[[#This Row],[Alloc4FUNC]])","v":"1010000ELEC PLANT IN SERV3912000COMPUTER EQUIPMENT - PERSONAL COMPUTERSCN"},1010000,"ELEC PLANT IN SERV",3912000,"COMPUTER EQUIPMENT - PERSONAL COMPUTERS","CN",3433.1521376923101,{"$f":"IF(OR(tblGPJune19[[#This Row],[Alloc]]=\"IDU\",tblGPJune19[[#This Row],[Alloc]]=\"OR\",tblGPJune19[[#This Row],[Alloc]]=\"UT\",tblGPJune19[[#This Row],[Alloc]]=\"WYU\",tblGPJune19[[#This Row],[Alloc]]=\"WYP\",tblGPJune19[[#This Row],[Alloc]]=\"CA\",tblGPJune19[[#This Row],[Alloc]]=\"WA\"),\"SITUS\",tblGPJune19[[#This Row],[Alloc]])","v":"CN"},{"$f":"INDEX(tblGPLookup[FUNC],MATCH(tblGPJune19[[#This Row],[Concat]],tblGPLookup[Concat],0))","v":"CUST"},{"$f":"IF(tblGPJune19[[#This Row],[Total ($000)]]=0,\"NO\",IF(ISNA(tblGPJune19[[#This Row],[FUNC]]),\"YES\",IF(_xlfn.ISFORMULA(tblGPJune19[[#This Row],[FUNC]]),\"NO\",\"YES\")))","v":"NO"}]
[{"$f":"CONCATENATE(tblGPJune19[[#This Row],[Primary Account]],tblGPJune19[[#This Row],[Primary Name]],tblGPJune19[[#This Row],[Secondary Acct]],tblGPJune19[[#This Row],[Secondary  Name]],tblGPJune19[[#This Row],[Alloc4FUNC]])","v":"1010000ELEC PLANT IN SERV3912000COMPUTER EQUIPMENT - PERSONAL COMPUTERSSITUS"},1010000,"ELEC PLANT IN SERV",3912000,"COMPUTER EQUIPMENT - PERSONAL COMPUTERS","IDU",310.36933923076901,{"$f":"IF(OR(tblGPJune19[[#This Row],[Alloc]]=\"IDU\",tblGPJune19[[#This Row],[Alloc]]=\"OR\",tblGPJune19[[#This Row],[Alloc]]=\"UT\",tblGPJune19[[#This Row],[Alloc]]=\"WYU\",tblGPJune19[[#This Row],[Alloc]]=\"WYP\",tblGPJune19[[#This Row],[Alloc]]=\"CA\",tblGPJune19[[#This Row],[Alloc]]=\"WA\"),\"SITUS\",tblGPJune19[[#This Row],[Alloc]])","v":"SITUS"},{"$f":"INDEX(tblGPLookup[FUNC],MATCH(tblGPJune19[[#This Row],[Concat]],tblGPLookup[Concat],0))","v":"DPW"},{"$f":"IF(tblGPJune19[[#This Row],[Total ($000)]]=0,\"NO\",IF(ISNA(tblGPJune19[[#This Row],[FUNC]]),\"YES\",IF(_xlfn.ISFORMULA(tblGPJune19[[#This Row],[FUNC]]),\"NO\",\"YES\")))","v":"NO"}]
[{"$f":"CONCATENATE(tblGPJune19[[#This Row],[Primary Account]],tblGPJune19[[#This Row],[Primary Name]],tblGPJune19[[#This Row],[Secondary Acct]],tblGPJune19[[#This Row],[Secondary  Name]],tblGPJune19[[#This Row],[Alloc4FUNC]])","v":"1010000ELEC PLANT IN SERV3912000COMPUTER EQUIPMENT - PERSONAL COMPUTERSSITUS"},1010000,"ELEC PLANT IN SERV",3912000,"COMPUTER EQUIPMENT - PERSONAL COMPUTERS","OR",804.790968461538,{"$f":"IF(OR(tblGPJune19[[#This Row],[Alloc]]=\"IDU\",tblGPJune19[[#This Row],[Alloc]]=\"OR\",tblGPJune19[[#This Row],[Alloc]]=\"UT\",tblGPJune19[[#This Row],[Alloc]]=\"WYU\",tblGPJune19[[#This Row],[Alloc]]=\"WYP\",tblGPJune19[[#This Row],[Alloc]]=\"CA\",tblGPJune19[[#This Row],[Alloc]]=\"WA\"),\"SITUS\",tblGPJune19[[#This Row],[Alloc]])","v":"SITUS"},{"$f":"INDEX(tblGPLookup[FUNC],MATCH(tblGPJune19[[#This Row],[Concat]],tblGPLookup[Concat],0))","v":"DPW"},{"$f":"IF(tblGPJune19[[#This Row],[Total ($000)]]=0,\"NO\",IF(ISNA(tblGPJune19[[#This Row],[FUNC]]),\"YES\",IF(_xlfn.ISFORMULA(tblGPJune19[[#This Row],[FUNC]]),\"NO\",\"YES\")))","v":"NO"}]
[{"$f":"CONCATENATE(tblGPJune19[[#This Row],[Primary Account]],tblGPJune19[[#This Row],[Primary Name]],tblGPJune19[[#This Row],[Secondary Acct]],tblGPJune19[[#This Row],[Secondary  Name]],tblGPJune19[[#This Row],[Alloc4FUNC]])","v":"1010000ELEC PLANT IN SERV3912000COMPUTER EQUIPMENT - PERSONAL COMPUTERSSE"},1010000,"ELEC PLANT IN SERV",3912000,"COMPUTER EQUIPMENT - PERSONAL COMPUTERS","SE",12.9396730769231,{"$f":"IF(OR(tblGPJune19[[#This Row],[Alloc]]=\"IDU\",tblGPJune19[[#This Row],[Alloc]]=\"OR\",tblGPJune19[[#This Row],[Alloc]]=\"UT\",tblGPJune19[[#This Row],[Alloc]]=\"WYU\",tblGPJune19[[#This Row],[Alloc]]=\"WYP\",tblGPJune19[[#This Row],[Alloc]]=\"CA\",tblGPJune19[[#This Row],[Alloc]]=\"WA\"),\"SITUS\",tblGPJune19[[#This Row],[Alloc]])","v":"SE"},{"$f":"INDEX(tblGPLookup[FUNC],MATCH(tblGPJune19[[#This Row],[Concat]],tblGPLookup[Concat],0))","v":"P"},{"$f":"IF(tblGPJune19[[#This Row],[Total ($000)]]=0,\"NO\",IF(ISNA(tblGPJune19[[#This Row],[FUNC]]),\"YES\",IF(_xlfn.ISFORMULA(tblGPJune19[[#This Row],[FUNC]]),\"NO\",\"YES\")))","v":"NO"}]
[{"$f":"CONCATENATE(tblGPJune19[[#This Row],[Primary Account]],tblGPJune19[[#This Row],[Primary Name]],tblGPJune19[[#This Row],[Secondary Acct]],tblGPJune19[[#This Row],[Secondary  Name]],tblGPJune19[[#This Row],[Alloc4FUNC]])","v":"1010000ELEC PLANT IN SERV3912000COMPUTER EQUIPMENT - PERSONAL COMPUTERSSG"},1010000,"ELEC PLANT IN SERV",3912000,"COMPUTER EQUIPMENT - PERSONAL COMPUTERS","SG",1487.73014153846,{"$f":"IF(OR(tblGPJune19[[#This Row],[Alloc]]=\"IDU\",tblGPJune19[[#This Row],[Alloc]]=\"OR\",tblGPJune19[[#This Row],[Alloc]]=\"UT\",tblGPJune19[[#This Row],[Alloc]]=\"WYU\",tblGPJune19[[#This Row],[Alloc]]=\"WYP\",tblGPJune19[[#This Row],[Alloc]]=\"CA\",tblGPJune19[[#This Row],[Alloc]]=\"WA\"),\"SITUS\",tblGPJune19[[#This Row],[Alloc]])","v":"SG"},{"$f":"INDEX(tblGPLookup[FUNC],MATCH(tblGPJune19[[#This Row],[Concat]],tblGPLookup[Concat],0))","v":"P"},{"$f":"IF(tblGPJune19[[#This Row],[Total ($000)]]=0,\"NO\",IF(ISNA(tblGPJune19[[#This Row],[FUNC]]),\"YES\",IF(_xlfn.ISFORMULA(tblGPJune19[[#This Row],[FUNC]]),\"NO\",\"YES\")))","v":"NO"}]
[{"$f":"CONCATENATE(tblGPJune19[[#This Row],[Primary Account]],tblGPJune19[[#This Row],[Primary Name]],tblGPJune19[[#This Row],[Secondary Acct]],tblGPJune19[[#This Row],[Secondary  Name]],tblGPJune19[[#This Row],[Alloc4FUNC]])","v":"1010000ELEC PLANT IN SERV3912000COMPUTER EQUIPMENT - PERSONAL COMPUTERSSITUS"},1010000,"ELEC PLANT IN SERV",3912000,"COMPUTER EQUIPMENT - PERSONAL COMPUTERS","CA",61.295916923076902,{"$f":"IF(OR(tblGPJune19[[#This Row],[Alloc]]=\"IDU\",tblGPJune19[[#This Row],[Alloc]]=\"OR\",tblGPJune19[[#This Row],[Alloc]]=\"UT\",tblGPJune19[[#This Row],[Alloc]]=\"WYU\",tblGPJune19[[#This Row],[Alloc]]=\"WYP\",tblGPJune19[[#This Row],[Alloc]]=\"CA\",tblGPJune19[[#This Row],[Alloc]]=\"WA\"),\"SITUS\",tblGPJune19[[#This Row],[Alloc]])","v":"SITUS"},{"$f":"INDEX(tblGPLookup[FUNC],MATCH(tblGPJune19[[#This Row],[Concat]],tblGPLookup[Concat],0))","v":"DPW"},{"$f":"IF(tblGPJune19[[#This Row],[Total ($000)]]=0,\"NO\",IF(ISNA(tblGPJune19[[#This Row],[FUNC]]),\"YES\",IF(_xlfn.ISFORMULA(tblGPJune19[[#This Row],[FUNC]]),\"NO\",\"YES\")))","v":"NO"}]
[{"$f":"CONCATENATE(tblGPJune19[[#This Row],[Primary Account]],tblGPJune19[[#This Row],[Primary Name]],tblGPJune19[[#This Row],[Secondary Acct]],tblGPJune19[[#This Row],[Secondary  Name]],tblGPJune19[[#This Row],[Alloc4FUNC]])","v":"1010000ELEC PLANT IN SERV3912000COMPUTER EQUIPMENT - PERSONAL COMPUTERSSO"},1010000,"ELEC PLANT IN SERV",3912000,"COMPUTER EQUIPMENT - PERSONAL COMPUTERS","SO",44818.228845384598,{"$f":"IF(OR(tblGPJune19[[#This Row],[Alloc]]=\"IDU\",tblGPJune19[[#This Row],[Alloc]]=\"OR\",tblGPJune19[[#This Row],[Alloc]]=\"UT\",tblGPJune19[[#This Row],[Alloc]]=\"WYU\",tblGPJune19[[#This Row],[Alloc]]=\"WYP\",tblGPJune19[[#This Row],[Alloc]]=\"CA\",tblGPJune19[[#This Row],[Alloc]]=\"WA\"),\"SITUS\",tblGPJune19[[#This Row],[Alloc]])","v":"SO"},{"$f":"INDEX(tblGPLookup[FUNC],MATCH(tblGPJune19[[#This Row],[Concat]],tblGPLookup[Concat],0))","v":"PTD"},{"$f":"IF(tblGPJune19[[#This Row],[Total ($000)]]=0,\"NO\",IF(ISNA(tblGPJune19[[#This Row],[FUNC]]),\"YES\",IF(_xlfn.ISFORMULA(tblGPJune19[[#This Row],[FUNC]]),\"NO\",\"YES\")))","v":"NO"}]
[{"$f":"CONCATENATE(tblGPJune19[[#This Row],[Primary Account]],tblGPJune19[[#This Row],[Primary Name]],tblGPJune19[[#This Row],[Secondary Acct]],tblGPJune19[[#This Row],[Secondary  Name]],tblGPJune19[[#This Row],[Alloc4FUNC]])","v":"1010000ELEC PLANT IN SERV3912000COMPUTER EQUIPMENT - PERSONAL COMPUTERSSITUS"},1010000,"ELEC PLANT IN SERV",3912000,"COMPUTER EQUIPMENT - PERSONAL COMPUTERS","UT",583.85536692307699,{"$f":"IF(OR(tblGPJune19[[#This Row],[Alloc]]=\"IDU\",tblGPJune19[[#This Row],[Alloc]]=\"OR\",tblGPJune19[[#This Row],[Alloc]]=\"UT\",tblGPJune19[[#This Row],[Alloc]]=\"WYU\",tblGPJune19[[#This Row],[Alloc]]=\"WYP\",tblGPJune19[[#This Row],[Alloc]]=\"CA\",tblGPJune19[[#This Row],[Alloc]]=\"WA\"),\"SITUS\",tblGPJune19[[#This Row],[Alloc]])","v":"SITUS"},{"$f":"INDEX(tblGPLookup[FUNC],MATCH(tblGPJune19[[#This Row],[Concat]],tblGPLookup[Concat],0))","v":"DPW"},{"$f":"IF(tblGPJune19[[#This Row],[Total ($000)]]=0,\"NO\",IF(ISNA(tblGPJune19[[#This Row],[FUNC]]),\"YES\",IF(_xlfn.ISFORMULA(tblGPJune19[[#This Row],[FUNC]]),\"NO\",\"YES\")))","v":"NO"}]
[{"$f":"CONCATENATE(tblGPJune19[[#This Row],[Primary Account]],tblGPJune19[[#This Row],[Primary Name]],tblGPJune19[[#This Row],[Secondary Acct]],tblGPJune19[[#This Row],[Secondary  Name]],tblGPJune19[[#This Row],[Alloc4FUNC]])","v":"1010000ELEC PLANT IN SERV3912000COMPUTER EQUIPMENT - PERSONAL COMPUTERSSITUS"},1010000,"ELEC PLANT IN SERV",3912000,"COMPUTER EQUIPMENT - PERSONAL COMPUTERS","WA",259.81483076923098,{"$f":"IF(OR(tblGPJune19[[#This Row],[Alloc]]=\"IDU\",tblGPJune19[[#This Row],[Alloc]]=\"OR\",tblGPJune19[[#This Row],[Alloc]]=\"UT\",tblGPJune19[[#This Row],[Alloc]]=\"WYU\",tblGPJune19[[#This Row],[Alloc]]=\"WYP\",tblGPJune19[[#This Row],[Alloc]]=\"CA\",tblGPJune19[[#This Row],[Alloc]]=\"WA\"),\"SITUS\",tblGPJune19[[#This Row],[Alloc]])","v":"SITUS"},{"$f":"INDEX(tblGPLookup[FUNC],MATCH(tblGPJune19[[#This Row],[Concat]],tblGPLookup[Concat],0))","v":"DPW"},{"$f":"IF(tblGPJune19[[#This Row],[Total ($000)]]=0,\"NO\",IF(ISNA(tblGPJune19[[#This Row],[FUNC]]),\"YES\",IF(_xlfn.ISFORMULA(tblGPJune19[[#This Row],[FUNC]]),\"NO\",\"YES\")))","v":"NO"}]
[{"$f":"CONCATENATE(tblGPJune19[[#This Row],[Primary Account]],tblGPJune19[[#This Row],[Primary Name]],tblGPJune19[[#This Row],[Secondary Acct]],tblGPJune19[[#This Row],[Secondary  Name]],tblGPJune19[[#This Row],[Alloc4FUNC]])","v":"1010000ELEC PLANT IN SERV3912000COMPUTER EQUIPMENT - PERSONAL COMPUTERSSITUS"},1010000,"ELEC PLANT IN SERV",3912000,"COMPUTER EQUIPMENT - PERSONAL COMPUTERS","WYP",1739.8742,{"$f":"IF(OR(tblGPJune19[[#This Row],[Alloc]]=\"IDU\",tblGPJune19[[#This Row],[Alloc]]=\"OR\",tblGPJune19[[#This Row],[Alloc]]=\"UT\",tblGPJune19[[#This Row],[Alloc]]=\"WYU\",tblGPJune19[[#This Row],[Alloc]]=\"WYP\",tblGPJune19[[#This Row],[Alloc]]=\"CA\",tblGPJune19[[#This Row],[Alloc]]=\"WA\"),\"SITUS\",tblGPJune19[[#This Row],[Alloc]])","v":"SITUS"},{"$f":"INDEX(tblGPLookup[FUNC],MATCH(tblGPJune19[[#This Row],[Concat]],tblGPLookup[Concat],0))","v":"DPW"},{"$f":"IF(tblGPJune19[[#This Row],[Total ($000)]]=0,\"NO\",IF(ISNA(tblGPJune19[[#This Row],[FUNC]]),\"YES\",IF(_xlfn.ISFORMULA(tblGPJune19[[#This Row],[FUNC]]),\"NO\",\"YES\")))","v":"NO"}]
[{"$f":"CONCATENATE(tblGPJune19[[#This Row],[Primary Account]],tblGPJune19[[#This Row],[Primary Name]],tblGPJune19[[#This Row],[Secondary Acct]],tblGPJune19[[#This Row],[Secondary  Name]],tblGPJune19[[#This Row],[Alloc4FUNC]])","v":"1010000ELEC PLANT IN SERV3912000COMPUTER EQUIPMENT - PERSONAL COMPUTERSSITUS"},1010000,"ELEC PLANT IN SERV",3912000,"COMPUTER EQUIPMENT - PERSONAL COMPUTERS","WYU",36.748124615384597,{"$f":"IF(OR(tblGPJune19[[#This Row],[Alloc]]=\"IDU\",tblGPJune19[[#This Row],[Alloc]]=\"OR\",tblGPJune19[[#This Row],[Alloc]]=\"UT\",tblGPJune19[[#This Row],[Alloc]]=\"WYU\",tblGPJune19[[#This Row],[Alloc]]=\"WYP\",tblGPJune19[[#This Row],[Alloc]]=\"CA\",tblGPJune19[[#This Row],[Alloc]]=\"WA\"),\"SITUS\",tblGPJune19[[#This Row],[Alloc]])","v":"SITUS"},{"$f":"INDEX(tblGPLookup[FUNC],MATCH(tblGPJune19[[#This Row],[Concat]],tblGPLookup[Concat],0))","v":"DPW"},{"$f":"IF(tblGPJune19[[#This Row],[Total ($000)]]=0,\"NO\",IF(ISNA(tblGPJune19[[#This Row],[FUNC]]),\"YES\",IF(_xlfn.ISFORMULA(tblGPJune19[[#This Row],[FUNC]]),\"NO\",\"YES\")))","v":"NO"}]
[{"$f":"CONCATENATE(tblGPJune19[[#This Row],[Primary Account]],tblGPJune19[[#This Row],[Primary Name]],tblGPJune19[[#This Row],[Secondary Acct]],tblGPJune19[[#This Row],[Secondary  Name]],tblGPJune19[[#This Row],[Alloc4FUNC]])","v":"1010000ELEC PLANT IN SERV3913000OFFICE EQUIPMENTCN"},1010000,"ELEC PLANT IN SERV",3913000,"OFFICE EQUIPMENT","CN",2.1580061538461499,{"$f":"IF(OR(tblGPJune19[[#This Row],[Alloc]]=\"IDU\",tblGPJune19[[#This Row],[Alloc]]=\"OR\",tblGPJune19[[#This Row],[Alloc]]=\"UT\",tblGPJune19[[#This Row],[Alloc]]=\"WYU\",tblGPJune19[[#This Row],[Alloc]]=\"WYP\",tblGPJune19[[#This Row],[Alloc]]=\"CA\",tblGPJune19[[#This Row],[Alloc]]=\"WA\"),\"SITUS\",tblGPJune19[[#This Row],[Alloc]])","v":"CN"},{"$f":"INDEX(tblGPLookup[FUNC],MATCH(tblGPJune19[[#This Row],[Concat]],tblGPLookup[Concat],0))","v":"CUST"},{"$f":"IF(tblGPJune19[[#This Row],[Total ($000)]]=0,\"NO\",IF(ISNA(tblGPJune19[[#This Row],[FUNC]]),\"YES\",IF(_xlfn.ISFORMULA(tblGPJune19[[#This Row],[FUNC]]),\"NO\",\"YES\")))","v":"NO"}]
[{"$f":"CONCATENATE(tblGPJune19[[#This Row],[Primary Account]],tblGPJune19[[#This Row],[Primary Name]],tblGPJune19[[#This Row],[Secondary Acct]],tblGPJune19[[#This Row],[Secondary  Name]],tblGPJune19[[#This Row],[Alloc4FUNC]])","v":"1010000ELEC PLANT IN SERV3913000OFFICE EQUIPMENTSITUS"},1010000,"ELEC PLANT IN SERV",3913000,"OFFICE EQUIPMENT","IDU",1.1657599999999999,{"$f":"IF(OR(tblGPJune19[[#This Row],[Alloc]]=\"IDU\",tblGPJune19[[#This Row],[Alloc]]=\"OR\",tblGPJune19[[#This Row],[Alloc]]=\"UT\",tblGPJune19[[#This Row],[Alloc]]=\"WYU\",tblGPJune19[[#This Row],[Alloc]]=\"WYP\",tblGPJune19[[#This Row],[Alloc]]=\"CA\",tblGPJune19[[#This Row],[Alloc]]=\"WA\"),\"SITUS\",tblGPJune19[[#This Row],[Alloc]])","v":"SITUS"},{"$f":"INDEX(tblGPLookup[FUNC],MATCH(tblGPJune19[[#This Row],[Concat]],tblGPLookup[Concat],0))","v":"DPW"},{"$f":"IF(tblGPJune19[[#This Row],[Total ($000)]]=0,\"NO\",IF(ISNA(tblGPJune19[[#This Row],[FUNC]]),\"YES\",IF(_xlfn.ISFORMULA(tblGPJune19[[#This Row],[FUNC]]),\"NO\",\"YES\")))","v":"NO"}]
[{"$f":"CONCATENATE(tblGPJune19[[#This Row],[Primary Account]],tblGPJune19[[#This Row],[Primary Name]],tblGPJune19[[#This Row],[Secondary Acct]],tblGPJune19[[#This Row],[Secondary  Name]],tblGPJune19[[#This Row],[Alloc4FUNC]])","v":"1010000ELEC PLANT IN SERV3913000OFFICE EQUIPMENTSITUS"},1010000,"ELEC PLANT IN SERV",3913000,"OFFICE EQUIPMENT","OR",6.9341407692307699,{"$f":"IF(OR(tblGPJune19[[#This Row],[Alloc]]=\"IDU\",tblGPJune19[[#This Row],[Alloc]]=\"OR\",tblGPJune19[[#This Row],[Alloc]]=\"UT\",tblGPJune19[[#This Row],[Alloc]]=\"WYU\",tblGPJune19[[#This Row],[Alloc]]=\"WYP\",tblGPJune19[[#This Row],[Alloc]]=\"CA\",tblGPJune19[[#This Row],[Alloc]]=\"WA\"),\"SITUS\",tblGPJune19[[#This Row],[Alloc]])","v":"SITUS"},{"$f":"INDEX(tblGPLookup[FUNC],MATCH(tblGPJune19[[#This Row],[Concat]],tblGPLookup[Concat],0))","v":"DPW"},{"$f":"IF(tblGPJune19[[#This Row],[Total ($000)]]=0,\"NO\",IF(ISNA(tblGPJune19[[#This Row],[FUNC]]),\"YES\",IF(_xlfn.ISFORMULA(tblGPJune19[[#This Row],[FUNC]]),\"NO\",\"YES\")))","v":"NO"}]
[{"$f":"CONCATENATE(tblGPJune19[[#This Row],[Primary Account]],tblGPJune19[[#This Row],[Primary Name]],tblGPJune19[[#This Row],[Secondary Acct]],tblGPJune19[[#This Row],[Secondary  Name]],tblGPJune19[[#This Row],[Alloc4FUNC]])","v":"1010000ELEC PLANT IN SERV3913000OFFICE EQUIPMENTSG"},1010000,"ELEC PLANT IN SERV",3913000,"OFFICE EQUIPMENT","SG",67.563069999999996,{"$f":"IF(OR(tblGPJune19[[#This Row],[Alloc]]=\"IDU\",tblGPJune19[[#This Row],[Alloc]]=\"OR\",tblGPJune19[[#This Row],[Alloc]]=\"UT\",tblGPJune19[[#This Row],[Alloc]]=\"WYU\",tblGPJune19[[#This Row],[Alloc]]=\"WYP\",tblGPJune19[[#This Row],[Alloc]]=\"CA\",tblGPJune19[[#This Row],[Alloc]]=\"WA\"),\"SITUS\",tblGPJune19[[#This Row],[Alloc]])","v":"SG"},{"$f":"INDEX(tblGPLookup[FUNC],MATCH(tblGPJune19[[#This Row],[Concat]],tblGPLookup[Concat],0))","v":"P"},{"$f":"IF(tblGPJune19[[#This Row],[Total ($000)]]=0,\"NO\",IF(ISNA(tblGPJune19[[#This Row],[FUNC]]),\"YES\",IF(_xlfn.ISFORMULA(tblGPJune19[[#This Row],[FUNC]]),\"NO\",\"YES\")))","v":"NO"}]
[{"$f":"CONCATENATE(tblGPJune19[[#This Row],[Primary Account]],tblGPJune19[[#This Row],[Primary Name]],tblGPJune19[[#This Row],[Secondary Acct]],tblGPJune19[[#This Row],[Secondary  Name]],tblGPJune19[[#This Row],[Alloc4FUNC]])","v":"1010000ELEC PLANT IN SERV3913000OFFICE EQUIPMENTSO"},1010000,"ELEC PLANT IN SERV",3913000,"OFFICE EQUIPMENT","SO",196.67931769230799,{"$f":"IF(OR(tblGPJune19[[#This Row],[Alloc]]=\"IDU\",tblGPJune19[[#This Row],[Alloc]]=\"OR\",tblGPJune19[[#This Row],[Alloc]]=\"UT\",tblGPJune19[[#This Row],[Alloc]]=\"WYU\",tblGPJune19[[#This Row],[Alloc]]=\"WYP\",tblGPJune19[[#This Row],[Alloc]]=\"CA\",tblGPJune19[[#This Row],[Alloc]]=\"WA\"),\"SITUS\",tblGPJune19[[#This Row],[Alloc]])","v":"SO"},{"$f":"INDEX(tblGPLookup[FUNC],MATCH(tblGPJune19[[#This Row],[Concat]],tblGPLookup[Concat],0))","v":"PTD"},{"$f":"IF(tblGPJune19[[#This Row],[Total ($000)]]=0,\"NO\",IF(ISNA(tblGPJune19[[#This Row],[FUNC]]),\"YES\",IF(_xlfn.ISFORMULA(tblGPJune19[[#This Row],[FUNC]]),\"NO\",\"YES\")))","v":"NO"}]
[{"$f":"CONCATENATE(tblGPJune19[[#This Row],[Primary Account]],tblGPJune19[[#This Row],[Primary Name]],tblGPJune19[[#This Row],[Secondary Acct]],tblGPJune19[[#This Row],[Secondary  Name]],tblGPJune19[[#This Row],[Alloc4FUNC]])","v":"1010000ELEC PLANT IN SERV3913000OFFICE EQUIPMENTSITUS"},1010000,"ELEC PLANT IN SERV",3913000,"OFFICE EQUIPMENT","UT",8.0665600000000008,{"$f":"IF(OR(tblGPJune19[[#This Row],[Alloc]]=\"IDU\",tblGPJune19[[#This Row],[Alloc]]=\"OR\",tblGPJune19[[#This Row],[Alloc]]=\"UT\",tblGPJune19[[#This Row],[Alloc]]=\"WYU\",tblGPJune19[[#This Row],[Alloc]]=\"WYP\",tblGPJune19[[#This Row],[Alloc]]=\"CA\",tblGPJune19[[#This Row],[Alloc]]=\"WA\"),\"SITUS\",tblGPJune19[[#This Row],[Alloc]])","v":"SITUS"},{"$f":"INDEX(tblGPLookup[FUNC],MATCH(tblGPJune19[[#This Row],[Concat]],tblGPLookup[Concat],0))","v":"DPW"},{"$f":"IF(tblGPJune19[[#This Row],[Total ($000)]]=0,\"NO\",IF(ISNA(tblGPJune19[[#This Row],[FUNC]]),\"YES\",IF(_xlfn.ISFORMULA(tblGPJune19[[#This Row],[FUNC]]),\"NO\",\"YES\")))","v":"NO"}]
[{"$f":"CONCATENATE(tblGPJune19[[#This Row],[Primary Account]],tblGPJune19[[#This Row],[Primary Name]],tblGPJune19[[#This Row],[Secondary Acct]],tblGPJune19[[#This Row],[Secondary  Name]],tblGPJune19[[#This Row],[Alloc4FUNC]])","v":"1010000ELEC PLANT IN SERV3913000OFFICE EQUIPMENTSITUS"},1010000,"ELEC PLANT IN SERV",3913000,"OFFICE EQUIPMENT","WYP",2.1650100000000001,{"$f":"IF(OR(tblGPJune19[[#This Row],[Alloc]]=\"IDU\",tblGPJune19[[#This Row],[Alloc]]=\"OR\",tblGPJune19[[#This Row],[Alloc]]=\"UT\",tblGPJune19[[#This Row],[Alloc]]=\"WYU\",tblGPJune19[[#This Row],[Alloc]]=\"WYP\",tblGPJune19[[#This Row],[Alloc]]=\"CA\",tblGPJune19[[#This Row],[Alloc]]=\"WA\"),\"SITUS\",tblGPJune19[[#This Row],[Alloc]])","v":"SITUS"},{"$f":"INDEX(tblGPLookup[FUNC],MATCH(tblGPJune19[[#This Row],[Concat]],tblGPLookup[Concat],0))","v":"DPW"},{"$f":"IF(tblGPJune19[[#This Row],[Total ($000)]]=0,\"NO\",IF(ISNA(tblGPJune19[[#This Row],[FUNC]]),\"YES\",IF(_xlfn.ISFORMULA(tblGPJune19[[#This Row],[FUNC]]),\"NO\",\"YES\")))","v":"NO"}]
[{"$f":"CONCATENATE(tblGPJune19[[#This Row],[Primary Account]],tblGPJune19[[#This Row],[Primary Name]],tblGPJune19[[#This Row],[Secondary Acct]],tblGPJune19[[#This Row],[Secondary  Name]],tblGPJune19[[#This Row],[Alloc4FUNC]])","v":"1010000ELEC PLANT IN SERV3913000OFFICE EQUIPMENTSITUS"},1010000,"ELEC PLANT IN SERV",3913000,"OFFICE EQUIPMENT","WYU",8.2157300000000006,{"$f":"IF(OR(tblGPJune19[[#This Row],[Alloc]]=\"IDU\",tblGPJune19[[#This Row],[Alloc]]=\"OR\",tblGPJune19[[#This Row],[Alloc]]=\"UT\",tblGPJune19[[#This Row],[Alloc]]=\"WYU\",tblGPJune19[[#This Row],[Alloc]]=\"WYP\",tblGPJune19[[#This Row],[Alloc]]=\"CA\",tblGPJune19[[#This Row],[Alloc]]=\"WA\"),\"SITUS\",tblGPJune19[[#This Row],[Alloc]])","v":"SITUS"},{"$f":"INDEX(tblGPLookup[FUNC],MATCH(tblGPJune19[[#This Row],[Concat]],tblGPLookup[Concat],0))","v":"DPW"},{"$f":"IF(tblGPJune19[[#This Row],[Total ($000)]]=0,\"NO\",IF(ISNA(tblGPJune19[[#This Row],[FUNC]]),\"YES\",IF(_xlfn.ISFORMULA(tblGPJune19[[#This Row],[FUNC]]),\"NO\",\"YES\")))","v":"NO"}]
[{"$f":"CONCATENATE(tblGPJune19[[#This Row],[Primary Account]],tblGPJune19[[#This Row],[Primary Name]],tblGPJune19[[#This Row],[Secondary Acct]],tblGPJune19[[#This Row],[Secondary  Name]],tblGPJune19[[#This Row],[Alloc4FUNC]])","v":"1010000ELEC PLANT IN SERV39201001/4 TON MINI-PICKUPS AND VANSSITUS"},1010000,"ELEC PLANT IN SERV",3920100,"1/4 TON MINI-PICKUPS AND VANS","IDU",242.27957615384599,{"$f":"IF(OR(tblGPJune19[[#This Row],[Alloc]]=\"IDU\",tblGPJune19[[#This Row],[Alloc]]=\"OR\",tblGPJune19[[#This Row],[Alloc]]=\"UT\",tblGPJune19[[#This Row],[Alloc]]=\"WYU\",tblGPJune19[[#This Row],[Alloc]]=\"WYP\",tblGPJune19[[#This Row],[Alloc]]=\"CA\",tblGPJune19[[#This Row],[Alloc]]=\"WA\"),\"SITUS\",tblGPJune19[[#This Row],[Alloc]])","v":"SITUS"},{"$f":"INDEX(tblGPLookup[FUNC],MATCH(tblGPJune19[[#This Row],[Concat]],tblGPLookup[Concat],0))","v":"DPW"},{"$f":"IF(tblGPJune19[[#This Row],[Total ($000)]]=0,\"NO\",IF(ISNA(tblGPJune19[[#This Row],[FUNC]]),\"YES\",IF(_xlfn.ISFORMULA(tblGPJune19[[#This Row],[FUNC]]),\"NO\",\"YES\")))","v":"NO"}]
[{"$f":"CONCATENATE(tblGPJune19[[#This Row],[Primary Account]],tblGPJune19[[#This Row],[Primary Name]],tblGPJune19[[#This Row],[Secondary Acct]],tblGPJune19[[#This Row],[Secondary  Name]],tblGPJune19[[#This Row],[Alloc4FUNC]])","v":"1010000ELEC PLANT IN SERV39201001/4 TON MINI-PICKUPS AND VANSSITUS"},1010000,"ELEC PLANT IN SERV",3920100,"1/4 TON MINI-PICKUPS AND VANS","OR",1963.16820769231,{"$f":"IF(OR(tblGPJune19[[#This Row],[Alloc]]=\"IDU\",tblGPJune19[[#This Row],[Alloc]]=\"OR\",tblGPJune19[[#This Row],[Alloc]]=\"UT\",tblGPJune19[[#This Row],[Alloc]]=\"WYU\",tblGPJune19[[#This Row],[Alloc]]=\"WYP\",tblGPJune19[[#This Row],[Alloc]]=\"CA\",tblGPJune19[[#This Row],[Alloc]]=\"WA\"),\"SITUS\",tblGPJune19[[#This Row],[Alloc]])","v":"SITUS"},{"$f":"INDEX(tblGPLookup[FUNC],MATCH(tblGPJune19[[#This Row],[Concat]],tblGPLookup[Concat],0))","v":"DPW"},{"$f":"IF(tblGPJune19[[#This Row],[Total ($000)]]=0,\"NO\",IF(ISNA(tblGPJune19[[#This Row],[FUNC]]),\"YES\",IF(_xlfn.ISFORMULA(tblGPJune19[[#This Row],[FUNC]]),\"NO\",\"YES\")))","v":"NO"}]
[{"$f":"CONCATENATE(tblGPJune19[[#This Row],[Primary Account]],tblGPJune19[[#This Row],[Primary Name]],tblGPJune19[[#This Row],[Secondary Acct]],tblGPJune19[[#This Row],[Secondary  Name]],tblGPJune19[[#This Row],[Alloc4FUNC]])","v":"1010000ELEC PLANT IN SERV39201001/4 TON MINI-PICKUPS AND VANSSE"},1010000,"ELEC PLANT IN SERV",3920100,"1/4 TON MINI-PICKUPS AND VANS","SE",79.245725384615398,{"$f":"IF(OR(tblGPJune19[[#This Row],[Alloc]]=\"IDU\",tblGPJune19[[#This Row],[Alloc]]=\"OR\",tblGPJune19[[#This Row],[Alloc]]=\"UT\",tblGPJune19[[#This Row],[Alloc]]=\"WYU\",tblGPJune19[[#This Row],[Alloc]]=\"WYP\",tblGPJune19[[#This Row],[Alloc]]=\"CA\",tblGPJune19[[#This Row],[Alloc]]=\"WA\"),\"SITUS\",tblGPJune19[[#This Row],[Alloc]])","v":"SE"},{"$f":"INDEX(tblGPLookup[FUNC],MATCH(tblGPJune19[[#This Row],[Concat]],tblGPLookup[Concat],0))","v":"P"},{"$f":"IF(tblGPJune19[[#This Row],[Total ($000)]]=0,\"NO\",IF(ISNA(tblGPJune19[[#This Row],[FUNC]]),\"YES\",IF(_xlfn.ISFORMULA(tblGPJune19[[#This Row],[FUNC]]),\"NO\",\"YES\")))","v":"NO"}]
[{"$f":"CONCATENATE(tblGPJune19[[#This Row],[Primary Account]],tblGPJune19[[#This Row],[Primary Name]],tblGPJune19[[#This Row],[Secondary Acct]],tblGPJune19[[#This Row],[Secondary  Name]],tblGPJune19[[#This Row],[Alloc4FUNC]])","v":"1010000ELEC PLANT IN SERV39201001/4 TON MINI-PICKUPS AND VANSSG"},1010000,"ELEC PLANT IN SERV",3920100,"1/4 TON MINI-PICKUPS AND VANS","SG",457.41759461538498,{"$f":"IF(OR(tblGPJune19[[#This Row],[Alloc]]=\"IDU\",tblGPJune19[[#This Row],[Alloc]]=\"OR\",tblGPJune19[[#This Row],[Alloc]]=\"UT\",tblGPJune19[[#This Row],[Alloc]]=\"WYU\",tblGPJune19[[#This Row],[Alloc]]=\"WYP\",tblGPJune19[[#This Row],[Alloc]]=\"CA\",tblGPJune19[[#This Row],[Alloc]]=\"WA\"),\"SITUS\",tblGPJune19[[#This Row],[Alloc]])","v":"SG"},{"$f":"INDEX(tblGPLookup[FUNC],MATCH(tblGPJune19[[#This Row],[Concat]],tblGPLookup[Concat],0))","v":"P"},{"$f":"IF(tblGPJune19[[#This Row],[Total ($000)]]=0,\"NO\",IF(ISNA(tblGPJune19[[#This Row],[FUNC]]),\"YES\",IF(_xlfn.ISFORMULA(tblGPJune19[[#This Row],[FUNC]]),\"NO\",\"YES\")))","v":"NO"}]
[{"$f":"CONCATENATE(tblGPJune19[[#This Row],[Primary Account]],tblGPJune19[[#This Row],[Primary Name]],tblGPJune19[[#This Row],[Secondary Acct]],tblGPJune19[[#This Row],[Secondary  Name]],tblGPJune19[[#This Row],[Alloc4FUNC]])","v":"1010000ELEC PLANT IN SERV39201001/4 TON MINI-PICKUPS AND VANSSITUS"},1010000,"ELEC PLANT IN SERV",3920100,"1/4 TON MINI-PICKUPS AND VANS","CA",53.232839230769201,{"$f":"IF(OR(tblGPJune19[[#This Row],[Alloc]]=\"IDU\",tblGPJune19[[#This Row],[Alloc]]=\"OR\",tblGPJune19[[#This Row],[Alloc]]=\"UT\",tblGPJune19[[#This Row],[Alloc]]=\"WYU\",tblGPJune19[[#This Row],[Alloc]]=\"WYP\",tblGPJune19[[#This Row],[Alloc]]=\"CA\",tblGPJune19[[#This Row],[Alloc]]=\"WA\"),\"SITUS\",tblGPJune19[[#This Row],[Alloc]])","v":"SITUS"},{"$f":"INDEX(tblGPLookup[FUNC],MATCH(tblGPJune19[[#This Row],[Concat]],tblGPLookup[Concat],0))","v":"DPW"},{"$f":"IF(tblGPJune19[[#This Row],[Total ($000)]]=0,\"NO\",IF(ISNA(tblGPJune19[[#This Row],[FUNC]]),\"YES\",IF(_xlfn.ISFORMULA(tblGPJune19[[#This Row],[FUNC]]),\"NO\",\"YES\")))","v":"NO"}]
[{"$f":"CONCATENATE(tblGPJune19[[#This Row],[Primary Account]],tblGPJune19[[#This Row],[Primary Name]],tblGPJune19[[#This Row],[Secondary Acct]],tblGPJune19[[#This Row],[Secondary  Name]],tblGPJune19[[#This Row],[Alloc4FUNC]])","v":"1010000ELEC PLANT IN SERV39201001/4 TON MINI-PICKUPS AND VANSSO"},1010000,"ELEC PLANT IN SERV",3920100,"1/4 TON MINI-PICKUPS AND VANS","SO",815.96673307692299,{"$f":"IF(OR(tblGPJune19[[#This Row],[Alloc]]=\"IDU\",tblGPJune19[[#This Row],[Alloc]]=\"OR\",tblGPJune19[[#This Row],[Alloc]]=\"UT\",tblGPJune19[[#This Row],[Alloc]]=\"WYU\",tblGPJune19[[#This Row],[Alloc]]=\"WYP\",tblGPJune19[[#This Row],[Alloc]]=\"CA\",tblGPJune19[[#This Row],[Alloc]]=\"WA\"),\"SITUS\",tblGPJune19[[#This Row],[Alloc]])","v":"SO"},{"$f":"INDEX(tblGPLookup[FUNC],MATCH(tblGPJune19[[#This Row],[Concat]],tblGPLookup[Concat],0))","v":"PTD"},{"$f":"IF(tblGPJune19[[#This Row],[Total ($000)]]=0,\"NO\",IF(ISNA(tblGPJune19[[#This Row],[FUNC]]),\"YES\",IF(_xlfn.ISFORMULA(tblGPJune19[[#This Row],[FUNC]]),\"NO\",\"YES\")))","v":"NO"}]
[{"$f":"CONCATENATE(tblGPJune19[[#This Row],[Primary Account]],tblGPJune19[[#This Row],[Primary Name]],tblGPJune19[[#This Row],[Secondary Acct]],tblGPJune19[[#This Row],[Secondary  Name]],tblGPJune19[[#This Row],[Alloc4FUNC]])","v":"1010000ELEC PLANT IN SERV39201001/4 TON MINI-PICKUPS AND VANSSITUS"},1010000,"ELEC PLANT IN SERV",3920100,"1/4 TON MINI-PICKUPS AND VANS","UT",2591.10624615385,{"$f":"IF(OR(tblGPJune19[[#This Row],[Alloc]]=\"IDU\",tblGPJune19[[#This Row],[Alloc]]=\"OR\",tblGPJune19[[#This Row],[Alloc]]=\"UT\",tblGPJune19[[#This Row],[Alloc]]=\"WYU\",tblGPJune19[[#This Row],[Alloc]]=\"WYP\",tblGPJune19[[#This Row],[Alloc]]=\"CA\",tblGPJune19[[#This Row],[Alloc]]=\"WA\"),\"SITUS\",tblGPJune19[[#This Row],[Alloc]])","v":"SITUS"},{"$f":"INDEX(tblGPLookup[FUNC],MATCH(tblGPJune19[[#This Row],[Concat]],tblGPLookup[Concat],0))","v":"DPW"},{"$f":"IF(tblGPJune19[[#This Row],[Total ($000)]]=0,\"NO\",IF(ISNA(tblGPJune19[[#This Row],[FUNC]]),\"YES\",IF(_xlfn.ISFORMULA(tblGPJune19[[#This Row],[FUNC]]),\"NO\",\"YES\")))","v":"NO"}]
[{"$f":"CONCATENATE(tblGPJune19[[#This Row],[Primary Account]],tblGPJune19[[#This Row],[Primary Name]],tblGPJune19[[#This Row],[Secondary Acct]],tblGPJune19[[#This Row],[Secondary  Name]],tblGPJune19[[#This Row],[Alloc4FUNC]])","v":"1010000ELEC PLANT IN SERV39201001/4 TON MINI-PICKUPS AND VANSSITUS"},1010000,"ELEC PLANT IN SERV",3920100,"1/4 TON MINI-PICKUPS AND VANS","WA",216.55738461538499,{"$f":"IF(OR(tblGPJune19[[#This Row],[Alloc]]=\"IDU\",tblGPJune19[[#This Row],[Alloc]]=\"OR\",tblGPJune19[[#This Row],[Alloc]]=\"UT\",tblGPJune19[[#This Row],[Alloc]]=\"WYU\",tblGPJune19[[#This Row],[Alloc]]=\"WYP\",tblGPJune19[[#This Row],[Alloc]]=\"CA\",tblGPJune19[[#This Row],[Alloc]]=\"WA\"),\"SITUS\",tblGPJune19[[#This Row],[Alloc]])","v":"SITUS"},{"$f":"INDEX(tblGPLookup[FUNC],MATCH(tblGPJune19[[#This Row],[Concat]],tblGPLookup[Concat],0))","v":"DPW"},{"$f":"IF(tblGPJune19[[#This Row],[Total ($000)]]=0,\"NO\",IF(ISNA(tblGPJune19[[#This Row],[FUNC]]),\"YES\",IF(_xlfn.ISFORMULA(tblGPJune19[[#This Row],[FUNC]]),\"NO\",\"YES\")))","v":"NO"}]
[{"$f":"CONCATENATE(tblGPJune19[[#This Row],[Primary Account]],tblGPJune19[[#This Row],[Primary Name]],tblGPJune19[[#This Row],[Secondary Acct]],tblGPJune19[[#This Row],[Secondary  Name]],tblGPJune19[[#This Row],[Alloc4FUNC]])","v":"1010000ELEC PLANT IN SERV39201001/4 TON MINI-PICKUPS AND VANSSITUS"},1010000,"ELEC PLANT IN SERV",3920100,"1/4 TON MINI-PICKUPS AND VANS","WYP",390.90584153846203,{"$f":"IF(OR(tblGPJune19[[#This Row],[Alloc]]=\"IDU\",tblGPJune19[[#This Row],[Alloc]]=\"OR\",tblGPJune19[[#This Row],[Alloc]]=\"UT\",tblGPJune19[[#This Row],[Alloc]]=\"WYU\",tblGPJune19[[#This Row],[Alloc]]=\"WYP\",tblGPJune19[[#This Row],[Alloc]]=\"CA\",tblGPJune19[[#This Row],[Alloc]]=\"WA\"),\"SITUS\",tblGPJune19[[#This Row],[Alloc]])","v":"SITUS"},{"$f":"INDEX(tblGPLookup[FUNC],MATCH(tblGPJune19[[#This Row],[Concat]],tblGPLookup[Concat],0))","v":"DPW"},{"$f":"IF(tblGPJune19[[#This Row],[Total ($000)]]=0,\"NO\",IF(ISNA(tblGPJune19[[#This Row],[FUNC]]),\"YES\",IF(_xlfn.ISFORMULA(tblGPJune19[[#This Row],[FUNC]]),\"NO\",\"YES\")))","v":"NO"}]
[{"$f":"CONCATENATE(tblGPJune19[[#This Row],[Primary Account]],tblGPJune19[[#This Row],[Primary Name]],tblGPJune19[[#This Row],[Secondary Acct]],tblGPJune19[[#This Row],[Secondary  Name]],tblGPJune19[[#This Row],[Alloc4FUNC]])","v":"1010000ELEC PLANT IN SERV39201001/4 TON MINI-PICKUPS AND VANSSITUS"},1010000,"ELEC PLANT IN SERV",3920100,"1/4 TON MINI-PICKUPS AND VANS","WYU",0,{"$f":"IF(OR(tblGPJune19[[#This Row],[Alloc]]=\"IDU\",tblGPJune19[[#This Row],[Alloc]]=\"OR\",tblGPJune19[[#This Row],[Alloc]]=\"UT\",tblGPJune19[[#This Row],[Alloc]]=\"WYU\",tblGPJune19[[#This Row],[Alloc]]=\"WYP\",tblGPJune19[[#This Row],[Alloc]]=\"CA\",tblGPJune19[[#This Row],[Alloc]]=\"WA\"),\"SITUS\",tblGPJune19[[#This Row],[Alloc]])","v":"SITUS"},{"$f":"INDEX(tblGPLookup[FUNC],MATCH(tblGPJune19[[#This Row],[Concat]],tblGPLookup[Concat],0))","v":"DPW"},{"$f":"IF(tblGPJune19[[#This Row],[Total ($000)]]=0,\"NO\",IF(ISNA(tblGPJune19[[#This Row],[FUNC]]),\"YES\",IF(_xlfn.ISFORMULA(tblGPJune19[[#This Row],[FUNC]]),\"NO\",\"YES\")))","v":"NO"}]
[{"$f":"CONCATENATE(tblGPJune19[[#This Row],[Primary Account]],tblGPJune19[[#This Row],[Primary Name]],tblGPJune19[[#This Row],[Secondary Acct]],tblGPJune19[[#This Row],[Secondary  Name]],tblGPJune19[[#This Row],[Alloc4FUNC]])","v":"1010000ELEC PLANT IN SERV3920200MID AND FULL SIZE AUTOMOBILESSITUS"},1010000,"ELEC PLANT IN SERV",3920200,"MID AND FULL SIZE AUTOMOBILES","OR",77.894652307692297,{"$f":"IF(OR(tblGPJune19[[#This Row],[Alloc]]=\"IDU\",tblGPJune19[[#This Row],[Alloc]]=\"OR\",tblGPJune19[[#This Row],[Alloc]]=\"UT\",tblGPJune19[[#This Row],[Alloc]]=\"WYU\",tblGPJune19[[#This Row],[Alloc]]=\"WYP\",tblGPJune19[[#This Row],[Alloc]]=\"CA\",tblGPJune19[[#This Row],[Alloc]]=\"WA\"),\"SITUS\",tblGPJune19[[#This Row],[Alloc]])","v":"SITUS"},{"$f":"INDEX(tblGPLookup[FUNC],MATCH(tblGPJune19[[#This Row],[Concat]],tblGPLookup[Concat],0))","v":"DPW"},{"$f":"IF(tblGPJune19[[#This Row],[Total ($000)]]=0,\"NO\",IF(ISNA(tblGPJune19[[#This Row],[FUNC]]),\"YES\",IF(_xlfn.ISFORMULA(tblGPJune19[[#This Row],[FUNC]]),\"NO\",\"YES\")))","v":"NO"}]
[{"$f":"CONCATENATE(tblGPJune19[[#This Row],[Primary Account]],tblGPJune19[[#This Row],[Primary Name]],tblGPJune19[[#This Row],[Secondary Acct]],tblGPJune19[[#This Row],[Secondary  Name]],tblGPJune19[[#This Row],[Alloc4FUNC]])","v":"1010000ELEC PLANT IN SERV3920200MID AND FULL SIZE AUTOMOBILESSG"},1010000,"ELEC PLANT IN SERV",3920200,"MID AND FULL SIZE AUTOMOBILES","SG",42.935020769230803,{"$f":"IF(OR(tblGPJune19[[#This Row],[Alloc]]=\"IDU\",tblGPJune19[[#This Row],[Alloc]]=\"OR\",tblGPJune19[[#This Row],[Alloc]]=\"UT\",tblGPJune19[[#This Row],[Alloc]]=\"WYU\",tblGPJune19[[#This Row],[Alloc]]=\"WYP\",tblGPJune19[[#This Row],[Alloc]]=\"CA\",tblGPJune19[[#This Row],[Alloc]]=\"WA\"),\"SITUS\",tblGPJune19[[#This Row],[Alloc]])","v":"SG"},{"$f":"INDEX(tblGPLookup[FUNC],MATCH(tblGPJune19[[#This Row],[Concat]],tblGPLookup[Concat],0))","v":"P"},{"$f":"IF(tblGPJune19[[#This Row],[Total ($000)]]=0,\"NO\",IF(ISNA(tblGPJune19[[#This Row],[FUNC]]),\"YES\",IF(_xlfn.ISFORMULA(tblGPJune19[[#This Row],[FUNC]]),\"NO\",\"YES\")))","v":"NO"}]
[{"$f":"CONCATENATE(tblGPJune19[[#This Row],[Primary Account]],tblGPJune19[[#This Row],[Primary Name]],tblGPJune19[[#This Row],[Secondary Acct]],tblGPJune19[[#This Row],[Secondary  Name]],tblGPJune19[[#This Row],[Alloc4FUNC]])","v":"1010000ELEC PLANT IN SERV3920200MID AND FULL SIZE AUTOMOBILESSO"},1010000,"ELEC PLANT IN SERV",3920200,"MID AND FULL SIZE AUTOMOBILES","SO",124.76528999999999,{"$f":"IF(OR(tblGPJune19[[#This Row],[Alloc]]=\"IDU\",tblGPJune19[[#This Row],[Alloc]]=\"OR\",tblGPJune19[[#This Row],[Alloc]]=\"UT\",tblGPJune19[[#This Row],[Alloc]]=\"WYU\",tblGPJune19[[#This Row],[Alloc]]=\"WYP\",tblGPJune19[[#This Row],[Alloc]]=\"CA\",tblGPJune19[[#This Row],[Alloc]]=\"WA\"),\"SITUS\",tblGPJune19[[#This Row],[Alloc]])","v":"SO"},{"$f":"INDEX(tblGPLookup[FUNC],MATCH(tblGPJune19[[#This Row],[Concat]],tblGPLookup[Concat],0))","v":"PTD"},{"$f":"IF(tblGPJune19[[#This Row],[Total ($000)]]=0,\"NO\",IF(ISNA(tblGPJune19[[#This Row],[FUNC]]),\"YES\",IF(_xlfn.ISFORMULA(tblGPJune19[[#This Row],[FUNC]]),\"NO\",\"YES\")))","v":"NO"}]
[{"$f":"CONCATENATE(tblGPJune19[[#This Row],[Primary Account]],tblGPJune19[[#This Row],[Primary Name]],tblGPJune19[[#This Row],[Secondary Acct]],tblGPJune19[[#This Row],[Secondary  Name]],tblGPJune19[[#This Row],[Alloc4FUNC]])","v":"1010000ELEC PLANT IN SERV3920200MID AND FULL SIZE AUTOMOBILESSITUS"},1010000,"ELEC PLANT IN SERV",3920200,"MID AND FULL SIZE AUTOMOBILES","UT",281.16644000000002,{"$f":"IF(OR(tblGPJune19[[#This Row],[Alloc]]=\"IDU\",tblGPJune19[[#This Row],[Alloc]]=\"OR\",tblGPJune19[[#This Row],[Alloc]]=\"UT\",tblGPJune19[[#This Row],[Alloc]]=\"WYU\",tblGPJune19[[#This Row],[Alloc]]=\"WYP\",tblGPJune19[[#This Row],[Alloc]]=\"CA\",tblGPJune19[[#This Row],[Alloc]]=\"WA\"),\"SITUS\",tblGPJune19[[#This Row],[Alloc]])","v":"SITUS"},{"$f":"INDEX(tblGPLookup[FUNC],MATCH(tblGPJune19[[#This Row],[Concat]],tblGPLookup[Concat],0))","v":"DPW"},{"$f":"IF(tblGPJune19[[#This Row],[Total ($000)]]=0,\"NO\",IF(ISNA(tblGPJune19[[#This Row],[FUNC]]),\"YES\",IF(_xlfn.ISFORMULA(tblGPJune19[[#This Row],[FUNC]]),\"NO\",\"YES\")))","v":"NO"}]
[{"$f":"CONCATENATE(tblGPJune19[[#This Row],[Primary Account]],tblGPJune19[[#This Row],[Primary Name]],tblGPJune19[[#This Row],[Secondary Acct]],tblGPJune19[[#This Row],[Secondary  Name]],tblGPJune19[[#This Row],[Alloc4FUNC]])","v":"1010000ELEC PLANT IN SERV3920200MID AND FULL SIZE AUTOMOBILESSITUS"},1010000,"ELEC PLANT IN SERV",3920200,"MID AND FULL SIZE AUTOMOBILES","WA",32.925189230769199,{"$f":"IF(OR(tblGPJune19[[#This Row],[Alloc]]=\"IDU\",tblGPJune19[[#This Row],[Alloc]]=\"OR\",tblGPJune19[[#This Row],[Alloc]]=\"UT\",tblGPJune19[[#This Row],[Alloc]]=\"WYU\",tblGPJune19[[#This Row],[Alloc]]=\"WYP\",tblGPJune19[[#This Row],[Alloc]]=\"CA\",tblGPJune19[[#This Row],[Alloc]]=\"WA\"),\"SITUS\",tblGPJune19[[#This Row],[Alloc]])","v":"SITUS"},{"$f":"INDEX(tblGPLookup[FUNC],MATCH(tblGPJune19[[#This Row],[Concat]],tblGPLookup[Concat],0))","v":"DPW"},{"$f":"IF(tblGPJune19[[#This Row],[Total ($000)]]=0,\"NO\",IF(ISNA(tblGPJune19[[#This Row],[FUNC]]),\"YES\",IF(_xlfn.ISFORMULA(tblGPJune19[[#This Row],[FUNC]]),\"NO\",\"YES\")))","v":"NO"}]
[{"$f":"CONCATENATE(tblGPJune19[[#This Row],[Primary Account]],tblGPJune19[[#This Row],[Primary Name]],tblGPJune19[[#This Row],[Secondary Acct]],tblGPJune19[[#This Row],[Secondary  Name]],tblGPJune19[[#This Row],[Alloc4FUNC]])","v":"1010000ELEC PLANT IN SERV3920200MID AND FULL SIZE AUTOMOBILESSITUS"},1010000,"ELEC PLANT IN SERV",3920200,"MID AND FULL SIZE AUTOMOBILES","WYP",40.503909999999998,{"$f":"IF(OR(tblGPJune19[[#This Row],[Alloc]]=\"IDU\",tblGPJune19[[#This Row],[Alloc]]=\"OR\",tblGPJune19[[#This Row],[Alloc]]=\"UT\",tblGPJune19[[#This Row],[Alloc]]=\"WYU\",tblGPJune19[[#This Row],[Alloc]]=\"WYP\",tblGPJune19[[#This Row],[Alloc]]=\"CA\",tblGPJune19[[#This Row],[Alloc]]=\"WA\"),\"SITUS\",tblGPJune19[[#This Row],[Alloc]])","v":"SITUS"},{"$f":"INDEX(tblGPLookup[FUNC],MATCH(tblGPJune19[[#This Row],[Concat]],tblGPLookup[Concat],0))","v":"DPW"},{"$f":"IF(tblGPJune19[[#This Row],[Total ($000)]]=0,\"NO\",IF(ISNA(tblGPJune19[[#This Row],[FUNC]]),\"YES\",IF(_xlfn.ISFORMULA(tblGPJune19[[#This Row],[FUNC]]),\"NO\",\"YES\")))","v":"NO"}]
[{"$f":"CONCATENATE(tblGPJune19[[#This Row],[Primary Account]],tblGPJune19[[#This Row],[Primary Name]],tblGPJune19[[#This Row],[Secondary Acct]],tblGPJune19[[#This Row],[Secondary  Name]],tblGPJune19[[#This Row],[Alloc4FUNC]])","v":"1010000ELEC PLANT IN SERV3920400\"1/2 & 3/4 TON PICKUPS, VANS, SERV TRUCKSITUS"},1010000,"ELEC PLANT IN SERV",3920400,"\"1/2 & 3/4 TON PICKUPS, VANS, SERV TRUCK","IDU",1605.05446076923,{"$f":"IF(OR(tblGPJune19[[#This Row],[Alloc]]=\"IDU\",tblGPJune19[[#This Row],[Alloc]]=\"OR\",tblGPJune19[[#This Row],[Alloc]]=\"UT\",tblGPJune19[[#This Row],[Alloc]]=\"WYU\",tblGPJune19[[#This Row],[Alloc]]=\"WYP\",tblGPJune19[[#This Row],[Alloc]]=\"CA\",tblGPJune19[[#This Row],[Alloc]]=\"WA\"),\"SITUS\",tblGPJune19[[#This Row],[Alloc]])","v":"SITUS"},{"$f":"INDEX(tblGPLookup[FUNC],MATCH(tblGPJune19[[#This Row],[Concat]],tblGPLookup[Concat],0))","v":"DPW"},{"$f":"IF(tblGPJune19[[#This Row],[Total ($000)]]=0,\"NO\",IF(ISNA(tblGPJune19[[#This Row],[FUNC]]),\"YES\",IF(_xlfn.ISFORMULA(tblGPJune19[[#This Row],[FUNC]]),\"NO\",\"YES\")))","v":"NO"}]
[{"$f":"CONCATENATE(tblGPJune19[[#This Row],[Primary Account]],tblGPJune19[[#This Row],[Primary Name]],tblGPJune19[[#This Row],[Secondary Acct]],tblGPJune19[[#This Row],[Secondary  Name]],tblGPJune19[[#This Row],[Alloc4FUNC]])","v":"1010000ELEC PLANT IN SERV3920400\"1/2 & 3/4 TON PICKUPS, VANS, SERV TRUCKSITUS"},1010000,"ELEC PLANT IN SERV",3920400,"\"1/2 & 3/4 TON PICKUPS, VANS, SERV TRUCK","OR",6469.7284784615404,{"$f":"IF(OR(tblGPJune19[[#This Row],[Alloc]]=\"IDU\",tblGPJune19[[#This Row],[Alloc]]=\"OR\",tblGPJune19[[#This Row],[Alloc]]=\"UT\",tblGPJune19[[#This Row],[Alloc]]=\"WYU\",tblGPJune19[[#This Row],[Alloc]]=\"WYP\",tblGPJune19[[#This Row],[Alloc]]=\"CA\",tblGPJune19[[#This Row],[Alloc]]=\"WA\"),\"SITUS\",tblGPJune19[[#This Row],[Alloc]])","v":"SITUS"},{"$f":"INDEX(tblGPLookup[FUNC],MATCH(tblGPJune19[[#This Row],[Concat]],tblGPLookup[Concat],0))","v":"DPW"},{"$f":"IF(tblGPJune19[[#This Row],[Total ($000)]]=0,\"NO\",IF(ISNA(tblGPJune19[[#This Row],[FUNC]]),\"YES\",IF(_xlfn.ISFORMULA(tblGPJune19[[#This Row],[FUNC]]),\"NO\",\"YES\")))","v":"NO"}]
[{"$f":"CONCATENATE(tblGPJune19[[#This Row],[Primary Account]],tblGPJune19[[#This Row],[Primary Name]],tblGPJune19[[#This Row],[Secondary Acct]],tblGPJune19[[#This Row],[Secondary  Name]],tblGPJune19[[#This Row],[Alloc4FUNC]])","v":"1010000ELEC PLANT IN SERV3920400\"1/2 & 3/4 TON PICKUPS, VANS, SERV TRUCKSE"},1010000,"ELEC PLANT IN SERV",3920400,"\"1/2 & 3/4 TON PICKUPS, VANS, SERV TRUCK","SE",169.77215000000001,{"$f":"IF(OR(tblGPJune19[[#This Row],[Alloc]]=\"IDU\",tblGPJune19[[#This Row],[Alloc]]=\"OR\",tblGPJune19[[#This Row],[Alloc]]=\"UT\",tblGPJune19[[#This Row],[Alloc]]=\"WYU\",tblGPJune19[[#This Row],[Alloc]]=\"WYP\",tblGPJune19[[#This Row],[Alloc]]=\"CA\",tblGPJune19[[#This Row],[Alloc]]=\"WA\"),\"SITUS\",tblGPJune19[[#This Row],[Alloc]])","v":"SE"},{"$f":"INDEX(tblGPLookup[FUNC],MATCH(tblGPJune19[[#This Row],[Concat]],tblGPLookup[Concat],0))","v":"P"},{"$f":"IF(tblGPJune19[[#This Row],[Total ($000)]]=0,\"NO\",IF(ISNA(tblGPJune19[[#This Row],[FUNC]]),\"YES\",IF(_xlfn.ISFORMULA(tblGPJune19[[#This Row],[FUNC]]),\"NO\",\"YES\")))","v":"NO"}]
[{"$f":"CONCATENATE(tblGPJune19[[#This Row],[Primary Account]],tblGPJune19[[#This Row],[Primary Name]],tblGPJune19[[#This Row],[Secondary Acct]],tblGPJune19[[#This Row],[Secondary  Name]],tblGPJune19[[#This Row],[Alloc4FUNC]])","v":"1010000ELEC PLANT IN SERV3920400\"1/2 & 3/4 TON PICKUPS, VANS, SERV TRUCKSG"},1010000,"ELEC PLANT IN SERV",3920400,"\"1/2 & 3/4 TON PICKUPS, VANS, SERV TRUCK","SG",8001.3084530769202,{"$f":"IF(OR(tblGPJune19[[#This Row],[Alloc]]=\"IDU\",tblGPJune19[[#This Row],[Alloc]]=\"OR\",tblGPJune19[[#This Row],[Alloc]]=\"UT\",tblGPJune19[[#This Row],[Alloc]]=\"WYU\",tblGPJune19[[#This Row],[Alloc]]=\"WYP\",tblGPJune19[[#This Row],[Alloc]]=\"CA\",tblGPJune19[[#This Row],[Alloc]]=\"WA\"),\"SITUS\",tblGPJune19[[#This Row],[Alloc]])","v":"SG"},{"$f":"INDEX(tblGPLookup[FUNC],MATCH(tblGPJune19[[#This Row],[Concat]],tblGPLookup[Concat],0))","v":"P"},{"$f":"IF(tblGPJune19[[#This Row],[Total ($000)]]=0,\"NO\",IF(ISNA(tblGPJune19[[#This Row],[FUNC]]),\"YES\",IF(_xlfn.ISFORMULA(tblGPJune19[[#This Row],[FUNC]]),\"NO\",\"YES\")))","v":"NO"}]
[{"$f":"CONCATENATE(tblGPJune19[[#This Row],[Primary Account]],tblGPJune19[[#This Row],[Primary Name]],tblGPJune19[[#This Row],[Secondary Acct]],tblGPJune19[[#This Row],[Secondary  Name]],tblGPJune19[[#This Row],[Alloc4FUNC]])","v":"1010000ELEC PLANT IN SERV3920400\"1/2 & 3/4 TON PICKUPS, VANS, SERV TRUCKSITUS"},1010000,"ELEC PLANT IN SERV",3920400,"\"1/2 & 3/4 TON PICKUPS, VANS, SERV TRUCK","CA",525.41585153846199,{"$f":"IF(OR(tblGPJune19[[#This Row],[Alloc]]=\"IDU\",tblGPJune19[[#This Row],[Alloc]]=\"OR\",tblGPJune19[[#This Row],[Alloc]]=\"UT\",tblGPJune19[[#This Row],[Alloc]]=\"WYU\",tblGPJune19[[#This Row],[Alloc]]=\"WYP\",tblGPJune19[[#This Row],[Alloc]]=\"CA\",tblGPJune19[[#This Row],[Alloc]]=\"WA\"),\"SITUS\",tblGPJune19[[#This Row],[Alloc]])","v":"SITUS"},{"$f":"INDEX(tblGPLookup[FUNC],MATCH(tblGPJune19[[#This Row],[Concat]],tblGPLookup[Concat],0))","v":"DPW"},{"$f":"IF(tblGPJune19[[#This Row],[Total ($000)]]=0,\"NO\",IF(ISNA(tblGPJune19[[#This Row],[FUNC]]),\"YES\",IF(_xlfn.ISFORMULA(tblGPJune19[[#This Row],[FUNC]]),\"NO\",\"YES\")))","v":"NO"}]
[{"$f":"CONCATENATE(tblGPJune19[[#This Row],[Primary Account]],tblGPJune19[[#This Row],[Primary Name]],tblGPJune19[[#This Row],[Secondary Acct]],tblGPJune19[[#This Row],[Secondary  Name]],tblGPJune19[[#This Row],[Alloc4FUNC]])","v":"1010000ELEC PLANT IN SERV3920400\"1/2 & 3/4 TON PICKUPS, VANS, SERV TRUCKSO"},1010000,"ELEC PLANT IN SERV",3920400,"\"1/2 & 3/4 TON PICKUPS, VANS, SERV TRUCK","SO",1479.95014615385,{"$f":"IF(OR(tblGPJune19[[#This Row],[Alloc]]=\"IDU\",tblGPJune19[[#This Row],[Alloc]]=\"OR\",tblGPJune19[[#This Row],[Alloc]]=\"UT\",tblGPJune19[[#This Row],[Alloc]]=\"WYU\",tblGPJune19[[#This Row],[Alloc]]=\"WYP\",tblGPJune19[[#This Row],[Alloc]]=\"CA\",tblGPJune19[[#This Row],[Alloc]]=\"WA\"),\"SITUS\",tblGPJune19[[#This Row],[Alloc]])","v":"SO"},{"$f":"INDEX(tblGPLookup[FUNC],MATCH(tblGPJune19[[#This Row],[Concat]],tblGPLookup[Concat],0))","v":"PTD"},{"$f":"IF(tblGPJune19[[#This Row],[Total ($000)]]=0,\"NO\",IF(ISNA(tblGPJune19[[#This Row],[FUNC]]),\"YES\",IF(_xlfn.ISFORMULA(tblGPJune19[[#This Row],[FUNC]]),\"NO\",\"YES\")))","v":"NO"}]
[{"$f":"CONCATENATE(tblGPJune19[[#This Row],[Primary Account]],tblGPJune19[[#This Row],[Primary Name]],tblGPJune19[[#This Row],[Secondary Acct]],tblGPJune19[[#This Row],[Secondary  Name]],tblGPJune19[[#This Row],[Alloc4FUNC]])","v":"1010000ELEC PLANT IN SERV3920400\"1/2 & 3/4 TON PICKUPS, VANS, SERV TRUCKSITUS"},1010000,"ELEC PLANT IN SERV",3920400,"\"1/2 & 3/4 TON PICKUPS, VANS, SERV TRUCK","UT",7467.8828946153799,{"$f":"IF(OR(tblGPJune19[[#This Row],[Alloc]]=\"IDU\",tblGPJune19[[#This Row],[Alloc]]=\"OR\",tblGPJune19[[#This Row],[Alloc]]=\"UT\",tblGPJune19[[#This Row],[Alloc]]=\"WYU\",tblGPJune19[[#This Row],[Alloc]]=\"WYP\",tblGPJune19[[#This Row],[Alloc]]=\"CA\",tblGPJune19[[#This Row],[Alloc]]=\"WA\"),\"SITUS\",tblGPJune19[[#This Row],[Alloc]])","v":"SITUS"},{"$f":"INDEX(tblGPLookup[FUNC],MATCH(tblGPJune19[[#This Row],[Concat]],tblGPLookup[Concat],0))","v":"DPW"},{"$f":"IF(tblGPJune19[[#This Row],[Total ($000)]]=0,\"NO\",IF(ISNA(tblGPJune19[[#This Row],[FUNC]]),\"YES\",IF(_xlfn.ISFORMULA(tblGPJune19[[#This Row],[FUNC]]),\"NO\",\"YES\")))","v":"NO"}]
[{"$f":"CONCATENATE(tblGPJune19[[#This Row],[Primary Account]],tblGPJune19[[#This Row],[Primary Name]],tblGPJune19[[#This Row],[Secondary Acct]],tblGPJune19[[#This Row],[Secondary  Name]],tblGPJune19[[#This Row],[Alloc4FUNC]])","v":"1010000ELEC PLANT IN SERV3920400\"1/2 & 3/4 TON PICKUPS, VANS, SERV TRUCKSITUS"},1010000,"ELEC PLANT IN SERV",3920400,"\"1/2 & 3/4 TON PICKUPS, VANS, SERV TRUCK","WA",1106.1786930769199,{"$f":"IF(OR(tblGPJune19[[#This Row],[Alloc]]=\"IDU\",tblGPJune19[[#This Row],[Alloc]]=\"OR\",tblGPJune19[[#This Row],[Alloc]]=\"UT\",tblGPJune19[[#This Row],[Alloc]]=\"WYU\",tblGPJune19[[#This Row],[Alloc]]=\"WYP\",tblGPJune19[[#This Row],[Alloc]]=\"CA\",tblGPJune19[[#This Row],[Alloc]]=\"WA\"),\"SITUS\",tblGPJune19[[#This Row],[Alloc]])","v":"SITUS"},{"$f":"INDEX(tblGPLookup[FUNC],MATCH(tblGPJune19[[#This Row],[Concat]],tblGPLookup[Concat],0))","v":"DPW"},{"$f":"IF(tblGPJune19[[#This Row],[Total ($000)]]=0,\"NO\",IF(ISNA(tblGPJune19[[#This Row],[FUNC]]),\"YES\",IF(_xlfn.ISFORMULA(tblGPJune19[[#This Row],[FUNC]]),\"NO\",\"YES\")))","v":"NO"}]
[{"$f":"CONCATENATE(tblGPJune19[[#This Row],[Primary Account]],tblGPJune19[[#This Row],[Primary Name]],tblGPJune19[[#This Row],[Secondary Acct]],tblGPJune19[[#This Row],[Secondary  Name]],tblGPJune19[[#This Row],[Alloc4FUNC]])","v":"1010000ELEC PLANT IN SERV3920400\"1/2 & 3/4 TON PICKUPS, VANS, SERV TRUCKSITUS"},1010000,"ELEC PLANT IN SERV",3920400,"\"1/2 & 3/4 TON PICKUPS, VANS, SERV TRUCK","WYP",1766.34366461538,{"$f":"IF(OR(tblGPJune19[[#This Row],[Alloc]]=\"IDU\",tblGPJune19[[#This Row],[Alloc]]=\"OR\",tblGPJune19[[#This Row],[Alloc]]=\"UT\",tblGPJune19[[#This Row],[Alloc]]=\"WYU\",tblGPJune19[[#This Row],[Alloc]]=\"WYP\",tblGPJune19[[#This Row],[Alloc]]=\"CA\",tblGPJune19[[#This Row],[Alloc]]=\"WA\"),\"SITUS\",tblGPJune19[[#This Row],[Alloc]])","v":"SITUS"},{"$f":"INDEX(tblGPLookup[FUNC],MATCH(tblGPJune19[[#This Row],[Concat]],tblGPLookup[Concat],0))","v":"DPW"},{"$f":"IF(tblGPJune19[[#This Row],[Total ($000)]]=0,\"NO\",IF(ISNA(tblGPJune19[[#This Row],[FUNC]]),\"YES\",IF(_xlfn.ISFORMULA(tblGPJune19[[#This Row],[FUNC]]),\"NO\",\"YES\")))","v":"NO"}]
[{"$f":"CONCATENATE(tblGPJune19[[#This Row],[Primary Account]],tblGPJune19[[#This Row],[Primary Name]],tblGPJune19[[#This Row],[Secondary Acct]],tblGPJune19[[#This Row],[Secondary  Name]],tblGPJune19[[#This Row],[Alloc4FUNC]])","v":"1010000ELEC PLANT IN SERV3920400\"1/2 & 3/4 TON PICKUPS, VANS, SERV TRUCKSITUS"},1010000,"ELEC PLANT IN SERV",3920400,"\"1/2 & 3/4 TON PICKUPS, VANS, SERV TRUCK","WYU",384.71384538461501,{"$f":"IF(OR(tblGPJune19[[#This Row],[Alloc]]=\"IDU\",tblGPJune19[[#This Row],[Alloc]]=\"OR\",tblGPJune19[[#This Row],[Alloc]]=\"UT\",tblGPJune19[[#This Row],[Alloc]]=\"WYU\",tblGPJune19[[#This Row],[Alloc]]=\"WYP\",tblGPJune19[[#This Row],[Alloc]]=\"CA\",tblGPJune19[[#This Row],[Alloc]]=\"WA\"),\"SITUS\",tblGPJune19[[#This Row],[Alloc]])","v":"SITUS"},{"$f":"INDEX(tblGPLookup[FUNC],MATCH(tblGPJune19[[#This Row],[Concat]],tblGPLookup[Concat],0))","v":"DPW"},{"$f":"IF(tblGPJune19[[#This Row],[Total ($000)]]=0,\"NO\",IF(ISNA(tblGPJune19[[#This Row],[FUNC]]),\"YES\",IF(_xlfn.ISFORMULA(tblGPJune19[[#This Row],[FUNC]]),\"NO\",\"YES\")))","v":"NO"}]
[{"$f":"CONCATENATE(tblGPJune19[[#This Row],[Primary Account]],tblGPJune19[[#This Row],[Primary Name]],tblGPJune19[[#This Row],[Secondary Acct]],tblGPJune19[[#This Row],[Secondary  Name]],tblGPJune19[[#This Row],[Alloc4FUNC]])","v":"1010000ELEC PLANT IN SERV3920500\"1 TON AND ABOVE, TWO-AXLE TRUCKS\"SITUS"},1010000,"ELEC PLANT IN SERV",3920500,"\"1 TON AND ABOVE, TWO-AXLE TRUCKS\"","IDU",3478.25467538462,{"$f":"IF(OR(tblGPJune19[[#This Row],[Alloc]]=\"IDU\",tblGPJune19[[#This Row],[Alloc]]=\"OR\",tblGPJune19[[#This Row],[Alloc]]=\"UT\",tblGPJune19[[#This Row],[Alloc]]=\"WYU\",tblGPJune19[[#This Row],[Alloc]]=\"WYP\",tblGPJune19[[#This Row],[Alloc]]=\"CA\",tblGPJune19[[#This Row],[Alloc]]=\"WA\"),\"SITUS\",tblGPJune19[[#This Row],[Alloc]])","v":"SITUS"},{"$f":"INDEX(tblGPLookup[FUNC],MATCH(tblGPJune19[[#This Row],[Concat]],tblGPLookup[Concat],0))","v":"DPW"},{"$f":"IF(tblGPJune19[[#This Row],[Total ($000)]]=0,\"NO\",IF(ISNA(tblGPJune19[[#This Row],[FUNC]]),\"YES\",IF(_xlfn.ISFORMULA(tblGPJune19[[#This Row],[FUNC]]),\"NO\",\"YES\")))","v":"NO"}]
[{"$f":"CONCATENATE(tblGPJune19[[#This Row],[Primary Account]],tblGPJune19[[#This Row],[Primary Name]],tblGPJune19[[#This Row],[Secondary Acct]],tblGPJune19[[#This Row],[Secondary  Name]],tblGPJune19[[#This Row],[Alloc4FUNC]])","v":"1010000ELEC PLANT IN SERV3920500\"1 TON AND ABOVE, TWO-AXLE TRUCKS\"SITUS"},1010000,"ELEC PLANT IN SERV",3920500,"\"1 TON AND ABOVE, TWO-AXLE TRUCKS\"","OR",12421.344716153801,{"$f":"IF(OR(tblGPJune19[[#This Row],[Alloc]]=\"IDU\",tblGPJune19[[#This Row],[Alloc]]=\"OR\",tblGPJune19[[#This Row],[Alloc]]=\"UT\",tblGPJune19[[#This Row],[Alloc]]=\"WYU\",tblGPJune19[[#This Row],[Alloc]]=\"WYP\",tblGPJune19[[#This Row],[Alloc]]=\"CA\",tblGPJune19[[#This Row],[Alloc]]=\"WA\"),\"SITUS\",tblGPJune19[[#This Row],[Alloc]])","v":"SITUS"},{"$f":"INDEX(tblGPLookup[FUNC],MATCH(tblGPJune19[[#This Row],[Concat]],tblGPLookup[Concat],0))","v":"DPW"},{"$f":"IF(tblGPJune19[[#This Row],[Total ($000)]]=0,\"NO\",IF(ISNA(tblGPJune19[[#This Row],[FUNC]]),\"YES\",IF(_xlfn.ISFORMULA(tblGPJune19[[#This Row],[FUNC]]),\"NO\",\"YES\")))","v":"NO"}]
[{"$f":"CONCATENATE(tblGPJune19[[#This Row],[Primary Account]],tblGPJune19[[#This Row],[Primary Name]],tblGPJune19[[#This Row],[Secondary Acct]],tblGPJune19[[#This Row],[Secondary  Name]],tblGPJune19[[#This Row],[Alloc4FUNC]])","v":"1010000ELEC PLANT IN SERV3920500\"1 TON AND ABOVE, TWO-AXLE TRUCKS\"SE"},1010000,"ELEC PLANT IN SERV",3920500,"\"1 TON AND ABOVE, TWO-AXLE TRUCKS\"","SE",215.48249999999999,{"$f":"IF(OR(tblGPJune19[[#This Row],[Alloc]]=\"IDU\",tblGPJune19[[#This Row],[Alloc]]=\"OR\",tblGPJune19[[#This Row],[Alloc]]=\"UT\",tblGPJune19[[#This Row],[Alloc]]=\"WYU\",tblGPJune19[[#This Row],[Alloc]]=\"WYP\",tblGPJune19[[#This Row],[Alloc]]=\"CA\",tblGPJune19[[#This Row],[Alloc]]=\"WA\"),\"SITUS\",tblGPJune19[[#This Row],[Alloc]])","v":"SE"},{"$f":"INDEX(tblGPLookup[FUNC],MATCH(tblGPJune19[[#This Row],[Concat]],tblGPLookup[Concat],0))","v":"P"},{"$f":"IF(tblGPJune19[[#This Row],[Total ($000)]]=0,\"NO\",IF(ISNA(tblGPJune19[[#This Row],[FUNC]]),\"YES\",IF(_xlfn.ISFORMULA(tblGPJune19[[#This Row],[FUNC]]),\"NO\",\"YES\")))","v":"NO"}]
[{"$f":"CONCATENATE(tblGPJune19[[#This Row],[Primary Account]],tblGPJune19[[#This Row],[Primary Name]],tblGPJune19[[#This Row],[Secondary Acct]],tblGPJune19[[#This Row],[Secondary  Name]],tblGPJune19[[#This Row],[Alloc4FUNC]])","v":"1010000ELEC PLANT IN SERV3920500\"1 TON AND ABOVE, TWO-AXLE TRUCKS\"SG"},1010000,"ELEC PLANT IN SERV",3920500,"\"1 TON AND ABOVE, TWO-AXLE TRUCKS\"","SG",6670.3131307692302,{"$f":"IF(OR(tblGPJune19[[#This Row],[Alloc]]=\"IDU\",tblGPJune19[[#This Row],[Alloc]]=\"OR\",tblGPJune19[[#This Row],[Alloc]]=\"UT\",tblGPJune19[[#This Row],[Alloc]]=\"WYU\",tblGPJune19[[#This Row],[Alloc]]=\"WYP\",tblGPJune19[[#This Row],[Alloc]]=\"CA\",tblGPJune19[[#This Row],[Alloc]]=\"WA\"),\"SITUS\",tblGPJune19[[#This Row],[Alloc]])","v":"SG"},{"$f":"INDEX(tblGPLookup[FUNC],MATCH(tblGPJune19[[#This Row],[Concat]],tblGPLookup[Concat],0))","v":"P"},{"$f":"IF(tblGPJune19[[#This Row],[Total ($000)]]=0,\"NO\",IF(ISNA(tblGPJune19[[#This Row],[FUNC]]),\"YES\",IF(_xlfn.ISFORMULA(tblGPJune19[[#This Row],[FUNC]]),\"NO\",\"YES\")))","v":"NO"}]
[{"$f":"CONCATENATE(tblGPJune19[[#This Row],[Primary Account]],tblGPJune19[[#This Row],[Primary Name]],tblGPJune19[[#This Row],[Secondary Acct]],tblGPJune19[[#This Row],[Secondary  Name]],tblGPJune19[[#This Row],[Alloc4FUNC]])","v":"1010000ELEC PLANT IN SERV3920500\"1 TON AND ABOVE, TWO-AXLE TRUCKS\"SITUS"},1010000,"ELEC PLANT IN SERV",3920500,"\"1 TON AND ABOVE, TWO-AXLE TRUCKS\"","CA",984.71112000000005,{"$f":"IF(OR(tblGPJune19[[#This Row],[Alloc]]=\"IDU\",tblGPJune19[[#This Row],[Alloc]]=\"OR\",tblGPJune19[[#This Row],[Alloc]]=\"UT\",tblGPJune19[[#This Row],[Alloc]]=\"WYU\",tblGPJune19[[#This Row],[Alloc]]=\"WYP\",tblGPJune19[[#This Row],[Alloc]]=\"CA\",tblGPJune19[[#This Row],[Alloc]]=\"WA\"),\"SITUS\",tblGPJune19[[#This Row],[Alloc]])","v":"SITUS"},{"$f":"INDEX(tblGPLookup[FUNC],MATCH(tblGPJune19[[#This Row],[Concat]],tblGPLookup[Concat],0))","v":"DPW"},{"$f":"IF(tblGPJune19[[#This Row],[Total ($000)]]=0,\"NO\",IF(ISNA(tblGPJune19[[#This Row],[FUNC]]),\"YES\",IF(_xlfn.ISFORMULA(tblGPJune19[[#This Row],[FUNC]]),\"NO\",\"YES\")))","v":"NO"}]
[{"$f":"CONCATENATE(tblGPJune19[[#This Row],[Primary Account]],tblGPJune19[[#This Row],[Primary Name]],tblGPJune19[[#This Row],[Secondary Acct]],tblGPJune19[[#This Row],[Secondary  Name]],tblGPJune19[[#This Row],[Alloc4FUNC]])","v":"1010000ELEC PLANT IN SERV3920500\"1 TON AND ABOVE, TWO-AXLE TRUCKS\"SO"},1010000,"ELEC PLANT IN SERV",3920500,"\"1 TON AND ABOVE, TWO-AXLE TRUCKS\"","SO",701.85426615384597,{"$f":"IF(OR(tblGPJune19[[#This Row],[Alloc]]=\"IDU\",tblGPJune19[[#This Row],[Alloc]]=\"OR\",tblGPJune19[[#This Row],[Alloc]]=\"UT\",tblGPJune19[[#This Row],[Alloc]]=\"WYU\",tblGPJune19[[#This Row],[Alloc]]=\"WYP\",tblGPJune19[[#This Row],[Alloc]]=\"CA\",tblGPJune19[[#This Row],[Alloc]]=\"WA\"),\"SITUS\",tblGPJune19[[#This Row],[Alloc]])","v":"SO"},{"$f":"INDEX(tblGPLookup[FUNC],MATCH(tblGPJune19[[#This Row],[Concat]],tblGPLookup[Concat],0))","v":"PTD"},{"$f":"IF(tblGPJune19[[#This Row],[Total ($000)]]=0,\"NO\",IF(ISNA(tblGPJune19[[#This Row],[FUNC]]),\"YES\",IF(_xlfn.ISFORMULA(tblGPJune19[[#This Row],[FUNC]]),\"NO\",\"YES\")))","v":"NO"}]
[{"$f":"CONCATENATE(tblGPJune19[[#This Row],[Primary Account]],tblGPJune19[[#This Row],[Primary Name]],tblGPJune19[[#This Row],[Secondary Acct]],tblGPJune19[[#This Row],[Secondary  Name]],tblGPJune19[[#This Row],[Alloc4FUNC]])","v":"1010000ELEC PLANT IN SERV3920500\"1 TON AND ABOVE, TWO-AXLE TRUCKS\"SITUS"},1010000,"ELEC PLANT IN SERV",3920500,"\"1 TON AND ABOVE, TWO-AXLE TRUCKS\"","UT",17186.490319230801,{"$f":"IF(OR(tblGPJune19[[#This Row],[Alloc]]=\"IDU\",tblGPJune19[[#This Row],[Alloc]]=\"OR\",tblGPJune19[[#This Row],[Alloc]]=\"UT\",tblGPJune19[[#This Row],[Alloc]]=\"WYU\",tblGPJune19[[#This Row],[Alloc]]=\"WYP\",tblGPJune19[[#This Row],[Alloc]]=\"CA\",tblGPJune19[[#This Row],[Alloc]]=\"WA\"),\"SITUS\",tblGPJune19[[#This Row],[Alloc]])","v":"SITUS"},{"$f":"INDEX(tblGPLookup[FUNC],MATCH(tblGPJune19[[#This Row],[Concat]],tblGPLookup[Concat],0))","v":"DPW"},{"$f":"IF(tblGPJune19[[#This Row],[Total ($000)]]=0,\"NO\",IF(ISNA(tblGPJune19[[#This Row],[FUNC]]),\"YES\",IF(_xlfn.ISFORMULA(tblGPJune19[[#This Row],[FUNC]]),\"NO\",\"YES\")))","v":"NO"}]
[{"$f":"CONCATENATE(tblGPJune19[[#This Row],[Primary Account]],tblGPJune19[[#This Row],[Primary Name]],tblGPJune19[[#This Row],[Secondary Acct]],tblGPJune19[[#This Row],[Secondary  Name]],tblGPJune19[[#This Row],[Alloc4FUNC]])","v":"1010000ELEC PLANT IN SERV3920500\"1 TON AND ABOVE, TWO-AXLE TRUCKS\"SITUS"},1010000,"ELEC PLANT IN SERV",3920500,"\"1 TON AND ABOVE, TWO-AXLE TRUCKS\"","WA",2960.1127146153799,{"$f":"IF(OR(tblGPJune19[[#This Row],[Alloc]]=\"IDU\",tblGPJune19[[#This Row],[Alloc]]=\"OR\",tblGPJune19[[#This Row],[Alloc]]=\"UT\",tblGPJune19[[#This Row],[Alloc]]=\"WYU\",tblGPJune19[[#This Row],[Alloc]]=\"WYP\",tblGPJune19[[#This Row],[Alloc]]=\"CA\",tblGPJune19[[#This Row],[Alloc]]=\"WA\"),\"SITUS\",tblGPJune19[[#This Row],[Alloc]])","v":"SITUS"},{"$f":"INDEX(tblGPLookup[FUNC],MATCH(tblGPJune19[[#This Row],[Concat]],tblGPLookup[Concat],0))","v":"DPW"},{"$f":"IF(tblGPJune19[[#This Row],[Total ($000)]]=0,\"NO\",IF(ISNA(tblGPJune19[[#This Row],[FUNC]]),\"YES\",IF(_xlfn.ISFORMULA(tblGPJune19[[#This Row],[FUNC]]),\"NO\",\"YES\")))","v":"NO"}]
[{"$f":"CONCATENATE(tblGPJune19[[#This Row],[Primary Account]],tblGPJune19[[#This Row],[Primary Name]],tblGPJune19[[#This Row],[Secondary Acct]],tblGPJune19[[#This Row],[Secondary  Name]],tblGPJune19[[#This Row],[Alloc4FUNC]])","v":"1010000ELEC PLANT IN SERV3920500\"1 TON AND ABOVE, TWO-AXLE TRUCKS\"SITUS"},1010000,"ELEC PLANT IN SERV",3920500,"\"1 TON AND ABOVE, TWO-AXLE TRUCKS\"","WYP",4163.3692315384596,{"$f":"IF(OR(tblGPJune19[[#This Row],[Alloc]]=\"IDU\",tblGPJune19[[#This Row],[Alloc]]=\"OR\",tblGPJune19[[#This Row],[Alloc]]=\"UT\",tblGPJune19[[#This Row],[Alloc]]=\"WYU\",tblGPJune19[[#This Row],[Alloc]]=\"WYP\",tblGPJune19[[#This Row],[Alloc]]=\"CA\",tblGPJune19[[#This Row],[Alloc]]=\"WA\"),\"SITUS\",tblGPJune19[[#This Row],[Alloc]])","v":"SITUS"},{"$f":"INDEX(tblGPLookup[FUNC],MATCH(tblGPJune19[[#This Row],[Concat]],tblGPLookup[Concat],0))","v":"DPW"},{"$f":"IF(tblGPJune19[[#This Row],[Total ($000)]]=0,\"NO\",IF(ISNA(tblGPJune19[[#This Row],[FUNC]]),\"YES\",IF(_xlfn.ISFORMULA(tblGPJune19[[#This Row],[FUNC]]),\"NO\",\"YES\")))","v":"NO"}]
[{"$f":"CONCATENATE(tblGPJune19[[#This Row],[Primary Account]],tblGPJune19[[#This Row],[Primary Name]],tblGPJune19[[#This Row],[Secondary Acct]],tblGPJune19[[#This Row],[Secondary  Name]],tblGPJune19[[#This Row],[Alloc4FUNC]])","v":"1010000ELEC PLANT IN SERV3920500\"1 TON AND ABOVE, TWO-AXLE TRUCKS\"SITUS"},1010000,"ELEC PLANT IN SERV",3920500,"\"1 TON AND ABOVE, TWO-AXLE TRUCKS\"","WYU",1177.9247800000001,{"$f":"IF(OR(tblGPJune19[[#This Row],[Alloc]]=\"IDU\",tblGPJune19[[#This Row],[Alloc]]=\"OR\",tblGPJune19[[#This Row],[Alloc]]=\"UT\",tblGPJune19[[#This Row],[Alloc]]=\"WYU\",tblGPJune19[[#This Row],[Alloc]]=\"WYP\",tblGPJune19[[#This Row],[Alloc]]=\"CA\",tblGPJune19[[#This Row],[Alloc]]=\"WA\"),\"SITUS\",tblGPJune19[[#This Row],[Alloc]])","v":"SITUS"},{"$f":"INDEX(tblGPLookup[FUNC],MATCH(tblGPJune19[[#This Row],[Concat]],tblGPLookup[Concat],0))","v":"DPW"},{"$f":"IF(tblGPJune19[[#This Row],[Total ($000)]]=0,\"NO\",IF(ISNA(tblGPJune19[[#This Row],[FUNC]]),\"YES\",IF(_xlfn.ISFORMULA(tblGPJune19[[#This Row],[FUNC]]),\"NO\",\"YES\")))","v":"NO"}]
[{"$f":"CONCATENATE(tblGPJune19[[#This Row],[Primary Account]],tblGPJune19[[#This Row],[Primary Name]],tblGPJune19[[#This Row],[Secondary Acct]],tblGPJune19[[#This Row],[Secondary  Name]],tblGPJune19[[#This Row],[Alloc4FUNC]])","v":"1010000ELEC PLANT IN SERV3920600DUMP TRUCKSSITUS"},1010000,"ELEC PLANT IN SERV",3920600,"DUMP TRUCKS","OR",268.57655615384601,{"$f":"IF(OR(tblGPJune19[[#This Row],[Alloc]]=\"IDU\",tblGPJune19[[#This Row],[Alloc]]=\"OR\",tblGPJune19[[#This Row],[Alloc]]=\"UT\",tblGPJune19[[#This Row],[Alloc]]=\"WYU\",tblGPJune19[[#This Row],[Alloc]]=\"WYP\",tblGPJune19[[#This Row],[Alloc]]=\"CA\",tblGPJune19[[#This Row],[Alloc]]=\"WA\"),\"SITUS\",tblGPJune19[[#This Row],[Alloc]])","v":"SITUS"},{"$f":"INDEX(tblGPLookup[FUNC],MATCH(tblGPJune19[[#This Row],[Concat]],tblGPLookup[Concat],0))","v":"DPW"},{"$f":"IF(tblGPJune19[[#This Row],[Total ($000)]]=0,\"NO\",IF(ISNA(tblGPJune19[[#This Row],[FUNC]]),\"YES\",IF(_xlfn.ISFORMULA(tblGPJune19[[#This Row],[FUNC]]),\"NO\",\"YES\")))","v":"NO"}]
[{"$f":"CONCATENATE(tblGPJune19[[#This Row],[Primary Account]],tblGPJune19[[#This Row],[Primary Name]],tblGPJune19[[#This Row],[Secondary Acct]],tblGPJune19[[#This Row],[Secondary  Name]],tblGPJune19[[#This Row],[Alloc4FUNC]])","v":"1010000ELEC PLANT IN SERV3920600DUMP TRUCKSSE"},1010000,"ELEC PLANT IN SERV",3920600,"DUMP TRUCKS","SE",3.5,{"$f":"IF(OR(tblGPJune19[[#This Row],[Alloc]]=\"IDU\",tblGPJune19[[#This Row],[Alloc]]=\"OR\",tblGPJune19[[#This Row],[Alloc]]=\"UT\",tblGPJune19[[#This Row],[Alloc]]=\"WYU\",tblGPJune19[[#This Row],[Alloc]]=\"WYP\",tblGPJune19[[#This Row],[Alloc]]=\"CA\",tblGPJune19[[#This Row],[Alloc]]=\"WA\"),\"SITUS\",tblGPJune19[[#This Row],[Alloc]])","v":"SE"},{"$f":"INDEX(tblGPLookup[FUNC],MATCH(tblGPJune19[[#This Row],[Concat]],tblGPLookup[Concat],0))","v":"P"},{"$f":"IF(tblGPJune19[[#This Row],[Total ($000)]]=0,\"NO\",IF(ISNA(tblGPJune19[[#This Row],[FUNC]]),\"YES\",IF(_xlfn.ISFORMULA(tblGPJune19[[#This Row],[FUNC]]),\"NO\",\"YES\")))","v":"NO"}]
[{"$f":"CONCATENATE(tblGPJune19[[#This Row],[Primary Account]],tblGPJune19[[#This Row],[Primary Name]],tblGPJune19[[#This Row],[Secondary Acct]],tblGPJune19[[#This Row],[Secondary  Name]],tblGPJune19[[#This Row],[Alloc4FUNC]])","v":"1010000ELEC PLANT IN SERV3920600DUMP TRUCKSSG"},1010000,"ELEC PLANT IN SERV",3920600,"DUMP TRUCKS","SG",3953.9993807692299,{"$f":"IF(OR(tblGPJune19[[#This Row],[Alloc]]=\"IDU\",tblGPJune19[[#This Row],[Alloc]]=\"OR\",tblGPJune19[[#This Row],[Alloc]]=\"UT\",tblGPJune19[[#This Row],[Alloc]]=\"WYU\",tblGPJune19[[#This Row],[Alloc]]=\"WYP\",tblGPJune19[[#This Row],[Alloc]]=\"CA\",tblGPJune19[[#This Row],[Alloc]]=\"WA\"),\"SITUS\",tblGPJune19[[#This Row],[Alloc]])","v":"SG"},{"$f":"INDEX(tblGPLookup[FUNC],MATCH(tblGPJune19[[#This Row],[Concat]],tblGPLookup[Concat],0))","v":"P"},{"$f":"IF(tblGPJune19[[#This Row],[Total ($000)]]=0,\"NO\",IF(ISNA(tblGPJune19[[#This Row],[FUNC]]),\"YES\",IF(_xlfn.ISFORMULA(tblGPJune19[[#This Row],[FUNC]]),\"NO\",\"YES\")))","v":"NO"}]
[{"$f":"CONCATENATE(tblGPJune19[[#This Row],[Primary Account]],tblGPJune19[[#This Row],[Primary Name]],tblGPJune19[[#This Row],[Secondary Acct]],tblGPJune19[[#This Row],[Secondary  Name]],tblGPJune19[[#This Row],[Alloc4FUNC]])","v":"1010000ELEC PLANT IN SERV3920600DUMP TRUCKSSITUS"},1010000,"ELEC PLANT IN SERV",3920600,"DUMP TRUCKS","UT",124.63193,{"$f":"IF(OR(tblGPJune19[[#This Row],[Alloc]]=\"IDU\",tblGPJune19[[#This Row],[Alloc]]=\"OR\",tblGPJune19[[#This Row],[Alloc]]=\"UT\",tblGPJune19[[#This Row],[Alloc]]=\"WYU\",tblGPJune19[[#This Row],[Alloc]]=\"WYP\",tblGPJune19[[#This Row],[Alloc]]=\"CA\",tblGPJune19[[#This Row],[Alloc]]=\"WA\"),\"SITUS\",tblGPJune19[[#This Row],[Alloc]])","v":"SITUS"},{"$f":"INDEX(tblGPLookup[FUNC],MATCH(tblGPJune19[[#This Row],[Concat]],tblGPLookup[Concat],0))","v":"DPW"},{"$f":"IF(tblGPJune19[[#This Row],[Total ($000)]]=0,\"NO\",IF(ISNA(tblGPJune19[[#This Row],[FUNC]]),\"YES\",IF(_xlfn.ISFORMULA(tblGPJune19[[#This Row],[FUNC]]),\"NO\",\"YES\")))","v":"NO"}]
[{"$f":"CONCATENATE(tblGPJune19[[#This Row],[Primary Account]],tblGPJune19[[#This Row],[Primary Name]],tblGPJune19[[#This Row],[Secondary Acct]],tblGPJune19[[#This Row],[Secondary  Name]],tblGPJune19[[#This Row],[Alloc4FUNC]])","v":"1010000ELEC PLANT IN SERV3920900TRAILERSSITUS"},1010000,"ELEC PLANT IN SERV",3920900,"TRAILERS","IDU",1245.37434846154,{"$f":"IF(OR(tblGPJune19[[#This Row],[Alloc]]=\"IDU\",tblGPJune19[[#This Row],[Alloc]]=\"OR\",tblGPJune19[[#This Row],[Alloc]]=\"UT\",tblGPJune19[[#This Row],[Alloc]]=\"WYU\",tblGPJune19[[#This Row],[Alloc]]=\"WYP\",tblGPJune19[[#This Row],[Alloc]]=\"CA\",tblGPJune19[[#This Row],[Alloc]]=\"WA\"),\"SITUS\",tblGPJune19[[#This Row],[Alloc]])","v":"SITUS"},{"$f":"INDEX(tblGPLookup[FUNC],MATCH(tblGPJune19[[#This Row],[Concat]],tblGPLookup[Concat],0))","v":"DPW"},{"$f":"IF(tblGPJune19[[#This Row],[Total ($000)]]=0,\"NO\",IF(ISNA(tblGPJune19[[#This Row],[FUNC]]),\"YES\",IF(_xlfn.ISFORMULA(tblGPJune19[[#This Row],[FUNC]]),\"NO\",\"YES\")))","v":"NO"}]
[{"$f":"CONCATENATE(tblGPJune19[[#This Row],[Primary Account]],tblGPJune19[[#This Row],[Primary Name]],tblGPJune19[[#This Row],[Secondary Acct]],tblGPJune19[[#This Row],[Secondary  Name]],tblGPJune19[[#This Row],[Alloc4FUNC]])","v":"1010000ELEC PLANT IN SERV3920900TRAILERSSITUS"},1010000,"ELEC PLANT IN SERV",3920900,"TRAILERS","OR",3530.0368146153801,{"$f":"IF(OR(tblGPJune19[[#This Row],[Alloc]]=\"IDU\",tblGPJune19[[#This Row],[Alloc]]=\"OR\",tblGPJune19[[#This Row],[Alloc]]=\"UT\",tblGPJune19[[#This Row],[Alloc]]=\"WYU\",tblGPJune19[[#This Row],[Alloc]]=\"WYP\",tblGPJune19[[#This Row],[Alloc]]=\"CA\",tblGPJune19[[#This Row],[Alloc]]=\"WA\"),\"SITUS\",tblGPJune19[[#This Row],[Alloc]])","v":"SITUS"},{"$f":"INDEX(tblGPLookup[FUNC],MATCH(tblGPJune19[[#This Row],[Concat]],tblGPLookup[Concat],0))","v":"DPW"},{"$f":"IF(tblGPJune19[[#This Row],[Total ($000)]]=0,\"NO\",IF(ISNA(tblGPJune19[[#This Row],[FUNC]]),\"YES\",IF(_xlfn.ISFORMULA(tblGPJune19[[#This Row],[FUNC]]),\"NO\",\"YES\")))","v":"NO"}]
[{"$f":"CONCATENATE(tblGPJune19[[#This Row],[Primary Account]],tblGPJune19[[#This Row],[Primary Name]],tblGPJune19[[#This Row],[Secondary Acct]],tblGPJune19[[#This Row],[Secondary  Name]],tblGPJune19[[#This Row],[Alloc4FUNC]])","v":"1010000ELEC PLANT IN SERV3920900TRAILERSSE"},1010000,"ELEC PLANT IN SERV",3920900,"TRAILERS","SE",41.30735,{"$f":"IF(OR(tblGPJune19[[#This Row],[Alloc]]=\"IDU\",tblGPJune19[[#This Row],[Alloc]]=\"OR\",tblGPJune19[[#This Row],[Alloc]]=\"UT\",tblGPJune19[[#This Row],[Alloc]]=\"WYU\",tblGPJune19[[#This Row],[Alloc]]=\"WYP\",tblGPJune19[[#This Row],[Alloc]]=\"CA\",tblGPJune19[[#This Row],[Alloc]]=\"WA\"),\"SITUS\",tblGPJune19[[#This Row],[Alloc]])","v":"SE"},{"$f":"INDEX(tblGPLookup[FUNC],MATCH(tblGPJune19[[#This Row],[Concat]],tblGPLookup[Concat],0))","v":"P"},{"$f":"IF(tblGPJune19[[#This Row],[Total ($000)]]=0,\"NO\",IF(ISNA(tblGPJune19[[#This Row],[FUNC]]),\"YES\",IF(_xlfn.ISFORMULA(tblGPJune19[[#This Row],[FUNC]]),\"NO\",\"YES\")))","v":"NO"}]
[{"$f":"CONCATENATE(tblGPJune19[[#This Row],[Primary Account]],tblGPJune19[[#This Row],[Primary Name]],tblGPJune19[[#This Row],[Secondary Acct]],tblGPJune19[[#This Row],[Secondary  Name]],tblGPJune19[[#This Row],[Alloc4FUNC]])","v":"1010000ELEC PLANT IN SERV3920900TRAILERSSG"},1010000,"ELEC PLANT IN SERV",3920900,"TRAILERS","SG",1422.69083538462,{"$f":"IF(OR(tblGPJune19[[#This Row],[Alloc]]=\"IDU\",tblGPJune19[[#This Row],[Alloc]]=\"OR\",tblGPJune19[[#This Row],[Alloc]]=\"UT\",tblGPJune19[[#This Row],[Alloc]]=\"WYU\",tblGPJune19[[#This Row],[Alloc]]=\"WYP\",tblGPJune19[[#This Row],[Alloc]]=\"CA\",tblGPJune19[[#This Row],[Alloc]]=\"WA\"),\"SITUS\",tblGPJune19[[#This Row],[Alloc]])","v":"SG"},{"$f":"INDEX(tblGPLookup[FUNC],MATCH(tblGPJune19[[#This Row],[Concat]],tblGPLookup[Concat],0))","v":"P"},{"$f":"IF(tblGPJune19[[#This Row],[Total ($000)]]=0,\"NO\",IF(ISNA(tblGPJune19[[#This Row],[FUNC]]),\"YES\",IF(_xlfn.ISFORMULA(tblGPJune19[[#This Row],[FUNC]]),\"NO\",\"YES\")))","v":"NO"}]
[{"$f":"CONCATENATE(tblGPJune19[[#This Row],[Primary Account]],tblGPJune19[[#This Row],[Primary Name]],tblGPJune19[[#This Row],[Secondary Acct]],tblGPJune19[[#This Row],[Secondary  Name]],tblGPJune19[[#This Row],[Alloc4FUNC]])","v":"1010000ELEC PLANT IN SERV3920900TRAILERSSITUS"},1010000,"ELEC PLANT IN SERV",3920900,"TRAILERS","CA",479.51924230769202,{"$f":"IF(OR(tblGPJune19[[#This Row],[Alloc]]=\"IDU\",tblGPJune19[[#This Row],[Alloc]]=\"OR\",tblGPJune19[[#This Row],[Alloc]]=\"UT\",tblGPJune19[[#This Row],[Alloc]]=\"WYU\",tblGPJune19[[#This Row],[Alloc]]=\"WYP\",tblGPJune19[[#This Row],[Alloc]]=\"CA\",tblGPJune19[[#This Row],[Alloc]]=\"WA\"),\"SITUS\",tblGPJune19[[#This Row],[Alloc]])","v":"SITUS"},{"$f":"INDEX(tblGPLookup[FUNC],MATCH(tblGPJune19[[#This Row],[Concat]],tblGPLookup[Concat],0))","v":"DPW"},{"$f":"IF(tblGPJune19[[#This Row],[Total ($000)]]=0,\"NO\",IF(ISNA(tblGPJune19[[#This Row],[FUNC]]),\"YES\",IF(_xlfn.ISFORMULA(tblGPJune19[[#This Row],[FUNC]]),\"NO\",\"YES\")))","v":"NO"}]
[{"$f":"CONCATENATE(tblGPJune19[[#This Row],[Primary Account]],tblGPJune19[[#This Row],[Primary Name]],tblGPJune19[[#This Row],[Secondary Acct]],tblGPJune19[[#This Row],[Secondary  Name]],tblGPJune19[[#This Row],[Alloc4FUNC]])","v":"1010000ELEC PLANT IN SERV3920900TRAILERSSO"},1010000,"ELEC PLANT IN SERV",3920900,"TRAILERS","SO",1037.7577530769199,{"$f":"IF(OR(tblGPJune19[[#This Row],[Alloc]]=\"IDU\",tblGPJune19[[#This Row],[Alloc]]=\"OR\",tblGPJune19[[#This Row],[Alloc]]=\"UT\",tblGPJune19[[#This Row],[Alloc]]=\"WYU\",tblGPJune19[[#This Row],[Alloc]]=\"WYP\",tblGPJune19[[#This Row],[Alloc]]=\"CA\",tblGPJune19[[#This Row],[Alloc]]=\"WA\"),\"SITUS\",tblGPJune19[[#This Row],[Alloc]])","v":"SO"},{"$f":"INDEX(tblGPLookup[FUNC],MATCH(tblGPJune19[[#This Row],[Concat]],tblGPLookup[Concat],0))","v":"PTD"},{"$f":"IF(tblGPJune19[[#This Row],[Total ($000)]]=0,\"NO\",IF(ISNA(tblGPJune19[[#This Row],[FUNC]]),\"YES\",IF(_xlfn.ISFORMULA(tblGPJune19[[#This Row],[FUNC]]),\"NO\",\"YES\")))","v":"NO"}]
[{"$f":"CONCATENATE(tblGPJune19[[#This Row],[Primary Account]],tblGPJune19[[#This Row],[Primary Name]],tblGPJune19[[#This Row],[Secondary Acct]],tblGPJune19[[#This Row],[Secondary  Name]],tblGPJune19[[#This Row],[Alloc4FUNC]])","v":"1010000ELEC PLANT IN SERV3920900TRAILERSSITUS"},1010000,"ELEC PLANT IN SERV",3920900,"TRAILERS","UT",6602.8638792307702,{"$f":"IF(OR(tblGPJune19[[#This Row],[Alloc]]=\"IDU\",tblGPJune19[[#This Row],[Alloc]]=\"OR\",tblGPJune19[[#This Row],[Alloc]]=\"UT\",tblGPJune19[[#This Row],[Alloc]]=\"WYU\",tblGPJune19[[#This Row],[Alloc]]=\"WYP\",tblGPJune19[[#This Row],[Alloc]]=\"CA\",tblGPJune19[[#This Row],[Alloc]]=\"WA\"),\"SITUS\",tblGPJune19[[#This Row],[Alloc]])","v":"SITUS"},{"$f":"INDEX(tblGPLookup[FUNC],MATCH(tblGPJune19[[#This Row],[Concat]],tblGPLookup[Concat],0))","v":"DPW"},{"$f":"IF(tblGPJune19[[#This Row],[Total ($000)]]=0,\"NO\",IF(ISNA(tblGPJune19[[#This Row],[FUNC]]),\"YES\",IF(_xlfn.ISFORMULA(tblGPJune19[[#This Row],[FUNC]]),\"NO\",\"YES\")))","v":"NO"}]
[{"$f":"CONCATENATE(tblGPJune19[[#This Row],[Primary Account]],tblGPJune19[[#This Row],[Primary Name]],tblGPJune19[[#This Row],[Secondary Acct]],tblGPJune19[[#This Row],[Secondary  Name]],tblGPJune19[[#This Row],[Alloc4FUNC]])","v":"1010000ELEC PLANT IN SERV3920900TRAILERSSITUS"},1010000,"ELEC PLANT IN SERV",3920900,"TRAILERS","WA",796.32317230769195,{"$f":"IF(OR(tblGPJune19[[#This Row],[Alloc]]=\"IDU\",tblGPJune19[[#This Row],[Alloc]]=\"OR\",tblGPJune19[[#This Row],[Alloc]]=\"UT\",tblGPJune19[[#This Row],[Alloc]]=\"WYU\",tblGPJune19[[#This Row],[Alloc]]=\"WYP\",tblGPJune19[[#This Row],[Alloc]]=\"CA\",tblGPJune19[[#This Row],[Alloc]]=\"WA\"),\"SITUS\",tblGPJune19[[#This Row],[Alloc]])","v":"SITUS"},{"$f":"INDEX(tblGPLookup[FUNC],MATCH(tblGPJune19[[#This Row],[Concat]],tblGPLookup[Concat],0))","v":"DPW"},{"$f":"IF(tblGPJune19[[#This Row],[Total ($000)]]=0,\"NO\",IF(ISNA(tblGPJune19[[#This Row],[FUNC]]),\"YES\",IF(_xlfn.ISFORMULA(tblGPJune19[[#This Row],[FUNC]]),\"NO\",\"YES\")))","v":"NO"}]
[{"$f":"CONCATENATE(tblGPJune19[[#This Row],[Primary Account]],tblGPJune19[[#This Row],[Primary Name]],tblGPJune19[[#This Row],[Secondary Acct]],tblGPJune19[[#This Row],[Secondary  Name]],tblGPJune19[[#This Row],[Alloc4FUNC]])","v":"1010000ELEC PLANT IN SERV3920900TRAILERSSITUS"},1010000,"ELEC PLANT IN SERV",3920900,"TRAILERS","WYP",2878.38071923077,{"$f":"IF(OR(tblGPJune19[[#This Row],[Alloc]]=\"IDU\",tblGPJune19[[#This Row],[Alloc]]=\"OR\",tblGPJune19[[#This Row],[Alloc]]=\"UT\",tblGPJune19[[#This Row],[Alloc]]=\"WYU\",tblGPJune19[[#This Row],[Alloc]]=\"WYP\",tblGPJune19[[#This Row],[Alloc]]=\"CA\",tblGPJune19[[#This Row],[Alloc]]=\"WA\"),\"SITUS\",tblGPJune19[[#This Row],[Alloc]])","v":"SITUS"},{"$f":"INDEX(tblGPLookup[FUNC],MATCH(tblGPJune19[[#This Row],[Concat]],tblGPLookup[Concat],0))","v":"DPW"},{"$f":"IF(tblGPJune19[[#This Row],[Total ($000)]]=0,\"NO\",IF(ISNA(tblGPJune19[[#This Row],[FUNC]]),\"YES\",IF(_xlfn.ISFORMULA(tblGPJune19[[#This Row],[FUNC]]),\"NO\",\"YES\")))","v":"NO"}]
[{"$f":"CONCATENATE(tblGPJune19[[#This Row],[Primary Account]],tblGPJune19[[#This Row],[Primary Name]],tblGPJune19[[#This Row],[Secondary Acct]],tblGPJune19[[#This Row],[Secondary  Name]],tblGPJune19[[#This Row],[Alloc4FUNC]])","v":"1010000ELEC PLANT IN SERV3920900TRAILERSSITUS"},1010000,"ELEC PLANT IN SERV",3920900,"TRAILERS","WYU",370.71782384615398,{"$f":"IF(OR(tblGPJune19[[#This Row],[Alloc]]=\"IDU\",tblGPJune19[[#This Row],[Alloc]]=\"OR\",tblGPJune19[[#This Row],[Alloc]]=\"UT\",tblGPJune19[[#This Row],[Alloc]]=\"WYU\",tblGPJune19[[#This Row],[Alloc]]=\"WYP\",tblGPJune19[[#This Row],[Alloc]]=\"CA\",tblGPJune19[[#This Row],[Alloc]]=\"WA\"),\"SITUS\",tblGPJune19[[#This Row],[Alloc]])","v":"SITUS"},{"$f":"INDEX(tblGPLookup[FUNC],MATCH(tblGPJune19[[#This Row],[Concat]],tblGPLookup[Concat],0))","v":"DPW"},{"$f":"IF(tblGPJune19[[#This Row],[Total ($000)]]=0,\"NO\",IF(ISNA(tblGPJune19[[#This Row],[FUNC]]),\"YES\",IF(_xlfn.ISFORMULA(tblGPJune19[[#This Row],[FUNC]]),\"NO\",\"YES\")))","v":"NO"}]
[{"$f":"CONCATENATE(tblGPJune19[[#This Row],[Primary Account]],tblGPJune19[[#This Row],[Primary Name]],tblGPJune19[[#This Row],[Secondary Acct]],tblGPJune19[[#This Row],[Secondary  Name]],tblGPJune19[[#This Row],[Alloc4FUNC]])","v":"1010000ELEC PLANT IN SERV3921400\"SNOWMOBILES, MOTORCYCLES (4-WHEELED ATVSITUS"},1010000,"ELEC PLANT IN SERV",3921400,"\"SNOWMOBILES, MOTORCYCLES (4-WHEELED ATV","IDU",87.627210000000005,{"$f":"IF(OR(tblGPJune19[[#This Row],[Alloc]]=\"IDU\",tblGPJune19[[#This Row],[Alloc]]=\"OR\",tblGPJune19[[#This Row],[Alloc]]=\"UT\",tblGPJune19[[#This Row],[Alloc]]=\"WYU\",tblGPJune19[[#This Row],[Alloc]]=\"WYP\",tblGPJune19[[#This Row],[Alloc]]=\"CA\",tblGPJune19[[#This Row],[Alloc]]=\"WA\"),\"SITUS\",tblGPJune19[[#This Row],[Alloc]])","v":"SITUS"},{"$f":"INDEX(tblGPLookup[FUNC],MATCH(tblGPJune19[[#This Row],[Concat]],tblGPLookup[Concat],0))","v":"DPW"},{"$f":"IF(tblGPJune19[[#This Row],[Total ($000)]]=0,\"NO\",IF(ISNA(tblGPJune19[[#This Row],[FUNC]]),\"YES\",IF(_xlfn.ISFORMULA(tblGPJune19[[#This Row],[FUNC]]),\"NO\",\"YES\")))","v":"NO"}]
[{"$f":"CONCATENATE(tblGPJune19[[#This Row],[Primary Account]],tblGPJune19[[#This Row],[Primary Name]],tblGPJune19[[#This Row],[Secondary Acct]],tblGPJune19[[#This Row],[Secondary  Name]],tblGPJune19[[#This Row],[Alloc4FUNC]])","v":"1010000ELEC PLANT IN SERV3921400\"SNOWMOBILES, MOTORCYCLES (4-WHEELED ATVSITUS"},1010000,"ELEC PLANT IN SERV",3921400,"\"SNOWMOBILES, MOTORCYCLES (4-WHEELED ATV","OR",417.82353076923101,{"$f":"IF(OR(tblGPJune19[[#This Row],[Alloc]]=\"IDU\",tblGPJune19[[#This Row],[Alloc]]=\"OR\",tblGPJune19[[#This Row],[Alloc]]=\"UT\",tblGPJune19[[#This Row],[Alloc]]=\"WYU\",tblGPJune19[[#This Row],[Alloc]]=\"WYP\",tblGPJune19[[#This Row],[Alloc]]=\"CA\",tblGPJune19[[#This Row],[Alloc]]=\"WA\"),\"SITUS\",tblGPJune19[[#This Row],[Alloc]])","v":"SITUS"},{"$f":"INDEX(tblGPLookup[FUNC],MATCH(tblGPJune19[[#This Row],[Concat]],tblGPLookup[Concat],0))","v":"DPW"},{"$f":"IF(tblGPJune19[[#This Row],[Total ($000)]]=0,\"NO\",IF(ISNA(tblGPJune19[[#This Row],[FUNC]]),\"YES\",IF(_xlfn.ISFORMULA(tblGPJune19[[#This Row],[FUNC]]),\"NO\",\"YES\")))","v":"NO"}]
[{"$f":"CONCATENATE(tblGPJune19[[#This Row],[Primary Account]],tblGPJune19[[#This Row],[Primary Name]],tblGPJune19[[#This Row],[Secondary Acct]],tblGPJune19[[#This Row],[Secondary  Name]],tblGPJune19[[#This Row],[Alloc4FUNC]])","v":"1010000ELEC PLANT IN SERV3921400\"SNOWMOBILES, MOTORCYCLES (4-WHEELED ATVSE"},1010000,"ELEC PLANT IN SERV",3921400,"\"SNOWMOBILES, MOTORCYCLES (4-WHEELED ATV","SE",6.085,{"$f":"IF(OR(tblGPJune19[[#This Row],[Alloc]]=\"IDU\",tblGPJune19[[#This Row],[Alloc]]=\"OR\",tblGPJune19[[#This Row],[Alloc]]=\"UT\",tblGPJune19[[#This Row],[Alloc]]=\"WYU\",tblGPJune19[[#This Row],[Alloc]]=\"WYP\",tblGPJune19[[#This Row],[Alloc]]=\"CA\",tblGPJune19[[#This Row],[Alloc]]=\"WA\"),\"SITUS\",tblGPJune19[[#This Row],[Alloc]])","v":"SE"},{"$f":"INDEX(tblGPLookup[FUNC],MATCH(tblGPJune19[[#This Row],[Concat]],tblGPLookup[Concat],0))","v":"P"},{"$f":"IF(tblGPJune19[[#This Row],[Total ($000)]]=0,\"NO\",IF(ISNA(tblGPJune19[[#This Row],[FUNC]]),\"YES\",IF(_xlfn.ISFORMULA(tblGPJune19[[#This Row],[FUNC]]),\"NO\",\"YES\")))","v":"NO"}]
[{"$f":"CONCATENATE(tblGPJune19[[#This Row],[Primary Account]],tblGPJune19[[#This Row],[Primary Name]],tblGPJune19[[#This Row],[Secondary Acct]],tblGPJune19[[#This Row],[Secondary  Name]],tblGPJune19[[#This Row],[Alloc4FUNC]])","v":"1010000ELEC PLANT IN SERV3921400\"SNOWMOBILES, MOTORCYCLES (4-WHEELED ATVSG"},1010000,"ELEC PLANT IN SERV",3921400,"\"SNOWMOBILES, MOTORCYCLES (4-WHEELED ATV","SG",798.50960769230801,{"$f":"IF(OR(tblGPJune19[[#This Row],[Alloc]]=\"IDU\",tblGPJune19[[#This Row],[Alloc]]=\"OR\",tblGPJune19[[#This Row],[Alloc]]=\"UT\",tblGPJune19[[#This Row],[Alloc]]=\"WYU\",tblGPJune19[[#This Row],[Alloc]]=\"WYP\",tblGPJune19[[#This Row],[Alloc]]=\"CA\",tblGPJune19[[#This Row],[Alloc]]=\"WA\"),\"SITUS\",tblGPJune19[[#This Row],[Alloc]])","v":"SG"},{"$f":"INDEX(tblGPLookup[FUNC],MATCH(tblGPJune19[[#This Row],[Concat]],tblGPLookup[Concat],0))","v":"P"},{"$f":"IF(tblGPJune19[[#This Row],[Total ($000)]]=0,\"NO\",IF(ISNA(tblGPJune19[[#This Row],[FUNC]]),\"YES\",IF(_xlfn.ISFORMULA(tblGPJune19[[#This Row],[FUNC]]),\"NO\",\"YES\")))","v":"NO"}]
[{"$f":"CONCATENATE(tblGPJune19[[#This Row],[Primary Account]],tblGPJune19[[#This Row],[Primary Name]],tblGPJune19[[#This Row],[Secondary Acct]],tblGPJune19[[#This Row],[Secondary  Name]],tblGPJune19[[#This Row],[Alloc4FUNC]])","v":"1010000ELEC PLANT IN SERV3921400\"SNOWMOBILES, MOTORCYCLES (4-WHEELED ATVSITUS"},1010000,"ELEC PLANT IN SERV",3921400,"\"SNOWMOBILES, MOTORCYCLES (4-WHEELED ATV","CA",104.085146153846,{"$f":"IF(OR(tblGPJune19[[#This Row],[Alloc]]=\"IDU\",tblGPJune19[[#This Row],[Alloc]]=\"OR\",tblGPJune19[[#This Row],[Alloc]]=\"UT\",tblGPJune19[[#This Row],[Alloc]]=\"WYU\",tblGPJune19[[#This Row],[Alloc]]=\"WYP\",tblGPJune19[[#This Row],[Alloc]]=\"CA\",tblGPJune19[[#This Row],[Alloc]]=\"WA\"),\"SITUS\",tblGPJune19[[#This Row],[Alloc]])","v":"SITUS"},{"$f":"INDEX(tblGPLookup[FUNC],MATCH(tblGPJune19[[#This Row],[Concat]],tblGPLookup[Concat],0))","v":"DPW"},{"$f":"IF(tblGPJune19[[#This Row],[Total ($000)]]=0,\"NO\",IF(ISNA(tblGPJune19[[#This Row],[FUNC]]),\"YES\",IF(_xlfn.ISFORMULA(tblGPJune19[[#This Row],[FUNC]]),\"NO\",\"YES\")))","v":"NO"}]
[{"$f":"CONCATENATE(tblGPJune19[[#This Row],[Primary Account]],tblGPJune19[[#This Row],[Primary Name]],tblGPJune19[[#This Row],[Secondary Acct]],tblGPJune19[[#This Row],[Secondary  Name]],tblGPJune19[[#This Row],[Alloc4FUNC]])","v":"1010000ELEC PLANT IN SERV3921400\"SNOWMOBILES, MOTORCYCLES (4-WHEELED ATVSO"},1010000,"ELEC PLANT IN SERV",3921400,"\"SNOWMOBILES, MOTORCYCLES (4-WHEELED ATV","SO",35.062341538461503,{"$f":"IF(OR(tblGPJune19[[#This Row],[Alloc]]=\"IDU\",tblGPJune19[[#This Row],[Alloc]]=\"OR\",tblGPJune19[[#This Row],[Alloc]]=\"UT\",tblGPJune19[[#This Row],[Alloc]]=\"WYU\",tblGPJune19[[#This Row],[Alloc]]=\"WYP\",tblGPJune19[[#This Row],[Alloc]]=\"CA\",tblGPJune19[[#This Row],[Alloc]]=\"WA\"),\"SITUS\",tblGPJune19[[#This Row],[Alloc]])","v":"SO"},{"$f":"INDEX(tblGPLookup[FUNC],MATCH(tblGPJune19[[#This Row],[Concat]],tblGPLookup[Concat],0))","v":"PTD"},{"$f":"IF(tblGPJune19[[#This Row],[Total ($000)]]=0,\"NO\",IF(ISNA(tblGPJune19[[#This Row],[FUNC]]),\"YES\",IF(_xlfn.ISFORMULA(tblGPJune19[[#This Row],[FUNC]]),\"NO\",\"YES\")))","v":"NO"}]
[{"$f":"CONCATENATE(tblGPJune19[[#This Row],[Primary Account]],tblGPJune19[[#This Row],[Primary Name]],tblGPJune19[[#This Row],[Secondary Acct]],tblGPJune19[[#This Row],[Secondary  Name]],tblGPJune19[[#This Row],[Alloc4FUNC]])","v":"1010000ELEC PLANT IN SERV3921400\"SNOWMOBILES, MOTORCYCLES (4-WHEELED ATVSITUS"},1010000,"ELEC PLANT IN SERV",3921400,"\"SNOWMOBILES, MOTORCYCLES (4-WHEELED ATV","UT",270.03645999999998,{"$f":"IF(OR(tblGPJune19[[#This Row],[Alloc]]=\"IDU\",tblGPJune19[[#This Row],[Alloc]]=\"OR\",tblGPJune19[[#This Row],[Alloc]]=\"UT\",tblGPJune19[[#This Row],[Alloc]]=\"WYU\",tblGPJune19[[#This Row],[Alloc]]=\"WYP\",tblGPJune19[[#This Row],[Alloc]]=\"CA\",tblGPJune19[[#This Row],[Alloc]]=\"WA\"),\"SITUS\",tblGPJune19[[#This Row],[Alloc]])","v":"SITUS"},{"$f":"INDEX(tblGPLookup[FUNC],MATCH(tblGPJune19[[#This Row],[Concat]],tblGPLookup[Concat],0))","v":"DPW"},{"$f":"IF(tblGPJune19[[#This Row],[Total ($000)]]=0,\"NO\",IF(ISNA(tblGPJune19[[#This Row],[FUNC]]),\"YES\",IF(_xlfn.ISFORMULA(tblGPJune19[[#This Row],[FUNC]]),\"NO\",\"YES\")))","v":"NO"}]
[{"$f":"CONCATENATE(tblGPJune19[[#This Row],[Primary Account]],tblGPJune19[[#This Row],[Primary Name]],tblGPJune19[[#This Row],[Secondary Acct]],tblGPJune19[[#This Row],[Secondary  Name]],tblGPJune19[[#This Row],[Alloc4FUNC]])","v":"1010000ELEC PLANT IN SERV3921400\"SNOWMOBILES, MOTORCYCLES (4-WHEELED ATVSITUS"},1010000,"ELEC PLANT IN SERV",3921400,"\"SNOWMOBILES, MOTORCYCLES (4-WHEELED ATV","WA",63.072931538461503,{"$f":"IF(OR(tblGPJune19[[#This Row],[Alloc]]=\"IDU\",tblGPJune19[[#This Row],[Alloc]]=\"OR\",tblGPJune19[[#This Row],[Alloc]]=\"UT\",tblGPJune19[[#This Row],[Alloc]]=\"WYU\",tblGPJune19[[#This Row],[Alloc]]=\"WYP\",tblGPJune19[[#This Row],[Alloc]]=\"CA\",tblGPJune19[[#This Row],[Alloc]]=\"WA\"),\"SITUS\",tblGPJune19[[#This Row],[Alloc]])","v":"SITUS"},{"$f":"INDEX(tblGPLookup[FUNC],MATCH(tblGPJune19[[#This Row],[Concat]],tblGPLookup[Concat],0))","v":"DPW"},{"$f":"IF(tblGPJune19[[#This Row],[Total ($000)]]=0,\"NO\",IF(ISNA(tblGPJune19[[#This Row],[FUNC]]),\"YES\",IF(_xlfn.ISFORMULA(tblGPJune19[[#This Row],[FUNC]]),\"NO\",\"YES\")))","v":"NO"}]
[{"$f":"CONCATENATE(tblGPJune19[[#This Row],[Primary Account]],tblGPJune19[[#This Row],[Primary Name]],tblGPJune19[[#This Row],[Secondary Acct]],tblGPJune19[[#This Row],[Secondary  Name]],tblGPJune19[[#This Row],[Alloc4FUNC]])","v":"1010000ELEC PLANT IN SERV3921400\"SNOWMOBILES, MOTORCYCLES (4-WHEELED ATVSITUS"},1010000,"ELEC PLANT IN SERV",3921400,"\"SNOWMOBILES, MOTORCYCLES (4-WHEELED ATV","WYP",190.00024846153801,{"$f":"IF(OR(tblGPJune19[[#This Row],[Alloc]]=\"IDU\",tblGPJune19[[#This Row],[Alloc]]=\"OR\",tblGPJune19[[#This Row],[Alloc]]=\"UT\",tblGPJune19[[#This Row],[Alloc]]=\"WYU\",tblGPJune19[[#This Row],[Alloc]]=\"WYP\",tblGPJune19[[#This Row],[Alloc]]=\"CA\",tblGPJune19[[#This Row],[Alloc]]=\"WA\"),\"SITUS\",tblGPJune19[[#This Row],[Alloc]])","v":"SITUS"},{"$f":"INDEX(tblGPLookup[FUNC],MATCH(tblGPJune19[[#This Row],[Concat]],tblGPLookup[Concat],0))","v":"DPW"},{"$f":"IF(tblGPJune19[[#This Row],[Total ($000)]]=0,\"NO\",IF(ISNA(tblGPJune19[[#This Row],[FUNC]]),\"YES\",IF(_xlfn.ISFORMULA(tblGPJune19[[#This Row],[FUNC]]),\"NO\",\"YES\")))","v":"NO"}]
[{"$f":"CONCATENATE(tblGPJune19[[#This Row],[Primary Account]],tblGPJune19[[#This Row],[Primary Name]],tblGPJune19[[#This Row],[Secondary Acct]],tblGPJune19[[#This Row],[Secondary  Name]],tblGPJune19[[#This Row],[Alloc4FUNC]])","v":"1010000ELEC PLANT IN SERV3921400\"SNOWMOBILES, MOTORCYCLES (4-WHEELED ATVSITUS"},1010000,"ELEC PLANT IN SERV",3921400,"\"SNOWMOBILES, MOTORCYCLES (4-WHEELED ATV","WYU",15.914,{"$f":"IF(OR(tblGPJune19[[#This Row],[Alloc]]=\"IDU\",tblGPJune19[[#This Row],[Alloc]]=\"OR\",tblGPJune19[[#This Row],[Alloc]]=\"UT\",tblGPJune19[[#This Row],[Alloc]]=\"WYU\",tblGPJune19[[#This Row],[Alloc]]=\"WYP\",tblGPJune19[[#This Row],[Alloc]]=\"CA\",tblGPJune19[[#This Row],[Alloc]]=\"WA\"),\"SITUS\",tblGPJune19[[#This Row],[Alloc]])","v":"SITUS"},{"$f":"INDEX(tblGPLookup[FUNC],MATCH(tblGPJune19[[#This Row],[Concat]],tblGPLookup[Concat],0))","v":"DPW"},{"$f":"IF(tblGPJune19[[#This Row],[Total ($000)]]=0,\"NO\",IF(ISNA(tblGPJune19[[#This Row],[FUNC]]),\"YES\",IF(_xlfn.ISFORMULA(tblGPJune19[[#This Row],[FUNC]]),\"NO\",\"YES\")))","v":"NO"}]
[{"$f":"CONCATENATE(tblGPJune19[[#This Row],[Primary Account]],tblGPJune19[[#This Row],[Primary Name]],tblGPJune19[[#This Row],[Secondary Acct]],tblGPJune19[[#This Row],[Secondary  Name]],tblGPJune19[[#This Row],[Alloc4FUNC]])","v":"1010000ELEC PLANT IN SERV3921900OVER-THE-ROAD SEMI-TRACTORSSITUS"},1010000,"ELEC PLANT IN SERV",3921900,"OVER-THE-ROAD SEMI-TRACTORS","OR",317.14125000000001,{"$f":"IF(OR(tblGPJune19[[#This Row],[Alloc]]=\"IDU\",tblGPJune19[[#This Row],[Alloc]]=\"OR\",tblGPJune19[[#This Row],[Alloc]]=\"UT\",tblGPJune19[[#This Row],[Alloc]]=\"WYU\",tblGPJune19[[#This Row],[Alloc]]=\"WYP\",tblGPJune19[[#This Row],[Alloc]]=\"CA\",tblGPJune19[[#This Row],[Alloc]]=\"WA\"),\"SITUS\",tblGPJune19[[#This Row],[Alloc]])","v":"SITUS"},{"$f":"INDEX(tblGPLookup[FUNC],MATCH(tblGPJune19[[#This Row],[Concat]],tblGPLookup[Concat],0))","v":"DPW"},{"$f":"IF(tblGPJune19[[#This Row],[Total ($000)]]=0,\"NO\",IF(ISNA(tblGPJune19[[#This Row],[FUNC]]),\"YES\",IF(_xlfn.ISFORMULA(tblGPJune19[[#This Row],[FUNC]]),\"NO\",\"YES\")))","v":"NO"}]
[{"$f":"CONCATENATE(tblGPJune19[[#This Row],[Primary Account]],tblGPJune19[[#This Row],[Primary Name]],tblGPJune19[[#This Row],[Secondary Acct]],tblGPJune19[[#This Row],[Secondary  Name]],tblGPJune19[[#This Row],[Alloc4FUNC]])","v":"1010000ELEC PLANT IN SERV3921900OVER-THE-ROAD SEMI-TRACTORSSG"},1010000,"ELEC PLANT IN SERV",3921900,"OVER-THE-ROAD SEMI-TRACTORS","SG",374.198274615385,{"$f":"IF(OR(tblGPJune19[[#This Row],[Alloc]]=\"IDU\",tblGPJune19[[#This Row],[Alloc]]=\"OR\",tblGPJune19[[#This Row],[Alloc]]=\"UT\",tblGPJune19[[#This Row],[Alloc]]=\"WYU\",tblGPJune19[[#This Row],[Alloc]]=\"WYP\",tblGPJune19[[#This Row],[Alloc]]=\"CA\",tblGPJune19[[#This Row],[Alloc]]=\"WA\"),\"SITUS\",tblGPJune19[[#This Row],[Alloc]])","v":"SG"},{"$f":"INDEX(tblGPLookup[FUNC],MATCH(tblGPJune19[[#This Row],[Concat]],tblGPLookup[Concat],0))","v":"P"},{"$f":"IF(tblGPJune19[[#This Row],[Total ($000)]]=0,\"NO\",IF(ISNA(tblGPJune19[[#This Row],[FUNC]]),\"YES\",IF(_xlfn.ISFORMULA(tblGPJune19[[#This Row],[FUNC]]),\"NO\",\"YES\")))","v":"NO"}]
[{"$f":"CONCATENATE(tblGPJune19[[#This Row],[Primary Account]],tblGPJune19[[#This Row],[Primary Name]],tblGPJune19[[#This Row],[Secondary Acct]],tblGPJune19[[#This Row],[Secondary  Name]],tblGPJune19[[#This Row],[Alloc4FUNC]])","v":"1010000ELEC PLANT IN SERV3921900OVER-THE-ROAD SEMI-TRACTORSSO"},1010000,"ELEC PLANT IN SERV",3921900,"OVER-THE-ROAD SEMI-TRACTORS","SO",296.19578999999999,{"$f":"IF(OR(tblGPJune19[[#This Row],[Alloc]]=\"IDU\",tblGPJune19[[#This Row],[Alloc]]=\"OR\",tblGPJune19[[#This Row],[Alloc]]=\"UT\",tblGPJune19[[#This Row],[Alloc]]=\"WYU\",tblGPJune19[[#This Row],[Alloc]]=\"WYP\",tblGPJune19[[#This Row],[Alloc]]=\"CA\",tblGPJune19[[#This Row],[Alloc]]=\"WA\"),\"SITUS\",tblGPJune19[[#This Row],[Alloc]])","v":"SO"},{"$f":"INDEX(tblGPLookup[FUNC],MATCH(tblGPJune19[[#This Row],[Concat]],tblGPLookup[Concat],0))","v":"PTD"},{"$f":"IF(tblGPJune19[[#This Row],[Total ($000)]]=0,\"NO\",IF(ISNA(tblGPJune19[[#This Row],[FUNC]]),\"YES\",IF(_xlfn.ISFORMULA(tblGPJune19[[#This Row],[FUNC]]),\"NO\",\"YES\")))","v":"NO"}]
[{"$f":"CONCATENATE(tblGPJune19[[#This Row],[Primary Account]],tblGPJune19[[#This Row],[Primary Name]],tblGPJune19[[#This Row],[Secondary Acct]],tblGPJune19[[#This Row],[Secondary  Name]],tblGPJune19[[#This Row],[Alloc4FUNC]])","v":"1010000ELEC PLANT IN SERV3921900OVER-THE-ROAD SEMI-TRACTORSSITUS"},1010000,"ELEC PLANT IN SERV",3921900,"OVER-THE-ROAD SEMI-TRACTORS","UT",1642.15431384615,{"$f":"IF(OR(tblGPJune19[[#This Row],[Alloc]]=\"IDU\",tblGPJune19[[#This Row],[Alloc]]=\"OR\",tblGPJune19[[#This Row],[Alloc]]=\"UT\",tblGPJune19[[#This Row],[Alloc]]=\"WYU\",tblGPJune19[[#This Row],[Alloc]]=\"WYP\",tblGPJune19[[#This Row],[Alloc]]=\"CA\",tblGPJune19[[#This Row],[Alloc]]=\"WA\"),\"SITUS\",tblGPJune19[[#This Row],[Alloc]])","v":"SITUS"},{"$f":"INDEX(tblGPLookup[FUNC],MATCH(tblGPJune19[[#This Row],[Concat]],tblGPLookup[Concat],0))","v":"DPW"},{"$f":"IF(tblGPJune19[[#This Row],[Total ($000)]]=0,\"NO\",IF(ISNA(tblGPJune19[[#This Row],[FUNC]]),\"YES\",IF(_xlfn.ISFORMULA(tblGPJune19[[#This Row],[FUNC]]),\"NO\",\"YES\")))","v":"NO"}]
[{"$f":"CONCATENATE(tblGPJune19[[#This Row],[Primary Account]],tblGPJune19[[#This Row],[Primary Name]],tblGPJune19[[#This Row],[Secondary Acct]],tblGPJune19[[#This Row],[Secondary  Name]],tblGPJune19[[#This Row],[Alloc4FUNC]])","v":"1010000ELEC PLANT IN SERV3921900OVER-THE-ROAD SEMI-TRACTORSSITUS"},1010000,"ELEC PLANT IN SERV",3921900,"OVER-THE-ROAD SEMI-TRACTORS","WA",170.02782999999999,{"$f":"IF(OR(tblGPJune19[[#This Row],[Alloc]]=\"IDU\",tblGPJune19[[#This Row],[Alloc]]=\"OR\",tblGPJune19[[#This Row],[Alloc]]=\"UT\",tblGPJune19[[#This Row],[Alloc]]=\"WYU\",tblGPJune19[[#This Row],[Alloc]]=\"WYP\",tblGPJune19[[#This Row],[Alloc]]=\"CA\",tblGPJune19[[#This Row],[Alloc]]=\"WA\"),\"SITUS\",tblGPJune19[[#This Row],[Alloc]])","v":"SITUS"},{"$f":"INDEX(tblGPLookup[FUNC],MATCH(tblGPJune19[[#This Row],[Concat]],tblGPLookup[Concat],0))","v":"DPW"},{"$f":"IF(tblGPJune19[[#This Row],[Total ($000)]]=0,\"NO\",IF(ISNA(tblGPJune19[[#This Row],[FUNC]]),\"YES\",IF(_xlfn.ISFORMULA(tblGPJune19[[#This Row],[FUNC]]),\"NO\",\"YES\")))","v":"NO"}]
[{"$f":"CONCATENATE(tblGPJune19[[#This Row],[Primary Account]],tblGPJune19[[#This Row],[Primary Name]],tblGPJune19[[#This Row],[Secondary Acct]],tblGPJune19[[#This Row],[Secondary  Name]],tblGPJune19[[#This Row],[Alloc4FUNC]])","v":"1010000ELEC PLANT IN SERV3921900OVER-THE-ROAD SEMI-TRACTORSSITUS"},1010000,"ELEC PLANT IN SERV",3921900,"OVER-THE-ROAD SEMI-TRACTORS","WYP",86.466899999999995,{"$f":"IF(OR(tblGPJune19[[#This Row],[Alloc]]=\"IDU\",tblGPJune19[[#This Row],[Alloc]]=\"OR\",tblGPJune19[[#This Row],[Alloc]]=\"UT\",tblGPJune19[[#This Row],[Alloc]]=\"WYU\",tblGPJune19[[#This Row],[Alloc]]=\"WYP\",tblGPJune19[[#This Row],[Alloc]]=\"CA\",tblGPJune19[[#This Row],[Alloc]]=\"WA\"),\"SITUS\",tblGPJune19[[#This Row],[Alloc]])","v":"SITUS"},{"$f":"INDEX(tblGPLookup[FUNC],MATCH(tblGPJune19[[#This Row],[Concat]],tblGPLookup[Concat],0))","v":"DPW"},{"$f":"IF(tblGPJune19[[#This Row],[Total ($000)]]=0,\"NO\",IF(ISNA(tblGPJune19[[#This Row],[FUNC]]),\"YES\",IF(_xlfn.ISFORMULA(tblGPJune19[[#This Row],[FUNC]]),\"NO\",\"YES\")))","v":"NO"}]
[{"$f":"CONCATENATE(tblGPJune19[[#This Row],[Primary Account]],tblGPJune19[[#This Row],[Primary Name]],tblGPJune19[[#This Row],[Secondary Acct]],tblGPJune19[[#This Row],[Secondary  Name]],tblGPJune19[[#This Row],[Alloc4FUNC]])","v":"1010000ELEC PLANT IN SERV3923000TRANSPORTATION EQUIPMENTSO"},1010000,"ELEC PLANT IN SERV",3923000,"TRANSPORTATION EQUIPMENT","SO",2993.14068,{"$f":"IF(OR(tblGPJune19[[#This Row],[Alloc]]=\"IDU\",tblGPJune19[[#This Row],[Alloc]]=\"OR\",tblGPJune19[[#This Row],[Alloc]]=\"UT\",tblGPJune19[[#This Row],[Alloc]]=\"WYU\",tblGPJune19[[#This Row],[Alloc]]=\"WYP\",tblGPJune19[[#This Row],[Alloc]]=\"CA\",tblGPJune19[[#This Row],[Alloc]]=\"WA\"),\"SITUS\",tblGPJune19[[#This Row],[Alloc]])","v":"SO"},{"$f":"INDEX(tblGPLookup[FUNC],MATCH(tblGPJune19[[#This Row],[Concat]],tblGPLookup[Concat],0))","v":"PTD"},{"$f":"IF(tblGPJune19[[#This Row],[Total ($000)]]=0,\"NO\",IF(ISNA(tblGPJune19[[#This Row],[FUNC]]),\"YES\",IF(_xlfn.ISFORMULA(tblGPJune19[[#This Row],[FUNC]]),\"NO\",\"YES\")))","v":"NO"}]
[{"$f":"CONCATENATE(tblGPJune19[[#This Row],[Primary Account]],tblGPJune19[[#This Row],[Primary Name]],tblGPJune19[[#This Row],[Secondary Acct]],tblGPJune19[[#This Row],[Secondary  Name]],tblGPJune19[[#This Row],[Alloc4FUNC]])","v":"1010000ELEC PLANT IN SERV3930000STORES EQUIPMENTSITUS"},1010000,"ELEC PLANT IN SERV",3930000,"STORES EQUIPMENT","IDU",494.98336,{"$f":"IF(OR(tblGPJune19[[#This Row],[Alloc]]=\"IDU\",tblGPJune19[[#This Row],[Alloc]]=\"OR\",tblGPJune19[[#This Row],[Alloc]]=\"UT\",tblGPJune19[[#This Row],[Alloc]]=\"WYU\",tblGPJune19[[#This Row],[Alloc]]=\"WYP\",tblGPJune19[[#This Row],[Alloc]]=\"CA\",tblGPJune19[[#This Row],[Alloc]]=\"WA\"),\"SITUS\",tblGPJune19[[#This Row],[Alloc]])","v":"SITUS"},{"$f":"INDEX(tblGPLookup[FUNC],MATCH(tblGPJune19[[#This Row],[Concat]],tblGPLookup[Concat],0))","v":"TD"},{"$f":"IF(tblGPJune19[[#This Row],[Total ($000)]]=0,\"NO\",IF(ISNA(tblGPJune19[[#This Row],[FUNC]]),\"YES\",IF(_xlfn.ISFORMULA(tblGPJune19[[#This Row],[FUNC]]),\"NO\",\"YES\")))","v":"NO"}]
[{"$f":"CONCATENATE(tblGPJune19[[#This Row],[Primary Account]],tblGPJune19[[#This Row],[Primary Name]],tblGPJune19[[#This Row],[Secondary Acct]],tblGPJune19[[#This Row],[Secondary  Name]],tblGPJune19[[#This Row],[Alloc4FUNC]])","v":"1010000ELEC PLANT IN SERV3930000STORES EQUIPMENTSITUS"},1010000,"ELEC PLANT IN SERV",3930000,"STORES EQUIPMENT","OR",2766.3272346153799,{"$f":"IF(OR(tblGPJune19[[#This Row],[Alloc]]=\"IDU\",tblGPJune19[[#This Row],[Alloc]]=\"OR\",tblGPJune19[[#This Row],[Alloc]]=\"UT\",tblGPJune19[[#This Row],[Alloc]]=\"WYU\",tblGPJune19[[#This Row],[Alloc]]=\"WYP\",tblGPJune19[[#This Row],[Alloc]]=\"CA\",tblGPJune19[[#This Row],[Alloc]]=\"WA\"),\"SITUS\",tblGPJune19[[#This Row],[Alloc]])","v":"SITUS"},{"$f":"INDEX(tblGPLookup[FUNC],MATCH(tblGPJune19[[#This Row],[Concat]],tblGPLookup[Concat],0))","v":"TD"},{"$f":"IF(tblGPJune19[[#This Row],[Total ($000)]]=0,\"NO\",IF(ISNA(tblGPJune19[[#This Row],[FUNC]]),\"YES\",IF(_xlfn.ISFORMULA(tblGPJune19[[#This Row],[FUNC]]),\"NO\",\"YES\")))","v":"NO"}]
[{"$f":"CONCATENATE(tblGPJune19[[#This Row],[Primary Account]],tblGPJune19[[#This Row],[Primary Name]],tblGPJune19[[#This Row],[Secondary Acct]],tblGPJune19[[#This Row],[Secondary  Name]],tblGPJune19[[#This Row],[Alloc4FUNC]])","v":"1010000ELEC PLANT IN SERV3930000STORES EQUIPMENTSG"},1010000,"ELEC PLANT IN SERV",3930000,"STORES EQUIPMENT","SG",5846.5959630769203,{"$f":"IF(OR(tblGPJune19[[#This Row],[Alloc]]=\"IDU\",tblGPJune19[[#This Row],[Alloc]]=\"OR\",tblGPJune19[[#This Row],[Alloc]]=\"UT\",tblGPJune19[[#This Row],[Alloc]]=\"WYU\",tblGPJune19[[#This Row],[Alloc]]=\"WYP\",tblGPJune19[[#This Row],[Alloc]]=\"CA\",tblGPJune19[[#This Row],[Alloc]]=\"WA\"),\"SITUS\",tblGPJune19[[#This Row],[Alloc]])","v":"SG"},{"$f":"INDEX(tblGPLookup[FUNC],MATCH(tblGPJune19[[#This Row],[Concat]],tblGPLookup[Concat],0))","v":"P"},{"$f":"IF(tblGPJune19[[#This Row],[Total ($000)]]=0,\"NO\",IF(ISNA(tblGPJune19[[#This Row],[FUNC]]),\"YES\",IF(_xlfn.ISFORMULA(tblGPJune19[[#This Row],[FUNC]]),\"NO\",\"YES\")))","v":"NO"}]
[{"$f":"CONCATENATE(tblGPJune19[[#This Row],[Primary Account]],tblGPJune19[[#This Row],[Primary Name]],tblGPJune19[[#This Row],[Secondary Acct]],tblGPJune19[[#This Row],[Secondary  Name]],tblGPJune19[[#This Row],[Alloc4FUNC]])","v":"1010000ELEC PLANT IN SERV3930000STORES EQUIPMENTSITUS"},1010000,"ELEC PLANT IN SERV",3930000,"STORES EQUIPMENT","CA",195.18501230769201,{"$f":"IF(OR(tblGPJune19[[#This Row],[Alloc]]=\"IDU\",tblGPJune19[[#This Row],[Alloc]]=\"OR\",tblGPJune19[[#This Row],[Alloc]]=\"UT\",tblGPJune19[[#This Row],[Alloc]]=\"WYU\",tblGPJune19[[#This Row],[Alloc]]=\"WYP\",tblGPJune19[[#This Row],[Alloc]]=\"CA\",tblGPJune19[[#This Row],[Alloc]]=\"WA\"),\"SITUS\",tblGPJune19[[#This Row],[Alloc]])","v":"SITUS"},{"$f":"INDEX(tblGPLookup[FUNC],MATCH(tblGPJune19[[#This Row],[Concat]],tblGPLookup[Concat],0))","v":"TD"},{"$f":"IF(tblGPJune19[[#This Row],[Total ($000)]]=0,\"NO\",IF(ISNA(tblGPJune19[[#This Row],[FUNC]]),\"YES\",IF(_xlfn.ISFORMULA(tblGPJune19[[#This Row],[FUNC]]),\"NO\",\"YES\")))","v":"NO"}]
[{"$f":"CONCATENATE(tblGPJune19[[#This Row],[Primary Account]],tblGPJune19[[#This Row],[Primary Name]],tblGPJune19[[#This Row],[Secondary Acct]],tblGPJune19[[#This Row],[Secondary  Name]],tblGPJune19[[#This Row],[Alloc4FUNC]])","v":"1010000ELEC PLANT IN SERV3930000STORES EQUIPMENTSO"},1010000,"ELEC PLANT IN SERV",3930000,"STORES EQUIPMENT","SO",255.08457000000001,{"$f":"IF(OR(tblGPJune19[[#This Row],[Alloc]]=\"IDU\",tblGPJune19[[#This Row],[Alloc]]=\"OR\",tblGPJune19[[#This Row],[Alloc]]=\"UT\",tblGPJune19[[#This Row],[Alloc]]=\"WYU\",tblGPJune19[[#This Row],[Alloc]]=\"WYP\",tblGPJune19[[#This Row],[Alloc]]=\"CA\",tblGPJune19[[#This Row],[Alloc]]=\"WA\"),\"SITUS\",tblGPJune19[[#This Row],[Alloc]])","v":"SO"},{"$f":"INDEX(tblGPLookup[FUNC],MATCH(tblGPJune19[[#This Row],[Concat]],tblGPLookup[Concat],0))","v":"PTD"},{"$f":"IF(tblGPJune19[[#This Row],[Total ($000)]]=0,\"NO\",IF(ISNA(tblGPJune19[[#This Row],[FUNC]]),\"YES\",IF(_xlfn.ISFORMULA(tblGPJune19[[#This Row],[FUNC]]),\"NO\",\"YES\")))","v":"NO"}]
[{"$f":"CONCATENATE(tblGPJune19[[#This Row],[Primary Account]],tblGPJune19[[#This Row],[Primary Name]],tblGPJune19[[#This Row],[Secondary Acct]],tblGPJune19[[#This Row],[Secondary  Name]],tblGPJune19[[#This Row],[Alloc4FUNC]])","v":"1010000ELEC PLANT IN SERV3930000STORES EQUIPMENTSITUS"},1010000,"ELEC PLANT IN SERV",3930000,"STORES EQUIPMENT","UT",3224.0673076923099,{"$f":"IF(OR(tblGPJune19[[#This Row],[Alloc]]=\"IDU\",tblGPJune19[[#This Row],[Alloc]]=\"OR\",tblGPJune19[[#This Row],[Alloc]]=\"UT\",tblGPJune19[[#This Row],[Alloc]]=\"WYU\",tblGPJune19[[#This Row],[Alloc]]=\"WYP\",tblGPJune19[[#This Row],[Alloc]]=\"CA\",tblGPJune19[[#This Row],[Alloc]]=\"WA\"),\"SITUS\",tblGPJune19[[#This Row],[Alloc]])","v":"SITUS"},{"$f":"INDEX(tblGPLookup[FUNC],MATCH(tblGPJune19[[#This Row],[Concat]],tblGPLookup[Concat],0))","v":"TD"},{"$f":"IF(tblGPJune19[[#This Row],[Total ($000)]]=0,\"NO\",IF(ISNA(tblGPJune19[[#This Row],[FUNC]]),\"YES\",IF(_xlfn.ISFORMULA(tblGPJune19[[#This Row],[FUNC]]),\"NO\",\"YES\")))","v":"NO"}]
[{"$f":"CONCATENATE(tblGPJune19[[#This Row],[Primary Account]],tblGPJune19[[#This Row],[Primary Name]],tblGPJune19[[#This Row],[Secondary Acct]],tblGPJune19[[#This Row],[Secondary  Name]],tblGPJune19[[#This Row],[Alloc4FUNC]])","v":"1010000ELEC PLANT IN SERV3930000STORES EQUIPMENTSITUS"},1010000,"ELEC PLANT IN SERV",3930000,"STORES EQUIPMENT","WA",717.84363538461503,{"$f":"IF(OR(tblGPJune19[[#This Row],[Alloc]]=\"IDU\",tblGPJune19[[#This Row],[Alloc]]=\"OR\",tblGPJune19[[#This Row],[Alloc]]=\"UT\",tblGPJune19[[#This Row],[Alloc]]=\"WYU\",tblGPJune19[[#This Row],[Alloc]]=\"WYP\",tblGPJune19[[#This Row],[Alloc]]=\"CA\",tblGPJune19[[#This Row],[Alloc]]=\"WA\"),\"SITUS\",tblGPJune19[[#This Row],[Alloc]])","v":"SITUS"},{"$f":"INDEX(tblGPLookup[FUNC],MATCH(tblGPJune19[[#This Row],[Concat]],tblGPLookup[Concat],0))","v":"TD"},{"$f":"IF(tblGPJune19[[#This Row],[Total ($000)]]=0,\"NO\",IF(ISNA(tblGPJune19[[#This Row],[FUNC]]),\"YES\",IF(_xlfn.ISFORMULA(tblGPJune19[[#This Row],[FUNC]]),\"NO\",\"YES\")))","v":"NO"}]
[{"$f":"CONCATENATE(tblGPJune19[[#This Row],[Primary Account]],tblGPJune19[[#This Row],[Primary Name]],tblGPJune19[[#This Row],[Secondary Acct]],tblGPJune19[[#This Row],[Secondary  Name]],tblGPJune19[[#This Row],[Alloc4FUNC]])","v":"1010000ELEC PLANT IN SERV3930000STORES EQUIPMENTSITUS"},1010000,"ELEC PLANT IN SERV",3930000,"STORES EQUIPMENT","WYP",1088.10787538462,{"$f":"IF(OR(tblGPJune19[[#This Row],[Alloc]]=\"IDU\",tblGPJune19[[#This Row],[Alloc]]=\"OR\",tblGPJune19[[#This Row],[Alloc]]=\"UT\",tblGPJune19[[#This Row],[Alloc]]=\"WYU\",tblGPJune19[[#This Row],[Alloc]]=\"WYP\",tblGPJune19[[#This Row],[Alloc]]=\"CA\",tblGPJune19[[#This Row],[Alloc]]=\"WA\"),\"SITUS\",tblGPJune19[[#This Row],[Alloc]])","v":"SITUS"},{"$f":"INDEX(tblGPLookup[FUNC],MATCH(tblGPJune19[[#This Row],[Concat]],tblGPLookup[Concat],0))","v":"TD"},{"$f":"IF(tblGPJune19[[#This Row],[Total ($000)]]=0,\"NO\",IF(ISNA(tblGPJune19[[#This Row],[FUNC]]),\"YES\",IF(_xlfn.ISFORMULA(tblGPJune19[[#This Row],[FUNC]]),\"NO\",\"YES\")))","v":"NO"}]
[{"$f":"CONCATENATE(tblGPJune19[[#This Row],[Primary Account]],tblGPJune19[[#This Row],[Primary Name]],tblGPJune19[[#This Row],[Secondary Acct]],tblGPJune19[[#This Row],[Secondary  Name]],tblGPJune19[[#This Row],[Alloc4FUNC]])","v":"1010000ELEC PLANT IN SERV3930000STORES EQUIPMENTSITUS"},1010000,"ELEC PLANT IN SERV",3930000,"STORES EQUIPMENT","WYU",11.286885384615401,{"$f":"IF(OR(tblGPJune19[[#This Row],[Alloc]]=\"IDU\",tblGPJune19[[#This Row],[Alloc]]=\"OR\",tblGPJune19[[#This Row],[Alloc]]=\"UT\",tblGPJune19[[#This Row],[Alloc]]=\"WYU\",tblGPJune19[[#This Row],[Alloc]]=\"WYP\",tblGPJune19[[#This Row],[Alloc]]=\"CA\",tblGPJune19[[#This Row],[Alloc]]=\"WA\"),\"SITUS\",tblGPJune19[[#This Row],[Alloc]])","v":"SITUS"},{"$f":"INDEX(tblGPLookup[FUNC],MATCH(tblGPJune19[[#This Row],[Concat]],tblGPLookup[Concat],0))","v":"TD"},{"$f":"IF(tblGPJune19[[#This Row],[Total ($000)]]=0,\"NO\",IF(ISNA(tblGPJune19[[#This Row],[FUNC]]),\"YES\",IF(_xlfn.ISFORMULA(tblGPJune19[[#This Row],[FUNC]]),\"NO\",\"YES\")))","v":"NO"}]
[{"$f":"CONCATENATE(tblGPJune19[[#This Row],[Primary Account]],tblGPJune19[[#This Row],[Primary Name]],tblGPJune19[[#This Row],[Secondary Acct]],tblGPJune19[[#This Row],[Secondary  Name]],tblGPJune19[[#This Row],[Alloc4FUNC]])","v":"1010000ELEC PLANT IN SERV3940000\"TLS, SHOP, GAR EQUIPMENT\"SITUS"},1010000,"ELEC PLANT IN SERV",3940000,"\"TLS, SHOP, GAR EQUIPMENT\"","IDU",2061.26116,{"$f":"IF(OR(tblGPJune19[[#This Row],[Alloc]]=\"IDU\",tblGPJune19[[#This Row],[Alloc]]=\"OR\",tblGPJune19[[#This Row],[Alloc]]=\"UT\",tblGPJune19[[#This Row],[Alloc]]=\"WYU\",tblGPJune19[[#This Row],[Alloc]]=\"WYP\",tblGPJune19[[#This Row],[Alloc]]=\"CA\",tblGPJune19[[#This Row],[Alloc]]=\"WA\"),\"SITUS\",tblGPJune19[[#This Row],[Alloc]])","v":"SITUS"},{"$f":"INDEX(tblGPLookup[FUNC],MATCH(tblGPJune19[[#This Row],[Concat]],tblGPLookup[Concat],0))","v":"TD"},{"$f":"IF(tblGPJune19[[#This Row],[Total ($000)]]=0,\"NO\",IF(ISNA(tblGPJune19[[#This Row],[FUNC]]),\"YES\",IF(_xlfn.ISFORMULA(tblGPJune19[[#This Row],[FUNC]]),\"NO\",\"YES\")))","v":"NO"}]
[{"$f":"CONCATENATE(tblGPJune19[[#This Row],[Primary Account]],tblGPJune19[[#This Row],[Primary Name]],tblGPJune19[[#This Row],[Secondary Acct]],tblGPJune19[[#This Row],[Secondary  Name]],tblGPJune19[[#This Row],[Alloc4FUNC]])","v":"1010000ELEC PLANT IN SERV3940000\"TLS, SHOP, GAR EQUIPMENT\"SITUS"},1010000,"ELEC PLANT IN SERV",3940000,"\"TLS, SHOP, GAR EQUIPMENT\"","OR",10501.343934615399,{"$f":"IF(OR(tblGPJune19[[#This Row],[Alloc]]=\"IDU\",tblGPJune19[[#This Row],[Alloc]]=\"OR\",tblGPJune19[[#This Row],[Alloc]]=\"UT\",tblGPJune19[[#This Row],[Alloc]]=\"WYU\",tblGPJune19[[#This Row],[Alloc]]=\"WYP\",tblGPJune19[[#This Row],[Alloc]]=\"CA\",tblGPJune19[[#This Row],[Alloc]]=\"WA\"),\"SITUS\",tblGPJune19[[#This Row],[Alloc]])","v":"SITUS"},{"$f":"INDEX(tblGPLookup[FUNC],MATCH(tblGPJune19[[#This Row],[Concat]],tblGPLookup[Concat],0))","v":"TD"},{"$f":"IF(tblGPJune19[[#This Row],[Total ($000)]]=0,\"NO\",IF(ISNA(tblGPJune19[[#This Row],[FUNC]]),\"YES\",IF(_xlfn.ISFORMULA(tblGPJune19[[#This Row],[FUNC]]),\"NO\",\"YES\")))","v":"NO"}]
[{"$f":"CONCATENATE(tblGPJune19[[#This Row],[Primary Account]],tblGPJune19[[#This Row],[Primary Name]],tblGPJune19[[#This Row],[Secondary Acct]],tblGPJune19[[#This Row],[Secondary  Name]],tblGPJune19[[#This Row],[Alloc4FUNC]])","v":"1010000ELEC PLANT IN SERV3940000\"TLS, SHOP, GAR EQUIPMENT\"SE"},1010000,"ELEC PLANT IN SERV",3940000,"\"TLS, SHOP, GAR EQUIPMENT\"","SE",109.04438,{"$f":"IF(OR(tblGPJune19[[#This Row],[Alloc]]=\"IDU\",tblGPJune19[[#This Row],[Alloc]]=\"OR\",tblGPJune19[[#This Row],[Alloc]]=\"UT\",tblGPJune19[[#This Row],[Alloc]]=\"WYU\",tblGPJune19[[#This Row],[Alloc]]=\"WYP\",tblGPJune19[[#This Row],[Alloc]]=\"CA\",tblGPJune19[[#This Row],[Alloc]]=\"WA\"),\"SITUS\",tblGPJune19[[#This Row],[Alloc]])","v":"SE"},{"$f":"INDEX(tblGPLookup[FUNC],MATCH(tblGPJune19[[#This Row],[Concat]],tblGPLookup[Concat],0))","v":"P"},{"$f":"IF(tblGPJune19[[#This Row],[Total ($000)]]=0,\"NO\",IF(ISNA(tblGPJune19[[#This Row],[FUNC]]),\"YES\",IF(_xlfn.ISFORMULA(tblGPJune19[[#This Row],[FUNC]]),\"NO\",\"YES\")))","v":"NO"}]
[{"$f":"CONCATENATE(tblGPJune19[[#This Row],[Primary Account]],tblGPJune19[[#This Row],[Primary Name]],tblGPJune19[[#This Row],[Secondary Acct]],tblGPJune19[[#This Row],[Secondary  Name]],tblGPJune19[[#This Row],[Alloc4FUNC]])","v":"1010000ELEC PLANT IN SERV3940000\"TLS, SHOP, GAR EQUIPMENT\"SG"},1010000,"ELEC PLANT IN SERV",3940000,"\"TLS, SHOP, GAR EQUIPMENT\"","SG",24259.974568461501,{"$f":"IF(OR(tblGPJune19[[#This Row],[Alloc]]=\"IDU\",tblGPJune19[[#This Row],[Alloc]]=\"OR\",tblGPJune19[[#This Row],[Alloc]]=\"UT\",tblGPJune19[[#This Row],[Alloc]]=\"WYU\",tblGPJune19[[#This Row],[Alloc]]=\"WYP\",tblGPJune19[[#This Row],[Alloc]]=\"CA\",tblGPJune19[[#This Row],[Alloc]]=\"WA\"),\"SITUS\",tblGPJune19[[#This Row],[Alloc]])","v":"SG"},{"$f":"INDEX(tblGPLookup[FUNC],MATCH(tblGPJune19[[#This Row],[Concat]],tblGPLookup[Concat],0))","v":"P"},{"$f":"IF(tblGPJune19[[#This Row],[Total ($000)]]=0,\"NO\",IF(ISNA(tblGPJune19[[#This Row],[FUNC]]),\"YES\",IF(_xlfn.ISFORMULA(tblGPJune19[[#This Row],[FUNC]]),\"NO\",\"YES\")))","v":"NO"}]
[{"$f":"CONCATENATE(tblGPJune19[[#This Row],[Primary Account]],tblGPJune19[[#This Row],[Primary Name]],tblGPJune19[[#This Row],[Secondary Acct]],tblGPJune19[[#This Row],[Secondary  Name]],tblGPJune19[[#This Row],[Alloc4FUNC]])","v":"1010000ELEC PLANT IN SERV3940000\"TLS, SHOP, GAR EQUIPMENT\"SITUS"},1010000,"ELEC PLANT IN SERV",3940000,"\"TLS, SHOP, GAR EQUIPMENT\"","CA",753.86349230769201,{"$f":"IF(OR(tblGPJune19[[#This Row],[Alloc]]=\"IDU\",tblGPJune19[[#This Row],[Alloc]]=\"OR\",tblGPJune19[[#This Row],[Alloc]]=\"UT\",tblGPJune19[[#This Row],[Alloc]]=\"WYU\",tblGPJune19[[#This Row],[Alloc]]=\"WYP\",tblGPJune19[[#This Row],[Alloc]]=\"CA\",tblGPJune19[[#This Row],[Alloc]]=\"WA\"),\"SITUS\",tblGPJune19[[#This Row],[Alloc]])","v":"SITUS"},{"$f":"INDEX(tblGPLookup[FUNC],MATCH(tblGPJune19[[#This Row],[Concat]],tblGPLookup[Concat],0))","v":"TD"},{"$f":"IF(tblGPJune19[[#This Row],[Total ($000)]]=0,\"NO\",IF(ISNA(tblGPJune19[[#This Row],[FUNC]]),\"YES\",IF(_xlfn.ISFORMULA(tblGPJune19[[#This Row],[FUNC]]),\"NO\",\"YES\")))","v":"NO"}]
[{"$f":"CONCATENATE(tblGPJune19[[#This Row],[Primary Account]],tblGPJune19[[#This Row],[Primary Name]],tblGPJune19[[#This Row],[Secondary Acct]],tblGPJune19[[#This Row],[Secondary  Name]],tblGPJune19[[#This Row],[Alloc4FUNC]])","v":"1010000ELEC PLANT IN SERV3940000\"TLS, SHOP, GAR EQUIPMENT\"SO"},1010000,"ELEC PLANT IN SERV",3940000,"\"TLS, SHOP, GAR EQUIPMENT\"","SO",2593.38384692308,{"$f":"IF(OR(tblGPJune19[[#This Row],[Alloc]]=\"IDU\",tblGPJune19[[#This Row],[Alloc]]=\"OR\",tblGPJune19[[#This Row],[Alloc]]=\"UT\",tblGPJune19[[#This Row],[Alloc]]=\"WYU\",tblGPJune19[[#This Row],[Alloc]]=\"WYP\",tblGPJune19[[#This Row],[Alloc]]=\"CA\",tblGPJune19[[#This Row],[Alloc]]=\"WA\"),\"SITUS\",tblGPJune19[[#This Row],[Alloc]])","v":"SO"},{"$f":"INDEX(tblGPLookup[FUNC],MATCH(tblGPJune19[[#This Row],[Concat]],tblGPLookup[Concat],0))","v":"PTD"},{"$f":"IF(tblGPJune19[[#This Row],[Total ($000)]]=0,\"NO\",IF(ISNA(tblGPJune19[[#This Row],[FUNC]]),\"YES\",IF(_xlfn.ISFORMULA(tblGPJune19[[#This Row],[FUNC]]),\"NO\",\"YES\")))","v":"NO"}]
[{"$f":"CONCATENATE(tblGPJune19[[#This Row],[Primary Account]],tblGPJune19[[#This Row],[Primary Name]],tblGPJune19[[#This Row],[Secondary Acct]],tblGPJune19[[#This Row],[Secondary  Name]],tblGPJune19[[#This Row],[Alloc4FUNC]])","v":"1010000ELEC PLANT IN SERV3940000\"TLS, SHOP, GAR EQUIPMENT\"SITUS"},1010000,"ELEC PLANT IN SERV",3940000,"\"TLS, SHOP, GAR EQUIPMENT\"","UT",13939.958250769199,{"$f":"IF(OR(tblGPJune19[[#This Row],[Alloc]]=\"IDU\",tblGPJune19[[#This Row],[Alloc]]=\"OR\",tblGPJune19[[#This Row],[Alloc]]=\"UT\",tblGPJune19[[#This Row],[Alloc]]=\"WYU\",tblGPJune19[[#This Row],[Alloc]]=\"WYP\",tblGPJune19[[#This Row],[Alloc]]=\"CA\",tblGPJune19[[#This Row],[Alloc]]=\"WA\"),\"SITUS\",tblGPJune19[[#This Row],[Alloc]])","v":"SITUS"},{"$f":"INDEX(tblGPLookup[FUNC],MATCH(tblGPJune19[[#This Row],[Concat]],tblGPLookup[Concat],0))","v":"TD"},{"$f":"IF(tblGPJune19[[#This Row],[Total ($000)]]=0,\"NO\",IF(ISNA(tblGPJune19[[#This Row],[FUNC]]),\"YES\",IF(_xlfn.ISFORMULA(tblGPJune19[[#This Row],[FUNC]]),\"NO\",\"YES\")))","v":"NO"}]
[{"$f":"CONCATENATE(tblGPJune19[[#This Row],[Primary Account]],tblGPJune19[[#This Row],[Primary Name]],tblGPJune19[[#This Row],[Secondary Acct]],tblGPJune19[[#This Row],[Secondary  Name]],tblGPJune19[[#This Row],[Alloc4FUNC]])","v":"1010000ELEC PLANT IN SERV3940000\"TLS, SHOP, GAR EQUIPMENT\"SITUS"},1010000,"ELEC PLANT IN SERV",3940000,"\"TLS, SHOP, GAR EQUIPMENT\"","WA",2792.8793815384602,{"$f":"IF(OR(tblGPJune19[[#This Row],[Alloc]]=\"IDU\",tblGPJune19[[#This Row],[Alloc]]=\"OR\",tblGPJune19[[#This Row],[Alloc]]=\"UT\",tblGPJune19[[#This Row],[Alloc]]=\"WYU\",tblGPJune19[[#This Row],[Alloc]]=\"WYP\",tblGPJune19[[#This Row],[Alloc]]=\"CA\",tblGPJune19[[#This Row],[Alloc]]=\"WA\"),\"SITUS\",tblGPJune19[[#This Row],[Alloc]])","v":"SITUS"},{"$f":"INDEX(tblGPLookup[FUNC],MATCH(tblGPJune19[[#This Row],[Concat]],tblGPLookup[Concat],0))","v":"TD"},{"$f":"IF(tblGPJune19[[#This Row],[Total ($000)]]=0,\"NO\",IF(ISNA(tblGPJune19[[#This Row],[FUNC]]),\"YES\",IF(_xlfn.ISFORMULA(tblGPJune19[[#This Row],[FUNC]]),\"NO\",\"YES\")))","v":"NO"}]
[{"$f":"CONCATENATE(tblGPJune19[[#This Row],[Primary Account]],tblGPJune19[[#This Row],[Primary Name]],tblGPJune19[[#This Row],[Secondary Acct]],tblGPJune19[[#This Row],[Secondary  Name]],tblGPJune19[[#This Row],[Alloc4FUNC]])","v":"1010000ELEC PLANT IN SERV3940000\"TLS, SHOP, GAR EQUIPMENT\"SITUS"},1010000,"ELEC PLANT IN SERV",3940000,"\"TLS, SHOP, GAR EQUIPMENT\"","WYP",3762.5505307692301,{"$f":"IF(OR(tblGPJune19[[#This Row],[Alloc]]=\"IDU\",tblGPJune19[[#This Row],[Alloc]]=\"OR\",tblGPJune19[[#This Row],[Alloc]]=\"UT\",tblGPJune19[[#This Row],[Alloc]]=\"WYU\",tblGPJune19[[#This Row],[Alloc]]=\"WYP\",tblGPJune19[[#This Row],[Alloc]]=\"CA\",tblGPJune19[[#This Row],[Alloc]]=\"WA\"),\"SITUS\",tblGPJune19[[#This Row],[Alloc]])","v":"SITUS"},{"$f":"INDEX(tblGPLookup[FUNC],MATCH(tblGPJune19[[#This Row],[Concat]],tblGPLookup[Concat],0))","v":"TD"},{"$f":"IF(tblGPJune19[[#This Row],[Total ($000)]]=0,\"NO\",IF(ISNA(tblGPJune19[[#This Row],[FUNC]]),\"YES\",IF(_xlfn.ISFORMULA(tblGPJune19[[#This Row],[FUNC]]),\"NO\",\"YES\")))","v":"NO"}]
[{"$f":"CONCATENATE(tblGPJune19[[#This Row],[Primary Account]],tblGPJune19[[#This Row],[Primary Name]],tblGPJune19[[#This Row],[Secondary Acct]],tblGPJune19[[#This Row],[Secondary  Name]],tblGPJune19[[#This Row],[Alloc4FUNC]])","v":"1010000ELEC PLANT IN SERV3940000\"TLS, SHOP, GAR EQUIPMENT\"SITUS"},1010000,"ELEC PLANT IN SERV",3940000,"\"TLS, SHOP, GAR EQUIPMENT\"","WYU",403.72843846153802,{"$f":"IF(OR(tblGPJune19[[#This Row],[Alloc]]=\"IDU\",tblGPJune19[[#This Row],[Alloc]]=\"OR\",tblGPJune19[[#This Row],[Alloc]]=\"UT\",tblGPJune19[[#This Row],[Alloc]]=\"WYU\",tblGPJune19[[#This Row],[Alloc]]=\"WYP\",tblGPJune19[[#This Row],[Alloc]]=\"CA\",tblGPJune19[[#This Row],[Alloc]]=\"WA\"),\"SITUS\",tblGPJune19[[#This Row],[Alloc]])","v":"SITUS"},{"$f":"INDEX(tblGPLookup[FUNC],MATCH(tblGPJune19[[#This Row],[Concat]],tblGPLookup[Concat],0))","v":"TD"},{"$f":"IF(tblGPJune19[[#This Row],[Total ($000)]]=0,\"NO\",IF(ISNA(tblGPJune19[[#This Row],[FUNC]]),\"YES\",IF(_xlfn.ISFORMULA(tblGPJune19[[#This Row],[FUNC]]),\"NO\",\"YES\")))","v":"NO"}]
[{"$f":"CONCATENATE(tblGPJune19[[#This Row],[Primary Account]],tblGPJune19[[#This Row],[Primary Name]],tblGPJune19[[#This Row],[Secondary Acct]],tblGPJune19[[#This Row],[Secondary  Name]],tblGPJune19[[#This Row],[Alloc4FUNC]])","v":"1010000ELEC PLANT IN SERV3950000LABORATORY EQUIPMENTSITUS"},1010000,"ELEC PLANT IN SERV",3950000,"LABORATORY EQUIPMENT","IDU",1319.3365584615401,{"$f":"IF(OR(tblGPJune19[[#This Row],[Alloc]]=\"IDU\",tblGPJune19[[#This Row],[Alloc]]=\"OR\",tblGPJune19[[#This Row],[Alloc]]=\"UT\",tblGPJune19[[#This Row],[Alloc]]=\"WYU\",tblGPJune19[[#This Row],[Alloc]]=\"WYP\",tblGPJune19[[#This Row],[Alloc]]=\"CA\",tblGPJune19[[#This Row],[Alloc]]=\"WA\"),\"SITUS\",tblGPJune19[[#This Row],[Alloc]])","v":"SITUS"},{"$f":"INDEX(tblGPLookup[FUNC],MATCH(tblGPJune19[[#This Row],[Concat]],tblGPLookup[Concat],0))","v":"TD"},{"$f":"IF(tblGPJune19[[#This Row],[Total ($000)]]=0,\"NO\",IF(ISNA(tblGPJune19[[#This Row],[FUNC]]),\"YES\",IF(_xlfn.ISFORMULA(tblGPJune19[[#This Row],[FUNC]]),\"NO\",\"YES\")))","v":"NO"}]
[{"$f":"CONCATENATE(tblGPJune19[[#This Row],[Primary Account]],tblGPJune19[[#This Row],[Primary Name]],tblGPJune19[[#This Row],[Secondary Acct]],tblGPJune19[[#This Row],[Secondary  Name]],tblGPJune19[[#This Row],[Alloc4FUNC]])","v":"1010000ELEC PLANT IN SERV3950000LABORATORY EQUIPMENTSITUS"},1010000,"ELEC PLANT IN SERV",3950000,"LABORATORY EQUIPMENT","OR",7825.8877338461498,{"$f":"IF(OR(tblGPJune19[[#This Row],[Alloc]]=\"IDU\",tblGPJune19[[#This Row],[Alloc]]=\"OR\",tblGPJune19[[#This Row],[Alloc]]=\"UT\",tblGPJune19[[#This Row],[Alloc]]=\"WYU\",tblGPJune19[[#This Row],[Alloc]]=\"WYP\",tblGPJune19[[#This Row],[Alloc]]=\"CA\",tblGPJune19[[#This Row],[Alloc]]=\"WA\"),\"SITUS\",tblGPJune19[[#This Row],[Alloc]])","v":"SITUS"},{"$f":"INDEX(tblGPLookup[FUNC],MATCH(tblGPJune19[[#This Row],[Concat]],tblGPLookup[Concat],0))","v":"TD"},{"$f":"IF(tblGPJune19[[#This Row],[Total ($000)]]=0,\"NO\",IF(ISNA(tblGPJune19[[#This Row],[FUNC]]),\"YES\",IF(_xlfn.ISFORMULA(tblGPJune19[[#This Row],[FUNC]]),\"NO\",\"YES\")))","v":"NO"}]
[{"$f":"CONCATENATE(tblGPJune19[[#This Row],[Primary Account]],tblGPJune19[[#This Row],[Primary Name]],tblGPJune19[[#This Row],[Secondary Acct]],tblGPJune19[[#This Row],[Secondary  Name]],tblGPJune19[[#This Row],[Alloc4FUNC]])","v":"1010000ELEC PLANT IN SERV3950000LABORATORY EQUIPMENTSE"},1010000,"ELEC PLANT IN SERV",3950000,"LABORATORY EQUIPMENT","SE",1212.5440023076901,{"$f":"IF(OR(tblGPJune19[[#This Row],[Alloc]]=\"IDU\",tblGPJune19[[#This Row],[Alloc]]=\"OR\",tblGPJune19[[#This Row],[Alloc]]=\"UT\",tblGPJune19[[#This Row],[Alloc]]=\"WYU\",tblGPJune19[[#This Row],[Alloc]]=\"WYP\",tblGPJune19[[#This Row],[Alloc]]=\"CA\",tblGPJune19[[#This Row],[Alloc]]=\"WA\"),\"SITUS\",tblGPJune19[[#This Row],[Alloc]])","v":"SE"},{"$f":"INDEX(tblGPLookup[FUNC],MATCH(tblGPJune19[[#This Row],[Concat]],tblGPLookup[Concat],0))","v":"P"},{"$f":"IF(tblGPJune19[[#This Row],[Total ($000)]]=0,\"NO\",IF(ISNA(tblGPJune19[[#This Row],[FUNC]]),\"YES\",IF(_xlfn.ISFORMULA(tblGPJune19[[#This Row],[FUNC]]),\"NO\",\"YES\")))","v":"NO"}]
[{"$f":"CONCATENATE(tblGPJune19[[#This Row],[Primary Account]],tblGPJune19[[#This Row],[Primary Name]],tblGPJune19[[#This Row],[Secondary Acct]],tblGPJune19[[#This Row],[Secondary  Name]],tblGPJune19[[#This Row],[Alloc4FUNC]])","v":"1010000ELEC PLANT IN SERV3950000LABORATORY EQUIPMENTSG"},1010000,"ELEC PLANT IN SERV",3950000,"LABORATORY EQUIPMENT","SG",6474.3529661538496,{"$f":"IF(OR(tblGPJune19[[#This Row],[Alloc]]=\"IDU\",tblGPJune19[[#This Row],[Alloc]]=\"OR\",tblGPJune19[[#This Row],[Alloc]]=\"UT\",tblGPJune19[[#This Row],[Alloc]]=\"WYU\",tblGPJune19[[#This Row],[Alloc]]=\"WYP\",tblGPJune19[[#This Row],[Alloc]]=\"CA\",tblGPJune19[[#This Row],[Alloc]]=\"WA\"),\"SITUS\",tblGPJune19[[#This Row],[Alloc]])","v":"SG"},{"$f":"INDEX(tblGPLookup[FUNC],MATCH(tblGPJune19[[#This Row],[Concat]],tblGPLookup[Concat],0))","v":"P"},{"$f":"IF(tblGPJune19[[#This Row],[Total ($000)]]=0,\"NO\",IF(ISNA(tblGPJune19[[#This Row],[FUNC]]),\"YES\",IF(_xlfn.ISFORMULA(tblGPJune19[[#This Row],[FUNC]]),\"NO\",\"YES\")))","v":"NO"}]
[{"$f":"CONCATENATE(tblGPJune19[[#This Row],[Primary Account]],tblGPJune19[[#This Row],[Primary Name]],tblGPJune19[[#This Row],[Secondary Acct]],tblGPJune19[[#This Row],[Secondary  Name]],tblGPJune19[[#This Row],[Alloc4FUNC]])","v":"1010000ELEC PLANT IN SERV3950000LABORATORY EQUIPMENTSITUS"},1010000,"ELEC PLANT IN SERV",3950000,"LABORATORY EQUIPMENT","CA",297.50766923076901,{"$f":"IF(OR(tblGPJune19[[#This Row],[Alloc]]=\"IDU\",tblGPJune19[[#This Row],[Alloc]]=\"OR\",tblGPJune19[[#This Row],[Alloc]]=\"UT\",tblGPJune19[[#This Row],[Alloc]]=\"WYU\",tblGPJune19[[#This Row],[Alloc]]=\"WYP\",tblGPJune19[[#This Row],[Alloc]]=\"CA\",tblGPJune19[[#This Row],[Alloc]]=\"WA\"),\"SITUS\",tblGPJune19[[#This Row],[Alloc]])","v":"SITUS"},{"$f":"INDEX(tblGPLookup[FUNC],MATCH(tblGPJune19[[#This Row],[Concat]],tblGPLookup[Concat],0))","v":"TD"},{"$f":"IF(tblGPJune19[[#This Row],[Total ($000)]]=0,\"NO\",IF(ISNA(tblGPJune19[[#This Row],[FUNC]]),\"YES\",IF(_xlfn.ISFORMULA(tblGPJune19[[#This Row],[FUNC]]),\"NO\",\"YES\")))","v":"NO"}]
[{"$f":"CONCATENATE(tblGPJune19[[#This Row],[Primary Account]],tblGPJune19[[#This Row],[Primary Name]],tblGPJune19[[#This Row],[Secondary Acct]],tblGPJune19[[#This Row],[Secondary  Name]],tblGPJune19[[#This Row],[Alloc4FUNC]])","v":"1010000ELEC PLANT IN SERV3950000LABORATORY EQUIPMENTSO"},1010000,"ELEC PLANT IN SERV",3950000,"LABORATORY EQUIPMENT","SO",4828.83181846154,{"$f":"IF(OR(tblGPJune19[[#This Row],[Alloc]]=\"IDU\",tblGPJune19[[#This Row],[Alloc]]=\"OR\",tblGPJune19[[#This Row],[Alloc]]=\"UT\",tblGPJune19[[#This Row],[Alloc]]=\"WYU\",tblGPJune19[[#This Row],[Alloc]]=\"WYP\",tblGPJune19[[#This Row],[Alloc]]=\"CA\",tblGPJune19[[#This Row],[Alloc]]=\"WA\"),\"SITUS\",tblGPJune19[[#This Row],[Alloc]])","v":"SO"},{"$f":"INDEX(tblGPLookup[FUNC],MATCH(tblGPJune19[[#This Row],[Concat]],tblGPLookup[Concat],0))","v":"PTD"},{"$f":"IF(tblGPJune19[[#This Row],[Total ($000)]]=0,\"NO\",IF(ISNA(tblGPJune19[[#This Row],[FUNC]]),\"YES\",IF(_xlfn.ISFORMULA(tblGPJune19[[#This Row],[FUNC]]),\"NO\",\"YES\")))","v":"NO"}]
[{"$f":"CONCATENATE(tblGPJune19[[#This Row],[Primary Account]],tblGPJune19[[#This Row],[Primary Name]],tblGPJune19[[#This Row],[Secondary Acct]],tblGPJune19[[#This Row],[Secondary  Name]],tblGPJune19[[#This Row],[Alloc4FUNC]])","v":"1010000ELEC PLANT IN SERV3950000LABORATORY EQUIPMENTSITUS"},1010000,"ELEC PLANT IN SERV",3950000,"LABORATORY EQUIPMENT","UT",7965.2278653846197,{"$f":"IF(OR(tblGPJune19[[#This Row],[Alloc]]=\"IDU\",tblGPJune19[[#This Row],[Alloc]]=\"OR\",tblGPJune19[[#This Row],[Alloc]]=\"UT\",tblGPJune19[[#This Row],[Alloc]]=\"WYU\",tblGPJune19[[#This Row],[Alloc]]=\"WYP\",tblGPJune19[[#This Row],[Alloc]]=\"CA\",tblGPJune19[[#This Row],[Alloc]]=\"WA\"),\"SITUS\",tblGPJune19[[#This Row],[Alloc]])","v":"SITUS"},{"$f":"INDEX(tblGPLookup[FUNC],MATCH(tblGPJune19[[#This Row],[Concat]],tblGPLookup[Concat],0))","v":"TD"},{"$f":"IF(tblGPJune19[[#This Row],[Total ($000)]]=0,\"NO\",IF(ISNA(tblGPJune19[[#This Row],[FUNC]]),\"YES\",IF(_xlfn.ISFORMULA(tblGPJune19[[#This Row],[FUNC]]),\"NO\",\"YES\")))","v":"NO"}]
[{"$f":"CONCATENATE(tblGPJune19[[#This Row],[Primary Account]],tblGPJune19[[#This Row],[Primary Name]],tblGPJune19[[#This Row],[Secondary Acct]],tblGPJune19[[#This Row],[Secondary  Name]],tblGPJune19[[#This Row],[Alloc4FUNC]])","v":"1010000ELEC PLANT IN SERV3950000LABORATORY EQUIPMENTSITUS"},1010000,"ELEC PLANT IN SERV",3950000,"LABORATORY EQUIPMENT","WA",1286.8332130769199,{"$f":"IF(OR(tblGPJune19[[#This Row],[Alloc]]=\"IDU\",tblGPJune19[[#This Row],[Alloc]]=\"OR\",tblGPJune19[[#This Row],[Alloc]]=\"UT\",tblGPJune19[[#This Row],[Alloc]]=\"WYU\",tblGPJune19[[#This Row],[Alloc]]=\"WYP\",tblGPJune19[[#This Row],[Alloc]]=\"CA\",tblGPJune19[[#This Row],[Alloc]]=\"WA\"),\"SITUS\",tblGPJune19[[#This Row],[Alloc]])","v":"SITUS"},{"$f":"INDEX(tblGPLookup[FUNC],MATCH(tblGPJune19[[#This Row],[Concat]],tblGPLookup[Concat],0))","v":"TD"},{"$f":"IF(tblGPJune19[[#This Row],[Total ($000)]]=0,\"NO\",IF(ISNA(tblGPJune19[[#This Row],[FUNC]]),\"YES\",IF(_xlfn.ISFORMULA(tblGPJune19[[#This Row],[FUNC]]),\"NO\",\"YES\")))","v":"NO"}]
[{"$f":"CONCATENATE(tblGPJune19[[#This Row],[Primary Account]],tblGPJune19[[#This Row],[Primary Name]],tblGPJune19[[#This Row],[Secondary Acct]],tblGPJune19[[#This Row],[Secondary  Name]],tblGPJune19[[#This Row],[Alloc4FUNC]])","v":"1010000ELEC PLANT IN SERV3950000LABORATORY EQUIPMENTSITUS"},1010000,"ELEC PLANT IN SERV",3950000,"LABORATORY EQUIPMENT","WYP",2484.92422076923,{"$f":"IF(OR(tblGPJune19[[#This Row],[Alloc]]=\"IDU\",tblGPJune19[[#This Row],[Alloc]]=\"OR\",tblGPJune19[[#This Row],[Alloc]]=\"UT\",tblGPJune19[[#This Row],[Alloc]]=\"WYU\",tblGPJune19[[#This Row],[Alloc]]=\"WYP\",tblGPJune19[[#This Row],[Alloc]]=\"CA\",tblGPJune19[[#This Row],[Alloc]]=\"WA\"),\"SITUS\",tblGPJune19[[#This Row],[Alloc]])","v":"SITUS"},{"$f":"INDEX(tblGPLookup[FUNC],MATCH(tblGPJune19[[#This Row],[Concat]],tblGPLookup[Concat],0))","v":"TD"},{"$f":"IF(tblGPJune19[[#This Row],[Total ($000)]]=0,\"NO\",IF(ISNA(tblGPJune19[[#This Row],[FUNC]]),\"YES\",IF(_xlfn.ISFORMULA(tblGPJune19[[#This Row],[FUNC]]),\"NO\",\"YES\")))","v":"NO"}]
[{"$f":"CONCATENATE(tblGPJune19[[#This Row],[Primary Account]],tblGPJune19[[#This Row],[Primary Name]],tblGPJune19[[#This Row],[Secondary Acct]],tblGPJune19[[#This Row],[Secondary  Name]],tblGPJune19[[#This Row],[Alloc4FUNC]])","v":"1010000ELEC PLANT IN SERV3950000LABORATORY EQUIPMENTSITUS"},1010000,"ELEC PLANT IN SERV",3950000,"LABORATORY EQUIPMENT","WYU",149.821481538462,{"$f":"IF(OR(tblGPJune19[[#This Row],[Alloc]]=\"IDU\",tblGPJune19[[#This Row],[Alloc]]=\"OR\",tblGPJune19[[#This Row],[Alloc]]=\"UT\",tblGPJune19[[#This Row],[Alloc]]=\"WYU\",tblGPJune19[[#This Row],[Alloc]]=\"WYP\",tblGPJune19[[#This Row],[Alloc]]=\"CA\",tblGPJune19[[#This Row],[Alloc]]=\"WA\"),\"SITUS\",tblGPJune19[[#This Row],[Alloc]])","v":"SITUS"},{"$f":"INDEX(tblGPLookup[FUNC],MATCH(tblGPJune19[[#This Row],[Concat]],tblGPLookup[Concat],0))","v":"TD"},{"$f":"IF(tblGPJune19[[#This Row],[Total ($000)]]=0,\"NO\",IF(ISNA(tblGPJune19[[#This Row],[FUNC]]),\"YES\",IF(_xlfn.ISFORMULA(tblGPJune19[[#This Row],[FUNC]]),\"NO\",\"YES\")))","v":"NO"}]
[{"$f":"CONCATENATE(tblGPJune19[[#This Row],[Primary Account]],tblGPJune19[[#This Row],[Primary Name]],tblGPJune19[[#This Row],[Secondary Acct]],tblGPJune19[[#This Row],[Secondary  Name]],tblGPJune19[[#This Row],[Alloc4FUNC]])","v":"1010000ELEC PLANT IN SERV3960300\"AERIAL LIFT PB TRUCKS, 10000#-16000# GVSITUS"},1010000,"ELEC PLANT IN SERV",3960300,"\"AERIAL LIFT PB TRUCKS, 10000#-16000# GV","IDU",2567.7817507692298,{"$f":"IF(OR(tblGPJune19[[#This Row],[Alloc]]=\"IDU\",tblGPJune19[[#This Row],[Alloc]]=\"OR\",tblGPJune19[[#This Row],[Alloc]]=\"UT\",tblGPJune19[[#This Row],[Alloc]]=\"WYU\",tblGPJune19[[#This Row],[Alloc]]=\"WYP\",tblGPJune19[[#This Row],[Alloc]]=\"CA\",tblGPJune19[[#This Row],[Alloc]]=\"WA\"),\"SITUS\",tblGPJune19[[#This Row],[Alloc]])","v":"SITUS"},{"$f":"INDEX(tblGPLookup[FUNC],MATCH(tblGPJune19[[#This Row],[Concat]],tblGPLookup[Concat],0))","v":"DPW"},{"$f":"IF(tblGPJune19[[#This Row],[Total ($000)]]=0,\"NO\",IF(ISNA(tblGPJune19[[#This Row],[FUNC]]),\"YES\",IF(_xlfn.ISFORMULA(tblGPJune19[[#This Row],[FUNC]]),\"NO\",\"YES\")))","v":"NO"}]
[{"$f":"CONCATENATE(tblGPJune19[[#This Row],[Primary Account]],tblGPJune19[[#This Row],[Primary Name]],tblGPJune19[[#This Row],[Secondary Acct]],tblGPJune19[[#This Row],[Secondary  Name]],tblGPJune19[[#This Row],[Alloc4FUNC]])","v":"1010000ELEC PLANT IN SERV3960300\"AERIAL LIFT PB TRUCKS, 10000#-16000# GVSITUS"},1010000,"ELEC PLANT IN SERV",3960300,"\"AERIAL LIFT PB TRUCKS, 10000#-16000# GV","OR",11871.2781307692,{"$f":"IF(OR(tblGPJune19[[#This Row],[Alloc]]=\"IDU\",tblGPJune19[[#This Row],[Alloc]]=\"OR\",tblGPJune19[[#This Row],[Alloc]]=\"UT\",tblGPJune19[[#This Row],[Alloc]]=\"WYU\",tblGPJune19[[#This Row],[Alloc]]=\"WYP\",tblGPJune19[[#This Row],[Alloc]]=\"CA\",tblGPJune19[[#This Row],[Alloc]]=\"WA\"),\"SITUS\",tblGPJune19[[#This Row],[Alloc]])","v":"SITUS"},{"$f":"INDEX(tblGPLookup[FUNC],MATCH(tblGPJune19[[#This Row],[Concat]],tblGPLookup[Concat],0))","v":"DPW"},{"$f":"IF(tblGPJune19[[#This Row],[Total ($000)]]=0,\"NO\",IF(ISNA(tblGPJune19[[#This Row],[FUNC]]),\"YES\",IF(_xlfn.ISFORMULA(tblGPJune19[[#This Row],[FUNC]]),\"NO\",\"YES\")))","v":"NO"}]
[{"$f":"CONCATENATE(tblGPJune19[[#This Row],[Primary Account]],tblGPJune19[[#This Row],[Primary Name]],tblGPJune19[[#This Row],[Secondary Acct]],tblGPJune19[[#This Row],[Secondary  Name]],tblGPJune19[[#This Row],[Alloc4FUNC]])","v":"1010000ELEC PLANT IN SERV3960300\"AERIAL LIFT PB TRUCKS, 10000#-16000# GVSG"},1010000,"ELEC PLANT IN SERV",3960300,"\"AERIAL LIFT PB TRUCKS, 10000#-16000# GV","SG",251.556188461538,{"$f":"IF(OR(tblGPJune19[[#This Row],[Alloc]]=\"IDU\",tblGPJune19[[#This Row],[Alloc]]=\"OR\",tblGPJune19[[#This Row],[Alloc]]=\"UT\",tblGPJune19[[#This Row],[Alloc]]=\"WYU\",tblGPJune19[[#This Row],[Alloc]]=\"WYP\",tblGPJune19[[#This Row],[Alloc]]=\"CA\",tblGPJune19[[#This Row],[Alloc]]=\"WA\"),\"SITUS\",tblGPJune19[[#This Row],[Alloc]])","v":"SG"},{"$f":"INDEX(tblGPLookup[FUNC],MATCH(tblGPJune19[[#This Row],[Concat]],tblGPLookup[Concat],0))","v":"P"},{"$f":"IF(tblGPJune19[[#This Row],[Total ($000)]]=0,\"NO\",IF(ISNA(tblGPJune19[[#This Row],[FUNC]]),\"YES\",IF(_xlfn.ISFORMULA(tblGPJune19[[#This Row],[FUNC]]),\"NO\",\"YES\")))","v":"NO"}]
[{"$f":"CONCATENATE(tblGPJune19[[#This Row],[Primary Account]],tblGPJune19[[#This Row],[Primary Name]],tblGPJune19[[#This Row],[Secondary Acct]],tblGPJune19[[#This Row],[Secondary  Name]],tblGPJune19[[#This Row],[Alloc4FUNC]])","v":"1010000ELEC PLANT IN SERV3960300\"AERIAL LIFT PB TRUCKS, 10000#-16000# GVSITUS"},1010000,"ELEC PLANT IN SERV",3960300,"\"AERIAL LIFT PB TRUCKS, 10000#-16000# GV","CA",1547.0265615384601,{"$f":"IF(OR(tblGPJune19[[#This Row],[Alloc]]=\"IDU\",tblGPJune19[[#This Row],[Alloc]]=\"OR\",tblGPJune19[[#This Row],[Alloc]]=\"UT\",tblGPJune19[[#This Row],[Alloc]]=\"WYU\",tblGPJune19[[#This Row],[Alloc]]=\"WYP\",tblGPJune19[[#This Row],[Alloc]]=\"CA\",tblGPJune19[[#This Row],[Alloc]]=\"WA\"),\"SITUS\",tblGPJune19[[#This Row],[Alloc]])","v":"SITUS"},{"$f":"INDEX(tblGPLookup[FUNC],MATCH(tblGPJune19[[#This Row],[Concat]],tblGPLookup[Concat],0))","v":"DPW"},{"$f":"IF(tblGPJune19[[#This Row],[Total ($000)]]=0,\"NO\",IF(ISNA(tblGPJune19[[#This Row],[FUNC]]),\"YES\",IF(_xlfn.ISFORMULA(tblGPJune19[[#This Row],[FUNC]]),\"NO\",\"YES\")))","v":"NO"}]
[{"$f":"CONCATENATE(tblGPJune19[[#This Row],[Primary Account]],tblGPJune19[[#This Row],[Primary Name]],tblGPJune19[[#This Row],[Secondary Acct]],tblGPJune19[[#This Row],[Secondary  Name]],tblGPJune19[[#This Row],[Alloc4FUNC]])","v":"1010000ELEC PLANT IN SERV3960300\"AERIAL LIFT PB TRUCKS, 10000#-16000# GVSO"},1010000,"ELEC PLANT IN SERV",3960300,"\"AERIAL LIFT PB TRUCKS, 10000#-16000# GV","SO",1808.0183853846199,{"$f":"IF(OR(tblGPJune19[[#This Row],[Alloc]]=\"IDU\",tblGPJune19[[#This Row],[Alloc]]=\"OR\",tblGPJune19[[#This Row],[Alloc]]=\"UT\",tblGPJune19[[#This Row],[Alloc]]=\"WYU\",tblGPJune19[[#This Row],[Alloc]]=\"WYP\",tblGPJune19[[#This Row],[Alloc]]=\"CA\",tblGPJune19[[#This Row],[Alloc]]=\"WA\"),\"SITUS\",tblGPJune19[[#This Row],[Alloc]])","v":"SO"},{"$f":"INDEX(tblGPLookup[FUNC],MATCH(tblGPJune19[[#This Row],[Concat]],tblGPLookup[Concat],0))","v":"PTD"},{"$f":"IF(tblGPJune19[[#This Row],[Total ($000)]]=0,\"NO\",IF(ISNA(tblGPJune19[[#This Row],[FUNC]]),\"YES\",IF(_xlfn.ISFORMULA(tblGPJune19[[#This Row],[FUNC]]),\"NO\",\"YES\")))","v":"NO"}]
[{"$f":"CONCATENATE(tblGPJune19[[#This Row],[Primary Account]],tblGPJune19[[#This Row],[Primary Name]],tblGPJune19[[#This Row],[Secondary Acct]],tblGPJune19[[#This Row],[Secondary  Name]],tblGPJune19[[#This Row],[Alloc4FUNC]])","v":"1010000ELEC PLANT IN SERV3960300\"AERIAL LIFT PB TRUCKS, 10000#-16000# GVSITUS"},1010000,"ELEC PLANT IN SERV",3960300,"\"AERIAL LIFT PB TRUCKS, 10000#-16000# GV","UT",12367.177745384601,{"$f":"IF(OR(tblGPJune19[[#This Row],[Alloc]]=\"IDU\",tblGPJune19[[#This Row],[Alloc]]=\"OR\",tblGPJune19[[#This Row],[Alloc]]=\"UT\",tblGPJune19[[#This Row],[Alloc]]=\"WYU\",tblGPJune19[[#This Row],[Alloc]]=\"WYP\",tblGPJune19[[#This Row],[Alloc]]=\"CA\",tblGPJune19[[#This Row],[Alloc]]=\"WA\"),\"SITUS\",tblGPJune19[[#This Row],[Alloc]])","v":"SITUS"},{"$f":"INDEX(tblGPLookup[FUNC],MATCH(tblGPJune19[[#This Row],[Concat]],tblGPLookup[Concat],0))","v":"DPW"},{"$f":"IF(tblGPJune19[[#This Row],[Total ($000)]]=0,\"NO\",IF(ISNA(tblGPJune19[[#This Row],[FUNC]]),\"YES\",IF(_xlfn.ISFORMULA(tblGPJune19[[#This Row],[FUNC]]),\"NO\",\"YES\")))","v":"NO"}]
[{"$f":"CONCATENATE(tblGPJune19[[#This Row],[Primary Account]],tblGPJune19[[#This Row],[Primary Name]],tblGPJune19[[#This Row],[Secondary Acct]],tblGPJune19[[#This Row],[Secondary  Name]],tblGPJune19[[#This Row],[Alloc4FUNC]])","v":"1010000ELEC PLANT IN SERV3960300\"AERIAL LIFT PB TRUCKS, 10000#-16000# GVSITUS"},1010000,"ELEC PLANT IN SERV",3960300,"\"AERIAL LIFT PB TRUCKS, 10000#-16000# GV","WA",2812.6141007692299,{"$f":"IF(OR(tblGPJune19[[#This Row],[Alloc]]=\"IDU\",tblGPJune19[[#This Row],[Alloc]]=\"OR\",tblGPJune19[[#This Row],[Alloc]]=\"UT\",tblGPJune19[[#This Row],[Alloc]]=\"WYU\",tblGPJune19[[#This Row],[Alloc]]=\"WYP\",tblGPJune19[[#This Row],[Alloc]]=\"CA\",tblGPJune19[[#This Row],[Alloc]]=\"WA\"),\"SITUS\",tblGPJune19[[#This Row],[Alloc]])","v":"SITUS"},{"$f":"INDEX(tblGPLookup[FUNC],MATCH(tblGPJune19[[#This Row],[Concat]],tblGPLookup[Concat],0))","v":"DPW"},{"$f":"IF(tblGPJune19[[#This Row],[Total ($000)]]=0,\"NO\",IF(ISNA(tblGPJune19[[#This Row],[FUNC]]),\"YES\",IF(_xlfn.ISFORMULA(tblGPJune19[[#This Row],[FUNC]]),\"NO\",\"YES\")))","v":"NO"}]
[{"$f":"CONCATENATE(tblGPJune19[[#This Row],[Primary Account]],tblGPJune19[[#This Row],[Primary Name]],tblGPJune19[[#This Row],[Secondary Acct]],tblGPJune19[[#This Row],[Secondary  Name]],tblGPJune19[[#This Row],[Alloc4FUNC]])","v":"1010000ELEC PLANT IN SERV3960300\"AERIAL LIFT PB TRUCKS, 10000#-16000# GVSITUS"},1010000,"ELEC PLANT IN SERV",3960300,"\"AERIAL LIFT PB TRUCKS, 10000#-16000# GV","WYP",4909.84693384615,{"$f":"IF(OR(tblGPJune19[[#This Row],[Alloc]]=\"IDU\",tblGPJune19[[#This Row],[Alloc]]=\"OR\",tblGPJune19[[#This Row],[Alloc]]=\"UT\",tblGPJune19[[#This Row],[Alloc]]=\"WYU\",tblGPJune19[[#This Row],[Alloc]]=\"WYP\",tblGPJune19[[#This Row],[Alloc]]=\"CA\",tblGPJune19[[#This Row],[Alloc]]=\"WA\"),\"SITUS\",tblGPJune19[[#This Row],[Alloc]])","v":"SITUS"},{"$f":"INDEX(tblGPLookup[FUNC],MATCH(tblGPJune19[[#This Row],[Concat]],tblGPLookup[Concat],0))","v":"DPW"},{"$f":"IF(tblGPJune19[[#This Row],[Total ($000)]]=0,\"NO\",IF(ISNA(tblGPJune19[[#This Row],[FUNC]]),\"YES\",IF(_xlfn.ISFORMULA(tblGPJune19[[#This Row],[FUNC]]),\"NO\",\"YES\")))","v":"NO"}]
[{"$f":"CONCATENATE(tblGPJune19[[#This Row],[Primary Account]],tblGPJune19[[#This Row],[Primary Name]],tblGPJune19[[#This Row],[Secondary Acct]],tblGPJune19[[#This Row],[Secondary  Name]],tblGPJune19[[#This Row],[Alloc4FUNC]])","v":"1010000ELEC PLANT IN SERV3960300\"AERIAL LIFT PB TRUCKS, 10000#-16000# GVSITUS"},1010000,"ELEC PLANT IN SERV",3960300,"\"AERIAL LIFT PB TRUCKS, 10000#-16000# GV","WYU",801.94920999999999,{"$f":"IF(OR(tblGPJune19[[#This Row],[Alloc]]=\"IDU\",tblGPJune19[[#This Row],[Alloc]]=\"OR\",tblGPJune19[[#This Row],[Alloc]]=\"UT\",tblGPJune19[[#This Row],[Alloc]]=\"WYU\",tblGPJune19[[#This Row],[Alloc]]=\"WYP\",tblGPJune19[[#This Row],[Alloc]]=\"CA\",tblGPJune19[[#This Row],[Alloc]]=\"WA\"),\"SITUS\",tblGPJune19[[#This Row],[Alloc]])","v":"SITUS"},{"$f":"INDEX(tblGPLookup[FUNC],MATCH(tblGPJune19[[#This Row],[Concat]],tblGPLookup[Concat],0))","v":"DPW"},{"$f":"IF(tblGPJune19[[#This Row],[Total ($000)]]=0,\"NO\",IF(ISNA(tblGPJune19[[#This Row],[FUNC]]),\"YES\",IF(_xlfn.ISFORMULA(tblGPJune19[[#This Row],[FUNC]]),\"NO\",\"YES\")))","v":"NO"}]
[{"$f":"CONCATENATE(tblGPJune19[[#This Row],[Primary Account]],tblGPJune19[[#This Row],[Primary Name]],tblGPJune19[[#This Row],[Secondary Acct]],tblGPJune19[[#This Row],[Secondary  Name]],tblGPJune19[[#This Row],[Alloc4FUNC]])","v":"1010000ELEC PLANT IN SERV3960700TWO-AXLE DIGGER/DERRICK LINE TRUCKSSITUS"},1010000,"ELEC PLANT IN SERV",3960700,"TWO-AXLE DIGGER/DERRICK LINE TRUCKS","IDU",171.24476999999999,{"$f":"IF(OR(tblGPJune19[[#This Row],[Alloc]]=\"IDU\",tblGPJune19[[#This Row],[Alloc]]=\"OR\",tblGPJune19[[#This Row],[Alloc]]=\"UT\",tblGPJune19[[#This Row],[Alloc]]=\"WYU\",tblGPJune19[[#This Row],[Alloc]]=\"WYP\",tblGPJune19[[#This Row],[Alloc]]=\"CA\",tblGPJune19[[#This Row],[Alloc]]=\"WA\"),\"SITUS\",tblGPJune19[[#This Row],[Alloc]])","v":"SITUS"},{"$f":"INDEX(tblGPLookup[FUNC],MATCH(tblGPJune19[[#This Row],[Concat]],tblGPLookup[Concat],0))","v":"DPW"},{"$f":"IF(tblGPJune19[[#This Row],[Total ($000)]]=0,\"NO\",IF(ISNA(tblGPJune19[[#This Row],[FUNC]]),\"YES\",IF(_xlfn.ISFORMULA(tblGPJune19[[#This Row],[FUNC]]),\"NO\",\"YES\")))","v":"NO"}]
[{"$f":"CONCATENATE(tblGPJune19[[#This Row],[Primary Account]],tblGPJune19[[#This Row],[Primary Name]],tblGPJune19[[#This Row],[Secondary Acct]],tblGPJune19[[#This Row],[Secondary  Name]],tblGPJune19[[#This Row],[Alloc4FUNC]])","v":"1010000ELEC PLANT IN SERV3960700TWO-AXLE DIGGER/DERRICK LINE TRUCKSSITUS"},1010000,"ELEC PLANT IN SERV",3960700,"TWO-AXLE DIGGER/DERRICK LINE TRUCKS","OR",892.44480999999996,{"$f":"IF(OR(tblGPJune19[[#This Row],[Alloc]]=\"IDU\",tblGPJune19[[#This Row],[Alloc]]=\"OR\",tblGPJune19[[#This Row],[Alloc]]=\"UT\",tblGPJune19[[#This Row],[Alloc]]=\"WYU\",tblGPJune19[[#This Row],[Alloc]]=\"WYP\",tblGPJune19[[#This Row],[Alloc]]=\"CA\",tblGPJune19[[#This Row],[Alloc]]=\"WA\"),\"SITUS\",tblGPJune19[[#This Row],[Alloc]])","v":"SITUS"},{"$f":"INDEX(tblGPLookup[FUNC],MATCH(tblGPJune19[[#This Row],[Concat]],tblGPLookup[Concat],0))","v":"DPW"},{"$f":"IF(tblGPJune19[[#This Row],[Total ($000)]]=0,\"NO\",IF(ISNA(tblGPJune19[[#This Row],[FUNC]]),\"YES\",IF(_xlfn.ISFORMULA(tblGPJune19[[#This Row],[FUNC]]),\"NO\",\"YES\")))","v":"NO"}]
[{"$f":"CONCATENATE(tblGPJune19[[#This Row],[Primary Account]],tblGPJune19[[#This Row],[Primary Name]],tblGPJune19[[#This Row],[Secondary Acct]],tblGPJune19[[#This Row],[Secondary  Name]],tblGPJune19[[#This Row],[Alloc4FUNC]])","v":"1010000ELEC PLANT IN SERV3960700TWO-AXLE DIGGER/DERRICK LINE TRUCKSSG"},1010000,"ELEC PLANT IN SERV",3960700,"TWO-AXLE DIGGER/DERRICK LINE TRUCKS","SG",124.30812,{"$f":"IF(OR(tblGPJune19[[#This Row],[Alloc]]=\"IDU\",tblGPJune19[[#This Row],[Alloc]]=\"OR\",tblGPJune19[[#This Row],[Alloc]]=\"UT\",tblGPJune19[[#This Row],[Alloc]]=\"WYU\",tblGPJune19[[#This Row],[Alloc]]=\"WYP\",tblGPJune19[[#This Row],[Alloc]]=\"CA\",tblGPJune19[[#This Row],[Alloc]]=\"WA\"),\"SITUS\",tblGPJune19[[#This Row],[Alloc]])","v":"SG"},{"$f":"INDEX(tblGPLookup[FUNC],MATCH(tblGPJune19[[#This Row],[Concat]],tblGPLookup[Concat],0))","v":"P"},{"$f":"IF(tblGPJune19[[#This Row],[Total ($000)]]=0,\"NO\",IF(ISNA(tblGPJune19[[#This Row],[FUNC]]),\"YES\",IF(_xlfn.ISFORMULA(tblGPJune19[[#This Row],[FUNC]]),\"NO\",\"YES\")))","v":"NO"}]
[{"$f":"CONCATENATE(tblGPJune19[[#This Row],[Primary Account]],tblGPJune19[[#This Row],[Primary Name]],tblGPJune19[[#This Row],[Secondary Acct]],tblGPJune19[[#This Row],[Secondary  Name]],tblGPJune19[[#This Row],[Alloc4FUNC]])","v":"1010000ELEC PLANT IN SERV3960700TWO-AXLE DIGGER/DERRICK LINE TRUCKSSITUS"},1010000,"ELEC PLANT IN SERV",3960700,"TWO-AXLE DIGGER/DERRICK LINE TRUCKS","CA",173.11955,{"$f":"IF(OR(tblGPJune19[[#This Row],[Alloc]]=\"IDU\",tblGPJune19[[#This Row],[Alloc]]=\"OR\",tblGPJune19[[#This Row],[Alloc]]=\"UT\",tblGPJune19[[#This Row],[Alloc]]=\"WYU\",tblGPJune19[[#This Row],[Alloc]]=\"WYP\",tblGPJune19[[#This Row],[Alloc]]=\"CA\",tblGPJune19[[#This Row],[Alloc]]=\"WA\"),\"SITUS\",tblGPJune19[[#This Row],[Alloc]])","v":"SITUS"},{"$f":"INDEX(tblGPLookup[FUNC],MATCH(tblGPJune19[[#This Row],[Concat]],tblGPLookup[Concat],0))","v":"DPW"},{"$f":"IF(tblGPJune19[[#This Row],[Total ($000)]]=0,\"NO\",IF(ISNA(tblGPJune19[[#This Row],[FUNC]]),\"YES\",IF(_xlfn.ISFORMULA(tblGPJune19[[#This Row],[FUNC]]),\"NO\",\"YES\")))","v":"NO"}]
[{"$f":"CONCATENATE(tblGPJune19[[#This Row],[Primary Account]],tblGPJune19[[#This Row],[Primary Name]],tblGPJune19[[#This Row],[Secondary Acct]],tblGPJune19[[#This Row],[Secondary  Name]],tblGPJune19[[#This Row],[Alloc4FUNC]])","v":"1010000ELEC PLANT IN SERV3960700TWO-AXLE DIGGER/DERRICK LINE TRUCKSSITUS"},1010000,"ELEC PLANT IN SERV",3960700,"TWO-AXLE DIGGER/DERRICK LINE TRUCKS","UT",580.80781999999999,{"$f":"IF(OR(tblGPJune19[[#This Row],[Alloc]]=\"IDU\",tblGPJune19[[#This Row],[Alloc]]=\"OR\",tblGPJune19[[#This Row],[Alloc]]=\"UT\",tblGPJune19[[#This Row],[Alloc]]=\"WYU\",tblGPJune19[[#This Row],[Alloc]]=\"WYP\",tblGPJune19[[#This Row],[Alloc]]=\"CA\",tblGPJune19[[#This Row],[Alloc]]=\"WA\"),\"SITUS\",tblGPJune19[[#This Row],[Alloc]])","v":"SITUS"},{"$f":"INDEX(tblGPLookup[FUNC],MATCH(tblGPJune19[[#This Row],[Concat]],tblGPLookup[Concat],0))","v":"DPW"},{"$f":"IF(tblGPJune19[[#This Row],[Total ($000)]]=0,\"NO\",IF(ISNA(tblGPJune19[[#This Row],[FUNC]]),\"YES\",IF(_xlfn.ISFORMULA(tblGPJune19[[#This Row],[FUNC]]),\"NO\",\"YES\")))","v":"NO"}]
[{"$f":"CONCATENATE(tblGPJune19[[#This Row],[Primary Account]],tblGPJune19[[#This Row],[Primary Name]],tblGPJune19[[#This Row],[Secondary Acct]],tblGPJune19[[#This Row],[Secondary  Name]],tblGPJune19[[#This Row],[Alloc4FUNC]])","v":"1010000ELEC PLANT IN SERV3960700TWO-AXLE DIGGER/DERRICK LINE TRUCKSSITUS"},1010000,"ELEC PLANT IN SERV",3960700,"TWO-AXLE DIGGER/DERRICK LINE TRUCKS","WYU",209.91423,{"$f":"IF(OR(tblGPJune19[[#This Row],[Alloc]]=\"IDU\",tblGPJune19[[#This Row],[Alloc]]=\"OR\",tblGPJune19[[#This Row],[Alloc]]=\"UT\",tblGPJune19[[#This Row],[Alloc]]=\"WYU\",tblGPJune19[[#This Row],[Alloc]]=\"WYP\",tblGPJune19[[#This Row],[Alloc]]=\"CA\",tblGPJune19[[#This Row],[Alloc]]=\"WA\"),\"SITUS\",tblGPJune19[[#This Row],[Alloc]])","v":"SITUS"},{"$f":"INDEX(tblGPLookup[FUNC],MATCH(tblGPJune19[[#This Row],[Concat]],tblGPLookup[Concat],0))","v":"DPW"},{"$f":"IF(tblGPJune19[[#This Row],[Total ($000)]]=0,\"NO\",IF(ISNA(tblGPJune19[[#This Row],[FUNC]]),\"YES\",IF(_xlfn.ISFORMULA(tblGPJune19[[#This Row],[FUNC]]),\"NO\",\"YES\")))","v":"NO"}]
[{"$f":"CONCATENATE(tblGPJune19[[#This Row],[Primary Account]],tblGPJune19[[#This Row],[Primary Name]],tblGPJune19[[#This Row],[Secondary Acct]],tblGPJune19[[#This Row],[Secondary  Name]],tblGPJune19[[#This Row],[Alloc4FUNC]])","v":"1010000ELEC PLANT IN SERV3960800\"AERIAL LIFT P.B. TRUCKS, ABOVE 16000#GVSITUS"},1010000,"ELEC PLANT IN SERV",3960800,"\"AERIAL LIFT P.B. TRUCKS, ABOVE 16000#GV","IDU",2816.3395046153801,{"$f":"IF(OR(tblGPJune19[[#This Row],[Alloc]]=\"IDU\",tblGPJune19[[#This Row],[Alloc]]=\"OR\",tblGPJune19[[#This Row],[Alloc]]=\"UT\",tblGPJune19[[#This Row],[Alloc]]=\"WYU\",tblGPJune19[[#This Row],[Alloc]]=\"WYP\",tblGPJune19[[#This Row],[Alloc]]=\"CA\",tblGPJune19[[#This Row],[Alloc]]=\"WA\"),\"SITUS\",tblGPJune19[[#This Row],[Alloc]])","v":"SITUS"},{"$f":"INDEX(tblGPLookup[FUNC],MATCH(tblGPJune19[[#This Row],[Concat]],tblGPLookup[Concat],0))","v":"DPW"},{"$f":"IF(tblGPJune19[[#This Row],[Total ($000)]]=0,\"NO\",IF(ISNA(tblGPJune19[[#This Row],[FUNC]]),\"YES\",IF(_xlfn.ISFORMULA(tblGPJune19[[#This Row],[FUNC]]),\"NO\",\"YES\")))","v":"NO"}]
[{"$f":"CONCATENATE(tblGPJune19[[#This Row],[Primary Account]],tblGPJune19[[#This Row],[Primary Name]],tblGPJune19[[#This Row],[Secondary Acct]],tblGPJune19[[#This Row],[Secondary  Name]],tblGPJune19[[#This Row],[Alloc4FUNC]])","v":"1010000ELEC PLANT IN SERV3960800\"AERIAL LIFT P.B. TRUCKS, ABOVE 16000#GVSITUS"},1010000,"ELEC PLANT IN SERV",3960800,"\"AERIAL LIFT P.B. TRUCKS, ABOVE 16000#GV","OR",12413.080043846199,{"$f":"IF(OR(tblGPJune19[[#This Row],[Alloc]]=\"IDU\",tblGPJune19[[#This Row],[Alloc]]=\"OR\",tblGPJune19[[#This Row],[Alloc]]=\"UT\",tblGPJune19[[#This Row],[Alloc]]=\"WYU\",tblGPJune19[[#This Row],[Alloc]]=\"WYP\",tblGPJune19[[#This Row],[Alloc]]=\"CA\",tblGPJune19[[#This Row],[Alloc]]=\"WA\"),\"SITUS\",tblGPJune19[[#This Row],[Alloc]])","v":"SITUS"},{"$f":"INDEX(tblGPLookup[FUNC],MATCH(tblGPJune19[[#This Row],[Concat]],tblGPLookup[Concat],0))","v":"DPW"},{"$f":"IF(tblGPJune19[[#This Row],[Total ($000)]]=0,\"NO\",IF(ISNA(tblGPJune19[[#This Row],[FUNC]]),\"YES\",IF(_xlfn.ISFORMULA(tblGPJune19[[#This Row],[FUNC]]),\"NO\",\"YES\")))","v":"NO"}]
[{"$f":"CONCATENATE(tblGPJune19[[#This Row],[Primary Account]],tblGPJune19[[#This Row],[Primary Name]],tblGPJune19[[#This Row],[Secondary Acct]],tblGPJune19[[#This Row],[Secondary  Name]],tblGPJune19[[#This Row],[Alloc4FUNC]])","v":"1010000ELEC PLANT IN SERV3960800\"AERIAL LIFT P.B. TRUCKS, ABOVE 16000#GVSG"},1010000,"ELEC PLANT IN SERV",3960800,"\"AERIAL LIFT P.B. TRUCKS, ABOVE 16000#GV","SG",1239.03592,{"$f":"IF(OR(tblGPJune19[[#This Row],[Alloc]]=\"IDU\",tblGPJune19[[#This Row],[Alloc]]=\"OR\",tblGPJune19[[#This Row],[Alloc]]=\"UT\",tblGPJune19[[#This Row],[Alloc]]=\"WYU\",tblGPJune19[[#This Row],[Alloc]]=\"WYP\",tblGPJune19[[#This Row],[Alloc]]=\"CA\",tblGPJune19[[#This Row],[Alloc]]=\"WA\"),\"SITUS\",tblGPJune19[[#This Row],[Alloc]])","v":"SG"},{"$f":"INDEX(tblGPLookup[FUNC],MATCH(tblGPJune19[[#This Row],[Concat]],tblGPLookup[Concat],0))","v":"P"},{"$f":"IF(tblGPJune19[[#This Row],[Total ($000)]]=0,\"NO\",IF(ISNA(tblGPJune19[[#This Row],[FUNC]]),\"YES\",IF(_xlfn.ISFORMULA(tblGPJune19[[#This Row],[FUNC]]),\"NO\",\"YES\")))","v":"NO"}]
[{"$f":"CONCATENATE(tblGPJune19[[#This Row],[Primary Account]],tblGPJune19[[#This Row],[Primary Name]],tblGPJune19[[#This Row],[Secondary Acct]],tblGPJune19[[#This Row],[Secondary  Name]],tblGPJune19[[#This Row],[Alloc4FUNC]])","v":"1010000ELEC PLANT IN SERV3960800\"AERIAL LIFT P.B. TRUCKS, ABOVE 16000#GVSITUS"},1010000,"ELEC PLANT IN SERV",3960800,"\"AERIAL LIFT P.B. TRUCKS, ABOVE 16000#GV","CA",1524.5825838461501,{"$f":"IF(OR(tblGPJune19[[#This Row],[Alloc]]=\"IDU\",tblGPJune19[[#This Row],[Alloc]]=\"OR\",tblGPJune19[[#This Row],[Alloc]]=\"UT\",tblGPJune19[[#This Row],[Alloc]]=\"WYU\",tblGPJune19[[#This Row],[Alloc]]=\"WYP\",tblGPJune19[[#This Row],[Alloc]]=\"CA\",tblGPJune19[[#This Row],[Alloc]]=\"WA\"),\"SITUS\",tblGPJune19[[#This Row],[Alloc]])","v":"SITUS"},{"$f":"INDEX(tblGPLookup[FUNC],MATCH(tblGPJune19[[#This Row],[Concat]],tblGPLookup[Concat],0))","v":"DPW"},{"$f":"IF(tblGPJune19[[#This Row],[Total ($000)]]=0,\"NO\",IF(ISNA(tblGPJune19[[#This Row],[FUNC]]),\"YES\",IF(_xlfn.ISFORMULA(tblGPJune19[[#This Row],[FUNC]]),\"NO\",\"YES\")))","v":"NO"}]
[{"$f":"CONCATENATE(tblGPJune19[[#This Row],[Primary Account]],tblGPJune19[[#This Row],[Primary Name]],tblGPJune19[[#This Row],[Secondary Acct]],tblGPJune19[[#This Row],[Secondary  Name]],tblGPJune19[[#This Row],[Alloc4FUNC]])","v":"1010000ELEC PLANT IN SERV3960800\"AERIAL LIFT P.B. TRUCKS, ABOVE 16000#GVSO"},1010000,"ELEC PLANT IN SERV",3960800,"\"AERIAL LIFT P.B. TRUCKS, ABOVE 16000#GV","SO",1539.84080692308,{"$f":"IF(OR(tblGPJune19[[#This Row],[Alloc]]=\"IDU\",tblGPJune19[[#This Row],[Alloc]]=\"OR\",tblGPJune19[[#This Row],[Alloc]]=\"UT\",tblGPJune19[[#This Row],[Alloc]]=\"WYU\",tblGPJune19[[#This Row],[Alloc]]=\"WYP\",tblGPJune19[[#This Row],[Alloc]]=\"CA\",tblGPJune19[[#This Row],[Alloc]]=\"WA\"),\"SITUS\",tblGPJune19[[#This Row],[Alloc]])","v":"SO"},{"$f":"INDEX(tblGPLookup[FUNC],MATCH(tblGPJune19[[#This Row],[Concat]],tblGPLookup[Concat],0))","v":"PTD"},{"$f":"IF(tblGPJune19[[#This Row],[Total ($000)]]=0,\"NO\",IF(ISNA(tblGPJune19[[#This Row],[FUNC]]),\"YES\",IF(_xlfn.ISFORMULA(tblGPJune19[[#This Row],[FUNC]]),\"NO\",\"YES\")))","v":"NO"}]
[{"$f":"CONCATENATE(tblGPJune19[[#This Row],[Primary Account]],tblGPJune19[[#This Row],[Primary Name]],tblGPJune19[[#This Row],[Secondary Acct]],tblGPJune19[[#This Row],[Secondary  Name]],tblGPJune19[[#This Row],[Alloc4FUNC]])","v":"1010000ELEC PLANT IN SERV3960800\"AERIAL LIFT P.B. TRUCKS, ABOVE 16000#GVSITUS"},1010000,"ELEC PLANT IN SERV",3960800,"\"AERIAL LIFT P.B. TRUCKS, ABOVE 16000#GV","UT",14915.7172807692,{"$f":"IF(OR(tblGPJune19[[#This Row],[Alloc]]=\"IDU\",tblGPJune19[[#This Row],[Alloc]]=\"OR\",tblGPJune19[[#This Row],[Alloc]]=\"UT\",tblGPJune19[[#This Row],[Alloc]]=\"WYU\",tblGPJune19[[#This Row],[Alloc]]=\"WYP\",tblGPJune19[[#This Row],[Alloc]]=\"CA\",tblGPJune19[[#This Row],[Alloc]]=\"WA\"),\"SITUS\",tblGPJune19[[#This Row],[Alloc]])","v":"SITUS"},{"$f":"INDEX(tblGPLookup[FUNC],MATCH(tblGPJune19[[#This Row],[Concat]],tblGPLookup[Concat],0))","v":"DPW"},{"$f":"IF(tblGPJune19[[#This Row],[Total ($000)]]=0,\"NO\",IF(ISNA(tblGPJune19[[#This Row],[FUNC]]),\"YES\",IF(_xlfn.ISFORMULA(tblGPJune19[[#This Row],[FUNC]]),\"NO\",\"YES\")))","v":"NO"}]
[{"$f":"CONCATENATE(tblGPJune19[[#This Row],[Primary Account]],tblGPJune19[[#This Row],[Primary Name]],tblGPJune19[[#This Row],[Secondary Acct]],tblGPJune19[[#This Row],[Secondary  Name]],tblGPJune19[[#This Row],[Alloc4FUNC]])","v":"1010000ELEC PLANT IN SERV3960800\"AERIAL LIFT P.B. TRUCKS, ABOVE 16000#GVSITUS"},1010000,"ELEC PLANT IN SERV",3960800,"\"AERIAL LIFT P.B. TRUCKS, ABOVE 16000#GV","WA",3109.2070407692299,{"$f":"IF(OR(tblGPJune19[[#This Row],[Alloc]]=\"IDU\",tblGPJune19[[#This Row],[Alloc]]=\"OR\",tblGPJune19[[#This Row],[Alloc]]=\"UT\",tblGPJune19[[#This Row],[Alloc]]=\"WYU\",tblGPJune19[[#This Row],[Alloc]]=\"WYP\",tblGPJune19[[#This Row],[Alloc]]=\"CA\",tblGPJune19[[#This Row],[Alloc]]=\"WA\"),\"SITUS\",tblGPJune19[[#This Row],[Alloc]])","v":"SITUS"},{"$f":"INDEX(tblGPLookup[FUNC],MATCH(tblGPJune19[[#This Row],[Concat]],tblGPLookup[Concat],0))","v":"DPW"},{"$f":"IF(tblGPJune19[[#This Row],[Total ($000)]]=0,\"NO\",IF(ISNA(tblGPJune19[[#This Row],[FUNC]]),\"YES\",IF(_xlfn.ISFORMULA(tblGPJune19[[#This Row],[FUNC]]),\"NO\",\"YES\")))","v":"NO"}]
[{"$f":"CONCATENATE(tblGPJune19[[#This Row],[Primary Account]],tblGPJune19[[#This Row],[Primary Name]],tblGPJune19[[#This Row],[Secondary Acct]],tblGPJune19[[#This Row],[Secondary  Name]],tblGPJune19[[#This Row],[Alloc4FUNC]])","v":"1010000ELEC PLANT IN SERV3960800\"AERIAL LIFT P.B. TRUCKS, ABOVE 16000#GVSITUS"},1010000,"ELEC PLANT IN SERV",3960800,"\"AERIAL LIFT P.B. TRUCKS, ABOVE 16000#GV","WYP",5584.4457476923099,{"$f":"IF(OR(tblGPJune19[[#This Row],[Alloc]]=\"IDU\",tblGPJune19[[#This Row],[Alloc]]=\"OR\",tblGPJune19[[#This Row],[Alloc]]=\"UT\",tblGPJune19[[#This Row],[Alloc]]=\"WYU\",tblGPJune19[[#This Row],[Alloc]]=\"WYP\",tblGPJune19[[#This Row],[Alloc]]=\"CA\",tblGPJune19[[#This Row],[Alloc]]=\"WA\"),\"SITUS\",tblGPJune19[[#This Row],[Alloc]])","v":"SITUS"},{"$f":"INDEX(tblGPLookup[FUNC],MATCH(tblGPJune19[[#This Row],[Concat]],tblGPLookup[Concat],0))","v":"DPW"},{"$f":"IF(tblGPJune19[[#This Row],[Total ($000)]]=0,\"NO\",IF(ISNA(tblGPJune19[[#This Row],[FUNC]]),\"YES\",IF(_xlfn.ISFORMULA(tblGPJune19[[#This Row],[FUNC]]),\"NO\",\"YES\")))","v":"NO"}]
[{"$f":"CONCATENATE(tblGPJune19[[#This Row],[Primary Account]],tblGPJune19[[#This Row],[Primary Name]],tblGPJune19[[#This Row],[Secondary Acct]],tblGPJune19[[#This Row],[Secondary  Name]],tblGPJune19[[#This Row],[Alloc4FUNC]])","v":"1010000ELEC PLANT IN SERV3960800\"AERIAL LIFT P.B. TRUCKS, ABOVE 16000#GVSITUS"},1010000,"ELEC PLANT IN SERV",3960800,"\"AERIAL LIFT P.B. TRUCKS, ABOVE 16000#GV","WYU",978.36648153846102,{"$f":"IF(OR(tblGPJune19[[#This Row],[Alloc]]=\"IDU\",tblGPJune19[[#This Row],[Alloc]]=\"OR\",tblGPJune19[[#This Row],[Alloc]]=\"UT\",tblGPJune19[[#This Row],[Alloc]]=\"WYU\",tblGPJune19[[#This Row],[Alloc]]=\"WYP\",tblGPJune19[[#This Row],[Alloc]]=\"CA\",tblGPJune19[[#This Row],[Alloc]]=\"WA\"),\"SITUS\",tblGPJune19[[#This Row],[Alloc]])","v":"SITUS"},{"$f":"INDEX(tblGPLookup[FUNC],MATCH(tblGPJune19[[#This Row],[Concat]],tblGPLookup[Concat],0))","v":"DPW"},{"$f":"IF(tblGPJune19[[#This Row],[Total ($000)]]=0,\"NO\",IF(ISNA(tblGPJune19[[#This Row],[FUNC]]),\"YES\",IF(_xlfn.ISFORMULA(tblGPJune19[[#This Row],[FUNC]]),\"NO\",\"YES\")))","v":"NO"}]
[{"$f":"CONCATENATE(tblGPJune19[[#This Row],[Primary Account]],tblGPJune19[[#This Row],[Primary Name]],tblGPJune19[[#This Row],[Secondary Acct]],tblGPJune19[[#This Row],[Secondary  Name]],tblGPJune19[[#This Row],[Alloc4FUNC]])","v":"1010000ELEC PLANT IN SERV3961000CRANESSITUS"},1010000,"ELEC PLANT IN SERV",3961000,"CRANES","OR",412.50133,{"$f":"IF(OR(tblGPJune19[[#This Row],[Alloc]]=\"IDU\",tblGPJune19[[#This Row],[Alloc]]=\"OR\",tblGPJune19[[#This Row],[Alloc]]=\"UT\",tblGPJune19[[#This Row],[Alloc]]=\"WYU\",tblGPJune19[[#This Row],[Alloc]]=\"WYP\",tblGPJune19[[#This Row],[Alloc]]=\"CA\",tblGPJune19[[#This Row],[Alloc]]=\"WA\"),\"SITUS\",tblGPJune19[[#This Row],[Alloc]])","v":"SITUS"},{"$f":"INDEX(tblGPLookup[FUNC],MATCH(tblGPJune19[[#This Row],[Concat]],tblGPLookup[Concat],0))","v":"DPW"},{"$f":"IF(tblGPJune19[[#This Row],[Total ($000)]]=0,\"NO\",IF(ISNA(tblGPJune19[[#This Row],[FUNC]]),\"YES\",IF(_xlfn.ISFORMULA(tblGPJune19[[#This Row],[FUNC]]),\"NO\",\"YES\")))","v":"NO"}]
[{"$f":"CONCATENATE(tblGPJune19[[#This Row],[Primary Account]],tblGPJune19[[#This Row],[Primary Name]],tblGPJune19[[#This Row],[Secondary Acct]],tblGPJune19[[#This Row],[Secondary  Name]],tblGPJune19[[#This Row],[Alloc4FUNC]])","v":"1010000ELEC PLANT IN SERV3961000CRANESSG"},1010000,"ELEC PLANT IN SERV",3961000,"CRANES","SG",3557.04484230769,{"$f":"IF(OR(tblGPJune19[[#This Row],[Alloc]]=\"IDU\",tblGPJune19[[#This Row],[Alloc]]=\"OR\",tblGPJune19[[#This Row],[Alloc]]=\"UT\",tblGPJune19[[#This Row],[Alloc]]=\"WYU\",tblGPJune19[[#This Row],[Alloc]]=\"WYP\",tblGPJune19[[#This Row],[Alloc]]=\"CA\",tblGPJune19[[#This Row],[Alloc]]=\"WA\"),\"SITUS\",tblGPJune19[[#This Row],[Alloc]])","v":"SG"},{"$f":"INDEX(tblGPLookup[FUNC],MATCH(tblGPJune19[[#This Row],[Concat]],tblGPLookup[Concat],0))","v":"P"},{"$f":"IF(tblGPJune19[[#This Row],[Total ($000)]]=0,\"NO\",IF(ISNA(tblGPJune19[[#This Row],[FUNC]]),\"YES\",IF(_xlfn.ISFORMULA(tblGPJune19[[#This Row],[FUNC]]),\"NO\",\"YES\")))","v":"NO"}]
[{"$f":"CONCATENATE(tblGPJune19[[#This Row],[Primary Account]],tblGPJune19[[#This Row],[Primary Name]],tblGPJune19[[#This Row],[Secondary Acct]],tblGPJune19[[#This Row],[Secondary  Name]],tblGPJune19[[#This Row],[Alloc4FUNC]])","v":"1010000ELEC PLANT IN SERV3961000CRANESSITUS"},1010000,"ELEC PLANT IN SERV",3961000,"CRANES","UT",2.92916,{"$f":"IF(OR(tblGPJune19[[#This Row],[Alloc]]=\"IDU\",tblGPJune19[[#This Row],[Alloc]]=\"OR\",tblGPJune19[[#This Row],[Alloc]]=\"UT\",tblGPJune19[[#This Row],[Alloc]]=\"WYU\",tblGPJune19[[#This Row],[Alloc]]=\"WYP\",tblGPJune19[[#This Row],[Alloc]]=\"CA\",tblGPJune19[[#This Row],[Alloc]]=\"WA\"),\"SITUS\",tblGPJune19[[#This Row],[Alloc]])","v":"SITUS"},{"$f":"INDEX(tblGPLookup[FUNC],MATCH(tblGPJune19[[#This Row],[Concat]],tblGPLookup[Concat],0))","v":"DPW"},{"$f":"IF(tblGPJune19[[#This Row],[Total ($000)]]=0,\"NO\",IF(ISNA(tblGPJune19[[#This Row],[FUNC]]),\"YES\",IF(_xlfn.ISFORMULA(tblGPJune19[[#This Row],[FUNC]]),\"NO\",\"YES\")))","v":"NO"}]
[{"$f":"CONCATENATE(tblGPJune19[[#This Row],[Primary Account]],tblGPJune19[[#This Row],[Primary Name]],tblGPJune19[[#This Row],[Secondary Acct]],tblGPJune19[[#This Row],[Secondary  Name]],tblGPJune19[[#This Row],[Alloc4FUNC]])","v":"1010000ELEC PLANT IN SERV3961100HEAVY CONSTRUCTION EQUIP, PRODUCT DIGGERSITUS"},1010000,"ELEC PLANT IN SERV",3961100,"HEAVY CONSTRUCTION EQUIP, PRODUCT DIGGER","OR",1216.5528099999999,{"$f":"IF(OR(tblGPJune19[[#This Row],[Alloc]]=\"IDU\",tblGPJune19[[#This Row],[Alloc]]=\"OR\",tblGPJune19[[#This Row],[Alloc]]=\"UT\",tblGPJune19[[#This Row],[Alloc]]=\"WYU\",tblGPJune19[[#This Row],[Alloc]]=\"WYP\",tblGPJune19[[#This Row],[Alloc]]=\"CA\",tblGPJune19[[#This Row],[Alloc]]=\"WA\"),\"SITUS\",tblGPJune19[[#This Row],[Alloc]])","v":"SITUS"},{"$f":"INDEX(tblGPLookup[FUNC],MATCH(tblGPJune19[[#This Row],[Concat]],tblGPLookup[Concat],0))","v":"DPW"},{"$f":"IF(tblGPJune19[[#This Row],[Total ($000)]]=0,\"NO\",IF(ISNA(tblGPJune19[[#This Row],[FUNC]]),\"YES\",IF(_xlfn.ISFORMULA(tblGPJune19[[#This Row],[FUNC]]),\"NO\",\"YES\")))","v":"NO"}]
[{"$f":"CONCATENATE(tblGPJune19[[#This Row],[Primary Account]],tblGPJune19[[#This Row],[Primary Name]],tblGPJune19[[#This Row],[Secondary Acct]],tblGPJune19[[#This Row],[Secondary  Name]],tblGPJune19[[#This Row],[Alloc4FUNC]])","v":"1010000ELEC PLANT IN SERV3961100HEAVY CONSTRUCTION EQUIP, PRODUCT DIGGERSG"},1010000,"ELEC PLANT IN SERV",3961100,"HEAVY CONSTRUCTION EQUIP, PRODUCT DIGGER","SG",34070.424250769203,{"$f":"IF(OR(tblGPJune19[[#This Row],[Alloc]]=\"IDU\",tblGPJune19[[#This Row],[Alloc]]=\"OR\",tblGPJune19[[#This Row],[Alloc]]=\"UT\",tblGPJune19[[#This Row],[Alloc]]=\"WYU\",tblGPJune19[[#This Row],[Alloc]]=\"WYP\",tblGPJune19[[#This Row],[Alloc]]=\"CA\",tblGPJune19[[#This Row],[Alloc]]=\"WA\"),\"SITUS\",tblGPJune19[[#This Row],[Alloc]])","v":"SG"},{"$f":"INDEX(tblGPLookup[FUNC],MATCH(tblGPJune19[[#This Row],[Concat]],tblGPLookup[Concat],0))","v":"P"},{"$f":"IF(tblGPJune19[[#This Row],[Total ($000)]]=0,\"NO\",IF(ISNA(tblGPJune19[[#This Row],[FUNC]]),\"YES\",IF(_xlfn.ISFORMULA(tblGPJune19[[#This Row],[FUNC]]),\"NO\",\"YES\")))","v":"NO"}]
[{"$f":"CONCATENATE(tblGPJune19[[#This Row],[Primary Account]],tblGPJune19[[#This Row],[Primary Name]],tblGPJune19[[#This Row],[Secondary Acct]],tblGPJune19[[#This Row],[Secondary  Name]],tblGPJune19[[#This Row],[Alloc4FUNC]])","v":"1010000ELEC PLANT IN SERV3961100HEAVY CONSTRUCTION EQUIP, PRODUCT DIGGERSO"},1010000,"ELEC PLANT IN SERV",3961100,"HEAVY CONSTRUCTION EQUIP, PRODUCT DIGGER","SO",850.81047615384603,{"$f":"IF(OR(tblGPJune19[[#This Row],[Alloc]]=\"IDU\",tblGPJune19[[#This Row],[Alloc]]=\"OR\",tblGPJune19[[#This Row],[Alloc]]=\"UT\",tblGPJune19[[#This Row],[Alloc]]=\"WYU\",tblGPJune19[[#This Row],[Alloc]]=\"WYP\",tblGPJune19[[#This Row],[Alloc]]=\"CA\",tblGPJune19[[#This Row],[Alloc]]=\"WA\"),\"SITUS\",tblGPJune19[[#This Row],[Alloc]])","v":"SO"},{"$f":"INDEX(tblGPLookup[FUNC],MATCH(tblGPJune19[[#This Row],[Concat]],tblGPLookup[Concat],0))","v":"PTD"},{"$f":"IF(tblGPJune19[[#This Row],[Total ($000)]]=0,\"NO\",IF(ISNA(tblGPJune19[[#This Row],[FUNC]]),\"YES\",IF(_xlfn.ISFORMULA(tblGPJune19[[#This Row],[FUNC]]),\"NO\",\"YES\")))","v":"NO"}]
[{"$f":"CONCATENATE(tblGPJune19[[#This Row],[Primary Account]],tblGPJune19[[#This Row],[Primary Name]],tblGPJune19[[#This Row],[Secondary Acct]],tblGPJune19[[#This Row],[Secondary  Name]],tblGPJune19[[#This Row],[Alloc4FUNC]])","v":"1010000ELEC PLANT IN SERV3961100HEAVY CONSTRUCTION EQUIP, PRODUCT DIGGERSITUS"},1010000,"ELEC PLANT IN SERV",3961100,"HEAVY CONSTRUCTION EQUIP, PRODUCT DIGGER","UT",1477.99073461538,{"$f":"IF(OR(tblGPJune19[[#This Row],[Alloc]]=\"IDU\",tblGPJune19[[#This Row],[Alloc]]=\"OR\",tblGPJune19[[#This Row],[Alloc]]=\"UT\",tblGPJune19[[#This Row],[Alloc]]=\"WYU\",tblGPJune19[[#This Row],[Alloc]]=\"WYP\",tblGPJune19[[#This Row],[Alloc]]=\"CA\",tblGPJune19[[#This Row],[Alloc]]=\"WA\"),\"SITUS\",tblGPJune19[[#This Row],[Alloc]])","v":"SITUS"},{"$f":"INDEX(tblGPLookup[FUNC],MATCH(tblGPJune19[[#This Row],[Concat]],tblGPLookup[Concat],0))","v":"DPW"},{"$f":"IF(tblGPJune19[[#This Row],[Total ($000)]]=0,\"NO\",IF(ISNA(tblGPJune19[[#This Row],[FUNC]]),\"YES\",IF(_xlfn.ISFORMULA(tblGPJune19[[#This Row],[FUNC]]),\"NO\",\"YES\")))","v":"NO"}]
[{"$f":"CONCATENATE(tblGPJune19[[#This Row],[Primary Account]],tblGPJune19[[#This Row],[Primary Name]],tblGPJune19[[#This Row],[Secondary Acct]],tblGPJune19[[#This Row],[Secondary  Name]],tblGPJune19[[#This Row],[Alloc4FUNC]])","v":"1010000ELEC PLANT IN SERV3961100HEAVY CONSTRUCTION EQUIP, PRODUCT DIGGERSITUS"},1010000,"ELEC PLANT IN SERV",3961100,"HEAVY CONSTRUCTION EQUIP, PRODUCT DIGGER","WYP",244.05047153846201,{"$f":"IF(OR(tblGPJune19[[#This Row],[Alloc]]=\"IDU\",tblGPJune19[[#This Row],[Alloc]]=\"OR\",tblGPJune19[[#This Row],[Alloc]]=\"UT\",tblGPJune19[[#This Row],[Alloc]]=\"WYU\",tblGPJune19[[#This Row],[Alloc]]=\"WYP\",tblGPJune19[[#This Row],[Alloc]]=\"CA\",tblGPJune19[[#This Row],[Alloc]]=\"WA\"),\"SITUS\",tblGPJune19[[#This Row],[Alloc]])","v":"SITUS"},{"$f":"INDEX(tblGPLookup[FUNC],MATCH(tblGPJune19[[#This Row],[Concat]],tblGPLookup[Concat],0))","v":"DPW"},{"$f":"IF(tblGPJune19[[#This Row],[Total ($000)]]=0,\"NO\",IF(ISNA(tblGPJune19[[#This Row],[FUNC]]),\"YES\",IF(_xlfn.ISFORMULA(tblGPJune19[[#This Row],[FUNC]]),\"NO\",\"YES\")))","v":"NO"}]
[{"$f":"CONCATENATE(tblGPJune19[[#This Row],[Primary Account]],tblGPJune19[[#This Row],[Primary Name]],tblGPJune19[[#This Row],[Secondary Acct]],tblGPJune19[[#This Row],[Secondary  Name]],tblGPJune19[[#This Row],[Alloc4FUNC]])","v":"1010000ELEC PLANT IN SERV3961200THREE-AXLE DIGGER/DERRICK LINE TRUCKSSITUS"},1010000,"ELEC PLANT IN SERV",3961200,"THREE-AXLE DIGGER/DERRICK LINE TRUCKS","IDU",3139.1730538461502,{"$f":"IF(OR(tblGPJune19[[#This Row],[Alloc]]=\"IDU\",tblGPJune19[[#This Row],[Alloc]]=\"OR\",tblGPJune19[[#This Row],[Alloc]]=\"UT\",tblGPJune19[[#This Row],[Alloc]]=\"WYU\",tblGPJune19[[#This Row],[Alloc]]=\"WYP\",tblGPJune19[[#This Row],[Alloc]]=\"CA\",tblGPJune19[[#This Row],[Alloc]]=\"WA\"),\"SITUS\",tblGPJune19[[#This Row],[Alloc]])","v":"SITUS"},{"$f":"INDEX(tblGPLookup[FUNC],MATCH(tblGPJune19[[#This Row],[Concat]],tblGPLookup[Concat],0))","v":"DPW"},{"$f":"IF(tblGPJune19[[#This Row],[Total ($000)]]=0,\"NO\",IF(ISNA(tblGPJune19[[#This Row],[FUNC]]),\"YES\",IF(_xlfn.ISFORMULA(tblGPJune19[[#This Row],[FUNC]]),\"NO\",\"YES\")))","v":"NO"}]
[{"$f":"CONCATENATE(tblGPJune19[[#This Row],[Primary Account]],tblGPJune19[[#This Row],[Primary Name]],tblGPJune19[[#This Row],[Secondary Acct]],tblGPJune19[[#This Row],[Secondary  Name]],tblGPJune19[[#This Row],[Alloc4FUNC]])","v":"1010000ELEC PLANT IN SERV3961200THREE-AXLE DIGGER/DERRICK LINE TRUCKSSITUS"},1010000,"ELEC PLANT IN SERV",3961200,"THREE-AXLE DIGGER/DERRICK LINE TRUCKS","OR",10157.616932307699,{"$f":"IF(OR(tblGPJune19[[#This Row],[Alloc]]=\"IDU\",tblGPJune19[[#This Row],[Alloc]]=\"OR\",tblGPJune19[[#This Row],[Alloc]]=\"UT\",tblGPJune19[[#This Row],[Alloc]]=\"WYU\",tblGPJune19[[#This Row],[Alloc]]=\"WYP\",tblGPJune19[[#This Row],[Alloc]]=\"CA\",tblGPJune19[[#This Row],[Alloc]]=\"WA\"),\"SITUS\",tblGPJune19[[#This Row],[Alloc]])","v":"SITUS"},{"$f":"INDEX(tblGPLookup[FUNC],MATCH(tblGPJune19[[#This Row],[Concat]],tblGPLookup[Concat],0))","v":"DPW"},{"$f":"IF(tblGPJune19[[#This Row],[Total ($000)]]=0,\"NO\",IF(ISNA(tblGPJune19[[#This Row],[FUNC]]),\"YES\",IF(_xlfn.ISFORMULA(tblGPJune19[[#This Row],[FUNC]]),\"NO\",\"YES\")))","v":"NO"}]
[{"$f":"CONCATENATE(tblGPJune19[[#This Row],[Primary Account]],tblGPJune19[[#This Row],[Primary Name]],tblGPJune19[[#This Row],[Secondary Acct]],tblGPJune19[[#This Row],[Secondary  Name]],tblGPJune19[[#This Row],[Alloc4FUNC]])","v":"1010000ELEC PLANT IN SERV3961200THREE-AXLE DIGGER/DERRICK LINE TRUCKSSG"},1010000,"ELEC PLANT IN SERV",3961200,"THREE-AXLE DIGGER/DERRICK LINE TRUCKS","SG",325.36768999999998,{"$f":"IF(OR(tblGPJune19[[#This Row],[Alloc]]=\"IDU\",tblGPJune19[[#This Row],[Alloc]]=\"OR\",tblGPJune19[[#This Row],[Alloc]]=\"UT\",tblGPJune19[[#This Row],[Alloc]]=\"WYU\",tblGPJune19[[#This Row],[Alloc]]=\"WYP\",tblGPJune19[[#This Row],[Alloc]]=\"CA\",tblGPJune19[[#This Row],[Alloc]]=\"WA\"),\"SITUS\",tblGPJune19[[#This Row],[Alloc]])","v":"SG"},{"$f":"INDEX(tblGPLookup[FUNC],MATCH(tblGPJune19[[#This Row],[Concat]],tblGPLookup[Concat],0))","v":"P"},{"$f":"IF(tblGPJune19[[#This Row],[Total ($000)]]=0,\"NO\",IF(ISNA(tblGPJune19[[#This Row],[FUNC]]),\"YES\",IF(_xlfn.ISFORMULA(tblGPJune19[[#This Row],[FUNC]]),\"NO\",\"YES\")))","v":"NO"}]
[{"$f":"CONCATENATE(tblGPJune19[[#This Row],[Primary Account]],tblGPJune19[[#This Row],[Primary Name]],tblGPJune19[[#This Row],[Secondary Acct]],tblGPJune19[[#This Row],[Secondary  Name]],tblGPJune19[[#This Row],[Alloc4FUNC]])","v":"1010000ELEC PLANT IN SERV3961200THREE-AXLE DIGGER/DERRICK LINE TRUCKSSITUS"},1010000,"ELEC PLANT IN SERV",3961200,"THREE-AXLE DIGGER/DERRICK LINE TRUCKS","CA",842.90551000000005,{"$f":"IF(OR(tblGPJune19[[#This Row],[Alloc]]=\"IDU\",tblGPJune19[[#This Row],[Alloc]]=\"OR\",tblGPJune19[[#This Row],[Alloc]]=\"UT\",tblGPJune19[[#This Row],[Alloc]]=\"WYU\",tblGPJune19[[#This Row],[Alloc]]=\"WYP\",tblGPJune19[[#This Row],[Alloc]]=\"CA\",tblGPJune19[[#This Row],[Alloc]]=\"WA\"),\"SITUS\",tblGPJune19[[#This Row],[Alloc]])","v":"SITUS"},{"$f":"INDEX(tblGPLookup[FUNC],MATCH(tblGPJune19[[#This Row],[Concat]],tblGPLookup[Concat],0))","v":"DPW"},{"$f":"IF(tblGPJune19[[#This Row],[Total ($000)]]=0,\"NO\",IF(ISNA(tblGPJune19[[#This Row],[FUNC]]),\"YES\",IF(_xlfn.ISFORMULA(tblGPJune19[[#This Row],[FUNC]]),\"NO\",\"YES\")))","v":"NO"}]
[{"$f":"CONCATENATE(tblGPJune19[[#This Row],[Primary Account]],tblGPJune19[[#This Row],[Primary Name]],tblGPJune19[[#This Row],[Secondary Acct]],tblGPJune19[[#This Row],[Secondary  Name]],tblGPJune19[[#This Row],[Alloc4FUNC]])","v":"1010000ELEC PLANT IN SERV3961200THREE-AXLE DIGGER/DERRICK LINE TRUCKSSO"},1010000,"ELEC PLANT IN SERV",3961200,"THREE-AXLE DIGGER/DERRICK LINE TRUCKS","SO",1233.1286153846199,{"$f":"IF(OR(tblGPJune19[[#This Row],[Alloc]]=\"IDU\",tblGPJune19[[#This Row],[Alloc]]=\"OR\",tblGPJune19[[#This Row],[Alloc]]=\"UT\",tblGPJune19[[#This Row],[Alloc]]=\"WYU\",tblGPJune19[[#This Row],[Alloc]]=\"WYP\",tblGPJune19[[#This Row],[Alloc]]=\"CA\",tblGPJune19[[#This Row],[Alloc]]=\"WA\"),\"SITUS\",tblGPJune19[[#This Row],[Alloc]])","v":"SO"},{"$f":"INDEX(tblGPLookup[FUNC],MATCH(tblGPJune19[[#This Row],[Concat]],tblGPLookup[Concat],0))","v":"PTD"},{"$f":"IF(tblGPJune19[[#This Row],[Total ($000)]]=0,\"NO\",IF(ISNA(tblGPJune19[[#This Row],[FUNC]]),\"YES\",IF(_xlfn.ISFORMULA(tblGPJune19[[#This Row],[FUNC]]),\"NO\",\"YES\")))","v":"NO"}]
[{"$f":"CONCATENATE(tblGPJune19[[#This Row],[Primary Account]],tblGPJune19[[#This Row],[Primary Name]],tblGPJune19[[#This Row],[Secondary Acct]],tblGPJune19[[#This Row],[Secondary  Name]],tblGPJune19[[#This Row],[Alloc4FUNC]])","v":"1010000ELEC PLANT IN SERV3961200THREE-AXLE DIGGER/DERRICK LINE TRUCKSSITUS"},1010000,"ELEC PLANT IN SERV",3961200,"THREE-AXLE DIGGER/DERRICK LINE TRUCKS","UT",15820.6383292308,{"$f":"IF(OR(tblGPJune19[[#This Row],[Alloc]]=\"IDU\",tblGPJune19[[#This Row],[Alloc]]=\"OR\",tblGPJune19[[#This Row],[Alloc]]=\"UT\",tblGPJune19[[#This Row],[Alloc]]=\"WYU\",tblGPJune19[[#This Row],[Alloc]]=\"WYP\",tblGPJune19[[#This Row],[Alloc]]=\"CA\",tblGPJune19[[#This Row],[Alloc]]=\"WA\"),\"SITUS\",tblGPJune19[[#This Row],[Alloc]])","v":"SITUS"},{"$f":"INDEX(tblGPLookup[FUNC],MATCH(tblGPJune19[[#This Row],[Concat]],tblGPLookup[Concat],0))","v":"DPW"},{"$f":"IF(tblGPJune19[[#This Row],[Total ($000)]]=0,\"NO\",IF(ISNA(tblGPJune19[[#This Row],[FUNC]]),\"YES\",IF(_xlfn.ISFORMULA(tblGPJune19[[#This Row],[FUNC]]),\"NO\",\"YES\")))","v":"NO"}]
[{"$f":"CONCATENATE(tblGPJune19[[#This Row],[Primary Account]],tblGPJune19[[#This Row],[Primary Name]],tblGPJune19[[#This Row],[Secondary Acct]],tblGPJune19[[#This Row],[Secondary  Name]],tblGPJune19[[#This Row],[Alloc4FUNC]])","v":"1010000ELEC PLANT IN SERV3961200THREE-AXLE DIGGER/DERRICK LINE TRUCKSSITUS"},1010000,"ELEC PLANT IN SERV",3961200,"THREE-AXLE DIGGER/DERRICK LINE TRUCKS","WA",2191.7188599999999,{"$f":"IF(OR(tblGPJune19[[#This Row],[Alloc]]=\"IDU\",tblGPJune19[[#This Row],[Alloc]]=\"OR\",tblGPJune19[[#This Row],[Alloc]]=\"UT\",tblGPJune19[[#This Row],[Alloc]]=\"WYU\",tblGPJune19[[#This Row],[Alloc]]=\"WYP\",tblGPJune19[[#This Row],[Alloc]]=\"CA\",tblGPJune19[[#This Row],[Alloc]]=\"WA\"),\"SITUS\",tblGPJune19[[#This Row],[Alloc]])","v":"SITUS"},{"$f":"INDEX(tblGPLookup[FUNC],MATCH(tblGPJune19[[#This Row],[Concat]],tblGPLookup[Concat],0))","v":"DPW"},{"$f":"IF(tblGPJune19[[#This Row],[Total ($000)]]=0,\"NO\",IF(ISNA(tblGPJune19[[#This Row],[FUNC]]),\"YES\",IF(_xlfn.ISFORMULA(tblGPJune19[[#This Row],[FUNC]]),\"NO\",\"YES\")))","v":"NO"}]
[{"$f":"CONCATENATE(tblGPJune19[[#This Row],[Primary Account]],tblGPJune19[[#This Row],[Primary Name]],tblGPJune19[[#This Row],[Secondary Acct]],tblGPJune19[[#This Row],[Secondary  Name]],tblGPJune19[[#This Row],[Alloc4FUNC]])","v":"1010000ELEC PLANT IN SERV3961200THREE-AXLE DIGGER/DERRICK LINE TRUCKSSITUS"},1010000,"ELEC PLANT IN SERV",3961200,"THREE-AXLE DIGGER/DERRICK LINE TRUCKS","WYP",4511.78683461538,{"$f":"IF(OR(tblGPJune19[[#This Row],[Alloc]]=\"IDU\",tblGPJune19[[#This Row],[Alloc]]=\"OR\",tblGPJune19[[#This Row],[Alloc]]=\"UT\",tblGPJune19[[#This Row],[Alloc]]=\"WYU\",tblGPJune19[[#This Row],[Alloc]]=\"WYP\",tblGPJune19[[#This Row],[Alloc]]=\"CA\",tblGPJune19[[#This Row],[Alloc]]=\"WA\"),\"SITUS\",tblGPJune19[[#This Row],[Alloc]])","v":"SITUS"},{"$f":"INDEX(tblGPLookup[FUNC],MATCH(tblGPJune19[[#This Row],[Concat]],tblGPLookup[Concat],0))","v":"DPW"},{"$f":"IF(tblGPJune19[[#This Row],[Total ($000)]]=0,\"NO\",IF(ISNA(tblGPJune19[[#This Row],[FUNC]]),\"YES\",IF(_xlfn.ISFORMULA(tblGPJune19[[#This Row],[FUNC]]),\"NO\",\"YES\")))","v":"NO"}]
[{"$f":"CONCATENATE(tblGPJune19[[#This Row],[Primary Account]],tblGPJune19[[#This Row],[Primary Name]],tblGPJune19[[#This Row],[Secondary Acct]],tblGPJune19[[#This Row],[Secondary  Name]],tblGPJune19[[#This Row],[Alloc4FUNC]])","v":"1010000ELEC PLANT IN SERV3961200THREE-AXLE DIGGER/DERRICK LINE TRUCKSSITUS"},1010000,"ELEC PLANT IN SERV",3961200,"THREE-AXLE DIGGER/DERRICK LINE TRUCKS","WYU",1010.06350538462,{"$f":"IF(OR(tblGPJune19[[#This Row],[Alloc]]=\"IDU\",tblGPJune19[[#This Row],[Alloc]]=\"OR\",tblGPJune19[[#This Row],[Alloc]]=\"UT\",tblGPJune19[[#This Row],[Alloc]]=\"WYU\",tblGPJune19[[#This Row],[Alloc]]=\"WYP\",tblGPJune19[[#This Row],[Alloc]]=\"CA\",tblGPJune19[[#This Row],[Alloc]]=\"WA\"),\"SITUS\",tblGPJune19[[#This Row],[Alloc]])","v":"SITUS"},{"$f":"INDEX(tblGPLookup[FUNC],MATCH(tblGPJune19[[#This Row],[Concat]],tblGPLookup[Concat],0))","v":"DPW"},{"$f":"IF(tblGPJune19[[#This Row],[Total ($000)]]=0,\"NO\",IF(ISNA(tblGPJune19[[#This Row],[FUNC]]),\"YES\",IF(_xlfn.ISFORMULA(tblGPJune19[[#This Row],[FUNC]]),\"NO\",\"YES\")))","v":"NO"}]
[{"$f":"CONCATENATE(tblGPJune19[[#This Row],[Primary Account]],tblGPJune19[[#This Row],[Primary Name]],tblGPJune19[[#This Row],[Secondary Acct]],tblGPJune19[[#This Row],[Secondary  Name]],tblGPJune19[[#This Row],[Alloc4FUNC]])","v":"1010000ELEC PLANT IN SERV3961300SNOWCATS, BACKHOES, TRENCHERS, SNOWBLOWRSITUS"},1010000,"ELEC PLANT IN SERV",3961300,"SNOWCATS, BACKHOES, TRENCHERS, SNOWBLOWR","IDU",1416.9677715384601,{"$f":"IF(OR(tblGPJune19[[#This Row],[Alloc]]=\"IDU\",tblGPJune19[[#This Row],[Alloc]]=\"OR\",tblGPJune19[[#This Row],[Alloc]]=\"UT\",tblGPJune19[[#This Row],[Alloc]]=\"WYU\",tblGPJune19[[#This Row],[Alloc]]=\"WYP\",tblGPJune19[[#This Row],[Alloc]]=\"CA\",tblGPJune19[[#This Row],[Alloc]]=\"WA\"),\"SITUS\",tblGPJune19[[#This Row],[Alloc]])","v":"SITUS"},{"$f":"INDEX(tblGPLookup[FUNC],MATCH(tblGPJune19[[#This Row],[Concat]],tblGPLookup[Concat],0))","v":"DPW"},{"$f":"IF(tblGPJune19[[#This Row],[Total ($000)]]=0,\"NO\",IF(ISNA(tblGPJune19[[#This Row],[FUNC]]),\"YES\",IF(_xlfn.ISFORMULA(tblGPJune19[[#This Row],[FUNC]]),\"NO\",\"YES\")))","v":"NO"}]
[{"$f":"CONCATENATE(tblGPJune19[[#This Row],[Primary Account]],tblGPJune19[[#This Row],[Primary Name]],tblGPJune19[[#This Row],[Secondary Acct]],tblGPJune19[[#This Row],[Secondary  Name]],tblGPJune19[[#This Row],[Alloc4FUNC]])","v":"1010000ELEC PLANT IN SERV3961300SNOWCATS, BACKHOES, TRENCHERS, SNOWBLOWRSITUS"},1010000,"ELEC PLANT IN SERV",3961300,"SNOWCATS, BACKHOES, TRENCHERS, SNOWBLOWR","OR",2508.2370246153801,{"$f":"IF(OR(tblGPJune19[[#This Row],[Alloc]]=\"IDU\",tblGPJune19[[#This Row],[Alloc]]=\"OR\",tblGPJune19[[#This Row],[Alloc]]=\"UT\",tblGPJune19[[#This Row],[Alloc]]=\"WYU\",tblGPJune19[[#This Row],[Alloc]]=\"WYP\",tblGPJune19[[#This Row],[Alloc]]=\"CA\",tblGPJune19[[#This Row],[Alloc]]=\"WA\"),\"SITUS\",tblGPJune19[[#This Row],[Alloc]])","v":"SITUS"},{"$f":"INDEX(tblGPLookup[FUNC],MATCH(tblGPJune19[[#This Row],[Concat]],tblGPLookup[Concat],0))","v":"DPW"},{"$f":"IF(tblGPJune19[[#This Row],[Total ($000)]]=0,\"NO\",IF(ISNA(tblGPJune19[[#This Row],[FUNC]]),\"YES\",IF(_xlfn.ISFORMULA(tblGPJune19[[#This Row],[FUNC]]),\"NO\",\"YES\")))","v":"NO"}]
[{"$f":"CONCATENATE(tblGPJune19[[#This Row],[Primary Account]],tblGPJune19[[#This Row],[Primary Name]],tblGPJune19[[#This Row],[Secondary Acct]],tblGPJune19[[#This Row],[Secondary  Name]],tblGPJune19[[#This Row],[Alloc4FUNC]])","v":"1010000ELEC PLANT IN SERV3961300SNOWCATS, BACKHOES, TRENCHERS, SNOWBLOWRSE"},1010000,"ELEC PLANT IN SERV",3961300,"SNOWCATS, BACKHOES, TRENCHERS, SNOWBLOWR","SE",326.71152461538497,{"$f":"IF(OR(tblGPJune19[[#This Row],[Alloc]]=\"IDU\",tblGPJune19[[#This Row],[Alloc]]=\"OR\",tblGPJune19[[#This Row],[Alloc]]=\"UT\",tblGPJune19[[#This Row],[Alloc]]=\"WYU\",tblGPJune19[[#This Row],[Alloc]]=\"WYP\",tblGPJune19[[#This Row],[Alloc]]=\"CA\",tblGPJune19[[#This Row],[Alloc]]=\"WA\"),\"SITUS\",tblGPJune19[[#This Row],[Alloc]])","v":"SE"},{"$f":"INDEX(tblGPLookup[FUNC],MATCH(tblGPJune19[[#This Row],[Concat]],tblGPLookup[Concat],0))","v":"P"},{"$f":"IF(tblGPJune19[[#This Row],[Total ($000)]]=0,\"NO\",IF(ISNA(tblGPJune19[[#This Row],[FUNC]]),\"YES\",IF(_xlfn.ISFORMULA(tblGPJune19[[#This Row],[FUNC]]),\"NO\",\"YES\")))","v":"NO"}]
[{"$f":"CONCATENATE(tblGPJune19[[#This Row],[Primary Account]],tblGPJune19[[#This Row],[Primary Name]],tblGPJune19[[#This Row],[Secondary Acct]],tblGPJune19[[#This Row],[Secondary  Name]],tblGPJune19[[#This Row],[Alloc4FUNC]])","v":"1010000ELEC PLANT IN SERV3961300SNOWCATS, BACKHOES, TRENCHERS, SNOWBLOWRSG"},1010000,"ELEC PLANT IN SERV",3961300,"SNOWCATS, BACKHOES, TRENCHERS, SNOWBLOWR","SG",6778.4878115384599,{"$f":"IF(OR(tblGPJune19[[#This Row],[Alloc]]=\"IDU\",tblGPJune19[[#This Row],[Alloc]]=\"OR\",tblGPJune19[[#This Row],[Alloc]]=\"UT\",tblGPJune19[[#This Row],[Alloc]]=\"WYU\",tblGPJune19[[#This Row],[Alloc]]=\"WYP\",tblGPJune19[[#This Row],[Alloc]]=\"CA\",tblGPJune19[[#This Row],[Alloc]]=\"WA\"),\"SITUS\",tblGPJune19[[#This Row],[Alloc]])","v":"SG"},{"$f":"INDEX(tblGPLookup[FUNC],MATCH(tblGPJune19[[#This Row],[Concat]],tblGPLookup[Concat],0))","v":"P"},{"$f":"IF(tblGPJune19[[#This Row],[Total ($000)]]=0,\"NO\",IF(ISNA(tblGPJune19[[#This Row],[FUNC]]),\"YES\",IF(_xlfn.ISFORMULA(tblGPJune19[[#This Row],[FUNC]]),\"NO\",\"YES\")))","v":"NO"}]
[{"$f":"CONCATENATE(tblGPJune19[[#This Row],[Primary Account]],tblGPJune19[[#This Row],[Primary Name]],tblGPJune19[[#This Row],[Secondary Acct]],tblGPJune19[[#This Row],[Secondary  Name]],tblGPJune19[[#This Row],[Alloc4FUNC]])","v":"1010000ELEC PLANT IN SERV3961300SNOWCATS, BACKHOES, TRENCHERS, SNOWBLOWRSITUS"},1010000,"ELEC PLANT IN SERV",3961300,"SNOWCATS, BACKHOES, TRENCHERS, SNOWBLOWR","CA",506.49114153846199,{"$f":"IF(OR(tblGPJune19[[#This Row],[Alloc]]=\"IDU\",tblGPJune19[[#This Row],[Alloc]]=\"OR\",tblGPJune19[[#This Row],[Alloc]]=\"UT\",tblGPJune19[[#This Row],[Alloc]]=\"WYU\",tblGPJune19[[#This Row],[Alloc]]=\"WYP\",tblGPJune19[[#This Row],[Alloc]]=\"CA\",tblGPJune19[[#This Row],[Alloc]]=\"WA\"),\"SITUS\",tblGPJune19[[#This Row],[Alloc]])","v":"SITUS"},{"$f":"INDEX(tblGPLookup[FUNC],MATCH(tblGPJune19[[#This Row],[Concat]],tblGPLookup[Concat],0))","v":"DPW"},{"$f":"IF(tblGPJune19[[#This Row],[Total ($000)]]=0,\"NO\",IF(ISNA(tblGPJune19[[#This Row],[FUNC]]),\"YES\",IF(_xlfn.ISFORMULA(tblGPJune19[[#This Row],[FUNC]]),\"NO\",\"YES\")))","v":"NO"}]
[{"$f":"CONCATENATE(tblGPJune19[[#This Row],[Primary Account]],tblGPJune19[[#This Row],[Primary Name]],tblGPJune19[[#This Row],[Secondary Acct]],tblGPJune19[[#This Row],[Secondary  Name]],tblGPJune19[[#This Row],[Alloc4FUNC]])","v":"1010000ELEC PLANT IN SERV3961300SNOWCATS, BACKHOES, TRENCHERS, SNOWBLOWRSO"},1010000,"ELEC PLANT IN SERV",3961300,"SNOWCATS, BACKHOES, TRENCHERS, SNOWBLOWR","SO",616.61792692307699,{"$f":"IF(OR(tblGPJune19[[#This Row],[Alloc]]=\"IDU\",tblGPJune19[[#This Row],[Alloc]]=\"OR\",tblGPJune19[[#This Row],[Alloc]]=\"UT\",tblGPJune19[[#This Row],[Alloc]]=\"WYU\",tblGPJune19[[#This Row],[Alloc]]=\"WYP\",tblGPJune19[[#This Row],[Alloc]]=\"CA\",tblGPJune19[[#This Row],[Alloc]]=\"WA\"),\"SITUS\",tblGPJune19[[#This Row],[Alloc]])","v":"SO"},{"$f":"INDEX(tblGPLookup[FUNC],MATCH(tblGPJune19[[#This Row],[Concat]],tblGPLookup[Concat],0))","v":"PTD"},{"$f":"IF(tblGPJune19[[#This Row],[Total ($000)]]=0,\"NO\",IF(ISNA(tblGPJune19[[#This Row],[FUNC]]),\"YES\",IF(_xlfn.ISFORMULA(tblGPJune19[[#This Row],[FUNC]]),\"NO\",\"YES\")))","v":"NO"}]
[{"$f":"CONCATENATE(tblGPJune19[[#This Row],[Primary Account]],tblGPJune19[[#This Row],[Primary Name]],tblGPJune19[[#This Row],[Secondary Acct]],tblGPJune19[[#This Row],[Secondary  Name]],tblGPJune19[[#This Row],[Alloc4FUNC]])","v":"1010000ELEC PLANT IN SERV3961300SNOWCATS, BACKHOES, TRENCHERS, SNOWBLOWRSITUS"},1010000,"ELEC PLANT IN SERV",3961300,"SNOWCATS, BACKHOES, TRENCHERS, SNOWBLOWR","UT",5067.8346838461503,{"$f":"IF(OR(tblGPJune19[[#This Row],[Alloc]]=\"IDU\",tblGPJune19[[#This Row],[Alloc]]=\"OR\",tblGPJune19[[#This Row],[Alloc]]=\"UT\",tblGPJune19[[#This Row],[Alloc]]=\"WYU\",tblGPJune19[[#This Row],[Alloc]]=\"WYP\",tblGPJune19[[#This Row],[Alloc]]=\"CA\",tblGPJune19[[#This Row],[Alloc]]=\"WA\"),\"SITUS\",tblGPJune19[[#This Row],[Alloc]])","v":"SITUS"},{"$f":"INDEX(tblGPLookup[FUNC],MATCH(tblGPJune19[[#This Row],[Concat]],tblGPLookup[Concat],0))","v":"DPW"},{"$f":"IF(tblGPJune19[[#This Row],[Total ($000)]]=0,\"NO\",IF(ISNA(tblGPJune19[[#This Row],[FUNC]]),\"YES\",IF(_xlfn.ISFORMULA(tblGPJune19[[#This Row],[FUNC]]),\"NO\",\"YES\")))","v":"NO"}]
[{"$f":"CONCATENATE(tblGPJune19[[#This Row],[Primary Account]],tblGPJune19[[#This Row],[Primary Name]],tblGPJune19[[#This Row],[Secondary Acct]],tblGPJune19[[#This Row],[Secondary  Name]],tblGPJune19[[#This Row],[Alloc4FUNC]])","v":"1010000ELEC PLANT IN SERV3961300SNOWCATS, BACKHOES, TRENCHERS, SNOWBLOWRSITUS"},1010000,"ELEC PLANT IN SERV",3961300,"SNOWCATS, BACKHOES, TRENCHERS, SNOWBLOWR","WA",817.03701000000001,{"$f":"IF(OR(tblGPJune19[[#This Row],[Alloc]]=\"IDU\",tblGPJune19[[#This Row],[Alloc]]=\"OR\",tblGPJune19[[#This Row],[Alloc]]=\"UT\",tblGPJune19[[#This Row],[Alloc]]=\"WYU\",tblGPJune19[[#This Row],[Alloc]]=\"WYP\",tblGPJune19[[#This Row],[Alloc]]=\"CA\",tblGPJune19[[#This Row],[Alloc]]=\"WA\"),\"SITUS\",tblGPJune19[[#This Row],[Alloc]])","v":"SITUS"},{"$f":"INDEX(tblGPLookup[FUNC],MATCH(tblGPJune19[[#This Row],[Concat]],tblGPLookup[Concat],0))","v":"DPW"},{"$f":"IF(tblGPJune19[[#This Row],[Total ($000)]]=0,\"NO\",IF(ISNA(tblGPJune19[[#This Row],[FUNC]]),\"YES\",IF(_xlfn.ISFORMULA(tblGPJune19[[#This Row],[FUNC]]),\"NO\",\"YES\")))","v":"NO"}]
[{"$f":"CONCATENATE(tblGPJune19[[#This Row],[Primary Account]],tblGPJune19[[#This Row],[Primary Name]],tblGPJune19[[#This Row],[Secondary Acct]],tblGPJune19[[#This Row],[Secondary  Name]],tblGPJune19[[#This Row],[Alloc4FUNC]])","v":"1010000ELEC PLANT IN SERV3961300SNOWCATS, BACKHOES, TRENCHERS, SNOWBLOWRSITUS"},1010000,"ELEC PLANT IN SERV",3961300,"SNOWCATS, BACKHOES, TRENCHERS, SNOWBLOWR","WYP",1753.5026700000001,{"$f":"IF(OR(tblGPJune19[[#This Row],[Alloc]]=\"IDU\",tblGPJune19[[#This Row],[Alloc]]=\"OR\",tblGPJune19[[#This Row],[Alloc]]=\"UT\",tblGPJune19[[#This Row],[Alloc]]=\"WYU\",tblGPJune19[[#This Row],[Alloc]]=\"WYP\",tblGPJune19[[#This Row],[Alloc]]=\"CA\",tblGPJune19[[#This Row],[Alloc]]=\"WA\"),\"SITUS\",tblGPJune19[[#This Row],[Alloc]])","v":"SITUS"},{"$f":"INDEX(tblGPLookup[FUNC],MATCH(tblGPJune19[[#This Row],[Concat]],tblGPLookup[Concat],0))","v":"DPW"},{"$f":"IF(tblGPJune19[[#This Row],[Total ($000)]]=0,\"NO\",IF(ISNA(tblGPJune19[[#This Row],[FUNC]]),\"YES\",IF(_xlfn.ISFORMULA(tblGPJune19[[#This Row],[FUNC]]),\"NO\",\"YES\")))","v":"NO"}]
[{"$f":"CONCATENATE(tblGPJune19[[#This Row],[Primary Account]],tblGPJune19[[#This Row],[Primary Name]],tblGPJune19[[#This Row],[Secondary Acct]],tblGPJune19[[#This Row],[Secondary  Name]],tblGPJune19[[#This Row],[Alloc4FUNC]])","v":"1010000ELEC PLANT IN SERV3961300SNOWCATS, BACKHOES, TRENCHERS, SNOWBLOWRSITUS"},1010000,"ELEC PLANT IN SERV",3961300,"SNOWCATS, BACKHOES, TRENCHERS, SNOWBLOWR","WYU",704.33096999999998,{"$f":"IF(OR(tblGPJune19[[#This Row],[Alloc]]=\"IDU\",tblGPJune19[[#This Row],[Alloc]]=\"OR\",tblGPJune19[[#This Row],[Alloc]]=\"UT\",tblGPJune19[[#This Row],[Alloc]]=\"WYU\",tblGPJune19[[#This Row],[Alloc]]=\"WYP\",tblGPJune19[[#This Row],[Alloc]]=\"CA\",tblGPJune19[[#This Row],[Alloc]]=\"WA\"),\"SITUS\",tblGPJune19[[#This Row],[Alloc]])","v":"SITUS"},{"$f":"INDEX(tblGPLookup[FUNC],MATCH(tblGPJune19[[#This Row],[Concat]],tblGPLookup[Concat],0))","v":"DPW"},{"$f":"IF(tblGPJune19[[#This Row],[Total ($000)]]=0,\"NO\",IF(ISNA(tblGPJune19[[#This Row],[FUNC]]),\"YES\",IF(_xlfn.ISFORMULA(tblGPJune19[[#This Row],[FUNC]]),\"NO\",\"YES\")))","v":"NO"}]
[{"$f":"CONCATENATE(tblGPJune19[[#This Row],[Primary Account]],tblGPJune19[[#This Row],[Primary Name]],tblGPJune19[[#This Row],[Secondary Acct]],tblGPJune19[[#This Row],[Secondary  Name]],tblGPJune19[[#This Row],[Alloc4FUNC]])","v":"1010000ELEC PLANT IN SERV3970000COMMUNICATION EQUIPMENTCN"},1010000,"ELEC PLANT IN SERV",3970000,"COMMUNICATION EQUIPMENT","CN",3848.52638538462,{"$f":"IF(OR(tblGPJune19[[#This Row],[Alloc]]=\"IDU\",tblGPJune19[[#This Row],[Alloc]]=\"OR\",tblGPJune19[[#This Row],[Alloc]]=\"UT\",tblGPJune19[[#This Row],[Alloc]]=\"WYU\",tblGPJune19[[#This Row],[Alloc]]=\"WYP\",tblGPJune19[[#This Row],[Alloc]]=\"CA\",tblGPJune19[[#This Row],[Alloc]]=\"WA\"),\"SITUS\",tblGPJune19[[#This Row],[Alloc]])","v":"CN"},{"$f":"INDEX(tblGPLookup[FUNC],MATCH(tblGPJune19[[#This Row],[Concat]],tblGPLookup[Concat],0))","v":"CUST"},{"$f":"IF(tblGPJune19[[#This Row],[Total ($000)]]=0,\"NO\",IF(ISNA(tblGPJune19[[#This Row],[FUNC]]),\"YES\",IF(_xlfn.ISFORMULA(tblGPJune19[[#This Row],[FUNC]]),\"NO\",\"YES\")))","v":"NO"}]
[{"$f":"CONCATENATE(tblGPJune19[[#This Row],[Primary Account]],tblGPJune19[[#This Row],[Primary Name]],tblGPJune19[[#This Row],[Secondary Acct]],tblGPJune19[[#This Row],[Secondary  Name]],tblGPJune19[[#This Row],[Alloc4FUNC]])","v":"1010000ELEC PLANT IN SERV3970000COMMUNICATION EQUIPMENTSITUS"},1010000,"ELEC PLANT IN SERV",3970000,"COMMUNICATION EQUIPMENT","IDU",10989.3478415385,{"$f":"IF(OR(tblGPJune19[[#This Row],[Alloc]]=\"IDU\",tblGPJune19[[#This Row],[Alloc]]=\"OR\",tblGPJune19[[#This Row],[Alloc]]=\"UT\",tblGPJune19[[#This Row],[Alloc]]=\"WYU\",tblGPJune19[[#This Row],[Alloc]]=\"WYP\",tblGPJune19[[#This Row],[Alloc]]=\"CA\",tblGPJune19[[#This Row],[Alloc]]=\"WA\"),\"SITUS\",tblGPJune19[[#This Row],[Alloc]])","v":"SITUS"},{"$f":"INDEX(tblGPLookup[FUNC],MATCH(tblGPJune19[[#This Row],[Concat]],tblGPLookup[Concat],0))","v":"TD"},{"$f":"IF(tblGPJune19[[#This Row],[Total ($000)]]=0,\"NO\",IF(ISNA(tblGPJune19[[#This Row],[FUNC]]),\"YES\",IF(_xlfn.ISFORMULA(tblGPJune19[[#This Row],[FUNC]]),\"NO\",\"YES\")))","v":"NO"}]
[{"$f":"CONCATENATE(tblGPJune19[[#This Row],[Primary Account]],tblGPJune19[[#This Row],[Primary Name]],tblGPJune19[[#This Row],[Secondary Acct]],tblGPJune19[[#This Row],[Secondary  Name]],tblGPJune19[[#This Row],[Alloc4FUNC]])","v":"1010000ELEC PLANT IN SERV3970000COMMUNICATION EQUIPMENTSITUS"},1010000,"ELEC PLANT IN SERV",3970000,"COMMUNICATION EQUIPMENT","OR",70057.686443846105,{"$f":"IF(OR(tblGPJune19[[#This Row],[Alloc]]=\"IDU\",tblGPJune19[[#This Row],[Alloc]]=\"OR\",tblGPJune19[[#This Row],[Alloc]]=\"UT\",tblGPJune19[[#This Row],[Alloc]]=\"WYU\",tblGPJune19[[#This Row],[Alloc]]=\"WYP\",tblGPJune19[[#This Row],[Alloc]]=\"CA\",tblGPJune19[[#This Row],[Alloc]]=\"WA\"),\"SITUS\",tblGPJune19[[#This Row],[Alloc]])","v":"SITUS"},{"$f":"INDEX(tblGPLookup[FUNC],MATCH(tblGPJune19[[#This Row],[Concat]],tblGPLookup[Concat],0))","v":"TD"},{"$f":"IF(tblGPJune19[[#This Row],[Total ($000)]]=0,\"NO\",IF(ISNA(tblGPJune19[[#This Row],[FUNC]]),\"YES\",IF(_xlfn.ISFORMULA(tblGPJune19[[#This Row],[FUNC]]),\"NO\",\"YES\")))","v":"NO"}]
[{"$f":"CONCATENATE(tblGPJune19[[#This Row],[Primary Account]],tblGPJune19[[#This Row],[Primary Name]],tblGPJune19[[#This Row],[Secondary Acct]],tblGPJune19[[#This Row],[Secondary  Name]],tblGPJune19[[#This Row],[Alloc4FUNC]])","v":"1010000ELEC PLANT IN SERV3970000COMMUNICATION EQUIPMENTSE"},1010000,"ELEC PLANT IN SERV",3970000,"COMMUNICATION EQUIPMENT","SE",259.41840000000002,{"$f":"IF(OR(tblGPJune19[[#This Row],[Alloc]]=\"IDU\",tblGPJune19[[#This Row],[Alloc]]=\"OR\",tblGPJune19[[#This Row],[Alloc]]=\"UT\",tblGPJune19[[#This Row],[Alloc]]=\"WYU\",tblGPJune19[[#This Row],[Alloc]]=\"WYP\",tblGPJune19[[#This Row],[Alloc]]=\"CA\",tblGPJune19[[#This Row],[Alloc]]=\"WA\"),\"SITUS\",tblGPJune19[[#This Row],[Alloc]])","v":"SE"},{"$f":"INDEX(tblGPLookup[FUNC],MATCH(tblGPJune19[[#This Row],[Concat]],tblGPLookup[Concat],0))","v":"P"},{"$f":"IF(tblGPJune19[[#This Row],[Total ($000)]]=0,\"NO\",IF(ISNA(tblGPJune19[[#This Row],[FUNC]]),\"YES\",IF(_xlfn.ISFORMULA(tblGPJune19[[#This Row],[FUNC]]),\"NO\",\"YES\")))","v":"NO"}]
[{"$f":"CONCATENATE(tblGPJune19[[#This Row],[Primary Account]],tblGPJune19[[#This Row],[Primary Name]],tblGPJune19[[#This Row],[Secondary Acct]],tblGPJune19[[#This Row],[Secondary  Name]],tblGPJune19[[#This Row],[Alloc4FUNC]])","v":"1010000ELEC PLANT IN SERV3970000COMMUNICATION EQUIPMENTSG"},1010000,"ELEC PLANT IN SERV",3970000,"COMMUNICATION EQUIPMENT","SG",172054.74584153801,{"$f":"IF(OR(tblGPJune19[[#This Row],[Alloc]]=\"IDU\",tblGPJune19[[#This Row],[Alloc]]=\"OR\",tblGPJune19[[#This Row],[Alloc]]=\"UT\",tblGPJune19[[#This Row],[Alloc]]=\"WYU\",tblGPJune19[[#This Row],[Alloc]]=\"WYP\",tblGPJune19[[#This Row],[Alloc]]=\"CA\",tblGPJune19[[#This Row],[Alloc]]=\"WA\"),\"SITUS\",tblGPJune19[[#This Row],[Alloc]])","v":"SG"},{"$f":"INDEX(tblGPLookup[FUNC],MATCH(tblGPJune19[[#This Row],[Concat]],tblGPLookup[Concat],0))","v":"T"},{"$f":"IF(tblGPJune19[[#This Row],[Total ($000)]]=0,\"NO\",IF(ISNA(tblGPJune19[[#This Row],[FUNC]]),\"YES\",IF(_xlfn.ISFORMULA(tblGPJune19[[#This Row],[FUNC]]),\"NO\",\"YES\")))","v":"NO"}]
[{"$f":"CONCATENATE(tblGPJune19[[#This Row],[Primary Account]],tblGPJune19[[#This Row],[Primary Name]],tblGPJune19[[#This Row],[Secondary Acct]],tblGPJune19[[#This Row],[Secondary  Name]],tblGPJune19[[#This Row],[Alloc4FUNC]])","v":"1010000ELEC PLANT IN SERV3970000COMMUNICATION EQUIPMENTSITUS"},1010000,"ELEC PLANT IN SERV",3970000,"COMMUNICATION EQUIPMENT","CA",6044.13550076923,{"$f":"IF(OR(tblGPJune19[[#This Row],[Alloc]]=\"IDU\",tblGPJune19[[#This Row],[Alloc]]=\"OR\",tblGPJune19[[#This Row],[Alloc]]=\"UT\",tblGPJune19[[#This Row],[Alloc]]=\"WYU\",tblGPJune19[[#This Row],[Alloc]]=\"WYP\",tblGPJune19[[#This Row],[Alloc]]=\"CA\",tblGPJune19[[#This Row],[Alloc]]=\"WA\"),\"SITUS\",tblGPJune19[[#This Row],[Alloc]])","v":"SITUS"},{"$f":"INDEX(tblGPLookup[FUNC],MATCH(tblGPJune19[[#This Row],[Concat]],tblGPLookup[Concat],0))","v":"TD"},{"$f":"IF(tblGPJune19[[#This Row],[Total ($000)]]=0,\"NO\",IF(ISNA(tblGPJune19[[#This Row],[FUNC]]),\"YES\",IF(_xlfn.ISFORMULA(tblGPJune19[[#This Row],[FUNC]]),\"NO\",\"YES\")))","v":"NO"}]
[{"$f":"CONCATENATE(tblGPJune19[[#This Row],[Primary Account]],tblGPJune19[[#This Row],[Primary Name]],tblGPJune19[[#This Row],[Secondary Acct]],tblGPJune19[[#This Row],[Secondary  Name]],tblGPJune19[[#This Row],[Alloc4FUNC]])","v":"1010000ELEC PLANT IN SERV3970000COMMUNICATION EQUIPMENTSO"},1010000,"ELEC PLANT IN SERV",3970000,"COMMUNICATION EQUIPMENT","SO",91182.191010769195,{"$f":"IF(OR(tblGPJune19[[#This Row],[Alloc]]=\"IDU\",tblGPJune19[[#This Row],[Alloc]]=\"OR\",tblGPJune19[[#This Row],[Alloc]]=\"UT\",tblGPJune19[[#This Row],[Alloc]]=\"WYU\",tblGPJune19[[#This Row],[Alloc]]=\"WYP\",tblGPJune19[[#This Row],[Alloc]]=\"CA\",tblGPJune19[[#This Row],[Alloc]]=\"WA\"),\"SITUS\",tblGPJune19[[#This Row],[Alloc]])","v":"SO"},{"$f":"INDEX(tblGPLookup[FUNC],MATCH(tblGPJune19[[#This Row],[Concat]],tblGPLookup[Concat],0))","v":"PTD"},{"$f":"IF(tblGPJune19[[#This Row],[Total ($000)]]=0,\"NO\",IF(ISNA(tblGPJune19[[#This Row],[FUNC]]),\"YES\",IF(_xlfn.ISFORMULA(tblGPJune19[[#This Row],[FUNC]]),\"NO\",\"YES\")))","v":"NO"}]
[{"$f":"CONCATENATE(tblGPJune19[[#This Row],[Primary Account]],tblGPJune19[[#This Row],[Primary Name]],tblGPJune19[[#This Row],[Secondary Acct]],tblGPJune19[[#This Row],[Secondary  Name]],tblGPJune19[[#This Row],[Alloc4FUNC]])","v":"1010000ELEC PLANT IN SERV3970000COMMUNICATION EQUIPMENTSITUS"},1010000,"ELEC PLANT IN SERV",3970000,"COMMUNICATION EQUIPMENT","UT",60953.603617692301,{"$f":"IF(OR(tblGPJune19[[#This Row],[Alloc]]=\"IDU\",tblGPJune19[[#This Row],[Alloc]]=\"OR\",tblGPJune19[[#This Row],[Alloc]]=\"UT\",tblGPJune19[[#This Row],[Alloc]]=\"WYU\",tblGPJune19[[#This Row],[Alloc]]=\"WYP\",tblGPJune19[[#This Row],[Alloc]]=\"CA\",tblGPJune19[[#This Row],[Alloc]]=\"WA\"),\"SITUS\",tblGPJune19[[#This Row],[Alloc]])","v":"SITUS"},{"$f":"INDEX(tblGPLookup[FUNC],MATCH(tblGPJune19[[#This Row],[Concat]],tblGPLookup[Concat],0))","v":"TD"},{"$f":"IF(tblGPJune19[[#This Row],[Total ($000)]]=0,\"NO\",IF(ISNA(tblGPJune19[[#This Row],[FUNC]]),\"YES\",IF(_xlfn.ISFORMULA(tblGPJune19[[#This Row],[FUNC]]),\"NO\",\"YES\")))","v":"NO"}]
[{"$f":"CONCATENATE(tblGPJune19[[#This Row],[Primary Account]],tblGPJune19[[#This Row],[Primary Name]],tblGPJune19[[#This Row],[Secondary Acct]],tblGPJune19[[#This Row],[Secondary  Name]],tblGPJune19[[#This Row],[Alloc4FUNC]])","v":"1010000ELEC PLANT IN SERV3970000COMMUNICATION EQUIPMENTSITUS"},1010000,"ELEC PLANT IN SERV",3970000,"COMMUNICATION EQUIPMENT","WA",13144.432486153801,{"$f":"IF(OR(tblGPJune19[[#This Row],[Alloc]]=\"IDU\",tblGPJune19[[#This Row],[Alloc]]=\"OR\",tblGPJune19[[#This Row],[Alloc]]=\"UT\",tblGPJune19[[#This Row],[Alloc]]=\"WYU\",tblGPJune19[[#This Row],[Alloc]]=\"WYP\",tblGPJune19[[#This Row],[Alloc]]=\"CA\",tblGPJune19[[#This Row],[Alloc]]=\"WA\"),\"SITUS\",tblGPJune19[[#This Row],[Alloc]])","v":"SITUS"},{"$f":"INDEX(tblGPLookup[FUNC],MATCH(tblGPJune19[[#This Row],[Concat]],tblGPLookup[Concat],0))","v":"TD"},{"$f":"IF(tblGPJune19[[#This Row],[Total ($000)]]=0,\"NO\",IF(ISNA(tblGPJune19[[#This Row],[FUNC]]),\"YES\",IF(_xlfn.ISFORMULA(tblGPJune19[[#This Row],[FUNC]]),\"NO\",\"YES\")))","v":"NO"}]
[{"$f":"CONCATENATE(tblGPJune19[[#This Row],[Primary Account]],tblGPJune19[[#This Row],[Primary Name]],tblGPJune19[[#This Row],[Secondary Acct]],tblGPJune19[[#This Row],[Secondary  Name]],tblGPJune19[[#This Row],[Alloc4FUNC]])","v":"1010000ELEC PLANT IN SERV3970000COMMUNICATION EQUIPMENTSITUS"},1010000,"ELEC PLANT IN SERV",3970000,"COMMUNICATION EQUIPMENT","WYP",25127.745911538499,{"$f":"IF(OR(tblGPJune19[[#This Row],[Alloc]]=\"IDU\",tblGPJune19[[#This Row],[Alloc]]=\"OR\",tblGPJune19[[#This Row],[Alloc]]=\"UT\",tblGPJune19[[#This Row],[Alloc]]=\"WYU\",tblGPJune19[[#This Row],[Alloc]]=\"WYP\",tblGPJune19[[#This Row],[Alloc]]=\"CA\",tblGPJune19[[#This Row],[Alloc]]=\"WA\"),\"SITUS\",tblGPJune19[[#This Row],[Alloc]])","v":"SITUS"},{"$f":"INDEX(tblGPLookup[FUNC],MATCH(tblGPJune19[[#This Row],[Concat]],tblGPLookup[Concat],0))","v":"TD"},{"$f":"IF(tblGPJune19[[#This Row],[Total ($000)]]=0,\"NO\",IF(ISNA(tblGPJune19[[#This Row],[FUNC]]),\"YES\",IF(_xlfn.ISFORMULA(tblGPJune19[[#This Row],[FUNC]]),\"NO\",\"YES\")))","v":"NO"}]
[{"$f":"CONCATENATE(tblGPJune19[[#This Row],[Primary Account]],tblGPJune19[[#This Row],[Primary Name]],tblGPJune19[[#This Row],[Secondary Acct]],tblGPJune19[[#This Row],[Secondary  Name]],tblGPJune19[[#This Row],[Alloc4FUNC]])","v":"1010000ELEC PLANT IN SERV3970000COMMUNICATION EQUIPMENTSITUS"},1010000,"ELEC PLANT IN SERV",3970000,"COMMUNICATION EQUIPMENT","WYU",5957.4510476923097,{"$f":"IF(OR(tblGPJune19[[#This Row],[Alloc]]=\"IDU\",tblGPJune19[[#This Row],[Alloc]]=\"OR\",tblGPJune19[[#This Row],[Alloc]]=\"UT\",tblGPJune19[[#This Row],[Alloc]]=\"WYU\",tblGPJune19[[#This Row],[Alloc]]=\"WYP\",tblGPJune19[[#This Row],[Alloc]]=\"CA\",tblGPJune19[[#This Row],[Alloc]]=\"WA\"),\"SITUS\",tblGPJune19[[#This Row],[Alloc]])","v":"SITUS"},{"$f":"INDEX(tblGPLookup[FUNC],MATCH(tblGPJune19[[#This Row],[Concat]],tblGPLookup[Concat],0))","v":"TD"},{"$f":"IF(tblGPJune19[[#This Row],[Total ($000)]]=0,\"NO\",IF(ISNA(tblGPJune19[[#This Row],[FUNC]]),\"YES\",IF(_xlfn.ISFORMULA(tblGPJune19[[#This Row],[FUNC]]),\"NO\",\"YES\")))","v":"NO"}]
[{"$f":"CONCATENATE(tblGPJune19[[#This Row],[Primary Account]],tblGPJune19[[#This Row],[Primary Name]],tblGPJune19[[#This Row],[Secondary Acct]],tblGPJune19[[#This Row],[Secondary  Name]],tblGPJune19[[#This Row],[Alloc4FUNC]])","v":"1010000ELEC PLANT IN SERV3972000MOBILE RADIO EQUIPMENTSITUS"},1010000,"ELEC PLANT IN SERV",3972000,"MOBILE RADIO EQUIPMENT","IDU",327.20675153846202,{"$f":"IF(OR(tblGPJune19[[#This Row],[Alloc]]=\"IDU\",tblGPJune19[[#This Row],[Alloc]]=\"OR\",tblGPJune19[[#This Row],[Alloc]]=\"UT\",tblGPJune19[[#This Row],[Alloc]]=\"WYU\",tblGPJune19[[#This Row],[Alloc]]=\"WYP\",tblGPJune19[[#This Row],[Alloc]]=\"CA\",tblGPJune19[[#This Row],[Alloc]]=\"WA\"),\"SITUS\",tblGPJune19[[#This Row],[Alloc]])","v":"SITUS"},{"$f":"INDEX(tblGPLookup[FUNC],MATCH(tblGPJune19[[#This Row],[Concat]],tblGPLookup[Concat],0))","v":"TD"},{"$f":"IF(tblGPJune19[[#This Row],[Total ($000)]]=0,\"NO\",IF(ISNA(tblGPJune19[[#This Row],[FUNC]]),\"YES\",IF(_xlfn.ISFORMULA(tblGPJune19[[#This Row],[FUNC]]),\"NO\",\"YES\")))","v":"NO"}]
[{"$f":"CONCATENATE(tblGPJune19[[#This Row],[Primary Account]],tblGPJune19[[#This Row],[Primary Name]],tblGPJune19[[#This Row],[Secondary Acct]],tblGPJune19[[#This Row],[Secondary  Name]],tblGPJune19[[#This Row],[Alloc4FUNC]])","v":"1010000ELEC PLANT IN SERV3972000MOBILE RADIO EQUIPMENTSITUS"},1010000,"ELEC PLANT IN SERV",3972000,"MOBILE RADIO EQUIPMENT","OR",2539.3245715384601,{"$f":"IF(OR(tblGPJune19[[#This Row],[Alloc]]=\"IDU\",tblGPJune19[[#This Row],[Alloc]]=\"OR\",tblGPJune19[[#This Row],[Alloc]]=\"UT\",tblGPJune19[[#This Row],[Alloc]]=\"WYU\",tblGPJune19[[#This Row],[Alloc]]=\"WYP\",tblGPJune19[[#This Row],[Alloc]]=\"CA\",tblGPJune19[[#This Row],[Alloc]]=\"WA\"),\"SITUS\",tblGPJune19[[#This Row],[Alloc]])","v":"SITUS"},{"$f":"INDEX(tblGPLookup[FUNC],MATCH(tblGPJune19[[#This Row],[Concat]],tblGPLookup[Concat],0))","v":"TD"},{"$f":"IF(tblGPJune19[[#This Row],[Total ($000)]]=0,\"NO\",IF(ISNA(tblGPJune19[[#This Row],[FUNC]]),\"YES\",IF(_xlfn.ISFORMULA(tblGPJune19[[#This Row],[FUNC]]),\"NO\",\"YES\")))","v":"NO"}]
[{"$f":"CONCATENATE(tblGPJune19[[#This Row],[Primary Account]],tblGPJune19[[#This Row],[Primary Name]],tblGPJune19[[#This Row],[Secondary Acct]],tblGPJune19[[#This Row],[Secondary  Name]],tblGPJune19[[#This Row],[Alloc4FUNC]])","v":"1010000ELEC PLANT IN SERV3972000MOBILE RADIO EQUIPMENTSE"},1010000,"ELEC PLANT IN SERV",3972000,"MOBILE RADIO EQUIPMENT","SE",83.349186153846105,{"$f":"IF(OR(tblGPJune19[[#This Row],[Alloc]]=\"IDU\",tblGPJune19[[#This Row],[Alloc]]=\"OR\",tblGPJune19[[#This Row],[Alloc]]=\"UT\",tblGPJune19[[#This Row],[Alloc]]=\"WYU\",tblGPJune19[[#This Row],[Alloc]]=\"WYP\",tblGPJune19[[#This Row],[Alloc]]=\"CA\",tblGPJune19[[#This Row],[Alloc]]=\"WA\"),\"SITUS\",tblGPJune19[[#This Row],[Alloc]])","v":"SE"},{"$f":"INDEX(tblGPLookup[FUNC],MATCH(tblGPJune19[[#This Row],[Concat]],tblGPLookup[Concat],0))","v":"P"},{"$f":"IF(tblGPJune19[[#This Row],[Total ($000)]]=0,\"NO\",IF(ISNA(tblGPJune19[[#This Row],[FUNC]]),\"YES\",IF(_xlfn.ISFORMULA(tblGPJune19[[#This Row],[FUNC]]),\"NO\",\"YES\")))","v":"NO"}]
[{"$f":"CONCATENATE(tblGPJune19[[#This Row],[Primary Account]],tblGPJune19[[#This Row],[Primary Name]],tblGPJune19[[#This Row],[Secondary Acct]],tblGPJune19[[#This Row],[Secondary  Name]],tblGPJune19[[#This Row],[Alloc4FUNC]])","v":"1010000ELEC PLANT IN SERV3972000MOBILE RADIO EQUIPMENTSG"},1010000,"ELEC PLANT IN SERV",3972000,"MOBILE RADIO EQUIPMENT","SG",4239.8748146153803,{"$f":"IF(OR(tblGPJune19[[#This Row],[Alloc]]=\"IDU\",tblGPJune19[[#This Row],[Alloc]]=\"OR\",tblGPJune19[[#This Row],[Alloc]]=\"UT\",tblGPJune19[[#This Row],[Alloc]]=\"WYU\",tblGPJune19[[#This Row],[Alloc]]=\"WYP\",tblGPJune19[[#This Row],[Alloc]]=\"CA\",tblGPJune19[[#This Row],[Alloc]]=\"WA\"),\"SITUS\",tblGPJune19[[#This Row],[Alloc]])","v":"SG"},{"$f":"INDEX(tblGPLookup[FUNC],MATCH(tblGPJune19[[#This Row],[Concat]],tblGPLookup[Concat],0))","v":"P"},{"$f":"IF(tblGPJune19[[#This Row],[Total ($000)]]=0,\"NO\",IF(ISNA(tblGPJune19[[#This Row],[FUNC]]),\"YES\",IF(_xlfn.ISFORMULA(tblGPJune19[[#This Row],[FUNC]]),\"NO\",\"YES\")))","v":"NO"}]
[{"$f":"CONCATENATE(tblGPJune19[[#This Row],[Primary Account]],tblGPJune19[[#This Row],[Primary Name]],tblGPJune19[[#This Row],[Secondary Acct]],tblGPJune19[[#This Row],[Secondary  Name]],tblGPJune19[[#This Row],[Alloc4FUNC]])","v":"1010000ELEC PLANT IN SERV3972000MOBILE RADIO EQUIPMENTSITUS"},1010000,"ELEC PLANT IN SERV",3972000,"MOBILE RADIO EQUIPMENT","CA",309.919728461538,{"$f":"IF(OR(tblGPJune19[[#This Row],[Alloc]]=\"IDU\",tblGPJune19[[#This Row],[Alloc]]=\"OR\",tblGPJune19[[#This Row],[Alloc]]=\"UT\",tblGPJune19[[#This Row],[Alloc]]=\"WYU\",tblGPJune19[[#This Row],[Alloc]]=\"WYP\",tblGPJune19[[#This Row],[Alloc]]=\"CA\",tblGPJune19[[#This Row],[Alloc]]=\"WA\"),\"SITUS\",tblGPJune19[[#This Row],[Alloc]])","v":"SITUS"},{"$f":"INDEX(tblGPLookup[FUNC],MATCH(tblGPJune19[[#This Row],[Concat]],tblGPLookup[Concat],0))","v":"TD"},{"$f":"IF(tblGPJune19[[#This Row],[Total ($000)]]=0,\"NO\",IF(ISNA(tblGPJune19[[#This Row],[FUNC]]),\"YES\",IF(_xlfn.ISFORMULA(tblGPJune19[[#This Row],[FUNC]]),\"NO\",\"YES\")))","v":"NO"}]
[{"$f":"CONCATENATE(tblGPJune19[[#This Row],[Primary Account]],tblGPJune19[[#This Row],[Primary Name]],tblGPJune19[[#This Row],[Secondary Acct]],tblGPJune19[[#This Row],[Secondary  Name]],tblGPJune19[[#This Row],[Alloc4FUNC]])","v":"1010000ELEC PLANT IN SERV3972000MOBILE RADIO EQUIPMENTSO"},1010000,"ELEC PLANT IN SERV",3972000,"MOBILE RADIO EQUIPMENT","SO",497.50167153846201,{"$f":"IF(OR(tblGPJune19[[#This Row],[Alloc]]=\"IDU\",tblGPJune19[[#This Row],[Alloc]]=\"OR\",tblGPJune19[[#This Row],[Alloc]]=\"UT\",tblGPJune19[[#This Row],[Alloc]]=\"WYU\",tblGPJune19[[#This Row],[Alloc]]=\"WYP\",tblGPJune19[[#This Row],[Alloc]]=\"CA\",tblGPJune19[[#This Row],[Alloc]]=\"WA\"),\"SITUS\",tblGPJune19[[#This Row],[Alloc]])","v":"SO"},{"$f":"INDEX(tblGPLookup[FUNC],MATCH(tblGPJune19[[#This Row],[Concat]],tblGPLookup[Concat],0))","v":"PTD"},{"$f":"IF(tblGPJune19[[#This Row],[Total ($000)]]=0,\"NO\",IF(ISNA(tblGPJune19[[#This Row],[FUNC]]),\"YES\",IF(_xlfn.ISFORMULA(tblGPJune19[[#This Row],[FUNC]]),\"NO\",\"YES\")))","v":"NO"}]
[{"$f":"CONCATENATE(tblGPJune19[[#This Row],[Primary Account]],tblGPJune19[[#This Row],[Primary Name]],tblGPJune19[[#This Row],[Secondary Acct]],tblGPJune19[[#This Row],[Secondary  Name]],tblGPJune19[[#This Row],[Alloc4FUNC]])","v":"1010000ELEC PLANT IN SERV3972000MOBILE RADIO EQUIPMENTSITUS"},1010000,"ELEC PLANT IN SERV",3972000,"MOBILE RADIO EQUIPMENT","UT",1829.03562307692,{"$f":"IF(OR(tblGPJune19[[#This Row],[Alloc]]=\"IDU\",tblGPJune19[[#This Row],[Alloc]]=\"OR\",tblGPJune19[[#This Row],[Alloc]]=\"UT\",tblGPJune19[[#This Row],[Alloc]]=\"WYU\",tblGPJune19[[#This Row],[Alloc]]=\"WYP\",tblGPJune19[[#This Row],[Alloc]]=\"CA\",tblGPJune19[[#This Row],[Alloc]]=\"WA\"),\"SITUS\",tblGPJune19[[#This Row],[Alloc]])","v":"SITUS"},{"$f":"INDEX(tblGPLookup[FUNC],MATCH(tblGPJune19[[#This Row],[Concat]],tblGPLookup[Concat],0))","v":"TD"},{"$f":"IF(tblGPJune19[[#This Row],[Total ($000)]]=0,\"NO\",IF(ISNA(tblGPJune19[[#This Row],[FUNC]]),\"YES\",IF(_xlfn.ISFORMULA(tblGPJune19[[#This Row],[FUNC]]),\"NO\",\"YES\")))","v":"NO"}]
[{"$f":"CONCATENATE(tblGPJune19[[#This Row],[Primary Account]],tblGPJune19[[#This Row],[Primary Name]],tblGPJune19[[#This Row],[Secondary Acct]],tblGPJune19[[#This Row],[Secondary  Name]],tblGPJune19[[#This Row],[Alloc4FUNC]])","v":"1010000ELEC PLANT IN SERV3972000MOBILE RADIO EQUIPMENTSITUS"},1010000,"ELEC PLANT IN SERV",3972000,"MOBILE RADIO EQUIPMENT","WA",542.45860000000005,{"$f":"IF(OR(tblGPJune19[[#This Row],[Alloc]]=\"IDU\",tblGPJune19[[#This Row],[Alloc]]=\"OR\",tblGPJune19[[#This Row],[Alloc]]=\"UT\",tblGPJune19[[#This Row],[Alloc]]=\"WYU\",tblGPJune19[[#This Row],[Alloc]]=\"WYP\",tblGPJune19[[#This Row],[Alloc]]=\"CA\",tblGPJune19[[#This Row],[Alloc]]=\"WA\"),\"SITUS\",tblGPJune19[[#This Row],[Alloc]])","v":"SITUS"},{"$f":"INDEX(tblGPLookup[FUNC],MATCH(tblGPJune19[[#This Row],[Concat]],tblGPLookup[Concat],0))","v":"TD"},{"$f":"IF(tblGPJune19[[#This Row],[Total ($000)]]=0,\"NO\",IF(ISNA(tblGPJune19[[#This Row],[FUNC]]),\"YES\",IF(_xlfn.ISFORMULA(tblGPJune19[[#This Row],[FUNC]]),\"NO\",\"YES\")))","v":"NO"}]
[{"$f":"CONCATENATE(tblGPJune19[[#This Row],[Primary Account]],tblGPJune19[[#This Row],[Primary Name]],tblGPJune19[[#This Row],[Secondary Acct]],tblGPJune19[[#This Row],[Secondary  Name]],tblGPJune19[[#This Row],[Alloc4FUNC]])","v":"1010000ELEC PLANT IN SERV3972000MOBILE RADIO EQUIPMENTSITUS"},1010000,"ELEC PLANT IN SERV",3972000,"MOBILE RADIO EQUIPMENT","WYP",742.95123692307698,{"$f":"IF(OR(tblGPJune19[[#This Row],[Alloc]]=\"IDU\",tblGPJune19[[#This Row],[Alloc]]=\"OR\",tblGPJune19[[#This Row],[Alloc]]=\"UT\",tblGPJune19[[#This Row],[Alloc]]=\"WYU\",tblGPJune19[[#This Row],[Alloc]]=\"WYP\",tblGPJune19[[#This Row],[Alloc]]=\"CA\",tblGPJune19[[#This Row],[Alloc]]=\"WA\"),\"SITUS\",tblGPJune19[[#This Row],[Alloc]])","v":"SITUS"},{"$f":"INDEX(tblGPLookup[FUNC],MATCH(tblGPJune19[[#This Row],[Concat]],tblGPLookup[Concat],0))","v":"TD"},{"$f":"IF(tblGPJune19[[#This Row],[Total ($000)]]=0,\"NO\",IF(ISNA(tblGPJune19[[#This Row],[FUNC]]),\"YES\",IF(_xlfn.ISFORMULA(tblGPJune19[[#This Row],[FUNC]]),\"NO\",\"YES\")))","v":"NO"}]
[{"$f":"CONCATENATE(tblGPJune19[[#This Row],[Primary Account]],tblGPJune19[[#This Row],[Primary Name]],tblGPJune19[[#This Row],[Secondary Acct]],tblGPJune19[[#This Row],[Secondary  Name]],tblGPJune19[[#This Row],[Alloc4FUNC]])","v":"1010000ELEC PLANT IN SERV3972000MOBILE RADIO EQUIPMENTSITUS"},1010000,"ELEC PLANT IN SERV",3972000,"MOBILE RADIO EQUIPMENT","WYU",103.70180999999999,{"$f":"IF(OR(tblGPJune19[[#This Row],[Alloc]]=\"IDU\",tblGPJune19[[#This Row],[Alloc]]=\"OR\",tblGPJune19[[#This Row],[Alloc]]=\"UT\",tblGPJune19[[#This Row],[Alloc]]=\"WYU\",tblGPJune19[[#This Row],[Alloc]]=\"WYP\",tblGPJune19[[#This Row],[Alloc]]=\"CA\",tblGPJune19[[#This Row],[Alloc]]=\"WA\"),\"SITUS\",tblGPJune19[[#This Row],[Alloc]])","v":"SITUS"},{"$f":"INDEX(tblGPLookup[FUNC],MATCH(tblGPJune19[[#This Row],[Concat]],tblGPLookup[Concat],0))","v":"TD"},{"$f":"IF(tblGPJune19[[#This Row],[Total ($000)]]=0,\"NO\",IF(ISNA(tblGPJune19[[#This Row],[FUNC]]),\"YES\",IF(_xlfn.ISFORMULA(tblGPJune19[[#This Row],[FUNC]]),\"NO\",\"YES\")))","v":"NO"}]
[{"$f":"CONCATENATE(tblGPJune19[[#This Row],[Primary Account]],tblGPJune19[[#This Row],[Primary Name]],tblGPJune19[[#This Row],[Secondary Acct]],tblGPJune19[[#This Row],[Secondary  Name]],tblGPJune19[[#This Row],[Alloc4FUNC]])","v":"1010000ELEC PLANT IN SERV3980000MISCELLANEOUS EQUIPMENTCN"},1010000,"ELEC PLANT IN SERV",3980000,"MISCELLANEOUS EQUIPMENT","CN",74.806343076923099,{"$f":"IF(OR(tblGPJune19[[#This Row],[Alloc]]=\"IDU\",tblGPJune19[[#This Row],[Alloc]]=\"OR\",tblGPJune19[[#This Row],[Alloc]]=\"UT\",tblGPJune19[[#This Row],[Alloc]]=\"WYU\",tblGPJune19[[#This Row],[Alloc]]=\"WYP\",tblGPJune19[[#This Row],[Alloc]]=\"CA\",tblGPJune19[[#This Row],[Alloc]]=\"WA\"),\"SITUS\",tblGPJune19[[#This Row],[Alloc]])","v":"CN"},{"$f":"INDEX(tblGPLookup[FUNC],MATCH(tblGPJune19[[#This Row],[Concat]],tblGPLookup[Concat],0))","v":"CUST"},{"$f":"IF(tblGPJune19[[#This Row],[Total ($000)]]=0,\"NO\",IF(ISNA(tblGPJune19[[#This Row],[FUNC]]),\"YES\",IF(_xlfn.ISFORMULA(tblGPJune19[[#This Row],[FUNC]]),\"NO\",\"YES\")))","v":"NO"}]
[{"$f":"CONCATENATE(tblGPJune19[[#This Row],[Primary Account]],tblGPJune19[[#This Row],[Primary Name]],tblGPJune19[[#This Row],[Secondary Acct]],tblGPJune19[[#This Row],[Secondary  Name]],tblGPJune19[[#This Row],[Alloc4FUNC]])","v":"1010000ELEC PLANT IN SERV3980000MISCELLANEOUS EQUIPMENTSITUS"},1010000,"ELEC PLANT IN SERV",3980000,"MISCELLANEOUS EQUIPMENT","IDU",82.510673846153793,{"$f":"IF(OR(tblGPJune19[[#This Row],[Alloc]]=\"IDU\",tblGPJune19[[#This Row],[Alloc]]=\"OR\",tblGPJune19[[#This Row],[Alloc]]=\"UT\",tblGPJune19[[#This Row],[Alloc]]=\"WYU\",tblGPJune19[[#This Row],[Alloc]]=\"WYP\",tblGPJune19[[#This Row],[Alloc]]=\"CA\",tblGPJune19[[#This Row],[Alloc]]=\"WA\"),\"SITUS\",tblGPJune19[[#This Row],[Alloc]])","v":"SITUS"},{"$f":"INDEX(tblGPLookup[FUNC],MATCH(tblGPJune19[[#This Row],[Concat]],tblGPLookup[Concat],0))","v":"TD"},{"$f":"IF(tblGPJune19[[#This Row],[Total ($000)]]=0,\"NO\",IF(ISNA(tblGPJune19[[#This Row],[FUNC]]),\"YES\",IF(_xlfn.ISFORMULA(tblGPJune19[[#This Row],[FUNC]]),\"NO\",\"YES\")))","v":"NO"}]
[{"$f":"CONCATENATE(tblGPJune19[[#This Row],[Primary Account]],tblGPJune19[[#This Row],[Primary Name]],tblGPJune19[[#This Row],[Secondary Acct]],tblGPJune19[[#This Row],[Secondary  Name]],tblGPJune19[[#This Row],[Alloc4FUNC]])","v":"1010000ELEC PLANT IN SERV3980000MISCELLANEOUS EQUIPMENTSITUS"},1010000,"ELEC PLANT IN SERV",3980000,"MISCELLANEOUS EQUIPMENT","OR",1103.90118846154,{"$f":"IF(OR(tblGPJune19[[#This Row],[Alloc]]=\"IDU\",tblGPJune19[[#This Row],[Alloc]]=\"OR\",tblGPJune19[[#This Row],[Alloc]]=\"UT\",tblGPJune19[[#This Row],[Alloc]]=\"WYU\",tblGPJune19[[#This Row],[Alloc]]=\"WYP\",tblGPJune19[[#This Row],[Alloc]]=\"CA\",tblGPJune19[[#This Row],[Alloc]]=\"WA\"),\"SITUS\",tblGPJune19[[#This Row],[Alloc]])","v":"SITUS"},{"$f":"INDEX(tblGPLookup[FUNC],MATCH(tblGPJune19[[#This Row],[Concat]],tblGPLookup[Concat],0))","v":"TD"},{"$f":"IF(tblGPJune19[[#This Row],[Total ($000)]]=0,\"NO\",IF(ISNA(tblGPJune19[[#This Row],[FUNC]]),\"YES\",IF(_xlfn.ISFORMULA(tblGPJune19[[#This Row],[FUNC]]),\"NO\",\"YES\")))","v":"NO"}]
[{"$f":"CONCATENATE(tblGPJune19[[#This Row],[Primary Account]],tblGPJune19[[#This Row],[Primary Name]],tblGPJune19[[#This Row],[Secondary Acct]],tblGPJune19[[#This Row],[Secondary  Name]],tblGPJune19[[#This Row],[Alloc4FUNC]])","v":"1010000ELEC PLANT IN SERV3980000MISCELLANEOUS EQUIPMENTSE"},1010000,"ELEC PLANT IN SERV",3980000,"MISCELLANEOUS EQUIPMENT","SE",4.2681107692307698,{"$f":"IF(OR(tblGPJune19[[#This Row],[Alloc]]=\"IDU\",tblGPJune19[[#This Row],[Alloc]]=\"OR\",tblGPJune19[[#This Row],[Alloc]]=\"UT\",tblGPJune19[[#This Row],[Alloc]]=\"WYU\",tblGPJune19[[#This Row],[Alloc]]=\"WYP\",tblGPJune19[[#This Row],[Alloc]]=\"CA\",tblGPJune19[[#This Row],[Alloc]]=\"WA\"),\"SITUS\",tblGPJune19[[#This Row],[Alloc]])","v":"SE"},{"$f":"INDEX(tblGPLookup[FUNC],MATCH(tblGPJune19[[#This Row],[Concat]],tblGPLookup[Concat],0))","v":"P"},{"$f":"IF(tblGPJune19[[#This Row],[Total ($000)]]=0,\"NO\",IF(ISNA(tblGPJune19[[#This Row],[FUNC]]),\"YES\",IF(_xlfn.ISFORMULA(tblGPJune19[[#This Row],[FUNC]]),\"NO\",\"YES\")))","v":"NO"}]
[{"$f":"CONCATENATE(tblGPJune19[[#This Row],[Primary Account]],tblGPJune19[[#This Row],[Primary Name]],tblGPJune19[[#This Row],[Secondary Acct]],tblGPJune19[[#This Row],[Secondary  Name]],tblGPJune19[[#This Row],[Alloc4FUNC]])","v":"1010000ELEC PLANT IN SERV3980000MISCELLANEOUS EQUIPMENTSG"},1010000,"ELEC PLANT IN SERV",3980000,"MISCELLANEOUS EQUIPMENT","SG",2644.8091815384601,{"$f":"IF(OR(tblGPJune19[[#This Row],[Alloc]]=\"IDU\",tblGPJune19[[#This Row],[Alloc]]=\"OR\",tblGPJune19[[#This Row],[Alloc]]=\"UT\",tblGPJune19[[#This Row],[Alloc]]=\"WYU\",tblGPJune19[[#This Row],[Alloc]]=\"WYP\",tblGPJune19[[#This Row],[Alloc]]=\"CA\",tblGPJune19[[#This Row],[Alloc]]=\"WA\"),\"SITUS\",tblGPJune19[[#This Row],[Alloc]])","v":"SG"},{"$f":"INDEX(tblGPLookup[FUNC],MATCH(tblGPJune19[[#This Row],[Concat]],tblGPLookup[Concat],0))","v":"P"},{"$f":"IF(tblGPJune19[[#This Row],[Total ($000)]]=0,\"NO\",IF(ISNA(tblGPJune19[[#This Row],[FUNC]]),\"YES\",IF(_xlfn.ISFORMULA(tblGPJune19[[#This Row],[FUNC]]),\"NO\",\"YES\")))","v":"NO"}]
[{"$f":"CONCATENATE(tblGPJune19[[#This Row],[Primary Account]],tblGPJune19[[#This Row],[Primary Name]],tblGPJune19[[#This Row],[Secondary Acct]],tblGPJune19[[#This Row],[Secondary  Name]],tblGPJune19[[#This Row],[Alloc4FUNC]])","v":"1010000ELEC PLANT IN SERV3980000MISCELLANEOUS EQUIPMENTSITUS"},1010000,"ELEC PLANT IN SERV",3980000,"MISCELLANEOUS EQUIPMENT","CA",50.150082307692301,{"$f":"IF(OR(tblGPJune19[[#This Row],[Alloc]]=\"IDU\",tblGPJune19[[#This Row],[Alloc]]=\"OR\",tblGPJune19[[#This Row],[Alloc]]=\"UT\",tblGPJune19[[#This Row],[Alloc]]=\"WYU\",tblGPJune19[[#This Row],[Alloc]]=\"WYP\",tblGPJune19[[#This Row],[Alloc]]=\"CA\",tblGPJune19[[#This Row],[Alloc]]=\"WA\"),\"SITUS\",tblGPJune19[[#This Row],[Alloc]])","v":"SITUS"},{"$f":"INDEX(tblGPLookup[FUNC],MATCH(tblGPJune19[[#This Row],[Concat]],tblGPLookup[Concat],0))","v":"TD"},{"$f":"IF(tblGPJune19[[#This Row],[Total ($000)]]=0,\"NO\",IF(ISNA(tblGPJune19[[#This Row],[FUNC]]),\"YES\",IF(_xlfn.ISFORMULA(tblGPJune19[[#This Row],[FUNC]]),\"NO\",\"YES\")))","v":"NO"}]
[{"$f":"CONCATENATE(tblGPJune19[[#This Row],[Primary Account]],tblGPJune19[[#This Row],[Primary Name]],tblGPJune19[[#This Row],[Secondary Acct]],tblGPJune19[[#This Row],[Secondary  Name]],tblGPJune19[[#This Row],[Alloc4FUNC]])","v":"1010000ELEC PLANT IN SERV3980000MISCELLANEOUS EQUIPMENTSO"},1010000,"ELEC PLANT IN SERV",3980000,"MISCELLANEOUS EQUIPMENT","SO",2324.7735884615399,{"$f":"IF(OR(tblGPJune19[[#This Row],[Alloc]]=\"IDU\",tblGPJune19[[#This Row],[Alloc]]=\"OR\",tblGPJune19[[#This Row],[Alloc]]=\"UT\",tblGPJune19[[#This Row],[Alloc]]=\"WYU\",tblGPJune19[[#This Row],[Alloc]]=\"WYP\",tblGPJune19[[#This Row],[Alloc]]=\"CA\",tblGPJune19[[#This Row],[Alloc]]=\"WA\"),\"SITUS\",tblGPJune19[[#This Row],[Alloc]])","v":"SO"},{"$f":"INDEX(tblGPLookup[FUNC],MATCH(tblGPJune19[[#This Row],[Concat]],tblGPLookup[Concat],0))","v":"PTD"},{"$f":"IF(tblGPJune19[[#This Row],[Total ($000)]]=0,\"NO\",IF(ISNA(tblGPJune19[[#This Row],[FUNC]]),\"YES\",IF(_xlfn.ISFORMULA(tblGPJune19[[#This Row],[FUNC]]),\"NO\",\"YES\")))","v":"NO"}]
[{"$f":"CONCATENATE(tblGPJune19[[#This Row],[Primary Account]],tblGPJune19[[#This Row],[Primary Name]],tblGPJune19[[#This Row],[Secondary Acct]],tblGPJune19[[#This Row],[Secondary  Name]],tblGPJune19[[#This Row],[Alloc4FUNC]])","v":"1010000ELEC PLANT IN SERV3980000MISCELLANEOUS EQUIPMENTSITUS"},1010000,"ELEC PLANT IN SERV",3980000,"MISCELLANEOUS EQUIPMENT","UT",1303.34185307692,{"$f":"IF(OR(tblGPJune19[[#This Row],[Alloc]]=\"IDU\",tblGPJune19[[#This Row],[Alloc]]=\"OR\",tblGPJune19[[#This Row],[Alloc]]=\"UT\",tblGPJune19[[#This Row],[Alloc]]=\"WYU\",tblGPJune19[[#This Row],[Alloc]]=\"WYP\",tblGPJune19[[#This Row],[Alloc]]=\"CA\",tblGPJune19[[#This Row],[Alloc]]=\"WA\"),\"SITUS\",tblGPJune19[[#This Row],[Alloc]])","v":"SITUS"},{"$f":"INDEX(tblGPLookup[FUNC],MATCH(tblGPJune19[[#This Row],[Concat]],tblGPLookup[Concat],0))","v":"TD"},{"$f":"IF(tblGPJune19[[#This Row],[Total ($000)]]=0,\"NO\",IF(ISNA(tblGPJune19[[#This Row],[FUNC]]),\"YES\",IF(_xlfn.ISFORMULA(tblGPJune19[[#This Row],[FUNC]]),\"NO\",\"YES\")))","v":"NO"}]
[{"$f":"CONCATENATE(tblGPJune19[[#This Row],[Primary Account]],tblGPJune19[[#This Row],[Primary Name]],tblGPJune19[[#This Row],[Secondary Acct]],tblGPJune19[[#This Row],[Secondary  Name]],tblGPJune19[[#This Row],[Alloc4FUNC]])","v":"1010000ELEC PLANT IN SERV3980000MISCELLANEOUS EQUIPMENTSITUS"},1010000,"ELEC PLANT IN SERV",3980000,"MISCELLANEOUS EQUIPMENT","WA",182.526894615385,{"$f":"IF(OR(tblGPJune19[[#This Row],[Alloc]]=\"IDU\",tblGPJune19[[#This Row],[Alloc]]=\"OR\",tblGPJune19[[#This Row],[Alloc]]=\"UT\",tblGPJune19[[#This Row],[Alloc]]=\"WYU\",tblGPJune19[[#This Row],[Alloc]]=\"WYP\",tblGPJune19[[#This Row],[Alloc]]=\"CA\",tblGPJune19[[#This Row],[Alloc]]=\"WA\"),\"SITUS\",tblGPJune19[[#This Row],[Alloc]])","v":"SITUS"},{"$f":"INDEX(tblGPLookup[FUNC],MATCH(tblGPJune19[[#This Row],[Concat]],tblGPLookup[Concat],0))","v":"TD"},{"$f":"IF(tblGPJune19[[#This Row],[Total ($000)]]=0,\"NO\",IF(ISNA(tblGPJune19[[#This Row],[FUNC]]),\"YES\",IF(_xlfn.ISFORMULA(tblGPJune19[[#This Row],[FUNC]]),\"NO\",\"YES\")))","v":"NO"}]
[{"$f":"CONCATENATE(tblGPJune19[[#This Row],[Primary Account]],tblGPJune19[[#This Row],[Primary Name]],tblGPJune19[[#This Row],[Secondary Acct]],tblGPJune19[[#This Row],[Secondary  Name]],tblGPJune19[[#This Row],[Alloc4FUNC]])","v":"1010000ELEC PLANT IN SERV3980000MISCELLANEOUS EQUIPMENTSITUS"},1010000,"ELEC PLANT IN SERV",3980000,"MISCELLANEOUS EQUIPMENT","WYP",184.57510769230799,{"$f":"IF(OR(tblGPJune19[[#This Row],[Alloc]]=\"IDU\",tblGPJune19[[#This Row],[Alloc]]=\"OR\",tblGPJune19[[#This Row],[Alloc]]=\"UT\",tblGPJune19[[#This Row],[Alloc]]=\"WYU\",tblGPJune19[[#This Row],[Alloc]]=\"WYP\",tblGPJune19[[#This Row],[Alloc]]=\"CA\",tblGPJune19[[#This Row],[Alloc]]=\"WA\"),\"SITUS\",tblGPJune19[[#This Row],[Alloc]])","v":"SITUS"},{"$f":"INDEX(tblGPLookup[FUNC],MATCH(tblGPJune19[[#This Row],[Concat]],tblGPLookup[Concat],0))","v":"TD"},{"$f":"IF(tblGPJune19[[#This Row],[Total ($000)]]=0,\"NO\",IF(ISNA(tblGPJune19[[#This Row],[FUNC]]),\"YES\",IF(_xlfn.ISFORMULA(tblGPJune19[[#This Row],[FUNC]]),\"NO\",\"YES\")))","v":"NO"}]
[{"$f":"CONCATENATE(tblGPJune19[[#This Row],[Primary Account]],tblGPJune19[[#This Row],[Primary Name]],tblGPJune19[[#This Row],[Secondary Acct]],tblGPJune19[[#This Row],[Secondary  Name]],tblGPJune19[[#This Row],[Alloc4FUNC]])","v":"1010000ELEC PLANT IN SERV3980000MISCELLANEOUS EQUIPMENTSITUS"},1010000,"ELEC PLANT IN SERV",3980000,"MISCELLANEOUS EQUIPMENT","WYU",16.010346923076899,{"$f":"IF(OR(tblGPJune19[[#This Row],[Alloc]]=\"IDU\",tblGPJune19[[#This Row],[Alloc]]=\"OR\",tblGPJune19[[#This Row],[Alloc]]=\"UT\",tblGPJune19[[#This Row],[Alloc]]=\"WYU\",tblGPJune19[[#This Row],[Alloc]]=\"WYP\",tblGPJune19[[#This Row],[Alloc]]=\"CA\",tblGPJune19[[#This Row],[Alloc]]=\"WA\"),\"SITUS\",tblGPJune19[[#This Row],[Alloc]])","v":"SITUS"},{"$f":"INDEX(tblGPLookup[FUNC],MATCH(tblGPJune19[[#This Row],[Concat]],tblGPLookup[Concat],0))","v":"TD"},{"$f":"IF(tblGPJune19[[#This Row],[Total ($000)]]=0,\"NO\",IF(ISNA(tblGPJune19[[#This Row],[FUNC]]),\"YES\",IF(_xlfn.ISFORMULA(tblGPJune19[[#This Row],[FUNC]]),\"NO\",\"YES\")))","v":"NO"}]
[{"$f":"CONCATENATE(tblGPJune19[[#This Row],[Primary Account]],tblGPJune19[[#This Row],[Primary Name]],tblGPJune19[[#This Row],[Secondary Acct]],tblGPJune19[[#This Row],[Secondary  Name]],tblGPJune19[[#This Row],[Alloc4FUNC]])","v":"1010000ELEC PLANT IN SERV3992100LAND OWNED IN FEESE"},1010000,"ELEC PLANT IN SERV",3992100,"LAND OWNED IN FEE","SE",1854.8279199999999,{"$f":"IF(OR(tblGPJune19[[#This Row],[Alloc]]=\"IDU\",tblGPJune19[[#This Row],[Alloc]]=\"OR\",tblGPJune19[[#This Row],[Alloc]]=\"UT\",tblGPJune19[[#This Row],[Alloc]]=\"WYU\",tblGPJune19[[#This Row],[Alloc]]=\"WYP\",tblGPJune19[[#This Row],[Alloc]]=\"CA\",tblGPJune19[[#This Row],[Alloc]]=\"WA\"),\"SITUS\",tblGPJune19[[#This Row],[Alloc]])","v":"SE"},{"$f":"INDEX(tblGPLookup[FUNC],MATCH(tblGPJune19[[#This Row],[Concat]],tblGPLookup[Concat],0))","v":"P"},{"$f":"IF(tblGPJune19[[#This Row],[Total ($000)]]=0,\"NO\",IF(ISNA(tblGPJune19[[#This Row],[FUNC]]),\"YES\",IF(_xlfn.ISFORMULA(tblGPJune19[[#This Row],[FUNC]]),\"NO\",\"YES\")))","v":"NO"}]
[null,null,null,null,null,null,{"$f":"SUBTOTAL(109,tblGPJune19[Total ($000)])","v":1238330.0512330763}]

{"sheet":"GP Lookup","index":17,"n_rows":252,"n_cols":9,"rows_kept":252,"cut":false,"hidden":false,"merged":[]}
["Concat","Primary Account","Primary Name","Secondary Acct","Secondary  Name","Alloc","Total ($000)","Alloc4FUNC","FUNC"]
[{"$f":"CONCATENATE(tblGPLookup[[#This Row],[Primary Account]],tblGPLookup[[#This Row],[Primary Name]],tblGPLookup[[#This Row],[Secondary Acct]],tblGPLookup[[#This Row],[Secondary  Name]],tblGPLookup[[#This Row],[Alloc4FUNC]])","v":"1010000ELEC PLANT IN SERV3890000LAND AND LAND RIGHTSSITUS"},1010000,"ELEC PLANT IN SERV",3890000,"LAND AND LAND RIGHTS","SITUS",null,{"$f":"IF(OR(tblGPLookup[[#This Row],[Alloc]]=\"IDU\",tblGPLookup[[#This Row],[Alloc]]=\"OR\",tblGPLookup[[#This Row],[Alloc]]=\"UT\",tblGPLookup[[#This Row],[Alloc]]=\"WYU\",tblGPLookup[[#This Row],[Alloc]]=\"WYP\",tblGPLookup[[#This Row],[Alloc]]=\"CA\",tblGPLookup[[#This Row],[Alloc]]=\"WA\"),\"SITUS\",tblGPLookup[[#This Row],[Alloc]])","v":"SITUS"},"TD"]
[{"$f":"CONCATENATE(tblGPLookup[[#This Row],[Primary Account]],tblGPLookup[[#This Row],[Primary Name]],tblGPLookup[[#This Row],[Secondary Acct]],tblGPLookup[[#This Row],[Secondary  Name]],tblGPLookup[[#This Row],[Alloc4FUNC]])","v":"1010000ELEC PLANT IN SERV3890000LAND AND LAND RIGHTSSITUS"},1010000,"ELEC PLANT IN SERV",3890000,"LAND AND LAND RIGHTS","SITUS",null,{"$f":"IF(OR(tblGPLookup[[#This Row],[Alloc]]=\"IDU\",tblGPLookup[[#This Row],[Alloc]]=\"OR\",tblGPLookup[[#This Row],[Alloc]]=\"UT\",tblGPLookup[[#This Row],[Alloc]]=\"WYU\",tblGPLookup[[#This Row],[Alloc]]=\"WYP\",tblGPLookup[[#This Row],[Alloc]]=\"CA\",tblGPLookup[[#This Row],[Alloc]]=\"WA\"),\"SITUS\",tblGPLookup[[#This Row],[Alloc]])","v":"SITUS"},"TD"]
[{"$f":"CONCATENATE(tblGPLookup[[#This Row],[Primary Account]],tblGPLookup[[#This Row],[Primary Name]],tblGPLookup[[#This Row],[Secondary Acct]],tblGPLookup[[#This Row],[Secondary  Name]],tblGPLookup[[#This Row],[Alloc4FUNC]])","v":"1010000ELEC PLANT IN SERV3890000LAND AND LAND RIGHTSSITUS"},1010000,"ELEC PLANT IN SERV",3890000,"LAND AND LAND RIGHTS","SITUS",null,{"$f":"IF(OR(tblGPLookup[[#This Row],[Alloc]]=\"IDU\",tblGPLookup[[#This Row],[Alloc]]=\"OR\",tblGPLookup[[#This Row],[Alloc]]=\"UT\",tblGPLookup[[#This Row],[Alloc]]=\"WYU\",tblGPLookup[[#This Row],[Alloc]]=\"WYP\",tblGPLookup[[#This Row],[Alloc]]=\"CA\",tblGPLookup[[#This Row],[Alloc]]=\"WA\"),\"SITUS\",tblGPLookup[[#This Row],[Alloc]])","v":"SITUS"},"TD"]
[{"$f":"CONCATENATE(tblGPLookup[[#This Row],[Primary Account]],tblGPLookup[[#This Row],[Primary Name]],tblGPLookup[[#This Row],[Secondary Acct]],tblGPLookup[[#This Row],[Secondary  Name]],tblGPLookup[[#This Row],[Alloc4FUNC]])","v":"1010000ELEC PLANT IN SERV3890000LAND AND LAND RIGHTSSITUS"},1010000,"ELEC PLANT IN SERV",3890000,"LAND AND LAND RIGHTS","SITUS",null,{"$f":"IF(OR(tblGPLookup[[#This Row],[Alloc]]=\"IDU\",tblGPLookup[[#This Row],[Alloc]]=\"OR\",tblGPLookup[[#This Row],[Alloc]]=\"UT\",tblGPLookup[[#This Row],[Alloc]]=\"WYU\",tblGPLookup[[#This Row],[Alloc]]=\"WYP\",tblGPLookup[[#This Row],[Alloc]]=\"CA\",tblGPLookup[[#This Row],[Alloc]]=\"WA\"),\"SITUS\",tblGPLookup[[#This Row],[Alloc]])","v":"SITUS"},"TD"]
[{"$f":"CONCATENATE(tblGPLookup[[#This Row],[Primary Account]],tblGPLookup[[#This Row],[Primary Name]],tblGPLookup[[#This Row],[Secondary Acct]],tblGPLookup[[#This Row],[Secondary  Name]],tblGPLookup[[#This Row],[Alloc4FUNC]])","v":"1010000ELEC PLANT IN SERV3891000LAND OWNED IN FEECN"},1010000,"ELEC PLANT IN SERV",3891000,"LAND OWNED IN FEE","CN",null,{"$f":"IF(OR(tblGPLookup[[#This Row],[Alloc]]=\"IDU\",tblGPLookup[[#This Row],[Alloc]]=\"OR\",tblGPLookup[[#This Row],[Alloc]]=\"UT\",tblGPLookup[[#This Row],[Alloc]]=\"WYU\",tblGPLookup[[#This Row],[Alloc]]=\"WYP\",tblGPLookup[[#This Row],[Alloc]]=\"CA\",tblGPLookup[[#This Row],[Alloc]]=\"WA\"),\"SITUS\",tblGPLookup[[#This Row],[Alloc]])","v":"CN"},"CUST"]
[{"$f":"CONCATENATE(tblGPLookup[[#This Row],[Primary Account]],tblGPLookup[[#This Row],[Primary Name]],tblGPLookup[[#This Row],[Secondary Acct]],tblGPLookup[[#This Row],[Secondary  Name]],tblGPLookup[[#This Row],[Alloc4FUNC]])","v":"1010000ELEC PLANT IN SERV3891000LAND OWNED IN FEESITUS"},1010000,"ELEC PLANT IN SERV",3891000,"LAND OWNED IN FEE","SITUS",null,{"$f":"IF(OR(tblGPLookup[[#This Row],[Alloc]]=\"IDU\",tblGPLookup[[#This Row],[Alloc]]=\"OR\",tblGPLookup[[#This Row],[Alloc]]=\"UT\",tblGPLookup[[#This Row],[Alloc]]=\"WYU\",tblGPLookup[[#This Row],[Alloc]]=\"WYP\",tblGPLookup[[#This Row],[Alloc]]=\"CA\",tblGPLookup[[#This Row],[Alloc]]=\"WA\"),\"SITUS\",tblGPLookup[[#This Row],[Alloc]])","v":"SITUS"},"TD"]
[{"$f":"CONCATENATE(tblGPLookup[[#This Row],[Primary Account]],tblGPLookup[[#This Row],[Primary Name]],tblGPLookup[[#This Row],[Secondary Acct]],tblGPLookup[[#This Row],[Secondary  Name]],tblGPLookup[[#This Row],[Alloc4FUNC]])","v":"1010000ELEC PLANT IN SERV3891000LAND OWNED IN FEESITUS"},1010000,"ELEC PLANT IN SERV",3891000,"LAND OWNED IN FEE","SITUS",null,{"$f":"IF(OR(tblGPLookup[[#This Row],[Alloc]]=\"IDU\",tblGPLookup[[#This Row],[Alloc]]=\"OR\",tblGPLookup[[#This Row],[Alloc]]=\"UT\",tblGPLookup[[#This Row],[Alloc]]=\"WYU\",tblGPLookup[[#This Row],[Alloc]]=\"WYP\",tblGPLookup[[#This Row],[Alloc]]=\"CA\",tblGPLookup[[#This Row],[Alloc]]=\"WA\"),\"SITUS\",tblGPLookup[[#This Row],[Alloc]])","v":"SITUS"},"TD"]
[{"$f":"CONCATENATE(tblGPLookup[[#This Row],[Primary Account]],tblGPLookup[[#This Row],[Primary Name]],tblGPLookup[[#This Row],[Secondary Acct]],tblGPLookup[[#This Row],[Secondary  Name]],tblGPLookup[[#This Row],[Alloc4FUNC]])","v":"1010000ELEC PLANT IN SERV3891000LAND OWNED IN FEESG"},1010000,"ELEC PLANT IN SERV",3891000,"LAND OWNED IN FEE","SG",null,{"$f":"IF(OR(tblGPLookup[[#This Row],[Alloc]]=\"IDU\",tblGPLookup[[#This Row],[Alloc]]=\"OR\",tblGPLookup[[#This Row],[Alloc]]=\"UT\",tblGPLookup[[#This Row],[Alloc]]=\"WYU\",tblGPLookup[[#This Row],[Alloc]]=\"WYP\",tblGPLookup[[#This Row],[Alloc]]=\"CA\",tblGPLookup[[#This Row],[Alloc]]=\"WA\"),\"SITUS\",tblGPLookup[[#This Row],[Alloc]])","v":"SG"},"P"]
[{"$f":"CONCATENATE(tblGPLookup[[#This Row],[Primary Account]],tblGPLookup[[#This Row],[Primary Name]],tblGPLookup[[#This Row],[Secondary Acct]],tblGPLookup[[#This Row],[Secondary  Name]],tblGPLookup[[#This Row],[Alloc4FUNC]])","v":"1010000ELEC PLANT IN SERV3891000LAND OWNED IN FEESITUS"},1010000,"ELEC PLANT IN SERV",3891000,"LAND OWNED IN FEE","SITUS",null,{"$f":"IF(OR(tblGPLookup[[#This Row],[Alloc]]=\"IDU\",tblGPLookup[[#This Row],[Alloc]]=\"OR\",tblGPLookup[[#This Row],[Alloc]]=\"UT\",tblGPLookup[[#This Row],[Alloc]]=\"WYU\",tblGPLookup[[#This Row],[Alloc]]=\"WYP\",tblGPLookup[[#This Row],[Alloc]]=\"CA\",tblGPLookup[[#This Row],[Alloc]]=\"WA\"),\"SITUS\",tblGPLookup[[#This Row],[Alloc]])","v":"SITUS"},"TD"]
[{"$f":"CONCATENATE(tblGPLookup[[#This Row],[Primary Account]],tblGPLookup[[#This Row],[Primary Name]],tblGPLookup[[#This Row],[Secondary Acct]],tblGPLookup[[#This Row],[Secondary  Name]],tblGPLookup[[#This Row],[Alloc4FUNC]])","v":"1010000ELEC PLANT IN SERV3891000LAND OWNED IN FEESO"},1010000,"ELEC PLANT IN SERV",3891000,"LAND OWNED IN FEE","SO",null,{"$f":"IF(OR(tblGPLookup[[#This Row],[Alloc]]=\"IDU\",tblGPLookup[[#This Row],[Alloc]]=\"OR\",tblGPLookup[[#This Row],[Alloc]]=\"UT\",tblGPLookup[[#This Row],[Alloc]]=\"WYU\",tblGPLookup[[#This Row],[Alloc]]=\"WYP\",tblGPLookup[[#This Row],[Alloc]]=\"CA\",tblGPLookup[[#This Row],[Alloc]]=\"WA\"),\"SITUS\",tblGPLookup[[#This Row],[Alloc]])","v":"SO"},"PTD"]
[{"$f":"CONCATENATE(tblGPLookup[[#This Row],[Primary Account]],tblGPLookup[[#This Row],[Primary Name]],tblGPLookup[[#This Row],[Secondary Acct]],tblGPLookup[[#This Row],[Secondary  Name]],tblGPLookup[[#This Row],[Alloc4FUNC]])","v":"1010000ELEC PLANT IN SERV3891000LAND OWNED IN FEESITUS"},1010000,"ELEC PLANT IN SERV",3891000,"LAND OWNED IN FEE","SITUS",null,{"$f":"IF(OR(tblGPLookup[[#This Row],[Alloc]]=\"IDU\",tblGPLookup[[#This Row],[Alloc]]=\"OR\",tblGPLookup[[#This Row],[Alloc]]=\"UT\",tblGPLookup[[#This Row],[Alloc]]=\"WYU\",tblGPLookup[[#This Row],[Alloc]]=\"WYP\",tblGPLookup[[#This Row],[Alloc]]=\"CA\",tblGPLookup[[#This Row],[Alloc]]=\"WA\"),\"SITUS\",tblGPLookup[[#This Row],[Alloc]])","v":"SITUS"},"TD"]
[{"$f":"CONCATENATE(tblGPLookup[[#This Row],[Primary Account]],tblGPLookup[[#This Row],[Primary Name]],tblGPLookup[[#This Row],[Secondary Acct]],tblGPLookup[[#This Row],[Secondary  Name]],tblGPLookup[[#This Row],[Alloc4FUNC]])","v":"1010000ELEC PLANT IN SERV3891000LAND OWNED IN FEESITUS"},1010000,"ELEC PLANT IN SERV",3891000,"LAND OWNED IN FEE","SITUS",null,{"$f":"IF(OR(tblGPLookup[[#This Row],[Alloc]]=\"IDU\",tblGPLookup[[#This Row],[Alloc]]=\"OR\",tblGPLookup[[#This Row],[Alloc]]=\"UT\",tblGPLookup[[#This Row],[Alloc]]=\"WYU\",tblGPLookup[[#This Row],[Alloc]]=\"WYP\",tblGPLookup[[#This Row],[Alloc]]=\"CA\",tblGPLookup[[#This Row],[Alloc]]=\"WA\"),\"SITUS\",tblGPLookup[[#This Row],[Alloc]])","v":"SITUS"},"TD"]
[{"$f":"CONCATENATE(tblGPLookup[[#This Row],[Primary Account]],tblGPLookup[[#This Row],[Primary Name]],tblGPLookup[[#This Row],[Secondary Acct]],tblGPLookup[[#This Row],[Secondary  Name]],tblGPLookup[[#This Row],[Alloc4FUNC]])","v":"1010000ELEC PLANT IN SERV3891000LAND OWNED IN FEESITUS"},1010000,"ELEC PLANT IN SERV",3891000,"LAND OWNED IN FEE","SITUS",null,{"$f":"IF(OR(tblGPLookup[[#This Row],[Alloc]]=\"IDU\",tblGPLookup[[#This Row],[Alloc]]=\"OR\",tblGPLookup[[#This Row],[Alloc]]=\"UT\",tblGPLookup[[#This Row],[Alloc]]=\"WYU\",tblGPLookup[[#This Row],[Alloc]]=\"WYP\",tblGPLookup[[#This Row],[Alloc]]=\"CA\",tblGPLookup[[#This Row],[Alloc]]=\"WA\"),\"SITUS\",tblGPLookup[[#This Row],[Alloc]])","v":"SITUS"},"TD"]
[{"$f":"CONCATENATE(tblGPLookup[[#This Row],[Primary Account]],tblGPLookup[[#This Row],[Primary Name]],tblGPLookup[[#This Row],[Secondary Acct]],tblGPLookup[[#This Row],[Secondary  Name]],tblGPLookup[[#This Row],[Alloc4FUNC]])","v":"1010000ELEC PLANT IN SERV3891000LAND OWNED IN FEESITUS"},1010000,"ELEC PLANT IN SERV",3891000,"LAND OWNED IN FEE","SITUS",null,{"$f":"IF(OR(tblGPLookup[[#This Row],[Alloc]]=\"IDU\",tblGPLookup[[#This Row],[Alloc]]=\"OR\",tblGPLookup[[#This Row],[Alloc]]=\"UT\",tblGPLookup[[#This Row],[Alloc]]=\"WYU\",tblGPLookup[[#This Row],[Alloc]]=\"WYP\",tblGPLookup[[#This Row],[Alloc]]=\"CA\",tblGPLookup[[#This Row],[Alloc]]=\"WA\"),\"SITUS\",tblGPLookup[[#This Row],[Alloc]])","v":"SITUS"},"TD"]
[{"$f":"CONCATENATE(tblGPLookup[[#This Row],[Primary Account]],tblGPLookup[[#This Row],[Primary Name]],tblGPLookup[[#This Row],[Secondary Acct]],tblGPLookup[[#This Row],[Secondary  Name]],tblGPLookup[[#This Row],[Alloc4FUNC]])","v":"1010000ELEC PLANT IN SERV3892000LAND RIGHTSSITUS"},1010000,"ELEC PLANT IN SERV",3892000,"LAND RIGHTS","SITUS",null,{"$f":"IF(OR(tblGPLookup[[#This Row],[Alloc]]=\"IDU\",tblGPLookup[[#This Row],[Alloc]]=\"OR\",tblGPLookup[[#This Row],[Alloc]]=\"UT\",tblGPLookup[[#This Row],[Alloc]]=\"WYU\",tblGPLookup[[#This Row],[Alloc]]=\"WYP\",tblGPLookup[[#This Row],[Alloc]]=\"CA\",tblGPLookup[[#This Row],[Alloc]]=\"WA\"),\"SITUS\",tblGPLookup[[#This Row],[Alloc]])","v":"SITUS"},"TD"]
[{"$f":"CONCATENATE(tblGPLookup[[#This Row],[Primary Account]],tblGPLookup[[#This Row],[Primary Name]],tblGPLookup[[#This Row],[Secondary Acct]],tblGPLookup[[#This Row],[Secondary  Name]],tblGPLookup[[#This Row],[Alloc4FUNC]])","v":"1010000ELEC PLANT IN SERV3892000LAND RIGHTSSG"},1010000,"ELEC PLANT IN SERV",3892000,"LAND RIGHTS","SG",null,{"$f":"IF(OR(tblGPLookup[[#This Row],[Alloc]]=\"IDU\",tblGPLookup[[#This Row],[Alloc]]=\"OR\",tblGPLookup[[#This Row],[Alloc]]=\"UT\",tblGPLookup[[#This Row],[Alloc]]=\"WYU\",tblGPLookup[[#This Row],[Alloc]]=\"WYP\",tblGPLookup[[#This Row],[Alloc]]=\"CA\",tblGPLookup[[#This Row],[Alloc]]=\"WA\"),\"SITUS\",tblGPLookup[[#This Row],[Alloc]])","v":"SG"},"P"]
[{"$f":"CONCATENATE(tblGPLookup[[#This Row],[Primary Account]],tblGPLookup[[#This Row],[Primary Name]],tblGPLookup[[#This Row],[Secondary Acct]],tblGPLookup[[#This Row],[Secondary  Name]],tblGPLookup[[#This Row],[Alloc4FUNC]])","v":"1010000ELEC PLANT IN SERV3892000LAND RIGHTSSITUS"},1010000,"ELEC PLANT IN SERV",3892000,"LAND RIGHTS","SITUS",null,{"$f":"IF(OR(tblGPLookup[[#This Row],[Alloc]]=\"IDU\",tblGPLookup[[#This Row],[Alloc]]=\"OR\",tblGPLookup[[#This Row],[Alloc]]=\"UT\",tblGPLookup[[#This Row],[Alloc]]=\"WYU\",tblGPLookup[[#This Row],[Alloc]]=\"WYP\",tblGPLookup[[#This Row],[Alloc]]=\"CA\",tblGPLookup[[#This Row],[Alloc]]=\"WA\"),\"SITUS\",tblGPLookup[[#This Row],[Alloc]])","v":"SITUS"},"TD"]
[{"$f":"CONCATENATE(tblGPLookup[[#This Row],[Primary Account]],tblGPLookup[[#This Row],[Primary Name]],tblGPLookup[[#This Row],[Secondary Acct]],tblGPLookup[[#This Row],[Secondary  Name]],tblGPLookup[[#This Row],[Alloc4FUNC]])","v":"1010000ELEC PLANT IN SERV3892000LAND RIGHTSSITUS"},1010000,"ELEC PLANT IN SERV",3892000,"LAND RIGHTS","SITUS",null,{"$f":"IF(OR(tblGPLookup[[#This Row],[Alloc]]=\"IDU\",tblGPLookup[[#This Row],[Alloc]]=\"OR\",tblGPLookup[[#This Row],[Alloc]]=\"UT\",tblGPLookup[[#This Row],[Alloc]]=\"WYU\",tblGPLookup[[#This Row],[Alloc]]=\"WYP\",tblGPLookup[[#This Row],[Alloc]]=\"CA\",tblGPLookup[[#This Row],[Alloc]]=\"WA\"),\"SITUS\",tblGPLookup[[#This Row],[Alloc]])","v":"SITUS"},"TD"]
[{"$f":"CONCATENATE(tblGPLookup[[#This Row],[Primary Account]],tblGPLookup[[#This Row],[Primary Name]],tblGPLookup[[#This Row],[Secondary Acct]],tblGPLookup[[#This Row],[Secondary  Name]],tblGPLookup[[#This Row],[Alloc4FUNC]])","v":"1010000ELEC PLANT IN SERV3892000LAND RIGHTSSITUS"},1010000,"ELEC PLANT IN SERV",3892000,"LAND RIGHTS","SITUS",null,{"$f":"IF(OR(tblGPLookup[[#This Row],[Alloc]]=\"IDU\",tblGPLookup[[#This Row],[Alloc]]=\"OR\",tblGPLookup[[#This Row],[Alloc]]=\"UT\",tblGPLookup[[#This Row],[Alloc]]=\"WYU\",tblGPLookup[[#This Row],[Alloc]]=\"WYP\",tblGPLookup[[#This Row],[Alloc]]=\"CA\",tblGPLookup[[#This Row],[Alloc]]=\"WA\"),\"SITUS\",tblGPLookup[[#This Row],[Alloc]])","v":"SITUS"},"TD"]
[{"$f":"CONCATENATE(tblGPLookup[[#This Row],[Primary Account]],tblGPLookup[[#This Row],[Primary Name]],tblGPLookup[[#This Row],[Secondary Acct]],tblGPLookup[[#This Row],[Secondary  Name]],tblGPLookup[[#This Row],[Alloc4FUNC]])","v":"1010000ELEC PLANT IN SERV3900000STRUCTURES AND IMPROVEMENTSCN"},1010000,"ELEC PLANT IN SERV",3900000,"STRUCTURES AND IMPROVEMENTS","CN",null,{"$f":"IF(OR(tblGPLookup[[#This Row],[Alloc]]=\"IDU\",tblGPLookup[[#This Row],[Alloc]]=\"OR\",tblGPLookup[[#This Row],[Alloc]]=\"UT\",tblGPLookup[[#This Row],[Alloc]]=\"WYU\",tblGPLookup[[#This Row],[Alloc]]=\"WYP\",tblGPLookup[[#This Row],[Alloc]]=\"CA\",tblGPLookup[[#This Row],[Alloc]]=\"WA\"),\"SITUS\",tblGPLookup[[#This Row],[Alloc]])","v":"CN"},"CUST"]
[{"$f":"CONCATENATE(tblGPLookup[[#This Row],[Primary Account]],tblGPLookup[[#This Row],[Primary Name]],tblGPLookup[[#This Row],[Secondary Acct]],tblGPLookup[[#This Row],[Secondary  Name]],tblGPLookup[[#This Row],[Alloc4FUNC]])","v":"1010000ELEC PLANT IN SERV3900000STRUCTURES AND IMPROVEMENTSSITUS"},1010000,"ELEC PLANT IN SERV",3900000,"STRUCTURES AND IMPROVEMENTS","SITUS",null,{"$f":"IF(OR(tblGPLookup[[#This Row],[Alloc]]=\"IDU\",tblGPLookup[[#This Row],[Alloc]]=\"OR\",tblGPLookup[[#This Row],[Alloc]]=\"UT\",tblGPLookup[[#This Row],[Alloc]]=\"WYU\",tblGPLookup[[#This Row],[Alloc]]=\"WYP\",tblGPLookup[[#This Row],[Alloc]]=\"CA\",tblGPLookup[[#This Row],[Alloc]]=\"WA\"),\"SITUS\",tblGPLookup[[#This Row],[Alloc]])","v":"SITUS"},"TD"]
[{"$f":"CONCATENATE(tblGPLookup[[#This Row],[Primary Account]],tblGPLookup[[#This Row],[Primary Name]],tblGPLookup[[#This Row],[Secondary Acct]],tblGPLookup[[#This Row],[Secondary  Name]],tblGPLookup[[#This Row],[Alloc4FUNC]])","v":"1010000ELEC PLANT IN SERV3900000STRUCTURES AND IMPROVEMENTSSITUS"},1010000,"ELEC PLANT IN SERV",3900000,"STRUCTURES AND IMPROVEMENTS","SITUS",null,{"$f":"IF(OR(tblGPLookup[[#This Row],[Alloc]]=\"IDU\",tblGPLookup[[#This Row],[Alloc]]=\"OR\",tblGPLookup[[#This Row],[Alloc]]=\"UT\",tblGPLookup[[#This Row],[Alloc]]=\"WYU\",tblGPLookup[[#This Row],[Alloc]]=\"WYP\",tblGPLookup[[#This Row],[Alloc]]=\"CA\",tblGPLookup[[#This Row],[Alloc]]=\"WA\"),\"SITUS\",tblGPLookup[[#This Row],[Alloc]])","v":"SITUS"},"TD"]
[{"$f":"CONCATENATE(tblGPLookup[[#This Row],[Primary Account]],tblGPLookup[[#This Row],[Primary Name]],tblGPLookup[[#This Row],[Secondary Acct]],tblGPLookup[[#This Row],[Secondary  Name]],tblGPLookup[[#This Row],[Alloc4FUNC]])","v":"1010000ELEC PLANT IN SERV3900000STRUCTURES AND IMPROVEMENTSSE"},1010000,"ELEC PLANT IN SERV",3900000,"STRUCTURES AND IMPROVEMENTS","SE",null,{"$f":"IF(OR(tblGPLookup[[#This Row],[Alloc]]=\"IDU\",tblGPLookup[[#This Row],[Alloc]]=\"OR\",tblGPLookup[[#This Row],[Alloc]]=\"UT\",tblGPLookup[[#This Row],[Alloc]]=\"WYU\",tblGPLookup[[#This Row],[Alloc]]=\"WYP\",tblGPLookup[[#This Row],[Alloc]]=\"CA\",tblGPLookup[[#This Row],[Alloc]]=\"WA\"),\"SITUS\",tblGPLookup[[#This Row],[Alloc]])","v":"SE"},"P"]
[{"$f":"CONCATENATE(tblGPLookup[[#This Row],[Primary Account]],tblGPLookup[[#This Row],[Primary Name]],tblGPLookup[[#This Row],[Secondary Acct]],tblGPLookup[[#This Row],[Secondary  Name]],tblGPLookup[[#This Row],[Alloc4FUNC]])","v":"1010000ELEC PLANT IN SERV3900000STRUCTURES AND IMPROVEMENTSSG"},1010000,"ELEC PLANT IN SERV",3900000,"STRUCTURES AND IMPROVEMENTS","SG",null,{"$f":"IF(OR(tblGPLookup[[#This Row],[Alloc]]=\"IDU\",tblGPLookup[[#This Row],[Alloc]]=\"OR\",tblGPLookup[[#This Row],[Alloc]]=\"UT\",tblGPLookup[[#This Row],[Alloc]]=\"WYU\",tblGPLookup[[#This Row],[Alloc]]=\"WYP\",tblGPLookup[[#This Row],[Alloc]]=\"CA\",tblGPLookup[[#This Row],[Alloc]]=\"WA\"),\"SITUS\",tblGPLookup[[#This Row],[Alloc]])","v":"SG"},"P"]
[{"$f":"CONCATENATE(tblGPLookup[[#This Row],[Primary Account]],tblGPLookup[[#This Row],[Primary Name]],tblGPLookup[[#This Row],[Secondary Acct]],tblGPLookup[[#This Row],[Secondary  Name]],tblGPLookup[[#This Row],[Alloc4FUNC]])","v":"1010000ELEC PLANT IN SERV3900000STRUCTURES AND IMPROVEMENTSSITUS"},1010000,"ELEC PLANT IN SERV",3900000,"STRUCTURES AND IMPROVEMENTS","SITUS",null,{"$f":"IF(OR(tblGPLookup[[#This Row],[Alloc]]=\"IDU\",tblGPLookup[[#This Row],[Alloc]]=\"OR\",tblGPLookup[[#This Row],[Alloc]]=\"UT\",tblGPLookup[[#This Row],[Alloc]]=\"WYU\",tblGPLookup[[#This Row],[Alloc]]=\"WYP\",tblGPLookup[[#This Row],[Alloc]]=\"CA\",tblGPLookup[[#This Row],[Alloc]]=\"WA\"),\"SITUS\",tblGPLookup[[#This Row],[Alloc]])","v":"SITUS"},"TD"]
[{"$f":"CONCATENATE(tblGPLookup[[#This Row],[Primary Account]],tblGPLookup[[#This Row],[Primary Name]],tblGPLookup[[#This Row],[Secondary Acct]],tblGPLookup[[#This Row],[Secondary  Name]],tblGPLookup[[#This Row],[Alloc4FUNC]])","v":"1010000ELEC PLANT IN SERV3900000STRUCTURES AND IMPROVEMENTSSO"},1010000,"ELEC PLANT IN SERV",3900000,"STRUCTURES AND IMPROVEMENTS","SO",null,{"$f":"IF(OR(tblGPLookup[[#This Row],[Alloc]]=\"IDU\",tblGPLookup[[#This Row],[Alloc]]=\"OR\",tblGPLookup[[#This Row],[Alloc]]=\"UT\",tblGPLookup[[#This Row],[Alloc]]=\"WYU\",tblGPLookup[[#This Row],[Alloc]]=\"WYP\",tblGPLookup[[#This Row],[Alloc]]=\"CA\",tblGPLookup[[#This Row],[Alloc]]=\"WA\"),\"SITUS\",tblGPLookup[[#This Row],[Alloc]])","v":"SO"},"PTD"]
[{"$f":"CONCATENATE(tblGPLookup[[#This Row],[Primary Account]],tblGPLookup[[#This Row],[Primary Name]],tblGPLookup[[#This Row],[Secondary Acct]],tblGPLookup[[#This Row],[Secondary  Name]],tblGPLookup[[#This Row],[Alloc4FUNC]])","v":"1010000ELEC PLANT IN SERV3900000STRUCTURES AND IMPROVEMENTSSITUS"},1010000,"ELEC PLANT IN SERV",3900000,"STRUCTURES AND IMPROVEMENTS","SITUS",null,{"$f":"IF(OR(tblGPLookup[[#This Row],[Alloc]]=\"IDU\",tblGPLookup[[#This Row],[Alloc]]=\"OR\",tblGPLookup[[#This Row],[Alloc]]=\"UT\",tblGPLookup[[#This Row],[Alloc]]=\"WYU\",tblGPLookup[[#This Row],[Alloc]]=\"WYP\",tblGPLookup[[#This Row],[Alloc]]=\"CA\",tblGPLookup[[#This Row],[Alloc]]=\"WA\"),\"SITUS\",tblGPLookup[[#This Row],[Alloc]])","v":"SITUS"},"TD"]
[{"$f":"CONCATENATE(tblGPLookup[[#This Row],[Primary Account]],tblGPLookup[[#This Row],[Primary Name]],tblGPLookup[[#This Row],[Secondary Acct]],tblGPLookup[[#This Row],[Secondary  Name]],tblGPLookup[[#This Row],[Alloc4FUNC]])","v":"1010000ELEC PLANT IN SERV3900000STRUCTURES AND IMPROVEMENTSSITUS"},1010000,"ELEC PLANT IN SERV",3900000,"STRUCTURES AND IMPROVEMENTS","SITUS",null,{"$f":"IF(OR(tblGPLookup[[#This Row],[Alloc]]=\"IDU\",tblGPLookup[[#This Row],[Alloc]]=\"OR\",tblGPLookup[[#This Row],[Alloc]]=\"UT\",tblGPLookup[[#This Row],[Alloc]]=\"WYU\",tblGPLookup[[#This Row],[Alloc]]=\"WYP\",tblGPLookup[[#This Row],[Alloc]]=\"CA\",tblGPLookup[[#This Row],[Alloc]]=\"WA\"),\"SITUS\",tblGPLookup[[#This Row],[Alloc]])","v":"SITUS"},"TD"]
[{"$f":"CONCATENATE(tblGPLookup[[#This Row],[Primary Account]],tblGPLookup[[#This Row],[Primary Name]],tblGPLookup[[#This Row],[Secondary Acct]],tblGPLookup[[#This Row],[Secondary  Name]],tblGPLookup[[#This Row],[Alloc4FUNC]])","v":"1010000ELEC PLANT IN SERV3900000STRUCTURES AND IMPROVEMENTSSITUS"},1010000,"ELEC PLANT IN SERV",3900000,"STRUCTURES AND IMPROVEMENTS","SITUS",null,{"$f":"IF(OR(tblGPLookup[[#This Row],[Alloc]]=\"IDU\",tblGPLookup[[#This Row],[Alloc]]=\"OR\",tblGPLookup[[#This Row],[Alloc]]=\"UT\",tblGPLookup[[#This Row],[Alloc]]=\"WYU\",tblGPLookup[[#This Row],[Alloc]]=\"WYP\",tblGPLookup[[#This Row],[Alloc]]=\"CA\",tblGPLookup[[#This Row],[Alloc]]=\"WA\"),\"SITUS\",tblGPLookup[[#This Row],[Alloc]])","v":"SITUS"},"TD"]
[{"$f":"CONCATENATE(tblGPLookup[[#This Row],[Primary Account]],tblGPLookup[[#This Row],[Primary Name]],tblGPLookup[[#This Row],[Secondary Acct]],tblGPLookup[[#This Row],[Secondary  Name]],tblGPLookup[[#This Row],[Alloc4FUNC]])","v":"1010000ELEC PLANT IN SERV3900000STRUCTURES AND IMPROVEMENTSSITUS"},1010000,"ELEC PLANT IN SERV",3900000,"STRUCTURES AND IMPROVEMENTS","SITUS",null,{"$f":"IF(OR(tblGPLookup[[#This Row],[Alloc]]=\"IDU\",tblGPLookup[[#This Row],[Alloc]]=\"OR\",tblGPLookup[[#This Row],[Alloc]]=\"UT\",tblGPLookup[[#This Row],[Alloc]]=\"WYU\",tblGPLookup[[#This Row],[Alloc]]=\"WYP\",tblGPLookup[[#This Row],[Alloc]]=\"CA\",tblGPLookup[[#This Row],[Alloc]]=\"WA\"),\"SITUS\",tblGPLookup[[#This Row],[Alloc]])","v":"SITUS"},"TD"]
[{"$f":"CONCATENATE(tblGPLookup[[#This Row],[Primary Account]],tblGPLookup[[#This Row],[Primary Name]],tblGPLookup[[#This Row],[Secondary Acct]],tblGPLookup[[#This Row],[Secondary  Name]],tblGPLookup[[#This Row],[Alloc4FUNC]])","v":"1010000ELEC PLANT IN SERV3901000LEASEHOLD IMPROVEMENTS-OFFICE STRSITUS"},1010000,"ELEC PLANT IN SERV",3901000,"LEASEHOLD IMPROVEMENTS-OFFICE STR","SITUS",null,{"$f":"IF(OR(tblGPLookup[[#This Row],[Alloc]]=\"IDU\",tblGPLookup[[#This Row],[Alloc]]=\"OR\",tblGPLookup[[#This Row],[Alloc]]=\"UT\",tblGPLookup[[#This Row],[Alloc]]=\"WYU\",tblGPLookup[[#This Row],[Alloc]]=\"WYP\",tblGPLookup[[#This Row],[Alloc]]=\"CA\",tblGPLookup[[#This Row],[Alloc]]=\"WA\"),\"SITUS\",tblGPLookup[[#This Row],[Alloc]])","v":"SITUS"},"TD"]
[{"$f":"CONCATENATE(tblGPLookup[[#This Row],[Primary Account]],tblGPLookup[[#This Row],[Primary Name]],tblGPLookup[[#This Row],[Secondary Acct]],tblGPLookup[[#This Row],[Secondary  Name]],tblGPLookup[[#This Row],[Alloc4FUNC]])","v":"1010000ELEC PLANT IN SERV3901000LEASEHOLD IMPROVEMENTS-OFFICE STRSITUS"},1010000,"ELEC PLANT IN SERV",3901000,"LEASEHOLD IMPROVEMENTS-OFFICE STR","SITUS",null,{"$f":"IF(OR(tblGPLookup[[#This Row],[Alloc]]=\"IDU\",tblGPLookup[[#This Row],[Alloc]]=\"OR\",tblGPLookup[[#This Row],[Alloc]]=\"UT\",tblGPLookup[[#This Row],[Alloc]]=\"WYU\",tblGPLookup[[#This Row],[Alloc]]=\"WYP\",tblGPLookup[[#This Row],[Alloc]]=\"CA\",tblGPLookup[[#This Row],[Alloc]]=\"WA\"),\"SITUS\",tblGPLookup[[#This Row],[Alloc]])","v":"SITUS"},"TD"]
[{"$f":"CONCATENATE(tblGPLookup[[#This Row],[Primary Account]],tblGPLookup[[#This Row],[Primary Name]],tblGPLookup[[#This Row],[Secondary Acct]],tblGPLookup[[#This Row],[Secondary  Name]],tblGPLookup[[#This Row],[Alloc4FUNC]])","v":"1010000ELEC PLANT IN SERV3901000LEASEHOLD IMPROVEMENTS-OFFICE STRSITUS"},1010000,"ELEC PLANT IN SERV",3901000,"LEASEHOLD IMPROVEMENTS-OFFICE STR","SITUS",null,{"$f":"IF(OR(tblGPLookup[[#This Row],[Alloc]]=\"IDU\",tblGPLookup[[#This Row],[Alloc]]=\"OR\",tblGPLookup[[#This Row],[Alloc]]=\"UT\",tblGPLookup[[#This Row],[Alloc]]=\"WYU\",tblGPLookup[[#This Row],[Alloc]]=\"WYP\",tblGPLookup[[#This Row],[Alloc]]=\"CA\",tblGPLookup[[#This Row],[Alloc]]=\"WA\"),\"SITUS\",tblGPLookup[[#This Row],[Alloc]])","v":"SITUS"},"TD"]
[{"$f":"CONCATENATE(tblGPLookup[[#This Row],[Primary Account]],tblGPLookup[[#This Row],[Primary Name]],tblGPLookup[[#This Row],[Secondary Acct]],tblGPLookup[[#This Row],[Secondary  Name]],tblGPLookup[[#This Row],[Alloc4FUNC]])","v":"1010000ELEC PLANT IN SERV3901000LEASEHOLD IMPROVEMENTS-OFFICE STRSO"},1010000,"ELEC PLANT IN SERV",3901000,"LEASEHOLD IMPROVEMENTS-OFFICE STR","SO",null,{"$f":"IF(OR(tblGPLookup[[#This Row],[Alloc]]=\"IDU\",tblGPLookup[[#This Row],[Alloc]]=\"OR\",tblGPLookup[[#This Row],[Alloc]]=\"UT\",tblGPLookup[[#This Row],[Alloc]]=\"WYU\",tblGPLookup[[#This Row],[Alloc]]=\"WYP\",tblGPLookup[[#This Row],[Alloc]]=\"CA\",tblGPLookup[[#This Row],[Alloc]]=\"WA\"),\"SITUS\",tblGPLookup[[#This Row],[Alloc]])","v":"SO"},"PTD"]
[{"$f":"CONCATENATE(tblGPLookup[[#This Row],[Primary Account]],tblGPLookup[[#This Row],[Primary Name]],tblGPLookup[[#This Row],[Secondary Acct]],tblGPLookup[[#This Row],[Secondary  Name]],tblGPLookup[[#This Row],[Alloc4FUNC]])","v":"1010000ELEC PLANT IN SERV3901000LEASEHOLD IMPROVEMENTS-OFFICE STRSITUS"},1010000,"ELEC PLANT IN SERV",3901000,"LEASEHOLD IMPROVEMENTS-OFFICE STR","SITUS",null,{"$f":"IF(OR(tblGPLookup[[#This Row],[Alloc]]=\"IDU\",tblGPLookup[[#This Row],[Alloc]]=\"OR\",tblGPLookup[[#This Row],[Alloc]]=\"UT\",tblGPLookup[[#This Row],[Alloc]]=\"WYU\",tblGPLookup[[#This Row],[Alloc]]=\"WYP\",tblGPLookup[[#This Row],[Alloc]]=\"CA\",tblGPLookup[[#This Row],[Alloc]]=\"WA\"),\"SITUS\",tblGPLookup[[#This Row],[Alloc]])","v":"SITUS"},"TD"]
[{"$f":"CONCATENATE(tblGPLookup[[#This Row],[Primary Account]],tblGPLookup[[#This Row],[Primary Name]],tblGPLookup[[#This Row],[Secondary Acct]],tblGPLookup[[#This Row],[Secondary  Name]],tblGPLookup[[#This Row],[Alloc4FUNC]])","v":"1010000ELEC PLANT IN SERV3901000LEASEHOLD IMPROVEMENTS-OFFICE STRSITUS"},1010000,"ELEC PLANT IN SERV",3901000,"LEASEHOLD IMPROVEMENTS-OFFICE STR","SITUS",null,{"$f":"IF(OR(tblGPLookup[[#This Row],[Alloc]]=\"IDU\",tblGPLookup[[#This Row],[Alloc]]=\"OR\",tblGPLookup[[#This Row],[Alloc]]=\"UT\",tblGPLookup[[#This Row],[Alloc]]=\"WYU\",tblGPLookup[[#This Row],[Alloc]]=\"WYP\",tblGPLookup[[#This Row],[Alloc]]=\"CA\",tblGPLookup[[#This Row],[Alloc]]=\"WA\"),\"SITUS\",tblGPLookup[[#This Row],[Alloc]])","v":"SITUS"},"TD"]
[{"$f":"CONCATENATE(tblGPLookup[[#This Row],[Primary Account]],tblGPLookup[[#This Row],[Primary Name]],tblGPLookup[[#This Row],[Secondary Acct]],tblGPLookup[[#This Row],[Secondary  Name]],tblGPLookup[[#This Row],[Alloc4FUNC]])","v":"1010000ELEC PLANT IN SERV3901000LEASEHOLD IMPROVEMENTS-OFFICE STRSITUS"},1010000,"ELEC PLANT IN SERV",3901000,"LEASEHOLD IMPROVEMENTS-OFFICE STR","SITUS",null,{"$f":"IF(OR(tblGPLookup[[#This Row],[Alloc]]=\"IDU\",tblGPLookup[[#This Row],[Alloc]]=\"OR\",tblGPLookup[[#This Row],[Alloc]]=\"UT\",tblGPLookup[[#This Row],[Alloc]]=\"WYU\",tblGPLookup[[#This Row],[Alloc]]=\"WYP\",tblGPLookup[[#This Row],[Alloc]]=\"CA\",tblGPLookup[[#This Row],[Alloc]]=\"WA\"),\"SITUS\",tblGPLookup[[#This Row],[Alloc]])","v":"SITUS"},"TD"]
[{"$f":"CONCATENATE(tblGPLookup[[#This Row],[Primary Account]],tblGPLookup[[#This Row],[Primary Name]],tblGPLookup[[#This Row],[Secondary Acct]],tblGPLookup[[#This Row],[Secondary  Name]],tblGPLookup[[#This Row],[Alloc4FUNC]])","v":"1010000ELEC PLANT IN SERV3901000LEASEHOLD IMPROVEMENTS-OFFICE STRSITUS"},1010000,"ELEC PLANT IN SERV",3901000,"LEASEHOLD IMPROVEMENTS-OFFICE STR","SITUS",null,{"$f":"IF(OR(tblGPLookup[[#This Row],[Alloc]]=\"IDU\",tblGPLookup[[#This Row],[Alloc]]=\"OR\",tblGPLookup[[#This Row],[Alloc]]=\"UT\",tblGPLookup[[#This Row],[Alloc]]=\"WYU\",tblGPLookup[[#This Row],[Alloc]]=\"WYP\",tblGPLookup[[#This Row],[Alloc]]=\"CA\",tblGPLookup[[#This Row],[Alloc]]=\"WA\"),\"SITUS\",tblGPLookup[[#This Row],[Alloc]])","v":"SITUS"},"TD"]
[{"$f":"CONCATENATE(tblGPLookup[[#This Row],[Primary Account]],tblGPLookup[[#This Row],[Primary Name]],tblGPLookup[[#This Row],[Secondary Acct]],tblGPLookup[[#This Row],[Secondary  Name]],tblGPLookup[[#This Row],[Alloc4FUNC]])","v":"1010000ELEC PLANT IN SERV3910000OFFICE FURNITURECN"},1010000,"ELEC PLANT IN SERV",3910000,"OFFICE FURNITURE","CN",null,{"$f":"IF(OR(tblGPLookup[[#This Row],[Alloc]]=\"IDU\",tblGPLookup[[#This Row],[Alloc]]=\"OR\",tblGPLookup[[#This Row],[Alloc]]=\"UT\",tblGPLookup[[#This Row],[Alloc]]=\"WYU\",tblGPLookup[[#This Row],[Alloc]]=\"WYP\",tblGPLookup[[#This Row],[Alloc]]=\"CA\",tblGPLookup[[#This Row],[Alloc]]=\"WA\"),\"SITUS\",tblGPLookup[[#This Row],[Alloc]])","v":"CN"},"CUST"]
[{"$f":"CONCATENATE(tblGPLookup[[#This Row],[Primary Account]],tblGPLookup[[#This Row],[Primary Name]],tblGPLookup[[#This Row],[Secondary Acct]],tblGPLookup[[#This Row],[Secondary  Name]],tblGPLookup[[#This Row],[Alloc4FUNC]])","v":"1010000ELEC PLANT IN SERV3910000OFFICE FURNITURESITUS"},1010000,"ELEC PLANT IN SERV",3910000,"OFFICE FURNITURE","SITUS",null,{"$f":"IF(OR(tblGPLookup[[#This Row],[Alloc]]=\"IDU\",tblGPLookup[[#This Row],[Alloc]]=\"OR\",tblGPLookup[[#This Row],[Alloc]]=\"UT\",tblGPLookup[[#This Row],[Alloc]]=\"WYU\",tblGPLookup[[#This Row],[Alloc]]=\"WYP\",tblGPLookup[[#This Row],[Alloc]]=\"CA\",tblGPLookup[[#This Row],[Alloc]]=\"WA\"),\"SITUS\",tblGPLookup[[#This Row],[Alloc]])","v":"SITUS"},"DPW"]
[{"$f":"CONCATENATE(tblGPLookup[[#This Row],[Primary Account]],tblGPLookup[[#This Row],[Primary Name]],tblGPLookup[[#This Row],[Secondary Acct]],tblGPLookup[[#This Row],[Secondary  Name]],tblGPLookup[[#This Row],[Alloc4FUNC]])","v":"1010000ELEC PLANT IN SERV3910000OFFICE FURNITURESITUS"},1010000,"ELEC PLANT IN SERV",3910000,"OFFICE FURNITURE","SITUS",null,{"$f":"IF(OR(tblGPLookup[[#This Row],[Alloc]]=\"IDU\",tblGPLookup[[#This Row],[Alloc]]=\"OR\",tblGPLookup[[#This Row],[Alloc]]=\"UT\",tblGPLookup[[#This Row],[Alloc]]=\"WYU\",tblGPLookup[[#This Row],[Alloc]]=\"WYP\",tblGPLookup[[#This Row],[Alloc]]=\"CA\",tblGPLookup[[#This Row],[Alloc]]=\"WA\"),\"SITUS\",tblGPLookup[[#This Row],[Alloc]])","v":"SITUS"},"DPW"]
[{"$f":"CONCATENATE(tblGPLookup[[#This Row],[Primary Account]],tblGPLookup[[#This Row],[Primary Name]],tblGPLookup[[#This Row],[Secondary Acct]],tblGPLookup[[#This Row],[Secondary  Name]],tblGPLookup[[#This Row],[Alloc4FUNC]])","v":"1010000ELEC PLANT IN SERV3910000OFFICE FURNITURESE"},1010000,"ELEC PLANT IN SERV",3910000,"OFFICE FURNITURE","SE",null,{"$f":"IF(OR(tblGPLookup[[#This Row],[Alloc]]=\"IDU\",tblGPLookup[[#This Row],[Alloc]]=\"OR\",tblGPLookup[[#This Row],[Alloc]]=\"UT\",tblGPLookup[[#This Row],[Alloc]]=\"WYU\",tblGPLookup[[#This Row],[Alloc]]=\"WYP\",tblGPLookup[[#This Row],[Alloc]]=\"CA\",tblGPLookup[[#This Row],[Alloc]]=\"WA\"),\"SITUS\",tblGPLookup[[#This Row],[Alloc]])","v":"SE"},"P"]
[{"$f":"CONCATENATE(tblGPLookup[[#This Row],[Primary Account]],tblGPLookup[[#This Row],[Primary Name]],tblGPLookup[[#This Row],[Secondary Acct]],tblGPLookup[[#This Row],[Secondary  Name]],tblGPLookup[[#This Row],[Alloc4FUNC]])","v":"1010000ELEC PLANT IN SERV3910000OFFICE FURNITURESG"},1010000,"ELEC PLANT IN SERV",3910000,"OFFICE FURNITURE","SG",null,{"$f":"IF(OR(tblGPLookup[[#This Row],[Alloc]]=\"IDU\",tblGPLookup[[#This Row],[Alloc]]=\"OR\",tblGPLookup[[#This Row],[Alloc]]=\"UT\",tblGPLookup[[#This Row],[Alloc]]=\"WYU\",tblGPLookup[[#This Row],[Alloc]]=\"WYP\",tblGPLookup[[#This Row],[Alloc]]=\"CA\",tblGPLookup[[#This Row],[Alloc]]=\"WA\"),\"SITUS\",tblGPLookup[[#This Row],[Alloc]])","v":"SG"},"P"]
[{"$f":"CONCATENATE(tblGPLookup[[#This Row],[Primary Account]],tblGPLookup[[#This Row],[Primary Name]],tblGPLookup[[#This Row],[Secondary Acct]],tblGPLookup[[#This Row],[Secondary  Name]],tblGPLookup[[#This Row],[Alloc4FUNC]])","v":"1010000ELEC PLANT IN SERV3910000OFFICE FURNITURESITUS"},1010000,"ELEC PLANT IN SERV",3910000,"OFFICE FURNITURE","SITUS",null,{"$f":"IF(OR(tblGPLookup[[#This Row],[Alloc]]=\"IDU\",tblGPLookup[[#This Row],[Alloc]]=\"OR\",tblGPLookup[[#This Row],[Alloc]]=\"UT\",tblGPLookup[[#This Row],[Alloc]]=\"WYU\",tblGPLookup[[#This Row],[Alloc]]=\"WYP\",tblGPLookup[[#This Row],[Alloc]]=\"CA\",tblGPLookup[[#This Row],[Alloc]]=\"WA\"),\"SITUS\",tblGPLookup[[#This Row],[Alloc]])","v":"SITUS"},"DPW"]
[{"$f":"CONCATENATE(tblGPLookup[[#This Row],[Primary Account]],tblGPLookup[[#This Row],[Primary Name]],tblGPLookup[[#This Row],[Secondary Acct]],tblGPLookup[[#This Row],[Secondary  Name]],tblGPLookup[[#This Row],[Alloc4FUNC]])","v":"1010000ELEC PLANT IN SERV3910000OFFICE FURNITURESO"},1010000,"ELEC PLANT IN SERV",3910000,"OFFICE FURNITURE","SO",null,{"$f":"IF(OR(tblGPLookup[[#This Row],[Alloc]]=\"IDU\",tblGPLookup[[#This Row],[Alloc]]=\"OR\",tblGPLookup[[#This Row],[Alloc]]=\"UT\",tblGPLookup[[#This Row],[Alloc]]=\"WYU\",tblGPLookup[[#This Row],[Alloc]]=\"WYP\",tblGPLookup[[#This Row],[Alloc]]=\"CA\",tblGPLookup[[#This Row],[Alloc]]=\"WA\"),\"SITUS\",tblGPLookup[[#This Row],[Alloc]])","v":"SO"},"PTD"]
[{"$f":"CONCATENATE(tblGPLookup[[#This Row],[Primary Account]],tblGPLookup[[#This Row],[Primary Name]],tblGPLookup[[#This Row],[Secondary Acct]],tblGPLookup[[#This Row],[Secondary  Name]],tblGPLookup[[#This Row],[Alloc4FUNC]])","v":"1010000ELEC PLANT IN SERV3910000OFFICE FURNITURESITUS"},1010000,"ELEC PLANT IN SERV",3910000,"OFFICE FURNITURE","SITUS",null,{"$f":"IF(OR(tblGPLookup[[#This Row],[Alloc]]=\"IDU\",tblGPLookup[[#This Row],[Alloc]]=\"OR\",tblGPLookup[[#This Row],[Alloc]]=\"UT\",tblGPLookup[[#This Row],[Alloc]]=\"WYU\",tblGPLookup[[#This Row],[Alloc]]=\"WYP\",tblGPLookup[[#This Row],[Alloc]]=\"CA\",tblGPLookup[[#This Row],[Alloc]]=\"WA\"),\"SITUS\",tblGPLookup[[#This Row],[Alloc]])","v":"SITUS"},"DPW"]
[{"$f":"CONCATENATE(tblGPLookup[[#This Row],[Primary Account]],tblGPLookup[[#This Row],[Primary Name]],tblGPLookup[[#This Row],[Secondary Acct]],tblGPLookup[[#This Row],[Secondary  Name]],tblGPLookup[[#This Row],[Alloc4FUNC]])","v":"1010000ELEC PLANT IN SERV3910000OFFICE FURNITURESITUS"},1010000,"ELEC PLANT IN SERV",3910000,"OFFICE FURNITURE","SITUS",null,{"$f":"IF(OR(tblGPLookup[[#This Row],[Alloc]]=\"IDU\",tblGPLookup[[#This Row],[Alloc]]=\"OR\",tblGPLookup[[#This Row],[Alloc]]=\"UT\",tblGPLookup[[#This Row],[Alloc]]=\"WYU\",tblGPLookup[[#This Row],[Alloc]]=\"WYP\",tblGPLookup[[#This Row],[Alloc]]=\"CA\",tblGPLookup[[#This Row],[Alloc]]=\"WA\"),\"SITUS\",tblGPLookup[[#This Row],[Alloc]])","v":"SITUS"},"DPW"]
[{"$f":"CONCATENATE(tblGPLookup[[#This Row],[Primary Account]],tblGPLookup[[#This Row],[Primary Name]],tblGPLookup[[#This Row],[Secondary Acct]],tblGPLookup[[#This Row],[Secondary  Name]],tblGPLookup[[#This Row],[Alloc4FUNC]])","v":"1010000ELEC PLANT IN SERV3910000OFFICE FURNITURESITUS"},1010000,"ELEC PLANT IN SERV",3910000,"OFFICE FURNITURE","SITUS",null,{"$f":"IF(OR(tblGPLookup[[#This Row],[Alloc]]=\"IDU\",tblGPLookup[[#This Row],[Alloc]]=\"OR\",tblGPLookup[[#This Row],[Alloc]]=\"UT\",tblGPLookup[[#This Row],[Alloc]]=\"WYU\",tblGPLookup[[#This Row],[Alloc]]=\"WYP\",tblGPLookup[[#This Row],[Alloc]]=\"CA\",tblGPLookup[[#This Row],[Alloc]]=\"WA\"),\"SITUS\",tblGPLookup[[#This Row],[Alloc]])","v":"SITUS"},"DPW"]
[{"$f":"CONCATENATE(tblGPLookup[[#This Row],[Primary Account]],tblGPLookup[[#This Row],[Primary Name]],tblGPLookup[[#This Row],[Secondary Acct]],tblGPLookup[[#This Row],[Secondary  Name]],tblGPLookup[[#This Row],[Alloc4FUNC]])","v":"1010000ELEC PLANT IN SERV3910000OFFICE FURNITURESITUS"},1010000,"ELEC PLANT IN SERV",3910000,"OFFICE FURNITURE","SITUS",null,{"$f":"IF(OR(tblGPLookup[[#This Row],[Alloc]]=\"IDU\",tblGPLookup[[#This Row],[Alloc]]=\"OR\",tblGPLookup[[#This Row],[Alloc]]=\"UT\",tblGPLookup[[#This Row],[Alloc]]=\"WYU\",tblGPLookup[[#This Row],[Alloc]]=\"WYP\",tblGPLookup[[#This Row],[Alloc]]=\"CA\",tblGPLookup[[#This Row],[Alloc]]=\"WA\"),\"SITUS\",tblGPLookup[[#This Row],[Alloc]])","v":"SITUS"},"DPW"]
[{"$f":"CONCATENATE(tblGPLookup[[#This Row],[Primary Account]],tblGPLookup[[#This Row],[Primary Name]],tblGPLookup[[#This Row],[Secondary Acct]],tblGPLookup[[#This Row],[Secondary  Name]],tblGPLookup[[#This Row],[Alloc4FUNC]])","v":"1010000ELEC PLANT IN SERV3912000COMPUTER EQUIPMENT - PERSONAL COMPUTERSCN"},1010000,"ELEC PLANT IN SERV",3912000,"COMPUTER EQUIPMENT - PERSONAL COMPUTERS","CN",null,{"$f":"IF(OR(tblGPLookup[[#This Row],[Alloc]]=\"IDU\",tblGPLookup[[#This Row],[Alloc]]=\"OR\",tblGPLookup[[#This Row],[Alloc]]=\"UT\",tblGPLookup[[#This Row],[Alloc]]=\"WYU\",tblGPLookup[[#This Row],[Alloc]]=\"WYP\",tblGPLookup[[#This Row],[Alloc]]=\"CA\",tblGPLookup[[#This Row],[Alloc]]=\"WA\"),\"SITUS\",tblGPLookup[[#This Row],[Alloc]])","v":"CN"},"CUST"]
[{"$f":"CONCATENATE(tblGPLookup[[#This Row],[Primary Account]],tblGPLookup[[#This Row],[Primary Name]],tblGPLookup[[#This Row],[Secondary Acct]],tblGPLookup[[#This Row],[Secondary  Name]],tblGPLookup[[#This Row],[Alloc4FUNC]])","v":"1010000ELEC PLANT IN SERV3912000COMPUTER EQUIPMENT - PERSONAL COMPUTERSSITUS"},1010000,"ELEC PLANT IN SERV",3912000,"COMPUTER EQUIPMENT - PERSONAL COMPUTERS","SITUS",null,{"$f":"IF(OR(tblGPLookup[[#This Row],[Alloc]]=\"IDU\",tblGPLookup[[#This Row],[Alloc]]=\"OR\",tblGPLookup[[#This Row],[Alloc]]=\"UT\",tblGPLookup[[#This Row],[Alloc]]=\"WYU\",tblGPLookup[[#This Row],[Alloc]]=\"WYP\",tblGPLookup[[#This Row],[Alloc]]=\"CA\",tblGPLookup[[#This Row],[Alloc]]=\"WA\"),\"SITUS\",tblGPLookup[[#This Row],[Alloc]])","v":"SITUS"},"DPW"]
[{"$f":"CONCATENATE(tblGPLookup[[#This Row],[Primary Account]],tblGPLookup[[#This Row],[Primary Name]],tblGPLookup[[#This Row],[Secondary Acct]],tblGPLookup[[#This Row],[Secondary  Name]],tblGPLookup[[#This Row],[Alloc4FUNC]])","v":"1010000ELEC PLANT IN SERV3912000COMPUTER EQUIPMENT - PERSONAL COMPUTERSSITUS"},1010000,"ELEC PLANT IN SERV",3912000,"COMPUTER EQUIPMENT - PERSONAL COMPUTERS","SITUS",null,{"$f":"IF(OR(tblGPLookup[[#This Row],[Alloc]]=\"IDU\",tblGPLookup[[#This Row],[Alloc]]=\"OR\",tblGPLookup[[#This Row],[Alloc]]=\"UT\",tblGPLookup[[#This Row],[Alloc]]=\"WYU\",tblGPLookup[[#This Row],[Alloc]]=\"WYP\",tblGPLookup[[#This Row],[Alloc]]=\"CA\",tblGPLookup[[#This Row],[Alloc]]=\"WA\"),\"SITUS\",tblGPLookup[[#This Row],[Alloc]])","v":"SITUS"},"DPW"]
[{"$f":"CONCATENATE(tblGPLookup[[#This Row],[Primary Account]],tblGPLookup[[#This Row],[Primary Name]],tblGPLookup[[#This Row],[Secondary Acct]],tblGPLookup[[#This Row],[Secondary  Name]],tblGPLookup[[#This Row],[Alloc4FUNC]])","v":"1010000ELEC PLANT IN SERV3912000COMPUTER EQUIPMENT - PERSONAL COMPUTERSSE"},1010000,"ELEC PLANT IN SERV",3912000,"COMPUTER EQUIPMENT - PERSONAL COMPUTERS","SE",null,{"$f":"IF(OR(tblGPLookup[[#This Row],[Alloc]]=\"IDU\",tblGPLookup[[#This Row],[Alloc]]=\"OR\",tblGPLookup[[#This Row],[Alloc]]=\"UT\",tblGPLookup[[#This Row],[Alloc]]=\"WYU\",tblGPLookup[[#This Row],[Alloc]]=\"WYP\",tblGPLookup[[#This Row],[Alloc]]=\"CA\",tblGPLookup[[#This Row],[Alloc]]=\"WA\"),\"SITUS\",tblGPLookup[[#This Row],[Alloc]])","v":"SE"},"P"]
[{"$f":"CONCATENATE(tblGPLookup[[#This Row],[Primary Account]],tblGPLookup[[#This Row],[Primary Name]],tblGPLookup[[#This Row],[Secondary Acct]],tblGPLookup[[#This Row],[Secondary  Name]],tblGPLookup[[#This Row],[Alloc4FUNC]])","v":"1010000ELEC PLANT IN SERV3912000COMPUTER EQUIPMENT - PERSONAL COMPUTERSSG"},1010000,"ELEC PLANT IN SERV",3912000,"COMPUTER EQUIPMENT - PERSONAL COMPUTERS","SG",null,{"$f":"IF(OR(tblGPLookup[[#This Row],[Alloc]]=\"IDU\",tblGPLookup[[#This Row],[Alloc]]=\"OR\",tblGPLookup[[#This Row],[Alloc]]=\"UT\",tblGPLookup[[#This Row],[Alloc]]=\"WYU\",tblGPLookup[[#This Row],[Alloc]]=\"WYP\",tblGPLookup[[#This Row],[Alloc]]=\"CA\",tblGPLookup[[#This Row],[Alloc]]=\"WA\"),\"SITUS\",tblGPLookup[[#This Row],[Alloc]])","v":"SG"},"P"]
[{"$f":"CONCATENATE(tblGPLookup[[#This Row],[Primary Account]],tblGPLookup[[#This Row],[Primary Name]],tblGPLookup[[#This Row],[Secondary Acct]],tblGPLookup[[#This Row],[Secondary  Name]],tblGPLookup[[#This Row],[Alloc4FUNC]])","v":"1010000ELEC PLANT IN SERV3912000COMPUTER EQUIPMENT - PERSONAL COMPUTERSSITUS"},1010000,"ELEC PLANT IN SERV",3912000,"COMPUTER EQUIPMENT - PERSONAL COMPUTERS","SITUS",null,{"$f":"IF(OR(tblGPLookup[[#This Row],[Alloc]]=\"IDU\",tblGPLookup[[#This Row],[Alloc]]=\"OR\",tblGPLookup[[#This Row],[Alloc]]=\"UT\",tblGPLookup[[#This Row],[Alloc]]=\"WYU\",tblGPLookup[[#This Row],[Alloc]]=\"WYP\",tblGPLookup[[#This Row],[Alloc]]=\"CA\",tblGPLookup[[#This Row],[Alloc]]=\"WA\"),\"SITUS\",tblGPLookup[[#This Row],[Alloc]])","v":"SITUS"},"DPW"]
[{"$f":"CONCATENATE(tblGPLookup[[#This Row],[Primary Account]],tblGPLookup[[#This Row],[Primary Name]],tblGPLookup[[#This Row],[Secondary Acct]],tblGPLookup[[#This Row],[Secondary  Name]],tblGPLookup[[#This Row],[Alloc4FUNC]])","v":"1010000ELEC PLANT IN SERV3912000COMPUTER EQUIPMENT - PERSONAL COMPUTERSSO"},1010000,"ELEC PLANT IN SERV",3912000,"COMPUTER EQUIPMENT - PERSONAL COMPUTERS","SO",null,{"$f":"IF(OR(tblGPLookup[[#This Row],[Alloc]]=\"IDU\",tblGPLookup[[#This Row],[Alloc]]=\"OR\",tblGPLookup[[#This Row],[Alloc]]=\"UT\",tblGPLookup[[#This Row],[Alloc]]=\"WYU\",tblGPLookup[[#This Row],[Alloc]]=\"WYP\",tblGPLookup[[#This Row],[Alloc]]=\"CA\",tblGPLookup[[#This Row],[Alloc]]=\"WA\"),\"SITUS\",tblGPLookup[[#This Row],[Alloc]])","v":"SO"},"PTD"]
[{"$f":"CONCATENATE(tblGPLookup[[#This Row],[Primary Account]],tblGPLookup[[#This Row],[Primary Name]],tblGPLookup[[#This Row],[Secondary Acct]],tblGPLookup[[#This Row],[Secondary  Name]],tblGPLookup[[#This Row],[Alloc4FUNC]])","v":"1010000ELEC PLANT IN SERV3912000COMPUTER EQUIPMENT - PERSONAL COMPUTERSSITUS"},1010000,"ELEC PLANT IN SERV",3912000,"COMPUTER EQUIPMENT - PERSONAL COMPUTERS","SITUS",null,{"$f":"IF(OR(tblGPLookup[[#This Row],[Alloc]]=\"IDU\",tblGPLookup[[#This Row],[Alloc]]=\"OR\",tblGPLookup[[#This Row],[Alloc]]=\"UT\",tblGPLookup[[#This Row],[Alloc]]=\"WYU\",tblGPLookup[[#This Row],[Alloc]]=\"WYP\",tblGPLookup[[#This Row],[Alloc]]=\"CA\",tblGPLookup[[#This Row],[Alloc]]=\"WA\"),\"SITUS\",tblGPLookup[[#This Row],[Alloc]])","v":"SITUS"},"DPW"]
[{"$f":"CONCATENATE(tblGPLookup[[#This Row],[Primary Account]],tblGPLookup[[#This Row],[Primary Name]],tblGPLookup[[#This Row],[Secondary Acct]],tblGPLookup[[#This Row],[Secondary  Name]],tblGPLookup[[#This Row],[Alloc4FUNC]])","v":"1010000ELEC PLANT IN SERV3912000COMPUTER EQUIPMENT - PERSONAL COMPUTERSSITUS"},1010000,"ELEC PLANT IN SERV",3912000,"COMPUTER EQUIPMENT - PERSONAL COMPUTERS","SITUS",null,{"$f":"IF(OR(tblGPLookup[[#This Row],[Alloc]]=\"IDU\",tblGPLookup[[#This Row],[Alloc]]=\"OR\",tblGPLookup[[#This Row],[Alloc]]=\"UT\",tblGPLookup[[#This Row],[Alloc]]=\"WYU\",tblGPLookup[[#This Row],[Alloc]]=\"WYP\",tblGPLookup[[#This Row],[Alloc]]=\"CA\",tblGPLookup[[#This Row],[Alloc]]=\"WA\"),\"SITUS\",tblGPLookup[[#This Row],[Alloc]])","v":"SITUS"},"DPW"]
[{"$f":"CONCATENATE(tblGPLookup[[#This Row],[Primary Account]],tblGPLookup[[#This Row],[Primary Name]],tblGPLookup[[#This Row],[Secondary Acct]],tblGPLookup[[#This Row],[Secondary  Name]],tblGPLookup[[#This Row],[Alloc4FUNC]])","v":"1010000ELEC PLANT IN SERV3912000COMPUTER EQUIPMENT - PERSONAL COMPUTERSSITUS"},1010000,"ELEC PLANT IN SERV",3912000,"COMPUTER EQUIPMENT - PERSONAL COMPUTERS","SITUS",null,{"$f":"IF(OR(tblGPLookup[[#This Row],[Alloc]]=\"IDU\",tblGPLookup[[#This Row],[Alloc]]=\"OR\",tblGPLookup[[#This Row],[Alloc]]=\"UT\",tblGPLookup[[#This Row],[Alloc]]=\"WYU\",tblGPLookup[[#This Row],[Alloc]]=\"WYP\",tblGPLookup[[#This Row],[Alloc]]=\"CA\",tblGPLookup[[#This Row],[Alloc]]=\"WA\"),\"SITUS\",tblGPLookup[[#This Row],[Alloc]])","v":"SITUS"},"DPW"]
[{"$f":"CONCATENATE(tblGPLookup[[#This Row],[Primary Account]],tblGPLookup[[#This Row],[Primary Name]],tblGPLookup[[#This Row],[Secondary Acct]],tblGPLookup[[#This Row],[Secondary  Name]],tblGPLookup[[#This Row],[Alloc4FUNC]])","v":"1010000ELEC PLANT IN SERV3912000COMPUTER EQUIPMENT - PERSONAL COMPUTERSSITUS"},1010000,"ELEC PLANT IN SERV",3912000,"COMPUTER EQUIPMENT - PERSONAL COMPUTERS","SITUS",null,{"$f":"IF(OR(tblGPLookup[[#This Row],[Alloc]]=\"IDU\",tblGPLookup[[#This Row],[Alloc]]=\"OR\",tblGPLookup[[#This Row],[Alloc]]=\"UT\",tblGPLookup[[#This Row],[Alloc]]=\"WYU\",tblGPLookup[[#This Row],[Alloc]]=\"WYP\",tblGPLookup[[#This Row],[Alloc]]=\"CA\",tblGPLookup[[#This Row],[Alloc]]=\"WA\"),\"SITUS\",tblGPLookup[[#This Row],[Alloc]])","v":"SITUS"},"DPW"]
[{"$f":"CONCATENATE(tblGPLookup[[#This Row],[Primary Account]],tblGPLookup[[#This Row],[Primary Name]],tblGPLookup[[#This Row],[Secondary Acct]],tblGPLookup[[#This Row],[Secondary  Name]],tblGPLookup[[#This Row],[Alloc4FUNC]])","v":"1010000ELEC PLANT IN SERV3913000OFFICE EQUIPMENTCN"},1010000,"ELEC PLANT IN SERV",3913000,"OFFICE EQUIPMENT","CN",null,{"$f":"IF(OR(tblGPLookup[[#This Row],[Alloc]]=\"IDU\",tblGPLookup[[#This Row],[Alloc]]=\"OR\",tblGPLookup[[#This Row],[Alloc]]=\"UT\",tblGPLookup[[#This Row],[Alloc]]=\"WYU\",tblGPLookup[[#This Row],[Alloc]]=\"WYP\",tblGPLookup[[#This Row],[Alloc]]=\"CA\",tblGPLookup[[#This Row],[Alloc]]=\"WA\"),\"SITUS\",tblGPLookup[[#This Row],[Alloc]])","v":"CN"},"CUST"]
[{"$f":"CONCATENATE(tblGPLookup[[#This Row],[Primary Account]],tblGPLookup[[#This Row],[Primary Name]],tblGPLookup[[#This Row],[Secondary Acct]],tblGPLookup[[#This Row],[Secondary  Name]],tblGPLookup[[#This Row],[Alloc4FUNC]])","v":"1010000ELEC PLANT IN SERV3913000OFFICE EQUIPMENTSITUS"},1010000,"ELEC PLANT IN SERV",3913000,"OFFICE EQUIPMENT","SITUS",null,{"$f":"IF(OR(tblGPLookup[[#This Row],[Alloc]]=\"IDU\",tblGPLookup[[#This Row],[Alloc]]=\"OR\",tblGPLookup[[#This Row],[Alloc]]=\"UT\",tblGPLookup[[#This Row],[Alloc]]=\"WYU\",tblGPLookup[[#This Row],[Alloc]]=\"WYP\",tblGPLookup[[#This Row],[Alloc]]=\"CA\",tblGPLookup[[#This Row],[Alloc]]=\"WA\"),\"SITUS\",tblGPLookup[[#This Row],[Alloc]])","v":"SITUS"},"DPW"]
[{"$f":"CONCATENATE(tblGPLookup[[#This Row],[Primary Account]],tblGPLookup[[#This Row],[Primary Name]],tblGPLookup[[#This Row],[Secondary Acct]],tblGPLookup[[#This Row],[Secondary  Name]],tblGPLookup[[#This Row],[Alloc4FUNC]])","v":"1010000ELEC PLANT IN SERV3913000OFFICE EQUIPMENTSITUS"},1010000,"ELEC PLANT IN SERV",3913000,"OFFICE EQUIPMENT","SITUS",null,{"$f":"IF(OR(tblGPLookup[[#This Row],[Alloc]]=\"IDU\",tblGPLookup[[#This Row],[Alloc]]=\"OR\",tblGPLookup[[#This Row],[Alloc]]=\"UT\",tblGPLookup[[#This Row],[Alloc]]=\"WYU\",tblGPLookup[[#This Row],[Alloc]]=\"WYP\",tblGPLookup[[#This Row],[Alloc]]=\"CA\",tblGPLookup[[#This Row],[Alloc]]=\"WA\"),\"SITUS\",tblGPLookup[[#This Row],[Alloc]])","v":"SITUS"},"DPW"]
[{"$f":"CONCATENATE(tblGPLookup[[#This Row],[Primary Account]],tblGPLookup[[#This Row],[Primary Name]],tblGPLookup[[#This Row],[Secondary Acct]],tblGPLookup[[#This Row],[Secondary  Name]],tblGPLookup[[#This Row],[Alloc4FUNC]])","v":"1010000ELEC PLANT IN SERV3913000OFFICE EQUIPMENTSG"},1010000,"ELEC PLANT IN SERV",3913000,"OFFICE EQUIPMENT","SG",null,{"$f":"IF(OR(tblGPLookup[[#This Row],[Alloc]]=\"IDU\",tblGPLookup[[#This Row],[Alloc]]=\"OR\",tblGPLookup[[#This Row],[Alloc]]=\"UT\",tblGPLookup[[#This Row],[Alloc]]=\"WYU\",tblGPLookup[[#This Row],[Alloc]]=\"WYP\",tblGPLookup[[#This Row],[Alloc]]=\"CA\",tblGPLookup[[#This Row],[Alloc]]=\"WA\"),\"SITUS\",tblGPLookup[[#This Row],[Alloc]])","v":"SG"},"P"]
[{"$f":"CONCATENATE(tblGPLookup[[#This Row],[Primary Account]],tblGPLookup[[#This Row],[Primary Name]],tblGPLookup[[#This Row],[Secondary Acct]],tblGPLookup[[#This Row],[Secondary  Name]],tblGPLookup[[#This Row],[Alloc4FUNC]])","v":"1010000ELEC PLANT IN SERV3913000OFFICE EQUIPMENTSO"},1010000,"ELEC PLANT IN SERV",3913000,"OFFICE EQUIPMENT","SO",null,{"$f":"IF(OR(tblGPLookup[[#This Row],[Alloc]]=\"IDU\",tblGPLookup[[#This Row],[Alloc]]=\"OR\",tblGPLookup[[#This Row],[Alloc]]=\"UT\",tblGPLookup[[#This Row],[Alloc]]=\"WYU\",tblGPLookup[[#This Row],[Alloc]]=\"WYP\",tblGPLookup[[#This Row],[Alloc]]=\"CA\",tblGPLookup[[#This Row],[Alloc]]=\"WA\"),\"SITUS\",tblGPLookup[[#This Row],[Alloc]])","v":"SO"},"PTD"]
[{"$f":"CONCATENATE(tblGPLookup[[#This Row],[Primary Account]],tblGPLookup[[#This Row],[Primary Name]],tblGPLookup[[#This Row],[Secondary Acct]],tblGPLookup[[#This Row],[Secondary  Name]],tblGPLookup[[#This Row],[Alloc4FUNC]])","v":"1010000ELEC PLANT IN SERV3913000OFFICE EQUIPMENTSITUS"},1010000,"ELEC PLANT IN SERV",3913000,"OFFICE EQUIPMENT","SITUS",null,{"$f":"IF(OR(tblGPLookup[[#This Row],[Alloc]]=\"IDU\",tblGPLookup[[#This Row],[Alloc]]=\"OR\",tblGPLookup[[#This Row],[Alloc]]=\"UT\",tblGPLookup[[#This Row],[Alloc]]=\"WYU\",tblGPLookup[[#This Row],[Alloc]]=\"WYP\",tblGPLookup[[#This Row],[Alloc]]=\"CA\",tblGPLookup[[#This Row],[Alloc]]=\"WA\"),\"SITUS\",tblGPLookup[[#This Row],[Alloc]])","v":"SITUS"},"DPW"]
[{"$f":"CONCATENATE(tblGPLookup[[#This Row],[Primary Account]],tblGPLookup[[#This Row],[Primary Name]],tblGPLookup[[#This Row],[Secondary Acct]],tblGPLookup[[#This Row],[Secondary  Name]],tblGPLookup[[#This Row],[Alloc4FUNC]])","v":"1010000ELEC PLANT IN SERV3913000OFFICE EQUIPMENTSITUS"},1010000,"ELEC PLANT IN SERV",3913000,"OFFICE EQUIPMENT","SITUS",null,{"$f":"IF(OR(tblGPLookup[[#This Row],[Alloc]]=\"IDU\",tblGPLookup[[#This Row],[Alloc]]=\"OR\",tblGPLookup[[#This Row],[Alloc]]=\"UT\",tblGPLookup[[#This Row],[Alloc]]=\"WYU\",tblGPLookup[[#This Row],[Alloc]]=\"WYP\",tblGPLookup[[#This Row],[Alloc]]=\"CA\",tblGPLookup[[#This Row],[Alloc]]=\"WA\"),\"SITUS\",tblGPLookup[[#This Row],[Alloc]])","v":"SITUS"},"DPW"]
[{"$f":"CONCATENATE(tblGPLookup[[#This Row],[Primary Account]],tblGPLookup[[#This Row],[Primary Name]],tblGPLookup[[#This Row],[Secondary Acct]],tblGPLookup[[#This Row],[Secondary  Name]],tblGPLookup[[#This Row],[Alloc4FUNC]])","v":"1010000ELEC PLANT IN SERV39201001/4 TON MINI-PICKUPS AND VANSSITUS"},1010000,"ELEC PLANT IN SERV",3920100,"1/4 TON MINI-PICKUPS AND VANS","SITUS",null,{"$f":"IF(OR(tblGPLookup[[#This Row],[Alloc]]=\"IDU\",tblGPLookup[[#This Row],[Alloc]]=\"OR\",tblGPLookup[[#This Row],[Alloc]]=\"UT\",tblGPLookup[[#This Row],[Alloc]]=\"WYU\",tblGPLookup[[#This Row],[Alloc]]=\"WYP\",tblGPLookup[[#This Row],[Alloc]]=\"CA\",tblGPLookup[[#This Row],[Alloc]]=\"WA\"),\"SITUS\",tblGPLookup[[#This Row],[Alloc]])","v":"SITUS"},"DPW"]
[{"$f":"CONCATENATE(tblGPLookup[[#This Row],[Primary Account]],tblGPLookup[[#This Row],[Primary Name]],tblGPLookup[[#This Row],[Secondary Acct]],tblGPLookup[[#This Row],[Secondary  Name]],tblGPLookup[[#This Row],[Alloc4FUNC]])","v":"1010000ELEC PLANT IN SERV39201001/4 TON MINI-PICKUPS AND VANSSITUS"},1010000,"ELEC PLANT IN SERV",3920100,"1/4 TON MINI-PICKUPS AND VANS","SITUS",null,{"$f":"IF(OR(tblGPLookup[[#This Row],[Alloc]]=\"IDU\",tblGPLookup[[#This Row],[Alloc]]=\"OR\",tblGPLookup[[#This Row],[Alloc]]=\"UT\",tblGPLookup[[#This Row],[Alloc]]=\"WYU\",tblGPLookup[[#This Row],[Alloc]]=\"WYP\",tblGPLookup[[#This Row],[Alloc]]=\"CA\",tblGPLookup[[#This Row],[Alloc]]=\"WA\"),\"SITUS\",tblGPLookup[[#This Row],[Alloc]])","v":"SITUS"},"DPW"]
[{"$f":"CONCATENATE(tblGPLookup[[#This Row],[Primary Account]],tblGPLookup[[#This Row],[Primary Name]],tblGPLookup[[#This Row],[Secondary Acct]],tblGPLookup[[#This Row],[Secondary  Name]],tblGPLookup[[#This Row],[Alloc4FUNC]])","v":"1010000ELEC PLANT IN SERV39201001/4 TON MINI-PICKUPS AND VANSSE"},1010000,"ELEC PLANT IN SERV",3920100,"1/4 TON MINI-PICKUPS AND VANS","SE",null,{"$f":"IF(OR(tblGPLookup[[#This Row],[Alloc]]=\"IDU\",tblGPLookup[[#This Row],[Alloc]]=\"OR\",tblGPLookup[[#This Row],[Alloc]]=\"UT\",tblGPLookup[[#This Row],[Alloc]]=\"WYU\",tblGPLookup[[#This Row],[Alloc]]=\"WYP\",tblGPLookup[[#This Row],[Alloc]]=\"CA\",tblGPLookup[[#This Row],[Alloc]]=\"WA\"),\"SITUS\",tblGPLookup[[#This Row],[Alloc]])","v":"SE"},"P"]
[{"$f":"CONCATENATE(tblGPLookup[[#This Row],[Primary Account]],tblGPLookup[[#This Row],[Primary Name]],tblGPLookup[[#This Row],[Secondary Acct]],tblGPLookup[[#This Row],[Secondary  Name]],tblGPLookup[[#This Row],[Alloc4FUNC]])","v":"1010000ELEC PLANT IN SERV39201001/4 TON MINI-PICKUPS AND VANSSG"},1010000,"ELEC PLANT IN SERV",3920100,"1/4 TON MINI-PICKUPS AND VANS","SG",null,{"$f":"IF(OR(tblGPLookup[[#This Row],[Alloc]]=\"IDU\",tblGPLookup[[#This Row],[Alloc]]=\"OR\",tblGPLookup[[#This Row],[Alloc]]=\"UT\",tblGPLookup[[#This Row],[Alloc]]=\"WYU\",tblGPLookup[[#This Row],[Alloc]]=\"WYP\",tblGPLookup[[#This Row],[Alloc]]=\"CA\",tblGPLookup[[#This Row],[Alloc]]=\"WA\"),\"SITUS\",tblGPLookup[[#This Row],[Alloc]])","v":"SG"},"P"]
[{"$f":"CONCATENATE(tblGPLookup[[#This Row],[Primary Account]],tblGPLookup[[#This Row],[Primary Name]],tblGPLookup[[#This Row],[Secondary Acct]],tblGPLookup[[#This Row],[Secondary  Name]],tblGPLookup[[#This Row],[Alloc4FUNC]])","v":"1010000ELEC PLANT IN SERV39201001/4 TON MINI-PICKUPS AND VANSSITUS"},1010000,"ELEC PLANT IN SERV",3920100,"1/4 TON MINI-PICKUPS AND VANS","SITUS",null,{"$f":"IF(OR(tblGPLookup[[#This Row],[Alloc]]=\"IDU\",tblGPLookup[[#This Row],[Alloc]]=\"OR\",tblGPLookup[[#This Row],[Alloc]]=\"UT\",tblGPLookup[[#This Row],[Alloc]]=\"WYU\",tblGPLookup[[#This Row],[Alloc]]=\"WYP\",tblGPLookup[[#This Row],[Alloc]]=\"CA\",tblGPLookup[[#This Row],[Alloc]]=\"WA\"),\"SITUS\",tblGPLookup[[#This Row],[Alloc]])","v":"SITUS"},"DPW"]
[{"$f":"CONCATENATE(tblGPLookup[[#This Row],[Primary Account]],tblGPLookup[[#This Row],[Primary Name]],tblGPLookup[[#This Row],[Secondary Acct]],tblGPLookup[[#This Row],[Secondary  Name]],tblGPLookup[[#This Row],[Alloc4FUNC]])","v":"1010000ELEC PLANT IN SERV39201001/4 TON MINI-PICKUPS AND VANSSO"},1010000,"ELEC PLANT IN SERV",3920100,"1/4 TON MINI-PICKUPS AND VANS","SO",null,{"$f":"IF(OR(tblGPLookup[[#This Row],[Alloc]]=\"IDU\",tblGPLookup[[#This Row],[Alloc]]=\"OR\",tblGPLookup[[#This Row],[Alloc]]=\"UT\",tblGPLookup[[#This Row],[Alloc]]=\"WYU\",tblGPLookup[[#This Row],[Alloc]]=\"WYP\",tblGPLookup[[#This Row],[Alloc]]=\"CA\",tblGPLookup[[#This Row],[Alloc]]=\"WA\"),\"SITUS\",tblGPLookup[[#This Row],[Alloc]])","v":"SO"},"PTD"]
[{"$f":"CONCATENATE(tblGPLookup[[#This Row],[Primary Account]],tblGPLookup[[#This Row],[Primary Name]],tblGPLookup[[#This Row],[Secondary Acct]],tblGPLookup[[#This Row],[Secondary  Name]],tblGPLookup[[#This Row],[Alloc4FUNC]])","v":"1010000ELEC PLANT IN SERV39201001/4 TON MINI-PICKUPS AND VANSSITUS"},1010000,"ELEC PLANT IN SERV",3920100,"1/4 TON MINI-PICKUPS AND VANS","SITUS",null,{"$f":"IF(OR(tblGPLookup[[#This Row],[Alloc]]=\"IDU\",tblGPLookup[[#This Row],[Alloc]]=\"OR\",tblGPLookup[[#This Row],[Alloc]]=\"UT\",tblGPLookup[[#This Row],[Alloc]]=\"WYU\",tblGPLookup[[#This Row],[Alloc]]=\"WYP\",tblGPLookup[[#This Row],[Alloc]]=\"CA\",tblGPLookup[[#This Row],[Alloc]]=\"WA\"),\"SITUS\",tblGPLookup[[#This Row],[Alloc]])","v":"SITUS"},"DPW"]
[{"$f":"CONCATENATE(tblGPLookup[[#This Row],[Primary Account]],tblGPLookup[[#This Row],[Primary Name]],tblGPLookup[[#This Row],[Secondary Acct]],tblGPLookup[[#This Row],[Secondary  Name]],tblGPLookup[[#This Row],[Alloc4FUNC]])","v":"1010000ELEC PLANT IN SERV39201001/4 TON MINI-PICKUPS AND VANSSITUS"},1010000,"ELEC PLANT IN SERV",3920100,"1/4 TON MINI-PICKUPS AND VANS","SITUS",null,{"$f":"IF(OR(tblGPLookup[[#This Row],[Alloc]]=\"IDU\",tblGPLookup[[#This Row],[Alloc]]=\"OR\",tblGPLookup[[#This Row],[Alloc]]=\"UT\",tblGPLookup[[#This Row],[Alloc]]=\"WYU\",tblGPLookup[[#This Row],[Alloc]]=\"WYP\",tblGPLookup[[#This Row],[Alloc]]=\"CA\",tblGPLookup[[#This Row],[Alloc]]=\"WA\"),\"SITUS\",tblGPLookup[[#This Row],[Alloc]])","v":"SITUS"},"DPW"]
[{"$f":"CONCATENATE(tblGPLookup[[#This Row],[Primary Account]],tblGPLookup[[#This Row],[Primary Name]],tblGPLookup[[#This Row],[Secondary Acct]],tblGPLookup[[#This Row],[Secondary  Name]],tblGPLookup[[#This Row],[Alloc4FUNC]])","v":"1010000ELEC PLANT IN SERV39201001/4 TON MINI-PICKUPS AND VANSSITUS"},1010000,"ELEC PLANT IN SERV",3920100,"1/4 TON MINI-PICKUPS AND VANS","SITUS",null,{"$f":"IF(OR(tblGPLookup[[#This Row],[Alloc]]=\"IDU\",tblGPLookup[[#This Row],[Alloc]]=\"OR\",tblGPLookup[[#This Row],[Alloc]]=\"UT\",tblGPLookup[[#This Row],[Alloc]]=\"WYU\",tblGPLookup[[#This Row],[Alloc]]=\"WYP\",tblGPLookup[[#This Row],[Alloc]]=\"CA\",tblGPLookup[[#This Row],[Alloc]]=\"WA\"),\"SITUS\",tblGPLookup[[#This Row],[Alloc]])","v":"SITUS"},"DPW"]
[{"$f":"CONCATENATE(tblGPLookup[[#This Row],[Primary Account]],tblGPLookup[[#This Row],[Primary Name]],tblGPLookup[[#This Row],[Secondary Acct]],tblGPLookup[[#This Row],[Secondary  Name]],tblGPLookup[[#This Row],[Alloc4FUNC]])","v":"1010000ELEC PLANT IN SERV39201001/4 TON MINI-PICKUPS AND VANSSITUS"},1010000,"ELEC PLANT IN SERV",3920100,"1/4 TON MINI-PICKUPS AND VANS","SITUS",null,{"$f":"IF(OR(tblGPLookup[[#This Row],[Alloc]]=\"IDU\",tblGPLookup[[#This Row],[Alloc]]=\"OR\",tblGPLookup[[#This Row],[Alloc]]=\"UT\",tblGPLookup[[#This Row],[Alloc]]=\"WYU\",tblGPLookup[[#This Row],[Alloc]]=\"WYP\",tblGPLookup[[#This Row],[Alloc]]=\"CA\",tblGPLookup[[#This Row],[Alloc]]=\"WA\"),\"SITUS\",tblGPLookup[[#This Row],[Alloc]])","v":"SITUS"},"DPW"]
[{"$f":"CONCATENATE(tblGPLookup[[#This Row],[Primary Account]],tblGPLookup[[#This Row],[Primary Name]],tblGPLookup[[#This Row],[Secondary Acct]],tblGPLookup[[#This Row],[Secondary  Name]],tblGPLookup[[#This Row],[Alloc4FUNC]])","v":"1010000ELEC PLANT IN SERV3920200MID AND FULL SIZE AUTOMOBILESSITUS"},1010000,"ELEC PLANT IN SERV",3920200,"MID AND FULL SIZE AUTOMOBILES","SITUS",null,{"$f":"IF(OR(tblGPLookup[[#This Row],[Alloc]]=\"IDU\",tblGPLookup[[#This Row],[Alloc]]=\"OR\",tblGPLookup[[#This Row],[Alloc]]=\"UT\",tblGPLookup[[#This Row],[Alloc]]=\"WYU\",tblGPLookup[[#This Row],[Alloc]]=\"WYP\",tblGPLookup[[#This Row],[Alloc]]=\"CA\",tblGPLookup[[#This Row],[Alloc]]=\"WA\"),\"SITUS\",tblGPLookup[[#This Row],[Alloc]])","v":"SITUS"},"DPW"]
[{"$f":"CONCATENATE(tblGPLookup[[#This Row],[Primary Account]],tblGPLookup[[#This Row],[Primary Name]],tblGPLookup[[#This Row],[Secondary Acct]],tblGPLookup[[#This Row],[Secondary  Name]],tblGPLookup[[#This Row],[Alloc4FUNC]])","v":"1010000ELEC PLANT IN SERV3920200MID AND FULL SIZE AUTOMOBILESSG"},1010000,"ELEC PLANT IN SERV",3920200,"MID AND FULL SIZE AUTOMOBILES","SG",null,{"$f":"IF(OR(tblGPLookup[[#This Row],[Alloc]]=\"IDU\",tblGPLookup[[#This Row],[Alloc]]=\"OR\",tblGPLookup[[#This Row],[Alloc]]=\"UT\",tblGPLookup[[#This Row],[Alloc]]=\"WYU\",tblGPLookup[[#This Row],[Alloc]]=\"WYP\",tblGPLookup[[#This Row],[Alloc]]=\"CA\",tblGPLookup[[#This Row],[Alloc]]=\"WA\"),\"SITUS\",tblGPLookup[[#This Row],[Alloc]])","v":"SG"},"P"]
[{"$f":"CONCATENATE(tblGPLookup[[#This Row],[Primary Account]],tblGPLookup[[#This Row],[Primary Name]],tblGPLookup[[#This Row],[Secondary Acct]],tblGPLookup[[#This Row],[Secondary  Name]],tblGPLookup[[#This Row],[Alloc4FUNC]])","v":"1010000ELEC PLANT IN SERV3920200MID AND FULL SIZE AUTOMOBILESSO"},1010000,"ELEC PLANT IN SERV",3920200,"MID AND FULL SIZE AUTOMOBILES","SO",null,{"$f":"IF(OR(tblGPLookup[[#This Row],[Alloc]]=\"IDU\",tblGPLookup[[#This Row],[Alloc]]=\"OR\",tblGPLookup[[#This Row],[Alloc]]=\"UT\",tblGPLookup[[#This Row],[Alloc]]=\"WYU\",tblGPLookup[[#This Row],[Alloc]]=\"WYP\",tblGPLookup[[#This Row],[Alloc]]=\"CA\",tblGPLookup[[#This Row],[Alloc]]=\"WA\"),\"SITUS\",tblGPLookup[[#This Row],[Alloc]])","v":"SO"},"PTD"]
[{"$f":"CONCATENATE(tblGPLookup[[#This Row],[Primary Account]],tblGPLookup[[#This Row],[Primary Name]],tblGPLookup[[#This Row],[Secondary Acct]],tblGPLookup[[#This Row],[Secondary  Name]],tblGPLookup[[#This Row],[Alloc4FUNC]])","v":"1010000ELEC PLANT IN SERV3920200MID AND FULL SIZE AUTOMOBILESSITUS"},1010000,"ELEC PLANT IN SERV",3920200,"MID AND FULL SIZE AUTOMOBILES","SITUS",null,{"$f":"IF(OR(tblGPLookup[[#This Row],[Alloc]]=\"IDU\",tblGPLookup[[#This Row],[Alloc]]=\"OR\",tblGPLookup[[#This Row],[Alloc]]=\"UT\",tblGPLookup[[#This Row],[Alloc]]=\"WYU\",tblGPLookup[[#This Row],[Alloc]]=\"WYP\",tblGPLookup[[#This Row],[Alloc]]=\"CA\",tblGPLookup[[#This Row],[Alloc]]=\"WA\"),\"SITUS\",tblGPLookup[[#This Row],[Alloc]])","v":"SITUS"},"DPW"]
[{"$f":"CONCATENATE(tblGPLookup[[#This Row],[Primary Account]],tblGPLookup[[#This Row],[Primary Name]],tblGPLookup[[#This Row],[Secondary Acct]],tblGPLookup[[#This Row],[Secondary  Name]],tblGPLookup[[#This Row],[Alloc4FUNC]])","v":"1010000ELEC PLANT IN SERV3920200MID AND FULL SIZE AUTOMOBILESSITUS"},1010000,"ELEC PLANT IN SERV",3920200,"MID AND FULL SIZE AUTOMOBILES","SITUS",null,{"$f":"IF(OR(tblGPLookup[[#This Row],[Alloc]]=\"IDU\",tblGPLookup[[#This Row],[Alloc]]=\"OR\",tblGPLookup[[#This Row],[Alloc]]=\"UT\",tblGPLookup[[#This Row],[Alloc]]=\"WYU\",tblGPLookup[[#This Row],[Alloc]]=\"WYP\",tblGPLookup[[#This Row],[Alloc]]=\"CA\",tblGPLookup[[#This Row],[Alloc]]=\"WA\"),\"SITUS\",tblGPLookup[[#This Row],[Alloc]])","v":"SITUS"},"DPW"]
[{"$f":"CONCATENATE(tblGPLookup[[#This Row],[Primary Account]],tblGPLookup[[#This Row],[Primary Name]],tblGPLookup[[#This Row],[Secondary Acct]],tblGPLookup[[#This Row],[Secondary  Name]],tblGPLookup[[#This Row],[Alloc4FUNC]])","v":"1010000ELEC PLANT IN SERV3920200MID AND FULL SIZE AUTOMOBILESSITUS"},1010000,"ELEC PLANT IN SERV",3920200,"MID AND FULL SIZE AUTOMOBILES","SITUS",null,{"$f":"IF(OR(tblGPLookup[[#This Row],[Alloc]]=\"IDU\",tblGPLookup[[#This Row],[Alloc]]=\"OR\",tblGPLookup[[#This Row],[Alloc]]=\"UT\",tblGPLookup[[#This Row],[Alloc]]=\"WYU\",tblGPLookup[[#This Row],[Alloc]]=\"WYP\",tblGPLookup[[#This Row],[Alloc]]=\"CA\",tblGPLookup[[#This Row],[Alloc]]=\"WA\"),\"SITUS\",tblGPLookup[[#This Row],[Alloc]])","v":"SITUS"},"DPW"]
[{"$f":"CONCATENATE(tblGPLookup[[#This Row],[Primary Account]],tblGPLookup[[#This Row],[Primary Name]],tblGPLookup[[#This Row],[Secondary Acct]],tblGPLookup[[#This Row],[Secondary  Name]],tblGPLookup[[#This Row],[Alloc4FUNC]])","v":"1010000ELEC PLANT IN SERV3920400\"1/2 & 3/4 TON PICKUPS, VANS, SERV TRUCKSITUS"},1010000,"ELEC PLANT IN SERV",3920400,"\"1/2 & 3/4 TON PICKUPS, VANS, SERV TRUCK","SITUS",null,{"$f":"IF(OR(tblGPLookup[[#This Row],[Alloc]]=\"IDU\",tblGPLookup[[#This Row],[Alloc]]=\"OR\",tblGPLookup[[#This Row],[Alloc]]=\"UT\",tblGPLookup[[#This Row],[Alloc]]=\"WYU\",tblGPLookup[[#This Row],[Alloc]]=\"WYP\",tblGPLookup[[#This Row],[Alloc]]=\"CA\",tblGPLookup[[#This Row],[Alloc]]=\"WA\"),\"SITUS\",tblGPLookup[[#This Row],[Alloc]])","v":"SITUS"},"DPW"]
[{"$f":"CONCATENATE(tblGPLookup[[#This Row],[Primary Account]],tblGPLookup[[#This Row],[Primary Name]],tblGPLookup[[#This Row],[Secondary Acct]],tblGPLookup[[#This Row],[Secondary  Name]],tblGPLookup[[#This Row],[Alloc4FUNC]])","v":"1010000ELEC PLANT IN SERV3920400\"1/2 & 3/4 TON PICKUPS, VANS, SERV TRUCKSITUS"},1010000,"ELEC PLANT IN SERV",3920400,"\"1/2 & 3/4 TON PICKUPS, VANS, SERV TRUCK","SITUS",null,{"$f":"IF(OR(tblGPLookup[[#This Row],[Alloc]]=\"IDU\",tblGPLookup[[#This Row],[Alloc]]=\"OR\",tblGPLookup[[#This Row],[Alloc]]=\"UT\",tblGPLookup[[#This Row],[Alloc]]=\"WYU\",tblGPLookup[[#This Row],[Alloc]]=\"WYP\",tblGPLookup[[#This Row],[Alloc]]=\"CA\",tblGPLookup[[#This Row],[Alloc]]=\"WA\"),\"SITUS\",tblGPLookup[[#This Row],[Alloc]])","v":"SITUS"},"DPW"]
[{"$f":"CONCATENATE(tblGPLookup[[#This Row],[Primary Account]],tblGPLookup[[#This Row],[Primary Name]],tblGPLookup[[#This Row],[Secondary Acct]],tblGPLookup[[#This Row],[Secondary  Name]],tblGPLookup[[#This Row],[Alloc4FUNC]])","v":"1010000ELEC PLANT IN SERV3920400\"1/2 & 3/4 TON PICKUPS, VANS, SERV TRUCKSE"},1010000,"ELEC PLANT IN SERV",3920400,"\"1/2 & 3/4 TON PICKUPS, VANS, SERV TRUCK","SE",null,{"$f":"IF(OR(tblGPLookup[[#This Row],[Alloc]]=\"IDU\",tblGPLookup[[#This Row],[Alloc]]=\"OR\",tblGPLookup[[#This Row],[Alloc]]=\"UT\",tblGPLookup[[#This Row],[Alloc]]=\"WYU\",tblGPLookup[[#This Row],[Alloc]]=\"WYP\",tblGPLookup[[#This Row],[Alloc]]=\"CA\",tblGPLookup[[#This Row],[Alloc]]=\"WA\"),\"SITUS\",tblGPLookup[[#This Row],[Alloc]])","v":"SE"},"P"]
[{"$f":"CONCATENATE(tblGPLookup[[#This Row],[Primary Account]],tblGPLookup[[#This Row],[Primary Name]],tblGPLookup[[#This Row],[Secondary Acct]],tblGPLookup[[#This Row],[Secondary  Name]],tblGPLookup[[#This Row],[Alloc4FUNC]])","v":"1010000ELEC PLANT IN SERV3920400\"1/2 & 3/4 TON PICKUPS, VANS, SERV TRUCKSG"},1010000,"ELEC PLANT IN SERV",3920400,"\"1/2 & 3/4 TON PICKUPS, VANS, SERV TRUCK","SG",null,{"$f":"IF(OR(tblGPLookup[[#This Row],[Alloc]]=\"IDU\",tblGPLookup[[#This Row],[Alloc]]=\"OR\",tblGPLookup[[#This Row],[Alloc]]=\"UT\",tblGPLookup[[#This Row],[Alloc]]=\"WYU\",tblGPLookup[[#This Row],[Alloc]]=\"WYP\",tblGPLookup[[#This Row],[Alloc]]=\"CA\",tblGPLookup[[#This Row],[Alloc]]=\"WA\"),\"SITUS\",tblGPLookup[[#This Row],[Alloc]])","v":"SG"},"P"]
[{"$f":"CONCATENATE(tblGPLookup[[#This Row],[Primary Account]],tblGPLookup[[#This Row],[Primary Name]],tblGPLookup[[#This Row],[Secondary Acct]],tblGPLookup[[#This Row],[Secondary  Name]],tblGPLookup[[#This Row],[Alloc4FUNC]])","v":"1010000ELEC PLANT IN SERV3920400\"1/2 & 3/4 TON PICKUPS, VANS, SERV TRUCKSITUS"},1010000,"ELEC PLANT IN SERV",3920400,"\"1/2 & 3/4 TON PICKUPS, VANS, SERV TRUCK","SITUS",null,{"$f":"IF(OR(tblGPLookup[[#This Row],[Alloc]]=\"IDU\",tblGPLookup[[#This Row],[Alloc]]=\"OR\",tblGPLookup[[#This Row],[Alloc]]=\"UT\",tblGPLookup[[#This Row],[Alloc]]=\"WYU\",tblGPLookup[[#This Row],[Alloc]]=\"WYP\",tblGPLookup[[#This Row],[Alloc]]=\"CA\",tblGPLookup[[#This Row],[Alloc]]=\"WA\"),\"SITUS\",tblGPLookup[[#This Row],[Alloc]])","v":"SITUS"},"DPW"]
[{"$f":"CONCATENATE(tblGPLookup[[#This Row],[Primary Account]],tblGPLookup[[#This Row],[Primary Name]],tblGPLookup[[#This Row],[Secondary Acct]],tblGPLookup[[#This Row],[Secondary  Name]],tblGPLookup[[#This Row],[Alloc4FUNC]])","v":"1010000ELEC PLANT IN SERV3920400\"1/2 & 3/4 TON PICKUPS, VANS, SERV TRUCKSO"},1010000,"ELEC PLANT IN SERV",3920400,"\"1/2 & 3/4 TON PICKUPS, VANS, SERV TRUCK","SO",null,{"$f":"IF(OR(tblGPLookup[[#This Row],[Alloc]]=\"IDU\",tblGPLookup[[#This Row],[Alloc]]=\"OR\",tblGPLookup[[#This Row],[Alloc]]=\"UT\",tblGPLookup[[#This Row],[Alloc]]=\"WYU\",tblGPLookup[[#This Row],[Alloc]]=\"WYP\",tblGPLookup[[#This Row],[Alloc]]=\"CA\",tblGPLookup[[#This Row],[Alloc]]=\"WA\"),\"SITUS\",tblGPLookup[[#This Row],[Alloc]])","v":"SO"},"PTD"]
[{"$f":"CONCATENATE(tblGPLookup[[#This Row],[Primary Account]],tblGPLookup[[#This Row],[Primary Name]],tblGPLookup[[#This Row],[Secondary Acct]],tblGPLookup[[#This Row],[Secondary  Name]],tblGPLookup[[#This Row],[Alloc4FUNC]])","v":"1010000ELEC PLANT IN SERV3920400\"1/2 & 3/4 TON PICKUPS, VANS, SERV TRUCKSITUS"},1010000,"ELEC PLANT IN SERV",3920400,"\"1/2 & 3/4 TON PICKUPS, VANS, SERV TRUCK","SITUS",null,{"$f":"IF(OR(tblGPLookup[[#This Row],[Alloc]]=\"IDU\",tblGPLookup[[#This Row],[Alloc]]=\"OR\",tblGPLookup[[#This Row],[Alloc]]=\"UT\",tblGPLookup[[#This Row],[Alloc]]=\"WYU\",tblGPLookup[[#This Row],[Alloc]]=\"WYP\",tblGPLookup[[#This Row],[Alloc]]=\"CA\",tblGPLookup[[#This Row],[Alloc]]=\"WA\"),\"SITUS\",tblGPLookup[[#This Row],[Alloc]])","v":"SITUS"},"DPW"]
[{"$f":"CONCATENATE(tblGPLookup[[#This Row],[Primary Account]],tblGPLookup[[#This Row],[Primary Name]],tblGPLookup[[#This Row],[Secondary Acct]],tblGPLookup[[#This Row],[Secondary  Name]],tblGPLookup[[#This Row],[Alloc4FUNC]])","v":"1010000ELEC PLANT IN SERV3920400\"1/2 & 3/4 TON PICKUPS, VANS, SERV TRUCKSITUS"},1010000,"ELEC PLANT IN SERV",3920400,"\"1/2 & 3/4 TON PICKUPS, VANS, SERV TRUCK","SITUS",null,{"$f":"IF(OR(tblGPLookup[[#This Row],[Alloc]]=\"IDU\",tblGPLookup[[#This Row],[Alloc]]=\"OR\",tblGPLookup[[#This Row],[Alloc]]=\"UT\",tblGPLookup[[#This Row],[Alloc]]=\"WYU\",tblGPLookup[[#This Row],[Alloc]]=\"WYP\",tblGPLookup[[#This Row],[Alloc]]=\"CA\",tblGPLookup[[#This Row],[Alloc]]=\"WA\"),\"SITUS\",tblGPLookup[[#This Row],[Alloc]])","v":"SITUS"},"DPW"]
[{"$f":"CONCATENATE(tblGPLookup[[#This Row],[Primary Account]],tblGPLookup[[#This Row],[Primary Name]],tblGPLookup[[#This Row],[Secondary Acct]],tblGPLookup[[#This Row],[Secondary  Name]],tblGPLookup[[#This Row],[Alloc4FUNC]])","v":"1010000ELEC PLANT IN SERV3920400\"1/2 & 3/4 TON PICKUPS, VANS, SERV TRUCKSITUS"},1010000,"ELEC PLANT IN SERV",3920400,"\"1/2 & 3/4 TON PICKUPS, VANS, SERV TRUCK","SITUS",null,{"$f":"IF(OR(tblGPLookup[[#This Row],[Alloc]]=\"IDU\",tblGPLookup[[#This Row],[Alloc]]=\"OR\",tblGPLookup[[#This Row],[Alloc]]=\"UT\",tblGPLookup[[#This Row],[Alloc]]=\"WYU\",tblGPLookup[[#This Row],[Alloc]]=\"WYP\",tblGPLookup[[#This Row],[Alloc]]=\"CA\",tblGPLookup[[#This Row],[Alloc]]=\"WA\"),\"SITUS\",tblGPLookup[[#This Row],[Alloc]])","v":"SITUS"},"DPW"]
[{"$f":"CONCATENATE(tblGPLookup[[#This Row],[Primary Account]],tblGPLookup[[#This Row],[Primary Name]],tblGPLookup[[#This Row],[Secondary Acct]],tblGPLookup[[#This Row],[Secondary  Name]],tblGPLookup[[#This Row],[Alloc4FUNC]])","v":"1010000ELEC PLANT IN SERV3920400\"1/2 & 3/4 TON PICKUPS, VANS, SERV TRUCKSITUS"},1010000,"ELEC PLANT IN SERV",3920400,"\"1/2 & 3/4 TON PICKUPS, VANS, SERV TRUCK","SITUS",null,{"$f":"IF(OR(tblGPLookup[[#This Row],[Alloc]]=\"IDU\",tblGPLookup[[#This Row],[Alloc]]=\"OR\",tblGPLookup[[#This Row],[Alloc]]=\"UT\",tblGPLookup[[#This Row],[Alloc]]=\"WYU\",tblGPLookup[[#This Row],[Alloc]]=\"WYP\",tblGPLookup[[#This Row],[Alloc]]=\"CA\",tblGPLookup[[#This Row],[Alloc]]=\"WA\"),\"SITUS\",tblGPLookup[[#This Row],[Alloc]])","v":"SITUS"},"DPW"]
[{"$f":"CONCATENATE(tblGPLookup[[#This Row],[Primary Account]],tblGPLookup[[#This Row],[Primary Name]],tblGPLookup[[#This Row],[Secondary Acct]],tblGPLookup[[#This Row],[Secondary  Name]],tblGPLookup[[#This Row],[Alloc4FUNC]])","v":"1010000ELEC PLANT IN SERV3920500\"1 TON AND ABOVE, TWO-AXLE TRUCKS\"SITUS"},1010000,"ELEC PLANT IN SERV",3920500,"\"1 TON AND ABOVE, TWO-AXLE TRUCKS\"","SITUS",null,{"$f":"IF(OR(tblGPLookup[[#This Row],[Alloc]]=\"IDU\",tblGPLookup[[#This Row],[Alloc]]=\"OR\",tblGPLookup[[#This Row],[Alloc]]=\"UT\",tblGPLookup[[#This Row],[Alloc]]=\"WYU\",tblGPLookup[[#This Row],[Alloc]]=\"WYP\",tblGPLookup[[#This Row],[Alloc]]=\"CA\",tblGPLookup[[#This Row],[Alloc]]=\"WA\"),\"SITUS\",tblGPLookup[[#This Row],[Alloc]])","v":"SITUS"},"DPW"]
[{"$f":"CONCATENATE(tblGPLookup[[#This Row],[Primary Account]],tblGPLookup[[#This Row],[Primary Name]],tblGPLookup[[#This Row],[Secondary Acct]],tblGPLookup[[#This Row],[Secondary  Name]],tblGPLookup[[#This Row],[Alloc4FUNC]])","v":"1010000ELEC PLANT IN SERV3920500\"1 TON AND ABOVE, TWO-AXLE TRUCKS\"SITUS"},1010000,"ELEC PLANT IN SERV",3920500,"\"1 TON AND ABOVE, TWO-AXLE TRUCKS\"","SITUS",null,{"$f":"IF(OR(tblGPLookup[[#This Row],[Alloc]]=\"IDU\",tblGPLookup[[#This Row],[Alloc]]=\"OR\",tblGPLookup[[#This Row],[Alloc]]=\"UT\",tblGPLookup[[#This Row],[Alloc]]=\"WYU\",tblGPLookup[[#This Row],[Alloc]]=\"WYP\",tblGPLookup[[#This Row],[Alloc]]=\"CA\",tblGPLookup[[#This Row],[Alloc]]=\"WA\"),\"SITUS\",tblGPLookup[[#This Row],[Alloc]])","v":"SITUS"},"DPW"]
[{"$f":"CONCATENATE(tblGPLookup[[#This Row],[Primary Account]],tblGPLookup[[#This Row],[Primary Name]],tblGPLookup[[#This Row],[Secondary Acct]],tblGPLookup[[#This Row],[Secondary  Name]],tblGPLookup[[#This Row],[Alloc4FUNC]])","v":"1010000ELEC PLANT IN SERV3920500\"1 TON AND ABOVE, TWO-AXLE TRUCKS\"SE"},1010000,"ELEC PLANT IN SERV",3920500,"\"1 TON AND ABOVE, TWO-AXLE TRUCKS\"","SE",null,{"$f":"IF(OR(tblGPLookup[[#This Row],[Alloc]]=\"IDU\",tblGPLookup[[#This Row],[Alloc]]=\"OR\",tblGPLookup[[#This Row],[Alloc]]=\"UT\",tblGPLookup[[#This Row],[Alloc]]=\"WYU\",tblGPLookup[[#This Row],[Alloc]]=\"WYP\",tblGPLookup[[#This Row],[Alloc]]=\"CA\",tblGPLookup[[#This Row],[Alloc]]=\"WA\"),\"SITUS\",tblGPLookup[[#This Row],[Alloc]])","v":"SE"},"P"]
[{"$f":"CONCATENATE(tblGPLookup[[#This Row],[Primary Account]],tblGPLookup[[#This Row],[Primary Name]],tblGPLookup[[#This Row],[Secondary Acct]],tblGPLookup[[#This Row],[Secondary  Name]],tblGPLookup[[#This Row],[Alloc4FUNC]])","v":"1010000ELEC PLANT IN SERV3920500\"1 TON AND ABOVE, TWO-AXLE TRUCKS\"SG"},1010000,"ELEC PLANT IN SERV",3920500,"\"1 TON AND ABOVE, TWO-AXLE TRUCKS\"","SG",null,{"$f":"IF(OR(tblGPLookup[[#This Row],[Alloc]]=\"IDU\",tblGPLookup[[#This Row],[Alloc]]=\"OR\",tblGPLookup[[#This Row],[Alloc]]=\"UT\",tblGPLookup[[#This Row],[Alloc]]=\"WYU\",tblGPLookup[[#This Row],[Alloc]]=\"WYP\",tblGPLookup[[#This Row],[Alloc]]=\"CA\",tblGPLookup[[#This Row],[Alloc]]=\"WA\"),\"SITUS\",tblGPLookup[[#This Row],[Alloc]])","v":"SG"},"P"]
[{"$f":"CONCATENATE(tblGPLookup[[#This Row],[Primary Account]],tblGPLookup[[#This Row],[Primary Name]],tblGPLookup[[#This Row],[Secondary Acct]],tblGPLookup[[#This Row],[Secondary  Name]],tblGPLookup[[#This Row],[Alloc4FUNC]])","v":"1010000ELEC PLANT IN SERV3920500\"1 TON AND ABOVE, TWO-AXLE TRUCKS\"SITUS"},1010000,"ELEC PLANT IN SERV",3920500,"\"1 TON AND ABOVE, TWO-AXLE TRUCKS\"","SITUS",null,{"$f":"IF(OR(tblGPLookup[[#This Row],[Alloc]]=\"IDU\",tblGPLookup[[#This Row],[Alloc]]=\"OR\",tblGPLookup[[#This Row],[Alloc]]=\"UT\",tblGPLookup[[#This Row],[Alloc]]=\"WYU\",tblGPLookup[[#This Row],[Alloc]]=\"WYP\",tblGPLookup[[#This Row],[Alloc]]=\"CA\",tblGPLookup[[#This Row],[Alloc]]=\"WA\"),\"SITUS\",tblGPLookup[[#This Row],[Alloc]])","v":"SITUS"},"DPW"]
[{"$f":"CONCATENATE(tblGPLookup[[#This Row],[Primary Account]],tblGPLookup[[#This Row],[Primary Name]],tblGPLookup[[#This Row],[Secondary Acct]],tblGPLookup[[#This Row],[Secondary  Name]],tblGPLookup[[#This Row],[Alloc4FUNC]])","v":"1010000ELEC PLANT IN SERV3920500\"1 TON AND ABOVE, TWO-AXLE TRUCKS\"SO"},1010000,"ELEC PLANT IN SERV",3920500,"\"1 TON AND ABOVE, TWO-AXLE TRUCKS\"","SO",null,{"$f":"IF(OR(tblGPLookup[[#This Row],[Alloc]]=\"IDU\",tblGPLookup[[#This Row],[Alloc]]=\"OR\",tblGPLookup[[#This Row],[Alloc]]=\"UT\",tblGPLookup[[#This Row],[Alloc]]=\"WYU\",tblGPLookup[[#This Row],[Alloc]]=\"WYP\",tblGPLookup[[#This Row],[Alloc]]=\"CA\",tblGPLookup[[#This Row],[Alloc]]=\"WA\"),\"SITUS\",tblGPLookup[[#This Row],[Alloc]])","v":"SO"},"PTD"]
[{"$f":"CONCATENATE(tblGPLookup[[#This Row],[Primary Account]],tblGPLookup[[#This Row],[Primary Name]],tblGPLookup[[#This Row],[Secondary Acct]],tblGPLookup[[#This Row],[Secondary  Name]],tblGPLookup[[#This Row],[Alloc4FUNC]])","v":"1010000ELEC PLANT IN SERV3920500\"1 TON AND ABOVE, TWO-AXLE TRUCKS\"SITUS"},1010000,"ELEC PLANT IN SERV",3920500,"\"1 TON AND ABOVE, TWO-AXLE TRUCKS\"","SITUS",null,{"$f":"IF(OR(tblGPLookup[[#This Row],[Alloc]]=\"IDU\",tblGPLookup[[#This Row],[Alloc]]=\"OR\",tblGPLookup[[#This Row],[Alloc]]=\"UT\",tblGPLookup[[#This Row],[Alloc]]=\"WYU\",tblGPLookup[[#This Row],[Alloc]]=\"WYP\",tblGPLookup[[#This Row],[Alloc]]=\"CA\",tblGPLookup[[#This Row],[Alloc]]=\"WA\"),\"SITUS\",tblGPLookup[[#This Row],[Alloc]])","v":"SITUS"},"DPW"]
[{"$f":"CONCATENATE(tblGPLookup[[#This Row],[Primary Account]],tblGPLookup[[#This Row],[Primary Name]],tblGPLookup[[#This Row],[Secondary Acct]],tblGPLookup[[#This Row],[Secondary  Name]],tblGPLookup[[#This Row],[Alloc4FUNC]])","v":"1010000ELEC PLANT IN SERV3920500\"1 TON AND ABOVE, TWO-AXLE TRUCKS\"SITUS"},1010000,"ELEC PLANT IN SERV",3920500,"\"1 TON AND ABOVE, TWO-AXLE TRUCKS\"","SITUS",null,{"$f":"IF(OR(tblGPLookup[[#This Row],[Alloc]]=\"IDU\",tblGPLookup[[#This Row],[Alloc]]=\"OR\",tblGPLookup[[#This Row],[Alloc]]=\"UT\",tblGPLookup[[#This Row],[Alloc]]=\"WYU\",tblGPLookup[[#This Row],[Alloc]]=\"WYP\",tblGPLookup[[#This Row],[Alloc]]=\"CA\",tblGPLookup[[#This Row],[Alloc]]=\"WA\"),\"SITUS\",tblGPLookup[[#This Row],[Alloc]])","v":"SITUS"},"DPW"]
[{"$f":"CONCATENATE(tblGPLookup[[#This Row],[Primary Account]],tblGPLookup[[#This Row],[Primary Name]],tblGPLookup[[#This Row],[Secondary Acct]],tblGPLookup[[#This Row],[Secondary  Name]],tblGPLookup[[#This Row],[Alloc4FUNC]])","v":"1010000ELEC PLANT IN SERV3920500\"1 TON AND ABOVE, TWO-AXLE TRUCKS\"SITUS"},1010000,"ELEC PLANT IN SERV",3920500,"\"1 TON AND ABOVE, TWO-AXLE TRUCKS\"","SITUS",null,{"$f":"IF(OR(tblGPLookup[[#This Row],[Alloc]]=\"IDU\",tblGPLookup[[#This Row],[Alloc]]=\"OR\",tblGPLookup[[#This Row],[Alloc]]=\"UT\",tblGPLookup[[#This Row],[Alloc]]=\"WYU\",tblGPLookup[[#This Row],[Alloc]]=\"WYP\",tblGPLookup[[#This Row],[Alloc]]=\"CA\",tblGPLookup[[#This Row],[Alloc]]=\"WA\"),\"SITUS\",tblGPLookup[[#This Row],[Alloc]])","v":"SITUS"},"DPW"]
[{"$f":"CONCATENATE(tblGPLookup[[#This Row],[Primary Account]],tblGPLookup[[#This Row],[Primary Name]],tblGPLookup[[#This Row],[Secondary Acct]],tblGPLookup[[#This Row],[Secondary  Name]],tblGPLookup[[#This Row],[Alloc4FUNC]])","v":"1010000ELEC PLANT IN SERV3920500\"1 TON AND ABOVE, TWO-AXLE TRUCKS\"SITUS"},1010000,"ELEC PLANT IN SERV",3920500,"\"1 TON AND ABOVE, TWO-AXLE TRUCKS\"","SITUS",null,{"$f":"IF(OR(tblGPLookup[[#This Row],[Alloc]]=\"IDU\",tblGPLookup[[#This Row],[Alloc]]=\"OR\",tblGPLookup[[#This Row],[Alloc]]=\"UT\",tblGPLookup[[#This Row],[Alloc]]=\"WYU\",tblGPLookup[[#This Row],[Alloc]]=\"WYP\",tblGPLookup[[#This Row],[Alloc]]=\"CA\",tblGPLookup[[#This Row],[Alloc]]=\"WA\"),\"SITUS\",tblGPLookup[[#This Row],[Alloc]])","v":"SITUS"},"DPW"]
[{"$f":"CONCATENATE(tblGPLookup[[#This Row],[Primary Account]],tblGPLookup[[#This Row],[Primary Name]],tblGPLookup[[#This Row],[Secondary Acct]],tblGPLookup[[#This Row],[Secondary  Name]],tblGPLookup[[#This Row],[Alloc4FUNC]])","v":"1010000ELEC PLANT IN SERV3920600DUMP TRUCKSSITUS"},1010000,"ELEC PLANT IN SERV",3920600,"DUMP TRUCKS","SITUS",null,{"$f":"IF(OR(tblGPLookup[[#This Row],[Alloc]]=\"IDU\",tblGPLookup[[#This Row],[Alloc]]=\"OR\",tblGPLookup[[#This Row],[Alloc]]=\"UT\",tblGPLookup[[#This Row],[Alloc]]=\"WYU\",tblGPLookup[[#This Row],[Alloc]]=\"WYP\",tblGPLookup[[#This Row],[Alloc]]=\"CA\",tblGPLookup[[#This Row],[Alloc]]=\"WA\"),\"SITUS\",tblGPLookup[[#This Row],[Alloc]])","v":"SITUS"},"DPW"]
[{"$f":"CONCATENATE(tblGPLookup[[#This Row],[Primary Account]],tblGPLookup[[#This Row],[Primary Name]],tblGPLookup[[#This Row],[Secondary Acct]],tblGPLookup[[#This Row],[Secondary  Name]],tblGPLookup[[#This Row],[Alloc4FUNC]])","v":"1010000ELEC PLANT IN SERV3920600DUMP TRUCKSSE"},1010000,"ELEC PLANT IN SERV",3920600,"DUMP TRUCKS","SE",null,{"$f":"IF(OR(tblGPLookup[[#This Row],[Alloc]]=\"IDU\",tblGPLookup[[#This Row],[Alloc]]=\"OR\",tblGPLookup[[#This Row],[Alloc]]=\"UT\",tblGPLookup[[#This Row],[Alloc]]=\"WYU\",tblGPLookup[[#This Row],[Alloc]]=\"WYP\",tblGPLookup[[#This Row],[Alloc]]=\"CA\",tblGPLookup[[#This Row],[Alloc]]=\"WA\"),\"SITUS\",tblGPLookup[[#This Row],[Alloc]])","v":"SE"},"P"]
[{"$f":"CONCATENATE(tblGPLookup[[#This Row],[Primary Account]],tblGPLookup[[#This Row],[Primary Name]],tblGPLookup[[#This Row],[Secondary Acct]],tblGPLookup[[#This Row],[Secondary  Name]],tblGPLookup[[#This Row],[Alloc4FUNC]])","v":"1010000ELEC PLANT IN SERV3920600DUMP TRUCKSSG"},1010000,"ELEC PLANT IN SERV",3920600,"DUMP TRUCKS","SG",null,{"$f":"IF(OR(tblGPLookup[[#This Row],[Alloc]]=\"IDU\",tblGPLookup[[#This Row],[Alloc]]=\"OR\",tblGPLookup[[#This Row],[Alloc]]=\"UT\",tblGPLookup[[#This Row],[Alloc]]=\"WYU\",tblGPLookup[[#This Row],[Alloc]]=\"WYP\",tblGPLookup[[#This Row],[Alloc]]=\"CA\",tblGPLookup[[#This Row],[Alloc]]=\"WA\"),\"SITUS\",tblGPLookup[[#This Row],[Alloc]])","v":"SG"},"P"]
[{"$f":"CONCATENATE(tblGPLookup[[#This Row],[Primary Account]],tblGPLookup[[#This Row],[Primary Name]],tblGPLookup[[#This Row],[Secondary Acct]],tblGPLookup[[#This Row],[Secondary  Name]],tblGPLookup[[#This Row],[Alloc4FUNC]])","v":"1010000ELEC PLANT IN SERV3920600DUMP TRUCKSSO"},1010000,"ELEC PLANT IN SERV",3920600,"DUMP TRUCKS","SO",null,{"$f":"IF(OR(tblGPLookup[[#This Row],[Alloc]]=\"IDU\",tblGPLookup[[#This Row],[Alloc]]=\"OR\",tblGPLookup[[#This Row],[Alloc]]=\"UT\",tblGPLookup[[#This Row],[Alloc]]=\"WYU\",tblGPLookup[[#This Row],[Alloc]]=\"WYP\",tblGPLookup[[#This Row],[Alloc]]=\"CA\",tblGPLookup[[#This Row],[Alloc]]=\"WA\"),\"SITUS\",tblGPLookup[[#This Row],[Alloc]])","v":"SO"},"PTD"]
[{"$f":"CONCATENATE(tblGPLookup[[#This Row],[Primary Account]],tblGPLookup[[#This Row],[Primary Name]],tblGPLookup[[#This Row],[Secondary Acct]],tblGPLookup[[#This Row],[Secondary  Name]],tblGPLookup[[#This Row],[Alloc4FUNC]])","v":"1010000ELEC PLANT IN SERV3920600DUMP TRUCKSSITUS"},1010000,"ELEC PLANT IN SERV",3920600,"DUMP TRUCKS","SITUS",null,{"$f":"IF(OR(tblGPLookup[[#This Row],[Alloc]]=\"IDU\",tblGPLookup[[#This Row],[Alloc]]=\"OR\",tblGPLookup[[#This Row],[Alloc]]=\"UT\",tblGPLookup[[#This Row],[Alloc]]=\"WYU\",tblGPLookup[[#This Row],[Alloc]]=\"WYP\",tblGPLookup[[#This Row],[Alloc]]=\"CA\",tblGPLookup[[#This Row],[Alloc]]=\"WA\"),\"SITUS\",tblGPLookup[[#This Row],[Alloc]])","v":"SITUS"},"DPW"]
[{"$f":"CONCATENATE(tblGPLookup[[#This Row],[Primary Account]],tblGPLookup[[#This Row],[Primary Name]],tblGPLookup[[#This Row],[Secondary Acct]],tblGPLookup[[#This Row],[Secondary  Name]],tblGPLookup[[#This Row],[Alloc4FUNC]])","v":"1010000ELEC PLANT IN SERV3920900TRAILERSSITUS"},1010000,"ELEC PLANT IN SERV",3920900,"TRAILERS","SITUS",null,{"$f":"IF(OR(tblGPLookup[[#This Row],[Alloc]]=\"IDU\",tblGPLookup[[#This Row],[Alloc]]=\"OR\",tblGPLookup[[#This Row],[Alloc]]=\"UT\",tblGPLookup[[#This Row],[Alloc]]=\"WYU\",tblGPLookup[[#This Row],[Alloc]]=\"WYP\",tblGPLookup[[#This Row],[Alloc]]=\"CA\",tblGPLookup[[#This Row],[Alloc]]=\"WA\"),\"SITUS\",tblGPLookup[[#This Row],[Alloc]])","v":"SITUS"},"DPW"]
[{"$f":"CONCATENATE(tblGPLookup[[#This Row],[Primary Account]],tblGPLookup[[#This Row],[Primary Name]],tblGPLookup[[#This Row],[Secondary Acct]],tblGPLookup[[#This Row],[Secondary  Name]],tblGPLookup[[#This Row],[Alloc4FUNC]])","v":"1010000ELEC PLANT IN SERV3920900TRAILERSSITUS"},1010000,"ELEC PLANT IN SERV",3920900,"TRAILERS","SITUS",null,{"$f":"IF(OR(tblGPLookup[[#This Row],[Alloc]]=\"IDU\",tblGPLookup[[#This Row],[Alloc]]=\"OR\",tblGPLookup[[#This Row],[Alloc]]=\"UT\",tblGPLookup[[#This Row],[Alloc]]=\"WYU\",tblGPLookup[[#This Row],[Alloc]]=\"WYP\",tblGPLookup[[#This Row],[Alloc]]=\"CA\",tblGPLookup[[#This Row],[Alloc]]=\"WA\"),\"SITUS\",tblGPLookup[[#This Row],[Alloc]])","v":"SITUS"},"DPW"]
[{"$f":"CONCATENATE(tblGPLookup[[#This Row],[Primary Account]],tblGPLookup[[#This Row],[Primary Name]],tblGPLookup[[#This Row],[Secondary Acct]],tblGPLookup[[#This Row],[Secondary  Name]],tblGPLookup[[#This Row],[Alloc4FUNC]])","v":"1010000ELEC PLANT IN SERV3920900TRAILERSSE"},1010000,"ELEC PLANT IN SERV",3920900,"TRAILERS","SE",null,{"$f":"IF(OR(tblGPLookup[[#This Row],[Alloc]]=\"IDU\",tblGPLookup[[#This Row],[Alloc]]=\"OR\",tblGPLookup[[#This Row],[Alloc]]=\"UT\",tblGPLookup[[#This Row],[Alloc]]=\"WYU\",tblGPLookup[[#This Row],[Alloc]]=\"WYP\",tblGPLookup[[#This Row],[Alloc]]=\"CA\",tblGPLookup[[#This Row],[Alloc]]=\"WA\"),\"SITUS\",tblGPLookup[[#This Row],[Alloc]])","v":"SE"},"P"]
[{"$f":"CONCATENATE(tblGPLookup[[#This Row],[Primary Account]],tblGPLookup[[#This Row],[Primary Name]],tblGPLookup[[#This Row],[Secondary Acct]],tblGPLookup[[#This Row],[Secondary  Name]],tblGPLookup[[#This Row],[Alloc4FUNC]])","v":"1010000ELEC PLANT IN SERV3920900TRAILERSSG"},1010000,"ELEC PLANT IN SERV",3920900,"TRAILERS","SG",null,{"$f":"IF(OR(tblGPLookup[[#This Row],[Alloc]]=\"IDU\",tblGPLookup[[#This Row],[Alloc]]=\"OR\",tblGPLookup[[#This Row],[Alloc]]=\"UT\",tblGPLookup[[#This Row],[Alloc]]=\"WYU\",tblGPLookup[[#This Row],[Alloc]]=\"WYP\",tblGPLookup[[#This Row],[Alloc]]=\"CA\",tblGPLookup[[#This Row],[Alloc]]=\"WA\"),\"SITUS\",tblGPLookup[[#This Row],[Alloc]])","v":"SG"},"P"]
[{"$f":"CONCATENATE(tblGPLookup[[#This Row],[Primary Account]],tblGPLookup[[#This Row],[Primary Name]],tblGPLookup[[#This Row],[Secondary Acct]],tblGPLookup[[#This Row],[Secondary  Name]],tblGPLookup[[#This Row],[Alloc4FUNC]])","v":"1010000ELEC PLANT IN SERV3920900TRAILERSSITUS"},1010000,"ELEC PLANT IN SERV",3920900,"TRAILERS","SITUS",null,{"$f":"IF(OR(tblGPLookup[[#This Row],[Alloc]]=\"IDU\",tblGPLookup[[#This Row],[Alloc]]=\"OR\",tblGPLookup[[#This Row],[Alloc]]=\"UT\",tblGPLookup[[#This Row],[Alloc]]=\"WYU\",tblGPLookup[[#This Row],[Alloc]]=\"WYP\",tblGPLookup[[#This Row],[Alloc]]=\"CA\",tblGPLookup[[#This Row],[Alloc]]=\"WA\"),\"SITUS\",tblGPLookup[[#This Row],[Alloc]])","v":"SITUS"},"DPW"]
[{"$f":"CONCATENATE(tblGPLookup[[#This Row],[Primary Account]],tblGPLookup[[#This Row],[Primary Name]],tblGPLookup[[#This Row],[Secondary Acct]],tblGPLookup[[#This Row],[Secondary  Name]],tblGPLookup[[#This Row],[Alloc4FUNC]])","v":"1010000ELEC PLANT IN SERV3920900TRAILERSSO"},1010000,"ELEC PLANT IN SERV",3920900,"TRAILERS","SO",null,{"$f":"IF(OR(tblGPLookup[[#This Row],[Alloc]]=\"IDU\",tblGPLookup[[#This Row],[Alloc]]=\"OR\",tblGPLookup[[#This Row],[Alloc]]=\"UT\",tblGPLookup[[#This Row],[Alloc]]=\"WYU\",tblGPLookup[[#This Row],[Alloc]]=\"WYP\",tblGPLookup[[#This Row],[Alloc]]=\"CA\",tblGPLookup[[#This Row],[Alloc]]=\"WA\"),\"SITUS\",tblGPLookup[[#This Row],[Alloc]])","v":"SO"},"PTD"]
[{"$f":"CONCATENATE(tblGPLookup[[#This Row],[Primary Account]],tblGPLookup[[#This Row],[Primary Name]],tblGPLookup[[#This Row],[Secondary Acct]],tblGPLookup[[#This Row],[Secondary  Name]],tblGPLookup[[#This Row],[Alloc4FUNC]])","v":"1010000ELEC PLANT IN SERV3920900TRAILERSSITUS"},1010000,"ELEC PLANT IN SERV",3920900,"TRAILERS","SITUS",null,{"$f":"IF(OR(tblGPLookup[[#This Row],[Alloc]]=\"IDU\",tblGPLookup[[#This Row],[Alloc]]=\"OR\",tblGPLookup[[#This Row],[Alloc]]=\"UT\",tblGPLookup[[#This Row],[Alloc]]=\"WYU\",tblGPLookup[[#This Row],[Alloc]]=\"WYP\",tblGPLookup[[#This Row],[Alloc]]=\"CA\",tblGPLookup[[#This Row],[Alloc]]=\"WA\"),\"SITUS\",tblGPLookup[[#This Row],[Alloc]])","v":"SITUS"},"DPW"]
[{"$f":"CONCATENATE(tblGPLookup[[#This Row],[Primary Account]],tblGPLookup[[#This Row],[Primary Name]],tblGPLookup[[#This Row],[Secondary Acct]],tblGPLookup[[#This Row],[Secondary  Name]],tblGPLookup[[#This Row],[Alloc4FUNC]])","v":"1010000ELEC PLANT IN SERV3920900TRAILERSSITUS"},1010000,"ELEC PLANT IN SERV",3920900,"TRAILERS","SITUS",null,{"$f":"IF(OR(tblGPLookup[[#This Row],[Alloc]]=\"IDU\",tblGPLookup[[#This Row],[Alloc]]=\"OR\",tblGPLookup[[#This Row],[Alloc]]=\"UT\",tblGPLookup[[#This Row],[Alloc]]=\"WYU\",tblGPLookup[[#This Row],[Alloc]]=\"WYP\",tblGPLookup[[#This Row],[Alloc]]=\"CA\",tblGPLookup[[#This Row],[Alloc]]=\"WA\"),\"SITUS\",tblGPLookup[[#This Row],[Alloc]])","v":"SITUS"},"DPW"]
[{"$f":"CONCATENATE(tblGPLookup[[#This Row],[Primary Account]],tblGPLookup[[#This Row],[Primary Name]],tblGPLookup[[#This Row],[Secondary Acct]],tblGPLookup[[#This Row],[Secondary  Name]],tblGPLookup[[#This Row],[Alloc4FUNC]])","v":"1010000ELEC PLANT IN SERV3920900TRAILERSSITUS"},1010000,"ELEC PLANT IN SERV",3920900,"TRAILERS","SITUS",null,{"$f":"IF(OR(tblGPLookup[[#This Row],[Alloc]]=\"IDU\",tblGPLookup[[#This Row],[Alloc]]=\"OR\",tblGPLookup[[#This Row],[Alloc]]=\"UT\",tblGPLookup[[#This Row],[Alloc]]=\"WYU\",tblGPLookup[[#This Row],[Alloc]]=\"WYP\",tblGPLookup[[#This Row],[Alloc]]=\"CA\",tblGPLookup[[#This Row],[Alloc]]=\"WA\"),\"SITUS\",tblGPLookup[[#This Row],[Alloc]])","v":"SITUS"},"DPW"]
[{"$f":"CONCATENATE(tblGPLookup[[#This Row],[Primary Account]],tblGPLookup[[#This Row],[Primary Name]],tblGPLookup[[#This Row],[Secondary Acct]],tblGPLookup[[#This Row],[Secondary  Name]],tblGPLookup[[#This Row],[Alloc4FUNC]])","v":"1010000ELEC PLANT IN SERV3920900TRAILERSSITUS"},1010000,"ELEC PLANT IN SERV",3920900,"TRAILERS","SITUS",null,{"$f":"IF(OR(tblGPLookup[[#This Row],[Alloc]]=\"IDU\",tblGPLookup[[#This Row],[Alloc]]=\"OR\",tblGPLookup[[#This Row],[Alloc]]=\"UT\",tblGPLookup[[#This Row],[Alloc]]=\"WYU\",tblGPLookup[[#This Row],[Alloc]]=\"WYP\",tblGPLookup[[#This Row],[Alloc]]=\"CA\",tblGPLookup[[#This Row],[Alloc]]=\"WA\"),\"SITUS\",tblGPLookup[[#This Row],[Alloc]])","v":"SITUS"},"DPW"]
[{"$f":"CONCATENATE(tblGPLookup[[#This Row],[Primary Account]],tblGPLookup[[#This Row],[Primary Name]],tblGPLookup[[#This Row],[Secondary Acct]],tblGPLookup[[#This Row],[Secondary  Name]],tblGPLookup[[#This Row],[Alloc4FUNC]])","v":"1010000ELEC PLANT IN SERV3921400\"SNOWMOBILES, MOTORCYCLES (4-WHEELED ATVSITUS"},1010000,"ELEC PLANT IN SERV",3921400,"\"SNOWMOBILES, MOTORCYCLES (4-WHEELED ATV","SITUS",null,{"$f":"IF(OR(tblGPLookup[[#This Row],[Alloc]]=\"IDU\",tblGPLookup[[#This Row],[Alloc]]=\"OR\",tblGPLookup[[#This Row],[Alloc]]=\"UT\",tblGPLookup[[#This Row],[Alloc]]=\"WYU\",tblGPLookup[[#This Row],[Alloc]]=\"WYP\",tblGPLookup[[#This Row],[Alloc]]=\"CA\",tblGPLookup[[#This Row],[Alloc]]=\"WA\"),\"SITUS\",tblGPLookup[[#This Row],[Alloc]])","v":"SITUS"},"DPW"]
[{"$f":"CONCATENATE(tblGPLookup[[#This Row],[Primary Account]],tblGPLookup[[#This Row],[Primary Name]],tblGPLookup[[#This Row],[Secondary Acct]],tblGPLookup[[#This Row],[Secondary  Name]],tblGPLookup[[#This Row],[Alloc4FUNC]])","v":"1010000ELEC PLANT IN SERV3921400\"SNOWMOBILES, MOTORCYCLES (4-WHEELED ATVSITUS"},1010000,"ELEC PLANT IN SERV",3921400,"\"SNOWMOBILES, MOTORCYCLES (4-WHEELED ATV","SITUS",null,{"$f":"IF(OR(tblGPLookup[[#This Row],[Alloc]]=\"IDU\",tblGPLookup[[#This Row],[Alloc]]=\"OR\",tblGPLookup[[#This Row],[Alloc]]=\"UT\",tblGPLookup[[#This Row],[Alloc]]=\"WYU\",tblGPLookup[[#This Row],[Alloc]]=\"WYP\",tblGPLookup[[#This Row],[Alloc]]=\"CA\",tblGPLookup[[#This Row],[Alloc]]=\"WA\"),\"SITUS\",tblGPLookup[[#This Row],[Alloc]])","v":"SITUS"},"DPW"]
[{"$f":"CONCATENATE(tblGPLookup[[#This Row],[Primary Account]],tblGPLookup[[#This Row],[Primary Name]],tblGPLookup[[#This Row],[Secondary Acct]],tblGPLookup[[#This Row],[Secondary  Name]],tblGPLookup[[#This Row],[Alloc4FUNC]])","v":"1010000ELEC PLANT IN SERV3921400\"SNOWMOBILES, MOTORCYCLES (4-WHEELED ATVSE"},1010000,"ELEC PLANT IN SERV",3921400,"\"SNOWMOBILES, MOTORCYCLES (4-WHEELED ATV","SE",null,{"$f":"IF(OR(tblGPLookup[[#This Row],[Alloc]]=\"IDU\",tblGPLookup[[#This Row],[Alloc]]=\"OR\",tblGPLookup[[#This Row],[Alloc]]=\"UT\",tblGPLookup[[#This Row],[Alloc]]=\"WYU\",tblGPLookup[[#This Row],[Alloc]]=\"WYP\",tblGPLookup[[#This Row],[Alloc]]=\"CA\",tblGPLookup[[#This Row],[Alloc]]=\"WA\"),\"SITUS\",tblGPLookup[[#This Row],[Alloc]])","v":"SE"},"P"]
[{"$f":"CONCATENATE(tblGPLookup[[#This Row],[Primary Account]],tblGPLookup[[#This Row],[Primary Name]],tblGPLookup[[#This Row],[Secondary Acct]],tblGPLookup[[#This Row],[Secondary  Name]],tblGPLookup[[#This Row],[Alloc4FUNC]])","v":"1010000ELEC PLANT IN SERV3921400\"SNOWMOBILES, MOTORCYCLES (4-WHEELED ATVSG"},1010000,"ELEC PLANT IN SERV",3921400,"\"SNOWMOBILES, MOTORCYCLES (4-WHEELED ATV","SG",null,{"$f":"IF(OR(tblGPLookup[[#This Row],[Alloc]]=\"IDU\",tblGPLookup[[#This Row],[Alloc]]=\"OR\",tblGPLookup[[#This Row],[Alloc]]=\"UT\",tblGPLookup[[#This Row],[Alloc]]=\"WYU\",tblGPLookup[[#This Row],[Alloc]]=\"WYP\",tblGPLookup[[#This Row],[Alloc]]=\"CA\",tblGPLookup[[#This Row],[Alloc]]=\"WA\"),\"SITUS\",tblGPLookup[[#This Row],[Alloc]])","v":"SG"},"P"]
[{"$f":"CONCATENATE(tblGPLookup[[#This Row],[Primary Account]],tblGPLookup[[#This Row],[Primary Name]],tblGPLookup[[#This Row],[Secondary Acct]],tblGPLookup[[#This Row],[Secondary  Name]],tblGPLookup[[#This Row],[Alloc4FUNC]])","v":"1010000ELEC PLANT IN SERV3921400\"SNOWMOBILES, MOTORCYCLES (4-WHEELED ATVSITUS"},1010000,"ELEC PLANT IN SERV",3921400,"\"SNOWMOBILES, MOTORCYCLES (4-WHEELED ATV","SITUS",null,{"$f":"IF(OR(tblGPLookup[[#This Row],[Alloc]]=\"IDU\",tblGPLookup[[#This Row],[Alloc]]=\"OR\",tblGPLookup[[#This Row],[Alloc]]=\"UT\",tblGPLookup[[#This Row],[Alloc]]=\"WYU\",tblGPLookup[[#This Row],[Alloc]]=\"WYP\",tblGPLookup[[#This Row],[Alloc]]=\"CA\",tblGPLookup[[#This Row],[Alloc]]=\"WA\"),\"SITUS\",tblGPLookup[[#This Row],[Alloc]])","v":"SITUS"},"DPW"]
[{"$f":"CONCATENATE(tblGPLookup[[#This Row],[Primary Account]],tblGPLookup[[#This Row],[Primary Name]],tblGPLookup[[#This Row],[Secondary Acct]],tblGPLookup[[#This Row],[Secondary  Name]],tblGPLookup[[#This Row],[Alloc4FUNC]])","v":"1010000ELEC PLANT IN SERV3921400\"SNOWMOBILES, MOTORCYCLES (4-WHEELED ATVSO"},1010000,"ELEC PLANT IN SERV",3921400,"\"SNOWMOBILES, MOTORCYCLES (4-WHEELED ATV","SO",null,{"$f":"IF(OR(tblGPLookup[[#This Row],[Alloc]]=\"IDU\",tblGPLookup[[#This Row],[Alloc]]=\"OR\",tblGPLookup[[#This Row],[Alloc]]=\"UT\",tblGPLookup[[#This Row],[Alloc]]=\"WYU\",tblGPLookup[[#This Row],[Alloc]]=\"WYP\",tblGPLookup[[#This Row],[Alloc]]=\"CA\",tblGPLookup[[#This Row],[Alloc]]=\"WA\"),\"SITUS\",tblGPLookup[[#This Row],[Alloc]])","v":"SO"},"PTD"]
[{"$f":"CONCATENATE(tblGPLookup[[#This Row],[Primary Account]],tblGPLookup[[#This Row],[Primary Name]],tblGPLookup[[#This Row],[Secondary Acct]],tblGPLookup[[#This Row],[Secondary  Name]],tblGPLookup[[#This Row],[Alloc4FUNC]])","v":"1010000ELEC PLANT IN SERV3921400\"SNOWMOBILES, MOTORCYCLES (4-WHEELED ATVSITUS"},1010000,"ELEC PLANT IN SERV",3921400,"\"SNOWMOBILES, MOTORCYCLES (4-WHEELED ATV","SITUS",null,{"$f":"IF(OR(tblGPLookup[[#This Row],[Alloc]]=\"IDU\",tblGPLookup[[#This Row],[Alloc]]=\"OR\",tblGPLookup[[#This Row],[Alloc]]=\"UT\",tblGPLookup[[#This Row],[Alloc]]=\"WYU\",tblGPLookup[[#This Row],[Alloc]]=\"WYP\",tblGPLookup[[#This Row],[Alloc]]=\"CA\",tblGPLookup[[#This Row],[Alloc]]=\"WA\"),\"SITUS\",tblGPLookup[[#This Row],[Alloc]])","v":"SITUS"},"DPW"]
[{"$f":"CONCATENATE(tblGPLookup[[#This Row],[Primary Account]],tblGPLookup[[#This Row],[Primary Name]],tblGPLookup[[#This Row],[Secondary Acct]],tblGPLookup[[#This Row],[Secondary  Name]],tblGPLookup[[#This Row],[Alloc4FUNC]])","v":"1010000ELEC PLANT IN SERV3921400\"SNOWMOBILES, MOTORCYCLES (4-WHEELED ATVSITUS"},1010000,"ELEC PLANT IN SERV",3921400,"\"SNOWMOBILES, MOTORCYCLES (4-WHEELED ATV","SITUS",null,{"$f":"IF(OR(tblGPLookup[[#This Row],[Alloc]]=\"IDU\",tblGPLookup[[#This Row],[Alloc]]=\"OR\",tblGPLookup[[#This Row],[Alloc]]=\"UT\",tblGPLookup[[#This Row],[Alloc]]=\"WYU\",tblGPLookup[[#This Row],[Alloc]]=\"WYP\",tblGPLookup[[#This Row],[Alloc]]=\"CA\",tblGPLookup[[#This Row],[Alloc]]=\"WA\"),\"SITUS\",tblGPLookup[[#This Row],[Alloc]])","v":"SITUS"},"DPW"]
[{"$f":"CONCATENATE(tblGPLookup[[#This Row],[Primary Account]],tblGPLookup[[#This Row],[Primary Name]],tblGPLookup[[#This Row],[Secondary Acct]],tblGPLookup[[#This Row],[Secondary  Name]],tblGPLookup[[#This Row],[Alloc4FUNC]])","v":"1010000ELEC PLANT IN SERV3921400\"SNOWMOBILES, MOTORCYCLES (4-WHEELED ATVSITUS"},1010000,"ELEC PLANT IN SERV",3921400,"\"SNOWMOBILES, MOTORCYCLES (4-WHEELED ATV","SITUS",null,{"$f":"IF(OR(tblGPLookup[[#This Row],[Alloc]]=\"IDU\",tblGPLookup[[#This Row],[Alloc]]=\"OR\",tblGPLookup[[#This Row],[Alloc]]=\"UT\",tblGPLookup[[#This Row],[Alloc]]=\"WYU\",tblGPLookup[[#This Row],[Alloc]]=\"WYP\",tblGPLookup[[#This Row],[Alloc]]=\"CA\",tblGPLookup[[#This Row],[Alloc]]=\"WA\"),\"SITUS\",tblGPLookup[[#This Row],[Alloc]])","v":"SITUS"},"DPW"]
[{"$f":"CONCATENATE(tblGPLookup[[#This Row],[Primary Account]],tblGPLookup[[#This Row],[Primary Name]],tblGPLookup[[#This Row],[Secondary Acct]],tblGPLookup[[#This Row],[Secondary  Name]],tblGPLookup[[#This Row],[Alloc4FUNC]])","v":"1010000ELEC PLANT IN SERV3921400\"SNOWMOBILES, MOTORCYCLES (4-WHEELED ATVSITUS"},1010000,"ELEC PLANT IN SERV",3921400,"\"SNOWMOBILES, MOTORCYCLES (4-WHEELED ATV","SITUS",null,{"$f":"IF(OR(tblGPLookup[[#This Row],[Alloc]]=\"IDU\",tblGPLookup[[#This Row],[Alloc]]=\"OR\",tblGPLookup[[#This Row],[Alloc]]=\"UT\",tblGPLookup[[#This Row],[Alloc]]=\"WYU\",tblGPLookup[[#This Row],[Alloc]]=\"WYP\",tblGPLookup[[#This Row],[Alloc]]=\"CA\",tblGPLookup[[#This Row],[Alloc]]=\"WA\"),\"SITUS\",tblGPLookup[[#This Row],[Alloc]])","v":"SITUS"},"DPW"]
[{"$f":"CONCATENATE(tblGPLookup[[#This Row],[Primary Account]],tblGPLookup[[#This Row],[Primary Name]],tblGPLookup[[#This Row],[Secondary Acct]],tblGPLookup[[#This Row],[Secondary  Name]],tblGPLookup[[#This Row],[Alloc4FUNC]])","v":"1010000ELEC PLANT IN SERV3921900OVER-THE-ROAD SEMI-TRACTORSSITUS"},1010000,"ELEC PLANT IN SERV",3921900,"OVER-THE-ROAD SEMI-TRACTORS","SITUS",null,{"$f":"IF(OR(tblGPLookup[[#This Row],[Alloc]]=\"IDU\",tblGPLookup[[#This Row],[Alloc]]=\"OR\",tblGPLookup[[#This Row],[Alloc]]=\"UT\",tblGPLookup[[#This Row],[Alloc]]=\"WYU\",tblGPLookup[[#This Row],[Alloc]]=\"WYP\",tblGPLookup[[#This Row],[Alloc]]=\"CA\",tblGPLookup[[#This Row],[Alloc]]=\"WA\"),\"SITUS\",tblGPLookup[[#This Row],[Alloc]])","v":"SITUS"},"DPW"]
[{"$f":"CONCATENATE(tblGPLookup[[#This Row],[Primary Account]],tblGPLookup[[#This Row],[Primary Name]],tblGPLookup[[#This Row],[Secondary Acct]],tblGPLookup[[#This Row],[Secondary  Name]],tblGPLookup[[#This Row],[Alloc4FUNC]])","v":"1010000ELEC PLANT IN SERV3921900OVER-THE-ROAD SEMI-TRACTORSSG"},1010000,"ELEC PLANT IN SERV",3921900,"OVER-THE-ROAD SEMI-TRACTORS","SG",null,{"$f":"IF(OR(tblGPLookup[[#This Row],[Alloc]]=\"IDU\",tblGPLookup[[#This Row],[Alloc]]=\"OR\",tblGPLookup[[#This Row],[Alloc]]=\"UT\",tblGPLookup[[#This Row],[Alloc]]=\"WYU\",tblGPLookup[[#This Row],[Alloc]]=\"WYP\",tblGPLookup[[#This Row],[Alloc]]=\"CA\",tblGPLookup[[#This Row],[Alloc]]=\"WA\"),\"SITUS\",tblGPLookup[[#This Row],[Alloc]])","v":"SG"},"P"]
[{"$f":"CONCATENATE(tblGPLookup[[#This Row],[Primary Account]],tblGPLookup[[#This Row],[Primary Name]],tblGPLookup[[#This Row],[Secondary Acct]],tblGPLookup[[#This Row],[Secondary  Name]],tblGPLookup[[#This Row],[Alloc4FUNC]])","v":"1010000ELEC PLANT IN SERV3921900OVER-THE-ROAD SEMI-TRACTORSSO"},1010000,"ELEC PLANT IN SERV",3921900,"OVER-THE-ROAD SEMI-TRACTORS","SO",null,{"$f":"IF(OR(tblGPLookup[[#This Row],[Alloc]]=\"IDU\",tblGPLookup[[#This Row],[Alloc]]=\"OR\",tblGPLookup[[#This Row],[Alloc]]=\"UT\",tblGPLookup[[#This Row],[Alloc]]=\"WYU\",tblGPLookup[[#This Row],[Alloc]]=\"WYP\",tblGPLookup[[#This Row],[Alloc]]=\"CA\",tblGPLookup[[#This Row],[Alloc]]=\"WA\"),\"SITUS\",tblGPLookup[[#This Row],[Alloc]])","v":"SO"},"PTD"]
[{"$f":"CONCATENATE(tblGPLookup[[#This Row],[Primary Account]],tblGPLookup[[#This Row],[Primary Name]],tblGPLookup[[#This Row],[Secondary Acct]],tblGPLookup[[#This Row],[Secondary  Name]],tblGPLookup[[#This Row],[Alloc4FUNC]])","v":"1010000ELEC PLANT IN SERV3921900OVER-THE-ROAD SEMI-TRACTORSSITUS"},1010000,"ELEC PLANT IN SERV",3921900,"OVER-THE-ROAD SEMI-TRACTORS","SITUS",null,{"$f":"IF(OR(tblGPLookup[[#This Row],[Alloc]]=\"IDU\",tblGPLookup[[#This Row],[Alloc]]=\"OR\",tblGPLookup[[#This Row],[Alloc]]=\"UT\",tblGPLookup[[#This Row],[Alloc]]=\"WYU\",tblGPLookup[[#This Row],[Alloc]]=\"WYP\",tblGPLookup[[#This Row],[Alloc]]=\"CA\",tblGPLookup[[#This Row],[Alloc]]=\"WA\"),\"SITUS\",tblGPLookup[[#This Row],[Alloc]])","v":"SITUS"},"DPW"]
[{"$f":"CONCATENATE(tblGPLookup[[#This Row],[Primary Account]],tblGPLookup[[#This Row],[Primary Name]],tblGPLookup[[#This Row],[Secondary Acct]],tblGPLookup[[#This Row],[Secondary  Name]],tblGPLookup[[#This Row],[Alloc4FUNC]])","v":"1010000ELEC PLANT IN SERV3921900OVER-THE-ROAD SEMI-TRACTORSSITUS"},1010000,"ELEC PLANT IN SERV",3921900,"OVER-THE-ROAD SEMI-TRACTORS","SITUS",null,{"$f":"IF(OR(tblGPLookup[[#This Row],[Alloc]]=\"IDU\",tblGPLookup[[#This Row],[Alloc]]=\"OR\",tblGPLookup[[#This Row],[Alloc]]=\"UT\",tblGPLookup[[#This Row],[Alloc]]=\"WYU\",tblGPLookup[[#This Row],[Alloc]]=\"WYP\",tblGPLookup[[#This Row],[Alloc]]=\"CA\",tblGPLookup[[#This Row],[Alloc]]=\"WA\"),\"SITUS\",tblGPLookup[[#This Row],[Alloc]])","v":"SITUS"},"DPW"]
[{"$f":"CONCATENATE(tblGPLookup[[#This Row],[Primary Account]],tblGPLookup[[#This Row],[Primary Name]],tblGPLookup[[#This Row],[Secondary Acct]],tblGPLookup[[#This Row],[Secondary  Name]],tblGPLookup[[#This Row],[Alloc4FUNC]])","v":"1010000ELEC PLANT IN SERV3921900OVER-THE-ROAD SEMI-TRACTORSSITUS"},1010000,"ELEC PLANT IN SERV",3921900,"OVER-THE-ROAD SEMI-TRACTORS","SITUS",null,{"$f":"IF(OR(tblGPLookup[[#This Row],[Alloc]]=\"IDU\",tblGPLookup[[#This Row],[Alloc]]=\"OR\",tblGPLookup[[#This Row],[Alloc]]=\"UT\",tblGPLookup[[#This Row],[Alloc]]=\"WYU\",tblGPLookup[[#This Row],[Alloc]]=\"WYP\",tblGPLookup[[#This Row],[Alloc]]=\"CA\",tblGPLookup[[#This Row],[Alloc]]=\"WA\"),\"SITUS\",tblGPLookup[[#This Row],[Alloc]])","v":"SITUS"},"DPW"]
[{"$f":"CONCATENATE(tblGPLookup[[#This Row],[Primary Account]],tblGPLookup[[#This Row],[Primary Name]],tblGPLookup[[#This Row],[Secondary Acct]],tblGPLookup[[#This Row],[Secondary  Name]],tblGPLookup[[#This Row],[Alloc4FUNC]])","v":"1010000ELEC PLANT IN SERV3923000TRANSPORTATION EQUIPMENTSO"},1010000,"ELEC PLANT IN SERV",3923000,"TRANSPORTATION EQUIPMENT","SO",null,{"$f":"IF(OR(tblGPLookup[[#This Row],[Alloc]]=\"IDU\",tblGPLookup[[#This Row],[Alloc]]=\"OR\",tblGPLookup[[#This Row],[Alloc]]=\"UT\",tblGPLookup[[#This Row],[Alloc]]=\"WYU\",tblGPLookup[[#This Row],[Alloc]]=\"WYP\",tblGPLookup[[#This Row],[Alloc]]=\"CA\",tblGPLookup[[#This Row],[Alloc]]=\"WA\"),\"SITUS\",tblGPLookup[[#This Row],[Alloc]])","v":"SO"},"PTD"]
[{"$f":"CONCATENATE(tblGPLookup[[#This Row],[Primary Account]],tblGPLookup[[#This Row],[Primary Name]],tblGPLookup[[#This Row],[Secondary Acct]],tblGPLookup[[#This Row],[Secondary  Name]],tblGPLookup[[#This Row],[Alloc4FUNC]])","v":"1010000ELEC PLANT IN SERV3930000STORES EQUIPMENTSITUS"},1010000,"ELEC PLANT IN SERV",3930000,"STORES EQUIPMENT","SITUS",null,{"$f":"IF(OR(tblGPLookup[[#This Row],[Alloc]]=\"IDU\",tblGPLookup[[#This Row],[Alloc]]=\"OR\",tblGPLookup[[#This Row],[Alloc]]=\"UT\",tblGPLookup[[#This Row],[Alloc]]=\"WYU\",tblGPLookup[[#This Row],[Alloc]]=\"WYP\",tblGPLookup[[#This Row],[Alloc]]=\"CA\",tblGPLookup[[#This Row],[Alloc]]=\"WA\"),\"SITUS\",tblGPLookup[[#This Row],[Alloc]])","v":"SITUS"},"TD"]
[{"$f":"CONCATENATE(tblGPLookup[[#This Row],[Primary Account]],tblGPLookup[[#This Row],[Primary Name]],tblGPLookup[[#This Row],[Secondary Acct]],tblGPLookup[[#This Row],[Secondary  Name]],tblGPLookup[[#This Row],[Alloc4FUNC]])","v":"1010000ELEC PLANT IN SERV3930000STORES EQUIPMENTSITUS"},1010000,"ELEC PLANT IN SERV",3930000,"STORES EQUIPMENT","SITUS",null,{"$f":"IF(OR(tblGPLookup[[#This Row],[Alloc]]=\"IDU\",tblGPLookup[[#This Row],[Alloc]]=\"OR\",tblGPLookup[[#This Row],[Alloc]]=\"UT\",tblGPLookup[[#This Row],[Alloc]]=\"WYU\",tblGPLookup[[#This Row],[Alloc]]=\"WYP\",tblGPLookup[[#This Row],[Alloc]]=\"CA\",tblGPLookup[[#This Row],[Alloc]]=\"WA\"),\"SITUS\",tblGPLookup[[#This Row],[Alloc]])","v":"SITUS"},"TD"]
[{"$f":"CONCATENATE(tblGPLookup[[#This Row],[Primary Account]],tblGPLookup[[#This Row],[Primary Name]],tblGPLookup[[#This Row],[Secondary Acct]],tblGPLookup[[#This Row],[Secondary  Name]],tblGPLookup[[#This Row],[Alloc4FUNC]])","v":"1010000ELEC PLANT IN SERV3930000STORES EQUIPMENTSG"},1010000,"ELEC PLANT IN SERV",3930000,"STORES EQUIPMENT","SG",null,{"$f":"IF(OR(tblGPLookup[[#This Row],[Alloc]]=\"IDU\",tblGPLookup[[#This Row],[Alloc]]=\"OR\",tblGPLookup[[#This Row],[Alloc]]=\"UT\",tblGPLookup[[#This Row],[Alloc]]=\"WYU\",tblGPLookup[[#This Row],[Alloc]]=\"WYP\",tblGPLookup[[#This Row],[Alloc]]=\"CA\",tblGPLookup[[#This Row],[Alloc]]=\"WA\"),\"SITUS\",tblGPLookup[[#This Row],[Alloc]])","v":"SG"},"P"]
[{"$f":"CONCATENATE(tblGPLookup[[#This Row],[Primary Account]],tblGPLookup[[#This Row],[Primary Name]],tblGPLookup[[#This Row],[Secondary Acct]],tblGPLookup[[#This Row],[Secondary  Name]],tblGPLookup[[#This Row],[Alloc4FUNC]])","v":"1010000ELEC PLANT IN SERV3930000STORES EQUIPMENTSITUS"},1010000,"ELEC PLANT IN SERV",3930000,"STORES EQUIPMENT","SITUS",null,{"$f":"IF(OR(tblGPLookup[[#This Row],[Alloc]]=\"IDU\",tblGPLookup[[#This Row],[Alloc]]=\"OR\",tblGPLookup[[#This Row],[Alloc]]=\"UT\",tblGPLookup[[#This Row],[Alloc]]=\"WYU\",tblGPLookup[[#This Row],[Alloc]]=\"WYP\",tblGPLookup[[#This Row],[Alloc]]=\"CA\",tblGPLookup[[#This Row],[Alloc]]=\"WA\"),\"SITUS\",tblGPLookup[[#This Row],[Alloc]])","v":"SITUS"},"TD"]
[{"$f":"CONCATENATE(tblGPLookup[[#This Row],[Primary Account]],tblGPLookup[[#This Row],[Primary Name]],tblGPLookup[[#This Row],[Secondary Acct]],tblGPLookup[[#This Row],[Secondary  Name]],tblGPLookup[[#This Row],[Alloc4FUNC]])","v":"1010000ELEC PLANT IN SERV3930000STORES EQUIPMENTSO"},1010000,"ELEC PLANT IN SERV",3930000,"STORES EQUIPMENT","SO",null,{"$f":"IF(OR(tblGPLookup[[#This Row],[Alloc]]=\"IDU\",tblGPLookup[[#This Row],[Alloc]]=\"OR\",tblGPLookup[[#This Row],[Alloc]]=\"UT\",tblGPLookup[[#This Row],[Alloc]]=\"WYU\",tblGPLookup[[#This Row],[Alloc]]=\"WYP\",tblGPLookup[[#This Row],[Alloc]]=\"CA\",tblGPLookup[[#This Row],[Alloc]]=\"WA\"),\"SITUS\",tblGPLookup[[#This Row],[Alloc]])","v":"SO"},"PTD"]
[{"$f":"CONCATENATE(tblGPLookup[[#This Row],[Primary Account]],tblGPLookup[[#This Row],[Primary Name]],tblGPLookup[[#This Row],[Secondary Acct]],tblGPLookup[[#This Row],[Secondary  Name]],tblGPLookup[[#This Row],[Alloc4FUNC]])","v":"1010000ELEC PLANT IN SERV3930000STORES EQUIPMENTSITUS"},1010000,"ELEC PLANT IN SERV",3930000,"STORES EQUIPMENT","SITUS",null,{"$f":"IF(OR(tblGPLookup[[#This Row],[Alloc]]=\"IDU\",tblGPLookup[[#This Row],[Alloc]]=\"OR\",tblGPLookup[[#This Row],[Alloc]]=\"UT\",tblGPLookup[[#This Row],[Alloc]]=\"WYU\",tblGPLookup[[#This Row],[Alloc]]=\"WYP\",tblGPLookup[[#This Row],[Alloc]]=\"CA\",tblGPLookup[[#This Row],[Alloc]]=\"WA\"),\"SITUS\",tblGPLookup[[#This Row],[Alloc]])","v":"SITUS"},"TD"]
[{"$f":"CONCATENATE(tblGPLookup[[#This Row],[Primary Account]],tblGPLookup[[#This Row],[Primary Name]],tblGPLookup[[#This Row],[Secondary Acct]],tblGPLookup[[#This Row],[Secondary  Name]],tblGPLookup[[#This Row],[Alloc4FUNC]])","v":"1010000ELEC PLANT IN SERV3930000STORES EQUIPMENTSITUS"},1010000,"ELEC PLANT IN SERV",3930000,"STORES EQUIPMENT","SITUS",null,{"$f":"IF(OR(tblGPLookup[[#This Row],[Alloc]]=\"IDU\",tblGPLookup[[#This Row],[Alloc]]=\"OR\",tblGPLookup[[#This Row],[Alloc]]=\"UT\",tblGPLookup[[#This Row],[Alloc]]=\"WYU\",tblGPLookup[[#This Row],[Alloc]]=\"WYP\",tblGPLookup[[#This Row],[Alloc]]=\"CA\",tblGPLookup[[#This Row],[Alloc]]=\"WA\"),\"SITUS\",tblGPLookup[[#This Row],[Alloc]])","v":"SITUS"},"TD"]
[{"$f":"CONCATENATE(tblGPLookup[[#This Row],[Primary Account]],tblGPLookup[[#This Row],[Primary Name]],tblGPLookup[[#This Row],[Secondary Acct]],tblGPLookup[[#This Row],[Secondary  Name]],tblGPLookup[[#This Row],[Alloc4FUNC]])","v":"1010000ELEC PLANT IN SERV3930000STORES EQUIPMENTSITUS"},1010000,"ELEC PLANT IN SERV",3930000,"STORES EQUIPMENT","SITUS",null,{"$f":"IF(OR(tblGPLookup[[#This Row],[Alloc]]=\"IDU\",tblGPLookup[[#This Row],[Alloc]]=\"OR\",tblGPLookup[[#This Row],[Alloc]]=\"UT\",tblGPLookup[[#This Row],[Alloc]]=\"WYU\",tblGPLookup[[#This Row],[Alloc]]=\"WYP\",tblGPLookup[[#This Row],[Alloc]]=\"CA\",tblGPLookup[[#This Row],[Alloc]]=\"WA\"),\"SITUS\",tblGPLookup[[#This Row],[Alloc]])","v":"SITUS"},"TD"]
[{"$f":"CONCATENATE(tblGPLookup[[#This Row],[Primary Account]],tblGPLookup[[#This Row],[Primary Name]],tblGPLookup[[#This Row],[Secondary Acct]],tblGPLookup[[#This Row],[Secondary  Name]],tblGPLookup[[#This Row],[Alloc4FUNC]])","v":"1010000ELEC PLANT IN SERV3930000STORES EQUIPMENTSITUS"},1010000,"ELEC PLANT IN SERV",3930000,"STORES EQUIPMENT","SITUS",null,{"$f":"IF(OR(tblGPLookup[[#This Row],[Alloc]]=\"IDU\",tblGPLookup[[#This Row],[Alloc]]=\"OR\",tblGPLookup[[#This Row],[Alloc]]=\"UT\",tblGPLookup[[#This Row],[Alloc]]=\"WYU\",tblGPLookup[[#This Row],[Alloc]]=\"WYP\",tblGPLookup[[#This Row],[Alloc]]=\"CA\",tblGPLookup[[#This Row],[Alloc]]=\"WA\"),\"SITUS\",tblGPLookup[[#This Row],[Alloc]])","v":"SITUS"},"TD"]
[{"$f":"CONCATENATE(tblGPLookup[[#This Row],[Primary Account]],tblGPLookup[[#This Row],[Primary Name]],tblGPLookup[[#This Row],[Secondary Acct]],tblGPLookup[[#This Row],[Secondary  Name]],tblGPLookup[[#This Row],[Alloc4FUNC]])","v":"1010000ELEC PLANT IN SERV3940000\"TLS, SHOP, GAR EQUIPMENT\"SITUS"},1010000,"ELEC PLANT IN SERV",3940000,"\"TLS, SHOP, GAR EQUIPMENT\"","SITUS",null,{"$f":"IF(OR(tblGPLookup[[#This Row],[Alloc]]=\"IDU\",tblGPLookup[[#This Row],[Alloc]]=\"OR\",tblGPLookup[[#This Row],[Alloc]]=\"UT\",tblGPLookup[[#This Row],[Alloc]]=\"WYU\",tblGPLookup[[#This Row],[Alloc]]=\"WYP\",tblGPLookup[[#This Row],[Alloc]]=\"CA\",tblGPLookup[[#This Row],[Alloc]]=\"WA\"),\"SITUS\",tblGPLookup[[#This Row],[Alloc]])","v":"SITUS"},"TD"]
[{"$f":"CONCATENATE(tblGPLookup[[#This Row],[Primary Account]],tblGPLookup[[#This Row],[Primary Name]],tblGPLookup[[#This Row],[Secondary Acct]],tblGPLookup[[#This Row],[Secondary  Name]],tblGPLookup[[#This Row],[Alloc4FUNC]])","v":"1010000ELEC PLANT IN SERV3940000\"TLS, SHOP, GAR EQUIPMENT\"SITUS"},1010000,"ELEC PLANT IN SERV",3940000,"\"TLS, SHOP, GAR EQUIPMENT\"","SITUS",null,{"$f":"IF(OR(tblGPLookup[[#This Row],[Alloc]]=\"IDU\",tblGPLookup[[#This Row],[Alloc]]=\"OR\",tblGPLookup[[#This Row],[Alloc]]=\"UT\",tblGPLookup[[#This Row],[Alloc]]=\"WYU\",tblGPLookup[[#This Row],[Alloc]]=\"WYP\",tblGPLookup[[#This Row],[Alloc]]=\"CA\",tblGPLookup[[#This Row],[Alloc]]=\"WA\"),\"SITUS\",tblGPLookup[[#This Row],[Alloc]])","v":"SITUS"},"TD"]
[{"$f":"CONCATENATE(tblGPLookup[[#This Row],[Primary Account]],tblGPLookup[[#This Row],[Primary Name]],tblGPLookup[[#This Row],[Secondary Acct]],tblGPLookup[[#This Row],[Secondary  Name]],tblGPLookup[[#This Row],[Alloc4FUNC]])","v":"1010000ELEC PLANT IN SERV3940000\"TLS, SHOP, GAR EQUIPMENT\"SE"},1010000,"ELEC PLANT IN SERV",3940000,"\"TLS, SHOP, GAR EQUIPMENT\"","SE",null,{"$f":"IF(OR(tblGPLookup[[#This Row],[Alloc]]=\"IDU\",tblGPLookup[[#This Row],[Alloc]]=\"OR\",tblGPLookup[[#This Row],[Alloc]]=\"UT\",tblGPLookup[[#This Row],[Alloc]]=\"WYU\",tblGPLookup[[#This Row],[Alloc]]=\"WYP\",tblGPLookup[[#This Row],[Alloc]]=\"CA\",tblGPLookup[[#This Row],[Alloc]]=\"WA\"),\"SITUS\",tblGPLookup[[#This Row],[Alloc]])","v":"SE"},"P"]
[{"$f":"CONCATENATE(tblGPLookup[[#This Row],[Primary Account]],tblGPLookup[[#This Row],[Primary Name]],tblGPLookup[[#This Row],[Secondary Acct]],tblGPLookup[[#This Row],[Secondary  Name]],tblGPLookup[[#This Row],[Alloc4FUNC]])","v":"1010000ELEC PLANT IN SERV3940000\"TLS, SHOP, GAR EQUIPMENT\"SG"},1010000,"ELEC PLANT IN SERV",3940000,"\"TLS, SHOP, GAR EQUIPMENT\"","SG",null,{"$f":"IF(OR(tblGPLookup[[#This Row],[Alloc]]=\"IDU\",tblGPLookup[[#This Row],[Alloc]]=\"OR\",tblGPLookup[[#This Row],[Alloc]]=\"UT\",tblGPLookup[[#This Row],[Alloc]]=\"WYU\",tblGPLookup[[#This Row],[Alloc]]=\"WYP\",tblGPLookup[[#This Row],[Alloc]]=\"CA\",tblGPLookup[[#This Row],[Alloc]]=\"WA\"),\"SITUS\",tblGPLookup[[#This Row],[Alloc]])","v":"SG"},"P"]
[{"$f":"CONCATENATE(tblGPLookup[[#This Row],[Primary Account]],tblGPLookup[[#This Row],[Primary Name]],tblGPLookup[[#This Row],[Secondary Acct]],tblGPLookup[[#This Row],[Secondary  Name]],tblGPLookup[[#This Row],[Alloc4FUNC]])","v":"1010000ELEC PLANT IN SERV3940000\"TLS, SHOP, GAR EQUIPMENT\"SITUS"},1010000,"ELEC PLANT IN SERV",3940000,"\"TLS, SHOP, GAR EQUIPMENT\"","SITUS",null,{"$f":"IF(OR(tblGPLookup[[#This Row],[Alloc]]=\"IDU\",tblGPLookup[[#This Row],[Alloc]]=\"OR\",tblGPLookup[[#This Row],[Alloc]]=\"UT\",tblGPLookup[[#This Row],[Alloc]]=\"WYU\",tblGPLookup[[#This Row],[Alloc]]=\"WYP\",tblGPLookup[[#This Row],[Alloc]]=\"CA\",tblGPLookup[[#This Row],[Alloc]]=\"WA\"),\"SITUS\",tblGPLookup[[#This Row],[Alloc]])","v":"SITUS"},"TD"]
[{"$f":"CONCATENATE(tblGPLookup[[#This Row],[Primary Account]],tblGPLookup[[#This Row],[Primary Name]],tblGPLookup[[#This Row],[Secondary Acct]],tblGPLookup[[#This Row],[Secondary  Name]],tblGPLookup[[#This Row],[Alloc4FUNC]])","v":"1010000ELEC PLANT IN SERV3940000\"TLS, SHOP, GAR EQUIPMENT\"SO"},1010000,"ELEC PLANT IN SERV",3940000,"\"TLS, SHOP, GAR EQUIPMENT\"","SO",null,{"$f":"IF(OR(tblGPLookup[[#This Row],[Alloc]]=\"IDU\",tblGPLookup[[#This Row],[Alloc]]=\"OR\",tblGPLookup[[#This Row],[Alloc]]=\"UT\",tblGPLookup[[#This Row],[Alloc]]=\"WYU\",tblGPLookup[[#This Row],[Alloc]]=\"WYP\",tblGPLookup[[#This Row],[Alloc]]=\"CA\",tblGPLookup[[#This Row],[Alloc]]=\"WA\"),\"SITUS\",tblGPLookup[[#This Row],[Alloc]])","v":"SO"},"PTD"]
[{"$f":"CONCATENATE(tblGPLookup[[#This Row],[Primary Account]],tblGPLookup[[#This Row],[Primary Name]],tblGPLookup[[#This Row],[Secondary Acct]],tblGPLookup[[#This Row],[Secondary  Name]],tblGPLookup[[#This Row],[Alloc4FUNC]])","v":"1010000ELEC PLANT IN SERV3940000\"TLS, SHOP, GAR EQUIPMENT\"SITUS"},1010000,"ELEC PLANT IN SERV",3940000,"\"TLS, SHOP, GAR EQUIPMENT\"","SITUS",null,{"$f":"IF(OR(tblGPLookup[[#This Row],[Alloc]]=\"IDU\",tblGPLookup[[#This Row],[Alloc]]=\"OR\",tblGPLookup[[#This Row],[Alloc]]=\"UT\",tblGPLookup[[#This Row],[Alloc]]=\"WYU\",tblGPLookup[[#This Row],[Alloc]]=\"WYP\",tblGPLookup[[#This Row],[Alloc]]=\"CA\",tblGPLookup[[#This Row],[Alloc]]=\"WA\"),\"SITUS\",tblGPLookup[[#This Row],[Alloc]])","v":"SITUS"},"TD"]
[{"$f":"CONCATENATE(tblGPLookup[[#This Row],[Primary Account]],tblGPLookup[[#This Row],[Primary Name]],tblGPLookup[[#This Row],[Secondary Acct]],tblGPLookup[[#This Row],[Secondary  Name]],tblGPLookup[[#This Row],[Alloc4FUNC]])","v":"1010000ELEC PLANT IN SERV3940000\"TLS, SHOP, GAR EQUIPMENT\"SITUS"},1010000,"ELEC PLANT IN SERV",3940000,"\"TLS, SHOP, GAR EQUIPMENT\"","SITUS",null,{"$f":"IF(OR(tblGPLookup[[#This Row],[Alloc]]=\"IDU\",tblGPLookup[[#This Row],[Alloc]]=\"OR\",tblGPLookup[[#This Row],[Alloc]]=\"UT\",tblGPLookup[[#This Row],[Alloc]]=\"WYU\",tblGPLookup[[#This Row],[Alloc]]=\"WYP\",tblGPLookup[[#This Row],[Alloc]]=\"CA\",tblGPLookup[[#This Row],[Alloc]]=\"WA\"),\"SITUS\",tblGPLookup[[#This Row],[Alloc]])","v":"SITUS"},"TD"]
[{"$f":"CONCATENATE(tblGPLookup[[#This Row],[Primary Account]],tblGPLookup[[#This Row],[Primary Name]],tblGPLookup[[#This Row],[Secondary Acct]],tblGPLookup[[#This Row],[Secondary  Name]],tblGPLookup[[#This Row],[Alloc4FUNC]])","v":"1010000ELEC PLANT IN SERV3940000\"TLS, SHOP, GAR EQUIPMENT\"SITUS"},1010000,"ELEC PLANT IN SERV",3940000,"\"TLS, SHOP, GAR EQUIPMENT\"","SITUS",null,{"$f":"IF(OR(tblGPLookup[[#This Row],[Alloc]]=\"IDU\",tblGPLookup[[#This Row],[Alloc]]=\"OR\",tblGPLookup[[#This Row],[Alloc]]=\"UT\",tblGPLookup[[#This Row],[Alloc]]=\"WYU\",tblGPLookup[[#This Row],[Alloc]]=\"WYP\",tblGPLookup[[#This Row],[Alloc]]=\"CA\",tblGPLookup[[#This Row],[Alloc]]=\"WA\"),\"SITUS\",tblGPLookup[[#This Row],[Alloc]])","v":"SITUS"},"TD"]
[{"$f":"CONCATENATE(tblGPLookup[[#This Row],[Primary Account]],tblGPLookup[[#This Row],[Primary Name]],tblGPLookup[[#This Row],[Secondary Acct]],tblGPLookup[[#This Row],[Secondary  Name]],tblGPLookup[[#This Row],[Alloc4FUNC]])","v":"1010000ELEC PLANT IN SERV3940000\"TLS, SHOP, GAR EQUIPMENT\"SITUS"},1010000,"ELEC PLANT IN SERV",3940000,"\"TLS, SHOP, GAR EQUIPMENT\"","SITUS",null,{"$f":"IF(OR(tblGPLookup[[#This Row],[Alloc]]=\"IDU\",tblGPLookup[[#This Row],[Alloc]]=\"OR\",tblGPLookup[[#This Row],[Alloc]]=\"UT\",tblGPLookup[[#This Row],[Alloc]]=\"WYU\",tblGPLookup[[#This Row],[Alloc]]=\"WYP\",tblGPLookup[[#This Row],[Alloc]]=\"CA\",tblGPLookup[[#This Row],[Alloc]]=\"WA\"),\"SITUS\",tblGPLookup[[#This Row],[Alloc]])","v":"SITUS"},"TD"]
[{"$f":"CONCATENATE(tblGPLookup[[#This Row],[Primary Account]],tblGPLookup[[#This Row],[Primary Name]],tblGPLookup[[#This Row],[Secondary Acct]],tblGPLookup[[#This Row],[Secondary  Name]],tblGPLookup[[#This Row],[Alloc4FUNC]])","v":"1010000ELEC PLANT IN SERV3950000LABORATORY EQUIPMENTSITUS"},1010000,"ELEC PLANT IN SERV",3950000,"LABORATORY EQUIPMENT","SITUS",null,{"$f":"IF(OR(tblGPLookup[[#This Row],[Alloc]]=\"IDU\",tblGPLookup[[#This Row],[Alloc]]=\"OR\",tblGPLookup[[#This Row],[Alloc]]=\"UT\",tblGPLookup[[#This Row],[Alloc]]=\"WYU\",tblGPLookup[[#This Row],[Alloc]]=\"WYP\",tblGPLookup[[#This Row],[Alloc]]=\"CA\",tblGPLookup[[#This Row],[Alloc]]=\"WA\"),\"SITUS\",tblGPLookup[[#This Row],[Alloc]])","v":"SITUS"},"TD"]
[{"$f":"CONCATENATE(tblGPLookup[[#This Row],[Primary Account]],tblGPLookup[[#This Row],[Primary Name]],tblGPLookup[[#This Row],[Secondary Acct]],tblGPLookup[[#This Row],[Secondary  Name]],tblGPLookup[[#This Row],[Alloc4FUNC]])","v":"1010000ELEC PLANT IN SERV3950000LABORATORY EQUIPMENTSITUS"},1010000,"ELEC PLANT IN SERV",3950000,"LABORATORY EQUIPMENT","SITUS",null,{"$f":"IF(OR(tblGPLookup[[#This Row],[Alloc]]=\"IDU\",tblGPLookup[[#This Row],[Alloc]]=\"OR\",tblGPLookup[[#This Row],[Alloc]]=\"UT\",tblGPLookup[[#This Row],[Alloc]]=\"WYU\",tblGPLookup[[#This Row],[Alloc]]=\"WYP\",tblGPLookup[[#This Row],[Alloc]]=\"CA\",tblGPLookup[[#This Row],[Alloc]]=\"WA\"),\"SITUS\",tblGPLookup[[#This Row],[Alloc]])","v":"SITUS"},"TD"]
[{"$f":"CONCATENATE(tblGPLookup[[#This Row],[Primary Account]],tblGPLookup[[#This Row],[Primary Name]],tblGPLookup[[#This Row],[Secondary Acct]],tblGPLookup[[#This Row],[Secondary  Name]],tblGPLookup[[#This Row],[Alloc4FUNC]])","v":"1010000ELEC PLANT IN SERV3950000LABORATORY EQUIPMENTSE"},1010000,"ELEC PLANT IN SERV",3950000,"LABORATORY EQUIPMENT","SE",null,{"$f":"IF(OR(tblGPLookup[[#This Row],[Alloc]]=\"IDU\",tblGPLookup[[#This Row],[Alloc]]=\"OR\",tblGPLookup[[#This Row],[Alloc]]=\"UT\",tblGPLookup[[#This Row],[Alloc]]=\"WYU\",tblGPLookup[[#This Row],[Alloc]]=\"WYP\",tblGPLookup[[#This Row],[Alloc]]=\"CA\",tblGPLookup[[#This Row],[Alloc]]=\"WA\"),\"SITUS\",tblGPLookup[[#This Row],[Alloc]])","v":"SE"},"P"]
[{"$f":"CONCATENATE(tblGPLookup[[#This Row],[Primary Account]],tblGPLookup[[#This Row],[Primary Name]],tblGPLookup[[#This Row],[Secondary Acct]],tblGPLookup[[#This Row],[Secondary  Name]],tblGPLookup[[#This Row],[Alloc4FUNC]])","v":"1010000ELEC PLANT IN SERV3950000LABORATORY EQUIPMENTSG"},1010000,"ELEC PLANT IN SERV",3950000,"LABORATORY EQUIPMENT","SG",null,{"$f":"IF(OR(tblGPLookup[[#This Row],[Alloc]]=\"IDU\",tblGPLookup[[#This Row],[Alloc]]=\"OR\",tblGPLookup[[#This Row],[Alloc]]=\"UT\",tblGPLookup[[#This Row],[Alloc]]=\"WYU\",tblGPLookup[[#This Row],[Alloc]]=\"WYP\",tblGPLookup[[#This Row],[Alloc]]=\"CA\",tblGPLookup[[#This Row],[Alloc]]=\"WA\"),\"SITUS\",tblGPLookup[[#This Row],[Alloc]])","v":"SG"},"P"]
[{"$f":"CONCATENATE(tblGPLookup[[#This Row],[Primary Account]],tblGPLookup[[#This Row],[Primary Name]],tblGPLookup[[#This Row],[Secondary Acct]],tblGPLookup[[#This Row],[Secondary  Name]],tblGPLookup[[#This Row],[Alloc4FUNC]])","v":"1010000ELEC PLANT IN SERV3950000LABORATORY EQUIPMENTSITUS"},1010000,"ELEC PLANT IN SERV",3950000,"LABORATORY EQUIPMENT","SITUS",null,{"$f":"IF(OR(tblGPLookup[[#This Row],[Alloc]]=\"IDU\",tblGPLookup[[#This Row],[Alloc]]=\"OR\",tblGPLookup[[#This Row],[Alloc]]=\"UT\",tblGPLookup[[#This Row],[Alloc]]=\"WYU\",tblGPLookup[[#This Row],[Alloc]]=\"WYP\",tblGPLookup[[#This Row],[Alloc]]=\"CA\",tblGPLookup[[#This Row],[Alloc]]=\"WA\"),\"SITUS\",tblGPLookup[[#This Row],[Alloc]])","v":"SITUS"},"TD"]
[{"$f":"CONCATENATE(tblGPLookup[[#This Row],[Primary Account]],tblGPLookup[[#This Row],[Primary Name]],tblGPLookup[[#This Row],[Secondary Acct]],tblGPLookup[[#This Row],[Secondary  Name]],tblGPLookup[[#This Row],[Alloc4FUNC]])","v":"1010000ELEC PLANT IN SERV3950000LABORATORY EQUIPMENTSO"},1010000,"ELEC PLANT IN SERV",3950000,"LABORATORY EQUIPMENT","SO",null,{"$f":"IF(OR(tblGPLookup[[#This Row],[Alloc]]=\"IDU\",tblGPLookup[[#This Row],[Alloc]]=\"OR\",tblGPLookup[[#This Row],[Alloc]]=\"UT\",tblGPLookup[[#This Row],[Alloc]]=\"WYU\",tblGPLookup[[#This Row],[Alloc]]=\"WYP\",tblGPLookup[[#This Row],[Alloc]]=\"CA\",tblGPLookup[[#This Row],[Alloc]]=\"WA\"),\"SITUS\",tblGPLookup[[#This Row],[Alloc]])","v":"SO"},"PTD"]
[{"$f":"CONCATENATE(tblGPLookup[[#This Row],[Primary Account]],tblGPLookup[[#This Row],[Primary Name]],tblGPLookup[[#This Row],[Secondary Acct]],tblGPLookup[[#This Row],[Secondary  Name]],tblGPLookup[[#This Row],[Alloc4FUNC]])","v":"1010000ELEC PLANT IN SERV3950000LABORATORY EQUIPMENTSITUS"},1010000,"ELEC PLANT IN SERV",3950000,"LABORATORY EQUIPMENT","SITUS",null,{"$f":"IF(OR(tblGPLookup[[#This Row],[Alloc]]=\"IDU\",tblGPLookup[[#This Row],[Alloc]]=\"OR\",tblGPLookup[[#This Row],[Alloc]]=\"UT\",tblGPLookup[[#This Row],[Alloc]]=\"WYU\",tblGPLookup[[#This Row],[Alloc]]=\"WYP\",tblGPLookup[[#This Row],[Alloc]]=\"CA\",tblGPLookup[[#This Row],[Alloc]]=\"WA\"),\"SITUS\",tblGPLookup[[#This Row],[Alloc]])","v":"SITUS"},"TD"]
[{"$f":"CONCATENATE(tblGPLookup[[#This Row],[Primary Account]],tblGPLookup[[#This Row],[Primary Name]],tblGPLookup[[#This Row],[Secondary Acct]],tblGPLookup[[#This Row],[Secondary  Name]],tblGPLookup[[#This Row],[Alloc4FUNC]])","v":"1010000ELEC PLANT IN SERV3950000LABORATORY EQUIPMENTSITUS"},1010000,"ELEC PLANT IN SERV",3950000,"LABORATORY EQUIPMENT","SITUS",null,{"$f":"IF(OR(tblGPLookup[[#This Row],[Alloc]]=\"IDU\",tblGPLookup[[#This Row],[Alloc]]=\"OR\",tblGPLookup[[#This Row],[Alloc]]=\"UT\",tblGPLookup[[#This Row],[Alloc]]=\"WYU\",tblGPLookup[[#This Row],[Alloc]]=\"WYP\",tblGPLookup[[#This Row],[Alloc]]=\"CA\",tblGPLookup[[#This Row],[Alloc]]=\"WA\"),\"SITUS\",tblGPLookup[[#This Row],[Alloc]])","v":"SITUS"},"TD"]
[{"$f":"CONCATENATE(tblGPLookup[[#This Row],[Primary Account]],tblGPLookup[[#This Row],[Primary Name]],tblGPLookup[[#This Row],[Secondary Acct]],tblGPLookup[[#This Row],[Secondary  Name]],tblGPLookup[[#This Row],[Alloc4FUNC]])","v":"1010000ELEC PLANT IN SERV3950000LABORATORY EQUIPMENTSITUS"},1010000,"ELEC PLANT IN SERV",3950000,"LABORATORY EQUIPMENT","SITUS",null,{"$f":"IF(OR(tblGPLookup[[#This Row],[Alloc]]=\"IDU\",tblGPLookup[[#This Row],[Alloc]]=\"OR\",tblGPLookup[[#This Row],[Alloc]]=\"UT\",tblGPLookup[[#This Row],[Alloc]]=\"WYU\",tblGPLookup[[#This Row],[Alloc]]=\"WYP\",tblGPLookup[[#This Row],[Alloc]]=\"CA\",tblGPLookup[[#This Row],[Alloc]]=\"WA\"),\"SITUS\",tblGPLookup[[#This Row],[Alloc]])","v":"SITUS"},"TD"]
[{"$f":"CONCATENATE(tblGPLookup[[#This Row],[Primary Account]],tblGPLookup[[#This Row],[Primary Name]],tblGPLookup[[#This Row],[Secondary Acct]],tblGPLookup[[#This Row],[Secondary  Name]],tblGPLookup[[#This Row],[Alloc4FUNC]])","v":"1010000ELEC PLANT IN SERV3950000LABORATORY EQUIPMENTSITUS"},1010000,"ELEC PLANT IN SERV",3950000,"LABORATORY EQUIPMENT","SITUS",null,{"$f":"IF(OR(tblGPLookup[[#This Row],[Alloc]]=\"IDU\",tblGPLookup[[#This Row],[Alloc]]=\"OR\",tblGPLookup[[#This Row],[Alloc]]=\"UT\",tblGPLookup[[#This Row],[Alloc]]=\"WYU\",tblGPLookup[[#This Row],[Alloc]]=\"WYP\",tblGPLookup[[#This Row],[Alloc]]=\"CA\",tblGPLookup[[#This Row],[Alloc]]=\"WA\"),\"SITUS\",tblGPLookup[[#This Row],[Alloc]])","v":"SITUS"},"TD"]
[{"$f":"CONCATENATE(tblGPLookup[[#This Row],[Primary Account]],tblGPLookup[[#This Row],[Primary Name]],tblGPLookup[[#This Row],[Secondary Acct]],tblGPLookup[[#This Row],[Secondary  Name]],tblGPLookup[[#This Row],[Alloc4FUNC]])","v":"1010000ELEC PLANT IN SERV3960300\"AERIAL LIFT PB TRUCKS, 10000#-16000# GVSITUS"},1010000,"ELEC PLANT IN SERV",3960300,"\"AERIAL LIFT PB TRUCKS, 10000#-16000# GV","SITUS",null,{"$f":"IF(OR(tblGPLookup[[#This Row],[Alloc]]=\"IDU\",tblGPLookup[[#This Row],[Alloc]]=\"OR\",tblGPLookup[[#This Row],[Alloc]]=\"UT\",tblGPLookup[[#This Row],[Alloc]]=\"WYU\",tblGPLookup[[#This Row],[Alloc]]=\"WYP\",tblGPLookup[[#This Row],[Alloc]]=\"CA\",tblGPLookup[[#This Row],[Alloc]]=\"WA\"),\"SITUS\",tblGPLookup[[#This Row],[Alloc]])","v":"SITUS"},"DPW"]
[{"$f":"CONCATENATE(tblGPLookup[[#This Row],[Primary Account]],tblGPLookup[[#This Row],[Primary Name]],tblGPLookup[[#This Row],[Secondary Acct]],tblGPLookup[[#This Row],[Secondary  Name]],tblGPLookup[[#This Row],[Alloc4FUNC]])","v":"1010000ELEC PLANT IN SERV3960300\"AERIAL LIFT PB TRUCKS, 10000#-16000# GVSITUS"},1010000,"ELEC PLANT IN SERV",3960300,"\"AERIAL LIFT PB TRUCKS, 10000#-16000# GV","SITUS",null,{"$f":"IF(OR(tblGPLookup[[#This Row],[Alloc]]=\"IDU\",tblGPLookup[[#This Row],[Alloc]]=\"OR\",tblGPLookup[[#This Row],[Alloc]]=\"UT\",tblGPLookup[[#This Row],[Alloc]]=\"WYU\",tblGPLookup[[#This Row],[Alloc]]=\"WYP\",tblGPLookup[[#This Row],[Alloc]]=\"CA\",tblGPLookup[[#This Row],[Alloc]]=\"WA\"),\"SITUS\",tblGPLookup[[#This Row],[Alloc]])","v":"SITUS"},"DPW"]
[{"$f":"CONCATENATE(tblGPLookup[[#This Row],[Primary Account]],tblGPLookup[[#This Row],[Primary Name]],tblGPLookup[[#This Row],[Secondary Acct]],tblGPLookup[[#This Row],[Secondary  Name]],tblGPLookup[[#This Row],[Alloc4FUNC]])","v":"1010000ELEC PLANT IN SERV3960300\"AERIAL LIFT PB TRUCKS, 10000#-16000# GVSG"},1010000,"ELEC PLANT IN SERV",3960300,"\"AERIAL LIFT PB TRUCKS, 10000#-16000# GV","SG",null,{"$f":"IF(OR(tblGPLookup[[#This Row],[Alloc]]=\"IDU\",tblGPLookup[[#This Row],[Alloc]]=\"OR\",tblGPLookup[[#This Row],[Alloc]]=\"UT\",tblGPLookup[[#This Row],[Alloc]]=\"WYU\",tblGPLookup[[#This Row],[Alloc]]=\"WYP\",tblGPLookup[[#This Row],[Alloc]]=\"CA\",tblGPLookup[[#This Row],[Alloc]]=\"WA\"),\"SITUS\",tblGPLookup[[#This Row],[Alloc]])","v":"SG"},"P"]
[{"$f":"CONCATENATE(tblGPLookup[[#This Row],[Primary Account]],tblGPLookup[[#This Row],[Primary Name]],tblGPLookup[[#This Row],[Secondary Acct]],tblGPLookup[[#This Row],[Secondary  Name]],tblGPLookup[[#This Row],[Alloc4FUNC]])","v":"1010000ELEC PLANT IN SERV3960300\"AERIAL LIFT PB TRUCKS, 10000#-16000# GVSITUS"},1010000,"ELEC PLANT IN SERV",3960300,"\"AERIAL LIFT PB TRUCKS, 10000#-16000# GV","SITUS",null,{"$f":"IF(OR(tblGPLookup[[#This Row],[Alloc]]=\"IDU\",tblGPLookup[[#This Row],[Alloc]]=\"OR\",tblGPLookup[[#This Row],[Alloc]]=\"UT\",tblGPLookup[[#This Row],[Alloc]]=\"WYU\",tblGPLookup[[#This Row],[Alloc]]=\"WYP\",tblGPLookup[[#This Row],[Alloc]]=\"CA\",tblGPLookup[[#This Row],[Alloc]]=\"WA\"),\"SITUS\",tblGPLookup[[#This Row],[Alloc]])","v":"SITUS"},"DPW"]
[{"$f":"CONCATENATE(tblGPLookup[[#This Row],[Primary Account]],tblGPLookup[[#This Row],[Primary Name]],tblGPLookup[[#This Row],[Secondary Acct]],tblGPLookup[[#This Row],[Secondary  Name]],tblGPLookup[[#This Row],[Alloc4FUNC]])","v":"1010000ELEC PLANT IN SERV3960300\"AERIAL LIFT PB TRUCKS, 10000#-16000# GVSO"},1010000,"ELEC PLANT IN SERV",3960300,"\"AERIAL LIFT PB TRUCKS, 10000#-16000# GV","SO",null,{"$f":"IF(OR(tblGPLookup[[#This Row],[Alloc]]=\"IDU\",tblGPLookup[[#This Row],[Alloc]]=\"OR\",tblGPLookup[[#This Row],[Alloc]]=\"UT\",tblGPLookup[[#This Row],[Alloc]]=\"WYU\",tblGPLookup[[#This Row],[Alloc]]=\"WYP\",tblGPLookup[[#This Row],[Alloc]]=\"CA\",tblGPLookup[[#This Row],[Alloc]]=\"WA\"),\"SITUS\",tblGPLookup[[#This Row],[Alloc]])","v":"SO"},"PTD"]
[{"$f":"CONCATENATE(tblGPLookup[[#This Row],[Primary Account]],tblGPLookup[[#This Row],[Primary Name]],tblGPLookup[[#This Row],[Secondary Acct]],tblGPLookup[[#This Row],[Secondary  Name]],tblGPLookup[[#This Row],[Alloc4FUNC]])","v":"1010000ELEC PLANT IN SERV3960300\"AERIAL LIFT PB TRUCKS, 10000#-16000# GVSITUS"},1010000,"ELEC PLANT IN SERV",3960300,"\"AERIAL LIFT PB TRUCKS, 10000#-16000# GV","SITUS",null,{"$f":"IF(OR(tblGPLookup[[#This Row],[Alloc]]=\"IDU\",tblGPLookup[[#This Row],[Alloc]]=\"OR\",tblGPLookup[[#This Row],[Alloc]]=\"UT\",tblGPLookup[[#This Row],[Alloc]]=\"WYU\",tblGPLookup[[#This Row],[Alloc]]=\"WYP\",tblGPLookup[[#This Row],[Alloc]]=\"CA\",tblGPLookup[[#This Row],[Alloc]]=\"WA\"),\"SITUS\",tblGPLookup[[#This Row],[Alloc]])","v":"SITUS"},"DPW"]
[{"$f":"CONCATENATE(tblGPLookup[[#This Row],[Primary Account]],tblGPLookup[[#This Row],[Primary Name]],tblGPLookup[[#This Row],[Secondary Acct]],tblGPLookup[[#This Row],[Secondary  Name]],tblGPLookup[[#This Row],[Alloc4FUNC]])","v":"1010000ELEC PLANT IN SERV3960300\"AERIAL LIFT PB TRUCKS, 10000#-16000# GVSITUS"},1010000,"ELEC PLANT IN SERV",3960300,"\"AERIAL LIFT PB TRUCKS, 10000#-16000# GV","SITUS",null,{"$f":"IF(OR(tblGPLookup[[#This Row],[Alloc]]=\"IDU\",tblGPLookup[[#This Row],[Alloc]]=\"OR\",tblGPLookup[[#This Row],[Alloc]]=\"UT\",tblGPLookup[[#This Row],[Alloc]]=\"WYU\",tblGPLookup[[#This Row],[Alloc]]=\"WYP\",tblGPLookup[[#This Row],[Alloc]]=\"CA\",tblGPLookup[[#This Row],[Alloc]]=\"WA\"),\"SITUS\",tblGPLookup[[#This Row],[Alloc]])","v":"SITUS"},"DPW"]
[{"$f":"CONCATENATE(tblGPLookup[[#This Row],[Primary Account]],tblGPLookup[[#This Row],[Primary Name]],tblGPLookup[[#This Row],[Secondary Acct]],tblGPLookup[[#This Row],[Secondary  Name]],tblGPLookup[[#This Row],[Alloc4FUNC]])","v":"1010000ELEC PLANT IN SERV3960300\"AERIAL LIFT PB TRUCKS, 10000#-16000# GVSITUS"},1010000,"ELEC PLANT IN SERV",3960300,"\"AERIAL LIFT PB TRUCKS, 10000#-16000# GV","SITUS",null,{"$f":"IF(OR(tblGPLookup[[#This Row],[Alloc]]=\"IDU\",tblGPLookup[[#This Row],[Alloc]]=\"OR\",tblGPLookup[[#This Row],[Alloc]]=\"UT\",tblGPLookup[[#This Row],[Alloc]]=\"WYU\",tblGPLookup[[#This Row],[Alloc]]=\"WYP\",tblGPLookup[[#This Row],[Alloc]]=\"CA\",tblGPLookup[[#This Row],[Alloc]]=\"WA\"),\"SITUS\",tblGPLookup[[#This Row],[Alloc]])","v":"SITUS"},"DPW"]
[{"$f":"CONCATENATE(tblGPLookup[[#This Row],[Primary Account]],tblGPLookup[[#This Row],[Primary Name]],tblGPLookup[[#This Row],[Secondary Acct]],tblGPLookup[[#This Row],[Secondary  Name]],tblGPLookup[[#This Row],[Alloc4FUNC]])","v":"1010000ELEC PLANT IN SERV3960300\"AERIAL LIFT PB TRUCKS, 10000#-16000# GVSITUS"},1010000,"ELEC PLANT IN SERV",3960300,"\"AERIAL LIFT PB TRUCKS, 10000#-16000# GV","SITUS",null,{"$f":"IF(OR(tblGPLookup[[#This Row],[Alloc]]=\"IDU\",tblGPLookup[[#This Row],[Alloc]]=\"OR\",tblGPLookup[[#This Row],[Alloc]]=\"UT\",tblGPLookup[[#This Row],[Alloc]]=\"WYU\",tblGPLookup[[#This Row],[Alloc]]=\"WYP\",tblGPLookup[[#This Row],[Alloc]]=\"CA\",tblGPLookup[[#This Row],[Alloc]]=\"WA\"),\"SITUS\",tblGPLookup[[#This Row],[Alloc]])","v":"SITUS"},"DPW"]
[{"$f":"CONCATENATE(tblGPLookup[[#This Row],[Primary Account]],tblGPLookup[[#This Row],[Primary Name]],tblGPLookup[[#This Row],[Secondary Acct]],tblGPLookup[[#This Row],[Secondary  Name]],tblGPLookup[[#This Row],[Alloc4FUNC]])","v":"1010000ELEC PLANT IN SERV3960700TWO-AXLE DIGGER/DERRICK LINE TRUCKSSITUS"},1010000,"ELEC PLANT IN SERV",3960700,"TWO-AXLE DIGGER/DERRICK LINE TRUCKS","SITUS",null,{"$f":"IF(OR(tblGPLookup[[#This Row],[Alloc]]=\"IDU\",tblGPLookup[[#This Row],[Alloc]]=\"OR\",tblGPLookup[[#This Row],[Alloc]]=\"UT\",tblGPLookup[[#This Row],[Alloc]]=\"WYU\",tblGPLookup[[#This Row],[Alloc]]=\"WYP\",tblGPLookup[[#This Row],[Alloc]]=\"CA\",tblGPLookup[[#This Row],[Alloc]]=\"WA\"),\"SITUS\",tblGPLookup[[#This Row],[Alloc]])","v":"SITUS"},"DPW"]
[{"$f":"CONCATENATE(tblGPLookup[[#This Row],[Primary Account]],tblGPLookup[[#This Row],[Primary Name]],tblGPLookup[[#This Row],[Secondary Acct]],tblGPLookup[[#This Row],[Secondary  Name]],tblGPLookup[[#This Row],[Alloc4FUNC]])","v":"1010000ELEC PLANT IN SERV3960700TWO-AXLE DIGGER/DERRICK LINE TRUCKSSITUS"},1010000,"ELEC PLANT IN SERV",3960700,"TWO-AXLE DIGGER/DERRICK LINE TRUCKS","SITUS",null,{"$f":"IF(OR(tblGPLookup[[#This Row],[Alloc]]=\"IDU\",tblGPLookup[[#This Row],[Alloc]]=\"OR\",tblGPLookup[[#This Row],[Alloc]]=\"UT\",tblGPLookup[[#This Row],[Alloc]]=\"WYU\",tblGPLookup[[#This Row],[Alloc]]=\"WYP\",tblGPLookup[[#This Row],[Alloc]]=\"CA\",tblGPLookup[[#This Row],[Alloc]]=\"WA\"),\"SITUS\",tblGPLookup[[#This Row],[Alloc]])","v":"SITUS"},"DPW"]
[{"$f":"CONCATENATE(tblGPLookup[[#This Row],[Primary Account]],tblGPLookup[[#This Row],[Primary Name]],tblGPLookup[[#This Row],[Secondary Acct]],tblGPLookup[[#This Row],[Secondary  Name]],tblGPLookup[[#This Row],[Alloc4FUNC]])","v":"1010000ELEC PLANT IN SERV3960700TWO-AXLE DIGGER/DERRICK LINE TRUCKSSG"},1010000,"ELEC PLANT IN SERV",3960700,"TWO-AXLE DIGGER/DERRICK LINE TRUCKS","SG",null,{"$f":"IF(OR(tblGPLookup[[#This Row],[Alloc]]=\"IDU\",tblGPLookup[[#This Row],[Alloc]]=\"OR\",tblGPLookup[[#This Row],[Alloc]]=\"UT\",tblGPLookup[[#This Row],[Alloc]]=\"WYU\",tblGPLookup[[#This Row],[Alloc]]=\"WYP\",tblGPLookup[[#This Row],[Alloc]]=\"CA\",tblGPLookup[[#This Row],[Alloc]]=\"WA\"),\"SITUS\",tblGPLookup[[#This Row],[Alloc]])","v":"SG"},"P"]
[{"$f":"CONCATENATE(tblGPLookup[[#This Row],[Primary Account]],tblGPLookup[[#This Row],[Primary Name]],tblGPLookup[[#This Row],[Secondary Acct]],tblGPLookup[[#This Row],[Secondary  Name]],tblGPLookup[[#This Row],[Alloc4FUNC]])","v":"1010000ELEC PLANT IN SERV3960700TWO-AXLE DIGGER/DERRICK LINE TRUCKSSITUS"},1010000,"ELEC PLANT IN SERV",3960700,"TWO-AXLE DIGGER/DERRICK LINE TRUCKS","SITUS",null,{"$f":"IF(OR(tblGPLookup[[#This Row],[Alloc]]=\"IDU\",tblGPLookup[[#This Row],[Alloc]]=\"OR\",tblGPLookup[[#This Row],[Alloc]]=\"UT\",tblGPLookup[[#This Row],[Alloc]]=\"WYU\",tblGPLookup[[#This Row],[Alloc]]=\"WYP\",tblGPLookup[[#This Row],[Alloc]]=\"CA\",tblGPLookup[[#This Row],[Alloc]]=\"WA\"),\"SITUS\",tblGPLookup[[#This Row],[Alloc]])","v":"SITUS"},"DPW"]
[{"$f":"CONCATENATE(tblGPLookup[[#This Row],[Primary Account]],tblGPLookup[[#This Row],[Primary Name]],tblGPLookup[[#This Row],[Secondary Acct]],tblGPLookup[[#This Row],[Secondary  Name]],tblGPLookup[[#This Row],[Alloc4FUNC]])","v":"1010000ELEC PLANT IN SERV3960700TWO-AXLE DIGGER/DERRICK LINE TRUCKSSO"},1010000,"ELEC PLANT IN SERV",3960700,"TWO-AXLE DIGGER/DERRICK LINE TRUCKS","SO",null,{"$f":"IF(OR(tblGPLookup[[#This Row],[Alloc]]=\"IDU\",tblGPLookup[[#This Row],[Alloc]]=\"OR\",tblGPLookup[[#This Row],[Alloc]]=\"UT\",tblGPLookup[[#This Row],[Alloc]]=\"WYU\",tblGPLookup[[#This Row],[Alloc]]=\"WYP\",tblGPLookup[[#This Row],[Alloc]]=\"CA\",tblGPLookup[[#This Row],[Alloc]]=\"WA\"),\"SITUS\",tblGPLookup[[#This Row],[Alloc]])","v":"SO"},"PTD"]
[{"$f":"CONCATENATE(tblGPLookup[[#This Row],[Primary Account]],tblGPLookup[[#This Row],[Primary Name]],tblGPLookup[[#This Row],[Secondary Acct]],tblGPLookup[[#This Row],[Secondary  Name]],tblGPLookup[[#This Row],[Alloc4FUNC]])","v":"1010000ELEC PLANT IN SERV3960700TWO-AXLE DIGGER/DERRICK LINE TRUCKSSITUS"},1010000,"ELEC PLANT IN SERV",3960700,"TWO-AXLE DIGGER/DERRICK LINE TRUCKS","SITUS",null,{"$f":"IF(OR(tblGPLookup[[#This Row],[Alloc]]=\"IDU\",tblGPLookup[[#This Row],[Alloc]]=\"OR\",tblGPLookup[[#This Row],[Alloc]]=\"UT\",tblGPLookup[[#This Row],[Alloc]]=\"WYU\",tblGPLookup[[#This Row],[Alloc]]=\"WYP\",tblGPLookup[[#This Row],[Alloc]]=\"CA\",tblGPLookup[[#This Row],[Alloc]]=\"WA\"),\"SITUS\",tblGPLookup[[#This Row],[Alloc]])","v":"SITUS"},"DPW"]
[{"$f":"CONCATENATE(tblGPLookup[[#This Row],[Primary Account]],tblGPLookup[[#This Row],[Primary Name]],tblGPLookup[[#This Row],[Secondary Acct]],tblGPLookup[[#This Row],[Secondary  Name]],tblGPLookup[[#This Row],[Alloc4FUNC]])","v":"1010000ELEC PLANT IN SERV3960700TWO-AXLE DIGGER/DERRICK LINE TRUCKSSITUS"},1010000,"ELEC PLANT IN SERV",3960700,"TWO-AXLE DIGGER/DERRICK LINE TRUCKS","SITUS",null,{"$f":"IF(OR(tblGPLookup[[#This Row],[Alloc]]=\"IDU\",tblGPLookup[[#This Row],[Alloc]]=\"OR\",tblGPLookup[[#This Row],[Alloc]]=\"UT\",tblGPLookup[[#This Row],[Alloc]]=\"WYU\",tblGPLookup[[#This Row],[Alloc]]=\"WYP\",tblGPLookup[[#This Row],[Alloc]]=\"CA\",tblGPLookup[[#This Row],[Alloc]]=\"WA\"),\"SITUS\",tblGPLookup[[#This Row],[Alloc]])","v":"SITUS"},"DPW"]
[{"$f":"CONCATENATE(tblGPLookup[[#This Row],[Primary Account]],tblGPLookup[[#This Row],[Primary Name]],tblGPLookup[[#This Row],[Secondary Acct]],tblGPLookup[[#This Row],[Secondary  Name]],tblGPLookup[[#This Row],[Alloc4FUNC]])","v":"1010000ELEC PLANT IN SERV3960700TWO-AXLE DIGGER/DERRICK LINE TRUCKSSITUS"},1010000,"ELEC PLANT IN SERV",3960700,"TWO-AXLE DIGGER/DERRICK LINE TRUCKS","SITUS",null,{"$f":"IF(OR(tblGPLookup[[#This Row],[Alloc]]=\"IDU\",tblGPLookup[[#This Row],[Alloc]]=\"OR\",tblGPLookup[[#This Row],[Alloc]]=\"UT\",tblGPLookup[[#This Row],[Alloc]]=\"WYU\",tblGPLookup[[#This Row],[Alloc]]=\"WYP\",tblGPLookup[[#This Row],[Alloc]]=\"CA\",tblGPLookup[[#This Row],[Alloc]]=\"WA\"),\"SITUS\",tblGPLookup[[#This Row],[Alloc]])","v":"SITUS"},"DPW"]
[{"$f":"CONCATENATE(tblGPLookup[[#This Row],[Primary Account]],tblGPLookup[[#This Row],[Primary Name]],tblGPLookup[[#This Row],[Secondary Acct]],tblGPLookup[[#This Row],[Secondary  Name]],tblGPLookup[[#This Row],[Alloc4FUNC]])","v":"1010000ELEC PLANT IN SERV3960800\"AERIAL LIFT P.B. TRUCKS, ABOVE 16000#GVSITUS"},1010000,"ELEC PLANT IN SERV",3960800,"\"AERIAL LIFT P.B. TRUCKS, ABOVE 16000#GV","SITUS",null,{"$f":"IF(OR(tblGPLookup[[#This Row],[Alloc]]=\"IDU\",tblGPLookup[[#This Row],[Alloc]]=\"OR\",tblGPLookup[[#This Row],[Alloc]]=\"UT\",tblGPLookup[[#This Row],[Alloc]]=\"WYU\",tblGPLookup[[#This Row],[Alloc]]=\"WYP\",tblGPLookup[[#This Row],[Alloc]]=\"CA\",tblGPLookup[[#This Row],[Alloc]]=\"WA\"),\"SITUS\",tblGPLookup[[#This Row],[Alloc]])","v":"SITUS"},"DPW"]
[{"$f":"CONCATENATE(tblGPLookup[[#This Row],[Primary Account]],tblGPLookup[[#This Row],[Primary Name]],tblGPLookup[[#This Row],[Secondary Acct]],tblGPLookup[[#This Row],[Secondary  Name]],tblGPLookup[[#This Row],[Alloc4FUNC]])","v":"1010000ELEC PLANT IN SERV3960800\"AERIAL LIFT P.B. TRUCKS, ABOVE 16000#GVSITUS"},1010000,"ELEC PLANT IN SERV",3960800,"\"AERIAL LIFT P.B. TRUCKS, ABOVE 16000#GV","SITUS",null,{"$f":"IF(OR(tblGPLookup[[#This Row],[Alloc]]=\"IDU\",tblGPLookup[[#This Row],[Alloc]]=\"OR\",tblGPLookup[[#This Row],[Alloc]]=\"UT\",tblGPLookup[[#This Row],[Alloc]]=\"WYU\",tblGPLookup[[#This Row],[Alloc]]=\"WYP\",tblGPLookup[[#This Row],[Alloc]]=\"CA\",tblGPLookup[[#This Row],[Alloc]]=\"WA\"),\"SITUS\",tblGPLookup[[#This Row],[Alloc]])","v":"SITUS"},"DPW"]
[{"$f":"CONCATENATE(tblGPLookup[[#This Row],[Primary Account]],tblGPLookup[[#This Row],[Primary Name]],tblGPLookup[[#This Row],[Secondary Acct]],tblGPLookup[[#This Row],[Secondary  Name]],tblGPLookup[[#This Row],[Alloc4FUNC]])","v":"1010000ELEC PLANT IN SERV3960800\"AERIAL LIFT P.B. TRUCKS, ABOVE 16000#GVSG"},1010000,"ELEC PLANT IN SERV",3960800,"\"AERIAL LIFT P.B. TRUCKS, ABOVE 16000#GV","SG",null,{"$f":"IF(OR(tblGPLookup[[#This Row],[Alloc]]=\"IDU\",tblGPLookup[[#This Row],[Alloc]]=\"OR\",tblGPLookup[[#This Row],[Alloc]]=\"UT\",tblGPLookup[[#This Row],[Alloc]]=\"WYU\",tblGPLookup[[#This Row],[Alloc]]=\"WYP\",tblGPLookup[[#This Row],[Alloc]]=\"CA\",tblGPLookup[[#This Row],[Alloc]]=\"WA\"),\"SITUS\",tblGPLookup[[#This Row],[Alloc]])","v":"SG"},"P"]
[{"$f":"CONCATENATE(tblGPLookup[[#This Row],[Primary Account]],tblGPLookup[[#This Row],[Primary Name]],tblGPLookup[[#This Row],[Secondary Acct]],tblGPLookup[[#This Row],[Secondary  Name]],tblGPLookup[[#This Row],[Alloc4FUNC]])","v":"1010000ELEC PLANT IN SERV3960800\"AERIAL LIFT P.B. TRUCKS, ABOVE 16000#GVSITUS"},1010000,"ELEC PLANT IN SERV",3960800,"\"AERIAL LIFT P.B. TRUCKS, ABOVE 16000#GV","SITUS",null,{"$f":"IF(OR(tblGPLookup[[#This Row],[Alloc]]=\"IDU\",tblGPLookup[[#This Row],[Alloc]]=\"OR\",tblGPLookup[[#This Row],[Alloc]]=\"UT\",tblGPLookup[[#This Row],[Alloc]]=\"WYU\",tblGPLookup[[#This Row],[Alloc]]=\"WYP\",tblGPLookup[[#This Row],[Alloc]]=\"CA\",tblGPLookup[[#This Row],[Alloc]]=\"WA\"),\"SITUS\",tblGPLookup[[#This Row],[Alloc]])","v":"SITUS"},"DPW"]
[{"$f":"CONCATENATE(tblGPLookup[[#This Row],[Primary Account]],tblGPLookup[[#This Row],[Primary Name]],tblGPLookup[[#This Row],[Secondary Acct]],tblGPLookup[[#This Row],[Secondary  Name]],tblGPLookup[[#This Row],[Alloc4FUNC]])","v":"1010000ELEC PLANT IN SERV3960800\"AERIAL LIFT P.B. TRUCKS, ABOVE 16000#GVSO"},1010000,"ELEC PLANT IN SERV",3960800,"\"AERIAL LIFT P.B. TRUCKS, ABOVE 16000#GV","SO",null,{"$f":"IF(OR(tblGPLookup[[#This Row],[Alloc]]=\"IDU\",tblGPLookup[[#This Row],[Alloc]]=\"OR\",tblGPLookup[[#This Row],[Alloc]]=\"UT\",tblGPLookup[[#This Row],[Alloc]]=\"WYU\",tblGPLookup[[#This Row],[Alloc]]=\"WYP\",tblGPLookup[[#This Row],[Alloc]]=\"CA\",tblGPLookup[[#This Row],[Alloc]]=\"WA\"),\"SITUS\",tblGPLookup[[#This Row],[Alloc]])","v":"SO"},"PTD"]
[{"$f":"CONCATENATE(tblGPLookup[[#This Row],[Primary Account]],tblGPLookup[[#This Row],[Primary Name]],tblGPLookup[[#This Row],[Secondary Acct]],tblGPLookup[[#This Row],[Secondary  Name]],tblGPLookup[[#This Row],[Alloc4FUNC]])","v":"1010000ELEC PLANT IN SERV3960800\"AERIAL LIFT P.B. TRUCKS, ABOVE 16000#GVSITUS"},1010000,"ELEC PLANT IN SERV",3960800,"\"AERIAL LIFT P.B. TRUCKS, ABOVE 16000#GV","SITUS",null,{"$f":"IF(OR(tblGPLookup[[#This Row],[Alloc]]=\"IDU\",tblGPLookup[[#This Row],[Alloc]]=\"OR\",tblGPLookup[[#This Row],[Alloc]]=\"UT\",tblGPLookup[[#This Row],[Alloc]]=\"WYU\",tblGPLookup[[#This Row],[Alloc]]=\"WYP\",tblGPLookup[[#This Row],[Alloc]]=\"CA\",tblGPLookup[[#This Row],[Alloc]]=\"WA\"),\"SITUS\",tblGPLookup[[#This Row],[Alloc]])","v":"SITUS"},"DPW"]
[{"$f":"CONCATENATE(tblGPLookup[[#This Row],[Primary Account]],tblGPLookup[[#This Row],[Primary Name]],tblGPLookup[[#This Row],[Secondary Acct]],tblGPLookup[[#This Row],[Secondary  Name]],tblGPLookup[[#This Row],[Alloc4FUNC]])","v":"1010000ELEC PLANT IN SERV3960800\"AERIAL LIFT P.B. TRUCKS, ABOVE 16000#GVSITUS"},1010000,"ELEC PLANT IN SERV",3960800,"\"AERIAL LIFT P.B. TRUCKS, ABOVE 16000#GV","SITUS",null,{"$f":"IF(OR(tblGPLookup[[#This Row],[Alloc]]=\"IDU\",tblGPLookup[[#This Row],[Alloc]]=\"OR\",tblGPLookup[[#This Row],[Alloc]]=\"UT\",tblGPLookup[[#This Row],[Alloc]]=\"WYU\",tblGPLookup[[#This Row],[Alloc]]=\"WYP\",tblGPLookup[[#This Row],[Alloc]]=\"CA\",tblGPLookup[[#This Row],[Alloc]]=\"WA\"),\"SITUS\",tblGPLookup[[#This Row],[Alloc]])","v":"SITUS"},"DPW"]
[{"$f":"CONCATENATE(tblGPLookup[[#This Row],[Primary Account]],tblGPLookup[[#This Row],[Primary Name]],tblGPLookup[[#This Row],[Secondary Acct]],tblGPLookup[[#This Row],[Secondary  Name]],tblGPLookup[[#This Row],[Alloc4FUNC]])","v":"1010000ELEC PLANT IN SERV3960800\"AERIAL LIFT P.B. TRUCKS, ABOVE 16000#GVSITUS"},1010000,"ELEC PLANT IN SERV",3960800,"\"AERIAL LIFT P.B. TRUCKS, ABOVE 16000#GV","SITUS",null,{"$f":"IF(OR(tblGPLookup[[#This Row],[Alloc]]=\"IDU\",tblGPLookup[[#This Row],[Alloc]]=\"OR\",tblGPLookup[[#This Row],[Alloc]]=\"UT\",tblGPLookup[[#This Row],[Alloc]]=\"WYU\",tblGPLookup[[#This Row],[Alloc]]=\"WYP\",tblGPLookup[[#This Row],[Alloc]]=\"CA\",tblGPLookup[[#This Row],[Alloc]]=\"WA\"),\"SITUS\",tblGPLookup[[#This Row],[Alloc]])","v":"SITUS"},"DPW"]
[{"$f":"CONCATENATE(tblGPLookup[[#This Row],[Primary Account]],tblGPLookup[[#This Row],[Primary Name]],tblGPLookup[[#This Row],[Secondary Acct]],tblGPLookup[[#This Row],[Secondary  Name]],tblGPLookup[[#This Row],[Alloc4FUNC]])","v":"1010000ELEC PLANT IN SERV3960800\"AERIAL LIFT P.B. TRUCKS, ABOVE 16000#GVSITUS"},1010000,"ELEC PLANT IN SERV",3960800,"\"AERIAL LIFT P.B. TRUCKS, ABOVE 16000#GV","SITUS",null,{"$f":"IF(OR(tblGPLookup[[#This Row],[Alloc]]=\"IDU\",tblGPLookup[[#This Row],[Alloc]]=\"OR\",tblGPLookup[[#This Row],[Alloc]]=\"UT\",tblGPLookup[[#This Row],[Alloc]]=\"WYU\",tblGPLookup[[#This Row],[Alloc]]=\"WYP\",tblGPLookup[[#This Row],[Alloc]]=\"CA\",tblGPLookup[[#This Row],[Alloc]]=\"WA\"),\"SITUS\",tblGPLookup[[#This Row],[Alloc]])","v":"SITUS"},"DPW"]
[{"$f":"CONCATENATE(tblGPLookup[[#This Row],[Primary Account]],tblGPLookup[[#This Row],[Primary Name]],tblGPLookup[[#This Row],[Secondary Acct]],tblGPLookup[[#This Row],[Secondary  Name]],tblGPLookup[[#This Row],[Alloc4FUNC]])","v":"1010000ELEC PLANT IN SERV3961000CRANESSITUS"},1010000,"ELEC PLANT IN SERV",3961000,"CRANES","SITUS",null,{"$f":"IF(OR(tblGPLookup[[#This Row],[Alloc]]=\"IDU\",tblGPLookup[[#This Row],[Alloc]]=\"OR\",tblGPLookup[[#This Row],[Alloc]]=\"UT\",tblGPLookup[[#This Row],[Alloc]]=\"WYU\",tblGPLookup[[#This Row],[Alloc]]=\"WYP\",tblGPLookup[[#This Row],[Alloc]]=\"CA\",tblGPLookup[[#This Row],[Alloc]]=\"WA\"),\"SITUS\",tblGPLookup[[#This Row],[Alloc]])","v":"SITUS"},"DPW"]
[{"$f":"CONCATENATE(tblGPLookup[[#This Row],[Primary Account]],tblGPLookup[[#This Row],[Primary Name]],tblGPLookup[[#This Row],[Secondary Acct]],tblGPLookup[[#This Row],[Secondary  Name]],tblGPLookup[[#This Row],[Alloc4FUNC]])","v":"1010000ELEC PLANT IN SERV3961000CRANESSG"},1010000,"ELEC PLANT IN SERV",3961000,"CRANES","SG",null,{"$f":"IF(OR(tblGPLookup[[#This Row],[Alloc]]=\"IDU\",tblGPLookup[[#This Row],[Alloc]]=\"OR\",tblGPLookup[[#This Row],[Alloc]]=\"UT\",tblGPLookup[[#This Row],[Alloc]]=\"WYU\",tblGPLookup[[#This Row],[Alloc]]=\"WYP\",tblGPLookup[[#This Row],[Alloc]]=\"CA\",tblGPLookup[[#This Row],[Alloc]]=\"WA\"),\"SITUS\",tblGPLookup[[#This Row],[Alloc]])","v":"SG"},"P"]
[{"$f":"CONCATENATE(tblGPLookup[[#This Row],[Primary Account]],tblGPLookup[[#This Row],[Primary Name]],tblGPLookup[[#This Row],[Secondary Acct]],tblGPLookup[[#This Row],[Secondary  Name]],tblGPLookup[[#This Row],[Alloc4FUNC]])","v":"1010000ELEC PLANT IN SERV3961000CRANESSITUS"},1010000,"ELEC PLANT IN SERV",3961000,"CRANES","SITUS",null,{"$f":"IF(OR(tblGPLookup[[#This Row],[Alloc]]=\"IDU\",tblGPLookup[[#This Row],[Alloc]]=\"OR\",tblGPLookup[[#This Row],[Alloc]]=\"UT\",tblGPLookup[[#This Row],[Alloc]]=\"WYU\",tblGPLookup[[#This Row],[Alloc]]=\"WYP\",tblGPLookup[[#This Row],[Alloc]]=\"CA\",tblGPLookup[[#This Row],[Alloc]]=\"WA\"),\"SITUS\",tblGPLookup[[#This Row],[Alloc]])","v":"SITUS"},"DPW"]
[{"$f":"CONCATENATE(tblGPLookup[[#This Row],[Primary Account]],tblGPLookup[[#This Row],[Primary Name]],tblGPLookup[[#This Row],[Secondary Acct]],tblGPLookup[[#This Row],[Secondary  Name]],tblGPLookup[[#This Row],[Alloc4FUNC]])","v":"1010000ELEC PLANT IN SERV3961100HEAVY CONSTRUCTION EQUIP, PRODUCT DIGGERSITUS"},1010000,"ELEC PLANT IN SERV",3961100,"HEAVY CONSTRUCTION EQUIP, PRODUCT DIGGER","SITUS",null,{"$f":"IF(OR(tblGPLookup[[#This Row],[Alloc]]=\"IDU\",tblGPLookup[[#This Row],[Alloc]]=\"OR\",tblGPLookup[[#This Row],[Alloc]]=\"UT\",tblGPLookup[[#This Row],[Alloc]]=\"WYU\",tblGPLookup[[#This Row],[Alloc]]=\"WYP\",tblGPLookup[[#This Row],[Alloc]]=\"CA\",tblGPLookup[[#This Row],[Alloc]]=\"WA\"),\"SITUS\",tblGPLookup[[#This Row],[Alloc]])","v":"SITUS"},"DPW"]
[{"$f":"CONCATENATE(tblGPLookup[[#This Row],[Primary Account]],tblGPLookup[[#This Row],[Primary Name]],tblGPLookup[[#This Row],[Secondary Acct]],tblGPLookup[[#This Row],[Secondary  Name]],tblGPLookup[[#This Row],[Alloc4FUNC]])","v":"1010000ELEC PLANT IN SERV3961100HEAVY CONSTRUCTION EQUIP, PRODUCT DIGGERSG"},1010000,"ELEC PLANT IN SERV",3961100,"HEAVY CONSTRUCTION EQUIP, PRODUCT DIGGER","SG",null,{"$f":"IF(OR(tblGPLookup[[#This Row],[Alloc]]=\"IDU\",tblGPLookup[[#This Row],[Alloc]]=\"OR\",tblGPLookup[[#This Row],[Alloc]]=\"UT\",tblGPLookup[[#This Row],[Alloc]]=\"WYU\",tblGPLookup[[#This Row],[Alloc]]=\"WYP\",tblGPLookup[[#This Row],[Alloc]]=\"CA\",tblGPLookup[[#This Row],[Alloc]]=\"WA\"),\"SITUS\",tblGPLookup[[#This Row],[Alloc]])","v":"SG"},"P"]
[{"$f":"CONCATENATE(tblGPLookup[[#This Row],[Primary Account]],tblGPLookup[[#This Row],[Primary Name]],tblGPLookup[[#This Row],[Secondary Acct]],tblGPLookup[[#This Row],[Secondary  Name]],tblGPLookup[[#This Row],[Alloc4FUNC]])","v":"1010000ELEC PLANT IN SERV3961100HEAVY CONSTRUCTION EQUIP, PRODUCT DIGGERSO"},1010000,"ELEC PLANT IN SERV",3961100,"HEAVY CONSTRUCTION EQUIP, PRODUCT DIGGER","SO",null,{"$f":"IF(OR(tblGPLookup[[#This Row],[Alloc]]=\"IDU\",tblGPLookup[[#This Row],[Alloc]]=\"OR\",tblGPLookup[[#This Row],[Alloc]]=\"UT\",tblGPLookup[[#This Row],[Alloc]]=\"WYU\",tblGPLookup[[#This Row],[Alloc]]=\"WYP\",tblGPLookup[[#This Row],[Alloc]]=\"CA\",tblGPLookup[[#This Row],[Alloc]]=\"WA\"),\"SITUS\",tblGPLookup[[#This Row],[Alloc]])","v":"SO"},"PTD"]
[{"$f":"CONCATENATE(tblGPLookup[[#This Row],[Primary Account]],tblGPLookup[[#This Row],[Primary Name]],tblGPLookup[[#This Row],[Secondary Acct]],tblGPLookup[[#This Row],[Secondary  Name]],tblGPLookup[[#This Row],[Alloc4FUNC]])","v":"1010000ELEC PLANT IN SERV3961100HEAVY CONSTRUCTION EQUIP, PRODUCT DIGGERSITUS"},1010000,"ELEC PLANT IN SERV",3961100,"HEAVY CONSTRUCTION EQUIP, PRODUCT DIGGER","SITUS",null,{"$f":"IF(OR(tblGPLookup[[#This Row],[Alloc]]=\"IDU\",tblGPLookup[[#This Row],[Alloc]]=\"OR\",tblGPLookup[[#This Row],[Alloc]]=\"UT\",tblGPLookup[[#This Row],[Alloc]]=\"WYU\",tblGPLookup[[#This Row],[Alloc]]=\"WYP\",tblGPLookup[[#This Row],[Alloc]]=\"CA\",tblGPLookup[[#This Row],[Alloc]]=\"WA\"),\"SITUS\",tblGPLookup[[#This Row],[Alloc]])","v":"SITUS"},"DPW"]
[{"$f":"CONCATENATE(tblGPLookup[[#This Row],[Primary Account]],tblGPLookup[[#This Row],[Primary Name]],tblGPLookup[[#This Row],[Secondary Acct]],tblGPLookup[[#This Row],[Secondary  Name]],tblGPLookup[[#This Row],[Alloc4FUNC]])","v":"1010000ELEC PLANT IN SERV3961100HEAVY CONSTRUCTION EQUIP, PRODUCT DIGGERSITUS"},1010000,"ELEC PLANT IN SERV",3961100,"HEAVY CONSTRUCTION EQUIP, PRODUCT DIGGER","SITUS",null,{"$f":"IF(OR(tblGPLookup[[#This Row],[Alloc]]=\"IDU\",tblGPLookup[[#This Row],[Alloc]]=\"OR\",tblGPLookup[[#This Row],[Alloc]]=\"UT\",tblGPLookup[[#This Row],[Alloc]]=\"WYU\",tblGPLookup[[#This Row],[Alloc]]=\"WYP\",tblGPLookup[[#This Row],[Alloc]]=\"CA\",tblGPLookup[[#This Row],[Alloc]]=\"WA\"),\"SITUS\",tblGPLookup[[#This Row],[Alloc]])","v":"SITUS"},"DPW"]
[{"$f":"CONCATENATE(tblGPLookup[[#This Row],[Primary Account]],tblGPLookup[[#This Row],[Primary Name]],tblGPLookup[[#This Row],[Secondary Acct]],tblGPLookup[[#This Row],[Secondary  Name]],tblGPLookup[[#This Row],[Alloc4FUNC]])","v":"1010000ELEC PLANT IN SERV3961200THREE-AXLE DIGGER/DERRICK LINE TRUCKSSITUS"},1010000,"ELEC PLANT IN SERV",3961200,"THREE-AXLE DIGGER/DERRICK LINE TRUCKS","SITUS",null,{"$f":"IF(OR(tblGPLookup[[#This Row],[Alloc]]=\"IDU\",tblGPLookup[[#This Row],[Alloc]]=\"OR\",tblGPLookup[[#This Row],[Alloc]]=\"UT\",tblGPLookup[[#This Row],[Alloc]]=\"WYU\",tblGPLookup[[#This Row],[Alloc]]=\"WYP\",tblGPLookup[[#This Row],[Alloc]]=\"CA\",tblGPLookup[[#This Row],[Alloc]]=\"WA\"),\"SITUS\",tblGPLookup[[#This Row],[Alloc]])","v":"SITUS"},"DPW"]
[{"$f":"CONCATENATE(tblGPLookup[[#This Row],[Primary Account]],tblGPLookup[[#This Row],[Primary Name]],tblGPLookup[[#This Row],[Secondary Acct]],tblGPLookup[[#This Row],[Secondary  Name]],tblGPLookup[[#This Row],[Alloc4FUNC]])","v":"1010000ELEC PLANT IN SERV3961200THREE-AXLE DIGGER/DERRICK LINE TRUCKSSITUS"},1010000,"ELEC PLANT IN SERV",3961200,"THREE-AXLE DIGGER/DERRICK LINE TRUCKS","SITUS",null,{"$f":"IF(OR(tblGPLookup[[#This Row],[Alloc]]=\"IDU\",tblGPLookup[[#This Row],[Alloc]]=\"OR\",tblGPLookup[[#This Row],[Alloc]]=\"UT\",tblGPLookup[[#This Row],[Alloc]]=\"WYU\",tblGPLookup[[#This Row],[Alloc]]=\"WYP\",tblGPLookup[[#This Row],[Alloc]]=\"CA\",tblGPLookup[[#This Row],[Alloc]]=\"WA\"),\"SITUS\",tblGPLookup[[#This Row],[Alloc]])","v":"SITUS"},"DPW"]
[{"$f":"CONCATENATE(tblGPLookup[[#This Row],[Primary Account]],tblGPLookup[[#This Row],[Primary Name]],tblGPLookup[[#This Row],[Secondary Acct]],tblGPLookup[[#This Row],[Secondary  Name]],tblGPLookup[[#This Row],[Alloc4FUNC]])","v":"1010000ELEC PLANT IN SERV3961200THREE-AXLE DIGGER/DERRICK LINE TRUCKSSG"},1010000,"ELEC PLANT IN SERV",3961200,"THREE-AXLE DIGGER/DERRICK LINE TRUCKS","SG",null,{"$f":"IF(OR(tblGPLookup[[#This Row],[Alloc]]=\"IDU\",tblGPLookup[[#This Row],[Alloc]]=\"OR\",tblGPLookup[[#This Row],[Alloc]]=\"UT\",tblGPLookup[[#This Row],[Alloc]]=\"WYU\",tblGPLookup[[#This Row],[Alloc]]=\"WYP\",tblGPLookup[[#This Row],[Alloc]]=\"CA\",tblGPLookup[[#This Row],[Alloc]]=\"WA\"),\"SITUS\",tblGPLookup[[#This Row],[Alloc]])","v":"SG"},"P"]
[{"$f":"CONCATENATE(tblGPLookup[[#This Row],[Primary Account]],tblGPLookup[[#This Row],[Primary Name]],tblGPLookup[[#This Row],[Secondary Acct]],tblGPLookup[[#This Row],[Secondary  Name]],tblGPLookup[[#This Row],[Alloc4FUNC]])","v":"1010000ELEC PLANT IN SERV3961200THREE-AXLE DIGGER/DERRICK LINE TRUCKSSITUS"},1010000,"ELEC PLANT IN SERV",3961200,"THREE-AXLE DIGGER/DERRICK LINE TRUCKS","SITUS",null,{"$f":"IF(OR(tblGPLookup[[#This Row],[Alloc]]=\"IDU\",tblGPLookup[[#This Row],[Alloc]]=\"OR\",tblGPLookup[[#This Row],[Alloc]]=\"UT\",tblGPLookup[[#This Row],[Alloc]]=\"WYU\",tblGPLookup[[#This Row],[Alloc]]=\"WYP\",tblGPLookup[[#This Row],[Alloc]]=\"CA\",tblGPLookup[[#This Row],[Alloc]]=\"WA\"),\"SITUS\",tblGPLookup[[#This Row],[Alloc]])","v":"SITUS"},"DPW"]
[{"$f":"CONCATENATE(tblGPLookup[[#This Row],[Primary Account]],tblGPLookup[[#This Row],[Primary Name]],tblGPLookup[[#This Row],[Secondary Acct]],tblGPLookup[[#This Row],[Secondary  Name]],tblGPLookup[[#This Row],[Alloc4FUNC]])","v":"1010000ELEC PLANT IN SERV3961200THREE-AXLE DIGGER/DERRICK LINE TRUCKSSO"},1010000,"ELEC PLANT IN SERV",3961200,"THREE-AXLE DIGGER/DERRICK LINE TRUCKS","SO",null,{"$f":"IF(OR(tblGPLookup[[#This Row],[Alloc]]=\"IDU\",tblGPLookup[[#This Row],[Alloc]]=\"OR\",tblGPLookup[[#This Row],[Alloc]]=\"UT\",tblGPLookup[[#This Row],[Alloc]]=\"WYU\",tblGPLookup[[#This Row],[Alloc]]=\"WYP\",tblGPLookup[[#This Row],[Alloc]]=\"CA\",tblGPLookup[[#This Row],[Alloc]]=\"WA\"),\"SITUS\",tblGPLookup[[#This Row],[Alloc]])","v":"SO"},"PTD"]
[{"$f":"CONCATENATE(tblGPLookup[[#This Row],[Primary Account]],tblGPLookup[[#This Row],[Primary Name]],tblGPLookup[[#This Row],[Secondary Acct]],tblGPLookup[[#This Row],[Secondary  Name]],tblGPLookup[[#This Row],[Alloc4FUNC]])","v":"1010000ELEC PLANT IN SERV3961200THREE-AXLE DIGGER/DERRICK LINE TRUCKSSITUS"},1010000,"ELEC PLANT IN SERV",3961200,"THREE-AXLE DIGGER/DERRICK LINE TRUCKS","SITUS",null,{"$f":"IF(OR(tblGPLookup[[#This Row],[Alloc]]=\"IDU\",tblGPLookup[[#This Row],[Alloc]]=\"OR\",tblGPLookup[[#This Row],[Alloc]]=\"UT\",tblGPLookup[[#This Row],[Alloc]]=\"WYU\",tblGPLookup[[#This Row],[Alloc]]=\"WYP\",tblGPLookup[[#This Row],[Alloc]]=\"CA\",tblGPLookup[[#This Row],[Alloc]]=\"WA\"),\"SITUS\",tblGPLookup[[#This Row],[Alloc]])","v":"SITUS"},"DPW"]
[{"$f":"CONCATENATE(tblGPLookup[[#This Row],[Primary Account]],tblGPLookup[[#This Row],[Primary Name]],tblGPLookup[[#This Row],[Secondary Acct]],tblGPLookup[[#This Row],[Secondary  Name]],tblGPLookup[[#This Row],[Alloc4FUNC]])","v":"1010000ELEC PLANT IN SERV3961200THREE-AXLE DIGGER/DERRICK LINE TRUCKSSITUS"},1010000,"ELEC PLANT IN SERV",3961200,"THREE-AXLE DIGGER/DERRICK LINE TRUCKS","SITUS",null,{"$f":"IF(OR(tblGPLookup[[#This Row],[Alloc]]=\"IDU\",tblGPLookup[[#This Row],[Alloc]]=\"OR\",tblGPLookup[[#This Row],[Alloc]]=\"UT\",tblGPLookup[[#This Row],[Alloc]]=\"WYU\",tblGPLookup[[#This Row],[Alloc]]=\"WYP\",tblGPLookup[[#This Row],[Alloc]]=\"CA\",tblGPLookup[[#This Row],[Alloc]]=\"WA\"),\"SITUS\",tblGPLookup[[#This Row],[Alloc]])","v":"SITUS"},"DPW"]
[{"$f":"CONCATENATE(tblGPLookup[[#This Row],[Primary Account]],tblGPLookup[[#This Row],[Primary Name]],tblGPLookup[[#This Row],[Secondary Acct]],tblGPLookup[[#This Row],[Secondary  Name]],tblGPLookup[[#This Row],[Alloc4FUNC]])","v":"1010000ELEC PLANT IN SERV3961200THREE-AXLE DIGGER/DERRICK LINE TRUCKSSITUS"},1010000,"ELEC PLANT IN SERV",3961200,"THREE-AXLE DIGGER/DERRICK LINE TRUCKS","SITUS",null,{"$f":"IF(OR(tblGPLookup[[#This Row],[Alloc]]=\"IDU\",tblGPLookup[[#This Row],[Alloc]]=\"OR\",tblGPLookup[[#This Row],[Alloc]]=\"UT\",tblGPLookup[[#This Row],[Alloc]]=\"WYU\",tblGPLookup[[#This Row],[Alloc]]=\"WYP\",tblGPLookup[[#This Row],[Alloc]]=\"CA\",tblGPLookup[[#This Row],[Alloc]]=\"WA\"),\"SITUS\",tblGPLookup[[#This Row],[Alloc]])","v":"SITUS"},"DPW"]
[{"$f":"CONCATENATE(tblGPLookup[[#This Row],[Primary Account]],tblGPLookup[[#This Row],[Primary Name]],tblGPLookup[[#This Row],[Secondary Acct]],tblGPLookup[[#This Row],[Secondary  Name]],tblGPLookup[[#This Row],[Alloc4FUNC]])","v":"1010000ELEC PLANT IN SERV3961200THREE-AXLE DIGGER/DERRICK LINE TRUCKSSITUS"},1010000,"ELEC PLANT IN SERV",3961200,"THREE-AXLE DIGGER/DERRICK LINE TRUCKS","SITUS",null,{"$f":"IF(OR(tblGPLookup[[#This Row],[Alloc]]=\"IDU\",tblGPLookup[[#This Row],[Alloc]]=\"OR\",tblGPLookup[[#This Row],[Alloc]]=\"UT\",tblGPLookup[[#This Row],[Alloc]]=\"WYU\",tblGPLookup[[#This Row],[Alloc]]=\"WYP\",tblGPLookup[[#This Row],[Alloc]]=\"CA\",tblGPLookup[[#This Row],[Alloc]]=\"WA\"),\"SITUS\",tblGPLookup[[#This Row],[Alloc]])","v":"SITUS"},"DPW"]
[{"$f":"CONCATENATE(tblGPLookup[[#This Row],[Primary Account]],tblGPLookup[[#This Row],[Primary Name]],tblGPLookup[[#This Row],[Secondary Acct]],tblGPLookup[[#This Row],[Secondary  Name]],tblGPLookup[[#This Row],[Alloc4FUNC]])","v":"1010000ELEC PLANT IN SERV3961300SNOWCATS, BACKHOES, TRENCHERS, SNOWBLOWRSITUS"},1010000,"ELEC PLANT IN SERV",3961300,"SNOWCATS, BACKHOES, TRENCHERS, SNOWBLOWR","SITUS",null,{"$f":"IF(OR(tblGPLookup[[#This Row],[Alloc]]=\"IDU\",tblGPLookup[[#This Row],[Alloc]]=\"OR\",tblGPLookup[[#This Row],[Alloc]]=\"UT\",tblGPLookup[[#This Row],[Alloc]]=\"WYU\",tblGPLookup[[#This Row],[Alloc]]=\"WYP\",tblGPLookup[[#This Row],[Alloc]]=\"CA\",tblGPLookup[[#This Row],[Alloc]]=\"WA\"),\"SITUS\",tblGPLookup[[#This Row],[Alloc]])","v":"SITUS"},"DPW"]
[{"$f":"CONCATENATE(tblGPLookup[[#This Row],[Primary Account]],tblGPLookup[[#This Row],[Primary Name]],tblGPLookup[[#This Row],[Secondary Acct]],tblGPLookup[[#This Row],[Secondary  Name]],tblGPLookup[[#This Row],[Alloc4FUNC]])","v":"1010000ELEC PLANT IN SERV3961300SNOWCATS, BACKHOES, TRENCHERS, SNOWBLOWRSITUS"},1010000,"ELEC PLANT IN SERV",3961300,"SNOWCATS, BACKHOES, TRENCHERS, SNOWBLOWR","SITUS",null,{"$f":"IF(OR(tblGPLookup[[#This Row],[Alloc]]=\"IDU\",tblGPLookup[[#This Row],[Alloc]]=\"OR\",tblGPLookup[[#This Row],[Alloc]]=\"UT\",tblGPLookup[[#This Row],[Alloc]]=\"WYU\",tblGPLookup[[#This Row],[Alloc]]=\"WYP\",tblGPLookup[[#This Row],[Alloc]]=\"CA\",tblGPLookup[[#This Row],[Alloc]]=\"WA\"),\"SITUS\",tblGPLookup[[#This Row],[Alloc]])","v":"SITUS"},"DPW"]
[{"$f":"CONCATENATE(tblGPLookup[[#This Row],[Primary Account]],tblGPLookup[[#This Row],[Primary Name]],tblGPLookup[[#This Row],[Secondary Acct]],tblGPLookup[[#This Row],[Secondary  Name]],tblGPLookup[[#This Row],[Alloc4FUNC]])","v":"1010000ELEC PLANT IN SERV3961300SNOWCATS, BACKHOES, TRENCHERS, SNOWBLOWRSE"},1010000,"ELEC PLANT IN SERV",3961300,"SNOWCATS, BACKHOES, TRENCHERS, SNOWBLOWR","SE",null,{"$f":"IF(OR(tblGPLookup[[#This Row],[Alloc]]=\"IDU\",tblGPLookup[[#This Row],[Alloc]]=\"OR\",tblGPLookup[[#This Row],[Alloc]]=\"UT\",tblGPLookup[[#This Row],[Alloc]]=\"WYU\",tblGPLookup[[#This Row],[Alloc]]=\"WYP\",tblGPLookup[[#This Row],[Alloc]]=\"CA\",tblGPLookup[[#This Row],[Alloc]]=\"WA\"),\"SITUS\",tblGPLookup[[#This Row],[Alloc]])","v":"SE"},"P"]
[{"$f":"CONCATENATE(tblGPLookup[[#This Row],[Primary Account]],tblGPLookup[[#This Row],[Primary Name]],tblGPLookup[[#This Row],[Secondary Acct]],tblGPLookup[[#This Row],[Secondary  Name]],tblGPLookup[[#This Row],[Alloc4FUNC]])","v":"1010000ELEC PLANT IN SERV3961300SNOWCATS, BACKHOES, TRENCHERS, SNOWBLOWRSG"},1010000,"ELEC PLANT IN SERV",3961300,"SNOWCATS, BACKHOES, TRENCHERS, SNOWBLOWR","SG",null,{"$f":"IF(OR(tblGPLookup[[#This Row],[Alloc]]=\"IDU\",tblGPLookup[[#This Row],[Alloc]]=\"OR\",tblGPLookup[[#This Row],[Alloc]]=\"UT\",tblGPLookup[[#This Row],[Alloc]]=\"WYU\",tblGPLookup[[#This Row],[Alloc]]=\"WYP\",tblGPLookup[[#This Row],[Alloc]]=\"CA\",tblGPLookup[[#This Row],[Alloc]]=\"WA\"),\"SITUS\",tblGPLookup[[#This Row],[Alloc]])","v":"SG"},"P"]
[{"$f":"CONCATENATE(tblGPLookup[[#This Row],[Primary Account]],tblGPLookup[[#This Row],[Primary Name]],tblGPLookup[[#This Row],[Secondary Acct]],tblGPLookup[[#This Row],[Secondary  Name]],tblGPLookup[[#This Row],[Alloc4FUNC]])","v":"1010000ELEC PLANT IN SERV3961300SNOWCATS, BACKHOES, TRENCHERS, SNOWBLOWRSITUS"},1010000,"ELEC PLANT IN SERV",3961300,"SNOWCATS, BACKHOES, TRENCHERS, SNOWBLOWR","SITUS",null,{"$f":"IF(OR(tblGPLookup[[#This Row],[Alloc]]=\"IDU\",tblGPLookup[[#This Row],[Alloc]]=\"OR\",tblGPLookup[[#This Row],[Alloc]]=\"UT\",tblGPLookup[[#This Row],[Alloc]]=\"WYU\",tblGPLookup[[#This Row],[Alloc]]=\"WYP\",tblGPLookup[[#This Row],[Alloc]]=\"CA\",tblGPLookup[[#This Row],[Alloc]]=\"WA\"),\"SITUS\",tblGPLookup[[#This Row],[Alloc]])","v":"SITUS"},"DPW"]
[{"$f":"CONCATENATE(tblGPLookup[[#This Row],[Primary Account]],tblGPLookup[[#This Row],[Primary Name]],tblGPLookup[[#This Row],[Secondary Acct]],tblGPLookup[[#This Row],[Secondary  Name]],tblGPLookup[[#This Row],[Alloc4FUNC]])","v":"1010000ELEC PLANT IN SERV3961300SNOWCATS, BACKHOES, TRENCHERS, SNOWBLOWRSO"},1010000,"ELEC PLANT IN SERV",3961300,"SNOWCATS, BACKHOES, TRENCHERS, SNOWBLOWR","SO",null,{"$f":"IF(OR(tblGPLookup[[#This Row],[Alloc]]=\"IDU\",tblGPLookup[[#This Row],[Alloc]]=\"OR\",tblGPLookup[[#This Row],[Alloc]]=\"UT\",tblGPLookup[[#This Row],[Alloc]]=\"WYU\",tblGPLookup[[#This Row],[Alloc]]=\"WYP\",tblGPLookup[[#This Row],[Alloc]]=\"CA\",tblGPLookup[[#This Row],[Alloc]]=\"WA\"),\"SITUS\",tblGPLookup[[#This Row],[Alloc]])","v":"SO"},"PTD"]
[{"$f":"CONCATENATE(tblGPLookup[[#This Row],[Primary Account]],tblGPLookup[[#This Row],[Primary Name]],tblGPLookup[[#This Row],[Secondary Acct]],tblGPLookup[[#This Row],[Secondary  Name]],tblGPLookup[[#This Row],[Alloc4FUNC]])","v":"1010000ELEC PLANT IN SERV3961300SNOWCATS, BACKHOES, TRENCHERS, SNOWBLOWRSITUS"},1010000,"ELEC PLANT IN SERV",3961300,"SNOWCATS, BACKHOES, TRENCHERS, SNOWBLOWR","SITUS",null,{"$f":"IF(OR(tblGPLookup[[#This Row],[Alloc]]=\"IDU\",tblGPLookup[[#This Row],[Alloc]]=\"OR\",tblGPLookup[[#This Row],[Alloc]]=\"UT\",tblGPLookup[[#This Row],[Alloc]]=\"WYU\",tblGPLookup[[#This Row],[Alloc]]=\"WYP\",tblGPLookup[[#This Row],[Alloc]]=\"CA\",tblGPLookup[[#This Row],[Alloc]]=\"WA\"),\"SITUS\",tblGPLookup[[#This Row],[Alloc]])","v":"SITUS"},"DPW"]
[{"$f":"CONCATENATE(tblGPLookup[[#This Row],[Primary Account]],tblGPLookup[[#This Row],[Primary Name]],tblGPLookup[[#This Row],[Secondary Acct]],tblGPLookup[[#This Row],[Secondary  Name]],tblGPLookup[[#This Row],[Alloc4FUNC]])","v":"1010000ELEC PLANT IN SERV3961300SNOWCATS, BACKHOES, TRENCHERS, SNOWBLOWRSITUS"},1010000,"ELEC PLANT IN SERV",3961300,"SNOWCATS, BACKHOES, TRENCHERS, SNOWBLOWR","SITUS",null,{"$f":"IF(OR(tblGPLookup[[#This Row],[Alloc]]=\"IDU\",tblGPLookup[[#This Row],[Alloc]]=\"OR\",tblGPLookup[[#This Row],[Alloc]]=\"UT\",tblGPLookup[[#This Row],[Alloc]]=\"WYU\",tblGPLookup[[#This Row],[Alloc]]=\"WYP\",tblGPLookup[[#This Row],[Alloc]]=\"CA\",tblGPLookup[[#This Row],[Alloc]]=\"WA\"),\"SITUS\",tblGPLookup[[#This Row],[Alloc]])","v":"SITUS"},"DPW"]
[{"$f":"CONCATENATE(tblGPLookup[[#This Row],[Primary Account]],tblGPLookup[[#This Row],[Primary Name]],tblGPLookup[[#This Row],[Secondary Acct]],tblGPLookup[[#This Row],[Secondary  Name]],tblGPLookup[[#This Row],[Alloc4FUNC]])","v":"1010000ELEC PLANT IN SERV3961300SNOWCATS, BACKHOES, TRENCHERS, SNOWBLOWRSITUS"},1010000,"ELEC PLANT IN SERV",3961300,"SNOWCATS, BACKHOES, TRENCHERS, SNOWBLOWR","SITUS",null,{"$f":"IF(OR(tblGPLookup[[#This Row],[Alloc]]=\"IDU\",tblGPLookup[[#This Row],[Alloc]]=\"OR\",tblGPLookup[[#This Row],[Alloc]]=\"UT\",tblGPLookup[[#This Row],[Alloc]]=\"WYU\",tblGPLookup[[#This Row],[Alloc]]=\"WYP\",tblGPLookup[[#This Row],[Alloc]]=\"CA\",tblGPLookup[[#This Row],[Alloc]]=\"WA\"),\"SITUS\",tblGPLookup[[#This Row],[Alloc]])","v":"SITUS"},"DPW"]
[{"$f":"CONCATENATE(tblGPLookup[[#This Row],[Primary Account]],tblGPLookup[[#This Row],[Primary Name]],tblGPLookup[[#This Row],[Secondary Acct]],tblGPLookup[[#This Row],[Secondary  Name]],tblGPLookup[[#This Row],[Alloc4FUNC]])","v":"1010000ELEC PLANT IN SERV3961300SNOWCATS, BACKHOES, TRENCHERS, SNOWBLOWRSITUS"},1010000,"ELEC PLANT IN SERV",3961300,"SNOWCATS, BACKHOES, TRENCHERS, SNOWBLOWR","SITUS",null,{"$f":"IF(OR(tblGPLookup[[#This Row],[Alloc]]=\"IDU\",tblGPLookup[[#This Row],[Alloc]]=\"OR\",tblGPLookup[[#This Row],[Alloc]]=\"UT\",tblGPLookup[[#This Row],[Alloc]]=\"WYU\",tblGPLookup[[#This Row],[Alloc]]=\"WYP\",tblGPLookup[[#This Row],[Alloc]]=\"CA\",tblGPLookup[[#This Row],[Alloc]]=\"WA\"),\"SITUS\",tblGPLookup[[#This Row],[Alloc]])","v":"SITUS"},"DPW"]
[{"$f":"CONCATENATE(tblGPLookup[[#This Row],[Primary Account]],tblGPLookup[[#This Row],[Primary Name]],tblGPLookup[[#This Row],[Secondary Acct]],tblGPLookup[[#This Row],[Secondary  Name]],tblGPLookup[[#This Row],[Alloc4FUNC]])","v":"1010000ELEC PLANT IN SERV3970000COMMUNICATION EQUIPMENTCN"},1010000,"ELEC PLANT IN SERV",3970000,"COMMUNICATION EQUIPMENT","CN",null,{"$f":"IF(OR(tblGPLookup[[#This Row],[Alloc]]=\"IDU\",tblGPLookup[[#This Row],[Alloc]]=\"OR\",tblGPLookup[[#This Row],[Alloc]]=\"UT\",tblGPLookup[[#This Row],[Alloc]]=\"WYU\",tblGPLookup[[#This Row],[Alloc]]=\"WYP\",tblGPLookup[[#This Row],[Alloc]]=\"CA\",tblGPLookup[[#This Row],[Alloc]]=\"WA\"),\"SITUS\",tblGPLookup[[#This Row],[Alloc]])","v":"CN"},"CUST"]
[{"$f":"CONCATENATE(tblGPLookup[[#This Row],[Primary Account]],tblGPLookup[[#This Row],[Primary Name]],tblGPLookup[[#This Row],[Secondary Acct]],tblGPLookup[[#This Row],[Secondary  Name]],tblGPLookup[[#This Row],[Alloc4FUNC]])","v":"1010000ELEC PLANT IN SERV3970000COMMUNICATION EQUIPMENTSITUS"},1010000,"ELEC PLANT IN SERV",3970000,"COMMUNICATION EQUIPMENT","SITUS",null,{"$f":"IF(OR(tblGPLookup[[#This Row],[Alloc]]=\"IDU\",tblGPLookup[[#This Row],[Alloc]]=\"OR\",tblGPLookup[[#This Row],[Alloc]]=\"UT\",tblGPLookup[[#This Row],[Alloc]]=\"WYU\",tblGPLookup[[#This Row],[Alloc]]=\"WYP\",tblGPLookup[[#This Row],[Alloc]]=\"CA\",tblGPLookup[[#This Row],[Alloc]]=\"WA\"),\"SITUS\",tblGPLookup[[#This Row],[Alloc]])","v":"SITUS"},"TD"]
[{"$f":"CONCATENATE(tblGPLookup[[#This Row],[Primary Account]],tblGPLookup[[#This Row],[Primary Name]],tblGPLookup[[#This Row],[Secondary Acct]],tblGPLookup[[#This Row],[Secondary  Name]],tblGPLookup[[#This Row],[Alloc4FUNC]])","v":"1010000ELEC PLANT IN SERV3970000COMMUNICATION EQUIPMENTSITUS"},1010000,"ELEC PLANT IN SERV",3970000,"COMMUNICATION EQUIPMENT","SITUS",null,{"$f":"IF(OR(tblGPLookup[[#This Row],[Alloc]]=\"IDU\",tblGPLookup[[#This Row],[Alloc]]=\"OR\",tblGPLookup[[#This Row],[Alloc]]=\"UT\",tblGPLookup[[#This Row],[Alloc]]=\"WYU\",tblGPLookup[[#This Row],[Alloc]]=\"WYP\",tblGPLookup[[#This Row],[Alloc]]=\"CA\",tblGPLookup[[#This Row],[Alloc]]=\"WA\"),\"SITUS\",tblGPLookup[[#This Row],[Alloc]])","v":"SITUS"},"TD"]
[{"$f":"CONCATENATE(tblGPLookup[[#This Row],[Primary Account]],tblGPLookup[[#This Row],[Primary Name]],tblGPLookup[[#This Row],[Secondary Acct]],tblGPLookup[[#This Row],[Secondary  Name]],tblGPLookup[[#This Row],[Alloc4FUNC]])","v":"1010000ELEC PLANT IN SERV3970000COMMUNICATION EQUIPMENTSE"},1010000,"ELEC PLANT IN SERV",3970000,"COMMUNICATION EQUIPMENT","SE",null,{"$f":"IF(OR(tblGPLookup[[#This Row],[Alloc]]=\"IDU\",tblGPLookup[[#This Row],[Alloc]]=\"OR\",tblGPLookup[[#This Row],[Alloc]]=\"UT\",tblGPLookup[[#This Row],[Alloc]]=\"WYU\",tblGPLookup[[#This Row],[Alloc]]=\"WYP\",tblGPLookup[[#This Row],[Alloc]]=\"CA\",tblGPLookup[[#This Row],[Alloc]]=\"WA\"),\"SITUS\",tblGPLookup[[#This Row],[Alloc]])","v":"SE"},"P"]
[{"$f":"CONCATENATE(tblGPLookup[[#This Row],[Primary Account]],tblGPLookup[[#This Row],[Primary Name]],tblGPLookup[[#This Row],[Secondary Acct]],tblGPLookup[[#This Row],[Secondary  Name]],tblGPLookup[[#This Row],[Alloc4FUNC]])","v":"1010000ELEC PLANT IN SERV3970000COMMUNICATION EQUIPMENTSG"},1010000,"ELEC PLANT IN SERV",3970000,"COMMUNICATION EQUIPMENT","SG",null,{"$f":"IF(OR(tblGPLookup[[#This Row],[Alloc]]=\"IDU\",tblGPLookup[[#This Row],[Alloc]]=\"OR\",tblGPLookup[[#This Row],[Alloc]]=\"UT\",tblGPLookup[[#This Row],[Alloc]]=\"WYU\",tblGPLookup[[#This Row],[Alloc]]=\"WYP\",tblGPLookup[[#This Row],[Alloc]]=\"CA\",tblGPLookup[[#This Row],[Alloc]]=\"WA\"),\"SITUS\",tblGPLookup[[#This Row],[Alloc]])","v":"SG"},"T"]
[{"$f":"CONCATENATE(tblGPLookup[[#This Row],[Primary Account]],tblGPLookup[[#This Row],[Primary Name]],tblGPLookup[[#This Row],[Secondary Acct]],tblGPLookup[[#This Row],[Secondary  Name]],tblGPLookup[[#This Row],[Alloc4FUNC]])","v":"1010000ELEC PLANT IN SERV3970000COMMUNICATION EQUIPMENTSITUS"},1010000,"ELEC PLANT IN SERV",3970000,"COMMUNICATION EQUIPMENT","SITUS",null,{"$f":"IF(OR(tblGPLookup[[#This Row],[Alloc]]=\"IDU\",tblGPLookup[[#This Row],[Alloc]]=\"OR\",tblGPLookup[[#This Row],[Alloc]]=\"UT\",tblGPLookup[[#This Row],[Alloc]]=\"WYU\",tblGPLookup[[#This Row],[Alloc]]=\"WYP\",tblGPLookup[[#This Row],[Alloc]]=\"CA\",tblGPLookup[[#This Row],[Alloc]]=\"WA\"),\"SITUS\",tblGPLookup[[#This Row],[Alloc]])","v":"SITUS"},"TD"]
[{"$f":"CONCATENATE(tblGPLookup[[#This Row],[Primary Account]],tblGPLookup[[#This Row],[Primary Name]],tblGPLookup[[#This Row],[Secondary Acct]],tblGPLookup[[#This Row],[Secondary  Name]],tblGPLookup[[#This Row],[Alloc4FUNC]])","v":"1010000ELEC PLANT IN SERV3970000COMMUNICATION EQUIPMENTSO"},1010000,"ELEC PLANT IN SERV",3970000,"COMMUNICATION EQUIPMENT","SO",null,{"$f":"IF(OR(tblGPLookup[[#This Row],[Alloc]]=\"IDU\",tblGPLookup[[#This Row],[Alloc]]=\"OR\",tblGPLookup[[#This Row],[Alloc]]=\"UT\",tblGPLookup[[#This Row],[Alloc]]=\"WYU\",tblGPLookup[[#This Row],[Alloc]]=\"WYP\",tblGPLookup[[#This Row],[Alloc]]=\"CA\",tblGPLookup[[#This Row],[Alloc]]=\"WA\"),\"SITUS\",tblGPLookup[[#This Row],[Alloc]])","v":"SO"},"PTD"]
[{"$f":"CONCATENATE(tblGPLookup[[#This Row],[Primary Account]],tblGPLookup[[#This Row],[Primary Name]],tblGPLookup[[#This Row],[Secondary Acct]],tblGPLookup[[#This Row],[Secondary  Name]],tblGPLookup[[#This Row],[Alloc4FUNC]])","v":"1010000ELEC PLANT IN SERV3970000COMMUNICATION EQUIPMENTSITUS"},1010000,"ELEC PLANT IN SERV",3970000,"COMMUNICATION EQUIPMENT","SITUS",null,{"$f":"IF(OR(tblGPLookup[[#This Row],[Alloc]]=\"IDU\",tblGPLookup[[#This Row],[Alloc]]=\"OR\",tblGPLookup[[#This Row],[Alloc]]=\"UT\",tblGPLookup[[#This Row],[Alloc]]=\"WYU\",tblGPLookup[[#This Row],[Alloc]]=\"WYP\",tblGPLookup[[#This Row],[Alloc]]=\"CA\",tblGPLookup[[#This Row],[Alloc]]=\"WA\"),\"SITUS\",tblGPLookup[[#This Row],[Alloc]])","v":"SITUS"},"TD"]
[{"$f":"CONCATENATE(tblGPLookup[[#This Row],[Primary Account]],tblGPLookup[[#This Row],[Primary Name]],tblGPLookup[[#This Row],[Secondary Acct]],tblGPLookup[[#This Row],[Secondary  Name]],tblGPLookup[[#This Row],[Alloc4FUNC]])","v":"1010000ELEC PLANT IN SERV3970000COMMUNICATION EQUIPMENTSITUS"},1010000,"ELEC PLANT IN SERV",3970000,"COMMUNICATION EQUIPMENT","SITUS",null,{"$f":"IF(OR(tblGPLookup[[#This Row],[Alloc]]=\"IDU\",tblGPLookup[[#This Row],[Alloc]]=\"OR\",tblGPLookup[[#This Row],[Alloc]]=\"UT\",tblGPLookup[[#This Row],[Alloc]]=\"WYU\",tblGPLookup[[#This Row],[Alloc]]=\"WYP\",tblGPLookup[[#This Row],[Alloc]]=\"CA\",tblGPLookup[[#This Row],[Alloc]]=\"WA\"),\"SITUS\",tblGPLookup[[#This Row],[Alloc]])","v":"SITUS"},"TD"]
[{"$f":"CONCATENATE(tblGPLookup[[#This Row],[Primary Account]],tblGPLookup[[#This Row],[Primary Name]],tblGPLookup[[#This Row],[Secondary Acct]],tblGPLookup[[#This Row],[Secondary  Name]],tblGPLookup[[#This Row],[Alloc4FUNC]])","v":"1010000ELEC PLANT IN SERV3970000COMMUNICATION EQUIPMENTSITUS"},1010000,"ELEC PLANT IN SERV",3970000,"COMMUNICATION EQUIPMENT","SITUS",null,{"$f":"IF(OR(tblGPLookup[[#This Row],[Alloc]]=\"IDU\",tblGPLookup[[#This Row],[Alloc]]=\"OR\",tblGPLookup[[#This Row],[Alloc]]=\"UT\",tblGPLookup[[#This Row],[Alloc]]=\"WYU\",tblGPLookup[[#This Row],[Alloc]]=\"WYP\",tblGPLookup[[#This Row],[Alloc]]=\"CA\",tblGPLookup[[#This Row],[Alloc]]=\"WA\"),\"SITUS\",tblGPLookup[[#This Row],[Alloc]])","v":"SITUS"},"TD"]
[{"$f":"CONCATENATE(tblGPLookup[[#This Row],[Primary Account]],tblGPLookup[[#This Row],[Primary Name]],tblGPLookup[[#This Row],[Secondary Acct]],tblGPLookup[[#This Row],[Secondary  Name]],tblGPLookup[[#This Row],[Alloc4FUNC]])","v":"1010000ELEC PLANT IN SERV3970000COMMUNICATION EQUIPMENTSITUS"},1010000,"ELEC PLANT IN SERV",3970000,"COMMUNICATION EQUIPMENT","SITUS",null,{"$f":"IF(OR(tblGPLookup[[#This Row],[Alloc]]=\"IDU\",tblGPLookup[[#This Row],[Alloc]]=\"OR\",tblGPLookup[[#This Row],[Alloc]]=\"UT\",tblGPLookup[[#This Row],[Alloc]]=\"WYU\",tblGPLookup[[#This Row],[Alloc]]=\"WYP\",tblGPLookup[[#This Row],[Alloc]]=\"CA\",tblGPLookup[[#This Row],[Alloc]]=\"WA\"),\"SITUS\",tblGPLookup[[#This Row],[Alloc]])","v":"SITUS"},"TD"]
[{"$f":"CONCATENATE(tblGPLookup[[#This Row],[Primary Account]],tblGPLookup[[#This Row],[Primary Name]],tblGPLookup[[#This Row],[Secondary Acct]],tblGPLookup[[#This Row],[Secondary  Name]],tblGPLookup[[#This Row],[Alloc4FUNC]])","v":"1010000ELEC PLANT IN SERV3972000MOBILE RADIO EQUIPMENTSITUS"},1010000,"ELEC PLANT IN SERV",3972000,"MOBILE RADIO EQUIPMENT","SITUS",null,{"$f":"IF(OR(tblGPLookup[[#This Row],[Alloc]]=\"IDU\",tblGPLookup[[#This Row],[Alloc]]=\"OR\",tblGPLookup[[#This Row],[Alloc]]=\"UT\",tblGPLookup[[#This Row],[Alloc]]=\"WYU\",tblGPLookup[[#This Row],[Alloc]]=\"WYP\",tblGPLookup[[#This Row],[Alloc]]=\"CA\",tblGPLookup[[#This Row],[Alloc]]=\"WA\"),\"SITUS\",tblGPLookup[[#This Row],[Alloc]])","v":"SITUS"},"TD"]
[{"$f":"CONCATENATE(tblGPLookup[[#This Row],[Primary Account]],tblGPLookup[[#This Row],[Primary Name]],tblGPLookup[[#This Row],[Secondary Acct]],tblGPLookup[[#This Row],[Secondary  Name]],tblGPLookup[[#This Row],[Alloc4FUNC]])","v":"1010000ELEC PLANT IN SERV3972000MOBILE RADIO EQUIPMENTSITUS"},1010000,"ELEC PLANT IN SERV",3972000,"MOBILE RADIO EQUIPMENT","SITUS",null,{"$f":"IF(OR(tblGPLookup[[#This Row],[Alloc]]=\"IDU\",tblGPLookup[[#This Row],[Alloc]]=\"OR\",tblGPLookup[[#This Row],[Alloc]]=\"UT\",tblGPLookup[[#This Row],[Alloc]]=\"WYU\",tblGPLookup[[#This Row],[Alloc]]=\"WYP\",tblGPLookup[[#This Row],[Alloc]]=\"CA\",tblGPLookup[[#This Row],[Alloc]]=\"WA\"),\"SITUS\",tblGPLookup[[#This Row],[Alloc]])","v":"SITUS"},"TD"]
[{"$f":"CONCATENATE(tblGPLookup[[#This Row],[Primary Account]],tblGPLookup[[#This Row],[Primary Name]],tblGPLookup[[#This Row],[Secondary Acct]],tblGPLookup[[#This Row],[Secondary  Name]],tblGPLookup[[#This Row],[Alloc4FUNC]])","v":"1010000ELEC PLANT IN SERV3972000MOBILE RADIO EQUIPMENTSE"},1010000,"ELEC PLANT IN SERV",3972000,"MOBILE RADIO EQUIPMENT","SE",null,{"$f":"IF(OR(tblGPLookup[[#This Row],[Alloc]]=\"IDU\",tblGPLookup[[#This Row],[Alloc]]=\"OR\",tblGPLookup[[#This Row],[Alloc]]=\"UT\",tblGPLookup[[#This Row],[Alloc]]=\"WYU\",tblGPLookup[[#This Row],[Alloc]]=\"WYP\",tblGPLookup[[#This Row],[Alloc]]=\"CA\",tblGPLookup[[#This Row],[Alloc]]=\"WA\"),\"SITUS\",tblGPLookup[[#This Row],[Alloc]])","v":"SE"},"P"]
[{"$f":"CONCATENATE(tblGPLookup[[#This Row],[Primary Account]],tblGPLookup[[#This Row],[Primary Name]],tblGPLookup[[#This Row],[Secondary Acct]],tblGPLookup[[#This Row],[Secondary  Name]],tblGPLookup[[#This Row],[Alloc4FUNC]])","v":"1010000ELEC PLANT IN SERV3972000MOBILE RADIO EQUIPMENTSG"},1010000,"ELEC PLANT IN SERV",3972000,"MOBILE RADIO EQUIPMENT","SG",null,{"$f":"IF(OR(tblGPLookup[[#This Row],[Alloc]]=\"IDU\",tblGPLookup[[#This Row],[Alloc]]=\"OR\",tblGPLookup[[#This Row],[Alloc]]=\"UT\",tblGPLookup[[#This Row],[Alloc]]=\"WYU\",tblGPLookup[[#This Row],[Alloc]]=\"WYP\",tblGPLookup[[#This Row],[Alloc]]=\"CA\",tblGPLookup[[#This Row],[Alloc]]=\"WA\"),\"SITUS\",tblGPLookup[[#This Row],[Alloc]])","v":"SG"},"P"]
[{"$f":"CONCATENATE(tblGPLookup[[#This Row],[Primary Account]],tblGPLookup[[#This Row],[Primary Name]],tblGPLookup[[#This Row],[Secondary Acct]],tblGPLookup[[#This Row],[Secondary  Name]],tblGPLookup[[#This Row],[Alloc4FUNC]])","v":"1010000ELEC PLANT IN SERV3972000MOBILE RADIO EQUIPMENTSITUS"},1010000,"ELEC PLANT IN SERV",3972000,"MOBILE RADIO EQUIPMENT","SITUS",null,{"$f":"IF(OR(tblGPLookup[[#This Row],[Alloc]]=\"IDU\",tblGPLookup[[#This Row],[Alloc]]=\"OR\",tblGPLookup[[#This Row],[Alloc]]=\"UT\",tblGPLookup[[#This Row],[Alloc]]=\"WYU\",tblGPLookup[[#This Row],[Alloc]]=\"WYP\",tblGPLookup[[#This Row],[Alloc]]=\"CA\",tblGPLookup[[#This Row],[Alloc]]=\"WA\"),\"SITUS\",tblGPLookup[[#This Row],[Alloc]])","v":"SITUS"},"TD"]
[{"$f":"CONCATENATE(tblGPLookup[[#This Row],[Primary Account]],tblGPLookup[[#This Row],[Primary Name]],tblGPLookup[[#This Row],[Secondary Acct]],tblGPLookup[[#This Row],[Secondary  Name]],tblGPLookup[[#This Row],[Alloc4FUNC]])","v":"1010000ELEC PLANT IN SERV3972000MOBILE RADIO EQUIPMENTSO"},1010000,"ELEC PLANT IN SERV",3972000,"MOBILE RADIO EQUIPMENT","SO",null,{"$f":"IF(OR(tblGPLookup[[#This Row],[Alloc]]=\"IDU\",tblGPLookup[[#This Row],[Alloc]]=\"OR\",tblGPLookup[[#This Row],[Alloc]]=\"UT\",tblGPLookup[[#This Row],[Alloc]]=\"WYU\",tblGPLookup[[#This Row],[Alloc]]=\"WYP\",tblGPLookup[[#This Row],[Alloc]]=\"CA\",tblGPLookup[[#This Row],[Alloc]]=\"WA\"),\"SITUS\",tblGPLookup[[#This Row],[Alloc]])","v":"SO"},"PTD"]
[{"$f":"CONCATENATE(tblGPLookup[[#This Row],[Primary Account]],tblGPLookup[[#This Row],[Primary Name]],tblGPLookup[[#This Row],[Secondary Acct]],tblGPLookup[[#This Row],[Secondary  Name]],tblGPLookup[[#This Row],[Alloc4FUNC]])","v":"1010000ELEC PLANT IN SERV3972000MOBILE RADIO EQUIPMENTSITUS"},1010000,"ELEC PLANT IN SERV",3972000,"MOBILE RADIO EQUIPMENT","SITUS",null,{"$f":"IF(OR(tblGPLookup[[#This Row],[Alloc]]=\"IDU\",tblGPLookup[[#This Row],[Alloc]]=\"OR\",tblGPLookup[[#This Row],[Alloc]]=\"UT\",tblGPLookup[[#This Row],[Alloc]]=\"WYU\",tblGPLookup[[#This Row],[Alloc]]=\"WYP\",tblGPLookup[[#This Row],[Alloc]]=\"CA\",tblGPLookup[[#This Row],[Alloc]]=\"WA\"),\"SITUS\",tblGPLookup[[#This Row],[Alloc]])","v":"SITUS"},"TD"]
[{"$f":"CONCATENATE(tblGPLookup[[#This Row],[Primary Account]],tblGPLookup[[#This Row],[Primary Name]],tblGPLookup[[#This Row],[Secondary Acct]],tblGPLookup[[#This Row],[Secondary  Name]],tblGPLookup[[#This Row],[Alloc4FUNC]])","v":"1010000ELEC PLANT IN SERV3972000MOBILE RADIO EQUIPMENTSITUS"},1010000,"ELEC PLANT IN SERV",3972000,"MOBILE RADIO EQUIPMENT","SITUS",null,{"$f":"IF(OR(tblGPLookup[[#This Row],[Alloc]]=\"IDU\",tblGPLookup[[#This Row],[Alloc]]=\"OR\",tblGPLookup[[#This Row],[Alloc]]=\"UT\",tblGPLookup[[#This Row],[Alloc]]=\"WYU\",tblGPLookup[[#This Row],[Alloc]]=\"WYP\",tblGPLookup[[#This Row],[Alloc]]=\"CA\",tblGPLookup[[#This Row],[Alloc]]=\"WA\"),\"SITUS\",tblGPLookup[[#This Row],[Alloc]])","v":"SITUS"},"TD"]
[{"$f":"CONCATENATE(tblGPLookup[[#This Row],[Primary Account]],tblGPLookup[[#This Row],[Primary Name]],tblGPLookup[[#This Row],[Secondary Acct]],tblGPLookup[[#This Row],[Secondary  Name]],tblGPLookup[[#This Row],[Alloc4FUNC]])","v":"1010000ELEC PLANT IN SERV3972000MOBILE RADIO EQUIPMENTSITUS"},1010000,"ELEC PLANT IN SERV",3972000,"MOBILE RADIO EQUIPMENT","SITUS",null,{"$f":"IF(OR(tblGPLookup[[#This Row],[Alloc]]=\"IDU\",tblGPLookup[[#This Row],[Alloc]]=\"OR\",tblGPLookup[[#This Row],[Alloc]]=\"UT\",tblGPLookup[[#This Row],[Alloc]]=\"WYU\",tblGPLookup[[#This Row],[Alloc]]=\"WYP\",tblGPLookup[[#This Row],[Alloc]]=\"CA\",tblGPLookup[[#This Row],[Alloc]]=\"WA\"),\"SITUS\",tblGPLookup[[#This Row],[Alloc]])","v":"SITUS"},"TD"]
[{"$f":"CONCATENATE(tblGPLookup[[#This Row],[Primary Account]],tblGPLookup[[#This Row],[Primary Name]],tblGPLookup[[#This Row],[Secondary Acct]],tblGPLookup[[#This Row],[Secondary  Name]],tblGPLookup[[#This Row],[Alloc4FUNC]])","v":"1010000ELEC PLANT IN SERV3972000MOBILE RADIO EQUIPMENTSITUS"},1010000,"ELEC PLANT IN SERV",3972000,"MOBILE RADIO EQUIPMENT","SITUS",null,{"$f":"IF(OR(tblGPLookup[[#This Row],[Alloc]]=\"IDU\",tblGPLookup[[#This Row],[Alloc]]=\"OR\",tblGPLookup[[#This Row],[Alloc]]=\"UT\",tblGPLookup[[#This Row],[Alloc]]=\"WYU\",tblGPLookup[[#This Row],[Alloc]]=\"WYP\",tblGPLookup[[#This Row],[Alloc]]=\"CA\",tblGPLookup[[#This Row],[Alloc]]=\"WA\"),\"SITUS\",tblGPLookup[[#This Row],[Alloc]])","v":"SITUS"},"TD"]
[{"$f":"CONCATENATE(tblGPLookup[[#This Row],[Primary Account]],tblGPLookup[[#This Row],[Primary Name]],tblGPLookup[[#This Row],[Secondary Acct]],tblGPLookup[[#This Row],[Secondary  Name]],tblGPLookup[[#This Row],[Alloc4FUNC]])","v":"1010000ELEC PLANT IN SERV3980000MISCELLANEOUS EQUIPMENTCN"},1010000,"ELEC PLANT IN SERV",3980000,"MISCELLANEOUS EQUIPMENT","CN",null,{"$f":"IF(OR(tblGPLookup[[#This Row],[Alloc]]=\"IDU\",tblGPLookup[[#This Row],[Alloc]]=\"OR\",tblGPLookup[[#This Row],[Alloc]]=\"UT\",tblGPLookup[[#This Row],[Alloc]]=\"WYU\",tblGPLookup[[#This Row],[Alloc]]=\"WYP\",tblGPLookup[[#This Row],[Alloc]]=\"CA\",tblGPLookup[[#This Row],[Alloc]]=\"WA\"),\"SITUS\",tblGPLookup[[#This Row],[Alloc]])","v":"CN"},"CUST"]
[{"$f":"CONCATENATE(tblGPLookup[[#This Row],[Primary Account]],tblGPLookup[[#This Row],[Primary Name]],tblGPLookup[[#This Row],[Secondary Acct]],tblGPLookup[[#This Row],[Secondary  Name]],tblGPLookup[[#This Row],[Alloc4FUNC]])","v":"1010000ELEC PLANT IN SERV3980000MISCELLANEOUS EQUIPMENTSITUS"},1010000,"ELEC PLANT IN SERV",3980000,"MISCELLANEOUS EQUIPMENT","SITUS",null,{"$f":"IF(OR(tblGPLookup[[#This Row],[Alloc]]=\"IDU\",tblGPLookup[[#This Row],[Alloc]]=\"OR\",tblGPLookup[[#This Row],[Alloc]]=\"UT\",tblGPLookup[[#This Row],[Alloc]]=\"WYU\",tblGPLookup[[#This Row],[Alloc]]=\"WYP\",tblGPLookup[[#This Row],[Alloc]]=\"CA\",tblGPLookup[[#This Row],[Alloc]]=\"WA\"),\"SITUS\",tblGPLookup[[#This Row],[Alloc]])","v":"SITUS"},"TD"]
[{"$f":"CONCATENATE(tblGPLookup[[#This Row],[Primary Account]],tblGPLookup[[#This Row],[Primary Name]],tblGPLookup[[#This Row],[Secondary Acct]],tblGPLookup[[#This Row],[Secondary  Name]],tblGPLookup[[#This Row],[Alloc4FUNC]])","v":"1010000ELEC PLANT IN SERV3980000MISCELLANEOUS EQUIPMENTSITUS"},1010000,"ELEC PLANT IN SERV",3980000,"MISCELLANEOUS EQUIPMENT","SITUS",null,{"$f":"IF(OR(tblGPLookup[[#This Row],[Alloc]]=\"IDU\",tblGPLookup[[#This Row],[Alloc]]=\"OR\",tblGPLookup[[#This Row],[Alloc]]=\"UT\",tblGPLookup[[#This Row],[Alloc]]=\"WYU\",tblGPLookup[[#This Row],[Alloc]]=\"WYP\",tblGPLookup[[#This Row],[Alloc]]=\"CA\",tblGPLookup[[#This Row],[Alloc]]=\"WA\"),\"SITUS\",tblGPLookup[[#This Row],[Alloc]])","v":"SITUS"},"TD"]
[{"$f":"CONCATENATE(tblGPLookup[[#This Row],[Primary Account]],tblGPLookup[[#This Row],[Primary Name]],tblGPLookup[[#This Row],[Secondary Acct]],tblGPLookup[[#This Row],[Secondary  Name]],tblGPLookup[[#This Row],[Alloc4FUNC]])","v":"1010000ELEC PLANT IN SERV3980000MISCELLANEOUS EQUIPMENTSE"},1010000,"ELEC PLANT IN SERV",3980000,"MISCELLANEOUS EQUIPMENT","SE",null,{"$f":"IF(OR(tblGPLookup[[#This Row],[Alloc]]=\"IDU\",tblGPLookup[[#This Row],[Alloc]]=\"OR\",tblGPLookup[[#This Row],[Alloc]]=\"UT\",tblGPLookup[[#This Row],[Alloc]]=\"WYU\",tblGPLookup[[#This Row],[Alloc]]=\"WYP\",tblGPLookup[[#This Row],[Alloc]]=\"CA\",tblGPLookup[[#This Row],[Alloc]]=\"WA\"),\"SITUS\",tblGPLookup[[#This Row],[Alloc]])","v":"SE"},"P"]
[{"$f":"CONCATENATE(tblGPLookup[[#This Row],[Primary Account]],tblGPLookup[[#This Row],[Primary Name]],tblGPLookup[[#This Row],[Secondary Acct]],tblGPLookup[[#This Row],[Secondary  Name]],tblGPLookup[[#This Row],[Alloc4FUNC]])","v":"1010000ELEC PLANT IN SERV3980000MISCELLANEOUS EQUIPMENTSG"},1010000,"ELEC PLANT IN SERV",3980000,"MISCELLANEOUS EQUIPMENT","SG",null,{"$f":"IF(OR(tblGPLookup[[#This Row],[Alloc]]=\"IDU\",tblGPLookup[[#This Row],[Alloc]]=\"OR\",tblGPLookup[[#This Row],[Alloc]]=\"UT\",tblGPLookup[[#This Row],[Alloc]]=\"WYU\",tblGPLookup[[#This Row],[Alloc]]=\"WYP\",tblGPLookup[[#This Row],[Alloc]]=\"CA\",tblGPLookup[[#This Row],[Alloc]]=\"WA\"),\"SITUS\",tblGPLookup[[#This Row],[Alloc]])","v":"SG"},"P"]
[{"$f":"CONCATENATE(tblGPLookup[[#This Row],[Primary Account]],tblGPLookup[[#This Row],[Primary Name]],tblGPLookup[[#This Row],[Secondary Acct]],tblGPLookup[[#This Row],[Secondary  Name]],tblGPLookup[[#This Row],[Alloc4FUNC]])","v":"1010000ELEC PLANT IN SERV3980000MISCELLANEOUS EQUIPMENTSITUS"},1010000,"ELEC PLANT IN SERV",3980000,"MISCELLANEOUS EQUIPMENT","SITUS",null,{"$f":"IF(OR(tblGPLookup[[#This Row],[Alloc]]=\"IDU\",tblGPLookup[[#This Row],[Alloc]]=\"OR\",tblGPLookup[[#This Row],[Alloc]]=\"UT\",tblGPLookup[[#This Row],[Alloc]]=\"WYU\",tblGPLookup[[#This Row],[Alloc]]=\"WYP\",tblGPLookup[[#This Row],[Alloc]]=\"CA\",tblGPLookup[[#This Row],[Alloc]]=\"WA\"),\"SITUS\",tblGPLookup[[#This Row],[Alloc]])","v":"SITUS"},"TD"]
[{"$f":"CONCATENATE(tblGPLookup[[#This Row],[Primary Account]],tblGPLookup[[#This Row],[Primary Name]],tblGPLookup[[#This Row],[Secondary Acct]],tblGPLookup[[#This Row],[Secondary  Name]],tblGPLookup[[#This Row],[Alloc4FUNC]])","v":"1010000ELEC PLANT IN SERV3980000MISCELLANEOUS EQUIPMENTSO"},1010000,"ELEC PLANT IN SERV",3980000,"MISCELLANEOUS EQUIPMENT","SO",null,{"$f":"IF(OR(tblGPLookup[[#This Row],[Alloc]]=\"IDU\",tblGPLookup[[#This Row],[Alloc]]=\"OR\",tblGPLookup[[#This Row],[Alloc]]=\"UT\",tblGPLookup[[#This Row],[Alloc]]=\"WYU\",tblGPLookup[[#This Row],[Alloc]]=\"WYP\",tblGPLookup[[#This Row],[Alloc]]=\"CA\",tblGPLookup[[#This Row],[Alloc]]=\"WA\"),\"SITUS\",tblGPLookup[[#This Row],[Alloc]])","v":"SO"},"PTD"]
[{"$f":"CONCATENATE(tblGPLookup[[#This Row],[Primary Account]],tblGPLookup[[#This Row],[Primary Name]],tblGPLookup[[#This Row],[Secondary Acct]],tblGPLookup[[#This Row],[Secondary  Name]],tblGPLookup[[#This Row],[Alloc4FUNC]])","v":"1010000ELEC PLANT IN SERV3980000MISCELLANEOUS EQUIPMENTSITUS"},1010000,"ELEC PLANT IN SERV",3980000,"MISCELLANEOUS EQUIPMENT","SITUS",null,{"$f":"IF(OR(tblGPLookup[[#This Row],[Alloc]]=\"IDU\",tblGPLookup[[#This Row],[Alloc]]=\"OR\",tblGPLookup[[#This Row],[Alloc]]=\"UT\",tblGPLookup[[#This Row],[Alloc]]=\"WYU\",tblGPLookup[[#This Row],[Alloc]]=\"WYP\",tblGPLookup[[#This Row],[Alloc]]=\"CA\",tblGPLookup[[#This Row],[Alloc]]=\"WA\"),\"SITUS\",tblGPLookup[[#This Row],[Alloc]])","v":"SITUS"},"TD"]
[{"$f":"CONCATENATE(tblGPLookup[[#This Row],[Primary Account]],tblGPLookup[[#This Row],[Primary Name]],tblGPLookup[[#This Row],[Secondary Acct]],tblGPLookup[[#This Row],[Secondary  Name]],tblGPLookup[[#This Row],[Alloc4FUNC]])","v":"1010000ELEC PLANT IN SERV3980000MISCELLANEOUS EQUIPMENTSITUS"},1010000,"ELEC PLANT IN SERV",3980000,"MISCELLANEOUS EQUIPMENT","SITUS",null,{"$f":"IF(OR(tblGPLookup[[#This Row],[Alloc]]=\"IDU\",tblGPLookup[[#This Row],[Alloc]]=\"OR\",tblGPLookup[[#This Row],[Alloc]]=\"UT\",tblGPLookup[[#This Row],[Alloc]]=\"WYU\",tblGPLookup[[#This Row],[Alloc]]=\"WYP\",tblGPLookup[[#This Row],[Alloc]]=\"CA\",tblGPLookup[[#This Row],[Alloc]]=\"WA\"),\"SITUS\",tblGPLookup[[#This Row],[Alloc]])","v":"SITUS"},"TD"]
[{"$f":"CONCATENATE(tblGPLookup[[#This Row],[Primary Account]],tblGPLookup[[#This Row],[Primary Name]],tblGPLookup[[#This Row],[Secondary Acct]],tblGPLookup[[#This Row],[Secondary  Name]],tblGPLookup[[#This Row],[Alloc4FUNC]])","v":"1010000ELEC PLANT IN SERV3980000MISCELLANEOUS EQUIPMENTSITUS"},1010000,"ELEC PLANT IN SERV",3980000,"MISCELLANEOUS EQUIPMENT","SITUS",null,{"$f":"IF(OR(tblGPLookup[[#This Row],[Alloc]]=\"IDU\",tblGPLookup[[#This Row],[Alloc]]=\"OR\",tblGPLookup[[#This Row],[Alloc]]=\"UT\",tblGPLookup[[#This Row],[Alloc]]=\"WYU\",tblGPLookup[[#This Row],[Alloc]]=\"WYP\",tblGPLookup[[#This Row],[Alloc]]=\"CA\",tblGPLookup[[#This Row],[Alloc]]=\"WA\"),\"SITUS\",tblGPLookup[[#This Row],[Alloc]])","v":"SITUS"},"TD"]
[{"$f":"CONCATENATE(tblGPLookup[[#This Row],[Primary Account]],tblGPLookup[[#This Row],[Primary Name]],tblGPLookup[[#This Row],[Secondary Acct]],tblGPLookup[[#This Row],[Secondary  Name]],tblGPLookup[[#This Row],[Alloc4FUNC]])","v":"1010000ELEC PLANT IN SERV3980000MISCELLANEOUS EQUIPMENTSITUS"},1010000,"ELEC PLANT IN SERV",3980000,"MISCELLANEOUS EQUIPMENT","SITUS",null,{"$f":"IF(OR(tblGPLookup[[#This Row],[Alloc]]=\"IDU\",tblGPLookup[[#This Row],[Alloc]]=\"OR\",tblGPLookup[[#This Row],[Alloc]]=\"UT\",tblGPLookup[[#This Row],[Alloc]]=\"WYU\",tblGPLookup[[#This Row],[Alloc]]=\"WYP\",tblGPLookup[[#This Row],[Alloc]]=\"CA\",tblGPLookup[[#This Row],[Alloc]]=\"WA\"),\"SITUS\",tblGPLookup[[#This Row],[Alloc]])","v":"SITUS"},"TD"]
[{"$f":"CONCATENATE(tblGPLookup[[#This Row],[Primary Account]],tblGPLookup[[#This Row],[Primary Name]],tblGPLookup[[#This Row],[Secondary Acct]],tblGPLookup[[#This Row],[Secondary  Name]],tblGPLookup[[#This Row],[Alloc4FUNC]])","v":"1010000ELEC PLANT IN SERV3992100LAND OWNED IN FEESE"},1010000,"ELEC PLANT IN SERV",3992100,"LAND OWNED IN FEE","SE",null,{"$f":"IF(OR(tblGPLookup[[#This Row],[Alloc]]=\"IDU\",tblGPLookup[[#This Row],[Alloc]]=\"OR\",tblGPLookup[[#This Row],[Alloc]]=\"UT\",tblGPLookup[[#This Row],[Alloc]]=\"WYU\",tblGPLookup[[#This Row],[Alloc]]=\"WYP\",tblGPLookup[[#This Row],[Alloc]]=\"CA\",tblGPLookup[[#This Row],[Alloc]]=\"WA\"),\"SITUS\",tblGPLookup[[#This Row],[Alloc]])","v":"SE"},"P"]
[null,null,null,null,null,null,{"$f":"SUBTOTAL(109,tblGPLookup[Total ($000)])","v":0}]

{"sheet":"IP June19data","index":18,"n_rows":75,"n_cols":10,"rows_kept":75,"cut":false,"hidden":false,"merged":[]}
["Concat","Primary Account","Primary Name","Secondary Acct","Secondary  Name","Alloc","Total ($000)","Alloc4FUNC","FUNC","Investigate?"]
[{"$f":"CONCATENATE(tblIPJune19[[#This Row],[Primary Account]],tblIPJune19[[#This Row],[Primary Name]],tblIPJune19[[#This Row],[Secondary Acct]],tblIPJune19[[#This Row],[Secondary  Name]],tblIPJune19[[#This Row],[Alloc4FUNC]])","v":"1010000ELEC PLANT IN SERV3020000FRANCHISES AND CONSENTSSITUS"},1010000,"ELEC PLANT IN SERV",3020000,"FRANCHISES AND CONSENTS","IDU",1000,{"$f":"IF(OR(tblIPJune19[[#This Row],[Alloc]]=\"IDU\",tblIPJune19[[#This Row],[Alloc]]=\"OR\",tblIPJune19[[#This Row],[Alloc]]=\"UT\",tblIPJune19[[#This Row],[Alloc]]=\"WYU\",tblIPJune19[[#This Row],[Alloc]]=\"WYP\",tblIPJune19[[#This Row],[Alloc]]=\"CA\",tblIPJune19[[#This Row],[Alloc]]=\"WA\"),\"SITUS\",tblIPJune19[[#This Row],[Alloc]])","v":"SITUS"},{"$f":"INDEX(tblIPLookup[FUNC],MATCH(tblIPJune19[[#This Row],[Concat]],tblIPLookup[Concat],0))","v":"TD"},{"$f":"IF(tblIPJune19[[#This Row],[Total ($000)]]=0,\"NO\",IF(ISNA(tblIPJune19[[#This Row],[FUNC]]),\"YES\",IF(_xlfn.ISFORMULA(tblIPJune19[[#This Row],[FUNC]]),\"NO\",\"YES\")))","v":"NO"}]
[{"$f":"CONCATENATE(tblIPJune19[[#This Row],[Primary Account]],tblIPJune19[[#This Row],[Primary Name]],tblIPJune19[[#This Row],[Secondary Acct]],tblIPJune19[[#This Row],[Secondary  Name]],tblIPJune19[[#This Row],[Alloc4FUNC]])","v":"1010000ELEC PLANT IN SERV3020000FRANCHISES AND CONSENTSSG"},1010000,"ELEC PLANT IN SERV",3020000,"FRANCHISES AND CONSENTS","SG",10337.270896923101,{"$f":"IF(OR(tblIPJune19[[#This Row],[Alloc]]=\"IDU\",tblIPJune19[[#This Row],[Alloc]]=\"OR\",tblIPJune19[[#This Row],[Alloc]]=\"UT\",tblIPJune19[[#This Row],[Alloc]]=\"WYU\",tblIPJune19[[#This Row],[Alloc]]=\"WYP\",tblIPJune19[[#This Row],[Alloc]]=\"CA\",tblIPJune19[[#This Row],[Alloc]]=\"WA\"),\"SITUS\",tblIPJune19[[#This Row],[Alloc]])","v":"SG"},{"$f":"INDEX(tblIPLookup[FUNC],MATCH(tblIPJune19[[#This Row],[Concat]],tblIPLookup[Concat],0))","v":"P"},{"$f":"IF(tblIPJune19[[#This Row],[Total ($000)]]=0,\"NO\",IF(ISNA(tblIPJune19[[#This Row],[FUNC]]),\"YES\",IF(_xlfn.ISFORMULA(tblIPJune19[[#This Row],[FUNC]]),\"NO\",\"YES\")))","v":"NO"}]
[{"$f":"CONCATENATE(tblIPJune19[[#This Row],[Primary Account]],tblIPJune19[[#This Row],[Primary Name]],tblIPJune19[[#This Row],[Secondary Acct]],tblIPJune19[[#This Row],[Secondary  Name]],tblIPJune19[[#This Row],[Alloc4FUNC]])","v":"1010000ELEC PLANT IN SERV3020000FRANCHISES AND CONSENTSSG-U"},1010000,"ELEC PLANT IN SERV",3020000,"FRANCHISES AND CONSENTS","SG-U",9951.3918599999997,{"$f":"IF(OR(tblIPJune19[[#This Row],[Alloc]]=\"IDU\",tblIPJune19[[#This Row],[Alloc]]=\"OR\",tblIPJune19[[#This Row],[Alloc]]=\"UT\",tblIPJune19[[#This Row],[Alloc]]=\"WYU\",tblIPJune19[[#This Row],[Alloc]]=\"WYP\",tblIPJune19[[#This Row],[Alloc]]=\"CA\",tblIPJune19[[#This Row],[Alloc]]=\"WA\"),\"SITUS\",tblIPJune19[[#This Row],[Alloc]])","v":"SG-U"},{"$f":"INDEX(tblIPLookup[FUNC],MATCH(tblIPJune19[[#This Row],[Concat]],tblIPLookup[Concat],0))","v":"P"},{"$f":"IF(tblIPJune19[[#This Row],[Total ($000)]]=0,\"NO\",IF(ISNA(tblIPJune19[[#This Row],[FUNC]]),\"YES\",IF(_xlfn.ISFORMULA(tblIPJune19[[#This Row],[FUNC]]),\"NO\",\"YES\")))","v":"NO"}]
[{"$f":"CONCATENATE(tblIPJune19[[#This Row],[Primary Account]],tblIPJune19[[#This Row],[Primary Name]],tblIPJune19[[#This Row],[Secondary Acct]],tblIPJune19[[#This Row],[Secondary  Name]],tblIPJune19[[#This Row],[Alloc4FUNC]])","v":"1010000xELEC PLANT IN SERV3020000FRANCHISES AND CONSENTSSITUS"},"1010000x","ELEC PLANT IN SERV",3020000,"FRANCHISES AND CONSENTS","UT",-32081.21485,{"$f":"IF(OR(tblIPJune19[[#This Row],[Alloc]]=\"IDU\",tblIPJune19[[#This Row],[Alloc]]=\"OR\",tblIPJune19[[#This Row],[Alloc]]=\"UT\",tblIPJune19[[#This Row],[Alloc]]=\"WYU\",tblIPJune19[[#This Row],[Alloc]]=\"WYP\",tblIPJune19[[#This Row],[Alloc]]=\"CA\",tblIPJune19[[#This Row],[Alloc]]=\"WA\"),\"SITUS\",tblIPJune19[[#This Row],[Alloc]])","v":"SITUS"},{"$f":"INDEX(tblIPLookup[FUNC],MATCH(tblIPJune19[[#This Row],[Concat]],tblIPLookup[Concat],0))","v":"P"},{"$f":"IF(tblIPJune19[[#This Row],[Total ($000)]]=0,\"NO\",IF(ISNA(tblIPJune19[[#This Row],[FUNC]]),\"YES\",IF(_xlfn.ISFORMULA(tblIPJune19[[#This Row],[FUNC]]),\"NO\",\"YES\")))","v":"NO"}]
[{"$f":"CONCATENATE(tblIPJune19[[#This Row],[Primary Account]],tblIPJune19[[#This Row],[Primary Name]],tblIPJune19[[#This Row],[Secondary Acct]],tblIPJune19[[#This Row],[Secondary  Name]],tblIPJune19[[#This Row],[Alloc4FUNC]])","v":"1010000ELEC PLANT IN SERV3020000FRANCHISES AND CONSENTSSG-P"},1010000,"ELEC PLANT IN SERV",3020000,"FRANCHISES AND CONSENTS","SG-P",175395.32401769201,{"$f":"IF(OR(tblIPJune19[[#This Row],[Alloc]]=\"IDU\",tblIPJune19[[#This Row],[Alloc]]=\"OR\",tblIPJune19[[#This Row],[Alloc]]=\"UT\",tblIPJune19[[#This Row],[Alloc]]=\"WYU\",tblIPJune19[[#This Row],[Alloc]]=\"WYP\",tblIPJune19[[#This Row],[Alloc]]=\"CA\",tblIPJune19[[#This Row],[Alloc]]=\"WA\"),\"SITUS\",tblIPJune19[[#This Row],[Alloc]])","v":"SG-P"},{"$f":"INDEX(tblIPLookup[FUNC],MATCH(tblIPJune19[[#This Row],[Concat]],tblIPLookup[Concat],0))","v":"P"},{"$f":"IF(tblIPJune19[[#This Row],[Total ($000)]]=0,\"NO\",IF(ISNA(tblIPJune19[[#This Row],[FUNC]]),\"YES\",IF(_xlfn.ISFORMULA(tblIPJune19[[#This Row],[FUNC]]),\"NO\",\"YES\")))","v":"NO"}]
[{"$f":"CONCATENATE(tblIPJune19[[#This Row],[Primary Account]],tblIPJune19[[#This Row],[Primary Name]],tblIPJune19[[#This Row],[Secondary Acct]],tblIPJune19[[#This Row],[Secondary  Name]],tblIPJune19[[#This Row],[Alloc4FUNC]])","v":"1010000ELEC PLANT IN SERV3031040TRANSMISSION INTANGIBLE ASSETSSITUS"},1010000,"ELEC PLANT IN SERV",3031040,"TRANSMISSION INTANGIBLE ASSETS","OR",530.80893000000003,{"$f":"IF(OR(tblIPJune19[[#This Row],[Alloc]]=\"IDU\",tblIPJune19[[#This Row],[Alloc]]=\"OR\",tblIPJune19[[#This Row],[Alloc]]=\"UT\",tblIPJune19[[#This Row],[Alloc]]=\"WYU\",tblIPJune19[[#This Row],[Alloc]]=\"WYP\",tblIPJune19[[#This Row],[Alloc]]=\"CA\",tblIPJune19[[#This Row],[Alloc]]=\"WA\"),\"SITUS\",tblIPJune19[[#This Row],[Alloc]])","v":"SITUS"},{"$f":"INDEX(tblIPLookup[FUNC],MATCH(tblIPJune19[[#This Row],[Concat]],tblIPLookup[Concat],0))","v":"T"},{"$f":"IF(tblIPJune19[[#This Row],[Total ($000)]]=0,\"NO\",IF(ISNA(tblIPJune19[[#This Row],[FUNC]]),\"YES\",IF(_xlfn.ISFORMULA(tblIPJune19[[#This Row],[FUNC]]),\"NO\",\"YES\")))","v":"NO"}]
[{"$f":"CONCATENATE(tblIPJune19[[#This Row],[Primary Account]],tblIPJune19[[#This Row],[Primary Name]],tblIPJune19[[#This Row],[Secondary Acct]],tblIPJune19[[#This Row],[Secondary  Name]],tblIPJune19[[#This Row],[Alloc4FUNC]])","v":"1010000ELEC PLANT IN SERV3031040TRANSMISSION INTANGIBLE ASSETSSG"},1010000,"ELEC PLANT IN SERV",3031040,"TRANSMISSION INTANGIBLE ASSETS","SG",40122.448751538497,{"$f":"IF(OR(tblIPJune19[[#This Row],[Alloc]]=\"IDU\",tblIPJune19[[#This Row],[Alloc]]=\"OR\",tblIPJune19[[#This Row],[Alloc]]=\"UT\",tblIPJune19[[#This Row],[Alloc]]=\"WYU\",tblIPJune19[[#This Row],[Alloc]]=\"WYP\",tblIPJune19[[#This Row],[Alloc]]=\"CA\",tblIPJune19[[#This Row],[Alloc]]=\"WA\"),\"SITUS\",tblIPJune19[[#This Row],[Alloc]])","v":"SG"},{"$f":"INDEX(tblIPLookup[FUNC],MATCH(tblIPJune19[[#This Row],[Concat]],tblIPLookup[Concat],0))","v":"T"},{"$f":"IF(tblIPJune19[[#This Row],[Total ($000)]]=0,\"NO\",IF(ISNA(tblIPJune19[[#This Row],[FUNC]]),\"YES\",IF(_xlfn.ISFORMULA(tblIPJune19[[#This Row],[FUNC]]),\"NO\",\"YES\")))","v":"NO"}]
[{"$f":"CONCATENATE(tblIPJune19[[#This Row],[Primary Account]],tblIPJune19[[#This Row],[Primary Name]],tblIPJune19[[#This Row],[Secondary Acct]],tblIPJune19[[#This Row],[Secondary  Name]],tblIPJune19[[#This Row],[Alloc4FUNC]])","v":"1010000ELEC PLANT IN SERV3031040TRANSMISSION INTANGIBLE ASSETSSITUS"},1010000,"ELEC PLANT IN SERV",3031040,"TRANSMISSION INTANGIBLE ASSETS","UT",965.997086153846,{"$f":"IF(OR(tblIPJune19[[#This Row],[Alloc]]=\"IDU\",tblIPJune19[[#This Row],[Alloc]]=\"OR\",tblIPJune19[[#This Row],[Alloc]]=\"UT\",tblIPJune19[[#This Row],[Alloc]]=\"WYU\",tblIPJune19[[#This Row],[Alloc]]=\"WYP\",tblIPJune19[[#This Row],[Alloc]]=\"CA\",tblIPJune19[[#This Row],[Alloc]]=\"WA\"),\"SITUS\",tblIPJune19[[#This Row],[Alloc]])","v":"SITUS"},{"$f":"INDEX(tblIPLookup[FUNC],MATCH(tblIPJune19[[#This Row],[Concat]],tblIPLookup[Concat],0))","v":"T"},{"$f":"IF(tblIPJune19[[#This Row],[Total ($000)]]=0,\"NO\",IF(ISNA(tblIPJune19[[#This Row],[FUNC]]),\"YES\",IF(_xlfn.ISFORMULA(tblIPJune19[[#This Row],[FUNC]]),\"NO\",\"YES\")))","v":"NO"}]
[{"$f":"CONCATENATE(tblIPJune19[[#This Row],[Primary Account]],tblIPJune19[[#This Row],[Primary Name]],tblIPJune19[[#This Row],[Secondary Acct]],tblIPJune19[[#This Row],[Secondary  Name]],tblIPJune19[[#This Row],[Alloc4FUNC]])","v":"1010000ELEC PLANT IN SERV3031040TRANSMISSION INTANGIBLE ASSETSSITUS"},1010000,"ELEC PLANT IN SERV",3031040,"TRANSMISSION INTANGIBLE ASSETS","WYP",3840.5814053846202,{"$f":"IF(OR(tblIPJune19[[#This Row],[Alloc]]=\"IDU\",tblIPJune19[[#This Row],[Alloc]]=\"OR\",tblIPJune19[[#This Row],[Alloc]]=\"UT\",tblIPJune19[[#This Row],[Alloc]]=\"WYU\",tblIPJune19[[#This Row],[Alloc]]=\"WYP\",tblIPJune19[[#This Row],[Alloc]]=\"CA\",tblIPJune19[[#This Row],[Alloc]]=\"WA\"),\"SITUS\",tblIPJune19[[#This Row],[Alloc]])","v":"SITUS"},{"$f":"INDEX(tblIPLookup[FUNC],MATCH(tblIPJune19[[#This Row],[Concat]],tblIPLookup[Concat],0))","v":"T"},{"$f":"IF(tblIPJune19[[#This Row],[Total ($000)]]=0,\"NO\",IF(ISNA(tblIPJune19[[#This Row],[FUNC]]),\"YES\",IF(_xlfn.ISFORMULA(tblIPJune19[[#This Row],[FUNC]]),\"NO\",\"YES\")))","v":"NO"}]
[{"$f":"CONCATENATE(tblIPJune19[[#This Row],[Primary Account]],tblIPJune19[[#This Row],[Primary Name]],tblIPJune19[[#This Row],[Secondary Acct]],tblIPJune19[[#This Row],[Secondary  Name]],tblIPJune19[[#This Row],[Alloc4FUNC]])","v":"1010000ELEC PLANT IN SERV3031050RCMS - REGION CONSTRUCTION MGMT SYSTEMSO"},1010000,"ELEC PLANT IN SERV",3031050,"RCMS - REGION CONSTRUCTION MGMT SYSTEM","SO",11006.427927692301,{"$f":"IF(OR(tblIPJune19[[#This Row],[Alloc]]=\"IDU\",tblIPJune19[[#This Row],[Alloc]]=\"OR\",tblIPJune19[[#This Row],[Alloc]]=\"UT\",tblIPJune19[[#This Row],[Alloc]]=\"WYU\",tblIPJune19[[#This Row],[Alloc]]=\"WYP\",tblIPJune19[[#This Row],[Alloc]]=\"CA\",tblIPJune19[[#This Row],[Alloc]]=\"WA\"),\"SITUS\",tblIPJune19[[#This Row],[Alloc]])","v":"SO"},{"$f":"INDEX(tblIPLookup[FUNC],MATCH(tblIPJune19[[#This Row],[Concat]],tblIPLookup[Concat],0))","v":"PTD"},{"$f":"IF(tblIPJune19[[#This Row],[Total ($000)]]=0,\"NO\",IF(ISNA(tblIPJune19[[#This Row],[FUNC]]),\"YES\",IF(_xlfn.ISFORMULA(tblIPJune19[[#This Row],[FUNC]]),\"NO\",\"YES\")))","v":"NO"}]
[{"$f":"CONCATENATE(tblIPJune19[[#This Row],[Primary Account]],tblIPJune19[[#This Row],[Primary Name]],tblIPJune19[[#This Row],[Secondary Acct]],tblIPJune19[[#This Row],[Secondary  Name]],tblIPJune19[[#This Row],[Alloc4FUNC]])","v":"1010000ELEC PLANT IN SERV3031080FUEL MANAGEMENT SYSTEMSO"},1010000,"ELEC PLANT IN SERV",3031080,"FUEL MANAGEMENT SYSTEM","SO",3292.5410000000002,{"$f":"IF(OR(tblIPJune19[[#This Row],[Alloc]]=\"IDU\",tblIPJune19[[#This Row],[Alloc]]=\"OR\",tblIPJune19[[#This Row],[Alloc]]=\"UT\",tblIPJune19[[#This Row],[Alloc]]=\"WYU\",tblIPJune19[[#This Row],[Alloc]]=\"WYP\",tblIPJune19[[#This Row],[Alloc]]=\"CA\",tblIPJune19[[#This Row],[Alloc]]=\"WA\"),\"SITUS\",tblIPJune19[[#This Row],[Alloc]])","v":"SO"},{"$f":"INDEX(tblIPLookup[FUNC],MATCH(tblIPJune19[[#This Row],[Concat]],tblIPLookup[Concat],0))","v":"PTD"},{"$f":"IF(tblIPJune19[[#This Row],[Total ($000)]]=0,\"NO\",IF(ISNA(tblIPJune19[[#This Row],[FUNC]]),\"YES\",IF(_xlfn.ISFORMULA(tblIPJune19[[#This Row],[FUNC]]),\"NO\",\"YES\")))","v":"NO"}]
[{"$f":"CONCATENATE(tblIPJune19[[#This Row],[Primary Account]],tblIPJune19[[#This Row],[Primary Name]],tblIPJune19[[#This Row],[Secondary Acct]],tblIPJune19[[#This Row],[Secondary  Name]],tblIPJune19[[#This Row],[Alloc4FUNC]])","v":"1010000ELEC PLANT IN SERV3031230AUTOMATE POLE CARD SYSTEMSO"},1010000,"ELEC PLANT IN SERV",3031230,"AUTOMATE POLE CARD SYSTEM","SO",4409.6926000000003,{"$f":"IF(OR(tblIPJune19[[#This Row],[Alloc]]=\"IDU\",tblIPJune19[[#This Row],[Alloc]]=\"OR\",tblIPJune19[[#This Row],[Alloc]]=\"UT\",tblIPJune19[[#This Row],[Alloc]]=\"WYU\",tblIPJune19[[#This Row],[Alloc]]=\"WYP\",tblIPJune19[[#This Row],[Alloc]]=\"CA\",tblIPJune19[[#This Row],[Alloc]]=\"WA\"),\"SITUS\",tblIPJune19[[#This Row],[Alloc]])","v":"SO"},{"$f":"INDEX(tblIPLookup[FUNC],MATCH(tblIPJune19[[#This Row],[Concat]],tblIPLookup[Concat],0))","v":"PTD"},{"$f":"IF(tblIPJune19[[#This Row],[Total ($000)]]=0,\"NO\",IF(ISNA(tblIPJune19[[#This Row],[FUNC]]),\"YES\",IF(_xlfn.ISFORMULA(tblIPJune19[[#This Row],[FUNC]]),\"NO\",\"YES\")))","v":"NO"}]
[{"$f":"CONCATENATE(tblIPJune19[[#This Row],[Primary Account]],tblIPJune19[[#This Row],[Primary Name]],tblIPJune19[[#This Row],[Secondary Acct]],tblIPJune19[[#This Row],[Secondary  Name]],tblIPJune19[[#This Row],[Alloc4FUNC]])","v":"1010000ELEC PLANT IN SERV3031680DISTRIBUTION AUTOMATION PILOT PROJECTSO"},1010000,"ELEC PLANT IN SERV",3031680,"DISTRIBUTION AUTOMATION PILOT PROJECT","SO",13885.720160000001,{"$f":"IF(OR(tblIPJune19[[#This Row],[Alloc]]=\"IDU\",tblIPJune19[[#This Row],[Alloc]]=\"OR\",tblIPJune19[[#This Row],[Alloc]]=\"UT\",tblIPJune19[[#This Row],[Alloc]]=\"WYU\",tblIPJune19[[#This Row],[Alloc]]=\"WYP\",tblIPJune19[[#This Row],[Alloc]]=\"CA\",tblIPJune19[[#This Row],[Alloc]]=\"WA\"),\"SITUS\",tblIPJune19[[#This Row],[Alloc]])","v":"SO"},{"$f":"INDEX(tblIPLookup[FUNC],MATCH(tblIPJune19[[#This Row],[Concat]],tblIPLookup[Concat],0))","v":"DPW"},{"$f":"IF(tblIPJune19[[#This Row],[Total ($000)]]=0,\"NO\",IF(ISNA(tblIPJune19[[#This Row],[FUNC]]),\"YES\",IF(_xlfn.ISFORMULA(tblIPJune19[[#This Row],[FUNC]]),\"NO\",\"YES\")))","v":"NO"}]
[{"$f":"CONCATENATE(tblIPJune19[[#This Row],[Primary Account]],tblIPJune19[[#This Row],[Primary Name]],tblIPJune19[[#This Row],[Secondary Acct]],tblIPJune19[[#This Row],[Secondary  Name]],tblIPJune19[[#This Row],[Alloc4FUNC]])","v":"1010000ELEC PLANT IN SERV3031760RECORD CENTER MANAGEMENT SOFTWARESO"},1010000,"ELEC PLANT IN SERV",3031760,"RECORD CENTER MANAGEMENT SOFTWARE","SO",290.88432,{"$f":"IF(OR(tblIPJune19[[#This Row],[Alloc]]=\"IDU\",tblIPJune19[[#This Row],[Alloc]]=\"OR\",tblIPJune19[[#This Row],[Alloc]]=\"UT\",tblIPJune19[[#This Row],[Alloc]]=\"WYU\",tblIPJune19[[#This Row],[Alloc]]=\"WYP\",tblIPJune19[[#This Row],[Alloc]]=\"CA\",tblIPJune19[[#This Row],[Alloc]]=\"WA\"),\"SITUS\",tblIPJune19[[#This Row],[Alloc]])","v":"SO"},{"$f":"INDEX(tblIPLookup[FUNC],MATCH(tblIPJune19[[#This Row],[Concat]],tblIPLookup[Concat],0))","v":"PTD"},{"$f":"IF(tblIPJune19[[#This Row],[Total ($000)]]=0,\"NO\",IF(ISNA(tblIPJune19[[#This Row],[FUNC]]),\"YES\",IF(_xlfn.ISFORMULA(tblIPJune19[[#This Row],[FUNC]]),\"NO\",\"YES\")))","v":"NO"}]
[{"$f":"CONCATENATE(tblIPJune19[[#This Row],[Primary Account]],tblIPJune19[[#This Row],[Primary Name]],tblIPJune19[[#This Row],[Secondary Acct]],tblIPJune19[[#This Row],[Secondary  Name]],tblIPJune19[[#This Row],[Alloc4FUNC]])","v":"1010000ELEC PLANT IN SERV3031830CUSTOMER SERVICE SYSTEM (CSS)CN"},1010000,"ELEC PLANT IN SERV",3031830,"CUSTOMER SERVICE SYSTEM (CSS)","CN",126738.19222769199,{"$f":"IF(OR(tblIPJune19[[#This Row],[Alloc]]=\"IDU\",tblIPJune19[[#This Row],[Alloc]]=\"OR\",tblIPJune19[[#This Row],[Alloc]]=\"UT\",tblIPJune19[[#This Row],[Alloc]]=\"WYU\",tblIPJune19[[#This Row],[Alloc]]=\"WYP\",tblIPJune19[[#This Row],[Alloc]]=\"CA\",tblIPJune19[[#This Row],[Alloc]]=\"WA\"),\"SITUS\",tblIPJune19[[#This Row],[Alloc]])","v":"CN"},{"$f":"INDEX(tblIPLookup[FUNC],MATCH(tblIPJune19[[#This Row],[Concat]],tblIPLookup[Concat],0))","v":"CUST"},{"$f":"IF(tblIPJune19[[#This Row],[Total ($000)]]=0,\"NO\",IF(ISNA(tblIPJune19[[#This Row],[FUNC]]),\"YES\",IF(_xlfn.ISFORMULA(tblIPJune19[[#This Row],[FUNC]]),\"NO\",\"YES\")))","v":"NO"}]
[{"$f":"CONCATENATE(tblIPJune19[[#This Row],[Primary Account]],tblIPJune19[[#This Row],[Primary Name]],tblIPJune19[[#This Row],[Secondary Acct]],tblIPJune19[[#This Row],[Secondary  Name]],tblIPJune19[[#This Row],[Alloc4FUNC]])","v":"1010000ELEC PLANT IN SERV3032040S A PSO"},1010000,"ELEC PLANT IN SERV",3032040,"S A P","SO",178476.85262461501,{"$f":"IF(OR(tblIPJune19[[#This Row],[Alloc]]=\"IDU\",tblIPJune19[[#This Row],[Alloc]]=\"OR\",tblIPJune19[[#This Row],[Alloc]]=\"UT\",tblIPJune19[[#This Row],[Alloc]]=\"WYU\",tblIPJune19[[#This Row],[Alloc]]=\"WYP\",tblIPJune19[[#This Row],[Alloc]]=\"CA\",tblIPJune19[[#This Row],[Alloc]]=\"WA\"),\"SITUS\",tblIPJune19[[#This Row],[Alloc]])","v":"SO"},{"$f":"INDEX(tblIPLookup[FUNC],MATCH(tblIPJune19[[#This Row],[Concat]],tblIPLookup[Concat],0))","v":"COMMON"},{"$f":"IF(tblIPJune19[[#This Row],[Total ($000)]]=0,\"NO\",IF(ISNA(tblIPJune19[[#This Row],[FUNC]]),\"YES\",IF(_xlfn.ISFORMULA(tblIPJune19[[#This Row],[FUNC]]),\"NO\",\"YES\")))","v":"NO"}]
[{"$f":"CONCATENATE(tblIPJune19[[#This Row],[Primary Account]],tblIPJune19[[#This Row],[Primary Name]],tblIPJune19[[#This Row],[Secondary Acct]],tblIPJune19[[#This Row],[Secondary  Name]],tblIPJune19[[#This Row],[Alloc4FUNC]])","v":"1010000ELEC PLANT IN SERV3032220ENTERPRISE DATA WRHSE - BI RPTG TOOLSO"},1010000,"ELEC PLANT IN SERV",3032220,"ENTERPRISE DATA WRHSE - BI RPTG TOOL","SO",1660.0991300000001,{"$f":"IF(OR(tblIPJune19[[#This Row],[Alloc]]=\"IDU\",tblIPJune19[[#This Row],[Alloc]]=\"OR\",tblIPJune19[[#This Row],[Alloc]]=\"UT\",tblIPJune19[[#This Row],[Alloc]]=\"WYU\",tblIPJune19[[#This Row],[Alloc]]=\"WYP\",tblIPJune19[[#This Row],[Alloc]]=\"CA\",tblIPJune19[[#This Row],[Alloc]]=\"WA\"),\"SITUS\",tblIPJune19[[#This Row],[Alloc]])","v":"SO"},{"$f":"INDEX(tblIPLookup[FUNC],MATCH(tblIPJune19[[#This Row],[Concat]],tblIPLookup[Concat],0))","v":"PTD"},{"$f":"IF(tblIPJune19[[#This Row],[Total ($000)]]=0,\"NO\",IF(ISNA(tblIPJune19[[#This Row],[FUNC]]),\"YES\",IF(_xlfn.ISFORMULA(tblIPJune19[[#This Row],[FUNC]]),\"NO\",\"YES\")))","v":"NO"}]
[{"$f":"CONCATENATE(tblIPJune19[[#This Row],[Primary Account]],tblIPJune19[[#This Row],[Primary Name]],tblIPJune19[[#This Row],[Secondary Acct]],tblIPJune19[[#This Row],[Secondary  Name]],tblIPJune19[[#This Row],[Alloc4FUNC]])","v":"1010000ELEC PLANT IN SERV3032260DWHS - DATA WAREHOUSESO"},1010000,"ELEC PLANT IN SERV",3032260,"DWHS - DATA WAREHOUSE","SO",0,{"$f":"IF(OR(tblIPJune19[[#This Row],[Alloc]]=\"IDU\",tblIPJune19[[#This Row],[Alloc]]=\"OR\",tblIPJune19[[#This Row],[Alloc]]=\"UT\",tblIPJune19[[#This Row],[Alloc]]=\"WYU\",tblIPJune19[[#This Row],[Alloc]]=\"WYP\",tblIPJune19[[#This Row],[Alloc]]=\"CA\",tblIPJune19[[#This Row],[Alloc]]=\"WA\"),\"SITUS\",tblIPJune19[[#This Row],[Alloc]])","v":"SO"},{"$f":"INDEX(tblIPLookup[FUNC],MATCH(tblIPJune19[[#This Row],[Concat]],tblIPLookup[Concat],0))","v":"PTD"},{"$f":"IF(tblIPJune19[[#This Row],[Total ($000)]]=0,\"NO\",IF(ISNA(tblIPJune19[[#This Row],[FUNC]]),\"YES\",IF(_xlfn.ISFORMULA(tblIPJune19[[#This Row],[FUNC]]),\"NO\",\"YES\")))","v":"NO"}]
[{"$f":"CONCATENATE(tblIPJune19[[#This Row],[Primary Account]],tblIPJune19[[#This Row],[Primary Name]],tblIPJune19[[#This Row],[Secondary Acct]],tblIPJune19[[#This Row],[Secondary  Name]],tblIPJune19[[#This Row],[Alloc4FUNC]])","v":"1010000ELEC PLANT IN SERV3032270ENTERPRISE DATA WAREHOUSESO"},1010000,"ELEC PLANT IN SERV",3032270,"ENTERPRISE DATA WAREHOUSE","SO",5876.8036400000001,{"$f":"IF(OR(tblIPJune19[[#This Row],[Alloc]]=\"IDU\",tblIPJune19[[#This Row],[Alloc]]=\"OR\",tblIPJune19[[#This Row],[Alloc]]=\"UT\",tblIPJune19[[#This Row],[Alloc]]=\"WYU\",tblIPJune19[[#This Row],[Alloc]]=\"WYP\",tblIPJune19[[#This Row],[Alloc]]=\"CA\",tblIPJune19[[#This Row],[Alloc]]=\"WA\"),\"SITUS\",tblIPJune19[[#This Row],[Alloc]])","v":"SO"},{"$f":"INDEX(tblIPLookup[FUNC],MATCH(tblIPJune19[[#This Row],[Concat]],tblIPLookup[Concat],0))","v":"PTD"},{"$f":"IF(tblIPJune19[[#This Row],[Total ($000)]]=0,\"NO\",IF(ISNA(tblIPJune19[[#This Row],[FUNC]]),\"YES\",IF(_xlfn.ISFORMULA(tblIPJune19[[#This Row],[FUNC]]),\"NO\",\"YES\")))","v":"NO"}]
[{"$f":"CONCATENATE(tblIPJune19[[#This Row],[Primary Account]],tblIPJune19[[#This Row],[Primary Name]],tblIPJune19[[#This Row],[Secondary Acct]],tblIPJune19[[#This Row],[Secondary  Name]],tblIPJune19[[#This Row],[Alloc4FUNC]])","v":"1010000ELEC PLANT IN SERV3032330FIELDNET PRO METER READING SYST -HRP REPSO"},1010000,"ELEC PLANT IN SERV",3032330,"FIELDNET PRO METER READING SYST -HRP REP","SO",2907.75963,{"$f":"IF(OR(tblIPJune19[[#This Row],[Alloc]]=\"IDU\",tblIPJune19[[#This Row],[Alloc]]=\"OR\",tblIPJune19[[#This Row],[Alloc]]=\"UT\",tblIPJune19[[#This Row],[Alloc]]=\"WYU\",tblIPJune19[[#This Row],[Alloc]]=\"WYP\",tblIPJune19[[#This Row],[Alloc]]=\"CA\",tblIPJune19[[#This Row],[Alloc]]=\"WA\"),\"SITUS\",tblIPJune19[[#This Row],[Alloc]])","v":"SO"},{"$f":"INDEX(tblIPLookup[FUNC],MATCH(tblIPJune19[[#This Row],[Concat]],tblIPLookup[Concat],0))","v":"CUST"},{"$f":"IF(tblIPJune19[[#This Row],[Total ($000)]]=0,\"NO\",IF(ISNA(tblIPJune19[[#This Row],[FUNC]]),\"YES\",IF(_xlfn.ISFORMULA(tblIPJune19[[#This Row],[FUNC]]),\"NO\",\"YES\")))","v":"NO"}]
[{"$f":"CONCATENATE(tblIPJune19[[#This Row],[Primary Account]],tblIPJune19[[#This Row],[Primary Name]],tblIPJune19[[#This Row],[Secondary Acct]],tblIPJune19[[#This Row],[Secondary  Name]],tblIPJune19[[#This Row],[Alloc4FUNC]])","v":"1010000ELEC PLANT IN SERV3032340FACILITY INSPECTION REPORTING SYSTEMSO"},1010000,"ELEC PLANT IN SERV",3032340,"FACILITY INSPECTION REPORTING SYSTEM","SO",2020.2035599999999,{"$f":"IF(OR(tblIPJune19[[#This Row],[Alloc]]=\"IDU\",tblIPJune19[[#This Row],[Alloc]]=\"OR\",tblIPJune19[[#This Row],[Alloc]]=\"UT\",tblIPJune19[[#This Row],[Alloc]]=\"WYU\",tblIPJune19[[#This Row],[Alloc]]=\"WYP\",tblIPJune19[[#This Row],[Alloc]]=\"CA\",tblIPJune19[[#This Row],[Alloc]]=\"WA\"),\"SITUS\",tblIPJune19[[#This Row],[Alloc]])","v":"SO"},{"$f":"INDEX(tblIPLookup[FUNC],MATCH(tblIPJune19[[#This Row],[Concat]],tblIPLookup[Concat],0))","v":"PTD"},{"$f":"IF(tblIPJune19[[#This Row],[Total ($000)]]=0,\"NO\",IF(ISNA(tblIPJune19[[#This Row],[FUNC]]),\"YES\",IF(_xlfn.ISFORMULA(tblIPJune19[[#This Row],[FUNC]]),\"NO\",\"YES\")))","v":"NO"}]
[{"$f":"CONCATENATE(tblIPJune19[[#This Row],[Primary Account]],tblIPJune19[[#This Row],[Primary Name]],tblIPJune19[[#This Row],[Secondary Acct]],tblIPJune19[[#This Row],[Secondary  Name]],tblIPJune19[[#This Row],[Alloc4FUNC]])","v":"1010000ELEC PLANT IN SERV30323602002 GRID NET POWER COST MODELINGSO"},1010000,"ELEC PLANT IN SERV",3032360,"2002 GRID NET POWER COST MODELING","SO",8959.6282800000008,{"$f":"IF(OR(tblIPJune19[[#This Row],[Alloc]]=\"IDU\",tblIPJune19[[#This Row],[Alloc]]=\"OR\",tblIPJune19[[#This Row],[Alloc]]=\"UT\",tblIPJune19[[#This Row],[Alloc]]=\"WYU\",tblIPJune19[[#This Row],[Alloc]]=\"WYP\",tblIPJune19[[#This Row],[Alloc]]=\"CA\",tblIPJune19[[#This Row],[Alloc]]=\"WA\"),\"SITUS\",tblIPJune19[[#This Row],[Alloc]])","v":"SO"},{"$f":"INDEX(tblIPLookup[FUNC],MATCH(tblIPJune19[[#This Row],[Concat]],tblIPLookup[Concat],0))","v":"PTD"},{"$f":"IF(tblIPJune19[[#This Row],[Total ($000)]]=0,\"NO\",IF(ISNA(tblIPJune19[[#This Row],[FUNC]]),\"YES\",IF(_xlfn.ISFORMULA(tblIPJune19[[#This Row],[FUNC]]),\"NO\",\"YES\")))","v":"NO"}]
[{"$f":"CONCATENATE(tblIPJune19[[#This Row],[Primary Account]],tblIPJune19[[#This Row],[Primary Name]],tblIPJune19[[#This Row],[Secondary Acct]],tblIPJune19[[#This Row],[Secondary  Name]],tblIPJune19[[#This Row],[Alloc4FUNC]])","v":"1010000ELEC PLANT IN SERV3032450MID OFFICE IMPROVEMENT PROJECTSO"},1010000,"ELEC PLANT IN SERV",3032450,"MID OFFICE IMPROVEMENT PROJECT","SO",10560.522989999999,{"$f":"IF(OR(tblIPJune19[[#This Row],[Alloc]]=\"IDU\",tblIPJune19[[#This Row],[Alloc]]=\"OR\",tblIPJune19[[#This Row],[Alloc]]=\"UT\",tblIPJune19[[#This Row],[Alloc]]=\"WYU\",tblIPJune19[[#This Row],[Alloc]]=\"WYP\",tblIPJune19[[#This Row],[Alloc]]=\"CA\",tblIPJune19[[#This Row],[Alloc]]=\"WA\"),\"SITUS\",tblIPJune19[[#This Row],[Alloc]])","v":"SO"},{"$f":"INDEX(tblIPLookup[FUNC],MATCH(tblIPJune19[[#This Row],[Concat]],tblIPLookup[Concat],0))","v":"P"},{"$f":"IF(tblIPJune19[[#This Row],[Total ($000)]]=0,\"NO\",IF(ISNA(tblIPJune19[[#This Row],[FUNC]]),\"YES\",IF(_xlfn.ISFORMULA(tblIPJune19[[#This Row],[FUNC]]),\"NO\",\"YES\")))","v":"NO"}]
[{"$f":"CONCATENATE(tblIPJune19[[#This Row],[Primary Account]],tblIPJune19[[#This Row],[Primary Name]],tblIPJune19[[#This Row],[Secondary Acct]],tblIPJune19[[#This Row],[Secondary  Name]],tblIPJune19[[#This Row],[Alloc4FUNC]])","v":"1010000ELEC PLANT IN SERV3032510OPERATIONS MAPPING SYSTEMSO"},1010000,"ELEC PLANT IN SERV",3032510,"OPERATIONS MAPPING SYSTEM","SO",10386.432650000001,{"$f":"IF(OR(tblIPJune19[[#This Row],[Alloc]]=\"IDU\",tblIPJune19[[#This Row],[Alloc]]=\"OR\",tblIPJune19[[#This Row],[Alloc]]=\"UT\",tblIPJune19[[#This Row],[Alloc]]=\"WYU\",tblIPJune19[[#This Row],[Alloc]]=\"WYP\",tblIPJune19[[#This Row],[Alloc]]=\"CA\",tblIPJune19[[#This Row],[Alloc]]=\"WA\"),\"SITUS\",tblIPJune19[[#This Row],[Alloc]])","v":"SO"},{"$f":"INDEX(tblIPLookup[FUNC],MATCH(tblIPJune19[[#This Row],[Concat]],tblIPLookup[Concat],0))","v":"TD"},{"$f":"IF(tblIPJune19[[#This Row],[Total ($000)]]=0,\"NO\",IF(ISNA(tblIPJune19[[#This Row],[FUNC]]),\"YES\",IF(_xlfn.ISFORMULA(tblIPJune19[[#This Row],[FUNC]]),\"NO\",\"YES\")))","v":"NO"}]
[{"$f":"CONCATENATE(tblIPJune19[[#This Row],[Primary Account]],tblIPJune19[[#This Row],[Primary Name]],tblIPJune19[[#This Row],[Secondary Acct]],tblIPJune19[[#This Row],[Secondary  Name]],tblIPJune19[[#This Row],[Alloc4FUNC]])","v":"1010000ELEC PLANT IN SERV3032530POLE ATTACHMENT MGMT SYSTEMSO"},1010000,"ELEC PLANT IN SERV",3032530,"POLE ATTACHMENT MGMT SYSTEM","SO",1892.4372599999999,{"$f":"IF(OR(tblIPJune19[[#This Row],[Alloc]]=\"IDU\",tblIPJune19[[#This Row],[Alloc]]=\"OR\",tblIPJune19[[#This Row],[Alloc]]=\"UT\",tblIPJune19[[#This Row],[Alloc]]=\"WYU\",tblIPJune19[[#This Row],[Alloc]]=\"WYP\",tblIPJune19[[#This Row],[Alloc]]=\"CA\",tblIPJune19[[#This Row],[Alloc]]=\"WA\"),\"SITUS\",tblIPJune19[[#This Row],[Alloc]])","v":"SO"},{"$f":"INDEX(tblIPLookup[FUNC],MATCH(tblIPJune19[[#This Row],[Concat]],tblIPLookup[Concat],0))","v":"DPW"},{"$f":"IF(tblIPJune19[[#This Row],[Total ($000)]]=0,\"NO\",IF(ISNA(tblIPJune19[[#This Row],[FUNC]]),\"YES\",IF(_xlfn.ISFORMULA(tblIPJune19[[#This Row],[FUNC]]),\"NO\",\"YES\")))","v":"NO"}]
[{"$f":"CONCATENATE(tblIPJune19[[#This Row],[Primary Account]],tblIPJune19[[#This Row],[Primary Name]],tblIPJune19[[#This Row],[Secondary Acct]],tblIPJune19[[#This Row],[Secondary  Name]],tblIPJune19[[#This Row],[Alloc4FUNC]])","v":"1010000ELEC PLANT IN SERV3032590SUBSTATION/CIRCUIT HISTORY OF OPERATIONSSO"},1010000,"ELEC PLANT IN SERV",3032590,"SUBSTATION/CIRCUIT HISTORY OF OPERATIONS","SO",2415.8410899999999,{"$f":"IF(OR(tblIPJune19[[#This Row],[Alloc]]=\"IDU\",tblIPJune19[[#This Row],[Alloc]]=\"OR\",tblIPJune19[[#This Row],[Alloc]]=\"UT\",tblIPJune19[[#This Row],[Alloc]]=\"WYU\",tblIPJune19[[#This Row],[Alloc]]=\"WYP\",tblIPJune19[[#This Row],[Alloc]]=\"CA\",tblIPJune19[[#This Row],[Alloc]]=\"WA\"),\"SITUS\",tblIPJune19[[#This Row],[Alloc]])","v":"SO"},{"$f":"INDEX(tblIPLookup[FUNC],MATCH(tblIPJune19[[#This Row],[Concat]],tblIPLookup[Concat],0))","v":"TD"},{"$f":"IF(tblIPJune19[[#This Row],[Total ($000)]]=0,\"NO\",IF(ISNA(tblIPJune19[[#This Row],[FUNC]]),\"YES\",IF(_xlfn.ISFORMULA(tblIPJune19[[#This Row],[FUNC]]),\"NO\",\"YES\")))","v":"NO"}]
[{"$f":"CONCATENATE(tblIPJune19[[#This Row],[Primary Account]],tblIPJune19[[#This Row],[Primary Name]],tblIPJune19[[#This Row],[Secondary Acct]],tblIPJune19[[#This Row],[Secondary  Name]],tblIPJune19[[#This Row],[Alloc4FUNC]])","v":"1010000ELEC PLANT IN SERV3032600SINGLE PERSON SCHEDULINGSO"},1010000,"ELEC PLANT IN SERV",3032600,"SINGLE PERSON SCHEDULING","SO",12958.1765,{"$f":"IF(OR(tblIPJune19[[#This Row],[Alloc]]=\"IDU\",tblIPJune19[[#This Row],[Alloc]]=\"OR\",tblIPJune19[[#This Row],[Alloc]]=\"UT\",tblIPJune19[[#This Row],[Alloc]]=\"WYU\",tblIPJune19[[#This Row],[Alloc]]=\"WYP\",tblIPJune19[[#This Row],[Alloc]]=\"CA\",tblIPJune19[[#This Row],[Alloc]]=\"WA\"),\"SITUS\",tblIPJune19[[#This Row],[Alloc]])","v":"SO"},{"$f":"INDEX(tblIPLookup[FUNC],MATCH(tblIPJune19[[#This Row],[Concat]],tblIPLookup[Concat],0))","v":"DPW"},{"$f":"IF(tblIPJune19[[#This Row],[Total ($000)]]=0,\"NO\",IF(ISNA(tblIPJune19[[#This Row],[FUNC]]),\"YES\",IF(_xlfn.ISFORMULA(tblIPJune19[[#This Row],[FUNC]]),\"NO\",\"YES\")))","v":"NO"}]
[{"$f":"CONCATENATE(tblIPJune19[[#This Row],[Primary Account]],tblIPJune19[[#This Row],[Primary Name]],tblIPJune19[[#This Row],[Secondary Acct]],tblIPJune19[[#This Row],[Secondary  Name]],tblIPJune19[[#This Row],[Alloc4FUNC]])","v":"1010000ELEC PLANT IN SERV3032640TIBCO SOFTWARESO"},1010000,"ELEC PLANT IN SERV",3032640,"TIBCO SOFTWARE","SO",6255.8358638461496,{"$f":"IF(OR(tblIPJune19[[#This Row],[Alloc]]=\"IDU\",tblIPJune19[[#This Row],[Alloc]]=\"OR\",tblIPJune19[[#This Row],[Alloc]]=\"UT\",tblIPJune19[[#This Row],[Alloc]]=\"WYU\",tblIPJune19[[#This Row],[Alloc]]=\"WYP\",tblIPJune19[[#This Row],[Alloc]]=\"CA\",tblIPJune19[[#This Row],[Alloc]]=\"WA\"),\"SITUS\",tblIPJune19[[#This Row],[Alloc]])","v":"SO"},{"$f":"INDEX(tblIPLookup[FUNC],MATCH(tblIPJune19[[#This Row],[Concat]],tblIPLookup[Concat],0))","v":"PTD"},{"$f":"IF(tblIPJune19[[#This Row],[Total ($000)]]=0,\"NO\",IF(ISNA(tblIPJune19[[#This Row],[FUNC]]),\"YES\",IF(_xlfn.ISFORMULA(tblIPJune19[[#This Row],[FUNC]]),\"NO\",\"YES\")))","v":"NO"}]
[{"$f":"CONCATENATE(tblIPJune19[[#This Row],[Primary Account]],tblIPJune19[[#This Row],[Primary Name]],tblIPJune19[[#This Row],[Secondary Acct]],tblIPJune19[[#This Row],[Secondary  Name]],tblIPJune19[[#This Row],[Alloc4FUNC]])","v":"1010000ELEC PLANT IN SERV3032670C&T OFFICIAL RECORD INFO SYSTEMSO"},1010000,"ELEC PLANT IN SERV",3032670,"C&T OFFICIAL RECORD INFO SYSTEM","SO",1464.17350153846,{"$f":"IF(OR(tblIPJune19[[#This Row],[Alloc]]=\"IDU\",tblIPJune19[[#This Row],[Alloc]]=\"OR\",tblIPJune19[[#This Row],[Alloc]]=\"UT\",tblIPJune19[[#This Row],[Alloc]]=\"WYU\",tblIPJune19[[#This Row],[Alloc]]=\"WYP\",tblIPJune19[[#This Row],[Alloc]]=\"CA\",tblIPJune19[[#This Row],[Alloc]]=\"WA\"),\"SITUS\",tblIPJune19[[#This Row],[Alloc]])","v":"SO"},{"$f":"INDEX(tblIPLookup[FUNC],MATCH(tblIPJune19[[#This Row],[Concat]],tblIPLookup[Concat],0))","v":"P"},{"$f":"IF(tblIPJune19[[#This Row],[Total ($000)]]=0,\"NO\",IF(ISNA(tblIPJune19[[#This Row],[FUNC]]),\"YES\",IF(_xlfn.ISFORMULA(tblIPJune19[[#This Row],[FUNC]]),\"NO\",\"YES\")))","v":"NO"}]
[{"$f":"CONCATENATE(tblIPJune19[[#This Row],[Primary Account]],tblIPJune19[[#This Row],[Primary Name]],tblIPJune19[[#This Row],[Secondary Acct]],tblIPJune19[[#This Row],[Secondary  Name]],tblIPJune19[[#This Row],[Alloc4FUNC]])","v":"1010000ELEC PLANT IN SERV3032680TRANSMISSION WHOLESALE BILLING SYSTEMSG"},1010000,"ELEC PLANT IN SERV",3032680,"TRANSMISSION WHOLESALE BILLING SYSTEM","SG",1599.6162899999999,{"$f":"IF(OR(tblIPJune19[[#This Row],[Alloc]]=\"IDU\",tblIPJune19[[#This Row],[Alloc]]=\"OR\",tblIPJune19[[#This Row],[Alloc]]=\"UT\",tblIPJune19[[#This Row],[Alloc]]=\"WYU\",tblIPJune19[[#This Row],[Alloc]]=\"WYP\",tblIPJune19[[#This Row],[Alloc]]=\"CA\",tblIPJune19[[#This Row],[Alloc]]=\"WA\"),\"SITUS\",tblIPJune19[[#This Row],[Alloc]])","v":"SG"},{"$f":"INDEX(tblIPLookup[FUNC],MATCH(tblIPJune19[[#This Row],[Concat]],tblIPLookup[Concat],0))","v":"T"},{"$f":"IF(tblIPJune19[[#This Row],[Total ($000)]]=0,\"NO\",IF(ISNA(tblIPJune19[[#This Row],[FUNC]]),\"YES\",IF(_xlfn.ISFORMULA(tblIPJune19[[#This Row],[FUNC]]),\"NO\",\"YES\")))","v":"NO"}]
[{"$f":"CONCATENATE(tblIPJune19[[#This Row],[Primary Account]],tblIPJune19[[#This Row],[Primary Name]],tblIPJune19[[#This Row],[Secondary Acct]],tblIPJune19[[#This Row],[Secondary  Name]],tblIPJune19[[#This Row],[Alloc4FUNC]])","v":"1010000ELEC PLANT IN SERV3032710ROUGE RIVER HYDRO INTANGIBLESSG"},1010000,"ELEC PLANT IN SERV",3032710,"ROUGE RIVER HYDRO INTANGIBLES","SG",216.87547615384599,{"$f":"IF(OR(tblIPJune19[[#This Row],[Alloc]]=\"IDU\",tblIPJune19[[#This Row],[Alloc]]=\"OR\",tblIPJune19[[#This Row],[Alloc]]=\"UT\",tblIPJune19[[#This Row],[Alloc]]=\"WYU\",tblIPJune19[[#This Row],[Alloc]]=\"WYP\",tblIPJune19[[#This Row],[Alloc]]=\"CA\",tblIPJune19[[#This Row],[Alloc]]=\"WA\"),\"SITUS\",tblIPJune19[[#This Row],[Alloc]])","v":"SG"},{"$f":"INDEX(tblIPLookup[FUNC],MATCH(tblIPJune19[[#This Row],[Concat]],tblIPLookup[Concat],0))","v":"P"},{"$f":"IF(tblIPJune19[[#This Row],[Total ($000)]]=0,\"NO\",IF(ISNA(tblIPJune19[[#This Row],[FUNC]]),\"YES\",IF(_xlfn.ISFORMULA(tblIPJune19[[#This Row],[FUNC]]),\"NO\",\"YES\")))","v":"NO"}]
[{"$f":"CONCATENATE(tblIPJune19[[#This Row],[Primary Account]],tblIPJune19[[#This Row],[Primary Name]],tblIPJune19[[#This Row],[Secondary Acct]],tblIPJune19[[#This Row],[Secondary  Name]],tblIPJune19[[#This Row],[Alloc4FUNC]])","v":"1010000ELEC PLANT IN SERV3032740GADSBY INTANGIBLE ASSETSSG"},1010000,"ELEC PLANT IN SERV",3032740,"GADSBY INTANGIBLE ASSETS","SG",43.153846153846203,{"$f":"IF(OR(tblIPJune19[[#This Row],[Alloc]]=\"IDU\",tblIPJune19[[#This Row],[Alloc]]=\"OR\",tblIPJune19[[#This Row],[Alloc]]=\"UT\",tblIPJune19[[#This Row],[Alloc]]=\"WYU\",tblIPJune19[[#This Row],[Alloc]]=\"WYP\",tblIPJune19[[#This Row],[Alloc]]=\"CA\",tblIPJune19[[#This Row],[Alloc]]=\"WA\"),\"SITUS\",tblIPJune19[[#This Row],[Alloc]])","v":"SG"},{"$f":"INDEX(tblIPLookup[FUNC],MATCH(tblIPJune19[[#This Row],[Concat]],tblIPLookup[Concat],0))","v":"P"},{"$f":"IF(tblIPJune19[[#This Row],[Total ($000)]]=0,\"NO\",IF(ISNA(tblIPJune19[[#This Row],[FUNC]]),\"YES\",IF(_xlfn.ISFORMULA(tblIPJune19[[#This Row],[FUNC]]),\"NO\",\"YES\")))","v":"NO"}]
[{"$f":"CONCATENATE(tblIPJune19[[#This Row],[Primary Account]],tblIPJune19[[#This Row],[Primary Name]],tblIPJune19[[#This Row],[Secondary Acct]],tblIPJune19[[#This Row],[Secondary  Name]],tblIPJune19[[#This Row],[Alloc4FUNC]])","v":"1010000ELEC PLANT IN SERV3032760SWIFT 2 IMPROVEMENTSSG"},1010000,"ELEC PLANT IN SERV",3032760,"SWIFT 2 IMPROVEMENTS","SG",23200.203539999999,{"$f":"IF(OR(tblIPJune19[[#This Row],[Alloc]]=\"IDU\",tblIPJune19[[#This Row],[Alloc]]=\"OR\",tblIPJune19[[#This Row],[Alloc]]=\"UT\",tblIPJune19[[#This Row],[Alloc]]=\"WYU\",tblIPJune19[[#This Row],[Alloc]]=\"WYP\",tblIPJune19[[#This Row],[Alloc]]=\"CA\",tblIPJune19[[#This Row],[Alloc]]=\"WA\"),\"SITUS\",tblIPJune19[[#This Row],[Alloc]])","v":"SG"},{"$f":"INDEX(tblIPLookup[FUNC],MATCH(tblIPJune19[[#This Row],[Concat]],tblIPLookup[Concat],0))","v":"P"},{"$f":"IF(tblIPJune19[[#This Row],[Total ($000)]]=0,\"NO\",IF(ISNA(tblIPJune19[[#This Row],[FUNC]]),\"YES\",IF(_xlfn.ISFORMULA(tblIPJune19[[#This Row],[FUNC]]),\"NO\",\"YES\")))","v":"NO"}]
[{"$f":"CONCATENATE(tblIPJune19[[#This Row],[Primary Account]],tblIPJune19[[#This Row],[Primary Name]],tblIPJune19[[#This Row],[Secondary Acct]],tblIPJune19[[#This Row],[Secondary  Name]],tblIPJune19[[#This Row],[Alloc4FUNC]])","v":"1010000ELEC PLANT IN SERV3032770NORTH UMPQUA - SETTLEMENT AGREEMENTSG"},1010000,"ELEC PLANT IN SERV",3032770,"NORTH UMPQUA - SETTLEMENT AGREEMENT","SG",652.20663000000002,{"$f":"IF(OR(tblIPJune19[[#This Row],[Alloc]]=\"IDU\",tblIPJune19[[#This Row],[Alloc]]=\"OR\",tblIPJune19[[#This Row],[Alloc]]=\"UT\",tblIPJune19[[#This Row],[Alloc]]=\"WYU\",tblIPJune19[[#This Row],[Alloc]]=\"WYP\",tblIPJune19[[#This Row],[Alloc]]=\"CA\",tblIPJune19[[#This Row],[Alloc]]=\"WA\"),\"SITUS\",tblIPJune19[[#This Row],[Alloc]])","v":"SG"},{"$f":"INDEX(tblIPLookup[FUNC],MATCH(tblIPJune19[[#This Row],[Concat]],tblIPLookup[Concat],0))","v":"P"},{"$f":"IF(tblIPJune19[[#This Row],[Total ($000)]]=0,\"NO\",IF(ISNA(tblIPJune19[[#This Row],[FUNC]]),\"YES\",IF(_xlfn.ISFORMULA(tblIPJune19[[#This Row],[FUNC]]),\"NO\",\"YES\")))","v":"NO"}]
[{"$f":"CONCATENATE(tblIPJune19[[#This Row],[Primary Account]],tblIPJune19[[#This Row],[Primary Name]],tblIPJune19[[#This Row],[Secondary Acct]],tblIPJune19[[#This Row],[Secondary  Name]],tblIPJune19[[#This Row],[Alloc4FUNC]])","v":"1010000ELEC PLANT IN SERV3032780BEAR RIVER-SETTLEMENT AGREEMENTSG"},1010000,"ELEC PLANT IN SERV",3032780,"BEAR RIVER-SETTLEMENT AGREEMENT","SG",117.38714,{"$f":"IF(OR(tblIPJune19[[#This Row],[Alloc]]=\"IDU\",tblIPJune19[[#This Row],[Alloc]]=\"OR\",tblIPJune19[[#This Row],[Alloc]]=\"UT\",tblIPJune19[[#This Row],[Alloc]]=\"WYU\",tblIPJune19[[#This Row],[Alloc]]=\"WYP\",tblIPJune19[[#This Row],[Alloc]]=\"CA\",tblIPJune19[[#This Row],[Alloc]]=\"WA\"),\"SITUS\",tblIPJune19[[#This Row],[Alloc]])","v":"SG"},{"$f":"INDEX(tblIPLookup[FUNC],MATCH(tblIPJune19[[#This Row],[Concat]],tblIPLookup[Concat],0))","v":"P"},{"$f":"IF(tblIPJune19[[#This Row],[Total ($000)]]=0,\"NO\",IF(ISNA(tblIPJune19[[#This Row],[FUNC]]),\"YES\",IF(_xlfn.ISFORMULA(tblIPJune19[[#This Row],[FUNC]]),\"NO\",\"YES\")))","v":"NO"}]
[{"$f":"CONCATENATE(tblIPJune19[[#This Row],[Primary Account]],tblIPJune19[[#This Row],[Primary Name]],tblIPJune19[[#This Row],[Secondary Acct]],tblIPJune19[[#This Row],[Secondary  Name]],tblIPJune19[[#This Row],[Alloc4FUNC]])","v":"1010000ELEC PLANT IN SERV3032830VCPRO - XEROX CUST STMT FRMTR ENHANCE -SO"},1010000,"ELEC PLANT IN SERV",3032830,"VCPRO - XEROX CUST STMT FRMTR ENHANCE -","SO",2629.15326,{"$f":"IF(OR(tblIPJune19[[#This Row],[Alloc]]=\"IDU\",tblIPJune19[[#This Row],[Alloc]]=\"OR\",tblIPJune19[[#This Row],[Alloc]]=\"UT\",tblIPJune19[[#This Row],[Alloc]]=\"WYU\",tblIPJune19[[#This Row],[Alloc]]=\"WYP\",tblIPJune19[[#This Row],[Alloc]]=\"CA\",tblIPJune19[[#This Row],[Alloc]]=\"WA\"),\"SITUS\",tblIPJune19[[#This Row],[Alloc]])","v":"SO"},{"$f":"INDEX(tblIPLookup[FUNC],MATCH(tblIPJune19[[#This Row],[Concat]],tblIPLookup[Concat],0))","v":"CUST"},{"$f":"IF(tblIPJune19[[#This Row],[Total ($000)]]=0,\"NO\",IF(ISNA(tblIPJune19[[#This Row],[FUNC]]),\"YES\",IF(_xlfn.ISFORMULA(tblIPJune19[[#This Row],[FUNC]]),\"NO\",\"YES\")))","v":"NO"}]
[{"$f":"CONCATENATE(tblIPJune19[[#This Row],[Primary Account]],tblIPJune19[[#This Row],[Primary Name]],tblIPJune19[[#This Row],[Secondary Acct]],tblIPJune19[[#This Row],[Secondary  Name]],tblIPJune19[[#This Row],[Alloc4FUNC]])","v":"1010000ELEC PLANT IN SERV3032860WEB SOFTWARESO"},1010000,"ELEC PLANT IN SERV",3032860,"WEB SOFTWARE","SO",2680.3681499999998,{"$f":"IF(OR(tblIPJune19[[#This Row],[Alloc]]=\"IDU\",tblIPJune19[[#This Row],[Alloc]]=\"OR\",tblIPJune19[[#This Row],[Alloc]]=\"UT\",tblIPJune19[[#This Row],[Alloc]]=\"WYU\",tblIPJune19[[#This Row],[Alloc]]=\"WYP\",tblIPJune19[[#This Row],[Alloc]]=\"CA\",tblIPJune19[[#This Row],[Alloc]]=\"WA\"),\"SITUS\",tblIPJune19[[#This Row],[Alloc]])","v":"SO"},{"$f":"INDEX(tblIPLookup[FUNC],MATCH(tblIPJune19[[#This Row],[Concat]],tblIPLookup[Concat],0))","v":"CUST"},{"$f":"IF(tblIPJune19[[#This Row],[Total ($000)]]=0,\"NO\",IF(ISNA(tblIPJune19[[#This Row],[FUNC]]),\"YES\",IF(_xlfn.ISFORMULA(tblIPJune19[[#This Row],[FUNC]]),\"NO\",\"YES\")))","v":"NO"}]
[{"$f":"CONCATENATE(tblIPJune19[[#This Row],[Primary Account]],tblIPJune19[[#This Row],[Primary Name]],tblIPJune19[[#This Row],[Secondary Acct]],tblIPJune19[[#This Row],[Secondary  Name]],tblIPJune19[[#This Row],[Alloc4FUNC]])","v":"1010000ELEC PLANT IN SERV3032900IDAHO TRANSMISSION CUSTOMER-OWNED ASSETSSG"},1010000,"ELEC PLANT IN SERV",3032900,"IDAHO TRANSMISSION CUSTOMER-OWNED ASSETS","SG",8773.5046899999998,{"$f":"IF(OR(tblIPJune19[[#This Row],[Alloc]]=\"IDU\",tblIPJune19[[#This Row],[Alloc]]=\"OR\",tblIPJune19[[#This Row],[Alloc]]=\"UT\",tblIPJune19[[#This Row],[Alloc]]=\"WYU\",tblIPJune19[[#This Row],[Alloc]]=\"WYP\",tblIPJune19[[#This Row],[Alloc]]=\"CA\",tblIPJune19[[#This Row],[Alloc]]=\"WA\"),\"SITUS\",tblIPJune19[[#This Row],[Alloc]])","v":"SG"},{"$f":"INDEX(tblIPLookup[FUNC],MATCH(tblIPJune19[[#This Row],[Concat]],tblIPLookup[Concat],0))","v":"T"},{"$f":"IF(tblIPJune19[[#This Row],[Total ($000)]]=0,\"NO\",IF(ISNA(tblIPJune19[[#This Row],[FUNC]]),\"YES\",IF(_xlfn.ISFORMULA(tblIPJune19[[#This Row],[FUNC]]),\"NO\",\"YES\")))","v":"NO"}]
[{"$f":"CONCATENATE(tblIPJune19[[#This Row],[Primary Account]],tblIPJune19[[#This Row],[Primary Name]],tblIPJune19[[#This Row],[Secondary Acct]],tblIPJune19[[#This Row],[Secondary  Name]],tblIPJune19[[#This Row],[Alloc4FUNC]])","v":"1010000ELEC PLANT IN SERV3032910WYOMING VHF (VPC) SPECTRUMSITUS"},1010000,"ELEC PLANT IN SERV",3032910,"WYOMING VHF (VPC) SPECTRUM","WYP",1039.08186,{"$f":"IF(OR(tblIPJune19[[#This Row],[Alloc]]=\"IDU\",tblIPJune19[[#This Row],[Alloc]]=\"OR\",tblIPJune19[[#This Row],[Alloc]]=\"UT\",tblIPJune19[[#This Row],[Alloc]]=\"WYU\",tblIPJune19[[#This Row],[Alloc]]=\"WYP\",tblIPJune19[[#This Row],[Alloc]]=\"CA\",tblIPJune19[[#This Row],[Alloc]]=\"WA\"),\"SITUS\",tblIPJune19[[#This Row],[Alloc]])","v":"SITUS"},{"$f":"INDEX(tblIPLookup[FUNC],MATCH(tblIPJune19[[#This Row],[Concat]],tblIPLookup[Concat],0))","v":"TD"},{"$f":"IF(tblIPJune19[[#This Row],[Total ($000)]]=0,\"NO\",IF(ISNA(tblIPJune19[[#This Row],[FUNC]]),\"YES\",IF(_xlfn.ISFORMULA(tblIPJune19[[#This Row],[FUNC]]),\"NO\",\"YES\")))","v":"NO"}]
[{"$f":"CONCATENATE(tblIPJune19[[#This Row],[Primary Account]],tblIPJune19[[#This Row],[Primary Name]],tblIPJune19[[#This Row],[Secondary Acct]],tblIPJune19[[#This Row],[Secondary  Name]],tblIPJune19[[#This Row],[Alloc4FUNC]])","v":"1010000ELEC PLANT IN SERV3032920IDAHO VHF (VPC) SPECTRUMSITUS"},1010000,"ELEC PLANT IN SERV",3032920,"IDAHO VHF (VPC) SPECTRUM","IDU",3356.5908899999999,{"$f":"IF(OR(tblIPJune19[[#This Row],[Alloc]]=\"IDU\",tblIPJune19[[#This Row],[Alloc]]=\"OR\",tblIPJune19[[#This Row],[Alloc]]=\"UT\",tblIPJune19[[#This Row],[Alloc]]=\"WYU\",tblIPJune19[[#This Row],[Alloc]]=\"WYP\",tblIPJune19[[#This Row],[Alloc]]=\"CA\",tblIPJune19[[#This Row],[Alloc]]=\"WA\"),\"SITUS\",tblIPJune19[[#This Row],[Alloc]])","v":"SITUS"},{"$f":"INDEX(tblIPLookup[FUNC],MATCH(tblIPJune19[[#This Row],[Concat]],tblIPLookup[Concat],0))","v":"TD"},{"$f":"IF(tblIPJune19[[#This Row],[Total ($000)]]=0,\"NO\",IF(ISNA(tblIPJune19[[#This Row],[FUNC]]),\"YES\",IF(_xlfn.ISFORMULA(tblIPJune19[[#This Row],[FUNC]]),\"NO\",\"YES\")))","v":"NO"}]
[{"$f":"CONCATENATE(tblIPJune19[[#This Row],[Primary Account]],tblIPJune19[[#This Row],[Primary Name]],tblIPJune19[[#This Row],[Secondary Acct]],tblIPJune19[[#This Row],[Secondary  Name]],tblIPJune19[[#This Row],[Alloc4FUNC]])","v":"1010000ELEC PLANT IN SERV3032930UTAH VHF (VPC) SPECTRUMSITUS"},1010000,"ELEC PLANT IN SERV",3032930,"UTAH VHF (VPC) SPECTRUM","UT",4287.2701699999998,{"$f":"IF(OR(tblIPJune19[[#This Row],[Alloc]]=\"IDU\",tblIPJune19[[#This Row],[Alloc]]=\"OR\",tblIPJune19[[#This Row],[Alloc]]=\"UT\",tblIPJune19[[#This Row],[Alloc]]=\"WYU\",tblIPJune19[[#This Row],[Alloc]]=\"WYP\",tblIPJune19[[#This Row],[Alloc]]=\"CA\",tblIPJune19[[#This Row],[Alloc]]=\"WA\"),\"SITUS\",tblIPJune19[[#This Row],[Alloc]])","v":"SITUS"},{"$f":"INDEX(tblIPLookup[FUNC],MATCH(tblIPJune19[[#This Row],[Concat]],tblIPLookup[Concat],0))","v":"TD"},{"$f":"IF(tblIPJune19[[#This Row],[Total ($000)]]=0,\"NO\",IF(ISNA(tblIPJune19[[#This Row],[FUNC]]),\"YES\",IF(_xlfn.ISFORMULA(tblIPJune19[[#This Row],[FUNC]]),\"NO\",\"YES\")))","v":"NO"}]
[{"$f":"CONCATENATE(tblIPJune19[[#This Row],[Primary Account]],tblIPJune19[[#This Row],[Primary Name]],tblIPJune19[[#This Row],[Secondary Acct]],tblIPJune19[[#This Row],[Secondary  Name]],tblIPJune19[[#This Row],[Alloc4FUNC]])","v":"1010000ELEC PLANT IN SERV3032990P8DM - FILENET P8SO"},1010000,"ELEC PLANT IN SERV",3032990,"P8DM - FILENET P8","SO",6291.9594399999996,{"$f":"IF(OR(tblIPJune19[[#This Row],[Alloc]]=\"IDU\",tblIPJune19[[#This Row],[Alloc]]=\"OR\",tblIPJune19[[#This Row],[Alloc]]=\"UT\",tblIPJune19[[#This Row],[Alloc]]=\"WYU\",tblIPJune19[[#This Row],[Alloc]]=\"WYP\",tblIPJune19[[#This Row],[Alloc]]=\"CA\",tblIPJune19[[#This Row],[Alloc]]=\"WA\"),\"SITUS\",tblIPJune19[[#This Row],[Alloc]])","v":"SO"},{"$f":"INDEX(tblIPLookup[FUNC],MATCH(tblIPJune19[[#This Row],[Concat]],tblIPLookup[Concat],0))","v":"PTD"},{"$f":"IF(tblIPJune19[[#This Row],[Total ($000)]]=0,\"NO\",IF(ISNA(tblIPJune19[[#This Row],[FUNC]]),\"YES\",IF(_xlfn.ISFORMULA(tblIPJune19[[#This Row],[FUNC]]),\"NO\",\"YES\")))","v":"NO"}]
[{"$f":"CONCATENATE(tblIPJune19[[#This Row],[Primary Account]],tblIPJune19[[#This Row],[Primary Name]],tblIPJune19[[#This Row],[Secondary Acct]],tblIPJune19[[#This Row],[Secondary  Name]],tblIPJune19[[#This Row],[Alloc4FUNC]])","v":"1010000ELEC PLANT IN SERV3033090STEAM PLANT INTANGIBLE ASSETSSG"},1010000,"ELEC PLANT IN SERV",3033090,"STEAM PLANT INTANGIBLE ASSETS","SG",71335.428735384601,{"$f":"IF(OR(tblIPJune19[[#This Row],[Alloc]]=\"IDU\",tblIPJune19[[#This Row],[Alloc]]=\"OR\",tblIPJune19[[#This Row],[Alloc]]=\"UT\",tblIPJune19[[#This Row],[Alloc]]=\"WYU\",tblIPJune19[[#This Row],[Alloc]]=\"WYP\",tblIPJune19[[#This Row],[Alloc]]=\"CA\",tblIPJune19[[#This Row],[Alloc]]=\"WA\"),\"SITUS\",tblIPJune19[[#This Row],[Alloc]])","v":"SG"},{"$f":"INDEX(tblIPLookup[FUNC],MATCH(tblIPJune19[[#This Row],[Concat]],tblIPLookup[Concat],0))","v":"P"},{"$f":"IF(tblIPJune19[[#This Row],[Total ($000)]]=0,\"NO\",IF(ISNA(tblIPJune19[[#This Row],[FUNC]]),\"YES\",IF(_xlfn.ISFORMULA(tblIPJune19[[#This Row],[FUNC]]),\"NO\",\"YES\")))","v":"NO"}]
[{"$f":"CONCATENATE(tblIPJune19[[#This Row],[Primary Account]],tblIPJune19[[#This Row],[Primary Name]],tblIPJune19[[#This Row],[Secondary Acct]],tblIPJune19[[#This Row],[Secondary  Name]],tblIPJune19[[#This Row],[Alloc4FUNC]])","v":"1010000ELEC PLANT IN SERV3033170GTX VERSION 7 SOFTWARECN"},1010000,"ELEC PLANT IN SERV",3033170,"GTX VERSION 7 SOFTWARE","CN",7403.6893484615402,{"$f":"IF(OR(tblIPJune19[[#This Row],[Alloc]]=\"IDU\",tblIPJune19[[#This Row],[Alloc]]=\"OR\",tblIPJune19[[#This Row],[Alloc]]=\"UT\",tblIPJune19[[#This Row],[Alloc]]=\"WYU\",tblIPJune19[[#This Row],[Alloc]]=\"WYP\",tblIPJune19[[#This Row],[Alloc]]=\"CA\",tblIPJune19[[#This Row],[Alloc]]=\"WA\"),\"SITUS\",tblIPJune19[[#This Row],[Alloc]])","v":"CN"},{"$f":"INDEX(tblIPLookup[FUNC],MATCH(tblIPJune19[[#This Row],[Concat]],tblIPLookup[Concat],0))","v":"CUST"},{"$f":"IF(tblIPJune19[[#This Row],[Total ($000)]]=0,\"NO\",IF(ISNA(tblIPJune19[[#This Row],[FUNC]]),\"YES\",IF(_xlfn.ISFORMULA(tblIPJune19[[#This Row],[FUNC]]),\"NO\",\"YES\")))","v":"NO"}]
[{"$f":"CONCATENATE(tblIPJune19[[#This Row],[Primary Account]],tblIPJune19[[#This Row],[Primary Name]],tblIPJune19[[#This Row],[Secondary Acct]],tblIPJune19[[#This Row],[Secondary  Name]],tblIPJune19[[#This Row],[Alloc4FUNC]])","v":"1010000ELEC PLANT IN SERV3033190ITRON METER READING SOFTWARECN"},1010000,"ELEC PLANT IN SERV",3033190,"ITRON METER READING SOFTWARE","CN",5868.34458,{"$f":"IF(OR(tblIPJune19[[#This Row],[Alloc]]=\"IDU\",tblIPJune19[[#This Row],[Alloc]]=\"OR\",tblIPJune19[[#This Row],[Alloc]]=\"UT\",tblIPJune19[[#This Row],[Alloc]]=\"WYU\",tblIPJune19[[#This Row],[Alloc]]=\"WYP\",tblIPJune19[[#This Row],[Alloc]]=\"CA\",tblIPJune19[[#This Row],[Alloc]]=\"WA\"),\"SITUS\",tblIPJune19[[#This Row],[Alloc]])","v":"CN"},{"$f":"INDEX(tblIPLookup[FUNC],MATCH(tblIPJune19[[#This Row],[Concat]],tblIPLookup[Concat],0))","v":"CUST"},{"$f":"IF(tblIPJune19[[#This Row],[Total ($000)]]=0,\"NO\",IF(ISNA(tblIPJune19[[#This Row],[FUNC]]),\"YES\",IF(_xlfn.ISFORMULA(tblIPJune19[[#This Row],[FUNC]]),\"NO\",\"YES\")))","v":"NO"}]
[{"$f":"CONCATENATE(tblIPJune19[[#This Row],[Primary Account]],tblIPJune19[[#This Row],[Primary Name]],tblIPJune19[[#This Row],[Secondary Acct]],tblIPJune19[[#This Row],[Secondary  Name]],tblIPJune19[[#This Row],[Alloc4FUNC]])","v":"1010000ELEC PLANT IN SERV3033210ArcFM SoftwareSO"},1010000,"ELEC PLANT IN SERV",3033210,"ArcFM Software","SO",3978.4801299999999,{"$f":"IF(OR(tblIPJune19[[#This Row],[Alloc]]=\"IDU\",tblIPJune19[[#This Row],[Alloc]]=\"OR\",tblIPJune19[[#This Row],[Alloc]]=\"UT\",tblIPJune19[[#This Row],[Alloc]]=\"WYU\",tblIPJune19[[#This Row],[Alloc]]=\"WYP\",tblIPJune19[[#This Row],[Alloc]]=\"CA\",tblIPJune19[[#This Row],[Alloc]]=\"WA\"),\"SITUS\",tblIPJune19[[#This Row],[Alloc]])","v":"SO"},{"$f":"INDEX(tblIPLookup[FUNC],MATCH(tblIPJune19[[#This Row],[Concat]],tblIPLookup[Concat],0))","v":"DPW"},{"$f":"IF(tblIPJune19[[#This Row],[Total ($000)]]=0,\"NO\",IF(ISNA(tblIPJune19[[#This Row],[FUNC]]),\"YES\",IF(_xlfn.ISFORMULA(tblIPJune19[[#This Row],[FUNC]]),\"NO\",\"YES\")))","v":"NO"}]
[{"$f":"CONCATENATE(tblIPJune19[[#This Row],[Primary Account]],tblIPJune19[[#This Row],[Primary Name]],tblIPJune19[[#This Row],[Secondary Acct]],tblIPJune19[[#This Row],[Secondary  Name]],tblIPJune19[[#This Row],[Alloc4FUNC]])","v":"1010000ELEC PLANT IN SERV3033220MONARCH EMS/SCADASO"},1010000,"ELEC PLANT IN SERV",3033220,"MONARCH EMS/SCADA","SO",29084.982157692299,{"$f":"IF(OR(tblIPJune19[[#This Row],[Alloc]]=\"IDU\",tblIPJune19[[#This Row],[Alloc]]=\"OR\",tblIPJune19[[#This Row],[Alloc]]=\"UT\",tblIPJune19[[#This Row],[Alloc]]=\"WYU\",tblIPJune19[[#This Row],[Alloc]]=\"WYP\",tblIPJune19[[#This Row],[Alloc]]=\"CA\",tblIPJune19[[#This Row],[Alloc]]=\"WA\"),\"SITUS\",tblIPJune19[[#This Row],[Alloc]])","v":"SO"},{"$f":"INDEX(tblIPLookup[FUNC],MATCH(tblIPJune19[[#This Row],[Concat]],tblIPLookup[Concat],0))","v":"TD"},{"$f":"IF(tblIPJune19[[#This Row],[Total ($000)]]=0,\"NO\",IF(ISNA(tblIPJune19[[#This Row],[FUNC]]),\"YES\",IF(_xlfn.ISFORMULA(tblIPJune19[[#This Row],[FUNC]]),\"NO\",\"YES\")))","v":"NO"}]
[{"$f":"CONCATENATE(tblIPJune19[[#This Row],[Primary Account]],tblIPJune19[[#This Row],[Primary Name]],tblIPJune19[[#This Row],[Secondary Acct]],tblIPJune19[[#This Row],[Secondary  Name]],tblIPJune19[[#This Row],[Alloc4FUNC]])","v":"1010000ELEC PLANT IN SERV3033230VREALIZE VMWARE - SHAREDSO"},1010000,"ELEC PLANT IN SERV",3033230,"VREALIZE VMWARE - SHARED","SO",1054.7101399999999,{"$f":"IF(OR(tblIPJune19[[#This Row],[Alloc]]=\"IDU\",tblIPJune19[[#This Row],[Alloc]]=\"OR\",tblIPJune19[[#This Row],[Alloc]]=\"UT\",tblIPJune19[[#This Row],[Alloc]]=\"WYU\",tblIPJune19[[#This Row],[Alloc]]=\"WYP\",tblIPJune19[[#This Row],[Alloc]]=\"CA\",tblIPJune19[[#This Row],[Alloc]]=\"WA\"),\"SITUS\",tblIPJune19[[#This Row],[Alloc]])","v":"SO"},{"$f":"INDEX(tblIPLookup[FUNC],MATCH(tblIPJune19[[#This Row],[Concat]],tblIPLookup[Concat],0))","v":"PTD"},{"$f":"IF(tblIPJune19[[#This Row],[Total ($000)]]=0,\"NO\",IF(ISNA(tblIPJune19[[#This Row],[FUNC]]),\"YES\",IF(_xlfn.ISFORMULA(tblIPJune19[[#This Row],[FUNC]]),\"NO\",\"YES\")))","v":"NO"}]
[{"$f":"CONCATENATE(tblIPJune19[[#This Row],[Primary Account]],tblIPJune19[[#This Row],[Primary Name]],tblIPJune19[[#This Row],[Secondary Acct]],tblIPJune19[[#This Row],[Secondary  Name]],tblIPJune19[[#This Row],[Alloc4FUNC]])","v":"1010000ELEC PLANT IN SERV3033240IEE - Itron Enterprise AdditionCN"},1010000,"ELEC PLANT IN SERV",3033240,"IEE - Itron Enterprise Addition","CN",3688.0242899999998,{"$f":"IF(OR(tblIPJune19[[#This Row],[Alloc]]=\"IDU\",tblIPJune19[[#This Row],[Alloc]]=\"OR\",tblIPJune19[[#This Row],[Alloc]]=\"UT\",tblIPJune19[[#This Row],[Alloc]]=\"WYU\",tblIPJune19[[#This Row],[Alloc]]=\"WYP\",tblIPJune19[[#This Row],[Alloc]]=\"CA\",tblIPJune19[[#This Row],[Alloc]]=\"WA\"),\"SITUS\",tblIPJune19[[#This Row],[Alloc]])","v":"CN"},{"$f":"INDEX(tblIPLookup[FUNC],MATCH(tblIPJune19[[#This Row],[Concat]],tblIPLookup[Concat],0))","v":"CUST"},{"$f":"IF(tblIPJune19[[#This Row],[Total ($000)]]=0,\"NO\",IF(ISNA(tblIPJune19[[#This Row],[FUNC]]),\"YES\",IF(_xlfn.ISFORMULA(tblIPJune19[[#This Row],[FUNC]]),\"NO\",\"YES\")))","v":"NO"}]
[{"$f":"CONCATENATE(tblIPJune19[[#This Row],[Primary Account]],tblIPJune19[[#This Row],[Primary Name]],tblIPJune19[[#This Row],[Secondary Acct]],tblIPJune19[[#This Row],[Secondary  Name]],tblIPJune19[[#This Row],[Alloc4FUNC]])","v":"1010000ELEC PLANT IN SERV3033250AMI Metering SoftwareCN"},1010000,"ELEC PLANT IN SERV",3033250,"AMI Metering Software","CN",21462.571370000001,{"$f":"IF(OR(tblIPJune19[[#This Row],[Alloc]]=\"IDU\",tblIPJune19[[#This Row],[Alloc]]=\"OR\",tblIPJune19[[#This Row],[Alloc]]=\"UT\",tblIPJune19[[#This Row],[Alloc]]=\"WYU\",tblIPJune19[[#This Row],[Alloc]]=\"WYP\",tblIPJune19[[#This Row],[Alloc]]=\"CA\",tblIPJune19[[#This Row],[Alloc]]=\"WA\"),\"SITUS\",tblIPJune19[[#This Row],[Alloc]])","v":"CN"},{"$f":"INDEX(tblIPLookup[FUNC],MATCH(tblIPJune19[[#This Row],[Concat]],tblIPLookup[Concat],0))","v":"CUST"},{"$f":"IF(tblIPJune19[[#This Row],[Total ($000)]]=0,\"NO\",IF(ISNA(tblIPJune19[[#This Row],[FUNC]]),\"YES\",IF(_xlfn.ISFORMULA(tblIPJune19[[#This Row],[FUNC]]),\"NO\",\"YES\")))","v":"NO"}]
[{"$f":"CONCATENATE(tblIPJune19[[#This Row],[Primary Account]],tblIPJune19[[#This Row],[Primary Name]],tblIPJune19[[#This Row],[Secondary Acct]],tblIPJune19[[#This Row],[Secondary  Name]],tblIPJune19[[#This Row],[Alloc4FUNC]])","v":"1010000ELEC PLANT IN SERV3033260Big Data & AnalyticsSO"},1010000,"ELEC PLANT IN SERV",3033260,"Big Data & Analytics","SO",390.88717230769203,{"$f":"IF(OR(tblIPJune19[[#This Row],[Alloc]]=\"IDU\",tblIPJune19[[#This Row],[Alloc]]=\"OR\",tblIPJune19[[#This Row],[Alloc]]=\"UT\",tblIPJune19[[#This Row],[Alloc]]=\"WYU\",tblIPJune19[[#This Row],[Alloc]]=\"WYP\",tblIPJune19[[#This Row],[Alloc]]=\"CA\",tblIPJune19[[#This Row],[Alloc]]=\"WA\"),\"SITUS\",tblIPJune19[[#This Row],[Alloc]])","v":"SO"},{"$f":"INDEX(tblIPLookup[FUNC],MATCH(tblIPJune19[[#This Row],[Concat]],tblIPLookup[Concat],0))","v":"CUST"},{"$f":"IF(tblIPJune19[[#This Row],[Total ($000)]]=0,\"NO\",IF(ISNA(tblIPJune19[[#This Row],[FUNC]]),\"YES\",IF(_xlfn.ISFORMULA(tblIPJune19[[#This Row],[FUNC]]),\"NO\",\"YES\")))","v":"NO"}]
[{"$f":"CONCATENATE(tblIPJune19[[#This Row],[Primary Account]],tblIPJune19[[#This Row],[Primary Name]],tblIPJune19[[#This Row],[Secondary Acct]],tblIPJune19[[#This Row],[Secondary  Name]],tblIPJune19[[#This Row],[Alloc4FUNC]])","v":"1010000ELEC PLANT IN SERV3033300SECID - CUST SECURE WEB LOGINCN"},1010000,"ELEC PLANT IN SERV",3033300,"SECID - CUST SECURE WEB LOGIN","CN",1085.2564500000001,{"$f":"IF(OR(tblIPJune19[[#This Row],[Alloc]]=\"IDU\",tblIPJune19[[#This Row],[Alloc]]=\"OR\",tblIPJune19[[#This Row],[Alloc]]=\"UT\",tblIPJune19[[#This Row],[Alloc]]=\"WYU\",tblIPJune19[[#This Row],[Alloc]]=\"WYP\",tblIPJune19[[#This Row],[Alloc]]=\"CA\",tblIPJune19[[#This Row],[Alloc]]=\"WA\"),\"SITUS\",tblIPJune19[[#This Row],[Alloc]])","v":"CN"},{"$f":"INDEX(tblIPLookup[FUNC],MATCH(tblIPJune19[[#This Row],[Concat]],tblIPLookup[Concat],0))","v":"CUST"},{"$f":"IF(tblIPJune19[[#This Row],[Total ($000)]]=0,\"NO\",IF(ISNA(tblIPJune19[[#This Row],[FUNC]]),\"YES\",IF(_xlfn.ISFORMULA(tblIPJune19[[#This Row],[FUNC]]),\"NO\",\"YES\")))","v":"NO"}]
[{"$f":"CONCATENATE(tblIPJune19[[#This Row],[Primary Account]],tblIPJune19[[#This Row],[Primary Name]],tblIPJune19[[#This Row],[Secondary Acct]],tblIPJune19[[#This Row],[Secondary  Name]],tblIPJune19[[#This Row],[Alloc4FUNC]])","v":"1010000ELEC PLANT IN SERV3033310C&T - Energy Trading SystemSO"},1010000,"ELEC PLANT IN SERV",3033310,"C&T - Energy Trading System","SO",18004.980670000001,{"$f":"IF(OR(tblIPJune19[[#This Row],[Alloc]]=\"IDU\",tblIPJune19[[#This Row],[Alloc]]=\"OR\",tblIPJune19[[#This Row],[Alloc]]=\"UT\",tblIPJune19[[#This Row],[Alloc]]=\"WYU\",tblIPJune19[[#This Row],[Alloc]]=\"WYP\",tblIPJune19[[#This Row],[Alloc]]=\"CA\",tblIPJune19[[#This Row],[Alloc]]=\"WA\"),\"SITUS\",tblIPJune19[[#This Row],[Alloc]])","v":"SO"},{"$f":"INDEX(tblIPLookup[FUNC],MATCH(tblIPJune19[[#This Row],[Concat]],tblIPLookup[Concat],0))","v":"P"},{"$f":"IF(tblIPJune19[[#This Row],[Total ($000)]]=0,\"NO\",IF(ISNA(tblIPJune19[[#This Row],[FUNC]]),\"YES\",IF(_xlfn.ISFORMULA(tblIPJune19[[#This Row],[FUNC]]),\"NO\",\"YES\")))","v":"NO"}]
[{"$f":"CONCATENATE(tblIPJune19[[#This Row],[Primary Account]],tblIPJune19[[#This Row],[Primary Name]],tblIPJune19[[#This Row],[Secondary Acct]],tblIPJune19[[#This Row],[Secondary  Name]],tblIPJune19[[#This Row],[Alloc4FUNC]])","v":"1010000ELEC PLANT IN SERV3033320CAS - CONTROL AREA SCHEDULING (TRANSM)SG"},1010000,"ELEC PLANT IN SERV",3033320,"CAS - CONTROL AREA SCHEDULING (TRANSM)","SG",9914.2279500000004,{"$f":"IF(OR(tblIPJune19[[#This Row],[Alloc]]=\"IDU\",tblIPJune19[[#This Row],[Alloc]]=\"OR\",tblIPJune19[[#This Row],[Alloc]]=\"UT\",tblIPJune19[[#This Row],[Alloc]]=\"WYU\",tblIPJune19[[#This Row],[Alloc]]=\"WYP\",tblIPJune19[[#This Row],[Alloc]]=\"CA\",tblIPJune19[[#This Row],[Alloc]]=\"WA\"),\"SITUS\",tblIPJune19[[#This Row],[Alloc]])","v":"SG"},{"$f":"INDEX(tblIPLookup[FUNC],MATCH(tblIPJune19[[#This Row],[Concat]],tblIPLookup[Concat],0))","v":"T"},{"$f":"IF(tblIPJune19[[#This Row],[Total ($000)]]=0,\"NO\",IF(ISNA(tblIPJune19[[#This Row],[FUNC]]),\"YES\",IF(_xlfn.ISFORMULA(tblIPJune19[[#This Row],[FUNC]]),\"NO\",\"YES\")))","v":"NO"}]
[{"$f":"CONCATENATE(tblIPJune19[[#This Row],[Primary Account]],tblIPJune19[[#This Row],[Primary Name]],tblIPJune19[[#This Row],[Secondary Acct]],tblIPJune19[[#This Row],[Secondary  Name]],tblIPJune19[[#This Row],[Alloc4FUNC]])","v":"1010000ELEC PLANT IN SERV3033330OR VHF (VPC) SPECTRUMSITUS"},1010000,"ELEC PLANT IN SERV",3033330,"OR VHF (VPC) SPECTRUM","OR",4070.90915,{"$f":"IF(OR(tblIPJune19[[#This Row],[Alloc]]=\"IDU\",tblIPJune19[[#This Row],[Alloc]]=\"OR\",tblIPJune19[[#This Row],[Alloc]]=\"UT\",tblIPJune19[[#This Row],[Alloc]]=\"WYU\",tblIPJune19[[#This Row],[Alloc]]=\"WYP\",tblIPJune19[[#This Row],[Alloc]]=\"CA\",tblIPJune19[[#This Row],[Alloc]]=\"WA\"),\"SITUS\",tblIPJune19[[#This Row],[Alloc]])","v":"SITUS"},{"$f":"INDEX(tblIPLookup[FUNC],MATCH(tblIPJune19[[#This Row],[Concat]],tblIPLookup[Concat],0))","v":"TD"},{"$f":"IF(tblIPJune19[[#This Row],[Total ($000)]]=0,\"NO\",IF(ISNA(tblIPJune19[[#This Row],[FUNC]]),\"YES\",IF(_xlfn.ISFORMULA(tblIPJune19[[#This Row],[FUNC]]),\"NO\",\"YES\")))","v":"NO"}]
[{"$f":"CONCATENATE(tblIPJune19[[#This Row],[Primary Account]],tblIPJune19[[#This Row],[Primary Name]],tblIPJune19[[#This Row],[Secondary Acct]],tblIPJune19[[#This Row],[Secondary  Name]],tblIPJune19[[#This Row],[Alloc4FUNC]])","v":"1010000ELEC PLANT IN SERV3033340WA VHF (VPC) SPECTRUMSITUS"},1010000,"ELEC PLANT IN SERV",3033340,"WA VHF (VPC) SPECTRUM","WA",2021.2450899999999,{"$f":"IF(OR(tblIPJune19[[#This Row],[Alloc]]=\"IDU\",tblIPJune19[[#This Row],[Alloc]]=\"OR\",tblIPJune19[[#This Row],[Alloc]]=\"UT\",tblIPJune19[[#This Row],[Alloc]]=\"WYU\",tblIPJune19[[#This Row],[Alloc]]=\"WYP\",tblIPJune19[[#This Row],[Alloc]]=\"CA\",tblIPJune19[[#This Row],[Alloc]]=\"WA\"),\"SITUS\",tblIPJune19[[#This Row],[Alloc]])","v":"SITUS"},{"$f":"INDEX(tblIPLookup[FUNC],MATCH(tblIPJune19[[#This Row],[Concat]],tblIPLookup[Concat],0))","v":"TD"},{"$f":"IF(tblIPJune19[[#This Row],[Total ($000)]]=0,\"NO\",IF(ISNA(tblIPJune19[[#This Row],[FUNC]]),\"YES\",IF(_xlfn.ISFORMULA(tblIPJune19[[#This Row],[FUNC]]),\"NO\",\"YES\")))","v":"NO"}]
[{"$f":"CONCATENATE(tblIPJune19[[#This Row],[Primary Account]],tblIPJune19[[#This Row],[Primary Name]],tblIPJune19[[#This Row],[Secondary Acct]],tblIPJune19[[#This Row],[Secondary  Name]],tblIPJune19[[#This Row],[Alloc4FUNC]])","v":"1010000ELEC PLANT IN SERV3033350CA VHF (VPC) SPECTRUMSITUS"},1010000,"ELEC PLANT IN SERV",3033350,"CA VHF (VPC) SPECTRUM","CA",472.34097000000003,{"$f":"IF(OR(tblIPJune19[[#This Row],[Alloc]]=\"IDU\",tblIPJune19[[#This Row],[Alloc]]=\"OR\",tblIPJune19[[#This Row],[Alloc]]=\"UT\",tblIPJune19[[#This Row],[Alloc]]=\"WYU\",tblIPJune19[[#This Row],[Alloc]]=\"WYP\",tblIPJune19[[#This Row],[Alloc]]=\"CA\",tblIPJune19[[#This Row],[Alloc]]=\"WA\"),\"SITUS\",tblIPJune19[[#This Row],[Alloc]])","v":"SITUS"},{"$f":"INDEX(tblIPLookup[FUNC],MATCH(tblIPJune19[[#This Row],[Concat]],tblIPLookup[Concat],0))","v":"TD"},{"$f":"IF(tblIPJune19[[#This Row],[Total ($000)]]=0,\"NO\",IF(ISNA(tblIPJune19[[#This Row],[FUNC]]),\"YES\",IF(_xlfn.ISFORMULA(tblIPJune19[[#This Row],[FUNC]]),\"NO\",\"YES\")))","v":"NO"}]
[{"$f":"CONCATENATE(tblIPJune19[[#This Row],[Primary Account]],tblIPJune19[[#This Row],[Primary Name]],tblIPJune19[[#This Row],[Secondary Acct]],tblIPJune19[[#This Row],[Secondary  Name]],tblIPJune19[[#This Row],[Alloc4FUNC]])","v":"1010000ELEC PLANT IN SERV3033370DISTRIBUTION INTANGIBLESSITUS"},1010000,"ELEC PLANT IN SERV",3033370,"DISTRIBUTION INTANGIBLES","WYP",157.66159999999999,{"$f":"IF(OR(tblIPJune19[[#This Row],[Alloc]]=\"IDU\",tblIPJune19[[#This Row],[Alloc]]=\"OR\",tblIPJune19[[#This Row],[Alloc]]=\"UT\",tblIPJune19[[#This Row],[Alloc]]=\"WYU\",tblIPJune19[[#This Row],[Alloc]]=\"WYP\",tblIPJune19[[#This Row],[Alloc]]=\"CA\",tblIPJune19[[#This Row],[Alloc]]=\"WA\"),\"SITUS\",tblIPJune19[[#This Row],[Alloc]])","v":"SITUS"},{"$f":"INDEX(tblIPLookup[FUNC],MATCH(tblIPJune19[[#This Row],[Concat]],tblIPLookup[Concat],0))","v":"DPW"},{"$f":"IF(tblIPJune19[[#This Row],[Total ($000)]]=0,\"NO\",IF(ISNA(tblIPJune19[[#This Row],[FUNC]]),\"YES\",IF(_xlfn.ISFORMULA(tblIPJune19[[#This Row],[FUNC]]),\"NO\",\"YES\")))","v":"NO"}]
[{"$f":"CONCATENATE(tblIPJune19[[#This Row],[Primary Account]],tblIPJune19[[#This Row],[Primary Name]],tblIPJune19[[#This Row],[Secondary Acct]],tblIPJune19[[#This Row],[Secondary  Name]],tblIPJune19[[#This Row],[Alloc4FUNC]])","v":"1010000ELEC PLANT IN SERV3033380MISCELLANEOUS SMALL SOFTWARE PACKAGESSG"},1010000,"ELEC PLANT IN SERV",3033380,"MISCELLANEOUS SMALL SOFTWARE PACKAGES","SG",1601.05449,{"$f":"IF(OR(tblIPJune19[[#This Row],[Alloc]]=\"IDU\",tblIPJune19[[#This Row],[Alloc]]=\"OR\",tblIPJune19[[#This Row],[Alloc]]=\"UT\",tblIPJune19[[#This Row],[Alloc]]=\"WYU\",tblIPJune19[[#This Row],[Alloc]]=\"WYP\",tblIPJune19[[#This Row],[Alloc]]=\"CA\",tblIPJune19[[#This Row],[Alloc]]=\"WA\"),\"SITUS\",tblIPJune19[[#This Row],[Alloc]])","v":"SG"},{"$f":"INDEX(tblIPLookup[FUNC],MATCH(tblIPJune19[[#This Row],[Concat]],tblIPLookup[Concat],0))","v":"P"},{"$f":"IF(tblIPJune19[[#This Row],[Total ($000)]]=0,\"NO\",IF(ISNA(tblIPJune19[[#This Row],[FUNC]]),\"YES\",IF(_xlfn.ISFORMULA(tblIPJune19[[#This Row],[FUNC]]),\"NO\",\"YES\")))","v":"NO"}]
[{"$f":"CONCATENATE(tblIPJune19[[#This Row],[Primary Account]],tblIPJune19[[#This Row],[Primary Name]],tblIPJune19[[#This Row],[Secondary Acct]],tblIPJune19[[#This Row],[Secondary  Name]],tblIPJune19[[#This Row],[Alloc4FUNC]])","v":"1010000ELEC PLANT IN SERV3033390RMT TRADE SYSTEMSO"},1010000,"ELEC PLANT IN SERV",3033390,"RMT TRADE SYSTEM","SO",903.16392692307704,{"$f":"IF(OR(tblIPJune19[[#This Row],[Alloc]]=\"IDU\",tblIPJune19[[#This Row],[Alloc]]=\"OR\",tblIPJune19[[#This Row],[Alloc]]=\"UT\",tblIPJune19[[#This Row],[Alloc]]=\"WYU\",tblIPJune19[[#This Row],[Alloc]]=\"WYP\",tblIPJune19[[#This Row],[Alloc]]=\"CA\",tblIPJune19[[#This Row],[Alloc]]=\"WA\"),\"SITUS\",tblIPJune19[[#This Row],[Alloc]])","v":"SO"},{"$f":"INDEX(tblIPLookup[FUNC],MATCH(tblIPJune19[[#This Row],[Concat]],tblIPLookup[Concat],0))","v":"PTD"},{"$f":"IF(tblIPJune19[[#This Row],[Total ($000)]]=0,\"NO\",IF(ISNA(tblIPJune19[[#This Row],[FUNC]]),\"YES\",IF(_xlfn.ISFORMULA(tblIPJune19[[#This Row],[FUNC]]),\"NO\",\"YES\")))","v":"NO"}]
[{"$f":"CONCATENATE(tblIPJune19[[#This Row],[Primary Account]],tblIPJune19[[#This Row],[Primary Name]],tblIPJune19[[#This Row],[Secondary Acct]],tblIPJune19[[#This Row],[Secondary  Name]],tblIPJune19[[#This Row],[Alloc4FUNC]])","v":"1010000ELEC PLANT IN SERV3034900MISC - MISCELLANEOUSCN"},1010000,"ELEC PLANT IN SERV",3034900,"MISC - MISCELLANEOUS","CN",10.99808,{"$f":"IF(OR(tblIPJune19[[#This Row],[Alloc]]=\"IDU\",tblIPJune19[[#This Row],[Alloc]]=\"OR\",tblIPJune19[[#This Row],[Alloc]]=\"UT\",tblIPJune19[[#This Row],[Alloc]]=\"WYU\",tblIPJune19[[#This Row],[Alloc]]=\"WYP\",tblIPJune19[[#This Row],[Alloc]]=\"CA\",tblIPJune19[[#This Row],[Alloc]]=\"WA\"),\"SITUS\",tblIPJune19[[#This Row],[Alloc]])","v":"CN"},{"$f":"INDEX(tblIPLookup[FUNC],MATCH(tblIPJune19[[#This Row],[Concat]],tblIPLookup[Concat],0))","v":"CUST"},{"$f":"IF(tblIPJune19[[#This Row],[Total ($000)]]=0,\"NO\",IF(ISNA(tblIPJune19[[#This Row],[FUNC]]),\"YES\",IF(_xlfn.ISFORMULA(tblIPJune19[[#This Row],[FUNC]]),\"NO\",\"YES\")))","v":"NO"}]
[{"$f":"CONCATENATE(tblIPJune19[[#This Row],[Primary Account]],tblIPJune19[[#This Row],[Primary Name]],tblIPJune19[[#This Row],[Secondary Acct]],tblIPJune19[[#This Row],[Secondary  Name]],tblIPJune19[[#This Row],[Alloc4FUNC]])","v":"1010000ELEC PLANT IN SERV3034900MISC - MISCELLANEOUSSITUS"},1010000,"ELEC PLANT IN SERV",3034900,"MISC - MISCELLANEOUS","IDU",14.554180000000001,{"$f":"IF(OR(tblIPJune19[[#This Row],[Alloc]]=\"IDU\",tblIPJune19[[#This Row],[Alloc]]=\"OR\",tblIPJune19[[#This Row],[Alloc]]=\"UT\",tblIPJune19[[#This Row],[Alloc]]=\"WYU\",tblIPJune19[[#This Row],[Alloc]]=\"WYP\",tblIPJune19[[#This Row],[Alloc]]=\"CA\",tblIPJune19[[#This Row],[Alloc]]=\"WA\"),\"SITUS\",tblIPJune19[[#This Row],[Alloc]])","v":"SITUS"},{"$f":"INDEX(tblIPLookup[FUNC],MATCH(tblIPJune19[[#This Row],[Concat]],tblIPLookup[Concat],0))","v":"TD"},{"$f":"IF(tblIPJune19[[#This Row],[Total ($000)]]=0,\"NO\",IF(ISNA(tblIPJune19[[#This Row],[FUNC]]),\"YES\",IF(_xlfn.ISFORMULA(tblIPJune19[[#This Row],[FUNC]]),\"NO\",\"YES\")))","v":"NO"}]
[{"$f":"CONCATENATE(tblIPJune19[[#This Row],[Primary Account]],tblIPJune19[[#This Row],[Primary Name]],tblIPJune19[[#This Row],[Secondary Acct]],tblIPJune19[[#This Row],[Secondary  Name]],tblIPJune19[[#This Row],[Alloc4FUNC]])","v":"1010000ELEC PLANT IN SERV3034900MISC - MISCELLANEOUSSITUS"},1010000,"ELEC PLANT IN SERV",3034900,"MISC - MISCELLANEOUS","OR",7.5070069230769203,{"$f":"IF(OR(tblIPJune19[[#This Row],[Alloc]]=\"IDU\",tblIPJune19[[#This Row],[Alloc]]=\"OR\",tblIPJune19[[#This Row],[Alloc]]=\"UT\",tblIPJune19[[#This Row],[Alloc]]=\"WYU\",tblIPJune19[[#This Row],[Alloc]]=\"WYP\",tblIPJune19[[#This Row],[Alloc]]=\"CA\",tblIPJune19[[#This Row],[Alloc]]=\"WA\"),\"SITUS\",tblIPJune19[[#This Row],[Alloc]])","v":"SITUS"},{"$f":"INDEX(tblIPLookup[FUNC],MATCH(tblIPJune19[[#This Row],[Concat]],tblIPLookup[Concat],0))","v":"TD"},{"$f":"IF(tblIPJune19[[#This Row],[Total ($000)]]=0,\"NO\",IF(ISNA(tblIPJune19[[#This Row],[FUNC]]),\"YES\",IF(_xlfn.ISFORMULA(tblIPJune19[[#This Row],[FUNC]]),\"NO\",\"YES\")))","v":"NO"}]
[{"$f":"CONCATENATE(tblIPJune19[[#This Row],[Primary Account]],tblIPJune19[[#This Row],[Primary Name]],tblIPJune19[[#This Row],[Secondary Acct]],tblIPJune19[[#This Row],[Secondary  Name]],tblIPJune19[[#This Row],[Alloc4FUNC]])","v":"1010000ELEC PLANT IN SERV3034900MISC - MISCELLANEOUSSE"},1010000,"ELEC PLANT IN SERV",3034900,"MISC - MISCELLANEOUS","SE",6.7630846153846198,{"$f":"IF(OR(tblIPJune19[[#This Row],[Alloc]]=\"IDU\",tblIPJune19[[#This Row],[Alloc]]=\"OR\",tblIPJune19[[#This Row],[Alloc]]=\"UT\",tblIPJune19[[#This Row],[Alloc]]=\"WYU\",tblIPJune19[[#This Row],[Alloc]]=\"WYP\",tblIPJune19[[#This Row],[Alloc]]=\"CA\",tblIPJune19[[#This Row],[Alloc]]=\"WA\"),\"SITUS\",tblIPJune19[[#This Row],[Alloc]])","v":"SE"},{"$f":"INDEX(tblIPLookup[FUNC],MATCH(tblIPJune19[[#This Row],[Concat]],tblIPLookup[Concat],0))","v":"P"},{"$f":"IF(tblIPJune19[[#This Row],[Total ($000)]]=0,\"NO\",IF(ISNA(tblIPJune19[[#This Row],[FUNC]]),\"YES\",IF(_xlfn.ISFORMULA(tblIPJune19[[#This Row],[FUNC]]),\"NO\",\"YES\")))","v":"NO"}]
[{"$f":"CONCATENATE(tblIPJune19[[#This Row],[Primary Account]],tblIPJune19[[#This Row],[Primary Name]],tblIPJune19[[#This Row],[Secondary Acct]],tblIPJune19[[#This Row],[Secondary  Name]],tblIPJune19[[#This Row],[Alloc4FUNC]])","v":"1010000ELEC PLANT IN SERV3034900MISC - MISCELLANEOUSSG"},1010000,"ELEC PLANT IN SERV",3034900,"MISC - MISCELLANEOUS","SG",7653.9263761538496,{"$f":"IF(OR(tblIPJune19[[#This Row],[Alloc]]=\"IDU\",tblIPJune19[[#This Row],[Alloc]]=\"OR\",tblIPJune19[[#This Row],[Alloc]]=\"UT\",tblIPJune19[[#This Row],[Alloc]]=\"WYU\",tblIPJune19[[#This Row],[Alloc]]=\"WYP\",tblIPJune19[[#This Row],[Alloc]]=\"CA\",tblIPJune19[[#This Row],[Alloc]]=\"WA\"),\"SITUS\",tblIPJune19[[#This Row],[Alloc]])","v":"SG"},{"$f":"INDEX(tblIPLookup[FUNC],MATCH(tblIPJune19[[#This Row],[Concat]],tblIPLookup[Concat],0))","v":"P"},{"$f":"IF(tblIPJune19[[#This Row],[Total ($000)]]=0,\"NO\",IF(ISNA(tblIPJune19[[#This Row],[FUNC]]),\"YES\",IF(_xlfn.ISFORMULA(tblIPJune19[[#This Row],[FUNC]]),\"NO\",\"YES\")))","v":"NO"}]
[{"$f":"CONCATENATE(tblIPJune19[[#This Row],[Primary Account]],tblIPJune19[[#This Row],[Primary Name]],tblIPJune19[[#This Row],[Secondary Acct]],tblIPJune19[[#This Row],[Secondary  Name]],tblIPJune19[[#This Row],[Alloc4FUNC]])","v":"1010000ELEC PLANT IN SERV3034900MISC - MISCELLANEOUSSITUS"},1010000,"ELEC PLANT IN SERV",3034900,"MISC - MISCELLANEOUS","CA",8.8260900000000007,{"$f":"IF(OR(tblIPJune19[[#This Row],[Alloc]]=\"IDU\",tblIPJune19[[#This Row],[Alloc]]=\"OR\",tblIPJune19[[#This Row],[Alloc]]=\"UT\",tblIPJune19[[#This Row],[Alloc]]=\"WYU\",tblIPJune19[[#This Row],[Alloc]]=\"WYP\",tblIPJune19[[#This Row],[Alloc]]=\"CA\",tblIPJune19[[#This Row],[Alloc]]=\"WA\"),\"SITUS\",tblIPJune19[[#This Row],[Alloc]])","v":"SITUS"},{"$f":"INDEX(tblIPLookup[FUNC],MATCH(tblIPJune19[[#This Row],[Concat]],tblIPLookup[Concat],0))","v":"TD"},{"$f":"IF(tblIPJune19[[#This Row],[Total ($000)]]=0,\"NO\",IF(ISNA(tblIPJune19[[#This Row],[FUNC]]),\"YES\",IF(_xlfn.ISFORMULA(tblIPJune19[[#This Row],[FUNC]]),\"NO\",\"YES\")))","v":"NO"}]
[{"$f":"CONCATENATE(tblIPJune19[[#This Row],[Primary Account]],tblIPJune19[[#This Row],[Primary Name]],tblIPJune19[[#This Row],[Secondary Acct]],tblIPJune19[[#This Row],[Secondary  Name]],tblIPJune19[[#This Row],[Alloc4FUNC]])","v":"1010000ELEC PLANT IN SERV3034900MISC - MISCELLANEOUSSO"},1010000,"ELEC PLANT IN SERV",3034900,"MISC - MISCELLANEOUS","SO",38417.829764615402,{"$f":"IF(OR(tblIPJune19[[#This Row],[Alloc]]=\"IDU\",tblIPJune19[[#This Row],[Alloc]]=\"OR\",tblIPJune19[[#This Row],[Alloc]]=\"UT\",tblIPJune19[[#This Row],[Alloc]]=\"WYU\",tblIPJune19[[#This Row],[Alloc]]=\"WYP\",tblIPJune19[[#This Row],[Alloc]]=\"CA\",tblIPJune19[[#This Row],[Alloc]]=\"WA\"),\"SITUS\",tblIPJune19[[#This Row],[Alloc]])","v":"SO"},{"$f":"INDEX(tblIPLookup[FUNC],MATCH(tblIPJune19[[#This Row],[Concat]],tblIPLookup[Concat],0))","v":"PTD"},{"$f":"IF(tblIPJune19[[#This Row],[Total ($000)]]=0,\"NO\",IF(ISNA(tblIPJune19[[#This Row],[FUNC]]),\"YES\",IF(_xlfn.ISFORMULA(tblIPJune19[[#This Row],[FUNC]]),\"NO\",\"YES\")))","v":"NO"}]
[{"$f":"CONCATENATE(tblIPJune19[[#This Row],[Primary Account]],tblIPJune19[[#This Row],[Primary Name]],tblIPJune19[[#This Row],[Secondary Acct]],tblIPJune19[[#This Row],[Secondary  Name]],tblIPJune19[[#This Row],[Alloc4FUNC]])","v":"1010000ELEC PLANT IN SERV3034900MISC - MISCELLANEOUSSITUS"},1010000,"ELEC PLANT IN SERV",3034900,"MISC - MISCELLANEOUS","UT",23.025320769230799,{"$f":"IF(OR(tblIPJune19[[#This Row],[Alloc]]=\"IDU\",tblIPJune19[[#This Row],[Alloc]]=\"OR\",tblIPJune19[[#This Row],[Alloc]]=\"UT\",tblIPJune19[[#This Row],[Alloc]]=\"WYU\",tblIPJune19[[#This Row],[Alloc]]=\"WYP\",tblIPJune19[[#This Row],[Alloc]]=\"CA\",tblIPJune19[[#This Row],[Alloc]]=\"WA\"),\"SITUS\",tblIPJune19[[#This Row],[Alloc]])","v":"SITUS"},{"$f":"INDEX(tblIPLookup[FUNC],MATCH(tblIPJune19[[#This Row],[Concat]],tblIPLookup[Concat],0))","v":"TD"},{"$f":"IF(tblIPJune19[[#This Row],[Total ($000)]]=0,\"NO\",IF(ISNA(tblIPJune19[[#This Row],[FUNC]]),\"YES\",IF(_xlfn.ISFORMULA(tblIPJune19[[#This Row],[FUNC]]),\"NO\",\"YES\")))","v":"NO"}]
[{"$f":"CONCATENATE(tblIPJune19[[#This Row],[Primary Account]],tblIPJune19[[#This Row],[Primary Name]],tblIPJune19[[#This Row],[Secondary Acct]],tblIPJune19[[#This Row],[Secondary  Name]],tblIPJune19[[#This Row],[Alloc4FUNC]])","v":"1010000ELEC PLANT IN SERV3034900MISC - MISCELLANEOUSSITUS"},1010000,"ELEC PLANT IN SERV",3034900,"MISC - MISCELLANEOUS","WA",15.117990000000001,{"$f":"IF(OR(tblIPJune19[[#This Row],[Alloc]]=\"IDU\",tblIPJune19[[#This Row],[Alloc]]=\"OR\",tblIPJune19[[#This Row],[Alloc]]=\"UT\",tblIPJune19[[#This Row],[Alloc]]=\"WYU\",tblIPJune19[[#This Row],[Alloc]]=\"WYP\",tblIPJune19[[#This Row],[Alloc]]=\"CA\",tblIPJune19[[#This Row],[Alloc]]=\"WA\"),\"SITUS\",tblIPJune19[[#This Row],[Alloc]])","v":"SITUS"},{"$f":"INDEX(tblIPLookup[FUNC],MATCH(tblIPJune19[[#This Row],[Concat]],tblIPLookup[Concat],0))","v":"TD"},{"$f":"IF(tblIPJune19[[#This Row],[Total ($000)]]=0,\"NO\",IF(ISNA(tblIPJune19[[#This Row],[FUNC]]),\"YES\",IF(_xlfn.ISFORMULA(tblIPJune19[[#This Row],[FUNC]]),\"NO\",\"YES\")))","v":"NO"}]
[{"$f":"CONCATENATE(tblIPJune19[[#This Row],[Primary Account]],tblIPJune19[[#This Row],[Primary Name]],tblIPJune19[[#This Row],[Secondary Acct]],tblIPJune19[[#This Row],[Secondary  Name]],tblIPJune19[[#This Row],[Alloc4FUNC]])","v":"1010000ELEC PLANT IN SERV3034900MISC - MISCELLANEOUSSITUS"},1010000,"ELEC PLANT IN SERV",3034900,"MISC - MISCELLANEOUS","WYP",243.27481076923101,{"$f":"IF(OR(tblIPJune19[[#This Row],[Alloc]]=\"IDU\",tblIPJune19[[#This Row],[Alloc]]=\"OR\",tblIPJune19[[#This Row],[Alloc]]=\"UT\",tblIPJune19[[#This Row],[Alloc]]=\"WYU\",tblIPJune19[[#This Row],[Alloc]]=\"WYP\",tblIPJune19[[#This Row],[Alloc]]=\"CA\",tblIPJune19[[#This Row],[Alloc]]=\"WA\"),\"SITUS\",tblIPJune19[[#This Row],[Alloc]])","v":"SITUS"},{"$f":"INDEX(tblIPLookup[FUNC],MATCH(tblIPJune19[[#This Row],[Concat]],tblIPLookup[Concat],0))","v":"TD"},{"$f":"IF(tblIPJune19[[#This Row],[Total ($000)]]=0,\"NO\",IF(ISNA(tblIPJune19[[#This Row],[FUNC]]),\"YES\",IF(_xlfn.ISFORMULA(tblIPJune19[[#This Row],[FUNC]]),\"NO\",\"YES\")))","v":"NO"}]
[{"$f":"CONCATENATE(tblIPJune19[[#This Row],[Primary Account]],tblIPJune19[[#This Row],[Primary Name]],tblIPJune19[[#This Row],[Secondary Acct]],tblIPJune19[[#This Row],[Secondary  Name]],tblIPJune19[[#This Row],[Alloc4FUNC]])","v":"1010000ELEC PLANT IN SERV3035320HYDRO PLANT INTANGIBLESSG"},1010000,"ELEC PLANT IN SERV",3035320,"HYDRO PLANT INTANGIBLES","SG",1744.63453,{"$f":"IF(OR(tblIPJune19[[#This Row],[Alloc]]=\"IDU\",tblIPJune19[[#This Row],[Alloc]]=\"OR\",tblIPJune19[[#This Row],[Alloc]]=\"UT\",tblIPJune19[[#This Row],[Alloc]]=\"WYU\",tblIPJune19[[#This Row],[Alloc]]=\"WYP\",tblIPJune19[[#This Row],[Alloc]]=\"CA\",tblIPJune19[[#This Row],[Alloc]]=\"WA\"),\"SITUS\",tblIPJune19[[#This Row],[Alloc]])","v":"SG"},{"$f":"INDEX(tblIPLookup[FUNC],MATCH(tblIPJune19[[#This Row],[Concat]],tblIPLookup[Concat],0))","v":"P"},{"$f":"IF(tblIPJune19[[#This Row],[Total ($000)]]=0,\"NO\",IF(ISNA(tblIPJune19[[#This Row],[FUNC]]),\"YES\",IF(_xlfn.ISFORMULA(tblIPJune19[[#This Row],[FUNC]]),\"NO\",\"YES\")))","v":"NO"}]
[{"$f":"CONCATENATE(tblIPJune19[[#This Row],[Primary Account]],tblIPJune19[[#This Row],[Primary Name]],tblIPJune19[[#This Row],[Secondary Acct]],tblIPJune19[[#This Row],[Secondary  Name]],tblIPJune19[[#This Row],[Alloc4FUNC]])","v":"1010000ELEC PLANT IN SERV3035322ACD–Call Center Automated Call DistributCN"},1010000,"ELEC PLANT IN SERV",3035322,"ACD–Call Center Automated Call Distribut","CN",4132.1965499999997,{"$f":"IF(OR(tblIPJune19[[#This Row],[Alloc]]=\"IDU\",tblIPJune19[[#This Row],[Alloc]]=\"OR\",tblIPJune19[[#This Row],[Alloc]]=\"UT\",tblIPJune19[[#This Row],[Alloc]]=\"WYU\",tblIPJune19[[#This Row],[Alloc]]=\"WYP\",tblIPJune19[[#This Row],[Alloc]]=\"CA\",tblIPJune19[[#This Row],[Alloc]]=\"WA\"),\"SITUS\",tblIPJune19[[#This Row],[Alloc]])","v":"CN"},{"$f":"INDEX(tblIPLookup[FUNC],MATCH(tblIPJune19[[#This Row],[Concat]],tblIPLookup[Concat],0))","v":"CUST"},{"$f":"IF(tblIPJune19[[#This Row],[Total ($000)]]=0,\"NO\",IF(ISNA(tblIPJune19[[#This Row],[FUNC]]),\"YES\",IF(_xlfn.ISFORMULA(tblIPJune19[[#This Row],[FUNC]]),\"NO\",\"YES\")))","v":"NO"}]
[{"$f":"CONCATENATE(tblIPJune19[[#This Row],[Primary Account]],tblIPJune19[[#This Row],[Primary Name]],tblIPJune19[[#This Row],[Secondary Acct]],tblIPJune19[[#This Row],[Secondary  Name]],tblIPJune19[[#This Row],[Alloc4FUNC]])","v":"1010000ELEC PLANT IN SERV3035330OATI-OASIS INTERFACESO"},1010000,"ELEC PLANT IN SERV",3035330,"OATI-OASIS INTERFACE","SO",1239.5300299999999,{"$f":"IF(OR(tblIPJune19[[#This Row],[Alloc]]=\"IDU\",tblIPJune19[[#This Row],[Alloc]]=\"OR\",tblIPJune19[[#This Row],[Alloc]]=\"UT\",tblIPJune19[[#This Row],[Alloc]]=\"WYU\",tblIPJune19[[#This Row],[Alloc]]=\"WYP\",tblIPJune19[[#This Row],[Alloc]]=\"CA\",tblIPJune19[[#This Row],[Alloc]]=\"WA\"),\"SITUS\",tblIPJune19[[#This Row],[Alloc]])","v":"SO"},{"$f":"INDEX(tblIPLookup[FUNC],MATCH(tblIPJune19[[#This Row],[Concat]],tblIPLookup[Concat],0))","v":"T"},{"$f":"IF(tblIPJune19[[#This Row],[Total ($000)]]=0,\"NO\",IF(ISNA(tblIPJune19[[#This Row],[FUNC]]),\"YES\",IF(_xlfn.ISFORMULA(tblIPJune19[[#This Row],[FUNC]]),\"NO\",\"YES\")))","v":"NO"}]
[null,null,null,null,null,null,{"$f":"SUBTOTAL(109,tblIPJune19[Total ($000)])","v":906424.34646999929}]

{"sheet":"IP Lookup","index":19,"n_rows":77,"n_cols":9,"rows_kept":77,"cut":false,"hidden":false,"merged":[]}
["Concat","Primary Account","Primary Name","Secondary Acct","Secondary  Name","Alloc","Column1","Alloc4FUNC","FUNC"]
[{"$f":"CONCATENATE(tblIPLookup[[#This Row],[Primary Account]],tblIPLookup[[#This Row],[Primary Name]],tblIPLookup[[#This Row],[Secondary Acct]],tblIPLookup[[#This Row],[Secondary  Name]],tblIPLookup[[#This Row],[Alloc4FUNC]])","v":"1010000ELEC PLANT IN SERV3035322ACD–Call Center Automated Call DistributCN"},1010000,"ELEC PLANT IN SERV",3035322,"ACD–Call Center Automated Call Distribut","CN",null,{"$f":"IF(OR(tblIPLookup[[#This Row],[Alloc]]=\"IDU\",tblIPLookup[[#This Row],[Alloc]]=\"OR\",tblIPLookup[[#This Row],[Alloc]]=\"UT\",tblIPLookup[[#This Row],[Alloc]]=\"WYU\",tblIPLookup[[#This Row],[Alloc]]=\"WYP\",tblIPLookup[[#This Row],[Alloc]]=\"CA\",tblIPLookup[[#This Row],[Alloc]]=\"WA\"),\"SITUS\",tblIPLookup[[#This Row],[Alloc]])","v":"CN"},"CUST"]
[{"$f":"CONCATENATE(tblIPLookup[[#This Row],[Primary Account]],tblIPLookup[[#This Row],[Primary Name]],tblIPLookup[[#This Row],[Secondary Acct]],tblIPLookup[[#This Row],[Secondary  Name]],tblIPLookup[[#This Row],[Alloc4FUNC]])","v":"1010000ELEC PLANT IN SERV3033250AMI Metering SoftwareCN"},1010000,"ELEC PLANT IN SERV",3033250,"AMI Metering Software","CN",null,{"$f":"IF(OR(tblIPLookup[[#This Row],[Alloc]]=\"IDU\",tblIPLookup[[#This Row],[Alloc]]=\"OR\",tblIPLookup[[#This Row],[Alloc]]=\"UT\",tblIPLookup[[#This Row],[Alloc]]=\"WYU\",tblIPLookup[[#This Row],[Alloc]]=\"WYP\",tblIPLookup[[#This Row],[Alloc]]=\"CA\",tblIPLookup[[#This Row],[Alloc]]=\"WA\"),\"SITUS\",tblIPLookup[[#This Row],[Alloc]])","v":"CN"},"CUST"]
[{"$f":"CONCATENATE(tblIPLookup[[#This Row],[Primary Account]],tblIPLookup[[#This Row],[Primary Name]],tblIPLookup[[#This Row],[Secondary Acct]],tblIPLookup[[#This Row],[Secondary  Name]],tblIPLookup[[#This Row],[Alloc4FUNC]])","v":"1010000ELEC PLANT IN SERV3031830CUSTOMER SERVICE SYSTEM (CSS)CN"},1010000,"ELEC PLANT IN SERV",3031830,"CUSTOMER SERVICE SYSTEM (CSS)","CN",null,{"$f":"IF(OR(tblIPLookup[[#This Row],[Alloc]]=\"IDU\",tblIPLookup[[#This Row],[Alloc]]=\"OR\",tblIPLookup[[#This Row],[Alloc]]=\"UT\",tblIPLookup[[#This Row],[Alloc]]=\"WYU\",tblIPLookup[[#This Row],[Alloc]]=\"WYP\",tblIPLookup[[#This Row],[Alloc]]=\"CA\",tblIPLookup[[#This Row],[Alloc]]=\"WA\"),\"SITUS\",tblIPLookup[[#This Row],[Alloc]])","v":"CN"},"CUST"]
[{"$f":"CONCATENATE(tblIPLookup[[#This Row],[Primary Account]],tblIPLookup[[#This Row],[Primary Name]],tblIPLookup[[#This Row],[Secondary Acct]],tblIPLookup[[#This Row],[Secondary  Name]],tblIPLookup[[#This Row],[Alloc4FUNC]])","v":"1010000ELEC PLANT IN SERV3033170GTX VERSION 7 SOFTWARECN"},1010000,"ELEC PLANT IN SERV",3033170,"GTX VERSION 7 SOFTWARE","CN",null,{"$f":"IF(OR(tblIPLookup[[#This Row],[Alloc]]=\"IDU\",tblIPLookup[[#This Row],[Alloc]]=\"OR\",tblIPLookup[[#This Row],[Alloc]]=\"UT\",tblIPLookup[[#This Row],[Alloc]]=\"WYU\",tblIPLookup[[#This Row],[Alloc]]=\"WYP\",tblIPLookup[[#This Row],[Alloc]]=\"CA\",tblIPLookup[[#This Row],[Alloc]]=\"WA\"),\"SITUS\",tblIPLookup[[#This Row],[Alloc]])","v":"CN"},"CUST"]
[{"$f":"CONCATENATE(tblIPLookup[[#This Row],[Primary Account]],tblIPLookup[[#This Row],[Primary Name]],tblIPLookup[[#This Row],[Secondary Acct]],tblIPLookup[[#This Row],[Secondary  Name]],tblIPLookup[[#This Row],[Alloc4FUNC]])","v":"1010000ELEC PLANT IN SERV3033240IEE - Itron Enterprise AdditionCN"},1010000,"ELEC PLANT IN SERV",3033240,"IEE - Itron Enterprise Addition","CN",null,{"$f":"IF(OR(tblIPLookup[[#This Row],[Alloc]]=\"IDU\",tblIPLookup[[#This Row],[Alloc]]=\"OR\",tblIPLookup[[#This Row],[Alloc]]=\"UT\",tblIPLookup[[#This Row],[Alloc]]=\"WYU\",tblIPLookup[[#This Row],[Alloc]]=\"WYP\",tblIPLookup[[#This Row],[Alloc]]=\"CA\",tblIPLookup[[#This Row],[Alloc]]=\"WA\"),\"SITUS\",tblIPLookup[[#This Row],[Alloc]])","v":"CN"},"CUST"]
[{"$f":"CONCATENATE(tblIPLookup[[#This Row],[Primary Account]],tblIPLookup[[#This Row],[Primary Name]],tblIPLookup[[#This Row],[Secondary Acct]],tblIPLookup[[#This Row],[Secondary  Name]],tblIPLookup[[#This Row],[Alloc4FUNC]])","v":"1010000ELEC PLANT IN SERV3033190ITRON METER READING SOFTWARECN"},1010000,"ELEC PLANT IN SERV",3033190,"ITRON METER READING SOFTWARE","CN",null,{"$f":"IF(OR(tblIPLookup[[#This Row],[Alloc]]=\"IDU\",tblIPLookup[[#This Row],[Alloc]]=\"OR\",tblIPLookup[[#This Row],[Alloc]]=\"UT\",tblIPLookup[[#This Row],[Alloc]]=\"WYU\",tblIPLookup[[#This Row],[Alloc]]=\"WYP\",tblIPLookup[[#This Row],[Alloc]]=\"CA\",tblIPLookup[[#This Row],[Alloc]]=\"WA\"),\"SITUS\",tblIPLookup[[#This Row],[Alloc]])","v":"CN"},"CUST"]
[{"$f":"CONCATENATE(tblIPLookup[[#This Row],[Primary Account]],tblIPLookup[[#This Row],[Primary Name]],tblIPLookup[[#This Row],[Secondary Acct]],tblIPLookup[[#This Row],[Secondary  Name]],tblIPLookup[[#This Row],[Alloc4FUNC]])","v":"1010000ELEC PLANT IN SERV3034900MISC - MISCELLANEOUSCN"},1010000,"ELEC PLANT IN SERV",3034900,"MISC - MISCELLANEOUS","CN",null,{"$f":"IF(OR(tblIPLookup[[#This Row],[Alloc]]=\"IDU\",tblIPLookup[[#This Row],[Alloc]]=\"OR\",tblIPLookup[[#This Row],[Alloc]]=\"UT\",tblIPLookup[[#This Row],[Alloc]]=\"WYU\",tblIPLookup[[#This Row],[Alloc]]=\"WYP\",tblIPLookup[[#This Row],[Alloc]]=\"CA\",tblIPLookup[[#This Row],[Alloc]]=\"WA\"),\"SITUS\",tblIPLookup[[#This Row],[Alloc]])","v":"CN"},"CUST"]
[{"$f":"CONCATENATE(tblIPLookup[[#This Row],[Primary Account]],tblIPLookup[[#This Row],[Primary Name]],tblIPLookup[[#This Row],[Secondary Acct]],tblIPLookup[[#This Row],[Secondary  Name]],tblIPLookup[[#This Row],[Alloc4FUNC]])","v":"1010000ELEC PLANT IN SERV3032480OUTAGE CALL HANDLING INTEGRATIONCN"},1010000,"ELEC PLANT IN SERV",3032480,"OUTAGE CALL HANDLING INTEGRATION","CN",null,{"$f":"IF(OR(tblIPLookup[[#This Row],[Alloc]]=\"IDU\",tblIPLookup[[#This Row],[Alloc]]=\"OR\",tblIPLookup[[#This Row],[Alloc]]=\"UT\",tblIPLookup[[#This Row],[Alloc]]=\"WYU\",tblIPLookup[[#This Row],[Alloc]]=\"WYP\",tblIPLookup[[#This Row],[Alloc]]=\"CA\",tblIPLookup[[#This Row],[Alloc]]=\"WA\"),\"SITUS\",tblIPLookup[[#This Row],[Alloc]])","v":"CN"},"CUST"]
[{"$f":"CONCATENATE(tblIPLookup[[#This Row],[Primary Account]],tblIPLookup[[#This Row],[Primary Name]],tblIPLookup[[#This Row],[Secondary Acct]],tblIPLookup[[#This Row],[Secondary  Name]],tblIPLookup[[#This Row],[Alloc4FUNC]])","v":"1010000ELEC PLANT IN SERV3033300SECID - CUST SECURE WEB LOGINCN"},1010000,"ELEC PLANT IN SERV",3033300,"SECID - CUST SECURE WEB LOGIN","CN",null,{"$f":"IF(OR(tblIPLookup[[#This Row],[Alloc]]=\"IDU\",tblIPLookup[[#This Row],[Alloc]]=\"OR\",tblIPLookup[[#This Row],[Alloc]]=\"UT\",tblIPLookup[[#This Row],[Alloc]]=\"WYU\",tblIPLookup[[#This Row],[Alloc]]=\"WYP\",tblIPLookup[[#This Row],[Alloc]]=\"CA\",tblIPLookup[[#This Row],[Alloc]]=\"WA\"),\"SITUS\",tblIPLookup[[#This Row],[Alloc]])","v":"CN"},"CUST"]
[{"$f":"CONCATENATE(tblIPLookup[[#This Row],[Primary Account]],tblIPLookup[[#This Row],[Primary Name]],tblIPLookup[[#This Row],[Secondary Acct]],tblIPLookup[[#This Row],[Secondary  Name]],tblIPLookup[[#This Row],[Alloc4FUNC]])","v":"1010000ELEC PLANT IN SERV3034900MISC - MISCELLANEOUSSE"},1010000,"ELEC PLANT IN SERV",3034900,"MISC - MISCELLANEOUS","SE",null,{"$f":"IF(OR(tblIPLookup[[#This Row],[Alloc]]=\"IDU\",tblIPLookup[[#This Row],[Alloc]]=\"OR\",tblIPLookup[[#This Row],[Alloc]]=\"UT\",tblIPLookup[[#This Row],[Alloc]]=\"WYU\",tblIPLookup[[#This Row],[Alloc]]=\"WYP\",tblIPLookup[[#This Row],[Alloc]]=\"CA\",tblIPLookup[[#This Row],[Alloc]]=\"WA\"),\"SITUS\",tblIPLookup[[#This Row],[Alloc]])","v":"SE"},"P"]
[{"$f":"CONCATENATE(tblIPLookup[[#This Row],[Primary Account]],tblIPLookup[[#This Row],[Primary Name]],tblIPLookup[[#This Row],[Secondary Acct]],tblIPLookup[[#This Row],[Secondary  Name]],tblIPLookup[[#This Row],[Alloc4FUNC]])","v":"1010000ELEC PLANT IN SERV3032780BEAR RIVER-SETTLEMENT AGREEMENTSG"},1010000,"ELEC PLANT IN SERV",3032780,"BEAR RIVER-SETTLEMENT AGREEMENT","SG",null,{"$f":"IF(OR(tblIPLookup[[#This Row],[Alloc]]=\"IDU\",tblIPLookup[[#This Row],[Alloc]]=\"OR\",tblIPLookup[[#This Row],[Alloc]]=\"UT\",tblIPLookup[[#This Row],[Alloc]]=\"WYU\",tblIPLookup[[#This Row],[Alloc]]=\"WYP\",tblIPLookup[[#This Row],[Alloc]]=\"CA\",tblIPLookup[[#This Row],[Alloc]]=\"WA\"),\"SITUS\",tblIPLookup[[#This Row],[Alloc]])","v":"SG"},"P"]
[{"$f":"CONCATENATE(tblIPLookup[[#This Row],[Primary Account]],tblIPLookup[[#This Row],[Primary Name]],tblIPLookup[[#This Row],[Secondary Acct]],tblIPLookup[[#This Row],[Secondary  Name]],tblIPLookup[[#This Row],[Alloc4FUNC]])","v":"1010000ELEC PLANT IN SERV3033320CAS - CONTROL AREA SCHEDULING (TRANSM)SG"},1010000,"ELEC PLANT IN SERV",3033320,"CAS - CONTROL AREA SCHEDULING (TRANSM)","SG",null,{"$f":"IF(OR(tblIPLookup[[#This Row],[Alloc]]=\"IDU\",tblIPLookup[[#This Row],[Alloc]]=\"OR\",tblIPLookup[[#This Row],[Alloc]]=\"UT\",tblIPLookup[[#This Row],[Alloc]]=\"WYU\",tblIPLookup[[#This Row],[Alloc]]=\"WYP\",tblIPLookup[[#This Row],[Alloc]]=\"CA\",tblIPLookup[[#This Row],[Alloc]]=\"WA\"),\"SITUS\",tblIPLookup[[#This Row],[Alloc]])","v":"SG"},"T"]
[{"$f":"CONCATENATE(tblIPLookup[[#This Row],[Primary Account]],tblIPLookup[[#This Row],[Primary Name]],tblIPLookup[[#This Row],[Secondary Acct]],tblIPLookup[[#This Row],[Secondary  Name]],tblIPLookup[[#This Row],[Alloc4FUNC]])","v":"1010000ELEC PLANT IN SERV3020000FRANCHISES AND CONSENTSSG"},1010000,"ELEC PLANT IN SERV",3020000,"FRANCHISES AND CONSENTS","SG",null,{"$f":"IF(OR(tblIPLookup[[#This Row],[Alloc]]=\"IDU\",tblIPLookup[[#This Row],[Alloc]]=\"OR\",tblIPLookup[[#This Row],[Alloc]]=\"UT\",tblIPLookup[[#This Row],[Alloc]]=\"WYU\",tblIPLookup[[#This Row],[Alloc]]=\"WYP\",tblIPLookup[[#This Row],[Alloc]]=\"CA\",tblIPLookup[[#This Row],[Alloc]]=\"WA\"),\"SITUS\",tblIPLookup[[#This Row],[Alloc]])","v":"SG"},"P"]
[{"$f":"CONCATENATE(tblIPLookup[[#This Row],[Primary Account]],tblIPLookup[[#This Row],[Primary Name]],tblIPLookup[[#This Row],[Secondary Acct]],tblIPLookup[[#This Row],[Secondary  Name]],tblIPLookup[[#This Row],[Alloc4FUNC]])","v":"1010000ELEC PLANT IN SERV3032740GADSBY INTANGIBLE ASSETSSG"},1010000,"ELEC PLANT IN SERV",3032740,"GADSBY INTANGIBLE ASSETS","SG",null,{"$f":"IF(OR(tblIPLookup[[#This Row],[Alloc]]=\"IDU\",tblIPLookup[[#This Row],[Alloc]]=\"OR\",tblIPLookup[[#This Row],[Alloc]]=\"UT\",tblIPLookup[[#This Row],[Alloc]]=\"WYU\",tblIPLookup[[#This Row],[Alloc]]=\"WYP\",tblIPLookup[[#This Row],[Alloc]]=\"CA\",tblIPLookup[[#This Row],[Alloc]]=\"WA\"),\"SITUS\",tblIPLookup[[#This Row],[Alloc]])","v":"SG"},"P"]
[{"$f":"CONCATENATE(tblIPLookup[[#This Row],[Primary Account]],tblIPLookup[[#This Row],[Primary Name]],tblIPLookup[[#This Row],[Secondary Acct]],tblIPLookup[[#This Row],[Secondary  Name]],tblIPLookup[[#This Row],[Alloc4FUNC]])","v":"1010000ELEC PLANT IN SERV3035320HYDRO PLANT INTANGIBLESSG"},1010000,"ELEC PLANT IN SERV",3035320,"HYDRO PLANT INTANGIBLES","SG",null,{"$f":"IF(OR(tblIPLookup[[#This Row],[Alloc]]=\"IDU\",tblIPLookup[[#This Row],[Alloc]]=\"OR\",tblIPLookup[[#This Row],[Alloc]]=\"UT\",tblIPLookup[[#This Row],[Alloc]]=\"WYU\",tblIPLookup[[#This Row],[Alloc]]=\"WYP\",tblIPLookup[[#This Row],[Alloc]]=\"CA\",tblIPLookup[[#This Row],[Alloc]]=\"WA\"),\"SITUS\",tblIPLookup[[#This Row],[Alloc]])","v":"SG"},"P"]
[{"$f":"CONCATENATE(tblIPLookup[[#This Row],[Primary Account]],tblIPLookup[[#This Row],[Primary Name]],tblIPLookup[[#This Row],[Secondary Acct]],tblIPLookup[[#This Row],[Secondary  Name]],tblIPLookup[[#This Row],[Alloc4FUNC]])","v":"1010000ELEC PLANT IN SERV3032900IDAHO TRANSMISSION CUSTOMER-OWNED ASSETSSG"},1010000,"ELEC PLANT IN SERV",3032900,"IDAHO TRANSMISSION CUSTOMER-OWNED ASSETS","SG",null,{"$f":"IF(OR(tblIPLookup[[#This Row],[Alloc]]=\"IDU\",tblIPLookup[[#This Row],[Alloc]]=\"OR\",tblIPLookup[[#This Row],[Alloc]]=\"UT\",tblIPLookup[[#This Row],[Alloc]]=\"WYU\",tblIPLookup[[#This Row],[Alloc]]=\"WYP\",tblIPLookup[[#This Row],[Alloc]]=\"CA\",tblIPLookup[[#This Row],[Alloc]]=\"WA\"),\"SITUS\",tblIPLookup[[#This Row],[Alloc]])","v":"SG"},"T"]
[{"$f":"CONCATENATE(tblIPLookup[[#This Row],[Primary Account]],tblIPLookup[[#This Row],[Primary Name]],tblIPLookup[[#This Row],[Secondary Acct]],tblIPLookup[[#This Row],[Secondary  Name]],tblIPLookup[[#This Row],[Alloc4FUNC]])","v":"1010000ELEC PLANT IN SERV3034900MISC - MISCELLANEOUSSG"},1010000,"ELEC PLANT IN SERV",3034900,"MISC - MISCELLANEOUS","SG",null,{"$f":"IF(OR(tblIPLookup[[#This Row],[Alloc]]=\"IDU\",tblIPLookup[[#This Row],[Alloc]]=\"OR\",tblIPLookup[[#This Row],[Alloc]]=\"UT\",tblIPLookup[[#This Row],[Alloc]]=\"WYU\",tblIPLookup[[#This Row],[Alloc]]=\"WYP\",tblIPLookup[[#This Row],[Alloc]]=\"CA\",tblIPLookup[[#This Row],[Alloc]]=\"WA\"),\"SITUS\",tblIPLookup[[#This Row],[Alloc]])","v":"SG"},"P"]
[{"$f":"CONCATENATE(tblIPLookup[[#This Row],[Primary Account]],tblIPLookup[[#This Row],[Primary Name]],tblIPLookup[[#This Row],[Secondary Acct]],tblIPLookup[[#This Row],[Secondary  Name]],tblIPLookup[[#This Row],[Alloc4FUNC]])","v":"1010000ELEC PLANT IN SERV3033380MISCELLANEOUS SMALL SOFTWARE PACKAGESSG"},1010000,"ELEC PLANT IN SERV",3033380,"MISCELLANEOUS SMALL SOFTWARE PACKAGES","SG",null,{"$f":"IF(OR(tblIPLookup[[#This Row],[Alloc]]=\"IDU\",tblIPLookup[[#This Row],[Alloc]]=\"OR\",tblIPLookup[[#This Row],[Alloc]]=\"UT\",tblIPLookup[[#This Row],[Alloc]]=\"WYU\",tblIPLookup[[#This Row],[Alloc]]=\"WYP\",tblIPLookup[[#This Row],[Alloc]]=\"CA\",tblIPLookup[[#This Row],[Alloc]]=\"WA\"),\"SITUS\",tblIPLookup[[#This Row],[Alloc]])","v":"SG"},"P"]
[{"$f":"CONCATENATE(tblIPLookup[[#This Row],[Primary Account]],tblIPLookup[[#This Row],[Primary Name]],tblIPLookup[[#This Row],[Secondary Acct]],tblIPLookup[[#This Row],[Secondary  Name]],tblIPLookup[[#This Row],[Alloc4FUNC]])","v":"1010000ELEC PLANT IN SERV3032770NORTH UMPQUA - SETTLEMENT AGREEMENTSG"},1010000,"ELEC PLANT IN SERV",3032770,"NORTH UMPQUA - SETTLEMENT AGREEMENT","SG",null,{"$f":"IF(OR(tblIPLookup[[#This Row],[Alloc]]=\"IDU\",tblIPLookup[[#This Row],[Alloc]]=\"OR\",tblIPLookup[[#This Row],[Alloc]]=\"UT\",tblIPLookup[[#This Row],[Alloc]]=\"WYU\",tblIPLookup[[#This Row],[Alloc]]=\"WYP\",tblIPLookup[[#This Row],[Alloc]]=\"CA\",tblIPLookup[[#This Row],[Alloc]]=\"WA\"),\"SITUS\",tblIPLookup[[#This Row],[Alloc]])","v":"SG"},"P"]
[{"$f":"CONCATENATE(tblIPLookup[[#This Row],[Primary Account]],tblIPLookup[[#This Row],[Primary Name]],tblIPLookup[[#This Row],[Secondary Acct]],tblIPLookup[[#This Row],[Secondary  Name]],tblIPLookup[[#This Row],[Alloc4FUNC]])","v":"1010000ELEC PLANT IN SERV3033120RANGER EMS/SCADA SYSTEMSG"},1010000,"ELEC PLANT IN SERV",3033120,"RANGER EMS/SCADA SYSTEM","SG",null,{"$f":"IF(OR(tblIPLookup[[#This Row],[Alloc]]=\"IDU\",tblIPLookup[[#This Row],[Alloc]]=\"OR\",tblIPLookup[[#This Row],[Alloc]]=\"UT\",tblIPLookup[[#This Row],[Alloc]]=\"WYU\",tblIPLookup[[#This Row],[Alloc]]=\"WYP\",tblIPLookup[[#This Row],[Alloc]]=\"CA\",tblIPLookup[[#This Row],[Alloc]]=\"WA\"),\"SITUS\",tblIPLookup[[#This Row],[Alloc]])","v":"SG"},"TD"]
[{"$f":"CONCATENATE(tblIPLookup[[#This Row],[Primary Account]],tblIPLookup[[#This Row],[Primary Name]],tblIPLookup[[#This Row],[Secondary Acct]],tblIPLookup[[#This Row],[Secondary  Name]],tblIPLookup[[#This Row],[Alloc4FUNC]])","v":"1010000ELEC PLANT IN SERV3032710ROUGE RIVER HYDRO INTANGIBLESSG"},1010000,"ELEC PLANT IN SERV",3032710,"ROUGE RIVER HYDRO INTANGIBLES","SG",null,{"$f":"IF(OR(tblIPLookup[[#This Row],[Alloc]]=\"IDU\",tblIPLookup[[#This Row],[Alloc]]=\"OR\",tblIPLookup[[#This Row],[Alloc]]=\"UT\",tblIPLookup[[#This Row],[Alloc]]=\"WYU\",tblIPLookup[[#This Row],[Alloc]]=\"WYP\",tblIPLookup[[#This Row],[Alloc]]=\"CA\",tblIPLookup[[#This Row],[Alloc]]=\"WA\"),\"SITUS\",tblIPLookup[[#This Row],[Alloc]])","v":"SG"},"P"]
[{"$f":"CONCATENATE(tblIPLookup[[#This Row],[Primary Account]],tblIPLookup[[#This Row],[Primary Name]],tblIPLookup[[#This Row],[Secondary Acct]],tblIPLookup[[#This Row],[Secondary  Name]],tblIPLookup[[#This Row],[Alloc4FUNC]])","v":"1010000ELEC PLANT IN SERV3033090STEAM PLANT INTANGIBLE ASSETSSG"},1010000,"ELEC PLANT IN SERV",3033090,"STEAM PLANT INTANGIBLE ASSETS","SG",null,{"$f":"IF(OR(tblIPLookup[[#This Row],[Alloc]]=\"IDU\",tblIPLookup[[#This Row],[Alloc]]=\"OR\",tblIPLookup[[#This Row],[Alloc]]=\"UT\",tblIPLookup[[#This Row],[Alloc]]=\"WYU\",tblIPLookup[[#This Row],[Alloc]]=\"WYP\",tblIPLookup[[#This Row],[Alloc]]=\"CA\",tblIPLookup[[#This Row],[Alloc]]=\"WA\"),\"SITUS\",tblIPLookup[[#This Row],[Alloc]])","v":"SG"},"P"]
[{"$f":"CONCATENATE(tblIPLookup[[#This Row],[Primary Account]],tblIPLookup[[#This Row],[Primary Name]],tblIPLookup[[#This Row],[Secondary Acct]],tblIPLookup[[#This Row],[Secondary  Name]],tblIPLookup[[#This Row],[Alloc4FUNC]])","v":"1010000ELEC PLANT IN SERV3032760SWIFT 2 IMPROVEMENTSSG"},1010000,"ELEC PLANT IN SERV",3032760,"SWIFT 2 IMPROVEMENTS","SG",null,{"$f":"IF(OR(tblIPLookup[[#This Row],[Alloc]]=\"IDU\",tblIPLookup[[#This Row],[Alloc]]=\"OR\",tblIPLookup[[#This Row],[Alloc]]=\"UT\",tblIPLookup[[#This Row],[Alloc]]=\"WYU\",tblIPLookup[[#This Row],[Alloc]]=\"WYP\",tblIPLookup[[#This Row],[Alloc]]=\"CA\",tblIPLookup[[#This Row],[Alloc]]=\"WA\"),\"SITUS\",tblIPLookup[[#This Row],[Alloc]])","v":"SG"},"P"]
[{"$f":"CONCATENATE(tblIPLookup[[#This Row],[Primary Account]],tblIPLookup[[#This Row],[Primary Name]],tblIPLookup[[#This Row],[Secondary Acct]],tblIPLookup[[#This Row],[Secondary  Name]],tblIPLookup[[#This Row],[Alloc4FUNC]])","v":"1010000ELEC PLANT IN SERV3031040TRANSMISSION INTANGIBLE ASSETSSG"},1010000,"ELEC PLANT IN SERV",3031040,"TRANSMISSION INTANGIBLE ASSETS","SG",null,{"$f":"IF(OR(tblIPLookup[[#This Row],[Alloc]]=\"IDU\",tblIPLookup[[#This Row],[Alloc]]=\"OR\",tblIPLookup[[#This Row],[Alloc]]=\"UT\",tblIPLookup[[#This Row],[Alloc]]=\"WYU\",tblIPLookup[[#This Row],[Alloc]]=\"WYP\",tblIPLookup[[#This Row],[Alloc]]=\"CA\",tblIPLookup[[#This Row],[Alloc]]=\"WA\"),\"SITUS\",tblIPLookup[[#This Row],[Alloc]])","v":"SG"},"T"]
[{"$f":"CONCATENATE(tblIPLookup[[#This Row],[Primary Account]],tblIPLookup[[#This Row],[Primary Name]],tblIPLookup[[#This Row],[Secondary Acct]],tblIPLookup[[#This Row],[Secondary  Name]],tblIPLookup[[#This Row],[Alloc4FUNC]])","v":"1010000ELEC PLANT IN SERV3032680TRANSMISSION WHOLESALE BILLING SYSTEMSG"},1010000,"ELEC PLANT IN SERV",3032680,"TRANSMISSION WHOLESALE BILLING SYSTEM","SG",null,{"$f":"IF(OR(tblIPLookup[[#This Row],[Alloc]]=\"IDU\",tblIPLookup[[#This Row],[Alloc]]=\"OR\",tblIPLookup[[#This Row],[Alloc]]=\"UT\",tblIPLookup[[#This Row],[Alloc]]=\"WYU\",tblIPLookup[[#This Row],[Alloc]]=\"WYP\",tblIPLookup[[#This Row],[Alloc]]=\"CA\",tblIPLookup[[#This Row],[Alloc]]=\"WA\"),\"SITUS\",tblIPLookup[[#This Row],[Alloc]])","v":"SG"},"T"]
[{"$f":"CONCATENATE(tblIPLookup[[#This Row],[Primary Account]],tblIPLookup[[#This Row],[Primary Name]],tblIPLookup[[#This Row],[Secondary Acct]],tblIPLookup[[#This Row],[Secondary  Name]],tblIPLookup[[#This Row],[Alloc4FUNC]])","v":"1010000ELEC PLANT IN SERV3020000FRANCHISES AND CONSENTSSG-P"},1010000,"ELEC PLANT IN SERV",3020000,"FRANCHISES AND CONSENTS","SG-P",null,{"$f":"IF(OR(tblIPLookup[[#This Row],[Alloc]]=\"IDU\",tblIPLookup[[#This Row],[Alloc]]=\"OR\",tblIPLookup[[#This Row],[Alloc]]=\"UT\",tblIPLookup[[#This Row],[Alloc]]=\"WYU\",tblIPLookup[[#This Row],[Alloc]]=\"WYP\",tblIPLookup[[#This Row],[Alloc]]=\"CA\",tblIPLookup[[#This Row],[Alloc]]=\"WA\"),\"SITUS\",tblIPLookup[[#This Row],[Alloc]])","v":"SG-P"},"P"]
[{"$f":"CONCATENATE(tblIPLookup[[#This Row],[Primary Account]],tblIPLookup[[#This Row],[Primary Name]],tblIPLookup[[#This Row],[Secondary Acct]],tblIPLookup[[#This Row],[Secondary  Name]],tblIPLookup[[#This Row],[Alloc4FUNC]])","v":"1010000ELEC PLANT IN SERV3020000FRANCHISES AND CONSENTSSG-U"},1010000,"ELEC PLANT IN SERV",3020000,"FRANCHISES AND CONSENTS","SG-U",null,{"$f":"IF(OR(tblIPLookup[[#This Row],[Alloc]]=\"IDU\",tblIPLookup[[#This Row],[Alloc]]=\"OR\",tblIPLookup[[#This Row],[Alloc]]=\"UT\",tblIPLookup[[#This Row],[Alloc]]=\"WYU\",tblIPLookup[[#This Row],[Alloc]]=\"WYP\",tblIPLookup[[#This Row],[Alloc]]=\"CA\",tblIPLookup[[#This Row],[Alloc]]=\"WA\"),\"SITUS\",tblIPLookup[[#This Row],[Alloc]])","v":"SG-U"},"P"]
[{"$f":"CONCATENATE(tblIPLookup[[#This Row],[Primary Account]],tblIPLookup[[#This Row],[Primary Name]],tblIPLookup[[#This Row],[Secondary Acct]],tblIPLookup[[#This Row],[Secondary  Name]],tblIPLookup[[#This Row],[Alloc4FUNC]])","v":"1010000ELEC PLANT IN SERV3033350CA VHF (VPC) SPECTRUMSITUS"},1010000,"ELEC PLANT IN SERV",3033350,"CA VHF (VPC) SPECTRUM","SITUS",null,{"$f":"IF(OR(tblIPLookup[[#This Row],[Alloc]]=\"IDU\",tblIPLookup[[#This Row],[Alloc]]=\"OR\",tblIPLookup[[#This Row],[Alloc]]=\"UT\",tblIPLookup[[#This Row],[Alloc]]=\"WYU\",tblIPLookup[[#This Row],[Alloc]]=\"WYP\",tblIPLookup[[#This Row],[Alloc]]=\"CA\",tblIPLookup[[#This Row],[Alloc]]=\"WA\"),\"SITUS\",tblIPLookup[[#This Row],[Alloc]])","v":"SITUS"},"TD"]
[{"$f":"CONCATENATE(tblIPLookup[[#This Row],[Primary Account]],tblIPLookup[[#This Row],[Primary Name]],tblIPLookup[[#This Row],[Secondary Acct]],tblIPLookup[[#This Row],[Secondary  Name]],tblIPLookup[[#This Row],[Alloc4FUNC]])","v":"1010000ELEC PLANT IN SERV3033370DISTRIBUTION INTANGIBLESSITUS"},1010000,"ELEC PLANT IN SERV",3033370,"DISTRIBUTION INTANGIBLES","SITUS",null,{"$f":"IF(OR(tblIPLookup[[#This Row],[Alloc]]=\"IDU\",tblIPLookup[[#This Row],[Alloc]]=\"OR\",tblIPLookup[[#This Row],[Alloc]]=\"UT\",tblIPLookup[[#This Row],[Alloc]]=\"WYU\",tblIPLookup[[#This Row],[Alloc]]=\"WYP\",tblIPLookup[[#This Row],[Alloc]]=\"CA\",tblIPLookup[[#This Row],[Alloc]]=\"WA\"),\"SITUS\",tblIPLookup[[#This Row],[Alloc]])","v":"SITUS"},"DPW"]
[{"$f":"CONCATENATE(tblIPLookup[[#This Row],[Primary Account]],tblIPLookup[[#This Row],[Primary Name]],tblIPLookup[[#This Row],[Secondary Acct]],tblIPLookup[[#This Row],[Secondary  Name]],tblIPLookup[[#This Row],[Alloc4FUNC]])","v":"1010000ELEC PLANT IN SERV3020000FRANCHISES AND CONSENTSSITUS"},1010000,"ELEC PLANT IN SERV",3020000,"FRANCHISES AND CONSENTS","SITUS",null,{"$f":"IF(OR(tblIPLookup[[#This Row],[Alloc]]=\"IDU\",tblIPLookup[[#This Row],[Alloc]]=\"OR\",tblIPLookup[[#This Row],[Alloc]]=\"UT\",tblIPLookup[[#This Row],[Alloc]]=\"WYU\",tblIPLookup[[#This Row],[Alloc]]=\"WYP\",tblIPLookup[[#This Row],[Alloc]]=\"CA\",tblIPLookup[[#This Row],[Alloc]]=\"WA\"),\"SITUS\",tblIPLookup[[#This Row],[Alloc]])","v":"SITUS"},"TD"]
[{"$f":"CONCATENATE(tblIPLookup[[#This Row],[Primary Account]],tblIPLookup[[#This Row],[Primary Name]],tblIPLookup[[#This Row],[Secondary Acct]],tblIPLookup[[#This Row],[Secondary  Name]],tblIPLookup[[#This Row],[Alloc4FUNC]])","v":"1010000XELEC PLANT IN SERV3020000FRANCHISES AND CONSENTSSITUS"},"1010000X","ELEC PLANT IN SERV",3020000,"FRANCHISES AND CONSENTS","SITUS",null,{"$f":"IF(OR(tblIPLookup[[#This Row],[Alloc]]=\"IDU\",tblIPLookup[[#This Row],[Alloc]]=\"OR\",tblIPLookup[[#This Row],[Alloc]]=\"UT\",tblIPLookup[[#This Row],[Alloc]]=\"WYU\",tblIPLookup[[#This Row],[Alloc]]=\"WYP\",tblIPLookup[[#This Row],[Alloc]]=\"CA\",tblIPLookup[[#This Row],[Alloc]]=\"WA\"),\"SITUS\",tblIPLookup[[#This Row],[Alloc]])","v":"SITUS"},"P"]
[{"$f":"CONCATENATE(tblIPLookup[[#This Row],[Primary Account]],tblIPLookup[[#This Row],[Primary Name]],tblIPLookup[[#This Row],[Secondary Acct]],tblIPLookup[[#This Row],[Secondary  Name]],tblIPLookup[[#This Row],[Alloc4FUNC]])","v":"1010000ELEC PLANT IN SERV3032920IDAHO VHF (VPC) SPECTRUMSITUS"},1010000,"ELEC PLANT IN SERV",3032920,"IDAHO VHF (VPC) SPECTRUM","SITUS",null,{"$f":"IF(OR(tblIPLookup[[#This Row],[Alloc]]=\"IDU\",tblIPLookup[[#This Row],[Alloc]]=\"OR\",tblIPLookup[[#This Row],[Alloc]]=\"UT\",tblIPLookup[[#This Row],[Alloc]]=\"WYU\",tblIPLookup[[#This Row],[Alloc]]=\"WYP\",tblIPLookup[[#This Row],[Alloc]]=\"CA\",tblIPLookup[[#This Row],[Alloc]]=\"WA\"),\"SITUS\",tblIPLookup[[#This Row],[Alloc]])","v":"SITUS"},"TD"]
[{"$f":"CONCATENATE(tblIPLookup[[#This Row],[Primary Account]],tblIPLookup[[#This Row],[Primary Name]],tblIPLookup[[#This Row],[Secondary Acct]],tblIPLookup[[#This Row],[Secondary  Name]],tblIPLookup[[#This Row],[Alloc4FUNC]])","v":"1010000ELEC PLANT IN SERV3034900MISC - MISCELLANEOUSSITUS"},1010000,"ELEC PLANT IN SERV",3034900,"MISC - MISCELLANEOUS","SITUS",null,{"$f":"IF(OR(tblIPLookup[[#This Row],[Alloc]]=\"IDU\",tblIPLookup[[#This Row],[Alloc]]=\"OR\",tblIPLookup[[#This Row],[Alloc]]=\"UT\",tblIPLookup[[#This Row],[Alloc]]=\"WYU\",tblIPLookup[[#This Row],[Alloc]]=\"WYP\",tblIPLookup[[#This Row],[Alloc]]=\"CA\",tblIPLookup[[#This Row],[Alloc]]=\"WA\"),\"SITUS\",tblIPLookup[[#This Row],[Alloc]])","v":"SITUS"},"TD"]
[{"$f":"CONCATENATE(tblIPLookup[[#This Row],[Primary Account]],tblIPLookup[[#This Row],[Primary Name]],tblIPLookup[[#This Row],[Secondary Acct]],tblIPLookup[[#This Row],[Secondary  Name]],tblIPLookup[[#This Row],[Alloc4FUNC]])","v":"1010000ELEC PLANT IN SERV3034900MISC - MISCELLANEOUSSITUS"},1010000,"ELEC PLANT IN SERV",3034900,"MISC - MISCELLANEOUS","SITUS",null,{"$f":"IF(OR(tblIPLookup[[#This Row],[Alloc]]=\"IDU\",tblIPLookup[[#This Row],[Alloc]]=\"OR\",tblIPLookup[[#This Row],[Alloc]]=\"UT\",tblIPLookup[[#This Row],[Alloc]]=\"WYU\",tblIPLookup[[#This Row],[Alloc]]=\"WYP\",tblIPLookup[[#This Row],[Alloc]]=\"CA\",tblIPLookup[[#This Row],[Alloc]]=\"WA\"),\"SITUS\",tblIPLookup[[#This Row],[Alloc]])","v":"SITUS"},"TD"]
[{"$f":"CONCATENATE(tblIPLookup[[#This Row],[Primary Account]],tblIPLookup[[#This Row],[Primary Name]],tblIPLookup[[#This Row],[Secondary Acct]],tblIPLookup[[#This Row],[Secondary  Name]],tblIPLookup[[#This Row],[Alloc4FUNC]])","v":"1010000ELEC PLANT IN SERV3034900MISC - MISCELLANEOUSSITUS"},1010000,"ELEC PLANT IN SERV",3034900,"MISC - MISCELLANEOUS","SITUS",null,{"$f":"IF(OR(tblIPLookup[[#This Row],[Alloc]]=\"IDU\",tblIPLookup[[#This Row],[Alloc]]=\"OR\",tblIPLookup[[#This Row],[Alloc]]=\"UT\",tblIPLookup[[#This Row],[Alloc]]=\"WYU\",tblIPLookup[[#This Row],[Alloc]]=\"WYP\",tblIPLookup[[#This Row],[Alloc]]=\"CA\",tblIPLookup[[#This Row],[Alloc]]=\"WA\"),\"SITUS\",tblIPLookup[[#This Row],[Alloc]])","v":"SITUS"},"TD"]
[{"$f":"CONCATENATE(tblIPLookup[[#This Row],[Primary Account]],tblIPLookup[[#This Row],[Primary Name]],tblIPLookup[[#This Row],[Secondary Acct]],tblIPLookup[[#This Row],[Secondary  Name]],tblIPLookup[[#This Row],[Alloc4FUNC]])","v":"1010000ELEC PLANT IN SERV3034900MISC - MISCELLANEOUSSITUS"},1010000,"ELEC PLANT IN SERV",3034900,"MISC - MISCELLANEOUS","SITUS",null,{"$f":"IF(OR(tblIPLookup[[#This Row],[Alloc]]=\"IDU\",tblIPLookup[[#This Row],[Alloc]]=\"OR\",tblIPLookup[[#This Row],[Alloc]]=\"UT\",tblIPLookup[[#This Row],[Alloc]]=\"WYU\",tblIPLookup[[#This Row],[Alloc]]=\"WYP\",tblIPLookup[[#This Row],[Alloc]]=\"CA\",tblIPLookup[[#This Row],[Alloc]]=\"WA\"),\"SITUS\",tblIPLookup[[#This Row],[Alloc]])","v":"SITUS"},"TD"]
[{"$f":"CONCATENATE(tblIPLookup[[#This Row],[Primary Account]],tblIPLookup[[#This Row],[Primary Name]],tblIPLookup[[#This Row],[Secondary Acct]],tblIPLookup[[#This Row],[Secondary  Name]],tblIPLookup[[#This Row],[Alloc4FUNC]])","v":"1010000ELEC PLANT IN SERV3033330OR VHF (VPC) SPECTRUMSITUS"},1010000,"ELEC PLANT IN SERV",3033330,"OR VHF (VPC) SPECTRUM","SITUS",null,{"$f":"IF(OR(tblIPLookup[[#This Row],[Alloc]]=\"IDU\",tblIPLookup[[#This Row],[Alloc]]=\"OR\",tblIPLookup[[#This Row],[Alloc]]=\"UT\",tblIPLookup[[#This Row],[Alloc]]=\"WYU\",tblIPLookup[[#This Row],[Alloc]]=\"WYP\",tblIPLookup[[#This Row],[Alloc]]=\"CA\",tblIPLookup[[#This Row],[Alloc]]=\"WA\"),\"SITUS\",tblIPLookup[[#This Row],[Alloc]])","v":"SITUS"},"TD"]
[{"$f":"CONCATENATE(tblIPLookup[[#This Row],[Primary Account]],tblIPLookup[[#This Row],[Primary Name]],tblIPLookup[[#This Row],[Secondary Acct]],tblIPLookup[[#This Row],[Secondary  Name]],tblIPLookup[[#This Row],[Alloc4FUNC]])","v":"1010000ELEC PLANT IN SERV3033120RANGER EMS/SCADA SYSTEMSITUS"},1010000,"ELEC PLANT IN SERV",3033120,"RANGER EMS/SCADA SYSTEM","SITUS",null,{"$f":"IF(OR(tblIPLookup[[#This Row],[Alloc]]=\"IDU\",tblIPLookup[[#This Row],[Alloc]]=\"OR\",tblIPLookup[[#This Row],[Alloc]]=\"UT\",tblIPLookup[[#This Row],[Alloc]]=\"WYU\",tblIPLookup[[#This Row],[Alloc]]=\"WYP\",tblIPLookup[[#This Row],[Alloc]]=\"CA\",tblIPLookup[[#This Row],[Alloc]]=\"WA\"),\"SITUS\",tblIPLookup[[#This Row],[Alloc]])","v":"SITUS"},"TD"]
[{"$f":"CONCATENATE(tblIPLookup[[#This Row],[Primary Account]],tblIPLookup[[#This Row],[Primary Name]],tblIPLookup[[#This Row],[Secondary Acct]],tblIPLookup[[#This Row],[Secondary  Name]],tblIPLookup[[#This Row],[Alloc4FUNC]])","v":"1010000ELEC PLANT IN SERV3033090STEAM PLANT INTANGIBLE ASSETSSITUS"},1010000,"ELEC PLANT IN SERV",3033090,"STEAM PLANT INTANGIBLE ASSETS","SITUS",null,{"$f":"IF(OR(tblIPLookup[[#This Row],[Alloc]]=\"IDU\",tblIPLookup[[#This Row],[Alloc]]=\"OR\",tblIPLookup[[#This Row],[Alloc]]=\"UT\",tblIPLookup[[#This Row],[Alloc]]=\"WYU\",tblIPLookup[[#This Row],[Alloc]]=\"WYP\",tblIPLookup[[#This Row],[Alloc]]=\"CA\",tblIPLookup[[#This Row],[Alloc]]=\"WA\"),\"SITUS\",tblIPLookup[[#This Row],[Alloc]])","v":"SITUS"},"P"]
[{"$f":"CONCATENATE(tblIPLookup[[#This Row],[Primary Account]],tblIPLookup[[#This Row],[Primary Name]],tblIPLookup[[#This Row],[Secondary Acct]],tblIPLookup[[#This Row],[Secondary  Name]],tblIPLookup[[#This Row],[Alloc4FUNC]])","v":"1010000ELEC PLANT IN SERV3031040TRANSMISSION INTANGIBLE ASSETSSITUS"},1010000,"ELEC PLANT IN SERV",3031040,"TRANSMISSION INTANGIBLE ASSETS","SITUS",null,{"$f":"IF(OR(tblIPLookup[[#This Row],[Alloc]]=\"IDU\",tblIPLookup[[#This Row],[Alloc]]=\"OR\",tblIPLookup[[#This Row],[Alloc]]=\"UT\",tblIPLookup[[#This Row],[Alloc]]=\"WYU\",tblIPLookup[[#This Row],[Alloc]]=\"WYP\",tblIPLookup[[#This Row],[Alloc]]=\"CA\",tblIPLookup[[#This Row],[Alloc]]=\"WA\"),\"SITUS\",tblIPLookup[[#This Row],[Alloc]])","v":"SITUS"},"T"]
[{"$f":"CONCATENATE(tblIPLookup[[#This Row],[Primary Account]],tblIPLookup[[#This Row],[Primary Name]],tblIPLookup[[#This Row],[Secondary Acct]],tblIPLookup[[#This Row],[Secondary  Name]],tblIPLookup[[#This Row],[Alloc4FUNC]])","v":"1010000ELEC PLANT IN SERV3032930UTAH VHF (VPC) SPECTRUMSITUS"},1010000,"ELEC PLANT IN SERV",3032930,"UTAH VHF (VPC) SPECTRUM","SITUS",null,{"$f":"IF(OR(tblIPLookup[[#This Row],[Alloc]]=\"IDU\",tblIPLookup[[#This Row],[Alloc]]=\"OR\",tblIPLookup[[#This Row],[Alloc]]=\"UT\",tblIPLookup[[#This Row],[Alloc]]=\"WYU\",tblIPLookup[[#This Row],[Alloc]]=\"WYP\",tblIPLookup[[#This Row],[Alloc]]=\"CA\",tblIPLookup[[#This Row],[Alloc]]=\"WA\"),\"SITUS\",tblIPLookup[[#This Row],[Alloc]])","v":"SITUS"},"TD"]
[{"$f":"CONCATENATE(tblIPLookup[[#This Row],[Primary Account]],tblIPLookup[[#This Row],[Primary Name]],tblIPLookup[[#This Row],[Secondary Acct]],tblIPLookup[[#This Row],[Secondary  Name]],tblIPLookup[[#This Row],[Alloc4FUNC]])","v":"1010000ELEC PLANT IN SERV3033340WA VHF (VPC) SPECTRUMSITUS"},1010000,"ELEC PLANT IN SERV",3033340,"WA VHF (VPC) SPECTRUM","SITUS",null,{"$f":"IF(OR(tblIPLookup[[#This Row],[Alloc]]=\"IDU\",tblIPLookup[[#This Row],[Alloc]]=\"OR\",tblIPLookup[[#This Row],[Alloc]]=\"UT\",tblIPLookup[[#This Row],[Alloc]]=\"WYU\",tblIPLookup[[#This Row],[Alloc]]=\"WYP\",tblIPLookup[[#This Row],[Alloc]]=\"CA\",tblIPLookup[[#This Row],[Alloc]]=\"WA\"),\"SITUS\",tblIPLookup[[#This Row],[Alloc]])","v":"SITUS"},"TD"]
[{"$f":"CONCATENATE(tblIPLookup[[#This Row],[Primary Account]],tblIPLookup[[#This Row],[Primary Name]],tblIPLookup[[#This Row],[Secondary Acct]],tblIPLookup[[#This Row],[Secondary  Name]],tblIPLookup[[#This Row],[Alloc4FUNC]])","v":"1010000ELEC PLANT IN SERV3032910WYOMING VHF (VPC) SPECTRUMSITUS"},1010000,"ELEC PLANT IN SERV",3032910,"WYOMING VHF (VPC) SPECTRUM","SITUS",null,{"$f":"IF(OR(tblIPLookup[[#This Row],[Alloc]]=\"IDU\",tblIPLookup[[#This Row],[Alloc]]=\"OR\",tblIPLookup[[#This Row],[Alloc]]=\"UT\",tblIPLookup[[#This Row],[Alloc]]=\"WYU\",tblIPLookup[[#This Row],[Alloc]]=\"WYP\",tblIPLookup[[#This Row],[Alloc]]=\"CA\",tblIPLookup[[#This Row],[Alloc]]=\"WA\"),\"SITUS\",tblIPLookup[[#This Row],[Alloc]])","v":"SITUS"},"TD"]
[{"$f":"CONCATENATE(tblIPLookup[[#This Row],[Primary Account]],tblIPLookup[[#This Row],[Primary Name]],tblIPLookup[[#This Row],[Secondary Acct]],tblIPLookup[[#This Row],[Secondary  Name]],tblIPLookup[[#This Row],[Alloc4FUNC]])","v":"1010000ELEC PLANT IN SERV30323602002 GRID NET POWER COST MODELINGSO"},1010000,"ELEC PLANT IN SERV",3032360,"2002 GRID NET POWER COST MODELING","SO",null,{"$f":"IF(OR(tblIPLookup[[#This Row],[Alloc]]=\"IDU\",tblIPLookup[[#This Row],[Alloc]]=\"OR\",tblIPLookup[[#This Row],[Alloc]]=\"UT\",tblIPLookup[[#This Row],[Alloc]]=\"WYU\",tblIPLookup[[#This Row],[Alloc]]=\"WYP\",tblIPLookup[[#This Row],[Alloc]]=\"CA\",tblIPLookup[[#This Row],[Alloc]]=\"WA\"),\"SITUS\",tblIPLookup[[#This Row],[Alloc]])","v":"SO"},"PTD"]
[{"$f":"CONCATENATE(tblIPLookup[[#This Row],[Primary Account]],tblIPLookup[[#This Row],[Primary Name]],tblIPLookup[[#This Row],[Secondary Acct]],tblIPLookup[[#This Row],[Secondary  Name]],tblIPLookup[[#This Row],[Alloc4FUNC]])","v":"1010000ELEC PLANT IN SERV3033210ArcFM SoftwareSO"},1010000,"ELEC PLANT IN SERV",3033210,"ArcFM Software","SO",null,{"$f":"IF(OR(tblIPLookup[[#This Row],[Alloc]]=\"IDU\",tblIPLookup[[#This Row],[Alloc]]=\"OR\",tblIPLookup[[#This Row],[Alloc]]=\"UT\",tblIPLookup[[#This Row],[Alloc]]=\"WYU\",tblIPLookup[[#This Row],[Alloc]]=\"WYP\",tblIPLookup[[#This Row],[Alloc]]=\"CA\",tblIPLookup[[#This Row],[Alloc]]=\"WA\"),\"SITUS\",tblIPLookup[[#This Row],[Alloc]])","v":"SO"},"DPW"]
[{"$f":"CONCATENATE(tblIPLookup[[#This Row],[Primary Account]],tblIPLookup[[#This Row],[Primary Name]],tblIPLookup[[#This Row],[Secondary Acct]],tblIPLookup[[#This Row],[Secondary  Name]],tblIPLookup[[#This Row],[Alloc4FUNC]])","v":"1010000ELEC PLANT IN SERV3031230AUTOMATE POLE CARD SYSTEMSO"},1010000,"ELEC PLANT IN SERV",3031230,"AUTOMATE POLE CARD SYSTEM","SO",null,{"$f":"IF(OR(tblIPLookup[[#This Row],[Alloc]]=\"IDU\",tblIPLookup[[#This Row],[Alloc]]=\"OR\",tblIPLookup[[#This Row],[Alloc]]=\"UT\",tblIPLookup[[#This Row],[Alloc]]=\"WYU\",tblIPLookup[[#This Row],[Alloc]]=\"WYP\",tblIPLookup[[#This Row],[Alloc]]=\"CA\",tblIPLookup[[#This Row],[Alloc]]=\"WA\"),\"SITUS\",tblIPLookup[[#This Row],[Alloc]])","v":"SO"},"PTD"]
[{"$f":"CONCATENATE(tblIPLookup[[#This Row],[Primary Account]],tblIPLookup[[#This Row],[Primary Name]],tblIPLookup[[#This Row],[Secondary Acct]],tblIPLookup[[#This Row],[Secondary  Name]],tblIPLookup[[#This Row],[Alloc4FUNC]])","v":"1010000ELEC PLANT IN SERV3033310C&T - Energy Trading SystemSO"},1010000,"ELEC PLANT IN SERV",3033310,"C&T - Energy Trading System","SO",null,{"$f":"IF(OR(tblIPLookup[[#This Row],[Alloc]]=\"IDU\",tblIPLookup[[#This Row],[Alloc]]=\"OR\",tblIPLookup[[#This Row],[Alloc]]=\"UT\",tblIPLookup[[#This Row],[Alloc]]=\"WYU\",tblIPLookup[[#This Row],[Alloc]]=\"WYP\",tblIPLookup[[#This Row],[Alloc]]=\"CA\",tblIPLookup[[#This Row],[Alloc]]=\"WA\"),\"SITUS\",tblIPLookup[[#This Row],[Alloc]])","v":"SO"},"P"]
[{"$f":"CONCATENATE(tblIPLookup[[#This Row],[Primary Account]],tblIPLookup[[#This Row],[Primary Name]],tblIPLookup[[#This Row],[Secondary Acct]],tblIPLookup[[#This Row],[Secondary  Name]],tblIPLookup[[#This Row],[Alloc4FUNC]])","v":"1010000ELEC PLANT IN SERV3032670C&T OFFICIAL RECORD INFO SYSTEMSO"},1010000,"ELEC PLANT IN SERV",3032670,"C&T OFFICIAL RECORD INFO SYSTEM","SO",null,{"$f":"IF(OR(tblIPLookup[[#This Row],[Alloc]]=\"IDU\",tblIPLookup[[#This Row],[Alloc]]=\"OR\",tblIPLookup[[#This Row],[Alloc]]=\"UT\",tblIPLookup[[#This Row],[Alloc]]=\"WYU\",tblIPLookup[[#This Row],[Alloc]]=\"WYP\",tblIPLookup[[#This Row],[Alloc]]=\"CA\",tblIPLookup[[#This Row],[Alloc]]=\"WA\"),\"SITUS\",tblIPLookup[[#This Row],[Alloc]])","v":"SO"},"P"]
[{"$f":"CONCATENATE(tblIPLookup[[#This Row],[Primary Account]],tblIPLookup[[#This Row],[Primary Name]],tblIPLookup[[#This Row],[Secondary Acct]],tblIPLookup[[#This Row],[Secondary  Name]],tblIPLookup[[#This Row],[Alloc4FUNC]])","v":"1010000ELEC PLANT IN SERV3031680DISTRIBUTION AUTOMATION PILOT PROJECTSO"},1010000,"ELEC PLANT IN SERV",3031680,"DISTRIBUTION AUTOMATION PILOT PROJECT","SO",null,{"$f":"IF(OR(tblIPLookup[[#This Row],[Alloc]]=\"IDU\",tblIPLookup[[#This Row],[Alloc]]=\"OR\",tblIPLookup[[#This Row],[Alloc]]=\"UT\",tblIPLookup[[#This Row],[Alloc]]=\"WYU\",tblIPLookup[[#This Row],[Alloc]]=\"WYP\",tblIPLookup[[#This Row],[Alloc]]=\"CA\",tblIPLookup[[#This Row],[Alloc]]=\"WA\"),\"SITUS\",tblIPLookup[[#This Row],[Alloc]])","v":"SO"},"DPW"]
[{"$f":"CONCATENATE(tblIPLookup[[#This Row],[Primary Account]],tblIPLookup[[#This Row],[Primary Name]],tblIPLookup[[#This Row],[Secondary Acct]],tblIPLookup[[#This Row],[Secondary  Name]],tblIPLookup[[#This Row],[Alloc4FUNC]])","v":"1010000ELEC PLANT IN SERV3032260DWHS - DATA WAREHOUSESO"},1010000,"ELEC PLANT IN SERV",3032260,"DWHS - DATA WAREHOUSE","SO",null,{"$f":"IF(OR(tblIPLookup[[#This Row],[Alloc]]=\"IDU\",tblIPLookup[[#This Row],[Alloc]]=\"OR\",tblIPLookup[[#This Row],[Alloc]]=\"UT\",tblIPLookup[[#This Row],[Alloc]]=\"WYU\",tblIPLookup[[#This Row],[Alloc]]=\"WYP\",tblIPLookup[[#This Row],[Alloc]]=\"CA\",tblIPLookup[[#This Row],[Alloc]]=\"WA\"),\"SITUS\",tblIPLookup[[#This Row],[Alloc]])","v":"SO"},"PTD"]
[{"$f":"CONCATENATE(tblIPLookup[[#This Row],[Primary Account]],tblIPLookup[[#This Row],[Primary Name]],tblIPLookup[[#This Row],[Secondary Acct]],tblIPLookup[[#This Row],[Secondary  Name]],tblIPLookup[[#This Row],[Alloc4FUNC]])","v":"1010000ELEC PLANT IN SERV3032270ENTERPRISE DATA WAREHOUSESO"},1010000,"ELEC PLANT IN SERV",3032270,"ENTERPRISE DATA WAREHOUSE","SO",null,{"$f":"IF(OR(tblIPLookup[[#This Row],[Alloc]]=\"IDU\",tblIPLookup[[#This Row],[Alloc]]=\"OR\",tblIPLookup[[#This Row],[Alloc]]=\"UT\",tblIPLookup[[#This Row],[Alloc]]=\"WYU\",tblIPLookup[[#This Row],[Alloc]]=\"WYP\",tblIPLookup[[#This Row],[Alloc]]=\"CA\",tblIPLookup[[#This Row],[Alloc]]=\"WA\"),\"SITUS\",tblIPLookup[[#This Row],[Alloc]])","v":"SO"},"PTD"]
[{"$f":"CONCATENATE(tblIPLookup[[#This Row],[Primary Account]],tblIPLookup[[#This Row],[Primary Name]],tblIPLookup[[#This Row],[Secondary Acct]],tblIPLookup[[#This Row],[Secondary  Name]],tblIPLookup[[#This Row],[Alloc4FUNC]])","v":"1010000ELEC PLANT IN SERV3032220ENTERPRISE DATA WRHSE - BI RPTG TOOLSO"},1010000,"ELEC PLANT IN SERV",3032220,"ENTERPRISE DATA WRHSE - BI RPTG TOOL","SO",null,{"$f":"IF(OR(tblIPLookup[[#This Row],[Alloc]]=\"IDU\",tblIPLookup[[#This Row],[Alloc]]=\"OR\",tblIPLookup[[#This Row],[Alloc]]=\"UT\",tblIPLookup[[#This Row],[Alloc]]=\"WYU\",tblIPLookup[[#This Row],[Alloc]]=\"WYP\",tblIPLookup[[#This Row],[Alloc]]=\"CA\",tblIPLookup[[#This Row],[Alloc]]=\"WA\"),\"SITUS\",tblIPLookup[[#This Row],[Alloc]])","v":"SO"},"PTD"]
[{"$f":"CONCATENATE(tblIPLookup[[#This Row],[Primary Account]],tblIPLookup[[#This Row],[Primary Name]],tblIPLookup[[#This Row],[Secondary Acct]],tblIPLookup[[#This Row],[Secondary  Name]],tblIPLookup[[#This Row],[Alloc4FUNC]])","v":"1010000ELEC PLANT IN SERV3032340FACILITY INSPECTION REPORTING SYSTEMSO"},1010000,"ELEC PLANT IN SERV",3032340,"FACILITY INSPECTION REPORTING SYSTEM","SO",null,{"$f":"IF(OR(tblIPLookup[[#This Row],[Alloc]]=\"IDU\",tblIPLookup[[#This Row],[Alloc]]=\"OR\",tblIPLookup[[#This Row],[Alloc]]=\"UT\",tblIPLookup[[#This Row],[Alloc]]=\"WYU\",tblIPLookup[[#This Row],[Alloc]]=\"WYP\",tblIPLookup[[#This Row],[Alloc]]=\"CA\",tblIPLookup[[#This Row],[Alloc]]=\"WA\"),\"SITUS\",tblIPLookup[[#This Row],[Alloc]])","v":"SO"},"PTD"]
[{"$f":"CONCATENATE(tblIPLookup[[#This Row],[Primary Account]],tblIPLookup[[#This Row],[Primary Name]],tblIPLookup[[#This Row],[Secondary Acct]],tblIPLookup[[#This Row],[Secondary  Name]],tblIPLookup[[#This Row],[Alloc4FUNC]])","v":"1010000ELEC PLANT IN SERV3032330FIELDNET PRO METER READING SYST -HRP REPSO"},1010000,"ELEC PLANT IN SERV",3032330,"FIELDNET PRO METER READING SYST -HRP REP","SO",null,{"$f":"IF(OR(tblIPLookup[[#This Row],[Alloc]]=\"IDU\",tblIPLookup[[#This Row],[Alloc]]=\"OR\",tblIPLookup[[#This Row],[Alloc]]=\"UT\",tblIPLookup[[#This Row],[Alloc]]=\"WYU\",tblIPLookup[[#This Row],[Alloc]]=\"WYP\",tblIPLookup[[#This Row],[Alloc]]=\"CA\",tblIPLookup[[#This Row],[Alloc]]=\"WA\"),\"SITUS\",tblIPLookup[[#This Row],[Alloc]])","v":"SO"},"CUST"]
[{"$f":"CONCATENATE(tblIPLookup[[#This Row],[Primary Account]],tblIPLookup[[#This Row],[Primary Name]],tblIPLookup[[#This Row],[Secondary Acct]],tblIPLookup[[#This Row],[Secondary  Name]],tblIPLookup[[#This Row],[Alloc4FUNC]])","v":"1010000ELEC PLANT IN SERV3031080FUEL MANAGEMENT SYSTEMSO"},1010000,"ELEC PLANT IN SERV",3031080,"FUEL MANAGEMENT SYSTEM","SO",null,{"$f":"IF(OR(tblIPLookup[[#This Row],[Alloc]]=\"IDU\",tblIPLookup[[#This Row],[Alloc]]=\"OR\",tblIPLookup[[#This Row],[Alloc]]=\"UT\",tblIPLookup[[#This Row],[Alloc]]=\"WYU\",tblIPLookup[[#This Row],[Alloc]]=\"WYP\",tblIPLookup[[#This Row],[Alloc]]=\"CA\",tblIPLookup[[#This Row],[Alloc]]=\"WA\"),\"SITUS\",tblIPLookup[[#This Row],[Alloc]])","v":"SO"},"PTD"]
[{"$f":"CONCATENATE(tblIPLookup[[#This Row],[Primary Account]],tblIPLookup[[#This Row],[Primary Name]],tblIPLookup[[#This Row],[Secondary Acct]],tblIPLookup[[#This Row],[Secondary  Name]],tblIPLookup[[#This Row],[Alloc4FUNC]])","v":"1010000ELEC PLANT IN SERV3032450MID OFFICE IMPROVEMENT PROJECTSO"},1010000,"ELEC PLANT IN SERV",3032450,"MID OFFICE IMPROVEMENT PROJECT","SO",null,{"$f":"IF(OR(tblIPLookup[[#This Row],[Alloc]]=\"IDU\",tblIPLookup[[#This Row],[Alloc]]=\"OR\",tblIPLookup[[#This Row],[Alloc]]=\"UT\",tblIPLookup[[#This Row],[Alloc]]=\"WYU\",tblIPLookup[[#This Row],[Alloc]]=\"WYP\",tblIPLookup[[#This Row],[Alloc]]=\"CA\",tblIPLookup[[#This Row],[Alloc]]=\"WA\"),\"SITUS\",tblIPLookup[[#This Row],[Alloc]])","v":"SO"},"P"]
[{"$f":"CONCATENATE(tblIPLookup[[#This Row],[Primary Account]],tblIPLookup[[#This Row],[Primary Name]],tblIPLookup[[#This Row],[Secondary Acct]],tblIPLookup[[#This Row],[Secondary  Name]],tblIPLookup[[#This Row],[Alloc4FUNC]])","v":"1010000ELEC PLANT IN SERV3034900MISC - MISCELLANEOUSSO"},1010000,"ELEC PLANT IN SERV",3034900,"MISC - MISCELLANEOUS","SO",null,{"$f":"IF(OR(tblIPLookup[[#This Row],[Alloc]]=\"IDU\",tblIPLookup[[#This Row],[Alloc]]=\"OR\",tblIPLookup[[#This Row],[Alloc]]=\"UT\",tblIPLookup[[#This Row],[Alloc]]=\"WYU\",tblIPLookup[[#This Row],[Alloc]]=\"WYP\",tblIPLookup[[#This Row],[Alloc]]=\"CA\",tblIPLookup[[#This Row],[Alloc]]=\"WA\"),\"SITUS\",tblIPLookup[[#This Row],[Alloc]])","v":"SO"},"PTD"]
[{"$f":"CONCATENATE(tblIPLookup[[#This Row],[Primary Account]],tblIPLookup[[#This Row],[Primary Name]],tblIPLookup[[#This Row],[Secondary Acct]],tblIPLookup[[#This Row],[Secondary  Name]],tblIPLookup[[#This Row],[Alloc4FUNC]])","v":"1010000ELEC PLANT IN SERV3033220MONARCH EMS/SCADASO"},1010000,"ELEC PLANT IN SERV",3033220,"MONARCH EMS/SCADA","SO",null,{"$f":"IF(OR(tblIPLookup[[#This Row],[Alloc]]=\"IDU\",tblIPLookup[[#This Row],[Alloc]]=\"OR\",tblIPLookup[[#This Row],[Alloc]]=\"UT\",tblIPLookup[[#This Row],[Alloc]]=\"WYU\",tblIPLookup[[#This Row],[Alloc]]=\"WYP\",tblIPLookup[[#This Row],[Alloc]]=\"CA\",tblIPLookup[[#This Row],[Alloc]]=\"WA\"),\"SITUS\",tblIPLookup[[#This Row],[Alloc]])","v":"SO"},"TD"]
[{"$f":"CONCATENATE(tblIPLookup[[#This Row],[Primary Account]],tblIPLookup[[#This Row],[Primary Name]],tblIPLookup[[#This Row],[Secondary Acct]],tblIPLookup[[#This Row],[Secondary  Name]],tblIPLookup[[#This Row],[Alloc4FUNC]])","v":"1010000ELEC PLANT IN SERV3035330OATI-OASIS INTERFACESO"},1010000,"ELEC PLANT IN SERV",3035330,"OATI-OASIS INTERFACE","SO",null,{"$f":"IF(OR(tblIPLookup[[#This Row],[Alloc]]=\"IDU\",tblIPLookup[[#This Row],[Alloc]]=\"OR\",tblIPLookup[[#This Row],[Alloc]]=\"UT\",tblIPLookup[[#This Row],[Alloc]]=\"WYU\",tblIPLookup[[#This Row],[Alloc]]=\"WYP\",tblIPLookup[[#This Row],[Alloc]]=\"CA\",tblIPLookup[[#This Row],[Alloc]]=\"WA\"),\"SITUS\",tblIPLookup[[#This Row],[Alloc]])","v":"SO"},"T"]
[{"$f":"CONCATENATE(tblIPLookup[[#This Row],[Primary Account]],tblIPLookup[[#This Row],[Primary Name]],tblIPLookup[[#This Row],[Secondary Acct]],tblIPLookup[[#This Row],[Secondary  Name]],tblIPLookup[[#This Row],[Alloc4FUNC]])","v":"1010000ELEC PLANT IN SERV3032510OPERATIONS MAPPING SYSTEMSO"},1010000,"ELEC PLANT IN SERV",3032510,"OPERATIONS MAPPING SYSTEM","SO",null,{"$f":"IF(OR(tblIPLookup[[#This Row],[Alloc]]=\"IDU\",tblIPLookup[[#This Row],[Alloc]]=\"OR\",tblIPLookup[[#This Row],[Alloc]]=\"UT\",tblIPLookup[[#This Row],[Alloc]]=\"WYU\",tblIPLookup[[#This Row],[Alloc]]=\"WYP\",tblIPLookup[[#This Row],[Alloc]]=\"CA\",tblIPLookup[[#This Row],[Alloc]]=\"WA\"),\"SITUS\",tblIPLookup[[#This Row],[Alloc]])","v":"SO"},"TD"]
[{"$f":"CONCATENATE(tblIPLookup[[#This Row],[Primary Account]],tblIPLookup[[#This Row],[Primary Name]],tblIPLookup[[#This Row],[Secondary Acct]],tblIPLookup[[#This Row],[Secondary  Name]],tblIPLookup[[#This Row],[Alloc4FUNC]])","v":"1010000ELEC PLANT IN SERV3032990P8DM - FILENET P8SO"},1010000,"ELEC PLANT IN SERV",3032990,"P8DM - FILENET P8","SO",null,{"$f":"IF(OR(tblIPLookup[[#This Row],[Alloc]]=\"IDU\",tblIPLookup[[#This Row],[Alloc]]=\"OR\",tblIPLookup[[#This Row],[Alloc]]=\"UT\",tblIPLookup[[#This Row],[Alloc]]=\"WYU\",tblIPLookup[[#This Row],[Alloc]]=\"WYP\",tblIPLookup[[#This Row],[Alloc]]=\"CA\",tblIPLookup[[#This Row],[Alloc]]=\"WA\"),\"SITUS\",tblIPLookup[[#This Row],[Alloc]])","v":"SO"},"PTD"]
[{"$f":"CONCATENATE(tblIPLookup[[#This Row],[Primary Account]],tblIPLookup[[#This Row],[Primary Name]],tblIPLookup[[#This Row],[Secondary Acct]],tblIPLookup[[#This Row],[Secondary  Name]],tblIPLookup[[#This Row],[Alloc4FUNC]])","v":"1010000ELEC PLANT IN SERV3032530POLE ATTACHMENT MGMT SYSTEMSO"},1010000,"ELEC PLANT IN SERV",3032530,"POLE ATTACHMENT MGMT SYSTEM","SO",null,{"$f":"IF(OR(tblIPLookup[[#This Row],[Alloc]]=\"IDU\",tblIPLookup[[#This Row],[Alloc]]=\"OR\",tblIPLookup[[#This Row],[Alloc]]=\"UT\",tblIPLookup[[#This Row],[Alloc]]=\"WYU\",tblIPLookup[[#This Row],[Alloc]]=\"WYP\",tblIPLookup[[#This Row],[Alloc]]=\"CA\",tblIPLookup[[#This Row],[Alloc]]=\"WA\"),\"SITUS\",tblIPLookup[[#This Row],[Alloc]])","v":"SO"},"DPW"]
[{"$f":"CONCATENATE(tblIPLookup[[#This Row],[Primary Account]],tblIPLookup[[#This Row],[Primary Name]],tblIPLookup[[#This Row],[Secondary Acct]],tblIPLookup[[#This Row],[Secondary  Name]],tblIPLookup[[#This Row],[Alloc4FUNC]])","v":"1010000ELEC PLANT IN SERV3033120RANGER EMS/SCADA SYSTEMSO"},1010000,"ELEC PLANT IN SERV",3033120,"RANGER EMS/SCADA SYSTEM","SO",null,{"$f":"IF(OR(tblIPLookup[[#This Row],[Alloc]]=\"IDU\",tblIPLookup[[#This Row],[Alloc]]=\"OR\",tblIPLookup[[#This Row],[Alloc]]=\"UT\",tblIPLookup[[#This Row],[Alloc]]=\"WYU\",tblIPLookup[[#This Row],[Alloc]]=\"WYP\",tblIPLookup[[#This Row],[Alloc]]=\"CA\",tblIPLookup[[#This Row],[Alloc]]=\"WA\"),\"SITUS\",tblIPLookup[[#This Row],[Alloc]])","v":"SO"},"TD"]
[{"$f":"CONCATENATE(tblIPLookup[[#This Row],[Primary Account]],tblIPLookup[[#This Row],[Primary Name]],tblIPLookup[[#This Row],[Secondary Acct]],tblIPLookup[[#This Row],[Secondary  Name]],tblIPLookup[[#This Row],[Alloc4FUNC]])","v":"1010000ELEC PLANT IN SERV3031050RCMS - REGION CONSTRUCTION MGMT SYSTEMSO"},1010000,"ELEC PLANT IN SERV",3031050,"RCMS - REGION CONSTRUCTION MGMT SYSTEM","SO",null,{"$f":"IF(OR(tblIPLookup[[#This Row],[Alloc]]=\"IDU\",tblIPLookup[[#This Row],[Alloc]]=\"OR\",tblIPLookup[[#This Row],[Alloc]]=\"UT\",tblIPLookup[[#This Row],[Alloc]]=\"WYU\",tblIPLookup[[#This Row],[Alloc]]=\"WYP\",tblIPLookup[[#This Row],[Alloc]]=\"CA\",tblIPLookup[[#This Row],[Alloc]]=\"WA\"),\"SITUS\",tblIPLookup[[#This Row],[Alloc]])","v":"SO"},"PTD"]
[{"$f":"CONCATENATE(tblIPLookup[[#This Row],[Primary Account]],tblIPLookup[[#This Row],[Primary Name]],tblIPLookup[[#This Row],[Secondary Acct]],tblIPLookup[[#This Row],[Secondary  Name]],tblIPLookup[[#This Row],[Alloc4FUNC]])","v":"1010000ELEC PLANT IN SERV3031760RECORD CENTER MANAGEMENT SOFTWARESO"},1010000,"ELEC PLANT IN SERV",3031760,"RECORD CENTER MANAGEMENT SOFTWARE","SO",null,{"$f":"IF(OR(tblIPLookup[[#This Row],[Alloc]]=\"IDU\",tblIPLookup[[#This Row],[Alloc]]=\"OR\",tblIPLookup[[#This Row],[Alloc]]=\"UT\",tblIPLookup[[#This Row],[Alloc]]=\"WYU\",tblIPLookup[[#This Row],[Alloc]]=\"WYP\",tblIPLookup[[#This Row],[Alloc]]=\"CA\",tblIPLookup[[#This Row],[Alloc]]=\"WA\"),\"SITUS\",tblIPLookup[[#This Row],[Alloc]])","v":"SO"},"PTD"]
[{"$f":"CONCATENATE(tblIPLookup[[#This Row],[Primary Account]],tblIPLookup[[#This Row],[Primary Name]],tblIPLookup[[#This Row],[Secondary Acct]],tblIPLookup[[#This Row],[Secondary  Name]],tblIPLookup[[#This Row],[Alloc4FUNC]])","v":"1010000ELEC PLANT IN SERV3033390RMT TRADE SYSTEMSO"},1010000,"ELEC PLANT IN SERV",3033390,"RMT TRADE SYSTEM","SO",null,{"$f":"IF(OR(tblIPLookup[[#This Row],[Alloc]]=\"IDU\",tblIPLookup[[#This Row],[Alloc]]=\"OR\",tblIPLookup[[#This Row],[Alloc]]=\"UT\",tblIPLookup[[#This Row],[Alloc]]=\"WYU\",tblIPLookup[[#This Row],[Alloc]]=\"WYP\",tblIPLookup[[#This Row],[Alloc]]=\"CA\",tblIPLookup[[#This Row],[Alloc]]=\"WA\"),\"SITUS\",tblIPLookup[[#This Row],[Alloc]])","v":"SO"},"PTD"]
[{"$f":"CONCATENATE(tblIPLookup[[#This Row],[Primary Account]],tblIPLookup[[#This Row],[Primary Name]],tblIPLookup[[#This Row],[Secondary Acct]],tblIPLookup[[#This Row],[Secondary  Name]],tblIPLookup[[#This Row],[Alloc4FUNC]])","v":"1010000ELEC PLANT IN SERV3032040S A PSO"},1010000,"ELEC PLANT IN SERV",3032040,"S A P","SO",null,{"$f":"IF(OR(tblIPLookup[[#This Row],[Alloc]]=\"IDU\",tblIPLookup[[#This Row],[Alloc]]=\"OR\",tblIPLookup[[#This Row],[Alloc]]=\"UT\",tblIPLookup[[#This Row],[Alloc]]=\"WYU\",tblIPLookup[[#This Row],[Alloc]]=\"WYP\",tblIPLookup[[#This Row],[Alloc]]=\"CA\",tblIPLookup[[#This Row],[Alloc]]=\"WA\"),\"SITUS\",tblIPLookup[[#This Row],[Alloc]])","v":"SO"},"COMMON"]
[{"$f":"CONCATENATE(tblIPLookup[[#This Row],[Primary Account]],tblIPLookup[[#This Row],[Primary Name]],tblIPLookup[[#This Row],[Secondary Acct]],tblIPLookup[[#This Row],[Secondary  Name]],tblIPLookup[[#This Row],[Alloc4FUNC]])","v":"1010000ELEC PLANT IN SERV3032600SINGLE PERSON SCHEDULINGSO"},1010000,"ELEC PLANT IN SERV",3032600,"SINGLE PERSON SCHEDULING","SO",null,{"$f":"IF(OR(tblIPLookup[[#This Row],[Alloc]]=\"IDU\",tblIPLookup[[#This Row],[Alloc]]=\"OR\",tblIPLookup[[#This Row],[Alloc]]=\"UT\",tblIPLookup[[#This Row],[Alloc]]=\"WYU\",tblIPLookup[[#This Row],[Alloc]]=\"WYP\",tblIPLookup[[#This Row],[Alloc]]=\"CA\",tblIPLookup[[#This Row],[Alloc]]=\"WA\"),\"SITUS\",tblIPLookup[[#This Row],[Alloc]])","v":"SO"},"DPW"]
[{"$f":"CONCATENATE(tblIPLookup[[#This Row],[Primary Account]],tblIPLookup[[#This Row],[Primary Name]],tblIPLookup[[#This Row],[Secondary Acct]],tblIPLookup[[#This Row],[Secondary  Name]],tblIPLookup[[#This Row],[Alloc4FUNC]])","v":"1010000ELEC PLANT IN SERV3032590SUBSTATION/CIRCUIT HISTORY OF OPERATIONSSO"},1010000,"ELEC PLANT IN SERV",3032590,"SUBSTATION/CIRCUIT HISTORY OF OPERATIONS","SO",null,{"$f":"IF(OR(tblIPLookup[[#This Row],[Alloc]]=\"IDU\",tblIPLookup[[#This Row],[Alloc]]=\"OR\",tblIPLookup[[#This Row],[Alloc]]=\"UT\",tblIPLookup[[#This Row],[Alloc]]=\"WYU\",tblIPLookup[[#This Row],[Alloc]]=\"WYP\",tblIPLookup[[#This Row],[Alloc]]=\"CA\",tblIPLookup[[#This Row],[Alloc]]=\"WA\"),\"SITUS\",tblIPLookup[[#This Row],[Alloc]])","v":"SO"},"TD"]
[{"$f":"CONCATENATE(tblIPLookup[[#This Row],[Primary Account]],tblIPLookup[[#This Row],[Primary Name]],tblIPLookup[[#This Row],[Secondary Acct]],tblIPLookup[[#This Row],[Secondary  Name]],tblIPLookup[[#This Row],[Alloc4FUNC]])","v":"1010000ELEC PLANT IN SERV3032640TIBCO SOFTWARESO"},1010000,"ELEC PLANT IN SERV",3032640,"TIBCO SOFTWARE","SO",null,{"$f":"IF(OR(tblIPLookup[[#This Row],[Alloc]]=\"IDU\",tblIPLookup[[#This Row],[Alloc]]=\"OR\",tblIPLookup[[#This Row],[Alloc]]=\"UT\",tblIPLookup[[#This Row],[Alloc]]=\"WYU\",tblIPLookup[[#This Row],[Alloc]]=\"WYP\",tblIPLookup[[#This Row],[Alloc]]=\"CA\",tblIPLookup[[#This Row],[Alloc]]=\"WA\"),\"SITUS\",tblIPLookup[[#This Row],[Alloc]])","v":"SO"},"PTD"]
[{"$f":"CONCATENATE(tblIPLookup[[#This Row],[Primary Account]],tblIPLookup[[#This Row],[Primary Name]],tblIPLookup[[#This Row],[Secondary Acct]],tblIPLookup[[#This Row],[Secondary  Name]],tblIPLookup[[#This Row],[Alloc4FUNC]])","v":"1010000ELEC PLANT IN SERV3032690UTILITY INTERNATIONAL FORECASTING MODELSO"},1010000,"ELEC PLANT IN SERV",3032690,"UTILITY INTERNATIONAL FORECASTING MODEL","SO",null,{"$f":"IF(OR(tblIPLookup[[#This Row],[Alloc]]=\"IDU\",tblIPLookup[[#This Row],[Alloc]]=\"OR\",tblIPLookup[[#This Row],[Alloc]]=\"UT\",tblIPLookup[[#This Row],[Alloc]]=\"WYU\",tblIPLookup[[#This Row],[Alloc]]=\"WYP\",tblIPLookup[[#This Row],[Alloc]]=\"CA\",tblIPLookup[[#This Row],[Alloc]]=\"WA\"),\"SITUS\",tblIPLookup[[#This Row],[Alloc]])","v":"SO"},"PTD"]
[{"$f":"CONCATENATE(tblIPLookup[[#This Row],[Primary Account]],tblIPLookup[[#This Row],[Primary Name]],tblIPLookup[[#This Row],[Secondary Acct]],tblIPLookup[[#This Row],[Secondary  Name]],tblIPLookup[[#This Row],[Alloc4FUNC]])","v":"1010000ELEC PLANT IN SERV3032830VCPRO - XEROX CUST STMT FRMTR ENHANCE -SO"},1010000,"ELEC PLANT IN SERV",3032830,"VCPRO - XEROX CUST STMT FRMTR ENHANCE -","SO",null,{"$f":"IF(OR(tblIPLookup[[#This Row],[Alloc]]=\"IDU\",tblIPLookup[[#This Row],[Alloc]]=\"OR\",tblIPLookup[[#This Row],[Alloc]]=\"UT\",tblIPLookup[[#This Row],[Alloc]]=\"WYU\",tblIPLookup[[#This Row],[Alloc]]=\"WYP\",tblIPLookup[[#This Row],[Alloc]]=\"CA\",tblIPLookup[[#This Row],[Alloc]]=\"WA\"),\"SITUS\",tblIPLookup[[#This Row],[Alloc]])","v":"SO"},"CUST"]
[{"$f":"CONCATENATE(tblIPLookup[[#This Row],[Primary Account]],tblIPLookup[[#This Row],[Primary Name]],tblIPLookup[[#This Row],[Secondary Acct]],tblIPLookup[[#This Row],[Secondary  Name]],tblIPLookup[[#This Row],[Alloc4FUNC]])","v":"1010000ELEC PLANT IN SERV3033230VREALIZE VMWARE - SHAREDSO"},1010000,"ELEC PLANT IN SERV",3033230,"VREALIZE VMWARE - SHARED","SO",null,{"$f":"IF(OR(tblIPLookup[[#This Row],[Alloc]]=\"IDU\",tblIPLookup[[#This Row],[Alloc]]=\"OR\",tblIPLookup[[#This Row],[Alloc]]=\"UT\",tblIPLookup[[#This Row],[Alloc]]=\"WYU\",tblIPLookup[[#This Row],[Alloc]]=\"WYP\",tblIPLookup[[#This Row],[Alloc]]=\"CA\",tblIPLookup[[#This Row],[Alloc]]=\"WA\"),\"SITUS\",tblIPLookup[[#This Row],[Alloc]])","v":"SO"},"PTD"]
[{"$f":"CONCATENATE(tblIPLookup[[#This Row],[Primary Account]],tblIPLookup[[#This Row],[Primary Name]],tblIPLookup[[#This Row],[Secondary Acct]],tblIPLookup[[#This Row],[Secondary  Name]],tblIPLookup[[#This Row],[Alloc4FUNC]])","v":"1010000ELEC PLANT IN SERV3032860WEB SOFTWARESO"},1010000,"ELEC PLANT IN SERV",3032860,"WEB SOFTWARE","SO",null,{"$f":"IF(OR(tblIPLookup[[#This Row],[Alloc]]=\"IDU\",tblIPLookup[[#This Row],[Alloc]]=\"OR\",tblIPLookup[[#This Row],[Alloc]]=\"UT\",tblIPLookup[[#This Row],[Alloc]]=\"WYU\",tblIPLookup[[#This Row],[Alloc]]=\"WYP\",tblIPLookup[[#This Row],[Alloc]]=\"CA\",tblIPLookup[[#This Row],[Alloc]]=\"WA\"),\"SITUS\",tblIPLookup[[#This Row],[Alloc]])","v":"SO"},"CUST"]
[{"$f":"CONCATENATE(tblIPLookup[[#This Row],[Primary Account]],tblIPLookup[[#This Row],[Primary Name]],tblIPLookup[[#This Row],[Secondary Acct]],tblIPLookup[[#This Row],[Secondary  Name]],tblIPLookup[[#This Row],[Alloc4FUNC]])","v":"1010000ELEC PLANT IN SERV3033260Big Data & AnalyticsSO"},1010000,"ELEC PLANT IN SERV",3033260,"Big Data & Analytics","SO",null,{"$f":"IF(OR(tblIPLookup[[#This Row],[Alloc]]=\"IDU\",tblIPLookup[[#This Row],[Alloc]]=\"OR\",tblIPLookup[[#This Row],[Alloc]]=\"UT\",tblIPLookup[[#This Row],[Alloc]]=\"WYU\",tblIPLookup[[#This Row],[Alloc]]=\"WYP\",tblIPLookup[[#This Row],[Alloc]]=\"CA\",tblIPLookup[[#This Row],[Alloc]]=\"WA\"),\"SITUS\",tblIPLookup[[#This Row],[Alloc]])","v":"SO"},"CUST"]
[null,null,null,null,null,null,{"$f":"SUBTOTAL(109,tblIPLookup[Column1])","v":0}]

{"sheet":"SCH M June19data","index":20,"n_rows":514,"n_cols":10,"rows_kept":514,"cut":false,"hidden":false,"merged":[]}
["Concat","Primary Account","Primary Name","Secondary Acct","Secondary  Name","Alloc","Total ($000)","Alloc4FUNC","FUNC"," "]
[{"$f":"CONCATENATE(tblSchMJune19[[#This Row],[Primary Account]],tblSchMJune19[[#This Row],[Primary Name]],tblSchMJune19[[#This Row],[Secondary Acct]],tblSchMJune19[[#This Row],[Secondary  Name]],tblSchMJune19[[#This Row],[Alloc4FUNC]])","v":"4098200SCHMAP10510530% Capitalized labor costs for PowerTaxSO"},4098200,{"$f":"IF(tblSchMJune19[[#This Row],[Primary Account]]=4098200,\"SCHMAP\",IF(tblSchMJune19[[#This Row],[Primary Account]]=4098300,\"SCHMAT\",IF(tblSchMJune19[[#This Row],[Primary Account]]=4099200,\"SCHMDP\",IF(tblSchMJune19[[#This Row],[Primary Account]]=4099300,\"SCHMDT\"))))","v":"SCHMAP"},"105105","30% Capitalized labor costs for PowerTax","SO",null,{"$f":"IF(OR(tblSchMJune19[[#This Row],[Alloc]]=\"IDU\",tblSchMJune19[[#This Row],[Alloc]]=\"OR\",tblSchMJune19[[#This Row],[Alloc]]=\"UT\",tblSchMJune19[[#This Row],[Alloc]]=\"WYU\",tblSchMJune19[[#This Row],[Alloc]]=\"WYP\",tblSchMJune19[[#This Row],[Alloc]]=\"CA\",tblSchMJune19[[#This Row],[Alloc]]=\"WA\"),\"SITUS\",tblSchMJune19[[#This Row],[Alloc]])","v":"SO"},{"$f":"INDEX(tblSchMLookup[FUNC],MATCH(tblSchMJune19[[#This Row],[Concat]],tblSchMLookup[Concat],0))","v":{"$error":"#N/A"}},{"$f":"IF(tblSchMJune19[[#This Row],[Total ($000)]]=0,\"NO\",IF(ISNA(tblSchMJune19[[#This Row],[FUNC]]),\"YES\",IF(_xlfn.ISFORMULA(tblSchMJune19[[#This Row],[FUNC]]),\"NO\",\"YES\")))","v":"NO"}]
[{"$f":"CONCATENATE(tblSchMJune19[[#This Row],[Primary Account]],tblSchMJune19[[#This Row],[Primary Name]],tblSchMJune19[[#This Row],[Secondary Acct]],tblSchMJune19[[#This Row],[Secondary  Name]],tblSchMJune19[[#This Row],[Alloc4FUNC]])","v":"4098200SCHMAP105127Book Depr Allocated to Medicare and M&ESCHMDEXP"},4098200,{"$f":"IF(tblSchMJune19[[#This Row],[Primary Account]]=4098200,\"SCHMAP\",IF(tblSchMJune19[[#This Row],[Primary Account]]=4098300,\"SCHMAT\",IF(tblSchMJune19[[#This Row],[Primary Account]]=4099200,\"SCHMDP\",IF(tblSchMJune19[[#This Row],[Primary Account]]=4099300,\"SCHMDT\"))))","v":"SCHMAP"},"105127","Book Depr Allocated to Medicare and M&E","SCHMDEXP",129.28995,{"$f":"IF(OR(tblSchMJune19[[#This Row],[Alloc]]=\"IDU\",tblSchMJune19[[#This Row],[Alloc]]=\"OR\",tblSchMJune19[[#This Row],[Alloc]]=\"UT\",tblSchMJune19[[#This Row],[Alloc]]=\"WYU\",tblSchMJune19[[#This Row],[Alloc]]=\"WYP\",tblSchMJune19[[#This Row],[Alloc]]=\"CA\",tblSchMJune19[[#This Row],[Alloc]]=\"WA\"),\"SITUS\",tblSchMJune19[[#This Row],[Alloc]])","v":"SCHMDEXP"},{"$f":"INDEX(tblSchMLookup[FUNC],MATCH(tblSchMJune19[[#This Row],[Concat]],tblSchMLookup[Concat],0))","v":"LABOR"},{"$f":"IF(tblSchMJune19[[#This Row],[Total ($000)]]=0,\"NO\",IF(ISNA(tblSchMJune19[[#This Row],[FUNC]]),\"YES\",IF(_xlfn.ISFORMULA(tblSchMJune19[[#This Row],[FUNC]]),\"NO\",\"YES\")))","v":"NO"}]
[{"$f":"CONCATENATE(tblSchMJune19[[#This Row],[Primary Account]],tblSchMJune19[[#This Row],[Primary Name]],tblSchMJune19[[#This Row],[Secondary Acct]],tblSchMJune19[[#This Row],[Secondary  Name]],tblSchMJune19[[#This Row],[Alloc4FUNC]])","v":"4098200SCHMAP110200Tax Percentage Depletion - Deer CreekSE"},4098200,{"$f":"IF(tblSchMJune19[[#This Row],[Primary Account]]=4098200,\"SCHMAP\",IF(tblSchMJune19[[#This Row],[Primary Account]]=4098300,\"SCHMAT\",IF(tblSchMJune19[[#This Row],[Primary Account]]=4099200,\"SCHMDP\",IF(tblSchMJune19[[#This Row],[Primary Account]]=4099300,\"SCHMDT\"))))","v":"SCHMAP"},"110200","Tax Percentage Depletion - Deer Creek","SE",null,{"$f":"IF(OR(tblSchMJune19[[#This Row],[Alloc]]=\"IDU\",tblSchMJune19[[#This Row],[Alloc]]=\"OR\",tblSchMJune19[[#This Row],[Alloc]]=\"UT\",tblSchMJune19[[#This Row],[Alloc]]=\"WYU\",tblSchMJune19[[#This Row],[Alloc]]=\"WYP\",tblSchMJune19[[#This Row],[Alloc]]=\"CA\",tblSchMJune19[[#This Row],[Alloc]]=\"WA\"),\"SITUS\",tblSchMJune19[[#This Row],[Alloc]])","v":"SE"},{"$f":"INDEX(tblSchMLookup[FUNC],MATCH(tblSchMJune19[[#This Row],[Concat]],tblSchMLookup[Concat],0))","v":{"$error":"#N/A"}},{"$f":"IF(tblSchMJune19[[#This Row],[Total ($000)]]=0,\"NO\",IF(ISNA(tblSchMJune19[[#This Row],[FUNC]]),\"YES\",IF(_xlfn.ISFORMULA(tblSchMJune19[[#This Row],[FUNC]]),\"NO\",\"YES\")))","v":"NO"}]
[{"$f":"CONCATENATE(tblSchMJune19[[#This Row],[Primary Account]],tblSchMJune19[[#This Row],[Primary Name]],tblSchMJune19[[#This Row],[Secondary Acct]],tblSchMJune19[[#This Row],[Secondary  Name]],tblSchMJune19[[#This Row],[Alloc4FUNC]])","v":"4098200SCHMAP120101Other A/R Bad Debt Write-offsBADDEBT"},4098200,{"$f":"IF(tblSchMJune19[[#This Row],[Primary Account]]=4098200,\"SCHMAP\",IF(tblSchMJune19[[#This Row],[Primary Account]]=4098300,\"SCHMAT\",IF(tblSchMJune19[[#This Row],[Primary Account]]=4099200,\"SCHMDP\",IF(tblSchMJune19[[#This Row],[Primary Account]]=4099300,\"SCHMDT\"))))","v":"SCHMAP"},"120101","Other A/R Bad Debt Write-offs","BADDEBT",null,{"$f":"IF(OR(tblSchMJune19[[#This Row],[Alloc]]=\"IDU\",tblSchMJune19[[#This Row],[Alloc]]=\"OR\",tblSchMJune19[[#This Row],[Alloc]]=\"UT\",tblSchMJune19[[#This Row],[Alloc]]=\"WYU\",tblSchMJune19[[#This Row],[Alloc]]=\"WYP\",tblSchMJune19[[#This Row],[Alloc]]=\"CA\",tblSchMJune19[[#This Row],[Alloc]]=\"WA\"),\"SITUS\",tblSchMJune19[[#This Row],[Alloc]])","v":"BADDEBT"},{"$f":"INDEX(tblSchMLookup[FUNC],MATCH(tblSchMJune19[[#This Row],[Concat]],tblSchMLookup[Concat],0))","v":{"$error":"#N/A"}},{"$f":"IF(tblSchMJune19[[#This Row],[Total ($000)]]=0,\"NO\",IF(ISNA(tblSchMJune19[[#This Row],[FUNC]]),\"YES\",IF(_xlfn.ISFORMULA(tblSchMJune19[[#This Row],[FUNC]]),\"NO\",\"YES\")))","v":"NO"}]
[{"$f":"CONCATENATE(tblSchMJune19[[#This Row],[Primary Account]],tblSchMJune19[[#This Row],[Primary Name]],tblSchMJune19[[#This Row],[Secondary Acct]],tblSchMJune19[[#This Row],[Secondary  Name]],tblSchMJune19[[#This Row],[Alloc4FUNC]])","v":"4098200SCHMAP130100Non - Deductible ExpensesSO"},4098200,{"$f":"IF(tblSchMJune19[[#This Row],[Primary Account]]=4098200,\"SCHMAP\",IF(tblSchMJune19[[#This Row],[Primary Account]]=4098300,\"SCHMAT\",IF(tblSchMJune19[[#This Row],[Primary Account]]=4099200,\"SCHMDP\",IF(tblSchMJune19[[#This Row],[Primary Account]]=4099300,\"SCHMDT\"))))","v":"SCHMAP"},"130100","Non - Deductible Expenses","SO",1509.1196,{"$f":"IF(OR(tblSchMJune19[[#This Row],[Alloc]]=\"IDU\",tblSchMJune19[[#This Row],[Alloc]]=\"OR\",tblSchMJune19[[#This Row],[Alloc]]=\"UT\",tblSchMJune19[[#This Row],[Alloc]]=\"WYU\",tblSchMJune19[[#This Row],[Alloc]]=\"WYP\",tblSchMJune19[[#This Row],[Alloc]]=\"CA\",tblSchMJune19[[#This Row],[Alloc]]=\"WA\"),\"SITUS\",tblSchMJune19[[#This Row],[Alloc]])","v":"SO"},{"$f":"INDEX(tblSchMLookup[FUNC],MATCH(tblSchMJune19[[#This Row],[Concat]],tblSchMLookup[Concat],0))","v":"P"},{"$f":"IF(tblSchMJune19[[#This Row],[Total ($000)]]=0,\"NO\",IF(ISNA(tblSchMJune19[[#This Row],[FUNC]]),\"YES\",IF(_xlfn.ISFORMULA(tblSchMJune19[[#This Row],[FUNC]]),\"NO\",\"YES\")))","v":"NO"}]
[{"$f":"CONCATENATE(tblSchMJune19[[#This Row],[Primary Account]],tblSchMJune19[[#This Row],[Primary Name]],tblSchMJune19[[#This Row],[Secondary Acct]],tblSchMJune19[[#This Row],[Secondary  Name]],tblSchMJune19[[#This Row],[Alloc4FUNC]])","v":"4098200SCHMAP130400PMINondeductible ExpSE"},4098200,{"$f":"IF(tblSchMJune19[[#This Row],[Primary Account]]=4098200,\"SCHMAP\",IF(tblSchMJune19[[#This Row],[Primary Account]]=4098300,\"SCHMAT\",IF(tblSchMJune19[[#This Row],[Primary Account]]=4099200,\"SCHMDP\",IF(tblSchMJune19[[#This Row],[Primary Account]]=4099300,\"SCHMDT\"))))","v":"SCHMAP"},"130400","PMINondeductible Exp","SE",39.606000000000002,{"$f":"IF(OR(tblSchMJune19[[#This Row],[Alloc]]=\"IDU\",tblSchMJune19[[#This Row],[Alloc]]=\"OR\",tblSchMJune19[[#This Row],[Alloc]]=\"UT\",tblSchMJune19[[#This Row],[Alloc]]=\"WYU\",tblSchMJune19[[#This Row],[Alloc]]=\"WYP\",tblSchMJune19[[#This Row],[Alloc]]=\"CA\",tblSchMJune19[[#This Row],[Alloc]]=\"WA\"),\"SITUS\",tblSchMJune19[[#This Row],[Alloc]])","v":"SE"},{"$f":"INDEX(tblSchMLookup[FUNC],MATCH(tblSchMJune19[[#This Row],[Concat]],tblSchMLookup[Concat],0))","v":"P"},{"$f":"IF(tblSchMJune19[[#This Row],[Total ($000)]]=0,\"NO\",IF(ISNA(tblSchMJune19[[#This Row],[FUNC]]),\"YES\",IF(_xlfn.ISFORMULA(tblSchMJune19[[#This Row],[FUNC]]),\"NO\",\"YES\")))","v":"NO"}]
[{"$f":"CONCATENATE(tblSchMJune19[[#This Row],[Primary Account]],tblSchMJune19[[#This Row],[Primary Name]],tblSchMJune19[[#This Row],[Secondary Acct]],tblSchMJune19[[#This Row],[Secondary  Name]],tblSchMJune19[[#This Row],[Alloc4FUNC]])","v":"4098200SCHMAP130550MEHC Insurance Services-PremiumSO"},4098200,{"$f":"IF(tblSchMJune19[[#This Row],[Primary Account]]=4098200,\"SCHMAP\",IF(tblSchMJune19[[#This Row],[Primary Account]]=4098300,\"SCHMAT\",IF(tblSchMJune19[[#This Row],[Primary Account]]=4099200,\"SCHMDP\",IF(tblSchMJune19[[#This Row],[Primary Account]]=4099300,\"SCHMDT\"))))","v":"SCHMAP"},"130550","MEHC Insurance Services-Premium","SO",null,{"$f":"IF(OR(tblSchMJune19[[#This Row],[Alloc]]=\"IDU\",tblSchMJune19[[#This Row],[Alloc]]=\"OR\",tblSchMJune19[[#This Row],[Alloc]]=\"UT\",tblSchMJune19[[#This Row],[Alloc]]=\"WYU\",tblSchMJune19[[#This Row],[Alloc]]=\"WYP\",tblSchMJune19[[#This Row],[Alloc]]=\"CA\",tblSchMJune19[[#This Row],[Alloc]]=\"WA\"),\"SITUS\",tblSchMJune19[[#This Row],[Alloc]])","v":"SO"},{"$f":"INDEX(tblSchMLookup[FUNC],MATCH(tblSchMJune19[[#This Row],[Concat]],tblSchMLookup[Concat],0))","v":{"$error":"#N/A"}},{"$f":"IF(tblSchMJune19[[#This Row],[Total ($000)]]=0,\"NO\",IF(ISNA(tblSchMJune19[[#This Row],[FUNC]]),\"YES\",IF(_xlfn.ISFORMULA(tblSchMJune19[[#This Row],[FUNC]]),\"NO\",\"YES\")))","v":"NO"}]
[{"$f":"CONCATENATE(tblSchMJune19[[#This Row],[Primary Account]],tblSchMJune19[[#This Row],[Primary Name]],tblSchMJune19[[#This Row],[Secondary Acct]],tblSchMJune19[[#This Row],[Secondary  Name]],tblSchMJune19[[#This Row],[Alloc4FUNC]])","v":"4098200SCHMAP130700Mining Rescue Training Credit AddbackSE"},4098200,{"$f":"IF(tblSchMJune19[[#This Row],[Primary Account]]=4098200,\"SCHMAP\",IF(tblSchMJune19[[#This Row],[Primary Account]]=4098300,\"SCHMAT\",IF(tblSchMJune19[[#This Row],[Primary Account]]=4099200,\"SCHMDP\",IF(tblSchMJune19[[#This Row],[Primary Account]]=4099300,\"SCHMDT\"))))","v":"SCHMAP"},"130700","Mining Rescue Training Credit Addback","SE",null,{"$f":"IF(OR(tblSchMJune19[[#This Row],[Alloc]]=\"IDU\",tblSchMJune19[[#This Row],[Alloc]]=\"OR\",tblSchMJune19[[#This Row],[Alloc]]=\"UT\",tblSchMJune19[[#This Row],[Alloc]]=\"WYU\",tblSchMJune19[[#This Row],[Alloc]]=\"WYP\",tblSchMJune19[[#This Row],[Alloc]]=\"CA\",tblSchMJune19[[#This Row],[Alloc]]=\"WA\"),\"SITUS\",tblSchMJune19[[#This Row],[Alloc]])","v":"SE"},{"$f":"INDEX(tblSchMLookup[FUNC],MATCH(tblSchMJune19[[#This Row],[Concat]],tblSchMLookup[Concat],0))","v":{"$error":"#N/A"}},{"$f":"IF(tblSchMJune19[[#This Row],[Total ($000)]]=0,\"NO\",IF(ISNA(tblSchMJune19[[#This Row],[FUNC]]),\"YES\",IF(_xlfn.ISFORMULA(tblSchMJune19[[#This Row],[FUNC]]),\"NO\",\"YES\")))","v":"NO"}]
[{"$f":"CONCATENATE(tblSchMJune19[[#This Row],[Primary Account]],tblSchMJune19[[#This Row],[Primary Name]],tblSchMJune19[[#This Row],[Secondary Acct]],tblSchMJune19[[#This Row],[Secondary  Name]],tblSchMJune19[[#This Row],[Alloc4FUNC]])","v":"4098200SCHMAP130750Nondeductible Fringe BenefitsSO"},4098200,{"$f":"IF(tblSchMJune19[[#This Row],[Primary Account]]=4098200,\"SCHMAP\",IF(tblSchMJune19[[#This Row],[Primary Account]]=4098300,\"SCHMAT\",IF(tblSchMJune19[[#This Row],[Primary Account]]=4099200,\"SCHMDP\",IF(tblSchMJune19[[#This Row],[Primary Account]]=4099300,\"SCHMDT\"))))","v":"SCHMAP"},"130750","Nondeductible Fringe Benefits","SO",526.52980000000002,{"$f":"IF(OR(tblSchMJune19[[#This Row],[Alloc]]=\"IDU\",tblSchMJune19[[#This Row],[Alloc]]=\"OR\",tblSchMJune19[[#This Row],[Alloc]]=\"UT\",tblSchMJune19[[#This Row],[Alloc]]=\"WYU\",tblSchMJune19[[#This Row],[Alloc]]=\"WYP\",tblSchMJune19[[#This Row],[Alloc]]=\"CA\",tblSchMJune19[[#This Row],[Alloc]]=\"WA\"),\"SITUS\",tblSchMJune19[[#This Row],[Alloc]])","v":"SO"},{"$f":"INDEX(tblSchMLookup[FUNC],MATCH(tblSchMJune19[[#This Row],[Concat]],tblSchMLookup[Concat],0))","v":"LABOR"},{"$f":"IF(tblSchMJune19[[#This Row],[Total ($000)]]=0,\"NO\",IF(ISNA(tblSchMJune19[[#This Row],[FUNC]]),\"YES\",IF(_xlfn.ISFORMULA(tblSchMJune19[[#This Row],[FUNC]]),\"NO\",\"YES\")))","v":"NO"}]
[{"$f":"CONCATENATE(tblSchMJune19[[#This Row],[Primary Account]],tblSchMJune19[[#This Row],[Primary Name]],tblSchMJune19[[#This Row],[Secondary Acct]],tblSchMJune19[[#This Row],[Secondary  Name]],tblSchMJune19[[#This Row],[Alloc4FUNC]])","v":"4098200SCHMAP130755Nondeductible Parking CostsSO"},4098200,{"$f":"IF(tblSchMJune19[[#This Row],[Primary Account]]=4098200,\"SCHMAP\",IF(tblSchMJune19[[#This Row],[Primary Account]]=4098300,\"SCHMAT\",IF(tblSchMJune19[[#This Row],[Primary Account]]=4099200,\"SCHMDP\",IF(tblSchMJune19[[#This Row],[Primary Account]]=4099300,\"SCHMDT\"))))","v":"SCHMAP"},"130755","Nondeductible Parking Costs","SO",329.06139999999999,{"$f":"IF(OR(tblSchMJune19[[#This Row],[Alloc]]=\"IDU\",tblSchMJune19[[#This Row],[Alloc]]=\"OR\",tblSchMJune19[[#This Row],[Alloc]]=\"UT\",tblSchMJune19[[#This Row],[Alloc]]=\"WYU\",tblSchMJune19[[#This Row],[Alloc]]=\"WYP\",tblSchMJune19[[#This Row],[Alloc]]=\"CA\",tblSchMJune19[[#This Row],[Alloc]]=\"WA\"),\"SITUS\",tblSchMJune19[[#This Row],[Alloc]])","v":"SO"},{"$f":"INDEX(tblSchMLookup[FUNC],MATCH(tblSchMJune19[[#This Row],[Concat]],tblSchMLookup[Concat],0))","v":"LABOR"},{"$f":"IF(tblSchMJune19[[#This Row],[Total ($000)]]=0,\"NO\",IF(ISNA(tblSchMJune19[[#This Row],[FUNC]]),\"YES\",IF(_xlfn.ISFORMULA(tblSchMJune19[[#This Row],[FUNC]]),\"NO\",\"YES\")))","v":"NO"}]
[{"$f":"CONCATENATE(tblSchMJune19[[#This Row],[Primary Account]],tblSchMJune19[[#This Row],[Primary Name]],tblSchMJune19[[#This Row],[Secondary Acct]],tblSchMJune19[[#This Row],[Secondary  Name]],tblSchMJune19[[#This Row],[Alloc4FUNC]])","v":"4098200SCHMAP130900Non - Deductible Executive CompSO"},4098200,{"$f":"IF(tblSchMJune19[[#This Row],[Primary Account]]=4098200,\"SCHMAP\",IF(tblSchMJune19[[#This Row],[Primary Account]]=4098300,\"SCHMAT\",IF(tblSchMJune19[[#This Row],[Primary Account]]=4099200,\"SCHMDP\",IF(tblSchMJune19[[#This Row],[Primary Account]]=4099300,\"SCHMDT\"))))","v":"SCHMAP"},"130900","Non - Deductible Executive Comp","SO",null,{"$f":"IF(OR(tblSchMJune19[[#This Row],[Alloc]]=\"IDU\",tblSchMJune19[[#This Row],[Alloc]]=\"OR\",tblSchMJune19[[#This Row],[Alloc]]=\"UT\",tblSchMJune19[[#This Row],[Alloc]]=\"WYU\",tblSchMJune19[[#This Row],[Alloc]]=\"WYP\",tblSchMJune19[[#This Row],[Alloc]]=\"CA\",tblSchMJune19[[#This Row],[Alloc]]=\"WA\"),\"SITUS\",tblSchMJune19[[#This Row],[Alloc]])","v":"SO"},{"$f":"INDEX(tblSchMLookup[FUNC],MATCH(tblSchMJune19[[#This Row],[Concat]],tblSchMLookup[Concat],0))","v":{"$error":"#N/A"}},{"$f":"IF(tblSchMJune19[[#This Row],[Total ($000)]]=0,\"NO\",IF(ISNA(tblSchMJune19[[#This Row],[FUNC]]),\"YES\",IF(_xlfn.ISFORMULA(tblSchMJune19[[#This Row],[FUNC]]),\"NO\",\"YES\")))","v":"NO"}]
[{"$f":"CONCATENATE(tblSchMJune19[[#This Row],[Primary Account]],tblSchMJune19[[#This Row],[Primary Name]],tblSchMJune19[[#This Row],[Secondary Acct]],tblSchMJune19[[#This Row],[Secondary  Name]],tblSchMJune19[[#This Row],[Alloc4FUNC]])","v":"4098200SCHMAP505505Income Tax InterestSO"},4098200,{"$f":"IF(tblSchMJune19[[#This Row],[Primary Account]]=4098200,\"SCHMAP\",IF(tblSchMJune19[[#This Row],[Primary Account]]=4098300,\"SCHMAT\",IF(tblSchMJune19[[#This Row],[Primary Account]]=4099200,\"SCHMDP\",IF(tblSchMJune19[[#This Row],[Primary Account]]=4099300,\"SCHMDT\"))))","v":"SCHMAP"},"505505","Income Tax Interest","SO",-2.4990000000000001,{"$f":"IF(OR(tblSchMJune19[[#This Row],[Alloc]]=\"IDU\",tblSchMJune19[[#This Row],[Alloc]]=\"OR\",tblSchMJune19[[#This Row],[Alloc]]=\"UT\",tblSchMJune19[[#This Row],[Alloc]]=\"WYU\",tblSchMJune19[[#This Row],[Alloc]]=\"WYP\",tblSchMJune19[[#This Row],[Alloc]]=\"CA\",tblSchMJune19[[#This Row],[Alloc]]=\"WA\"),\"SITUS\",tblSchMJune19[[#This Row],[Alloc]])","v":"SO"},{"$f":"INDEX(tblSchMLookup[FUNC],MATCH(tblSchMJune19[[#This Row],[Concat]],tblSchMLookup[Concat],0))","v":"P"},{"$f":"IF(tblSchMJune19[[#This Row],[Total ($000)]]=0,\"NO\",IF(ISNA(tblSchMJune19[[#This Row],[FUNC]]),\"YES\",IF(_xlfn.ISFORMULA(tblSchMJune19[[#This Row],[FUNC]]),\"NO\",\"YES\")))","v":"NO"}]
[{"$f":"CONCATENATE(tblSchMJune19[[#This Row],[Primary Account]],tblSchMJune19[[#This Row],[Primary Name]],tblSchMJune19[[#This Row],[Secondary Acct]],tblSchMJune19[[#This Row],[Secondary  Name]],tblSchMJune19[[#This Row],[Alloc4FUNC]])","v":"4098200SCHMAP610106PMIFuel Tax CrSE"},4098200,{"$f":"IF(tblSchMJune19[[#This Row],[Primary Account]]=4098200,\"SCHMAP\",IF(tblSchMJune19[[#This Row],[Primary Account]]=4098300,\"SCHMAT\",IF(tblSchMJune19[[#This Row],[Primary Account]]=4099200,\"SCHMDP\",IF(tblSchMJune19[[#This Row],[Primary Account]]=4099300,\"SCHMDT\"))))","v":"SCHMAP"},"610106","PMIFuel Tax Cr","SE",18.518999999999998,{"$f":"IF(OR(tblSchMJune19[[#This Row],[Alloc]]=\"IDU\",tblSchMJune19[[#This Row],[Alloc]]=\"OR\",tblSchMJune19[[#This Row],[Alloc]]=\"UT\",tblSchMJune19[[#This Row],[Alloc]]=\"WYU\",tblSchMJune19[[#This Row],[Alloc]]=\"WYP\",tblSchMJune19[[#This Row],[Alloc]]=\"CA\",tblSchMJune19[[#This Row],[Alloc]]=\"WA\"),\"SITUS\",tblSchMJune19[[#This Row],[Alloc]])","v":"SE"},{"$f":"INDEX(tblSchMLookup[FUNC],MATCH(tblSchMJune19[[#This Row],[Concat]],tblSchMLookup[Concat],0))","v":"P"},{"$f":"IF(tblSchMJune19[[#This Row],[Total ($000)]]=0,\"NO\",IF(ISNA(tblSchMJune19[[#This Row],[FUNC]]),\"YES\",IF(_xlfn.ISFORMULA(tblSchMJune19[[#This Row],[FUNC]]),\"NO\",\"YES\")))","v":"NO"}]
[{"$f":"CONCATENATE(tblSchMJune19[[#This Row],[Primary Account]],tblSchMJune19[[#This Row],[Primary Name]],tblSchMJune19[[#This Row],[Secondary Acct]],tblSchMJune19[[#This Row],[Secondary  Name]],tblSchMJune19[[#This Row],[Alloc4FUNC]])","v":"4098200SCHMAP610107PMI Dividend Gross Up for Foreign Tax CrSO"},4098200,{"$f":"IF(tblSchMJune19[[#This Row],[Primary Account]]=4098200,\"SCHMAP\",IF(tblSchMJune19[[#This Row],[Primary Account]]=4098300,\"SCHMAT\",IF(tblSchMJune19[[#This Row],[Primary Account]]=4099200,\"SCHMDP\",IF(tblSchMJune19[[#This Row],[Primary Account]]=4099300,\"SCHMDT\"))))","v":"SCHMAP"},"610107","PMI Dividend Gross Up for Foreign Tax Cr","SO",9.0069999999999997,{"$f":"IF(OR(tblSchMJune19[[#This Row],[Alloc]]=\"IDU\",tblSchMJune19[[#This Row],[Alloc]]=\"OR\",tblSchMJune19[[#This Row],[Alloc]]=\"UT\",tblSchMJune19[[#This Row],[Alloc]]=\"WYU\",tblSchMJune19[[#This Row],[Alloc]]=\"WYP\",tblSchMJune19[[#This Row],[Alloc]]=\"CA\",tblSchMJune19[[#This Row],[Alloc]]=\"WA\"),\"SITUS\",tblSchMJune19[[#This Row],[Alloc]])","v":"SO"},{"$f":"INDEX(tblSchMLookup[FUNC],MATCH(tblSchMJune19[[#This Row],[Concat]],tblSchMLookup[Concat],0))","v":"P"},{"$f":"IF(tblSchMJune19[[#This Row],[Total ($000)]]=0,\"NO\",IF(ISNA(tblSchMJune19[[#This Row],[FUNC]]),\"YES\",IF(_xlfn.ISFORMULA(tblSchMJune19[[#This Row],[FUNC]]),\"NO\",\"YES\")))","v":"NO"}]
[{"$f":"CONCATENATE(tblSchMJune19[[#This Row],[Primary Account]],tblSchMJune19[[#This Row],[Primary Name]],tblSchMJune19[[#This Row],[Secondary Acct]],tblSchMJune19[[#This Row],[Secondary  Name]],tblSchMJune19[[#This Row],[Alloc4FUNC]])","v":"4098200SCHMAP7201051Contra Medicare SubsidySO"},4098200,{"$f":"IF(tblSchMJune19[[#This Row],[Primary Account]]=4098200,\"SCHMAP\",IF(tblSchMJune19[[#This Row],[Primary Account]]=4098300,\"SCHMAT\",IF(tblSchMJune19[[#This Row],[Primary Account]]=4099200,\"SCHMDP\",IF(tblSchMJune19[[#This Row],[Primary Account]]=4099300,\"SCHMDT\"))))","v":"SCHMAP"},"7201051","Contra Medicare Subsidy","SO",null,{"$f":"IF(OR(tblSchMJune19[[#This Row],[Alloc]]=\"IDU\",tblSchMJune19[[#This Row],[Alloc]]=\"OR\",tblSchMJune19[[#This Row],[Alloc]]=\"UT\",tblSchMJune19[[#This Row],[Alloc]]=\"WYU\",tblSchMJune19[[#This Row],[Alloc]]=\"WYP\",tblSchMJune19[[#This Row],[Alloc]]=\"CA\",tblSchMJune19[[#This Row],[Alloc]]=\"WA\"),\"SITUS\",tblSchMJune19[[#This Row],[Alloc]])","v":"SO"},{"$f":"INDEX(tblSchMLookup[FUNC],MATCH(tblSchMJune19[[#This Row],[Concat]],tblSchMLookup[Concat],0))","v":{"$error":"#N/A"}},{"$f":"IF(tblSchMJune19[[#This Row],[Total ($000)]]=0,\"NO\",IF(ISNA(tblSchMJune19[[#This Row],[FUNC]]),\"YES\",IF(_xlfn.ISFORMULA(tblSchMJune19[[#This Row],[FUNC]]),\"NO\",\"YES\")))","v":"NO"}]
[{"$f":"CONCATENATE(tblSchMJune19[[#This Row],[Primary Account]],tblSchMJune19[[#This Row],[Primary Name]],tblSchMJune19[[#This Row],[Secondary Acct]],tblSchMJune19[[#This Row],[Secondary  Name]],tblSchMJune19[[#This Row],[Alloc4FUNC]])","v":"4098200SCHMAP920106PMI Dividend Received DeductionSE"},4098200,{"$f":"IF(tblSchMJune19[[#This Row],[Primary Account]]=4098200,\"SCHMAP\",IF(tblSchMJune19[[#This Row],[Primary Account]]=4098300,\"SCHMAT\",IF(tblSchMJune19[[#This Row],[Primary Account]]=4099200,\"SCHMDP\",IF(tblSchMJune19[[#This Row],[Primary Account]]=4099300,\"SCHMDT\"))))","v":"SCHMAP"},"920106","PMI Dividend Received Deduction","SE",null,{"$f":"IF(OR(tblSchMJune19[[#This Row],[Alloc]]=\"IDU\",tblSchMJune19[[#This Row],[Alloc]]=\"OR\",tblSchMJune19[[#This Row],[Alloc]]=\"UT\",tblSchMJune19[[#This Row],[Alloc]]=\"WYU\",tblSchMJune19[[#This Row],[Alloc]]=\"WYP\",tblSchMJune19[[#This Row],[Alloc]]=\"CA\",tblSchMJune19[[#This Row],[Alloc]]=\"WA\"),\"SITUS\",tblSchMJune19[[#This Row],[Alloc]])","v":"SE"},{"$f":"INDEX(tblSchMLookup[FUNC],MATCH(tblSchMJune19[[#This Row],[Concat]],tblSchMLookup[Concat],0))","v":{"$error":"#N/A"}},{"$f":"IF(tblSchMJune19[[#This Row],[Total ($000)]]=0,\"NO\",IF(ISNA(tblSchMJune19[[#This Row],[FUNC]]),\"YES\",IF(_xlfn.ISFORMULA(tblSchMJune19[[#This Row],[FUNC]]),\"NO\",\"YES\")))","v":"NO"}]
[{"$f":"CONCATENATE(tblSchMJune19[[#This Row],[Primary Account]],tblSchMJune19[[#This Row],[Primary Name]],tblSchMJune19[[#This Row],[Secondary Acct]],tblSchMJune19[[#This Row],[Secondary  Name]],tblSchMJune19[[#This Row],[Alloc4FUNC]])","v":"4098200SCHMAP920145PMI Mining Rescue Training Credit AddbacSE"},4098200,{"$f":"IF(tblSchMJune19[[#This Row],[Primary Account]]=4098200,\"SCHMAP\",IF(tblSchMJune19[[#This Row],[Primary Account]]=4098300,\"SCHMAT\",IF(tblSchMJune19[[#This Row],[Primary Account]]=4099200,\"SCHMDP\",IF(tblSchMJune19[[#This Row],[Primary Account]]=4099300,\"SCHMDT\"))))","v":"SCHMAP"},"920145","PMI Mining Rescue Training Credit Addbac","SE",null,{"$f":"IF(OR(tblSchMJune19[[#This Row],[Alloc]]=\"IDU\",tblSchMJune19[[#This Row],[Alloc]]=\"OR\",tblSchMJune19[[#This Row],[Alloc]]=\"UT\",tblSchMJune19[[#This Row],[Alloc]]=\"WYU\",tblSchMJune19[[#This Row],[Alloc]]=\"WYP\",tblSchMJune19[[#This Row],[Alloc]]=\"CA\",tblSchMJune19[[#This Row],[Alloc]]=\"WA\"),\"SITUS\",tblSchMJune19[[#This Row],[Alloc]])","v":"SE"},{"$f":"INDEX(tblSchMLookup[FUNC],MATCH(tblSchMJune19[[#This Row],[Concat]],tblSchMLookup[Concat],0))","v":"P"},{"$f":"IF(tblSchMJune19[[#This Row],[Total ($000)]]=0,\"NO\",IF(ISNA(tblSchMJune19[[#This Row],[FUNC]]),\"YES\",IF(_xlfn.ISFORMULA(tblSchMJune19[[#This Row],[FUNC]]),\"NO\",\"YES\")))","v":"NO"}]
[{"$f":"CONCATENATE(tblSchMJune19[[#This Row],[Primary Account]],tblSchMJune19[[#This Row],[Primary Name]],tblSchMJune19[[#This Row],[Secondary Acct]],tblSchMJune19[[#This Row],[Secondary  Name]],tblSchMJune19[[#This Row],[Alloc4FUNC]])","v":"4098300SCHMAT105100Capitalized Labor CostsSO"},4098300,{"$f":"IF(tblSchMJune19[[#This Row],[Primary Account]]=4098200,\"SCHMAP\",IF(tblSchMJune19[[#This Row],[Primary Account]]=4098300,\"SCHMAT\",IF(tblSchMJune19[[#This Row],[Primary Account]]=4099200,\"SCHMDP\",IF(tblSchMJune19[[#This Row],[Primary Account]]=4099300,\"SCHMDT\"))))","v":"SCHMAT"},"105100","Capitalized Labor Costs","SO",1987.0444399999999,{"$f":"IF(OR(tblSchMJune19[[#This Row],[Alloc]]=\"IDU\",tblSchMJune19[[#This Row],[Alloc]]=\"OR\",tblSchMJune19[[#This Row],[Alloc]]=\"UT\",tblSchMJune19[[#This Row],[Alloc]]=\"WYU\",tblSchMJune19[[#This Row],[Alloc]]=\"WYP\",tblSchMJune19[[#This Row],[Alloc]]=\"CA\",tblSchMJune19[[#This Row],[Alloc]]=\"WA\"),\"SITUS\",tblSchMJune19[[#This Row],[Alloc]])","v":"SO"},{"$f":"INDEX(tblSchMLookup[FUNC],MATCH(tblSchMJune19[[#This Row],[Concat]],tblSchMLookup[Concat],0))","v":"LABOR"},{"$f":"IF(tblSchMJune19[[#This Row],[Total ($000)]]=0,\"NO\",IF(ISNA(tblSchMJune19[[#This Row],[FUNC]]),\"YES\",IF(_xlfn.ISFORMULA(tblSchMJune19[[#This Row],[FUNC]]),\"NO\",\"YES\")))","v":"NO"}]
[{"$f":"CONCATENATE(tblSchMJune19[[#This Row],[Primary Account]],tblSchMJune19[[#This Row],[Primary Name]],tblSchMJune19[[#This Row],[Secondary Acct]],tblSchMJune19[[#This Row],[Secondary  Name]],tblSchMJune19[[#This Row],[Alloc4FUNC]])","v":"4098300SCHMAT105120Book DepreciationSCHMDEXP"},4098300,{"$f":"IF(tblSchMJune19[[#This Row],[Primary Account]]=4098200,\"SCHMAP\",IF(tblSchMJune19[[#This Row],[Primary Account]]=4098300,\"SCHMAT\",IF(tblSchMJune19[[#This Row],[Primary Account]]=4099200,\"SCHMDP\",IF(tblSchMJune19[[#This Row],[Primary Account]]=4099300,\"SCHMDT\"))))","v":"SCHMAT"},"105120","Book Depreciation","SCHMDEXP",984007.98239999998,{"$f":"IF(OR(tblSchMJune19[[#This Row],[Alloc]]=\"IDU\",tblSchMJune19[[#This Row],[Alloc]]=\"OR\",tblSchMJune19[[#This Row],[Alloc]]=\"UT\",tblSchMJune19[[#This Row],[Alloc]]=\"WYU\",tblSchMJune19[[#This Row],[Alloc]]=\"WYP\",tblSchMJune19[[#This Row],[Alloc]]=\"CA\",tblSchMJune19[[#This Row],[Alloc]]=\"WA\"),\"SITUS\",tblSchMJune19[[#This Row],[Alloc]])","v":"SCHMDEXP"},{"$f":"INDEX(tblSchMLookup[FUNC],MATCH(tblSchMJune19[[#This Row],[Concat]],tblSchMLookup[Concat],0))","v":"GP"},{"$f":"IF(tblSchMJune19[[#This Row],[Total ($000)]]=0,\"NO\",IF(ISNA(tblSchMJune19[[#This Row],[FUNC]]),\"YES\",IF(_xlfn.ISFORMULA(tblSchMJune19[[#This Row],[FUNC]]),\"NO\",\"YES\")))","v":"NO"}]
[{"$f":"CONCATENATE(tblSchMJune19[[#This Row],[Primary Account]],tblSchMJune19[[#This Row],[Primary Name]],tblSchMJune19[[#This Row],[Secondary Acct]],tblSchMJune19[[#This Row],[Secondary  Name]],tblSchMJune19[[#This Row],[Alloc4FUNC]])","v":"4098300SCHMAT105121PMIBook DepreciationSE"},4098300,{"$f":"IF(tblSchMJune19[[#This Row],[Primary Account]]=4098200,\"SCHMAP\",IF(tblSchMJune19[[#This Row],[Primary Account]]=4098300,\"SCHMAT\",IF(tblSchMJune19[[#This Row],[Primary Account]]=4099200,\"SCHMDP\",IF(tblSchMJune19[[#This Row],[Primary Account]]=4099300,\"SCHMDT\"))))","v":"SCHMAT"},"105121","PMIBook Depreciation","SE",16620.850999999999,{"$f":"IF(OR(tblSchMJune19[[#This Row],[Alloc]]=\"IDU\",tblSchMJune19[[#This Row],[Alloc]]=\"OR\",tblSchMJune19[[#This Row],[Alloc]]=\"UT\",tblSchMJune19[[#This Row],[Alloc]]=\"WYU\",tblSchMJune19[[#This Row],[Alloc]]=\"WYP\",tblSchMJune19[[#This Row],[Alloc]]=\"CA\",tblSchMJune19[[#This Row],[Alloc]]=\"WA\"),\"SITUS\",tblSchMJune19[[#This Row],[Alloc]])","v":"SE"},{"$f":"INDEX(tblSchMLookup[FUNC],MATCH(tblSchMJune19[[#This Row],[Concat]],tblSchMLookup[Concat],0))","v":"P"},{"$f":"IF(tblSchMJune19[[#This Row],[Total ($000)]]=0,\"NO\",IF(ISNA(tblSchMJune19[[#This Row],[FUNC]]),\"YES\",IF(_xlfn.ISFORMULA(tblSchMJune19[[#This Row],[FUNC]]),\"NO\",\"YES\")))","v":"NO"}]
[{"$f":"CONCATENATE(tblSchMJune19[[#This Row],[Primary Account]],tblSchMJune19[[#This Row],[Primary Name]],tblSchMJune19[[#This Row],[Secondary Acct]],tblSchMJune19[[#This Row],[Secondary  Name]],tblSchMJune19[[#This Row],[Alloc4FUNC]])","v":"4098300SCHMAT105123Sec. 481a Adj - Repair DeductionSG"},4098300,{"$f":"IF(tblSchMJune19[[#This Row],[Primary Account]]=4098200,\"SCHMAP\",IF(tblSchMJune19[[#This Row],[Primary Account]]=4098300,\"SCHMAT\",IF(tblSchMJune19[[#This Row],[Primary Account]]=4099200,\"SCHMDP\",IF(tblSchMJune19[[#This Row],[Primary Account]]=4099300,\"SCHMDT\"))))","v":"SCHMAT"},"105123","Sec. 481a Adj - Repair Deduction","SG",null,{"$f":"IF(OR(tblSchMJune19[[#This Row],[Alloc]]=\"IDU\",tblSchMJune19[[#This Row],[Alloc]]=\"OR\",tblSchMJune19[[#This Row],[Alloc]]=\"UT\",tblSchMJune19[[#This Row],[Alloc]]=\"WYU\",tblSchMJune19[[#This Row],[Alloc]]=\"WYP\",tblSchMJune19[[#This Row],[Alloc]]=\"CA\",tblSchMJune19[[#This Row],[Alloc]]=\"WA\"),\"SITUS\",tblSchMJune19[[#This Row],[Alloc]])","v":"SG"},{"$f":"INDEX(tblSchMLookup[FUNC],MATCH(tblSchMJune19[[#This Row],[Concat]],tblSchMLookup[Concat],0))","v":{"$error":"#N/A"}},{"$f":"IF(tblSchMJune19[[#This Row],[Total ($000)]]=0,\"NO\",IF(ISNA(tblSchMJune19[[#This Row],[FUNC]]),\"YES\",IF(_xlfn.ISFORMULA(tblSchMJune19[[#This Row],[FUNC]]),\"NO\",\"YES\")))","v":"NO"}]
[{"$f":"CONCATENATE(tblSchMJune19[[#This Row],[Primary Account]],tblSchMJune19[[#This Row],[Primary Name]],tblSchMJune19[[#This Row],[Secondary Acct]],tblSchMJune19[[#This Row],[Secondary  Name]],tblSchMJune19[[#This Row],[Alloc4FUNC]])","v":"4098300SCHMAT105130CIACCIAC"},4098300,{"$f":"IF(tblSchMJune19[[#This Row],[Primary Account]]=4098200,\"SCHMAP\",IF(tblSchMJune19[[#This Row],[Primary Account]]=4098300,\"SCHMAT\",IF(tblSchMJune19[[#This Row],[Primary Account]]=4099200,\"SCHMDP\",IF(tblSchMJune19[[#This Row],[Primary Account]]=4099300,\"SCHMDT\"))))","v":"SCHMAT"},"105130","CIAC","CIAC",103001.23149999999,{"$f":"IF(OR(tblSchMJune19[[#This Row],[Alloc]]=\"IDU\",tblSchMJune19[[#This Row],[Alloc]]=\"OR\",tblSchMJune19[[#This Row],[Alloc]]=\"UT\",tblSchMJune19[[#This Row],[Alloc]]=\"WYU\",tblSchMJune19[[#This Row],[Alloc]]=\"WYP\",tblSchMJune19[[#This Row],[Alloc]]=\"CA\",tblSchMJune19[[#This Row],[Alloc]]=\"WA\"),\"SITUS\",tblSchMJune19[[#This Row],[Alloc]])","v":"CIAC"},{"$f":"INDEX(tblSchMLookup[FUNC],MATCH(tblSchMJune19[[#This Row],[Concat]],tblSchMLookup[Concat],0))","v":"DPW"},{"$f":"IF(tblSchMJune19[[#This Row],[Total ($000)]]=0,\"NO\",IF(ISNA(tblSchMJune19[[#This Row],[FUNC]]),\"YES\",IF(_xlfn.ISFORMULA(tblSchMJune19[[#This Row],[FUNC]]),\"NO\",\"YES\")))","v":"NO"}]
[{"$f":"CONCATENATE(tblSchMJune19[[#This Row],[Primary Account]],tblSchMJune19[[#This Row],[Primary Name]],tblSchMJune19[[#This Row],[Secondary Acct]],tblSchMJune19[[#This Row],[Secondary  Name]],tblSchMJune19[[#This Row],[Alloc4FUNC]])","v":"4098300SCHMAT105137Auto DepreciationSO"},4098300,{"$f":"IF(tblSchMJune19[[#This Row],[Primary Account]]=4098200,\"SCHMAP\",IF(tblSchMJune19[[#This Row],[Primary Account]]=4098300,\"SCHMAT\",IF(tblSchMJune19[[#This Row],[Primary Account]]=4099200,\"SCHMDP\",IF(tblSchMJune19[[#This Row],[Primary Account]]=4099300,\"SCHMDT\"))))","v":"SCHMAT"},"105137","Auto Depreciation","SO",null,{"$f":"IF(OR(tblSchMJune19[[#This Row],[Alloc]]=\"IDU\",tblSchMJune19[[#This Row],[Alloc]]=\"OR\",tblSchMJune19[[#This Row],[Alloc]]=\"UT\",tblSchMJune19[[#This Row],[Alloc]]=\"WYU\",tblSchMJune19[[#This Row],[Alloc]]=\"WYP\",tblSchMJune19[[#This Row],[Alloc]]=\"CA\",tblSchMJune19[[#This Row],[Alloc]]=\"WA\"),\"SITUS\",tblSchMJune19[[#This Row],[Alloc]])","v":"SO"},{"$f":"INDEX(tblSchMLookup[FUNC],MATCH(tblSchMJune19[[#This Row],[Concat]],tblSchMLookup[Concat],0))","v":{"$error":"#N/A"}},{"$f":"IF(tblSchMJune19[[#This Row],[Total ($000)]]=0,\"NO\",IF(ISNA(tblSchMJune19[[#This Row],[FUNC]]),\"YES\",IF(_xlfn.ISFORMULA(tblSchMJune19[[#This Row],[FUNC]]),\"NO\",\"YES\")))","v":"NO"}]
[{"$f":"CONCATENATE(tblSchMJune19[[#This Row],[Primary Account]],tblSchMJune19[[#This Row],[Primary Name]],tblSchMJune19[[#This Row],[Secondary Acct]],tblSchMJune19[[#This Row],[Secondary  Name]],tblSchMJune19[[#This Row],[Alloc4FUNC]])","v":"4098300SCHMAT105140Highway relocationSNPD"},4098300,{"$f":"IF(tblSchMJune19[[#This Row],[Primary Account]]=4098200,\"SCHMAP\",IF(tblSchMJune19[[#This Row],[Primary Account]]=4098300,\"SCHMAT\",IF(tblSchMJune19[[#This Row],[Primary Account]]=4099200,\"SCHMDP\",IF(tblSchMJune19[[#This Row],[Primary Account]]=4099300,\"SCHMDT\"))))","v":"SCHMAT"},"105140","Highway relocation","SNPD",2098.8620000000001,{"$f":"IF(OR(tblSchMJune19[[#This Row],[Alloc]]=\"IDU\",tblSchMJune19[[#This Row],[Alloc]]=\"OR\",tblSchMJune19[[#This Row],[Alloc]]=\"UT\",tblSchMJune19[[#This Row],[Alloc]]=\"WYU\",tblSchMJune19[[#This Row],[Alloc]]=\"WYP\",tblSchMJune19[[#This Row],[Alloc]]=\"CA\",tblSchMJune19[[#This Row],[Alloc]]=\"WA\"),\"SITUS\",tblSchMJune19[[#This Row],[Alloc]])","v":"SNPD"},{"$f":"INDEX(tblSchMLookup[FUNC],MATCH(tblSchMJune19[[#This Row],[Concat]],tblSchMLookup[Concat],0))","v":"DPW"},{"$f":"IF(tblSchMJune19[[#This Row],[Total ($000)]]=0,\"NO\",IF(ISNA(tblSchMJune19[[#This Row],[FUNC]]),\"YES\",IF(_xlfn.ISFORMULA(tblSchMJune19[[#This Row],[FUNC]]),\"NO\",\"YES\")))","v":"NO"}]
[{"$f":"CONCATENATE(tblSchMJune19[[#This Row],[Primary Account]],tblSchMJune19[[#This Row],[Primary Name]],tblSchMJune19[[#This Row],[Secondary Acct]],tblSchMJune19[[#This Row],[Secondary  Name]],tblSchMJune19[[#This Row],[Alloc4FUNC]])","v":"4098300SCHMAT105142Avoided CostsSNP"},4098300,{"$f":"IF(tblSchMJune19[[#This Row],[Primary Account]]=4098200,\"SCHMAP\",IF(tblSchMJune19[[#This Row],[Primary Account]]=4098300,\"SCHMAT\",IF(tblSchMJune19[[#This Row],[Primary Account]]=4099200,\"SCHMDP\",IF(tblSchMJune19[[#This Row],[Primary Account]]=4099300,\"SCHMDT\"))))","v":"SCHMAT"},"105142","Avoided Costs","SNP",41261.750999999997,{"$f":"IF(OR(tblSchMJune19[[#This Row],[Alloc]]=\"IDU\",tblSchMJune19[[#This Row],[Alloc]]=\"OR\",tblSchMJune19[[#This Row],[Alloc]]=\"UT\",tblSchMJune19[[#This Row],[Alloc]]=\"WYU\",tblSchMJune19[[#This Row],[Alloc]]=\"WYP\",tblSchMJune19[[#This Row],[Alloc]]=\"CA\",tblSchMJune19[[#This Row],[Alloc]]=\"WA\"),\"SITUS\",tblSchMJune19[[#This Row],[Alloc]])","v":"SNP"},{"$f":"INDEX(tblSchMLookup[FUNC],MATCH(tblSchMJune19[[#This Row],[Concat]],tblSchMLookup[Concat],0))","v":"PTD"},{"$f":"IF(tblSchMJune19[[#This Row],[Total ($000)]]=0,\"NO\",IF(ISNA(tblSchMJune19[[#This Row],[FUNC]]),\"YES\",IF(_xlfn.ISFORMULA(tblSchMJune19[[#This Row],[FUNC]]),\"NO\",\"YES\")))","v":"NO"}]
[{"$f":"CONCATENATE(tblSchMJune19[[#This Row],[Primary Account]],tblSchMJune19[[#This Row],[Primary Name]],tblSchMJune19[[#This Row],[Secondary Acct]],tblSchMJune19[[#This Row],[Secondary  Name]],tblSchMJune19[[#This Row],[Alloc4FUNC]])","v":"4098300SCHMAT105145Acquisition Adjustment AmortSG"},4098300,{"$f":"IF(tblSchMJune19[[#This Row],[Primary Account]]=4098200,\"SCHMAP\",IF(tblSchMJune19[[#This Row],[Primary Account]]=4098300,\"SCHMAT\",IF(tblSchMJune19[[#This Row],[Primary Account]]=4099200,\"SCHMDP\",IF(tblSchMJune19[[#This Row],[Primary Account]]=4099300,\"SCHMDT\"))))","v":"SCHMAT"},"105145","Acquisition Adjustment Amort","SG",null,{"$f":"IF(OR(tblSchMJune19[[#This Row],[Alloc]]=\"IDU\",tblSchMJune19[[#This Row],[Alloc]]=\"OR\",tblSchMJune19[[#This Row],[Alloc]]=\"UT\",tblSchMJune19[[#This Row],[Alloc]]=\"WYU\",tblSchMJune19[[#This Row],[Alloc]]=\"WYP\",tblSchMJune19[[#This Row],[Alloc]]=\"CA\",tblSchMJune19[[#This Row],[Alloc]]=\"WA\"),\"SITUS\",tblSchMJune19[[#This Row],[Alloc]])","v":"SG"},{"$f":"INDEX(tblSchMLookup[FUNC],MATCH(tblSchMJune19[[#This Row],[Concat]],tblSchMLookup[Concat],0))","v":{"$error":"#N/A"}},{"$f":"IF(tblSchMJune19[[#This Row],[Total ($000)]]=0,\"NO\",IF(ISNA(tblSchMJune19[[#This Row],[FUNC]]),\"YES\",IF(_xlfn.ISFORMULA(tblSchMJune19[[#This Row],[FUNC]]),\"NO\",\"YES\")))","v":"NO"}]
[{"$f":"CONCATENATE(tblSchMJune19[[#This Row],[Primary Account]],tblSchMJune19[[#This Row],[Primary Name]],tblSchMJune19[[#This Row],[Secondary Acct]],tblSchMJune19[[#This Row],[Secondary  Name]],tblSchMJune19[[#This Row],[Alloc4FUNC]])","v":"4098300SCHMAT105146Capitalization of Test EnergySG"},4098300,{"$f":"IF(tblSchMJune19[[#This Row],[Primary Account]]=4098200,\"SCHMAP\",IF(tblSchMJune19[[#This Row],[Primary Account]]=4098300,\"SCHMAT\",IF(tblSchMJune19[[#This Row],[Primary Account]]=4099200,\"SCHMDP\",IF(tblSchMJune19[[#This Row],[Primary Account]]=4099300,\"SCHMDT\"))))","v":"SCHMAT"},"105146","Capitalization of Test Energy","SG",null,{"$f":"IF(OR(tblSchMJune19[[#This Row],[Alloc]]=\"IDU\",tblSchMJune19[[#This Row],[Alloc]]=\"OR\",tblSchMJune19[[#This Row],[Alloc]]=\"UT\",tblSchMJune19[[#This Row],[Alloc]]=\"WYU\",tblSchMJune19[[#This Row],[Alloc]]=\"WYP\",tblSchMJune19[[#This Row],[Alloc]]=\"CA\",tblSchMJune19[[#This Row],[Alloc]]=\"WA\"),\"SITUS\",tblSchMJune19[[#This Row],[Alloc]])","v":"SG"},{"$f":"INDEX(tblSchMLookup[FUNC],MATCH(tblSchMJune19[[#This Row],[Concat]],tblSchMLookup[Concat],0))","v":{"$error":"#N/A"}},{"$f":"IF(tblSchMJune19[[#This Row],[Total ($000)]]=0,\"NO\",IF(ISNA(tblSchMJune19[[#This Row],[FUNC]]),\"YES\",IF(_xlfn.ISFORMULA(tblSchMJune19[[#This Row],[FUNC]]),\"NO\",\"YES\")))","v":"NO"}]
[{"$f":"CONCATENATE(tblSchMJune19[[#This Row],[Primary Account]],tblSchMJune19[[#This Row],[Primary Name]],tblSchMJune19[[#This Row],[Secondary Acct]],tblSchMJune19[[#This Row],[Secondary  Name]],tblSchMJune19[[#This Row],[Alloc4FUNC]])","v":"4098300SCHMAT105147Sec 1031 Like Kind ExchangeSO"},4098300,{"$f":"IF(tblSchMJune19[[#This Row],[Primary Account]]=4098200,\"SCHMAP\",IF(tblSchMJune19[[#This Row],[Primary Account]]=4098300,\"SCHMAT\",IF(tblSchMJune19[[#This Row],[Primary Account]]=4099200,\"SCHMDP\",IF(tblSchMJune19[[#This Row],[Primary Account]]=4099300,\"SCHMDT\"))))","v":"SCHMAT"},"105147","Sec 1031 Like Kind Exchange","SO",null,{"$f":"IF(OR(tblSchMJune19[[#This Row],[Alloc]]=\"IDU\",tblSchMJune19[[#This Row],[Alloc]]=\"OR\",tblSchMJune19[[#This Row],[Alloc]]=\"UT\",tblSchMJune19[[#This Row],[Alloc]]=\"WYU\",tblSchMJune19[[#This Row],[Alloc]]=\"WYP\",tblSchMJune19[[#This Row],[Alloc]]=\"CA\",tblSchMJune19[[#This Row],[Alloc]]=\"WA\"),\"SITUS\",tblSchMJune19[[#This Row],[Alloc]])","v":"SO"},{"$f":"INDEX(tblSchMLookup[FUNC],MATCH(tblSchMJune19[[#This Row],[Concat]],tblSchMLookup[Concat],0))","v":{"$error":"#N/A"}},{"$f":"IF(tblSchMJune19[[#This Row],[Total ($000)]]=0,\"NO\",IF(ISNA(tblSchMJune19[[#This Row],[FUNC]]),\"YES\",IF(_xlfn.ISFORMULA(tblSchMJune19[[#This Row],[FUNC]]),\"NO\",\"YES\")))","v":"NO"}]
[{"$f":"CONCATENATE(tblSchMJune19[[#This Row],[Primary Account]],tblSchMJune19[[#This Row],[Primary Name]],tblSchMJune19[[#This Row],[Secondary Acct]],tblSchMJune19[[#This Row],[Secondary  Name]],tblSchMJune19[[#This Row],[Alloc4FUNC]])","v":"4098300SCHMAT105165Coal Mine DevelopmentSE"},4098300,{"$f":"IF(tblSchMJune19[[#This Row],[Primary Account]]=4098200,\"SCHMAP\",IF(tblSchMJune19[[#This Row],[Primary Account]]=4098300,\"SCHMAT\",IF(tblSchMJune19[[#This Row],[Primary Account]]=4099200,\"SCHMDP\",IF(tblSchMJune19[[#This Row],[Primary Account]]=4099300,\"SCHMDT\"))))","v":"SCHMAT"},"105165","Coal Mine Development","SE",null,{"$f":"IF(OR(tblSchMJune19[[#This Row],[Alloc]]=\"IDU\",tblSchMJune19[[#This Row],[Alloc]]=\"OR\",tblSchMJune19[[#This Row],[Alloc]]=\"UT\",tblSchMJune19[[#This Row],[Alloc]]=\"WYU\",tblSchMJune19[[#This Row],[Alloc]]=\"WYP\",tblSchMJune19[[#This Row],[Alloc]]=\"CA\",tblSchMJune19[[#This Row],[Alloc]]=\"WA\"),\"SITUS\",tblSchMJune19[[#This Row],[Alloc]])","v":"SE"},{"$f":"INDEX(tblSchMLookup[FUNC],MATCH(tblSchMJune19[[#This Row],[Concat]],tblSchMLookup[Concat],0))","v":{"$error":"#N/A"}},{"$f":"IF(tblSchMJune19[[#This Row],[Total ($000)]]=0,\"NO\",IF(ISNA(tblSchMJune19[[#This Row],[FUNC]]),\"YES\",IF(_xlfn.ISFORMULA(tblSchMJune19[[#This Row],[FUNC]]),\"NO\",\"YES\")))","v":"NO"}]
[{"$f":"CONCATENATE(tblSchMJune19[[#This Row],[Primary Account]],tblSchMJune19[[#This Row],[Primary Name]],tblSchMJune19[[#This Row],[Secondary Acct]],tblSchMJune19[[#This Row],[Secondary  Name]],tblSchMJune19[[#This Row],[Alloc4FUNC]])","v":"4098300SCHMAT105170Coal Mine Receding Face (Extension)SE"},4098300,{"$f":"IF(tblSchMJune19[[#This Row],[Primary Account]]=4098200,\"SCHMAP\",IF(tblSchMJune19[[#This Row],[Primary Account]]=4098300,\"SCHMAT\",IF(tblSchMJune19[[#This Row],[Primary Account]]=4099200,\"SCHMDP\",IF(tblSchMJune19[[#This Row],[Primary Account]]=4099300,\"SCHMDT\"))))","v":"SCHMAT"},"105170","Coal Mine Receding Face (Extension)","SE",null,{"$f":"IF(OR(tblSchMJune19[[#This Row],[Alloc]]=\"IDU\",tblSchMJune19[[#This Row],[Alloc]]=\"OR\",tblSchMJune19[[#This Row],[Alloc]]=\"UT\",tblSchMJune19[[#This Row],[Alloc]]=\"WYU\",tblSchMJune19[[#This Row],[Alloc]]=\"WYP\",tblSchMJune19[[#This Row],[Alloc]]=\"CA\",tblSchMJune19[[#This Row],[Alloc]]=\"WA\"),\"SITUS\",tblSchMJune19[[#This Row],[Alloc]])","v":"SE"},{"$f":"INDEX(tblSchMLookup[FUNC],MATCH(tblSchMJune19[[#This Row],[Concat]],tblSchMLookup[Concat],0))","v":{"$error":"#N/A"}},{"$f":"IF(tblSchMJune19[[#This Row],[Total ($000)]]=0,\"NO\",IF(ISNA(tblSchMJune19[[#This Row],[FUNC]]),\"YES\",IF(_xlfn.ISFORMULA(tblSchMJune19[[#This Row],[FUNC]]),\"NO\",\"YES\")))","v":"NO"}]
[{"$f":"CONCATENATE(tblSchMJune19[[#This Row],[Primary Account]],tblSchMJune19[[#This Row],[Primary Name]],tblSchMJune19[[#This Row],[Secondary Acct]],tblSchMJune19[[#This Row],[Secondary  Name]],tblSchMJune19[[#This Row],[Alloc4FUNC]])","v":"4098300SCHMAT105180Steam Rts Blundell Geothml Bk DeprSG"},4098300,{"$f":"IF(tblSchMJune19[[#This Row],[Primary Account]]=4098200,\"SCHMAP\",IF(tblSchMJune19[[#This Row],[Primary Account]]=4098300,\"SCHMAT\",IF(tblSchMJune19[[#This Row],[Primary Account]]=4099200,\"SCHMDP\",IF(tblSchMJune19[[#This Row],[Primary Account]]=4099300,\"SCHMDT\"))))","v":"SCHMAT"},"105180","Steam Rts Blundell Geothml Bk Depr","SG",null,{"$f":"IF(OR(tblSchMJune19[[#This Row],[Alloc]]=\"IDU\",tblSchMJune19[[#This Row],[Alloc]]=\"OR\",tblSchMJune19[[#This Row],[Alloc]]=\"UT\",tblSchMJune19[[#This Row],[Alloc]]=\"WYU\",tblSchMJune19[[#This Row],[Alloc]]=\"WYP\",tblSchMJune19[[#This Row],[Alloc]]=\"CA\",tblSchMJune19[[#This Row],[Alloc]]=\"WA\"),\"SITUS\",tblSchMJune19[[#This Row],[Alloc]])","v":"SG"},{"$f":"INDEX(tblSchMLookup[FUNC],MATCH(tblSchMJune19[[#This Row],[Concat]],tblSchMLookup[Concat],0))","v":{"$error":"#N/A"}},{"$f":"IF(tblSchMJune19[[#This Row],[Total ($000)]]=0,\"NO\",IF(ISNA(tblSchMJune19[[#This Row],[FUNC]]),\"YES\",IF(_xlfn.ISFORMULA(tblSchMJune19[[#This Row],[FUNC]]),\"NO\",\"YES\")))","v":"NO"}]
[{"$f":"CONCATENATE(tblSchMJune19[[#This Row],[Primary Account]],tblSchMJune19[[#This Row],[Primary Name]],tblSchMJune19[[#This Row],[Secondary Acct]],tblSchMJune19[[#This Row],[Secondary  Name]],tblSchMJune19[[#This Row],[Alloc4FUNC]])","v":"4098300SCHMAT105205Coal Mine Development-30%AmortSE"},4098300,{"$f":"IF(tblSchMJune19[[#This Row],[Primary Account]]=4098200,\"SCHMAP\",IF(tblSchMJune19[[#This Row],[Primary Account]]=4098300,\"SCHMAT\",IF(tblSchMJune19[[#This Row],[Primary Account]]=4099200,\"SCHMDP\",IF(tblSchMJune19[[#This Row],[Primary Account]]=4099300,\"SCHMDT\"))))","v":"SCHMAT"},"105205","Coal Mine Development-30%Amort","SE",null,{"$f":"IF(OR(tblSchMJune19[[#This Row],[Alloc]]=\"IDU\",tblSchMJune19[[#This Row],[Alloc]]=\"OR\",tblSchMJune19[[#This Row],[Alloc]]=\"UT\",tblSchMJune19[[#This Row],[Alloc]]=\"WYU\",tblSchMJune19[[#This Row],[Alloc]]=\"WYP\",tblSchMJune19[[#This Row],[Alloc]]=\"CA\",tblSchMJune19[[#This Row],[Alloc]]=\"WA\"),\"SITUS\",tblSchMJune19[[#This Row],[Alloc]])","v":"SE"},{"$f":"INDEX(tblSchMLookup[FUNC],MATCH(tblSchMJune19[[#This Row],[Concat]],tblSchMLookup[Concat],0))","v":{"$error":"#N/A"}},{"$f":"IF(tblSchMJune19[[#This Row],[Total ($000)]]=0,\"NO\",IF(ISNA(tblSchMJune19[[#This Row],[FUNC]]),\"YES\",IF(_xlfn.ISFORMULA(tblSchMJune19[[#This Row],[FUNC]]),\"NO\",\"YES\")))","v":"NO"}]
[{"$f":"CONCATENATE(tblSchMJune19[[#This Row],[Primary Account]],tblSchMJune19[[#This Row],[Primary Name]],tblSchMJune19[[#This Row],[Secondary Acct]],tblSchMJune19[[#This Row],[Secondary  Name]],tblSchMJune19[[#This Row],[Alloc4FUNC]])","v":"4098300SCHMAT105471UT Kalamath Relicensing CostsOTHER"},4098300,{"$f":"IF(tblSchMJune19[[#This Row],[Primary Account]]=4098200,\"SCHMAP\",IF(tblSchMJune19[[#This Row],[Primary Account]]=4098300,\"SCHMAT\",IF(tblSchMJune19[[#This Row],[Primary Account]]=4099200,\"SCHMDP\",IF(tblSchMJune19[[#This Row],[Primary Account]]=4099300,\"SCHMDT\"))))","v":"SCHMAT"},"105471","UT Kalamath Relicensing Costs","OTHER",null,{"$f":"IF(OR(tblSchMJune19[[#This Row],[Alloc]]=\"IDU\",tblSchMJune19[[#This Row],[Alloc]]=\"OR\",tblSchMJune19[[#This Row],[Alloc]]=\"UT\",tblSchMJune19[[#This Row],[Alloc]]=\"WYU\",tblSchMJune19[[#This Row],[Alloc]]=\"WYP\",tblSchMJune19[[#This Row],[Alloc]]=\"CA\",tblSchMJune19[[#This Row],[Alloc]]=\"WA\"),\"SITUS\",tblSchMJune19[[#This Row],[Alloc]])","v":"OTHER"},{"$f":"INDEX(tblSchMLookup[FUNC],MATCH(tblSchMJune19[[#This Row],[Concat]],tblSchMLookup[Concat],0))","v":{"$error":"#N/A"}},{"$f":"IF(tblSchMJune19[[#This Row],[Total ($000)]]=0,\"NO\",IF(ISNA(tblSchMJune19[[#This Row],[FUNC]]),\"YES\",IF(_xlfn.ISFORMULA(tblSchMJune19[[#This Row],[FUNC]]),\"NO\",\"YES\")))","v":"NO"}]
[{"$f":"CONCATENATE(tblSchMJune19[[#This Row],[Primary Account]],tblSchMJune19[[#This Row],[Primary Name]],tblSchMJune19[[#This Row],[Secondary Acct]],tblSchMJune19[[#This Row],[Secondary  Name]],tblSchMJune19[[#This Row],[Alloc4FUNC]])","v":"4098300SCHMAT110100Book Cost DepletionSE"},4098300,{"$f":"IF(tblSchMJune19[[#This Row],[Primary Account]]=4098200,\"SCHMAP\",IF(tblSchMJune19[[#This Row],[Primary Account]]=4098300,\"SCHMAT\",IF(tblSchMJune19[[#This Row],[Primary Account]]=4099200,\"SCHMDP\",IF(tblSchMJune19[[#This Row],[Primary Account]]=4099300,\"SCHMDT\"))))","v":"SCHMAT"},"110100","Book Cost Depletion","SE",null,{"$f":"IF(OR(tblSchMJune19[[#This Row],[Alloc]]=\"IDU\",tblSchMJune19[[#This Row],[Alloc]]=\"OR\",tblSchMJune19[[#This Row],[Alloc]]=\"UT\",tblSchMJune19[[#This Row],[Alloc]]=\"WYU\",tblSchMJune19[[#This Row],[Alloc]]=\"WYP\",tblSchMJune19[[#This Row],[Alloc]]=\"CA\",tblSchMJune19[[#This Row],[Alloc]]=\"WA\"),\"SITUS\",tblSchMJune19[[#This Row],[Alloc]])","v":"SE"},{"$f":"INDEX(tblSchMLookup[FUNC],MATCH(tblSchMJune19[[#This Row],[Concat]],tblSchMLookup[Concat],0))","v":{"$error":"#N/A"}},{"$f":"IF(tblSchMJune19[[#This Row],[Total ($000)]]=0,\"NO\",IF(ISNA(tblSchMJune19[[#This Row],[FUNC]]),\"YES\",IF(_xlfn.ISFORMULA(tblSchMJune19[[#This Row],[FUNC]]),\"NO\",\"YES\")))","v":"NO"}]
[{"$f":"CONCATENATE(tblSchMJune19[[#This Row],[Primary Account]],tblSchMJune19[[#This Row],[Primary Name]],tblSchMJune19[[#This Row],[Secondary Acct]],tblSchMJune19[[#This Row],[Secondary  Name]],tblSchMJune19[[#This Row],[Alloc4FUNC]])","v":"4098300SCHMAT110105SRC Book Depletion step up basis adjSG"},4098300,{"$f":"IF(tblSchMJune19[[#This Row],[Primary Account]]=4098200,\"SCHMAP\",IF(tblSchMJune19[[#This Row],[Primary Account]]=4098300,\"SCHMAT\",IF(tblSchMJune19[[#This Row],[Primary Account]]=4099200,\"SCHMDP\",IF(tblSchMJune19[[#This Row],[Primary Account]]=4099300,\"SCHMDT\"))))","v":"SCHMAT"},"110105","SRC Book Depletion step up basis adj","SG",null,{"$f":"IF(OR(tblSchMJune19[[#This Row],[Alloc]]=\"IDU\",tblSchMJune19[[#This Row],[Alloc]]=\"OR\",tblSchMJune19[[#This Row],[Alloc]]=\"UT\",tblSchMJune19[[#This Row],[Alloc]]=\"WYU\",tblSchMJune19[[#This Row],[Alloc]]=\"WYP\",tblSchMJune19[[#This Row],[Alloc]]=\"CA\",tblSchMJune19[[#This Row],[Alloc]]=\"WA\"),\"SITUS\",tblSchMJune19[[#This Row],[Alloc]])","v":"SG"},{"$f":"INDEX(tblSchMLookup[FUNC],MATCH(tblSchMJune19[[#This Row],[Concat]],tblSchMLookup[Concat],0))","v":{"$error":"#N/A"}},{"$f":"IF(tblSchMJune19[[#This Row],[Total ($000)]]=0,\"NO\",IF(ISNA(tblSchMJune19[[#This Row],[FUNC]]),\"YES\",IF(_xlfn.ISFORMULA(tblSchMJune19[[#This Row],[FUNC]]),\"NO\",\"YES\")))","v":"NO"}]
[{"$f":"CONCATENATE(tblSchMJune19[[#This Row],[Primary Account]],tblSchMJune19[[#This Row],[Primary Name]],tblSchMJune19[[#This Row],[Secondary Acct]],tblSchMJune19[[#This Row],[Secondary  Name]],tblSchMJune19[[#This Row],[Alloc4FUNC]])","v":"4098300SCHMAT1101051SRC Book Cost DepletionSG"},4098300,{"$f":"IF(tblSchMJune19[[#This Row],[Primary Account]]=4098200,\"SCHMAP\",IF(tblSchMJune19[[#This Row],[Primary Account]]=4098300,\"SCHMAT\",IF(tblSchMJune19[[#This Row],[Primary Account]]=4099200,\"SCHMDP\",IF(tblSchMJune19[[#This Row],[Primary Account]]=4099300,\"SCHMDT\"))))","v":"SCHMAT"},"1101051","SRC Book Cost Depletion","SG",null,{"$f":"IF(OR(tblSchMJune19[[#This Row],[Alloc]]=\"IDU\",tblSchMJune19[[#This Row],[Alloc]]=\"OR\",tblSchMJune19[[#This Row],[Alloc]]=\"UT\",tblSchMJune19[[#This Row],[Alloc]]=\"WYU\",tblSchMJune19[[#This Row],[Alloc]]=\"WYP\",tblSchMJune19[[#This Row],[Alloc]]=\"CA\",tblSchMJune19[[#This Row],[Alloc]]=\"WA\"),\"SITUS\",tblSchMJune19[[#This Row],[Alloc]])","v":"SG"},{"$f":"INDEX(tblSchMLookup[FUNC],MATCH(tblSchMJune19[[#This Row],[Concat]],tblSchMLookup[Concat],0))","v":{"$error":"#N/A"}},{"$f":"IF(tblSchMJune19[[#This Row],[Total ($000)]]=0,\"NO\",IF(ISNA(tblSchMJune19[[#This Row],[FUNC]]),\"YES\",IF(_xlfn.ISFORMULA(tblSchMJune19[[#This Row],[FUNC]]),\"NO\",\"YES\")))","v":"NO"}]
[{"$f":"CONCATENATE(tblSchMJune19[[#This Row],[Primary Account]],tblSchMJune19[[#This Row],[Primary Name]],tblSchMJune19[[#This Row],[Secondary Acct]],tblSchMJune19[[#This Row],[Secondary  Name]],tblSchMJune19[[#This Row],[Alloc4FUNC]])","v":"4098300SCHMAT120105Willow Wind Account ReceivableSITUS"},4098300,{"$f":"IF(tblSchMJune19[[#This Row],[Primary Account]]=4098200,\"SCHMAP\",IF(tblSchMJune19[[#This Row],[Primary Account]]=4098300,\"SCHMAT\",IF(tblSchMJune19[[#This Row],[Primary Account]]=4099200,\"SCHMDP\",IF(tblSchMJune19[[#This Row],[Primary Account]]=4099300,\"SCHMDT\"))))","v":"SCHMAT"},"120105","Willow Wind Account Receivable","WA",null,{"$f":"IF(OR(tblSchMJune19[[#This Row],[Alloc]]=\"IDU\",tblSchMJune19[[#This Row],[Alloc]]=\"OR\",tblSchMJune19[[#This Row],[Alloc]]=\"UT\",tblSchMJune19[[#This Row],[Alloc]]=\"WYU\",tblSchMJune19[[#This Row],[Alloc]]=\"WYP\",tblSchMJune19[[#This Row],[Alloc]]=\"CA\",tblSchMJune19[[#This Row],[Alloc]]=\"WA\"),\"SITUS\",tblSchMJune19[[#This Row],[Alloc]])","v":"SITUS"},{"$f":"INDEX(tblSchMLookup[FUNC],MATCH(tblSchMJune19[[#This Row],[Concat]],tblSchMLookup[Concat],0))","v":{"$error":"#N/A"}},{"$f":"IF(tblSchMJune19[[#This Row],[Total ($000)]]=0,\"NO\",IF(ISNA(tblSchMJune19[[#This Row],[FUNC]]),\"YES\",IF(_xlfn.ISFORMULA(tblSchMJune19[[#This Row],[FUNC]]),\"NO\",\"YES\")))","v":"NO"}]
[{"$f":"CONCATENATE(tblSchMJune19[[#This Row],[Primary Account]],tblSchMJune19[[#This Row],[Primary Name]],tblSchMJune19[[#This Row],[Secondary Acct]],tblSchMJune19[[#This Row],[Secondary  Name]],tblSchMJune19[[#This Row],[Alloc4FUNC]])","v":"4098300SCHMAT205100Coal Pile Inventory AdjustmentSE"},4098300,{"$f":"IF(tblSchMJune19[[#This Row],[Primary Account]]=4098200,\"SCHMAP\",IF(tblSchMJune19[[#This Row],[Primary Account]]=4098300,\"SCHMAT\",IF(tblSchMJune19[[#This Row],[Primary Account]]=4099200,\"SCHMDP\",IF(tblSchMJune19[[#This Row],[Primary Account]]=4099300,\"SCHMDT\"))))","v":"SCHMAT"},"205100","Coal Pile Inventory Adjustment","SE",248.274,{"$f":"IF(OR(tblSchMJune19[[#This Row],[Alloc]]=\"IDU\",tblSchMJune19[[#This Row],[Alloc]]=\"OR\",tblSchMJune19[[#This Row],[Alloc]]=\"UT\",tblSchMJune19[[#This Row],[Alloc]]=\"WYU\",tblSchMJune19[[#This Row],[Alloc]]=\"WYP\",tblSchMJune19[[#This Row],[Alloc]]=\"CA\",tblSchMJune19[[#This Row],[Alloc]]=\"WA\"),\"SITUS\",tblSchMJune19[[#This Row],[Alloc]])","v":"SE"},{"$f":"INDEX(tblSchMLookup[FUNC],MATCH(tblSchMJune19[[#This Row],[Concat]],tblSchMLookup[Concat],0))","v":"P"},{"$f":"IF(tblSchMJune19[[#This Row],[Total ($000)]]=0,\"NO\",IF(ISNA(tblSchMJune19[[#This Row],[FUNC]]),\"YES\",IF(_xlfn.ISFORMULA(tblSchMJune19[[#This Row],[FUNC]]),\"NO\",\"YES\")))","v":"NO"}]
[{"$f":"CONCATENATE(tblSchMJune19[[#This Row],[Primary Account]],tblSchMJune19[[#This Row],[Primary Name]],tblSchMJune19[[#This Row],[Secondary Acct]],tblSchMJune19[[#This Row],[Secondary  Name]],tblSchMJune19[[#This Row],[Alloc4FUNC]])","v":"4098300SCHMAT205210ERC (Emission Reduction Credit) ImpairmeSE"},4098300,{"$f":"IF(tblSchMJune19[[#This Row],[Primary Account]]=4098200,\"SCHMAP\",IF(tblSchMJune19[[#This Row],[Primary Account]]=4098300,\"SCHMAT\",IF(tblSchMJune19[[#This Row],[Primary Account]]=4099200,\"SCHMDP\",IF(tblSchMJune19[[#This Row],[Primary Account]]=4099300,\"SCHMDT\"))))","v":"SCHMAT"},"205210","ERC (Emission Reduction Credit) Impairme","SE",null,{"$f":"IF(OR(tblSchMJune19[[#This Row],[Alloc]]=\"IDU\",tblSchMJune19[[#This Row],[Alloc]]=\"OR\",tblSchMJune19[[#This Row],[Alloc]]=\"UT\",tblSchMJune19[[#This Row],[Alloc]]=\"WYU\",tblSchMJune19[[#This Row],[Alloc]]=\"WYP\",tblSchMJune19[[#This Row],[Alloc]]=\"CA\",tblSchMJune19[[#This Row],[Alloc]]=\"WA\"),\"SITUS\",tblSchMJune19[[#This Row],[Alloc]])","v":"SE"},{"$f":"INDEX(tblSchMLookup[FUNC],MATCH(tblSchMJune19[[#This Row],[Concat]],tblSchMLookup[Concat],0))","v":{"$error":"#N/A"}},{"$f":"IF(tblSchMJune19[[#This Row],[Total ($000)]]=0,\"NO\",IF(ISNA(tblSchMJune19[[#This Row],[FUNC]]),\"YES\",IF(_xlfn.ISFORMULA(tblSchMJune19[[#This Row],[FUNC]]),\"NO\",\"YES\")))","v":"NO"}]
[{"$f":"CONCATENATE(tblSchMJune19[[#This Row],[Primary Account]],tblSchMJune19[[#This Row],[Primary Name]],tblSchMJune19[[#This Row],[Secondary Acct]],tblSchMJune19[[#This Row],[Secondary  Name]],tblSchMJune19[[#This Row],[Alloc4FUNC]])","v":"4098300SCHMAT205411PMI Sec 263A AdjustmentSE"},4098300,{"$f":"IF(tblSchMJune19[[#This Row],[Primary Account]]=4098200,\"SCHMAP\",IF(tblSchMJune19[[#This Row],[Primary Account]]=4098300,\"SCHMAT\",IF(tblSchMJune19[[#This Row],[Primary Account]]=4099200,\"SCHMDP\",IF(tblSchMJune19[[#This Row],[Primary Account]]=4099300,\"SCHMDT\"))))","v":"SCHMAT"},"205411","PMI Sec 263A Adjustment","SE",null,{"$f":"IF(OR(tblSchMJune19[[#This Row],[Alloc]]=\"IDU\",tblSchMJune19[[#This Row],[Alloc]]=\"OR\",tblSchMJune19[[#This Row],[Alloc]]=\"UT\",tblSchMJune19[[#This Row],[Alloc]]=\"WYU\",tblSchMJune19[[#This Row],[Alloc]]=\"WYP\",tblSchMJune19[[#This Row],[Alloc]]=\"CA\",tblSchMJune19[[#This Row],[Alloc]]=\"WA\"),\"SITUS\",tblSchMJune19[[#This Row],[Alloc]])","v":"SE"},{"$f":"INDEX(tblSchMLookup[FUNC],MATCH(tblSchMJune19[[#This Row],[Concat]],tblSchMLookup[Concat],0))","v":{"$error":"#N/A"}},{"$f":"IF(tblSchMJune19[[#This Row],[Total ($000)]]=0,\"NO\",IF(ISNA(tblSchMJune19[[#This Row],[FUNC]]),\"YES\",IF(_xlfn.ISFORMULA(tblSchMJune19[[#This Row],[FUNC]]),\"NO\",\"YES\")))","v":"NO"}]
[{"$f":"CONCATENATE(tblSchMJune19[[#This Row],[Primary Account]],tblSchMJune19[[#This Row],[Primary Name]],tblSchMJune19[[#This Row],[Secondary Acct]],tblSchMJune19[[#This Row],[Secondary  Name]],tblSchMJune19[[#This Row],[Alloc4FUNC]])","v":"4098300SCHMAT210105Self Insured Health BenefitSO"},4098300,{"$f":"IF(tblSchMJune19[[#This Row],[Primary Account]]=4098200,\"SCHMAP\",IF(tblSchMJune19[[#This Row],[Primary Account]]=4098300,\"SCHMAT\",IF(tblSchMJune19[[#This Row],[Primary Account]]=4099200,\"SCHMDP\",IF(tblSchMJune19[[#This Row],[Primary Account]]=4099300,\"SCHMDT\"))))","v":"SCHMAT"},"210105","Self Insured Health Benefit","SO",null,{"$f":"IF(OR(tblSchMJune19[[#This Row],[Alloc]]=\"IDU\",tblSchMJune19[[#This Row],[Alloc]]=\"OR\",tblSchMJune19[[#This Row],[Alloc]]=\"UT\",tblSchMJune19[[#This Row],[Alloc]]=\"WYU\",tblSchMJune19[[#This Row],[Alloc]]=\"WYP\",tblSchMJune19[[#This Row],[Alloc]]=\"CA\",tblSchMJune19[[#This Row],[Alloc]]=\"WA\"),\"SITUS\",tblSchMJune19[[#This Row],[Alloc]])","v":"SO"},{"$f":"INDEX(tblSchMLookup[FUNC],MATCH(tblSchMJune19[[#This Row],[Concat]],tblSchMLookup[Concat],0))","v":{"$error":"#N/A"}},{"$f":"IF(tblSchMJune19[[#This Row],[Total ($000)]]=0,\"NO\",IF(ISNA(tblSchMJune19[[#This Row],[FUNC]]),\"YES\",IF(_xlfn.ISFORMULA(tblSchMJune19[[#This Row],[FUNC]]),\"NO\",\"YES\")))","v":"NO"}]
[{"$f":"CONCATENATE(tblSchMJune19[[#This Row],[Primary Account]],tblSchMJune19[[#This Row],[Primary Name]],tblSchMJune19[[#This Row],[Secondary Acct]],tblSchMJune19[[#This Row],[Secondary  Name]],tblSchMJune19[[#This Row],[Alloc4FUNC]])","v":"4098300SCHMAT210120Prepaid Taxes-UT PUCSITUS"},4098300,{"$f":"IF(tblSchMJune19[[#This Row],[Primary Account]]=4098200,\"SCHMAP\",IF(tblSchMJune19[[#This Row],[Primary Account]]=4098300,\"SCHMAT\",IF(tblSchMJune19[[#This Row],[Primary Account]]=4099200,\"SCHMDP\",IF(tblSchMJune19[[#This Row],[Primary Account]]=4099300,\"SCHMDT\"))))","v":"SCHMAT"},"210120","Prepaid Taxes-UT PUC","UT",null,{"$f":"IF(OR(tblSchMJune19[[#This Row],[Alloc]]=\"IDU\",tblSchMJune19[[#This Row],[Alloc]]=\"OR\",tblSchMJune19[[#This Row],[Alloc]]=\"UT\",tblSchMJune19[[#This Row],[Alloc]]=\"WYU\",tblSchMJune19[[#This Row],[Alloc]]=\"WYP\",tblSchMJune19[[#This Row],[Alloc]]=\"CA\",tblSchMJune19[[#This Row],[Alloc]]=\"WA\"),\"SITUS\",tblSchMJune19[[#This Row],[Alloc]])","v":"SITUS"},{"$f":"INDEX(tblSchMLookup[FUNC],MATCH(tblSchMJune19[[#This Row],[Concat]],tblSchMLookup[Concat],0))","v":{"$error":"#N/A"}},{"$f":"IF(tblSchMJune19[[#This Row],[Total ($000)]]=0,\"NO\",IF(ISNA(tblSchMJune19[[#This Row],[FUNC]]),\"YES\",IF(_xlfn.ISFORMULA(tblSchMJune19[[#This Row],[FUNC]]),\"NO\",\"YES\")))","v":"NO"}]
[{"$f":"CONCATENATE(tblSchMJune19[[#This Row],[Primary Account]],tblSchMJune19[[#This Row],[Primary Name]],tblSchMJune19[[#This Row],[Secondary Acct]],tblSchMJune19[[#This Row],[Secondary  Name]],tblSchMJune19[[#This Row],[Alloc4FUNC]])","v":"4098300SCHMAT210130Prepaid Taxes-ID PUCSITUS"},4098300,{"$f":"IF(tblSchMJune19[[#This Row],[Primary Account]]=4098200,\"SCHMAP\",IF(tblSchMJune19[[#This Row],[Primary Account]]=4098300,\"SCHMAT\",IF(tblSchMJune19[[#This Row],[Primary Account]]=4099200,\"SCHMDP\",IF(tblSchMJune19[[#This Row],[Primary Account]]=4099300,\"SCHMDT\"))))","v":"SCHMAT"},"210130","Prepaid Taxes-ID PUC","IDU",null,{"$f":"IF(OR(tblSchMJune19[[#This Row],[Alloc]]=\"IDU\",tblSchMJune19[[#This Row],[Alloc]]=\"OR\",tblSchMJune19[[#This Row],[Alloc]]=\"UT\",tblSchMJune19[[#This Row],[Alloc]]=\"WYU\",tblSchMJune19[[#This Row],[Alloc]]=\"WYP\",tblSchMJune19[[#This Row],[Alloc]]=\"CA\",tblSchMJune19[[#This Row],[Alloc]]=\"WA\"),\"SITUS\",tblSchMJune19[[#This Row],[Alloc]])","v":"SITUS"},{"$f":"INDEX(tblSchMLookup[FUNC],MATCH(tblSchMJune19[[#This Row],[Concat]],tblSchMLookup[Concat],0))","v":{"$error":"#N/A"}},{"$f":"IF(tblSchMJune19[[#This Row],[Total ($000)]]=0,\"NO\",IF(ISNA(tblSchMJune19[[#This Row],[FUNC]]),\"YES\",IF(_xlfn.ISFORMULA(tblSchMJune19[[#This Row],[FUNC]]),\"NO\",\"YES\")))","v":"NO"}]
[{"$f":"CONCATENATE(tblSchMJune19[[#This Row],[Primary Account]],tblSchMJune19[[#This Row],[Primary Name]],tblSchMJune19[[#This Row],[Secondary Acct]],tblSchMJune19[[#This Row],[Secondary  Name]],tblSchMJune19[[#This Row],[Alloc4FUNC]])","v":"4098300SCHMAT210200Prepaid Taxes-property taxesGPS"},4098300,{"$f":"IF(tblSchMJune19[[#This Row],[Primary Account]]=4098200,\"SCHMAP\",IF(tblSchMJune19[[#This Row],[Primary Account]]=4098300,\"SCHMAT\",IF(tblSchMJune19[[#This Row],[Primary Account]]=4099200,\"SCHMDP\",IF(tblSchMJune19[[#This Row],[Primary Account]]=4099300,\"SCHMDT\"))))","v":"SCHMAT"},"210200","Prepaid Taxes-property taxes","GPS",-591.04174999999998,{"$f":"IF(OR(tblSchMJune19[[#This Row],[Alloc]]=\"IDU\",tblSchMJune19[[#This Row],[Alloc]]=\"OR\",tblSchMJune19[[#This Row],[Alloc]]=\"UT\",tblSchMJune19[[#This Row],[Alloc]]=\"WYU\",tblSchMJune19[[#This Row],[Alloc]]=\"WYP\",tblSchMJune19[[#This Row],[Alloc]]=\"CA\",tblSchMJune19[[#This Row],[Alloc]]=\"WA\"),\"SITUS\",tblSchMJune19[[#This Row],[Alloc]])","v":"GPS"},{"$f":"INDEX(tblSchMLookup[FUNC],MATCH(tblSchMJune19[[#This Row],[Concat]],tblSchMLookup[Concat],0))","v":"GP"},{"$f":"IF(tblSchMJune19[[#This Row],[Total ($000)]]=0,\"NO\",IF(ISNA(tblSchMJune19[[#This Row],[FUNC]]),\"YES\",IF(_xlfn.ISFORMULA(tblSchMJune19[[#This Row],[FUNC]]),\"NO\",\"YES\")))","v":"NO"}]
[{"$f":"CONCATENATE(tblSchMJune19[[#This Row],[Primary Account]],tblSchMJune19[[#This Row],[Primary Name]],tblSchMJune19[[#This Row],[Secondary Acct]],tblSchMJune19[[#This Row],[Secondary  Name]],tblSchMJune19[[#This Row],[Alloc4FUNC]])","v":"4098300SCHMAT220100Bad Debts Allowance - Cash BasisBADDEBT"},4098300,{"$f":"IF(tblSchMJune19[[#This Row],[Primary Account]]=4098200,\"SCHMAP\",IF(tblSchMJune19[[#This Row],[Primary Account]]=4098300,\"SCHMAT\",IF(tblSchMJune19[[#This Row],[Primary Account]]=4099200,\"SCHMDP\",IF(tblSchMJune19[[#This Row],[Primary Account]]=4099300,\"SCHMDT\"))))","v":"SCHMAT"},"220100","Bad Debts Allowance - Cash Basis","BADDEBT",397.32795039732798,{"$f":"IF(OR(tblSchMJune19[[#This Row],[Alloc]]=\"IDU\",tblSchMJune19[[#This Row],[Alloc]]=\"OR\",tblSchMJune19[[#This Row],[Alloc]]=\"UT\",tblSchMJune19[[#This Row],[Alloc]]=\"WYU\",tblSchMJune19[[#This Row],[Alloc]]=\"WYP\",tblSchMJune19[[#This Row],[Alloc]]=\"CA\",tblSchMJune19[[#This Row],[Alloc]]=\"WA\"),\"SITUS\",tblSchMJune19[[#This Row],[Alloc]])","v":"BADDEBT"},{"$f":"INDEX(tblSchMLookup[FUNC],MATCH(tblSchMJune19[[#This Row],[Concat]],tblSchMLookup[Concat],0))","v":"CUST"},{"$f":"IF(tblSchMJune19[[#This Row],[Total ($000)]]=0,\"NO\",IF(ISNA(tblSchMJune19[[#This Row],[FUNC]]),\"YES\",IF(_xlfn.ISFORMULA(tblSchMJune19[[#This Row],[FUNC]]),\"NO\",\"YES\")))","v":"NO"}]
[{"$f":"CONCATENATE(tblSchMJune19[[#This Row],[Primary Account]],tblSchMJune19[[#This Row],[Primary Name]],tblSchMJune19[[#This Row],[Secondary Acct]],tblSchMJune19[[#This Row],[Secondary  Name]],tblSchMJune19[[#This Row],[Alloc4FUNC]])","v":"4098300SCHMAT320110Transition Team Costs-UTSITUS"},4098300,{"$f":"IF(tblSchMJune19[[#This Row],[Primary Account]]=4098200,\"SCHMAP\",IF(tblSchMJune19[[#This Row],[Primary Account]]=4098300,\"SCHMAT\",IF(tblSchMJune19[[#This Row],[Primary Account]]=4099200,\"SCHMDP\",IF(tblSchMJune19[[#This Row],[Primary Account]]=4099300,\"SCHMDT\"))))","v":"SCHMAT"},"320110","Transition Team Costs-UT","UT",null,{"$f":"IF(OR(tblSchMJune19[[#This Row],[Alloc]]=\"IDU\",tblSchMJune19[[#This Row],[Alloc]]=\"OR\",tblSchMJune19[[#This Row],[Alloc]]=\"UT\",tblSchMJune19[[#This Row],[Alloc]]=\"WYU\",tblSchMJune19[[#This Row],[Alloc]]=\"WYP\",tblSchMJune19[[#This Row],[Alloc]]=\"CA\",tblSchMJune19[[#This Row],[Alloc]]=\"WA\"),\"SITUS\",tblSchMJune19[[#This Row],[Alloc]])","v":"SITUS"},{"$f":"INDEX(tblSchMLookup[FUNC],MATCH(tblSchMJune19[[#This Row],[Concat]],tblSchMLookup[Concat],0))","v":{"$error":"#N/A"}},{"$f":"IF(tblSchMJune19[[#This Row],[Total ($000)]]=0,\"NO\",IF(ISNA(tblSchMJune19[[#This Row],[FUNC]]),\"YES\",IF(_xlfn.ISFORMULA(tblSchMJune19[[#This Row],[FUNC]]),\"NO\",\"YES\")))","v":"NO"}]
[{"$f":"CONCATENATE(tblSchMJune19[[#This Row],[Primary Account]],tblSchMJune19[[#This Row],[Primary Name]],tblSchMJune19[[#This Row],[Secondary Acct]],tblSchMJune19[[#This Row],[Secondary  Name]],tblSchMJune19[[#This Row],[Alloc4FUNC]])","v":"4098300SCHMAT320115Misc - Reg Assets/Reg Liab-TotalOTHER"},4098300,{"$f":"IF(tblSchMJune19[[#This Row],[Primary Account]]=4098200,\"SCHMAP\",IF(tblSchMJune19[[#This Row],[Primary Account]]=4098300,\"SCHMAT\",IF(tblSchMJune19[[#This Row],[Primary Account]]=4099200,\"SCHMDP\",IF(tblSchMJune19[[#This Row],[Primary Account]]=4099300,\"SCHMDT\"))))","v":"SCHMAT"},"320115","Misc - Reg Assets/Reg Liab-Total","OTHER",null,{"$f":"IF(OR(tblSchMJune19[[#This Row],[Alloc]]=\"IDU\",tblSchMJune19[[#This Row],[Alloc]]=\"OR\",tblSchMJune19[[#This Row],[Alloc]]=\"UT\",tblSchMJune19[[#This Row],[Alloc]]=\"WYU\",tblSchMJune19[[#This Row],[Alloc]]=\"WYP\",tblSchMJune19[[#This Row],[Alloc]]=\"CA\",tblSchMJune19[[#This Row],[Alloc]]=\"WA\"),\"SITUS\",tblSchMJune19[[#This Row],[Alloc]])","v":"OTHER"},{"$f":"INDEX(tblSchMLookup[FUNC],MATCH(tblSchMJune19[[#This Row],[Concat]],tblSchMLookup[Concat],0))","v":{"$error":"#N/A"}},{"$f":"IF(tblSchMJune19[[#This Row],[Total ($000)]]=0,\"NO\",IF(ISNA(tblSchMJune19[[#This Row],[FUNC]]),\"YES\",IF(_xlfn.ISFORMULA(tblSchMJune19[[#This Row],[FUNC]]),\"NO\",\"YES\")))","v":"NO"}]
[{"$f":"CONCATENATE(tblSchMJune19[[#This Row],[Primary Account]],tblSchMJune19[[#This Row],[Primary Name]],tblSchMJune19[[#This Row],[Secondary Acct]],tblSchMJune19[[#This Row],[Secondary  Name]],tblSchMJune19[[#This Row],[Alloc4FUNC]])","v":"4098300SCHMAT320140May 2000 Transition Plan Costs-ORSITUS"},4098300,{"$f":"IF(tblSchMJune19[[#This Row],[Primary Account]]=4098200,\"SCHMAP\",IF(tblSchMJune19[[#This Row],[Primary Account]]=4098300,\"SCHMAT\",IF(tblSchMJune19[[#This Row],[Primary Account]]=4099200,\"SCHMDP\",IF(tblSchMJune19[[#This Row],[Primary Account]]=4099300,\"SCHMDT\"))))","v":"SCHMAT"},"320140","May 2000 Transition Plan Costs-OR","OR",null,{"$f":"IF(OR(tblSchMJune19[[#This Row],[Alloc]]=\"IDU\",tblSchMJune19[[#This Row],[Alloc]]=\"OR\",tblSchMJune19[[#This Row],[Alloc]]=\"UT\",tblSchMJune19[[#This Row],[Alloc]]=\"WYU\",tblSchMJune19[[#This Row],[Alloc]]=\"WYP\",tblSchMJune19[[#This Row],[Alloc]]=\"CA\",tblSchMJune19[[#This Row],[Alloc]]=\"WA\"),\"SITUS\",tblSchMJune19[[#This Row],[Alloc]])","v":"SITUS"},{"$f":"INDEX(tblSchMLookup[FUNC],MATCH(tblSchMJune19[[#This Row],[Concat]],tblSchMLookup[Concat],0))","v":{"$error":"#N/A"}},{"$f":"IF(tblSchMJune19[[#This Row],[Total ($000)]]=0,\"NO\",IF(ISNA(tblSchMJune19[[#This Row],[FUNC]]),\"YES\",IF(_xlfn.ISFORMULA(tblSchMJune19[[#This Row],[FUNC]]),\"NO\",\"YES\")))","v":"NO"}]
[{"$f":"CONCATENATE(tblSchMJune19[[#This Row],[Primary Account]],tblSchMJune19[[#This Row],[Primary Name]],tblSchMJune19[[#This Row],[Secondary Acct]],tblSchMJune19[[#This Row],[Secondary  Name]],tblSchMJune19[[#This Row],[Alloc4FUNC]])","v":"4098300SCHMAT320210Research & Exper. Sec. 174 Amort.SO"},4098300,{"$f":"IF(tblSchMJune19[[#This Row],[Primary Account]]=4098200,\"SCHMAP\",IF(tblSchMJune19[[#This Row],[Primary Account]]=4098300,\"SCHMAT\",IF(tblSchMJune19[[#This Row],[Primary Account]]=4099200,\"SCHMDP\",IF(tblSchMJune19[[#This Row],[Primary Account]]=4099300,\"SCHMDT\"))))","v":"SCHMAT"},"320210","Research & Exper. Sec. 174 Amort.","SO",null,{"$f":"IF(OR(tblSchMJune19[[#This Row],[Alloc]]=\"IDU\",tblSchMJune19[[#This Row],[Alloc]]=\"OR\",tblSchMJune19[[#This Row],[Alloc]]=\"UT\",tblSchMJune19[[#This Row],[Alloc]]=\"WYU\",tblSchMJune19[[#This Row],[Alloc]]=\"WYP\",tblSchMJune19[[#This Row],[Alloc]]=\"CA\",tblSchMJune19[[#This Row],[Alloc]]=\"WA\"),\"SITUS\",tblSchMJune19[[#This Row],[Alloc]])","v":"SO"},{"$f":"INDEX(tblSchMLookup[FUNC],MATCH(tblSchMJune19[[#This Row],[Concat]],tblSchMLookup[Concat],0))","v":{"$error":"#N/A"}},{"$f":"IF(tblSchMJune19[[#This Row],[Total ($000)]]=0,\"NO\",IF(ISNA(tblSchMJune19[[#This Row],[FUNC]]),\"YES\",IF(_xlfn.ISFORMULA(tblSchMJune19[[#This Row],[FUNC]]),\"NO\",\"YES\")))","v":"NO"}]
[{"$f":"CONCATENATE(tblSchMJune19[[#This Row],[Primary Account]],tblSchMJune19[[#This Row],[Primary Name]],tblSchMJune19[[#This Row],[Secondary Acct]],tblSchMJune19[[#This Row],[Secondary  Name]],tblSchMJune19[[#This Row],[Alloc4FUNC]])","v":"4098300SCHMAT320220Glenrock Excluding Reclamation-UT rate oSITUS"},4098300,{"$f":"IF(tblSchMJune19[[#This Row],[Primary Account]]=4098200,\"SCHMAP\",IF(tblSchMJune19[[#This Row],[Primary Account]]=4098300,\"SCHMAT\",IF(tblSchMJune19[[#This Row],[Primary Account]]=4099200,\"SCHMDP\",IF(tblSchMJune19[[#This Row],[Primary Account]]=4099300,\"SCHMDT\"))))","v":"SCHMAT"},"320220","Glenrock Excluding Reclamation-UT rate o","UT",null,{"$f":"IF(OR(tblSchMJune19[[#This Row],[Alloc]]=\"IDU\",tblSchMJune19[[#This Row],[Alloc]]=\"OR\",tblSchMJune19[[#This Row],[Alloc]]=\"UT\",tblSchMJune19[[#This Row],[Alloc]]=\"WYU\",tblSchMJune19[[#This Row],[Alloc]]=\"WYP\",tblSchMJune19[[#This Row],[Alloc]]=\"CA\",tblSchMJune19[[#This Row],[Alloc]]=\"WA\"),\"SITUS\",tblSchMJune19[[#This Row],[Alloc]])","v":"SITUS"},{"$f":"INDEX(tblSchMLookup[FUNC],MATCH(tblSchMJune19[[#This Row],[Concat]],tblSchMLookup[Concat],0))","v":{"$error":"#N/A"}},{"$f":"IF(tblSchMJune19[[#This Row],[Total ($000)]]=0,\"NO\",IF(ISNA(tblSchMJune19[[#This Row],[FUNC]]),\"YES\",IF(_xlfn.ISFORMULA(tblSchMJune19[[#This Row],[FUNC]]),\"NO\",\"YES\")))","v":"NO"}]
[{"$f":"CONCATENATE(tblSchMJune19[[#This Row],[Primary Account]],tblSchMJune19[[#This Row],[Primary Name]],tblSchMJune19[[#This Row],[Secondary Acct]],tblSchMJune19[[#This Row],[Secondary  Name]],tblSchMJune19[[#This Row],[Alloc4FUNC]])","v":"4098300SCHMAT320230FAS 87/88 Writeoff-UT rate orderSITUS"},4098300,{"$f":"IF(tblSchMJune19[[#This Row],[Primary Account]]=4098200,\"SCHMAP\",IF(tblSchMJune19[[#This Row],[Primary Account]]=4098300,\"SCHMAT\",IF(tblSchMJune19[[#This Row],[Primary Account]]=4099200,\"SCHMDP\",IF(tblSchMJune19[[#This Row],[Primary Account]]=4099300,\"SCHMDT\"))))","v":"SCHMAT"},"320230","FAS 87/88 Writeoff-UT rate order","UT",null,{"$f":"IF(OR(tblSchMJune19[[#This Row],[Alloc]]=\"IDU\",tblSchMJune19[[#This Row],[Alloc]]=\"OR\",tblSchMJune19[[#This Row],[Alloc]]=\"UT\",tblSchMJune19[[#This Row],[Alloc]]=\"WYU\",tblSchMJune19[[#This Row],[Alloc]]=\"WYP\",tblSchMJune19[[#This Row],[Alloc]]=\"CA\",tblSchMJune19[[#This Row],[Alloc]]=\"WA\"),\"SITUS\",tblSchMJune19[[#This Row],[Alloc]])","v":"SITUS"},{"$f":"INDEX(tblSchMLookup[FUNC],MATCH(tblSchMJune19[[#This Row],[Concat]],tblSchMLookup[Concat],0))","v":{"$error":"#N/A"}},{"$f":"IF(tblSchMJune19[[#This Row],[Total ($000)]]=0,\"NO\",IF(ISNA(tblSchMJune19[[#This Row],[FUNC]]),\"YES\",IF(_xlfn.ISFORMULA(tblSchMJune19[[#This Row],[FUNC]]),\"NO\",\"YES\")))","v":"NO"}]
[{"$f":"CONCATENATE(tblSchMJune19[[#This Row],[Primary Account]],tblSchMJune19[[#This Row],[Primary Name]],tblSchMJune19[[#This Row],[Secondary Acct]],tblSchMJune19[[#This Row],[Secondary  Name]],tblSchMJune19[[#This Row],[Alloc4FUNC]])","v":"4098300SCHMAT320270Reg Asset FAS 158 Pension Liab AdjSO"},4098300,{"$f":"IF(tblSchMJune19[[#This Row],[Primary Account]]=4098200,\"SCHMAP\",IF(tblSchMJune19[[#This Row],[Primary Account]]=4098300,\"SCHMAT\",IF(tblSchMJune19[[#This Row],[Primary Account]]=4099200,\"SCHMDP\",IF(tblSchMJune19[[#This Row],[Primary Account]]=4099300,\"SCHMDT\"))))","v":"SCHMAT"},"320270","Reg Asset FAS 158 Pension Liab Adj","SO",36371.745580000003,{"$f":"IF(OR(tblSchMJune19[[#This Row],[Alloc]]=\"IDU\",tblSchMJune19[[#This Row],[Alloc]]=\"OR\",tblSchMJune19[[#This Row],[Alloc]]=\"UT\",tblSchMJune19[[#This Row],[Alloc]]=\"WYU\",tblSchMJune19[[#This Row],[Alloc]]=\"WYP\",tblSchMJune19[[#This Row],[Alloc]]=\"CA\",tblSchMJune19[[#This Row],[Alloc]]=\"WA\"),\"SITUS\",tblSchMJune19[[#This Row],[Alloc]])","v":"SO"},{"$f":"INDEX(tblSchMLookup[FUNC],MATCH(tblSchMJune19[[#This Row],[Concat]],tblSchMLookup[Concat],0))","v":"LABOR"},{"$f":"IF(tblSchMJune19[[#This Row],[Total ($000)]]=0,\"NO\",IF(ISNA(tblSchMJune19[[#This Row],[FUNC]]),\"YES\",IF(_xlfn.ISFORMULA(tblSchMJune19[[#This Row],[FUNC]]),\"NO\",\"YES\")))","v":"NO"}]
[{"$f":"CONCATENATE(tblSchMJune19[[#This Row],[Primary Account]],tblSchMJune19[[#This Row],[Primary Name]],tblSchMJune19[[#This Row],[Secondary Acct]],tblSchMJune19[[#This Row],[Secondary  Name]],tblSchMJune19[[#This Row],[Alloc4FUNC]])","v":"4098300SCHMAT320280Reg Asset FAS 158 Post Retire LiabSO"},4098300,{"$f":"IF(tblSchMJune19[[#This Row],[Primary Account]]=4098200,\"SCHMAP\",IF(tblSchMJune19[[#This Row],[Primary Account]]=4098300,\"SCHMAT\",IF(tblSchMJune19[[#This Row],[Primary Account]]=4099200,\"SCHMDP\",IF(tblSchMJune19[[#This Row],[Primary Account]]=4099300,\"SCHMDT\"))))","v":"SCHMAT"},"320280","Reg Asset FAS 158 Post Retire Liab","SO",-14044.478150000001,{"$f":"IF(OR(tblSchMJune19[[#This Row],[Alloc]]=\"IDU\",tblSchMJune19[[#This Row],[Alloc]]=\"OR\",tblSchMJune19[[#This Row],[Alloc]]=\"UT\",tblSchMJune19[[#This Row],[Alloc]]=\"WYU\",tblSchMJune19[[#This Row],[Alloc]]=\"WYP\",tblSchMJune19[[#This Row],[Alloc]]=\"CA\",tblSchMJune19[[#This Row],[Alloc]]=\"WA\"),\"SITUS\",tblSchMJune19[[#This Row],[Alloc]])","v":"SO"},{"$f":"INDEX(tblSchMLookup[FUNC],MATCH(tblSchMJune19[[#This Row],[Concat]],tblSchMLookup[Concat],0))","v":"LABOR"},{"$f":"IF(tblSchMJune19[[#This Row],[Total ($000)]]=0,\"NO\",IF(ISNA(tblSchMJune19[[#This Row],[FUNC]]),\"YES\",IF(_xlfn.ISFORMULA(tblSchMJune19[[#This Row],[FUNC]]),\"NO\",\"YES\")))","v":"NO"}]
[{"$f":"CONCATENATE(tblSchMJune19[[#This Row],[Primary Account]],tblSchMJune19[[#This Row],[Primary Name]],tblSchMJune19[[#This Row],[Secondary Acct]],tblSchMJune19[[#This Row],[Secondary  Name]],tblSchMJune19[[#This Row],[Alloc4FUNC]])","v":"4098300SCHMAT320281Reg Asset - Post-Retirement Settlement LSO"},4098300,{"$f":"IF(tblSchMJune19[[#This Row],[Primary Account]]=4098200,\"SCHMAP\",IF(tblSchMJune19[[#This Row],[Primary Account]]=4098300,\"SCHMAT\",IF(tblSchMJune19[[#This Row],[Primary Account]]=4099200,\"SCHMDP\",IF(tblSchMJune19[[#This Row],[Primary Account]]=4099300,\"SCHMDT\"))))","v":"SCHMAT"},"320281","Reg Asset - Post-Retirement Settlement L","SO",353.077,{"$f":"IF(OR(tblSchMJune19[[#This Row],[Alloc]]=\"IDU\",tblSchMJune19[[#This Row],[Alloc]]=\"OR\",tblSchMJune19[[#This Row],[Alloc]]=\"UT\",tblSchMJune19[[#This Row],[Alloc]]=\"WYU\",tblSchMJune19[[#This Row],[Alloc]]=\"WYP\",tblSchMJune19[[#This Row],[Alloc]]=\"CA\",tblSchMJune19[[#This Row],[Alloc]]=\"WA\"),\"SITUS\",tblSchMJune19[[#This Row],[Alloc]])","v":"SO"},{"$f":"INDEX(tblSchMLookup[FUNC],MATCH(tblSchMJune19[[#This Row],[Concat]],tblSchMLookup[Concat],0))","v":"LABOR"},{"$f":"IF(tblSchMJune19[[#This Row],[Total ($000)]]=0,\"NO\",IF(ISNA(tblSchMJune19[[#This Row],[FUNC]]),\"YES\",IF(_xlfn.ISFORMULA(tblSchMJune19[[#This Row],[FUNC]]),\"NO\",\"YES\")))","v":"NO"}]
[{"$f":"CONCATENATE(tblSchMJune19[[#This Row],[Primary Account]],tblSchMJune19[[#This Row],[Primary Name]],tblSchMJune19[[#This Row],[Secondary Acct]],tblSchMJune19[[#This Row],[Secondary  Name]],tblSchMJune19[[#This Row],[Alloc4FUNC]])","v":"4098300SCHMAT320282Reg Asset - Post-Retirement Settlement LSITUS"},4098300,{"$f":"IF(tblSchMJune19[[#This Row],[Primary Account]]=4098200,\"SCHMAP\",IF(tblSchMJune19[[#This Row],[Primary Account]]=4098300,\"SCHMAT\",IF(tblSchMJune19[[#This Row],[Primary Account]]=4099200,\"SCHMDP\",IF(tblSchMJune19[[#This Row],[Primary Account]]=4099300,\"SCHMDT\"))))","v":"SCHMAT"},"320282","Reg Asset - Post-Retirement Settlement L","UT",-291.3,{"$f":"IF(OR(tblSchMJune19[[#This Row],[Alloc]]=\"IDU\",tblSchMJune19[[#This Row],[Alloc]]=\"OR\",tblSchMJune19[[#This Row],[Alloc]]=\"UT\",tblSchMJune19[[#This Row],[Alloc]]=\"WYU\",tblSchMJune19[[#This Row],[Alloc]]=\"WYP\",tblSchMJune19[[#This Row],[Alloc]]=\"CA\",tblSchMJune19[[#This Row],[Alloc]]=\"WA\"),\"SITUS\",tblSchMJune19[[#This Row],[Alloc]])","v":"SITUS"},{"$f":"INDEX(tblSchMLookup[FUNC],MATCH(tblSchMJune19[[#This Row],[Concat]],tblSchMLookup[Concat],0))","v":"LABOR"},{"$f":"IF(tblSchMJune19[[#This Row],[Total ($000)]]=0,\"NO\",IF(ISNA(tblSchMJune19[[#This Row],[FUNC]]),\"YES\",IF(_xlfn.ISFORMULA(tblSchMJune19[[#This Row],[FUNC]]),\"NO\",\"YES\")))","v":"NO"}]
[{"$f":"CONCATENATE(tblSchMJune19[[#This Row],[Primary Account]],tblSchMJune19[[#This Row],[Primary Name]],tblSchMJune19[[#This Row],[Secondary Acct]],tblSchMJune19[[#This Row],[Secondary  Name]],tblSchMJune19[[#This Row],[Alloc4FUNC]])","v":"4098300SCHMAT320283Reg Asset - Post-Retirement Settlement LSITUS"},4098300,{"$f":"IF(tblSchMJune19[[#This Row],[Primary Account]]=4098200,\"SCHMAP\",IF(tblSchMJune19[[#This Row],[Primary Account]]=4098300,\"SCHMAT\",IF(tblSchMJune19[[#This Row],[Primary Account]]=4099200,\"SCHMDP\",IF(tblSchMJune19[[#This Row],[Primary Account]]=4099300,\"SCHMDT\"))))","v":"SCHMAT"},"320283","Reg Asset - Post-Retirement Settlement L","WYU",22.244,{"$f":"IF(OR(tblSchMJune19[[#This Row],[Alloc]]=\"IDU\",tblSchMJune19[[#This Row],[Alloc]]=\"OR\",tblSchMJune19[[#This Row],[Alloc]]=\"UT\",tblSchMJune19[[#This Row],[Alloc]]=\"WYU\",tblSchMJune19[[#This Row],[Alloc]]=\"WYP\",tblSchMJune19[[#This Row],[Alloc]]=\"CA\",tblSchMJune19[[#This Row],[Alloc]]=\"WA\"),\"SITUS\",tblSchMJune19[[#This Row],[Alloc]])","v":"SITUS"},{"$f":"INDEX(tblSchMLookup[FUNC],MATCH(tblSchMJune19[[#This Row],[Concat]],tblSchMLookup[Concat],0))","v":"LABOR"},{"$f":"IF(tblSchMJune19[[#This Row],[Total ($000)]]=0,\"NO\",IF(ISNA(tblSchMJune19[[#This Row],[FUNC]]),\"YES\",IF(_xlfn.ISFORMULA(tblSchMJune19[[#This Row],[FUNC]]),\"NO\",\"YES\")))","v":"NO"}]
[{"$f":"CONCATENATE(tblSchMJune19[[#This Row],[Primary Account]],tblSchMJune19[[#This Row],[Primary Name]],tblSchMJune19[[#This Row],[Secondary Acct]],tblSchMJune19[[#This Row],[Secondary  Name]],tblSchMJune19[[#This Row],[Alloc4FUNC]])","v":"4098300SCHMAT330100Amort. Pollution Control FacilitySG"},4098300,{"$f":"IF(tblSchMJune19[[#This Row],[Primary Account]]=4098200,\"SCHMAP\",IF(tblSchMJune19[[#This Row],[Primary Account]]=4098300,\"SCHMAT\",IF(tblSchMJune19[[#This Row],[Primary Account]]=4099200,\"SCHMDP\",IF(tblSchMJune19[[#This Row],[Primary Account]]=4099300,\"SCHMDT\"))))","v":"SCHMAT"},"330100","Amort. Pollution Control Facility","SG",null,{"$f":"IF(OR(tblSchMJune19[[#This Row],[Alloc]]=\"IDU\",tblSchMJune19[[#This Row],[Alloc]]=\"OR\",tblSchMJune19[[#This Row],[Alloc]]=\"UT\",tblSchMJune19[[#This Row],[Alloc]]=\"WYU\",tblSchMJune19[[#This Row],[Alloc]]=\"WYP\",tblSchMJune19[[#This Row],[Alloc]]=\"CA\",tblSchMJune19[[#This Row],[Alloc]]=\"WA\"),\"SITUS\",tblSchMJune19[[#This Row],[Alloc]])","v":"SG"},{"$f":"INDEX(tblSchMLookup[FUNC],MATCH(tblSchMJune19[[#This Row],[Concat]],tblSchMLookup[Concat],0))","v":{"$error":"#N/A"}},{"$f":"IF(tblSchMJune19[[#This Row],[Total ($000)]]=0,\"NO\",IF(ISNA(tblSchMJune19[[#This Row],[FUNC]]),\"YES\",IF(_xlfn.ISFORMULA(tblSchMJune19[[#This Row],[FUNC]]),\"NO\",\"YES\")))","v":"NO"}]
[{"$f":"CONCATENATE(tblSchMJune19[[#This Row],[Primary Account]],tblSchMJune19[[#This Row],[Primary Name]],tblSchMJune19[[#This Row],[Secondary Acct]],tblSchMJune19[[#This Row],[Secondary  Name]],tblSchMJune19[[#This Row],[Alloc4FUNC]])","v":"4098300SCHMAT415110Def Reg Asset-Transmission Srvc DepositSG"},4098300,{"$f":"IF(tblSchMJune19[[#This Row],[Primary Account]]=4098200,\"SCHMAP\",IF(tblSchMJune19[[#This Row],[Primary Account]]=4098300,\"SCHMAT\",IF(tblSchMJune19[[#This Row],[Primary Account]]=4099200,\"SCHMDP\",IF(tblSchMJune19[[#This Row],[Primary Account]]=4099300,\"SCHMDT\"))))","v":"SCHMAT"},"415110","Def Reg Asset-Transmission Srvc Deposit","SG",null,{"$f":"IF(OR(tblSchMJune19[[#This Row],[Alloc]]=\"IDU\",tblSchMJune19[[#This Row],[Alloc]]=\"OR\",tblSchMJune19[[#This Row],[Alloc]]=\"UT\",tblSchMJune19[[#This Row],[Alloc]]=\"WYU\",tblSchMJune19[[#This Row],[Alloc]]=\"WYP\",tblSchMJune19[[#This Row],[Alloc]]=\"CA\",tblSchMJune19[[#This Row],[Alloc]]=\"WA\"),\"SITUS\",tblSchMJune19[[#This Row],[Alloc]])","v":"SG"},{"$f":"INDEX(tblSchMLookup[FUNC],MATCH(tblSchMJune19[[#This Row],[Concat]],tblSchMLookup[Concat],0))","v":{"$error":"#N/A"}},{"$f":"IF(tblSchMJune19[[#This Row],[Total ($000)]]=0,\"NO\",IF(ISNA(tblSchMJune19[[#This Row],[FUNC]]),\"YES\",IF(_xlfn.ISFORMULA(tblSchMJune19[[#This Row],[FUNC]]),\"NO\",\"YES\")))","v":"NO"}]
[{"$f":"CONCATENATE(tblSchMJune19[[#This Row],[Primary Account]],tblSchMJune19[[#This Row],[Primary Name]],tblSchMJune19[[#This Row],[Secondary Acct]],tblSchMJune19[[#This Row],[Secondary  Name]],tblSchMJune19[[#This Row],[Alloc4FUNC]])","v":"4098300SCHMAT415115Reg Asset - UT STEP Pilot Programs BalanOTHER"},4098300,{"$f":"IF(tblSchMJune19[[#This Row],[Primary Account]]=4098200,\"SCHMAP\",IF(tblSchMJune19[[#This Row],[Primary Account]]=4098300,\"SCHMAT\",IF(tblSchMJune19[[#This Row],[Primary Account]]=4099200,\"SCHMDP\",IF(tblSchMJune19[[#This Row],[Primary Account]]=4099300,\"SCHMDT\"))))","v":"SCHMAT"},"415115","Reg Asset - UT STEP Pilot Programs Balan","OTHER",8870.5019499999999,{"$f":"IF(OR(tblSchMJune19[[#This Row],[Alloc]]=\"IDU\",tblSchMJune19[[#This Row],[Alloc]]=\"OR\",tblSchMJune19[[#This Row],[Alloc]]=\"UT\",tblSchMJune19[[#This Row],[Alloc]]=\"WYU\",tblSchMJune19[[#This Row],[Alloc]]=\"WYP\",tblSchMJune19[[#This Row],[Alloc]]=\"CA\",tblSchMJune19[[#This Row],[Alloc]]=\"WA\"),\"SITUS\",tblSchMJune19[[#This Row],[Alloc]])","v":"OTHER"},{"$f":"INDEX(tblSchMLookup[FUNC],MATCH(tblSchMJune19[[#This Row],[Concat]],tblSchMLookup[Concat],0))","v":"PTD"},{"$f":"IF(tblSchMJune19[[#This Row],[Total ($000)]]=0,\"NO\",IF(ISNA(tblSchMJune19[[#This Row],[FUNC]]),\"YES\",IF(_xlfn.ISFORMULA(tblSchMJune19[[#This Row],[FUNC]]),\"NO\",\"YES\")))","v":"NO"}]
[{"$f":"CONCATENATE(tblSchMJune19[[#This Row],[Primary Account]],tblSchMJune19[[#This Row],[Primary Name]],tblSchMJune19[[#This Row],[Secondary Acct]],tblSchMJune19[[#This Row],[Secondary  Name]],tblSchMJune19[[#This Row],[Alloc4FUNC]])","v":"4098300SCHMAT415120Def Reg Asset-Foote Creek ContractSG"},4098300,{"$f":"IF(tblSchMJune19[[#This Row],[Primary Account]]=4098200,\"SCHMAP\",IF(tblSchMJune19[[#This Row],[Primary Account]]=4098300,\"SCHMAT\",IF(tblSchMJune19[[#This Row],[Primary Account]]=4099200,\"SCHMDP\",IF(tblSchMJune19[[#This Row],[Primary Account]]=4099300,\"SCHMDT\"))))","v":"SCHMAT"},"415120","Def Reg Asset-Foote Creek Contract","SG",null,{"$f":"IF(OR(tblSchMJune19[[#This Row],[Alloc]]=\"IDU\",tblSchMJune19[[#This Row],[Alloc]]=\"OR\",tblSchMJune19[[#This Row],[Alloc]]=\"UT\",tblSchMJune19[[#This Row],[Alloc]]=\"WYU\",tblSchMJune19[[#This Row],[Alloc]]=\"WYP\",tblSchMJune19[[#This Row],[Alloc]]=\"CA\",tblSchMJune19[[#This Row],[Alloc]]=\"WA\"),\"SITUS\",tblSchMJune19[[#This Row],[Alloc]])","v":"SG"},{"$f":"INDEX(tblSchMLookup[FUNC],MATCH(tblSchMJune19[[#This Row],[Concat]],tblSchMLookup[Concat],0))","v":{"$error":"#N/A"}},{"$f":"IF(tblSchMJune19[[#This Row],[Total ($000)]]=0,\"NO\",IF(ISNA(tblSchMJune19[[#This Row],[FUNC]]),\"YES\",IF(_xlfn.ISFORMULA(tblSchMJune19[[#This Row],[FUNC]]),\"NO\",\"YES\")))","v":"NO"}]
[{"$f":"CONCATENATE(tblSchMJune19[[#This Row],[Primary Account]],tblSchMJune19[[#This Row],[Primary Name]],tblSchMJune19[[#This Row],[Secondary Acct]],tblSchMJune19[[#This Row],[Secondary  Name]],tblSchMJune19[[#This Row],[Alloc4FUNC]])","v":"4098300SCHMAT415200Reg Asset - OR Transportation ElectrificOTHER"},4098300,{"$f":"IF(tblSchMJune19[[#This Row],[Primary Account]]=4098200,\"SCHMAP\",IF(tblSchMJune19[[#This Row],[Primary Account]]=4098300,\"SCHMAT\",IF(tblSchMJune19[[#This Row],[Primary Account]]=4099200,\"SCHMDP\",IF(tblSchMJune19[[#This Row],[Primary Account]]=4099300,\"SCHMDT\"))))","v":"SCHMAT"},"415200","Reg Asset - OR Transportation Electrific","OTHER",null,{"$f":"IF(OR(tblSchMJune19[[#This Row],[Alloc]]=\"IDU\",tblSchMJune19[[#This Row],[Alloc]]=\"OR\",tblSchMJune19[[#This Row],[Alloc]]=\"UT\",tblSchMJune19[[#This Row],[Alloc]]=\"WYU\",tblSchMJune19[[#This Row],[Alloc]]=\"WYP\",tblSchMJune19[[#This Row],[Alloc]]=\"CA\",tblSchMJune19[[#This Row],[Alloc]]=\"WA\"),\"SITUS\",tblSchMJune19[[#This Row],[Alloc]])","v":"OTHER"},{"$f":"INDEX(tblSchMLookup[FUNC],MATCH(tblSchMJune19[[#This Row],[Concat]],tblSchMLookup[Concat],0))","v":{"$error":"#N/A"}},{"$f":"IF(tblSchMJune19[[#This Row],[Total ($000)]]=0,\"NO\",IF(ISNA(tblSchMJune19[[#This Row],[FUNC]]),\"YES\",IF(_xlfn.ISFORMULA(tblSchMJune19[[#This Row],[FUNC]]),\"NO\",\"YES\")))","v":"NO"}]
[{"$f":"CONCATENATE(tblSchMJune19[[#This Row],[Primary Account]],tblSchMJune19[[#This Row],[Primary Name]],tblSchMJune19[[#This Row],[Secondary Acct]],tblSchMJune19[[#This Row],[Secondary  Name]],tblSchMJune19[[#This Row],[Alloc4FUNC]])","v":"4098300SCHMAT415300Environmental Cleanup AccrualSO"},4098300,{"$f":"IF(tblSchMJune19[[#This Row],[Primary Account]]=4098200,\"SCHMAP\",IF(tblSchMJune19[[#This Row],[Primary Account]]=4098300,\"SCHMAT\",IF(tblSchMJune19[[#This Row],[Primary Account]]=4099200,\"SCHMDP\",IF(tblSchMJune19[[#This Row],[Primary Account]]=4099300,\"SCHMDT\"))))","v":"SCHMAT"},"415300","Environmental Cleanup Accrual","SO",null,{"$f":"IF(OR(tblSchMJune19[[#This Row],[Alloc]]=\"IDU\",tblSchMJune19[[#This Row],[Alloc]]=\"OR\",tblSchMJune19[[#This Row],[Alloc]]=\"UT\",tblSchMJune19[[#This Row],[Alloc]]=\"WYU\",tblSchMJune19[[#This Row],[Alloc]]=\"WYP\",tblSchMJune19[[#This Row],[Alloc]]=\"CA\",tblSchMJune19[[#This Row],[Alloc]]=\"WA\"),\"SITUS\",tblSchMJune19[[#This Row],[Alloc]])","v":"SO"},{"$f":"INDEX(tblSchMLookup[FUNC],MATCH(tblSchMJune19[[#This Row],[Concat]],tblSchMLookup[Concat],0))","v":{"$error":"#N/A"}},{"$f":"IF(tblSchMJune19[[#This Row],[Total ($000)]]=0,\"NO\",IF(ISNA(tblSchMJune19[[#This Row],[FUNC]]),\"YES\",IF(_xlfn.ISFORMULA(tblSchMJune19[[#This Row],[FUNC]]),\"NO\",\"YES\")))","v":"NO"}]
[{"$f":"CONCATENATE(tblSchMJune19[[#This Row],[Primary Account]],tblSchMJune19[[#This Row],[Primary Name]],tblSchMJune19[[#This Row],[Secondary Acct]],tblSchMJune19[[#This Row],[Secondary  Name]],tblSchMJune19[[#This Row],[Alloc4FUNC]])","v":"4098300SCHMAT415301Environmental Costs WASITUS"},4098300,{"$f":"IF(tblSchMJune19[[#This Row],[Primary Account]]=4098200,\"SCHMAP\",IF(tblSchMJune19[[#This Row],[Primary Account]]=4098300,\"SCHMAT\",IF(tblSchMJune19[[#This Row],[Primary Account]]=4099200,\"SCHMDP\",IF(tblSchMJune19[[#This Row],[Primary Account]]=4099300,\"SCHMDT\"))))","v":"SCHMAT"},"415301","Environmental Costs WA","WA",103.76456,{"$f":"IF(OR(tblSchMJune19[[#This Row],[Alloc]]=\"IDU\",tblSchMJune19[[#This Row],[Alloc]]=\"OR\",tblSchMJune19[[#This Row],[Alloc]]=\"UT\",tblSchMJune19[[#This Row],[Alloc]]=\"WYU\",tblSchMJune19[[#This Row],[Alloc]]=\"WYP\",tblSchMJune19[[#This Row],[Alloc]]=\"CA\",tblSchMJune19[[#This Row],[Alloc]]=\"WA\"),\"SITUS\",tblSchMJune19[[#This Row],[Alloc]])","v":"SITUS"},{"$f":"INDEX(tblSchMLookup[FUNC],MATCH(tblSchMJune19[[#This Row],[Concat]],tblSchMLookup[Concat],0))","v":"ESD"},{"$f":"IF(tblSchMJune19[[#This Row],[Total ($000)]]=0,\"NO\",IF(ISNA(tblSchMJune19[[#This Row],[FUNC]]),\"YES\",IF(_xlfn.ISFORMULA(tblSchMJune19[[#This Row],[FUNC]]),\"NO\",\"YES\")))","v":"NO"}]
[{"$f":"CONCATENATE(tblSchMJune19[[#This Row],[Primary Account]],tblSchMJune19[[#This Row],[Primary Name]],tblSchMJune19[[#This Row],[Secondary Acct]],tblSchMJune19[[#This Row],[Secondary  Name]],tblSchMJune19[[#This Row],[Alloc4FUNC]])","v":"4098300SCHMAT415406Reg Asset Utah ECAMOTHER"},4098300,{"$f":"IF(tblSchMJune19[[#This Row],[Primary Account]]=4098200,\"SCHMAP\",IF(tblSchMJune19[[#This Row],[Primary Account]]=4098300,\"SCHMAT\",IF(tblSchMJune19[[#This Row],[Primary Account]]=4099200,\"SCHMDP\",IF(tblSchMJune19[[#This Row],[Primary Account]]=4099300,\"SCHMDT\"))))","v":"SCHMAT"},"415406","Reg Asset Utah ECAM","OTHER",null,{"$f":"IF(OR(tblSchMJune19[[#This Row],[Alloc]]=\"IDU\",tblSchMJune19[[#This Row],[Alloc]]=\"OR\",tblSchMJune19[[#This Row],[Alloc]]=\"UT\",tblSchMJune19[[#This Row],[Alloc]]=\"WYU\",tblSchMJune19[[#This Row],[Alloc]]=\"WYP\",tblSchMJune19[[#This Row],[Alloc]]=\"CA\",tblSchMJune19[[#This Row],[Alloc]]=\"WA\"),\"SITUS\",tblSchMJune19[[#This Row],[Alloc]])","v":"OTHER"},{"$f":"INDEX(tblSchMLookup[FUNC],MATCH(tblSchMJune19[[#This Row],[Concat]],tblSchMLookup[Concat],0))","v":{"$error":"#N/A"}},{"$f":"IF(tblSchMJune19[[#This Row],[Total ($000)]]=0,\"NO\",IF(ISNA(tblSchMJune19[[#This Row],[FUNC]]),\"YES\",IF(_xlfn.ISFORMULA(tblSchMJune19[[#This Row],[FUNC]]),\"NO\",\"YES\")))","v":"NO"}]
[{"$f":"CONCATENATE(tblSchMJune19[[#This Row],[Primary Account]],tblSchMJune19[[#This Row],[Primary Name]],tblSchMJune19[[#This Row],[Secondary Acct]],tblSchMJune19[[#This Row],[Secondary  Name]],tblSchMJune19[[#This Row],[Alloc4FUNC]])","v":"4098300SCHMAT415423Contra PP&E Deer CreekSE"},4098300,{"$f":"IF(tblSchMJune19[[#This Row],[Primary Account]]=4098200,\"SCHMAP\",IF(tblSchMJune19[[#This Row],[Primary Account]]=4098300,\"SCHMAT\",IF(tblSchMJune19[[#This Row],[Primary Account]]=4099200,\"SCHMDP\",IF(tblSchMJune19[[#This Row],[Primary Account]]=4099300,\"SCHMDT\"))))","v":"SCHMAT"},"415423","Contra PP&E Deer Creek","SE",null,{"$f":"IF(OR(tblSchMJune19[[#This Row],[Alloc]]=\"IDU\",tblSchMJune19[[#This Row],[Alloc]]=\"OR\",tblSchMJune19[[#This Row],[Alloc]]=\"UT\",tblSchMJune19[[#This Row],[Alloc]]=\"WYU\",tblSchMJune19[[#This Row],[Alloc]]=\"WYP\",tblSchMJune19[[#This Row],[Alloc]]=\"CA\",tblSchMJune19[[#This Row],[Alloc]]=\"WA\"),\"SITUS\",tblSchMJune19[[#This Row],[Alloc]])","v":"SE"},{"$f":"INDEX(tblSchMLookup[FUNC],MATCH(tblSchMJune19[[#This Row],[Concat]],tblSchMLookup[Concat],0))","v":{"$error":"#N/A"}},{"$f":"IF(tblSchMJune19[[#This Row],[Total ($000)]]=0,\"NO\",IF(ISNA(tblSchMJune19[[#This Row],[FUNC]]),\"YES\",IF(_xlfn.ISFORMULA(tblSchMJune19[[#This Row],[FUNC]]),\"NO\",\"YES\")))","v":"NO"}]
[{"$f":"CONCATENATE(tblSchMJune19[[#This Row],[Primary Account]],tblSchMJune19[[#This Row],[Primary Name]],tblSchMJune19[[#This Row],[Secondary Acct]],tblSchMJune19[[#This Row],[Secondary  Name]],tblSchMJune19[[#This Row],[Alloc4FUNC]])","v":"4098300SCHMAT415424Contra Reg Asset - Deer Creek AbandonmenSE"},4098300,{"$f":"IF(tblSchMJune19[[#This Row],[Primary Account]]=4098200,\"SCHMAP\",IF(tblSchMJune19[[#This Row],[Primary Account]]=4098300,\"SCHMAT\",IF(tblSchMJune19[[#This Row],[Primary Account]]=4099200,\"SCHMDP\",IF(tblSchMJune19[[#This Row],[Primary Account]]=4099300,\"SCHMDT\"))))","v":"SCHMAT"},"415424","Contra Reg Asset - Deer Creek Abandonmen","SE",15773.6726,{"$f":"IF(OR(tblSchMJune19[[#This Row],[Alloc]]=\"IDU\",tblSchMJune19[[#This Row],[Alloc]]=\"OR\",tblSchMJune19[[#This Row],[Alloc]]=\"UT\",tblSchMJune19[[#This Row],[Alloc]]=\"WYU\",tblSchMJune19[[#This Row],[Alloc]]=\"WYP\",tblSchMJune19[[#This Row],[Alloc]]=\"CA\",tblSchMJune19[[#This Row],[Alloc]]=\"WA\"),\"SITUS\",tblSchMJune19[[#This Row],[Alloc]])","v":"SE"},{"$f":"INDEX(tblSchMLookup[FUNC],MATCH(tblSchMJune19[[#This Row],[Concat]],tblSchMLookup[Concat],0))","v":"P"},{"$f":"IF(tblSchMJune19[[#This Row],[Total ($000)]]=0,\"NO\",IF(ISNA(tblSchMJune19[[#This Row],[FUNC]]),\"YES\",IF(_xlfn.ISFORMULA(tblSchMJune19[[#This Row],[FUNC]]),\"NO\",\"YES\")))","v":"NO"}]
[{"$f":"CONCATENATE(tblSchMJune19[[#This Row],[Primary Account]],tblSchMJune19[[#This Row],[Primary Name]],tblSchMJune19[[#This Row],[Secondary Acct]],tblSchMJune19[[#This Row],[Secondary  Name]],tblSchMJune19[[#This Row],[Alloc4FUNC]])","v":"4098300SCHMAT415425Contra Reg Asset - UMWA PensionOTHER"},4098300,{"$f":"IF(tblSchMJune19[[#This Row],[Primary Account]]=4098200,\"SCHMAP\",IF(tblSchMJune19[[#This Row],[Primary Account]]=4098300,\"SCHMAT\",IF(tblSchMJune19[[#This Row],[Primary Account]]=4099200,\"SCHMDP\",IF(tblSchMJune19[[#This Row],[Primary Account]]=4099300,\"SCHMDT\"))))","v":"SCHMAT"},"415425","Contra Reg Asset - UMWA Pension","OTHER",453.58100000000002,{"$f":"IF(OR(tblSchMJune19[[#This Row],[Alloc]]=\"IDU\",tblSchMJune19[[#This Row],[Alloc]]=\"OR\",tblSchMJune19[[#This Row],[Alloc]]=\"UT\",tblSchMJune19[[#This Row],[Alloc]]=\"WYU\",tblSchMJune19[[#This Row],[Alloc]]=\"WYP\",tblSchMJune19[[#This Row],[Alloc]]=\"CA\",tblSchMJune19[[#This Row],[Alloc]]=\"WA\"),\"SITUS\",tblSchMJune19[[#This Row],[Alloc]])","v":"OTHER"},{"$f":"INDEX(tblSchMLookup[FUNC],MATCH(tblSchMJune19[[#This Row],[Concat]],tblSchMLookup[Concat],0))","v":"P"},{"$f":"IF(tblSchMJune19[[#This Row],[Total ($000)]]=0,\"NO\",IF(ISNA(tblSchMJune19[[#This Row],[FUNC]]),\"YES\",IF(_xlfn.ISFORMULA(tblSchMJune19[[#This Row],[FUNC]]),\"NO\",\"YES\")))","v":"NO"}]
[{"$f":"CONCATENATE(tblSchMJune19[[#This Row],[Primary Account]],tblSchMJune19[[#This Row],[Primary Name]],tblSchMJune19[[#This Row],[Secondary Acct]],tblSchMJune19[[#This Row],[Secondary  Name]],tblSchMJune19[[#This Row],[Alloc4FUNC]])","v":"4098300SCHMAT415430Reg Asset - CA - Transportation  ElectriOTHER"},4098300,{"$f":"IF(tblSchMJune19[[#This Row],[Primary Account]]=4098200,\"SCHMAP\",IF(tblSchMJune19[[#This Row],[Primary Account]]=4098300,\"SCHMAT\",IF(tblSchMJune19[[#This Row],[Primary Account]]=4099200,\"SCHMDP\",IF(tblSchMJune19[[#This Row],[Primary Account]]=4099300,\"SCHMDT\"))))","v":"SCHMAT"},"415430","Reg Asset - CA - Transportation  Electri","OTHER",444.89134999999999,{"$f":"IF(OR(tblSchMJune19[[#This Row],[Alloc]]=\"IDU\",tblSchMJune19[[#This Row],[Alloc]]=\"OR\",tblSchMJune19[[#This Row],[Alloc]]=\"UT\",tblSchMJune19[[#This Row],[Alloc]]=\"WYU\",tblSchMJune19[[#This Row],[Alloc]]=\"WYP\",tblSchMJune19[[#This Row],[Alloc]]=\"CA\",tblSchMJune19[[#This Row],[Alloc]]=\"WA\"),\"SITUS\",tblSchMJune19[[#This Row],[Alloc]])","v":"OTHER"},{"$f":"INDEX(tblSchMLookup[FUNC],MATCH(tblSchMJune19[[#This Row],[Concat]],tblSchMLookup[Concat],0))","v":"PTD"},{"$f":"IF(tblSchMJune19[[#This Row],[Total ($000)]]=0,\"NO\",IF(ISNA(tblSchMJune19[[#This Row],[FUNC]]),\"YES\",IF(_xlfn.ISFORMULA(tblSchMJune19[[#This Row],[FUNC]]),\"NO\",\"YES\")))","v":"NO"}]
[{"$f":"CONCATENATE(tblSchMJune19[[#This Row],[Primary Account]],tblSchMJune19[[#This Row],[Primary Name]],tblSchMJune19[[#This Row],[Secondary Acct]],tblSchMJune19[[#This Row],[Secondary  Name]],tblSchMJune19[[#This Row],[Alloc4FUNC]])","v":"4098300SCHMAT415500Cholla Plt Transact Costs-APS AmortSGCT"},4098300,{"$f":"IF(tblSchMJune19[[#This Row],[Primary Account]]=4098200,\"SCHMAP\",IF(tblSchMJune19[[#This Row],[Primary Account]]=4098300,\"SCHMAT\",IF(tblSchMJune19[[#This Row],[Primary Account]]=4099200,\"SCHMDP\",IF(tblSchMJune19[[#This Row],[Primary Account]]=4099300,\"SCHMDT\"))))","v":"SCHMAT"},"415500","Cholla Plt Transact Costs-APS Amort","SGCT",null,{"$f":"IF(OR(tblSchMJune19[[#This Row],[Alloc]]=\"IDU\",tblSchMJune19[[#This Row],[Alloc]]=\"OR\",tblSchMJune19[[#This Row],[Alloc]]=\"UT\",tblSchMJune19[[#This Row],[Alloc]]=\"WYU\",tblSchMJune19[[#This Row],[Alloc]]=\"WYP\",tblSchMJune19[[#This Row],[Alloc]]=\"CA\",tblSchMJune19[[#This Row],[Alloc]]=\"WA\"),\"SITUS\",tblSchMJune19[[#This Row],[Alloc]])","v":"SGCT"},{"$f":"INDEX(tblSchMLookup[FUNC],MATCH(tblSchMJune19[[#This Row],[Concat]],tblSchMLookup[Concat],0))","v":"P"},{"$f":"IF(tblSchMJune19[[#This Row],[Total ($000)]]=0,\"NO\",IF(ISNA(tblSchMJune19[[#This Row],[FUNC]]),\"YES\",IF(_xlfn.ISFORMULA(tblSchMJune19[[#This Row],[FUNC]]),\"NO\",\"YES\")))","v":"NO"}]
[{"$f":"CONCATENATE(tblSchMJune19[[#This Row],[Primary Account]],tblSchMJune19[[#This Row],[Primary Name]],tblSchMJune19[[#This Row],[Secondary Acct]],tblSchMJune19[[#This Row],[Secondary  Name]],tblSchMJune19[[#This Row],[Alloc4FUNC]])","v":"4098300SCHMAT415510WA Disallowed Colstrip #3 Write-offSITUS"},4098300,{"$f":"IF(tblSchMJune19[[#This Row],[Primary Account]]=4098200,\"SCHMAP\",IF(tblSchMJune19[[#This Row],[Primary Account]]=4098300,\"SCHMAT\",IF(tblSchMJune19[[#This Row],[Primary Account]]=4099200,\"SCHMDP\",IF(tblSchMJune19[[#This Row],[Primary Account]]=4099300,\"SCHMDT\"))))","v":"SCHMAT"},"415510","WA Disallowed Colstrip #3 Write-off","WA",52.188000000000002,{"$f":"IF(OR(tblSchMJune19[[#This Row],[Alloc]]=\"IDU\",tblSchMJune19[[#This Row],[Alloc]]=\"OR\",tblSchMJune19[[#This Row],[Alloc]]=\"UT\",tblSchMJune19[[#This Row],[Alloc]]=\"WYU\",tblSchMJune19[[#This Row],[Alloc]]=\"WYP\",tblSchMJune19[[#This Row],[Alloc]]=\"CA\",tblSchMJune19[[#This Row],[Alloc]]=\"WA\"),\"SITUS\",tblSchMJune19[[#This Row],[Alloc]])","v":"SITUS"},{"$f":"INDEX(tblSchMLookup[FUNC],MATCH(tblSchMJune19[[#This Row],[Concat]],tblSchMLookup[Concat],0))","v":"P"},{"$f":"IF(tblSchMJune19[[#This Row],[Total ($000)]]=0,\"NO\",IF(ISNA(tblSchMJune19[[#This Row],[FUNC]]),\"YES\",IF(_xlfn.ISFORMULA(tblSchMJune19[[#This Row],[FUNC]]),\"NO\",\"YES\")))","v":"NO"}]
[{"$f":"CONCATENATE(tblSchMJune19[[#This Row],[Primary Account]],tblSchMJune19[[#This Row],[Primary Name]],tblSchMJune19[[#This Row],[Secondary Acct]],tblSchMJune19[[#This Row],[Secondary  Name]],tblSchMJune19[[#This Row],[Alloc4FUNC]])","v":"4098300SCHMAT415555WY PCAM Def Net Power CostsSITUS"},4098300,{"$f":"IF(tblSchMJune19[[#This Row],[Primary Account]]=4098200,\"SCHMAP\",IF(tblSchMJune19[[#This Row],[Primary Account]]=4098300,\"SCHMAT\",IF(tblSchMJune19[[#This Row],[Primary Account]]=4099200,\"SCHMDP\",IF(tblSchMJune19[[#This Row],[Primary Account]]=4099300,\"SCHMDT\"))))","v":"SCHMAT"},"415555","WY PCAM Def Net Power Costs","WYP",null,{"$f":"IF(OR(tblSchMJune19[[#This Row],[Alloc]]=\"IDU\",tblSchMJune19[[#This Row],[Alloc]]=\"OR\",tblSchMJune19[[#This Row],[Alloc]]=\"UT\",tblSchMJune19[[#This Row],[Alloc]]=\"WYU\",tblSchMJune19[[#This Row],[Alloc]]=\"WYP\",tblSchMJune19[[#This Row],[Alloc]]=\"CA\",tblSchMJune19[[#This Row],[Alloc]]=\"WA\"),\"SITUS\",tblSchMJune19[[#This Row],[Alloc]])","v":"SITUS"},{"$f":"INDEX(tblSchMLookup[FUNC],MATCH(tblSchMJune19[[#This Row],[Concat]],tblSchMLookup[Concat],0))","v":{"$error":"#N/A"}},{"$f":"IF(tblSchMJune19[[#This Row],[Total ($000)]]=0,\"NO\",IF(ISNA(tblSchMJune19[[#This Row],[FUNC]]),\"YES\",IF(_xlfn.ISFORMULA(tblSchMJune19[[#This Row],[FUNC]]),\"NO\",\"YES\")))","v":"NO"}]
[{"$f":"CONCATENATE(tblSchMJune19[[#This Row],[Primary Account]],tblSchMJune19[[#This Row],[Primary Name]],tblSchMJune19[[#This Row],[Secondary Acct]],tblSchMJune19[[#This Row],[Secondary  Name]],tblSchMJune19[[#This Row],[Alloc4FUNC]])","v":"4098300SCHMAT415640IDAI Costs-Direct Access-CASITUS"},4098300,{"$f":"IF(tblSchMJune19[[#This Row],[Primary Account]]=4098200,\"SCHMAP\",IF(tblSchMJune19[[#This Row],[Primary Account]]=4098300,\"SCHMAT\",IF(tblSchMJune19[[#This Row],[Primary Account]]=4099200,\"SCHMDP\",IF(tblSchMJune19[[#This Row],[Primary Account]]=4099300,\"SCHMDT\"))))","v":"SCHMAT"},"415640","IDAI Costs-Direct Access-CA","CA",null,{"$f":"IF(OR(tblSchMJune19[[#This Row],[Alloc]]=\"IDU\",tblSchMJune19[[#This Row],[Alloc]]=\"OR\",tblSchMJune19[[#This Row],[Alloc]]=\"UT\",tblSchMJune19[[#This Row],[Alloc]]=\"WYU\",tblSchMJune19[[#This Row],[Alloc]]=\"WYP\",tblSchMJune19[[#This Row],[Alloc]]=\"CA\",tblSchMJune19[[#This Row],[Alloc]]=\"WA\"),\"SITUS\",tblSchMJune19[[#This Row],[Alloc]])","v":"SITUS"},{"$f":"INDEX(tblSchMLookup[FUNC],MATCH(tblSchMJune19[[#This Row],[Concat]],tblSchMLookup[Concat],0))","v":{"$error":"#N/A"}},{"$f":"IF(tblSchMJune19[[#This Row],[Total ($000)]]=0,\"NO\",IF(ISNA(tblSchMJune19[[#This Row],[FUNC]]),\"YES\",IF(_xlfn.ISFORMULA(tblSchMJune19[[#This Row],[FUNC]]),\"NO\",\"YES\")))","v":"NO"}]
[{"$f":"CONCATENATE(tblSchMJune19[[#This Row],[Primary Account]],tblSchMJune19[[#This Row],[Primary Name]],tblSchMJune19[[#This Row],[Secondary Acct]],tblSchMJune19[[#This Row],[Secondary  Name]],tblSchMJune19[[#This Row],[Alloc4FUNC]])","v":"4098300SCHMAT415650SB 1149-Related Reg Assets-OROTHER"},4098300,{"$f":"IF(tblSchMJune19[[#This Row],[Primary Account]]=4098200,\"SCHMAP\",IF(tblSchMJune19[[#This Row],[Primary Account]]=4098300,\"SCHMAT\",IF(tblSchMJune19[[#This Row],[Primary Account]]=4099200,\"SCHMDP\",IF(tblSchMJune19[[#This Row],[Primary Account]]=4099300,\"SCHMDT\"))))","v":"SCHMAT"},"415650","SB 1149-Related Reg Assets-OR","OTHER",null,{"$f":"IF(OR(tblSchMJune19[[#This Row],[Alloc]]=\"IDU\",tblSchMJune19[[#This Row],[Alloc]]=\"OR\",tblSchMJune19[[#This Row],[Alloc]]=\"UT\",tblSchMJune19[[#This Row],[Alloc]]=\"WYU\",tblSchMJune19[[#This Row],[Alloc]]=\"WYP\",tblSchMJune19[[#This Row],[Alloc]]=\"CA\",tblSchMJune19[[#This Row],[Alloc]]=\"WA\"),\"SITUS\",tblSchMJune19[[#This Row],[Alloc]])","v":"OTHER"},{"$f":"INDEX(tblSchMLookup[FUNC],MATCH(tblSchMJune19[[#This Row],[Concat]],tblSchMLookup[Concat],0))","v":{"$error":"#N/A"}},{"$f":"IF(tblSchMJune19[[#This Row],[Total ($000)]]=0,\"NO\",IF(ISNA(tblSchMJune19[[#This Row],[FUNC]]),\"YES\",IF(_xlfn.ISFORMULA(tblSchMJune19[[#This Row],[FUNC]]),\"NO\",\"YES\")))","v":"NO"}]
[{"$f":"CONCATENATE(tblSchMJune19[[#This Row],[Primary Account]],tblSchMJune19[[#This Row],[Primary Name]],tblSchMJune19[[#This Row],[Secondary Acct]],tblSchMJune19[[#This Row],[Secondary  Name]],tblSchMJune19[[#This Row],[Alloc4FUNC]])","v":"4098300SCHMAT415680OR Deferred Intevenor Funding GrantsSITUS"},4098300,{"$f":"IF(tblSchMJune19[[#This Row],[Primary Account]]=4098200,\"SCHMAP\",IF(tblSchMJune19[[#This Row],[Primary Account]]=4098300,\"SCHMAT\",IF(tblSchMJune19[[#This Row],[Primary Account]]=4099200,\"SCHMDP\",IF(tblSchMJune19[[#This Row],[Primary Account]]=4099300,\"SCHMDT\"))))","v":"SCHMAT"},"415680","OR Deferred Intevenor Funding Grants","OR",null,{"$f":"IF(OR(tblSchMJune19[[#This Row],[Alloc]]=\"IDU\",tblSchMJune19[[#This Row],[Alloc]]=\"OR\",tblSchMJune19[[#This Row],[Alloc]]=\"UT\",tblSchMJune19[[#This Row],[Alloc]]=\"WYU\",tblSchMJune19[[#This Row],[Alloc]]=\"WYP\",tblSchMJune19[[#This Row],[Alloc]]=\"CA\",tblSchMJune19[[#This Row],[Alloc]]=\"WA\"),\"SITUS\",tblSchMJune19[[#This Row],[Alloc]])","v":"SITUS"},{"$f":"INDEX(tblSchMLookup[FUNC],MATCH(tblSchMJune19[[#This Row],[Concat]],tblSchMLookup[Concat],0))","v":{"$error":"#N/A"}},{"$f":"IF(tblSchMJune19[[#This Row],[Total ($000)]]=0,\"NO\",IF(ISNA(tblSchMJune19[[#This Row],[FUNC]]),\"YES\",IF(_xlfn.ISFORMULA(tblSchMJune19[[#This Row],[FUNC]]),\"NO\",\"YES\")))","v":"NO"}]
[{"$f":"CONCATENATE(tblSchMJune19[[#This Row],[Primary Account]],tblSchMJune19[[#This Row],[Primary Name]],tblSchMJune19[[#This Row],[Secondary Acct]],tblSchMJune19[[#This Row],[Secondary  Name]],tblSchMJune19[[#This Row],[Alloc4FUNC]])","v":"4098300SCHMAT415700Reg Liability BPA balancing accounts-OROTHER"},4098300,{"$f":"IF(tblSchMJune19[[#This Row],[Primary Account]]=4098200,\"SCHMAP\",IF(tblSchMJune19[[#This Row],[Primary Account]]=4098300,\"SCHMAT\",IF(tblSchMJune19[[#This Row],[Primary Account]]=4099200,\"SCHMDP\",IF(tblSchMJune19[[#This Row],[Primary Account]]=4099300,\"SCHMDT\"))))","v":"SCHMAT"},"415700","Reg Liability BPA balancing accounts-OR","OTHER",null,{"$f":"IF(OR(tblSchMJune19[[#This Row],[Alloc]]=\"IDU\",tblSchMJune19[[#This Row],[Alloc]]=\"OR\",tblSchMJune19[[#This Row],[Alloc]]=\"UT\",tblSchMJune19[[#This Row],[Alloc]]=\"WYU\",tblSchMJune19[[#This Row],[Alloc]]=\"WYP\",tblSchMJune19[[#This Row],[Alloc]]=\"CA\",tblSchMJune19[[#This Row],[Alloc]]=\"WA\"),\"SITUS\",tblSchMJune19[[#This Row],[Alloc]])","v":"OTHER"},{"$f":"INDEX(tblSchMLookup[FUNC],MATCH(tblSchMJune19[[#This Row],[Concat]],tblSchMLookup[Concat],0))","v":{"$error":"#N/A"}},{"$f":"IF(tblSchMJune19[[#This Row],[Total ($000)]]=0,\"NO\",IF(ISNA(tblSchMJune19[[#This Row],[FUNC]]),\"YES\",IF(_xlfn.ISFORMULA(tblSchMJune19[[#This Row],[FUNC]]),\"NO\",\"YES\")))","v":"NO"}]
[{"$f":"CONCATENATE(tblSchMJune19[[#This Row],[Primary Account]],tblSchMJune19[[#This Row],[Primary Name]],tblSchMJune19[[#This Row],[Secondary Acct]],tblSchMJune19[[#This Row],[Secondary  Name]],tblSchMJune19[[#This Row],[Alloc4FUNC]])","v":"4098300SCHMAT415701CA Deferred Intervenor FundingSITUS"},4098300,{"$f":"IF(tblSchMJune19[[#This Row],[Primary Account]]=4098200,\"SCHMAP\",IF(tblSchMJune19[[#This Row],[Primary Account]]=4098300,\"SCHMAT\",IF(tblSchMJune19[[#This Row],[Primary Account]]=4099200,\"SCHMDP\",IF(tblSchMJune19[[#This Row],[Primary Account]]=4099300,\"SCHMDT\"))))","v":"SCHMAT"},"415701","CA Deferred Intervenor Funding","CA",null,{"$f":"IF(OR(tblSchMJune19[[#This Row],[Alloc]]=\"IDU\",tblSchMJune19[[#This Row],[Alloc]]=\"OR\",tblSchMJune19[[#This Row],[Alloc]]=\"UT\",tblSchMJune19[[#This Row],[Alloc]]=\"WYU\",tblSchMJune19[[#This Row],[Alloc]]=\"WYP\",tblSchMJune19[[#This Row],[Alloc]]=\"CA\",tblSchMJune19[[#This Row],[Alloc]]=\"WA\"),\"SITUS\",tblSchMJune19[[#This Row],[Alloc]])","v":"SITUS"},{"$f":"INDEX(tblSchMLookup[FUNC],MATCH(tblSchMJune19[[#This Row],[Concat]],tblSchMLookup[Concat],0))","v":{"$error":"#N/A"}},{"$f":"IF(tblSchMJune19[[#This Row],[Total ($000)]]=0,\"NO\",IF(ISNA(tblSchMJune19[[#This Row],[FUNC]]),\"YES\",IF(_xlfn.ISFORMULA(tblSchMJune19[[#This Row],[FUNC]]),\"NO\",\"YES\")))","v":"NO"}]
[{"$f":"CONCATENATE(tblSchMJune19[[#This Row],[Primary Account]],tblSchMJune19[[#This Row],[Primary Name]],tblSchMJune19[[#This Row],[Secondary Acct]],tblSchMJune19[[#This Row],[Secondary  Name]],tblSchMJune19[[#This Row],[Alloc4FUNC]])","v":"4098300SCHMAT415702Reg Asset - Lake Side Liq.SITUS"},4098300,{"$f":"IF(tblSchMJune19[[#This Row],[Primary Account]]=4098200,\"SCHMAP\",IF(tblSchMJune19[[#This Row],[Primary Account]]=4098300,\"SCHMAT\",IF(tblSchMJune19[[#This Row],[Primary Account]]=4099200,\"SCHMDP\",IF(tblSchMJune19[[#This Row],[Primary Account]]=4099300,\"SCHMDT\"))))","v":"SCHMAT"},"415702","Reg Asset - Lake Side Liq.","WYP",27.331,{"$f":"IF(OR(tblSchMJune19[[#This Row],[Alloc]]=\"IDU\",tblSchMJune19[[#This Row],[Alloc]]=\"OR\",tblSchMJune19[[#This Row],[Alloc]]=\"UT\",tblSchMJune19[[#This Row],[Alloc]]=\"WYU\",tblSchMJune19[[#This Row],[Alloc]]=\"WYP\",tblSchMJune19[[#This Row],[Alloc]]=\"CA\",tblSchMJune19[[#This Row],[Alloc]]=\"WA\"),\"SITUS\",tblSchMJune19[[#This Row],[Alloc]])","v":"SITUS"},{"$f":"INDEX(tblSchMLookup[FUNC],MATCH(tblSchMJune19[[#This Row],[Concat]],tblSchMLookup[Concat],0))","v":"P"},{"$f":"IF(tblSchMJune19[[#This Row],[Total ($000)]]=0,\"NO\",IF(ISNA(tblSchMJune19[[#This Row],[FUNC]]),\"YES\",IF(_xlfn.ISFORMULA(tblSchMJune19[[#This Row],[FUNC]]),\"NO\",\"YES\")))","v":"NO"}]
[{"$f":"CONCATENATE(tblSchMJune19[[#This Row],[Primary Account]],tblSchMJune19[[#This Row],[Primary Name]],tblSchMJune19[[#This Row],[Secondary Acct]],tblSchMJune19[[#This Row],[Secondary  Name]],tblSchMJune19[[#This Row],[Alloc4FUNC]])","v":"4098300SCHMAT415703Goodnoe Hills Liquidation Damages - WYSITUS"},4098300,{"$f":"IF(tblSchMJune19[[#This Row],[Primary Account]]=4098200,\"SCHMAP\",IF(tblSchMJune19[[#This Row],[Primary Account]]=4098300,\"SCHMAT\",IF(tblSchMJune19[[#This Row],[Primary Account]]=4099200,\"SCHMDP\",IF(tblSchMJune19[[#This Row],[Primary Account]]=4099300,\"SCHMDT\"))))","v":"SCHMAT"},"415703","Goodnoe Hills Liquidation Damages - WY","WYP",21.25,{"$f":"IF(OR(tblSchMJune19[[#This Row],[Alloc]]=\"IDU\",tblSchMJune19[[#This Row],[Alloc]]=\"OR\",tblSchMJune19[[#This Row],[Alloc]]=\"UT\",tblSchMJune19[[#This Row],[Alloc]]=\"WYU\",tblSchMJune19[[#This Row],[Alloc]]=\"WYP\",tblSchMJune19[[#This Row],[Alloc]]=\"CA\",tblSchMJune19[[#This Row],[Alloc]]=\"WA\"),\"SITUS\",tblSchMJune19[[#This Row],[Alloc]])","v":"SITUS"},{"$f":"INDEX(tblSchMLookup[FUNC],MATCH(tblSchMJune19[[#This Row],[Concat]],tblSchMLookup[Concat],0))","v":"P"},{"$f":"IF(tblSchMJune19[[#This Row],[Total ($000)]]=0,\"NO\",IF(ISNA(tblSchMJune19[[#This Row],[FUNC]]),\"YES\",IF(_xlfn.ISFORMULA(tblSchMJune19[[#This Row],[FUNC]]),\"NO\",\"YES\")))","v":"NO"}]
[{"$f":"CONCATENATE(tblSchMJune19[[#This Row],[Primary Account]],tblSchMJune19[[#This Row],[Primary Name]],tblSchMJune19[[#This Row],[Secondary Acct]],tblSchMJune19[[#This Row],[Secondary  Name]],tblSchMJune19[[#This Row],[Alloc4FUNC]])","v":"4098300SCHMAT415704Reg Liability - Tax Revenue Adjustment -SITUS"},4098300,{"$f":"IF(tblSchMJune19[[#This Row],[Primary Account]]=4098200,\"SCHMAP\",IF(tblSchMJune19[[#This Row],[Primary Account]]=4098300,\"SCHMAT\",IF(tblSchMJune19[[#This Row],[Primary Account]]=4099200,\"SCHMDP\",IF(tblSchMJune19[[#This Row],[Primary Account]]=4099300,\"SCHMDT\"))))","v":"SCHMAT"},"415704","Reg Liability - Tax Revenue Adjustment -","UT",null,{"$f":"IF(OR(tblSchMJune19[[#This Row],[Alloc]]=\"IDU\",tblSchMJune19[[#This Row],[Alloc]]=\"OR\",tblSchMJune19[[#This Row],[Alloc]]=\"UT\",tblSchMJune19[[#This Row],[Alloc]]=\"WYU\",tblSchMJune19[[#This Row],[Alloc]]=\"WYP\",tblSchMJune19[[#This Row],[Alloc]]=\"CA\",tblSchMJune19[[#This Row],[Alloc]]=\"WA\"),\"SITUS\",tblSchMJune19[[#This Row],[Alloc]])","v":"SITUS"},{"$f":"INDEX(tblSchMLookup[FUNC],MATCH(tblSchMJune19[[#This Row],[Concat]],tblSchMLookup[Concat],0))","v":{"$error":"#N/A"}},{"$f":"IF(tblSchMJune19[[#This Row],[Total ($000)]]=0,\"NO\",IF(ISNA(tblSchMJune19[[#This Row],[FUNC]]),\"YES\",IF(_xlfn.ISFORMULA(tblSchMJune19[[#This Row],[FUNC]]),\"NO\",\"YES\")))","v":"NO"}]
[{"$f":"CONCATENATE(tblSchMJune19[[#This Row],[Primary Account]],tblSchMJune19[[#This Row],[Primary Name]],tblSchMJune19[[#This Row],[Secondary Acct]],tblSchMJune19[[#This Row],[Secondary  Name]],tblSchMJune19[[#This Row],[Alloc4FUNC]])","v":"4098300SCHMAT415705Reg Liability - Tax Revenue Adjustment -SITUS"},4098300,{"$f":"IF(tblSchMJune19[[#This Row],[Primary Account]]=4098200,\"SCHMAP\",IF(tblSchMJune19[[#This Row],[Primary Account]]=4098300,\"SCHMAT\",IF(tblSchMJune19[[#This Row],[Primary Account]]=4099200,\"SCHMDP\",IF(tblSchMJune19[[#This Row],[Primary Account]]=4099300,\"SCHMDT\"))))","v":"SCHMAT"},"415705","Reg Liability - Tax Revenue Adjustment -","WYP",null,{"$f":"IF(OR(tblSchMJune19[[#This Row],[Alloc]]=\"IDU\",tblSchMJune19[[#This Row],[Alloc]]=\"OR\",tblSchMJune19[[#This Row],[Alloc]]=\"UT\",tblSchMJune19[[#This Row],[Alloc]]=\"WYU\",tblSchMJune19[[#This Row],[Alloc]]=\"WYP\",tblSchMJune19[[#This Row],[Alloc]]=\"CA\",tblSchMJune19[[#This Row],[Alloc]]=\"WA\"),\"SITUS\",tblSchMJune19[[#This Row],[Alloc]])","v":"SITUS"},{"$f":"INDEX(tblSchMLookup[FUNC],MATCH(tblSchMJune19[[#This Row],[Concat]],tblSchMLookup[Concat],0))","v":"PTD"},{"$f":"IF(tblSchMJune19[[#This Row],[Total ($000)]]=0,\"NO\",IF(ISNA(tblSchMJune19[[#This Row],[FUNC]]),\"YES\",IF(_xlfn.ISFORMULA(tblSchMJune19[[#This Row],[FUNC]]),\"NO\",\"YES\")))","v":"NO"}]
[{"$f":"CONCATENATE(tblSchMJune19[[#This Row],[Primary Account]],tblSchMJune19[[#This Row],[Primary Name]],tblSchMJune19[[#This Row],[Secondary Acct]],tblSchMJune19[[#This Row],[Secondary  Name]],tblSchMJune19[[#This Row],[Alloc4FUNC]])","v":"4098300SCHMAT415710Reg Liability - WA - Accelerated DepreciSITUS"},4098300,{"$f":"IF(tblSchMJune19[[#This Row],[Primary Account]]=4098200,\"SCHMAP\",IF(tblSchMJune19[[#This Row],[Primary Account]]=4098300,\"SCHMAT\",IF(tblSchMJune19[[#This Row],[Primary Account]]=4099200,\"SCHMDP\",IF(tblSchMJune19[[#This Row],[Primary Account]]=4099300,\"SCHMDT\"))))","v":"SCHMAT"},"415710","Reg Liability - WA - Accelerated Depreci","WA",12611.581,{"$f":"IF(OR(tblSchMJune19[[#This Row],[Alloc]]=\"IDU\",tblSchMJune19[[#This Row],[Alloc]]=\"OR\",tblSchMJune19[[#This Row],[Alloc]]=\"UT\",tblSchMJune19[[#This Row],[Alloc]]=\"WYU\",tblSchMJune19[[#This Row],[Alloc]]=\"WYP\",tblSchMJune19[[#This Row],[Alloc]]=\"CA\",tblSchMJune19[[#This Row],[Alloc]]=\"WA\"),\"SITUS\",tblSchMJune19[[#This Row],[Alloc]])","v":"SITUS"},{"$f":"INDEX(tblSchMLookup[FUNC],MATCH(tblSchMJune19[[#This Row],[Concat]],tblSchMLookup[Concat],0))","v":"P"},{"$f":"IF(tblSchMJune19[[#This Row],[Total ($000)]]=0,\"NO\",IF(ISNA(tblSchMJune19[[#This Row],[FUNC]]),\"YES\",IF(_xlfn.ISFORMULA(tblSchMJune19[[#This Row],[FUNC]]),\"NO\",\"YES\")))","v":"NO"}]
[{"$f":"CONCATENATE(tblSchMJune19[[#This Row],[Primary Account]],tblSchMJune19[[#This Row],[Primary Name]],tblSchMJune19[[#This Row],[Secondary Acct]],tblSchMJune19[[#This Row],[Secondary  Name]],tblSchMJune19[[#This Row],[Alloc4FUNC]])","v":"4098300SCHMAT415801Contra RTO Grid West N/R AllowanceSG"},4098300,{"$f":"IF(tblSchMJune19[[#This Row],[Primary Account]]=4098200,\"SCHMAP\",IF(tblSchMJune19[[#This Row],[Primary Account]]=4098300,\"SCHMAT\",IF(tblSchMJune19[[#This Row],[Primary Account]]=4099200,\"SCHMDP\",IF(tblSchMJune19[[#This Row],[Primary Account]]=4099300,\"SCHMDT\"))))","v":"SCHMAT"},"415801","Contra RTO Grid West N/R Allowance","SG",null,{"$f":"IF(OR(tblSchMJune19[[#This Row],[Alloc]]=\"IDU\",tblSchMJune19[[#This Row],[Alloc]]=\"OR\",tblSchMJune19[[#This Row],[Alloc]]=\"UT\",tblSchMJune19[[#This Row],[Alloc]]=\"WYU\",tblSchMJune19[[#This Row],[Alloc]]=\"WYP\",tblSchMJune19[[#This Row],[Alloc]]=\"CA\",tblSchMJune19[[#This Row],[Alloc]]=\"WA\"),\"SITUS\",tblSchMJune19[[#This Row],[Alloc]])","v":"SG"},{"$f":"INDEX(tblSchMLookup[FUNC],MATCH(tblSchMJune19[[#This Row],[Concat]],tblSchMLookup[Concat],0))","v":{"$error":"#N/A"}},{"$f":"IF(tblSchMJune19[[#This Row],[Total ($000)]]=0,\"NO\",IF(ISNA(tblSchMJune19[[#This Row],[FUNC]]),\"YES\",IF(_xlfn.ISFORMULA(tblSchMJune19[[#This Row],[FUNC]]),\"NO\",\"YES\")))","v":"NO"}]
[{"$f":"CONCATENATE(tblSchMJune19[[#This Row],[Primary Account]],tblSchMJune19[[#This Row],[Primary Name]],tblSchMJune19[[#This Row],[Secondary Acct]],tblSchMJune19[[#This Row],[Secondary  Name]],tblSchMJune19[[#This Row],[Alloc4FUNC]])","v":"4098300SCHMAT415802Contra RTO Grid West N/R w/o-WASITUS"},4098300,{"$f":"IF(tblSchMJune19[[#This Row],[Primary Account]]=4098200,\"SCHMAP\",IF(tblSchMJune19[[#This Row],[Primary Account]]=4098300,\"SCHMAT\",IF(tblSchMJune19[[#This Row],[Primary Account]]=4099200,\"SCHMDP\",IF(tblSchMJune19[[#This Row],[Primary Account]]=4099300,\"SCHMDT\"))))","v":"SCHMAT"},"415802","Contra RTO Grid West N/R w/o-WA","WA",null,{"$f":"IF(OR(tblSchMJune19[[#This Row],[Alloc]]=\"IDU\",tblSchMJune19[[#This Row],[Alloc]]=\"OR\",tblSchMJune19[[#This Row],[Alloc]]=\"UT\",tblSchMJune19[[#This Row],[Alloc]]=\"WYU\",tblSchMJune19[[#This Row],[Alloc]]=\"WYP\",tblSchMJune19[[#This Row],[Alloc]]=\"CA\",tblSchMJune19[[#This Row],[Alloc]]=\"WA\"),\"SITUS\",tblSchMJune19[[#This Row],[Alloc]])","v":"SITUS"},{"$f":"INDEX(tblSchMLookup[FUNC],MATCH(tblSchMJune19[[#This Row],[Concat]],tblSchMLookup[Concat],0))","v":{"$error":"#N/A"}},{"$f":"IF(tblSchMJune19[[#This Row],[Total ($000)]]=0,\"NO\",IF(ISNA(tblSchMJune19[[#This Row],[FUNC]]),\"YES\",IF(_xlfn.ISFORMULA(tblSchMJune19[[#This Row],[FUNC]]),\"NO\",\"YES\")))","v":"NO"}]
[{"$f":"CONCATENATE(tblSchMJune19[[#This Row],[Primary Account]],tblSchMJune19[[#This Row],[Primary Name]],tblSchMJune19[[#This Row],[Secondary Acct]],tblSchMJune19[[#This Row],[Secondary  Name]],tblSchMJune19[[#This Row],[Alloc4FUNC]])","v":"4098300SCHMAT415803WA RTO Grid West N/R w/oSITUS"},4098300,{"$f":"IF(tblSchMJune19[[#This Row],[Primary Account]]=4098200,\"SCHMAP\",IF(tblSchMJune19[[#This Row],[Primary Account]]=4098300,\"SCHMAT\",IF(tblSchMJune19[[#This Row],[Primary Account]]=4099200,\"SCHMDP\",IF(tblSchMJune19[[#This Row],[Primary Account]]=4099300,\"SCHMDT\"))))","v":"SCHMAT"},"415803","WA RTO Grid West N/R w/o","WA",null,{"$f":"IF(OR(tblSchMJune19[[#This Row],[Alloc]]=\"IDU\",tblSchMJune19[[#This Row],[Alloc]]=\"OR\",tblSchMJune19[[#This Row],[Alloc]]=\"UT\",tblSchMJune19[[#This Row],[Alloc]]=\"WYU\",tblSchMJune19[[#This Row],[Alloc]]=\"WYP\",tblSchMJune19[[#This Row],[Alloc]]=\"CA\",tblSchMJune19[[#This Row],[Alloc]]=\"WA\"),\"SITUS\",tblSchMJune19[[#This Row],[Alloc]])","v":"SITUS"},{"$f":"INDEX(tblSchMLookup[FUNC],MATCH(tblSchMJune19[[#This Row],[Concat]],tblSchMLookup[Concat],0))","v":{"$error":"#N/A"}},{"$f":"IF(tblSchMJune19[[#This Row],[Total ($000)]]=0,\"NO\",IF(ISNA(tblSchMJune19[[#This Row],[FUNC]]),\"YES\",IF(_xlfn.ISFORMULA(tblSchMJune19[[#This Row],[FUNC]]),\"NO\",\"YES\")))","v":"NO"}]
[{"$f":"CONCATENATE(tblSchMJune19[[#This Row],[Primary Account]],tblSchMJune19[[#This Row],[Primary Name]],tblSchMJune19[[#This Row],[Secondary Acct]],tblSchMJune19[[#This Row],[Secondary  Name]],tblSchMJune19[[#This Row],[Alloc4FUNC]])","v":"4098300SCHMAT415804RTO Grid West Notes Receivable-ORSITUS"},4098300,{"$f":"IF(tblSchMJune19[[#This Row],[Primary Account]]=4098200,\"SCHMAP\",IF(tblSchMJune19[[#This Row],[Primary Account]]=4098300,\"SCHMAT\",IF(tblSchMJune19[[#This Row],[Primary Account]]=4099200,\"SCHMDP\",IF(tblSchMJune19[[#This Row],[Primary Account]]=4099300,\"SCHMDT\"))))","v":"SCHMAT"},"415804","RTO Grid West Notes Receivable-OR","OR",null,{"$f":"IF(OR(tblSchMJune19[[#This Row],[Alloc]]=\"IDU\",tblSchMJune19[[#This Row],[Alloc]]=\"OR\",tblSchMJune19[[#This Row],[Alloc]]=\"UT\",tblSchMJune19[[#This Row],[Alloc]]=\"WYU\",tblSchMJune19[[#This Row],[Alloc]]=\"WYP\",tblSchMJune19[[#This Row],[Alloc]]=\"CA\",tblSchMJune19[[#This Row],[Alloc]]=\"WA\"),\"SITUS\",tblSchMJune19[[#This Row],[Alloc]])","v":"SITUS"},{"$f":"INDEX(tblSchMLookup[FUNC],MATCH(tblSchMJune19[[#This Row],[Concat]],tblSchMLookup[Concat],0))","v":{"$error":"#N/A"}},{"$f":"IF(tblSchMJune19[[#This Row],[Total ($000)]]=0,\"NO\",IF(ISNA(tblSchMJune19[[#This Row],[FUNC]]),\"YES\",IF(_xlfn.ISFORMULA(tblSchMJune19[[#This Row],[FUNC]]),\"NO\",\"YES\")))","v":"NO"}]
[{"$f":"CONCATENATE(tblSchMJune19[[#This Row],[Primary Account]],tblSchMJune19[[#This Row],[Primary Name]],tblSchMJune19[[#This Row],[Secondary Acct]],tblSchMJune19[[#This Row],[Secondary  Name]],tblSchMJune19[[#This Row],[Alloc4FUNC]])","v":"4098300SCHMAT415805RTO Grid West Notes Receivable-WYSITUS"},4098300,{"$f":"IF(tblSchMJune19[[#This Row],[Primary Account]]=4098200,\"SCHMAP\",IF(tblSchMJune19[[#This Row],[Primary Account]]=4098300,\"SCHMAT\",IF(tblSchMJune19[[#This Row],[Primary Account]]=4099200,\"SCHMDP\",IF(tblSchMJune19[[#This Row],[Primary Account]]=4099300,\"SCHMDT\"))))","v":"SCHMAT"},"415805","RTO Grid West Notes Receivable-WY","WYP",null,{"$f":"IF(OR(tblSchMJune19[[#This Row],[Alloc]]=\"IDU\",tblSchMJune19[[#This Row],[Alloc]]=\"OR\",tblSchMJune19[[#This Row],[Alloc]]=\"UT\",tblSchMJune19[[#This Row],[Alloc]]=\"WYU\",tblSchMJune19[[#This Row],[Alloc]]=\"WYP\",tblSchMJune19[[#This Row],[Alloc]]=\"CA\",tblSchMJune19[[#This Row],[Alloc]]=\"WA\"),\"SITUS\",tblSchMJune19[[#This Row],[Alloc]])","v":"SITUS"},{"$f":"INDEX(tblSchMLookup[FUNC],MATCH(tblSchMJune19[[#This Row],[Concat]],tblSchMLookup[Concat],0))","v":{"$error":"#N/A"}},{"$f":"IF(tblSchMJune19[[#This Row],[Total ($000)]]=0,\"NO\",IF(ISNA(tblSchMJune19[[#This Row],[FUNC]]),\"YES\",IF(_xlfn.ISFORMULA(tblSchMJune19[[#This Row],[FUNC]]),\"NO\",\"YES\")))","v":"NO"}]
[{"$f":"CONCATENATE(tblSchMJune19[[#This Row],[Primary Account]],tblSchMJune19[[#This Row],[Primary Name]],tblSchMJune19[[#This Row],[Secondary Acct]],tblSchMJune19[[#This Row],[Secondary  Name]],tblSchMJune19[[#This Row],[Alloc4FUNC]])","v":"4098300SCHMAT415806ID RTO Grid West N/RSITUS"},4098300,{"$f":"IF(tblSchMJune19[[#This Row],[Primary Account]]=4098200,\"SCHMAP\",IF(tblSchMJune19[[#This Row],[Primary Account]]=4098300,\"SCHMAT\",IF(tblSchMJune19[[#This Row],[Primary Account]]=4099200,\"SCHMDP\",IF(tblSchMJune19[[#This Row],[Primary Account]]=4099300,\"SCHMDT\"))))","v":"SCHMAT"},"415806","ID RTO Grid West N/R","IDU",null,{"$f":"IF(OR(tblSchMJune19[[#This Row],[Alloc]]=\"IDU\",tblSchMJune19[[#This Row],[Alloc]]=\"OR\",tblSchMJune19[[#This Row],[Alloc]]=\"UT\",tblSchMJune19[[#This Row],[Alloc]]=\"WYU\",tblSchMJune19[[#This Row],[Alloc]]=\"WYP\",tblSchMJune19[[#This Row],[Alloc]]=\"CA\",tblSchMJune19[[#This Row],[Alloc]]=\"WA\"),\"SITUS\",tblSchMJune19[[#This Row],[Alloc]])","v":"SITUS"},{"$f":"INDEX(tblSchMLookup[FUNC],MATCH(tblSchMJune19[[#This Row],[Concat]],tblSchMLookup[Concat],0))","v":{"$error":"#N/A"}},{"$f":"IF(tblSchMJune19[[#This Row],[Total ($000)]]=0,\"NO\",IF(ISNA(tblSchMJune19[[#This Row],[FUNC]]),\"YES\",IF(_xlfn.ISFORMULA(tblSchMJune19[[#This Row],[FUNC]]),\"NO\",\"YES\")))","v":"NO"}]
[{"$f":"CONCATENATE(tblSchMJune19[[#This Row],[Primary Account]],tblSchMJune19[[#This Row],[Primary Name]],tblSchMJune19[[#This Row],[Secondary Acct]],tblSchMJune19[[#This Row],[Secondary  Name]],tblSchMJune19[[#This Row],[Alloc4FUNC]])","v":"4098300SCHMAT415822Reg Asset _ Pension MMT -UTSITUS"},4098300,{"$f":"IF(tblSchMJune19[[#This Row],[Primary Account]]=4098200,\"SCHMAP\",IF(tblSchMJune19[[#This Row],[Primary Account]]=4098300,\"SCHMAT\",IF(tblSchMJune19[[#This Row],[Primary Account]]=4099200,\"SCHMDP\",IF(tblSchMJune19[[#This Row],[Primary Account]]=4099300,\"SCHMDT\"))))","v":"SCHMAT"},"415822","Reg Asset _ Pension MMT -UT","UT",null,{"$f":"IF(OR(tblSchMJune19[[#This Row],[Alloc]]=\"IDU\",tblSchMJune19[[#This Row],[Alloc]]=\"OR\",tblSchMJune19[[#This Row],[Alloc]]=\"UT\",tblSchMJune19[[#This Row],[Alloc]]=\"WYU\",tblSchMJune19[[#This Row],[Alloc]]=\"WYP\",tblSchMJune19[[#This Row],[Alloc]]=\"CA\",tblSchMJune19[[#This Row],[Alloc]]=\"WA\"),\"SITUS\",tblSchMJune19[[#This Row],[Alloc]])","v":"SITUS"},{"$f":"INDEX(tblSchMLookup[FUNC],MATCH(tblSchMJune19[[#This Row],[Concat]],tblSchMLookup[Concat],0))","v":"LABOR"},{"$f":"IF(tblSchMJune19[[#This Row],[Total ($000)]]=0,\"NO\",IF(ISNA(tblSchMJune19[[#This Row],[FUNC]]),\"YES\",IF(_xlfn.ISFORMULA(tblSchMJune19[[#This Row],[FUNC]]),\"NO\",\"YES\")))","v":"NO"}]
[{"$f":"CONCATENATE(tblSchMJune19[[#This Row],[Primary Account]],tblSchMJune19[[#This Row],[Primary Name]],tblSchMJune19[[#This Row],[Secondary Acct]],tblSchMJune19[[#This Row],[Secondary  Name]],tblSchMJune19[[#This Row],[Alloc4FUNC]])","v":"4098300SCHMAT415827Regulatory Asset - Post -Ret MMT -ORSITUS"},4098300,{"$f":"IF(tblSchMJune19[[#This Row],[Primary Account]]=4098200,\"SCHMAP\",IF(tblSchMJune19[[#This Row],[Primary Account]]=4098300,\"SCHMAT\",IF(tblSchMJune19[[#This Row],[Primary Account]]=4099200,\"SCHMDP\",IF(tblSchMJune19[[#This Row],[Primary Account]]=4099300,\"SCHMDT\"))))","v":"SCHMAT"},"415827","Regulatory Asset - Post -Ret MMT -OR","OR",96.517629999999997,{"$f":"IF(OR(tblSchMJune19[[#This Row],[Alloc]]=\"IDU\",tblSchMJune19[[#This Row],[Alloc]]=\"OR\",tblSchMJune19[[#This Row],[Alloc]]=\"UT\",tblSchMJune19[[#This Row],[Alloc]]=\"WYU\",tblSchMJune19[[#This Row],[Alloc]]=\"WYP\",tblSchMJune19[[#This Row],[Alloc]]=\"CA\",tblSchMJune19[[#This Row],[Alloc]]=\"WA\"),\"SITUS\",tblSchMJune19[[#This Row],[Alloc]])","v":"SITUS"},{"$f":"INDEX(tblSchMLookup[FUNC],MATCH(tblSchMJune19[[#This Row],[Concat]],tblSchMLookup[Concat],0))","v":"LABOR"},{"$f":"IF(tblSchMJune19[[#This Row],[Total ($000)]]=0,\"NO\",IF(ISNA(tblSchMJune19[[#This Row],[FUNC]]),\"YES\",IF(_xlfn.ISFORMULA(tblSchMJune19[[#This Row],[FUNC]]),\"NO\",\"YES\")))","v":"NO"}]
[{"$f":"CONCATENATE(tblSchMJune19[[#This Row],[Primary Account]],tblSchMJune19[[#This Row],[Primary Name]],tblSchMJune19[[#This Row],[Secondary Acct]],tblSchMJune19[[#This Row],[Secondary  Name]],tblSchMJune19[[#This Row],[Alloc4FUNC]])","v":"4098300SCHMAT415828Regulatory Asset - Post -Ret MMT -WYSITUS"},4098300,{"$f":"IF(tblSchMJune19[[#This Row],[Primary Account]]=4098200,\"SCHMAP\",IF(tblSchMJune19[[#This Row],[Primary Account]]=4098300,\"SCHMAT\",IF(tblSchMJune19[[#This Row],[Primary Account]]=4099200,\"SCHMDP\",IF(tblSchMJune19[[#This Row],[Primary Account]]=4099300,\"SCHMDT\"))))","v":"SCHMAT"},"415828","Regulatory Asset - Post -Ret MMT -WY","WYP",null,{"$f":"IF(OR(tblSchMJune19[[#This Row],[Alloc]]=\"IDU\",tblSchMJune19[[#This Row],[Alloc]]=\"OR\",tblSchMJune19[[#This Row],[Alloc]]=\"UT\",tblSchMJune19[[#This Row],[Alloc]]=\"WYU\",tblSchMJune19[[#This Row],[Alloc]]=\"WYP\",tblSchMJune19[[#This Row],[Alloc]]=\"CA\",tblSchMJune19[[#This Row],[Alloc]]=\"WA\"),\"SITUS\",tblSchMJune19[[#This Row],[Alloc]])","v":"SITUS"},{"$f":"INDEX(tblSchMLookup[FUNC],MATCH(tblSchMJune19[[#This Row],[Concat]],tblSchMLookup[Concat],0))","v":{"$error":"#N/A"}},{"$f":"IF(tblSchMJune19[[#This Row],[Total ($000)]]=0,\"NO\",IF(ISNA(tblSchMJune19[[#This Row],[FUNC]]),\"YES\",IF(_xlfn.ISFORMULA(tblSchMJune19[[#This Row],[FUNC]]),\"NO\",\"YES\")))","v":"NO"}]
[{"$f":"CONCATENATE(tblSchMJune19[[#This Row],[Primary Account]],tblSchMJune19[[#This Row],[Primary Name]],tblSchMJune19[[#This Row],[Secondary Acct]],tblSchMJune19[[#This Row],[Secondary  Name]],tblSchMJune19[[#This Row],[Alloc4FUNC]])","v":"4098300SCHMAT415829Reg Asset - Post - Ret MMT -UTSITUS"},4098300,{"$f":"IF(tblSchMJune19[[#This Row],[Primary Account]]=4098200,\"SCHMAP\",IF(tblSchMJune19[[#This Row],[Primary Account]]=4098300,\"SCHMAT\",IF(tblSchMJune19[[#This Row],[Primary Account]]=4099200,\"SCHMDP\",IF(tblSchMJune19[[#This Row],[Primary Account]]=4099300,\"SCHMDT\"))))","v":"SCHMAT"},"415829","Reg Asset - Post - Ret MMT -UT","UT",null,{"$f":"IF(OR(tblSchMJune19[[#This Row],[Alloc]]=\"IDU\",tblSchMJune19[[#This Row],[Alloc]]=\"OR\",tblSchMJune19[[#This Row],[Alloc]]=\"UT\",tblSchMJune19[[#This Row],[Alloc]]=\"WYU\",tblSchMJune19[[#This Row],[Alloc]]=\"WYP\",tblSchMJune19[[#This Row],[Alloc]]=\"CA\",tblSchMJune19[[#This Row],[Alloc]]=\"WA\"),\"SITUS\",tblSchMJune19[[#This Row],[Alloc]])","v":"SITUS"},{"$f":"INDEX(tblSchMLookup[FUNC],MATCH(tblSchMJune19[[#This Row],[Concat]],tblSchMLookup[Concat],0))","v":"LABOR"},{"$f":"IF(tblSchMJune19[[#This Row],[Total ($000)]]=0,\"NO\",IF(ISNA(tblSchMJune19[[#This Row],[FUNC]]),\"YES\",IF(_xlfn.ISFORMULA(tblSchMJune19[[#This Row],[FUNC]]),\"NO\",\"YES\")))","v":"NO"}]
[{"$f":"CONCATENATE(tblSchMJune19[[#This Row],[Primary Account]],tblSchMJune19[[#This Row],[Primary Name]],tblSchMJune19[[#This Row],[Secondary Acct]],tblSchMJune19[[#This Row],[Secondary  Name]],tblSchMJune19[[#This Row],[Alloc4FUNC]])","v":"4098300SCHMAT415830Regulatory Asset - Post - Ret MMT -IDSITUS"},4098300,{"$f":"IF(tblSchMJune19[[#This Row],[Primary Account]]=4098200,\"SCHMAP\",IF(tblSchMJune19[[#This Row],[Primary Account]]=4098300,\"SCHMAT\",IF(tblSchMJune19[[#This Row],[Primary Account]]=4099200,\"SCHMDP\",IF(tblSchMJune19[[#This Row],[Primary Account]]=4099300,\"SCHMDT\"))))","v":"SCHMAT"},"415830","Regulatory Asset - Post - Ret MMT -ID","IDU",null,{"$f":"IF(OR(tblSchMJune19[[#This Row],[Alloc]]=\"IDU\",tblSchMJune19[[#This Row],[Alloc]]=\"OR\",tblSchMJune19[[#This Row],[Alloc]]=\"UT\",tblSchMJune19[[#This Row],[Alloc]]=\"WYU\",tblSchMJune19[[#This Row],[Alloc]]=\"WYP\",tblSchMJune19[[#This Row],[Alloc]]=\"CA\",tblSchMJune19[[#This Row],[Alloc]]=\"WA\"),\"SITUS\",tblSchMJune19[[#This Row],[Alloc]])","v":"SITUS"},{"$f":"INDEX(tblSchMLookup[FUNC],MATCH(tblSchMJune19[[#This Row],[Concat]],tblSchMLookup[Concat],0))","v":{"$error":"#N/A"}},{"$f":"IF(tblSchMJune19[[#This Row],[Total ($000)]]=0,\"NO\",IF(ISNA(tblSchMJune19[[#This Row],[FUNC]]),\"YES\",IF(_xlfn.ISFORMULA(tblSchMJune19[[#This Row],[FUNC]]),\"NO\",\"YES\")))","v":"NO"}]
[{"$f":"CONCATENATE(tblSchMJune19[[#This Row],[Primary Account]],tblSchMJune19[[#This Row],[Primary Name]],tblSchMJune19[[#This Row],[Secondary Acct]],tblSchMJune19[[#This Row],[Secondary  Name]],tblSchMJune19[[#This Row],[Alloc4FUNC]])","v":"4098300SCHMAT415831Regulatory Asset - Post - Ret MMT -CASITUS"},4098300,{"$f":"IF(tblSchMJune19[[#This Row],[Primary Account]]=4098200,\"SCHMAP\",IF(tblSchMJune19[[#This Row],[Primary Account]]=4098300,\"SCHMAT\",IF(tblSchMJune19[[#This Row],[Primary Account]]=4099200,\"SCHMDP\",IF(tblSchMJune19[[#This Row],[Primary Account]]=4099300,\"SCHMDT\"))))","v":"SCHMAT"},"415831","Regulatory Asset - Post - Ret MMT -CA","CA",8.7440200000000008,{"$f":"IF(OR(tblSchMJune19[[#This Row],[Alloc]]=\"IDU\",tblSchMJune19[[#This Row],[Alloc]]=\"OR\",tblSchMJune19[[#This Row],[Alloc]]=\"UT\",tblSchMJune19[[#This Row],[Alloc]]=\"WYU\",tblSchMJune19[[#This Row],[Alloc]]=\"WYP\",tblSchMJune19[[#This Row],[Alloc]]=\"CA\",tblSchMJune19[[#This Row],[Alloc]]=\"WA\"),\"SITUS\",tblSchMJune19[[#This Row],[Alloc]])","v":"SITUS"},{"$f":"INDEX(tblSchMLookup[FUNC],MATCH(tblSchMJune19[[#This Row],[Concat]],tblSchMLookup[Concat],0))","v":"LABOR"},{"$f":"IF(tblSchMJune19[[#This Row],[Total ($000)]]=0,\"NO\",IF(ISNA(tblSchMJune19[[#This Row],[FUNC]]),\"YES\",IF(_xlfn.ISFORMULA(tblSchMJune19[[#This Row],[FUNC]]),\"NO\",\"YES\")))","v":"NO"}]
[{"$f":"CONCATENATE(tblSchMJune19[[#This Row],[Primary Account]],tblSchMJune19[[#This Row],[Primary Name]],tblSchMJune19[[#This Row],[Secondary Acct]],tblSchMJune19[[#This Row],[Secondary  Name]],tblSchMJune19[[#This Row],[Alloc4FUNC]])","v":"4098300SCHMAT415840Reg Asset-Deferred OR Independent EvaluaOTHER"},4098300,{"$f":"IF(tblSchMJune19[[#This Row],[Primary Account]]=4098200,\"SCHMAP\",IF(tblSchMJune19[[#This Row],[Primary Account]]=4098300,\"SCHMAT\",IF(tblSchMJune19[[#This Row],[Primary Account]]=4099200,\"SCHMDP\",IF(tblSchMJune19[[#This Row],[Primary Account]]=4099300,\"SCHMDT\"))))","v":"SCHMAT"},"415840","Reg Asset-Deferred OR Independent Evalua","OTHER",null,{"$f":"IF(OR(tblSchMJune19[[#This Row],[Alloc]]=\"IDU\",tblSchMJune19[[#This Row],[Alloc]]=\"OR\",tblSchMJune19[[#This Row],[Alloc]]=\"UT\",tblSchMJune19[[#This Row],[Alloc]]=\"WYU\",tblSchMJune19[[#This Row],[Alloc]]=\"WYP\",tblSchMJune19[[#This Row],[Alloc]]=\"CA\",tblSchMJune19[[#This Row],[Alloc]]=\"WA\"),\"SITUS\",tblSchMJune19[[#This Row],[Alloc]])","v":"OTHER"},{"$f":"INDEX(tblSchMLookup[FUNC],MATCH(tblSchMJune19[[#This Row],[Concat]],tblSchMLookup[Concat],0))","v":{"$error":"#N/A"}},{"$f":"IF(tblSchMJune19[[#This Row],[Total ($000)]]=0,\"NO\",IF(ISNA(tblSchMJune19[[#This Row],[FUNC]]),\"YES\",IF(_xlfn.ISFORMULA(tblSchMJune19[[#This Row],[FUNC]]),\"NO\",\"YES\")))","v":"NO"}]
[{"$f":"CONCATENATE(tblSchMJune19[[#This Row],[Primary Account]],tblSchMJune19[[#This Row],[Primary Name]],tblSchMJune19[[#This Row],[Secondary Acct]],tblSchMJune19[[#This Row],[Secondary  Name]],tblSchMJune19[[#This Row],[Alloc4FUNC]])","v":"4098300SCHMAT415850UNRECOVERED PLANT-POWERDALESG"},4098300,{"$f":"IF(tblSchMJune19[[#This Row],[Primary Account]]=4098200,\"SCHMAP\",IF(tblSchMJune19[[#This Row],[Primary Account]]=4098300,\"SCHMAT\",IF(tblSchMJune19[[#This Row],[Primary Account]]=4099200,\"SCHMDP\",IF(tblSchMJune19[[#This Row],[Primary Account]]=4099300,\"SCHMDT\"))))","v":"SCHMAT"},"415850","UNRECOVERED PLANT-POWERDALE","SG",null,{"$f":"IF(OR(tblSchMJune19[[#This Row],[Alloc]]=\"IDU\",tblSchMJune19[[#This Row],[Alloc]]=\"OR\",tblSchMJune19[[#This Row],[Alloc]]=\"UT\",tblSchMJune19[[#This Row],[Alloc]]=\"WYU\",tblSchMJune19[[#This Row],[Alloc]]=\"WYP\",tblSchMJune19[[#This Row],[Alloc]]=\"CA\",tblSchMJune19[[#This Row],[Alloc]]=\"WA\"),\"SITUS\",tblSchMJune19[[#This Row],[Alloc]])","v":"SG"},{"$f":"INDEX(tblSchMLookup[FUNC],MATCH(tblSchMJune19[[#This Row],[Concat]],tblSchMLookup[Concat],0))","v":{"$error":"#N/A"}},{"$f":"IF(tblSchMJune19[[#This Row],[Total ($000)]]=0,\"NO\",IF(ISNA(tblSchMJune19[[#This Row],[FUNC]]),\"YES\",IF(_xlfn.ISFORMULA(tblSchMJune19[[#This Row],[FUNC]]),\"NO\",\"YES\")))","v":"NO"}]
[{"$f":"CONCATENATE(tblSchMJune19[[#This Row],[Primary Account]],tblSchMJune19[[#This Row],[Primary Name]],tblSchMJune19[[#This Row],[Secondary Acct]],tblSchMJune19[[#This Row],[Secondary  Name]],tblSchMJune19[[#This Row],[Alloc4FUNC]])","v":"4098300SCHMAT415852Powerdale Decommissioning Reg Asset - IDSITUS"},4098300,{"$f":"IF(tblSchMJune19[[#This Row],[Primary Account]]=4098200,\"SCHMAP\",IF(tblSchMJune19[[#This Row],[Primary Account]]=4098300,\"SCHMAT\",IF(tblSchMJune19[[#This Row],[Primary Account]]=4099200,\"SCHMDP\",IF(tblSchMJune19[[#This Row],[Primary Account]]=4099300,\"SCHMDT\"))))","v":"SCHMAT"},"415852","Powerdale Decommissioning Reg Asset - ID","IDU",24.893419999999999,{"$f":"IF(OR(tblSchMJune19[[#This Row],[Alloc]]=\"IDU\",tblSchMJune19[[#This Row],[Alloc]]=\"OR\",tblSchMJune19[[#This Row],[Alloc]]=\"UT\",tblSchMJune19[[#This Row],[Alloc]]=\"WYU\",tblSchMJune19[[#This Row],[Alloc]]=\"WYP\",tblSchMJune19[[#This Row],[Alloc]]=\"CA\",tblSchMJune19[[#This Row],[Alloc]]=\"WA\"),\"SITUS\",tblSchMJune19[[#This Row],[Alloc]])","v":"SITUS"},{"$f":"INDEX(tblSchMLookup[FUNC],MATCH(tblSchMJune19[[#This Row],[Concat]],tblSchMLookup[Concat],0))","v":"P"},{"$f":"IF(tblSchMJune19[[#This Row],[Total ($000)]]=0,\"NO\",IF(ISNA(tblSchMJune19[[#This Row],[FUNC]]),\"YES\",IF(_xlfn.ISFORMULA(tblSchMJune19[[#This Row],[FUNC]]),\"NO\",\"YES\")))","v":"NO"}]
[{"$f":"CONCATENATE(tblSchMJune19[[#This Row],[Primary Account]],tblSchMJune19[[#This Row],[Primary Name]],tblSchMJune19[[#This Row],[Secondary Acct]],tblSchMJune19[[#This Row],[Secondary  Name]],tblSchMJune19[[#This Row],[Alloc4FUNC]])","v":"4098300SCHMAT415853Powerdale Decommissioning Reg Asset - ORSITUS"},4098300,{"$f":"IF(tblSchMJune19[[#This Row],[Primary Account]]=4098200,\"SCHMAP\",IF(tblSchMJune19[[#This Row],[Primary Account]]=4098300,\"SCHMAT\",IF(tblSchMJune19[[#This Row],[Primary Account]]=4099200,\"SCHMDP\",IF(tblSchMJune19[[#This Row],[Primary Account]]=4099300,\"SCHMDT\"))))","v":"SCHMAT"},"415853","Powerdale Decommissioning Reg Asset - OR","OR",null,{"$f":"IF(OR(tblSchMJune19[[#This Row],[Alloc]]=\"IDU\",tblSchMJune19[[#This Row],[Alloc]]=\"OR\",tblSchMJune19[[#This Row],[Alloc]]=\"UT\",tblSchMJune19[[#This Row],[Alloc]]=\"WYU\",tblSchMJune19[[#This Row],[Alloc]]=\"WYP\",tblSchMJune19[[#This Row],[Alloc]]=\"CA\",tblSchMJune19[[#This Row],[Alloc]]=\"WA\"),\"SITUS\",tblSchMJune19[[#This Row],[Alloc]])","v":"SITUS"},{"$f":"INDEX(tblSchMLookup[FUNC],MATCH(tblSchMJune19[[#This Row],[Concat]],tblSchMLookup[Concat],0))","v":{"$error":"#N/A"}},{"$f":"IF(tblSchMJune19[[#This Row],[Total ($000)]]=0,\"NO\",IF(ISNA(tblSchMJune19[[#This Row],[FUNC]]),\"YES\",IF(_xlfn.ISFORMULA(tblSchMJune19[[#This Row],[FUNC]]),\"NO\",\"YES\")))","v":"NO"}]
[{"$f":"CONCATENATE(tblSchMJune19[[#This Row],[Primary Account]],tblSchMJune19[[#This Row],[Primary Name]],tblSchMJune19[[#This Row],[Secondary Acct]],tblSchMJune19[[#This Row],[Secondary  Name]],tblSchMJune19[[#This Row],[Alloc4FUNC]])","v":"4098300SCHMAT415854Powerdale Decommissioning Reg Asset - WASITUS"},4098300,{"$f":"IF(tblSchMJune19[[#This Row],[Primary Account]]=4098200,\"SCHMAP\",IF(tblSchMJune19[[#This Row],[Primary Account]]=4098300,\"SCHMAT\",IF(tblSchMJune19[[#This Row],[Primary Account]]=4099200,\"SCHMDP\",IF(tblSchMJune19[[#This Row],[Primary Account]]=4099300,\"SCHMDT\"))))","v":"SCHMAT"},"415854","Powerdale Decommissioning Reg Asset - WA","WA",null,{"$f":"IF(OR(tblSchMJune19[[#This Row],[Alloc]]=\"IDU\",tblSchMJune19[[#This Row],[Alloc]]=\"OR\",tblSchMJune19[[#This Row],[Alloc]]=\"UT\",tblSchMJune19[[#This Row],[Alloc]]=\"WYU\",tblSchMJune19[[#This Row],[Alloc]]=\"WYP\",tblSchMJune19[[#This Row],[Alloc]]=\"CA\",tblSchMJune19[[#This Row],[Alloc]]=\"WA\"),\"SITUS\",tblSchMJune19[[#This Row],[Alloc]])","v":"SITUS"},{"$f":"INDEX(tblSchMLookup[FUNC],MATCH(tblSchMJune19[[#This Row],[Concat]],tblSchMLookup[Concat],0))","v":{"$error":"#N/A"}},{"$f":"IF(tblSchMJune19[[#This Row],[Total ($000)]]=0,\"NO\",IF(ISNA(tblSchMJune19[[#This Row],[FUNC]]),\"YES\",IF(_xlfn.ISFORMULA(tblSchMJune19[[#This Row],[FUNC]]),\"NO\",\"YES\")))","v":"NO"}]
[{"$f":"CONCATENATE(tblSchMJune19[[#This Row],[Primary Account]],tblSchMJune19[[#This Row],[Primary Name]],tblSchMJune19[[#This Row],[Secondary Acct]],tblSchMJune19[[#This Row],[Secondary  Name]],tblSchMJune19[[#This Row],[Alloc4FUNC]])","v":"4098300SCHMAT415855CA - January 2010 Storm CostsOTHER"},4098300,{"$f":"IF(tblSchMJune19[[#This Row],[Primary Account]]=4098200,\"SCHMAP\",IF(tblSchMJune19[[#This Row],[Primary Account]]=4098300,\"SCHMAT\",IF(tblSchMJune19[[#This Row],[Primary Account]]=4099200,\"SCHMDP\",IF(tblSchMJune19[[#This Row],[Primary Account]]=4099300,\"SCHMDT\"))))","v":"SCHMAT"},"415855","CA - January 2010 Storm Costs","OTHER",1468.3496299999999,{"$f":"IF(OR(tblSchMJune19[[#This Row],[Alloc]]=\"IDU\",tblSchMJune19[[#This Row],[Alloc]]=\"OR\",tblSchMJune19[[#This Row],[Alloc]]=\"UT\",tblSchMJune19[[#This Row],[Alloc]]=\"WYU\",tblSchMJune19[[#This Row],[Alloc]]=\"WYP\",tblSchMJune19[[#This Row],[Alloc]]=\"CA\",tblSchMJune19[[#This Row],[Alloc]]=\"WA\"),\"SITUS\",tblSchMJune19[[#This Row],[Alloc]])","v":"OTHER"},{"$f":"INDEX(tblSchMLookup[FUNC],MATCH(tblSchMJune19[[#This Row],[Concat]],tblSchMLookup[Concat],0))","v":"P"},{"$f":"IF(tblSchMJune19[[#This Row],[Total ($000)]]=0,\"NO\",IF(ISNA(tblSchMJune19[[#This Row],[FUNC]]),\"YES\",IF(_xlfn.ISFORMULA(tblSchMJune19[[#This Row],[FUNC]]),\"NO\",\"YES\")))","v":"NO"}]
[{"$f":"CONCATENATE(tblSchMJune19[[#This Row],[Primary Account]],tblSchMJune19[[#This Row],[Primary Name]],tblSchMJune19[[#This Row],[Secondary Acct]],tblSchMJune19[[#This Row],[Secondary  Name]],tblSchMJune19[[#This Row],[Alloc4FUNC]])","v":"4098300SCHMAT415856Powerdale Decommissioning Reg Asset - WYSITUS"},4098300,{"$f":"IF(tblSchMJune19[[#This Row],[Primary Account]]=4098200,\"SCHMAP\",IF(tblSchMJune19[[#This Row],[Primary Account]]=4098300,\"SCHMAT\",IF(tblSchMJune19[[#This Row],[Primary Account]]=4099200,\"SCHMDP\",IF(tblSchMJune19[[#This Row],[Primary Account]]=4099300,\"SCHMDT\"))))","v":"SCHMAT"},"415856","Powerdale Decommissioning Reg Asset - WY","WYP",null,{"$f":"IF(OR(tblSchMJune19[[#This Row],[Alloc]]=\"IDU\",tblSchMJune19[[#This Row],[Alloc]]=\"OR\",tblSchMJune19[[#This Row],[Alloc]]=\"UT\",tblSchMJune19[[#This Row],[Alloc]]=\"WYU\",tblSchMJune19[[#This Row],[Alloc]]=\"WYP\",tblSchMJune19[[#This Row],[Alloc]]=\"CA\",tblSchMJune19[[#This Row],[Alloc]]=\"WA\"),\"SITUS\",tblSchMJune19[[#This Row],[Alloc]])","v":"SITUS"},{"$f":"INDEX(tblSchMLookup[FUNC],MATCH(tblSchMJune19[[#This Row],[Concat]],tblSchMLookup[Concat],0))","v":{"$error":"#N/A"}},{"$f":"IF(tblSchMJune19[[#This Row],[Total ($000)]]=0,\"NO\",IF(ISNA(tblSchMJune19[[#This Row],[FUNC]]),\"YES\",IF(_xlfn.ISFORMULA(tblSchMJune19[[#This Row],[FUNC]]),\"NO\",\"YES\")))","v":"NO"}]
[{"$f":"CONCATENATE(tblSchMJune19[[#This Row],[Primary Account]],tblSchMJune19[[#This Row],[Primary Name]],tblSchMJune19[[#This Row],[Secondary Acct]],tblSchMJune19[[#This Row],[Secondary  Name]],tblSchMJune19[[#This Row],[Alloc4FUNC]])","v":"4098300SCHMAT415857ID - Deferred Overburden CostsOTHER"},4098300,{"$f":"IF(tblSchMJune19[[#This Row],[Primary Account]]=4098200,\"SCHMAP\",IF(tblSchMJune19[[#This Row],[Primary Account]]=4098300,\"SCHMAT\",IF(tblSchMJune19[[#This Row],[Primary Account]]=4099200,\"SCHMDP\",IF(tblSchMJune19[[#This Row],[Primary Account]]=4099300,\"SCHMDT\"))))","v":"SCHMAT"},"415857","ID - Deferred Overburden Costs","OTHER",104.38817,{"$f":"IF(OR(tblSchMJune19[[#This Row],[Alloc]]=\"IDU\",tblSchMJune19[[#This Row],[Alloc]]=\"OR\",tblSchMJune19[[#This Row],[Alloc]]=\"UT\",tblSchMJune19[[#This Row],[Alloc]]=\"WYU\",tblSchMJune19[[#This Row],[Alloc]]=\"WYP\",tblSchMJune19[[#This Row],[Alloc]]=\"CA\",tblSchMJune19[[#This Row],[Alloc]]=\"WA\"),\"SITUS\",tblSchMJune19[[#This Row],[Alloc]])","v":"OTHER"},{"$f":"INDEX(tblSchMLookup[FUNC],MATCH(tblSchMJune19[[#This Row],[Concat]],tblSchMLookup[Concat],0))","v":"P"},{"$f":"IF(tblSchMJune19[[#This Row],[Total ($000)]]=0,\"NO\",IF(ISNA(tblSchMJune19[[#This Row],[FUNC]]),\"YES\",IF(_xlfn.ISFORMULA(tblSchMJune19[[#This Row],[FUNC]]),\"NO\",\"YES\")))","v":"NO"}]
[{"$f":"CONCATENATE(tblSchMJune19[[#This Row],[Primary Account]],tblSchMJune19[[#This Row],[Primary Name]],tblSchMJune19[[#This Row],[Secondary Acct]],tblSchMJune19[[#This Row],[Secondary  Name]],tblSchMJune19[[#This Row],[Alloc4FUNC]])","v":"4098300SCHMAT415858WY - Deferred Overburden CostsSITUS"},4098300,{"$f":"IF(tblSchMJune19[[#This Row],[Primary Account]]=4098200,\"SCHMAP\",IF(tblSchMJune19[[#This Row],[Primary Account]]=4098300,\"SCHMAT\",IF(tblSchMJune19[[#This Row],[Primary Account]]=4099200,\"SCHMDP\",IF(tblSchMJune19[[#This Row],[Primary Account]]=4099300,\"SCHMDT\"))))","v":"SCHMAT"},"415858","WY - Deferred Overburden Costs","WYP",293.71931000000001,{"$f":"IF(OR(tblSchMJune19[[#This Row],[Alloc]]=\"IDU\",tblSchMJune19[[#This Row],[Alloc]]=\"OR\",tblSchMJune19[[#This Row],[Alloc]]=\"UT\",tblSchMJune19[[#This Row],[Alloc]]=\"WYU\",tblSchMJune19[[#This Row],[Alloc]]=\"WYP\",tblSchMJune19[[#This Row],[Alloc]]=\"CA\",tblSchMJune19[[#This Row],[Alloc]]=\"WA\"),\"SITUS\",tblSchMJune19[[#This Row],[Alloc]])","v":"SITUS"},{"$f":"INDEX(tblSchMLookup[FUNC],MATCH(tblSchMJune19[[#This Row],[Concat]],tblSchMLookup[Concat],0))","v":"P"},{"$f":"IF(tblSchMJune19[[#This Row],[Total ($000)]]=0,\"NO\",IF(ISNA(tblSchMJune19[[#This Row],[FUNC]]),\"YES\",IF(_xlfn.ISFORMULA(tblSchMJune19[[#This Row],[FUNC]]),\"NO\",\"YES\")))","v":"NO"}]
[{"$f":"CONCATENATE(tblSchMJune19[[#This Row],[Primary Account]],tblSchMJune19[[#This Row],[Primary Name]],tblSchMJune19[[#This Row],[Secondary Acct]],tblSchMJune19[[#This Row],[Secondary  Name]],tblSchMJune19[[#This Row],[Alloc4FUNC]])","v":"4098300SCHMAT415859WY - Deferred Advertising CostsSITUS"},4098300,{"$f":"IF(tblSchMJune19[[#This Row],[Primary Account]]=4098200,\"SCHMAP\",IF(tblSchMJune19[[#This Row],[Primary Account]]=4098300,\"SCHMAT\",IF(tblSchMJune19[[#This Row],[Primary Account]]=4099200,\"SCHMDP\",IF(tblSchMJune19[[#This Row],[Primary Account]]=4099300,\"SCHMDT\"))))","v":"SCHMAT"},"415859","WY - Deferred Advertising Costs","WYP",null,{"$f":"IF(OR(tblSchMJune19[[#This Row],[Alloc]]=\"IDU\",tblSchMJune19[[#This Row],[Alloc]]=\"OR\",tblSchMJune19[[#This Row],[Alloc]]=\"UT\",tblSchMJune19[[#This Row],[Alloc]]=\"WYU\",tblSchMJune19[[#This Row],[Alloc]]=\"WYP\",tblSchMJune19[[#This Row],[Alloc]]=\"CA\",tblSchMJune19[[#This Row],[Alloc]]=\"WA\"),\"SITUS\",tblSchMJune19[[#This Row],[Alloc]])","v":"SITUS"},{"$f":"INDEX(tblSchMLookup[FUNC],MATCH(tblSchMJune19[[#This Row],[Concat]],tblSchMLookup[Concat],0))","v":{"$error":"#N/A"}},{"$f":"IF(tblSchMJune19[[#This Row],[Total ($000)]]=0,\"NO\",IF(ISNA(tblSchMJune19[[#This Row],[FUNC]]),\"YES\",IF(_xlfn.ISFORMULA(tblSchMJune19[[#This Row],[FUNC]]),\"NO\",\"YES\")))","v":"NO"}]
[{"$f":"CONCATENATE(tblSchMJune19[[#This Row],[Primary Account]],tblSchMJune19[[#This Row],[Primary Name]],tblSchMJune19[[#This Row],[Secondary Acct]],tblSchMJune19[[#This Row],[Secondary  Name]],tblSchMJune19[[#This Row],[Alloc4FUNC]])","v":"4098300SCHMAT415865Reg Asset - UT MPAOTHER"},4098300,{"$f":"IF(tblSchMJune19[[#This Row],[Primary Account]]=4098200,\"SCHMAP\",IF(tblSchMJune19[[#This Row],[Primary Account]]=4098300,\"SCHMAT\",IF(tblSchMJune19[[#This Row],[Primary Account]]=4099200,\"SCHMDP\",IF(tblSchMJune19[[#This Row],[Primary Account]]=4099300,\"SCHMDT\"))))","v":"SCHMAT"},"415865","Reg Asset - UT MPA","OTHER",null,{"$f":"IF(OR(tblSchMJune19[[#This Row],[Alloc]]=\"IDU\",tblSchMJune19[[#This Row],[Alloc]]=\"OR\",tblSchMJune19[[#This Row],[Alloc]]=\"UT\",tblSchMJune19[[#This Row],[Alloc]]=\"WYU\",tblSchMJune19[[#This Row],[Alloc]]=\"WYP\",tblSchMJune19[[#This Row],[Alloc]]=\"CA\",tblSchMJune19[[#This Row],[Alloc]]=\"WA\"),\"SITUS\",tblSchMJune19[[#This Row],[Alloc]])","v":"OTHER"},{"$f":"INDEX(tblSchMLookup[FUNC],MATCH(tblSchMJune19[[#This Row],[Concat]],tblSchMLookup[Concat],0))","v":{"$error":"#N/A"}},{"$f":"IF(tblSchMJune19[[#This Row],[Total ($000)]]=0,\"NO\",IF(ISNA(tblSchMJune19[[#This Row],[FUNC]]),\"YES\",IF(_xlfn.ISFORMULA(tblSchMJune19[[#This Row],[FUNC]]),\"NO\",\"YES\")))","v":"NO"}]
[{"$f":"CONCATENATE(tblSchMJune19[[#This Row],[Primary Account]],tblSchMJune19[[#This Row],[Primary Name]],tblSchMJune19[[#This Row],[Secondary Acct]],tblSchMJune19[[#This Row],[Secondary  Name]],tblSchMJune19[[#This Row],[Alloc4FUNC]])","v":"4098300SCHMAT415867Reg Asset - CA Solar Feed-in TariffOTHER"},4098300,{"$f":"IF(tblSchMJune19[[#This Row],[Primary Account]]=4098200,\"SCHMAP\",IF(tblSchMJune19[[#This Row],[Primary Account]]=4098300,\"SCHMAT\",IF(tblSchMJune19[[#This Row],[Primary Account]]=4099200,\"SCHMDP\",IF(tblSchMJune19[[#This Row],[Primary Account]]=4099300,\"SCHMDT\"))))","v":"SCHMAT"},"415867","Reg Asset - CA Solar Feed-in Tariff","OTHER",null,{"$f":"IF(OR(tblSchMJune19[[#This Row],[Alloc]]=\"IDU\",tblSchMJune19[[#This Row],[Alloc]]=\"OR\",tblSchMJune19[[#This Row],[Alloc]]=\"UT\",tblSchMJune19[[#This Row],[Alloc]]=\"WYU\",tblSchMJune19[[#This Row],[Alloc]]=\"WYP\",tblSchMJune19[[#This Row],[Alloc]]=\"CA\",tblSchMJune19[[#This Row],[Alloc]]=\"WA\"),\"SITUS\",tblSchMJune19[[#This Row],[Alloc]])","v":"OTHER"},{"$f":"INDEX(tblSchMLookup[FUNC],MATCH(tblSchMJune19[[#This Row],[Concat]],tblSchMLookup[Concat],0))","v":{"$error":"#N/A"}},{"$f":"IF(tblSchMJune19[[#This Row],[Total ($000)]]=0,\"NO\",IF(ISNA(tblSchMJune19[[#This Row],[FUNC]]),\"YES\",IF(_xlfn.ISFORMULA(tblSchMJune19[[#This Row],[FUNC]]),\"NO\",\"YES\")))","v":"NO"}]
[{"$f":"CONCATENATE(tblSchMJune19[[#This Row],[Primary Account]],tblSchMJune19[[#This Row],[Primary Name]],tblSchMJune19[[#This Row],[Secondary Acct]],tblSchMJune19[[#This Row],[Secondary  Name]],tblSchMJune19[[#This Row],[Alloc4FUNC]])","v":"4098300SCHMAT415868Reg Asset - UT - Solar Incentive ProgramOTHER"},4098300,{"$f":"IF(tblSchMJune19[[#This Row],[Primary Account]]=4098200,\"SCHMAP\",IF(tblSchMJune19[[#This Row],[Primary Account]]=4098300,\"SCHMAT\",IF(tblSchMJune19[[#This Row],[Primary Account]]=4099200,\"SCHMDP\",IF(tblSchMJune19[[#This Row],[Primary Account]]=4099300,\"SCHMDT\"))))","v":"SCHMAT"},"415868","Reg Asset - UT - Solar Incentive Program","OTHER",-8870.5019499999999,{"$f":"IF(OR(tblSchMJune19[[#This Row],[Alloc]]=\"IDU\",tblSchMJune19[[#This Row],[Alloc]]=\"OR\",tblSchMJune19[[#This Row],[Alloc]]=\"UT\",tblSchMJune19[[#This Row],[Alloc]]=\"WYU\",tblSchMJune19[[#This Row],[Alloc]]=\"WYP\",tblSchMJune19[[#This Row],[Alloc]]=\"CA\",tblSchMJune19[[#This Row],[Alloc]]=\"WA\"),\"SITUS\",tblSchMJune19[[#This Row],[Alloc]])","v":"OTHER"},{"$f":"INDEX(tblSchMLookup[FUNC],MATCH(tblSchMJune19[[#This Row],[Concat]],tblSchMLookup[Concat],0))","v":"P"},{"$f":"IF(tblSchMJune19[[#This Row],[Total ($000)]]=0,\"NO\",IF(ISNA(tblSchMJune19[[#This Row],[FUNC]]),\"YES\",IF(_xlfn.ISFORMULA(tblSchMJune19[[#This Row],[FUNC]]),\"NO\",\"YES\")))","v":"NO"}]
[{"$f":"CONCATENATE(tblSchMJune19[[#This Row],[Primary Account]],tblSchMJune19[[#This Row],[Primary Name]],tblSchMJune19[[#This Row],[Secondary Acct]],tblSchMJune19[[#This Row],[Secondary  Name]],tblSchMJune19[[#This Row],[Alloc4FUNC]])","v":"4098300SCHMAT415870Deferred Excess Net Power Costs-CASITUS"},4098300,{"$f":"IF(tblSchMJune19[[#This Row],[Primary Account]]=4098200,\"SCHMAP\",IF(tblSchMJune19[[#This Row],[Primary Account]]=4098300,\"SCHMAT\",IF(tblSchMJune19[[#This Row],[Primary Account]]=4099200,\"SCHMDP\",IF(tblSchMJune19[[#This Row],[Primary Account]]=4099300,\"SCHMDT\"))))","v":"SCHMAT"},"415870","Deferred Excess Net Power Costs-CA","CA",null,{"$f":"IF(OR(tblSchMJune19[[#This Row],[Alloc]]=\"IDU\",tblSchMJune19[[#This Row],[Alloc]]=\"OR\",tblSchMJune19[[#This Row],[Alloc]]=\"UT\",tblSchMJune19[[#This Row],[Alloc]]=\"WYU\",tblSchMJune19[[#This Row],[Alloc]]=\"WYP\",tblSchMJune19[[#This Row],[Alloc]]=\"CA\",tblSchMJune19[[#This Row],[Alloc]]=\"WA\"),\"SITUS\",tblSchMJune19[[#This Row],[Alloc]])","v":"SITUS"},{"$f":"INDEX(tblSchMLookup[FUNC],MATCH(tblSchMJune19[[#This Row],[Concat]],tblSchMLookup[Concat],0))","v":{"$error":"#N/A"}},{"$f":"IF(tblSchMJune19[[#This Row],[Total ($000)]]=0,\"NO\",IF(ISNA(tblSchMJune19[[#This Row],[FUNC]]),\"YES\",IF(_xlfn.ISFORMULA(tblSchMJune19[[#This Row],[FUNC]]),\"NO\",\"YES\")))","v":"NO"}]
[{"$f":"CONCATENATE(tblSchMJune19[[#This Row],[Primary Account]],tblSchMJune19[[#This Row],[Primary Name]],tblSchMJune19[[#This Row],[Secondary Acct]],tblSchMJune19[[#This Row],[Secondary  Name]],tblSchMJune19[[#This Row],[Alloc4FUNC]])","v":"4098300SCHMAT415871Deferred Excess Net Power Costs-WYSITUS"},4098300,{"$f":"IF(tblSchMJune19[[#This Row],[Primary Account]]=4098200,\"SCHMAP\",IF(tblSchMJune19[[#This Row],[Primary Account]]=4098300,\"SCHMAT\",IF(tblSchMJune19[[#This Row],[Primary Account]]=4099200,\"SCHMDP\",IF(tblSchMJune19[[#This Row],[Primary Account]]=4099300,\"SCHMDT\"))))","v":"SCHMAT"},"415871","Deferred Excess Net Power Costs-WY","WYP",null,{"$f":"IF(OR(tblSchMJune19[[#This Row],[Alloc]]=\"IDU\",tblSchMJune19[[#This Row],[Alloc]]=\"OR\",tblSchMJune19[[#This Row],[Alloc]]=\"UT\",tblSchMJune19[[#This Row],[Alloc]]=\"WYU\",tblSchMJune19[[#This Row],[Alloc]]=\"WYP\",tblSchMJune19[[#This Row],[Alloc]]=\"CA\",tblSchMJune19[[#This Row],[Alloc]]=\"WA\"),\"SITUS\",tblSchMJune19[[#This Row],[Alloc]])","v":"SITUS"},{"$f":"INDEX(tblSchMLookup[FUNC],MATCH(tblSchMJune19[[#This Row],[Concat]],tblSchMLookup[Concat],0))","v":{"$error":"#N/A"}},{"$f":"IF(tblSchMJune19[[#This Row],[Total ($000)]]=0,\"NO\",IF(ISNA(tblSchMJune19[[#This Row],[FUNC]]),\"YES\",IF(_xlfn.ISFORMULA(tblSchMJune19[[#This Row],[FUNC]]),\"NO\",\"YES\")))","v":"NO"}]
[{"$f":"CONCATENATE(tblSchMJune19[[#This Row],[Primary Account]],tblSchMJune19[[#This Row],[Primary Name]],tblSchMJune19[[#This Row],[Secondary Acct]],tblSchMJune19[[#This Row],[Secondary  Name]],tblSchMJune19[[#This Row],[Alloc4FUNC]])","v":"4098300SCHMAT415872Deferred Excess Net Power Costs - WY 08OTHER"},4098300,{"$f":"IF(tblSchMJune19[[#This Row],[Primary Account]]=4098200,\"SCHMAP\",IF(tblSchMJune19[[#This Row],[Primary Account]]=4098300,\"SCHMAT\",IF(tblSchMJune19[[#This Row],[Primary Account]]=4099200,\"SCHMDP\",IF(tblSchMJune19[[#This Row],[Primary Account]]=4099300,\"SCHMDT\"))))","v":"SCHMAT"},"415872","Deferred Excess Net Power Costs - WY 08","OTHER",null,{"$f":"IF(OR(tblSchMJune19[[#This Row],[Alloc]]=\"IDU\",tblSchMJune19[[#This Row],[Alloc]]=\"OR\",tblSchMJune19[[#This Row],[Alloc]]=\"UT\",tblSchMJune19[[#This Row],[Alloc]]=\"WYU\",tblSchMJune19[[#This Row],[Alloc]]=\"WYP\",tblSchMJune19[[#This Row],[Alloc]]=\"CA\",tblSchMJune19[[#This Row],[Alloc]]=\"WA\"),\"SITUS\",tblSchMJune19[[#This Row],[Alloc]])","v":"OTHER"},{"$f":"INDEX(tblSchMLookup[FUNC],MATCH(tblSchMJune19[[#This Row],[Concat]],tblSchMLookup[Concat],0))","v":{"$error":"#N/A"}},{"$f":"IF(tblSchMJune19[[#This Row],[Total ($000)]]=0,\"NO\",IF(ISNA(tblSchMJune19[[#This Row],[FUNC]]),\"YES\",IF(_xlfn.ISFORMULA(tblSchMJune19[[#This Row],[FUNC]]),\"NO\",\"YES\")))","v":"NO"}]
[{"$f":"CONCATENATE(tblSchMJune19[[#This Row],[Primary Account]],tblSchMJune19[[#This Row],[Primary Name]],tblSchMJune19[[#This Row],[Secondary Acct]],tblSchMJune19[[#This Row],[Secondary  Name]],tblSchMJune19[[#This Row],[Alloc4FUNC]])","v":"4098300SCHMAT415876Deferred Excess Net PowerCosts - OROTHER"},4098300,{"$f":"IF(tblSchMJune19[[#This Row],[Primary Account]]=4098200,\"SCHMAP\",IF(tblSchMJune19[[#This Row],[Primary Account]]=4098300,\"SCHMAT\",IF(tblSchMJune19[[#This Row],[Primary Account]]=4099200,\"SCHMDP\",IF(tblSchMJune19[[#This Row],[Primary Account]]=4099300,\"SCHMDT\"))))","v":"SCHMAT"},"415876","Deferred Excess Net PowerCosts - OR","OTHER",-2907.24323,{"$f":"IF(OR(tblSchMJune19[[#This Row],[Alloc]]=\"IDU\",tblSchMJune19[[#This Row],[Alloc]]=\"OR\",tblSchMJune19[[#This Row],[Alloc]]=\"UT\",tblSchMJune19[[#This Row],[Alloc]]=\"WYU\",tblSchMJune19[[#This Row],[Alloc]]=\"WYP\",tblSchMJune19[[#This Row],[Alloc]]=\"CA\",tblSchMJune19[[#This Row],[Alloc]]=\"WA\"),\"SITUS\",tblSchMJune19[[#This Row],[Alloc]])","v":"OTHER"},{"$f":"INDEX(tblSchMLookup[FUNC],MATCH(tblSchMJune19[[#This Row],[Concat]],tblSchMLookup[Concat],0))","v":"P"},{"$f":"IF(tblSchMJune19[[#This Row],[Total ($000)]]=0,\"NO\",IF(ISNA(tblSchMJune19[[#This Row],[FUNC]]),\"YES\",IF(_xlfn.ISFORMULA(tblSchMJune19[[#This Row],[FUNC]]),\"NO\",\"YES\")))","v":"NO"}]
[{"$f":"CONCATENATE(tblSchMJune19[[#This Row],[Primary Account]],tblSchMJune19[[#This Row],[Primary Name]],tblSchMJune19[[#This Row],[Secondary Acct]],tblSchMJune19[[#This Row],[Secondary  Name]],tblSchMJune19[[#This Row],[Alloc4FUNC]])","v":"4098300SCHMAT415881Deferral of Renewable Energy Credit - UTOTHER"},4098300,{"$f":"IF(tblSchMJune19[[#This Row],[Primary Account]]=4098200,\"SCHMAP\",IF(tblSchMJune19[[#This Row],[Primary Account]]=4098300,\"SCHMAT\",IF(tblSchMJune19[[#This Row],[Primary Account]]=4099200,\"SCHMDP\",IF(tblSchMJune19[[#This Row],[Primary Account]]=4099300,\"SCHMDT\"))))","v":"SCHMAT"},"415881","Deferral of Renewable Energy Credit - UT","OTHER",203.40898999999999,{"$f":"IF(OR(tblSchMJune19[[#This Row],[Alloc]]=\"IDU\",tblSchMJune19[[#This Row],[Alloc]]=\"OR\",tblSchMJune19[[#This Row],[Alloc]]=\"UT\",tblSchMJune19[[#This Row],[Alloc]]=\"WYU\",tblSchMJune19[[#This Row],[Alloc]]=\"WYP\",tblSchMJune19[[#This Row],[Alloc]]=\"CA\",tblSchMJune19[[#This Row],[Alloc]]=\"WA\"),\"SITUS\",tblSchMJune19[[#This Row],[Alloc]])","v":"OTHER"},{"$f":"INDEX(tblSchMLookup[FUNC],MATCH(tblSchMJune19[[#This Row],[Concat]],tblSchMLookup[Concat],0))","v":"P"},{"$f":"IF(tblSchMJune19[[#This Row],[Total ($000)]]=0,\"NO\",IF(ISNA(tblSchMJune19[[#This Row],[FUNC]]),\"YES\",IF(_xlfn.ISFORMULA(tblSchMJune19[[#This Row],[FUNC]]),\"NO\",\"YES\")))","v":"NO"}]
[{"$f":"CONCATENATE(tblSchMJune19[[#This Row],[Primary Account]],tblSchMJune19[[#This Row],[Primary Name]],tblSchMJune19[[#This Row],[Secondary Acct]],tblSchMJune19[[#This Row],[Secondary  Name]],tblSchMJune19[[#This Row],[Alloc4FUNC]])","v":"4098300SCHMAT415883Deferral of Renewable Energy Credit - WYOTHER"},4098300,{"$f":"IF(tblSchMJune19[[#This Row],[Primary Account]]=4098200,\"SCHMAP\",IF(tblSchMJune19[[#This Row],[Primary Account]]=4098300,\"SCHMAT\",IF(tblSchMJune19[[#This Row],[Primary Account]]=4099200,\"SCHMDP\",IF(tblSchMJune19[[#This Row],[Primary Account]]=4099300,\"SCHMDT\"))))","v":"SCHMAT"},"415883","Deferral of Renewable Energy Credit - WY","OTHER",339.59154999999998,{"$f":"IF(OR(tblSchMJune19[[#This Row],[Alloc]]=\"IDU\",tblSchMJune19[[#This Row],[Alloc]]=\"OR\",tblSchMJune19[[#This Row],[Alloc]]=\"UT\",tblSchMJune19[[#This Row],[Alloc]]=\"WYU\",tblSchMJune19[[#This Row],[Alloc]]=\"WYP\",tblSchMJune19[[#This Row],[Alloc]]=\"CA\",tblSchMJune19[[#This Row],[Alloc]]=\"WA\"),\"SITUS\",tblSchMJune19[[#This Row],[Alloc]])","v":"OTHER"},{"$f":"INDEX(tblSchMLookup[FUNC],MATCH(tblSchMJune19[[#This Row],[Concat]],tblSchMLookup[Concat],0))","v":"P"},{"$f":"IF(tblSchMJune19[[#This Row],[Total ($000)]]=0,\"NO\",IF(ISNA(tblSchMJune19[[#This Row],[FUNC]]),\"YES\",IF(_xlfn.ISFORMULA(tblSchMJune19[[#This Row],[FUNC]]),\"NO\",\"YES\")))","v":"NO"}]
[{"$f":"CONCATENATE(tblSchMJune19[[#This Row],[Primary Account]],tblSchMJune19[[#This Row],[Primary Name]],tblSchMJune19[[#This Row],[Secondary Acct]],tblSchMJune19[[#This Row],[Secondary  Name]],tblSchMJune19[[#This Row],[Alloc4FUNC]])","v":"4098300SCHMAT415890ID MEHC 2006 Transistion CostsSITUS"},4098300,{"$f":"IF(tblSchMJune19[[#This Row],[Primary Account]]=4098200,\"SCHMAP\",IF(tblSchMJune19[[#This Row],[Primary Account]]=4098300,\"SCHMAT\",IF(tblSchMJune19[[#This Row],[Primary Account]]=4099200,\"SCHMDP\",IF(tblSchMJune19[[#This Row],[Primary Account]]=4099300,\"SCHMDT\"))))","v":"SCHMAT"},"415890","ID MEHC 2006 Transistion Costs","IDU",null,{"$f":"IF(OR(tblSchMJune19[[#This Row],[Alloc]]=\"IDU\",tblSchMJune19[[#This Row],[Alloc]]=\"OR\",tblSchMJune19[[#This Row],[Alloc]]=\"UT\",tblSchMJune19[[#This Row],[Alloc]]=\"WYU\",tblSchMJune19[[#This Row],[Alloc]]=\"WYP\",tblSchMJune19[[#This Row],[Alloc]]=\"CA\",tblSchMJune19[[#This Row],[Alloc]]=\"WA\"),\"SITUS\",tblSchMJune19[[#This Row],[Alloc]])","v":"SITUS"},{"$f":"INDEX(tblSchMLookup[FUNC],MATCH(tblSchMJune19[[#This Row],[Concat]],tblSchMLookup[Concat],0))","v":{"$error":"#N/A"}},{"$f":"IF(tblSchMJune19[[#This Row],[Total ($000)]]=0,\"NO\",IF(ISNA(tblSchMJune19[[#This Row],[FUNC]]),\"YES\",IF(_xlfn.ISFORMULA(tblSchMJune19[[#This Row],[FUNC]]),\"NO\",\"YES\")))","v":"NO"}]
[{"$f":"CONCATENATE(tblSchMJune19[[#This Row],[Primary Account]],tblSchMJune19[[#This Row],[Primary Name]],tblSchMJune19[[#This Row],[Secondary Acct]],tblSchMJune19[[#This Row],[Secondary  Name]],tblSchMJune19[[#This Row],[Alloc4FUNC]])","v":"4098300SCHMAT415891WY - 2006 Transition Severance CostsSITUS"},4098300,{"$f":"IF(tblSchMJune19[[#This Row],[Primary Account]]=4098200,\"SCHMAP\",IF(tblSchMJune19[[#This Row],[Primary Account]]=4098300,\"SCHMAT\",IF(tblSchMJune19[[#This Row],[Primary Account]]=4099200,\"SCHMDP\",IF(tblSchMJune19[[#This Row],[Primary Account]]=4099300,\"SCHMDT\"))))","v":"SCHMAT"},"415891","WY - 2006 Transition Severance Costs","WYP",null,{"$f":"IF(OR(tblSchMJune19[[#This Row],[Alloc]]=\"IDU\",tblSchMJune19[[#This Row],[Alloc]]=\"OR\",tblSchMJune19[[#This Row],[Alloc]]=\"UT\",tblSchMJune19[[#This Row],[Alloc]]=\"WYU\",tblSchMJune19[[#This Row],[Alloc]]=\"WYP\",tblSchMJune19[[#This Row],[Alloc]]=\"CA\",tblSchMJune19[[#This Row],[Alloc]]=\"WA\"),\"SITUS\",tblSchMJune19[[#This Row],[Alloc]])","v":"SITUS"},{"$f":"INDEX(tblSchMLookup[FUNC],MATCH(tblSchMJune19[[#This Row],[Concat]],tblSchMLookup[Concat],0))","v":{"$error":"#N/A"}},{"$f":"IF(tblSchMJune19[[#This Row],[Total ($000)]]=0,\"NO\",IF(ISNA(tblSchMJune19[[#This Row],[FUNC]]),\"YES\",IF(_xlfn.ISFORMULA(tblSchMJune19[[#This Row],[FUNC]]),\"NO\",\"YES\")))","v":"NO"}]
[{"$f":"CONCATENATE(tblSchMJune19[[#This Row],[Primary Account]],tblSchMJune19[[#This Row],[Primary Name]],tblSchMJune19[[#This Row],[Secondary Acct]],tblSchMJune19[[#This Row],[Secondary  Name]],tblSchMJune19[[#This Row],[Alloc4FUNC]])","v":"4098300SCHMAT415893OR - MEHC Transition Service CostsOTHER"},4098300,{"$f":"IF(tblSchMJune19[[#This Row],[Primary Account]]=4098200,\"SCHMAP\",IF(tblSchMJune19[[#This Row],[Primary Account]]=4098300,\"SCHMAT\",IF(tblSchMJune19[[#This Row],[Primary Account]]=4099200,\"SCHMDP\",IF(tblSchMJune19[[#This Row],[Primary Account]]=4099300,\"SCHMDT\"))))","v":"SCHMAT"},"415893","OR - MEHC Transition Service Costs","OTHER",null,{"$f":"IF(OR(tblSchMJune19[[#This Row],[Alloc]]=\"IDU\",tblSchMJune19[[#This Row],[Alloc]]=\"OR\",tblSchMJune19[[#This Row],[Alloc]]=\"UT\",tblSchMJune19[[#This Row],[Alloc]]=\"WYU\",tblSchMJune19[[#This Row],[Alloc]]=\"WYP\",tblSchMJune19[[#This Row],[Alloc]]=\"CA\",tblSchMJune19[[#This Row],[Alloc]]=\"WA\"),\"SITUS\",tblSchMJune19[[#This Row],[Alloc]])","v":"OTHER"},{"$f":"INDEX(tblSchMLookup[FUNC],MATCH(tblSchMJune19[[#This Row],[Concat]],tblSchMLookup[Concat],0))","v":{"$error":"#N/A"}},{"$f":"IF(tblSchMJune19[[#This Row],[Total ($000)]]=0,\"NO\",IF(ISNA(tblSchMJune19[[#This Row],[FUNC]]),\"YES\",IF(_xlfn.ISFORMULA(tblSchMJune19[[#This Row],[FUNC]]),\"NO\",\"YES\")))","v":"NO"}]
[{"$f":"CONCATENATE(tblSchMJune19[[#This Row],[Primary Account]],tblSchMJune19[[#This Row],[Primary Name]],tblSchMJune19[[#This Row],[Secondary Acct]],tblSchMJune19[[#This Row],[Secondary  Name]],tblSchMJune19[[#This Row],[Alloc4FUNC]])","v":"4098300SCHMAT415895OR RCAC Sept-Dec 07 deferredSITUS"},4098300,{"$f":"IF(tblSchMJune19[[#This Row],[Primary Account]]=4098200,\"SCHMAP\",IF(tblSchMJune19[[#This Row],[Primary Account]]=4098300,\"SCHMAT\",IF(tblSchMJune19[[#This Row],[Primary Account]]=4099200,\"SCHMDP\",IF(tblSchMJune19[[#This Row],[Primary Account]]=4099300,\"SCHMDT\"))))","v":"SCHMAT"},"415895","OR RCAC Sept-Dec 07 deferred","OR",null,{"$f":"IF(OR(tblSchMJune19[[#This Row],[Alloc]]=\"IDU\",tblSchMJune19[[#This Row],[Alloc]]=\"OR\",tblSchMJune19[[#This Row],[Alloc]]=\"UT\",tblSchMJune19[[#This Row],[Alloc]]=\"WYU\",tblSchMJune19[[#This Row],[Alloc]]=\"WYP\",tblSchMJune19[[#This Row],[Alloc]]=\"CA\",tblSchMJune19[[#This Row],[Alloc]]=\"WA\"),\"SITUS\",tblSchMJune19[[#This Row],[Alloc]])","v":"SITUS"},{"$f":"INDEX(tblSchMLookup[FUNC],MATCH(tblSchMJune19[[#This Row],[Concat]],tblSchMLookup[Concat],0))","v":{"$error":"#N/A"}},{"$f":"IF(tblSchMJune19[[#This Row],[Total ($000)]]=0,\"NO\",IF(ISNA(tblSchMJune19[[#This Row],[FUNC]]),\"YES\",IF(_xlfn.ISFORMULA(tblSchMJune19[[#This Row],[FUNC]]),\"NO\",\"YES\")))","v":"NO"}]
[{"$f":"CONCATENATE(tblSchMJune19[[#This Row],[Primary Account]],tblSchMJune19[[#This Row],[Primary Name]],tblSchMJune19[[#This Row],[Secondary Acct]],tblSchMJune19[[#This Row],[Secondary  Name]],tblSchMJune19[[#This Row],[Alloc4FUNC]])","v":"4098300SCHMAT415896WA - Chehalis Plant Revenue RequirementSITUS"},4098300,{"$f":"IF(tblSchMJune19[[#This Row],[Primary Account]]=4098200,\"SCHMAP\",IF(tblSchMJune19[[#This Row],[Primary Account]]=4098300,\"SCHMAT\",IF(tblSchMJune19[[#This Row],[Primary Account]]=4099200,\"SCHMDP\",IF(tblSchMJune19[[#This Row],[Primary Account]]=4099300,\"SCHMDT\"))))","v":"SCHMAT"},"415896","WA - Chehalis Plant Revenue Requirement","WA",null,{"$f":"IF(OR(tblSchMJune19[[#This Row],[Alloc]]=\"IDU\",tblSchMJune19[[#This Row],[Alloc]]=\"OR\",tblSchMJune19[[#This Row],[Alloc]]=\"UT\",tblSchMJune19[[#This Row],[Alloc]]=\"WYU\",tblSchMJune19[[#This Row],[Alloc]]=\"WYP\",tblSchMJune19[[#This Row],[Alloc]]=\"CA\",tblSchMJune19[[#This Row],[Alloc]]=\"WA\"),\"SITUS\",tblSchMJune19[[#This Row],[Alloc]])","v":"SITUS"},{"$f":"INDEX(tblSchMLookup[FUNC],MATCH(tblSchMJune19[[#This Row],[Concat]],tblSchMLookup[Concat],0))","v":{"$error":"#N/A"}},{"$f":"IF(tblSchMJune19[[#This Row],[Total ($000)]]=0,\"NO\",IF(ISNA(tblSchMJune19[[#This Row],[FUNC]]),\"YES\",IF(_xlfn.ISFORMULA(tblSchMJune19[[#This Row],[FUNC]]),\"NO\",\"YES\")))","v":"NO"}]
[{"$f":"CONCATENATE(tblSchMJune19[[#This Row],[Primary Account]],tblSchMJune19[[#This Row],[Primary Name]],tblSchMJune19[[#This Row],[Secondary Acct]],tblSchMJune19[[#This Row],[Secondary  Name]],tblSchMJune19[[#This Row],[Alloc4FUNC]])","v":"4098300SCHMAT415897Reg Asset MEHC Transition Service CostsSITUS"},4098300,{"$f":"IF(tblSchMJune19[[#This Row],[Primary Account]]=4098200,\"SCHMAP\",IF(tblSchMJune19[[#This Row],[Primary Account]]=4098300,\"SCHMAT\",IF(tblSchMJune19[[#This Row],[Primary Account]]=4099200,\"SCHMDP\",IF(tblSchMJune19[[#This Row],[Primary Account]]=4099300,\"SCHMDT\"))))","v":"SCHMAT"},"415897","Reg Asset MEHC Transition Service Costs","CA",null,{"$f":"IF(OR(tblSchMJune19[[#This Row],[Alloc]]=\"IDU\",tblSchMJune19[[#This Row],[Alloc]]=\"OR\",tblSchMJune19[[#This Row],[Alloc]]=\"UT\",tblSchMJune19[[#This Row],[Alloc]]=\"WYU\",tblSchMJune19[[#This Row],[Alloc]]=\"WYP\",tblSchMJune19[[#This Row],[Alloc]]=\"CA\",tblSchMJune19[[#This Row],[Alloc]]=\"WA\"),\"SITUS\",tblSchMJune19[[#This Row],[Alloc]])","v":"SITUS"},{"$f":"INDEX(tblSchMLookup[FUNC],MATCH(tblSchMJune19[[#This Row],[Concat]],tblSchMLookup[Concat],0))","v":{"$error":"#N/A"}},{"$f":"IF(tblSchMJune19[[#This Row],[Total ($000)]]=0,\"NO\",IF(ISNA(tblSchMJune19[[#This Row],[FUNC]]),\"YES\",IF(_xlfn.ISFORMULA(tblSchMJune19[[#This Row],[FUNC]]),\"NO\",\"YES\")))","v":"NO"}]
[{"$f":"CONCATENATE(tblSchMJune19[[#This Row],[Primary Account]],tblSchMJune19[[#This Row],[Primary Name]],tblSchMJune19[[#This Row],[Secondary Acct]],tblSchMJune19[[#This Row],[Secondary  Name]],tblSchMJune19[[#This Row],[Alloc4FUNC]])","v":"4098300SCHMAT415898Deferred Coal Costs - Naughton ContractSE"},4098300,{"$f":"IF(tblSchMJune19[[#This Row],[Primary Account]]=4098200,\"SCHMAP\",IF(tblSchMJune19[[#This Row],[Primary Account]]=4098300,\"SCHMAT\",IF(tblSchMJune19[[#This Row],[Primary Account]]=4099200,\"SCHMDP\",IF(tblSchMJune19[[#This Row],[Primary Account]]=4099300,\"SCHMDT\"))))","v":"SCHMAT"},"415898","Deferred Coal Costs - Naughton Contract","SE",null,{"$f":"IF(OR(tblSchMJune19[[#This Row],[Alloc]]=\"IDU\",tblSchMJune19[[#This Row],[Alloc]]=\"OR\",tblSchMJune19[[#This Row],[Alloc]]=\"UT\",tblSchMJune19[[#This Row],[Alloc]]=\"WYU\",tblSchMJune19[[#This Row],[Alloc]]=\"WYP\",tblSchMJune19[[#This Row],[Alloc]]=\"CA\",tblSchMJune19[[#This Row],[Alloc]]=\"WA\"),\"SITUS\",tblSchMJune19[[#This Row],[Alloc]])","v":"SE"},{"$f":"INDEX(tblSchMLookup[FUNC],MATCH(tblSchMJune19[[#This Row],[Concat]],tblSchMLookup[Concat],0))","v":"P"},{"$f":"IF(tblSchMJune19[[#This Row],[Total ($000)]]=0,\"NO\",IF(ISNA(tblSchMJune19[[#This Row],[FUNC]]),\"YES\",IF(_xlfn.ISFORMULA(tblSchMJune19[[#This Row],[FUNC]]),\"NO\",\"YES\")))","v":"NO"}]
[{"$f":"CONCATENATE(tblSchMJune19[[#This Row],[Primary Account]],tblSchMJune19[[#This Row],[Primary Name]],tblSchMJune19[[#This Row],[Secondary Acct]],tblSchMJune19[[#This Row],[Secondary  Name]],tblSchMJune19[[#This Row],[Alloc4FUNC]])","v":"4098300SCHMAT415900OR SB 408 RecoveryOTHER"},4098300,{"$f":"IF(tblSchMJune19[[#This Row],[Primary Account]]=4098200,\"SCHMAP\",IF(tblSchMJune19[[#This Row],[Primary Account]]=4098300,\"SCHMAT\",IF(tblSchMJune19[[#This Row],[Primary Account]]=4099200,\"SCHMDP\",IF(tblSchMJune19[[#This Row],[Primary Account]]=4099300,\"SCHMDT\"))))","v":"SCHMAT"},"415900","OR SB 408 Recovery","OTHER",null,{"$f":"IF(OR(tblSchMJune19[[#This Row],[Alloc]]=\"IDU\",tblSchMJune19[[#This Row],[Alloc]]=\"OR\",tblSchMJune19[[#This Row],[Alloc]]=\"UT\",tblSchMJune19[[#This Row],[Alloc]]=\"WYU\",tblSchMJune19[[#This Row],[Alloc]]=\"WYP\",tblSchMJune19[[#This Row],[Alloc]]=\"CA\",tblSchMJune19[[#This Row],[Alloc]]=\"WA\"),\"SITUS\",tblSchMJune19[[#This Row],[Alloc]])","v":"OTHER"},{"$f":"INDEX(tblSchMLookup[FUNC],MATCH(tblSchMJune19[[#This Row],[Concat]],tblSchMLookup[Concat],0))","v":{"$error":"#N/A"}},{"$f":"IF(tblSchMJune19[[#This Row],[Total ($000)]]=0,\"NO\",IF(ISNA(tblSchMJune19[[#This Row],[FUNC]]),\"YES\",IF(_xlfn.ISFORMULA(tblSchMJune19[[#This Row],[FUNC]]),\"NO\",\"YES\")))","v":"NO"}]
[{"$f":"CONCATENATE(tblSchMJune19[[#This Row],[Primary Account]],tblSchMJune19[[#This Row],[Primary Name]],tblSchMJune19[[#This Row],[Secondary Acct]],tblSchMJune19[[#This Row],[Secondary  Name]],tblSchMJune19[[#This Row],[Alloc4FUNC]])","v":"4098300SCHMAT415902Reg Asset - UT REC's in Rates - CurrentOTHER"},4098300,{"$f":"IF(tblSchMJune19[[#This Row],[Primary Account]]=4098200,\"SCHMAP\",IF(tblSchMJune19[[#This Row],[Primary Account]]=4098300,\"SCHMAT\",IF(tblSchMJune19[[#This Row],[Primary Account]]=4099200,\"SCHMDP\",IF(tblSchMJune19[[#This Row],[Primary Account]]=4099300,\"SCHMDT\"))))","v":"SCHMAT"},"415902","Reg Asset - UT REC's in Rates - Current","OTHER",null,{"$f":"IF(OR(tblSchMJune19[[#This Row],[Alloc]]=\"IDU\",tblSchMJune19[[#This Row],[Alloc]]=\"OR\",tblSchMJune19[[#This Row],[Alloc]]=\"UT\",tblSchMJune19[[#This Row],[Alloc]]=\"WYU\",tblSchMJune19[[#This Row],[Alloc]]=\"WYP\",tblSchMJune19[[#This Row],[Alloc]]=\"CA\",tblSchMJune19[[#This Row],[Alloc]]=\"WA\"),\"SITUS\",tblSchMJune19[[#This Row],[Alloc]])","v":"OTHER"},{"$f":"INDEX(tblSchMLookup[FUNC],MATCH(tblSchMJune19[[#This Row],[Concat]],tblSchMLookup[Concat],0))","v":{"$error":"#N/A"}},{"$f":"IF(tblSchMJune19[[#This Row],[Total ($000)]]=0,\"NO\",IF(ISNA(tblSchMJune19[[#This Row],[FUNC]]),\"YES\",IF(_xlfn.ISFORMULA(tblSchMJune19[[#This Row],[FUNC]]),\"NO\",\"YES\")))","v":"NO"}]
[{"$f":"CONCATENATE(tblSchMJune19[[#This Row],[Primary Account]],tblSchMJune19[[#This Row],[Primary Name]],tblSchMJune19[[#This Row],[Secondary Acct]],tblSchMJune19[[#This Row],[Secondary  Name]],tblSchMJune19[[#This Row],[Alloc4FUNC]])","v":"4098300SCHMAT415911Contra Reg Asset - Naughton Unit $3 - CASITUS"},4098300,{"$f":"IF(tblSchMJune19[[#This Row],[Primary Account]]=4098200,\"SCHMAP\",IF(tblSchMJune19[[#This Row],[Primary Account]]=4098300,\"SCHMAT\",IF(tblSchMJune19[[#This Row],[Primary Account]]=4099200,\"SCHMDP\",IF(tblSchMJune19[[#This Row],[Primary Account]]=4099300,\"SCHMDT\"))))","v":"SCHMAT"},"415911","Contra Reg Asset - Naughton Unit $3 - CA","CA",null,{"$f":"IF(OR(tblSchMJune19[[#This Row],[Alloc]]=\"IDU\",tblSchMJune19[[#This Row],[Alloc]]=\"OR\",tblSchMJune19[[#This Row],[Alloc]]=\"UT\",tblSchMJune19[[#This Row],[Alloc]]=\"WYU\",tblSchMJune19[[#This Row],[Alloc]]=\"WYP\",tblSchMJune19[[#This Row],[Alloc]]=\"CA\",tblSchMJune19[[#This Row],[Alloc]]=\"WA\"),\"SITUS\",tblSchMJune19[[#This Row],[Alloc]])","v":"SITUS"},{"$f":"INDEX(tblSchMLookup[FUNC],MATCH(tblSchMJune19[[#This Row],[Concat]],tblSchMLookup[Concat],0))","v":{"$error":"#N/A"}},{"$f":"IF(tblSchMJune19[[#This Row],[Total ($000)]]=0,\"NO\",IF(ISNA(tblSchMJune19[[#This Row],[FUNC]]),\"YES\",IF(_xlfn.ISFORMULA(tblSchMJune19[[#This Row],[FUNC]]),\"NO\",\"YES\")))","v":"NO"}]
[{"$f":"CONCATENATE(tblSchMJune19[[#This Row],[Primary Account]],tblSchMJune19[[#This Row],[Primary Name]],tblSchMJune19[[#This Row],[Secondary Acct]],tblSchMJune19[[#This Row],[Secondary  Name]],tblSchMJune19[[#This Row],[Alloc4FUNC]])","v":"4098300SCHMAT415912Contra Reg Asset - Naughton Unit #3 - OROTHER"},4098300,{"$f":"IF(tblSchMJune19[[#This Row],[Primary Account]]=4098200,\"SCHMAP\",IF(tblSchMJune19[[#This Row],[Primary Account]]=4098300,\"SCHMAT\",IF(tblSchMJune19[[#This Row],[Primary Account]]=4099200,\"SCHMDP\",IF(tblSchMJune19[[#This Row],[Primary Account]]=4099300,\"SCHMDT\"))))","v":"SCHMAT"},"415912","Contra Reg Asset - Naughton Unit #3 - OR","OTHER",null,{"$f":"IF(OR(tblSchMJune19[[#This Row],[Alloc]]=\"IDU\",tblSchMJune19[[#This Row],[Alloc]]=\"OR\",tblSchMJune19[[#This Row],[Alloc]]=\"UT\",tblSchMJune19[[#This Row],[Alloc]]=\"WYU\",tblSchMJune19[[#This Row],[Alloc]]=\"WYP\",tblSchMJune19[[#This Row],[Alloc]]=\"CA\",tblSchMJune19[[#This Row],[Alloc]]=\"WA\"),\"SITUS\",tblSchMJune19[[#This Row],[Alloc]])","v":"OTHER"},{"$f":"INDEX(tblSchMLookup[FUNC],MATCH(tblSchMJune19[[#This Row],[Concat]],tblSchMLookup[Concat],0))","v":{"$error":"#N/A"}},{"$f":"IF(tblSchMJune19[[#This Row],[Total ($000)]]=0,\"NO\",IF(ISNA(tblSchMJune19[[#This Row],[FUNC]]),\"YES\",IF(_xlfn.ISFORMULA(tblSchMJune19[[#This Row],[FUNC]]),\"NO\",\"YES\")))","v":"NO"}]
[{"$f":"CONCATENATE(tblSchMJune19[[#This Row],[Primary Account]],tblSchMJune19[[#This Row],[Primary Name]],tblSchMJune19[[#This Row],[Secondary Acct]],tblSchMJune19[[#This Row],[Secondary  Name]],tblSchMJune19[[#This Row],[Alloc4FUNC]])","v":"4098300SCHMAT415913Contra Reg Asset - Naughton Unit #3 - WAOTHER"},4098300,{"$f":"IF(tblSchMJune19[[#This Row],[Primary Account]]=4098200,\"SCHMAP\",IF(tblSchMJune19[[#This Row],[Primary Account]]=4098300,\"SCHMAT\",IF(tblSchMJune19[[#This Row],[Primary Account]]=4099200,\"SCHMDP\",IF(tblSchMJune19[[#This Row],[Primary Account]]=4099300,\"SCHMDT\"))))","v":"SCHMAT"},"415913","Contra Reg Asset - Naughton Unit #3 - WA","OTHER",null,{"$f":"IF(OR(tblSchMJune19[[#This Row],[Alloc]]=\"IDU\",tblSchMJune19[[#This Row],[Alloc]]=\"OR\",tblSchMJune19[[#This Row],[Alloc]]=\"UT\",tblSchMJune19[[#This Row],[Alloc]]=\"WYU\",tblSchMJune19[[#This Row],[Alloc]]=\"WYP\",tblSchMJune19[[#This Row],[Alloc]]=\"CA\",tblSchMJune19[[#This Row],[Alloc]]=\"WA\"),\"SITUS\",tblSchMJune19[[#This Row],[Alloc]])","v":"OTHER"},{"$f":"INDEX(tblSchMLookup[FUNC],MATCH(tblSchMJune19[[#This Row],[Concat]],tblSchMLookup[Concat],0))","v":{"$error":"#N/A"}},{"$f":"IF(tblSchMJune19[[#This Row],[Total ($000)]]=0,\"NO\",IF(ISNA(tblSchMJune19[[#This Row],[FUNC]]),\"YES\",IF(_xlfn.ISFORMULA(tblSchMJune19[[#This Row],[FUNC]]),\"NO\",\"YES\")))","v":"NO"}]
[{"$f":"CONCATENATE(tblSchMJune19[[#This Row],[Primary Account]],tblSchMJune19[[#This Row],[Primary Name]],tblSchMJune19[[#This Row],[Secondary Acct]],tblSchMJune19[[#This Row],[Secondary  Name]],tblSchMJune19[[#This Row],[Alloc4FUNC]])","v":"4098300SCHMAT415914Reg Asset - UT - Naughton U3 CostsSITUS"},4098300,{"$f":"IF(tblSchMJune19[[#This Row],[Primary Account]]=4098200,\"SCHMAP\",IF(tblSchMJune19[[#This Row],[Primary Account]]=4098300,\"SCHMAT\",IF(tblSchMJune19[[#This Row],[Primary Account]]=4099200,\"SCHMDP\",IF(tblSchMJune19[[#This Row],[Primary Account]]=4099300,\"SCHMDT\"))))","v":"SCHMAT"},"415914","Reg Asset - UT - Naughton U3 Costs","UT",null,{"$f":"IF(OR(tblSchMJune19[[#This Row],[Alloc]]=\"IDU\",tblSchMJune19[[#This Row],[Alloc]]=\"OR\",tblSchMJune19[[#This Row],[Alloc]]=\"UT\",tblSchMJune19[[#This Row],[Alloc]]=\"WYU\",tblSchMJune19[[#This Row],[Alloc]]=\"WYP\",tblSchMJune19[[#This Row],[Alloc]]=\"CA\",tblSchMJune19[[#This Row],[Alloc]]=\"WA\"),\"SITUS\",tblSchMJune19[[#This Row],[Alloc]])","v":"SITUS"},{"$f":"INDEX(tblSchMLookup[FUNC],MATCH(tblSchMJune19[[#This Row],[Concat]],tblSchMLookup[Concat],0))","v":{"$error":"#N/A"}},{"$f":"IF(tblSchMJune19[[#This Row],[Total ($000)]]=0,\"NO\",IF(ISNA(tblSchMJune19[[#This Row],[FUNC]]),\"YES\",IF(_xlfn.ISFORMULA(tblSchMJune19[[#This Row],[FUNC]]),\"NO\",\"YES\")))","v":"NO"}]
[{"$f":"CONCATENATE(tblSchMJune19[[#This Row],[Primary Account]],tblSchMJune19[[#This Row],[Primary Name]],tblSchMJune19[[#This Row],[Secondary Acct]],tblSchMJune19[[#This Row],[Secondary  Name]],tblSchMJune19[[#This Row],[Alloc4FUNC]])","v":"4098300SCHMAT415915Reg Asset - WY - Naughton U3 CostsSITUS"},4098300,{"$f":"IF(tblSchMJune19[[#This Row],[Primary Account]]=4098200,\"SCHMAP\",IF(tblSchMJune19[[#This Row],[Primary Account]]=4098300,\"SCHMAT\",IF(tblSchMJune19[[#This Row],[Primary Account]]=4099200,\"SCHMDP\",IF(tblSchMJune19[[#This Row],[Primary Account]]=4099300,\"SCHMDT\"))))","v":"SCHMAT"},"415915","Reg Asset - WY - Naughton U3 Costs","WYP",null,{"$f":"IF(OR(tblSchMJune19[[#This Row],[Alloc]]=\"IDU\",tblSchMJune19[[#This Row],[Alloc]]=\"OR\",tblSchMJune19[[#This Row],[Alloc]]=\"UT\",tblSchMJune19[[#This Row],[Alloc]]=\"WYU\",tblSchMJune19[[#This Row],[Alloc]]=\"WYP\",tblSchMJune19[[#This Row],[Alloc]]=\"CA\",tblSchMJune19[[#This Row],[Alloc]]=\"WA\"),\"SITUS\",tblSchMJune19[[#This Row],[Alloc]])","v":"SITUS"},{"$f":"INDEX(tblSchMLookup[FUNC],MATCH(tblSchMJune19[[#This Row],[Concat]],tblSchMLookup[Concat],0))","v":{"$error":"#N/A"}},{"$f":"IF(tblSchMJune19[[#This Row],[Total ($000)]]=0,\"NO\",IF(ISNA(tblSchMJune19[[#This Row],[FUNC]]),\"YES\",IF(_xlfn.ISFORMULA(tblSchMJune19[[#This Row],[FUNC]]),\"NO\",\"YES\")))","v":"NO"}]
[{"$f":"CONCATENATE(tblSchMJune19[[#This Row],[Primary Account]],tblSchMJune19[[#This Row],[Primary Name]],tblSchMJune19[[#This Row],[Secondary Acct]],tblSchMJune19[[#This Row],[Secondary  Name]],tblSchMJune19[[#This Row],[Alloc4FUNC]])","v":"4098300SCHMAT415926Reg Liability - Depreciation Decrease -OTHER"},4098300,{"$f":"IF(tblSchMJune19[[#This Row],[Primary Account]]=4098200,\"SCHMAP\",IF(tblSchMJune19[[#This Row],[Primary Account]]=4098300,\"SCHMAT\",IF(tblSchMJune19[[#This Row],[Primary Account]]=4099200,\"SCHMDP\",IF(tblSchMJune19[[#This Row],[Primary Account]]=4099300,\"SCHMDT\"))))","v":"SCHMAT"},"415926","Reg Liability - Depreciation Decrease -","OTHER",1255.90841,{"$f":"IF(OR(tblSchMJune19[[#This Row],[Alloc]]=\"IDU\",tblSchMJune19[[#This Row],[Alloc]]=\"OR\",tblSchMJune19[[#This Row],[Alloc]]=\"UT\",tblSchMJune19[[#This Row],[Alloc]]=\"WYU\",tblSchMJune19[[#This Row],[Alloc]]=\"WYP\",tblSchMJune19[[#This Row],[Alloc]]=\"CA\",tblSchMJune19[[#This Row],[Alloc]]=\"WA\"),\"SITUS\",tblSchMJune19[[#This Row],[Alloc]])","v":"OTHER"},{"$f":"INDEX(tblSchMLookup[FUNC],MATCH(tblSchMJune19[[#This Row],[Concat]],tblSchMLookup[Concat],0))","v":"P"},{"$f":"IF(tblSchMJune19[[#This Row],[Total ($000)]]=0,\"NO\",IF(ISNA(tblSchMJune19[[#This Row],[FUNC]]),\"YES\",IF(_xlfn.ISFORMULA(tblSchMJune19[[#This Row],[FUNC]]),\"NO\",\"YES\")))","v":"NO"}]
[{"$f":"CONCATENATE(tblSchMJune19[[#This Row],[Primary Account]],tblSchMJune19[[#This Row],[Primary Name]],tblSchMJune19[[#This Row],[Secondary Acct]],tblSchMJune19[[#This Row],[Secondary  Name]],tblSchMJune19[[#This Row],[Alloc4FUNC]])","v":"4098300SCHMAT415927Reg Liability - Depreciation Decrease DeSITUS"},4098300,{"$f":"IF(tblSchMJune19[[#This Row],[Primary Account]]=4098200,\"SCHMAP\",IF(tblSchMJune19[[#This Row],[Primary Account]]=4098300,\"SCHMAT\",IF(tblSchMJune19[[#This Row],[Primary Account]]=4099200,\"SCHMDP\",IF(tblSchMJune19[[#This Row],[Primary Account]]=4099300,\"SCHMDT\"))))","v":"SCHMAT"},"415927","Reg Liability - Depreciation Decrease De","WA",null,{"$f":"IF(OR(tblSchMJune19[[#This Row],[Alloc]]=\"IDU\",tblSchMJune19[[#This Row],[Alloc]]=\"OR\",tblSchMJune19[[#This Row],[Alloc]]=\"UT\",tblSchMJune19[[#This Row],[Alloc]]=\"WYU\",tblSchMJune19[[#This Row],[Alloc]]=\"WYP\",tblSchMJune19[[#This Row],[Alloc]]=\"CA\",tblSchMJune19[[#This Row],[Alloc]]=\"WA\"),\"SITUS\",tblSchMJune19[[#This Row],[Alloc]])","v":"SITUS"},{"$f":"INDEX(tblSchMLookup[FUNC],MATCH(tblSchMJune19[[#This Row],[Concat]],tblSchMLookup[Concat],0))","v":"P"},{"$f":"IF(tblSchMJune19[[#This Row],[Total ($000)]]=0,\"NO\",IF(ISNA(tblSchMJune19[[#This Row],[FUNC]]),\"YES\",IF(_xlfn.ISFORMULA(tblSchMJune19[[#This Row],[FUNC]]),\"NO\",\"YES\")))","v":"NO"}]
[{"$f":"CONCATENATE(tblSchMJune19[[#This Row],[Primary Account]],tblSchMJune19[[#This Row],[Primary Name]],tblSchMJune19[[#This Row],[Secondary Acct]],tblSchMJune19[[#This Row],[Secondary  Name]],tblSchMJune19[[#This Row],[Alloc4FUNC]])","v":"4098300SCHMAT415938Reg Asset - Carbon Plant DecommissioningSITUS"},4098300,{"$f":"IF(tblSchMJune19[[#This Row],[Primary Account]]=4098200,\"SCHMAP\",IF(tblSchMJune19[[#This Row],[Primary Account]]=4098300,\"SCHMAT\",IF(tblSchMJune19[[#This Row],[Primary Account]]=4099200,\"SCHMDP\",IF(tblSchMJune19[[#This Row],[Primary Account]]=4099300,\"SCHMDT\"))))","v":"SCHMAT"},"415938","Reg Asset - Carbon Plant Decommissioning","CA",null,{"$f":"IF(OR(tblSchMJune19[[#This Row],[Alloc]]=\"IDU\",tblSchMJune19[[#This Row],[Alloc]]=\"OR\",tblSchMJune19[[#This Row],[Alloc]]=\"UT\",tblSchMJune19[[#This Row],[Alloc]]=\"WYU\",tblSchMJune19[[#This Row],[Alloc]]=\"WYP\",tblSchMJune19[[#This Row],[Alloc]]=\"CA\",tblSchMJune19[[#This Row],[Alloc]]=\"WA\"),\"SITUS\",tblSchMJune19[[#This Row],[Alloc]])","v":"SITUS"},{"$f":"INDEX(tblSchMLookup[FUNC],MATCH(tblSchMJune19[[#This Row],[Concat]],tblSchMLookup[Concat],0))","v":"P"},{"$f":"IF(tblSchMJune19[[#This Row],[Total ($000)]]=0,\"NO\",IF(ISNA(tblSchMJune19[[#This Row],[FUNC]]),\"YES\",IF(_xlfn.ISFORMULA(tblSchMJune19[[#This Row],[FUNC]]),\"NO\",\"YES\")))","v":"NO"}]
[{"$f":"CONCATENATE(tblSchMJune19[[#This Row],[Primary Account]],tblSchMJune19[[#This Row],[Primary Name]],tblSchMJune19[[#This Row],[Secondary Acct]],tblSchMJune19[[#This Row],[Secondary  Name]],tblSchMJune19[[#This Row],[Alloc4FUNC]])","v":"4098300SCHMAT425100Deferred Regulatory ExpenseSITUS"},4098300,{"$f":"IF(tblSchMJune19[[#This Row],[Primary Account]]=4098200,\"SCHMAP\",IF(tblSchMJune19[[#This Row],[Primary Account]]=4098300,\"SCHMAT\",IF(tblSchMJune19[[#This Row],[Primary Account]]=4099200,\"SCHMDP\",IF(tblSchMJune19[[#This Row],[Primary Account]]=4099300,\"SCHMDT\"))))","v":"SCHMAT"},"425100","Deferred Regulatory Expense","IDU",null,{"$f":"IF(OR(tblSchMJune19[[#This Row],[Alloc]]=\"IDU\",tblSchMJune19[[#This Row],[Alloc]]=\"OR\",tblSchMJune19[[#This Row],[Alloc]]=\"UT\",tblSchMJune19[[#This Row],[Alloc]]=\"WYU\",tblSchMJune19[[#This Row],[Alloc]]=\"WYP\",tblSchMJune19[[#This Row],[Alloc]]=\"CA\",tblSchMJune19[[#This Row],[Alloc]]=\"WA\"),\"SITUS\",tblSchMJune19[[#This Row],[Alloc]])","v":"SITUS"},{"$f":"INDEX(tblSchMLookup[FUNC],MATCH(tblSchMJune19[[#This Row],[Concat]],tblSchMLookup[Concat],0))","v":{"$error":"#N/A"}},{"$f":"IF(tblSchMJune19[[#This Row],[Total ($000)]]=0,\"NO\",IF(ISNA(tblSchMJune19[[#This Row],[FUNC]]),\"YES\",IF(_xlfn.ISFORMULA(tblSchMJune19[[#This Row],[FUNC]]),\"NO\",\"YES\")))","v":"NO"}]
[{"$f":"CONCATENATE(tblSchMJune19[[#This Row],[Primary Account]],tblSchMJune19[[#This Row],[Primary Name]],tblSchMJune19[[#This Row],[Secondary Acct]],tblSchMJune19[[#This Row],[Secondary  Name]],tblSchMJune19[[#This Row],[Alloc4FUNC]])","v":"4098300SCHMAT425105Reg Asset - OR Asset Sale Gain GivebackOTHER"},4098300,{"$f":"IF(tblSchMJune19[[#This Row],[Primary Account]]=4098200,\"SCHMAP\",IF(tblSchMJune19[[#This Row],[Primary Account]]=4098300,\"SCHMAT\",IF(tblSchMJune19[[#This Row],[Primary Account]]=4099200,\"SCHMDP\",IF(tblSchMJune19[[#This Row],[Primary Account]]=4099300,\"SCHMDT\"))))","v":"SCHMAT"},"425105","Reg Asset - OR Asset Sale Gain Giveback","OTHER",141.76034999999999,{"$f":"IF(OR(tblSchMJune19[[#This Row],[Alloc]]=\"IDU\",tblSchMJune19[[#This Row],[Alloc]]=\"OR\",tblSchMJune19[[#This Row],[Alloc]]=\"UT\",tblSchMJune19[[#This Row],[Alloc]]=\"WYU\",tblSchMJune19[[#This Row],[Alloc]]=\"WYP\",tblSchMJune19[[#This Row],[Alloc]]=\"CA\",tblSchMJune19[[#This Row],[Alloc]]=\"WA\"),\"SITUS\",tblSchMJune19[[#This Row],[Alloc]])","v":"OTHER"},{"$f":"INDEX(tblSchMLookup[FUNC],MATCH(tblSchMJune19[[#This Row],[Concat]],tblSchMLookup[Concat],0))","v":"P"},{"$f":"IF(tblSchMJune19[[#This Row],[Total ($000)]]=0,\"NO\",IF(ISNA(tblSchMJune19[[#This Row],[FUNC]]),\"YES\",IF(_xlfn.ISFORMULA(tblSchMJune19[[#This Row],[FUNC]]),\"NO\",\"YES\")))","v":"NO"}]
[{"$f":"CONCATENATE(tblSchMJune19[[#This Row],[Primary Account]],tblSchMJune19[[#This Row],[Primary Name]],tblSchMJune19[[#This Row],[Secondary Acct]],tblSchMJune19[[#This Row],[Secondary  Name]],tblSchMJune19[[#This Row],[Alloc4FUNC]])","v":"4098300SCHMAT425125Deferred Coal Cost - ArchSE"},4098300,{"$f":"IF(tblSchMJune19[[#This Row],[Primary Account]]=4098200,\"SCHMAP\",IF(tblSchMJune19[[#This Row],[Primary Account]]=4098300,\"SCHMAT\",IF(tblSchMJune19[[#This Row],[Primary Account]]=4099200,\"SCHMDP\",IF(tblSchMJune19[[#This Row],[Primary Account]]=4099300,\"SCHMDT\"))))","v":"SCHMAT"},"425125","Deferred Coal Cost - Arch","SE",null,{"$f":"IF(OR(tblSchMJune19[[#This Row],[Alloc]]=\"IDU\",tblSchMJune19[[#This Row],[Alloc]]=\"OR\",tblSchMJune19[[#This Row],[Alloc]]=\"UT\",tblSchMJune19[[#This Row],[Alloc]]=\"WYU\",tblSchMJune19[[#This Row],[Alloc]]=\"WYP\",tblSchMJune19[[#This Row],[Alloc]]=\"CA\",tblSchMJune19[[#This Row],[Alloc]]=\"WA\"),\"SITUS\",tblSchMJune19[[#This Row],[Alloc]])","v":"SE"},{"$f":"INDEX(tblSchMLookup[FUNC],MATCH(tblSchMJune19[[#This Row],[Concat]],tblSchMLookup[Concat],0))","v":{"$error":"#N/A"}},{"$f":"IF(tblSchMJune19[[#This Row],[Total ($000)]]=0,\"NO\",IF(ISNA(tblSchMJune19[[#This Row],[FUNC]]),\"YES\",IF(_xlfn.ISFORMULA(tblSchMJune19[[#This Row],[FUNC]]),\"NO\",\"YES\")))","v":"NO"}]
[{"$f":"CONCATENATE(tblSchMJune19[[#This Row],[Primary Account]],tblSchMJune19[[#This Row],[Primary Name]],tblSchMJune19[[#This Row],[Secondary Acct]],tblSchMJune19[[#This Row],[Secondary  Name]],tblSchMJune19[[#This Row],[Alloc4FUNC]])","v":"4098300SCHMAT425205Misc Def Dr-Prop Damage RepairsSO"},4098300,{"$f":"IF(tblSchMJune19[[#This Row],[Primary Account]]=4098200,\"SCHMAP\",IF(tblSchMJune19[[#This Row],[Primary Account]]=4098300,\"SCHMAT\",IF(tblSchMJune19[[#This Row],[Primary Account]]=4099200,\"SCHMDP\",IF(tblSchMJune19[[#This Row],[Primary Account]]=4099300,\"SCHMDT\"))))","v":"SCHMAT"},"425205","Misc Def Dr-Prop Damage Repairs","SO",null,{"$f":"IF(OR(tblSchMJune19[[#This Row],[Alloc]]=\"IDU\",tblSchMJune19[[#This Row],[Alloc]]=\"OR\",tblSchMJune19[[#This Row],[Alloc]]=\"UT\",tblSchMJune19[[#This Row],[Alloc]]=\"WYU\",tblSchMJune19[[#This Row],[Alloc]]=\"WYP\",tblSchMJune19[[#This Row],[Alloc]]=\"CA\",tblSchMJune19[[#This Row],[Alloc]]=\"WA\"),\"SITUS\",tblSchMJune19[[#This Row],[Alloc]])","v":"SO"},{"$f":"INDEX(tblSchMLookup[FUNC],MATCH(tblSchMJune19[[#This Row],[Concat]],tblSchMLookup[Concat],0))","v":{"$error":"#N/A"}},{"$f":"IF(tblSchMJune19[[#This Row],[Total ($000)]]=0,\"NO\",IF(ISNA(tblSchMJune19[[#This Row],[FUNC]]),\"YES\",IF(_xlfn.ISFORMULA(tblSchMJune19[[#This Row],[FUNC]]),\"NO\",\"YES\")))","v":"NO"}]
[{"$f":"CONCATENATE(tblSchMJune19[[#This Row],[Primary Account]],tblSchMJune19[[#This Row],[Primary Name]],tblSchMJune19[[#This Row],[Secondary Acct]],tblSchMJune19[[#This Row],[Secondary  Name]],tblSchMJune19[[#This Row],[Alloc4FUNC]])","v":"4098300SCHMAT425215Unearned Joint Use Pole Contact RevenuSNPD"},4098300,{"$f":"IF(tblSchMJune19[[#This Row],[Primary Account]]=4098200,\"SCHMAP\",IF(tblSchMJune19[[#This Row],[Primary Account]]=4098300,\"SCHMAT\",IF(tblSchMJune19[[#This Row],[Primary Account]]=4099200,\"SCHMDP\",IF(tblSchMJune19[[#This Row],[Primary Account]]=4099300,\"SCHMDT\"))))","v":"SCHMAT"},"425215","Unearned Joint Use Pole Contact Revenu","SNPD",null,{"$f":"IF(OR(tblSchMJune19[[#This Row],[Alloc]]=\"IDU\",tblSchMJune19[[#This Row],[Alloc]]=\"OR\",tblSchMJune19[[#This Row],[Alloc]]=\"UT\",tblSchMJune19[[#This Row],[Alloc]]=\"WYU\",tblSchMJune19[[#This Row],[Alloc]]=\"WYP\",tblSchMJune19[[#This Row],[Alloc]]=\"CA\",tblSchMJune19[[#This Row],[Alloc]]=\"WA\"),\"SITUS\",tblSchMJune19[[#This Row],[Alloc]])","v":"SNPD"},{"$f":"INDEX(tblSchMLookup[FUNC],MATCH(tblSchMJune19[[#This Row],[Concat]],tblSchMLookup[Concat],0))","v":{"$error":"#N/A"}},{"$f":"IF(tblSchMJune19[[#This Row],[Total ($000)]]=0,\"NO\",IF(ISNA(tblSchMJune19[[#This Row],[FUNC]]),\"YES\",IF(_xlfn.ISFORMULA(tblSchMJune19[[#This Row],[FUNC]]),\"NO\",\"YES\")))","v":"NO"}]
[{"$f":"CONCATENATE(tblSchMJune19[[#This Row],[Primary Account]],tblSchMJune19[[#This Row],[Primary Name]],tblSchMJune19[[#This Row],[Secondary Acct]],tblSchMJune19[[#This Row],[Secondary  Name]],tblSchMJune19[[#This Row],[Alloc4FUNC]])","v":"4098300SCHMAT425250TGS Buyout-SGSG"},4098300,{"$f":"IF(tblSchMJune19[[#This Row],[Primary Account]]=4098200,\"SCHMAP\",IF(tblSchMJune19[[#This Row],[Primary Account]]=4098300,\"SCHMAT\",IF(tblSchMJune19[[#This Row],[Primary Account]]=4099200,\"SCHMDP\",IF(tblSchMJune19[[#This Row],[Primary Account]]=4099300,\"SCHMDT\"))))","v":"SCHMAT"},"425250","TGS Buyout-SG","SG",15.474,{"$f":"IF(OR(tblSchMJune19[[#This Row],[Alloc]]=\"IDU\",tblSchMJune19[[#This Row],[Alloc]]=\"OR\",tblSchMJune19[[#This Row],[Alloc]]=\"UT\",tblSchMJune19[[#This Row],[Alloc]]=\"WYU\",tblSchMJune19[[#This Row],[Alloc]]=\"WYP\",tblSchMJune19[[#This Row],[Alloc]]=\"CA\",tblSchMJune19[[#This Row],[Alloc]]=\"WA\"),\"SITUS\",tblSchMJune19[[#This Row],[Alloc]])","v":"SG"},{"$f":"INDEX(tblSchMLookup[FUNC],MATCH(tblSchMJune19[[#This Row],[Concat]],tblSchMLookup[Concat],0))","v":"P"},{"$f":"IF(tblSchMJune19[[#This Row],[Total ($000)]]=0,\"NO\",IF(ISNA(tblSchMJune19[[#This Row],[FUNC]]),\"YES\",IF(_xlfn.ISFORMULA(tblSchMJune19[[#This Row],[FUNC]]),\"NO\",\"YES\")))","v":"NO"}]
[{"$f":"CONCATENATE(tblSchMJune19[[#This Row],[Primary Account]],tblSchMJune19[[#This Row],[Primary Name]],tblSchMJune19[[#This Row],[Secondary Acct]],tblSchMJune19[[#This Row],[Secondary  Name]],tblSchMJune19[[#This Row],[Alloc4FUNC]])","v":"4098300SCHMAT425260Lakeview Buyout-SGSG"},4098300,{"$f":"IF(tblSchMJune19[[#This Row],[Primary Account]]=4098200,\"SCHMAP\",IF(tblSchMJune19[[#This Row],[Primary Account]]=4098300,\"SCHMAT\",IF(tblSchMJune19[[#This Row],[Primary Account]]=4099200,\"SCHMDP\",IF(tblSchMJune19[[#This Row],[Primary Account]]=4099300,\"SCHMDT\"))))","v":"SCHMAT"},"425260","Lakeview Buyout-SG","SG",null,{"$f":"IF(OR(tblSchMJune19[[#This Row],[Alloc]]=\"IDU\",tblSchMJune19[[#This Row],[Alloc]]=\"OR\",tblSchMJune19[[#This Row],[Alloc]]=\"UT\",tblSchMJune19[[#This Row],[Alloc]]=\"WYU\",tblSchMJune19[[#This Row],[Alloc]]=\"WYP\",tblSchMJune19[[#This Row],[Alloc]]=\"CA\",tblSchMJune19[[#This Row],[Alloc]]=\"WA\"),\"SITUS\",tblSchMJune19[[#This Row],[Alloc]])","v":"SG"},{"$f":"INDEX(tblSchMLookup[FUNC],MATCH(tblSchMJune19[[#This Row],[Concat]],tblSchMLookup[Concat],0))","v":{"$error":"#N/A"}},{"$f":"IF(tblSchMJune19[[#This Row],[Total ($000)]]=0,\"NO\",IF(ISNA(tblSchMJune19[[#This Row],[FUNC]]),\"YES\",IF(_xlfn.ISFORMULA(tblSchMJune19[[#This Row],[FUNC]]),\"NO\",\"YES\")))","v":"NO"}]
[{"$f":"CONCATENATE(tblSchMJune19[[#This Row],[Primary Account]],tblSchMJune19[[#This Row],[Primary Name]],tblSchMJune19[[#This Row],[Secondary Acct]],tblSchMJune19[[#This Row],[Secondary  Name]],tblSchMJune19[[#This Row],[Alloc4FUNC]])","v":"4098300SCHMAT425280Joseph Settlement-SGSG"},4098300,{"$f":"IF(tblSchMJune19[[#This Row],[Primary Account]]=4098200,\"SCHMAP\",IF(tblSchMJune19[[#This Row],[Primary Account]]=4098300,\"SCHMAT\",IF(tblSchMJune19[[#This Row],[Primary Account]]=4099200,\"SCHMDP\",IF(tblSchMJune19[[#This Row],[Primary Account]]=4099300,\"SCHMDT\"))))","v":"SCHMAT"},"425280","Joseph Settlement-SG","SG",-4.0000000000000002E-4,{"$f":"IF(OR(tblSchMJune19[[#This Row],[Alloc]]=\"IDU\",tblSchMJune19[[#This Row],[Alloc]]=\"OR\",tblSchMJune19[[#This Row],[Alloc]]=\"UT\",tblSchMJune19[[#This Row],[Alloc]]=\"WYU\",tblSchMJune19[[#This Row],[Alloc]]=\"WYP\",tblSchMJune19[[#This Row],[Alloc]]=\"CA\",tblSchMJune19[[#This Row],[Alloc]]=\"WA\"),\"SITUS\",tblSchMJune19[[#This Row],[Alloc]])","v":"SG"},{"$f":"INDEX(tblSchMLookup[FUNC],MATCH(tblSchMJune19[[#This Row],[Concat]],tblSchMLookup[Concat],0))","v":"P"},{"$f":"IF(tblSchMJune19[[#This Row],[Total ($000)]]=0,\"NO\",IF(ISNA(tblSchMJune19[[#This Row],[FUNC]]),\"YES\",IF(_xlfn.ISFORMULA(tblSchMJune19[[#This Row],[FUNC]]),\"NO\",\"YES\")))","v":"NO"}]
[{"$f":"CONCATENATE(tblSchMJune19[[#This Row],[Primary Account]],tblSchMJune19[[#This Row],[Primary Name]],tblSchMJune19[[#This Row],[Secondary Acct]],tblSchMJune19[[#This Row],[Secondary  Name]],tblSchMJune19[[#This Row],[Alloc4FUNC]])","v":"4098300SCHMAT425295BPA Conservation Rate CreditSG"},4098300,{"$f":"IF(tblSchMJune19[[#This Row],[Primary Account]]=4098200,\"SCHMAP\",IF(tblSchMJune19[[#This Row],[Primary Account]]=4098300,\"SCHMAT\",IF(tblSchMJune19[[#This Row],[Primary Account]]=4099200,\"SCHMDP\",IF(tblSchMJune19[[#This Row],[Primary Account]]=4099300,\"SCHMDT\"))))","v":"SCHMAT"},"425295","BPA Conservation Rate Credit","SG",null,{"$f":"IF(OR(tblSchMJune19[[#This Row],[Alloc]]=\"IDU\",tblSchMJune19[[#This Row],[Alloc]]=\"OR\",tblSchMJune19[[#This Row],[Alloc]]=\"UT\",tblSchMJune19[[#This Row],[Alloc]]=\"WYU\",tblSchMJune19[[#This Row],[Alloc]]=\"WYP\",tblSchMJune19[[#This Row],[Alloc]]=\"CA\",tblSchMJune19[[#This Row],[Alloc]]=\"WA\"),\"SITUS\",tblSchMJune19[[#This Row],[Alloc]])","v":"SG"},{"$f":"INDEX(tblSchMLookup[FUNC],MATCH(tblSchMJune19[[#This Row],[Concat]],tblSchMLookup[Concat],0))","v":{"$error":"#N/A"}},{"$f":"IF(tblSchMJune19[[#This Row],[Total ($000)]]=0,\"NO\",IF(ISNA(tblSchMJune19[[#This Row],[FUNC]]),\"YES\",IF(_xlfn.ISFORMULA(tblSchMJune19[[#This Row],[FUNC]]),\"NO\",\"YES\")))","v":"NO"}]
[{"$f":"CONCATENATE(tblSchMJune19[[#This Row],[Primary Account]],tblSchMJune19[[#This Row],[Primary Name]],tblSchMJune19[[#This Row],[Secondary Acct]],tblSchMJune19[[#This Row],[Secondary  Name]],tblSchMJune19[[#This Row],[Alloc4FUNC]])","v":"4098300SCHMAT425360Hermiston SwapSG"},4098300,{"$f":"IF(tblSchMJune19[[#This Row],[Primary Account]]=4098200,\"SCHMAP\",IF(tblSchMJune19[[#This Row],[Primary Account]]=4098300,\"SCHMAT\",IF(tblSchMJune19[[#This Row],[Primary Account]]=4099200,\"SCHMDP\",IF(tblSchMJune19[[#This Row],[Primary Account]]=4099300,\"SCHMDT\"))))","v":"SCHMAT"},"425360","Hermiston Swap","SG",171.69300000000001,{"$f":"IF(OR(tblSchMJune19[[#This Row],[Alloc]]=\"IDU\",tblSchMJune19[[#This Row],[Alloc]]=\"OR\",tblSchMJune19[[#This Row],[Alloc]]=\"UT\",tblSchMJune19[[#This Row],[Alloc]]=\"WYU\",tblSchMJune19[[#This Row],[Alloc]]=\"WYP\",tblSchMJune19[[#This Row],[Alloc]]=\"CA\",tblSchMJune19[[#This Row],[Alloc]]=\"WA\"),\"SITUS\",tblSchMJune19[[#This Row],[Alloc]])","v":"SG"},{"$f":"INDEX(tblSchMLookup[FUNC],MATCH(tblSchMJune19[[#This Row],[Concat]],tblSchMLookup[Concat],0))","v":"P"},{"$f":"IF(tblSchMJune19[[#This Row],[Total ($000)]]=0,\"NO\",IF(ISNA(tblSchMJune19[[#This Row],[FUNC]]),\"YES\",IF(_xlfn.ISFORMULA(tblSchMJune19[[#This Row],[FUNC]]),\"NO\",\"YES\")))","v":"NO"}]
[{"$f":"CONCATENATE(tblSchMJune19[[#This Row],[Primary Account]],tblSchMJune19[[#This Row],[Primary Name]],tblSchMJune19[[#This Row],[Secondary Acct]],tblSchMJune19[[#This Row],[Secondary  Name]],tblSchMJune19[[#This Row],[Alloc4FUNC]])","v":"4098300SCHMAT425380Idaho Customer Balancing AccountOTHER"},4098300,{"$f":"IF(tblSchMJune19[[#This Row],[Primary Account]]=4098200,\"SCHMAP\",IF(tblSchMJune19[[#This Row],[Primary Account]]=4098300,\"SCHMAT\",IF(tblSchMJune19[[#This Row],[Primary Account]]=4099200,\"SCHMDP\",IF(tblSchMJune19[[#This Row],[Primary Account]]=4099300,\"SCHMDT\"))))","v":"SCHMAT"},"425380","Idaho Customer Balancing Account","OTHER",null,{"$f":"IF(OR(tblSchMJune19[[#This Row],[Alloc]]=\"IDU\",tblSchMJune19[[#This Row],[Alloc]]=\"OR\",tblSchMJune19[[#This Row],[Alloc]]=\"UT\",tblSchMJune19[[#This Row],[Alloc]]=\"WYU\",tblSchMJune19[[#This Row],[Alloc]]=\"WYP\",tblSchMJune19[[#This Row],[Alloc]]=\"CA\",tblSchMJune19[[#This Row],[Alloc]]=\"WA\"),\"SITUS\",tblSchMJune19[[#This Row],[Alloc]])","v":"OTHER"},{"$f":"INDEX(tblSchMLookup[FUNC],MATCH(tblSchMJune19[[#This Row],[Concat]],tblSchMLookup[Concat],0))","v":{"$error":"#N/A"}},{"$f":"IF(tblSchMJune19[[#This Row],[Total ($000)]]=0,\"NO\",IF(ISNA(tblSchMJune19[[#This Row],[FUNC]]),\"YES\",IF(_xlfn.ISFORMULA(tblSchMJune19[[#This Row],[FUNC]]),\"NO\",\"YES\")))","v":"NO"}]
[{"$f":"CONCATENATE(tblSchMJune19[[#This Row],[Primary Account]],tblSchMJune19[[#This Row],[Primary Name]],tblSchMJune19[[#This Row],[Secondary Acct]],tblSchMJune19[[#This Row],[Secondary  Name]],tblSchMJune19[[#This Row],[Alloc4FUNC]])","v":"4098300SCHMAT430100Customer Service / WeatherizationOTHER"},4098300,{"$f":"IF(tblSchMJune19[[#This Row],[Primary Account]]=4098200,\"SCHMAP\",IF(tblSchMJune19[[#This Row],[Primary Account]]=4098300,\"SCHMAT\",IF(tblSchMJune19[[#This Row],[Primary Account]]=4099200,\"SCHMDP\",IF(tblSchMJune19[[#This Row],[Primary Account]]=4099300,\"SCHMDT\"))))","v":"SCHMAT"},"430100","Customer Service / Weatherization","OTHER",9699.5802100000001,{"$f":"IF(OR(tblSchMJune19[[#This Row],[Alloc]]=\"IDU\",tblSchMJune19[[#This Row],[Alloc]]=\"OR\",tblSchMJune19[[#This Row],[Alloc]]=\"UT\",tblSchMJune19[[#This Row],[Alloc]]=\"WYU\",tblSchMJune19[[#This Row],[Alloc]]=\"WYP\",tblSchMJune19[[#This Row],[Alloc]]=\"CA\",tblSchMJune19[[#This Row],[Alloc]]=\"WA\"),\"SITUS\",tblSchMJune19[[#This Row],[Alloc]])","v":"OTHER"},{"$f":"INDEX(tblSchMLookup[FUNC],MATCH(tblSchMJune19[[#This Row],[Concat]],tblSchMLookup[Concat],0))","v":"PTD"},{"$f":"IF(tblSchMJune19[[#This Row],[Total ($000)]]=0,\"NO\",IF(ISNA(tblSchMJune19[[#This Row],[FUNC]]),\"YES\",IF(_xlfn.ISFORMULA(tblSchMJune19[[#This Row],[FUNC]]),\"NO\",\"YES\")))","v":"NO"}]
[{"$f":"CONCATENATE(tblSchMJune19[[#This Row],[Primary Account]],tblSchMJune19[[#This Row],[Primary Name]],tblSchMJune19[[#This Row],[Secondary Acct]],tblSchMJune19[[#This Row],[Secondary  Name]],tblSchMJune19[[#This Row],[Alloc4FUNC]])","v":"4098300SCHMAT430111Reg Asset - SB 1149 Balance ReclassOTHER"},4098300,{"$f":"IF(tblSchMJune19[[#This Row],[Primary Account]]=4098200,\"SCHMAP\",IF(tblSchMJune19[[#This Row],[Primary Account]]=4098300,\"SCHMAT\",IF(tblSchMJune19[[#This Row],[Primary Account]]=4099200,\"SCHMDP\",IF(tblSchMJune19[[#This Row],[Primary Account]]=4099300,\"SCHMDT\"))))","v":"SCHMAT"},"430111","Reg Asset - SB 1149 Balance Reclass","OTHER",null,{"$f":"IF(OR(tblSchMJune19[[#This Row],[Alloc]]=\"IDU\",tblSchMJune19[[#This Row],[Alloc]]=\"OR\",tblSchMJune19[[#This Row],[Alloc]]=\"UT\",tblSchMJune19[[#This Row],[Alloc]]=\"WYU\",tblSchMJune19[[#This Row],[Alloc]]=\"WYP\",tblSchMJune19[[#This Row],[Alloc]]=\"CA\",tblSchMJune19[[#This Row],[Alloc]]=\"WA\"),\"SITUS\",tblSchMJune19[[#This Row],[Alloc]])","v":"OTHER"},{"$f":"INDEX(tblSchMLookup[FUNC],MATCH(tblSchMJune19[[#This Row],[Concat]],tblSchMLookup[Concat],0))","v":{"$error":"#N/A"}},{"$f":"IF(tblSchMJune19[[#This Row],[Total ($000)]]=0,\"NO\",IF(ISNA(tblSchMJune19[[#This Row],[FUNC]]),\"YES\",IF(_xlfn.ISFORMULA(tblSchMJune19[[#This Row],[FUNC]]),\"NO\",\"YES\")))","v":"NO"}]
[{"$f":"CONCATENATE(tblSchMJune19[[#This Row],[Primary Account]],tblSchMJune19[[#This Row],[Primary Name]],tblSchMJune19[[#This Row],[Secondary Acct]],tblSchMJune19[[#This Row],[Secondary  Name]],tblSchMJune19[[#This Row],[Alloc4FUNC]])","v":"4098300SCHMAT430112Reg Asset - Other - Balance ReclassOTHER"},4098300,{"$f":"IF(tblSchMJune19[[#This Row],[Primary Account]]=4098200,\"SCHMAP\",IF(tblSchMJune19[[#This Row],[Primary Account]]=4098300,\"SCHMAT\",IF(tblSchMJune19[[#This Row],[Primary Account]]=4099200,\"SCHMDP\",IF(tblSchMJune19[[#This Row],[Primary Account]]=4099300,\"SCHMDT\"))))","v":"SCHMAT"},"430112","Reg Asset - Other - Balance Reclass","OTHER",null,{"$f":"IF(OR(tblSchMJune19[[#This Row],[Alloc]]=\"IDU\",tblSchMJune19[[#This Row],[Alloc]]=\"OR\",tblSchMJune19[[#This Row],[Alloc]]=\"UT\",tblSchMJune19[[#This Row],[Alloc]]=\"WYU\",tblSchMJune19[[#This Row],[Alloc]]=\"WYP\",tblSchMJune19[[#This Row],[Alloc]]=\"CA\",tblSchMJune19[[#This Row],[Alloc]]=\"WA\"),\"SITUS\",tblSchMJune19[[#This Row],[Alloc]])","v":"OTHER"},{"$f":"INDEX(tblSchMLookup[FUNC],MATCH(tblSchMJune19[[#This Row],[Concat]],tblSchMLookup[Concat],0))","v":{"$error":"#N/A"}},{"$f":"IF(tblSchMJune19[[#This Row],[Total ($000)]]=0,\"NO\",IF(ISNA(tblSchMJune19[[#This Row],[FUNC]]),\"YES\",IF(_xlfn.ISFORMULA(tblSchMJune19[[#This Row],[FUNC]]),\"NO\",\"YES\")))","v":"NO"}]
[{"$f":"CONCATENATE(tblSchMJune19[[#This Row],[Primary Account]],tblSchMJune19[[#This Row],[Primary Name]],tblSchMJune19[[#This Row],[Secondary Acct]],tblSchMJune19[[#This Row],[Secondary  Name]],tblSchMJune19[[#This Row],[Alloc4FUNC]])","v":"4098300SCHMAT430113Reg Asset - Def NPC Balance ReclassOTHER"},4098300,{"$f":"IF(tblSchMJune19[[#This Row],[Primary Account]]=4098200,\"SCHMAP\",IF(tblSchMJune19[[#This Row],[Primary Account]]=4098300,\"SCHMAT\",IF(tblSchMJune19[[#This Row],[Primary Account]]=4099200,\"SCHMDP\",IF(tblSchMJune19[[#This Row],[Primary Account]]=4099300,\"SCHMDT\"))))","v":"SCHMAT"},"430113","Reg Asset - Def NPC Balance Reclass","OTHER",null,{"$f":"IF(OR(tblSchMJune19[[#This Row],[Alloc]]=\"IDU\",tblSchMJune19[[#This Row],[Alloc]]=\"OR\",tblSchMJune19[[#This Row],[Alloc]]=\"UT\",tblSchMJune19[[#This Row],[Alloc]]=\"WYU\",tblSchMJune19[[#This Row],[Alloc]]=\"WYP\",tblSchMJune19[[#This Row],[Alloc]]=\"CA\",tblSchMJune19[[#This Row],[Alloc]]=\"WA\"),\"SITUS\",tblSchMJune19[[#This Row],[Alloc]])","v":"OTHER"},{"$f":"INDEX(tblSchMLookup[FUNC],MATCH(tblSchMJune19[[#This Row],[Concat]],tblSchMLookup[Concat],0))","v":{"$error":"#N/A"}},{"$f":"IF(tblSchMJune19[[#This Row],[Total ($000)]]=0,\"NO\",IF(ISNA(tblSchMJune19[[#This Row],[FUNC]]),\"YES\",IF(_xlfn.ISFORMULA(tblSchMJune19[[#This Row],[FUNC]]),\"NO\",\"YES\")))","v":"NO"}]
[{"$f":"CONCATENATE(tblSchMJune19[[#This Row],[Primary Account]],tblSchMJune19[[#This Row],[Primary Name]],tblSchMJune19[[#This Row],[Secondary Acct]],tblSchMJune19[[#This Row],[Secondary  Name]],tblSchMJune19[[#This Row],[Alloc4FUNC]])","v":"4098300SCHMAT430117Reg Asset - Current DSMOTHER"},4098300,{"$f":"IF(tblSchMJune19[[#This Row],[Primary Account]]=4098200,\"SCHMAP\",IF(tblSchMJune19[[#This Row],[Primary Account]]=4098300,\"SCHMAT\",IF(tblSchMJune19[[#This Row],[Primary Account]]=4099200,\"SCHMDP\",IF(tblSchMJune19[[#This Row],[Primary Account]]=4099300,\"SCHMDT\"))))","v":"SCHMAT"},"430117","Reg Asset - Current DSM","OTHER",null,{"$f":"IF(OR(tblSchMJune19[[#This Row],[Alloc]]=\"IDU\",tblSchMJune19[[#This Row],[Alloc]]=\"OR\",tblSchMJune19[[#This Row],[Alloc]]=\"UT\",tblSchMJune19[[#This Row],[Alloc]]=\"WYU\",tblSchMJune19[[#This Row],[Alloc]]=\"WYP\",tblSchMJune19[[#This Row],[Alloc]]=\"CA\",tblSchMJune19[[#This Row],[Alloc]]=\"WA\"),\"SITUS\",tblSchMJune19[[#This Row],[Alloc]])","v":"OTHER"},{"$f":"INDEX(tblSchMLookup[FUNC],MATCH(tblSchMJune19[[#This Row],[Concat]],tblSchMLookup[Concat],0))","v":{"$error":"#N/A"}},{"$f":"IF(tblSchMJune19[[#This Row],[Total ($000)]]=0,\"NO\",IF(ISNA(tblSchMJune19[[#This Row],[FUNC]]),\"YES\",IF(_xlfn.ISFORMULA(tblSchMJune19[[#This Row],[FUNC]]),\"NO\",\"YES\")))","v":"NO"}]
[{"$f":"CONCATENATE(tblSchMJune19[[#This Row],[Primary Account]],tblSchMJune19[[#This Row],[Primary Name]],tblSchMJune19[[#This Row],[Secondary Acct]],tblSchMJune19[[#This Row],[Secondary  Name]],tblSchMJune19[[#This Row],[Alloc4FUNC]])","v":"4098300SCHMAT505115Sales & Use Tax AccrualSO"},4098300,{"$f":"IF(tblSchMJune19[[#This Row],[Primary Account]]=4098200,\"SCHMAP\",IF(tblSchMJune19[[#This Row],[Primary Account]]=4098300,\"SCHMAT\",IF(tblSchMJune19[[#This Row],[Primary Account]]=4099200,\"SCHMDP\",IF(tblSchMJune19[[#This Row],[Primary Account]]=4099300,\"SCHMDT\"))))","v":"SCHMAT"},"505115","Sales & Use Tax Accrual","SO",null,{"$f":"IF(OR(tblSchMJune19[[#This Row],[Alloc]]=\"IDU\",tblSchMJune19[[#This Row],[Alloc]]=\"OR\",tblSchMJune19[[#This Row],[Alloc]]=\"UT\",tblSchMJune19[[#This Row],[Alloc]]=\"WYU\",tblSchMJune19[[#This Row],[Alloc]]=\"WYP\",tblSchMJune19[[#This Row],[Alloc]]=\"CA\",tblSchMJune19[[#This Row],[Alloc]]=\"WA\"),\"SITUS\",tblSchMJune19[[#This Row],[Alloc]])","v":"SO"},{"$f":"INDEX(tblSchMLookup[FUNC],MATCH(tblSchMJune19[[#This Row],[Concat]],tblSchMLookup[Concat],0))","v":{"$error":"#N/A"}},{"$f":"IF(tblSchMJune19[[#This Row],[Total ($000)]]=0,\"NO\",IF(ISNA(tblSchMJune19[[#This Row],[FUNC]]),\"YES\",IF(_xlfn.ISFORMULA(tblSchMJune19[[#This Row],[FUNC]]),\"NO\",\"YES\")))","v":"NO"}]
[{"$f":"CONCATENATE(tblSchMJune19[[#This Row],[Primary Account]],tblSchMJune19[[#This Row],[Primary Name]],tblSchMJune19[[#This Row],[Secondary Acct]],tblSchMJune19[[#This Row],[Secondary  Name]],tblSchMJune19[[#This Row],[Alloc4FUNC]])","v":"4098300SCHMAT505125ACCRUED ROYALTIESSE"},4098300,{"$f":"IF(tblSchMJune19[[#This Row],[Primary Account]]=4098200,\"SCHMAP\",IF(tblSchMJune19[[#This Row],[Primary Account]]=4098300,\"SCHMAT\",IF(tblSchMJune19[[#This Row],[Primary Account]]=4099200,\"SCHMDP\",IF(tblSchMJune19[[#This Row],[Primary Account]]=4099300,\"SCHMDT\"))))","v":"SCHMAT"},"505125","ACCRUED ROYALTIES","SE",1150.6131700000001,{"$f":"IF(OR(tblSchMJune19[[#This Row],[Alloc]]=\"IDU\",tblSchMJune19[[#This Row],[Alloc]]=\"OR\",tblSchMJune19[[#This Row],[Alloc]]=\"UT\",tblSchMJune19[[#This Row],[Alloc]]=\"WYU\",tblSchMJune19[[#This Row],[Alloc]]=\"WYP\",tblSchMJune19[[#This Row],[Alloc]]=\"CA\",tblSchMJune19[[#This Row],[Alloc]]=\"WA\"),\"SITUS\",tblSchMJune19[[#This Row],[Alloc]])","v":"SE"},{"$f":"INDEX(tblSchMLookup[FUNC],MATCH(tblSchMJune19[[#This Row],[Concat]],tblSchMLookup[Concat],0))","v":"P"},{"$f":"IF(tblSchMJune19[[#This Row],[Total ($000)]]=0,\"NO\",IF(ISNA(tblSchMJune19[[#This Row],[FUNC]]),\"YES\",IF(_xlfn.ISFORMULA(tblSchMJune19[[#This Row],[FUNC]]),\"NO\",\"YES\")))","v":"NO"}]
[{"$f":"CONCATENATE(tblSchMJune19[[#This Row],[Primary Account]],tblSchMJune19[[#This Row],[Primary Name]],tblSchMJune19[[#This Row],[Secondary Acct]],tblSchMJune19[[#This Row],[Secondary  Name]],tblSchMJune19[[#This Row],[Alloc4FUNC]])","v":"4098300SCHMAT505140Purchase Card Trans ProvisionSO"},4098300,{"$f":"IF(tblSchMJune19[[#This Row],[Primary Account]]=4098200,\"SCHMAP\",IF(tblSchMJune19[[#This Row],[Primary Account]]=4098300,\"SCHMAT\",IF(tblSchMJune19[[#This Row],[Primary Account]]=4099200,\"SCHMDP\",IF(tblSchMJune19[[#This Row],[Primary Account]]=4099300,\"SCHMDT\"))))","v":"SCHMAT"},"505140","Purchase Card Trans Provision","SO",null,{"$f":"IF(OR(tblSchMJune19[[#This Row],[Alloc]]=\"IDU\",tblSchMJune19[[#This Row],[Alloc]]=\"OR\",tblSchMJune19[[#This Row],[Alloc]]=\"UT\",tblSchMJune19[[#This Row],[Alloc]]=\"WYU\",tblSchMJune19[[#This Row],[Alloc]]=\"WYP\",tblSchMJune19[[#This Row],[Alloc]]=\"CA\",tblSchMJune19[[#This Row],[Alloc]]=\"WA\"),\"SITUS\",tblSchMJune19[[#This Row],[Alloc]])","v":"SO"},{"$f":"INDEX(tblSchMLookup[FUNC],MATCH(tblSchMJune19[[#This Row],[Concat]],tblSchMLookup[Concat],0))","v":{"$error":"#N/A"}},{"$f":"IF(tblSchMJune19[[#This Row],[Total ($000)]]=0,\"NO\",IF(ISNA(tblSchMJune19[[#This Row],[FUNC]]),\"YES\",IF(_xlfn.ISFORMULA(tblSchMJune19[[#This Row],[FUNC]]),\"NO\",\"YES\")))","v":"NO"}]
[{"$f":"CONCATENATE(tblSchMJune19[[#This Row],[Primary Account]],tblSchMJune19[[#This Row],[Primary Name]],tblSchMJune19[[#This Row],[Secondary Acct]],tblSchMJune19[[#This Row],[Secondary  Name]],tblSchMJune19[[#This Row],[Alloc4FUNC]])","v":"4098300SCHMAT505160CA PUC FeeSITUS"},4098300,{"$f":"IF(tblSchMJune19[[#This Row],[Primary Account]]=4098200,\"SCHMAP\",IF(tblSchMJune19[[#This Row],[Primary Account]]=4098300,\"SCHMAT\",IF(tblSchMJune19[[#This Row],[Primary Account]]=4099200,\"SCHMDP\",IF(tblSchMJune19[[#This Row],[Primary Account]]=4099300,\"SCHMDT\"))))","v":"SCHMAT"},"505160","CA PUC Fee","CA",null,{"$f":"IF(OR(tblSchMJune19[[#This Row],[Alloc]]=\"IDU\",tblSchMJune19[[#This Row],[Alloc]]=\"OR\",tblSchMJune19[[#This Row],[Alloc]]=\"UT\",tblSchMJune19[[#This Row],[Alloc]]=\"WYU\",tblSchMJune19[[#This Row],[Alloc]]=\"WYP\",tblSchMJune19[[#This Row],[Alloc]]=\"CA\",tblSchMJune19[[#This Row],[Alloc]]=\"WA\"),\"SITUS\",tblSchMJune19[[#This Row],[Alloc]])","v":"SITUS"},{"$f":"INDEX(tblSchMLookup[FUNC],MATCH(tblSchMJune19[[#This Row],[Concat]],tblSchMLookup[Concat],0))","v":{"$error":"#N/A"}},{"$f":"IF(tblSchMJune19[[#This Row],[Total ($000)]]=0,\"NO\",IF(ISNA(tblSchMJune19[[#This Row],[FUNC]]),\"YES\",IF(_xlfn.ISFORMULA(tblSchMJune19[[#This Row],[FUNC]]),\"NO\",\"YES\")))","v":"NO"}]
[{"$f":"CONCATENATE(tblSchMJune19[[#This Row],[Primary Account]],tblSchMJune19[[#This Row],[Primary Name]],tblSchMJune19[[#This Row],[Secondary Acct]],tblSchMJune19[[#This Row],[Secondary  Name]],tblSchMJune19[[#This Row],[Alloc4FUNC]])","v":"4098300SCHMAT505170West Valley Contract Termination Fee AccSG"},4098300,{"$f":"IF(tblSchMJune19[[#This Row],[Primary Account]]=4098200,\"SCHMAP\",IF(tblSchMJune19[[#This Row],[Primary Account]]=4098300,\"SCHMAT\",IF(tblSchMJune19[[#This Row],[Primary Account]]=4099200,\"SCHMDP\",IF(tblSchMJune19[[#This Row],[Primary Account]]=4099300,\"SCHMDT\"))))","v":"SCHMAT"},"505170","West Valley Contract Termination Fee Acc","SG",null,{"$f":"IF(OR(tblSchMJune19[[#This Row],[Alloc]]=\"IDU\",tblSchMJune19[[#This Row],[Alloc]]=\"OR\",tblSchMJune19[[#This Row],[Alloc]]=\"UT\",tblSchMJune19[[#This Row],[Alloc]]=\"WYU\",tblSchMJune19[[#This Row],[Alloc]]=\"WYP\",tblSchMJune19[[#This Row],[Alloc]]=\"CA\",tblSchMJune19[[#This Row],[Alloc]]=\"WA\"),\"SITUS\",tblSchMJune19[[#This Row],[Alloc]])","v":"SG"},{"$f":"INDEX(tblSchMLookup[FUNC],MATCH(tblSchMJune19[[#This Row],[Concat]],tblSchMLookup[Concat],0))","v":{"$error":"#N/A"}},{"$f":"IF(tblSchMJune19[[#This Row],[Total ($000)]]=0,\"NO\",IF(ISNA(tblSchMJune19[[#This Row],[FUNC]]),\"YES\",IF(_xlfn.ISFORMULA(tblSchMJune19[[#This Row],[FUNC]]),\"NO\",\"YES\")))","v":"NO"}]
[{"$f":"CONCATENATE(tblSchMJune19[[#This Row],[Primary Account]],tblSchMJune19[[#This Row],[Primary Name]],tblSchMJune19[[#This Row],[Secondary Acct]],tblSchMJune19[[#This Row],[Secondary  Name]],tblSchMJune19[[#This Row],[Alloc4FUNC]])","v":"4098300SCHMAT505200Extraction Tax Paid / AccruedSE"},4098300,{"$f":"IF(tblSchMJune19[[#This Row],[Primary Account]]=4098200,\"SCHMAP\",IF(tblSchMJune19[[#This Row],[Primary Account]]=4098300,\"SCHMAT\",IF(tblSchMJune19[[#This Row],[Primary Account]]=4099200,\"SCHMDP\",IF(tblSchMJune19[[#This Row],[Primary Account]]=4099300,\"SCHMDT\"))))","v":"SCHMAT"},"505200","Extraction Tax Paid / Accrued","SE",null,{"$f":"IF(OR(tblSchMJune19[[#This Row],[Alloc]]=\"IDU\",tblSchMJune19[[#This Row],[Alloc]]=\"OR\",tblSchMJune19[[#This Row],[Alloc]]=\"UT\",tblSchMJune19[[#This Row],[Alloc]]=\"WYU\",tblSchMJune19[[#This Row],[Alloc]]=\"WYP\",tblSchMJune19[[#This Row],[Alloc]]=\"CA\",tblSchMJune19[[#This Row],[Alloc]]=\"WA\"),\"SITUS\",tblSchMJune19[[#This Row],[Alloc]])","v":"SE"},{"$f":"INDEX(tblSchMLookup[FUNC],MATCH(tblSchMJune19[[#This Row],[Concat]],tblSchMLookup[Concat],0))","v":{"$error":"#N/A"}},{"$f":"IF(tblSchMJune19[[#This Row],[Total ($000)]]=0,\"NO\",IF(ISNA(tblSchMJune19[[#This Row],[FUNC]]),\"YES\",IF(_xlfn.ISFORMULA(tblSchMJune19[[#This Row],[FUNC]]),\"NO\",\"YES\")))","v":"NO"}]
[{"$f":"CONCATENATE(tblSchMJune19[[#This Row],[Primary Account]],tblSchMJune19[[#This Row],[Primary Name]],tblSchMJune19[[#This Row],[Secondary Acct]],tblSchMJune19[[#This Row],[Secondary  Name]],tblSchMJune19[[#This Row],[Alloc4FUNC]])","v":"4098300SCHMAT505400Bonus LiabilitySO"},4098300,{"$f":"IF(tblSchMJune19[[#This Row],[Primary Account]]=4098200,\"SCHMAP\",IF(tblSchMJune19[[#This Row],[Primary Account]]=4098300,\"SCHMAT\",IF(tblSchMJune19[[#This Row],[Primary Account]]=4099200,\"SCHMDP\",IF(tblSchMJune19[[#This Row],[Primary Account]]=4099300,\"SCHMDT\"))))","v":"SCHMAT"},"505400","Bonus Liability","SO",-208.33,{"$f":"IF(OR(tblSchMJune19[[#This Row],[Alloc]]=\"IDU\",tblSchMJune19[[#This Row],[Alloc]]=\"OR\",tblSchMJune19[[#This Row],[Alloc]]=\"UT\",tblSchMJune19[[#This Row],[Alloc]]=\"WYU\",tblSchMJune19[[#This Row],[Alloc]]=\"WYP\",tblSchMJune19[[#This Row],[Alloc]]=\"CA\",tblSchMJune19[[#This Row],[Alloc]]=\"WA\"),\"SITUS\",tblSchMJune19[[#This Row],[Alloc]])","v":"SO"},{"$f":"INDEX(tblSchMLookup[FUNC],MATCH(tblSchMJune19[[#This Row],[Concat]],tblSchMLookup[Concat],0))","v":"LABOR"},{"$f":"IF(tblSchMJune19[[#This Row],[Total ($000)]]=0,\"NO\",IF(ISNA(tblSchMJune19[[#This Row],[FUNC]]),\"YES\",IF(_xlfn.ISFORMULA(tblSchMJune19[[#This Row],[FUNC]]),\"NO\",\"YES\")))","v":"NO"}]
[{"$f":"CONCATENATE(tblSchMJune19[[#This Row],[Primary Account]],tblSchMJune19[[#This Row],[Primary Name]],tblSchMJune19[[#This Row],[Secondary Acct]],tblSchMJune19[[#This Row],[Secondary  Name]],tblSchMJune19[[#This Row],[Alloc4FUNC]])","v":"4098300SCHMAT505500Federal Income Tax InterestSO"},4098300,{"$f":"IF(tblSchMJune19[[#This Row],[Primary Account]]=4098200,\"SCHMAP\",IF(tblSchMJune19[[#This Row],[Primary Account]]=4098300,\"SCHMAT\",IF(tblSchMJune19[[#This Row],[Primary Account]]=4099200,\"SCHMDP\",IF(tblSchMJune19[[#This Row],[Primary Account]]=4099300,\"SCHMDT\"))))","v":"SCHMAT"},"505500","Federal Income Tax Interest","SO",null,{"$f":"IF(OR(tblSchMJune19[[#This Row],[Alloc]]=\"IDU\",tblSchMJune19[[#This Row],[Alloc]]=\"OR\",tblSchMJune19[[#This Row],[Alloc]]=\"UT\",tblSchMJune19[[#This Row],[Alloc]]=\"WYU\",tblSchMJune19[[#This Row],[Alloc]]=\"WYP\",tblSchMJune19[[#This Row],[Alloc]]=\"CA\",tblSchMJune19[[#This Row],[Alloc]]=\"WA\"),\"SITUS\",tblSchMJune19[[#This Row],[Alloc]])","v":"SO"},{"$f":"INDEX(tblSchMLookup[FUNC],MATCH(tblSchMJune19[[#This Row],[Concat]],tblSchMLookup[Concat],0))","v":{"$error":"#N/A"}},{"$f":"IF(tblSchMJune19[[#This Row],[Total ($000)]]=0,\"NO\",IF(ISNA(tblSchMJune19[[#This Row],[FUNC]]),\"YES\",IF(_xlfn.ISFORMULA(tblSchMJune19[[#This Row],[FUNC]]),\"NO\",\"YES\")))","v":"NO"}]
[{"$f":"CONCATENATE(tblSchMJune19[[#This Row],[Primary Account]],tblSchMJune19[[#This Row],[Primary Name]],tblSchMJune19[[#This Row],[Secondary Acct]],tblSchMJune19[[#This Row],[Secondary  Name]],tblSchMJune19[[#This Row],[Alloc4FUNC]])","v":"4098300SCHMAT505510PMIVacationBonus AdjustmentSE"},4098300,{"$f":"IF(tblSchMJune19[[#This Row],[Primary Account]]=4098200,\"SCHMAP\",IF(tblSchMJune19[[#This Row],[Primary Account]]=4098300,\"SCHMAT\",IF(tblSchMJune19[[#This Row],[Primary Account]]=4099200,\"SCHMDP\",IF(tblSchMJune19[[#This Row],[Primary Account]]=4099300,\"SCHMDT\"))))","v":"SCHMAT"},"505510","PMIVacationBonus Adjustment","SE",null,{"$f":"IF(OR(tblSchMJune19[[#This Row],[Alloc]]=\"IDU\",tblSchMJune19[[#This Row],[Alloc]]=\"OR\",tblSchMJune19[[#This Row],[Alloc]]=\"UT\",tblSchMJune19[[#This Row],[Alloc]]=\"WYU\",tblSchMJune19[[#This Row],[Alloc]]=\"WYP\",tblSchMJune19[[#This Row],[Alloc]]=\"CA\",tblSchMJune19[[#This Row],[Alloc]]=\"WA\"),\"SITUS\",tblSchMJune19[[#This Row],[Alloc]])","v":"SE"},{"$f":"INDEX(tblSchMLookup[FUNC],MATCH(tblSchMJune19[[#This Row],[Concat]],tblSchMLookup[Concat],0))","v":{"$error":"#N/A"}},{"$f":"IF(tblSchMJune19[[#This Row],[Total ($000)]]=0,\"NO\",IF(ISNA(tblSchMJune19[[#This Row],[FUNC]]),\"YES\",IF(_xlfn.ISFORMULA(tblSchMJune19[[#This Row],[FUNC]]),\"NO\",\"YES\")))","v":"NO"}]
[{"$f":"CONCATENATE(tblSchMJune19[[#This Row],[Primary Account]],tblSchMJune19[[#This Row],[Primary Name]],tblSchMJune19[[#This Row],[Secondary Acct]],tblSchMJune19[[#This Row],[Secondary  Name]],tblSchMJune19[[#This Row],[Alloc4FUNC]])","v":"4098300SCHMAT505600Sick Leave Vacation & Personal TimeSO"},4098300,{"$f":"IF(tblSchMJune19[[#This Row],[Primary Account]]=4098200,\"SCHMAP\",IF(tblSchMJune19[[#This Row],[Primary Account]]=4098300,\"SCHMAT\",IF(tblSchMJune19[[#This Row],[Primary Account]]=4099200,\"SCHMDP\",IF(tblSchMJune19[[#This Row],[Primary Account]]=4099300,\"SCHMDT\"))))","v":"SCHMAT"},"505600","Sick Leave Vacation & Personal Time","SO",468.89922000000001,{"$f":"IF(OR(tblSchMJune19[[#This Row],[Alloc]]=\"IDU\",tblSchMJune19[[#This Row],[Alloc]]=\"OR\",tblSchMJune19[[#This Row],[Alloc]]=\"UT\",tblSchMJune19[[#This Row],[Alloc]]=\"WYU\",tblSchMJune19[[#This Row],[Alloc]]=\"WYP\",tblSchMJune19[[#This Row],[Alloc]]=\"CA\",tblSchMJune19[[#This Row],[Alloc]]=\"WA\"),\"SITUS\",tblSchMJune19[[#This Row],[Alloc]])","v":"SO"},{"$f":"INDEX(tblSchMLookup[FUNC],MATCH(tblSchMJune19[[#This Row],[Concat]],tblSchMLookup[Concat],0))","v":"LABOR"},{"$f":"IF(tblSchMJune19[[#This Row],[Total ($000)]]=0,\"NO\",IF(ISNA(tblSchMJune19[[#This Row],[FUNC]]),\"YES\",IF(_xlfn.ISFORMULA(tblSchMJune19[[#This Row],[FUNC]]),\"NO\",\"YES\")))","v":"NO"}]
[{"$f":"CONCATENATE(tblSchMJune19[[#This Row],[Primary Account]],tblSchMJune19[[#This Row],[Primary Name]],tblSchMJune19[[#This Row],[Secondary Acct]],tblSchMJune19[[#This Row],[Secondary  Name]],tblSchMJune19[[#This Row],[Alloc4FUNC]])","v":"4098300SCHMAT505601Sick Leave Accrual - PMISE"},4098300,{"$f":"IF(tblSchMJune19[[#This Row],[Primary Account]]=4098200,\"SCHMAP\",IF(tblSchMJune19[[#This Row],[Primary Account]]=4098300,\"SCHMAT\",IF(tblSchMJune19[[#This Row],[Primary Account]]=4099200,\"SCHMDP\",IF(tblSchMJune19[[#This Row],[Primary Account]]=4099300,\"SCHMDT\"))))","v":"SCHMAT"},"505601","Sick Leave Accrual - PMI","SE",0.76100000000000001,{"$f":"IF(OR(tblSchMJune19[[#This Row],[Alloc]]=\"IDU\",tblSchMJune19[[#This Row],[Alloc]]=\"OR\",tblSchMJune19[[#This Row],[Alloc]]=\"UT\",tblSchMJune19[[#This Row],[Alloc]]=\"WYU\",tblSchMJune19[[#This Row],[Alloc]]=\"WYP\",tblSchMJune19[[#This Row],[Alloc]]=\"CA\",tblSchMJune19[[#This Row],[Alloc]]=\"WA\"),\"SITUS\",tblSchMJune19[[#This Row],[Alloc]])","v":"SE"},{"$f":"INDEX(tblSchMLookup[FUNC],MATCH(tblSchMJune19[[#This Row],[Concat]],tblSchMLookup[Concat],0))","v":"LABOR"},{"$f":"IF(tblSchMJune19[[#This Row],[Total ($000)]]=0,\"NO\",IF(ISNA(tblSchMJune19[[#This Row],[FUNC]]),\"YES\",IF(_xlfn.ISFORMULA(tblSchMJune19[[#This Row],[FUNC]]),\"NO\",\"YES\")))","v":"NO"}]
[{"$f":"CONCATENATE(tblSchMJune19[[#This Row],[Primary Account]],tblSchMJune19[[#This Row],[Primary Name]],tblSchMJune19[[#This Row],[Secondary Acct]],tblSchMJune19[[#This Row],[Secondary  Name]],tblSchMJune19[[#This Row],[Alloc4FUNC]])","v":"4098300SCHMAT505700Accrued Retention BonusSO"},4098300,{"$f":"IF(tblSchMJune19[[#This Row],[Primary Account]]=4098200,\"SCHMAP\",IF(tblSchMJune19[[#This Row],[Primary Account]]=4098300,\"SCHMAT\",IF(tblSchMJune19[[#This Row],[Primary Account]]=4099200,\"SCHMDP\",IF(tblSchMJune19[[#This Row],[Primary Account]]=4099300,\"SCHMDT\"))))","v":"SCHMAT"},"505700","Accrued Retention Bonus","SO",-595.18703000000005,{"$f":"IF(OR(tblSchMJune19[[#This Row],[Alloc]]=\"IDU\",tblSchMJune19[[#This Row],[Alloc]]=\"OR\",tblSchMJune19[[#This Row],[Alloc]]=\"UT\",tblSchMJune19[[#This Row],[Alloc]]=\"WYU\",tblSchMJune19[[#This Row],[Alloc]]=\"WYP\",tblSchMJune19[[#This Row],[Alloc]]=\"CA\",tblSchMJune19[[#This Row],[Alloc]]=\"WA\"),\"SITUS\",tblSchMJune19[[#This Row],[Alloc]])","v":"SO"},{"$f":"INDEX(tblSchMLookup[FUNC],MATCH(tblSchMJune19[[#This Row],[Concat]],tblSchMLookup[Concat],0))","v":"LABOR"},{"$f":"IF(tblSchMJune19[[#This Row],[Total ($000)]]=0,\"NO\",IF(ISNA(tblSchMJune19[[#This Row],[FUNC]]),\"YES\",IF(_xlfn.ISFORMULA(tblSchMJune19[[#This Row],[FUNC]]),\"NO\",\"YES\")))","v":"NO"}]
[{"$f":"CONCATENATE(tblSchMJune19[[#This Row],[Primary Account]],tblSchMJune19[[#This Row],[Primary Name]],tblSchMJune19[[#This Row],[Secondary Acct]],tblSchMJune19[[#This Row],[Secondary  Name]],tblSchMJune19[[#This Row],[Alloc4FUNC]])","v":"4098300SCHMAT605100Trojan Decomissioning CostsTROJD"},4098300,{"$f":"IF(tblSchMJune19[[#This Row],[Primary Account]]=4098200,\"SCHMAP\",IF(tblSchMJune19[[#This Row],[Primary Account]]=4098300,\"SCHMAT\",IF(tblSchMJune19[[#This Row],[Primary Account]]=4099200,\"SCHMDP\",IF(tblSchMJune19[[#This Row],[Primary Account]]=4099300,\"SCHMDT\"))))","v":"SCHMAT"},"605100","Trojan Decomissioning Costs","TROJD",-50.973880000000001,{"$f":"IF(OR(tblSchMJune19[[#This Row],[Alloc]]=\"IDU\",tblSchMJune19[[#This Row],[Alloc]]=\"OR\",tblSchMJune19[[#This Row],[Alloc]]=\"UT\",tblSchMJune19[[#This Row],[Alloc]]=\"WYU\",tblSchMJune19[[#This Row],[Alloc]]=\"WYP\",tblSchMJune19[[#This Row],[Alloc]]=\"CA\",tblSchMJune19[[#This Row],[Alloc]]=\"WA\"),\"SITUS\",tblSchMJune19[[#This Row],[Alloc]])","v":"TROJD"},{"$f":"INDEX(tblSchMLookup[FUNC],MATCH(tblSchMJune19[[#This Row],[Concat]],tblSchMLookup[Concat],0))","v":"P"},{"$f":"IF(tblSchMJune19[[#This Row],[Total ($000)]]=0,\"NO\",IF(ISNA(tblSchMJune19[[#This Row],[FUNC]]),\"YES\",IF(_xlfn.ISFORMULA(tblSchMJune19[[#This Row],[FUNC]]),\"NO\",\"YES\")))","v":"NO"}]
[{"$f":"CONCATENATE(tblSchMJune19[[#This Row],[Primary Account]],tblSchMJune19[[#This Row],[Primary Name]],tblSchMJune19[[#This Row],[Secondary Acct]],tblSchMJune19[[#This Row],[Secondary  Name]],tblSchMJune19[[#This Row],[Alloc4FUNC]])","v":"4098300SCHMAT605301Environmental Liability - RegulatedSO"},4098300,{"$f":"IF(tblSchMJune19[[#This Row],[Primary Account]]=4098200,\"SCHMAP\",IF(tblSchMJune19[[#This Row],[Primary Account]]=4098300,\"SCHMAT\",IF(tblSchMJune19[[#This Row],[Primary Account]]=4099200,\"SCHMDP\",IF(tblSchMJune19[[#This Row],[Primary Account]]=4099300,\"SCHMDT\"))))","v":"SCHMAT"},"605301","Environmental Liability - Regulated","SO",447.09791000000001,{"$f":"IF(OR(tblSchMJune19[[#This Row],[Alloc]]=\"IDU\",tblSchMJune19[[#This Row],[Alloc]]=\"OR\",tblSchMJune19[[#This Row],[Alloc]]=\"UT\",tblSchMJune19[[#This Row],[Alloc]]=\"WYU\",tblSchMJune19[[#This Row],[Alloc]]=\"WYP\",tblSchMJune19[[#This Row],[Alloc]]=\"CA\",tblSchMJune19[[#This Row],[Alloc]]=\"WA\"),\"SITUS\",tblSchMJune19[[#This Row],[Alloc]])","v":"SO"},{"$f":"INDEX(tblSchMLookup[FUNC],MATCH(tblSchMJune19[[#This Row],[Concat]],tblSchMLookup[Concat],0))","v":"PTD"},{"$f":"IF(tblSchMJune19[[#This Row],[Total ($000)]]=0,\"NO\",IF(ISNA(tblSchMJune19[[#This Row],[FUNC]]),\"YES\",IF(_xlfn.ISFORMULA(tblSchMJune19[[#This Row],[FUNC]]),\"NO\",\"YES\")))","v":"NO"}]
[{"$f":"CONCATENATE(tblSchMJune19[[#This Row],[Primary Account]],tblSchMJune19[[#This Row],[Primary Name]],tblSchMJune19[[#This Row],[Secondary Acct]],tblSchMJune19[[#This Row],[Secondary  Name]],tblSchMJune19[[#This Row],[Alloc4FUNC]])","v":"4098300SCHMAT605710Reverse Accrued Final ReclamationOTHER"},4098300,{"$f":"IF(tblSchMJune19[[#This Row],[Primary Account]]=4098200,\"SCHMAP\",IF(tblSchMJune19[[#This Row],[Primary Account]]=4098300,\"SCHMAT\",IF(tblSchMJune19[[#This Row],[Primary Account]]=4099200,\"SCHMDP\",IF(tblSchMJune19[[#This Row],[Primary Account]]=4099300,\"SCHMDT\"))))","v":"SCHMAT"},"605710","Reverse Accrued Final Reclamation","OTHER",-4589.1746599999997,{"$f":"IF(OR(tblSchMJune19[[#This Row],[Alloc]]=\"IDU\",tblSchMJune19[[#This Row],[Alloc]]=\"OR\",tblSchMJune19[[#This Row],[Alloc]]=\"UT\",tblSchMJune19[[#This Row],[Alloc]]=\"WYU\",tblSchMJune19[[#This Row],[Alloc]]=\"WYP\",tblSchMJune19[[#This Row],[Alloc]]=\"CA\",tblSchMJune19[[#This Row],[Alloc]]=\"WA\"),\"SITUS\",tblSchMJune19[[#This Row],[Alloc]])","v":"OTHER"},{"$f":"INDEX(tblSchMLookup[FUNC],MATCH(tblSchMJune19[[#This Row],[Concat]],tblSchMLookup[Concat],0))","v":"P"},{"$f":"IF(tblSchMJune19[[#This Row],[Total ($000)]]=0,\"NO\",IF(ISNA(tblSchMJune19[[#This Row],[FUNC]]),\"YES\",IF(_xlfn.ISFORMULA(tblSchMJune19[[#This Row],[FUNC]]),\"NO\",\"YES\")))","v":"NO"}]
[{"$f":"CONCATENATE(tblSchMJune19[[#This Row],[Primary Account]],tblSchMJune19[[#This Row],[Primary Name]],tblSchMJune19[[#This Row],[Secondary Acct]],tblSchMJune19[[#This Row],[Secondary  Name]],tblSchMJune19[[#This Row],[Alloc4FUNC]])","v":"4098300SCHMAT605715Trapper Mine Contract ObligationSE"},4098300,{"$f":"IF(tblSchMJune19[[#This Row],[Primary Account]]=4098200,\"SCHMAP\",IF(tblSchMJune19[[#This Row],[Primary Account]]=4098300,\"SCHMAT\",IF(tblSchMJune19[[#This Row],[Primary Account]]=4099200,\"SCHMDP\",IF(tblSchMJune19[[#This Row],[Primary Account]]=4099300,\"SCHMDT\"))))","v":"SCHMAT"},"605715","Trapper Mine Contract Obligation","SE",280.70922000000002,{"$f":"IF(OR(tblSchMJune19[[#This Row],[Alloc]]=\"IDU\",tblSchMJune19[[#This Row],[Alloc]]=\"OR\",tblSchMJune19[[#This Row],[Alloc]]=\"UT\",tblSchMJune19[[#This Row],[Alloc]]=\"WYU\",tblSchMJune19[[#This Row],[Alloc]]=\"WYP\",tblSchMJune19[[#This Row],[Alloc]]=\"CA\",tblSchMJune19[[#This Row],[Alloc]]=\"WA\"),\"SITUS\",tblSchMJune19[[#This Row],[Alloc]])","v":"SE"},{"$f":"INDEX(tblSchMLookup[FUNC],MATCH(tblSchMJune19[[#This Row],[Concat]],tblSchMLookup[Concat],0))","v":"P"},{"$f":"IF(tblSchMJune19[[#This Row],[Total ($000)]]=0,\"NO\",IF(ISNA(tblSchMJune19[[#This Row],[FUNC]]),\"YES\",IF(_xlfn.ISFORMULA(tblSchMJune19[[#This Row],[FUNC]]),\"NO\",\"YES\")))","v":"NO"}]
[{"$f":"CONCATENATE(tblSchMJune19[[#This Row],[Primary Account]],tblSchMJune19[[#This Row],[Primary Name]],tblSchMJune19[[#This Row],[Secondary Acct]],tblSchMJune19[[#This Row],[Secondary  Name]],tblSchMJune19[[#This Row],[Alloc4FUNC]])","v":"4098300SCHMAT610000Coal Mine Development-PMISE"},4098300,{"$f":"IF(tblSchMJune19[[#This Row],[Primary Account]]=4098200,\"SCHMAP\",IF(tblSchMJune19[[#This Row],[Primary Account]]=4098300,\"SCHMAT\",IF(tblSchMJune19[[#This Row],[Primary Account]]=4099200,\"SCHMDP\",IF(tblSchMJune19[[#This Row],[Primary Account]]=4099300,\"SCHMDT\"))))","v":"SCHMAT"},"610000","Coal Mine Development-PMI","SE",-85.122,{"$f":"IF(OR(tblSchMJune19[[#This Row],[Alloc]]=\"IDU\",tblSchMJune19[[#This Row],[Alloc]]=\"OR\",tblSchMJune19[[#This Row],[Alloc]]=\"UT\",tblSchMJune19[[#This Row],[Alloc]]=\"WYU\",tblSchMJune19[[#This Row],[Alloc]]=\"WYP\",tblSchMJune19[[#This Row],[Alloc]]=\"CA\",tblSchMJune19[[#This Row],[Alloc]]=\"WA\"),\"SITUS\",tblSchMJune19[[#This Row],[Alloc]])","v":"SE"},{"$f":"INDEX(tblSchMLookup[FUNC],MATCH(tblSchMJune19[[#This Row],[Concat]],tblSchMLookup[Concat],0))","v":"P"},{"$f":"IF(tblSchMJune19[[#This Row],[Total ($000)]]=0,\"NO\",IF(ISNA(tblSchMJune19[[#This Row],[FUNC]]),\"YES\",IF(_xlfn.ISFORMULA(tblSchMJune19[[#This Row],[FUNC]]),\"NO\",\"YES\")))","v":"NO"}]
[{"$f":"CONCATENATE(tblSchMJune19[[#This Row],[Primary Account]],tblSchMJune19[[#This Row],[Primary Name]],tblSchMJune19[[#This Row],[Secondary Acct]],tblSchMJune19[[#This Row],[Secondary  Name]],tblSchMJune19[[#This Row],[Alloc4FUNC]])","v":"4098300SCHMAT610005Sec 174 94-98 7 99-00 RARSO"},4098300,{"$f":"IF(tblSchMJune19[[#This Row],[Primary Account]]=4098200,\"SCHMAP\",IF(tblSchMJune19[[#This Row],[Primary Account]]=4098300,\"SCHMAT\",IF(tblSchMJune19[[#This Row],[Primary Account]]=4099200,\"SCHMDP\",IF(tblSchMJune19[[#This Row],[Primary Account]]=4099300,\"SCHMDT\"))))","v":"SCHMAT"},"610005","Sec 174 94-98 7 99-00 RAR","SO",null,{"$f":"IF(OR(tblSchMJune19[[#This Row],[Alloc]]=\"IDU\",tblSchMJune19[[#This Row],[Alloc]]=\"OR\",tblSchMJune19[[#This Row],[Alloc]]=\"UT\",tblSchMJune19[[#This Row],[Alloc]]=\"WYU\",tblSchMJune19[[#This Row],[Alloc]]=\"WYP\",tblSchMJune19[[#This Row],[Alloc]]=\"CA\",tblSchMJune19[[#This Row],[Alloc]]=\"WA\"),\"SITUS\",tblSchMJune19[[#This Row],[Alloc]])","v":"SO"},{"$f":"INDEX(tblSchMLookup[FUNC],MATCH(tblSchMJune19[[#This Row],[Concat]],tblSchMLookup[Concat],0))","v":{"$error":"#N/A"}},{"$f":"IF(tblSchMJune19[[#This Row],[Total ($000)]]=0,\"NO\",IF(ISNA(tblSchMJune19[[#This Row],[FUNC]]),\"YES\",IF(_xlfn.ISFORMULA(tblSchMJune19[[#This Row],[FUNC]]),\"NO\",\"YES\")))","v":"NO"}]
[{"$f":"CONCATENATE(tblSchMJune19[[#This Row],[Primary Account]],tblSchMJune19[[#This Row],[Primary Name]],tblSchMJune19[[#This Row],[Secondary Acct]],tblSchMJune19[[#This Row],[Secondary  Name]],tblSchMJune19[[#This Row],[Alloc4FUNC]])","v":"4098300SCHMAT610100PMIDevt Cost AmortSE"},4098300,{"$f":"IF(tblSchMJune19[[#This Row],[Primary Account]]=4098200,\"SCHMAP\",IF(tblSchMJune19[[#This Row],[Primary Account]]=4098300,\"SCHMAT\",IF(tblSchMJune19[[#This Row],[Primary Account]]=4099200,\"SCHMDP\",IF(tblSchMJune19[[#This Row],[Primary Account]]=4099300,\"SCHMDT\"))))","v":"SCHMAT"},"610100","PMIDevt Cost Amort","SE",null,{"$f":"IF(OR(tblSchMJune19[[#This Row],[Alloc]]=\"IDU\",tblSchMJune19[[#This Row],[Alloc]]=\"OR\",tblSchMJune19[[#This Row],[Alloc]]=\"UT\",tblSchMJune19[[#This Row],[Alloc]]=\"WYU\",tblSchMJune19[[#This Row],[Alloc]]=\"WYP\",tblSchMJune19[[#This Row],[Alloc]]=\"CA\",tblSchMJune19[[#This Row],[Alloc]]=\"WA\"),\"SITUS\",tblSchMJune19[[#This Row],[Alloc]])","v":"SE"},{"$f":"INDEX(tblSchMLookup[FUNC],MATCH(tblSchMJune19[[#This Row],[Concat]],tblSchMLookup[Concat],0))","v":{"$error":"#N/A"}},{"$f":"IF(tblSchMJune19[[#This Row],[Total ($000)]]=0,\"NO\",IF(ISNA(tblSchMJune19[[#This Row],[FUNC]]),\"YES\",IF(_xlfn.ISFORMULA(tblSchMJune19[[#This Row],[FUNC]]),\"NO\",\"YES\")))","v":"NO"}]
[{"$f":"CONCATENATE(tblSchMJune19[[#This Row],[Primary Account]],tblSchMJune19[[#This Row],[Primary Name]],tblSchMJune19[[#This Row],[Secondary Acct]],tblSchMJune19[[#This Row],[Secondary  Name]],tblSchMJune19[[#This Row],[Alloc4FUNC]])","v":"4098300SCHMAT610111PMIBCC Gain/Loss on Assets DisposedSE"},4098300,{"$f":"IF(tblSchMJune19[[#This Row],[Primary Account]]=4098200,\"SCHMAP\",IF(tblSchMJune19[[#This Row],[Primary Account]]=4098300,\"SCHMAT\",IF(tblSchMJune19[[#This Row],[Primary Account]]=4099200,\"SCHMDP\",IF(tblSchMJune19[[#This Row],[Primary Account]]=4099300,\"SCHMDT\"))))","v":"SCHMAT"},"610111","PMIBCC Gain/Loss on Assets Disposed","SE",null,{"$f":"IF(OR(tblSchMJune19[[#This Row],[Alloc]]=\"IDU\",tblSchMJune19[[#This Row],[Alloc]]=\"OR\",tblSchMJune19[[#This Row],[Alloc]]=\"UT\",tblSchMJune19[[#This Row],[Alloc]]=\"WYU\",tblSchMJune19[[#This Row],[Alloc]]=\"WYP\",tblSchMJune19[[#This Row],[Alloc]]=\"CA\",tblSchMJune19[[#This Row],[Alloc]]=\"WA\"),\"SITUS\",tblSchMJune19[[#This Row],[Alloc]])","v":"SE"},{"$f":"INDEX(tblSchMLookup[FUNC],MATCH(tblSchMJune19[[#This Row],[Concat]],tblSchMLookup[Concat],0))","v":{"$error":"#N/A"}},{"$f":"IF(tblSchMJune19[[#This Row],[Total ($000)]]=0,\"NO\",IF(ISNA(tblSchMJune19[[#This Row],[FUNC]]),\"YES\",IF(_xlfn.ISFORMULA(tblSchMJune19[[#This Row],[FUNC]]),\"NO\",\"YES\")))","v":"NO"}]
[{"$f":"CONCATENATE(tblSchMJune19[[#This Row],[Primary Account]],tblSchMJune19[[#This Row],[Primary Name]],tblSchMJune19[[#This Row],[Secondary Acct]],tblSchMJune19[[#This Row],[Secondary  Name]],tblSchMJune19[[#This Row],[Alloc4FUNC]])","v":"4098300SCHMAT610114PMI EITF Pre-Stripping CostsSE"},4098300,{"$f":"IF(tblSchMJune19[[#This Row],[Primary Account]]=4098200,\"SCHMAP\",IF(tblSchMJune19[[#This Row],[Primary Account]]=4098300,\"SCHMAT\",IF(tblSchMJune19[[#This Row],[Primary Account]]=4099200,\"SCHMDP\",IF(tblSchMJune19[[#This Row],[Primary Account]]=4099300,\"SCHMDT\"))))","v":"SCHMAT"},"610114","PMI EITF Pre-Stripping Costs","SE",null,{"$f":"IF(OR(tblSchMJune19[[#This Row],[Alloc]]=\"IDU\",tblSchMJune19[[#This Row],[Alloc]]=\"OR\",tblSchMJune19[[#This Row],[Alloc]]=\"UT\",tblSchMJune19[[#This Row],[Alloc]]=\"WYU\",tblSchMJune19[[#This Row],[Alloc]]=\"WYP\",tblSchMJune19[[#This Row],[Alloc]]=\"CA\",tblSchMJune19[[#This Row],[Alloc]]=\"WA\"),\"SITUS\",tblSchMJune19[[#This Row],[Alloc]])","v":"SE"},{"$f":"INDEX(tblSchMLookup[FUNC],MATCH(tblSchMJune19[[#This Row],[Concat]],tblSchMLookup[Concat],0))","v":{"$error":"#N/A"}},{"$f":"IF(tblSchMJune19[[#This Row],[Total ($000)]]=0,\"NO\",IF(ISNA(tblSchMJune19[[#This Row],[FUNC]]),\"YES\",IF(_xlfn.ISFORMULA(tblSchMJune19[[#This Row],[FUNC]]),\"NO\",\"YES\")))","v":"NO"}]
[{"$f":"CONCATENATE(tblSchMJune19[[#This Row],[Primary Account]],tblSchMJune19[[#This Row],[Primary Name]],tblSchMJune19[[#This Row],[Secondary Acct]],tblSchMJune19[[#This Row],[Secondary  Name]],tblSchMJune19[[#This Row],[Alloc4FUNC]])","v":"4098300SCHMAT610115PMIOverburden RemovalSE"},4098300,{"$f":"IF(tblSchMJune19[[#This Row],[Primary Account]]=4098200,\"SCHMAP\",IF(tblSchMJune19[[#This Row],[Primary Account]]=4098300,\"SCHMAT\",IF(tblSchMJune19[[#This Row],[Primary Account]]=4099200,\"SCHMDP\",IF(tblSchMJune19[[#This Row],[Primary Account]]=4099300,\"SCHMDT\"))))","v":"SCHMAT"},"610115","PMIOverburden Removal","SE",null,{"$f":"IF(OR(tblSchMJune19[[#This Row],[Alloc]]=\"IDU\",tblSchMJune19[[#This Row],[Alloc]]=\"OR\",tblSchMJune19[[#This Row],[Alloc]]=\"UT\",tblSchMJune19[[#This Row],[Alloc]]=\"WYU\",tblSchMJune19[[#This Row],[Alloc]]=\"WYP\",tblSchMJune19[[#This Row],[Alloc]]=\"CA\",tblSchMJune19[[#This Row],[Alloc]]=\"WA\"),\"SITUS\",tblSchMJune19[[#This Row],[Alloc]])","v":"SE"},{"$f":"INDEX(tblSchMLookup[FUNC],MATCH(tblSchMJune19[[#This Row],[Concat]],tblSchMLookup[Concat],0))","v":{"$error":"#N/A"}},{"$f":"IF(tblSchMJune19[[#This Row],[Total ($000)]]=0,\"NO\",IF(ISNA(tblSchMJune19[[#This Row],[FUNC]]),\"YES\",IF(_xlfn.ISFORMULA(tblSchMJune19[[#This Row],[FUNC]]),\"NO\",\"YES\")))","v":"NO"}]
[{"$f":"CONCATENATE(tblSchMJune19[[#This Row],[Primary Account]],tblSchMJune19[[#This Row],[Primary Name]],tblSchMJune19[[#This Row],[Secondary Acct]],tblSchMJune19[[#This Row],[Secondary  Name]],tblSchMJune19[[#This Row],[Alloc4FUNC]])","v":"4098300SCHMAT610130781 Shopping Incentive_OROTHER"},4098300,{"$f":"IF(tblSchMJune19[[#This Row],[Primary Account]]=4098200,\"SCHMAP\",IF(tblSchMJune19[[#This Row],[Primary Account]]=4098300,\"SCHMAT\",IF(tblSchMJune19[[#This Row],[Primary Account]]=4099200,\"SCHMDP\",IF(tblSchMJune19[[#This Row],[Primary Account]]=4099300,\"SCHMDT\"))))","v":"SCHMAT"},"610130","781 Shopping Incentive_OR","OTHER",null,{"$f":"IF(OR(tblSchMJune19[[#This Row],[Alloc]]=\"IDU\",tblSchMJune19[[#This Row],[Alloc]]=\"OR\",tblSchMJune19[[#This Row],[Alloc]]=\"UT\",tblSchMJune19[[#This Row],[Alloc]]=\"WYU\",tblSchMJune19[[#This Row],[Alloc]]=\"WYP\",tblSchMJune19[[#This Row],[Alloc]]=\"CA\",tblSchMJune19[[#This Row],[Alloc]]=\"WA\"),\"SITUS\",tblSchMJune19[[#This Row],[Alloc]])","v":"OTHER"},{"$f":"INDEX(tblSchMLookup[FUNC],MATCH(tblSchMJune19[[#This Row],[Concat]],tblSchMLookup[Concat],0))","v":{"$error":"#N/A"}},{"$f":"IF(tblSchMJune19[[#This Row],[Total ($000)]]=0,\"NO\",IF(ISNA(tblSchMJune19[[#This Row],[FUNC]]),\"YES\",IF(_xlfn.ISFORMULA(tblSchMJune19[[#This Row],[FUNC]]),\"NO\",\"YES\")))","v":"NO"}]
[{"$f":"CONCATENATE(tblSchMJune19[[#This Row],[Primary Account]],tblSchMJune19[[#This Row],[Primary Name]],tblSchMJune19[[#This Row],[Secondary Acct]],tblSchMJune19[[#This Row],[Secondary  Name]],tblSchMJune19[[#This Row],[Alloc4FUNC]])","v":"4098300SCHMAT610135SB1149 Costs_OR OTHEROTHER"},4098300,{"$f":"IF(tblSchMJune19[[#This Row],[Primary Account]]=4098200,\"SCHMAP\",IF(tblSchMJune19[[#This Row],[Primary Account]]=4098300,\"SCHMAT\",IF(tblSchMJune19[[#This Row],[Primary Account]]=4099200,\"SCHMDP\",IF(tblSchMJune19[[#This Row],[Primary Account]]=4099300,\"SCHMDT\"))))","v":"SCHMAT"},"610135","SB1149 Costs_OR OTHER","OTHER",null,{"$f":"IF(OR(tblSchMJune19[[#This Row],[Alloc]]=\"IDU\",tblSchMJune19[[#This Row],[Alloc]]=\"OR\",tblSchMJune19[[#This Row],[Alloc]]=\"UT\",tblSchMJune19[[#This Row],[Alloc]]=\"WYU\",tblSchMJune19[[#This Row],[Alloc]]=\"WYP\",tblSchMJune19[[#This Row],[Alloc]]=\"CA\",tblSchMJune19[[#This Row],[Alloc]]=\"WA\"),\"SITUS\",tblSchMJune19[[#This Row],[Alloc]])","v":"OTHER"},{"$f":"INDEX(tblSchMLookup[FUNC],MATCH(tblSchMJune19[[#This Row],[Concat]],tblSchMLookup[Concat],0))","v":{"$error":"#N/A"}},{"$f":"IF(tblSchMJune19[[#This Row],[Total ($000)]]=0,\"NO\",IF(ISNA(tblSchMJune19[[#This Row],[FUNC]]),\"YES\",IF(_xlfn.ISFORMULA(tblSchMJune19[[#This Row],[FUNC]]),\"NO\",\"YES\")))","v":"NO"}]
[{"$f":"CONCATENATE(tblSchMJune19[[#This Row],[Primary Account]],tblSchMJune19[[#This Row],[Primary Name]],tblSchMJune19[[#This Row],[Secondary Acct]],tblSchMJune19[[#This Row],[Secondary  Name]],tblSchMJune19[[#This Row],[Alloc4FUNC]])","v":"4098300SCHMAT610140Oregon Rate RefundOTHER"},4098300,{"$f":"IF(tblSchMJune19[[#This Row],[Primary Account]]=4098200,\"SCHMAP\",IF(tblSchMJune19[[#This Row],[Primary Account]]=4098300,\"SCHMAT\",IF(tblSchMJune19[[#This Row],[Primary Account]]=4099200,\"SCHMDP\",IF(tblSchMJune19[[#This Row],[Primary Account]]=4099300,\"SCHMDT\"))))","v":"SCHMAT"},"610140","Oregon Rate Refund","OTHER",null,{"$f":"IF(OR(tblSchMJune19[[#This Row],[Alloc]]=\"IDU\",tblSchMJune19[[#This Row],[Alloc]]=\"OR\",tblSchMJune19[[#This Row],[Alloc]]=\"UT\",tblSchMJune19[[#This Row],[Alloc]]=\"WYU\",tblSchMJune19[[#This Row],[Alloc]]=\"WYP\",tblSchMJune19[[#This Row],[Alloc]]=\"CA\",tblSchMJune19[[#This Row],[Alloc]]=\"WA\"),\"SITUS\",tblSchMJune19[[#This Row],[Alloc]])","v":"OTHER"},{"$f":"INDEX(tblSchMLookup[FUNC],MATCH(tblSchMJune19[[#This Row],[Concat]],tblSchMLookup[Concat],0))","v":{"$error":"#N/A"}},{"$f":"IF(tblSchMJune19[[#This Row],[Total ($000)]]=0,\"NO\",IF(ISNA(tblSchMJune19[[#This Row],[FUNC]]),\"YES\",IF(_xlfn.ISFORMULA(tblSchMJune19[[#This Row],[FUNC]]),\"NO\",\"YES\")))","v":"NO"}]
[{"$f":"CONCATENATE(tblSchMJune19[[#This Row],[Primary Account]],tblSchMJune19[[#This Row],[Primary Name]],tblSchMJune19[[#This Row],[Secondary Acct]],tblSchMJune19[[#This Row],[Secondary  Name]],tblSchMJune19[[#This Row],[Alloc4FUNC]])","v":"4098300SCHMAT610141WA Rate RefundsOTHER"},4098300,{"$f":"IF(tblSchMJune19[[#This Row],[Primary Account]]=4098200,\"SCHMAP\",IF(tblSchMJune19[[#This Row],[Primary Account]]=4098300,\"SCHMAT\",IF(tblSchMJune19[[#This Row],[Primary Account]]=4099200,\"SCHMDP\",IF(tblSchMJune19[[#This Row],[Primary Account]]=4099300,\"SCHMDT\"))))","v":"SCHMAT"},"610141","WA Rate Refunds","OTHER",null,{"$f":"IF(OR(tblSchMJune19[[#This Row],[Alloc]]=\"IDU\",tblSchMJune19[[#This Row],[Alloc]]=\"OR\",tblSchMJune19[[#This Row],[Alloc]]=\"UT\",tblSchMJune19[[#This Row],[Alloc]]=\"WYU\",tblSchMJune19[[#This Row],[Alloc]]=\"WYP\",tblSchMJune19[[#This Row],[Alloc]]=\"CA\",tblSchMJune19[[#This Row],[Alloc]]=\"WA\"),\"SITUS\",tblSchMJune19[[#This Row],[Alloc]])","v":"OTHER"},{"$f":"INDEX(tblSchMLookup[FUNC],MATCH(tblSchMJune19[[#This Row],[Concat]],tblSchMLookup[Concat],0))","v":{"$error":"#N/A"}},{"$f":"IF(tblSchMJune19[[#This Row],[Total ($000)]]=0,\"NO\",IF(ISNA(tblSchMJune19[[#This Row],[FUNC]]),\"YES\",IF(_xlfn.ISFORMULA(tblSchMJune19[[#This Row],[FUNC]]),\"NO\",\"YES\")))","v":"NO"}]
[{"$f":"CONCATENATE(tblSchMJune19[[#This Row],[Primary Account]],tblSchMJune19[[#This Row],[Primary Name]],tblSchMJune19[[#This Row],[Secondary Acct]],tblSchMJune19[[#This Row],[Secondary  Name]],tblSchMJune19[[#This Row],[Alloc4FUNC]])","v":"4098300SCHMAT610142Reg Liability - UT Home Energy LifelineSITUS"},4098300,{"$f":"IF(tblSchMJune19[[#This Row],[Primary Account]]=4098200,\"SCHMAP\",IF(tblSchMJune19[[#This Row],[Primary Account]]=4098300,\"SCHMAT\",IF(tblSchMJune19[[#This Row],[Primary Account]]=4099200,\"SCHMDP\",IF(tblSchMJune19[[#This Row],[Primary Account]]=4099300,\"SCHMDT\"))))","v":"SCHMAT"},"610142","Reg Liability - UT Home Energy Lifeline","UT",null,{"$f":"IF(OR(tblSchMJune19[[#This Row],[Alloc]]=\"IDU\",tblSchMJune19[[#This Row],[Alloc]]=\"OR\",tblSchMJune19[[#This Row],[Alloc]]=\"UT\",tblSchMJune19[[#This Row],[Alloc]]=\"WYU\",tblSchMJune19[[#This Row],[Alloc]]=\"WYP\",tblSchMJune19[[#This Row],[Alloc]]=\"CA\",tblSchMJune19[[#This Row],[Alloc]]=\"WA\"),\"SITUS\",tblSchMJune19[[#This Row],[Alloc]])","v":"SITUS"},{"$f":"INDEX(tblSchMLookup[FUNC],MATCH(tblSchMJune19[[#This Row],[Concat]],tblSchMLookup[Concat],0))","v":{"$error":"#N/A"}},{"$f":"IF(tblSchMJune19[[#This Row],[Total ($000)]]=0,\"NO\",IF(ISNA(tblSchMJune19[[#This Row],[FUNC]]),\"YES\",IF(_xlfn.ISFORMULA(tblSchMJune19[[#This Row],[FUNC]]),\"NO\",\"YES\")))","v":"NO"}]
[{"$f":"CONCATENATE(tblSchMJune19[[#This Row],[Primary Account]],tblSchMJune19[[#This Row],[Primary Name]],tblSchMJune19[[#This Row],[Secondary Acct]],tblSchMJune19[[#This Row],[Secondary  Name]],tblSchMJune19[[#This Row],[Alloc4FUNC]])","v":"4098300SCHMAT610143Reg Liability - WA Low Energy ProgramSITUS"},4098300,{"$f":"IF(tblSchMJune19[[#This Row],[Primary Account]]=4098200,\"SCHMAP\",IF(tblSchMJune19[[#This Row],[Primary Account]]=4098300,\"SCHMAT\",IF(tblSchMJune19[[#This Row],[Primary Account]]=4099200,\"SCHMDP\",IF(tblSchMJune19[[#This Row],[Primary Account]]=4099300,\"SCHMDT\"))))","v":"SCHMAT"},"610143","Reg Liability - WA Low Energy Program","WA",-1288.51127,{"$f":"IF(OR(tblSchMJune19[[#This Row],[Alloc]]=\"IDU\",tblSchMJune19[[#This Row],[Alloc]]=\"OR\",tblSchMJune19[[#This Row],[Alloc]]=\"UT\",tblSchMJune19[[#This Row],[Alloc]]=\"WYU\",tblSchMJune19[[#This Row],[Alloc]]=\"WYP\",tblSchMJune19[[#This Row],[Alloc]]=\"CA\",tblSchMJune19[[#This Row],[Alloc]]=\"WA\"),\"SITUS\",tblSchMJune19[[#This Row],[Alloc]])","v":"SITUS"},{"$f":"INDEX(tblSchMLookup[FUNC],MATCH(tblSchMJune19[[#This Row],[Concat]],tblSchMLookup[Concat],0))","v":"DPW"},{"$f":"IF(tblSchMJune19[[#This Row],[Total ($000)]]=0,\"NO\",IF(ISNA(tblSchMJune19[[#This Row],[FUNC]]),\"YES\",IF(_xlfn.ISFORMULA(tblSchMJune19[[#This Row],[FUNC]]),\"NO\",\"YES\")))","v":"NO"}]
[{"$f":"CONCATENATE(tblSchMJune19[[#This Row],[Primary Account]],tblSchMJune19[[#This Row],[Primary Name]],tblSchMJune19[[#This Row],[Secondary Acct]],tblSchMJune19[[#This Row],[Secondary  Name]],tblSchMJune19[[#This Row],[Alloc4FUNC]])","v":"4098300SCHMAT610144Reg Liability - CA California AlternativOTHER"},4098300,{"$f":"IF(tblSchMJune19[[#This Row],[Primary Account]]=4098200,\"SCHMAP\",IF(tblSchMJune19[[#This Row],[Primary Account]]=4098300,\"SCHMAT\",IF(tblSchMJune19[[#This Row],[Primary Account]]=4099200,\"SCHMDP\",IF(tblSchMJune19[[#This Row],[Primary Account]]=4099300,\"SCHMDT\"))))","v":"SCHMAT"},"610144","Reg Liability - CA California Alternativ","OTHER",null,{"$f":"IF(OR(tblSchMJune19[[#This Row],[Alloc]]=\"IDU\",tblSchMJune19[[#This Row],[Alloc]]=\"OR\",tblSchMJune19[[#This Row],[Alloc]]=\"UT\",tblSchMJune19[[#This Row],[Alloc]]=\"WYU\",tblSchMJune19[[#This Row],[Alloc]]=\"WYP\",tblSchMJune19[[#This Row],[Alloc]]=\"CA\",tblSchMJune19[[#This Row],[Alloc]]=\"WA\"),\"SITUS\",tblSchMJune19[[#This Row],[Alloc]])","v":"OTHER"},{"$f":"INDEX(tblSchMLookup[FUNC],MATCH(tblSchMJune19[[#This Row],[Concat]],tblSchMLookup[Concat],0))","v":{"$error":"#N/A"}},{"$f":"IF(tblSchMJune19[[#This Row],[Total ($000)]]=0,\"NO\",IF(ISNA(tblSchMJune19[[#This Row],[FUNC]]),\"YES\",IF(_xlfn.ISFORMULA(tblSchMJune19[[#This Row],[FUNC]]),\"NO\",\"YES\")))","v":"NO"}]
[{"$f":"CONCATENATE(tblSchMJune19[[#This Row],[Primary Account]],tblSchMJune19[[#This Row],[Primary Name]],tblSchMJune19[[#This Row],[Secondary Acct]],tblSchMJune19[[#This Row],[Secondary  Name]],tblSchMJune19[[#This Row],[Alloc4FUNC]])","v":"4098300SCHMAT610145REG LIAB-DSMOTHER"},4098300,{"$f":"IF(tblSchMJune19[[#This Row],[Primary Account]]=4098200,\"SCHMAP\",IF(tblSchMJune19[[#This Row],[Primary Account]]=4098300,\"SCHMAT\",IF(tblSchMJune19[[#This Row],[Primary Account]]=4099200,\"SCHMDP\",IF(tblSchMJune19[[#This Row],[Primary Account]]=4099300,\"SCHMDT\"))))","v":"SCHMAT"},"610145","REG LIAB-DSM","OTHER",23147.146420000001,{"$f":"IF(OR(tblSchMJune19[[#This Row],[Alloc]]=\"IDU\",tblSchMJune19[[#This Row],[Alloc]]=\"OR\",tblSchMJune19[[#This Row],[Alloc]]=\"UT\",tblSchMJune19[[#This Row],[Alloc]]=\"WYU\",tblSchMJune19[[#This Row],[Alloc]]=\"WYP\",tblSchMJune19[[#This Row],[Alloc]]=\"CA\",tblSchMJune19[[#This Row],[Alloc]]=\"WA\"),\"SITUS\",tblSchMJune19[[#This Row],[Alloc]])","v":"OTHER"},{"$f":"INDEX(tblSchMLookup[FUNC],MATCH(tblSchMJune19[[#This Row],[Concat]],tblSchMLookup[Concat],0))","v":"PTD"},{"$f":"IF(tblSchMJune19[[#This Row],[Total ($000)]]=0,\"NO\",IF(ISNA(tblSchMJune19[[#This Row],[FUNC]]),\"YES\",IF(_xlfn.ISFORMULA(tblSchMJune19[[#This Row],[FUNC]]),\"NO\",\"YES\")))","v":"NO"}]
[{"$f":"CONCATENATE(tblSchMJune19[[#This Row],[Primary Account]],tblSchMJune19[[#This Row],[Primary Name]],tblSchMJune19[[#This Row],[Secondary Acct]],tblSchMJune19[[#This Row],[Secondary  Name]],tblSchMJune19[[#This Row],[Alloc4FUNC]])","v":"4098300SCHMAT610146OR Reg Asset/Liability ConsolidationSITUS"},4098300,{"$f":"IF(tblSchMJune19[[#This Row],[Primary Account]]=4098200,\"SCHMAP\",IF(tblSchMJune19[[#This Row],[Primary Account]]=4098300,\"SCHMAT\",IF(tblSchMJune19[[#This Row],[Primary Account]]=4099200,\"SCHMDP\",IF(tblSchMJune19[[#This Row],[Primary Account]]=4099300,\"SCHMDT\"))))","v":"SCHMAT"},"610146","OR Reg Asset/Liability Consolidation","OR",null,{"$f":"IF(OR(tblSchMJune19[[#This Row],[Alloc]]=\"IDU\",tblSchMJune19[[#This Row],[Alloc]]=\"OR\",tblSchMJune19[[#This Row],[Alloc]]=\"UT\",tblSchMJune19[[#This Row],[Alloc]]=\"WYU\",tblSchMJune19[[#This Row],[Alloc]]=\"WYP\",tblSchMJune19[[#This Row],[Alloc]]=\"CA\",tblSchMJune19[[#This Row],[Alloc]]=\"WA\"),\"SITUS\",tblSchMJune19[[#This Row],[Alloc]])","v":"SITUS"},{"$f":"INDEX(tblSchMLookup[FUNC],MATCH(tblSchMJune19[[#This Row],[Concat]],tblSchMLookup[Concat],0))","v":{"$error":"#N/A"}},{"$f":"IF(tblSchMJune19[[#This Row],[Total ($000)]]=0,\"NO\",IF(ISNA(tblSchMJune19[[#This Row],[FUNC]]),\"YES\",IF(_xlfn.ISFORMULA(tblSchMJune19[[#This Row],[FUNC]]),\"NO\",\"YES\")))","v":"NO"}]
[{"$f":"CONCATENATE(tblSchMJune19[[#This Row],[Primary Account]],tblSchMJune19[[#This Row],[Primary Name]],tblSchMJune19[[#This Row],[Secondary Acct]],tblSchMJune19[[#This Row],[Secondary  Name]],tblSchMJune19[[#This Row],[Alloc4FUNC]])","v":"4098300SCHMAT610148Reg Liability - Def NPC Balance ReclassOTHER"},4098300,{"$f":"IF(tblSchMJune19[[#This Row],[Primary Account]]=4098200,\"SCHMAP\",IF(tblSchMJune19[[#This Row],[Primary Account]]=4098300,\"SCHMAT\",IF(tblSchMJune19[[#This Row],[Primary Account]]=4099200,\"SCHMDP\",IF(tblSchMJune19[[#This Row],[Primary Account]]=4099300,\"SCHMDT\"))))","v":"SCHMAT"},"610148","Reg Liability - Def NPC Balance Reclass","OTHER",null,{"$f":"IF(OR(tblSchMJune19[[#This Row],[Alloc]]=\"IDU\",tblSchMJune19[[#This Row],[Alloc]]=\"OR\",tblSchMJune19[[#This Row],[Alloc]]=\"UT\",tblSchMJune19[[#This Row],[Alloc]]=\"WYU\",tblSchMJune19[[#This Row],[Alloc]]=\"WYP\",tblSchMJune19[[#This Row],[Alloc]]=\"CA\",tblSchMJune19[[#This Row],[Alloc]]=\"WA\"),\"SITUS\",tblSchMJune19[[#This Row],[Alloc]])","v":"OTHER"},{"$f":"INDEX(tblSchMLookup[FUNC],MATCH(tblSchMJune19[[#This Row],[Concat]],tblSchMLookup[Concat],0))","v":{"$error":"#N/A"}},{"$f":"IF(tblSchMJune19[[#This Row],[Total ($000)]]=0,\"NO\",IF(ISNA(tblSchMJune19[[#This Row],[FUNC]]),\"YES\",IF(_xlfn.ISFORMULA(tblSchMJune19[[#This Row],[FUNC]]),\"NO\",\"YES\")))","v":"NO"}]
[{"$f":"CONCATENATE(tblSchMJune19[[#This Row],[Primary Account]],tblSchMJune19[[#This Row],[Primary Name]],tblSchMJune19[[#This Row],[Secondary Acct]],tblSchMJune19[[#This Row],[Secondary  Name]],tblSchMJune19[[#This Row],[Alloc4FUNC]])","v":"4098300SCHMAT610149Reg Liability - SB 1149 Balance ReclassOTHER"},4098300,{"$f":"IF(tblSchMJune19[[#This Row],[Primary Account]]=4098200,\"SCHMAP\",IF(tblSchMJune19[[#This Row],[Primary Account]]=4098300,\"SCHMAT\",IF(tblSchMJune19[[#This Row],[Primary Account]]=4099200,\"SCHMDP\",IF(tblSchMJune19[[#This Row],[Primary Account]]=4099300,\"SCHMDT\"))))","v":"SCHMAT"},"610149","Reg Liability - SB 1149 Balance Reclass","OTHER",null,{"$f":"IF(OR(tblSchMJune19[[#This Row],[Alloc]]=\"IDU\",tblSchMJune19[[#This Row],[Alloc]]=\"OR\",tblSchMJune19[[#This Row],[Alloc]]=\"UT\",tblSchMJune19[[#This Row],[Alloc]]=\"WYU\",tblSchMJune19[[#This Row],[Alloc]]=\"WYP\",tblSchMJune19[[#This Row],[Alloc]]=\"CA\",tblSchMJune19[[#This Row],[Alloc]]=\"WA\"),\"SITUS\",tblSchMJune19[[#This Row],[Alloc]])","v":"OTHER"},{"$f":"INDEX(tblSchMLookup[FUNC],MATCH(tblSchMJune19[[#This Row],[Concat]],tblSchMLookup[Concat],0))","v":{"$error":"#N/A"}},{"$f":"IF(tblSchMJune19[[#This Row],[Total ($000)]]=0,\"NO\",IF(ISNA(tblSchMJune19[[#This Row],[FUNC]]),\"YES\",IF(_xlfn.ISFORMULA(tblSchMJune19[[#This Row],[FUNC]]),\"NO\",\"YES\")))","v":"NO"}]
[{"$f":"CONCATENATE(tblSchMJune19[[#This Row],[Primary Account]],tblSchMJune19[[#This Row],[Primary Name]],tblSchMJune19[[#This Row],[Secondary Acct]],tblSchMJune19[[#This Row],[Secondary  Name]],tblSchMJune19[[#This Row],[Alloc4FUNC]])","v":"4098300SCHMAT705210Property InsuranceSO"},4098300,{"$f":"IF(tblSchMJune19[[#This Row],[Primary Account]]=4098200,\"SCHMAP\",IF(tblSchMJune19[[#This Row],[Primary Account]]=4098300,\"SCHMAT\",IF(tblSchMJune19[[#This Row],[Primary Account]]=4099200,\"SCHMDP\",IF(tblSchMJune19[[#This Row],[Primary Account]]=4099300,\"SCHMDT\"))))","v":"SCHMAT"},"705210","Property Insurance","SO",null,{"$f":"IF(OR(tblSchMJune19[[#This Row],[Alloc]]=\"IDU\",tblSchMJune19[[#This Row],[Alloc]]=\"OR\",tblSchMJune19[[#This Row],[Alloc]]=\"UT\",tblSchMJune19[[#This Row],[Alloc]]=\"WYU\",tblSchMJune19[[#This Row],[Alloc]]=\"WYP\",tblSchMJune19[[#This Row],[Alloc]]=\"CA\",tblSchMJune19[[#This Row],[Alloc]]=\"WA\"),\"SITUS\",tblSchMJune19[[#This Row],[Alloc]])","v":"SO"},{"$f":"INDEX(tblSchMLookup[FUNC],MATCH(tblSchMJune19[[#This Row],[Concat]],tblSchMLookup[Concat],0))","v":{"$error":"#N/A"}},{"$f":"IF(tblSchMJune19[[#This Row],[Total ($000)]]=0,\"NO\",IF(ISNA(tblSchMJune19[[#This Row],[FUNC]]),\"YES\",IF(_xlfn.ISFORMULA(tblSchMJune19[[#This Row],[FUNC]]),\"NO\",\"YES\")))","v":"NO"}]
[{"$f":"CONCATENATE(tblSchMJune19[[#This Row],[Primary Account]],tblSchMJune19[[#This Row],[Primary Name]],tblSchMJune19[[#This Row],[Secondary Acct]],tblSchMJune19[[#This Row],[Secondary  Name]],tblSchMJune19[[#This Row],[Alloc4FUNC]])","v":"4098300SCHMAT705230West Valley Lease Reduction - WASITUS"},4098300,{"$f":"IF(tblSchMJune19[[#This Row],[Primary Account]]=4098200,\"SCHMAP\",IF(tblSchMJune19[[#This Row],[Primary Account]]=4098300,\"SCHMAT\",IF(tblSchMJune19[[#This Row],[Primary Account]]=4099200,\"SCHMDP\",IF(tblSchMJune19[[#This Row],[Primary Account]]=4099300,\"SCHMDT\"))))","v":"SCHMAT"},"705230","West Valley Lease Reduction - WA","WA",null,{"$f":"IF(OR(tblSchMJune19[[#This Row],[Alloc]]=\"IDU\",tblSchMJune19[[#This Row],[Alloc]]=\"OR\",tblSchMJune19[[#This Row],[Alloc]]=\"UT\",tblSchMJune19[[#This Row],[Alloc]]=\"WYU\",tblSchMJune19[[#This Row],[Alloc]]=\"WYP\",tblSchMJune19[[#This Row],[Alloc]]=\"CA\",tblSchMJune19[[#This Row],[Alloc]]=\"WA\"),\"SITUS\",tblSchMJune19[[#This Row],[Alloc]])","v":"SITUS"},{"$f":"INDEX(tblSchMLookup[FUNC],MATCH(tblSchMJune19[[#This Row],[Concat]],tblSchMLookup[Concat],0))","v":{"$error":"#N/A"}},{"$f":"IF(tblSchMJune19[[#This Row],[Total ($000)]]=0,\"NO\",IF(ISNA(tblSchMJune19[[#This Row],[FUNC]]),\"YES\",IF(_xlfn.ISFORMULA(tblSchMJune19[[#This Row],[FUNC]]),\"NO\",\"YES\")))","v":"NO"}]
[{"$f":"CONCATENATE(tblSchMJune19[[#This Row],[Primary Account]],tblSchMJune19[[#This Row],[Primary Name]],tblSchMJune19[[#This Row],[Secondary Acct]],tblSchMJune19[[#This Row],[Secondary  Name]],tblSchMJune19[[#This Row],[Alloc4FUNC]])","v":"4098300SCHMAT705231West Valley Lease Reduction - ORSITUS"},4098300,{"$f":"IF(tblSchMJune19[[#This Row],[Primary Account]]=4098200,\"SCHMAP\",IF(tblSchMJune19[[#This Row],[Primary Account]]=4098300,\"SCHMAT\",IF(tblSchMJune19[[#This Row],[Primary Account]]=4099200,\"SCHMDP\",IF(tblSchMJune19[[#This Row],[Primary Account]]=4099300,\"SCHMDT\"))))","v":"SCHMAT"},"705231","West Valley Lease Reduction - OR","OR",null,{"$f":"IF(OR(tblSchMJune19[[#This Row],[Alloc]]=\"IDU\",tblSchMJune19[[#This Row],[Alloc]]=\"OR\",tblSchMJune19[[#This Row],[Alloc]]=\"UT\",tblSchMJune19[[#This Row],[Alloc]]=\"WYU\",tblSchMJune19[[#This Row],[Alloc]]=\"WYP\",tblSchMJune19[[#This Row],[Alloc]]=\"CA\",tblSchMJune19[[#This Row],[Alloc]]=\"WA\"),\"SITUS\",tblSchMJune19[[#This Row],[Alloc]])","v":"SITUS"},{"$f":"INDEX(tblSchMLookup[FUNC],MATCH(tblSchMJune19[[#This Row],[Concat]],tblSchMLookup[Concat],0))","v":{"$error":"#N/A"}},{"$f":"IF(tblSchMJune19[[#This Row],[Total ($000)]]=0,\"NO\",IF(ISNA(tblSchMJune19[[#This Row],[FUNC]]),\"YES\",IF(_xlfn.ISFORMULA(tblSchMJune19[[#This Row],[FUNC]]),\"NO\",\"YES\")))","v":"NO"}]
[{"$f":"CONCATENATE(tblSchMJune19[[#This Row],[Primary Account]],tblSchMJune19[[#This Row],[Primary Name]],tblSchMJune19[[#This Row],[Secondary Acct]],tblSchMJune19[[#This Row],[Secondary  Name]],tblSchMJune19[[#This Row],[Alloc4FUNC]])","v":"4098300SCHMAT705232West Valley Lease Reduction - CASITUS"},4098300,{"$f":"IF(tblSchMJune19[[#This Row],[Primary Account]]=4098200,\"SCHMAP\",IF(tblSchMJune19[[#This Row],[Primary Account]]=4098300,\"SCHMAT\",IF(tblSchMJune19[[#This Row],[Primary Account]]=4099200,\"SCHMDP\",IF(tblSchMJune19[[#This Row],[Primary Account]]=4099300,\"SCHMDT\"))))","v":"SCHMAT"},"705232","West Valley Lease Reduction - CA","CA",null,{"$f":"IF(OR(tblSchMJune19[[#This Row],[Alloc]]=\"IDU\",tblSchMJune19[[#This Row],[Alloc]]=\"OR\",tblSchMJune19[[#This Row],[Alloc]]=\"UT\",tblSchMJune19[[#This Row],[Alloc]]=\"WYU\",tblSchMJune19[[#This Row],[Alloc]]=\"WYP\",tblSchMJune19[[#This Row],[Alloc]]=\"CA\",tblSchMJune19[[#This Row],[Alloc]]=\"WA\"),\"SITUS\",tblSchMJune19[[#This Row],[Alloc]])","v":"SITUS"},{"$f":"INDEX(tblSchMLookup[FUNC],MATCH(tblSchMJune19[[#This Row],[Concat]],tblSchMLookup[Concat],0))","v":{"$error":"#N/A"}},{"$f":"IF(tblSchMJune19[[#This Row],[Total ($000)]]=0,\"NO\",IF(ISNA(tblSchMJune19[[#This Row],[FUNC]]),\"YES\",IF(_xlfn.ISFORMULA(tblSchMJune19[[#This Row],[FUNC]]),\"NO\",\"YES\")))","v":"NO"}]
[{"$f":"CONCATENATE(tblSchMJune19[[#This Row],[Primary Account]],tblSchMJune19[[#This Row],[Primary Name]],tblSchMJune19[[#This Row],[Secondary Acct]],tblSchMJune19[[#This Row],[Secondary  Name]],tblSchMJune19[[#This Row],[Alloc4FUNC]])","v":"4098300SCHMAT705233West Valley Lease Reduction - IDSITUS"},4098300,{"$f":"IF(tblSchMJune19[[#This Row],[Primary Account]]=4098200,\"SCHMAP\",IF(tblSchMJune19[[#This Row],[Primary Account]]=4098300,\"SCHMAT\",IF(tblSchMJune19[[#This Row],[Primary Account]]=4099200,\"SCHMDP\",IF(tblSchMJune19[[#This Row],[Primary Account]]=4099300,\"SCHMDT\"))))","v":"SCHMAT"},"705233","West Valley Lease Reduction - ID","IDU",null,{"$f":"IF(OR(tblSchMJune19[[#This Row],[Alloc]]=\"IDU\",tblSchMJune19[[#This Row],[Alloc]]=\"OR\",tblSchMJune19[[#This Row],[Alloc]]=\"UT\",tblSchMJune19[[#This Row],[Alloc]]=\"WYU\",tblSchMJune19[[#This Row],[Alloc]]=\"WYP\",tblSchMJune19[[#This Row],[Alloc]]=\"CA\",tblSchMJune19[[#This Row],[Alloc]]=\"WA\"),\"SITUS\",tblSchMJune19[[#This Row],[Alloc]])","v":"SITUS"},{"$f":"INDEX(tblSchMLookup[FUNC],MATCH(tblSchMJune19[[#This Row],[Concat]],tblSchMLookup[Concat],0))","v":{"$error":"#N/A"}},{"$f":"IF(tblSchMJune19[[#This Row],[Total ($000)]]=0,\"NO\",IF(ISNA(tblSchMJune19[[#This Row],[FUNC]]),\"YES\",IF(_xlfn.ISFORMULA(tblSchMJune19[[#This Row],[FUNC]]),\"NO\",\"YES\")))","v":"NO"}]
[{"$f":"CONCATENATE(tblSchMJune19[[#This Row],[Primary Account]],tblSchMJune19[[#This Row],[Primary Name]],tblSchMJune19[[#This Row],[Secondary Acct]],tblSchMJune19[[#This Row],[Secondary  Name]],tblSchMJune19[[#This Row],[Alloc4FUNC]])","v":"4098300SCHMAT705234West Valley Lease Reduction - WYSITUS"},4098300,{"$f":"IF(tblSchMJune19[[#This Row],[Primary Account]]=4098200,\"SCHMAP\",IF(tblSchMJune19[[#This Row],[Primary Account]]=4098300,\"SCHMAT\",IF(tblSchMJune19[[#This Row],[Primary Account]]=4099200,\"SCHMDP\",IF(tblSchMJune19[[#This Row],[Primary Account]]=4099300,\"SCHMDT\"))))","v":"SCHMAT"},"705234","West Valley Lease Reduction - WY","WYU",null,{"$f":"IF(OR(tblSchMJune19[[#This Row],[Alloc]]=\"IDU\",tblSchMJune19[[#This Row],[Alloc]]=\"OR\",tblSchMJune19[[#This Row],[Alloc]]=\"UT\",tblSchMJune19[[#This Row],[Alloc]]=\"WYU\",tblSchMJune19[[#This Row],[Alloc]]=\"WYP\",tblSchMJune19[[#This Row],[Alloc]]=\"CA\",tblSchMJune19[[#This Row],[Alloc]]=\"WA\"),\"SITUS\",tblSchMJune19[[#This Row],[Alloc]])","v":"SITUS"},{"$f":"INDEX(tblSchMLookup[FUNC],MATCH(tblSchMJune19[[#This Row],[Concat]],tblSchMLookup[Concat],0))","v":{"$error":"#N/A"}},{"$f":"IF(tblSchMJune19[[#This Row],[Total ($000)]]=0,\"NO\",IF(ISNA(tblSchMJune19[[#This Row],[FUNC]]),\"YES\",IF(_xlfn.ISFORMULA(tblSchMJune19[[#This Row],[FUNC]]),\"NO\",\"YES\")))","v":"NO"}]
[{"$f":"CONCATENATE(tblSchMJune19[[#This Row],[Primary Account]],tblSchMJune19[[#This Row],[Primary Name]],tblSchMJune19[[#This Row],[Secondary Acct]],tblSchMJune19[[#This Row],[Secondary  Name]],tblSchMJune19[[#This Row],[Alloc4FUNC]])","v":"4098300SCHMAT705235West Valley Lease Reduction - UTSITUS"},4098300,{"$f":"IF(tblSchMJune19[[#This Row],[Primary Account]]=4098200,\"SCHMAP\",IF(tblSchMJune19[[#This Row],[Primary Account]]=4098300,\"SCHMAT\",IF(tblSchMJune19[[#This Row],[Primary Account]]=4099200,\"SCHMDP\",IF(tblSchMJune19[[#This Row],[Primary Account]]=4099300,\"SCHMDT\"))))","v":"SCHMAT"},"705235","West Valley Lease Reduction - UT","UT",null,{"$f":"IF(OR(tblSchMJune19[[#This Row],[Alloc]]=\"IDU\",tblSchMJune19[[#This Row],[Alloc]]=\"OR\",tblSchMJune19[[#This Row],[Alloc]]=\"UT\",tblSchMJune19[[#This Row],[Alloc]]=\"WYU\",tblSchMJune19[[#This Row],[Alloc]]=\"WYP\",tblSchMJune19[[#This Row],[Alloc]]=\"CA\",tblSchMJune19[[#This Row],[Alloc]]=\"WA\"),\"SITUS\",tblSchMJune19[[#This Row],[Alloc]])","v":"SITUS"},{"$f":"INDEX(tblSchMLookup[FUNC],MATCH(tblSchMJune19[[#This Row],[Concat]],tblSchMLookup[Concat],0))","v":{"$error":"#N/A"}},{"$f":"IF(tblSchMJune19[[#This Row],[Total ($000)]]=0,\"NO\",IF(ISNA(tblSchMJune19[[#This Row],[FUNC]]),\"YES\",IF(_xlfn.ISFORMULA(tblSchMJune19[[#This Row],[FUNC]]),\"NO\",\"YES\")))","v":"NO"}]
[{"$f":"CONCATENATE(tblSchMJune19[[#This Row],[Primary Account]],tblSchMJune19[[#This Row],[Primary Name]],tblSchMJune19[[#This Row],[Secondary Acct]],tblSchMJune19[[#This Row],[Secondary  Name]],tblSchMJune19[[#This Row],[Alloc4FUNC]])","v":"4098300SCHMAT705240CA Alternative Rate for Energy Program(COTHER"},4098300,{"$f":"IF(tblSchMJune19[[#This Row],[Primary Account]]=4098200,\"SCHMAP\",IF(tblSchMJune19[[#This Row],[Primary Account]]=4098300,\"SCHMAT\",IF(tblSchMJune19[[#This Row],[Primary Account]]=4099200,\"SCHMDP\",IF(tblSchMJune19[[#This Row],[Primary Account]]=4099300,\"SCHMDT\"))))","v":"SCHMAT"},"705240","CA Alternative Rate for Energy Program(C","OTHER",253.70237,{"$f":"IF(OR(tblSchMJune19[[#This Row],[Alloc]]=\"IDU\",tblSchMJune19[[#This Row],[Alloc]]=\"OR\",tblSchMJune19[[#This Row],[Alloc]]=\"UT\",tblSchMJune19[[#This Row],[Alloc]]=\"WYU\",tblSchMJune19[[#This Row],[Alloc]]=\"WYP\",tblSchMJune19[[#This Row],[Alloc]]=\"CA\",tblSchMJune19[[#This Row],[Alloc]]=\"WA\"),\"SITUS\",tblSchMJune19[[#This Row],[Alloc]])","v":"OTHER"},{"$f":"INDEX(tblSchMLookup[FUNC],MATCH(tblSchMJune19[[#This Row],[Concat]],tblSchMLookup[Concat],0))","v":"PTD"},{"$f":"IF(tblSchMJune19[[#This Row],[Total ($000)]]=0,\"NO\",IF(ISNA(tblSchMJune19[[#This Row],[FUNC]]),\"YES\",IF(_xlfn.ISFORMULA(tblSchMJune19[[#This Row],[FUNC]]),\"NO\",\"YES\")))","v":"NO"}]
[{"$f":"CONCATENATE(tblSchMJune19[[#This Row],[Primary Account]],tblSchMJune19[[#This Row],[Primary Name]],tblSchMJune19[[#This Row],[Secondary Acct]],tblSchMJune19[[#This Row],[Secondary  Name]],tblSchMJune19[[#This Row],[Alloc4FUNC]])","v":"4098300SCHMAT705241Reg Liability - CA California AlternativOTHER"},4098300,{"$f":"IF(tblSchMJune19[[#This Row],[Primary Account]]=4098200,\"SCHMAP\",IF(tblSchMJune19[[#This Row],[Primary Account]]=4098300,\"SCHMAT\",IF(tblSchMJune19[[#This Row],[Primary Account]]=4099200,\"SCHMDP\",IF(tblSchMJune19[[#This Row],[Primary Account]]=4099300,\"SCHMDT\"))))","v":"SCHMAT"},"705241","Reg Liability - CA California Alternativ","OTHER",null,{"$f":"IF(OR(tblSchMJune19[[#This Row],[Alloc]]=\"IDU\",tblSchMJune19[[#This Row],[Alloc]]=\"OR\",tblSchMJune19[[#This Row],[Alloc]]=\"UT\",tblSchMJune19[[#This Row],[Alloc]]=\"WYU\",tblSchMJune19[[#This Row],[Alloc]]=\"WYP\",tblSchMJune19[[#This Row],[Alloc]]=\"CA\",tblSchMJune19[[#This Row],[Alloc]]=\"WA\"),\"SITUS\",tblSchMJune19[[#This Row],[Alloc]])","v":"OTHER"},{"$f":"INDEX(tblSchMLookup[FUNC],MATCH(tblSchMJune19[[#This Row],[Concat]],tblSchMLookup[Concat],0))","v":{"$error":"#N/A"}},{"$f":"IF(tblSchMJune19[[#This Row],[Total ($000)]]=0,\"NO\",IF(ISNA(tblSchMJune19[[#This Row],[FUNC]]),\"YES\",IF(_xlfn.ISFORMULA(tblSchMJune19[[#This Row],[FUNC]]),\"NO\",\"YES\")))","v":"NO"}]
[{"$f":"CONCATENATE(tblSchMJune19[[#This Row],[Primary Account]],tblSchMJune19[[#This Row],[Primary Name]],tblSchMJune19[[#This Row],[Secondary Acct]],tblSchMJune19[[#This Row],[Secondary  Name]],tblSchMJune19[[#This Row],[Alloc4FUNC]])","v":"4098300SCHMAT705245REG LIABILITY - OR DIRECT ACCESS 5 YEAROTHER"},4098300,{"$f":"IF(tblSchMJune19[[#This Row],[Primary Account]]=4098200,\"SCHMAP\",IF(tblSchMJune19[[#This Row],[Primary Account]]=4098300,\"SCHMAT\",IF(tblSchMJune19[[#This Row],[Primary Account]]=4099200,\"SCHMDP\",IF(tblSchMJune19[[#This Row],[Primary Account]]=4099300,\"SCHMDT\"))))","v":"SCHMAT"},"705245","REG LIABILITY - OR DIRECT ACCESS 5 YEAR","OTHER",1865.3980899999999,{"$f":"IF(OR(tblSchMJune19[[#This Row],[Alloc]]=\"IDU\",tblSchMJune19[[#This Row],[Alloc]]=\"OR\",tblSchMJune19[[#This Row],[Alloc]]=\"UT\",tblSchMJune19[[#This Row],[Alloc]]=\"WYU\",tblSchMJune19[[#This Row],[Alloc]]=\"WYP\",tblSchMJune19[[#This Row],[Alloc]]=\"CA\",tblSchMJune19[[#This Row],[Alloc]]=\"WA\"),\"SITUS\",tblSchMJune19[[#This Row],[Alloc]])","v":"OTHER"},{"$f":"INDEX(tblSchMLookup[FUNC],MATCH(tblSchMJune19[[#This Row],[Concat]],tblSchMLookup[Concat],0))","v":"PTD"},{"$f":"IF(tblSchMJune19[[#This Row],[Total ($000)]]=0,\"NO\",IF(ISNA(tblSchMJune19[[#This Row],[FUNC]]),\"YES\",IF(_xlfn.ISFORMULA(tblSchMJune19[[#This Row],[FUNC]]),\"NO\",\"YES\")))","v":"NO"}]
[{"$f":"CONCATENATE(tblSchMJune19[[#This Row],[Primary Account]],tblSchMJune19[[#This Row],[Primary Name]],tblSchMJune19[[#This Row],[Secondary Acct]],tblSchMJune19[[#This Row],[Secondary  Name]],tblSchMJune19[[#This Row],[Alloc4FUNC]])","v":"4098300SCHMAT705250A&G Credit-WASITUS"},4098300,{"$f":"IF(tblSchMJune19[[#This Row],[Primary Account]]=4098200,\"SCHMAP\",IF(tblSchMJune19[[#This Row],[Primary Account]]=4098300,\"SCHMAT\",IF(tblSchMJune19[[#This Row],[Primary Account]]=4099200,\"SCHMDP\",IF(tblSchMJune19[[#This Row],[Primary Account]]=4099300,\"SCHMDT\"))))","v":"SCHMAT"},"705250","A&G Credit-WA","WA",null,{"$f":"IF(OR(tblSchMJune19[[#This Row],[Alloc]]=\"IDU\",tblSchMJune19[[#This Row],[Alloc]]=\"OR\",tblSchMJune19[[#This Row],[Alloc]]=\"UT\",tblSchMJune19[[#This Row],[Alloc]]=\"WYU\",tblSchMJune19[[#This Row],[Alloc]]=\"WYP\",tblSchMJune19[[#This Row],[Alloc]]=\"CA\",tblSchMJune19[[#This Row],[Alloc]]=\"WA\"),\"SITUS\",tblSchMJune19[[#This Row],[Alloc]])","v":"SITUS"},{"$f":"INDEX(tblSchMLookup[FUNC],MATCH(tblSchMJune19[[#This Row],[Concat]],tblSchMLookup[Concat],0))","v":{"$error":"#N/A"}},{"$f":"IF(tblSchMJune19[[#This Row],[Total ($000)]]=0,\"NO\",IF(ISNA(tblSchMJune19[[#This Row],[FUNC]]),\"YES\",IF(_xlfn.ISFORMULA(tblSchMJune19[[#This Row],[FUNC]]),\"NO\",\"YES\")))","v":"NO"}]
[{"$f":"CONCATENATE(tblSchMJune19[[#This Row],[Primary Account]],tblSchMJune19[[#This Row],[Primary Name]],tblSchMJune19[[#This Row],[Secondary Acct]],tblSchMJune19[[#This Row],[Secondary  Name]],tblSchMJune19[[#This Row],[Alloc4FUNC]])","v":"4098300SCHMAT705251A&G Credit-ORSITUS"},4098300,{"$f":"IF(tblSchMJune19[[#This Row],[Primary Account]]=4098200,\"SCHMAP\",IF(tblSchMJune19[[#This Row],[Primary Account]]=4098300,\"SCHMAT\",IF(tblSchMJune19[[#This Row],[Primary Account]]=4099200,\"SCHMDP\",IF(tblSchMJune19[[#This Row],[Primary Account]]=4099300,\"SCHMDT\"))))","v":"SCHMAT"},"705251","A&G Credit-OR","OR",null,{"$f":"IF(OR(tblSchMJune19[[#This Row],[Alloc]]=\"IDU\",tblSchMJune19[[#This Row],[Alloc]]=\"OR\",tblSchMJune19[[#This Row],[Alloc]]=\"UT\",tblSchMJune19[[#This Row],[Alloc]]=\"WYU\",tblSchMJune19[[#This Row],[Alloc]]=\"WYP\",tblSchMJune19[[#This Row],[Alloc]]=\"CA\",tblSchMJune19[[#This Row],[Alloc]]=\"WA\"),\"SITUS\",tblSchMJune19[[#This Row],[Alloc]])","v":"SITUS"},{"$f":"INDEX(tblSchMLookup[FUNC],MATCH(tblSchMJune19[[#This Row],[Concat]],tblSchMLookup[Concat],0))","v":{"$error":"#N/A"}},{"$f":"IF(tblSchMJune19[[#This Row],[Total ($000)]]=0,\"NO\",IF(ISNA(tblSchMJune19[[#This Row],[FUNC]]),\"YES\",IF(_xlfn.ISFORMULA(tblSchMJune19[[#This Row],[FUNC]]),\"NO\",\"YES\")))","v":"NO"}]
[{"$f":"CONCATENATE(tblSchMJune19[[#This Row],[Primary Account]],tblSchMJune19[[#This Row],[Primary Name]],tblSchMJune19[[#This Row],[Secondary Acct]],tblSchMJune19[[#This Row],[Secondary  Name]],tblSchMJune19[[#This Row],[Alloc4FUNC]])","v":"4098300SCHMAT705252A&G Credit-CASITUS"},4098300,{"$f":"IF(tblSchMJune19[[#This Row],[Primary Account]]=4098200,\"SCHMAP\",IF(tblSchMJune19[[#This Row],[Primary Account]]=4098300,\"SCHMAT\",IF(tblSchMJune19[[#This Row],[Primary Account]]=4099200,\"SCHMDP\",IF(tblSchMJune19[[#This Row],[Primary Account]]=4099300,\"SCHMDT\"))))","v":"SCHMAT"},"705252","A&G Credit-CA","CA",null,{"$f":"IF(OR(tblSchMJune19[[#This Row],[Alloc]]=\"IDU\",tblSchMJune19[[#This Row],[Alloc]]=\"OR\",tblSchMJune19[[#This Row],[Alloc]]=\"UT\",tblSchMJune19[[#This Row],[Alloc]]=\"WYU\",tblSchMJune19[[#This Row],[Alloc]]=\"WYP\",tblSchMJune19[[#This Row],[Alloc]]=\"CA\",tblSchMJune19[[#This Row],[Alloc]]=\"WA\"),\"SITUS\",tblSchMJune19[[#This Row],[Alloc]])","v":"SITUS"},{"$f":"INDEX(tblSchMLookup[FUNC],MATCH(tblSchMJune19[[#This Row],[Concat]],tblSchMLookup[Concat],0))","v":{"$error":"#N/A"}},{"$f":"IF(tblSchMJune19[[#This Row],[Total ($000)]]=0,\"NO\",IF(ISNA(tblSchMJune19[[#This Row],[FUNC]]),\"YES\",IF(_xlfn.ISFORMULA(tblSchMJune19[[#This Row],[FUNC]]),\"NO\",\"YES\")))","v":"NO"}]
[{"$f":"CONCATENATE(tblSchMJune19[[#This Row],[Primary Account]],tblSchMJune19[[#This Row],[Primary Name]],tblSchMJune19[[#This Row],[Secondary Acct]],tblSchMJune19[[#This Row],[Secondary  Name]],tblSchMJune19[[#This Row],[Alloc4FUNC]])","v":"4098300SCHMAT705253A&G Credit-IDSITUS"},4098300,{"$f":"IF(tblSchMJune19[[#This Row],[Primary Account]]=4098200,\"SCHMAP\",IF(tblSchMJune19[[#This Row],[Primary Account]]=4098300,\"SCHMAT\",IF(tblSchMJune19[[#This Row],[Primary Account]]=4099200,\"SCHMDP\",IF(tblSchMJune19[[#This Row],[Primary Account]]=4099300,\"SCHMDT\"))))","v":"SCHMAT"},"705253","A&G Credit-ID","IDU",null,{"$f":"IF(OR(tblSchMJune19[[#This Row],[Alloc]]=\"IDU\",tblSchMJune19[[#This Row],[Alloc]]=\"OR\",tblSchMJune19[[#This Row],[Alloc]]=\"UT\",tblSchMJune19[[#This Row],[Alloc]]=\"WYU\",tblSchMJune19[[#This Row],[Alloc]]=\"WYP\",tblSchMJune19[[#This Row],[Alloc]]=\"CA\",tblSchMJune19[[#This Row],[Alloc]]=\"WA\"),\"SITUS\",tblSchMJune19[[#This Row],[Alloc]])","v":"SITUS"},{"$f":"INDEX(tblSchMLookup[FUNC],MATCH(tblSchMJune19[[#This Row],[Concat]],tblSchMLookup[Concat],0))","v":{"$error":"#N/A"}},{"$f":"IF(tblSchMJune19[[#This Row],[Total ($000)]]=0,\"NO\",IF(ISNA(tblSchMJune19[[#This Row],[FUNC]]),\"YES\",IF(_xlfn.ISFORMULA(tblSchMJune19[[#This Row],[FUNC]]),\"NO\",\"YES\")))","v":"NO"}]
[{"$f":"CONCATENATE(tblSchMJune19[[#This Row],[Primary Account]],tblSchMJune19[[#This Row],[Primary Name]],tblSchMJune19[[#This Row],[Secondary Acct]],tblSchMJune19[[#This Row],[Secondary  Name]],tblSchMJune19[[#This Row],[Alloc4FUNC]])","v":"4098300SCHMAT705254A&G Credit-WYSITUS"},4098300,{"$f":"IF(tblSchMJune19[[#This Row],[Primary Account]]=4098200,\"SCHMAP\",IF(tblSchMJune19[[#This Row],[Primary Account]]=4098300,\"SCHMAT\",IF(tblSchMJune19[[#This Row],[Primary Account]]=4099200,\"SCHMDP\",IF(tblSchMJune19[[#This Row],[Primary Account]]=4099300,\"SCHMDT\"))))","v":"SCHMAT"},"705254","A&G Credit-WY","WYP",null,{"$f":"IF(OR(tblSchMJune19[[#This Row],[Alloc]]=\"IDU\",tblSchMJune19[[#This Row],[Alloc]]=\"OR\",tblSchMJune19[[#This Row],[Alloc]]=\"UT\",tblSchMJune19[[#This Row],[Alloc]]=\"WYU\",tblSchMJune19[[#This Row],[Alloc]]=\"WYP\",tblSchMJune19[[#This Row],[Alloc]]=\"CA\",tblSchMJune19[[#This Row],[Alloc]]=\"WA\"),\"SITUS\",tblSchMJune19[[#This Row],[Alloc]])","v":"SITUS"},{"$f":"INDEX(tblSchMLookup[FUNC],MATCH(tblSchMJune19[[#This Row],[Concat]],tblSchMLookup[Concat],0))","v":{"$error":"#N/A"}},{"$f":"IF(tblSchMJune19[[#This Row],[Total ($000)]]=0,\"NO\",IF(ISNA(tblSchMJune19[[#This Row],[FUNC]]),\"YES\",IF(_xlfn.ISFORMULA(tblSchMJune19[[#This Row],[FUNC]]),\"NO\",\"YES\")))","v":"NO"}]
[{"$f":"CONCATENATE(tblSchMJune19[[#This Row],[Primary Account]],tblSchMJune19[[#This Row],[Primary Name]],tblSchMJune19[[#This Row],[Secondary Acct]],tblSchMJune19[[#This Row],[Secondary  Name]],tblSchMJune19[[#This Row],[Alloc4FUNC]])","v":"4098300SCHMAT705260March 2006 Transition Plan costs-WASITUS"},4098300,{"$f":"IF(tblSchMJune19[[#This Row],[Primary Account]]=4098200,\"SCHMAP\",IF(tblSchMJune19[[#This Row],[Primary Account]]=4098300,\"SCHMAT\",IF(tblSchMJune19[[#This Row],[Primary Account]]=4099200,\"SCHMDP\",IF(tblSchMJune19[[#This Row],[Primary Account]]=4099300,\"SCHMDT\"))))","v":"SCHMAT"},"705260","March 2006 Transition Plan costs-WA","WA",null,{"$f":"IF(OR(tblSchMJune19[[#This Row],[Alloc]]=\"IDU\",tblSchMJune19[[#This Row],[Alloc]]=\"OR\",tblSchMJune19[[#This Row],[Alloc]]=\"UT\",tblSchMJune19[[#This Row],[Alloc]]=\"WYU\",tblSchMJune19[[#This Row],[Alloc]]=\"WYP\",tblSchMJune19[[#This Row],[Alloc]]=\"CA\",tblSchMJune19[[#This Row],[Alloc]]=\"WA\"),\"SITUS\",tblSchMJune19[[#This Row],[Alloc]])","v":"SITUS"},{"$f":"INDEX(tblSchMLookup[FUNC],MATCH(tblSchMJune19[[#This Row],[Concat]],tblSchMLookup[Concat],0))","v":{"$error":"#N/A"}},{"$f":"IF(tblSchMJune19[[#This Row],[Total ($000)]]=0,\"NO\",IF(ISNA(tblSchMJune19[[#This Row],[FUNC]]),\"YES\",IF(_xlfn.ISFORMULA(tblSchMJune19[[#This Row],[FUNC]]),\"NO\",\"YES\")))","v":"NO"}]
[{"$f":"CONCATENATE(tblSchMJune19[[#This Row],[Primary Account]],tblSchMJune19[[#This Row],[Primary Name]],tblSchMJune19[[#This Row],[Secondary Acct]],tblSchMJune19[[#This Row],[Secondary  Name]],tblSchMJune19[[#This Row],[Alloc4FUNC]])","v":"4098300SCHMAT705261Reg Liability - Sale of renewable EnergyOTHER"},4098300,{"$f":"IF(tblSchMJune19[[#This Row],[Primary Account]]=4098200,\"SCHMAP\",IF(tblSchMJune19[[#This Row],[Primary Account]]=4098300,\"SCHMAT\",IF(tblSchMJune19[[#This Row],[Primary Account]]=4099200,\"SCHMDP\",IF(tblSchMJune19[[#This Row],[Primary Account]]=4099300,\"SCHMDT\"))))","v":"SCHMAT"},"705261","Reg Liability - Sale of renewable Energy","OTHER",null,{"$f":"IF(OR(tblSchMJune19[[#This Row],[Alloc]]=\"IDU\",tblSchMJune19[[#This Row],[Alloc]]=\"OR\",tblSchMJune19[[#This Row],[Alloc]]=\"UT\",tblSchMJune19[[#This Row],[Alloc]]=\"WYU\",tblSchMJune19[[#This Row],[Alloc]]=\"WYP\",tblSchMJune19[[#This Row],[Alloc]]=\"CA\",tblSchMJune19[[#This Row],[Alloc]]=\"WA\"),\"SITUS\",tblSchMJune19[[#This Row],[Alloc]])","v":"OTHER"},{"$f":"INDEX(tblSchMLookup[FUNC],MATCH(tblSchMJune19[[#This Row],[Concat]],tblSchMLookup[Concat],0))","v":{"$error":"#N/A"}},{"$f":"IF(tblSchMJune19[[#This Row],[Total ($000)]]=0,\"NO\",IF(ISNA(tblSchMJune19[[#This Row],[FUNC]]),\"YES\",IF(_xlfn.ISFORMULA(tblSchMJune19[[#This Row],[FUNC]]),\"NO\",\"YES\")))","v":"NO"}]
[{"$f":"CONCATENATE(tblSchMJune19[[#This Row],[Primary Account]],tblSchMJune19[[#This Row],[Primary Name]],tblSchMJune19[[#This Row],[Secondary Acct]],tblSchMJune19[[#This Row],[Secondary  Name]],tblSchMJune19[[#This Row],[Alloc4FUNC]])","v":"4098300SCHMAT705262Reg Liability - Sale of REC's-IDOTHER"},4098300,{"$f":"IF(tblSchMJune19[[#This Row],[Primary Account]]=4098200,\"SCHMAP\",IF(tblSchMJune19[[#This Row],[Primary Account]]=4098300,\"SCHMAT\",IF(tblSchMJune19[[#This Row],[Primary Account]]=4099200,\"SCHMDP\",IF(tblSchMJune19[[#This Row],[Primary Account]]=4099300,\"SCHMDT\"))))","v":"SCHMAT"},"705262","Reg Liability - Sale of REC's-ID","OTHER",null,{"$f":"IF(OR(tblSchMJune19[[#This Row],[Alloc]]=\"IDU\",tblSchMJune19[[#This Row],[Alloc]]=\"OR\",tblSchMJune19[[#This Row],[Alloc]]=\"UT\",tblSchMJune19[[#This Row],[Alloc]]=\"WYU\",tblSchMJune19[[#This Row],[Alloc]]=\"WYP\",tblSchMJune19[[#This Row],[Alloc]]=\"CA\",tblSchMJune19[[#This Row],[Alloc]]=\"WA\"),\"SITUS\",tblSchMJune19[[#This Row],[Alloc]])","v":"OTHER"},{"$f":"INDEX(tblSchMLookup[FUNC],MATCH(tblSchMJune19[[#This Row],[Concat]],tblSchMLookup[Concat],0))","v":{"$error":"#N/A"}},{"$f":"IF(tblSchMJune19[[#This Row],[Total ($000)]]=0,\"NO\",IF(ISNA(tblSchMJune19[[#This Row],[FUNC]]),\"YES\",IF(_xlfn.ISFORMULA(tblSchMJune19[[#This Row],[FUNC]]),\"NO\",\"YES\")))","v":"NO"}]
[{"$f":"CONCATENATE(tblSchMJune19[[#This Row],[Primary Account]],tblSchMJune19[[#This Row],[Primary Name]],tblSchMJune19[[#This Row],[Secondary Acct]],tblSchMJune19[[#This Row],[Secondary  Name]],tblSchMJune19[[#This Row],[Alloc4FUNC]])","v":"4098300SCHMAT705263Reg Liability - Sale of REC's-WAOTHER"},4098300,{"$f":"IF(tblSchMJune19[[#This Row],[Primary Account]]=4098200,\"SCHMAP\",IF(tblSchMJune19[[#This Row],[Primary Account]]=4098300,\"SCHMAT\",IF(tblSchMJune19[[#This Row],[Primary Account]]=4099200,\"SCHMDP\",IF(tblSchMJune19[[#This Row],[Primary Account]]=4099300,\"SCHMDT\"))))","v":"SCHMAT"},"705263","Reg Liability - Sale of REC's-WA","OTHER",null,{"$f":"IF(OR(tblSchMJune19[[#This Row],[Alloc]]=\"IDU\",tblSchMJune19[[#This Row],[Alloc]]=\"OR\",tblSchMJune19[[#This Row],[Alloc]]=\"UT\",tblSchMJune19[[#This Row],[Alloc]]=\"WYU\",tblSchMJune19[[#This Row],[Alloc]]=\"WYP\",tblSchMJune19[[#This Row],[Alloc]]=\"CA\",tblSchMJune19[[#This Row],[Alloc]]=\"WA\"),\"SITUS\",tblSchMJune19[[#This Row],[Alloc]])","v":"OTHER"},{"$f":"INDEX(tblSchMLookup[FUNC],MATCH(tblSchMJune19[[#This Row],[Concat]],tblSchMLookup[Concat],0))","v":"P"},{"$f":"IF(tblSchMJune19[[#This Row],[Total ($000)]]=0,\"NO\",IF(ISNA(tblSchMJune19[[#This Row],[FUNC]]),\"YES\",IF(_xlfn.ISFORMULA(tblSchMJune19[[#This Row],[FUNC]]),\"NO\",\"YES\")))","v":"NO"}]
[{"$f":"CONCATENATE(tblSchMJune19[[#This Row],[Primary Account]],tblSchMJune19[[#This Row],[Primary Name]],tblSchMJune19[[#This Row],[Secondary Acct]],tblSchMJune19[[#This Row],[Secondary  Name]],tblSchMJune19[[#This Row],[Alloc4FUNC]])","v":"4098300SCHMAT705265Reg Liab - OR Energy Conservation ChargeOTHER"},4098300,{"$f":"IF(tblSchMJune19[[#This Row],[Primary Account]]=4098200,\"SCHMAP\",IF(tblSchMJune19[[#This Row],[Primary Account]]=4098300,\"SCHMAT\",IF(tblSchMJune19[[#This Row],[Primary Account]]=4099200,\"SCHMDP\",IF(tblSchMJune19[[#This Row],[Primary Account]]=4099300,\"SCHMDT\"))))","v":"SCHMAT"},"705265","Reg Liab - OR Energy Conservation Charge","OTHER",null,{"$f":"IF(OR(tblSchMJune19[[#This Row],[Alloc]]=\"IDU\",tblSchMJune19[[#This Row],[Alloc]]=\"OR\",tblSchMJune19[[#This Row],[Alloc]]=\"UT\",tblSchMJune19[[#This Row],[Alloc]]=\"WYU\",tblSchMJune19[[#This Row],[Alloc]]=\"WYP\",tblSchMJune19[[#This Row],[Alloc]]=\"CA\",tblSchMJune19[[#This Row],[Alloc]]=\"WA\"),\"SITUS\",tblSchMJune19[[#This Row],[Alloc]])","v":"OTHER"},{"$f":"INDEX(tblSchMLookup[FUNC],MATCH(tblSchMJune19[[#This Row],[Concat]],tblSchMLookup[Concat],0))","v":{"$error":"#N/A"}},{"$f":"IF(tblSchMJune19[[#This Row],[Total ($000)]]=0,\"NO\",IF(ISNA(tblSchMJune19[[#This Row],[FUNC]]),\"YES\",IF(_xlfn.ISFORMULA(tblSchMJune19[[#This Row],[FUNC]]),\"NO\",\"YES\")))","v":"NO"}]
[{"$f":"CONCATENATE(tblSchMJune19[[#This Row],[Primary Account]],tblSchMJune19[[#This Row],[Primary Name]],tblSchMJune19[[#This Row],[Secondary Acct]],tblSchMJune19[[#This Row],[Secondary  Name]],tblSchMJune19[[#This Row],[Alloc4FUNC]])","v":"4098300SCHMAT705266Reg Liability - Energy Savings AssistancOTHER"},4098300,{"$f":"IF(tblSchMJune19[[#This Row],[Primary Account]]=4098200,\"SCHMAP\",IF(tblSchMJune19[[#This Row],[Primary Account]]=4098300,\"SCHMAT\",IF(tblSchMJune19[[#This Row],[Primary Account]]=4099200,\"SCHMDP\",IF(tblSchMJune19[[#This Row],[Primary Account]]=4099300,\"SCHMDT\"))))","v":"SCHMAT"},"705266","Reg Liability - Energy Savings Assistanc","OTHER",51.026310000000002,{"$f":"IF(OR(tblSchMJune19[[#This Row],[Alloc]]=\"IDU\",tblSchMJune19[[#This Row],[Alloc]]=\"OR\",tblSchMJune19[[#This Row],[Alloc]]=\"UT\",tblSchMJune19[[#This Row],[Alloc]]=\"WYU\",tblSchMJune19[[#This Row],[Alloc]]=\"WYP\",tblSchMJune19[[#This Row],[Alloc]]=\"CA\",tblSchMJune19[[#This Row],[Alloc]]=\"WA\"),\"SITUS\",tblSchMJune19[[#This Row],[Alloc]])","v":"OTHER"},{"$f":"INDEX(tblSchMLookup[FUNC],MATCH(tblSchMJune19[[#This Row],[Concat]],tblSchMLookup[Concat],0))","v":"CUST"},{"$f":"IF(tblSchMJune19[[#This Row],[Total ($000)]]=0,\"NO\",IF(ISNA(tblSchMJune19[[#This Row],[FUNC]]),\"YES\",IF(_xlfn.ISFORMULA(tblSchMJune19[[#This Row],[FUNC]]),\"NO\",\"YES\")))","v":"NO"}]
[{"$f":"CONCATENATE(tblSchMJune19[[#This Row],[Primary Account]],tblSchMJune19[[#This Row],[Primary Name]],tblSchMJune19[[#This Row],[Secondary Acct]],tblSchMJune19[[#This Row],[Secondary  Name]],tblSchMJune19[[#This Row],[Alloc4FUNC]])","v":"4098300SCHMAT705267Reg Liability - WA Decoupling MechanismOTHER"},4098300,{"$f":"IF(tblSchMJune19[[#This Row],[Primary Account]]=4098200,\"SCHMAP\",IF(tblSchMJune19[[#This Row],[Primary Account]]=4098300,\"SCHMAT\",IF(tblSchMJune19[[#This Row],[Primary Account]]=4099200,\"SCHMDP\",IF(tblSchMJune19[[#This Row],[Primary Account]]=4099300,\"SCHMDT\"))))","v":"SCHMAT"},"705267","Reg Liability - WA Decoupling Mechanism","OTHER",-452.2176,{"$f":"IF(OR(tblSchMJune19[[#This Row],[Alloc]]=\"IDU\",tblSchMJune19[[#This Row],[Alloc]]=\"OR\",tblSchMJune19[[#This Row],[Alloc]]=\"UT\",tblSchMJune19[[#This Row],[Alloc]]=\"WYU\",tblSchMJune19[[#This Row],[Alloc]]=\"WYP\",tblSchMJune19[[#This Row],[Alloc]]=\"CA\",tblSchMJune19[[#This Row],[Alloc]]=\"WA\"),\"SITUS\",tblSchMJune19[[#This Row],[Alloc]])","v":"OTHER"},{"$f":"INDEX(tblSchMLookup[FUNC],MATCH(tblSchMJune19[[#This Row],[Concat]],tblSchMLookup[Concat],0))","v":"PTD"},{"$f":"IF(tblSchMJune19[[#This Row],[Total ($000)]]=0,\"NO\",IF(ISNA(tblSchMJune19[[#This Row],[FUNC]]),\"YES\",IF(_xlfn.ISFORMULA(tblSchMJune19[[#This Row],[FUNC]]),\"NO\",\"YES\")))","v":"NO"}]
[{"$f":"CONCATENATE(tblSchMJune19[[#This Row],[Primary Account]],tblSchMJune19[[#This Row],[Primary Name]],tblSchMJune19[[#This Row],[Secondary Acct]],tblSchMJune19[[#This Row],[Secondary  Name]],tblSchMJune19[[#This Row],[Alloc4FUNC]])","v":"4098300SCHMAT705301Reg Liability - OR 2010 Protocol DefSITUS"},4098300,{"$f":"IF(tblSchMJune19[[#This Row],[Primary Account]]=4098200,\"SCHMAP\",IF(tblSchMJune19[[#This Row],[Primary Account]]=4098300,\"SCHMAT\",IF(tblSchMJune19[[#This Row],[Primary Account]]=4099200,\"SCHMDP\",IF(tblSchMJune19[[#This Row],[Primary Account]]=4099300,\"SCHMDT\"))))","v":"SCHMAT"},"705301","Reg Liability - OR 2010 Protocol Def","OR",null,{"$f":"IF(OR(tblSchMJune19[[#This Row],[Alloc]]=\"IDU\",tblSchMJune19[[#This Row],[Alloc]]=\"OR\",tblSchMJune19[[#This Row],[Alloc]]=\"UT\",tblSchMJune19[[#This Row],[Alloc]]=\"WYU\",tblSchMJune19[[#This Row],[Alloc]]=\"WYP\",tblSchMJune19[[#This Row],[Alloc]]=\"CA\",tblSchMJune19[[#This Row],[Alloc]]=\"WA\"),\"SITUS\",tblSchMJune19[[#This Row],[Alloc]])","v":"SITUS"},{"$f":"INDEX(tblSchMLookup[FUNC],MATCH(tblSchMJune19[[#This Row],[Concat]],tblSchMLookup[Concat],0))","v":{"$error":"#N/A"}},{"$f":"IF(tblSchMJune19[[#This Row],[Total ($000)]]=0,\"NO\",IF(ISNA(tblSchMJune19[[#This Row],[FUNC]]),\"YES\",IF(_xlfn.ISFORMULA(tblSchMJune19[[#This Row],[FUNC]]),\"NO\",\"YES\")))","v":"NO"}]
[{"$f":"CONCATENATE(tblSchMJune19[[#This Row],[Primary Account]],tblSchMJune19[[#This Row],[Primary Name]],tblSchMJune19[[#This Row],[Secondary Acct]],tblSchMJune19[[#This Row],[Secondary  Name]],tblSchMJune19[[#This Row],[Alloc4FUNC]])","v":"4098300SCHMAT705305Reg Liability-CA Gain on Sale of AssetSITUS"},4098300,{"$f":"IF(tblSchMJune19[[#This Row],[Primary Account]]=4098200,\"SCHMAP\",IF(tblSchMJune19[[#This Row],[Primary Account]]=4098300,\"SCHMAT\",IF(tblSchMJune19[[#This Row],[Primary Account]]=4099200,\"SCHMDP\",IF(tblSchMJune19[[#This Row],[Primary Account]]=4099300,\"SCHMDT\"))))","v":"SCHMAT"},"705305","Reg Liability-CA Gain on Sale of Asset","CA",null,{"$f":"IF(OR(tblSchMJune19[[#This Row],[Alloc]]=\"IDU\",tblSchMJune19[[#This Row],[Alloc]]=\"OR\",tblSchMJune19[[#This Row],[Alloc]]=\"UT\",tblSchMJune19[[#This Row],[Alloc]]=\"WYU\",tblSchMJune19[[#This Row],[Alloc]]=\"WYP\",tblSchMJune19[[#This Row],[Alloc]]=\"CA\",tblSchMJune19[[#This Row],[Alloc]]=\"WA\"),\"SITUS\",tblSchMJune19[[#This Row],[Alloc]])","v":"SITUS"},{"$f":"INDEX(tblSchMLookup[FUNC],MATCH(tblSchMJune19[[#This Row],[Concat]],tblSchMLookup[Concat],0))","v":{"$error":"#N/A"}},{"$f":"IF(tblSchMJune19[[#This Row],[Total ($000)]]=0,\"NO\",IF(ISNA(tblSchMJune19[[#This Row],[FUNC]]),\"YES\",IF(_xlfn.ISFORMULA(tblSchMJune19[[#This Row],[FUNC]]),\"NO\",\"YES\")))","v":"NO"}]
[{"$f":"CONCATENATE(tblSchMJune19[[#This Row],[Primary Account]],tblSchMJune19[[#This Row],[Primary Name]],tblSchMJune19[[#This Row],[Secondary Acct]],tblSchMJune19[[#This Row],[Secondary  Name]],tblSchMJune19[[#This Row],[Alloc4FUNC]])","v":"4098300SCHMAT705336Reg Liability - Sale of Renewable EnergyOTHER"},4098300,{"$f":"IF(tblSchMJune19[[#This Row],[Primary Account]]=4098200,\"SCHMAP\",IF(tblSchMJune19[[#This Row],[Primary Account]]=4098300,\"SCHMAT\",IF(tblSchMJune19[[#This Row],[Primary Account]]=4099200,\"SCHMDP\",IF(tblSchMJune19[[#This Row],[Primary Account]]=4099300,\"SCHMDT\"))))","v":"SCHMAT"},"705336","Reg Liability - Sale of Renewable Energy","OTHER",302.88785999999999,{"$f":"IF(OR(tblSchMJune19[[#This Row],[Alloc]]=\"IDU\",tblSchMJune19[[#This Row],[Alloc]]=\"OR\",tblSchMJune19[[#This Row],[Alloc]]=\"UT\",tblSchMJune19[[#This Row],[Alloc]]=\"WYU\",tblSchMJune19[[#This Row],[Alloc]]=\"WYP\",tblSchMJune19[[#This Row],[Alloc]]=\"CA\",tblSchMJune19[[#This Row],[Alloc]]=\"WA\"),\"SITUS\",tblSchMJune19[[#This Row],[Alloc]])","v":"OTHER"},{"$f":"INDEX(tblSchMLookup[FUNC],MATCH(tblSchMJune19[[#This Row],[Concat]],tblSchMLookup[Concat],0))","v":"P"},{"$f":"IF(tblSchMJune19[[#This Row],[Total ($000)]]=0,\"NO\",IF(ISNA(tblSchMJune19[[#This Row],[FUNC]]),\"YES\",IF(_xlfn.ISFORMULA(tblSchMJune19[[#This Row],[FUNC]]),\"NO\",\"YES\")))","v":"NO"}]
[{"$f":"CONCATENATE(tblSchMJune19[[#This Row],[Primary Account]],tblSchMJune19[[#This Row],[Primary Name]],tblSchMJune19[[#This Row],[Secondary Acct]],tblSchMJune19[[#This Row],[Secondary  Name]],tblSchMJune19[[#This Row],[Alloc4FUNC]])","v":"4098300SCHMAT705337Regulatory Liability - Sale of RenewableOTHER"},4098300,{"$f":"IF(tblSchMJune19[[#This Row],[Primary Account]]=4098200,\"SCHMAP\",IF(tblSchMJune19[[#This Row],[Primary Account]]=4098300,\"SCHMAT\",IF(tblSchMJune19[[#This Row],[Primary Account]]=4099200,\"SCHMDP\",IF(tblSchMJune19[[#This Row],[Primary Account]]=4099300,\"SCHMDT\"))))","v":"SCHMAT"},"705337","Regulatory Liability - Sale of Renewable","OTHER",null,{"$f":"IF(OR(tblSchMJune19[[#This Row],[Alloc]]=\"IDU\",tblSchMJune19[[#This Row],[Alloc]]=\"OR\",tblSchMJune19[[#This Row],[Alloc]]=\"UT\",tblSchMJune19[[#This Row],[Alloc]]=\"WYU\",tblSchMJune19[[#This Row],[Alloc]]=\"WYP\",tblSchMJune19[[#This Row],[Alloc]]=\"CA\",tblSchMJune19[[#This Row],[Alloc]]=\"WA\"),\"SITUS\",tblSchMJune19[[#This Row],[Alloc]])","v":"OTHER"},{"$f":"INDEX(tblSchMLookup[FUNC],MATCH(tblSchMJune19[[#This Row],[Concat]],tblSchMLookup[Concat],0))","v":{"$error":"#N/A"}},{"$f":"IF(tblSchMJune19[[#This Row],[Total ($000)]]=0,\"NO\",IF(ISNA(tblSchMJune19[[#This Row],[FUNC]]),\"YES\",IF(_xlfn.ISFORMULA(tblSchMJune19[[#This Row],[FUNC]]),\"NO\",\"YES\")))","v":"NO"}]
[{"$f":"CONCATENATE(tblSchMJune19[[#This Row],[Primary Account]],tblSchMJune19[[#This Row],[Primary Name]],tblSchMJune19[[#This Row],[Secondary Acct]],tblSchMJune19[[#This Row],[Secondary  Name]],tblSchMJune19[[#This Row],[Alloc4FUNC]])","v":"4098300SCHMAT705340Reg Liability - Excess Income Tax DeferrOTHER"},4098300,{"$f":"IF(tblSchMJune19[[#This Row],[Primary Account]]=4098200,\"SCHMAP\",IF(tblSchMJune19[[#This Row],[Primary Account]]=4098300,\"SCHMAT\",IF(tblSchMJune19[[#This Row],[Primary Account]]=4099200,\"SCHMDP\",IF(tblSchMJune19[[#This Row],[Primary Account]]=4099300,\"SCHMDT\"))))","v":"SCHMAT"},"705340","Reg Liability - Excess Income Tax Deferr","OTHER",2727.97001,{"$f":"IF(OR(tblSchMJune19[[#This Row],[Alloc]]=\"IDU\",tblSchMJune19[[#This Row],[Alloc]]=\"OR\",tblSchMJune19[[#This Row],[Alloc]]=\"UT\",tblSchMJune19[[#This Row],[Alloc]]=\"WYU\",tblSchMJune19[[#This Row],[Alloc]]=\"WYP\",tblSchMJune19[[#This Row],[Alloc]]=\"CA\",tblSchMJune19[[#This Row],[Alloc]]=\"WA\"),\"SITUS\",tblSchMJune19[[#This Row],[Alloc]])","v":"OTHER"},{"$f":"INDEX(tblSchMLookup[FUNC],MATCH(tblSchMJune19[[#This Row],[Concat]],tblSchMLookup[Concat],0))","v":"GP"},{"$f":"IF(tblSchMJune19[[#This Row],[Total ($000)]]=0,\"NO\",IF(ISNA(tblSchMJune19[[#This Row],[FUNC]]),\"YES\",IF(_xlfn.ISFORMULA(tblSchMJune19[[#This Row],[FUNC]]),\"NO\",\"YES\")))","v":"NO"}]
[{"$f":"CONCATENATE(tblSchMJune19[[#This Row],[Primary Account]],tblSchMJune19[[#This Row],[Primary Name]],tblSchMJune19[[#This Row],[Secondary Acct]],tblSchMJune19[[#This Row],[Secondary  Name]],tblSchMJune19[[#This Row],[Alloc4FUNC]])","v":"4098300SCHMAT705341Reg Liability - Excess Income Tax DeferrOTHER"},4098300,{"$f":"IF(tblSchMJune19[[#This Row],[Primary Account]]=4098200,\"SCHMAP\",IF(tblSchMJune19[[#This Row],[Primary Account]]=4098300,\"SCHMAT\",IF(tblSchMJune19[[#This Row],[Primary Account]]=4099200,\"SCHMDP\",IF(tblSchMJune19[[#This Row],[Primary Account]]=4099300,\"SCHMDT\"))))","v":"SCHMAT"},"705341","Reg Liability - Excess Income Tax Deferr","OTHER",-1037.2789700000001,{"$f":"IF(OR(tblSchMJune19[[#This Row],[Alloc]]=\"IDU\",tblSchMJune19[[#This Row],[Alloc]]=\"OR\",tblSchMJune19[[#This Row],[Alloc]]=\"UT\",tblSchMJune19[[#This Row],[Alloc]]=\"WYU\",tblSchMJune19[[#This Row],[Alloc]]=\"WYP\",tblSchMJune19[[#This Row],[Alloc]]=\"CA\",tblSchMJune19[[#This Row],[Alloc]]=\"WA\"),\"SITUS\",tblSchMJune19[[#This Row],[Alloc]])","v":"OTHER"},{"$f":"INDEX(tblSchMLookup[FUNC],MATCH(tblSchMJune19[[#This Row],[Concat]],tblSchMLookup[Concat],0))","v":"GP"},{"$f":"IF(tblSchMJune19[[#This Row],[Total ($000)]]=0,\"NO\",IF(ISNA(tblSchMJune19[[#This Row],[FUNC]]),\"YES\",IF(_xlfn.ISFORMULA(tblSchMJune19[[#This Row],[FUNC]]),\"NO\",\"YES\")))","v":"NO"}]
[{"$f":"CONCATENATE(tblSchMJune19[[#This Row],[Primary Account]],tblSchMJune19[[#This Row],[Primary Name]],tblSchMJune19[[#This Row],[Secondary Acct]],tblSchMJune19[[#This Row],[Secondary  Name]],tblSchMJune19[[#This Row],[Alloc4FUNC]])","v":"4098300SCHMAT705342Reg Liability - Excess Income Tax DeferrOTHER"},4098300,{"$f":"IF(tblSchMJune19[[#This Row],[Primary Account]]=4098200,\"SCHMAP\",IF(tblSchMJune19[[#This Row],[Primary Account]]=4098300,\"SCHMAT\",IF(tblSchMJune19[[#This Row],[Primary Account]]=4099200,\"SCHMDP\",IF(tblSchMJune19[[#This Row],[Primary Account]]=4099300,\"SCHMDT\"))))","v":"SCHMAT"},"705342","Reg Liability - Excess Income Tax Deferr","OTHER",22246.12515,{"$f":"IF(OR(tblSchMJune19[[#This Row],[Alloc]]=\"IDU\",tblSchMJune19[[#This Row],[Alloc]]=\"OR\",tblSchMJune19[[#This Row],[Alloc]]=\"UT\",tblSchMJune19[[#This Row],[Alloc]]=\"WYU\",tblSchMJune19[[#This Row],[Alloc]]=\"WYP\",tblSchMJune19[[#This Row],[Alloc]]=\"CA\",tblSchMJune19[[#This Row],[Alloc]]=\"WA\"),\"SITUS\",tblSchMJune19[[#This Row],[Alloc]])","v":"OTHER"},{"$f":"INDEX(tblSchMLookup[FUNC],MATCH(tblSchMJune19[[#This Row],[Concat]],tblSchMLookup[Concat],0))","v":"GP"},{"$f":"IF(tblSchMJune19[[#This Row],[Total ($000)]]=0,\"NO\",IF(ISNA(tblSchMJune19[[#This Row],[FUNC]]),\"YES\",IF(_xlfn.ISFORMULA(tblSchMJune19[[#This Row],[FUNC]]),\"NO\",\"YES\")))","v":"NO"}]
[{"$f":"CONCATENATE(tblSchMJune19[[#This Row],[Primary Account]],tblSchMJune19[[#This Row],[Primary Name]],tblSchMJune19[[#This Row],[Secondary Acct]],tblSchMJune19[[#This Row],[Secondary  Name]],tblSchMJune19[[#This Row],[Alloc4FUNC]])","v":"4098300SCHMAT705343Reg Liability - Excess Income Tax DeferrOTHER"},4098300,{"$f":"IF(tblSchMJune19[[#This Row],[Primary Account]]=4098200,\"SCHMAP\",IF(tblSchMJune19[[#This Row],[Primary Account]]=4098300,\"SCHMAT\",IF(tblSchMJune19[[#This Row],[Primary Account]]=4099200,\"SCHMDP\",IF(tblSchMJune19[[#This Row],[Primary Account]]=4099300,\"SCHMDT\"))))","v":"SCHMAT"},"705343","Reg Liability - Excess Income Tax Deferr","OTHER",-29447.312430000002,{"$f":"IF(OR(tblSchMJune19[[#This Row],[Alloc]]=\"IDU\",tblSchMJune19[[#This Row],[Alloc]]=\"OR\",tblSchMJune19[[#This Row],[Alloc]]=\"UT\",tblSchMJune19[[#This Row],[Alloc]]=\"WYU\",tblSchMJune19[[#This Row],[Alloc]]=\"WYP\",tblSchMJune19[[#This Row],[Alloc]]=\"CA\",tblSchMJune19[[#This Row],[Alloc]]=\"WA\"),\"SITUS\",tblSchMJune19[[#This Row],[Alloc]])","v":"OTHER"},{"$f":"INDEX(tblSchMLookup[FUNC],MATCH(tblSchMJune19[[#This Row],[Concat]],tblSchMLookup[Concat],0))","v":"GP"},{"$f":"IF(tblSchMJune19[[#This Row],[Total ($000)]]=0,\"NO\",IF(ISNA(tblSchMJune19[[#This Row],[FUNC]]),\"YES\",IF(_xlfn.ISFORMULA(tblSchMJune19[[#This Row],[FUNC]]),\"NO\",\"YES\")))","v":"NO"}]
[{"$f":"CONCATENATE(tblSchMJune19[[#This Row],[Primary Account]],tblSchMJune19[[#This Row],[Primary Name]],tblSchMJune19[[#This Row],[Secondary Acct]],tblSchMJune19[[#This Row],[Secondary  Name]],tblSchMJune19[[#This Row],[Alloc4FUNC]])","v":"4098300SCHMAT705344Reg Liability - Excess Income Tax DeferrOTHER"},4098300,{"$f":"IF(tblSchMJune19[[#This Row],[Primary Account]]=4098200,\"SCHMAP\",IF(tblSchMJune19[[#This Row],[Primary Account]]=4098300,\"SCHMAT\",IF(tblSchMJune19[[#This Row],[Primary Account]]=4099200,\"SCHMDP\",IF(tblSchMJune19[[#This Row],[Primary Account]]=4099300,\"SCHMDT\"))))","v":"SCHMAT"},"705344","Reg Liability - Excess Income Tax Deferr","OTHER",136.65737999999999,{"$f":"IF(OR(tblSchMJune19[[#This Row],[Alloc]]=\"IDU\",tblSchMJune19[[#This Row],[Alloc]]=\"OR\",tblSchMJune19[[#This Row],[Alloc]]=\"UT\",tblSchMJune19[[#This Row],[Alloc]]=\"WYU\",tblSchMJune19[[#This Row],[Alloc]]=\"WYP\",tblSchMJune19[[#This Row],[Alloc]]=\"CA\",tblSchMJune19[[#This Row],[Alloc]]=\"WA\"),\"SITUS\",tblSchMJune19[[#This Row],[Alloc]])","v":"OTHER"},{"$f":"INDEX(tblSchMLookup[FUNC],MATCH(tblSchMJune19[[#This Row],[Concat]],tblSchMLookup[Concat],0))","v":"GP"},{"$f":"IF(tblSchMJune19[[#This Row],[Total ($000)]]=0,\"NO\",IF(ISNA(tblSchMJune19[[#This Row],[FUNC]]),\"YES\",IF(_xlfn.ISFORMULA(tblSchMJune19[[#This Row],[FUNC]]),\"NO\",\"YES\")))","v":"NO"}]
[{"$f":"CONCATENATE(tblSchMJune19[[#This Row],[Primary Account]],tblSchMJune19[[#This Row],[Primary Name]],tblSchMJune19[[#This Row],[Secondary Acct]],tblSchMJune19[[#This Row],[Secondary  Name]],tblSchMJune19[[#This Row],[Alloc4FUNC]])","v":"4098300SCHMAT705345Reg Liability - Excess Income Tax DeferrOTHER"},4098300,{"$f":"IF(tblSchMJune19[[#This Row],[Primary Account]]=4098200,\"SCHMAP\",IF(tblSchMJune19[[#This Row],[Primary Account]]=4098300,\"SCHMAT\",IF(tblSchMJune19[[#This Row],[Primary Account]]=4099200,\"SCHMDP\",IF(tblSchMJune19[[#This Row],[Primary Account]]=4099300,\"SCHMDT\"))))","v":"SCHMAT"},"705345","Reg Liability - Excess Income Tax Deferr","OTHER",-9660.6337500000009,{"$f":"IF(OR(tblSchMJune19[[#This Row],[Alloc]]=\"IDU\",tblSchMJune19[[#This Row],[Alloc]]=\"OR\",tblSchMJune19[[#This Row],[Alloc]]=\"UT\",tblSchMJune19[[#This Row],[Alloc]]=\"WYU\",tblSchMJune19[[#This Row],[Alloc]]=\"WYP\",tblSchMJune19[[#This Row],[Alloc]]=\"CA\",tblSchMJune19[[#This Row],[Alloc]]=\"WA\"),\"SITUS\",tblSchMJune19[[#This Row],[Alloc]])","v":"OTHER"},{"$f":"INDEX(tblSchMLookup[FUNC],MATCH(tblSchMJune19[[#This Row],[Concat]],tblSchMLookup[Concat],0))","v":"GP"},{"$f":"IF(tblSchMJune19[[#This Row],[Total ($000)]]=0,\"NO\",IF(ISNA(tblSchMJune19[[#This Row],[FUNC]]),\"YES\",IF(_xlfn.ISFORMULA(tblSchMJune19[[#This Row],[FUNC]]),\"NO\",\"YES\")))","v":"NO"}]
[{"$f":"CONCATENATE(tblSchMJune19[[#This Row],[Primary Account]],tblSchMJune19[[#This Row],[Primary Name]],tblSchMJune19[[#This Row],[Secondary Acct]],tblSchMJune19[[#This Row],[Secondary  Name]],tblSchMJune19[[#This Row],[Alloc4FUNC]])","v":"4098300SCHMAT705400Reg Liability - OR Injuries & Damages ReSITUS"},4098300,{"$f":"IF(tblSchMJune19[[#This Row],[Primary Account]]=4098200,\"SCHMAP\",IF(tblSchMJune19[[#This Row],[Primary Account]]=4098300,\"SCHMAT\",IF(tblSchMJune19[[#This Row],[Primary Account]]=4099200,\"SCHMDP\",IF(tblSchMJune19[[#This Row],[Primary Account]]=4099300,\"SCHMDT\"))))","v":"SCHMAT"},"705400","Reg Liability - OR Injuries & Damages Re","OR",-21.50309,{"$f":"IF(OR(tblSchMJune19[[#This Row],[Alloc]]=\"IDU\",tblSchMJune19[[#This Row],[Alloc]]=\"OR\",tblSchMJune19[[#This Row],[Alloc]]=\"UT\",tblSchMJune19[[#This Row],[Alloc]]=\"WYU\",tblSchMJune19[[#This Row],[Alloc]]=\"WYP\",tblSchMJune19[[#This Row],[Alloc]]=\"CA\",tblSchMJune19[[#This Row],[Alloc]]=\"WA\"),\"SITUS\",tblSchMJune19[[#This Row],[Alloc]])","v":"SITUS"},{"$f":"INDEX(tblSchMLookup[FUNC],MATCH(tblSchMJune19[[#This Row],[Concat]],tblSchMLookup[Concat],0))","v":"LABOR"},{"$f":"IF(tblSchMJune19[[#This Row],[Total ($000)]]=0,\"NO\",IF(ISNA(tblSchMJune19[[#This Row],[FUNC]]),\"YES\",IF(_xlfn.ISFORMULA(tblSchMJune19[[#This Row],[FUNC]]),\"NO\",\"YES\")))","v":"NO"}]
[{"$f":"CONCATENATE(tblSchMJune19[[#This Row],[Primary Account]],tblSchMJune19[[#This Row],[Primary Name]],tblSchMJune19[[#This Row],[Secondary Acct]],tblSchMJune19[[#This Row],[Secondary  Name]],tblSchMJune19[[#This Row],[Alloc4FUNC]])","v":"4098300SCHMAT705420Reg Liability - CA GHG Allowance RevenueOTHER"},4098300,{"$f":"IF(tblSchMJune19[[#This Row],[Primary Account]]=4098200,\"SCHMAP\",IF(tblSchMJune19[[#This Row],[Primary Account]]=4098300,\"SCHMAT\",IF(tblSchMJune19[[#This Row],[Primary Account]]=4099200,\"SCHMDP\",IF(tblSchMJune19[[#This Row],[Primary Account]]=4099300,\"SCHMDT\"))))","v":"SCHMAT"},"705420","Reg Liability - CA GHG Allowance Revenue","OTHER",1147.1381799999999,{"$f":"IF(OR(tblSchMJune19[[#This Row],[Alloc]]=\"IDU\",tblSchMJune19[[#This Row],[Alloc]]=\"OR\",tblSchMJune19[[#This Row],[Alloc]]=\"UT\",tblSchMJune19[[#This Row],[Alloc]]=\"WYU\",tblSchMJune19[[#This Row],[Alloc]]=\"WYP\",tblSchMJune19[[#This Row],[Alloc]]=\"CA\",tblSchMJune19[[#This Row],[Alloc]]=\"WA\"),\"SITUS\",tblSchMJune19[[#This Row],[Alloc]])","v":"OTHER"},{"$f":"INDEX(tblSchMLookup[FUNC],MATCH(tblSchMJune19[[#This Row],[Concat]],tblSchMLookup[Concat],0))","v":"PTD"},{"$f":"IF(tblSchMJune19[[#This Row],[Total ($000)]]=0,\"NO\",IF(ISNA(tblSchMJune19[[#This Row],[FUNC]]),\"YES\",IF(_xlfn.ISFORMULA(tblSchMJune19[[#This Row],[FUNC]]),\"NO\",\"YES\")))","v":"NO"}]
[{"$f":"CONCATENATE(tblSchMJune19[[#This Row],[Primary Account]],tblSchMJune19[[#This Row],[Primary Name]],tblSchMJune19[[#This Row],[Secondary Acct]],tblSchMJune19[[#This Row],[Secondary  Name]],tblSchMJune19[[#This Row],[Alloc4FUNC]])","v":"4098300SCHMAT705451Reg Liability - OR Property Insurance ReSITUS"},4098300,{"$f":"IF(tblSchMJune19[[#This Row],[Primary Account]]=4098200,\"SCHMAP\",IF(tblSchMJune19[[#This Row],[Primary Account]]=4098300,\"SCHMAT\",IF(tblSchMJune19[[#This Row],[Primary Account]]=4099200,\"SCHMDP\",IF(tblSchMJune19[[#This Row],[Primary Account]]=4099300,\"SCHMDT\"))))","v":"SCHMAT"},"705451","Reg Liability - OR Property Insurance Re","OR",-6973.7048800000002,{"$f":"IF(OR(tblSchMJune19[[#This Row],[Alloc]]=\"IDU\",tblSchMJune19[[#This Row],[Alloc]]=\"OR\",tblSchMJune19[[#This Row],[Alloc]]=\"UT\",tblSchMJune19[[#This Row],[Alloc]]=\"WYU\",tblSchMJune19[[#This Row],[Alloc]]=\"WYP\",tblSchMJune19[[#This Row],[Alloc]]=\"CA\",tblSchMJune19[[#This Row],[Alloc]]=\"WA\"),\"SITUS\",tblSchMJune19[[#This Row],[Alloc]])","v":"SITUS"},{"$f":"INDEX(tblSchMLookup[FUNC],MATCH(tblSchMJune19[[#This Row],[Concat]],tblSchMLookup[Concat],0))","v":"PTD"},{"$f":"IF(tblSchMJune19[[#This Row],[Total ($000)]]=0,\"NO\",IF(ISNA(tblSchMJune19[[#This Row],[FUNC]]),\"YES\",IF(_xlfn.ISFORMULA(tblSchMJune19[[#This Row],[FUNC]]),\"NO\",\"YES\")))","v":"NO"}]
[{"$f":"CONCATENATE(tblSchMJune19[[#This Row],[Primary Account]],tblSchMJune19[[#This Row],[Primary Name]],tblSchMJune19[[#This Row],[Secondary Acct]],tblSchMJune19[[#This Row],[Secondary  Name]],tblSchMJune19[[#This Row],[Alloc4FUNC]])","v":"4098300SCHMAT705453Reg Liability - ID Property Insurance ReSITUS"},4098300,{"$f":"IF(tblSchMJune19[[#This Row],[Primary Account]]=4098200,\"SCHMAP\",IF(tblSchMJune19[[#This Row],[Primary Account]]=4098300,\"SCHMAT\",IF(tblSchMJune19[[#This Row],[Primary Account]]=4099200,\"SCHMDP\",IF(tblSchMJune19[[#This Row],[Primary Account]]=4099300,\"SCHMDT\"))))","v":"SCHMAT"},"705453","Reg Liability - ID Property Insurance Re","IDU",113.544,{"$f":"IF(OR(tblSchMJune19[[#This Row],[Alloc]]=\"IDU\",tblSchMJune19[[#This Row],[Alloc]]=\"OR\",tblSchMJune19[[#This Row],[Alloc]]=\"UT\",tblSchMJune19[[#This Row],[Alloc]]=\"WYU\",tblSchMJune19[[#This Row],[Alloc]]=\"WYP\",tblSchMJune19[[#This Row],[Alloc]]=\"CA\",tblSchMJune19[[#This Row],[Alloc]]=\"WA\"),\"SITUS\",tblSchMJune19[[#This Row],[Alloc]])","v":"SITUS"},{"$f":"INDEX(tblSchMLookup[FUNC],MATCH(tblSchMJune19[[#This Row],[Concat]],tblSchMLookup[Concat],0))","v":"PTD"},{"$f":"IF(tblSchMJune19[[#This Row],[Total ($000)]]=0,\"NO\",IF(ISNA(tblSchMJune19[[#This Row],[FUNC]]),\"YES\",IF(_xlfn.ISFORMULA(tblSchMJune19[[#This Row],[FUNC]]),\"NO\",\"YES\")))","v":"NO"}]
[{"$f":"CONCATENATE(tblSchMJune19[[#This Row],[Primary Account]],tblSchMJune19[[#This Row],[Primary Name]],tblSchMJune19[[#This Row],[Secondary Acct]],tblSchMJune19[[#This Row],[Secondary  Name]],tblSchMJune19[[#This Row],[Alloc4FUNC]])","v":"4098300SCHMAT705455Reg Liability - WY Property Insurance ReSITUS"},4098300,{"$f":"IF(tblSchMJune19[[#This Row],[Primary Account]]=4098200,\"SCHMAP\",IF(tblSchMJune19[[#This Row],[Primary Account]]=4098300,\"SCHMAT\",IF(tblSchMJune19[[#This Row],[Primary Account]]=4099200,\"SCHMDP\",IF(tblSchMJune19[[#This Row],[Primary Account]]=4099300,\"SCHMDT\"))))","v":"SCHMAT"},"705455","Reg Liability - WY Property Insurance Re","WYP",349.81,{"$f":"IF(OR(tblSchMJune19[[#This Row],[Alloc]]=\"IDU\",tblSchMJune19[[#This Row],[Alloc]]=\"OR\",tblSchMJune19[[#This Row],[Alloc]]=\"UT\",tblSchMJune19[[#This Row],[Alloc]]=\"WYU\",tblSchMJune19[[#This Row],[Alloc]]=\"WYP\",tblSchMJune19[[#This Row],[Alloc]]=\"CA\",tblSchMJune19[[#This Row],[Alloc]]=\"WA\"),\"SITUS\",tblSchMJune19[[#This Row],[Alloc]])","v":"SITUS"},{"$f":"INDEX(tblSchMLookup[FUNC],MATCH(tblSchMJune19[[#This Row],[Concat]],tblSchMLookup[Concat],0))","v":"PTD"},{"$f":"IF(tblSchMJune19[[#This Row],[Total ($000)]]=0,\"NO\",IF(ISNA(tblSchMJune19[[#This Row],[FUNC]]),\"YES\",IF(_xlfn.ISFORMULA(tblSchMJune19[[#This Row],[FUNC]]),\"NO\",\"YES\")))","v":"NO"}]
[{"$f":"CONCATENATE(tblSchMJune19[[#This Row],[Primary Account]],tblSchMJune19[[#This Row],[Primary Name]],tblSchMJune19[[#This Row],[Secondary Acct]],tblSchMJune19[[#This Row],[Secondary  Name]],tblSchMJune19[[#This Row],[Alloc4FUNC]])","v":"4098300SCHMAT705500Reg Liability - Powerdale DecommissioninSITUS"},4098300,{"$f":"IF(tblSchMJune19[[#This Row],[Primary Account]]=4098200,\"SCHMAP\",IF(tblSchMJune19[[#This Row],[Primary Account]]=4098300,\"SCHMAT\",IF(tblSchMJune19[[#This Row],[Primary Account]]=4099200,\"SCHMDP\",IF(tblSchMJune19[[#This Row],[Primary Account]]=4099300,\"SCHMDT\"))))","v":"SCHMAT"},"705500","Reg Liability - Powerdale Decommissionin","UT",null,{"$f":"IF(OR(tblSchMJune19[[#This Row],[Alloc]]=\"IDU\",tblSchMJune19[[#This Row],[Alloc]]=\"OR\",tblSchMJune19[[#This Row],[Alloc]]=\"UT\",tblSchMJune19[[#This Row],[Alloc]]=\"WYU\",tblSchMJune19[[#This Row],[Alloc]]=\"WYP\",tblSchMJune19[[#This Row],[Alloc]]=\"CA\",tblSchMJune19[[#This Row],[Alloc]]=\"WA\"),\"SITUS\",tblSchMJune19[[#This Row],[Alloc]])","v":"SITUS"},{"$f":"INDEX(tblSchMLookup[FUNC],MATCH(tblSchMJune19[[#This Row],[Concat]],tblSchMLookup[Concat],0))","v":{"$error":"#N/A"}},{"$f":"IF(tblSchMJune19[[#This Row],[Total ($000)]]=0,\"NO\",IF(ISNA(tblSchMJune19[[#This Row],[FUNC]]),\"YES\",IF(_xlfn.ISFORMULA(tblSchMJune19[[#This Row],[FUNC]]),\"NO\",\"YES\")))","v":"NO"}]
[{"$f":"CONCATENATE(tblSchMJune19[[#This Row],[Primary Account]],tblSchMJune19[[#This Row],[Primary Name]],tblSchMJune19[[#This Row],[Secondary Acct]],tblSchMJune19[[#This Row],[Secondary  Name]],tblSchMJune19[[#This Row],[Alloc4FUNC]])","v":"4098300SCHMAT705514Regulatory Liability - OR Deferred ExcesOTHER"},4098300,{"$f":"IF(tblSchMJune19[[#This Row],[Primary Account]]=4098200,\"SCHMAP\",IF(tblSchMJune19[[#This Row],[Primary Account]]=4098300,\"SCHMAT\",IF(tblSchMJune19[[#This Row],[Primary Account]]=4099200,\"SCHMDP\",IF(tblSchMJune19[[#This Row],[Primary Account]]=4099300,\"SCHMDT\"))))","v":"SCHMAT"},"705514","Regulatory Liability - OR Deferred Exces","OTHER",null,{"$f":"IF(OR(tblSchMJune19[[#This Row],[Alloc]]=\"IDU\",tblSchMJune19[[#This Row],[Alloc]]=\"OR\",tblSchMJune19[[#This Row],[Alloc]]=\"UT\",tblSchMJune19[[#This Row],[Alloc]]=\"WYU\",tblSchMJune19[[#This Row],[Alloc]]=\"WYP\",tblSchMJune19[[#This Row],[Alloc]]=\"CA\",tblSchMJune19[[#This Row],[Alloc]]=\"WA\"),\"SITUS\",tblSchMJune19[[#This Row],[Alloc]])","v":"OTHER"},{"$f":"INDEX(tblSchMLookup[FUNC],MATCH(tblSchMJune19[[#This Row],[Concat]],tblSchMLookup[Concat],0))","v":{"$error":"#N/A"}},{"$f":"IF(tblSchMJune19[[#This Row],[Total ($000)]]=0,\"NO\",IF(ISNA(tblSchMJune19[[#This Row],[FUNC]]),\"YES\",IF(_xlfn.ISFORMULA(tblSchMJune19[[#This Row],[FUNC]]),\"NO\",\"YES\")))","v":"NO"}]
[{"$f":"CONCATENATE(tblSchMJune19[[#This Row],[Primary Account]],tblSchMJune19[[#This Row],[Primary Name]],tblSchMJune19[[#This Row],[Secondary Acct]],tblSchMJune19[[#This Row],[Secondary  Name]],tblSchMJune19[[#This Row],[Alloc4FUNC]])","v":"4098300SCHMAT705515Regulatory Liability - OR Deferred ExcesOTHER"},4098300,{"$f":"IF(tblSchMJune19[[#This Row],[Primary Account]]=4098200,\"SCHMAP\",IF(tblSchMJune19[[#This Row],[Primary Account]]=4098300,\"SCHMAT\",IF(tblSchMJune19[[#This Row],[Primary Account]]=4099200,\"SCHMDP\",IF(tblSchMJune19[[#This Row],[Primary Account]]=4099300,\"SCHMDT\"))))","v":"SCHMAT"},"705515","Regulatory Liability - OR Deferred Exces","OTHER",5968.5262199999997,{"$f":"IF(OR(tblSchMJune19[[#This Row],[Alloc]]=\"IDU\",tblSchMJune19[[#This Row],[Alloc]]=\"OR\",tblSchMJune19[[#This Row],[Alloc]]=\"UT\",tblSchMJune19[[#This Row],[Alloc]]=\"WYU\",tblSchMJune19[[#This Row],[Alloc]]=\"WYP\",tblSchMJune19[[#This Row],[Alloc]]=\"CA\",tblSchMJune19[[#This Row],[Alloc]]=\"WA\"),\"SITUS\",tblSchMJune19[[#This Row],[Alloc]])","v":"OTHER"},{"$f":"INDEX(tblSchMLookup[FUNC],MATCH(tblSchMJune19[[#This Row],[Concat]],tblSchMLookup[Concat],0))","v":"P"},{"$f":"IF(tblSchMJune19[[#This Row],[Total ($000)]]=0,\"NO\",IF(ISNA(tblSchMJune19[[#This Row],[FUNC]]),\"YES\",IF(_xlfn.ISFORMULA(tblSchMJune19[[#This Row],[FUNC]]),\"NO\",\"YES\")))","v":"NO"}]
[{"$f":"CONCATENATE(tblSchMJune19[[#This Row],[Primary Account]],tblSchMJune19[[#This Row],[Primary Name]],tblSchMJune19[[#This Row],[Secondary Acct]],tblSchMJune19[[#This Row],[Secondary  Name]],tblSchMJune19[[#This Row],[Alloc4FUNC]])","v":"4098300SCHMAT705517Regulatory Liability - UT Deferred ExcesOTHER"},4098300,{"$f":"IF(tblSchMJune19[[#This Row],[Primary Account]]=4098200,\"SCHMAP\",IF(tblSchMJune19[[#This Row],[Primary Account]]=4098300,\"SCHMAT\",IF(tblSchMJune19[[#This Row],[Primary Account]]=4099200,\"SCHMDP\",IF(tblSchMJune19[[#This Row],[Primary Account]]=4099300,\"SCHMDT\"))))","v":"SCHMAT"},"705517","Regulatory Liability - UT Deferred Exces","OTHER",-4.4000000000000002E-4,{"$f":"IF(OR(tblSchMJune19[[#This Row],[Alloc]]=\"IDU\",tblSchMJune19[[#This Row],[Alloc]]=\"OR\",tblSchMJune19[[#This Row],[Alloc]]=\"UT\",tblSchMJune19[[#This Row],[Alloc]]=\"WYU\",tblSchMJune19[[#This Row],[Alloc]]=\"WYP\",tblSchMJune19[[#This Row],[Alloc]]=\"CA\",tblSchMJune19[[#This Row],[Alloc]]=\"WA\"),\"SITUS\",tblSchMJune19[[#This Row],[Alloc]])","v":"OTHER"},{"$f":"INDEX(tblSchMLookup[FUNC],MATCH(tblSchMJune19[[#This Row],[Concat]],tblSchMLookup[Concat],0))","v":"P"},{"$f":"IF(tblSchMJune19[[#This Row],[Total ($000)]]=0,\"NO\",IF(ISNA(tblSchMJune19[[#This Row],[FUNC]]),\"YES\",IF(_xlfn.ISFORMULA(tblSchMJune19[[#This Row],[FUNC]]),\"NO\",\"YES\")))","v":"NO"}]
[{"$f":"CONCATENATE(tblSchMJune19[[#This Row],[Primary Account]],tblSchMJune19[[#This Row],[Primary Name]],tblSchMJune19[[#This Row],[Secondary Acct]],tblSchMJune19[[#This Row],[Secondary  Name]],tblSchMJune19[[#This Row],[Alloc4FUNC]])","v":"4098300SCHMAT705518Regulatory Liability - WA Deferred ExcesOTHER"},4098300,{"$f":"IF(tblSchMJune19[[#This Row],[Primary Account]]=4098200,\"SCHMAP\",IF(tblSchMJune19[[#This Row],[Primary Account]]=4098300,\"SCHMAT\",IF(tblSchMJune19[[#This Row],[Primary Account]]=4099200,\"SCHMDP\",IF(tblSchMJune19[[#This Row],[Primary Account]]=4099300,\"SCHMDT\"))))","v":"SCHMAT"},"705518","Regulatory Liability - WA Deferred Exces","OTHER",null,{"$f":"IF(OR(tblSchMJune19[[#This Row],[Alloc]]=\"IDU\",tblSchMJune19[[#This Row],[Alloc]]=\"OR\",tblSchMJune19[[#This Row],[Alloc]]=\"UT\",tblSchMJune19[[#This Row],[Alloc]]=\"WYU\",tblSchMJune19[[#This Row],[Alloc]]=\"WYP\",tblSchMJune19[[#This Row],[Alloc]]=\"CA\",tblSchMJune19[[#This Row],[Alloc]]=\"WA\"),\"SITUS\",tblSchMJune19[[#This Row],[Alloc]])","v":"OTHER"},{"$f":"INDEX(tblSchMLookup[FUNC],MATCH(tblSchMJune19[[#This Row],[Concat]],tblSchMLookup[Concat],0))","v":{"$error":"#N/A"}},{"$f":"IF(tblSchMJune19[[#This Row],[Total ($000)]]=0,\"NO\",IF(ISNA(tblSchMJune19[[#This Row],[FUNC]]),\"YES\",IF(_xlfn.ISFORMULA(tblSchMJune19[[#This Row],[FUNC]]),\"NO\",\"YES\")))","v":"NO"}]
[{"$f":"CONCATENATE(tblSchMJune19[[#This Row],[Primary Account]],tblSchMJune19[[#This Row],[Primary Name]],tblSchMJune19[[#This Row],[Secondary Acct]],tblSchMJune19[[#This Row],[Secondary  Name]],tblSchMJune19[[#This Row],[Alloc4FUNC]])","v":"4098300SCHMAT705519Regulatory Liability - WA Deferred ExcesOTHER"},4098300,{"$f":"IF(tblSchMJune19[[#This Row],[Primary Account]]=4098200,\"SCHMAP\",IF(tblSchMJune19[[#This Row],[Primary Account]]=4098300,\"SCHMAT\",IF(tblSchMJune19[[#This Row],[Primary Account]]=4099200,\"SCHMDP\",IF(tblSchMJune19[[#This Row],[Primary Account]]=4099300,\"SCHMDT\"))))","v":"SCHMAT"},"705519","Regulatory Liability - WA Deferred Exces","OTHER",-9201.6622100000004,{"$f":"IF(OR(tblSchMJune19[[#This Row],[Alloc]]=\"IDU\",tblSchMJune19[[#This Row],[Alloc]]=\"OR\",tblSchMJune19[[#This Row],[Alloc]]=\"UT\",tblSchMJune19[[#This Row],[Alloc]]=\"WYU\",tblSchMJune19[[#This Row],[Alloc]]=\"WYP\",tblSchMJune19[[#This Row],[Alloc]]=\"CA\",tblSchMJune19[[#This Row],[Alloc]]=\"WA\"),\"SITUS\",tblSchMJune19[[#This Row],[Alloc]])","v":"OTHER"},{"$f":"INDEX(tblSchMLookup[FUNC],MATCH(tblSchMJune19[[#This Row],[Concat]],tblSchMLookup[Concat],0))","v":"P"},{"$f":"IF(tblSchMJune19[[#This Row],[Total ($000)]]=0,\"NO\",IF(ISNA(tblSchMJune19[[#This Row],[FUNC]]),\"YES\",IF(_xlfn.ISFORMULA(tblSchMJune19[[#This Row],[FUNC]]),\"NO\",\"YES\")))","v":"NO"}]
[{"$f":"CONCATENATE(tblSchMJune19[[#This Row],[Primary Account]],tblSchMJune19[[#This Row],[Primary Name]],tblSchMJune19[[#This Row],[Secondary Acct]],tblSchMJune19[[#This Row],[Secondary  Name]],tblSchMJune19[[#This Row],[Alloc4FUNC]])","v":"4098300SCHMAT705521Regulatory Liability - WY Deferred ExcesOTHER"},4098300,{"$f":"IF(tblSchMJune19[[#This Row],[Primary Account]]=4098200,\"SCHMAP\",IF(tblSchMJune19[[#This Row],[Primary Account]]=4098300,\"SCHMAT\",IF(tblSchMJune19[[#This Row],[Primary Account]]=4099200,\"SCHMDP\",IF(tblSchMJune19[[#This Row],[Primary Account]]=4099300,\"SCHMDT\"))))","v":"SCHMAT"},"705521","Regulatory Liability - WY Deferred Exces","OTHER",-8879.3622500000001,{"$f":"IF(OR(tblSchMJune19[[#This Row],[Alloc]]=\"IDU\",tblSchMJune19[[#This Row],[Alloc]]=\"OR\",tblSchMJune19[[#This Row],[Alloc]]=\"UT\",tblSchMJune19[[#This Row],[Alloc]]=\"WYU\",tblSchMJune19[[#This Row],[Alloc]]=\"WYP\",tblSchMJune19[[#This Row],[Alloc]]=\"CA\",tblSchMJune19[[#This Row],[Alloc]]=\"WA\"),\"SITUS\",tblSchMJune19[[#This Row],[Alloc]])","v":"OTHER"},{"$f":"INDEX(tblSchMLookup[FUNC],MATCH(tblSchMJune19[[#This Row],[Concat]],tblSchMLookup[Concat],0))","v":"P"},{"$f":"IF(tblSchMJune19[[#This Row],[Total ($000)]]=0,\"NO\",IF(ISNA(tblSchMJune19[[#This Row],[FUNC]]),\"YES\",IF(_xlfn.ISFORMULA(tblSchMJune19[[#This Row],[FUNC]]),\"NO\",\"YES\")))","v":"NO"}]
[{"$f":"CONCATENATE(tblSchMJune19[[#This Row],[Primary Account]],tblSchMJune19[[#This Row],[Primary Name]],tblSchMJune19[[#This Row],[Secondary Acct]],tblSchMJune19[[#This Row],[Secondary  Name]],tblSchMJune19[[#This Row],[Alloc4FUNC]])","v":"4098300SCHMAT705522Regulatory Liability - UT REC's in RatesOTHER"},4098300,{"$f":"IF(tblSchMJune19[[#This Row],[Primary Account]]=4098200,\"SCHMAP\",IF(tblSchMJune19[[#This Row],[Primary Account]]=4098300,\"SCHMAT\",IF(tblSchMJune19[[#This Row],[Primary Account]]=4099200,\"SCHMDP\",IF(tblSchMJune19[[#This Row],[Primary Account]]=4099300,\"SCHMDT\"))))","v":"SCHMAT"},"705522","Regulatory Liability - UT REC's in Rates","OTHER",null,{"$f":"IF(OR(tblSchMJune19[[#This Row],[Alloc]]=\"IDU\",tblSchMJune19[[#This Row],[Alloc]]=\"OR\",tblSchMJune19[[#This Row],[Alloc]]=\"UT\",tblSchMJune19[[#This Row],[Alloc]]=\"WYU\",tblSchMJune19[[#This Row],[Alloc]]=\"WYP\",tblSchMJune19[[#This Row],[Alloc]]=\"CA\",tblSchMJune19[[#This Row],[Alloc]]=\"WA\"),\"SITUS\",tblSchMJune19[[#This Row],[Alloc]])","v":"OTHER"},{"$f":"INDEX(tblSchMLookup[FUNC],MATCH(tblSchMJune19[[#This Row],[Concat]],tblSchMLookup[Concat],0))","v":{"$error":"#N/A"}},{"$f":"IF(tblSchMJune19[[#This Row],[Total ($000)]]=0,\"NO\",IF(ISNA(tblSchMJune19[[#This Row],[FUNC]]),\"YES\",IF(_xlfn.ISFORMULA(tblSchMJune19[[#This Row],[FUNC]]),\"NO\",\"YES\")))","v":"NO"}]
[{"$f":"CONCATENATE(tblSchMJune19[[#This Row],[Primary Account]],tblSchMJune19[[#This Row],[Primary Name]],tblSchMJune19[[#This Row],[Secondary Acct]],tblSchMJune19[[#This Row],[Secondary  Name]],tblSchMJune19[[#This Row],[Alloc4FUNC]])","v":"4098300SCHMAT705523Regulatory Liability - WA RECS in RatesOTHER"},4098300,{"$f":"IF(tblSchMJune19[[#This Row],[Primary Account]]=4098200,\"SCHMAP\",IF(tblSchMJune19[[#This Row],[Primary Account]]=4098300,\"SCHMAT\",IF(tblSchMJune19[[#This Row],[Primary Account]]=4099200,\"SCHMDP\",IF(tblSchMJune19[[#This Row],[Primary Account]]=4099300,\"SCHMDT\"))))","v":"SCHMAT"},"705523","Regulatory Liability - WA RECS in Rates","OTHER",null,{"$f":"IF(OR(tblSchMJune19[[#This Row],[Alloc]]=\"IDU\",tblSchMJune19[[#This Row],[Alloc]]=\"OR\",tblSchMJune19[[#This Row],[Alloc]]=\"UT\",tblSchMJune19[[#This Row],[Alloc]]=\"WYU\",tblSchMJune19[[#This Row],[Alloc]]=\"WYP\",tblSchMJune19[[#This Row],[Alloc]]=\"CA\",tblSchMJune19[[#This Row],[Alloc]]=\"WA\"),\"SITUS\",tblSchMJune19[[#This Row],[Alloc]])","v":"OTHER"},{"$f":"INDEX(tblSchMLookup[FUNC],MATCH(tblSchMJune19[[#This Row],[Concat]],tblSchMLookup[Concat],0))","v":{"$error":"#N/A"}},{"$f":"IF(tblSchMJune19[[#This Row],[Total ($000)]]=0,\"NO\",IF(ISNA(tblSchMJune19[[#This Row],[FUNC]]),\"YES\",IF(_xlfn.ISFORMULA(tblSchMJune19[[#This Row],[FUNC]]),\"NO\",\"YES\")))","v":"NO"}]
[{"$f":"CONCATENATE(tblSchMJune19[[#This Row],[Primary Account]],tblSchMJune19[[#This Row],[Primary Name]],tblSchMJune19[[#This Row],[Secondary Acct]],tblSchMJune19[[#This Row],[Secondary  Name]],tblSchMJune19[[#This Row],[Alloc4FUNC]])","v":"4098300SCHMAT705525Regulatory Liability - OR RECS in RatesOTHER"},4098300,{"$f":"IF(tblSchMJune19[[#This Row],[Primary Account]]=4098200,\"SCHMAP\",IF(tblSchMJune19[[#This Row],[Primary Account]]=4098300,\"SCHMAT\",IF(tblSchMJune19[[#This Row],[Primary Account]]=4099200,\"SCHMDP\",IF(tblSchMJune19[[#This Row],[Primary Account]]=4099300,\"SCHMDT\"))))","v":"SCHMAT"},"705525","Regulatory Liability - OR RECS in Rates","OTHER",null,{"$f":"IF(OR(tblSchMJune19[[#This Row],[Alloc]]=\"IDU\",tblSchMJune19[[#This Row],[Alloc]]=\"OR\",tblSchMJune19[[#This Row],[Alloc]]=\"UT\",tblSchMJune19[[#This Row],[Alloc]]=\"WYU\",tblSchMJune19[[#This Row],[Alloc]]=\"WYP\",tblSchMJune19[[#This Row],[Alloc]]=\"CA\",tblSchMJune19[[#This Row],[Alloc]]=\"WA\"),\"SITUS\",tblSchMJune19[[#This Row],[Alloc]])","v":"OTHER"},{"$f":"INDEX(tblSchMLookup[FUNC],MATCH(tblSchMJune19[[#This Row],[Concat]],tblSchMLookup[Concat],0))","v":{"$error":"#N/A"}},{"$f":"IF(tblSchMJune19[[#This Row],[Total ($000)]]=0,\"NO\",IF(ISNA(tblSchMJune19[[#This Row],[FUNC]]),\"YES\",IF(_xlfn.ISFORMULA(tblSchMJune19[[#This Row],[FUNC]]),\"NO\",\"YES\")))","v":"NO"}]
[{"$f":"CONCATENATE(tblSchMJune19[[#This Row],[Primary Account]],tblSchMJune19[[#This Row],[Primary Name]],tblSchMJune19[[#This Row],[Secondary Acct]],tblSchMJune19[[#This Row],[Secondary  Name]],tblSchMJune19[[#This Row],[Alloc4FUNC]])","v":"4098300SCHMAT705526Regulatory Liability - CA Solar Feed-inOTHER"},4098300,{"$f":"IF(tblSchMJune19[[#This Row],[Primary Account]]=4098200,\"SCHMAP\",IF(tblSchMJune19[[#This Row],[Primary Account]]=4098300,\"SCHMAT\",IF(tblSchMJune19[[#This Row],[Primary Account]]=4099200,\"SCHMDP\",IF(tblSchMJune19[[#This Row],[Primary Account]]=4099300,\"SCHMDT\"))))","v":"SCHMAT"},"705526","Regulatory Liability - CA Solar Feed-in","OTHER",null,{"$f":"IF(OR(tblSchMJune19[[#This Row],[Alloc]]=\"IDU\",tblSchMJune19[[#This Row],[Alloc]]=\"OR\",tblSchMJune19[[#This Row],[Alloc]]=\"UT\",tblSchMJune19[[#This Row],[Alloc]]=\"WYU\",tblSchMJune19[[#This Row],[Alloc]]=\"WYP\",tblSchMJune19[[#This Row],[Alloc]]=\"CA\",tblSchMJune19[[#This Row],[Alloc]]=\"WA\"),\"SITUS\",tblSchMJune19[[#This Row],[Alloc]])","v":"OTHER"},{"$f":"INDEX(tblSchMLookup[FUNC],MATCH(tblSchMJune19[[#This Row],[Concat]],tblSchMLookup[Concat],0))","v":{"$error":"#N/A"}},{"$f":"IF(tblSchMJune19[[#This Row],[Total ($000)]]=0,\"NO\",IF(ISNA(tblSchMJune19[[#This Row],[FUNC]]),\"YES\",IF(_xlfn.ISFORMULA(tblSchMJune19[[#This Row],[FUNC]]),\"NO\",\"YES\")))","v":"NO"}]
[{"$f":"CONCATENATE(tblSchMJune19[[#This Row],[Primary Account]],tblSchMJune19[[#This Row],[Primary Name]],tblSchMJune19[[#This Row],[Secondary Acct]],tblSchMJune19[[#This Row],[Secondary  Name]],tblSchMJune19[[#This Row],[Alloc4FUNC]])","v":"4098300SCHMAT705527Regulatory Liability - CA Solar Feed-inOTHER"},4098300,{"$f":"IF(tblSchMJune19[[#This Row],[Primary Account]]=4098200,\"SCHMAP\",IF(tblSchMJune19[[#This Row],[Primary Account]]=4098300,\"SCHMAT\",IF(tblSchMJune19[[#This Row],[Primary Account]]=4099200,\"SCHMDP\",IF(tblSchMJune19[[#This Row],[Primary Account]]=4099300,\"SCHMDT\"))))","v":"SCHMAT"},"705527","Regulatory Liability - CA Solar Feed-in","OTHER",-446.50137999999998,{"$f":"IF(OR(tblSchMJune19[[#This Row],[Alloc]]=\"IDU\",tblSchMJune19[[#This Row],[Alloc]]=\"OR\",tblSchMJune19[[#This Row],[Alloc]]=\"UT\",tblSchMJune19[[#This Row],[Alloc]]=\"WYU\",tblSchMJune19[[#This Row],[Alloc]]=\"WYP\",tblSchMJune19[[#This Row],[Alloc]]=\"CA\",tblSchMJune19[[#This Row],[Alloc]]=\"WA\"),\"SITUS\",tblSchMJune19[[#This Row],[Alloc]])","v":"OTHER"},{"$f":"INDEX(tblSchMLookup[FUNC],MATCH(tblSchMJune19[[#This Row],[Concat]],tblSchMLookup[Concat],0))","v":"P"},{"$f":"IF(tblSchMJune19[[#This Row],[Total ($000)]]=0,\"NO\",IF(ISNA(tblSchMJune19[[#This Row],[FUNC]]),\"YES\",IF(_xlfn.ISFORMULA(tblSchMJune19[[#This Row],[FUNC]]),\"NO\",\"YES\")))","v":"NO"}]
[{"$f":"CONCATENATE(tblSchMJune19[[#This Row],[Primary Account]],tblSchMJune19[[#This Row],[Primary Name]],tblSchMJune19[[#This Row],[Secondary Acct]],tblSchMJune19[[#This Row],[Secondary  Name]],tblSchMJune19[[#This Row],[Alloc4FUNC]])","v":"4098300SCHMAT705530Regulatory Liability - UT Solar Feed-inOTHER"},4098300,{"$f":"IF(tblSchMJune19[[#This Row],[Primary Account]]=4098200,\"SCHMAP\",IF(tblSchMJune19[[#This Row],[Primary Account]]=4098300,\"SCHMAT\",IF(tblSchMJune19[[#This Row],[Primary Account]]=4099200,\"SCHMDP\",IF(tblSchMJune19[[#This Row],[Primary Account]]=4099300,\"SCHMDT\"))))","v":"SCHMAT"},"705530","Regulatory Liability - UT Solar Feed-in","OTHER",null,{"$f":"IF(OR(tblSchMJune19[[#This Row],[Alloc]]=\"IDU\",tblSchMJune19[[#This Row],[Alloc]]=\"OR\",tblSchMJune19[[#This Row],[Alloc]]=\"UT\",tblSchMJune19[[#This Row],[Alloc]]=\"WYU\",tblSchMJune19[[#This Row],[Alloc]]=\"WYP\",tblSchMJune19[[#This Row],[Alloc]]=\"CA\",tblSchMJune19[[#This Row],[Alloc]]=\"WA\"),\"SITUS\",tblSchMJune19[[#This Row],[Alloc]])","v":"OTHER"},{"$f":"INDEX(tblSchMLookup[FUNC],MATCH(tblSchMJune19[[#This Row],[Concat]],tblSchMLookup[Concat],0))","v":{"$error":"#N/A"}},{"$f":"IF(tblSchMJune19[[#This Row],[Total ($000)]]=0,\"NO\",IF(ISNA(tblSchMJune19[[#This Row],[FUNC]]),\"YES\",IF(_xlfn.ISFORMULA(tblSchMJune19[[#This Row],[FUNC]]),\"NO\",\"YES\")))","v":"NO"}]
[{"$f":"CONCATENATE(tblSchMJune19[[#This Row],[Primary Account]],tblSchMJune19[[#This Row],[Primary Name]],tblSchMJune19[[#This Row],[Secondary Acct]],tblSchMJune19[[#This Row],[Secondary  Name]],tblSchMJune19[[#This Row],[Alloc4FUNC]])","v":"4098300SCHMAT705531Regulatory Liability - UT Solar Feed-inOTHER"},4098300,{"$f":"IF(tblSchMJune19[[#This Row],[Primary Account]]=4098200,\"SCHMAP\",IF(tblSchMJune19[[#This Row],[Primary Account]]=4098300,\"SCHMAT\",IF(tblSchMJune19[[#This Row],[Primary Account]]=4099200,\"SCHMDP\",IF(tblSchMJune19[[#This Row],[Primary Account]]=4099300,\"SCHMDT\"))))","v":"SCHMAT"},"705531","Regulatory Liability - UT Solar Feed-in","OTHER",3227.3128700000002,{"$f":"IF(OR(tblSchMJune19[[#This Row],[Alloc]]=\"IDU\",tblSchMJune19[[#This Row],[Alloc]]=\"OR\",tblSchMJune19[[#This Row],[Alloc]]=\"UT\",tblSchMJune19[[#This Row],[Alloc]]=\"WYU\",tblSchMJune19[[#This Row],[Alloc]]=\"WYP\",tblSchMJune19[[#This Row],[Alloc]]=\"CA\",tblSchMJune19[[#This Row],[Alloc]]=\"WA\"),\"SITUS\",tblSchMJune19[[#This Row],[Alloc]])","v":"OTHER"},{"$f":"INDEX(tblSchMLookup[FUNC],MATCH(tblSchMJune19[[#This Row],[Concat]],tblSchMLookup[Concat],0))","v":"P"},{"$f":"IF(tblSchMJune19[[#This Row],[Total ($000)]]=0,\"NO\",IF(ISNA(tblSchMJune19[[#This Row],[FUNC]]),\"YES\",IF(_xlfn.ISFORMULA(tblSchMJune19[[#This Row],[FUNC]]),\"NO\",\"YES\")))","v":"NO"}]
[{"$f":"CONCATENATE(tblSchMJune19[[#This Row],[Primary Account]],tblSchMJune19[[#This Row],[Primary Name]],tblSchMJune19[[#This Row],[Secondary Acct]],tblSchMJune19[[#This Row],[Secondary  Name]],tblSchMJune19[[#This Row],[Alloc4FUNC]])","v":"4098300SCHMAT705536Regulatory Liability - CA GreenHouse GasOTHER"},4098300,{"$f":"IF(tblSchMJune19[[#This Row],[Primary Account]]=4098200,\"SCHMAP\",IF(tblSchMJune19[[#This Row],[Primary Account]]=4098300,\"SCHMAT\",IF(tblSchMJune19[[#This Row],[Primary Account]]=4099200,\"SCHMDP\",IF(tblSchMJune19[[#This Row],[Primary Account]]=4099300,\"SCHMDT\"))))","v":"SCHMAT"},"705536","Regulatory Liability - CA GreenHouse Gas","OTHER",null,{"$f":"IF(OR(tblSchMJune19[[#This Row],[Alloc]]=\"IDU\",tblSchMJune19[[#This Row],[Alloc]]=\"OR\",tblSchMJune19[[#This Row],[Alloc]]=\"UT\",tblSchMJune19[[#This Row],[Alloc]]=\"WYU\",tblSchMJune19[[#This Row],[Alloc]]=\"WYP\",tblSchMJune19[[#This Row],[Alloc]]=\"CA\",tblSchMJune19[[#This Row],[Alloc]]=\"WA\"),\"SITUS\",tblSchMJune19[[#This Row],[Alloc]])","v":"OTHER"},{"$f":"INDEX(tblSchMLookup[FUNC],MATCH(tblSchMJune19[[#This Row],[Concat]],tblSchMLookup[Concat],0))","v":{"$error":"#N/A"}},{"$f":"IF(tblSchMJune19[[#This Row],[Total ($000)]]=0,\"NO\",IF(ISNA(tblSchMJune19[[#This Row],[FUNC]]),\"YES\",IF(_xlfn.ISFORMULA(tblSchMJune19[[#This Row],[FUNC]]),\"NO\",\"YES\")))","v":"NO"}]
[{"$f":"CONCATENATE(tblSchMJune19[[#This Row],[Primary Account]],tblSchMJune19[[#This Row],[Primary Name]],tblSchMJune19[[#This Row],[Secondary Acct]],tblSchMJune19[[#This Row],[Secondary  Name]],tblSchMJune19[[#This Row],[Alloc4FUNC]])","v":"4098300SCHMAT705600RegLiability - OR 2012 GRC GivebackOTHER"},4098300,{"$f":"IF(tblSchMJune19[[#This Row],[Primary Account]]=4098200,\"SCHMAP\",IF(tblSchMJune19[[#This Row],[Primary Account]]=4098300,\"SCHMAT\",IF(tblSchMJune19[[#This Row],[Primary Account]]=4099200,\"SCHMDP\",IF(tblSchMJune19[[#This Row],[Primary Account]]=4099300,\"SCHMDT\"))))","v":"SCHMAT"},"705600","RegLiability - OR 2012 GRC Giveback","OTHER",null,{"$f":"IF(OR(tblSchMJune19[[#This Row],[Alloc]]=\"IDU\",tblSchMJune19[[#This Row],[Alloc]]=\"OR\",tblSchMJune19[[#This Row],[Alloc]]=\"UT\",tblSchMJune19[[#This Row],[Alloc]]=\"WYU\",tblSchMJune19[[#This Row],[Alloc]]=\"WYP\",tblSchMJune19[[#This Row],[Alloc]]=\"CA\",tblSchMJune19[[#This Row],[Alloc]]=\"WA\"),\"SITUS\",tblSchMJune19[[#This Row],[Alloc]])","v":"OTHER"},{"$f":"INDEX(tblSchMLookup[FUNC],MATCH(tblSchMJune19[[#This Row],[Concat]],tblSchMLookup[Concat],0))","v":{"$error":"#N/A"}},{"$f":"IF(tblSchMJune19[[#This Row],[Total ($000)]]=0,\"NO\",IF(ISNA(tblSchMJune19[[#This Row],[FUNC]]),\"YES\",IF(_xlfn.ISFORMULA(tblSchMJune19[[#This Row],[FUNC]]),\"NO\",\"YES\")))","v":"NO"}]
[{"$f":"CONCATENATE(tblSchMJune19[[#This Row],[Primary Account]],tblSchMJune19[[#This Row],[Primary Name]],tblSchMJune19[[#This Row],[Secondary Acct]],tblSchMJune19[[#This Row],[Secondary  Name]],tblSchMJune19[[#This Row],[Alloc4FUNC]])","v":"4098300SCHMAT705700Reg Liability - Current Reclass - OtherOTHER"},4098300,{"$f":"IF(tblSchMJune19[[#This Row],[Primary Account]]=4098200,\"SCHMAP\",IF(tblSchMJune19[[#This Row],[Primary Account]]=4098300,\"SCHMAT\",IF(tblSchMJune19[[#This Row],[Primary Account]]=4099200,\"SCHMDP\",IF(tblSchMJune19[[#This Row],[Primary Account]]=4099300,\"SCHMDT\"))))","v":"SCHMAT"},"705700","Reg Liability - Current Reclass - Other","OTHER",null,{"$f":"IF(OR(tblSchMJune19[[#This Row],[Alloc]]=\"IDU\",tblSchMJune19[[#This Row],[Alloc]]=\"OR\",tblSchMJune19[[#This Row],[Alloc]]=\"UT\",tblSchMJune19[[#This Row],[Alloc]]=\"WYU\",tblSchMJune19[[#This Row],[Alloc]]=\"WYP\",tblSchMJune19[[#This Row],[Alloc]]=\"CA\",tblSchMJune19[[#This Row],[Alloc]]=\"WA\"),\"SITUS\",tblSchMJune19[[#This Row],[Alloc]])","v":"OTHER"},{"$f":"INDEX(tblSchMLookup[FUNC],MATCH(tblSchMJune19[[#This Row],[Concat]],tblSchMLookup[Concat],0))","v":{"$error":"#N/A"}},{"$f":"IF(tblSchMJune19[[#This Row],[Total ($000)]]=0,\"NO\",IF(ISNA(tblSchMJune19[[#This Row],[FUNC]]),\"YES\",IF(_xlfn.ISFORMULA(tblSchMJune19[[#This Row],[FUNC]]),\"NO\",\"YES\")))","v":"NO"}]
[{"$f":"CONCATENATE(tblSchMJune19[[#This Row],[Primary Account]],tblSchMJune19[[#This Row],[Primary Name]],tblSchMJune19[[#This Row],[Secondary Acct]],tblSchMJune19[[#This Row],[Secondary  Name]],tblSchMJune19[[#This Row],[Alloc4FUNC]])","v":"4098300SCHMAT715050Microsoft Software License LiabilitySO"},4098300,{"$f":"IF(tblSchMJune19[[#This Row],[Primary Account]]=4098200,\"SCHMAP\",IF(tblSchMJune19[[#This Row],[Primary Account]]=4098300,\"SCHMAT\",IF(tblSchMJune19[[#This Row],[Primary Account]]=4099200,\"SCHMDP\",IF(tblSchMJune19[[#This Row],[Primary Account]]=4099300,\"SCHMDT\"))))","v":"SCHMAT"},"715050","Microsoft Software License Liability","SO",null,{"$f":"IF(OR(tblSchMJune19[[#This Row],[Alloc]]=\"IDU\",tblSchMJune19[[#This Row],[Alloc]]=\"OR\",tblSchMJune19[[#This Row],[Alloc]]=\"UT\",tblSchMJune19[[#This Row],[Alloc]]=\"WYU\",tblSchMJune19[[#This Row],[Alloc]]=\"WYP\",tblSchMJune19[[#This Row],[Alloc]]=\"CA\",tblSchMJune19[[#This Row],[Alloc]]=\"WA\"),\"SITUS\",tblSchMJune19[[#This Row],[Alloc]])","v":"SO"},{"$f":"INDEX(tblSchMLookup[FUNC],MATCH(tblSchMJune19[[#This Row],[Concat]],tblSchMLookup[Concat],0))","v":{"$error":"#N/A"}},{"$f":"IF(tblSchMJune19[[#This Row],[Total ($000)]]=0,\"NO\",IF(ISNA(tblSchMJune19[[#This Row],[FUNC]]),\"YES\",IF(_xlfn.ISFORMULA(tblSchMJune19[[#This Row],[FUNC]]),\"NO\",\"YES\")))","v":"NO"}]
[{"$f":"CONCATENATE(tblSchMJune19[[#This Row],[Primary Account]],tblSchMJune19[[#This Row],[Primary Name]],tblSchMJune19[[#This Row],[Secondary Acct]],tblSchMJune19[[#This Row],[Secondary  Name]],tblSchMJune19[[#This Row],[Alloc4FUNC]])","v":"4098300SCHMAT715100MCI FOG Wire LeaseSITUS"},4098300,{"$f":"IF(tblSchMJune19[[#This Row],[Primary Account]]=4098200,\"SCHMAP\",IF(tblSchMJune19[[#This Row],[Primary Account]]=4098300,\"SCHMAT\",IF(tblSchMJune19[[#This Row],[Primary Account]]=4099200,\"SCHMDP\",IF(tblSchMJune19[[#This Row],[Primary Account]]=4099300,\"SCHMDT\"))))","v":"SCHMAT"},"715100","MCI FOG Wire Lease","WYP",null,{"$f":"IF(OR(tblSchMJune19[[#This Row],[Alloc]]=\"IDU\",tblSchMJune19[[#This Row],[Alloc]]=\"OR\",tblSchMJune19[[#This Row],[Alloc]]=\"UT\",tblSchMJune19[[#This Row],[Alloc]]=\"WYU\",tblSchMJune19[[#This Row],[Alloc]]=\"WYP\",tblSchMJune19[[#This Row],[Alloc]]=\"CA\",tblSchMJune19[[#This Row],[Alloc]]=\"WA\"),\"SITUS\",tblSchMJune19[[#This Row],[Alloc]])","v":"SITUS"},{"$f":"INDEX(tblSchMLookup[FUNC],MATCH(tblSchMJune19[[#This Row],[Concat]],tblSchMLookup[Concat],0))","v":{"$error":"#N/A"}},{"$f":"IF(tblSchMJune19[[#This Row],[Total ($000)]]=0,\"NO\",IF(ISNA(tblSchMJune19[[#This Row],[FUNC]]),\"YES\",IF(_xlfn.ISFORMULA(tblSchMJune19[[#This Row],[FUNC]]),\"NO\",\"YES\")))","v":"NO"}]
[{"$f":"CONCATENATE(tblSchMJune19[[#This Row],[Primary Account]],tblSchMJune19[[#This Row],[Primary Name]],tblSchMJune19[[#This Row],[Secondary Acct]],tblSchMJune19[[#This Row],[Secondary  Name]],tblSchMJune19[[#This Row],[Alloc4FUNC]])","v":"4098300SCHMAT715105MCI FOG Wire LeaseSG"},4098300,{"$f":"IF(tblSchMJune19[[#This Row],[Primary Account]]=4098200,\"SCHMAP\",IF(tblSchMJune19[[#This Row],[Primary Account]]=4098300,\"SCHMAT\",IF(tblSchMJune19[[#This Row],[Primary Account]]=4099200,\"SCHMDP\",IF(tblSchMJune19[[#This Row],[Primary Account]]=4099300,\"SCHMDT\"))))","v":"SCHMAT"},"715105","MCI FOG Wire Lease","SG",-466.01240000000001,{"$f":"IF(OR(tblSchMJune19[[#This Row],[Alloc]]=\"IDU\",tblSchMJune19[[#This Row],[Alloc]]=\"OR\",tblSchMJune19[[#This Row],[Alloc]]=\"UT\",tblSchMJune19[[#This Row],[Alloc]]=\"WYU\",tblSchMJune19[[#This Row],[Alloc]]=\"WYP\",tblSchMJune19[[#This Row],[Alloc]]=\"CA\",tblSchMJune19[[#This Row],[Alloc]]=\"WA\"),\"SITUS\",tblSchMJune19[[#This Row],[Alloc]])","v":"SG"},{"$f":"INDEX(tblSchMLookup[FUNC],MATCH(tblSchMJune19[[#This Row],[Concat]],tblSchMLookup[Concat],0))","v":"P"},{"$f":"IF(tblSchMJune19[[#This Row],[Total ($000)]]=0,\"NO\",IF(ISNA(tblSchMJune19[[#This Row],[FUNC]]),\"YES\",IF(_xlfn.ISFORMULA(tblSchMJune19[[#This Row],[FUNC]]),\"NO\",\"YES\")))","v":"NO"}]
[{"$f":"CONCATENATE(tblSchMJune19[[#This Row],[Primary Account]],tblSchMJune19[[#This Row],[Primary Name]],tblSchMJune19[[#This Row],[Secondary Acct]],tblSchMJune19[[#This Row],[Secondary  Name]],tblSchMJune19[[#This Row],[Alloc4FUNC]])","v":"4098300SCHMAT715350Misc. Deferred CreditsSO"},4098300,{"$f":"IF(tblSchMJune19[[#This Row],[Primary Account]]=4098200,\"SCHMAP\",IF(tblSchMJune19[[#This Row],[Primary Account]]=4098300,\"SCHMAT\",IF(tblSchMJune19[[#This Row],[Primary Account]]=4099200,\"SCHMDP\",IF(tblSchMJune19[[#This Row],[Primary Account]]=4099300,\"SCHMDT\"))))","v":"SCHMAT"},"715350","Misc. Deferred Credits","SO",null,{"$f":"IF(OR(tblSchMJune19[[#This Row],[Alloc]]=\"IDU\",tblSchMJune19[[#This Row],[Alloc]]=\"OR\",tblSchMJune19[[#This Row],[Alloc]]=\"UT\",tblSchMJune19[[#This Row],[Alloc]]=\"WYU\",tblSchMJune19[[#This Row],[Alloc]]=\"WYP\",tblSchMJune19[[#This Row],[Alloc]]=\"CA\",tblSchMJune19[[#This Row],[Alloc]]=\"WA\"),\"SITUS\",tblSchMJune19[[#This Row],[Alloc]])","v":"SO"},{"$f":"INDEX(tblSchMLookup[FUNC],MATCH(tblSchMJune19[[#This Row],[Concat]],tblSchMLookup[Concat],0))","v":{"$error":"#N/A"}},{"$f":"IF(tblSchMJune19[[#This Row],[Total ($000)]]=0,\"NO\",IF(ISNA(tblSchMJune19[[#This Row],[FUNC]]),\"YES\",IF(_xlfn.ISFORMULA(tblSchMJune19[[#This Row],[FUNC]]),\"NO\",\"YES\")))","v":"NO"}]
[{"$f":"CONCATENATE(tblSchMJune19[[#This Row],[Primary Account]],tblSchMJune19[[#This Row],[Primary Name]],tblSchMJune19[[#This Row],[Secondary Acct]],tblSchMJune19[[#This Row],[Secondary  Name]],tblSchMJune19[[#This Row],[Alloc4FUNC]])","v":"4098300SCHMAT715720NW Power Act-WAOTHER"},4098300,{"$f":"IF(tblSchMJune19[[#This Row],[Primary Account]]=4098200,\"SCHMAP\",IF(tblSchMJune19[[#This Row],[Primary Account]]=4098300,\"SCHMAT\",IF(tblSchMJune19[[#This Row],[Primary Account]]=4099200,\"SCHMDP\",IF(tblSchMJune19[[#This Row],[Primary Account]]=4099300,\"SCHMDT\"))))","v":"SCHMAT"},"715720","NW Power Act-WA","OTHER",-450.71992,{"$f":"IF(OR(tblSchMJune19[[#This Row],[Alloc]]=\"IDU\",tblSchMJune19[[#This Row],[Alloc]]=\"OR\",tblSchMJune19[[#This Row],[Alloc]]=\"UT\",tblSchMJune19[[#This Row],[Alloc]]=\"WYU\",tblSchMJune19[[#This Row],[Alloc]]=\"WYP\",tblSchMJune19[[#This Row],[Alloc]]=\"CA\",tblSchMJune19[[#This Row],[Alloc]]=\"WA\"),\"SITUS\",tblSchMJune19[[#This Row],[Alloc]])","v":"OTHER"},{"$f":"INDEX(tblSchMLookup[FUNC],MATCH(tblSchMJune19[[#This Row],[Concat]],tblSchMLookup[Concat],0))","v":"P"},{"$f":"IF(tblSchMJune19[[#This Row],[Total ($000)]]=0,\"NO\",IF(ISNA(tblSchMJune19[[#This Row],[FUNC]]),\"YES\",IF(_xlfn.ISFORMULA(tblSchMJune19[[#This Row],[FUNC]]),\"NO\",\"YES\")))","v":"NO"}]
[{"$f":"CONCATENATE(tblSchMJune19[[#This Row],[Primary Account]],tblSchMJune19[[#This Row],[Primary Name]],tblSchMJune19[[#This Row],[Secondary Acct]],tblSchMJune19[[#This Row],[Secondary  Name]],tblSchMJune19[[#This Row],[Alloc4FUNC]])","v":"4098300SCHMAT715810Chehalis WA EFSEC C02 Mitigation ObligatSG"},4098300,{"$f":"IF(tblSchMJune19[[#This Row],[Primary Account]]=4098200,\"SCHMAP\",IF(tblSchMJune19[[#This Row],[Primary Account]]=4098300,\"SCHMAT\",IF(tblSchMJune19[[#This Row],[Primary Account]]=4099200,\"SCHMDP\",IF(tblSchMJune19[[#This Row],[Primary Account]]=4099300,\"SCHMDT\"))))","v":"SCHMAT"},"715810","Chehalis WA EFSEC C02 Mitigation Obligat","SG",-124.8205,{"$f":"IF(OR(tblSchMJune19[[#This Row],[Alloc]]=\"IDU\",tblSchMJune19[[#This Row],[Alloc]]=\"OR\",tblSchMJune19[[#This Row],[Alloc]]=\"UT\",tblSchMJune19[[#This Row],[Alloc]]=\"WYU\",tblSchMJune19[[#This Row],[Alloc]]=\"WYP\",tblSchMJune19[[#This Row],[Alloc]]=\"CA\",tblSchMJune19[[#This Row],[Alloc]]=\"WA\"),\"SITUS\",tblSchMJune19[[#This Row],[Alloc]])","v":"SG"},{"$f":"INDEX(tblSchMLookup[FUNC],MATCH(tblSchMJune19[[#This Row],[Concat]],tblSchMLookup[Concat],0))","v":"P"},{"$f":"IF(tblSchMJune19[[#This Row],[Total ($000)]]=0,\"NO\",IF(ISNA(tblSchMJune19[[#This Row],[FUNC]]),\"YES\",IF(_xlfn.ISFORMULA(tblSchMJune19[[#This Row],[FUNC]]),\"NO\",\"YES\")))","v":"NO"}]
[{"$f":"CONCATENATE(tblSchMJune19[[#This Row],[Primary Account]],tblSchMJune19[[#This Row],[Primary Name]],tblSchMJune19[[#This Row],[Secondary Acct]],tblSchMJune19[[#This Row],[Secondary  Name]],tblSchMJune19[[#This Row],[Alloc4FUNC]])","v":"4098300SCHMAT720200Deferred Comp Plan Benefits-PPLSO"},4098300,{"$f":"IF(tblSchMJune19[[#This Row],[Primary Account]]=4098200,\"SCHMAP\",IF(tblSchMJune19[[#This Row],[Primary Account]]=4098300,\"SCHMAT\",IF(tblSchMJune19[[#This Row],[Primary Account]]=4099200,\"SCHMDP\",IF(tblSchMJune19[[#This Row],[Primary Account]]=4099300,\"SCHMDT\"))))","v":"SCHMAT"},"720200","Deferred Comp Plan Benefits-PPL","SO",null,{"$f":"IF(OR(tblSchMJune19[[#This Row],[Alloc]]=\"IDU\",tblSchMJune19[[#This Row],[Alloc]]=\"OR\",tblSchMJune19[[#This Row],[Alloc]]=\"UT\",tblSchMJune19[[#This Row],[Alloc]]=\"WYU\",tblSchMJune19[[#This Row],[Alloc]]=\"WYP\",tblSchMJune19[[#This Row],[Alloc]]=\"CA\",tblSchMJune19[[#This Row],[Alloc]]=\"WA\"),\"SITUS\",tblSchMJune19[[#This Row],[Alloc]])","v":"SO"},{"$f":"INDEX(tblSchMLookup[FUNC],MATCH(tblSchMJune19[[#This Row],[Concat]],tblSchMLookup[Concat],0))","v":{"$error":"#N/A"}},{"$f":"IF(tblSchMJune19[[#This Row],[Total ($000)]]=0,\"NO\",IF(ISNA(tblSchMJune19[[#This Row],[FUNC]]),\"YES\",IF(_xlfn.ISFORMULA(tblSchMJune19[[#This Row],[FUNC]]),\"NO\",\"YES\")))","v":"NO"}]
[{"$f":"CONCATENATE(tblSchMJune19[[#This Row],[Primary Account]],tblSchMJune19[[#This Row],[Primary Name]],tblSchMJune19[[#This Row],[Secondary Acct]],tblSchMJune19[[#This Row],[Secondary  Name]],tblSchMJune19[[#This Row],[Alloc4FUNC]])","v":"4098300SCHMAT720300Pension / Retirement (Accrued / Prepaid)SO"},4098300,{"$f":"IF(tblSchMJune19[[#This Row],[Primary Account]]=4098200,\"SCHMAP\",IF(tblSchMJune19[[#This Row],[Primary Account]]=4098300,\"SCHMAT\",IF(tblSchMJune19[[#This Row],[Primary Account]]=4099200,\"SCHMDP\",IF(tblSchMJune19[[#This Row],[Primary Account]]=4099300,\"SCHMDT\"))))","v":"SCHMAT"},"720300","Pension / Retirement (Accrued / Prepaid)","SO",-143.54400000000001,{"$f":"IF(OR(tblSchMJune19[[#This Row],[Alloc]]=\"IDU\",tblSchMJune19[[#This Row],[Alloc]]=\"OR\",tblSchMJune19[[#This Row],[Alloc]]=\"UT\",tblSchMJune19[[#This Row],[Alloc]]=\"WYU\",tblSchMJune19[[#This Row],[Alloc]]=\"WYP\",tblSchMJune19[[#This Row],[Alloc]]=\"CA\",tblSchMJune19[[#This Row],[Alloc]]=\"WA\"),\"SITUS\",tblSchMJune19[[#This Row],[Alloc]])","v":"SO"},{"$f":"INDEX(tblSchMLookup[FUNC],MATCH(tblSchMJune19[[#This Row],[Concat]],tblSchMLookup[Concat],0))","v":"LABOR"},{"$f":"IF(tblSchMJune19[[#This Row],[Total ($000)]]=0,\"NO\",IF(ISNA(tblSchMJune19[[#This Row],[FUNC]]),\"YES\",IF(_xlfn.ISFORMULA(tblSchMJune19[[#This Row],[FUNC]]),\"NO\",\"YES\")))","v":"NO"}]
[{"$f":"CONCATENATE(tblSchMJune19[[#This Row],[Primary Account]],tblSchMJune19[[#This Row],[Primary Name]],tblSchMJune19[[#This Row],[Secondary Acct]],tblSchMJune19[[#This Row],[Secondary  Name]],tblSchMJune19[[#This Row],[Alloc4FUNC]])","v":"4098300SCHMAT720400Suppl. Exec. Retirement Plan (SERP)SO"},4098300,{"$f":"IF(tblSchMJune19[[#This Row],[Primary Account]]=4098200,\"SCHMAP\",IF(tblSchMJune19[[#This Row],[Primary Account]]=4098300,\"SCHMAT\",IF(tblSchMJune19[[#This Row],[Primary Account]]=4099200,\"SCHMDP\",IF(tblSchMJune19[[#This Row],[Primary Account]]=4099300,\"SCHMDT\"))))","v":"SCHMAT"},"720400","Suppl. Exec. Retirement Plan (SERP)","SO",null,{"$f":"IF(OR(tblSchMJune19[[#This Row],[Alloc]]=\"IDU\",tblSchMJune19[[#This Row],[Alloc]]=\"OR\",tblSchMJune19[[#This Row],[Alloc]]=\"UT\",tblSchMJune19[[#This Row],[Alloc]]=\"WYU\",tblSchMJune19[[#This Row],[Alloc]]=\"WYP\",tblSchMJune19[[#This Row],[Alloc]]=\"CA\",tblSchMJune19[[#This Row],[Alloc]]=\"WA\"),\"SITUS\",tblSchMJune19[[#This Row],[Alloc]])","v":"SO"},{"$f":"INDEX(tblSchMLookup[FUNC],MATCH(tblSchMJune19[[#This Row],[Concat]],tblSchMLookup[Concat],0))","v":{"$error":"#N/A"}},{"$f":"IF(tblSchMJune19[[#This Row],[Total ($000)]]=0,\"NO\",IF(ISNA(tblSchMJune19[[#This Row],[FUNC]]),\"YES\",IF(_xlfn.ISFORMULA(tblSchMJune19[[#This Row],[FUNC]]),\"NO\",\"YES\")))","v":"NO"}]
[{"$f":"CONCATENATE(tblSchMJune19[[#This Row],[Primary Account]],tblSchMJune19[[#This Row],[Primary Name]],tblSchMJune19[[#This Row],[Secondary Acct]],tblSchMJune19[[#This Row],[Secondary  Name]],tblSchMJune19[[#This Row],[Alloc4FUNC]])","v":"4098300SCHMAT720550Accrued CIC SeverenceSO"},4098300,{"$f":"IF(tblSchMJune19[[#This Row],[Primary Account]]=4098200,\"SCHMAP\",IF(tblSchMJune19[[#This Row],[Primary Account]]=4098300,\"SCHMAT\",IF(tblSchMJune19[[#This Row],[Primary Account]]=4099200,\"SCHMDP\",IF(tblSchMJune19[[#This Row],[Primary Account]]=4099300,\"SCHMDT\"))))","v":"SCHMAT"},"720550","Accrued CIC Severence","SO",null,{"$f":"IF(OR(tblSchMJune19[[#This Row],[Alloc]]=\"IDU\",tblSchMJune19[[#This Row],[Alloc]]=\"OR\",tblSchMJune19[[#This Row],[Alloc]]=\"UT\",tblSchMJune19[[#This Row],[Alloc]]=\"WYU\",tblSchMJune19[[#This Row],[Alloc]]=\"WYP\",tblSchMJune19[[#This Row],[Alloc]]=\"CA\",tblSchMJune19[[#This Row],[Alloc]]=\"WA\"),\"SITUS\",tblSchMJune19[[#This Row],[Alloc]])","v":"SO"},{"$f":"INDEX(tblSchMLookup[FUNC],MATCH(tblSchMJune19[[#This Row],[Concat]],tblSchMLookup[Concat],0))","v":{"$error":"#N/A"}},{"$f":"IF(tblSchMJune19[[#This Row],[Total ($000)]]=0,\"NO\",IF(ISNA(tblSchMJune19[[#This Row],[FUNC]]),\"YES\",IF(_xlfn.ISFORMULA(tblSchMJune19[[#This Row],[FUNC]]),\"NO\",\"YES\")))","v":"NO"}]
[{"$f":"CONCATENATE(tblSchMJune19[[#This Row],[Primary Account]],tblSchMJune19[[#This Row],[Primary Name]],tblSchMJune19[[#This Row],[Secondary Acct]],tblSchMJune19[[#This Row],[Secondary  Name]],tblSchMJune19[[#This Row],[Alloc4FUNC]])","v":"4098300SCHMAT720560Pension Liability - UMWA Withdrawal ObliSE"},4098300,{"$f":"IF(tblSchMJune19[[#This Row],[Primary Account]]=4098200,\"SCHMAP\",IF(tblSchMJune19[[#This Row],[Primary Account]]=4098300,\"SCHMAT\",IF(tblSchMJune19[[#This Row],[Primary Account]]=4099200,\"SCHMDP\",IF(tblSchMJune19[[#This Row],[Primary Account]]=4099300,\"SCHMDT\"))))","v":"SCHMAT"},"720560","Pension Liability - UMWA Withdrawal Obli","SE",null,{"$f":"IF(OR(tblSchMJune19[[#This Row],[Alloc]]=\"IDU\",tblSchMJune19[[#This Row],[Alloc]]=\"OR\",tblSchMJune19[[#This Row],[Alloc]]=\"UT\",tblSchMJune19[[#This Row],[Alloc]]=\"WYU\",tblSchMJune19[[#This Row],[Alloc]]=\"WYP\",tblSchMJune19[[#This Row],[Alloc]]=\"CA\",tblSchMJune19[[#This Row],[Alloc]]=\"WA\"),\"SITUS\",tblSchMJune19[[#This Row],[Alloc]])","v":"SE"},{"$f":"INDEX(tblSchMLookup[FUNC],MATCH(tblSchMJune19[[#This Row],[Concat]],tblSchMLookup[Concat],0))","v":"P"},{"$f":"IF(tblSchMJune19[[#This Row],[Total ($000)]]=0,\"NO\",IF(ISNA(tblSchMJune19[[#This Row],[FUNC]]),\"YES\",IF(_xlfn.ISFORMULA(tblSchMJune19[[#This Row],[FUNC]]),\"NO\",\"YES\")))","v":"NO"}]
[{"$f":"CONCATENATE(tblSchMJune19[[#This Row],[Primary Account]],tblSchMJune19[[#This Row],[Primary Name]],tblSchMJune19[[#This Row],[Secondary Acct]],tblSchMJune19[[#This Row],[Secondary  Name]],tblSchMJune19[[#This Row],[Alloc4FUNC]])","v":"4098300SCHMAT740100Post Merger Loss-Reacquired DebtSNP"},4098300,{"$f":"IF(tblSchMJune19[[#This Row],[Primary Account]]=4098200,\"SCHMAP\",IF(tblSchMJune19[[#This Row],[Primary Account]]=4098300,\"SCHMAT\",IF(tblSchMJune19[[#This Row],[Primary Account]]=4099200,\"SCHMDP\",IF(tblSchMJune19[[#This Row],[Primary Account]]=4099300,\"SCHMDT\"))))","v":"SCHMAT"},"740100","Post Merger Loss-Reacquired Debt","SNP",584.92201,{"$f":"IF(OR(tblSchMJune19[[#This Row],[Alloc]]=\"IDU\",tblSchMJune19[[#This Row],[Alloc]]=\"OR\",tblSchMJune19[[#This Row],[Alloc]]=\"UT\",tblSchMJune19[[#This Row],[Alloc]]=\"WYU\",tblSchMJune19[[#This Row],[Alloc]]=\"WYP\",tblSchMJune19[[#This Row],[Alloc]]=\"CA\",tblSchMJune19[[#This Row],[Alloc]]=\"WA\"),\"SITUS\",tblSchMJune19[[#This Row],[Alloc]])","v":"SNP"},{"$f":"INDEX(tblSchMLookup[FUNC],MATCH(tblSchMJune19[[#This Row],[Concat]],tblSchMLookup[Concat],0))","v":"GP"},{"$f":"IF(tblSchMJune19[[#This Row],[Total ($000)]]=0,\"NO\",IF(ISNA(tblSchMJune19[[#This Row],[FUNC]]),\"YES\",IF(_xlfn.ISFORMULA(tblSchMJune19[[#This Row],[FUNC]]),\"NO\",\"YES\")))","v":"NO"}]
[{"$f":"CONCATENATE(tblSchMJune19[[#This Row],[Primary Account]],tblSchMJune19[[#This Row],[Primary Name]],tblSchMJune19[[#This Row],[Secondary Acct]],tblSchMJune19[[#This Row],[Secondary  Name]],tblSchMJune19[[#This Row],[Alloc4FUNC]])","v":"4098300SCHMAT910245Contra Receivable from Joint OwnersSO"},4098300,{"$f":"IF(tblSchMJune19[[#This Row],[Primary Account]]=4098200,\"SCHMAP\",IF(tblSchMJune19[[#This Row],[Primary Account]]=4098300,\"SCHMAT\",IF(tblSchMJune19[[#This Row],[Primary Account]]=4099200,\"SCHMDP\",IF(tblSchMJune19[[#This Row],[Primary Account]]=4099300,\"SCHMDT\"))))","v":"SCHMAT"},"910245","Contra Receivable from Joint Owners","SO",-257.21548000000001,{"$f":"IF(OR(tblSchMJune19[[#This Row],[Alloc]]=\"IDU\",tblSchMJune19[[#This Row],[Alloc]]=\"OR\",tblSchMJune19[[#This Row],[Alloc]]=\"UT\",tblSchMJune19[[#This Row],[Alloc]]=\"WYU\",tblSchMJune19[[#This Row],[Alloc]]=\"WYP\",tblSchMJune19[[#This Row],[Alloc]]=\"CA\",tblSchMJune19[[#This Row],[Alloc]]=\"WA\"),\"SITUS\",tblSchMJune19[[#This Row],[Alloc]])","v":"SO"},{"$f":"INDEX(tblSchMLookup[FUNC],MATCH(tblSchMJune19[[#This Row],[Concat]],tblSchMLookup[Concat],0))","v":"PTD"},{"$f":"IF(tblSchMJune19[[#This Row],[Total ($000)]]=0,\"NO\",IF(ISNA(tblSchMJune19[[#This Row],[FUNC]]),\"YES\",IF(_xlfn.ISFORMULA(tblSchMJune19[[#This Row],[FUNC]]),\"NO\",\"YES\")))","v":"NO"}]
[{"$f":"CONCATENATE(tblSchMJune19[[#This Row],[Primary Account]],tblSchMJune19[[#This Row],[Primary Name]],tblSchMJune19[[#This Row],[Secondary Acct]],tblSchMJune19[[#This Row],[Secondary  Name]],tblSchMJune19[[#This Row],[Alloc4FUNC]])","v":"4098300SCHMAT910530Injuries and Damages ReserveSO"},4098300,{"$f":"IF(tblSchMJune19[[#This Row],[Primary Account]]=4098200,\"SCHMAP\",IF(tblSchMJune19[[#This Row],[Primary Account]]=4098300,\"SCHMAT\",IF(tblSchMJune19[[#This Row],[Primary Account]]=4099200,\"SCHMDP\",IF(tblSchMJune19[[#This Row],[Primary Account]]=4099300,\"SCHMDT\"))))","v":"SCHMAT"},"910530","Injuries and Damages Reserve","SO",null,{"$f":"IF(OR(tblSchMJune19[[#This Row],[Alloc]]=\"IDU\",tblSchMJune19[[#This Row],[Alloc]]=\"OR\",tblSchMJune19[[#This Row],[Alloc]]=\"UT\",tblSchMJune19[[#This Row],[Alloc]]=\"WYU\",tblSchMJune19[[#This Row],[Alloc]]=\"WYP\",tblSchMJune19[[#This Row],[Alloc]]=\"CA\",tblSchMJune19[[#This Row],[Alloc]]=\"WA\"),\"SITUS\",tblSchMJune19[[#This Row],[Alloc]])","v":"SO"},{"$f":"INDEX(tblSchMLookup[FUNC],MATCH(tblSchMJune19[[#This Row],[Concat]],tblSchMLookup[Concat],0))","v":{"$error":"#N/A"}},{"$f":"IF(tblSchMJune19[[#This Row],[Total ($000)]]=0,\"NO\",IF(ISNA(tblSchMJune19[[#This Row],[FUNC]]),\"YES\",IF(_xlfn.ISFORMULA(tblSchMJune19[[#This Row],[FUNC]]),\"NO\",\"YES\")))","v":"NO"}]
[{"$f":"CONCATENATE(tblSchMJune19[[#This Row],[Primary Account]],tblSchMJune19[[#This Row],[Primary Name]],tblSchMJune19[[#This Row],[Secondary Acct]],tblSchMJune19[[#This Row],[Secondary  Name]],tblSchMJune19[[#This Row],[Alloc4FUNC]])","v":"4098300SCHMAT910560SMUD Revenue Imputation-UT reg liabSITUS"},4098300,{"$f":"IF(tblSchMJune19[[#This Row],[Primary Account]]=4098200,\"SCHMAP\",IF(tblSchMJune19[[#This Row],[Primary Account]]=4098300,\"SCHMAT\",IF(tblSchMJune19[[#This Row],[Primary Account]]=4099200,\"SCHMDP\",IF(tblSchMJune19[[#This Row],[Primary Account]]=4099300,\"SCHMDT\"))))","v":"SCHMAT"},"910560","SMUD Revenue Imputation-UT reg liab","UT",null,{"$f":"IF(OR(tblSchMJune19[[#This Row],[Alloc]]=\"IDU\",tblSchMJune19[[#This Row],[Alloc]]=\"OR\",tblSchMJune19[[#This Row],[Alloc]]=\"UT\",tblSchMJune19[[#This Row],[Alloc]]=\"WYU\",tblSchMJune19[[#This Row],[Alloc]]=\"WYP\",tblSchMJune19[[#This Row],[Alloc]]=\"CA\",tblSchMJune19[[#This Row],[Alloc]]=\"WA\"),\"SITUS\",tblSchMJune19[[#This Row],[Alloc]])","v":"SITUS"},{"$f":"INDEX(tblSchMLookup[FUNC],MATCH(tblSchMJune19[[#This Row],[Concat]],tblSchMLookup[Concat],0))","v":{"$error":"#N/A"}},{"$f":"IF(tblSchMJune19[[#This Row],[Total ($000)]]=0,\"NO\",IF(ISNA(tblSchMJune19[[#This Row],[FUNC]]),\"YES\",IF(_xlfn.ISFORMULA(tblSchMJune19[[#This Row],[FUNC]]),\"NO\",\"YES\")))","v":"NO"}]
[{"$f":"CONCATENATE(tblSchMJune19[[#This Row],[Primary Account]],tblSchMJune19[[#This Row],[Primary Name]],tblSchMJune19[[#This Row],[Secondary Acct]],tblSchMJune19[[#This Row],[Secondary  Name]],tblSchMJune19[[#This Row],[Alloc4FUNC]])","v":"4098300SCHMAT910905Bridger Coal Company Underground Mine CoSE"},4098300,{"$f":"IF(tblSchMJune19[[#This Row],[Primary Account]]=4098200,\"SCHMAP\",IF(tblSchMJune19[[#This Row],[Primary Account]]=4098300,\"SCHMAT\",IF(tblSchMJune19[[#This Row],[Primary Account]]=4099200,\"SCHMDP\",IF(tblSchMJune19[[#This Row],[Primary Account]]=4099300,\"SCHMDT\"))))","v":"SCHMAT"},"910905","Bridger Coal Company Underground Mine Co","SE",939.15899999999999,{"$f":"IF(OR(tblSchMJune19[[#This Row],[Alloc]]=\"IDU\",tblSchMJune19[[#This Row],[Alloc]]=\"OR\",tblSchMJune19[[#This Row],[Alloc]]=\"UT\",tblSchMJune19[[#This Row],[Alloc]]=\"WYU\",tblSchMJune19[[#This Row],[Alloc]]=\"WYP\",tblSchMJune19[[#This Row],[Alloc]]=\"CA\",tblSchMJune19[[#This Row],[Alloc]]=\"WA\"),\"SITUS\",tblSchMJune19[[#This Row],[Alloc]])","v":"SE"},{"$f":"INDEX(tblSchMLookup[FUNC],MATCH(tblSchMJune19[[#This Row],[Concat]],tblSchMLookup[Concat],0))","v":"P"},{"$f":"IF(tblSchMJune19[[#This Row],[Total ($000)]]=0,\"NO\",IF(ISNA(tblSchMJune19[[#This Row],[FUNC]]),\"YES\",IF(_xlfn.ISFORMULA(tblSchMJune19[[#This Row],[FUNC]]),\"NO\",\"YES\")))","v":"NO"}]
[{"$f":"CONCATENATE(tblSchMJune19[[#This Row],[Primary Account]],tblSchMJune19[[#This Row],[Primary Name]],tblSchMJune19[[#This Row],[Secondary Acct]],tblSchMJune19[[#This Row],[Secondary  Name]],tblSchMJune19[[#This Row],[Alloc4FUNC]])","v":"4098300SCHMAT910910PMIBridger Section 471 AdjSE"},4098300,{"$f":"IF(tblSchMJune19[[#This Row],[Primary Account]]=4098200,\"SCHMAP\",IF(tblSchMJune19[[#This Row],[Primary Account]]=4098300,\"SCHMAT\",IF(tblSchMJune19[[#This Row],[Primary Account]]=4099200,\"SCHMDP\",IF(tblSchMJune19[[#This Row],[Primary Account]]=4099300,\"SCHMDT\"))))","v":"SCHMAT"},"910910","PMIBridger Section 471 Adj","SE",null,{"$f":"IF(OR(tblSchMJune19[[#This Row],[Alloc]]=\"IDU\",tblSchMJune19[[#This Row],[Alloc]]=\"OR\",tblSchMJune19[[#This Row],[Alloc]]=\"UT\",tblSchMJune19[[#This Row],[Alloc]]=\"WYU\",tblSchMJune19[[#This Row],[Alloc]]=\"WYP\",tblSchMJune19[[#This Row],[Alloc]]=\"CA\",tblSchMJune19[[#This Row],[Alloc]]=\"WA\"),\"SITUS\",tblSchMJune19[[#This Row],[Alloc]])","v":"SE"},{"$f":"INDEX(tblSchMLookup[FUNC],MATCH(tblSchMJune19[[#This Row],[Concat]],tblSchMLookup[Concat],0))","v":{"$error":"#N/A"}},{"$f":"IF(tblSchMJune19[[#This Row],[Total ($000)]]=0,\"NO\",IF(ISNA(tblSchMJune19[[#This Row],[FUNC]]),\"YES\",IF(_xlfn.ISFORMULA(tblSchMJune19[[#This Row],[FUNC]]),\"NO\",\"YES\")))","v":"NO"}]
[{"$f":"CONCATENATE(tblSchMJune19[[#This Row],[Primary Account]],tblSchMJune19[[#This Row],[Primary Name]],tblSchMJune19[[#This Row],[Secondary Acct]],tblSchMJune19[[#This Row],[Secondary  Name]],tblSchMJune19[[#This Row],[Alloc4FUNC]])","v":"4098300SCHMAT920110PMIWY Extraction TaxSE"},4098300,{"$f":"IF(tblSchMJune19[[#This Row],[Primary Account]]=4098200,\"SCHMAP\",IF(tblSchMJune19[[#This Row],[Primary Account]]=4098300,\"SCHMAT\",IF(tblSchMJune19[[#This Row],[Primary Account]]=4099200,\"SCHMDP\",IF(tblSchMJune19[[#This Row],[Primary Account]]=4099300,\"SCHMDT\"))))","v":"SCHMAT"},"920110","PMIWY Extraction Tax","SE",322.678,{"$f":"IF(OR(tblSchMJune19[[#This Row],[Alloc]]=\"IDU\",tblSchMJune19[[#This Row],[Alloc]]=\"OR\",tblSchMJune19[[#This Row],[Alloc]]=\"UT\",tblSchMJune19[[#This Row],[Alloc]]=\"WYU\",tblSchMJune19[[#This Row],[Alloc]]=\"WYP\",tblSchMJune19[[#This Row],[Alloc]]=\"CA\",tblSchMJune19[[#This Row],[Alloc]]=\"WA\"),\"SITUS\",tblSchMJune19[[#This Row],[Alloc]])","v":"SE"},{"$f":"INDEX(tblSchMLookup[FUNC],MATCH(tblSchMJune19[[#This Row],[Concat]],tblSchMLookup[Concat],0))","v":"P"},{"$f":"IF(tblSchMJune19[[#This Row],[Total ($000)]]=0,\"NO\",IF(ISNA(tblSchMJune19[[#This Row],[FUNC]]),\"YES\",IF(_xlfn.ISFORMULA(tblSchMJune19[[#This Row],[FUNC]]),\"NO\",\"YES\")))","v":"NO"}]
[{"$f":"CONCATENATE(tblSchMJune19[[#This Row],[Primary Account]],tblSchMJune19[[#This Row],[Primary Name]],tblSchMJune19[[#This Row],[Secondary Acct]],tblSchMJune19[[#This Row],[Secondary  Name]],tblSchMJune19[[#This Row],[Alloc4FUNC]])","v":"4099200SCHMDP105127Book Depreciation Allocated to MedicareSCHMDEXP"},4099200,{"$f":"IF(tblSchMJune19[[#This Row],[Primary Account]]=4098200,\"SCHMAP\",IF(tblSchMJune19[[#This Row],[Primary Account]]=4098300,\"SCHMAT\",IF(tblSchMJune19[[#This Row],[Primary Account]]=4099200,\"SCHMDP\",IF(tblSchMJune19[[#This Row],[Primary Account]]=4099300,\"SCHMDT\"))))","v":"SCHMDP"},"105127","Book Depreciation Allocated to Medicare","SCHMDEXP",-19.356909999999999,{"$f":"IF(OR(tblSchMJune19[[#This Row],[Alloc]]=\"IDU\",tblSchMJune19[[#This Row],[Alloc]]=\"OR\",tblSchMJune19[[#This Row],[Alloc]]=\"UT\",tblSchMJune19[[#This Row],[Alloc]]=\"WYU\",tblSchMJune19[[#This Row],[Alloc]]=\"WYP\",tblSchMJune19[[#This Row],[Alloc]]=\"CA\",tblSchMJune19[[#This Row],[Alloc]]=\"WA\"),\"SITUS\",tblSchMJune19[[#This Row],[Alloc]])","v":"SCHMDEXP"},{"$f":"INDEX(tblSchMLookup[FUNC],MATCH(tblSchMJune19[[#This Row],[Concat]],tblSchMLookup[Concat],0))","v":"LABOR"},{"$f":"IF(tblSchMJune19[[#This Row],[Total ($000)]]=0,\"NO\",IF(ISNA(tblSchMJune19[[#This Row],[FUNC]]),\"YES\",IF(_xlfn.ISFORMULA(tblSchMJune19[[#This Row],[FUNC]]),\"NO\",\"YES\")))","v":"NO"}]
[{"$f":"CONCATENATE(tblSchMJune19[[#This Row],[Primary Account]],tblSchMJune19[[#This Row],[Primary Name]],tblSchMJune19[[#This Row],[Secondary Acct]],tblSchMJune19[[#This Row],[Secondary  Name]],tblSchMJune19[[#This Row],[Alloc4FUNC]])","v":"4099200SCHMDP110200Tax Depletion - Deer CreekSE"},4099200,{"$f":"IF(tblSchMJune19[[#This Row],[Primary Account]]=4098200,\"SCHMAP\",IF(tblSchMJune19[[#This Row],[Primary Account]]=4098300,\"SCHMAT\",IF(tblSchMJune19[[#This Row],[Primary Account]]=4099200,\"SCHMDP\",IF(tblSchMJune19[[#This Row],[Primary Account]]=4099300,\"SCHMDT\"))))","v":"SCHMDP"},"110200","Tax Depletion - Deer Creek","SE",null,{"$f":"IF(OR(tblSchMJune19[[#This Row],[Alloc]]=\"IDU\",tblSchMJune19[[#This Row],[Alloc]]=\"OR\",tblSchMJune19[[#This Row],[Alloc]]=\"UT\",tblSchMJune19[[#This Row],[Alloc]]=\"WYU\",tblSchMJune19[[#This Row],[Alloc]]=\"WYP\",tblSchMJune19[[#This Row],[Alloc]]=\"CA\",tblSchMJune19[[#This Row],[Alloc]]=\"WA\"),\"SITUS\",tblSchMJune19[[#This Row],[Alloc]])","v":"SE"},{"$f":"INDEX(tblSchMLookup[FUNC],MATCH(tblSchMJune19[[#This Row],[Concat]],tblSchMLookup[Concat],0))","v":{"$error":"#N/A"}},{"$f":"IF(tblSchMJune19[[#This Row],[Total ($000)]]=0,\"NO\",IF(ISNA(tblSchMJune19[[#This Row],[FUNC]]),\"YES\",IF(_xlfn.ISFORMULA(tblSchMJune19[[#This Row],[FUNC]]),\"NO\",\"YES\")))","v":"NO"}]
[{"$f":"CONCATENATE(tblSchMJune19[[#This Row],[Primary Account]],tblSchMJune19[[#This Row],[Primary Name]],tblSchMJune19[[#This Row],[Secondary Acct]],tblSchMJune19[[#This Row],[Secondary  Name]],tblSchMJune19[[#This Row],[Alloc4FUNC]])","v":"4099200SCHMDP1102051TAX PERCENTAGE DEPLETION - DEDUCTIONSE"},4099200,{"$f":"IF(tblSchMJune19[[#This Row],[Primary Account]]=4098200,\"SCHMAP\",IF(tblSchMJune19[[#This Row],[Primary Account]]=4098300,\"SCHMAT\",IF(tblSchMJune19[[#This Row],[Primary Account]]=4099200,\"SCHMDP\",IF(tblSchMJune19[[#This Row],[Primary Account]]=4099300,\"SCHMDT\"))))","v":"SCHMDP"},"1102051","TAX PERCENTAGE DEPLETION - DEDUCTION","SE",null,{"$f":"IF(OR(tblSchMJune19[[#This Row],[Alloc]]=\"IDU\",tblSchMJune19[[#This Row],[Alloc]]=\"OR\",tblSchMJune19[[#This Row],[Alloc]]=\"UT\",tblSchMJune19[[#This Row],[Alloc]]=\"WYU\",tblSchMJune19[[#This Row],[Alloc]]=\"WYP\",tblSchMJune19[[#This Row],[Alloc]]=\"CA\",tblSchMJune19[[#This Row],[Alloc]]=\"WA\"),\"SITUS\",tblSchMJune19[[#This Row],[Alloc]])","v":"SE"},{"$f":"INDEX(tblSchMLookup[FUNC],MATCH(tblSchMJune19[[#This Row],[Concat]],tblSchMLookup[Concat],0))","v":{"$error":"#N/A"}},{"$f":"IF(tblSchMJune19[[#This Row],[Total ($000)]]=0,\"NO\",IF(ISNA(tblSchMJune19[[#This Row],[FUNC]]),\"YES\",IF(_xlfn.ISFORMULA(tblSchMJune19[[#This Row],[FUNC]]),\"NO\",\"YES\")))","v":"NO"}]
[{"$f":"CONCATENATE(tblSchMJune19[[#This Row],[Primary Account]],tblSchMJune19[[#This Row],[Primary Name]],tblSchMJune19[[#This Row],[Secondary Acct]],tblSchMJune19[[#This Row],[Secondary  Name]],tblSchMJune19[[#This Row],[Alloc4FUNC]])","v":"4099200SCHMDP120100Preferred Dividend - PPLSNP"},4099200,{"$f":"IF(tblSchMJune19[[#This Row],[Primary Account]]=4098200,\"SCHMAP\",IF(tblSchMJune19[[#This Row],[Primary Account]]=4098300,\"SCHMAT\",IF(tblSchMJune19[[#This Row],[Primary Account]]=4099200,\"SCHMDP\",IF(tblSchMJune19[[#This Row],[Primary Account]]=4099300,\"SCHMDT\"))))","v":"SCHMDP"},"120100","Preferred Dividend - PPL","SNP",106.6104,{"$f":"IF(OR(tblSchMJune19[[#This Row],[Alloc]]=\"IDU\",tblSchMJune19[[#This Row],[Alloc]]=\"OR\",tblSchMJune19[[#This Row],[Alloc]]=\"UT\",tblSchMJune19[[#This Row],[Alloc]]=\"WYU\",tblSchMJune19[[#This Row],[Alloc]]=\"WYP\",tblSchMJune19[[#This Row],[Alloc]]=\"CA\",tblSchMJune19[[#This Row],[Alloc]]=\"WA\"),\"SITUS\",tblSchMJune19[[#This Row],[Alloc]])","v":"SNP"},{"$f":"INDEX(tblSchMLookup[FUNC],MATCH(tblSchMJune19[[#This Row],[Concat]],tblSchMLookup[Concat],0))","v":"PTD"},{"$f":"IF(tblSchMJune19[[#This Row],[Total ($000)]]=0,\"NO\",IF(ISNA(tblSchMJune19[[#This Row],[FUNC]]),\"YES\",IF(_xlfn.ISFORMULA(tblSchMJune19[[#This Row],[FUNC]]),\"NO\",\"YES\")))","v":"NO"}]
[{"$f":"CONCATENATE(tblSchMJune19[[#This Row],[Primary Account]],tblSchMJune19[[#This Row],[Primary Name]],tblSchMJune19[[#This Row],[Secondary Acct]],tblSchMJune19[[#This Row],[Secondary  Name]],tblSchMJune19[[#This Row],[Alloc4FUNC]])","v":"4099200SCHMDP120200Trapper Mine Dividend DeductionSE"},4099200,{"$f":"IF(tblSchMJune19[[#This Row],[Primary Account]]=4098200,\"SCHMAP\",IF(tblSchMJune19[[#This Row],[Primary Account]]=4098300,\"SCHMAT\",IF(tblSchMJune19[[#This Row],[Primary Account]]=4099200,\"SCHMDP\",IF(tblSchMJune19[[#This Row],[Primary Account]]=4099300,\"SCHMDT\"))))","v":"SCHMDP"},"120200","Trapper Mine Dividend Deduction","SE",null,{"$f":"IF(OR(tblSchMJune19[[#This Row],[Alloc]]=\"IDU\",tblSchMJune19[[#This Row],[Alloc]]=\"OR\",tblSchMJune19[[#This Row],[Alloc]]=\"UT\",tblSchMJune19[[#This Row],[Alloc]]=\"WYU\",tblSchMJune19[[#This Row],[Alloc]]=\"WYP\",tblSchMJune19[[#This Row],[Alloc]]=\"CA\",tblSchMJune19[[#This Row],[Alloc]]=\"WA\"),\"SITUS\",tblSchMJune19[[#This Row],[Alloc]])","v":"SE"},{"$f":"INDEX(tblSchMLookup[FUNC],MATCH(tblSchMJune19[[#This Row],[Concat]],tblSchMLookup[Concat],0))","v":{"$error":"#N/A"}},{"$f":"IF(tblSchMJune19[[#This Row],[Total ($000)]]=0,\"NO\",IF(ISNA(tblSchMJune19[[#This Row],[FUNC]]),\"YES\",IF(_xlfn.ISFORMULA(tblSchMJune19[[#This Row],[FUNC]]),\"NO\",\"YES\")))","v":"NO"}]
[{"$f":"CONCATENATE(tblSchMJune19[[#This Row],[Primary Account]],tblSchMJune19[[#This Row],[Primary Name]],tblSchMJune19[[#This Row],[Secondary Acct]],tblSchMJune19[[#This Row],[Secondary  Name]],tblSchMJune19[[#This Row],[Alloc4FUNC]])","v":"4099200SCHMDP130560MEHC Insurance Services-ReceivableSO"},4099200,{"$f":"IF(tblSchMJune19[[#This Row],[Primary Account]]=4098200,\"SCHMAP\",IF(tblSchMJune19[[#This Row],[Primary Account]]=4098300,\"SCHMAT\",IF(tblSchMJune19[[#This Row],[Primary Account]]=4099200,\"SCHMDP\",IF(tblSchMJune19[[#This Row],[Primary Account]]=4099300,\"SCHMDT\"))))","v":"SCHMDP"},"130560","MEHC Insurance Services-Receivable","SO",null,{"$f":"IF(OR(tblSchMJune19[[#This Row],[Alloc]]=\"IDU\",tblSchMJune19[[#This Row],[Alloc]]=\"OR\",tblSchMJune19[[#This Row],[Alloc]]=\"UT\",tblSchMJune19[[#This Row],[Alloc]]=\"WYU\",tblSchMJune19[[#This Row],[Alloc]]=\"WYP\",tblSchMJune19[[#This Row],[Alloc]]=\"CA\",tblSchMJune19[[#This Row],[Alloc]]=\"WA\"),\"SITUS\",tblSchMJune19[[#This Row],[Alloc]])","v":"SO"},{"$f":"INDEX(tblSchMLookup[FUNC],MATCH(tblSchMJune19[[#This Row],[Concat]],tblSchMLookup[Concat],0))","v":{"$error":"#N/A"}},{"$f":"IF(tblSchMJune19[[#This Row],[Total ($000)]]=0,\"NO\",IF(ISNA(tblSchMJune19[[#This Row],[FUNC]]),\"YES\",IF(_xlfn.ISFORMULA(tblSchMJune19[[#This Row],[FUNC]]),\"NO\",\"YES\")))","v":"NO"}]
[{"$f":"CONCATENATE(tblSchMJune19[[#This Row],[Primary Account]],tblSchMJune19[[#This Row],[Primary Name]],tblSchMJune19[[#This Row],[Secondary Acct]],tblSchMJune19[[#This Row],[Secondary  Name]],tblSchMJune19[[#This Row],[Alloc4FUNC]])","v":"4099200SCHMDP130600Tax Exempt Interest ( No AMT)SO"},4099200,{"$f":"IF(tblSchMJune19[[#This Row],[Primary Account]]=4098200,\"SCHMAP\",IF(tblSchMJune19[[#This Row],[Primary Account]]=4098300,\"SCHMAT\",IF(tblSchMJune19[[#This Row],[Primary Account]]=4099200,\"SCHMDP\",IF(tblSchMJune19[[#This Row],[Primary Account]]=4099300,\"SCHMDT\"))))","v":"SCHMDP"},"130600","Tax Exempt Interest ( No AMT)","SO",null,{"$f":"IF(OR(tblSchMJune19[[#This Row],[Alloc]]=\"IDU\",tblSchMJune19[[#This Row],[Alloc]]=\"OR\",tblSchMJune19[[#This Row],[Alloc]]=\"UT\",tblSchMJune19[[#This Row],[Alloc]]=\"WYU\",tblSchMJune19[[#This Row],[Alloc]]=\"WYP\",tblSchMJune19[[#This Row],[Alloc]]=\"CA\",tblSchMJune19[[#This Row],[Alloc]]=\"WA\"),\"SITUS\",tblSchMJune19[[#This Row],[Alloc]])","v":"SO"},{"$f":"INDEX(tblSchMLookup[FUNC],MATCH(tblSchMJune19[[#This Row],[Concat]],tblSchMLookup[Concat],0))","v":{"$error":"#N/A"}},{"$f":"IF(tblSchMJune19[[#This Row],[Total ($000)]]=0,\"NO\",IF(ISNA(tblSchMJune19[[#This Row],[FUNC]]),\"YES\",IF(_xlfn.ISFORMULA(tblSchMJune19[[#This Row],[FUNC]]),\"NO\",\"YES\")))","v":"NO"}]
[{"$f":"CONCATENATE(tblSchMJune19[[#This Row],[Primary Account]],tblSchMJune19[[#This Row],[Primary Name]],tblSchMJune19[[#This Row],[Secondary Acct]],tblSchMJune19[[#This Row],[Secondary  Name]],tblSchMJune19[[#This Row],[Alloc4FUNC]])","v":"4099200SCHMDP130605Tax Exempt Interest - CA IOUSITUS"},4099200,{"$f":"IF(tblSchMJune19[[#This Row],[Primary Account]]=4098200,\"SCHMAP\",IF(tblSchMJune19[[#This Row],[Primary Account]]=4098300,\"SCHMAT\",IF(tblSchMJune19[[#This Row],[Primary Account]]=4099200,\"SCHMDP\",IF(tblSchMJune19[[#This Row],[Primary Account]]=4099300,\"SCHMDT\"))))","v":"SCHMDP"},"130605","Tax Exempt Interest - CA IOU","CA",null,{"$f":"IF(OR(tblSchMJune19[[#This Row],[Alloc]]=\"IDU\",tblSchMJune19[[#This Row],[Alloc]]=\"OR\",tblSchMJune19[[#This Row],[Alloc]]=\"UT\",tblSchMJune19[[#This Row],[Alloc]]=\"WYU\",tblSchMJune19[[#This Row],[Alloc]]=\"WYP\",tblSchMJune19[[#This Row],[Alloc]]=\"CA\",tblSchMJune19[[#This Row],[Alloc]]=\"WA\"),\"SITUS\",tblSchMJune19[[#This Row],[Alloc]])","v":"SITUS"},{"$f":"INDEX(tblSchMLookup[FUNC],MATCH(tblSchMJune19[[#This Row],[Concat]],tblSchMLookup[Concat],0))","v":{"$error":"#N/A"}},{"$f":"IF(tblSchMJune19[[#This Row],[Total ($000)]]=0,\"NO\",IF(ISNA(tblSchMJune19[[#This Row],[FUNC]]),\"YES\",IF(_xlfn.ISFORMULA(tblSchMJune19[[#This Row],[FUNC]]),\"NO\",\"YES\")))","v":"NO"}]
[{"$f":"CONCATENATE(tblSchMJune19[[#This Row],[Primary Account]],tblSchMJune19[[#This Row],[Primary Name]],tblSchMJune19[[#This Row],[Secondary Acct]],tblSchMJune19[[#This Row],[Secondary  Name]],tblSchMJune19[[#This Row],[Alloc4FUNC]])","v":"4099200SCHMDP130910SPI 404(K) ContributionSO"},4099200,{"$f":"IF(tblSchMJune19[[#This Row],[Primary Account]]=4098200,\"SCHMAP\",IF(tblSchMJune19[[#This Row],[Primary Account]]=4098300,\"SCHMAT\",IF(tblSchMJune19[[#This Row],[Primary Account]]=4099200,\"SCHMDP\",IF(tblSchMJune19[[#This Row],[Primary Account]]=4099300,\"SCHMDT\"))))","v":"SCHMDP"},"130910","SPI 404(K) Contribution","SO",null,{"$f":"IF(OR(tblSchMJune19[[#This Row],[Alloc]]=\"IDU\",tblSchMJune19[[#This Row],[Alloc]]=\"OR\",tblSchMJune19[[#This Row],[Alloc]]=\"UT\",tblSchMJune19[[#This Row],[Alloc]]=\"WYU\",tblSchMJune19[[#This Row],[Alloc]]=\"WYP\",tblSchMJune19[[#This Row],[Alloc]]=\"CA\",tblSchMJune19[[#This Row],[Alloc]]=\"WA\"),\"SITUS\",tblSchMJune19[[#This Row],[Alloc]])","v":"SO"},{"$f":"INDEX(tblSchMLookup[FUNC],MATCH(tblSchMJune19[[#This Row],[Concat]],tblSchMLookup[Concat],0))","v":{"$error":"#N/A"}},{"$f":"IF(tblSchMJune19[[#This Row],[Total ($000)]]=0,\"NO\",IF(ISNA(tblSchMJune19[[#This Row],[FUNC]]),\"YES\",IF(_xlfn.ISFORMULA(tblSchMJune19[[#This Row],[FUNC]]),\"NO\",\"YES\")))","v":"NO"}]
[{"$f":"CONCATENATE(tblSchMJune19[[#This Row],[Primary Account]],tblSchMJune19[[#This Row],[Primary Name]],tblSchMJune19[[#This Row],[Secondary Acct]],tblSchMJune19[[#This Row],[Secondary  Name]],tblSchMJune19[[#This Row],[Alloc4FUNC]])","v":"4099200SCHMDP305100Amort of Projects-Klamath EngineeringDGP"},4099200,{"$f":"IF(tblSchMJune19[[#This Row],[Primary Account]]=4098200,\"SCHMAP\",IF(tblSchMJune19[[#This Row],[Primary Account]]=4098300,\"SCHMAT\",IF(tblSchMJune19[[#This Row],[Primary Account]]=4099200,\"SCHMDP\",IF(tblSchMJune19[[#This Row],[Primary Account]]=4099300,\"SCHMDT\"))))","v":"SCHMDP"},"305100","Amort of Projects-Klamath Engineering","DGP",null,{"$f":"IF(OR(tblSchMJune19[[#This Row],[Alloc]]=\"IDU\",tblSchMJune19[[#This Row],[Alloc]]=\"OR\",tblSchMJune19[[#This Row],[Alloc]]=\"UT\",tblSchMJune19[[#This Row],[Alloc]]=\"WYU\",tblSchMJune19[[#This Row],[Alloc]]=\"WYP\",tblSchMJune19[[#This Row],[Alloc]]=\"CA\",tblSchMJune19[[#This Row],[Alloc]]=\"WA\"),\"SITUS\",tblSchMJune19[[#This Row],[Alloc]])","v":"DGP"},{"$f":"INDEX(tblSchMLookup[FUNC],MATCH(tblSchMJune19[[#This Row],[Concat]],tblSchMLookup[Concat],0))","v":{"$error":"#N/A"}},{"$f":"IF(tblSchMJune19[[#This Row],[Total ($000)]]=0,\"NO\",IF(ISNA(tblSchMJune19[[#This Row],[FUNC]]),\"YES\",IF(_xlfn.ISFORMULA(tblSchMJune19[[#This Row],[FUNC]]),\"NO\",\"YES\")))","v":"NO"}]
[{"$f":"CONCATENATE(tblSchMJune19[[#This Row],[Primary Account]],tblSchMJune19[[#This Row],[Primary Name]],tblSchMJune19[[#This Row],[Secondary Acct]],tblSchMJune19[[#This Row],[Secondary  Name]],tblSchMJune19[[#This Row],[Alloc4FUNC]])","v":"4099200SCHMDP6201002004 JCA-Qualified Prod Activities DeducSG"},4099200,{"$f":"IF(tblSchMJune19[[#This Row],[Primary Account]]=4098200,\"SCHMAP\",IF(tblSchMJune19[[#This Row],[Primary Account]]=4098300,\"SCHMAT\",IF(tblSchMJune19[[#This Row],[Primary Account]]=4099200,\"SCHMDP\",IF(tblSchMJune19[[#This Row],[Primary Account]]=4099300,\"SCHMDT\"))))","v":"SCHMDP"},"620100","2004 JCA-Qualified Prod Activities Deduc","SG",null,{"$f":"IF(OR(tblSchMJune19[[#This Row],[Alloc]]=\"IDU\",tblSchMJune19[[#This Row],[Alloc]]=\"OR\",tblSchMJune19[[#This Row],[Alloc]]=\"UT\",tblSchMJune19[[#This Row],[Alloc]]=\"WYU\",tblSchMJune19[[#This Row],[Alloc]]=\"WYP\",tblSchMJune19[[#This Row],[Alloc]]=\"CA\",tblSchMJune19[[#This Row],[Alloc]]=\"WA\"),\"SITUS\",tblSchMJune19[[#This Row],[Alloc]])","v":"SG"},{"$f":"INDEX(tblSchMLookup[FUNC],MATCH(tblSchMJune19[[#This Row],[Concat]],tblSchMLookup[Concat],0))","v":"P"},{"$f":"IF(tblSchMJune19[[#This Row],[Total ($000)]]=0,\"NO\",IF(ISNA(tblSchMJune19[[#This Row],[FUNC]]),\"YES\",IF(_xlfn.ISFORMULA(tblSchMJune19[[#This Row],[FUNC]]),\"NO\",\"YES\")))","v":"NO"}]
[{"$f":"CONCATENATE(tblSchMJune19[[#This Row],[Primary Account]],tblSchMJune19[[#This Row],[Primary Name]],tblSchMJune19[[#This Row],[Secondary Acct]],tblSchMJune19[[#This Row],[Secondary  Name]],tblSchMJune19[[#This Row],[Alloc4FUNC]])","v":"4099200SCHMDP620101PMI 2004 JCA-Qualified Prod Activities DSE"},4099200,{"$f":"IF(tblSchMJune19[[#This Row],[Primary Account]]=4098200,\"SCHMAP\",IF(tblSchMJune19[[#This Row],[Primary Account]]=4098300,\"SCHMAT\",IF(tblSchMJune19[[#This Row],[Primary Account]]=4099200,\"SCHMDP\",IF(tblSchMJune19[[#This Row],[Primary Account]]=4099300,\"SCHMDT\"))))","v":"SCHMDP"},"620101","PMI 2004 JCA-Qualified Prod Activities D","SE",null,{"$f":"IF(OR(tblSchMJune19[[#This Row],[Alloc]]=\"IDU\",tblSchMJune19[[#This Row],[Alloc]]=\"OR\",tblSchMJune19[[#This Row],[Alloc]]=\"UT\",tblSchMJune19[[#This Row],[Alloc]]=\"WYU\",tblSchMJune19[[#This Row],[Alloc]]=\"WYP\",tblSchMJune19[[#This Row],[Alloc]]=\"CA\",tblSchMJune19[[#This Row],[Alloc]]=\"WA\"),\"SITUS\",tblSchMJune19[[#This Row],[Alloc]])","v":"SE"},{"$f":"INDEX(tblSchMLookup[FUNC],MATCH(tblSchMJune19[[#This Row],[Concat]],tblSchMLookup[Concat],0))","v":"P"},{"$f":"IF(tblSchMJune19[[#This Row],[Total ($000)]]=0,\"NO\",IF(ISNA(tblSchMJune19[[#This Row],[FUNC]]),\"YES\",IF(_xlfn.ISFORMULA(tblSchMJune19[[#This Row],[FUNC]]),\"NO\",\"YES\")))","v":"NO"}]
[{"$f":"CONCATENATE(tblSchMJune19[[#This Row],[Primary Account]],tblSchMJune19[[#This Row],[Primary Name]],tblSchMJune19[[#This Row],[Secondary Acct]],tblSchMJune19[[#This Row],[Secondary  Name]],tblSchMJune19[[#This Row],[Alloc4FUNC]])","v":"4099200SCHMDP720105MEDICARE SUBSIDYSO"},4099200,{"$f":"IF(tblSchMJune19[[#This Row],[Primary Account]]=4098200,\"SCHMAP\",IF(tblSchMJune19[[#This Row],[Primary Account]]=4098300,\"SCHMAT\",IF(tblSchMJune19[[#This Row],[Primary Account]]=4099200,\"SCHMDP\",IF(tblSchMJune19[[#This Row],[Primary Account]]=4099300,\"SCHMDT\"))))","v":"SCHMDP"},"720105","MEDICARE SUBSIDY","SO",null,{"$f":"IF(OR(tblSchMJune19[[#This Row],[Alloc]]=\"IDU\",tblSchMJune19[[#This Row],[Alloc]]=\"OR\",tblSchMJune19[[#This Row],[Alloc]]=\"UT\",tblSchMJune19[[#This Row],[Alloc]]=\"WYU\",tblSchMJune19[[#This Row],[Alloc]]=\"WYP\",tblSchMJune19[[#This Row],[Alloc]]=\"CA\",tblSchMJune19[[#This Row],[Alloc]]=\"WA\"),\"SITUS\",tblSchMJune19[[#This Row],[Alloc]])","v":"SO"},{"$f":"INDEX(tblSchMLookup[FUNC],MATCH(tblSchMJune19[[#This Row],[Concat]],tblSchMLookup[Concat],0))","v":{"$error":"#N/A"}},{"$f":"IF(tblSchMJune19[[#This Row],[Total ($000)]]=0,\"NO\",IF(ISNA(tblSchMJune19[[#This Row],[FUNC]]),\"YES\",IF(_xlfn.ISFORMULA(tblSchMJune19[[#This Row],[FUNC]]),\"NO\",\"YES\")))","v":"NO"}]
[{"$f":"CONCATENATE(tblSchMJune19[[#This Row],[Primary Account]],tblSchMJune19[[#This Row],[Primary Name]],tblSchMJune19[[#This Row],[Secondary Acct]],tblSchMJune19[[#This Row],[Secondary  Name]],tblSchMJune19[[#This Row],[Alloc4FUNC]])","v":"4099200SCHMDP910900PMIDepletionSE"},4099200,{"$f":"IF(tblSchMJune19[[#This Row],[Primary Account]]=4098200,\"SCHMAP\",IF(tblSchMJune19[[#This Row],[Primary Account]]=4098300,\"SCHMAT\",IF(tblSchMJune19[[#This Row],[Primary Account]]=4099200,\"SCHMDP\",IF(tblSchMJune19[[#This Row],[Primary Account]]=4099300,\"SCHMDT\"))))","v":"SCHMDP"},"910900","PMIDepletion","SE",null,{"$f":"IF(OR(tblSchMJune19[[#This Row],[Alloc]]=\"IDU\",tblSchMJune19[[#This Row],[Alloc]]=\"OR\",tblSchMJune19[[#This Row],[Alloc]]=\"UT\",tblSchMJune19[[#This Row],[Alloc]]=\"WYU\",tblSchMJune19[[#This Row],[Alloc]]=\"WYP\",tblSchMJune19[[#This Row],[Alloc]]=\"CA\",tblSchMJune19[[#This Row],[Alloc]]=\"WA\"),\"SITUS\",tblSchMJune19[[#This Row],[Alloc]])","v":"SE"},{"$f":"INDEX(tblSchMLookup[FUNC],MATCH(tblSchMJune19[[#This Row],[Concat]],tblSchMLookup[Concat],0))","v":{"$error":"#N/A"}},{"$f":"IF(tblSchMJune19[[#This Row],[Total ($000)]]=0,\"NO\",IF(ISNA(tblSchMJune19[[#This Row],[FUNC]]),\"YES\",IF(_xlfn.ISFORMULA(tblSchMJune19[[#This Row],[FUNC]]),\"NO\",\"YES\")))","v":"NO"}]
[{"$f":"CONCATENATE(tblSchMJune19[[#This Row],[Primary Account]],tblSchMJune19[[#This Row],[Primary Name]],tblSchMJune19[[#This Row],[Secondary Acct]],tblSchMJune19[[#This Row],[Secondary  Name]],tblSchMJune19[[#This Row],[Alloc4FUNC]])","v":"4099200SCHMDP910918PMI Overriding RoyaltySE"},4099200,{"$f":"IF(tblSchMJune19[[#This Row],[Primary Account]]=4098200,\"SCHMAP\",IF(tblSchMJune19[[#This Row],[Primary Account]]=4098300,\"SCHMAT\",IF(tblSchMJune19[[#This Row],[Primary Account]]=4099200,\"SCHMDP\",IF(tblSchMJune19[[#This Row],[Primary Account]]=4099300,\"SCHMDT\"))))","v":"SCHMDP"},"910918","PMI Overriding Royalty","SE",null,{"$f":"IF(OR(tblSchMJune19[[#This Row],[Alloc]]=\"IDU\",tblSchMJune19[[#This Row],[Alloc]]=\"OR\",tblSchMJune19[[#This Row],[Alloc]]=\"UT\",tblSchMJune19[[#This Row],[Alloc]]=\"WYU\",tblSchMJune19[[#This Row],[Alloc]]=\"WYP\",tblSchMJune19[[#This Row],[Alloc]]=\"CA\",tblSchMJune19[[#This Row],[Alloc]]=\"WA\"),\"SITUS\",tblSchMJune19[[#This Row],[Alloc]])","v":"SE"},{"$f":"INDEX(tblSchMLookup[FUNC],MATCH(tblSchMJune19[[#This Row],[Concat]],tblSchMLookup[Concat],0))","v":{"$error":"#N/A"}},{"$f":"IF(tblSchMJune19[[#This Row],[Total ($000)]]=0,\"NO\",IF(ISNA(tblSchMJune19[[#This Row],[FUNC]]),\"YES\",IF(_xlfn.ISFORMULA(tblSchMJune19[[#This Row],[FUNC]]),\"NO\",\"YES\")))","v":"NO"}]
[{"$f":"CONCATENATE(tblSchMJune19[[#This Row],[Primary Account]],tblSchMJune19[[#This Row],[Primary Name]],tblSchMJune19[[#This Row],[Secondary Acct]],tblSchMJune19[[#This Row],[Secondary  Name]],tblSchMJune19[[#This Row],[Alloc4FUNC]])","v":"4099200SCHMDP920105PMI Tax Exempt Interest IncomeSE"},4099200,{"$f":"IF(tblSchMJune19[[#This Row],[Primary Account]]=4098200,\"SCHMAP\",IF(tblSchMJune19[[#This Row],[Primary Account]]=4098300,\"SCHMAT\",IF(tblSchMJune19[[#This Row],[Primary Account]]=4099200,\"SCHMDP\",IF(tblSchMJune19[[#This Row],[Primary Account]]=4099300,\"SCHMDT\"))))","v":"SCHMDP"},"920105","PMI Tax Exempt Interest Income","SE",null,{"$f":"IF(OR(tblSchMJune19[[#This Row],[Alloc]]=\"IDU\",tblSchMJune19[[#This Row],[Alloc]]=\"OR\",tblSchMJune19[[#This Row],[Alloc]]=\"UT\",tblSchMJune19[[#This Row],[Alloc]]=\"WYU\",tblSchMJune19[[#This Row],[Alloc]]=\"WYP\",tblSchMJune19[[#This Row],[Alloc]]=\"CA\",tblSchMJune19[[#This Row],[Alloc]]=\"WA\"),\"SITUS\",tblSchMJune19[[#This Row],[Alloc]])","v":"SE"},{"$f":"INDEX(tblSchMLookup[FUNC],MATCH(tblSchMJune19[[#This Row],[Concat]],tblSchMLookup[Concat],0))","v":{"$error":"#N/A"}},{"$f":"IF(tblSchMJune19[[#This Row],[Total ($000)]]=0,\"NO\",IF(ISNA(tblSchMJune19[[#This Row],[FUNC]]),\"YES\",IF(_xlfn.ISFORMULA(tblSchMJune19[[#This Row],[FUNC]]),\"NO\",\"YES\")))","v":"NO"}]
[{"$f":"CONCATENATE(tblSchMJune19[[#This Row],[Primary Account]],tblSchMJune19[[#This Row],[Primary Name]],tblSchMJune19[[#This Row],[Secondary Acct]],tblSchMJune19[[#This Row],[Secondary  Name]],tblSchMJune19[[#This Row],[Alloc4FUNC]])","v":"4099300SCHMDT105101Capitalized Labor Cost for Powertax InpuSO"},4099300,{"$f":"IF(tblSchMJune19[[#This Row],[Primary Account]]=4098200,\"SCHMAP\",IF(tblSchMJune19[[#This Row],[Primary Account]]=4098300,\"SCHMAT\",IF(tblSchMJune19[[#This Row],[Primary Account]]=4099200,\"SCHMDP\",IF(tblSchMJune19[[#This Row],[Primary Account]]=4099300,\"SCHMDT\"))))","v":"SCHMDT"},"105101","Capitalized Labor Cost for Powertax Inpu","SO",null,{"$f":"IF(OR(tblSchMJune19[[#This Row],[Alloc]]=\"IDU\",tblSchMJune19[[#This Row],[Alloc]]=\"OR\",tblSchMJune19[[#This Row],[Alloc]]=\"UT\",tblSchMJune19[[#This Row],[Alloc]]=\"WYU\",tblSchMJune19[[#This Row],[Alloc]]=\"WYP\",tblSchMJune19[[#This Row],[Alloc]]=\"CA\",tblSchMJune19[[#This Row],[Alloc]]=\"WA\"),\"SITUS\",tblSchMJune19[[#This Row],[Alloc]])","v":"SO"},{"$f":"INDEX(tblSchMLookup[FUNC],MATCH(tblSchMJune19[[#This Row],[Concat]],tblSchMLookup[Concat],0))","v":{"$error":"#N/A"}},{"$f":"IF(tblSchMJune19[[#This Row],[Total ($000)]]=0,\"NO\",IF(ISNA(tblSchMJune19[[#This Row],[FUNC]]),\"YES\",IF(_xlfn.ISFORMULA(tblSchMJune19[[#This Row],[FUNC]]),\"NO\",\"YES\")))","v":"NO"}]
[{"$f":"CONCATENATE(tblSchMJune19[[#This Row],[Primary Account]],tblSchMJune19[[#This Row],[Primary Name]],tblSchMJune19[[#This Row],[Secondary Acct]],tblSchMJune19[[#This Row],[Secondary  Name]],tblSchMJune19[[#This Row],[Alloc4FUNC]])","v":"4099300SCHMDT105122Repair DeductionSG"},4099300,{"$f":"IF(tblSchMJune19[[#This Row],[Primary Account]]=4098200,\"SCHMAP\",IF(tblSchMJune19[[#This Row],[Primary Account]]=4098300,\"SCHMAT\",IF(tblSchMJune19[[#This Row],[Primary Account]]=4099200,\"SCHMDP\",IF(tblSchMJune19[[#This Row],[Primary Account]]=4099300,\"SCHMDT\"))))","v":"SCHMDT"},"105122","Repair Deduction","SG",146684.85,{"$f":"IF(OR(tblSchMJune19[[#This Row],[Alloc]]=\"IDU\",tblSchMJune19[[#This Row],[Alloc]]=\"OR\",tblSchMJune19[[#This Row],[Alloc]]=\"UT\",tblSchMJune19[[#This Row],[Alloc]]=\"WYU\",tblSchMJune19[[#This Row],[Alloc]]=\"WYP\",tblSchMJune19[[#This Row],[Alloc]]=\"CA\",tblSchMJune19[[#This Row],[Alloc]]=\"WA\"),\"SITUS\",tblSchMJune19[[#This Row],[Alloc]])","v":"SG"},{"$f":"INDEX(tblSchMLookup[FUNC],MATCH(tblSchMJune19[[#This Row],[Concat]],tblSchMLookup[Concat],0))","v":"P"},{"$f":"IF(tblSchMJune19[[#This Row],[Total ($000)]]=0,\"NO\",IF(ISNA(tblSchMJune19[[#This Row],[FUNC]]),\"YES\",IF(_xlfn.ISFORMULA(tblSchMJune19[[#This Row],[FUNC]]),\"NO\",\"YES\")))","v":"NO"}]
[{"$f":"CONCATENATE(tblSchMJune19[[#This Row],[Primary Account]],tblSchMJune19[[#This Row],[Primary Name]],tblSchMJune19[[#This Row],[Secondary Acct]],tblSchMJune19[[#This Row],[Secondary  Name]],tblSchMJune19[[#This Row],[Alloc4FUNC]])","v":"4099300SCHMDT105125Tax DepreciationTAXDEPR"},4099300,{"$f":"IF(tblSchMJune19[[#This Row],[Primary Account]]=4098200,\"SCHMAP\",IF(tblSchMJune19[[#This Row],[Primary Account]]=4098300,\"SCHMAT\",IF(tblSchMJune19[[#This Row],[Primary Account]]=4099200,\"SCHMDP\",IF(tblSchMJune19[[#This Row],[Primary Account]]=4099300,\"SCHMDT\"))))","v":"SCHMDT"},"105125","Tax Depreciation","TAXDEPR",590717.64099999995,{"$f":"IF(OR(tblSchMJune19[[#This Row],[Alloc]]=\"IDU\",tblSchMJune19[[#This Row],[Alloc]]=\"OR\",tblSchMJune19[[#This Row],[Alloc]]=\"UT\",tblSchMJune19[[#This Row],[Alloc]]=\"WYU\",tblSchMJune19[[#This Row],[Alloc]]=\"WYP\",tblSchMJune19[[#This Row],[Alloc]]=\"CA\",tblSchMJune19[[#This Row],[Alloc]]=\"WA\"),\"SITUS\",tblSchMJune19[[#This Row],[Alloc]])","v":"TAXDEPR"},{"$f":"INDEX(tblSchMLookup[FUNC],MATCH(tblSchMJune19[[#This Row],[Concat]],tblSchMLookup[Concat],0))","v":"TAXDEPR"},{"$f":"IF(tblSchMJune19[[#This Row],[Total ($000)]]=0,\"NO\",IF(ISNA(tblSchMJune19[[#This Row],[FUNC]]),\"YES\",IF(_xlfn.ISFORMULA(tblSchMJune19[[#This Row],[FUNC]]),\"NO\",\"YES\")))","v":"NO"}]
[{"$f":"CONCATENATE(tblSchMJune19[[#This Row],[Primary Account]],tblSchMJune19[[#This Row],[Primary Name]],tblSchMJune19[[#This Row],[Secondary Acct]],tblSchMJune19[[#This Row],[Secondary  Name]],tblSchMJune19[[#This Row],[Alloc4FUNC]])","v":"4099300SCHMDT105126PMITax DepreciationSE"},4099300,{"$f":"IF(tblSchMJune19[[#This Row],[Primary Account]]=4098200,\"SCHMAP\",IF(tblSchMJune19[[#This Row],[Primary Account]]=4098300,\"SCHMAT\",IF(tblSchMJune19[[#This Row],[Primary Account]]=4099200,\"SCHMDP\",IF(tblSchMJune19[[#This Row],[Primary Account]]=4099300,\"SCHMDT\"))))","v":"SCHMDT"},"105126","PMITax Depreciation","SE",6227.0249999999996,{"$f":"IF(OR(tblSchMJune19[[#This Row],[Alloc]]=\"IDU\",tblSchMJune19[[#This Row],[Alloc]]=\"OR\",tblSchMJune19[[#This Row],[Alloc]]=\"UT\",tblSchMJune19[[#This Row],[Alloc]]=\"WYU\",tblSchMJune19[[#This Row],[Alloc]]=\"WYP\",tblSchMJune19[[#This Row],[Alloc]]=\"CA\",tblSchMJune19[[#This Row],[Alloc]]=\"WA\"),\"SITUS\",tblSchMJune19[[#This Row],[Alloc]])","v":"SE"},{"$f":"INDEX(tblSchMLookup[FUNC],MATCH(tblSchMJune19[[#This Row],[Concat]],tblSchMLookup[Concat],0))","v":"P"},{"$f":"IF(tblSchMJune19[[#This Row],[Total ($000)]]=0,\"NO\",IF(ISNA(tblSchMJune19[[#This Row],[FUNC]]),\"YES\",IF(_xlfn.ISFORMULA(tblSchMJune19[[#This Row],[FUNC]]),\"NO\",\"YES\")))","v":"NO"}]
[{"$f":"CONCATENATE(tblSchMJune19[[#This Row],[Primary Account]],tblSchMJune19[[#This Row],[Primary Name]],tblSchMJune19[[#This Row],[Secondary Acct]],tblSchMJune19[[#This Row],[Secondary  Name]],tblSchMJune19[[#This Row],[Alloc4FUNC]])","v":"4099300SCHMDT105137Capitalized DepreciationSO"},4099300,{"$f":"IF(tblSchMJune19[[#This Row],[Primary Account]]=4098200,\"SCHMAP\",IF(tblSchMJune19[[#This Row],[Primary Account]]=4098300,\"SCHMAT\",IF(tblSchMJune19[[#This Row],[Primary Account]]=4099200,\"SCHMDP\",IF(tblSchMJune19[[#This Row],[Primary Account]]=4099300,\"SCHMDT\"))))","v":"SCHMDT"},"105137","Capitalized Depreciation","SO",5977.1570000000002,{"$f":"IF(OR(tblSchMJune19[[#This Row],[Alloc]]=\"IDU\",tblSchMJune19[[#This Row],[Alloc]]=\"OR\",tblSchMJune19[[#This Row],[Alloc]]=\"UT\",tblSchMJune19[[#This Row],[Alloc]]=\"WYU\",tblSchMJune19[[#This Row],[Alloc]]=\"WYP\",tblSchMJune19[[#This Row],[Alloc]]=\"CA\",tblSchMJune19[[#This Row],[Alloc]]=\"WA\"),\"SITUS\",tblSchMJune19[[#This Row],[Alloc]])","v":"SO"},{"$f":"INDEX(tblSchMLookup[FUNC],MATCH(tblSchMJune19[[#This Row],[Concat]],tblSchMLookup[Concat],0))","v":"GP"},{"$f":"IF(tblSchMJune19[[#This Row],[Total ($000)]]=0,\"NO\",IF(ISNA(tblSchMJune19[[#This Row],[FUNC]]),\"YES\",IF(_xlfn.ISFORMULA(tblSchMJune19[[#This Row],[FUNC]]),\"NO\",\"YES\")))","v":"NO"}]
[{"$f":"CONCATENATE(tblSchMJune19[[#This Row],[Primary Account]],tblSchMJune19[[#This Row],[Primary Name]],tblSchMJune19[[#This Row],[Secondary Acct]],tblSchMJune19[[#This Row],[Secondary  Name]],tblSchMJune19[[#This Row],[Alloc4FUNC]])","v":"4099300SCHMDT1051411AFUDC - DEBTSNP"},4099300,{"$f":"IF(tblSchMJune19[[#This Row],[Primary Account]]=4098200,\"SCHMAP\",IF(tblSchMJune19[[#This Row],[Primary Account]]=4098300,\"SCHMAT\",IF(tblSchMJune19[[#This Row],[Primary Account]]=4099200,\"SCHMDP\",IF(tblSchMJune19[[#This Row],[Primary Account]]=4099300,\"SCHMDT\"))))","v":"SCHMDT"},"1051411","AFUDC - DEBT","SNP",25390.918710000002,{"$f":"IF(OR(tblSchMJune19[[#This Row],[Alloc]]=\"IDU\",tblSchMJune19[[#This Row],[Alloc]]=\"OR\",tblSchMJune19[[#This Row],[Alloc]]=\"UT\",tblSchMJune19[[#This Row],[Alloc]]=\"WYU\",tblSchMJune19[[#This Row],[Alloc]]=\"WYP\",tblSchMJune19[[#This Row],[Alloc]]=\"CA\",tblSchMJune19[[#This Row],[Alloc]]=\"WA\"),\"SITUS\",tblSchMJune19[[#This Row],[Alloc]])","v":"SNP"},{"$f":"INDEX(tblSchMLookup[FUNC],MATCH(tblSchMJune19[[#This Row],[Concat]],tblSchMLookup[Concat],0))","v":"PTD"},{"$f":"IF(tblSchMJune19[[#This Row],[Total ($000)]]=0,\"NO\",IF(ISNA(tblSchMJune19[[#This Row],[FUNC]]),\"YES\",IF(_xlfn.ISFORMULA(tblSchMJune19[[#This Row],[FUNC]]),\"NO\",\"YES\")))","v":"NO"}]
[{"$f":"CONCATENATE(tblSchMJune19[[#This Row],[Primary Account]],tblSchMJune19[[#This Row],[Primary Name]],tblSchMJune19[[#This Row],[Secondary Acct]],tblSchMJune19[[#This Row],[Secondary  Name]],tblSchMJune19[[#This Row],[Alloc4FUNC]])","v":"4099300SCHMDT1051412AFUDC - EquitySNP"},4099300,{"$f":"IF(tblSchMJune19[[#This Row],[Primary Account]]=4098200,\"SCHMAP\",IF(tblSchMJune19[[#This Row],[Primary Account]]=4098300,\"SCHMAT\",IF(tblSchMJune19[[#This Row],[Primary Account]]=4099200,\"SCHMDP\",IF(tblSchMJune19[[#This Row],[Primary Account]]=4099300,\"SCHMDT\"))))","v":"SCHMDT"},"1051412","AFUDC - Equity","SNP",49314.403310000002,{"$f":"IF(OR(tblSchMJune19[[#This Row],[Alloc]]=\"IDU\",tblSchMJune19[[#This Row],[Alloc]]=\"OR\",tblSchMJune19[[#This Row],[Alloc]]=\"UT\",tblSchMJune19[[#This Row],[Alloc]]=\"WYU\",tblSchMJune19[[#This Row],[Alloc]]=\"WYP\",tblSchMJune19[[#This Row],[Alloc]]=\"CA\",tblSchMJune19[[#This Row],[Alloc]]=\"WA\"),\"SITUS\",tblSchMJune19[[#This Row],[Alloc]])","v":"SNP"},{"$f":"INDEX(tblSchMLookup[FUNC],MATCH(tblSchMJune19[[#This Row],[Concat]],tblSchMLookup[Concat],0))","v":"PTD"},{"$f":"IF(tblSchMJune19[[#This Row],[Total ($000)]]=0,\"NO\",IF(ISNA(tblSchMJune19[[#This Row],[FUNC]]),\"YES\",IF(_xlfn.ISFORMULA(tblSchMJune19[[#This Row],[FUNC]]),\"NO\",\"YES\")))","v":"NO"}]
[{"$f":"CONCATENATE(tblSchMJune19[[#This Row],[Primary Account]],tblSchMJune19[[#This Row],[Primary Name]],tblSchMJune19[[#This Row],[Secondary Acct]],tblSchMJune19[[#This Row],[Secondary  Name]],tblSchMJune19[[#This Row],[Alloc4FUNC]])","v":"4099300SCHMDT105143Basis Intangible DifferenceSO"},4099300,{"$f":"IF(tblSchMJune19[[#This Row],[Primary Account]]=4098200,\"SCHMAP\",IF(tblSchMJune19[[#This Row],[Primary Account]]=4098300,\"SCHMAT\",IF(tblSchMJune19[[#This Row],[Primary Account]]=4099200,\"SCHMDP\",IF(tblSchMJune19[[#This Row],[Primary Account]]=4099300,\"SCHMDT\"))))","v":"SCHMDT"},"105143","Basis Intangible Difference","SO",222.72800000000001,{"$f":"IF(OR(tblSchMJune19[[#This Row],[Alloc]]=\"IDU\",tblSchMJune19[[#This Row],[Alloc]]=\"OR\",tblSchMJune19[[#This Row],[Alloc]]=\"UT\",tblSchMJune19[[#This Row],[Alloc]]=\"WYU\",tblSchMJune19[[#This Row],[Alloc]]=\"WYP\",tblSchMJune19[[#This Row],[Alloc]]=\"CA\",tblSchMJune19[[#This Row],[Alloc]]=\"WA\"),\"SITUS\",tblSchMJune19[[#This Row],[Alloc]])","v":"SO"},{"$f":"INDEX(tblSchMLookup[FUNC],MATCH(tblSchMJune19[[#This Row],[Concat]],tblSchMLookup[Concat],0))","v":"PTD"},{"$f":"IF(tblSchMJune19[[#This Row],[Total ($000)]]=0,\"NO\",IF(ISNA(tblSchMJune19[[#This Row],[FUNC]]),\"YES\",IF(_xlfn.ISFORMULA(tblSchMJune19[[#This Row],[FUNC]]),\"NO\",\"YES\")))","v":"NO"}]
[{"$f":"CONCATENATE(tblSchMJune19[[#This Row],[Primary Account]],tblSchMJune19[[#This Row],[Primary Name]],tblSchMJune19[[#This Row],[Secondary Acct]],tblSchMJune19[[#This Row],[Secondary  Name]],tblSchMJune19[[#This Row],[Alloc4FUNC]])","v":"4099300SCHMDT105147Sec 1031 Like Kind ExchangeSO"},4099300,{"$f":"IF(tblSchMJune19[[#This Row],[Primary Account]]=4098200,\"SCHMAP\",IF(tblSchMJune19[[#This Row],[Primary Account]]=4098300,\"SCHMAT\",IF(tblSchMJune19[[#This Row],[Primary Account]]=4099200,\"SCHMDP\",IF(tblSchMJune19[[#This Row],[Primary Account]]=4099300,\"SCHMDT\"))))","v":"SCHMDT"},"105147","Sec 1031 Like Kind Exchange","SO",null,{"$f":"IF(OR(tblSchMJune19[[#This Row],[Alloc]]=\"IDU\",tblSchMJune19[[#This Row],[Alloc]]=\"OR\",tblSchMJune19[[#This Row],[Alloc]]=\"UT\",tblSchMJune19[[#This Row],[Alloc]]=\"WYU\",tblSchMJune19[[#This Row],[Alloc]]=\"WYP\",tblSchMJune19[[#This Row],[Alloc]]=\"CA\",tblSchMJune19[[#This Row],[Alloc]]=\"WA\"),\"SITUS\",tblSchMJune19[[#This Row],[Alloc]])","v":"SO"},{"$f":"INDEX(tblSchMLookup[FUNC],MATCH(tblSchMJune19[[#This Row],[Concat]],tblSchMLookup[Concat],0))","v":{"$error":"#N/A"}},{"$f":"IF(tblSchMJune19[[#This Row],[Total ($000)]]=0,\"NO\",IF(ISNA(tblSchMJune19[[#This Row],[FUNC]]),\"YES\",IF(_xlfn.ISFORMULA(tblSchMJune19[[#This Row],[FUNC]]),\"NO\",\"YES\")))","v":"NO"}]
[{"$f":"CONCATENATE(tblSchMJune19[[#This Row],[Primary Account]],tblSchMJune19[[#This Row],[Primary Name]],tblSchMJune19[[#This Row],[Secondary Acct]],tblSchMJune19[[#This Row],[Secondary  Name]],tblSchMJune19[[#This Row],[Alloc4FUNC]])","v":"4099300SCHMDT105148Mine Safety Sec. 179E Election - PPWSE"},4099300,{"$f":"IF(tblSchMJune19[[#This Row],[Primary Account]]=4098200,\"SCHMAP\",IF(tblSchMJune19[[#This Row],[Primary Account]]=4098300,\"SCHMAT\",IF(tblSchMJune19[[#This Row],[Primary Account]]=4099200,\"SCHMDP\",IF(tblSchMJune19[[#This Row],[Primary Account]]=4099300,\"SCHMDT\"))))","v":"SCHMDT"},"105148","Mine Safety Sec. 179E Election - PPW","SE",null,{"$f":"IF(OR(tblSchMJune19[[#This Row],[Alloc]]=\"IDU\",tblSchMJune19[[#This Row],[Alloc]]=\"OR\",tblSchMJune19[[#This Row],[Alloc]]=\"UT\",tblSchMJune19[[#This Row],[Alloc]]=\"WYU\",tblSchMJune19[[#This Row],[Alloc]]=\"WYP\",tblSchMJune19[[#This Row],[Alloc]]=\"CA\",tblSchMJune19[[#This Row],[Alloc]]=\"WA\"),\"SITUS\",tblSchMJune19[[#This Row],[Alloc]])","v":"SE"},{"$f":"INDEX(tblSchMLookup[FUNC],MATCH(tblSchMJune19[[#This Row],[Concat]],tblSchMLookup[Concat],0))","v":{"$error":"#N/A"}},{"$f":"IF(tblSchMJune19[[#This Row],[Total ($000)]]=0,\"NO\",IF(ISNA(tblSchMJune19[[#This Row],[FUNC]]),\"YES\",IF(_xlfn.ISFORMULA(tblSchMJune19[[#This Row],[FUNC]]),\"NO\",\"YES\")))","v":"NO"}]
[{"$f":"CONCATENATE(tblSchMJune19[[#This Row],[Primary Account]],tblSchMJune19[[#This Row],[Primary Name]],tblSchMJune19[[#This Row],[Secondary Acct]],tblSchMJune19[[#This Row],[Secondary  Name]],tblSchMJune19[[#This Row],[Alloc4FUNC]])","v":"4099300SCHMDT105149Mine Safety Sec. 179E Election - PMISE"},4099300,{"$f":"IF(tblSchMJune19[[#This Row],[Primary Account]]=4098200,\"SCHMAP\",IF(tblSchMJune19[[#This Row],[Primary Account]]=4098300,\"SCHMAT\",IF(tblSchMJune19[[#This Row],[Primary Account]]=4099200,\"SCHMDP\",IF(tblSchMJune19[[#This Row],[Primary Account]]=4099300,\"SCHMDT\"))))","v":"SCHMDT"},"105149","Mine Safety Sec. 179E Election - PMI","SE",null,{"$f":"IF(OR(tblSchMJune19[[#This Row],[Alloc]]=\"IDU\",tblSchMJune19[[#This Row],[Alloc]]=\"OR\",tblSchMJune19[[#This Row],[Alloc]]=\"UT\",tblSchMJune19[[#This Row],[Alloc]]=\"WYU\",tblSchMJune19[[#This Row],[Alloc]]=\"WYP\",tblSchMJune19[[#This Row],[Alloc]]=\"CA\",tblSchMJune19[[#This Row],[Alloc]]=\"WA\"),\"SITUS\",tblSchMJune19[[#This Row],[Alloc]])","v":"SE"},{"$f":"INDEX(tblSchMLookup[FUNC],MATCH(tblSchMJune19[[#This Row],[Concat]],tblSchMLookup[Concat],0))","v":{"$error":"#N/A"}},{"$f":"IF(tblSchMJune19[[#This Row],[Total ($000)]]=0,\"NO\",IF(ISNA(tblSchMJune19[[#This Row],[FUNC]]),\"YES\",IF(_xlfn.ISFORMULA(tblSchMJune19[[#This Row],[FUNC]]),\"NO\",\"YES\")))","v":"NO"}]
[{"$f":"CONCATENATE(tblSchMJune19[[#This Row],[Primary Account]],tblSchMJune19[[#This Row],[Primary Name]],tblSchMJune19[[#This Row],[Secondary Acct]],tblSchMJune19[[#This Row],[Secondary  Name]],tblSchMJune19[[#This Row],[Alloc4FUNC]])","v":"4099300SCHMDT105152Gain/(Loss) on Prop DispositionsGPS"},4099300,{"$f":"IF(tblSchMJune19[[#This Row],[Primary Account]]=4098200,\"SCHMAP\",IF(tblSchMJune19[[#This Row],[Primary Account]]=4098300,\"SCHMAT\",IF(tblSchMJune19[[#This Row],[Primary Account]]=4099200,\"SCHMDP\",IF(tblSchMJune19[[#This Row],[Primary Account]]=4099300,\"SCHMDT\"))))","v":"SCHMDT"},"105152","Gain/(Loss) on Prop Dispositions","GPS",16378.237999999999,{"$f":"IF(OR(tblSchMJune19[[#This Row],[Alloc]]=\"IDU\",tblSchMJune19[[#This Row],[Alloc]]=\"OR\",tblSchMJune19[[#This Row],[Alloc]]=\"UT\",tblSchMJune19[[#This Row],[Alloc]]=\"WYU\",tblSchMJune19[[#This Row],[Alloc]]=\"WYP\",tblSchMJune19[[#This Row],[Alloc]]=\"CA\",tblSchMJune19[[#This Row],[Alloc]]=\"WA\"),\"SITUS\",tblSchMJune19[[#This Row],[Alloc]])","v":"GPS"},{"$f":"INDEX(tblSchMLookup[FUNC],MATCH(tblSchMJune19[[#This Row],[Concat]],tblSchMLookup[Concat],0))","v":"PTD"},{"$f":"IF(tblSchMJune19[[#This Row],[Total ($000)]]=0,\"NO\",IF(ISNA(tblSchMJune19[[#This Row],[FUNC]]),\"YES\",IF(_xlfn.ISFORMULA(tblSchMJune19[[#This Row],[FUNC]]),\"NO\",\"YES\")))","v":"NO"}]
[{"$f":"CONCATENATE(tblSchMJune19[[#This Row],[Primary Account]],tblSchMJune19[[#This Row],[Primary Name]],tblSchMJune19[[#This Row],[Secondary Acct]],tblSchMJune19[[#This Row],[Secondary  Name]],tblSchMJune19[[#This Row],[Alloc4FUNC]])","v":"4099300SCHMDT105153Contract Liability Basis Adjustment -CheSG"},4099300,{"$f":"IF(tblSchMJune19[[#This Row],[Primary Account]]=4098200,\"SCHMAP\",IF(tblSchMJune19[[#This Row],[Primary Account]]=4098300,\"SCHMAT\",IF(tblSchMJune19[[#This Row],[Primary Account]]=4099200,\"SCHMDP\",IF(tblSchMJune19[[#This Row],[Primary Account]]=4099300,\"SCHMDT\"))))","v":"SCHMDT"},"105153","Contract Liability Basis Adjustment -Che","SG",-124.8205,{"$f":"IF(OR(tblSchMJune19[[#This Row],[Alloc]]=\"IDU\",tblSchMJune19[[#This Row],[Alloc]]=\"OR\",tblSchMJune19[[#This Row],[Alloc]]=\"UT\",tblSchMJune19[[#This Row],[Alloc]]=\"WYU\",tblSchMJune19[[#This Row],[Alloc]]=\"WYP\",tblSchMJune19[[#This Row],[Alloc]]=\"CA\",tblSchMJune19[[#This Row],[Alloc]]=\"WA\"),\"SITUS\",tblSchMJune19[[#This Row],[Alloc]])","v":"SG"},{"$f":"INDEX(tblSchMLookup[FUNC],MATCH(tblSchMJune19[[#This Row],[Concat]],tblSchMLookup[Concat],0))","v":"P"},{"$f":"IF(tblSchMJune19[[#This Row],[Total ($000)]]=0,\"NO\",IF(ISNA(tblSchMJune19[[#This Row],[FUNC]]),\"YES\",IF(_xlfn.ISFORMULA(tblSchMJune19[[#This Row],[FUNC]]),\"NO\",\"YES\")))","v":"NO"}]
[{"$f":"CONCATENATE(tblSchMJune19[[#This Row],[Primary Account]],tblSchMJune19[[#This Row],[Primary Name]],tblSchMJune19[[#This Row],[Secondary Acct]],tblSchMJune19[[#This Row],[Secondary  Name]],tblSchMJune19[[#This Row],[Alloc4FUNC]])","v":"4099300SCHMDT105165Coal Mine DevelopmentSE"},4099300,{"$f":"IF(tblSchMJune19[[#This Row],[Primary Account]]=4098200,\"SCHMAP\",IF(tblSchMJune19[[#This Row],[Primary Account]]=4098300,\"SCHMAT\",IF(tblSchMJune19[[#This Row],[Primary Account]]=4099200,\"SCHMDP\",IF(tblSchMJune19[[#This Row],[Primary Account]]=4099300,\"SCHMDT\"))))","v":"SCHMDT"},"105165","Coal Mine Development","SE",null,{"$f":"IF(OR(tblSchMJune19[[#This Row],[Alloc]]=\"IDU\",tblSchMJune19[[#This Row],[Alloc]]=\"OR\",tblSchMJune19[[#This Row],[Alloc]]=\"UT\",tblSchMJune19[[#This Row],[Alloc]]=\"WYU\",tblSchMJune19[[#This Row],[Alloc]]=\"WYP\",tblSchMJune19[[#This Row],[Alloc]]=\"CA\",tblSchMJune19[[#This Row],[Alloc]]=\"WA\"),\"SITUS\",tblSchMJune19[[#This Row],[Alloc]])","v":"SE"},{"$f":"INDEX(tblSchMLookup[FUNC],MATCH(tblSchMJune19[[#This Row],[Concat]],tblSchMLookup[Concat],0))","v":{"$error":"#N/A"}},{"$f":"IF(tblSchMJune19[[#This Row],[Total ($000)]]=0,\"NO\",IF(ISNA(tblSchMJune19[[#This Row],[FUNC]]),\"YES\",IF(_xlfn.ISFORMULA(tblSchMJune19[[#This Row],[FUNC]]),\"NO\",\"YES\")))","v":"NO"}]
[{"$f":"CONCATENATE(tblSchMJune19[[#This Row],[Primary Account]],tblSchMJune19[[#This Row],[Primary Name]],tblSchMJune19[[#This Row],[Secondary Acct]],tblSchMJune19[[#This Row],[Secondary  Name]],tblSchMJune19[[#This Row],[Alloc4FUNC]])","v":"4099300SCHMDT105171PMI Coal Mine Receding Face (Extension)SE"},4099300,{"$f":"IF(tblSchMJune19[[#This Row],[Primary Account]]=4098200,\"SCHMAP\",IF(tblSchMJune19[[#This Row],[Primary Account]]=4098300,\"SCHMAT\",IF(tblSchMJune19[[#This Row],[Primary Account]]=4099200,\"SCHMDP\",IF(tblSchMJune19[[#This Row],[Primary Account]]=4099300,\"SCHMDT\"))))","v":"SCHMDT"},"105171","PMI Coal Mine Receding Face (Extension)","SE",658.91800000000001,{"$f":"IF(OR(tblSchMJune19[[#This Row],[Alloc]]=\"IDU\",tblSchMJune19[[#This Row],[Alloc]]=\"OR\",tblSchMJune19[[#This Row],[Alloc]]=\"UT\",tblSchMJune19[[#This Row],[Alloc]]=\"WYU\",tblSchMJune19[[#This Row],[Alloc]]=\"WYP\",tblSchMJune19[[#This Row],[Alloc]]=\"CA\",tblSchMJune19[[#This Row],[Alloc]]=\"WA\"),\"SITUS\",tblSchMJune19[[#This Row],[Alloc]])","v":"SE"},{"$f":"INDEX(tblSchMLookup[FUNC],MATCH(tblSchMJune19[[#This Row],[Concat]],tblSchMLookup[Concat],0))","v":"P"},{"$f":"IF(tblSchMJune19[[#This Row],[Total ($000)]]=0,\"NO\",IF(ISNA(tblSchMJune19[[#This Row],[FUNC]]),\"YES\",IF(_xlfn.ISFORMULA(tblSchMJune19[[#This Row],[FUNC]]),\"NO\",\"YES\")))","v":"NO"}]
[{"$f":"CONCATENATE(tblSchMJune19[[#This Row],[Primary Account]],tblSchMJune19[[#This Row],[Primary Name]],tblSchMJune19[[#This Row],[Secondary Acct]],tblSchMJune19[[#This Row],[Secondary  Name]],tblSchMJune19[[#This Row],[Alloc4FUNC]])","v":"4099300SCHMDT105175Removal Cost (net of salvage)GPS"},4099300,{"$f":"IF(tblSchMJune19[[#This Row],[Primary Account]]=4098200,\"SCHMAP\",IF(tblSchMJune19[[#This Row],[Primary Account]]=4098300,\"SCHMAT\",IF(tblSchMJune19[[#This Row],[Primary Account]]=4099200,\"SCHMDP\",IF(tblSchMJune19[[#This Row],[Primary Account]]=4099300,\"SCHMDT\"))))","v":"SCHMDT"},"105175","Removal Cost (net of salvage)","GPS",50126.197500000002,{"$f":"IF(OR(tblSchMJune19[[#This Row],[Alloc]]=\"IDU\",tblSchMJune19[[#This Row],[Alloc]]=\"OR\",tblSchMJune19[[#This Row],[Alloc]]=\"UT\",tblSchMJune19[[#This Row],[Alloc]]=\"WYU\",tblSchMJune19[[#This Row],[Alloc]]=\"WYP\",tblSchMJune19[[#This Row],[Alloc]]=\"CA\",tblSchMJune19[[#This Row],[Alloc]]=\"WA\"),\"SITUS\",tblSchMJune19[[#This Row],[Alloc]])","v":"GPS"},{"$f":"INDEX(tblSchMLookup[FUNC],MATCH(tblSchMJune19[[#This Row],[Concat]],tblSchMLookup[Concat],0))","v":"PTD"},{"$f":"IF(tblSchMJune19[[#This Row],[Total ($000)]]=0,\"NO\",IF(ISNA(tblSchMJune19[[#This Row],[FUNC]]),\"YES\",IF(_xlfn.ISFORMULA(tblSchMJune19[[#This Row],[FUNC]]),\"NO\",\"YES\")))","v":"NO"}]
[{"$f":"CONCATENATE(tblSchMJune19[[#This Row],[Primary Account]],tblSchMJune19[[#This Row],[Primary Name]],tblSchMJune19[[#This Row],[Secondary Acct]],tblSchMJune19[[#This Row],[Secondary  Name]],tblSchMJune19[[#This Row],[Alloc4FUNC]])","v":"4099300SCHMDT105181Stm Rts Blundell Geothermal Tax DeprSG"},4099300,{"$f":"IF(tblSchMJune19[[#This Row],[Primary Account]]=4098200,\"SCHMAP\",IF(tblSchMJune19[[#This Row],[Primary Account]]=4098300,\"SCHMAT\",IF(tblSchMJune19[[#This Row],[Primary Account]]=4099200,\"SCHMDP\",IF(tblSchMJune19[[#This Row],[Primary Account]]=4099300,\"SCHMDT\"))))","v":"SCHMDT"},"105181","Stm Rts Blundell Geothermal Tax Depr","SG",null,{"$f":"IF(OR(tblSchMJune19[[#This Row],[Alloc]]=\"IDU\",tblSchMJune19[[#This Row],[Alloc]]=\"OR\",tblSchMJune19[[#This Row],[Alloc]]=\"UT\",tblSchMJune19[[#This Row],[Alloc]]=\"WYU\",tblSchMJune19[[#This Row],[Alloc]]=\"WYP\",tblSchMJune19[[#This Row],[Alloc]]=\"CA\",tblSchMJune19[[#This Row],[Alloc]]=\"WA\"),\"SITUS\",tblSchMJune19[[#This Row],[Alloc]])","v":"SG"},{"$f":"INDEX(tblSchMLookup[FUNC],MATCH(tblSchMJune19[[#This Row],[Concat]],tblSchMLookup[Concat],0))","v":{"$error":"#N/A"}},{"$f":"IF(tblSchMJune19[[#This Row],[Total ($000)]]=0,\"NO\",IF(ISNA(tblSchMJune19[[#This Row],[FUNC]]),\"YES\",IF(_xlfn.ISFORMULA(tblSchMJune19[[#This Row],[FUNC]]),\"NO\",\"YES\")))","v":"NO"}]
[{"$f":"CONCATENATE(tblSchMJune19[[#This Row],[Primary Account]],tblSchMJune19[[#This Row],[Primary Name]],tblSchMJune19[[#This Row],[Secondary Acct]],tblSchMJune19[[#This Row],[Secondary  Name]],tblSchMJune19[[#This Row],[Alloc4FUNC]])","v":"4099300SCHMDT105185Repair Allowance 3115DGP"},4099300,{"$f":"IF(tblSchMJune19[[#This Row],[Primary Account]]=4098200,\"SCHMAP\",IF(tblSchMJune19[[#This Row],[Primary Account]]=4098300,\"SCHMAT\",IF(tblSchMJune19[[#This Row],[Primary Account]]=4099200,\"SCHMDP\",IF(tblSchMJune19[[#This Row],[Primary Account]]=4099300,\"SCHMDT\"))))","v":"SCHMDT"},"105185","Repair Allowance 3115","DGP",null,{"$f":"IF(OR(tblSchMJune19[[#This Row],[Alloc]]=\"IDU\",tblSchMJune19[[#This Row],[Alloc]]=\"OR\",tblSchMJune19[[#This Row],[Alloc]]=\"UT\",tblSchMJune19[[#This Row],[Alloc]]=\"WYU\",tblSchMJune19[[#This Row],[Alloc]]=\"WYP\",tblSchMJune19[[#This Row],[Alloc]]=\"CA\",tblSchMJune19[[#This Row],[Alloc]]=\"WA\"),\"SITUS\",tblSchMJune19[[#This Row],[Alloc]])","v":"DGP"},{"$f":"INDEX(tblSchMLookup[FUNC],MATCH(tblSchMJune19[[#This Row],[Concat]],tblSchMLookup[Concat],0))","v":{"$error":"#N/A"}},{"$f":"IF(tblSchMJune19[[#This Row],[Total ($000)]]=0,\"NO\",IF(ISNA(tblSchMJune19[[#This Row],[FUNC]]),\"YES\",IF(_xlfn.ISFORMULA(tblSchMJune19[[#This Row],[FUNC]]),\"NO\",\"YES\")))","v":"NO"}]
[{"$f":"CONCATENATE(tblSchMJune19[[#This Row],[Primary Account]],tblSchMJune19[[#This Row],[Primary Name]],tblSchMJune19[[#This Row],[Secondary Acct]],tblSchMJune19[[#This Row],[Secondary  Name]],tblSchMJune19[[#This Row],[Alloc4FUNC]])","v":"4099300SCHMDT105220Cholla GE Safe Harbor LeaseSG"},4099300,{"$f":"IF(tblSchMJune19[[#This Row],[Primary Account]]=4098200,\"SCHMAP\",IF(tblSchMJune19[[#This Row],[Primary Account]]=4098300,\"SCHMAT\",IF(tblSchMJune19[[#This Row],[Primary Account]]=4099200,\"SCHMDP\",IF(tblSchMJune19[[#This Row],[Primary Account]]=4099300,\"SCHMDT\"))))","v":"SCHMDT"},"105220","Cholla GE Safe Harbor Lease","SG",null,{"$f":"IF(OR(tblSchMJune19[[#This Row],[Alloc]]=\"IDU\",tblSchMJune19[[#This Row],[Alloc]]=\"OR\",tblSchMJune19[[#This Row],[Alloc]]=\"UT\",tblSchMJune19[[#This Row],[Alloc]]=\"WYU\",tblSchMJune19[[#This Row],[Alloc]]=\"WYP\",tblSchMJune19[[#This Row],[Alloc]]=\"CA\",tblSchMJune19[[#This Row],[Alloc]]=\"WA\"),\"SITUS\",tblSchMJune19[[#This Row],[Alloc]])","v":"SG"},{"$f":"INDEX(tblSchMLookup[FUNC],MATCH(tblSchMJune19[[#This Row],[Concat]],tblSchMLookup[Concat],0))","v":{"$error":"#N/A"}},{"$f":"IF(tblSchMJune19[[#This Row],[Total ($000)]]=0,\"NO\",IF(ISNA(tblSchMJune19[[#This Row],[FUNC]]),\"YES\",IF(_xlfn.ISFORMULA(tblSchMJune19[[#This Row],[FUNC]]),\"NO\",\"YES\")))","v":"NO"}]
[{"$f":"CONCATENATE(tblSchMJune19[[#This Row],[Primary Account]],tblSchMJune19[[#This Row],[Primary Name]],tblSchMJune19[[#This Row],[Secondary Acct]],tblSchMJune19[[#This Row],[Secondary  Name]],tblSchMJune19[[#This Row],[Alloc4FUNC]])","v":"4099300SCHMDT1052203Cholla SHL-NOPA (Lease Amortization)SG"},4099300,{"$f":"IF(tblSchMJune19[[#This Row],[Primary Account]]=4098200,\"SCHMAP\",IF(tblSchMJune19[[#This Row],[Primary Account]]=4098300,\"SCHMAT\",IF(tblSchMJune19[[#This Row],[Primary Account]]=4099200,\"SCHMDP\",IF(tblSchMJune19[[#This Row],[Primary Account]]=4099300,\"SCHMDT\"))))","v":"SCHMDT"},"1052203","Cholla SHL-NOPA (Lease Amortization)","SG",339.66158999999999,{"$f":"IF(OR(tblSchMJune19[[#This Row],[Alloc]]=\"IDU\",tblSchMJune19[[#This Row],[Alloc]]=\"OR\",tblSchMJune19[[#This Row],[Alloc]]=\"UT\",tblSchMJune19[[#This Row],[Alloc]]=\"WYU\",tblSchMJune19[[#This Row],[Alloc]]=\"WYP\",tblSchMJune19[[#This Row],[Alloc]]=\"CA\",tblSchMJune19[[#This Row],[Alloc]]=\"WA\"),\"SITUS\",tblSchMJune19[[#This Row],[Alloc]])","v":"SG"},{"$f":"INDEX(tblSchMLookup[FUNC],MATCH(tblSchMJune19[[#This Row],[Concat]],tblSchMLookup[Concat],0))","v":"P"},{"$f":"IF(tblSchMJune19[[#This Row],[Total ($000)]]=0,\"NO\",IF(ISNA(tblSchMJune19[[#This Row],[FUNC]]),\"YES\",IF(_xlfn.ISFORMULA(tblSchMJune19[[#This Row],[FUNC]]),\"NO\",\"YES\")))","v":"NO"}]
[{"$f":"CONCATENATE(tblSchMJune19[[#This Row],[Primary Account]],tblSchMJune19[[#This Row],[Primary Name]],tblSchMJune19[[#This Row],[Secondary Acct]],tblSchMJune19[[#This Row],[Secondary  Name]],tblSchMJune19[[#This Row],[Alloc4FUNC]])","v":"4099300SCHMDT105470Book Gain/Loss on Land SalesGPS"},4099300,{"$f":"IF(tblSchMJune19[[#This Row],[Primary Account]]=4098200,\"SCHMAP\",IF(tblSchMJune19[[#This Row],[Primary Account]]=4098300,\"SCHMAT\",IF(tblSchMJune19[[#This Row],[Primary Account]]=4099200,\"SCHMDP\",IF(tblSchMJune19[[#This Row],[Primary Account]]=4099300,\"SCHMDT\"))))","v":"SCHMDT"},"105470","Book Gain/Loss on Land Sales","GPS",1578.2850000000001,{"$f":"IF(OR(tblSchMJune19[[#This Row],[Alloc]]=\"IDU\",tblSchMJune19[[#This Row],[Alloc]]=\"OR\",tblSchMJune19[[#This Row],[Alloc]]=\"UT\",tblSchMJune19[[#This Row],[Alloc]]=\"WYU\",tblSchMJune19[[#This Row],[Alloc]]=\"WYP\",tblSchMJune19[[#This Row],[Alloc]]=\"CA\",tblSchMJune19[[#This Row],[Alloc]]=\"WA\"),\"SITUS\",tblSchMJune19[[#This Row],[Alloc]])","v":"GPS"},{"$f":"INDEX(tblSchMLookup[FUNC],MATCH(tblSchMJune19[[#This Row],[Concat]],tblSchMLookup[Concat],0))","v":"PTD"},{"$f":"IF(tblSchMJune19[[#This Row],[Total ($000)]]=0,\"NO\",IF(ISNA(tblSchMJune19[[#This Row],[FUNC]]),\"YES\",IF(_xlfn.ISFORMULA(tblSchMJune19[[#This Row],[FUNC]]),\"NO\",\"YES\")))","v":"NO"}]
[{"$f":"CONCATENATE(tblSchMJune19[[#This Row],[Primary Account]],tblSchMJune19[[#This Row],[Primary Name]],tblSchMJune19[[#This Row],[Secondary Acct]],tblSchMJune19[[#This Row],[Secondary  Name]],tblSchMJune19[[#This Row],[Alloc4FUNC]])","v":"4099300SCHMDT110200Depletion - Tax Percentage DeductionSE"},4099300,{"$f":"IF(tblSchMJune19[[#This Row],[Primary Account]]=4098200,\"SCHMAP\",IF(tblSchMJune19[[#This Row],[Primary Account]]=4098300,\"SCHMAT\",IF(tblSchMJune19[[#This Row],[Primary Account]]=4099200,\"SCHMDP\",IF(tblSchMJune19[[#This Row],[Primary Account]]=4099300,\"SCHMDT\"))))","v":"SCHMDT"},"110200","Depletion - Tax Percentage Deduction","SE",null,{"$f":"IF(OR(tblSchMJune19[[#This Row],[Alloc]]=\"IDU\",tblSchMJune19[[#This Row],[Alloc]]=\"OR\",tblSchMJune19[[#This Row],[Alloc]]=\"UT\",tblSchMJune19[[#This Row],[Alloc]]=\"WYU\",tblSchMJune19[[#This Row],[Alloc]]=\"WYP\",tblSchMJune19[[#This Row],[Alloc]]=\"CA\",tblSchMJune19[[#This Row],[Alloc]]=\"WA\"),\"SITUS\",tblSchMJune19[[#This Row],[Alloc]])","v":"SE"},{"$f":"INDEX(tblSchMLookup[FUNC],MATCH(tblSchMJune19[[#This Row],[Concat]],tblSchMLookup[Concat],0))","v":{"$error":"#N/A"}},{"$f":"IF(tblSchMJune19[[#This Row],[Total ($000)]]=0,\"NO\",IF(ISNA(tblSchMJune19[[#This Row],[FUNC]]),\"YES\",IF(_xlfn.ISFORMULA(tblSchMJune19[[#This Row],[FUNC]]),\"NO\",\"YES\")))","v":"NO"}]
[{"$f":"CONCATENATE(tblSchMJune19[[#This Row],[Primary Account]],tblSchMJune19[[#This Row],[Primary Name]],tblSchMJune19[[#This Row],[Secondary Acct]],tblSchMJune19[[#This Row],[Secondary  Name]],tblSchMJune19[[#This Row],[Alloc4FUNC]])","v":"4099300SCHMDT1102051Tax Percentage Depletion - DeductionSE"},4099300,{"$f":"IF(tblSchMJune19[[#This Row],[Primary Account]]=4098200,\"SCHMAP\",IF(tblSchMJune19[[#This Row],[Primary Account]]=4098300,\"SCHMAT\",IF(tblSchMJune19[[#This Row],[Primary Account]]=4099200,\"SCHMDP\",IF(tblSchMJune19[[#This Row],[Primary Account]]=4099300,\"SCHMDT\"))))","v":"SCHMDT"},"1102051","Tax Percentage Depletion - Deduction","SE",31.5305,{"$f":"IF(OR(tblSchMJune19[[#This Row],[Alloc]]=\"IDU\",tblSchMJune19[[#This Row],[Alloc]]=\"OR\",tblSchMJune19[[#This Row],[Alloc]]=\"UT\",tblSchMJune19[[#This Row],[Alloc]]=\"WYU\",tblSchMJune19[[#This Row],[Alloc]]=\"WYP\",tblSchMJune19[[#This Row],[Alloc]]=\"CA\",tblSchMJune19[[#This Row],[Alloc]]=\"WA\"),\"SITUS\",tblSchMJune19[[#This Row],[Alloc]])","v":"SE"},{"$f":"INDEX(tblSchMLookup[FUNC],MATCH(tblSchMJune19[[#This Row],[Concat]],tblSchMLookup[Concat],0))","v":"P"},{"$f":"IF(tblSchMJune19[[#This Row],[Total ($000)]]=0,\"NO\",IF(ISNA(tblSchMJune19[[#This Row],[FUNC]]),\"YES\",IF(_xlfn.ISFORMULA(tblSchMJune19[[#This Row],[FUNC]]),\"NO\",\"YES\")))","v":"NO"}]
[{"$f":"CONCATENATE(tblSchMJune19[[#This Row],[Primary Account]],tblSchMJune19[[#This Row],[Primary Name]],tblSchMJune19[[#This Row],[Secondary Acct]],tblSchMJune19[[#This Row],[Secondary  Name]],tblSchMJune19[[#This Row],[Alloc4FUNC]])","v":"4099300SCHMDT120105Willow Wind Account ReceivableSITUS"},4099300,{"$f":"IF(tblSchMJune19[[#This Row],[Primary Account]]=4098200,\"SCHMAP\",IF(tblSchMJune19[[#This Row],[Primary Account]]=4098300,\"SCHMAT\",IF(tblSchMJune19[[#This Row],[Primary Account]]=4099200,\"SCHMDP\",IF(tblSchMJune19[[#This Row],[Primary Account]]=4099300,\"SCHMDT\"))))","v":"SCHMDT"},"120105","Willow Wind Account Receivable","WA",null,{"$f":"IF(OR(tblSchMJune19[[#This Row],[Alloc]]=\"IDU\",tblSchMJune19[[#This Row],[Alloc]]=\"OR\",tblSchMJune19[[#This Row],[Alloc]]=\"UT\",tblSchMJune19[[#This Row],[Alloc]]=\"WYU\",tblSchMJune19[[#This Row],[Alloc]]=\"WYP\",tblSchMJune19[[#This Row],[Alloc]]=\"CA\",tblSchMJune19[[#This Row],[Alloc]]=\"WA\"),\"SITUS\",tblSchMJune19[[#This Row],[Alloc]])","v":"SITUS"},{"$f":"INDEX(tblSchMLookup[FUNC],MATCH(tblSchMJune19[[#This Row],[Concat]],tblSchMLookup[Concat],0))","v":{"$error":"#N/A"}},{"$f":"IF(tblSchMJune19[[#This Row],[Total ($000)]]=0,\"NO\",IF(ISNA(tblSchMJune19[[#This Row],[FUNC]]),\"YES\",IF(_xlfn.ISFORMULA(tblSchMJune19[[#This Row],[FUNC]]),\"NO\",\"YES\")))","v":"NO"}]
[{"$f":"CONCATENATE(tblSchMJune19[[#This Row],[Primary Account]],tblSchMJune19[[#This Row],[Primary Name]],tblSchMJune19[[#This Row],[Secondary Acct]],tblSchMJune19[[#This Row],[Secondary  Name]],tblSchMJune19[[#This Row],[Alloc4FUNC]])","v":"4099300SCHMDT205025PMI - Fuel Cost AdjustmentSE"},4099300,{"$f":"IF(tblSchMJune19[[#This Row],[Primary Account]]=4098200,\"SCHMAP\",IF(tblSchMJune19[[#This Row],[Primary Account]]=4098300,\"SCHMAT\",IF(tblSchMJune19[[#This Row],[Primary Account]]=4099200,\"SCHMDP\",IF(tblSchMJune19[[#This Row],[Primary Account]]=4099300,\"SCHMDT\"))))","v":"SCHMDT"},"205025","PMI - Fuel Cost Adjustment","SE",1586.9570000000001,{"$f":"IF(OR(tblSchMJune19[[#This Row],[Alloc]]=\"IDU\",tblSchMJune19[[#This Row],[Alloc]]=\"OR\",tblSchMJune19[[#This Row],[Alloc]]=\"UT\",tblSchMJune19[[#This Row],[Alloc]]=\"WYU\",tblSchMJune19[[#This Row],[Alloc]]=\"WYP\",tblSchMJune19[[#This Row],[Alloc]]=\"CA\",tblSchMJune19[[#This Row],[Alloc]]=\"WA\"),\"SITUS\",tblSchMJune19[[#This Row],[Alloc]])","v":"SE"},{"$f":"INDEX(tblSchMLookup[FUNC],MATCH(tblSchMJune19[[#This Row],[Concat]],tblSchMLookup[Concat],0))","v":"P"},{"$f":"IF(tblSchMJune19[[#This Row],[Total ($000)]]=0,\"NO\",IF(ISNA(tblSchMJune19[[#This Row],[FUNC]]),\"YES\",IF(_xlfn.ISFORMULA(tblSchMJune19[[#This Row],[FUNC]]),\"NO\",\"YES\")))","v":"NO"}]
[{"$f":"CONCATENATE(tblSchMJune19[[#This Row],[Primary Account]],tblSchMJune19[[#This Row],[Primary Name]],tblSchMJune19[[#This Row],[Secondary Acct]],tblSchMJune19[[#This Row],[Secondary  Name]],tblSchMJune19[[#This Row],[Alloc4FUNC]])","v":"4099300SCHMDT205200Coal M&S Inventory Write-OffSNPD"},4099300,{"$f":"IF(tblSchMJune19[[#This Row],[Primary Account]]=4098200,\"SCHMAP\",IF(tblSchMJune19[[#This Row],[Primary Account]]=4098300,\"SCHMAT\",IF(tblSchMJune19[[#This Row],[Primary Account]]=4099200,\"SCHMDP\",IF(tblSchMJune19[[#This Row],[Primary Account]]=4099300,\"SCHMDT\"))))","v":"SCHMDT"},"205200","Coal M&S Inventory Write-Off","SNPD",1548.0737300000001,{"$f":"IF(OR(tblSchMJune19[[#This Row],[Alloc]]=\"IDU\",tblSchMJune19[[#This Row],[Alloc]]=\"OR\",tblSchMJune19[[#This Row],[Alloc]]=\"UT\",tblSchMJune19[[#This Row],[Alloc]]=\"WYU\",tblSchMJune19[[#This Row],[Alloc]]=\"WYP\",tblSchMJune19[[#This Row],[Alloc]]=\"CA\",tblSchMJune19[[#This Row],[Alloc]]=\"WA\"),\"SITUS\",tblSchMJune19[[#This Row],[Alloc]])","v":"SNPD"},{"$f":"INDEX(tblSchMLookup[FUNC],MATCH(tblSchMJune19[[#This Row],[Concat]],tblSchMLookup[Concat],0))","v":"P"},{"$f":"IF(tblSchMJune19[[#This Row],[Total ($000)]]=0,\"NO\",IF(ISNA(tblSchMJune19[[#This Row],[FUNC]]),\"YES\",IF(_xlfn.ISFORMULA(tblSchMJune19[[#This Row],[FUNC]]),\"NO\",\"YES\")))","v":"NO"}]
[{"$f":"CONCATENATE(tblSchMJune19[[#This Row],[Primary Account]],tblSchMJune19[[#This Row],[Primary Name]],tblSchMJune19[[#This Row],[Secondary Acct]],tblSchMJune19[[#This Row],[Secondary  Name]],tblSchMJune19[[#This Row],[Alloc4FUNC]])","v":"4099300SCHMDT205205Inventory Reserve - PMISE"},4099300,{"$f":"IF(tblSchMJune19[[#This Row],[Primary Account]]=4098200,\"SCHMAP\",IF(tblSchMJune19[[#This Row],[Primary Account]]=4098300,\"SCHMAT\",IF(tblSchMJune19[[#This Row],[Primary Account]]=4099200,\"SCHMDP\",IF(tblSchMJune19[[#This Row],[Primary Account]]=4099300,\"SCHMDT\"))))","v":"SCHMDT"},"205205","Inventory Reserve - PMI","SE",128.84299999999999,{"$f":"IF(OR(tblSchMJune19[[#This Row],[Alloc]]=\"IDU\",tblSchMJune19[[#This Row],[Alloc]]=\"OR\",tblSchMJune19[[#This Row],[Alloc]]=\"UT\",tblSchMJune19[[#This Row],[Alloc]]=\"WYU\",tblSchMJune19[[#This Row],[Alloc]]=\"WYP\",tblSchMJune19[[#This Row],[Alloc]]=\"CA\",tblSchMJune19[[#This Row],[Alloc]]=\"WA\"),\"SITUS\",tblSchMJune19[[#This Row],[Alloc]])","v":"SE"},{"$f":"INDEX(tblSchMLookup[FUNC],MATCH(tblSchMJune19[[#This Row],[Concat]],tblSchMLookup[Concat],0))","v":"P"},{"$f":"IF(tblSchMJune19[[#This Row],[Total ($000)]]=0,\"NO\",IF(ISNA(tblSchMJune19[[#This Row],[FUNC]]),\"YES\",IF(_xlfn.ISFORMULA(tblSchMJune19[[#This Row],[FUNC]]),\"NO\",\"YES\")))","v":"NO"}]
[{"$f":"CONCATENATE(tblSchMJune19[[#This Row],[Primary Account]],tblSchMJune19[[#This Row],[Primary Name]],tblSchMJune19[[#This Row],[Secondary Acct]],tblSchMJune19[[#This Row],[Secondary  Name]],tblSchMJune19[[#This Row],[Alloc4FUNC]])","v":"4099300SCHMDT205411PMISEC 263A AdjustmentSE"},4099300,{"$f":"IF(tblSchMJune19[[#This Row],[Primary Account]]=4098200,\"SCHMAP\",IF(tblSchMJune19[[#This Row],[Primary Account]]=4098300,\"SCHMAT\",IF(tblSchMJune19[[#This Row],[Primary Account]]=4099200,\"SCHMDP\",IF(tblSchMJune19[[#This Row],[Primary Account]]=4099300,\"SCHMDT\"))))","v":"SCHMDT"},"205411","PMISEC 263A Adjustment","SE",-5263.6840000000002,{"$f":"IF(OR(tblSchMJune19[[#This Row],[Alloc]]=\"IDU\",tblSchMJune19[[#This Row],[Alloc]]=\"OR\",tblSchMJune19[[#This Row],[Alloc]]=\"UT\",tblSchMJune19[[#This Row],[Alloc]]=\"WYU\",tblSchMJune19[[#This Row],[Alloc]]=\"WYP\",tblSchMJune19[[#This Row],[Alloc]]=\"CA\",tblSchMJune19[[#This Row],[Alloc]]=\"WA\"),\"SITUS\",tblSchMJune19[[#This Row],[Alloc]])","v":"SE"},{"$f":"INDEX(tblSchMLookup[FUNC],MATCH(tblSchMJune19[[#This Row],[Concat]],tblSchMLookup[Concat],0))","v":"P"},{"$f":"IF(tblSchMJune19[[#This Row],[Total ($000)]]=0,\"NO\",IF(ISNA(tblSchMJune19[[#This Row],[FUNC]]),\"YES\",IF(_xlfn.ISFORMULA(tblSchMJune19[[#This Row],[FUNC]]),\"NO\",\"YES\")))","v":"NO"}]
[{"$f":"CONCATENATE(tblSchMJune19[[#This Row],[Primary Account]],tblSchMJune19[[#This Row],[Primary Name]],tblSchMJune19[[#This Row],[Secondary Acct]],tblSchMJune19[[#This Row],[Secondary  Name]],tblSchMJune19[[#This Row],[Alloc4FUNC]])","v":"4099300SCHMDT210000PREPAID IBEW 57 MEDICALSO"},4099300,{"$f":"IF(tblSchMJune19[[#This Row],[Primary Account]]=4098200,\"SCHMAP\",IF(tblSchMJune19[[#This Row],[Primary Account]]=4098300,\"SCHMAT\",IF(tblSchMJune19[[#This Row],[Primary Account]]=4099200,\"SCHMDP\",IF(tblSchMJune19[[#This Row],[Primary Account]]=4099300,\"SCHMDT\"))))","v":"SCHMDT"},"210000","PREPAID IBEW 57 MEDICAL","SO",null,{"$f":"IF(OR(tblSchMJune19[[#This Row],[Alloc]]=\"IDU\",tblSchMJune19[[#This Row],[Alloc]]=\"OR\",tblSchMJune19[[#This Row],[Alloc]]=\"UT\",tblSchMJune19[[#This Row],[Alloc]]=\"WYU\",tblSchMJune19[[#This Row],[Alloc]]=\"WYP\",tblSchMJune19[[#This Row],[Alloc]]=\"CA\",tblSchMJune19[[#This Row],[Alloc]]=\"WA\"),\"SITUS\",tblSchMJune19[[#This Row],[Alloc]])","v":"SO"},{"$f":"INDEX(tblSchMLookup[FUNC],MATCH(tblSchMJune19[[#This Row],[Concat]],tblSchMLookup[Concat],0))","v":{"$error":"#N/A"}},{"$f":"IF(tblSchMJune19[[#This Row],[Total ($000)]]=0,\"NO\",IF(ISNA(tblSchMJune19[[#This Row],[FUNC]]),\"YES\",IF(_xlfn.ISFORMULA(tblSchMJune19[[#This Row],[FUNC]]),\"NO\",\"YES\")))","v":"NO"}]
[{"$f":"CONCATENATE(tblSchMJune19[[#This Row],[Primary Account]],tblSchMJune19[[#This Row],[Primary Name]],tblSchMJune19[[#This Row],[Secondary Acct]],tblSchMJune19[[#This Row],[Secondary  Name]],tblSchMJune19[[#This Row],[Alloc4FUNC]])","v":"4099300SCHMDT210100Prepaid Taxes-OR PUCSITUS"},4099300,{"$f":"IF(tblSchMJune19[[#This Row],[Primary Account]]=4098200,\"SCHMAP\",IF(tblSchMJune19[[#This Row],[Primary Account]]=4098300,\"SCHMAT\",IF(tblSchMJune19[[#This Row],[Primary Account]]=4099200,\"SCHMDP\",IF(tblSchMJune19[[#This Row],[Primary Account]]=4099300,\"SCHMDT\"))))","v":"SCHMDT"},"210100","Prepaid Taxes-OR PUC","OR",-156.27197000000001,{"$f":"IF(OR(tblSchMJune19[[#This Row],[Alloc]]=\"IDU\",tblSchMJune19[[#This Row],[Alloc]]=\"OR\",tblSchMJune19[[#This Row],[Alloc]]=\"UT\",tblSchMJune19[[#This Row],[Alloc]]=\"WYU\",tblSchMJune19[[#This Row],[Alloc]]=\"WYP\",tblSchMJune19[[#This Row],[Alloc]]=\"CA\",tblSchMJune19[[#This Row],[Alloc]]=\"WA\"),\"SITUS\",tblSchMJune19[[#This Row],[Alloc]])","v":"SITUS"},{"$f":"INDEX(tblSchMLookup[FUNC],MATCH(tblSchMJune19[[#This Row],[Concat]],tblSchMLookup[Concat],0))","v":"GP"},{"$f":"IF(tblSchMJune19[[#This Row],[Total ($000)]]=0,\"NO\",IF(ISNA(tblSchMJune19[[#This Row],[FUNC]]),\"YES\",IF(_xlfn.ISFORMULA(tblSchMJune19[[#This Row],[FUNC]]),\"NO\",\"YES\")))","v":"NO"}]
[{"$f":"CONCATENATE(tblSchMJune19[[#This Row],[Primary Account]],tblSchMJune19[[#This Row],[Primary Name]],tblSchMJune19[[#This Row],[Secondary Acct]],tblSchMJune19[[#This Row],[Secondary  Name]],tblSchMJune19[[#This Row],[Alloc4FUNC]])","v":"4099300SCHMDT210105Self Insured Health BenefitSO"},4099300,{"$f":"IF(tblSchMJune19[[#This Row],[Primary Account]]=4098200,\"SCHMAP\",IF(tblSchMJune19[[#This Row],[Primary Account]]=4098300,\"SCHMAT\",IF(tblSchMJune19[[#This Row],[Primary Account]]=4099200,\"SCHMDP\",IF(tblSchMJune19[[#This Row],[Primary Account]]=4099300,\"SCHMDT\"))))","v":"SCHMDT"},"210105","Self Insured Health Benefit","SO",null,{"$f":"IF(OR(tblSchMJune19[[#This Row],[Alloc]]=\"IDU\",tblSchMJune19[[#This Row],[Alloc]]=\"OR\",tblSchMJune19[[#This Row],[Alloc]]=\"UT\",tblSchMJune19[[#This Row],[Alloc]]=\"WYU\",tblSchMJune19[[#This Row],[Alloc]]=\"WYP\",tblSchMJune19[[#This Row],[Alloc]]=\"CA\",tblSchMJune19[[#This Row],[Alloc]]=\"WA\"),\"SITUS\",tblSchMJune19[[#This Row],[Alloc]])","v":"SO"},{"$f":"INDEX(tblSchMLookup[FUNC],MATCH(tblSchMJune19[[#This Row],[Concat]],tblSchMLookup[Concat],0))","v":{"$error":"#N/A"}},{"$f":"IF(tblSchMJune19[[#This Row],[Total ($000)]]=0,\"NO\",IF(ISNA(tblSchMJune19[[#This Row],[FUNC]]),\"YES\",IF(_xlfn.ISFORMULA(tblSchMJune19[[#This Row],[FUNC]]),\"NO\",\"YES\")))","v":"NO"}]
[{"$f":"CONCATENATE(tblSchMJune19[[#This Row],[Primary Account]],tblSchMJune19[[#This Row],[Primary Name]],tblSchMJune19[[#This Row],[Secondary Acct]],tblSchMJune19[[#This Row],[Secondary  Name]],tblSchMJune19[[#This Row],[Alloc4FUNC]])","v":"4099300SCHMDT210110Prepaid Taxes-WA UTCSITUS"},4099300,{"$f":"IF(tblSchMJune19[[#This Row],[Primary Account]]=4098200,\"SCHMAP\",IF(tblSchMJune19[[#This Row],[Primary Account]]=4098300,\"SCHMAT\",IF(tblSchMJune19[[#This Row],[Primary Account]]=4099200,\"SCHMDP\",IF(tblSchMJune19[[#This Row],[Primary Account]]=4099300,\"SCHMDT\"))))","v":"SCHMDT"},"210110","Prepaid Taxes-WA UTC","WA",null,{"$f":"IF(OR(tblSchMJune19[[#This Row],[Alloc]]=\"IDU\",tblSchMJune19[[#This Row],[Alloc]]=\"OR\",tblSchMJune19[[#This Row],[Alloc]]=\"UT\",tblSchMJune19[[#This Row],[Alloc]]=\"WYU\",tblSchMJune19[[#This Row],[Alloc]]=\"WYP\",tblSchMJune19[[#This Row],[Alloc]]=\"CA\",tblSchMJune19[[#This Row],[Alloc]]=\"WA\"),\"SITUS\",tblSchMJune19[[#This Row],[Alloc]])","v":"SITUS"},{"$f":"INDEX(tblSchMLookup[FUNC],MATCH(tblSchMJune19[[#This Row],[Concat]],tblSchMLookup[Concat],0))","v":{"$error":"#N/A"}},{"$f":"IF(tblSchMJune19[[#This Row],[Total ($000)]]=0,\"NO\",IF(ISNA(tblSchMJune19[[#This Row],[FUNC]]),\"YES\",IF(_xlfn.ISFORMULA(tblSchMJune19[[#This Row],[FUNC]]),\"NO\",\"YES\")))","v":"NO"}]
[{"$f":"CONCATENATE(tblSchMJune19[[#This Row],[Primary Account]],tblSchMJune19[[#This Row],[Primary Name]],tblSchMJune19[[#This Row],[Secondary Acct]],tblSchMJune19[[#This Row],[Secondary  Name]],tblSchMJune19[[#This Row],[Alloc4FUNC]])","v":"4099300SCHMDT210120Prepaid Taxes-UT PUCSITUS"},4099300,{"$f":"IF(tblSchMJune19[[#This Row],[Primary Account]]=4098200,\"SCHMAP\",IF(tblSchMJune19[[#This Row],[Primary Account]]=4098300,\"SCHMAT\",IF(tblSchMJune19[[#This Row],[Primary Account]]=4099200,\"SCHMDP\",IF(tblSchMJune19[[#This Row],[Primary Account]]=4099300,\"SCHMDT\"))))","v":"SCHMDT"},"210120","Prepaid Taxes-UT PUC","UT",-71.069069999999996,{"$f":"IF(OR(tblSchMJune19[[#This Row],[Alloc]]=\"IDU\",tblSchMJune19[[#This Row],[Alloc]]=\"OR\",tblSchMJune19[[#This Row],[Alloc]]=\"UT\",tblSchMJune19[[#This Row],[Alloc]]=\"WYU\",tblSchMJune19[[#This Row],[Alloc]]=\"WYP\",tblSchMJune19[[#This Row],[Alloc]]=\"CA\",tblSchMJune19[[#This Row],[Alloc]]=\"WA\"),\"SITUS\",tblSchMJune19[[#This Row],[Alloc]])","v":"SITUS"},{"$f":"INDEX(tblSchMLookup[FUNC],MATCH(tblSchMJune19[[#This Row],[Concat]],tblSchMLookup[Concat],0))","v":"GP"},{"$f":"IF(tblSchMJune19[[#This Row],[Total ($000)]]=0,\"NO\",IF(ISNA(tblSchMJune19[[#This Row],[FUNC]]),\"YES\",IF(_xlfn.ISFORMULA(tblSchMJune19[[#This Row],[FUNC]]),\"NO\",\"YES\")))","v":"NO"}]
[{"$f":"CONCATENATE(tblSchMJune19[[#This Row],[Primary Account]],tblSchMJune19[[#This Row],[Primary Name]],tblSchMJune19[[#This Row],[Secondary Acct]],tblSchMJune19[[#This Row],[Secondary  Name]],tblSchMJune19[[#This Row],[Alloc4FUNC]])","v":"4099300SCHMDT210130Prepaid Taxes-ID PUCSITUS"},4099300,{"$f":"IF(tblSchMJune19[[#This Row],[Primary Account]]=4098200,\"SCHMAP\",IF(tblSchMJune19[[#This Row],[Primary Account]]=4098300,\"SCHMAT\",IF(tblSchMJune19[[#This Row],[Primary Account]]=4099200,\"SCHMDP\",IF(tblSchMJune19[[#This Row],[Primary Account]]=4099300,\"SCHMDT\"))))","v":"SCHMDT"},"210130","Prepaid Taxes-ID PUC","IDU",40.121139999999997,{"$f":"IF(OR(tblSchMJune19[[#This Row],[Alloc]]=\"IDU\",tblSchMJune19[[#This Row],[Alloc]]=\"OR\",tblSchMJune19[[#This Row],[Alloc]]=\"UT\",tblSchMJune19[[#This Row],[Alloc]]=\"WYU\",tblSchMJune19[[#This Row],[Alloc]]=\"WYP\",tblSchMJune19[[#This Row],[Alloc]]=\"CA\",tblSchMJune19[[#This Row],[Alloc]]=\"WA\"),\"SITUS\",tblSchMJune19[[#This Row],[Alloc]])","v":"SITUS"},{"$f":"INDEX(tblSchMLookup[FUNC],MATCH(tblSchMJune19[[#This Row],[Concat]],tblSchMLookup[Concat],0))","v":"GP"},{"$f":"IF(tblSchMJune19[[#This Row],[Total ($000)]]=0,\"NO\",IF(ISNA(tblSchMJune19[[#This Row],[FUNC]]),\"YES\",IF(_xlfn.ISFORMULA(tblSchMJune19[[#This Row],[FUNC]]),\"NO\",\"YES\")))","v":"NO"}]
[{"$f":"CONCATENATE(tblSchMJune19[[#This Row],[Primary Account]],tblSchMJune19[[#This Row],[Primary Name]],tblSchMJune19[[#This Row],[Secondary Acct]],tblSchMJune19[[#This Row],[Secondary  Name]],tblSchMJune19[[#This Row],[Alloc4FUNC]])","v":"4099300SCHMDT210140Prepaid Taxes-WY PSCSITUS"},4099300,{"$f":"IF(tblSchMJune19[[#This Row],[Primary Account]]=4098200,\"SCHMAP\",IF(tblSchMJune19[[#This Row],[Primary Account]]=4098300,\"SCHMAT\",IF(tblSchMJune19[[#This Row],[Primary Account]]=4099200,\"SCHMDP\",IF(tblSchMJune19[[#This Row],[Primary Account]]=4099300,\"SCHMDT\"))))","v":"SCHMDT"},"210140","Prepaid Taxes-WY PSC","WYP",null,{"$f":"IF(OR(tblSchMJune19[[#This Row],[Alloc]]=\"IDU\",tblSchMJune19[[#This Row],[Alloc]]=\"OR\",tblSchMJune19[[#This Row],[Alloc]]=\"UT\",tblSchMJune19[[#This Row],[Alloc]]=\"WYU\",tblSchMJune19[[#This Row],[Alloc]]=\"WYP\",tblSchMJune19[[#This Row],[Alloc]]=\"CA\",tblSchMJune19[[#This Row],[Alloc]]=\"WA\"),\"SITUS\",tblSchMJune19[[#This Row],[Alloc]])","v":"SITUS"},{"$f":"INDEX(tblSchMLookup[FUNC],MATCH(tblSchMJune19[[#This Row],[Concat]],tblSchMLookup[Concat],0))","v":{"$error":"#N/A"}},{"$f":"IF(tblSchMJune19[[#This Row],[Total ($000)]]=0,\"NO\",IF(ISNA(tblSchMJune19[[#This Row],[FUNC]]),\"YES\",IF(_xlfn.ISFORMULA(tblSchMJune19[[#This Row],[FUNC]]),\"NO\",\"YES\")))","v":"NO"}]
[{"$f":"CONCATENATE(tblSchMJune19[[#This Row],[Primary Account]],tblSchMJune19[[#This Row],[Primary Name]],tblSchMJune19[[#This Row],[Secondary Acct]],tblSchMJune19[[#This Row],[Secondary  Name]],tblSchMJune19[[#This Row],[Alloc4FUNC]])","v":"4099300SCHMDT210150Prepaid Taxes-CA Property Taxes-GPS alloGPS"},4099300,{"$f":"IF(tblSchMJune19[[#This Row],[Primary Account]]=4098200,\"SCHMAP\",IF(tblSchMJune19[[#This Row],[Primary Account]]=4098300,\"SCHMAT\",IF(tblSchMJune19[[#This Row],[Primary Account]]=4099200,\"SCHMDP\",IF(tblSchMJune19[[#This Row],[Primary Account]]=4099300,\"SCHMDT\"))))","v":"SCHMDT"},"210150","Prepaid Taxes-CA Property Taxes-GPS allo","GPS",null,{"$f":"IF(OR(tblSchMJune19[[#This Row],[Alloc]]=\"IDU\",tblSchMJune19[[#This Row],[Alloc]]=\"OR\",tblSchMJune19[[#This Row],[Alloc]]=\"UT\",tblSchMJune19[[#This Row],[Alloc]]=\"WYU\",tblSchMJune19[[#This Row],[Alloc]]=\"WYP\",tblSchMJune19[[#This Row],[Alloc]]=\"CA\",tblSchMJune19[[#This Row],[Alloc]]=\"WA\"),\"SITUS\",tblSchMJune19[[#This Row],[Alloc]])","v":"GPS"},{"$f":"INDEX(tblSchMLookup[FUNC],MATCH(tblSchMJune19[[#This Row],[Concat]],tblSchMLookup[Concat],0))","v":{"$error":"#N/A"}},{"$f":"IF(tblSchMJune19[[#This Row],[Total ($000)]]=0,\"NO\",IF(ISNA(tblSchMJune19[[#This Row],[FUNC]]),\"YES\",IF(_xlfn.ISFORMULA(tblSchMJune19[[#This Row],[FUNC]]),\"NO\",\"YES\")))","v":"NO"}]
[{"$f":"CONCATENATE(tblSchMJune19[[#This Row],[Primary Account]],tblSchMJune19[[#This Row],[Primary Name]],tblSchMJune19[[#This Row],[Secondary Acct]],tblSchMJune19[[#This Row],[Secondary  Name]],tblSchMJune19[[#This Row],[Alloc4FUNC]])","v":"4099300SCHMDT210160Prepaid Taxes-OR Property Taxes-GPS alloGPS"},4099300,{"$f":"IF(tblSchMJune19[[#This Row],[Primary Account]]=4098200,\"SCHMAP\",IF(tblSchMJune19[[#This Row],[Primary Account]]=4098300,\"SCHMAT\",IF(tblSchMJune19[[#This Row],[Primary Account]]=4099200,\"SCHMDP\",IF(tblSchMJune19[[#This Row],[Primary Account]]=4099300,\"SCHMDT\"))))","v":"SCHMDT"},"210160","Prepaid Taxes-OR Property Taxes-GPS allo","GPS",null,{"$f":"IF(OR(tblSchMJune19[[#This Row],[Alloc]]=\"IDU\",tblSchMJune19[[#This Row],[Alloc]]=\"OR\",tblSchMJune19[[#This Row],[Alloc]]=\"UT\",tblSchMJune19[[#This Row],[Alloc]]=\"WYU\",tblSchMJune19[[#This Row],[Alloc]]=\"WYP\",tblSchMJune19[[#This Row],[Alloc]]=\"CA\",tblSchMJune19[[#This Row],[Alloc]]=\"WA\"),\"SITUS\",tblSchMJune19[[#This Row],[Alloc]])","v":"GPS"},{"$f":"INDEX(tblSchMLookup[FUNC],MATCH(tblSchMJune19[[#This Row],[Concat]],tblSchMLookup[Concat],0))","v":{"$error":"#N/A"}},{"$f":"IF(tblSchMJune19[[#This Row],[Total ($000)]]=0,\"NO\",IF(ISNA(tblSchMJune19[[#This Row],[FUNC]]),\"YES\",IF(_xlfn.ISFORMULA(tblSchMJune19[[#This Row],[FUNC]]),\"NO\",\"YES\")))","v":"NO"}]
[{"$f":"CONCATENATE(tblSchMJune19[[#This Row],[Primary Account]],tblSchMJune19[[#This Row],[Primary Name]],tblSchMJune19[[#This Row],[Secondary Acct]],tblSchMJune19[[#This Row],[Secondary  Name]],tblSchMJune19[[#This Row],[Alloc4FUNC]])","v":"4099300SCHMDT210180OTHER PREPAIDSSO"},4099300,{"$f":"IF(tblSchMJune19[[#This Row],[Primary Account]]=4098200,\"SCHMAP\",IF(tblSchMJune19[[#This Row],[Primary Account]]=4098300,\"SCHMAT\",IF(tblSchMJune19[[#This Row],[Primary Account]]=4099200,\"SCHMDP\",IF(tblSchMJune19[[#This Row],[Primary Account]]=4099300,\"SCHMDT\"))))","v":"SCHMDT"},"210180","OTHER PREPAIDS","SO",-820.66696000000002,{"$f":"IF(OR(tblSchMJune19[[#This Row],[Alloc]]=\"IDU\",tblSchMJune19[[#This Row],[Alloc]]=\"OR\",tblSchMJune19[[#This Row],[Alloc]]=\"UT\",tblSchMJune19[[#This Row],[Alloc]]=\"WYU\",tblSchMJune19[[#This Row],[Alloc]]=\"WYP\",tblSchMJune19[[#This Row],[Alloc]]=\"CA\",tblSchMJune19[[#This Row],[Alloc]]=\"WA\"),\"SITUS\",tblSchMJune19[[#This Row],[Alloc]])","v":"SO"},{"$f":"INDEX(tblSchMLookup[FUNC],MATCH(tblSchMJune19[[#This Row],[Concat]],tblSchMLookup[Concat],0))","v":"PTD"},{"$f":"IF(tblSchMJune19[[#This Row],[Total ($000)]]=0,\"NO\",IF(ISNA(tblSchMJune19[[#This Row],[FUNC]]),\"YES\",IF(_xlfn.ISFORMULA(tblSchMJune19[[#This Row],[FUNC]]),\"NO\",\"YES\")))","v":"NO"}]
[{"$f":"CONCATENATE(tblSchMJune19[[#This Row],[Primary Account]],tblSchMJune19[[#This Row],[Primary Name]],tblSchMJune19[[#This Row],[Secondary Acct]],tblSchMJune19[[#This Row],[Secondary  Name]],tblSchMJune19[[#This Row],[Alloc4FUNC]])","v":"4099300SCHMDT210185Prepaid Aircraft Maintenance CostsSG"},4099300,{"$f":"IF(tblSchMJune19[[#This Row],[Primary Account]]=4098200,\"SCHMAP\",IF(tblSchMJune19[[#This Row],[Primary Account]]=4098300,\"SCHMAT\",IF(tblSchMJune19[[#This Row],[Primary Account]]=4099200,\"SCHMDP\",IF(tblSchMJune19[[#This Row],[Primary Account]]=4099300,\"SCHMDT\"))))","v":"SCHMDT"},"210185","Prepaid Aircraft Maintenance Costs","SG",12.65432,{"$f":"IF(OR(tblSchMJune19[[#This Row],[Alloc]]=\"IDU\",tblSchMJune19[[#This Row],[Alloc]]=\"OR\",tblSchMJune19[[#This Row],[Alloc]]=\"UT\",tblSchMJune19[[#This Row],[Alloc]]=\"WYU\",tblSchMJune19[[#This Row],[Alloc]]=\"WYP\",tblSchMJune19[[#This Row],[Alloc]]=\"CA\",tblSchMJune19[[#This Row],[Alloc]]=\"WA\"),\"SITUS\",tblSchMJune19[[#This Row],[Alloc]])","v":"SG"},{"$f":"INDEX(tblSchMLookup[FUNC],MATCH(tblSchMJune19[[#This Row],[Concat]],tblSchMLookup[Concat],0))","v":"P"},{"$f":"IF(tblSchMJune19[[#This Row],[Total ($000)]]=0,\"NO\",IF(ISNA(tblSchMJune19[[#This Row],[FUNC]]),\"YES\",IF(_xlfn.ISFORMULA(tblSchMJune19[[#This Row],[FUNC]]),\"NO\",\"YES\")))","v":"NO"}]
[{"$f":"CONCATENATE(tblSchMJune19[[#This Row],[Primary Account]],tblSchMJune19[[#This Row],[Primary Name]],tblSchMJune19[[#This Row],[Secondary Acct]],tblSchMJune19[[#This Row],[Secondary  Name]],tblSchMJune19[[#This Row],[Alloc4FUNC]])","v":"4099300SCHMDT210190Prepaid Water RightsSG"},4099300,{"$f":"IF(tblSchMJune19[[#This Row],[Primary Account]]=4098200,\"SCHMAP\",IF(tblSchMJune19[[#This Row],[Primary Account]]=4098300,\"SCHMAT\",IF(tblSchMJune19[[#This Row],[Primary Account]]=4099200,\"SCHMDP\",IF(tblSchMJune19[[#This Row],[Primary Account]]=4099300,\"SCHMDT\"))))","v":"SCHMDT"},"210190","Prepaid Water Rights","SG",-2.0000000000000002E-5,{"$f":"IF(OR(tblSchMJune19[[#This Row],[Alloc]]=\"IDU\",tblSchMJune19[[#This Row],[Alloc]]=\"OR\",tblSchMJune19[[#This Row],[Alloc]]=\"UT\",tblSchMJune19[[#This Row],[Alloc]]=\"WYU\",tblSchMJune19[[#This Row],[Alloc]]=\"WYP\",tblSchMJune19[[#This Row],[Alloc]]=\"CA\",tblSchMJune19[[#This Row],[Alloc]]=\"WA\"),\"SITUS\",tblSchMJune19[[#This Row],[Alloc]])","v":"SG"},{"$f":"INDEX(tblSchMLookup[FUNC],MATCH(tblSchMJune19[[#This Row],[Concat]],tblSchMLookup[Concat],0))","v":"P"},{"$f":"IF(tblSchMJune19[[#This Row],[Total ($000)]]=0,\"NO\",IF(ISNA(tblSchMJune19[[#This Row],[FUNC]]),\"YES\",IF(_xlfn.ISFORMULA(tblSchMJune19[[#This Row],[FUNC]]),\"NO\",\"YES\")))","v":"NO"}]
[{"$f":"CONCATENATE(tblSchMJune19[[#This Row],[Primary Account]],tblSchMJune19[[#This Row],[Primary Name]],tblSchMJune19[[#This Row],[Secondary Acct]],tblSchMJune19[[#This Row],[Secondary  Name]],tblSchMJune19[[#This Row],[Alloc4FUNC]])","v":"4099300SCHMDT210195Prepaid Surety Bond CostsSO"},4099300,{"$f":"IF(tblSchMJune19[[#This Row],[Primary Account]]=4098200,\"SCHMAP\",IF(tblSchMJune19[[#This Row],[Primary Account]]=4098300,\"SCHMAT\",IF(tblSchMJune19[[#This Row],[Primary Account]]=4099200,\"SCHMDP\",IF(tblSchMJune19[[#This Row],[Primary Account]]=4099300,\"SCHMDT\"))))","v":"SCHMDT"},"210195","Prepaid Surety Bond Costs","SO",null,{"$f":"IF(OR(tblSchMJune19[[#This Row],[Alloc]]=\"IDU\",tblSchMJune19[[#This Row],[Alloc]]=\"OR\",tblSchMJune19[[#This Row],[Alloc]]=\"UT\",tblSchMJune19[[#This Row],[Alloc]]=\"WYU\",tblSchMJune19[[#This Row],[Alloc]]=\"WYP\",tblSchMJune19[[#This Row],[Alloc]]=\"CA\",tblSchMJune19[[#This Row],[Alloc]]=\"WA\"),\"SITUS\",tblSchMJune19[[#This Row],[Alloc]])","v":"SO"},{"$f":"INDEX(tblSchMLookup[FUNC],MATCH(tblSchMJune19[[#This Row],[Concat]],tblSchMLookup[Concat],0))","v":"LABOR"},{"$f":"IF(tblSchMJune19[[#This Row],[Total ($000)]]=0,\"NO\",IF(ISNA(tblSchMJune19[[#This Row],[FUNC]]),\"YES\",IF(_xlfn.ISFORMULA(tblSchMJune19[[#This Row],[FUNC]]),\"NO\",\"YES\")))","v":"NO"}]
[{"$f":"CONCATENATE(tblSchMJune19[[#This Row],[Primary Account]],tblSchMJune19[[#This Row],[Primary Name]],tblSchMJune19[[#This Row],[Secondary Acct]],tblSchMJune19[[#This Row],[Secondary  Name]],tblSchMJune19[[#This Row],[Alloc4FUNC]])","v":"4099300SCHMDT210200Prepaid Taxes-property taxesGPS"},4099300,{"$f":"IF(tblSchMJune19[[#This Row],[Primary Account]]=4098200,\"SCHMAP\",IF(tblSchMJune19[[#This Row],[Primary Account]]=4098300,\"SCHMAT\",IF(tblSchMJune19[[#This Row],[Primary Account]]=4099200,\"SCHMDP\",IF(tblSchMJune19[[#This Row],[Primary Account]]=4099300,\"SCHMDT\"))))","v":"SCHMDT"},"210200","Prepaid Taxes-property taxes","GPS",null,{"$f":"IF(OR(tblSchMJune19[[#This Row],[Alloc]]=\"IDU\",tblSchMJune19[[#This Row],[Alloc]]=\"OR\",tblSchMJune19[[#This Row],[Alloc]]=\"UT\",tblSchMJune19[[#This Row],[Alloc]]=\"WYU\",tblSchMJune19[[#This Row],[Alloc]]=\"WYP\",tblSchMJune19[[#This Row],[Alloc]]=\"CA\",tblSchMJune19[[#This Row],[Alloc]]=\"WA\"),\"SITUS\",tblSchMJune19[[#This Row],[Alloc]])","v":"GPS"},{"$f":"INDEX(tblSchMLookup[FUNC],MATCH(tblSchMJune19[[#This Row],[Concat]],tblSchMLookup[Concat],0))","v":{"$error":"#N/A"}},{"$f":"IF(tblSchMJune19[[#This Row],[Total ($000)]]=0,\"NO\",IF(ISNA(tblSchMJune19[[#This Row],[FUNC]]),\"YES\",IF(_xlfn.ISFORMULA(tblSchMJune19[[#This Row],[FUNC]]),\"NO\",\"YES\")))","v":"NO"}]
[{"$f":"CONCATENATE(tblSchMJune19[[#This Row],[Primary Account]],tblSchMJune19[[#This Row],[Primary Name]],tblSchMJune19[[#This Row],[Secondary Acct]],tblSchMJune19[[#This Row],[Secondary  Name]],tblSchMJune19[[#This Row],[Alloc4FUNC]])","v":"4099300SCHMDT287396Regulatory Liabilities - Interim ProvisiOTHER"},4099300,{"$f":"IF(tblSchMJune19[[#This Row],[Primary Account]]=4098200,\"SCHMAP\",IF(tblSchMJune19[[#This Row],[Primary Account]]=4098300,\"SCHMAT\",IF(tblSchMJune19[[#This Row],[Primary Account]]=4099200,\"SCHMDP\",IF(tblSchMJune19[[#This Row],[Primary Account]]=4099300,\"SCHMDT\"))))","v":"SCHMDT"},"287396","Regulatory Liabilities - Interim Provisi","OTHER",null,{"$f":"IF(OR(tblSchMJune19[[#This Row],[Alloc]]=\"IDU\",tblSchMJune19[[#This Row],[Alloc]]=\"OR\",tblSchMJune19[[#This Row],[Alloc]]=\"UT\",tblSchMJune19[[#This Row],[Alloc]]=\"WYU\",tblSchMJune19[[#This Row],[Alloc]]=\"WYP\",tblSchMJune19[[#This Row],[Alloc]]=\"CA\",tblSchMJune19[[#This Row],[Alloc]]=\"WA\"),\"SITUS\",tblSchMJune19[[#This Row],[Alloc]])","v":"OTHER"},{"$f":"INDEX(tblSchMLookup[FUNC],MATCH(tblSchMJune19[[#This Row],[Concat]],tblSchMLookup[Concat],0))","v":{"$error":"#N/A"}},{"$f":"IF(tblSchMJune19[[#This Row],[Total ($000)]]=0,\"NO\",IF(ISNA(tblSchMJune19[[#This Row],[FUNC]]),\"YES\",IF(_xlfn.ISFORMULA(tblSchMJune19[[#This Row],[FUNC]]),\"NO\",\"YES\")))","v":"NO"}]
[{"$f":"CONCATENATE(tblSchMJune19[[#This Row],[Primary Account]],tblSchMJune19[[#This Row],[Primary Name]],tblSchMJune19[[#This Row],[Secondary Acct]],tblSchMJune19[[#This Row],[Secondary  Name]],tblSchMJune19[[#This Row],[Alloc4FUNC]])","v":"4099300SCHMDT287616Regulatory Assets - Interim ProvisionsOTHER"},4099300,{"$f":"IF(tblSchMJune19[[#This Row],[Primary Account]]=4098200,\"SCHMAP\",IF(tblSchMJune19[[#This Row],[Primary Account]]=4098300,\"SCHMAT\",IF(tblSchMJune19[[#This Row],[Primary Account]]=4099200,\"SCHMDP\",IF(tblSchMJune19[[#This Row],[Primary Account]]=4099300,\"SCHMDT\"))))","v":"SCHMDT"},"287616","Regulatory Assets - Interim Provisions","OTHER",null,{"$f":"IF(OR(tblSchMJune19[[#This Row],[Alloc]]=\"IDU\",tblSchMJune19[[#This Row],[Alloc]]=\"OR\",tblSchMJune19[[#This Row],[Alloc]]=\"UT\",tblSchMJune19[[#This Row],[Alloc]]=\"WYU\",tblSchMJune19[[#This Row],[Alloc]]=\"WYP\",tblSchMJune19[[#This Row],[Alloc]]=\"CA\",tblSchMJune19[[#This Row],[Alloc]]=\"WA\"),\"SITUS\",tblSchMJune19[[#This Row],[Alloc]])","v":"OTHER"},{"$f":"INDEX(tblSchMLookup[FUNC],MATCH(tblSchMJune19[[#This Row],[Concat]],tblSchMLookup[Concat],0))","v":{"$error":"#N/A"}},{"$f":"IF(tblSchMJune19[[#This Row],[Total ($000)]]=0,\"NO\",IF(ISNA(tblSchMJune19[[#This Row],[FUNC]]),\"YES\",IF(_xlfn.ISFORMULA(tblSchMJune19[[#This Row],[FUNC]]),\"NO\",\"YES\")))","v":"NO"}]
[{"$f":"CONCATENATE(tblSchMJune19[[#This Row],[Primary Account]],tblSchMJune19[[#This Row],[Primary Name]],tblSchMJune19[[#This Row],[Secondary Acct]],tblSchMJune19[[#This Row],[Secondary  Name]],tblSchMJune19[[#This Row],[Alloc4FUNC]])","v":"4099300SCHMDT305100Amort of Projects-Klamath EngineeringDGP"},4099300,{"$f":"IF(tblSchMJune19[[#This Row],[Primary Account]]=4098200,\"SCHMAP\",IF(tblSchMJune19[[#This Row],[Primary Account]]=4098300,\"SCHMAT\",IF(tblSchMJune19[[#This Row],[Primary Account]]=4099200,\"SCHMDP\",IF(tblSchMJune19[[#This Row],[Primary Account]]=4099300,\"SCHMDT\"))))","v":"SCHMDT"},"305100","Amort of Projects-Klamath Engineering","DGP",null,{"$f":"IF(OR(tblSchMJune19[[#This Row],[Alloc]]=\"IDU\",tblSchMJune19[[#This Row],[Alloc]]=\"OR\",tblSchMJune19[[#This Row],[Alloc]]=\"UT\",tblSchMJune19[[#This Row],[Alloc]]=\"WYU\",tblSchMJune19[[#This Row],[Alloc]]=\"WYP\",tblSchMJune19[[#This Row],[Alloc]]=\"CA\",tblSchMJune19[[#This Row],[Alloc]]=\"WA\"),\"SITUS\",tblSchMJune19[[#This Row],[Alloc]])","v":"DGP"},{"$f":"INDEX(tblSchMLookup[FUNC],MATCH(tblSchMJune19[[#This Row],[Concat]],tblSchMLookup[Concat],0))","v":{"$error":"#N/A"}},{"$f":"IF(tblSchMJune19[[#This Row],[Total ($000)]]=0,\"NO\",IF(ISNA(tblSchMJune19[[#This Row],[FUNC]]),\"YES\",IF(_xlfn.ISFORMULA(tblSchMJune19[[#This Row],[FUNC]]),\"NO\",\"YES\")))","v":"NO"}]
[{"$f":"CONCATENATE(tblSchMJune19[[#This Row],[Primary Account]],tblSchMJune19[[#This Row],[Primary Name]],tblSchMJune19[[#This Row],[Secondary Acct]],tblSchMJune19[[#This Row],[Secondary  Name]],tblSchMJune19[[#This Row],[Alloc4FUNC]])","v":"4099300SCHMDT310102Fixed Asset-Book/Tax - IGCSE"},4099300,{"$f":"IF(tblSchMJune19[[#This Row],[Primary Account]]=4098200,\"SCHMAP\",IF(tblSchMJune19[[#This Row],[Primary Account]]=4098300,\"SCHMAT\",IF(tblSchMJune19[[#This Row],[Primary Account]]=4099200,\"SCHMDP\",IF(tblSchMJune19[[#This Row],[Primary Account]]=4099300,\"SCHMDT\"))))","v":"SCHMDT"},"310102","Fixed Asset-Book/Tax - IGC","SE",null,{"$f":"IF(OR(tblSchMJune19[[#This Row],[Alloc]]=\"IDU\",tblSchMJune19[[#This Row],[Alloc]]=\"OR\",tblSchMJune19[[#This Row],[Alloc]]=\"UT\",tblSchMJune19[[#This Row],[Alloc]]=\"WYU\",tblSchMJune19[[#This Row],[Alloc]]=\"WYP\",tblSchMJune19[[#This Row],[Alloc]]=\"CA\",tblSchMJune19[[#This Row],[Alloc]]=\"WA\"),\"SITUS\",tblSchMJune19[[#This Row],[Alloc]])","v":"SE"},{"$f":"INDEX(tblSchMLookup[FUNC],MATCH(tblSchMJune19[[#This Row],[Concat]],tblSchMLookup[Concat],0))","v":{"$error":"#N/A"}},{"$f":"IF(tblSchMJune19[[#This Row],[Total ($000)]]=0,\"NO\",IF(ISNA(tblSchMJune19[[#This Row],[FUNC]]),\"YES\",IF(_xlfn.ISFORMULA(tblSchMJune19[[#This Row],[FUNC]]),\"NO\",\"YES\")))","v":"NO"}]
[{"$f":"CONCATENATE(tblSchMJune19[[#This Row],[Primary Account]],tblSchMJune19[[#This Row],[Primary Name]],tblSchMJune19[[#This Row],[Secondary Acct]],tblSchMJune19[[#This Row],[Secondary  Name]],tblSchMJune19[[#This Row],[Alloc4FUNC]])","v":"4099300SCHMDT320210Research & Exper. Sec. 174 Amort.SO"},4099300,{"$f":"IF(tblSchMJune19[[#This Row],[Primary Account]]=4098200,\"SCHMAP\",IF(tblSchMJune19[[#This Row],[Primary Account]]=4098300,\"SCHMAT\",IF(tblSchMJune19[[#This Row],[Primary Account]]=4099200,\"SCHMDP\",IF(tblSchMJune19[[#This Row],[Primary Account]]=4099300,\"SCHMDT\"))))","v":"SCHMDT"},"320210","Research & Exper. Sec. 174 Amort.","SO",null,{"$f":"IF(OR(tblSchMJune19[[#This Row],[Alloc]]=\"IDU\",tblSchMJune19[[#This Row],[Alloc]]=\"OR\",tblSchMJune19[[#This Row],[Alloc]]=\"UT\",tblSchMJune19[[#This Row],[Alloc]]=\"WYU\",tblSchMJune19[[#This Row],[Alloc]]=\"WYP\",tblSchMJune19[[#This Row],[Alloc]]=\"CA\",tblSchMJune19[[#This Row],[Alloc]]=\"WA\"),\"SITUS\",tblSchMJune19[[#This Row],[Alloc]])","v":"SO"},{"$f":"INDEX(tblSchMLookup[FUNC],MATCH(tblSchMJune19[[#This Row],[Concat]],tblSchMLookup[Concat],0))","v":{"$error":"#N/A"}},{"$f":"IF(tblSchMJune19[[#This Row],[Total ($000)]]=0,\"NO\",IF(ISNA(tblSchMJune19[[#This Row],[FUNC]]),\"YES\",IF(_xlfn.ISFORMULA(tblSchMJune19[[#This Row],[FUNC]]),\"NO\",\"YES\")))","v":"NO"}]
[{"$f":"CONCATENATE(tblSchMJune19[[#This Row],[Primary Account]],tblSchMJune19[[#This Row],[Primary Name]],tblSchMJune19[[#This Row],[Secondary Acct]],tblSchMJune19[[#This Row],[Secondary  Name]],tblSchMJune19[[#This Row],[Alloc4FUNC]])","v":"4099300SCHMDT320271Contra Reg Asset - Pension Plan CTGSO"},4099300,{"$f":"IF(tblSchMJune19[[#This Row],[Primary Account]]=4098200,\"SCHMAP\",IF(tblSchMJune19[[#This Row],[Primary Account]]=4098300,\"SCHMAT\",IF(tblSchMJune19[[#This Row],[Primary Account]]=4099200,\"SCHMDP\",IF(tblSchMJune19[[#This Row],[Primary Account]]=4099300,\"SCHMDT\"))))","v":"SCHMDT"},"320271","Contra Reg Asset - Pension Plan CTG","SO",1640.9829999999999,{"$f":"IF(OR(tblSchMJune19[[#This Row],[Alloc]]=\"IDU\",tblSchMJune19[[#This Row],[Alloc]]=\"OR\",tblSchMJune19[[#This Row],[Alloc]]=\"UT\",tblSchMJune19[[#This Row],[Alloc]]=\"WYU\",tblSchMJune19[[#This Row],[Alloc]]=\"WYP\",tblSchMJune19[[#This Row],[Alloc]]=\"CA\",tblSchMJune19[[#This Row],[Alloc]]=\"WA\"),\"SITUS\",tblSchMJune19[[#This Row],[Alloc]])","v":"SO"},{"$f":"INDEX(tblSchMLookup[FUNC],MATCH(tblSchMJune19[[#This Row],[Concat]],tblSchMLookup[Concat],0))","v":"LABOR"},{"$f":"IF(tblSchMJune19[[#This Row],[Total ($000)]]=0,\"NO\",IF(ISNA(tblSchMJune19[[#This Row],[FUNC]]),\"YES\",IF(_xlfn.ISFORMULA(tblSchMJune19[[#This Row],[FUNC]]),\"NO\",\"YES\")))","v":"NO"}]
[{"$f":"CONCATENATE(tblSchMJune19[[#This Row],[Primary Account]],tblSchMJune19[[#This Row],[Primary Name]],tblSchMJune19[[#This Row],[Secondary Acct]],tblSchMJune19[[#This Row],[Secondary  Name]],tblSchMJune19[[#This Row],[Alloc4FUNC]])","v":"4099300SCHMDT320279Reg Liability - FAS 158 Post RetirementSO"},4099300,{"$f":"IF(tblSchMJune19[[#This Row],[Primary Account]]=4098200,\"SCHMAP\",IF(tblSchMJune19[[#This Row],[Primary Account]]=4098300,\"SCHMAT\",IF(tblSchMJune19[[#This Row],[Primary Account]]=4099200,\"SCHMDP\",IF(tblSchMJune19[[#This Row],[Primary Account]]=4099300,\"SCHMDT\"))))","v":"SCHMDT"},"320279","Reg Liability - FAS 158 Post Retirement","SO",-10971.479170000001,{"$f":"IF(OR(tblSchMJune19[[#This Row],[Alloc]]=\"IDU\",tblSchMJune19[[#This Row],[Alloc]]=\"OR\",tblSchMJune19[[#This Row],[Alloc]]=\"UT\",tblSchMJune19[[#This Row],[Alloc]]=\"WYU\",tblSchMJune19[[#This Row],[Alloc]]=\"WYP\",tblSchMJune19[[#This Row],[Alloc]]=\"CA\",tblSchMJune19[[#This Row],[Alloc]]=\"WA\"),\"SITUS\",tblSchMJune19[[#This Row],[Alloc]])","v":"SO"},{"$f":"INDEX(tblSchMLookup[FUNC],MATCH(tblSchMJune19[[#This Row],[Concat]],tblSchMLookup[Concat],0))","v":"LABOR"},{"$f":"IF(tblSchMJune19[[#This Row],[Total ($000)]]=0,\"NO\",IF(ISNA(tblSchMJune19[[#This Row],[FUNC]]),\"YES\",IF(_xlfn.ISFORMULA(tblSchMJune19[[#This Row],[FUNC]]),\"NO\",\"YES\")))","v":"NO"}]
[{"$f":"CONCATENATE(tblSchMJune19[[#This Row],[Primary Account]],tblSchMJune19[[#This Row],[Primary Name]],tblSchMJune19[[#This Row],[Secondary Acct]],tblSchMJune19[[#This Row],[Secondary  Name]],tblSchMJune19[[#This Row],[Alloc4FUNC]])","v":"4099300SCHMDT320285Reg Asset-Post Employment CostsSO"},4099300,{"$f":"IF(tblSchMJune19[[#This Row],[Primary Account]]=4098200,\"SCHMAP\",IF(tblSchMJune19[[#This Row],[Primary Account]]=4098300,\"SCHMAT\",IF(tblSchMJune19[[#This Row],[Primary Account]]=4099200,\"SCHMDP\",IF(tblSchMJune19[[#This Row],[Primary Account]]=4099300,\"SCHMDT\"))))","v":"SCHMDT"},"320285","Reg Asset-Post Employment Costs","SO",-427.69801999999999,{"$f":"IF(OR(tblSchMJune19[[#This Row],[Alloc]]=\"IDU\",tblSchMJune19[[#This Row],[Alloc]]=\"OR\",tblSchMJune19[[#This Row],[Alloc]]=\"UT\",tblSchMJune19[[#This Row],[Alloc]]=\"WYU\",tblSchMJune19[[#This Row],[Alloc]]=\"WYP\",tblSchMJune19[[#This Row],[Alloc]]=\"CA\",tblSchMJune19[[#This Row],[Alloc]]=\"WA\"),\"SITUS\",tblSchMJune19[[#This Row],[Alloc]])","v":"SO"},{"$f":"INDEX(tblSchMLookup[FUNC],MATCH(tblSchMJune19[[#This Row],[Concat]],tblSchMLookup[Concat],0))","v":"LABOR"},{"$f":"IF(tblSchMJune19[[#This Row],[Total ($000)]]=0,\"NO\",IF(ISNA(tblSchMJune19[[#This Row],[FUNC]]),\"YES\",IF(_xlfn.ISFORMULA(tblSchMJune19[[#This Row],[FUNC]]),\"NO\",\"YES\")))","v":"NO"}]
[{"$f":"CONCATENATE(tblSchMJune19[[#This Row],[Primary Account]],tblSchMJune19[[#This Row],[Primary Name]],tblSchMJune19[[#This Row],[Secondary Acct]],tblSchMJune19[[#This Row],[Secondary  Name]],tblSchMJune19[[#This Row],[Alloc4FUNC]])","v":"4099300SCHMDT320290LT Prepaid IBEW 57 Pension ContributionOTHER"},4099300,{"$f":"IF(tblSchMJune19[[#This Row],[Primary Account]]=4098200,\"SCHMAP\",IF(tblSchMJune19[[#This Row],[Primary Account]]=4098300,\"SCHMAT\",IF(tblSchMJune19[[#This Row],[Primary Account]]=4099200,\"SCHMDP\",IF(tblSchMJune19[[#This Row],[Primary Account]]=4099300,\"SCHMDT\"))))","v":"SCHMDT"},"320290","LT Prepaid IBEW 57 Pension Contribution","OTHER",null,{"$f":"IF(OR(tblSchMJune19[[#This Row],[Alloc]]=\"IDU\",tblSchMJune19[[#This Row],[Alloc]]=\"OR\",tblSchMJune19[[#This Row],[Alloc]]=\"UT\",tblSchMJune19[[#This Row],[Alloc]]=\"WYU\",tblSchMJune19[[#This Row],[Alloc]]=\"WYP\",tblSchMJune19[[#This Row],[Alloc]]=\"CA\",tblSchMJune19[[#This Row],[Alloc]]=\"WA\"),\"SITUS\",tblSchMJune19[[#This Row],[Alloc]])","v":"OTHER"},{"$f":"INDEX(tblSchMLookup[FUNC],MATCH(tblSchMJune19[[#This Row],[Concat]],tblSchMLookup[Concat],0))","v":"LABOR"},{"$f":"IF(tblSchMJune19[[#This Row],[Total ($000)]]=0,\"NO\",IF(ISNA(tblSchMJune19[[#This Row],[FUNC]]),\"YES\",IF(_xlfn.ISFORMULA(tblSchMJune19[[#This Row],[FUNC]]),\"NO\",\"YES\")))","v":"NO"}]
[{"$f":"CONCATENATE(tblSchMJune19[[#This Row],[Primary Account]],tblSchMJune19[[#This Row],[Primary Name]],tblSchMJune19[[#This Row],[Secondary Acct]],tblSchMJune19[[#This Row],[Secondary  Name]],tblSchMJune19[[#This Row],[Alloc4FUNC]])","v":"4099300SCHMDT320291Prepaid IBEw 57 Pension Contribution - COTHER"},4099300,{"$f":"IF(tblSchMJune19[[#This Row],[Primary Account]]=4098200,\"SCHMAP\",IF(tblSchMJune19[[#This Row],[Primary Account]]=4098300,\"SCHMAT\",IF(tblSchMJune19[[#This Row],[Primary Account]]=4099200,\"SCHMDP\",IF(tblSchMJune19[[#This Row],[Primary Account]]=4099300,\"SCHMDT\"))))","v":"SCHMDT"},"320291","Prepaid IBEw 57 Pension Contribution - C","OTHER",null,{"$f":"IF(OR(tblSchMJune19[[#This Row],[Alloc]]=\"IDU\",tblSchMJune19[[#This Row],[Alloc]]=\"OR\",tblSchMJune19[[#This Row],[Alloc]]=\"UT\",tblSchMJune19[[#This Row],[Alloc]]=\"WYU\",tblSchMJune19[[#This Row],[Alloc]]=\"WYP\",tblSchMJune19[[#This Row],[Alloc]]=\"CA\",tblSchMJune19[[#This Row],[Alloc]]=\"WA\"),\"SITUS\",tblSchMJune19[[#This Row],[Alloc]])","v":"OTHER"},{"$f":"INDEX(tblSchMLookup[FUNC],MATCH(tblSchMJune19[[#This Row],[Concat]],tblSchMLookup[Concat],0))","v":{"$error":"#N/A"}},{"$f":"IF(tblSchMJune19[[#This Row],[Total ($000)]]=0,\"NO\",IF(ISNA(tblSchMJune19[[#This Row],[FUNC]]),\"YES\",IF(_xlfn.ISFORMULA(tblSchMJune19[[#This Row],[FUNC]]),\"NO\",\"YES\")))","v":"NO"}]
[{"$f":"CONCATENATE(tblSchMJune19[[#This Row],[Primary Account]],tblSchMJune19[[#This Row],[Primary Name]],tblSchMJune19[[#This Row],[Secondary Acct]],tblSchMJune19[[#This Row],[Secondary  Name]],tblSchMJune19[[#This Row],[Alloc4FUNC]])","v":"4099300SCHMDT415110Def Reg Asset-Transmission Srvc DepositSG"},4099300,{"$f":"IF(tblSchMJune19[[#This Row],[Primary Account]]=4098200,\"SCHMAP\",IF(tblSchMJune19[[#This Row],[Primary Account]]=4098300,\"SCHMAT\",IF(tblSchMJune19[[#This Row],[Primary Account]]=4099200,\"SCHMDP\",IF(tblSchMJune19[[#This Row],[Primary Account]]=4099300,\"SCHMDT\"))))","v":"SCHMDT"},"415110","Def Reg Asset-Transmission Srvc Deposit","SG",-1519.87724,{"$f":"IF(OR(tblSchMJune19[[#This Row],[Alloc]]=\"IDU\",tblSchMJune19[[#This Row],[Alloc]]=\"OR\",tblSchMJune19[[#This Row],[Alloc]]=\"UT\",tblSchMJune19[[#This Row],[Alloc]]=\"WYU\",tblSchMJune19[[#This Row],[Alloc]]=\"WYP\",tblSchMJune19[[#This Row],[Alloc]]=\"CA\",tblSchMJune19[[#This Row],[Alloc]]=\"WA\"),\"SITUS\",tblSchMJune19[[#This Row],[Alloc]])","v":"SG"},{"$f":"INDEX(tblSchMLookup[FUNC],MATCH(tblSchMJune19[[#This Row],[Concat]],tblSchMLookup[Concat],0))","v":"T"},{"$f":"IF(tblSchMJune19[[#This Row],[Total ($000)]]=0,\"NO\",IF(ISNA(tblSchMJune19[[#This Row],[FUNC]]),\"YES\",IF(_xlfn.ISFORMULA(tblSchMJune19[[#This Row],[FUNC]]),\"NO\",\"YES\")))","v":"NO"}]
[{"$f":"CONCATENATE(tblSchMJune19[[#This Row],[Primary Account]],tblSchMJune19[[#This Row],[Primary Name]],tblSchMJune19[[#This Row],[Secondary Acct]],tblSchMJune19[[#This Row],[Secondary  Name]],tblSchMJune19[[#This Row],[Alloc4FUNC]])","v":"4099300SCHMDT415120DEFERRED REG ASSET - FOOTE CREEK CONTRACSG"},4099300,{"$f":"IF(tblSchMJune19[[#This Row],[Primary Account]]=4098200,\"SCHMAP\",IF(tblSchMJune19[[#This Row],[Primary Account]]=4098300,\"SCHMAT\",IF(tblSchMJune19[[#This Row],[Primary Account]]=4099200,\"SCHMDP\",IF(tblSchMJune19[[#This Row],[Primary Account]]=4099300,\"SCHMDT\"))))","v":"SCHMDT"},"415120","DEFERRED REG ASSET - FOOTE CREEK CONTRAC","SG",null,{"$f":"IF(OR(tblSchMJune19[[#This Row],[Alloc]]=\"IDU\",tblSchMJune19[[#This Row],[Alloc]]=\"OR\",tblSchMJune19[[#This Row],[Alloc]]=\"UT\",tblSchMJune19[[#This Row],[Alloc]]=\"WYU\",tblSchMJune19[[#This Row],[Alloc]]=\"WYP\",tblSchMJune19[[#This Row],[Alloc]]=\"CA\",tblSchMJune19[[#This Row],[Alloc]]=\"WA\"),\"SITUS\",tblSchMJune19[[#This Row],[Alloc]])","v":"SG"},{"$f":"INDEX(tblSchMLookup[FUNC],MATCH(tblSchMJune19[[#This Row],[Concat]],tblSchMLookup[Concat],0))","v":{"$error":"#N/A"}},{"$f":"IF(tblSchMJune19[[#This Row],[Total ($000)]]=0,\"NO\",IF(ISNA(tblSchMJune19[[#This Row],[FUNC]]),\"YES\",IF(_xlfn.ISFORMULA(tblSchMJune19[[#This Row],[FUNC]]),\"NO\",\"YES\")))","v":"NO"}]
[{"$f":"CONCATENATE(tblSchMJune19[[#This Row],[Primary Account]],tblSchMJune19[[#This Row],[Primary Name]],tblSchMJune19[[#This Row],[Secondary Acct]],tblSchMJune19[[#This Row],[Secondary  Name]],tblSchMJune19[[#This Row],[Alloc4FUNC]])","v":"4099300SCHMDT415200REG ASSET - OR TRANSPORTATION ELECTRIFICOTHER"},4099300,{"$f":"IF(tblSchMJune19[[#This Row],[Primary Account]]=4098200,\"SCHMAP\",IF(tblSchMJune19[[#This Row],[Primary Account]]=4098300,\"SCHMAT\",IF(tblSchMJune19[[#This Row],[Primary Account]]=4099200,\"SCHMDP\",IF(tblSchMJune19[[#This Row],[Primary Account]]=4099300,\"SCHMDT\"))))","v":"SCHMDT"},"415200","REG ASSET - OR TRANSPORTATION ELECTRIFIC","OTHER",389.87871999999999,{"$f":"IF(OR(tblSchMJune19[[#This Row],[Alloc]]=\"IDU\",tblSchMJune19[[#This Row],[Alloc]]=\"OR\",tblSchMJune19[[#This Row],[Alloc]]=\"UT\",tblSchMJune19[[#This Row],[Alloc]]=\"WYU\",tblSchMJune19[[#This Row],[Alloc]]=\"WYP\",tblSchMJune19[[#This Row],[Alloc]]=\"CA\",tblSchMJune19[[#This Row],[Alloc]]=\"WA\"),\"SITUS\",tblSchMJune19[[#This Row],[Alloc]])","v":"OTHER"},{"$f":"INDEX(tblSchMLookup[FUNC],MATCH(tblSchMJune19[[#This Row],[Concat]],tblSchMLookup[Concat],0))","v":"PTD"},{"$f":"IF(tblSchMJune19[[#This Row],[Total ($000)]]=0,\"NO\",IF(ISNA(tblSchMJune19[[#This Row],[FUNC]]),\"YES\",IF(_xlfn.ISFORMULA(tblSchMJune19[[#This Row],[FUNC]]),\"NO\",\"YES\")))","v":"NO"}]
[{"$f":"CONCATENATE(tblSchMJune19[[#This Row],[Primary Account]],tblSchMJune19[[#This Row],[Primary Name]],tblSchMJune19[[#This Row],[Secondary Acct]],tblSchMJune19[[#This Row],[Secondary  Name]],tblSchMJune19[[#This Row],[Alloc4FUNC]])","v":"4099300SCHMDT415300Hazardous Waste Clean-up CostsSO"},4099300,{"$f":"IF(tblSchMJune19[[#This Row],[Primary Account]]=4098200,\"SCHMAP\",IF(tblSchMJune19[[#This Row],[Primary Account]]=4098300,\"SCHMAT\",IF(tblSchMJune19[[#This Row],[Primary Account]]=4099200,\"SCHMDP\",IF(tblSchMJune19[[#This Row],[Primary Account]]=4099300,\"SCHMDT\"))))","v":"SCHMDT"},"415300","Hazardous Waste Clean-up Costs","SO",1875.55908,{"$f":"IF(OR(tblSchMJune19[[#This Row],[Alloc]]=\"IDU\",tblSchMJune19[[#This Row],[Alloc]]=\"OR\",tblSchMJune19[[#This Row],[Alloc]]=\"UT\",tblSchMJune19[[#This Row],[Alloc]]=\"WYU\",tblSchMJune19[[#This Row],[Alloc]]=\"WYP\",tblSchMJune19[[#This Row],[Alloc]]=\"CA\",tblSchMJune19[[#This Row],[Alloc]]=\"WA\"),\"SITUS\",tblSchMJune19[[#This Row],[Alloc]])","v":"SO"},{"$f":"INDEX(tblSchMLookup[FUNC],MATCH(tblSchMJune19[[#This Row],[Concat]],tblSchMLookup[Concat],0))","v":"ESD"},{"$f":"IF(tblSchMJune19[[#This Row],[Total ($000)]]=0,\"NO\",IF(ISNA(tblSchMJune19[[#This Row],[FUNC]]),\"YES\",IF(_xlfn.ISFORMULA(tblSchMJune19[[#This Row],[FUNC]]),\"NO\",\"YES\")))","v":"NO"}]
[{"$f":"CONCATENATE(tblSchMJune19[[#This Row],[Primary Account]],tblSchMJune19[[#This Row],[Primary Name]],tblSchMJune19[[#This Row],[Secondary Acct]],tblSchMJune19[[#This Row],[Secondary  Name]],tblSchMJune19[[#This Row],[Alloc4FUNC]])","v":"4099300SCHMDT415301Hazardous Waste Clean-up Costs-WASITUS"},4099300,{"$f":"IF(tblSchMJune19[[#This Row],[Primary Account]]=4098200,\"SCHMAP\",IF(tblSchMJune19[[#This Row],[Primary Account]]=4098300,\"SCHMAT\",IF(tblSchMJune19[[#This Row],[Primary Account]]=4099200,\"SCHMDP\",IF(tblSchMJune19[[#This Row],[Primary Account]]=4099300,\"SCHMDT\"))))","v":"SCHMDT"},"415301","Hazardous Waste Clean-up Costs-WA","WA",null,{"$f":"IF(OR(tblSchMJune19[[#This Row],[Alloc]]=\"IDU\",tblSchMJune19[[#This Row],[Alloc]]=\"OR\",tblSchMJune19[[#This Row],[Alloc]]=\"UT\",tblSchMJune19[[#This Row],[Alloc]]=\"WYU\",tblSchMJune19[[#This Row],[Alloc]]=\"WYP\",tblSchMJune19[[#This Row],[Alloc]]=\"CA\",tblSchMJune19[[#This Row],[Alloc]]=\"WA\"),\"SITUS\",tblSchMJune19[[#This Row],[Alloc]])","v":"SITUS"},{"$f":"INDEX(tblSchMLookup[FUNC],MATCH(tblSchMJune19[[#This Row],[Concat]],tblSchMLookup[Concat],0))","v":{"$error":"#N/A"}},{"$f":"IF(tblSchMJune19[[#This Row],[Total ($000)]]=0,\"NO\",IF(ISNA(tblSchMJune19[[#This Row],[FUNC]]),\"YES\",IF(_xlfn.ISFORMULA(tblSchMJune19[[#This Row],[FUNC]]),\"NO\",\"YES\")))","v":"NO"}]
[{"$f":"CONCATENATE(tblSchMJune19[[#This Row],[Primary Account]],tblSchMJune19[[#This Row],[Primary Name]],tblSchMJune19[[#This Row],[Secondary Acct]],tblSchMJune19[[#This Row],[Secondary  Name]],tblSchMJune19[[#This Row],[Alloc4FUNC]])","v":"4099300SCHMDT415410Reg Asset - Energy West MiningSE"},4099300,{"$f":"IF(tblSchMJune19[[#This Row],[Primary Account]]=4098200,\"SCHMAP\",IF(tblSchMJune19[[#This Row],[Primary Account]]=4098300,\"SCHMAT\",IF(tblSchMJune19[[#This Row],[Primary Account]]=4099200,\"SCHMDP\",IF(tblSchMJune19[[#This Row],[Primary Account]]=4099300,\"SCHMDT\"))))","v":"SCHMDT"},"415410","Reg Asset - Energy West Mining","SE",-1003.9737,{"$f":"IF(OR(tblSchMJune19[[#This Row],[Alloc]]=\"IDU\",tblSchMJune19[[#This Row],[Alloc]]=\"OR\",tblSchMJune19[[#This Row],[Alloc]]=\"UT\",tblSchMJune19[[#This Row],[Alloc]]=\"WYU\",tblSchMJune19[[#This Row],[Alloc]]=\"WYP\",tblSchMJune19[[#This Row],[Alloc]]=\"CA\",tblSchMJune19[[#This Row],[Alloc]]=\"WA\"),\"SITUS\",tblSchMJune19[[#This Row],[Alloc]])","v":"SE"},{"$f":"INDEX(tblSchMLookup[FUNC],MATCH(tblSchMJune19[[#This Row],[Concat]],tblSchMLookup[Concat],0))","v":"P"},{"$f":"IF(tblSchMJune19[[#This Row],[Total ($000)]]=0,\"NO\",IF(ISNA(tblSchMJune19[[#This Row],[FUNC]]),\"YES\",IF(_xlfn.ISFORMULA(tblSchMJune19[[#This Row],[FUNC]]),\"NO\",\"YES\")))","v":"NO"}]
[{"$f":"CONCATENATE(tblSchMJune19[[#This Row],[Primary Account]],tblSchMJune19[[#This Row],[Primary Name]],tblSchMJune19[[#This Row],[Secondary Acct]],tblSchMJune19[[#This Row],[Secondary  Name]],tblSchMJune19[[#This Row],[Alloc4FUNC]])","v":"4099300SCHMDT415411ContraRA DeerCreekAband CASITUS"},4099300,{"$f":"IF(tblSchMJune19[[#This Row],[Primary Account]]=4098200,\"SCHMAP\",IF(tblSchMJune19[[#This Row],[Primary Account]]=4098300,\"SCHMAT\",IF(tblSchMJune19[[#This Row],[Primary Account]]=4099200,\"SCHMDP\",IF(tblSchMJune19[[#This Row],[Primary Account]]=4099300,\"SCHMDT\"))))","v":"SCHMDT"},"415411","ContraRA DeerCreekAband CA","CA",17.2654,{"$f":"IF(OR(tblSchMJune19[[#This Row],[Alloc]]=\"IDU\",tblSchMJune19[[#This Row],[Alloc]]=\"OR\",tblSchMJune19[[#This Row],[Alloc]]=\"UT\",tblSchMJune19[[#This Row],[Alloc]]=\"WYU\",tblSchMJune19[[#This Row],[Alloc]]=\"WYP\",tblSchMJune19[[#This Row],[Alloc]]=\"CA\",tblSchMJune19[[#This Row],[Alloc]]=\"WA\"),\"SITUS\",tblSchMJune19[[#This Row],[Alloc]])","v":"SITUS"},{"$f":"INDEX(tblSchMLookup[FUNC],MATCH(tblSchMJune19[[#This Row],[Concat]],tblSchMLookup[Concat],0))","v":"P"},{"$f":"IF(tblSchMJune19[[#This Row],[Total ($000)]]=0,\"NO\",IF(ISNA(tblSchMJune19[[#This Row],[FUNC]]),\"YES\",IF(_xlfn.ISFORMULA(tblSchMJune19[[#This Row],[FUNC]]),\"NO\",\"YES\")))","v":"NO"}]
[{"$f":"CONCATENATE(tblSchMJune19[[#This Row],[Primary Account]],tblSchMJune19[[#This Row],[Primary Name]],tblSchMJune19[[#This Row],[Secondary Acct]],tblSchMJune19[[#This Row],[Secondary  Name]],tblSchMJune19[[#This Row],[Alloc4FUNC]])","v":"4099300SCHMDT415412ContraRA DeerCreekAband IDSITUS"},4099300,{"$f":"IF(tblSchMJune19[[#This Row],[Primary Account]]=4098200,\"SCHMAP\",IF(tblSchMJune19[[#This Row],[Primary Account]]=4098300,\"SCHMAT\",IF(tblSchMJune19[[#This Row],[Primary Account]]=4099200,\"SCHMDP\",IF(tblSchMJune19[[#This Row],[Primary Account]]=4099300,\"SCHMDT\"))))","v":"SCHMDT"},"415412","ContraRA DeerCreekAband ID","IDU",-415.22048000000001,{"$f":"IF(OR(tblSchMJune19[[#This Row],[Alloc]]=\"IDU\",tblSchMJune19[[#This Row],[Alloc]]=\"OR\",tblSchMJune19[[#This Row],[Alloc]]=\"UT\",tblSchMJune19[[#This Row],[Alloc]]=\"WYU\",tblSchMJune19[[#This Row],[Alloc]]=\"WYP\",tblSchMJune19[[#This Row],[Alloc]]=\"CA\",tblSchMJune19[[#This Row],[Alloc]]=\"WA\"),\"SITUS\",tblSchMJune19[[#This Row],[Alloc]])","v":"SITUS"},{"$f":"INDEX(tblSchMLookup[FUNC],MATCH(tblSchMJune19[[#This Row],[Concat]],tblSchMLookup[Concat],0))","v":"P"},{"$f":"IF(tblSchMJune19[[#This Row],[Total ($000)]]=0,\"NO\",IF(ISNA(tblSchMJune19[[#This Row],[FUNC]]),\"YES\",IF(_xlfn.ISFORMULA(tblSchMJune19[[#This Row],[FUNC]]),\"NO\",\"YES\")))","v":"NO"}]
[{"$f":"CONCATENATE(tblSchMJune19[[#This Row],[Primary Account]],tblSchMJune19[[#This Row],[Primary Name]],tblSchMJune19[[#This Row],[Secondary Acct]],tblSchMJune19[[#This Row],[Secondary  Name]],tblSchMJune19[[#This Row],[Alloc4FUNC]])","v":"4099300SCHMDT415413ContraRA DeerCreekAband ORSITUS"},4099300,{"$f":"IF(tblSchMJune19[[#This Row],[Primary Account]]=4098200,\"SCHMAP\",IF(tblSchMJune19[[#This Row],[Primary Account]]=4098300,\"SCHMAT\",IF(tblSchMJune19[[#This Row],[Primary Account]]=4099200,\"SCHMDP\",IF(tblSchMJune19[[#This Row],[Primary Account]]=4099300,\"SCHMDT\"))))","v":"SCHMDT"},"415413","ContraRA DeerCreekAband OR","OR",-1619.4955600000001,{"$f":"IF(OR(tblSchMJune19[[#This Row],[Alloc]]=\"IDU\",tblSchMJune19[[#This Row],[Alloc]]=\"OR\",tblSchMJune19[[#This Row],[Alloc]]=\"UT\",tblSchMJune19[[#This Row],[Alloc]]=\"WYU\",tblSchMJune19[[#This Row],[Alloc]]=\"WYP\",tblSchMJune19[[#This Row],[Alloc]]=\"CA\",tblSchMJune19[[#This Row],[Alloc]]=\"WA\"),\"SITUS\",tblSchMJune19[[#This Row],[Alloc]])","v":"SITUS"},{"$f":"INDEX(tblSchMLookup[FUNC],MATCH(tblSchMJune19[[#This Row],[Concat]],tblSchMLookup[Concat],0))","v":"P"},{"$f":"IF(tblSchMJune19[[#This Row],[Total ($000)]]=0,\"NO\",IF(ISNA(tblSchMJune19[[#This Row],[FUNC]]),\"YES\",IF(_xlfn.ISFORMULA(tblSchMJune19[[#This Row],[FUNC]]),\"NO\",\"YES\")))","v":"NO"}]
[{"$f":"CONCATENATE(tblSchMJune19[[#This Row],[Primary Account]],tblSchMJune19[[#This Row],[Primary Name]],tblSchMJune19[[#This Row],[Secondary Acct]],tblSchMJune19[[#This Row],[Secondary  Name]],tblSchMJune19[[#This Row],[Alloc4FUNC]])","v":"4099300SCHMDT415414ContraRA DeerCreekAband UTSITUS"},4099300,{"$f":"IF(tblSchMJune19[[#This Row],[Primary Account]]=4098200,\"SCHMAP\",IF(tblSchMJune19[[#This Row],[Primary Account]]=4098300,\"SCHMAT\",IF(tblSchMJune19[[#This Row],[Primary Account]]=4099200,\"SCHMDP\",IF(tblSchMJune19[[#This Row],[Primary Account]]=4099300,\"SCHMDT\"))))","v":"SCHMDT"},"415414","ContraRA DeerCreekAband UT","UT",-7.6256700000000004,{"$f":"IF(OR(tblSchMJune19[[#This Row],[Alloc]]=\"IDU\",tblSchMJune19[[#This Row],[Alloc]]=\"OR\",tblSchMJune19[[#This Row],[Alloc]]=\"UT\",tblSchMJune19[[#This Row],[Alloc]]=\"WYU\",tblSchMJune19[[#This Row],[Alloc]]=\"WYP\",tblSchMJune19[[#This Row],[Alloc]]=\"CA\",tblSchMJune19[[#This Row],[Alloc]]=\"WA\"),\"SITUS\",tblSchMJune19[[#This Row],[Alloc]])","v":"SITUS"},{"$f":"INDEX(tblSchMLookup[FUNC],MATCH(tblSchMJune19[[#This Row],[Concat]],tblSchMLookup[Concat],0))","v":"P"},{"$f":"IF(tblSchMJune19[[#This Row],[Total ($000)]]=0,\"NO\",IF(ISNA(tblSchMJune19[[#This Row],[FUNC]]),\"YES\",IF(_xlfn.ISFORMULA(tblSchMJune19[[#This Row],[FUNC]]),\"NO\",\"YES\")))","v":"NO"}]
[{"$f":"CONCATENATE(tblSchMJune19[[#This Row],[Primary Account]],tblSchMJune19[[#This Row],[Primary Name]],tblSchMJune19[[#This Row],[Secondary Acct]],tblSchMJune19[[#This Row],[Secondary  Name]],tblSchMJune19[[#This Row],[Alloc4FUNC]])","v":"4099300SCHMDT415415ContraRA DeerCreekAband WASITUS"},4099300,{"$f":"IF(tblSchMJune19[[#This Row],[Primary Account]]=4098200,\"SCHMAP\",IF(tblSchMJune19[[#This Row],[Primary Account]]=4098300,\"SCHMAT\",IF(tblSchMJune19[[#This Row],[Primary Account]]=4099200,\"SCHMDP\",IF(tblSchMJune19[[#This Row],[Primary Account]]=4099300,\"SCHMDT\"))))","v":"SCHMDT"},"415415","ContraRA DeerCreekAband WA","WA",77.44426,{"$f":"IF(OR(tblSchMJune19[[#This Row],[Alloc]]=\"IDU\",tblSchMJune19[[#This Row],[Alloc]]=\"OR\",tblSchMJune19[[#This Row],[Alloc]]=\"UT\",tblSchMJune19[[#This Row],[Alloc]]=\"WYU\",tblSchMJune19[[#This Row],[Alloc]]=\"WYP\",tblSchMJune19[[#This Row],[Alloc]]=\"CA\",tblSchMJune19[[#This Row],[Alloc]]=\"WA\"),\"SITUS\",tblSchMJune19[[#This Row],[Alloc]])","v":"SITUS"},{"$f":"INDEX(tblSchMLookup[FUNC],MATCH(tblSchMJune19[[#This Row],[Concat]],tblSchMLookup[Concat],0))","v":"P"},{"$f":"IF(tblSchMJune19[[#This Row],[Total ($000)]]=0,\"NO\",IF(ISNA(tblSchMJune19[[#This Row],[FUNC]]),\"YES\",IF(_xlfn.ISFORMULA(tblSchMJune19[[#This Row],[FUNC]]),\"NO\",\"YES\")))","v":"NO"}]
[{"$f":"CONCATENATE(tblSchMJune19[[#This Row],[Primary Account]],tblSchMJune19[[#This Row],[Primary Name]],tblSchMJune19[[#This Row],[Secondary Acct]],tblSchMJune19[[#This Row],[Secondary  Name]],tblSchMJune19[[#This Row],[Alloc4FUNC]])","v":"4099300SCHMDT415416ContraRA DeerCreekAband WYSITUS"},4099300,{"$f":"IF(tblSchMJune19[[#This Row],[Primary Account]]=4098200,\"SCHMAP\",IF(tblSchMJune19[[#This Row],[Primary Account]]=4098300,\"SCHMAT\",IF(tblSchMJune19[[#This Row],[Primary Account]]=4099200,\"SCHMDP\",IF(tblSchMJune19[[#This Row],[Primary Account]]=4099300,\"SCHMDT\"))))","v":"SCHMDT"},"415416","ContraRA DeerCreekAband WY","WYU",null,{"$f":"IF(OR(tblSchMJune19[[#This Row],[Alloc]]=\"IDU\",tblSchMJune19[[#This Row],[Alloc]]=\"OR\",tblSchMJune19[[#This Row],[Alloc]]=\"UT\",tblSchMJune19[[#This Row],[Alloc]]=\"WYU\",tblSchMJune19[[#This Row],[Alloc]]=\"WYP\",tblSchMJune19[[#This Row],[Alloc]]=\"CA\",tblSchMJune19[[#This Row],[Alloc]]=\"WA\"),\"SITUS\",tblSchMJune19[[#This Row],[Alloc]])","v":"SITUS"},{"$f":"INDEX(tblSchMLookup[FUNC],MATCH(tblSchMJune19[[#This Row],[Concat]],tblSchMLookup[Concat],0))","v":"P"},{"$f":"IF(tblSchMJune19[[#This Row],[Total ($000)]]=0,\"NO\",IF(ISNA(tblSchMJune19[[#This Row],[FUNC]]),\"YES\",IF(_xlfn.ISFORMULA(tblSchMJune19[[#This Row],[FUNC]]),\"NO\",\"YES\")))","v":"NO"}]
[{"$f":"CONCATENATE(tblSchMJune19[[#This Row],[Primary Account]],tblSchMJune19[[#This Row],[Primary Name]],tblSchMJune19[[#This Row],[Secondary Acct]],tblSchMJune19[[#This Row],[Secondary  Name]],tblSchMJune19[[#This Row],[Alloc4FUNC]])","v":"4099300SCHMDT415417Contra RA UMWA Pension CAOTHER"},4099300,{"$f":"IF(tblSchMJune19[[#This Row],[Primary Account]]=4098200,\"SCHMAP\",IF(tblSchMJune19[[#This Row],[Primary Account]]=4098300,\"SCHMAT\",IF(tblSchMJune19[[#This Row],[Primary Account]]=4099200,\"SCHMDP\",IF(tblSchMJune19[[#This Row],[Primary Account]]=4099300,\"SCHMDT\"))))","v":"SCHMDT"},"415417","Contra RA UMWA Pension CA","OTHER",7.4189999999999996,{"$f":"IF(OR(tblSchMJune19[[#This Row],[Alloc]]=\"IDU\",tblSchMJune19[[#This Row],[Alloc]]=\"OR\",tblSchMJune19[[#This Row],[Alloc]]=\"UT\",tblSchMJune19[[#This Row],[Alloc]]=\"WYU\",tblSchMJune19[[#This Row],[Alloc]]=\"WYP\",tblSchMJune19[[#This Row],[Alloc]]=\"CA\",tblSchMJune19[[#This Row],[Alloc]]=\"WA\"),\"SITUS\",tblSchMJune19[[#This Row],[Alloc]])","v":"OTHER"},{"$f":"INDEX(tblSchMLookup[FUNC],MATCH(tblSchMJune19[[#This Row],[Concat]],tblSchMLookup[Concat],0))","v":"P"},{"$f":"IF(tblSchMJune19[[#This Row],[Total ($000)]]=0,\"NO\",IF(ISNA(tblSchMJune19[[#This Row],[FUNC]]),\"YES\",IF(_xlfn.ISFORMULA(tblSchMJune19[[#This Row],[FUNC]]),\"NO\",\"YES\")))","v":"NO"}]
[{"$f":"CONCATENATE(tblSchMJune19[[#This Row],[Primary Account]],tblSchMJune19[[#This Row],[Primary Name]],tblSchMJune19[[#This Row],[Secondary Acct]],tblSchMJune19[[#This Row],[Secondary  Name]],tblSchMJune19[[#This Row],[Alloc4FUNC]])","v":"4099300SCHMDT415418Contra RA UMWA Pension IDOTHER"},4099300,{"$f":"IF(tblSchMJune19[[#This Row],[Primary Account]]=4098200,\"SCHMAP\",IF(tblSchMJune19[[#This Row],[Primary Account]]=4098300,\"SCHMAT\",IF(tblSchMJune19[[#This Row],[Primary Account]]=4099200,\"SCHMDP\",IF(tblSchMJune19[[#This Row],[Primary Account]]=4099300,\"SCHMDT\"))))","v":"SCHMDT"},"415418","Contra RA UMWA Pension ID","OTHER",null,{"$f":"IF(OR(tblSchMJune19[[#This Row],[Alloc]]=\"IDU\",tblSchMJune19[[#This Row],[Alloc]]=\"OR\",tblSchMJune19[[#This Row],[Alloc]]=\"UT\",tblSchMJune19[[#This Row],[Alloc]]=\"WYU\",tblSchMJune19[[#This Row],[Alloc]]=\"WYP\",tblSchMJune19[[#This Row],[Alloc]]=\"CA\",tblSchMJune19[[#This Row],[Alloc]]=\"WA\"),\"SITUS\",tblSchMJune19[[#This Row],[Alloc]])","v":"OTHER"},{"$f":"INDEX(tblSchMLookup[FUNC],MATCH(tblSchMJune19[[#This Row],[Concat]],tblSchMLookup[Concat],0))","v":{"$error":"#N/A"}},{"$f":"IF(tblSchMJune19[[#This Row],[Total ($000)]]=0,\"NO\",IF(ISNA(tblSchMJune19[[#This Row],[FUNC]]),\"YES\",IF(_xlfn.ISFORMULA(tblSchMJune19[[#This Row],[FUNC]]),\"NO\",\"YES\")))","v":"NO"}]
[{"$f":"CONCATENATE(tblSchMJune19[[#This Row],[Primary Account]],tblSchMJune19[[#This Row],[Primary Name]],tblSchMJune19[[#This Row],[Secondary Acct]],tblSchMJune19[[#This Row],[Secondary  Name]],tblSchMJune19[[#This Row],[Alloc4FUNC]])","v":"4099300SCHMDT415419Contra RA UMWA Pension OROTHER"},4099300,{"$f":"IF(tblSchMJune19[[#This Row],[Primary Account]]=4098200,\"SCHMAP\",IF(tblSchMJune19[[#This Row],[Primary Account]]=4098300,\"SCHMAT\",IF(tblSchMJune19[[#This Row],[Primary Account]]=4099200,\"SCHMDP\",IF(tblSchMJune19[[#This Row],[Primary Account]]=4099300,\"SCHMDT\"))))","v":"SCHMDT"},"415419","Contra RA UMWA Pension OR","OTHER",null,{"$f":"IF(OR(tblSchMJune19[[#This Row],[Alloc]]=\"IDU\",tblSchMJune19[[#This Row],[Alloc]]=\"OR\",tblSchMJune19[[#This Row],[Alloc]]=\"UT\",tblSchMJune19[[#This Row],[Alloc]]=\"WYU\",tblSchMJune19[[#This Row],[Alloc]]=\"WYP\",tblSchMJune19[[#This Row],[Alloc]]=\"CA\",tblSchMJune19[[#This Row],[Alloc]]=\"WA\"),\"SITUS\",tblSchMJune19[[#This Row],[Alloc]])","v":"OTHER"},{"$f":"INDEX(tblSchMLookup[FUNC],MATCH(tblSchMJune19[[#This Row],[Concat]],tblSchMLookup[Concat],0))","v":{"$error":"#N/A"}},{"$f":"IF(tblSchMJune19[[#This Row],[Total ($000)]]=0,\"NO\",IF(ISNA(tblSchMJune19[[#This Row],[FUNC]]),\"YES\",IF(_xlfn.ISFORMULA(tblSchMJune19[[#This Row],[FUNC]]),\"NO\",\"YES\")))","v":"NO"}]
[{"$f":"CONCATENATE(tblSchMJune19[[#This Row],[Primary Account]],tblSchMJune19[[#This Row],[Primary Name]],tblSchMJune19[[#This Row],[Secondary Acct]],tblSchMJune19[[#This Row],[Secondary  Name]],tblSchMJune19[[#This Row],[Alloc4FUNC]])","v":"4099300SCHMDT415420Contra RA UMWA Pension UTOTHER"},4099300,{"$f":"IF(tblSchMJune19[[#This Row],[Primary Account]]=4098200,\"SCHMAP\",IF(tblSchMJune19[[#This Row],[Primary Account]]=4098300,\"SCHMAT\",IF(tblSchMJune19[[#This Row],[Primary Account]]=4099200,\"SCHMDP\",IF(tblSchMJune19[[#This Row],[Primary Account]]=4099300,\"SCHMDT\"))))","v":"SCHMDT"},"415420","Contra RA UMWA Pension UT","OTHER",null,{"$f":"IF(OR(tblSchMJune19[[#This Row],[Alloc]]=\"IDU\",tblSchMJune19[[#This Row],[Alloc]]=\"OR\",tblSchMJune19[[#This Row],[Alloc]]=\"UT\",tblSchMJune19[[#This Row],[Alloc]]=\"WYU\",tblSchMJune19[[#This Row],[Alloc]]=\"WYP\",tblSchMJune19[[#This Row],[Alloc]]=\"CA\",tblSchMJune19[[#This Row],[Alloc]]=\"WA\"),\"SITUS\",tblSchMJune19[[#This Row],[Alloc]])","v":"OTHER"},{"$f":"INDEX(tblSchMLookup[FUNC],MATCH(tblSchMJune19[[#This Row],[Concat]],tblSchMLookup[Concat],0))","v":{"$error":"#N/A"}},{"$f":"IF(tblSchMJune19[[#This Row],[Total ($000)]]=0,\"NO\",IF(ISNA(tblSchMJune19[[#This Row],[FUNC]]),\"YES\",IF(_xlfn.ISFORMULA(tblSchMJune19[[#This Row],[FUNC]]),\"NO\",\"YES\")))","v":"NO"}]
[{"$f":"CONCATENATE(tblSchMJune19[[#This Row],[Primary Account]],tblSchMJune19[[#This Row],[Primary Name]],tblSchMJune19[[#This Row],[Secondary Acct]],tblSchMJune19[[#This Row],[Secondary  Name]],tblSchMJune19[[#This Row],[Alloc4FUNC]])","v":"4099300SCHMDT415421Contra RA UMWA Pension WAOTHER"},4099300,{"$f":"IF(tblSchMJune19[[#This Row],[Primary Account]]=4098200,\"SCHMAP\",IF(tblSchMJune19[[#This Row],[Primary Account]]=4098300,\"SCHMAT\",IF(tblSchMJune19[[#This Row],[Primary Account]]=4099200,\"SCHMDP\",IF(tblSchMJune19[[#This Row],[Primary Account]]=4099300,\"SCHMDT\"))))","v":"SCHMDT"},"415421","Contra RA UMWA Pension WA","OTHER",33.276000000000003,{"$f":"IF(OR(tblSchMJune19[[#This Row],[Alloc]]=\"IDU\",tblSchMJune19[[#This Row],[Alloc]]=\"OR\",tblSchMJune19[[#This Row],[Alloc]]=\"UT\",tblSchMJune19[[#This Row],[Alloc]]=\"WYU\",tblSchMJune19[[#This Row],[Alloc]]=\"WYP\",tblSchMJune19[[#This Row],[Alloc]]=\"CA\",tblSchMJune19[[#This Row],[Alloc]]=\"WA\"),\"SITUS\",tblSchMJune19[[#This Row],[Alloc]])","v":"OTHER"},{"$f":"INDEX(tblSchMLookup[FUNC],MATCH(tblSchMJune19[[#This Row],[Concat]],tblSchMLookup[Concat],0))","v":"P"},{"$f":"IF(tblSchMJune19[[#This Row],[Total ($000)]]=0,\"NO\",IF(ISNA(tblSchMJune19[[#This Row],[FUNC]]),\"YES\",IF(_xlfn.ISFORMULA(tblSchMJune19[[#This Row],[FUNC]]),\"NO\",\"YES\")))","v":"NO"}]
[{"$f":"CONCATENATE(tblSchMJune19[[#This Row],[Primary Account]],tblSchMJune19[[#This Row],[Primary Name]],tblSchMJune19[[#This Row],[Secondary Acct]],tblSchMJune19[[#This Row],[Secondary  Name]],tblSchMJune19[[#This Row],[Alloc4FUNC]])","v":"4099300SCHMDT415422Contra RA UMWA Pension WYOTHER"},4099300,{"$f":"IF(tblSchMJune19[[#This Row],[Primary Account]]=4098200,\"SCHMAP\",IF(tblSchMJune19[[#This Row],[Primary Account]]=4098300,\"SCHMAT\",IF(tblSchMJune19[[#This Row],[Primary Account]]=4099200,\"SCHMDP\",IF(tblSchMJune19[[#This Row],[Primary Account]]=4099300,\"SCHMDT\"))))","v":"SCHMDT"},"415422","Contra RA UMWA Pension WY","OTHER",null,{"$f":"IF(OR(tblSchMJune19[[#This Row],[Alloc]]=\"IDU\",tblSchMJune19[[#This Row],[Alloc]]=\"OR\",tblSchMJune19[[#This Row],[Alloc]]=\"UT\",tblSchMJune19[[#This Row],[Alloc]]=\"WYU\",tblSchMJune19[[#This Row],[Alloc]]=\"WYP\",tblSchMJune19[[#This Row],[Alloc]]=\"CA\",tblSchMJune19[[#This Row],[Alloc]]=\"WA\"),\"SITUS\",tblSchMJune19[[#This Row],[Alloc]])","v":"OTHER"},{"$f":"INDEX(tblSchMLookup[FUNC],MATCH(tblSchMJune19[[#This Row],[Concat]],tblSchMLookup[Concat],0))","v":{"$error":"#N/A"}},{"$f":"IF(tblSchMJune19[[#This Row],[Total ($000)]]=0,\"NO\",IF(ISNA(tblSchMJune19[[#This Row],[FUNC]]),\"YES\",IF(_xlfn.ISFORMULA(tblSchMJune19[[#This Row],[FUNC]]),\"NO\",\"YES\")))","v":"NO"}]
[{"$f":"CONCATENATE(tblSchMJune19[[#This Row],[Primary Account]],tblSchMJune19[[#This Row],[Primary Name]],tblSchMJune19[[#This Row],[Secondary Acct]],tblSchMJune19[[#This Row],[Secondary  Name]],tblSchMJune19[[#This Row],[Alloc4FUNC]])","v":"4099300SCHMDT415431Reg Asset - WA Transportation ElectrificOTHER"},4099300,{"$f":"IF(tblSchMJune19[[#This Row],[Primary Account]]=4098200,\"SCHMAP\",IF(tblSchMJune19[[#This Row],[Primary Account]]=4098300,\"SCHMAT\",IF(tblSchMJune19[[#This Row],[Primary Account]]=4099200,\"SCHMDP\",IF(tblSchMJune19[[#This Row],[Primary Account]]=4099300,\"SCHMDT\"))))","v":"SCHMDT"},"415431","Reg Asset - WA Transportation Electrific","OTHER",39.46434,{"$f":"IF(OR(tblSchMJune19[[#This Row],[Alloc]]=\"IDU\",tblSchMJune19[[#This Row],[Alloc]]=\"OR\",tblSchMJune19[[#This Row],[Alloc]]=\"UT\",tblSchMJune19[[#This Row],[Alloc]]=\"WYU\",tblSchMJune19[[#This Row],[Alloc]]=\"WYP\",tblSchMJune19[[#This Row],[Alloc]]=\"CA\",tblSchMJune19[[#This Row],[Alloc]]=\"WA\"),\"SITUS\",tblSchMJune19[[#This Row],[Alloc]])","v":"OTHER"},{"$f":"INDEX(tblSchMLookup[FUNC],MATCH(tblSchMJune19[[#This Row],[Concat]],tblSchMLookup[Concat],0))","v":"PTD"},{"$f":"IF(tblSchMJune19[[#This Row],[Total ($000)]]=0,\"NO\",IF(ISNA(tblSchMJune19[[#This Row],[FUNC]]),\"YES\",IF(_xlfn.ISFORMULA(tblSchMJune19[[#This Row],[FUNC]]),\"NO\",\"YES\")))","v":"NO"}]
[{"$f":"CONCATENATE(tblSchMJune19[[#This Row],[Primary Account]],tblSchMJune19[[#This Row],[Primary Name]],tblSchMJune19[[#This Row],[Secondary Acct]],tblSchMJune19[[#This Row],[Secondary  Name]],tblSchMJune19[[#This Row],[Alloc4FUNC]])","v":"4099300SCHMDT415501Cholla Plt Transact Costs- APS Amort - ISITUS"},4099300,{"$f":"IF(tblSchMJune19[[#This Row],[Primary Account]]=4098200,\"SCHMAP\",IF(tblSchMJune19[[#This Row],[Primary Account]]=4098300,\"SCHMAT\",IF(tblSchMJune19[[#This Row],[Primary Account]]=4099200,\"SCHMDP\",IF(tblSchMJune19[[#This Row],[Primary Account]]=4099300,\"SCHMDT\"))))","v":"SCHMDT"},"415501","Cholla Plt Transact Costs- APS Amort - I","IDU",null,{"$f":"IF(OR(tblSchMJune19[[#This Row],[Alloc]]=\"IDU\",tblSchMJune19[[#This Row],[Alloc]]=\"OR\",tblSchMJune19[[#This Row],[Alloc]]=\"UT\",tblSchMJune19[[#This Row],[Alloc]]=\"WYU\",tblSchMJune19[[#This Row],[Alloc]]=\"WYP\",tblSchMJune19[[#This Row],[Alloc]]=\"CA\",tblSchMJune19[[#This Row],[Alloc]]=\"WA\"),\"SITUS\",tblSchMJune19[[#This Row],[Alloc]])","v":"SITUS"},{"$f":"INDEX(tblSchMLookup[FUNC],MATCH(tblSchMJune19[[#This Row],[Concat]],tblSchMLookup[Concat],0))","v":"P"},{"$f":"IF(tblSchMJune19[[#This Row],[Total ($000)]]=0,\"NO\",IF(ISNA(tblSchMJune19[[#This Row],[FUNC]]),\"YES\",IF(_xlfn.ISFORMULA(tblSchMJune19[[#This Row],[FUNC]]),\"NO\",\"YES\")))","v":"NO"}]
[{"$f":"CONCATENATE(tblSchMJune19[[#This Row],[Primary Account]],tblSchMJune19[[#This Row],[Primary Name]],tblSchMJune19[[#This Row],[Secondary Acct]],tblSchMJune19[[#This Row],[Secondary  Name]],tblSchMJune19[[#This Row],[Alloc4FUNC]])","v":"4099300SCHMDT415502Cholla Plt Transact Costs- APS Amort - OSITUS"},4099300,{"$f":"IF(tblSchMJune19[[#This Row],[Primary Account]]=4098200,\"SCHMAP\",IF(tblSchMJune19[[#This Row],[Primary Account]]=4098300,\"SCHMAT\",IF(tblSchMJune19[[#This Row],[Primary Account]]=4099200,\"SCHMDP\",IF(tblSchMJune19[[#This Row],[Primary Account]]=4099300,\"SCHMDT\"))))","v":"SCHMDT"},"415502","Cholla Plt Transact Costs- APS Amort - O","OR",null,{"$f":"IF(OR(tblSchMJune19[[#This Row],[Alloc]]=\"IDU\",tblSchMJune19[[#This Row],[Alloc]]=\"OR\",tblSchMJune19[[#This Row],[Alloc]]=\"UT\",tblSchMJune19[[#This Row],[Alloc]]=\"WYU\",tblSchMJune19[[#This Row],[Alloc]]=\"WYP\",tblSchMJune19[[#This Row],[Alloc]]=\"CA\",tblSchMJune19[[#This Row],[Alloc]]=\"WA\"),\"SITUS\",tblSchMJune19[[#This Row],[Alloc]])","v":"SITUS"},{"$f":"INDEX(tblSchMLookup[FUNC],MATCH(tblSchMJune19[[#This Row],[Concat]],tblSchMLookup[Concat],0))","v":"P"},{"$f":"IF(tblSchMJune19[[#This Row],[Total ($000)]]=0,\"NO\",IF(ISNA(tblSchMJune19[[#This Row],[FUNC]]),\"YES\",IF(_xlfn.ISFORMULA(tblSchMJune19[[#This Row],[FUNC]]),\"NO\",\"YES\")))","v":"NO"}]
[{"$f":"CONCATENATE(tblSchMJune19[[#This Row],[Primary Account]],tblSchMJune19[[#This Row],[Primary Name]],tblSchMJune19[[#This Row],[Secondary Acct]],tblSchMJune19[[#This Row],[Secondary  Name]],tblSchMJune19[[#This Row],[Alloc4FUNC]])","v":"4099300SCHMDT415530Reg Asset - ID 2017 Protocol - MSP DeferSITUS"},4099300,{"$f":"IF(tblSchMJune19[[#This Row],[Primary Account]]=4098200,\"SCHMAP\",IF(tblSchMJune19[[#This Row],[Primary Account]]=4098300,\"SCHMAT\",IF(tblSchMJune19[[#This Row],[Primary Account]]=4099200,\"SCHMDP\",IF(tblSchMJune19[[#This Row],[Primary Account]]=4099300,\"SCHMDT\"))))","v":"SCHMDT"},"415530","Reg Asset - ID 2017 Protocol - MSP Defer","IDU",150,{"$f":"IF(OR(tblSchMJune19[[#This Row],[Alloc]]=\"IDU\",tblSchMJune19[[#This Row],[Alloc]]=\"OR\",tblSchMJune19[[#This Row],[Alloc]]=\"UT\",tblSchMJune19[[#This Row],[Alloc]]=\"WYU\",tblSchMJune19[[#This Row],[Alloc]]=\"WYP\",tblSchMJune19[[#This Row],[Alloc]]=\"CA\",tblSchMJune19[[#This Row],[Alloc]]=\"WA\"),\"SITUS\",tblSchMJune19[[#This Row],[Alloc]])","v":"SITUS"},{"$f":"INDEX(tblSchMLookup[FUNC],MATCH(tblSchMJune19[[#This Row],[Concat]],tblSchMLookup[Concat],0))","v":"P"},{"$f":"IF(tblSchMJune19[[#This Row],[Total ($000)]]=0,\"NO\",IF(ISNA(tblSchMJune19[[#This Row],[FUNC]]),\"YES\",IF(_xlfn.ISFORMULA(tblSchMJune19[[#This Row],[FUNC]]),\"NO\",\"YES\")))","v":"NO"}]
[{"$f":"CONCATENATE(tblSchMJune19[[#This Row],[Primary Account]],tblSchMJune19[[#This Row],[Primary Name]],tblSchMJune19[[#This Row],[Secondary Acct]],tblSchMJune19[[#This Row],[Secondary  Name]],tblSchMJune19[[#This Row],[Alloc4FUNC]])","v":"4099300SCHMDT415531Reg Asset - UT 2017 Protocol - MSP DeferSITUS"},4099300,{"$f":"IF(tblSchMJune19[[#This Row],[Primary Account]]=4098200,\"SCHMAP\",IF(tblSchMJune19[[#This Row],[Primary Account]]=4098300,\"SCHMAT\",IF(tblSchMJune19[[#This Row],[Primary Account]]=4099200,\"SCHMDP\",IF(tblSchMJune19[[#This Row],[Primary Account]]=4099300,\"SCHMDT\"))))","v":"SCHMDT"},"415531","Reg Asset - UT 2017 Protocol - MSP Defer","UT",4400,{"$f":"IF(OR(tblSchMJune19[[#This Row],[Alloc]]=\"IDU\",tblSchMJune19[[#This Row],[Alloc]]=\"OR\",tblSchMJune19[[#This Row],[Alloc]]=\"UT\",tblSchMJune19[[#This Row],[Alloc]]=\"WYU\",tblSchMJune19[[#This Row],[Alloc]]=\"WYP\",tblSchMJune19[[#This Row],[Alloc]]=\"CA\",tblSchMJune19[[#This Row],[Alloc]]=\"WA\"),\"SITUS\",tblSchMJune19[[#This Row],[Alloc]])","v":"SITUS"},{"$f":"INDEX(tblSchMLookup[FUNC],MATCH(tblSchMJune19[[#This Row],[Concat]],tblSchMLookup[Concat],0))","v":"P"},{"$f":"IF(tblSchMJune19[[#This Row],[Total ($000)]]=0,\"NO\",IF(ISNA(tblSchMJune19[[#This Row],[FUNC]]),\"YES\",IF(_xlfn.ISFORMULA(tblSchMJune19[[#This Row],[FUNC]]),\"NO\",\"YES\")))","v":"NO"}]
[{"$f":"CONCATENATE(tblSchMJune19[[#This Row],[Primary Account]],tblSchMJune19[[#This Row],[Primary Name]],tblSchMJune19[[#This Row],[Secondary Acct]],tblSchMJune19[[#This Row],[Secondary  Name]],tblSchMJune19[[#This Row],[Alloc4FUNC]])","v":"4099300SCHMDT415532Reg Asset - WY 2017 Protocol - MSP DeferSITUS"},4099300,{"$f":"IF(tblSchMJune19[[#This Row],[Primary Account]]=4098200,\"SCHMAP\",IF(tblSchMJune19[[#This Row],[Primary Account]]=4098300,\"SCHMAT\",IF(tblSchMJune19[[#This Row],[Primary Account]]=4099200,\"SCHMDP\",IF(tblSchMJune19[[#This Row],[Primary Account]]=4099300,\"SCHMDT\"))))","v":"SCHMDT"},"415532","Reg Asset - WY 2017 Protocol - MSP Defer","WYP",1599.9960000000001,{"$f":"IF(OR(tblSchMJune19[[#This Row],[Alloc]]=\"IDU\",tblSchMJune19[[#This Row],[Alloc]]=\"OR\",tblSchMJune19[[#This Row],[Alloc]]=\"UT\",tblSchMJune19[[#This Row],[Alloc]]=\"WYU\",tblSchMJune19[[#This Row],[Alloc]]=\"WYP\",tblSchMJune19[[#This Row],[Alloc]]=\"CA\",tblSchMJune19[[#This Row],[Alloc]]=\"WA\"),\"SITUS\",tblSchMJune19[[#This Row],[Alloc]])","v":"SITUS"},{"$f":"INDEX(tblSchMLookup[FUNC],MATCH(tblSchMJune19[[#This Row],[Concat]],tblSchMLookup[Concat],0))","v":"P"},{"$f":"IF(tblSchMJune19[[#This Row],[Total ($000)]]=0,\"NO\",IF(ISNA(tblSchMJune19[[#This Row],[FUNC]]),\"YES\",IF(_xlfn.ISFORMULA(tblSchMJune19[[#This Row],[FUNC]]),\"NO\",\"YES\")))","v":"NO"}]
[{"$f":"CONCATENATE(tblSchMJune19[[#This Row],[Primary Account]],tblSchMJune19[[#This Row],[Primary Name]],tblSchMJune19[[#This Row],[Secondary Acct]],tblSchMJune19[[#This Row],[Secondary  Name]],tblSchMJune19[[#This Row],[Alloc4FUNC]])","v":"4099300SCHMDT415545Reg Asset - WA Merwin ProjectOTHER"},4099300,{"$f":"IF(tblSchMJune19[[#This Row],[Primary Account]]=4098200,\"SCHMAP\",IF(tblSchMJune19[[#This Row],[Primary Account]]=4098300,\"SCHMAT\",IF(tblSchMJune19[[#This Row],[Primary Account]]=4099200,\"SCHMDP\",IF(tblSchMJune19[[#This Row],[Primary Account]]=4099300,\"SCHMDT\"))))","v":"SCHMDT"},"415545","Reg Asset - WA Merwin Project","OTHER",null,{"$f":"IF(OR(tblSchMJune19[[#This Row],[Alloc]]=\"IDU\",tblSchMJune19[[#This Row],[Alloc]]=\"OR\",tblSchMJune19[[#This Row],[Alloc]]=\"UT\",tblSchMJune19[[#This Row],[Alloc]]=\"WYU\",tblSchMJune19[[#This Row],[Alloc]]=\"WYP\",tblSchMJune19[[#This Row],[Alloc]]=\"CA\",tblSchMJune19[[#This Row],[Alloc]]=\"WA\"),\"SITUS\",tblSchMJune19[[#This Row],[Alloc]])","v":"OTHER"},{"$f":"INDEX(tblSchMLookup[FUNC],MATCH(tblSchMJune19[[#This Row],[Concat]],tblSchMLookup[Concat],0))","v":"P"},{"$f":"IF(tblSchMJune19[[#This Row],[Total ($000)]]=0,\"NO\",IF(ISNA(tblSchMJune19[[#This Row],[FUNC]]),\"YES\",IF(_xlfn.ISFORMULA(tblSchMJune19[[#This Row],[FUNC]]),\"NO\",\"YES\")))","v":"NO"}]
[{"$f":"CONCATENATE(tblSchMJune19[[#This Row],[Primary Account]],tblSchMJune19[[#This Row],[Primary Name]],tblSchMJune19[[#This Row],[Secondary Acct]],tblSchMJune19[[#This Row],[Secondary  Name]],tblSchMJune19[[#This Row],[Alloc4FUNC]])","v":"4099300SCHMDT415585Reg Asset - OR Sch 203 - Black CapOTHER"},4099300,{"$f":"IF(tblSchMJune19[[#This Row],[Primary Account]]=4098200,\"SCHMAP\",IF(tblSchMJune19[[#This Row],[Primary Account]]=4098300,\"SCHMAT\",IF(tblSchMJune19[[#This Row],[Primary Account]]=4099200,\"SCHMDP\",IF(tblSchMJune19[[#This Row],[Primary Account]]=4099300,\"SCHMDT\"))))","v":"SCHMDT"},"415585","Reg Asset - OR Sch 203 - Black Cap","OTHER",null,{"$f":"IF(OR(tblSchMJune19[[#This Row],[Alloc]]=\"IDU\",tblSchMJune19[[#This Row],[Alloc]]=\"OR\",tblSchMJune19[[#This Row],[Alloc]]=\"UT\",tblSchMJune19[[#This Row],[Alloc]]=\"WYU\",tblSchMJune19[[#This Row],[Alloc]]=\"WYP\",tblSchMJune19[[#This Row],[Alloc]]=\"CA\",tblSchMJune19[[#This Row],[Alloc]]=\"WA\"),\"SITUS\",tblSchMJune19[[#This Row],[Alloc]])","v":"OTHER"},{"$f":"INDEX(tblSchMLookup[FUNC],MATCH(tblSchMJune19[[#This Row],[Concat]],tblSchMLookup[Concat],0))","v":{"$error":"#N/A"}},{"$f":"IF(tblSchMJune19[[#This Row],[Total ($000)]]=0,\"NO\",IF(ISNA(tblSchMJune19[[#This Row],[FUNC]]),\"YES\",IF(_xlfn.ISFORMULA(tblSchMJune19[[#This Row],[FUNC]]),\"NO\",\"YES\")))","v":"NO"}]
[{"$f":"CONCATENATE(tblSchMJune19[[#This Row],[Primary Account]],tblSchMJune19[[#This Row],[Primary Name]],tblSchMJune19[[#This Row],[Secondary Acct]],tblSchMJune19[[#This Row],[Secondary  Name]],tblSchMJune19[[#This Row],[Alloc4FUNC]])","v":"4099300SCHMDT415655CA GHG AllowanceOTHER"},4099300,{"$f":"IF(tblSchMJune19[[#This Row],[Primary Account]]=4098200,\"SCHMAP\",IF(tblSchMJune19[[#This Row],[Primary Account]]=4098300,\"SCHMAT\",IF(tblSchMJune19[[#This Row],[Primary Account]]=4099200,\"SCHMDP\",IF(tblSchMJune19[[#This Row],[Primary Account]]=4099300,\"SCHMDT\"))))","v":"SCHMDT"},"415655","CA GHG Allowance","OTHER",null,{"$f":"IF(OR(tblSchMJune19[[#This Row],[Alloc]]=\"IDU\",tblSchMJune19[[#This Row],[Alloc]]=\"OR\",tblSchMJune19[[#This Row],[Alloc]]=\"UT\",tblSchMJune19[[#This Row],[Alloc]]=\"WYU\",tblSchMJune19[[#This Row],[Alloc]]=\"WYP\",tblSchMJune19[[#This Row],[Alloc]]=\"CA\",tblSchMJune19[[#This Row],[Alloc]]=\"WA\"),\"SITUS\",tblSchMJune19[[#This Row],[Alloc]])","v":"OTHER"},{"$f":"INDEX(tblSchMLookup[FUNC],MATCH(tblSchMJune19[[#This Row],[Concat]],tblSchMLookup[Concat],0))","v":"P"},{"$f":"IF(tblSchMJune19[[#This Row],[Total ($000)]]=0,\"NO\",IF(ISNA(tblSchMJune19[[#This Row],[FUNC]]),\"YES\",IF(_xlfn.ISFORMULA(tblSchMJune19[[#This Row],[FUNC]]),\"NO\",\"YES\")))","v":"NO"}]
[{"$f":"CONCATENATE(tblSchMJune19[[#This Row],[Primary Account]],tblSchMJune19[[#This Row],[Primary Name]],tblSchMJune19[[#This Row],[Secondary Acct]],tblSchMJune19[[#This Row],[Secondary  Name]],tblSchMJune19[[#This Row],[Alloc4FUNC]])","v":"4099300SCHMDT415675Reg Asset - UT - Deferred Stock RedemptiOTHER"},4099300,{"$f":"IF(tblSchMJune19[[#This Row],[Primary Account]]=4098200,\"SCHMAP\",IF(tblSchMJune19[[#This Row],[Primary Account]]=4098300,\"SCHMAT\",IF(tblSchMJune19[[#This Row],[Primary Account]]=4099200,\"SCHMDP\",IF(tblSchMJune19[[#This Row],[Primary Account]]=4099300,\"SCHMDT\"))))","v":"SCHMDT"},"415675","Reg Asset - UT - Deferred Stock Redempti","OTHER",-82.531000000000006,{"$f":"IF(OR(tblSchMJune19[[#This Row],[Alloc]]=\"IDU\",tblSchMJune19[[#This Row],[Alloc]]=\"OR\",tblSchMJune19[[#This Row],[Alloc]]=\"UT\",tblSchMJune19[[#This Row],[Alloc]]=\"WYU\",tblSchMJune19[[#This Row],[Alloc]]=\"WYP\",tblSchMJune19[[#This Row],[Alloc]]=\"CA\",tblSchMJune19[[#This Row],[Alloc]]=\"WA\"),\"SITUS\",tblSchMJune19[[#This Row],[Alloc]])","v":"OTHER"},{"$f":"INDEX(tblSchMLookup[FUNC],MATCH(tblSchMJune19[[#This Row],[Concat]],tblSchMLookup[Concat],0))","v":"DDS2"},{"$f":"IF(tblSchMJune19[[#This Row],[Total ($000)]]=0,\"NO\",IF(ISNA(tblSchMJune19[[#This Row],[FUNC]]),\"YES\",IF(_xlfn.ISFORMULA(tblSchMJune19[[#This Row],[FUNC]]),\"NO\",\"YES\")))","v":"NO"}]
[{"$f":"CONCATENATE(tblSchMJune19[[#This Row],[Primary Account]],tblSchMJune19[[#This Row],[Primary Name]],tblSchMJune19[[#This Row],[Secondary Acct]],tblSchMJune19[[#This Row],[Secondary  Name]],tblSchMJune19[[#This Row],[Alloc4FUNC]])","v":"4099300SCHMDT415676Reg Asset - WY - Deferred Stock RedemptiOTHER"},4099300,{"$f":"IF(tblSchMJune19[[#This Row],[Primary Account]]=4098200,\"SCHMAP\",IF(tblSchMJune19[[#This Row],[Primary Account]]=4098300,\"SCHMAT\",IF(tblSchMJune19[[#This Row],[Primary Account]]=4099200,\"SCHMDP\",IF(tblSchMJune19[[#This Row],[Primary Account]]=4099300,\"SCHMDT\"))))","v":"SCHMDT"},"415676","Reg Asset - WY - Deferred Stock Redempti","OTHER",-28.442,{"$f":"IF(OR(tblSchMJune19[[#This Row],[Alloc]]=\"IDU\",tblSchMJune19[[#This Row],[Alloc]]=\"OR\",tblSchMJune19[[#This Row],[Alloc]]=\"UT\",tblSchMJune19[[#This Row],[Alloc]]=\"WYU\",tblSchMJune19[[#This Row],[Alloc]]=\"WYP\",tblSchMJune19[[#This Row],[Alloc]]=\"CA\",tblSchMJune19[[#This Row],[Alloc]]=\"WA\"),\"SITUS\",tblSchMJune19[[#This Row],[Alloc]])","v":"OTHER"},{"$f":"INDEX(tblSchMLookup[FUNC],MATCH(tblSchMJune19[[#This Row],[Concat]],tblSchMLookup[Concat],0))","v":"DDS2"},{"$f":"IF(tblSchMJune19[[#This Row],[Total ($000)]]=0,\"NO\",IF(ISNA(tblSchMJune19[[#This Row],[FUNC]]),\"YES\",IF(_xlfn.ISFORMULA(tblSchMJune19[[#This Row],[FUNC]]),\"NO\",\"YES\")))","v":"NO"}]
[{"$f":"CONCATENATE(tblSchMJune19[[#This Row],[Primary Account]],tblSchMJune19[[#This Row],[Primary Name]],tblSchMJune19[[#This Row],[Secondary Acct]],tblSchMJune19[[#This Row],[Secondary  Name]],tblSchMJune19[[#This Row],[Alloc4FUNC]])","v":"4099300SCHMDT415677Reg Asset - Pref Stock Redemp Loss WAOTHER"},4099300,{"$f":"IF(tblSchMJune19[[#This Row],[Primary Account]]=4098200,\"SCHMAP\",IF(tblSchMJune19[[#This Row],[Primary Account]]=4098300,\"SCHMAT\",IF(tblSchMJune19[[#This Row],[Primary Account]]=4099200,\"SCHMDP\",IF(tblSchMJune19[[#This Row],[Primary Account]]=4099300,\"SCHMDT\"))))","v":"SCHMDT"},"415677","Reg Asset - Pref Stock Redemp Loss WA","OTHER",-13.318,{"$f":"IF(OR(tblSchMJune19[[#This Row],[Alloc]]=\"IDU\",tblSchMJune19[[#This Row],[Alloc]]=\"OR\",tblSchMJune19[[#This Row],[Alloc]]=\"UT\",tblSchMJune19[[#This Row],[Alloc]]=\"WYU\",tblSchMJune19[[#This Row],[Alloc]]=\"WYP\",tblSchMJune19[[#This Row],[Alloc]]=\"CA\",tblSchMJune19[[#This Row],[Alloc]]=\"WA\"),\"SITUS\",tblSchMJune19[[#This Row],[Alloc]])","v":"OTHER"},{"$f":"INDEX(tblSchMLookup[FUNC],MATCH(tblSchMJune19[[#This Row],[Concat]],tblSchMLookup[Concat],0))","v":"DDS2"},{"$f":"IF(tblSchMJune19[[#This Row],[Total ($000)]]=0,\"NO\",IF(ISNA(tblSchMJune19[[#This Row],[FUNC]]),\"YES\",IF(_xlfn.ISFORMULA(tblSchMJune19[[#This Row],[FUNC]]),\"NO\",\"YES\")))","v":"NO"}]
[{"$f":"CONCATENATE(tblSchMJune19[[#This Row],[Primary Account]],tblSchMJune19[[#This Row],[Primary Name]],tblSchMJune19[[#This Row],[Secondary Acct]],tblSchMJune19[[#This Row],[Secondary  Name]],tblSchMJune19[[#This Row],[Alloc4FUNC]])","v":"4099300SCHMDT415680Deferred Intervenor Funding Grants-OROTHER"},4099300,{"$f":"IF(tblSchMJune19[[#This Row],[Primary Account]]=4098200,\"SCHMAP\",IF(tblSchMJune19[[#This Row],[Primary Account]]=4098300,\"SCHMAT\",IF(tblSchMJune19[[#This Row],[Primary Account]]=4099200,\"SCHMDP\",IF(tblSchMJune19[[#This Row],[Primary Account]]=4099300,\"SCHMDT\"))))","v":"SCHMDT"},"415680","Deferred Intervenor Funding Grants-OR","OTHER",442.89287000000002,{"$f":"IF(OR(tblSchMJune19[[#This Row],[Alloc]]=\"IDU\",tblSchMJune19[[#This Row],[Alloc]]=\"OR\",tblSchMJune19[[#This Row],[Alloc]]=\"UT\",tblSchMJune19[[#This Row],[Alloc]]=\"WYU\",tblSchMJune19[[#This Row],[Alloc]]=\"WYP\",tblSchMJune19[[#This Row],[Alloc]]=\"CA\",tblSchMJune19[[#This Row],[Alloc]]=\"WA\"),\"SITUS\",tblSchMJune19[[#This Row],[Alloc]])","v":"OTHER"},{"$f":"INDEX(tblSchMLookup[FUNC],MATCH(tblSchMJune19[[#This Row],[Concat]],tblSchMLookup[Concat],0))","v":"COMMON"},{"$f":"IF(tblSchMJune19[[#This Row],[Total ($000)]]=0,\"NO\",IF(ISNA(tblSchMJune19[[#This Row],[FUNC]]),\"YES\",IF(_xlfn.ISFORMULA(tblSchMJune19[[#This Row],[FUNC]]),\"NO\",\"YES\")))","v":"NO"}]
[{"$f":"CONCATENATE(tblSchMJune19[[#This Row],[Primary Account]],tblSchMJune19[[#This Row],[Primary Name]],tblSchMJune19[[#This Row],[Secondary Acct]],tblSchMJune19[[#This Row],[Secondary  Name]],tblSchMJune19[[#This Row],[Alloc4FUNC]])","v":"4099300SCHMDT415700Reg Liability BPA balancing accounts-OROTHER"},4099300,{"$f":"IF(tblSchMJune19[[#This Row],[Primary Account]]=4098200,\"SCHMAP\",IF(tblSchMJune19[[#This Row],[Primary Account]]=4098300,\"SCHMAT\",IF(tblSchMJune19[[#This Row],[Primary Account]]=4099200,\"SCHMDP\",IF(tblSchMJune19[[#This Row],[Primary Account]]=4099300,\"SCHMDT\"))))","v":"SCHMDT"},"415700","Reg Liability BPA balancing accounts-OR","OTHER",null,{"$f":"IF(OR(tblSchMJune19[[#This Row],[Alloc]]=\"IDU\",tblSchMJune19[[#This Row],[Alloc]]=\"OR\",tblSchMJune19[[#This Row],[Alloc]]=\"UT\",tblSchMJune19[[#This Row],[Alloc]]=\"WYU\",tblSchMJune19[[#This Row],[Alloc]]=\"WYP\",tblSchMJune19[[#This Row],[Alloc]]=\"CA\",tblSchMJune19[[#This Row],[Alloc]]=\"WA\"),\"SITUS\",tblSchMJune19[[#This Row],[Alloc]])","v":"OTHER"},{"$f":"INDEX(tblSchMLookup[FUNC],MATCH(tblSchMJune19[[#This Row],[Concat]],tblSchMLookup[Concat],0))","v":{"$error":"#N/A"}},{"$f":"IF(tblSchMJune19[[#This Row],[Total ($000)]]=0,\"NO\",IF(ISNA(tblSchMJune19[[#This Row],[FUNC]]),\"YES\",IF(_xlfn.ISFORMULA(tblSchMJune19[[#This Row],[FUNC]]),\"NO\",\"YES\")))","v":"NO"}]
[{"$f":"CONCATENATE(tblSchMJune19[[#This Row],[Primary Account]],tblSchMJune19[[#This Row],[Primary Name]],tblSchMJune19[[#This Row],[Secondary Acct]],tblSchMJune19[[#This Row],[Secondary  Name]],tblSchMJune19[[#This Row],[Alloc4FUNC]])","v":"4099300SCHMDT415701CA Deferred Intervenor FundingOTHER"},4099300,{"$f":"IF(tblSchMJune19[[#This Row],[Primary Account]]=4098200,\"SCHMAP\",IF(tblSchMJune19[[#This Row],[Primary Account]]=4098300,\"SCHMAT\",IF(tblSchMJune19[[#This Row],[Primary Account]]=4099200,\"SCHMDP\",IF(tblSchMJune19[[#This Row],[Primary Account]]=4099300,\"SCHMDT\"))))","v":"SCHMDT"},"415701","CA Deferred Intervenor Funding","OTHER",1.55511,{"$f":"IF(OR(tblSchMJune19[[#This Row],[Alloc]]=\"IDU\",tblSchMJune19[[#This Row],[Alloc]]=\"OR\",tblSchMJune19[[#This Row],[Alloc]]=\"UT\",tblSchMJune19[[#This Row],[Alloc]]=\"WYU\",tblSchMJune19[[#This Row],[Alloc]]=\"WYP\",tblSchMJune19[[#This Row],[Alloc]]=\"CA\",tblSchMJune19[[#This Row],[Alloc]]=\"WA\"),\"SITUS\",tblSchMJune19[[#This Row],[Alloc]])","v":"OTHER"},{"$f":"INDEX(tblSchMLookup[FUNC],MATCH(tblSchMJune19[[#This Row],[Concat]],tblSchMLookup[Concat],0))","v":"COMMON"},{"$f":"IF(tblSchMJune19[[#This Row],[Total ($000)]]=0,\"NO\",IF(ISNA(tblSchMJune19[[#This Row],[FUNC]]),\"YES\",IF(_xlfn.ISFORMULA(tblSchMJune19[[#This Row],[FUNC]]),\"NO\",\"YES\")))","v":"NO"}]
[{"$f":"CONCATENATE(tblSchMJune19[[#This Row],[Primary Account]],tblSchMJune19[[#This Row],[Primary Name]],tblSchMJune19[[#This Row],[Secondary Acct]],tblSchMJune19[[#This Row],[Secondary  Name]],tblSchMJune19[[#This Row],[Alloc4FUNC]])","v":"4099300SCHMDT415703Goodnoe Hills Liquidation Damages - WYSITUS"},4099300,{"$f":"IF(tblSchMJune19[[#This Row],[Primary Account]]=4098200,\"SCHMAP\",IF(tblSchMJune19[[#This Row],[Primary Account]]=4098300,\"SCHMAT\",IF(tblSchMJune19[[#This Row],[Primary Account]]=4099200,\"SCHMDP\",IF(tblSchMJune19[[#This Row],[Primary Account]]=4099300,\"SCHMDT\"))))","v":"SCHMDT"},"415703","Goodnoe Hills Liquidation Damages - WY","WYP",null,{"$f":"IF(OR(tblSchMJune19[[#This Row],[Alloc]]=\"IDU\",tblSchMJune19[[#This Row],[Alloc]]=\"OR\",tblSchMJune19[[#This Row],[Alloc]]=\"UT\",tblSchMJune19[[#This Row],[Alloc]]=\"WYU\",tblSchMJune19[[#This Row],[Alloc]]=\"WYP\",tblSchMJune19[[#This Row],[Alloc]]=\"CA\",tblSchMJune19[[#This Row],[Alloc]]=\"WA\"),\"SITUS\",tblSchMJune19[[#This Row],[Alloc]])","v":"SITUS"},{"$f":"INDEX(tblSchMLookup[FUNC],MATCH(tblSchMJune19[[#This Row],[Concat]],tblSchMLookup[Concat],0))","v":{"$error":"#N/A"}},{"$f":"IF(tblSchMJune19[[#This Row],[Total ($000)]]=0,\"NO\",IF(ISNA(tblSchMJune19[[#This Row],[FUNC]]),\"YES\",IF(_xlfn.ISFORMULA(tblSchMJune19[[#This Row],[FUNC]]),\"NO\",\"YES\")))","v":"NO"}]
[{"$f":"CONCATENATE(tblSchMJune19[[#This Row],[Primary Account]],tblSchMJune19[[#This Row],[Primary Name]],tblSchMJune19[[#This Row],[Secondary Acct]],tblSchMJune19[[#This Row],[Secondary  Name]],tblSchMJune19[[#This Row],[Alloc4FUNC]])","v":"4099300SCHMDT415705Reg Liability - Tax Revenue Adjustment -SITUS"},4099300,{"$f":"IF(tblSchMJune19[[#This Row],[Primary Account]]=4098200,\"SCHMAP\",IF(tblSchMJune19[[#This Row],[Primary Account]]=4098300,\"SCHMAT\",IF(tblSchMJune19[[#This Row],[Primary Account]]=4099200,\"SCHMDP\",IF(tblSchMJune19[[#This Row],[Primary Account]]=4099300,\"SCHMDT\"))))","v":"SCHMDT"},"415705","Reg Liability - Tax Revenue Adjustment -","WYP",null,{"$f":"IF(OR(tblSchMJune19[[#This Row],[Alloc]]=\"IDU\",tblSchMJune19[[#This Row],[Alloc]]=\"OR\",tblSchMJune19[[#This Row],[Alloc]]=\"UT\",tblSchMJune19[[#This Row],[Alloc]]=\"WYU\",tblSchMJune19[[#This Row],[Alloc]]=\"WYP\",tblSchMJune19[[#This Row],[Alloc]]=\"CA\",tblSchMJune19[[#This Row],[Alloc]]=\"WA\"),\"SITUS\",tblSchMJune19[[#This Row],[Alloc]])","v":"SITUS"},{"$f":"INDEX(tblSchMLookup[FUNC],MATCH(tblSchMJune19[[#This Row],[Concat]],tblSchMLookup[Concat],0))","v":{"$error":"#N/A"}},{"$f":"IF(tblSchMJune19[[#This Row],[Total ($000)]]=0,\"NO\",IF(ISNA(tblSchMJune19[[#This Row],[FUNC]]),\"YES\",IF(_xlfn.ISFORMULA(tblSchMJune19[[#This Row],[FUNC]]),\"NO\",\"YES\")))","v":"NO"}]
[{"$f":"CONCATENATE(tblSchMJune19[[#This Row],[Primary Account]],tblSchMJune19[[#This Row],[Primary Name]],tblSchMJune19[[#This Row],[Secondary Acct]],tblSchMJune19[[#This Row],[Secondary  Name]],tblSchMJune19[[#This Row],[Alloc4FUNC]])","v":"4099300SCHMDT415720Reg Asset - Community Solar - OROTHER"},4099300,{"$f":"IF(tblSchMJune19[[#This Row],[Primary Account]]=4098200,\"SCHMAP\",IF(tblSchMJune19[[#This Row],[Primary Account]]=4098300,\"SCHMAT\",IF(tblSchMJune19[[#This Row],[Primary Account]]=4099200,\"SCHMDP\",IF(tblSchMJune19[[#This Row],[Primary Account]]=4099300,\"SCHMDT\"))))","v":"SCHMDT"},"415720","Reg Asset - Community Solar - OR","OTHER",160.05261999999999,{"$f":"IF(OR(tblSchMJune19[[#This Row],[Alloc]]=\"IDU\",tblSchMJune19[[#This Row],[Alloc]]=\"OR\",tblSchMJune19[[#This Row],[Alloc]]=\"UT\",tblSchMJune19[[#This Row],[Alloc]]=\"WYU\",tblSchMJune19[[#This Row],[Alloc]]=\"WYP\",tblSchMJune19[[#This Row],[Alloc]]=\"CA\",tblSchMJune19[[#This Row],[Alloc]]=\"WA\"),\"SITUS\",tblSchMJune19[[#This Row],[Alloc]])","v":"OTHER"},{"$f":"INDEX(tblSchMLookup[FUNC],MATCH(tblSchMJune19[[#This Row],[Concat]],tblSchMLookup[Concat],0))","v":"P"},{"$f":"IF(tblSchMJune19[[#This Row],[Total ($000)]]=0,\"NO\",IF(ISNA(tblSchMJune19[[#This Row],[FUNC]]),\"YES\",IF(_xlfn.ISFORMULA(tblSchMJune19[[#This Row],[FUNC]]),\"NO\",\"YES\")))","v":"NO"}]
[{"$f":"CONCATENATE(tblSchMJune19[[#This Row],[Primary Account]],tblSchMJune19[[#This Row],[Primary Name]],tblSchMJune19[[#This Row],[Secondary Acct]],tblSchMJune19[[#This Row],[Secondary  Name]],tblSchMJune19[[#This Row],[Alloc4FUNC]])","v":"4099300SCHMDT415750Reg Assets BPA balancing accounts-IDUOTHER"},4099300,{"$f":"IF(tblSchMJune19[[#This Row],[Primary Account]]=4098200,\"SCHMAP\",IF(tblSchMJune19[[#This Row],[Primary Account]]=4098300,\"SCHMAT\",IF(tblSchMJune19[[#This Row],[Primary Account]]=4099200,\"SCHMDP\",IF(tblSchMJune19[[#This Row],[Primary Account]]=4099300,\"SCHMDT\"))))","v":"SCHMDT"},"415750","Reg Assets BPA balancing accounts-IDU","OTHER",null,{"$f":"IF(OR(tblSchMJune19[[#This Row],[Alloc]]=\"IDU\",tblSchMJune19[[#This Row],[Alloc]]=\"OR\",tblSchMJune19[[#This Row],[Alloc]]=\"UT\",tblSchMJune19[[#This Row],[Alloc]]=\"WYU\",tblSchMJune19[[#This Row],[Alloc]]=\"WYP\",tblSchMJune19[[#This Row],[Alloc]]=\"CA\",tblSchMJune19[[#This Row],[Alloc]]=\"WA\"),\"SITUS\",tblSchMJune19[[#This Row],[Alloc]])","v":"OTHER"},{"$f":"INDEX(tblSchMLookup[FUNC],MATCH(tblSchMJune19[[#This Row],[Concat]],tblSchMLookup[Concat],0))","v":{"$error":"#N/A"}},{"$f":"IF(tblSchMJune19[[#This Row],[Total ($000)]]=0,\"NO\",IF(ISNA(tblSchMJune19[[#This Row],[FUNC]]),\"YES\",IF(_xlfn.ISFORMULA(tblSchMJune19[[#This Row],[FUNC]]),\"NO\",\"YES\")))","v":"NO"}]
[{"$f":"CONCATENATE(tblSchMJune19[[#This Row],[Primary Account]],tblSchMJune19[[#This Row],[Primary Name]],tblSchMJune19[[#This Row],[Secondary Acct]],tblSchMJune19[[#This Row],[Secondary  Name]],tblSchMJune19[[#This Row],[Alloc4FUNC]])","v":"4099300SCHMDT415801RTO Grid West N/R AllowanceSG"},4099300,{"$f":"IF(tblSchMJune19[[#This Row],[Primary Account]]=4098200,\"SCHMAP\",IF(tblSchMJune19[[#This Row],[Primary Account]]=4098300,\"SCHMAT\",IF(tblSchMJune19[[#This Row],[Primary Account]]=4099200,\"SCHMDP\",IF(tblSchMJune19[[#This Row],[Primary Account]]=4099300,\"SCHMDT\"))))","v":"SCHMDT"},"415801","RTO Grid West N/R Allowance","SG",null,{"$f":"IF(OR(tblSchMJune19[[#This Row],[Alloc]]=\"IDU\",tblSchMJune19[[#This Row],[Alloc]]=\"OR\",tblSchMJune19[[#This Row],[Alloc]]=\"UT\",tblSchMJune19[[#This Row],[Alloc]]=\"WYU\",tblSchMJune19[[#This Row],[Alloc]]=\"WYP\",tblSchMJune19[[#This Row],[Alloc]]=\"CA\",tblSchMJune19[[#This Row],[Alloc]]=\"WA\"),\"SITUS\",tblSchMJune19[[#This Row],[Alloc]])","v":"SG"},{"$f":"INDEX(tblSchMLookup[FUNC],MATCH(tblSchMJune19[[#This Row],[Concat]],tblSchMLookup[Concat],0))","v":{"$error":"#N/A"}},{"$f":"IF(tblSchMJune19[[#This Row],[Total ($000)]]=0,\"NO\",IF(ISNA(tblSchMJune19[[#This Row],[FUNC]]),\"YES\",IF(_xlfn.ISFORMULA(tblSchMJune19[[#This Row],[FUNC]]),\"NO\",\"YES\")))","v":"NO"}]
[{"$f":"CONCATENATE(tblSchMJune19[[#This Row],[Primary Account]],tblSchMJune19[[#This Row],[Primary Name]],tblSchMJune19[[#This Row],[Secondary Acct]],tblSchMJune19[[#This Row],[Secondary  Name]],tblSchMJune19[[#This Row],[Alloc4FUNC]])","v":"4099300SCHMDT415803RTO Grid West N/R Allowance w/o WASITUS"},4099300,{"$f":"IF(tblSchMJune19[[#This Row],[Primary Account]]=4098200,\"SCHMAP\",IF(tblSchMJune19[[#This Row],[Primary Account]]=4098300,\"SCHMAT\",IF(tblSchMJune19[[#This Row],[Primary Account]]=4099200,\"SCHMDP\",IF(tblSchMJune19[[#This Row],[Primary Account]]=4099300,\"SCHMDT\"))))","v":"SCHMDT"},"415803","RTO Grid West N/R Allowance w/o WA","WA",null,{"$f":"IF(OR(tblSchMJune19[[#This Row],[Alloc]]=\"IDU\",tblSchMJune19[[#This Row],[Alloc]]=\"OR\",tblSchMJune19[[#This Row],[Alloc]]=\"UT\",tblSchMJune19[[#This Row],[Alloc]]=\"WYU\",tblSchMJune19[[#This Row],[Alloc]]=\"WYP\",tblSchMJune19[[#This Row],[Alloc]]=\"CA\",tblSchMJune19[[#This Row],[Alloc]]=\"WA\"),\"SITUS\",tblSchMJune19[[#This Row],[Alloc]])","v":"SITUS"},{"$f":"INDEX(tblSchMLookup[FUNC],MATCH(tblSchMJune19[[#This Row],[Concat]],tblSchMLookup[Concat],0))","v":{"$error":"#N/A"}},{"$f":"IF(tblSchMJune19[[#This Row],[Total ($000)]]=0,\"NO\",IF(ISNA(tblSchMJune19[[#This Row],[FUNC]]),\"YES\",IF(_xlfn.ISFORMULA(tblSchMJune19[[#This Row],[FUNC]]),\"NO\",\"YES\")))","v":"NO"}]
[{"$f":"CONCATENATE(tblSchMJune19[[#This Row],[Primary Account]],tblSchMJune19[[#This Row],[Primary Name]],tblSchMJune19[[#This Row],[Secondary Acct]],tblSchMJune19[[#This Row],[Secondary  Name]],tblSchMJune19[[#This Row],[Alloc4FUNC]])","v":"4099300SCHMDT415804OR RTO Grid West N/RSITUS"},4099300,{"$f":"IF(tblSchMJune19[[#This Row],[Primary Account]]=4098200,\"SCHMAP\",IF(tblSchMJune19[[#This Row],[Primary Account]]=4098300,\"SCHMAT\",IF(tblSchMJune19[[#This Row],[Primary Account]]=4099200,\"SCHMDP\",IF(tblSchMJune19[[#This Row],[Primary Account]]=4099300,\"SCHMDT\"))))","v":"SCHMDT"},"415804","OR RTO Grid West N/R","OR",null,{"$f":"IF(OR(tblSchMJune19[[#This Row],[Alloc]]=\"IDU\",tblSchMJune19[[#This Row],[Alloc]]=\"OR\",tblSchMJune19[[#This Row],[Alloc]]=\"UT\",tblSchMJune19[[#This Row],[Alloc]]=\"WYU\",tblSchMJune19[[#This Row],[Alloc]]=\"WYP\",tblSchMJune19[[#This Row],[Alloc]]=\"CA\",tblSchMJune19[[#This Row],[Alloc]]=\"WA\"),\"SITUS\",tblSchMJune19[[#This Row],[Alloc]])","v":"SITUS"},{"$f":"INDEX(tblSchMLookup[FUNC],MATCH(tblSchMJune19[[#This Row],[Concat]],tblSchMLookup[Concat],0))","v":{"$error":"#N/A"}},{"$f":"IF(tblSchMJune19[[#This Row],[Total ($000)]]=0,\"NO\",IF(ISNA(tblSchMJune19[[#This Row],[FUNC]]),\"YES\",IF(_xlfn.ISFORMULA(tblSchMJune19[[#This Row],[FUNC]]),\"NO\",\"YES\")))","v":"NO"}]
[{"$f":"CONCATENATE(tblSchMJune19[[#This Row],[Primary Account]],tblSchMJune19[[#This Row],[Primary Name]],tblSchMJune19[[#This Row],[Secondary Acct]],tblSchMJune19[[#This Row],[Secondary  Name]],tblSchMJune19[[#This Row],[Alloc4FUNC]])","v":"4099300SCHMDT415815Insurance ReserveSO"},4099300,{"$f":"IF(tblSchMJune19[[#This Row],[Primary Account]]=4098200,\"SCHMAP\",IF(tblSchMJune19[[#This Row],[Primary Account]]=4098300,\"SCHMAT\",IF(tblSchMJune19[[#This Row],[Primary Account]]=4099200,\"SCHMDP\",IF(tblSchMJune19[[#This Row],[Primary Account]]=4099300,\"SCHMDT\"))))","v":"SCHMDT"},"415815","Insurance Reserve","SO",-228.90391,{"$f":"IF(OR(tblSchMJune19[[#This Row],[Alloc]]=\"IDU\",tblSchMJune19[[#This Row],[Alloc]]=\"OR\",tblSchMJune19[[#This Row],[Alloc]]=\"UT\",tblSchMJune19[[#This Row],[Alloc]]=\"WYU\",tblSchMJune19[[#This Row],[Alloc]]=\"WYP\",tblSchMJune19[[#This Row],[Alloc]]=\"CA\",tblSchMJune19[[#This Row],[Alloc]]=\"WA\"),\"SITUS\",tblSchMJune19[[#This Row],[Alloc]])","v":"SO"},{"$f":"INDEX(tblSchMLookup[FUNC],MATCH(tblSchMJune19[[#This Row],[Concat]],tblSchMLookup[Concat],0))","v":"PTD"},{"$f":"IF(tblSchMJune19[[#This Row],[Total ($000)]]=0,\"NO\",IF(ISNA(tblSchMJune19[[#This Row],[FUNC]]),\"YES\",IF(_xlfn.ISFORMULA(tblSchMJune19[[#This Row],[FUNC]]),\"NO\",\"YES\")))","v":"NO"}]
[{"$f":"CONCATENATE(tblSchMJune19[[#This Row],[Primary Account]],tblSchMJune19[[#This Row],[Primary Name]],tblSchMJune19[[#This Row],[Secondary Acct]],tblSchMJune19[[#This Row],[Secondary  Name]],tblSchMJune19[[#This Row],[Alloc4FUNC]])","v":"4099300SCHMDT415820Contra Pension Reg Asset MMT & CTG _ORSITUS"},4099300,{"$f":"IF(tblSchMJune19[[#This Row],[Primary Account]]=4098200,\"SCHMAP\",IF(tblSchMJune19[[#This Row],[Primary Account]]=4098300,\"SCHMAT\",IF(tblSchMJune19[[#This Row],[Primary Account]]=4099200,\"SCHMDP\",IF(tblSchMJune19[[#This Row],[Primary Account]]=4099300,\"SCHMDT\"))))","v":"SCHMDT"},"415820","Contra Pension Reg Asset MMT & CTG _OR","OR",503.75301999999999,{"$f":"IF(OR(tblSchMJune19[[#This Row],[Alloc]]=\"IDU\",tblSchMJune19[[#This Row],[Alloc]]=\"OR\",tblSchMJune19[[#This Row],[Alloc]]=\"UT\",tblSchMJune19[[#This Row],[Alloc]]=\"WYU\",tblSchMJune19[[#This Row],[Alloc]]=\"WYP\",tblSchMJune19[[#This Row],[Alloc]]=\"CA\",tblSchMJune19[[#This Row],[Alloc]]=\"WA\"),\"SITUS\",tblSchMJune19[[#This Row],[Alloc]])","v":"SITUS"},{"$f":"INDEX(tblSchMLookup[FUNC],MATCH(tblSchMJune19[[#This Row],[Concat]],tblSchMLookup[Concat],0))","v":"LABOR"},{"$f":"IF(tblSchMJune19[[#This Row],[Total ($000)]]=0,\"NO\",IF(ISNA(tblSchMJune19[[#This Row],[FUNC]]),\"YES\",IF(_xlfn.ISFORMULA(tblSchMJune19[[#This Row],[FUNC]]),\"NO\",\"YES\")))","v":"NO"}]
[{"$f":"CONCATENATE(tblSchMJune19[[#This Row],[Primary Account]],tblSchMJune19[[#This Row],[Primary Name]],tblSchMJune19[[#This Row],[Secondary Acct]],tblSchMJune19[[#This Row],[Secondary  Name]],tblSchMJune19[[#This Row],[Alloc4FUNC]])","v":"4099300SCHMDT415821Contra Pension Reg Asset MMT & CTG _WYSITUS"},4099300,{"$f":"IF(tblSchMJune19[[#This Row],[Primary Account]]=4098200,\"SCHMAP\",IF(tblSchMJune19[[#This Row],[Primary Account]]=4098300,\"SCHMAT\",IF(tblSchMJune19[[#This Row],[Primary Account]]=4099200,\"SCHMDP\",IF(tblSchMJune19[[#This Row],[Primary Account]]=4099300,\"SCHMDT\"))))","v":"SCHMDT"},"415821","Contra Pension Reg Asset MMT & CTG _WY","WYP",null,{"$f":"IF(OR(tblSchMJune19[[#This Row],[Alloc]]=\"IDU\",tblSchMJune19[[#This Row],[Alloc]]=\"OR\",tblSchMJune19[[#This Row],[Alloc]]=\"UT\",tblSchMJune19[[#This Row],[Alloc]]=\"WYU\",tblSchMJune19[[#This Row],[Alloc]]=\"WYP\",tblSchMJune19[[#This Row],[Alloc]]=\"CA\",tblSchMJune19[[#This Row],[Alloc]]=\"WA\"),\"SITUS\",tblSchMJune19[[#This Row],[Alloc]])","v":"SITUS"},{"$f":"INDEX(tblSchMLookup[FUNC],MATCH(tblSchMJune19[[#This Row],[Concat]],tblSchMLookup[Concat],0))","v":{"$error":"#N/A"}},{"$f":"IF(tblSchMJune19[[#This Row],[Total ($000)]]=0,\"NO\",IF(ISNA(tblSchMJune19[[#This Row],[FUNC]]),\"YES\",IF(_xlfn.ISFORMULA(tblSchMJune19[[#This Row],[FUNC]]),\"NO\",\"YES\")))","v":"NO"}]
[{"$f":"CONCATENATE(tblSchMJune19[[#This Row],[Primary Account]],tblSchMJune19[[#This Row],[Primary Name]],tblSchMJune19[[#This Row],[Secondary Acct]],tblSchMJune19[[#This Row],[Secondary  Name]],tblSchMJune19[[#This Row],[Alloc4FUNC]])","v":"4099300SCHMDT415823Contra Pension Reg Asset CTG - UTSITUS"},4099300,{"$f":"IF(tblSchMJune19[[#This Row],[Primary Account]]=4098200,\"SCHMAP\",IF(tblSchMJune19[[#This Row],[Primary Account]]=4098300,\"SCHMAT\",IF(tblSchMJune19[[#This Row],[Primary Account]]=4099200,\"SCHMDP\",IF(tblSchMJune19[[#This Row],[Primary Account]]=4099300,\"SCHMDT\"))))","v":"SCHMDT"},"415823","Contra Pension Reg Asset CTG - UT","UT",null,{"$f":"IF(OR(tblSchMJune19[[#This Row],[Alloc]]=\"IDU\",tblSchMJune19[[#This Row],[Alloc]]=\"OR\",tblSchMJune19[[#This Row],[Alloc]]=\"UT\",tblSchMJune19[[#This Row],[Alloc]]=\"WYU\",tblSchMJune19[[#This Row],[Alloc]]=\"WYP\",tblSchMJune19[[#This Row],[Alloc]]=\"CA\",tblSchMJune19[[#This Row],[Alloc]]=\"WA\"),\"SITUS\",tblSchMJune19[[#This Row],[Alloc]])","v":"SITUS"},{"$f":"INDEX(tblSchMLookup[FUNC],MATCH(tblSchMJune19[[#This Row],[Concat]],tblSchMLookup[Concat],0))","v":{"$error":"#N/A"}},{"$f":"IF(tblSchMJune19[[#This Row],[Total ($000)]]=0,\"NO\",IF(ISNA(tblSchMJune19[[#This Row],[FUNC]]),\"YES\",IF(_xlfn.ISFORMULA(tblSchMJune19[[#This Row],[FUNC]]),\"NO\",\"YES\")))","v":"NO"}]
[{"$f":"CONCATENATE(tblSchMJune19[[#This Row],[Primary Account]],tblSchMJune19[[#This Row],[Primary Name]],tblSchMJune19[[#This Row],[Secondary Acct]],tblSchMJune19[[#This Row],[Secondary  Name]],tblSchMJune19[[#This Row],[Alloc4FUNC]])","v":"4099300SCHMDT415824Contra Pension Reg Asset MMT & CTG _CASITUS"},4099300,{"$f":"IF(tblSchMJune19[[#This Row],[Primary Account]]=4098200,\"SCHMAP\",IF(tblSchMJune19[[#This Row],[Primary Account]]=4098300,\"SCHMAT\",IF(tblSchMJune19[[#This Row],[Primary Account]]=4099200,\"SCHMDP\",IF(tblSchMJune19[[#This Row],[Primary Account]]=4099300,\"SCHMDT\"))))","v":"SCHMDT"},"415824","Contra Pension Reg Asset MMT & CTG _CA","CA",45.016500000000001,{"$f":"IF(OR(tblSchMJune19[[#This Row],[Alloc]]=\"IDU\",tblSchMJune19[[#This Row],[Alloc]]=\"OR\",tblSchMJune19[[#This Row],[Alloc]]=\"UT\",tblSchMJune19[[#This Row],[Alloc]]=\"WYU\",tblSchMJune19[[#This Row],[Alloc]]=\"WYP\",tblSchMJune19[[#This Row],[Alloc]]=\"CA\",tblSchMJune19[[#This Row],[Alloc]]=\"WA\"),\"SITUS\",tblSchMJune19[[#This Row],[Alloc]])","v":"SITUS"},{"$f":"INDEX(tblSchMLookup[FUNC],MATCH(tblSchMJune19[[#This Row],[Concat]],tblSchMLookup[Concat],0))","v":"LABOR"},{"$f":"IF(tblSchMJune19[[#This Row],[Total ($000)]]=0,\"NO\",IF(ISNA(tblSchMJune19[[#This Row],[FUNC]]),\"YES\",IF(_xlfn.ISFORMULA(tblSchMJune19[[#This Row],[FUNC]]),\"NO\",\"YES\")))","v":"NO"}]
[{"$f":"CONCATENATE(tblSchMJune19[[#This Row],[Primary Account]],tblSchMJune19[[#This Row],[Primary Name]],tblSchMJune19[[#This Row],[Secondary Acct]],tblSchMJune19[[#This Row],[Secondary  Name]],tblSchMJune19[[#This Row],[Alloc4FUNC]])","v":"4099300SCHMDT415825Contra Pension Reg Asset CTG - WASITUS"},4099300,{"$f":"IF(tblSchMJune19[[#This Row],[Primary Account]]=4098200,\"SCHMAP\",IF(tblSchMJune19[[#This Row],[Primary Account]]=4098300,\"SCHMAT\",IF(tblSchMJune19[[#This Row],[Primary Account]]=4099200,\"SCHMDP\",IF(tblSchMJune19[[#This Row],[Primary Account]]=4099300,\"SCHMDT\"))))","v":"SCHMDT"},"415825","Contra Pension Reg Asset CTG - WA","WA",null,{"$f":"IF(OR(tblSchMJune19[[#This Row],[Alloc]]=\"IDU\",tblSchMJune19[[#This Row],[Alloc]]=\"OR\",tblSchMJune19[[#This Row],[Alloc]]=\"UT\",tblSchMJune19[[#This Row],[Alloc]]=\"WYU\",tblSchMJune19[[#This Row],[Alloc]]=\"WYP\",tblSchMJune19[[#This Row],[Alloc]]=\"CA\",tblSchMJune19[[#This Row],[Alloc]]=\"WA\"),\"SITUS\",tblSchMJune19[[#This Row],[Alloc]])","v":"SITUS"},{"$f":"INDEX(tblSchMLookup[FUNC],MATCH(tblSchMJune19[[#This Row],[Concat]],tblSchMLookup[Concat],0))","v":{"$error":"#N/A"}},{"$f":"IF(tblSchMJune19[[#This Row],[Total ($000)]]=0,\"NO\",IF(ISNA(tblSchMJune19[[#This Row],[FUNC]]),\"YES\",IF(_xlfn.ISFORMULA(tblSchMJune19[[#This Row],[FUNC]]),\"NO\",\"YES\")))","v":"NO"}]
[{"$f":"CONCATENATE(tblSchMJune19[[#This Row],[Primary Account]],tblSchMJune19[[#This Row],[Primary Name]],tblSchMJune19[[#This Row],[Secondary Acct]],tblSchMJune19[[#This Row],[Secondary  Name]],tblSchMJune19[[#This Row],[Alloc4FUNC]])","v":"4099300SCHMDT415845Reg Asset - OR Sch 94 Distribution SafetOTHER"},4099300,{"$f":"IF(tblSchMJune19[[#This Row],[Primary Account]]=4098200,\"SCHMAP\",IF(tblSchMJune19[[#This Row],[Primary Account]]=4098300,\"SCHMAT\",IF(tblSchMJune19[[#This Row],[Primary Account]]=4099200,\"SCHMDP\",IF(tblSchMJune19[[#This Row],[Primary Account]]=4099300,\"SCHMDT\"))))","v":"SCHMDT"},"415845","Reg Asset - OR Sch 94 Distribution Safet","OTHER",null,{"$f":"IF(OR(tblSchMJune19[[#This Row],[Alloc]]=\"IDU\",tblSchMJune19[[#This Row],[Alloc]]=\"OR\",tblSchMJune19[[#This Row],[Alloc]]=\"UT\",tblSchMJune19[[#This Row],[Alloc]]=\"WYU\",tblSchMJune19[[#This Row],[Alloc]]=\"WYP\",tblSchMJune19[[#This Row],[Alloc]]=\"CA\",tblSchMJune19[[#This Row],[Alloc]]=\"WA\"),\"SITUS\",tblSchMJune19[[#This Row],[Alloc]])","v":"OTHER"},{"$f":"INDEX(tblSchMLookup[FUNC],MATCH(tblSchMJune19[[#This Row],[Concat]],tblSchMLookup[Concat],0))","v":{"$error":"#N/A"}},{"$f":"IF(tblSchMJune19[[#This Row],[Total ($000)]]=0,\"NO\",IF(ISNA(tblSchMJune19[[#This Row],[FUNC]]),\"YES\",IF(_xlfn.ISFORMULA(tblSchMJune19[[#This Row],[FUNC]]),\"NO\",\"YES\")))","v":"NO"}]
[{"$f":"CONCATENATE(tblSchMJune19[[#This Row],[Primary Account]],tblSchMJune19[[#This Row],[Primary Name]],tblSchMJune19[[#This Row],[Secondary Acct]],tblSchMJune19[[#This Row],[Secondary  Name]],tblSchMJune19[[#This Row],[Alloc4FUNC]])","v":"4099300SCHMDT415850Unrecovered Plant PowerdaleSG"},4099300,{"$f":"IF(tblSchMJune19[[#This Row],[Primary Account]]=4098200,\"SCHMAP\",IF(tblSchMJune19[[#This Row],[Primary Account]]=4098300,\"SCHMAT\",IF(tblSchMJune19[[#This Row],[Primary Account]]=4099200,\"SCHMDP\",IF(tblSchMJune19[[#This Row],[Primary Account]]=4099300,\"SCHMDT\"))))","v":"SCHMDT"},"415850","Unrecovered Plant Powerdale","SG",null,{"$f":"IF(OR(tblSchMJune19[[#This Row],[Alloc]]=\"IDU\",tblSchMJune19[[#This Row],[Alloc]]=\"OR\",tblSchMJune19[[#This Row],[Alloc]]=\"UT\",tblSchMJune19[[#This Row],[Alloc]]=\"WYU\",tblSchMJune19[[#This Row],[Alloc]]=\"WYP\",tblSchMJune19[[#This Row],[Alloc]]=\"CA\",tblSchMJune19[[#This Row],[Alloc]]=\"WA\"),\"SITUS\",tblSchMJune19[[#This Row],[Alloc]])","v":"SG"},{"$f":"INDEX(tblSchMLookup[FUNC],MATCH(tblSchMJune19[[#This Row],[Concat]],tblSchMLookup[Concat],0))","v":{"$error":"#N/A"}},{"$f":"IF(tblSchMJune19[[#This Row],[Total ($000)]]=0,\"NO\",IF(ISNA(tblSchMJune19[[#This Row],[FUNC]]),\"YES\",IF(_xlfn.ISFORMULA(tblSchMJune19[[#This Row],[FUNC]]),\"NO\",\"YES\")))","v":"NO"}]
[{"$f":"CONCATENATE(tblSchMJune19[[#This Row],[Primary Account]],tblSchMJune19[[#This Row],[Primary Name]],tblSchMJune19[[#This Row],[Secondary Acct]],tblSchMJune19[[#This Row],[Secondary  Name]],tblSchMJune19[[#This Row],[Alloc4FUNC]])","v":"4099300SCHMDT415851Powerdale Hydro Decom Reg Asset - CASITUS"},4099300,{"$f":"IF(tblSchMJune19[[#This Row],[Primary Account]]=4098200,\"SCHMAP\",IF(tblSchMJune19[[#This Row],[Primary Account]]=4098300,\"SCHMAT\",IF(tblSchMJune19[[#This Row],[Primary Account]]=4099200,\"SCHMDP\",IF(tblSchMJune19[[#This Row],[Primary Account]]=4099300,\"SCHMDT\"))))","v":"SCHMDT"},"415851","Powerdale Hydro Decom Reg Asset - CA","CA",null,{"$f":"IF(OR(tblSchMJune19[[#This Row],[Alloc]]=\"IDU\",tblSchMJune19[[#This Row],[Alloc]]=\"OR\",tblSchMJune19[[#This Row],[Alloc]]=\"UT\",tblSchMJune19[[#This Row],[Alloc]]=\"WYU\",tblSchMJune19[[#This Row],[Alloc]]=\"WYP\",tblSchMJune19[[#This Row],[Alloc]]=\"CA\",tblSchMJune19[[#This Row],[Alloc]]=\"WA\"),\"SITUS\",tblSchMJune19[[#This Row],[Alloc]])","v":"SITUS"},{"$f":"INDEX(tblSchMLookup[FUNC],MATCH(tblSchMJune19[[#This Row],[Concat]],tblSchMLookup[Concat],0))","v":{"$error":"#N/A"}},{"$f":"IF(tblSchMJune19[[#This Row],[Total ($000)]]=0,\"NO\",IF(ISNA(tblSchMJune19[[#This Row],[FUNC]]),\"YES\",IF(_xlfn.ISFORMULA(tblSchMJune19[[#This Row],[FUNC]]),\"NO\",\"YES\")))","v":"NO"}]
[{"$f":"CONCATENATE(tblSchMJune19[[#This Row],[Primary Account]],tblSchMJune19[[#This Row],[Primary Name]],tblSchMJune19[[#This Row],[Secondary Acct]],tblSchMJune19[[#This Row],[Secondary  Name]],tblSchMJune19[[#This Row],[Alloc4FUNC]])","v":"4099300SCHMDT415852Powerdale Decommissioning Reg Asset - IDSITUS"},4099300,{"$f":"IF(tblSchMJune19[[#This Row],[Primary Account]]=4098200,\"SCHMAP\",IF(tblSchMJune19[[#This Row],[Primary Account]]=4098300,\"SCHMAT\",IF(tblSchMJune19[[#This Row],[Primary Account]]=4099200,\"SCHMDP\",IF(tblSchMJune19[[#This Row],[Primary Account]]=4099300,\"SCHMDT\"))))","v":"SCHMDT"},"415852","Powerdale Decommissioning Reg Asset - ID","IDU",null,{"$f":"IF(OR(tblSchMJune19[[#This Row],[Alloc]]=\"IDU\",tblSchMJune19[[#This Row],[Alloc]]=\"OR\",tblSchMJune19[[#This Row],[Alloc]]=\"UT\",tblSchMJune19[[#This Row],[Alloc]]=\"WYU\",tblSchMJune19[[#This Row],[Alloc]]=\"WYP\",tblSchMJune19[[#This Row],[Alloc]]=\"CA\",tblSchMJune19[[#This Row],[Alloc]]=\"WA\"),\"SITUS\",tblSchMJune19[[#This Row],[Alloc]])","v":"SITUS"},{"$f":"INDEX(tblSchMLookup[FUNC],MATCH(tblSchMJune19[[#This Row],[Concat]],tblSchMLookup[Concat],0))","v":{"$error":"#N/A"}},{"$f":"IF(tblSchMJune19[[#This Row],[Total ($000)]]=0,\"NO\",IF(ISNA(tblSchMJune19[[#This Row],[FUNC]]),\"YES\",IF(_xlfn.ISFORMULA(tblSchMJune19[[#This Row],[FUNC]]),\"NO\",\"YES\")))","v":"NO"}]
[{"$f":"CONCATENATE(tblSchMJune19[[#This Row],[Primary Account]],tblSchMJune19[[#This Row],[Primary Name]],tblSchMJune19[[#This Row],[Secondary Acct]],tblSchMJune19[[#This Row],[Secondary  Name]],tblSchMJune19[[#This Row],[Alloc4FUNC]])","v":"4099300SCHMDT415853Powerdale Decommissioning Reg Asset - ORSITUS"},4099300,{"$f":"IF(tblSchMJune19[[#This Row],[Primary Account]]=4098200,\"SCHMAP\",IF(tblSchMJune19[[#This Row],[Primary Account]]=4098300,\"SCHMAT\",IF(tblSchMJune19[[#This Row],[Primary Account]]=4099200,\"SCHMDP\",IF(tblSchMJune19[[#This Row],[Primary Account]]=4099300,\"SCHMDT\"))))","v":"SCHMDT"},"415853","Powerdale Decommissioning Reg Asset - OR","OR",null,{"$f":"IF(OR(tblSchMJune19[[#This Row],[Alloc]]=\"IDU\",tblSchMJune19[[#This Row],[Alloc]]=\"OR\",tblSchMJune19[[#This Row],[Alloc]]=\"UT\",tblSchMJune19[[#This Row],[Alloc]]=\"WYU\",tblSchMJune19[[#This Row],[Alloc]]=\"WYP\",tblSchMJune19[[#This Row],[Alloc]]=\"CA\",tblSchMJune19[[#This Row],[Alloc]]=\"WA\"),\"SITUS\",tblSchMJune19[[#This Row],[Alloc]])","v":"SITUS"},{"$f":"INDEX(tblSchMLookup[FUNC],MATCH(tblSchMJune19[[#This Row],[Concat]],tblSchMLookup[Concat],0))","v":{"$error":"#N/A"}},{"$f":"IF(tblSchMJune19[[#This Row],[Total ($000)]]=0,\"NO\",IF(ISNA(tblSchMJune19[[#This Row],[FUNC]]),\"YES\",IF(_xlfn.ISFORMULA(tblSchMJune19[[#This Row],[FUNC]]),\"NO\",\"YES\")))","v":"NO"}]
[{"$f":"CONCATENATE(tblSchMJune19[[#This Row],[Primary Account]],tblSchMJune19[[#This Row],[Primary Name]],tblSchMJune19[[#This Row],[Secondary Acct]],tblSchMJune19[[#This Row],[Secondary  Name]],tblSchMJune19[[#This Row],[Alloc4FUNC]])","v":"4099300SCHMDT415854Powerdale Decommissioning Reg Asset - WASITUS"},4099300,{"$f":"IF(tblSchMJune19[[#This Row],[Primary Account]]=4098200,\"SCHMAP\",IF(tblSchMJune19[[#This Row],[Primary Account]]=4098300,\"SCHMAT\",IF(tblSchMJune19[[#This Row],[Primary Account]]=4099200,\"SCHMDP\",IF(tblSchMJune19[[#This Row],[Primary Account]]=4099300,\"SCHMDT\"))))","v":"SCHMDT"},"415854","Powerdale Decommissioning Reg Asset - WA","WA",null,{"$f":"IF(OR(tblSchMJune19[[#This Row],[Alloc]]=\"IDU\",tblSchMJune19[[#This Row],[Alloc]]=\"OR\",tblSchMJune19[[#This Row],[Alloc]]=\"UT\",tblSchMJune19[[#This Row],[Alloc]]=\"WYU\",tblSchMJune19[[#This Row],[Alloc]]=\"WYP\",tblSchMJune19[[#This Row],[Alloc]]=\"CA\",tblSchMJune19[[#This Row],[Alloc]]=\"WA\"),\"SITUS\",tblSchMJune19[[#This Row],[Alloc]])","v":"SITUS"},{"$f":"INDEX(tblSchMLookup[FUNC],MATCH(tblSchMJune19[[#This Row],[Concat]],tblSchMLookup[Concat],0))","v":{"$error":"#N/A"}},{"$f":"IF(tblSchMJune19[[#This Row],[Total ($000)]]=0,\"NO\",IF(ISNA(tblSchMJune19[[#This Row],[FUNC]]),\"YES\",IF(_xlfn.ISFORMULA(tblSchMJune19[[#This Row],[FUNC]]),\"NO\",\"YES\")))","v":"NO"}]
[{"$f":"CONCATENATE(tblSchMJune19[[#This Row],[Primary Account]],tblSchMJune19[[#This Row],[Primary Name]],tblSchMJune19[[#This Row],[Secondary Acct]],tblSchMJune19[[#This Row],[Secondary  Name]],tblSchMJune19[[#This Row],[Alloc4FUNC]])","v":"4099300SCHMDT415855Ca - January 2010 Storm CostsOTHER"},4099300,{"$f":"IF(tblSchMJune19[[#This Row],[Primary Account]]=4098200,\"SCHMAP\",IF(tblSchMJune19[[#This Row],[Primary Account]]=4098300,\"SCHMAT\",IF(tblSchMJune19[[#This Row],[Primary Account]]=4099200,\"SCHMDP\",IF(tblSchMJune19[[#This Row],[Primary Account]]=4099300,\"SCHMDT\"))))","v":"SCHMDT"},"415855","Ca - January 2010 Storm Costs","OTHER",null,{"$f":"IF(OR(tblSchMJune19[[#This Row],[Alloc]]=\"IDU\",tblSchMJune19[[#This Row],[Alloc]]=\"OR\",tblSchMJune19[[#This Row],[Alloc]]=\"UT\",tblSchMJune19[[#This Row],[Alloc]]=\"WYU\",tblSchMJune19[[#This Row],[Alloc]]=\"WYP\",tblSchMJune19[[#This Row],[Alloc]]=\"CA\",tblSchMJune19[[#This Row],[Alloc]]=\"WA\"),\"SITUS\",tblSchMJune19[[#This Row],[Alloc]])","v":"OTHER"},{"$f":"INDEX(tblSchMLookup[FUNC],MATCH(tblSchMJune19[[#This Row],[Concat]],tblSchMLookup[Concat],0))","v":{"$error":"#N/A"}},{"$f":"IF(tblSchMJune19[[#This Row],[Total ($000)]]=0,\"NO\",IF(ISNA(tblSchMJune19[[#This Row],[FUNC]]),\"YES\",IF(_xlfn.ISFORMULA(tblSchMJune19[[#This Row],[FUNC]]),\"NO\",\"YES\")))","v":"NO"}]
[{"$f":"CONCATENATE(tblSchMJune19[[#This Row],[Primary Account]],tblSchMJune19[[#This Row],[Primary Name]],tblSchMJune19[[#This Row],[Secondary Acct]],tblSchMJune19[[#This Row],[Secondary  Name]],tblSchMJune19[[#This Row],[Alloc4FUNC]])","v":"4099300SCHMDT415856Powerdale Decommissioning Reg Asset - WYSITUS"},4099300,{"$f":"IF(tblSchMJune19[[#This Row],[Primary Account]]=4098200,\"SCHMAP\",IF(tblSchMJune19[[#This Row],[Primary Account]]=4098300,\"SCHMAT\",IF(tblSchMJune19[[#This Row],[Primary Account]]=4099200,\"SCHMDP\",IF(tblSchMJune19[[#This Row],[Primary Account]]=4099300,\"SCHMDT\"))))","v":"SCHMDT"},"415856","Powerdale Decommissioning Reg Asset - WY","WYP",null,{"$f":"IF(OR(tblSchMJune19[[#This Row],[Alloc]]=\"IDU\",tblSchMJune19[[#This Row],[Alloc]]=\"OR\",tblSchMJune19[[#This Row],[Alloc]]=\"UT\",tblSchMJune19[[#This Row],[Alloc]]=\"WYU\",tblSchMJune19[[#This Row],[Alloc]]=\"WYP\",tblSchMJune19[[#This Row],[Alloc]]=\"CA\",tblSchMJune19[[#This Row],[Alloc]]=\"WA\"),\"SITUS\",tblSchMJune19[[#This Row],[Alloc]])","v":"SITUS"},{"$f":"INDEX(tblSchMLookup[FUNC],MATCH(tblSchMJune19[[#This Row],[Concat]],tblSchMLookup[Concat],0))","v":{"$error":"#N/A"}},{"$f":"IF(tblSchMJune19[[#This Row],[Total ($000)]]=0,\"NO\",IF(ISNA(tblSchMJune19[[#This Row],[FUNC]]),\"YES\",IF(_xlfn.ISFORMULA(tblSchMJune19[[#This Row],[FUNC]]),\"NO\",\"YES\")))","v":"NO"}]
[{"$f":"CONCATENATE(tblSchMJune19[[#This Row],[Primary Account]],tblSchMJune19[[#This Row],[Primary Name]],tblSchMJune19[[#This Row],[Secondary Acct]],tblSchMJune19[[#This Row],[Secondary  Name]],tblSchMJune19[[#This Row],[Alloc4FUNC]])","v":"4099300SCHMDT415857ID - Deferred Overburden CostsOTHER"},4099300,{"$f":"IF(tblSchMJune19[[#This Row],[Primary Account]]=4098200,\"SCHMAP\",IF(tblSchMJune19[[#This Row],[Primary Account]]=4098300,\"SCHMAT\",IF(tblSchMJune19[[#This Row],[Primary Account]]=4099200,\"SCHMDP\",IF(tblSchMJune19[[#This Row],[Primary Account]]=4099300,\"SCHMDT\"))))","v":"SCHMDT"},"415857","ID - Deferred Overburden Costs","OTHER",null,{"$f":"IF(OR(tblSchMJune19[[#This Row],[Alloc]]=\"IDU\",tblSchMJune19[[#This Row],[Alloc]]=\"OR\",tblSchMJune19[[#This Row],[Alloc]]=\"UT\",tblSchMJune19[[#This Row],[Alloc]]=\"WYU\",tblSchMJune19[[#This Row],[Alloc]]=\"WYP\",tblSchMJune19[[#This Row],[Alloc]]=\"CA\",tblSchMJune19[[#This Row],[Alloc]]=\"WA\"),\"SITUS\",tblSchMJune19[[#This Row],[Alloc]])","v":"OTHER"},{"$f":"INDEX(tblSchMLookup[FUNC],MATCH(tblSchMJune19[[#This Row],[Concat]],tblSchMLookup[Concat],0))","v":{"$error":"#N/A"}},{"$f":"IF(tblSchMJune19[[#This Row],[Total ($000)]]=0,\"NO\",IF(ISNA(tblSchMJune19[[#This Row],[FUNC]]),\"YES\",IF(_xlfn.ISFORMULA(tblSchMJune19[[#This Row],[FUNC]]),\"NO\",\"YES\")))","v":"NO"}]
[{"$f":"CONCATENATE(tblSchMJune19[[#This Row],[Primary Account]],tblSchMJune19[[#This Row],[Primary Name]],tblSchMJune19[[#This Row],[Secondary Acct]],tblSchMJune19[[#This Row],[Secondary  Name]],tblSchMJune19[[#This Row],[Alloc4FUNC]])","v":"4099300SCHMDT415858WY - Deferred Overburden CostsSITUS"},4099300,{"$f":"IF(tblSchMJune19[[#This Row],[Primary Account]]=4098200,\"SCHMAP\",IF(tblSchMJune19[[#This Row],[Primary Account]]=4098300,\"SCHMAT\",IF(tblSchMJune19[[#This Row],[Primary Account]]=4099200,\"SCHMDP\",IF(tblSchMJune19[[#This Row],[Primary Account]]=4099300,\"SCHMDT\"))))","v":"SCHMDT"},"415858","WY - Deferred Overburden Costs","WYP",null,{"$f":"IF(OR(tblSchMJune19[[#This Row],[Alloc]]=\"IDU\",tblSchMJune19[[#This Row],[Alloc]]=\"OR\",tblSchMJune19[[#This Row],[Alloc]]=\"UT\",tblSchMJune19[[#This Row],[Alloc]]=\"WYU\",tblSchMJune19[[#This Row],[Alloc]]=\"WYP\",tblSchMJune19[[#This Row],[Alloc]]=\"CA\",tblSchMJune19[[#This Row],[Alloc]]=\"WA\"),\"SITUS\",tblSchMJune19[[#This Row],[Alloc]])","v":"SITUS"},{"$f":"INDEX(tblSchMLookup[FUNC],MATCH(tblSchMJune19[[#This Row],[Concat]],tblSchMLookup[Concat],0))","v":{"$error":"#N/A"}},{"$f":"IF(tblSchMJune19[[#This Row],[Total ($000)]]=0,\"NO\",IF(ISNA(tblSchMJune19[[#This Row],[FUNC]]),\"YES\",IF(_xlfn.ISFORMULA(tblSchMJune19[[#This Row],[FUNC]]),\"NO\",\"YES\")))","v":"NO"}]
[{"$f":"CONCATENATE(tblSchMJune19[[#This Row],[Primary Account]],tblSchMJune19[[#This Row],[Primary Name]],tblSchMJune19[[#This Row],[Secondary Acct]],tblSchMJune19[[#This Row],[Secondary  Name]],tblSchMJune19[[#This Row],[Alloc4FUNC]])","v":"4099300SCHMDT415859WY - Deferred Advertising CostsOTHER"},4099300,{"$f":"IF(tblSchMJune19[[#This Row],[Primary Account]]=4098200,\"SCHMAP\",IF(tblSchMJune19[[#This Row],[Primary Account]]=4098300,\"SCHMAT\",IF(tblSchMJune19[[#This Row],[Primary Account]]=4099200,\"SCHMDP\",IF(tblSchMJune19[[#This Row],[Primary Account]]=4099300,\"SCHMDT\"))))","v":"SCHMDT"},"415859","WY - Deferred Advertising Costs","OTHER",null,{"$f":"IF(OR(tblSchMJune19[[#This Row],[Alloc]]=\"IDU\",tblSchMJune19[[#This Row],[Alloc]]=\"OR\",tblSchMJune19[[#This Row],[Alloc]]=\"UT\",tblSchMJune19[[#This Row],[Alloc]]=\"WYU\",tblSchMJune19[[#This Row],[Alloc]]=\"WYP\",tblSchMJune19[[#This Row],[Alloc]]=\"CA\",tblSchMJune19[[#This Row],[Alloc]]=\"WA\"),\"SITUS\",tblSchMJune19[[#This Row],[Alloc]])","v":"OTHER"},{"$f":"INDEX(tblSchMLookup[FUNC],MATCH(tblSchMJune19[[#This Row],[Concat]],tblSchMLookup[Concat],0))","v":{"$error":"#N/A"}},{"$f":"IF(tblSchMJune19[[#This Row],[Total ($000)]]=0,\"NO\",IF(ISNA(tblSchMJune19[[#This Row],[FUNC]]),\"YES\",IF(_xlfn.ISFORMULA(tblSchMJune19[[#This Row],[FUNC]]),\"NO\",\"YES\")))","v":"NO"}]
[{"$f":"CONCATENATE(tblSchMJune19[[#This Row],[Primary Account]],tblSchMJune19[[#This Row],[Primary Name]],tblSchMJune19[[#This Row],[Secondary Acct]],tblSchMJune19[[#This Row],[Secondary  Name]],tblSchMJune19[[#This Row],[Alloc4FUNC]])","v":"4099300SCHMDT415862Reg Asset - CA Mobile Home Park ConversiOTHER"},4099300,{"$f":"IF(tblSchMJune19[[#This Row],[Primary Account]]=4098200,\"SCHMAP\",IF(tblSchMJune19[[#This Row],[Primary Account]]=4098300,\"SCHMAT\",IF(tblSchMJune19[[#This Row],[Primary Account]]=4099200,\"SCHMDP\",IF(tblSchMJune19[[#This Row],[Primary Account]]=4099300,\"SCHMDT\"))))","v":"SCHMDT"},"415862","Reg Asset - CA Mobile Home Park Conversi","OTHER",6.59795,{"$f":"IF(OR(tblSchMJune19[[#This Row],[Alloc]]=\"IDU\",tblSchMJune19[[#This Row],[Alloc]]=\"OR\",tblSchMJune19[[#This Row],[Alloc]]=\"UT\",tblSchMJune19[[#This Row],[Alloc]]=\"WYU\",tblSchMJune19[[#This Row],[Alloc]]=\"WYP\",tblSchMJune19[[#This Row],[Alloc]]=\"CA\",tblSchMJune19[[#This Row],[Alloc]]=\"WA\"),\"SITUS\",tblSchMJune19[[#This Row],[Alloc]])","v":"OTHER"},{"$f":"INDEX(tblSchMLookup[FUNC],MATCH(tblSchMJune19[[#This Row],[Concat]],tblSchMLookup[Concat],0))","v":"CUST"},{"$f":"IF(tblSchMJune19[[#This Row],[Total ($000)]]=0,\"NO\",IF(ISNA(tblSchMJune19[[#This Row],[FUNC]]),\"YES\",IF(_xlfn.ISFORMULA(tblSchMJune19[[#This Row],[FUNC]]),\"NO\",\"YES\")))","v":"NO"}]
[{"$f":"CONCATENATE(tblSchMJune19[[#This Row],[Primary Account]],tblSchMJune19[[#This Row],[Primary Name]],tblSchMJune19[[#This Row],[Secondary Acct]],tblSchMJune19[[#This Row],[Secondary  Name]],tblSchMJune19[[#This Row],[Alloc4FUNC]])","v":"4099300SCHMDT415863Reg Asset - UT Subscriber Solar ProgramSITUS"},4099300,{"$f":"IF(tblSchMJune19[[#This Row],[Primary Account]]=4098200,\"SCHMAP\",IF(tblSchMJune19[[#This Row],[Primary Account]]=4098300,\"SCHMAT\",IF(tblSchMJune19[[#This Row],[Primary Account]]=4099200,\"SCHMDP\",IF(tblSchMJune19[[#This Row],[Primary Account]]=4099300,\"SCHMDT\"))))","v":"SCHMDT"},"415863","Reg Asset - UT Subscriber Solar Program","UT",107.21756000000001,{"$f":"IF(OR(tblSchMJune19[[#This Row],[Alloc]]=\"IDU\",tblSchMJune19[[#This Row],[Alloc]]=\"OR\",tblSchMJune19[[#This Row],[Alloc]]=\"UT\",tblSchMJune19[[#This Row],[Alloc]]=\"WYU\",tblSchMJune19[[#This Row],[Alloc]]=\"WYP\",tblSchMJune19[[#This Row],[Alloc]]=\"CA\",tblSchMJune19[[#This Row],[Alloc]]=\"WA\"),\"SITUS\",tblSchMJune19[[#This Row],[Alloc]])","v":"SITUS"},{"$f":"INDEX(tblSchMLookup[FUNC],MATCH(tblSchMJune19[[#This Row],[Concat]],tblSchMLookup[Concat],0))","v":"P"},{"$f":"IF(tblSchMJune19[[#This Row],[Total ($000)]]=0,\"NO\",IF(ISNA(tblSchMJune19[[#This Row],[FUNC]]),\"YES\",IF(_xlfn.ISFORMULA(tblSchMJune19[[#This Row],[FUNC]]),\"NO\",\"YES\")))","v":"NO"}]
[{"$f":"CONCATENATE(tblSchMJune19[[#This Row],[Primary Account]],tblSchMJune19[[#This Row],[Primary Name]],tblSchMJune19[[#This Row],[Secondary Acct]],tblSchMJune19[[#This Row],[Secondary  Name]],tblSchMJune19[[#This Row],[Alloc4FUNC]])","v":"4099300SCHMDT415865Reg Asset - Utah MPAOTHER"},4099300,{"$f":"IF(tblSchMJune19[[#This Row],[Primary Account]]=4098200,\"SCHMAP\",IF(tblSchMJune19[[#This Row],[Primary Account]]=4098300,\"SCHMAT\",IF(tblSchMJune19[[#This Row],[Primary Account]]=4099200,\"SCHMDP\",IF(tblSchMJune19[[#This Row],[Primary Account]]=4099300,\"SCHMDT\"))))","v":"SCHMDT"},"415865","Reg Asset - Utah MPA","OTHER",null,{"$f":"IF(OR(tblSchMJune19[[#This Row],[Alloc]]=\"IDU\",tblSchMJune19[[#This Row],[Alloc]]=\"OR\",tblSchMJune19[[#This Row],[Alloc]]=\"UT\",tblSchMJune19[[#This Row],[Alloc]]=\"WYU\",tblSchMJune19[[#This Row],[Alloc]]=\"WYP\",tblSchMJune19[[#This Row],[Alloc]]=\"CA\",tblSchMJune19[[#This Row],[Alloc]]=\"WA\"),\"SITUS\",tblSchMJune19[[#This Row],[Alloc]])","v":"OTHER"},{"$f":"INDEX(tblSchMLookup[FUNC],MATCH(tblSchMJune19[[#This Row],[Concat]],tblSchMLookup[Concat],0))","v":{"$error":"#N/A"}},{"$f":"IF(tblSchMJune19[[#This Row],[Total ($000)]]=0,\"NO\",IF(ISNA(tblSchMJune19[[#This Row],[FUNC]]),\"YES\",IF(_xlfn.ISFORMULA(tblSchMJune19[[#This Row],[FUNC]]),\"NO\",\"YES\")))","v":"NO"}]
[{"$f":"CONCATENATE(tblSchMJune19[[#This Row],[Primary Account]],tblSchMJune19[[#This Row],[Primary Name]],tblSchMJune19[[#This Row],[Secondary Acct]],tblSchMJune19[[#This Row],[Secondary  Name]],tblSchMJune19[[#This Row],[Alloc4FUNC]])","v":"4099300SCHMDT415866Reg Asset - OR Solar Feed-in TariffOTHER"},4099300,{"$f":"IF(tblSchMJune19[[#This Row],[Primary Account]]=4098200,\"SCHMAP\",IF(tblSchMJune19[[#This Row],[Primary Account]]=4098300,\"SCHMAT\",IF(tblSchMJune19[[#This Row],[Primary Account]]=4099200,\"SCHMDP\",IF(tblSchMJune19[[#This Row],[Primary Account]]=4099300,\"SCHMDT\"))))","v":"SCHMDT"},"415866","Reg Asset - OR Solar Feed-in Tariff","OTHER",-69.82987,{"$f":"IF(OR(tblSchMJune19[[#This Row],[Alloc]]=\"IDU\",tblSchMJune19[[#This Row],[Alloc]]=\"OR\",tblSchMJune19[[#This Row],[Alloc]]=\"UT\",tblSchMJune19[[#This Row],[Alloc]]=\"WYU\",tblSchMJune19[[#This Row],[Alloc]]=\"WYP\",tblSchMJune19[[#This Row],[Alloc]]=\"CA\",tblSchMJune19[[#This Row],[Alloc]]=\"WA\"),\"SITUS\",tblSchMJune19[[#This Row],[Alloc]])","v":"OTHER"},{"$f":"INDEX(tblSchMLookup[FUNC],MATCH(tblSchMJune19[[#This Row],[Concat]],tblSchMLookup[Concat],0))","v":"P"},{"$f":"IF(tblSchMJune19[[#This Row],[Total ($000)]]=0,\"NO\",IF(ISNA(tblSchMJune19[[#This Row],[FUNC]]),\"YES\",IF(_xlfn.ISFORMULA(tblSchMJune19[[#This Row],[FUNC]]),\"NO\",\"YES\")))","v":"NO"}]
[{"$f":"CONCATENATE(tblSchMJune19[[#This Row],[Primary Account]],tblSchMJune19[[#This Row],[Primary Name]],tblSchMJune19[[#This Row],[Secondary Acct]],tblSchMJune19[[#This Row],[Secondary  Name]],tblSchMJune19[[#This Row],[Alloc4FUNC]])","v":"4099300SCHMDT415869Reg Asset - CA Deferred Net Power CostsOTHER"},4099300,{"$f":"IF(tblSchMJune19[[#This Row],[Primary Account]]=4098200,\"SCHMAP\",IF(tblSchMJune19[[#This Row],[Primary Account]]=4098300,\"SCHMAT\",IF(tblSchMJune19[[#This Row],[Primary Account]]=4099200,\"SCHMDP\",IF(tblSchMJune19[[#This Row],[Primary Account]]=4099300,\"SCHMDT\"))))","v":"SCHMDT"},"415869","Reg Asset - CA Deferred Net Power Costs","OTHER",null,{"$f":"IF(OR(tblSchMJune19[[#This Row],[Alloc]]=\"IDU\",tblSchMJune19[[#This Row],[Alloc]]=\"OR\",tblSchMJune19[[#This Row],[Alloc]]=\"UT\",tblSchMJune19[[#This Row],[Alloc]]=\"WYU\",tblSchMJune19[[#This Row],[Alloc]]=\"WYP\",tblSchMJune19[[#This Row],[Alloc]]=\"CA\",tblSchMJune19[[#This Row],[Alloc]]=\"WA\"),\"SITUS\",tblSchMJune19[[#This Row],[Alloc]])","v":"OTHER"},{"$f":"INDEX(tblSchMLookup[FUNC],MATCH(tblSchMJune19[[#This Row],[Concat]],tblSchMLookup[Concat],0))","v":{"$error":"#N/A"}},{"$f":"IF(tblSchMJune19[[#This Row],[Total ($000)]]=0,\"NO\",IF(ISNA(tblSchMJune19[[#This Row],[FUNC]]),\"YES\",IF(_xlfn.ISFORMULA(tblSchMJune19[[#This Row],[FUNC]]),\"NO\",\"YES\")))","v":"NO"}]
[{"$f":"CONCATENATE(tblSchMJune19[[#This Row],[Primary Account]],tblSchMJune19[[#This Row],[Primary Name]],tblSchMJune19[[#This Row],[Secondary Acct]],tblSchMJune19[[#This Row],[Secondary  Name]],tblSchMJune19[[#This Row],[Alloc4FUNC]])","v":"4099300SCHMDT415870CA Def Excess NPCSITUS"},4099300,{"$f":"IF(tblSchMJune19[[#This Row],[Primary Account]]=4098200,\"SCHMAP\",IF(tblSchMJune19[[#This Row],[Primary Account]]=4098300,\"SCHMAT\",IF(tblSchMJune19[[#This Row],[Primary Account]]=4099200,\"SCHMDP\",IF(tblSchMJune19[[#This Row],[Primary Account]]=4099300,\"SCHMDT\"))))","v":"SCHMDT"},"415870","CA Def Excess NPC","CA",1964.9450300000001,{"$f":"IF(OR(tblSchMJune19[[#This Row],[Alloc]]=\"IDU\",tblSchMJune19[[#This Row],[Alloc]]=\"OR\",tblSchMJune19[[#This Row],[Alloc]]=\"UT\",tblSchMJune19[[#This Row],[Alloc]]=\"WYU\",tblSchMJune19[[#This Row],[Alloc]]=\"WYP\",tblSchMJune19[[#This Row],[Alloc]]=\"CA\",tblSchMJune19[[#This Row],[Alloc]]=\"WA\"),\"SITUS\",tblSchMJune19[[#This Row],[Alloc]])","v":"SITUS"},{"$f":"INDEX(tblSchMLookup[FUNC],MATCH(tblSchMJune19[[#This Row],[Concat]],tblSchMLookup[Concat],0))","v":"P"},{"$f":"IF(tblSchMJune19[[#This Row],[Total ($000)]]=0,\"NO\",IF(ISNA(tblSchMJune19[[#This Row],[FUNC]]),\"YES\",IF(_xlfn.ISFORMULA(tblSchMJune19[[#This Row],[FUNC]]),\"NO\",\"YES\")))","v":"NO"}]
[{"$f":"CONCATENATE(tblSchMJune19[[#This Row],[Primary Account]],tblSchMJune19[[#This Row],[Primary Name]],tblSchMJune19[[#This Row],[Secondary Acct]],tblSchMJune19[[#This Row],[Secondary  Name]],tblSchMJune19[[#This Row],[Alloc4FUNC]])","v":"4099300SCHMDT415874Deferred Excess Net Power Costs - WY 08OTHER"},4099300,{"$f":"IF(tblSchMJune19[[#This Row],[Primary Account]]=4098200,\"SCHMAP\",IF(tblSchMJune19[[#This Row],[Primary Account]]=4098300,\"SCHMAT\",IF(tblSchMJune19[[#This Row],[Primary Account]]=4099200,\"SCHMDP\",IF(tblSchMJune19[[#This Row],[Primary Account]]=4099300,\"SCHMDT\"))))","v":"SCHMDT"},"415874","Deferred Excess Net Power Costs - WY 08","OTHER",7302.9706900000001,{"$f":"IF(OR(tblSchMJune19[[#This Row],[Alloc]]=\"IDU\",tblSchMJune19[[#This Row],[Alloc]]=\"OR\",tblSchMJune19[[#This Row],[Alloc]]=\"UT\",tblSchMJune19[[#This Row],[Alloc]]=\"WYU\",tblSchMJune19[[#This Row],[Alloc]]=\"WYP\",tblSchMJune19[[#This Row],[Alloc]]=\"CA\",tblSchMJune19[[#This Row],[Alloc]]=\"WA\"),\"SITUS\",tblSchMJune19[[#This Row],[Alloc]])","v":"OTHER"},{"$f":"INDEX(tblSchMLookup[FUNC],MATCH(tblSchMJune19[[#This Row],[Concat]],tblSchMLookup[Concat],0))","v":"P"},{"$f":"IF(tblSchMJune19[[#This Row],[Total ($000)]]=0,\"NO\",IF(ISNA(tblSchMJune19[[#This Row],[FUNC]]),\"YES\",IF(_xlfn.ISFORMULA(tblSchMJune19[[#This Row],[FUNC]]),\"NO\",\"YES\")))","v":"NO"}]
[{"$f":"CONCATENATE(tblSchMJune19[[#This Row],[Primary Account]],tblSchMJune19[[#This Row],[Primary Name]],tblSchMJune19[[#This Row],[Secondary Acct]],tblSchMJune19[[#This Row],[Secondary  Name]],tblSchMJune19[[#This Row],[Alloc4FUNC]])","v":"4099300SCHMDT415875Deferred Excess Net Power Costs - UTOTHER"},4099300,{"$f":"IF(tblSchMJune19[[#This Row],[Primary Account]]=4098200,\"SCHMAP\",IF(tblSchMJune19[[#This Row],[Primary Account]]=4098300,\"SCHMAT\",IF(tblSchMJune19[[#This Row],[Primary Account]]=4099200,\"SCHMDP\",IF(tblSchMJune19[[#This Row],[Primary Account]]=4099300,\"SCHMDT\"))))","v":"SCHMDT"},"415875","Deferred Excess Net Power Costs - UT","OTHER",32906.042710000002,{"$f":"IF(OR(tblSchMJune19[[#This Row],[Alloc]]=\"IDU\",tblSchMJune19[[#This Row],[Alloc]]=\"OR\",tblSchMJune19[[#This Row],[Alloc]]=\"UT\",tblSchMJune19[[#This Row],[Alloc]]=\"WYU\",tblSchMJune19[[#This Row],[Alloc]]=\"WYP\",tblSchMJune19[[#This Row],[Alloc]]=\"CA\",tblSchMJune19[[#This Row],[Alloc]]=\"WA\"),\"SITUS\",tblSchMJune19[[#This Row],[Alloc]])","v":"OTHER"},{"$f":"INDEX(tblSchMLookup[FUNC],MATCH(tblSchMJune19[[#This Row],[Concat]],tblSchMLookup[Concat],0))","v":"P"},{"$f":"IF(tblSchMJune19[[#This Row],[Total ($000)]]=0,\"NO\",IF(ISNA(tblSchMJune19[[#This Row],[FUNC]]),\"YES\",IF(_xlfn.ISFORMULA(tblSchMJune19[[#This Row],[FUNC]]),\"NO\",\"YES\")))","v":"NO"}]
[{"$f":"CONCATENATE(tblSchMJune19[[#This Row],[Primary Account]],tblSchMJune19[[#This Row],[Primary Name]],tblSchMJune19[[#This Row],[Secondary Acct]],tblSchMJune19[[#This Row],[Secondary  Name]],tblSchMJune19[[#This Row],[Alloc4FUNC]])","v":"4099300SCHMDT415876Deferred Excess Net Power Costs - OROTHER"},4099300,{"$f":"IF(tblSchMJune19[[#This Row],[Primary Account]]=4098200,\"SCHMAP\",IF(tblSchMJune19[[#This Row],[Primary Account]]=4098300,\"SCHMAT\",IF(tblSchMJune19[[#This Row],[Primary Account]]=4099200,\"SCHMDP\",IF(tblSchMJune19[[#This Row],[Primary Account]]=4099300,\"SCHMDT\"))))","v":"SCHMDT"},"415876","Deferred Excess Net Power Costs - OR","OTHER",null,{"$f":"IF(OR(tblSchMJune19[[#This Row],[Alloc]]=\"IDU\",tblSchMJune19[[#This Row],[Alloc]]=\"OR\",tblSchMJune19[[#This Row],[Alloc]]=\"UT\",tblSchMJune19[[#This Row],[Alloc]]=\"WYU\",tblSchMJune19[[#This Row],[Alloc]]=\"WYP\",tblSchMJune19[[#This Row],[Alloc]]=\"CA\",tblSchMJune19[[#This Row],[Alloc]]=\"WA\"),\"SITUS\",tblSchMJune19[[#This Row],[Alloc]])","v":"OTHER"},{"$f":"INDEX(tblSchMLookup[FUNC],MATCH(tblSchMJune19[[#This Row],[Concat]],tblSchMLookup[Concat],0))","v":{"$error":"#N/A"}},{"$f":"IF(tblSchMJune19[[#This Row],[Total ($000)]]=0,\"NO\",IF(ISNA(tblSchMJune19[[#This Row],[FUNC]]),\"YES\",IF(_xlfn.ISFORMULA(tblSchMJune19[[#This Row],[FUNC]]),\"NO\",\"YES\")))","v":"NO"}]
[{"$f":"CONCATENATE(tblSchMJune19[[#This Row],[Primary Account]],tblSchMJune19[[#This Row],[Primary Name]],tblSchMJune19[[#This Row],[Secondary Acct]],tblSchMJune19[[#This Row],[Secondary  Name]],tblSchMJune19[[#This Row],[Alloc4FUNC]])","v":"4099300SCHMDT415878REG ASSET - UT LIQUIDATED DAMAGES NAUGHTSITUS"},4099300,{"$f":"IF(tblSchMJune19[[#This Row],[Primary Account]]=4098200,\"SCHMAP\",IF(tblSchMJune19[[#This Row],[Primary Account]]=4098300,\"SCHMAT\",IF(tblSchMJune19[[#This Row],[Primary Account]]=4099200,\"SCHMDP\",IF(tblSchMJune19[[#This Row],[Primary Account]]=4099300,\"SCHMDT\"))))","v":"SCHMDT"},"415878","REG ASSET - UT LIQUIDATED DAMAGES NAUGHT","UT",-35,{"$f":"IF(OR(tblSchMJune19[[#This Row],[Alloc]]=\"IDU\",tblSchMJune19[[#This Row],[Alloc]]=\"OR\",tblSchMJune19[[#This Row],[Alloc]]=\"UT\",tblSchMJune19[[#This Row],[Alloc]]=\"WYU\",tblSchMJune19[[#This Row],[Alloc]]=\"WYP\",tblSchMJune19[[#This Row],[Alloc]]=\"CA\",tblSchMJune19[[#This Row],[Alloc]]=\"WA\"),\"SITUS\",tblSchMJune19[[#This Row],[Alloc]])","v":"SITUS"},{"$f":"INDEX(tblSchMLookup[FUNC],MATCH(tblSchMJune19[[#This Row],[Concat]],tblSchMLookup[Concat],0))","v":"P"},{"$f":"IF(tblSchMJune19[[#This Row],[Total ($000)]]=0,\"NO\",IF(ISNA(tblSchMJune19[[#This Row],[FUNC]]),\"YES\",IF(_xlfn.ISFORMULA(tblSchMJune19[[#This Row],[FUNC]]),\"NO\",\"YES\")))","v":"NO"}]
[{"$f":"CONCATENATE(tblSchMJune19[[#This Row],[Primary Account]],tblSchMJune19[[#This Row],[Primary Name]],tblSchMJune19[[#This Row],[Secondary Acct]],tblSchMJune19[[#This Row],[Secondary  Name]],tblSchMJune19[[#This Row],[Alloc4FUNC]])","v":"4099300SCHMDT415879Reg Asset - WY Liquidation Damages N2SITUS"},4099300,{"$f":"IF(tblSchMJune19[[#This Row],[Primary Account]]=4098200,\"SCHMAP\",IF(tblSchMJune19[[#This Row],[Primary Account]]=4098300,\"SCHMAT\",IF(tblSchMJune19[[#This Row],[Primary Account]]=4099200,\"SCHMDP\",IF(tblSchMJune19[[#This Row],[Primary Account]]=4099300,\"SCHMDT\"))))","v":"SCHMDT"},"415879","Reg Asset - WY Liquidation Damages N2","WYP",-5.7080000000000002,{"$f":"IF(OR(tblSchMJune19[[#This Row],[Alloc]]=\"IDU\",tblSchMJune19[[#This Row],[Alloc]]=\"OR\",tblSchMJune19[[#This Row],[Alloc]]=\"UT\",tblSchMJune19[[#This Row],[Alloc]]=\"WYU\",tblSchMJune19[[#This Row],[Alloc]]=\"WYP\",tblSchMJune19[[#This Row],[Alloc]]=\"CA\",tblSchMJune19[[#This Row],[Alloc]]=\"WA\"),\"SITUS\",tblSchMJune19[[#This Row],[Alloc]])","v":"SITUS"},{"$f":"INDEX(tblSchMLookup[FUNC],MATCH(tblSchMJune19[[#This Row],[Concat]],tblSchMLookup[Concat],0))","v":"P"},{"$f":"IF(tblSchMJune19[[#This Row],[Total ($000)]]=0,\"NO\",IF(ISNA(tblSchMJune19[[#This Row],[FUNC]]),\"YES\",IF(_xlfn.ISFORMULA(tblSchMJune19[[#This Row],[FUNC]]),\"NO\",\"YES\")))","v":"NO"}]
[{"$f":"CONCATENATE(tblSchMJune19[[#This Row],[Primary Account]],tblSchMJune19[[#This Row],[Primary Name]],tblSchMJune19[[#This Row],[Secondary Acct]],tblSchMJune19[[#This Row],[Secondary  Name]],tblSchMJune19[[#This Row],[Alloc4FUNC]])","v":"4099300SCHMDT415882Deferral of Renewable Energy Credit - WAOTHER"},4099300,{"$f":"IF(tblSchMJune19[[#This Row],[Primary Account]]=4098200,\"SCHMAP\",IF(tblSchMJune19[[#This Row],[Primary Account]]=4098300,\"SCHMAT\",IF(tblSchMJune19[[#This Row],[Primary Account]]=4099200,\"SCHMDP\",IF(tblSchMJune19[[#This Row],[Primary Account]]=4099300,\"SCHMDT\"))))","v":"SCHMDT"},"415882","Deferral of Renewable Energy Credit - WA","OTHER",-21.145320000000002,{"$f":"IF(OR(tblSchMJune19[[#This Row],[Alloc]]=\"IDU\",tblSchMJune19[[#This Row],[Alloc]]=\"OR\",tblSchMJune19[[#This Row],[Alloc]]=\"UT\",tblSchMJune19[[#This Row],[Alloc]]=\"WYU\",tblSchMJune19[[#This Row],[Alloc]]=\"WYP\",tblSchMJune19[[#This Row],[Alloc]]=\"CA\",tblSchMJune19[[#This Row],[Alloc]]=\"WA\"),\"SITUS\",tblSchMJune19[[#This Row],[Alloc]])","v":"OTHER"},{"$f":"INDEX(tblSchMLookup[FUNC],MATCH(tblSchMJune19[[#This Row],[Concat]],tblSchMLookup[Concat],0))","v":"P"},{"$f":"IF(tblSchMJune19[[#This Row],[Total ($000)]]=0,\"NO\",IF(ISNA(tblSchMJune19[[#This Row],[FUNC]]),\"YES\",IF(_xlfn.ISFORMULA(tblSchMJune19[[#This Row],[FUNC]]),\"NO\",\"YES\")))","v":"NO"}]
[{"$f":"CONCATENATE(tblSchMJune19[[#This Row],[Primary Account]],tblSchMJune19[[#This Row],[Primary Name]],tblSchMJune19[[#This Row],[Secondary Acct]],tblSchMJune19[[#This Row],[Secondary  Name]],tblSchMJune19[[#This Row],[Alloc4FUNC]])","v":"4099300SCHMDT415884Reg Asset - Current Reclass - OtherOTHER"},4099300,{"$f":"IF(tblSchMJune19[[#This Row],[Primary Account]]=4098200,\"SCHMAP\",IF(tblSchMJune19[[#This Row],[Primary Account]]=4098300,\"SCHMAT\",IF(tblSchMJune19[[#This Row],[Primary Account]]=4099200,\"SCHMDP\",IF(tblSchMJune19[[#This Row],[Primary Account]]=4099300,\"SCHMDT\"))))","v":"SCHMDT"},"415884","Reg Asset - Current Reclass - Other","OTHER",null,{"$f":"IF(OR(tblSchMJune19[[#This Row],[Alloc]]=\"IDU\",tblSchMJune19[[#This Row],[Alloc]]=\"OR\",tblSchMJune19[[#This Row],[Alloc]]=\"UT\",tblSchMJune19[[#This Row],[Alloc]]=\"WYU\",tblSchMJune19[[#This Row],[Alloc]]=\"WYP\",tblSchMJune19[[#This Row],[Alloc]]=\"CA\",tblSchMJune19[[#This Row],[Alloc]]=\"WA\"),\"SITUS\",tblSchMJune19[[#This Row],[Alloc]])","v":"OTHER"},{"$f":"INDEX(tblSchMLookup[FUNC],MATCH(tblSchMJune19[[#This Row],[Concat]],tblSchMLookup[Concat],0))","v":{"$error":"#N/A"}},{"$f":"IF(tblSchMJune19[[#This Row],[Total ($000)]]=0,\"NO\",IF(ISNA(tblSchMJune19[[#This Row],[FUNC]]),\"YES\",IF(_xlfn.ISFORMULA(tblSchMJune19[[#This Row],[FUNC]]),\"NO\",\"YES\")))","v":"NO"}]
[{"$f":"CONCATENATE(tblSchMJune19[[#This Row],[Primary Account]],tblSchMJune19[[#This Row],[Primary Name]],tblSchMJune19[[#This Row],[Secondary Acct]],tblSchMJune19[[#This Row],[Secondary  Name]],tblSchMJune19[[#This Row],[Alloc4FUNC]])","v":"4099300SCHMDT415885Reg Asset - Noncurrent Reclass - OtherOTHER"},4099300,{"$f":"IF(tblSchMJune19[[#This Row],[Primary Account]]=4098200,\"SCHMAP\",IF(tblSchMJune19[[#This Row],[Primary Account]]=4098300,\"SCHMAT\",IF(tblSchMJune19[[#This Row],[Primary Account]]=4099200,\"SCHMDP\",IF(tblSchMJune19[[#This Row],[Primary Account]]=4099300,\"SCHMDT\"))))","v":"SCHMDT"},"415885","Reg Asset - Noncurrent Reclass - Other","OTHER",-14.974,{"$f":"IF(OR(tblSchMJune19[[#This Row],[Alloc]]=\"IDU\",tblSchMJune19[[#This Row],[Alloc]]=\"OR\",tblSchMJune19[[#This Row],[Alloc]]=\"UT\",tblSchMJune19[[#This Row],[Alloc]]=\"WYU\",tblSchMJune19[[#This Row],[Alloc]]=\"WYP\",tblSchMJune19[[#This Row],[Alloc]]=\"CA\",tblSchMJune19[[#This Row],[Alloc]]=\"WA\"),\"SITUS\",tblSchMJune19[[#This Row],[Alloc]])","v":"OTHER"},{"$f":"INDEX(tblSchMLookup[FUNC],MATCH(tblSchMJune19[[#This Row],[Concat]],tblSchMLookup[Concat],0))","v":"GP"},{"$f":"IF(tblSchMJune19[[#This Row],[Total ($000)]]=0,\"NO\",IF(ISNA(tblSchMJune19[[#This Row],[FUNC]]),\"YES\",IF(_xlfn.ISFORMULA(tblSchMJune19[[#This Row],[FUNC]]),\"NO\",\"YES\")))","v":"NO"}]
[{"$f":"CONCATENATE(tblSchMJune19[[#This Row],[Primary Account]],tblSchMJune19[[#This Row],[Primary Name]],tblSchMJune19[[#This Row],[Secondary Acct]],tblSchMJune19[[#This Row],[Secondary  Name]],tblSchMJune19[[#This Row],[Alloc4FUNC]])","v":"4099300SCHMDT415886Reg Asset - ID Deferred Excess Net PowerOTHER"},4099300,{"$f":"IF(tblSchMJune19[[#This Row],[Primary Account]]=4098200,\"SCHMAP\",IF(tblSchMJune19[[#This Row],[Primary Account]]=4098300,\"SCHMAT\",IF(tblSchMJune19[[#This Row],[Primary Account]]=4099200,\"SCHMDP\",IF(tblSchMJune19[[#This Row],[Primary Account]]=4099300,\"SCHMDT\"))))","v":"SCHMDT"},"415886","Reg Asset - ID Deferred Excess Net Power","OTHER",null,{"$f":"IF(OR(tblSchMJune19[[#This Row],[Alloc]]=\"IDU\",tblSchMJune19[[#This Row],[Alloc]]=\"OR\",tblSchMJune19[[#This Row],[Alloc]]=\"UT\",tblSchMJune19[[#This Row],[Alloc]]=\"WYU\",tblSchMJune19[[#This Row],[Alloc]]=\"WYP\",tblSchMJune19[[#This Row],[Alloc]]=\"CA\",tblSchMJune19[[#This Row],[Alloc]]=\"WA\"),\"SITUS\",tblSchMJune19[[#This Row],[Alloc]])","v":"OTHER"},{"$f":"INDEX(tblSchMLookup[FUNC],MATCH(tblSchMJune19[[#This Row],[Concat]],tblSchMLookup[Concat],0))","v":{"$error":"#N/A"}},{"$f":"IF(tblSchMJune19[[#This Row],[Total ($000)]]=0,\"NO\",IF(ISNA(tblSchMJune19[[#This Row],[FUNC]]),\"YES\",IF(_xlfn.ISFORMULA(tblSchMJune19[[#This Row],[FUNC]]),\"NO\",\"YES\")))","v":"NO"}]
[{"$f":"CONCATENATE(tblSchMJune19[[#This Row],[Primary Account]],tblSchMJune19[[#This Row],[Primary Name]],tblSchMJune19[[#This Row],[Secondary Acct]],tblSchMJune19[[#This Row],[Secondary  Name]],tblSchMJune19[[#This Row],[Alloc4FUNC]])","v":"4099300SCHMDT415888Reg Asset - UT Deferred Excess Net PowerOTHER"},4099300,{"$f":"IF(tblSchMJune19[[#This Row],[Primary Account]]=4098200,\"SCHMAP\",IF(tblSchMJune19[[#This Row],[Primary Account]]=4098300,\"SCHMAT\",IF(tblSchMJune19[[#This Row],[Primary Account]]=4099200,\"SCHMDP\",IF(tblSchMJune19[[#This Row],[Primary Account]]=4099300,\"SCHMDT\"))))","v":"SCHMDT"},"415888","Reg Asset - UT Deferred Excess Net Power","OTHER",null,{"$f":"IF(OR(tblSchMJune19[[#This Row],[Alloc]]=\"IDU\",tblSchMJune19[[#This Row],[Alloc]]=\"OR\",tblSchMJune19[[#This Row],[Alloc]]=\"UT\",tblSchMJune19[[#This Row],[Alloc]]=\"WYU\",tblSchMJune19[[#This Row],[Alloc]]=\"WYP\",tblSchMJune19[[#This Row],[Alloc]]=\"CA\",tblSchMJune19[[#This Row],[Alloc]]=\"WA\"),\"SITUS\",tblSchMJune19[[#This Row],[Alloc]])","v":"OTHER"},{"$f":"INDEX(tblSchMLookup[FUNC],MATCH(tblSchMJune19[[#This Row],[Concat]],tblSchMLookup[Concat],0))","v":{"$error":"#N/A"}},{"$f":"IF(tblSchMJune19[[#This Row],[Total ($000)]]=0,\"NO\",IF(ISNA(tblSchMJune19[[#This Row],[FUNC]]),\"YES\",IF(_xlfn.ISFORMULA(tblSchMJune19[[#This Row],[FUNC]]),\"NO\",\"YES\")))","v":"NO"}]
[{"$f":"CONCATENATE(tblSchMJune19[[#This Row],[Primary Account]],tblSchMJune19[[#This Row],[Primary Name]],tblSchMJune19[[#This Row],[Secondary Acct]],tblSchMJune19[[#This Row],[Secondary  Name]],tblSchMJune19[[#This Row],[Alloc4FUNC]])","v":"4099300SCHMDT415892Deferred Excess Net Power Costs - ID 09OTHER"},4099300,{"$f":"IF(tblSchMJune19[[#This Row],[Primary Account]]=4098200,\"SCHMAP\",IF(tblSchMJune19[[#This Row],[Primary Account]]=4098300,\"SCHMAT\",IF(tblSchMJune19[[#This Row],[Primary Account]]=4099200,\"SCHMDP\",IF(tblSchMJune19[[#This Row],[Primary Account]]=4099300,\"SCHMDT\"))))","v":"SCHMDT"},"415892","Deferred Excess Net Power Costs - ID 09","OTHER",12033.264789999999,{"$f":"IF(OR(tblSchMJune19[[#This Row],[Alloc]]=\"IDU\",tblSchMJune19[[#This Row],[Alloc]]=\"OR\",tblSchMJune19[[#This Row],[Alloc]]=\"UT\",tblSchMJune19[[#This Row],[Alloc]]=\"WYU\",tblSchMJune19[[#This Row],[Alloc]]=\"WYP\",tblSchMJune19[[#This Row],[Alloc]]=\"CA\",tblSchMJune19[[#This Row],[Alloc]]=\"WA\"),\"SITUS\",tblSchMJune19[[#This Row],[Alloc]])","v":"OTHER"},{"$f":"INDEX(tblSchMLookup[FUNC],MATCH(tblSchMJune19[[#This Row],[Concat]],tblSchMLookup[Concat],0))","v":"P"},{"$f":"IF(tblSchMJune19[[#This Row],[Total ($000)]]=0,\"NO\",IF(ISNA(tblSchMJune19[[#This Row],[FUNC]]),\"YES\",IF(_xlfn.ISFORMULA(tblSchMJune19[[#This Row],[FUNC]]),\"NO\",\"YES\")))","v":"NO"}]
[{"$f":"CONCATENATE(tblSchMJune19[[#This Row],[Primary Account]],tblSchMJune19[[#This Row],[Primary Name]],tblSchMJune19[[#This Row],[Secondary Acct]],tblSchMJune19[[#This Row],[Secondary  Name]],tblSchMJune19[[#This Row],[Alloc4FUNC]])","v":"4099300SCHMDT415893OR - MEHC Transition Service CostsOTHER"},4099300,{"$f":"IF(tblSchMJune19[[#This Row],[Primary Account]]=4098200,\"SCHMAP\",IF(tblSchMJune19[[#This Row],[Primary Account]]=4098300,\"SCHMAT\",IF(tblSchMJune19[[#This Row],[Primary Account]]=4099200,\"SCHMDP\",IF(tblSchMJune19[[#This Row],[Primary Account]]=4099300,\"SCHMDT\"))))","v":"SCHMDT"},"415893","OR - MEHC Transition Service Costs","OTHER",null,{"$f":"IF(OR(tblSchMJune19[[#This Row],[Alloc]]=\"IDU\",tblSchMJune19[[#This Row],[Alloc]]=\"OR\",tblSchMJune19[[#This Row],[Alloc]]=\"UT\",tblSchMJune19[[#This Row],[Alloc]]=\"WYU\",tblSchMJune19[[#This Row],[Alloc]]=\"WYP\",tblSchMJune19[[#This Row],[Alloc]]=\"CA\",tblSchMJune19[[#This Row],[Alloc]]=\"WA\"),\"SITUS\",tblSchMJune19[[#This Row],[Alloc]])","v":"OTHER"},{"$f":"INDEX(tblSchMLookup[FUNC],MATCH(tblSchMJune19[[#This Row],[Concat]],tblSchMLookup[Concat],0))","v":{"$error":"#N/A"}},{"$f":"IF(tblSchMJune19[[#This Row],[Total ($000)]]=0,\"NO\",IF(ISNA(tblSchMJune19[[#This Row],[FUNC]]),\"YES\",IF(_xlfn.ISFORMULA(tblSchMJune19[[#This Row],[FUNC]]),\"NO\",\"YES\")))","v":"NO"}]
[{"$f":"CONCATENATE(tblSchMJune19[[#This Row],[Primary Account]],tblSchMJune19[[#This Row],[Primary Name]],tblSchMJune19[[#This Row],[Secondary Acct]],tblSchMJune19[[#This Row],[Secondary  Name]],tblSchMJune19[[#This Row],[Alloc4FUNC]])","v":"4099300SCHMDT415894Reg Asset - REC Sales Deferral - CA - NoOTHER"},4099300,{"$f":"IF(tblSchMJune19[[#This Row],[Primary Account]]=4098200,\"SCHMAP\",IF(tblSchMJune19[[#This Row],[Primary Account]]=4098300,\"SCHMAT\",IF(tblSchMJune19[[#This Row],[Primary Account]]=4099200,\"SCHMDP\",IF(tblSchMJune19[[#This Row],[Primary Account]]=4099300,\"SCHMDT\"))))","v":"SCHMDT"},"415894","Reg Asset - REC Sales Deferral - CA - No","OTHER",null,{"$f":"IF(OR(tblSchMJune19[[#This Row],[Alloc]]=\"IDU\",tblSchMJune19[[#This Row],[Alloc]]=\"OR\",tblSchMJune19[[#This Row],[Alloc]]=\"UT\",tblSchMJune19[[#This Row],[Alloc]]=\"WYU\",tblSchMJune19[[#This Row],[Alloc]]=\"WYP\",tblSchMJune19[[#This Row],[Alloc]]=\"CA\",tblSchMJune19[[#This Row],[Alloc]]=\"WA\"),\"SITUS\",tblSchMJune19[[#This Row],[Alloc]])","v":"OTHER"},{"$f":"INDEX(tblSchMLookup[FUNC],MATCH(tblSchMJune19[[#This Row],[Concat]],tblSchMLookup[Concat],0))","v":"P"},{"$f":"IF(tblSchMJune19[[#This Row],[Total ($000)]]=0,\"NO\",IF(ISNA(tblSchMJune19[[#This Row],[FUNC]]),\"YES\",IF(_xlfn.ISFORMULA(tblSchMJune19[[#This Row],[FUNC]]),\"NO\",\"YES\")))","v":"NO"}]
[{"$f":"CONCATENATE(tblSchMJune19[[#This Row],[Primary Account]],tblSchMJune19[[#This Row],[Primary Name]],tblSchMJune19[[#This Row],[Secondary Acct]],tblSchMJune19[[#This Row],[Secondary  Name]],tblSchMJune19[[#This Row],[Alloc4FUNC]])","v":"4099300SCHMDT415896WA - Chehalis Plant Revenue RequirementSITUS"},4099300,{"$f":"IF(tblSchMJune19[[#This Row],[Primary Account]]=4098200,\"SCHMAP\",IF(tblSchMJune19[[#This Row],[Primary Account]]=4098300,\"SCHMAT\",IF(tblSchMJune19[[#This Row],[Primary Account]]=4099200,\"SCHMDP\",IF(tblSchMJune19[[#This Row],[Primary Account]]=4099300,\"SCHMDT\"))))","v":"SCHMDT"},"415896","WA - Chehalis Plant Revenue Requirement","WA",null,{"$f":"IF(OR(tblSchMJune19[[#This Row],[Alloc]]=\"IDU\",tblSchMJune19[[#This Row],[Alloc]]=\"OR\",tblSchMJune19[[#This Row],[Alloc]]=\"UT\",tblSchMJune19[[#This Row],[Alloc]]=\"WYU\",tblSchMJune19[[#This Row],[Alloc]]=\"WYP\",tblSchMJune19[[#This Row],[Alloc]]=\"CA\",tblSchMJune19[[#This Row],[Alloc]]=\"WA\"),\"SITUS\",tblSchMJune19[[#This Row],[Alloc]])","v":"SITUS"},{"$f":"INDEX(tblSchMLookup[FUNC],MATCH(tblSchMJune19[[#This Row],[Concat]],tblSchMLookup[Concat],0))","v":{"$error":"#N/A"}},{"$f":"IF(tblSchMJune19[[#This Row],[Total ($000)]]=0,\"NO\",IF(ISNA(tblSchMJune19[[#This Row],[FUNC]]),\"YES\",IF(_xlfn.ISFORMULA(tblSchMJune19[[#This Row],[FUNC]]),\"NO\",\"YES\")))","v":"NO"}]
[{"$f":"CONCATENATE(tblSchMJune19[[#This Row],[Primary Account]],tblSchMJune19[[#This Row],[Primary Name]],tblSchMJune19[[#This Row],[Secondary Acct]],tblSchMJune19[[#This Row],[Secondary  Name]],tblSchMJune19[[#This Row],[Alloc4FUNC]])","v":"4099300SCHMDT415897Reg Asset MEHC Transition Service CostsSITUS"},4099300,{"$f":"IF(tblSchMJune19[[#This Row],[Primary Account]]=4098200,\"SCHMAP\",IF(tblSchMJune19[[#This Row],[Primary Account]]=4098300,\"SCHMAT\",IF(tblSchMJune19[[#This Row],[Primary Account]]=4099200,\"SCHMDP\",IF(tblSchMJune19[[#This Row],[Primary Account]]=4099300,\"SCHMDT\"))))","v":"SCHMDT"},"415897","Reg Asset MEHC Transition Service Costs","CA",null,{"$f":"IF(OR(tblSchMJune19[[#This Row],[Alloc]]=\"IDU\",tblSchMJune19[[#This Row],[Alloc]]=\"OR\",tblSchMJune19[[#This Row],[Alloc]]=\"UT\",tblSchMJune19[[#This Row],[Alloc]]=\"WYU\",tblSchMJune19[[#This Row],[Alloc]]=\"WYP\",tblSchMJune19[[#This Row],[Alloc]]=\"CA\",tblSchMJune19[[#This Row],[Alloc]]=\"WA\"),\"SITUS\",tblSchMJune19[[#This Row],[Alloc]])","v":"SITUS"},{"$f":"INDEX(tblSchMLookup[FUNC],MATCH(tblSchMJune19[[#This Row],[Concat]],tblSchMLookup[Concat],0))","v":{"$error":"#N/A"}},{"$f":"IF(tblSchMJune19[[#This Row],[Total ($000)]]=0,\"NO\",IF(ISNA(tblSchMJune19[[#This Row],[FUNC]]),\"YES\",IF(_xlfn.ISFORMULA(tblSchMJune19[[#This Row],[FUNC]]),\"NO\",\"YES\")))","v":"NO"}]
[{"$f":"CONCATENATE(tblSchMJune19[[#This Row],[Primary Account]],tblSchMJune19[[#This Row],[Primary Name]],tblSchMJune19[[#This Row],[Secondary Acct]],tblSchMJune19[[#This Row],[Secondary  Name]],tblSchMJune19[[#This Row],[Alloc4FUNC]])","v":"4099300SCHMDT415898Deferred Coal Costs - Naughton ContractSE"},4099300,{"$f":"IF(tblSchMJune19[[#This Row],[Primary Account]]=4098200,\"SCHMAP\",IF(tblSchMJune19[[#This Row],[Primary Account]]=4098300,\"SCHMAT\",IF(tblSchMJune19[[#This Row],[Primary Account]]=4099200,\"SCHMDP\",IF(tblSchMJune19[[#This Row],[Primary Account]]=4099300,\"SCHMDT\"))))","v":"SCHMDT"},"415898","Deferred Coal Costs - Naughton Contract","SE",null,{"$f":"IF(OR(tblSchMJune19[[#This Row],[Alloc]]=\"IDU\",tblSchMJune19[[#This Row],[Alloc]]=\"OR\",tblSchMJune19[[#This Row],[Alloc]]=\"UT\",tblSchMJune19[[#This Row],[Alloc]]=\"WYU\",tblSchMJune19[[#This Row],[Alloc]]=\"WYP\",tblSchMJune19[[#This Row],[Alloc]]=\"CA\",tblSchMJune19[[#This Row],[Alloc]]=\"WA\"),\"SITUS\",tblSchMJune19[[#This Row],[Alloc]])","v":"SE"},{"$f":"INDEX(tblSchMLookup[FUNC],MATCH(tblSchMJune19[[#This Row],[Concat]],tblSchMLookup[Concat],0))","v":{"$error":"#N/A"}},{"$f":"IF(tblSchMJune19[[#This Row],[Total ($000)]]=0,\"NO\",IF(ISNA(tblSchMJune19[[#This Row],[FUNC]]),\"YES\",IF(_xlfn.ISFORMULA(tblSchMJune19[[#This Row],[FUNC]]),\"NO\",\"YES\")))","v":"NO"}]
[{"$f":"CONCATENATE(tblSchMJune19[[#This Row],[Primary Account]],tblSchMJune19[[#This Row],[Primary Name]],tblSchMJune19[[#This Row],[Secondary Acct]],tblSchMJune19[[#This Row],[Secondary  Name]],tblSchMJune19[[#This Row],[Alloc4FUNC]])","v":"4099300SCHMDT415900OR SB 408 RecoveryOTHER"},4099300,{"$f":"IF(tblSchMJune19[[#This Row],[Primary Account]]=4098200,\"SCHMAP\",IF(tblSchMJune19[[#This Row],[Primary Account]]=4098300,\"SCHMAT\",IF(tblSchMJune19[[#This Row],[Primary Account]]=4099200,\"SCHMDP\",IF(tblSchMJune19[[#This Row],[Primary Account]]=4099300,\"SCHMDT\"))))","v":"SCHMDT"},"415900","OR SB 408 Recovery","OTHER",null,{"$f":"IF(OR(tblSchMJune19[[#This Row],[Alloc]]=\"IDU\",tblSchMJune19[[#This Row],[Alloc]]=\"OR\",tblSchMJune19[[#This Row],[Alloc]]=\"UT\",tblSchMJune19[[#This Row],[Alloc]]=\"WYU\",tblSchMJune19[[#This Row],[Alloc]]=\"WYP\",tblSchMJune19[[#This Row],[Alloc]]=\"CA\",tblSchMJune19[[#This Row],[Alloc]]=\"WA\"),\"SITUS\",tblSchMJune19[[#This Row],[Alloc]])","v":"OTHER"},{"$f":"INDEX(tblSchMLookup[FUNC],MATCH(tblSchMJune19[[#This Row],[Concat]],tblSchMLookup[Concat],0))","v":{"$error":"#N/A"}},{"$f":"IF(tblSchMJune19[[#This Row],[Total ($000)]]=0,\"NO\",IF(ISNA(tblSchMJune19[[#This Row],[FUNC]]),\"YES\",IF(_xlfn.ISFORMULA(tblSchMJune19[[#This Row],[FUNC]]),\"NO\",\"YES\")))","v":"NO"}]
[{"$f":"CONCATENATE(tblSchMJune19[[#This Row],[Primary Account]],tblSchMJune19[[#This Row],[Primary Name]],tblSchMJune19[[#This Row],[Secondary Acct]],tblSchMJune19[[#This Row],[Secondary  Name]],tblSchMJune19[[#This Row],[Alloc4FUNC]])","v":"4099300SCHMDT415901Reg Asset - WY Deferred Excess Net PowerOTHER"},4099300,{"$f":"IF(tblSchMJune19[[#This Row],[Primary Account]]=4098200,\"SCHMAP\",IF(tblSchMJune19[[#This Row],[Primary Account]]=4098300,\"SCHMAT\",IF(tblSchMJune19[[#This Row],[Primary Account]]=4099200,\"SCHMDP\",IF(tblSchMJune19[[#This Row],[Primary Account]]=4099300,\"SCHMDT\"))))","v":"SCHMDT"},"415901","Reg Asset - WY Deferred Excess Net Power","OTHER",null,{"$f":"IF(OR(tblSchMJune19[[#This Row],[Alloc]]=\"IDU\",tblSchMJune19[[#This Row],[Alloc]]=\"OR\",tblSchMJune19[[#This Row],[Alloc]]=\"UT\",tblSchMJune19[[#This Row],[Alloc]]=\"WYU\",tblSchMJune19[[#This Row],[Alloc]]=\"WYP\",tblSchMJune19[[#This Row],[Alloc]]=\"CA\",tblSchMJune19[[#This Row],[Alloc]]=\"WA\"),\"SITUS\",tblSchMJune19[[#This Row],[Alloc]])","v":"OTHER"},{"$f":"INDEX(tblSchMLookup[FUNC],MATCH(tblSchMJune19[[#This Row],[Concat]],tblSchMLookup[Concat],0))","v":{"$error":"#N/A"}},{"$f":"IF(tblSchMJune19[[#This Row],[Total ($000)]]=0,\"NO\",IF(ISNA(tblSchMJune19[[#This Row],[FUNC]]),\"YES\",IF(_xlfn.ISFORMULA(tblSchMJune19[[#This Row],[FUNC]]),\"NO\",\"YES\")))","v":"NO"}]
[{"$f":"CONCATENATE(tblSchMJune19[[#This Row],[Primary Account]],tblSchMJune19[[#This Row],[Primary Name]],tblSchMJune19[[#This Row],[Secondary Acct]],tblSchMJune19[[#This Row],[Secondary  Name]],tblSchMJune19[[#This Row],[Alloc4FUNC]])","v":"4099300SCHMDT415903Reg Asset _ REC Sales Deferral - WAOTHER"},4099300,{"$f":"IF(tblSchMJune19[[#This Row],[Primary Account]]=4098200,\"SCHMAP\",IF(tblSchMJune19[[#This Row],[Primary Account]]=4098300,\"SCHMAT\",IF(tblSchMJune19[[#This Row],[Primary Account]]=4099200,\"SCHMDP\",IF(tblSchMJune19[[#This Row],[Primary Account]]=4099300,\"SCHMDT\"))))","v":"SCHMDT"},"415903","Reg Asset _ REC Sales Deferral - WA","OTHER",null,{"$f":"IF(OR(tblSchMJune19[[#This Row],[Alloc]]=\"IDU\",tblSchMJune19[[#This Row],[Alloc]]=\"OR\",tblSchMJune19[[#This Row],[Alloc]]=\"UT\",tblSchMJune19[[#This Row],[Alloc]]=\"WYU\",tblSchMJune19[[#This Row],[Alloc]]=\"WYP\",tblSchMJune19[[#This Row],[Alloc]]=\"CA\",tblSchMJune19[[#This Row],[Alloc]]=\"WA\"),\"SITUS\",tblSchMJune19[[#This Row],[Alloc]])","v":"OTHER"},{"$f":"INDEX(tblSchMLookup[FUNC],MATCH(tblSchMJune19[[#This Row],[Concat]],tblSchMLookup[Concat],0))","v":{"$error":"#N/A"}},{"$f":"IF(tblSchMJune19[[#This Row],[Total ($000)]]=0,\"NO\",IF(ISNA(tblSchMJune19[[#This Row],[FUNC]]),\"YES\",IF(_xlfn.ISFORMULA(tblSchMJune19[[#This Row],[FUNC]]),\"NO\",\"YES\")))","v":"NO"}]
[{"$f":"CONCATENATE(tblSchMJune19[[#This Row],[Primary Account]],tblSchMJune19[[#This Row],[Primary Name]],tblSchMJune19[[#This Row],[Secondary Acct]],tblSchMJune19[[#This Row],[Secondary  Name]],tblSchMJune19[[#This Row],[Alloc4FUNC]])","v":"4099300SCHMDT415904Reg Asset - WY REC's in Rates - CurrentOTHER"},4099300,{"$f":"IF(tblSchMJune19[[#This Row],[Primary Account]]=4098200,\"SCHMAP\",IF(tblSchMJune19[[#This Row],[Primary Account]]=4098300,\"SCHMAT\",IF(tblSchMJune19[[#This Row],[Primary Account]]=4099200,\"SCHMDP\",IF(tblSchMJune19[[#This Row],[Primary Account]]=4099300,\"SCHMDT\"))))","v":"SCHMDT"},"415904","Reg Asset - WY REC's in Rates - Current","OTHER",null,{"$f":"IF(OR(tblSchMJune19[[#This Row],[Alloc]]=\"IDU\",tblSchMJune19[[#This Row],[Alloc]]=\"OR\",tblSchMJune19[[#This Row],[Alloc]]=\"UT\",tblSchMJune19[[#This Row],[Alloc]]=\"WYU\",tblSchMJune19[[#This Row],[Alloc]]=\"WYP\",tblSchMJune19[[#This Row],[Alloc]]=\"CA\",tblSchMJune19[[#This Row],[Alloc]]=\"WA\"),\"SITUS\",tblSchMJune19[[#This Row],[Alloc]])","v":"OTHER"},{"$f":"INDEX(tblSchMLookup[FUNC],MATCH(tblSchMJune19[[#This Row],[Concat]],tblSchMLookup[Concat],0))","v":{"$error":"#N/A"}},{"$f":"IF(tblSchMJune19[[#This Row],[Total ($000)]]=0,\"NO\",IF(ISNA(tblSchMJune19[[#This Row],[FUNC]]),\"YES\",IF(_xlfn.ISFORMULA(tblSchMJune19[[#This Row],[FUNC]]),\"NO\",\"YES\")))","v":"NO"}]
[{"$f":"CONCATENATE(tblSchMJune19[[#This Row],[Primary Account]],tblSchMJune19[[#This Row],[Primary Name]],tblSchMJune19[[#This Row],[Secondary Acct]],tblSchMJune19[[#This Row],[Secondary  Name]],tblSchMJune19[[#This Row],[Alloc4FUNC]])","v":"4099300SCHMDT415905Reg Asset - OR REC's in Rates - CurrentOTHER"},4099300,{"$f":"IF(tblSchMJune19[[#This Row],[Primary Account]]=4098200,\"SCHMAP\",IF(tblSchMJune19[[#This Row],[Primary Account]]=4098300,\"SCHMAT\",IF(tblSchMJune19[[#This Row],[Primary Account]]=4099200,\"SCHMDP\",IF(tblSchMJune19[[#This Row],[Primary Account]]=4099300,\"SCHMDT\"))))","v":"SCHMDT"},"415905","Reg Asset - OR REC's in Rates - Current","OTHER",null,{"$f":"IF(OR(tblSchMJune19[[#This Row],[Alloc]]=\"IDU\",tblSchMJune19[[#This Row],[Alloc]]=\"OR\",tblSchMJune19[[#This Row],[Alloc]]=\"UT\",tblSchMJune19[[#This Row],[Alloc]]=\"WYU\",tblSchMJune19[[#This Row],[Alloc]]=\"WYP\",tblSchMJune19[[#This Row],[Alloc]]=\"CA\",tblSchMJune19[[#This Row],[Alloc]]=\"WA\"),\"SITUS\",tblSchMJune19[[#This Row],[Alloc]])","v":"OTHER"},{"$f":"INDEX(tblSchMLookup[FUNC],MATCH(tblSchMJune19[[#This Row],[Concat]],tblSchMLookup[Concat],0))","v":{"$error":"#N/A"}},{"$f":"IF(tblSchMJune19[[#This Row],[Total ($000)]]=0,\"NO\",IF(ISNA(tblSchMJune19[[#This Row],[FUNC]]),\"YES\",IF(_xlfn.ISFORMULA(tblSchMJune19[[#This Row],[FUNC]]),\"NO\",\"YES\")))","v":"NO"}]
[{"$f":"CONCATENATE(tblSchMJune19[[#This Row],[Primary Account]],tblSchMJune19[[#This Row],[Primary Name]],tblSchMJune19[[#This Row],[Secondary Acct]],tblSchMJune19[[#This Row],[Secondary  Name]],tblSchMJune19[[#This Row],[Alloc4FUNC]])","v":"4099300SCHMDT415906Reg Asset - REC Sales Deferral - OR - NoOTHER"},4099300,{"$f":"IF(tblSchMJune19[[#This Row],[Primary Account]]=4098200,\"SCHMAP\",IF(tblSchMJune19[[#This Row],[Primary Account]]=4098300,\"SCHMAT\",IF(tblSchMJune19[[#This Row],[Primary Account]]=4099200,\"SCHMDP\",IF(tblSchMJune19[[#This Row],[Primary Account]]=4099300,\"SCHMDT\"))))","v":"SCHMDT"},"415906","Reg Asset - REC Sales Deferral - OR - No","OTHER",-179.01544999999999,{"$f":"IF(OR(tblSchMJune19[[#This Row],[Alloc]]=\"IDU\",tblSchMJune19[[#This Row],[Alloc]]=\"OR\",tblSchMJune19[[#This Row],[Alloc]]=\"UT\",tblSchMJune19[[#This Row],[Alloc]]=\"WYU\",tblSchMJune19[[#This Row],[Alloc]]=\"WYP\",tblSchMJune19[[#This Row],[Alloc]]=\"CA\",tblSchMJune19[[#This Row],[Alloc]]=\"WA\"),\"SITUS\",tblSchMJune19[[#This Row],[Alloc]])","v":"OTHER"},{"$f":"INDEX(tblSchMLookup[FUNC],MATCH(tblSchMJune19[[#This Row],[Concat]],tblSchMLookup[Concat],0))","v":"P"},{"$f":"IF(tblSchMJune19[[#This Row],[Total ($000)]]=0,\"NO\",IF(ISNA(tblSchMJune19[[#This Row],[FUNC]]),\"YES\",IF(_xlfn.ISFORMULA(tblSchMJune19[[#This Row],[FUNC]]),\"NO\",\"YES\")))","v":"NO"}]
[{"$f":"CONCATENATE(tblSchMJune19[[#This Row],[Primary Account]],tblSchMJune19[[#This Row],[Primary Name]],tblSchMJune19[[#This Row],[Secondary Acct]],tblSchMJune19[[#This Row],[Secondary  Name]],tblSchMJune19[[#This Row],[Alloc4FUNC]])","v":"4099300SCHMDT415907Reg Asset - CA Solar Feed-in Tariff - CuOTHER"},4099300,{"$f":"IF(tblSchMJune19[[#This Row],[Primary Account]]=4098200,\"SCHMAP\",IF(tblSchMJune19[[#This Row],[Primary Account]]=4098300,\"SCHMAT\",IF(tblSchMJune19[[#This Row],[Primary Account]]=4099200,\"SCHMDP\",IF(tblSchMJune19[[#This Row],[Primary Account]]=4099300,\"SCHMDT\"))))","v":"SCHMDT"},"415907","Reg Asset - CA Solar Feed-in Tariff - Cu","OTHER",null,{"$f":"IF(OR(tblSchMJune19[[#This Row],[Alloc]]=\"IDU\",tblSchMJune19[[#This Row],[Alloc]]=\"OR\",tblSchMJune19[[#This Row],[Alloc]]=\"UT\",tblSchMJune19[[#This Row],[Alloc]]=\"WYU\",tblSchMJune19[[#This Row],[Alloc]]=\"WYP\",tblSchMJune19[[#This Row],[Alloc]]=\"CA\",tblSchMJune19[[#This Row],[Alloc]]=\"WA\"),\"SITUS\",tblSchMJune19[[#This Row],[Alloc]])","v":"OTHER"},{"$f":"INDEX(tblSchMLookup[FUNC],MATCH(tblSchMJune19[[#This Row],[Concat]],tblSchMLookup[Concat],0))","v":{"$error":"#N/A"}},{"$f":"IF(tblSchMJune19[[#This Row],[Total ($000)]]=0,\"NO\",IF(ISNA(tblSchMJune19[[#This Row],[FUNC]]),\"YES\",IF(_xlfn.ISFORMULA(tblSchMJune19[[#This Row],[FUNC]]),\"NO\",\"YES\")))","v":"NO"}]
[{"$f":"CONCATENATE(tblSchMJune19[[#This Row],[Primary Account]],tblSchMJune19[[#This Row],[Primary Name]],tblSchMJune19[[#This Row],[Secondary Acct]],tblSchMJune19[[#This Row],[Secondary  Name]],tblSchMJune19[[#This Row],[Alloc4FUNC]])","v":"4099300SCHMDT415908Reg Asset - OR Solar Feed-In Tariff - CuOTHER"},4099300,{"$f":"IF(tblSchMJune19[[#This Row],[Primary Account]]=4098200,\"SCHMAP\",IF(tblSchMJune19[[#This Row],[Primary Account]]=4098300,\"SCHMAT\",IF(tblSchMJune19[[#This Row],[Primary Account]]=4099200,\"SCHMDP\",IF(tblSchMJune19[[#This Row],[Primary Account]]=4099300,\"SCHMDT\"))))","v":"SCHMDT"},"415908","Reg Asset - OR Solar Feed-In Tariff - Cu","OTHER",null,{"$f":"IF(OR(tblSchMJune19[[#This Row],[Alloc]]=\"IDU\",tblSchMJune19[[#This Row],[Alloc]]=\"OR\",tblSchMJune19[[#This Row],[Alloc]]=\"UT\",tblSchMJune19[[#This Row],[Alloc]]=\"WYU\",tblSchMJune19[[#This Row],[Alloc]]=\"WYP\",tblSchMJune19[[#This Row],[Alloc]]=\"CA\",tblSchMJune19[[#This Row],[Alloc]]=\"WA\"),\"SITUS\",tblSchMJune19[[#This Row],[Alloc]])","v":"OTHER"},{"$f":"INDEX(tblSchMLookup[FUNC],MATCH(tblSchMJune19[[#This Row],[Concat]],tblSchMLookup[Concat],0))","v":{"$error":"#N/A"}},{"$f":"IF(tblSchMJune19[[#This Row],[Total ($000)]]=0,\"NO\",IF(ISNA(tblSchMJune19[[#This Row],[FUNC]]),\"YES\",IF(_xlfn.ISFORMULA(tblSchMJune19[[#This Row],[FUNC]]),\"NO\",\"YES\")))","v":"NO"}]
[{"$f":"CONCATENATE(tblSchMJune19[[#This Row],[Primary Account]],tblSchMJune19[[#This Row],[Primary Name]],tblSchMJune19[[#This Row],[Secondary Acct]],tblSchMJune19[[#This Row],[Secondary  Name]],tblSchMJune19[[#This Row],[Alloc4FUNC]])","v":"4099300SCHMDT415910Reg Asset - Naughton Unit #3 CostsOTHER"},4099300,{"$f":"IF(tblSchMJune19[[#This Row],[Primary Account]]=4098200,\"SCHMAP\",IF(tblSchMJune19[[#This Row],[Primary Account]]=4098300,\"SCHMAT\",IF(tblSchMJune19[[#This Row],[Primary Account]]=4099200,\"SCHMDP\",IF(tblSchMJune19[[#This Row],[Primary Account]]=4099300,\"SCHMDT\"))))","v":"SCHMDT"},"415910","Reg Asset - Naughton Unit #3 Costs","OTHER",null,{"$f":"IF(OR(tblSchMJune19[[#This Row],[Alloc]]=\"IDU\",tblSchMJune19[[#This Row],[Alloc]]=\"OR\",tblSchMJune19[[#This Row],[Alloc]]=\"UT\",tblSchMJune19[[#This Row],[Alloc]]=\"WYU\",tblSchMJune19[[#This Row],[Alloc]]=\"WYP\",tblSchMJune19[[#This Row],[Alloc]]=\"CA\",tblSchMJune19[[#This Row],[Alloc]]=\"WA\"),\"SITUS\",tblSchMJune19[[#This Row],[Alloc]])","v":"OTHER"},{"$f":"INDEX(tblSchMLookup[FUNC],MATCH(tblSchMJune19[[#This Row],[Concat]],tblSchMLookup[Concat],0))","v":{"$error":"#N/A"}},{"$f":"IF(tblSchMJune19[[#This Row],[Total ($000)]]=0,\"NO\",IF(ISNA(tblSchMJune19[[#This Row],[FUNC]]),\"YES\",IF(_xlfn.ISFORMULA(tblSchMJune19[[#This Row],[FUNC]]),\"NO\",\"YES\")))","v":"NO"}]
[{"$f":"CONCATENATE(tblSchMJune19[[#This Row],[Primary Account]],tblSchMJune19[[#This Row],[Primary Name]],tblSchMJune19[[#This Row],[Secondary Acct]],tblSchMJune19[[#This Row],[Secondary  Name]],tblSchMJune19[[#This Row],[Alloc4FUNC]])","v":"4099300SCHMDT415917Reg Asset - Naughton Unit #3 Costs - CAOTHER"},4099300,{"$f":"IF(tblSchMJune19[[#This Row],[Primary Account]]=4098200,\"SCHMAP\",IF(tblSchMJune19[[#This Row],[Primary Account]]=4098300,\"SCHMAT\",IF(tblSchMJune19[[#This Row],[Primary Account]]=4099200,\"SCHMDP\",IF(tblSchMJune19[[#This Row],[Primary Account]]=4099300,\"SCHMDT\"))))","v":"SCHMDT"},"415917","Reg Asset - Naughton Unit #3 Costs - CA","OTHER",null,{"$f":"IF(OR(tblSchMJune19[[#This Row],[Alloc]]=\"IDU\",tblSchMJune19[[#This Row],[Alloc]]=\"OR\",tblSchMJune19[[#This Row],[Alloc]]=\"UT\",tblSchMJune19[[#This Row],[Alloc]]=\"WYU\",tblSchMJune19[[#This Row],[Alloc]]=\"WYP\",tblSchMJune19[[#This Row],[Alloc]]=\"CA\",tblSchMJune19[[#This Row],[Alloc]]=\"WA\"),\"SITUS\",tblSchMJune19[[#This Row],[Alloc]])","v":"OTHER"},{"$f":"INDEX(tblSchMLookup[FUNC],MATCH(tblSchMJune19[[#This Row],[Concat]],tblSchMLookup[Concat],0))","v":{"$error":"#N/A"}},{"$f":"IF(tblSchMJune19[[#This Row],[Total ($000)]]=0,\"NO\",IF(ISNA(tblSchMJune19[[#This Row],[FUNC]]),\"YES\",IF(_xlfn.ISFORMULA(tblSchMJune19[[#This Row],[FUNC]]),\"NO\",\"YES\")))","v":"NO"}]
[{"$f":"CONCATENATE(tblSchMJune19[[#This Row],[Primary Account]],tblSchMJune19[[#This Row],[Primary Name]],tblSchMJune19[[#This Row],[Secondary Acct]],tblSchMJune19[[#This Row],[Secondary  Name]],tblSchMJune19[[#This Row],[Alloc4FUNC]])","v":"4099300SCHMDT415918Reg Asset - RPS Compliance PurchasesOTHER"},4099300,{"$f":"IF(tblSchMJune19[[#This Row],[Primary Account]]=4098200,\"SCHMAP\",IF(tblSchMJune19[[#This Row],[Primary Account]]=4098300,\"SCHMAT\",IF(tblSchMJune19[[#This Row],[Primary Account]]=4099200,\"SCHMDP\",IF(tblSchMJune19[[#This Row],[Primary Account]]=4099300,\"SCHMDT\"))))","v":"SCHMDT"},"415918","Reg Asset - RPS Compliance Purchases","OTHER",null,{"$f":"IF(OR(tblSchMJune19[[#This Row],[Alloc]]=\"IDU\",tblSchMJune19[[#This Row],[Alloc]]=\"OR\",tblSchMJune19[[#This Row],[Alloc]]=\"UT\",tblSchMJune19[[#This Row],[Alloc]]=\"WYU\",tblSchMJune19[[#This Row],[Alloc]]=\"WYP\",tblSchMJune19[[#This Row],[Alloc]]=\"CA\",tblSchMJune19[[#This Row],[Alloc]]=\"WA\"),\"SITUS\",tblSchMJune19[[#This Row],[Alloc]])","v":"OTHER"},{"$f":"INDEX(tblSchMLookup[FUNC],MATCH(tblSchMJune19[[#This Row],[Concat]],tblSchMLookup[Concat],0))","v":"P"},{"$f":"IF(tblSchMJune19[[#This Row],[Total ($000)]]=0,\"NO\",IF(ISNA(tblSchMJune19[[#This Row],[FUNC]]),\"YES\",IF(_xlfn.ISFORMULA(tblSchMJune19[[#This Row],[FUNC]]),\"NO\",\"YES\")))","v":"NO"}]
[{"$f":"CONCATENATE(tblSchMJune19[[#This Row],[Primary Account]],tblSchMJune19[[#This Row],[Primary Name]],tblSchMJune19[[#This Row],[Secondary Acct]],tblSchMJune19[[#This Row],[Secondary  Name]],tblSchMJune19[[#This Row],[Alloc4FUNC]])","v":"4099300SCHMDT415920Reg Asset - Depreciation Increase - IDSITUS"},4099300,{"$f":"IF(tblSchMJune19[[#This Row],[Primary Account]]=4098200,\"SCHMAP\",IF(tblSchMJune19[[#This Row],[Primary Account]]=4098300,\"SCHMAT\",IF(tblSchMJune19[[#This Row],[Primary Account]]=4099200,\"SCHMDP\",IF(tblSchMJune19[[#This Row],[Primary Account]]=4099300,\"SCHMDT\"))))","v":"SCHMDT"},"415920","Reg Asset - Depreciation Increase - ID","IDU",73.384929999999997,{"$f":"IF(OR(tblSchMJune19[[#This Row],[Alloc]]=\"IDU\",tblSchMJune19[[#This Row],[Alloc]]=\"OR\",tblSchMJune19[[#This Row],[Alloc]]=\"UT\",tblSchMJune19[[#This Row],[Alloc]]=\"WYU\",tblSchMJune19[[#This Row],[Alloc]]=\"WYP\",tblSchMJune19[[#This Row],[Alloc]]=\"CA\",tblSchMJune19[[#This Row],[Alloc]]=\"WA\"),\"SITUS\",tblSchMJune19[[#This Row],[Alloc]])","v":"SITUS"},{"$f":"INDEX(tblSchMLookup[FUNC],MATCH(tblSchMJune19[[#This Row],[Concat]],tblSchMLookup[Concat],0))","v":"DDS2"},{"$f":"IF(tblSchMJune19[[#This Row],[Total ($000)]]=0,\"NO\",IF(ISNA(tblSchMJune19[[#This Row],[FUNC]]),\"YES\",IF(_xlfn.ISFORMULA(tblSchMJune19[[#This Row],[FUNC]]),\"NO\",\"YES\")))","v":"NO"}]
[{"$f":"CONCATENATE(tblSchMJune19[[#This Row],[Primary Account]],tblSchMJune19[[#This Row],[Primary Name]],tblSchMJune19[[#This Row],[Secondary Acct]],tblSchMJune19[[#This Row],[Secondary  Name]],tblSchMJune19[[#This Row],[Alloc4FUNC]])","v":"4099300SCHMDT415921Reg Asset - Depreciation Increase - UTSITUS"},4099300,{"$f":"IF(tblSchMJune19[[#This Row],[Primary Account]]=4098200,\"SCHMAP\",IF(tblSchMJune19[[#This Row],[Primary Account]]=4098300,\"SCHMAT\",IF(tblSchMJune19[[#This Row],[Primary Account]]=4099200,\"SCHMDP\",IF(tblSchMJune19[[#This Row],[Primary Account]]=4099300,\"SCHMDT\"))))","v":"SCHMDT"},"415921","Reg Asset - Depreciation Increase - UT","UT",-128.04300000000001,{"$f":"IF(OR(tblSchMJune19[[#This Row],[Alloc]]=\"IDU\",tblSchMJune19[[#This Row],[Alloc]]=\"OR\",tblSchMJune19[[#This Row],[Alloc]]=\"UT\",tblSchMJune19[[#This Row],[Alloc]]=\"WYU\",tblSchMJune19[[#This Row],[Alloc]]=\"WYP\",tblSchMJune19[[#This Row],[Alloc]]=\"CA\",tblSchMJune19[[#This Row],[Alloc]]=\"WA\"),\"SITUS\",tblSchMJune19[[#This Row],[Alloc]])","v":"SITUS"},{"$f":"INDEX(tblSchMLookup[FUNC],MATCH(tblSchMJune19[[#This Row],[Concat]],tblSchMLookup[Concat],0))","v":"DDS2"},{"$f":"IF(tblSchMJune19[[#This Row],[Total ($000)]]=0,\"NO\",IF(ISNA(tblSchMJune19[[#This Row],[FUNC]]),\"YES\",IF(_xlfn.ISFORMULA(tblSchMJune19[[#This Row],[FUNC]]),\"NO\",\"YES\")))","v":"NO"}]
[{"$f":"CONCATENATE(tblSchMJune19[[#This Row],[Primary Account]],tblSchMJune19[[#This Row],[Primary Name]],tblSchMJune19[[#This Row],[Secondary Acct]],tblSchMJune19[[#This Row],[Secondary  Name]],tblSchMJune19[[#This Row],[Alloc4FUNC]])","v":"4099300SCHMDT415922Reg Asset - Depreciation Increase - WYSITUS"},4099300,{"$f":"IF(tblSchMJune19[[#This Row],[Primary Account]]=4098200,\"SCHMAP\",IF(tblSchMJune19[[#This Row],[Primary Account]]=4098300,\"SCHMAT\",IF(tblSchMJune19[[#This Row],[Primary Account]]=4099200,\"SCHMDP\",IF(tblSchMJune19[[#This Row],[Primary Account]]=4099300,\"SCHMDT\"))))","v":"SCHMDT"},"415922","Reg Asset - Depreciation Increase - WY","WYP",-442.19099999999997,{"$f":"IF(OR(tblSchMJune19[[#This Row],[Alloc]]=\"IDU\",tblSchMJune19[[#This Row],[Alloc]]=\"OR\",tblSchMJune19[[#This Row],[Alloc]]=\"UT\",tblSchMJune19[[#This Row],[Alloc]]=\"WYU\",tblSchMJune19[[#This Row],[Alloc]]=\"WYP\",tblSchMJune19[[#This Row],[Alloc]]=\"CA\",tblSchMJune19[[#This Row],[Alloc]]=\"WA\"),\"SITUS\",tblSchMJune19[[#This Row],[Alloc]])","v":"SITUS"},{"$f":"INDEX(tblSchMLookup[FUNC],MATCH(tblSchMJune19[[#This Row],[Concat]],tblSchMLookup[Concat],0))","v":"DDS2"},{"$f":"IF(tblSchMJune19[[#This Row],[Total ($000)]]=0,\"NO\",IF(ISNA(tblSchMJune19[[#This Row],[FUNC]]),\"YES\",IF(_xlfn.ISFORMULA(tblSchMJune19[[#This Row],[FUNC]]),\"NO\",\"YES\")))","v":"NO"}]
[{"$f":"CONCATENATE(tblSchMJune19[[#This Row],[Primary Account]],tblSchMJune19[[#This Row],[Primary Name]],tblSchMJune19[[#This Row],[Secondary Acct]],tblSchMJune19[[#This Row],[Secondary  Name]],tblSchMJune19[[#This Row],[Alloc4FUNC]])","v":"4099300SCHMDT415923Reg Asset - Carbon Unrecovered Plant - ISITUS"},4099300,{"$f":"IF(tblSchMJune19[[#This Row],[Primary Account]]=4098200,\"SCHMAP\",IF(tblSchMJune19[[#This Row],[Primary Account]]=4098300,\"SCHMAT\",IF(tblSchMJune19[[#This Row],[Primary Account]]=4099200,\"SCHMDP\",IF(tblSchMJune19[[#This Row],[Primary Account]]=4099300,\"SCHMDT\"))))","v":"SCHMDT"},"415923","Reg Asset - Carbon Unrecovered Plant - I","IDU",-478.63900000000001,{"$f":"IF(OR(tblSchMJune19[[#This Row],[Alloc]]=\"IDU\",tblSchMJune19[[#This Row],[Alloc]]=\"OR\",tblSchMJune19[[#This Row],[Alloc]]=\"UT\",tblSchMJune19[[#This Row],[Alloc]]=\"WYU\",tblSchMJune19[[#This Row],[Alloc]]=\"WYP\",tblSchMJune19[[#This Row],[Alloc]]=\"CA\",tblSchMJune19[[#This Row],[Alloc]]=\"WA\"),\"SITUS\",tblSchMJune19[[#This Row],[Alloc]])","v":"SITUS"},{"$f":"INDEX(tblSchMLookup[FUNC],MATCH(tblSchMJune19[[#This Row],[Concat]],tblSchMLookup[Concat],0))","v":"P"},{"$f":"IF(tblSchMJune19[[#This Row],[Total ($000)]]=0,\"NO\",IF(ISNA(tblSchMJune19[[#This Row],[FUNC]]),\"YES\",IF(_xlfn.ISFORMULA(tblSchMJune19[[#This Row],[FUNC]]),\"NO\",\"YES\")))","v":"NO"}]
[{"$f":"CONCATENATE(tblSchMJune19[[#This Row],[Primary Account]],tblSchMJune19[[#This Row],[Primary Name]],tblSchMJune19[[#This Row],[Secondary Acct]],tblSchMJune19[[#This Row],[Secondary  Name]],tblSchMJune19[[#This Row],[Alloc4FUNC]])","v":"4099300SCHMDT415924Reg Asset - Carbon Unrecovered Plant - USITUS"},4099300,{"$f":"IF(tblSchMJune19[[#This Row],[Primary Account]]=4098200,\"SCHMAP\",IF(tblSchMJune19[[#This Row],[Primary Account]]=4098300,\"SCHMAT\",IF(tblSchMJune19[[#This Row],[Primary Account]]=4099200,\"SCHMDP\",IF(tblSchMJune19[[#This Row],[Primary Account]]=4099300,\"SCHMDT\"))))","v":"SCHMDT"},"415924","Reg Asset - Carbon Unrecovered Plant - U","UT",-3444.6410000000001,{"$f":"IF(OR(tblSchMJune19[[#This Row],[Alloc]]=\"IDU\",tblSchMJune19[[#This Row],[Alloc]]=\"OR\",tblSchMJune19[[#This Row],[Alloc]]=\"UT\",tblSchMJune19[[#This Row],[Alloc]]=\"WYU\",tblSchMJune19[[#This Row],[Alloc]]=\"WYP\",tblSchMJune19[[#This Row],[Alloc]]=\"CA\",tblSchMJune19[[#This Row],[Alloc]]=\"WA\"),\"SITUS\",tblSchMJune19[[#This Row],[Alloc]])","v":"SITUS"},{"$f":"INDEX(tblSchMLookup[FUNC],MATCH(tblSchMJune19[[#This Row],[Concat]],tblSchMLookup[Concat],0))","v":"P"},{"$f":"IF(tblSchMJune19[[#This Row],[Total ($000)]]=0,\"NO\",IF(ISNA(tblSchMJune19[[#This Row],[FUNC]]),\"YES\",IF(_xlfn.ISFORMULA(tblSchMJune19[[#This Row],[FUNC]]),\"NO\",\"YES\")))","v":"NO"}]
[{"$f":"CONCATENATE(tblSchMJune19[[#This Row],[Primary Account]],tblSchMJune19[[#This Row],[Primary Name]],tblSchMJune19[[#This Row],[Secondary Acct]],tblSchMJune19[[#This Row],[Secondary  Name]],tblSchMJune19[[#This Row],[Alloc4FUNC]])","v":"4099300SCHMDT415925Reg Asset - Carbon Unrecovered Plant - WSITUS"},4099300,{"$f":"IF(tblSchMJune19[[#This Row],[Primary Account]]=4098200,\"SCHMAP\",IF(tblSchMJune19[[#This Row],[Primary Account]]=4098300,\"SCHMAT\",IF(tblSchMJune19[[#This Row],[Primary Account]]=4099200,\"SCHMDP\",IF(tblSchMJune19[[#This Row],[Primary Account]]=4099300,\"SCHMDT\"))))","v":"SCHMDT"},"415925","Reg Asset - Carbon Unrecovered Plant - W","WYP",-1158.1880000000001,{"$f":"IF(OR(tblSchMJune19[[#This Row],[Alloc]]=\"IDU\",tblSchMJune19[[#This Row],[Alloc]]=\"OR\",tblSchMJune19[[#This Row],[Alloc]]=\"UT\",tblSchMJune19[[#This Row],[Alloc]]=\"WYU\",tblSchMJune19[[#This Row],[Alloc]]=\"WYP\",tblSchMJune19[[#This Row],[Alloc]]=\"CA\",tblSchMJune19[[#This Row],[Alloc]]=\"WA\"),\"SITUS\",tblSchMJune19[[#This Row],[Alloc]])","v":"SITUS"},{"$f":"INDEX(tblSchMLookup[FUNC],MATCH(tblSchMJune19[[#This Row],[Concat]],tblSchMLookup[Concat],0))","v":"P"},{"$f":"IF(tblSchMJune19[[#This Row],[Total ($000)]]=0,\"NO\",IF(ISNA(tblSchMJune19[[#This Row],[FUNC]]),\"YES\",IF(_xlfn.ISFORMULA(tblSchMJune19[[#This Row],[FUNC]]),\"NO\",\"YES\")))","v":"NO"}]
[{"$f":"CONCATENATE(tblSchMJune19[[#This Row],[Primary Account]],tblSchMJune19[[#This Row],[Primary Name]],tblSchMJune19[[#This Row],[Secondary Acct]],tblSchMJune19[[#This Row],[Secondary  Name]],tblSchMJune19[[#This Row],[Alloc4FUNC]])","v":"4099300SCHMDT415930Reg Asset - Carbon Decommissioning - IDSITUS"},4099300,{"$f":"IF(tblSchMJune19[[#This Row],[Primary Account]]=4098200,\"SCHMAP\",IF(tblSchMJune19[[#This Row],[Primary Account]]=4098300,\"SCHMAT\",IF(tblSchMJune19[[#This Row],[Primary Account]]=4099200,\"SCHMDP\",IF(tblSchMJune19[[#This Row],[Primary Account]]=4099300,\"SCHMDT\"))))","v":"SCHMDT"},"415930","Reg Asset - Carbon Decommissioning - ID","IDU",null,{"$f":"IF(OR(tblSchMJune19[[#This Row],[Alloc]]=\"IDU\",tblSchMJune19[[#This Row],[Alloc]]=\"OR\",tblSchMJune19[[#This Row],[Alloc]]=\"UT\",tblSchMJune19[[#This Row],[Alloc]]=\"WYU\",tblSchMJune19[[#This Row],[Alloc]]=\"WYP\",tblSchMJune19[[#This Row],[Alloc]]=\"CA\",tblSchMJune19[[#This Row],[Alloc]]=\"WA\"),\"SITUS\",tblSchMJune19[[#This Row],[Alloc]])","v":"SITUS"},{"$f":"INDEX(tblSchMLookup[FUNC],MATCH(tblSchMJune19[[#This Row],[Concat]],tblSchMLookup[Concat],0))","v":{"$error":"#N/A"}},{"$f":"IF(tblSchMJune19[[#This Row],[Total ($000)]]=0,\"NO\",IF(ISNA(tblSchMJune19[[#This Row],[FUNC]]),\"YES\",IF(_xlfn.ISFORMULA(tblSchMJune19[[#This Row],[FUNC]]),\"NO\",\"YES\")))","v":"NO"}]
[{"$f":"CONCATENATE(tblSchMJune19[[#This Row],[Primary Account]],tblSchMJune19[[#This Row],[Primary Name]],tblSchMJune19[[#This Row],[Secondary Acct]],tblSchMJune19[[#This Row],[Secondary  Name]],tblSchMJune19[[#This Row],[Alloc4FUNC]])","v":"4099300SCHMDT415931Reg Asset - Carbon Decommissioning - UTSITUS"},4099300,{"$f":"IF(tblSchMJune19[[#This Row],[Primary Account]]=4098200,\"SCHMAP\",IF(tblSchMJune19[[#This Row],[Primary Account]]=4098300,\"SCHMAT\",IF(tblSchMJune19[[#This Row],[Primary Account]]=4099200,\"SCHMDP\",IF(tblSchMJune19[[#This Row],[Primary Account]]=4099300,\"SCHMDT\"))))","v":"SCHMDT"},"415931","Reg Asset - Carbon Decommissioning - UT","UT",null,{"$f":"IF(OR(tblSchMJune19[[#This Row],[Alloc]]=\"IDU\",tblSchMJune19[[#This Row],[Alloc]]=\"OR\",tblSchMJune19[[#This Row],[Alloc]]=\"UT\",tblSchMJune19[[#This Row],[Alloc]]=\"WYU\",tblSchMJune19[[#This Row],[Alloc]]=\"WYP\",tblSchMJune19[[#This Row],[Alloc]]=\"CA\",tblSchMJune19[[#This Row],[Alloc]]=\"WA\"),\"SITUS\",tblSchMJune19[[#This Row],[Alloc]])","v":"SITUS"},{"$f":"INDEX(tblSchMLookup[FUNC],MATCH(tblSchMJune19[[#This Row],[Concat]],tblSchMLookup[Concat],0))","v":{"$error":"#N/A"}},{"$f":"IF(tblSchMJune19[[#This Row],[Total ($000)]]=0,\"NO\",IF(ISNA(tblSchMJune19[[#This Row],[FUNC]]),\"YES\",IF(_xlfn.ISFORMULA(tblSchMJune19[[#This Row],[FUNC]]),\"NO\",\"YES\")))","v":"NO"}]
[{"$f":"CONCATENATE(tblSchMJune19[[#This Row],[Primary Account]],tblSchMJune19[[#This Row],[Primary Name]],tblSchMJune19[[#This Row],[Secondary Acct]],tblSchMJune19[[#This Row],[Secondary  Name]],tblSchMJune19[[#This Row],[Alloc4FUNC]])","v":"4099300SCHMDT415932Reg Asset - Carbon Decommissioning - WYSITUS"},4099300,{"$f":"IF(tblSchMJune19[[#This Row],[Primary Account]]=4098200,\"SCHMAP\",IF(tblSchMJune19[[#This Row],[Primary Account]]=4098300,\"SCHMAT\",IF(tblSchMJune19[[#This Row],[Primary Account]]=4099200,\"SCHMDP\",IF(tblSchMJune19[[#This Row],[Primary Account]]=4099300,\"SCHMDT\"))))","v":"SCHMDT"},"415932","Reg Asset - Carbon Decommissioning - WY","WYP",null,{"$f":"IF(OR(tblSchMJune19[[#This Row],[Alloc]]=\"IDU\",tblSchMJune19[[#This Row],[Alloc]]=\"OR\",tblSchMJune19[[#This Row],[Alloc]]=\"UT\",tblSchMJune19[[#This Row],[Alloc]]=\"WYU\",tblSchMJune19[[#This Row],[Alloc]]=\"WYP\",tblSchMJune19[[#This Row],[Alloc]]=\"CA\",tblSchMJune19[[#This Row],[Alloc]]=\"WA\"),\"SITUS\",tblSchMJune19[[#This Row],[Alloc]])","v":"SITUS"},{"$f":"INDEX(tblSchMLookup[FUNC],MATCH(tblSchMJune19[[#This Row],[Concat]],tblSchMLookup[Concat],0))","v":{"$error":"#N/A"}},{"$f":"IF(tblSchMJune19[[#This Row],[Total ($000)]]=0,\"NO\",IF(ISNA(tblSchMJune19[[#This Row],[FUNC]]),\"YES\",IF(_xlfn.ISFORMULA(tblSchMJune19[[#This Row],[FUNC]]),\"NO\",\"YES\")))","v":"NO"}]
[{"$f":"CONCATENATE(tblSchMJune19[[#This Row],[Primary Account]],tblSchMJune19[[#This Row],[Primary Name]],tblSchMJune19[[#This Row],[Secondary Acct]],tblSchMJune19[[#This Row],[Secondary  Name]],tblSchMJune19[[#This Row],[Alloc4FUNC]])","v":"4099300SCHMDT415933Reg Liability - Contra - Carbon DecommisSITUS"},4099300,{"$f":"IF(tblSchMJune19[[#This Row],[Primary Account]]=4098200,\"SCHMAP\",IF(tblSchMJune19[[#This Row],[Primary Account]]=4098300,\"SCHMAT\",IF(tblSchMJune19[[#This Row],[Primary Account]]=4099200,\"SCHMDP\",IF(tblSchMJune19[[#This Row],[Primary Account]]=4099300,\"SCHMDT\"))))","v":"SCHMDT"},"415933","Reg Liability - Contra - Carbon Decommis","IDU",-34.621279999999999,{"$f":"IF(OR(tblSchMJune19[[#This Row],[Alloc]]=\"IDU\",tblSchMJune19[[#This Row],[Alloc]]=\"OR\",tblSchMJune19[[#This Row],[Alloc]]=\"UT\",tblSchMJune19[[#This Row],[Alloc]]=\"WYU\",tblSchMJune19[[#This Row],[Alloc]]=\"WYP\",tblSchMJune19[[#This Row],[Alloc]]=\"CA\",tblSchMJune19[[#This Row],[Alloc]]=\"WA\"),\"SITUS\",tblSchMJune19[[#This Row],[Alloc]])","v":"SITUS"},{"$f":"INDEX(tblSchMLookup[FUNC],MATCH(tblSchMJune19[[#This Row],[Concat]],tblSchMLookup[Concat],0))","v":"P"},{"$f":"IF(tblSchMJune19[[#This Row],[Total ($000)]]=0,\"NO\",IF(ISNA(tblSchMJune19[[#This Row],[FUNC]]),\"YES\",IF(_xlfn.ISFORMULA(tblSchMJune19[[#This Row],[FUNC]]),\"NO\",\"YES\")))","v":"NO"}]
[{"$f":"CONCATENATE(tblSchMJune19[[#This Row],[Primary Account]],tblSchMJune19[[#This Row],[Primary Name]],tblSchMJune19[[#This Row],[Secondary Acct]],tblSchMJune19[[#This Row],[Secondary  Name]],tblSchMJune19[[#This Row],[Alloc4FUNC]])","v":"4099300SCHMDT415934Reg Liability - Contra - Carbon DecommisSITUS"},4099300,{"$f":"IF(tblSchMJune19[[#This Row],[Primary Account]]=4098200,\"SCHMAP\",IF(tblSchMJune19[[#This Row],[Primary Account]]=4098300,\"SCHMAT\",IF(tblSchMJune19[[#This Row],[Primary Account]]=4099200,\"SCHMDP\",IF(tblSchMJune19[[#This Row],[Primary Account]]=4099300,\"SCHMDT\"))))","v":"SCHMDT"},"415934","Reg Liability - Contra - Carbon Decommis","UT",-250.44123999999999,{"$f":"IF(OR(tblSchMJune19[[#This Row],[Alloc]]=\"IDU\",tblSchMJune19[[#This Row],[Alloc]]=\"OR\",tblSchMJune19[[#This Row],[Alloc]]=\"UT\",tblSchMJune19[[#This Row],[Alloc]]=\"WYU\",tblSchMJune19[[#This Row],[Alloc]]=\"WYP\",tblSchMJune19[[#This Row],[Alloc]]=\"CA\",tblSchMJune19[[#This Row],[Alloc]]=\"WA\"),\"SITUS\",tblSchMJune19[[#This Row],[Alloc]])","v":"SITUS"},{"$f":"INDEX(tblSchMLookup[FUNC],MATCH(tblSchMJune19[[#This Row],[Concat]],tblSchMLookup[Concat],0))","v":"P"},{"$f":"IF(tblSchMJune19[[#This Row],[Total ($000)]]=0,\"NO\",IF(ISNA(tblSchMJune19[[#This Row],[FUNC]]),\"YES\",IF(_xlfn.ISFORMULA(tblSchMJune19[[#This Row],[FUNC]]),\"NO\",\"YES\")))","v":"NO"}]
[{"$f":"CONCATENATE(tblSchMJune19[[#This Row],[Primary Account]],tblSchMJune19[[#This Row],[Primary Name]],tblSchMJune19[[#This Row],[Secondary Acct]],tblSchMJune19[[#This Row],[Secondary  Name]],tblSchMJune19[[#This Row],[Alloc4FUNC]])","v":"4099300SCHMDT415935Reg Liability - Contra - Carbon DecommisSITUS"},4099300,{"$f":"IF(tblSchMJune19[[#This Row],[Primary Account]]=4098200,\"SCHMAP\",IF(tblSchMJune19[[#This Row],[Primary Account]]=4098300,\"SCHMAT\",IF(tblSchMJune19[[#This Row],[Primary Account]]=4099200,\"SCHMDP\",IF(tblSchMJune19[[#This Row],[Primary Account]]=4099300,\"SCHMDT\"))))","v":"SCHMDT"},"415935","Reg Liability - Contra - Carbon Decommis","WYP",-623.94533999999999,{"$f":"IF(OR(tblSchMJune19[[#This Row],[Alloc]]=\"IDU\",tblSchMJune19[[#This Row],[Alloc]]=\"OR\",tblSchMJune19[[#This Row],[Alloc]]=\"UT\",tblSchMJune19[[#This Row],[Alloc]]=\"WYU\",tblSchMJune19[[#This Row],[Alloc]]=\"WYP\",tblSchMJune19[[#This Row],[Alloc]]=\"CA\",tblSchMJune19[[#This Row],[Alloc]]=\"WA\"),\"SITUS\",tblSchMJune19[[#This Row],[Alloc]])","v":"SITUS"},{"$f":"INDEX(tblSchMLookup[FUNC],MATCH(tblSchMJune19[[#This Row],[Concat]],tblSchMLookup[Concat],0))","v":"P"},{"$f":"IF(tblSchMJune19[[#This Row],[Total ($000)]]=0,\"NO\",IF(ISNA(tblSchMJune19[[#This Row],[FUNC]]),\"YES\",IF(_xlfn.ISFORMULA(tblSchMJune19[[#This Row],[FUNC]]),\"NO\",\"YES\")))","v":"NO"}]
[{"$f":"CONCATENATE(tblSchMJune19[[#This Row],[Primary Account]],tblSchMJune19[[#This Row],[Primary Name]],tblSchMJune19[[#This Row],[Secondary Acct]],tblSchMJune19[[#This Row],[Secondary  Name]],tblSchMJune19[[#This Row],[Alloc4FUNC]])","v":"4099300SCHMDT415936REG ASSET - CARBON PLANT DECOMMISSIONINGSG"},4099300,{"$f":"IF(tblSchMJune19[[#This Row],[Primary Account]]=4098200,\"SCHMAP\",IF(tblSchMJune19[[#This Row],[Primary Account]]=4098300,\"SCHMAT\",IF(tblSchMJune19[[#This Row],[Primary Account]]=4099200,\"SCHMDP\",IF(tblSchMJune19[[#This Row],[Primary Account]]=4099300,\"SCHMDT\"))))","v":"SCHMDT"},"415936","REG ASSET - CARBON PLANT DECOMMISSIONING","SG",null,{"$f":"IF(OR(tblSchMJune19[[#This Row],[Alloc]]=\"IDU\",tblSchMJune19[[#This Row],[Alloc]]=\"OR\",tblSchMJune19[[#This Row],[Alloc]]=\"UT\",tblSchMJune19[[#This Row],[Alloc]]=\"WYU\",tblSchMJune19[[#This Row],[Alloc]]=\"WYP\",tblSchMJune19[[#This Row],[Alloc]]=\"CA\",tblSchMJune19[[#This Row],[Alloc]]=\"WA\"),\"SITUS\",tblSchMJune19[[#This Row],[Alloc]])","v":"SG"},{"$f":"INDEX(tblSchMLookup[FUNC],MATCH(tblSchMJune19[[#This Row],[Concat]],tblSchMLookup[Concat],0))","v":"P"},{"$f":"IF(tblSchMJune19[[#This Row],[Total ($000)]]=0,\"NO\",IF(ISNA(tblSchMJune19[[#This Row],[FUNC]]),\"YES\",IF(_xlfn.ISFORMULA(tblSchMJune19[[#This Row],[FUNC]]),\"NO\",\"YES\")))","v":"NO"}]
[{"$f":"CONCATENATE(tblSchMJune19[[#This Row],[Primary Account]],tblSchMJune19[[#This Row],[Primary Name]],tblSchMJune19[[#This Row],[Secondary Acct]],tblSchMJune19[[#This Row],[Secondary  Name]],tblSchMJune19[[#This Row],[Alloc4FUNC]])","v":"4099300SCHMDT425100Deferred Regulatory Expense-IDUSITUS"},4099300,{"$f":"IF(tblSchMJune19[[#This Row],[Primary Account]]=4098200,\"SCHMAP\",IF(tblSchMJune19[[#This Row],[Primary Account]]=4098300,\"SCHMAT\",IF(tblSchMJune19[[#This Row],[Primary Account]]=4099200,\"SCHMDP\",IF(tblSchMJune19[[#This Row],[Primary Account]]=4099300,\"SCHMDT\"))))","v":"SCHMDT"},"425100","Deferred Regulatory Expense-IDU","IDU",40,{"$f":"IF(OR(tblSchMJune19[[#This Row],[Alloc]]=\"IDU\",tblSchMJune19[[#This Row],[Alloc]]=\"OR\",tblSchMJune19[[#This Row],[Alloc]]=\"UT\",tblSchMJune19[[#This Row],[Alloc]]=\"WYU\",tblSchMJune19[[#This Row],[Alloc]]=\"WYP\",tblSchMJune19[[#This Row],[Alloc]]=\"CA\",tblSchMJune19[[#This Row],[Alloc]]=\"WA\"),\"SITUS\",tblSchMJune19[[#This Row],[Alloc]])","v":"SITUS"},{"$f":"INDEX(tblSchMLookup[FUNC],MATCH(tblSchMJune19[[#This Row],[Concat]],tblSchMLookup[Concat],0))","v":"P"},{"$f":"IF(tblSchMJune19[[#This Row],[Total ($000)]]=0,\"NO\",IF(ISNA(tblSchMJune19[[#This Row],[FUNC]]),\"YES\",IF(_xlfn.ISFORMULA(tblSchMJune19[[#This Row],[FUNC]]),\"NO\",\"YES\")))","v":"NO"}]
[{"$f":"CONCATENATE(tblSchMJune19[[#This Row],[Primary Account]],tblSchMJune19[[#This Row],[Primary Name]],tblSchMJune19[[#This Row],[Secondary Acct]],tblSchMJune19[[#This Row],[Secondary  Name]],tblSchMJune19[[#This Row],[Alloc4FUNC]])","v":"4099300SCHMDT425102Reg Asset - CA GreenHouse Gas AllowanceOTHER"},4099300,{"$f":"IF(tblSchMJune19[[#This Row],[Primary Account]]=4098200,\"SCHMAP\",IF(tblSchMJune19[[#This Row],[Primary Account]]=4098300,\"SCHMAT\",IF(tblSchMJune19[[#This Row],[Primary Account]]=4099200,\"SCHMDP\",IF(tblSchMJune19[[#This Row],[Primary Account]]=4099300,\"SCHMDT\"))))","v":"SCHMDT"},"425102","Reg Asset - CA GreenHouse Gas Allowance","OTHER",null,{"$f":"IF(OR(tblSchMJune19[[#This Row],[Alloc]]=\"IDU\",tblSchMJune19[[#This Row],[Alloc]]=\"OR\",tblSchMJune19[[#This Row],[Alloc]]=\"UT\",tblSchMJune19[[#This Row],[Alloc]]=\"WYU\",tblSchMJune19[[#This Row],[Alloc]]=\"WYP\",tblSchMJune19[[#This Row],[Alloc]]=\"CA\",tblSchMJune19[[#This Row],[Alloc]]=\"WA\"),\"SITUS\",tblSchMJune19[[#This Row],[Alloc]])","v":"OTHER"},{"$f":"INDEX(tblSchMLookup[FUNC],MATCH(tblSchMJune19[[#This Row],[Concat]],tblSchMLookup[Concat],0))","v":{"$error":"#N/A"}},{"$f":"IF(tblSchMJune19[[#This Row],[Total ($000)]]=0,\"NO\",IF(ISNA(tblSchMJune19[[#This Row],[FUNC]]),\"YES\",IF(_xlfn.ISFORMULA(tblSchMJune19[[#This Row],[FUNC]]),\"NO\",\"YES\")))","v":"NO"}]
[{"$f":"CONCATENATE(tblSchMJune19[[#This Row],[Primary Account]],tblSchMJune19[[#This Row],[Primary Name]],tblSchMJune19[[#This Row],[Secondary Acct]],tblSchMJune19[[#This Row],[Secondary  Name]],tblSchMJune19[[#This Row],[Alloc4FUNC]])","v":"4099300SCHMDT425103Reg Asset - Other Regulatory Assets - CuOTHER"},4099300,{"$f":"IF(tblSchMJune19[[#This Row],[Primary Account]]=4098200,\"SCHMAP\",IF(tblSchMJune19[[#This Row],[Primary Account]]=4098300,\"SCHMAT\",IF(tblSchMJune19[[#This Row],[Primary Account]]=4099200,\"SCHMDP\",IF(tblSchMJune19[[#This Row],[Primary Account]]=4099300,\"SCHMDT\"))))","v":"SCHMDT"},"425103","Reg Asset - Other Regulatory Assets - Cu","OTHER",null,{"$f":"IF(OR(tblSchMJune19[[#This Row],[Alloc]]=\"IDU\",tblSchMJune19[[#This Row],[Alloc]]=\"OR\",tblSchMJune19[[#This Row],[Alloc]]=\"UT\",tblSchMJune19[[#This Row],[Alloc]]=\"WYU\",tblSchMJune19[[#This Row],[Alloc]]=\"WYP\",tblSchMJune19[[#This Row],[Alloc]]=\"CA\",tblSchMJune19[[#This Row],[Alloc]]=\"WA\"),\"SITUS\",tblSchMJune19[[#This Row],[Alloc]])","v":"OTHER"},{"$f":"INDEX(tblSchMLookup[FUNC],MATCH(tblSchMJune19[[#This Row],[Concat]],tblSchMLookup[Concat],0))","v":{"$error":"#N/A"}},{"$f":"IF(tblSchMJune19[[#This Row],[Total ($000)]]=0,\"NO\",IF(ISNA(tblSchMJune19[[#This Row],[FUNC]]),\"YES\",IF(_xlfn.ISFORMULA(tblSchMJune19[[#This Row],[FUNC]]),\"NO\",\"YES\")))","v":"NO"}]
[{"$f":"CONCATENATE(tblSchMJune19[[#This Row],[Primary Account]],tblSchMJune19[[#This Row],[Primary Name]],tblSchMJune19[[#This Row],[Secondary Acct]],tblSchMJune19[[#This Row],[Secondary  Name]],tblSchMJune19[[#This Row],[Alloc4FUNC]])","v":"4099300SCHMDT425104Reg Asset - OR Asset Sale Gain GivebackOTHER"},4099300,{"$f":"IF(tblSchMJune19[[#This Row],[Primary Account]]=4098200,\"SCHMAP\",IF(tblSchMJune19[[#This Row],[Primary Account]]=4098300,\"SCHMAT\",IF(tblSchMJune19[[#This Row],[Primary Account]]=4099200,\"SCHMDP\",IF(tblSchMJune19[[#This Row],[Primary Account]]=4099300,\"SCHMDT\"))))","v":"SCHMDT"},"425104","Reg Asset - OR Asset Sale Gain Giveback","OTHER",null,{"$f":"IF(OR(tblSchMJune19[[#This Row],[Alloc]]=\"IDU\",tblSchMJune19[[#This Row],[Alloc]]=\"OR\",tblSchMJune19[[#This Row],[Alloc]]=\"UT\",tblSchMJune19[[#This Row],[Alloc]]=\"WYU\",tblSchMJune19[[#This Row],[Alloc]]=\"WYP\",tblSchMJune19[[#This Row],[Alloc]]=\"CA\",tblSchMJune19[[#This Row],[Alloc]]=\"WA\"),\"SITUS\",tblSchMJune19[[#This Row],[Alloc]])","v":"OTHER"},{"$f":"INDEX(tblSchMLookup[FUNC],MATCH(tblSchMJune19[[#This Row],[Concat]],tblSchMLookup[Concat],0))","v":{"$error":"#N/A"}},{"$f":"IF(tblSchMJune19[[#This Row],[Total ($000)]]=0,\"NO\",IF(ISNA(tblSchMJune19[[#This Row],[FUNC]]),\"YES\",IF(_xlfn.ISFORMULA(tblSchMJune19[[#This Row],[FUNC]]),\"NO\",\"YES\")))","v":"NO"}]
[{"$f":"CONCATENATE(tblSchMJune19[[#This Row],[Primary Account]],tblSchMJune19[[#This Row],[Primary Name]],tblSchMJune19[[#This Row],[Secondary Acct]],tblSchMJune19[[#This Row],[Secondary  Name]],tblSchMJune19[[#This Row],[Alloc4FUNC]])","v":"4099300SCHMDT425205Misc Def Dr-Prop Damage RepairsSO"},4099300,{"$f":"IF(tblSchMJune19[[#This Row],[Primary Account]]=4098200,\"SCHMAP\",IF(tblSchMJune19[[#This Row],[Primary Account]]=4098300,\"SCHMAT\",IF(tblSchMJune19[[#This Row],[Primary Account]]=4099200,\"SCHMDP\",IF(tblSchMJune19[[#This Row],[Primary Account]]=4099300,\"SCHMDT\"))))","v":"SCHMDT"},"425205","Misc Def Dr-Prop Damage Repairs","SO",null,{"$f":"IF(OR(tblSchMJune19[[#This Row],[Alloc]]=\"IDU\",tblSchMJune19[[#This Row],[Alloc]]=\"OR\",tblSchMJune19[[#This Row],[Alloc]]=\"UT\",tblSchMJune19[[#This Row],[Alloc]]=\"WYU\",tblSchMJune19[[#This Row],[Alloc]]=\"WYP\",tblSchMJune19[[#This Row],[Alloc]]=\"CA\",tblSchMJune19[[#This Row],[Alloc]]=\"WA\"),\"SITUS\",tblSchMJune19[[#This Row],[Alloc]])","v":"SO"},{"$f":"INDEX(tblSchMLookup[FUNC],MATCH(tblSchMJune19[[#This Row],[Concat]],tblSchMLookup[Concat],0))","v":{"$error":"#N/A"}},{"$f":"IF(tblSchMJune19[[#This Row],[Total ($000)]]=0,\"NO\",IF(ISNA(tblSchMJune19[[#This Row],[FUNC]]),\"YES\",IF(_xlfn.ISFORMULA(tblSchMJune19[[#This Row],[FUNC]]),\"NO\",\"YES\")))","v":"NO"}]
[{"$f":"CONCATENATE(tblSchMJune19[[#This Row],[Primary Account]],tblSchMJune19[[#This Row],[Primary Name]],tblSchMJune19[[#This Row],[Secondary Acct]],tblSchMJune19[[#This Row],[Secondary  Name]],tblSchMJune19[[#This Row],[Alloc4FUNC]])","v":"4099300SCHMDT425210Amort of Debt Disc & ExpSNP"},4099300,{"$f":"IF(tblSchMJune19[[#This Row],[Primary Account]]=4098200,\"SCHMAP\",IF(tblSchMJune19[[#This Row],[Primary Account]]=4098300,\"SCHMAT\",IF(tblSchMJune19[[#This Row],[Primary Account]]=4099200,\"SCHMDP\",IF(tblSchMJune19[[#This Row],[Primary Account]]=4099300,\"SCHMDT\"))))","v":"SCHMDT"},"425210","Amort of Debt Disc & Exp","SNP",null,{"$f":"IF(OR(tblSchMJune19[[#This Row],[Alloc]]=\"IDU\",tblSchMJune19[[#This Row],[Alloc]]=\"OR\",tblSchMJune19[[#This Row],[Alloc]]=\"UT\",tblSchMJune19[[#This Row],[Alloc]]=\"WYU\",tblSchMJune19[[#This Row],[Alloc]]=\"WYP\",tblSchMJune19[[#This Row],[Alloc]]=\"CA\",tblSchMJune19[[#This Row],[Alloc]]=\"WA\"),\"SITUS\",tblSchMJune19[[#This Row],[Alloc]])","v":"SNP"},{"$f":"INDEX(tblSchMLookup[FUNC],MATCH(tblSchMJune19[[#This Row],[Concat]],tblSchMLookup[Concat],0))","v":{"$error":"#N/A"}},{"$f":"IF(tblSchMJune19[[#This Row],[Total ($000)]]=0,\"NO\",IF(ISNA(tblSchMJune19[[#This Row],[FUNC]]),\"YES\",IF(_xlfn.ISFORMULA(tblSchMJune19[[#This Row],[FUNC]]),\"NO\",\"YES\")))","v":"NO"}]
[{"$f":"CONCATENATE(tblSchMJune19[[#This Row],[Primary Account]],tblSchMJune19[[#This Row],[Primary Name]],tblSchMJune19[[#This Row],[Secondary Acct]],tblSchMJune19[[#This Row],[Secondary  Name]],tblSchMJune19[[#This Row],[Alloc4FUNC]])","v":"4099300SCHMDT425215Unearned Joint Use Pole Contact RevenueSNPD"},4099300,{"$f":"IF(tblSchMJune19[[#This Row],[Primary Account]]=4098200,\"SCHMAP\",IF(tblSchMJune19[[#This Row],[Primary Account]]=4098300,\"SCHMAT\",IF(tblSchMJune19[[#This Row],[Primary Account]]=4099200,\"SCHMDP\",IF(tblSchMJune19[[#This Row],[Primary Account]]=4099300,\"SCHMDT\"))))","v":"SCHMDT"},"425215","Unearned Joint Use Pole Contact Revenue","SNPD",-22.004100000000001,{"$f":"IF(OR(tblSchMJune19[[#This Row],[Alloc]]=\"IDU\",tblSchMJune19[[#This Row],[Alloc]]=\"OR\",tblSchMJune19[[#This Row],[Alloc]]=\"UT\",tblSchMJune19[[#This Row],[Alloc]]=\"WYU\",tblSchMJune19[[#This Row],[Alloc]]=\"WYP\",tblSchMJune19[[#This Row],[Alloc]]=\"CA\",tblSchMJune19[[#This Row],[Alloc]]=\"WA\"),\"SITUS\",tblSchMJune19[[#This Row],[Alloc]])","v":"SNPD"},{"$f":"INDEX(tblSchMLookup[FUNC],MATCH(tblSchMJune19[[#This Row],[Concat]],tblSchMLookup[Concat],0))","v":"DPW"},{"$f":"IF(tblSchMJune19[[#This Row],[Total ($000)]]=0,\"NO\",IF(ISNA(tblSchMJune19[[#This Row],[FUNC]]),\"YES\",IF(_xlfn.ISFORMULA(tblSchMJune19[[#This Row],[FUNC]]),\"NO\",\"YES\")))","v":"NO"}]
[{"$f":"CONCATENATE(tblSchMJune19[[#This Row],[Primary Account]],tblSchMJune19[[#This Row],[Primary Name]],tblSchMJune19[[#This Row],[Secondary Acct]],tblSchMJune19[[#This Row],[Secondary  Name]],tblSchMJune19[[#This Row],[Alloc4FUNC]])","v":"4099300SCHMDT425225Duke/Hermiston Contract RenegotiationSG"},4099300,{"$f":"IF(tblSchMJune19[[#This Row],[Primary Account]]=4098200,\"SCHMAP\",IF(tblSchMJune19[[#This Row],[Primary Account]]=4098300,\"SCHMAT\",IF(tblSchMJune19[[#This Row],[Primary Account]]=4099200,\"SCHMDP\",IF(tblSchMJune19[[#This Row],[Primary Account]]=4099300,\"SCHMDT\"))))","v":"SCHMDT"},"425225","Duke/Hermiston Contract Renegotiation","SG",null,{"$f":"IF(OR(tblSchMJune19[[#This Row],[Alloc]]=\"IDU\",tblSchMJune19[[#This Row],[Alloc]]=\"OR\",tblSchMJune19[[#This Row],[Alloc]]=\"UT\",tblSchMJune19[[#This Row],[Alloc]]=\"WYU\",tblSchMJune19[[#This Row],[Alloc]]=\"WYP\",tblSchMJune19[[#This Row],[Alloc]]=\"CA\",tblSchMJune19[[#This Row],[Alloc]]=\"WA\"),\"SITUS\",tblSchMJune19[[#This Row],[Alloc]])","v":"SG"},{"$f":"INDEX(tblSchMLookup[FUNC],MATCH(tblSchMJune19[[#This Row],[Concat]],tblSchMLookup[Concat],0))","v":{"$error":"#N/A"}},{"$f":"IF(tblSchMJune19[[#This Row],[Total ($000)]]=0,\"NO\",IF(ISNA(tblSchMJune19[[#This Row],[FUNC]]),\"YES\",IF(_xlfn.ISFORMULA(tblSchMJune19[[#This Row],[FUNC]]),\"NO\",\"YES\")))","v":"NO"}]
[{"$f":"CONCATENATE(tblSchMJune19[[#This Row],[Primary Account]],tblSchMJune19[[#This Row],[Primary Name]],tblSchMJune19[[#This Row],[Secondary Acct]],tblSchMJune19[[#This Row],[Secondary  Name]],tblSchMJune19[[#This Row],[Alloc4FUNC]])","v":"4099300SCHMDT425295BPA Conservation Rate CreditSG"},4099300,{"$f":"IF(tblSchMJune19[[#This Row],[Primary Account]]=4098200,\"SCHMAP\",IF(tblSchMJune19[[#This Row],[Primary Account]]=4098300,\"SCHMAT\",IF(tblSchMJune19[[#This Row],[Primary Account]]=4099200,\"SCHMDP\",IF(tblSchMJune19[[#This Row],[Primary Account]]=4099300,\"SCHMDT\"))))","v":"SCHMDT"},"425295","BPA Conservation Rate Credit","SG",null,{"$f":"IF(OR(tblSchMJune19[[#This Row],[Alloc]]=\"IDU\",tblSchMJune19[[#This Row],[Alloc]]=\"OR\",tblSchMJune19[[#This Row],[Alloc]]=\"UT\",tblSchMJune19[[#This Row],[Alloc]]=\"WYU\",tblSchMJune19[[#This Row],[Alloc]]=\"WYP\",tblSchMJune19[[#This Row],[Alloc]]=\"CA\",tblSchMJune19[[#This Row],[Alloc]]=\"WA\"),\"SITUS\",tblSchMJune19[[#This Row],[Alloc]])","v":"SG"},{"$f":"INDEX(tblSchMLookup[FUNC],MATCH(tblSchMJune19[[#This Row],[Concat]],tblSchMLookup[Concat],0))","v":{"$error":"#N/A"}},{"$f":"IF(tblSchMJune19[[#This Row],[Total ($000)]]=0,\"NO\",IF(ISNA(tblSchMJune19[[#This Row],[FUNC]]),\"YES\",IF(_xlfn.ISFORMULA(tblSchMJune19[[#This Row],[FUNC]]),\"NO\",\"YES\")))","v":"NO"}]
[{"$f":"CONCATENATE(tblSchMJune19[[#This Row],[Primary Account]],tblSchMJune19[[#This Row],[Primary Name]],tblSchMJune19[[#This Row],[Secondary Acct]],tblSchMJune19[[#This Row],[Secondary  Name]],tblSchMJune19[[#This Row],[Alloc4FUNC]])","v":"4099300SCHMDT425380Idaho Customer Balancing AccountOTHER"},4099300,{"$f":"IF(tblSchMJune19[[#This Row],[Primary Account]]=4098200,\"SCHMAP\",IF(tblSchMJune19[[#This Row],[Primary Account]]=4098300,\"SCHMAT\",IF(tblSchMJune19[[#This Row],[Primary Account]]=4099200,\"SCHMDP\",IF(tblSchMJune19[[#This Row],[Primary Account]]=4099300,\"SCHMDT\"))))","v":"SCHMDT"},"425380","Idaho Customer Balancing Account","OTHER",null,{"$f":"IF(OR(tblSchMJune19[[#This Row],[Alloc]]=\"IDU\",tblSchMJune19[[#This Row],[Alloc]]=\"OR\",tblSchMJune19[[#This Row],[Alloc]]=\"UT\",tblSchMJune19[[#This Row],[Alloc]]=\"WYU\",tblSchMJune19[[#This Row],[Alloc]]=\"WYP\",tblSchMJune19[[#This Row],[Alloc]]=\"CA\",tblSchMJune19[[#This Row],[Alloc]]=\"WA\"),\"SITUS\",tblSchMJune19[[#This Row],[Alloc]])","v":"OTHER"},{"$f":"INDEX(tblSchMLookup[FUNC],MATCH(tblSchMJune19[[#This Row],[Concat]],tblSchMLookup[Concat],0))","v":{"$error":"#N/A"}},{"$f":"IF(tblSchMJune19[[#This Row],[Total ($000)]]=0,\"NO\",IF(ISNA(tblSchMJune19[[#This Row],[FUNC]]),\"YES\",IF(_xlfn.ISFORMULA(tblSchMJune19[[#This Row],[FUNC]]),\"NO\",\"YES\")))","v":"NO"}]
[{"$f":"CONCATENATE(tblSchMJune19[[#This Row],[Primary Account]],tblSchMJune19[[#This Row],[Primary Name]],tblSchMJune19[[#This Row],[Secondary Acct]],tblSchMJune19[[#This Row],[Secondary  Name]],tblSchMJune19[[#This Row],[Alloc4FUNC]])","v":"4099300SCHMDT425400UT Kalamath Relicensing CostsOTHER"},4099300,{"$f":"IF(tblSchMJune19[[#This Row],[Primary Account]]=4098200,\"SCHMAP\",IF(tblSchMJune19[[#This Row],[Primary Account]]=4098300,\"SCHMAT\",IF(tblSchMJune19[[#This Row],[Primary Account]]=4099200,\"SCHMDP\",IF(tblSchMJune19[[#This Row],[Primary Account]]=4099300,\"SCHMDT\"))))","v":"SCHMDT"},"425400","UT Kalamath Relicensing Costs","OTHER",-3602.5013199999999,{"$f":"IF(OR(tblSchMJune19[[#This Row],[Alloc]]=\"IDU\",tblSchMJune19[[#This Row],[Alloc]]=\"OR\",tblSchMJune19[[#This Row],[Alloc]]=\"UT\",tblSchMJune19[[#This Row],[Alloc]]=\"WYU\",tblSchMJune19[[#This Row],[Alloc]]=\"WYP\",tblSchMJune19[[#This Row],[Alloc]]=\"CA\",tblSchMJune19[[#This Row],[Alloc]]=\"WA\"),\"SITUS\",tblSchMJune19[[#This Row],[Alloc]])","v":"OTHER"},{"$f":"INDEX(tblSchMLookup[FUNC],MATCH(tblSchMJune19[[#This Row],[Concat]],tblSchMLookup[Concat],0))","v":"P"},{"$f":"IF(tblSchMJune19[[#This Row],[Total ($000)]]=0,\"NO\",IF(ISNA(tblSchMJune19[[#This Row],[FUNC]]),\"YES\",IF(_xlfn.ISFORMULA(tblSchMJune19[[#This Row],[FUNC]]),\"NO\",\"YES\")))","v":"NO"}]
[{"$f":"CONCATENATE(tblSchMJune19[[#This Row],[Primary Account]],tblSchMJune19[[#This Row],[Primary Name]],tblSchMJune19[[#This Row],[Secondary Acct]],tblSchMJune19[[#This Row],[Secondary  Name]],tblSchMJune19[[#This Row],[Alloc4FUNC]])","v":"4099300SCHMDT425700Trojan Special Assessment -DOE-IRSTROJD"},4099300,{"$f":"IF(tblSchMJune19[[#This Row],[Primary Account]]=4098200,\"SCHMAP\",IF(tblSchMJune19[[#This Row],[Primary Account]]=4098300,\"SCHMAT\",IF(tblSchMJune19[[#This Row],[Primary Account]]=4099200,\"SCHMDP\",IF(tblSchMJune19[[#This Row],[Primary Account]]=4099300,\"SCHMDT\"))))","v":"SCHMDT"},"425700","Trojan Special Assessment -DOE-IRS","TROJD",null,{"$f":"IF(OR(tblSchMJune19[[#This Row],[Alloc]]=\"IDU\",tblSchMJune19[[#This Row],[Alloc]]=\"OR\",tblSchMJune19[[#This Row],[Alloc]]=\"UT\",tblSchMJune19[[#This Row],[Alloc]]=\"WYU\",tblSchMJune19[[#This Row],[Alloc]]=\"WYP\",tblSchMJune19[[#This Row],[Alloc]]=\"CA\",tblSchMJune19[[#This Row],[Alloc]]=\"WA\"),\"SITUS\",tblSchMJune19[[#This Row],[Alloc]])","v":"TROJD"},{"$f":"INDEX(tblSchMLookup[FUNC],MATCH(tblSchMJune19[[#This Row],[Concat]],tblSchMLookup[Concat],0))","v":{"$error":"#N/A"}},{"$f":"IF(tblSchMJune19[[#This Row],[Total ($000)]]=0,\"NO\",IF(ISNA(tblSchMJune19[[#This Row],[FUNC]]),\"YES\",IF(_xlfn.ISFORMULA(tblSchMJune19[[#This Row],[FUNC]]),\"NO\",\"YES\")))","v":"NO"}]
[{"$f":"CONCATENATE(tblSchMJune19[[#This Row],[Primary Account]],tblSchMJune19[[#This Row],[Primary Name]],tblSchMJune19[[#This Row],[Secondary Acct]],tblSchMJune19[[#This Row],[Secondary  Name]],tblSchMJune19[[#This Row],[Alloc4FUNC]])","v":"4099300SCHMDT425800Allowance for Doubtful A/C-Grid West W/OSG"},4099300,{"$f":"IF(tblSchMJune19[[#This Row],[Primary Account]]=4098200,\"SCHMAP\",IF(tblSchMJune19[[#This Row],[Primary Account]]=4098300,\"SCHMAT\",IF(tblSchMJune19[[#This Row],[Primary Account]]=4099200,\"SCHMDP\",IF(tblSchMJune19[[#This Row],[Primary Account]]=4099300,\"SCHMDT\"))))","v":"SCHMDT"},"425800","Allowance for Doubtful A/C-Grid West W/O","SG",null,{"$f":"IF(OR(tblSchMJune19[[#This Row],[Alloc]]=\"IDU\",tblSchMJune19[[#This Row],[Alloc]]=\"OR\",tblSchMJune19[[#This Row],[Alloc]]=\"UT\",tblSchMJune19[[#This Row],[Alloc]]=\"WYU\",tblSchMJune19[[#This Row],[Alloc]]=\"WYP\",tblSchMJune19[[#This Row],[Alloc]]=\"CA\",tblSchMJune19[[#This Row],[Alloc]]=\"WA\"),\"SITUS\",tblSchMJune19[[#This Row],[Alloc]])","v":"SG"},{"$f":"INDEX(tblSchMLookup[FUNC],MATCH(tblSchMJune19[[#This Row],[Concat]],tblSchMLookup[Concat],0))","v":{"$error":"#N/A"}},{"$f":"IF(tblSchMJune19[[#This Row],[Total ($000)]]=0,\"NO\",IF(ISNA(tblSchMJune19[[#This Row],[FUNC]]),\"YES\",IF(_xlfn.ISFORMULA(tblSchMJune19[[#This Row],[FUNC]]),\"NO\",\"YES\")))","v":"NO"}]
[{"$f":"CONCATENATE(tblSchMJune19[[#This Row],[Primary Account]],tblSchMJune19[[#This Row],[Primary Name]],tblSchMJune19[[#This Row],[Secondary Acct]],tblSchMJune19[[#This Row],[Secondary  Name]],tblSchMJune19[[#This Row],[Alloc4FUNC]])","v":"4099300SCHMDT430100Customer Service / WeatherizationOTHER"},4099300,{"$f":"IF(tblSchMJune19[[#This Row],[Primary Account]]=4098200,\"SCHMAP\",IF(tblSchMJune19[[#This Row],[Primary Account]]=4098300,\"SCHMAT\",IF(tblSchMJune19[[#This Row],[Primary Account]]=4099200,\"SCHMDP\",IF(tblSchMJune19[[#This Row],[Primary Account]]=4099300,\"SCHMDT\"))))","v":"SCHMDT"},"430100","Customer Service / Weatherization","OTHER",null,{"$f":"IF(OR(tblSchMJune19[[#This Row],[Alloc]]=\"IDU\",tblSchMJune19[[#This Row],[Alloc]]=\"OR\",tblSchMJune19[[#This Row],[Alloc]]=\"UT\",tblSchMJune19[[#This Row],[Alloc]]=\"WYU\",tblSchMJune19[[#This Row],[Alloc]]=\"WYP\",tblSchMJune19[[#This Row],[Alloc]]=\"CA\",tblSchMJune19[[#This Row],[Alloc]]=\"WA\"),\"SITUS\",tblSchMJune19[[#This Row],[Alloc]])","v":"OTHER"},{"$f":"INDEX(tblSchMLookup[FUNC],MATCH(tblSchMJune19[[#This Row],[Concat]],tblSchMLookup[Concat],0))","v":{"$error":"#N/A"}},{"$f":"IF(tblSchMJune19[[#This Row],[Total ($000)]]=0,\"NO\",IF(ISNA(tblSchMJune19[[#This Row],[FUNC]]),\"YES\",IF(_xlfn.ISFORMULA(tblSchMJune19[[#This Row],[FUNC]]),\"NO\",\"YES\")))","v":"NO"}]
[{"$f":"CONCATENATE(tblSchMJune19[[#This Row],[Primary Account]],tblSchMJune19[[#This Row],[Primary Name]],tblSchMJune19[[#This Row],[Secondary Acct]],tblSchMJune19[[#This Row],[Secondary  Name]],tblSchMJune19[[#This Row],[Alloc4FUNC]])","v":"4099300SCHMDT430110Reg Asset balance reclassOTHER"},4099300,{"$f":"IF(tblSchMJune19[[#This Row],[Primary Account]]=4098200,\"SCHMAP\",IF(tblSchMJune19[[#This Row],[Primary Account]]=4098300,\"SCHMAT\",IF(tblSchMJune19[[#This Row],[Primary Account]]=4099200,\"SCHMDP\",IF(tblSchMJune19[[#This Row],[Primary Account]]=4099300,\"SCHMDT\"))))","v":"SCHMDT"},"430110","Reg Asset balance reclass","OTHER",23147.146420000001,{"$f":"IF(OR(tblSchMJune19[[#This Row],[Alloc]]=\"IDU\",tblSchMJune19[[#This Row],[Alloc]]=\"OR\",tblSchMJune19[[#This Row],[Alloc]]=\"UT\",tblSchMJune19[[#This Row],[Alloc]]=\"WYU\",tblSchMJune19[[#This Row],[Alloc]]=\"WYP\",tblSchMJune19[[#This Row],[Alloc]]=\"CA\",tblSchMJune19[[#This Row],[Alloc]]=\"WA\"),\"SITUS\",tblSchMJune19[[#This Row],[Alloc]])","v":"OTHER"},{"$f":"INDEX(tblSchMLookup[FUNC],MATCH(tblSchMJune19[[#This Row],[Concat]],tblSchMLookup[Concat],0))","v":"GP"},{"$f":"IF(tblSchMJune19[[#This Row],[Total ($000)]]=0,\"NO\",IF(ISNA(tblSchMJune19[[#This Row],[FUNC]]),\"YES\",IF(_xlfn.ISFORMULA(tblSchMJune19[[#This Row],[FUNC]]),\"NO\",\"YES\")))","v":"NO"}]
[{"$f":"CONCATENATE(tblSchMJune19[[#This Row],[Primary Account]],tblSchMJune19[[#This Row],[Primary Name]],tblSchMJune19[[#This Row],[Secondary Acct]],tblSchMJune19[[#This Row],[Secondary  Name]],tblSchMJune19[[#This Row],[Alloc4FUNC]])","v":"4099300SCHMDT430111Reg Asset - SB 1149 Balance ReclassOTHER"},4099300,{"$f":"IF(tblSchMJune19[[#This Row],[Primary Account]]=4098200,\"SCHMAP\",IF(tblSchMJune19[[#This Row],[Primary Account]]=4098300,\"SCHMAT\",IF(tblSchMJune19[[#This Row],[Primary Account]]=4099200,\"SCHMDP\",IF(tblSchMJune19[[#This Row],[Primary Account]]=4099300,\"SCHMDT\"))))","v":"SCHMDT"},"430111","Reg Asset - SB 1149 Balance Reclass","OTHER",null,{"$f":"IF(OR(tblSchMJune19[[#This Row],[Alloc]]=\"IDU\",tblSchMJune19[[#This Row],[Alloc]]=\"OR\",tblSchMJune19[[#This Row],[Alloc]]=\"UT\",tblSchMJune19[[#This Row],[Alloc]]=\"WYU\",tblSchMJune19[[#This Row],[Alloc]]=\"WYP\",tblSchMJune19[[#This Row],[Alloc]]=\"CA\",tblSchMJune19[[#This Row],[Alloc]]=\"WA\"),\"SITUS\",tblSchMJune19[[#This Row],[Alloc]])","v":"OTHER"},{"$f":"INDEX(tblSchMLookup[FUNC],MATCH(tblSchMJune19[[#This Row],[Concat]],tblSchMLookup[Concat],0))","v":{"$error":"#N/A"}},{"$f":"IF(tblSchMJune19[[#This Row],[Total ($000)]]=0,\"NO\",IF(ISNA(tblSchMJune19[[#This Row],[FUNC]]),\"YES\",IF(_xlfn.ISFORMULA(tblSchMJune19[[#This Row],[FUNC]]),\"NO\",\"YES\")))","v":"NO"}]
[{"$f":"CONCATENATE(tblSchMJune19[[#This Row],[Primary Account]],tblSchMJune19[[#This Row],[Primary Name]],tblSchMJune19[[#This Row],[Secondary Acct]],tblSchMJune19[[#This Row],[Secondary  Name]],tblSchMJune19[[#This Row],[Alloc4FUNC]])","v":"4099300SCHMDT430112Reg Asset - Other - Balance ReclassOTHER"},4099300,{"$f":"IF(tblSchMJune19[[#This Row],[Primary Account]]=4098200,\"SCHMAP\",IF(tblSchMJune19[[#This Row],[Primary Account]]=4098300,\"SCHMAT\",IF(tblSchMJune19[[#This Row],[Primary Account]]=4099200,\"SCHMDP\",IF(tblSchMJune19[[#This Row],[Primary Account]]=4099300,\"SCHMDT\"))))","v":"SCHMDT"},"430112","Reg Asset - Other - Balance Reclass","OTHER",994.26656000000003,{"$f":"IF(OR(tblSchMJune19[[#This Row],[Alloc]]=\"IDU\",tblSchMJune19[[#This Row],[Alloc]]=\"OR\",tblSchMJune19[[#This Row],[Alloc]]=\"UT\",tblSchMJune19[[#This Row],[Alloc]]=\"WYU\",tblSchMJune19[[#This Row],[Alloc]]=\"WYP\",tblSchMJune19[[#This Row],[Alloc]]=\"CA\",tblSchMJune19[[#This Row],[Alloc]]=\"WA\"),\"SITUS\",tblSchMJune19[[#This Row],[Alloc]])","v":"OTHER"},{"$f":"INDEX(tblSchMLookup[FUNC],MATCH(tblSchMJune19[[#This Row],[Concat]],tblSchMLookup[Concat],0))","v":"GP"},{"$f":"IF(tblSchMJune19[[#This Row],[Total ($000)]]=0,\"NO\",IF(ISNA(tblSchMJune19[[#This Row],[FUNC]]),\"YES\",IF(_xlfn.ISFORMULA(tblSchMJune19[[#This Row],[FUNC]]),\"NO\",\"YES\")))","v":"NO"}]
[{"$f":"CONCATENATE(tblSchMJune19[[#This Row],[Primary Account]],tblSchMJune19[[#This Row],[Primary Name]],tblSchMJune19[[#This Row],[Secondary Acct]],tblSchMJune19[[#This Row],[Secondary  Name]],tblSchMJune19[[#This Row],[Alloc4FUNC]])","v":"4099300SCHMDT430113Reg Asset - Def NPC Balance ReclassOTHER"},4099300,{"$f":"IF(tblSchMJune19[[#This Row],[Primary Account]]=4098200,\"SCHMAP\",IF(tblSchMJune19[[#This Row],[Primary Account]]=4098300,\"SCHMAT\",IF(tblSchMJune19[[#This Row],[Primary Account]]=4099200,\"SCHMDP\",IF(tblSchMJune19[[#This Row],[Primary Account]]=4099300,\"SCHMDT\"))))","v":"SCHMDT"},"430113","Reg Asset - Def NPC Balance Reclass","OTHER",null,{"$f":"IF(OR(tblSchMJune19[[#This Row],[Alloc]]=\"IDU\",tblSchMJune19[[#This Row],[Alloc]]=\"OR\",tblSchMJune19[[#This Row],[Alloc]]=\"UT\",tblSchMJune19[[#This Row],[Alloc]]=\"WYU\",tblSchMJune19[[#This Row],[Alloc]]=\"WYP\",tblSchMJune19[[#This Row],[Alloc]]=\"CA\",tblSchMJune19[[#This Row],[Alloc]]=\"WA\"),\"SITUS\",tblSchMJune19[[#This Row],[Alloc]])","v":"OTHER"},{"$f":"INDEX(tblSchMLookup[FUNC],MATCH(tblSchMJune19[[#This Row],[Concat]],tblSchMLookup[Concat],0))","v":{"$error":"#N/A"}},{"$f":"IF(tblSchMJune19[[#This Row],[Total ($000)]]=0,\"NO\",IF(ISNA(tblSchMJune19[[#This Row],[FUNC]]),\"YES\",IF(_xlfn.ISFORMULA(tblSchMJune19[[#This Row],[FUNC]]),\"NO\",\"YES\")))","v":"NO"}]
[{"$f":"CONCATENATE(tblSchMJune19[[#This Row],[Primary Account]],tblSchMJune19[[#This Row],[Primary Name]],tblSchMJune19[[#This Row],[Secondary Acct]],tblSchMJune19[[#This Row],[Secondary  Name]],tblSchMJune19[[#This Row],[Alloc4FUNC]])","v":"4099300SCHMDT505115Sales & Use Tax AccrualSO"},4099300,{"$f":"IF(tblSchMJune19[[#This Row],[Primary Account]]=4098200,\"SCHMAP\",IF(tblSchMJune19[[#This Row],[Primary Account]]=4098300,\"SCHMAT\",IF(tblSchMJune19[[#This Row],[Primary Account]]=4099200,\"SCHMDP\",IF(tblSchMJune19[[#This Row],[Primary Account]]=4099300,\"SCHMDT\"))))","v":"SCHMDT"},"505115","Sales & Use Tax Accrual","SO",null,{"$f":"IF(OR(tblSchMJune19[[#This Row],[Alloc]]=\"IDU\",tblSchMJune19[[#This Row],[Alloc]]=\"OR\",tblSchMJune19[[#This Row],[Alloc]]=\"UT\",tblSchMJune19[[#This Row],[Alloc]]=\"WYU\",tblSchMJune19[[#This Row],[Alloc]]=\"WYP\",tblSchMJune19[[#This Row],[Alloc]]=\"CA\",tblSchMJune19[[#This Row],[Alloc]]=\"WA\"),\"SITUS\",tblSchMJune19[[#This Row],[Alloc]])","v":"SO"},{"$f":"INDEX(tblSchMLookup[FUNC],MATCH(tblSchMJune19[[#This Row],[Concat]],tblSchMLookup[Concat],0))","v":{"$error":"#N/A"}},{"$f":"IF(tblSchMJune19[[#This Row],[Total ($000)]]=0,\"NO\",IF(ISNA(tblSchMJune19[[#This Row],[FUNC]]),\"YES\",IF(_xlfn.ISFORMULA(tblSchMJune19[[#This Row],[FUNC]]),\"NO\",\"YES\")))","v":"NO"}]
[{"$f":"CONCATENATE(tblSchMJune19[[#This Row],[Primary Account]],tblSchMJune19[[#This Row],[Primary Name]],tblSchMJune19[[#This Row],[Secondary Acct]],tblSchMJune19[[#This Row],[Secondary  Name]],tblSchMJune19[[#This Row],[Alloc4FUNC]])","v":"4099300SCHMDT505125Accrued RoyaltiesSE"},4099300,{"$f":"IF(tblSchMJune19[[#This Row],[Primary Account]]=4098200,\"SCHMAP\",IF(tblSchMJune19[[#This Row],[Primary Account]]=4098300,\"SCHMAT\",IF(tblSchMJune19[[#This Row],[Primary Account]]=4099200,\"SCHMDP\",IF(tblSchMJune19[[#This Row],[Primary Account]]=4099300,\"SCHMDT\"))))","v":"SCHMDT"},"505125","Accrued Royalties","SE",null,{"$f":"IF(OR(tblSchMJune19[[#This Row],[Alloc]]=\"IDU\",tblSchMJune19[[#This Row],[Alloc]]=\"OR\",tblSchMJune19[[#This Row],[Alloc]]=\"UT\",tblSchMJune19[[#This Row],[Alloc]]=\"WYU\",tblSchMJune19[[#This Row],[Alloc]]=\"WYP\",tblSchMJune19[[#This Row],[Alloc]]=\"CA\",tblSchMJune19[[#This Row],[Alloc]]=\"WA\"),\"SITUS\",tblSchMJune19[[#This Row],[Alloc]])","v":"SE"},{"$f":"INDEX(tblSchMLookup[FUNC],MATCH(tblSchMJune19[[#This Row],[Concat]],tblSchMLookup[Concat],0))","v":{"$error":"#N/A"}},{"$f":"IF(tblSchMJune19[[#This Row],[Total ($000)]]=0,\"NO\",IF(ISNA(tblSchMJune19[[#This Row],[FUNC]]),\"YES\",IF(_xlfn.ISFORMULA(tblSchMJune19[[#This Row],[FUNC]]),\"NO\",\"YES\")))","v":"NO"}]
[{"$f":"CONCATENATE(tblSchMJune19[[#This Row],[Primary Account]],tblSchMJune19[[#This Row],[Primary Name]],tblSchMJune19[[#This Row],[Secondary Acct]],tblSchMJune19[[#This Row],[Secondary  Name]],tblSchMJune19[[#This Row],[Alloc4FUNC]])","v":"4099300SCHMDT505140Purchase Card Trans ProvisionSO"},4099300,{"$f":"IF(tblSchMJune19[[#This Row],[Primary Account]]=4098200,\"SCHMAP\",IF(tblSchMJune19[[#This Row],[Primary Account]]=4098300,\"SCHMAT\",IF(tblSchMJune19[[#This Row],[Primary Account]]=4099200,\"SCHMDP\",IF(tblSchMJune19[[#This Row],[Primary Account]]=4099300,\"SCHMDT\"))))","v":"SCHMDT"},"505140","Purchase Card Trans Provision","SO",null,{"$f":"IF(OR(tblSchMJune19[[#This Row],[Alloc]]=\"IDU\",tblSchMJune19[[#This Row],[Alloc]]=\"OR\",tblSchMJune19[[#This Row],[Alloc]]=\"UT\",tblSchMJune19[[#This Row],[Alloc]]=\"WYU\",tblSchMJune19[[#This Row],[Alloc]]=\"WYP\",tblSchMJune19[[#This Row],[Alloc]]=\"CA\",tblSchMJune19[[#This Row],[Alloc]]=\"WA\"),\"SITUS\",tblSchMJune19[[#This Row],[Alloc]])","v":"SO"},{"$f":"INDEX(tblSchMLookup[FUNC],MATCH(tblSchMJune19[[#This Row],[Concat]],tblSchMLookup[Concat],0))","v":{"$error":"#N/A"}},{"$f":"IF(tblSchMJune19[[#This Row],[Total ($000)]]=0,\"NO\",IF(ISNA(tblSchMJune19[[#This Row],[FUNC]]),\"YES\",IF(_xlfn.ISFORMULA(tblSchMJune19[[#This Row],[FUNC]]),\"NO\",\"YES\")))","v":"NO"}]
[{"$f":"CONCATENATE(tblSchMJune19[[#This Row],[Primary Account]],tblSchMJune19[[#This Row],[Primary Name]],tblSchMJune19[[#This Row],[Secondary Acct]],tblSchMJune19[[#This Row],[Secondary  Name]],tblSchMJune19[[#This Row],[Alloc4FUNC]])","v":"4099300SCHMDT505170West Valley Contract Termination Fee AccSG"},4099300,{"$f":"IF(tblSchMJune19[[#This Row],[Primary Account]]=4098200,\"SCHMAP\",IF(tblSchMJune19[[#This Row],[Primary Account]]=4098300,\"SCHMAT\",IF(tblSchMJune19[[#This Row],[Primary Account]]=4099200,\"SCHMDP\",IF(tblSchMJune19[[#This Row],[Primary Account]]=4099300,\"SCHMDT\"))))","v":"SCHMDT"},"505170","West Valley Contract Termination Fee Acc","SG",null,{"$f":"IF(OR(tblSchMJune19[[#This Row],[Alloc]]=\"IDU\",tblSchMJune19[[#This Row],[Alloc]]=\"OR\",tblSchMJune19[[#This Row],[Alloc]]=\"UT\",tblSchMJune19[[#This Row],[Alloc]]=\"WYU\",tblSchMJune19[[#This Row],[Alloc]]=\"WYP\",tblSchMJune19[[#This Row],[Alloc]]=\"CA\",tblSchMJune19[[#This Row],[Alloc]]=\"WA\"),\"SITUS\",tblSchMJune19[[#This Row],[Alloc]])","v":"SG"},{"$f":"INDEX(tblSchMLookup[FUNC],MATCH(tblSchMJune19[[#This Row],[Concat]],tblSchMLookup[Concat],0))","v":{"$error":"#N/A"}},{"$f":"IF(tblSchMJune19[[#This Row],[Total ($000)]]=0,\"NO\",IF(ISNA(tblSchMJune19[[#This Row],[FUNC]]),\"YES\",IF(_xlfn.ISFORMULA(tblSchMJune19[[#This Row],[FUNC]]),\"NO\",\"YES\")))","v":"NO"}]
[{"$f":"CONCATENATE(tblSchMJune19[[#This Row],[Primary Account]],tblSchMJune19[[#This Row],[Primary Name]],tblSchMJune19[[#This Row],[Secondary Acct]],tblSchMJune19[[#This Row],[Secondary  Name]],tblSchMJune19[[#This Row],[Alloc4FUNC]])","v":"4099300SCHMDT505400Bonus LiabilitySO"},4099300,{"$f":"IF(tblSchMJune19[[#This Row],[Primary Account]]=4098200,\"SCHMAP\",IF(tblSchMJune19[[#This Row],[Primary Account]]=4098300,\"SCHMAT\",IF(tblSchMJune19[[#This Row],[Primary Account]]=4099200,\"SCHMDP\",IF(tblSchMJune19[[#This Row],[Primary Account]]=4099300,\"SCHMDT\"))))","v":"SCHMDT"},"505400","Bonus Liability","SO",null,{"$f":"IF(OR(tblSchMJune19[[#This Row],[Alloc]]=\"IDU\",tblSchMJune19[[#This Row],[Alloc]]=\"OR\",tblSchMJune19[[#This Row],[Alloc]]=\"UT\",tblSchMJune19[[#This Row],[Alloc]]=\"WYU\",tblSchMJune19[[#This Row],[Alloc]]=\"WYP\",tblSchMJune19[[#This Row],[Alloc]]=\"CA\",tblSchMJune19[[#This Row],[Alloc]]=\"WA\"),\"SITUS\",tblSchMJune19[[#This Row],[Alloc]])","v":"SO"},{"$f":"INDEX(tblSchMLookup[FUNC],MATCH(tblSchMJune19[[#This Row],[Concat]],tblSchMLookup[Concat],0))","v":{"$error":"#N/A"}},{"$f":"IF(tblSchMJune19[[#This Row],[Total ($000)]]=0,\"NO\",IF(ISNA(tblSchMJune19[[#This Row],[FUNC]]),\"YES\",IF(_xlfn.ISFORMULA(tblSchMJune19[[#This Row],[FUNC]]),\"NO\",\"YES\")))","v":"NO"}]
[{"$f":"CONCATENATE(tblSchMJune19[[#This Row],[Primary Account]],tblSchMJune19[[#This Row],[Primary Name]],tblSchMJune19[[#This Row],[Secondary Acct]],tblSchMJune19[[#This Row],[Secondary  Name]],tblSchMJune19[[#This Row],[Alloc4FUNC]])","v":"4099300SCHMDT505510Vacation Accrual - PMISE"},4099300,{"$f":"IF(tblSchMJune19[[#This Row],[Primary Account]]=4098200,\"SCHMAP\",IF(tblSchMJune19[[#This Row],[Primary Account]]=4098300,\"SCHMAT\",IF(tblSchMJune19[[#This Row],[Primary Account]]=4099200,\"SCHMDP\",IF(tblSchMJune19[[#This Row],[Primary Account]]=4099300,\"SCHMDT\"))))","v":"SCHMDT"},"505510","Vacation Accrual - PMI","SE",11.054,{"$f":"IF(OR(tblSchMJune19[[#This Row],[Alloc]]=\"IDU\",tblSchMJune19[[#This Row],[Alloc]]=\"OR\",tblSchMJune19[[#This Row],[Alloc]]=\"UT\",tblSchMJune19[[#This Row],[Alloc]]=\"WYU\",tblSchMJune19[[#This Row],[Alloc]]=\"WYP\",tblSchMJune19[[#This Row],[Alloc]]=\"CA\",tblSchMJune19[[#This Row],[Alloc]]=\"WA\"),\"SITUS\",tblSchMJune19[[#This Row],[Alloc]])","v":"SE"},{"$f":"INDEX(tblSchMLookup[FUNC],MATCH(tblSchMJune19[[#This Row],[Concat]],tblSchMLookup[Concat],0))","v":"P"},{"$f":"IF(tblSchMJune19[[#This Row],[Total ($000)]]=0,\"NO\",IF(ISNA(tblSchMJune19[[#This Row],[FUNC]]),\"YES\",IF(_xlfn.ISFORMULA(tblSchMJune19[[#This Row],[FUNC]]),\"NO\",\"YES\")))","v":"NO"}]
[{"$f":"CONCATENATE(tblSchMJune19[[#This Row],[Primary Account]],tblSchMJune19[[#This Row],[Primary Name]],tblSchMJune19[[#This Row],[Secondary Acct]],tblSchMJune19[[#This Row],[Secondary  Name]],tblSchMJune19[[#This Row],[Alloc4FUNC]])","v":"4099300SCHMDT505520PMI Bonus AccrualSE"},4099300,{"$f":"IF(tblSchMJune19[[#This Row],[Primary Account]]=4098200,\"SCHMAP\",IF(tblSchMJune19[[#This Row],[Primary Account]]=4098300,\"SCHMAT\",IF(tblSchMJune19[[#This Row],[Primary Account]]=4099200,\"SCHMDP\",IF(tblSchMJune19[[#This Row],[Primary Account]]=4099300,\"SCHMDT\"))))","v":"SCHMDT"},"505520","PMI Bonus Accrual","SE",null,{"$f":"IF(OR(tblSchMJune19[[#This Row],[Alloc]]=\"IDU\",tblSchMJune19[[#This Row],[Alloc]]=\"OR\",tblSchMJune19[[#This Row],[Alloc]]=\"UT\",tblSchMJune19[[#This Row],[Alloc]]=\"WYU\",tblSchMJune19[[#This Row],[Alloc]]=\"WYP\",tblSchMJune19[[#This Row],[Alloc]]=\"CA\",tblSchMJune19[[#This Row],[Alloc]]=\"WA\"),\"SITUS\",tblSchMJune19[[#This Row],[Alloc]])","v":"SE"},{"$f":"INDEX(tblSchMLookup[FUNC],MATCH(tblSchMJune19[[#This Row],[Concat]],tblSchMLookup[Concat],0))","v":{"$error":"#N/A"}},{"$f":"IF(tblSchMJune19[[#This Row],[Total ($000)]]=0,\"NO\",IF(ISNA(tblSchMJune19[[#This Row],[FUNC]]),\"YES\",IF(_xlfn.ISFORMULA(tblSchMJune19[[#This Row],[FUNC]]),\"NO\",\"YES\")))","v":"NO"}]
[{"$f":"CONCATENATE(tblSchMJune19[[#This Row],[Primary Account]],tblSchMJune19[[#This Row],[Primary Name]],tblSchMJune19[[#This Row],[Secondary Acct]],tblSchMJune19[[#This Row],[Secondary  Name]],tblSchMJune19[[#This Row],[Alloc4FUNC]])","v":"4099300SCHMDT505600IGC Vacation AccrualSO"},4099300,{"$f":"IF(tblSchMJune19[[#This Row],[Primary Account]]=4098200,\"SCHMAP\",IF(tblSchMJune19[[#This Row],[Primary Account]]=4098300,\"SCHMAT\",IF(tblSchMJune19[[#This Row],[Primary Account]]=4099200,\"SCHMDP\",IF(tblSchMJune19[[#This Row],[Primary Account]]=4099300,\"SCHMDT\"))))","v":"SCHMDT"},"505600","IGC Vacation Accrual","SO",null,{"$f":"IF(OR(tblSchMJune19[[#This Row],[Alloc]]=\"IDU\",tblSchMJune19[[#This Row],[Alloc]]=\"OR\",tblSchMJune19[[#This Row],[Alloc]]=\"UT\",tblSchMJune19[[#This Row],[Alloc]]=\"WYU\",tblSchMJune19[[#This Row],[Alloc]]=\"WYP\",tblSchMJune19[[#This Row],[Alloc]]=\"CA\",tblSchMJune19[[#This Row],[Alloc]]=\"WA\"),\"SITUS\",tblSchMJune19[[#This Row],[Alloc]])","v":"SO"},{"$f":"INDEX(tblSchMLookup[FUNC],MATCH(tblSchMJune19[[#This Row],[Concat]],tblSchMLookup[Concat],0))","v":{"$error":"#N/A"}},{"$f":"IF(tblSchMJune19[[#This Row],[Total ($000)]]=0,\"NO\",IF(ISNA(tblSchMJune19[[#This Row],[FUNC]]),\"YES\",IF(_xlfn.ISFORMULA(tblSchMJune19[[#This Row],[FUNC]]),\"NO\",\"YES\")))","v":"NO"}]
[{"$f":"CONCATENATE(tblSchMJune19[[#This Row],[Primary Account]],tblSchMJune19[[#This Row],[Primary Name]],tblSchMJune19[[#This Row],[Secondary Acct]],tblSchMJune19[[#This Row],[Secondary  Name]],tblSchMJune19[[#This Row],[Alloc4FUNC]])","v":"4099300SCHMDT605101Trojan Decommissioning Costs - WASITUS"},4099300,{"$f":"IF(tblSchMJune19[[#This Row],[Primary Account]]=4098200,\"SCHMAP\",IF(tblSchMJune19[[#This Row],[Primary Account]]=4098300,\"SCHMAT\",IF(tblSchMJune19[[#This Row],[Primary Account]]=4099200,\"SCHMDP\",IF(tblSchMJune19[[#This Row],[Primary Account]]=4099300,\"SCHMDT\"))))","v":"SCHMDT"},"605101","Trojan Decommissioning Costs - WA","WA",null,{"$f":"IF(OR(tblSchMJune19[[#This Row],[Alloc]]=\"IDU\",tblSchMJune19[[#This Row],[Alloc]]=\"OR\",tblSchMJune19[[#This Row],[Alloc]]=\"UT\",tblSchMJune19[[#This Row],[Alloc]]=\"WYU\",tblSchMJune19[[#This Row],[Alloc]]=\"WYP\",tblSchMJune19[[#This Row],[Alloc]]=\"CA\",tblSchMJune19[[#This Row],[Alloc]]=\"WA\"),\"SITUS\",tblSchMJune19[[#This Row],[Alloc]])","v":"SITUS"},{"$f":"INDEX(tblSchMLookup[FUNC],MATCH(tblSchMJune19[[#This Row],[Concat]],tblSchMLookup[Concat],0))","v":{"$error":"#N/A"}},{"$f":"IF(tblSchMJune19[[#This Row],[Total ($000)]]=0,\"NO\",IF(ISNA(tblSchMJune19[[#This Row],[FUNC]]),\"YES\",IF(_xlfn.ISFORMULA(tblSchMJune19[[#This Row],[FUNC]]),\"NO\",\"YES\")))","v":"NO"}]
[{"$f":"CONCATENATE(tblSchMJune19[[#This Row],[Primary Account]],tblSchMJune19[[#This Row],[Primary Name]],tblSchMJune19[[#This Row],[Secondary Acct]],tblSchMJune19[[#This Row],[Secondary  Name]],tblSchMJune19[[#This Row],[Alloc4FUNC]])","v":"4099300SCHMDT605102Trojan Decommissioning Costs - ORSITUS"},4099300,{"$f":"IF(tblSchMJune19[[#This Row],[Primary Account]]=4098200,\"SCHMAP\",IF(tblSchMJune19[[#This Row],[Primary Account]]=4098300,\"SCHMAT\",IF(tblSchMJune19[[#This Row],[Primary Account]]=4099200,\"SCHMDP\",IF(tblSchMJune19[[#This Row],[Primary Account]]=4099300,\"SCHMDT\"))))","v":"SCHMDT"},"605102","Trojan Decommissioning Costs - OR","OR",null,{"$f":"IF(OR(tblSchMJune19[[#This Row],[Alloc]]=\"IDU\",tblSchMJune19[[#This Row],[Alloc]]=\"OR\",tblSchMJune19[[#This Row],[Alloc]]=\"UT\",tblSchMJune19[[#This Row],[Alloc]]=\"WYU\",tblSchMJune19[[#This Row],[Alloc]]=\"WYP\",tblSchMJune19[[#This Row],[Alloc]]=\"CA\",tblSchMJune19[[#This Row],[Alloc]]=\"WA\"),\"SITUS\",tblSchMJune19[[#This Row],[Alloc]])","v":"SITUS"},{"$f":"INDEX(tblSchMLookup[FUNC],MATCH(tblSchMJune19[[#This Row],[Concat]],tblSchMLookup[Concat],0))","v":{"$error":"#N/A"}},{"$f":"IF(tblSchMJune19[[#This Row],[Total ($000)]]=0,\"NO\",IF(ISNA(tblSchMJune19[[#This Row],[FUNC]]),\"YES\",IF(_xlfn.ISFORMULA(tblSchMJune19[[#This Row],[FUNC]]),\"NO\",\"YES\")))","v":"NO"}]
[{"$f":"CONCATENATE(tblSchMJune19[[#This Row],[Primary Account]],tblSchMJune19[[#This Row],[Primary Name]],tblSchMJune19[[#This Row],[Secondary Acct]],tblSchMJune19[[#This Row],[Secondary  Name]],tblSchMJune19[[#This Row],[Alloc4FUNC]])","v":"4099300SCHMDT605103ARO/Reg Diff - Trojan - WASITUS"},4099300,{"$f":"IF(tblSchMJune19[[#This Row],[Primary Account]]=4098200,\"SCHMAP\",IF(tblSchMJune19[[#This Row],[Primary Account]]=4098300,\"SCHMAT\",IF(tblSchMJune19[[#This Row],[Primary Account]]=4099200,\"SCHMDP\",IF(tblSchMJune19[[#This Row],[Primary Account]]=4099300,\"SCHMDT\"))))","v":"SCHMDT"},"605103","ARO/Reg Diff - Trojan - WA","WA",-2.54698,{"$f":"IF(OR(tblSchMJune19[[#This Row],[Alloc]]=\"IDU\",tblSchMJune19[[#This Row],[Alloc]]=\"OR\",tblSchMJune19[[#This Row],[Alloc]]=\"UT\",tblSchMJune19[[#This Row],[Alloc]]=\"WYU\",tblSchMJune19[[#This Row],[Alloc]]=\"WYP\",tblSchMJune19[[#This Row],[Alloc]]=\"CA\",tblSchMJune19[[#This Row],[Alloc]]=\"WA\"),\"SITUS\",tblSchMJune19[[#This Row],[Alloc]])","v":"SITUS"},{"$f":"INDEX(tblSchMLookup[FUNC],MATCH(tblSchMJune19[[#This Row],[Concat]],tblSchMLookup[Concat],0))","v":"P"},{"$f":"IF(tblSchMJune19[[#This Row],[Total ($000)]]=0,\"NO\",IF(ISNA(tblSchMJune19[[#This Row],[FUNC]]),\"YES\",IF(_xlfn.ISFORMULA(tblSchMJune19[[#This Row],[FUNC]]),\"NO\",\"YES\")))","v":"NO"}]
[{"$f":"CONCATENATE(tblSchMJune19[[#This Row],[Primary Account]],tblSchMJune19[[#This Row],[Primary Name]],tblSchMJune19[[#This Row],[Secondary Acct]],tblSchMJune19[[#This Row],[Secondary  Name]],tblSchMJune19[[#This Row],[Alloc4FUNC]])","v":"4099300SCHMDT605710Reverse Accrued Final ReclamationOTHER"},4099300,{"$f":"IF(tblSchMJune19[[#This Row],[Primary Account]]=4098200,\"SCHMAP\",IF(tblSchMJune19[[#This Row],[Primary Account]]=4098300,\"SCHMAT\",IF(tblSchMJune19[[#This Row],[Primary Account]]=4099200,\"SCHMDP\",IF(tblSchMJune19[[#This Row],[Primary Account]]=4099300,\"SCHMDT\"))))","v":"SCHMDT"},"605710","Reverse Accrued Final Reclamation","OTHER",null,{"$f":"IF(OR(tblSchMJune19[[#This Row],[Alloc]]=\"IDU\",tblSchMJune19[[#This Row],[Alloc]]=\"OR\",tblSchMJune19[[#This Row],[Alloc]]=\"UT\",tblSchMJune19[[#This Row],[Alloc]]=\"WYU\",tblSchMJune19[[#This Row],[Alloc]]=\"WYP\",tblSchMJune19[[#This Row],[Alloc]]=\"CA\",tblSchMJune19[[#This Row],[Alloc]]=\"WA\"),\"SITUS\",tblSchMJune19[[#This Row],[Alloc]])","v":"OTHER"},{"$f":"INDEX(tblSchMLookup[FUNC],MATCH(tblSchMJune19[[#This Row],[Concat]],tblSchMLookup[Concat],0))","v":{"$error":"#N/A"}},{"$f":"IF(tblSchMJune19[[#This Row],[Total ($000)]]=0,\"NO\",IF(ISNA(tblSchMJune19[[#This Row],[FUNC]]),\"YES\",IF(_xlfn.ISFORMULA(tblSchMJune19[[#This Row],[FUNC]]),\"NO\",\"YES\")))","v":"NO"}]
[{"$f":"CONCATENATE(tblSchMJune19[[#This Row],[Primary Account]],tblSchMJune19[[#This Row],[Primary Name]],tblSchMJune19[[#This Row],[Secondary Acct]],tblSchMJune19[[#This Row],[Secondary  Name]],tblSchMJune19[[#This Row],[Alloc4FUNC]])","v":"4099300SCHMDT610000PMI Coal Mine DevelopmentSE"},4099300,{"$f":"IF(tblSchMJune19[[#This Row],[Primary Account]]=4098200,\"SCHMAP\",IF(tblSchMJune19[[#This Row],[Primary Account]]=4098300,\"SCHMAT\",IF(tblSchMJune19[[#This Row],[Primary Account]]=4099200,\"SCHMDP\",IF(tblSchMJune19[[#This Row],[Primary Account]]=4099300,\"SCHMDT\"))))","v":"SCHMDT"},"610000","PMI Coal Mine Development","SE",null,{"$f":"IF(OR(tblSchMJune19[[#This Row],[Alloc]]=\"IDU\",tblSchMJune19[[#This Row],[Alloc]]=\"OR\",tblSchMJune19[[#This Row],[Alloc]]=\"UT\",tblSchMJune19[[#This Row],[Alloc]]=\"WYU\",tblSchMJune19[[#This Row],[Alloc]]=\"WYP\",tblSchMJune19[[#This Row],[Alloc]]=\"CA\",tblSchMJune19[[#This Row],[Alloc]]=\"WA\"),\"SITUS\",tblSchMJune19[[#This Row],[Alloc]])","v":"SE"},{"$f":"INDEX(tblSchMLookup[FUNC],MATCH(tblSchMJune19[[#This Row],[Concat]],tblSchMLookup[Concat],0))","v":{"$error":"#N/A"}},{"$f":"IF(tblSchMJune19[[#This Row],[Total ($000)]]=0,\"NO\",IF(ISNA(tblSchMJune19[[#This Row],[FUNC]]),\"YES\",IF(_xlfn.ISFORMULA(tblSchMJune19[[#This Row],[FUNC]]),\"NO\",\"YES\")))","v":"NO"}]
[{"$f":"CONCATENATE(tblSchMJune19[[#This Row],[Primary Account]],tblSchMJune19[[#This Row],[Primary Name]],tblSchMJune19[[#This Row],[Secondary Acct]],tblSchMJune19[[#This Row],[Secondary  Name]],tblSchMJune19[[#This Row],[Alloc4FUNC]])","v":"4099300SCHMDT610100PMIDEVT COST AMORTSE"},4099300,{"$f":"IF(tblSchMJune19[[#This Row],[Primary Account]]=4098200,\"SCHMAP\",IF(tblSchMJune19[[#This Row],[Primary Account]]=4098300,\"SCHMAT\",IF(tblSchMJune19[[#This Row],[Primary Account]]=4099200,\"SCHMDP\",IF(tblSchMJune19[[#This Row],[Primary Account]]=4099300,\"SCHMDT\"))))","v":"SCHMDT"},"610100","PMIDEVT COST AMORT","SE",-379.44499999999999,{"$f":"IF(OR(tblSchMJune19[[#This Row],[Alloc]]=\"IDU\",tblSchMJune19[[#This Row],[Alloc]]=\"OR\",tblSchMJune19[[#This Row],[Alloc]]=\"UT\",tblSchMJune19[[#This Row],[Alloc]]=\"WYU\",tblSchMJune19[[#This Row],[Alloc]]=\"WYP\",tblSchMJune19[[#This Row],[Alloc]]=\"CA\",tblSchMJune19[[#This Row],[Alloc]]=\"WA\"),\"SITUS\",tblSchMJune19[[#This Row],[Alloc]])","v":"SE"},{"$f":"INDEX(tblSchMLookup[FUNC],MATCH(tblSchMJune19[[#This Row],[Concat]],tblSchMLookup[Concat],0))","v":"P"},{"$f":"IF(tblSchMJune19[[#This Row],[Total ($000)]]=0,\"NO\",IF(ISNA(tblSchMJune19[[#This Row],[FUNC]]),\"YES\",IF(_xlfn.ISFORMULA(tblSchMJune19[[#This Row],[FUNC]]),\"NO\",\"YES\")))","v":"NO"}]
[{"$f":"CONCATENATE(tblSchMJune19[[#This Row],[Primary Account]],tblSchMJune19[[#This Row],[Primary Name]],tblSchMJune19[[#This Row],[Secondary Acct]],tblSchMJune19[[#This Row],[Secondary  Name]],tblSchMJune19[[#This Row],[Alloc4FUNC]])","v":"4099300SCHMDT6101001AMORT NOPAS 99-00 RARSO"},4099300,{"$f":"IF(tblSchMJune19[[#This Row],[Primary Account]]=4098200,\"SCHMAP\",IF(tblSchMJune19[[#This Row],[Primary Account]]=4098300,\"SCHMAT\",IF(tblSchMJune19[[#This Row],[Primary Account]]=4099200,\"SCHMDP\",IF(tblSchMJune19[[#This Row],[Primary Account]]=4099300,\"SCHMDT\"))))","v":"SCHMDT"},"6101001","AMORT NOPAS 99-00 RAR","SO",38.6325,{"$f":"IF(OR(tblSchMJune19[[#This Row],[Alloc]]=\"IDU\",tblSchMJune19[[#This Row],[Alloc]]=\"OR\",tblSchMJune19[[#This Row],[Alloc]]=\"UT\",tblSchMJune19[[#This Row],[Alloc]]=\"WYU\",tblSchMJune19[[#This Row],[Alloc]]=\"WYP\",tblSchMJune19[[#This Row],[Alloc]]=\"CA\",tblSchMJune19[[#This Row],[Alloc]]=\"WA\"),\"SITUS\",tblSchMJune19[[#This Row],[Alloc]])","v":"SO"},{"$f":"INDEX(tblSchMLookup[FUNC],MATCH(tblSchMJune19[[#This Row],[Concat]],tblSchMLookup[Concat],0))","v":"PTD"},{"$f":"IF(tblSchMJune19[[#This Row],[Total ($000)]]=0,\"NO\",IF(ISNA(tblSchMJune19[[#This Row],[FUNC]]),\"YES\",IF(_xlfn.ISFORMULA(tblSchMJune19[[#This Row],[FUNC]]),\"NO\",\"YES\")))","v":"NO"}]
[{"$f":"CONCATENATE(tblSchMJune19[[#This Row],[Primary Account]],tblSchMJune19[[#This Row],[Primary Name]],tblSchMJune19[[#This Row],[Secondary Acct]],tblSchMJune19[[#This Row],[Secondary  Name]],tblSchMJune19[[#This Row],[Alloc4FUNC]])","v":"4099300SCHMDT610110Ptax NOPAsSO"},4099300,{"$f":"IF(tblSchMJune19[[#This Row],[Primary Account]]=4098200,\"SCHMAP\",IF(tblSchMJune19[[#This Row],[Primary Account]]=4098300,\"SCHMAT\",IF(tblSchMJune19[[#This Row],[Primary Account]]=4099200,\"SCHMDP\",IF(tblSchMJune19[[#This Row],[Primary Account]]=4099300,\"SCHMDT\"))))","v":"SCHMDT"},"610110","Ptax NOPAs","SO",null,{"$f":"IF(OR(tblSchMJune19[[#This Row],[Alloc]]=\"IDU\",tblSchMJune19[[#This Row],[Alloc]]=\"OR\",tblSchMJune19[[#This Row],[Alloc]]=\"UT\",tblSchMJune19[[#This Row],[Alloc]]=\"WYU\",tblSchMJune19[[#This Row],[Alloc]]=\"WYP\",tblSchMJune19[[#This Row],[Alloc]]=\"CA\",tblSchMJune19[[#This Row],[Alloc]]=\"WA\"),\"SITUS\",tblSchMJune19[[#This Row],[Alloc]])","v":"SO"},{"$f":"INDEX(tblSchMLookup[FUNC],MATCH(tblSchMJune19[[#This Row],[Concat]],tblSchMLookup[Concat],0))","v":{"$error":"#N/A"}},{"$f":"IF(tblSchMJune19[[#This Row],[Total ($000)]]=0,\"NO\",IF(ISNA(tblSchMJune19[[#This Row],[FUNC]]),\"YES\",IF(_xlfn.ISFORMULA(tblSchMJune19[[#This Row],[FUNC]]),\"NO\",\"YES\")))","v":"NO"}]
[{"$f":"CONCATENATE(tblSchMJune19[[#This Row],[Primary Account]],tblSchMJune19[[#This Row],[Primary Name]],tblSchMJune19[[#This Row],[Secondary Acct]],tblSchMJune19[[#This Row],[Secondary  Name]],tblSchMJune19[[#This Row],[Alloc4FUNC]])","v":"4099300SCHMDT610111Bridger Coal Company Gain/Loss on AssetsSE"},4099300,{"$f":"IF(tblSchMJune19[[#This Row],[Primary Account]]=4098200,\"SCHMAP\",IF(tblSchMJune19[[#This Row],[Primary Account]]=4098300,\"SCHMAT\",IF(tblSchMJune19[[#This Row],[Primary Account]]=4099200,\"SCHMDP\",IF(tblSchMJune19[[#This Row],[Primary Account]]=4099300,\"SCHMDT\"))))","v":"SCHMDT"},"610111","Bridger Coal Company Gain/Loss on Assets","SE",128.99100000000001,{"$f":"IF(OR(tblSchMJune19[[#This Row],[Alloc]]=\"IDU\",tblSchMJune19[[#This Row],[Alloc]]=\"OR\",tblSchMJune19[[#This Row],[Alloc]]=\"UT\",tblSchMJune19[[#This Row],[Alloc]]=\"WYU\",tblSchMJune19[[#This Row],[Alloc]]=\"WYP\",tblSchMJune19[[#This Row],[Alloc]]=\"CA\",tblSchMJune19[[#This Row],[Alloc]]=\"WA\"),\"SITUS\",tblSchMJune19[[#This Row],[Alloc]])","v":"SE"},{"$f":"INDEX(tblSchMLookup[FUNC],MATCH(tblSchMJune19[[#This Row],[Concat]],tblSchMLookup[Concat],0))","v":"P"},{"$f":"IF(tblSchMJune19[[#This Row],[Total ($000)]]=0,\"NO\",IF(ISNA(tblSchMJune19[[#This Row],[FUNC]]),\"YES\",IF(_xlfn.ISFORMULA(tblSchMJune19[[#This Row],[FUNC]]),\"NO\",\"YES\")))","v":"NO"}]
[{"$f":"CONCATENATE(tblSchMJune19[[#This Row],[Primary Account]],tblSchMJune19[[#This Row],[Primary Name]],tblSchMJune19[[#This Row],[Secondary Acct]],tblSchMJune19[[#This Row],[Secondary  Name]],tblSchMJune19[[#This Row],[Alloc4FUNC]])","v":"4099300SCHMDT610114PMI EITF Pre Stripping CostsSE"},4099300,{"$f":"IF(tblSchMJune19[[#This Row],[Primary Account]]=4098200,\"SCHMAP\",IF(tblSchMJune19[[#This Row],[Primary Account]]=4098300,\"SCHMAT\",IF(tblSchMJune19[[#This Row],[Primary Account]]=4099200,\"SCHMDP\",IF(tblSchMJune19[[#This Row],[Primary Account]]=4099300,\"SCHMDT\"))))","v":"SCHMDT"},"610114","PMI EITF Pre Stripping Costs","SE",-3297.8049999999998,{"$f":"IF(OR(tblSchMJune19[[#This Row],[Alloc]]=\"IDU\",tblSchMJune19[[#This Row],[Alloc]]=\"OR\",tblSchMJune19[[#This Row],[Alloc]]=\"UT\",tblSchMJune19[[#This Row],[Alloc]]=\"WYU\",tblSchMJune19[[#This Row],[Alloc]]=\"WYP\",tblSchMJune19[[#This Row],[Alloc]]=\"CA\",tblSchMJune19[[#This Row],[Alloc]]=\"WA\"),\"SITUS\",tblSchMJune19[[#This Row],[Alloc]])","v":"SE"},{"$f":"INDEX(tblSchMLookup[FUNC],MATCH(tblSchMJune19[[#This Row],[Concat]],tblSchMLookup[Concat],0))","v":"P"},{"$f":"IF(tblSchMJune19[[#This Row],[Total ($000)]]=0,\"NO\",IF(ISNA(tblSchMJune19[[#This Row],[FUNC]]),\"YES\",IF(_xlfn.ISFORMULA(tblSchMJune19[[#This Row],[FUNC]]),\"NO\",\"YES\")))","v":"NO"}]
[{"$f":"CONCATENATE(tblSchMJune19[[#This Row],[Primary Account]],tblSchMJune19[[#This Row],[Primary Name]],tblSchMJune19[[#This Row],[Secondary Acct]],tblSchMJune19[[#This Row],[Secondary  Name]],tblSchMJune19[[#This Row],[Alloc4FUNC]])","v":"4099300SCHMDT610130781 Shopping Incentive_OROTHER"},4099300,{"$f":"IF(tblSchMJune19[[#This Row],[Primary Account]]=4098200,\"SCHMAP\",IF(tblSchMJune19[[#This Row],[Primary Account]]=4098300,\"SCHMAT\",IF(tblSchMJune19[[#This Row],[Primary Account]]=4099200,\"SCHMDP\",IF(tblSchMJune19[[#This Row],[Primary Account]]=4099300,\"SCHMDT\"))))","v":"SCHMDT"},"610130","781 Shopping Incentive_OR","OTHER",null,{"$f":"IF(OR(tblSchMJune19[[#This Row],[Alloc]]=\"IDU\",tblSchMJune19[[#This Row],[Alloc]]=\"OR\",tblSchMJune19[[#This Row],[Alloc]]=\"UT\",tblSchMJune19[[#This Row],[Alloc]]=\"WYU\",tblSchMJune19[[#This Row],[Alloc]]=\"WYP\",tblSchMJune19[[#This Row],[Alloc]]=\"CA\",tblSchMJune19[[#This Row],[Alloc]]=\"WA\"),\"SITUS\",tblSchMJune19[[#This Row],[Alloc]])","v":"OTHER"},{"$f":"INDEX(tblSchMLookup[FUNC],MATCH(tblSchMJune19[[#This Row],[Concat]],tblSchMLookup[Concat],0))","v":{"$error":"#N/A"}},{"$f":"IF(tblSchMJune19[[#This Row],[Total ($000)]]=0,\"NO\",IF(ISNA(tblSchMJune19[[#This Row],[FUNC]]),\"YES\",IF(_xlfn.ISFORMULA(tblSchMJune19[[#This Row],[FUNC]]),\"NO\",\"YES\")))","v":"NO"}]
[{"$f":"CONCATENATE(tblSchMJune19[[#This Row],[Primary Account]],tblSchMJune19[[#This Row],[Primary Name]],tblSchMJune19[[#This Row],[Secondary Acct]],tblSchMJune19[[#This Row],[Secondary  Name]],tblSchMJune19[[#This Row],[Alloc4FUNC]])","v":"4099300SCHMDT610135SB1149 Costs_OR OTHEROTHER"},4099300,{"$f":"IF(tblSchMJune19[[#This Row],[Primary Account]]=4098200,\"SCHMAP\",IF(tblSchMJune19[[#This Row],[Primary Account]]=4098300,\"SCHMAT\",IF(tblSchMJune19[[#This Row],[Primary Account]]=4099200,\"SCHMDP\",IF(tblSchMJune19[[#This Row],[Primary Account]]=4099300,\"SCHMDT\"))))","v":"SCHMDT"},"610135","SB1149 Costs_OR OTHER","OTHER",null,{"$f":"IF(OR(tblSchMJune19[[#This Row],[Alloc]]=\"IDU\",tblSchMJune19[[#This Row],[Alloc]]=\"OR\",tblSchMJune19[[#This Row],[Alloc]]=\"UT\",tblSchMJune19[[#This Row],[Alloc]]=\"WYU\",tblSchMJune19[[#This Row],[Alloc]]=\"WYP\",tblSchMJune19[[#This Row],[Alloc]]=\"CA\",tblSchMJune19[[#This Row],[Alloc]]=\"WA\"),\"SITUS\",tblSchMJune19[[#This Row],[Alloc]])","v":"OTHER"},{"$f":"INDEX(tblSchMLookup[FUNC],MATCH(tblSchMJune19[[#This Row],[Concat]],tblSchMLookup[Concat],0))","v":{"$error":"#N/A"}},{"$f":"IF(tblSchMJune19[[#This Row],[Total ($000)]]=0,\"NO\",IF(ISNA(tblSchMJune19[[#This Row],[FUNC]]),\"YES\",IF(_xlfn.ISFORMULA(tblSchMJune19[[#This Row],[FUNC]]),\"NO\",\"YES\")))","v":"NO"}]
[{"$f":"CONCATENATE(tblSchMJune19[[#This Row],[Primary Account]],tblSchMJune19[[#This Row],[Primary Name]],tblSchMJune19[[#This Row],[Secondary Acct]],tblSchMJune19[[#This Row],[Secondary  Name]],tblSchMJune19[[#This Row],[Alloc4FUNC]])","v":"4099300SCHMDT610140OR Rate RefundsOTHER"},4099300,{"$f":"IF(tblSchMJune19[[#This Row],[Primary Account]]=4098200,\"SCHMAP\",IF(tblSchMJune19[[#This Row],[Primary Account]]=4098300,\"SCHMAT\",IF(tblSchMJune19[[#This Row],[Primary Account]]=4099200,\"SCHMDP\",IF(tblSchMJune19[[#This Row],[Primary Account]]=4099300,\"SCHMDT\"))))","v":"SCHMDT"},"610140","OR Rate Refunds","OTHER",null,{"$f":"IF(OR(tblSchMJune19[[#This Row],[Alloc]]=\"IDU\",tblSchMJune19[[#This Row],[Alloc]]=\"OR\",tblSchMJune19[[#This Row],[Alloc]]=\"UT\",tblSchMJune19[[#This Row],[Alloc]]=\"WYU\",tblSchMJune19[[#This Row],[Alloc]]=\"WYP\",tblSchMJune19[[#This Row],[Alloc]]=\"CA\",tblSchMJune19[[#This Row],[Alloc]]=\"WA\"),\"SITUS\",tblSchMJune19[[#This Row],[Alloc]])","v":"OTHER"},{"$f":"INDEX(tblSchMLookup[FUNC],MATCH(tblSchMJune19[[#This Row],[Concat]],tblSchMLookup[Concat],0))","v":{"$error":"#N/A"}},{"$f":"IF(tblSchMJune19[[#This Row],[Total ($000)]]=0,\"NO\",IF(ISNA(tblSchMJune19[[#This Row],[FUNC]]),\"YES\",IF(_xlfn.ISFORMULA(tblSchMJune19[[#This Row],[FUNC]]),\"NO\",\"YES\")))","v":"NO"}]
[{"$f":"CONCATENATE(tblSchMJune19[[#This Row],[Primary Account]],tblSchMJune19[[#This Row],[Primary Name]],tblSchMJune19[[#This Row],[Secondary Acct]],tblSchMJune19[[#This Row],[Secondary  Name]],tblSchMJune19[[#This Row],[Alloc4FUNC]])","v":"4099300SCHMDT610141WA Rate RefundsOTHER"},4099300,{"$f":"IF(tblSchMJune19[[#This Row],[Primary Account]]=4098200,\"SCHMAP\",IF(tblSchMJune19[[#This Row],[Primary Account]]=4098300,\"SCHMAT\",IF(tblSchMJune19[[#This Row],[Primary Account]]=4099200,\"SCHMDP\",IF(tblSchMJune19[[#This Row],[Primary Account]]=4099300,\"SCHMDT\"))))","v":"SCHMDT"},"610141","WA Rate Refunds","OTHER",null,{"$f":"IF(OR(tblSchMJune19[[#This Row],[Alloc]]=\"IDU\",tblSchMJune19[[#This Row],[Alloc]]=\"OR\",tblSchMJune19[[#This Row],[Alloc]]=\"UT\",tblSchMJune19[[#This Row],[Alloc]]=\"WYU\",tblSchMJune19[[#This Row],[Alloc]]=\"WYP\",tblSchMJune19[[#This Row],[Alloc]]=\"CA\",tblSchMJune19[[#This Row],[Alloc]]=\"WA\"),\"SITUS\",tblSchMJune19[[#This Row],[Alloc]])","v":"OTHER"},{"$f":"INDEX(tblSchMLookup[FUNC],MATCH(tblSchMJune19[[#This Row],[Concat]],tblSchMLookup[Concat],0))","v":{"$error":"#N/A"}},{"$f":"IF(tblSchMJune19[[#This Row],[Total ($000)]]=0,\"NO\",IF(ISNA(tblSchMJune19[[#This Row],[FUNC]]),\"YES\",IF(_xlfn.ISFORMULA(tblSchMJune19[[#This Row],[FUNC]]),\"NO\",\"YES\")))","v":"NO"}]
[{"$f":"CONCATENATE(tblSchMJune19[[#This Row],[Primary Account]],tblSchMJune19[[#This Row],[Primary Name]],tblSchMJune19[[#This Row],[Secondary Acct]],tblSchMJune19[[#This Row],[Secondary  Name]],tblSchMJune19[[#This Row],[Alloc4FUNC]])","v":"4099300SCHMDT610142Reg. Liability - UT Home Energy LifelineSITUS"},4099300,{"$f":"IF(tblSchMJune19[[#This Row],[Primary Account]]=4098200,\"SCHMAP\",IF(tblSchMJune19[[#This Row],[Primary Account]]=4098300,\"SCHMAT\",IF(tblSchMJune19[[#This Row],[Primary Account]]=4099200,\"SCHMDP\",IF(tblSchMJune19[[#This Row],[Primary Account]]=4099300,\"SCHMDT\"))))","v":"SCHMDT"},"610142","Reg. Liability - UT Home Energy Lifeline","UT",88.368729999999999,{"$f":"IF(OR(tblSchMJune19[[#This Row],[Alloc]]=\"IDU\",tblSchMJune19[[#This Row],[Alloc]]=\"OR\",tblSchMJune19[[#This Row],[Alloc]]=\"UT\",tblSchMJune19[[#This Row],[Alloc]]=\"WYU\",tblSchMJune19[[#This Row],[Alloc]]=\"WYP\",tblSchMJune19[[#This Row],[Alloc]]=\"CA\",tblSchMJune19[[#This Row],[Alloc]]=\"WA\"),\"SITUS\",tblSchMJune19[[#This Row],[Alloc]])","v":"SITUS"},{"$f":"INDEX(tblSchMLookup[FUNC],MATCH(tblSchMJune19[[#This Row],[Concat]],tblSchMLookup[Concat],0))","v":"CUST"},{"$f":"IF(tblSchMJune19[[#This Row],[Total ($000)]]=0,\"NO\",IF(ISNA(tblSchMJune19[[#This Row],[FUNC]]),\"YES\",IF(_xlfn.ISFORMULA(tblSchMJune19[[#This Row],[FUNC]]),\"NO\",\"YES\")))","v":"NO"}]
[{"$f":"CONCATENATE(tblSchMJune19[[#This Row],[Primary Account]],tblSchMJune19[[#This Row],[Primary Name]],tblSchMJune19[[#This Row],[Secondary Acct]],tblSchMJune19[[#This Row],[Secondary  Name]],tblSchMJune19[[#This Row],[Alloc4FUNC]])","v":"4099300SCHMDT610143REG LIABILITY - WA LOW ENERGY PROGRAMSITUS"},4099300,{"$f":"IF(tblSchMJune19[[#This Row],[Primary Account]]=4098200,\"SCHMAP\",IF(tblSchMJune19[[#This Row],[Primary Account]]=4098300,\"SCHMAT\",IF(tblSchMJune19[[#This Row],[Primary Account]]=4099200,\"SCHMDP\",IF(tblSchMJune19[[#This Row],[Primary Account]]=4099300,\"SCHMDT\"))))","v":"SCHMDT"},"610143","REG LIABILITY - WA LOW ENERGY PROGRAM","WA",null,{"$f":"IF(OR(tblSchMJune19[[#This Row],[Alloc]]=\"IDU\",tblSchMJune19[[#This Row],[Alloc]]=\"OR\",tblSchMJune19[[#This Row],[Alloc]]=\"UT\",tblSchMJune19[[#This Row],[Alloc]]=\"WYU\",tblSchMJune19[[#This Row],[Alloc]]=\"WYP\",tblSchMJune19[[#This Row],[Alloc]]=\"CA\",tblSchMJune19[[#This Row],[Alloc]]=\"WA\"),\"SITUS\",tblSchMJune19[[#This Row],[Alloc]])","v":"SITUS"},{"$f":"INDEX(tblSchMLookup[FUNC],MATCH(tblSchMJune19[[#This Row],[Concat]],tblSchMLookup[Concat],0))","v":{"$error":"#N/A"}},{"$f":"IF(tblSchMJune19[[#This Row],[Total ($000)]]=0,\"NO\",IF(ISNA(tblSchMJune19[[#This Row],[FUNC]]),\"YES\",IF(_xlfn.ISFORMULA(tblSchMJune19[[#This Row],[FUNC]]),\"NO\",\"YES\")))","v":"NO"}]
[{"$f":"CONCATENATE(tblSchMJune19[[#This Row],[Primary Account]],tblSchMJune19[[#This Row],[Primary Name]],tblSchMJune19[[#This Row],[Secondary Acct]],tblSchMJune19[[#This Row],[Secondary  Name]],tblSchMJune19[[#This Row],[Alloc4FUNC]])","v":"4099300SCHMDT610145REG LIAB-DSMOTHER"},4099300,{"$f":"IF(tblSchMJune19[[#This Row],[Primary Account]]=4098200,\"SCHMAP\",IF(tblSchMJune19[[#This Row],[Primary Account]]=4098300,\"SCHMAT\",IF(tblSchMJune19[[#This Row],[Primary Account]]=4099200,\"SCHMDP\",IF(tblSchMJune19[[#This Row],[Primary Account]]=4099300,\"SCHMDT\"))))","v":"SCHMDT"},"610145","REG LIAB-DSM","OTHER",null,{"$f":"IF(OR(tblSchMJune19[[#This Row],[Alloc]]=\"IDU\",tblSchMJune19[[#This Row],[Alloc]]=\"OR\",tblSchMJune19[[#This Row],[Alloc]]=\"UT\",tblSchMJune19[[#This Row],[Alloc]]=\"WYU\",tblSchMJune19[[#This Row],[Alloc]]=\"WYP\",tblSchMJune19[[#This Row],[Alloc]]=\"CA\",tblSchMJune19[[#This Row],[Alloc]]=\"WA\"),\"SITUS\",tblSchMJune19[[#This Row],[Alloc]])","v":"OTHER"},{"$f":"INDEX(tblSchMLookup[FUNC],MATCH(tblSchMJune19[[#This Row],[Concat]],tblSchMLookup[Concat],0))","v":{"$error":"#N/A"}},{"$f":"IF(tblSchMJune19[[#This Row],[Total ($000)]]=0,\"NO\",IF(ISNA(tblSchMJune19[[#This Row],[FUNC]]),\"YES\",IF(_xlfn.ISFORMULA(tblSchMJune19[[#This Row],[FUNC]]),\"NO\",\"YES\")))","v":"NO"}]
[{"$f":"CONCATENATE(tblSchMJune19[[#This Row],[Primary Account]],tblSchMJune19[[#This Row],[Primary Name]],tblSchMJune19[[#This Row],[Secondary Acct]],tblSchMJune19[[#This Row],[Secondary  Name]],tblSchMJune19[[#This Row],[Alloc4FUNC]])","v":"4099300SCHMDT610146OR Reg Asset/Liability ConsolidationSITUS"},4099300,{"$f":"IF(tblSchMJune19[[#This Row],[Primary Account]]=4098200,\"SCHMAP\",IF(tblSchMJune19[[#This Row],[Primary Account]]=4098300,\"SCHMAT\",IF(tblSchMJune19[[#This Row],[Primary Account]]=4099200,\"SCHMDP\",IF(tblSchMJune19[[#This Row],[Primary Account]]=4099300,\"SCHMDT\"))))","v":"SCHMDT"},"610146","OR Reg Asset/Liability Consolidation","OR",0.29848000000000002,{"$f":"IF(OR(tblSchMJune19[[#This Row],[Alloc]]=\"IDU\",tblSchMJune19[[#This Row],[Alloc]]=\"OR\",tblSchMJune19[[#This Row],[Alloc]]=\"UT\",tblSchMJune19[[#This Row],[Alloc]]=\"WYU\",tblSchMJune19[[#This Row],[Alloc]]=\"WYP\",tblSchMJune19[[#This Row],[Alloc]]=\"CA\",tblSchMJune19[[#This Row],[Alloc]]=\"WA\"),\"SITUS\",tblSchMJune19[[#This Row],[Alloc]])","v":"SITUS"},{"$f":"INDEX(tblSchMLookup[FUNC],MATCH(tblSchMJune19[[#This Row],[Concat]],tblSchMLookup[Concat],0))","v":"PTD"},{"$f":"IF(tblSchMJune19[[#This Row],[Total ($000)]]=0,\"NO\",IF(ISNA(tblSchMJune19[[#This Row],[FUNC]]),\"YES\",IF(_xlfn.ISFORMULA(tblSchMJune19[[#This Row],[FUNC]]),\"NO\",\"YES\")))","v":"NO"}]
[{"$f":"CONCATENATE(tblSchMJune19[[#This Row],[Primary Account]],tblSchMJune19[[#This Row],[Primary Name]],tblSchMJune19[[#This Row],[Secondary Acct]],tblSchMJune19[[#This Row],[Secondary  Name]],tblSchMJune19[[#This Row],[Alloc4FUNC]])","v":"4099300SCHMDT610148Reg Liability - Def NPC Balance ReclassOTHER"},4099300,{"$f":"IF(tblSchMJune19[[#This Row],[Primary Account]]=4098200,\"SCHMAP\",IF(tblSchMJune19[[#This Row],[Primary Account]]=4098300,\"SCHMAT\",IF(tblSchMJune19[[#This Row],[Primary Account]]=4099200,\"SCHMDP\",IF(tblSchMJune19[[#This Row],[Primary Account]]=4099300,\"SCHMDT\"))))","v":"SCHMDT"},"610148","Reg Liability - Def NPC Balance Reclass","OTHER",null,{"$f":"IF(OR(tblSchMJune19[[#This Row],[Alloc]]=\"IDU\",tblSchMJune19[[#This Row],[Alloc]]=\"OR\",tblSchMJune19[[#This Row],[Alloc]]=\"UT\",tblSchMJune19[[#This Row],[Alloc]]=\"WYU\",tblSchMJune19[[#This Row],[Alloc]]=\"WYP\",tblSchMJune19[[#This Row],[Alloc]]=\"CA\",tblSchMJune19[[#This Row],[Alloc]]=\"WA\"),\"SITUS\",tblSchMJune19[[#This Row],[Alloc]])","v":"OTHER"},{"$f":"INDEX(tblSchMLookup[FUNC],MATCH(tblSchMJune19[[#This Row],[Concat]],tblSchMLookup[Concat],0))","v":{"$error":"#N/A"}},{"$f":"IF(tblSchMJune19[[#This Row],[Total ($000)]]=0,\"NO\",IF(ISNA(tblSchMJune19[[#This Row],[FUNC]]),\"YES\",IF(_xlfn.ISFORMULA(tblSchMJune19[[#This Row],[FUNC]]),\"NO\",\"YES\")))","v":"NO"}]
[{"$f":"CONCATENATE(tblSchMJune19[[#This Row],[Primary Account]],tblSchMJune19[[#This Row],[Primary Name]],tblSchMJune19[[#This Row],[Secondary Acct]],tblSchMJune19[[#This Row],[Secondary  Name]],tblSchMJune19[[#This Row],[Alloc4FUNC]])","v":"4099300SCHMDT610149Reg Liability - SB 1149 Balance ReclassOTHER"},4099300,{"$f":"IF(tblSchMJune19[[#This Row],[Primary Account]]=4098200,\"SCHMAP\",IF(tblSchMJune19[[#This Row],[Primary Account]]=4098300,\"SCHMAT\",IF(tblSchMJune19[[#This Row],[Primary Account]]=4099200,\"SCHMDP\",IF(tblSchMJune19[[#This Row],[Primary Account]]=4099300,\"SCHMDT\"))))","v":"SCHMDT"},"610149","Reg Liability - SB 1149 Balance Reclass","OTHER",null,{"$f":"IF(OR(tblSchMJune19[[#This Row],[Alloc]]=\"IDU\",tblSchMJune19[[#This Row],[Alloc]]=\"OR\",tblSchMJune19[[#This Row],[Alloc]]=\"UT\",tblSchMJune19[[#This Row],[Alloc]]=\"WYU\",tblSchMJune19[[#This Row],[Alloc]]=\"WYP\",tblSchMJune19[[#This Row],[Alloc]]=\"CA\",tblSchMJune19[[#This Row],[Alloc]]=\"WA\"),\"SITUS\",tblSchMJune19[[#This Row],[Alloc]])","v":"OTHER"},{"$f":"INDEX(tblSchMLookup[FUNC],MATCH(tblSchMJune19[[#This Row],[Concat]],tblSchMLookup[Concat],0))","v":{"$error":"#N/A"}},{"$f":"IF(tblSchMJune19[[#This Row],[Total ($000)]]=0,\"NO\",IF(ISNA(tblSchMJune19[[#This Row],[FUNC]]),\"YES\",IF(_xlfn.ISFORMULA(tblSchMJune19[[#This Row],[FUNC]]),\"NO\",\"YES\")))","v":"NO"}]
[{"$f":"CONCATENATE(tblSchMJune19[[#This Row],[Primary Account]],tblSchMJune19[[#This Row],[Primary Name]],tblSchMJune19[[#This Row],[Secondary Acct]],tblSchMJune19[[#This Row],[Secondary  Name]],tblSchMJune19[[#This Row],[Alloc4FUNC]])","v":"4099300SCHMDT705200Oregon Gain on Sale of Halsey-OROTHER"},4099300,{"$f":"IF(tblSchMJune19[[#This Row],[Primary Account]]=4098200,\"SCHMAP\",IF(tblSchMJune19[[#This Row],[Primary Account]]=4098300,\"SCHMAT\",IF(tblSchMJune19[[#This Row],[Primary Account]]=4099200,\"SCHMDP\",IF(tblSchMJune19[[#This Row],[Primary Account]]=4099300,\"SCHMDT\"))))","v":"SCHMDT"},"705200","Oregon Gain on Sale of Halsey-OR","OTHER",null,{"$f":"IF(OR(tblSchMJune19[[#This Row],[Alloc]]=\"IDU\",tblSchMJune19[[#This Row],[Alloc]]=\"OR\",tblSchMJune19[[#This Row],[Alloc]]=\"UT\",tblSchMJune19[[#This Row],[Alloc]]=\"WYU\",tblSchMJune19[[#This Row],[Alloc]]=\"WYP\",tblSchMJune19[[#This Row],[Alloc]]=\"CA\",tblSchMJune19[[#This Row],[Alloc]]=\"WA\"),\"SITUS\",tblSchMJune19[[#This Row],[Alloc]])","v":"OTHER"},{"$f":"INDEX(tblSchMLookup[FUNC],MATCH(tblSchMJune19[[#This Row],[Concat]],tblSchMLookup[Concat],0))","v":{"$error":"#N/A"}},{"$f":"IF(tblSchMJune19[[#This Row],[Total ($000)]]=0,\"NO\",IF(ISNA(tblSchMJune19[[#This Row],[FUNC]]),\"YES\",IF(_xlfn.ISFORMULA(tblSchMJune19[[#This Row],[FUNC]]),\"NO\",\"YES\")))","v":"NO"}]
[{"$f":"CONCATENATE(tblSchMJune19[[#This Row],[Primary Account]],tblSchMJune19[[#This Row],[Primary Name]],tblSchMJune19[[#This Row],[Secondary Acct]],tblSchMJune19[[#This Row],[Secondary  Name]],tblSchMJune19[[#This Row],[Alloc4FUNC]])","v":"4099300SCHMDT705210Property Insurance(Injuries & Damages)SO"},4099300,{"$f":"IF(tblSchMJune19[[#This Row],[Primary Account]]=4098200,\"SCHMAP\",IF(tblSchMJune19[[#This Row],[Primary Account]]=4098300,\"SCHMAT\",IF(tblSchMJune19[[#This Row],[Primary Account]]=4099200,\"SCHMDP\",IF(tblSchMJune19[[#This Row],[Primary Account]]=4099300,\"SCHMDT\"))))","v":"SCHMDT"},"705210","Property Insurance(Injuries & Damages)","SO",null,{"$f":"IF(OR(tblSchMJune19[[#This Row],[Alloc]]=\"IDU\",tblSchMJune19[[#This Row],[Alloc]]=\"OR\",tblSchMJune19[[#This Row],[Alloc]]=\"UT\",tblSchMJune19[[#This Row],[Alloc]]=\"WYU\",tblSchMJune19[[#This Row],[Alloc]]=\"WYP\",tblSchMJune19[[#This Row],[Alloc]]=\"CA\",tblSchMJune19[[#This Row],[Alloc]]=\"WA\"),\"SITUS\",tblSchMJune19[[#This Row],[Alloc]])","v":"SO"},{"$f":"INDEX(tblSchMLookup[FUNC],MATCH(tblSchMJune19[[#This Row],[Concat]],tblSchMLookup[Concat],0))","v":{"$error":"#N/A"}},{"$f":"IF(tblSchMJune19[[#This Row],[Total ($000)]]=0,\"NO\",IF(ISNA(tblSchMJune19[[#This Row],[FUNC]]),\"YES\",IF(_xlfn.ISFORMULA(tblSchMJune19[[#This Row],[FUNC]]),\"NO\",\"YES\")))","v":"NO"}]
[{"$f":"CONCATENATE(tblSchMJune19[[#This Row],[Primary Account]],tblSchMJune19[[#This Row],[Primary Name]],tblSchMJune19[[#This Row],[Secondary Acct]],tblSchMJune19[[#This Row],[Secondary  Name]],tblSchMJune19[[#This Row],[Alloc4FUNC]])","v":"4099300SCHMDT705232CA West Valley Lease ReductionSITUS"},4099300,{"$f":"IF(tblSchMJune19[[#This Row],[Primary Account]]=4098200,\"SCHMAP\",IF(tblSchMJune19[[#This Row],[Primary Account]]=4098300,\"SCHMAT\",IF(tblSchMJune19[[#This Row],[Primary Account]]=4099200,\"SCHMDP\",IF(tblSchMJune19[[#This Row],[Primary Account]]=4099300,\"SCHMDT\"))))","v":"SCHMDT"},"705232","CA West Valley Lease Reduction","CA",null,{"$f":"IF(OR(tblSchMJune19[[#This Row],[Alloc]]=\"IDU\",tblSchMJune19[[#This Row],[Alloc]]=\"OR\",tblSchMJune19[[#This Row],[Alloc]]=\"UT\",tblSchMJune19[[#This Row],[Alloc]]=\"WYU\",tblSchMJune19[[#This Row],[Alloc]]=\"WYP\",tblSchMJune19[[#This Row],[Alloc]]=\"CA\",tblSchMJune19[[#This Row],[Alloc]]=\"WA\"),\"SITUS\",tblSchMJune19[[#This Row],[Alloc]])","v":"SITUS"},{"$f":"INDEX(tblSchMLookup[FUNC],MATCH(tblSchMJune19[[#This Row],[Concat]],tblSchMLookup[Concat],0))","v":{"$error":"#N/A"}},{"$f":"IF(tblSchMJune19[[#This Row],[Total ($000)]]=0,\"NO\",IF(ISNA(tblSchMJune19[[#This Row],[FUNC]]),\"YES\",IF(_xlfn.ISFORMULA(tblSchMJune19[[#This Row],[FUNC]]),\"NO\",\"YES\")))","v":"NO"}]
[{"$f":"CONCATENATE(tblSchMJune19[[#This Row],[Primary Account]],tblSchMJune19[[#This Row],[Primary Name]],tblSchMJune19[[#This Row],[Secondary Acct]],tblSchMJune19[[#This Row],[Secondary  Name]],tblSchMJune19[[#This Row],[Alloc4FUNC]])","v":"4099300SCHMDT705233West Valley Lease Reduction - IDSITUS"},4099300,{"$f":"IF(tblSchMJune19[[#This Row],[Primary Account]]=4098200,\"SCHMAP\",IF(tblSchMJune19[[#This Row],[Primary Account]]=4098300,\"SCHMAT\",IF(tblSchMJune19[[#This Row],[Primary Account]]=4099200,\"SCHMDP\",IF(tblSchMJune19[[#This Row],[Primary Account]]=4099300,\"SCHMDT\"))))","v":"SCHMDT"},"705233","West Valley Lease Reduction - ID","IDU",null,{"$f":"IF(OR(tblSchMJune19[[#This Row],[Alloc]]=\"IDU\",tblSchMJune19[[#This Row],[Alloc]]=\"OR\",tblSchMJune19[[#This Row],[Alloc]]=\"UT\",tblSchMJune19[[#This Row],[Alloc]]=\"WYU\",tblSchMJune19[[#This Row],[Alloc]]=\"WYP\",tblSchMJune19[[#This Row],[Alloc]]=\"CA\",tblSchMJune19[[#This Row],[Alloc]]=\"WA\"),\"SITUS\",tblSchMJune19[[#This Row],[Alloc]])","v":"SITUS"},{"$f":"INDEX(tblSchMLookup[FUNC],MATCH(tblSchMJune19[[#This Row],[Concat]],tblSchMLookup[Concat],0))","v":{"$error":"#N/A"}},{"$f":"IF(tblSchMJune19[[#This Row],[Total ($000)]]=0,\"NO\",IF(ISNA(tblSchMJune19[[#This Row],[FUNC]]),\"YES\",IF(_xlfn.ISFORMULA(tblSchMJune19[[#This Row],[FUNC]]),\"NO\",\"YES\")))","v":"NO"}]
[{"$f":"CONCATENATE(tblSchMJune19[[#This Row],[Primary Account]],tblSchMJune19[[#This Row],[Primary Name]],tblSchMJune19[[#This Row],[Secondary Acct]],tblSchMJune19[[#This Row],[Secondary  Name]],tblSchMJune19[[#This Row],[Alloc4FUNC]])","v":"4099300SCHMDT705234West Valley Lease Reduction - WYSITUS"},4099300,{"$f":"IF(tblSchMJune19[[#This Row],[Primary Account]]=4098200,\"SCHMAP\",IF(tblSchMJune19[[#This Row],[Primary Account]]=4098300,\"SCHMAT\",IF(tblSchMJune19[[#This Row],[Primary Account]]=4099200,\"SCHMDP\",IF(tblSchMJune19[[#This Row],[Primary Account]]=4099300,\"SCHMDT\"))))","v":"SCHMDT"},"705234","West Valley Lease Reduction - WY","WYP",null,{"$f":"IF(OR(tblSchMJune19[[#This Row],[Alloc]]=\"IDU\",tblSchMJune19[[#This Row],[Alloc]]=\"OR\",tblSchMJune19[[#This Row],[Alloc]]=\"UT\",tblSchMJune19[[#This Row],[Alloc]]=\"WYU\",tblSchMJune19[[#This Row],[Alloc]]=\"WYP\",tblSchMJune19[[#This Row],[Alloc]]=\"CA\",tblSchMJune19[[#This Row],[Alloc]]=\"WA\"),\"SITUS\",tblSchMJune19[[#This Row],[Alloc]])","v":"SITUS"},{"$f":"INDEX(tblSchMLookup[FUNC],MATCH(tblSchMJune19[[#This Row],[Concat]],tblSchMLookup[Concat],0))","v":{"$error":"#N/A"}},{"$f":"IF(tblSchMJune19[[#This Row],[Total ($000)]]=0,\"NO\",IF(ISNA(tblSchMJune19[[#This Row],[FUNC]]),\"YES\",IF(_xlfn.ISFORMULA(tblSchMJune19[[#This Row],[FUNC]]),\"NO\",\"YES\")))","v":"NO"}]
[{"$f":"CONCATENATE(tblSchMJune19[[#This Row],[Primary Account]],tblSchMJune19[[#This Row],[Primary Name]],tblSchMJune19[[#This Row],[Secondary Acct]],tblSchMJune19[[#This Row],[Secondary  Name]],tblSchMJune19[[#This Row],[Alloc4FUNC]])","v":"4099300SCHMDT705235UT West Valley Lease ReductionSITUS"},4099300,{"$f":"IF(tblSchMJune19[[#This Row],[Primary Account]]=4098200,\"SCHMAP\",IF(tblSchMJune19[[#This Row],[Primary Account]]=4098300,\"SCHMAT\",IF(tblSchMJune19[[#This Row],[Primary Account]]=4099200,\"SCHMDP\",IF(tblSchMJune19[[#This Row],[Primary Account]]=4099300,\"SCHMDT\"))))","v":"SCHMDT"},"705235","UT West Valley Lease Reduction","UT",null,{"$f":"IF(OR(tblSchMJune19[[#This Row],[Alloc]]=\"IDU\",tblSchMJune19[[#This Row],[Alloc]]=\"OR\",tblSchMJune19[[#This Row],[Alloc]]=\"UT\",tblSchMJune19[[#This Row],[Alloc]]=\"WYU\",tblSchMJune19[[#This Row],[Alloc]]=\"WYP\",tblSchMJune19[[#This Row],[Alloc]]=\"CA\",tblSchMJune19[[#This Row],[Alloc]]=\"WA\"),\"SITUS\",tblSchMJune19[[#This Row],[Alloc]])","v":"SITUS"},{"$f":"INDEX(tblSchMLookup[FUNC],MATCH(tblSchMJune19[[#This Row],[Concat]],tblSchMLookup[Concat],0))","v":{"$error":"#N/A"}},{"$f":"IF(tblSchMJune19[[#This Row],[Total ($000)]]=0,\"NO\",IF(ISNA(tblSchMJune19[[#This Row],[FUNC]]),\"YES\",IF(_xlfn.ISFORMULA(tblSchMJune19[[#This Row],[FUNC]]),\"NO\",\"YES\")))","v":"NO"}]
[{"$f":"CONCATENATE(tblSchMJune19[[#This Row],[Primary Account]],tblSchMJune19[[#This Row],[Primary Name]],tblSchMJune19[[#This Row],[Secondary Acct]],tblSchMJune19[[#This Row],[Secondary  Name]],tblSchMJune19[[#This Row],[Alloc4FUNC]])","v":"4099300SCHMDT705250A&G Credit - WASITUS"},4099300,{"$f":"IF(tblSchMJune19[[#This Row],[Primary Account]]=4098200,\"SCHMAP\",IF(tblSchMJune19[[#This Row],[Primary Account]]=4098300,\"SCHMAT\",IF(tblSchMJune19[[#This Row],[Primary Account]]=4099200,\"SCHMDP\",IF(tblSchMJune19[[#This Row],[Primary Account]]=4099300,\"SCHMDT\"))))","v":"SCHMDT"},"705250","A&G Credit - WA","WA",null,{"$f":"IF(OR(tblSchMJune19[[#This Row],[Alloc]]=\"IDU\",tblSchMJune19[[#This Row],[Alloc]]=\"OR\",tblSchMJune19[[#This Row],[Alloc]]=\"UT\",tblSchMJune19[[#This Row],[Alloc]]=\"WYU\",tblSchMJune19[[#This Row],[Alloc]]=\"WYP\",tblSchMJune19[[#This Row],[Alloc]]=\"CA\",tblSchMJune19[[#This Row],[Alloc]]=\"WA\"),\"SITUS\",tblSchMJune19[[#This Row],[Alloc]])","v":"SITUS"},{"$f":"INDEX(tblSchMLookup[FUNC],MATCH(tblSchMJune19[[#This Row],[Concat]],tblSchMLookup[Concat],0))","v":{"$error":"#N/A"}},{"$f":"IF(tblSchMJune19[[#This Row],[Total ($000)]]=0,\"NO\",IF(ISNA(tblSchMJune19[[#This Row],[FUNC]]),\"YES\",IF(_xlfn.ISFORMULA(tblSchMJune19[[#This Row],[FUNC]]),\"NO\",\"YES\")))","v":"NO"}]
[{"$f":"CONCATENATE(tblSchMJune19[[#This Row],[Primary Account]],tblSchMJune19[[#This Row],[Primary Name]],tblSchMJune19[[#This Row],[Secondary Acct]],tblSchMJune19[[#This Row],[Secondary  Name]],tblSchMJune19[[#This Row],[Alloc4FUNC]])","v":"4099300SCHMDT705251A&G Credit-ORSITUS"},4099300,{"$f":"IF(tblSchMJune19[[#This Row],[Primary Account]]=4098200,\"SCHMAP\",IF(tblSchMJune19[[#This Row],[Primary Account]]=4098300,\"SCHMAT\",IF(tblSchMJune19[[#This Row],[Primary Account]]=4099200,\"SCHMDP\",IF(tblSchMJune19[[#This Row],[Primary Account]]=4099300,\"SCHMDT\"))))","v":"SCHMDT"},"705251","A&G Credit-OR","OR",null,{"$f":"IF(OR(tblSchMJune19[[#This Row],[Alloc]]=\"IDU\",tblSchMJune19[[#This Row],[Alloc]]=\"OR\",tblSchMJune19[[#This Row],[Alloc]]=\"UT\",tblSchMJune19[[#This Row],[Alloc]]=\"WYU\",tblSchMJune19[[#This Row],[Alloc]]=\"WYP\",tblSchMJune19[[#This Row],[Alloc]]=\"CA\",tblSchMJune19[[#This Row],[Alloc]]=\"WA\"),\"SITUS\",tblSchMJune19[[#This Row],[Alloc]])","v":"SITUS"},{"$f":"INDEX(tblSchMLookup[FUNC],MATCH(tblSchMJune19[[#This Row],[Concat]],tblSchMLookup[Concat],0))","v":{"$error":"#N/A"}},{"$f":"IF(tblSchMJune19[[#This Row],[Total ($000)]]=0,\"NO\",IF(ISNA(tblSchMJune19[[#This Row],[FUNC]]),\"YES\",IF(_xlfn.ISFORMULA(tblSchMJune19[[#This Row],[FUNC]]),\"NO\",\"YES\")))","v":"NO"}]
[{"$f":"CONCATENATE(tblSchMJune19[[#This Row],[Primary Account]],tblSchMJune19[[#This Row],[Primary Name]],tblSchMJune19[[#This Row],[Secondary Acct]],tblSchMJune19[[#This Row],[Secondary  Name]],tblSchMJune19[[#This Row],[Alloc4FUNC]])","v":"4099300SCHMDT705252A&G Credit-CASITUS"},4099300,{"$f":"IF(tblSchMJune19[[#This Row],[Primary Account]]=4098200,\"SCHMAP\",IF(tblSchMJune19[[#This Row],[Primary Account]]=4098300,\"SCHMAT\",IF(tblSchMJune19[[#This Row],[Primary Account]]=4099200,\"SCHMDP\",IF(tblSchMJune19[[#This Row],[Primary Account]]=4099300,\"SCHMDT\"))))","v":"SCHMDT"},"705252","A&G Credit-CA","CA",null,{"$f":"IF(OR(tblSchMJune19[[#This Row],[Alloc]]=\"IDU\",tblSchMJune19[[#This Row],[Alloc]]=\"OR\",tblSchMJune19[[#This Row],[Alloc]]=\"UT\",tblSchMJune19[[#This Row],[Alloc]]=\"WYU\",tblSchMJune19[[#This Row],[Alloc]]=\"WYP\",tblSchMJune19[[#This Row],[Alloc]]=\"CA\",tblSchMJune19[[#This Row],[Alloc]]=\"WA\"),\"SITUS\",tblSchMJune19[[#This Row],[Alloc]])","v":"SITUS"},{"$f":"INDEX(tblSchMLookup[FUNC],MATCH(tblSchMJune19[[#This Row],[Concat]],tblSchMLookup[Concat],0))","v":{"$error":"#N/A"}},{"$f":"IF(tblSchMJune19[[#This Row],[Total ($000)]]=0,\"NO\",IF(ISNA(tblSchMJune19[[#This Row],[FUNC]]),\"YES\",IF(_xlfn.ISFORMULA(tblSchMJune19[[#This Row],[FUNC]]),\"NO\",\"YES\")))","v":"NO"}]
[{"$f":"CONCATENATE(tblSchMJune19[[#This Row],[Primary Account]],tblSchMJune19[[#This Row],[Primary Name]],tblSchMJune19[[#This Row],[Secondary Acct]],tblSchMJune19[[#This Row],[Secondary  Name]],tblSchMJune19[[#This Row],[Alloc4FUNC]])","v":"4099300SCHMDT705253A&G Credit - IDSITUS"},4099300,{"$f":"IF(tblSchMJune19[[#This Row],[Primary Account]]=4098200,\"SCHMAP\",IF(tblSchMJune19[[#This Row],[Primary Account]]=4098300,\"SCHMAT\",IF(tblSchMJune19[[#This Row],[Primary Account]]=4099200,\"SCHMDP\",IF(tblSchMJune19[[#This Row],[Primary Account]]=4099300,\"SCHMDT\"))))","v":"SCHMDT"},"705253","A&G Credit - ID","IDU",null,{"$f":"IF(OR(tblSchMJune19[[#This Row],[Alloc]]=\"IDU\",tblSchMJune19[[#This Row],[Alloc]]=\"OR\",tblSchMJune19[[#This Row],[Alloc]]=\"UT\",tblSchMJune19[[#This Row],[Alloc]]=\"WYU\",tblSchMJune19[[#This Row],[Alloc]]=\"WYP\",tblSchMJune19[[#This Row],[Alloc]]=\"CA\",tblSchMJune19[[#This Row],[Alloc]]=\"WA\"),\"SITUS\",tblSchMJune19[[#This Row],[Alloc]])","v":"SITUS"},{"$f":"INDEX(tblSchMLookup[FUNC],MATCH(tblSchMJune19[[#This Row],[Concat]],tblSchMLookup[Concat],0))","v":{"$error":"#N/A"}},{"$f":"IF(tblSchMJune19[[#This Row],[Total ($000)]]=0,\"NO\",IF(ISNA(tblSchMJune19[[#This Row],[FUNC]]),\"YES\",IF(_xlfn.ISFORMULA(tblSchMJune19[[#This Row],[FUNC]]),\"NO\",\"YES\")))","v":"NO"}]
[{"$f":"CONCATENATE(tblSchMJune19[[#This Row],[Primary Account]],tblSchMJune19[[#This Row],[Primary Name]],tblSchMJune19[[#This Row],[Secondary Acct]],tblSchMJune19[[#This Row],[Secondary  Name]],tblSchMJune19[[#This Row],[Alloc4FUNC]])","v":"4099300SCHMDT705254A&G Credit - WYSITUS"},4099300,{"$f":"IF(tblSchMJune19[[#This Row],[Primary Account]]=4098200,\"SCHMAP\",IF(tblSchMJune19[[#This Row],[Primary Account]]=4098300,\"SCHMAT\",IF(tblSchMJune19[[#This Row],[Primary Account]]=4099200,\"SCHMDP\",IF(tblSchMJune19[[#This Row],[Primary Account]]=4099300,\"SCHMDT\"))))","v":"SCHMDT"},"705254","A&G Credit - WY","WYP",null,{"$f":"IF(OR(tblSchMJune19[[#This Row],[Alloc]]=\"IDU\",tblSchMJune19[[#This Row],[Alloc]]=\"OR\",tblSchMJune19[[#This Row],[Alloc]]=\"UT\",tblSchMJune19[[#This Row],[Alloc]]=\"WYU\",tblSchMJune19[[#This Row],[Alloc]]=\"WYP\",tblSchMJune19[[#This Row],[Alloc]]=\"CA\",tblSchMJune19[[#This Row],[Alloc]]=\"WA\"),\"SITUS\",tblSchMJune19[[#This Row],[Alloc]])","v":"SITUS"},{"$f":"INDEX(tblSchMLookup[FUNC],MATCH(tblSchMJune19[[#This Row],[Concat]],tblSchMLookup[Concat],0))","v":{"$error":"#N/A"}},{"$f":"IF(tblSchMJune19[[#This Row],[Total ($000)]]=0,\"NO\",IF(ISNA(tblSchMJune19[[#This Row],[FUNC]]),\"YES\",IF(_xlfn.ISFORMULA(tblSchMJune19[[#This Row],[FUNC]]),\"NO\",\"YES\")))","v":"NO"}]
[{"$f":"CONCATENATE(tblSchMJune19[[#This Row],[Primary Account]],tblSchMJune19[[#This Row],[Primary Name]],tblSchMJune19[[#This Row],[Secondary Acct]],tblSchMJune19[[#This Row],[Secondary  Name]],tblSchMJune19[[#This Row],[Alloc4FUNC]])","v":"4099300SCHMDT705261Reg Liability - Sale of Renewable EnergyOTHER"},4099300,{"$f":"IF(tblSchMJune19[[#This Row],[Primary Account]]=4098200,\"SCHMAP\",IF(tblSchMJune19[[#This Row],[Primary Account]]=4098300,\"SCHMAT\",IF(tblSchMJune19[[#This Row],[Primary Account]]=4099200,\"SCHMDP\",IF(tblSchMJune19[[#This Row],[Primary Account]]=4099300,\"SCHMDT\"))))","v":"SCHMDT"},"705261","Reg Liability - Sale of Renewable Energy","OTHER",null,{"$f":"IF(OR(tblSchMJune19[[#This Row],[Alloc]]=\"IDU\",tblSchMJune19[[#This Row],[Alloc]]=\"OR\",tblSchMJune19[[#This Row],[Alloc]]=\"UT\",tblSchMJune19[[#This Row],[Alloc]]=\"WYU\",tblSchMJune19[[#This Row],[Alloc]]=\"WYP\",tblSchMJune19[[#This Row],[Alloc]]=\"CA\",tblSchMJune19[[#This Row],[Alloc]]=\"WA\"),\"SITUS\",tblSchMJune19[[#This Row],[Alloc]])","v":"OTHER"},{"$f":"INDEX(tblSchMLookup[FUNC],MATCH(tblSchMJune19[[#This Row],[Concat]],tblSchMLookup[Concat],0))","v":"P"},{"$f":"IF(tblSchMJune19[[#This Row],[Total ($000)]]=0,\"NO\",IF(ISNA(tblSchMJune19[[#This Row],[FUNC]]),\"YES\",IF(_xlfn.ISFORMULA(tblSchMJune19[[#This Row],[FUNC]]),\"NO\",\"YES\")))","v":"NO"}]
[{"$f":"CONCATENATE(tblSchMJune19[[#This Row],[Primary Account]],tblSchMJune19[[#This Row],[Primary Name]],tblSchMJune19[[#This Row],[Secondary Acct]],tblSchMJune19[[#This Row],[Secondary  Name]],tblSchMJune19[[#This Row],[Alloc4FUNC]])","v":"4099300SCHMDT705265Reg Liab - OR Energy Conservation ChargeOTHER"},4099300,{"$f":"IF(tblSchMJune19[[#This Row],[Primary Account]]=4098200,\"SCHMAP\",IF(tblSchMJune19[[#This Row],[Primary Account]]=4098300,\"SCHMAT\",IF(tblSchMJune19[[#This Row],[Primary Account]]=4099200,\"SCHMDP\",IF(tblSchMJune19[[#This Row],[Primary Account]]=4099300,\"SCHMDT\"))))","v":"SCHMDT"},"705265","Reg Liab - OR Energy Conservation Charge","OTHER",-131.16658000000001,{"$f":"IF(OR(tblSchMJune19[[#This Row],[Alloc]]=\"IDU\",tblSchMJune19[[#This Row],[Alloc]]=\"OR\",tblSchMJune19[[#This Row],[Alloc]]=\"UT\",tblSchMJune19[[#This Row],[Alloc]]=\"WYU\",tblSchMJune19[[#This Row],[Alloc]]=\"WYP\",tblSchMJune19[[#This Row],[Alloc]]=\"CA\",tblSchMJune19[[#This Row],[Alloc]]=\"WA\"),\"SITUS\",tblSchMJune19[[#This Row],[Alloc]])","v":"OTHER"},{"$f":"INDEX(tblSchMLookup[FUNC],MATCH(tblSchMJune19[[#This Row],[Concat]],tblSchMLookup[Concat],0))","v":"P"},{"$f":"IF(tblSchMJune19[[#This Row],[Total ($000)]]=0,\"NO\",IF(ISNA(tblSchMJune19[[#This Row],[FUNC]]),\"YES\",IF(_xlfn.ISFORMULA(tblSchMJune19[[#This Row],[FUNC]]),\"NO\",\"YES\")))","v":"NO"}]
[{"$f":"CONCATENATE(tblSchMJune19[[#This Row],[Primary Account]],tblSchMJune19[[#This Row],[Primary Name]],tblSchMJune19[[#This Row],[Secondary Acct]],tblSchMJune19[[#This Row],[Secondary  Name]],tblSchMJune19[[#This Row],[Alloc4FUNC]])","v":"4099300SCHMDT705300Reg. Liability - Deferred Benefit_Arch SSE"},4099300,{"$f":"IF(tblSchMJune19[[#This Row],[Primary Account]]=4098200,\"SCHMAP\",IF(tblSchMJune19[[#This Row],[Primary Account]]=4098300,\"SCHMAT\",IF(tblSchMJune19[[#This Row],[Primary Account]]=4099200,\"SCHMDP\",IF(tblSchMJune19[[#This Row],[Primary Account]]=4099300,\"SCHMDT\"))))","v":"SCHMDT"},"705300","Reg. Liability - Deferred Benefit_Arch S","SE",null,{"$f":"IF(OR(tblSchMJune19[[#This Row],[Alloc]]=\"IDU\",tblSchMJune19[[#This Row],[Alloc]]=\"OR\",tblSchMJune19[[#This Row],[Alloc]]=\"UT\",tblSchMJune19[[#This Row],[Alloc]]=\"WYU\",tblSchMJune19[[#This Row],[Alloc]]=\"WYP\",tblSchMJune19[[#This Row],[Alloc]]=\"CA\",tblSchMJune19[[#This Row],[Alloc]]=\"WA\"),\"SITUS\",tblSchMJune19[[#This Row],[Alloc]])","v":"SE"},{"$f":"INDEX(tblSchMLookup[FUNC],MATCH(tblSchMJune19[[#This Row],[Concat]],tblSchMLookup[Concat],0))","v":{"$error":"#N/A"}},{"$f":"IF(tblSchMJune19[[#This Row],[Total ($000)]]=0,\"NO\",IF(ISNA(tblSchMJune19[[#This Row],[FUNC]]),\"YES\",IF(_xlfn.ISFORMULA(tblSchMJune19[[#This Row],[FUNC]]),\"NO\",\"YES\")))","v":"NO"}]
[{"$f":"CONCATENATE(tblSchMJune19[[#This Row],[Primary Account]],tblSchMJune19[[#This Row],[Primary Name]],tblSchMJune19[[#This Row],[Secondary Acct]],tblSchMJune19[[#This Row],[Secondary  Name]],tblSchMJune19[[#This Row],[Alloc4FUNC]])","v":"4099300SCHMDT705305Reg Liability-CA Gain on Sale of AssetSITUS"},4099300,{"$f":"IF(tblSchMJune19[[#This Row],[Primary Account]]=4098200,\"SCHMAP\",IF(tblSchMJune19[[#This Row],[Primary Account]]=4098300,\"SCHMAT\",IF(tblSchMJune19[[#This Row],[Primary Account]]=4099200,\"SCHMDP\",IF(tblSchMJune19[[#This Row],[Primary Account]]=4099300,\"SCHMDT\"))))","v":"SCHMDT"},"705305","Reg Liability-CA Gain on Sale of Asset","CA",null,{"$f":"IF(OR(tblSchMJune19[[#This Row],[Alloc]]=\"IDU\",tblSchMJune19[[#This Row],[Alloc]]=\"OR\",tblSchMJune19[[#This Row],[Alloc]]=\"UT\",tblSchMJune19[[#This Row],[Alloc]]=\"WYU\",tblSchMJune19[[#This Row],[Alloc]]=\"WYP\",tblSchMJune19[[#This Row],[Alloc]]=\"CA\",tblSchMJune19[[#This Row],[Alloc]]=\"WA\"),\"SITUS\",tblSchMJune19[[#This Row],[Alloc]])","v":"SITUS"},{"$f":"INDEX(tblSchMLookup[FUNC],MATCH(tblSchMJune19[[#This Row],[Concat]],tblSchMLookup[Concat],0))","v":{"$error":"#N/A"}},{"$f":"IF(tblSchMJune19[[#This Row],[Total ($000)]]=0,\"NO\",IF(ISNA(tblSchMJune19[[#This Row],[FUNC]]),\"YES\",IF(_xlfn.ISFORMULA(tblSchMJune19[[#This Row],[FUNC]]),\"NO\",\"YES\")))","v":"NO"}]
[{"$f":"CONCATENATE(tblSchMJune19[[#This Row],[Primary Account]],tblSchMJune19[[#This Row],[Primary Name]],tblSchMJune19[[#This Row],[Secondary Acct]],tblSchMJune19[[#This Row],[Secondary  Name]],tblSchMJune19[[#This Row],[Alloc4FUNC]])","v":"4099300SCHMDT705310Reg Liability-UT Gain on Sale of AssetSITUS"},4099300,{"$f":"IF(tblSchMJune19[[#This Row],[Primary Account]]=4098200,\"SCHMAP\",IF(tblSchMJune19[[#This Row],[Primary Account]]=4098300,\"SCHMAT\",IF(tblSchMJune19[[#This Row],[Primary Account]]=4099200,\"SCHMDP\",IF(tblSchMJune19[[#This Row],[Primary Account]]=4099300,\"SCHMDT\"))))","v":"SCHMDT"},"705310","Reg Liability-UT Gain on Sale of Asset","UT",null,{"$f":"IF(OR(tblSchMJune19[[#This Row],[Alloc]]=\"IDU\",tblSchMJune19[[#This Row],[Alloc]]=\"OR\",tblSchMJune19[[#This Row],[Alloc]]=\"UT\",tblSchMJune19[[#This Row],[Alloc]]=\"WYU\",tblSchMJune19[[#This Row],[Alloc]]=\"WYP\",tblSchMJune19[[#This Row],[Alloc]]=\"CA\",tblSchMJune19[[#This Row],[Alloc]]=\"WA\"),\"SITUS\",tblSchMJune19[[#This Row],[Alloc]])","v":"SITUS"},{"$f":"INDEX(tblSchMLookup[FUNC],MATCH(tblSchMJune19[[#This Row],[Concat]],tblSchMLookup[Concat],0))","v":{"$error":"#N/A"}},{"$f":"IF(tblSchMJune19[[#This Row],[Total ($000)]]=0,\"NO\",IF(ISNA(tblSchMJune19[[#This Row],[FUNC]]),\"YES\",IF(_xlfn.ISFORMULA(tblSchMJune19[[#This Row],[FUNC]]),\"NO\",\"YES\")))","v":"NO"}]
[{"$f":"CONCATENATE(tblSchMJune19[[#This Row],[Primary Account]],tblSchMJune19[[#This Row],[Primary Name]],tblSchMJune19[[#This Row],[Secondary Acct]],tblSchMJune19[[#This Row],[Secondary  Name]],tblSchMJune19[[#This Row],[Alloc4FUNC]])","v":"4099300SCHMDT705320Reg Liability-ID Gain on Sale of AssetSITUS"},4099300,{"$f":"IF(tblSchMJune19[[#This Row],[Primary Account]]=4098200,\"SCHMAP\",IF(tblSchMJune19[[#This Row],[Primary Account]]=4098300,\"SCHMAT\",IF(tblSchMJune19[[#This Row],[Primary Account]]=4099200,\"SCHMDP\",IF(tblSchMJune19[[#This Row],[Primary Account]]=4099300,\"SCHMDT\"))))","v":"SCHMDT"},"705320","Reg Liability-ID Gain on Sale of Asset","IDU",null,{"$f":"IF(OR(tblSchMJune19[[#This Row],[Alloc]]=\"IDU\",tblSchMJune19[[#This Row],[Alloc]]=\"OR\",tblSchMJune19[[#This Row],[Alloc]]=\"UT\",tblSchMJune19[[#This Row],[Alloc]]=\"WYU\",tblSchMJune19[[#This Row],[Alloc]]=\"WYP\",tblSchMJune19[[#This Row],[Alloc]]=\"CA\",tblSchMJune19[[#This Row],[Alloc]]=\"WA\"),\"SITUS\",tblSchMJune19[[#This Row],[Alloc]])","v":"SITUS"},{"$f":"INDEX(tblSchMLookup[FUNC],MATCH(tblSchMJune19[[#This Row],[Concat]],tblSchMLookup[Concat],0))","v":{"$error":"#N/A"}},{"$f":"IF(tblSchMJune19[[#This Row],[Total ($000)]]=0,\"NO\",IF(ISNA(tblSchMJune19[[#This Row],[FUNC]]),\"YES\",IF(_xlfn.ISFORMULA(tblSchMJune19[[#This Row],[FUNC]]),\"NO\",\"YES\")))","v":"NO"}]
[{"$f":"CONCATENATE(tblSchMJune19[[#This Row],[Primary Account]],tblSchMJune19[[#This Row],[Primary Name]],tblSchMJune19[[#This Row],[Secondary Acct]],tblSchMJune19[[#This Row],[Secondary  Name]],tblSchMJune19[[#This Row],[Alloc4FUNC]])","v":"4099300SCHMDT705330Reg Liability-WY Gain on Sale of AssetSITUS"},4099300,{"$f":"IF(tblSchMJune19[[#This Row],[Primary Account]]=4098200,\"SCHMAP\",IF(tblSchMJune19[[#This Row],[Primary Account]]=4098300,\"SCHMAT\",IF(tblSchMJune19[[#This Row],[Primary Account]]=4099200,\"SCHMDP\",IF(tblSchMJune19[[#This Row],[Primary Account]]=4099300,\"SCHMDT\"))))","v":"SCHMDT"},"705330","Reg Liability-WY Gain on Sale of Asset","WYP",null,{"$f":"IF(OR(tblSchMJune19[[#This Row],[Alloc]]=\"IDU\",tblSchMJune19[[#This Row],[Alloc]]=\"OR\",tblSchMJune19[[#This Row],[Alloc]]=\"UT\",tblSchMJune19[[#This Row],[Alloc]]=\"WYU\",tblSchMJune19[[#This Row],[Alloc]]=\"WYP\",tblSchMJune19[[#This Row],[Alloc]]=\"CA\",tblSchMJune19[[#This Row],[Alloc]]=\"WA\"),\"SITUS\",tblSchMJune19[[#This Row],[Alloc]])","v":"SITUS"},{"$f":"INDEX(tblSchMLookup[FUNC],MATCH(tblSchMJune19[[#This Row],[Concat]],tblSchMLookup[Concat],0))","v":{"$error":"#N/A"}},{"$f":"IF(tblSchMJune19[[#This Row],[Total ($000)]]=0,\"NO\",IF(ISNA(tblSchMJune19[[#This Row],[FUNC]]),\"YES\",IF(_xlfn.ISFORMULA(tblSchMJune19[[#This Row],[FUNC]]),\"NO\",\"YES\")))","v":"NO"}]
[{"$f":"CONCATENATE(tblSchMJune19[[#This Row],[Primary Account]],tblSchMJune19[[#This Row],[Primary Name]],tblSchMJune19[[#This Row],[Secondary Acct]],tblSchMJune19[[#This Row],[Secondary  Name]],tblSchMJune19[[#This Row],[Alloc4FUNC]])","v":"4099300SCHMDT705337Reg Liability - Sale of Renewable EnergyOTHER"},4099300,{"$f":"IF(tblSchMJune19[[#This Row],[Primary Account]]=4098200,\"SCHMAP\",IF(tblSchMJune19[[#This Row],[Primary Account]]=4098300,\"SCHMAT\",IF(tblSchMJune19[[#This Row],[Primary Account]]=4099200,\"SCHMDP\",IF(tblSchMJune19[[#This Row],[Primary Account]]=4099300,\"SCHMDT\"))))","v":"SCHMDT"},"705337","Reg Liability - Sale of Renewable Energy","OTHER",-86.266750000000002,{"$f":"IF(OR(tblSchMJune19[[#This Row],[Alloc]]=\"IDU\",tblSchMJune19[[#This Row],[Alloc]]=\"OR\",tblSchMJune19[[#This Row],[Alloc]]=\"UT\",tblSchMJune19[[#This Row],[Alloc]]=\"WYU\",tblSchMJune19[[#This Row],[Alloc]]=\"WYP\",tblSchMJune19[[#This Row],[Alloc]]=\"CA\",tblSchMJune19[[#This Row],[Alloc]]=\"WA\"),\"SITUS\",tblSchMJune19[[#This Row],[Alloc]])","v":"OTHER"},{"$f":"INDEX(tblSchMLookup[FUNC],MATCH(tblSchMJune19[[#This Row],[Concat]],tblSchMLookup[Concat],0))","v":"P"},{"$f":"IF(tblSchMJune19[[#This Row],[Total ($000)]]=0,\"NO\",IF(ISNA(tblSchMJune19[[#This Row],[FUNC]]),\"YES\",IF(_xlfn.ISFORMULA(tblSchMJune19[[#This Row],[FUNC]]),\"NO\",\"YES\")))","v":"NO"}]
[{"$f":"CONCATENATE(tblSchMJune19[[#This Row],[Primary Account]],tblSchMJune19[[#This Row],[Primary Name]],tblSchMJune19[[#This Row],[Secondary Acct]],tblSchMJune19[[#This Row],[Secondary  Name]],tblSchMJune19[[#This Row],[Alloc4FUNC]])","v":"4099300SCHMDT705454Reg Liability - UT Property Insurance ReSITUS"},4099300,{"$f":"IF(tblSchMJune19[[#This Row],[Primary Account]]=4098200,\"SCHMAP\",IF(tblSchMJune19[[#This Row],[Primary Account]]=4098300,\"SCHMAT\",IF(tblSchMJune19[[#This Row],[Primary Account]]=4099200,\"SCHMDP\",IF(tblSchMJune19[[#This Row],[Primary Account]]=4099300,\"SCHMDT\"))))","v":"SCHMDT"},"705454","Reg Liability - UT Property Insurance Re","UT",-1206.41677,{"$f":"IF(OR(tblSchMJune19[[#This Row],[Alloc]]=\"IDU\",tblSchMJune19[[#This Row],[Alloc]]=\"OR\",tblSchMJune19[[#This Row],[Alloc]]=\"UT\",tblSchMJune19[[#This Row],[Alloc]]=\"WYU\",tblSchMJune19[[#This Row],[Alloc]]=\"WYP\",tblSchMJune19[[#This Row],[Alloc]]=\"CA\",tblSchMJune19[[#This Row],[Alloc]]=\"WA\"),\"SITUS\",tblSchMJune19[[#This Row],[Alloc]])","v":"SITUS"},{"$f":"INDEX(tblSchMLookup[FUNC],MATCH(tblSchMJune19[[#This Row],[Concat]],tblSchMLookup[Concat],0))","v":"P"},{"$f":"IF(tblSchMJune19[[#This Row],[Total ($000)]]=0,\"NO\",IF(ISNA(tblSchMJune19[[#This Row],[FUNC]]),\"YES\",IF(_xlfn.ISFORMULA(tblSchMJune19[[#This Row],[FUNC]]),\"NO\",\"YES\")))","v":"NO"}]
[{"$f":"CONCATENATE(tblSchMJune19[[#This Row],[Primary Account]],tblSchMJune19[[#This Row],[Primary Name]],tblSchMJune19[[#This Row],[Secondary Acct]],tblSchMJune19[[#This Row],[Secondary  Name]],tblSchMJune19[[#This Row],[Alloc4FUNC]])","v":"4099300SCHMDT705534Regulatory Liability - OR Asset Sale GaiOTHER"},4099300,{"$f":"IF(tblSchMJune19[[#This Row],[Primary Account]]=4098200,\"SCHMAP\",IF(tblSchMJune19[[#This Row],[Primary Account]]=4098300,\"SCHMAT\",IF(tblSchMJune19[[#This Row],[Primary Account]]=4099200,\"SCHMDP\",IF(tblSchMJune19[[#This Row],[Primary Account]]=4099300,\"SCHMDT\"))))","v":"SCHMDT"},"705534","Regulatory Liability - OR Asset Sale Gai","OTHER",null,{"$f":"IF(OR(tblSchMJune19[[#This Row],[Alloc]]=\"IDU\",tblSchMJune19[[#This Row],[Alloc]]=\"OR\",tblSchMJune19[[#This Row],[Alloc]]=\"UT\",tblSchMJune19[[#This Row],[Alloc]]=\"WYU\",tblSchMJune19[[#This Row],[Alloc]]=\"WYP\",tblSchMJune19[[#This Row],[Alloc]]=\"CA\",tblSchMJune19[[#This Row],[Alloc]]=\"WA\"),\"SITUS\",tblSchMJune19[[#This Row],[Alloc]])","v":"OTHER"},{"$f":"INDEX(tblSchMLookup[FUNC],MATCH(tblSchMJune19[[#This Row],[Concat]],tblSchMLookup[Concat],0))","v":{"$error":"#N/A"}},{"$f":"IF(tblSchMJune19[[#This Row],[Total ($000)]]=0,\"NO\",IF(ISNA(tblSchMJune19[[#This Row],[FUNC]]),\"YES\",IF(_xlfn.ISFORMULA(tblSchMJune19[[#This Row],[FUNC]]),\"NO\",\"YES\")))","v":"NO"}]
[{"$f":"CONCATENATE(tblSchMJune19[[#This Row],[Primary Account]],tblSchMJune19[[#This Row],[Primary Name]],tblSchMJune19[[#This Row],[Secondary Acct]],tblSchMJune19[[#This Row],[Secondary  Name]],tblSchMJune19[[#This Row],[Alloc4FUNC]])","v":"4099300SCHMDT705537Regulatory Liability - Other Reg LiabiliOTHER"},4099300,{"$f":"IF(tblSchMJune19[[#This Row],[Primary Account]]=4098200,\"SCHMAP\",IF(tblSchMJune19[[#This Row],[Primary Account]]=4098300,\"SCHMAT\",IF(tblSchMJune19[[#This Row],[Primary Account]]=4099200,\"SCHMDP\",IF(tblSchMJune19[[#This Row],[Primary Account]]=4099300,\"SCHMDT\"))))","v":"SCHMDT"},"705537","Regulatory Liability - Other Reg Liabili","OTHER",null,{"$f":"IF(OR(tblSchMJune19[[#This Row],[Alloc]]=\"IDU\",tblSchMJune19[[#This Row],[Alloc]]=\"OR\",tblSchMJune19[[#This Row],[Alloc]]=\"UT\",tblSchMJune19[[#This Row],[Alloc]]=\"WYU\",tblSchMJune19[[#This Row],[Alloc]]=\"WYP\",tblSchMJune19[[#This Row],[Alloc]]=\"CA\",tblSchMJune19[[#This Row],[Alloc]]=\"WA\"),\"SITUS\",tblSchMJune19[[#This Row],[Alloc]])","v":"OTHER"},{"$f":"INDEX(tblSchMLookup[FUNC],MATCH(tblSchMJune19[[#This Row],[Concat]],tblSchMLookup[Concat],0))","v":{"$error":"#N/A"}},{"$f":"IF(tblSchMJune19[[#This Row],[Total ($000)]]=0,\"NO\",IF(ISNA(tblSchMJune19[[#This Row],[FUNC]]),\"YES\",IF(_xlfn.ISFORMULA(tblSchMJune19[[#This Row],[FUNC]]),\"NO\",\"YES\")))","v":"NO"}]
[{"$f":"CONCATENATE(tblSchMJune19[[#This Row],[Primary Account]],tblSchMJune19[[#This Row],[Primary Name]],tblSchMJune19[[#This Row],[Secondary Acct]],tblSchMJune19[[#This Row],[Secondary  Name]],tblSchMJune19[[#This Row],[Alloc4FUNC]])","v":"4099300SCHMDT705700Reg Liability - Current Reclass - OtherOTHER"},4099300,{"$f":"IF(tblSchMJune19[[#This Row],[Primary Account]]=4098200,\"SCHMAP\",IF(tblSchMJune19[[#This Row],[Primary Account]]=4098300,\"SCHMAT\",IF(tblSchMJune19[[#This Row],[Primary Account]]=4099200,\"SCHMDP\",IF(tblSchMJune19[[#This Row],[Primary Account]]=4099300,\"SCHMDT\"))))","v":"SCHMDT"},"705700","Reg Liability - Current Reclass - Other","OTHER",null,{"$f":"IF(OR(tblSchMJune19[[#This Row],[Alloc]]=\"IDU\",tblSchMJune19[[#This Row],[Alloc]]=\"OR\",tblSchMJune19[[#This Row],[Alloc]]=\"UT\",tblSchMJune19[[#This Row],[Alloc]]=\"WYU\",tblSchMJune19[[#This Row],[Alloc]]=\"WYP\",tblSchMJune19[[#This Row],[Alloc]]=\"CA\",tblSchMJune19[[#This Row],[Alloc]]=\"WA\"),\"SITUS\",tblSchMJune19[[#This Row],[Alloc]])","v":"OTHER"},{"$f":"INDEX(tblSchMLookup[FUNC],MATCH(tblSchMJune19[[#This Row],[Concat]],tblSchMLookup[Concat],0))","v":{"$error":"#N/A"}},{"$f":"IF(tblSchMJune19[[#This Row],[Total ($000)]]=0,\"NO\",IF(ISNA(tblSchMJune19[[#This Row],[FUNC]]),\"YES\",IF(_xlfn.ISFORMULA(tblSchMJune19[[#This Row],[FUNC]]),\"NO\",\"YES\")))","v":"NO"}]
[{"$f":"CONCATENATE(tblSchMJune19[[#This Row],[Primary Account]],tblSchMJune19[[#This Row],[Primary Name]],tblSchMJune19[[#This Row],[Secondary Acct]],tblSchMJune19[[#This Row],[Secondary  Name]],tblSchMJune19[[#This Row],[Alloc4FUNC]])","v":"4099300SCHMDT705755Reg Liability - Non current Reclass - OtOTHER"},4099300,{"$f":"IF(tblSchMJune19[[#This Row],[Primary Account]]=4098200,\"SCHMAP\",IF(tblSchMJune19[[#This Row],[Primary Account]]=4098300,\"SCHMAT\",IF(tblSchMJune19[[#This Row],[Primary Account]]=4099200,\"SCHMDP\",IF(tblSchMJune19[[#This Row],[Primary Account]]=4099300,\"SCHMDT\"))))","v":"SCHMDT"},"705755","Reg Liability - Non current Reclass - Ot","OTHER",14.974,{"$f":"IF(OR(tblSchMJune19[[#This Row],[Alloc]]=\"IDU\",tblSchMJune19[[#This Row],[Alloc]]=\"OR\",tblSchMJune19[[#This Row],[Alloc]]=\"UT\",tblSchMJune19[[#This Row],[Alloc]]=\"WYU\",tblSchMJune19[[#This Row],[Alloc]]=\"WYP\",tblSchMJune19[[#This Row],[Alloc]]=\"CA\",tblSchMJune19[[#This Row],[Alloc]]=\"WA\"),\"SITUS\",tblSchMJune19[[#This Row],[Alloc]])","v":"OTHER"},{"$f":"INDEX(tblSchMLookup[FUNC],MATCH(tblSchMJune19[[#This Row],[Concat]],tblSchMLookup[Concat],0))","v":"GP"},{"$f":"IF(tblSchMJune19[[#This Row],[Total ($000)]]=0,\"NO\",IF(ISNA(tblSchMJune19[[#This Row],[FUNC]]),\"YES\",IF(_xlfn.ISFORMULA(tblSchMJune19[[#This Row],[FUNC]]),\"NO\",\"YES\")))","v":"NO"}]
[{"$f":"CONCATENATE(tblSchMJune19[[#This Row],[Primary Account]],tblSchMJune19[[#This Row],[Primary Name]],tblSchMJune19[[#This Row],[Secondary Acct]],tblSchMJune19[[#This Row],[Secondary  Name]],tblSchMJune19[[#This Row],[Alloc4FUNC]])","v":"4099300SCHMDT715050Microsoft Software License LiabilitySO"},4099300,{"$f":"IF(tblSchMJune19[[#This Row],[Primary Account]]=4098200,\"SCHMAP\",IF(tblSchMJune19[[#This Row],[Primary Account]]=4098300,\"SCHMAT\",IF(tblSchMJune19[[#This Row],[Primary Account]]=4099200,\"SCHMDP\",IF(tblSchMJune19[[#This Row],[Primary Account]]=4099300,\"SCHMDT\"))))","v":"SCHMDT"},"715050","Microsoft Software License Liability","SO",null,{"$f":"IF(OR(tblSchMJune19[[#This Row],[Alloc]]=\"IDU\",tblSchMJune19[[#This Row],[Alloc]]=\"OR\",tblSchMJune19[[#This Row],[Alloc]]=\"UT\",tblSchMJune19[[#This Row],[Alloc]]=\"WYU\",tblSchMJune19[[#This Row],[Alloc]]=\"WYP\",tblSchMJune19[[#This Row],[Alloc]]=\"CA\",tblSchMJune19[[#This Row],[Alloc]]=\"WA\"),\"SITUS\",tblSchMJune19[[#This Row],[Alloc]])","v":"SO"},{"$f":"INDEX(tblSchMLookup[FUNC],MATCH(tblSchMJune19[[#This Row],[Concat]],tblSchMLookup[Concat],0))","v":{"$error":"#N/A"}},{"$f":"IF(tblSchMJune19[[#This Row],[Total ($000)]]=0,\"NO\",IF(ISNA(tblSchMJune19[[#This Row],[FUNC]]),\"YES\",IF(_xlfn.ISFORMULA(tblSchMJune19[[#This Row],[FUNC]]),\"NO\",\"YES\")))","v":"NO"}]
[{"$f":"CONCATENATE(tblSchMJune19[[#This Row],[Primary Account]],tblSchMJune19[[#This Row],[Primary Name]],tblSchMJune19[[#This Row],[Secondary Acct]],tblSchMJune19[[#This Row],[Secondary  Name]],tblSchMJune19[[#This Row],[Alloc4FUNC]])","v":"4099300SCHMDT715100University of WY Contract Amort.SITUS"},4099300,{"$f":"IF(tblSchMJune19[[#This Row],[Primary Account]]=4098200,\"SCHMAP\",IF(tblSchMJune19[[#This Row],[Primary Account]]=4098300,\"SCHMAT\",IF(tblSchMJune19[[#This Row],[Primary Account]]=4099200,\"SCHMDP\",IF(tblSchMJune19[[#This Row],[Primary Account]]=4099300,\"SCHMDT\"))))","v":"SCHMDT"},"715100","University of WY Contract Amort.","WYP",null,{"$f":"IF(OR(tblSchMJune19[[#This Row],[Alloc]]=\"IDU\",tblSchMJune19[[#This Row],[Alloc]]=\"OR\",tblSchMJune19[[#This Row],[Alloc]]=\"UT\",tblSchMJune19[[#This Row],[Alloc]]=\"WYU\",tblSchMJune19[[#This Row],[Alloc]]=\"WYP\",tblSchMJune19[[#This Row],[Alloc]]=\"CA\",tblSchMJune19[[#This Row],[Alloc]]=\"WA\"),\"SITUS\",tblSchMJune19[[#This Row],[Alloc]])","v":"SITUS"},{"$f":"INDEX(tblSchMLookup[FUNC],MATCH(tblSchMJune19[[#This Row],[Concat]],tblSchMLookup[Concat],0))","v":{"$error":"#N/A"}},{"$f":"IF(tblSchMJune19[[#This Row],[Total ($000)]]=0,\"NO\",IF(ISNA(tblSchMJune19[[#This Row],[FUNC]]),\"YES\",IF(_xlfn.ISFORMULA(tblSchMJune19[[#This Row],[FUNC]]),\"NO\",\"YES\")))","v":"NO"}]
[{"$f":"CONCATENATE(tblSchMJune19[[#This Row],[Primary Account]],tblSchMJune19[[#This Row],[Primary Name]],tblSchMJune19[[#This Row],[Secondary Acct]],tblSchMJune19[[#This Row],[Secondary  Name]],tblSchMJune19[[#This Row],[Alloc4FUNC]])","v":"4099300SCHMDT715350Misc Deferred CreditsSO"},4099300,{"$f":"IF(tblSchMJune19[[#This Row],[Primary Account]]=4098200,\"SCHMAP\",IF(tblSchMJune19[[#This Row],[Primary Account]]=4098300,\"SCHMAT\",IF(tblSchMJune19[[#This Row],[Primary Account]]=4099200,\"SCHMDP\",IF(tblSchMJune19[[#This Row],[Primary Account]]=4099300,\"SCHMDT\"))))","v":"SCHMDT"},"715350","Misc Deferred Credits","SO",null,{"$f":"IF(OR(tblSchMJune19[[#This Row],[Alloc]]=\"IDU\",tblSchMJune19[[#This Row],[Alloc]]=\"OR\",tblSchMJune19[[#This Row],[Alloc]]=\"UT\",tblSchMJune19[[#This Row],[Alloc]]=\"WYU\",tblSchMJune19[[#This Row],[Alloc]]=\"WYP\",tblSchMJune19[[#This Row],[Alloc]]=\"CA\",tblSchMJune19[[#This Row],[Alloc]]=\"WA\"),\"SITUS\",tblSchMJune19[[#This Row],[Alloc]])","v":"SO"},{"$f":"INDEX(tblSchMLookup[FUNC],MATCH(tblSchMJune19[[#This Row],[Concat]],tblSchMLookup[Concat],0))","v":{"$error":"#N/A"}},{"$f":"IF(tblSchMJune19[[#This Row],[Total ($000)]]=0,\"NO\",IF(ISNA(tblSchMJune19[[#This Row],[FUNC]]),\"YES\",IF(_xlfn.ISFORMULA(tblSchMJune19[[#This Row],[FUNC]]),\"NO\",\"YES\")))","v":"NO"}]
[{"$f":"CONCATENATE(tblSchMJune19[[#This Row],[Primary Account]],tblSchMJune19[[#This Row],[Primary Name]],tblSchMJune19[[#This Row],[Secondary Acct]],tblSchMJune19[[#This Row],[Secondary  Name]],tblSchMJune19[[#This Row],[Alloc4FUNC]])","v":"4099300SCHMDT715800Redding Renegotiated ContractSG"},4099300,{"$f":"IF(tblSchMJune19[[#This Row],[Primary Account]]=4098200,\"SCHMAP\",IF(tblSchMJune19[[#This Row],[Primary Account]]=4098300,\"SCHMAT\",IF(tblSchMJune19[[#This Row],[Primary Account]]=4099200,\"SCHMDP\",IF(tblSchMJune19[[#This Row],[Primary Account]]=4099300,\"SCHMDT\"))))","v":"SCHMDT"},"715800","Redding Renegotiated Contract","SG",null,{"$f":"IF(OR(tblSchMJune19[[#This Row],[Alloc]]=\"IDU\",tblSchMJune19[[#This Row],[Alloc]]=\"OR\",tblSchMJune19[[#This Row],[Alloc]]=\"UT\",tblSchMJune19[[#This Row],[Alloc]]=\"WYU\",tblSchMJune19[[#This Row],[Alloc]]=\"WYP\",tblSchMJune19[[#This Row],[Alloc]]=\"CA\",tblSchMJune19[[#This Row],[Alloc]]=\"WA\"),\"SITUS\",tblSchMJune19[[#This Row],[Alloc]])","v":"SG"},{"$f":"INDEX(tblSchMLookup[FUNC],MATCH(tblSchMJune19[[#This Row],[Concat]],tblSchMLookup[Concat],0))","v":{"$error":"#N/A"}},{"$f":"IF(tblSchMJune19[[#This Row],[Total ($000)]]=0,\"NO\",IF(ISNA(tblSchMJune19[[#This Row],[FUNC]]),\"YES\",IF(_xlfn.ISFORMULA(tblSchMJune19[[#This Row],[FUNC]]),\"NO\",\"YES\")))","v":"NO"}]
[{"$f":"CONCATENATE(tblSchMJune19[[#This Row],[Primary Account]],tblSchMJune19[[#This Row],[Primary Name]],tblSchMJune19[[#This Row],[Secondary Acct]],tblSchMJune19[[#This Row],[Secondary  Name]],tblSchMJune19[[#This Row],[Alloc4FUNC]])","v":"4099300SCHMDT720100FAS 106 AccrualsSO"},4099300,{"$f":"IF(tblSchMJune19[[#This Row],[Primary Account]]=4098200,\"SCHMAP\",IF(tblSchMJune19[[#This Row],[Primary Account]]=4098300,\"SCHMAT\",IF(tblSchMJune19[[#This Row],[Primary Account]]=4099200,\"SCHMDP\",IF(tblSchMJune19[[#This Row],[Primary Account]]=4099300,\"SCHMDT\"))))","v":"SCHMDT"},"720100","FAS 106 Accruals","SO",null,{"$f":"IF(OR(tblSchMJune19[[#This Row],[Alloc]]=\"IDU\",tblSchMJune19[[#This Row],[Alloc]]=\"OR\",tblSchMJune19[[#This Row],[Alloc]]=\"UT\",tblSchMJune19[[#This Row],[Alloc]]=\"WYU\",tblSchMJune19[[#This Row],[Alloc]]=\"WYP\",tblSchMJune19[[#This Row],[Alloc]]=\"CA\",tblSchMJune19[[#This Row],[Alloc]]=\"WA\"),\"SITUS\",tblSchMJune19[[#This Row],[Alloc]])","v":"SO"},{"$f":"INDEX(tblSchMLookup[FUNC],MATCH(tblSchMJune19[[#This Row],[Concat]],tblSchMLookup[Concat],0))","v":{"$error":"#N/A"}},{"$f":"IF(tblSchMJune19[[#This Row],[Total ($000)]]=0,\"NO\",IF(ISNA(tblSchMJune19[[#This Row],[FUNC]]),\"YES\",IF(_xlfn.ISFORMULA(tblSchMJune19[[#This Row],[FUNC]]),\"NO\",\"YES\")))","v":"NO"}]
[{"$f":"CONCATENATE(tblSchMJune19[[#This Row],[Primary Account]],tblSchMJune19[[#This Row],[Primary Name]],tblSchMJune19[[#This Row],[Secondary Acct]],tblSchMJune19[[#This Row],[Secondary  Name]],tblSchMJune19[[#This Row],[Alloc4FUNC]])","v":"4099300SCHMDT720200Deferred Comp Plan Benefits-PPLSO"},4099300,{"$f":"IF(tblSchMJune19[[#This Row],[Primary Account]]=4098200,\"SCHMAP\",IF(tblSchMJune19[[#This Row],[Primary Account]]=4098300,\"SCHMAT\",IF(tblSchMJune19[[#This Row],[Primary Account]]=4099200,\"SCHMDP\",IF(tblSchMJune19[[#This Row],[Primary Account]]=4099300,\"SCHMDT\"))))","v":"SCHMDT"},"720200","Deferred Comp Plan Benefits-PPL","SO",-69.799170000000004,{"$f":"IF(OR(tblSchMJune19[[#This Row],[Alloc]]=\"IDU\",tblSchMJune19[[#This Row],[Alloc]]=\"OR\",tblSchMJune19[[#This Row],[Alloc]]=\"UT\",tblSchMJune19[[#This Row],[Alloc]]=\"WYU\",tblSchMJune19[[#This Row],[Alloc]]=\"WYP\",tblSchMJune19[[#This Row],[Alloc]]=\"CA\",tblSchMJune19[[#This Row],[Alloc]]=\"WA\"),\"SITUS\",tblSchMJune19[[#This Row],[Alloc]])","v":"SO"},{"$f":"INDEX(tblSchMLookup[FUNC],MATCH(tblSchMJune19[[#This Row],[Concat]],tblSchMLookup[Concat],0))","v":"LABOR"},{"$f":"IF(tblSchMJune19[[#This Row],[Total ($000)]]=0,\"NO\",IF(ISNA(tblSchMJune19[[#This Row],[FUNC]]),\"YES\",IF(_xlfn.ISFORMULA(tblSchMJune19[[#This Row],[FUNC]]),\"NO\",\"YES\")))","v":"NO"}]
[{"$f":"CONCATENATE(tblSchMJune19[[#This Row],[Primary Account]],tblSchMJune19[[#This Row],[Primary Name]],tblSchMJune19[[#This Row],[Secondary Acct]],tblSchMJune19[[#This Row],[Secondary  Name]],tblSchMJune19[[#This Row],[Alloc4FUNC]])","v":"4099300SCHMDT720300PENSION / RETIREMENT ACCRUAL - CASH BASISO"},4099300,{"$f":"IF(tblSchMJune19[[#This Row],[Primary Account]]=4098200,\"SCHMAP\",IF(tblSchMJune19[[#This Row],[Primary Account]]=4098300,\"SCHMAT\",IF(tblSchMJune19[[#This Row],[Primary Account]]=4099200,\"SCHMDP\",IF(tblSchMJune19[[#This Row],[Primary Account]]=4099300,\"SCHMDT\"))))","v":"SCHMDT"},"720300","PENSION / RETIREMENT ACCRUAL - CASH BASI","SO",null,{"$f":"IF(OR(tblSchMJune19[[#This Row],[Alloc]]=\"IDU\",tblSchMJune19[[#This Row],[Alloc]]=\"OR\",tblSchMJune19[[#This Row],[Alloc]]=\"UT\",tblSchMJune19[[#This Row],[Alloc]]=\"WYU\",tblSchMJune19[[#This Row],[Alloc]]=\"WYP\",tblSchMJune19[[#This Row],[Alloc]]=\"CA\",tblSchMJune19[[#This Row],[Alloc]]=\"WA\"),\"SITUS\",tblSchMJune19[[#This Row],[Alloc]])","v":"SO"},{"$f":"INDEX(tblSchMLookup[FUNC],MATCH(tblSchMJune19[[#This Row],[Concat]],tblSchMLookup[Concat],0))","v":{"$error":"#N/A"}},{"$f":"IF(tblSchMJune19[[#This Row],[Total ($000)]]=0,\"NO\",IF(ISNA(tblSchMJune19[[#This Row],[FUNC]]),\"YES\",IF(_xlfn.ISFORMULA(tblSchMJune19[[#This Row],[FUNC]]),\"NO\",\"YES\")))","v":"NO"}]
[{"$f":"CONCATENATE(tblSchMJune19[[#This Row],[Primary Account]],tblSchMJune19[[#This Row],[Primary Name]],tblSchMJune19[[#This Row],[Secondary Acct]],tblSchMJune19[[#This Row],[Secondary  Name]],tblSchMJune19[[#This Row],[Alloc4FUNC]])","v":"4099300SCHMDT720400SUPPL. EXEC. RETIREMENT PLAN (SERP)SO"},4099300,{"$f":"IF(tblSchMJune19[[#This Row],[Primary Account]]=4098200,\"SCHMAP\",IF(tblSchMJune19[[#This Row],[Primary Account]]=4098300,\"SCHMAT\",IF(tblSchMJune19[[#This Row],[Primary Account]]=4099200,\"SCHMDP\",IF(tblSchMJune19[[#This Row],[Primary Account]]=4099300,\"SCHMDT\"))))","v":"SCHMDT"},"720400","SUPPL. EXEC. RETIREMENT PLAN (SERP)","SO",null,{"$f":"IF(OR(tblSchMJune19[[#This Row],[Alloc]]=\"IDU\",tblSchMJune19[[#This Row],[Alloc]]=\"OR\",tblSchMJune19[[#This Row],[Alloc]]=\"UT\",tblSchMJune19[[#This Row],[Alloc]]=\"WYU\",tblSchMJune19[[#This Row],[Alloc]]=\"WYP\",tblSchMJune19[[#This Row],[Alloc]]=\"CA\",tblSchMJune19[[#This Row],[Alloc]]=\"WA\"),\"SITUS\",tblSchMJune19[[#This Row],[Alloc]])","v":"SO"},{"$f":"INDEX(tblSchMLookup[FUNC],MATCH(tblSchMJune19[[#This Row],[Concat]],tblSchMLookup[Concat],0))","v":{"$error":"#N/A"}},{"$f":"IF(tblSchMJune19[[#This Row],[Total ($000)]]=0,\"NO\",IF(ISNA(tblSchMJune19[[#This Row],[FUNC]]),\"YES\",IF(_xlfn.ISFORMULA(tblSchMJune19[[#This Row],[FUNC]]),\"NO\",\"YES\")))","v":"NO"}]
[{"$f":"CONCATENATE(tblSchMJune19[[#This Row],[Primary Account]],tblSchMJune19[[#This Row],[Primary Name]],tblSchMJune19[[#This Row],[Secondary Acct]],tblSchMJune19[[#This Row],[Secondary  Name]],tblSchMJune19[[#This Row],[Alloc4FUNC]])","v":"4099300SCHMDT720500Severance AccrualSO"},4099300,{"$f":"IF(tblSchMJune19[[#This Row],[Primary Account]]=4098200,\"SCHMAP\",IF(tblSchMJune19[[#This Row],[Primary Account]]=4098300,\"SCHMAT\",IF(tblSchMJune19[[#This Row],[Primary Account]]=4099200,\"SCHMDP\",IF(tblSchMJune19[[#This Row],[Primary Account]]=4099300,\"SCHMDT\"))))","v":"SCHMDT"},"720500","Severance Accrual","SO",257.39463999999998,{"$f":"IF(OR(tblSchMJune19[[#This Row],[Alloc]]=\"IDU\",tblSchMJune19[[#This Row],[Alloc]]=\"OR\",tblSchMJune19[[#This Row],[Alloc]]=\"UT\",tblSchMJune19[[#This Row],[Alloc]]=\"WYU\",tblSchMJune19[[#This Row],[Alloc]]=\"WYP\",tblSchMJune19[[#This Row],[Alloc]]=\"CA\",tblSchMJune19[[#This Row],[Alloc]]=\"WA\"),\"SITUS\",tblSchMJune19[[#This Row],[Alloc]])","v":"SO"},{"$f":"INDEX(tblSchMLookup[FUNC],MATCH(tblSchMJune19[[#This Row],[Concat]],tblSchMLookup[Concat],0))","v":"LABOR"},{"$f":"IF(tblSchMJune19[[#This Row],[Total ($000)]]=0,\"NO\",IF(ISNA(tblSchMJune19[[#This Row],[FUNC]]),\"YES\",IF(_xlfn.ISFORMULA(tblSchMJune19[[#This Row],[FUNC]]),\"NO\",\"YES\")))","v":"NO"}]
[{"$f":"CONCATENATE(tblSchMJune19[[#This Row],[Primary Account]],tblSchMJune19[[#This Row],[Primary Name]],tblSchMJune19[[#This Row],[Secondary Acct]],tblSchMJune19[[#This Row],[Secondary  Name]],tblSchMJune19[[#This Row],[Alloc4FUNC]])","v":"4099300SCHMDT720550Accrued CIC SeverenceSO"},4099300,{"$f":"IF(tblSchMJune19[[#This Row],[Primary Account]]=4098200,\"SCHMAP\",IF(tblSchMJune19[[#This Row],[Primary Account]]=4098300,\"SCHMAT\",IF(tblSchMJune19[[#This Row],[Primary Account]]=4099200,\"SCHMDP\",IF(tblSchMJune19[[#This Row],[Primary Account]]=4099300,\"SCHMDT\"))))","v":"SCHMDT"},"720550","Accrued CIC Severence","SO",null,{"$f":"IF(OR(tblSchMJune19[[#This Row],[Alloc]]=\"IDU\",tblSchMJune19[[#This Row],[Alloc]]=\"OR\",tblSchMJune19[[#This Row],[Alloc]]=\"UT\",tblSchMJune19[[#This Row],[Alloc]]=\"WYU\",tblSchMJune19[[#This Row],[Alloc]]=\"WYP\",tblSchMJune19[[#This Row],[Alloc]]=\"CA\",tblSchMJune19[[#This Row],[Alloc]]=\"WA\"),\"SITUS\",tblSchMJune19[[#This Row],[Alloc]])","v":"SO"},{"$f":"INDEX(tblSchMLookup[FUNC],MATCH(tblSchMJune19[[#This Row],[Concat]],tblSchMLookup[Concat],0))","v":{"$error":"#N/A"}},{"$f":"IF(tblSchMJune19[[#This Row],[Total ($000)]]=0,\"NO\",IF(ISNA(tblSchMJune19[[#This Row],[FUNC]]),\"YES\",IF(_xlfn.ISFORMULA(tblSchMJune19[[#This Row],[FUNC]]),\"NO\",\"YES\")))","v":"NO"}]
[{"$f":"CONCATENATE(tblSchMJune19[[#This Row],[Primary Account]],tblSchMJune19[[#This Row],[Primary Name]],tblSchMJune19[[#This Row],[Secondary Acct]],tblSchMJune19[[#This Row],[Secondary  Name]],tblSchMJune19[[#This Row],[Alloc4FUNC]])","v":"4099300SCHMDT720800FAS 158 Pension LiabilitySO"},4099300,{"$f":"IF(tblSchMJune19[[#This Row],[Primary Account]]=4098200,\"SCHMAP\",IF(tblSchMJune19[[#This Row],[Primary Account]]=4098300,\"SCHMAT\",IF(tblSchMJune19[[#This Row],[Primary Account]]=4099200,\"SCHMDP\",IF(tblSchMJune19[[#This Row],[Primary Account]]=4099300,\"SCHMDT\"))))","v":"SCHMDT"},"720800","FAS 158 Pension Liability","SO",27951.791079999999,{"$f":"IF(OR(tblSchMJune19[[#This Row],[Alloc]]=\"IDU\",tblSchMJune19[[#This Row],[Alloc]]=\"OR\",tblSchMJune19[[#This Row],[Alloc]]=\"UT\",tblSchMJune19[[#This Row],[Alloc]]=\"WYU\",tblSchMJune19[[#This Row],[Alloc]]=\"WYP\",tblSchMJune19[[#This Row],[Alloc]]=\"CA\",tblSchMJune19[[#This Row],[Alloc]]=\"WA\"),\"SITUS\",tblSchMJune19[[#This Row],[Alloc]])","v":"SO"},{"$f":"INDEX(tblSchMLookup[FUNC],MATCH(tblSchMJune19[[#This Row],[Concat]],tblSchMLookup[Concat],0))","v":"LABOR"},{"$f":"IF(tblSchMJune19[[#This Row],[Total ($000)]]=0,\"NO\",IF(ISNA(tblSchMJune19[[#This Row],[FUNC]]),\"YES\",IF(_xlfn.ISFORMULA(tblSchMJune19[[#This Row],[FUNC]]),\"NO\",\"YES\")))","v":"NO"}]
[{"$f":"CONCATENATE(tblSchMJune19[[#This Row],[Primary Account]],tblSchMJune19[[#This Row],[Primary Name]],tblSchMJune19[[#This Row],[Secondary Acct]],tblSchMJune19[[#This Row],[Secondary  Name]],tblSchMJune19[[#This Row],[Alloc4FUNC]])","v":"4099300SCHMDT720805FAS 158 - Funded Pension AssetSO"},4099300,{"$f":"IF(tblSchMJune19[[#This Row],[Primary Account]]=4098200,\"SCHMAP\",IF(tblSchMJune19[[#This Row],[Primary Account]]=4098300,\"SCHMAT\",IF(tblSchMJune19[[#This Row],[Primary Account]]=4099200,\"SCHMDP\",IF(tblSchMJune19[[#This Row],[Primary Account]]=4099300,\"SCHMDT\"))))","v":"SCHMDT"},"720805","FAS 158 - Funded Pension Asset","SO",null,{"$f":"IF(OR(tblSchMJune19[[#This Row],[Alloc]]=\"IDU\",tblSchMJune19[[#This Row],[Alloc]]=\"OR\",tblSchMJune19[[#This Row],[Alloc]]=\"UT\",tblSchMJune19[[#This Row],[Alloc]]=\"WYU\",tblSchMJune19[[#This Row],[Alloc]]=\"WYP\",tblSchMJune19[[#This Row],[Alloc]]=\"CA\",tblSchMJune19[[#This Row],[Alloc]]=\"WA\"),\"SITUS\",tblSchMJune19[[#This Row],[Alloc]])","v":"SO"},{"$f":"INDEX(tblSchMLookup[FUNC],MATCH(tblSchMJune19[[#This Row],[Concat]],tblSchMLookup[Concat],0))","v":{"$error":"#N/A"}},{"$f":"IF(tblSchMJune19[[#This Row],[Total ($000)]]=0,\"NO\",IF(ISNA(tblSchMJune19[[#This Row],[FUNC]]),\"YES\",IF(_xlfn.ISFORMULA(tblSchMJune19[[#This Row],[FUNC]]),\"NO\",\"YES\")))","v":"NO"}]
[{"$f":"CONCATENATE(tblSchMJune19[[#This Row],[Primary Account]],tblSchMJune19[[#This Row],[Primary Name]],tblSchMJune19[[#This Row],[Secondary Acct]],tblSchMJune19[[#This Row],[Secondary  Name]],tblSchMJune19[[#This Row],[Alloc4FUNC]])","v":"4099300SCHMDT720810FAS 158 Post-Retirement LiabilitySO"},4099300,{"$f":"IF(tblSchMJune19[[#This Row],[Primary Account]]=4098200,\"SCHMAP\",IF(tblSchMJune19[[#This Row],[Primary Account]]=4098300,\"SCHMAT\",IF(tblSchMJune19[[#This Row],[Primary Account]]=4099200,\"SCHMDP\",IF(tblSchMJune19[[#This Row],[Primary Account]]=4099300,\"SCHMDT\"))))","v":"SCHMDT"},"720810","FAS 158 Post-Retirement Liability","SO",9620.7950000000001,{"$f":"IF(OR(tblSchMJune19[[#This Row],[Alloc]]=\"IDU\",tblSchMJune19[[#This Row],[Alloc]]=\"OR\",tblSchMJune19[[#This Row],[Alloc]]=\"UT\",tblSchMJune19[[#This Row],[Alloc]]=\"WYU\",tblSchMJune19[[#This Row],[Alloc]]=\"WYP\",tblSchMJune19[[#This Row],[Alloc]]=\"CA\",tblSchMJune19[[#This Row],[Alloc]]=\"WA\"),\"SITUS\",tblSchMJune19[[#This Row],[Alloc]])","v":"SO"},{"$f":"INDEX(tblSchMLookup[FUNC],MATCH(tblSchMJune19[[#This Row],[Concat]],tblSchMLookup[Concat],0))","v":"LABOR"},{"$f":"IF(tblSchMJune19[[#This Row],[Total ($000)]]=0,\"NO\",IF(ISNA(tblSchMJune19[[#This Row],[FUNC]]),\"YES\",IF(_xlfn.ISFORMULA(tblSchMJune19[[#This Row],[FUNC]]),\"NO\",\"YES\")))","v":"NO"}]
[{"$f":"CONCATENATE(tblSchMJune19[[#This Row],[Primary Account]],tblSchMJune19[[#This Row],[Primary Name]],tblSchMJune19[[#This Row],[Secondary Acct]],tblSchMJune19[[#This Row],[Secondary  Name]],tblSchMJune19[[#This Row],[Alloc4FUNC]])","v":"4099300SCHMDT720815FAS 158 Post Retirement LiabilitySO"},4099300,{"$f":"IF(tblSchMJune19[[#This Row],[Primary Account]]=4098200,\"SCHMAP\",IF(tblSchMJune19[[#This Row],[Primary Account]]=4098300,\"SCHMAT\",IF(tblSchMJune19[[#This Row],[Primary Account]]=4099200,\"SCHMDP\",IF(tblSchMJune19[[#This Row],[Primary Account]]=4099300,\"SCHMDT\"))))","v":"SCHMDT"},"720815","FAS 158 Post Retirement Liability","SO",-1685.7324599999999,{"$f":"IF(OR(tblSchMJune19[[#This Row],[Alloc]]=\"IDU\",tblSchMJune19[[#This Row],[Alloc]]=\"OR\",tblSchMJune19[[#This Row],[Alloc]]=\"UT\",tblSchMJune19[[#This Row],[Alloc]]=\"WYU\",tblSchMJune19[[#This Row],[Alloc]]=\"WYP\",tblSchMJune19[[#This Row],[Alloc]]=\"CA\",tblSchMJune19[[#This Row],[Alloc]]=\"WA\"),\"SITUS\",tblSchMJune19[[#This Row],[Alloc]])","v":"SO"},{"$f":"INDEX(tblSchMLookup[FUNC],MATCH(tblSchMJune19[[#This Row],[Concat]],tblSchMLookup[Concat],0))","v":"LABOR"},{"$f":"IF(tblSchMJune19[[#This Row],[Total ($000)]]=0,\"NO\",IF(ISNA(tblSchMJune19[[#This Row],[FUNC]]),\"YES\",IF(_xlfn.ISFORMULA(tblSchMJune19[[#This Row],[FUNC]]),\"NO\",\"YES\")))","v":"NO"}]
[{"$f":"CONCATENATE(tblSchMJune19[[#This Row],[Primary Account]],tblSchMJune19[[#This Row],[Primary Name]],tblSchMJune19[[#This Row],[Secondary Acct]],tblSchMJune19[[#This Row],[Secondary  Name]],tblSchMJune19[[#This Row],[Alloc4FUNC]])","v":"4099300SCHMDT740100Post Merger Loss-Reacquired DebtSNP"},4099300,{"$f":"IF(tblSchMJune19[[#This Row],[Primary Account]]=4098200,\"SCHMAP\",IF(tblSchMJune19[[#This Row],[Primary Account]]=4098300,\"SCHMAT\",IF(tblSchMJune19[[#This Row],[Primary Account]]=4099200,\"SCHMDP\",IF(tblSchMJune19[[#This Row],[Primary Account]]=4099300,\"SCHMDT\"))))","v":"SCHMDT"},"740100","Post Merger Loss-Reacquired Debt","SNP",null,{"$f":"IF(OR(tblSchMJune19[[#This Row],[Alloc]]=\"IDU\",tblSchMJune19[[#This Row],[Alloc]]=\"OR\",tblSchMJune19[[#This Row],[Alloc]]=\"UT\",tblSchMJune19[[#This Row],[Alloc]]=\"WYU\",tblSchMJune19[[#This Row],[Alloc]]=\"WYP\",tblSchMJune19[[#This Row],[Alloc]]=\"CA\",tblSchMJune19[[#This Row],[Alloc]]=\"WA\"),\"SITUS\",tblSchMJune19[[#This Row],[Alloc]])","v":"SNP"},{"$f":"INDEX(tblSchMLookup[FUNC],MATCH(tblSchMJune19[[#This Row],[Concat]],tblSchMLookup[Concat],0))","v":{"$error":"#N/A"}},{"$f":"IF(tblSchMJune19[[#This Row],[Total ($000)]]=0,\"NO\",IF(ISNA(tblSchMJune19[[#This Row],[FUNC]]),\"YES\",IF(_xlfn.ISFORMULA(tblSchMJune19[[#This Row],[FUNC]]),\"NO\",\"YES\")))","v":"NO"}]
[{"$f":"CONCATENATE(tblSchMJune19[[#This Row],[Primary Account]],tblSchMJune19[[#This Row],[Primary Name]],tblSchMJune19[[#This Row],[Secondary Acct]],tblSchMJune19[[#This Row],[Secondary  Name]],tblSchMJune19[[#This Row],[Alloc4FUNC]])","v":"4099300SCHMDT910240190LEGAL RESERVESO"},4099300,{"$f":"IF(tblSchMJune19[[#This Row],[Primary Account]]=4098200,\"SCHMAP\",IF(tblSchMJune19[[#This Row],[Primary Account]]=4098300,\"SCHMAT\",IF(tblSchMJune19[[#This Row],[Primary Account]]=4099200,\"SCHMDP\",IF(tblSchMJune19[[#This Row],[Primary Account]]=4099300,\"SCHMDT\"))))","v":"SCHMDT"},"910240","190LEGAL RESERVE","SO",null,{"$f":"IF(OR(tblSchMJune19[[#This Row],[Alloc]]=\"IDU\",tblSchMJune19[[#This Row],[Alloc]]=\"OR\",tblSchMJune19[[#This Row],[Alloc]]=\"UT\",tblSchMJune19[[#This Row],[Alloc]]=\"WYU\",tblSchMJune19[[#This Row],[Alloc]]=\"WYP\",tblSchMJune19[[#This Row],[Alloc]]=\"CA\",tblSchMJune19[[#This Row],[Alloc]]=\"WA\"),\"SITUS\",tblSchMJune19[[#This Row],[Alloc]])","v":"SO"},{"$f":"INDEX(tblSchMLookup[FUNC],MATCH(tblSchMJune19[[#This Row],[Concat]],tblSchMLookup[Concat],0))","v":{"$error":"#N/A"}},{"$f":"IF(tblSchMJune19[[#This Row],[Total ($000)]]=0,\"NO\",IF(ISNA(tblSchMJune19[[#This Row],[FUNC]]),\"YES\",IF(_xlfn.ISFORMULA(tblSchMJune19[[#This Row],[FUNC]]),\"NO\",\"YES\")))","v":"NO"}]
[{"$f":"CONCATENATE(tblSchMJune19[[#This Row],[Primary Account]],tblSchMJune19[[#This Row],[Primary Name]],tblSchMJune19[[#This Row],[Secondary Acct]],tblSchMJune19[[#This Row],[Secondary  Name]],tblSchMJune19[[#This Row],[Alloc4FUNC]])","v":"4099300SCHMDT910530Injuries and Damages ReserveSO"},4099300,{"$f":"IF(tblSchMJune19[[#This Row],[Primary Account]]=4098200,\"SCHMAP\",IF(tblSchMJune19[[#This Row],[Primary Account]]=4098300,\"SCHMAT\",IF(tblSchMJune19[[#This Row],[Primary Account]]=4099200,\"SCHMDP\",IF(tblSchMJune19[[#This Row],[Primary Account]]=4099300,\"SCHMDT\"))))","v":"SCHMDT"},"910530","Injuries and Damages Reserve","SO",-10315.84338,{"$f":"IF(OR(tblSchMJune19[[#This Row],[Alloc]]=\"IDU\",tblSchMJune19[[#This Row],[Alloc]]=\"OR\",tblSchMJune19[[#This Row],[Alloc]]=\"UT\",tblSchMJune19[[#This Row],[Alloc]]=\"WYU\",tblSchMJune19[[#This Row],[Alloc]]=\"WYP\",tblSchMJune19[[#This Row],[Alloc]]=\"CA\",tblSchMJune19[[#This Row],[Alloc]]=\"WA\"),\"SITUS\",tblSchMJune19[[#This Row],[Alloc]])","v":"SO"},{"$f":"INDEX(tblSchMLookup[FUNC],MATCH(tblSchMJune19[[#This Row],[Concat]],tblSchMLookup[Concat],0))","v":"LABOR"},{"$f":"IF(tblSchMJune19[[#This Row],[Total ($000)]]=0,\"NO\",IF(ISNA(tblSchMJune19[[#This Row],[FUNC]]),\"YES\",IF(_xlfn.ISFORMULA(tblSchMJune19[[#This Row],[FUNC]]),\"NO\",\"YES\")))","v":"NO"}]
[{"$f":"CONCATENATE(tblSchMJune19[[#This Row],[Primary Account]],tblSchMJune19[[#This Row],[Primary Name]],tblSchMJune19[[#This Row],[Secondary Acct]],tblSchMJune19[[#This Row],[Secondary  Name]],tblSchMJune19[[#This Row],[Alloc4FUNC]])","v":"4099300SCHMDT910560283SMUD REVENUE IMPUTATION-UT REG LIABOTHER"},4099300,{"$f":"IF(tblSchMJune19[[#This Row],[Primary Account]]=4098200,\"SCHMAP\",IF(tblSchMJune19[[#This Row],[Primary Account]]=4098300,\"SCHMAT\",IF(tblSchMJune19[[#This Row],[Primary Account]]=4099200,\"SCHMDP\",IF(tblSchMJune19[[#This Row],[Primary Account]]=4099300,\"SCHMDT\"))))","v":"SCHMDT"},"910560","283SMUD REVENUE IMPUTATION-UT REG LIAB","OTHER",null,{"$f":"IF(OR(tblSchMJune19[[#This Row],[Alloc]]=\"IDU\",tblSchMJune19[[#This Row],[Alloc]]=\"OR\",tblSchMJune19[[#This Row],[Alloc]]=\"UT\",tblSchMJune19[[#This Row],[Alloc]]=\"WYU\",tblSchMJune19[[#This Row],[Alloc]]=\"WYP\",tblSchMJune19[[#This Row],[Alloc]]=\"CA\",tblSchMJune19[[#This Row],[Alloc]]=\"WA\"),\"SITUS\",tblSchMJune19[[#This Row],[Alloc]])","v":"OTHER"},{"$f":"INDEX(tblSchMLookup[FUNC],MATCH(tblSchMJune19[[#This Row],[Concat]],tblSchMLookup[Concat],0))","v":{"$error":"#N/A"}},{"$f":"IF(tblSchMJune19[[#This Row],[Total ($000)]]=0,\"NO\",IF(ISNA(tblSchMJune19[[#This Row],[FUNC]]),\"YES\",IF(_xlfn.ISFORMULA(tblSchMJune19[[#This Row],[FUNC]]),\"NO\",\"YES\")))","v":"NO"}]
[{"$f":"CONCATENATE(tblSchMJune19[[#This Row],[Primary Account]],tblSchMJune19[[#This Row],[Primary Name]],tblSchMJune19[[#This Row],[Secondary Acct]],tblSchMJune19[[#This Row],[Secondary  Name]],tblSchMJune19[[#This Row],[Alloc4FUNC]])","v":"4099300SCHMDT910905PMI Underground Mine Cost DepletionSE"},4099300,{"$f":"IF(tblSchMJune19[[#This Row],[Primary Account]]=4098200,\"SCHMAP\",IF(tblSchMJune19[[#This Row],[Primary Account]]=4098300,\"SCHMAT\",IF(tblSchMJune19[[#This Row],[Primary Account]]=4099200,\"SCHMDP\",IF(tblSchMJune19[[#This Row],[Primary Account]]=4099300,\"SCHMDT\"))))","v":"SCHMDT"},"910905","PMI Underground Mine Cost Depletion","SE",null,{"$f":"IF(OR(tblSchMJune19[[#This Row],[Alloc]]=\"IDU\",tblSchMJune19[[#This Row],[Alloc]]=\"OR\",tblSchMJune19[[#This Row],[Alloc]]=\"UT\",tblSchMJune19[[#This Row],[Alloc]]=\"WYU\",tblSchMJune19[[#This Row],[Alloc]]=\"WYP\",tblSchMJune19[[#This Row],[Alloc]]=\"CA\",tblSchMJune19[[#This Row],[Alloc]]=\"WA\"),\"SITUS\",tblSchMJune19[[#This Row],[Alloc]])","v":"SE"},{"$f":"INDEX(tblSchMLookup[FUNC],MATCH(tblSchMJune19[[#This Row],[Concat]],tblSchMLookup[Concat],0))","v":{"$error":"#N/A"}},{"$f":"IF(tblSchMJune19[[#This Row],[Total ($000)]]=0,\"NO\",IF(ISNA(tblSchMJune19[[#This Row],[FUNC]]),\"YES\",IF(_xlfn.ISFORMULA(tblSchMJune19[[#This Row],[FUNC]]),\"NO\",\"YES\")))","v":"NO"}]
[{"$f":"CONCATENATE(tblSchMJune19[[#This Row],[Primary Account]],tblSchMJune19[[#This Row],[Primary Name]],tblSchMJune19[[#This Row],[Secondary Acct]],tblSchMJune19[[#This Row],[Secondary  Name]],tblSchMJune19[[#This Row],[Alloc4FUNC]])","v":"4099300SCHMDT910925CA RefundOTHER"},4099300,{"$f":"IF(tblSchMJune19[[#This Row],[Primary Account]]=4098200,\"SCHMAP\",IF(tblSchMJune19[[#This Row],[Primary Account]]=4098300,\"SCHMAT\",IF(tblSchMJune19[[#This Row],[Primary Account]]=4099200,\"SCHMDP\",IF(tblSchMJune19[[#This Row],[Primary Account]]=4099300,\"SCHMDT\"))))","v":"SCHMDT"},"910925","CA Refund","OTHER",null,{"$f":"IF(OR(tblSchMJune19[[#This Row],[Alloc]]=\"IDU\",tblSchMJune19[[#This Row],[Alloc]]=\"OR\",tblSchMJune19[[#This Row],[Alloc]]=\"UT\",tblSchMJune19[[#This Row],[Alloc]]=\"WYU\",tblSchMJune19[[#This Row],[Alloc]]=\"WYP\",tblSchMJune19[[#This Row],[Alloc]]=\"CA\",tblSchMJune19[[#This Row],[Alloc]]=\"WA\"),\"SITUS\",tblSchMJune19[[#This Row],[Alloc]])","v":"OTHER"},{"$f":"INDEX(tblSchMLookup[FUNC],MATCH(tblSchMJune19[[#This Row],[Concat]],tblSchMLookup[Concat],0))","v":{"$error":"#N/A"}},{"$f":"IF(tblSchMJune19[[#This Row],[Total ($000)]]=0,\"NO\",IF(ISNA(tblSchMJune19[[#This Row],[FUNC]]),\"YES\",IF(_xlfn.ISFORMULA(tblSchMJune19[[#This Row],[FUNC]]),\"NO\",\"YES\")))","v":"NO"}]
[{"$f":"CONCATENATE(tblSchMJune19[[#This Row],[Primary Account]],tblSchMJune19[[#This Row],[Primary Name]],tblSchMJune19[[#This Row],[Secondary Acct]],tblSchMJune19[[#This Row],[Secondary  Name]],tblSchMJune19[[#This Row],[Alloc4FUNC]])","v":"4099300SCHMDT920110PMI WY Extraction TaxSE"},4099300,{"$f":"IF(tblSchMJune19[[#This Row],[Primary Account]]=4098200,\"SCHMAP\",IF(tblSchMJune19[[#This Row],[Primary Account]]=4098300,\"SCHMAT\",IF(tblSchMJune19[[#This Row],[Primary Account]]=4099200,\"SCHMDP\",IF(tblSchMJune19[[#This Row],[Primary Account]]=4099300,\"SCHMDT\"))))","v":"SCHMDT"},"920110","PMI WY Extraction Tax","SE",null,{"$f":"IF(OR(tblSchMJune19[[#This Row],[Alloc]]=\"IDU\",tblSchMJune19[[#This Row],[Alloc]]=\"OR\",tblSchMJune19[[#This Row],[Alloc]]=\"UT\",tblSchMJune19[[#This Row],[Alloc]]=\"WYU\",tblSchMJune19[[#This Row],[Alloc]]=\"WYP\",tblSchMJune19[[#This Row],[Alloc]]=\"CA\",tblSchMJune19[[#This Row],[Alloc]]=\"WA\"),\"SITUS\",tblSchMJune19[[#This Row],[Alloc]])","v":"SE"},{"$f":"INDEX(tblSchMLookup[FUNC],MATCH(tblSchMJune19[[#This Row],[Concat]],tblSchMLookup[Concat],0))","v":{"$error":"#N/A"}},{"$f":"IF(tblSchMJune19[[#This Row],[Total ($000)]]=0,\"NO\",IF(ISNA(tblSchMJune19[[#This Row],[FUNC]]),\"YES\",IF(_xlfn.ISFORMULA(tblSchMJune19[[#This Row],[FUNC]]),\"NO\",\"YES\")))","v":"NO"}]
[null,null,null,null,null,null,{"$f":"SUBTOTAL(109,tblSchMJune19[Total ($000)])","v":2180442.7065403969}]

{"sheet":"SCH M Lookup","index":21,"n_rows":214,"n_cols":9,"rows_kept":214,"cut":false,"hidden":false,"merged":[]}
["Concat","Primary Account","Primary Name","Secondary Acct","Secondary  Name","Alloc","Column1","Alloc4FUNC","FUNC"]
[{"$f":"CONCATENATE(,tblSchMLookup[[#This Row],[Primary Account]],tblSchMLookup[[#This Row],[Primary Name]],tblSchMLookup[[#This Row],[Secondary Acct]],tblSchMLookup[[#This Row],[Secondary  Name]],tblSchMLookup[[#This Row],[Alloc4FUNC]])","v":"4098300SCHMAT415858WY - Deferred Overburden CostsSITUS"},4098300,{"$f":"IF(tblSchMLookup[[#This Row],[Primary Account]]=4098200,\"SCHMAP\",IF(tblSchMLookup[[#This Row],[Primary Account]]=4098300,\"SCHMAT\",IF(tblSchMLookup[[#This Row],[Primary Account]]=4099200,\"SCHMDP\",IF(tblSchMLookup[[#This Row],[Primary Account]]=4099300,\"SCHMDT\"))))","v":"SCHMAT"},415858,"WY - Deferred Overburden Costs","SITUS",null,{"$f":"IF(OR(tblSchMLookup[[#This Row],[Alloc]]=\"IDU\",tblSchMLookup[[#This Row],[Alloc]]=\"OR\",tblSchMLookup[[#This Row],[Alloc]]=\"UT\",tblSchMLookup[[#This Row],[Alloc]]=\"WYU\",tblSchMLookup[[#This Row],[Alloc]]=\"WYP\",tblSchMLookup[[#This Row],[Alloc]]=\"CA\",tblSchMLookup[[#This Row],[Alloc]]=\"WA\"),\"SITUS\",tblSchMLookup[[#This Row],[Alloc]])","v":"SITUS"},"P"]
[{"$f":"CONCATENATE(,tblSchMLookup[[#This Row],[Primary Account]],tblSchMLookup[[#This Row],[Primary Name]],tblSchMLookup[[#This Row],[Secondary Acct]],tblSchMLookup[[#This Row],[Secondary  Name]],tblSchMLookup[[#This Row],[Alloc4FUNC]])","v":"4098300SCHMAT415510WA Disallowed Colstrip #3 Write-offSITUS"},4098300,{"$f":"IF(tblSchMLookup[[#This Row],[Primary Account]]=4098200,\"SCHMAP\",IF(tblSchMLookup[[#This Row],[Primary Account]]=4098300,\"SCHMAT\",IF(tblSchMLookup[[#This Row],[Primary Account]]=4099200,\"SCHMDP\",IF(tblSchMLookup[[#This Row],[Primary Account]]=4099300,\"SCHMDT\"))))","v":"SCHMAT"},415510,"WA Disallowed Colstrip #3 Write-off","SITUS",null,{"$f":"IF(OR(tblSchMLookup[[#This Row],[Alloc]]=\"IDU\",tblSchMLookup[[#This Row],[Alloc]]=\"OR\",tblSchMLookup[[#This Row],[Alloc]]=\"UT\",tblSchMLookup[[#This Row],[Alloc]]=\"WYU\",tblSchMLookup[[#This Row],[Alloc]]=\"WYP\",tblSchMLookup[[#This Row],[Alloc]]=\"CA\",tblSchMLookup[[#This Row],[Alloc]]=\"WA\"),\"SITUS\",tblSchMLookup[[#This Row],[Alloc]])","v":"SITUS"},"P"]
[{"$f":"CONCATENATE(,tblSchMLookup[[#This Row],[Primary Account]],tblSchMLookup[[#This Row],[Primary Name]],tblSchMLookup[[#This Row],[Secondary Acct]],tblSchMLookup[[#This Row],[Secondary  Name]],tblSchMLookup[[#This Row],[Alloc4FUNC]])","v":"4099300SCHMDT505510Vacation Accrual - PMISE"},4099300,{"$f":"IF(tblSchMLookup[[#This Row],[Primary Account]]=4098200,\"SCHMAP\",IF(tblSchMLookup[[#This Row],[Primary Account]]=4098300,\"SCHMAT\",IF(tblSchMLookup[[#This Row],[Primary Account]]=4099200,\"SCHMDP\",IF(tblSchMLookup[[#This Row],[Primary Account]]=4099300,\"SCHMDT\"))))","v":"SCHMDT"},505510,"Vacation Accrual - PMI","SE",null,{"$f":"IF(OR(tblSchMLookup[[#This Row],[Alloc]]=\"IDU\",tblSchMLookup[[#This Row],[Alloc]]=\"OR\",tblSchMLookup[[#This Row],[Alloc]]=\"UT\",tblSchMLookup[[#This Row],[Alloc]]=\"WYU\",tblSchMLookup[[#This Row],[Alloc]]=\"WYP\",tblSchMLookup[[#This Row],[Alloc]]=\"CA\",tblSchMLookup[[#This Row],[Alloc]]=\"WA\"),\"SITUS\",tblSchMLookup[[#This Row],[Alloc]])","v":"SE"},"P"]
[{"$f":"CONCATENATE(,tblSchMLookup[[#This Row],[Primary Account]],tblSchMLookup[[#This Row],[Primary Name]],tblSchMLookup[[#This Row],[Secondary Acct]],tblSchMLookup[[#This Row],[Secondary  Name]],tblSchMLookup[[#This Row],[Alloc4FUNC]])","v":"4099300SCHMDT425400UT Kalamath Relicensing CostsOTHER"},4099300,{"$f":"IF(tblSchMLookup[[#This Row],[Primary Account]]=4098200,\"SCHMAP\",IF(tblSchMLookup[[#This Row],[Primary Account]]=4098300,\"SCHMAT\",IF(tblSchMLookup[[#This Row],[Primary Account]]=4099200,\"SCHMDP\",IF(tblSchMLookup[[#This Row],[Primary Account]]=4099300,\"SCHMDT\"))))","v":"SCHMDT"},425400,"UT Kalamath Relicensing Costs","OTHER",null,{"$f":"IF(OR(tblSchMLookup[[#This Row],[Alloc]]=\"IDU\",tblSchMLookup[[#This Row],[Alloc]]=\"OR\",tblSchMLookup[[#This Row],[Alloc]]=\"UT\",tblSchMLookup[[#This Row],[Alloc]]=\"WYU\",tblSchMLookup[[#This Row],[Alloc]]=\"WYP\",tblSchMLookup[[#This Row],[Alloc]]=\"CA\",tblSchMLookup[[#This Row],[Alloc]]=\"WA\"),\"SITUS\",tblSchMLookup[[#This Row],[Alloc]])","v":"OTHER"},"P"]
[{"$f":"CONCATENATE(,tblSchMLookup[[#This Row],[Primary Account]],tblSchMLookup[[#This Row],[Primary Name]],tblSchMLookup[[#This Row],[Secondary Acct]],tblSchMLookup[[#This Row],[Secondary  Name]],tblSchMLookup[[#This Row],[Alloc4FUNC]])","v":"4099300SCHMDT415880UT Def Independent Evaluation FeeSITUS"},4099300,{"$f":"IF(tblSchMLookup[[#This Row],[Primary Account]]=4098200,\"SCHMAP\",IF(tblSchMLookup[[#This Row],[Primary Account]]=4098300,\"SCHMAT\",IF(tblSchMLookup[[#This Row],[Primary Account]]=4099200,\"SCHMDP\",IF(tblSchMLookup[[#This Row],[Primary Account]]=4099300,\"SCHMDT\"))))","v":"SCHMDT"},415880,"UT Def Independent Evaluation Fee","UT",null,{"$f":"IF(OR(tblSchMLookup[[#This Row],[Alloc]]=\"IDU\",tblSchMLookup[[#This Row],[Alloc]]=\"OR\",tblSchMLookup[[#This Row],[Alloc]]=\"UT\",tblSchMLookup[[#This Row],[Alloc]]=\"WYU\",tblSchMLookup[[#This Row],[Alloc]]=\"WYP\",tblSchMLookup[[#This Row],[Alloc]]=\"CA\",tblSchMLookup[[#This Row],[Alloc]]=\"WA\"),\"SITUS\",tblSchMLookup[[#This Row],[Alloc]])","v":"SITUS"},"GP"]
[{"$f":"CONCATENATE(,tblSchMLookup[[#This Row],[Primary Account]],tblSchMLookup[[#This Row],[Primary Name]],tblSchMLookup[[#This Row],[Secondary Acct]],tblSchMLookup[[#This Row],[Secondary  Name]],tblSchMLookup[[#This Row],[Alloc4FUNC]])","v":"4099300SCHMDT425215Unearned Joint Use Pole Contact RevenueSNPD"},4099300,{"$f":"IF(tblSchMLookup[[#This Row],[Primary Account]]=4098200,\"SCHMAP\",IF(tblSchMLookup[[#This Row],[Primary Account]]=4098300,\"SCHMAT\",IF(tblSchMLookup[[#This Row],[Primary Account]]=4099200,\"SCHMDP\",IF(tblSchMLookup[[#This Row],[Primary Account]]=4099300,\"SCHMDT\"))))","v":"SCHMDT"},425215,"Unearned Joint Use Pole Contact Revenue","SNPD",null,{"$f":"IF(OR(tblSchMLookup[[#This Row],[Alloc]]=\"IDU\",tblSchMLookup[[#This Row],[Alloc]]=\"OR\",tblSchMLookup[[#This Row],[Alloc]]=\"UT\",tblSchMLookup[[#This Row],[Alloc]]=\"WYU\",tblSchMLookup[[#This Row],[Alloc]]=\"WYP\",tblSchMLookup[[#This Row],[Alloc]]=\"CA\",tblSchMLookup[[#This Row],[Alloc]]=\"WA\"),\"SITUS\",tblSchMLookup[[#This Row],[Alloc]])","v":"SNPD"},"DPW"]
[{"$f":"CONCATENATE(,tblSchMLookup[[#This Row],[Primary Account]],tblSchMLookup[[#This Row],[Primary Name]],tblSchMLookup[[#This Row],[Secondary Acct]],tblSchMLookup[[#This Row],[Secondary  Name]],tblSchMLookup[[#This Row],[Alloc4FUNC]])","v":"4098300SCHMAT605100Trojan Decomissioning CostsTROJD"},4098300,{"$f":"IF(tblSchMLookup[[#This Row],[Primary Account]]=4098200,\"SCHMAP\",IF(tblSchMLookup[[#This Row],[Primary Account]]=4098300,\"SCHMAT\",IF(tblSchMLookup[[#This Row],[Primary Account]]=4099200,\"SCHMDP\",IF(tblSchMLookup[[#This Row],[Primary Account]]=4099300,\"SCHMDT\"))))","v":"SCHMAT"},605100,"Trojan Decomissioning Costs","TROJD",null,{"$f":"IF(OR(tblSchMLookup[[#This Row],[Alloc]]=\"IDU\",tblSchMLookup[[#This Row],[Alloc]]=\"OR\",tblSchMLookup[[#This Row],[Alloc]]=\"UT\",tblSchMLookup[[#This Row],[Alloc]]=\"WYU\",tblSchMLookup[[#This Row],[Alloc]]=\"WYP\",tblSchMLookup[[#This Row],[Alloc]]=\"CA\",tblSchMLookup[[#This Row],[Alloc]]=\"WA\"),\"SITUS\",tblSchMLookup[[#This Row],[Alloc]])","v":"TROJD"},"P"]
[{"$f":"CONCATENATE(,tblSchMLookup[[#This Row],[Primary Account]],tblSchMLookup[[#This Row],[Primary Name]],tblSchMLookup[[#This Row],[Secondary Acct]],tblSchMLookup[[#This Row],[Secondary  Name]],tblSchMLookup[[#This Row],[Alloc4FUNC]])","v":"4098300SCHMAT605715Trapper Mine Contract ObligationSE"},4098300,{"$f":"IF(tblSchMLookup[[#This Row],[Primary Account]]=4098200,\"SCHMAP\",IF(tblSchMLookup[[#This Row],[Primary Account]]=4098300,\"SCHMAT\",IF(tblSchMLookup[[#This Row],[Primary Account]]=4099200,\"SCHMDP\",IF(tblSchMLookup[[#This Row],[Primary Account]]=4099300,\"SCHMDT\"))))","v":"SCHMAT"},605715,"Trapper Mine Contract Obligation","SE",null,{"$f":"IF(OR(tblSchMLookup[[#This Row],[Alloc]]=\"IDU\",tblSchMLookup[[#This Row],[Alloc]]=\"OR\",tblSchMLookup[[#This Row],[Alloc]]=\"UT\",tblSchMLookup[[#This Row],[Alloc]]=\"WYU\",tblSchMLookup[[#This Row],[Alloc]]=\"WYP\",tblSchMLookup[[#This Row],[Alloc]]=\"CA\",tblSchMLookup[[#This Row],[Alloc]]=\"WA\"),\"SITUS\",tblSchMLookup[[#This Row],[Alloc]])","v":"SE"},"P"]
[{"$f":"CONCATENATE(,tblSchMLookup[[#This Row],[Primary Account]],tblSchMLookup[[#This Row],[Primary Name]],tblSchMLookup[[#This Row],[Secondary Acct]],tblSchMLookup[[#This Row],[Secondary  Name]],tblSchMLookup[[#This Row],[Alloc4FUNC]])","v":"4098300SCHMAT425250TGS Buyout-SGSG"},4098300,{"$f":"IF(tblSchMLookup[[#This Row],[Primary Account]]=4098200,\"SCHMAP\",IF(tblSchMLookup[[#This Row],[Primary Account]]=4098300,\"SCHMAT\",IF(tblSchMLookup[[#This Row],[Primary Account]]=4099200,\"SCHMDP\",IF(tblSchMLookup[[#This Row],[Primary Account]]=4099300,\"SCHMDT\"))))","v":"SCHMAT"},425250,"TGS Buyout-SG","SG",null,{"$f":"IF(OR(tblSchMLookup[[#This Row],[Alloc]]=\"IDU\",tblSchMLookup[[#This Row],[Alloc]]=\"OR\",tblSchMLookup[[#This Row],[Alloc]]=\"UT\",tblSchMLookup[[#This Row],[Alloc]]=\"WYU\",tblSchMLookup[[#This Row],[Alloc]]=\"WYP\",tblSchMLookup[[#This Row],[Alloc]]=\"CA\",tblSchMLookup[[#This Row],[Alloc]]=\"WA\"),\"SITUS\",tblSchMLookup[[#This Row],[Alloc]])","v":"SG"},"P"]
[{"$f":"CONCATENATE(,tblSchMLookup[[#This Row],[Primary Account]],tblSchMLookup[[#This Row],[Primary Name]],tblSchMLookup[[#This Row],[Secondary Acct]],tblSchMLookup[[#This Row],[Secondary  Name]],tblSchMLookup[[#This Row],[Alloc4FUNC]])","v":"4099300SCHMDT1102051Tax Percentage Depletion - DeductionSE"},4099300,{"$f":"IF(tblSchMLookup[[#This Row],[Primary Account]]=4098200,\"SCHMAP\",IF(tblSchMLookup[[#This Row],[Primary Account]]=4098300,\"SCHMAT\",IF(tblSchMLookup[[#This Row],[Primary Account]]=4099200,\"SCHMDP\",IF(tblSchMLookup[[#This Row],[Primary Account]]=4099300,\"SCHMDT\"))))","v":"SCHMDT"},1102051,"Tax Percentage Depletion - Deduction","SE",null,{"$f":"IF(OR(tblSchMLookup[[#This Row],[Alloc]]=\"IDU\",tblSchMLookup[[#This Row],[Alloc]]=\"OR\",tblSchMLookup[[#This Row],[Alloc]]=\"UT\",tblSchMLookup[[#This Row],[Alloc]]=\"WYU\",tblSchMLookup[[#This Row],[Alloc]]=\"WYP\",tblSchMLookup[[#This Row],[Alloc]]=\"CA\",tblSchMLookup[[#This Row],[Alloc]]=\"WA\"),\"SITUS\",tblSchMLookup[[#This Row],[Alloc]])","v":"SE"},"P"]
[{"$f":"CONCATENATE(,tblSchMLookup[[#This Row],[Primary Account]],tblSchMLookup[[#This Row],[Primary Name]],tblSchMLookup[[#This Row],[Secondary Acct]],tblSchMLookup[[#This Row],[Secondary  Name]],tblSchMLookup[[#This Row],[Alloc4FUNC]])","v":"4099300SCHMDT105125Tax DepreciationTAXDEPR"},4099300,{"$f":"IF(tblSchMLookup[[#This Row],[Primary Account]]=4098200,\"SCHMAP\",IF(tblSchMLookup[[#This Row],[Primary Account]]=4098300,\"SCHMAT\",IF(tblSchMLookup[[#This Row],[Primary Account]]=4099200,\"SCHMDP\",IF(tblSchMLookup[[#This Row],[Primary Account]]=4099300,\"SCHMDT\"))))","v":"SCHMDT"},105125,"Tax Depreciation","TAXDEPR",null,{"$f":"IF(OR(tblSchMLookup[[#This Row],[Alloc]]=\"IDU\",tblSchMLookup[[#This Row],[Alloc]]=\"OR\",tblSchMLookup[[#This Row],[Alloc]]=\"UT\",tblSchMLookup[[#This Row],[Alloc]]=\"WYU\",tblSchMLookup[[#This Row],[Alloc]]=\"WYP\",tblSchMLookup[[#This Row],[Alloc]]=\"CA\",tblSchMLookup[[#This Row],[Alloc]]=\"WA\"),\"SITUS\",tblSchMLookup[[#This Row],[Alloc]])","v":"TAXDEPR"},"TAXDEPR"]
[{"$f":"CONCATENATE(,tblSchMLookup[[#This Row],[Primary Account]],tblSchMLookup[[#This Row],[Primary Name]],tblSchMLookup[[#This Row],[Secondary Acct]],tblSchMLookup[[#This Row],[Secondary  Name]],tblSchMLookup[[#This Row],[Alloc4FUNC]])","v":"4098300SCHMAT505600Sick Leave Vacation & Personal TimeSO"},4098300,{"$f":"IF(tblSchMLookup[[#This Row],[Primary Account]]=4098200,\"SCHMAP\",IF(tblSchMLookup[[#This Row],[Primary Account]]=4098300,\"SCHMAT\",IF(tblSchMLookup[[#This Row],[Primary Account]]=4099200,\"SCHMDP\",IF(tblSchMLookup[[#This Row],[Primary Account]]=4099300,\"SCHMDT\"))))","v":"SCHMAT"},505600,"Sick Leave Vacation & Personal Time","SO",null,{"$f":"IF(OR(tblSchMLookup[[#This Row],[Alloc]]=\"IDU\",tblSchMLookup[[#This Row],[Alloc]]=\"OR\",tblSchMLookup[[#This Row],[Alloc]]=\"UT\",tblSchMLookup[[#This Row],[Alloc]]=\"WYU\",tblSchMLookup[[#This Row],[Alloc]]=\"WYP\",tblSchMLookup[[#This Row],[Alloc]]=\"CA\",tblSchMLookup[[#This Row],[Alloc]]=\"WA\"),\"SITUS\",tblSchMLookup[[#This Row],[Alloc]])","v":"SO"},"LABOR"]
[{"$f":"CONCATENATE(,tblSchMLookup[[#This Row],[Primary Account]],tblSchMLookup[[#This Row],[Primary Name]],tblSchMLookup[[#This Row],[Secondary Acct]],tblSchMLookup[[#This Row],[Secondary  Name]],tblSchMLookup[[#This Row],[Alloc4FUNC]])","v":"4098300SCHMAT505601Sick Leave Accrual - PMISE"},4098300,{"$f":"IF(tblSchMLookup[[#This Row],[Primary Account]]=4098200,\"SCHMAP\",IF(tblSchMLookup[[#This Row],[Primary Account]]=4098300,\"SCHMAT\",IF(tblSchMLookup[[#This Row],[Primary Account]]=4099200,\"SCHMDP\",IF(tblSchMLookup[[#This Row],[Primary Account]]=4099300,\"SCHMDT\"))))","v":"SCHMAT"},505601,"Sick Leave Accrual - PMI","SE",null,{"$f":"IF(OR(tblSchMLookup[[#This Row],[Alloc]]=\"IDU\",tblSchMLookup[[#This Row],[Alloc]]=\"OR\",tblSchMLookup[[#This Row],[Alloc]]=\"UT\",tblSchMLookup[[#This Row],[Alloc]]=\"WYU\",tblSchMLookup[[#This Row],[Alloc]]=\"WYP\",tblSchMLookup[[#This Row],[Alloc]]=\"CA\",tblSchMLookup[[#This Row],[Alloc]]=\"WA\"),\"SITUS\",tblSchMLookup[[#This Row],[Alloc]])","v":"SE"},"LABOR"]
[{"$f":"CONCATENATE(,tblSchMLookup[[#This Row],[Primary Account]],tblSchMLookup[[#This Row],[Primary Name]],tblSchMLookup[[#This Row],[Secondary Acct]],tblSchMLookup[[#This Row],[Secondary  Name]],tblSchMLookup[[#This Row],[Alloc4FUNC]])","v":"4099300SCHMDT720500Severance AccrualSO"},4099300,{"$f":"IF(tblSchMLookup[[#This Row],[Primary Account]]=4098200,\"SCHMAP\",IF(tblSchMLookup[[#This Row],[Primary Account]]=4098300,\"SCHMAT\",IF(tblSchMLookup[[#This Row],[Primary Account]]=4099200,\"SCHMDP\",IF(tblSchMLookup[[#This Row],[Primary Account]]=4099300,\"SCHMDT\"))))","v":"SCHMDT"},720500,"Severance Accrual","SO",null,{"$f":"IF(OR(tblSchMLookup[[#This Row],[Alloc]]=\"IDU\",tblSchMLookup[[#This Row],[Alloc]]=\"OR\",tblSchMLookup[[#This Row],[Alloc]]=\"UT\",tblSchMLookup[[#This Row],[Alloc]]=\"WYU\",tblSchMLookup[[#This Row],[Alloc]]=\"WYP\",tblSchMLookup[[#This Row],[Alloc]]=\"CA\",tblSchMLookup[[#This Row],[Alloc]]=\"WA\"),\"SITUS\",tblSchMLookup[[#This Row],[Alloc]])","v":"SO"},"LABOR"]
[{"$f":"CONCATENATE(,tblSchMLookup[[#This Row],[Primary Account]],tblSchMLookup[[#This Row],[Primary Name]],tblSchMLookup[[#This Row],[Secondary Acct]],tblSchMLookup[[#This Row],[Secondary  Name]],tblSchMLookup[[#This Row],[Alloc4FUNC]])","v":"4098300SCHMAT605710Reverse Accrued Final ReclamationOTHER"},4098300,{"$f":"IF(tblSchMLookup[[#This Row],[Primary Account]]=4098200,\"SCHMAP\",IF(tblSchMLookup[[#This Row],[Primary Account]]=4098300,\"SCHMAT\",IF(tblSchMLookup[[#This Row],[Primary Account]]=4099200,\"SCHMDP\",IF(tblSchMLookup[[#This Row],[Primary Account]]=4099300,\"SCHMDT\"))))","v":"SCHMAT"},605710,"Reverse Accrued Final Reclamation","OTHER",null,{"$f":"IF(OR(tblSchMLookup[[#This Row],[Alloc]]=\"IDU\",tblSchMLookup[[#This Row],[Alloc]]=\"OR\",tblSchMLookup[[#This Row],[Alloc]]=\"UT\",tblSchMLookup[[#This Row],[Alloc]]=\"WYU\",tblSchMLookup[[#This Row],[Alloc]]=\"WYP\",tblSchMLookup[[#This Row],[Alloc]]=\"CA\",tblSchMLookup[[#This Row],[Alloc]]=\"WA\"),\"SITUS\",tblSchMLookup[[#This Row],[Alloc]])","v":"OTHER"},"P"]
[{"$f":"CONCATENATE(,tblSchMLookup[[#This Row],[Primary Account]],tblSchMLookup[[#This Row],[Primary Name]],tblSchMLookup[[#This Row],[Secondary Acct]],tblSchMLookup[[#This Row],[Secondary  Name]],tblSchMLookup[[#This Row],[Alloc4FUNC]])","v":"4099300SCHMDT105122Repair DeductionSG"},4099300,{"$f":"IF(tblSchMLookup[[#This Row],[Primary Account]]=4098200,\"SCHMAP\",IF(tblSchMLookup[[#This Row],[Primary Account]]=4098300,\"SCHMAT\",IF(tblSchMLookup[[#This Row],[Primary Account]]=4099200,\"SCHMDP\",IF(tblSchMLookup[[#This Row],[Primary Account]]=4099300,\"SCHMDT\"))))","v":"SCHMDT"},105122,"Repair Deduction","SG",null,{"$f":"IF(OR(tblSchMLookup[[#This Row],[Alloc]]=\"IDU\",tblSchMLookup[[#This Row],[Alloc]]=\"OR\",tblSchMLookup[[#This Row],[Alloc]]=\"UT\",tblSchMLookup[[#This Row],[Alloc]]=\"WYU\",tblSchMLookup[[#This Row],[Alloc]]=\"WYP\",tblSchMLookup[[#This Row],[Alloc]]=\"CA\",tblSchMLookup[[#This Row],[Alloc]]=\"WA\"),\"SITUS\",tblSchMLookup[[#This Row],[Alloc]])","v":"SG"},"P"]
[{"$f":"CONCATENATE(,tblSchMLookup[[#This Row],[Primary Account]],tblSchMLookup[[#This Row],[Primary Name]],tblSchMLookup[[#This Row],[Secondary Acct]],tblSchMLookup[[#This Row],[Secondary  Name]],tblSchMLookup[[#This Row],[Alloc4FUNC]])","v":"4099300SCHMDT105175Removal Cost (net of salvage)GPS"},4099300,{"$f":"IF(tblSchMLookup[[#This Row],[Primary Account]]=4098200,\"SCHMAP\",IF(tblSchMLookup[[#This Row],[Primary Account]]=4098300,\"SCHMAT\",IF(tblSchMLookup[[#This Row],[Primary Account]]=4099200,\"SCHMDP\",IF(tblSchMLookup[[#This Row],[Primary Account]]=4099300,\"SCHMDT\"))))","v":"SCHMDT"},105175,"Removal Cost (net of salvage)","GPS",null,{"$f":"IF(OR(tblSchMLookup[[#This Row],[Alloc]]=\"IDU\",tblSchMLookup[[#This Row],[Alloc]]=\"OR\",tblSchMLookup[[#This Row],[Alloc]]=\"UT\",tblSchMLookup[[#This Row],[Alloc]]=\"WYU\",tblSchMLookup[[#This Row],[Alloc]]=\"WYP\",tblSchMLookup[[#This Row],[Alloc]]=\"CA\",tblSchMLookup[[#This Row],[Alloc]]=\"WA\"),\"SITUS\",tblSchMLookup[[#This Row],[Alloc]])","v":"GPS"},"PTD"]
[{"$f":"CONCATENATE(,tblSchMLookup[[#This Row],[Primary Account]],tblSchMLookup[[#This Row],[Primary Name]],tblSchMLookup[[#This Row],[Secondary Acct]],tblSchMLookup[[#This Row],[Secondary  Name]],tblSchMLookup[[#This Row],[Alloc4FUNC]])","v":"4098300SCHMAT705521Regulatory Liability - WY Deferred ExcesOTHER"},4098300,{"$f":"IF(tblSchMLookup[[#This Row],[Primary Account]]=4098200,\"SCHMAP\",IF(tblSchMLookup[[#This Row],[Primary Account]]=4098300,\"SCHMAT\",IF(tblSchMLookup[[#This Row],[Primary Account]]=4099200,\"SCHMDP\",IF(tblSchMLookup[[#This Row],[Primary Account]]=4099300,\"SCHMDT\"))))","v":"SCHMAT"},705521,"Regulatory Liability - WY Deferred Exces","OTHER",null,{"$f":"IF(OR(tblSchMLookup[[#This Row],[Alloc]]=\"IDU\",tblSchMLookup[[#This Row],[Alloc]]=\"OR\",tblSchMLookup[[#This Row],[Alloc]]=\"UT\",tblSchMLookup[[#This Row],[Alloc]]=\"WYU\",tblSchMLookup[[#This Row],[Alloc]]=\"WYP\",tblSchMLookup[[#This Row],[Alloc]]=\"CA\",tblSchMLookup[[#This Row],[Alloc]]=\"WA\"),\"SITUS\",tblSchMLookup[[#This Row],[Alloc]])","v":"OTHER"},"P"]
[{"$f":"CONCATENATE(,tblSchMLookup[[#This Row],[Primary Account]],tblSchMLookup[[#This Row],[Primary Name]],tblSchMLookup[[#This Row],[Secondary Acct]],tblSchMLookup[[#This Row],[Secondary  Name]],tblSchMLookup[[#This Row],[Alloc4FUNC]])","v":"4098300SCHMAT705519Regulatory Liability - WA Deferred ExcesOTHER"},4098300,{"$f":"IF(tblSchMLookup[[#This Row],[Primary Account]]=4098200,\"SCHMAP\",IF(tblSchMLookup[[#This Row],[Primary Account]]=4098300,\"SCHMAT\",IF(tblSchMLookup[[#This Row],[Primary Account]]=4099200,\"SCHMDP\",IF(tblSchMLookup[[#This Row],[Primary Account]]=4099300,\"SCHMDT\"))))","v":"SCHMAT"},705519,"Regulatory Liability - WA Deferred Exces","OTHER",null,{"$f":"IF(OR(tblSchMLookup[[#This Row],[Alloc]]=\"IDU\",tblSchMLookup[[#This Row],[Alloc]]=\"OR\",tblSchMLookup[[#This Row],[Alloc]]=\"UT\",tblSchMLookup[[#This Row],[Alloc]]=\"WYU\",tblSchMLookup[[#This Row],[Alloc]]=\"WYP\",tblSchMLookup[[#This Row],[Alloc]]=\"CA\",tblSchMLookup[[#This Row],[Alloc]]=\"WA\"),\"SITUS\",tblSchMLookup[[#This Row],[Alloc]])","v":"OTHER"},"P"]
[{"$f":"CONCATENATE(,tblSchMLookup[[#This Row],[Primary Account]],tblSchMLookup[[#This Row],[Primary Name]],tblSchMLookup[[#This Row],[Secondary Acct]],tblSchMLookup[[#This Row],[Secondary  Name]],tblSchMLookup[[#This Row],[Alloc4FUNC]])","v":"4098300SCHMAT705531Regulatory Liability - UT Solar Feed-inOTHER"},4098300,{"$f":"IF(tblSchMLookup[[#This Row],[Primary Account]]=4098200,\"SCHMAP\",IF(tblSchMLookup[[#This Row],[Primary Account]]=4098300,\"SCHMAT\",IF(tblSchMLookup[[#This Row],[Primary Account]]=4099200,\"SCHMDP\",IF(tblSchMLookup[[#This Row],[Primary Account]]=4099300,\"SCHMDT\"))))","v":"SCHMAT"},705531,"Regulatory Liability - UT Solar Feed-in","OTHER",null,{"$f":"IF(OR(tblSchMLookup[[#This Row],[Alloc]]=\"IDU\",tblSchMLookup[[#This Row],[Alloc]]=\"OR\",tblSchMLookup[[#This Row],[Alloc]]=\"UT\",tblSchMLookup[[#This Row],[Alloc]]=\"WYU\",tblSchMLookup[[#This Row],[Alloc]]=\"WYP\",tblSchMLookup[[#This Row],[Alloc]]=\"CA\",tblSchMLookup[[#This Row],[Alloc]]=\"WA\"),\"SITUS\",tblSchMLookup[[#This Row],[Alloc]])","v":"OTHER"},"P"]
[{"$f":"CONCATENATE(,tblSchMLookup[[#This Row],[Primary Account]],tblSchMLookup[[#This Row],[Primary Name]],tblSchMLookup[[#This Row],[Secondary Acct]],tblSchMLookup[[#This Row],[Secondary  Name]],tblSchMLookup[[#This Row],[Alloc4FUNC]])","v":"4098300SCHMAT705517Regulatory Liability - UT Deferred ExcesOTHER"},4098300,{"$f":"IF(tblSchMLookup[[#This Row],[Primary Account]]=4098200,\"SCHMAP\",IF(tblSchMLookup[[#This Row],[Primary Account]]=4098300,\"SCHMAT\",IF(tblSchMLookup[[#This Row],[Primary Account]]=4099200,\"SCHMDP\",IF(tblSchMLookup[[#This Row],[Primary Account]]=4099300,\"SCHMDT\"))))","v":"SCHMAT"},705517,"Regulatory Liability - UT Deferred Exces","OTHER",null,{"$f":"IF(OR(tblSchMLookup[[#This Row],[Alloc]]=\"IDU\",tblSchMLookup[[#This Row],[Alloc]]=\"OR\",tblSchMLookup[[#This Row],[Alloc]]=\"UT\",tblSchMLookup[[#This Row],[Alloc]]=\"WYU\",tblSchMLookup[[#This Row],[Alloc]]=\"WYP\",tblSchMLookup[[#This Row],[Alloc]]=\"CA\",tblSchMLookup[[#This Row],[Alloc]]=\"WA\"),\"SITUS\",tblSchMLookup[[#This Row],[Alloc]])","v":"OTHER"},"P"]
[{"$f":"CONCATENATE(,tblSchMLookup[[#This Row],[Primary Account]],tblSchMLookup[[#This Row],[Primary Name]],tblSchMLookup[[#This Row],[Secondary Acct]],tblSchMLookup[[#This Row],[Secondary  Name]],tblSchMLookup[[#This Row],[Alloc4FUNC]])","v":"4098300SCHMAT705515Regulatory Liability - OR Deferred ExcesOTHER"},4098300,{"$f":"IF(tblSchMLookup[[#This Row],[Primary Account]]=4098200,\"SCHMAP\",IF(tblSchMLookup[[#This Row],[Primary Account]]=4098300,\"SCHMAT\",IF(tblSchMLookup[[#This Row],[Primary Account]]=4099200,\"SCHMDP\",IF(tblSchMLookup[[#This Row],[Primary Account]]=4099300,\"SCHMDT\"))))","v":"SCHMAT"},705515,"Regulatory Liability - OR Deferred Exces","OTHER",null,{"$f":"IF(OR(tblSchMLookup[[#This Row],[Alloc]]=\"IDU\",tblSchMLookup[[#This Row],[Alloc]]=\"OR\",tblSchMLookup[[#This Row],[Alloc]]=\"UT\",tblSchMLookup[[#This Row],[Alloc]]=\"WYU\",tblSchMLookup[[#This Row],[Alloc]]=\"WYP\",tblSchMLookup[[#This Row],[Alloc]]=\"CA\",tblSchMLookup[[#This Row],[Alloc]]=\"WA\"),\"SITUS\",tblSchMLookup[[#This Row],[Alloc]])","v":"OTHER"},"P"]
[{"$f":"CONCATENATE(,tblSchMLookup[[#This Row],[Primary Account]],tblSchMLookup[[#This Row],[Primary Name]],tblSchMLookup[[#This Row],[Secondary Acct]],tblSchMLookup[[#This Row],[Secondary  Name]],tblSchMLookup[[#This Row],[Alloc4FUNC]])","v":"4098300SCHMAT705527Regulatory Liability - CA Solar Feed-inOTHER"},4098300,{"$f":"IF(tblSchMLookup[[#This Row],[Primary Account]]=4098200,\"SCHMAP\",IF(tblSchMLookup[[#This Row],[Primary Account]]=4098300,\"SCHMAT\",IF(tblSchMLookup[[#This Row],[Primary Account]]=4099200,\"SCHMDP\",IF(tblSchMLookup[[#This Row],[Primary Account]]=4099300,\"SCHMDT\"))))","v":"SCHMAT"},705527,"Regulatory Liability - CA Solar Feed-in","OTHER",null,{"$f":"IF(OR(tblSchMLookup[[#This Row],[Alloc]]=\"IDU\",tblSchMLookup[[#This Row],[Alloc]]=\"OR\",tblSchMLookup[[#This Row],[Alloc]]=\"UT\",tblSchMLookup[[#This Row],[Alloc]]=\"WYU\",tblSchMLookup[[#This Row],[Alloc]]=\"WYP\",tblSchMLookup[[#This Row],[Alloc]]=\"CA\",tblSchMLookup[[#This Row],[Alloc]]=\"WA\"),\"SITUS\",tblSchMLookup[[#This Row],[Alloc]])","v":"OTHER"},"P"]
[{"$f":"CONCATENATE(,tblSchMLookup[[#This Row],[Primary Account]],tblSchMLookup[[#This Row],[Primary Name]],tblSchMLookup[[#This Row],[Secondary Acct]],tblSchMLookup[[#This Row],[Secondary  Name]],tblSchMLookup[[#This Row],[Alloc4FUNC]])","v":"4098300SCHMAT415827Regulatory Asset - Post -Ret MMT -ORSITUS"},4098300,{"$f":"IF(tblSchMLookup[[#This Row],[Primary Account]]=4098200,\"SCHMAP\",IF(tblSchMLookup[[#This Row],[Primary Account]]=4098300,\"SCHMAT\",IF(tblSchMLookup[[#This Row],[Primary Account]]=4099200,\"SCHMDP\",IF(tblSchMLookup[[#This Row],[Primary Account]]=4099300,\"SCHMDT\"))))","v":"SCHMAT"},415827,"Regulatory Asset - Post -Ret MMT -OR","SITUS",null,{"$f":"IF(OR(tblSchMLookup[[#This Row],[Alloc]]=\"IDU\",tblSchMLookup[[#This Row],[Alloc]]=\"OR\",tblSchMLookup[[#This Row],[Alloc]]=\"UT\",tblSchMLookup[[#This Row],[Alloc]]=\"WYU\",tblSchMLookup[[#This Row],[Alloc]]=\"WYP\",tblSchMLookup[[#This Row],[Alloc]]=\"CA\",tblSchMLookup[[#This Row],[Alloc]]=\"WA\"),\"SITUS\",tblSchMLookup[[#This Row],[Alloc]])","v":"SITUS"},"LABOR"]
[{"$f":"CONCATENATE(,tblSchMLookup[[#This Row],[Primary Account]],tblSchMLookup[[#This Row],[Primary Name]],tblSchMLookup[[#This Row],[Secondary Acct]],tblSchMLookup[[#This Row],[Secondary  Name]],tblSchMLookup[[#This Row],[Alloc4FUNC]])","v":"4098300SCHMAT415831Regulatory Asset - Post - Ret MMT -CASITUS"},4098300,{"$f":"IF(tblSchMLookup[[#This Row],[Primary Account]]=4098200,\"SCHMAP\",IF(tblSchMLookup[[#This Row],[Primary Account]]=4098300,\"SCHMAT\",IF(tblSchMLookup[[#This Row],[Primary Account]]=4099200,\"SCHMDP\",IF(tblSchMLookup[[#This Row],[Primary Account]]=4099300,\"SCHMDT\"))))","v":"SCHMAT"},415831,"Regulatory Asset - Post - Ret MMT -CA","SITUS",null,{"$f":"IF(OR(tblSchMLookup[[#This Row],[Alloc]]=\"IDU\",tblSchMLookup[[#This Row],[Alloc]]=\"OR\",tblSchMLookup[[#This Row],[Alloc]]=\"UT\",tblSchMLookup[[#This Row],[Alloc]]=\"WYU\",tblSchMLookup[[#This Row],[Alloc]]=\"WYP\",tblSchMLookup[[#This Row],[Alloc]]=\"CA\",tblSchMLookup[[#This Row],[Alloc]]=\"WA\"),\"SITUS\",tblSchMLookup[[#This Row],[Alloc]])","v":"SITUS"},"LABOR"]
[{"$f":"CONCATENATE(,tblSchMLookup[[#This Row],[Primary Account]],tblSchMLookup[[#This Row],[Primary Name]],tblSchMLookup[[#This Row],[Secondary Acct]],tblSchMLookup[[#This Row],[Secondary  Name]],tblSchMLookup[[#This Row],[Alloc4FUNC]])","v":"4099300SCHMDT610142Reg. Liability - UT Home Energy LifelineSITUS"},4099300,{"$f":"IF(tblSchMLookup[[#This Row],[Primary Account]]=4098200,\"SCHMAP\",IF(tblSchMLookup[[#This Row],[Primary Account]]=4098300,\"SCHMAT\",IF(tblSchMLookup[[#This Row],[Primary Account]]=4099200,\"SCHMDP\",IF(tblSchMLookup[[#This Row],[Primary Account]]=4099300,\"SCHMDT\"))))","v":"SCHMDT"},610142,"Reg. Liability - UT Home Energy Lifeline","SITUS",null,{"$f":"IF(OR(tblSchMLookup[[#This Row],[Alloc]]=\"IDU\",tblSchMLookup[[#This Row],[Alloc]]=\"OR\",tblSchMLookup[[#This Row],[Alloc]]=\"UT\",tblSchMLookup[[#This Row],[Alloc]]=\"WYU\",tblSchMLookup[[#This Row],[Alloc]]=\"WYP\",tblSchMLookup[[#This Row],[Alloc]]=\"CA\",tblSchMLookup[[#This Row],[Alloc]]=\"WA\"),\"SITUS\",tblSchMLookup[[#This Row],[Alloc]])","v":"SITUS"},"CUST"]
[{"$f":"CONCATENATE(,tblSchMLookup[[#This Row],[Primary Account]],tblSchMLookup[[#This Row],[Primary Name]],tblSchMLookup[[#This Row],[Secondary Acct]],tblSchMLookup[[#This Row],[Secondary  Name]],tblSchMLookup[[#This Row],[Alloc4FUNC]])","v":"4098300SCHMAT705455Reg Liability - WY Property Insurance ReSITUS"},4098300,{"$f":"IF(tblSchMLookup[[#This Row],[Primary Account]]=4098200,\"SCHMAP\",IF(tblSchMLookup[[#This Row],[Primary Account]]=4098300,\"SCHMAT\",IF(tblSchMLookup[[#This Row],[Primary Account]]=4099200,\"SCHMDP\",IF(tblSchMLookup[[#This Row],[Primary Account]]=4099300,\"SCHMDT\"))))","v":"SCHMAT"},705455,"Reg Liability - WY Property Insurance Re","SITUS",null,{"$f":"IF(OR(tblSchMLookup[[#This Row],[Alloc]]=\"IDU\",tblSchMLookup[[#This Row],[Alloc]]=\"OR\",tblSchMLookup[[#This Row],[Alloc]]=\"UT\",tblSchMLookup[[#This Row],[Alloc]]=\"WYU\",tblSchMLookup[[#This Row],[Alloc]]=\"WYP\",tblSchMLookup[[#This Row],[Alloc]]=\"CA\",tblSchMLookup[[#This Row],[Alloc]]=\"WA\"),\"SITUS\",tblSchMLookup[[#This Row],[Alloc]])","v":"SITUS"},"PTD"]
[{"$f":"CONCATENATE(,tblSchMLookup[[#This Row],[Primary Account]],tblSchMLookup[[#This Row],[Primary Name]],tblSchMLookup[[#This Row],[Secondary Acct]],tblSchMLookup[[#This Row],[Secondary  Name]],tblSchMLookup[[#This Row],[Alloc4FUNC]])","v":"4098300SCHMAT610143Reg Liability - WA Low Energy ProgramSITUS"},4098300,{"$f":"IF(tblSchMLookup[[#This Row],[Primary Account]]=4098200,\"SCHMAP\",IF(tblSchMLookup[[#This Row],[Primary Account]]=4098300,\"SCHMAT\",IF(tblSchMLookup[[#This Row],[Primary Account]]=4099200,\"SCHMDP\",IF(tblSchMLookup[[#This Row],[Primary Account]]=4099300,\"SCHMDT\"))))","v":"SCHMAT"},610143,"Reg Liability - WA Low Energy Program","SITUS",null,{"$f":"IF(OR(tblSchMLookup[[#This Row],[Alloc]]=\"IDU\",tblSchMLookup[[#This Row],[Alloc]]=\"OR\",tblSchMLookup[[#This Row],[Alloc]]=\"UT\",tblSchMLookup[[#This Row],[Alloc]]=\"WYU\",tblSchMLookup[[#This Row],[Alloc]]=\"WYP\",tblSchMLookup[[#This Row],[Alloc]]=\"CA\",tblSchMLookup[[#This Row],[Alloc]]=\"WA\"),\"SITUS\",tblSchMLookup[[#This Row],[Alloc]])","v":"SITUS"},"DPW"]
[{"$f":"CONCATENATE(,tblSchMLookup[[#This Row],[Primary Account]],tblSchMLookup[[#This Row],[Primary Name]],tblSchMLookup[[#This Row],[Secondary Acct]],tblSchMLookup[[#This Row],[Secondary  Name]],tblSchMLookup[[#This Row],[Alloc4FUNC]])","v":"4098300SCHMAT705267Reg Liability - WA Decoupling MechanismOTHER"},4098300,{"$f":"IF(tblSchMLookup[[#This Row],[Primary Account]]=4098200,\"SCHMAP\",IF(tblSchMLookup[[#This Row],[Primary Account]]=4098300,\"SCHMAT\",IF(tblSchMLookup[[#This Row],[Primary Account]]=4099200,\"SCHMDP\",IF(tblSchMLookup[[#This Row],[Primary Account]]=4099300,\"SCHMDT\"))))","v":"SCHMAT"},705267,"Reg Liability - WA Decoupling Mechanism","OTHER",null,{"$f":"IF(OR(tblSchMLookup[[#This Row],[Alloc]]=\"IDU\",tblSchMLookup[[#This Row],[Alloc]]=\"OR\",tblSchMLookup[[#This Row],[Alloc]]=\"UT\",tblSchMLookup[[#This Row],[Alloc]]=\"WYU\",tblSchMLookup[[#This Row],[Alloc]]=\"WYP\",tblSchMLookup[[#This Row],[Alloc]]=\"CA\",tblSchMLookup[[#This Row],[Alloc]]=\"WA\"),\"SITUS\",tblSchMLookup[[#This Row],[Alloc]])","v":"OTHER"},"PTD"]
[{"$f":"CONCATENATE(,tblSchMLookup[[#This Row],[Primary Account]],tblSchMLookup[[#This Row],[Primary Name]],tblSchMLookup[[#This Row],[Secondary Acct]],tblSchMLookup[[#This Row],[Secondary  Name]],tblSchMLookup[[#This Row],[Alloc4FUNC]])","v":"4098300SCHMAT415710Reg Liability - WA - Accelerated DepreciSITUS"},4098300,{"$f":"IF(tblSchMLookup[[#This Row],[Primary Account]]=4098200,\"SCHMAP\",IF(tblSchMLookup[[#This Row],[Primary Account]]=4098300,\"SCHMAT\",IF(tblSchMLookup[[#This Row],[Primary Account]]=4099200,\"SCHMDP\",IF(tblSchMLookup[[#This Row],[Primary Account]]=4099300,\"SCHMDT\"))))","v":"SCHMAT"},415710,"Reg Liability - WA - Accelerated Depreci","SITUS",null,{"$f":"IF(OR(tblSchMLookup[[#This Row],[Alloc]]=\"IDU\",tblSchMLookup[[#This Row],[Alloc]]=\"OR\",tblSchMLookup[[#This Row],[Alloc]]=\"UT\",tblSchMLookup[[#This Row],[Alloc]]=\"WYU\",tblSchMLookup[[#This Row],[Alloc]]=\"WYP\",tblSchMLookup[[#This Row],[Alloc]]=\"CA\",tblSchMLookup[[#This Row],[Alloc]]=\"WA\"),\"SITUS\",tblSchMLookup[[#This Row],[Alloc]])","v":"SITUS"},"P"]
[{"$f":"CONCATENATE(,tblSchMLookup[[#This Row],[Primary Account]],tblSchMLookup[[#This Row],[Primary Name]],tblSchMLookup[[#This Row],[Secondary Acct]],tblSchMLookup[[#This Row],[Secondary  Name]],tblSchMLookup[[#This Row],[Alloc4FUNC]])","v":"4099300SCHMDT705454Reg Liability - UT Property Insurance ReSITUS"},4099300,{"$f":"IF(tblSchMLookup[[#This Row],[Primary Account]]=4098200,\"SCHMAP\",IF(tblSchMLookup[[#This Row],[Primary Account]]=4098300,\"SCHMAT\",IF(tblSchMLookup[[#This Row],[Primary Account]]=4099200,\"SCHMDP\",IF(tblSchMLookup[[#This Row],[Primary Account]]=4099300,\"SCHMDT\"))))","v":"SCHMDT"},705454,"Reg Liability - UT Property Insurance Re","SITUS",null,{"$f":"IF(OR(tblSchMLookup[[#This Row],[Alloc]]=\"IDU\",tblSchMLookup[[#This Row],[Alloc]]=\"OR\",tblSchMLookup[[#This Row],[Alloc]]=\"UT\",tblSchMLookup[[#This Row],[Alloc]]=\"WYU\",tblSchMLookup[[#This Row],[Alloc]]=\"WYP\",tblSchMLookup[[#This Row],[Alloc]]=\"CA\",tblSchMLookup[[#This Row],[Alloc]]=\"WA\"),\"SITUS\",tblSchMLookup[[#This Row],[Alloc]])","v":"SITUS"},"P"]
[{"$f":"CONCATENATE(,tblSchMLookup[[#This Row],[Primary Account]],tblSchMLookup[[#This Row],[Primary Name]],tblSchMLookup[[#This Row],[Secondary Acct]],tblSchMLookup[[#This Row],[Secondary  Name]],tblSchMLookup[[#This Row],[Alloc4FUNC]])","v":"4098300SCHMAT415705Reg Liability - Tax Revenue Adjustment -SITUS"},4098300,{"$f":"IF(tblSchMLookup[[#This Row],[Primary Account]]=4098200,\"SCHMAP\",IF(tblSchMLookup[[#This Row],[Primary Account]]=4098300,\"SCHMAT\",IF(tblSchMLookup[[#This Row],[Primary Account]]=4099200,\"SCHMDP\",IF(tblSchMLookup[[#This Row],[Primary Account]]=4099300,\"SCHMDT\"))))","v":"SCHMAT"},415705,"Reg Liability - Tax Revenue Adjustment -","SITUS",null,{"$f":"IF(OR(tblSchMLookup[[#This Row],[Alloc]]=\"IDU\",tblSchMLookup[[#This Row],[Alloc]]=\"OR\",tblSchMLookup[[#This Row],[Alloc]]=\"UT\",tblSchMLookup[[#This Row],[Alloc]]=\"WYU\",tblSchMLookup[[#This Row],[Alloc]]=\"WYP\",tblSchMLookup[[#This Row],[Alloc]]=\"CA\",tblSchMLookup[[#This Row],[Alloc]]=\"WA\"),\"SITUS\",tblSchMLookup[[#This Row],[Alloc]])","v":"SITUS"},"PTD"]
[{"$f":"CONCATENATE(,tblSchMLookup[[#This Row],[Primary Account]],tblSchMLookup[[#This Row],[Primary Name]],tblSchMLookup[[#This Row],[Secondary Acct]],tblSchMLookup[[#This Row],[Secondary  Name]],tblSchMLookup[[#This Row],[Alloc4FUNC]])","v":"4098300SCHMAT705336Reg Liability - Sale of Renewable EnergyOTHER"},4098300,{"$f":"IF(tblSchMLookup[[#This Row],[Primary Account]]=4098200,\"SCHMAP\",IF(tblSchMLookup[[#This Row],[Primary Account]]=4098300,\"SCHMAT\",IF(tblSchMLookup[[#This Row],[Primary Account]]=4099200,\"SCHMDP\",IF(tblSchMLookup[[#This Row],[Primary Account]]=4099300,\"SCHMDT\"))))","v":"SCHMAT"},705336,"Reg Liability - Sale of Renewable Energy","OTHER",null,{"$f":"IF(OR(tblSchMLookup[[#This Row],[Alloc]]=\"IDU\",tblSchMLookup[[#This Row],[Alloc]]=\"OR\",tblSchMLookup[[#This Row],[Alloc]]=\"UT\",tblSchMLookup[[#This Row],[Alloc]]=\"WYU\",tblSchMLookup[[#This Row],[Alloc]]=\"WYP\",tblSchMLookup[[#This Row],[Alloc]]=\"CA\",tblSchMLookup[[#This Row],[Alloc]]=\"WA\"),\"SITUS\",tblSchMLookup[[#This Row],[Alloc]])","v":"OTHER"},"P"]
[{"$f":"CONCATENATE(,tblSchMLookup[[#This Row],[Primary Account]],tblSchMLookup[[#This Row],[Primary Name]],tblSchMLookup[[#This Row],[Secondary Acct]],tblSchMLookup[[#This Row],[Secondary  Name]],tblSchMLookup[[#This Row],[Alloc4FUNC]])","v":"4099300SCHMDT705261Reg Liability - Sale of Renewable EnergyOTHER"},4099300,{"$f":"IF(tblSchMLookup[[#This Row],[Primary Account]]=4098200,\"SCHMAP\",IF(tblSchMLookup[[#This Row],[Primary Account]]=4098300,\"SCHMAT\",IF(tblSchMLookup[[#This Row],[Primary Account]]=4099200,\"SCHMDP\",IF(tblSchMLookup[[#This Row],[Primary Account]]=4099300,\"SCHMDT\"))))","v":"SCHMDT"},705261,"Reg Liability - Sale of Renewable Energy","OTHER",null,{"$f":"IF(OR(tblSchMLookup[[#This Row],[Alloc]]=\"IDU\",tblSchMLookup[[#This Row],[Alloc]]=\"OR\",tblSchMLookup[[#This Row],[Alloc]]=\"UT\",tblSchMLookup[[#This Row],[Alloc]]=\"WYU\",tblSchMLookup[[#This Row],[Alloc]]=\"WYP\",tblSchMLookup[[#This Row],[Alloc]]=\"CA\",tblSchMLookup[[#This Row],[Alloc]]=\"WA\"),\"SITUS\",tblSchMLookup[[#This Row],[Alloc]])","v":"OTHER"},"P"]
[{"$f":"CONCATENATE(,tblSchMLookup[[#This Row],[Primary Account]],tblSchMLookup[[#This Row],[Primary Name]],tblSchMLookup[[#This Row],[Secondary Acct]],tblSchMLookup[[#This Row],[Secondary  Name]],tblSchMLookup[[#This Row],[Alloc4FUNC]])","v":"4099300SCHMDT705337Reg Liability - Sale of Renewable EnergyOTHER"},4099300,{"$f":"IF(tblSchMLookup[[#This Row],[Primary Account]]=4098200,\"SCHMAP\",IF(tblSchMLookup[[#This Row],[Primary Account]]=4098300,\"SCHMAT\",IF(tblSchMLookup[[#This Row],[Primary Account]]=4099200,\"SCHMDP\",IF(tblSchMLookup[[#This Row],[Primary Account]]=4099300,\"SCHMDT\"))))","v":"SCHMDT"},705337,"Reg Liability - Sale of Renewable Energy","OTHER",null,{"$f":"IF(OR(tblSchMLookup[[#This Row],[Alloc]]=\"IDU\",tblSchMLookup[[#This Row],[Alloc]]=\"OR\",tblSchMLookup[[#This Row],[Alloc]]=\"UT\",tblSchMLookup[[#This Row],[Alloc]]=\"WYU\",tblSchMLookup[[#This Row],[Alloc]]=\"WYP\",tblSchMLookup[[#This Row],[Alloc]]=\"CA\",tblSchMLookup[[#This Row],[Alloc]]=\"WA\"),\"SITUS\",tblSchMLookup[[#This Row],[Alloc]])","v":"OTHER"},"P"]
[{"$f":"CONCATENATE(,tblSchMLookup[[#This Row],[Primary Account]],tblSchMLookup[[#This Row],[Primary Name]],tblSchMLookup[[#This Row],[Secondary Acct]],tblSchMLookup[[#This Row],[Secondary  Name]],tblSchMLookup[[#This Row],[Alloc4FUNC]])","v":"4098300SCHMAT705263Reg Liability - Sale of REC's-WAOTHER"},4098300,{"$f":"IF(tblSchMLookup[[#This Row],[Primary Account]]=4098200,\"SCHMAP\",IF(tblSchMLookup[[#This Row],[Primary Account]]=4098300,\"SCHMAT\",IF(tblSchMLookup[[#This Row],[Primary Account]]=4099200,\"SCHMDP\",IF(tblSchMLookup[[#This Row],[Primary Account]]=4099300,\"SCHMDT\"))))","v":"SCHMAT"},705263,"Reg Liability - Sale of REC's-WA","OTHER",null,{"$f":"IF(OR(tblSchMLookup[[#This Row],[Alloc]]=\"IDU\",tblSchMLookup[[#This Row],[Alloc]]=\"OR\",tblSchMLookup[[#This Row],[Alloc]]=\"UT\",tblSchMLookup[[#This Row],[Alloc]]=\"WYU\",tblSchMLookup[[#This Row],[Alloc]]=\"WYP\",tblSchMLookup[[#This Row],[Alloc]]=\"CA\",tblSchMLookup[[#This Row],[Alloc]]=\"WA\"),\"SITUS\",tblSchMLookup[[#This Row],[Alloc]])","v":"OTHER"},"P"]
[{"$f":"CONCATENATE(,tblSchMLookup[[#This Row],[Primary Account]],tblSchMLookup[[#This Row],[Primary Name]],tblSchMLookup[[#This Row],[Secondary Acct]],tblSchMLookup[[#This Row],[Secondary  Name]],tblSchMLookup[[#This Row],[Alloc4FUNC]])","v":"4098300SCHMAT705451Reg Liability - OR Property Insurance ReSITUS"},4098300,{"$f":"IF(tblSchMLookup[[#This Row],[Primary Account]]=4098200,\"SCHMAP\",IF(tblSchMLookup[[#This Row],[Primary Account]]=4098300,\"SCHMAT\",IF(tblSchMLookup[[#This Row],[Primary Account]]=4099200,\"SCHMDP\",IF(tblSchMLookup[[#This Row],[Primary Account]]=4099300,\"SCHMDT\"))))","v":"SCHMAT"},705451,"Reg Liability - OR Property Insurance Re","SITUS",null,{"$f":"IF(OR(tblSchMLookup[[#This Row],[Alloc]]=\"IDU\",tblSchMLookup[[#This Row],[Alloc]]=\"OR\",tblSchMLookup[[#This Row],[Alloc]]=\"UT\",tblSchMLookup[[#This Row],[Alloc]]=\"WYU\",tblSchMLookup[[#This Row],[Alloc]]=\"WYP\",tblSchMLookup[[#This Row],[Alloc]]=\"CA\",tblSchMLookup[[#This Row],[Alloc]]=\"WA\"),\"SITUS\",tblSchMLookup[[#This Row],[Alloc]])","v":"SITUS"},"PTD"]
[{"$f":"CONCATENATE(,tblSchMLookup[[#This Row],[Primary Account]],tblSchMLookup[[#This Row],[Primary Name]],tblSchMLookup[[#This Row],[Secondary Acct]],tblSchMLookup[[#This Row],[Secondary  Name]],tblSchMLookup[[#This Row],[Alloc4FUNC]])","v":"4098300SCHMAT705400Reg Liability - OR Injuries & Damages ReSITUS"},4098300,{"$f":"IF(tblSchMLookup[[#This Row],[Primary Account]]=4098200,\"SCHMAP\",IF(tblSchMLookup[[#This Row],[Primary Account]]=4098300,\"SCHMAT\",IF(tblSchMLookup[[#This Row],[Primary Account]]=4099200,\"SCHMDP\",IF(tblSchMLookup[[#This Row],[Primary Account]]=4099300,\"SCHMDT\"))))","v":"SCHMAT"},705400,"Reg Liability - OR Injuries & Damages Re","SITUS",null,{"$f":"IF(OR(tblSchMLookup[[#This Row],[Alloc]]=\"IDU\",tblSchMLookup[[#This Row],[Alloc]]=\"OR\",tblSchMLookup[[#This Row],[Alloc]]=\"UT\",tblSchMLookup[[#This Row],[Alloc]]=\"WYU\",tblSchMLookup[[#This Row],[Alloc]]=\"WYP\",tblSchMLookup[[#This Row],[Alloc]]=\"CA\",tblSchMLookup[[#This Row],[Alloc]]=\"WA\"),\"SITUS\",tblSchMLookup[[#This Row],[Alloc]])","v":"SITUS"},"LABOR"]
[{"$f":"CONCATENATE(,tblSchMLookup[[#This Row],[Primary Account]],tblSchMLookup[[#This Row],[Primary Name]],tblSchMLookup[[#This Row],[Secondary Acct]],tblSchMLookup[[#This Row],[Secondary  Name]],tblSchMLookup[[#This Row],[Alloc4FUNC]])","v":"4098300SCHMAT705245REG LIABILITY - OR DIRECT ACCESS 5 YEAROTHER"},4098300,{"$f":"IF(tblSchMLookup[[#This Row],[Primary Account]]=4098200,\"SCHMAP\",IF(tblSchMLookup[[#This Row],[Primary Account]]=4098300,\"SCHMAT\",IF(tblSchMLookup[[#This Row],[Primary Account]]=4099200,\"SCHMDP\",IF(tblSchMLookup[[#This Row],[Primary Account]]=4099300,\"SCHMDT\"))))","v":"SCHMAT"},705245,"REG LIABILITY - OR DIRECT ACCESS 5 YEAR","OTHER",null,{"$f":"IF(OR(tblSchMLookup[[#This Row],[Alloc]]=\"IDU\",tblSchMLookup[[#This Row],[Alloc]]=\"OR\",tblSchMLookup[[#This Row],[Alloc]]=\"UT\",tblSchMLookup[[#This Row],[Alloc]]=\"WYU\",tblSchMLookup[[#This Row],[Alloc]]=\"WYP\",tblSchMLookup[[#This Row],[Alloc]]=\"CA\",tblSchMLookup[[#This Row],[Alloc]]=\"WA\"),\"SITUS\",tblSchMLookup[[#This Row],[Alloc]])","v":"OTHER"},"PTD"]
[{"$f":"CONCATENATE(,tblSchMLookup[[#This Row],[Primary Account]],tblSchMLookup[[#This Row],[Primary Name]],tblSchMLookup[[#This Row],[Secondary Acct]],tblSchMLookup[[#This Row],[Secondary  Name]],tblSchMLookup[[#This Row],[Alloc4FUNC]])","v":"4099300SCHMDT705755Reg Liability - Non current Reclass - OtOTHER"},4099300,{"$f":"IF(tblSchMLookup[[#This Row],[Primary Account]]=4098200,\"SCHMAP\",IF(tblSchMLookup[[#This Row],[Primary Account]]=4098300,\"SCHMAT\",IF(tblSchMLookup[[#This Row],[Primary Account]]=4099200,\"SCHMDP\",IF(tblSchMLookup[[#This Row],[Primary Account]]=4099300,\"SCHMDT\"))))","v":"SCHMDT"},705755,"Reg Liability - Non current Reclass - Ot","OTHER",null,{"$f":"IF(OR(tblSchMLookup[[#This Row],[Alloc]]=\"IDU\",tblSchMLookup[[#This Row],[Alloc]]=\"OR\",tblSchMLookup[[#This Row],[Alloc]]=\"UT\",tblSchMLookup[[#This Row],[Alloc]]=\"WYU\",tblSchMLookup[[#This Row],[Alloc]]=\"WYP\",tblSchMLookup[[#This Row],[Alloc]]=\"CA\",tblSchMLookup[[#This Row],[Alloc]]=\"WA\"),\"SITUS\",tblSchMLookup[[#This Row],[Alloc]])","v":"OTHER"},"GP"]
[{"$f":"CONCATENATE(,tblSchMLookup[[#This Row],[Primary Account]],tblSchMLookup[[#This Row],[Primary Name]],tblSchMLookup[[#This Row],[Secondary Acct]],tblSchMLookup[[#This Row],[Secondary  Name]],tblSchMLookup[[#This Row],[Alloc4FUNC]])","v":"4098300SCHMAT705453Reg Liability - ID Property Insurance ReSITUS"},4098300,{"$f":"IF(tblSchMLookup[[#This Row],[Primary Account]]=4098200,\"SCHMAP\",IF(tblSchMLookup[[#This Row],[Primary Account]]=4098300,\"SCHMAT\",IF(tblSchMLookup[[#This Row],[Primary Account]]=4099200,\"SCHMDP\",IF(tblSchMLookup[[#This Row],[Primary Account]]=4099300,\"SCHMDT\"))))","v":"SCHMAT"},705453,"Reg Liability - ID Property Insurance Re","SITUS",null,{"$f":"IF(OR(tblSchMLookup[[#This Row],[Alloc]]=\"IDU\",tblSchMLookup[[#This Row],[Alloc]]=\"OR\",tblSchMLookup[[#This Row],[Alloc]]=\"UT\",tblSchMLookup[[#This Row],[Alloc]]=\"WYU\",tblSchMLookup[[#This Row],[Alloc]]=\"WYP\",tblSchMLookup[[#This Row],[Alloc]]=\"CA\",tblSchMLookup[[#This Row],[Alloc]]=\"WA\"),\"SITUS\",tblSchMLookup[[#This Row],[Alloc]])","v":"SITUS"},"PTD"]
[{"$f":"CONCATENATE(,tblSchMLookup[[#This Row],[Primary Account]],tblSchMLookup[[#This Row],[Primary Name]],tblSchMLookup[[#This Row],[Secondary Acct]],tblSchMLookup[[#This Row],[Secondary  Name]],tblSchMLookup[[#This Row],[Alloc4FUNC]])","v":"4099300SCHMDT320279Reg Liability - FAS 158 Post RetirementSO"},4099300,{"$f":"IF(tblSchMLookup[[#This Row],[Primary Account]]=4098200,\"SCHMAP\",IF(tblSchMLookup[[#This Row],[Primary Account]]=4098300,\"SCHMAT\",IF(tblSchMLookup[[#This Row],[Primary Account]]=4099200,\"SCHMDP\",IF(tblSchMLookup[[#This Row],[Primary Account]]=4099300,\"SCHMDT\"))))","v":"SCHMDT"},320279,"Reg Liability - FAS 158 Post Retirement","SO",null,{"$f":"IF(OR(tblSchMLookup[[#This Row],[Alloc]]=\"IDU\",tblSchMLookup[[#This Row],[Alloc]]=\"OR\",tblSchMLookup[[#This Row],[Alloc]]=\"UT\",tblSchMLookup[[#This Row],[Alloc]]=\"WYU\",tblSchMLookup[[#This Row],[Alloc]]=\"WYP\",tblSchMLookup[[#This Row],[Alloc]]=\"CA\",tblSchMLookup[[#This Row],[Alloc]]=\"WA\"),\"SITUS\",tblSchMLookup[[#This Row],[Alloc]])","v":"SO"},"LABOR"]
[{"$f":"CONCATENATE(,tblSchMLookup[[#This Row],[Primary Account]],tblSchMLookup[[#This Row],[Primary Name]],tblSchMLookup[[#This Row],[Secondary Acct]],tblSchMLookup[[#This Row],[Secondary  Name]],tblSchMLookup[[#This Row],[Alloc4FUNC]])","v":"4098300SCHMAT705340Reg Liability - Excess Income Tax DeferrOTHER"},4098300,{"$f":"IF(tblSchMLookup[[#This Row],[Primary Account]]=4098200,\"SCHMAP\",IF(tblSchMLookup[[#This Row],[Primary Account]]=4098300,\"SCHMAT\",IF(tblSchMLookup[[#This Row],[Primary Account]]=4099200,\"SCHMDP\",IF(tblSchMLookup[[#This Row],[Primary Account]]=4099300,\"SCHMDT\"))))","v":"SCHMAT"},705340,"Reg Liability - Excess Income Tax Deferr","OTHER",null,{"$f":"IF(OR(tblSchMLookup[[#This Row],[Alloc]]=\"IDU\",tblSchMLookup[[#This Row],[Alloc]]=\"OR\",tblSchMLookup[[#This Row],[Alloc]]=\"UT\",tblSchMLookup[[#This Row],[Alloc]]=\"WYU\",tblSchMLookup[[#This Row],[Alloc]]=\"WYP\",tblSchMLookup[[#This Row],[Alloc]]=\"CA\",tblSchMLookup[[#This Row],[Alloc]]=\"WA\"),\"SITUS\",tblSchMLookup[[#This Row],[Alloc]])","v":"OTHER"},"GP"]
[{"$f":"CONCATENATE(,tblSchMLookup[[#This Row],[Primary Account]],tblSchMLookup[[#This Row],[Primary Name]],tblSchMLookup[[#This Row],[Secondary Acct]],tblSchMLookup[[#This Row],[Secondary  Name]],tblSchMLookup[[#This Row],[Alloc4FUNC]])","v":"4098300SCHMAT705341Reg Liability - Excess Income Tax DeferrOTHER"},4098300,{"$f":"IF(tblSchMLookup[[#This Row],[Primary Account]]=4098200,\"SCHMAP\",IF(tblSchMLookup[[#This Row],[Primary Account]]=4098300,\"SCHMAT\",IF(tblSchMLookup[[#This Row],[Primary Account]]=4099200,\"SCHMDP\",IF(tblSchMLookup[[#This Row],[Primary Account]]=4099300,\"SCHMDT\"))))","v":"SCHMAT"},705341,"Reg Liability - Excess Income Tax Deferr","OTHER",null,{"$f":"IF(OR(tblSchMLookup[[#This Row],[Alloc]]=\"IDU\",tblSchMLookup[[#This Row],[Alloc]]=\"OR\",tblSchMLookup[[#This Row],[Alloc]]=\"UT\",tblSchMLookup[[#This Row],[Alloc]]=\"WYU\",tblSchMLookup[[#This Row],[Alloc]]=\"WYP\",tblSchMLookup[[#This Row],[Alloc]]=\"CA\",tblSchMLookup[[#This Row],[Alloc]]=\"WA\"),\"SITUS\",tblSchMLookup[[#This Row],[Alloc]])","v":"OTHER"},"GP"]
[{"$f":"CONCATENATE(,tblSchMLookup[[#This Row],[Primary Account]],tblSchMLookup[[#This Row],[Primary Name]],tblSchMLookup[[#This Row],[Secondary Acct]],tblSchMLookup[[#This Row],[Secondary  Name]],tblSchMLookup[[#This Row],[Alloc4FUNC]])","v":"4098300SCHMAT705342Reg Liability - Excess Income Tax DeferrOTHER"},4098300,{"$f":"IF(tblSchMLookup[[#This Row],[Primary Account]]=4098200,\"SCHMAP\",IF(tblSchMLookup[[#This Row],[Primary Account]]=4098300,\"SCHMAT\",IF(tblSchMLookup[[#This Row],[Primary Account]]=4099200,\"SCHMDP\",IF(tblSchMLookup[[#This Row],[Primary Account]]=4099300,\"SCHMDT\"))))","v":"SCHMAT"},705342,"Reg Liability - Excess Income Tax Deferr","OTHER",null,{"$f":"IF(OR(tblSchMLookup[[#This Row],[Alloc]]=\"IDU\",tblSchMLookup[[#This Row],[Alloc]]=\"OR\",tblSchMLookup[[#This Row],[Alloc]]=\"UT\",tblSchMLookup[[#This Row],[Alloc]]=\"WYU\",tblSchMLookup[[#This Row],[Alloc]]=\"WYP\",tblSchMLookup[[#This Row],[Alloc]]=\"CA\",tblSchMLookup[[#This Row],[Alloc]]=\"WA\"),\"SITUS\",tblSchMLookup[[#This Row],[Alloc]])","v":"OTHER"},"GP"]
[{"$f":"CONCATENATE(,tblSchMLookup[[#This Row],[Primary Account]],tblSchMLookup[[#This Row],[Primary Name]],tblSchMLookup[[#This Row],[Secondary Acct]],tblSchMLookup[[#This Row],[Secondary  Name]],tblSchMLookup[[#This Row],[Alloc4FUNC]])","v":"4098300SCHMAT705343Reg Liability - Excess Income Tax DeferrOTHER"},4098300,{"$f":"IF(tblSchMLookup[[#This Row],[Primary Account]]=4098200,\"SCHMAP\",IF(tblSchMLookup[[#This Row],[Primary Account]]=4098300,\"SCHMAT\",IF(tblSchMLookup[[#This Row],[Primary Account]]=4099200,\"SCHMDP\",IF(tblSchMLookup[[#This Row],[Primary Account]]=4099300,\"SCHMDT\"))))","v":"SCHMAT"},705343,"Reg Liability - Excess Income Tax Deferr","OTHER",null,{"$f":"IF(OR(tblSchMLookup[[#This Row],[Alloc]]=\"IDU\",tblSchMLookup[[#This Row],[Alloc]]=\"OR\",tblSchMLookup[[#This Row],[Alloc]]=\"UT\",tblSchMLookup[[#This Row],[Alloc]]=\"WYU\",tblSchMLookup[[#This Row],[Alloc]]=\"WYP\",tblSchMLookup[[#This Row],[Alloc]]=\"CA\",tblSchMLookup[[#This Row],[Alloc]]=\"WA\"),\"SITUS\",tblSchMLookup[[#This Row],[Alloc]])","v":"OTHER"},"GP"]
[{"$f":"CONCATENATE(,tblSchMLookup[[#This Row],[Primary Account]],tblSchMLookup[[#This Row],[Primary Name]],tblSchMLookup[[#This Row],[Secondary Acct]],tblSchMLookup[[#This Row],[Secondary  Name]],tblSchMLookup[[#This Row],[Alloc4FUNC]])","v":"4098300SCHMAT705344Reg Liability - Excess Income Tax DeferrOTHER"},4098300,{"$f":"IF(tblSchMLookup[[#This Row],[Primary Account]]=4098200,\"SCHMAP\",IF(tblSchMLookup[[#This Row],[Primary Account]]=4098300,\"SCHMAT\",IF(tblSchMLookup[[#This Row],[Primary Account]]=4099200,\"SCHMDP\",IF(tblSchMLookup[[#This Row],[Primary Account]]=4099300,\"SCHMDT\"))))","v":"SCHMAT"},705344,"Reg Liability - Excess Income Tax Deferr","OTHER",null,{"$f":"IF(OR(tblSchMLookup[[#This Row],[Alloc]]=\"IDU\",tblSchMLookup[[#This Row],[Alloc]]=\"OR\",tblSchMLookup[[#This Row],[Alloc]]=\"UT\",tblSchMLookup[[#This Row],[Alloc]]=\"WYU\",tblSchMLookup[[#This Row],[Alloc]]=\"WYP\",tblSchMLookup[[#This Row],[Alloc]]=\"CA\",tblSchMLookup[[#This Row],[Alloc]]=\"WA\"),\"SITUS\",tblSchMLookup[[#This Row],[Alloc]])","v":"OTHER"},"GP"]
[{"$f":"CONCATENATE(,tblSchMLookup[[#This Row],[Primary Account]],tblSchMLookup[[#This Row],[Primary Name]],tblSchMLookup[[#This Row],[Secondary Acct]],tblSchMLookup[[#This Row],[Secondary  Name]],tblSchMLookup[[#This Row],[Alloc4FUNC]])","v":"4098300SCHMAT705345Reg Liability - Excess Income Tax DeferrOTHER"},4098300,{"$f":"IF(tblSchMLookup[[#This Row],[Primary Account]]=4098200,\"SCHMAP\",IF(tblSchMLookup[[#This Row],[Primary Account]]=4098300,\"SCHMAT\",IF(tblSchMLookup[[#This Row],[Primary Account]]=4099200,\"SCHMDP\",IF(tblSchMLookup[[#This Row],[Primary Account]]=4099300,\"SCHMDT\"))))","v":"SCHMAT"},705345,"Reg Liability - Excess Income Tax Deferr","OTHER",null,{"$f":"IF(OR(tblSchMLookup[[#This Row],[Alloc]]=\"IDU\",tblSchMLookup[[#This Row],[Alloc]]=\"OR\",tblSchMLookup[[#This Row],[Alloc]]=\"UT\",tblSchMLookup[[#This Row],[Alloc]]=\"WYU\",tblSchMLookup[[#This Row],[Alloc]]=\"WYP\",tblSchMLookup[[#This Row],[Alloc]]=\"CA\",tblSchMLookup[[#This Row],[Alloc]]=\"WA\"),\"SITUS\",tblSchMLookup[[#This Row],[Alloc]])","v":"OTHER"},"GP"]
[{"$f":"CONCATENATE(,tblSchMLookup[[#This Row],[Primary Account]],tblSchMLookup[[#This Row],[Primary Name]],tblSchMLookup[[#This Row],[Secondary Acct]],tblSchMLookup[[#This Row],[Secondary  Name]],tblSchMLookup[[#This Row],[Alloc4FUNC]])","v":"4098300SCHMAT705266Reg Liability - Energy Savings AssistancOTHER"},4098300,{"$f":"IF(tblSchMLookup[[#This Row],[Primary Account]]=4098200,\"SCHMAP\",IF(tblSchMLookup[[#This Row],[Primary Account]]=4098300,\"SCHMAT\",IF(tblSchMLookup[[#This Row],[Primary Account]]=4099200,\"SCHMDP\",IF(tblSchMLookup[[#This Row],[Primary Account]]=4099300,\"SCHMDT\"))))","v":"SCHMAT"},705266,"Reg Liability - Energy Savings Assistanc","OTHER",null,{"$f":"IF(OR(tblSchMLookup[[#This Row],[Alloc]]=\"IDU\",tblSchMLookup[[#This Row],[Alloc]]=\"OR\",tblSchMLookup[[#This Row],[Alloc]]=\"UT\",tblSchMLookup[[#This Row],[Alloc]]=\"WYU\",tblSchMLookup[[#This Row],[Alloc]]=\"WYP\",tblSchMLookup[[#This Row],[Alloc]]=\"CA\",tblSchMLookup[[#This Row],[Alloc]]=\"WA\"),\"SITUS\",tblSchMLookup[[#This Row],[Alloc]])","v":"OTHER"},"CUST"]
[{"$f":"CONCATENATE(,tblSchMLookup[[#This Row],[Primary Account]],tblSchMLookup[[#This Row],[Primary Name]],tblSchMLookup[[#This Row],[Secondary Acct]],tblSchMLookup[[#This Row],[Secondary  Name]],tblSchMLookup[[#This Row],[Alloc4FUNC]])","v":"4098300SCHMAT415927Reg Liability - Depreciation Decrease DeSITUS"},4098300,{"$f":"IF(tblSchMLookup[[#This Row],[Primary Account]]=4098200,\"SCHMAP\",IF(tblSchMLookup[[#This Row],[Primary Account]]=4098300,\"SCHMAT\",IF(tblSchMLookup[[#This Row],[Primary Account]]=4099200,\"SCHMDP\",IF(tblSchMLookup[[#This Row],[Primary Account]]=4099300,\"SCHMDT\"))))","v":"SCHMAT"},415927,"Reg Liability - Depreciation Decrease De","SITUS",null,{"$f":"IF(OR(tblSchMLookup[[#This Row],[Alloc]]=\"IDU\",tblSchMLookup[[#This Row],[Alloc]]=\"OR\",tblSchMLookup[[#This Row],[Alloc]]=\"UT\",tblSchMLookup[[#This Row],[Alloc]]=\"WYU\",tblSchMLookup[[#This Row],[Alloc]]=\"WYP\",tblSchMLookup[[#This Row],[Alloc]]=\"CA\",tblSchMLookup[[#This Row],[Alloc]]=\"WA\"),\"SITUS\",tblSchMLookup[[#This Row],[Alloc]])","v":"SITUS"},"P"]
[{"$f":"CONCATENATE(,tblSchMLookup[[#This Row],[Primary Account]],tblSchMLookup[[#This Row],[Primary Name]],tblSchMLookup[[#This Row],[Secondary Acct]],tblSchMLookup[[#This Row],[Secondary  Name]],tblSchMLookup[[#This Row],[Alloc4FUNC]])","v":"4098300SCHMAT415926Reg Liability - Depreciation Decrease -SITUS"},4098300,{"$f":"IF(tblSchMLookup[[#This Row],[Primary Account]]=4098200,\"SCHMAP\",IF(tblSchMLookup[[#This Row],[Primary Account]]=4098300,\"SCHMAT\",IF(tblSchMLookup[[#This Row],[Primary Account]]=4099200,\"SCHMDP\",IF(tblSchMLookup[[#This Row],[Primary Account]]=4099300,\"SCHMDT\"))))","v":"SCHMAT"},415926,"Reg Liability - Depreciation Decrease -","SITUS",null,{"$f":"IF(OR(tblSchMLookup[[#This Row],[Alloc]]=\"IDU\",tblSchMLookup[[#This Row],[Alloc]]=\"OR\",tblSchMLookup[[#This Row],[Alloc]]=\"UT\",tblSchMLookup[[#This Row],[Alloc]]=\"WYU\",tblSchMLookup[[#This Row],[Alloc]]=\"WYP\",tblSchMLookup[[#This Row],[Alloc]]=\"CA\",tblSchMLookup[[#This Row],[Alloc]]=\"WA\"),\"SITUS\",tblSchMLookup[[#This Row],[Alloc]])","v":"SITUS"},"P"]
[{"$f":"CONCATENATE(,tblSchMLookup[[#This Row],[Primary Account]],tblSchMLookup[[#This Row],[Primary Name]],tblSchMLookup[[#This Row],[Secondary Acct]],tblSchMLookup[[#This Row],[Secondary  Name]],tblSchMLookup[[#This Row],[Alloc4FUNC]])","v":"4098300SCHMAT415926Reg Liability - Depreciation Decrease -OTHER"},4098300,{"$f":"IF(tblSchMLookup[[#This Row],[Primary Account]]=4098200,\"SCHMAP\",IF(tblSchMLookup[[#This Row],[Primary Account]]=4098300,\"SCHMAT\",IF(tblSchMLookup[[#This Row],[Primary Account]]=4099200,\"SCHMDP\",IF(tblSchMLookup[[#This Row],[Primary Account]]=4099300,\"SCHMDT\"))))","v":"SCHMAT"},415926,"Reg Liability - Depreciation Decrease -","OTHER",null,{"$f":"IF(OR(tblSchMLookup[[#This Row],[Alloc]]=\"IDU\",tblSchMLookup[[#This Row],[Alloc]]=\"OR\",tblSchMLookup[[#This Row],[Alloc]]=\"UT\",tblSchMLookup[[#This Row],[Alloc]]=\"WYU\",tblSchMLookup[[#This Row],[Alloc]]=\"WYP\",tblSchMLookup[[#This Row],[Alloc]]=\"CA\",tblSchMLookup[[#This Row],[Alloc]]=\"WA\"),\"SITUS\",tblSchMLookup[[#This Row],[Alloc]])","v":"OTHER"},"P"]
[{"$f":"CONCATENATE(,tblSchMLookup[[#This Row],[Primary Account]],tblSchMLookup[[#This Row],[Primary Name]],tblSchMLookup[[#This Row],[Secondary Acct]],tblSchMLookup[[#This Row],[Secondary  Name]],tblSchMLookup[[#This Row],[Alloc4FUNC]])","v":"4099300SCHMDT415935Reg Liability - Contra - Carbon DecommisSITUS"},4099300,{"$f":"IF(tblSchMLookup[[#This Row],[Primary Account]]=4098200,\"SCHMAP\",IF(tblSchMLookup[[#This Row],[Primary Account]]=4098300,\"SCHMAT\",IF(tblSchMLookup[[#This Row],[Primary Account]]=4099200,\"SCHMDP\",IF(tblSchMLookup[[#This Row],[Primary Account]]=4099300,\"SCHMDT\"))))","v":"SCHMDT"},415935,"Reg Liability - Contra - Carbon Decommis","SITUS",null,{"$f":"IF(OR(tblSchMLookup[[#This Row],[Alloc]]=\"IDU\",tblSchMLookup[[#This Row],[Alloc]]=\"OR\",tblSchMLookup[[#This Row],[Alloc]]=\"UT\",tblSchMLookup[[#This Row],[Alloc]]=\"WYU\",tblSchMLookup[[#This Row],[Alloc]]=\"WYP\",tblSchMLookup[[#This Row],[Alloc]]=\"CA\",tblSchMLookup[[#This Row],[Alloc]]=\"WA\"),\"SITUS\",tblSchMLookup[[#This Row],[Alloc]])","v":"SITUS"},"P"]
[{"$f":"CONCATENATE(,tblSchMLookup[[#This Row],[Primary Account]],tblSchMLookup[[#This Row],[Primary Name]],tblSchMLookup[[#This Row],[Secondary Acct]],tblSchMLookup[[#This Row],[Secondary  Name]],tblSchMLookup[[#This Row],[Alloc4FUNC]])","v":"4098300SCHMAT705420Reg Liability - CA GHG Allowance RevenueOTHER"},4098300,{"$f":"IF(tblSchMLookup[[#This Row],[Primary Account]]=4098200,\"SCHMAP\",IF(tblSchMLookup[[#This Row],[Primary Account]]=4098300,\"SCHMAT\",IF(tblSchMLookup[[#This Row],[Primary Account]]=4099200,\"SCHMDP\",IF(tblSchMLookup[[#This Row],[Primary Account]]=4099300,\"SCHMDT\"))))","v":"SCHMAT"},705420,"Reg Liability - CA GHG Allowance Revenue","OTHER",null,{"$f":"IF(OR(tblSchMLookup[[#This Row],[Alloc]]=\"IDU\",tblSchMLookup[[#This Row],[Alloc]]=\"OR\",tblSchMLookup[[#This Row],[Alloc]]=\"UT\",tblSchMLookup[[#This Row],[Alloc]]=\"WYU\",tblSchMLookup[[#This Row],[Alloc]]=\"WYP\",tblSchMLookup[[#This Row],[Alloc]]=\"CA\",tblSchMLookup[[#This Row],[Alloc]]=\"WA\"),\"SITUS\",tblSchMLookup[[#This Row],[Alloc]])","v":"OTHER"},"PTD"]
[{"$f":"CONCATENATE(,tblSchMLookup[[#This Row],[Primary Account]],tblSchMLookup[[#This Row],[Primary Name]],tblSchMLookup[[#This Row],[Secondary Acct]],tblSchMLookup[[#This Row],[Secondary  Name]],tblSchMLookup[[#This Row],[Alloc4FUNC]])","v":"4098300SCHMAT610145REG LIAB-DSMOTHER"},4098300,{"$f":"IF(tblSchMLookup[[#This Row],[Primary Account]]=4098200,\"SCHMAP\",IF(tblSchMLookup[[#This Row],[Primary Account]]=4098300,\"SCHMAT\",IF(tblSchMLookup[[#This Row],[Primary Account]]=4099200,\"SCHMDP\",IF(tblSchMLookup[[#This Row],[Primary Account]]=4099300,\"SCHMDT\"))))","v":"SCHMAT"},610145,"REG LIAB-DSM","OTHER",null,{"$f":"IF(OR(tblSchMLookup[[#This Row],[Alloc]]=\"IDU\",tblSchMLookup[[#This Row],[Alloc]]=\"OR\",tblSchMLookup[[#This Row],[Alloc]]=\"UT\",tblSchMLookup[[#This Row],[Alloc]]=\"WYU\",tblSchMLookup[[#This Row],[Alloc]]=\"WYP\",tblSchMLookup[[#This Row],[Alloc]]=\"CA\",tblSchMLookup[[#This Row],[Alloc]]=\"WA\"),\"SITUS\",tblSchMLookup[[#This Row],[Alloc]])","v":"OTHER"},"PTD"]
[{"$f":"CONCATENATE(,tblSchMLookup[[#This Row],[Primary Account]],tblSchMLookup[[#This Row],[Primary Name]],tblSchMLookup[[#This Row],[Secondary Acct]],tblSchMLookup[[#This Row],[Secondary  Name]],tblSchMLookup[[#This Row],[Alloc4FUNC]])","v":"4099300SCHMDT705265Reg Liab - OR Energy Conservation ChargeOTHER"},4099300,{"$f":"IF(tblSchMLookup[[#This Row],[Primary Account]]=4098200,\"SCHMAP\",IF(tblSchMLookup[[#This Row],[Primary Account]]=4098300,\"SCHMAT\",IF(tblSchMLookup[[#This Row],[Primary Account]]=4099200,\"SCHMDP\",IF(tblSchMLookup[[#This Row],[Primary Account]]=4099300,\"SCHMDT\"))))","v":"SCHMDT"},705265,"Reg Liab - OR Energy Conservation Charge","OTHER",null,{"$f":"IF(OR(tblSchMLookup[[#This Row],[Alloc]]=\"IDU\",tblSchMLookup[[#This Row],[Alloc]]=\"OR\",tblSchMLookup[[#This Row],[Alloc]]=\"UT\",tblSchMLookup[[#This Row],[Alloc]]=\"WYU\",tblSchMLookup[[#This Row],[Alloc]]=\"WYP\",tblSchMLookup[[#This Row],[Alloc]]=\"CA\",tblSchMLookup[[#This Row],[Alloc]]=\"WA\"),\"SITUS\",tblSchMLookup[[#This Row],[Alloc]])","v":"OTHER"},"P"]
[{"$f":"CONCATENATE(,tblSchMLookup[[#This Row],[Primary Account]],tblSchMLookup[[#This Row],[Primary Name]],tblSchMLookup[[#This Row],[Secondary Acct]],tblSchMLookup[[#This Row],[Secondary  Name]],tblSchMLookup[[#This Row],[Alloc4FUNC]])","v":"4099300SCHMDT320285Reg Asset-Post Employment CostsSO"},4099300,{"$f":"IF(tblSchMLookup[[#This Row],[Primary Account]]=4098200,\"SCHMAP\",IF(tblSchMLookup[[#This Row],[Primary Account]]=4098300,\"SCHMAT\",IF(tblSchMLookup[[#This Row],[Primary Account]]=4099200,\"SCHMDP\",IF(tblSchMLookup[[#This Row],[Primary Account]]=4099300,\"SCHMDT\"))))","v":"SCHMDT"},320285,"Reg Asset-Post Employment Costs","SO",null,{"$f":"IF(OR(tblSchMLookup[[#This Row],[Alloc]]=\"IDU\",tblSchMLookup[[#This Row],[Alloc]]=\"OR\",tblSchMLookup[[#This Row],[Alloc]]=\"UT\",tblSchMLookup[[#This Row],[Alloc]]=\"WYU\",tblSchMLookup[[#This Row],[Alloc]]=\"WYP\",tblSchMLookup[[#This Row],[Alloc]]=\"CA\",tblSchMLookup[[#This Row],[Alloc]]=\"WA\"),\"SITUS\",tblSchMLookup[[#This Row],[Alloc]])","v":"SO"},"LABOR"]
[{"$f":"CONCATENATE(,tblSchMLookup[[#This Row],[Primary Account]],tblSchMLookup[[#This Row],[Primary Name]],tblSchMLookup[[#This Row],[Secondary Acct]],tblSchMLookup[[#This Row],[Secondary  Name]],tblSchMLookup[[#This Row],[Alloc4FUNC]])","v":"4098300SCHMAT320280Reg Asset FAS 158 Post Retire LiabSO"},4098300,{"$f":"IF(tblSchMLookup[[#This Row],[Primary Account]]=4098200,\"SCHMAP\",IF(tblSchMLookup[[#This Row],[Primary Account]]=4098300,\"SCHMAT\",IF(tblSchMLookup[[#This Row],[Primary Account]]=4099200,\"SCHMDP\",IF(tblSchMLookup[[#This Row],[Primary Account]]=4099300,\"SCHMDT\"))))","v":"SCHMAT"},320280,"Reg Asset FAS 158 Post Retire Liab","SO",null,{"$f":"IF(OR(tblSchMLookup[[#This Row],[Alloc]]=\"IDU\",tblSchMLookup[[#This Row],[Alloc]]=\"OR\",tblSchMLookup[[#This Row],[Alloc]]=\"UT\",tblSchMLookup[[#This Row],[Alloc]]=\"WYU\",tblSchMLookup[[#This Row],[Alloc]]=\"WYP\",tblSchMLookup[[#This Row],[Alloc]]=\"CA\",tblSchMLookup[[#This Row],[Alloc]]=\"WA\"),\"SITUS\",tblSchMLookup[[#This Row],[Alloc]])","v":"SO"},"LABOR"]
[{"$f":"CONCATENATE(,tblSchMLookup[[#This Row],[Primary Account]],tblSchMLookup[[#This Row],[Primary Name]],tblSchMLookup[[#This Row],[Secondary Acct]],tblSchMLookup[[#This Row],[Secondary  Name]],tblSchMLookup[[#This Row],[Alloc4FUNC]])","v":"4098300SCHMAT320270Reg Asset FAS 158 Pension Liab AdjSO"},4098300,{"$f":"IF(tblSchMLookup[[#This Row],[Primary Account]]=4098200,\"SCHMAP\",IF(tblSchMLookup[[#This Row],[Primary Account]]=4098300,\"SCHMAT\",IF(tblSchMLookup[[#This Row],[Primary Account]]=4099200,\"SCHMDP\",IF(tblSchMLookup[[#This Row],[Primary Account]]=4099300,\"SCHMDT\"))))","v":"SCHMAT"},320270,"Reg Asset FAS 158 Pension Liab Adj","SO",null,{"$f":"IF(OR(tblSchMLookup[[#This Row],[Alloc]]=\"IDU\",tblSchMLookup[[#This Row],[Alloc]]=\"OR\",tblSchMLookup[[#This Row],[Alloc]]=\"UT\",tblSchMLookup[[#This Row],[Alloc]]=\"WYU\",tblSchMLookup[[#This Row],[Alloc]]=\"WYP\",tblSchMLookup[[#This Row],[Alloc]]=\"CA\",tblSchMLookup[[#This Row],[Alloc]]=\"WA\"),\"SITUS\",tblSchMLookup[[#This Row],[Alloc]])","v":"SO"},"LABOR"]
[{"$f":"CONCATENATE(,tblSchMLookup[[#This Row],[Primary Account]],tblSchMLookup[[#This Row],[Primary Name]],tblSchMLookup[[#This Row],[Secondary Acct]],tblSchMLookup[[#This Row],[Secondary  Name]],tblSchMLookup[[#This Row],[Alloc4FUNC]])","v":"4099300SCHMDT430110Reg Asset balance reclassOTHER"},4099300,{"$f":"IF(tblSchMLookup[[#This Row],[Primary Account]]=4098200,\"SCHMAP\",IF(tblSchMLookup[[#This Row],[Primary Account]]=4098300,\"SCHMAT\",IF(tblSchMLookup[[#This Row],[Primary Account]]=4099200,\"SCHMDP\",IF(tblSchMLookup[[#This Row],[Primary Account]]=4099300,\"SCHMDT\"))))","v":"SCHMDT"},430110,"Reg Asset balance reclass","OTHER",null,{"$f":"IF(OR(tblSchMLookup[[#This Row],[Alloc]]=\"IDU\",tblSchMLookup[[#This Row],[Alloc]]=\"OR\",tblSchMLookup[[#This Row],[Alloc]]=\"UT\",tblSchMLookup[[#This Row],[Alloc]]=\"WYU\",tblSchMLookup[[#This Row],[Alloc]]=\"WYP\",tblSchMLookup[[#This Row],[Alloc]]=\"CA\",tblSchMLookup[[#This Row],[Alloc]]=\"WA\"),\"SITUS\",tblSchMLookup[[#This Row],[Alloc]])","v":"OTHER"},"GP"]
[{"$f":"CONCATENATE(,tblSchMLookup[[#This Row],[Primary Account]],tblSchMLookup[[#This Row],[Primary Name]],tblSchMLookup[[#This Row],[Secondary Acct]],tblSchMLookup[[#This Row],[Secondary  Name]],tblSchMLookup[[#This Row],[Alloc4FUNC]])","v":"4098300SCHMAT415822Reg Asset _ Pension MMT -UTSITUS"},4098300,{"$f":"IF(tblSchMLookup[[#This Row],[Primary Account]]=4098200,\"SCHMAP\",IF(tblSchMLookup[[#This Row],[Primary Account]]=4098300,\"SCHMAT\",IF(tblSchMLookup[[#This Row],[Primary Account]]=4099200,\"SCHMDP\",IF(tblSchMLookup[[#This Row],[Primary Account]]=4099300,\"SCHMDT\"))))","v":"SCHMAT"},415822,"Reg Asset _ Pension MMT -UT","SITUS",null,{"$f":"IF(OR(tblSchMLookup[[#This Row],[Alloc]]=\"IDU\",tblSchMLookup[[#This Row],[Alloc]]=\"OR\",tblSchMLookup[[#This Row],[Alloc]]=\"UT\",tblSchMLookup[[#This Row],[Alloc]]=\"WYU\",tblSchMLookup[[#This Row],[Alloc]]=\"WYP\",tblSchMLookup[[#This Row],[Alloc]]=\"CA\",tblSchMLookup[[#This Row],[Alloc]]=\"WA\"),\"SITUS\",tblSchMLookup[[#This Row],[Alloc]])","v":"SITUS"},"LABOR"]
[{"$f":"CONCATENATE(,tblSchMLookup[[#This Row],[Primary Account]],tblSchMLookup[[#This Row],[Primary Name]],tblSchMLookup[[#This Row],[Secondary Acct]],tblSchMLookup[[#This Row],[Secondary  Name]],tblSchMLookup[[#This Row],[Alloc4FUNC]])","v":"4099300SCHMDT415879Reg Asset - WY Liquidation Damages N2SITUS"},4099300,{"$f":"IF(tblSchMLookup[[#This Row],[Primary Account]]=4098200,\"SCHMAP\",IF(tblSchMLookup[[#This Row],[Primary Account]]=4098300,\"SCHMAT\",IF(tblSchMLookup[[#This Row],[Primary Account]]=4099200,\"SCHMDP\",IF(tblSchMLookup[[#This Row],[Primary Account]]=4099300,\"SCHMDT\"))))","v":"SCHMDT"},415879,"Reg Asset - WY Liquidation Damages N2","SITUS",null,{"$f":"IF(OR(tblSchMLookup[[#This Row],[Alloc]]=\"IDU\",tblSchMLookup[[#This Row],[Alloc]]=\"OR\",tblSchMLookup[[#This Row],[Alloc]]=\"UT\",tblSchMLookup[[#This Row],[Alloc]]=\"WYU\",tblSchMLookup[[#This Row],[Alloc]]=\"WYP\",tblSchMLookup[[#This Row],[Alloc]]=\"CA\",tblSchMLookup[[#This Row],[Alloc]]=\"WA\"),\"SITUS\",tblSchMLookup[[#This Row],[Alloc]])","v":"SITUS"},"P"]
[{"$f":"CONCATENATE(,tblSchMLookup[[#This Row],[Primary Account]],tblSchMLookup[[#This Row],[Primary Name]],tblSchMLookup[[#This Row],[Secondary Acct]],tblSchMLookup[[#This Row],[Secondary  Name]],tblSchMLookup[[#This Row],[Alloc4FUNC]])","v":"4099300SCHMDT415532Reg Asset - WY 2017 Protocol - MSP DeferSITUS"},4099300,{"$f":"IF(tblSchMLookup[[#This Row],[Primary Account]]=4098200,\"SCHMAP\",IF(tblSchMLookup[[#This Row],[Primary Account]]=4098300,\"SCHMAT\",IF(tblSchMLookup[[#This Row],[Primary Account]]=4099200,\"SCHMDP\",IF(tblSchMLookup[[#This Row],[Primary Account]]=4099300,\"SCHMDT\"))))","v":"SCHMDT"},415532,"Reg Asset - WY 2017 Protocol - MSP Defer","WYP",null,{"$f":"IF(OR(tblSchMLookup[[#This Row],[Alloc]]=\"IDU\",tblSchMLookup[[#This Row],[Alloc]]=\"OR\",tblSchMLookup[[#This Row],[Alloc]]=\"UT\",tblSchMLookup[[#This Row],[Alloc]]=\"WYU\",tblSchMLookup[[#This Row],[Alloc]]=\"WYP\",tblSchMLookup[[#This Row],[Alloc]]=\"CA\",tblSchMLookup[[#This Row],[Alloc]]=\"WA\"),\"SITUS\",tblSchMLookup[[#This Row],[Alloc]])","v":"SITUS"},"P"]
[{"$f":"CONCATENATE(,tblSchMLookup[[#This Row],[Primary Account]],tblSchMLookup[[#This Row],[Primary Name]],tblSchMLookup[[#This Row],[Secondary Acct]],tblSchMLookup[[#This Row],[Secondary  Name]],tblSchMLookup[[#This Row],[Alloc4FUNC]])","v":"4099300SCHMDT415676Reg Asset - WY - Deferred Stock RedemptiOTHER"},4099300,{"$f":"IF(tblSchMLookup[[#This Row],[Primary Account]]=4098200,\"SCHMAP\",IF(tblSchMLookup[[#This Row],[Primary Account]]=4098300,\"SCHMAT\",IF(tblSchMLookup[[#This Row],[Primary Account]]=4099200,\"SCHMDP\",IF(tblSchMLookup[[#This Row],[Primary Account]]=4099300,\"SCHMDT\"))))","v":"SCHMDT"},415676,"Reg Asset - WY - Deferred Stock Redempti","OTHER",null,{"$f":"IF(OR(tblSchMLookup[[#This Row],[Alloc]]=\"IDU\",tblSchMLookup[[#This Row],[Alloc]]=\"OR\",tblSchMLookup[[#This Row],[Alloc]]=\"UT\",tblSchMLookup[[#This Row],[Alloc]]=\"WYU\",tblSchMLookup[[#This Row],[Alloc]]=\"WYP\",tblSchMLookup[[#This Row],[Alloc]]=\"CA\",tblSchMLookup[[#This Row],[Alloc]]=\"WA\"),\"SITUS\",tblSchMLookup[[#This Row],[Alloc]])","v":"OTHER"},"DDS2"]
[{"$f":"CONCATENATE(,tblSchMLookup[[#This Row],[Primary Account]],tblSchMLookup[[#This Row],[Primary Name]],tblSchMLookup[[#This Row],[Secondary Acct]],tblSchMLookup[[#This Row],[Secondary  Name]],tblSchMLookup[[#This Row],[Alloc4FUNC]])","v":"4099300SCHMDT415545Reg Asset - WA Merwin ProjectOTHER"},4099300,{"$f":"IF(tblSchMLookup[[#This Row],[Primary Account]]=4098200,\"SCHMAP\",IF(tblSchMLookup[[#This Row],[Primary Account]]=4098300,\"SCHMAT\",IF(tblSchMLookup[[#This Row],[Primary Account]]=4099200,\"SCHMDP\",IF(tblSchMLookup[[#This Row],[Primary Account]]=4099300,\"SCHMDT\"))))","v":"SCHMDT"},415545,"Reg Asset - WA Merwin Project","OTHER",null,{"$f":"IF(OR(tblSchMLookup[[#This Row],[Alloc]]=\"IDU\",tblSchMLookup[[#This Row],[Alloc]]=\"OR\",tblSchMLookup[[#This Row],[Alloc]]=\"UT\",tblSchMLookup[[#This Row],[Alloc]]=\"WYU\",tblSchMLookup[[#This Row],[Alloc]]=\"WYP\",tblSchMLookup[[#This Row],[Alloc]]=\"CA\",tblSchMLookup[[#This Row],[Alloc]]=\"WA\"),\"SITUS\",tblSchMLookup[[#This Row],[Alloc]])","v":"OTHER"},"P"]
[{"$f":"CONCATENATE(,tblSchMLookup[[#This Row],[Primary Account]],tblSchMLookup[[#This Row],[Primary Name]],tblSchMLookup[[#This Row],[Secondary Acct]],tblSchMLookup[[#This Row],[Secondary  Name]],tblSchMLookup[[#This Row],[Alloc4FUNC]])","v":"4099300SCHMDT415863Reg Asset - UT Subscriber Solar ProgramSITUS"},4099300,{"$f":"IF(tblSchMLookup[[#This Row],[Primary Account]]=4098200,\"SCHMAP\",IF(tblSchMLookup[[#This Row],[Primary Account]]=4098300,\"SCHMAT\",IF(tblSchMLookup[[#This Row],[Primary Account]]=4099200,\"SCHMDP\",IF(tblSchMLookup[[#This Row],[Primary Account]]=4099300,\"SCHMDT\"))))","v":"SCHMDT"},415863,"Reg Asset - UT Subscriber Solar Program","SITUS",null,{"$f":"IF(OR(tblSchMLookup[[#This Row],[Alloc]]=\"IDU\",tblSchMLookup[[#This Row],[Alloc]]=\"OR\",tblSchMLookup[[#This Row],[Alloc]]=\"UT\",tblSchMLookup[[#This Row],[Alloc]]=\"WYU\",tblSchMLookup[[#This Row],[Alloc]]=\"WYP\",tblSchMLookup[[#This Row],[Alloc]]=\"CA\",tblSchMLookup[[#This Row],[Alloc]]=\"WA\"),\"SITUS\",tblSchMLookup[[#This Row],[Alloc]])","v":"SITUS"},"P"]
[{"$f":"CONCATENATE(,tblSchMLookup[[#This Row],[Primary Account]],tblSchMLookup[[#This Row],[Primary Name]],tblSchMLookup[[#This Row],[Secondary Acct]],tblSchMLookup[[#This Row],[Secondary  Name]],tblSchMLookup[[#This Row],[Alloc4FUNC]])","v":"4098300SCHMAT415115Reg Asset - UT STEP Pilot Programs BalanOTHER"},4098300,{"$f":"IF(tblSchMLookup[[#This Row],[Primary Account]]=4098200,\"SCHMAP\",IF(tblSchMLookup[[#This Row],[Primary Account]]=4098300,\"SCHMAT\",IF(tblSchMLookup[[#This Row],[Primary Account]]=4099200,\"SCHMDP\",IF(tblSchMLookup[[#This Row],[Primary Account]]=4099300,\"SCHMDT\"))))","v":"SCHMAT"},415115,"Reg Asset - UT STEP Pilot Programs Balan","OTHER",null,{"$f":"IF(OR(tblSchMLookup[[#This Row],[Alloc]]=\"IDU\",tblSchMLookup[[#This Row],[Alloc]]=\"OR\",tblSchMLookup[[#This Row],[Alloc]]=\"UT\",tblSchMLookup[[#This Row],[Alloc]]=\"WYU\",tblSchMLookup[[#This Row],[Alloc]]=\"WYP\",tblSchMLookup[[#This Row],[Alloc]]=\"CA\",tblSchMLookup[[#This Row],[Alloc]]=\"WA\"),\"SITUS\",tblSchMLookup[[#This Row],[Alloc]])","v":"OTHER"},"PTD"]
[{"$f":"CONCATENATE(,tblSchMLookup[[#This Row],[Primary Account]],tblSchMLookup[[#This Row],[Primary Name]],tblSchMLookup[[#This Row],[Secondary Acct]],tblSchMLookup[[#This Row],[Secondary  Name]],tblSchMLookup[[#This Row],[Alloc4FUNC]])","v":"4099300SCHMDT415878REG ASSET - UT LIQUIDATED DAMAGES NAUGHTSITUS"},4099300,{"$f":"IF(tblSchMLookup[[#This Row],[Primary Account]]=4098200,\"SCHMAP\",IF(tblSchMLookup[[#This Row],[Primary Account]]=4098300,\"SCHMAT\",IF(tblSchMLookup[[#This Row],[Primary Account]]=4099200,\"SCHMDP\",IF(tblSchMLookup[[#This Row],[Primary Account]]=4099300,\"SCHMDT\"))))","v":"SCHMDT"},415878,"REG ASSET - UT LIQUIDATED DAMAGES NAUGHT","UT",null,{"$f":"IF(OR(tblSchMLookup[[#This Row],[Alloc]]=\"IDU\",tblSchMLookup[[#This Row],[Alloc]]=\"OR\",tblSchMLookup[[#This Row],[Alloc]]=\"UT\",tblSchMLookup[[#This Row],[Alloc]]=\"WYU\",tblSchMLookup[[#This Row],[Alloc]]=\"WYP\",tblSchMLookup[[#This Row],[Alloc]]=\"CA\",tblSchMLookup[[#This Row],[Alloc]]=\"WA\"),\"SITUS\",tblSchMLookup[[#This Row],[Alloc]])","v":"SITUS"},"P"]
[{"$f":"CONCATENATE(,tblSchMLookup[[#This Row],[Primary Account]],tblSchMLookup[[#This Row],[Primary Name]],tblSchMLookup[[#This Row],[Secondary Acct]],tblSchMLookup[[#This Row],[Secondary  Name]],tblSchMLookup[[#This Row],[Alloc4FUNC]])","v":"4099300SCHMDT415531Reg Asset - UT 2017 Protocol - MSP DeferSITUS"},4099300,{"$f":"IF(tblSchMLookup[[#This Row],[Primary Account]]=4098200,\"SCHMAP\",IF(tblSchMLookup[[#This Row],[Primary Account]]=4098300,\"SCHMAT\",IF(tblSchMLookup[[#This Row],[Primary Account]]=4099200,\"SCHMDP\",IF(tblSchMLookup[[#This Row],[Primary Account]]=4099300,\"SCHMDT\"))))","v":"SCHMDT"},415531,"Reg Asset - UT 2017 Protocol - MSP Defer","SITUS",null,{"$f":"IF(OR(tblSchMLookup[[#This Row],[Alloc]]=\"IDU\",tblSchMLookup[[#This Row],[Alloc]]=\"OR\",tblSchMLookup[[#This Row],[Alloc]]=\"UT\",tblSchMLookup[[#This Row],[Alloc]]=\"WYU\",tblSchMLookup[[#This Row],[Alloc]]=\"WYP\",tblSchMLookup[[#This Row],[Alloc]]=\"CA\",tblSchMLookup[[#This Row],[Alloc]]=\"WA\"),\"SITUS\",tblSchMLookup[[#This Row],[Alloc]])","v":"SITUS"},"P"]
[{"$f":"CONCATENATE(,tblSchMLookup[[#This Row],[Primary Account]],tblSchMLookup[[#This Row],[Primary Name]],tblSchMLookup[[#This Row],[Secondary Acct]],tblSchMLookup[[#This Row],[Secondary  Name]],tblSchMLookup[[#This Row],[Alloc4FUNC]])","v":"4098300SCHMAT415868Reg Asset - UT - Solar Incentive ProgramOTHER"},4098300,{"$f":"IF(tblSchMLookup[[#This Row],[Primary Account]]=4098200,\"SCHMAP\",IF(tblSchMLookup[[#This Row],[Primary Account]]=4098300,\"SCHMAT\",IF(tblSchMLookup[[#This Row],[Primary Account]]=4099200,\"SCHMDP\",IF(tblSchMLookup[[#This Row],[Primary Account]]=4099300,\"SCHMDT\"))))","v":"SCHMAT"},415868,"Reg Asset - UT - Solar Incentive Program","OTHER",null,{"$f":"IF(OR(tblSchMLookup[[#This Row],[Alloc]]=\"IDU\",tblSchMLookup[[#This Row],[Alloc]]=\"OR\",tblSchMLookup[[#This Row],[Alloc]]=\"UT\",tblSchMLookup[[#This Row],[Alloc]]=\"WYU\",tblSchMLookup[[#This Row],[Alloc]]=\"WYP\",tblSchMLookup[[#This Row],[Alloc]]=\"CA\",tblSchMLookup[[#This Row],[Alloc]]=\"WA\"),\"SITUS\",tblSchMLookup[[#This Row],[Alloc]])","v":"OTHER"},"P"]
[{"$f":"CONCATENATE(,tblSchMLookup[[#This Row],[Primary Account]],tblSchMLookup[[#This Row],[Primary Name]],tblSchMLookup[[#This Row],[Secondary Acct]],tblSchMLookup[[#This Row],[Secondary  Name]],tblSchMLookup[[#This Row],[Alloc4FUNC]])","v":"4099300SCHMDT415675Reg Asset - UT - Deferred Stock RedemptiOTHER"},4099300,{"$f":"IF(tblSchMLookup[[#This Row],[Primary Account]]=4098200,\"SCHMAP\",IF(tblSchMLookup[[#This Row],[Primary Account]]=4098300,\"SCHMAT\",IF(tblSchMLookup[[#This Row],[Primary Account]]=4099200,\"SCHMDP\",IF(tblSchMLookup[[#This Row],[Primary Account]]=4099300,\"SCHMDT\"))))","v":"SCHMDT"},415675,"Reg Asset - UT - Deferred Stock Redempti","OTHER",null,{"$f":"IF(OR(tblSchMLookup[[#This Row],[Alloc]]=\"IDU\",tblSchMLookup[[#This Row],[Alloc]]=\"OR\",tblSchMLookup[[#This Row],[Alloc]]=\"UT\",tblSchMLookup[[#This Row],[Alloc]]=\"WYU\",tblSchMLookup[[#This Row],[Alloc]]=\"WYP\",tblSchMLookup[[#This Row],[Alloc]]=\"CA\",tblSchMLookup[[#This Row],[Alloc]]=\"WA\"),\"SITUS\",tblSchMLookup[[#This Row],[Alloc]])","v":"OTHER"},"DDS2"]
[{"$f":"CONCATENATE(,tblSchMLookup[[#This Row],[Primary Account]],tblSchMLookup[[#This Row],[Primary Name]],tblSchMLookup[[#This Row],[Secondary Acct]],tblSchMLookup[[#This Row],[Secondary  Name]],tblSchMLookup[[#This Row],[Alloc4FUNC]])","v":"4099300SCHMDT415918Reg Asset - RPS Compliance PurchasesOTHER"},4099300,{"$f":"IF(tblSchMLookup[[#This Row],[Primary Account]]=4098200,\"SCHMAP\",IF(tblSchMLookup[[#This Row],[Primary Account]]=4098300,\"SCHMAT\",IF(tblSchMLookup[[#This Row],[Primary Account]]=4099200,\"SCHMDP\",IF(tblSchMLookup[[#This Row],[Primary Account]]=4099300,\"SCHMDT\"))))","v":"SCHMDT"},415918,"Reg Asset - RPS Compliance Purchases","OTHER",null,{"$f":"IF(OR(tblSchMLookup[[#This Row],[Alloc]]=\"IDU\",tblSchMLookup[[#This Row],[Alloc]]=\"OR\",tblSchMLookup[[#This Row],[Alloc]]=\"UT\",tblSchMLookup[[#This Row],[Alloc]]=\"WYU\",tblSchMLookup[[#This Row],[Alloc]]=\"WYP\",tblSchMLookup[[#This Row],[Alloc]]=\"CA\",tblSchMLookup[[#This Row],[Alloc]]=\"WA\"),\"SITUS\",tblSchMLookup[[#This Row],[Alloc]])","v":"OTHER"},"P"]
[{"$f":"CONCATENATE(,tblSchMLookup[[#This Row],[Primary Account]],tblSchMLookup[[#This Row],[Primary Name]],tblSchMLookup[[#This Row],[Secondary Acct]],tblSchMLookup[[#This Row],[Secondary  Name]],tblSchMLookup[[#This Row],[Alloc4FUNC]])","v":"4099300SCHMDT415906Reg Asset - REC Sales Deferral - OR - NoOTHER"},4099300,{"$f":"IF(tblSchMLookup[[#This Row],[Primary Account]]=4098200,\"SCHMAP\",IF(tblSchMLookup[[#This Row],[Primary Account]]=4098300,\"SCHMAT\",IF(tblSchMLookup[[#This Row],[Primary Account]]=4099200,\"SCHMDP\",IF(tblSchMLookup[[#This Row],[Primary Account]]=4099300,\"SCHMDT\"))))","v":"SCHMDT"},415906,"Reg Asset - REC Sales Deferral - OR - No","OTHER",null,{"$f":"IF(OR(tblSchMLookup[[#This Row],[Alloc]]=\"IDU\",tblSchMLookup[[#This Row],[Alloc]]=\"OR\",tblSchMLookup[[#This Row],[Alloc]]=\"UT\",tblSchMLookup[[#This Row],[Alloc]]=\"WYU\",tblSchMLookup[[#This Row],[Alloc]]=\"WYP\",tblSchMLookup[[#This Row],[Alloc]]=\"CA\",tblSchMLookup[[#This Row],[Alloc]]=\"WA\"),\"SITUS\",tblSchMLookup[[#This Row],[Alloc]])","v":"OTHER"},"P"]
[{"$f":"CONCATENATE(,tblSchMLookup[[#This Row],[Primary Account]],tblSchMLookup[[#This Row],[Primary Name]],tblSchMLookup[[#This Row],[Secondary Acct]],tblSchMLookup[[#This Row],[Secondary  Name]],tblSchMLookup[[#This Row],[Alloc4FUNC]])","v":"4099300SCHMDT415894Reg Asset - REC Sales Deferral - CA - NoOTHER"},4099300,{"$f":"IF(tblSchMLookup[[#This Row],[Primary Account]]=4098200,\"SCHMAP\",IF(tblSchMLookup[[#This Row],[Primary Account]]=4098300,\"SCHMAT\",IF(tblSchMLookup[[#This Row],[Primary Account]]=4099200,\"SCHMDP\",IF(tblSchMLookup[[#This Row],[Primary Account]]=4099300,\"SCHMDT\"))))","v":"SCHMDT"},415894,"Reg Asset - REC Sales Deferral - CA - No","OTHER",null,{"$f":"IF(OR(tblSchMLookup[[#This Row],[Alloc]]=\"IDU\",tblSchMLookup[[#This Row],[Alloc]]=\"OR\",tblSchMLookup[[#This Row],[Alloc]]=\"UT\",tblSchMLookup[[#This Row],[Alloc]]=\"WYU\",tblSchMLookup[[#This Row],[Alloc]]=\"WYP\",tblSchMLookup[[#This Row],[Alloc]]=\"CA\",tblSchMLookup[[#This Row],[Alloc]]=\"WA\"),\"SITUS\",tblSchMLookup[[#This Row],[Alloc]])","v":"OTHER"},"P"]
[{"$f":"CONCATENATE(,tblSchMLookup[[#This Row],[Primary Account]],tblSchMLookup[[#This Row],[Primary Name]],tblSchMLookup[[#This Row],[Secondary Acct]],tblSchMLookup[[#This Row],[Secondary  Name]],tblSchMLookup[[#This Row],[Alloc4FUNC]])","v":"4099300SCHMDT415677Reg Asset - Pref Stock Redemp Loss WAOTHER"},4099300,{"$f":"IF(tblSchMLookup[[#This Row],[Primary Account]]=4098200,\"SCHMAP\",IF(tblSchMLookup[[#This Row],[Primary Account]]=4098300,\"SCHMAT\",IF(tblSchMLookup[[#This Row],[Primary Account]]=4099200,\"SCHMDP\",IF(tblSchMLookup[[#This Row],[Primary Account]]=4099300,\"SCHMDT\"))))","v":"SCHMDT"},415677,"Reg Asset - Pref Stock Redemp Loss WA","OTHER",null,{"$f":"IF(OR(tblSchMLookup[[#This Row],[Alloc]]=\"IDU\",tblSchMLookup[[#This Row],[Alloc]]=\"OR\",tblSchMLookup[[#This Row],[Alloc]]=\"UT\",tblSchMLookup[[#This Row],[Alloc]]=\"WYU\",tblSchMLookup[[#This Row],[Alloc]]=\"WYP\",tblSchMLookup[[#This Row],[Alloc]]=\"CA\",tblSchMLookup[[#This Row],[Alloc]]=\"WA\"),\"SITUS\",tblSchMLookup[[#This Row],[Alloc]])","v":"OTHER"},"DDS2"]
[{"$f":"CONCATENATE(,tblSchMLookup[[#This Row],[Primary Account]],tblSchMLookup[[#This Row],[Primary Name]],tblSchMLookup[[#This Row],[Secondary Acct]],tblSchMLookup[[#This Row],[Secondary  Name]],tblSchMLookup[[#This Row],[Alloc4FUNC]])","v":"4098300SCHMAT320281Reg Asset - Post-Retirement Settlement LSO"},4098300,{"$f":"IF(tblSchMLookup[[#This Row],[Primary Account]]=4098200,\"SCHMAP\",IF(tblSchMLookup[[#This Row],[Primary Account]]=4098300,\"SCHMAT\",IF(tblSchMLookup[[#This Row],[Primary Account]]=4099200,\"SCHMDP\",IF(tblSchMLookup[[#This Row],[Primary Account]]=4099300,\"SCHMDT\"))))","v":"SCHMAT"},320281,"Reg Asset - Post-Retirement Settlement L","SO",null,{"$f":"IF(OR(tblSchMLookup[[#This Row],[Alloc]]=\"IDU\",tblSchMLookup[[#This Row],[Alloc]]=\"OR\",tblSchMLookup[[#This Row],[Alloc]]=\"UT\",tblSchMLookup[[#This Row],[Alloc]]=\"WYU\",tblSchMLookup[[#This Row],[Alloc]]=\"WYP\",tblSchMLookup[[#This Row],[Alloc]]=\"CA\",tblSchMLookup[[#This Row],[Alloc]]=\"WA\"),\"SITUS\",tblSchMLookup[[#This Row],[Alloc]])","v":"SO"},"LABOR"]
[{"$f":"CONCATENATE(,tblSchMLookup[[#This Row],[Primary Account]],tblSchMLookup[[#This Row],[Primary Name]],tblSchMLookup[[#This Row],[Secondary Acct]],tblSchMLookup[[#This Row],[Secondary  Name]],tblSchMLookup[[#This Row],[Alloc4FUNC]])","v":"4098300SCHMAT320282Reg Asset - Post-Retirement Settlement LSITUS"},4098300,{"$f":"IF(tblSchMLookup[[#This Row],[Primary Account]]=4098200,\"SCHMAP\",IF(tblSchMLookup[[#This Row],[Primary Account]]=4098300,\"SCHMAT\",IF(tblSchMLookup[[#This Row],[Primary Account]]=4099200,\"SCHMDP\",IF(tblSchMLookup[[#This Row],[Primary Account]]=4099300,\"SCHMDT\"))))","v":"SCHMAT"},320282,"Reg Asset - Post-Retirement Settlement L","SITUS",null,{"$f":"IF(OR(tblSchMLookup[[#This Row],[Alloc]]=\"IDU\",tblSchMLookup[[#This Row],[Alloc]]=\"OR\",tblSchMLookup[[#This Row],[Alloc]]=\"UT\",tblSchMLookup[[#This Row],[Alloc]]=\"WYU\",tblSchMLookup[[#This Row],[Alloc]]=\"WYP\",tblSchMLookup[[#This Row],[Alloc]]=\"CA\",tblSchMLookup[[#This Row],[Alloc]]=\"WA\"),\"SITUS\",tblSchMLookup[[#This Row],[Alloc]])","v":"SITUS"},"LABOR"]
[{"$f":"CONCATENATE(,tblSchMLookup[[#This Row],[Primary Account]],tblSchMLookup[[#This Row],[Primary Name]],tblSchMLookup[[#This Row],[Secondary Acct]],tblSchMLookup[[#This Row],[Secondary  Name]],tblSchMLookup[[#This Row],[Alloc4FUNC]])","v":"4098300SCHMAT320283Reg Asset - Post-Retirement Settlement LSITUS"},4098300,{"$f":"IF(tblSchMLookup[[#This Row],[Primary Account]]=4098200,\"SCHMAP\",IF(tblSchMLookup[[#This Row],[Primary Account]]=4098300,\"SCHMAT\",IF(tblSchMLookup[[#This Row],[Primary Account]]=4099200,\"SCHMDP\",IF(tblSchMLookup[[#This Row],[Primary Account]]=4099300,\"SCHMDT\"))))","v":"SCHMAT"},320283,"Reg Asset - Post-Retirement Settlement L","SITUS",null,{"$f":"IF(OR(tblSchMLookup[[#This Row],[Alloc]]=\"IDU\",tblSchMLookup[[#This Row],[Alloc]]=\"OR\",tblSchMLookup[[#This Row],[Alloc]]=\"UT\",tblSchMLookup[[#This Row],[Alloc]]=\"WYU\",tblSchMLookup[[#This Row],[Alloc]]=\"WYP\",tblSchMLookup[[#This Row],[Alloc]]=\"CA\",tblSchMLookup[[#This Row],[Alloc]]=\"WA\"),\"SITUS\",tblSchMLookup[[#This Row],[Alloc]])","v":"SITUS"},"LABOR"]
[{"$f":"CONCATENATE(,tblSchMLookup[[#This Row],[Primary Account]],tblSchMLookup[[#This Row],[Primary Name]],tblSchMLookup[[#This Row],[Secondary Acct]],tblSchMLookup[[#This Row],[Secondary  Name]],tblSchMLookup[[#This Row],[Alloc4FUNC]])","v":"4098300SCHMAT415829Reg Asset - Post - Ret MMT -UTSITUS"},4098300,{"$f":"IF(tblSchMLookup[[#This Row],[Primary Account]]=4098200,\"SCHMAP\",IF(tblSchMLookup[[#This Row],[Primary Account]]=4098300,\"SCHMAT\",IF(tblSchMLookup[[#This Row],[Primary Account]]=4099200,\"SCHMDP\",IF(tblSchMLookup[[#This Row],[Primary Account]]=4099300,\"SCHMDT\"))))","v":"SCHMAT"},415829,"Reg Asset - Post - Ret MMT -UT","SITUS",null,{"$f":"IF(OR(tblSchMLookup[[#This Row],[Alloc]]=\"IDU\",tblSchMLookup[[#This Row],[Alloc]]=\"OR\",tblSchMLookup[[#This Row],[Alloc]]=\"UT\",tblSchMLookup[[#This Row],[Alloc]]=\"WYU\",tblSchMLookup[[#This Row],[Alloc]]=\"WYP\",tblSchMLookup[[#This Row],[Alloc]]=\"CA\",tblSchMLookup[[#This Row],[Alloc]]=\"WA\"),\"SITUS\",tblSchMLookup[[#This Row],[Alloc]])","v":"SITUS"},"LABOR"]
[{"$f":"CONCATENATE(,tblSchMLookup[[#This Row],[Primary Account]],tblSchMLookup[[#This Row],[Primary Name]],tblSchMLookup[[#This Row],[Secondary Acct]],tblSchMLookup[[#This Row],[Secondary  Name]],tblSchMLookup[[#This Row],[Alloc4FUNC]])","v":"4099300SCHMDT430112Reg Asset - Other - Balance ReclassOTHER"},4099300,{"$f":"IF(tblSchMLookup[[#This Row],[Primary Account]]=4098200,\"SCHMAP\",IF(tblSchMLookup[[#This Row],[Primary Account]]=4098300,\"SCHMAT\",IF(tblSchMLookup[[#This Row],[Primary Account]]=4099200,\"SCHMDP\",IF(tblSchMLookup[[#This Row],[Primary Account]]=4099300,\"SCHMDT\"))))","v":"SCHMDT"},430112,"Reg Asset - Other - Balance Reclass","OTHER",null,{"$f":"IF(OR(tblSchMLookup[[#This Row],[Alloc]]=\"IDU\",tblSchMLookup[[#This Row],[Alloc]]=\"OR\",tblSchMLookup[[#This Row],[Alloc]]=\"UT\",tblSchMLookup[[#This Row],[Alloc]]=\"WYU\",tblSchMLookup[[#This Row],[Alloc]]=\"WYP\",tblSchMLookup[[#This Row],[Alloc]]=\"CA\",tblSchMLookup[[#This Row],[Alloc]]=\"WA\"),\"SITUS\",tblSchMLookup[[#This Row],[Alloc]])","v":"OTHER"},"GP"]
[{"$f":"CONCATENATE(,tblSchMLookup[[#This Row],[Primary Account]],tblSchMLookup[[#This Row],[Primary Name]],tblSchMLookup[[#This Row],[Secondary Acct]],tblSchMLookup[[#This Row],[Secondary  Name]],tblSchMLookup[[#This Row],[Alloc4FUNC]])","v":"4099300SCHMDT415866Reg Asset - OR Solar Feed-in TariffOTHER"},4099300,{"$f":"IF(tblSchMLookup[[#This Row],[Primary Account]]=4098200,\"SCHMAP\",IF(tblSchMLookup[[#This Row],[Primary Account]]=4098300,\"SCHMAT\",IF(tblSchMLookup[[#This Row],[Primary Account]]=4099200,\"SCHMDP\",IF(tblSchMLookup[[#This Row],[Primary Account]]=4099300,\"SCHMDT\"))))","v":"SCHMDT"},415866,"Reg Asset - OR Solar Feed-in Tariff","OTHER",null,{"$f":"IF(OR(tblSchMLookup[[#This Row],[Alloc]]=\"IDU\",tblSchMLookup[[#This Row],[Alloc]]=\"OR\",tblSchMLookup[[#This Row],[Alloc]]=\"UT\",tblSchMLookup[[#This Row],[Alloc]]=\"WYU\",tblSchMLookup[[#This Row],[Alloc]]=\"WYP\",tblSchMLookup[[#This Row],[Alloc]]=\"CA\",tblSchMLookup[[#This Row],[Alloc]]=\"WA\"),\"SITUS\",tblSchMLookup[[#This Row],[Alloc]])","v":"OTHER"},"P"]
[{"$f":"CONCATENATE(,tblSchMLookup[[#This Row],[Primary Account]],tblSchMLookup[[#This Row],[Primary Name]],tblSchMLookup[[#This Row],[Secondary Acct]],tblSchMLookup[[#This Row],[Secondary  Name]],tblSchMLookup[[#This Row],[Alloc4FUNC]])","v":"4098300SCHMAT425105Reg Asset - OR Asset Sale Gain GivebackOTHER"},4098300,{"$f":"IF(tblSchMLookup[[#This Row],[Primary Account]]=4098200,\"SCHMAP\",IF(tblSchMLookup[[#This Row],[Primary Account]]=4098300,\"SCHMAT\",IF(tblSchMLookup[[#This Row],[Primary Account]]=4099200,\"SCHMDP\",IF(tblSchMLookup[[#This Row],[Primary Account]]=4099300,\"SCHMDT\"))))","v":"SCHMAT"},425105,"Reg Asset - OR Asset Sale Gain Giveback","OTHER",null,{"$f":"IF(OR(tblSchMLookup[[#This Row],[Alloc]]=\"IDU\",tblSchMLookup[[#This Row],[Alloc]]=\"OR\",tblSchMLookup[[#This Row],[Alloc]]=\"UT\",tblSchMLookup[[#This Row],[Alloc]]=\"WYU\",tblSchMLookup[[#This Row],[Alloc]]=\"WYP\",tblSchMLookup[[#This Row],[Alloc]]=\"CA\",tblSchMLookup[[#This Row],[Alloc]]=\"WA\"),\"SITUS\",tblSchMLookup[[#This Row],[Alloc]])","v":"OTHER"},"P"]
[{"$f":"CONCATENATE(,tblSchMLookup[[#This Row],[Primary Account]],tblSchMLookup[[#This Row],[Primary Name]],tblSchMLookup[[#This Row],[Secondary Acct]],tblSchMLookup[[#This Row],[Secondary  Name]],tblSchMLookup[[#This Row],[Alloc4FUNC]])","v":"4099300SCHMDT415885Reg Asset - Noncurrent Reclass - OtherOTHER"},4099300,{"$f":"IF(tblSchMLookup[[#This Row],[Primary Account]]=4098200,\"SCHMAP\",IF(tblSchMLookup[[#This Row],[Primary Account]]=4098300,\"SCHMAT\",IF(tblSchMLookup[[#This Row],[Primary Account]]=4099200,\"SCHMDP\",IF(tblSchMLookup[[#This Row],[Primary Account]]=4099300,\"SCHMDT\"))))","v":"SCHMDT"},415885,"Reg Asset - Noncurrent Reclass - Other","OTHER",null,{"$f":"IF(OR(tblSchMLookup[[#This Row],[Alloc]]=\"IDU\",tblSchMLookup[[#This Row],[Alloc]]=\"OR\",tblSchMLookup[[#This Row],[Alloc]]=\"UT\",tblSchMLookup[[#This Row],[Alloc]]=\"WYU\",tblSchMLookup[[#This Row],[Alloc]]=\"WYP\",tblSchMLookup[[#This Row],[Alloc]]=\"CA\",tblSchMLookup[[#This Row],[Alloc]]=\"WA\"),\"SITUS\",tblSchMLookup[[#This Row],[Alloc]])","v":"OTHER"},"GP"]
[{"$f":"CONCATENATE(,tblSchMLookup[[#This Row],[Primary Account]],tblSchMLookup[[#This Row],[Primary Name]],tblSchMLookup[[#This Row],[Secondary Acct]],tblSchMLookup[[#This Row],[Secondary  Name]],tblSchMLookup[[#This Row],[Alloc4FUNC]])","v":"4098300SCHMAT415702Reg Asset - Lake Side Liq.SITUS"},4098300,{"$f":"IF(tblSchMLookup[[#This Row],[Primary Account]]=4098200,\"SCHMAP\",IF(tblSchMLookup[[#This Row],[Primary Account]]=4098300,\"SCHMAT\",IF(tblSchMLookup[[#This Row],[Primary Account]]=4099200,\"SCHMDP\",IF(tblSchMLookup[[#This Row],[Primary Account]]=4099300,\"SCHMDT\"))))","v":"SCHMAT"},415702,"Reg Asset - Lake Side Liq.","SITUS",null,{"$f":"IF(OR(tblSchMLookup[[#This Row],[Alloc]]=\"IDU\",tblSchMLookup[[#This Row],[Alloc]]=\"OR\",tblSchMLookup[[#This Row],[Alloc]]=\"UT\",tblSchMLookup[[#This Row],[Alloc]]=\"WYU\",tblSchMLookup[[#This Row],[Alloc]]=\"WYP\",tblSchMLookup[[#This Row],[Alloc]]=\"CA\",tblSchMLookup[[#This Row],[Alloc]]=\"WA\"),\"SITUS\",tblSchMLookup[[#This Row],[Alloc]])","v":"SITUS"},"P"]
[{"$f":"CONCATENATE(,tblSchMLookup[[#This Row],[Primary Account]],tblSchMLookup[[#This Row],[Primary Name]],tblSchMLookup[[#This Row],[Secondary Acct]],tblSchMLookup[[#This Row],[Secondary  Name]],tblSchMLookup[[#This Row],[Alloc4FUNC]])","v":"4099300SCHMDT415530Reg Asset - ID 2017 Protocol - MSP DeferSITUS"},4099300,{"$f":"IF(tblSchMLookup[[#This Row],[Primary Account]]=4098200,\"SCHMAP\",IF(tblSchMLookup[[#This Row],[Primary Account]]=4098300,\"SCHMAT\",IF(tblSchMLookup[[#This Row],[Primary Account]]=4099200,\"SCHMDP\",IF(tblSchMLookup[[#This Row],[Primary Account]]=4099300,\"SCHMDT\"))))","v":"SCHMDT"},415530,"Reg Asset - ID 2017 Protocol - MSP Defer","IDU",null,{"$f":"IF(OR(tblSchMLookup[[#This Row],[Alloc]]=\"IDU\",tblSchMLookup[[#This Row],[Alloc]]=\"OR\",tblSchMLookup[[#This Row],[Alloc]]=\"UT\",tblSchMLookup[[#This Row],[Alloc]]=\"WYU\",tblSchMLookup[[#This Row],[Alloc]]=\"WYP\",tblSchMLookup[[#This Row],[Alloc]]=\"CA\",tblSchMLookup[[#This Row],[Alloc]]=\"WA\"),\"SITUS\",tblSchMLookup[[#This Row],[Alloc]])","v":"SITUS"},"P"]
[{"$f":"CONCATENATE(,tblSchMLookup[[#This Row],[Primary Account]],tblSchMLookup[[#This Row],[Primary Name]],tblSchMLookup[[#This Row],[Secondary Acct]],tblSchMLookup[[#This Row],[Secondary  Name]],tblSchMLookup[[#This Row],[Alloc4FUNC]])","v":"4099300SCHMDT415410Reg Asset - Energy West MiningSE"},4099300,{"$f":"IF(tblSchMLookup[[#This Row],[Primary Account]]=4098200,\"SCHMAP\",IF(tblSchMLookup[[#This Row],[Primary Account]]=4098300,\"SCHMAT\",IF(tblSchMLookup[[#This Row],[Primary Account]]=4099200,\"SCHMDP\",IF(tblSchMLookup[[#This Row],[Primary Account]]=4099300,\"SCHMDT\"))))","v":"SCHMDT"},415410,"Reg Asset - Energy West Mining","SE",null,{"$f":"IF(OR(tblSchMLookup[[#This Row],[Alloc]]=\"IDU\",tblSchMLookup[[#This Row],[Alloc]]=\"OR\",tblSchMLookup[[#This Row],[Alloc]]=\"UT\",tblSchMLookup[[#This Row],[Alloc]]=\"WYU\",tblSchMLookup[[#This Row],[Alloc]]=\"WYP\",tblSchMLookup[[#This Row],[Alloc]]=\"CA\",tblSchMLookup[[#This Row],[Alloc]]=\"WA\"),\"SITUS\",tblSchMLookup[[#This Row],[Alloc]])","v":"SE"},"P"]
[{"$f":"CONCATENATE(,tblSchMLookup[[#This Row],[Primary Account]],tblSchMLookup[[#This Row],[Primary Name]],tblSchMLookup[[#This Row],[Secondary Acct]],tblSchMLookup[[#This Row],[Secondary  Name]],tblSchMLookup[[#This Row],[Alloc4FUNC]])","v":"4099300SCHMDT415922Reg Asset - Depreciation Increase - WYSITUS"},4099300,{"$f":"IF(tblSchMLookup[[#This Row],[Primary Account]]=4098200,\"SCHMAP\",IF(tblSchMLookup[[#This Row],[Primary Account]]=4098300,\"SCHMAT\",IF(tblSchMLookup[[#This Row],[Primary Account]]=4099200,\"SCHMDP\",IF(tblSchMLookup[[#This Row],[Primary Account]]=4099300,\"SCHMDT\"))))","v":"SCHMDT"},415922,"Reg Asset - Depreciation Increase - WY","SITUS",null,{"$f":"IF(OR(tblSchMLookup[[#This Row],[Alloc]]=\"IDU\",tblSchMLookup[[#This Row],[Alloc]]=\"OR\",tblSchMLookup[[#This Row],[Alloc]]=\"UT\",tblSchMLookup[[#This Row],[Alloc]]=\"WYU\",tblSchMLookup[[#This Row],[Alloc]]=\"WYP\",tblSchMLookup[[#This Row],[Alloc]]=\"CA\",tblSchMLookup[[#This Row],[Alloc]]=\"WA\"),\"SITUS\",tblSchMLookup[[#This Row],[Alloc]])","v":"SITUS"},"DDS2"]
[{"$f":"CONCATENATE(,tblSchMLookup[[#This Row],[Primary Account]],tblSchMLookup[[#This Row],[Primary Name]],tblSchMLookup[[#This Row],[Secondary Acct]],tblSchMLookup[[#This Row],[Secondary  Name]],tblSchMLookup[[#This Row],[Alloc4FUNC]])","v":"4099300SCHMDT415921Reg Asset - Depreciation Increase - UTSITUS"},4099300,{"$f":"IF(tblSchMLookup[[#This Row],[Primary Account]]=4098200,\"SCHMAP\",IF(tblSchMLookup[[#This Row],[Primary Account]]=4098300,\"SCHMAT\",IF(tblSchMLookup[[#This Row],[Primary Account]]=4099200,\"SCHMDP\",IF(tblSchMLookup[[#This Row],[Primary Account]]=4099300,\"SCHMDT\"))))","v":"SCHMDT"},415921,"Reg Asset - Depreciation Increase - UT","SITUS",null,{"$f":"IF(OR(tblSchMLookup[[#This Row],[Alloc]]=\"IDU\",tblSchMLookup[[#This Row],[Alloc]]=\"OR\",tblSchMLookup[[#This Row],[Alloc]]=\"UT\",tblSchMLookup[[#This Row],[Alloc]]=\"WYU\",tblSchMLookup[[#This Row],[Alloc]]=\"WYP\",tblSchMLookup[[#This Row],[Alloc]]=\"CA\",tblSchMLookup[[#This Row],[Alloc]]=\"WA\"),\"SITUS\",tblSchMLookup[[#This Row],[Alloc]])","v":"SITUS"},"DDS2"]
[{"$f":"CONCATENATE(,tblSchMLookup[[#This Row],[Primary Account]],tblSchMLookup[[#This Row],[Primary Name]],tblSchMLookup[[#This Row],[Secondary Acct]],tblSchMLookup[[#This Row],[Secondary  Name]],tblSchMLookup[[#This Row],[Alloc4FUNC]])","v":"4099300SCHMDT415920Reg Asset - Depreciation Increase - IDSITUS"},4099300,{"$f":"IF(tblSchMLookup[[#This Row],[Primary Account]]=4098200,\"SCHMAP\",IF(tblSchMLookup[[#This Row],[Primary Account]]=4098300,\"SCHMAT\",IF(tblSchMLookup[[#This Row],[Primary Account]]=4099200,\"SCHMDP\",IF(tblSchMLookup[[#This Row],[Primary Account]]=4099300,\"SCHMDT\"))))","v":"SCHMDT"},415920,"Reg Asset - Depreciation Increase - ID","SITUS",null,{"$f":"IF(OR(tblSchMLookup[[#This Row],[Alloc]]=\"IDU\",tblSchMLookup[[#This Row],[Alloc]]=\"OR\",tblSchMLookup[[#This Row],[Alloc]]=\"UT\",tblSchMLookup[[#This Row],[Alloc]]=\"WYU\",tblSchMLookup[[#This Row],[Alloc]]=\"WYP\",tblSchMLookup[[#This Row],[Alloc]]=\"CA\",tblSchMLookup[[#This Row],[Alloc]]=\"WA\"),\"SITUS\",tblSchMLookup[[#This Row],[Alloc]])","v":"SITUS"},"DDS2"]
[{"$f":"CONCATENATE(,tblSchMLookup[[#This Row],[Primary Account]],tblSchMLookup[[#This Row],[Primary Name]],tblSchMLookup[[#This Row],[Secondary Acct]],tblSchMLookup[[#This Row],[Secondary  Name]],tblSchMLookup[[#This Row],[Alloc4FUNC]])","v":"4099300SCHMDT415925Reg Asset - Carbon Unrecovered Plant - WSITUS"},4099300,{"$f":"IF(tblSchMLookup[[#This Row],[Primary Account]]=4098200,\"SCHMAP\",IF(tblSchMLookup[[#This Row],[Primary Account]]=4098300,\"SCHMAT\",IF(tblSchMLookup[[#This Row],[Primary Account]]=4099200,\"SCHMDP\",IF(tblSchMLookup[[#This Row],[Primary Account]]=4099300,\"SCHMDT\"))))","v":"SCHMDT"},415925,"Reg Asset - Carbon Unrecovered Plant - W","SITUS",null,{"$f":"IF(OR(tblSchMLookup[[#This Row],[Alloc]]=\"IDU\",tblSchMLookup[[#This Row],[Alloc]]=\"OR\",tblSchMLookup[[#This Row],[Alloc]]=\"UT\",tblSchMLookup[[#This Row],[Alloc]]=\"WYU\",tblSchMLookup[[#This Row],[Alloc]]=\"WYP\",tblSchMLookup[[#This Row],[Alloc]]=\"CA\",tblSchMLookup[[#This Row],[Alloc]]=\"WA\"),\"SITUS\",tblSchMLookup[[#This Row],[Alloc]])","v":"SITUS"},"P"]
[{"$f":"CONCATENATE(,tblSchMLookup[[#This Row],[Primary Account]],tblSchMLookup[[#This Row],[Primary Name]],tblSchMLookup[[#This Row],[Secondary Acct]],tblSchMLookup[[#This Row],[Secondary  Name]],tblSchMLookup[[#This Row],[Alloc4FUNC]])","v":"4099300SCHMDT415924Reg Asset - Carbon Unrecovered Plant - USITUS"},4099300,{"$f":"IF(tblSchMLookup[[#This Row],[Primary Account]]=4098200,\"SCHMAP\",IF(tblSchMLookup[[#This Row],[Primary Account]]=4098300,\"SCHMAT\",IF(tblSchMLookup[[#This Row],[Primary Account]]=4099200,\"SCHMDP\",IF(tblSchMLookup[[#This Row],[Primary Account]]=4099300,\"SCHMDT\"))))","v":"SCHMDT"},415924,"Reg Asset - Carbon Unrecovered Plant - U","SITUS",null,{"$f":"IF(OR(tblSchMLookup[[#This Row],[Alloc]]=\"IDU\",tblSchMLookup[[#This Row],[Alloc]]=\"OR\",tblSchMLookup[[#This Row],[Alloc]]=\"UT\",tblSchMLookup[[#This Row],[Alloc]]=\"WYU\",tblSchMLookup[[#This Row],[Alloc]]=\"WYP\",tblSchMLookup[[#This Row],[Alloc]]=\"CA\",tblSchMLookup[[#This Row],[Alloc]]=\"WA\"),\"SITUS\",tblSchMLookup[[#This Row],[Alloc]])","v":"SITUS"},"P"]
[{"$f":"CONCATENATE(,tblSchMLookup[[#This Row],[Primary Account]],tblSchMLookup[[#This Row],[Primary Name]],tblSchMLookup[[#This Row],[Secondary Acct]],tblSchMLookup[[#This Row],[Secondary  Name]],tblSchMLookup[[#This Row],[Alloc4FUNC]])","v":"4099300SCHMDT415923Reg Asset - Carbon Unrecovered Plant - ISITUS"},4099300,{"$f":"IF(tblSchMLookup[[#This Row],[Primary Account]]=4098200,\"SCHMAP\",IF(tblSchMLookup[[#This Row],[Primary Account]]=4098300,\"SCHMAT\",IF(tblSchMLookup[[#This Row],[Primary Account]]=4099200,\"SCHMDP\",IF(tblSchMLookup[[#This Row],[Primary Account]]=4099300,\"SCHMDT\"))))","v":"SCHMDT"},415923,"Reg Asset - Carbon Unrecovered Plant - I","SITUS",null,{"$f":"IF(OR(tblSchMLookup[[#This Row],[Alloc]]=\"IDU\",tblSchMLookup[[#This Row],[Alloc]]=\"OR\",tblSchMLookup[[#This Row],[Alloc]]=\"UT\",tblSchMLookup[[#This Row],[Alloc]]=\"WYU\",tblSchMLookup[[#This Row],[Alloc]]=\"WYP\",tblSchMLookup[[#This Row],[Alloc]]=\"CA\",tblSchMLookup[[#This Row],[Alloc]]=\"WA\"),\"SITUS\",tblSchMLookup[[#This Row],[Alloc]])","v":"SITUS"},"P"]
[{"$f":"CONCATENATE(,tblSchMLookup[[#This Row],[Primary Account]],tblSchMLookup[[#This Row],[Primary Name]],tblSchMLookup[[#This Row],[Secondary Acct]],tblSchMLookup[[#This Row],[Secondary  Name]],tblSchMLookup[[#This Row],[Alloc4FUNC]])","v":"4098300SCHMAT415938Reg Asset - Carbon Plant DecommissioningSITUS"},4098300,{"$f":"IF(tblSchMLookup[[#This Row],[Primary Account]]=4098200,\"SCHMAP\",IF(tblSchMLookup[[#This Row],[Primary Account]]=4098300,\"SCHMAT\",IF(tblSchMLookup[[#This Row],[Primary Account]]=4099200,\"SCHMDP\",IF(tblSchMLookup[[#This Row],[Primary Account]]=4099300,\"SCHMDT\"))))","v":"SCHMAT"},415938,"Reg Asset - Carbon Plant Decommissioning","SITUS",null,{"$f":"IF(OR(tblSchMLookup[[#This Row],[Alloc]]=\"IDU\",tblSchMLookup[[#This Row],[Alloc]]=\"OR\",tblSchMLookup[[#This Row],[Alloc]]=\"UT\",tblSchMLookup[[#This Row],[Alloc]]=\"WYU\",tblSchMLookup[[#This Row],[Alloc]]=\"WYP\",tblSchMLookup[[#This Row],[Alloc]]=\"CA\",tblSchMLookup[[#This Row],[Alloc]]=\"WA\"),\"SITUS\",tblSchMLookup[[#This Row],[Alloc]])","v":"SITUS"},"P"]
[{"$f":"CONCATENATE(,tblSchMLookup[[#This Row],[Primary Account]],tblSchMLookup[[#This Row],[Primary Name]],tblSchMLookup[[#This Row],[Secondary Acct]],tblSchMLookup[[#This Row],[Secondary  Name]],tblSchMLookup[[#This Row],[Alloc4FUNC]])","v":"4099300SCHMDT415936REG ASSET - CARBON PLANT DECOMMISSIONINGSG"},4099300,{"$f":"IF(tblSchMLookup[[#This Row],[Primary Account]]=4098200,\"SCHMAP\",IF(tblSchMLookup[[#This Row],[Primary Account]]=4098300,\"SCHMAT\",IF(tblSchMLookup[[#This Row],[Primary Account]]=4099200,\"SCHMDP\",IF(tblSchMLookup[[#This Row],[Primary Account]]=4099300,\"SCHMDT\"))))","v":"SCHMDT"},415936,"REG ASSET - CARBON PLANT DECOMMISSIONING","SG",null,{"$f":"IF(OR(tblSchMLookup[[#This Row],[Alloc]]=\"IDU\",tblSchMLookup[[#This Row],[Alloc]]=\"OR\",tblSchMLookup[[#This Row],[Alloc]]=\"UT\",tblSchMLookup[[#This Row],[Alloc]]=\"WYU\",tblSchMLookup[[#This Row],[Alloc]]=\"WYP\",tblSchMLookup[[#This Row],[Alloc]]=\"CA\",tblSchMLookup[[#This Row],[Alloc]]=\"WA\"),\"SITUS\",tblSchMLookup[[#This Row],[Alloc]])","v":"SG"},"P"]
[{"$f":"CONCATENATE(,tblSchMLookup[[#This Row],[Primary Account]],tblSchMLookup[[#This Row],[Primary Name]],tblSchMLookup[[#This Row],[Secondary Acct]],tblSchMLookup[[#This Row],[Secondary  Name]],tblSchMLookup[[#This Row],[Alloc4FUNC]])","v":"4099300SCHMDT415862Reg Asset - CA Mobile Home Park ConversiOTHER"},4099300,{"$f":"IF(tblSchMLookup[[#This Row],[Primary Account]]=4098200,\"SCHMAP\",IF(tblSchMLookup[[#This Row],[Primary Account]]=4098300,\"SCHMAT\",IF(tblSchMLookup[[#This Row],[Primary Account]]=4099200,\"SCHMDP\",IF(tblSchMLookup[[#This Row],[Primary Account]]=4099300,\"SCHMDT\"))))","v":"SCHMDT"},415862,"Reg Asset - CA Mobile Home Park Conversi","OTHER",null,{"$f":"IF(OR(tblSchMLookup[[#This Row],[Alloc]]=\"IDU\",tblSchMLookup[[#This Row],[Alloc]]=\"OR\",tblSchMLookup[[#This Row],[Alloc]]=\"UT\",tblSchMLookup[[#This Row],[Alloc]]=\"WYU\",tblSchMLookup[[#This Row],[Alloc]]=\"WYP\",tblSchMLookup[[#This Row],[Alloc]]=\"CA\",tblSchMLookup[[#This Row],[Alloc]]=\"WA\"),\"SITUS\",tblSchMLookup[[#This Row],[Alloc]])","v":"OTHER"},"CUST"]
[{"$f":"CONCATENATE(,tblSchMLookup[[#This Row],[Primary Account]],tblSchMLookup[[#This Row],[Primary Name]],tblSchMLookup[[#This Row],[Secondary Acct]],tblSchMLookup[[#This Row],[Secondary  Name]],tblSchMLookup[[#This Row],[Alloc4FUNC]])","v":"4099300SCHMDT415878Reg Asset - CA Deferred Net Power CostsSITUS"},4099300,{"$f":"IF(tblSchMLookup[[#This Row],[Primary Account]]=4098200,\"SCHMAP\",IF(tblSchMLookup[[#This Row],[Primary Account]]=4098300,\"SCHMAT\",IF(tblSchMLookup[[#This Row],[Primary Account]]=4099200,\"SCHMDP\",IF(tblSchMLookup[[#This Row],[Primary Account]]=4099300,\"SCHMDT\"))))","v":"SCHMDT"},415878,"Reg Asset - CA Deferred Net Power Costs","SITUS",null,{"$f":"IF(OR(tblSchMLookup[[#This Row],[Alloc]]=\"IDU\",tblSchMLookup[[#This Row],[Alloc]]=\"OR\",tblSchMLookup[[#This Row],[Alloc]]=\"UT\",tblSchMLookup[[#This Row],[Alloc]]=\"WYU\",tblSchMLookup[[#This Row],[Alloc]]=\"WYP\",tblSchMLookup[[#This Row],[Alloc]]=\"CA\",tblSchMLookup[[#This Row],[Alloc]]=\"WA\"),\"SITUS\",tblSchMLookup[[#This Row],[Alloc]])","v":"SITUS"},"P"]
[{"$f":"CONCATENATE(,tblSchMLookup[[#This Row],[Primary Account]],tblSchMLookup[[#This Row],[Primary Name]],tblSchMLookup[[#This Row],[Secondary Acct]],tblSchMLookup[[#This Row],[Secondary  Name]],tblSchMLookup[[#This Row],[Alloc4FUNC]])","v":"4099300SCHMDT210190Prepaid Water RightsSG"},4099300,{"$f":"IF(tblSchMLookup[[#This Row],[Primary Account]]=4098200,\"SCHMAP\",IF(tblSchMLookup[[#This Row],[Primary Account]]=4098300,\"SCHMAT\",IF(tblSchMLookup[[#This Row],[Primary Account]]=4099200,\"SCHMDP\",IF(tblSchMLookup[[#This Row],[Primary Account]]=4099300,\"SCHMDT\"))))","v":"SCHMDT"},210190,"Prepaid Water Rights","SG",null,{"$f":"IF(OR(tblSchMLookup[[#This Row],[Alloc]]=\"IDU\",tblSchMLookup[[#This Row],[Alloc]]=\"OR\",tblSchMLookup[[#This Row],[Alloc]]=\"UT\",tblSchMLookup[[#This Row],[Alloc]]=\"WYU\",tblSchMLookup[[#This Row],[Alloc]]=\"WYP\",tblSchMLookup[[#This Row],[Alloc]]=\"CA\",tblSchMLookup[[#This Row],[Alloc]]=\"WA\"),\"SITUS\",tblSchMLookup[[#This Row],[Alloc]])","v":"SG"},"P"]
[{"$f":"CONCATENATE(,tblSchMLookup[[#This Row],[Primary Account]],tblSchMLookup[[#This Row],[Primary Name]],tblSchMLookup[[#This Row],[Secondary Acct]],tblSchMLookup[[#This Row],[Secondary  Name]],tblSchMLookup[[#This Row],[Alloc4FUNC]])","v":"4099300SCHMDT210120Prepaid Taxes-UT PUCSITUS"},4099300,{"$f":"IF(tblSchMLookup[[#This Row],[Primary Account]]=4098200,\"SCHMAP\",IF(tblSchMLookup[[#This Row],[Primary Account]]=4098300,\"SCHMAT\",IF(tblSchMLookup[[#This Row],[Primary Account]]=4099200,\"SCHMDP\",IF(tblSchMLookup[[#This Row],[Primary Account]]=4099300,\"SCHMDT\"))))","v":"SCHMDT"},210120,"Prepaid Taxes-UT PUC","SITUS",null,{"$f":"IF(OR(tblSchMLookup[[#This Row],[Alloc]]=\"IDU\",tblSchMLookup[[#This Row],[Alloc]]=\"OR\",tblSchMLookup[[#This Row],[Alloc]]=\"UT\",tblSchMLookup[[#This Row],[Alloc]]=\"WYU\",tblSchMLookup[[#This Row],[Alloc]]=\"WYP\",tblSchMLookup[[#This Row],[Alloc]]=\"CA\",tblSchMLookup[[#This Row],[Alloc]]=\"WA\"),\"SITUS\",tblSchMLookup[[#This Row],[Alloc]])","v":"SITUS"},"GP"]
[{"$f":"CONCATENATE(,tblSchMLookup[[#This Row],[Primary Account]],tblSchMLookup[[#This Row],[Primary Name]],tblSchMLookup[[#This Row],[Secondary Acct]],tblSchMLookup[[#This Row],[Secondary  Name]],tblSchMLookup[[#This Row],[Alloc4FUNC]])","v":"4098300SCHMAT210200Prepaid Taxes-property taxesGPS"},4098300,{"$f":"IF(tblSchMLookup[[#This Row],[Primary Account]]=4098200,\"SCHMAP\",IF(tblSchMLookup[[#This Row],[Primary Account]]=4098300,\"SCHMAT\",IF(tblSchMLookup[[#This Row],[Primary Account]]=4099200,\"SCHMDP\",IF(tblSchMLookup[[#This Row],[Primary Account]]=4099300,\"SCHMDT\"))))","v":"SCHMAT"},210200,"Prepaid Taxes-property taxes","GPS",null,{"$f":"IF(OR(tblSchMLookup[[#This Row],[Alloc]]=\"IDU\",tblSchMLookup[[#This Row],[Alloc]]=\"OR\",tblSchMLookup[[#This Row],[Alloc]]=\"UT\",tblSchMLookup[[#This Row],[Alloc]]=\"WYU\",tblSchMLookup[[#This Row],[Alloc]]=\"WYP\",tblSchMLookup[[#This Row],[Alloc]]=\"CA\",tblSchMLookup[[#This Row],[Alloc]]=\"WA\"),\"SITUS\",tblSchMLookup[[#This Row],[Alloc]])","v":"GPS"},"GP"]
[{"$f":"CONCATENATE(,tblSchMLookup[[#This Row],[Primary Account]],tblSchMLookup[[#This Row],[Primary Name]],tblSchMLookup[[#This Row],[Secondary Acct]],tblSchMLookup[[#This Row],[Secondary  Name]],tblSchMLookup[[#This Row],[Alloc4FUNC]])","v":"4099300SCHMDT210100Prepaid Taxes-OR PUCSITUS"},4099300,{"$f":"IF(tblSchMLookup[[#This Row],[Primary Account]]=4098200,\"SCHMAP\",IF(tblSchMLookup[[#This Row],[Primary Account]]=4098300,\"SCHMAT\",IF(tblSchMLookup[[#This Row],[Primary Account]]=4099200,\"SCHMDP\",IF(tblSchMLookup[[#This Row],[Primary Account]]=4099300,\"SCHMDT\"))))","v":"SCHMDT"},210100,"Prepaid Taxes-OR PUC","SITUS",null,{"$f":"IF(OR(tblSchMLookup[[#This Row],[Alloc]]=\"IDU\",tblSchMLookup[[#This Row],[Alloc]]=\"OR\",tblSchMLookup[[#This Row],[Alloc]]=\"UT\",tblSchMLookup[[#This Row],[Alloc]]=\"WYU\",tblSchMLookup[[#This Row],[Alloc]]=\"WYP\",tblSchMLookup[[#This Row],[Alloc]]=\"CA\",tblSchMLookup[[#This Row],[Alloc]]=\"WA\"),\"SITUS\",tblSchMLookup[[#This Row],[Alloc]])","v":"SITUS"},"GP"]
[{"$f":"CONCATENATE(,tblSchMLookup[[#This Row],[Primary Account]],tblSchMLookup[[#This Row],[Primary Name]],tblSchMLookup[[#This Row],[Secondary Acct]],tblSchMLookup[[#This Row],[Secondary  Name]],tblSchMLookup[[#This Row],[Alloc4FUNC]])","v":"4099300SCHMDT210130Prepaid Taxes-ID PUCSITUS"},4099300,{"$f":"IF(tblSchMLookup[[#This Row],[Primary Account]]=4098200,\"SCHMAP\",IF(tblSchMLookup[[#This Row],[Primary Account]]=4098300,\"SCHMAT\",IF(tblSchMLookup[[#This Row],[Primary Account]]=4099200,\"SCHMDP\",IF(tblSchMLookup[[#This Row],[Primary Account]]=4099300,\"SCHMDT\"))))","v":"SCHMDT"},210130,"Prepaid Taxes-ID PUC","SITUS",null,{"$f":"IF(OR(tblSchMLookup[[#This Row],[Alloc]]=\"IDU\",tblSchMLookup[[#This Row],[Alloc]]=\"OR\",tblSchMLookup[[#This Row],[Alloc]]=\"UT\",tblSchMLookup[[#This Row],[Alloc]]=\"WYU\",tblSchMLookup[[#This Row],[Alloc]]=\"WYP\",tblSchMLookup[[#This Row],[Alloc]]=\"CA\",tblSchMLookup[[#This Row],[Alloc]]=\"WA\"),\"SITUS\",tblSchMLookup[[#This Row],[Alloc]])","v":"SITUS"},"GP"]
[{"$f":"CONCATENATE(,tblSchMLookup[[#This Row],[Primary Account]],tblSchMLookup[[#This Row],[Primary Name]],tblSchMLookup[[#This Row],[Secondary Acct]],tblSchMLookup[[#This Row],[Secondary  Name]],tblSchMLookup[[#This Row],[Alloc4FUNC]])","v":"4099300SCHMDT210195Prepaid Surety Bond CostsSO"},4099300,{"$f":"IF(tblSchMLookup[[#This Row],[Primary Account]]=4098200,\"SCHMAP\",IF(tblSchMLookup[[#This Row],[Primary Account]]=4098300,\"SCHMAT\",IF(tblSchMLookup[[#This Row],[Primary Account]]=4099200,\"SCHMDP\",IF(tblSchMLookup[[#This Row],[Primary Account]]=4099300,\"SCHMDT\"))))","v":"SCHMDT"},210195,"Prepaid Surety Bond Costs","SO",null,{"$f":"IF(OR(tblSchMLookup[[#This Row],[Alloc]]=\"IDU\",tblSchMLookup[[#This Row],[Alloc]]=\"OR\",tblSchMLookup[[#This Row],[Alloc]]=\"UT\",tblSchMLookup[[#This Row],[Alloc]]=\"WYU\",tblSchMLookup[[#This Row],[Alloc]]=\"WYP\",tblSchMLookup[[#This Row],[Alloc]]=\"CA\",tblSchMLookup[[#This Row],[Alloc]]=\"WA\"),\"SITUS\",tblSchMLookup[[#This Row],[Alloc]])","v":"SO"},"LABOR"]
[{"$f":"CONCATENATE(,tblSchMLookup[[#This Row],[Primary Account]],tblSchMLookup[[#This Row],[Primary Name]],tblSchMLookup[[#This Row],[Secondary Acct]],tblSchMLookup[[#This Row],[Secondary  Name]],tblSchMLookup[[#This Row],[Alloc4FUNC]])","v":"4099300SCHMDT210185Prepaid Aircraft Maintenance CostsSG"},4099300,{"$f":"IF(tblSchMLookup[[#This Row],[Primary Account]]=4098200,\"SCHMAP\",IF(tblSchMLookup[[#This Row],[Primary Account]]=4098300,\"SCHMAT\",IF(tblSchMLookup[[#This Row],[Primary Account]]=4099200,\"SCHMDP\",IF(tblSchMLookup[[#This Row],[Primary Account]]=4099300,\"SCHMDT\"))))","v":"SCHMDT"},210185,"Prepaid Aircraft Maintenance Costs","SG",null,{"$f":"IF(OR(tblSchMLookup[[#This Row],[Alloc]]=\"IDU\",tblSchMLookup[[#This Row],[Alloc]]=\"OR\",tblSchMLookup[[#This Row],[Alloc]]=\"UT\",tblSchMLookup[[#This Row],[Alloc]]=\"WYU\",tblSchMLookup[[#This Row],[Alloc]]=\"WYP\",tblSchMLookup[[#This Row],[Alloc]]=\"CA\",tblSchMLookup[[#This Row],[Alloc]]=\"WA\"),\"SITUS\",tblSchMLookup[[#This Row],[Alloc]])","v":"SG"},"P"]
[{"$f":"CONCATENATE(,tblSchMLookup[[#This Row],[Primary Account]],tblSchMLookup[[#This Row],[Primary Name]],tblSchMLookup[[#This Row],[Secondary Acct]],tblSchMLookup[[#This Row],[Secondary  Name]],tblSchMLookup[[#This Row],[Alloc4FUNC]])","v":"4099200SCHMDP120100Preferred Dividend - PPLSNP"},4099200,{"$f":"IF(tblSchMLookup[[#This Row],[Primary Account]]=4098200,\"SCHMAP\",IF(tblSchMLookup[[#This Row],[Primary Account]]=4098300,\"SCHMAT\",IF(tblSchMLookup[[#This Row],[Primary Account]]=4099200,\"SCHMDP\",IF(tblSchMLookup[[#This Row],[Primary Account]]=4099300,\"SCHMDT\"))))","v":"SCHMDP"},120100,"Preferred Dividend - PPL","SNP",null,{"$f":"IF(OR(tblSchMLookup[[#This Row],[Alloc]]=\"IDU\",tblSchMLookup[[#This Row],[Alloc]]=\"OR\",tblSchMLookup[[#This Row],[Alloc]]=\"UT\",tblSchMLookup[[#This Row],[Alloc]]=\"WYU\",tblSchMLookup[[#This Row],[Alloc]]=\"WYP\",tblSchMLookup[[#This Row],[Alloc]]=\"CA\",tblSchMLookup[[#This Row],[Alloc]]=\"WA\"),\"SITUS\",tblSchMLookup[[#This Row],[Alloc]])","v":"SNP"},"PTD"]
[{"$f":"CONCATENATE(,tblSchMLookup[[#This Row],[Primary Account]],tblSchMLookup[[#This Row],[Primary Name]],tblSchMLookup[[#This Row],[Secondary Acct]],tblSchMLookup[[#This Row],[Secondary  Name]],tblSchMLookup[[#This Row],[Alloc4FUNC]])","v":"4098300SCHMAT415852Powerdale Decommissioning Reg Asset - IDSITUS"},4098300,{"$f":"IF(tblSchMLookup[[#This Row],[Primary Account]]=4098200,\"SCHMAP\",IF(tblSchMLookup[[#This Row],[Primary Account]]=4098300,\"SCHMAT\",IF(tblSchMLookup[[#This Row],[Primary Account]]=4099200,\"SCHMDP\",IF(tblSchMLookup[[#This Row],[Primary Account]]=4099300,\"SCHMDT\"))))","v":"SCHMAT"},415852,"Powerdale Decommissioning Reg Asset - ID","SITUS",null,{"$f":"IF(OR(tblSchMLookup[[#This Row],[Alloc]]=\"IDU\",tblSchMLookup[[#This Row],[Alloc]]=\"OR\",tblSchMLookup[[#This Row],[Alloc]]=\"UT\",tblSchMLookup[[#This Row],[Alloc]]=\"WYU\",tblSchMLookup[[#This Row],[Alloc]]=\"WYP\",tblSchMLookup[[#This Row],[Alloc]]=\"CA\",tblSchMLookup[[#This Row],[Alloc]]=\"WA\"),\"SITUS\",tblSchMLookup[[#This Row],[Alloc]])","v":"SITUS"},"P"]
[{"$f":"CONCATENATE(,tblSchMLookup[[#This Row],[Primary Account]],tblSchMLookup[[#This Row],[Primary Name]],tblSchMLookup[[#This Row],[Secondary Acct]],tblSchMLookup[[#This Row],[Secondary  Name]],tblSchMLookup[[#This Row],[Alloc4FUNC]])","v":"4098300SCHMAT740100Post Merger Loss-Reacquired DebtSNP"},4098300,{"$f":"IF(tblSchMLookup[[#This Row],[Primary Account]]=4098200,\"SCHMAP\",IF(tblSchMLookup[[#This Row],[Primary Account]]=4098300,\"SCHMAT\",IF(tblSchMLookup[[#This Row],[Primary Account]]=4099200,\"SCHMDP\",IF(tblSchMLookup[[#This Row],[Primary Account]]=4099300,\"SCHMDT\"))))","v":"SCHMAT"},740100,"Post Merger Loss-Reacquired Debt","SNP",null,{"$f":"IF(OR(tblSchMLookup[[#This Row],[Alloc]]=\"IDU\",tblSchMLookup[[#This Row],[Alloc]]=\"OR\",tblSchMLookup[[#This Row],[Alloc]]=\"UT\",tblSchMLookup[[#This Row],[Alloc]]=\"WYU\",tblSchMLookup[[#This Row],[Alloc]]=\"WYP\",tblSchMLookup[[#This Row],[Alloc]]=\"CA\",tblSchMLookup[[#This Row],[Alloc]]=\"WA\"),\"SITUS\",tblSchMLookup[[#This Row],[Alloc]])","v":"SNP"},"GP"]
[{"$f":"CONCATENATE(,tblSchMLookup[[#This Row],[Primary Account]],tblSchMLookup[[#This Row],[Primary Name]],tblSchMLookup[[#This Row],[Secondary Acct]],tblSchMLookup[[#This Row],[Secondary  Name]],tblSchMLookup[[#This Row],[Alloc4FUNC]])","v":"4098300SCHMAT920110PMIWY Extraction TaxSE"},4098300,{"$f":"IF(tblSchMLookup[[#This Row],[Primary Account]]=4098200,\"SCHMAP\",IF(tblSchMLookup[[#This Row],[Primary Account]]=4098300,\"SCHMAT\",IF(tblSchMLookup[[#This Row],[Primary Account]]=4099200,\"SCHMDP\",IF(tblSchMLookup[[#This Row],[Primary Account]]=4099300,\"SCHMDT\"))))","v":"SCHMAT"},920110,"PMIWY Extraction Tax","SE",null,{"$f":"IF(OR(tblSchMLookup[[#This Row],[Alloc]]=\"IDU\",tblSchMLookup[[#This Row],[Alloc]]=\"OR\",tblSchMLookup[[#This Row],[Alloc]]=\"UT\",tblSchMLookup[[#This Row],[Alloc]]=\"WYU\",tblSchMLookup[[#This Row],[Alloc]]=\"WYP\",tblSchMLookup[[#This Row],[Alloc]]=\"CA\",tblSchMLookup[[#This Row],[Alloc]]=\"WA\"),\"SITUS\",tblSchMLookup[[#This Row],[Alloc]])","v":"SE"},"P"]
[{"$f":"CONCATENATE(,tblSchMLookup[[#This Row],[Primary Account]],tblSchMLookup[[#This Row],[Primary Name]],tblSchMLookup[[#This Row],[Secondary Acct]],tblSchMLookup[[#This Row],[Secondary  Name]],tblSchMLookup[[#This Row],[Alloc4FUNC]])","v":"4099300SCHMDT105126PMITax DepreciationSE"},4099300,{"$f":"IF(tblSchMLookup[[#This Row],[Primary Account]]=4098200,\"SCHMAP\",IF(tblSchMLookup[[#This Row],[Primary Account]]=4098300,\"SCHMAT\",IF(tblSchMLookup[[#This Row],[Primary Account]]=4099200,\"SCHMDP\",IF(tblSchMLookup[[#This Row],[Primary Account]]=4099300,\"SCHMDT\"))))","v":"SCHMDT"},105126,"PMITax Depreciation","SE",null,{"$f":"IF(OR(tblSchMLookup[[#This Row],[Alloc]]=\"IDU\",tblSchMLookup[[#This Row],[Alloc]]=\"OR\",tblSchMLookup[[#This Row],[Alloc]]=\"UT\",tblSchMLookup[[#This Row],[Alloc]]=\"WYU\",tblSchMLookup[[#This Row],[Alloc]]=\"WYP\",tblSchMLookup[[#This Row],[Alloc]]=\"CA\",tblSchMLookup[[#This Row],[Alloc]]=\"WA\"),\"SITUS\",tblSchMLookup[[#This Row],[Alloc]])","v":"SE"},"P"]
[{"$f":"CONCATENATE(,tblSchMLookup[[#This Row],[Primary Account]],tblSchMLookup[[#This Row],[Primary Name]],tblSchMLookup[[#This Row],[Secondary Acct]],tblSchMLookup[[#This Row],[Secondary  Name]],tblSchMLookup[[#This Row],[Alloc4FUNC]])","v":"4099300SCHMDT205411PMISEC 263A AdjustmentSE"},4099300,{"$f":"IF(tblSchMLookup[[#This Row],[Primary Account]]=4098200,\"SCHMAP\",IF(tblSchMLookup[[#This Row],[Primary Account]]=4098300,\"SCHMAT\",IF(tblSchMLookup[[#This Row],[Primary Account]]=4099200,\"SCHMDP\",IF(tblSchMLookup[[#This Row],[Primary Account]]=4099300,\"SCHMDT\"))))","v":"SCHMDT"},205411,"PMISEC 263A Adjustment","SE",null,{"$f":"IF(OR(tblSchMLookup[[#This Row],[Alloc]]=\"IDU\",tblSchMLookup[[#This Row],[Alloc]]=\"OR\",tblSchMLookup[[#This Row],[Alloc]]=\"UT\",tblSchMLookup[[#This Row],[Alloc]]=\"WYU\",tblSchMLookup[[#This Row],[Alloc]]=\"WYP\",tblSchMLookup[[#This Row],[Alloc]]=\"CA\",tblSchMLookup[[#This Row],[Alloc]]=\"WA\"),\"SITUS\",tblSchMLookup[[#This Row],[Alloc]])","v":"SE"},"P"]
[{"$f":"CONCATENATE(,tblSchMLookup[[#This Row],[Primary Account]],tblSchMLookup[[#This Row],[Primary Name]],tblSchMLookup[[#This Row],[Secondary Acct]],tblSchMLookup[[#This Row],[Secondary  Name]],tblSchMLookup[[#This Row],[Alloc4FUNC]])","v":"4098200SCHMAP130400PMINondeductible ExpSE"},4098200,{"$f":"IF(tblSchMLookup[[#This Row],[Primary Account]]=4098200,\"SCHMAP\",IF(tblSchMLookup[[#This Row],[Primary Account]]=4098300,\"SCHMAT\",IF(tblSchMLookup[[#This Row],[Primary Account]]=4099200,\"SCHMDP\",IF(tblSchMLookup[[#This Row],[Primary Account]]=4099300,\"SCHMDT\"))))","v":"SCHMAP"},130400,"PMINondeductible Exp","SE",null,{"$f":"IF(OR(tblSchMLookup[[#This Row],[Alloc]]=\"IDU\",tblSchMLookup[[#This Row],[Alloc]]=\"OR\",tblSchMLookup[[#This Row],[Alloc]]=\"UT\",tblSchMLookup[[#This Row],[Alloc]]=\"WYU\",tblSchMLookup[[#This Row],[Alloc]]=\"WYP\",tblSchMLookup[[#This Row],[Alloc]]=\"CA\",tblSchMLookup[[#This Row],[Alloc]]=\"WA\"),\"SITUS\",tblSchMLookup[[#This Row],[Alloc]])","v":"SE"},"P"]
[{"$f":"CONCATENATE(,tblSchMLookup[[#This Row],[Primary Account]],tblSchMLookup[[#This Row],[Primary Name]],tblSchMLookup[[#This Row],[Secondary Acct]],tblSchMLookup[[#This Row],[Secondary  Name]],tblSchMLookup[[#This Row],[Alloc4FUNC]])","v":"4098200SCHMAP610106PMIFuel Tax CrSE"},4098200,{"$f":"IF(tblSchMLookup[[#This Row],[Primary Account]]=4098200,\"SCHMAP\",IF(tblSchMLookup[[#This Row],[Primary Account]]=4098300,\"SCHMAT\",IF(tblSchMLookup[[#This Row],[Primary Account]]=4099200,\"SCHMDP\",IF(tblSchMLookup[[#This Row],[Primary Account]]=4099300,\"SCHMDT\"))))","v":"SCHMAP"},610106,"PMIFuel Tax Cr","SE",null,{"$f":"IF(OR(tblSchMLookup[[#This Row],[Alloc]]=\"IDU\",tblSchMLookup[[#This Row],[Alloc]]=\"OR\",tblSchMLookup[[#This Row],[Alloc]]=\"UT\",tblSchMLookup[[#This Row],[Alloc]]=\"WYU\",tblSchMLookup[[#This Row],[Alloc]]=\"WYP\",tblSchMLookup[[#This Row],[Alloc]]=\"CA\",tblSchMLookup[[#This Row],[Alloc]]=\"WA\"),\"SITUS\",tblSchMLookup[[#This Row],[Alloc]])","v":"SE"},"P"]
[{"$f":"CONCATENATE(,tblSchMLookup[[#This Row],[Primary Account]],tblSchMLookup[[#This Row],[Primary Name]],tblSchMLookup[[#This Row],[Secondary Acct]],tblSchMLookup[[#This Row],[Secondary  Name]],tblSchMLookup[[#This Row],[Alloc4FUNC]])","v":"4099300SCHMDT610100PMIDEVT COST AMORTSE"},4099300,{"$f":"IF(tblSchMLookup[[#This Row],[Primary Account]]=4098200,\"SCHMAP\",IF(tblSchMLookup[[#This Row],[Primary Account]]=4098300,\"SCHMAT\",IF(tblSchMLookup[[#This Row],[Primary Account]]=4099200,\"SCHMDP\",IF(tblSchMLookup[[#This Row],[Primary Account]]=4099300,\"SCHMDT\"))))","v":"SCHMDT"},610100,"PMIDEVT COST AMORT","SE",null,{"$f":"IF(OR(tblSchMLookup[[#This Row],[Alloc]]=\"IDU\",tblSchMLookup[[#This Row],[Alloc]]=\"OR\",tblSchMLookup[[#This Row],[Alloc]]=\"UT\",tblSchMLookup[[#This Row],[Alloc]]=\"WYU\",tblSchMLookup[[#This Row],[Alloc]]=\"WYP\",tblSchMLookup[[#This Row],[Alloc]]=\"CA\",tblSchMLookup[[#This Row],[Alloc]]=\"WA\"),\"SITUS\",tblSchMLookup[[#This Row],[Alloc]])","v":"SE"},"P"]
[{"$f":"CONCATENATE(,tblSchMLookup[[#This Row],[Primary Account]],tblSchMLookup[[#This Row],[Primary Name]],tblSchMLookup[[#This Row],[Secondary Acct]],tblSchMLookup[[#This Row],[Secondary  Name]],tblSchMLookup[[#This Row],[Alloc4FUNC]])","v":"4098300SCHMAT105121PMIBook DepreciationSE"},4098300,{"$f":"IF(tblSchMLookup[[#This Row],[Primary Account]]=4098200,\"SCHMAP\",IF(tblSchMLookup[[#This Row],[Primary Account]]=4098300,\"SCHMAT\",IF(tblSchMLookup[[#This Row],[Primary Account]]=4099200,\"SCHMDP\",IF(tblSchMLookup[[#This Row],[Primary Account]]=4099300,\"SCHMDT\"))))","v":"SCHMAT"},105121,"PMIBook Depreciation","SE",null,{"$f":"IF(OR(tblSchMLookup[[#This Row],[Alloc]]=\"IDU\",tblSchMLookup[[#This Row],[Alloc]]=\"OR\",tblSchMLookup[[#This Row],[Alloc]]=\"UT\",tblSchMLookup[[#This Row],[Alloc]]=\"WYU\",tblSchMLookup[[#This Row],[Alloc]]=\"WYP\",tblSchMLookup[[#This Row],[Alloc]]=\"CA\",tblSchMLookup[[#This Row],[Alloc]]=\"WA\"),\"SITUS\",tblSchMLookup[[#This Row],[Alloc]])","v":"SE"},"P"]
[{"$f":"CONCATENATE(,tblSchMLookup[[#This Row],[Primary Account]],tblSchMLookup[[#This Row],[Primary Name]],tblSchMLookup[[#This Row],[Secondary Acct]],tblSchMLookup[[#This Row],[Secondary  Name]],tblSchMLookup[[#This Row],[Alloc4FUNC]])","v":"4098200SCHMAP920145PMI Mining Rescue Training Credit AddbacSE"},4098200,{"$f":"IF(tblSchMLookup[[#This Row],[Primary Account]]=4098200,\"SCHMAP\",IF(tblSchMLookup[[#This Row],[Primary Account]]=4098300,\"SCHMAT\",IF(tblSchMLookup[[#This Row],[Primary Account]]=4099200,\"SCHMDP\",IF(tblSchMLookup[[#This Row],[Primary Account]]=4099300,\"SCHMDT\"))))","v":"SCHMAP"},920145,"PMI Mining Rescue Training Credit Addbac","SE",null,{"$f":"IF(OR(tblSchMLookup[[#This Row],[Alloc]]=\"IDU\",tblSchMLookup[[#This Row],[Alloc]]=\"OR\",tblSchMLookup[[#This Row],[Alloc]]=\"UT\",tblSchMLookup[[#This Row],[Alloc]]=\"WYU\",tblSchMLookup[[#This Row],[Alloc]]=\"WYP\",tblSchMLookup[[#This Row],[Alloc]]=\"CA\",tblSchMLookup[[#This Row],[Alloc]]=\"WA\"),\"SITUS\",tblSchMLookup[[#This Row],[Alloc]])","v":"SE"},"P"]
[{"$f":"CONCATENATE(,tblSchMLookup[[#This Row],[Primary Account]],tblSchMLookup[[#This Row],[Primary Name]],tblSchMLookup[[#This Row],[Secondary Acct]],tblSchMLookup[[#This Row],[Secondary  Name]],tblSchMLookup[[#This Row],[Alloc4FUNC]])","v":"4099300SCHMDT610114PMI EITF Pre Stripping CostsSE"},4099300,{"$f":"IF(tblSchMLookup[[#This Row],[Primary Account]]=4098200,\"SCHMAP\",IF(tblSchMLookup[[#This Row],[Primary Account]]=4098300,\"SCHMAT\",IF(tblSchMLookup[[#This Row],[Primary Account]]=4099200,\"SCHMDP\",IF(tblSchMLookup[[#This Row],[Primary Account]]=4099300,\"SCHMDT\"))))","v":"SCHMDT"},610114,"PMI EITF Pre Stripping Costs","SE",null,{"$f":"IF(OR(tblSchMLookup[[#This Row],[Alloc]]=\"IDU\",tblSchMLookup[[#This Row],[Alloc]]=\"OR\",tblSchMLookup[[#This Row],[Alloc]]=\"UT\",tblSchMLookup[[#This Row],[Alloc]]=\"WYU\",tblSchMLookup[[#This Row],[Alloc]]=\"WYP\",tblSchMLookup[[#This Row],[Alloc]]=\"CA\",tblSchMLookup[[#This Row],[Alloc]]=\"WA\"),\"SITUS\",tblSchMLookup[[#This Row],[Alloc]])","v":"SE"},"P"]
[{"$f":"CONCATENATE(,tblSchMLookup[[#This Row],[Primary Account]],tblSchMLookup[[#This Row],[Primary Name]],tblSchMLookup[[#This Row],[Secondary Acct]],tblSchMLookup[[#This Row],[Secondary  Name]],tblSchMLookup[[#This Row],[Alloc4FUNC]])","v":"4098200SCHMAP610107PMI Dividend Gross Up for Foreign Tax CrSO"},4098200,{"$f":"IF(tblSchMLookup[[#This Row],[Primary Account]]=4098200,\"SCHMAP\",IF(tblSchMLookup[[#This Row],[Primary Account]]=4098300,\"SCHMAT\",IF(tblSchMLookup[[#This Row],[Primary Account]]=4099200,\"SCHMDP\",IF(tblSchMLookup[[#This Row],[Primary Account]]=4099300,\"SCHMDT\"))))","v":"SCHMAP"},610107,"PMI Dividend Gross Up for Foreign Tax Cr","SO",null,{"$f":"IF(OR(tblSchMLookup[[#This Row],[Alloc]]=\"IDU\",tblSchMLookup[[#This Row],[Alloc]]=\"OR\",tblSchMLookup[[#This Row],[Alloc]]=\"UT\",tblSchMLookup[[#This Row],[Alloc]]=\"WYU\",tblSchMLookup[[#This Row],[Alloc]]=\"WYP\",tblSchMLookup[[#This Row],[Alloc]]=\"CA\",tblSchMLookup[[#This Row],[Alloc]]=\"WA\"),\"SITUS\",tblSchMLookup[[#This Row],[Alloc]])","v":"SO"},"P"]
[{"$f":"CONCATENATE(,tblSchMLookup[[#This Row],[Primary Account]],tblSchMLookup[[#This Row],[Primary Name]],tblSchMLookup[[#This Row],[Secondary Acct]],tblSchMLookup[[#This Row],[Secondary  Name]],tblSchMLookup[[#This Row],[Alloc4FUNC]])","v":"4099300SCHMDT105171PMI Coal Mine Receding Face (Extension)SE"},4099300,{"$f":"IF(tblSchMLookup[[#This Row],[Primary Account]]=4098200,\"SCHMAP\",IF(tblSchMLookup[[#This Row],[Primary Account]]=4098300,\"SCHMAT\",IF(tblSchMLookup[[#This Row],[Primary Account]]=4099200,\"SCHMDP\",IF(tblSchMLookup[[#This Row],[Primary Account]]=4099300,\"SCHMDT\"))))","v":"SCHMDT"},105171,"PMI Coal Mine Receding Face (Extension)","SE",null,{"$f":"IF(OR(tblSchMLookup[[#This Row],[Alloc]]=\"IDU\",tblSchMLookup[[#This Row],[Alloc]]=\"OR\",tblSchMLookup[[#This Row],[Alloc]]=\"UT\",tblSchMLookup[[#This Row],[Alloc]]=\"WYU\",tblSchMLookup[[#This Row],[Alloc]]=\"WYP\",tblSchMLookup[[#This Row],[Alloc]]=\"CA\",tblSchMLookup[[#This Row],[Alloc]]=\"WA\"),\"SITUS\",tblSchMLookup[[#This Row],[Alloc]])","v":"SE"},"P"]
[{"$f":"CONCATENATE(,tblSchMLookup[[#This Row],[Primary Account]],tblSchMLookup[[#This Row],[Primary Name]],tblSchMLookup[[#This Row],[Secondary Acct]],tblSchMLookup[[#This Row],[Secondary  Name]],tblSchMLookup[[#This Row],[Alloc4FUNC]])","v":"4099200SCHMDP620101PMI 2004 JCA-Qualified Prod Activities DSE"},4099200,{"$f":"IF(tblSchMLookup[[#This Row],[Primary Account]]=4098200,\"SCHMAP\",IF(tblSchMLookup[[#This Row],[Primary Account]]=4098300,\"SCHMAT\",IF(tblSchMLookup[[#This Row],[Primary Account]]=4099200,\"SCHMDP\",IF(tblSchMLookup[[#This Row],[Primary Account]]=4099300,\"SCHMDT\"))))","v":"SCHMDP"},620101,"PMI 2004 JCA-Qualified Prod Activities D","SE",null,{"$f":"IF(OR(tblSchMLookup[[#This Row],[Alloc]]=\"IDU\",tblSchMLookup[[#This Row],[Alloc]]=\"OR\",tblSchMLookup[[#This Row],[Alloc]]=\"UT\",tblSchMLookup[[#This Row],[Alloc]]=\"WYU\",tblSchMLookup[[#This Row],[Alloc]]=\"WYP\",tblSchMLookup[[#This Row],[Alloc]]=\"CA\",tblSchMLookup[[#This Row],[Alloc]]=\"WA\"),\"SITUS\",tblSchMLookup[[#This Row],[Alloc]])","v":"SE"},"P"]
[{"$f":"CONCATENATE(,tblSchMLookup[[#This Row],[Primary Account]],tblSchMLookup[[#This Row],[Primary Name]],tblSchMLookup[[#This Row],[Secondary Acct]],tblSchMLookup[[#This Row],[Secondary  Name]],tblSchMLookup[[#This Row],[Alloc4FUNC]])","v":"4099300SCHMDT205025PMI - Fuel Cost AdjustmentSE"},4099300,{"$f":"IF(tblSchMLookup[[#This Row],[Primary Account]]=4098200,\"SCHMAP\",IF(tblSchMLookup[[#This Row],[Primary Account]]=4098300,\"SCHMAT\",IF(tblSchMLookup[[#This Row],[Primary Account]]=4099200,\"SCHMDP\",IF(tblSchMLookup[[#This Row],[Primary Account]]=4099300,\"SCHMDT\"))))","v":"SCHMDT"},205025,"PMI - Fuel Cost Adjustment","SE",null,{"$f":"IF(OR(tblSchMLookup[[#This Row],[Alloc]]=\"IDU\",tblSchMLookup[[#This Row],[Alloc]]=\"OR\",tblSchMLookup[[#This Row],[Alloc]]=\"UT\",tblSchMLookup[[#This Row],[Alloc]]=\"WYU\",tblSchMLookup[[#This Row],[Alloc]]=\"WYP\",tblSchMLookup[[#This Row],[Alloc]]=\"CA\",tblSchMLookup[[#This Row],[Alloc]]=\"WA\"),\"SITUS\",tblSchMLookup[[#This Row],[Alloc]])","v":"SE"},"P"]
[{"$f":"CONCATENATE(,tblSchMLookup[[#This Row],[Primary Account]],tblSchMLookup[[#This Row],[Primary Name]],tblSchMLookup[[#This Row],[Secondary Acct]],tblSchMLookup[[#This Row],[Secondary  Name]],tblSchMLookup[[#This Row],[Alloc4FUNC]])","v":"4098300SCHMAT720560Pension Liability - UMWA Withdrawal ObliSE"},4098300,{"$f":"IF(tblSchMLookup[[#This Row],[Primary Account]]=4098200,\"SCHMAP\",IF(tblSchMLookup[[#This Row],[Primary Account]]=4098300,\"SCHMAT\",IF(tblSchMLookup[[#This Row],[Primary Account]]=4099200,\"SCHMDP\",IF(tblSchMLookup[[#This Row],[Primary Account]]=4099300,\"SCHMDT\"))))","v":"SCHMAT"},720560,"Pension Liability - UMWA Withdrawal Obli","SE",null,{"$f":"IF(OR(tblSchMLookup[[#This Row],[Alloc]]=\"IDU\",tblSchMLookup[[#This Row],[Alloc]]=\"OR\",tblSchMLookup[[#This Row],[Alloc]]=\"UT\",tblSchMLookup[[#This Row],[Alloc]]=\"WYU\",tblSchMLookup[[#This Row],[Alloc]]=\"WYP\",tblSchMLookup[[#This Row],[Alloc]]=\"CA\",tblSchMLookup[[#This Row],[Alloc]]=\"WA\"),\"SITUS\",tblSchMLookup[[#This Row],[Alloc]])","v":"SE"},"P"]
[{"$f":"CONCATENATE(,tblSchMLookup[[#This Row],[Primary Account]],tblSchMLookup[[#This Row],[Primary Name]],tblSchMLookup[[#This Row],[Secondary Acct]],tblSchMLookup[[#This Row],[Secondary  Name]],tblSchMLookup[[#This Row],[Alloc4FUNC]])","v":"4098300SCHMAT720300Pension / Retirement (Accrued / Prepaid)SO"},4098300,{"$f":"IF(tblSchMLookup[[#This Row],[Primary Account]]=4098200,\"SCHMAP\",IF(tblSchMLookup[[#This Row],[Primary Account]]=4098300,\"SCHMAT\",IF(tblSchMLookup[[#This Row],[Primary Account]]=4099200,\"SCHMDP\",IF(tblSchMLookup[[#This Row],[Primary Account]]=4099300,\"SCHMDT\"))))","v":"SCHMAT"},720300,"Pension / Retirement (Accrued / Prepaid)","SO",null,{"$f":"IF(OR(tblSchMLookup[[#This Row],[Alloc]]=\"IDU\",tblSchMLookup[[#This Row],[Alloc]]=\"OR\",tblSchMLookup[[#This Row],[Alloc]]=\"UT\",tblSchMLookup[[#This Row],[Alloc]]=\"WYU\",tblSchMLookup[[#This Row],[Alloc]]=\"WYP\",tblSchMLookup[[#This Row],[Alloc]]=\"CA\",tblSchMLookup[[#This Row],[Alloc]]=\"WA\"),\"SITUS\",tblSchMLookup[[#This Row],[Alloc]])","v":"SO"},"LABOR"]
[{"$f":"CONCATENATE(,tblSchMLookup[[#This Row],[Primary Account]],tblSchMLookup[[#This Row],[Primary Name]],tblSchMLookup[[#This Row],[Secondary Acct]],tblSchMLookup[[#This Row],[Secondary  Name]],tblSchMLookup[[#This Row],[Alloc4FUNC]])","v":"4099300SCHMDT210180OTHER PREPAIDSSO"},4099300,{"$f":"IF(tblSchMLookup[[#This Row],[Primary Account]]=4098200,\"SCHMAP\",IF(tblSchMLookup[[#This Row],[Primary Account]]=4098300,\"SCHMAT\",IF(tblSchMLookup[[#This Row],[Primary Account]]=4099200,\"SCHMDP\",IF(tblSchMLookup[[#This Row],[Primary Account]]=4099300,\"SCHMDT\"))))","v":"SCHMDT"},210180,"OTHER PREPAIDS","SO",null,{"$f":"IF(OR(tblSchMLookup[[#This Row],[Alloc]]=\"IDU\",tblSchMLookup[[#This Row],[Alloc]]=\"OR\",tblSchMLookup[[#This Row],[Alloc]]=\"UT\",tblSchMLookup[[#This Row],[Alloc]]=\"WYU\",tblSchMLookup[[#This Row],[Alloc]]=\"WYP\",tblSchMLookup[[#This Row],[Alloc]]=\"CA\",tblSchMLookup[[#This Row],[Alloc]]=\"WA\"),\"SITUS\",tblSchMLookup[[#This Row],[Alloc]])","v":"SO"},"PTD"]
[{"$f":"CONCATENATE(,tblSchMLookup[[#This Row],[Primary Account]],tblSchMLookup[[#This Row],[Primary Name]],tblSchMLookup[[#This Row],[Secondary Acct]],tblSchMLookup[[#This Row],[Secondary  Name]],tblSchMLookup[[#This Row],[Alloc4FUNC]])","v":"4099300SCHMDT610146OR Reg Asset/Liability ConsolidationSITUS"},4099300,{"$f":"IF(tblSchMLookup[[#This Row],[Primary Account]]=4098200,\"SCHMAP\",IF(tblSchMLookup[[#This Row],[Primary Account]]=4098300,\"SCHMAT\",IF(tblSchMLookup[[#This Row],[Primary Account]]=4099200,\"SCHMDP\",IF(tblSchMLookup[[#This Row],[Primary Account]]=4099300,\"SCHMDT\"))))","v":"SCHMDT"},610146,"OR Reg Asset/Liability Consolidation","SITUS",null,{"$f":"IF(OR(tblSchMLookup[[#This Row],[Alloc]]=\"IDU\",tblSchMLookup[[#This Row],[Alloc]]=\"OR\",tblSchMLookup[[#This Row],[Alloc]]=\"UT\",tblSchMLookup[[#This Row],[Alloc]]=\"WYU\",tblSchMLookup[[#This Row],[Alloc]]=\"WYP\",tblSchMLookup[[#This Row],[Alloc]]=\"CA\",tblSchMLookup[[#This Row],[Alloc]]=\"WA\"),\"SITUS\",tblSchMLookup[[#This Row],[Alloc]])","v":"SITUS"},"PTD"]
[{"$f":"CONCATENATE(,tblSchMLookup[[#This Row],[Primary Account]],tblSchMLookup[[#This Row],[Primary Name]],tblSchMLookup[[#This Row],[Secondary Acct]],tblSchMLookup[[#This Row],[Secondary  Name]],tblSchMLookup[[#This Row],[Alloc4FUNC]])","v":"4098300SCHMAT715720NW Power Act-WAOTHER"},4098300,{"$f":"IF(tblSchMLookup[[#This Row],[Primary Account]]=4098200,\"SCHMAP\",IF(tblSchMLookup[[#This Row],[Primary Account]]=4098300,\"SCHMAT\",IF(tblSchMLookup[[#This Row],[Primary Account]]=4099200,\"SCHMDP\",IF(tblSchMLookup[[#This Row],[Primary Account]]=4099300,\"SCHMDT\"))))","v":"SCHMAT"},715720,"NW Power Act-WA","OTHER",null,{"$f":"IF(OR(tblSchMLookup[[#This Row],[Alloc]]=\"IDU\",tblSchMLookup[[#This Row],[Alloc]]=\"OR\",tblSchMLookup[[#This Row],[Alloc]]=\"UT\",tblSchMLookup[[#This Row],[Alloc]]=\"WYU\",tblSchMLookup[[#This Row],[Alloc]]=\"WYP\",tblSchMLookup[[#This Row],[Alloc]]=\"CA\",tblSchMLookup[[#This Row],[Alloc]]=\"WA\"),\"SITUS\",tblSchMLookup[[#This Row],[Alloc]])","v":"OTHER"},"P"]
[{"$f":"CONCATENATE(,tblSchMLookup[[#This Row],[Primary Account]],tblSchMLookup[[#This Row],[Primary Name]],tblSchMLookup[[#This Row],[Secondary Acct]],tblSchMLookup[[#This Row],[Secondary  Name]],tblSchMLookup[[#This Row],[Alloc4FUNC]])","v":"4098200SCHMAP130750Nondeductible Fringe BenefitsSO"},4098200,{"$f":"IF(tblSchMLookup[[#This Row],[Primary Account]]=4098200,\"SCHMAP\",IF(tblSchMLookup[[#This Row],[Primary Account]]=4098300,\"SCHMAT\",IF(tblSchMLookup[[#This Row],[Primary Account]]=4099200,\"SCHMDP\",IF(tblSchMLookup[[#This Row],[Primary Account]]=4099300,\"SCHMDT\"))))","v":"SCHMAP"},130750,"Nondeductible Fringe Benefits","SO",null,{"$f":"IF(OR(tblSchMLookup[[#This Row],[Alloc]]=\"IDU\",tblSchMLookup[[#This Row],[Alloc]]=\"OR\",tblSchMLookup[[#This Row],[Alloc]]=\"UT\",tblSchMLookup[[#This Row],[Alloc]]=\"WYU\",tblSchMLookup[[#This Row],[Alloc]]=\"WYP\",tblSchMLookup[[#This Row],[Alloc]]=\"CA\",tblSchMLookup[[#This Row],[Alloc]]=\"WA\"),\"SITUS\",tblSchMLookup[[#This Row],[Alloc]])","v":"SO"},"LABOR"]
[{"$f":"CONCATENATE(,tblSchMLookup[[#This Row],[Primary Account]],tblSchMLookup[[#This Row],[Primary Name]],tblSchMLookup[[#This Row],[Secondary Acct]],tblSchMLookup[[#This Row],[Secondary  Name]],tblSchMLookup[[#This Row],[Alloc4FUNC]])","v":"4098200SCHMAP130100Non - Deductible ExpensesSO"},4098200,{"$f":"IF(tblSchMLookup[[#This Row],[Primary Account]]=4098200,\"SCHMAP\",IF(tblSchMLookup[[#This Row],[Primary Account]]=4098300,\"SCHMAT\",IF(tblSchMLookup[[#This Row],[Primary Account]]=4099200,\"SCHMDP\",IF(tblSchMLookup[[#This Row],[Primary Account]]=4099300,\"SCHMDT\"))))","v":"SCHMAP"},130100,"Non - Deductible Expenses","SO",null,{"$f":"IF(OR(tblSchMLookup[[#This Row],[Alloc]]=\"IDU\",tblSchMLookup[[#This Row],[Alloc]]=\"OR\",tblSchMLookup[[#This Row],[Alloc]]=\"UT\",tblSchMLookup[[#This Row],[Alloc]]=\"WYU\",tblSchMLookup[[#This Row],[Alloc]]=\"WYP\",tblSchMLookup[[#This Row],[Alloc]]=\"CA\",tblSchMLookup[[#This Row],[Alloc]]=\"WA\"),\"SITUS\",tblSchMLookup[[#This Row],[Alloc]])","v":"SO"},"P"]
[{"$f":"CONCATENATE(,tblSchMLookup[[#This Row],[Primary Account]],tblSchMLookup[[#This Row],[Primary Name]],tblSchMLookup[[#This Row],[Secondary Acct]],tblSchMLookup[[#This Row],[Secondary  Name]],tblSchMLookup[[#This Row],[Alloc4FUNC]])","v":"4098300SCHMAT715105MCI FOG Wire LeaseSG"},4098300,{"$f":"IF(tblSchMLookup[[#This Row],[Primary Account]]=4098200,\"SCHMAP\",IF(tblSchMLookup[[#This Row],[Primary Account]]=4098300,\"SCHMAT\",IF(tblSchMLookup[[#This Row],[Primary Account]]=4099200,\"SCHMDP\",IF(tblSchMLookup[[#This Row],[Primary Account]]=4099300,\"SCHMDT\"))))","v":"SCHMAT"},715105,"MCI FOG Wire Lease","SG",null,{"$f":"IF(OR(tblSchMLookup[[#This Row],[Alloc]]=\"IDU\",tblSchMLookup[[#This Row],[Alloc]]=\"OR\",tblSchMLookup[[#This Row],[Alloc]]=\"UT\",tblSchMLookup[[#This Row],[Alloc]]=\"WYU\",tblSchMLookup[[#This Row],[Alloc]]=\"WYP\",tblSchMLookup[[#This Row],[Alloc]]=\"CA\",tblSchMLookup[[#This Row],[Alloc]]=\"WA\"),\"SITUS\",tblSchMLookup[[#This Row],[Alloc]])","v":"SG"},"P"]
[{"$f":"CONCATENATE(,tblSchMLookup[[#This Row],[Primary Account]],tblSchMLookup[[#This Row],[Primary Name]],tblSchMLookup[[#This Row],[Secondary Acct]],tblSchMLookup[[#This Row],[Secondary  Name]],tblSchMLookup[[#This Row],[Alloc4FUNC]])","v":"4099300SCHMDT320290LT Prepaid IBEW 57 Pension ContributionOTHER"},4099300,{"$f":"IF(tblSchMLookup[[#This Row],[Primary Account]]=4098200,\"SCHMAP\",IF(tblSchMLookup[[#This Row],[Primary Account]]=4098300,\"SCHMAT\",IF(tblSchMLookup[[#This Row],[Primary Account]]=4099200,\"SCHMDP\",IF(tblSchMLookup[[#This Row],[Primary Account]]=4099300,\"SCHMDT\"))))","v":"SCHMDT"},320290,"LT Prepaid IBEW 57 Pension Contribution","OTHER",null,{"$f":"IF(OR(tblSchMLookup[[#This Row],[Alloc]]=\"IDU\",tblSchMLookup[[#This Row],[Alloc]]=\"OR\",tblSchMLookup[[#This Row],[Alloc]]=\"UT\",tblSchMLookup[[#This Row],[Alloc]]=\"WYU\",tblSchMLookup[[#This Row],[Alloc]]=\"WYP\",tblSchMLookup[[#This Row],[Alloc]]=\"CA\",tblSchMLookup[[#This Row],[Alloc]]=\"WA\"),\"SITUS\",tblSchMLookup[[#This Row],[Alloc]])","v":"OTHER"},"LABOR"]
[{"$f":"CONCATENATE(,tblSchMLookup[[#This Row],[Primary Account]],tblSchMLookup[[#This Row],[Primary Name]],tblSchMLookup[[#This Row],[Secondary Acct]],tblSchMLookup[[#This Row],[Secondary  Name]],tblSchMLookup[[#This Row],[Alloc4FUNC]])","v":"4098300SCHMAT425280Joseph Settlement-SGSG"},4098300,{"$f":"IF(tblSchMLookup[[#This Row],[Primary Account]]=4098200,\"SCHMAP\",IF(tblSchMLookup[[#This Row],[Primary Account]]=4098300,\"SCHMAT\",IF(tblSchMLookup[[#This Row],[Primary Account]]=4099200,\"SCHMDP\",IF(tblSchMLookup[[#This Row],[Primary Account]]=4099300,\"SCHMDT\"))))","v":"SCHMAT"},425280,"Joseph Settlement-SG","SG",null,{"$f":"IF(OR(tblSchMLookup[[#This Row],[Alloc]]=\"IDU\",tblSchMLookup[[#This Row],[Alloc]]=\"OR\",tblSchMLookup[[#This Row],[Alloc]]=\"UT\",tblSchMLookup[[#This Row],[Alloc]]=\"WYU\",tblSchMLookup[[#This Row],[Alloc]]=\"WYP\",tblSchMLookup[[#This Row],[Alloc]]=\"CA\",tblSchMLookup[[#This Row],[Alloc]]=\"WA\"),\"SITUS\",tblSchMLookup[[#This Row],[Alloc]])","v":"SG"},"P"]
[{"$f":"CONCATENATE(,tblSchMLookup[[#This Row],[Primary Account]],tblSchMLookup[[#This Row],[Primary Name]],tblSchMLookup[[#This Row],[Secondary Acct]],tblSchMLookup[[#This Row],[Secondary  Name]],tblSchMLookup[[#This Row],[Alloc4FUNC]])","v":"4099300SCHMDT205205Inventory Reserve - PMISE"},4099300,{"$f":"IF(tblSchMLookup[[#This Row],[Primary Account]]=4098200,\"SCHMAP\",IF(tblSchMLookup[[#This Row],[Primary Account]]=4098300,\"SCHMAT\",IF(tblSchMLookup[[#This Row],[Primary Account]]=4099200,\"SCHMDP\",IF(tblSchMLookup[[#This Row],[Primary Account]]=4099300,\"SCHMDT\"))))","v":"SCHMDT"},205205,"Inventory Reserve - PMI","SE",null,{"$f":"IF(OR(tblSchMLookup[[#This Row],[Alloc]]=\"IDU\",tblSchMLookup[[#This Row],[Alloc]]=\"OR\",tblSchMLookup[[#This Row],[Alloc]]=\"UT\",tblSchMLookup[[#This Row],[Alloc]]=\"WYU\",tblSchMLookup[[#This Row],[Alloc]]=\"WYP\",tblSchMLookup[[#This Row],[Alloc]]=\"CA\",tblSchMLookup[[#This Row],[Alloc]]=\"WA\"),\"SITUS\",tblSchMLookup[[#This Row],[Alloc]])","v":"SE"},"P"]
[{"$f":"CONCATENATE(,tblSchMLookup[[#This Row],[Primary Account]],tblSchMLookup[[#This Row],[Primary Name]],tblSchMLookup[[#This Row],[Secondary Acct]],tblSchMLookup[[#This Row],[Secondary  Name]],tblSchMLookup[[#This Row],[Alloc4FUNC]])","v":"4099300SCHMDT415815Insurance ReserveSO"},4099300,{"$f":"IF(tblSchMLookup[[#This Row],[Primary Account]]=4098200,\"SCHMAP\",IF(tblSchMLookup[[#This Row],[Primary Account]]=4098300,\"SCHMAT\",IF(tblSchMLookup[[#This Row],[Primary Account]]=4099200,\"SCHMDP\",IF(tblSchMLookup[[#This Row],[Primary Account]]=4099300,\"SCHMDT\"))))","v":"SCHMDT"},415815,"Insurance Reserve","SO",null,{"$f":"IF(OR(tblSchMLookup[[#This Row],[Alloc]]=\"IDU\",tblSchMLookup[[#This Row],[Alloc]]=\"OR\",tblSchMLookup[[#This Row],[Alloc]]=\"UT\",tblSchMLookup[[#This Row],[Alloc]]=\"WYU\",tblSchMLookup[[#This Row],[Alloc]]=\"WYP\",tblSchMLookup[[#This Row],[Alloc]]=\"CA\",tblSchMLookup[[#This Row],[Alloc]]=\"WA\"),\"SITUS\",tblSchMLookup[[#This Row],[Alloc]])","v":"SO"},"PTD"]
[{"$f":"CONCATENATE(,tblSchMLookup[[#This Row],[Primary Account]],tblSchMLookup[[#This Row],[Primary Name]],tblSchMLookup[[#This Row],[Secondary Acct]],tblSchMLookup[[#This Row],[Secondary  Name]],tblSchMLookup[[#This Row],[Alloc4FUNC]])","v":"4099300SCHMDT910530Injuries and Damages ReserveSO"},4099300,{"$f":"IF(tblSchMLookup[[#This Row],[Primary Account]]=4098200,\"SCHMAP\",IF(tblSchMLookup[[#This Row],[Primary Account]]=4098300,\"SCHMAT\",IF(tblSchMLookup[[#This Row],[Primary Account]]=4099200,\"SCHMDP\",IF(tblSchMLookup[[#This Row],[Primary Account]]=4099300,\"SCHMDT\"))))","v":"SCHMDT"},910530,"Injuries and Damages Reserve","SO",null,{"$f":"IF(OR(tblSchMLookup[[#This Row],[Alloc]]=\"IDU\",tblSchMLookup[[#This Row],[Alloc]]=\"OR\",tblSchMLookup[[#This Row],[Alloc]]=\"UT\",tblSchMLookup[[#This Row],[Alloc]]=\"WYU\",tblSchMLookup[[#This Row],[Alloc]]=\"WYP\",tblSchMLookup[[#This Row],[Alloc]]=\"CA\",tblSchMLookup[[#This Row],[Alloc]]=\"WA\"),\"SITUS\",tblSchMLookup[[#This Row],[Alloc]])","v":"SO"},"LABOR"]
[{"$f":"CONCATENATE(,tblSchMLookup[[#This Row],[Primary Account]],tblSchMLookup[[#This Row],[Primary Name]],tblSchMLookup[[#This Row],[Secondary Acct]],tblSchMLookup[[#This Row],[Secondary  Name]],tblSchMLookup[[#This Row],[Alloc4FUNC]])","v":"4098200SCHMAP505505Income Tax InterestSO"},4098200,{"$f":"IF(tblSchMLookup[[#This Row],[Primary Account]]=4098200,\"SCHMAP\",IF(tblSchMLookup[[#This Row],[Primary Account]]=4098300,\"SCHMAT\",IF(tblSchMLookup[[#This Row],[Primary Account]]=4099200,\"SCHMDP\",IF(tblSchMLookup[[#This Row],[Primary Account]]=4099300,\"SCHMDT\"))))","v":"SCHMAP"},505505,"Income Tax Interest","SO",null,{"$f":"IF(OR(tblSchMLookup[[#This Row],[Alloc]]=\"IDU\",tblSchMLookup[[#This Row],[Alloc]]=\"OR\",tblSchMLookup[[#This Row],[Alloc]]=\"UT\",tblSchMLookup[[#This Row],[Alloc]]=\"WYU\",tblSchMLookup[[#This Row],[Alloc]]=\"WYP\",tblSchMLookup[[#This Row],[Alloc]]=\"CA\",tblSchMLookup[[#This Row],[Alloc]]=\"WA\"),\"SITUS\",tblSchMLookup[[#This Row],[Alloc]])","v":"SO"},"P"]
[{"$f":"CONCATENATE(,tblSchMLookup[[#This Row],[Primary Account]],tblSchMLookup[[#This Row],[Primary Name]],tblSchMLookup[[#This Row],[Secondary Acct]],tblSchMLookup[[#This Row],[Secondary  Name]],tblSchMLookup[[#This Row],[Alloc4FUNC]])","v":"4098300SCHMAT415857ID - Deferred Overburden CostsOTHER"},4098300,{"$f":"IF(tblSchMLookup[[#This Row],[Primary Account]]=4098200,\"SCHMAP\",IF(tblSchMLookup[[#This Row],[Primary Account]]=4098300,\"SCHMAT\",IF(tblSchMLookup[[#This Row],[Primary Account]]=4099200,\"SCHMDP\",IF(tblSchMLookup[[#This Row],[Primary Account]]=4099300,\"SCHMDT\"))))","v":"SCHMAT"},415857,"ID - Deferred Overburden Costs","OTHER",null,{"$f":"IF(OR(tblSchMLookup[[#This Row],[Alloc]]=\"IDU\",tblSchMLookup[[#This Row],[Alloc]]=\"OR\",tblSchMLookup[[#This Row],[Alloc]]=\"UT\",tblSchMLookup[[#This Row],[Alloc]]=\"WYU\",tblSchMLookup[[#This Row],[Alloc]]=\"WYP\",tblSchMLookup[[#This Row],[Alloc]]=\"CA\",tblSchMLookup[[#This Row],[Alloc]]=\"WA\"),\"SITUS\",tblSchMLookup[[#This Row],[Alloc]])","v":"OTHER"},"P"]
[{"$f":"CONCATENATE(,tblSchMLookup[[#This Row],[Primary Account]],tblSchMLookup[[#This Row],[Primary Name]],tblSchMLookup[[#This Row],[Secondary Acct]],tblSchMLookup[[#This Row],[Secondary  Name]],tblSchMLookup[[#This Row],[Alloc4FUNC]])","v":"4098300SCHMAT105140Highway relocationSNPD"},4098300,{"$f":"IF(tblSchMLookup[[#This Row],[Primary Account]]=4098200,\"SCHMAP\",IF(tblSchMLookup[[#This Row],[Primary Account]]=4098300,\"SCHMAT\",IF(tblSchMLookup[[#This Row],[Primary Account]]=4099200,\"SCHMDP\",IF(tblSchMLookup[[#This Row],[Primary Account]]=4099300,\"SCHMDT\"))))","v":"SCHMAT"},105140,"Highway relocation","SNPD",null,{"$f":"IF(OR(tblSchMLookup[[#This Row],[Alloc]]=\"IDU\",tblSchMLookup[[#This Row],[Alloc]]=\"OR\",tblSchMLookup[[#This Row],[Alloc]]=\"UT\",tblSchMLookup[[#This Row],[Alloc]]=\"WYU\",tblSchMLookup[[#This Row],[Alloc]]=\"WYP\",tblSchMLookup[[#This Row],[Alloc]]=\"CA\",tblSchMLookup[[#This Row],[Alloc]]=\"WA\"),\"SITUS\",tblSchMLookup[[#This Row],[Alloc]])","v":"SNPD"},"DPW"]
[{"$f":"CONCATENATE(,tblSchMLookup[[#This Row],[Primary Account]],tblSchMLookup[[#This Row],[Primary Name]],tblSchMLookup[[#This Row],[Secondary Acct]],tblSchMLookup[[#This Row],[Secondary  Name]],tblSchMLookup[[#This Row],[Alloc4FUNC]])","v":"4098300SCHMAT425360Hermiston SwapSG"},4098300,{"$f":"IF(tblSchMLookup[[#This Row],[Primary Account]]=4098200,\"SCHMAP\",IF(tblSchMLookup[[#This Row],[Primary Account]]=4098300,\"SCHMAT\",IF(tblSchMLookup[[#This Row],[Primary Account]]=4099200,\"SCHMDP\",IF(tblSchMLookup[[#This Row],[Primary Account]]=4099300,\"SCHMDT\"))))","v":"SCHMAT"},425360,"Hermiston Swap","SG",null,{"$f":"IF(OR(tblSchMLookup[[#This Row],[Alloc]]=\"IDU\",tblSchMLookup[[#This Row],[Alloc]]=\"OR\",tblSchMLookup[[#This Row],[Alloc]]=\"UT\",tblSchMLookup[[#This Row],[Alloc]]=\"WYU\",tblSchMLookup[[#This Row],[Alloc]]=\"WYP\",tblSchMLookup[[#This Row],[Alloc]]=\"CA\",tblSchMLookup[[#This Row],[Alloc]]=\"WA\"),\"SITUS\",tblSchMLookup[[#This Row],[Alloc]])","v":"SG"},"P"]
[{"$f":"CONCATENATE(,tblSchMLookup[[#This Row],[Primary Account]],tblSchMLookup[[#This Row],[Primary Name]],tblSchMLookup[[#This Row],[Secondary Acct]],tblSchMLookup[[#This Row],[Secondary  Name]],tblSchMLookup[[#This Row],[Alloc4FUNC]])","v":"4099300SCHMDT415300Hazardous Waste Clean-up CostsSO"},4099300,{"$f":"IF(tblSchMLookup[[#This Row],[Primary Account]]=4098200,\"SCHMAP\",IF(tblSchMLookup[[#This Row],[Primary Account]]=4098300,\"SCHMAT\",IF(tblSchMLookup[[#This Row],[Primary Account]]=4099200,\"SCHMDP\",IF(tblSchMLookup[[#This Row],[Primary Account]]=4099300,\"SCHMDT\"))))","v":"SCHMDT"},415300,"Hazardous Waste Clean-up Costs","SO",null,{"$f":"IF(OR(tblSchMLookup[[#This Row],[Alloc]]=\"IDU\",tblSchMLookup[[#This Row],[Alloc]]=\"OR\",tblSchMLookup[[#This Row],[Alloc]]=\"UT\",tblSchMLookup[[#This Row],[Alloc]]=\"WYU\",tblSchMLookup[[#This Row],[Alloc]]=\"WYP\",tblSchMLookup[[#This Row],[Alloc]]=\"CA\",tblSchMLookup[[#This Row],[Alloc]]=\"WA\"),\"SITUS\",tblSchMLookup[[#This Row],[Alloc]])","v":"SO"},"ESD"]
[{"$f":"CONCATENATE(,tblSchMLookup[[#This Row],[Primary Account]],tblSchMLookup[[#This Row],[Primary Name]],tblSchMLookup[[#This Row],[Secondary Acct]],tblSchMLookup[[#This Row],[Secondary  Name]],tblSchMLookup[[#This Row],[Alloc4FUNC]])","v":"4098300SCHMAT415703Goodnoe Hills Liquidation Damages - WYSITUS"},4098300,{"$f":"IF(tblSchMLookup[[#This Row],[Primary Account]]=4098200,\"SCHMAP\",IF(tblSchMLookup[[#This Row],[Primary Account]]=4098300,\"SCHMAT\",IF(tblSchMLookup[[#This Row],[Primary Account]]=4099200,\"SCHMDP\",IF(tblSchMLookup[[#This Row],[Primary Account]]=4099300,\"SCHMDT\"))))","v":"SCHMAT"},415703,"Goodnoe Hills Liquidation Damages - WY","SITUS",null,{"$f":"IF(OR(tblSchMLookup[[#This Row],[Alloc]]=\"IDU\",tblSchMLookup[[#This Row],[Alloc]]=\"OR\",tblSchMLookup[[#This Row],[Alloc]]=\"UT\",tblSchMLookup[[#This Row],[Alloc]]=\"WYU\",tblSchMLookup[[#This Row],[Alloc]]=\"WYP\",tblSchMLookup[[#This Row],[Alloc]]=\"CA\",tblSchMLookup[[#This Row],[Alloc]]=\"WA\"),\"SITUS\",tblSchMLookup[[#This Row],[Alloc]])","v":"SITUS"},"P"]
[{"$f":"CONCATENATE(,tblSchMLookup[[#This Row],[Primary Account]],tblSchMLookup[[#This Row],[Primary Name]],tblSchMLookup[[#This Row],[Secondary Acct]],tblSchMLookup[[#This Row],[Secondary  Name]],tblSchMLookup[[#This Row],[Alloc4FUNC]])","v":"4099300SCHMDT105152Gain/(Loss) on Prop DispositionsGPS"},4099300,{"$f":"IF(tblSchMLookup[[#This Row],[Primary Account]]=4098200,\"SCHMAP\",IF(tblSchMLookup[[#This Row],[Primary Account]]=4098300,\"SCHMAT\",IF(tblSchMLookup[[#This Row],[Primary Account]]=4099200,\"SCHMDP\",IF(tblSchMLookup[[#This Row],[Primary Account]]=4099300,\"SCHMDT\"))))","v":"SCHMDT"},105152,"Gain/(Loss) on Prop Dispositions","GPS",null,{"$f":"IF(OR(tblSchMLookup[[#This Row],[Alloc]]=\"IDU\",tblSchMLookup[[#This Row],[Alloc]]=\"OR\",tblSchMLookup[[#This Row],[Alloc]]=\"UT\",tblSchMLookup[[#This Row],[Alloc]]=\"WYU\",tblSchMLookup[[#This Row],[Alloc]]=\"WYP\",tblSchMLookup[[#This Row],[Alloc]]=\"CA\",tblSchMLookup[[#This Row],[Alloc]]=\"WA\"),\"SITUS\",tblSchMLookup[[#This Row],[Alloc]])","v":"GPS"},"PTD"]
[{"$f":"CONCATENATE(,tblSchMLookup[[#This Row],[Primary Account]],tblSchMLookup[[#This Row],[Primary Name]],tblSchMLookup[[#This Row],[Secondary Acct]],tblSchMLookup[[#This Row],[Secondary  Name]],tblSchMLookup[[#This Row],[Alloc4FUNC]])","v":"4099300SCHMDT720810FAS 158 Post-Retirement LiabilitySO"},4099300,{"$f":"IF(tblSchMLookup[[#This Row],[Primary Account]]=4098200,\"SCHMAP\",IF(tblSchMLookup[[#This Row],[Primary Account]]=4098300,\"SCHMAT\",IF(tblSchMLookup[[#This Row],[Primary Account]]=4099200,\"SCHMDP\",IF(tblSchMLookup[[#This Row],[Primary Account]]=4099300,\"SCHMDT\"))))","v":"SCHMDT"},720810,"FAS 158 Post-Retirement Liability","SO",null,{"$f":"IF(OR(tblSchMLookup[[#This Row],[Alloc]]=\"IDU\",tblSchMLookup[[#This Row],[Alloc]]=\"OR\",tblSchMLookup[[#This Row],[Alloc]]=\"UT\",tblSchMLookup[[#This Row],[Alloc]]=\"WYU\",tblSchMLookup[[#This Row],[Alloc]]=\"WYP\",tblSchMLookup[[#This Row],[Alloc]]=\"CA\",tblSchMLookup[[#This Row],[Alloc]]=\"WA\"),\"SITUS\",tblSchMLookup[[#This Row],[Alloc]])","v":"SO"},"LABOR"]
[{"$f":"CONCATENATE(,tblSchMLookup[[#This Row],[Primary Account]],tblSchMLookup[[#This Row],[Primary Name]],tblSchMLookup[[#This Row],[Secondary Acct]],tblSchMLookup[[#This Row],[Secondary  Name]],tblSchMLookup[[#This Row],[Alloc4FUNC]])","v":"4099300SCHMDT720815FAS 158 Post Retirement LiabilitySO"},4099300,{"$f":"IF(tblSchMLookup[[#This Row],[Primary Account]]=4098200,\"SCHMAP\",IF(tblSchMLookup[[#This Row],[Primary Account]]=4098300,\"SCHMAT\",IF(tblSchMLookup[[#This Row],[Primary Account]]=4099200,\"SCHMDP\",IF(tblSchMLookup[[#This Row],[Primary Account]]=4099300,\"SCHMDT\"))))","v":"SCHMDT"},720815,"FAS 158 Post Retirement Liability","SO",null,{"$f":"IF(OR(tblSchMLookup[[#This Row],[Alloc]]=\"IDU\",tblSchMLookup[[#This Row],[Alloc]]=\"OR\",tblSchMLookup[[#This Row],[Alloc]]=\"UT\",tblSchMLookup[[#This Row],[Alloc]]=\"WYU\",tblSchMLookup[[#This Row],[Alloc]]=\"WYP\",tblSchMLookup[[#This Row],[Alloc]]=\"CA\",tblSchMLookup[[#This Row],[Alloc]]=\"WA\"),\"SITUS\",tblSchMLookup[[#This Row],[Alloc]])","v":"SO"},"LABOR"]
[{"$f":"CONCATENATE(,tblSchMLookup[[#This Row],[Primary Account]],tblSchMLookup[[#This Row],[Primary Name]],tblSchMLookup[[#This Row],[Secondary Acct]],tblSchMLookup[[#This Row],[Secondary  Name]],tblSchMLookup[[#This Row],[Alloc4FUNC]])","v":"4099300SCHMDT720800FAS 158 Pension LiabilitySO"},4099300,{"$f":"IF(tblSchMLookup[[#This Row],[Primary Account]]=4098200,\"SCHMAP\",IF(tblSchMLookup[[#This Row],[Primary Account]]=4098300,\"SCHMAT\",IF(tblSchMLookup[[#This Row],[Primary Account]]=4099200,\"SCHMDP\",IF(tblSchMLookup[[#This Row],[Primary Account]]=4099300,\"SCHMDT\"))))","v":"SCHMDT"},720800,"FAS 158 Pension Liability","SO",null,{"$f":"IF(OR(tblSchMLookup[[#This Row],[Alloc]]=\"IDU\",tblSchMLookup[[#This Row],[Alloc]]=\"OR\",tblSchMLookup[[#This Row],[Alloc]]=\"UT\",tblSchMLookup[[#This Row],[Alloc]]=\"WYU\",tblSchMLookup[[#This Row],[Alloc]]=\"WYP\",tblSchMLookup[[#This Row],[Alloc]]=\"CA\",tblSchMLookup[[#This Row],[Alloc]]=\"WA\"),\"SITUS\",tblSchMLookup[[#This Row],[Alloc]])","v":"SO"},"LABOR"]
[{"$f":"CONCATENATE(,tblSchMLookup[[#This Row],[Primary Account]],tblSchMLookup[[#This Row],[Primary Name]],tblSchMLookup[[#This Row],[Secondary Acct]],tblSchMLookup[[#This Row],[Secondary  Name]],tblSchMLookup[[#This Row],[Alloc4FUNC]])","v":"4098300SCHMAT605301Environmental Liability - RegulatedSO"},4098300,{"$f":"IF(tblSchMLookup[[#This Row],[Primary Account]]=4098200,\"SCHMAP\",IF(tblSchMLookup[[#This Row],[Primary Account]]=4098300,\"SCHMAT\",IF(tblSchMLookup[[#This Row],[Primary Account]]=4099200,\"SCHMDP\",IF(tblSchMLookup[[#This Row],[Primary Account]]=4099300,\"SCHMDT\"))))","v":"SCHMAT"},605301,"Environmental Liability - Regulated","SO",null,{"$f":"IF(OR(tblSchMLookup[[#This Row],[Alloc]]=\"IDU\",tblSchMLookup[[#This Row],[Alloc]]=\"OR\",tblSchMLookup[[#This Row],[Alloc]]=\"UT\",tblSchMLookup[[#This Row],[Alloc]]=\"WYU\",tblSchMLookup[[#This Row],[Alloc]]=\"WYP\",tblSchMLookup[[#This Row],[Alloc]]=\"CA\",tblSchMLookup[[#This Row],[Alloc]]=\"WA\"),\"SITUS\",tblSchMLookup[[#This Row],[Alloc]])","v":"SO"},"PTD"]
[{"$f":"CONCATENATE(,tblSchMLookup[[#This Row],[Primary Account]],tblSchMLookup[[#This Row],[Primary Name]],tblSchMLookup[[#This Row],[Secondary Acct]],tblSchMLookup[[#This Row],[Secondary  Name]],tblSchMLookup[[#This Row],[Alloc4FUNC]])","v":"4098300SCHMAT415301Environmental Costs WASITUS"},4098300,{"$f":"IF(tblSchMLookup[[#This Row],[Primary Account]]=4098200,\"SCHMAP\",IF(tblSchMLookup[[#This Row],[Primary Account]]=4098300,\"SCHMAT\",IF(tblSchMLookup[[#This Row],[Primary Account]]=4099200,\"SCHMDP\",IF(tblSchMLookup[[#This Row],[Primary Account]]=4099300,\"SCHMDT\"))))","v":"SCHMAT"},415301,"Environmental Costs WA","SITUS",null,{"$f":"IF(OR(tblSchMLookup[[#This Row],[Alloc]]=\"IDU\",tblSchMLookup[[#This Row],[Alloc]]=\"OR\",tblSchMLookup[[#This Row],[Alloc]]=\"UT\",tblSchMLookup[[#This Row],[Alloc]]=\"WYU\",tblSchMLookup[[#This Row],[Alloc]]=\"WYP\",tblSchMLookup[[#This Row],[Alloc]]=\"CA\",tblSchMLookup[[#This Row],[Alloc]]=\"WA\"),\"SITUS\",tblSchMLookup[[#This Row],[Alloc]])","v":"SITUS"},"ESD"]
[{"$f":"CONCATENATE(,tblSchMLookup[[#This Row],[Primary Account]],tblSchMLookup[[#This Row],[Primary Name]],tblSchMLookup[[#This Row],[Secondary Acct]],tblSchMLookup[[#This Row],[Secondary  Name]],tblSchMLookup[[#This Row],[Alloc4FUNC]])","v":"4099300SCHMDT415680Deferred Intervenor Funding Grants-OROTHER"},4099300,{"$f":"IF(tblSchMLookup[[#This Row],[Primary Account]]=4098200,\"SCHMAP\",IF(tblSchMLookup[[#This Row],[Primary Account]]=4098300,\"SCHMAT\",IF(tblSchMLookup[[#This Row],[Primary Account]]=4099200,\"SCHMDP\",IF(tblSchMLookup[[#This Row],[Primary Account]]=4099300,\"SCHMDT\"))))","v":"SCHMDT"},415680,"Deferred Intervenor Funding Grants-OR","OTHER",null,{"$f":"IF(OR(tblSchMLookup[[#This Row],[Alloc]]=\"IDU\",tblSchMLookup[[#This Row],[Alloc]]=\"OR\",tblSchMLookup[[#This Row],[Alloc]]=\"UT\",tblSchMLookup[[#This Row],[Alloc]]=\"WYU\",tblSchMLookup[[#This Row],[Alloc]]=\"WYP\",tblSchMLookup[[#This Row],[Alloc]]=\"CA\",tblSchMLookup[[#This Row],[Alloc]]=\"WA\"),\"SITUS\",tblSchMLookup[[#This Row],[Alloc]])","v":"OTHER"},"COMMON"]
[{"$f":"CONCATENATE(,tblSchMLookup[[#This Row],[Primary Account]],tblSchMLookup[[#This Row],[Primary Name]],tblSchMLookup[[#This Row],[Secondary Acct]],tblSchMLookup[[#This Row],[Secondary  Name]],tblSchMLookup[[#This Row],[Alloc4FUNC]])","v":"4099300SCHMDT415874Deferred Excess Net Power Costs - WY 08OTHER"},4099300,{"$f":"IF(tblSchMLookup[[#This Row],[Primary Account]]=4098200,\"SCHMAP\",IF(tblSchMLookup[[#This Row],[Primary Account]]=4098300,\"SCHMAT\",IF(tblSchMLookup[[#This Row],[Primary Account]]=4099200,\"SCHMDP\",IF(tblSchMLookup[[#This Row],[Primary Account]]=4099300,\"SCHMDT\"))))","v":"SCHMDT"},415874,"Deferred Excess Net Power Costs - WY 08","OTHER",null,{"$f":"IF(OR(tblSchMLookup[[#This Row],[Alloc]]=\"IDU\",tblSchMLookup[[#This Row],[Alloc]]=\"OR\",tblSchMLookup[[#This Row],[Alloc]]=\"UT\",tblSchMLookup[[#This Row],[Alloc]]=\"WYU\",tblSchMLookup[[#This Row],[Alloc]]=\"WYP\",tblSchMLookup[[#This Row],[Alloc]]=\"CA\",tblSchMLookup[[#This Row],[Alloc]]=\"WA\"),\"SITUS\",tblSchMLookup[[#This Row],[Alloc]])","v":"OTHER"},"P"]
[{"$f":"CONCATENATE(,tblSchMLookup[[#This Row],[Primary Account]],tblSchMLookup[[#This Row],[Primary Name]],tblSchMLookup[[#This Row],[Secondary Acct]],tblSchMLookup[[#This Row],[Secondary  Name]],tblSchMLookup[[#This Row],[Alloc4FUNC]])","v":"4099300SCHMDT415875Deferred Excess Net Power Costs - UTOTHER"},4099300,{"$f":"IF(tblSchMLookup[[#This Row],[Primary Account]]=4098200,\"SCHMAP\",IF(tblSchMLookup[[#This Row],[Primary Account]]=4098300,\"SCHMAT\",IF(tblSchMLookup[[#This Row],[Primary Account]]=4099200,\"SCHMDP\",IF(tblSchMLookup[[#This Row],[Primary Account]]=4099300,\"SCHMDT\"))))","v":"SCHMDT"},415875,"Deferred Excess Net Power Costs - UT","OTHER",null,{"$f":"IF(OR(tblSchMLookup[[#This Row],[Alloc]]=\"IDU\",tblSchMLookup[[#This Row],[Alloc]]=\"OR\",tblSchMLookup[[#This Row],[Alloc]]=\"UT\",tblSchMLookup[[#This Row],[Alloc]]=\"WYU\",tblSchMLookup[[#This Row],[Alloc]]=\"WYP\",tblSchMLookup[[#This Row],[Alloc]]=\"CA\",tblSchMLookup[[#This Row],[Alloc]]=\"WA\"),\"SITUS\",tblSchMLookup[[#This Row],[Alloc]])","v":"OTHER"},"P"]
[{"$f":"CONCATENATE(,tblSchMLookup[[#This Row],[Primary Account]],tblSchMLookup[[#This Row],[Primary Name]],tblSchMLookup[[#This Row],[Secondary Acct]],tblSchMLookup[[#This Row],[Secondary  Name]],tblSchMLookup[[#This Row],[Alloc4FUNC]])","v":"4099300SCHMDT415892Deferred Excess Net Power Costs - ID 09OTHER"},4099300,{"$f":"IF(tblSchMLookup[[#This Row],[Primary Account]]=4098200,\"SCHMAP\",IF(tblSchMLookup[[#This Row],[Primary Account]]=4098300,\"SCHMAT\",IF(tblSchMLookup[[#This Row],[Primary Account]]=4099200,\"SCHMDP\",IF(tblSchMLookup[[#This Row],[Primary Account]]=4099300,\"SCHMDT\"))))","v":"SCHMDT"},415892,"Deferred Excess Net Power Costs - ID 09","OTHER",null,{"$f":"IF(OR(tblSchMLookup[[#This Row],[Alloc]]=\"IDU\",tblSchMLookup[[#This Row],[Alloc]]=\"OR\",tblSchMLookup[[#This Row],[Alloc]]=\"UT\",tblSchMLookup[[#This Row],[Alloc]]=\"WYU\",tblSchMLookup[[#This Row],[Alloc]]=\"WYP\",tblSchMLookup[[#This Row],[Alloc]]=\"CA\",tblSchMLookup[[#This Row],[Alloc]]=\"WA\"),\"SITUS\",tblSchMLookup[[#This Row],[Alloc]])","v":"OTHER"},"P"]
[{"$f":"CONCATENATE(,tblSchMLookup[[#This Row],[Primary Account]],tblSchMLookup[[#This Row],[Primary Name]],tblSchMLookup[[#This Row],[Secondary Acct]],tblSchMLookup[[#This Row],[Secondary  Name]],tblSchMLookup[[#This Row],[Alloc4FUNC]])","v":"4099300SCHMDT720200Deferred Comp Plan Benefits-PPLSO"},4099300,{"$f":"IF(tblSchMLookup[[#This Row],[Primary Account]]=4098200,\"SCHMAP\",IF(tblSchMLookup[[#This Row],[Primary Account]]=4098300,\"SCHMAT\",IF(tblSchMLookup[[#This Row],[Primary Account]]=4099200,\"SCHMDP\",IF(tblSchMLookup[[#This Row],[Primary Account]]=4099300,\"SCHMDT\"))))","v":"SCHMDT"},720200,"Deferred Comp Plan Benefits-PPL","SO",null,{"$f":"IF(OR(tblSchMLookup[[#This Row],[Alloc]]=\"IDU\",tblSchMLookup[[#This Row],[Alloc]]=\"OR\",tblSchMLookup[[#This Row],[Alloc]]=\"UT\",tblSchMLookup[[#This Row],[Alloc]]=\"WYU\",tblSchMLookup[[#This Row],[Alloc]]=\"WYP\",tblSchMLookup[[#This Row],[Alloc]]=\"CA\",tblSchMLookup[[#This Row],[Alloc]]=\"WA\"),\"SITUS\",tblSchMLookup[[#This Row],[Alloc]])","v":"SO"},"LABOR"]
[{"$f":"CONCATENATE(,tblSchMLookup[[#This Row],[Primary Account]],tblSchMLookup[[#This Row],[Primary Name]],tblSchMLookup[[#This Row],[Secondary Acct]],tblSchMLookup[[#This Row],[Secondary  Name]],tblSchMLookup[[#This Row],[Alloc4FUNC]])","v":"4098300SCHMAT415898Deferred Coal Costs - Naughton ContractSE"},4098300,{"$f":"IF(tblSchMLookup[[#This Row],[Primary Account]]=4098200,\"SCHMAP\",IF(tblSchMLookup[[#This Row],[Primary Account]]=4098300,\"SCHMAT\",IF(tblSchMLookup[[#This Row],[Primary Account]]=4099200,\"SCHMDP\",IF(tblSchMLookup[[#This Row],[Primary Account]]=4099300,\"SCHMDT\"))))","v":"SCHMAT"},415898,"Deferred Coal Costs - Naughton Contract","SE",null,{"$f":"IF(OR(tblSchMLookup[[#This Row],[Alloc]]=\"IDU\",tblSchMLookup[[#This Row],[Alloc]]=\"OR\",tblSchMLookup[[#This Row],[Alloc]]=\"UT\",tblSchMLookup[[#This Row],[Alloc]]=\"WYU\",tblSchMLookup[[#This Row],[Alloc]]=\"WYP\",tblSchMLookup[[#This Row],[Alloc]]=\"CA\",tblSchMLookup[[#This Row],[Alloc]]=\"WA\"),\"SITUS\",tblSchMLookup[[#This Row],[Alloc]])","v":"SE"},"P"]
[{"$f":"CONCATENATE(,tblSchMLookup[[#This Row],[Primary Account]],tblSchMLookup[[#This Row],[Primary Name]],tblSchMLookup[[#This Row],[Secondary Acct]],tblSchMLookup[[#This Row],[Secondary  Name]],tblSchMLookup[[#This Row],[Alloc4FUNC]])","v":"4098300SCHMAT415883Deferral of Renewable Energy Credit - WYOTHER"},4098300,{"$f":"IF(tblSchMLookup[[#This Row],[Primary Account]]=4098200,\"SCHMAP\",IF(tblSchMLookup[[#This Row],[Primary Account]]=4098300,\"SCHMAT\",IF(tblSchMLookup[[#This Row],[Primary Account]]=4099200,\"SCHMDP\",IF(tblSchMLookup[[#This Row],[Primary Account]]=4099300,\"SCHMDT\"))))","v":"SCHMAT"},415883,"Deferral of Renewable Energy Credit - WY","OTHER",null,{"$f":"IF(OR(tblSchMLookup[[#This Row],[Alloc]]=\"IDU\",tblSchMLookup[[#This Row],[Alloc]]=\"OR\",tblSchMLookup[[#This Row],[Alloc]]=\"UT\",tblSchMLookup[[#This Row],[Alloc]]=\"WYU\",tblSchMLookup[[#This Row],[Alloc]]=\"WYP\",tblSchMLookup[[#This Row],[Alloc]]=\"CA\",tblSchMLookup[[#This Row],[Alloc]]=\"WA\"),\"SITUS\",tblSchMLookup[[#This Row],[Alloc]])","v":"OTHER"},"P"]
[{"$f":"CONCATENATE(,tblSchMLookup[[#This Row],[Primary Account]],tblSchMLookup[[#This Row],[Primary Name]],tblSchMLookup[[#This Row],[Secondary Acct]],tblSchMLookup[[#This Row],[Secondary  Name]],tblSchMLookup[[#This Row],[Alloc4FUNC]])","v":"4099300SCHMDT415882Deferral of Renewable Energy Credit - WAOTHER"},4099300,{"$f":"IF(tblSchMLookup[[#This Row],[Primary Account]]=4098200,\"SCHMAP\",IF(tblSchMLookup[[#This Row],[Primary Account]]=4098300,\"SCHMAT\",IF(tblSchMLookup[[#This Row],[Primary Account]]=4099200,\"SCHMDP\",IF(tblSchMLookup[[#This Row],[Primary Account]]=4099300,\"SCHMDT\"))))","v":"SCHMDT"},415882,"Deferral of Renewable Energy Credit - WA","OTHER",null,{"$f":"IF(OR(tblSchMLookup[[#This Row],[Alloc]]=\"IDU\",tblSchMLookup[[#This Row],[Alloc]]=\"OR\",tblSchMLookup[[#This Row],[Alloc]]=\"UT\",tblSchMLookup[[#This Row],[Alloc]]=\"WYU\",tblSchMLookup[[#This Row],[Alloc]]=\"WYP\",tblSchMLookup[[#This Row],[Alloc]]=\"CA\",tblSchMLookup[[#This Row],[Alloc]]=\"WA\"),\"SITUS\",tblSchMLookup[[#This Row],[Alloc]])","v":"OTHER"},"P"]
[{"$f":"CONCATENATE(,tblSchMLookup[[#This Row],[Primary Account]],tblSchMLookup[[#This Row],[Primary Name]],tblSchMLookup[[#This Row],[Secondary Acct]],tblSchMLookup[[#This Row],[Secondary  Name]],tblSchMLookup[[#This Row],[Alloc4FUNC]])","v":"4098300SCHMAT415881Deferral of Renewable Energy Credit - UTOTHER"},4098300,{"$f":"IF(tblSchMLookup[[#This Row],[Primary Account]]=4098200,\"SCHMAP\",IF(tblSchMLookup[[#This Row],[Primary Account]]=4098300,\"SCHMAT\",IF(tblSchMLookup[[#This Row],[Primary Account]]=4099200,\"SCHMDP\",IF(tblSchMLookup[[#This Row],[Primary Account]]=4099300,\"SCHMDT\"))))","v":"SCHMAT"},415881,"Deferral of Renewable Energy Credit - UT","OTHER",null,{"$f":"IF(OR(tblSchMLookup[[#This Row],[Alloc]]=\"IDU\",tblSchMLookup[[#This Row],[Alloc]]=\"OR\",tblSchMLookup[[#This Row],[Alloc]]=\"UT\",tblSchMLookup[[#This Row],[Alloc]]=\"WYU\",tblSchMLookup[[#This Row],[Alloc]]=\"WYP\",tblSchMLookup[[#This Row],[Alloc]]=\"CA\",tblSchMLookup[[#This Row],[Alloc]]=\"WA\"),\"SITUS\",tblSchMLookup[[#This Row],[Alloc]])","v":"OTHER"},"P"]
[{"$f":"CONCATENATE(,tblSchMLookup[[#This Row],[Primary Account]],tblSchMLookup[[#This Row],[Primary Name]],tblSchMLookup[[#This Row],[Secondary Acct]],tblSchMLookup[[#This Row],[Secondary  Name]],tblSchMLookup[[#This Row],[Alloc4FUNC]])","v":"4099300SCHMDT415110Def Reg Asset-Transmission Srvc DepositSG"},4099300,{"$f":"IF(tblSchMLookup[[#This Row],[Primary Account]]=4098200,\"SCHMAP\",IF(tblSchMLookup[[#This Row],[Primary Account]]=4098300,\"SCHMAT\",IF(tblSchMLookup[[#This Row],[Primary Account]]=4099200,\"SCHMDP\",IF(tblSchMLookup[[#This Row],[Primary Account]]=4099300,\"SCHMDT\"))))","v":"SCHMDT"},415110,"Def Reg Asset-Transmission Srvc Deposit","SG",null,{"$f":"IF(OR(tblSchMLookup[[#This Row],[Alloc]]=\"IDU\",tblSchMLookup[[#This Row],[Alloc]]=\"OR\",tblSchMLookup[[#This Row],[Alloc]]=\"UT\",tblSchMLookup[[#This Row],[Alloc]]=\"WYU\",tblSchMLookup[[#This Row],[Alloc]]=\"WYP\",tblSchMLookup[[#This Row],[Alloc]]=\"CA\",tblSchMLookup[[#This Row],[Alloc]]=\"WA\"),\"SITUS\",tblSchMLookup[[#This Row],[Alloc]])","v":"SG"},"T"]
[{"$f":"CONCATENATE(,tblSchMLookup[[#This Row],[Primary Account]],tblSchMLookup[[#This Row],[Primary Name]],tblSchMLookup[[#This Row],[Secondary Acct]],tblSchMLookup[[#This Row],[Secondary  Name]],tblSchMLookup[[#This Row],[Alloc4FUNC]])","v":"4098300SCHMAT430100Customer Service / WeatherizationOTHER"},4098300,{"$f":"IF(tblSchMLookup[[#This Row],[Primary Account]]=4098200,\"SCHMAP\",IF(tblSchMLookup[[#This Row],[Primary Account]]=4098300,\"SCHMAT\",IF(tblSchMLookup[[#This Row],[Primary Account]]=4099200,\"SCHMDP\",IF(tblSchMLookup[[#This Row],[Primary Account]]=4099300,\"SCHMDT\"))))","v":"SCHMAT"},430100,"Customer Service / Weatherization","OTHER",null,{"$f":"IF(OR(tblSchMLookup[[#This Row],[Alloc]]=\"IDU\",tblSchMLookup[[#This Row],[Alloc]]=\"OR\",tblSchMLookup[[#This Row],[Alloc]]=\"UT\",tblSchMLookup[[#This Row],[Alloc]]=\"WYU\",tblSchMLookup[[#This Row],[Alloc]]=\"WYP\",tblSchMLookup[[#This Row],[Alloc]]=\"CA\",tblSchMLookup[[#This Row],[Alloc]]=\"WA\"),\"SITUS\",tblSchMLookup[[#This Row],[Alloc]])","v":"OTHER"},"PTD"]
[{"$f":"CONCATENATE(,tblSchMLookup[[#This Row],[Primary Account]],tblSchMLookup[[#This Row],[Primary Name]],tblSchMLookup[[#This Row],[Secondary Acct]],tblSchMLookup[[#This Row],[Secondary  Name]],tblSchMLookup[[#This Row],[Alloc4FUNC]])","v":"4099300SCHMDT415416ContraRA DeerCreekAband WYSITUS"},4099300,{"$f":"IF(tblSchMLookup[[#This Row],[Primary Account]]=4098200,\"SCHMAP\",IF(tblSchMLookup[[#This Row],[Primary Account]]=4098300,\"SCHMAT\",IF(tblSchMLookup[[#This Row],[Primary Account]]=4099200,\"SCHMDP\",IF(tblSchMLookup[[#This Row],[Primary Account]]=4099300,\"SCHMDT\"))))","v":"SCHMDT"},415416,"ContraRA DeerCreekAband WY","SITUS",null,{"$f":"IF(OR(tblSchMLookup[[#This Row],[Alloc]]=\"IDU\",tblSchMLookup[[#This Row],[Alloc]]=\"OR\",tblSchMLookup[[#This Row],[Alloc]]=\"UT\",tblSchMLookup[[#This Row],[Alloc]]=\"WYU\",tblSchMLookup[[#This Row],[Alloc]]=\"WYP\",tblSchMLookup[[#This Row],[Alloc]]=\"CA\",tblSchMLookup[[#This Row],[Alloc]]=\"WA\"),\"SITUS\",tblSchMLookup[[#This Row],[Alloc]])","v":"SITUS"},"P"]
[{"$f":"CONCATENATE(,tblSchMLookup[[#This Row],[Primary Account]],tblSchMLookup[[#This Row],[Primary Name]],tblSchMLookup[[#This Row],[Secondary Acct]],tblSchMLookup[[#This Row],[Secondary  Name]],tblSchMLookup[[#This Row],[Alloc4FUNC]])","v":"4099300SCHMDT415415ContraRA DeerCreekAband WASITUS"},4099300,{"$f":"IF(tblSchMLookup[[#This Row],[Primary Account]]=4098200,\"SCHMAP\",IF(tblSchMLookup[[#This Row],[Primary Account]]=4098300,\"SCHMAT\",IF(tblSchMLookup[[#This Row],[Primary Account]]=4099200,\"SCHMDP\",IF(tblSchMLookup[[#This Row],[Primary Account]]=4099300,\"SCHMDT\"))))","v":"SCHMDT"},415415,"ContraRA DeerCreekAband WA","SITUS",null,{"$f":"IF(OR(tblSchMLookup[[#This Row],[Alloc]]=\"IDU\",tblSchMLookup[[#This Row],[Alloc]]=\"OR\",tblSchMLookup[[#This Row],[Alloc]]=\"UT\",tblSchMLookup[[#This Row],[Alloc]]=\"WYU\",tblSchMLookup[[#This Row],[Alloc]]=\"WYP\",tblSchMLookup[[#This Row],[Alloc]]=\"CA\",tblSchMLookup[[#This Row],[Alloc]]=\"WA\"),\"SITUS\",tblSchMLookup[[#This Row],[Alloc]])","v":"SITUS"},"P"]
[{"$f":"CONCATENATE(,tblSchMLookup[[#This Row],[Primary Account]],tblSchMLookup[[#This Row],[Primary Name]],tblSchMLookup[[#This Row],[Secondary Acct]],tblSchMLookup[[#This Row],[Secondary  Name]],tblSchMLookup[[#This Row],[Alloc4FUNC]])","v":"4099300SCHMDT415414ContraRA DeerCreekAband UTSITUS"},4099300,{"$f":"IF(tblSchMLookup[[#This Row],[Primary Account]]=4098200,\"SCHMAP\",IF(tblSchMLookup[[#This Row],[Primary Account]]=4098300,\"SCHMAT\",IF(tblSchMLookup[[#This Row],[Primary Account]]=4099200,\"SCHMDP\",IF(tblSchMLookup[[#This Row],[Primary Account]]=4099300,\"SCHMDT\"))))","v":"SCHMDT"},415414,"ContraRA DeerCreekAband UT","SITUS",null,{"$f":"IF(OR(tblSchMLookup[[#This Row],[Alloc]]=\"IDU\",tblSchMLookup[[#This Row],[Alloc]]=\"OR\",tblSchMLookup[[#This Row],[Alloc]]=\"UT\",tblSchMLookup[[#This Row],[Alloc]]=\"WYU\",tblSchMLookup[[#This Row],[Alloc]]=\"WYP\",tblSchMLookup[[#This Row],[Alloc]]=\"CA\",tblSchMLookup[[#This Row],[Alloc]]=\"WA\"),\"SITUS\",tblSchMLookup[[#This Row],[Alloc]])","v":"SITUS"},"P"]
[{"$f":"CONCATENATE(,tblSchMLookup[[#This Row],[Primary Account]],tblSchMLookup[[#This Row],[Primary Name]],tblSchMLookup[[#This Row],[Secondary Acct]],tblSchMLookup[[#This Row],[Secondary  Name]],tblSchMLookup[[#This Row],[Alloc4FUNC]])","v":"4099300SCHMDT415413ContraRA DeerCreekAband ORSITUS"},4099300,{"$f":"IF(tblSchMLookup[[#This Row],[Primary Account]]=4098200,\"SCHMAP\",IF(tblSchMLookup[[#This Row],[Primary Account]]=4098300,\"SCHMAT\",IF(tblSchMLookup[[#This Row],[Primary Account]]=4099200,\"SCHMDP\",IF(tblSchMLookup[[#This Row],[Primary Account]]=4099300,\"SCHMDT\"))))","v":"SCHMDT"},415413,"ContraRA DeerCreekAband OR","SITUS",null,{"$f":"IF(OR(tblSchMLookup[[#This Row],[Alloc]]=\"IDU\",tblSchMLookup[[#This Row],[Alloc]]=\"OR\",tblSchMLookup[[#This Row],[Alloc]]=\"UT\",tblSchMLookup[[#This Row],[Alloc]]=\"WYU\",tblSchMLookup[[#This Row],[Alloc]]=\"WYP\",tblSchMLookup[[#This Row],[Alloc]]=\"CA\",tblSchMLookup[[#This Row],[Alloc]]=\"WA\"),\"SITUS\",tblSchMLookup[[#This Row],[Alloc]])","v":"SITUS"},"P"]
[{"$f":"CONCATENATE(,tblSchMLookup[[#This Row],[Primary Account]],tblSchMLookup[[#This Row],[Primary Name]],tblSchMLookup[[#This Row],[Secondary Acct]],tblSchMLookup[[#This Row],[Secondary  Name]],tblSchMLookup[[#This Row],[Alloc4FUNC]])","v":"4099300SCHMDT415412ContraRA DeerCreekAband IDSITUS"},4099300,{"$f":"IF(tblSchMLookup[[#This Row],[Primary Account]]=4098200,\"SCHMAP\",IF(tblSchMLookup[[#This Row],[Primary Account]]=4098300,\"SCHMAT\",IF(tblSchMLookup[[#This Row],[Primary Account]]=4099200,\"SCHMDP\",IF(tblSchMLookup[[#This Row],[Primary Account]]=4099300,\"SCHMDT\"))))","v":"SCHMDT"},415412,"ContraRA DeerCreekAband ID","SITUS",null,{"$f":"IF(OR(tblSchMLookup[[#This Row],[Alloc]]=\"IDU\",tblSchMLookup[[#This Row],[Alloc]]=\"OR\",tblSchMLookup[[#This Row],[Alloc]]=\"UT\",tblSchMLookup[[#This Row],[Alloc]]=\"WYU\",tblSchMLookup[[#This Row],[Alloc]]=\"WYP\",tblSchMLookup[[#This Row],[Alloc]]=\"CA\",tblSchMLookup[[#This Row],[Alloc]]=\"WA\"),\"SITUS\",tblSchMLookup[[#This Row],[Alloc]])","v":"SITUS"},"P"]
[{"$f":"CONCATENATE(,tblSchMLookup[[#This Row],[Primary Account]],tblSchMLookup[[#This Row],[Primary Name]],tblSchMLookup[[#This Row],[Secondary Acct]],tblSchMLookup[[#This Row],[Secondary  Name]],tblSchMLookup[[#This Row],[Alloc4FUNC]])","v":"4099300SCHMDT415411ContraRA DeerCreekAband CASITUS"},4099300,{"$f":"IF(tblSchMLookup[[#This Row],[Primary Account]]=4098200,\"SCHMAP\",IF(tblSchMLookup[[#This Row],[Primary Account]]=4098300,\"SCHMAT\",IF(tblSchMLookup[[#This Row],[Primary Account]]=4099200,\"SCHMDP\",IF(tblSchMLookup[[#This Row],[Primary Account]]=4099300,\"SCHMDT\"))))","v":"SCHMDT"},415411,"ContraRA DeerCreekAband CA","SITUS",null,{"$f":"IF(OR(tblSchMLookup[[#This Row],[Alloc]]=\"IDU\",tblSchMLookup[[#This Row],[Alloc]]=\"OR\",tblSchMLookup[[#This Row],[Alloc]]=\"UT\",tblSchMLookup[[#This Row],[Alloc]]=\"WYU\",tblSchMLookup[[#This Row],[Alloc]]=\"WYP\",tblSchMLookup[[#This Row],[Alloc]]=\"CA\",tblSchMLookup[[#This Row],[Alloc]]=\"WA\"),\"SITUS\",tblSchMLookup[[#This Row],[Alloc]])","v":"SITUS"},"P"]
[{"$f":"CONCATENATE(,tblSchMLookup[[#This Row],[Primary Account]],tblSchMLookup[[#This Row],[Primary Name]],tblSchMLookup[[#This Row],[Secondary Acct]],tblSchMLookup[[#This Row],[Secondary  Name]],tblSchMLookup[[#This Row],[Alloc4FUNC]])","v":"4099300SCHMDT105153Contract Liability Basis Adjustment -CheSG"},4099300,{"$f":"IF(tblSchMLookup[[#This Row],[Primary Account]]=4098200,\"SCHMAP\",IF(tblSchMLookup[[#This Row],[Primary Account]]=4098300,\"SCHMAT\",IF(tblSchMLookup[[#This Row],[Primary Account]]=4099200,\"SCHMDP\",IF(tblSchMLookup[[#This Row],[Primary Account]]=4099300,\"SCHMDT\"))))","v":"SCHMDT"},105153,"Contract Liability Basis Adjustment -Che","SG",null,{"$f":"IF(OR(tblSchMLookup[[#This Row],[Alloc]]=\"IDU\",tblSchMLookup[[#This Row],[Alloc]]=\"OR\",tblSchMLookup[[#This Row],[Alloc]]=\"UT\",tblSchMLookup[[#This Row],[Alloc]]=\"WYU\",tblSchMLookup[[#This Row],[Alloc]]=\"WYP\",tblSchMLookup[[#This Row],[Alloc]]=\"CA\",tblSchMLookup[[#This Row],[Alloc]]=\"WA\"),\"SITUS\",tblSchMLookup[[#This Row],[Alloc]])","v":"SG"},"P"]
[{"$f":"CONCATENATE(,tblSchMLookup[[#This Row],[Primary Account]],tblSchMLookup[[#This Row],[Primary Name]],tblSchMLookup[[#This Row],[Secondary Acct]],tblSchMLookup[[#This Row],[Secondary  Name]],tblSchMLookup[[#This Row],[Alloc4FUNC]])","v":"4098300SCHMAT415425Contra Reg Asset - UMWA PensionOTHER"},4098300,{"$f":"IF(tblSchMLookup[[#This Row],[Primary Account]]=4098200,\"SCHMAP\",IF(tblSchMLookup[[#This Row],[Primary Account]]=4098300,\"SCHMAT\",IF(tblSchMLookup[[#This Row],[Primary Account]]=4099200,\"SCHMDP\",IF(tblSchMLookup[[#This Row],[Primary Account]]=4099300,\"SCHMDT\"))))","v":"SCHMAT"},415425,"Contra Reg Asset - UMWA Pension","OTHER",null,{"$f":"IF(OR(tblSchMLookup[[#This Row],[Alloc]]=\"IDU\",tblSchMLookup[[#This Row],[Alloc]]=\"OR\",tblSchMLookup[[#This Row],[Alloc]]=\"UT\",tblSchMLookup[[#This Row],[Alloc]]=\"WYU\",tblSchMLookup[[#This Row],[Alloc]]=\"WYP\",tblSchMLookup[[#This Row],[Alloc]]=\"CA\",tblSchMLookup[[#This Row],[Alloc]]=\"WA\"),\"SITUS\",tblSchMLookup[[#This Row],[Alloc]])","v":"OTHER"},"P"]
[{"$f":"CONCATENATE(,tblSchMLookup[[#This Row],[Primary Account]],tblSchMLookup[[#This Row],[Primary Name]],tblSchMLookup[[#This Row],[Secondary Acct]],tblSchMLookup[[#This Row],[Secondary  Name]],tblSchMLookup[[#This Row],[Alloc4FUNC]])","v":"4099300SCHMDT320271Contra Reg Asset - Pension Plan CTGSO"},4099300,{"$f":"IF(tblSchMLookup[[#This Row],[Primary Account]]=4098200,\"SCHMAP\",IF(tblSchMLookup[[#This Row],[Primary Account]]=4098300,\"SCHMAT\",IF(tblSchMLookup[[#This Row],[Primary Account]]=4099200,\"SCHMDP\",IF(tblSchMLookup[[#This Row],[Primary Account]]=4099300,\"SCHMDT\"))))","v":"SCHMDT"},320271,"Contra Reg Asset - Pension Plan CTG","SO",null,{"$f":"IF(OR(tblSchMLookup[[#This Row],[Alloc]]=\"IDU\",tblSchMLookup[[#This Row],[Alloc]]=\"OR\",tblSchMLookup[[#This Row],[Alloc]]=\"UT\",tblSchMLookup[[#This Row],[Alloc]]=\"WYU\",tblSchMLookup[[#This Row],[Alloc]]=\"WYP\",tblSchMLookup[[#This Row],[Alloc]]=\"CA\",tblSchMLookup[[#This Row],[Alloc]]=\"WA\"),\"SITUS\",tblSchMLookup[[#This Row],[Alloc]])","v":"SO"},"LABOR"]
[{"$f":"CONCATENATE(,tblSchMLookup[[#This Row],[Primary Account]],tblSchMLookup[[#This Row],[Primary Name]],tblSchMLookup[[#This Row],[Secondary Acct]],tblSchMLookup[[#This Row],[Secondary  Name]],tblSchMLookup[[#This Row],[Alloc4FUNC]])","v":"4098300SCHMAT415424Contra Reg Asset - Deer Creek AbandonmenSE"},4098300,{"$f":"IF(tblSchMLookup[[#This Row],[Primary Account]]=4098200,\"SCHMAP\",IF(tblSchMLookup[[#This Row],[Primary Account]]=4098300,\"SCHMAT\",IF(tblSchMLookup[[#This Row],[Primary Account]]=4099200,\"SCHMDP\",IF(tblSchMLookup[[#This Row],[Primary Account]]=4099300,\"SCHMDT\"))))","v":"SCHMAT"},415424,"Contra Reg Asset - Deer Creek Abandonmen","SE",null,{"$f":"IF(OR(tblSchMLookup[[#This Row],[Alloc]]=\"IDU\",tblSchMLookup[[#This Row],[Alloc]]=\"OR\",tblSchMLookup[[#This Row],[Alloc]]=\"UT\",tblSchMLookup[[#This Row],[Alloc]]=\"WYU\",tblSchMLookup[[#This Row],[Alloc]]=\"WYP\",tblSchMLookup[[#This Row],[Alloc]]=\"CA\",tblSchMLookup[[#This Row],[Alloc]]=\"WA\"),\"SITUS\",tblSchMLookup[[#This Row],[Alloc]])","v":"SE"},"P"]
[{"$f":"CONCATENATE(,tblSchMLookup[[#This Row],[Primary Account]],tblSchMLookup[[#This Row],[Primary Name]],tblSchMLookup[[#This Row],[Secondary Acct]],tblSchMLookup[[#This Row],[Secondary  Name]],tblSchMLookup[[#This Row],[Alloc4FUNC]])","v":"4098300SCHMAT910245Contra Receivable from Joint OwnersSO"},4098300,{"$f":"IF(tblSchMLookup[[#This Row],[Primary Account]]=4098200,\"SCHMAP\",IF(tblSchMLookup[[#This Row],[Primary Account]]=4098300,\"SCHMAT\",IF(tblSchMLookup[[#This Row],[Primary Account]]=4099200,\"SCHMDP\",IF(tblSchMLookup[[#This Row],[Primary Account]]=4099300,\"SCHMDT\"))))","v":"SCHMAT"},910245,"Contra Receivable from Joint Owners","SO",null,{"$f":"IF(OR(tblSchMLookup[[#This Row],[Alloc]]=\"IDU\",tblSchMLookup[[#This Row],[Alloc]]=\"OR\",tblSchMLookup[[#This Row],[Alloc]]=\"UT\",tblSchMLookup[[#This Row],[Alloc]]=\"WYU\",tblSchMLookup[[#This Row],[Alloc]]=\"WYP\",tblSchMLookup[[#This Row],[Alloc]]=\"CA\",tblSchMLookup[[#This Row],[Alloc]]=\"WA\"),\"SITUS\",tblSchMLookup[[#This Row],[Alloc]])","v":"SO"},"PTD"]
[{"$f":"CONCATENATE(,tblSchMLookup[[#This Row],[Primary Account]],tblSchMLookup[[#This Row],[Primary Name]],tblSchMLookup[[#This Row],[Secondary Acct]],tblSchMLookup[[#This Row],[Secondary  Name]],tblSchMLookup[[#This Row],[Alloc4FUNC]])","v":"4099300SCHMDT415421Contra RA UMWA Pension WAOTHER"},4099300,{"$f":"IF(tblSchMLookup[[#This Row],[Primary Account]]=4098200,\"SCHMAP\",IF(tblSchMLookup[[#This Row],[Primary Account]]=4098300,\"SCHMAT\",IF(tblSchMLookup[[#This Row],[Primary Account]]=4099200,\"SCHMDP\",IF(tblSchMLookup[[#This Row],[Primary Account]]=4099300,\"SCHMDT\"))))","v":"SCHMDT"},415421,"Contra RA UMWA Pension WA","OTHER",null,{"$f":"IF(OR(tblSchMLookup[[#This Row],[Alloc]]=\"IDU\",tblSchMLookup[[#This Row],[Alloc]]=\"OR\",tblSchMLookup[[#This Row],[Alloc]]=\"UT\",tblSchMLookup[[#This Row],[Alloc]]=\"WYU\",tblSchMLookup[[#This Row],[Alloc]]=\"WYP\",tblSchMLookup[[#This Row],[Alloc]]=\"CA\",tblSchMLookup[[#This Row],[Alloc]]=\"WA\"),\"SITUS\",tblSchMLookup[[#This Row],[Alloc]])","v":"OTHER"},"P"]
[{"$f":"CONCATENATE(,tblSchMLookup[[#This Row],[Primary Account]],tblSchMLookup[[#This Row],[Primary Name]],tblSchMLookup[[#This Row],[Secondary Acct]],tblSchMLookup[[#This Row],[Secondary  Name]],tblSchMLookup[[#This Row],[Alloc4FUNC]])","v":"4099300SCHMDT415417Contra RA UMWA Pension CAOTHER"},4099300,{"$f":"IF(tblSchMLookup[[#This Row],[Primary Account]]=4098200,\"SCHMAP\",IF(tblSchMLookup[[#This Row],[Primary Account]]=4098300,\"SCHMAT\",IF(tblSchMLookup[[#This Row],[Primary Account]]=4099200,\"SCHMDP\",IF(tblSchMLookup[[#This Row],[Primary Account]]=4099300,\"SCHMDT\"))))","v":"SCHMDT"},415417,"Contra RA UMWA Pension CA","OTHER",null,{"$f":"IF(OR(tblSchMLookup[[#This Row],[Alloc]]=\"IDU\",tblSchMLookup[[#This Row],[Alloc]]=\"OR\",tblSchMLookup[[#This Row],[Alloc]]=\"UT\",tblSchMLookup[[#This Row],[Alloc]]=\"WYU\",tblSchMLookup[[#This Row],[Alloc]]=\"WYP\",tblSchMLookup[[#This Row],[Alloc]]=\"CA\",tblSchMLookup[[#This Row],[Alloc]]=\"WA\"),\"SITUS\",tblSchMLookup[[#This Row],[Alloc]])","v":"OTHER"},"P"]
[{"$f":"CONCATENATE(,tblSchMLookup[[#This Row],[Primary Account]],tblSchMLookup[[#This Row],[Primary Name]],tblSchMLookup[[#This Row],[Secondary Acct]],tblSchMLookup[[#This Row],[Secondary  Name]],tblSchMLookup[[#This Row],[Alloc4FUNC]])","v":"4099300SCHMDT415820Contra Pension Reg Asset MMT & CTG _ORSITUS"},4099300,{"$f":"IF(tblSchMLookup[[#This Row],[Primary Account]]=4098200,\"SCHMAP\",IF(tblSchMLookup[[#This Row],[Primary Account]]=4098300,\"SCHMAT\",IF(tblSchMLookup[[#This Row],[Primary Account]]=4099200,\"SCHMDP\",IF(tblSchMLookup[[#This Row],[Primary Account]]=4099300,\"SCHMDT\"))))","v":"SCHMDT"},415820,"Contra Pension Reg Asset MMT & CTG _OR","SITUS",null,{"$f":"IF(OR(tblSchMLookup[[#This Row],[Alloc]]=\"IDU\",tblSchMLookup[[#This Row],[Alloc]]=\"OR\",tblSchMLookup[[#This Row],[Alloc]]=\"UT\",tblSchMLookup[[#This Row],[Alloc]]=\"WYU\",tblSchMLookup[[#This Row],[Alloc]]=\"WYP\",tblSchMLookup[[#This Row],[Alloc]]=\"CA\",tblSchMLookup[[#This Row],[Alloc]]=\"WA\"),\"SITUS\",tblSchMLookup[[#This Row],[Alloc]])","v":"SITUS"},"LABOR"]
[{"$f":"CONCATENATE(,tblSchMLookup[[#This Row],[Primary Account]],tblSchMLookup[[#This Row],[Primary Name]],tblSchMLookup[[#This Row],[Secondary Acct]],tblSchMLookup[[#This Row],[Secondary  Name]],tblSchMLookup[[#This Row],[Alloc4FUNC]])","v":"4099300SCHMDT415824Contra Pension Reg Asset MMT & CTG _CASITUS"},4099300,{"$f":"IF(tblSchMLookup[[#This Row],[Primary Account]]=4098200,\"SCHMAP\",IF(tblSchMLookup[[#This Row],[Primary Account]]=4098300,\"SCHMAT\",IF(tblSchMLookup[[#This Row],[Primary Account]]=4099200,\"SCHMDP\",IF(tblSchMLookup[[#This Row],[Primary Account]]=4099300,\"SCHMDT\"))))","v":"SCHMDT"},415824,"Contra Pension Reg Asset MMT & CTG _CA","SITUS",null,{"$f":"IF(OR(tblSchMLookup[[#This Row],[Alloc]]=\"IDU\",tblSchMLookup[[#This Row],[Alloc]]=\"OR\",tblSchMLookup[[#This Row],[Alloc]]=\"UT\",tblSchMLookup[[#This Row],[Alloc]]=\"WYU\",tblSchMLookup[[#This Row],[Alloc]]=\"WYP\",tblSchMLookup[[#This Row],[Alloc]]=\"CA\",tblSchMLookup[[#This Row],[Alloc]]=\"WA\"),\"SITUS\",tblSchMLookup[[#This Row],[Alloc]])","v":"SITUS"},"LABOR"]
[{"$f":"CONCATENATE(,tblSchMLookup[[#This Row],[Primary Account]],tblSchMLookup[[#This Row],[Primary Name]],tblSchMLookup[[#This Row],[Secondary Acct]],tblSchMLookup[[#This Row],[Secondary  Name]],tblSchMLookup[[#This Row],[Alloc4FUNC]])","v":"4098300SCHMAT205100Coal Pile Inventory AdjustmentSE"},4098300,{"$f":"IF(tblSchMLookup[[#This Row],[Primary Account]]=4098200,\"SCHMAP\",IF(tblSchMLookup[[#This Row],[Primary Account]]=4098300,\"SCHMAT\",IF(tblSchMLookup[[#This Row],[Primary Account]]=4099200,\"SCHMDP\",IF(tblSchMLookup[[#This Row],[Primary Account]]=4099300,\"SCHMDT\"))))","v":"SCHMAT"},205100,"Coal Pile Inventory Adjustment","SE",null,{"$f":"IF(OR(tblSchMLookup[[#This Row],[Alloc]]=\"IDU\",tblSchMLookup[[#This Row],[Alloc]]=\"OR\",tblSchMLookup[[#This Row],[Alloc]]=\"UT\",tblSchMLookup[[#This Row],[Alloc]]=\"WYU\",tblSchMLookup[[#This Row],[Alloc]]=\"WYP\",tblSchMLookup[[#This Row],[Alloc]]=\"CA\",tblSchMLookup[[#This Row],[Alloc]]=\"WA\"),\"SITUS\",tblSchMLookup[[#This Row],[Alloc]])","v":"SE"},"P"]
[{"$f":"CONCATENATE(,tblSchMLookup[[#This Row],[Primary Account]],tblSchMLookup[[#This Row],[Primary Name]],tblSchMLookup[[#This Row],[Secondary Acct]],tblSchMLookup[[#This Row],[Secondary  Name]],tblSchMLookup[[#This Row],[Alloc4FUNC]])","v":"4098300SCHMAT610000Coal Mine Development-PMISE"},4098300,{"$f":"IF(tblSchMLookup[[#This Row],[Primary Account]]=4098200,\"SCHMAP\",IF(tblSchMLookup[[#This Row],[Primary Account]]=4098300,\"SCHMAT\",IF(tblSchMLookup[[#This Row],[Primary Account]]=4099200,\"SCHMDP\",IF(tblSchMLookup[[#This Row],[Primary Account]]=4099300,\"SCHMDT\"))))","v":"SCHMAT"},610000,"Coal Mine Development-PMI","SE",null,{"$f":"IF(OR(tblSchMLookup[[#This Row],[Alloc]]=\"IDU\",tblSchMLookup[[#This Row],[Alloc]]=\"OR\",tblSchMLookup[[#This Row],[Alloc]]=\"UT\",tblSchMLookup[[#This Row],[Alloc]]=\"WYU\",tblSchMLookup[[#This Row],[Alloc]]=\"WYP\",tblSchMLookup[[#This Row],[Alloc]]=\"CA\",tblSchMLookup[[#This Row],[Alloc]]=\"WA\"),\"SITUS\",tblSchMLookup[[#This Row],[Alloc]])","v":"SE"},"P"]
[{"$f":"CONCATENATE(,tblSchMLookup[[#This Row],[Primary Account]],tblSchMLookup[[#This Row],[Primary Name]],tblSchMLookup[[#This Row],[Secondary Acct]],tblSchMLookup[[#This Row],[Secondary  Name]],tblSchMLookup[[#This Row],[Alloc4FUNC]])","v":"4099300SCHMDT205200Coal M&S Inventory Write-OffSNPD"},4099300,{"$f":"IF(tblSchMLookup[[#This Row],[Primary Account]]=4098200,\"SCHMAP\",IF(tblSchMLookup[[#This Row],[Primary Account]]=4098300,\"SCHMAT\",IF(tblSchMLookup[[#This Row],[Primary Account]]=4099200,\"SCHMDP\",IF(tblSchMLookup[[#This Row],[Primary Account]]=4099300,\"SCHMDT\"))))","v":"SCHMDT"},205200,"Coal M&S Inventory Write-Off","SNPD",null,{"$f":"IF(OR(tblSchMLookup[[#This Row],[Alloc]]=\"IDU\",tblSchMLookup[[#This Row],[Alloc]]=\"OR\",tblSchMLookup[[#This Row],[Alloc]]=\"UT\",tblSchMLookup[[#This Row],[Alloc]]=\"WYU\",tblSchMLookup[[#This Row],[Alloc]]=\"WYP\",tblSchMLookup[[#This Row],[Alloc]]=\"CA\",tblSchMLookup[[#This Row],[Alloc]]=\"WA\"),\"SITUS\",tblSchMLookup[[#This Row],[Alloc]])","v":"SNPD"},"P"]
[{"$f":"CONCATENATE(,tblSchMLookup[[#This Row],[Primary Account]],tblSchMLookup[[#This Row],[Primary Name]],tblSchMLookup[[#This Row],[Secondary Acct]],tblSchMLookup[[#This Row],[Secondary  Name]],tblSchMLookup[[#This Row],[Alloc4FUNC]])","v":"4098300SCHMAT105130CIACCIAC"},4098300,{"$f":"IF(tblSchMLookup[[#This Row],[Primary Account]]=4098200,\"SCHMAP\",IF(tblSchMLookup[[#This Row],[Primary Account]]=4098300,\"SCHMAT\",IF(tblSchMLookup[[#This Row],[Primary Account]]=4099200,\"SCHMDP\",IF(tblSchMLookup[[#This Row],[Primary Account]]=4099300,\"SCHMDT\"))))","v":"SCHMAT"},105130,"CIAC","CIAC",null,{"$f":"IF(OR(tblSchMLookup[[#This Row],[Alloc]]=\"IDU\",tblSchMLookup[[#This Row],[Alloc]]=\"OR\",tblSchMLookup[[#This Row],[Alloc]]=\"UT\",tblSchMLookup[[#This Row],[Alloc]]=\"WYU\",tblSchMLookup[[#This Row],[Alloc]]=\"WYP\",tblSchMLookup[[#This Row],[Alloc]]=\"CA\",tblSchMLookup[[#This Row],[Alloc]]=\"WA\"),\"SITUS\",tblSchMLookup[[#This Row],[Alloc]])","v":"CIAC"},"DPW"]
[{"$f":"CONCATENATE(,tblSchMLookup[[#This Row],[Primary Account]],tblSchMLookup[[#This Row],[Primary Name]],tblSchMLookup[[#This Row],[Secondary Acct]],tblSchMLookup[[#This Row],[Secondary  Name]],tblSchMLookup[[#This Row],[Alloc4FUNC]])","v":"4099300SCHMDT1052203Cholla SHL-NOPA (Lease Amortization)SG"},4099300,{"$f":"IF(tblSchMLookup[[#This Row],[Primary Account]]=4098200,\"SCHMAP\",IF(tblSchMLookup[[#This Row],[Primary Account]]=4098300,\"SCHMAT\",IF(tblSchMLookup[[#This Row],[Primary Account]]=4099200,\"SCHMDP\",IF(tblSchMLookup[[#This Row],[Primary Account]]=4099300,\"SCHMDT\"))))","v":"SCHMDT"},1052203,"Cholla SHL-NOPA (Lease Amortization)","SG",null,{"$f":"IF(OR(tblSchMLookup[[#This Row],[Alloc]]=\"IDU\",tblSchMLookup[[#This Row],[Alloc]]=\"OR\",tblSchMLookup[[#This Row],[Alloc]]=\"UT\",tblSchMLookup[[#This Row],[Alloc]]=\"WYU\",tblSchMLookup[[#This Row],[Alloc]]=\"WYP\",tblSchMLookup[[#This Row],[Alloc]]=\"CA\",tblSchMLookup[[#This Row],[Alloc]]=\"WA\"),\"SITUS\",tblSchMLookup[[#This Row],[Alloc]])","v":"SG"},"P"]
[{"$f":"CONCATENATE(,tblSchMLookup[[#This Row],[Primary Account]],tblSchMLookup[[#This Row],[Primary Name]],tblSchMLookup[[#This Row],[Secondary Acct]],tblSchMLookup[[#This Row],[Secondary  Name]],tblSchMLookup[[#This Row],[Alloc4FUNC]])","v":"4098300SCHMAT415500Cholla Plt Transact Costs-APS AmortSGCT"},4098300,{"$f":"IF(tblSchMLookup[[#This Row],[Primary Account]]=4098200,\"SCHMAP\",IF(tblSchMLookup[[#This Row],[Primary Account]]=4098300,\"SCHMAT\",IF(tblSchMLookup[[#This Row],[Primary Account]]=4099200,\"SCHMDP\",IF(tblSchMLookup[[#This Row],[Primary Account]]=4099300,\"SCHMDT\"))))","v":"SCHMAT"},415500,"Cholla Plt Transact Costs-APS Amort","SGCT",null,{"$f":"IF(OR(tblSchMLookup[[#This Row],[Alloc]]=\"IDU\",tblSchMLookup[[#This Row],[Alloc]]=\"OR\",tblSchMLookup[[#This Row],[Alloc]]=\"UT\",tblSchMLookup[[#This Row],[Alloc]]=\"WYU\",tblSchMLookup[[#This Row],[Alloc]]=\"WYP\",tblSchMLookup[[#This Row],[Alloc]]=\"CA\",tblSchMLookup[[#This Row],[Alloc]]=\"WA\"),\"SITUS\",tblSchMLookup[[#This Row],[Alloc]])","v":"SGCT"},"P"]
[{"$f":"CONCATENATE(,tblSchMLookup[[#This Row],[Primary Account]],tblSchMLookup[[#This Row],[Primary Name]],tblSchMLookup[[#This Row],[Secondary Acct]],tblSchMLookup[[#This Row],[Secondary  Name]],tblSchMLookup[[#This Row],[Alloc4FUNC]])","v":"4099300SCHMDT415502Cholla Plt Transact Costs- APS Amort - OSITUS"},4099300,{"$f":"IF(tblSchMLookup[[#This Row],[Primary Account]]=4098200,\"SCHMAP\",IF(tblSchMLookup[[#This Row],[Primary Account]]=4098300,\"SCHMAT\",IF(tblSchMLookup[[#This Row],[Primary Account]]=4099200,\"SCHMDP\",IF(tblSchMLookup[[#This Row],[Primary Account]]=4099300,\"SCHMDT\"))))","v":"SCHMDT"},415502,"Cholla Plt Transact Costs- APS Amort - O","SITUS",null,{"$f":"IF(OR(tblSchMLookup[[#This Row],[Alloc]]=\"IDU\",tblSchMLookup[[#This Row],[Alloc]]=\"OR\",tblSchMLookup[[#This Row],[Alloc]]=\"UT\",tblSchMLookup[[#This Row],[Alloc]]=\"WYU\",tblSchMLookup[[#This Row],[Alloc]]=\"WYP\",tblSchMLookup[[#This Row],[Alloc]]=\"CA\",tblSchMLookup[[#This Row],[Alloc]]=\"WA\"),\"SITUS\",tblSchMLookup[[#This Row],[Alloc]])","v":"SITUS"},"P"]
[{"$f":"CONCATENATE(,tblSchMLookup[[#This Row],[Primary Account]],tblSchMLookup[[#This Row],[Primary Name]],tblSchMLookup[[#This Row],[Secondary Acct]],tblSchMLookup[[#This Row],[Secondary  Name]],tblSchMLookup[[#This Row],[Alloc4FUNC]])","v":"4099300SCHMDT415501Cholla Plt Transact Costs- APS Amort - ISITUS"},4099300,{"$f":"IF(tblSchMLookup[[#This Row],[Primary Account]]=4098200,\"SCHMAP\",IF(tblSchMLookup[[#This Row],[Primary Account]]=4098300,\"SCHMAT\",IF(tblSchMLookup[[#This Row],[Primary Account]]=4099200,\"SCHMDP\",IF(tblSchMLookup[[#This Row],[Primary Account]]=4099300,\"SCHMDT\"))))","v":"SCHMDT"},415501,"Cholla Plt Transact Costs- APS Amort - I","SITUS",null,{"$f":"IF(OR(tblSchMLookup[[#This Row],[Alloc]]=\"IDU\",tblSchMLookup[[#This Row],[Alloc]]=\"OR\",tblSchMLookup[[#This Row],[Alloc]]=\"UT\",tblSchMLookup[[#This Row],[Alloc]]=\"WYU\",tblSchMLookup[[#This Row],[Alloc]]=\"WYP\",tblSchMLookup[[#This Row],[Alloc]]=\"CA\",tblSchMLookup[[#This Row],[Alloc]]=\"WA\"),\"SITUS\",tblSchMLookup[[#This Row],[Alloc]])","v":"SITUS"},"P"]
[{"$f":"CONCATENATE(,tblSchMLookup[[#This Row],[Primary Account]],tblSchMLookup[[#This Row],[Primary Name]],tblSchMLookup[[#This Row],[Secondary Acct]],tblSchMLookup[[#This Row],[Secondary  Name]],tblSchMLookup[[#This Row],[Alloc4FUNC]])","v":"4098300SCHMAT715810Chehalis WA EFSEC C02 Mitigation ObligatSG"},4098300,{"$f":"IF(tblSchMLookup[[#This Row],[Primary Account]]=4098200,\"SCHMAP\",IF(tblSchMLookup[[#This Row],[Primary Account]]=4098300,\"SCHMAT\",IF(tblSchMLookup[[#This Row],[Primary Account]]=4099200,\"SCHMDP\",IF(tblSchMLookup[[#This Row],[Primary Account]]=4099300,\"SCHMDT\"))))","v":"SCHMAT"},715810,"Chehalis WA EFSEC C02 Mitigation Obligat","SG",null,{"$f":"IF(OR(tblSchMLookup[[#This Row],[Alloc]]=\"IDU\",tblSchMLookup[[#This Row],[Alloc]]=\"OR\",tblSchMLookup[[#This Row],[Alloc]]=\"UT\",tblSchMLookup[[#This Row],[Alloc]]=\"WYU\",tblSchMLookup[[#This Row],[Alloc]]=\"WYP\",tblSchMLookup[[#This Row],[Alloc]]=\"CA\",tblSchMLookup[[#This Row],[Alloc]]=\"WA\"),\"SITUS\",tblSchMLookup[[#This Row],[Alloc]])","v":"SG"},"P"]
[{"$f":"CONCATENATE(,tblSchMLookup[[#This Row],[Primary Account]],tblSchMLookup[[#This Row],[Primary Name]],tblSchMLookup[[#This Row],[Secondary Acct]],tblSchMLookup[[#This Row],[Secondary  Name]],tblSchMLookup[[#This Row],[Alloc4FUNC]])","v":"4098300SCHMAT105100Capitalized Labor CostsSO"},4098300,{"$f":"IF(tblSchMLookup[[#This Row],[Primary Account]]=4098200,\"SCHMAP\",IF(tblSchMLookup[[#This Row],[Primary Account]]=4098300,\"SCHMAT\",IF(tblSchMLookup[[#This Row],[Primary Account]]=4099200,\"SCHMDP\",IF(tblSchMLookup[[#This Row],[Primary Account]]=4099300,\"SCHMDT\"))))","v":"SCHMAT"},105100,"Capitalized Labor Costs","SO",null,{"$f":"IF(OR(tblSchMLookup[[#This Row],[Alloc]]=\"IDU\",tblSchMLookup[[#This Row],[Alloc]]=\"OR\",tblSchMLookup[[#This Row],[Alloc]]=\"UT\",tblSchMLookup[[#This Row],[Alloc]]=\"WYU\",tblSchMLookup[[#This Row],[Alloc]]=\"WYP\",tblSchMLookup[[#This Row],[Alloc]]=\"CA\",tblSchMLookup[[#This Row],[Alloc]]=\"WA\"),\"SITUS\",tblSchMLookup[[#This Row],[Alloc]])","v":"SO"},"LABOR"]
[{"$f":"CONCATENATE(,tblSchMLookup[[#This Row],[Primary Account]],tblSchMLookup[[#This Row],[Primary Name]],tblSchMLookup[[#This Row],[Secondary Acct]],tblSchMLookup[[#This Row],[Secondary  Name]],tblSchMLookup[[#This Row],[Alloc4FUNC]])","v":"4099300SCHMDT105137Capitalized DepreciationSO"},4099300,{"$f":"IF(tblSchMLookup[[#This Row],[Primary Account]]=4098200,\"SCHMAP\",IF(tblSchMLookup[[#This Row],[Primary Account]]=4098300,\"SCHMAT\",IF(tblSchMLookup[[#This Row],[Primary Account]]=4099200,\"SCHMDP\",IF(tblSchMLookup[[#This Row],[Primary Account]]=4099300,\"SCHMDT\"))))","v":"SCHMDT"},105137,"Capitalized Depreciation","SO",null,{"$f":"IF(OR(tblSchMLookup[[#This Row],[Alloc]]=\"IDU\",tblSchMLookup[[#This Row],[Alloc]]=\"OR\",tblSchMLookup[[#This Row],[Alloc]]=\"UT\",tblSchMLookup[[#This Row],[Alloc]]=\"WYU\",tblSchMLookup[[#This Row],[Alloc]]=\"WYP\",tblSchMLookup[[#This Row],[Alloc]]=\"CA\",tblSchMLookup[[#This Row],[Alloc]]=\"WA\"),\"SITUS\",tblSchMLookup[[#This Row],[Alloc]])","v":"SO"},"GP"]
[{"$f":"CONCATENATE(,tblSchMLookup[[#This Row],[Primary Account]],tblSchMLookup[[#This Row],[Primary Name]],tblSchMLookup[[#This Row],[Secondary Acct]],tblSchMLookup[[#This Row],[Secondary  Name]],tblSchMLookup[[#This Row],[Alloc4FUNC]])","v":"4099300SCHMDT415655CA GHG AllowanceOTHER"},4099300,{"$f":"IF(tblSchMLookup[[#This Row],[Primary Account]]=4098200,\"SCHMAP\",IF(tblSchMLookup[[#This Row],[Primary Account]]=4098300,\"SCHMAT\",IF(tblSchMLookup[[#This Row],[Primary Account]]=4099200,\"SCHMDP\",IF(tblSchMLookup[[#This Row],[Primary Account]]=4099300,\"SCHMDT\"))))","v":"SCHMDT"},415655,"CA GHG Allowance","OTHER",null,{"$f":"IF(OR(tblSchMLookup[[#This Row],[Alloc]]=\"IDU\",tblSchMLookup[[#This Row],[Alloc]]=\"OR\",tblSchMLookup[[#This Row],[Alloc]]=\"UT\",tblSchMLookup[[#This Row],[Alloc]]=\"WYU\",tblSchMLookup[[#This Row],[Alloc]]=\"WYP\",tblSchMLookup[[#This Row],[Alloc]]=\"CA\",tblSchMLookup[[#This Row],[Alloc]]=\"WA\"),\"SITUS\",tblSchMLookup[[#This Row],[Alloc]])","v":"OTHER"},"P"]
[{"$f":"CONCATENATE(,tblSchMLookup[[#This Row],[Primary Account]],tblSchMLookup[[#This Row],[Primary Name]],tblSchMLookup[[#This Row],[Secondary Acct]],tblSchMLookup[[#This Row],[Secondary  Name]],tblSchMLookup[[#This Row],[Alloc4FUNC]])","v":"4099300SCHMDT415701CA Deferred Intervenor FundingOTHER"},4099300,{"$f":"IF(tblSchMLookup[[#This Row],[Primary Account]]=4098200,\"SCHMAP\",IF(tblSchMLookup[[#This Row],[Primary Account]]=4098300,\"SCHMAT\",IF(tblSchMLookup[[#This Row],[Primary Account]]=4099200,\"SCHMDP\",IF(tblSchMLookup[[#This Row],[Primary Account]]=4099300,\"SCHMDT\"))))","v":"SCHMDT"},415701,"CA Deferred Intervenor Funding","OTHER",null,{"$f":"IF(OR(tblSchMLookup[[#This Row],[Alloc]]=\"IDU\",tblSchMLookup[[#This Row],[Alloc]]=\"OR\",tblSchMLookup[[#This Row],[Alloc]]=\"UT\",tblSchMLookup[[#This Row],[Alloc]]=\"WYU\",tblSchMLookup[[#This Row],[Alloc]]=\"WYP\",tblSchMLookup[[#This Row],[Alloc]]=\"CA\",tblSchMLookup[[#This Row],[Alloc]]=\"WA\"),\"SITUS\",tblSchMLookup[[#This Row],[Alloc]])","v":"OTHER"},"COMMON"]
[{"$f":"CONCATENATE(,tblSchMLookup[[#This Row],[Primary Account]],tblSchMLookup[[#This Row],[Primary Name]],tblSchMLookup[[#This Row],[Secondary Acct]],tblSchMLookup[[#This Row],[Secondary  Name]],tblSchMLookup[[#This Row],[Alloc4FUNC]])","v":"4099300SCHMDT415870CA Def Excess NPCSITUS"},4099300,{"$f":"IF(tblSchMLookup[[#This Row],[Primary Account]]=4098200,\"SCHMAP\",IF(tblSchMLookup[[#This Row],[Primary Account]]=4098300,\"SCHMAT\",IF(tblSchMLookup[[#This Row],[Primary Account]]=4099200,\"SCHMDP\",IF(tblSchMLookup[[#This Row],[Primary Account]]=4099300,\"SCHMDT\"))))","v":"SCHMDT"},415870,"CA Def Excess NPC","SITUS",null,{"$f":"IF(OR(tblSchMLookup[[#This Row],[Alloc]]=\"IDU\",tblSchMLookup[[#This Row],[Alloc]]=\"OR\",tblSchMLookup[[#This Row],[Alloc]]=\"UT\",tblSchMLookup[[#This Row],[Alloc]]=\"WYU\",tblSchMLookup[[#This Row],[Alloc]]=\"WYP\",tblSchMLookup[[#This Row],[Alloc]]=\"CA\",tblSchMLookup[[#This Row],[Alloc]]=\"WA\"),\"SITUS\",tblSchMLookup[[#This Row],[Alloc]])","v":"SITUS"},"P"]
[{"$f":"CONCATENATE(,tblSchMLookup[[#This Row],[Primary Account]],tblSchMLookup[[#This Row],[Primary Name]],tblSchMLookup[[#This Row],[Secondary Acct]],tblSchMLookup[[#This Row],[Secondary  Name]],tblSchMLookup[[#This Row],[Alloc4FUNC]])","v":"4098300SCHMAT705240CA Alternative Rate for Energy Program(COTHER"},4098300,{"$f":"IF(tblSchMLookup[[#This Row],[Primary Account]]=4098200,\"SCHMAP\",IF(tblSchMLookup[[#This Row],[Primary Account]]=4098300,\"SCHMAT\",IF(tblSchMLookup[[#This Row],[Primary Account]]=4099200,\"SCHMDP\",IF(tblSchMLookup[[#This Row],[Primary Account]]=4099300,\"SCHMDT\"))))","v":"SCHMAT"},705240,"CA Alternative Rate for Energy Program(C","OTHER",null,{"$f":"IF(OR(tblSchMLookup[[#This Row],[Alloc]]=\"IDU\",tblSchMLookup[[#This Row],[Alloc]]=\"OR\",tblSchMLookup[[#This Row],[Alloc]]=\"UT\",tblSchMLookup[[#This Row],[Alloc]]=\"WYU\",tblSchMLookup[[#This Row],[Alloc]]=\"WYP\",tblSchMLookup[[#This Row],[Alloc]]=\"CA\",tblSchMLookup[[#This Row],[Alloc]]=\"WA\"),\"SITUS\",tblSchMLookup[[#This Row],[Alloc]])","v":"OTHER"},"PTD"]
[{"$f":"CONCATENATE(,tblSchMLookup[[#This Row],[Primary Account]],tblSchMLookup[[#This Row],[Primary Name]],tblSchMLookup[[#This Row],[Secondary Acct]],tblSchMLookup[[#This Row],[Secondary  Name]],tblSchMLookup[[#This Row],[Alloc4FUNC]])","v":"4098300SCHMAT415855CA - January 2010 Storm CostsOTHER"},4098300,{"$f":"IF(tblSchMLookup[[#This Row],[Primary Account]]=4098200,\"SCHMAP\",IF(tblSchMLookup[[#This Row],[Primary Account]]=4098300,\"SCHMAT\",IF(tblSchMLookup[[#This Row],[Primary Account]]=4099200,\"SCHMDP\",IF(tblSchMLookup[[#This Row],[Primary Account]]=4099300,\"SCHMDT\"))))","v":"SCHMAT"},415855,"CA - January 2010 Storm Costs","OTHER",null,{"$f":"IF(OR(tblSchMLookup[[#This Row],[Alloc]]=\"IDU\",tblSchMLookup[[#This Row],[Alloc]]=\"OR\",tblSchMLookup[[#This Row],[Alloc]]=\"UT\",tblSchMLookup[[#This Row],[Alloc]]=\"WYU\",tblSchMLookup[[#This Row],[Alloc]]=\"WYP\",tblSchMLookup[[#This Row],[Alloc]]=\"CA\",tblSchMLookup[[#This Row],[Alloc]]=\"WA\"),\"SITUS\",tblSchMLookup[[#This Row],[Alloc]])","v":"OTHER"},"P"]
[{"$f":"CONCATENATE(,tblSchMLookup[[#This Row],[Primary Account]],tblSchMLookup[[#This Row],[Primary Name]],tblSchMLookup[[#This Row],[Secondary Acct]],tblSchMLookup[[#This Row],[Secondary  Name]],tblSchMLookup[[#This Row],[Alloc4FUNC]])","v":"4098300SCHMAT910905Bridger Coal Company Underground Mine CoSE"},4098300,{"$f":"IF(tblSchMLookup[[#This Row],[Primary Account]]=4098200,\"SCHMAP\",IF(tblSchMLookup[[#This Row],[Primary Account]]=4098300,\"SCHMAT\",IF(tblSchMLookup[[#This Row],[Primary Account]]=4099200,\"SCHMDP\",IF(tblSchMLookup[[#This Row],[Primary Account]]=4099300,\"SCHMDT\"))))","v":"SCHMAT"},910905,"Bridger Coal Company Underground Mine Co","SE",null,{"$f":"IF(OR(tblSchMLookup[[#This Row],[Alloc]]=\"IDU\",tblSchMLookup[[#This Row],[Alloc]]=\"OR\",tblSchMLookup[[#This Row],[Alloc]]=\"UT\",tblSchMLookup[[#This Row],[Alloc]]=\"WYU\",tblSchMLookup[[#This Row],[Alloc]]=\"WYP\",tblSchMLookup[[#This Row],[Alloc]]=\"CA\",tblSchMLookup[[#This Row],[Alloc]]=\"WA\"),\"SITUS\",tblSchMLookup[[#This Row],[Alloc]])","v":"SE"},"P"]
[{"$f":"CONCATENATE(,tblSchMLookup[[#This Row],[Primary Account]],tblSchMLookup[[#This Row],[Primary Name]],tblSchMLookup[[#This Row],[Secondary Acct]],tblSchMLookup[[#This Row],[Secondary  Name]],tblSchMLookup[[#This Row],[Alloc4FUNC]])","v":"4099300SCHMDT610111Bridger Coal Company Gain/Loss on AssetsSE"},4099300,{"$f":"IF(tblSchMLookup[[#This Row],[Primary Account]]=4098200,\"SCHMAP\",IF(tblSchMLookup[[#This Row],[Primary Account]]=4098300,\"SCHMAT\",IF(tblSchMLookup[[#This Row],[Primary Account]]=4099200,\"SCHMDP\",IF(tblSchMLookup[[#This Row],[Primary Account]]=4099300,\"SCHMDT\"))))","v":"SCHMDT"},610111,"Bridger Coal Company Gain/Loss on Assets","SE",null,{"$f":"IF(OR(tblSchMLookup[[#This Row],[Alloc]]=\"IDU\",tblSchMLookup[[#This Row],[Alloc]]=\"OR\",tblSchMLookup[[#This Row],[Alloc]]=\"UT\",tblSchMLookup[[#This Row],[Alloc]]=\"WYU\",tblSchMLookup[[#This Row],[Alloc]]=\"WYP\",tblSchMLookup[[#This Row],[Alloc]]=\"CA\",tblSchMLookup[[#This Row],[Alloc]]=\"WA\"),\"SITUS\",tblSchMLookup[[#This Row],[Alloc]])","v":"SE"},"P"]
[{"$f":"CONCATENATE(,tblSchMLookup[[#This Row],[Primary Account]],tblSchMLookup[[#This Row],[Primary Name]],tblSchMLookup[[#This Row],[Secondary Acct]],tblSchMLookup[[#This Row],[Secondary  Name]],tblSchMLookup[[#This Row],[Alloc4FUNC]])","v":"4099300SCHMDT105470Book Gain/Loss on Land SalesGPS"},4099300,{"$f":"IF(tblSchMLookup[[#This Row],[Primary Account]]=4098200,\"SCHMAP\",IF(tblSchMLookup[[#This Row],[Primary Account]]=4098300,\"SCHMAT\",IF(tblSchMLookup[[#This Row],[Primary Account]]=4099200,\"SCHMDP\",IF(tblSchMLookup[[#This Row],[Primary Account]]=4099300,\"SCHMDT\"))))","v":"SCHMDT"},105470,"Book Gain/Loss on Land Sales","GPS",null,{"$f":"IF(OR(tblSchMLookup[[#This Row],[Alloc]]=\"IDU\",tblSchMLookup[[#This Row],[Alloc]]=\"OR\",tblSchMLookup[[#This Row],[Alloc]]=\"UT\",tblSchMLookup[[#This Row],[Alloc]]=\"WYU\",tblSchMLookup[[#This Row],[Alloc]]=\"WYP\",tblSchMLookup[[#This Row],[Alloc]]=\"CA\",tblSchMLookup[[#This Row],[Alloc]]=\"WA\"),\"SITUS\",tblSchMLookup[[#This Row],[Alloc]])","v":"GPS"},"PTD"]
[{"$f":"CONCATENATE(,tblSchMLookup[[#This Row],[Primary Account]],tblSchMLookup[[#This Row],[Primary Name]],tblSchMLookup[[#This Row],[Secondary Acct]],tblSchMLookup[[#This Row],[Secondary  Name]],tblSchMLookup[[#This Row],[Alloc4FUNC]])","v":"4099200SCHMDP105127Book Depreciation Allocated to MedicareSCHMDEXP"},4099200,{"$f":"IF(tblSchMLookup[[#This Row],[Primary Account]]=4098200,\"SCHMAP\",IF(tblSchMLookup[[#This Row],[Primary Account]]=4098300,\"SCHMAT\",IF(tblSchMLookup[[#This Row],[Primary Account]]=4099200,\"SCHMDP\",IF(tblSchMLookup[[#This Row],[Primary Account]]=4099300,\"SCHMDT\"))))","v":"SCHMDP"},105127,"Book Depreciation Allocated to Medicare","SCHMDEXP",null,{"$f":"IF(OR(tblSchMLookup[[#This Row],[Alloc]]=\"IDU\",tblSchMLookup[[#This Row],[Alloc]]=\"OR\",tblSchMLookup[[#This Row],[Alloc]]=\"UT\",tblSchMLookup[[#This Row],[Alloc]]=\"WYU\",tblSchMLookup[[#This Row],[Alloc]]=\"WYP\",tblSchMLookup[[#This Row],[Alloc]]=\"CA\",tblSchMLookup[[#This Row],[Alloc]]=\"WA\"),\"SITUS\",tblSchMLookup[[#This Row],[Alloc]])","v":"SCHMDEXP"},"LABOR"]
[{"$f":"CONCATENATE(,tblSchMLookup[[#This Row],[Primary Account]],tblSchMLookup[[#This Row],[Primary Name]],tblSchMLookup[[#This Row],[Secondary Acct]],tblSchMLookup[[#This Row],[Secondary  Name]],tblSchMLookup[[#This Row],[Alloc4FUNC]])","v":"4098300SCHMAT105120Book DepreciationSCHMDEXP"},4098300,{"$f":"IF(tblSchMLookup[[#This Row],[Primary Account]]=4098200,\"SCHMAP\",IF(tblSchMLookup[[#This Row],[Primary Account]]=4098300,\"SCHMAT\",IF(tblSchMLookup[[#This Row],[Primary Account]]=4099200,\"SCHMDP\",IF(tblSchMLookup[[#This Row],[Primary Account]]=4099300,\"SCHMDT\"))))","v":"SCHMAT"},105120,"Book Depreciation","SCHMDEXP",null,{"$f":"IF(OR(tblSchMLookup[[#This Row],[Alloc]]=\"IDU\",tblSchMLookup[[#This Row],[Alloc]]=\"OR\",tblSchMLookup[[#This Row],[Alloc]]=\"UT\",tblSchMLookup[[#This Row],[Alloc]]=\"WYU\",tblSchMLookup[[#This Row],[Alloc]]=\"WYP\",tblSchMLookup[[#This Row],[Alloc]]=\"CA\",tblSchMLookup[[#This Row],[Alloc]]=\"WA\"),\"SITUS\",tblSchMLookup[[#This Row],[Alloc]])","v":"SCHMDEXP"},"GP"]
[{"$f":"CONCATENATE(,tblSchMLookup[[#This Row],[Primary Account]],tblSchMLookup[[#This Row],[Primary Name]],tblSchMLookup[[#This Row],[Secondary Acct]],tblSchMLookup[[#This Row],[Secondary  Name]],tblSchMLookup[[#This Row],[Alloc4FUNC]])","v":"4098200SCHMAP105127Book Depr Allocated to Medicare and M&ESCHMDEXP"},4098200,{"$f":"IF(tblSchMLookup[[#This Row],[Primary Account]]=4098200,\"SCHMAP\",IF(tblSchMLookup[[#This Row],[Primary Account]]=4098300,\"SCHMAT\",IF(tblSchMLookup[[#This Row],[Primary Account]]=4099200,\"SCHMDP\",IF(tblSchMLookup[[#This Row],[Primary Account]]=4099300,\"SCHMDT\"))))","v":"SCHMAP"},105127,"Book Depr Allocated to Medicare and M&E","SCHMDEXP",null,{"$f":"IF(OR(tblSchMLookup[[#This Row],[Alloc]]=\"IDU\",tblSchMLookup[[#This Row],[Alloc]]=\"OR\",tblSchMLookup[[#This Row],[Alloc]]=\"UT\",tblSchMLookup[[#This Row],[Alloc]]=\"WYU\",tblSchMLookup[[#This Row],[Alloc]]=\"WYP\",tblSchMLookup[[#This Row],[Alloc]]=\"CA\",tblSchMLookup[[#This Row],[Alloc]]=\"WA\"),\"SITUS\",tblSchMLookup[[#This Row],[Alloc]])","v":"SCHMDEXP"},"LABOR"]
[{"$f":"CONCATENATE(,tblSchMLookup[[#This Row],[Primary Account]],tblSchMLookup[[#This Row],[Primary Name]],tblSchMLookup[[#This Row],[Secondary Acct]],tblSchMLookup[[#This Row],[Secondary  Name]],tblSchMLookup[[#This Row],[Alloc4FUNC]])","v":"4098300SCHMAT505400Bonus LiabilitySO"},4098300,{"$f":"IF(tblSchMLookup[[#This Row],[Primary Account]]=4098200,\"SCHMAP\",IF(tblSchMLookup[[#This Row],[Primary Account]]=4098300,\"SCHMAT\",IF(tblSchMLookup[[#This Row],[Primary Account]]=4099200,\"SCHMDP\",IF(tblSchMLookup[[#This Row],[Primary Account]]=4099300,\"SCHMDT\"))))","v":"SCHMAT"},505400,"Bonus Liability","SO",null,{"$f":"IF(OR(tblSchMLookup[[#This Row],[Alloc]]=\"IDU\",tblSchMLookup[[#This Row],[Alloc]]=\"OR\",tblSchMLookup[[#This Row],[Alloc]]=\"UT\",tblSchMLookup[[#This Row],[Alloc]]=\"WYU\",tblSchMLookup[[#This Row],[Alloc]]=\"WYP\",tblSchMLookup[[#This Row],[Alloc]]=\"CA\",tblSchMLookup[[#This Row],[Alloc]]=\"WA\"),\"SITUS\",tblSchMLookup[[#This Row],[Alloc]])","v":"SO"},"LABOR"]
[{"$f":"CONCATENATE(,tblSchMLookup[[#This Row],[Primary Account]],tblSchMLookup[[#This Row],[Primary Name]],tblSchMLookup[[#This Row],[Secondary Acct]],tblSchMLookup[[#This Row],[Secondary  Name]],tblSchMLookup[[#This Row],[Alloc4FUNC]])","v":"4099300SCHMDT105143Basis Intangible DifferenceSO"},4099300,{"$f":"IF(tblSchMLookup[[#This Row],[Primary Account]]=4098200,\"SCHMAP\",IF(tblSchMLookup[[#This Row],[Primary Account]]=4098300,\"SCHMAT\",IF(tblSchMLookup[[#This Row],[Primary Account]]=4099200,\"SCHMDP\",IF(tblSchMLookup[[#This Row],[Primary Account]]=4099300,\"SCHMDT\"))))","v":"SCHMDT"},105143,"Basis Intangible Difference","SO",null,{"$f":"IF(OR(tblSchMLookup[[#This Row],[Alloc]]=\"IDU\",tblSchMLookup[[#This Row],[Alloc]]=\"OR\",tblSchMLookup[[#This Row],[Alloc]]=\"UT\",tblSchMLookup[[#This Row],[Alloc]]=\"WYU\",tblSchMLookup[[#This Row],[Alloc]]=\"WYP\",tblSchMLookup[[#This Row],[Alloc]]=\"CA\",tblSchMLookup[[#This Row],[Alloc]]=\"WA\"),\"SITUS\",tblSchMLookup[[#This Row],[Alloc]])","v":"SO"},"PTD"]
[{"$f":"CONCATENATE(,tblSchMLookup[[#This Row],[Primary Account]],tblSchMLookup[[#This Row],[Primary Name]],tblSchMLookup[[#This Row],[Secondary Acct]],tblSchMLookup[[#This Row],[Secondary  Name]],tblSchMLookup[[#This Row],[Alloc4FUNC]])","v":"4098300SCHMAT220100Bad Debts Allowance - Cash BasisBADDEBT"},4098300,{"$f":"IF(tblSchMLookup[[#This Row],[Primary Account]]=4098200,\"SCHMAP\",IF(tblSchMLookup[[#This Row],[Primary Account]]=4098300,\"SCHMAT\",IF(tblSchMLookup[[#This Row],[Primary Account]]=4099200,\"SCHMDP\",IF(tblSchMLookup[[#This Row],[Primary Account]]=4099300,\"SCHMDT\"))))","v":"SCHMAT"},220100,"Bad Debts Allowance - Cash Basis","BADDEBT",null,{"$f":"IF(OR(tblSchMLookup[[#This Row],[Alloc]]=\"IDU\",tblSchMLookup[[#This Row],[Alloc]]=\"OR\",tblSchMLookup[[#This Row],[Alloc]]=\"UT\",tblSchMLookup[[#This Row],[Alloc]]=\"WYU\",tblSchMLookup[[#This Row],[Alloc]]=\"WYP\",tblSchMLookup[[#This Row],[Alloc]]=\"CA\",tblSchMLookup[[#This Row],[Alloc]]=\"WA\"),\"SITUS\",tblSchMLookup[[#This Row],[Alloc]])","v":"BADDEBT"},"CUST"]
[{"$f":"CONCATENATE(,tblSchMLookup[[#This Row],[Primary Account]],tblSchMLookup[[#This Row],[Primary Name]],tblSchMLookup[[#This Row],[Secondary Acct]],tblSchMLookup[[#This Row],[Secondary  Name]],tblSchMLookup[[#This Row],[Alloc4FUNC]])","v":"4098300SCHMAT105142Avoided CostsSNP"},4098300,{"$f":"IF(tblSchMLookup[[#This Row],[Primary Account]]=4098200,\"SCHMAP\",IF(tblSchMLookup[[#This Row],[Primary Account]]=4098300,\"SCHMAT\",IF(tblSchMLookup[[#This Row],[Primary Account]]=4099200,\"SCHMDP\",IF(tblSchMLookup[[#This Row],[Primary Account]]=4099300,\"SCHMDT\"))))","v":"SCHMAT"},105142,"Avoided Costs","SNP",null,{"$f":"IF(OR(tblSchMLookup[[#This Row],[Alloc]]=\"IDU\",tblSchMLookup[[#This Row],[Alloc]]=\"OR\",tblSchMLookup[[#This Row],[Alloc]]=\"UT\",tblSchMLookup[[#This Row],[Alloc]]=\"WYU\",tblSchMLookup[[#This Row],[Alloc]]=\"WYP\",tblSchMLookup[[#This Row],[Alloc]]=\"CA\",tblSchMLookup[[#This Row],[Alloc]]=\"WA\"),\"SITUS\",tblSchMLookup[[#This Row],[Alloc]])","v":"SNP"},"PTD"]
[{"$f":"CONCATENATE(,tblSchMLookup[[#This Row],[Primary Account]],tblSchMLookup[[#This Row],[Primary Name]],tblSchMLookup[[#This Row],[Secondary Acct]],tblSchMLookup[[#This Row],[Secondary  Name]],tblSchMLookup[[#This Row],[Alloc4FUNC]])","v":"4099300SCHMDT605103ARO/Reg Diff - Trojan - WASITUS"},4099300,{"$f":"IF(tblSchMLookup[[#This Row],[Primary Account]]=4098200,\"SCHMAP\",IF(tblSchMLookup[[#This Row],[Primary Account]]=4098300,\"SCHMAT\",IF(tblSchMLookup[[#This Row],[Primary Account]]=4099200,\"SCHMDP\",IF(tblSchMLookup[[#This Row],[Primary Account]]=4099300,\"SCHMDT\"))))","v":"SCHMDT"},605103,"ARO/Reg Diff - Trojan - WA","SITUS",null,{"$f":"IF(OR(tblSchMLookup[[#This Row],[Alloc]]=\"IDU\",tblSchMLookup[[#This Row],[Alloc]]=\"OR\",tblSchMLookup[[#This Row],[Alloc]]=\"UT\",tblSchMLookup[[#This Row],[Alloc]]=\"WYU\",tblSchMLookup[[#This Row],[Alloc]]=\"WYP\",tblSchMLookup[[#This Row],[Alloc]]=\"CA\",tblSchMLookup[[#This Row],[Alloc]]=\"WA\"),\"SITUS\",tblSchMLookup[[#This Row],[Alloc]])","v":"SITUS"},"P"]
[{"$f":"CONCATENATE(,tblSchMLookup[[#This Row],[Primary Account]],tblSchMLookup[[#This Row],[Primary Name]],tblSchMLookup[[#This Row],[Secondary Acct]],tblSchMLookup[[#This Row],[Secondary  Name]],tblSchMLookup[[#This Row],[Alloc4FUNC]])","v":"4099300SCHMDT6101001AMORT NOPAS 99-00 RARSO"},4099300,{"$f":"IF(tblSchMLookup[[#This Row],[Primary Account]]=4098200,\"SCHMAP\",IF(tblSchMLookup[[#This Row],[Primary Account]]=4098300,\"SCHMAT\",IF(tblSchMLookup[[#This Row],[Primary Account]]=4099200,\"SCHMDP\",IF(tblSchMLookup[[#This Row],[Primary Account]]=4099300,\"SCHMDT\"))))","v":"SCHMDT"},6101001,"AMORT NOPAS 99-00 RAR","SO",null,{"$f":"IF(OR(tblSchMLookup[[#This Row],[Alloc]]=\"IDU\",tblSchMLookup[[#This Row],[Alloc]]=\"OR\",tblSchMLookup[[#This Row],[Alloc]]=\"UT\",tblSchMLookup[[#This Row],[Alloc]]=\"WYU\",tblSchMLookup[[#This Row],[Alloc]]=\"WYP\",tblSchMLookup[[#This Row],[Alloc]]=\"CA\",tblSchMLookup[[#This Row],[Alloc]]=\"WA\"),\"SITUS\",tblSchMLookup[[#This Row],[Alloc]])","v":"SO"},"PTD"]
[{"$f":"CONCATENATE(,tblSchMLookup[[#This Row],[Primary Account]],tblSchMLookup[[#This Row],[Primary Name]],tblSchMLookup[[#This Row],[Secondary Acct]],tblSchMLookup[[#This Row],[Secondary  Name]],tblSchMLookup[[#This Row],[Alloc4FUNC]])","v":"4099300SCHMDT1051412AFUDC - EquitySNP"},4099300,{"$f":"IF(tblSchMLookup[[#This Row],[Primary Account]]=4098200,\"SCHMAP\",IF(tblSchMLookup[[#This Row],[Primary Account]]=4098300,\"SCHMAT\",IF(tblSchMLookup[[#This Row],[Primary Account]]=4099200,\"SCHMDP\",IF(tblSchMLookup[[#This Row],[Primary Account]]=4099300,\"SCHMDT\"))))","v":"SCHMDT"},1051412,"AFUDC - Equity","SNP",null,{"$f":"IF(OR(tblSchMLookup[[#This Row],[Alloc]]=\"IDU\",tblSchMLookup[[#This Row],[Alloc]]=\"OR\",tblSchMLookup[[#This Row],[Alloc]]=\"UT\",tblSchMLookup[[#This Row],[Alloc]]=\"WYU\",tblSchMLookup[[#This Row],[Alloc]]=\"WYP\",tblSchMLookup[[#This Row],[Alloc]]=\"CA\",tblSchMLookup[[#This Row],[Alloc]]=\"WA\"),\"SITUS\",tblSchMLookup[[#This Row],[Alloc]])","v":"SNP"},"PTD"]
[{"$f":"CONCATENATE(,tblSchMLookup[[#This Row],[Primary Account]],tblSchMLookup[[#This Row],[Primary Name]],tblSchMLookup[[#This Row],[Secondary Acct]],tblSchMLookup[[#This Row],[Secondary  Name]],tblSchMLookup[[#This Row],[Alloc4FUNC]])","v":"4099300SCHMDT1051411AFUDC - DEBTSNP"},4099300,{"$f":"IF(tblSchMLookup[[#This Row],[Primary Account]]=4098200,\"SCHMAP\",IF(tblSchMLookup[[#This Row],[Primary Account]]=4098300,\"SCHMAT\",IF(tblSchMLookup[[#This Row],[Primary Account]]=4099200,\"SCHMDP\",IF(tblSchMLookup[[#This Row],[Primary Account]]=4099300,\"SCHMDT\"))))","v":"SCHMDT"},1051411,"AFUDC - DEBT","SNP",null,{"$f":"IF(OR(tblSchMLookup[[#This Row],[Alloc]]=\"IDU\",tblSchMLookup[[#This Row],[Alloc]]=\"OR\",tblSchMLookup[[#This Row],[Alloc]]=\"UT\",tblSchMLookup[[#This Row],[Alloc]]=\"WYU\",tblSchMLookup[[#This Row],[Alloc]]=\"WYP\",tblSchMLookup[[#This Row],[Alloc]]=\"CA\",tblSchMLookup[[#This Row],[Alloc]]=\"WA\"),\"SITUS\",tblSchMLookup[[#This Row],[Alloc]])","v":"SNP"},"PTD"]
[{"$f":"CONCATENATE(,tblSchMLookup[[#This Row],[Primary Account]],tblSchMLookup[[#This Row],[Primary Name]],tblSchMLookup[[#This Row],[Secondary Acct]],tblSchMLookup[[#This Row],[Secondary  Name]],tblSchMLookup[[#This Row],[Alloc4FUNC]])","v":"4098300SCHMAT505125ACCRUED ROYALTIESSE"},4098300,{"$f":"IF(tblSchMLookup[[#This Row],[Primary Account]]=4098200,\"SCHMAP\",IF(tblSchMLookup[[#This Row],[Primary Account]]=4098300,\"SCHMAT\",IF(tblSchMLookup[[#This Row],[Primary Account]]=4099200,\"SCHMDP\",IF(tblSchMLookup[[#This Row],[Primary Account]]=4099300,\"SCHMDT\"))))","v":"SCHMAT"},505125,"ACCRUED ROYALTIES","SE",null,{"$f":"IF(OR(tblSchMLookup[[#This Row],[Alloc]]=\"IDU\",tblSchMLookup[[#This Row],[Alloc]]=\"OR\",tblSchMLookup[[#This Row],[Alloc]]=\"UT\",tblSchMLookup[[#This Row],[Alloc]]=\"WYU\",tblSchMLookup[[#This Row],[Alloc]]=\"WYP\",tblSchMLookup[[#This Row],[Alloc]]=\"CA\",tblSchMLookup[[#This Row],[Alloc]]=\"WA\"),\"SITUS\",tblSchMLookup[[#This Row],[Alloc]])","v":"SE"},"P"]
[{"$f":"CONCATENATE(,tblSchMLookup[[#This Row],[Primary Account]],tblSchMLookup[[#This Row],[Primary Name]],tblSchMLookup[[#This Row],[Secondary Acct]],tblSchMLookup[[#This Row],[Secondary  Name]],tblSchMLookup[[#This Row],[Alloc4FUNC]])","v":"4098300SCHMAT505700Accrued Retention BonusSO"},4098300,{"$f":"IF(tblSchMLookup[[#This Row],[Primary Account]]=4098200,\"SCHMAP\",IF(tblSchMLookup[[#This Row],[Primary Account]]=4098300,\"SCHMAT\",IF(tblSchMLookup[[#This Row],[Primary Account]]=4099200,\"SCHMDP\",IF(tblSchMLookup[[#This Row],[Primary Account]]=4099300,\"SCHMDT\"))))","v":"SCHMAT"},505700,"Accrued Retention Bonus","SO",null,{"$f":"IF(OR(tblSchMLookup[[#This Row],[Alloc]]=\"IDU\",tblSchMLookup[[#This Row],[Alloc]]=\"OR\",tblSchMLookup[[#This Row],[Alloc]]=\"UT\",tblSchMLookup[[#This Row],[Alloc]]=\"WYU\",tblSchMLookup[[#This Row],[Alloc]]=\"WYP\",tblSchMLookup[[#This Row],[Alloc]]=\"CA\",tblSchMLookup[[#This Row],[Alloc]]=\"WA\"),\"SITUS\",tblSchMLookup[[#This Row],[Alloc]])","v":"SO"},"LABOR"]
[{"$f":"CONCATENATE(,tblSchMLookup[[#This Row],[Primary Account]],tblSchMLookup[[#This Row],[Primary Name]],tblSchMLookup[[#This Row],[Secondary Acct]],tblSchMLookup[[#This Row],[Secondary  Name]],tblSchMLookup[[#This Row],[Alloc4FUNC]])","v":"4099200SCHMDP6201002004 JCA-Qualified Prod Activities DeducSG"},4099200,{"$f":"IF(tblSchMLookup[[#This Row],[Primary Account]]=4098200,\"SCHMAP\",IF(tblSchMLookup[[#This Row],[Primary Account]]=4098300,\"SCHMAT\",IF(tblSchMLookup[[#This Row],[Primary Account]]=4099200,\"SCHMDP\",IF(tblSchMLookup[[#This Row],[Primary Account]]=4099300,\"SCHMDT\"))))","v":"SCHMDP"},620100,"2004 JCA-Qualified Prod Activities Deduc","SG",null,{"$f":"IF(OR(tblSchMLookup[[#This Row],[Alloc]]=\"IDU\",tblSchMLookup[[#This Row],[Alloc]]=\"OR\",tblSchMLookup[[#This Row],[Alloc]]=\"UT\",tblSchMLookup[[#This Row],[Alloc]]=\"WYU\",tblSchMLookup[[#This Row],[Alloc]]=\"WYP\",tblSchMLookup[[#This Row],[Alloc]]=\"CA\",tblSchMLookup[[#This Row],[Alloc]]=\"WA\"),\"SITUS\",tblSchMLookup[[#This Row],[Alloc]])","v":"SG"},"P"]
[{"$f":"CONCATENATE(,tblSchMLookup[[#This Row],[Primary Account]],tblSchMLookup[[#This Row],[Primary Name]],tblSchMLookup[[#This Row],[Secondary Acct]],tblSchMLookup[[#This Row],[Secondary  Name]],tblSchMLookup[[#This Row],[Alloc4FUNC]])","v":"4099300SCHMDT415933Reg Liability - Contra - Carbon DecommisSITUS"},4099300,{"$f":"IF(tblSchMLookup[[#This Row],[Primary Account]]=4098200,\"SCHMAP\",IF(tblSchMLookup[[#This Row],[Primary Account]]=4098300,\"SCHMAT\",IF(tblSchMLookup[[#This Row],[Primary Account]]=4099200,\"SCHMDP\",IF(tblSchMLookup[[#This Row],[Primary Account]]=4099300,\"SCHMDT\"))))","v":"SCHMDT"},415933,"Reg Liability - Contra - Carbon Decommis","IDU",null,{"$f":"IF(OR(tblSchMLookup[[#This Row],[Alloc]]=\"IDU\",tblSchMLookup[[#This Row],[Alloc]]=\"OR\",tblSchMLookup[[#This Row],[Alloc]]=\"UT\",tblSchMLookup[[#This Row],[Alloc]]=\"WYU\",tblSchMLookup[[#This Row],[Alloc]]=\"WYP\",tblSchMLookup[[#This Row],[Alloc]]=\"CA\",tblSchMLookup[[#This Row],[Alloc]]=\"WA\"),\"SITUS\",tblSchMLookup[[#This Row],[Alloc]])","v":"SITUS"},"P"]
[{"$f":"CONCATENATE(,tblSchMLookup[[#This Row],[Primary Account]],tblSchMLookup[[#This Row],[Primary Name]],tblSchMLookup[[#This Row],[Secondary Acct]],tblSchMLookup[[#This Row],[Secondary  Name]],tblSchMLookup[[#This Row],[Alloc4FUNC]])","v":"4099300SCHMDT415934Reg Liability - Contra - Carbon DecommisSITUS"},4099300,{"$f":"IF(tblSchMLookup[[#This Row],[Primary Account]]=4098200,\"SCHMAP\",IF(tblSchMLookup[[#This Row],[Primary Account]]=4098300,\"SCHMAT\",IF(tblSchMLookup[[#This Row],[Primary Account]]=4099200,\"SCHMDP\",IF(tblSchMLookup[[#This Row],[Primary Account]]=4099300,\"SCHMDT\"))))","v":"SCHMDT"},415934,"Reg Liability - Contra - Carbon Decommis","UT",null,{"$f":"IF(OR(tblSchMLookup[[#This Row],[Alloc]]=\"IDU\",tblSchMLookup[[#This Row],[Alloc]]=\"OR\",tblSchMLookup[[#This Row],[Alloc]]=\"UT\",tblSchMLookup[[#This Row],[Alloc]]=\"WYU\",tblSchMLookup[[#This Row],[Alloc]]=\"WYP\",tblSchMLookup[[#This Row],[Alloc]]=\"CA\",tblSchMLookup[[#This Row],[Alloc]]=\"WA\"),\"SITUS\",tblSchMLookup[[#This Row],[Alloc]])","v":"SITUS"},"P"]
[{"$f":"CONCATENATE(,tblSchMLookup[[#This Row],[Primary Account]],tblSchMLookup[[#This Row],[Primary Name]],tblSchMLookup[[#This Row],[Secondary Acct]],tblSchMLookup[[#This Row],[Secondary  Name]],tblSchMLookup[[#This Row],[Alloc4FUNC]])","v":"4099300SCHMDT415431Reg Asset - WA Transportation ElectrificOTHER"},4099300,{"$f":"IF(tblSchMLookup[[#This Row],[Primary Account]]=4098200,\"SCHMAP\",IF(tblSchMLookup[[#This Row],[Primary Account]]=4098300,\"SCHMAT\",IF(tblSchMLookup[[#This Row],[Primary Account]]=4099200,\"SCHMDP\",IF(tblSchMLookup[[#This Row],[Primary Account]]=4099300,\"SCHMDT\"))))","v":"SCHMDT"},415431,"Reg Asset - WA Transportation Electrific","OTHER",null,{"$f":"IF(OR(tblSchMLookup[[#This Row],[Alloc]]=\"IDU\",tblSchMLookup[[#This Row],[Alloc]]=\"OR\",tblSchMLookup[[#This Row],[Alloc]]=\"UT\",tblSchMLookup[[#This Row],[Alloc]]=\"WYU\",tblSchMLookup[[#This Row],[Alloc]]=\"WYP\",tblSchMLookup[[#This Row],[Alloc]]=\"CA\",tblSchMLookup[[#This Row],[Alloc]]=\"WA\"),\"SITUS\",tblSchMLookup[[#This Row],[Alloc]])","v":"OTHER"},"PTD"]
[{"$f":"CONCATENATE(,tblSchMLookup[[#This Row],[Primary Account]],tblSchMLookup[[#This Row],[Primary Name]],tblSchMLookup[[#This Row],[Secondary Acct]],tblSchMLookup[[#This Row],[Secondary  Name]],tblSchMLookup[[#This Row],[Alloc4FUNC]])","v":"4099300SCHMDT415720Reg Asset - Community Solar - OROTHER"},4099300,{"$f":"IF(tblSchMLookup[[#This Row],[Primary Account]]=4098200,\"SCHMAP\",IF(tblSchMLookup[[#This Row],[Primary Account]]=4098300,\"SCHMAT\",IF(tblSchMLookup[[#This Row],[Primary Account]]=4099200,\"SCHMDP\",IF(tblSchMLookup[[#This Row],[Primary Account]]=4099300,\"SCHMDT\"))))","v":"SCHMDT"},415720,"Reg Asset - Community Solar - OR","OTHER",null,{"$f":"IF(OR(tblSchMLookup[[#This Row],[Alloc]]=\"IDU\",tblSchMLookup[[#This Row],[Alloc]]=\"OR\",tblSchMLookup[[#This Row],[Alloc]]=\"UT\",tblSchMLookup[[#This Row],[Alloc]]=\"WYU\",tblSchMLookup[[#This Row],[Alloc]]=\"WYP\",tblSchMLookup[[#This Row],[Alloc]]=\"CA\",tblSchMLookup[[#This Row],[Alloc]]=\"WA\"),\"SITUS\",tblSchMLookup[[#This Row],[Alloc]])","v":"OTHER"},"P"]
[{"$f":"CONCATENATE(,tblSchMLookup[[#This Row],[Primary Account]],tblSchMLookup[[#This Row],[Primary Name]],tblSchMLookup[[#This Row],[Secondary Acct]],tblSchMLookup[[#This Row],[Secondary  Name]],tblSchMLookup[[#This Row],[Alloc4FUNC]])","v":"4098300SCHMAT415876Deferred Excess Net PowerCosts - OROTHER"},4098300,{"$f":"IF(tblSchMLookup[[#This Row],[Primary Account]]=4098200,\"SCHMAP\",IF(tblSchMLookup[[#This Row],[Primary Account]]=4098300,\"SCHMAT\",IF(tblSchMLookup[[#This Row],[Primary Account]]=4099200,\"SCHMDP\",IF(tblSchMLookup[[#This Row],[Primary Account]]=4099300,\"SCHMDT\"))))","v":"SCHMAT"},415876,"Deferred Excess Net PowerCosts - OR","OTHER",null,{"$f":"IF(OR(tblSchMLookup[[#This Row],[Alloc]]=\"IDU\",tblSchMLookup[[#This Row],[Alloc]]=\"OR\",tblSchMLookup[[#This Row],[Alloc]]=\"UT\",tblSchMLookup[[#This Row],[Alloc]]=\"WYU\",tblSchMLookup[[#This Row],[Alloc]]=\"WYP\",tblSchMLookup[[#This Row],[Alloc]]=\"CA\",tblSchMLookup[[#This Row],[Alloc]]=\"WA\"),\"SITUS\",tblSchMLookup[[#This Row],[Alloc]])","v":"OTHER"},"P"]
[{"$f":"CONCATENATE(,tblSchMLookup[[#This Row],[Primary Account]],tblSchMLookup[[#This Row],[Primary Name]],tblSchMLookup[[#This Row],[Secondary Acct]],tblSchMLookup[[#This Row],[Secondary  Name]],tblSchMLookup[[#This Row],[Alloc4FUNC]])","v":"4098300SCHMAT415430Reg Asset - CA - Transportation  ElectriOTHER"},4098300,{"$f":"IF(tblSchMLookup[[#This Row],[Primary Account]]=4098200,\"SCHMAP\",IF(tblSchMLookup[[#This Row],[Primary Account]]=4098300,\"SCHMAT\",IF(tblSchMLookup[[#This Row],[Primary Account]]=4099200,\"SCHMDP\",IF(tblSchMLookup[[#This Row],[Primary Account]]=4099300,\"SCHMDT\"))))","v":"SCHMAT"},415430,"Reg Asset - CA - Transportation  Electri","OTHER",null,{"$f":"IF(OR(tblSchMLookup[[#This Row],[Alloc]]=\"IDU\",tblSchMLookup[[#This Row],[Alloc]]=\"OR\",tblSchMLookup[[#This Row],[Alloc]]=\"UT\",tblSchMLookup[[#This Row],[Alloc]]=\"WYU\",tblSchMLookup[[#This Row],[Alloc]]=\"WYP\",tblSchMLookup[[#This Row],[Alloc]]=\"CA\",tblSchMLookup[[#This Row],[Alloc]]=\"WA\"),\"SITUS\",tblSchMLookup[[#This Row],[Alloc]])","v":"OTHER"},"PTD"]
[{"$f":"CONCATENATE(,tblSchMLookup[[#This Row],[Primary Account]],tblSchMLookup[[#This Row],[Primary Name]],tblSchMLookup[[#This Row],[Secondary Acct]],tblSchMLookup[[#This Row],[Secondary  Name]],tblSchMLookup[[#This Row],[Alloc4FUNC]])","v":"4099300SCHMDT415200REG ASSET - OR TRANSPORTATION ELECTRIFICOTHER"},4099300,{"$f":"IF(tblSchMLookup[[#This Row],[Primary Account]]=4098200,\"SCHMAP\",IF(tblSchMLookup[[#This Row],[Primary Account]]=4098300,\"SCHMAT\",IF(tblSchMLookup[[#This Row],[Primary Account]]=4099200,\"SCHMDP\",IF(tblSchMLookup[[#This Row],[Primary Account]]=4099300,\"SCHMDT\"))))","v":"SCHMDT"},415200,"REG ASSET - OR TRANSPORTATION ELECTRIFIC","OTHER",null,{"$f":"IF(OR(tblSchMLookup[[#This Row],[Alloc]]=\"IDU\",tblSchMLookup[[#This Row],[Alloc]]=\"OR\",tblSchMLookup[[#This Row],[Alloc]]=\"UT\",tblSchMLookup[[#This Row],[Alloc]]=\"WYU\",tblSchMLookup[[#This Row],[Alloc]]=\"WYP\",tblSchMLookup[[#This Row],[Alloc]]=\"CA\",tblSchMLookup[[#This Row],[Alloc]]=\"WA\"),\"SITUS\",tblSchMLookup[[#This Row],[Alloc]])","v":"OTHER"},"PTD"]
[{"$f":"CONCATENATE(,tblSchMLookup[[#This Row],[Primary Account]],tblSchMLookup[[#This Row],[Primary Name]],tblSchMLookup[[#This Row],[Secondary Acct]],tblSchMLookup[[#This Row],[Secondary  Name]],tblSchMLookup[[#This Row],[Alloc4FUNC]])","v":"4098200SCHMAP130755Nondeductible Parking CostsSO"},4098200,{"$f":"IF(tblSchMLookup[[#This Row],[Primary Account]]=4098200,\"SCHMAP\",IF(tblSchMLookup[[#This Row],[Primary Account]]=4098300,\"SCHMAT\",IF(tblSchMLookup[[#This Row],[Primary Account]]=4099200,\"SCHMDP\",IF(tblSchMLookup[[#This Row],[Primary Account]]=4099300,\"SCHMDT\"))))","v":"SCHMAP"},130755,"Nondeductible Parking Costs","SO",null,{"$f":"IF(OR(tblSchMLookup[[#This Row],[Alloc]]=\"IDU\",tblSchMLookup[[#This Row],[Alloc]]=\"OR\",tblSchMLookup[[#This Row],[Alloc]]=\"UT\",tblSchMLookup[[#This Row],[Alloc]]=\"WYU\",tblSchMLookup[[#This Row],[Alloc]]=\"WYP\",tblSchMLookup[[#This Row],[Alloc]]=\"CA\",tblSchMLookup[[#This Row],[Alloc]]=\"WA\"),\"SITUS\",tblSchMLookup[[#This Row],[Alloc]])","v":"SO"},"LABOR"]
[{"$f":"CONCATENATE(,tblSchMLookup[[#This Row],[Primary Account]],tblSchMLookup[[#This Row],[Primary Name]],tblSchMLookup[[#This Row],[Secondary Acct]],tblSchMLookup[[#This Row],[Secondary  Name]],tblSchMLookup[[#This Row],[Alloc4FUNC]])","v":"4099300SCHMDT425100Deferred Regulatory Expense-IDUSITUS"},4099300,{"$f":"IF(tblSchMLookup[[#This Row],[Primary Account]]=4098200,\"SCHMAP\",IF(tblSchMLookup[[#This Row],[Primary Account]]=4098300,\"SCHMAT\",IF(tblSchMLookup[[#This Row],[Primary Account]]=4099200,\"SCHMDP\",IF(tblSchMLookup[[#This Row],[Primary Account]]=4099300,\"SCHMDT\"))))","v":"SCHMDT"},425100,"Deferred Regulatory Expense-IDU","IDU",null,{"$f":"IF(OR(tblSchMLookup[[#This Row],[Alloc]]=\"IDU\",tblSchMLookup[[#This Row],[Alloc]]=\"OR\",tblSchMLookup[[#This Row],[Alloc]]=\"UT\",tblSchMLookup[[#This Row],[Alloc]]=\"WYU\",tblSchMLookup[[#This Row],[Alloc]]=\"WYP\",tblSchMLookup[[#This Row],[Alloc]]=\"CA\",tblSchMLookup[[#This Row],[Alloc]]=\"WA\"),\"SITUS\",tblSchMLookup[[#This Row],[Alloc]])","v":"SITUS"},"P"]
[null,null,null,null,null,null,{"$f":"SUBTOTAL(109,tblSchMLookup[Column1])","v":0}]

{"sheet":"REGASSETS June19data","index":22,"n_rows":1576,"n_cols":10,"rows_kept":1576,"cut":false,"hidden":false,"merged":[]}
["Concat","Primary Account","Primary Name","Secondary Acct","Secondary  Name","Alloc","Total ($000)","Alloc4FUNC","FUNC","Investigate?"]
[{"$f":"CONCATENATE(tblREGASSJune19[[#This Row],[Primary Account]],tblREGASSJune19[[#This Row],[Primary Name]],tblREGASSJune19[[#This Row],[Secondary Acct]],tblREGASSJune19[[#This Row],[Secondary  Name]],tblREGASSJune19[[#This Row],[Alloc4FUNC]])","v":"1823700OTH REGA-ENERGY WEST120099Contra M&S - Deer Creek Mine M&SSE"},1823700,"OTH REGA-ENERGY WEST",120099,"Contra M&S - Deer Creek Mine M&S","SE",0,{"$f":"IF(OR(tblREGASSJune19[[#This Row],[Alloc]]=\"IDU\",tblREGASSJune19[[#This Row],[Alloc]]=\"OR\",tblREGASSJune19[[#This Row],[Alloc]]=\"UT\",tblREGASSJune19[[#This Row],[Alloc]]=\"WYU\",tblREGASSJune19[[#This Row],[Alloc]]=\"WYP\",tblREGASSJune19[[#This Row],[Alloc]]=\"CA\",tblREGASSJune19[[#This Row],[Alloc]]=\"WA\"),\"SITUS\",tblREGASSJune19[[#This Row],[Alloc]])","v":"SE"},{"$f":"INDEX(tblREGASSLookup[FUNC],MATCH(tblREGASSJune19[[#This Row],[Concat]],tblREGASSLookup[Concat],0))","v":{"$error":"#N/A"}},{"$f":"IF(tblREGASSJune19[[#This Row],[Total ($000)]]=0,\"NO\",IF(ISNA(tblREGASSJune19[[#This Row],[FUNC]]),\"YES\",IF(_xlfn.ISFORMULA(tblREGASSJune19[[#This Row],[FUNC]]),\"NO\",\"YES\")))","v":"NO"}]
[{"$f":"CONCATENATE(tblREGASSJune19[[#This Row],[Primary Account]],tblREGASSJune19[[#This Row],[Primary Name]],tblREGASSJune19[[#This Row],[Secondary Acct]],tblREGASSJune19[[#This Row],[Secondary  Name]],tblREGASSJune19[[#This Row],[Alloc4FUNC]])","v":"1823700OTH REGA-ENERGY WEST132929Contra Ppd - Deer Creek Ppd RoyaltiesSE"},1823700,"OTH REGA-ENERGY WEST",132929,"Contra Ppd - Deer Creek Ppd Royalties","SE",0,{"$f":"IF(OR(tblREGASSJune19[[#This Row],[Alloc]]=\"IDU\",tblREGASSJune19[[#This Row],[Alloc]]=\"OR\",tblREGASSJune19[[#This Row],[Alloc]]=\"UT\",tblREGASSJune19[[#This Row],[Alloc]]=\"WYU\",tblREGASSJune19[[#This Row],[Alloc]]=\"WYP\",tblREGASSJune19[[#This Row],[Alloc]]=\"CA\",tblREGASSJune19[[#This Row],[Alloc]]=\"WA\"),\"SITUS\",tblREGASSJune19[[#This Row],[Alloc]])","v":"SE"},{"$f":"INDEX(tblREGASSLookup[FUNC],MATCH(tblREGASSJune19[[#This Row],[Concat]],tblREGASSLookup[Concat],0))","v":{"$error":"#N/A"}},{"$f":"IF(tblREGASSJune19[[#This Row],[Total ($000)]]=0,\"NO\",IF(ISNA(tblREGASSJune19[[#This Row],[FUNC]]),\"YES\",IF(_xlfn.ISFORMULA(tblREGASSJune19[[#This Row],[FUNC]]),\"NO\",\"YES\")))","v":"NO"}]
[{"$f":"CONCATENATE(tblREGASSJune19[[#This Row],[Primary Account]],tblREGASSJune19[[#This Row],[Primary Name]],tblREGASSJune19[[#This Row],[Secondary Acct]],tblREGASSJune19[[#This Row],[Secondary  Name]],tblREGASSJune19[[#This Row],[Alloc4FUNC]])","v":"1823700OTH REGA-ENERGY WEST140218Contra PP&E - Deer Creek EPISSE"},1823700,"OTH REGA-ENERGY WEST",140218,"Contra PP&E - Deer Creek EPIS","SE",0,{"$f":"IF(OR(tblREGASSJune19[[#This Row],[Alloc]]=\"IDU\",tblREGASSJune19[[#This Row],[Alloc]]=\"OR\",tblREGASSJune19[[#This Row],[Alloc]]=\"UT\",tblREGASSJune19[[#This Row],[Alloc]]=\"WYU\",tblREGASSJune19[[#This Row],[Alloc]]=\"WYP\",tblREGASSJune19[[#This Row],[Alloc]]=\"CA\",tblREGASSJune19[[#This Row],[Alloc]]=\"WA\"),\"SITUS\",tblREGASSJune19[[#This Row],[Alloc]])","v":"SE"},{"$f":"INDEX(tblREGASSLookup[FUNC],MATCH(tblREGASSJune19[[#This Row],[Concat]],tblREGASSLookup[Concat],0))","v":{"$error":"#N/A"}},{"$f":"IF(tblREGASSJune19[[#This Row],[Total ($000)]]=0,\"NO\",IF(ISNA(tblREGASSJune19[[#This Row],[FUNC]]),\"YES\",IF(_xlfn.ISFORMULA(tblREGASSJune19[[#This Row],[FUNC]]),\"NO\",\"YES\")))","v":"NO"}]
[{"$f":"CONCATENATE(tblREGASSJune19[[#This Row],[Primary Account]],tblREGASSJune19[[#This Row],[Primary Name]],tblREGASSJune19[[#This Row],[Secondary Acct]],tblREGASSJune19[[#This Row],[Secondary  Name]],tblREGASSJune19[[#This Row],[Alloc4FUNC]])","v":"1823700OTH REGA-ENERGY WEST140258Contra PP&E - Deer Creek ARO AssetOTHER"},1823700,"OTH REGA-ENERGY WEST",140258,"Contra PP&E - Deer Creek ARO Asset","OTHER",0,{"$f":"IF(OR(tblREGASSJune19[[#This Row],[Alloc]]=\"IDU\",tblREGASSJune19[[#This Row],[Alloc]]=\"OR\",tblREGASSJune19[[#This Row],[Alloc]]=\"UT\",tblREGASSJune19[[#This Row],[Alloc]]=\"WYU\",tblREGASSJune19[[#This Row],[Alloc]]=\"WYP\",tblREGASSJune19[[#This Row],[Alloc]]=\"CA\",tblREGASSJune19[[#This Row],[Alloc]]=\"WA\"),\"SITUS\",tblREGASSJune19[[#This Row],[Alloc]])","v":"OTHER"},{"$f":"INDEX(tblREGASSLookup[FUNC],MATCH(tblREGASSJune19[[#This Row],[Concat]],tblREGASSLookup[Concat],0))","v":{"$error":"#N/A"}},{"$f":"IF(tblREGASSJune19[[#This Row],[Total ($000)]]=0,\"NO\",IF(ISNA(tblREGASSJune19[[#This Row],[FUNC]]),\"YES\",IF(_xlfn.ISFORMULA(tblREGASSJune19[[#This Row],[FUNC]]),\"NO\",\"YES\")))","v":"NO"}]
[{"$f":"CONCATENATE(tblREGASSJune19[[#This Row],[Primary Account]],tblREGASSJune19[[#This Row],[Primary Name]],tblREGASSJune19[[#This Row],[Secondary Acct]],tblREGASSJune19[[#This Row],[Secondary  Name]],tblREGASSJune19[[#This Row],[Alloc4FUNC]])","v":"1823700OTH REGA-ENERGY WEST145218Contra PP&E A/D - Deer Creek EPIS A/DSE"},1823700,"OTH REGA-ENERGY WEST",145218,"Contra PP&E A/D - Deer Creek EPIS A/D","SE",0,{"$f":"IF(OR(tblREGASSJune19[[#This Row],[Alloc]]=\"IDU\",tblREGASSJune19[[#This Row],[Alloc]]=\"OR\",tblREGASSJune19[[#This Row],[Alloc]]=\"UT\",tblREGASSJune19[[#This Row],[Alloc]]=\"WYU\",tblREGASSJune19[[#This Row],[Alloc]]=\"WYP\",tblREGASSJune19[[#This Row],[Alloc]]=\"CA\",tblREGASSJune19[[#This Row],[Alloc]]=\"WA\"),\"SITUS\",tblREGASSJune19[[#This Row],[Alloc]])","v":"SE"},{"$f":"INDEX(tblREGASSLookup[FUNC],MATCH(tblREGASSJune19[[#This Row],[Concat]],tblREGASSLookup[Concat],0))","v":{"$error":"#N/A"}},{"$f":"IF(tblREGASSJune19[[#This Row],[Total ($000)]]=0,\"NO\",IF(ISNA(tblREGASSJune19[[#This Row],[FUNC]]),\"YES\",IF(_xlfn.ISFORMULA(tblREGASSJune19[[#This Row],[FUNC]]),\"NO\",\"YES\")))","v":"NO"}]
[{"$f":"CONCATENATE(tblREGASSJune19[[#This Row],[Primary Account]],tblREGASSJune19[[#This Row],[Primary Name]],tblREGASSJune19[[#This Row],[Secondary Acct]],tblREGASSJune19[[#This Row],[Secondary  Name]],tblREGASSJune19[[#This Row],[Alloc4FUNC]])","v":"1823700OTH REGA-ENERGY WEST145258Contra PP&E A/D - Deer Creek ARO AssetOTHER"},1823700,"OTH REGA-ENERGY WEST",145258,"Contra PP&E A/D - Deer Creek ARO Asset","OTHER",0,{"$f":"IF(OR(tblREGASSJune19[[#This Row],[Alloc]]=\"IDU\",tblREGASSJune19[[#This Row],[Alloc]]=\"OR\",tblREGASSJune19[[#This Row],[Alloc]]=\"UT\",tblREGASSJune19[[#This Row],[Alloc]]=\"WYU\",tblREGASSJune19[[#This Row],[Alloc]]=\"WYP\",tblREGASSJune19[[#This Row],[Alloc]]=\"CA\",tblREGASSJune19[[#This Row],[Alloc]]=\"WA\"),\"SITUS\",tblREGASSJune19[[#This Row],[Alloc]])","v":"OTHER"},{"$f":"INDEX(tblREGASSLookup[FUNC],MATCH(tblREGASSJune19[[#This Row],[Concat]],tblREGASSLookup[Concat],0))","v":{"$error":"#N/A"}},{"$f":"IF(tblREGASSJune19[[#This Row],[Total ($000)]]=0,\"NO\",IF(ISNA(tblREGASSJune19[[#This Row],[FUNC]]),\"YES\",IF(_xlfn.ISFORMULA(tblREGASSJune19[[#This Row],[FUNC]]),\"NO\",\"YES\")))","v":"NO"}]
[{"$f":"CONCATENATE(tblREGASSJune19[[#This Row],[Primary Account]],tblREGASSJune19[[#This Row],[Primary Name]],tblREGASSJune19[[#This Row],[Secondary Acct]],tblREGASSJune19[[#This Row],[Secondary  Name]],tblREGASSJune19[[#This Row],[Alloc4FUNC]])","v":"1823700OTH REGA-ENERGY WEST146208Contra PP&E A/D - Deer Creek Intang A/DSE"},1823700,"OTH REGA-ENERGY WEST",146208,"Contra PP&E A/D - Deer Creek Intang A/D","SE",0,{"$f":"IF(OR(tblREGASSJune19[[#This Row],[Alloc]]=\"IDU\",tblREGASSJune19[[#This Row],[Alloc]]=\"OR\",tblREGASSJune19[[#This Row],[Alloc]]=\"UT\",tblREGASSJune19[[#This Row],[Alloc]]=\"WYU\",tblREGASSJune19[[#This Row],[Alloc]]=\"WYP\",tblREGASSJune19[[#This Row],[Alloc]]=\"CA\",tblREGASSJune19[[#This Row],[Alloc]]=\"WA\"),\"SITUS\",tblREGASSJune19[[#This Row],[Alloc]])","v":"SE"},{"$f":"INDEX(tblREGASSLookup[FUNC],MATCH(tblREGASSJune19[[#This Row],[Concat]],tblREGASSLookup[Concat],0))","v":{"$error":"#N/A"}},{"$f":"IF(tblREGASSJune19[[#This Row],[Total ($000)]]=0,\"NO\",IF(ISNA(tblREGASSJune19[[#This Row],[FUNC]]),\"YES\",IF(_xlfn.ISFORMULA(tblREGASSJune19[[#This Row],[FUNC]]),\"NO\",\"YES\")))","v":"NO"}]
[{"$f":"CONCATENATE(tblREGASSJune19[[#This Row],[Primary Account]],tblREGASSJune19[[#This Row],[Primary Name]],tblREGASSJune19[[#This Row],[Secondary Acct]],tblREGASSJune19[[#This Row],[Secondary  Name]],tblREGASSJune19[[#This Row],[Alloc4FUNC]])","v":"1823700OTH REGA-ENERGY WEST148908Contra PP&E - Deer Creek CWIPSE"},1823700,"OTH REGA-ENERGY WEST",148908,"Contra PP&E - Deer Creek CWIP","SE",0,{"$f":"IF(OR(tblREGASSJune19[[#This Row],[Alloc]]=\"IDU\",tblREGASSJune19[[#This Row],[Alloc]]=\"OR\",tblREGASSJune19[[#This Row],[Alloc]]=\"UT\",tblREGASSJune19[[#This Row],[Alloc]]=\"WYU\",tblREGASSJune19[[#This Row],[Alloc]]=\"WYP\",tblREGASSJune19[[#This Row],[Alloc]]=\"CA\",tblREGASSJune19[[#This Row],[Alloc]]=\"WA\"),\"SITUS\",tblREGASSJune19[[#This Row],[Alloc]])","v":"SE"},{"$f":"INDEX(tblREGASSLookup[FUNC],MATCH(tblREGASSJune19[[#This Row],[Concat]],tblREGASSLookup[Concat],0))","v":{"$error":"#N/A"}},{"$f":"IF(tblREGASSJune19[[#This Row],[Total ($000)]]=0,\"NO\",IF(ISNA(tblREGASSJune19[[#This Row],[FUNC]]),\"YES\",IF(_xlfn.ISFORMULA(tblREGASSJune19[[#This Row],[FUNC]]),\"NO\",\"YES\")))","v":"NO"}]
[{"$f":"CONCATENATE(tblREGASSJune19[[#This Row],[Primary Account]],tblREGASSJune19[[#This Row],[Primary Name]],tblREGASSJune19[[#This Row],[Secondary Acct]],tblREGASSJune19[[#This Row],[Secondary  Name]],tblREGASSJune19[[#This Row],[Alloc4FUNC]])","v":"1823700OTH REGA-ENERGY WEST184758Contra PP&E - Deer Creek PS&ISE"},1823700,"OTH REGA-ENERGY WEST",184758,"Contra PP&E - Deer Creek PS&I","SE",0,{"$f":"IF(OR(tblREGASSJune19[[#This Row],[Alloc]]=\"IDU\",tblREGASSJune19[[#This Row],[Alloc]]=\"OR\",tblREGASSJune19[[#This Row],[Alloc]]=\"UT\",tblREGASSJune19[[#This Row],[Alloc]]=\"WYU\",tblREGASSJune19[[#This Row],[Alloc]]=\"WYP\",tblREGASSJune19[[#This Row],[Alloc]]=\"CA\",tblREGASSJune19[[#This Row],[Alloc]]=\"WA\"),\"SITUS\",tblREGASSJune19[[#This Row],[Alloc]])","v":"SE"},{"$f":"INDEX(tblREGASSLookup[FUNC],MATCH(tblREGASSJune19[[#This Row],[Concat]],tblREGASSLookup[Concat],0))","v":{"$error":"#N/A"}},{"$f":"IF(tblREGASSJune19[[#This Row],[Total ($000)]]=0,\"NO\",IF(ISNA(tblREGASSJune19[[#This Row],[FUNC]]),\"YES\",IF(_xlfn.ISFORMULA(tblREGASSJune19[[#This Row],[FUNC]]),\"NO\",\"YES\")))","v":"NO"}]
[{"$f":"CONCATENATE(tblREGASSJune19[[#This Row],[Primary Account]],tblREGASSJune19[[#This Row],[Primary Name]],tblREGASSJune19[[#This Row],[Secondary Acct]],tblREGASSJune19[[#This Row],[Secondary  Name]],tblREGASSJune19[[#This Row],[Alloc4FUNC]])","v":"1823700OTH REGA-ENERGY WEST186801Reg Asset-Deer Creek-Elec Plt In SvcSE"},1823700,"OTH REGA-ENERGY WEST",186801,"Reg Asset-Deer Creek-Elec Plt In Svc","SE",69504.393113846105,{"$f":"IF(OR(tblREGASSJune19[[#This Row],[Alloc]]=\"IDU\",tblREGASSJune19[[#This Row],[Alloc]]=\"OR\",tblREGASSJune19[[#This Row],[Alloc]]=\"UT\",tblREGASSJune19[[#This Row],[Alloc]]=\"WYU\",tblREGASSJune19[[#This Row],[Alloc]]=\"WYP\",tblREGASSJune19[[#This Row],[Alloc]]=\"CA\",tblREGASSJune19[[#This Row],[Alloc]]=\"WA\"),\"SITUS\",tblREGASSJune19[[#This Row],[Alloc]])","v":"SE"},{"$f":"INDEX(tblREGASSLookup[FUNC],MATCH(tblREGASSJune19[[#This Row],[Concat]],tblREGASSLookup[Concat],0))","v":"P"},{"$f":"IF(tblREGASSJune19[[#This Row],[Total ($000)]]=0,\"NO\",IF(ISNA(tblREGASSJune19[[#This Row],[FUNC]]),\"YES\",IF(_xlfn.ISFORMULA(tblREGASSJune19[[#This Row],[FUNC]]),\"NO\",\"YES\")))","v":"NO"}]
[{"$f":"CONCATENATE(tblREGASSJune19[[#This Row],[Primary Account]],tblREGASSJune19[[#This Row],[Primary Name]],tblREGASSJune19[[#This Row],[Secondary Acct]],tblREGASSJune19[[#This Row],[Secondary  Name]],tblREGASSJune19[[#This Row],[Alloc4FUNC]])","v":"1823700OTH REGA-ENERGY WEST186802Reg Asset-Deer Creek-EPIS IntangiblesSE"},1823700,"OTH REGA-ENERGY WEST",186802,"Reg Asset-Deer Creek-EPIS Intangibles","SE",1077.694,{"$f":"IF(OR(tblREGASSJune19[[#This Row],[Alloc]]=\"IDU\",tblREGASSJune19[[#This Row],[Alloc]]=\"OR\",tblREGASSJune19[[#This Row],[Alloc]]=\"UT\",tblREGASSJune19[[#This Row],[Alloc]]=\"WYU\",tblREGASSJune19[[#This Row],[Alloc]]=\"WYP\",tblREGASSJune19[[#This Row],[Alloc]]=\"CA\",tblREGASSJune19[[#This Row],[Alloc]]=\"WA\"),\"SITUS\",tblREGASSJune19[[#This Row],[Alloc]])","v":"SE"},{"$f":"INDEX(tblREGASSLookup[FUNC],MATCH(tblREGASSJune19[[#This Row],[Concat]],tblREGASSLookup[Concat],0))","v":"P"},{"$f":"IF(tblREGASSJune19[[#This Row],[Total ($000)]]=0,\"NO\",IF(ISNA(tblREGASSJune19[[#This Row],[FUNC]]),\"YES\",IF(_xlfn.ISFORMULA(tblREGASSJune19[[#This Row],[FUNC]]),\"NO\",\"YES\")))","v":"NO"}]
[{"$f":"CONCATENATE(tblREGASSJune19[[#This Row],[Primary Account]],tblREGASSJune19[[#This Row],[Primary Name]],tblREGASSJune19[[#This Row],[Secondary Acct]],tblREGASSJune19[[#This Row],[Secondary  Name]],tblREGASSJune19[[#This Row],[Alloc4FUNC]])","v":"1823700OTH REGA-ENERGY WEST186805Reg Asset-Deer Creek-CWIPSE"},1823700,"OTH REGA-ENERGY WEST",186805,"Reg Asset-Deer Creek-CWIP","SE",3959.7890000000002,{"$f":"IF(OR(tblREGASSJune19[[#This Row],[Alloc]]=\"IDU\",tblREGASSJune19[[#This Row],[Alloc]]=\"OR\",tblREGASSJune19[[#This Row],[Alloc]]=\"UT\",tblREGASSJune19[[#This Row],[Alloc]]=\"WYU\",tblREGASSJune19[[#This Row],[Alloc]]=\"WYP\",tblREGASSJune19[[#This Row],[Alloc]]=\"CA\",tblREGASSJune19[[#This Row],[Alloc]]=\"WA\"),\"SITUS\",tblREGASSJune19[[#This Row],[Alloc]])","v":"SE"},{"$f":"INDEX(tblREGASSLookup[FUNC],MATCH(tblREGASSJune19[[#This Row],[Concat]],tblREGASSLookup[Concat],0))","v":"P"},{"$f":"IF(tblREGASSJune19[[#This Row],[Total ($000)]]=0,\"NO\",IF(ISNA(tblREGASSJune19[[#This Row],[FUNC]]),\"YES\",IF(_xlfn.ISFORMULA(tblREGASSJune19[[#This Row],[FUNC]]),\"NO\",\"YES\")))","v":"NO"}]
[{"$f":"CONCATENATE(tblREGASSJune19[[#This Row],[Primary Account]],tblREGASSJune19[[#This Row],[Primary Name]],tblREGASSJune19[[#This Row],[Secondary Acct]],tblREGASSJune19[[#This Row],[Secondary  Name]],tblREGASSJune19[[#This Row],[Alloc4FUNC]])","v":"1823700OTH REGA-ENERGY WEST186806Reg Asset-Deer Creek-PS&ISE"},1823700,"OTH REGA-ENERGY WEST",186806,"Reg Asset-Deer Creek-PS&I","SE",1614.21,{"$f":"IF(OR(tblREGASSJune19[[#This Row],[Alloc]]=\"IDU\",tblREGASSJune19[[#This Row],[Alloc]]=\"OR\",tblREGASSJune19[[#This Row],[Alloc]]=\"UT\",tblREGASSJune19[[#This Row],[Alloc]]=\"WYU\",tblREGASSJune19[[#This Row],[Alloc]]=\"WYP\",tblREGASSJune19[[#This Row],[Alloc]]=\"CA\",tblREGASSJune19[[#This Row],[Alloc]]=\"WA\"),\"SITUS\",tblREGASSJune19[[#This Row],[Alloc]])","v":"SE"},{"$f":"INDEX(tblREGASSLookup[FUNC],MATCH(tblREGASSJune19[[#This Row],[Concat]],tblREGASSLookup[Concat],0))","v":"P"},{"$f":"IF(tblREGASSJune19[[#This Row],[Total ($000)]]=0,\"NO\",IF(ISNA(tblREGASSJune19[[#This Row],[FUNC]]),\"YES\",IF(_xlfn.ISFORMULA(tblREGASSJune19[[#This Row],[FUNC]]),\"NO\",\"YES\")))","v":"NO"}]
[{"$f":"CONCATENATE(tblREGASSJune19[[#This Row],[Primary Account]],tblREGASSJune19[[#This Row],[Primary Name]],tblREGASSJune19[[#This Row],[Secondary Acct]],tblREGASSJune19[[#This Row],[Secondary  Name]],tblREGASSJune19[[#This Row],[Alloc4FUNC]])","v":"1823700OTH REGA-ENERGY WEST186811Reg Asset-Deer Creek Sale-EPISSE"},1823700,"OTH REGA-ENERGY WEST",186811,"Reg Asset-Deer Creek Sale-EPIS","SE",9902.2838800000009,{"$f":"IF(OR(tblREGASSJune19[[#This Row],[Alloc]]=\"IDU\",tblREGASSJune19[[#This Row],[Alloc]]=\"OR\",tblREGASSJune19[[#This Row],[Alloc]]=\"UT\",tblREGASSJune19[[#This Row],[Alloc]]=\"WYU\",tblREGASSJune19[[#This Row],[Alloc]]=\"WYP\",tblREGASSJune19[[#This Row],[Alloc]]=\"CA\",tblREGASSJune19[[#This Row],[Alloc]]=\"WA\"),\"SITUS\",tblREGASSJune19[[#This Row],[Alloc]])","v":"SE"},{"$f":"INDEX(tblREGASSLookup[FUNC],MATCH(tblREGASSJune19[[#This Row],[Concat]],tblREGASSLookup[Concat],0))","v":"P"},{"$f":"IF(tblREGASSJune19[[#This Row],[Total ($000)]]=0,\"NO\",IF(ISNA(tblREGASSJune19[[#This Row],[FUNC]]),\"YES\",IF(_xlfn.ISFORMULA(tblREGASSJune19[[#This Row],[FUNC]]),\"NO\",\"YES\")))","v":"NO"}]
[{"$f":"CONCATENATE(tblREGASSJune19[[#This Row],[Primary Account]],tblREGASSJune19[[#This Row],[Primary Name]],tblREGASSJune19[[#This Row],[Secondary Acct]],tblREGASSJune19[[#This Row],[Secondary  Name]],tblREGASSJune19[[#This Row],[Alloc4FUNC]])","v":"1823700OTH REGA-ENERGY WEST186812Contra RA-DCM PP&E-OR-To G/L Bal AcctSITUS"},1823700,"OTH REGA-ENERGY WEST",186812,"Contra RA-DCM PP&E-OR-To G/L Bal Acct","OR",265.51221692307701,{"$f":"IF(OR(tblREGASSJune19[[#This Row],[Alloc]]=\"IDU\",tblREGASSJune19[[#This Row],[Alloc]]=\"OR\",tblREGASSJune19[[#This Row],[Alloc]]=\"UT\",tblREGASSJune19[[#This Row],[Alloc]]=\"WYU\",tblREGASSJune19[[#This Row],[Alloc]]=\"WYP\",tblREGASSJune19[[#This Row],[Alloc]]=\"CA\",tblREGASSJune19[[#This Row],[Alloc]]=\"WA\"),\"SITUS\",tblREGASSJune19[[#This Row],[Alloc]])","v":"SITUS"},{"$f":"INDEX(tblREGASSLookup[FUNC],MATCH(tblREGASSJune19[[#This Row],[Concat]],tblREGASSLookup[Concat],0))","v":"P"},{"$f":"IF(tblREGASSJune19[[#This Row],[Total ($000)]]=0,\"NO\",IF(ISNA(tblREGASSJune19[[#This Row],[FUNC]]),\"YES\",IF(_xlfn.ISFORMULA(tblREGASSJune19[[#This Row],[FUNC]]),\"NO\",\"YES\")))","v":"NO"}]
[{"$f":"CONCATENATE(tblREGASSJune19[[#This Row],[Primary Account]],tblREGASSJune19[[#This Row],[Primary Name]],tblREGASSJune19[[#This Row],[Secondary Acct]],tblREGASSJune19[[#This Row],[Secondary  Name]],tblREGASSJune19[[#This Row],[Alloc4FUNC]])","v":"1823700OTH REGA-ENERGY WEST186815Reg Asset-Deer Creek Sale-CWIPSE"},1823700,"OTH REGA-ENERGY WEST",186815,"Reg Asset-Deer Creek Sale-CWIP","SE",93.57911,{"$f":"IF(OR(tblREGASSJune19[[#This Row],[Alloc]]=\"IDU\",tblREGASSJune19[[#This Row],[Alloc]]=\"OR\",tblREGASSJune19[[#This Row],[Alloc]]=\"UT\",tblREGASSJune19[[#This Row],[Alloc]]=\"WYU\",tblREGASSJune19[[#This Row],[Alloc]]=\"WYP\",tblREGASSJune19[[#This Row],[Alloc]]=\"CA\",tblREGASSJune19[[#This Row],[Alloc]]=\"WA\"),\"SITUS\",tblREGASSJune19[[#This Row],[Alloc]])","v":"SE"},{"$f":"INDEX(tblREGASSLookup[FUNC],MATCH(tblREGASSJune19[[#This Row],[Concat]],tblREGASSLookup[Concat],0))","v":"P"},{"$f":"IF(tblREGASSJune19[[#This Row],[Total ($000)]]=0,\"NO\",IF(ISNA(tblREGASSJune19[[#This Row],[FUNC]]),\"YES\",IF(_xlfn.ISFORMULA(tblREGASSJune19[[#This Row],[FUNC]]),\"NO\",\"YES\")))","v":"NO"}]
[{"$f":"CONCATENATE(tblREGASSJune19[[#This Row],[Primary Account]],tblREGASSJune19[[#This Row],[Primary Name]],tblREGASSJune19[[#This Row],[Secondary Acct]],tblREGASSJune19[[#This Row],[Secondary  Name]],tblREGASSJune19[[#This Row],[Alloc4FUNC]])","v":"1823700OTH REGA-ENERGY WEST186816Contra RA-DCM PP&E-To Joint OwnersSE"},1823700,"OTH REGA-ENERGY WEST",186816,"Contra RA-DCM PP&E-To Joint Owners","SE",-4630.1137130769202,{"$f":"IF(OR(tblREGASSJune19[[#This Row],[Alloc]]=\"IDU\",tblREGASSJune19[[#This Row],[Alloc]]=\"OR\",tblREGASSJune19[[#This Row],[Alloc]]=\"UT\",tblREGASSJune19[[#This Row],[Alloc]]=\"WYU\",tblREGASSJune19[[#This Row],[Alloc]]=\"WYP\",tblREGASSJune19[[#This Row],[Alloc]]=\"CA\",tblREGASSJune19[[#This Row],[Alloc]]=\"WA\"),\"SITUS\",tblREGASSJune19[[#This Row],[Alloc]])","v":"SE"},{"$f":"INDEX(tblREGASSLookup[FUNC],MATCH(tblREGASSJune19[[#This Row],[Concat]],tblREGASSLookup[Concat],0))","v":"P"},{"$f":"IF(tblREGASSJune19[[#This Row],[Total ($000)]]=0,\"NO\",IF(ISNA(tblREGASSJune19[[#This Row],[FUNC]]),\"YES\",IF(_xlfn.ISFORMULA(tblREGASSJune19[[#This Row],[FUNC]]),\"NO\",\"YES\")))","v":"NO"}]
[{"$f":"CONCATENATE(tblREGASSJune19[[#This Row],[Primary Account]],tblREGASSJune19[[#This Row],[Primary Name]],tblREGASSJune19[[#This Row],[Secondary Acct]],tblREGASSJune19[[#This Row],[Secondary  Name]],tblREGASSJune19[[#This Row],[Alloc4FUNC]])","v":"1823700OTH REGA-ENERGY WEST186817Contra RA-DCM PP&E-Amortz & Oth AdjsSITUS"},1823700,"OTH REGA-ENERGY WEST",186817,"Contra RA-DCM PP&E-Amortz & Oth Adjs","OR",-1275.4406661538501,{"$f":"IF(OR(tblREGASSJune19[[#This Row],[Alloc]]=\"IDU\",tblREGASSJune19[[#This Row],[Alloc]]=\"OR\",tblREGASSJune19[[#This Row],[Alloc]]=\"UT\",tblREGASSJune19[[#This Row],[Alloc]]=\"WYU\",tblREGASSJune19[[#This Row],[Alloc]]=\"WYP\",tblREGASSJune19[[#This Row],[Alloc]]=\"CA\",tblREGASSJune19[[#This Row],[Alloc]]=\"WA\"),\"SITUS\",tblREGASSJune19[[#This Row],[Alloc]])","v":"SITUS"},{"$f":"INDEX(tblREGASSLookup[FUNC],MATCH(tblREGASSJune19[[#This Row],[Concat]],tblREGASSLookup[Concat],0))","v":"P"},{"$f":"IF(tblREGASSJune19[[#This Row],[Total ($000)]]=0,\"NO\",IF(ISNA(tblREGASSJune19[[#This Row],[FUNC]]),\"YES\",IF(_xlfn.ISFORMULA(tblREGASSJune19[[#This Row],[FUNC]]),\"NO\",\"YES\")))","v":"NO"}]
[{"$f":"CONCATENATE(tblREGASSJune19[[#This Row],[Primary Account]],tblREGASSJune19[[#This Row],[Primary Name]],tblREGASSJune19[[#This Row],[Secondary Acct]],tblREGASSJune19[[#This Row],[Secondary  Name]],tblREGASSJune19[[#This Row],[Alloc4FUNC]])","v":"1823700OTH REGA-ENERGY WEST186817Contra RA-DCM PP&E-Amortz & Oth AdjsSE"},1823700,"OTH REGA-ENERGY WEST",186817,"Contra RA-DCM PP&E-Amortz & Oth Adjs","SE",-77240.593688461493,{"$f":"IF(OR(tblREGASSJune19[[#This Row],[Alloc]]=\"IDU\",tblREGASSJune19[[#This Row],[Alloc]]=\"OR\",tblREGASSJune19[[#This Row],[Alloc]]=\"UT\",tblREGASSJune19[[#This Row],[Alloc]]=\"WYU\",tblREGASSJune19[[#This Row],[Alloc]]=\"WYP\",tblREGASSJune19[[#This Row],[Alloc]]=\"CA\",tblREGASSJune19[[#This Row],[Alloc]]=\"WA\"),\"SITUS\",tblREGASSJune19[[#This Row],[Alloc]])","v":"SE"},{"$f":"INDEX(tblREGASSLookup[FUNC],MATCH(tblREGASSJune19[[#This Row],[Concat]],tblREGASSLookup[Concat],0))","v":"P"},{"$f":"IF(tblREGASSJune19[[#This Row],[Total ($000)]]=0,\"NO\",IF(ISNA(tblREGASSJune19[[#This Row],[FUNC]]),\"YES\",IF(_xlfn.ISFORMULA(tblREGASSJune19[[#This Row],[FUNC]]),\"NO\",\"YES\")))","v":"NO"}]
[{"$f":"CONCATENATE(tblREGASSJune19[[#This Row],[Primary Account]],tblREGASSJune19[[#This Row],[Primary Name]],tblREGASSJune19[[#This Row],[Secondary Acct]],tblREGASSJune19[[#This Row],[Secondary  Name]],tblREGASSJune19[[#This Row],[Alloc4FUNC]])","v":"1823700OTH REGA-ENERGY WEST186817Contra RA-DCM PP&E-Amortz & Oth AdjsSITUS"},1823700,"OTH REGA-ENERGY WEST",186817,"Contra RA-DCM PP&E-Amortz & Oth Adjs","CA",1184.7733723076899,{"$f":"IF(OR(tblREGASSJune19[[#This Row],[Alloc]]=\"IDU\",tblREGASSJune19[[#This Row],[Alloc]]=\"OR\",tblREGASSJune19[[#This Row],[Alloc]]=\"UT\",tblREGASSJune19[[#This Row],[Alloc]]=\"WYU\",tblREGASSJune19[[#This Row],[Alloc]]=\"WYP\",tblREGASSJune19[[#This Row],[Alloc]]=\"CA\",tblREGASSJune19[[#This Row],[Alloc]]=\"WA\"),\"SITUS\",tblREGASSJune19[[#This Row],[Alloc]])","v":"SITUS"},{"$f":"INDEX(tblREGASSLookup[FUNC],MATCH(tblREGASSJune19[[#This Row],[Concat]],tblREGASSLookup[Concat],0))","v":"P"},{"$f":"IF(tblREGASSJune19[[#This Row],[Total ($000)]]=0,\"NO\",IF(ISNA(tblREGASSJune19[[#This Row],[FUNC]]),\"YES\",IF(_xlfn.ISFORMULA(tblREGASSJune19[[#This Row],[FUNC]]),\"NO\",\"YES\")))","v":"NO"}]
[{"$f":"CONCATENATE(tblREGASSJune19[[#This Row],[Primary Account]],tblREGASSJune19[[#This Row],[Primary Name]],tblREGASSJune19[[#This Row],[Secondary Acct]],tblREGASSJune19[[#This Row],[Secondary  Name]],tblREGASSJune19[[#This Row],[Alloc4FUNC]])","v":"1823700OTH REGA-ENERGY WEST186817Contra RA-DCM PP&E-Amortz & Oth AdjsSITUS"},1823700,"OTH REGA-ENERGY WEST",186817,"Contra RA-DCM PP&E-Amortz & Oth Adjs","UT",276.376544615385,{"$f":"IF(OR(tblREGASSJune19[[#This Row],[Alloc]]=\"IDU\",tblREGASSJune19[[#This Row],[Alloc]]=\"OR\",tblREGASSJune19[[#This Row],[Alloc]]=\"UT\",tblREGASSJune19[[#This Row],[Alloc]]=\"WYU\",tblREGASSJune19[[#This Row],[Alloc]]=\"WYP\",tblREGASSJune19[[#This Row],[Alloc]]=\"CA\",tblREGASSJune19[[#This Row],[Alloc]]=\"WA\"),\"SITUS\",tblREGASSJune19[[#This Row],[Alloc]])","v":"SITUS"},{"$f":"INDEX(tblREGASSLookup[FUNC],MATCH(tblREGASSJune19[[#This Row],[Concat]],tblREGASSLookup[Concat],0))","v":"P"},{"$f":"IF(tblREGASSJune19[[#This Row],[Total ($000)]]=0,\"NO\",IF(ISNA(tblREGASSJune19[[#This Row],[FUNC]]),\"YES\",IF(_xlfn.ISFORMULA(tblREGASSJune19[[#This Row],[FUNC]]),\"NO\",\"YES\")))","v":"NO"}]
[{"$f":"CONCATENATE(tblREGASSJune19[[#This Row],[Primary Account]],tblREGASSJune19[[#This Row],[Primary Name]],tblREGASSJune19[[#This Row],[Secondary Acct]],tblREGASSJune19[[#This Row],[Secondary  Name]],tblREGASSJune19[[#This Row],[Alloc4FUNC]])","v":"1823700OTH REGA-ENERGY WEST186817Contra RA-DCM PP&E-Amortz & Oth AdjsSITUS"},1823700,"OTH REGA-ENERGY WEST",186817,"Contra RA-DCM PP&E-Amortz & Oth Adjs","WA",5314.0953930769201,{"$f":"IF(OR(tblREGASSJune19[[#This Row],[Alloc]]=\"IDU\",tblREGASSJune19[[#This Row],[Alloc]]=\"OR\",tblREGASSJune19[[#This Row],[Alloc]]=\"UT\",tblREGASSJune19[[#This Row],[Alloc]]=\"WYU\",tblREGASSJune19[[#This Row],[Alloc]]=\"WYP\",tblREGASSJune19[[#This Row],[Alloc]]=\"CA\",tblREGASSJune19[[#This Row],[Alloc]]=\"WA\"),\"SITUS\",tblREGASSJune19[[#This Row],[Alloc]])","v":"SITUS"},{"$f":"INDEX(tblREGASSLookup[FUNC],MATCH(tblREGASSJune19[[#This Row],[Concat]],tblREGASSLookup[Concat],0))","v":"P"},{"$f":"IF(tblREGASSJune19[[#This Row],[Total ($000)]]=0,\"NO\",IF(ISNA(tblREGASSJune19[[#This Row],[FUNC]]),\"YES\",IF(_xlfn.ISFORMULA(tblREGASSJune19[[#This Row],[FUNC]]),\"NO\",\"YES\")))","v":"NO"}]
[{"$f":"CONCATENATE(tblREGASSJune19[[#This Row],[Primary Account]],tblREGASSJune19[[#This Row],[Primary Name]],tblREGASSJune19[[#This Row],[Secondary Acct]],tblREGASSJune19[[#This Row],[Secondary  Name]],tblREGASSJune19[[#This Row],[Alloc4FUNC]])","v":"1823700OTH REGA-ENERGY WEST186817Contra RA-DCM PP&E-Amortz & Oth AdjsSITUS"},1823700,"OTH REGA-ENERGY WEST",186817,"Contra RA-DCM PP&E-Amortz & Oth Adjs","WYU",3184.2518399999999,{"$f":"IF(OR(tblREGASSJune19[[#This Row],[Alloc]]=\"IDU\",tblREGASSJune19[[#This Row],[Alloc]]=\"OR\",tblREGASSJune19[[#This Row],[Alloc]]=\"UT\",tblREGASSJune19[[#This Row],[Alloc]]=\"WYU\",tblREGASSJune19[[#This Row],[Alloc]]=\"WYP\",tblREGASSJune19[[#This Row],[Alloc]]=\"CA\",tblREGASSJune19[[#This Row],[Alloc]]=\"WA\"),\"SITUS\",tblREGASSJune19[[#This Row],[Alloc]])","v":"SITUS"},{"$f":"INDEX(tblREGASSLookup[FUNC],MATCH(tblREGASSJune19[[#This Row],[Concat]],tblREGASSLookup[Concat],0))","v":"P"},{"$f":"IF(tblREGASSJune19[[#This Row],[Total ($000)]]=0,\"NO\",IF(ISNA(tblREGASSJune19[[#This Row],[FUNC]]),\"YES\",IF(_xlfn.ISFORMULA(tblREGASSJune19[[#This Row],[FUNC]]),\"NO\",\"YES\")))","v":"NO"}]
[{"$f":"CONCATENATE(tblREGASSJune19[[#This Row],[Primary Account]],tblREGASSJune19[[#This Row],[Primary Name]],tblREGASSJune19[[#This Row],[Secondary Acct]],tblREGASSJune19[[#This Row],[Secondary  Name]],tblREGASSJune19[[#This Row],[Alloc4FUNC]])","v":"1823700OTH REGA-ENERGY WEST186820Reg Asset-Deer Creek Mine AROSE"},1823700,"OTH REGA-ENERGY WEST",186820,"Reg Asset-Deer Creek Mine ARO","SE",7678.3888784615401,{"$f":"IF(OR(tblREGASSJune19[[#This Row],[Alloc]]=\"IDU\",tblREGASSJune19[[#This Row],[Alloc]]=\"OR\",tblREGASSJune19[[#This Row],[Alloc]]=\"UT\",tblREGASSJune19[[#This Row],[Alloc]]=\"WYU\",tblREGASSJune19[[#This Row],[Alloc]]=\"WYP\",tblREGASSJune19[[#This Row],[Alloc]]=\"CA\",tblREGASSJune19[[#This Row],[Alloc]]=\"WA\"),\"SITUS\",tblREGASSJune19[[#This Row],[Alloc]])","v":"SE"},{"$f":"INDEX(tblREGASSLookup[FUNC],MATCH(tblREGASSJune19[[#This Row],[Concat]],tblREGASSLookup[Concat],0))","v":"P"},{"$f":"IF(tblREGASSJune19[[#This Row],[Total ($000)]]=0,\"NO\",IF(ISNA(tblREGASSJune19[[#This Row],[FUNC]]),\"YES\",IF(_xlfn.ISFORMULA(tblREGASSJune19[[#This Row],[FUNC]]),\"NO\",\"YES\")))","v":"NO"}]
[{"$f":"CONCATENATE(tblREGASSJune19[[#This Row],[Primary Account]],tblREGASSJune19[[#This Row],[Primary Name]],tblREGASSJune19[[#This Row],[Secondary Acct]],tblREGASSJune19[[#This Row],[Secondary  Name]],tblREGASSJune19[[#This Row],[Alloc4FUNC]])","v":"1823700OTH REGA-ENERGY WEST186825Reg Asset-Deer Creek Mine M&SSE"},1823700,"OTH REGA-ENERGY WEST",186825,"Reg Asset-Deer Creek Mine M&S","SE",4492.1922400000003,{"$f":"IF(OR(tblREGASSJune19[[#This Row],[Alloc]]=\"IDU\",tblREGASSJune19[[#This Row],[Alloc]]=\"OR\",tblREGASSJune19[[#This Row],[Alloc]]=\"UT\",tblREGASSJune19[[#This Row],[Alloc]]=\"WYU\",tblREGASSJune19[[#This Row],[Alloc]]=\"WYP\",tblREGASSJune19[[#This Row],[Alloc]]=\"CA\",tblREGASSJune19[[#This Row],[Alloc]]=\"WA\"),\"SITUS\",tblREGASSJune19[[#This Row],[Alloc]])","v":"SE"},{"$f":"INDEX(tblREGASSLookup[FUNC],MATCH(tblREGASSJune19[[#This Row],[Concat]],tblREGASSLookup[Concat],0))","v":"P"},{"$f":"IF(tblREGASSJune19[[#This Row],[Total ($000)]]=0,\"NO\",IF(ISNA(tblREGASSJune19[[#This Row],[FUNC]]),\"YES\",IF(_xlfn.ISFORMULA(tblREGASSJune19[[#This Row],[FUNC]]),\"NO\",\"YES\")))","v":"NO"}]
[{"$f":"CONCATENATE(tblREGASSJune19[[#This Row],[Primary Account]],tblREGASSJune19[[#This Row],[Primary Name]],tblREGASSJune19[[#This Row],[Secondary Acct]],tblREGASSJune19[[#This Row],[Secondary  Name]],tblREGASSJune19[[#This Row],[Alloc4FUNC]])","v":"1823700OTH REGA-ENERGY WEST186826Reg Asset-Deer Creek-Prepaid RoyaltiesSE"},1823700,"OTH REGA-ENERGY WEST",186826,"Reg Asset-Deer Creek-Prepaid Royalties","SE",842.95719999999994,{"$f":"IF(OR(tblREGASSJune19[[#This Row],[Alloc]]=\"IDU\",tblREGASSJune19[[#This Row],[Alloc]]=\"OR\",tblREGASSJune19[[#This Row],[Alloc]]=\"UT\",tblREGASSJune19[[#This Row],[Alloc]]=\"WYU\",tblREGASSJune19[[#This Row],[Alloc]]=\"WYP\",tblREGASSJune19[[#This Row],[Alloc]]=\"CA\",tblREGASSJune19[[#This Row],[Alloc]]=\"WA\"),\"SITUS\",tblREGASSJune19[[#This Row],[Alloc]])","v":"SE"},{"$f":"INDEX(tblREGASSLookup[FUNC],MATCH(tblREGASSJune19[[#This Row],[Concat]],tblREGASSLookup[Concat],0))","v":"P"},{"$f":"IF(tblREGASSJune19[[#This Row],[Total ($000)]]=0,\"NO\",IF(ISNA(tblREGASSJune19[[#This Row],[FUNC]]),\"YES\",IF(_xlfn.ISFORMULA(tblREGASSJune19[[#This Row],[FUNC]]),\"NO\",\"YES\")))","v":"NO"}]
[{"$f":"CONCATENATE(tblREGASSJune19[[#This Row],[Primary Account]],tblREGASSJune19[[#This Row],[Primary Name]],tblREGASSJune19[[#This Row],[Secondary Acct]],tblREGASSJune19[[#This Row],[Secondary  Name]],tblREGASSJune19[[#This Row],[Alloc4FUNC]])","v":"1823700OTH REGA-ENERGY WEST186828Reg Asset-Deer Creek-Recovery RoyaltiesSE"},1823700,"OTH REGA-ENERGY WEST",186828,"Reg Asset-Deer Creek-Recovery Royalties","SE",7118.8258276923098,{"$f":"IF(OR(tblREGASSJune19[[#This Row],[Alloc]]=\"IDU\",tblREGASSJune19[[#This Row],[Alloc]]=\"OR\",tblREGASSJune19[[#This Row],[Alloc]]=\"UT\",tblREGASSJune19[[#This Row],[Alloc]]=\"WYU\",tblREGASSJune19[[#This Row],[Alloc]]=\"WYP\",tblREGASSJune19[[#This Row],[Alloc]]=\"CA\",tblREGASSJune19[[#This Row],[Alloc]]=\"WA\"),\"SITUS\",tblREGASSJune19[[#This Row],[Alloc]])","v":"SE"},{"$f":"INDEX(tblREGASSLookup[FUNC],MATCH(tblREGASSJune19[[#This Row],[Concat]],tblREGASSLookup[Concat],0))","v":"P"},{"$f":"IF(tblREGASSJune19[[#This Row],[Total ($000)]]=0,\"NO\",IF(ISNA(tblREGASSJune19[[#This Row],[FUNC]]),\"YES\",IF(_xlfn.ISFORMULA(tblREGASSJune19[[#This Row],[FUNC]]),\"NO\",\"YES\")))","v":"NO"}]
[{"$f":"CONCATENATE(tblREGASSJune19[[#This Row],[Primary Account]],tblREGASSJune19[[#This Row],[Primary Name]],tblREGASSJune19[[#This Row],[Secondary Acct]],tblREGASSJune19[[#This Row],[Secondary  Name]],tblREGASSJune19[[#This Row],[Alloc4FUNC]])","v":"1823700OTH REGA-ENERGY WEST186829Contra RA-DCM Closure-Royalties AmortzSITUS"},1823700,"OTH REGA-ENERGY WEST",186829,"Contra RA-DCM Closure-Royalties Amortz","WYU",-54.228313076923101,{"$f":"IF(OR(tblREGASSJune19[[#This Row],[Alloc]]=\"IDU\",tblREGASSJune19[[#This Row],[Alloc]]=\"OR\",tblREGASSJune19[[#This Row],[Alloc]]=\"UT\",tblREGASSJune19[[#This Row],[Alloc]]=\"WYU\",tblREGASSJune19[[#This Row],[Alloc]]=\"WYP\",tblREGASSJune19[[#This Row],[Alloc]]=\"CA\",tblREGASSJune19[[#This Row],[Alloc]]=\"WA\"),\"SITUS\",tblREGASSJune19[[#This Row],[Alloc]])","v":"SITUS"},{"$f":"INDEX(tblREGASSLookup[FUNC],MATCH(tblREGASSJune19[[#This Row],[Concat]],tblREGASSLookup[Concat],0))","v":"P"},{"$f":"IF(tblREGASSJune19[[#This Row],[Total ($000)]]=0,\"NO\",IF(ISNA(tblREGASSJune19[[#This Row],[FUNC]]),\"YES\",IF(_xlfn.ISFORMULA(tblREGASSJune19[[#This Row],[FUNC]]),\"NO\",\"YES\")))","v":"NO"}]
[{"$f":"CONCATENATE(tblREGASSJune19[[#This Row],[Primary Account]],tblREGASSJune19[[#This Row],[Primary Name]],tblREGASSJune19[[#This Row],[Secondary Acct]],tblREGASSJune19[[#This Row],[Secondary  Name]],tblREGASSJune19[[#This Row],[Alloc4FUNC]])","v":"1823700OTH REGA-ENERGY WEST186830Reg Asset-Deer Creek-Union Suppl BenSE"},1823700,"OTH REGA-ENERGY WEST",186830,"Reg Asset-Deer Creek-Union Suppl Ben","SE",1611.8124700000001,{"$f":"IF(OR(tblREGASSJune19[[#This Row],[Alloc]]=\"IDU\",tblREGASSJune19[[#This Row],[Alloc]]=\"OR\",tblREGASSJune19[[#This Row],[Alloc]]=\"UT\",tblREGASSJune19[[#This Row],[Alloc]]=\"WYU\",tblREGASSJune19[[#This Row],[Alloc]]=\"WYP\",tblREGASSJune19[[#This Row],[Alloc]]=\"CA\",tblREGASSJune19[[#This Row],[Alloc]]=\"WA\"),\"SITUS\",tblREGASSJune19[[#This Row],[Alloc]])","v":"SE"},{"$f":"INDEX(tblREGASSLookup[FUNC],MATCH(tblREGASSJune19[[#This Row],[Concat]],tblREGASSLookup[Concat],0))","v":"P"},{"$f":"IF(tblREGASSJune19[[#This Row],[Total ($000)]]=0,\"NO\",IF(ISNA(tblREGASSJune19[[#This Row],[FUNC]]),\"YES\",IF(_xlfn.ISFORMULA(tblREGASSJune19[[#This Row],[FUNC]]),\"NO\",\"YES\")))","v":"NO"}]
[{"$f":"CONCATENATE(tblREGASSJune19[[#This Row],[Primary Account]],tblREGASSJune19[[#This Row],[Primary Name]],tblREGASSJune19[[#This Row],[Secondary Acct]],tblREGASSJune19[[#This Row],[Secondary  Name]],tblREGASSJune19[[#This Row],[Alloc4FUNC]])","v":"1823700OTH REGA-ENERGY WEST186833Reg Asset-Deer Creek-Nonunion SeveranceSE"},1823700,"OTH REGA-ENERGY WEST",186833,"Reg Asset-Deer Creek-Nonunion Severance","SE",2500.0010200000002,{"$f":"IF(OR(tblREGASSJune19[[#This Row],[Alloc]]=\"IDU\",tblREGASSJune19[[#This Row],[Alloc]]=\"OR\",tblREGASSJune19[[#This Row],[Alloc]]=\"UT\",tblREGASSJune19[[#This Row],[Alloc]]=\"WYU\",tblREGASSJune19[[#This Row],[Alloc]]=\"WYP\",tblREGASSJune19[[#This Row],[Alloc]]=\"CA\",tblREGASSJune19[[#This Row],[Alloc]]=\"WA\"),\"SITUS\",tblREGASSJune19[[#This Row],[Alloc]])","v":"SE"},{"$f":"INDEX(tblREGASSLookup[FUNC],MATCH(tblREGASSJune19[[#This Row],[Concat]],tblREGASSLookup[Concat],0))","v":"P"},{"$f":"IF(tblREGASSJune19[[#This Row],[Total ($000)]]=0,\"NO\",IF(ISNA(tblREGASSJune19[[#This Row],[FUNC]]),\"YES\",IF(_xlfn.ISFORMULA(tblREGASSJune19[[#This Row],[FUNC]]),\"NO\",\"YES\")))","v":"NO"}]
[{"$f":"CONCATENATE(tblREGASSJune19[[#This Row],[Primary Account]],tblREGASSJune19[[#This Row],[Primary Name]],tblREGASSJune19[[#This Row],[Secondary Acct]],tblREGASSJune19[[#This Row],[Secondary  Name]],tblREGASSJune19[[#This Row],[Alloc4FUNC]])","v":"1823700OTH REGA-ENERGY WEST186835Reg Asset-Deer Creek-Misc Closure CostsSE"},1823700,"OTH REGA-ENERGY WEST",186835,"Reg Asset-Deer Creek-Misc Closure Costs","SE",44685.385799999996,{"$f":"IF(OR(tblREGASSJune19[[#This Row],[Alloc]]=\"IDU\",tblREGASSJune19[[#This Row],[Alloc]]=\"OR\",tblREGASSJune19[[#This Row],[Alloc]]=\"UT\",tblREGASSJune19[[#This Row],[Alloc]]=\"WYU\",tblREGASSJune19[[#This Row],[Alloc]]=\"WYP\",tblREGASSJune19[[#This Row],[Alloc]]=\"CA\",tblREGASSJune19[[#This Row],[Alloc]]=\"WA\"),\"SITUS\",tblREGASSJune19[[#This Row],[Alloc]])","v":"SE"},{"$f":"INDEX(tblREGASSLookup[FUNC],MATCH(tblREGASSJune19[[#This Row],[Concat]],tblREGASSLookup[Concat],0))","v":"P"},{"$f":"IF(tblREGASSJune19[[#This Row],[Total ($000)]]=0,\"NO\",IF(ISNA(tblREGASSJune19[[#This Row],[FUNC]]),\"YES\",IF(_xlfn.ISFORMULA(tblREGASSJune19[[#This Row],[FUNC]]),\"NO\",\"YES\")))","v":"NO"}]
[{"$f":"CONCATENATE(tblREGASSJune19[[#This Row],[Primary Account]],tblREGASSJune19[[#This Row],[Primary Name]],tblREGASSJune19[[#This Row],[Secondary Acct]],tblREGASSJune19[[#This Row],[Secondary  Name]],tblREGASSJune19[[#This Row],[Alloc4FUNC]])","v":"1823700OTH REGA-ENERGY WEST186836Contra RA-DCM Closure-To Joint OwnersSE"},1823700,"OTH REGA-ENERGY WEST",186836,"Contra RA-DCM Closure-To Joint Owners","SE",-2827.5885784615398,{"$f":"IF(OR(tblREGASSJune19[[#This Row],[Alloc]]=\"IDU\",tblREGASSJune19[[#This Row],[Alloc]]=\"OR\",tblREGASSJune19[[#This Row],[Alloc]]=\"UT\",tblREGASSJune19[[#This Row],[Alloc]]=\"WYU\",tblREGASSJune19[[#This Row],[Alloc]]=\"WYP\",tblREGASSJune19[[#This Row],[Alloc]]=\"CA\",tblREGASSJune19[[#This Row],[Alloc]]=\"WA\"),\"SITUS\",tblREGASSJune19[[#This Row],[Alloc]])","v":"SE"},{"$f":"INDEX(tblREGASSLookup[FUNC],MATCH(tblREGASSJune19[[#This Row],[Concat]],tblREGASSLookup[Concat],0))","v":"P"},{"$f":"IF(tblREGASSJune19[[#This Row],[Total ($000)]]=0,\"NO\",IF(ISNA(tblREGASSJune19[[#This Row],[FUNC]]),\"YES\",IF(_xlfn.ISFORMULA(tblREGASSJune19[[#This Row],[FUNC]]),\"NO\",\"YES\")))","v":"NO"}]
[{"$f":"CONCATENATE(tblREGASSJune19[[#This Row],[Primary Account]],tblREGASSJune19[[#This Row],[Primary Name]],tblREGASSJune19[[#This Row],[Secondary Acct]],tblREGASSJune19[[#This Row],[Secondary  Name]],tblREGASSJune19[[#This Row],[Alloc4FUNC]])","v":"1823700OTH REGA-ENERGY WEST186837Contra RA-DCM Closure-Amortz & Oth AdjsSE"},1823700,"OTH REGA-ENERGY WEST",186837,"Contra RA-DCM Closure-Amortz & Oth Adjs","SE",0,{"$f":"IF(OR(tblREGASSJune19[[#This Row],[Alloc]]=\"IDU\",tblREGASSJune19[[#This Row],[Alloc]]=\"OR\",tblREGASSJune19[[#This Row],[Alloc]]=\"UT\",tblREGASSJune19[[#This Row],[Alloc]]=\"WYU\",tblREGASSJune19[[#This Row],[Alloc]]=\"WYP\",tblREGASSJune19[[#This Row],[Alloc]]=\"CA\",tblREGASSJune19[[#This Row],[Alloc]]=\"WA\"),\"SITUS\",tblREGASSJune19[[#This Row],[Alloc]])","v":"SE"},{"$f":"INDEX(tblREGASSLookup[FUNC],MATCH(tblREGASSJune19[[#This Row],[Concat]],tblREGASSLookup[Concat],0))","v":{"$error":"#N/A"}},{"$f":"IF(tblREGASSJune19[[#This Row],[Total ($000)]]=0,\"NO\",IF(ISNA(tblREGASSJune19[[#This Row],[FUNC]]),\"YES\",IF(_xlfn.ISFORMULA(tblREGASSJune19[[#This Row],[FUNC]]),\"NO\",\"YES\")))","v":"NO"}]
[{"$f":"CONCATENATE(tblREGASSJune19[[#This Row],[Primary Account]],tblREGASSJune19[[#This Row],[Primary Name]],tblREGASSJune19[[#This Row],[Secondary Acct]],tblREGASSJune19[[#This Row],[Secondary  Name]],tblREGASSJune19[[#This Row],[Alloc4FUNC]])","v":"1823700OTH REGA-ENERGY WEST186837Contra RA-DCM Closure-Amortz & Oth AdjsSITUS"},1823700,"OTH REGA-ENERGY WEST",186837,"Contra RA-DCM Closure-Amortz & Oth Adjs","UT",4290.4091169230796,{"$f":"IF(OR(tblREGASSJune19[[#This Row],[Alloc]]=\"IDU\",tblREGASSJune19[[#This Row],[Alloc]]=\"OR\",tblREGASSJune19[[#This Row],[Alloc]]=\"UT\",tblREGASSJune19[[#This Row],[Alloc]]=\"WYU\",tblREGASSJune19[[#This Row],[Alloc]]=\"WYP\",tblREGASSJune19[[#This Row],[Alloc]]=\"CA\",tblREGASSJune19[[#This Row],[Alloc]]=\"WA\"),\"SITUS\",tblREGASSJune19[[#This Row],[Alloc]])","v":"SITUS"},{"$f":"INDEX(tblREGASSLookup[FUNC],MATCH(tblREGASSJune19[[#This Row],[Concat]],tblREGASSLookup[Concat],0))","v":"P"},{"$f":"IF(tblREGASSJune19[[#This Row],[Total ($000)]]=0,\"NO\",IF(ISNA(tblREGASSJune19[[#This Row],[FUNC]]),\"YES\",IF(_xlfn.ISFORMULA(tblREGASSJune19[[#This Row],[FUNC]]),\"NO\",\"YES\")))","v":"NO"}]
[{"$f":"CONCATENATE(tblREGASSJune19[[#This Row],[Primary Account]],tblREGASSJune19[[#This Row],[Primary Name]],tblREGASSJune19[[#This Row],[Secondary Acct]],tblREGASSJune19[[#This Row],[Secondary  Name]],tblREGASSJune19[[#This Row],[Alloc4FUNC]])","v":"1823700OTH REGA-ENERGY WEST186837Contra RA-DCM Closure-Amortz & Oth AdjsSITUS"},1823700,"OTH REGA-ENERGY WEST",186837,"Contra RA-DCM Closure-Amortz & Oth Adjs","WYU",-9327.0010069230793,{"$f":"IF(OR(tblREGASSJune19[[#This Row],[Alloc]]=\"IDU\",tblREGASSJune19[[#This Row],[Alloc]]=\"OR\",tblREGASSJune19[[#This Row],[Alloc]]=\"UT\",tblREGASSJune19[[#This Row],[Alloc]]=\"WYU\",tblREGASSJune19[[#This Row],[Alloc]]=\"WYP\",tblREGASSJune19[[#This Row],[Alloc]]=\"CA\",tblREGASSJune19[[#This Row],[Alloc]]=\"WA\"),\"SITUS\",tblREGASSJune19[[#This Row],[Alloc]])","v":"SITUS"},{"$f":"INDEX(tblREGASSLookup[FUNC],MATCH(tblREGASSJune19[[#This Row],[Concat]],tblREGASSLookup[Concat],0))","v":"P"},{"$f":"IF(tblREGASSJune19[[#This Row],[Total ($000)]]=0,\"NO\",IF(ISNA(tblREGASSJune19[[#This Row],[FUNC]]),\"YES\",IF(_xlfn.ISFORMULA(tblREGASSJune19[[#This Row],[FUNC]]),\"NO\",\"YES\")))","v":"NO"}]
[{"$f":"CONCATENATE(tblREGASSJune19[[#This Row],[Primary Account]],tblREGASSJune19[[#This Row],[Primary Name]],tblREGASSJune19[[#This Row],[Secondary Acct]],tblREGASSJune19[[#This Row],[Secondary  Name]],tblREGASSJune19[[#This Row],[Alloc4FUNC]])","v":"1823700OTH REGA-ENERGY WEST186839Reg Asset-Deer Creek-Tax Flow-ThroughSE"},1823700,"OTH REGA-ENERGY WEST",186839,"Reg Asset-Deer Creek-Tax Flow-Through","SE",2978.683,{"$f":"IF(OR(tblREGASSJune19[[#This Row],[Alloc]]=\"IDU\",tblREGASSJune19[[#This Row],[Alloc]]=\"OR\",tblREGASSJune19[[#This Row],[Alloc]]=\"UT\",tblREGASSJune19[[#This Row],[Alloc]]=\"WYU\",tblREGASSJune19[[#This Row],[Alloc]]=\"WYP\",tblREGASSJune19[[#This Row],[Alloc]]=\"CA\",tblREGASSJune19[[#This Row],[Alloc]]=\"WA\"),\"SITUS\",tblREGASSJune19[[#This Row],[Alloc]])","v":"SE"},{"$f":"INDEX(tblREGASSLookup[FUNC],MATCH(tblREGASSJune19[[#This Row],[Concat]],tblREGASSLookup[Concat],0))","v":"P"},{"$f":"IF(tblREGASSJune19[[#This Row],[Total ($000)]]=0,\"NO\",IF(ISNA(tblREGASSJune19[[#This Row],[FUNC]]),\"YES\",IF(_xlfn.ISFORMULA(tblREGASSJune19[[#This Row],[FUNC]]),\"NO\",\"YES\")))","v":"NO"}]
[{"$f":"CONCATENATE(tblREGASSJune19[[#This Row],[Primary Account]],tblREGASSJune19[[#This Row],[Primary Name]],tblREGASSJune19[[#This Row],[Secondary Acct]],tblREGASSJune19[[#This Row],[Secondary  Name]],tblREGASSJune19[[#This Row],[Alloc4FUNC]])","v":"1823700OTH REGA-ENERGY WEST186840Contra Reg Asset-Deer Creek AbandSE"},1823700,"OTH REGA-ENERGY WEST",186840,"Contra Reg Asset-Deer Creek Aband","SE",0,{"$f":"IF(OR(tblREGASSJune19[[#This Row],[Alloc]]=\"IDU\",tblREGASSJune19[[#This Row],[Alloc]]=\"OR\",tblREGASSJune19[[#This Row],[Alloc]]=\"UT\",tblREGASSJune19[[#This Row],[Alloc]]=\"WYU\",tblREGASSJune19[[#This Row],[Alloc]]=\"WYP\",tblREGASSJune19[[#This Row],[Alloc]]=\"CA\",tblREGASSJune19[[#This Row],[Alloc]]=\"WA\"),\"SITUS\",tblREGASSJune19[[#This Row],[Alloc]])","v":"SE"},{"$f":"INDEX(tblREGASSLookup[FUNC],MATCH(tblREGASSJune19[[#This Row],[Concat]],tblREGASSLookup[Concat],0))","v":{"$error":"#N/A"}},{"$f":"IF(tblREGASSJune19[[#This Row],[Total ($000)]]=0,\"NO\",IF(ISNA(tblREGASSJune19[[#This Row],[FUNC]]),\"YES\",IF(_xlfn.ISFORMULA(tblREGASSJune19[[#This Row],[FUNC]]),\"NO\",\"YES\")))","v":"NO"}]
[{"$f":"CONCATENATE(tblREGASSJune19[[#This Row],[Primary Account]],tblREGASSJune19[[#This Row],[Primary Name]],tblREGASSJune19[[#This Row],[Secondary Acct]],tblREGASSJune19[[#This Row],[Secondary  Name]],tblREGASSJune19[[#This Row],[Alloc4FUNC]])","v":"1823700OTH REGA-ENERGY WEST186841Contra Reg Asset-Deer Creek Aband-CASITUS"},1823700,"OTH REGA-ENERGY WEST",186841,"Contra Reg Asset-Deer Creek Aband-CA","CA",-1331.52317461538,{"$f":"IF(OR(tblREGASSJune19[[#This Row],[Alloc]]=\"IDU\",tblREGASSJune19[[#This Row],[Alloc]]=\"OR\",tblREGASSJune19[[#This Row],[Alloc]]=\"UT\",tblREGASSJune19[[#This Row],[Alloc]]=\"WYU\",tblREGASSJune19[[#This Row],[Alloc]]=\"WYP\",tblREGASSJune19[[#This Row],[Alloc]]=\"CA\",tblREGASSJune19[[#This Row],[Alloc]]=\"WA\"),\"SITUS\",tblREGASSJune19[[#This Row],[Alloc]])","v":"SITUS"},{"$f":"INDEX(tblREGASSLookup[FUNC],MATCH(tblREGASSJune19[[#This Row],[Concat]],tblREGASSLookup[Concat],0))","v":"P"},{"$f":"IF(tblREGASSJune19[[#This Row],[Total ($000)]]=0,\"NO\",IF(ISNA(tblREGASSJune19[[#This Row],[FUNC]]),\"YES\",IF(_xlfn.ISFORMULA(tblREGASSJune19[[#This Row],[FUNC]]),\"NO\",\"YES\")))","v":"NO"}]
[{"$f":"CONCATENATE(tblREGASSJune19[[#This Row],[Primary Account]],tblREGASSJune19[[#This Row],[Primary Name]],tblREGASSJune19[[#This Row],[Secondary Acct]],tblREGASSJune19[[#This Row],[Secondary  Name]],tblREGASSJune19[[#This Row],[Alloc4FUNC]])","v":"1823700OTH REGA-ENERGY WEST186844Contra Reg Asset-Deer Creek Aband-UTSITUS"},1823700,"OTH REGA-ENERGY WEST",186844,"Contra Reg Asset-Deer Creek Aband-UT","UT",-923.61699999999996,{"$f":"IF(OR(tblREGASSJune19[[#This Row],[Alloc]]=\"IDU\",tblREGASSJune19[[#This Row],[Alloc]]=\"OR\",tblREGASSJune19[[#This Row],[Alloc]]=\"UT\",tblREGASSJune19[[#This Row],[Alloc]]=\"WYU\",tblREGASSJune19[[#This Row],[Alloc]]=\"WYP\",tblREGASSJune19[[#This Row],[Alloc]]=\"CA\",tblREGASSJune19[[#This Row],[Alloc]]=\"WA\"),\"SITUS\",tblREGASSJune19[[#This Row],[Alloc]])","v":"SITUS"},{"$f":"INDEX(tblREGASSLookup[FUNC],MATCH(tblREGASSJune19[[#This Row],[Concat]],tblREGASSLookup[Concat],0))","v":"P"},{"$f":"IF(tblREGASSJune19[[#This Row],[Total ($000)]]=0,\"NO\",IF(ISNA(tblREGASSJune19[[#This Row],[FUNC]]),\"YES\",IF(_xlfn.ISFORMULA(tblREGASSJune19[[#This Row],[FUNC]]),\"NO\",\"YES\")))","v":"NO"}]
[{"$f":"CONCATENATE(tblREGASSJune19[[#This Row],[Primary Account]],tblREGASSJune19[[#This Row],[Primary Name]],tblREGASSJune19[[#This Row],[Secondary Acct]],tblREGASSJune19[[#This Row],[Secondary  Name]],tblREGASSJune19[[#This Row],[Alloc4FUNC]])","v":"1823700OTH REGA-ENERGY WEST186845Contra Reg Asset-Deer Creek Aband-WASITUS"},1823700,"OTH REGA-ENERGY WEST",186845,"Contra Reg Asset-Deer Creek Aband-WA","WA",-5972.3164361538502,{"$f":"IF(OR(tblREGASSJune19[[#This Row],[Alloc]]=\"IDU\",tblREGASSJune19[[#This Row],[Alloc]]=\"OR\",tblREGASSJune19[[#This Row],[Alloc]]=\"UT\",tblREGASSJune19[[#This Row],[Alloc]]=\"WYU\",tblREGASSJune19[[#This Row],[Alloc]]=\"WYP\",tblREGASSJune19[[#This Row],[Alloc]]=\"CA\",tblREGASSJune19[[#This Row],[Alloc]]=\"WA\"),\"SITUS\",tblREGASSJune19[[#This Row],[Alloc]])","v":"SITUS"},{"$f":"INDEX(tblREGASSLookup[FUNC],MATCH(tblREGASSJune19[[#This Row],[Concat]],tblREGASSLookup[Concat],0))","v":"P"},{"$f":"IF(tblREGASSJune19[[#This Row],[Total ($000)]]=0,\"NO\",IF(ISNA(tblREGASSJune19[[#This Row],[FUNC]]),\"YES\",IF(_xlfn.ISFORMULA(tblREGASSJune19[[#This Row],[FUNC]]),\"NO\",\"YES\")))","v":"NO"}]
[{"$f":"CONCATENATE(tblREGASSJune19[[#This Row],[Primary Account]],tblREGASSJune19[[#This Row],[Primary Name]],tblREGASSJune19[[#This Row],[Secondary Acct]],tblREGASSJune19[[#This Row],[Secondary  Name]],tblREGASSJune19[[#This Row],[Alloc4FUNC]])","v":"1823700OTH REGA-ENERGY WEST186846Contra Reg Asset-Deer Creek Aband-WYSITUS"},1823700,"OTH REGA-ENERGY WEST",186846,"Contra Reg Asset-Deer Creek Aband-WY","WYU",-375.68099999999998,{"$f":"IF(OR(tblREGASSJune19[[#This Row],[Alloc]]=\"IDU\",tblREGASSJune19[[#This Row],[Alloc]]=\"OR\",tblREGASSJune19[[#This Row],[Alloc]]=\"UT\",tblREGASSJune19[[#This Row],[Alloc]]=\"WYU\",tblREGASSJune19[[#This Row],[Alloc]]=\"WYP\",tblREGASSJune19[[#This Row],[Alloc]]=\"CA\",tblREGASSJune19[[#This Row],[Alloc]]=\"WA\"),\"SITUS\",tblREGASSJune19[[#This Row],[Alloc]])","v":"SITUS"},{"$f":"INDEX(tblREGASSLookup[FUNC],MATCH(tblREGASSJune19[[#This Row],[Concat]],tblREGASSLookup[Concat],0))","v":"P"},{"$f":"IF(tblREGASSJune19[[#This Row],[Total ($000)]]=0,\"NO\",IF(ISNA(tblREGASSJune19[[#This Row],[FUNC]]),\"YES\",IF(_xlfn.ISFORMULA(tblREGASSJune19[[#This Row],[FUNC]]),\"NO\",\"YES\")))","v":"NO"}]
[{"$f":"CONCATENATE(tblREGASSJune19[[#This Row],[Primary Account]],tblREGASSJune19[[#This Row],[Primary Name]],tblREGASSJune19[[#This Row],[Secondary Acct]],tblREGASSJune19[[#This Row],[Secondary  Name]],tblREGASSJune19[[#This Row],[Alloc4FUNC]])","v":"1823700OTH REGA-ENERGY WEST186851Contra Reg Asset-Deer Creek Closure-CASITUS"},1823700,"OTH REGA-ENERGY WEST",186851,"Contra Reg Asset-Deer Creek Closure-CA","CA",-1129.91328692308,{"$f":"IF(OR(tblREGASSJune19[[#This Row],[Alloc]]=\"IDU\",tblREGASSJune19[[#This Row],[Alloc]]=\"OR\",tblREGASSJune19[[#This Row],[Alloc]]=\"UT\",tblREGASSJune19[[#This Row],[Alloc]]=\"WYU\",tblREGASSJune19[[#This Row],[Alloc]]=\"WYP\",tblREGASSJune19[[#This Row],[Alloc]]=\"CA\",tblREGASSJune19[[#This Row],[Alloc]]=\"WA\"),\"SITUS\",tblREGASSJune19[[#This Row],[Alloc]])","v":"SITUS"},{"$f":"INDEX(tblREGASSLookup[FUNC],MATCH(tblREGASSJune19[[#This Row],[Concat]],tblREGASSLookup[Concat],0))","v":"P"},{"$f":"IF(tblREGASSJune19[[#This Row],[Total ($000)]]=0,\"NO\",IF(ISNA(tblREGASSJune19[[#This Row],[FUNC]]),\"YES\",IF(_xlfn.ISFORMULA(tblREGASSJune19[[#This Row],[FUNC]]),\"NO\",\"YES\")))","v":"NO"}]
[{"$f":"CONCATENATE(tblREGASSJune19[[#This Row],[Primary Account]],tblREGASSJune19[[#This Row],[Primary Name]],tblREGASSJune19[[#This Row],[Secondary Acct]],tblREGASSJune19[[#This Row],[Secondary  Name]],tblREGASSJune19[[#This Row],[Alloc4FUNC]])","v":"1823700OTH REGA-ENERGY WEST186852CONTRA REG ASSET-DEER CREEK CLOSURE-IDSITUS"},1823700,"OTH REGA-ENERGY WEST",186852,"CONTRA REG ASSET-DEER CREEK CLOSURE-ID","IDU",-1527.3557000000001,{"$f":"IF(OR(tblREGASSJune19[[#This Row],[Alloc]]=\"IDU\",tblREGASSJune19[[#This Row],[Alloc]]=\"OR\",tblREGASSJune19[[#This Row],[Alloc]]=\"UT\",tblREGASSJune19[[#This Row],[Alloc]]=\"WYU\",tblREGASSJune19[[#This Row],[Alloc]]=\"WYP\",tblREGASSJune19[[#This Row],[Alloc]]=\"CA\",tblREGASSJune19[[#This Row],[Alloc]]=\"WA\"),\"SITUS\",tblREGASSJune19[[#This Row],[Alloc]])","v":"SITUS"},{"$f":"INDEX(tblREGASSLookup[FUNC],MATCH(tblREGASSJune19[[#This Row],[Concat]],tblREGASSLookup[Concat],0))","v":"P"},{"$f":"IF(tblREGASSJune19[[#This Row],[Total ($000)]]=0,\"NO\",IF(ISNA(tblREGASSJune19[[#This Row],[FUNC]]),\"YES\",IF(_xlfn.ISFORMULA(tblREGASSJune19[[#This Row],[FUNC]]),\"NO\",\"YES\")))","v":"NO"}]
[{"$f":"CONCATENATE(tblREGASSJune19[[#This Row],[Primary Account]],tblREGASSJune19[[#This Row],[Primary Name]],tblREGASSJune19[[#This Row],[Secondary Acct]],tblREGASSJune19[[#This Row],[Secondary  Name]],tblREGASSJune19[[#This Row],[Alloc4FUNC]])","v":"1823700OTH REGA-ENERGY WEST186853Contra Reg Asset-Deer Creek Closure-ORSITUS"},1823700,"OTH REGA-ENERGY WEST",186853,"Contra Reg Asset-Deer Creek Closure-OR","OR",-7363.2926399999997,{"$f":"IF(OR(tblREGASSJune19[[#This Row],[Alloc]]=\"IDU\",tblREGASSJune19[[#This Row],[Alloc]]=\"OR\",tblREGASSJune19[[#This Row],[Alloc]]=\"UT\",tblREGASSJune19[[#This Row],[Alloc]]=\"WYU\",tblREGASSJune19[[#This Row],[Alloc]]=\"WYP\",tblREGASSJune19[[#This Row],[Alloc]]=\"CA\",tblREGASSJune19[[#This Row],[Alloc]]=\"WA\"),\"SITUS\",tblREGASSJune19[[#This Row],[Alloc]])","v":"SITUS"},{"$f":"INDEX(tblREGASSLookup[FUNC],MATCH(tblREGASSJune19[[#This Row],[Concat]],tblREGASSLookup[Concat],0))","v":"P"},{"$f":"IF(tblREGASSJune19[[#This Row],[Total ($000)]]=0,\"NO\",IF(ISNA(tblREGASSJune19[[#This Row],[FUNC]]),\"YES\",IF(_xlfn.ISFORMULA(tblREGASSJune19[[#This Row],[FUNC]]),\"NO\",\"YES\")))","v":"NO"}]
[{"$f":"CONCATENATE(tblREGASSJune19[[#This Row],[Primary Account]],tblREGASSJune19[[#This Row],[Primary Name]],tblREGASSJune19[[#This Row],[Secondary Acct]],tblREGASSJune19[[#This Row],[Secondary  Name]],tblREGASSJune19[[#This Row],[Alloc4FUNC]])","v":"1823700OTH REGA-ENERGY WEST186854CONTRA REG ASSET-DEER CREEK CLOSURE-UTSITUS"},1823700,"OTH REGA-ENERGY WEST",186854,"CONTRA REG ASSET-DEER CREEK CLOSURE-UT","UT",-2533.3414815384599,{"$f":"IF(OR(tblREGASSJune19[[#This Row],[Alloc]]=\"IDU\",tblREGASSJune19[[#This Row],[Alloc]]=\"OR\",tblREGASSJune19[[#This Row],[Alloc]]=\"UT\",tblREGASSJune19[[#This Row],[Alloc]]=\"WYU\",tblREGASSJune19[[#This Row],[Alloc]]=\"WYP\",tblREGASSJune19[[#This Row],[Alloc]]=\"CA\",tblREGASSJune19[[#This Row],[Alloc]]=\"WA\"),\"SITUS\",tblREGASSJune19[[#This Row],[Alloc]])","v":"SITUS"},{"$f":"INDEX(tblREGASSLookup[FUNC],MATCH(tblREGASSJune19[[#This Row],[Concat]],tblREGASSLookup[Concat],0))","v":"P"},{"$f":"IF(tblREGASSJune19[[#This Row],[Total ($000)]]=0,\"NO\",IF(ISNA(tblREGASSJune19[[#This Row],[FUNC]]),\"YES\",IF(_xlfn.ISFORMULA(tblREGASSJune19[[#This Row],[FUNC]]),\"NO\",\"YES\")))","v":"NO"}]
[{"$f":"CONCATENATE(tblREGASSJune19[[#This Row],[Primary Account]],tblREGASSJune19[[#This Row],[Primary Name]],tblREGASSJune19[[#This Row],[Secondary Acct]],tblREGASSJune19[[#This Row],[Secondary  Name]],tblREGASSJune19[[#This Row],[Alloc4FUNC]])","v":"1823700OTH REGA-ENERGY WEST186855Contra Reg Asset-Deer Creek Closure-WASITUS"},1823700,"OTH REGA-ENERGY WEST",186855,"Contra Reg Asset-Deer Creek Closure-WA","WA",-5068.0300753846104,{"$f":"IF(OR(tblREGASSJune19[[#This Row],[Alloc]]=\"IDU\",tblREGASSJune19[[#This Row],[Alloc]]=\"OR\",tblREGASSJune19[[#This Row],[Alloc]]=\"UT\",tblREGASSJune19[[#This Row],[Alloc]]=\"WYU\",tblREGASSJune19[[#This Row],[Alloc]]=\"WYP\",tblREGASSJune19[[#This Row],[Alloc]]=\"CA\",tblREGASSJune19[[#This Row],[Alloc]]=\"WA\"),\"SITUS\",tblREGASSJune19[[#This Row],[Alloc]])","v":"SITUS"},{"$f":"INDEX(tblREGASSLookup[FUNC],MATCH(tblREGASSJune19[[#This Row],[Concat]],tblREGASSLookup[Concat],0))","v":"P"},{"$f":"IF(tblREGASSJune19[[#This Row],[Total ($000)]]=0,\"NO\",IF(ISNA(tblREGASSJune19[[#This Row],[FUNC]]),\"YES\",IF(_xlfn.ISFORMULA(tblREGASSJune19[[#This Row],[FUNC]]),\"NO\",\"YES\")))","v":"NO"}]
[{"$f":"CONCATENATE(tblREGASSJune19[[#This Row],[Primary Account]],tblREGASSJune19[[#This Row],[Primary Name]],tblREGASSJune19[[#This Row],[Secondary Acct]],tblREGASSJune19[[#This Row],[Secondary  Name]],tblREGASSJune19[[#This Row],[Alloc4FUNC]])","v":"1823700OTH REGA-ENERGY WEST186856CONTRA REG ASSET-DEER CREEK CLOSURE-WYSITUS"},1823700,"OTH REGA-ENERGY WEST",186856,"CONTRA REG ASSET-DEER CREEK CLOSURE-WY","WYP",0,{"$f":"IF(OR(tblREGASSJune19[[#This Row],[Alloc]]=\"IDU\",tblREGASSJune19[[#This Row],[Alloc]]=\"OR\",tblREGASSJune19[[#This Row],[Alloc]]=\"UT\",tblREGASSJune19[[#This Row],[Alloc]]=\"WYU\",tblREGASSJune19[[#This Row],[Alloc]]=\"WYP\",tblREGASSJune19[[#This Row],[Alloc]]=\"CA\",tblREGASSJune19[[#This Row],[Alloc]]=\"WA\"),\"SITUS\",tblREGASSJune19[[#This Row],[Alloc]])","v":"SITUS"},{"$f":"INDEX(tblREGASSLookup[FUNC],MATCH(tblREGASSJune19[[#This Row],[Concat]],tblREGASSLookup[Concat],0))","v":"P"},{"$f":"IF(tblREGASSJune19[[#This Row],[Total ($000)]]=0,\"NO\",IF(ISNA(tblREGASSJune19[[#This Row],[FUNC]]),\"YES\",IF(_xlfn.ISFORMULA(tblREGASSJune19[[#This Row],[FUNC]]),\"NO\",\"YES\")))","v":"NO"}]
[{"$f":"CONCATENATE(tblREGASSJune19[[#This Row],[Primary Account]],tblREGASSJune19[[#This Row],[Primary Name]],tblREGASSJune19[[#This Row],[Secondary Acct]],tblREGASSJune19[[#This Row],[Secondary  Name]],tblREGASSJune19[[#This Row],[Alloc4FUNC]])","v":"1823700OTH REGA-ENERGY WEST186860RA-Deer Creek-ROR Offset-Assets SoldSE"},1823700,"OTH REGA-ENERGY WEST",186860,"RA-Deer Creek-ROR Offset-Assets Sold","SE",0,{"$f":"IF(OR(tblREGASSJune19[[#This Row],[Alloc]]=\"IDU\",tblREGASSJune19[[#This Row],[Alloc]]=\"OR\",tblREGASSJune19[[#This Row],[Alloc]]=\"UT\",tblREGASSJune19[[#This Row],[Alloc]]=\"WYU\",tblREGASSJune19[[#This Row],[Alloc]]=\"WYP\",tblREGASSJune19[[#This Row],[Alloc]]=\"CA\",tblREGASSJune19[[#This Row],[Alloc]]=\"WA\"),\"SITUS\",tblREGASSJune19[[#This Row],[Alloc]])","v":"SE"},{"$f":"INDEX(tblREGASSLookup[FUNC],MATCH(tblREGASSJune19[[#This Row],[Concat]],tblREGASSLookup[Concat],0))","v":{"$error":"#N/A"}},{"$f":"IF(tblREGASSJune19[[#This Row],[Total ($000)]]=0,\"NO\",IF(ISNA(tblREGASSJune19[[#This Row],[FUNC]]),\"YES\",IF(_xlfn.ISFORMULA(tblREGASSJune19[[#This Row],[FUNC]]),\"NO\",\"YES\")))","v":"NO"}]
[{"$f":"CONCATENATE(tblREGASSJune19[[#This Row],[Primary Account]],tblREGASSJune19[[#This Row],[Primary Name]],tblREGASSJune19[[#This Row],[Secondary Acct]],tblREGASSJune19[[#This Row],[Secondary  Name]],tblREGASSJune19[[#This Row],[Alloc4FUNC]])","v":"1823700OTH REGA-ENERGY WEST186860RA-Deer Creek-ROR Offset-Assets SoldSITUS"},1823700,"OTH REGA-ENERGY WEST",186860,"RA-Deer Creek-ROR Offset-Assets Sold","UT",-1541.213,{"$f":"IF(OR(tblREGASSJune19[[#This Row],[Alloc]]=\"IDU\",tblREGASSJune19[[#This Row],[Alloc]]=\"OR\",tblREGASSJune19[[#This Row],[Alloc]]=\"UT\",tblREGASSJune19[[#This Row],[Alloc]]=\"WYU\",tblREGASSJune19[[#This Row],[Alloc]]=\"WYP\",tblREGASSJune19[[#This Row],[Alloc]]=\"CA\",tblREGASSJune19[[#This Row],[Alloc]]=\"WA\"),\"SITUS\",tblREGASSJune19[[#This Row],[Alloc]])","v":"SITUS"},{"$f":"INDEX(tblREGASSLookup[FUNC],MATCH(tblREGASSJune19[[#This Row],[Concat]],tblREGASSLookup[Concat],0))","v":"P"},{"$f":"IF(tblREGASSJune19[[#This Row],[Total ($000)]]=0,\"NO\",IF(ISNA(tblREGASSJune19[[#This Row],[FUNC]]),\"YES\",IF(_xlfn.ISFORMULA(tblREGASSJune19[[#This Row],[FUNC]]),\"NO\",\"YES\")))","v":"NO"}]
[{"$f":"CONCATENATE(tblREGASSJune19[[#This Row],[Primary Account]],tblREGASSJune19[[#This Row],[Primary Name]],tblREGASSJune19[[#This Row],[Secondary Acct]],tblREGASSJune19[[#This Row],[Secondary  Name]],tblREGASSJune19[[#This Row],[Alloc4FUNC]])","v":"1823700OTH REGA-ENERGY WEST186860RA-Deer Creek-ROR Offset-Assets SoldSITUS"},1823700,"OTH REGA-ENERGY WEST",186860,"RA-Deer Creek-ROR Offset-Assets Sold","WYU",-106.904,{"$f":"IF(OR(tblREGASSJune19[[#This Row],[Alloc]]=\"IDU\",tblREGASSJune19[[#This Row],[Alloc]]=\"OR\",tblREGASSJune19[[#This Row],[Alloc]]=\"UT\",tblREGASSJune19[[#This Row],[Alloc]]=\"WYU\",tblREGASSJune19[[#This Row],[Alloc]]=\"WYP\",tblREGASSJune19[[#This Row],[Alloc]]=\"CA\",tblREGASSJune19[[#This Row],[Alloc]]=\"WA\"),\"SITUS\",tblREGASSJune19[[#This Row],[Alloc]])","v":"SITUS"},{"$f":"INDEX(tblREGASSLookup[FUNC],MATCH(tblREGASSJune19[[#This Row],[Concat]],tblREGASSLookup[Concat],0))","v":"P"},{"$f":"IF(tblREGASSJune19[[#This Row],[Total ($000)]]=0,\"NO\",IF(ISNA(tblREGASSJune19[[#This Row],[FUNC]]),\"YES\",IF(_xlfn.ISFORMULA(tblREGASSJune19[[#This Row],[FUNC]]),\"NO\",\"YES\")))","v":"NO"}]
[{"$f":"CONCATENATE(tblREGASSJune19[[#This Row],[Primary Account]],tblREGASSJune19[[#This Row],[Primary Name]],tblREGASSJune19[[#This Row],[Secondary Acct]],tblREGASSJune19[[#This Row],[Secondary  Name]],tblREGASSJune19[[#This Row],[Alloc4FUNC]])","v":"1823700OTH REGA-ENERGY WEST186861RA-Deer Creek-ROR Offset-Fuel InventorySITUS"},1823700,"OTH REGA-ENERGY WEST",186861,"RA-Deer Creek-ROR Offset-Fuel Inventory","IDU",-806.25015384615403,{"$f":"IF(OR(tblREGASSJune19[[#This Row],[Alloc]]=\"IDU\",tblREGASSJune19[[#This Row],[Alloc]]=\"OR\",tblREGASSJune19[[#This Row],[Alloc]]=\"UT\",tblREGASSJune19[[#This Row],[Alloc]]=\"WYU\",tblREGASSJune19[[#This Row],[Alloc]]=\"WYP\",tblREGASSJune19[[#This Row],[Alloc]]=\"CA\",tblREGASSJune19[[#This Row],[Alloc]]=\"WA\"),\"SITUS\",tblREGASSJune19[[#This Row],[Alloc]])","v":"SITUS"},{"$f":"INDEX(tblREGASSLookup[FUNC],MATCH(tblREGASSJune19[[#This Row],[Concat]],tblREGASSLookup[Concat],0))","v":"P"},{"$f":"IF(tblREGASSJune19[[#This Row],[Total ($000)]]=0,\"NO\",IF(ISNA(tblREGASSJune19[[#This Row],[FUNC]]),\"YES\",IF(_xlfn.ISFORMULA(tblREGASSJune19[[#This Row],[FUNC]]),\"NO\",\"YES\")))","v":"NO"}]
[{"$f":"CONCATENATE(tblREGASSJune19[[#This Row],[Primary Account]],tblREGASSJune19[[#This Row],[Primary Name]],tblREGASSJune19[[#This Row],[Secondary Acct]],tblREGASSJune19[[#This Row],[Secondary  Name]],tblREGASSJune19[[#This Row],[Alloc4FUNC]])","v":"1823700OTH REGA-ENERGY WEST186861RA-Deer Creek-ROR Offset-Fuel InventorySE"},1823700,"OTH REGA-ENERGY WEST",186861,"RA-Deer Creek-ROR Offset-Fuel Inventory","SE",0,{"$f":"IF(OR(tblREGASSJune19[[#This Row],[Alloc]]=\"IDU\",tblREGASSJune19[[#This Row],[Alloc]]=\"OR\",tblREGASSJune19[[#This Row],[Alloc]]=\"UT\",tblREGASSJune19[[#This Row],[Alloc]]=\"WYU\",tblREGASSJune19[[#This Row],[Alloc]]=\"WYP\",tblREGASSJune19[[#This Row],[Alloc]]=\"CA\",tblREGASSJune19[[#This Row],[Alloc]]=\"WA\"),\"SITUS\",tblREGASSJune19[[#This Row],[Alloc]])","v":"SE"},{"$f":"INDEX(tblREGASSLookup[FUNC],MATCH(tblREGASSJune19[[#This Row],[Concat]],tblREGASSLookup[Concat],0))","v":{"$error":"#N/A"}},{"$f":"IF(tblREGASSJune19[[#This Row],[Total ($000)]]=0,\"NO\",IF(ISNA(tblREGASSJune19[[#This Row],[FUNC]]),\"YES\",IF(_xlfn.ISFORMULA(tblREGASSJune19[[#This Row],[FUNC]]),\"NO\",\"YES\")))","v":"NO"}]
[{"$f":"CONCATENATE(tblREGASSJune19[[#This Row],[Primary Account]],tblREGASSJune19[[#This Row],[Primary Name]],tblREGASSJune19[[#This Row],[Secondary Acct]],tblREGASSJune19[[#This Row],[Secondary  Name]],tblREGASSJune19[[#This Row],[Alloc4FUNC]])","v":"1823700OTH REGA-ENERGY WEST186861RA-Deer Creek-ROR Offset-Fuel InventorySITUS"},1823700,"OTH REGA-ENERGY WEST",186861,"RA-Deer Creek-ROR Offset-Fuel Inventory","UT",-5223.3826153846103,{"$f":"IF(OR(tblREGASSJune19[[#This Row],[Alloc]]=\"IDU\",tblREGASSJune19[[#This Row],[Alloc]]=\"OR\",tblREGASSJune19[[#This Row],[Alloc]]=\"UT\",tblREGASSJune19[[#This Row],[Alloc]]=\"WYU\",tblREGASSJune19[[#This Row],[Alloc]]=\"WYP\",tblREGASSJune19[[#This Row],[Alloc]]=\"CA\",tblREGASSJune19[[#This Row],[Alloc]]=\"WA\"),\"SITUS\",tblREGASSJune19[[#This Row],[Alloc]])","v":"SITUS"},{"$f":"INDEX(tblREGASSLookup[FUNC],MATCH(tblREGASSJune19[[#This Row],[Concat]],tblREGASSLookup[Concat],0))","v":"P"},{"$f":"IF(tblREGASSJune19[[#This Row],[Total ($000)]]=0,\"NO\",IF(ISNA(tblREGASSJune19[[#This Row],[FUNC]]),\"YES\",IF(_xlfn.ISFORMULA(tblREGASSJune19[[#This Row],[FUNC]]),\"NO\",\"YES\")))","v":"NO"}]
[{"$f":"CONCATENATE(tblREGASSJune19[[#This Row],[Primary Account]],tblREGASSJune19[[#This Row],[Primary Name]],tblREGASSJune19[[#This Row],[Secondary Acct]],tblREGASSJune19[[#This Row],[Secondary  Name]],tblREGASSJune19[[#This Row],[Alloc4FUNC]])","v":"1823700OTH REGA-ENERGY WEST186861RA-Deer Creek-ROR Offset-Fuel InventorySITUS"},1823700,"OTH REGA-ENERGY WEST",186861,"RA-Deer Creek-ROR Offset-Fuel Inventory","WYU",-418.68299999999999,{"$f":"IF(OR(tblREGASSJune19[[#This Row],[Alloc]]=\"IDU\",tblREGASSJune19[[#This Row],[Alloc]]=\"OR\",tblREGASSJune19[[#This Row],[Alloc]]=\"UT\",tblREGASSJune19[[#This Row],[Alloc]]=\"WYU\",tblREGASSJune19[[#This Row],[Alloc]]=\"WYP\",tblREGASSJune19[[#This Row],[Alloc]]=\"CA\",tblREGASSJune19[[#This Row],[Alloc]]=\"WA\"),\"SITUS\",tblREGASSJune19[[#This Row],[Alloc]])","v":"SITUS"},{"$f":"INDEX(tblREGASSLookup[FUNC],MATCH(tblREGASSJune19[[#This Row],[Concat]],tblREGASSLookup[Concat],0))","v":"P"},{"$f":"IF(tblREGASSJune19[[#This Row],[Total ($000)]]=0,\"NO\",IF(ISNA(tblREGASSJune19[[#This Row],[FUNC]]),\"YES\",IF(_xlfn.ISFORMULA(tblREGASSJune19[[#This Row],[FUNC]]),\"NO\",\"YES\")))","v":"NO"}]
[{"$f":"CONCATENATE(tblREGASSJune19[[#This Row],[Primary Account]],tblREGASSJune19[[#This Row],[Primary Name]],tblREGASSJune19[[#This Row],[Secondary Acct]],tblREGASSJune19[[#This Row],[Secondary  Name]],tblREGASSJune19[[#This Row],[Alloc4FUNC]])","v":"1823700OTH REGA-ENERGY WEST186862RA-Deer Creek-ROR Offset-Fossil RockSE"},1823700,"OTH REGA-ENERGY WEST",186862,"RA-Deer Creek-ROR Offset-Fossil Rock","SE",0,{"$f":"IF(OR(tblREGASSJune19[[#This Row],[Alloc]]=\"IDU\",tblREGASSJune19[[#This Row],[Alloc]]=\"OR\",tblREGASSJune19[[#This Row],[Alloc]]=\"UT\",tblREGASSJune19[[#This Row],[Alloc]]=\"WYU\",tblREGASSJune19[[#This Row],[Alloc]]=\"WYP\",tblREGASSJune19[[#This Row],[Alloc]]=\"CA\",tblREGASSJune19[[#This Row],[Alloc]]=\"WA\"),\"SITUS\",tblREGASSJune19[[#This Row],[Alloc]])","v":"SE"},{"$f":"INDEX(tblREGASSLookup[FUNC],MATCH(tblREGASSJune19[[#This Row],[Concat]],tblREGASSLookup[Concat],0))","v":{"$error":"#N/A"}},{"$f":"IF(tblREGASSJune19[[#This Row],[Total ($000)]]=0,\"NO\",IF(ISNA(tblREGASSJune19[[#This Row],[FUNC]]),\"YES\",IF(_xlfn.ISFORMULA(tblREGASSJune19[[#This Row],[FUNC]]),\"NO\",\"YES\")))","v":"NO"}]
[{"$f":"CONCATENATE(tblREGASSJune19[[#This Row],[Primary Account]],tblREGASSJune19[[#This Row],[Primary Name]],tblREGASSJune19[[#This Row],[Secondary Acct]],tblREGASSJune19[[#This Row],[Secondary  Name]],tblREGASSJune19[[#This Row],[Alloc4FUNC]])","v":"1823700OTH REGA-ENERGY WEST186862RA-Deer Creek-ROR Offset-Fossil RockSITUS"},1823700,"OTH REGA-ENERGY WEST",186862,"RA-Deer Creek-ROR Offset-Fossil Rock","UT",-4932.87,{"$f":"IF(OR(tblREGASSJune19[[#This Row],[Alloc]]=\"IDU\",tblREGASSJune19[[#This Row],[Alloc]]=\"OR\",tblREGASSJune19[[#This Row],[Alloc]]=\"UT\",tblREGASSJune19[[#This Row],[Alloc]]=\"WYU\",tblREGASSJune19[[#This Row],[Alloc]]=\"WYP\",tblREGASSJune19[[#This Row],[Alloc]]=\"CA\",tblREGASSJune19[[#This Row],[Alloc]]=\"WA\"),\"SITUS\",tblREGASSJune19[[#This Row],[Alloc]])","v":"SITUS"},{"$f":"INDEX(tblREGASSLookup[FUNC],MATCH(tblREGASSJune19[[#This Row],[Concat]],tblREGASSLookup[Concat],0))","v":"P"},{"$f":"IF(tblREGASSJune19[[#This Row],[Total ($000)]]=0,\"NO\",IF(ISNA(tblREGASSJune19[[#This Row],[FUNC]]),\"YES\",IF(_xlfn.ISFORMULA(tblREGASSJune19[[#This Row],[FUNC]]),\"NO\",\"YES\")))","v":"NO"}]
[{"$f":"CONCATENATE(tblREGASSJune19[[#This Row],[Primary Account]],tblREGASSJune19[[#This Row],[Primary Name]],tblREGASSJune19[[#This Row],[Secondary Acct]],tblREGASSJune19[[#This Row],[Secondary  Name]],tblREGASSJune19[[#This Row],[Alloc4FUNC]])","v":"1823700OTH REGA-ENERGY WEST186862RA-Deer Creek-ROR Offset-Fossil RockSITUS"},1823700,"OTH REGA-ENERGY WEST",186862,"RA-Deer Creek-ROR Offset-Fossil Rock","WYU",-342.93,{"$f":"IF(OR(tblREGASSJune19[[#This Row],[Alloc]]=\"IDU\",tblREGASSJune19[[#This Row],[Alloc]]=\"OR\",tblREGASSJune19[[#This Row],[Alloc]]=\"UT\",tblREGASSJune19[[#This Row],[Alloc]]=\"WYU\",tblREGASSJune19[[#This Row],[Alloc]]=\"WYP\",tblREGASSJune19[[#This Row],[Alloc]]=\"CA\",tblREGASSJune19[[#This Row],[Alloc]]=\"WA\"),\"SITUS\",tblREGASSJune19[[#This Row],[Alloc]])","v":"SITUS"},{"$f":"INDEX(tblREGASSLookup[FUNC],MATCH(tblREGASSJune19[[#This Row],[Concat]],tblREGASSLookup[Concat],0))","v":"P"},{"$f":"IF(tblREGASSJune19[[#This Row],[Total ($000)]]=0,\"NO\",IF(ISNA(tblREGASSJune19[[#This Row],[FUNC]]),\"YES\",IF(_xlfn.ISFORMULA(tblREGASSJune19[[#This Row],[FUNC]]),\"NO\",\"YES\")))","v":"NO"}]
[{"$f":"CONCATENATE(tblREGASSJune19[[#This Row],[Primary Account]],tblREGASSJune19[[#This Row],[Primary Name]],tblREGASSJune19[[#This Row],[Secondary Acct]],tblREGASSJune19[[#This Row],[Secondary  Name]],tblREGASSJune19[[#This Row],[Alloc4FUNC]])","v":"1823700OTH REGA-ENERGY WEST186863RA-Deer Creek-ROR Offset-Note Intrst-IDSITUS"},1823700,"OTH REGA-ENERGY WEST",186863,"RA-Deer Creek-ROR Offset-Note Intrst-ID","IDU",-164.307990769231,{"$f":"IF(OR(tblREGASSJune19[[#This Row],[Alloc]]=\"IDU\",tblREGASSJune19[[#This Row],[Alloc]]=\"OR\",tblREGASSJune19[[#This Row],[Alloc]]=\"UT\",tblREGASSJune19[[#This Row],[Alloc]]=\"WYU\",tblREGASSJune19[[#This Row],[Alloc]]=\"WYP\",tblREGASSJune19[[#This Row],[Alloc]]=\"CA\",tblREGASSJune19[[#This Row],[Alloc]]=\"WA\"),\"SITUS\",tblREGASSJune19[[#This Row],[Alloc]])","v":"SITUS"},{"$f":"INDEX(tblREGASSLookup[FUNC],MATCH(tblREGASSJune19[[#This Row],[Concat]],tblREGASSLookup[Concat],0))","v":"P"},{"$f":"IF(tblREGASSJune19[[#This Row],[Total ($000)]]=0,\"NO\",IF(ISNA(tblREGASSJune19[[#This Row],[FUNC]]),\"YES\",IF(_xlfn.ISFORMULA(tblREGASSJune19[[#This Row],[FUNC]]),\"NO\",\"YES\")))","v":"NO"}]
[{"$f":"CONCATENATE(tblREGASSJune19[[#This Row],[Primary Account]],tblREGASSJune19[[#This Row],[Primary Name]],tblREGASSJune19[[#This Row],[Secondary Acct]],tblREGASSJune19[[#This Row],[Secondary  Name]],tblREGASSJune19[[#This Row],[Alloc4FUNC]])","v":"1823700OTH REGA-ENERGY WEST186864RA-Deer Creek-ROR Offset-Oregon AssetsSITUS"},1823700,"OTH REGA-ENERGY WEST",186864,"RA-Deer Creek-ROR Offset-Oregon Assets","OR",0,{"$f":"IF(OR(tblREGASSJune19[[#This Row],[Alloc]]=\"IDU\",tblREGASSJune19[[#This Row],[Alloc]]=\"OR\",tblREGASSJune19[[#This Row],[Alloc]]=\"UT\",tblREGASSJune19[[#This Row],[Alloc]]=\"WYU\",tblREGASSJune19[[#This Row],[Alloc]]=\"WYP\",tblREGASSJune19[[#This Row],[Alloc]]=\"CA\",tblREGASSJune19[[#This Row],[Alloc]]=\"WA\"),\"SITUS\",tblREGASSJune19[[#This Row],[Alloc]])","v":"SITUS"},{"$f":"INDEX(tblREGASSLookup[FUNC],MATCH(tblREGASSJune19[[#This Row],[Concat]],tblREGASSLookup[Concat],0))","v":{"$error":"#N/A"}},{"$f":"IF(tblREGASSJune19[[#This Row],[Total ($000)]]=0,\"NO\",IF(ISNA(tblREGASSJune19[[#This Row],[FUNC]]),\"YES\",IF(_xlfn.ISFORMULA(tblREGASSJune19[[#This Row],[FUNC]]),\"NO\",\"YES\")))","v":"NO"}]
[{"$f":"CONCATENATE(tblREGASSJune19[[#This Row],[Primary Account]],tblREGASSJune19[[#This Row],[Primary Name]],tblREGASSJune19[[#This Row],[Secondary Acct]],tblREGASSJune19[[#This Row],[Secondary  Name]],tblREGASSJune19[[#This Row],[Alloc4FUNC]])","v":"1823700OTH REGA-ENERGY WEST186870RA-DC ROR Offset-Assets Sold-AmortzSITUS"},1823700,"OTH REGA-ENERGY WEST",186870,"RA-DC ROR Offset-Assets Sold-Amortz","WYP",103.243792307692,{"$f":"IF(OR(tblREGASSJune19[[#This Row],[Alloc]]=\"IDU\",tblREGASSJune19[[#This Row],[Alloc]]=\"OR\",tblREGASSJune19[[#This Row],[Alloc]]=\"UT\",tblREGASSJune19[[#This Row],[Alloc]]=\"WYU\",tblREGASSJune19[[#This Row],[Alloc]]=\"WYP\",tblREGASSJune19[[#This Row],[Alloc]]=\"CA\",tblREGASSJune19[[#This Row],[Alloc]]=\"WA\"),\"SITUS\",tblREGASSJune19[[#This Row],[Alloc]])","v":"SITUS"},{"$f":"INDEX(tblREGASSLookup[FUNC],MATCH(tblREGASSJune19[[#This Row],[Concat]],tblREGASSLookup[Concat],0))","v":"P"},{"$f":"IF(tblREGASSJune19[[#This Row],[Total ($000)]]=0,\"NO\",IF(ISNA(tblREGASSJune19[[#This Row],[FUNC]]),\"YES\",IF(_xlfn.ISFORMULA(tblREGASSJune19[[#This Row],[FUNC]]),\"NO\",\"YES\")))","v":"NO"}]
[{"$f":"CONCATENATE(tblREGASSJune19[[#This Row],[Primary Account]],tblREGASSJune19[[#This Row],[Primary Name]],tblREGASSJune19[[#This Row],[Secondary Acct]],tblREGASSJune19[[#This Row],[Secondary  Name]],tblREGASSJune19[[#This Row],[Alloc4FUNC]])","v":"1823700OTH REGA-ENERGY WEST186871RA-DC ROR Offset-Fuel Inventory-AmortzSITUS"},1823700,"OTH REGA-ENERGY WEST",186871,"RA-DC ROR Offset-Fuel Inventory-Amortz","WYP",311.74356,{"$f":"IF(OR(tblREGASSJune19[[#This Row],[Alloc]]=\"IDU\",tblREGASSJune19[[#This Row],[Alloc]]=\"OR\",tblREGASSJune19[[#This Row],[Alloc]]=\"UT\",tblREGASSJune19[[#This Row],[Alloc]]=\"WYU\",tblREGASSJune19[[#This Row],[Alloc]]=\"WYP\",tblREGASSJune19[[#This Row],[Alloc]]=\"CA\",tblREGASSJune19[[#This Row],[Alloc]]=\"WA\"),\"SITUS\",tblREGASSJune19[[#This Row],[Alloc]])","v":"SITUS"},{"$f":"INDEX(tblREGASSLookup[FUNC],MATCH(tblREGASSJune19[[#This Row],[Concat]],tblREGASSLookup[Concat],0))","v":"P"},{"$f":"IF(tblREGASSJune19[[#This Row],[Total ($000)]]=0,\"NO\",IF(ISNA(tblREGASSJune19[[#This Row],[FUNC]]),\"YES\",IF(_xlfn.ISFORMULA(tblREGASSJune19[[#This Row],[FUNC]]),\"NO\",\"YES\")))","v":"NO"}]
[{"$f":"CONCATENATE(tblREGASSJune19[[#This Row],[Primary Account]],tblREGASSJune19[[#This Row],[Primary Name]],tblREGASSJune19[[#This Row],[Secondary Acct]],tblREGASSJune19[[#This Row],[Secondary  Name]],tblREGASSJune19[[#This Row],[Alloc4FUNC]])","v":"1823700OTH REGA-ENERGY WEST186872RA-DC ROR Offset-Fossil Rock-AmortzSITUS"},1823700,"OTH REGA-ENERGY WEST",186872,"RA-DC ROR Offset-Fossil Rock-Amortz","WYP",256.78008,{"$f":"IF(OR(tblREGASSJune19[[#This Row],[Alloc]]=\"IDU\",tblREGASSJune19[[#This Row],[Alloc]]=\"OR\",tblREGASSJune19[[#This Row],[Alloc]]=\"UT\",tblREGASSJune19[[#This Row],[Alloc]]=\"WYU\",tblREGASSJune19[[#This Row],[Alloc]]=\"WYP\",tblREGASSJune19[[#This Row],[Alloc]]=\"CA\",tblREGASSJune19[[#This Row],[Alloc]]=\"WA\"),\"SITUS\",tblREGASSJune19[[#This Row],[Alloc]])","v":"SITUS"},{"$f":"INDEX(tblREGASSLookup[FUNC],MATCH(tblREGASSJune19[[#This Row],[Concat]],tblREGASSLookup[Concat],0))","v":"P"},{"$f":"IF(tblREGASSJune19[[#This Row],[Total ($000)]]=0,\"NO\",IF(ISNA(tblREGASSJune19[[#This Row],[FUNC]]),\"YES\",IF(_xlfn.ISFORMULA(tblREGASSJune19[[#This Row],[FUNC]]),\"NO\",\"YES\")))","v":"NO"}]
[{"$f":"CONCATENATE(tblREGASSJune19[[#This Row],[Primary Account]],tblREGASSJune19[[#This Row],[Primary Name]],tblREGASSJune19[[#This Row],[Secondary Acct]],tblREGASSJune19[[#This Row],[Secondary  Name]],tblREGASSJune19[[#This Row],[Alloc4FUNC]])","v":"1823700OTH REGA-ENERGY WEST186881Reg Asset-UMWA Pension Trust ObligSE"},1823700,"OTH REGA-ENERGY WEST",186881,"Reg Asset-UMWA Pension Trust Oblig","SE",115119.09934,{"$f":"IF(OR(tblREGASSJune19[[#This Row],[Alloc]]=\"IDU\",tblREGASSJune19[[#This Row],[Alloc]]=\"OR\",tblREGASSJune19[[#This Row],[Alloc]]=\"UT\",tblREGASSJune19[[#This Row],[Alloc]]=\"WYU\",tblREGASSJune19[[#This Row],[Alloc]]=\"WYP\",tblREGASSJune19[[#This Row],[Alloc]]=\"CA\",tblREGASSJune19[[#This Row],[Alloc]]=\"WA\"),\"SITUS\",tblREGASSJune19[[#This Row],[Alloc]])","v":"SE"},{"$f":"INDEX(tblREGASSLookup[FUNC],MATCH(tblREGASSJune19[[#This Row],[Concat]],tblREGASSLookup[Concat],0))","v":"P"},{"$f":"IF(tblREGASSJune19[[#This Row],[Total ($000)]]=0,\"NO\",IF(ISNA(tblREGASSJune19[[#This Row],[FUNC]]),\"YES\",IF(_xlfn.ISFORMULA(tblREGASSJune19[[#This Row],[FUNC]]),\"NO\",\"YES\")))","v":"NO"}]
[{"$f":"CONCATENATE(tblREGASSJune19[[#This Row],[Primary Account]],tblREGASSJune19[[#This Row],[Primary Name]],tblREGASSJune19[[#This Row],[Secondary Acct]],tblREGASSJune19[[#This Row],[Secondary  Name]],tblREGASSJune19[[#This Row],[Alloc4FUNC]])","v":"1823700OTH REGA-ENERGY WEST186886Contra RA-UMWA Pens W/D-To Joint OwnersOTHER"},1823700,"OTH REGA-ENERGY WEST",186886,"Contra RA-UMWA Pens W/D-To Joint Owners","OTHER",-4647.8861299999999,{"$f":"IF(OR(tblREGASSJune19[[#This Row],[Alloc]]=\"IDU\",tblREGASSJune19[[#This Row],[Alloc]]=\"OR\",tblREGASSJune19[[#This Row],[Alloc]]=\"UT\",tblREGASSJune19[[#This Row],[Alloc]]=\"WYU\",tblREGASSJune19[[#This Row],[Alloc]]=\"WYP\",tblREGASSJune19[[#This Row],[Alloc]]=\"CA\",tblREGASSJune19[[#This Row],[Alloc]]=\"WA\"),\"SITUS\",tblREGASSJune19[[#This Row],[Alloc]])","v":"OTHER"},{"$f":"INDEX(tblREGASSLookup[FUNC],MATCH(tblREGASSJune19[[#This Row],[Concat]],tblREGASSLookup[Concat],0))","v":"P"},{"$f":"IF(tblREGASSJune19[[#This Row],[Total ($000)]]=0,\"NO\",IF(ISNA(tblREGASSJune19[[#This Row],[FUNC]]),\"YES\",IF(_xlfn.ISFORMULA(tblREGASSJune19[[#This Row],[FUNC]]),\"NO\",\"YES\")))","v":"NO"}]
[{"$f":"CONCATENATE(tblREGASSJune19[[#This Row],[Primary Account]],tblREGASSJune19[[#This Row],[Primary Name]],tblREGASSJune19[[#This Row],[Secondary Acct]],tblREGASSJune19[[#This Row],[Secondary  Name]],tblREGASSJune19[[#This Row],[Alloc4FUNC]])","v":"1823700OTH REGA-ENERGY WEST186891Contra Reg Asset-UMWA Pension Trust-CAOTHER"},1823700,"OTH REGA-ENERGY WEST",186891,"Contra Reg Asset-UMWA Pension Trust-CA","OTHER",-1806.8672538461501,{"$f":"IF(OR(tblREGASSJune19[[#This Row],[Alloc]]=\"IDU\",tblREGASSJune19[[#This Row],[Alloc]]=\"OR\",tblREGASSJune19[[#This Row],[Alloc]]=\"UT\",tblREGASSJune19[[#This Row],[Alloc]]=\"WYU\",tblREGASSJune19[[#This Row],[Alloc]]=\"WYP\",tblREGASSJune19[[#This Row],[Alloc]]=\"CA\",tblREGASSJune19[[#This Row],[Alloc]]=\"WA\"),\"SITUS\",tblREGASSJune19[[#This Row],[Alloc]])","v":"OTHER"},{"$f":"INDEX(tblREGASSLookup[FUNC],MATCH(tblREGASSJune19[[#This Row],[Concat]],tblREGASSLookup[Concat],0))","v":"P"},{"$f":"IF(tblREGASSJune19[[#This Row],[Total ($000)]]=0,\"NO\",IF(ISNA(tblREGASSJune19[[#This Row],[FUNC]]),\"YES\",IF(_xlfn.ISFORMULA(tblREGASSJune19[[#This Row],[FUNC]]),\"NO\",\"YES\")))","v":"NO"}]
[{"$f":"CONCATENATE(tblREGASSJune19[[#This Row],[Primary Account]],tblREGASSJune19[[#This Row],[Primary Name]],tblREGASSJune19[[#This Row],[Secondary Acct]],tblREGASSJune19[[#This Row],[Secondary  Name]],tblREGASSJune19[[#This Row],[Alloc4FUNC]])","v":"1823700OTH REGA-ENERGY WEST186895Contra Reg Asset-UMWA Pension Trust-WAOTHER"},1823700,"OTH REGA-ENERGY WEST",186895,"Contra Reg Asset-UMWA Pension Trust-WA","OTHER",-8104.3893846153896,{"$f":"IF(OR(tblREGASSJune19[[#This Row],[Alloc]]=\"IDU\",tblREGASSJune19[[#This Row],[Alloc]]=\"OR\",tblREGASSJune19[[#This Row],[Alloc]]=\"UT\",tblREGASSJune19[[#This Row],[Alloc]]=\"WYU\",tblREGASSJune19[[#This Row],[Alloc]]=\"WYP\",tblREGASSJune19[[#This Row],[Alloc]]=\"CA\",tblREGASSJune19[[#This Row],[Alloc]]=\"WA\"),\"SITUS\",tblREGASSJune19[[#This Row],[Alloc]])","v":"OTHER"},{"$f":"INDEX(tblREGASSLookup[FUNC],MATCH(tblREGASSJune19[[#This Row],[Concat]],tblREGASSLookup[Concat],0))","v":"P"},{"$f":"IF(tblREGASSJune19[[#This Row],[Total ($000)]]=0,\"NO\",IF(ISNA(tblREGASSJune19[[#This Row],[FUNC]]),\"YES\",IF(_xlfn.ISFORMULA(tblREGASSJune19[[#This Row],[FUNC]]),\"NO\",\"YES\")))","v":"NO"}]
[{"$f":"CONCATENATE(tblREGASSJune19[[#This Row],[Primary Account]],tblREGASSJune19[[#This Row],[Primary Name]],tblREGASSJune19[[#This Row],[Secondary Acct]],tblREGASSJune19[[#This Row],[Secondary  Name]],tblREGASSJune19[[#This Row],[Alloc4FUNC]])","v":"1823700OTH REGA-ENERGY WEST187593Contra ARO/Reg Diff - Deer Creek MineOTHER"},1823700,"OTH REGA-ENERGY WEST",187593,"Contra ARO/Reg Diff - Deer Creek Mine","OTHER",0,{"$f":"IF(OR(tblREGASSJune19[[#This Row],[Alloc]]=\"IDU\",tblREGASSJune19[[#This Row],[Alloc]]=\"OR\",tblREGASSJune19[[#This Row],[Alloc]]=\"UT\",tblREGASSJune19[[#This Row],[Alloc]]=\"WYU\",tblREGASSJune19[[#This Row],[Alloc]]=\"WYP\",tblREGASSJune19[[#This Row],[Alloc]]=\"CA\",tblREGASSJune19[[#This Row],[Alloc]]=\"WA\"),\"SITUS\",tblREGASSJune19[[#This Row],[Alloc]])","v":"OTHER"},{"$f":"INDEX(tblREGASSLookup[FUNC],MATCH(tblREGASSJune19[[#This Row],[Concat]],tblREGASSLookup[Concat],0))","v":{"$error":"#N/A"}},{"$f":"IF(tblREGASSJune19[[#This Row],[Total ($000)]]=0,\"NO\",IF(ISNA(tblREGASSJune19[[#This Row],[FUNC]]),\"YES\",IF(_xlfn.ISFORMULA(tblREGASSJune19[[#This Row],[FUNC]]),\"NO\",\"YES\")))","v":"NO"}]
[{"$f":"CONCATENATE(tblREGASSJune19[[#This Row],[Primary Account]],tblREGASSJune19[[#This Row],[Primary Name]],tblREGASSJune19[[#This Row],[Secondary Acct]],tblREGASSJune19[[#This Row],[Secondary  Name]],tblREGASSJune19[[#This Row],[Alloc4FUNC]])","v":"1823870DEFERRED PENSION111550REG ASSET-FAS87/88 PENSION UTSITUS"},1823870,"DEFERRED PENSION",111550,"REG ASSET-FAS87/88 PENSION UT","UT",0,{"$f":"IF(OR(tblREGASSJune19[[#This Row],[Alloc]]=\"IDU\",tblREGASSJune19[[#This Row],[Alloc]]=\"OR\",tblREGASSJune19[[#This Row],[Alloc]]=\"UT\",tblREGASSJune19[[#This Row],[Alloc]]=\"WYU\",tblREGASSJune19[[#This Row],[Alloc]]=\"WYP\",tblREGASSJune19[[#This Row],[Alloc]]=\"CA\",tblREGASSJune19[[#This Row],[Alloc]]=\"WA\"),\"SITUS\",tblREGASSJune19[[#This Row],[Alloc]])","v":"SITUS"},{"$f":"INDEX(tblREGASSLookup[FUNC],MATCH(tblREGASSJune19[[#This Row],[Concat]],tblREGASSLookup[Concat],0))","v":{"$error":"#N/A"}},{"$f":"IF(tblREGASSJune19[[#This Row],[Total ($000)]]=0,\"NO\",IF(ISNA(tblREGASSJune19[[#This Row],[FUNC]]),\"YES\",IF(_xlfn.ISFORMULA(tblREGASSJune19[[#This Row],[FUNC]]),\"NO\",\"YES\")))","v":"NO"}]
[{"$f":"CONCATENATE(tblREGASSJune19[[#This Row],[Primary Account]],tblREGASSJune19[[#This Row],[Primary Name]],tblREGASSJune19[[#This Row],[Secondary Acct]],tblREGASSJune19[[#This Row],[Secondary  Name]],tblREGASSJune19[[#This Row],[Alloc4FUNC]])","v":"1823870DEFERRED PENSION187017FAS 158 Pen Liab AdjSO"},1823870,"DEFERRED PENSION",187017,"FAS 158 Pen Liab Adj","SO",439092.83036384598,{"$f":"IF(OR(tblREGASSJune19[[#This Row],[Alloc]]=\"IDU\",tblREGASSJune19[[#This Row],[Alloc]]=\"OR\",tblREGASSJune19[[#This Row],[Alloc]]=\"UT\",tblREGASSJune19[[#This Row],[Alloc]]=\"WYU\",tblREGASSJune19[[#This Row],[Alloc]]=\"WYP\",tblREGASSJune19[[#This Row],[Alloc]]=\"CA\",tblREGASSJune19[[#This Row],[Alloc]]=\"WA\"),\"SITUS\",tblREGASSJune19[[#This Row],[Alloc]])","v":"SO"},{"$f":"INDEX(tblREGASSLookup[FUNC],MATCH(tblREGASSJune19[[#This Row],[Concat]],tblREGASSLookup[Concat],0))","v":"LABOR"},{"$f":"IF(tblREGASSJune19[[#This Row],[Total ($000)]]=0,\"NO\",IF(ISNA(tblREGASSJune19[[#This Row],[FUNC]]),\"YES\",IF(_xlfn.ISFORMULA(tblREGASSJune19[[#This Row],[FUNC]]),\"NO\",\"YES\")))","v":"NO"}]
[{"$f":"CONCATENATE(tblREGASSJune19[[#This Row],[Primary Account]],tblREGASSJune19[[#This Row],[Primary Name]],tblREGASSJune19[[#This Row],[Secondary Acct]],tblREGASSJune19[[#This Row],[Secondary  Name]],tblREGASSJune19[[#This Row],[Alloc4FUNC]])","v":"1823870DEFERRED PENSION187018CONTRA FAS 158 PENSION REG ASSETSO"},1823870,"DEFERRED PENSION",187018,"CONTRA FAS 158 PENSION REG ASSET","SO",-11892.407538461501,{"$f":"IF(OR(tblREGASSJune19[[#This Row],[Alloc]]=\"IDU\",tblREGASSJune19[[#This Row],[Alloc]]=\"OR\",tblREGASSJune19[[#This Row],[Alloc]]=\"UT\",tblREGASSJune19[[#This Row],[Alloc]]=\"WYU\",tblREGASSJune19[[#This Row],[Alloc]]=\"WYP\",tblREGASSJune19[[#This Row],[Alloc]]=\"CA\",tblREGASSJune19[[#This Row],[Alloc]]=\"WA\"),\"SITUS\",tblREGASSJune19[[#This Row],[Alloc]])","v":"SO"},{"$f":"INDEX(tblREGASSLookup[FUNC],MATCH(tblREGASSJune19[[#This Row],[Concat]],tblREGASSLookup[Concat],0))","v":"LABOR"},{"$f":"IF(tblREGASSJune19[[#This Row],[Total ($000)]]=0,\"NO\",IF(ISNA(tblREGASSJune19[[#This Row],[FUNC]]),\"YES\",IF(_xlfn.ISFORMULA(tblREGASSJune19[[#This Row],[FUNC]]),\"NO\",\"YES\")))","v":"NO"}]
[{"$f":"CONCATENATE(tblREGASSJune19[[#This Row],[Primary Account]],tblREGASSJune19[[#This Row],[Primary Name]],tblREGASSJune19[[#This Row],[Secondary Acct]],tblREGASSJune19[[#This Row],[Secondary  Name]],tblREGASSJune19[[#This Row],[Alloc4FUNC]])","v":"1823870DEFERRED PENSION187104FAS 87/88 PENSION UTSITUS"},1823870,"DEFERRED PENSION",187104,"FAS 87/88 PENSION UT","UT",0,{"$f":"IF(OR(tblREGASSJune19[[#This Row],[Alloc]]=\"IDU\",tblREGASSJune19[[#This Row],[Alloc]]=\"OR\",tblREGASSJune19[[#This Row],[Alloc]]=\"UT\",tblREGASSJune19[[#This Row],[Alloc]]=\"WYU\",tblREGASSJune19[[#This Row],[Alloc]]=\"WYP\",tblREGASSJune19[[#This Row],[Alloc]]=\"CA\",tblREGASSJune19[[#This Row],[Alloc]]=\"WA\"),\"SITUS\",tblREGASSJune19[[#This Row],[Alloc]])","v":"SITUS"},{"$f":"INDEX(tblREGASSLookup[FUNC],MATCH(tblREGASSJune19[[#This Row],[Concat]],tblREGASSLookup[Concat],0))","v":{"$error":"#N/A"}},{"$f":"IF(tblREGASSJune19[[#This Row],[Total ($000)]]=0,\"NO\",IF(ISNA(tblREGASSJune19[[#This Row],[FUNC]]),\"YES\",IF(_xlfn.ISFORMULA(tblREGASSJune19[[#This Row],[FUNC]]),\"NO\",\"YES\")))","v":"NO"}]
[{"$f":"CONCATENATE(tblREGASSJune19[[#This Row],[Primary Account]],tblREGASSJune19[[#This Row],[Primary Name]],tblREGASSJune19[[#This Row],[Secondary Acct]],tblREGASSJune19[[#This Row],[Secondary  Name]],tblREGASSJune19[[#This Row],[Alloc4FUNC]])","v":"1823870DEFERRED PENSION187600Contra Pension Reg Asset MMT & CTG - ORSITUS"},1823870,"DEFERRED PENSION",187600,"Contra Pension Reg Asset MMT & CTG - OR","OR",-135.625802307692,{"$f":"IF(OR(tblREGASSJune19[[#This Row],[Alloc]]=\"IDU\",tblREGASSJune19[[#This Row],[Alloc]]=\"OR\",tblREGASSJune19[[#This Row],[Alloc]]=\"UT\",tblREGASSJune19[[#This Row],[Alloc]]=\"WYU\",tblREGASSJune19[[#This Row],[Alloc]]=\"WYP\",tblREGASSJune19[[#This Row],[Alloc]]=\"CA\",tblREGASSJune19[[#This Row],[Alloc]]=\"WA\"),\"SITUS\",tblREGASSJune19[[#This Row],[Alloc]])","v":"SITUS"},{"$f":"INDEX(tblREGASSLookup[FUNC],MATCH(tblREGASSJune19[[#This Row],[Concat]],tblREGASSLookup[Concat],0))","v":"LABOR"},{"$f":"IF(tblREGASSJune19[[#This Row],[Total ($000)]]=0,\"NO\",IF(ISNA(tblREGASSJune19[[#This Row],[FUNC]]),\"YES\",IF(_xlfn.ISFORMULA(tblREGASSJune19[[#This Row],[FUNC]]),\"NO\",\"YES\")))","v":"NO"}]
[{"$f":"CONCATENATE(tblREGASSJune19[[#This Row],[Primary Account]],tblREGASSJune19[[#This Row],[Primary Name]],tblREGASSJune19[[#This Row],[Secondary Acct]],tblREGASSJune19[[#This Row],[Secondary  Name]],tblREGASSJune19[[#This Row],[Alloc4FUNC]])","v":"1823870DEFERRED PENSION187601Contra Pension Reg Asset MMT & CTG - WYSITUS"},1823870,"DEFERRED PENSION",187601,"Contra Pension Reg Asset MMT & CTG - WY","WYP",0,{"$f":"IF(OR(tblREGASSJune19[[#This Row],[Alloc]]=\"IDU\",tblREGASSJune19[[#This Row],[Alloc]]=\"OR\",tblREGASSJune19[[#This Row],[Alloc]]=\"UT\",tblREGASSJune19[[#This Row],[Alloc]]=\"WYU\",tblREGASSJune19[[#This Row],[Alloc]]=\"WYP\",tblREGASSJune19[[#This Row],[Alloc]]=\"CA\",tblREGASSJune19[[#This Row],[Alloc]]=\"WA\"),\"SITUS\",tblREGASSJune19[[#This Row],[Alloc]])","v":"SITUS"},{"$f":"INDEX(tblREGASSLookup[FUNC],MATCH(tblREGASSJune19[[#This Row],[Concat]],tblREGASSLookup[Concat],0))","v":{"$error":"#N/A"}},{"$f":"IF(tblREGASSJune19[[#This Row],[Total ($000)]]=0,\"NO\",IF(ISNA(tblREGASSJune19[[#This Row],[FUNC]]),\"YES\",IF(_xlfn.ISFORMULA(tblREGASSJune19[[#This Row],[FUNC]]),\"NO\",\"YES\")))","v":"NO"}]
[{"$f":"CONCATENATE(tblREGASSJune19[[#This Row],[Primary Account]],tblREGASSJune19[[#This Row],[Primary Name]],tblREGASSJune19[[#This Row],[Secondary Acct]],tblREGASSJune19[[#This Row],[Secondary  Name]],tblREGASSJune19[[#This Row],[Alloc4FUNC]])","v":"1823870DEFERRED PENSION187602Reg Asset -  Pension MMT - UTSITUS"},1823870,"DEFERRED PENSION",187602,"Reg Asset -  Pension MMT - UT","UT",0,{"$f":"IF(OR(tblREGASSJune19[[#This Row],[Alloc]]=\"IDU\",tblREGASSJune19[[#This Row],[Alloc]]=\"OR\",tblREGASSJune19[[#This Row],[Alloc]]=\"UT\",tblREGASSJune19[[#This Row],[Alloc]]=\"WYU\",tblREGASSJune19[[#This Row],[Alloc]]=\"WYP\",tblREGASSJune19[[#This Row],[Alloc]]=\"CA\",tblREGASSJune19[[#This Row],[Alloc]]=\"WA\"),\"SITUS\",tblREGASSJune19[[#This Row],[Alloc]])","v":"SITUS"},{"$f":"INDEX(tblREGASSLookup[FUNC],MATCH(tblREGASSJune19[[#This Row],[Concat]],tblREGASSLookup[Concat],0))","v":"LABOR"},{"$f":"IF(tblREGASSJune19[[#This Row],[Total ($000)]]=0,\"NO\",IF(ISNA(tblREGASSJune19[[#This Row],[FUNC]]),\"YES\",IF(_xlfn.ISFORMULA(tblREGASSJune19[[#This Row],[FUNC]]),\"NO\",\"YES\")))","v":"NO"}]
[{"$f":"CONCATENATE(tblREGASSJune19[[#This Row],[Primary Account]],tblREGASSJune19[[#This Row],[Primary Name]],tblREGASSJune19[[#This Row],[Secondary Acct]],tblREGASSJune19[[#This Row],[Secondary  Name]],tblREGASSJune19[[#This Row],[Alloc4FUNC]])","v":"1823870DEFERRED PENSION187604Contra Pension Reg Asset MMT & CTG - CASITUS"},1823870,"DEFERRED PENSION",187604,"Contra Pension Reg Asset MMT & CTG - CA","CA",-12.119822307692299,{"$f":"IF(OR(tblREGASSJune19[[#This Row],[Alloc]]=\"IDU\",tblREGASSJune19[[#This Row],[Alloc]]=\"OR\",tblREGASSJune19[[#This Row],[Alloc]]=\"UT\",tblREGASSJune19[[#This Row],[Alloc]]=\"WYU\",tblREGASSJune19[[#This Row],[Alloc]]=\"WYP\",tblREGASSJune19[[#This Row],[Alloc]]=\"CA\",tblREGASSJune19[[#This Row],[Alloc]]=\"WA\"),\"SITUS\",tblREGASSJune19[[#This Row],[Alloc]])","v":"SITUS"},{"$f":"INDEX(tblREGASSLookup[FUNC],MATCH(tblREGASSJune19[[#This Row],[Concat]],tblREGASSLookup[Concat],0))","v":"LABOR"},{"$f":"IF(tblREGASSJune19[[#This Row],[Total ($000)]]=0,\"NO\",IF(ISNA(tblREGASSJune19[[#This Row],[FUNC]]),\"YES\",IF(_xlfn.ISFORMULA(tblREGASSJune19[[#This Row],[FUNC]]),\"NO\",\"YES\")))","v":"NO"}]
[{"$f":"CONCATENATE(tblREGASSJune19[[#This Row],[Primary Account]],tblREGASSJune19[[#This Row],[Primary Name]],tblREGASSJune19[[#This Row],[Secondary Acct]],tblREGASSJune19[[#This Row],[Secondary  Name]],tblREGASSJune19[[#This Row],[Alloc4FUNC]])","v":"1823870DEFERRED PENSION187605Contra Pension Reg Asset CTG - WASITUS"},1823870,"DEFERRED PENSION",187605,"Contra Pension Reg Asset CTG - WA","WA",0,{"$f":"IF(OR(tblREGASSJune19[[#This Row],[Alloc]]=\"IDU\",tblREGASSJune19[[#This Row],[Alloc]]=\"OR\",tblREGASSJune19[[#This Row],[Alloc]]=\"UT\",tblREGASSJune19[[#This Row],[Alloc]]=\"WYU\",tblREGASSJune19[[#This Row],[Alloc]]=\"WYP\",tblREGASSJune19[[#This Row],[Alloc]]=\"CA\",tblREGASSJune19[[#This Row],[Alloc]]=\"WA\"),\"SITUS\",tblREGASSJune19[[#This Row],[Alloc]])","v":"SITUS"},{"$f":"INDEX(tblREGASSLookup[FUNC],MATCH(tblREGASSJune19[[#This Row],[Concat]],tblREGASSLookup[Concat],0))","v":{"$error":"#N/A"}},{"$f":"IF(tblREGASSJune19[[#This Row],[Total ($000)]]=0,\"NO\",IF(ISNA(tblREGASSJune19[[#This Row],[FUNC]]),\"YES\",IF(_xlfn.ISFORMULA(tblREGASSJune19[[#This Row],[FUNC]]),\"NO\",\"YES\")))","v":"NO"}]
[{"$f":"CONCATENATE(tblREGASSJune19[[#This Row],[Primary Account]],tblREGASSJune19[[#This Row],[Primary Name]],tblREGASSJune19[[#This Row],[Secondary Acct]],tblREGASSJune19[[#This Row],[Secondary  Name]],tblREGASSJune19[[#This Row],[Alloc4FUNC]])","v":"1823870DEFERRED PENSION187607Contra Reg Asset 2016 Pension Plan CTGSO"},1823870,"DEFERRED PENSION",187607,"Contra Reg Asset 2016 Pension Plan CTG","SO",-1640.9833000000001,{"$f":"IF(OR(tblREGASSJune19[[#This Row],[Alloc]]=\"IDU\",tblREGASSJune19[[#This Row],[Alloc]]=\"OR\",tblREGASSJune19[[#This Row],[Alloc]]=\"UT\",tblREGASSJune19[[#This Row],[Alloc]]=\"WYU\",tblREGASSJune19[[#This Row],[Alloc]]=\"WYP\",tblREGASSJune19[[#This Row],[Alloc]]=\"CA\",tblREGASSJune19[[#This Row],[Alloc]]=\"WA\"),\"SITUS\",tblREGASSJune19[[#This Row],[Alloc]])","v":"SO"},{"$f":"INDEX(tblREGASSLookup[FUNC],MATCH(tblREGASSJune19[[#This Row],[Concat]],tblREGASSLookup[Concat],0))","v":"LABOR"},{"$f":"IF(tblREGASSJune19[[#This Row],[Total ($000)]]=0,\"NO\",IF(ISNA(tblREGASSJune19[[#This Row],[FUNC]]),\"YES\",IF(_xlfn.ISFORMULA(tblREGASSJune19[[#This Row],[FUNC]]),\"NO\",\"YES\")))","v":"NO"}]
[{"$f":"CONCATENATE(tblREGASSJune19[[#This Row],[Primary Account]],tblREGASSJune19[[#This Row],[Primary Name]],tblREGASSJune19[[#This Row],[Secondary Acct]],tblREGASSJune19[[#This Row],[Secondary  Name]],tblREGASSJune19[[#This Row],[Alloc4FUNC]])","v":"1823870DEFERRED PENSION187621Reg Asset FAS - 158SO"},1823870,"DEFERRED PENSION",187621,"Reg Asset FAS - 158","SO",-7594.6991469230798,{"$f":"IF(OR(tblREGASSJune19[[#This Row],[Alloc]]=\"IDU\",tblREGASSJune19[[#This Row],[Alloc]]=\"OR\",tblREGASSJune19[[#This Row],[Alloc]]=\"UT\",tblREGASSJune19[[#This Row],[Alloc]]=\"WYU\",tblREGASSJune19[[#This Row],[Alloc]]=\"WYP\",tblREGASSJune19[[#This Row],[Alloc]]=\"CA\",tblREGASSJune19[[#This Row],[Alloc]]=\"WA\"),\"SITUS\",tblREGASSJune19[[#This Row],[Alloc]])","v":"SO"},{"$f":"INDEX(tblREGASSLookup[FUNC],MATCH(tblREGASSJune19[[#This Row],[Concat]],tblREGASSLookup[Concat],0))","v":"LABOR"},{"$f":"IF(tblREGASSJune19[[#This Row],[Total ($000)]]=0,\"NO\",IF(ISNA(tblREGASSJune19[[#This Row],[FUNC]]),\"YES\",IF(_xlfn.ISFORMULA(tblREGASSJune19[[#This Row],[FUNC]]),\"NO\",\"YES\")))","v":"NO"}]
[{"$f":"CONCATENATE(tblREGASSJune19[[#This Row],[Primary Account]],tblREGASSJune19[[#This Row],[Primary Name]],tblREGASSJune19[[#This Row],[Secondary Acct]],tblREGASSJune19[[#This Row],[Secondary  Name]],tblREGASSJune19[[#This Row],[Alloc4FUNC]])","v":"1823870DEFERRED PENSION187622Reg Asset - Post-Ret MMT - ORSITUS"},1823870,"DEFERRED PENSION",187622,"Reg Asset - Post-Ret MMT - OR","OR",25.9854438461538,{"$f":"IF(OR(tblREGASSJune19[[#This Row],[Alloc]]=\"IDU\",tblREGASSJune19[[#This Row],[Alloc]]=\"OR\",tblREGASSJune19[[#This Row],[Alloc]]=\"UT\",tblREGASSJune19[[#This Row],[Alloc]]=\"WYU\",tblREGASSJune19[[#This Row],[Alloc]]=\"WYP\",tblREGASSJune19[[#This Row],[Alloc]]=\"CA\",tblREGASSJune19[[#This Row],[Alloc]]=\"WA\"),\"SITUS\",tblREGASSJune19[[#This Row],[Alloc]])","v":"SITUS"},{"$f":"INDEX(tblREGASSLookup[FUNC],MATCH(tblREGASSJune19[[#This Row],[Concat]],tblREGASSLookup[Concat],0))","v":"LABOR"},{"$f":"IF(tblREGASSJune19[[#This Row],[Total ($000)]]=0,\"NO\",IF(ISNA(tblREGASSJune19[[#This Row],[FUNC]]),\"YES\",IF(_xlfn.ISFORMULA(tblREGASSJune19[[#This Row],[FUNC]]),\"NO\",\"YES\")))","v":"NO"}]
[{"$f":"CONCATENATE(tblREGASSJune19[[#This Row],[Primary Account]],tblREGASSJune19[[#This Row],[Primary Name]],tblREGASSJune19[[#This Row],[Secondary Acct]],tblREGASSJune19[[#This Row],[Secondary  Name]],tblREGASSJune19[[#This Row],[Alloc4FUNC]])","v":"1823870DEFERRED PENSION187623Reg Asset - Post-Ret MMT - WYSITUS"},1823870,"DEFERRED PENSION",187623,"Reg Asset - Post-Ret MMT - WY","WYP",0,{"$f":"IF(OR(tblREGASSJune19[[#This Row],[Alloc]]=\"IDU\",tblREGASSJune19[[#This Row],[Alloc]]=\"OR\",tblREGASSJune19[[#This Row],[Alloc]]=\"UT\",tblREGASSJune19[[#This Row],[Alloc]]=\"WYU\",tblREGASSJune19[[#This Row],[Alloc]]=\"WYP\",tblREGASSJune19[[#This Row],[Alloc]]=\"CA\",tblREGASSJune19[[#This Row],[Alloc]]=\"WA\"),\"SITUS\",tblREGASSJune19[[#This Row],[Alloc]])","v":"SITUS"},{"$f":"INDEX(tblREGASSLookup[FUNC],MATCH(tblREGASSJune19[[#This Row],[Concat]],tblREGASSLookup[Concat],0))","v":{"$error":"#N/A"}},{"$f":"IF(tblREGASSJune19[[#This Row],[Total ($000)]]=0,\"NO\",IF(ISNA(tblREGASSJune19[[#This Row],[FUNC]]),\"YES\",IF(_xlfn.ISFORMULA(tblREGASSJune19[[#This Row],[FUNC]]),\"NO\",\"YES\")))","v":"NO"}]
[{"$f":"CONCATENATE(tblREGASSJune19[[#This Row],[Primary Account]],tblREGASSJune19[[#This Row],[Primary Name]],tblREGASSJune19[[#This Row],[Secondary Acct]],tblREGASSJune19[[#This Row],[Secondary  Name]],tblREGASSJune19[[#This Row],[Alloc4FUNC]])","v":"1823870DEFERRED PENSION187624Reg Asset - Post-Ret MMT - UTSITUS"},1823870,"DEFERRED PENSION",187624,"Reg Asset - Post-Ret MMT - UT","UT",0,{"$f":"IF(OR(tblREGASSJune19[[#This Row],[Alloc]]=\"IDU\",tblREGASSJune19[[#This Row],[Alloc]]=\"OR\",tblREGASSJune19[[#This Row],[Alloc]]=\"UT\",tblREGASSJune19[[#This Row],[Alloc]]=\"WYU\",tblREGASSJune19[[#This Row],[Alloc]]=\"WYP\",tblREGASSJune19[[#This Row],[Alloc]]=\"CA\",tblREGASSJune19[[#This Row],[Alloc]]=\"WA\"),\"SITUS\",tblREGASSJune19[[#This Row],[Alloc]])","v":"SITUS"},{"$f":"INDEX(tblREGASSLookup[FUNC],MATCH(tblREGASSJune19[[#This Row],[Concat]],tblREGASSLookup[Concat],0))","v":"LABOR"},{"$f":"IF(tblREGASSJune19[[#This Row],[Total ($000)]]=0,\"NO\",IF(ISNA(tblREGASSJune19[[#This Row],[FUNC]]),\"YES\",IF(_xlfn.ISFORMULA(tblREGASSJune19[[#This Row],[FUNC]]),\"NO\",\"YES\")))","v":"NO"}]
[{"$f":"CONCATENATE(tblREGASSJune19[[#This Row],[Primary Account]],tblREGASSJune19[[#This Row],[Primary Name]],tblREGASSJune19[[#This Row],[Secondary Acct]],tblREGASSJune19[[#This Row],[Secondary  Name]],tblREGASSJune19[[#This Row],[Alloc4FUNC]])","v":"1823870DEFERRED PENSION187627Reg Asset - Post-Ret MMT - CASITUS"},1823870,"DEFERRED PENSION",187627,"Reg Asset - Post-Ret MMT - CA","CA",2.3540515384615399,{"$f":"IF(OR(tblREGASSJune19[[#This Row],[Alloc]]=\"IDU\",tblREGASSJune19[[#This Row],[Alloc]]=\"OR\",tblREGASSJune19[[#This Row],[Alloc]]=\"UT\",tblREGASSJune19[[#This Row],[Alloc]]=\"WYU\",tblREGASSJune19[[#This Row],[Alloc]]=\"WYP\",tblREGASSJune19[[#This Row],[Alloc]]=\"CA\",tblREGASSJune19[[#This Row],[Alloc]]=\"WA\"),\"SITUS\",tblREGASSJune19[[#This Row],[Alloc]])","v":"SITUS"},{"$f":"INDEX(tblREGASSLookup[FUNC],MATCH(tblREGASSJune19[[#This Row],[Concat]],tblREGASSLookup[Concat],0))","v":"LABOR"},{"$f":"IF(tblREGASSJune19[[#This Row],[Total ($000)]]=0,\"NO\",IF(ISNA(tblREGASSJune19[[#This Row],[FUNC]]),\"YES\",IF(_xlfn.ISFORMULA(tblREGASSJune19[[#This Row],[FUNC]]),\"NO\",\"YES\")))","v":"NO"}]
[{"$f":"CONCATENATE(tblREGASSJune19[[#This Row],[Primary Account]],tblREGASSJune19[[#This Row],[Primary Name]],tblREGASSJune19[[#This Row],[Secondary Acct]],tblREGASSJune19[[#This Row],[Secondary  Name]],tblREGASSJune19[[#This Row],[Alloc4FUNC]])","v":"1823870DEFERRED PENSION187629Reg Asset - Post-Ret - Settlement LossSITUS"},1823870,"DEFERRED PENSION",187629,"Reg Asset - Post-Ret - Settlement Loss","CA",-127.03400000000001,{"$f":"IF(OR(tblREGASSJune19[[#This Row],[Alloc]]=\"IDU\",tblREGASSJune19[[#This Row],[Alloc]]=\"OR\",tblREGASSJune19[[#This Row],[Alloc]]=\"UT\",tblREGASSJune19[[#This Row],[Alloc]]=\"WYU\",tblREGASSJune19[[#This Row],[Alloc]]=\"WYP\",tblREGASSJune19[[#This Row],[Alloc]]=\"CA\",tblREGASSJune19[[#This Row],[Alloc]]=\"WA\"),\"SITUS\",tblREGASSJune19[[#This Row],[Alloc]])","v":"SITUS"},{"$f":"INDEX(tblREGASSLookup[FUNC],MATCH(tblREGASSJune19[[#This Row],[Concat]],tblREGASSLookup[Concat],0))","v":"LABOR"},{"$f":"IF(tblREGASSJune19[[#This Row],[Total ($000)]]=0,\"NO\",IF(ISNA(tblREGASSJune19[[#This Row],[FUNC]]),\"YES\",IF(_xlfn.ISFORMULA(tblREGASSJune19[[#This Row],[FUNC]]),\"NO\",\"YES\")))","v":"NO"}]
[{"$f":"CONCATENATE(tblREGASSJune19[[#This Row],[Primary Account]],tblREGASSJune19[[#This Row],[Primary Name]],tblREGASSJune19[[#This Row],[Secondary Acct]],tblREGASSJune19[[#This Row],[Secondary  Name]],tblREGASSJune19[[#This Row],[Alloc4FUNC]])","v":"1823870DEFERRED PENSION187629Reg Asset - Post-Ret - Settlement LossSO"},1823870,"DEFERRED PENSION",187629,"Reg Asset - Post-Ret - Settlement Loss","SO",8323.0730000000003,{"$f":"IF(OR(tblREGASSJune19[[#This Row],[Alloc]]=\"IDU\",tblREGASSJune19[[#This Row],[Alloc]]=\"OR\",tblREGASSJune19[[#This Row],[Alloc]]=\"UT\",tblREGASSJune19[[#This Row],[Alloc]]=\"WYU\",tblREGASSJune19[[#This Row],[Alloc]]=\"WYP\",tblREGASSJune19[[#This Row],[Alloc]]=\"CA\",tblREGASSJune19[[#This Row],[Alloc]]=\"WA\"),\"SITUS\",tblREGASSJune19[[#This Row],[Alloc]])","v":"SO"},{"$f":"INDEX(tblREGASSLookup[FUNC],MATCH(tblREGASSJune19[[#This Row],[Concat]],tblREGASSLookup[Concat],0))","v":"LABOR"},{"$f":"IF(tblREGASSJune19[[#This Row],[Total ($000)]]=0,\"NO\",IF(ISNA(tblREGASSJune19[[#This Row],[FUNC]]),\"YES\",IF(_xlfn.ISFORMULA(tblREGASSJune19[[#This Row],[FUNC]]),\"NO\",\"YES\")))","v":"NO"}]
[{"$f":"CONCATENATE(tblREGASSJune19[[#This Row],[Primary Account]],tblREGASSJune19[[#This Row],[Primary Name]],tblREGASSJune19[[#This Row],[Secondary Acct]],tblREGASSJune19[[#This Row],[Secondary  Name]],tblREGASSJune19[[#This Row],[Alloc4FUNC]])","v":"1823870DEFERRED PENSION187629Reg Asset - Post-Ret - Settlement LossSITUS"},1823870,"DEFERRED PENSION",187629,"Reg Asset - Post-Ret - Settlement Loss","UT",0,{"$f":"IF(OR(tblREGASSJune19[[#This Row],[Alloc]]=\"IDU\",tblREGASSJune19[[#This Row],[Alloc]]=\"OR\",tblREGASSJune19[[#This Row],[Alloc]]=\"UT\",tblREGASSJune19[[#This Row],[Alloc]]=\"WYU\",tblREGASSJune19[[#This Row],[Alloc]]=\"WYP\",tblREGASSJune19[[#This Row],[Alloc]]=\"CA\",tblREGASSJune19[[#This Row],[Alloc]]=\"WA\"),\"SITUS\",tblREGASSJune19[[#This Row],[Alloc]])","v":"SITUS"},{"$f":"INDEX(tblREGASSLookup[FUNC],MATCH(tblREGASSJune19[[#This Row],[Concat]],tblREGASSLookup[Concat],0))","v":"LABOR"},{"$f":"IF(tblREGASSJune19[[#This Row],[Total ($000)]]=0,\"NO\",IF(ISNA(tblREGASSJune19[[#This Row],[FUNC]]),\"YES\",IF(_xlfn.ISFORMULA(tblREGASSJune19[[#This Row],[FUNC]]),\"NO\",\"YES\")))","v":"NO"}]
[{"$f":"CONCATENATE(tblREGASSJune19[[#This Row],[Primary Account]],tblREGASSJune19[[#This Row],[Primary Name]],tblREGASSJune19[[#This Row],[Secondary Acct]],tblREGASSJune19[[#This Row],[Secondary  Name]],tblREGASSJune19[[#This Row],[Alloc4FUNC]])","v":"1823870DEFERRED PENSION187629Reg Asset - Post-Ret - Settlement LossSITUS"},1823870,"DEFERRED PENSION",187629,"Reg Asset - Post-Ret - Settlement Loss","WA",-660.17600000000004,{"$f":"IF(OR(tblREGASSJune19[[#This Row],[Alloc]]=\"IDU\",tblREGASSJune19[[#This Row],[Alloc]]=\"OR\",tblREGASSJune19[[#This Row],[Alloc]]=\"UT\",tblREGASSJune19[[#This Row],[Alloc]]=\"WYU\",tblREGASSJune19[[#This Row],[Alloc]]=\"WYP\",tblREGASSJune19[[#This Row],[Alloc]]=\"CA\",tblREGASSJune19[[#This Row],[Alloc]]=\"WA\"),\"SITUS\",tblREGASSJune19[[#This Row],[Alloc]])","v":"SITUS"},{"$f":"INDEX(tblREGASSLookup[FUNC],MATCH(tblREGASSJune19[[#This Row],[Concat]],tblREGASSLookup[Concat],0))","v":"LABOR"},{"$f":"IF(tblREGASSJune19[[#This Row],[Total ($000)]]=0,\"NO\",IF(ISNA(tblREGASSJune19[[#This Row],[FUNC]]),\"YES\",IF(_xlfn.ISFORMULA(tblREGASSJune19[[#This Row],[FUNC]]),\"NO\",\"YES\")))","v":"NO"}]
[{"$f":"CONCATENATE(tblREGASSJune19[[#This Row],[Primary Account]],tblREGASSJune19[[#This Row],[Primary Name]],tblREGASSJune19[[#This Row],[Secondary Acct]],tblREGASSJune19[[#This Row],[Secondary  Name]],tblREGASSJune19[[#This Row],[Alloc4FUNC]])","v":"1823870DEFERRED PENSION187629Reg Asset - Post-Ret - Settlement LossSITUS"},1823870,"DEFERRED PENSION",187629,"Reg Asset - Post-Ret - Settlement Loss","WYU",-1059.2301600000001,{"$f":"IF(OR(tblREGASSJune19[[#This Row],[Alloc]]=\"IDU\",tblREGASSJune19[[#This Row],[Alloc]]=\"OR\",tblREGASSJune19[[#This Row],[Alloc]]=\"UT\",tblREGASSJune19[[#This Row],[Alloc]]=\"WYU\",tblREGASSJune19[[#This Row],[Alloc]]=\"WYP\",tblREGASSJune19[[#This Row],[Alloc]]=\"CA\",tblREGASSJune19[[#This Row],[Alloc]]=\"WA\"),\"SITUS\",tblREGASSJune19[[#This Row],[Alloc]])","v":"SITUS"},{"$f":"INDEX(tblREGASSLookup[FUNC],MATCH(tblREGASSJune19[[#This Row],[Concat]],tblREGASSLookup[Concat],0))","v":"LABOR"},{"$f":"IF(tblREGASSJune19[[#This Row],[Total ($000)]]=0,\"NO\",IF(ISNA(tblREGASSJune19[[#This Row],[FUNC]]),\"YES\",IF(_xlfn.ISFORMULA(tblREGASSJune19[[#This Row],[FUNC]]),\"NO\",\"YES\")))","v":"NO"}]
[{"$f":"CONCATENATE(tblREGASSJune19[[#This Row],[Primary Account]],tblREGASSJune19[[#This Row],[Primary Name]],tblREGASSJune19[[#This Row],[Secondary Acct]],tblREGASSJune19[[#This Row],[Secondary  Name]],tblREGASSJune19[[#This Row],[Alloc4FUNC]])","v":"1823870DEFERRED PENSION187640Reg Asset-PostRet Sttlmt Loss-CC-UTSITUS"},1823870,"DEFERRED PENSION",187640,"Reg Asset-PostRet Sttlmt Loss-CC-UT","UT",1252.3309999999999,{"$f":"IF(OR(tblREGASSJune19[[#This Row],[Alloc]]=\"IDU\",tblREGASSJune19[[#This Row],[Alloc]]=\"OR\",tblREGASSJune19[[#This Row],[Alloc]]=\"UT\",tblREGASSJune19[[#This Row],[Alloc]]=\"WYU\",tblREGASSJune19[[#This Row],[Alloc]]=\"WYP\",tblREGASSJune19[[#This Row],[Alloc]]=\"CA\",tblREGASSJune19[[#This Row],[Alloc]]=\"WA\"),\"SITUS\",tblREGASSJune19[[#This Row],[Alloc]])","v":"SITUS"},{"$f":"INDEX(tblREGASSLookup[FUNC],MATCH(tblREGASSJune19[[#This Row],[Concat]],tblREGASSLookup[Concat],0))","v":"LABOR"},{"$f":"IF(tblREGASSJune19[[#This Row],[Total ($000)]]=0,\"NO\",IF(ISNA(tblREGASSJune19[[#This Row],[FUNC]]),\"YES\",IF(_xlfn.ISFORMULA(tblREGASSJune19[[#This Row],[FUNC]]),\"NO\",\"YES\")))","v":"NO"}]
[{"$f":"CONCATENATE(tblREGASSJune19[[#This Row],[Primary Account]],tblREGASSJune19[[#This Row],[Primary Name]],tblREGASSJune19[[#This Row],[Secondary Acct]],tblREGASSJune19[[#This Row],[Secondary  Name]],tblREGASSJune19[[#This Row],[Alloc4FUNC]])","v":"1823870DEFERRED PENSION187641Reg Asset-PostRet Sttlmt Loss-CC-WYSITUS"},1823870,"DEFERRED PENSION",187641,"Reg Asset-PostRet Sttlmt Loss-CC-WY","WYU",22.244160000000001,{"$f":"IF(OR(tblREGASSJune19[[#This Row],[Alloc]]=\"IDU\",tblREGASSJune19[[#This Row],[Alloc]]=\"OR\",tblREGASSJune19[[#This Row],[Alloc]]=\"UT\",tblREGASSJune19[[#This Row],[Alloc]]=\"WYU\",tblREGASSJune19[[#This Row],[Alloc]]=\"WYP\",tblREGASSJune19[[#This Row],[Alloc]]=\"CA\",tblREGASSJune19[[#This Row],[Alloc]]=\"WA\"),\"SITUS\",tblREGASSJune19[[#This Row],[Alloc]])","v":"SITUS"},{"$f":"INDEX(tblREGASSLookup[FUNC],MATCH(tblREGASSJune19[[#This Row],[Concat]],tblREGASSLookup[Concat],0))","v":"LABOR"},{"$f":"IF(tblREGASSJune19[[#This Row],[Total ($000)]]=0,\"NO\",IF(ISNA(tblREGASSJune19[[#This Row],[FUNC]]),\"YES\",IF(_xlfn.ISFORMULA(tblREGASSJune19[[#This Row],[FUNC]]),\"NO\",\"YES\")))","v":"NO"}]
[{"$f":"CONCATENATE(tblREGASSJune19[[#This Row],[Primary Account]],tblREGASSJune19[[#This Row],[Primary Name]],tblREGASSJune19[[#This Row],[Secondary Acct]],tblREGASSJune19[[#This Row],[Secondary  Name]],tblREGASSJune19[[#This Row],[Alloc4FUNC]])","v":"1823870DEFERRED PENSION187649Reg Asset-FAS 158 Post-Ret - ReclassSO"},1823870,"DEFERRED PENSION",187649,"Reg Asset-FAS 158 Post-Ret - Reclass","SO",2880.23444153846,{"$f":"IF(OR(tblREGASSJune19[[#This Row],[Alloc]]=\"IDU\",tblREGASSJune19[[#This Row],[Alloc]]=\"OR\",tblREGASSJune19[[#This Row],[Alloc]]=\"UT\",tblREGASSJune19[[#This Row],[Alloc]]=\"WYU\",tblREGASSJune19[[#This Row],[Alloc]]=\"WYP\",tblREGASSJune19[[#This Row],[Alloc]]=\"CA\",tblREGASSJune19[[#This Row],[Alloc]]=\"WA\"),\"SITUS\",tblREGASSJune19[[#This Row],[Alloc]])","v":"SO"},{"$f":"INDEX(tblREGASSLookup[FUNC],MATCH(tblREGASSJune19[[#This Row],[Concat]],tblREGASSLookup[Concat],0))","v":"LABOR"},{"$f":"IF(tblREGASSJune19[[#This Row],[Total ($000)]]=0,\"NO\",IF(ISNA(tblREGASSJune19[[#This Row],[FUNC]]),\"YES\",IF(_xlfn.ISFORMULA(tblREGASSJune19[[#This Row],[FUNC]]),\"NO\",\"YES\")))","v":"NO"}]
[{"$f":"CONCATENATE(tblREGASSJune19[[#This Row],[Primary Account]],tblREGASSJune19[[#This Row],[Primary Name]],tblREGASSJune19[[#This Row],[Secondary Acct]],tblREGASSJune19[[#This Row],[Secondary  Name]],tblREGASSJune19[[#This Row],[Alloc4FUNC]])","v":"1823910ENVIR CST UNDR AMORT102465UTAH METALS CLEANUPSO"},1823910,"ENVIR CST UNDR AMORT",102465,"UTAH METALS CLEANUP","SO",342.34538769230801,{"$f":"IF(OR(tblREGASSJune19[[#This Row],[Alloc]]=\"IDU\",tblREGASSJune19[[#This Row],[Alloc]]=\"OR\",tblREGASSJune19[[#This Row],[Alloc]]=\"UT\",tblREGASSJune19[[#This Row],[Alloc]]=\"WYU\",tblREGASSJune19[[#This Row],[Alloc]]=\"WYP\",tblREGASSJune19[[#This Row],[Alloc]]=\"CA\",tblREGASSJune19[[#This Row],[Alloc]]=\"WA\"),\"SITUS\",tblREGASSJune19[[#This Row],[Alloc]])","v":"SO"},{"$f":"INDEX(tblREGASSLookup[FUNC],MATCH(tblREGASSJune19[[#This Row],[Concat]],tblREGASSLookup[Concat],0))","v":"ESD"},{"$f":"IF(tblREGASSJune19[[#This Row],[Total ($000)]]=0,\"NO\",IF(ISNA(tblREGASSJune19[[#This Row],[FUNC]]),\"YES\",IF(_xlfn.ISFORMULA(tblREGASSJune19[[#This Row],[FUNC]]),\"NO\",\"YES\")))","v":"NO"}]
[{"$f":"CONCATENATE(tblREGASSJune19[[#This Row],[Primary Account]],tblREGASSJune19[[#This Row],[Primary Name]],tblREGASSJune19[[#This Row],[Secondary Acct]],tblREGASSJune19[[#This Row],[Secondary  Name]],tblREGASSJune19[[#This Row],[Alloc4FUNC]])","v":"1823910ENVIR CST UNDR AMORT102570D-SM RETAIL MINOR SITESSO"},1823910,"ENVIR CST UNDR AMORT",102570,"D-SM RETAIL MINOR SITES","SO",4.1668092307692302,{"$f":"IF(OR(tblREGASSJune19[[#This Row],[Alloc]]=\"IDU\",tblREGASSJune19[[#This Row],[Alloc]]=\"OR\",tblREGASSJune19[[#This Row],[Alloc]]=\"UT\",tblREGASSJune19[[#This Row],[Alloc]]=\"WYU\",tblREGASSJune19[[#This Row],[Alloc]]=\"WYP\",tblREGASSJune19[[#This Row],[Alloc]]=\"CA\",tblREGASSJune19[[#This Row],[Alloc]]=\"WA\"),\"SITUS\",tblREGASSJune19[[#This Row],[Alloc]])","v":"SO"},{"$f":"INDEX(tblREGASSLookup[FUNC],MATCH(tblREGASSJune19[[#This Row],[Concat]],tblREGASSLookup[Concat],0))","v":"P"},{"$f":"IF(tblREGASSJune19[[#This Row],[Total ($000)]]=0,\"NO\",IF(ISNA(tblREGASSJune19[[#This Row],[FUNC]]),\"YES\",IF(_xlfn.ISFORMULA(tblREGASSJune19[[#This Row],[FUNC]]),\"NO\",\"YES\")))","v":"NO"}]
[{"$f":"CONCATENATE(tblREGASSJune19[[#This Row],[Primary Account]],tblREGASSJune19[[#This Row],[Primary Name]],tblREGASSJune19[[#This Row],[Secondary Acct]],tblREGASSJune19[[#This Row],[Secondary  Name]],tblREGASSJune19[[#This Row],[Alloc4FUNC]])","v":"1823910ENVIR CST UNDR AMORT103408D-SM RETAIL MINOR SITESSO"},1823910,"ENVIR CST UNDR AMORT",103408,"D-SM RETAIL MINOR SITES","SO",3300.2349830769199,{"$f":"IF(OR(tblREGASSJune19[[#This Row],[Alloc]]=\"IDU\",tblREGASSJune19[[#This Row],[Alloc]]=\"OR\",tblREGASSJune19[[#This Row],[Alloc]]=\"UT\",tblREGASSJune19[[#This Row],[Alloc]]=\"WYU\",tblREGASSJune19[[#This Row],[Alloc]]=\"WYP\",tblREGASSJune19[[#This Row],[Alloc]]=\"CA\",tblREGASSJune19[[#This Row],[Alloc]]=\"WA\"),\"SITUS\",tblREGASSJune19[[#This Row],[Alloc]])","v":"SO"},{"$f":"INDEX(tblREGASSLookup[FUNC],MATCH(tblREGASSJune19[[#This Row],[Concat]],tblREGASSLookup[Concat],0))","v":"P"},{"$f":"IF(tblREGASSJune19[[#This Row],[Total ($000)]]=0,\"NO\",IF(ISNA(tblREGASSJune19[[#This Row],[FUNC]]),\"YES\",IF(_xlfn.ISFORMULA(tblREGASSJune19[[#This Row],[FUNC]]),\"NO\",\"YES\")))","v":"NO"}]
[{"$f":"CONCATENATE(tblREGASSJune19[[#This Row],[Primary Account]],tblREGASSJune19[[#This Row],[Primary Name]],tblREGASSJune19[[#This Row],[Secondary Acct]],tblREGASSJune19[[#This Row],[Secondary  Name]],tblREGASSJune19[[#This Row],[Alloc4FUNC]])","v":"1823910ENVIR CST UNDR AMORT103410D-SM RETAIL MINOR SITESSO"},1823910,"ENVIR CST UNDR AMORT",103410,"D-SM RETAIL MINOR SITES","SO",0,{"$f":"IF(OR(tblREGASSJune19[[#This Row],[Alloc]]=\"IDU\",tblREGASSJune19[[#This Row],[Alloc]]=\"OR\",tblREGASSJune19[[#This Row],[Alloc]]=\"UT\",tblREGASSJune19[[#This Row],[Alloc]]=\"WYU\",tblREGASSJune19[[#This Row],[Alloc]]=\"WYP\",tblREGASSJune19[[#This Row],[Alloc]]=\"CA\",tblREGASSJune19[[#This Row],[Alloc]]=\"WA\"),\"SITUS\",tblREGASSJune19[[#This Row],[Alloc]])","v":"SO"},{"$f":"INDEX(tblREGASSLookup[FUNC],MATCH(tblREGASSJune19[[#This Row],[Concat]],tblREGASSLookup[Concat],0))","v":"P"},{"$f":"IF(tblREGASSJune19[[#This Row],[Total ($000)]]=0,\"NO\",IF(ISNA(tblREGASSJune19[[#This Row],[FUNC]]),\"YES\",IF(_xlfn.ISFORMULA(tblREGASSJune19[[#This Row],[FUNC]]),\"NO\",\"YES\")))","v":"NO"}]
[{"$f":"CONCATENATE(tblREGASSJune19[[#This Row],[Primary Account]],tblREGASSJune19[[#This Row],[Primary Name]],tblREGASSJune19[[#This Row],[Secondary Acct]],tblREGASSJune19[[#This Row],[Secondary  Name]],tblREGASSJune19[[#This Row],[Alloc4FUNC]])","v":"1823910ENVIR CST UNDR AMORT103411D-SM RETAIL MINOR SITESSO"},1823910,"ENVIR CST UNDR AMORT",103411,"D-SM RETAIL MINOR SITES","SO",13.5963830769231,{"$f":"IF(OR(tblREGASSJune19[[#This Row],[Alloc]]=\"IDU\",tblREGASSJune19[[#This Row],[Alloc]]=\"OR\",tblREGASSJune19[[#This Row],[Alloc]]=\"UT\",tblREGASSJune19[[#This Row],[Alloc]]=\"WYU\",tblREGASSJune19[[#This Row],[Alloc]]=\"WYP\",tblREGASSJune19[[#This Row],[Alloc]]=\"CA\",tblREGASSJune19[[#This Row],[Alloc]]=\"WA\"),\"SITUS\",tblREGASSJune19[[#This Row],[Alloc]])","v":"SO"},{"$f":"INDEX(tblREGASSLookup[FUNC],MATCH(tblREGASSJune19[[#This Row],[Concat]],tblREGASSLookup[Concat],0))","v":"P"},{"$f":"IF(tblREGASSJune19[[#This Row],[Total ($000)]]=0,\"NO\",IF(ISNA(tblREGASSJune19[[#This Row],[FUNC]]),\"YES\",IF(_xlfn.ISFORMULA(tblREGASSJune19[[#This Row],[FUNC]]),\"NO\",\"YES\")))","v":"NO"}]
[{"$f":"CONCATENATE(tblREGASSJune19[[#This Row],[Primary Account]],tblREGASSJune19[[#This Row],[Primary Name]],tblREGASSJune19[[#This Row],[Secondary Acct]],tblREGASSJune19[[#This Row],[Secondary  Name]],tblREGASSJune19[[#This Row],[Alloc4FUNC]])","v":"1823910ENVIR CST UNDR AMORT103412D-SM RETAIL MINOR SITESSO"},1823910,"ENVIR CST UNDR AMORT",103412,"D-SM RETAIL MINOR SITES","SO",93.768242307692304,{"$f":"IF(OR(tblREGASSJune19[[#This Row],[Alloc]]=\"IDU\",tblREGASSJune19[[#This Row],[Alloc]]=\"OR\",tblREGASSJune19[[#This Row],[Alloc]]=\"UT\",tblREGASSJune19[[#This Row],[Alloc]]=\"WYU\",tblREGASSJune19[[#This Row],[Alloc]]=\"WYP\",tblREGASSJune19[[#This Row],[Alloc]]=\"CA\",tblREGASSJune19[[#This Row],[Alloc]]=\"WA\"),\"SITUS\",tblREGASSJune19[[#This Row],[Alloc]])","v":"SO"},{"$f":"INDEX(tblREGASSLookup[FUNC],MATCH(tblREGASSJune19[[#This Row],[Concat]],tblREGASSLookup[Concat],0))","v":"P"},{"$f":"IF(tblREGASSJune19[[#This Row],[Total ($000)]]=0,\"NO\",IF(ISNA(tblREGASSJune19[[#This Row],[FUNC]]),\"YES\",IF(_xlfn.ISFORMULA(tblREGASSJune19[[#This Row],[FUNC]]),\"NO\",\"YES\")))","v":"NO"}]
[{"$f":"CONCATENATE(tblREGASSJune19[[#This Row],[Primary Account]],tblREGASSJune19[[#This Row],[Primary Name]],tblREGASSJune19[[#This Row],[Secondary Acct]],tblREGASSJune19[[#This Row],[Secondary  Name]],tblREGASSJune19[[#This Row],[Alloc4FUNC]])","v":"1823910ENVIR CST UNDR AMORT103413D-SM RETAIL MINOR SITESSO"},1823910,"ENVIR CST UNDR AMORT",103413,"D-SM RETAIL MINOR SITES","SO",235.63827230769201,{"$f":"IF(OR(tblREGASSJune19[[#This Row],[Alloc]]=\"IDU\",tblREGASSJune19[[#This Row],[Alloc]]=\"OR\",tblREGASSJune19[[#This Row],[Alloc]]=\"UT\",tblREGASSJune19[[#This Row],[Alloc]]=\"WYU\",tblREGASSJune19[[#This Row],[Alloc]]=\"WYP\",tblREGASSJune19[[#This Row],[Alloc]]=\"CA\",tblREGASSJune19[[#This Row],[Alloc]]=\"WA\"),\"SITUS\",tblREGASSJune19[[#This Row],[Alloc]])","v":"SO"},{"$f":"INDEX(tblREGASSLookup[FUNC],MATCH(tblREGASSJune19[[#This Row],[Concat]],tblREGASSLookup[Concat],0))","v":"P"},{"$f":"IF(tblREGASSJune19[[#This Row],[Total ($000)]]=0,\"NO\",IF(ISNA(tblREGASSJune19[[#This Row],[FUNC]]),\"YES\",IF(_xlfn.ISFORMULA(tblREGASSJune19[[#This Row],[FUNC]]),\"NO\",\"YES\")))","v":"NO"}]
[{"$f":"CONCATENATE(tblREGASSJune19[[#This Row],[Primary Account]],tblREGASSJune19[[#This Row],[Primary Name]],tblREGASSJune19[[#This Row],[Secondary Acct]],tblREGASSJune19[[#This Row],[Secondary  Name]],tblREGASSJune19[[#This Row],[Alloc4FUNC]])","v":"1823910ENVIR CST UNDR AMORT103416ASTORIA YOUNGS BAY CLEANUPSO"},1823910,"ENVIR CST UNDR AMORT",103416,"ASTORIA YOUNGS BAY CLEANUP","SO",0,{"$f":"IF(OR(tblREGASSJune19[[#This Row],[Alloc]]=\"IDU\",tblREGASSJune19[[#This Row],[Alloc]]=\"OR\",tblREGASSJune19[[#This Row],[Alloc]]=\"UT\",tblREGASSJune19[[#This Row],[Alloc]]=\"WYU\",tblREGASSJune19[[#This Row],[Alloc]]=\"WYP\",tblREGASSJune19[[#This Row],[Alloc]]=\"CA\",tblREGASSJune19[[#This Row],[Alloc]]=\"WA\"),\"SITUS\",tblREGASSJune19[[#This Row],[Alloc]])","v":"SO"},{"$f":"INDEX(tblREGASSLookup[FUNC],MATCH(tblREGASSJune19[[#This Row],[Concat]],tblREGASSLookup[Concat],0))","v":"ESD"},{"$f":"IF(tblREGASSJune19[[#This Row],[Total ($000)]]=0,\"NO\",IF(ISNA(tblREGASSJune19[[#This Row],[FUNC]]),\"YES\",IF(_xlfn.ISFORMULA(tblREGASSJune19[[#This Row],[FUNC]]),\"NO\",\"YES\")))","v":"NO"}]
[{"$f":"CONCATENATE(tblREGASSJune19[[#This Row],[Primary Account]],tblREGASSJune19[[#This Row],[Primary Name]],tblREGASSJune19[[#This Row],[Secondary Acct]],tblREGASSJune19[[#This Row],[Secondary  Name]],tblREGASSJune19[[#This Row],[Alloc4FUNC]])","v":"1823910ENVIR CST UNDR AMORT103417ASTORIA YOUNGS BAY CLEANUPSO"},1823910,"ENVIR CST UNDR AMORT",103417,"ASTORIA YOUNGS BAY CLEANUP","SO",-2.7826676923076898,{"$f":"IF(OR(tblREGASSJune19[[#This Row],[Alloc]]=\"IDU\",tblREGASSJune19[[#This Row],[Alloc]]=\"OR\",tblREGASSJune19[[#This Row],[Alloc]]=\"UT\",tblREGASSJune19[[#This Row],[Alloc]]=\"WYU\",tblREGASSJune19[[#This Row],[Alloc]]=\"WYP\",tblREGASSJune19[[#This Row],[Alloc]]=\"CA\",tblREGASSJune19[[#This Row],[Alloc]]=\"WA\"),\"SITUS\",tblREGASSJune19[[#This Row],[Alloc]])","v":"SO"},{"$f":"INDEX(tblREGASSLookup[FUNC],MATCH(tblREGASSJune19[[#This Row],[Concat]],tblREGASSLookup[Concat],0))","v":"ESD"},{"$f":"IF(tblREGASSJune19[[#This Row],[Total ($000)]]=0,\"NO\",IF(ISNA(tblREGASSJune19[[#This Row],[FUNC]]),\"YES\",IF(_xlfn.ISFORMULA(tblREGASSJune19[[#This Row],[FUNC]]),\"NO\",\"YES\")))","v":"NO"}]
[{"$f":"CONCATENATE(tblREGASSJune19[[#This Row],[Primary Account]],tblREGASSJune19[[#This Row],[Primary Name]],tblREGASSJune19[[#This Row],[Secondary Acct]],tblREGASSJune19[[#This Row],[Secondary  Name]],tblREGASSJune19[[#This Row],[Alloc4FUNC]])","v":"1823910ENVIR CST UNDR AMORT103418ASTORIA YOUNGS BAY CLEANUPSO"},1823910,"ENVIR CST UNDR AMORT",103418,"ASTORIA YOUNGS BAY CLEANUP","SO",20.7850784615385,{"$f":"IF(OR(tblREGASSJune19[[#This Row],[Alloc]]=\"IDU\",tblREGASSJune19[[#This Row],[Alloc]]=\"OR\",tblREGASSJune19[[#This Row],[Alloc]]=\"UT\",tblREGASSJune19[[#This Row],[Alloc]]=\"WYU\",tblREGASSJune19[[#This Row],[Alloc]]=\"WYP\",tblREGASSJune19[[#This Row],[Alloc]]=\"CA\",tblREGASSJune19[[#This Row],[Alloc]]=\"WA\"),\"SITUS\",tblREGASSJune19[[#This Row],[Alloc]])","v":"SO"},{"$f":"INDEX(tblREGASSLookup[FUNC],MATCH(tblREGASSJune19[[#This Row],[Concat]],tblREGASSLookup[Concat],0))","v":"ESD"},{"$f":"IF(tblREGASSJune19[[#This Row],[Total ($000)]]=0,\"NO\",IF(ISNA(tblREGASSJune19[[#This Row],[FUNC]]),\"YES\",IF(_xlfn.ISFORMULA(tblREGASSJune19[[#This Row],[FUNC]]),\"NO\",\"YES\")))","v":"NO"}]
[{"$f":"CONCATENATE(tblREGASSJune19[[#This Row],[Primary Account]],tblREGASSJune19[[#This Row],[Primary Name]],tblREGASSJune19[[#This Row],[Secondary Acct]],tblREGASSJune19[[#This Row],[Secondary  Name]],tblREGASSJune19[[#This Row],[Alloc4FUNC]])","v":"1823910ENVIR CST UNDR AMORT103419ASTORIA YOUNGS BAY CLEANUPSO"},1823910,"ENVIR CST UNDR AMORT",103419,"ASTORIA YOUNGS BAY CLEANUP","SO",175.767068461538,{"$f":"IF(OR(tblREGASSJune19[[#This Row],[Alloc]]=\"IDU\",tblREGASSJune19[[#This Row],[Alloc]]=\"OR\",tblREGASSJune19[[#This Row],[Alloc]]=\"UT\",tblREGASSJune19[[#This Row],[Alloc]]=\"WYU\",tblREGASSJune19[[#This Row],[Alloc]]=\"WYP\",tblREGASSJune19[[#This Row],[Alloc]]=\"CA\",tblREGASSJune19[[#This Row],[Alloc]]=\"WA\"),\"SITUS\",tblREGASSJune19[[#This Row],[Alloc]])","v":"SO"},{"$f":"INDEX(tblREGASSLookup[FUNC],MATCH(tblREGASSJune19[[#This Row],[Concat]],tblREGASSLookup[Concat],0))","v":"ESD"},{"$f":"IF(tblREGASSJune19[[#This Row],[Total ($000)]]=0,\"NO\",IF(ISNA(tblREGASSJune19[[#This Row],[FUNC]]),\"YES\",IF(_xlfn.ISFORMULA(tblREGASSJune19[[#This Row],[FUNC]]),\"NO\",\"YES\")))","v":"NO"}]
[{"$f":"CONCATENATE(tblREGASSJune19[[#This Row],[Primary Account]],tblREGASSJune19[[#This Row],[Primary Name]],tblREGASSJune19[[#This Row],[Secondary Acct]],tblREGASSJune19[[#This Row],[Secondary  Name]],tblREGASSJune19[[#This Row],[Alloc4FUNC]])","v":"1823910ENVIR CST UNDR AMORT103420ASTORIA YOUNGS BAY CLEANUPSO"},1823910,"ENVIR CST UNDR AMORT",103420,"ASTORIA YOUNGS BAY CLEANUP","SO",290.027326923077,{"$f":"IF(OR(tblREGASSJune19[[#This Row],[Alloc]]=\"IDU\",tblREGASSJune19[[#This Row],[Alloc]]=\"OR\",tblREGASSJune19[[#This Row],[Alloc]]=\"UT\",tblREGASSJune19[[#This Row],[Alloc]]=\"WYU\",tblREGASSJune19[[#This Row],[Alloc]]=\"WYP\",tblREGASSJune19[[#This Row],[Alloc]]=\"CA\",tblREGASSJune19[[#This Row],[Alloc]]=\"WA\"),\"SITUS\",tblREGASSJune19[[#This Row],[Alloc]])","v":"SO"},{"$f":"INDEX(tblREGASSLookup[FUNC],MATCH(tblREGASSJune19[[#This Row],[Concat]],tblREGASSLookup[Concat],0))","v":"ESD"},{"$f":"IF(tblREGASSJune19[[#This Row],[Total ($000)]]=0,\"NO\",IF(ISNA(tblREGASSJune19[[#This Row],[FUNC]]),\"YES\",IF(_xlfn.ISFORMULA(tblREGASSJune19[[#This Row],[FUNC]]),\"NO\",\"YES\")))","v":"NO"}]
[{"$f":"CONCATENATE(tblREGASSJune19[[#This Row],[Primary Account]],tblREGASSJune19[[#This Row],[Primary Name]],tblREGASSJune19[[#This Row],[Secondary Acct]],tblREGASSJune19[[#This Row],[Secondary  Name]],tblREGASSJune19[[#This Row],[Alloc4FUNC]])","v":"1823910ENVIR CST UNDR AMORT103422SILVER BELL MINE ENVIRONMENTAL REMEDSO"},1823910,"ENVIR CST UNDR AMORT",103422,"SILVER BELL MINE ENVIRONMENTAL REMED","SO",0,{"$f":"IF(OR(tblREGASSJune19[[#This Row],[Alloc]]=\"IDU\",tblREGASSJune19[[#This Row],[Alloc]]=\"OR\",tblREGASSJune19[[#This Row],[Alloc]]=\"UT\",tblREGASSJune19[[#This Row],[Alloc]]=\"WYU\",tblREGASSJune19[[#This Row],[Alloc]]=\"WYP\",tblREGASSJune19[[#This Row],[Alloc]]=\"CA\",tblREGASSJune19[[#This Row],[Alloc]]=\"WA\"),\"SITUS\",tblREGASSJune19[[#This Row],[Alloc]])","v":"SO"},{"$f":"INDEX(tblREGASSLookup[FUNC],MATCH(tblREGASSJune19[[#This Row],[Concat]],tblREGASSLookup[Concat],0))","v":"ESD"},{"$f":"IF(tblREGASSJune19[[#This Row],[Total ($000)]]=0,\"NO\",IF(ISNA(tblREGASSJune19[[#This Row],[FUNC]]),\"YES\",IF(_xlfn.ISFORMULA(tblREGASSJune19[[#This Row],[FUNC]]),\"NO\",\"YES\")))","v":"NO"}]
[{"$f":"CONCATENATE(tblREGASSJune19[[#This Row],[Primary Account]],tblREGASSJune19[[#This Row],[Primary Name]],tblREGASSJune19[[#This Row],[Secondary Acct]],tblREGASSJune19[[#This Row],[Secondary  Name]],tblREGASSJune19[[#This Row],[Alloc4FUNC]])","v":"1823910ENVIR CST UNDR AMORT103423SILVER BELL MINE ENVIRONMENTAL REMEDSO"},1823910,"ENVIR CST UNDR AMORT",103423,"SILVER BELL MINE ENVIRONMENTAL REMED","SO",3.4563899999999999,{"$f":"IF(OR(tblREGASSJune19[[#This Row],[Alloc]]=\"IDU\",tblREGASSJune19[[#This Row],[Alloc]]=\"OR\",tblREGASSJune19[[#This Row],[Alloc]]=\"UT\",tblREGASSJune19[[#This Row],[Alloc]]=\"WYU\",tblREGASSJune19[[#This Row],[Alloc]]=\"WYP\",tblREGASSJune19[[#This Row],[Alloc]]=\"CA\",tblREGASSJune19[[#This Row],[Alloc]]=\"WA\"),\"SITUS\",tblREGASSJune19[[#This Row],[Alloc]])","v":"SO"},{"$f":"INDEX(tblREGASSLookup[FUNC],MATCH(tblREGASSJune19[[#This Row],[Concat]],tblREGASSLookup[Concat],0))","v":"ESD"},{"$f":"IF(tblREGASSJune19[[#This Row],[Total ($000)]]=0,\"NO\",IF(ISNA(tblREGASSJune19[[#This Row],[FUNC]]),\"YES\",IF(_xlfn.ISFORMULA(tblREGASSJune19[[#This Row],[FUNC]]),\"NO\",\"YES\")))","v":"NO"}]
[{"$f":"CONCATENATE(tblREGASSJune19[[#This Row],[Primary Account]],tblREGASSJune19[[#This Row],[Primary Name]],tblREGASSJune19[[#This Row],[Secondary Acct]],tblREGASSJune19[[#This Row],[Secondary  Name]],tblREGASSJune19[[#This Row],[Alloc4FUNC]])","v":"1823910ENVIR CST UNDR AMORT103424SILVER BELL MINE ENVIRONMENTAL REMEDSO"},1823910,"ENVIR CST UNDR AMORT",103424,"SILVER BELL MINE ENVIRONMENTAL REMED","SO",15.2916415384615,{"$f":"IF(OR(tblREGASSJune19[[#This Row],[Alloc]]=\"IDU\",tblREGASSJune19[[#This Row],[Alloc]]=\"OR\",tblREGASSJune19[[#This Row],[Alloc]]=\"UT\",tblREGASSJune19[[#This Row],[Alloc]]=\"WYU\",tblREGASSJune19[[#This Row],[Alloc]]=\"WYP\",tblREGASSJune19[[#This Row],[Alloc]]=\"CA\",tblREGASSJune19[[#This Row],[Alloc]]=\"WA\"),\"SITUS\",tblREGASSJune19[[#This Row],[Alloc]])","v":"SO"},{"$f":"INDEX(tblREGASSLookup[FUNC],MATCH(tblREGASSJune19[[#This Row],[Concat]],tblREGASSLookup[Concat],0))","v":"ESD"},{"$f":"IF(tblREGASSJune19[[#This Row],[Total ($000)]]=0,\"NO\",IF(ISNA(tblREGASSJune19[[#This Row],[FUNC]]),\"YES\",IF(_xlfn.ISFORMULA(tblREGASSJune19[[#This Row],[FUNC]]),\"NO\",\"YES\")))","v":"NO"}]
[{"$f":"CONCATENATE(tblREGASSJune19[[#This Row],[Primary Account]],tblREGASSJune19[[#This Row],[Primary Name]],tblREGASSJune19[[#This Row],[Secondary Acct]],tblREGASSJune19[[#This Row],[Secondary  Name]],tblREGASSJune19[[#This Row],[Alloc4FUNC]])","v":"1823910ENVIR CST UNDR AMORT103425SILVER BELL MINE ENVIRONMENTAL REMEDSO"},1823910,"ENVIR CST UNDR AMORT",103425,"SILVER BELL MINE ENVIRONMENTAL REMED","SO",37.205890769230798,{"$f":"IF(OR(tblREGASSJune19[[#This Row],[Alloc]]=\"IDU\",tblREGASSJune19[[#This Row],[Alloc]]=\"OR\",tblREGASSJune19[[#This Row],[Alloc]]=\"UT\",tblREGASSJune19[[#This Row],[Alloc]]=\"WYU\",tblREGASSJune19[[#This Row],[Alloc]]=\"WYP\",tblREGASSJune19[[#This Row],[Alloc]]=\"CA\",tblREGASSJune19[[#This Row],[Alloc]]=\"WA\"),\"SITUS\",tblREGASSJune19[[#This Row],[Alloc]])","v":"SO"},{"$f":"INDEX(tblREGASSLookup[FUNC],MATCH(tblREGASSJune19[[#This Row],[Concat]],tblREGASSLookup[Concat],0))","v":"ESD"},{"$f":"IF(tblREGASSJune19[[#This Row],[Total ($000)]]=0,\"NO\",IF(ISNA(tblREGASSJune19[[#This Row],[FUNC]]),\"YES\",IF(_xlfn.ISFORMULA(tblREGASSJune19[[#This Row],[FUNC]]),\"NO\",\"YES\")))","v":"NO"}]
[{"$f":"CONCATENATE(tblREGASSJune19[[#This Row],[Primary Account]],tblREGASSJune19[[#This Row],[Primary Name]],tblREGASSJune19[[#This Row],[Secondary Acct]],tblREGASSJune19[[#This Row],[Secondary  Name]],tblREGASSJune19[[#This Row],[Alloc4FUNC]])","v":"1823910ENVIR CST UNDR AMORT103426SILVER BELL MINE ENVIRONMENTAL REMEDSO"},1823910,"ENVIR CST UNDR AMORT",103426,"SILVER BELL MINE ENVIRONMENTAL REMED","SO",5643.5932369230804,{"$f":"IF(OR(tblREGASSJune19[[#This Row],[Alloc]]=\"IDU\",tblREGASSJune19[[#This Row],[Alloc]]=\"OR\",tblREGASSJune19[[#This Row],[Alloc]]=\"UT\",tblREGASSJune19[[#This Row],[Alloc]]=\"WYU\",tblREGASSJune19[[#This Row],[Alloc]]=\"WYP\",tblREGASSJune19[[#This Row],[Alloc]]=\"CA\",tblREGASSJune19[[#This Row],[Alloc]]=\"WA\"),\"SITUS\",tblREGASSJune19[[#This Row],[Alloc]])","v":"SO"},{"$f":"INDEX(tblREGASSLookup[FUNC],MATCH(tblREGASSJune19[[#This Row],[Concat]],tblREGASSLookup[Concat],0))","v":"ESD"},{"$f":"IF(tblREGASSJune19[[#This Row],[Total ($000)]]=0,\"NO\",IF(ISNA(tblREGASSJune19[[#This Row],[FUNC]]),\"YES\",IF(_xlfn.ISFORMULA(tblREGASSJune19[[#This Row],[FUNC]]),\"NO\",\"YES\")))","v":"NO"}]
[{"$f":"CONCATENATE(tblREGASSJune19[[#This Row],[Primary Account]],tblREGASSJune19[[#This Row],[Primary Name]],tblREGASSJune19[[#This Row],[Secondary Acct]],tblREGASSJune19[[#This Row],[Secondary  Name]],tblREGASSJune19[[#This Row],[Alloc4FUNC]])","v":"1823910ENVIR CST UNDR AMORT103436WASHINGTON NON-DEFERRED COSTSSITUS"},1823910,"ENVIR CST UNDR AMORT",103436,"WASHINGTON NON-DEFERRED COSTS","WA",0,{"$f":"IF(OR(tblREGASSJune19[[#This Row],[Alloc]]=\"IDU\",tblREGASSJune19[[#This Row],[Alloc]]=\"OR\",tblREGASSJune19[[#This Row],[Alloc]]=\"UT\",tblREGASSJune19[[#This Row],[Alloc]]=\"WYU\",tblREGASSJune19[[#This Row],[Alloc]]=\"WYP\",tblREGASSJune19[[#This Row],[Alloc]]=\"CA\",tblREGASSJune19[[#This Row],[Alloc]]=\"WA\"),\"SITUS\",tblREGASSJune19[[#This Row],[Alloc]])","v":"SITUS"},{"$f":"INDEX(tblREGASSLookup[FUNC],MATCH(tblREGASSJune19[[#This Row],[Concat]],tblREGASSLookup[Concat],0))","v":"ESD"},{"$f":"IF(tblREGASSJune19[[#This Row],[Total ($000)]]=0,\"NO\",IF(ISNA(tblREGASSJune19[[#This Row],[FUNC]]),\"YES\",IF(_xlfn.ISFORMULA(tblREGASSJune19[[#This Row],[FUNC]]),\"NO\",\"YES\")))","v":"NO"}]
[{"$f":"CONCATENATE(tblREGASSJune19[[#This Row],[Primary Account]],tblREGASSJune19[[#This Row],[Primary Name]],tblREGASSJune19[[#This Row],[Secondary Acct]],tblREGASSJune19[[#This Row],[Secondary  Name]],tblREGASSJune19[[#This Row],[Alloc4FUNC]])","v":"1823910ENVIR CST UNDR AMORT103437WASHINGTON NON-DEFERRED COSTSSITUS"},1823910,"ENVIR CST UNDR AMORT",103437,"WASHINGTON NON-DEFERRED COSTS","WA",-1.7835215384615399,{"$f":"IF(OR(tblREGASSJune19[[#This Row],[Alloc]]=\"IDU\",tblREGASSJune19[[#This Row],[Alloc]]=\"OR\",tblREGASSJune19[[#This Row],[Alloc]]=\"UT\",tblREGASSJune19[[#This Row],[Alloc]]=\"WYU\",tblREGASSJune19[[#This Row],[Alloc]]=\"WYP\",tblREGASSJune19[[#This Row],[Alloc]]=\"CA\",tblREGASSJune19[[#This Row],[Alloc]]=\"WA\"),\"SITUS\",tblREGASSJune19[[#This Row],[Alloc]])","v":"SITUS"},{"$f":"INDEX(tblREGASSLookup[FUNC],MATCH(tblREGASSJune19[[#This Row],[Concat]],tblREGASSLookup[Concat],0))","v":"ESD"},{"$f":"IF(tblREGASSJune19[[#This Row],[Total ($000)]]=0,\"NO\",IF(ISNA(tblREGASSJune19[[#This Row],[FUNC]]),\"YES\",IF(_xlfn.ISFORMULA(tblREGASSJune19[[#This Row],[FUNC]]),\"NO\",\"YES\")))","v":"NO"}]
[{"$f":"CONCATENATE(tblREGASSJune19[[#This Row],[Primary Account]],tblREGASSJune19[[#This Row],[Primary Name]],tblREGASSJune19[[#This Row],[Secondary Acct]],tblREGASSJune19[[#This Row],[Secondary  Name]],tblREGASSJune19[[#This Row],[Alloc4FUNC]])","v":"1823910ENVIR CST UNDR AMORT103438WASHINGTON NON-DEFERRED COSTSSITUS"},1823910,"ENVIR CST UNDR AMORT",103438,"WASHINGTON NON-DEFERRED COSTS","WA",-16.3356015384615,{"$f":"IF(OR(tblREGASSJune19[[#This Row],[Alloc]]=\"IDU\",tblREGASSJune19[[#This Row],[Alloc]]=\"OR\",tblREGASSJune19[[#This Row],[Alloc]]=\"UT\",tblREGASSJune19[[#This Row],[Alloc]]=\"WYU\",tblREGASSJune19[[#This Row],[Alloc]]=\"WYP\",tblREGASSJune19[[#This Row],[Alloc]]=\"CA\",tblREGASSJune19[[#This Row],[Alloc]]=\"WA\"),\"SITUS\",tblREGASSJune19[[#This Row],[Alloc]])","v":"SITUS"},{"$f":"INDEX(tblREGASSLookup[FUNC],MATCH(tblREGASSJune19[[#This Row],[Concat]],tblREGASSLookup[Concat],0))","v":"ESD"},{"$f":"IF(tblREGASSJune19[[#This Row],[Total ($000)]]=0,\"NO\",IF(ISNA(tblREGASSJune19[[#This Row],[FUNC]]),\"YES\",IF(_xlfn.ISFORMULA(tblREGASSJune19[[#This Row],[FUNC]]),\"NO\",\"YES\")))","v":"NO"}]
[{"$f":"CONCATENATE(tblREGASSJune19[[#This Row],[Primary Account]],tblREGASSJune19[[#This Row],[Primary Name]],tblREGASSJune19[[#This Row],[Secondary Acct]],tblREGASSJune19[[#This Row],[Secondary  Name]],tblREGASSJune19[[#This Row],[Alloc4FUNC]])","v":"1823910ENVIR CST UNDR AMORT103439WASHINGTON NON-DEFERRED COSTSSITUS"},1823910,"ENVIR CST UNDR AMORT",103439,"WASHINGTON NON-DEFERRED COSTS","WA",-45.611591538461496,{"$f":"IF(OR(tblREGASSJune19[[#This Row],[Alloc]]=\"IDU\",tblREGASSJune19[[#This Row],[Alloc]]=\"OR\",tblREGASSJune19[[#This Row],[Alloc]]=\"UT\",tblREGASSJune19[[#This Row],[Alloc]]=\"WYU\",tblREGASSJune19[[#This Row],[Alloc]]=\"WYP\",tblREGASSJune19[[#This Row],[Alloc]]=\"CA\",tblREGASSJune19[[#This Row],[Alloc]]=\"WA\"),\"SITUS\",tblREGASSJune19[[#This Row],[Alloc]])","v":"SITUS"},{"$f":"INDEX(tblREGASSLookup[FUNC],MATCH(tblREGASSJune19[[#This Row],[Concat]],tblREGASSLookup[Concat],0))","v":"ESD"},{"$f":"IF(tblREGASSJune19[[#This Row],[Total ($000)]]=0,\"NO\",IF(ISNA(tblREGASSJune19[[#This Row],[FUNC]]),\"YES\",IF(_xlfn.ISFORMULA(tblREGASSJune19[[#This Row],[FUNC]]),\"NO\",\"YES\")))","v":"NO"}]
[{"$f":"CONCATENATE(tblREGASSJune19[[#This Row],[Primary Account]],tblREGASSJune19[[#This Row],[Primary Name]],tblREGASSJune19[[#This Row],[Secondary Acct]],tblREGASSJune19[[#This Row],[Secondary  Name]],tblREGASSJune19[[#This Row],[Alloc4FUNC]])","v":"1823910ENVIR CST UNDR AMORT103440WASHINGTON NON-DEFERRED COSTSSITUS"},1823910,"ENVIR CST UNDR AMORT",103440,"WASHINGTON NON-DEFERRED COSTS","WA",-92.854439999999997,{"$f":"IF(OR(tblREGASSJune19[[#This Row],[Alloc]]=\"IDU\",tblREGASSJune19[[#This Row],[Alloc]]=\"OR\",tblREGASSJune19[[#This Row],[Alloc]]=\"UT\",tblREGASSJune19[[#This Row],[Alloc]]=\"WYU\",tblREGASSJune19[[#This Row],[Alloc]]=\"WYP\",tblREGASSJune19[[#This Row],[Alloc]]=\"CA\",tblREGASSJune19[[#This Row],[Alloc]]=\"WA\"),\"SITUS\",tblREGASSJune19[[#This Row],[Alloc]])","v":"SITUS"},{"$f":"INDEX(tblREGASSLookup[FUNC],MATCH(tblREGASSJune19[[#This Row],[Concat]],tblREGASSLookup[Concat],0))","v":"ESD"},{"$f":"IF(tblREGASSJune19[[#This Row],[Total ($000)]]=0,\"NO\",IF(ISNA(tblREGASSJune19[[#This Row],[FUNC]]),\"YES\",IF(_xlfn.ISFORMULA(tblREGASSJune19[[#This Row],[FUNC]]),\"NO\",\"YES\")))","v":"NO"}]
[{"$f":"CONCATENATE(tblREGASSJune19[[#This Row],[Primary Account]],tblREGASSJune19[[#This Row],[Primary Name]],tblREGASSJune19[[#This Row],[Secondary Acct]],tblREGASSJune19[[#This Row],[Secondary  Name]],tblREGASSJune19[[#This Row],[Alloc4FUNC]])","v":"1823910ENVIR CST UNDR AMORT103445American Barrel (UT)SO"},1823910,"ENVIR CST UNDR AMORT",103445,"American Barrel (UT)","SO",355.30850538461499,{"$f":"IF(OR(tblREGASSJune19[[#This Row],[Alloc]]=\"IDU\",tblREGASSJune19[[#This Row],[Alloc]]=\"OR\",tblREGASSJune19[[#This Row],[Alloc]]=\"UT\",tblREGASSJune19[[#This Row],[Alloc]]=\"WYU\",tblREGASSJune19[[#This Row],[Alloc]]=\"WYP\",tblREGASSJune19[[#This Row],[Alloc]]=\"CA\",tblREGASSJune19[[#This Row],[Alloc]]=\"WA\"),\"SITUS\",tblREGASSJune19[[#This Row],[Alloc]])","v":"SO"},{"$f":"INDEX(tblREGASSLookup[FUNC],MATCH(tblREGASSJune19[[#This Row],[Concat]],tblREGASSLookup[Concat],0))","v":"ESD"},{"$f":"IF(tblREGASSJune19[[#This Row],[Total ($000)]]=0,\"NO\",IF(ISNA(tblREGASSJune19[[#This Row],[FUNC]]),\"YES\",IF(_xlfn.ISFORMULA(tblREGASSJune19[[#This Row],[FUNC]]),\"NO\",\"YES\")))","v":"NO"}]
[{"$f":"CONCATENATE(tblREGASSJune19[[#This Row],[Primary Account]],tblREGASSJune19[[#This Row],[Primary Name]],tblREGASSJune19[[#This Row],[Secondary Acct]],tblREGASSJune19[[#This Row],[Secondary  Name]],tblREGASSJune19[[#This Row],[Alloc4FUNC]])","v":"1823910ENVIR CST UNDR AMORT103446Astoria/Unocal (Downtown)SO"},1823910,"ENVIR CST UNDR AMORT",103446,"Astoria/Unocal (Downtown)","SO",717.61950230769196,{"$f":"IF(OR(tblREGASSJune19[[#This Row],[Alloc]]=\"IDU\",tblREGASSJune19[[#This Row],[Alloc]]=\"OR\",tblREGASSJune19[[#This Row],[Alloc]]=\"UT\",tblREGASSJune19[[#This Row],[Alloc]]=\"WYU\",tblREGASSJune19[[#This Row],[Alloc]]=\"WYP\",tblREGASSJune19[[#This Row],[Alloc]]=\"CA\",tblREGASSJune19[[#This Row],[Alloc]]=\"WA\"),\"SITUS\",tblREGASSJune19[[#This Row],[Alloc]])","v":"SO"},{"$f":"INDEX(tblREGASSLookup[FUNC],MATCH(tblREGASSJune19[[#This Row],[Concat]],tblREGASSLookup[Concat],0))","v":"ESD"},{"$f":"IF(tblREGASSJune19[[#This Row],[Total ($000)]]=0,\"NO\",IF(ISNA(tblREGASSJune19[[#This Row],[FUNC]]),\"YES\",IF(_xlfn.ISFORMULA(tblREGASSJune19[[#This Row],[FUNC]]),\"NO\",\"YES\")))","v":"NO"}]
[{"$f":"CONCATENATE(tblREGASSJune19[[#This Row],[Primary Account]],tblREGASSJune19[[#This Row],[Primary Name]],tblREGASSJune19[[#This Row],[Secondary Acct]],tblREGASSJune19[[#This Row],[Secondary  Name]],tblREGASSJune19[[#This Row],[Alloc4FUNC]])","v":"1823910ENVIR CST UNDR AMORT103447Big Fork Hydro Plant (MT)SO"},1823910,"ENVIR CST UNDR AMORT",103447,"Big Fork Hydro Plant (MT)","SO",325.52656153846198,{"$f":"IF(OR(tblREGASSJune19[[#This Row],[Alloc]]=\"IDU\",tblREGASSJune19[[#This Row],[Alloc]]=\"OR\",tblREGASSJune19[[#This Row],[Alloc]]=\"UT\",tblREGASSJune19[[#This Row],[Alloc]]=\"WYU\",tblREGASSJune19[[#This Row],[Alloc]]=\"WYP\",tblREGASSJune19[[#This Row],[Alloc]]=\"CA\",tblREGASSJune19[[#This Row],[Alloc]]=\"WA\"),\"SITUS\",tblREGASSJune19[[#This Row],[Alloc]])","v":"SO"},{"$f":"INDEX(tblREGASSLookup[FUNC],MATCH(tblREGASSJune19[[#This Row],[Concat]],tblREGASSLookup[Concat],0))","v":"ESD"},{"$f":"IF(tblREGASSJune19[[#This Row],[Total ($000)]]=0,\"NO\",IF(ISNA(tblREGASSJune19[[#This Row],[FUNC]]),\"YES\",IF(_xlfn.ISFORMULA(tblREGASSJune19[[#This Row],[FUNC]]),\"NO\",\"YES\")))","v":"NO"}]
[{"$f":"CONCATENATE(tblREGASSJune19[[#This Row],[Primary Account]],tblREGASSJune19[[#This Row],[Primary Name]],tblREGASSJune19[[#This Row],[Secondary Acct]],tblREGASSJune19[[#This Row],[Secondary  Name]],tblREGASSJune19[[#This Row],[Alloc4FUNC]])","v":"1823910ENVIR CST UNDR AMORT103448Bridger Coal Fuel Oil SpillSO"},1823910,"ENVIR CST UNDR AMORT",103448,"Bridger Coal Fuel Oil Spill","SO",367.22819769230802,{"$f":"IF(OR(tblREGASSJune19[[#This Row],[Alloc]]=\"IDU\",tblREGASSJune19[[#This Row],[Alloc]]=\"OR\",tblREGASSJune19[[#This Row],[Alloc]]=\"UT\",tblREGASSJune19[[#This Row],[Alloc]]=\"WYU\",tblREGASSJune19[[#This Row],[Alloc]]=\"WYP\",tblREGASSJune19[[#This Row],[Alloc]]=\"CA\",tblREGASSJune19[[#This Row],[Alloc]]=\"WA\"),\"SITUS\",tblREGASSJune19[[#This Row],[Alloc]])","v":"SO"},{"$f":"INDEX(tblREGASSLookup[FUNC],MATCH(tblREGASSJune19[[#This Row],[Concat]],tblREGASSLookup[Concat],0))","v":"ESD"},{"$f":"IF(tblREGASSJune19[[#This Row],[Total ($000)]]=0,\"NO\",IF(ISNA(tblREGASSJune19[[#This Row],[FUNC]]),\"YES\",IF(_xlfn.ISFORMULA(tblREGASSJune19[[#This Row],[FUNC]]),\"NO\",\"YES\")))","v":"NO"}]
[{"$f":"CONCATENATE(tblREGASSJune19[[#This Row],[Primary Account]],tblREGASSJune19[[#This Row],[Primary Name]],tblREGASSJune19[[#This Row],[Secondary Acct]],tblREGASSJune19[[#This Row],[Secondary  Name]],tblREGASSJune19[[#This Row],[Alloc4FUNC]])","v":"1823910ENVIR CST UNDR AMORT103449Bridger FGD Pond 1 ClosureSO"},1823910,"ENVIR CST UNDR AMORT",103449,"Bridger FGD Pond 1 Closure","SO",585.94400076923102,{"$f":"IF(OR(tblREGASSJune19[[#This Row],[Alloc]]=\"IDU\",tblREGASSJune19[[#This Row],[Alloc]]=\"OR\",tblREGASSJune19[[#This Row],[Alloc]]=\"UT\",tblREGASSJune19[[#This Row],[Alloc]]=\"WYU\",tblREGASSJune19[[#This Row],[Alloc]]=\"WYP\",tblREGASSJune19[[#This Row],[Alloc]]=\"CA\",tblREGASSJune19[[#This Row],[Alloc]]=\"WA\"),\"SITUS\",tblREGASSJune19[[#This Row],[Alloc]])","v":"SO"},{"$f":"INDEX(tblREGASSLookup[FUNC],MATCH(tblREGASSJune19[[#This Row],[Concat]],tblREGASSLookup[Concat],0))","v":"ESD"},{"$f":"IF(tblREGASSJune19[[#This Row],[Total ($000)]]=0,\"NO\",IF(ISNA(tblREGASSJune19[[#This Row],[FUNC]]),\"YES\",IF(_xlfn.ISFORMULA(tblREGASSJune19[[#This Row],[FUNC]]),\"NO\",\"YES\")))","v":"NO"}]
[{"$f":"CONCATENATE(tblREGASSJune19[[#This Row],[Primary Account]],tblREGASSJune19[[#This Row],[Primary Name]],tblREGASSJune19[[#This Row],[Secondary Acct]],tblREGASSJune19[[#This Row],[Secondary  Name]],tblREGASSJune19[[#This Row],[Alloc4FUNC]])","v":"1823910ENVIR CST UNDR AMORT103450Bridger Plant Oil SpillsSO"},1823910,"ENVIR CST UNDR AMORT",103450,"Bridger Plant Oil Spills","SO",361.68572615384602,{"$f":"IF(OR(tblREGASSJune19[[#This Row],[Alloc]]=\"IDU\",tblREGASSJune19[[#This Row],[Alloc]]=\"OR\",tblREGASSJune19[[#This Row],[Alloc]]=\"UT\",tblREGASSJune19[[#This Row],[Alloc]]=\"WYU\",tblREGASSJune19[[#This Row],[Alloc]]=\"WYP\",tblREGASSJune19[[#This Row],[Alloc]]=\"CA\",tblREGASSJune19[[#This Row],[Alloc]]=\"WA\"),\"SITUS\",tblREGASSJune19[[#This Row],[Alloc]])","v":"SO"},{"$f":"INDEX(tblREGASSLookup[FUNC],MATCH(tblREGASSJune19[[#This Row],[Concat]],tblREGASSLookup[Concat],0))","v":"ESD"},{"$f":"IF(tblREGASSJune19[[#This Row],[Total ($000)]]=0,\"NO\",IF(ISNA(tblREGASSJune19[[#This Row],[FUNC]]),\"YES\",IF(_xlfn.ISFORMULA(tblREGASSJune19[[#This Row],[FUNC]]),\"NO\",\"YES\")))","v":"NO"}]
[{"$f":"CONCATENATE(tblREGASSJune19[[#This Row],[Primary Account]],tblREGASSJune19[[#This Row],[Primary Name]],tblREGASSJune19[[#This Row],[Secondary Acct]],tblREGASSJune19[[#This Row],[Secondary  Name]],tblREGASSJune19[[#This Row],[Alloc4FUNC]])","v":"1823910ENVIR CST UNDR AMORT103451Cedar Stream Plant (UT)SO"},1823910,"ENVIR CST UNDR AMORT",103451,"Cedar Stream Plant (UT)","SO",30.720368461538499,{"$f":"IF(OR(tblREGASSJune19[[#This Row],[Alloc]]=\"IDU\",tblREGASSJune19[[#This Row],[Alloc]]=\"OR\",tblREGASSJune19[[#This Row],[Alloc]]=\"UT\",tblREGASSJune19[[#This Row],[Alloc]]=\"WYU\",tblREGASSJune19[[#This Row],[Alloc]]=\"WYP\",tblREGASSJune19[[#This Row],[Alloc]]=\"CA\",tblREGASSJune19[[#This Row],[Alloc]]=\"WA\"),\"SITUS\",tblREGASSJune19[[#This Row],[Alloc]])","v":"SO"},{"$f":"INDEX(tblREGASSLookup[FUNC],MATCH(tblREGASSJune19[[#This Row],[Concat]],tblREGASSLookup[Concat],0))","v":"ESD"},{"$f":"IF(tblREGASSJune19[[#This Row],[Total ($000)]]=0,\"NO\",IF(ISNA(tblREGASSJune19[[#This Row],[FUNC]]),\"YES\",IF(_xlfn.ISFORMULA(tblREGASSJune19[[#This Row],[FUNC]]),\"NO\",\"YES\")))","v":"NO"}]
[{"$f":"CONCATENATE(tblREGASSJune19[[#This Row],[Primary Account]],tblREGASSJune19[[#This Row],[Primary Name]],tblREGASSJune19[[#This Row],[Secondary Acct]],tblREGASSJune19[[#This Row],[Secondary  Name]],tblREGASSJune19[[#This Row],[Alloc4FUNC]])","v":"1823910ENVIR CST UNDR AMORT103452Dave Johnston Oil SpillSO"},1823910,"ENVIR CST UNDR AMORT",103452,"Dave Johnston Oil Spill","SO",935.57186307692302,{"$f":"IF(OR(tblREGASSJune19[[#This Row],[Alloc]]=\"IDU\",tblREGASSJune19[[#This Row],[Alloc]]=\"OR\",tblREGASSJune19[[#This Row],[Alloc]]=\"UT\",tblREGASSJune19[[#This Row],[Alloc]]=\"WYU\",tblREGASSJune19[[#This Row],[Alloc]]=\"WYP\",tblREGASSJune19[[#This Row],[Alloc]]=\"CA\",tblREGASSJune19[[#This Row],[Alloc]]=\"WA\"),\"SITUS\",tblREGASSJune19[[#This Row],[Alloc]])","v":"SO"},{"$f":"INDEX(tblREGASSLookup[FUNC],MATCH(tblREGASSJune19[[#This Row],[Concat]],tblREGASSLookup[Concat],0))","v":"ESD"},{"$f":"IF(tblREGASSJune19[[#This Row],[Total ($000)]]=0,\"NO\",IF(ISNA(tblREGASSJune19[[#This Row],[FUNC]]),\"YES\",IF(_xlfn.ISFORMULA(tblREGASSJune19[[#This Row],[FUNC]]),\"NO\",\"YES\")))","v":"NO"}]
[{"$f":"CONCATENATE(tblREGASSJune19[[#This Row],[Primary Account]],tblREGASSJune19[[#This Row],[Primary Name]],tblREGASSJune19[[#This Row],[Secondary Acct]],tblREGASSJune19[[#This Row],[Secondary  Name]],tblREGASSJune19[[#This Row],[Alloc4FUNC]])","v":"1823910ENVIR CST UNDR AMORT103453Eugene MGP (50% PCRP)SO"},1823910,"ENVIR CST UNDR AMORT",103453,"Eugene MGP (50% PCRP)","SO",100.03133692307701,{"$f":"IF(OR(tblREGASSJune19[[#This Row],[Alloc]]=\"IDU\",tblREGASSJune19[[#This Row],[Alloc]]=\"OR\",tblREGASSJune19[[#This Row],[Alloc]]=\"UT\",tblREGASSJune19[[#This Row],[Alloc]]=\"WYU\",tblREGASSJune19[[#This Row],[Alloc]]=\"WYP\",tblREGASSJune19[[#This Row],[Alloc]]=\"CA\",tblREGASSJune19[[#This Row],[Alloc]]=\"WA\"),\"SITUS\",tblREGASSJune19[[#This Row],[Alloc]])","v":"SO"},{"$f":"INDEX(tblREGASSLookup[FUNC],MATCH(tblREGASSJune19[[#This Row],[Concat]],tblREGASSLookup[Concat],0))","v":"ESD"},{"$f":"IF(tblREGASSJune19[[#This Row],[Total ($000)]]=0,\"NO\",IF(ISNA(tblREGASSJune19[[#This Row],[FUNC]]),\"YES\",IF(_xlfn.ISFORMULA(tblREGASSJune19[[#This Row],[FUNC]]),\"NO\",\"YES\")))","v":"NO"}]
[{"$f":"CONCATENATE(tblREGASSJune19[[#This Row],[Primary Account]],tblREGASSJune19[[#This Row],[Primary Name]],tblREGASSJune19[[#This Row],[Secondary Acct]],tblREGASSJune19[[#This Row],[Secondary  Name]],tblREGASSJune19[[#This Row],[Alloc4FUNC]])","v":"1823910ENVIR CST UNDR AMORT103454Everett MGP (2/3 PCRP)SO"},1823910,"ENVIR CST UNDR AMORT",103454,"Everett MGP (2/3 PCRP)","SO",8.1892769230769193,{"$f":"IF(OR(tblREGASSJune19[[#This Row],[Alloc]]=\"IDU\",tblREGASSJune19[[#This Row],[Alloc]]=\"OR\",tblREGASSJune19[[#This Row],[Alloc]]=\"UT\",tblREGASSJune19[[#This Row],[Alloc]]=\"WYU\",tblREGASSJune19[[#This Row],[Alloc]]=\"WYP\",tblREGASSJune19[[#This Row],[Alloc]]=\"CA\",tblREGASSJune19[[#This Row],[Alloc]]=\"WA\"),\"SITUS\",tblREGASSJune19[[#This Row],[Alloc]])","v":"SO"},{"$f":"INDEX(tblREGASSLookup[FUNC],MATCH(tblREGASSJune19[[#This Row],[Concat]],tblREGASSLookup[Concat],0))","v":"ESD"},{"$f":"IF(tblREGASSJune19[[#This Row],[Total ($000)]]=0,\"NO\",IF(ISNA(tblREGASSJune19[[#This Row],[FUNC]]),\"YES\",IF(_xlfn.ISFORMULA(tblREGASSJune19[[#This Row],[FUNC]]),\"NO\",\"YES\")))","v":"NO"}]
[{"$f":"CONCATENATE(tblREGASSJune19[[#This Row],[Primary Account]],tblREGASSJune19[[#This Row],[Primary Name]],tblREGASSJune19[[#This Row],[Secondary Acct]],tblREGASSJune19[[#This Row],[Secondary  Name]],tblREGASSJune19[[#This Row],[Alloc4FUNC]])","v":"1823910ENVIR CST UNDR AMORT103455Hunter Fuel Oil SpillsSO"},1823910,"ENVIR CST UNDR AMORT",103455,"Hunter Fuel Oil Spills","SO",105.535256923077,{"$f":"IF(OR(tblREGASSJune19[[#This Row],[Alloc]]=\"IDU\",tblREGASSJune19[[#This Row],[Alloc]]=\"OR\",tblREGASSJune19[[#This Row],[Alloc]]=\"UT\",tblREGASSJune19[[#This Row],[Alloc]]=\"WYU\",tblREGASSJune19[[#This Row],[Alloc]]=\"WYP\",tblREGASSJune19[[#This Row],[Alloc]]=\"CA\",tblREGASSJune19[[#This Row],[Alloc]]=\"WA\"),\"SITUS\",tblREGASSJune19[[#This Row],[Alloc]])","v":"SO"},{"$f":"INDEX(tblREGASSLookup[FUNC],MATCH(tblREGASSJune19[[#This Row],[Concat]],tblREGASSLookup[Concat],0))","v":"ESD"},{"$f":"IF(tblREGASSJune19[[#This Row],[Total ($000)]]=0,\"NO\",IF(ISNA(tblREGASSJune19[[#This Row],[FUNC]]),\"YES\",IF(_xlfn.ISFORMULA(tblREGASSJune19[[#This Row],[FUNC]]),\"NO\",\"YES\")))","v":"NO"}]
[{"$f":"CONCATENATE(tblREGASSJune19[[#This Row],[Primary Account]],tblREGASSJune19[[#This Row],[Primary Name]],tblREGASSJune19[[#This Row],[Secondary Acct]],tblREGASSJune19[[#This Row],[Secondary  Name]],tblREGASSJune19[[#This Row],[Alloc4FUNC]])","v":"1823910ENVIR CST UNDR AMORT103456Huntington Ash LandfillSO"},1823910,"ENVIR CST UNDR AMORT",103456,"Huntington Ash Landfill","SO",250.34105153846201,{"$f":"IF(OR(tblREGASSJune19[[#This Row],[Alloc]]=\"IDU\",tblREGASSJune19[[#This Row],[Alloc]]=\"OR\",tblREGASSJune19[[#This Row],[Alloc]]=\"UT\",tblREGASSJune19[[#This Row],[Alloc]]=\"WYU\",tblREGASSJune19[[#This Row],[Alloc]]=\"WYP\",tblREGASSJune19[[#This Row],[Alloc]]=\"CA\",tblREGASSJune19[[#This Row],[Alloc]]=\"WA\"),\"SITUS\",tblREGASSJune19[[#This Row],[Alloc]])","v":"SO"},{"$f":"INDEX(tblREGASSLookup[FUNC],MATCH(tblREGASSJune19[[#This Row],[Concat]],tblREGASSLookup[Concat],0))","v":"ESD"},{"$f":"IF(tblREGASSJune19[[#This Row],[Total ($000)]]=0,\"NO\",IF(ISNA(tblREGASSJune19[[#This Row],[FUNC]]),\"YES\",IF(_xlfn.ISFORMULA(tblREGASSJune19[[#This Row],[FUNC]]),\"NO\",\"YES\")))","v":"NO"}]
[{"$f":"CONCATENATE(tblREGASSJune19[[#This Row],[Primary Account]],tblREGASSJune19[[#This Row],[Primary Name]],tblREGASSJune19[[#This Row],[Secondary Acct]],tblREGASSJune19[[#This Row],[Secondary  Name]],tblREGASSJune19[[#This Row],[Alloc4FUNC]])","v":"1823910ENVIR CST UNDR AMORT103457Idaho Falls Pole YardSO"},1823910,"ENVIR CST UNDR AMORT",103457,"Idaho Falls Pole Yard","SO",1046.94217076923,{"$f":"IF(OR(tblREGASSJune19[[#This Row],[Alloc]]=\"IDU\",tblREGASSJune19[[#This Row],[Alloc]]=\"OR\",tblREGASSJune19[[#This Row],[Alloc]]=\"UT\",tblREGASSJune19[[#This Row],[Alloc]]=\"WYU\",tblREGASSJune19[[#This Row],[Alloc]]=\"WYP\",tblREGASSJune19[[#This Row],[Alloc]]=\"CA\",tblREGASSJune19[[#This Row],[Alloc]]=\"WA\"),\"SITUS\",tblREGASSJune19[[#This Row],[Alloc]])","v":"SO"},{"$f":"INDEX(tblREGASSLookup[FUNC],MATCH(tblREGASSJune19[[#This Row],[Concat]],tblREGASSLookup[Concat],0))","v":"ESD"},{"$f":"IF(tblREGASSJune19[[#This Row],[Total ($000)]]=0,\"NO\",IF(ISNA(tblREGASSJune19[[#This Row],[FUNC]]),\"YES\",IF(_xlfn.ISFORMULA(tblREGASSJune19[[#This Row],[FUNC]]),\"NO\",\"YES\")))","v":"NO"}]
[{"$f":"CONCATENATE(tblREGASSJune19[[#This Row],[Primary Account]],tblREGASSJune19[[#This Row],[Primary Name]],tblREGASSJune19[[#This Row],[Secondary Acct]],tblREGASSJune19[[#This Row],[Secondary  Name]],tblREGASSJune19[[#This Row],[Alloc4FUNC]])","v":"1823910ENVIR CST UNDR AMORT103458Jordan Plant SubstationSO"},1823910,"ENVIR CST UNDR AMORT",103458,"Jordan Plant Substation","SO",93.122539230769206,{"$f":"IF(OR(tblREGASSJune19[[#This Row],[Alloc]]=\"IDU\",tblREGASSJune19[[#This Row],[Alloc]]=\"OR\",tblREGASSJune19[[#This Row],[Alloc]]=\"UT\",tblREGASSJune19[[#This Row],[Alloc]]=\"WYU\",tblREGASSJune19[[#This Row],[Alloc]]=\"WYP\",tblREGASSJune19[[#This Row],[Alloc]]=\"CA\",tblREGASSJune19[[#This Row],[Alloc]]=\"WA\"),\"SITUS\",tblREGASSJune19[[#This Row],[Alloc]])","v":"SO"},{"$f":"INDEX(tblREGASSLookup[FUNC],MATCH(tblREGASSJune19[[#This Row],[Concat]],tblREGASSLookup[Concat],0))","v":"ESD"},{"$f":"IF(tblREGASSJune19[[#This Row],[Total ($000)]]=0,\"NO\",IF(ISNA(tblREGASSJune19[[#This Row],[FUNC]]),\"YES\",IF(_xlfn.ISFORMULA(tblREGASSJune19[[#This Row],[FUNC]]),\"NO\",\"YES\")))","v":"NO"}]
[{"$f":"CONCATENATE(tblREGASSJune19[[#This Row],[Primary Account]],tblREGASSJune19[[#This Row],[Primary Name]],tblREGASSJune19[[#This Row],[Secondary Acct]],tblREGASSJune19[[#This Row],[Secondary  Name]],tblREGASSJune19[[#This Row],[Alloc4FUNC]])","v":"1823910ENVIR CST UNDR AMORT103459Little Mountain Gas PlantSO"},1823910,"ENVIR CST UNDR AMORT",103459,"Little Mountain Gas Plant","SO",647.14717692307704,{"$f":"IF(OR(tblREGASSJune19[[#This Row],[Alloc]]=\"IDU\",tblREGASSJune19[[#This Row],[Alloc]]=\"OR\",tblREGASSJune19[[#This Row],[Alloc]]=\"UT\",tblREGASSJune19[[#This Row],[Alloc]]=\"WYU\",tblREGASSJune19[[#This Row],[Alloc]]=\"WYP\",tblREGASSJune19[[#This Row],[Alloc]]=\"CA\",tblREGASSJune19[[#This Row],[Alloc]]=\"WA\"),\"SITUS\",tblREGASSJune19[[#This Row],[Alloc]])","v":"SO"},{"$f":"INDEX(tblREGASSLookup[FUNC],MATCH(tblREGASSJune19[[#This Row],[Concat]],tblREGASSLookup[Concat],0))","v":"ESD"},{"$f":"IF(tblREGASSJune19[[#This Row],[Total ($000)]]=0,\"NO\",IF(ISNA(tblREGASSJune19[[#This Row],[FUNC]]),\"YES\",IF(_xlfn.ISFORMULA(tblREGASSJune19[[#This Row],[FUNC]]),\"NO\",\"YES\")))","v":"NO"}]
[{"$f":"CONCATENATE(tblREGASSJune19[[#This Row],[Primary Account]],tblREGASSJune19[[#This Row],[Primary Name]],tblREGASSJune19[[#This Row],[Secondary Acct]],tblREGASSJune19[[#This Row],[Secondary  Name]],tblREGASSJune19[[#This Row],[Alloc4FUNC]])","v":"1823910ENVIR CST UNDR AMORT103460Montague Ranch (CA)SO"},1823910,"ENVIR CST UNDR AMORT",103460,"Montague Ranch (CA)","SO",83.601460769230798,{"$f":"IF(OR(tblREGASSJune19[[#This Row],[Alloc]]=\"IDU\",tblREGASSJune19[[#This Row],[Alloc]]=\"OR\",tblREGASSJune19[[#This Row],[Alloc]]=\"UT\",tblREGASSJune19[[#This Row],[Alloc]]=\"WYU\",tblREGASSJune19[[#This Row],[Alloc]]=\"WYP\",tblREGASSJune19[[#This Row],[Alloc]]=\"CA\",tblREGASSJune19[[#This Row],[Alloc]]=\"WA\"),\"SITUS\",tblREGASSJune19[[#This Row],[Alloc]])","v":"SO"},{"$f":"INDEX(tblREGASSLookup[FUNC],MATCH(tblREGASSJune19[[#This Row],[Concat]],tblREGASSLookup[Concat],0))","v":"ESD"},{"$f":"IF(tblREGASSJune19[[#This Row],[Total ($000)]]=0,\"NO\",IF(ISNA(tblREGASSJune19[[#This Row],[FUNC]]),\"YES\",IF(_xlfn.ISFORMULA(tblREGASSJune19[[#This Row],[FUNC]]),\"NO\",\"YES\")))","v":"NO"}]
[{"$f":"CONCATENATE(tblREGASSJune19[[#This Row],[Primary Account]],tblREGASSJune19[[#This Row],[Primary Name]],tblREGASSJune19[[#This Row],[Secondary Acct]],tblREGASSJune19[[#This Row],[Secondary  Name]],tblREGASSJune19[[#This Row],[Alloc4FUNC]])","v":"1823910ENVIR CST UNDR AMORT103461Naughton FGD Pond ClosureSO"},1823910,"ENVIR CST UNDR AMORT",103461,"Naughton FGD Pond Closure","SO",165.42966999999999,{"$f":"IF(OR(tblREGASSJune19[[#This Row],[Alloc]]=\"IDU\",tblREGASSJune19[[#This Row],[Alloc]]=\"OR\",tblREGASSJune19[[#This Row],[Alloc]]=\"UT\",tblREGASSJune19[[#This Row],[Alloc]]=\"WYU\",tblREGASSJune19[[#This Row],[Alloc]]=\"WYP\",tblREGASSJune19[[#This Row],[Alloc]]=\"CA\",tblREGASSJune19[[#This Row],[Alloc]]=\"WA\"),\"SITUS\",tblREGASSJune19[[#This Row],[Alloc]])","v":"SO"},{"$f":"INDEX(tblREGASSLookup[FUNC],MATCH(tblREGASSJune19[[#This Row],[Concat]],tblREGASSLookup[Concat],0))","v":"ESD"},{"$f":"IF(tblREGASSJune19[[#This Row],[Total ($000)]]=0,\"NO\",IF(ISNA(tblREGASSJune19[[#This Row],[FUNC]]),\"YES\",IF(_xlfn.ISFORMULA(tblREGASSJune19[[#This Row],[FUNC]]),\"NO\",\"YES\")))","v":"NO"}]
[{"$f":"CONCATENATE(tblREGASSJune19[[#This Row],[Primary Account]],tblREGASSJune19[[#This Row],[Primary Name]],tblREGASSJune19[[#This Row],[Secondary Acct]],tblREGASSJune19[[#This Row],[Secondary  Name]],tblREGASSJune19[[#This Row],[Alloc4FUNC]])","v":"1823910ENVIR CST UNDR AMORT103462Ogden MGPSO"},1823910,"ENVIR CST UNDR AMORT",103462,"Ogden MGP","SO",2681.0860284615401,{"$f":"IF(OR(tblREGASSJune19[[#This Row],[Alloc]]=\"IDU\",tblREGASSJune19[[#This Row],[Alloc]]=\"OR\",tblREGASSJune19[[#This Row],[Alloc]]=\"UT\",tblREGASSJune19[[#This Row],[Alloc]]=\"WYU\",tblREGASSJune19[[#This Row],[Alloc]]=\"WYP\",tblREGASSJune19[[#This Row],[Alloc]]=\"CA\",tblREGASSJune19[[#This Row],[Alloc]]=\"WA\"),\"SITUS\",tblREGASSJune19[[#This Row],[Alloc]])","v":"SO"},{"$f":"INDEX(tblREGASSLookup[FUNC],MATCH(tblREGASSJune19[[#This Row],[Concat]],tblREGASSLookup[Concat],0))","v":"ESD"},{"$f":"IF(tblREGASSJune19[[#This Row],[Total ($000)]]=0,\"NO\",IF(ISNA(tblREGASSJune19[[#This Row],[FUNC]]),\"YES\",IF(_xlfn.ISFORMULA(tblREGASSJune19[[#This Row],[FUNC]]),\"NO\",\"YES\")))","v":"NO"}]
[{"$f":"CONCATENATE(tblREGASSJune19[[#This Row],[Primary Account]],tblREGASSJune19[[#This Row],[Primary Name]],tblREGASSJune19[[#This Row],[Secondary Acct]],tblREGASSJune19[[#This Row],[Secondary  Name]],tblREGASSJune19[[#This Row],[Alloc4FUNC]])","v":"1823910ENVIR CST UNDR AMORT103464Powerdale Hydro PlantSO"},1823910,"ENVIR CST UNDR AMORT",103464,"Powerdale Hydro Plant","SO",4.89961538461538E-2,{"$f":"IF(OR(tblREGASSJune19[[#This Row],[Alloc]]=\"IDU\",tblREGASSJune19[[#This Row],[Alloc]]=\"OR\",tblREGASSJune19[[#This Row],[Alloc]]=\"UT\",tblREGASSJune19[[#This Row],[Alloc]]=\"WYU\",tblREGASSJune19[[#This Row],[Alloc]]=\"WYP\",tblREGASSJune19[[#This Row],[Alloc]]=\"CA\",tblREGASSJune19[[#This Row],[Alloc]]=\"WA\"),\"SITUS\",tblREGASSJune19[[#This Row],[Alloc]])","v":"SO"},{"$f":"INDEX(tblREGASSLookup[FUNC],MATCH(tblREGASSJune19[[#This Row],[Concat]],tblREGASSLookup[Concat],0))","v":"ESD"},{"$f":"IF(tblREGASSJune19[[#This Row],[Total ($000)]]=0,\"NO\",IF(ISNA(tblREGASSJune19[[#This Row],[FUNC]]),\"YES\",IF(_xlfn.ISFORMULA(tblREGASSJune19[[#This Row],[FUNC]]),\"NO\",\"YES\")))","v":"NO"}]
[{"$f":"CONCATENATE(tblREGASSJune19[[#This Row],[Primary Account]],tblREGASSJune19[[#This Row],[Primary Name]],tblREGASSJune19[[#This Row],[Secondary Acct]],tblREGASSJune19[[#This Row],[Secondary  Name]],tblREGASSJune19[[#This Row],[Alloc4FUNC]])","v":"1823910ENVIR CST UNDR AMORT103465Tacoma A St. (25% PCRP)SO"},1823910,"ENVIR CST UNDR AMORT",103465,"Tacoma A St. (25% PCRP)","SO",23.345077692307701,{"$f":"IF(OR(tblREGASSJune19[[#This Row],[Alloc]]=\"IDU\",tblREGASSJune19[[#This Row],[Alloc]]=\"OR\",tblREGASSJune19[[#This Row],[Alloc]]=\"UT\",tblREGASSJune19[[#This Row],[Alloc]]=\"WYU\",tblREGASSJune19[[#This Row],[Alloc]]=\"WYP\",tblREGASSJune19[[#This Row],[Alloc]]=\"CA\",tblREGASSJune19[[#This Row],[Alloc]]=\"WA\"),\"SITUS\",tblREGASSJune19[[#This Row],[Alloc]])","v":"SO"},{"$f":"INDEX(tblREGASSLookup[FUNC],MATCH(tblREGASSJune19[[#This Row],[Concat]],tblREGASSLookup[Concat],0))","v":"ESD"},{"$f":"IF(tblREGASSJune19[[#This Row],[Total ($000)]]=0,\"NO\",IF(ISNA(tblREGASSJune19[[#This Row],[FUNC]]),\"YES\",IF(_xlfn.ISFORMULA(tblREGASSJune19[[#This Row],[FUNC]]),\"NO\",\"YES\")))","v":"NO"}]
[{"$f":"CONCATENATE(tblREGASSJune19[[#This Row],[Primary Account]],tblREGASSJune19[[#This Row],[Primary Name]],tblREGASSJune19[[#This Row],[Secondary Acct]],tblREGASSJune19[[#This Row],[Secondary  Name]],tblREGASSJune19[[#This Row],[Alloc4FUNC]])","v":"1823910ENVIR CST UNDR AMORT103466Portland Harbor Service CtrSO"},1823910,"ENVIR CST UNDR AMORT",103466,"Portland Harbor Service Ctr","SO",2545.6724061538498,{"$f":"IF(OR(tblREGASSJune19[[#This Row],[Alloc]]=\"IDU\",tblREGASSJune19[[#This Row],[Alloc]]=\"OR\",tblREGASSJune19[[#This Row],[Alloc]]=\"UT\",tblREGASSJune19[[#This Row],[Alloc]]=\"WYU\",tblREGASSJune19[[#This Row],[Alloc]]=\"WYP\",tblREGASSJune19[[#This Row],[Alloc]]=\"CA\",tblREGASSJune19[[#This Row],[Alloc]]=\"WA\"),\"SITUS\",tblREGASSJune19[[#This Row],[Alloc]])","v":"SO"},{"$f":"INDEX(tblREGASSLookup[FUNC],MATCH(tblREGASSJune19[[#This Row],[Concat]],tblREGASSLookup[Concat],0))","v":"ESD"},{"$f":"IF(tblREGASSJune19[[#This Row],[Total ($000)]]=0,\"NO\",IF(ISNA(tblREGASSJune19[[#This Row],[FUNC]]),\"YES\",IF(_xlfn.ISFORMULA(tblREGASSJune19[[#This Row],[FUNC]]),\"NO\",\"YES\")))","v":"NO"}]
[{"$f":"CONCATENATE(tblREGASSJune19[[#This Row],[Primary Account]],tblREGASSJune19[[#This Row],[Primary Name]],tblREGASSJune19[[#This Row],[Secondary Acct]],tblREGASSJune19[[#This Row],[Secondary  Name]],tblREGASSJune19[[#This Row],[Alloc4FUNC]])","v":"1823910ENVIR CST UNDR AMORT103467Wyodak Fuel Oil SpillSO"},1823910,"ENVIR CST UNDR AMORT",103467,"Wyodak Fuel Oil Spill","SO",68.003401538461503,{"$f":"IF(OR(tblREGASSJune19[[#This Row],[Alloc]]=\"IDU\",tblREGASSJune19[[#This Row],[Alloc]]=\"OR\",tblREGASSJune19[[#This Row],[Alloc]]=\"UT\",tblREGASSJune19[[#This Row],[Alloc]]=\"WYU\",tblREGASSJune19[[#This Row],[Alloc]]=\"WYP\",tblREGASSJune19[[#This Row],[Alloc]]=\"CA\",tblREGASSJune19[[#This Row],[Alloc]]=\"WA\"),\"SITUS\",tblREGASSJune19[[#This Row],[Alloc]])","v":"SO"},{"$f":"INDEX(tblREGASSLookup[FUNC],MATCH(tblREGASSJune19[[#This Row],[Concat]],tblREGASSLookup[Concat],0))","v":"ESD"},{"$f":"IF(tblREGASSJune19[[#This Row],[Total ($000)]]=0,\"NO\",IF(ISNA(tblREGASSJune19[[#This Row],[FUNC]]),\"YES\",IF(_xlfn.ISFORMULA(tblREGASSJune19[[#This Row],[FUNC]]),\"NO\",\"YES\")))","v":"NO"}]
[{"$f":"CONCATENATE(tblREGASSJune19[[#This Row],[Primary Account]],tblREGASSJune19[[#This Row],[Primary Name]],tblREGASSJune19[[#This Row],[Secondary Acct]],tblREGASSJune19[[#This Row],[Secondary  Name]],tblREGASSJune19[[#This Row],[Alloc4FUNC]])","v":"1823910ENVIR CST UNDR AMORT103585CLINE FALLS-HYDROSO"},1823910,"ENVIR CST UNDR AMORT",103585,"CLINE FALLS-HYDRO","SO",74.103732307692297,{"$f":"IF(OR(tblREGASSJune19[[#This Row],[Alloc]]=\"IDU\",tblREGASSJune19[[#This Row],[Alloc]]=\"OR\",tblREGASSJune19[[#This Row],[Alloc]]=\"UT\",tblREGASSJune19[[#This Row],[Alloc]]=\"WYU\",tblREGASSJune19[[#This Row],[Alloc]]=\"WYP\",tblREGASSJune19[[#This Row],[Alloc]]=\"CA\",tblREGASSJune19[[#This Row],[Alloc]]=\"WA\"),\"SITUS\",tblREGASSJune19[[#This Row],[Alloc]])","v":"SO"},{"$f":"INDEX(tblREGASSLookup[FUNC],MATCH(tblREGASSJune19[[#This Row],[Concat]],tblREGASSLookup[Concat],0))","v":"ESD"},{"$f":"IF(tblREGASSJune19[[#This Row],[Total ($000)]]=0,\"NO\",IF(ISNA(tblREGASSJune19[[#This Row],[FUNC]]),\"YES\",IF(_xlfn.ISFORMULA(tblREGASSJune19[[#This Row],[FUNC]]),\"NO\",\"YES\")))","v":"NO"}]
[{"$f":"CONCATENATE(tblREGASSJune19[[#This Row],[Primary Account]],tblREGASSJune19[[#This Row],[Primary Name]],tblREGASSJune19[[#This Row],[Secondary Acct]],tblREGASSJune19[[#This Row],[Secondary  Name]],tblREGASSJune19[[#This Row],[Alloc4FUNC]])","v":"1823910ENVIR CST UNDR AMORT103737Geneva Rock Bldg - Hunter PlantSO"},1823910,"ENVIR CST UNDR AMORT",103737,"Geneva Rock Bldg - Hunter Plant","SO",23.131080000000001,{"$f":"IF(OR(tblREGASSJune19[[#This Row],[Alloc]]=\"IDU\",tblREGASSJune19[[#This Row],[Alloc]]=\"OR\",tblREGASSJune19[[#This Row],[Alloc]]=\"UT\",tblREGASSJune19[[#This Row],[Alloc]]=\"WYU\",tblREGASSJune19[[#This Row],[Alloc]]=\"WYP\",tblREGASSJune19[[#This Row],[Alloc]]=\"CA\",tblREGASSJune19[[#This Row],[Alloc]]=\"WA\"),\"SITUS\",tblREGASSJune19[[#This Row],[Alloc]])","v":"SO"},{"$f":"INDEX(tblREGASSLookup[FUNC],MATCH(tblREGASSJune19[[#This Row],[Concat]],tblREGASSLookup[Concat],0))","v":"ESD"},{"$f":"IF(tblREGASSJune19[[#This Row],[Total ($000)]]=0,\"NO\",IF(ISNA(tblREGASSJune19[[#This Row],[FUNC]]),\"YES\",IF(_xlfn.ISFORMULA(tblREGASSJune19[[#This Row],[FUNC]]),\"NO\",\"YES\")))","v":"NO"}]
[{"$f":"CONCATENATE(tblREGASSJune19[[#This Row],[Primary Account]],tblREGASSJune19[[#This Row],[Primary Name]],tblREGASSJune19[[#This Row],[Secondary Acct]],tblREGASSJune19[[#This Row],[Secondary  Name]],tblREGASSJune19[[#This Row],[Alloc4FUNC]])","v":"1823910ENVIR CST UNDR AMORT103851Alturas Service Center (CA)SO"},1823910,"ENVIR CST UNDR AMORT",103851,"Alturas Service Center (CA)","SO",5.7214276923076897,{"$f":"IF(OR(tblREGASSJune19[[#This Row],[Alloc]]=\"IDU\",tblREGASSJune19[[#This Row],[Alloc]]=\"OR\",tblREGASSJune19[[#This Row],[Alloc]]=\"UT\",tblREGASSJune19[[#This Row],[Alloc]]=\"WYU\",tblREGASSJune19[[#This Row],[Alloc]]=\"WYP\",tblREGASSJune19[[#This Row],[Alloc]]=\"CA\",tblREGASSJune19[[#This Row],[Alloc]]=\"WA\"),\"SITUS\",tblREGASSJune19[[#This Row],[Alloc]])","v":"SO"},{"$f":"INDEX(tblREGASSLookup[FUNC],MATCH(tblREGASSJune19[[#This Row],[Concat]],tblREGASSLookup[Concat],0))","v":"ESD"},{"$f":"IF(tblREGASSJune19[[#This Row],[Total ($000)]]=0,\"NO\",IF(ISNA(tblREGASSJune19[[#This Row],[FUNC]]),\"YES\",IF(_xlfn.ISFORMULA(tblREGASSJune19[[#This Row],[FUNC]]),\"NO\",\"YES\")))","v":"NO"}]
[{"$f":"CONCATENATE(tblREGASSJune19[[#This Row],[Primary Account]],tblREGASSJune19[[#This Row],[Primary Name]],tblREGASSJune19[[#This Row],[Secondary Acct]],tblREGASSJune19[[#This Row],[Secondary  Name]],tblREGASSJune19[[#This Row],[Alloc4FUNC]])","v":"1823910ENVIR CST UNDR AMORT103852Pendleton Service Center  (OR)SO"},1823910,"ENVIR CST UNDR AMORT",103852,"Pendleton Service Center  (OR)","SO",3.57629461538462,{"$f":"IF(OR(tblREGASSJune19[[#This Row],[Alloc]]=\"IDU\",tblREGASSJune19[[#This Row],[Alloc]]=\"OR\",tblREGASSJune19[[#This Row],[Alloc]]=\"UT\",tblREGASSJune19[[#This Row],[Alloc]]=\"WYU\",tblREGASSJune19[[#This Row],[Alloc]]=\"WYP\",tblREGASSJune19[[#This Row],[Alloc]]=\"CA\",tblREGASSJune19[[#This Row],[Alloc]]=\"WA\"),\"SITUS\",tblREGASSJune19[[#This Row],[Alloc]])","v":"SO"},{"$f":"INDEX(tblREGASSLookup[FUNC],MATCH(tblREGASSJune19[[#This Row],[Concat]],tblREGASSLookup[Concat],0))","v":"ESD"},{"$f":"IF(tblREGASSJune19[[#This Row],[Total ($000)]]=0,\"NO\",IF(ISNA(tblREGASSJune19[[#This Row],[FUNC]]),\"YES\",IF(_xlfn.ISFORMULA(tblREGASSJune19[[#This Row],[FUNC]]),\"NO\",\"YES\")))","v":"NO"}]
[{"$f":"CONCATENATE(tblREGASSJune19[[#This Row],[Primary Account]],tblREGASSJune19[[#This Row],[Primary Name]],tblREGASSJune19[[#This Row],[Secondary Acct]],tblREGASSJune19[[#This Row],[Secondary  Name]],tblREGASSJune19[[#This Row],[Alloc4FUNC]])","v":"1823910ENVIR CST UNDR AMORT103853Sunnyside Service Center (WA)SO"},1823910,"ENVIR CST UNDR AMORT",103853,"Sunnyside Service Center (WA)","SO",0.40428923076923101,{"$f":"IF(OR(tblREGASSJune19[[#This Row],[Alloc]]=\"IDU\",tblREGASSJune19[[#This Row],[Alloc]]=\"OR\",tblREGASSJune19[[#This Row],[Alloc]]=\"UT\",tblREGASSJune19[[#This Row],[Alloc]]=\"WYU\",tblREGASSJune19[[#This Row],[Alloc]]=\"WYP\",tblREGASSJune19[[#This Row],[Alloc]]=\"CA\",tblREGASSJune19[[#This Row],[Alloc]]=\"WA\"),\"SITUS\",tblREGASSJune19[[#This Row],[Alloc]])","v":"SO"},{"$f":"INDEX(tblREGASSLookup[FUNC],MATCH(tblREGASSJune19[[#This Row],[Concat]],tblREGASSLookup[Concat],0))","v":"ESD"},{"$f":"IF(tblREGASSJune19[[#This Row],[Total ($000)]]=0,\"NO\",IF(ISNA(tblREGASSJune19[[#This Row],[FUNC]]),\"YES\",IF(_xlfn.ISFORMULA(tblREGASSJune19[[#This Row],[FUNC]]),\"NO\",\"YES\")))","v":"NO"}]
[{"$f":"CONCATENATE(tblREGASSJune19[[#This Row],[Primary Account]],tblREGASSJune19[[#This Row],[Primary Name]],tblREGASSJune19[[#This Row],[Secondary Acct]],tblREGASSJune19[[#This Row],[Secondary  Name]],tblREGASSJune19[[#This Row],[Alloc4FUNC]])","v":"1823910ENVIR CST UNDR AMORT103940D-SM Retail Minor Sites - RMP - 2012SO"},1823910,"ENVIR CST UNDR AMORT",103940,"D-SM Retail Minor Sites - RMP - 2012","SO",217.35679230769199,{"$f":"IF(OR(tblREGASSJune19[[#This Row],[Alloc]]=\"IDU\",tblREGASSJune19[[#This Row],[Alloc]]=\"OR\",tblREGASSJune19[[#This Row],[Alloc]]=\"UT\",tblREGASSJune19[[#This Row],[Alloc]]=\"WYU\",tblREGASSJune19[[#This Row],[Alloc]]=\"WYP\",tblREGASSJune19[[#This Row],[Alloc]]=\"CA\",tblREGASSJune19[[#This Row],[Alloc]]=\"WA\"),\"SITUS\",tblREGASSJune19[[#This Row],[Alloc]])","v":"SO"},{"$f":"INDEX(tblREGASSLookup[FUNC],MATCH(tblREGASSJune19[[#This Row],[Concat]],tblREGASSLookup[Concat],0))","v":"ESD"},{"$f":"IF(tblREGASSJune19[[#This Row],[Total ($000)]]=0,\"NO\",IF(ISNA(tblREGASSJune19[[#This Row],[FUNC]]),\"YES\",IF(_xlfn.ISFORMULA(tblREGASSJune19[[#This Row],[FUNC]]),\"NO\",\"YES\")))","v":"NO"}]
[{"$f":"CONCATENATE(tblREGASSJune19[[#This Row],[Primary Account]],tblREGASSJune19[[#This Row],[Primary Name]],tblREGASSJune19[[#This Row],[Secondary Acct]],tblREGASSJune19[[#This Row],[Secondary  Name]],tblREGASSJune19[[#This Row],[Alloc4FUNC]])","v":"1823910ENVIR CST UNDR AMORT103941D-SM Retail Minor Sites - RMP - 2013SO"},1823910,"ENVIR CST UNDR AMORT",103941,"D-SM Retail Minor Sites - RMP - 2013","SO",327.470982307692,{"$f":"IF(OR(tblREGASSJune19[[#This Row],[Alloc]]=\"IDU\",tblREGASSJune19[[#This Row],[Alloc]]=\"OR\",tblREGASSJune19[[#This Row],[Alloc]]=\"UT\",tblREGASSJune19[[#This Row],[Alloc]]=\"WYU\",tblREGASSJune19[[#This Row],[Alloc]]=\"WYP\",tblREGASSJune19[[#This Row],[Alloc]]=\"CA\",tblREGASSJune19[[#This Row],[Alloc]]=\"WA\"),\"SITUS\",tblREGASSJune19[[#This Row],[Alloc]])","v":"SO"},{"$f":"INDEX(tblREGASSLookup[FUNC],MATCH(tblREGASSJune19[[#This Row],[Concat]],tblREGASSLookup[Concat],0))","v":"ESD"},{"$f":"IF(tblREGASSJune19[[#This Row],[Total ($000)]]=0,\"NO\",IF(ISNA(tblREGASSJune19[[#This Row],[FUNC]]),\"YES\",IF(_xlfn.ISFORMULA(tblREGASSJune19[[#This Row],[FUNC]]),\"NO\",\"YES\")))","v":"NO"}]
[{"$f":"CONCATENATE(tblREGASSJune19[[#This Row],[Primary Account]],tblREGASSJune19[[#This Row],[Primary Name]],tblREGASSJune19[[#This Row],[Secondary Acct]],tblREGASSJune19[[#This Row],[Secondary  Name]],tblREGASSJune19[[#This Row],[Alloc4FUNC]])","v":"1823910ENVIR CST UNDR AMORT103942D-SM Retail Minor Sites - RMP - 2014SO"},1823910,"ENVIR CST UNDR AMORT",103942,"D-SM Retail Minor Sites - RMP - 2014","SO",619.48398999999995,{"$f":"IF(OR(tblREGASSJune19[[#This Row],[Alloc]]=\"IDU\",tblREGASSJune19[[#This Row],[Alloc]]=\"OR\",tblREGASSJune19[[#This Row],[Alloc]]=\"UT\",tblREGASSJune19[[#This Row],[Alloc]]=\"WYU\",tblREGASSJune19[[#This Row],[Alloc]]=\"WYP\",tblREGASSJune19[[#This Row],[Alloc]]=\"CA\",tblREGASSJune19[[#This Row],[Alloc]]=\"WA\"),\"SITUS\",tblREGASSJune19[[#This Row],[Alloc]])","v":"SO"},{"$f":"INDEX(tblREGASSLookup[FUNC],MATCH(tblREGASSJune19[[#This Row],[Concat]],tblREGASSLookup[Concat],0))","v":"ESD"},{"$f":"IF(tblREGASSJune19[[#This Row],[Total ($000)]]=0,\"NO\",IF(ISNA(tblREGASSJune19[[#This Row],[FUNC]]),\"YES\",IF(_xlfn.ISFORMULA(tblREGASSJune19[[#This Row],[FUNC]]),\"NO\",\"YES\")))","v":"NO"}]
[{"$f":"CONCATENATE(tblREGASSJune19[[#This Row],[Primary Account]],tblREGASSJune19[[#This Row],[Primary Name]],tblREGASSJune19[[#This Row],[Secondary Acct]],tblREGASSJune19[[#This Row],[Secondary  Name]],tblREGASSJune19[[#This Row],[Alloc4FUNC]])","v":"1823910ENVIR CST UNDR AMORT103944D-SM Retail Minor Sites - RMP - 2008SO"},1823910,"ENVIR CST UNDR AMORT",103944,"D-SM Retail Minor Sites - RMP - 2008","SO",0,{"$f":"IF(OR(tblREGASSJune19[[#This Row],[Alloc]]=\"IDU\",tblREGASSJune19[[#This Row],[Alloc]]=\"OR\",tblREGASSJune19[[#This Row],[Alloc]]=\"UT\",tblREGASSJune19[[#This Row],[Alloc]]=\"WYU\",tblREGASSJune19[[#This Row],[Alloc]]=\"WYP\",tblREGASSJune19[[#This Row],[Alloc]]=\"CA\",tblREGASSJune19[[#This Row],[Alloc]]=\"WA\"),\"SITUS\",tblREGASSJune19[[#This Row],[Alloc]])","v":"SO"},{"$f":"INDEX(tblREGASSLookup[FUNC],MATCH(tblREGASSJune19[[#This Row],[Concat]],tblREGASSLookup[Concat],0))","v":"ESD"},{"$f":"IF(tblREGASSJune19[[#This Row],[Total ($000)]]=0,\"NO\",IF(ISNA(tblREGASSJune19[[#This Row],[FUNC]]),\"YES\",IF(_xlfn.ISFORMULA(tblREGASSJune19[[#This Row],[FUNC]]),\"NO\",\"YES\")))","v":"NO"}]
[{"$f":"CONCATENATE(tblREGASSJune19[[#This Row],[Primary Account]],tblREGASSJune19[[#This Row],[Primary Name]],tblREGASSJune19[[#This Row],[Secondary Acct]],tblREGASSJune19[[#This Row],[Secondary  Name]],tblREGASSJune19[[#This Row],[Alloc4FUNC]])","v":"1823910ENVIR CST UNDR AMORT103945D-SM Retail Minor Sites - RMP - 2009SO"},1823910,"ENVIR CST UNDR AMORT",103945,"D-SM Retail Minor Sites - RMP - 2009","SO",9.9593792307692297,{"$f":"IF(OR(tblREGASSJune19[[#This Row],[Alloc]]=\"IDU\",tblREGASSJune19[[#This Row],[Alloc]]=\"OR\",tblREGASSJune19[[#This Row],[Alloc]]=\"UT\",tblREGASSJune19[[#This Row],[Alloc]]=\"WYU\",tblREGASSJune19[[#This Row],[Alloc]]=\"WYP\",tblREGASSJune19[[#This Row],[Alloc]]=\"CA\",tblREGASSJune19[[#This Row],[Alloc]]=\"WA\"),\"SITUS\",tblREGASSJune19[[#This Row],[Alloc]])","v":"SO"},{"$f":"INDEX(tblREGASSLookup[FUNC],MATCH(tblREGASSJune19[[#This Row],[Concat]],tblREGASSLookup[Concat],0))","v":"ESD"},{"$f":"IF(tblREGASSJune19[[#This Row],[Total ($000)]]=0,\"NO\",IF(ISNA(tblREGASSJune19[[#This Row],[FUNC]]),\"YES\",IF(_xlfn.ISFORMULA(tblREGASSJune19[[#This Row],[FUNC]]),\"NO\",\"YES\")))","v":"NO"}]
[{"$f":"CONCATENATE(tblREGASSJune19[[#This Row],[Primary Account]],tblREGASSJune19[[#This Row],[Primary Name]],tblREGASSJune19[[#This Row],[Secondary Acct]],tblREGASSJune19[[#This Row],[Secondary  Name]],tblREGASSJune19[[#This Row],[Alloc4FUNC]])","v":"1823910ENVIR CST UNDR AMORT103946D-SM Retail Minor Sites - RMP - 2010SO"},1823910,"ENVIR CST UNDR AMORT",103946,"D-SM Retail Minor Sites - RMP - 2010","SO",94.370300769230795,{"$f":"IF(OR(tblREGASSJune19[[#This Row],[Alloc]]=\"IDU\",tblREGASSJune19[[#This Row],[Alloc]]=\"OR\",tblREGASSJune19[[#This Row],[Alloc]]=\"UT\",tblREGASSJune19[[#This Row],[Alloc]]=\"WYU\",tblREGASSJune19[[#This Row],[Alloc]]=\"WYP\",tblREGASSJune19[[#This Row],[Alloc]]=\"CA\",tblREGASSJune19[[#This Row],[Alloc]]=\"WA\"),\"SITUS\",tblREGASSJune19[[#This Row],[Alloc]])","v":"SO"},{"$f":"INDEX(tblREGASSLookup[FUNC],MATCH(tblREGASSJune19[[#This Row],[Concat]],tblREGASSLookup[Concat],0))","v":"ESD"},{"$f":"IF(tblREGASSJune19[[#This Row],[Total ($000)]]=0,\"NO\",IF(ISNA(tblREGASSJune19[[#This Row],[FUNC]]),\"YES\",IF(_xlfn.ISFORMULA(tblREGASSJune19[[#This Row],[FUNC]]),\"NO\",\"YES\")))","v":"NO"}]
[{"$f":"CONCATENATE(tblREGASSJune19[[#This Row],[Primary Account]],tblREGASSJune19[[#This Row],[Primary Name]],tblREGASSJune19[[#This Row],[Secondary Acct]],tblREGASSJune19[[#This Row],[Secondary  Name]],tblREGASSJune19[[#This Row],[Alloc4FUNC]])","v":"1823910ENVIR CST UNDR AMORT103947D-SM Retail Minor Sites - RMP - 2011SO"},1823910,"ENVIR CST UNDR AMORT",103947,"D-SM Retail Minor Sites - RMP - 2011","SO",141.866169230769,{"$f":"IF(OR(tblREGASSJune19[[#This Row],[Alloc]]=\"IDU\",tblREGASSJune19[[#This Row],[Alloc]]=\"OR\",tblREGASSJune19[[#This Row],[Alloc]]=\"UT\",tblREGASSJune19[[#This Row],[Alloc]]=\"WYU\",tblREGASSJune19[[#This Row],[Alloc]]=\"WYP\",tblREGASSJune19[[#This Row],[Alloc]]=\"CA\",tblREGASSJune19[[#This Row],[Alloc]]=\"WA\"),\"SITUS\",tblREGASSJune19[[#This Row],[Alloc]])","v":"SO"},{"$f":"INDEX(tblREGASSLookup[FUNC],MATCH(tblREGASSJune19[[#This Row],[Concat]],tblREGASSLookup[Concat],0))","v":"ESD"},{"$f":"IF(tblREGASSJune19[[#This Row],[Total ($000)]]=0,\"NO\",IF(ISNA(tblREGASSJune19[[#This Row],[FUNC]]),\"YES\",IF(_xlfn.ISFORMULA(tblREGASSJune19[[#This Row],[FUNC]]),\"NO\",\"YES\")))","v":"NO"}]
[{"$f":"CONCATENATE(tblREGASSJune19[[#This Row],[Primary Account]],tblREGASSJune19[[#This Row],[Primary Name]],tblREGASSJune19[[#This Row],[Secondary Acct]],tblREGASSJune19[[#This Row],[Secondary  Name]],tblREGASSJune19[[#This Row],[Alloc4FUNC]])","v":"1823910ENVIR CST UNDR AMORT103948WASHINGTON NON-DEFERRED COSTS-SPPC PACIFSITUS"},1823910,"ENVIR CST UNDR AMORT",103948,"WASHINGTON NON-DEFERRED COSTS-SPPC PACIF","WA",-131.22243153846199,{"$f":"IF(OR(tblREGASSJune19[[#This Row],[Alloc]]=\"IDU\",tblREGASSJune19[[#This Row],[Alloc]]=\"OR\",tblREGASSJune19[[#This Row],[Alloc]]=\"UT\",tblREGASSJune19[[#This Row],[Alloc]]=\"WYU\",tblREGASSJune19[[#This Row],[Alloc]]=\"WYP\",tblREGASSJune19[[#This Row],[Alloc]]=\"CA\",tblREGASSJune19[[#This Row],[Alloc]]=\"WA\"),\"SITUS\",tblREGASSJune19[[#This Row],[Alloc]])","v":"SITUS"},{"$f":"INDEX(tblREGASSLookup[FUNC],MATCH(tblREGASSJune19[[#This Row],[Concat]],tblREGASSLookup[Concat],0))","v":"ESD"},{"$f":"IF(tblREGASSJune19[[#This Row],[Total ($000)]]=0,\"NO\",IF(ISNA(tblREGASSJune19[[#This Row],[FUNC]]),\"YES\",IF(_xlfn.ISFORMULA(tblREGASSJune19[[#This Row],[FUNC]]),\"NO\",\"YES\")))","v":"NO"}]
[{"$f":"CONCATENATE(tblREGASSJune19[[#This Row],[Primary Account]],tblREGASSJune19[[#This Row],[Primary Name]],tblREGASSJune19[[#This Row],[Secondary Acct]],tblREGASSJune19[[#This Row],[Secondary  Name]],tblREGASSJune19[[#This Row],[Alloc4FUNC]])","v":"1823910ENVIR CST UNDR AMORT103949WASHINGTON NON-DEFERRED COSTS-SPPC ROCKYSITUS"},1823910,"ENVIR CST UNDR AMORT",103949,"WASHINGTON NON-DEFERRED COSTS-SPPC ROCKY","WA",-107.06077000000001,{"$f":"IF(OR(tblREGASSJune19[[#This Row],[Alloc]]=\"IDU\",tblREGASSJune19[[#This Row],[Alloc]]=\"OR\",tblREGASSJune19[[#This Row],[Alloc]]=\"UT\",tblREGASSJune19[[#This Row],[Alloc]]=\"WYU\",tblREGASSJune19[[#This Row],[Alloc]]=\"WYP\",tblREGASSJune19[[#This Row],[Alloc]]=\"CA\",tblREGASSJune19[[#This Row],[Alloc]]=\"WA\"),\"SITUS\",tblREGASSJune19[[#This Row],[Alloc]])","v":"SITUS"},{"$f":"INDEX(tblREGASSLookup[FUNC],MATCH(tblREGASSJune19[[#This Row],[Concat]],tblREGASSLookup[Concat],0))","v":"ESD"},{"$f":"IF(tblREGASSJune19[[#This Row],[Total ($000)]]=0,\"NO\",IF(ISNA(tblREGASSJune19[[#This Row],[FUNC]]),\"YES\",IF(_xlfn.ISFORMULA(tblREGASSJune19[[#This Row],[FUNC]]),\"NO\",\"YES\")))","v":"NO"}]
[{"$f":"CONCATENATE(tblREGASSJune19[[#This Row],[Primary Account]],tblREGASSJune19[[#This Row],[Primary Name]],tblREGASSJune19[[#This Row],[Secondary Acct]],tblREGASSJune19[[#This Row],[Secondary  Name]],tblREGASSJune19[[#This Row],[Alloc4FUNC]])","v":"1823910ENVIR CST UNDR AMORT103950WASHINGTON NON-DEFERRED COSTS-REMEDIATIOSITUS"},1823910,"ENVIR CST UNDR AMORT",103950,"WASHINGTON NON-DEFERRED COSTS-REMEDIATIO","WA",-136.15401076923101,{"$f":"IF(OR(tblREGASSJune19[[#This Row],[Alloc]]=\"IDU\",tblREGASSJune19[[#This Row],[Alloc]]=\"OR\",tblREGASSJune19[[#This Row],[Alloc]]=\"UT\",tblREGASSJune19[[#This Row],[Alloc]]=\"WYU\",tblREGASSJune19[[#This Row],[Alloc]]=\"WYP\",tblREGASSJune19[[#This Row],[Alloc]]=\"CA\",tblREGASSJune19[[#This Row],[Alloc]]=\"WA\"),\"SITUS\",tblREGASSJune19[[#This Row],[Alloc]])","v":"SITUS"},{"$f":"INDEX(tblREGASSLookup[FUNC],MATCH(tblREGASSJune19[[#This Row],[Concat]],tblREGASSLookup[Concat],0))","v":"ESD"},{"$f":"IF(tblREGASSJune19[[#This Row],[Total ($000)]]=0,\"NO\",IF(ISNA(tblREGASSJune19[[#This Row],[FUNC]]),\"YES\",IF(_xlfn.ISFORMULA(tblREGASSJune19[[#This Row],[FUNC]]),\"NO\",\"YES\")))","v":"NO"}]
[{"$f":"CONCATENATE(tblREGASSJune19[[#This Row],[Primary Account]],tblREGASSJune19[[#This Row],[Primary Name]],tblREGASSJune19[[#This Row],[Secondary Acct]],tblREGASSJune19[[#This Row],[Secondary  Name]],tblREGASSJune19[[#This Row],[Alloc4FUNC]])","v":"1823910ENVIR CST UNDR AMORT103951WASHINGTON NON-DEFERRED COSTS-REMEDIATIOSITUS"},1823910,"ENVIR CST UNDR AMORT",103951,"WASHINGTON NON-DEFERRED COSTS-REMEDIATIO","WA",-526.17373153846199,{"$f":"IF(OR(tblREGASSJune19[[#This Row],[Alloc]]=\"IDU\",tblREGASSJune19[[#This Row],[Alloc]]=\"OR\",tblREGASSJune19[[#This Row],[Alloc]]=\"UT\",tblREGASSJune19[[#This Row],[Alloc]]=\"WYU\",tblREGASSJune19[[#This Row],[Alloc]]=\"WYP\",tblREGASSJune19[[#This Row],[Alloc]]=\"CA\",tblREGASSJune19[[#This Row],[Alloc]]=\"WA\"),\"SITUS\",tblREGASSJune19[[#This Row],[Alloc]])","v":"SITUS"},{"$f":"INDEX(tblREGASSLookup[FUNC],MATCH(tblREGASSJune19[[#This Row],[Concat]],tblREGASSLookup[Concat],0))","v":"ESD"},{"$f":"IF(tblREGASSJune19[[#This Row],[Total ($000)]]=0,\"NO\",IF(ISNA(tblREGASSJune19[[#This Row],[FUNC]]),\"YES\",IF(_xlfn.ISFORMULA(tblREGASSJune19[[#This Row],[FUNC]]),\"NO\",\"YES\")))","v":"NO"}]
[{"$f":"CONCATENATE(tblREGASSJune19[[#This Row],[Primary Account]],tblREGASSJune19[[#This Row],[Primary Name]],tblREGASSJune19[[#This Row],[Secondary Acct]],tblREGASSJune19[[#This Row],[Secondary  Name]],tblREGASSJune19[[#This Row],[Alloc4FUNC]])","v":"1823910ENVIR CST UNDR AMORT103952WASHINGTON NON-DEFERRED COSTS-REMEDIATIOSITUS"},1823910,"ENVIR CST UNDR AMORT",103952,"WASHINGTON NON-DEFERRED COSTS-REMEDIATIO","WA",-145.07969076923101,{"$f":"IF(OR(tblREGASSJune19[[#This Row],[Alloc]]=\"IDU\",tblREGASSJune19[[#This Row],[Alloc]]=\"OR\",tblREGASSJune19[[#This Row],[Alloc]]=\"UT\",tblREGASSJune19[[#This Row],[Alloc]]=\"WYU\",tblREGASSJune19[[#This Row],[Alloc]]=\"WYP\",tblREGASSJune19[[#This Row],[Alloc]]=\"CA\",tblREGASSJune19[[#This Row],[Alloc]]=\"WA\"),\"SITUS\",tblREGASSJune19[[#This Row],[Alloc]])","v":"SITUS"},{"$f":"INDEX(tblREGASSLookup[FUNC],MATCH(tblREGASSJune19[[#This Row],[Concat]],tblREGASSLookup[Concat],0))","v":"ESD"},{"$f":"IF(tblREGASSJune19[[#This Row],[Total ($000)]]=0,\"NO\",IF(ISNA(tblREGASSJune19[[#This Row],[FUNC]]),\"YES\",IF(_xlfn.ISFORMULA(tblREGASSJune19[[#This Row],[FUNC]]),\"NO\",\"YES\")))","v":"NO"}]
[{"$f":"CONCATENATE(tblREGASSJune19[[#This Row],[Primary Account]],tblREGASSJune19[[#This Row],[Primary Name]],tblREGASSJune19[[#This Row],[Secondary Acct]],tblREGASSJune19[[#This Row],[Secondary  Name]],tblREGASSJune19[[#This Row],[Alloc4FUNC]])","v":"1823910ENVIR CST UNDR AMORT103953Wash Non-Def Costs - SPPC - RMP - 2012SITUS"},1823910,"ENVIR CST UNDR AMORT",103953,"Wash Non-Def Costs - SPPC - RMP - 2012","WA",-76.496940769230804,{"$f":"IF(OR(tblREGASSJune19[[#This Row],[Alloc]]=\"IDU\",tblREGASSJune19[[#This Row],[Alloc]]=\"OR\",tblREGASSJune19[[#This Row],[Alloc]]=\"UT\",tblREGASSJune19[[#This Row],[Alloc]]=\"WYU\",tblREGASSJune19[[#This Row],[Alloc]]=\"WYP\",tblREGASSJune19[[#This Row],[Alloc]]=\"CA\",tblREGASSJune19[[#This Row],[Alloc]]=\"WA\"),\"SITUS\",tblREGASSJune19[[#This Row],[Alloc]])","v":"SITUS"},{"$f":"INDEX(tblREGASSLookup[FUNC],MATCH(tblREGASSJune19[[#This Row],[Concat]],tblREGASSLookup[Concat],0))","v":"ESD"},{"$f":"IF(tblREGASSJune19[[#This Row],[Total ($000)]]=0,\"NO\",IF(ISNA(tblREGASSJune19[[#This Row],[FUNC]]),\"YES\",IF(_xlfn.ISFORMULA(tblREGASSJune19[[#This Row],[FUNC]]),\"NO\",\"YES\")))","v":"NO"}]
[{"$f":"CONCATENATE(tblREGASSJune19[[#This Row],[Primary Account]],tblREGASSJune19[[#This Row],[Primary Name]],tblREGASSJune19[[#This Row],[Secondary Acct]],tblREGASSJune19[[#This Row],[Secondary  Name]],tblREGASSJune19[[#This Row],[Alloc4FUNC]])","v":"1823910ENVIR CST UNDR AMORT103954Wash Non-Def Costs - SPPC - RMP - 2013SITUS"},1823910,"ENVIR CST UNDR AMORT",103954,"Wash Non-Def Costs - SPPC - RMP - 2013","WA",-129.438626153846,{"$f":"IF(OR(tblREGASSJune19[[#This Row],[Alloc]]=\"IDU\",tblREGASSJune19[[#This Row],[Alloc]]=\"OR\",tblREGASSJune19[[#This Row],[Alloc]]=\"UT\",tblREGASSJune19[[#This Row],[Alloc]]=\"WYU\",tblREGASSJune19[[#This Row],[Alloc]]=\"WYP\",tblREGASSJune19[[#This Row],[Alloc]]=\"CA\",tblREGASSJune19[[#This Row],[Alloc]]=\"WA\"),\"SITUS\",tblREGASSJune19[[#This Row],[Alloc]])","v":"SITUS"},{"$f":"INDEX(tblREGASSLookup[FUNC],MATCH(tblREGASSJune19[[#This Row],[Concat]],tblREGASSLookup[Concat],0))","v":"ESD"},{"$f":"IF(tblREGASSJune19[[#This Row],[Total ($000)]]=0,\"NO\",IF(ISNA(tblREGASSJune19[[#This Row],[FUNC]]),\"YES\",IF(_xlfn.ISFORMULA(tblREGASSJune19[[#This Row],[FUNC]]),\"NO\",\"YES\")))","v":"NO"}]
[{"$f":"CONCATENATE(tblREGASSJune19[[#This Row],[Primary Account]],tblREGASSJune19[[#This Row],[Primary Name]],tblREGASSJune19[[#This Row],[Secondary Acct]],tblREGASSJune19[[#This Row],[Secondary  Name]],tblREGASSJune19[[#This Row],[Alloc4FUNC]])","v":"1823910ENVIR CST UNDR AMORT103955Wash Non-Def Costs - SPPC - RMP - 2014SITUS"},1823910,"ENVIR CST UNDR AMORT",103955,"Wash Non-Def Costs - SPPC - RMP - 2014","WA",-275.16151153846198,{"$f":"IF(OR(tblREGASSJune19[[#This Row],[Alloc]]=\"IDU\",tblREGASSJune19[[#This Row],[Alloc]]=\"OR\",tblREGASSJune19[[#This Row],[Alloc]]=\"UT\",tblREGASSJune19[[#This Row],[Alloc]]=\"WYU\",tblREGASSJune19[[#This Row],[Alloc]]=\"WYP\",tblREGASSJune19[[#This Row],[Alloc]]=\"CA\",tblREGASSJune19[[#This Row],[Alloc]]=\"WA\"),\"SITUS\",tblREGASSJune19[[#This Row],[Alloc]])","v":"SITUS"},{"$f":"INDEX(tblREGASSLookup[FUNC],MATCH(tblREGASSJune19[[#This Row],[Concat]],tblREGASSLookup[Concat],0))","v":"ESD"},{"$f":"IF(tblREGASSJune19[[#This Row],[Total ($000)]]=0,\"NO\",IF(ISNA(tblREGASSJune19[[#This Row],[FUNC]]),\"YES\",IF(_xlfn.ISFORMULA(tblREGASSJune19[[#This Row],[FUNC]]),\"NO\",\"YES\")))","v":"NO"}]
[{"$f":"CONCATENATE(tblREGASSJune19[[#This Row],[Primary Account]],tblREGASSJune19[[#This Row],[Primary Name]],tblREGASSJune19[[#This Row],[Secondary Acct]],tblREGASSJune19[[#This Row],[Secondary  Name]],tblREGASSJune19[[#This Row],[Alloc4FUNC]])","v":"1823910ENVIR CST UNDR AMORT103961D-SM RETAIL MINOR SITES - RMPSO"},1823910,"ENVIR CST UNDR AMORT",103961,"D-SM RETAIL MINOR SITES - RMP","SO",2094.5148661538501,{"$f":"IF(OR(tblREGASSJune19[[#This Row],[Alloc]]=\"IDU\",tblREGASSJune19[[#This Row],[Alloc]]=\"OR\",tblREGASSJune19[[#This Row],[Alloc]]=\"UT\",tblREGASSJune19[[#This Row],[Alloc]]=\"WYU\",tblREGASSJune19[[#This Row],[Alloc]]=\"WYP\",tblREGASSJune19[[#This Row],[Alloc]]=\"CA\",tblREGASSJune19[[#This Row],[Alloc]]=\"WA\"),\"SITUS\",tblREGASSJune19[[#This Row],[Alloc]])","v":"SO"},{"$f":"INDEX(tblREGASSLookup[FUNC],MATCH(tblREGASSJune19[[#This Row],[Concat]],tblREGASSLookup[Concat],0))","v":"ESD"},{"$f":"IF(tblREGASSJune19[[#This Row],[Total ($000)]]=0,\"NO\",IF(ISNA(tblREGASSJune19[[#This Row],[FUNC]]),\"YES\",IF(_xlfn.ISFORMULA(tblREGASSJune19[[#This Row],[FUNC]]),\"NO\",\"YES\")))","v":"NO"}]
[{"$f":"CONCATENATE(tblREGASSJune19[[#This Row],[Primary Account]],tblREGASSJune19[[#This Row],[Primary Name]],tblREGASSJune19[[#This Row],[Secondary Acct]],tblREGASSJune19[[#This Row],[Secondary  Name]],tblREGASSJune19[[#This Row],[Alloc4FUNC]])","v":"1823910ENVIR CST UNDR AMORT104072FREEPORT SUBSTATIONSO"},1823910,"ENVIR CST UNDR AMORT",104072,"FREEPORT SUBSTATION","SO",79.343836153846198,{"$f":"IF(OR(tblREGASSJune19[[#This Row],[Alloc]]=\"IDU\",tblREGASSJune19[[#This Row],[Alloc]]=\"OR\",tblREGASSJune19[[#This Row],[Alloc]]=\"UT\",tblREGASSJune19[[#This Row],[Alloc]]=\"WYU\",tblREGASSJune19[[#This Row],[Alloc]]=\"WYP\",tblREGASSJune19[[#This Row],[Alloc]]=\"CA\",tblREGASSJune19[[#This Row],[Alloc]]=\"WA\"),\"SITUS\",tblREGASSJune19[[#This Row],[Alloc]])","v":"SO"},{"$f":"INDEX(tblREGASSLookup[FUNC],MATCH(tblREGASSJune19[[#This Row],[Concat]],tblREGASSLookup[Concat],0))","v":"ESD"},{"$f":"IF(tblREGASSJune19[[#This Row],[Total ($000)]]=0,\"NO\",IF(ISNA(tblREGASSJune19[[#This Row],[FUNC]]),\"YES\",IF(_xlfn.ISFORMULA(tblREGASSJune19[[#This Row],[FUNC]]),\"NO\",\"YES\")))","v":"NO"}]
[{"$f":"CONCATENATE(tblREGASSJune19[[#This Row],[Primary Account]],tblREGASSJune19[[#This Row],[Primary Name]],tblREGASSJune19[[#This Row],[Secondary Acct]],tblREGASSJune19[[#This Row],[Secondary  Name]],tblREGASSJune19[[#This Row],[Alloc4FUNC]])","v":"1823910ENVIR CST UNDR AMORT104108Bors Property  (OR) - 2016SO"},1823910,"ENVIR CST UNDR AMORT",104108,"Bors Property  (OR) - 2016","SO",15.9740361538462,{"$f":"IF(OR(tblREGASSJune19[[#This Row],[Alloc]]=\"IDU\",tblREGASSJune19[[#This Row],[Alloc]]=\"OR\",tblREGASSJune19[[#This Row],[Alloc]]=\"UT\",tblREGASSJune19[[#This Row],[Alloc]]=\"WYU\",tblREGASSJune19[[#This Row],[Alloc]]=\"WYP\",tblREGASSJune19[[#This Row],[Alloc]]=\"CA\",tblREGASSJune19[[#This Row],[Alloc]]=\"WA\"),\"SITUS\",tblREGASSJune19[[#This Row],[Alloc]])","v":"SO"},{"$f":"INDEX(tblREGASSLookup[FUNC],MATCH(tblREGASSJune19[[#This Row],[Concat]],tblREGASSLookup[Concat],0))","v":"ESD"},{"$f":"IF(tblREGASSJune19[[#This Row],[Total ($000)]]=0,\"NO\",IF(ISNA(tblREGASSJune19[[#This Row],[FUNC]]),\"YES\",IF(_xlfn.ISFORMULA(tblREGASSJune19[[#This Row],[FUNC]]),\"NO\",\"YES\")))","v":"NO"}]
[{"$f":"CONCATENATE(tblREGASSJune19[[#This Row],[Primary Account]],tblREGASSJune19[[#This Row],[Primary Name]],tblREGASSJune19[[#This Row],[Secondary Acct]],tblREGASSJune19[[#This Row],[Secondary  Name]],tblREGASSJune19[[#This Row],[Alloc4FUNC]])","v":"1823910ENVIR CST UNDR AMORT104112Carbon Ash Spill  (UT) - 2016SO"},1823910,"ENVIR CST UNDR AMORT",104112,"Carbon Ash Spill  (UT) - 2016","SO",3038.60214230769,{"$f":"IF(OR(tblREGASSJune19[[#This Row],[Alloc]]=\"IDU\",tblREGASSJune19[[#This Row],[Alloc]]=\"OR\",tblREGASSJune19[[#This Row],[Alloc]]=\"UT\",tblREGASSJune19[[#This Row],[Alloc]]=\"WYU\",tblREGASSJune19[[#This Row],[Alloc]]=\"WYP\",tblREGASSJune19[[#This Row],[Alloc]]=\"CA\",tblREGASSJune19[[#This Row],[Alloc]]=\"WA\"),\"SITUS\",tblREGASSJune19[[#This Row],[Alloc]])","v":"SO"},{"$f":"INDEX(tblREGASSLookup[FUNC],MATCH(tblREGASSJune19[[#This Row],[Concat]],tblREGASSLookup[Concat],0))","v":"ESD"},{"$f":"IF(tblREGASSJune19[[#This Row],[Total ($000)]]=0,\"NO\",IF(ISNA(tblREGASSJune19[[#This Row],[FUNC]]),\"YES\",IF(_xlfn.ISFORMULA(tblREGASSJune19[[#This Row],[FUNC]]),\"NO\",\"YES\")))","v":"NO"}]
[{"$f":"CONCATENATE(tblREGASSJune19[[#This Row],[Primary Account]],tblREGASSJune19[[#This Row],[Primary Name]],tblREGASSJune19[[#This Row],[Secondary Acct]],tblREGASSJune19[[#This Row],[Secondary  Name]],tblREGASSJune19[[#This Row],[Alloc4FUNC]])","v":"1823910ENVIR CST UNDR AMORT104143Hunter Fuel Oil Spills - 2017SO"},1823910,"ENVIR CST UNDR AMORT",104143,"Hunter Fuel Oil Spills - 2017","SO",0,{"$f":"IF(OR(tblREGASSJune19[[#This Row],[Alloc]]=\"IDU\",tblREGASSJune19[[#This Row],[Alloc]]=\"OR\",tblREGASSJune19[[#This Row],[Alloc]]=\"UT\",tblREGASSJune19[[#This Row],[Alloc]]=\"WYU\",tblREGASSJune19[[#This Row],[Alloc]]=\"WYP\",tblREGASSJune19[[#This Row],[Alloc]]=\"CA\",tblREGASSJune19[[#This Row],[Alloc]]=\"WA\"),\"SITUS\",tblREGASSJune19[[#This Row],[Alloc]])","v":"SO"},{"$f":"INDEX(tblREGASSLookup[FUNC],MATCH(tblREGASSJune19[[#This Row],[Concat]],tblREGASSLookup[Concat],0))","v":"ESD"},{"$f":"IF(tblREGASSJune19[[#This Row],[Total ($000)]]=0,\"NO\",IF(ISNA(tblREGASSJune19[[#This Row],[FUNC]]),\"YES\",IF(_xlfn.ISFORMULA(tblREGASSJune19[[#This Row],[FUNC]]),\"NO\",\"YES\")))","v":"NO"}]
[{"$f":"CONCATENATE(tblREGASSJune19[[#This Row],[Primary Account]],tblREGASSJune19[[#This Row],[Primary Name]],tblREGASSJune19[[#This Row],[Secondary Acct]],tblREGASSJune19[[#This Row],[Secondary  Name]],tblREGASSJune19[[#This Row],[Alloc4FUNC]])","v":"1823910ENVIR CST UNDR AMORT104144Naughton Oil SpillSO"},1823910,"ENVIR CST UNDR AMORT",104144,"Naughton Oil Spill","SO",19.8691,{"$f":"IF(OR(tblREGASSJune19[[#This Row],[Alloc]]=\"IDU\",tblREGASSJune19[[#This Row],[Alloc]]=\"OR\",tblREGASSJune19[[#This Row],[Alloc]]=\"UT\",tblREGASSJune19[[#This Row],[Alloc]]=\"WYU\",tblREGASSJune19[[#This Row],[Alloc]]=\"WYP\",tblREGASSJune19[[#This Row],[Alloc]]=\"CA\",tblREGASSJune19[[#This Row],[Alloc]]=\"WA\"),\"SITUS\",tblREGASSJune19[[#This Row],[Alloc]])","v":"SO"},{"$f":"INDEX(tblREGASSLookup[FUNC],MATCH(tblREGASSJune19[[#This Row],[Concat]],tblREGASSLookup[Concat],0))","v":"ESD"},{"$f":"IF(tblREGASSJune19[[#This Row],[Total ($000)]]=0,\"NO\",IF(ISNA(tblREGASSJune19[[#This Row],[FUNC]]),\"YES\",IF(_xlfn.ISFORMULA(tblREGASSJune19[[#This Row],[FUNC]]),\"NO\",\"YES\")))","v":"NO"}]
[{"$f":"CONCATENATE(tblREGASSJune19[[#This Row],[Primary Account]],tblREGASSJune19[[#This Row],[Primary Name]],tblREGASSJune19[[#This Row],[Secondary Acct]],tblREGASSJune19[[#This Row],[Secondary  Name]],tblREGASSJune19[[#This Row],[Alloc4FUNC]])","v":"1823910ENVIR CST UNDR AMORT104175Ririe SubstationSO"},1823910,"ENVIR CST UNDR AMORT",104175,"Ririe Substation","SO",11.120498461538499,{"$f":"IF(OR(tblREGASSJune19[[#This Row],[Alloc]]=\"IDU\",tblREGASSJune19[[#This Row],[Alloc]]=\"OR\",tblREGASSJune19[[#This Row],[Alloc]]=\"UT\",tblREGASSJune19[[#This Row],[Alloc]]=\"WYU\",tblREGASSJune19[[#This Row],[Alloc]]=\"WYP\",tblREGASSJune19[[#This Row],[Alloc]]=\"CA\",tblREGASSJune19[[#This Row],[Alloc]]=\"WA\"),\"SITUS\",tblREGASSJune19[[#This Row],[Alloc]])","v":"SO"},{"$f":"INDEX(tblREGASSLookup[FUNC],MATCH(tblREGASSJune19[[#This Row],[Concat]],tblREGASSLookup[Concat],0))","v":"ESD"},{"$f":"IF(tblREGASSJune19[[#This Row],[Total ($000)]]=0,\"NO\",IF(ISNA(tblREGASSJune19[[#This Row],[FUNC]]),\"YES\",IF(_xlfn.ISFORMULA(tblREGASSJune19[[#This Row],[FUNC]]),\"NO\",\"YES\")))","v":"NO"}]
[{"$f":"CONCATENATE(tblREGASSJune19[[#This Row],[Primary Account]],tblREGASSJune19[[#This Row],[Primary Name]],tblREGASSJune19[[#This Row],[Secondary Acct]],tblREGASSJune19[[#This Row],[Secondary  Name]],tblREGASSJune19[[#This Row],[Alloc4FUNC]])","v":"1823910ENVIR CST UNDR AMORT104177Bridger Plant - FGD Pond 1SO"},1823910,"ENVIR CST UNDR AMORT",104177,"Bridger Plant - FGD Pond 1","SO",0,{"$f":"IF(OR(tblREGASSJune19[[#This Row],[Alloc]]=\"IDU\",tblREGASSJune19[[#This Row],[Alloc]]=\"OR\",tblREGASSJune19[[#This Row],[Alloc]]=\"UT\",tblREGASSJune19[[#This Row],[Alloc]]=\"WYU\",tblREGASSJune19[[#This Row],[Alloc]]=\"WYP\",tblREGASSJune19[[#This Row],[Alloc]]=\"CA\",tblREGASSJune19[[#This Row],[Alloc]]=\"WA\"),\"SITUS\",tblREGASSJune19[[#This Row],[Alloc]])","v":"SO"},{"$f":"INDEX(tblREGASSLookup[FUNC],MATCH(tblREGASSJune19[[#This Row],[Concat]],tblREGASSLookup[Concat],0))","v":"ESD"},{"$f":"IF(tblREGASSJune19[[#This Row],[Total ($000)]]=0,\"NO\",IF(ISNA(tblREGASSJune19[[#This Row],[FUNC]]),\"YES\",IF(_xlfn.ISFORMULA(tblREGASSJune19[[#This Row],[FUNC]]),\"NO\",\"YES\")))","v":"NO"}]
[{"$f":"CONCATENATE(tblREGASSJune19[[#This Row],[Primary Account]],tblREGASSJune19[[#This Row],[Primary Name]],tblREGASSJune19[[#This Row],[Secondary Acct]],tblREGASSJune19[[#This Row],[Secondary  Name]],tblREGASSJune19[[#This Row],[Alloc4FUNC]])","v":"1823910ENVIR CST UNDR AMORT104197Bridger Plant - FGD Pond 1SO"},1823910,"ENVIR CST UNDR AMORT",104197,"Bridger Plant - FGD Pond 1","SO",9.0641215384615403,{"$f":"IF(OR(tblREGASSJune19[[#This Row],[Alloc]]=\"IDU\",tblREGASSJune19[[#This Row],[Alloc]]=\"OR\",tblREGASSJune19[[#This Row],[Alloc]]=\"UT\",tblREGASSJune19[[#This Row],[Alloc]]=\"WYU\",tblREGASSJune19[[#This Row],[Alloc]]=\"WYP\",tblREGASSJune19[[#This Row],[Alloc]]=\"CA\",tblREGASSJune19[[#This Row],[Alloc]]=\"WA\"),\"SITUS\",tblREGASSJune19[[#This Row],[Alloc]])","v":"SO"},{"$f":"INDEX(tblREGASSLookup[FUNC],MATCH(tblREGASSJune19[[#This Row],[Concat]],tblREGASSLookup[Concat],0))","v":"ESD"},{"$f":"IF(tblREGASSJune19[[#This Row],[Total ($000)]]=0,\"NO\",IF(ISNA(tblREGASSJune19[[#This Row],[FUNC]]),\"YES\",IF(_xlfn.ISFORMULA(tblREGASSJune19[[#This Row],[FUNC]]),\"NO\",\"YES\")))","v":"NO"}]
[{"$f":"CONCATENATE(tblREGASSJune19[[#This Row],[Primary Account]],tblREGASSJune19[[#This Row],[Primary Name]],tblREGASSJune19[[#This Row],[Secondary Acct]],tblREGASSJune19[[#This Row],[Secondary  Name]],tblREGASSJune19[[#This Row],[Alloc4FUNC]])","v":"1823910ENVIR CST UNDR AMORT104198Bridger Plant - FGD Pond 2SO"},1823910,"ENVIR CST UNDR AMORT",104198,"Bridger Plant - FGD Pond 2","SO",1.8726030769230799,{"$f":"IF(OR(tblREGASSJune19[[#This Row],[Alloc]]=\"IDU\",tblREGASSJune19[[#This Row],[Alloc]]=\"OR\",tblREGASSJune19[[#This Row],[Alloc]]=\"UT\",tblREGASSJune19[[#This Row],[Alloc]]=\"WYU\",tblREGASSJune19[[#This Row],[Alloc]]=\"WYP\",tblREGASSJune19[[#This Row],[Alloc]]=\"CA\",tblREGASSJune19[[#This Row],[Alloc]]=\"WA\"),\"SITUS\",tblREGASSJune19[[#This Row],[Alloc]])","v":"SO"},{"$f":"INDEX(tblREGASSLookup[FUNC],MATCH(tblREGASSJune19[[#This Row],[Concat]],tblREGASSLookup[Concat],0))","v":"ESD"},{"$f":"IF(tblREGASSJune19[[#This Row],[Total ($000)]]=0,\"NO\",IF(ISNA(tblREGASSJune19[[#This Row],[FUNC]]),\"YES\",IF(_xlfn.ISFORMULA(tblREGASSJune19[[#This Row],[FUNC]]),\"NO\",\"YES\")))","v":"NO"}]
[{"$f":"CONCATENATE(tblREGASSJune19[[#This Row],[Primary Account]],tblREGASSJune19[[#This Row],[Primary Name]],tblREGASSJune19[[#This Row],[Secondary Acct]],tblREGASSJune19[[#This Row],[Secondary  Name]],tblREGASSJune19[[#This Row],[Alloc4FUNC]])","v":"1823910ENVIR CST UNDR AMORT104199Naughton Plant - FGD Pond 1SO"},1823910,"ENVIR CST UNDR AMORT",104199,"Naughton Plant - FGD Pond 1","SO",18.4437276923077,{"$f":"IF(OR(tblREGASSJune19[[#This Row],[Alloc]]=\"IDU\",tblREGASSJune19[[#This Row],[Alloc]]=\"OR\",tblREGASSJune19[[#This Row],[Alloc]]=\"UT\",tblREGASSJune19[[#This Row],[Alloc]]=\"WYU\",tblREGASSJune19[[#This Row],[Alloc]]=\"WYP\",tblREGASSJune19[[#This Row],[Alloc]]=\"CA\",tblREGASSJune19[[#This Row],[Alloc]]=\"WA\"),\"SITUS\",tblREGASSJune19[[#This Row],[Alloc]])","v":"SO"},{"$f":"INDEX(tblREGASSLookup[FUNC],MATCH(tblREGASSJune19[[#This Row],[Concat]],tblREGASSLookup[Concat],0))","v":"ESD"},{"$f":"IF(tblREGASSJune19[[#This Row],[Total ($000)]]=0,\"NO\",IF(ISNA(tblREGASSJune19[[#This Row],[FUNC]]),\"YES\",IF(_xlfn.ISFORMULA(tblREGASSJune19[[#This Row],[FUNC]]),\"NO\",\"YES\")))","v":"NO"}]
[{"$f":"CONCATENATE(tblREGASSJune19[[#This Row],[Primary Account]],tblREGASSJune19[[#This Row],[Primary Name]],tblREGASSJune19[[#This Row],[Secondary Acct]],tblREGASSJune19[[#This Row],[Secondary  Name]],tblREGASSJune19[[#This Row],[Alloc4FUNC]])","v":"1823910ENVIR CST UNDR AMORT104200Naughton Plant - FGD Pond 2SO"},1823910,"ENVIR CST UNDR AMORT",104200,"Naughton Plant - FGD Pond 2","SO",32.815680769230802,{"$f":"IF(OR(tblREGASSJune19[[#This Row],[Alloc]]=\"IDU\",tblREGASSJune19[[#This Row],[Alloc]]=\"OR\",tblREGASSJune19[[#This Row],[Alloc]]=\"UT\",tblREGASSJune19[[#This Row],[Alloc]]=\"WYU\",tblREGASSJune19[[#This Row],[Alloc]]=\"WYP\",tblREGASSJune19[[#This Row],[Alloc]]=\"CA\",tblREGASSJune19[[#This Row],[Alloc]]=\"WA\"),\"SITUS\",tblREGASSJune19[[#This Row],[Alloc]])","v":"SO"},{"$f":"INDEX(tblREGASSLookup[FUNC],MATCH(tblREGASSJune19[[#This Row],[Concat]],tblREGASSLookup[Concat],0))","v":"ESD"},{"$f":"IF(tblREGASSJune19[[#This Row],[Total ($000)]]=0,\"NO\",IF(ISNA(tblREGASSJune19[[#This Row],[FUNC]]),\"YES\",IF(_xlfn.ISFORMULA(tblREGASSJune19[[#This Row],[FUNC]]),\"NO\",\"YES\")))","v":"NO"}]
[{"$f":"CONCATENATE(tblREGASSJune19[[#This Row],[Primary Account]],tblREGASSJune19[[#This Row],[Primary Name]],tblREGASSJune19[[#This Row],[Secondary Acct]],tblREGASSJune19[[#This Row],[Secondary  Name]],tblREGASSJune19[[#This Row],[Alloc4FUNC]])","v":"1823910ENVIR CST UNDR AMORT104201Huntington Plant Ash LandfillSO"},1823910,"ENVIR CST UNDR AMORT",104201,"Huntington Plant Ash Landfill","SO",18.831830769230798,{"$f":"IF(OR(tblREGASSJune19[[#This Row],[Alloc]]=\"IDU\",tblREGASSJune19[[#This Row],[Alloc]]=\"OR\",tblREGASSJune19[[#This Row],[Alloc]]=\"UT\",tblREGASSJune19[[#This Row],[Alloc]]=\"WYU\",tblREGASSJune19[[#This Row],[Alloc]]=\"WYP\",tblREGASSJune19[[#This Row],[Alloc]]=\"CA\",tblREGASSJune19[[#This Row],[Alloc]]=\"WA\"),\"SITUS\",tblREGASSJune19[[#This Row],[Alloc]])","v":"SO"},{"$f":"INDEX(tblREGASSLookup[FUNC],MATCH(tblREGASSJune19[[#This Row],[Concat]],tblREGASSLookup[Concat],0))","v":"ESD"},{"$f":"IF(tblREGASSJune19[[#This Row],[Total ($000)]]=0,\"NO\",IF(ISNA(tblREGASSJune19[[#This Row],[FUNC]]),\"YES\",IF(_xlfn.ISFORMULA(tblREGASSJune19[[#This Row],[FUNC]]),\"NO\",\"YES\")))","v":"NO"}]
[{"$f":"CONCATENATE(tblREGASSJune19[[#This Row],[Primary Account]],tblREGASSJune19[[#This Row],[Primary Name]],tblREGASSJune19[[#This Row],[Secondary Acct]],tblREGASSJune19[[#This Row],[Secondary  Name]],tblREGASSJune19[[#This Row],[Alloc4FUNC]])","v":"1823910ENVIR CST UNDR AMORT104202Dave Johnston Pond 4A & 4BSO"},1823910,"ENVIR CST UNDR AMORT",104202,"Dave Johnston Pond 4A & 4B","SO",25.549939999999999,{"$f":"IF(OR(tblREGASSJune19[[#This Row],[Alloc]]=\"IDU\",tblREGASSJune19[[#This Row],[Alloc]]=\"OR\",tblREGASSJune19[[#This Row],[Alloc]]=\"UT\",tblREGASSJune19[[#This Row],[Alloc]]=\"WYU\",tblREGASSJune19[[#This Row],[Alloc]]=\"WYP\",tblREGASSJune19[[#This Row],[Alloc]]=\"CA\",tblREGASSJune19[[#This Row],[Alloc]]=\"WA\"),\"SITUS\",tblREGASSJune19[[#This Row],[Alloc]])","v":"SO"},{"$f":"INDEX(tblREGASSLookup[FUNC],MATCH(tblREGASSJune19[[#This Row],[Concat]],tblREGASSLookup[Concat],0))","v":"ESD"},{"$f":"IF(tblREGASSJune19[[#This Row],[Total ($000)]]=0,\"NO\",IF(ISNA(tblREGASSJune19[[#This Row],[FUNC]]),\"YES\",IF(_xlfn.ISFORMULA(tblREGASSJune19[[#This Row],[FUNC]]),\"NO\",\"YES\")))","v":"NO"}]
[{"$f":"CONCATENATE(tblREGASSJune19[[#This Row],[Primary Account]],tblREGASSJune19[[#This Row],[Primary Name]],tblREGASSJune19[[#This Row],[Secondary Acct]],tblREGASSJune19[[#This Row],[Secondary  Name]],tblREGASSJune19[[#This Row],[Alloc4FUNC]])","v":"1823910ENVIR CST UNDR AMORT104203Colstrip PondSO"},1823910,"ENVIR CST UNDR AMORT",104203,"Colstrip Pond","SO",5.8616623076923098,{"$f":"IF(OR(tblREGASSJune19[[#This Row],[Alloc]]=\"IDU\",tblREGASSJune19[[#This Row],[Alloc]]=\"OR\",tblREGASSJune19[[#This Row],[Alloc]]=\"UT\",tblREGASSJune19[[#This Row],[Alloc]]=\"WYU\",tblREGASSJune19[[#This Row],[Alloc]]=\"WYP\",tblREGASSJune19[[#This Row],[Alloc]]=\"CA\",tblREGASSJune19[[#This Row],[Alloc]]=\"WA\"),\"SITUS\",tblREGASSJune19[[#This Row],[Alloc]])","v":"SO"},{"$f":"INDEX(tblREGASSLookup[FUNC],MATCH(tblREGASSJune19[[#This Row],[Concat]],tblREGASSLookup[Concat],0))","v":"ESD"},{"$f":"IF(tblREGASSJune19[[#This Row],[Total ($000)]]=0,\"NO\",IF(ISNA(tblREGASSJune19[[#This Row],[FUNC]]),\"YES\",IF(_xlfn.ISFORMULA(tblREGASSJune19[[#This Row],[FUNC]]),\"NO\",\"YES\")))","v":"NO"}]
[{"$f":"CONCATENATE(tblREGASSJune19[[#This Row],[Primary Account]],tblREGASSJune19[[#This Row],[Primary Name]],tblREGASSJune19[[#This Row],[Secondary Acct]],tblREGASSJune19[[#This Row],[Secondary  Name]],tblREGASSJune19[[#This Row],[Alloc4FUNC]])","v":"1823910ENVIR CST UNDR AMORT104204Cholla Ash-Flyash PondSO"},1823910,"ENVIR CST UNDR AMORT",104204,"Cholla Ash-Flyash Pond","SO",0.18634615384615399,{"$f":"IF(OR(tblREGASSJune19[[#This Row],[Alloc]]=\"IDU\",tblREGASSJune19[[#This Row],[Alloc]]=\"OR\",tblREGASSJune19[[#This Row],[Alloc]]=\"UT\",tblREGASSJune19[[#This Row],[Alloc]]=\"WYU\",tblREGASSJune19[[#This Row],[Alloc]]=\"WYP\",tblREGASSJune19[[#This Row],[Alloc]]=\"CA\",tblREGASSJune19[[#This Row],[Alloc]]=\"WA\"),\"SITUS\",tblREGASSJune19[[#This Row],[Alloc]])","v":"SO"},{"$f":"INDEX(tblREGASSLookup[FUNC],MATCH(tblREGASSJune19[[#This Row],[Concat]],tblREGASSLookup[Concat],0))","v":"ESD"},{"$f":"IF(tblREGASSJune19[[#This Row],[Total ($000)]]=0,\"NO\",IF(ISNA(tblREGASSJune19[[#This Row],[FUNC]]),\"YES\",IF(_xlfn.ISFORMULA(tblREGASSJune19[[#This Row],[FUNC]]),\"NO\",\"YES\")))","v":"NO"}]
[{"$f":"CONCATENATE(tblREGASSJune19[[#This Row],[Primary Account]],tblREGASSJune19[[#This Row],[Primary Name]],tblREGASSJune19[[#This Row],[Secondary Acct]],tblREGASSJune19[[#This Row],[Secondary  Name]],tblREGASSJune19[[#This Row],[Alloc4FUNC]])","v":"1823910ENVIR CST UNDR AMORT104205Naughton North Ash PondSO"},1823910,"ENVIR CST UNDR AMORT",104205,"Naughton North Ash Pond","SO",7.0699999999999999E-3,{"$f":"IF(OR(tblREGASSJune19[[#This Row],[Alloc]]=\"IDU\",tblREGASSJune19[[#This Row],[Alloc]]=\"OR\",tblREGASSJune19[[#This Row],[Alloc]]=\"UT\",tblREGASSJune19[[#This Row],[Alloc]]=\"WYU\",tblREGASSJune19[[#This Row],[Alloc]]=\"WYP\",tblREGASSJune19[[#This Row],[Alloc]]=\"CA\",tblREGASSJune19[[#This Row],[Alloc]]=\"WA\"),\"SITUS\",tblREGASSJune19[[#This Row],[Alloc]])","v":"SO"},{"$f":"INDEX(tblREGASSLookup[FUNC],MATCH(tblREGASSJune19[[#This Row],[Concat]],tblREGASSLookup[Concat],0))","v":"ESD"},{"$f":"IF(tblREGASSJune19[[#This Row],[Total ($000)]]=0,\"NO\",IF(ISNA(tblREGASSJune19[[#This Row],[FUNC]]),\"YES\",IF(_xlfn.ISFORMULA(tblREGASSJune19[[#This Row],[FUNC]]),\"NO\",\"YES\")))","v":"NO"}]
[{"$f":"CONCATENATE(tblREGASSJune19[[#This Row],[Primary Account]],tblREGASSJune19[[#This Row],[Primary Name]],tblREGASSJune19[[#This Row],[Secondary Acct]],tblREGASSJune19[[#This Row],[Secondary  Name]],tblREGASSJune19[[#This Row],[Alloc4FUNC]])","v":"1823910ENVIR CST UNDR AMORT104206Naughton South Ash PondSO"},1823910,"ENVIR CST UNDR AMORT",104206,"Naughton South Ash Pond","SO",16.747723076923101,{"$f":"IF(OR(tblREGASSJune19[[#This Row],[Alloc]]=\"IDU\",tblREGASSJune19[[#This Row],[Alloc]]=\"OR\",tblREGASSJune19[[#This Row],[Alloc]]=\"UT\",tblREGASSJune19[[#This Row],[Alloc]]=\"WYU\",tblREGASSJune19[[#This Row],[Alloc]]=\"WYP\",tblREGASSJune19[[#This Row],[Alloc]]=\"CA\",tblREGASSJune19[[#This Row],[Alloc]]=\"WA\"),\"SITUS\",tblREGASSJune19[[#This Row],[Alloc]])","v":"SO"},{"$f":"INDEX(tblREGASSLookup[FUNC],MATCH(tblREGASSJune19[[#This Row],[Concat]],tblREGASSLookup[Concat],0))","v":"ESD"},{"$f":"IF(tblREGASSJune19[[#This Row],[Total ($000)]]=0,\"NO\",IF(ISNA(tblREGASSJune19[[#This Row],[FUNC]]),\"YES\",IF(_xlfn.ISFORMULA(tblREGASSJune19[[#This Row],[FUNC]]),\"NO\",\"YES\")))","v":"NO"}]
[{"$f":"CONCATENATE(tblREGASSJune19[[#This Row],[Primary Account]],tblREGASSJune19[[#This Row],[Primary Name]],tblREGASSJune19[[#This Row],[Secondary Acct]],tblREGASSJune19[[#This Row],[Secondary  Name]],tblREGASSJune19[[#This Row],[Alloc4FUNC]])","v":"1823910ENVIR CST UNDR AMORT104210American Barrel (UT)-WASITUS"},1823910,"ENVIR CST UNDR AMORT",104210,"American Barrel (UT)-WA","WA",-6.8843053846153799,{"$f":"IF(OR(tblREGASSJune19[[#This Row],[Alloc]]=\"IDU\",tblREGASSJune19[[#This Row],[Alloc]]=\"OR\",tblREGASSJune19[[#This Row],[Alloc]]=\"UT\",tblREGASSJune19[[#This Row],[Alloc]]=\"WYU\",tblREGASSJune19[[#This Row],[Alloc]]=\"WYP\",tblREGASSJune19[[#This Row],[Alloc]]=\"CA\",tblREGASSJune19[[#This Row],[Alloc]]=\"WA\"),\"SITUS\",tblREGASSJune19[[#This Row],[Alloc]])","v":"SITUS"},{"$f":"INDEX(tblREGASSLookup[FUNC],MATCH(tblREGASSJune19[[#This Row],[Concat]],tblREGASSLookup[Concat],0))","v":"ESD"},{"$f":"IF(tblREGASSJune19[[#This Row],[Total ($000)]]=0,\"NO\",IF(ISNA(tblREGASSJune19[[#This Row],[FUNC]]),\"YES\",IF(_xlfn.ISFORMULA(tblREGASSJune19[[#This Row],[FUNC]]),\"NO\",\"YES\")))","v":"NO"}]
[{"$f":"CONCATENATE(tblREGASSJune19[[#This Row],[Primary Account]],tblREGASSJune19[[#This Row],[Primary Name]],tblREGASSJune19[[#This Row],[Secondary Acct]],tblREGASSJune19[[#This Row],[Secondary  Name]],tblREGASSJune19[[#This Row],[Alloc4FUNC]])","v":"1823910ENVIR CST UNDR AMORT104211Astoria/Unocal (Downtown)-WASITUS"},1823910,"ENVIR CST UNDR AMORT",104211,"Astoria/Unocal (Downtown)-WA","WA",-13.0570907692308,{"$f":"IF(OR(tblREGASSJune19[[#This Row],[Alloc]]=\"IDU\",tblREGASSJune19[[#This Row],[Alloc]]=\"OR\",tblREGASSJune19[[#This Row],[Alloc]]=\"UT\",tblREGASSJune19[[#This Row],[Alloc]]=\"WYU\",tblREGASSJune19[[#This Row],[Alloc]]=\"WYP\",tblREGASSJune19[[#This Row],[Alloc]]=\"CA\",tblREGASSJune19[[#This Row],[Alloc]]=\"WA\"),\"SITUS\",tblREGASSJune19[[#This Row],[Alloc]])","v":"SITUS"},{"$f":"INDEX(tblREGASSLookup[FUNC],MATCH(tblREGASSJune19[[#This Row],[Concat]],tblREGASSLookup[Concat],0))","v":"ESD"},{"$f":"IF(tblREGASSJune19[[#This Row],[Total ($000)]]=0,\"NO\",IF(ISNA(tblREGASSJune19[[#This Row],[FUNC]]),\"YES\",IF(_xlfn.ISFORMULA(tblREGASSJune19[[#This Row],[FUNC]]),\"NO\",\"YES\")))","v":"NO"}]
[{"$f":"CONCATENATE(tblREGASSJune19[[#This Row],[Primary Account]],tblREGASSJune19[[#This Row],[Primary Name]],tblREGASSJune19[[#This Row],[Secondary Acct]],tblREGASSJune19[[#This Row],[Secondary  Name]],tblREGASSJune19[[#This Row],[Alloc4FUNC]])","v":"1823910ENVIR CST UNDR AMORT104212ASTORIA YOUNGS BAY CLEANUP-WASITUS"},1823910,"ENVIR CST UNDR AMORT",104212,"ASTORIA YOUNGS BAY CLEANUP-WA","WA",-0.82767076923076899,{"$f":"IF(OR(tblREGASSJune19[[#This Row],[Alloc]]=\"IDU\",tblREGASSJune19[[#This Row],[Alloc]]=\"OR\",tblREGASSJune19[[#This Row],[Alloc]]=\"UT\",tblREGASSJune19[[#This Row],[Alloc]]=\"WYU\",tblREGASSJune19[[#This Row],[Alloc]]=\"WYP\",tblREGASSJune19[[#This Row],[Alloc]]=\"CA\",tblREGASSJune19[[#This Row],[Alloc]]=\"WA\"),\"SITUS\",tblREGASSJune19[[#This Row],[Alloc]])","v":"SITUS"},{"$f":"INDEX(tblREGASSLookup[FUNC],MATCH(tblREGASSJune19[[#This Row],[Concat]],tblREGASSLookup[Concat],0))","v":"ESD"},{"$f":"IF(tblREGASSJune19[[#This Row],[Total ($000)]]=0,\"NO\",IF(ISNA(tblREGASSJune19[[#This Row],[FUNC]]),\"YES\",IF(_xlfn.ISFORMULA(tblREGASSJune19[[#This Row],[FUNC]]),\"NO\",\"YES\")))","v":"NO"}]
[{"$f":"CONCATENATE(tblREGASSJune19[[#This Row],[Primary Account]],tblREGASSJune19[[#This Row],[Primary Name]],tblREGASSJune19[[#This Row],[Secondary Acct]],tblREGASSJune19[[#This Row],[Secondary  Name]],tblREGASSJune19[[#This Row],[Alloc4FUNC]])","v":"1823910ENVIR CST UNDR AMORT104213Big Fork Hydro Plant (MT)-WASITUS"},1823910,"ENVIR CST UNDR AMORT",104213,"Big Fork Hydro Plant (MT)-WA","WA",-5.82975538461538,{"$f":"IF(OR(tblREGASSJune19[[#This Row],[Alloc]]=\"IDU\",tblREGASSJune19[[#This Row],[Alloc]]=\"OR\",tblREGASSJune19[[#This Row],[Alloc]]=\"UT\",tblREGASSJune19[[#This Row],[Alloc]]=\"WYU\",tblREGASSJune19[[#This Row],[Alloc]]=\"WYP\",tblREGASSJune19[[#This Row],[Alloc]]=\"CA\",tblREGASSJune19[[#This Row],[Alloc]]=\"WA\"),\"SITUS\",tblREGASSJune19[[#This Row],[Alloc]])","v":"SITUS"},{"$f":"INDEX(tblREGASSLookup[FUNC],MATCH(tblREGASSJune19[[#This Row],[Concat]],tblREGASSLookup[Concat],0))","v":"ESD"},{"$f":"IF(tblREGASSJune19[[#This Row],[Total ($000)]]=0,\"NO\",IF(ISNA(tblREGASSJune19[[#This Row],[FUNC]]),\"YES\",IF(_xlfn.ISFORMULA(tblREGASSJune19[[#This Row],[FUNC]]),\"NO\",\"YES\")))","v":"NO"}]
[{"$f":"CONCATENATE(tblREGASSJune19[[#This Row],[Primary Account]],tblREGASSJune19[[#This Row],[Primary Name]],tblREGASSJune19[[#This Row],[Secondary Acct]],tblREGASSJune19[[#This Row],[Secondary  Name]],tblREGASSJune19[[#This Row],[Alloc4FUNC]])","v":"1823910ENVIR CST UNDR AMORT104214Bors Property  (OR) - WASITUS"},1823910,"ENVIR CST UNDR AMORT",104214,"Bors Property  (OR) - WA","WA",-0.89991230769230801,{"$f":"IF(OR(tblREGASSJune19[[#This Row],[Alloc]]=\"IDU\",tblREGASSJune19[[#This Row],[Alloc]]=\"OR\",tblREGASSJune19[[#This Row],[Alloc]]=\"UT\",tblREGASSJune19[[#This Row],[Alloc]]=\"WYU\",tblREGASSJune19[[#This Row],[Alloc]]=\"WYP\",tblREGASSJune19[[#This Row],[Alloc]]=\"CA\",tblREGASSJune19[[#This Row],[Alloc]]=\"WA\"),\"SITUS\",tblREGASSJune19[[#This Row],[Alloc]])","v":"SITUS"},{"$f":"INDEX(tblREGASSLookup[FUNC],MATCH(tblREGASSJune19[[#This Row],[Concat]],tblREGASSLookup[Concat],0))","v":"ESD"},{"$f":"IF(tblREGASSJune19[[#This Row],[Total ($000)]]=0,\"NO\",IF(ISNA(tblREGASSJune19[[#This Row],[FUNC]]),\"YES\",IF(_xlfn.ISFORMULA(tblREGASSJune19[[#This Row],[FUNC]]),\"NO\",\"YES\")))","v":"NO"}]
[{"$f":"CONCATENATE(tblREGASSJune19[[#This Row],[Primary Account]],tblREGASSJune19[[#This Row],[Primary Name]],tblREGASSJune19[[#This Row],[Secondary Acct]],tblREGASSJune19[[#This Row],[Secondary  Name]],tblREGASSJune19[[#This Row],[Alloc4FUNC]])","v":"1823910ENVIR CST UNDR AMORT104215Bridger Coal Fuel Oil Spill - WASITUS"},1823910,"ENVIR CST UNDR AMORT",104215,"Bridger Coal Fuel Oil Spill - WA","WA",-8.8547992307692294,{"$f":"IF(OR(tblREGASSJune19[[#This Row],[Alloc]]=\"IDU\",tblREGASSJune19[[#This Row],[Alloc]]=\"OR\",tblREGASSJune19[[#This Row],[Alloc]]=\"UT\",tblREGASSJune19[[#This Row],[Alloc]]=\"WYU\",tblREGASSJune19[[#This Row],[Alloc]]=\"WYP\",tblREGASSJune19[[#This Row],[Alloc]]=\"CA\",tblREGASSJune19[[#This Row],[Alloc]]=\"WA\"),\"SITUS\",tblREGASSJune19[[#This Row],[Alloc]])","v":"SITUS"},{"$f":"INDEX(tblREGASSLookup[FUNC],MATCH(tblREGASSJune19[[#This Row],[Concat]],tblREGASSLookup[Concat],0))","v":"ESD"},{"$f":"IF(tblREGASSJune19[[#This Row],[Total ($000)]]=0,\"NO\",IF(ISNA(tblREGASSJune19[[#This Row],[FUNC]]),\"YES\",IF(_xlfn.ISFORMULA(tblREGASSJune19[[#This Row],[FUNC]]),\"NO\",\"YES\")))","v":"NO"}]
[{"$f":"CONCATENATE(tblREGASSJune19[[#This Row],[Primary Account]],tblREGASSJune19[[#This Row],[Primary Name]],tblREGASSJune19[[#This Row],[Secondary Acct]],tblREGASSJune19[[#This Row],[Secondary  Name]],tblREGASSJune19[[#This Row],[Alloc4FUNC]])","v":"1823910ENVIR CST UNDR AMORT104216Bridger FGD Pond 1 Closure-WASITUS"},1823910,"ENVIR CST UNDR AMORT",104216,"Bridger FGD Pond 1 Closure-WA","WA",-7.8235992307692301,{"$f":"IF(OR(tblREGASSJune19[[#This Row],[Alloc]]=\"IDU\",tblREGASSJune19[[#This Row],[Alloc]]=\"OR\",tblREGASSJune19[[#This Row],[Alloc]]=\"UT\",tblREGASSJune19[[#This Row],[Alloc]]=\"WYU\",tblREGASSJune19[[#This Row],[Alloc]]=\"WYP\",tblREGASSJune19[[#This Row],[Alloc]]=\"CA\",tblREGASSJune19[[#This Row],[Alloc]]=\"WA\"),\"SITUS\",tblREGASSJune19[[#This Row],[Alloc]])","v":"SITUS"},{"$f":"INDEX(tblREGASSLookup[FUNC],MATCH(tblREGASSJune19[[#This Row],[Concat]],tblREGASSLookup[Concat],0))","v":"ESD"},{"$f":"IF(tblREGASSJune19[[#This Row],[Total ($000)]]=0,\"NO\",IF(ISNA(tblREGASSJune19[[#This Row],[FUNC]]),\"YES\",IF(_xlfn.ISFORMULA(tblREGASSJune19[[#This Row],[FUNC]]),\"NO\",\"YES\")))","v":"NO"}]
[{"$f":"CONCATENATE(tblREGASSJune19[[#This Row],[Primary Account]],tblREGASSJune19[[#This Row],[Primary Name]],tblREGASSJune19[[#This Row],[Secondary Acct]],tblREGASSJune19[[#This Row],[Secondary  Name]],tblREGASSJune19[[#This Row],[Alloc4FUNC]])","v":"1823910ENVIR CST UNDR AMORT104218Bridger Plant - FGD Pond 1-WASITUS"},1823910,"ENVIR CST UNDR AMORT",104218,"Bridger Plant - FGD Pond 1-WA","WA",-3.1044138461538502,{"$f":"IF(OR(tblREGASSJune19[[#This Row],[Alloc]]=\"IDU\",tblREGASSJune19[[#This Row],[Alloc]]=\"OR\",tblREGASSJune19[[#This Row],[Alloc]]=\"UT\",tblREGASSJune19[[#This Row],[Alloc]]=\"WYU\",tblREGASSJune19[[#This Row],[Alloc]]=\"WYP\",tblREGASSJune19[[#This Row],[Alloc]]=\"CA\",tblREGASSJune19[[#This Row],[Alloc]]=\"WA\"),\"SITUS\",tblREGASSJune19[[#This Row],[Alloc]])","v":"SITUS"},{"$f":"INDEX(tblREGASSLookup[FUNC],MATCH(tblREGASSJune19[[#This Row],[Concat]],tblREGASSLookup[Concat],0))","v":"ESD"},{"$f":"IF(tblREGASSJune19[[#This Row],[Total ($000)]]=0,\"NO\",IF(ISNA(tblREGASSJune19[[#This Row],[FUNC]]),\"YES\",IF(_xlfn.ISFORMULA(tblREGASSJune19[[#This Row],[FUNC]]),\"NO\",\"YES\")))","v":"NO"}]
[{"$f":"CONCATENATE(tblREGASSJune19[[#This Row],[Primary Account]],tblREGASSJune19[[#This Row],[Primary Name]],tblREGASSJune19[[#This Row],[Secondary Acct]],tblREGASSJune19[[#This Row],[Secondary  Name]],tblREGASSJune19[[#This Row],[Alloc4FUNC]])","v":"1823910ENVIR CST UNDR AMORT104219Bridger Plant - FGD Pond 2-WASITUS"},1823910,"ENVIR CST UNDR AMORT",104219,"Bridger Plant - FGD Pond 2-WA","WA",-0.123528461538462,{"$f":"IF(OR(tblREGASSJune19[[#This Row],[Alloc]]=\"IDU\",tblREGASSJune19[[#This Row],[Alloc]]=\"OR\",tblREGASSJune19[[#This Row],[Alloc]]=\"UT\",tblREGASSJune19[[#This Row],[Alloc]]=\"WYU\",tblREGASSJune19[[#This Row],[Alloc]]=\"WYP\",tblREGASSJune19[[#This Row],[Alloc]]=\"CA\",tblREGASSJune19[[#This Row],[Alloc]]=\"WA\"),\"SITUS\",tblREGASSJune19[[#This Row],[Alloc]])","v":"SITUS"},{"$f":"INDEX(tblREGASSLookup[FUNC],MATCH(tblREGASSJune19[[#This Row],[Concat]],tblREGASSLookup[Concat],0))","v":"ESD"},{"$f":"IF(tblREGASSJune19[[#This Row],[Total ($000)]]=0,\"NO\",IF(ISNA(tblREGASSJune19[[#This Row],[FUNC]]),\"YES\",IF(_xlfn.ISFORMULA(tblREGASSJune19[[#This Row],[FUNC]]),\"NO\",\"YES\")))","v":"NO"}]
[{"$f":"CONCATENATE(tblREGASSJune19[[#This Row],[Primary Account]],tblREGASSJune19[[#This Row],[Primary Name]],tblREGASSJune19[[#This Row],[Secondary Acct]],tblREGASSJune19[[#This Row],[Secondary  Name]],tblREGASSJune19[[#This Row],[Alloc4FUNC]])","v":"1823910ENVIR CST UNDR AMORT104220Bridger Plant Oil Spills-2018SITUS"},1823910,"ENVIR CST UNDR AMORT",104220,"Bridger Plant Oil Spills-2018","WA",-4.8414115384615402,{"$f":"IF(OR(tblREGASSJune19[[#This Row],[Alloc]]=\"IDU\",tblREGASSJune19[[#This Row],[Alloc]]=\"OR\",tblREGASSJune19[[#This Row],[Alloc]]=\"UT\",tblREGASSJune19[[#This Row],[Alloc]]=\"WYU\",tblREGASSJune19[[#This Row],[Alloc]]=\"WYP\",tblREGASSJune19[[#This Row],[Alloc]]=\"CA\",tblREGASSJune19[[#This Row],[Alloc]]=\"WA\"),\"SITUS\",tblREGASSJune19[[#This Row],[Alloc]])","v":"SITUS"},{"$f":"INDEX(tblREGASSLookup[FUNC],MATCH(tblREGASSJune19[[#This Row],[Concat]],tblREGASSLookup[Concat],0))","v":"ESD"},{"$f":"IF(tblREGASSJune19[[#This Row],[Total ($000)]]=0,\"NO\",IF(ISNA(tblREGASSJune19[[#This Row],[FUNC]]),\"YES\",IF(_xlfn.ISFORMULA(tblREGASSJune19[[#This Row],[FUNC]]),\"NO\",\"YES\")))","v":"NO"}]
[{"$f":"CONCATENATE(tblREGASSJune19[[#This Row],[Primary Account]],tblREGASSJune19[[#This Row],[Primary Name]],tblREGASSJune19[[#This Row],[Secondary Acct]],tblREGASSJune19[[#This Row],[Secondary  Name]],tblREGASSJune19[[#This Row],[Alloc4FUNC]])","v":"1823910ENVIR CST UNDR AMORT104221Carbon Ash Spill  (UT) - WASITUS"},1823910,"ENVIR CST UNDR AMORT",104221,"Carbon Ash Spill  (UT) - WA","WA",-13.2620261538462,{"$f":"IF(OR(tblREGASSJune19[[#This Row],[Alloc]]=\"IDU\",tblREGASSJune19[[#This Row],[Alloc]]=\"OR\",tblREGASSJune19[[#This Row],[Alloc]]=\"UT\",tblREGASSJune19[[#This Row],[Alloc]]=\"WYU\",tblREGASSJune19[[#This Row],[Alloc]]=\"WYP\",tblREGASSJune19[[#This Row],[Alloc]]=\"CA\",tblREGASSJune19[[#This Row],[Alloc]]=\"WA\"),\"SITUS\",tblREGASSJune19[[#This Row],[Alloc]])","v":"SITUS"},{"$f":"INDEX(tblREGASSLookup[FUNC],MATCH(tblREGASSJune19[[#This Row],[Concat]],tblREGASSLookup[Concat],0))","v":"ESD"},{"$f":"IF(tblREGASSJune19[[#This Row],[Total ($000)]]=0,\"NO\",IF(ISNA(tblREGASSJune19[[#This Row],[FUNC]]),\"YES\",IF(_xlfn.ISFORMULA(tblREGASSJune19[[#This Row],[FUNC]]),\"NO\",\"YES\")))","v":"NO"}]
[{"$f":"CONCATENATE(tblREGASSJune19[[#This Row],[Primary Account]],tblREGASSJune19[[#This Row],[Primary Name]],tblREGASSJune19[[#This Row],[Secondary Acct]],tblREGASSJune19[[#This Row],[Secondary  Name]],tblREGASSJune19[[#This Row],[Alloc4FUNC]])","v":"1823910ENVIR CST UNDR AMORT104222Cedar Steam - WASITUS"},1823910,"ENVIR CST UNDR AMORT",104222,"Cedar Steam - WA","WA",-2.79738461538462E-2,{"$f":"IF(OR(tblREGASSJune19[[#This Row],[Alloc]]=\"IDU\",tblREGASSJune19[[#This Row],[Alloc]]=\"OR\",tblREGASSJune19[[#This Row],[Alloc]]=\"UT\",tblREGASSJune19[[#This Row],[Alloc]]=\"WYU\",tblREGASSJune19[[#This Row],[Alloc]]=\"WYP\",tblREGASSJune19[[#This Row],[Alloc]]=\"CA\",tblREGASSJune19[[#This Row],[Alloc]]=\"WA\"),\"SITUS\",tblREGASSJune19[[#This Row],[Alloc]])","v":"SITUS"},{"$f":"INDEX(tblREGASSLookup[FUNC],MATCH(tblREGASSJune19[[#This Row],[Concat]],tblREGASSLookup[Concat],0))","v":"ESD"},{"$f":"IF(tblREGASSJune19[[#This Row],[Total ($000)]]=0,\"NO\",IF(ISNA(tblREGASSJune19[[#This Row],[FUNC]]),\"YES\",IF(_xlfn.ISFORMULA(tblREGASSJune19[[#This Row],[FUNC]]),\"NO\",\"YES\")))","v":"NO"}]
[{"$f":"CONCATENATE(tblREGASSJune19[[#This Row],[Primary Account]],tblREGASSJune19[[#This Row],[Primary Name]],tblREGASSJune19[[#This Row],[Secondary Acct]],tblREGASSJune19[[#This Row],[Secondary  Name]],tblREGASSJune19[[#This Row],[Alloc4FUNC]])","v":"1823910ENVIR CST UNDR AMORT104223Colstrip Pond - WASITUS"},1823910,"ENVIR CST UNDR AMORT",104223,"Colstrip Pond - WA","WA",-0.39678846153846198,{"$f":"IF(OR(tblREGASSJune19[[#This Row],[Alloc]]=\"IDU\",tblREGASSJune19[[#This Row],[Alloc]]=\"OR\",tblREGASSJune19[[#This Row],[Alloc]]=\"UT\",tblREGASSJune19[[#This Row],[Alloc]]=\"WYU\",tblREGASSJune19[[#This Row],[Alloc]]=\"WYP\",tblREGASSJune19[[#This Row],[Alloc]]=\"CA\",tblREGASSJune19[[#This Row],[Alloc]]=\"WA\"),\"SITUS\",tblREGASSJune19[[#This Row],[Alloc]])","v":"SITUS"},{"$f":"INDEX(tblREGASSLookup[FUNC],MATCH(tblREGASSJune19[[#This Row],[Concat]],tblREGASSLookup[Concat],0))","v":"ESD"},{"$f":"IF(tblREGASSJune19[[#This Row],[Total ($000)]]=0,\"NO\",IF(ISNA(tblREGASSJune19[[#This Row],[FUNC]]),\"YES\",IF(_xlfn.ISFORMULA(tblREGASSJune19[[#This Row],[FUNC]]),\"NO\",\"YES\")))","v":"NO"}]
[{"$f":"CONCATENATE(tblREGASSJune19[[#This Row],[Primary Account]],tblREGASSJune19[[#This Row],[Primary Name]],tblREGASSJune19[[#This Row],[Secondary Acct]],tblREGASSJune19[[#This Row],[Secondary  Name]],tblREGASSJune19[[#This Row],[Alloc4FUNC]])","v":"1823910ENVIR CST UNDR AMORT104224Cholla Ash - WASITUS"},1823910,"ENVIR CST UNDR AMORT",104224,"Cholla Ash - WA","WA",-1.26007692307692E-2,{"$f":"IF(OR(tblREGASSJune19[[#This Row],[Alloc]]=\"IDU\",tblREGASSJune19[[#This Row],[Alloc]]=\"OR\",tblREGASSJune19[[#This Row],[Alloc]]=\"UT\",tblREGASSJune19[[#This Row],[Alloc]]=\"WYU\",tblREGASSJune19[[#This Row],[Alloc]]=\"WYP\",tblREGASSJune19[[#This Row],[Alloc]]=\"CA\",tblREGASSJune19[[#This Row],[Alloc]]=\"WA\"),\"SITUS\",tblREGASSJune19[[#This Row],[Alloc]])","v":"SITUS"},{"$f":"INDEX(tblREGASSLookup[FUNC],MATCH(tblREGASSJune19[[#This Row],[Concat]],tblREGASSLookup[Concat],0))","v":"ESD"},{"$f":"IF(tblREGASSJune19[[#This Row],[Total ($000)]]=0,\"NO\",IF(ISNA(tblREGASSJune19[[#This Row],[FUNC]]),\"YES\",IF(_xlfn.ISFORMULA(tblREGASSJune19[[#This Row],[FUNC]]),\"NO\",\"YES\")))","v":"NO"}]
[{"$f":"CONCATENATE(tblREGASSJune19[[#This Row],[Primary Account]],tblREGASSJune19[[#This Row],[Primary Name]],tblREGASSJune19[[#This Row],[Secondary Acct]],tblREGASSJune19[[#This Row],[Secondary  Name]],tblREGASSJune19[[#This Row],[Alloc4FUNC]])","v":"1823910ENVIR CST UNDR AMORT104225DJ Oil Spill - WASITUS"},1823910,"ENVIR CST UNDR AMORT",104225,"DJ Oil Spill - WA","WA",-3.57170846153846,{"$f":"IF(OR(tblREGASSJune19[[#This Row],[Alloc]]=\"IDU\",tblREGASSJune19[[#This Row],[Alloc]]=\"OR\",tblREGASSJune19[[#This Row],[Alloc]]=\"UT\",tblREGASSJune19[[#This Row],[Alloc]]=\"WYU\",tblREGASSJune19[[#This Row],[Alloc]]=\"WYP\",tblREGASSJune19[[#This Row],[Alloc]]=\"CA\",tblREGASSJune19[[#This Row],[Alloc]]=\"WA\"),\"SITUS\",tblREGASSJune19[[#This Row],[Alloc]])","v":"SITUS"},{"$f":"INDEX(tblREGASSLookup[FUNC],MATCH(tblREGASSJune19[[#This Row],[Concat]],tblREGASSLookup[Concat],0))","v":"ESD"},{"$f":"IF(tblREGASSJune19[[#This Row],[Total ($000)]]=0,\"NO\",IF(ISNA(tblREGASSJune19[[#This Row],[FUNC]]),\"YES\",IF(_xlfn.ISFORMULA(tblREGASSJune19[[#This Row],[FUNC]]),\"NO\",\"YES\")))","v":"NO"}]
[{"$f":"CONCATENATE(tblREGASSJune19[[#This Row],[Primary Account]],tblREGASSJune19[[#This Row],[Primary Name]],tblREGASSJune19[[#This Row],[Secondary Acct]],tblREGASSJune19[[#This Row],[Secondary  Name]],tblREGASSJune19[[#This Row],[Alloc4FUNC]])","v":"1823910ENVIR CST UNDR AMORT104226DJ 4A&4B - WASITUS"},1823910,"ENVIR CST UNDR AMORT",104226,"DJ 4A&4B - WA","WA",-1.7438576923076901,{"$f":"IF(OR(tblREGASSJune19[[#This Row],[Alloc]]=\"IDU\",tblREGASSJune19[[#This Row],[Alloc]]=\"OR\",tblREGASSJune19[[#This Row],[Alloc]]=\"UT\",tblREGASSJune19[[#This Row],[Alloc]]=\"WYU\",tblREGASSJune19[[#This Row],[Alloc]]=\"WYP\",tblREGASSJune19[[#This Row],[Alloc]]=\"CA\",tblREGASSJune19[[#This Row],[Alloc]]=\"WA\"),\"SITUS\",tblREGASSJune19[[#This Row],[Alloc]])","v":"SITUS"},{"$f":"INDEX(tblREGASSLookup[FUNC],MATCH(tblREGASSJune19[[#This Row],[Concat]],tblREGASSLookup[Concat],0))","v":"ESD"},{"$f":"IF(tblREGASSJune19[[#This Row],[Total ($000)]]=0,\"NO\",IF(ISNA(tblREGASSJune19[[#This Row],[FUNC]]),\"YES\",IF(_xlfn.ISFORMULA(tblREGASSJune19[[#This Row],[FUNC]]),\"NO\",\"YES\")))","v":"NO"}]
[{"$f":"CONCATENATE(tblREGASSJune19[[#This Row],[Primary Account]],tblREGASSJune19[[#This Row],[Primary Name]],tblREGASSJune19[[#This Row],[Secondary Acct]],tblREGASSJune19[[#This Row],[Secondary  Name]],tblREGASSJune19[[#This Row],[Alloc4FUNC]])","v":"1823910ENVIR CST UNDR AMORT104227Eugene MGP (50%PCRP) - WASITUS"},1823910,"ENVIR CST UNDR AMORT",104227,"Eugene MGP (50%PCRP) - WA","WA",-0.44658769230769202,{"$f":"IF(OR(tblREGASSJune19[[#This Row],[Alloc]]=\"IDU\",tblREGASSJune19[[#This Row],[Alloc]]=\"OR\",tblREGASSJune19[[#This Row],[Alloc]]=\"UT\",tblREGASSJune19[[#This Row],[Alloc]]=\"WYU\",tblREGASSJune19[[#This Row],[Alloc]]=\"WYP\",tblREGASSJune19[[#This Row],[Alloc]]=\"CA\",tblREGASSJune19[[#This Row],[Alloc]]=\"WA\"),\"SITUS\",tblREGASSJune19[[#This Row],[Alloc]])","v":"SITUS"},{"$f":"INDEX(tblREGASSLookup[FUNC],MATCH(tblREGASSJune19[[#This Row],[Concat]],tblREGASSLookup[Concat],0))","v":"ESD"},{"$f":"IF(tblREGASSJune19[[#This Row],[Total ($000)]]=0,\"NO\",IF(ISNA(tblREGASSJune19[[#This Row],[FUNC]]),\"YES\",IF(_xlfn.ISFORMULA(tblREGASSJune19[[#This Row],[FUNC]]),\"NO\",\"YES\")))","v":"NO"}]
[{"$f":"CONCATENATE(tblREGASSJune19[[#This Row],[Primary Account]],tblREGASSJune19[[#This Row],[Primary Name]],tblREGASSJune19[[#This Row],[Secondary Acct]],tblREGASSJune19[[#This Row],[Secondary  Name]],tblREGASSJune19[[#This Row],[Alloc4FUNC]])","v":"1823910ENVIR CST UNDR AMORT104228Everett MGP (2/3 PCRP) - WASITUS"},1823910,"ENVIR CST UNDR AMORT",104228,"Everett MGP (2/3 PCRP) - WA","WA",-0.13386000000000001,{"$f":"IF(OR(tblREGASSJune19[[#This Row],[Alloc]]=\"IDU\",tblREGASSJune19[[#This Row],[Alloc]]=\"OR\",tblREGASSJune19[[#This Row],[Alloc]]=\"UT\",tblREGASSJune19[[#This Row],[Alloc]]=\"WYU\",tblREGASSJune19[[#This Row],[Alloc]]=\"WYP\",tblREGASSJune19[[#This Row],[Alloc]]=\"CA\",tblREGASSJune19[[#This Row],[Alloc]]=\"WA\"),\"SITUS\",tblREGASSJune19[[#This Row],[Alloc]])","v":"SITUS"},{"$f":"INDEX(tblREGASSLookup[FUNC],MATCH(tblREGASSJune19[[#This Row],[Concat]],tblREGASSLookup[Concat],0))","v":"ESD"},{"$f":"IF(tblREGASSJune19[[#This Row],[Total ($000)]]=0,\"NO\",IF(ISNA(tblREGASSJune19[[#This Row],[FUNC]]),\"YES\",IF(_xlfn.ISFORMULA(tblREGASSJune19[[#This Row],[FUNC]]),\"NO\",\"YES\")))","v":"NO"}]
[{"$f":"CONCATENATE(tblREGASSJune19[[#This Row],[Primary Account]],tblREGASSJune19[[#This Row],[Primary Name]],tblREGASSJune19[[#This Row],[Secondary Acct]],tblREGASSJune19[[#This Row],[Secondary  Name]],tblREGASSJune19[[#This Row],[Alloc4FUNC]])","v":"1823910ENVIR CST UNDR AMORT104229Hunter Plant - WASITUS"},1823910,"ENVIR CST UNDR AMORT",104229,"Hunter Plant - WA","WA",-6.5652123076923097,{"$f":"IF(OR(tblREGASSJune19[[#This Row],[Alloc]]=\"IDU\",tblREGASSJune19[[#This Row],[Alloc]]=\"OR\",tblREGASSJune19[[#This Row],[Alloc]]=\"UT\",tblREGASSJune19[[#This Row],[Alloc]]=\"WYU\",tblREGASSJune19[[#This Row],[Alloc]]=\"WYP\",tblREGASSJune19[[#This Row],[Alloc]]=\"CA\",tblREGASSJune19[[#This Row],[Alloc]]=\"WA\"),\"SITUS\",tblREGASSJune19[[#This Row],[Alloc]])","v":"SITUS"},{"$f":"INDEX(tblREGASSLookup[FUNC],MATCH(tblREGASSJune19[[#This Row],[Concat]],tblREGASSLookup[Concat],0))","v":"ESD"},{"$f":"IF(tblREGASSJune19[[#This Row],[Total ($000)]]=0,\"NO\",IF(ISNA(tblREGASSJune19[[#This Row],[FUNC]]),\"YES\",IF(_xlfn.ISFORMULA(tblREGASSJune19[[#This Row],[FUNC]]),\"NO\",\"YES\")))","v":"NO"}]
[{"$f":"CONCATENATE(tblREGASSJune19[[#This Row],[Primary Account]],tblREGASSJune19[[#This Row],[Primary Name]],tblREGASSJune19[[#This Row],[Secondary Acct]],tblREGASSJune19[[#This Row],[Secondary  Name]],tblREGASSJune19[[#This Row],[Alloc4FUNC]])","v":"1823910ENVIR CST UNDR AMORT104230Huntington Ash- WASITUS"},1823910,"ENVIR CST UNDR AMORT",104230,"Huntington Ash- WA","WA",-4.2392938461538501,{"$f":"IF(OR(tblREGASSJune19[[#This Row],[Alloc]]=\"IDU\",tblREGASSJune19[[#This Row],[Alloc]]=\"OR\",tblREGASSJune19[[#This Row],[Alloc]]=\"UT\",tblREGASSJune19[[#This Row],[Alloc]]=\"WYU\",tblREGASSJune19[[#This Row],[Alloc]]=\"WYP\",tblREGASSJune19[[#This Row],[Alloc]]=\"CA\",tblREGASSJune19[[#This Row],[Alloc]]=\"WA\"),\"SITUS\",tblREGASSJune19[[#This Row],[Alloc]])","v":"SITUS"},{"$f":"INDEX(tblREGASSLookup[FUNC],MATCH(tblREGASSJune19[[#This Row],[Concat]],tblREGASSLookup[Concat],0))","v":"ESD"},{"$f":"IF(tblREGASSJune19[[#This Row],[Total ($000)]]=0,\"NO\",IF(ISNA(tblREGASSJune19[[#This Row],[FUNC]]),\"YES\",IF(_xlfn.ISFORMULA(tblREGASSJune19[[#This Row],[FUNC]]),\"NO\",\"YES\")))","v":"NO"}]
[{"$f":"CONCATENATE(tblREGASSJune19[[#This Row],[Primary Account]],tblREGASSJune19[[#This Row],[Primary Name]],tblREGASSJune19[[#This Row],[Secondary Acct]],tblREGASSJune19[[#This Row],[Secondary  Name]],tblREGASSJune19[[#This Row],[Alloc4FUNC]])","v":"1823910ENVIR CST UNDR AMORT104231Idaho Falls Pole Yard- WASITUS"},1823910,"ENVIR CST UNDR AMORT",104231,"Idaho Falls Pole Yard- WA","WA",-13.560079999999999,{"$f":"IF(OR(tblREGASSJune19[[#This Row],[Alloc]]=\"IDU\",tblREGASSJune19[[#This Row],[Alloc]]=\"OR\",tblREGASSJune19[[#This Row],[Alloc]]=\"UT\",tblREGASSJune19[[#This Row],[Alloc]]=\"WYU\",tblREGASSJune19[[#This Row],[Alloc]]=\"WYP\",tblREGASSJune19[[#This Row],[Alloc]]=\"CA\",tblREGASSJune19[[#This Row],[Alloc]]=\"WA\"),\"SITUS\",tblREGASSJune19[[#This Row],[Alloc]])","v":"SITUS"},{"$f":"INDEX(tblREGASSLookup[FUNC],MATCH(tblREGASSJune19[[#This Row],[Concat]],tblREGASSLookup[Concat],0))","v":"ESD"},{"$f":"IF(tblREGASSJune19[[#This Row],[Total ($000)]]=0,\"NO\",IF(ISNA(tblREGASSJune19[[#This Row],[FUNC]]),\"YES\",IF(_xlfn.ISFORMULA(tblREGASSJune19[[#This Row],[FUNC]]),\"NO\",\"YES\")))","v":"NO"}]
[{"$f":"CONCATENATE(tblREGASSJune19[[#This Row],[Primary Account]],tblREGASSJune19[[#This Row],[Primary Name]],tblREGASSJune19[[#This Row],[Secondary Acct]],tblREGASSJune19[[#This Row],[Secondary  Name]],tblREGASSJune19[[#This Row],[Alloc4FUNC]])","v":"1823910ENVIR CST UNDR AMORT104232Jordan Plant Substation- WASITUS"},1823910,"ENVIR CST UNDR AMORT",104232,"Jordan Plant Substation- WA","WA",-0.193880769230769,{"$f":"IF(OR(tblREGASSJune19[[#This Row],[Alloc]]=\"IDU\",tblREGASSJune19[[#This Row],[Alloc]]=\"OR\",tblREGASSJune19[[#This Row],[Alloc]]=\"UT\",tblREGASSJune19[[#This Row],[Alloc]]=\"WYU\",tblREGASSJune19[[#This Row],[Alloc]]=\"WYP\",tblREGASSJune19[[#This Row],[Alloc]]=\"CA\",tblREGASSJune19[[#This Row],[Alloc]]=\"WA\"),\"SITUS\",tblREGASSJune19[[#This Row],[Alloc]])","v":"SITUS"},{"$f":"INDEX(tblREGASSLookup[FUNC],MATCH(tblREGASSJune19[[#This Row],[Concat]],tblREGASSLookup[Concat],0))","v":"ESD"},{"$f":"IF(tblREGASSJune19[[#This Row],[Total ($000)]]=0,\"NO\",IF(ISNA(tblREGASSJune19[[#This Row],[FUNC]]),\"YES\",IF(_xlfn.ISFORMULA(tblREGASSJune19[[#This Row],[FUNC]]),\"NO\",\"YES\")))","v":"NO"}]
[{"$f":"CONCATENATE(tblREGASSJune19[[#This Row],[Primary Account]],tblREGASSJune19[[#This Row],[Primary Name]],tblREGASSJune19[[#This Row],[Secondary Acct]],tblREGASSJune19[[#This Row],[Secondary  Name]],tblREGASSJune19[[#This Row],[Alloc4FUNC]])","v":"1823910ENVIR CST UNDR AMORT104233Montague Ranch - WASITUS"},1823910,"ENVIR CST UNDR AMORT",104233,"Montague Ranch - WA","WA",-7.7027692307692297E-2,{"$f":"IF(OR(tblREGASSJune19[[#This Row],[Alloc]]=\"IDU\",tblREGASSJune19[[#This Row],[Alloc]]=\"OR\",tblREGASSJune19[[#This Row],[Alloc]]=\"UT\",tblREGASSJune19[[#This Row],[Alloc]]=\"WYU\",tblREGASSJune19[[#This Row],[Alloc]]=\"WYP\",tblREGASSJune19[[#This Row],[Alloc]]=\"CA\",tblREGASSJune19[[#This Row],[Alloc]]=\"WA\"),\"SITUS\",tblREGASSJune19[[#This Row],[Alloc]])","v":"SITUS"},{"$f":"INDEX(tblREGASSLookup[FUNC],MATCH(tblREGASSJune19[[#This Row],[Concat]],tblREGASSLookup[Concat],0))","v":"ESD"},{"$f":"IF(tblREGASSJune19[[#This Row],[Total ($000)]]=0,\"NO\",IF(ISNA(tblREGASSJune19[[#This Row],[FUNC]]),\"YES\",IF(_xlfn.ISFORMULA(tblREGASSJune19[[#This Row],[FUNC]]),\"NO\",\"YES\")))","v":"NO"}]
[{"$f":"CONCATENATE(tblREGASSJune19[[#This Row],[Primary Account]],tblREGASSJune19[[#This Row],[Primary Name]],tblREGASSJune19[[#This Row],[Secondary Acct]],tblREGASSJune19[[#This Row],[Secondary  Name]],tblREGASSJune19[[#This Row],[Alloc4FUNC]])","v":"1823910ENVIR CST UNDR AMORT104234Naughton Plant FGDP 1 - WASITUS"},1823910,"ENVIR CST UNDR AMORT",104234,"Naughton Plant FGDP 1 - WA","WA",-1.50461615384615,{"$f":"IF(OR(tblREGASSJune19[[#This Row],[Alloc]]=\"IDU\",tblREGASSJune19[[#This Row],[Alloc]]=\"OR\",tblREGASSJune19[[#This Row],[Alloc]]=\"UT\",tblREGASSJune19[[#This Row],[Alloc]]=\"WYU\",tblREGASSJune19[[#This Row],[Alloc]]=\"WYP\",tblREGASSJune19[[#This Row],[Alloc]]=\"CA\",tblREGASSJune19[[#This Row],[Alloc]]=\"WA\"),\"SITUS\",tblREGASSJune19[[#This Row],[Alloc]])","v":"SITUS"},{"$f":"INDEX(tblREGASSLookup[FUNC],MATCH(tblREGASSJune19[[#This Row],[Concat]],tblREGASSLookup[Concat],0))","v":"ESD"},{"$f":"IF(tblREGASSJune19[[#This Row],[Total ($000)]]=0,\"NO\",IF(ISNA(tblREGASSJune19[[#This Row],[FUNC]]),\"YES\",IF(_xlfn.ISFORMULA(tblREGASSJune19[[#This Row],[FUNC]]),\"NO\",\"YES\")))","v":"NO"}]
[{"$f":"CONCATENATE(tblREGASSJune19[[#This Row],[Primary Account]],tblREGASSJune19[[#This Row],[Primary Name]],tblREGASSJune19[[#This Row],[Secondary Acct]],tblREGASSJune19[[#This Row],[Secondary  Name]],tblREGASSJune19[[#This Row],[Alloc4FUNC]])","v":"1823910ENVIR CST UNDR AMORT104235Naughton Plant FGDP 2 - WASITUS"},1823910,"ENVIR CST UNDR AMORT",104235,"Naughton Plant FGDP 2 - WA","WA",-2.2439630769230798,{"$f":"IF(OR(tblREGASSJune19[[#This Row],[Alloc]]=\"IDU\",tblREGASSJune19[[#This Row],[Alloc]]=\"OR\",tblREGASSJune19[[#This Row],[Alloc]]=\"UT\",tblREGASSJune19[[#This Row],[Alloc]]=\"WYU\",tblREGASSJune19[[#This Row],[Alloc]]=\"WYP\",tblREGASSJune19[[#This Row],[Alloc]]=\"CA\",tblREGASSJune19[[#This Row],[Alloc]]=\"WA\"),\"SITUS\",tblREGASSJune19[[#This Row],[Alloc]])","v":"SITUS"},{"$f":"INDEX(tblREGASSLookup[FUNC],MATCH(tblREGASSJune19[[#This Row],[Concat]],tblREGASSLookup[Concat],0))","v":"ESD"},{"$f":"IF(tblREGASSJune19[[#This Row],[Total ($000)]]=0,\"NO\",IF(ISNA(tblREGASSJune19[[#This Row],[FUNC]]),\"YES\",IF(_xlfn.ISFORMULA(tblREGASSJune19[[#This Row],[FUNC]]),\"NO\",\"YES\")))","v":"NO"}]
[{"$f":"CONCATENATE(tblREGASSJune19[[#This Row],[Primary Account]],tblREGASSJune19[[#This Row],[Primary Name]],tblREGASSJune19[[#This Row],[Secondary Acct]],tblREGASSJune19[[#This Row],[Secondary  Name]],tblREGASSJune19[[#This Row],[Alloc4FUNC]])","v":"1823910ENVIR CST UNDR AMORT104236Naughton Plant FGDP Closure - WASITUS"},1823910,"ENVIR CST UNDR AMORT",104236,"Naughton Plant FGDP Closure - WA","WA",-1.9788415384615401,{"$f":"IF(OR(tblREGASSJune19[[#This Row],[Alloc]]=\"IDU\",tblREGASSJune19[[#This Row],[Alloc]]=\"OR\",tblREGASSJune19[[#This Row],[Alloc]]=\"UT\",tblREGASSJune19[[#This Row],[Alloc]]=\"WYU\",tblREGASSJune19[[#This Row],[Alloc]]=\"WYP\",tblREGASSJune19[[#This Row],[Alloc]]=\"CA\",tblREGASSJune19[[#This Row],[Alloc]]=\"WA\"),\"SITUS\",tblREGASSJune19[[#This Row],[Alloc]])","v":"SITUS"},{"$f":"INDEX(tblREGASSLookup[FUNC],MATCH(tblREGASSJune19[[#This Row],[Concat]],tblREGASSLookup[Concat],0))","v":"ESD"},{"$f":"IF(tblREGASSJune19[[#This Row],[Total ($000)]]=0,\"NO\",IF(ISNA(tblREGASSJune19[[#This Row],[FUNC]]),\"YES\",IF(_xlfn.ISFORMULA(tblREGASSJune19[[#This Row],[FUNC]]),\"NO\",\"YES\")))","v":"NO"}]
[{"$f":"CONCATENATE(tblREGASSJune19[[#This Row],[Primary Account]],tblREGASSJune19[[#This Row],[Primary Name]],tblREGASSJune19[[#This Row],[Secondary Acct]],tblREGASSJune19[[#This Row],[Secondary  Name]],tblREGASSJune19[[#This Row],[Alloc4FUNC]])","v":"1823910ENVIR CST UNDR AMORT104237Naughton Oil Spill - WASITUS"},1823910,"ENVIR CST UNDR AMORT",104237,"Naughton Oil Spill - WA","WA",0,{"$f":"IF(OR(tblREGASSJune19[[#This Row],[Alloc]]=\"IDU\",tblREGASSJune19[[#This Row],[Alloc]]=\"OR\",tblREGASSJune19[[#This Row],[Alloc]]=\"UT\",tblREGASSJune19[[#This Row],[Alloc]]=\"WYU\",tblREGASSJune19[[#This Row],[Alloc]]=\"WYP\",tblREGASSJune19[[#This Row],[Alloc]]=\"CA\",tblREGASSJune19[[#This Row],[Alloc]]=\"WA\"),\"SITUS\",tblREGASSJune19[[#This Row],[Alloc]])","v":"SITUS"},{"$f":"INDEX(tblREGASSLookup[FUNC],MATCH(tblREGASSJune19[[#This Row],[Concat]],tblREGASSLookup[Concat],0))","v":{"$error":"#N/A"}},{"$f":"IF(tblREGASSJune19[[#This Row],[Total ($000)]]=0,\"NO\",IF(ISNA(tblREGASSJune19[[#This Row],[FUNC]]),\"YES\",IF(_xlfn.ISFORMULA(tblREGASSJune19[[#This Row],[FUNC]]),\"NO\",\"YES\")))","v":"NO"}]
[{"$f":"CONCATENATE(tblREGASSJune19[[#This Row],[Primary Account]],tblREGASSJune19[[#This Row],[Primary Name]],tblREGASSJune19[[#This Row],[Secondary Acct]],tblREGASSJune19[[#This Row],[Secondary  Name]],tblREGASSJune19[[#This Row],[Alloc4FUNC]])","v":"1823910ENVIR CST UNDR AMORT104239Naughton South Ash Pond - WASITUS"},1823910,"ENVIR CST UNDR AMORT",104239,"Naughton South Ash Pond - WA","WA",-1.14649615384615,{"$f":"IF(OR(tblREGASSJune19[[#This Row],[Alloc]]=\"IDU\",tblREGASSJune19[[#This Row],[Alloc]]=\"OR\",tblREGASSJune19[[#This Row],[Alloc]]=\"UT\",tblREGASSJune19[[#This Row],[Alloc]]=\"WYU\",tblREGASSJune19[[#This Row],[Alloc]]=\"WYP\",tblREGASSJune19[[#This Row],[Alloc]]=\"CA\",tblREGASSJune19[[#This Row],[Alloc]]=\"WA\"),\"SITUS\",tblREGASSJune19[[#This Row],[Alloc]])","v":"SITUS"},{"$f":"INDEX(tblREGASSLookup[FUNC],MATCH(tblREGASSJune19[[#This Row],[Concat]],tblREGASSLookup[Concat],0))","v":"ESD"},{"$f":"IF(tblREGASSJune19[[#This Row],[Total ($000)]]=0,\"NO\",IF(ISNA(tblREGASSJune19[[#This Row],[FUNC]]),\"YES\",IF(_xlfn.ISFORMULA(tblREGASSJune19[[#This Row],[FUNC]]),\"NO\",\"YES\")))","v":"NO"}]
[{"$f":"CONCATENATE(tblREGASSJune19[[#This Row],[Primary Account]],tblREGASSJune19[[#This Row],[Primary Name]],tblREGASSJune19[[#This Row],[Secondary Acct]],tblREGASSJune19[[#This Row],[Secondary  Name]],tblREGASSJune19[[#This Row],[Alloc4FUNC]])","v":"1823910ENVIR CST UNDR AMORT104240Ogden MGP - WASITUS"},1823910,"ENVIR CST UNDR AMORT",104240,"Ogden MGP - WA","WA",-19.473313076923102,{"$f":"IF(OR(tblREGASSJune19[[#This Row],[Alloc]]=\"IDU\",tblREGASSJune19[[#This Row],[Alloc]]=\"OR\",tblREGASSJune19[[#This Row],[Alloc]]=\"UT\",tblREGASSJune19[[#This Row],[Alloc]]=\"WYU\",tblREGASSJune19[[#This Row],[Alloc]]=\"WYP\",tblREGASSJune19[[#This Row],[Alloc]]=\"CA\",tblREGASSJune19[[#This Row],[Alloc]]=\"WA\"),\"SITUS\",tblREGASSJune19[[#This Row],[Alloc]])","v":"SITUS"},{"$f":"INDEX(tblREGASSLookup[FUNC],MATCH(tblREGASSJune19[[#This Row],[Concat]],tblREGASSLookup[Concat],0))","v":"ESD"},{"$f":"IF(tblREGASSJune19[[#This Row],[Total ($000)]]=0,\"NO\",IF(ISNA(tblREGASSJune19[[#This Row],[FUNC]]),\"YES\",IF(_xlfn.ISFORMULA(tblREGASSJune19[[#This Row],[FUNC]]),\"NO\",\"YES\")))","v":"NO"}]
[{"$f":"CONCATENATE(tblREGASSJune19[[#This Row],[Primary Account]],tblREGASSJune19[[#This Row],[Primary Name]],tblREGASSJune19[[#This Row],[Secondary Acct]],tblREGASSJune19[[#This Row],[Secondary  Name]],tblREGASSJune19[[#This Row],[Alloc4FUNC]])","v":"1823910ENVIR CST UNDR AMORT104241Olympia - WASITUS"},1823910,"ENVIR CST UNDR AMORT",104241,"Olympia - WA","WA",-0.125657692307692,{"$f":"IF(OR(tblREGASSJune19[[#This Row],[Alloc]]=\"IDU\",tblREGASSJune19[[#This Row],[Alloc]]=\"OR\",tblREGASSJune19[[#This Row],[Alloc]]=\"UT\",tblREGASSJune19[[#This Row],[Alloc]]=\"WYU\",tblREGASSJune19[[#This Row],[Alloc]]=\"WYP\",tblREGASSJune19[[#This Row],[Alloc]]=\"CA\",tblREGASSJune19[[#This Row],[Alloc]]=\"WA\"),\"SITUS\",tblREGASSJune19[[#This Row],[Alloc]])","v":"SITUS"},{"$f":"INDEX(tblREGASSLookup[FUNC],MATCH(tblREGASSJune19[[#This Row],[Concat]],tblREGASSLookup[Concat],0))","v":"ESD"},{"$f":"IF(tblREGASSJune19[[#This Row],[Total ($000)]]=0,\"NO\",IF(ISNA(tblREGASSJune19[[#This Row],[FUNC]]),\"YES\",IF(_xlfn.ISFORMULA(tblREGASSJune19[[#This Row],[FUNC]]),\"NO\",\"YES\")))","v":"NO"}]
[{"$f":"CONCATENATE(tblREGASSJune19[[#This Row],[Primary Account]],tblREGASSJune19[[#This Row],[Primary Name]],tblREGASSJune19[[#This Row],[Secondary Acct]],tblREGASSJune19[[#This Row],[Secondary  Name]],tblREGASSJune19[[#This Row],[Alloc4FUNC]])","v":"1823910ENVIR CST UNDR AMORT104242Portland Harbor Srce Cntrl - WASITUS"},1823910,"ENVIR CST UNDR AMORT",104242,"Portland Harbor Srce Cntrl - WA","WA",-43.326300769230798,{"$f":"IF(OR(tblREGASSJune19[[#This Row],[Alloc]]=\"IDU\",tblREGASSJune19[[#This Row],[Alloc]]=\"OR\",tblREGASSJune19[[#This Row],[Alloc]]=\"UT\",tblREGASSJune19[[#This Row],[Alloc]]=\"WYU\",tblREGASSJune19[[#This Row],[Alloc]]=\"WYP\",tblREGASSJune19[[#This Row],[Alloc]]=\"CA\",tblREGASSJune19[[#This Row],[Alloc]]=\"WA\"),\"SITUS\",tblREGASSJune19[[#This Row],[Alloc]])","v":"SITUS"},{"$f":"INDEX(tblREGASSLookup[FUNC],MATCH(tblREGASSJune19[[#This Row],[Concat]],tblREGASSLookup[Concat],0))","v":"ESD"},{"$f":"IF(tblREGASSJune19[[#This Row],[Total ($000)]]=0,\"NO\",IF(ISNA(tblREGASSJune19[[#This Row],[FUNC]]),\"YES\",IF(_xlfn.ISFORMULA(tblREGASSJune19[[#This Row],[FUNC]]),\"NO\",\"YES\")))","v":"NO"}]
[{"$f":"CONCATENATE(tblREGASSJune19[[#This Row],[Primary Account]],tblREGASSJune19[[#This Row],[Primary Name]],tblREGASSJune19[[#This Row],[Secondary Acct]],tblREGASSJune19[[#This Row],[Secondary  Name]],tblREGASSJune19[[#This Row],[Alloc4FUNC]])","v":"1823910ENVIR CST UNDR AMORT104244Silver Bell/Telluride - WASITUS"},1823910,"ENVIR CST UNDR AMORT",104244,"Silver Bell/Telluride - WA","WA",-70.799029230769193,{"$f":"IF(OR(tblREGASSJune19[[#This Row],[Alloc]]=\"IDU\",tblREGASSJune19[[#This Row],[Alloc]]=\"OR\",tblREGASSJune19[[#This Row],[Alloc]]=\"UT\",tblREGASSJune19[[#This Row],[Alloc]]=\"WYU\",tblREGASSJune19[[#This Row],[Alloc]]=\"WYP\",tblREGASSJune19[[#This Row],[Alloc]]=\"CA\",tblREGASSJune19[[#This Row],[Alloc]]=\"WA\"),\"SITUS\",tblREGASSJune19[[#This Row],[Alloc]])","v":"SITUS"},{"$f":"INDEX(tblREGASSLookup[FUNC],MATCH(tblREGASSJune19[[#This Row],[Concat]],tblREGASSLookup[Concat],0))","v":"ESD"},{"$f":"IF(tblREGASSJune19[[#This Row],[Total ($000)]]=0,\"NO\",IF(ISNA(tblREGASSJune19[[#This Row],[FUNC]]),\"YES\",IF(_xlfn.ISFORMULA(tblREGASSJune19[[#This Row],[FUNC]]),\"NO\",\"YES\")))","v":"NO"}]
[{"$f":"CONCATENATE(tblREGASSJune19[[#This Row],[Primary Account]],tblREGASSJune19[[#This Row],[Primary Name]],tblREGASSJune19[[#This Row],[Secondary Acct]],tblREGASSJune19[[#This Row],[Secondary  Name]],tblREGASSJune19[[#This Row],[Alloc4FUNC]])","v":"1823910ENVIR CST UNDR AMORT104245Tacoma A St. (25% PCRP) - WASITUS"},1823910,"ENVIR CST UNDR AMORT",104245,"Tacoma A St. (25% PCRP) - WA","WA",-0.81917230769230798,{"$f":"IF(OR(tblREGASSJune19[[#This Row],[Alloc]]=\"IDU\",tblREGASSJune19[[#This Row],[Alloc]]=\"OR\",tblREGASSJune19[[#This Row],[Alloc]]=\"UT\",tblREGASSJune19[[#This Row],[Alloc]]=\"WYU\",tblREGASSJune19[[#This Row],[Alloc]]=\"WYP\",tblREGASSJune19[[#This Row],[Alloc]]=\"CA\",tblREGASSJune19[[#This Row],[Alloc]]=\"WA\"),\"SITUS\",tblREGASSJune19[[#This Row],[Alloc]])","v":"SITUS"},{"$f":"INDEX(tblREGASSLookup[FUNC],MATCH(tblREGASSJune19[[#This Row],[Concat]],tblREGASSLookup[Concat],0))","v":"ESD"},{"$f":"IF(tblREGASSJune19[[#This Row],[Total ($000)]]=0,\"NO\",IF(ISNA(tblREGASSJune19[[#This Row],[FUNC]]),\"YES\",IF(_xlfn.ISFORMULA(tblREGASSJune19[[#This Row],[FUNC]]),\"NO\",\"YES\")))","v":"NO"}]
[{"$f":"CONCATENATE(tblREGASSJune19[[#This Row],[Primary Account]],tblREGASSJune19[[#This Row],[Primary Name]],tblREGASSJune19[[#This Row],[Secondary Acct]],tblREGASSJune19[[#This Row],[Secondary  Name]],tblREGASSJune19[[#This Row],[Alloc4FUNC]])","v":"1823910ENVIR CST UNDR AMORT104246Utah Metal East - WASITUS"},1823910,"ENVIR CST UNDR AMORT",104246,"Utah Metal East - WA","WA",-1.2699999999999999E-2,{"$f":"IF(OR(tblREGASSJune19[[#This Row],[Alloc]]=\"IDU\",tblREGASSJune19[[#This Row],[Alloc]]=\"OR\",tblREGASSJune19[[#This Row],[Alloc]]=\"UT\",tblREGASSJune19[[#This Row],[Alloc]]=\"WYU\",tblREGASSJune19[[#This Row],[Alloc]]=\"WYP\",tblREGASSJune19[[#This Row],[Alloc]]=\"CA\",tblREGASSJune19[[#This Row],[Alloc]]=\"WA\"),\"SITUS\",tblREGASSJune19[[#This Row],[Alloc]])","v":"SITUS"},{"$f":"INDEX(tblREGASSLookup[FUNC],MATCH(tblREGASSJune19[[#This Row],[Concat]],tblREGASSLookup[Concat],0))","v":"ESD"},{"$f":"IF(tblREGASSJune19[[#This Row],[Total ($000)]]=0,\"NO\",IF(ISNA(tblREGASSJune19[[#This Row],[FUNC]]),\"YES\",IF(_xlfn.ISFORMULA(tblREGASSJune19[[#This Row],[FUNC]]),\"NO\",\"YES\")))","v":"NO"}]
[{"$f":"CONCATENATE(tblREGASSJune19[[#This Row],[Primary Account]],tblREGASSJune19[[#This Row],[Primary Name]],tblREGASSJune19[[#This Row],[Secondary Acct]],tblREGASSJune19[[#This Row],[Secondary  Name]],tblREGASSJune19[[#This Row],[Alloc4FUNC]])","v":"1823910ENVIR CST UNDR AMORT104247Wyodak Oil Spill - WASITUS"},1823910,"ENVIR CST UNDR AMORT",104247,"Wyodak Oil Spill - WA","WA",-0.97084769230769197,{"$f":"IF(OR(tblREGASSJune19[[#This Row],[Alloc]]=\"IDU\",tblREGASSJune19[[#This Row],[Alloc]]=\"OR\",tblREGASSJune19[[#This Row],[Alloc]]=\"UT\",tblREGASSJune19[[#This Row],[Alloc]]=\"WYU\",tblREGASSJune19[[#This Row],[Alloc]]=\"WYP\",tblREGASSJune19[[#This Row],[Alloc]]=\"CA\",tblREGASSJune19[[#This Row],[Alloc]]=\"WA\"),\"SITUS\",tblREGASSJune19[[#This Row],[Alloc]])","v":"SITUS"},{"$f":"INDEX(tblREGASSLookup[FUNC],MATCH(tblREGASSJune19[[#This Row],[Concat]],tblREGASSLookup[Concat],0))","v":"ESD"},{"$f":"IF(tblREGASSJune19[[#This Row],[Total ($000)]]=0,\"NO\",IF(ISNA(tblREGASSJune19[[#This Row],[FUNC]]),\"YES\",IF(_xlfn.ISFORMULA(tblREGASSJune19[[#This Row],[FUNC]]),\"NO\",\"YES\")))","v":"NO"}]
[{"$f":"CONCATENATE(tblREGASSJune19[[#This Row],[Primary Account]],tblREGASSJune19[[#This Row],[Primary Name]],tblREGASSJune19[[#This Row],[Secondary Acct]],tblREGASSJune19[[#This Row],[Secondary  Name]],tblREGASSJune19[[#This Row],[Alloc4FUNC]])","v":"1823910ENVIR CST UNDR AMORT104248Hunter Fuel Oil Spill-WASITUS"},1823910,"ENVIR CST UNDR AMORT",104248,"Hunter Fuel Oil Spill-WA","WA",0,{"$f":"IF(OR(tblREGASSJune19[[#This Row],[Alloc]]=\"IDU\",tblREGASSJune19[[#This Row],[Alloc]]=\"OR\",tblREGASSJune19[[#This Row],[Alloc]]=\"UT\",tblREGASSJune19[[#This Row],[Alloc]]=\"WYU\",tblREGASSJune19[[#This Row],[Alloc]]=\"WYP\",tblREGASSJune19[[#This Row],[Alloc]]=\"CA\",tblREGASSJune19[[#This Row],[Alloc]]=\"WA\"),\"SITUS\",tblREGASSJune19[[#This Row],[Alloc]])","v":"SITUS"},{"$f":"INDEX(tblREGASSLookup[FUNC],MATCH(tblREGASSJune19[[#This Row],[Concat]],tblREGASSLookup[Concat],0))","v":{"$error":"#N/A"}},{"$f":"IF(tblREGASSJune19[[#This Row],[Total ($000)]]=0,\"NO\",IF(ISNA(tblREGASSJune19[[#This Row],[FUNC]]),\"YES\",IF(_xlfn.ISFORMULA(tblREGASSJune19[[#This Row],[FUNC]]),\"NO\",\"YES\")))","v":"NO"}]
[{"$f":"CONCATENATE(tblREGASSJune19[[#This Row],[Primary Account]],tblREGASSJune19[[#This Row],[Primary Name]],tblREGASSJune19[[#This Row],[Secondary Acct]],tblREGASSJune19[[#This Row],[Secondary  Name]],tblREGASSJune19[[#This Row],[Alloc4FUNC]])","v":"1823910ENVIR CST UNDR AMORT104268Rocky Mountain - WASITUS"},1823910,"ENVIR CST UNDR AMORT",104268,"Rocky Mountain - WA","WA",-31.923068461538499,{"$f":"IF(OR(tblREGASSJune19[[#This Row],[Alloc]]=\"IDU\",tblREGASSJune19[[#This Row],[Alloc]]=\"OR\",tblREGASSJune19[[#This Row],[Alloc]]=\"UT\",tblREGASSJune19[[#This Row],[Alloc]]=\"WYU\",tblREGASSJune19[[#This Row],[Alloc]]=\"WYP\",tblREGASSJune19[[#This Row],[Alloc]]=\"CA\",tblREGASSJune19[[#This Row],[Alloc]]=\"WA\"),\"SITUS\",tblREGASSJune19[[#This Row],[Alloc]])","v":"SITUS"},{"$f":"INDEX(tblREGASSLookup[FUNC],MATCH(tblREGASSJune19[[#This Row],[Concat]],tblREGASSLookup[Concat],0))","v":"ESD"},{"$f":"IF(tblREGASSJune19[[#This Row],[Total ($000)]]=0,\"NO\",IF(ISNA(tblREGASSJune19[[#This Row],[FUNC]]),\"YES\",IF(_xlfn.ISFORMULA(tblREGASSJune19[[#This Row],[FUNC]]),\"NO\",\"YES\")))","v":"NO"}]
[{"$f":"CONCATENATE(tblREGASSJune19[[#This Row],[Primary Account]],tblREGASSJune19[[#This Row],[Primary Name]],tblREGASSJune19[[#This Row],[Secondary Acct]],tblREGASSJune19[[#This Row],[Secondary  Name]],tblREGASSJune19[[#This Row],[Alloc4FUNC]])","v":"1823910ENVIR CST UNDR AMORT104269Pac Power - WASITUS"},1823910,"ENVIR CST UNDR AMORT",104269,"Pac Power - WA","WA",-54.013795384615399,{"$f":"IF(OR(tblREGASSJune19[[#This Row],[Alloc]]=\"IDU\",tblREGASSJune19[[#This Row],[Alloc]]=\"OR\",tblREGASSJune19[[#This Row],[Alloc]]=\"UT\",tblREGASSJune19[[#This Row],[Alloc]]=\"WYU\",tblREGASSJune19[[#This Row],[Alloc]]=\"WYP\",tblREGASSJune19[[#This Row],[Alloc]]=\"CA\",tblREGASSJune19[[#This Row],[Alloc]]=\"WA\"),\"SITUS\",tblREGASSJune19[[#This Row],[Alloc]])","v":"SITUS"},{"$f":"INDEX(tblREGASSLookup[FUNC],MATCH(tblREGASSJune19[[#This Row],[Concat]],tblREGASSLookup[Concat],0))","v":"ESD"},{"$f":"IF(tblREGASSJune19[[#This Row],[Total ($000)]]=0,\"NO\",IF(ISNA(tblREGASSJune19[[#This Row],[FUNC]]),\"YES\",IF(_xlfn.ISFORMULA(tblREGASSJune19[[#This Row],[FUNC]]),\"NO\",\"YES\")))","v":"NO"}]
[{"$f":"CONCATENATE(tblREGASSJune19[[#This Row],[Primary Account]],tblREGASSJune19[[#This Row],[Primary Name]],tblREGASSJune19[[#This Row],[Secondary Acct]],tblREGASSJune19[[#This Row],[Secondary  Name]],tblREGASSJune19[[#This Row],[Alloc4FUNC]])","v":"1823910ENVIR CST UNDR AMORT104296NTO Parking Lot-Asbestos 2018SO"},1823910,"ENVIR CST UNDR AMORT",104296,"NTO Parking Lot-Asbestos 2018","SO",113.875463076923,{"$f":"IF(OR(tblREGASSJune19[[#This Row],[Alloc]]=\"IDU\",tblREGASSJune19[[#This Row],[Alloc]]=\"OR\",tblREGASSJune19[[#This Row],[Alloc]]=\"UT\",tblREGASSJune19[[#This Row],[Alloc]]=\"WYU\",tblREGASSJune19[[#This Row],[Alloc]]=\"WYP\",tblREGASSJune19[[#This Row],[Alloc]]=\"CA\",tblREGASSJune19[[#This Row],[Alloc]]=\"WA\"),\"SITUS\",tblREGASSJune19[[#This Row],[Alloc]])","v":"SO"},{"$f":"INDEX(tblREGASSLookup[FUNC],MATCH(tblREGASSJune19[[#This Row],[Concat]],tblREGASSLookup[Concat],0))","v":"ESD"},{"$f":"IF(tblREGASSJune19[[#This Row],[Total ($000)]]=0,\"NO\",IF(ISNA(tblREGASSJune19[[#This Row],[FUNC]]),\"YES\",IF(_xlfn.ISFORMULA(tblREGASSJune19[[#This Row],[FUNC]]),\"NO\",\"YES\")))","v":"NO"}]
[{"$f":"CONCATENATE(tblREGASSJune19[[#This Row],[Primary Account]],tblREGASSJune19[[#This Row],[Primary Name]],tblREGASSJune19[[#This Row],[Secondary Acct]],tblREGASSJune19[[#This Row],[Secondary  Name]],tblREGASSJune19[[#This Row],[Alloc4FUNC]])","v":"1823910ENVIR CST UNDR AMORT104297NTO Parking Lot Asbestos - WA 2018SITUS"},1823910,"ENVIR CST UNDR AMORT",104297,"NTO Parking Lot Asbestos - WA 2018","WA",-4.5289307692307696,{"$f":"IF(OR(tblREGASSJune19[[#This Row],[Alloc]]=\"IDU\",tblREGASSJune19[[#This Row],[Alloc]]=\"OR\",tblREGASSJune19[[#This Row],[Alloc]]=\"UT\",tblREGASSJune19[[#This Row],[Alloc]]=\"WYU\",tblREGASSJune19[[#This Row],[Alloc]]=\"WYP\",tblREGASSJune19[[#This Row],[Alloc]]=\"CA\",tblREGASSJune19[[#This Row],[Alloc]]=\"WA\"),\"SITUS\",tblREGASSJune19[[#This Row],[Alloc]])","v":"SITUS"},{"$f":"INDEX(tblREGASSLookup[FUNC],MATCH(tblREGASSJune19[[#This Row],[Concat]],tblREGASSLookup[Concat],0))","v":"ESD"},{"$f":"IF(tblREGASSJune19[[#This Row],[Total ($000)]]=0,\"NO\",IF(ISNA(tblREGASSJune19[[#This Row],[FUNC]]),\"YES\",IF(_xlfn.ISFORMULA(tblREGASSJune19[[#This Row],[FUNC]]),\"NO\",\"YES\")))","v":"NO"}]
[{"$f":"CONCATENATE(tblREGASSJune19[[#This Row],[Primary Account]],tblREGASSJune19[[#This Row],[Primary Name]],tblREGASSJune19[[#This Row],[Secondary Acct]],tblREGASSJune19[[#This Row],[Secondary  Name]],tblREGASSJune19[[#This Row],[Alloc4FUNC]])","v":"1823920DSR COSTS AMORTIZED0DSR COST AMORTSITUS"},1823920,"DSR COSTS AMORTIZED",0,"DSR COST AMORT","IDU",68.339789999999994,{"$f":"IF(OR(tblREGASSJune19[[#This Row],[Alloc]]=\"IDU\",tblREGASSJune19[[#This Row],[Alloc]]=\"OR\",tblREGASSJune19[[#This Row],[Alloc]]=\"UT\",tblREGASSJune19[[#This Row],[Alloc]]=\"WYU\",tblREGASSJune19[[#This Row],[Alloc]]=\"WYP\",tblREGASSJune19[[#This Row],[Alloc]]=\"CA\",tblREGASSJune19[[#This Row],[Alloc]]=\"WA\"),\"SITUS\",tblREGASSJune19[[#This Row],[Alloc]])","v":"SITUS"},{"$f":"INDEX(tblREGASSLookup[FUNC],MATCH(tblREGASSJune19[[#This Row],[Concat]],tblREGASSLookup[Concat],0))","v":"CUST"},{"$f":"IF(tblREGASSJune19[[#This Row],[Total ($000)]]=0,\"NO\",IF(ISNA(tblREGASSJune19[[#This Row],[FUNC]]),\"YES\",IF(_xlfn.ISFORMULA(tblREGASSJune19[[#This Row],[FUNC]]),\"NO\",\"YES\")))","v":"NO"}]
[{"$f":"CONCATENATE(tblREGASSJune19[[#This Row],[Primary Account]],tblREGASSJune19[[#This Row],[Primary Name]],tblREGASSJune19[[#This Row],[Secondary Acct]],tblREGASSJune19[[#This Row],[Secondary  Name]],tblREGASSJune19[[#This Row],[Alloc4FUNC]])","v":"1823920DSR COSTS AMORTIZED0DSR COST AMORTOTHER"},1823920,"DSR COSTS AMORTIZED",0,"DSR COST AMORT","OTHER",110300.219295385,{"$f":"IF(OR(tblREGASSJune19[[#This Row],[Alloc]]=\"IDU\",tblREGASSJune19[[#This Row],[Alloc]]=\"OR\",tblREGASSJune19[[#This Row],[Alloc]]=\"UT\",tblREGASSJune19[[#This Row],[Alloc]]=\"WYU\",tblREGASSJune19[[#This Row],[Alloc]]=\"WYP\",tblREGASSJune19[[#This Row],[Alloc]]=\"CA\",tblREGASSJune19[[#This Row],[Alloc]]=\"WA\"),\"SITUS\",tblREGASSJune19[[#This Row],[Alloc]])","v":"OTHER"},{"$f":"INDEX(tblREGASSLookup[FUNC],MATCH(tblREGASSJune19[[#This Row],[Concat]],tblREGASSLookup[Concat],0))","v":"CUST"},{"$f":"IF(tblREGASSJune19[[#This Row],[Total ($000)]]=0,\"NO\",IF(ISNA(tblREGASSJune19[[#This Row],[FUNC]]),\"YES\",IF(_xlfn.ISFORMULA(tblREGASSJune19[[#This Row],[FUNC]]),\"NO\",\"YES\")))","v":"NO"}]
[{"$f":"CONCATENATE(tblREGASSJune19[[#This Row],[Primary Account]],tblREGASSJune19[[#This Row],[Primary Name]],tblREGASSJune19[[#This Row],[Secondary Acct]],tblREGASSJune19[[#This Row],[Secondary  Name]],tblREGASSJune19[[#This Row],[Alloc4FUNC]])","v":"1823920DSR COSTS AMORTIZED101072LOW INCOME   CA 95SITUS"},1823920,"DSR COSTS AMORTIZED",101072,"LOW INCOME   CA 95","CA",0,{"$f":"IF(OR(tblREGASSJune19[[#This Row],[Alloc]]=\"IDU\",tblREGASSJune19[[#This Row],[Alloc]]=\"OR\",tblREGASSJune19[[#This Row],[Alloc]]=\"UT\",tblREGASSJune19[[#This Row],[Alloc]]=\"WYU\",tblREGASSJune19[[#This Row],[Alloc]]=\"WYP\",tblREGASSJune19[[#This Row],[Alloc]]=\"CA\",tblREGASSJune19[[#This Row],[Alloc]]=\"WA\"),\"SITUS\",tblREGASSJune19[[#This Row],[Alloc]])","v":"SITUS"},{"$f":"INDEX(tblREGASSLookup[FUNC],MATCH(tblREGASSJune19[[#This Row],[Concat]],tblREGASSLookup[Concat],0))","v":{"$error":"#N/A"}},{"$f":"IF(tblREGASSJune19[[#This Row],[Total ($000)]]=0,\"NO\",IF(ISNA(tblREGASSJune19[[#This Row],[FUNC]]),\"YES\",IF(_xlfn.ISFORMULA(tblREGASSJune19[[#This Row],[FUNC]]),\"NO\",\"YES\")))","v":"NO"}]
[{"$f":"CONCATENATE(tblREGASSJune19[[#This Row],[Primary Account]],tblREGASSJune19[[#This Row],[Primary Name]],tblREGASSJune19[[#This Row],[Secondary Acct]],tblREGASSJune19[[#This Row],[Secondary  Name]],tblREGASSJune19[[#This Row],[Alloc4FUNC]])","v":"1823920DSR COSTS AMORTIZED101077HASSLEFREE EFF  95SITUS"},1823920,"DSR COSTS AMORTIZED",101077,"HASSLEFREE EFF  95","CA",0,{"$f":"IF(OR(tblREGASSJune19[[#This Row],[Alloc]]=\"IDU\",tblREGASSJune19[[#This Row],[Alloc]]=\"OR\",tblREGASSJune19[[#This Row],[Alloc]]=\"UT\",tblREGASSJune19[[#This Row],[Alloc]]=\"WYU\",tblREGASSJune19[[#This Row],[Alloc]]=\"WYP\",tblREGASSJune19[[#This Row],[Alloc]]=\"CA\",tblREGASSJune19[[#This Row],[Alloc]]=\"WA\"),\"SITUS\",tblREGASSJune19[[#This Row],[Alloc]])","v":"SITUS"},{"$f":"INDEX(tblREGASSLookup[FUNC],MATCH(tblREGASSJune19[[#This Row],[Concat]],tblREGASSLookup[Concat],0))","v":{"$error":"#N/A"}},{"$f":"IF(tblREGASSJune19[[#This Row],[Total ($000)]]=0,\"NO\",IF(ISNA(tblREGASSJune19[[#This Row],[FUNC]]),\"YES\",IF(_xlfn.ISFORMULA(tblREGASSJune19[[#This Row],[FUNC]]),\"NO\",\"YES\")))","v":"NO"}]
[{"$f":"CONCATENATE(tblREGASSJune19[[#This Row],[Primary Account]],tblREGASSJune19[[#This Row],[Primary Name]],tblREGASSJune19[[#This Row],[Secondary Acct]],tblREGASSJune19[[#This Row],[Secondary  Name]],tblREGASSJune19[[#This Row],[Alloc4FUNC]])","v":"1823920DSR COSTS AMORTIZED101092REGIONAL MOBILE HOME (MAP) CA 1995SITUS"},1823920,"DSR COSTS AMORTIZED",101092,"REGIONAL MOBILE HOME (MAP) CA 1995","CA",0,{"$f":"IF(OR(tblREGASSJune19[[#This Row],[Alloc]]=\"IDU\",tblREGASSJune19[[#This Row],[Alloc]]=\"OR\",tblREGASSJune19[[#This Row],[Alloc]]=\"UT\",tblREGASSJune19[[#This Row],[Alloc]]=\"WYU\",tblREGASSJune19[[#This Row],[Alloc]]=\"WYP\",tblREGASSJune19[[#This Row],[Alloc]]=\"CA\",tblREGASSJune19[[#This Row],[Alloc]]=\"WA\"),\"SITUS\",tblREGASSJune19[[#This Row],[Alloc]])","v":"SITUS"},{"$f":"INDEX(tblREGASSLookup[FUNC],MATCH(tblREGASSJune19[[#This Row],[Concat]],tblREGASSLookup[Concat],0))","v":{"$error":"#N/A"}},{"$f":"IF(tblREGASSJune19[[#This Row],[Total ($000)]]=0,\"NO\",IF(ISNA(tblREGASSJune19[[#This Row],[FUNC]]),\"YES\",IF(_xlfn.ISFORMULA(tblREGASSJune19[[#This Row],[FUNC]]),\"NO\",\"YES\")))","v":"NO"}]
[{"$f":"CONCATENATE(tblREGASSJune19[[#This Row],[Primary Account]],tblREGASSJune19[[#This Row],[Primary Name]],tblREGASSJune19[[#This Row],[Secondary Acct]],tblREGASSJune19[[#This Row],[Secondary  Name]],tblREGASSJune19[[#This Row],[Alloc4FUNC]])","v":"1823920DSR COSTS AMORTIZED101096HOME COMFORT CA 95SITUS"},1823920,"DSR COSTS AMORTIZED",101096,"HOME COMFORT CA 95","CA",0,{"$f":"IF(OR(tblREGASSJune19[[#This Row],[Alloc]]=\"IDU\",tblREGASSJune19[[#This Row],[Alloc]]=\"OR\",tblREGASSJune19[[#This Row],[Alloc]]=\"UT\",tblREGASSJune19[[#This Row],[Alloc]]=\"WYU\",tblREGASSJune19[[#This Row],[Alloc]]=\"WYP\",tblREGASSJune19[[#This Row],[Alloc]]=\"CA\",tblREGASSJune19[[#This Row],[Alloc]]=\"WA\"),\"SITUS\",tblREGASSJune19[[#This Row],[Alloc]])","v":"SITUS"},{"$f":"INDEX(tblREGASSLookup[FUNC],MATCH(tblREGASSJune19[[#This Row],[Concat]],tblREGASSLookup[Concat],0))","v":{"$error":"#N/A"}},{"$f":"IF(tblREGASSJune19[[#This Row],[Total ($000)]]=0,\"NO\",IF(ISNA(tblREGASSJune19[[#This Row],[FUNC]]),\"YES\",IF(_xlfn.ISFORMULA(tblREGASSJune19[[#This Row],[FUNC]]),\"NO\",\"YES\")))","v":"NO"}]
[{"$f":"CONCATENATE(tblREGASSJune19[[#This Row],[Primary Account]],tblREGASSJune19[[#This Row],[Primary Name]],tblREGASSJune19[[#This Row],[Secondary Acct]],tblREGASSJune19[[#This Row],[Secondary  Name]],tblREGASSJune19[[#This Row],[Alloc4FUNC]])","v":"1823920DSR COSTS AMORTIZED101103IRRIGATION   CA 95SITUS"},1823920,"DSR COSTS AMORTIZED",101103,"IRRIGATION   CA 95","CA",0,{"$f":"IF(OR(tblREGASSJune19[[#This Row],[Alloc]]=\"IDU\",tblREGASSJune19[[#This Row],[Alloc]]=\"OR\",tblREGASSJune19[[#This Row],[Alloc]]=\"UT\",tblREGASSJune19[[#This Row],[Alloc]]=\"WYU\",tblREGASSJune19[[#This Row],[Alloc]]=\"WYP\",tblREGASSJune19[[#This Row],[Alloc]]=\"CA\",tblREGASSJune19[[#This Row],[Alloc]]=\"WA\"),\"SITUS\",tblREGASSJune19[[#This Row],[Alloc]])","v":"SITUS"},{"$f":"INDEX(tblREGASSLookup[FUNC],MATCH(tblREGASSJune19[[#This Row],[Concat]],tblREGASSLookup[Concat],0))","v":{"$error":"#N/A"}},{"$f":"IF(tblREGASSJune19[[#This Row],[Total ($000)]]=0,\"NO\",IF(ISNA(tblREGASSJune19[[#This Row],[FUNC]]),\"YES\",IF(_xlfn.ISFORMULA(tblREGASSJune19[[#This Row],[FUNC]]),\"NO\",\"YES\")))","v":"NO"}]
[{"$f":"CONCATENATE(tblREGASSJune19[[#This Row],[Primary Account]],tblREGASSJune19[[#This Row],[Primary Name]],tblREGASSJune19[[#This Row],[Secondary Acct]],tblREGASSJune19[[#This Row],[Secondary  Name]],tblREGASSJune19[[#This Row],[Alloc4FUNC]])","v":"1823920DSR COSTS AMORTIZED101180SUPERFUNDSITUS"},1823920,"DSR COSTS AMORTIZED",101180,"SUPERFUND","UT",0,{"$f":"IF(OR(tblREGASSJune19[[#This Row],[Alloc]]=\"IDU\",tblREGASSJune19[[#This Row],[Alloc]]=\"OR\",tblREGASSJune19[[#This Row],[Alloc]]=\"UT\",tblREGASSJune19[[#This Row],[Alloc]]=\"WYU\",tblREGASSJune19[[#This Row],[Alloc]]=\"WYP\",tblREGASSJune19[[#This Row],[Alloc]]=\"CA\",tblREGASSJune19[[#This Row],[Alloc]]=\"WA\"),\"SITUS\",tblREGASSJune19[[#This Row],[Alloc]])","v":"SITUS"},{"$f":"INDEX(tblREGASSLookup[FUNC],MATCH(tblREGASSJune19[[#This Row],[Concat]],tblREGASSLookup[Concat],0))","v":{"$error":"#N/A"}},{"$f":"IF(tblREGASSJune19[[#This Row],[Total ($000)]]=0,\"NO\",IF(ISNA(tblREGASSJune19[[#This Row],[FUNC]]),\"YES\",IF(_xlfn.ISFORMULA(tblREGASSJune19[[#This Row],[FUNC]]),\"NO\",\"YES\")))","v":"NO"}]
[{"$f":"CONCATENATE(tblREGASSJune19[[#This Row],[Primary Account]],tblREGASSJune19[[#This Row],[Primary Name]],tblREGASSJune19[[#This Row],[Secondary Acct]],tblREGASSJune19[[#This Row],[Secondary  Name]],tblREGASSJune19[[#This Row],[Alloc4FUNC]])","v":"1823920DSR COSTS AMORTIZED101181IND FINANSWER   92SITUS"},1823920,"DSR COSTS AMORTIZED",101181,"IND FINANSWER   92","UT",0,{"$f":"IF(OR(tblREGASSJune19[[#This Row],[Alloc]]=\"IDU\",tblREGASSJune19[[#This Row],[Alloc]]=\"OR\",tblREGASSJune19[[#This Row],[Alloc]]=\"UT\",tblREGASSJune19[[#This Row],[Alloc]]=\"WYU\",tblREGASSJune19[[#This Row],[Alloc]]=\"WYP\",tblREGASSJune19[[#This Row],[Alloc]]=\"CA\",tblREGASSJune19[[#This Row],[Alloc]]=\"WA\"),\"SITUS\",tblREGASSJune19[[#This Row],[Alloc]])","v":"SITUS"},{"$f":"INDEX(tblREGASSLookup[FUNC],MATCH(tblREGASSJune19[[#This Row],[Concat]],tblREGASSLookup[Concat],0))","v":{"$error":"#N/A"}},{"$f":"IF(tblREGASSJune19[[#This Row],[Total ($000)]]=0,\"NO\",IF(ISNA(tblREGASSJune19[[#This Row],[FUNC]]),\"YES\",IF(_xlfn.ISFORMULA(tblREGASSJune19[[#This Row],[FUNC]]),\"NO\",\"YES\")))","v":"NO"}]
[{"$f":"CONCATENATE(tblREGASSJune19[[#This Row],[Primary Account]],tblREGASSJune19[[#This Row],[Primary Name]],tblREGASSJune19[[#This Row],[Secondary Acct]],tblREGASSJune19[[#This Row],[Secondary  Name]],tblREGASSJune19[[#This Row],[Alloc4FUNC]])","v":"1823920DSR COSTS AMORTIZED101182IND FINANSWER   93SITUS"},1823920,"DSR COSTS AMORTIZED",101182,"IND FINANSWER   93","UT",0,{"$f":"IF(OR(tblREGASSJune19[[#This Row],[Alloc]]=\"IDU\",tblREGASSJune19[[#This Row],[Alloc]]=\"OR\",tblREGASSJune19[[#This Row],[Alloc]]=\"UT\",tblREGASSJune19[[#This Row],[Alloc]]=\"WYU\",tblREGASSJune19[[#This Row],[Alloc]]=\"WYP\",tblREGASSJune19[[#This Row],[Alloc]]=\"CA\",tblREGASSJune19[[#This Row],[Alloc]]=\"WA\"),\"SITUS\",tblREGASSJune19[[#This Row],[Alloc]])","v":"SITUS"},{"$f":"INDEX(tblREGASSLookup[FUNC],MATCH(tblREGASSJune19[[#This Row],[Concat]],tblREGASSLookup[Concat],0))","v":{"$error":"#N/A"}},{"$f":"IF(tblREGASSJune19[[#This Row],[Total ($000)]]=0,\"NO\",IF(ISNA(tblREGASSJune19[[#This Row],[FUNC]]),\"YES\",IF(_xlfn.ISFORMULA(tblREGASSJune19[[#This Row],[FUNC]]),\"NO\",\"YES\")))","v":"NO"}]
[{"$f":"CONCATENATE(tblREGASSJune19[[#This Row],[Primary Account]],tblREGASSJune19[[#This Row],[Primary Name]],tblREGASSJune19[[#This Row],[Secondary Acct]],tblREGASSJune19[[#This Row],[Secondary  Name]],tblREGASSJune19[[#This Row],[Alloc4FUNC]])","v":"1823920DSR COSTS AMORTIZED101183IND FINANSWER   94SITUS"},1823920,"DSR COSTS AMORTIZED",101183,"IND FINANSWER   94","UT",0,{"$f":"IF(OR(tblREGASSJune19[[#This Row],[Alloc]]=\"IDU\",tblREGASSJune19[[#This Row],[Alloc]]=\"OR\",tblREGASSJune19[[#This Row],[Alloc]]=\"UT\",tblREGASSJune19[[#This Row],[Alloc]]=\"WYU\",tblREGASSJune19[[#This Row],[Alloc]]=\"WYP\",tblREGASSJune19[[#This Row],[Alloc]]=\"CA\",tblREGASSJune19[[#This Row],[Alloc]]=\"WA\"),\"SITUS\",tblREGASSJune19[[#This Row],[Alloc]])","v":"SITUS"},{"$f":"INDEX(tblREGASSLookup[FUNC],MATCH(tblREGASSJune19[[#This Row],[Concat]],tblREGASSLookup[Concat],0))","v":{"$error":"#N/A"}},{"$f":"IF(tblREGASSJune19[[#This Row],[Total ($000)]]=0,\"NO\",IF(ISNA(tblREGASSJune19[[#This Row],[FUNC]]),\"YES\",IF(_xlfn.ISFORMULA(tblREGASSJune19[[#This Row],[FUNC]]),\"NO\",\"YES\")))","v":"NO"}]
[{"$f":"CONCATENATE(tblREGASSJune19[[#This Row],[Primary Account]],tblREGASSJune19[[#This Row],[Primary Name]],tblREGASSJune19[[#This Row],[Secondary Acct]],tblREGASSJune19[[#This Row],[Secondary  Name]],tblREGASSJune19[[#This Row],[Alloc4FUNC]])","v":"1823920DSR COSTS AMORTIZED101184IND FINANSWER   95SITUS"},1823920,"DSR COSTS AMORTIZED",101184,"IND FINANSWER   95","UT",0,{"$f":"IF(OR(tblREGASSJune19[[#This Row],[Alloc]]=\"IDU\",tblREGASSJune19[[#This Row],[Alloc]]=\"OR\",tblREGASSJune19[[#This Row],[Alloc]]=\"UT\",tblREGASSJune19[[#This Row],[Alloc]]=\"WYU\",tblREGASSJune19[[#This Row],[Alloc]]=\"WYP\",tblREGASSJune19[[#This Row],[Alloc]]=\"CA\",tblREGASSJune19[[#This Row],[Alloc]]=\"WA\"),\"SITUS\",tblREGASSJune19[[#This Row],[Alloc]])","v":"SITUS"},{"$f":"INDEX(tblREGASSLookup[FUNC],MATCH(tblREGASSJune19[[#This Row],[Concat]],tblREGASSLookup[Concat],0))","v":{"$error":"#N/A"}},{"$f":"IF(tblREGASSJune19[[#This Row],[Total ($000)]]=0,\"NO\",IF(ISNA(tblREGASSJune19[[#This Row],[FUNC]]),\"YES\",IF(_xlfn.ISFORMULA(tblREGASSJune19[[#This Row],[FUNC]]),\"NO\",\"YES\")))","v":"NO"}]
[{"$f":"CONCATENATE(tblREGASSJune19[[#This Row],[Primary Account]],tblREGASSJune19[[#This Row],[Primary Name]],tblREGASSJune19[[#This Row],[Secondary Acct]],tblREGASSJune19[[#This Row],[Secondary  Name]],tblREGASSJune19[[#This Row],[Alloc4FUNC]])","v":"1823920DSR COSTS AMORTIZED101185IND FINANSWER   96SITUS"},1823920,"DSR COSTS AMORTIZED",101185,"IND FINANSWER   96","UT",0,{"$f":"IF(OR(tblREGASSJune19[[#This Row],[Alloc]]=\"IDU\",tblREGASSJune19[[#This Row],[Alloc]]=\"OR\",tblREGASSJune19[[#This Row],[Alloc]]=\"UT\",tblREGASSJune19[[#This Row],[Alloc]]=\"WYU\",tblREGASSJune19[[#This Row],[Alloc]]=\"WYP\",tblREGASSJune19[[#This Row],[Alloc]]=\"CA\",tblREGASSJune19[[#This Row],[Alloc]]=\"WA\"),\"SITUS\",tblREGASSJune19[[#This Row],[Alloc]])","v":"SITUS"},{"$f":"INDEX(tblREGASSLookup[FUNC],MATCH(tblREGASSJune19[[#This Row],[Concat]],tblREGASSLookup[Concat],0))","v":{"$error":"#N/A"}},{"$f":"IF(tblREGASSJune19[[#This Row],[Total ($000)]]=0,\"NO\",IF(ISNA(tblREGASSJune19[[#This Row],[FUNC]]),\"YES\",IF(_xlfn.ISFORMULA(tblREGASSJune19[[#This Row],[FUNC]]),\"NO\",\"YES\")))","v":"NO"}]
[{"$f":"CONCATENATE(tblREGASSJune19[[#This Row],[Primary Account]],tblREGASSJune19[[#This Row],[Primary Name]],tblREGASSJune19[[#This Row],[Secondary Acct]],tblREGASSJune19[[#This Row],[Secondary  Name]],tblREGASSJune19[[#This Row],[Alloc4FUNC]])","v":"1823920DSR COSTS AMORTIZED101186SUPERFUND       91SITUS"},1823920,"DSR COSTS AMORTIZED",101186,"SUPERFUND       91","UT",0,{"$f":"IF(OR(tblREGASSJune19[[#This Row],[Alloc]]=\"IDU\",tblREGASSJune19[[#This Row],[Alloc]]=\"OR\",tblREGASSJune19[[#This Row],[Alloc]]=\"UT\",tblREGASSJune19[[#This Row],[Alloc]]=\"WYU\",tblREGASSJune19[[#This Row],[Alloc]]=\"WYP\",tblREGASSJune19[[#This Row],[Alloc]]=\"CA\",tblREGASSJune19[[#This Row],[Alloc]]=\"WA\"),\"SITUS\",tblREGASSJune19[[#This Row],[Alloc]])","v":"SITUS"},{"$f":"INDEX(tblREGASSLookup[FUNC],MATCH(tblREGASSJune19[[#This Row],[Concat]],tblREGASSLookup[Concat],0))","v":{"$error":"#N/A"}},{"$f":"IF(tblREGASSJune19[[#This Row],[Total ($000)]]=0,\"NO\",IF(ISNA(tblREGASSJune19[[#This Row],[FUNC]]),\"YES\",IF(_xlfn.ISFORMULA(tblREGASSJune19[[#This Row],[FUNC]]),\"NO\",\"YES\")))","v":"NO"}]
[{"$f":"CONCATENATE(tblREGASSJune19[[#This Row],[Primary Account]],tblREGASSJune19[[#This Row],[Primary Name]],tblREGASSJune19[[#This Row],[Secondary Acct]],tblREGASSJune19[[#This Row],[Secondary  Name]],tblREGASSJune19[[#This Row],[Alloc4FUNC]])","v":"1823920DSR COSTS AMORTIZED101187COMM BUILDING   92SITUS"},1823920,"DSR COSTS AMORTIZED",101187,"COMM BUILDING   92","UT",0,{"$f":"IF(OR(tblREGASSJune19[[#This Row],[Alloc]]=\"IDU\",tblREGASSJune19[[#This Row],[Alloc]]=\"OR\",tblREGASSJune19[[#This Row],[Alloc]]=\"UT\",tblREGASSJune19[[#This Row],[Alloc]]=\"WYU\",tblREGASSJune19[[#This Row],[Alloc]]=\"WYP\",tblREGASSJune19[[#This Row],[Alloc]]=\"CA\",tblREGASSJune19[[#This Row],[Alloc]]=\"WA\"),\"SITUS\",tblREGASSJune19[[#This Row],[Alloc]])","v":"SITUS"},{"$f":"INDEX(tblREGASSLookup[FUNC],MATCH(tblREGASSJune19[[#This Row],[Concat]],tblREGASSLookup[Concat],0))","v":{"$error":"#N/A"}},{"$f":"IF(tblREGASSJune19[[#This Row],[Total ($000)]]=0,\"NO\",IF(ISNA(tblREGASSJune19[[#This Row],[FUNC]]),\"YES\",IF(_xlfn.ISFORMULA(tblREGASSJune19[[#This Row],[FUNC]]),\"NO\",\"YES\")))","v":"NO"}]
[{"$f":"CONCATENATE(tblREGASSJune19[[#This Row],[Primary Account]],tblREGASSJune19[[#This Row],[Primary Name]],tblREGASSJune19[[#This Row],[Secondary Acct]],tblREGASSJune19[[#This Row],[Secondary  Name]],tblREGASSJune19[[#This Row],[Alloc4FUNC]])","v":"1823920DSR COSTS AMORTIZED101188COMM BUILDING   93SITUS"},1823920,"DSR COSTS AMORTIZED",101188,"COMM BUILDING   93","UT",0,{"$f":"IF(OR(tblREGASSJune19[[#This Row],[Alloc]]=\"IDU\",tblREGASSJune19[[#This Row],[Alloc]]=\"OR\",tblREGASSJune19[[#This Row],[Alloc]]=\"UT\",tblREGASSJune19[[#This Row],[Alloc]]=\"WYU\",tblREGASSJune19[[#This Row],[Alloc]]=\"WYP\",tblREGASSJune19[[#This Row],[Alloc]]=\"CA\",tblREGASSJune19[[#This Row],[Alloc]]=\"WA\"),\"SITUS\",tblREGASSJune19[[#This Row],[Alloc]])","v":"SITUS"},{"$f":"INDEX(tblREGASSLookup[FUNC],MATCH(tblREGASSJune19[[#This Row],[Concat]],tblREGASSLookup[Concat],0))","v":{"$error":"#N/A"}},{"$f":"IF(tblREGASSJune19[[#This Row],[Total ($000)]]=0,\"NO\",IF(ISNA(tblREGASSJune19[[#This Row],[FUNC]]),\"YES\",IF(_xlfn.ISFORMULA(tblREGASSJune19[[#This Row],[FUNC]]),\"NO\",\"YES\")))","v":"NO"}]
[{"$f":"CONCATENATE(tblREGASSJune19[[#This Row],[Primary Account]],tblREGASSJune19[[#This Row],[Primary Name]],tblREGASSJune19[[#This Row],[Secondary Acct]],tblREGASSJune19[[#This Row],[Secondary  Name]],tblREGASSJune19[[#This Row],[Alloc4FUNC]])","v":"1823920DSR COSTS AMORTIZED101189COMM BUILDING   94SITUS"},1823920,"DSR COSTS AMORTIZED",101189,"COMM BUILDING   94","UT",0,{"$f":"IF(OR(tblREGASSJune19[[#This Row],[Alloc]]=\"IDU\",tblREGASSJune19[[#This Row],[Alloc]]=\"OR\",tblREGASSJune19[[#This Row],[Alloc]]=\"UT\",tblREGASSJune19[[#This Row],[Alloc]]=\"WYU\",tblREGASSJune19[[#This Row],[Alloc]]=\"WYP\",tblREGASSJune19[[#This Row],[Alloc]]=\"CA\",tblREGASSJune19[[#This Row],[Alloc]]=\"WA\"),\"SITUS\",tblREGASSJune19[[#This Row],[Alloc]])","v":"SITUS"},{"$f":"INDEX(tblREGASSLookup[FUNC],MATCH(tblREGASSJune19[[#This Row],[Concat]],tblREGASSLookup[Concat],0))","v":{"$error":"#N/A"}},{"$f":"IF(tblREGASSJune19[[#This Row],[Total ($000)]]=0,\"NO\",IF(ISNA(tblREGASSJune19[[#This Row],[FUNC]]),\"YES\",IF(_xlfn.ISFORMULA(tblREGASSJune19[[#This Row],[FUNC]]),\"NO\",\"YES\")))","v":"NO"}]
[{"$f":"CONCATENATE(tblREGASSJune19[[#This Row],[Primary Account]],tblREGASSJune19[[#This Row],[Primary Name]],tblREGASSJune19[[#This Row],[Secondary Acct]],tblREGASSJune19[[#This Row],[Secondary  Name]],tblREGASSJune19[[#This Row],[Alloc4FUNC]])","v":"1823920DSR COSTS AMORTIZED101190COMM BUILDING   96SITUS"},1823920,"DSR COSTS AMORTIZED",101190,"COMM BUILDING   96","UT",0,{"$f":"IF(OR(tblREGASSJune19[[#This Row],[Alloc]]=\"IDU\",tblREGASSJune19[[#This Row],[Alloc]]=\"OR\",tblREGASSJune19[[#This Row],[Alloc]]=\"UT\",tblREGASSJune19[[#This Row],[Alloc]]=\"WYU\",tblREGASSJune19[[#This Row],[Alloc]]=\"WYP\",tblREGASSJune19[[#This Row],[Alloc]]=\"CA\",tblREGASSJune19[[#This Row],[Alloc]]=\"WA\"),\"SITUS\",tblREGASSJune19[[#This Row],[Alloc]])","v":"SITUS"},{"$f":"INDEX(tblREGASSLookup[FUNC],MATCH(tblREGASSJune19[[#This Row],[Concat]],tblREGASSLookup[Concat],0))","v":{"$error":"#N/A"}},{"$f":"IF(tblREGASSJune19[[#This Row],[Total ($000)]]=0,\"NO\",IF(ISNA(tblREGASSJune19[[#This Row],[FUNC]]),\"YES\",IF(_xlfn.ISFORMULA(tblREGASSJune19[[#This Row],[FUNC]]),\"NO\",\"YES\")))","v":"NO"}]
[{"$f":"CONCATENATE(tblREGASSJune19[[#This Row],[Primary Account]],tblREGASSJune19[[#This Row],[Primary Name]],tblREGASSJune19[[#This Row],[Secondary Acct]],tblREGASSJune19[[#This Row],[Secondary  Name]],tblREGASSJune19[[#This Row],[Alloc4FUNC]])","v":"1823920DSR COSTS AMORTIZED101194LOW INCOME      94SITUS"},1823920,"DSR COSTS AMORTIZED",101194,"LOW INCOME      94","UT",0,{"$f":"IF(OR(tblREGASSJune19[[#This Row],[Alloc]]=\"IDU\",tblREGASSJune19[[#This Row],[Alloc]]=\"OR\",tblREGASSJune19[[#This Row],[Alloc]]=\"UT\",tblREGASSJune19[[#This Row],[Alloc]]=\"WYU\",tblREGASSJune19[[#This Row],[Alloc]]=\"WYP\",tblREGASSJune19[[#This Row],[Alloc]]=\"CA\",tblREGASSJune19[[#This Row],[Alloc]]=\"WA\"),\"SITUS\",tblREGASSJune19[[#This Row],[Alloc]])","v":"SITUS"},{"$f":"INDEX(tblREGASSLookup[FUNC],MATCH(tblREGASSJune19[[#This Row],[Concat]],tblREGASSLookup[Concat],0))","v":{"$error":"#N/A"}},{"$f":"IF(tblREGASSJune19[[#This Row],[Total ($000)]]=0,\"NO\",IF(ISNA(tblREGASSJune19[[#This Row],[FUNC]]),\"YES\",IF(_xlfn.ISFORMULA(tblREGASSJune19[[#This Row],[FUNC]]),\"NO\",\"YES\")))","v":"NO"}]
[{"$f":"CONCATENATE(tblREGASSJune19[[#This Row],[Primary Account]],tblREGASSJune19[[#This Row],[Primary Name]],tblREGASSJune19[[#This Row],[Secondary Acct]],tblREGASSJune19[[#This Row],[Secondary  Name]],tblREGASSJune19[[#This Row],[Alloc4FUNC]])","v":"1823920DSR COSTS AMORTIZED101195LOW INCOME      95SITUS"},1823920,"DSR COSTS AMORTIZED",101195,"LOW INCOME      95","UT",0,{"$f":"IF(OR(tblREGASSJune19[[#This Row],[Alloc]]=\"IDU\",tblREGASSJune19[[#This Row],[Alloc]]=\"OR\",tblREGASSJune19[[#This Row],[Alloc]]=\"UT\",tblREGASSJune19[[#This Row],[Alloc]]=\"WYU\",tblREGASSJune19[[#This Row],[Alloc]]=\"WYP\",tblREGASSJune19[[#This Row],[Alloc]]=\"CA\",tblREGASSJune19[[#This Row],[Alloc]]=\"WA\"),\"SITUS\",tblREGASSJune19[[#This Row],[Alloc]])","v":"SITUS"},{"$f":"INDEX(tblREGASSLookup[FUNC],MATCH(tblREGASSJune19[[#This Row],[Concat]],tblREGASSLookup[Concat],0))","v":{"$error":"#N/A"}},{"$f":"IF(tblREGASSJune19[[#This Row],[Total ($000)]]=0,\"NO\",IF(ISNA(tblREGASSJune19[[#This Row],[FUNC]]),\"YES\",IF(_xlfn.ISFORMULA(tblREGASSJune19[[#This Row],[FUNC]]),\"NO\",\"YES\")))","v":"NO"}]
[{"$f":"CONCATENATE(tblREGASSJune19[[#This Row],[Primary Account]],tblREGASSJune19[[#This Row],[Primary Name]],tblREGASSJune19[[#This Row],[Secondary Acct]],tblREGASSJune19[[#This Row],[Secondary  Name]],tblREGASSJune19[[#This Row],[Alloc4FUNC]])","v":"1823920DSR COSTS AMORTIZED101196LOW INCOME      96SITUS"},1823920,"DSR COSTS AMORTIZED",101196,"LOW INCOME      96","UT",0,{"$f":"IF(OR(tblREGASSJune19[[#This Row],[Alloc]]=\"IDU\",tblREGASSJune19[[#This Row],[Alloc]]=\"OR\",tblREGASSJune19[[#This Row],[Alloc]]=\"UT\",tblREGASSJune19[[#This Row],[Alloc]]=\"WYU\",tblREGASSJune19[[#This Row],[Alloc]]=\"WYP\",tblREGASSJune19[[#This Row],[Alloc]]=\"CA\",tblREGASSJune19[[#This Row],[Alloc]]=\"WA\"),\"SITUS\",tblREGASSJune19[[#This Row],[Alloc]])","v":"SITUS"},{"$f":"INDEX(tblREGASSLookup[FUNC],MATCH(tblREGASSJune19[[#This Row],[Concat]],tblREGASSLookup[Concat],0))","v":{"$error":"#N/A"}},{"$f":"IF(tblREGASSJune19[[#This Row],[Total ($000)]]=0,\"NO\",IF(ISNA(tblREGASSJune19[[#This Row],[FUNC]]),\"YES\",IF(_xlfn.ISFORMULA(tblREGASSJune19[[#This Row],[FUNC]]),\"NO\",\"YES\")))","v":"NO"}]
[{"$f":"CONCATENATE(tblREGASSJune19[[#This Row],[Primary Account]],tblREGASSJune19[[#This Row],[Primary Name]],tblREGASSJune19[[#This Row],[Secondary Acct]],tblREGASSJune19[[#This Row],[Secondary  Name]],tblREGASSJune19[[#This Row],[Alloc4FUNC]])","v":"1823920DSR COSTS AMORTIZED101198RFP CES/WAY     94SITUS"},1823920,"DSR COSTS AMORTIZED",101198,"RFP CES/WAY     94","UT",0,{"$f":"IF(OR(tblREGASSJune19[[#This Row],[Alloc]]=\"IDU\",tblREGASSJune19[[#This Row],[Alloc]]=\"OR\",tblREGASSJune19[[#This Row],[Alloc]]=\"UT\",tblREGASSJune19[[#This Row],[Alloc]]=\"WYU\",tblREGASSJune19[[#This Row],[Alloc]]=\"WYP\",tblREGASSJune19[[#This Row],[Alloc]]=\"CA\",tblREGASSJune19[[#This Row],[Alloc]]=\"WA\"),\"SITUS\",tblREGASSJune19[[#This Row],[Alloc]])","v":"SITUS"},{"$f":"INDEX(tblREGASSLookup[FUNC],MATCH(tblREGASSJune19[[#This Row],[Concat]],tblREGASSLookup[Concat],0))","v":{"$error":"#N/A"}},{"$f":"IF(tblREGASSJune19[[#This Row],[Total ($000)]]=0,\"NO\",IF(ISNA(tblREGASSJune19[[#This Row],[FUNC]]),\"YES\",IF(_xlfn.ISFORMULA(tblREGASSJune19[[#This Row],[FUNC]]),\"NO\",\"YES\")))","v":"NO"}]
[{"$f":"CONCATENATE(tblREGASSJune19[[#This Row],[Primary Account]],tblREGASSJune19[[#This Row],[Primary Name]],tblREGASSJune19[[#This Row],[Secondary Acct]],tblREGASSJune19[[#This Row],[Secondary  Name]],tblREGASSJune19[[#This Row],[Alloc4FUNC]])","v":"1823920DSR COSTS AMORTIZED101199RFP CES/WAY     95SITUS"},1823920,"DSR COSTS AMORTIZED",101199,"RFP CES/WAY     95","UT",0,{"$f":"IF(OR(tblREGASSJune19[[#This Row],[Alloc]]=\"IDU\",tblREGASSJune19[[#This Row],[Alloc]]=\"OR\",tblREGASSJune19[[#This Row],[Alloc]]=\"UT\",tblREGASSJune19[[#This Row],[Alloc]]=\"WYU\",tblREGASSJune19[[#This Row],[Alloc]]=\"WYP\",tblREGASSJune19[[#This Row],[Alloc]]=\"CA\",tblREGASSJune19[[#This Row],[Alloc]]=\"WA\"),\"SITUS\",tblREGASSJune19[[#This Row],[Alloc]])","v":"SITUS"},{"$f":"INDEX(tblREGASSLookup[FUNC],MATCH(tblREGASSJune19[[#This Row],[Concat]],tblREGASSLookup[Concat],0))","v":{"$error":"#N/A"}},{"$f":"IF(tblREGASSJune19[[#This Row],[Total ($000)]]=0,\"NO\",IF(ISNA(tblREGASSJune19[[#This Row],[FUNC]]),\"YES\",IF(_xlfn.ISFORMULA(tblREGASSJune19[[#This Row],[FUNC]]),\"NO\",\"YES\")))","v":"NO"}]
[{"$f":"CONCATENATE(tblREGASSJune19[[#This Row],[Primary Account]],tblREGASSJune19[[#This Row],[Primary Name]],tblREGASSJune19[[#This Row],[Secondary Acct]],tblREGASSJune19[[#This Row],[Secondary  Name]],tblREGASSJune19[[#This Row],[Alloc4FUNC]])","v":"1823920DSR COSTS AMORTIZED101200RFP CES/WAY     96SITUS"},1823920,"DSR COSTS AMORTIZED",101200,"RFP CES/WAY     96","UT",0,{"$f":"IF(OR(tblREGASSJune19[[#This Row],[Alloc]]=\"IDU\",tblREGASSJune19[[#This Row],[Alloc]]=\"OR\",tblREGASSJune19[[#This Row],[Alloc]]=\"UT\",tblREGASSJune19[[#This Row],[Alloc]]=\"WYU\",tblREGASSJune19[[#This Row],[Alloc]]=\"WYP\",tblREGASSJune19[[#This Row],[Alloc]]=\"CA\",tblREGASSJune19[[#This Row],[Alloc]]=\"WA\"),\"SITUS\",tblREGASSJune19[[#This Row],[Alloc]])","v":"SITUS"},{"$f":"INDEX(tblREGASSLookup[FUNC],MATCH(tblREGASSJune19[[#This Row],[Concat]],tblREGASSLookup[Concat],0))","v":{"$error":"#N/A"}},{"$f":"IF(tblREGASSJune19[[#This Row],[Total ($000)]]=0,\"NO\",IF(ISNA(tblREGASSJune19[[#This Row],[FUNC]]),\"YES\",IF(_xlfn.ISFORMULA(tblREGASSJune19[[#This Row],[FUNC]]),\"NO\",\"YES\")))","v":"NO"}]
[{"$f":"CONCATENATE(tblREGASSJune19[[#This Row],[Primary Account]],tblREGASSJune19[[#This Row],[Primary Name]],tblREGASSJune19[[#This Row],[Secondary Acct]],tblREGASSJune19[[#This Row],[Secondary  Name]],tblREGASSJune19[[#This Row],[Alloc4FUNC]])","v":"1823920DSR COSTS AMORTIZED101202MAJOR CUSTOMERS 94SITUS"},1823920,"DSR COSTS AMORTIZED",101202,"MAJOR CUSTOMERS 94","UT",0,{"$f":"IF(OR(tblREGASSJune19[[#This Row],[Alloc]]=\"IDU\",tblREGASSJune19[[#This Row],[Alloc]]=\"OR\",tblREGASSJune19[[#This Row],[Alloc]]=\"UT\",tblREGASSJune19[[#This Row],[Alloc]]=\"WYU\",tblREGASSJune19[[#This Row],[Alloc]]=\"WYP\",tblREGASSJune19[[#This Row],[Alloc]]=\"CA\",tblREGASSJune19[[#This Row],[Alloc]]=\"WA\"),\"SITUS\",tblREGASSJune19[[#This Row],[Alloc]])","v":"SITUS"},{"$f":"INDEX(tblREGASSLookup[FUNC],MATCH(tblREGASSJune19[[#This Row],[Concat]],tblREGASSLookup[Concat],0))","v":{"$error":"#N/A"}},{"$f":"IF(tblREGASSJune19[[#This Row],[Total ($000)]]=0,\"NO\",IF(ISNA(tblREGASSJune19[[#This Row],[FUNC]]),\"YES\",IF(_xlfn.ISFORMULA(tblREGASSJune19[[#This Row],[FUNC]]),\"NO\",\"YES\")))","v":"NO"}]
[{"$f":"CONCATENATE(tblREGASSJune19[[#This Row],[Primary Account]],tblREGASSJune19[[#This Row],[Primary Name]],tblREGASSJune19[[#This Row],[Secondary Acct]],tblREGASSJune19[[#This Row],[Secondary  Name]],tblREGASSJune19[[#This Row],[Alloc4FUNC]])","v":"1823920DSR COSTS AMORTIZED101203MAJOR CUSTOMERS 95SITUS"},1823920,"DSR COSTS AMORTIZED",101203,"MAJOR CUSTOMERS 95","UT",0,{"$f":"IF(OR(tblREGASSJune19[[#This Row],[Alloc]]=\"IDU\",tblREGASSJune19[[#This Row],[Alloc]]=\"OR\",tblREGASSJune19[[#This Row],[Alloc]]=\"UT\",tblREGASSJune19[[#This Row],[Alloc]]=\"WYU\",tblREGASSJune19[[#This Row],[Alloc]]=\"WYP\",tblREGASSJune19[[#This Row],[Alloc]]=\"CA\",tblREGASSJune19[[#This Row],[Alloc]]=\"WA\"),\"SITUS\",tblREGASSJune19[[#This Row],[Alloc]])","v":"SITUS"},{"$f":"INDEX(tblREGASSLookup[FUNC],MATCH(tblREGASSJune19[[#This Row],[Concat]],tblREGASSLookup[Concat],0))","v":{"$error":"#N/A"}},{"$f":"IF(tblREGASSJune19[[#This Row],[Total ($000)]]=0,\"NO\",IF(ISNA(tblREGASSJune19[[#This Row],[FUNC]]),\"YES\",IF(_xlfn.ISFORMULA(tblREGASSJune19[[#This Row],[FUNC]]),\"NO\",\"YES\")))","v":"NO"}]
[{"$f":"CONCATENATE(tblREGASSJune19[[#This Row],[Primary Account]],tblREGASSJune19[[#This Row],[Primary Name]],tblREGASSJune19[[#This Row],[Secondary Acct]],tblREGASSJune19[[#This Row],[Secondary  Name]],tblREGASSJune19[[#This Row],[Alloc4FUNC]])","v":"1823920DSR COSTS AMORTIZED101204MAJOR CUSTOMERS 96SITUS"},1823920,"DSR COSTS AMORTIZED",101204,"MAJOR CUSTOMERS 96","UT",0,{"$f":"IF(OR(tblREGASSJune19[[#This Row],[Alloc]]=\"IDU\",tblREGASSJune19[[#This Row],[Alloc]]=\"OR\",tblREGASSJune19[[#This Row],[Alloc]]=\"UT\",tblREGASSJune19[[#This Row],[Alloc]]=\"WYU\",tblREGASSJune19[[#This Row],[Alloc]]=\"WYP\",tblREGASSJune19[[#This Row],[Alloc]]=\"CA\",tblREGASSJune19[[#This Row],[Alloc]]=\"WA\"),\"SITUS\",tblREGASSJune19[[#This Row],[Alloc]])","v":"SITUS"},{"$f":"INDEX(tblREGASSLookup[FUNC],MATCH(tblREGASSJune19[[#This Row],[Concat]],tblREGASSLookup[Concat],0))","v":{"$error":"#N/A"}},{"$f":"IF(tblREGASSJune19[[#This Row],[Total ($000)]]=0,\"NO\",IF(ISNA(tblREGASSJune19[[#This Row],[FUNC]]),\"YES\",IF(_xlfn.ISFORMULA(tblREGASSJune19[[#This Row],[FUNC]]),\"NO\",\"YES\")))","v":"NO"}]
[{"$f":"CONCATENATE(tblREGASSJune19[[#This Row],[Primary Account]],tblREGASSJune19[[#This Row],[Primary Name]],tblREGASSJune19[[#This Row],[Secondary Acct]],tblREGASSJune19[[#This Row],[Secondary  Name]],tblREGASSJune19[[#This Row],[Alloc4FUNC]])","v":"1823920DSR COSTS AMORTIZED101206COMMERCIAL CODES95SITUS"},1823920,"DSR COSTS AMORTIZED",101206,"COMMERCIAL CODES95","UT",0,{"$f":"IF(OR(tblREGASSJune19[[#This Row],[Alloc]]=\"IDU\",tblREGASSJune19[[#This Row],[Alloc]]=\"OR\",tblREGASSJune19[[#This Row],[Alloc]]=\"UT\",tblREGASSJune19[[#This Row],[Alloc]]=\"WYU\",tblREGASSJune19[[#This Row],[Alloc]]=\"WYP\",tblREGASSJune19[[#This Row],[Alloc]]=\"CA\",tblREGASSJune19[[#This Row],[Alloc]]=\"WA\"),\"SITUS\",tblREGASSJune19[[#This Row],[Alloc]])","v":"SITUS"},{"$f":"INDEX(tblREGASSLookup[FUNC],MATCH(tblREGASSJune19[[#This Row],[Concat]],tblREGASSLookup[Concat],0))","v":{"$error":"#N/A"}},{"$f":"IF(tblREGASSJune19[[#This Row],[Total ($000)]]=0,\"NO\",IF(ISNA(tblREGASSJune19[[#This Row],[FUNC]]),\"YES\",IF(_xlfn.ISFORMULA(tblREGASSJune19[[#This Row],[FUNC]]),\"NO\",\"YES\")))","v":"NO"}]
[{"$f":"CONCATENATE(tblREGASSJune19[[#This Row],[Primary Account]],tblREGASSJune19[[#This Row],[Primary Name]],tblREGASSJune19[[#This Row],[Secondary Acct]],tblREGASSJune19[[#This Row],[Secondary  Name]],tblREGASSJune19[[#This Row],[Alloc4FUNC]])","v":"1823920DSR COSTS AMORTIZED101207SCHEDULE 5      94SITUS"},1823920,"DSR COSTS AMORTIZED",101207,"SCHEDULE 5      94","UT",0,{"$f":"IF(OR(tblREGASSJune19[[#This Row],[Alloc]]=\"IDU\",tblREGASSJune19[[#This Row],[Alloc]]=\"OR\",tblREGASSJune19[[#This Row],[Alloc]]=\"UT\",tblREGASSJune19[[#This Row],[Alloc]]=\"WYU\",tblREGASSJune19[[#This Row],[Alloc]]=\"WYP\",tblREGASSJune19[[#This Row],[Alloc]]=\"CA\",tblREGASSJune19[[#This Row],[Alloc]]=\"WA\"),\"SITUS\",tblREGASSJune19[[#This Row],[Alloc]])","v":"SITUS"},{"$f":"INDEX(tblREGASSLookup[FUNC],MATCH(tblREGASSJune19[[#This Row],[Concat]],tblREGASSLookup[Concat],0))","v":{"$error":"#N/A"}},{"$f":"IF(tblREGASSJune19[[#This Row],[Total ($000)]]=0,\"NO\",IF(ISNA(tblREGASSJune19[[#This Row],[FUNC]]),\"YES\",IF(_xlfn.ISFORMULA(tblREGASSJune19[[#This Row],[FUNC]]),\"NO\",\"YES\")))","v":"NO"}]
[{"$f":"CONCATENATE(tblREGASSJune19[[#This Row],[Primary Account]],tblREGASSJune19[[#This Row],[Primary Name]],tblREGASSJune19[[#This Row],[Secondary Acct]],tblREGASSJune19[[#This Row],[Secondary  Name]],tblREGASSJune19[[#This Row],[Alloc4FUNC]])","v":"1823920DSR COSTS AMORTIZED101208SCHEDULE 5      95SITUS"},1823920,"DSR COSTS AMORTIZED",101208,"SCHEDULE 5      95","UT",0,{"$f":"IF(OR(tblREGASSJune19[[#This Row],[Alloc]]=\"IDU\",tblREGASSJune19[[#This Row],[Alloc]]=\"OR\",tblREGASSJune19[[#This Row],[Alloc]]=\"UT\",tblREGASSJune19[[#This Row],[Alloc]]=\"WYU\",tblREGASSJune19[[#This Row],[Alloc]]=\"WYP\",tblREGASSJune19[[#This Row],[Alloc]]=\"CA\",tblREGASSJune19[[#This Row],[Alloc]]=\"WA\"),\"SITUS\",tblREGASSJune19[[#This Row],[Alloc]])","v":"SITUS"},{"$f":"INDEX(tblREGASSLookup[FUNC],MATCH(tblREGASSJune19[[#This Row],[Concat]],tblREGASSLookup[Concat],0))","v":{"$error":"#N/A"}},{"$f":"IF(tblREGASSJune19[[#This Row],[Total ($000)]]=0,\"NO\",IF(ISNA(tblREGASSJune19[[#This Row],[FUNC]]),\"YES\",IF(_xlfn.ISFORMULA(tblREGASSJune19[[#This Row],[FUNC]]),\"NO\",\"YES\")))","v":"NO"}]
[{"$f":"CONCATENATE(tblREGASSJune19[[#This Row],[Primary Account]],tblREGASSJune19[[#This Row],[Primary Name]],tblREGASSJune19[[#This Row],[Secondary Acct]],tblREGASSJune19[[#This Row],[Secondary  Name]],tblREGASSJune19[[#This Row],[Alloc4FUNC]])","v":"1823920DSR COSTS AMORTIZED101210\"RFP LOW INCOME, UT 1996\"SITUS"},1823920,"DSR COSTS AMORTIZED",101210,"\"RFP LOW INCOME, UT 1996\"","UT",0,{"$f":"IF(OR(tblREGASSJune19[[#This Row],[Alloc]]=\"IDU\",tblREGASSJune19[[#This Row],[Alloc]]=\"OR\",tblREGASSJune19[[#This Row],[Alloc]]=\"UT\",tblREGASSJune19[[#This Row],[Alloc]]=\"WYU\",tblREGASSJune19[[#This Row],[Alloc]]=\"WYP\",tblREGASSJune19[[#This Row],[Alloc]]=\"CA\",tblREGASSJune19[[#This Row],[Alloc]]=\"WA\"),\"SITUS\",tblREGASSJune19[[#This Row],[Alloc]])","v":"SITUS"},{"$f":"INDEX(tblREGASSLookup[FUNC],MATCH(tblREGASSJune19[[#This Row],[Concat]],tblREGASSLookup[Concat],0))","v":{"$error":"#N/A"}},{"$f":"IF(tblREGASSJune19[[#This Row],[Total ($000)]]=0,\"NO\",IF(ISNA(tblREGASSJune19[[#This Row],[FUNC]]),\"YES\",IF(_xlfn.ISFORMULA(tblREGASSJune19[[#This Row],[FUNC]]),\"NO\",\"YES\")))","v":"NO"}]
[{"$f":"CONCATENATE(tblREGASSJune19[[#This Row],[Primary Account]],tblREGASSJune19[[#This Row],[Primary Name]],tblREGASSJune19[[#This Row],[Secondary Acct]],tblREGASSJune19[[#This Row],[Secondary  Name]],tblREGASSJune19[[#This Row],[Alloc4FUNC]])","v":"1823920DSR COSTS AMORTIZED101213ENERGY FINANSWER91SITUS"},1823920,"DSR COSTS AMORTIZED",101213,"ENERGY FINANSWER91","UT",0,{"$f":"IF(OR(tblREGASSJune19[[#This Row],[Alloc]]=\"IDU\",tblREGASSJune19[[#This Row],[Alloc]]=\"OR\",tblREGASSJune19[[#This Row],[Alloc]]=\"UT\",tblREGASSJune19[[#This Row],[Alloc]]=\"WYU\",tblREGASSJune19[[#This Row],[Alloc]]=\"WYP\",tblREGASSJune19[[#This Row],[Alloc]]=\"CA\",tblREGASSJune19[[#This Row],[Alloc]]=\"WA\"),\"SITUS\",tblREGASSJune19[[#This Row],[Alloc]])","v":"SITUS"},{"$f":"INDEX(tblREGASSLookup[FUNC],MATCH(tblREGASSJune19[[#This Row],[Concat]],tblREGASSLookup[Concat],0))","v":{"$error":"#N/A"}},{"$f":"IF(tblREGASSJune19[[#This Row],[Total ($000)]]=0,\"NO\",IF(ISNA(tblREGASSJune19[[#This Row],[FUNC]]),\"YES\",IF(_xlfn.ISFORMULA(tblREGASSJune19[[#This Row],[FUNC]]),\"NO\",\"YES\")))","v":"NO"}]
[{"$f":"CONCATENATE(tblREGASSJune19[[#This Row],[Primary Account]],tblREGASSJune19[[#This Row],[Primary Name]],tblREGASSJune19[[#This Row],[Secondary Acct]],tblREGASSJune19[[#This Row],[Secondary  Name]],tblREGASSJune19[[#This Row],[Alloc4FUNC]])","v":"1823920DSR COSTS AMORTIZED101214ENERGY FINANSWER92SITUS"},1823920,"DSR COSTS AMORTIZED",101214,"ENERGY FINANSWER92","UT",0,{"$f":"IF(OR(tblREGASSJune19[[#This Row],[Alloc]]=\"IDU\",tblREGASSJune19[[#This Row],[Alloc]]=\"OR\",tblREGASSJune19[[#This Row],[Alloc]]=\"UT\",tblREGASSJune19[[#This Row],[Alloc]]=\"WYU\",tblREGASSJune19[[#This Row],[Alloc]]=\"WYP\",tblREGASSJune19[[#This Row],[Alloc]]=\"CA\",tblREGASSJune19[[#This Row],[Alloc]]=\"WA\"),\"SITUS\",tblREGASSJune19[[#This Row],[Alloc]])","v":"SITUS"},{"$f":"INDEX(tblREGASSLookup[FUNC],MATCH(tblREGASSJune19[[#This Row],[Concat]],tblREGASSLookup[Concat],0))","v":{"$error":"#N/A"}},{"$f":"IF(tblREGASSJune19[[#This Row],[Total ($000)]]=0,\"NO\",IF(ISNA(tblREGASSJune19[[#This Row],[FUNC]]),\"YES\",IF(_xlfn.ISFORMULA(tblREGASSJune19[[#This Row],[FUNC]]),\"NO\",\"YES\")))","v":"NO"}]
[{"$f":"CONCATENATE(tblREGASSJune19[[#This Row],[Primary Account]],tblREGASSJune19[[#This Row],[Primary Name]],tblREGASSJune19[[#This Row],[Secondary Acct]],tblREGASSJune19[[#This Row],[Secondary  Name]],tblREGASSJune19[[#This Row],[Alloc4FUNC]])","v":"1823920DSR COSTS AMORTIZED101215ENERGY FINANSWER93SITUS"},1823920,"DSR COSTS AMORTIZED",101215,"ENERGY FINANSWER93","UT",0,{"$f":"IF(OR(tblREGASSJune19[[#This Row],[Alloc]]=\"IDU\",tblREGASSJune19[[#This Row],[Alloc]]=\"OR\",tblREGASSJune19[[#This Row],[Alloc]]=\"UT\",tblREGASSJune19[[#This Row],[Alloc]]=\"WYU\",tblREGASSJune19[[#This Row],[Alloc]]=\"WYP\",tblREGASSJune19[[#This Row],[Alloc]]=\"CA\",tblREGASSJune19[[#This Row],[Alloc]]=\"WA\"),\"SITUS\",tblREGASSJune19[[#This Row],[Alloc]])","v":"SITUS"},{"$f":"INDEX(tblREGASSLookup[FUNC],MATCH(tblREGASSJune19[[#This Row],[Concat]],tblREGASSLookup[Concat],0))","v":{"$error":"#N/A"}},{"$f":"IF(tblREGASSJune19[[#This Row],[Total ($000)]]=0,\"NO\",IF(ISNA(tblREGASSJune19[[#This Row],[FUNC]]),\"YES\",IF(_xlfn.ISFORMULA(tblREGASSJune19[[#This Row],[FUNC]]),\"NO\",\"YES\")))","v":"NO"}]
[{"$f":"CONCATENATE(tblREGASSJune19[[#This Row],[Primary Account]],tblREGASSJune19[[#This Row],[Primary Name]],tblREGASSJune19[[#This Row],[Secondary Acct]],tblREGASSJune19[[#This Row],[Secondary  Name]],tblREGASSJune19[[#This Row],[Alloc4FUNC]])","v":"1823920DSR COSTS AMORTIZED101216ENERGY FINANSWER - UT 1994SITUS"},1823920,"DSR COSTS AMORTIZED",101216,"ENERGY FINANSWER - UT 1994","UT",0,{"$f":"IF(OR(tblREGASSJune19[[#This Row],[Alloc]]=\"IDU\",tblREGASSJune19[[#This Row],[Alloc]]=\"OR\",tblREGASSJune19[[#This Row],[Alloc]]=\"UT\",tblREGASSJune19[[#This Row],[Alloc]]=\"WYU\",tblREGASSJune19[[#This Row],[Alloc]]=\"WYP\",tblREGASSJune19[[#This Row],[Alloc]]=\"CA\",tblREGASSJune19[[#This Row],[Alloc]]=\"WA\"),\"SITUS\",tblREGASSJune19[[#This Row],[Alloc]])","v":"SITUS"},{"$f":"INDEX(tblREGASSLookup[FUNC],MATCH(tblREGASSJune19[[#This Row],[Concat]],tblREGASSLookup[Concat],0))","v":{"$error":"#N/A"}},{"$f":"IF(tblREGASSJune19[[#This Row],[Total ($000)]]=0,\"NO\",IF(ISNA(tblREGASSJune19[[#This Row],[FUNC]]),\"YES\",IF(_xlfn.ISFORMULA(tblREGASSJune19[[#This Row],[FUNC]]),\"NO\",\"YES\")))","v":"NO"}]
[{"$f":"CONCATENATE(tblREGASSJune19[[#This Row],[Primary Account]],tblREGASSJune19[[#This Row],[Primary Name]],tblREGASSJune19[[#This Row],[Secondary Acct]],tblREGASSJune19[[#This Row],[Secondary  Name]],tblREGASSJune19[[#This Row],[Alloc4FUNC]])","v":"1823920DSR COSTS AMORTIZED101217ENERGY FINANSWER - UT 1995SITUS"},1823920,"DSR COSTS AMORTIZED",101217,"ENERGY FINANSWER - UT 1995","UT",0,{"$f":"IF(OR(tblREGASSJune19[[#This Row],[Alloc]]=\"IDU\",tblREGASSJune19[[#This Row],[Alloc]]=\"OR\",tblREGASSJune19[[#This Row],[Alloc]]=\"UT\",tblREGASSJune19[[#This Row],[Alloc]]=\"WYU\",tblREGASSJune19[[#This Row],[Alloc]]=\"WYP\",tblREGASSJune19[[#This Row],[Alloc]]=\"CA\",tblREGASSJune19[[#This Row],[Alloc]]=\"WA\"),\"SITUS\",tblREGASSJune19[[#This Row],[Alloc]])","v":"SITUS"},{"$f":"INDEX(tblREGASSLookup[FUNC],MATCH(tblREGASSJune19[[#This Row],[Concat]],tblREGASSLookup[Concat],0))","v":{"$error":"#N/A"}},{"$f":"IF(tblREGASSJune19[[#This Row],[Total ($000)]]=0,\"NO\",IF(ISNA(tblREGASSJune19[[#This Row],[FUNC]]),\"YES\",IF(_xlfn.ISFORMULA(tblREGASSJune19[[#This Row],[FUNC]]),\"NO\",\"YES\")))","v":"NO"}]
[{"$f":"CONCATENATE(tblREGASSJune19[[#This Row],[Primary Account]],tblREGASSJune19[[#This Row],[Primary Name]],tblREGASSJune19[[#This Row],[Secondary Acct]],tblREGASSJune19[[#This Row],[Secondary  Name]],tblREGASSJune19[[#This Row],[Alloc4FUNC]])","v":"1823920DSR COSTS AMORTIZED101221COMM COMPETITIVE93SITUS"},1823920,"DSR COSTS AMORTIZED",101221,"COMM COMPETITIVE93","UT",0,{"$f":"IF(OR(tblREGASSJune19[[#This Row],[Alloc]]=\"IDU\",tblREGASSJune19[[#This Row],[Alloc]]=\"OR\",tblREGASSJune19[[#This Row],[Alloc]]=\"UT\",tblREGASSJune19[[#This Row],[Alloc]]=\"WYU\",tblREGASSJune19[[#This Row],[Alloc]]=\"WYP\",tblREGASSJune19[[#This Row],[Alloc]]=\"CA\",tblREGASSJune19[[#This Row],[Alloc]]=\"WA\"),\"SITUS\",tblREGASSJune19[[#This Row],[Alloc]])","v":"SITUS"},{"$f":"INDEX(tblREGASSLookup[FUNC],MATCH(tblREGASSJune19[[#This Row],[Concat]],tblREGASSLookup[Concat],0))","v":{"$error":"#N/A"}},{"$f":"IF(tblREGASSJune19[[#This Row],[Total ($000)]]=0,\"NO\",IF(ISNA(tblREGASSJune19[[#This Row],[FUNC]]),\"YES\",IF(_xlfn.ISFORMULA(tblREGASSJune19[[#This Row],[FUNC]]),\"NO\",\"YES\")))","v":"NO"}]
[{"$f":"CONCATENATE(tblREGASSJune19[[#This Row],[Primary Account]],tblREGASSJune19[[#This Row],[Primary Name]],tblREGASSJune19[[#This Row],[Secondary Acct]],tblREGASSJune19[[#This Row],[Secondary  Name]],tblREGASSJune19[[#This Row],[Alloc4FUNC]])","v":"1823920DSR COSTS AMORTIZED101222COMM RETROFIT   93SITUS"},1823920,"DSR COSTS AMORTIZED",101222,"COMM RETROFIT   93","UT",0,{"$f":"IF(OR(tblREGASSJune19[[#This Row],[Alloc]]=\"IDU\",tblREGASSJune19[[#This Row],[Alloc]]=\"OR\",tblREGASSJune19[[#This Row],[Alloc]]=\"UT\",tblREGASSJune19[[#This Row],[Alloc]]=\"WYU\",tblREGASSJune19[[#This Row],[Alloc]]=\"WYP\",tblREGASSJune19[[#This Row],[Alloc]]=\"CA\",tblREGASSJune19[[#This Row],[Alloc]]=\"WA\"),\"SITUS\",tblREGASSJune19[[#This Row],[Alloc]])","v":"SITUS"},{"$f":"INDEX(tblREGASSLookup[FUNC],MATCH(tblREGASSJune19[[#This Row],[Concat]],tblREGASSLookup[Concat],0))","v":{"$error":"#N/A"}},{"$f":"IF(tblREGASSJune19[[#This Row],[Total ($000)]]=0,\"NO\",IF(ISNA(tblREGASSJune19[[#This Row],[FUNC]]),\"YES\",IF(_xlfn.ISFORMULA(tblREGASSJune19[[#This Row],[FUNC]]),\"NO\",\"YES\")))","v":"NO"}]
[{"$f":"CONCATENATE(tblREGASSJune19[[#This Row],[Primary Account]],tblREGASSJune19[[#This Row],[Primary Name]],tblREGASSJune19[[#This Row],[Secondary Acct]],tblREGASSJune19[[#This Row],[Secondary  Name]],tblREGASSJune19[[#This Row],[Alloc4FUNC]])","v":"1823920DSR COSTS AMORTIZED101223FINANSWER 12000 92SITUS"},1823920,"DSR COSTS AMORTIZED",101223,"FINANSWER 12000 92","UT",0,{"$f":"IF(OR(tblREGASSJune19[[#This Row],[Alloc]]=\"IDU\",tblREGASSJune19[[#This Row],[Alloc]]=\"OR\",tblREGASSJune19[[#This Row],[Alloc]]=\"UT\",tblREGASSJune19[[#This Row],[Alloc]]=\"WYU\",tblREGASSJune19[[#This Row],[Alloc]]=\"WYP\",tblREGASSJune19[[#This Row],[Alloc]]=\"CA\",tblREGASSJune19[[#This Row],[Alloc]]=\"WA\"),\"SITUS\",tblREGASSJune19[[#This Row],[Alloc]])","v":"SITUS"},{"$f":"INDEX(tblREGASSLookup[FUNC],MATCH(tblREGASSJune19[[#This Row],[Concat]],tblREGASSLookup[Concat],0))","v":{"$error":"#N/A"}},{"$f":"IF(tblREGASSJune19[[#This Row],[Total ($000)]]=0,\"NO\",IF(ISNA(tblREGASSJune19[[#This Row],[FUNC]]),\"YES\",IF(_xlfn.ISFORMULA(tblREGASSJune19[[#This Row],[FUNC]]),\"NO\",\"YES\")))","v":"NO"}]
[{"$f":"CONCATENATE(tblREGASSJune19[[#This Row],[Primary Account]],tblREGASSJune19[[#This Row],[Primary Name]],tblREGASSJune19[[#This Row],[Secondary Acct]],tblREGASSJune19[[#This Row],[Secondary  Name]],tblREGASSJune19[[#This Row],[Alloc4FUNC]])","v":"1823920DSR COSTS AMORTIZED101224FINANSWER 12000 93SITUS"},1823920,"DSR COSTS AMORTIZED",101224,"FINANSWER 12000 93","UT",0,{"$f":"IF(OR(tblREGASSJune19[[#This Row],[Alloc]]=\"IDU\",tblREGASSJune19[[#This Row],[Alloc]]=\"OR\",tblREGASSJune19[[#This Row],[Alloc]]=\"UT\",tblREGASSJune19[[#This Row],[Alloc]]=\"WYU\",tblREGASSJune19[[#This Row],[Alloc]]=\"WYP\",tblREGASSJune19[[#This Row],[Alloc]]=\"CA\",tblREGASSJune19[[#This Row],[Alloc]]=\"WA\"),\"SITUS\",tblREGASSJune19[[#This Row],[Alloc]])","v":"SITUS"},{"$f":"INDEX(tblREGASSLookup[FUNC],MATCH(tblREGASSJune19[[#This Row],[Concat]],tblREGASSLookup[Concat],0))","v":{"$error":"#N/A"}},{"$f":"IF(tblREGASSJune19[[#This Row],[Total ($000)]]=0,\"NO\",IF(ISNA(tblREGASSJune19[[#This Row],[FUNC]]),\"YES\",IF(_xlfn.ISFORMULA(tblREGASSJune19[[#This Row],[FUNC]]),\"NO\",\"YES\")))","v":"NO"}]
[{"$f":"CONCATENATE(tblREGASSJune19[[#This Row],[Primary Account]],tblREGASSJune19[[#This Row],[Primary Name]],tblREGASSJune19[[#This Row],[Secondary Acct]],tblREGASSJune19[[#This Row],[Secondary  Name]],tblREGASSJune19[[#This Row],[Alloc4FUNC]])","v":"1823920DSR COSTS AMORTIZED101225\"FINANSWER 12,000 - UTAH 1994\"SITUS"},1823920,"DSR COSTS AMORTIZED",101225,"\"FINANSWER 12,000 - UTAH 1994\"","UT",0,{"$f":"IF(OR(tblREGASSJune19[[#This Row],[Alloc]]=\"IDU\",tblREGASSJune19[[#This Row],[Alloc]]=\"OR\",tblREGASSJune19[[#This Row],[Alloc]]=\"UT\",tblREGASSJune19[[#This Row],[Alloc]]=\"WYU\",tblREGASSJune19[[#This Row],[Alloc]]=\"WYP\",tblREGASSJune19[[#This Row],[Alloc]]=\"CA\",tblREGASSJune19[[#This Row],[Alloc]]=\"WA\"),\"SITUS\",tblREGASSJune19[[#This Row],[Alloc]])","v":"SITUS"},{"$f":"INDEX(tblREGASSLookup[FUNC],MATCH(tblREGASSJune19[[#This Row],[Concat]],tblREGASSLookup[Concat],0))","v":{"$error":"#N/A"}},{"$f":"IF(tblREGASSJune19[[#This Row],[Total ($000)]]=0,\"NO\",IF(ISNA(tblREGASSJune19[[#This Row],[FUNC]]),\"YES\",IF(_xlfn.ISFORMULA(tblREGASSJune19[[#This Row],[FUNC]]),\"NO\",\"YES\")))","v":"NO"}]
[{"$f":"CONCATENATE(tblREGASSJune19[[#This Row],[Primary Account]],tblREGASSJune19[[#This Row],[Primary Name]],tblREGASSJune19[[#This Row],[Secondary Acct]],tblREGASSJune19[[#This Row],[Secondary  Name]],tblREGASSJune19[[#This Row],[Alloc4FUNC]])","v":"1823920DSR COSTS AMORTIZED101226WHOLESALE PURCH 92SITUS"},1823920,"DSR COSTS AMORTIZED",101226,"WHOLESALE PURCH 92","UT",0,{"$f":"IF(OR(tblREGASSJune19[[#This Row],[Alloc]]=\"IDU\",tblREGASSJune19[[#This Row],[Alloc]]=\"OR\",tblREGASSJune19[[#This Row],[Alloc]]=\"UT\",tblREGASSJune19[[#This Row],[Alloc]]=\"WYU\",tblREGASSJune19[[#This Row],[Alloc]]=\"WYP\",tblREGASSJune19[[#This Row],[Alloc]]=\"CA\",tblREGASSJune19[[#This Row],[Alloc]]=\"WA\"),\"SITUS\",tblREGASSJune19[[#This Row],[Alloc]])","v":"SITUS"},{"$f":"INDEX(tblREGASSLookup[FUNC],MATCH(tblREGASSJune19[[#This Row],[Concat]],tblREGASSLookup[Concat],0))","v":{"$error":"#N/A"}},{"$f":"IF(tblREGASSJune19[[#This Row],[Total ($000)]]=0,\"NO\",IF(ISNA(tblREGASSJune19[[#This Row],[FUNC]]),\"YES\",IF(_xlfn.ISFORMULA(tblREGASSJune19[[#This Row],[FUNC]]),\"NO\",\"YES\")))","v":"NO"}]
[{"$f":"CONCATENATE(tblREGASSJune19[[#This Row],[Primary Account]],tblREGASSJune19[[#This Row],[Primary Name]],tblREGASSJune19[[#This Row],[Secondary Acct]],tblREGASSJune19[[#This Row],[Secondary  Name]],tblREGASSJune19[[#This Row],[Alloc4FUNC]])","v":"1823920DSR COSTS AMORTIZED101228EF SCHOOLS      95SITUS"},1823920,"DSR COSTS AMORTIZED",101228,"EF SCHOOLS      95","UT",0,{"$f":"IF(OR(tblREGASSJune19[[#This Row],[Alloc]]=\"IDU\",tblREGASSJune19[[#This Row],[Alloc]]=\"OR\",tblREGASSJune19[[#This Row],[Alloc]]=\"UT\",tblREGASSJune19[[#This Row],[Alloc]]=\"WYU\",tblREGASSJune19[[#This Row],[Alloc]]=\"WYP\",tblREGASSJune19[[#This Row],[Alloc]]=\"CA\",tblREGASSJune19[[#This Row],[Alloc]]=\"WA\"),\"SITUS\",tblREGASSJune19[[#This Row],[Alloc]])","v":"SITUS"},{"$f":"INDEX(tblREGASSLookup[FUNC],MATCH(tblREGASSJune19[[#This Row],[Concat]],tblREGASSLookup[Concat],0))","v":{"$error":"#N/A"}},{"$f":"IF(tblREGASSJune19[[#This Row],[Total ($000)]]=0,\"NO\",IF(ISNA(tblREGASSJune19[[#This Row],[FUNC]]),\"YES\",IF(_xlfn.ISFORMULA(tblREGASSJune19[[#This Row],[FUNC]]),\"NO\",\"YES\")))","v":"NO"}]
[{"$f":"CONCATENATE(tblREGASSJune19[[#This Row],[Primary Account]],tblREGASSJune19[[#This Row],[Primary Name]],tblREGASSJune19[[#This Row],[Secondary Acct]],tblREGASSJune19[[#This Row],[Secondary  Name]],tblREGASSJune19[[#This Row],[Alloc4FUNC]])","v":"1823920DSR COSTS AMORTIZED101230REFRIGERATION   94SITUS"},1823920,"DSR COSTS AMORTIZED",101230,"REFRIGERATION   94","UT",0,{"$f":"IF(OR(tblREGASSJune19[[#This Row],[Alloc]]=\"IDU\",tblREGASSJune19[[#This Row],[Alloc]]=\"OR\",tblREGASSJune19[[#This Row],[Alloc]]=\"UT\",tblREGASSJune19[[#This Row],[Alloc]]=\"WYU\",tblREGASSJune19[[#This Row],[Alloc]]=\"WYP\",tblREGASSJune19[[#This Row],[Alloc]]=\"CA\",tblREGASSJune19[[#This Row],[Alloc]]=\"WA\"),\"SITUS\",tblREGASSJune19[[#This Row],[Alloc]])","v":"SITUS"},{"$f":"INDEX(tblREGASSLookup[FUNC],MATCH(tblREGASSJune19[[#This Row],[Concat]],tblREGASSLookup[Concat],0))","v":{"$error":"#N/A"}},{"$f":"IF(tblREGASSJune19[[#This Row],[Total ($000)]]=0,\"NO\",IF(ISNA(tblREGASSJune19[[#This Row],[FUNC]]),\"YES\",IF(_xlfn.ISFORMULA(tblREGASSJune19[[#This Row],[FUNC]]),\"NO\",\"YES\")))","v":"NO"}]
[{"$f":"CONCATENATE(tblREGASSJune19[[#This Row],[Primary Account]],tblREGASSJune19[[#This Row],[Primary Name]],tblREGASSJune19[[#This Row],[Secondary Acct]],tblREGASSJune19[[#This Row],[Secondary  Name]],tblREGASSJune19[[#This Row],[Alloc4FUNC]])","v":"1823920DSR COSTS AMORTIZED101231REFRIGERATION   95SITUS"},1823920,"DSR COSTS AMORTIZED",101231,"REFRIGERATION   95","UT",0,{"$f":"IF(OR(tblREGASSJune19[[#This Row],[Alloc]]=\"IDU\",tblREGASSJune19[[#This Row],[Alloc]]=\"OR\",tblREGASSJune19[[#This Row],[Alloc]]=\"UT\",tblREGASSJune19[[#This Row],[Alloc]]=\"WYU\",tblREGASSJune19[[#This Row],[Alloc]]=\"WYP\",tblREGASSJune19[[#This Row],[Alloc]]=\"CA\",tblREGASSJune19[[#This Row],[Alloc]]=\"WA\"),\"SITUS\",tblREGASSJune19[[#This Row],[Alloc]])","v":"SITUS"},{"$f":"INDEX(tblREGASSLookup[FUNC],MATCH(tblREGASSJune19[[#This Row],[Concat]],tblREGASSLookup[Concat],0))","v":{"$error":"#N/A"}},{"$f":"IF(tblREGASSJune19[[#This Row],[Total ($000)]]=0,\"NO\",IF(ISNA(tblREGASSJune19[[#This Row],[FUNC]]),\"YES\",IF(_xlfn.ISFORMULA(tblREGASSJune19[[#This Row],[FUNC]]),\"NO\",\"YES\")))","v":"NO"}]
[{"$f":"CONCATENATE(tblREGASSJune19[[#This Row],[Primary Account]],tblREGASSJune19[[#This Row],[Primary Name]],tblREGASSJune19[[#This Row],[Secondary Acct]],tblREGASSJune19[[#This Row],[Secondary  Name]],tblREGASSJune19[[#This Row],[Alloc4FUNC]])","v":"1823920DSR COSTS AMORTIZED101232REFRIGERATION   96SITUS"},1823920,"DSR COSTS AMORTIZED",101232,"REFRIGERATION   96","UT",0,{"$f":"IF(OR(tblREGASSJune19[[#This Row],[Alloc]]=\"IDU\",tblREGASSJune19[[#This Row],[Alloc]]=\"OR\",tblREGASSJune19[[#This Row],[Alloc]]=\"UT\",tblREGASSJune19[[#This Row],[Alloc]]=\"WYU\",tblREGASSJune19[[#This Row],[Alloc]]=\"WYP\",tblREGASSJune19[[#This Row],[Alloc]]=\"CA\",tblREGASSJune19[[#This Row],[Alloc]]=\"WA\"),\"SITUS\",tblREGASSJune19[[#This Row],[Alloc]])","v":"SITUS"},{"$f":"INDEX(tblREGASSLookup[FUNC],MATCH(tblREGASSJune19[[#This Row],[Concat]],tblREGASSLookup[Concat],0))","v":{"$error":"#N/A"}},{"$f":"IF(tblREGASSJune19[[#This Row],[Total ($000)]]=0,\"NO\",IF(ISNA(tblREGASSJune19[[#This Row],[FUNC]]),\"YES\",IF(_xlfn.ISFORMULA(tblREGASSJune19[[#This Row],[FUNC]]),\"NO\",\"YES\")))","v":"NO"}]
[{"$f":"CONCATENATE(tblREGASSJune19[[#This Row],[Primary Account]],tblREGASSJune19[[#This Row],[Primary Name]],tblREGASSJune19[[#This Row],[Secondary Acct]],tblREGASSJune19[[#This Row],[Secondary  Name]],tblREGASSJune19[[#This Row],[Alloc4FUNC]])","v":"1823920DSR COSTS AMORTIZED101237SUPER GOOD CENTS95SITUS"},1823920,"DSR COSTS AMORTIZED",101237,"SUPER GOOD CENTS95","UT",0,{"$f":"IF(OR(tblREGASSJune19[[#This Row],[Alloc]]=\"IDU\",tblREGASSJune19[[#This Row],[Alloc]]=\"OR\",tblREGASSJune19[[#This Row],[Alloc]]=\"UT\",tblREGASSJune19[[#This Row],[Alloc]]=\"WYU\",tblREGASSJune19[[#This Row],[Alloc]]=\"WYP\",tblREGASSJune19[[#This Row],[Alloc]]=\"CA\",tblREGASSJune19[[#This Row],[Alloc]]=\"WA\"),\"SITUS\",tblREGASSJune19[[#This Row],[Alloc]])","v":"SITUS"},{"$f":"INDEX(tblREGASSLookup[FUNC],MATCH(tblREGASSJune19[[#This Row],[Concat]],tblREGASSLookup[Concat],0))","v":{"$error":"#N/A"}},{"$f":"IF(tblREGASSJune19[[#This Row],[Total ($000)]]=0,\"NO\",IF(ISNA(tblREGASSJune19[[#This Row],[FUNC]]),\"YES\",IF(_xlfn.ISFORMULA(tblREGASSJune19[[#This Row],[FUNC]]),\"NO\",\"YES\")))","v":"NO"}]
[{"$f":"CONCATENATE(tblREGASSJune19[[#This Row],[Primary Account]],tblREGASSJune19[[#This Row],[Primary Name]],tblREGASSJune19[[#This Row],[Secondary Acct]],tblREGASSJune19[[#This Row],[Secondary  Name]],tblREGASSJune19[[#This Row],[Alloc4FUNC]])","v":"1823920DSR COSTS AMORTIZED101239HEAT PUMP H PRO 94SITUS"},1823920,"DSR COSTS AMORTIZED",101239,"HEAT PUMP H PRO 94","UT",0,{"$f":"IF(OR(tblREGASSJune19[[#This Row],[Alloc]]=\"IDU\",tblREGASSJune19[[#This Row],[Alloc]]=\"OR\",tblREGASSJune19[[#This Row],[Alloc]]=\"UT\",tblREGASSJune19[[#This Row],[Alloc]]=\"WYU\",tblREGASSJune19[[#This Row],[Alloc]]=\"WYP\",tblREGASSJune19[[#This Row],[Alloc]]=\"CA\",tblREGASSJune19[[#This Row],[Alloc]]=\"WA\"),\"SITUS\",tblREGASSJune19[[#This Row],[Alloc]])","v":"SITUS"},{"$f":"INDEX(tblREGASSLookup[FUNC],MATCH(tblREGASSJune19[[#This Row],[Concat]],tblREGASSLookup[Concat],0))","v":{"$error":"#N/A"}},{"$f":"IF(tblREGASSJune19[[#This Row],[Total ($000)]]=0,\"NO\",IF(ISNA(tblREGASSJune19[[#This Row],[FUNC]]),\"YES\",IF(_xlfn.ISFORMULA(tblREGASSJune19[[#This Row],[FUNC]]),\"NO\",\"YES\")))","v":"NO"}]
[{"$f":"CONCATENATE(tblREGASSJune19[[#This Row],[Primary Account]],tblREGASSJune19[[#This Row],[Primary Name]],tblREGASSJune19[[#This Row],[Secondary Acct]],tblREGASSJune19[[#This Row],[Secondary  Name]],tblREGASSJune19[[#This Row],[Alloc4FUNC]])","v":"1823920DSR COSTS AMORTIZED101240HEAT PUMP H PRO 95SITUS"},1823920,"DSR COSTS AMORTIZED",101240,"HEAT PUMP H PRO 95","UT",0,{"$f":"IF(OR(tblREGASSJune19[[#This Row],[Alloc]]=\"IDU\",tblREGASSJune19[[#This Row],[Alloc]]=\"OR\",tblREGASSJune19[[#This Row],[Alloc]]=\"UT\",tblREGASSJune19[[#This Row],[Alloc]]=\"WYU\",tblREGASSJune19[[#This Row],[Alloc]]=\"WYP\",tblREGASSJune19[[#This Row],[Alloc]]=\"CA\",tblREGASSJune19[[#This Row],[Alloc]]=\"WA\"),\"SITUS\",tblREGASSJune19[[#This Row],[Alloc]])","v":"SITUS"},{"$f":"INDEX(tblREGASSLookup[FUNC],MATCH(tblREGASSJune19[[#This Row],[Concat]],tblREGASSLookup[Concat],0))","v":{"$error":"#N/A"}},{"$f":"IF(tblREGASSJune19[[#This Row],[Total ($000)]]=0,\"NO\",IF(ISNA(tblREGASSJune19[[#This Row],[FUNC]]),\"YES\",IF(_xlfn.ISFORMULA(tblREGASSJune19[[#This Row],[FUNC]]),\"NO\",\"YES\")))","v":"NO"}]
[{"$f":"CONCATENATE(tblREGASSJune19[[#This Row],[Primary Account]],tblREGASSJune19[[#This Row],[Primary Name]],tblREGASSJune19[[#This Row],[Secondary Acct]],tblREGASSJune19[[#This Row],[Secondary  Name]],tblREGASSJune19[[#This Row],[Alloc4FUNC]])","v":"1823920DSR COSTS AMORTIZED101241HEAT PUMP H PRO 96SITUS"},1823920,"DSR COSTS AMORTIZED",101241,"HEAT PUMP H PRO 96","UT",0,{"$f":"IF(OR(tblREGASSJune19[[#This Row],[Alloc]]=\"IDU\",tblREGASSJune19[[#This Row],[Alloc]]=\"OR\",tblREGASSJune19[[#This Row],[Alloc]]=\"UT\",tblREGASSJune19[[#This Row],[Alloc]]=\"WYU\",tblREGASSJune19[[#This Row],[Alloc]]=\"WYP\",tblREGASSJune19[[#This Row],[Alloc]]=\"CA\",tblREGASSJune19[[#This Row],[Alloc]]=\"WA\"),\"SITUS\",tblREGASSJune19[[#This Row],[Alloc]])","v":"SITUS"},{"$f":"INDEX(tblREGASSLookup[FUNC],MATCH(tblREGASSJune19[[#This Row],[Concat]],tblREGASSLookup[Concat],0))","v":{"$error":"#N/A"}},{"$f":"IF(tblREGASSJune19[[#This Row],[Total ($000)]]=0,\"NO\",IF(ISNA(tblREGASSJune19[[#This Row],[FUNC]]),\"YES\",IF(_xlfn.ISFORMULA(tblREGASSJune19[[#This Row],[FUNC]]),\"NO\",\"YES\")))","v":"NO"}]
[{"$f":"CONCATENATE(tblREGASSJune19[[#This Row],[Primary Account]],tblREGASSJune19[[#This Row],[Primary Name]],tblREGASSJune19[[#This Row],[Secondary Acct]],tblREGASSJune19[[#This Row],[Secondary  Name]],tblREGASSJune19[[#This Row],[Alloc4FUNC]])","v":"1823920DSR COSTS AMORTIZED101242DSM OTHER PROGS 94SITUS"},1823920,"DSR COSTS AMORTIZED",101242,"DSM OTHER PROGS 94","UT",0,{"$f":"IF(OR(tblREGASSJune19[[#This Row],[Alloc]]=\"IDU\",tblREGASSJune19[[#This Row],[Alloc]]=\"OR\",tblREGASSJune19[[#This Row],[Alloc]]=\"UT\",tblREGASSJune19[[#This Row],[Alloc]]=\"WYU\",tblREGASSJune19[[#This Row],[Alloc]]=\"WYP\",tblREGASSJune19[[#This Row],[Alloc]]=\"CA\",tblREGASSJune19[[#This Row],[Alloc]]=\"WA\"),\"SITUS\",tblREGASSJune19[[#This Row],[Alloc]])","v":"SITUS"},{"$f":"INDEX(tblREGASSLookup[FUNC],MATCH(tblREGASSJune19[[#This Row],[Concat]],tblREGASSLookup[Concat],0))","v":{"$error":"#N/A"}},{"$f":"IF(tblREGASSJune19[[#This Row],[Total ($000)]]=0,\"NO\",IF(ISNA(tblREGASSJune19[[#This Row],[FUNC]]),\"YES\",IF(_xlfn.ISFORMULA(tblREGASSJune19[[#This Row],[FUNC]]),\"NO\",\"YES\")))","v":"NO"}]
[{"$f":"CONCATENATE(tblREGASSJune19[[#This Row],[Primary Account]],tblREGASSJune19[[#This Row],[Primary Name]],tblREGASSJune19[[#This Row],[Secondary Acct]],tblREGASSJune19[[#This Row],[Secondary  Name]],tblREGASSJune19[[#This Row],[Alloc4FUNC]])","v":"1823920DSR COSTS AMORTIZED101243DSM OTHER PROGS 95SITUS"},1823920,"DSR COSTS AMORTIZED",101243,"DSM OTHER PROGS 95","UT",0,{"$f":"IF(OR(tblREGASSJune19[[#This Row],[Alloc]]=\"IDU\",tblREGASSJune19[[#This Row],[Alloc]]=\"OR\",tblREGASSJune19[[#This Row],[Alloc]]=\"UT\",tblREGASSJune19[[#This Row],[Alloc]]=\"WYU\",tblREGASSJune19[[#This Row],[Alloc]]=\"WYP\",tblREGASSJune19[[#This Row],[Alloc]]=\"CA\",tblREGASSJune19[[#This Row],[Alloc]]=\"WA\"),\"SITUS\",tblREGASSJune19[[#This Row],[Alloc]])","v":"SITUS"},{"$f":"INDEX(tblREGASSLookup[FUNC],MATCH(tblREGASSJune19[[#This Row],[Concat]],tblREGASSLookup[Concat],0))","v":{"$error":"#N/A"}},{"$f":"IF(tblREGASSJune19[[#This Row],[Total ($000)]]=0,\"NO\",IF(ISNA(tblREGASSJune19[[#This Row],[FUNC]]),\"YES\",IF(_xlfn.ISFORMULA(tblREGASSJune19[[#This Row],[FUNC]]),\"NO\",\"YES\")))","v":"NO"}]
[{"$f":"CONCATENATE(tblREGASSJune19[[#This Row],[Primary Account]],tblREGASSJune19[[#This Row],[Primary Name]],tblREGASSJune19[[#This Row],[Secondary Acct]],tblREGASSJune19[[#This Row],[Secondary  Name]],tblREGASSJune19[[#This Row],[Alloc4FUNC]])","v":"1823920DSR COSTS AMORTIZED101244DSM OTHER PROGS 96SITUS"},1823920,"DSR COSTS AMORTIZED",101244,"DSM OTHER PROGS 96","UT",0,{"$f":"IF(OR(tblREGASSJune19[[#This Row],[Alloc]]=\"IDU\",tblREGASSJune19[[#This Row],[Alloc]]=\"OR\",tblREGASSJune19[[#This Row],[Alloc]]=\"UT\",tblREGASSJune19[[#This Row],[Alloc]]=\"WYU\",tblREGASSJune19[[#This Row],[Alloc]]=\"WYP\",tblREGASSJune19[[#This Row],[Alloc]]=\"CA\",tblREGASSJune19[[#This Row],[Alloc]]=\"WA\"),\"SITUS\",tblREGASSJune19[[#This Row],[Alloc]])","v":"SITUS"},{"$f":"INDEX(tblREGASSLookup[FUNC],MATCH(tblREGASSJune19[[#This Row],[Concat]],tblREGASSLookup[Concat],0))","v":{"$error":"#N/A"}},{"$f":"IF(tblREGASSJune19[[#This Row],[Total ($000)]]=0,\"NO\",IF(ISNA(tblREGASSJune19[[#This Row],[FUNC]]),\"YES\",IF(_xlfn.ISFORMULA(tblREGASSJune19[[#This Row],[FUNC]]),\"NO\",\"YES\")))","v":"NO"}]
[{"$f":"CONCATENATE(tblREGASSJune19[[#This Row],[Primary Account]],tblREGASSJune19[[#This Row],[Primary Name]],tblREGASSJune19[[#This Row],[Secondary Acct]],tblREGASSJune19[[#This Row],[Secondary  Name]],tblREGASSJune19[[#This Row],[Alloc4FUNC]])","v":"1823920DSR COSTS AMORTIZED101245ECONS           94SITUS"},1823920,"DSR COSTS AMORTIZED",101245,"ECONS           94","UT",0,{"$f":"IF(OR(tblREGASSJune19[[#This Row],[Alloc]]=\"IDU\",tblREGASSJune19[[#This Row],[Alloc]]=\"OR\",tblREGASSJune19[[#This Row],[Alloc]]=\"UT\",tblREGASSJune19[[#This Row],[Alloc]]=\"WYU\",tblREGASSJune19[[#This Row],[Alloc]]=\"WYP\",tblREGASSJune19[[#This Row],[Alloc]]=\"CA\",tblREGASSJune19[[#This Row],[Alloc]]=\"WA\"),\"SITUS\",tblREGASSJune19[[#This Row],[Alloc]])","v":"SITUS"},{"$f":"INDEX(tblREGASSLookup[FUNC],MATCH(tblREGASSJune19[[#This Row],[Concat]],tblREGASSLookup[Concat],0))","v":{"$error":"#N/A"}},{"$f":"IF(tblREGASSJune19[[#This Row],[Total ($000)]]=0,\"NO\",IF(ISNA(tblREGASSJune19[[#This Row],[FUNC]]),\"YES\",IF(_xlfn.ISFORMULA(tblREGASSJune19[[#This Row],[FUNC]]),\"NO\",\"YES\")))","v":"NO"}]
[{"$f":"CONCATENATE(tblREGASSJune19[[#This Row],[Primary Account]],tblREGASSJune19[[#This Row],[Primary Name]],tblREGASSJune19[[#This Row],[Secondary Acct]],tblREGASSJune19[[#This Row],[Secondary  Name]],tblREGASSJune19[[#This Row],[Alloc4FUNC]])","v":"1823920DSR COSTS AMORTIZED101246ECONS           95SITUS"},1823920,"DSR COSTS AMORTIZED",101246,"ECONS           95","UT",0,{"$f":"IF(OR(tblREGASSJune19[[#This Row],[Alloc]]=\"IDU\",tblREGASSJune19[[#This Row],[Alloc]]=\"OR\",tblREGASSJune19[[#This Row],[Alloc]]=\"UT\",tblREGASSJune19[[#This Row],[Alloc]]=\"WYU\",tblREGASSJune19[[#This Row],[Alloc]]=\"WYP\",tblREGASSJune19[[#This Row],[Alloc]]=\"CA\",tblREGASSJune19[[#This Row],[Alloc]]=\"WA\"),\"SITUS\",tblREGASSJune19[[#This Row],[Alloc]])","v":"SITUS"},{"$f":"INDEX(tblREGASSLookup[FUNC],MATCH(tblREGASSJune19[[#This Row],[Concat]],tblREGASSLookup[Concat],0))","v":{"$error":"#N/A"}},{"$f":"IF(tblREGASSJune19[[#This Row],[Total ($000)]]=0,\"NO\",IF(ISNA(tblREGASSJune19[[#This Row],[FUNC]]),\"YES\",IF(_xlfn.ISFORMULA(tblREGASSJune19[[#This Row],[FUNC]]),\"NO\",\"YES\")))","v":"NO"}]
[{"$f":"CONCATENATE(tblREGASSJune19[[#This Row],[Primary Account]],tblREGASSJune19[[#This Row],[Primary Name]],tblREGASSJune19[[#This Row],[Secondary Acct]],tblREGASSJune19[[#This Row],[Secondary  Name]],tblREGASSJune19[[#This Row],[Alloc4FUNC]])","v":"1823920DSR COSTS AMORTIZED101247ECONS           96SITUS"},1823920,"DSR COSTS AMORTIZED",101247,"ECONS           96","UT",0,{"$f":"IF(OR(tblREGASSJune19[[#This Row],[Alloc]]=\"IDU\",tblREGASSJune19[[#This Row],[Alloc]]=\"OR\",tblREGASSJune19[[#This Row],[Alloc]]=\"UT\",tblREGASSJune19[[#This Row],[Alloc]]=\"WYU\",tblREGASSJune19[[#This Row],[Alloc]]=\"WYP\",tblREGASSJune19[[#This Row],[Alloc]]=\"CA\",tblREGASSJune19[[#This Row],[Alloc]]=\"WA\"),\"SITUS\",tblREGASSJune19[[#This Row],[Alloc]])","v":"SITUS"},{"$f":"INDEX(tblREGASSLookup[FUNC],MATCH(tblREGASSJune19[[#This Row],[Concat]],tblREGASSLookup[Concat],0))","v":{"$error":"#N/A"}},{"$f":"IF(tblREGASSJune19[[#This Row],[Total ($000)]]=0,\"NO\",IF(ISNA(tblREGASSJune19[[#This Row],[FUNC]]),\"YES\",IF(_xlfn.ISFORMULA(tblREGASSJune19[[#This Row],[FUNC]]),\"NO\",\"YES\")))","v":"NO"}]
[{"$f":"CONCATENATE(tblREGASSJune19[[#This Row],[Primary Account]],tblREGASSJune19[[#This Row],[Primary Name]],tblREGASSJune19[[#This Row],[Secondary Acct]],tblREGASSJune19[[#This Row],[Secondary  Name]],tblREGASSJune19[[#This Row],[Alloc4FUNC]])","v":"1823920DSR COSTS AMORTIZED101248RFP EUA ONSITE  94SITUS"},1823920,"DSR COSTS AMORTIZED",101248,"RFP EUA ONSITE  94","UT",0,{"$f":"IF(OR(tblREGASSJune19[[#This Row],[Alloc]]=\"IDU\",tblREGASSJune19[[#This Row],[Alloc]]=\"OR\",tblREGASSJune19[[#This Row],[Alloc]]=\"UT\",tblREGASSJune19[[#This Row],[Alloc]]=\"WYU\",tblREGASSJune19[[#This Row],[Alloc]]=\"WYP\",tblREGASSJune19[[#This Row],[Alloc]]=\"CA\",tblREGASSJune19[[#This Row],[Alloc]]=\"WA\"),\"SITUS\",tblREGASSJune19[[#This Row],[Alloc]])","v":"SITUS"},{"$f":"INDEX(tblREGASSLookup[FUNC],MATCH(tblREGASSJune19[[#This Row],[Concat]],tblREGASSLookup[Concat],0))","v":{"$error":"#N/A"}},{"$f":"IF(tblREGASSJune19[[#This Row],[Total ($000)]]=0,\"NO\",IF(ISNA(tblREGASSJune19[[#This Row],[FUNC]]),\"YES\",IF(_xlfn.ISFORMULA(tblREGASSJune19[[#This Row],[FUNC]]),\"NO\",\"YES\")))","v":"NO"}]
[{"$f":"CONCATENATE(tblREGASSJune19[[#This Row],[Primary Account]],tblREGASSJune19[[#This Row],[Primary Name]],tblREGASSJune19[[#This Row],[Secondary Acct]],tblREGASSJune19[[#This Row],[Secondary  Name]],tblREGASSJune19[[#This Row],[Alloc4FUNC]])","v":"1823920DSR COSTS AMORTIZED101249RFP EUA ONSITE  95SITUS"},1823920,"DSR COSTS AMORTIZED",101249,"RFP EUA ONSITE  95","UT",0,{"$f":"IF(OR(tblREGASSJune19[[#This Row],[Alloc]]=\"IDU\",tblREGASSJune19[[#This Row],[Alloc]]=\"OR\",tblREGASSJune19[[#This Row],[Alloc]]=\"UT\",tblREGASSJune19[[#This Row],[Alloc]]=\"WYU\",tblREGASSJune19[[#This Row],[Alloc]]=\"WYP\",tblREGASSJune19[[#This Row],[Alloc]]=\"CA\",tblREGASSJune19[[#This Row],[Alloc]]=\"WA\"),\"SITUS\",tblREGASSJune19[[#This Row],[Alloc]])","v":"SITUS"},{"$f":"INDEX(tblREGASSLookup[FUNC],MATCH(tblREGASSJune19[[#This Row],[Concat]],tblREGASSLookup[Concat],0))","v":{"$error":"#N/A"}},{"$f":"IF(tblREGASSJune19[[#This Row],[Total ($000)]]=0,\"NO\",IF(ISNA(tblREGASSJune19[[#This Row],[FUNC]]),\"YES\",IF(_xlfn.ISFORMULA(tblREGASSJune19[[#This Row],[FUNC]]),\"NO\",\"YES\")))","v":"NO"}]
[{"$f":"CONCATENATE(tblREGASSJune19[[#This Row],[Primary Account]],tblREGASSJune19[[#This Row],[Primary Name]],tblREGASSJune19[[#This Row],[Secondary Acct]],tblREGASSJune19[[#This Row],[Secondary  Name]],tblREGASSJune19[[#This Row],[Alloc4FUNC]])","v":"1823920DSR COSTS AMORTIZED101250RFP EUA ONSITE  96SITUS"},1823920,"DSR COSTS AMORTIZED",101250,"RFP EUA ONSITE  96","UT",0,{"$f":"IF(OR(tblREGASSJune19[[#This Row],[Alloc]]=\"IDU\",tblREGASSJune19[[#This Row],[Alloc]]=\"OR\",tblREGASSJune19[[#This Row],[Alloc]]=\"UT\",tblREGASSJune19[[#This Row],[Alloc]]=\"WYU\",tblREGASSJune19[[#This Row],[Alloc]]=\"WYP\",tblREGASSJune19[[#This Row],[Alloc]]=\"CA\",tblREGASSJune19[[#This Row],[Alloc]]=\"WA\"),\"SITUS\",tblREGASSJune19[[#This Row],[Alloc]])","v":"SITUS"},{"$f":"INDEX(tblREGASSLookup[FUNC],MATCH(tblREGASSJune19[[#This Row],[Concat]],tblREGASSLookup[Concat],0))","v":{"$error":"#N/A"}},{"$f":"IF(tblREGASSJune19[[#This Row],[Total ($000)]]=0,\"NO\",IF(ISNA(tblREGASSJune19[[#This Row],[FUNC]]),\"YES\",IF(_xlfn.ISFORMULA(tblREGASSJune19[[#This Row],[FUNC]]),\"NO\",\"YES\")))","v":"NO"}]
[{"$f":"CONCATENATE(tblREGASSJune19[[#This Row],[Primary Account]],tblREGASSJune19[[#This Row],[Primary Name]],tblREGASSJune19[[#This Row],[Secondary Acct]],tblREGASSJune19[[#This Row],[Secondary  Name]],tblREGASSJune19[[#This Row],[Alloc4FUNC]])","v":"1823920DSR COSTS AMORTIZED101253MAJOR CUSTOMER  95SITUS"},1823920,"DSR COSTS AMORTIZED",101253,"MAJOR CUSTOMER  95","WYP",0,{"$f":"IF(OR(tblREGASSJune19[[#This Row],[Alloc]]=\"IDU\",tblREGASSJune19[[#This Row],[Alloc]]=\"OR\",tblREGASSJune19[[#This Row],[Alloc]]=\"UT\",tblREGASSJune19[[#This Row],[Alloc]]=\"WYU\",tblREGASSJune19[[#This Row],[Alloc]]=\"WYP\",tblREGASSJune19[[#This Row],[Alloc]]=\"CA\",tblREGASSJune19[[#This Row],[Alloc]]=\"WA\"),\"SITUS\",tblREGASSJune19[[#This Row],[Alloc]])","v":"SITUS"},{"$f":"INDEX(tblREGASSLookup[FUNC],MATCH(tblREGASSJune19[[#This Row],[Concat]],tblREGASSLookup[Concat],0))","v":{"$error":"#N/A"}},{"$f":"IF(tblREGASSJune19[[#This Row],[Total ($000)]]=0,\"NO\",IF(ISNA(tblREGASSJune19[[#This Row],[FUNC]]),\"YES\",IF(_xlfn.ISFORMULA(tblREGASSJune19[[#This Row],[FUNC]]),\"NO\",\"YES\")))","v":"NO"}]
[{"$f":"CONCATENATE(tblREGASSJune19[[#This Row],[Primary Account]],tblREGASSJune19[[#This Row],[Primary Name]],tblREGASSJune19[[#This Row],[Secondary Acct]],tblREGASSJune19[[#This Row],[Secondary  Name]],tblREGASSJune19[[#This Row],[Alloc4FUNC]])","v":"1823920DSR COSTS AMORTIZED101254MAJOR CUSTOMER  96SITUS"},1823920,"DSR COSTS AMORTIZED",101254,"MAJOR CUSTOMER  96","WYP",0,{"$f":"IF(OR(tblREGASSJune19[[#This Row],[Alloc]]=\"IDU\",tblREGASSJune19[[#This Row],[Alloc]]=\"OR\",tblREGASSJune19[[#This Row],[Alloc]]=\"UT\",tblREGASSJune19[[#This Row],[Alloc]]=\"WYU\",tblREGASSJune19[[#This Row],[Alloc]]=\"WYP\",tblREGASSJune19[[#This Row],[Alloc]]=\"CA\",tblREGASSJune19[[#This Row],[Alloc]]=\"WA\"),\"SITUS\",tblREGASSJune19[[#This Row],[Alloc]])","v":"SITUS"},{"$f":"INDEX(tblREGASSLookup[FUNC],MATCH(tblREGASSJune19[[#This Row],[Concat]],tblREGASSLookup[Concat],0))","v":{"$error":"#N/A"}},{"$f":"IF(tblREGASSJune19[[#This Row],[Total ($000)]]=0,\"NO\",IF(ISNA(tblREGASSJune19[[#This Row],[FUNC]]),\"YES\",IF(_xlfn.ISFORMULA(tblREGASSJune19[[#This Row],[FUNC]]),\"NO\",\"YES\")))","v":"NO"}]
[{"$f":"CONCATENATE(tblREGASSJune19[[#This Row],[Primary Account]],tblREGASSJune19[[#This Row],[Primary Name]],tblREGASSJune19[[#This Row],[Secondary Acct]],tblREGASSJune19[[#This Row],[Secondary  Name]],tblREGASSJune19[[#This Row],[Alloc4FUNC]])","v":"1823920DSR COSTS AMORTIZED101255MAJOR CUSTOMER ACCOUNTS WYOMING P - 1997SITUS"},1823920,"DSR COSTS AMORTIZED",101255,"MAJOR CUSTOMER ACCOUNTS WYOMING P - 1997","WYP",0,{"$f":"IF(OR(tblREGASSJune19[[#This Row],[Alloc]]=\"IDU\",tblREGASSJune19[[#This Row],[Alloc]]=\"OR\",tblREGASSJune19[[#This Row],[Alloc]]=\"UT\",tblREGASSJune19[[#This Row],[Alloc]]=\"WYU\",tblREGASSJune19[[#This Row],[Alloc]]=\"WYP\",tblREGASSJune19[[#This Row],[Alloc]]=\"CA\",tblREGASSJune19[[#This Row],[Alloc]]=\"WA\"),\"SITUS\",tblREGASSJune19[[#This Row],[Alloc]])","v":"SITUS"},{"$f":"INDEX(tblREGASSLookup[FUNC],MATCH(tblREGASSJune19[[#This Row],[Concat]],tblREGASSLookup[Concat],0))","v":{"$error":"#N/A"}},{"$f":"IF(tblREGASSJune19[[#This Row],[Total ($000)]]=0,\"NO\",IF(ISNA(tblREGASSJune19[[#This Row],[FUNC]]),\"YES\",IF(_xlfn.ISFORMULA(tblREGASSJune19[[#This Row],[FUNC]]),\"NO\",\"YES\")))","v":"NO"}]
[{"$f":"CONCATENATE(tblREGASSJune19[[#This Row],[Primary Account]],tblREGASSJune19[[#This Row],[Primary Name]],tblREGASSJune19[[#This Row],[Secondary Acct]],tblREGASSJune19[[#This Row],[Secondary  Name]],tblREGASSJune19[[#This Row],[Alloc4FUNC]])","v":"1823920DSR COSTS AMORTIZED101258ENERGY FINANSWER95SITUS"},1823920,"DSR COSTS AMORTIZED",101258,"ENERGY FINANSWER95","WYP",0,{"$f":"IF(OR(tblREGASSJune19[[#This Row],[Alloc]]=\"IDU\",tblREGASSJune19[[#This Row],[Alloc]]=\"OR\",tblREGASSJune19[[#This Row],[Alloc]]=\"UT\",tblREGASSJune19[[#This Row],[Alloc]]=\"WYU\",tblREGASSJune19[[#This Row],[Alloc]]=\"WYP\",tblREGASSJune19[[#This Row],[Alloc]]=\"CA\",tblREGASSJune19[[#This Row],[Alloc]]=\"WA\"),\"SITUS\",tblREGASSJune19[[#This Row],[Alloc]])","v":"SITUS"},{"$f":"INDEX(tblREGASSLookup[FUNC],MATCH(tblREGASSJune19[[#This Row],[Concat]],tblREGASSLookup[Concat],0))","v":{"$error":"#N/A"}},{"$f":"IF(tblREGASSJune19[[#This Row],[Total ($000)]]=0,\"NO\",IF(ISNA(tblREGASSJune19[[#This Row],[FUNC]]),\"YES\",IF(_xlfn.ISFORMULA(tblREGASSJune19[[#This Row],[FUNC]]),\"NO\",\"YES\")))","v":"NO"}]
[{"$f":"CONCATENATE(tblREGASSJune19[[#This Row],[Primary Account]],tblREGASSJune19[[#This Row],[Primary Name]],tblREGASSJune19[[#This Row],[Secondary Acct]],tblREGASSJune19[[#This Row],[Secondary  Name]],tblREGASSJune19[[#This Row],[Alloc4FUNC]])","v":"1823920DSR COSTS AMORTIZED101259ENERGY FINANSWER96SITUS"},1823920,"DSR COSTS AMORTIZED",101259,"ENERGY FINANSWER96","WYP",0,{"$f":"IF(OR(tblREGASSJune19[[#This Row],[Alloc]]=\"IDU\",tblREGASSJune19[[#This Row],[Alloc]]=\"OR\",tblREGASSJune19[[#This Row],[Alloc]]=\"UT\",tblREGASSJune19[[#This Row],[Alloc]]=\"WYU\",tblREGASSJune19[[#This Row],[Alloc]]=\"WYP\",tblREGASSJune19[[#This Row],[Alloc]]=\"CA\",tblREGASSJune19[[#This Row],[Alloc]]=\"WA\"),\"SITUS\",tblREGASSJune19[[#This Row],[Alloc]])","v":"SITUS"},{"$f":"INDEX(tblREGASSLookup[FUNC],MATCH(tblREGASSJune19[[#This Row],[Concat]],tblREGASSLookup[Concat],0))","v":{"$error":"#N/A"}},{"$f":"IF(tblREGASSJune19[[#This Row],[Total ($000)]]=0,\"NO\",IF(ISNA(tblREGASSJune19[[#This Row],[FUNC]]),\"YES\",IF(_xlfn.ISFORMULA(tblREGASSJune19[[#This Row],[FUNC]]),\"NO\",\"YES\")))","v":"NO"}]
[{"$f":"CONCATENATE(tblREGASSJune19[[#This Row],[Primary Account]],tblREGASSJune19[[#This Row],[Primary Name]],tblREGASSJune19[[#This Row],[Secondary Acct]],tblREGASSJune19[[#This Row],[Secondary  Name]],tblREGASSJune19[[#This Row],[Alloc4FUNC]])","v":"1823920DSR COSTS AMORTIZED101260\"ENERGY FINANCSER, WYO-P 1997\"SITUS"},1823920,"DSR COSTS AMORTIZED",101260,"\"ENERGY FINANCSER, WYO-P 1997\"","WYP",0,{"$f":"IF(OR(tblREGASSJune19[[#This Row],[Alloc]]=\"IDU\",tblREGASSJune19[[#This Row],[Alloc]]=\"OR\",tblREGASSJune19[[#This Row],[Alloc]]=\"UT\",tblREGASSJune19[[#This Row],[Alloc]]=\"WYU\",tblREGASSJune19[[#This Row],[Alloc]]=\"WYP\",tblREGASSJune19[[#This Row],[Alloc]]=\"CA\",tblREGASSJune19[[#This Row],[Alloc]]=\"WA\"),\"SITUS\",tblREGASSJune19[[#This Row],[Alloc]])","v":"SITUS"},{"$f":"INDEX(tblREGASSLookup[FUNC],MATCH(tblREGASSJune19[[#This Row],[Concat]],tblREGASSLookup[Concat],0))","v":{"$error":"#N/A"}},{"$f":"IF(tblREGASSJune19[[#This Row],[Total ($000)]]=0,\"NO\",IF(ISNA(tblREGASSJune19[[#This Row],[FUNC]]),\"YES\",IF(_xlfn.ISFORMULA(tblREGASSJune19[[#This Row],[FUNC]]),\"NO\",\"YES\")))","v":"NO"}]
[{"$f":"CONCATENATE(tblREGASSJune19[[#This Row],[Primary Account]],tblREGASSJune19[[#This Row],[Primary Name]],tblREGASSJune19[[#This Row],[Secondary Acct]],tblREGASSJune19[[#This Row],[Secondary  Name]],tblREGASSJune19[[#This Row],[Alloc4FUNC]])","v":"1823920DSR COSTS AMORTIZED101261\"ENERGY FINANCSER, WYO-P 1998\"SITUS"},1823920,"DSR COSTS AMORTIZED",101261,"\"ENERGY FINANCSER, WYO-P 1998\"","WYP",0,{"$f":"IF(OR(tblREGASSJune19[[#This Row],[Alloc]]=\"IDU\",tblREGASSJune19[[#This Row],[Alloc]]=\"OR\",tblREGASSJune19[[#This Row],[Alloc]]=\"UT\",tblREGASSJune19[[#This Row],[Alloc]]=\"WYU\",tblREGASSJune19[[#This Row],[Alloc]]=\"WYP\",tblREGASSJune19[[#This Row],[Alloc]]=\"CA\",tblREGASSJune19[[#This Row],[Alloc]]=\"WA\"),\"SITUS\",tblREGASSJune19[[#This Row],[Alloc]])","v":"SITUS"},{"$f":"INDEX(tblREGASSLookup[FUNC],MATCH(tblREGASSJune19[[#This Row],[Concat]],tblREGASSLookup[Concat],0))","v":{"$error":"#N/A"}},{"$f":"IF(tblREGASSJune19[[#This Row],[Total ($000)]]=0,\"NO\",IF(ISNA(tblREGASSJune19[[#This Row],[FUNC]]),\"YES\",IF(_xlfn.ISFORMULA(tblREGASSJune19[[#This Row],[FUNC]]),\"NO\",\"YES\")))","v":"NO"}]
[{"$f":"CONCATENATE(tblREGASSJune19[[#This Row],[Primary Account]],tblREGASSJune19[[#This Row],[Primary Name]],tblREGASSJune19[[#This Row],[Secondary Acct]],tblREGASSJune19[[#This Row],[Secondary  Name]],tblREGASSJune19[[#This Row],[Alloc4FUNC]])","v":"1823920DSR COSTS AMORTIZED101262MAP             96SITUS"},1823920,"DSR COSTS AMORTIZED",101262,"MAP             96","WYP",0,{"$f":"IF(OR(tblREGASSJune19[[#This Row],[Alloc]]=\"IDU\",tblREGASSJune19[[#This Row],[Alloc]]=\"OR\",tblREGASSJune19[[#This Row],[Alloc]]=\"UT\",tblREGASSJune19[[#This Row],[Alloc]]=\"WYU\",tblREGASSJune19[[#This Row],[Alloc]]=\"WYP\",tblREGASSJune19[[#This Row],[Alloc]]=\"CA\",tblREGASSJune19[[#This Row],[Alloc]]=\"WA\"),\"SITUS\",tblREGASSJune19[[#This Row],[Alloc]])","v":"SITUS"},{"$f":"INDEX(tblREGASSLookup[FUNC],MATCH(tblREGASSJune19[[#This Row],[Concat]],tblREGASSLookup[Concat],0))","v":{"$error":"#N/A"}},{"$f":"IF(tblREGASSJune19[[#This Row],[Total ($000)]]=0,\"NO\",IF(ISNA(tblREGASSJune19[[#This Row],[FUNC]]),\"YES\",IF(_xlfn.ISFORMULA(tblREGASSJune19[[#This Row],[FUNC]]),\"NO\",\"YES\")))","v":"NO"}]
[{"$f":"CONCATENATE(tblREGASSJune19[[#This Row],[Primary Account]],tblREGASSJune19[[#This Row],[Primary Name]],tblREGASSJune19[[#This Row],[Secondary Acct]],tblREGASSJune19[[#This Row],[Secondary  Name]],tblREGASSJune19[[#This Row],[Alloc4FUNC]])","v":"1823920DSR COSTS AMORTIZED101264IND FINANSWER   95SITUS"},1823920,"DSR COSTS AMORTIZED",101264,"IND FINANSWER   95","WYP",0,{"$f":"IF(OR(tblREGASSJune19[[#This Row],[Alloc]]=\"IDU\",tblREGASSJune19[[#This Row],[Alloc]]=\"OR\",tblREGASSJune19[[#This Row],[Alloc]]=\"UT\",tblREGASSJune19[[#This Row],[Alloc]]=\"WYU\",tblREGASSJune19[[#This Row],[Alloc]]=\"WYP\",tblREGASSJune19[[#This Row],[Alloc]]=\"CA\",tblREGASSJune19[[#This Row],[Alloc]]=\"WA\"),\"SITUS\",tblREGASSJune19[[#This Row],[Alloc]])","v":"SITUS"},{"$f":"INDEX(tblREGASSLookup[FUNC],MATCH(tblREGASSJune19[[#This Row],[Concat]],tblREGASSLookup[Concat],0))","v":{"$error":"#N/A"}},{"$f":"IF(tblREGASSJune19[[#This Row],[Total ($000)]]=0,\"NO\",IF(ISNA(tblREGASSJune19[[#This Row],[FUNC]]),\"YES\",IF(_xlfn.ISFORMULA(tblREGASSJune19[[#This Row],[FUNC]]),\"NO\",\"YES\")))","v":"NO"}]
[{"$f":"CONCATENATE(tblREGASSJune19[[#This Row],[Primary Account]],tblREGASSJune19[[#This Row],[Primary Name]],tblREGASSJune19[[#This Row],[Secondary Acct]],tblREGASSJune19[[#This Row],[Secondary  Name]],tblREGASSJune19[[#This Row],[Alloc4FUNC]])","v":"1823920DSR COSTS AMORTIZED101265IND FINANSWER   96SITUS"},1823920,"DSR COSTS AMORTIZED",101265,"IND FINANSWER   96","WYP",0,{"$f":"IF(OR(tblREGASSJune19[[#This Row],[Alloc]]=\"IDU\",tblREGASSJune19[[#This Row],[Alloc]]=\"OR\",tblREGASSJune19[[#This Row],[Alloc]]=\"UT\",tblREGASSJune19[[#This Row],[Alloc]]=\"WYU\",tblREGASSJune19[[#This Row],[Alloc]]=\"WYP\",tblREGASSJune19[[#This Row],[Alloc]]=\"CA\",tblREGASSJune19[[#This Row],[Alloc]]=\"WA\"),\"SITUS\",tblREGASSJune19[[#This Row],[Alloc]])","v":"SITUS"},{"$f":"INDEX(tblREGASSLookup[FUNC],MATCH(tblREGASSJune19[[#This Row],[Concat]],tblREGASSLookup[Concat],0))","v":{"$error":"#N/A"}},{"$f":"IF(tblREGASSJune19[[#This Row],[Total ($000)]]=0,\"NO\",IF(ISNA(tblREGASSJune19[[#This Row],[FUNC]]),\"YES\",IF(_xlfn.ISFORMULA(tblREGASSJune19[[#This Row],[FUNC]]),\"NO\",\"YES\")))","v":"NO"}]
[{"$f":"CONCATENATE(tblREGASSJune19[[#This Row],[Primary Account]],tblREGASSJune19[[#This Row],[Primary Name]],tblREGASSJune19[[#This Row],[Secondary Acct]],tblREGASSJune19[[#This Row],[Secondary  Name]],tblREGASSJune19[[#This Row],[Alloc4FUNC]])","v":"1823920DSR COSTS AMORTIZED101266INDUSTRIAL FINANSWER - WYOMING P - 1997SITUS"},1823920,"DSR COSTS AMORTIZED",101266,"INDUSTRIAL FINANSWER - WYOMING P - 1997","WYP",0,{"$f":"IF(OR(tblREGASSJune19[[#This Row],[Alloc]]=\"IDU\",tblREGASSJune19[[#This Row],[Alloc]]=\"OR\",tblREGASSJune19[[#This Row],[Alloc]]=\"UT\",tblREGASSJune19[[#This Row],[Alloc]]=\"WYU\",tblREGASSJune19[[#This Row],[Alloc]]=\"WYP\",tblREGASSJune19[[#This Row],[Alloc]]=\"CA\",tblREGASSJune19[[#This Row],[Alloc]]=\"WA\"),\"SITUS\",tblREGASSJune19[[#This Row],[Alloc]])","v":"SITUS"},{"$f":"INDEX(tblREGASSLookup[FUNC],MATCH(tblREGASSJune19[[#This Row],[Concat]],tblREGASSLookup[Concat],0))","v":{"$error":"#N/A"}},{"$f":"IF(tblREGASSJune19[[#This Row],[Total ($000)]]=0,\"NO\",IF(ISNA(tblREGASSJune19[[#This Row],[FUNC]]),\"YES\",IF(_xlfn.ISFORMULA(tblREGASSJune19[[#This Row],[FUNC]]),\"NO\",\"YES\")))","v":"NO"}]
[{"$f":"CONCATENATE(tblREGASSJune19[[#This Row],[Primary Account]],tblREGASSJune19[[#This Row],[Primary Name]],tblREGASSJune19[[#This Row],[Secondary Acct]],tblREGASSJune19[[#This Row],[Secondary  Name]],tblREGASSJune19[[#This Row],[Alloc4FUNC]])","v":"1823920DSR COSTS AMORTIZED101267INDUSTRIAL FINANSWER - WYOMING P - 1998SITUS"},1823920,"DSR COSTS AMORTIZED",101267,"INDUSTRIAL FINANSWER - WYOMING P - 1998","WYP",0,{"$f":"IF(OR(tblREGASSJune19[[#This Row],[Alloc]]=\"IDU\",tblREGASSJune19[[#This Row],[Alloc]]=\"OR\",tblREGASSJune19[[#This Row],[Alloc]]=\"UT\",tblREGASSJune19[[#This Row],[Alloc]]=\"WYU\",tblREGASSJune19[[#This Row],[Alloc]]=\"WYP\",tblREGASSJune19[[#This Row],[Alloc]]=\"CA\",tblREGASSJune19[[#This Row],[Alloc]]=\"WA\"),\"SITUS\",tblREGASSJune19[[#This Row],[Alloc]])","v":"SITUS"},{"$f":"INDEX(tblREGASSLookup[FUNC],MATCH(tblREGASSJune19[[#This Row],[Concat]],tblREGASSLookup[Concat],0))","v":{"$error":"#N/A"}},{"$f":"IF(tblREGASSJune19[[#This Row],[Total ($000)]]=0,\"NO\",IF(ISNA(tblREGASSJune19[[#This Row],[FUNC]]),\"YES\",IF(_xlfn.ISFORMULA(tblREGASSJune19[[#This Row],[FUNC]]),\"NO\",\"YES\")))","v":"NO"}]
[{"$f":"CONCATENATE(tblREGASSJune19[[#This Row],[Primary Account]],tblREGASSJune19[[#This Row],[Primary Name]],tblREGASSJune19[[#This Row],[Secondary Acct]],tblREGASSJune19[[#This Row],[Secondary  Name]],tblREGASSJune19[[#This Row],[Alloc4FUNC]])","v":"1823920DSR COSTS AMORTIZED101270COMMERCIAL RETROFIT - WYOMING P 1998SITUS"},1823920,"DSR COSTS AMORTIZED",101270,"COMMERCIAL RETROFIT - WYOMING P 1998","WYP",0,{"$f":"IF(OR(tblREGASSJune19[[#This Row],[Alloc]]=\"IDU\",tblREGASSJune19[[#This Row],[Alloc]]=\"OR\",tblREGASSJune19[[#This Row],[Alloc]]=\"UT\",tblREGASSJune19[[#This Row],[Alloc]]=\"WYU\",tblREGASSJune19[[#This Row],[Alloc]]=\"WYP\",tblREGASSJune19[[#This Row],[Alloc]]=\"CA\",tblREGASSJune19[[#This Row],[Alloc]]=\"WA\"),\"SITUS\",tblREGASSJune19[[#This Row],[Alloc]])","v":"SITUS"},{"$f":"INDEX(tblREGASSLookup[FUNC],MATCH(tblREGASSJune19[[#This Row],[Concat]],tblREGASSLookup[Concat],0))","v":{"$error":"#N/A"}},{"$f":"IF(tblREGASSJune19[[#This Row],[Total ($000)]]=0,\"NO\",IF(ISNA(tblREGASSJune19[[#This Row],[FUNC]]),\"YES\",IF(_xlfn.ISFORMULA(tblREGASSJune19[[#This Row],[FUNC]]),\"NO\",\"YES\")))","v":"NO"}]
[{"$f":"CONCATENATE(tblREGASSJune19[[#This Row],[Primary Account]],tblREGASSJune19[[#This Row],[Primary Name]],tblREGASSJune19[[#This Row],[Secondary Acct]],tblREGASSJune19[[#This Row],[Secondary  Name]],tblREGASSJune19[[#This Row],[Alloc4FUNC]])","v":"1823920DSR COSTS AMORTIZED101274REFRIGERATION   95SITUS"},1823920,"DSR COSTS AMORTIZED",101274,"REFRIGERATION   95","WYP",0,{"$f":"IF(OR(tblREGASSJune19[[#This Row],[Alloc]]=\"IDU\",tblREGASSJune19[[#This Row],[Alloc]]=\"OR\",tblREGASSJune19[[#This Row],[Alloc]]=\"UT\",tblREGASSJune19[[#This Row],[Alloc]]=\"WYU\",tblREGASSJune19[[#This Row],[Alloc]]=\"WYP\",tblREGASSJune19[[#This Row],[Alloc]]=\"CA\",tblREGASSJune19[[#This Row],[Alloc]]=\"WA\"),\"SITUS\",tblREGASSJune19[[#This Row],[Alloc]])","v":"SITUS"},{"$f":"INDEX(tblREGASSLookup[FUNC],MATCH(tblREGASSJune19[[#This Row],[Concat]],tblREGASSLookup[Concat],0))","v":{"$error":"#N/A"}},{"$f":"IF(tblREGASSJune19[[#This Row],[Total ($000)]]=0,\"NO\",IF(ISNA(tblREGASSJune19[[#This Row],[FUNC]]),\"YES\",IF(_xlfn.ISFORMULA(tblREGASSJune19[[#This Row],[FUNC]]),\"NO\",\"YES\")))","v":"NO"}]
[{"$f":"CONCATENATE(tblREGASSJune19[[#This Row],[Primary Account]],tblREGASSJune19[[#This Row],[Primary Name]],tblREGASSJune19[[#This Row],[Secondary Acct]],tblREGASSJune19[[#This Row],[Secondary  Name]],tblREGASSJune19[[#This Row],[Alloc4FUNC]])","v":"1823920DSR COSTS AMORTIZED101278SUPER GOOD CENTS WYP 1995SITUS"},1823920,"DSR COSTS AMORTIZED",101278,"SUPER GOOD CENTS WYP 1995","WYP",0,{"$f":"IF(OR(tblREGASSJune19[[#This Row],[Alloc]]=\"IDU\",tblREGASSJune19[[#This Row],[Alloc]]=\"OR\",tblREGASSJune19[[#This Row],[Alloc]]=\"UT\",tblREGASSJune19[[#This Row],[Alloc]]=\"WYU\",tblREGASSJune19[[#This Row],[Alloc]]=\"WYP\",tblREGASSJune19[[#This Row],[Alloc]]=\"CA\",tblREGASSJune19[[#This Row],[Alloc]]=\"WA\"),\"SITUS\",tblREGASSJune19[[#This Row],[Alloc]])","v":"SITUS"},{"$f":"INDEX(tblREGASSLookup[FUNC],MATCH(tblREGASSJune19[[#This Row],[Concat]],tblREGASSLookup[Concat],0))","v":{"$error":"#N/A"}},{"$f":"IF(tblREGASSJune19[[#This Row],[Total ($000)]]=0,\"NO\",IF(ISNA(tblREGASSJune19[[#This Row],[FUNC]]),\"YES\",IF(_xlfn.ISFORMULA(tblREGASSJune19[[#This Row],[FUNC]]),\"NO\",\"YES\")))","v":"NO"}]
[{"$f":"CONCATENATE(tblREGASSJune19[[#This Row],[Primary Account]],tblREGASSJune19[[#This Row],[Primary Name]],tblREGASSJune19[[#This Row],[Secondary Acct]],tblREGASSJune19[[#This Row],[Secondary  Name]],tblREGASSJune19[[#This Row],[Alloc4FUNC]])","v":"1823920DSR COSTS AMORTIZED101279SUPER GOOD CENTS WYP 1996SITUS"},1823920,"DSR COSTS AMORTIZED",101279,"SUPER GOOD CENTS WYP 1996","WYP",0,{"$f":"IF(OR(tblREGASSJune19[[#This Row],[Alloc]]=\"IDU\",tblREGASSJune19[[#This Row],[Alloc]]=\"OR\",tblREGASSJune19[[#This Row],[Alloc]]=\"UT\",tblREGASSJune19[[#This Row],[Alloc]]=\"WYU\",tblREGASSJune19[[#This Row],[Alloc]]=\"WYP\",tblREGASSJune19[[#This Row],[Alloc]]=\"CA\",tblREGASSJune19[[#This Row],[Alloc]]=\"WA\"),\"SITUS\",tblREGASSJune19[[#This Row],[Alloc]])","v":"SITUS"},{"$f":"INDEX(tblREGASSLookup[FUNC],MATCH(tblREGASSJune19[[#This Row],[Concat]],tblREGASSLookup[Concat],0))","v":{"$error":"#N/A"}},{"$f":"IF(tblREGASSJune19[[#This Row],[Total ($000)]]=0,\"NO\",IF(ISNA(tblREGASSJune19[[#This Row],[FUNC]]),\"YES\",IF(_xlfn.ISFORMULA(tblREGASSJune19[[#This Row],[FUNC]]),\"NO\",\"YES\")))","v":"NO"}]
[{"$f":"CONCATENATE(tblREGASSJune19[[#This Row],[Primary Account]],tblREGASSJune19[[#This Row],[Primary Name]],tblREGASSJune19[[#This Row],[Secondary Acct]],tblREGASSJune19[[#This Row],[Secondary  Name]],tblREGASSJune19[[#This Row],[Alloc4FUNC]])","v":"1823920DSR COSTS AMORTIZED101280SUPER GOOD CENTS WYP 1997SITUS"},1823920,"DSR COSTS AMORTIZED",101280,"SUPER GOOD CENTS WYP 1997","WYP",0,{"$f":"IF(OR(tblREGASSJune19[[#This Row],[Alloc]]=\"IDU\",tblREGASSJune19[[#This Row],[Alloc]]=\"OR\",tblREGASSJune19[[#This Row],[Alloc]]=\"UT\",tblREGASSJune19[[#This Row],[Alloc]]=\"WYU\",tblREGASSJune19[[#This Row],[Alloc]]=\"WYP\",tblREGASSJune19[[#This Row],[Alloc]]=\"CA\",tblREGASSJune19[[#This Row],[Alloc]]=\"WA\"),\"SITUS\",tblREGASSJune19[[#This Row],[Alloc]])","v":"SITUS"},{"$f":"INDEX(tblREGASSLookup[FUNC],MATCH(tblREGASSJune19[[#This Row],[Concat]],tblREGASSLookup[Concat],0))","v":{"$error":"#N/A"}},{"$f":"IF(tblREGASSJune19[[#This Row],[Total ($000)]]=0,\"NO\",IF(ISNA(tblREGASSJune19[[#This Row],[FUNC]]),\"YES\",IF(_xlfn.ISFORMULA(tblREGASSJune19[[#This Row],[FUNC]]),\"NO\",\"YES\")))","v":"NO"}]
[{"$f":"CONCATENATE(tblREGASSJune19[[#This Row],[Primary Account]],tblREGASSJune19[[#This Row],[Primary Name]],tblREGASSJune19[[#This Row],[Secondary Acct]],tblREGASSJune19[[#This Row],[Secondary  Name]],tblREGASSJune19[[#This Row],[Alloc4FUNC]])","v":"1823920DSR COSTS AMORTIZED101281SUPER GOOD CENTS WYP 1998SITUS"},1823920,"DSR COSTS AMORTIZED",101281,"SUPER GOOD CENTS WYP 1998","WYP",0,{"$f":"IF(OR(tblREGASSJune19[[#This Row],[Alloc]]=\"IDU\",tblREGASSJune19[[#This Row],[Alloc]]=\"OR\",tblREGASSJune19[[#This Row],[Alloc]]=\"UT\",tblREGASSJune19[[#This Row],[Alloc]]=\"WYU\",tblREGASSJune19[[#This Row],[Alloc]]=\"WYP\",tblREGASSJune19[[#This Row],[Alloc]]=\"CA\",tblREGASSJune19[[#This Row],[Alloc]]=\"WA\"),\"SITUS\",tblREGASSJune19[[#This Row],[Alloc]])","v":"SITUS"},{"$f":"INDEX(tblREGASSLookup[FUNC],MATCH(tblREGASSJune19[[#This Row],[Concat]],tblREGASSLookup[Concat],0))","v":{"$error":"#N/A"}},{"$f":"IF(tblREGASSJune19[[#This Row],[Total ($000)]]=0,\"NO\",IF(ISNA(tblREGASSJune19[[#This Row],[FUNC]]),\"YES\",IF(_xlfn.ISFORMULA(tblREGASSJune19[[#This Row],[FUNC]]),\"NO\",\"YES\")))","v":"NO"}]
[{"$f":"CONCATENATE(tblREGASSJune19[[#This Row],[Primary Account]],tblREGASSJune19[[#This Row],[Primary Name]],tblREGASSJune19[[#This Row],[Secondary Acct]],tblREGASSJune19[[#This Row],[Secondary  Name]],tblREGASSJune19[[#This Row],[Alloc4FUNC]])","v":"1823920DSR COSTS AMORTIZED101285REFRIGERATION   95SITUS"},1823920,"DSR COSTS AMORTIZED",101285,"REFRIGERATION   95","WYU",0,{"$f":"IF(OR(tblREGASSJune19[[#This Row],[Alloc]]=\"IDU\",tblREGASSJune19[[#This Row],[Alloc]]=\"OR\",tblREGASSJune19[[#This Row],[Alloc]]=\"UT\",tblREGASSJune19[[#This Row],[Alloc]]=\"WYU\",tblREGASSJune19[[#This Row],[Alloc]]=\"WYP\",tblREGASSJune19[[#This Row],[Alloc]]=\"CA\",tblREGASSJune19[[#This Row],[Alloc]]=\"WA\"),\"SITUS\",tblREGASSJune19[[#This Row],[Alloc]])","v":"SITUS"},{"$f":"INDEX(tblREGASSLookup[FUNC],MATCH(tblREGASSJune19[[#This Row],[Concat]],tblREGASSLookup[Concat],0))","v":{"$error":"#N/A"}},{"$f":"IF(tblREGASSJune19[[#This Row],[Total ($000)]]=0,\"NO\",IF(ISNA(tblREGASSJune19[[#This Row],[FUNC]]),\"YES\",IF(_xlfn.ISFORMULA(tblREGASSJune19[[#This Row],[FUNC]]),\"NO\",\"YES\")))","v":"NO"}]
[{"$f":"CONCATENATE(tblREGASSJune19[[#This Row],[Primary Account]],tblREGASSJune19[[#This Row],[Primary Name]],tblREGASSJune19[[#This Row],[Secondary Acct]],tblREGASSJune19[[#This Row],[Secondary  Name]],tblREGASSJune19[[#This Row],[Alloc4FUNC]])","v":"1823920DSR COSTS AMORTIZED101288ENERGY FINANSWER95SITUS"},1823920,"DSR COSTS AMORTIZED",101288,"ENERGY FINANSWER95","WYU",0,{"$f":"IF(OR(tblREGASSJune19[[#This Row],[Alloc]]=\"IDU\",tblREGASSJune19[[#This Row],[Alloc]]=\"OR\",tblREGASSJune19[[#This Row],[Alloc]]=\"UT\",tblREGASSJune19[[#This Row],[Alloc]]=\"WYU\",tblREGASSJune19[[#This Row],[Alloc]]=\"WYP\",tblREGASSJune19[[#This Row],[Alloc]]=\"CA\",tblREGASSJune19[[#This Row],[Alloc]]=\"WA\"),\"SITUS\",tblREGASSJune19[[#This Row],[Alloc]])","v":"SITUS"},{"$f":"INDEX(tblREGASSLookup[FUNC],MATCH(tblREGASSJune19[[#This Row],[Concat]],tblREGASSLookup[Concat],0))","v":{"$error":"#N/A"}},{"$f":"IF(tblREGASSJune19[[#This Row],[Total ($000)]]=0,\"NO\",IF(ISNA(tblREGASSJune19[[#This Row],[FUNC]]),\"YES\",IF(_xlfn.ISFORMULA(tblREGASSJune19[[#This Row],[FUNC]]),\"NO\",\"YES\")))","v":"NO"}]
[{"$f":"CONCATENATE(tblREGASSJune19[[#This Row],[Primary Account]],tblREGASSJune19[[#This Row],[Primary Name]],tblREGASSJune19[[#This Row],[Secondary Acct]],tblREGASSJune19[[#This Row],[Secondary  Name]],tblREGASSJune19[[#This Row],[Alloc4FUNC]])","v":"1823920DSR COSTS AMORTIZED101292IND FINANSWER   95SITUS"},1823920,"DSR COSTS AMORTIZED",101292,"IND FINANSWER   95","WYU",0,{"$f":"IF(OR(tblREGASSJune19[[#This Row],[Alloc]]=\"IDU\",tblREGASSJune19[[#This Row],[Alloc]]=\"OR\",tblREGASSJune19[[#This Row],[Alloc]]=\"UT\",tblREGASSJune19[[#This Row],[Alloc]]=\"WYU\",tblREGASSJune19[[#This Row],[Alloc]]=\"WYP\",tblREGASSJune19[[#This Row],[Alloc]]=\"CA\",tblREGASSJune19[[#This Row],[Alloc]]=\"WA\"),\"SITUS\",tblREGASSJune19[[#This Row],[Alloc]])","v":"SITUS"},{"$f":"INDEX(tblREGASSLookup[FUNC],MATCH(tblREGASSJune19[[#This Row],[Concat]],tblREGASSLookup[Concat],0))","v":{"$error":"#N/A"}},{"$f":"IF(tblREGASSJune19[[#This Row],[Total ($000)]]=0,\"NO\",IF(ISNA(tblREGASSJune19[[#This Row],[FUNC]]),\"YES\",IF(_xlfn.ISFORMULA(tblREGASSJune19[[#This Row],[FUNC]]),\"NO\",\"YES\")))","v":"NO"}]
[{"$f":"CONCATENATE(tblREGASSJune19[[#This Row],[Primary Account]],tblREGASSJune19[[#This Row],[Primary Name]],tblREGASSJune19[[#This Row],[Secondary Acct]],tblREGASSJune19[[#This Row],[Secondary  Name]],tblREGASSJune19[[#This Row],[Alloc4FUNC]])","v":"1823920DSR COSTS AMORTIZED101293IND FINANSWER   96SITUS"},1823920,"DSR COSTS AMORTIZED",101293,"IND FINANSWER   96","WYU",0,{"$f":"IF(OR(tblREGASSJune19[[#This Row],[Alloc]]=\"IDU\",tblREGASSJune19[[#This Row],[Alloc]]=\"OR\",tblREGASSJune19[[#This Row],[Alloc]]=\"UT\",tblREGASSJune19[[#This Row],[Alloc]]=\"WYU\",tblREGASSJune19[[#This Row],[Alloc]]=\"WYP\",tblREGASSJune19[[#This Row],[Alloc]]=\"CA\",tblREGASSJune19[[#This Row],[Alloc]]=\"WA\"),\"SITUS\",tblREGASSJune19[[#This Row],[Alloc]])","v":"SITUS"},{"$f":"INDEX(tblREGASSLookup[FUNC],MATCH(tblREGASSJune19[[#This Row],[Concat]],tblREGASSLookup[Concat],0))","v":{"$error":"#N/A"}},{"$f":"IF(tblREGASSJune19[[#This Row],[Total ($000)]]=0,\"NO\",IF(ISNA(tblREGASSJune19[[#This Row],[FUNC]]),\"YES\",IF(_xlfn.ISFORMULA(tblREGASSJune19[[#This Row],[FUNC]]),\"NO\",\"YES\")))","v":"NO"}]
[{"$f":"CONCATENATE(tblREGASSJune19[[#This Row],[Primary Account]],tblREGASSJune19[[#This Row],[Primary Name]],tblREGASSJune19[[#This Row],[Secondary Acct]],tblREGASSJune19[[#This Row],[Secondary  Name]],tblREGASSJune19[[#This Row],[Alloc4FUNC]])","v":"1823920DSR COSTS AMORTIZED101294INDUSTRIAL FINANSWER - WYOMING U 1997SITUS"},1823920,"DSR COSTS AMORTIZED",101294,"INDUSTRIAL FINANSWER - WYOMING U 1997","WYU",0,{"$f":"IF(OR(tblREGASSJune19[[#This Row],[Alloc]]=\"IDU\",tblREGASSJune19[[#This Row],[Alloc]]=\"OR\",tblREGASSJune19[[#This Row],[Alloc]]=\"UT\",tblREGASSJune19[[#This Row],[Alloc]]=\"WYU\",tblREGASSJune19[[#This Row],[Alloc]]=\"WYP\",tblREGASSJune19[[#This Row],[Alloc]]=\"CA\",tblREGASSJune19[[#This Row],[Alloc]]=\"WA\"),\"SITUS\",tblREGASSJune19[[#This Row],[Alloc]])","v":"SITUS"},{"$f":"INDEX(tblREGASSLookup[FUNC],MATCH(tblREGASSJune19[[#This Row],[Concat]],tblREGASSLookup[Concat],0))","v":{"$error":"#N/A"}},{"$f":"IF(tblREGASSJune19[[#This Row],[Total ($000)]]=0,\"NO\",IF(ISNA(tblREGASSJune19[[#This Row],[FUNC]]),\"YES\",IF(_xlfn.ISFORMULA(tblREGASSJune19[[#This Row],[FUNC]]),\"NO\",\"YES\")))","v":"NO"}]
[{"$f":"CONCATENATE(tblREGASSJune19[[#This Row],[Primary Account]],tblREGASSJune19[[#This Row],[Primary Name]],tblREGASSJune19[[#This Row],[Secondary Acct]],tblREGASSJune19[[#This Row],[Secondary  Name]],tblREGASSJune19[[#This Row],[Alloc4FUNC]])","v":"1823920DSR COSTS AMORTIZED101295INDUSTRIAL FINANSWER - WYOMING U 1998SITUS"},1823920,"DSR COSTS AMORTIZED",101295,"INDUSTRIAL FINANSWER - WYOMING U 1998","WYU",0,{"$f":"IF(OR(tblREGASSJune19[[#This Row],[Alloc]]=\"IDU\",tblREGASSJune19[[#This Row],[Alloc]]=\"OR\",tblREGASSJune19[[#This Row],[Alloc]]=\"UT\",tblREGASSJune19[[#This Row],[Alloc]]=\"WYU\",tblREGASSJune19[[#This Row],[Alloc]]=\"WYP\",tblREGASSJune19[[#This Row],[Alloc]]=\"CA\",tblREGASSJune19[[#This Row],[Alloc]]=\"WA\"),\"SITUS\",tblREGASSJune19[[#This Row],[Alloc]])","v":"SITUS"},{"$f":"INDEX(tblREGASSLookup[FUNC],MATCH(tblREGASSJune19[[#This Row],[Concat]],tblREGASSLookup[Concat],0))","v":{"$error":"#N/A"}},{"$f":"IF(tblREGASSJune19[[#This Row],[Total ($000)]]=0,\"NO\",IF(ISNA(tblREGASSJune19[[#This Row],[FUNC]]),\"YES\",IF(_xlfn.ISFORMULA(tblREGASSJune19[[#This Row],[FUNC]]),\"NO\",\"YES\")))","v":"NO"}]
[{"$f":"CONCATENATE(tblREGASSJune19[[#This Row],[Primary Account]],tblREGASSJune19[[#This Row],[Primary Name]],tblREGASSJune19[[#This Row],[Secondary Acct]],tblREGASSJune19[[#This Row],[Secondary  Name]],tblREGASSJune19[[#This Row],[Alloc4FUNC]])","v":"1823920DSR COSTS AMORTIZED101299SUPER GOOD CENTS95SITUS"},1823920,"DSR COSTS AMORTIZED",101299,"SUPER GOOD CENTS95","WYU",0,{"$f":"IF(OR(tblREGASSJune19[[#This Row],[Alloc]]=\"IDU\",tblREGASSJune19[[#This Row],[Alloc]]=\"OR\",tblREGASSJune19[[#This Row],[Alloc]]=\"UT\",tblREGASSJune19[[#This Row],[Alloc]]=\"WYU\",tblREGASSJune19[[#This Row],[Alloc]]=\"WYP\",tblREGASSJune19[[#This Row],[Alloc]]=\"CA\",tblREGASSJune19[[#This Row],[Alloc]]=\"WA\"),\"SITUS\",tblREGASSJune19[[#This Row],[Alloc]])","v":"SITUS"},{"$f":"INDEX(tblREGASSLookup[FUNC],MATCH(tblREGASSJune19[[#This Row],[Concat]],tblREGASSLookup[Concat],0))","v":{"$error":"#N/A"}},{"$f":"IF(tblREGASSJune19[[#This Row],[Total ($000)]]=0,\"NO\",IF(ISNA(tblREGASSJune19[[#This Row],[FUNC]]),\"YES\",IF(_xlfn.ISFORMULA(tblREGASSJune19[[#This Row],[FUNC]]),\"NO\",\"YES\")))","v":"NO"}]
[{"$f":"CONCATENATE(tblREGASSJune19[[#This Row],[Primary Account]],tblREGASSJune19[[#This Row],[Primary Name]],tblREGASSJune19[[#This Row],[Secondary Acct]],tblREGASSJune19[[#This Row],[Secondary  Name]],tblREGASSJune19[[#This Row],[Alloc4FUNC]])","v":"1823920DSR COSTS AMORTIZED101902ENERGY FINANSWER - WY PPL 1999SITUS"},1823920,"DSR COSTS AMORTIZED",101902,"ENERGY FINANSWER - WY PPL 1999","WYP",0,{"$f":"IF(OR(tblREGASSJune19[[#This Row],[Alloc]]=\"IDU\",tblREGASSJune19[[#This Row],[Alloc]]=\"OR\",tblREGASSJune19[[#This Row],[Alloc]]=\"UT\",tblREGASSJune19[[#This Row],[Alloc]]=\"WYU\",tblREGASSJune19[[#This Row],[Alloc]]=\"WYP\",tblREGASSJune19[[#This Row],[Alloc]]=\"CA\",tblREGASSJune19[[#This Row],[Alloc]]=\"WA\"),\"SITUS\",tblREGASSJune19[[#This Row],[Alloc]])","v":"SITUS"},{"$f":"INDEX(tblREGASSLookup[FUNC],MATCH(tblREGASSJune19[[#This Row],[Concat]],tblREGASSLookup[Concat],0))","v":{"$error":"#N/A"}},{"$f":"IF(tblREGASSJune19[[#This Row],[Total ($000)]]=0,\"NO\",IF(ISNA(tblREGASSJune19[[#This Row],[FUNC]]),\"YES\",IF(_xlfn.ISFORMULA(tblREGASSJune19[[#This Row],[FUNC]]),\"NO\",\"YES\")))","v":"NO"}]
[{"$f":"CONCATENATE(tblREGASSJune19[[#This Row],[Primary Account]],tblREGASSJune19[[#This Row],[Primary Name]],tblREGASSJune19[[#This Row],[Secondary Acct]],tblREGASSJune19[[#This Row],[Secondary  Name]],tblREGASSJune19[[#This Row],[Alloc4FUNC]])","v":"1823920DSR COSTS AMORTIZED101903INDUSTRIAL FINANSWER - WY PPL 1999SITUS"},1823920,"DSR COSTS AMORTIZED",101903,"INDUSTRIAL FINANSWER - WY PPL 1999","WYP",0,{"$f":"IF(OR(tblREGASSJune19[[#This Row],[Alloc]]=\"IDU\",tblREGASSJune19[[#This Row],[Alloc]]=\"OR\",tblREGASSJune19[[#This Row],[Alloc]]=\"UT\",tblREGASSJune19[[#This Row],[Alloc]]=\"WYU\",tblREGASSJune19[[#This Row],[Alloc]]=\"WYP\",tblREGASSJune19[[#This Row],[Alloc]]=\"CA\",tblREGASSJune19[[#This Row],[Alloc]]=\"WA\"),\"SITUS\",tblREGASSJune19[[#This Row],[Alloc]])","v":"SITUS"},{"$f":"INDEX(tblREGASSLookup[FUNC],MATCH(tblREGASSJune19[[#This Row],[Concat]],tblREGASSLookup[Concat],0))","v":{"$error":"#N/A"}},{"$f":"IF(tblREGASSJune19[[#This Row],[Total ($000)]]=0,\"NO\",IF(ISNA(tblREGASSJune19[[#This Row],[FUNC]]),\"YES\",IF(_xlfn.ISFORMULA(tblREGASSJune19[[#This Row],[FUNC]]),\"NO\",\"YES\")))","v":"NO"}]
[{"$f":"CONCATENATE(tblREGASSJune19[[#This Row],[Primary Account]],tblREGASSJune19[[#This Row],[Primary Name]],tblREGASSJune19[[#This Row],[Secondary Acct]],tblREGASSJune19[[#This Row],[Secondary  Name]],tblREGASSJune19[[#This Row],[Alloc4FUNC]])","v":"1823920DSR COSTS AMORTIZED101944COMMERCIAL RETROFIT - WYOMING - PPL 2000SITUS"},1823920,"DSR COSTS AMORTIZED",101944,"COMMERCIAL RETROFIT - WYOMING - PPL 2000","WYP",0,{"$f":"IF(OR(tblREGASSJune19[[#This Row],[Alloc]]=\"IDU\",tblREGASSJune19[[#This Row],[Alloc]]=\"OR\",tblREGASSJune19[[#This Row],[Alloc]]=\"UT\",tblREGASSJune19[[#This Row],[Alloc]]=\"WYU\",tblREGASSJune19[[#This Row],[Alloc]]=\"WYP\",tblREGASSJune19[[#This Row],[Alloc]]=\"CA\",tblREGASSJune19[[#This Row],[Alloc]]=\"WA\"),\"SITUS\",tblREGASSJune19[[#This Row],[Alloc]])","v":"SITUS"},{"$f":"INDEX(tblREGASSLookup[FUNC],MATCH(tblREGASSJune19[[#This Row],[Concat]],tblREGASSLookup[Concat],0))","v":{"$error":"#N/A"}},{"$f":"IF(tblREGASSJune19[[#This Row],[Total ($000)]]=0,\"NO\",IF(ISNA(tblREGASSJune19[[#This Row],[FUNC]]),\"YES\",IF(_xlfn.ISFORMULA(tblREGASSJune19[[#This Row],[FUNC]]),\"NO\",\"YES\")))","v":"NO"}]
[{"$f":"CONCATENATE(tblREGASSJune19[[#This Row],[Primary Account]],tblREGASSJune19[[#This Row],[Primary Name]],tblREGASSJune19[[#This Row],[Secondary Acct]],tblREGASSJune19[[#This Row],[Secondary  Name]],tblREGASSJune19[[#This Row],[Alloc4FUNC]])","v":"1823920DSR COSTS AMORTIZED101945ENERGY FINANSWER-WYOMING - PPL 2000SITUS"},1823920,"DSR COSTS AMORTIZED",101945,"ENERGY FINANSWER-WYOMING - PPL 2000","WYP",0,{"$f":"IF(OR(tblREGASSJune19[[#This Row],[Alloc]]=\"IDU\",tblREGASSJune19[[#This Row],[Alloc]]=\"OR\",tblREGASSJune19[[#This Row],[Alloc]]=\"UT\",tblREGASSJune19[[#This Row],[Alloc]]=\"WYU\",tblREGASSJune19[[#This Row],[Alloc]]=\"WYP\",tblREGASSJune19[[#This Row],[Alloc]]=\"CA\",tblREGASSJune19[[#This Row],[Alloc]]=\"WA\"),\"SITUS\",tblREGASSJune19[[#This Row],[Alloc]])","v":"SITUS"},{"$f":"INDEX(tblREGASSLookup[FUNC],MATCH(tblREGASSJune19[[#This Row],[Concat]],tblREGASSLookup[Concat],0))","v":{"$error":"#N/A"}},{"$f":"IF(tblREGASSJune19[[#This Row],[Total ($000)]]=0,\"NO\",IF(ISNA(tblREGASSJune19[[#This Row],[FUNC]]),\"YES\",IF(_xlfn.ISFORMULA(tblREGASSJune19[[#This Row],[FUNC]]),\"NO\",\"YES\")))","v":"NO"}]
[{"$f":"CONCATENATE(tblREGASSJune19[[#This Row],[Primary Account]],tblREGASSJune19[[#This Row],[Primary Name]],tblREGASSJune19[[#This Row],[Secondary Acct]],tblREGASSJune19[[#This Row],[Secondary  Name]],tblREGASSJune19[[#This Row],[Alloc4FUNC]])","v":"1823920DSR COSTS AMORTIZED101946INDUSTRIAL FINANSWER-WYOMING - PPL 2000SITUS"},1823920,"DSR COSTS AMORTIZED",101946,"INDUSTRIAL FINANSWER-WYOMING - PPL 2000","WYP",0,{"$f":"IF(OR(tblREGASSJune19[[#This Row],[Alloc]]=\"IDU\",tblREGASSJune19[[#This Row],[Alloc]]=\"OR\",tblREGASSJune19[[#This Row],[Alloc]]=\"UT\",tblREGASSJune19[[#This Row],[Alloc]]=\"WYU\",tblREGASSJune19[[#This Row],[Alloc]]=\"WYP\",tblREGASSJune19[[#This Row],[Alloc]]=\"CA\",tblREGASSJune19[[#This Row],[Alloc]]=\"WA\"),\"SITUS\",tblREGASSJune19[[#This Row],[Alloc]])","v":"SITUS"},{"$f":"INDEX(tblREGASSLookup[FUNC],MATCH(tblREGASSJune19[[#This Row],[Concat]],tblREGASSLookup[Concat],0))","v":{"$error":"#N/A"}},{"$f":"IF(tblREGASSJune19[[#This Row],[Total ($000)]]=0,\"NO\",IF(ISNA(tblREGASSJune19[[#This Row],[FUNC]]),\"YES\",IF(_xlfn.ISFORMULA(tblREGASSJune19[[#This Row],[FUNC]]),\"NO\",\"YES\")))","v":"NO"}]
[{"$f":"CONCATENATE(tblREGASSJune19[[#This Row],[Primary Account]],tblREGASSJune19[[#This Row],[Primary Name]],tblREGASSJune19[[#This Row],[Secondary Acct]],tblREGASSJune19[[#This Row],[Secondary  Name]],tblREGASSJune19[[#This Row],[Alloc4FUNC]])","v":"1823920DSR COSTS AMORTIZED101947SELF AUDIT - WYOMING - PPL 2000SITUS"},1823920,"DSR COSTS AMORTIZED",101947,"SELF AUDIT - WYOMING - PPL 2000","WYP",0,{"$f":"IF(OR(tblREGASSJune19[[#This Row],[Alloc]]=\"IDU\",tblREGASSJune19[[#This Row],[Alloc]]=\"OR\",tblREGASSJune19[[#This Row],[Alloc]]=\"UT\",tblREGASSJune19[[#This Row],[Alloc]]=\"WYU\",tblREGASSJune19[[#This Row],[Alloc]]=\"WYP\",tblREGASSJune19[[#This Row],[Alloc]]=\"CA\",tblREGASSJune19[[#This Row],[Alloc]]=\"WA\"),\"SITUS\",tblREGASSJune19[[#This Row],[Alloc]])","v":"SITUS"},{"$f":"INDEX(tblREGASSLookup[FUNC],MATCH(tblREGASSJune19[[#This Row],[Concat]],tblREGASSLookup[Concat],0))","v":{"$error":"#N/A"}},{"$f":"IF(tblREGASSJune19[[#This Row],[Total ($000)]]=0,\"NO\",IF(ISNA(tblREGASSJune19[[#This Row],[FUNC]]),\"YES\",IF(_xlfn.ISFORMULA(tblREGASSJune19[[#This Row],[FUNC]]),\"NO\",\"YES\")))","v":"NO"}]
[{"$f":"CONCATENATE(tblREGASSJune19[[#This Row],[Primary Account]],tblREGASSJune19[[#This Row],[Primary Name]],tblREGASSJune19[[#This Row],[Secondary Acct]],tblREGASSJune19[[#This Row],[Secondary  Name]],tblREGASSJune19[[#This Row],[Alloc4FUNC]])","v":"1823920DSR COSTS AMORTIZED101948SPECIAL CONTRACTS-DSM-WY-PPL 2001SITUS"},1823920,"DSR COSTS AMORTIZED",101948,"SPECIAL CONTRACTS-DSM-WY-PPL 2001","WYP",0,{"$f":"IF(OR(tblREGASSJune19[[#This Row],[Alloc]]=\"IDU\",tblREGASSJune19[[#This Row],[Alloc]]=\"OR\",tblREGASSJune19[[#This Row],[Alloc]]=\"UT\",tblREGASSJune19[[#This Row],[Alloc]]=\"WYU\",tblREGASSJune19[[#This Row],[Alloc]]=\"WYP\",tblREGASSJune19[[#This Row],[Alloc]]=\"CA\",tblREGASSJune19[[#This Row],[Alloc]]=\"WA\"),\"SITUS\",tblREGASSJune19[[#This Row],[Alloc]])","v":"SITUS"},{"$f":"INDEX(tblREGASSLookup[FUNC],MATCH(tblREGASSJune19[[#This Row],[Concat]],tblREGASSLookup[Concat],0))","v":{"$error":"#N/A"}},{"$f":"IF(tblREGASSJune19[[#This Row],[Total ($000)]]=0,\"NO\",IF(ISNA(tblREGASSJune19[[#This Row],[FUNC]]),\"YES\",IF(_xlfn.ISFORMULA(tblREGASSJune19[[#This Row],[FUNC]]),\"NO\",\"YES\")))","v":"NO"}]
[{"$f":"CONCATENATE(tblREGASSJune19[[#This Row],[Primary Account]],tblREGASSJune19[[#This Row],[Primary Name]],tblREGASSJune19[[#This Row],[Secondary Acct]],tblREGASSJune19[[#This Row],[Secondary  Name]],tblREGASSJune19[[#This Row],[Alloc4FUNC]])","v":"1823920DSR COSTS AMORTIZED101949SELF AUDIT - WYOMING - UP&L 2000SITUS"},1823920,"DSR COSTS AMORTIZED",101949,"SELF AUDIT - WYOMING - UP&L 2000","WYU",0,{"$f":"IF(OR(tblREGASSJune19[[#This Row],[Alloc]]=\"IDU\",tblREGASSJune19[[#This Row],[Alloc]]=\"OR\",tblREGASSJune19[[#This Row],[Alloc]]=\"UT\",tblREGASSJune19[[#This Row],[Alloc]]=\"WYU\",tblREGASSJune19[[#This Row],[Alloc]]=\"WYP\",tblREGASSJune19[[#This Row],[Alloc]]=\"CA\",tblREGASSJune19[[#This Row],[Alloc]]=\"WA\"),\"SITUS\",tblREGASSJune19[[#This Row],[Alloc]])","v":"SITUS"},{"$f":"INDEX(tblREGASSLookup[FUNC],MATCH(tblREGASSJune19[[#This Row],[Concat]],tblREGASSLookup[Concat],0))","v":{"$error":"#N/A"}},{"$f":"IF(tblREGASSJune19[[#This Row],[Total ($000)]]=0,\"NO\",IF(ISNA(tblREGASSJune19[[#This Row],[FUNC]]),\"YES\",IF(_xlfn.ISFORMULA(tblREGASSJune19[[#This Row],[FUNC]]),\"NO\",\"YES\")))","v":"NO"}]
[{"$f":"CONCATENATE(tblREGASSJune19[[#This Row],[Primary Account]],tblREGASSJune19[[#This Row],[Primary Name]],tblREGASSJune19[[#This Row],[Secondary Acct]],tblREGASSJune19[[#This Row],[Secondary  Name]],tblREGASSJune19[[#This Row],[Alloc4FUNC]])","v":"1823920DSR COSTS AMORTIZED101998OREGON - DECOUPLING - 2000OTHER"},1823920,"DSR COSTS AMORTIZED",101998,"OREGON - DECOUPLING - 2000","OTHER",0,{"$f":"IF(OR(tblREGASSJune19[[#This Row],[Alloc]]=\"IDU\",tblREGASSJune19[[#This Row],[Alloc]]=\"OR\",tblREGASSJune19[[#This Row],[Alloc]]=\"UT\",tblREGASSJune19[[#This Row],[Alloc]]=\"WYU\",tblREGASSJune19[[#This Row],[Alloc]]=\"WYP\",tblREGASSJune19[[#This Row],[Alloc]]=\"CA\",tblREGASSJune19[[#This Row],[Alloc]]=\"WA\"),\"SITUS\",tblREGASSJune19[[#This Row],[Alloc]])","v":"OTHER"},{"$f":"INDEX(tblREGASSLookup[FUNC],MATCH(tblREGASSJune19[[#This Row],[Concat]],tblREGASSLookup[Concat],0))","v":{"$error":"#N/A"}},{"$f":"IF(tblREGASSJune19[[#This Row],[Total ($000)]]=0,\"NO\",IF(ISNA(tblREGASSJune19[[#This Row],[FUNC]]),\"YES\",IF(_xlfn.ISFORMULA(tblREGASSJune19[[#This Row],[FUNC]]),\"NO\",\"YES\")))","v":"NO"}]
[{"$f":"CONCATENATE(tblREGASSJune19[[#This Row],[Primary Account]],tblREGASSJune19[[#This Row],[Primary Name]],tblREGASSJune19[[#This Row],[Secondary Acct]],tblREGASSJune19[[#This Row],[Secondary  Name]],tblREGASSJune19[[#This Row],[Alloc4FUNC]])","v":"1823920DSR COSTS AMORTIZED102030ENERGY FINANSWER - WASHINGTONOTHER"},1823920,"DSR COSTS AMORTIZED",102030,"ENERGY FINANSWER - WASHINGTON","OTHER",5064.9558999999999,{"$f":"IF(OR(tblREGASSJune19[[#This Row],[Alloc]]=\"IDU\",tblREGASSJune19[[#This Row],[Alloc]]=\"OR\",tblREGASSJune19[[#This Row],[Alloc]]=\"UT\",tblREGASSJune19[[#This Row],[Alloc]]=\"WYU\",tblREGASSJune19[[#This Row],[Alloc]]=\"WYP\",tblREGASSJune19[[#This Row],[Alloc]]=\"CA\",tblREGASSJune19[[#This Row],[Alloc]]=\"WA\"),\"SITUS\",tblREGASSJune19[[#This Row],[Alloc]])","v":"OTHER"},{"$f":"INDEX(tblREGASSLookup[FUNC],MATCH(tblREGASSJune19[[#This Row],[Concat]],tblREGASSLookup[Concat],0))","v":"CUST"},{"$f":"IF(tblREGASSJune19[[#This Row],[Total ($000)]]=0,\"NO\",IF(ISNA(tblREGASSJune19[[#This Row],[FUNC]]),\"YES\",IF(_xlfn.ISFORMULA(tblREGASSJune19[[#This Row],[FUNC]]),\"NO\",\"YES\")))","v":"NO"}]
[{"$f":"CONCATENATE(tblREGASSJune19[[#This Row],[Primary Account]],tblREGASSJune19[[#This Row],[Primary Name]],tblREGASSJune19[[#This Row],[Secondary Acct]],tblREGASSJune19[[#This Row],[Secondary  Name]],tblREGASSJune19[[#This Row],[Alloc4FUNC]])","v":"1823920DSR COSTS AMORTIZED102032INDUSTRIAL FINANSWER - WASHINGTONOTHER"},1823920,"DSR COSTS AMORTIZED",102032,"INDUSTRIAL FINANSWER - WASHINGTON","OTHER",26337.081480000001,{"$f":"IF(OR(tblREGASSJune19[[#This Row],[Alloc]]=\"IDU\",tblREGASSJune19[[#This Row],[Alloc]]=\"OR\",tblREGASSJune19[[#This Row],[Alloc]]=\"UT\",tblREGASSJune19[[#This Row],[Alloc]]=\"WYU\",tblREGASSJune19[[#This Row],[Alloc]]=\"WYP\",tblREGASSJune19[[#This Row],[Alloc]]=\"CA\",tblREGASSJune19[[#This Row],[Alloc]]=\"WA\"),\"SITUS\",tblREGASSJune19[[#This Row],[Alloc]])","v":"OTHER"},{"$f":"INDEX(tblREGASSLookup[FUNC],MATCH(tblREGASSJune19[[#This Row],[Concat]],tblREGASSLookup[Concat],0))","v":"CUST"},{"$f":"IF(tblREGASSJune19[[#This Row],[Total ($000)]]=0,\"NO\",IF(ISNA(tblREGASSJune19[[#This Row],[FUNC]]),\"YES\",IF(_xlfn.ISFORMULA(tblREGASSJune19[[#This Row],[FUNC]]),\"NO\",\"YES\")))","v":"NO"}]
[{"$f":"CONCATENATE(tblREGASSJune19[[#This Row],[Primary Account]],tblREGASSJune19[[#This Row],[Primary Name]],tblREGASSJune19[[#This Row],[Secondary Acct]],tblREGASSJune19[[#This Row],[Secondary  Name]],tblREGASSJune19[[#This Row],[Alloc4FUNC]])","v":"1823920DSR COSTS AMORTIZED102033LOW INCOME - WASHINGTONOTHER"},1823920,"DSR COSTS AMORTIZED",102033,"LOW INCOME - WASHINGTON","OTHER",10718.391890000001,{"$f":"IF(OR(tblREGASSJune19[[#This Row],[Alloc]]=\"IDU\",tblREGASSJune19[[#This Row],[Alloc]]=\"OR\",tblREGASSJune19[[#This Row],[Alloc]]=\"UT\",tblREGASSJune19[[#This Row],[Alloc]]=\"WYU\",tblREGASSJune19[[#This Row],[Alloc]]=\"WYP\",tblREGASSJune19[[#This Row],[Alloc]]=\"CA\",tblREGASSJune19[[#This Row],[Alloc]]=\"WA\"),\"SITUS\",tblREGASSJune19[[#This Row],[Alloc]])","v":"OTHER"},{"$f":"INDEX(tblREGASSLookup[FUNC],MATCH(tblREGASSJune19[[#This Row],[Concat]],tblREGASSLookup[Concat],0))","v":"CUST"},{"$f":"IF(tblREGASSJune19[[#This Row],[Total ($000)]]=0,\"NO\",IF(ISNA(tblREGASSJune19[[#This Row],[FUNC]]),\"YES\",IF(_xlfn.ISFORMULA(tblREGASSJune19[[#This Row],[FUNC]]),\"NO\",\"YES\")))","v":"NO"}]
[{"$f":"CONCATENATE(tblREGASSJune19[[#This Row],[Primary Account]],tblREGASSJune19[[#This Row],[Primary Name]],tblREGASSJune19[[#This Row],[Secondary Acct]],tblREGASSJune19[[#This Row],[Secondary  Name]],tblREGASSJune19[[#This Row],[Alloc4FUNC]])","v":"1823920DSR COSTS AMORTIZED102034SELF AUDIT - WASHINGTONOTHER"},1823920,"DSR COSTS AMORTIZED",102034,"SELF AUDIT - WASHINGTON","OTHER",14.36074,{"$f":"IF(OR(tblREGASSJune19[[#This Row],[Alloc]]=\"IDU\",tblREGASSJune19[[#This Row],[Alloc]]=\"OR\",tblREGASSJune19[[#This Row],[Alloc]]=\"UT\",tblREGASSJune19[[#This Row],[Alloc]]=\"WYU\",tblREGASSJune19[[#This Row],[Alloc]]=\"WYP\",tblREGASSJune19[[#This Row],[Alloc]]=\"CA\",tblREGASSJune19[[#This Row],[Alloc]]=\"WA\"),\"SITUS\",tblREGASSJune19[[#This Row],[Alloc]])","v":"OTHER"},{"$f":"INDEX(tblREGASSLookup[FUNC],MATCH(tblREGASSJune19[[#This Row],[Concat]],tblREGASSLookup[Concat],0))","v":"CUST"},{"$f":"IF(tblREGASSJune19[[#This Row],[Total ($000)]]=0,\"NO\",IF(ISNA(tblREGASSJune19[[#This Row],[FUNC]]),\"YES\",IF(_xlfn.ISFORMULA(tblREGASSJune19[[#This Row],[FUNC]]),\"NO\",\"YES\")))","v":"NO"}]
[{"$f":"CONCATENATE(tblREGASSJune19[[#This Row],[Primary Account]],tblREGASSJune19[[#This Row],[Primary Name]],tblREGASSJune19[[#This Row],[Secondary Acct]],tblREGASSJune19[[#This Row],[Secondary  Name]],tblREGASSJune19[[#This Row],[Alloc4FUNC]])","v":"1823920DSR COSTS AMORTIZED102036COMMERCIAL SMALL RETROFIT - WASHINGTONOTHER"},1823920,"DSR COSTS AMORTIZED",102036,"COMMERCIAL SMALL RETROFIT - WASHINGTON","OTHER",787.73970999999995,{"$f":"IF(OR(tblREGASSJune19[[#This Row],[Alloc]]=\"IDU\",tblREGASSJune19[[#This Row],[Alloc]]=\"OR\",tblREGASSJune19[[#This Row],[Alloc]]=\"UT\",tblREGASSJune19[[#This Row],[Alloc]]=\"WYU\",tblREGASSJune19[[#This Row],[Alloc]]=\"WYP\",tblREGASSJune19[[#This Row],[Alloc]]=\"CA\",tblREGASSJune19[[#This Row],[Alloc]]=\"WA\"),\"SITUS\",tblREGASSJune19[[#This Row],[Alloc]])","v":"OTHER"},{"$f":"INDEX(tblREGASSLookup[FUNC],MATCH(tblREGASSJune19[[#This Row],[Concat]],tblREGASSLookup[Concat],0))","v":"CUST"},{"$f":"IF(tblREGASSJune19[[#This Row],[Total ($000)]]=0,\"NO\",IF(ISNA(tblREGASSJune19[[#This Row],[FUNC]]),\"YES\",IF(_xlfn.ISFORMULA(tblREGASSJune19[[#This Row],[FUNC]]),\"NO\",\"YES\")))","v":"NO"}]
[{"$f":"CONCATENATE(tblREGASSJune19[[#This Row],[Primary Account]],tblREGASSJune19[[#This Row],[Primary Name]],tblREGASSJune19[[#This Row],[Secondary Acct]],tblREGASSJune19[[#This Row],[Secondary  Name]],tblREGASSJune19[[#This Row],[Alloc4FUNC]])","v":"1823920DSR COSTS AMORTIZED102037INDUSTRIAL SMALL RETROFIT - WASHINGTONOTHER"},1823920,"DSR COSTS AMORTIZED",102037,"INDUSTRIAL SMALL RETROFIT - WASHINGTON","OTHER",13.03795,{"$f":"IF(OR(tblREGASSJune19[[#This Row],[Alloc]]=\"IDU\",tblREGASSJune19[[#This Row],[Alloc]]=\"OR\",tblREGASSJune19[[#This Row],[Alloc]]=\"UT\",tblREGASSJune19[[#This Row],[Alloc]]=\"WYU\",tblREGASSJune19[[#This Row],[Alloc]]=\"WYP\",tblREGASSJune19[[#This Row],[Alloc]]=\"CA\",tblREGASSJune19[[#This Row],[Alloc]]=\"WA\"),\"SITUS\",tblREGASSJune19[[#This Row],[Alloc]])","v":"OTHER"},{"$f":"INDEX(tblREGASSLookup[FUNC],MATCH(tblREGASSJune19[[#This Row],[Concat]],tblREGASSLookup[Concat],0))","v":"CUST"},{"$f":"IF(tblREGASSJune19[[#This Row],[Total ($000)]]=0,\"NO\",IF(ISNA(tblREGASSJune19[[#This Row],[FUNC]]),\"YES\",IF(_xlfn.ISFORMULA(tblREGASSJune19[[#This Row],[FUNC]]),\"NO\",\"YES\")))","v":"NO"}]
[{"$f":"CONCATENATE(tblREGASSJune19[[#This Row],[Primary Account]],tblREGASSJune19[[#This Row],[Primary Name]],tblREGASSJune19[[#This Row],[Secondary Acct]],tblREGASSJune19[[#This Row],[Secondary  Name]],tblREGASSJune19[[#This Row],[Alloc4FUNC]])","v":"1823920DSR COSTS AMORTIZED102038COMMERCIAL RETROFIT LIGHTING - WASHINGTOOTHER"},1823920,"DSR COSTS AMORTIZED",102038,"COMMERCIAL RETROFIT LIGHTING - WASHINGTO","OTHER",624.37847999999997,{"$f":"IF(OR(tblREGASSJune19[[#This Row],[Alloc]]=\"IDU\",tblREGASSJune19[[#This Row],[Alloc]]=\"OR\",tblREGASSJune19[[#This Row],[Alloc]]=\"UT\",tblREGASSJune19[[#This Row],[Alloc]]=\"WYU\",tblREGASSJune19[[#This Row],[Alloc]]=\"WYP\",tblREGASSJune19[[#This Row],[Alloc]]=\"CA\",tblREGASSJune19[[#This Row],[Alloc]]=\"WA\"),\"SITUS\",tblREGASSJune19[[#This Row],[Alloc]])","v":"OTHER"},{"$f":"INDEX(tblREGASSLookup[FUNC],MATCH(tblREGASSJune19[[#This Row],[Concat]],tblREGASSLookup[Concat],0))","v":"CUST"},{"$f":"IF(tblREGASSJune19[[#This Row],[Total ($000)]]=0,\"NO\",IF(ISNA(tblREGASSJune19[[#This Row],[FUNC]]),\"YES\",IF(_xlfn.ISFORMULA(tblREGASSJune19[[#This Row],[FUNC]]),\"NO\",\"YES\")))","v":"NO"}]
[{"$f":"CONCATENATE(tblREGASSJune19[[#This Row],[Primary Account]],tblREGASSJune19[[#This Row],[Primary Name]],tblREGASSJune19[[#This Row],[Secondary Acct]],tblREGASSJune19[[#This Row],[Secondary  Name]],tblREGASSJune19[[#This Row],[Alloc4FUNC]])","v":"1823920DSR COSTS AMORTIZED102039INDUSTRIAL RETROFIT LIGHTING-WAOTHER"},1823920,"DSR COSTS AMORTIZED",102039,"INDUSTRIAL RETROFIT LIGHTING-WA","OTHER",88.266459999999995,{"$f":"IF(OR(tblREGASSJune19[[#This Row],[Alloc]]=\"IDU\",tblREGASSJune19[[#This Row],[Alloc]]=\"OR\",tblREGASSJune19[[#This Row],[Alloc]]=\"UT\",tblREGASSJune19[[#This Row],[Alloc]]=\"WYU\",tblREGASSJune19[[#This Row],[Alloc]]=\"WYP\",tblREGASSJune19[[#This Row],[Alloc]]=\"CA\",tblREGASSJune19[[#This Row],[Alloc]]=\"WA\"),\"SITUS\",tblREGASSJune19[[#This Row],[Alloc]])","v":"OTHER"},{"$f":"INDEX(tblREGASSLookup[FUNC],MATCH(tblREGASSJune19[[#This Row],[Concat]],tblREGASSLookup[Concat],0))","v":"CUST"},{"$f":"IF(tblREGASSJune19[[#This Row],[Total ($000)]]=0,\"NO\",IF(ISNA(tblREGASSJune19[[#This Row],[FUNC]]),\"YES\",IF(_xlfn.ISFORMULA(tblREGASSJune19[[#This Row],[FUNC]]),\"NO\",\"YES\")))","v":"NO"}]
[{"$f":"CONCATENATE(tblREGASSJune19[[#This Row],[Primary Account]],tblREGASSJune19[[#This Row],[Primary Name]],tblREGASSJune19[[#This Row],[Secondary Acct]],tblREGASSJune19[[#This Row],[Secondary  Name]],tblREGASSJune19[[#This Row],[Alloc4FUNC]])","v":"1823920DSR COSTS AMORTIZED102040NEEA - WASHINGTONOTHER"},1823920,"DSR COSTS AMORTIZED",102040,"NEEA - WASHINGTON","OTHER",11184.871999999999,{"$f":"IF(OR(tblREGASSJune19[[#This Row],[Alloc]]=\"IDU\",tblREGASSJune19[[#This Row],[Alloc]]=\"OR\",tblREGASSJune19[[#This Row],[Alloc]]=\"UT\",tblREGASSJune19[[#This Row],[Alloc]]=\"WYU\",tblREGASSJune19[[#This Row],[Alloc]]=\"WYP\",tblREGASSJune19[[#This Row],[Alloc]]=\"CA\",tblREGASSJune19[[#This Row],[Alloc]]=\"WA\"),\"SITUS\",tblREGASSJune19[[#This Row],[Alloc]])","v":"OTHER"},{"$f":"INDEX(tblREGASSLookup[FUNC],MATCH(tblREGASSJune19[[#This Row],[Concat]],tblREGASSLookup[Concat],0))","v":"CUST"},{"$f":"IF(tblREGASSJune19[[#This Row],[Total ($000)]]=0,\"NO\",IF(ISNA(tblREGASSJune19[[#This Row],[FUNC]]),\"YES\",IF(_xlfn.ISFORMULA(tblREGASSJune19[[#This Row],[FUNC]]),\"NO\",\"YES\")))","v":"NO"}]
[{"$f":"CONCATENATE(tblREGASSJune19[[#This Row],[Primary Account]],tblREGASSJune19[[#This Row],[Primary Name]],tblREGASSJune19[[#This Row],[Secondary Acct]],tblREGASSJune19[[#This Row],[Secondary  Name]],tblREGASSJune19[[#This Row],[Alloc4FUNC]])","v":"1823920DSR COSTS AMORTIZED102043ENERGY CODE DEVELOPMENTOTHER"},1823920,"DSR COSTS AMORTIZED",102043,"ENERGY CODE DEVELOPMENT","OTHER",1.5,{"$f":"IF(OR(tblREGASSJune19[[#This Row],[Alloc]]=\"IDU\",tblREGASSJune19[[#This Row],[Alloc]]=\"OR\",tblREGASSJune19[[#This Row],[Alloc]]=\"UT\",tblREGASSJune19[[#This Row],[Alloc]]=\"WYU\",tblREGASSJune19[[#This Row],[Alloc]]=\"WYP\",tblREGASSJune19[[#This Row],[Alloc]]=\"CA\",tblREGASSJune19[[#This Row],[Alloc]]=\"WA\"),\"SITUS\",tblREGASSJune19[[#This Row],[Alloc]])","v":"OTHER"},{"$f":"INDEX(tblREGASSLookup[FUNC],MATCH(tblREGASSJune19[[#This Row],[Concat]],tblREGASSLookup[Concat],0))","v":"CUST"},{"$f":"IF(tblREGASSJune19[[#This Row],[Total ($000)]]=0,\"NO\",IF(ISNA(tblREGASSJune19[[#This Row],[FUNC]]),\"YES\",IF(_xlfn.ISFORMULA(tblREGASSJune19[[#This Row],[FUNC]]),\"NO\",\"YES\")))","v":"NO"}]
[{"$f":"CONCATENATE(tblREGASSJune19[[#This Row],[Primary Account]],tblREGASSJune19[[#This Row],[Primary Name]],tblREGASSJune19[[#This Row],[Secondary Acct]],tblREGASSJune19[[#This Row],[Secondary  Name]],tblREGASSJune19[[#This Row],[Alloc4FUNC]])","v":"1823920DSR COSTS AMORTIZED102044HOME COMFORT - WASHINGTONOTHER"},1823920,"DSR COSTS AMORTIZED",102044,"HOME COMFORT - WASHINGTON","OTHER",161.90885,{"$f":"IF(OR(tblREGASSJune19[[#This Row],[Alloc]]=\"IDU\",tblREGASSJune19[[#This Row],[Alloc]]=\"OR\",tblREGASSJune19[[#This Row],[Alloc]]=\"UT\",tblREGASSJune19[[#This Row],[Alloc]]=\"WYU\",tblREGASSJune19[[#This Row],[Alloc]]=\"WYP\",tblREGASSJune19[[#This Row],[Alloc]]=\"CA\",tblREGASSJune19[[#This Row],[Alloc]]=\"WA\"),\"SITUS\",tblREGASSJune19[[#This Row],[Alloc]])","v":"OTHER"},{"$f":"INDEX(tblREGASSLookup[FUNC],MATCH(tblREGASSJune19[[#This Row],[Concat]],tblREGASSLookup[Concat],0))","v":"CUST"},{"$f":"IF(tblREGASSJune19[[#This Row],[Total ($000)]]=0,\"NO\",IF(ISNA(tblREGASSJune19[[#This Row],[FUNC]]),\"YES\",IF(_xlfn.ISFORMULA(tblREGASSJune19[[#This Row],[FUNC]]),\"NO\",\"YES\")))","v":"NO"}]
[{"$f":"CONCATENATE(tblREGASSJune19[[#This Row],[Primary Account]],tblREGASSJune19[[#This Row],[Primary Name]],tblREGASSJune19[[#This Row],[Secondary Acct]],tblREGASSJune19[[#This Row],[Secondary  Name]],tblREGASSJune19[[#This Row],[Alloc4FUNC]])","v":"1823920DSR COSTS AMORTIZED102045WEATHERIZATION - WASHINGTONOTHER"},1823920,"DSR COSTS AMORTIZED",102045,"WEATHERIZATION - WASHINGTON","OTHER",22.437750000000001,{"$f":"IF(OR(tblREGASSJune19[[#This Row],[Alloc]]=\"IDU\",tblREGASSJune19[[#This Row],[Alloc]]=\"OR\",tblREGASSJune19[[#This Row],[Alloc]]=\"UT\",tblREGASSJune19[[#This Row],[Alloc]]=\"WYU\",tblREGASSJune19[[#This Row],[Alloc]]=\"WYP\",tblREGASSJune19[[#This Row],[Alloc]]=\"CA\",tblREGASSJune19[[#This Row],[Alloc]]=\"WA\"),\"SITUS\",tblREGASSJune19[[#This Row],[Alloc]])","v":"OTHER"},{"$f":"INDEX(tblREGASSLookup[FUNC],MATCH(tblREGASSJune19[[#This Row],[Concat]],tblREGASSLookup[Concat],0))","v":"CUST"},{"$f":"IF(tblREGASSJune19[[#This Row],[Total ($000)]]=0,\"NO\",IF(ISNA(tblREGASSJune19[[#This Row],[FUNC]]),\"YES\",IF(_xlfn.ISFORMULA(tblREGASSJune19[[#This Row],[FUNC]]),\"NO\",\"YES\")))","v":"NO"}]
[{"$f":"CONCATENATE(tblREGASSJune19[[#This Row],[Primary Account]],tblREGASSJune19[[#This Row],[Primary Name]],tblREGASSJune19[[#This Row],[Secondary Acct]],tblREGASSJune19[[#This Row],[Secondary  Name]],tblREGASSJune19[[#This Row],[Alloc4FUNC]])","v":"1823920DSR COSTS AMORTIZED102046HASSLE FREEOTHER"},1823920,"DSR COSTS AMORTIZED",102046,"HASSLE FREE","OTHER",40.649470000000001,{"$f":"IF(OR(tblREGASSJune19[[#This Row],[Alloc]]=\"IDU\",tblREGASSJune19[[#This Row],[Alloc]]=\"OR\",tblREGASSJune19[[#This Row],[Alloc]]=\"UT\",tblREGASSJune19[[#This Row],[Alloc]]=\"WYU\",tblREGASSJune19[[#This Row],[Alloc]]=\"WYP\",tblREGASSJune19[[#This Row],[Alloc]]=\"CA\",tblREGASSJune19[[#This Row],[Alloc]]=\"WA\"),\"SITUS\",tblREGASSJune19[[#This Row],[Alloc]])","v":"OTHER"},{"$f":"INDEX(tblREGASSLookup[FUNC],MATCH(tblREGASSJune19[[#This Row],[Concat]],tblREGASSLookup[Concat],0))","v":"CUST"},{"$f":"IF(tblREGASSJune19[[#This Row],[Total ($000)]]=0,\"NO\",IF(ISNA(tblREGASSJune19[[#This Row],[FUNC]]),\"YES\",IF(_xlfn.ISFORMULA(tblREGASSJune19[[#This Row],[FUNC]]),\"NO\",\"YES\")))","v":"NO"}]
[{"$f":"CONCATENATE(tblREGASSJune19[[#This Row],[Primary Account]],tblREGASSJune19[[#This Row],[Primary Name]],tblREGASSJune19[[#This Row],[Secondary Acct]],tblREGASSJune19[[#This Row],[Secondary  Name]],tblREGASSJune19[[#This Row],[Alloc4FUNC]])","v":"1823920DSR COSTS AMORTIZED102067COMMERCIAL RETROFIT - WYOMING - PPL 2001SITUS"},1823920,"DSR COSTS AMORTIZED",102067,"COMMERCIAL RETROFIT - WYOMING - PPL 2001","WYP",0,{"$f":"IF(OR(tblREGASSJune19[[#This Row],[Alloc]]=\"IDU\",tblREGASSJune19[[#This Row],[Alloc]]=\"OR\",tblREGASSJune19[[#This Row],[Alloc]]=\"UT\",tblREGASSJune19[[#This Row],[Alloc]]=\"WYU\",tblREGASSJune19[[#This Row],[Alloc]]=\"WYP\",tblREGASSJune19[[#This Row],[Alloc]]=\"CA\",tblREGASSJune19[[#This Row],[Alloc]]=\"WA\"),\"SITUS\",tblREGASSJune19[[#This Row],[Alloc]])","v":"SITUS"},{"$f":"INDEX(tblREGASSLookup[FUNC],MATCH(tblREGASSJune19[[#This Row],[Concat]],tblREGASSLookup[Concat],0))","v":{"$error":"#N/A"}},{"$f":"IF(tblREGASSJune19[[#This Row],[Total ($000)]]=0,\"NO\",IF(ISNA(tblREGASSJune19[[#This Row],[FUNC]]),\"YES\",IF(_xlfn.ISFORMULA(tblREGASSJune19[[#This Row],[FUNC]]),\"NO\",\"YES\")))","v":"NO"}]
[{"$f":"CONCATENATE(tblREGASSJune19[[#This Row],[Primary Account]],tblREGASSJune19[[#This Row],[Primary Name]],tblREGASSJune19[[#This Row],[Secondary Acct]],tblREGASSJune19[[#This Row],[Secondary  Name]],tblREGASSJune19[[#This Row],[Alloc4FUNC]])","v":"1823920DSR COSTS AMORTIZED102068ENERGY FINANSWER - WYOMING PPL - 2001SITUS"},1823920,"DSR COSTS AMORTIZED",102068,"ENERGY FINANSWER - WYOMING PPL - 2001","WYP",0,{"$f":"IF(OR(tblREGASSJune19[[#This Row],[Alloc]]=\"IDU\",tblREGASSJune19[[#This Row],[Alloc]]=\"OR\",tblREGASSJune19[[#This Row],[Alloc]]=\"UT\",tblREGASSJune19[[#This Row],[Alloc]]=\"WYU\",tblREGASSJune19[[#This Row],[Alloc]]=\"WYP\",tblREGASSJune19[[#This Row],[Alloc]]=\"CA\",tblREGASSJune19[[#This Row],[Alloc]]=\"WA\"),\"SITUS\",tblREGASSJune19[[#This Row],[Alloc]])","v":"SITUS"},{"$f":"INDEX(tblREGASSLookup[FUNC],MATCH(tblREGASSJune19[[#This Row],[Concat]],tblREGASSLookup[Concat],0))","v":{"$error":"#N/A"}},{"$f":"IF(tblREGASSJune19[[#This Row],[Total ($000)]]=0,\"NO\",IF(ISNA(tblREGASSJune19[[#This Row],[FUNC]]),\"YES\",IF(_xlfn.ISFORMULA(tblREGASSJune19[[#This Row],[FUNC]]),\"NO\",\"YES\")))","v":"NO"}]
[{"$f":"CONCATENATE(tblREGASSJune19[[#This Row],[Primary Account]],tblREGASSJune19[[#This Row],[Primary Name]],tblREGASSJune19[[#This Row],[Secondary Acct]],tblREGASSJune19[[#This Row],[Secondary  Name]],tblREGASSJune19[[#This Row],[Alloc4FUNC]])","v":"1823920DSR COSTS AMORTIZED102069INDUSTRIAL FINANSWER-WYOMING - PPL 2001SITUS"},1823920,"DSR COSTS AMORTIZED",102069,"INDUSTRIAL FINANSWER-WYOMING - PPL 2001","WYP",0,{"$f":"IF(OR(tblREGASSJune19[[#This Row],[Alloc]]=\"IDU\",tblREGASSJune19[[#This Row],[Alloc]]=\"OR\",tblREGASSJune19[[#This Row],[Alloc]]=\"UT\",tblREGASSJune19[[#This Row],[Alloc]]=\"WYU\",tblREGASSJune19[[#This Row],[Alloc]]=\"WYP\",tblREGASSJune19[[#This Row],[Alloc]]=\"CA\",tblREGASSJune19[[#This Row],[Alloc]]=\"WA\"),\"SITUS\",tblREGASSJune19[[#This Row],[Alloc]])","v":"SITUS"},{"$f":"INDEX(tblREGASSLookup[FUNC],MATCH(tblREGASSJune19[[#This Row],[Concat]],tblREGASSLookup[Concat],0))","v":{"$error":"#N/A"}},{"$f":"IF(tblREGASSJune19[[#This Row],[Total ($000)]]=0,\"NO\",IF(ISNA(tblREGASSJune19[[#This Row],[FUNC]]),\"YES\",IF(_xlfn.ISFORMULA(tblREGASSJune19[[#This Row],[FUNC]]),\"NO\",\"YES\")))","v":"NO"}]
[{"$f":"CONCATENATE(tblREGASSJune19[[#This Row],[Primary Account]],tblREGASSJune19[[#This Row],[Primary Name]],tblREGASSJune19[[#This Row],[Secondary Acct]],tblREGASSJune19[[#This Row],[Secondary  Name]],tblREGASSJune19[[#This Row],[Alloc4FUNC]])","v":"1823920DSR COSTS AMORTIZED102070SELF AUDIT - WYOMING - PPL 2001SITUS"},1823920,"DSR COSTS AMORTIZED",102070,"SELF AUDIT - WYOMING - PPL 2001","WYP",0,{"$f":"IF(OR(tblREGASSJune19[[#This Row],[Alloc]]=\"IDU\",tblREGASSJune19[[#This Row],[Alloc]]=\"OR\",tblREGASSJune19[[#This Row],[Alloc]]=\"UT\",tblREGASSJune19[[#This Row],[Alloc]]=\"WYU\",tblREGASSJune19[[#This Row],[Alloc]]=\"WYP\",tblREGASSJune19[[#This Row],[Alloc]]=\"CA\",tblREGASSJune19[[#This Row],[Alloc]]=\"WA\"),\"SITUS\",tblREGASSJune19[[#This Row],[Alloc]])","v":"SITUS"},{"$f":"INDEX(tblREGASSLookup[FUNC],MATCH(tblREGASSJune19[[#This Row],[Concat]],tblREGASSLookup[Concat],0))","v":{"$error":"#N/A"}},{"$f":"IF(tblREGASSJune19[[#This Row],[Total ($000)]]=0,\"NO\",IF(ISNA(tblREGASSJune19[[#This Row],[FUNC]]),\"YES\",IF(_xlfn.ISFORMULA(tblREGASSJune19[[#This Row],[FUNC]]),\"NO\",\"YES\")))","v":"NO"}]
[{"$f":"CONCATENATE(tblREGASSJune19[[#This Row],[Primary Account]],tblREGASSJune19[[#This Row],[Primary Name]],tblREGASSJune19[[#This Row],[Secondary Acct]],tblREGASSJune19[[#This Row],[Secondary  Name]],tblREGASSJune19[[#This Row],[Alloc4FUNC]])","v":"1823920DSR COSTS AMORTIZED102071SELF AUDIT - WYOMING - UP&L 2001SITUS"},1823920,"DSR COSTS AMORTIZED",102071,"SELF AUDIT - WYOMING - UP&L 2001","WYU",0,{"$f":"IF(OR(tblREGASSJune19[[#This Row],[Alloc]]=\"IDU\",tblREGASSJune19[[#This Row],[Alloc]]=\"OR\",tblREGASSJune19[[#This Row],[Alloc]]=\"UT\",tblREGASSJune19[[#This Row],[Alloc]]=\"WYU\",tblREGASSJune19[[#This Row],[Alloc]]=\"WYP\",tblREGASSJune19[[#This Row],[Alloc]]=\"CA\",tblREGASSJune19[[#This Row],[Alloc]]=\"WA\"),\"SITUS\",tblREGASSJune19[[#This Row],[Alloc]])","v":"SITUS"},{"$f":"INDEX(tblREGASSLookup[FUNC],MATCH(tblREGASSJune19[[#This Row],[Concat]],tblREGASSLookup[Concat],0))","v":{"$error":"#N/A"}},{"$f":"IF(tblREGASSJune19[[#This Row],[Total ($000)]]=0,\"NO\",IF(ISNA(tblREGASSJune19[[#This Row],[FUNC]]),\"YES\",IF(_xlfn.ISFORMULA(tblREGASSJune19[[#This Row],[FUNC]]),\"NO\",\"YES\")))","v":"NO"}]
[{"$f":"CONCATENATE(tblREGASSJune19[[#This Row],[Primary Account]],tblREGASSJune19[[#This Row],[Primary Name]],tblREGASSJune19[[#This Row],[Secondary Acct]],tblREGASSJune19[[#This Row],[Secondary  Name]],tblREGASSJune19[[#This Row],[Alloc4FUNC]])","v":"1823920DSR COSTS AMORTIZED102072COMPACT FLUORESCENT LAMPS - WASHINGTONOTHER"},1823920,"DSR COSTS AMORTIZED",102072,"COMPACT FLUORESCENT LAMPS - WASHINGTON","OTHER",1182.8038899999999,{"$f":"IF(OR(tblREGASSJune19[[#This Row],[Alloc]]=\"IDU\",tblREGASSJune19[[#This Row],[Alloc]]=\"OR\",tblREGASSJune19[[#This Row],[Alloc]]=\"UT\",tblREGASSJune19[[#This Row],[Alloc]]=\"WYU\",tblREGASSJune19[[#This Row],[Alloc]]=\"WYP\",tblREGASSJune19[[#This Row],[Alloc]]=\"CA\",tblREGASSJune19[[#This Row],[Alloc]]=\"WA\"),\"SITUS\",tblREGASSJune19[[#This Row],[Alloc]])","v":"OTHER"},{"$f":"INDEX(tblREGASSLookup[FUNC],MATCH(tblREGASSJune19[[#This Row],[Concat]],tblREGASSLookup[Concat],0))","v":"CUST"},{"$f":"IF(tblREGASSJune19[[#This Row],[Total ($000)]]=0,\"NO\",IF(ISNA(tblREGASSJune19[[#This Row],[FUNC]]),\"YES\",IF(_xlfn.ISFORMULA(tblREGASSJune19[[#This Row],[FUNC]]),\"NO\",\"YES\")))","v":"NO"}]
[{"$f":"CONCATENATE(tblREGASSJune19[[#This Row],[Primary Account]],tblREGASSJune19[[#This Row],[Primary Name]],tblREGASSJune19[[#This Row],[Secondary Acct]],tblREGASSJune19[[#This Row],[Secondary  Name]],tblREGASSJune19[[#This Row],[Alloc4FUNC]])","v":"1823920DSR COSTS AMORTIZED102127RESIDENTIAL PROGRAM RESEARCH - WAOTHER"},1823920,"DSR COSTS AMORTIZED",102127,"RESIDENTIAL PROGRAM RESEARCH - WA","OTHER",24.17418,{"$f":"IF(OR(tblREGASSJune19[[#This Row],[Alloc]]=\"IDU\",tblREGASSJune19[[#This Row],[Alloc]]=\"OR\",tblREGASSJune19[[#This Row],[Alloc]]=\"UT\",tblREGASSJune19[[#This Row],[Alloc]]=\"WYU\",tblREGASSJune19[[#This Row],[Alloc]]=\"WYP\",tblREGASSJune19[[#This Row],[Alloc]]=\"CA\",tblREGASSJune19[[#This Row],[Alloc]]=\"WA\"),\"SITUS\",tblREGASSJune19[[#This Row],[Alloc]])","v":"OTHER"},{"$f":"INDEX(tblREGASSLookup[FUNC],MATCH(tblREGASSJune19[[#This Row],[Concat]],tblREGASSLookup[Concat],0))","v":"CUST"},{"$f":"IF(tblREGASSJune19[[#This Row],[Total ($000)]]=0,\"NO\",IF(ISNA(tblREGASSJune19[[#This Row],[FUNC]]),\"YES\",IF(_xlfn.ISFORMULA(tblREGASSJune19[[#This Row],[FUNC]]),\"NO\",\"YES\")))","v":"NO"}]
[{"$f":"CONCATENATE(tblREGASSJune19[[#This Row],[Primary Account]],tblREGASSJune19[[#This Row],[Primary Name]],tblREGASSJune19[[#This Row],[Secondary Acct]],tblREGASSJune19[[#This Row],[Secondary  Name]],tblREGASSJune19[[#This Row],[Alloc4FUNC]])","v":"1823920DSR COSTS AMORTIZED102128WA REVENUE RECOVERY - SBC OFFSETOTHER"},1823920,"DSR COSTS AMORTIZED",102128,"WA REVENUE RECOVERY - SBC OFFSET","OTHER",-114871.51897,{"$f":"IF(OR(tblREGASSJune19[[#This Row],[Alloc]]=\"IDU\",tblREGASSJune19[[#This Row],[Alloc]]=\"OR\",tblREGASSJune19[[#This Row],[Alloc]]=\"UT\",tblREGASSJune19[[#This Row],[Alloc]]=\"WYU\",tblREGASSJune19[[#This Row],[Alloc]]=\"WYP\",tblREGASSJune19[[#This Row],[Alloc]]=\"CA\",tblREGASSJune19[[#This Row],[Alloc]]=\"WA\"),\"SITUS\",tblREGASSJune19[[#This Row],[Alloc]])","v":"OTHER"},{"$f":"INDEX(tblREGASSLookup[FUNC],MATCH(tblREGASSJune19[[#This Row],[Concat]],tblREGASSLookup[Concat],0))","v":"CUST"},{"$f":"IF(tblREGASSJune19[[#This Row],[Total ($000)]]=0,\"NO\",IF(ISNA(tblREGASSJune19[[#This Row],[FUNC]]),\"YES\",IF(_xlfn.ISFORMULA(tblREGASSJune19[[#This Row],[FUNC]]),\"NO\",\"YES\")))","v":"NO"}]
[{"$f":"CONCATENATE(tblREGASSJune19[[#This Row],[Primary Account]],tblREGASSJune19[[#This Row],[Primary Name]],tblREGASSJune19[[#This Row],[Secondary Acct]],tblREGASSJune19[[#This Row],[Secondary  Name]],tblREGASSJune19[[#This Row],[Alloc4FUNC]])","v":"1823920DSR COSTS AMORTIZED102131ENERGY FINANSWER - UTAH 2001/2002OTHER"},1823920,"DSR COSTS AMORTIZED",102131,"ENERGY FINANSWER - UTAH 2001/2002","OTHER",1280.4835399999999,{"$f":"IF(OR(tblREGASSJune19[[#This Row],[Alloc]]=\"IDU\",tblREGASSJune19[[#This Row],[Alloc]]=\"OR\",tblREGASSJune19[[#This Row],[Alloc]]=\"UT\",tblREGASSJune19[[#This Row],[Alloc]]=\"WYU\",tblREGASSJune19[[#This Row],[Alloc]]=\"WYP\",tblREGASSJune19[[#This Row],[Alloc]]=\"CA\",tblREGASSJune19[[#This Row],[Alloc]]=\"WA\"),\"SITUS\",tblREGASSJune19[[#This Row],[Alloc]])","v":"OTHER"},{"$f":"INDEX(tblREGASSLookup[FUNC],MATCH(tblREGASSJune19[[#This Row],[Concat]],tblREGASSLookup[Concat],0))","v":"CUST"},{"$f":"IF(tblREGASSJune19[[#This Row],[Total ($000)]]=0,\"NO\",IF(ISNA(tblREGASSJune19[[#This Row],[FUNC]]),\"YES\",IF(_xlfn.ISFORMULA(tblREGASSJune19[[#This Row],[FUNC]]),\"NO\",\"YES\")))","v":"NO"}]
[{"$f":"CONCATENATE(tblREGASSJune19[[#This Row],[Primary Account]],tblREGASSJune19[[#This Row],[Primary Name]],tblREGASSJune19[[#This Row],[Secondary Acct]],tblREGASSJune19[[#This Row],[Secondary  Name]],tblREGASSJune19[[#This Row],[Alloc4FUNC]])","v":"1823920DSR COSTS AMORTIZED102133INDUSTRIAL FINANSWER - UTAH 2001/2002OTHER"},1823920,"DSR COSTS AMORTIZED",102133,"INDUSTRIAL FINANSWER - UTAH 2001/2002","OTHER",1353.1836699999999,{"$f":"IF(OR(tblREGASSJune19[[#This Row],[Alloc]]=\"IDU\",tblREGASSJune19[[#This Row],[Alloc]]=\"OR\",tblREGASSJune19[[#This Row],[Alloc]]=\"UT\",tblREGASSJune19[[#This Row],[Alloc]]=\"WYU\",tblREGASSJune19[[#This Row],[Alloc]]=\"WYP\",tblREGASSJune19[[#This Row],[Alloc]]=\"CA\",tblREGASSJune19[[#This Row],[Alloc]]=\"WA\"),\"SITUS\",tblREGASSJune19[[#This Row],[Alloc]])","v":"OTHER"},{"$f":"INDEX(tblREGASSLookup[FUNC],MATCH(tblREGASSJune19[[#This Row],[Concat]],tblREGASSLookup[Concat],0))","v":"CUST"},{"$f":"IF(tblREGASSJune19[[#This Row],[Total ($000)]]=0,\"NO\",IF(ISNA(tblREGASSJune19[[#This Row],[FUNC]]),\"YES\",IF(_xlfn.ISFORMULA(tblREGASSJune19[[#This Row],[FUNC]]),\"NO\",\"YES\")))","v":"NO"}]
[{"$f":"CONCATENATE(tblREGASSJune19[[#This Row],[Primary Account]],tblREGASSJune19[[#This Row],[Primary Name]],tblREGASSJune19[[#This Row],[Secondary Acct]],tblREGASSJune19[[#This Row],[Secondary  Name]],tblREGASSJune19[[#This Row],[Alloc4FUNC]])","v":"1823920DSR COSTS AMORTIZED102138COMPACT FLUOR LAMPS (CFL) UT 2001/2002OTHER"},1823920,"DSR COSTS AMORTIZED",102138,"COMPACT FLUOR LAMPS (CFL) UT 2001/2002","OTHER",4201.68523,{"$f":"IF(OR(tblREGASSJune19[[#This Row],[Alloc]]=\"IDU\",tblREGASSJune19[[#This Row],[Alloc]]=\"OR\",tblREGASSJune19[[#This Row],[Alloc]]=\"UT\",tblREGASSJune19[[#This Row],[Alloc]]=\"WYU\",tblREGASSJune19[[#This Row],[Alloc]]=\"WYP\",tblREGASSJune19[[#This Row],[Alloc]]=\"CA\",tblREGASSJune19[[#This Row],[Alloc]]=\"WA\"),\"SITUS\",tblREGASSJune19[[#This Row],[Alloc]])","v":"OTHER"},{"$f":"INDEX(tblREGASSLookup[FUNC],MATCH(tblREGASSJune19[[#This Row],[Concat]],tblREGASSLookup[Concat],0))","v":"CUST"},{"$f":"IF(tblREGASSJune19[[#This Row],[Total ($000)]]=0,\"NO\",IF(ISNA(tblREGASSJune19[[#This Row],[FUNC]]),\"YES\",IF(_xlfn.ISFORMULA(tblREGASSJune19[[#This Row],[FUNC]]),\"NO\",\"YES\")))","v":"NO"}]
[{"$f":"CONCATENATE(tblREGASSJune19[[#This Row],[Primary Account]],tblREGASSJune19[[#This Row],[Primary Name]],tblREGASSJune19[[#This Row],[Secondary Acct]],tblREGASSJune19[[#This Row],[Secondary  Name]],tblREGASSJune19[[#This Row],[Alloc4FUNC]])","v":"1823920DSR COSTS AMORTIZED102147COMMERCIAL SMALL RETROFIT - UT 2001/2002OTHER"},1823920,"DSR COSTS AMORTIZED",102147,"COMMERCIAL SMALL RETROFIT - UT 2001/2002","OTHER",847.94334000000003,{"$f":"IF(OR(tblREGASSJune19[[#This Row],[Alloc]]=\"IDU\",tblREGASSJune19[[#This Row],[Alloc]]=\"OR\",tblREGASSJune19[[#This Row],[Alloc]]=\"UT\",tblREGASSJune19[[#This Row],[Alloc]]=\"WYU\",tblREGASSJune19[[#This Row],[Alloc]]=\"WYP\",tblREGASSJune19[[#This Row],[Alloc]]=\"CA\",tblREGASSJune19[[#This Row],[Alloc]]=\"WA\"),\"SITUS\",tblREGASSJune19[[#This Row],[Alloc]])","v":"OTHER"},{"$f":"INDEX(tblREGASSLookup[FUNC],MATCH(tblREGASSJune19[[#This Row],[Concat]],tblREGASSLookup[Concat],0))","v":"CUST"},{"$f":"IF(tblREGASSJune19[[#This Row],[Total ($000)]]=0,\"NO\",IF(ISNA(tblREGASSJune19[[#This Row],[FUNC]]),\"YES\",IF(_xlfn.ISFORMULA(tblREGASSJune19[[#This Row],[FUNC]]),\"NO\",\"YES\")))","v":"NO"}]
[{"$f":"CONCATENATE(tblREGASSJune19[[#This Row],[Primary Account]],tblREGASSJune19[[#This Row],[Primary Name]],tblREGASSJune19[[#This Row],[Secondary Acct]],tblREGASSJune19[[#This Row],[Secondary  Name]],tblREGASSJune19[[#This Row],[Alloc4FUNC]])","v":"1823920DSR COSTS AMORTIZED102148INDUSTRIAL SMALL RETROFIT - UT 2002OTHER"},1823920,"DSR COSTS AMORTIZED",102148,"INDUSTRIAL SMALL RETROFIT - UT 2002","OTHER",2.3E-3,{"$f":"IF(OR(tblREGASSJune19[[#This Row],[Alloc]]=\"IDU\",tblREGASSJune19[[#This Row],[Alloc]]=\"OR\",tblREGASSJune19[[#This Row],[Alloc]]=\"UT\",tblREGASSJune19[[#This Row],[Alloc]]=\"WYU\",tblREGASSJune19[[#This Row],[Alloc]]=\"WYP\",tblREGASSJune19[[#This Row],[Alloc]]=\"CA\",tblREGASSJune19[[#This Row],[Alloc]]=\"WA\"),\"SITUS\",tblREGASSJune19[[#This Row],[Alloc]])","v":"OTHER"},{"$f":"INDEX(tblREGASSLookup[FUNC],MATCH(tblREGASSJune19[[#This Row],[Concat]],tblREGASSLookup[Concat],0))","v":"CUST"},{"$f":"IF(tblREGASSJune19[[#This Row],[Total ($000)]]=0,\"NO\",IF(ISNA(tblREGASSJune19[[#This Row],[FUNC]]),\"YES\",IF(_xlfn.ISFORMULA(tblREGASSJune19[[#This Row],[FUNC]]),\"NO\",\"YES\")))","v":"NO"}]
[{"$f":"CONCATENATE(tblREGASSJune19[[#This Row],[Primary Account]],tblREGASSJune19[[#This Row],[Primary Name]],tblREGASSJune19[[#This Row],[Secondary Acct]],tblREGASSJune19[[#This Row],[Secondary  Name]],tblREGASSJune19[[#This Row],[Alloc4FUNC]])","v":"1823920DSR COSTS AMORTIZED102149COMMERCIAL RETROFIT LIGHTING - UT 2001/2OTHER"},1823920,"DSR COSTS AMORTIZED",102149,"COMMERCIAL RETROFIT LIGHTING - UT 2001/2","OTHER",497.80975999999998,{"$f":"IF(OR(tblREGASSJune19[[#This Row],[Alloc]]=\"IDU\",tblREGASSJune19[[#This Row],[Alloc]]=\"OR\",tblREGASSJune19[[#This Row],[Alloc]]=\"UT\",tblREGASSJune19[[#This Row],[Alloc]]=\"WYU\",tblREGASSJune19[[#This Row],[Alloc]]=\"WYP\",tblREGASSJune19[[#This Row],[Alloc]]=\"CA\",tblREGASSJune19[[#This Row],[Alloc]]=\"WA\"),\"SITUS\",tblREGASSJune19[[#This Row],[Alloc]])","v":"OTHER"},{"$f":"INDEX(tblREGASSLookup[FUNC],MATCH(tblREGASSJune19[[#This Row],[Concat]],tblREGASSLookup[Concat],0))","v":"CUST"},{"$f":"IF(tblREGASSJune19[[#This Row],[Total ($000)]]=0,\"NO\",IF(ISNA(tblREGASSJune19[[#This Row],[FUNC]]),\"YES\",IF(_xlfn.ISFORMULA(tblREGASSJune19[[#This Row],[FUNC]]),\"NO\",\"YES\")))","v":"NO"}]
[{"$f":"CONCATENATE(tblREGASSJune19[[#This Row],[Primary Account]],tblREGASSJune19[[#This Row],[Primary Name]],tblREGASSJune19[[#This Row],[Secondary Acct]],tblREGASSJune19[[#This Row],[Secondary  Name]],tblREGASSJune19[[#This Row],[Alloc4FUNC]])","v":"1823920DSR COSTS AMORTIZED102150INDUSTRIAL RETROFIT LIGHTING - UT 2001/2OTHER"},1823920,"DSR COSTS AMORTIZED",102150,"INDUSTRIAL RETROFIT LIGHTING - UT 2001/2","OTHER",81.799130000000005,{"$f":"IF(OR(tblREGASSJune19[[#This Row],[Alloc]]=\"IDU\",tblREGASSJune19[[#This Row],[Alloc]]=\"OR\",tblREGASSJune19[[#This Row],[Alloc]]=\"UT\",tblREGASSJune19[[#This Row],[Alloc]]=\"WYU\",tblREGASSJune19[[#This Row],[Alloc]]=\"WYP\",tblREGASSJune19[[#This Row],[Alloc]]=\"CA\",tblREGASSJune19[[#This Row],[Alloc]]=\"WA\"),\"SITUS\",tblREGASSJune19[[#This Row],[Alloc]])","v":"OTHER"},{"$f":"INDEX(tblREGASSLookup[FUNC],MATCH(tblREGASSJune19[[#This Row],[Concat]],tblREGASSLookup[Concat],0))","v":"CUST"},{"$f":"IF(tblREGASSJune19[[#This Row],[Total ($000)]]=0,\"NO\",IF(ISNA(tblREGASSJune19[[#This Row],[FUNC]]),\"YES\",IF(_xlfn.ISFORMULA(tblREGASSJune19[[#This Row],[FUNC]]),\"NO\",\"YES\")))","v":"NO"}]
[{"$f":"CONCATENATE(tblREGASSJune19[[#This Row],[Primary Account]],tblREGASSJune19[[#This Row],[Primary Name]],tblREGASSJune19[[#This Row],[Secondary Acct]],tblREGASSJune19[[#This Row],[Secondary  Name]],tblREGASSJune19[[#This Row],[Alloc4FUNC]])","v":"1823920DSR COSTS AMORTIZED102158ENERGY FINANSWER - WYP - 2002SITUS"},1823920,"DSR COSTS AMORTIZED",102158,"ENERGY FINANSWER - WYP - 2002","WYP",0,{"$f":"IF(OR(tblREGASSJune19[[#This Row],[Alloc]]=\"IDU\",tblREGASSJune19[[#This Row],[Alloc]]=\"OR\",tblREGASSJune19[[#This Row],[Alloc]]=\"UT\",tblREGASSJune19[[#This Row],[Alloc]]=\"WYU\",tblREGASSJune19[[#This Row],[Alloc]]=\"WYP\",tblREGASSJune19[[#This Row],[Alloc]]=\"CA\",tblREGASSJune19[[#This Row],[Alloc]]=\"WA\"),\"SITUS\",tblREGASSJune19[[#This Row],[Alloc]])","v":"SITUS"},{"$f":"INDEX(tblREGASSLookup[FUNC],MATCH(tblREGASSJune19[[#This Row],[Concat]],tblREGASSLookup[Concat],0))","v":{"$error":"#N/A"}},{"$f":"IF(tblREGASSJune19[[#This Row],[Total ($000)]]=0,\"NO\",IF(ISNA(tblREGASSJune19[[#This Row],[FUNC]]),\"YES\",IF(_xlfn.ISFORMULA(tblREGASSJune19[[#This Row],[FUNC]]),\"NO\",\"YES\")))","v":"NO"}]
[{"$f":"CONCATENATE(tblREGASSJune19[[#This Row],[Primary Account]],tblREGASSJune19[[#This Row],[Primary Name]],tblREGASSJune19[[#This Row],[Secondary Acct]],tblREGASSJune19[[#This Row],[Secondary  Name]],tblREGASSJune19[[#This Row],[Alloc4FUNC]])","v":"1823920DSR COSTS AMORTIZED102159INDUSTRIAL FINANSWER - WYP - 2002SITUS"},1823920,"DSR COSTS AMORTIZED",102159,"INDUSTRIAL FINANSWER - WYP - 2002","WYP",0,{"$f":"IF(OR(tblREGASSJune19[[#This Row],[Alloc]]=\"IDU\",tblREGASSJune19[[#This Row],[Alloc]]=\"OR\",tblREGASSJune19[[#This Row],[Alloc]]=\"UT\",tblREGASSJune19[[#This Row],[Alloc]]=\"WYU\",tblREGASSJune19[[#This Row],[Alloc]]=\"WYP\",tblREGASSJune19[[#This Row],[Alloc]]=\"CA\",tblREGASSJune19[[#This Row],[Alloc]]=\"WA\"),\"SITUS\",tblREGASSJune19[[#This Row],[Alloc]])","v":"SITUS"},{"$f":"INDEX(tblREGASSLookup[FUNC],MATCH(tblREGASSJune19[[#This Row],[Concat]],tblREGASSLookup[Concat],0))","v":{"$error":"#N/A"}},{"$f":"IF(tblREGASSJune19[[#This Row],[Total ($000)]]=0,\"NO\",IF(ISNA(tblREGASSJune19[[#This Row],[FUNC]]),\"YES\",IF(_xlfn.ISFORMULA(tblREGASSJune19[[#This Row],[FUNC]]),\"NO\",\"YES\")))","v":"NO"}]
[{"$f":"CONCATENATE(tblREGASSJune19[[#This Row],[Primary Account]],tblREGASSJune19[[#This Row],[Primary Name]],tblREGASSJune19[[#This Row],[Secondary Acct]],tblREGASSJune19[[#This Row],[Secondary  Name]],tblREGASSJune19[[#This Row],[Alloc4FUNC]])","v":"1823920DSR COSTS AMORTIZED102160SELF AUDIT - WYP - 2002SITUS"},1823920,"DSR COSTS AMORTIZED",102160,"SELF AUDIT - WYP - 2002","WYP",0,{"$f":"IF(OR(tblREGASSJune19[[#This Row],[Alloc]]=\"IDU\",tblREGASSJune19[[#This Row],[Alloc]]=\"OR\",tblREGASSJune19[[#This Row],[Alloc]]=\"UT\",tblREGASSJune19[[#This Row],[Alloc]]=\"WYU\",tblREGASSJune19[[#This Row],[Alloc]]=\"WYP\",tblREGASSJune19[[#This Row],[Alloc]]=\"CA\",tblREGASSJune19[[#This Row],[Alloc]]=\"WA\"),\"SITUS\",tblREGASSJune19[[#This Row],[Alloc]])","v":"SITUS"},{"$f":"INDEX(tblREGASSLookup[FUNC],MATCH(tblREGASSJune19[[#This Row],[Concat]],tblREGASSLookup[Concat],0))","v":{"$error":"#N/A"}},{"$f":"IF(tblREGASSJune19[[#This Row],[Total ($000)]]=0,\"NO\",IF(ISNA(tblREGASSJune19[[#This Row],[FUNC]]),\"YES\",IF(_xlfn.ISFORMULA(tblREGASSJune19[[#This Row],[FUNC]]),\"NO\",\"YES\")))","v":"NO"}]
[{"$f":"CONCATENATE(tblREGASSJune19[[#This Row],[Primary Account]],tblREGASSJune19[[#This Row],[Primary Name]],tblREGASSJune19[[#This Row],[Secondary Acct]],tblREGASSJune19[[#This Row],[Secondary  Name]],tblREGASSJune19[[#This Row],[Alloc4FUNC]])","v":"1823920DSR COSTS AMORTIZED102161SELF AUDIT - WYU - 2002SITUS"},1823920,"DSR COSTS AMORTIZED",102161,"SELF AUDIT - WYU - 2002","WYP",0,{"$f":"IF(OR(tblREGASSJune19[[#This Row],[Alloc]]=\"IDU\",tblREGASSJune19[[#This Row],[Alloc]]=\"OR\",tblREGASSJune19[[#This Row],[Alloc]]=\"UT\",tblREGASSJune19[[#This Row],[Alloc]]=\"WYU\",tblREGASSJune19[[#This Row],[Alloc]]=\"WYP\",tblREGASSJune19[[#This Row],[Alloc]]=\"CA\",tblREGASSJune19[[#This Row],[Alloc]]=\"WA\"),\"SITUS\",tblREGASSJune19[[#This Row],[Alloc]])","v":"SITUS"},{"$f":"INDEX(tblREGASSLookup[FUNC],MATCH(tblREGASSJune19[[#This Row],[Concat]],tblREGASSLookup[Concat],0))","v":{"$error":"#N/A"}},{"$f":"IF(tblREGASSJune19[[#This Row],[Total ($000)]]=0,\"NO\",IF(ISNA(tblREGASSJune19[[#This Row],[FUNC]]),\"YES\",IF(_xlfn.ISFORMULA(tblREGASSJune19[[#This Row],[FUNC]]),\"NO\",\"YES\")))","v":"NO"}]
[{"$f":"CONCATENATE(tblREGASSJune19[[#This Row],[Primary Account]],tblREGASSJune19[[#This Row],[Primary Name]],tblREGASSJune19[[#This Row],[Secondary Acct]],tblREGASSJune19[[#This Row],[Secondary  Name]],tblREGASSJune19[[#This Row],[Alloc4FUNC]])","v":"1823920DSR COSTS AMORTIZED102185WEB AUDIT PILOT - WAOTHER"},1823920,"DSR COSTS AMORTIZED",102185,"WEB AUDIT PILOT - WA","OTHER",526.85176999999999,{"$f":"IF(OR(tblREGASSJune19[[#This Row],[Alloc]]=\"IDU\",tblREGASSJune19[[#This Row],[Alloc]]=\"OR\",tblREGASSJune19[[#This Row],[Alloc]]=\"UT\",tblREGASSJune19[[#This Row],[Alloc]]=\"WYU\",tblREGASSJune19[[#This Row],[Alloc]]=\"WYP\",tblREGASSJune19[[#This Row],[Alloc]]=\"CA\",tblREGASSJune19[[#This Row],[Alloc]]=\"WA\"),\"SITUS\",tblREGASSJune19[[#This Row],[Alloc]])","v":"OTHER"},{"$f":"INDEX(tblREGASSLookup[FUNC],MATCH(tblREGASSJune19[[#This Row],[Concat]],tblREGASSLookup[Concat],0))","v":"CUST"},{"$f":"IF(tblREGASSJune19[[#This Row],[Total ($000)]]=0,\"NO\",IF(ISNA(tblREGASSJune19[[#This Row],[FUNC]]),\"YES\",IF(_xlfn.ISFORMULA(tblREGASSJune19[[#This Row],[FUNC]]),\"NO\",\"YES\")))","v":"NO"}]
[{"$f":"CONCATENATE(tblREGASSJune19[[#This Row],[Primary Account]],tblREGASSJune19[[#This Row],[Primary Name]],tblREGASSJune19[[#This Row],[Secondary Acct]],tblREGASSJune19[[#This Row],[Secondary  Name]],tblREGASSJune19[[#This Row],[Alloc4FUNC]])","v":"1823920DSR COSTS AMORTIZED102186APPLIANCE REBATE - WAOTHER"},1823920,"DSR COSTS AMORTIZED",102186,"APPLIANCE REBATE - WA","OTHER",17.985720000000001,{"$f":"IF(OR(tblREGASSJune19[[#This Row],[Alloc]]=\"IDU\",tblREGASSJune19[[#This Row],[Alloc]]=\"OR\",tblREGASSJune19[[#This Row],[Alloc]]=\"UT\",tblREGASSJune19[[#This Row],[Alloc]]=\"WYU\",tblREGASSJune19[[#This Row],[Alloc]]=\"WYP\",tblREGASSJune19[[#This Row],[Alloc]]=\"CA\",tblREGASSJune19[[#This Row],[Alloc]]=\"WA\"),\"SITUS\",tblREGASSJune19[[#This Row],[Alloc]])","v":"OTHER"},{"$f":"INDEX(tblREGASSLookup[FUNC],MATCH(tblREGASSJune19[[#This Row],[Concat]],tblREGASSLookup[Concat],0))","v":"CUST"},{"$f":"IF(tblREGASSJune19[[#This Row],[Total ($000)]]=0,\"NO\",IF(ISNA(tblREGASSJune19[[#This Row],[FUNC]]),\"YES\",IF(_xlfn.ISFORMULA(tblREGASSJune19[[#This Row],[FUNC]]),\"NO\",\"YES\")))","v":"NO"}]
[{"$f":"CONCATENATE(tblREGASSJune19[[#This Row],[Primary Account]],tblREGASSJune19[[#This Row],[Primary Name]],tblREGASSJune19[[#This Row],[Secondary Acct]],tblREGASSJune19[[#This Row],[Secondary  Name]],tblREGASSJune19[[#This Row],[Alloc4FUNC]])","v":"1823920DSR COSTS AMORTIZED102195INDUSTRIAL RETROFIT LIGHTING - UT 2002OTHER"},1823920,"DSR COSTS AMORTIZED",102195,"INDUSTRIAL RETROFIT LIGHTING - UT 2002","OTHER",70.546120000000002,{"$f":"IF(OR(tblREGASSJune19[[#This Row],[Alloc]]=\"IDU\",tblREGASSJune19[[#This Row],[Alloc]]=\"OR\",tblREGASSJune19[[#This Row],[Alloc]]=\"UT\",tblREGASSJune19[[#This Row],[Alloc]]=\"WYU\",tblREGASSJune19[[#This Row],[Alloc]]=\"WYP\",tblREGASSJune19[[#This Row],[Alloc]]=\"CA\",tblREGASSJune19[[#This Row],[Alloc]]=\"WA\"),\"SITUS\",tblREGASSJune19[[#This Row],[Alloc]])","v":"OTHER"},{"$f":"INDEX(tblREGASSLookup[FUNC],MATCH(tblREGASSJune19[[#This Row],[Concat]],tblREGASSLookup[Concat],0))","v":"CUST"},{"$f":"IF(tblREGASSJune19[[#This Row],[Total ($000)]]=0,\"NO\",IF(ISNA(tblREGASSJune19[[#This Row],[FUNC]]),\"YES\",IF(_xlfn.ISFORMULA(tblREGASSJune19[[#This Row],[FUNC]]),\"NO\",\"YES\")))","v":"NO"}]
[{"$f":"CONCATENATE(tblREGASSJune19[[#This Row],[Primary Account]],tblREGASSJune19[[#This Row],[Primary Name]],tblREGASSJune19[[#This Row],[Secondary Acct]],tblREGASSJune19[[#This Row],[Secondary  Name]],tblREGASSJune19[[#This Row],[Alloc4FUNC]])","v":"1823920DSR COSTS AMORTIZED102196POWER FORWARD UT 2002OTHER"},1823920,"DSR COSTS AMORTIZED",102196,"POWER FORWARD UT 2002","OTHER",115.02204999999999,{"$f":"IF(OR(tblREGASSJune19[[#This Row],[Alloc]]=\"IDU\",tblREGASSJune19[[#This Row],[Alloc]]=\"OR\",tblREGASSJune19[[#This Row],[Alloc]]=\"UT\",tblREGASSJune19[[#This Row],[Alloc]]=\"WYU\",tblREGASSJune19[[#This Row],[Alloc]]=\"WYP\",tblREGASSJune19[[#This Row],[Alloc]]=\"CA\",tblREGASSJune19[[#This Row],[Alloc]]=\"WA\"),\"SITUS\",tblREGASSJune19[[#This Row],[Alloc]])","v":"OTHER"},{"$f":"INDEX(tblREGASSLookup[FUNC],MATCH(tblREGASSJune19[[#This Row],[Concat]],tblREGASSLookup[Concat],0))","v":"CUST"},{"$f":"IF(tblREGASSJune19[[#This Row],[Total ($000)]]=0,\"NO\",IF(ISNA(tblREGASSJune19[[#This Row],[FUNC]]),\"YES\",IF(_xlfn.ISFORMULA(tblREGASSJune19[[#This Row],[FUNC]]),\"NO\",\"YES\")))","v":"NO"}]
[{"$f":"CONCATENATE(tblREGASSJune19[[#This Row],[Primary Account]],tblREGASSJune19[[#This Row],[Primary Name]],tblREGASSJune19[[#This Row],[Secondary Acct]],tblREGASSJune19[[#This Row],[Secondary  Name]],tblREGASSJune19[[#This Row],[Alloc4FUNC]])","v":"1823920DSR COSTS AMORTIZED102205A/C LOAD CONTROL PGM - RESIDENTIAL - UTOTHER"},1823920,"DSR COSTS AMORTIZED",102205,"A/C LOAD CONTROL PGM - RESIDENTIAL - UT","OTHER",27.546109999999999,{"$f":"IF(OR(tblREGASSJune19[[#This Row],[Alloc]]=\"IDU\",tblREGASSJune19[[#This Row],[Alloc]]=\"OR\",tblREGASSJune19[[#This Row],[Alloc]]=\"UT\",tblREGASSJune19[[#This Row],[Alloc]]=\"WYU\",tblREGASSJune19[[#This Row],[Alloc]]=\"WYP\",tblREGASSJune19[[#This Row],[Alloc]]=\"CA\",tblREGASSJune19[[#This Row],[Alloc]]=\"WA\"),\"SITUS\",tblREGASSJune19[[#This Row],[Alloc]])","v":"OTHER"},{"$f":"INDEX(tblREGASSLookup[FUNC],MATCH(tblREGASSJune19[[#This Row],[Concat]],tblREGASSLookup[Concat],0))","v":"CUST"},{"$f":"IF(tblREGASSJune19[[#This Row],[Total ($000)]]=0,\"NO\",IF(ISNA(tblREGASSJune19[[#This Row],[FUNC]]),\"YES\",IF(_xlfn.ISFORMULA(tblREGASSJune19[[#This Row],[FUNC]]),\"NO\",\"YES\")))","v":"NO"}]
[{"$f":"CONCATENATE(tblREGASSJune19[[#This Row],[Primary Account]],tblREGASSJune19[[#This Row],[Primary Name]],tblREGASSJune19[[#This Row],[Secondary Acct]],tblREGASSJune19[[#This Row],[Secondary  Name]],tblREGASSJune19[[#This Row],[Alloc4FUNC]])","v":"1823920DSR COSTS AMORTIZED102206SCHOOL ENERGY EDUCATION - WAOTHER"},1823920,"DSR COSTS AMORTIZED",102206,"SCHOOL ENERGY EDUCATION - WA","OTHER",3807.4619600000001,{"$f":"IF(OR(tblREGASSJune19[[#This Row],[Alloc]]=\"IDU\",tblREGASSJune19[[#This Row],[Alloc]]=\"OR\",tblREGASSJune19[[#This Row],[Alloc]]=\"UT\",tblREGASSJune19[[#This Row],[Alloc]]=\"WYU\",tblREGASSJune19[[#This Row],[Alloc]]=\"WYP\",tblREGASSJune19[[#This Row],[Alloc]]=\"CA\",tblREGASSJune19[[#This Row],[Alloc]]=\"WA\"),\"SITUS\",tblREGASSJune19[[#This Row],[Alloc]])","v":"OTHER"},{"$f":"INDEX(tblREGASSLookup[FUNC],MATCH(tblREGASSJune19[[#This Row],[Concat]],tblREGASSLookup[Concat],0))","v":"CUST"},{"$f":"IF(tblREGASSJune19[[#This Row],[Total ($000)]]=0,\"NO\",IF(ISNA(tblREGASSJune19[[#This Row],[FUNC]]),\"YES\",IF(_xlfn.ISFORMULA(tblREGASSJune19[[#This Row],[FUNC]]),\"NO\",\"YES\")))","v":"NO"}]
[{"$f":"CONCATENATE(tblREGASSJune19[[#This Row],[Primary Account]],tblREGASSJune19[[#This Row],[Primary Name]],tblREGASSJune19[[#This Row],[Secondary Acct]],tblREGASSJune19[[#This Row],[Secondary  Name]],tblREGASSJune19[[#This Row],[Alloc4FUNC]])","v":"1823920DSR COSTS AMORTIZED102208COMPACT FLUORESCENT LAMPS (CFL) - WYP 20SITUS"},1823920,"DSR COSTS AMORTIZED",102208,"COMPACT FLUORESCENT LAMPS (CFL) - WYP 20","WYP",0,{"$f":"IF(OR(tblREGASSJune19[[#This Row],[Alloc]]=\"IDU\",tblREGASSJune19[[#This Row],[Alloc]]=\"OR\",tblREGASSJune19[[#This Row],[Alloc]]=\"UT\",tblREGASSJune19[[#This Row],[Alloc]]=\"WYU\",tblREGASSJune19[[#This Row],[Alloc]]=\"WYP\",tblREGASSJune19[[#This Row],[Alloc]]=\"CA\",tblREGASSJune19[[#This Row],[Alloc]]=\"WA\"),\"SITUS\",tblREGASSJune19[[#This Row],[Alloc]])","v":"SITUS"},{"$f":"INDEX(tblREGASSLookup[FUNC],MATCH(tblREGASSJune19[[#This Row],[Concat]],tblREGASSLookup[Concat],0))","v":{"$error":"#N/A"}},{"$f":"IF(tblREGASSJune19[[#This Row],[Total ($000)]]=0,\"NO\",IF(ISNA(tblREGASSJune19[[#This Row],[FUNC]]),\"YES\",IF(_xlfn.ISFORMULA(tblREGASSJune19[[#This Row],[FUNC]]),\"NO\",\"YES\")))","v":"NO"}]
[{"$f":"CONCATENATE(tblREGASSJune19[[#This Row],[Primary Account]],tblREGASSJune19[[#This Row],[Primary Name]],tblREGASSJune19[[#This Row],[Secondary Acct]],tblREGASSJune19[[#This Row],[Secondary  Name]],tblREGASSJune19[[#This Row],[Alloc4FUNC]])","v":"1823920DSR COSTS AMORTIZED102209AIR CONDITIONING - UT 2002OTHER"},1823920,"DSR COSTS AMORTIZED",102209,"AIR CONDITIONING - UT 2002","OTHER",23.667570000000001,{"$f":"IF(OR(tblREGASSJune19[[#This Row],[Alloc]]=\"IDU\",tblREGASSJune19[[#This Row],[Alloc]]=\"OR\",tblREGASSJune19[[#This Row],[Alloc]]=\"UT\",tblREGASSJune19[[#This Row],[Alloc]]=\"WYU\",tblREGASSJune19[[#This Row],[Alloc]]=\"WYP\",tblREGASSJune19[[#This Row],[Alloc]]=\"CA\",tblREGASSJune19[[#This Row],[Alloc]]=\"WA\"),\"SITUS\",tblREGASSJune19[[#This Row],[Alloc]])","v":"OTHER"},{"$f":"INDEX(tblREGASSLookup[FUNC],MATCH(tblREGASSJune19[[#This Row],[Concat]],tblREGASSLookup[Concat],0))","v":"CUST"},{"$f":"IF(tblREGASSJune19[[#This Row],[Total ($000)]]=0,\"NO\",IF(ISNA(tblREGASSJune19[[#This Row],[FUNC]]),\"YES\",IF(_xlfn.ISFORMULA(tblREGASSJune19[[#This Row],[FUNC]]),\"NO\",\"YES\")))","v":"NO"}]
[{"$f":"CONCATENATE(tblREGASSJune19[[#This Row],[Primary Account]],tblREGASSJune19[[#This Row],[Primary Name]],tblREGASSJune19[[#This Row],[Secondary Acct]],tblREGASSJune19[[#This Row],[Secondary  Name]],tblREGASSJune19[[#This Row],[Alloc4FUNC]])","v":"1823920DSR COSTS AMORTIZED102210HASSELFREE EFFICIENCY - IDU 2003SITUS"},1823920,"DSR COSTS AMORTIZED",102210,"HASSELFREE EFFICIENCY - IDU 2003","IDU",0,{"$f":"IF(OR(tblREGASSJune19[[#This Row],[Alloc]]=\"IDU\",tblREGASSJune19[[#This Row],[Alloc]]=\"OR\",tblREGASSJune19[[#This Row],[Alloc]]=\"UT\",tblREGASSJune19[[#This Row],[Alloc]]=\"WYU\",tblREGASSJune19[[#This Row],[Alloc]]=\"WYP\",tblREGASSJune19[[#This Row],[Alloc]]=\"CA\",tblREGASSJune19[[#This Row],[Alloc]]=\"WA\"),\"SITUS\",tblREGASSJune19[[#This Row],[Alloc]])","v":"SITUS"},{"$f":"INDEX(tblREGASSLookup[FUNC],MATCH(tblREGASSJune19[[#This Row],[Concat]],tblREGASSLookup[Concat],0))","v":{"$error":"#N/A"}},{"$f":"IF(tblREGASSJune19[[#This Row],[Total ($000)]]=0,\"NO\",IF(ISNA(tblREGASSJune19[[#This Row],[FUNC]]),\"YES\",IF(_xlfn.ISFORMULA(tblREGASSJune19[[#This Row],[FUNC]]),\"NO\",\"YES\")))","v":"NO"}]
[{"$f":"CONCATENATE(tblREGASSJune19[[#This Row],[Primary Account]],tblREGASSJune19[[#This Row],[Primary Name]],tblREGASSJune19[[#This Row],[Secondary Acct]],tblREGASSJune19[[#This Row],[Secondary  Name]],tblREGASSJune19[[#This Row],[Alloc4FUNC]])","v":"1823920DSR COSTS AMORTIZED102213REFRIGERATOR RECYCLING PGM - UT 2003OTHER"},1823920,"DSR COSTS AMORTIZED",102213,"REFRIGERATOR RECYCLING PGM - UT 2003","OTHER",1508.7507900000001,{"$f":"IF(OR(tblREGASSJune19[[#This Row],[Alloc]]=\"IDU\",tblREGASSJune19[[#This Row],[Alloc]]=\"OR\",tblREGASSJune19[[#This Row],[Alloc]]=\"UT\",tblREGASSJune19[[#This Row],[Alloc]]=\"WYU\",tblREGASSJune19[[#This Row],[Alloc]]=\"WYP\",tblREGASSJune19[[#This Row],[Alloc]]=\"CA\",tblREGASSJune19[[#This Row],[Alloc]]=\"WA\"),\"SITUS\",tblREGASSJune19[[#This Row],[Alloc]])","v":"OTHER"},{"$f":"INDEX(tblREGASSLookup[FUNC],MATCH(tblREGASSJune19[[#This Row],[Concat]],tblREGASSLookup[Concat],0))","v":"CUST"},{"$f":"IF(tblREGASSJune19[[#This Row],[Total ($000)]]=0,\"NO\",IF(ISNA(tblREGASSJune19[[#This Row],[FUNC]]),\"YES\",IF(_xlfn.ISFORMULA(tblREGASSJune19[[#This Row],[FUNC]]),\"NO\",\"YES\")))","v":"NO"}]
[{"$f":"CONCATENATE(tblREGASSJune19[[#This Row],[Primary Account]],tblREGASSJune19[[#This Row],[Primary Name]],tblREGASSJune19[[#This Row],[Secondary Acct]],tblREGASSJune19[[#This Row],[Secondary  Name]],tblREGASSJune19[[#This Row],[Alloc4FUNC]])","v":"1823920DSR COSTS AMORTIZED102214REFRIGERATOR RECYCLING PGM - WAOTHER"},1823920,"DSR COSTS AMORTIZED",102214,"REFRIGERATOR RECYCLING PGM - WA","OTHER",3674.5790000000002,{"$f":"IF(OR(tblREGASSJune19[[#This Row],[Alloc]]=\"IDU\",tblREGASSJune19[[#This Row],[Alloc]]=\"OR\",tblREGASSJune19[[#This Row],[Alloc]]=\"UT\",tblREGASSJune19[[#This Row],[Alloc]]=\"WYU\",tblREGASSJune19[[#This Row],[Alloc]]=\"WYP\",tblREGASSJune19[[#This Row],[Alloc]]=\"CA\",tblREGASSJune19[[#This Row],[Alloc]]=\"WA\"),\"SITUS\",tblREGASSJune19[[#This Row],[Alloc]])","v":"OTHER"},{"$f":"INDEX(tblREGASSLookup[FUNC],MATCH(tblREGASSJune19[[#This Row],[Concat]],tblREGASSLookup[Concat],0))","v":"CUST"},{"$f":"IF(tblREGASSJune19[[#This Row],[Total ($000)]]=0,\"NO\",IF(ISNA(tblREGASSJune19[[#This Row],[FUNC]]),\"YES\",IF(_xlfn.ISFORMULA(tblREGASSJune19[[#This Row],[FUNC]]),\"NO\",\"YES\")))","v":"NO"}]
[{"$f":"CONCATENATE(tblREGASSJune19[[#This Row],[Primary Account]],tblREGASSJune19[[#This Row],[Primary Name]],tblREGASSJune19[[#This Row],[Secondary Acct]],tblREGASSJune19[[#This Row],[Secondary  Name]],tblREGASSJune19[[#This Row],[Alloc4FUNC]])","v":"1823920DSR COSTS AMORTIZED102215REFRIGERATOR RECYCLING - WYP 2003SITUS"},1823920,"DSR COSTS AMORTIZED",102215,"REFRIGERATOR RECYCLING - WYP 2003","WYP",0,{"$f":"IF(OR(tblREGASSJune19[[#This Row],[Alloc]]=\"IDU\",tblREGASSJune19[[#This Row],[Alloc]]=\"OR\",tblREGASSJune19[[#This Row],[Alloc]]=\"UT\",tblREGASSJune19[[#This Row],[Alloc]]=\"WYU\",tblREGASSJune19[[#This Row],[Alloc]]=\"WYP\",tblREGASSJune19[[#This Row],[Alloc]]=\"CA\",tblREGASSJune19[[#This Row],[Alloc]]=\"WA\"),\"SITUS\",tblREGASSJune19[[#This Row],[Alloc]])","v":"SITUS"},{"$f":"INDEX(tblREGASSLookup[FUNC],MATCH(tblREGASSJune19[[#This Row],[Concat]],tblREGASSLookup[Concat],0))","v":{"$error":"#N/A"}},{"$f":"IF(tblREGASSJune19[[#This Row],[Total ($000)]]=0,\"NO\",IF(ISNA(tblREGASSJune19[[#This Row],[FUNC]]),\"YES\",IF(_xlfn.ISFORMULA(tblREGASSJune19[[#This Row],[FUNC]]),\"NO\",\"YES\")))","v":"NO"}]
[{"$f":"CONCATENATE(tblREGASSJune19[[#This Row],[Primary Account]],tblREGASSJune19[[#This Row],[Primary Name]],tblREGASSJune19[[#This Row],[Secondary Acct]],tblREGASSJune19[[#This Row],[Secondary  Name]],tblREGASSJune19[[#This Row],[Alloc4FUNC]])","v":"1823920DSR COSTS AMORTIZED102223A/C LOAD CONTROL - RESIDENTIAL UT 2003OTHER"},1823920,"DSR COSTS AMORTIZED",102223,"A/C LOAD CONTROL - RESIDENTIAL UT 2003","OTHER",460.33192000000003,{"$f":"IF(OR(tblREGASSJune19[[#This Row],[Alloc]]=\"IDU\",tblREGASSJune19[[#This Row],[Alloc]]=\"OR\",tblREGASSJune19[[#This Row],[Alloc]]=\"UT\",tblREGASSJune19[[#This Row],[Alloc]]=\"WYU\",tblREGASSJune19[[#This Row],[Alloc]]=\"WYP\",tblREGASSJune19[[#This Row],[Alloc]]=\"CA\",tblREGASSJune19[[#This Row],[Alloc]]=\"WA\"),\"SITUS\",tblREGASSJune19[[#This Row],[Alloc]])","v":"OTHER"},{"$f":"INDEX(tblREGASSLookup[FUNC],MATCH(tblREGASSJune19[[#This Row],[Concat]],tblREGASSLookup[Concat],0))","v":"CUST"},{"$f":"IF(tblREGASSJune19[[#This Row],[Total ($000)]]=0,\"NO\",IF(ISNA(tblREGASSJune19[[#This Row],[FUNC]]),\"YES\",IF(_xlfn.ISFORMULA(tblREGASSJune19[[#This Row],[FUNC]]),\"NO\",\"YES\")))","v":"NO"}]
[{"$f":"CONCATENATE(tblREGASSJune19[[#This Row],[Primary Account]],tblREGASSJune19[[#This Row],[Primary Name]],tblREGASSJune19[[#This Row],[Secondary Acct]],tblREGASSJune19[[#This Row],[Secondary  Name]],tblREGASSJune19[[#This Row],[Alloc4FUNC]])","v":"1823920DSR COSTS AMORTIZED102225AIR CONDITIONING - UT 2003OTHER"},1823920,"DSR COSTS AMORTIZED",102225,"AIR CONDITIONING - UT 2003","OTHER",2563.5679700000001,{"$f":"IF(OR(tblREGASSJune19[[#This Row],[Alloc]]=\"IDU\",tblREGASSJune19[[#This Row],[Alloc]]=\"OR\",tblREGASSJune19[[#This Row],[Alloc]]=\"UT\",tblREGASSJune19[[#This Row],[Alloc]]=\"WYU\",tblREGASSJune19[[#This Row],[Alloc]]=\"WYP\",tblREGASSJune19[[#This Row],[Alloc]]=\"CA\",tblREGASSJune19[[#This Row],[Alloc]]=\"WA\"),\"SITUS\",tblREGASSJune19[[#This Row],[Alloc]])","v":"OTHER"},{"$f":"INDEX(tblREGASSLookup[FUNC],MATCH(tblREGASSJune19[[#This Row],[Concat]],tblREGASSLookup[Concat],0))","v":"CUST"},{"$f":"IF(tblREGASSJune19[[#This Row],[Total ($000)]]=0,\"NO\",IF(ISNA(tblREGASSJune19[[#This Row],[FUNC]]),\"YES\",IF(_xlfn.ISFORMULA(tblREGASSJune19[[#This Row],[FUNC]]),\"NO\",\"YES\")))","v":"NO"}]
[{"$f":"CONCATENATE(tblREGASSJune19[[#This Row],[Primary Account]],tblREGASSJune19[[#This Row],[Primary Name]],tblREGASSJune19[[#This Row],[Secondary Acct]],tblREGASSJune19[[#This Row],[Secondary  Name]],tblREGASSJune19[[#This Row],[Alloc4FUNC]])","v":"1823920DSR COSTS AMORTIZED102226COMMERCIAL RETROFIT LIGHTING - UT 2003OTHER"},1823920,"DSR COSTS AMORTIZED",102226,"COMMERCIAL RETROFIT LIGHTING - UT 2003","OTHER",1186.5769499999999,{"$f":"IF(OR(tblREGASSJune19[[#This Row],[Alloc]]=\"IDU\",tblREGASSJune19[[#This Row],[Alloc]]=\"OR\",tblREGASSJune19[[#This Row],[Alloc]]=\"UT\",tblREGASSJune19[[#This Row],[Alloc]]=\"WYU\",tblREGASSJune19[[#This Row],[Alloc]]=\"WYP\",tblREGASSJune19[[#This Row],[Alloc]]=\"CA\",tblREGASSJune19[[#This Row],[Alloc]]=\"WA\"),\"SITUS\",tblREGASSJune19[[#This Row],[Alloc]])","v":"OTHER"},{"$f":"INDEX(tblREGASSLookup[FUNC],MATCH(tblREGASSJune19[[#This Row],[Concat]],tblREGASSLookup[Concat],0))","v":"CUST"},{"$f":"IF(tblREGASSJune19[[#This Row],[Total ($000)]]=0,\"NO\",IF(ISNA(tblREGASSJune19[[#This Row],[FUNC]]),\"YES\",IF(_xlfn.ISFORMULA(tblREGASSJune19[[#This Row],[FUNC]]),\"NO\",\"YES\")))","v":"NO"}]
[{"$f":"CONCATENATE(tblREGASSJune19[[#This Row],[Primary Account]],tblREGASSJune19[[#This Row],[Primary Name]],tblREGASSJune19[[#This Row],[Secondary Acct]],tblREGASSJune19[[#This Row],[Secondary  Name]],tblREGASSJune19[[#This Row],[Alloc4FUNC]])","v":"1823920DSR COSTS AMORTIZED102227COMMERCIAL SMALL RETROFIT - UT 2003OTHER"},1823920,"DSR COSTS AMORTIZED",102227,"COMMERCIAL SMALL RETROFIT - UT 2003","OTHER",894.60586999999998,{"$f":"IF(OR(tblREGASSJune19[[#This Row],[Alloc]]=\"IDU\",tblREGASSJune19[[#This Row],[Alloc]]=\"OR\",tblREGASSJune19[[#This Row],[Alloc]]=\"UT\",tblREGASSJune19[[#This Row],[Alloc]]=\"WYU\",tblREGASSJune19[[#This Row],[Alloc]]=\"WYP\",tblREGASSJune19[[#This Row],[Alloc]]=\"CA\",tblREGASSJune19[[#This Row],[Alloc]]=\"WA\"),\"SITUS\",tblREGASSJune19[[#This Row],[Alloc]])","v":"OTHER"},{"$f":"INDEX(tblREGASSLookup[FUNC],MATCH(tblREGASSJune19[[#This Row],[Concat]],tblREGASSLookup[Concat],0))","v":"CUST"},{"$f":"IF(tblREGASSJune19[[#This Row],[Total ($000)]]=0,\"NO\",IF(ISNA(tblREGASSJune19[[#This Row],[FUNC]]),\"YES\",IF(_xlfn.ISFORMULA(tblREGASSJune19[[#This Row],[FUNC]]),\"NO\",\"YES\")))","v":"NO"}]
[{"$f":"CONCATENATE(tblREGASSJune19[[#This Row],[Primary Account]],tblREGASSJune19[[#This Row],[Primary Name]],tblREGASSJune19[[#This Row],[Secondary Acct]],tblREGASSJune19[[#This Row],[Secondary  Name]],tblREGASSJune19[[#This Row],[Alloc4FUNC]])","v":"1823920DSR COSTS AMORTIZED102228COMPACT FLOURESCENT LAMP (CFL) - UT 2002OTHER"},1823920,"DSR COSTS AMORTIZED",102228,"COMPACT FLOURESCENT LAMP (CFL) - UT 2002","OTHER",13.223100000000001,{"$f":"IF(OR(tblREGASSJune19[[#This Row],[Alloc]]=\"IDU\",tblREGASSJune19[[#This Row],[Alloc]]=\"OR\",tblREGASSJune19[[#This Row],[Alloc]]=\"UT\",tblREGASSJune19[[#This Row],[Alloc]]=\"WYU\",tblREGASSJune19[[#This Row],[Alloc]]=\"WYP\",tblREGASSJune19[[#This Row],[Alloc]]=\"CA\",tblREGASSJune19[[#This Row],[Alloc]]=\"WA\"),\"SITUS\",tblREGASSJune19[[#This Row],[Alloc]])","v":"OTHER"},{"$f":"INDEX(tblREGASSLookup[FUNC],MATCH(tblREGASSJune19[[#This Row],[Concat]],tblREGASSLookup[Concat],0))","v":"CUST"},{"$f":"IF(tblREGASSJune19[[#This Row],[Total ($000)]]=0,\"NO\",IF(ISNA(tblREGASSJune19[[#This Row],[FUNC]]),\"YES\",IF(_xlfn.ISFORMULA(tblREGASSJune19[[#This Row],[FUNC]]),\"NO\",\"YES\")))","v":"NO"}]
[{"$f":"CONCATENATE(tblREGASSJune19[[#This Row],[Primary Account]],tblREGASSJune19[[#This Row],[Primary Name]],tblREGASSJune19[[#This Row],[Secondary Acct]],tblREGASSJune19[[#This Row],[Secondary  Name]],tblREGASSJune19[[#This Row],[Alloc4FUNC]])","v":"1823920DSR COSTS AMORTIZED102229ENERGY FINANSWER - UT 2003OTHER"},1823920,"DSR COSTS AMORTIZED",102229,"ENERGY FINANSWER - UT 2003","OTHER",1541.96381,{"$f":"IF(OR(tblREGASSJune19[[#This Row],[Alloc]]=\"IDU\",tblREGASSJune19[[#This Row],[Alloc]]=\"OR\",tblREGASSJune19[[#This Row],[Alloc]]=\"UT\",tblREGASSJune19[[#This Row],[Alloc]]=\"WYU\",tblREGASSJune19[[#This Row],[Alloc]]=\"WYP\",tblREGASSJune19[[#This Row],[Alloc]]=\"CA\",tblREGASSJune19[[#This Row],[Alloc]]=\"WA\"),\"SITUS\",tblREGASSJune19[[#This Row],[Alloc]])","v":"OTHER"},{"$f":"INDEX(tblREGASSLookup[FUNC],MATCH(tblREGASSJune19[[#This Row],[Concat]],tblREGASSLookup[Concat],0))","v":"CUST"},{"$f":"IF(tblREGASSJune19[[#This Row],[Total ($000)]]=0,\"NO\",IF(ISNA(tblREGASSJune19[[#This Row],[FUNC]]),\"YES\",IF(_xlfn.ISFORMULA(tblREGASSJune19[[#This Row],[FUNC]]),\"NO\",\"YES\")))","v":"NO"}]
[{"$f":"CONCATENATE(tblREGASSJune19[[#This Row],[Primary Account]],tblREGASSJune19[[#This Row],[Primary Name]],tblREGASSJune19[[#This Row],[Secondary Acct]],tblREGASSJune19[[#This Row],[Secondary  Name]],tblREGASSJune19[[#This Row],[Alloc4FUNC]])","v":"1823920DSR COSTS AMORTIZED102230INDUSTRIAL FINANSWER - UT 2003OTHER"},1823920,"DSR COSTS AMORTIZED",102230,"INDUSTRIAL FINANSWER - UT 2003","OTHER",1658.4727700000001,{"$f":"IF(OR(tblREGASSJune19[[#This Row],[Alloc]]=\"IDU\",tblREGASSJune19[[#This Row],[Alloc]]=\"OR\",tblREGASSJune19[[#This Row],[Alloc]]=\"UT\",tblREGASSJune19[[#This Row],[Alloc]]=\"WYU\",tblREGASSJune19[[#This Row],[Alloc]]=\"WYP\",tblREGASSJune19[[#This Row],[Alloc]]=\"CA\",tblREGASSJune19[[#This Row],[Alloc]]=\"WA\"),\"SITUS\",tblREGASSJune19[[#This Row],[Alloc]])","v":"OTHER"},{"$f":"INDEX(tblREGASSLookup[FUNC],MATCH(tblREGASSJune19[[#This Row],[Concat]],tblREGASSLookup[Concat],0))","v":"CUST"},{"$f":"IF(tblREGASSJune19[[#This Row],[Total ($000)]]=0,\"NO\",IF(ISNA(tblREGASSJune19[[#This Row],[FUNC]]),\"YES\",IF(_xlfn.ISFORMULA(tblREGASSJune19[[#This Row],[FUNC]]),\"NO\",\"YES\")))","v":"NO"}]
[{"$f":"CONCATENATE(tblREGASSJune19[[#This Row],[Primary Account]],tblREGASSJune19[[#This Row],[Primary Name]],tblREGASSJune19[[#This Row],[Secondary Acct]],tblREGASSJune19[[#This Row],[Secondary  Name]],tblREGASSJune19[[#This Row],[Alloc4FUNC]])","v":"1823920DSR COSTS AMORTIZED102231INDUSTRIAL RETROFIT LIGHTING - UT 2003OTHER"},1823920,"DSR COSTS AMORTIZED",102231,"INDUSTRIAL RETROFIT LIGHTING - UT 2003","OTHER",190.99912,{"$f":"IF(OR(tblREGASSJune19[[#This Row],[Alloc]]=\"IDU\",tblREGASSJune19[[#This Row],[Alloc]]=\"OR\",tblREGASSJune19[[#This Row],[Alloc]]=\"UT\",tblREGASSJune19[[#This Row],[Alloc]]=\"WYU\",tblREGASSJune19[[#This Row],[Alloc]]=\"WYP\",tblREGASSJune19[[#This Row],[Alloc]]=\"CA\",tblREGASSJune19[[#This Row],[Alloc]]=\"WA\"),\"SITUS\",tblREGASSJune19[[#This Row],[Alloc]])","v":"OTHER"},{"$f":"INDEX(tblREGASSLookup[FUNC],MATCH(tblREGASSJune19[[#This Row],[Concat]],tblREGASSLookup[Concat],0))","v":"CUST"},{"$f":"IF(tblREGASSJune19[[#This Row],[Total ($000)]]=0,\"NO\",IF(ISNA(tblREGASSJune19[[#This Row],[FUNC]]),\"YES\",IF(_xlfn.ISFORMULA(tblREGASSJune19[[#This Row],[FUNC]]),\"NO\",\"YES\")))","v":"NO"}]
[{"$f":"CONCATENATE(tblREGASSJune19[[#This Row],[Primary Account]],tblREGASSJune19[[#This Row],[Primary Name]],tblREGASSJune19[[#This Row],[Secondary Acct]],tblREGASSJune19[[#This Row],[Secondary  Name]],tblREGASSJune19[[#This Row],[Alloc4FUNC]])","v":"1823920DSR COSTS AMORTIZED102232INDUSTRIAL SMALL RETROFIT - UTAH - 2003OTHER"},1823920,"DSR COSTS AMORTIZED",102232,"INDUSTRIAL SMALL RETROFIT - UTAH - 2003","OTHER",14.031599999999999,{"$f":"IF(OR(tblREGASSJune19[[#This Row],[Alloc]]=\"IDU\",tblREGASSJune19[[#This Row],[Alloc]]=\"OR\",tblREGASSJune19[[#This Row],[Alloc]]=\"UT\",tblREGASSJune19[[#This Row],[Alloc]]=\"WYU\",tblREGASSJune19[[#This Row],[Alloc]]=\"WYP\",tblREGASSJune19[[#This Row],[Alloc]]=\"CA\",tblREGASSJune19[[#This Row],[Alloc]]=\"WA\"),\"SITUS\",tblREGASSJune19[[#This Row],[Alloc]])","v":"OTHER"},{"$f":"INDEX(tblREGASSLookup[FUNC],MATCH(tblREGASSJune19[[#This Row],[Concat]],tblREGASSLookup[Concat],0))","v":"CUST"},{"$f":"IF(tblREGASSJune19[[#This Row],[Total ($000)]]=0,\"NO\",IF(ISNA(tblREGASSJune19[[#This Row],[FUNC]]),\"YES\",IF(_xlfn.ISFORMULA(tblREGASSJune19[[#This Row],[FUNC]]),\"NO\",\"YES\")))","v":"NO"}]
[{"$f":"CONCATENATE(tblREGASSJune19[[#This Row],[Primary Account]],tblREGASSJune19[[#This Row],[Primary Name]],tblREGASSJune19[[#This Row],[Secondary Acct]],tblREGASSJune19[[#This Row],[Secondary  Name]],tblREGASSJune19[[#This Row],[Alloc4FUNC]])","v":"1823920DSR COSTS AMORTIZED102233POWER FORWARD - UT 2003OTHER"},1823920,"DSR COSTS AMORTIZED",102233,"POWER FORWARD - UT 2003","OTHER",-27.3827,{"$f":"IF(OR(tblREGASSJune19[[#This Row],[Alloc]]=\"IDU\",tblREGASSJune19[[#This Row],[Alloc]]=\"OR\",tblREGASSJune19[[#This Row],[Alloc]]=\"UT\",tblREGASSJune19[[#This Row],[Alloc]]=\"WYU\",tblREGASSJune19[[#This Row],[Alloc]]=\"WYP\",tblREGASSJune19[[#This Row],[Alloc]]=\"CA\",tblREGASSJune19[[#This Row],[Alloc]]=\"WA\"),\"SITUS\",tblREGASSJune19[[#This Row],[Alloc]])","v":"OTHER"},{"$f":"INDEX(tblREGASSLookup[FUNC],MATCH(tblREGASSJune19[[#This Row],[Concat]],tblREGASSLookup[Concat],0))","v":"CUST"},{"$f":"IF(tblREGASSJune19[[#This Row],[Total ($000)]]=0,\"NO\",IF(ISNA(tblREGASSJune19[[#This Row],[FUNC]]),\"YES\",IF(_xlfn.ISFORMULA(tblREGASSJune19[[#This Row],[FUNC]]),\"NO\",\"YES\")))","v":"NO"}]
[{"$f":"CONCATENATE(tblREGASSJune19[[#This Row],[Primary Account]],tblREGASSJune19[[#This Row],[Primary Name]],tblREGASSJune19[[#This Row],[Secondary Acct]],tblREGASSJune19[[#This Row],[Secondary  Name]],tblREGASSJune19[[#This Row],[Alloc4FUNC]])","v":"1823920DSR COSTS AMORTIZED102236COMPACT FLUORESCENT LAMPS - WYP 2003SITUS"},1823920,"DSR COSTS AMORTIZED",102236,"COMPACT FLUORESCENT LAMPS - WYP 2003","WYP",0,{"$f":"IF(OR(tblREGASSJune19[[#This Row],[Alloc]]=\"IDU\",tblREGASSJune19[[#This Row],[Alloc]]=\"OR\",tblREGASSJune19[[#This Row],[Alloc]]=\"UT\",tblREGASSJune19[[#This Row],[Alloc]]=\"WYU\",tblREGASSJune19[[#This Row],[Alloc]]=\"WYP\",tblREGASSJune19[[#This Row],[Alloc]]=\"CA\",tblREGASSJune19[[#This Row],[Alloc]]=\"WA\"),\"SITUS\",tblREGASSJune19[[#This Row],[Alloc]])","v":"SITUS"},{"$f":"INDEX(tblREGASSLookup[FUNC],MATCH(tblREGASSJune19[[#This Row],[Concat]],tblREGASSLookup[Concat],0))","v":{"$error":"#N/A"}},{"$f":"IF(tblREGASSJune19[[#This Row],[Total ($000)]]=0,\"NO\",IF(ISNA(tblREGASSJune19[[#This Row],[FUNC]]),\"YES\",IF(_xlfn.ISFORMULA(tblREGASSJune19[[#This Row],[FUNC]]),\"NO\",\"YES\")))","v":"NO"}]
[{"$f":"CONCATENATE(tblREGASSJune19[[#This Row],[Primary Account]],tblREGASSJune19[[#This Row],[Primary Name]],tblREGASSJune19[[#This Row],[Secondary Acct]],tblREGASSJune19[[#This Row],[Secondary  Name]],tblREGASSJune19[[#This Row],[Alloc4FUNC]])","v":"1823920DSR COSTS AMORTIZED102237ENERGY FINANSWER - WYP 2003SITUS"},1823920,"DSR COSTS AMORTIZED",102237,"ENERGY FINANSWER - WYP 2003","WYP",0,{"$f":"IF(OR(tblREGASSJune19[[#This Row],[Alloc]]=\"IDU\",tblREGASSJune19[[#This Row],[Alloc]]=\"OR\",tblREGASSJune19[[#This Row],[Alloc]]=\"UT\",tblREGASSJune19[[#This Row],[Alloc]]=\"WYU\",tblREGASSJune19[[#This Row],[Alloc]]=\"WYP\",tblREGASSJune19[[#This Row],[Alloc]]=\"CA\",tblREGASSJune19[[#This Row],[Alloc]]=\"WA\"),\"SITUS\",tblREGASSJune19[[#This Row],[Alloc]])","v":"SITUS"},{"$f":"INDEX(tblREGASSLookup[FUNC],MATCH(tblREGASSJune19[[#This Row],[Concat]],tblREGASSLookup[Concat],0))","v":{"$error":"#N/A"}},{"$f":"IF(tblREGASSJune19[[#This Row],[Total ($000)]]=0,\"NO\",IF(ISNA(tblREGASSJune19[[#This Row],[FUNC]]),\"YES\",IF(_xlfn.ISFORMULA(tblREGASSJune19[[#This Row],[FUNC]]),\"NO\",\"YES\")))","v":"NO"}]
[{"$f":"CONCATENATE(tblREGASSJune19[[#This Row],[Primary Account]],tblREGASSJune19[[#This Row],[Primary Name]],tblREGASSJune19[[#This Row],[Secondary Acct]],tblREGASSJune19[[#This Row],[Secondary  Name]],tblREGASSJune19[[#This Row],[Alloc4FUNC]])","v":"1823920DSR COSTS AMORTIZED102238INDUSTRIAL FINANSWER - WYP 2003SITUS"},1823920,"DSR COSTS AMORTIZED",102238,"INDUSTRIAL FINANSWER - WYP 2003","WYP",0,{"$f":"IF(OR(tblREGASSJune19[[#This Row],[Alloc]]=\"IDU\",tblREGASSJune19[[#This Row],[Alloc]]=\"OR\",tblREGASSJune19[[#This Row],[Alloc]]=\"UT\",tblREGASSJune19[[#This Row],[Alloc]]=\"WYU\",tblREGASSJune19[[#This Row],[Alloc]]=\"WYP\",tblREGASSJune19[[#This Row],[Alloc]]=\"CA\",tblREGASSJune19[[#This Row],[Alloc]]=\"WA\"),\"SITUS\",tblREGASSJune19[[#This Row],[Alloc]])","v":"SITUS"},{"$f":"INDEX(tblREGASSLookup[FUNC],MATCH(tblREGASSJune19[[#This Row],[Concat]],tblREGASSLookup[Concat],0))","v":{"$error":"#N/A"}},{"$f":"IF(tblREGASSJune19[[#This Row],[Total ($000)]]=0,\"NO\",IF(ISNA(tblREGASSJune19[[#This Row],[FUNC]]),\"YES\",IF(_xlfn.ISFORMULA(tblREGASSJune19[[#This Row],[FUNC]]),\"NO\",\"YES\")))","v":"NO"}]
[{"$f":"CONCATENATE(tblREGASSJune19[[#This Row],[Primary Account]],tblREGASSJune19[[#This Row],[Primary Name]],tblREGASSJune19[[#This Row],[Secondary Acct]],tblREGASSJune19[[#This Row],[Secondary  Name]],tblREGASSJune19[[#This Row],[Alloc4FUNC]])","v":"1823920DSR COSTS AMORTIZED102239SELF AUDIT - WYOMING - PPL 2003SITUS"},1823920,"DSR COSTS AMORTIZED",102239,"SELF AUDIT - WYOMING - PPL 2003","WYP",0,{"$f":"IF(OR(tblREGASSJune19[[#This Row],[Alloc]]=\"IDU\",tblREGASSJune19[[#This Row],[Alloc]]=\"OR\",tblREGASSJune19[[#This Row],[Alloc]]=\"UT\",tblREGASSJune19[[#This Row],[Alloc]]=\"WYU\",tblREGASSJune19[[#This Row],[Alloc]]=\"WYP\",tblREGASSJune19[[#This Row],[Alloc]]=\"CA\",tblREGASSJune19[[#This Row],[Alloc]]=\"WA\"),\"SITUS\",tblREGASSJune19[[#This Row],[Alloc]])","v":"SITUS"},{"$f":"INDEX(tblREGASSLookup[FUNC],MATCH(tblREGASSJune19[[#This Row],[Concat]],tblREGASSLookup[Concat],0))","v":{"$error":"#N/A"}},{"$f":"IF(tblREGASSJune19[[#This Row],[Total ($000)]]=0,\"NO\",IF(ISNA(tblREGASSJune19[[#This Row],[FUNC]]),\"YES\",IF(_xlfn.ISFORMULA(tblREGASSJune19[[#This Row],[FUNC]]),\"NO\",\"YES\")))","v":"NO"}]
[{"$f":"CONCATENATE(tblREGASSJune19[[#This Row],[Primary Account]],tblREGASSJune19[[#This Row],[Primary Name]],tblREGASSJune19[[#This Row],[Secondary Acct]],tblREGASSJune19[[#This Row],[Secondary  Name]],tblREGASSJune19[[#This Row],[Alloc4FUNC]])","v":"1823920DSR COSTS AMORTIZED102245CA REVENUE RECOVERY - BALANCING ACCTOTHER"},1823920,"DSR COSTS AMORTIZED",102245,"CA REVENUE RECOVERY - BALANCING ACCT","OTHER",-1.2999999999999999E-4,{"$f":"IF(OR(tblREGASSJune19[[#This Row],[Alloc]]=\"IDU\",tblREGASSJune19[[#This Row],[Alloc]]=\"OR\",tblREGASSJune19[[#This Row],[Alloc]]=\"UT\",tblREGASSJune19[[#This Row],[Alloc]]=\"WYU\",tblREGASSJune19[[#This Row],[Alloc]]=\"WYP\",tblREGASSJune19[[#This Row],[Alloc]]=\"CA\",tblREGASSJune19[[#This Row],[Alloc]]=\"WA\"),\"SITUS\",tblREGASSJune19[[#This Row],[Alloc]])","v":"OTHER"},{"$f":"INDEX(tblREGASSLookup[FUNC],MATCH(tblREGASSJune19[[#This Row],[Concat]],tblREGASSLookup[Concat],0))","v":"CUST"},{"$f":"IF(tblREGASSJune19[[#This Row],[Total ($000)]]=0,\"NO\",IF(ISNA(tblREGASSJune19[[#This Row],[FUNC]]),\"YES\",IF(_xlfn.ISFORMULA(tblREGASSJune19[[#This Row],[FUNC]]),\"NO\",\"YES\")))","v":"NO"}]
[{"$f":"CONCATENATE(tblREGASSJune19[[#This Row],[Primary Account]],tblREGASSJune19[[#This Row],[Primary Name]],tblREGASSJune19[[#This Row],[Secondary Acct]],tblREGASSJune19[[#This Row],[Secondary  Name]],tblREGASSJune19[[#This Row],[Alloc4FUNC]])","v":"1823920DSR COSTS AMORTIZED102327COMMERCIAL SELF-DIRECT UT 2003OTHER"},1823920,"DSR COSTS AMORTIZED",102327,"COMMERCIAL SELF-DIRECT UT 2003","OTHER",4.2194500000000001,{"$f":"IF(OR(tblREGASSJune19[[#This Row],[Alloc]]=\"IDU\",tblREGASSJune19[[#This Row],[Alloc]]=\"OR\",tblREGASSJune19[[#This Row],[Alloc]]=\"UT\",tblREGASSJune19[[#This Row],[Alloc]]=\"WYU\",tblREGASSJune19[[#This Row],[Alloc]]=\"WYP\",tblREGASSJune19[[#This Row],[Alloc]]=\"CA\",tblREGASSJune19[[#This Row],[Alloc]]=\"WA\"),\"SITUS\",tblREGASSJune19[[#This Row],[Alloc]])","v":"OTHER"},{"$f":"INDEX(tblREGASSLookup[FUNC],MATCH(tblREGASSJune19[[#This Row],[Concat]],tblREGASSLookup[Concat],0))","v":"CUST"},{"$f":"IF(tblREGASSJune19[[#This Row],[Total ($000)]]=0,\"NO\",IF(ISNA(tblREGASSJune19[[#This Row],[FUNC]]),\"YES\",IF(_xlfn.ISFORMULA(tblREGASSJune19[[#This Row],[FUNC]]),\"NO\",\"YES\")))","v":"NO"}]
[{"$f":"CONCATENATE(tblREGASSJune19[[#This Row],[Primary Account]],tblREGASSJune19[[#This Row],[Primary Name]],tblREGASSJune19[[#This Row],[Secondary Acct]],tblREGASSJune19[[#This Row],[Secondary  Name]],tblREGASSJune19[[#This Row],[Alloc4FUNC]])","v":"1823920DSR COSTS AMORTIZED102328INDUSTRIAL SELF-DIRECT UT 2003OTHER"},1823920,"DSR COSTS AMORTIZED",102328,"INDUSTRIAL SELF-DIRECT UT 2003","OTHER",7.3594999999999997,{"$f":"IF(OR(tblREGASSJune19[[#This Row],[Alloc]]=\"IDU\",tblREGASSJune19[[#This Row],[Alloc]]=\"OR\",tblREGASSJune19[[#This Row],[Alloc]]=\"UT\",tblREGASSJune19[[#This Row],[Alloc]]=\"WYU\",tblREGASSJune19[[#This Row],[Alloc]]=\"WYP\",tblREGASSJune19[[#This Row],[Alloc]]=\"CA\",tblREGASSJune19[[#This Row],[Alloc]]=\"WA\"),\"SITUS\",tblREGASSJune19[[#This Row],[Alloc]])","v":"OTHER"},{"$f":"INDEX(tblREGASSLookup[FUNC],MATCH(tblREGASSJune19[[#This Row],[Concat]],tblREGASSLookup[Concat],0))","v":"CUST"},{"$f":"IF(tblREGASSJune19[[#This Row],[Total ($000)]]=0,\"NO\",IF(ISNA(tblREGASSJune19[[#This Row],[FUNC]]),\"YES\",IF(_xlfn.ISFORMULA(tblREGASSJune19[[#This Row],[FUNC]]),\"NO\",\"YES\")))","v":"NO"}]
[{"$f":"CONCATENATE(tblREGASSJune19[[#This Row],[Primary Account]],tblREGASSJune19[[#This Row],[Primary Name]],tblREGASSJune19[[#This Row],[Secondary Acct]],tblREGASSJune19[[#This Row],[Secondary  Name]],tblREGASSJune19[[#This Row],[Alloc4FUNC]])","v":"1823920DSR COSTS AMORTIZED102336LOW INCOME - UTAH - 2004OTHER"},1823920,"DSR COSTS AMORTIZED",102336,"LOW INCOME - UTAH - 2004","OTHER",21.631540000000001,{"$f":"IF(OR(tblREGASSJune19[[#This Row],[Alloc]]=\"IDU\",tblREGASSJune19[[#This Row],[Alloc]]=\"OR\",tblREGASSJune19[[#This Row],[Alloc]]=\"UT\",tblREGASSJune19[[#This Row],[Alloc]]=\"WYU\",tblREGASSJune19[[#This Row],[Alloc]]=\"WYP\",tblREGASSJune19[[#This Row],[Alloc]]=\"CA\",tblREGASSJune19[[#This Row],[Alloc]]=\"WA\"),\"SITUS\",tblREGASSJune19[[#This Row],[Alloc]])","v":"OTHER"},{"$f":"INDEX(tblREGASSLookup[FUNC],MATCH(tblREGASSJune19[[#This Row],[Concat]],tblREGASSLookup[Concat],0))","v":"CUST"},{"$f":"IF(tblREGASSJune19[[#This Row],[Total ($000)]]=0,\"NO\",IF(ISNA(tblREGASSJune19[[#This Row],[FUNC]]),\"YES\",IF(_xlfn.ISFORMULA(tblREGASSJune19[[#This Row],[FUNC]]),\"NO\",\"YES\")))","v":"NO"}]
[{"$f":"CONCATENATE(tblREGASSJune19[[#This Row],[Primary Account]],tblREGASSJune19[[#This Row],[Primary Name]],tblREGASSJune19[[#This Row],[Secondary Acct]],tblREGASSJune19[[#This Row],[Secondary  Name]],tblREGASSJune19[[#This Row],[Alloc4FUNC]])","v":"1823920DSR COSTS AMORTIZED102337REFRIGERATOR RECYCLING PGM - UT 2004OTHER"},1823920,"DSR COSTS AMORTIZED",102337,"REFRIGERATOR RECYCLING PGM - UT 2004","OTHER",3581.3064399999998,{"$f":"IF(OR(tblREGASSJune19[[#This Row],[Alloc]]=\"IDU\",tblREGASSJune19[[#This Row],[Alloc]]=\"OR\",tblREGASSJune19[[#This Row],[Alloc]]=\"UT\",tblREGASSJune19[[#This Row],[Alloc]]=\"WYU\",tblREGASSJune19[[#This Row],[Alloc]]=\"WYP\",tblREGASSJune19[[#This Row],[Alloc]]=\"CA\",tblREGASSJune19[[#This Row],[Alloc]]=\"WA\"),\"SITUS\",tblREGASSJune19[[#This Row],[Alloc]])","v":"OTHER"},{"$f":"INDEX(tblREGASSLookup[FUNC],MATCH(tblREGASSJune19[[#This Row],[Concat]],tblREGASSLookup[Concat],0))","v":"CUST"},{"$f":"IF(tblREGASSJune19[[#This Row],[Total ($000)]]=0,\"NO\",IF(ISNA(tblREGASSJune19[[#This Row],[FUNC]]),\"YES\",IF(_xlfn.ISFORMULA(tblREGASSJune19[[#This Row],[FUNC]]),\"NO\",\"YES\")))","v":"NO"}]
[{"$f":"CONCATENATE(tblREGASSJune19[[#This Row],[Primary Account]],tblREGASSJune19[[#This Row],[Primary Name]],tblREGASSJune19[[#This Row],[Secondary Acct]],tblREGASSJune19[[#This Row],[Secondary  Name]],tblREGASSJune19[[#This Row],[Alloc4FUNC]])","v":"1823920DSR COSTS AMORTIZED102338AC LOAD CONTROL - RESIDENTIAL UT 2004OTHER"},1823920,"DSR COSTS AMORTIZED",102338,"AC LOAD CONTROL - RESIDENTIAL UT 2004","OTHER",2910.0947700000002,{"$f":"IF(OR(tblREGASSJune19[[#This Row],[Alloc]]=\"IDU\",tblREGASSJune19[[#This Row],[Alloc]]=\"OR\",tblREGASSJune19[[#This Row],[Alloc]]=\"UT\",tblREGASSJune19[[#This Row],[Alloc]]=\"WYU\",tblREGASSJune19[[#This Row],[Alloc]]=\"WYP\",tblREGASSJune19[[#This Row],[Alloc]]=\"CA\",tblREGASSJune19[[#This Row],[Alloc]]=\"WA\"),\"SITUS\",tblREGASSJune19[[#This Row],[Alloc]])","v":"OTHER"},{"$f":"INDEX(tblREGASSLookup[FUNC],MATCH(tblREGASSJune19[[#This Row],[Concat]],tblREGASSLookup[Concat],0))","v":"CUST"},{"$f":"IF(tblREGASSJune19[[#This Row],[Total ($000)]]=0,\"NO\",IF(ISNA(tblREGASSJune19[[#This Row],[FUNC]]),\"YES\",IF(_xlfn.ISFORMULA(tblREGASSJune19[[#This Row],[FUNC]]),\"NO\",\"YES\")))","v":"NO"}]
[{"$f":"CONCATENATE(tblREGASSJune19[[#This Row],[Primary Account]],tblREGASSJune19[[#This Row],[Primary Name]],tblREGASSJune19[[#This Row],[Secondary Acct]],tblREGASSJune19[[#This Row],[Secondary  Name]],tblREGASSJune19[[#This Row],[Alloc4FUNC]])","v":"1823920DSR COSTS AMORTIZED102339AIR CONDITIONING - UT 2004OTHER"},1823920,"DSR COSTS AMORTIZED",102339,"AIR CONDITIONING - UT 2004","OTHER",3026.0272500000001,{"$f":"IF(OR(tblREGASSJune19[[#This Row],[Alloc]]=\"IDU\",tblREGASSJune19[[#This Row],[Alloc]]=\"OR\",tblREGASSJune19[[#This Row],[Alloc]]=\"UT\",tblREGASSJune19[[#This Row],[Alloc]]=\"WYU\",tblREGASSJune19[[#This Row],[Alloc]]=\"WYP\",tblREGASSJune19[[#This Row],[Alloc]]=\"CA\",tblREGASSJune19[[#This Row],[Alloc]]=\"WA\"),\"SITUS\",tblREGASSJune19[[#This Row],[Alloc]])","v":"OTHER"},{"$f":"INDEX(tblREGASSLookup[FUNC],MATCH(tblREGASSJune19[[#This Row],[Concat]],tblREGASSLookup[Concat],0))","v":"CUST"},{"$f":"IF(tblREGASSJune19[[#This Row],[Total ($000)]]=0,\"NO\",IF(ISNA(tblREGASSJune19[[#This Row],[FUNC]]),\"YES\",IF(_xlfn.ISFORMULA(tblREGASSJune19[[#This Row],[FUNC]]),\"NO\",\"YES\")))","v":"NO"}]
[{"$f":"CONCATENATE(tblREGASSJune19[[#This Row],[Primary Account]],tblREGASSJune19[[#This Row],[Primary Name]],tblREGASSJune19[[#This Row],[Secondary Acct]],tblREGASSJune19[[#This Row],[Secondary  Name]],tblREGASSJune19[[#This Row],[Alloc4FUNC]])","v":"1823920DSR COSTS AMORTIZED102340COMMERCIAL RETROFIT LIGHTING - UT 2004OTHER"},1823920,"DSR COSTS AMORTIZED",102340,"COMMERCIAL RETROFIT LIGHTING - UT 2004","OTHER",1547.34629,{"$f":"IF(OR(tblREGASSJune19[[#This Row],[Alloc]]=\"IDU\",tblREGASSJune19[[#This Row],[Alloc]]=\"OR\",tblREGASSJune19[[#This Row],[Alloc]]=\"UT\",tblREGASSJune19[[#This Row],[Alloc]]=\"WYU\",tblREGASSJune19[[#This Row],[Alloc]]=\"WYP\",tblREGASSJune19[[#This Row],[Alloc]]=\"CA\",tblREGASSJune19[[#This Row],[Alloc]]=\"WA\"),\"SITUS\",tblREGASSJune19[[#This Row],[Alloc]])","v":"OTHER"},{"$f":"INDEX(tblREGASSLookup[FUNC],MATCH(tblREGASSJune19[[#This Row],[Concat]],tblREGASSLookup[Concat],0))","v":"CUST"},{"$f":"IF(tblREGASSJune19[[#This Row],[Total ($000)]]=0,\"NO\",IF(ISNA(tblREGASSJune19[[#This Row],[FUNC]]),\"YES\",IF(_xlfn.ISFORMULA(tblREGASSJune19[[#This Row],[FUNC]]),\"NO\",\"YES\")))","v":"NO"}]
[{"$f":"CONCATENATE(tblREGASSJune19[[#This Row],[Primary Account]],tblREGASSJune19[[#This Row],[Primary Name]],tblREGASSJune19[[#This Row],[Secondary Acct]],tblREGASSJune19[[#This Row],[Secondary  Name]],tblREGASSJune19[[#This Row],[Alloc4FUNC]])","v":"1823920DSR COSTS AMORTIZED102341COMMERCIAL SMALL RETROFIT - UT 2004OTHER"},1823920,"DSR COSTS AMORTIZED",102341,"COMMERCIAL SMALL RETROFIT - UT 2004","OTHER",284.66932000000003,{"$f":"IF(OR(tblREGASSJune19[[#This Row],[Alloc]]=\"IDU\",tblREGASSJune19[[#This Row],[Alloc]]=\"OR\",tblREGASSJune19[[#This Row],[Alloc]]=\"UT\",tblREGASSJune19[[#This Row],[Alloc]]=\"WYU\",tblREGASSJune19[[#This Row],[Alloc]]=\"WYP\",tblREGASSJune19[[#This Row],[Alloc]]=\"CA\",tblREGASSJune19[[#This Row],[Alloc]]=\"WA\"),\"SITUS\",tblREGASSJune19[[#This Row],[Alloc]])","v":"OTHER"},{"$f":"INDEX(tblREGASSLookup[FUNC],MATCH(tblREGASSJune19[[#This Row],[Concat]],tblREGASSLookup[Concat],0))","v":"CUST"},{"$f":"IF(tblREGASSJune19[[#This Row],[Total ($000)]]=0,\"NO\",IF(ISNA(tblREGASSJune19[[#This Row],[FUNC]]),\"YES\",IF(_xlfn.ISFORMULA(tblREGASSJune19[[#This Row],[FUNC]]),\"NO\",\"YES\")))","v":"NO"}]
[{"$f":"CONCATENATE(tblREGASSJune19[[#This Row],[Primary Account]],tblREGASSJune19[[#This Row],[Primary Name]],tblREGASSJune19[[#This Row],[Secondary Acct]],tblREGASSJune19[[#This Row],[Secondary  Name]],tblREGASSJune19[[#This Row],[Alloc4FUNC]])","v":"1823920DSR COSTS AMORTIZED102342COMPACT FLOURESCENT LAMPS (CFL) UT 2004OTHER"},1823920,"DSR COSTS AMORTIZED",102342,"COMPACT FLOURESCENT LAMPS (CFL) UT 2004","OTHER",-0.50904000000000005,{"$f":"IF(OR(tblREGASSJune19[[#This Row],[Alloc]]=\"IDU\",tblREGASSJune19[[#This Row],[Alloc]]=\"OR\",tblREGASSJune19[[#This Row],[Alloc]]=\"UT\",tblREGASSJune19[[#This Row],[Alloc]]=\"WYU\",tblREGASSJune19[[#This Row],[Alloc]]=\"WYP\",tblREGASSJune19[[#This Row],[Alloc]]=\"CA\",tblREGASSJune19[[#This Row],[Alloc]]=\"WA\"),\"SITUS\",tblREGASSJune19[[#This Row],[Alloc]])","v":"OTHER"},{"$f":"INDEX(tblREGASSLookup[FUNC],MATCH(tblREGASSJune19[[#This Row],[Concat]],tblREGASSLookup[Concat],0))","v":"CUST"},{"$f":"IF(tblREGASSJune19[[#This Row],[Total ($000)]]=0,\"NO\",IF(ISNA(tblREGASSJune19[[#This Row],[FUNC]]),\"YES\",IF(_xlfn.ISFORMULA(tblREGASSJune19[[#This Row],[FUNC]]),\"NO\",\"YES\")))","v":"NO"}]
[{"$f":"CONCATENATE(tblREGASSJune19[[#This Row],[Primary Account]],tblREGASSJune19[[#This Row],[Primary Name]],tblREGASSJune19[[#This Row],[Secondary Acct]],tblREGASSJune19[[#This Row],[Secondary  Name]],tblREGASSJune19[[#This Row],[Alloc4FUNC]])","v":"1823920DSR COSTS AMORTIZED102343ENERGY FINANSWER - UT 2004OTHER"},1823920,"DSR COSTS AMORTIZED",102343,"ENERGY FINANSWER - UT 2004","OTHER",1226.7338999999999,{"$f":"IF(OR(tblREGASSJune19[[#This Row],[Alloc]]=\"IDU\",tblREGASSJune19[[#This Row],[Alloc]]=\"OR\",tblREGASSJune19[[#This Row],[Alloc]]=\"UT\",tblREGASSJune19[[#This Row],[Alloc]]=\"WYU\",tblREGASSJune19[[#This Row],[Alloc]]=\"WYP\",tblREGASSJune19[[#This Row],[Alloc]]=\"CA\",tblREGASSJune19[[#This Row],[Alloc]]=\"WA\"),\"SITUS\",tblREGASSJune19[[#This Row],[Alloc]])","v":"OTHER"},{"$f":"INDEX(tblREGASSLookup[FUNC],MATCH(tblREGASSJune19[[#This Row],[Concat]],tblREGASSLookup[Concat],0))","v":"CUST"},{"$f":"IF(tblREGASSJune19[[#This Row],[Total ($000)]]=0,\"NO\",IF(ISNA(tblREGASSJune19[[#This Row],[FUNC]]),\"YES\",IF(_xlfn.ISFORMULA(tblREGASSJune19[[#This Row],[FUNC]]),\"NO\",\"YES\")))","v":"NO"}]
[{"$f":"CONCATENATE(tblREGASSJune19[[#This Row],[Primary Account]],tblREGASSJune19[[#This Row],[Primary Name]],tblREGASSJune19[[#This Row],[Secondary Acct]],tblREGASSJune19[[#This Row],[Secondary  Name]],tblREGASSJune19[[#This Row],[Alloc4FUNC]])","v":"1823920DSR COSTS AMORTIZED102344INDUSTRIAL FINANSWER - UT 2004OTHER"},1823920,"DSR COSTS AMORTIZED",102344,"INDUSTRIAL FINANSWER - UT 2004","OTHER",2561.6680200000001,{"$f":"IF(OR(tblREGASSJune19[[#This Row],[Alloc]]=\"IDU\",tblREGASSJune19[[#This Row],[Alloc]]=\"OR\",tblREGASSJune19[[#This Row],[Alloc]]=\"UT\",tblREGASSJune19[[#This Row],[Alloc]]=\"WYU\",tblREGASSJune19[[#This Row],[Alloc]]=\"WYP\",tblREGASSJune19[[#This Row],[Alloc]]=\"CA\",tblREGASSJune19[[#This Row],[Alloc]]=\"WA\"),\"SITUS\",tblREGASSJune19[[#This Row],[Alloc]])","v":"OTHER"},{"$f":"INDEX(tblREGASSLookup[FUNC],MATCH(tblREGASSJune19[[#This Row],[Concat]],tblREGASSLookup[Concat],0))","v":"CUST"},{"$f":"IF(tblREGASSJune19[[#This Row],[Total ($000)]]=0,\"NO\",IF(ISNA(tblREGASSJune19[[#This Row],[FUNC]]),\"YES\",IF(_xlfn.ISFORMULA(tblREGASSJune19[[#This Row],[FUNC]]),\"NO\",\"YES\")))","v":"NO"}]
[{"$f":"CONCATENATE(tblREGASSJune19[[#This Row],[Primary Account]],tblREGASSJune19[[#This Row],[Primary Name]],tblREGASSJune19[[#This Row],[Secondary Acct]],tblREGASSJune19[[#This Row],[Secondary  Name]],tblREGASSJune19[[#This Row],[Alloc4FUNC]])","v":"1823920DSR COSTS AMORTIZED102345INDUSTRIAL RETROFIT - UT 2004OTHER"},1823920,"DSR COSTS AMORTIZED",102345,"INDUSTRIAL RETROFIT - UT 2004","OTHER",230.1515,{"$f":"IF(OR(tblREGASSJune19[[#This Row],[Alloc]]=\"IDU\",tblREGASSJune19[[#This Row],[Alloc]]=\"OR\",tblREGASSJune19[[#This Row],[Alloc]]=\"UT\",tblREGASSJune19[[#This Row],[Alloc]]=\"WYU\",tblREGASSJune19[[#This Row],[Alloc]]=\"WYP\",tblREGASSJune19[[#This Row],[Alloc]]=\"CA\",tblREGASSJune19[[#This Row],[Alloc]]=\"WA\"),\"SITUS\",tblREGASSJune19[[#This Row],[Alloc]])","v":"OTHER"},{"$f":"INDEX(tblREGASSLookup[FUNC],MATCH(tblREGASSJune19[[#This Row],[Concat]],tblREGASSLookup[Concat],0))","v":"CUST"},{"$f":"IF(tblREGASSJune19[[#This Row],[Total ($000)]]=0,\"NO\",IF(ISNA(tblREGASSJune19[[#This Row],[FUNC]]),\"YES\",IF(_xlfn.ISFORMULA(tblREGASSJune19[[#This Row],[FUNC]]),\"NO\",\"YES\")))","v":"NO"}]
[{"$f":"CONCATENATE(tblREGASSJune19[[#This Row],[Primary Account]],tblREGASSJune19[[#This Row],[Primary Name]],tblREGASSJune19[[#This Row],[Secondary Acct]],tblREGASSJune19[[#This Row],[Secondary  Name]],tblREGASSJune19[[#This Row],[Alloc4FUNC]])","v":"1823920DSR COSTS AMORTIZED102346INDUSTRIAL SMALL RETROFIT - UT 2004OTHER"},1823920,"DSR COSTS AMORTIZED",102346,"INDUSTRIAL SMALL RETROFIT - UT 2004","OTHER",51.263379999999998,{"$f":"IF(OR(tblREGASSJune19[[#This Row],[Alloc]]=\"IDU\",tblREGASSJune19[[#This Row],[Alloc]]=\"OR\",tblREGASSJune19[[#This Row],[Alloc]]=\"UT\",tblREGASSJune19[[#This Row],[Alloc]]=\"WYU\",tblREGASSJune19[[#This Row],[Alloc]]=\"WYP\",tblREGASSJune19[[#This Row],[Alloc]]=\"CA\",tblREGASSJune19[[#This Row],[Alloc]]=\"WA\"),\"SITUS\",tblREGASSJune19[[#This Row],[Alloc]])","v":"OTHER"},{"$f":"INDEX(tblREGASSLookup[FUNC],MATCH(tblREGASSJune19[[#This Row],[Concat]],tblREGASSLookup[Concat],0))","v":"CUST"},{"$f":"IF(tblREGASSJune19[[#This Row],[Total ($000)]]=0,\"NO\",IF(ISNA(tblREGASSJune19[[#This Row],[FUNC]]),\"YES\",IF(_xlfn.ISFORMULA(tblREGASSJune19[[#This Row],[FUNC]]),\"NO\",\"YES\")))","v":"NO"}]
[{"$f":"CONCATENATE(tblREGASSJune19[[#This Row],[Primary Account]],tblREGASSJune19[[#This Row],[Primary Name]],tblREGASSJune19[[#This Row],[Secondary Acct]],tblREGASSJune19[[#This Row],[Secondary  Name]],tblREGASSJune19[[#This Row],[Alloc4FUNC]])","v":"1823920DSR COSTS AMORTIZED102347POWER FORWARD - UT 2004OTHER"},1823920,"DSR COSTS AMORTIZED",102347,"POWER FORWARD - UT 2004","OTHER",54,{"$f":"IF(OR(tblREGASSJune19[[#This Row],[Alloc]]=\"IDU\",tblREGASSJune19[[#This Row],[Alloc]]=\"OR\",tblREGASSJune19[[#This Row],[Alloc]]=\"UT\",tblREGASSJune19[[#This Row],[Alloc]]=\"WYU\",tblREGASSJune19[[#This Row],[Alloc]]=\"WYP\",tblREGASSJune19[[#This Row],[Alloc]]=\"CA\",tblREGASSJune19[[#This Row],[Alloc]]=\"WA\"),\"SITUS\",tblREGASSJune19[[#This Row],[Alloc]])","v":"OTHER"},{"$f":"INDEX(tblREGASSLookup[FUNC],MATCH(tblREGASSJune19[[#This Row],[Concat]],tblREGASSLookup[Concat],0))","v":"CUST"},{"$f":"IF(tblREGASSJune19[[#This Row],[Total ($000)]]=0,\"NO\",IF(ISNA(tblREGASSJune19[[#This Row],[FUNC]]),\"YES\",IF(_xlfn.ISFORMULA(tblREGASSJune19[[#This Row],[FUNC]]),\"NO\",\"YES\")))","v":"NO"}]
[{"$f":"CONCATENATE(tblREGASSJune19[[#This Row],[Primary Account]],tblREGASSJune19[[#This Row],[Primary Name]],tblREGASSJune19[[#This Row],[Secondary Acct]],tblREGASSJune19[[#This Row],[Secondary  Name]],tblREGASSJune19[[#This Row],[Alloc4FUNC]])","v":"1823920DSR COSTS AMORTIZED102348COMMERCIAL SELF-DIRECT - UT 2004OTHER"},1823920,"DSR COSTS AMORTIZED",102348,"COMMERCIAL SELF-DIRECT - UT 2004","OTHER",88.703429999999997,{"$f":"IF(OR(tblREGASSJune19[[#This Row],[Alloc]]=\"IDU\",tblREGASSJune19[[#This Row],[Alloc]]=\"OR\",tblREGASSJune19[[#This Row],[Alloc]]=\"UT\",tblREGASSJune19[[#This Row],[Alloc]]=\"WYU\",tblREGASSJune19[[#This Row],[Alloc]]=\"WYP\",tblREGASSJune19[[#This Row],[Alloc]]=\"CA\",tblREGASSJune19[[#This Row],[Alloc]]=\"WA\"),\"SITUS\",tblREGASSJune19[[#This Row],[Alloc]])","v":"OTHER"},{"$f":"INDEX(tblREGASSLookup[FUNC],MATCH(tblREGASSJune19[[#This Row],[Concat]],tblREGASSLookup[Concat],0))","v":"CUST"},{"$f":"IF(tblREGASSJune19[[#This Row],[Total ($000)]]=0,\"NO\",IF(ISNA(tblREGASSJune19[[#This Row],[FUNC]]),\"YES\",IF(_xlfn.ISFORMULA(tblREGASSJune19[[#This Row],[FUNC]]),\"NO\",\"YES\")))","v":"NO"}]
[{"$f":"CONCATENATE(tblREGASSJune19[[#This Row],[Primary Account]],tblREGASSJune19[[#This Row],[Primary Name]],tblREGASSJune19[[#This Row],[Secondary Acct]],tblREGASSJune19[[#This Row],[Secondary  Name]],tblREGASSJune19[[#This Row],[Alloc4FUNC]])","v":"1823920DSR COSTS AMORTIZED102349INDUSTRIAL SELF-DIRECT - UT 2004OTHER"},1823920,"DSR COSTS AMORTIZED",102349,"INDUSTRIAL SELF-DIRECT - UT 2004","OTHER",129.03778,{"$f":"IF(OR(tblREGASSJune19[[#This Row],[Alloc]]=\"IDU\",tblREGASSJune19[[#This Row],[Alloc]]=\"OR\",tblREGASSJune19[[#This Row],[Alloc]]=\"UT\",tblREGASSJune19[[#This Row],[Alloc]]=\"WYU\",tblREGASSJune19[[#This Row],[Alloc]]=\"WYP\",tblREGASSJune19[[#This Row],[Alloc]]=\"CA\",tblREGASSJune19[[#This Row],[Alloc]]=\"WA\"),\"SITUS\",tblREGASSJune19[[#This Row],[Alloc]])","v":"OTHER"},{"$f":"INDEX(tblREGASSLookup[FUNC],MATCH(tblREGASSJune19[[#This Row],[Concat]],tblREGASSLookup[Concat],0))","v":"CUST"},{"$f":"IF(tblREGASSJune19[[#This Row],[Total ($000)]]=0,\"NO\",IF(ISNA(tblREGASSJune19[[#This Row],[FUNC]]),\"YES\",IF(_xlfn.ISFORMULA(tblREGASSJune19[[#This Row],[FUNC]]),\"NO\",\"YES\")))","v":"NO"}]
[{"$f":"CONCATENATE(tblREGASSJune19[[#This Row],[Primary Account]],tblREGASSJune19[[#This Row],[Primary Name]],tblREGASSJune19[[#This Row],[Secondary Acct]],tblREGASSJune19[[#This Row],[Secondary  Name]],tblREGASSJune19[[#This Row],[Alloc4FUNC]])","v":"1823920DSR COSTS AMORTIZED102351ENERGY FINANSWER - ID/UT 2004SITUS"},1823920,"DSR COSTS AMORTIZED",102351,"ENERGY FINANSWER - ID/UT 2004","IDU",0,{"$f":"IF(OR(tblREGASSJune19[[#This Row],[Alloc]]=\"IDU\",tblREGASSJune19[[#This Row],[Alloc]]=\"OR\",tblREGASSJune19[[#This Row],[Alloc]]=\"UT\",tblREGASSJune19[[#This Row],[Alloc]]=\"WYU\",tblREGASSJune19[[#This Row],[Alloc]]=\"WYP\",tblREGASSJune19[[#This Row],[Alloc]]=\"CA\",tblREGASSJune19[[#This Row],[Alloc]]=\"WA\"),\"SITUS\",tblREGASSJune19[[#This Row],[Alloc]])","v":"SITUS"},{"$f":"INDEX(tblREGASSLookup[FUNC],MATCH(tblREGASSJune19[[#This Row],[Concat]],tblREGASSLookup[Concat],0))","v":{"$error":"#N/A"}},{"$f":"IF(tblREGASSJune19[[#This Row],[Total ($000)]]=0,\"NO\",IF(ISNA(tblREGASSJune19[[#This Row],[FUNC]]),\"YES\",IF(_xlfn.ISFORMULA(tblREGASSJune19[[#This Row],[FUNC]]),\"NO\",\"YES\")))","v":"NO"}]
[{"$f":"CONCATENATE(tblREGASSJune19[[#This Row],[Primary Account]],tblREGASSJune19[[#This Row],[Primary Name]],tblREGASSJune19[[#This Row],[Secondary Acct]],tblREGASSJune19[[#This Row],[Secondary  Name]],tblREGASSJune19[[#This Row],[Alloc4FUNC]])","v":"1823920DSR COSTS AMORTIZED102360REFRIGERATOR RECYCLING PGM - WYP 2004SITUS"},1823920,"DSR COSTS AMORTIZED",102360,"REFRIGERATOR RECYCLING PGM - WYP 2004","WYP",0,{"$f":"IF(OR(tblREGASSJune19[[#This Row],[Alloc]]=\"IDU\",tblREGASSJune19[[#This Row],[Alloc]]=\"OR\",tblREGASSJune19[[#This Row],[Alloc]]=\"UT\",tblREGASSJune19[[#This Row],[Alloc]]=\"WYU\",tblREGASSJune19[[#This Row],[Alloc]]=\"WYP\",tblREGASSJune19[[#This Row],[Alloc]]=\"CA\",tblREGASSJune19[[#This Row],[Alloc]]=\"WA\"),\"SITUS\",tblREGASSJune19[[#This Row],[Alloc]])","v":"SITUS"},{"$f":"INDEX(tblREGASSLookup[FUNC],MATCH(tblREGASSJune19[[#This Row],[Concat]],tblREGASSLookup[Concat],0))","v":{"$error":"#N/A"}},{"$f":"IF(tblREGASSJune19[[#This Row],[Total ($000)]]=0,\"NO\",IF(ISNA(tblREGASSJune19[[#This Row],[FUNC]]),\"YES\",IF(_xlfn.ISFORMULA(tblREGASSJune19[[#This Row],[FUNC]]),\"NO\",\"YES\")))","v":"NO"}]
[{"$f":"CONCATENATE(tblREGASSJune19[[#This Row],[Primary Account]],tblREGASSJune19[[#This Row],[Primary Name]],tblREGASSJune19[[#This Row],[Secondary Acct]],tblREGASSJune19[[#This Row],[Secondary  Name]],tblREGASSJune19[[#This Row],[Alloc4FUNC]])","v":"1823920DSR COSTS AMORTIZED102362ENERGY FINANSWER - WYP 2004SITUS"},1823920,"DSR COSTS AMORTIZED",102362,"ENERGY FINANSWER - WYP 2004","WYP",0,{"$f":"IF(OR(tblREGASSJune19[[#This Row],[Alloc]]=\"IDU\",tblREGASSJune19[[#This Row],[Alloc]]=\"OR\",tblREGASSJune19[[#This Row],[Alloc]]=\"UT\",tblREGASSJune19[[#This Row],[Alloc]]=\"WYU\",tblREGASSJune19[[#This Row],[Alloc]]=\"WYP\",tblREGASSJune19[[#This Row],[Alloc]]=\"CA\",tblREGASSJune19[[#This Row],[Alloc]]=\"WA\"),\"SITUS\",tblREGASSJune19[[#This Row],[Alloc]])","v":"SITUS"},{"$f":"INDEX(tblREGASSLookup[FUNC],MATCH(tblREGASSJune19[[#This Row],[Concat]],tblREGASSLookup[Concat],0))","v":{"$error":"#N/A"}},{"$f":"IF(tblREGASSJune19[[#This Row],[Total ($000)]]=0,\"NO\",IF(ISNA(tblREGASSJune19[[#This Row],[FUNC]]),\"YES\",IF(_xlfn.ISFORMULA(tblREGASSJune19[[#This Row],[FUNC]]),\"NO\",\"YES\")))","v":"NO"}]
[{"$f":"CONCATENATE(tblREGASSJune19[[#This Row],[Primary Account]],tblREGASSJune19[[#This Row],[Primary Name]],tblREGASSJune19[[#This Row],[Secondary Acct]],tblREGASSJune19[[#This Row],[Secondary  Name]],tblREGASSJune19[[#This Row],[Alloc4FUNC]])","v":"1823920DSR COSTS AMORTIZED102363INDUSTRIAL FINANSWER - WYP 2004SITUS"},1823920,"DSR COSTS AMORTIZED",102363,"INDUSTRIAL FINANSWER - WYP 2004","WYP",0,{"$f":"IF(OR(tblREGASSJune19[[#This Row],[Alloc]]=\"IDU\",tblREGASSJune19[[#This Row],[Alloc]]=\"OR\",tblREGASSJune19[[#This Row],[Alloc]]=\"UT\",tblREGASSJune19[[#This Row],[Alloc]]=\"WYU\",tblREGASSJune19[[#This Row],[Alloc]]=\"WYP\",tblREGASSJune19[[#This Row],[Alloc]]=\"CA\",tblREGASSJune19[[#This Row],[Alloc]]=\"WA\"),\"SITUS\",tblREGASSJune19[[#This Row],[Alloc]])","v":"SITUS"},{"$f":"INDEX(tblREGASSLookup[FUNC],MATCH(tblREGASSJune19[[#This Row],[Concat]],tblREGASSLookup[Concat],0))","v":{"$error":"#N/A"}},{"$f":"IF(tblREGASSJune19[[#This Row],[Total ($000)]]=0,\"NO\",IF(ISNA(tblREGASSJune19[[#This Row],[FUNC]]),\"YES\",IF(_xlfn.ISFORMULA(tblREGASSJune19[[#This Row],[FUNC]]),\"NO\",\"YES\")))","v":"NO"}]
[{"$f":"CONCATENATE(tblREGASSJune19[[#This Row],[Primary Account]],tblREGASSJune19[[#This Row],[Primary Name]],tblREGASSJune19[[#This Row],[Secondary Acct]],tblREGASSJune19[[#This Row],[Secondary  Name]],tblREGASSJune19[[#This Row],[Alloc4FUNC]])","v":"1823920DSR COSTS AMORTIZED102364SELF AUDIT - WYOMING - PPL 2004SITUS"},1823920,"DSR COSTS AMORTIZED",102364,"SELF AUDIT - WYOMING - PPL 2004","WYP",0,{"$f":"IF(OR(tblREGASSJune19[[#This Row],[Alloc]]=\"IDU\",tblREGASSJune19[[#This Row],[Alloc]]=\"OR\",tblREGASSJune19[[#This Row],[Alloc]]=\"UT\",tblREGASSJune19[[#This Row],[Alloc]]=\"WYU\",tblREGASSJune19[[#This Row],[Alloc]]=\"WYP\",tblREGASSJune19[[#This Row],[Alloc]]=\"CA\",tblREGASSJune19[[#This Row],[Alloc]]=\"WA\"),\"SITUS\",tblREGASSJune19[[#This Row],[Alloc]])","v":"SITUS"},{"$f":"INDEX(tblREGASSLookup[FUNC],MATCH(tblREGASSJune19[[#This Row],[Concat]],tblREGASSLookup[Concat],0))","v":{"$error":"#N/A"}},{"$f":"IF(tblREGASSJune19[[#This Row],[Total ($000)]]=0,\"NO\",IF(ISNA(tblREGASSJune19[[#This Row],[FUNC]]),\"YES\",IF(_xlfn.ISFORMULA(tblREGASSJune19[[#This Row],[FUNC]]),\"NO\",\"YES\")))","v":"NO"}]
[{"$f":"CONCATENATE(tblREGASSJune19[[#This Row],[Primary Account]],tblREGASSJune19[[#This Row],[Primary Name]],tblREGASSJune19[[#This Row],[Secondary Acct]],tblREGASSJune19[[#This Row],[Secondary  Name]],tblREGASSJune19[[#This Row],[Alloc4FUNC]])","v":"1823920DSR COSTS AMORTIZED102443ESIDENTIAL NEW CONSTRUCTION - WASHINGTONOTHER"},1823920,"DSR COSTS AMORTIZED",102443,"ESIDENTIAL NEW CONSTRUCTION - WASHINGTON","OTHER",560.81663000000003,{"$f":"IF(OR(tblREGASSJune19[[#This Row],[Alloc]]=\"IDU\",tblREGASSJune19[[#This Row],[Alloc]]=\"OR\",tblREGASSJune19[[#This Row],[Alloc]]=\"UT\",tblREGASSJune19[[#This Row],[Alloc]]=\"WYU\",tblREGASSJune19[[#This Row],[Alloc]]=\"WYP\",tblREGASSJune19[[#This Row],[Alloc]]=\"CA\",tblREGASSJune19[[#This Row],[Alloc]]=\"WA\"),\"SITUS\",tblREGASSJune19[[#This Row],[Alloc]])","v":"OTHER"},{"$f":"INDEX(tblREGASSLookup[FUNC],MATCH(tblREGASSJune19[[#This Row],[Concat]],tblREGASSLookup[Concat],0))","v":"CUST"},{"$f":"IF(tblREGASSJune19[[#This Row],[Total ($000)]]=0,\"NO\",IF(ISNA(tblREGASSJune19[[#This Row],[FUNC]]),\"YES\",IF(_xlfn.ISFORMULA(tblREGASSJune19[[#This Row],[FUNC]]),\"NO\",\"YES\")))","v":"NO"}]
[{"$f":"CONCATENATE(tblREGASSJune19[[#This Row],[Primary Account]],tblREGASSJune19[[#This Row],[Primary Name]],tblREGASSJune19[[#This Row],[Secondary Acct]],tblREGASSJune19[[#This Row],[Secondary  Name]],tblREGASSJune19[[#This Row],[Alloc4FUNC]])","v":"1823920DSR COSTS AMORTIZED102444RESIDENTIAL NEW CONSTRUCTION - UTAH - 20OTHER"},1823920,"DSR COSTS AMORTIZED",102444,"RESIDENTIAL NEW CONSTRUCTION - UTAH - 20","OTHER",76.331549999999993,{"$f":"IF(OR(tblREGASSJune19[[#This Row],[Alloc]]=\"IDU\",tblREGASSJune19[[#This Row],[Alloc]]=\"OR\",tblREGASSJune19[[#This Row],[Alloc]]=\"UT\",tblREGASSJune19[[#This Row],[Alloc]]=\"WYU\",tblREGASSJune19[[#This Row],[Alloc]]=\"WYP\",tblREGASSJune19[[#This Row],[Alloc]]=\"CA\",tblREGASSJune19[[#This Row],[Alloc]]=\"WA\"),\"SITUS\",tblREGASSJune19[[#This Row],[Alloc]])","v":"OTHER"},{"$f":"INDEX(tblREGASSLookup[FUNC],MATCH(tblREGASSJune19[[#This Row],[Concat]],tblREGASSLookup[Concat],0))","v":"CUST"},{"$f":"IF(tblREGASSJune19[[#This Row],[Total ($000)]]=0,\"NO\",IF(ISNA(tblREGASSJune19[[#This Row],[FUNC]]),\"YES\",IF(_xlfn.ISFORMULA(tblREGASSJune19[[#This Row],[FUNC]]),\"NO\",\"YES\")))","v":"NO"}]
[{"$f":"CONCATENATE(tblREGASSJune19[[#This Row],[Primary Account]],tblREGASSJune19[[#This Row],[Primary Name]],tblREGASSJune19[[#This Row],[Secondary Acct]],tblREGASSJune19[[#This Row],[Secondary  Name]],tblREGASSJune19[[#This Row],[Alloc4FUNC]])","v":"1823920DSR COSTS AMORTIZED102458COMMERCIAL FINANSWER EXPRESS - WASHINGTOOTHER"},1823920,"DSR COSTS AMORTIZED",102458,"COMMERCIAL FINANSWER EXPRESS - WASHINGTO","OTHER",9256.9511600000005,{"$f":"IF(OR(tblREGASSJune19[[#This Row],[Alloc]]=\"IDU\",tblREGASSJune19[[#This Row],[Alloc]]=\"OR\",tblREGASSJune19[[#This Row],[Alloc]]=\"UT\",tblREGASSJune19[[#This Row],[Alloc]]=\"WYU\",tblREGASSJune19[[#This Row],[Alloc]]=\"WYP\",tblREGASSJune19[[#This Row],[Alloc]]=\"CA\",tblREGASSJune19[[#This Row],[Alloc]]=\"WA\"),\"SITUS\",tblREGASSJune19[[#This Row],[Alloc]])","v":"OTHER"},{"$f":"INDEX(tblREGASSLookup[FUNC],MATCH(tblREGASSJune19[[#This Row],[Concat]],tblREGASSLookup[Concat],0))","v":"CUST"},{"$f":"IF(tblREGASSJune19[[#This Row],[Total ($000)]]=0,\"NO\",IF(ISNA(tblREGASSJune19[[#This Row],[FUNC]]),\"YES\",IF(_xlfn.ISFORMULA(tblREGASSJune19[[#This Row],[FUNC]]),\"NO\",\"YES\")))","v":"NO"}]
[{"$f":"CONCATENATE(tblREGASSJune19[[#This Row],[Primary Account]],tblREGASSJune19[[#This Row],[Primary Name]],tblREGASSJune19[[#This Row],[Secondary Acct]],tblREGASSJune19[[#This Row],[Secondary  Name]],tblREGASSJune19[[#This Row],[Alloc4FUNC]])","v":"1823920DSR COSTS AMORTIZED102459INDUSTRIAL FINANSWER EXPRESS - WASHINGTOOTHER"},1823920,"DSR COSTS AMORTIZED",102459,"INDUSTRIAL FINANSWER EXPRESS - WASHINGTO","OTHER",3275.2843800000001,{"$f":"IF(OR(tblREGASSJune19[[#This Row],[Alloc]]=\"IDU\",tblREGASSJune19[[#This Row],[Alloc]]=\"OR\",tblREGASSJune19[[#This Row],[Alloc]]=\"UT\",tblREGASSJune19[[#This Row],[Alloc]]=\"WYU\",tblREGASSJune19[[#This Row],[Alloc]]=\"WYP\",tblREGASSJune19[[#This Row],[Alloc]]=\"CA\",tblREGASSJune19[[#This Row],[Alloc]]=\"WA\"),\"SITUS\",tblREGASSJune19[[#This Row],[Alloc]])","v":"OTHER"},{"$f":"INDEX(tblREGASSLookup[FUNC],MATCH(tblREGASSJune19[[#This Row],[Concat]],tblREGASSLookup[Concat],0))","v":"CUST"},{"$f":"IF(tblREGASSJune19[[#This Row],[Total ($000)]]=0,\"NO\",IF(ISNA(tblREGASSJune19[[#This Row],[FUNC]]),\"YES\",IF(_xlfn.ISFORMULA(tblREGASSJune19[[#This Row],[FUNC]]),\"NO\",\"YES\")))","v":"NO"}]
[{"$f":"CONCATENATE(tblREGASSJune19[[#This Row],[Primary Account]],tblREGASSJune19[[#This Row],[Primary Name]],tblREGASSJune19[[#This Row],[Secondary Acct]],tblREGASSJune19[[#This Row],[Secondary  Name]],tblREGASSJune19[[#This Row],[Alloc4FUNC]])","v":"1823920DSR COSTS AMORTIZED102460COMMERCIAL FINANSWER EXPRESS - UTAH - 20OTHER"},1823920,"DSR COSTS AMORTIZED",102460,"COMMERCIAL FINANSWER EXPRESS - UTAH - 20","OTHER",445.94877000000002,{"$f":"IF(OR(tblREGASSJune19[[#This Row],[Alloc]]=\"IDU\",tblREGASSJune19[[#This Row],[Alloc]]=\"OR\",tblREGASSJune19[[#This Row],[Alloc]]=\"UT\",tblREGASSJune19[[#This Row],[Alloc]]=\"WYU\",tblREGASSJune19[[#This Row],[Alloc]]=\"WYP\",tblREGASSJune19[[#This Row],[Alloc]]=\"CA\",tblREGASSJune19[[#This Row],[Alloc]]=\"WA\"),\"SITUS\",tblREGASSJune19[[#This Row],[Alloc]])","v":"OTHER"},{"$f":"INDEX(tblREGASSLookup[FUNC],MATCH(tblREGASSJune19[[#This Row],[Concat]],tblREGASSLookup[Concat],0))","v":"CUST"},{"$f":"IF(tblREGASSJune19[[#This Row],[Total ($000)]]=0,\"NO\",IF(ISNA(tblREGASSJune19[[#This Row],[FUNC]]),\"YES\",IF(_xlfn.ISFORMULA(tblREGASSJune19[[#This Row],[FUNC]]),\"NO\",\"YES\")))","v":"NO"}]
[{"$f":"CONCATENATE(tblREGASSJune19[[#This Row],[Primary Account]],tblREGASSJune19[[#This Row],[Primary Name]],tblREGASSJune19[[#This Row],[Secondary Acct]],tblREGASSJune19[[#This Row],[Secondary  Name]],tblREGASSJune19[[#This Row],[Alloc4FUNC]])","v":"1823920DSR COSTS AMORTIZED102461INDUSTRIAL FINANSWER EXPRESS - UTAH - 20OTHER"},1823920,"DSR COSTS AMORTIZED",102461,"INDUSTRIAL FINANSWER EXPRESS - UTAH - 20","OTHER",146.02239,{"$f":"IF(OR(tblREGASSJune19[[#This Row],[Alloc]]=\"IDU\",tblREGASSJune19[[#This Row],[Alloc]]=\"OR\",tblREGASSJune19[[#This Row],[Alloc]]=\"UT\",tblREGASSJune19[[#This Row],[Alloc]]=\"WYU\",tblREGASSJune19[[#This Row],[Alloc]]=\"WYP\",tblREGASSJune19[[#This Row],[Alloc]]=\"CA\",tblREGASSJune19[[#This Row],[Alloc]]=\"WA\"),\"SITUS\",tblREGASSJune19[[#This Row],[Alloc]])","v":"OTHER"},{"$f":"INDEX(tblREGASSLookup[FUNC],MATCH(tblREGASSJune19[[#This Row],[Concat]],tblREGASSLookup[Concat],0))","v":"CUST"},{"$f":"IF(tblREGASSJune19[[#This Row],[Total ($000)]]=0,\"NO\",IF(ISNA(tblREGASSJune19[[#This Row],[FUNC]]),\"YES\",IF(_xlfn.ISFORMULA(tblREGASSJune19[[#This Row],[FUNC]]),\"NO\",\"YES\")))","v":"NO"}]
[{"$f":"CONCATENATE(tblREGASSJune19[[#This Row],[Primary Account]],tblREGASSJune19[[#This Row],[Primary Name]],tblREGASSJune19[[#This Row],[Secondary Acct]],tblREGASSJune19[[#This Row],[Secondary  Name]],tblREGASSJune19[[#This Row],[Alloc4FUNC]])","v":"1823920DSR COSTS AMORTIZED102462UTAH REVENUE RECOVERY - SBC OFFSETOTHER"},1823920,"DSR COSTS AMORTIZED",102462,"UTAH REVENUE RECOVERY - SBC OFFSET","OTHER",-587832.34629999998,{"$f":"IF(OR(tblREGASSJune19[[#This Row],[Alloc]]=\"IDU\",tblREGASSJune19[[#This Row],[Alloc]]=\"OR\",tblREGASSJune19[[#This Row],[Alloc]]=\"UT\",tblREGASSJune19[[#This Row],[Alloc]]=\"WYU\",tblREGASSJune19[[#This Row],[Alloc]]=\"WYP\",tblREGASSJune19[[#This Row],[Alloc]]=\"CA\",tblREGASSJune19[[#This Row],[Alloc]]=\"WA\"),\"SITUS\",tblREGASSJune19[[#This Row],[Alloc]])","v":"OTHER"},{"$f":"INDEX(tblREGASSLookup[FUNC],MATCH(tblREGASSJune19[[#This Row],[Concat]],tblREGASSLookup[Concat],0))","v":"CUST"},{"$f":"IF(tblREGASSJune19[[#This Row],[Total ($000)]]=0,\"NO\",IF(ISNA(tblREGASSJune19[[#This Row],[FUNC]]),\"YES\",IF(_xlfn.ISFORMULA(tblREGASSJune19[[#This Row],[FUNC]]),\"NO\",\"YES\")))","v":"NO"}]
[{"$f":"CONCATENATE(tblREGASSJune19[[#This Row],[Primary Account]],tblREGASSJune19[[#This Row],[Primary Name]],tblREGASSJune19[[#This Row],[Secondary Acct]],tblREGASSJune19[[#This Row],[Secondary  Name]],tblREGASSJune19[[#This Row],[Alloc4FUNC]])","v":"1823920DSR COSTS AMORTIZED102502RETROFIT COMMISSIONING PROGRAM  - UTAHOTHER"},1823920,"DSR COSTS AMORTIZED",102502,"RETROFIT COMMISSIONING PROGRAM  - UTAH","OTHER",1.8589,{"$f":"IF(OR(tblREGASSJune19[[#This Row],[Alloc]]=\"IDU\",tblREGASSJune19[[#This Row],[Alloc]]=\"OR\",tblREGASSJune19[[#This Row],[Alloc]]=\"UT\",tblREGASSJune19[[#This Row],[Alloc]]=\"WYU\",tblREGASSJune19[[#This Row],[Alloc]]=\"WYP\",tblREGASSJune19[[#This Row],[Alloc]]=\"CA\",tblREGASSJune19[[#This Row],[Alloc]]=\"WA\"),\"SITUS\",tblREGASSJune19[[#This Row],[Alloc]])","v":"OTHER"},{"$f":"INDEX(tblREGASSLookup[FUNC],MATCH(tblREGASSJune19[[#This Row],[Concat]],tblREGASSLookup[Concat],0))","v":"CUST"},{"$f":"IF(tblREGASSJune19[[#This Row],[Total ($000)]]=0,\"NO\",IF(ISNA(tblREGASSJune19[[#This Row],[FUNC]]),\"YES\",IF(_xlfn.ISFORMULA(tblREGASSJune19[[#This Row],[FUNC]]),\"NO\",\"YES\")))","v":"NO"}]
[{"$f":"CONCATENATE(tblREGASSJune19[[#This Row],[Primary Account]],tblREGASSJune19[[#This Row],[Primary Name]],tblREGASSJune19[[#This Row],[Secondary Acct]],tblREGASSJune19[[#This Row],[Secondary  Name]],tblREGASSJune19[[#This Row],[Alloc4FUNC]])","v":"1823920DSR COSTS AMORTIZED102503C&I LIGHTING LOAD CONTROL  - UTAH - 2004OTHER"},1823920,"DSR COSTS AMORTIZED",102503,"C&I LIGHTING LOAD CONTROL  - UTAH - 2004","OTHER",22.846060000000001,{"$f":"IF(OR(tblREGASSJune19[[#This Row],[Alloc]]=\"IDU\",tblREGASSJune19[[#This Row],[Alloc]]=\"OR\",tblREGASSJune19[[#This Row],[Alloc]]=\"UT\",tblREGASSJune19[[#This Row],[Alloc]]=\"WYU\",tblREGASSJune19[[#This Row],[Alloc]]=\"WYP\",tblREGASSJune19[[#This Row],[Alloc]]=\"CA\",tblREGASSJune19[[#This Row],[Alloc]]=\"WA\"),\"SITUS\",tblREGASSJune19[[#This Row],[Alloc]])","v":"OTHER"},{"$f":"INDEX(tblREGASSLookup[FUNC],MATCH(tblREGASSJune19[[#This Row],[Concat]],tblREGASSLookup[Concat],0))","v":"CUST"},{"$f":"IF(tblREGASSJune19[[#This Row],[Total ($000)]]=0,\"NO\",IF(ISNA(tblREGASSJune19[[#This Row],[FUNC]]),\"YES\",IF(_xlfn.ISFORMULA(tblREGASSJune19[[#This Row],[FUNC]]),\"NO\",\"YES\")))","v":"NO"}]
[{"$f":"CONCATENATE(tblREGASSJune19[[#This Row],[Primary Account]],tblREGASSJune19[[#This Row],[Primary Name]],tblREGASSJune19[[#This Row],[Secondary Acct]],tblREGASSJune19[[#This Row],[Secondary  Name]],tblREGASSJune19[[#This Row],[Alloc4FUNC]])","v":"1823920DSR COSTS AMORTIZED102504REFRIGERATOR RECYCLING PGM - IDAHO - 200SITUS"},1823920,"DSR COSTS AMORTIZED",102504,"REFRIGERATOR RECYCLING PGM - IDAHO - 200","IDU",0,{"$f":"IF(OR(tblREGASSJune19[[#This Row],[Alloc]]=\"IDU\",tblREGASSJune19[[#This Row],[Alloc]]=\"OR\",tblREGASSJune19[[#This Row],[Alloc]]=\"UT\",tblREGASSJune19[[#This Row],[Alloc]]=\"WYU\",tblREGASSJune19[[#This Row],[Alloc]]=\"WYP\",tblREGASSJune19[[#This Row],[Alloc]]=\"CA\",tblREGASSJune19[[#This Row],[Alloc]]=\"WA\"),\"SITUS\",tblREGASSJune19[[#This Row],[Alloc]])","v":"SITUS"},{"$f":"INDEX(tblREGASSLookup[FUNC],MATCH(tblREGASSJune19[[#This Row],[Concat]],tblREGASSLookup[Concat],0))","v":{"$error":"#N/A"}},{"$f":"IF(tblREGASSJune19[[#This Row],[Total ($000)]]=0,\"NO\",IF(ISNA(tblREGASSJune19[[#This Row],[FUNC]]),\"YES\",IF(_xlfn.ISFORMULA(tblREGASSJune19[[#This Row],[FUNC]]),\"NO\",\"YES\")))","v":"NO"}]
[{"$f":"CONCATENATE(tblREGASSJune19[[#This Row],[Primary Account]],tblREGASSJune19[[#This Row],[Primary Name]],tblREGASSJune19[[#This Row],[Secondary Acct]],tblREGASSJune19[[#This Row],[Secondary  Name]],tblREGASSJune19[[#This Row],[Alloc4FUNC]])","v":"1823920DSR COSTS AMORTIZED102506COMMERCIAL FINANSWER EXPRESS - IDAHO - 2SITUS"},1823920,"DSR COSTS AMORTIZED",102506,"COMMERCIAL FINANSWER EXPRESS - IDAHO - 2","IDU",0,{"$f":"IF(OR(tblREGASSJune19[[#This Row],[Alloc]]=\"IDU\",tblREGASSJune19[[#This Row],[Alloc]]=\"OR\",tblREGASSJune19[[#This Row],[Alloc]]=\"UT\",tblREGASSJune19[[#This Row],[Alloc]]=\"WYU\",tblREGASSJune19[[#This Row],[Alloc]]=\"WYP\",tblREGASSJune19[[#This Row],[Alloc]]=\"CA\",tblREGASSJune19[[#This Row],[Alloc]]=\"WA\"),\"SITUS\",tblREGASSJune19[[#This Row],[Alloc]])","v":"SITUS"},{"$f":"INDEX(tblREGASSLookup[FUNC],MATCH(tblREGASSJune19[[#This Row],[Concat]],tblREGASSLookup[Concat],0))","v":{"$error":"#N/A"}},{"$f":"IF(tblREGASSJune19[[#This Row],[Total ($000)]]=0,\"NO\",IF(ISNA(tblREGASSJune19[[#This Row],[FUNC]]),\"YES\",IF(_xlfn.ISFORMULA(tblREGASSJune19[[#This Row],[FUNC]]),\"NO\",\"YES\")))","v":"NO"}]
[{"$f":"CONCATENATE(tblREGASSJune19[[#This Row],[Primary Account]],tblREGASSJune19[[#This Row],[Primary Name]],tblREGASSJune19[[#This Row],[Secondary Acct]],tblREGASSJune19[[#This Row],[Secondary  Name]],tblREGASSJune19[[#This Row],[Alloc4FUNC]])","v":"1823920DSR COSTS AMORTIZED102507INDUSTRIAL FINANSWER EXPRESS - IDAHO - 2SITUS"},1823920,"DSR COSTS AMORTIZED",102507,"INDUSTRIAL FINANSWER EXPRESS - IDAHO - 2","IDU",0,{"$f":"IF(OR(tblREGASSJune19[[#This Row],[Alloc]]=\"IDU\",tblREGASSJune19[[#This Row],[Alloc]]=\"OR\",tblREGASSJune19[[#This Row],[Alloc]]=\"UT\",tblREGASSJune19[[#This Row],[Alloc]]=\"WYU\",tblREGASSJune19[[#This Row],[Alloc]]=\"WYP\",tblREGASSJune19[[#This Row],[Alloc]]=\"CA\",tblREGASSJune19[[#This Row],[Alloc]]=\"WA\"),\"SITUS\",tblREGASSJune19[[#This Row],[Alloc]])","v":"SITUS"},{"$f":"INDEX(tblREGASSLookup[FUNC],MATCH(tblREGASSJune19[[#This Row],[Concat]],tblREGASSLookup[Concat],0))","v":{"$error":"#N/A"}},{"$f":"IF(tblREGASSJune19[[#This Row],[Total ($000)]]=0,\"NO\",IF(ISNA(tblREGASSJune19[[#This Row],[FUNC]]),\"YES\",IF(_xlfn.ISFORMULA(tblREGASSJune19[[#This Row],[FUNC]]),\"NO\",\"YES\")))","v":"NO"}]
[{"$f":"CONCATENATE(tblREGASSJune19[[#This Row],[Primary Account]],tblREGASSJune19[[#This Row],[Primary Name]],tblREGASSJune19[[#This Row],[Secondary Acct]],tblREGASSJune19[[#This Row],[Secondary  Name]],tblREGASSJune19[[#This Row],[Alloc4FUNC]])","v":"1823920DSR COSTS AMORTIZED102508IRRIGATION EFFICIENCY PROGRAM - IDAHO -SITUS"},1823920,"DSR COSTS AMORTIZED",102508,"IRRIGATION EFFICIENCY PROGRAM - IDAHO -","IDU",0,{"$f":"IF(OR(tblREGASSJune19[[#This Row],[Alloc]]=\"IDU\",tblREGASSJune19[[#This Row],[Alloc]]=\"OR\",tblREGASSJune19[[#This Row],[Alloc]]=\"UT\",tblREGASSJune19[[#This Row],[Alloc]]=\"WYU\",tblREGASSJune19[[#This Row],[Alloc]]=\"WYP\",tblREGASSJune19[[#This Row],[Alloc]]=\"CA\",tblREGASSJune19[[#This Row],[Alloc]]=\"WA\"),\"SITUS\",tblREGASSJune19[[#This Row],[Alloc]])","v":"SITUS"},{"$f":"INDEX(tblREGASSLookup[FUNC],MATCH(tblREGASSJune19[[#This Row],[Concat]],tblREGASSLookup[Concat],0))","v":{"$error":"#N/A"}},{"$f":"IF(tblREGASSJune19[[#This Row],[Total ($000)]]=0,\"NO\",IF(ISNA(tblREGASSJune19[[#This Row],[FUNC]]),\"YES\",IF(_xlfn.ISFORMULA(tblREGASSJune19[[#This Row],[FUNC]]),\"NO\",\"YES\")))","v":"NO"}]
[{"$f":"CONCATENATE(tblREGASSJune19[[#This Row],[Primary Account]],tblREGASSJune19[[#This Row],[Primary Name]],tblREGASSJune19[[#This Row],[Secondary Acct]],tblREGASSJune19[[#This Row],[Secondary  Name]],tblREGASSJune19[[#This Row],[Alloc4FUNC]])","v":"1823920DSR COSTS AMORTIZED102518ENERGY FINANSWER - ID/UT 2005SITUS"},1823920,"DSR COSTS AMORTIZED",102518,"ENERGY FINANSWER - ID/UT 2005","IDU",0,{"$f":"IF(OR(tblREGASSJune19[[#This Row],[Alloc]]=\"IDU\",tblREGASSJune19[[#This Row],[Alloc]]=\"OR\",tblREGASSJune19[[#This Row],[Alloc]]=\"UT\",tblREGASSJune19[[#This Row],[Alloc]]=\"WYU\",tblREGASSJune19[[#This Row],[Alloc]]=\"WYP\",tblREGASSJune19[[#This Row],[Alloc]]=\"CA\",tblREGASSJune19[[#This Row],[Alloc]]=\"WA\"),\"SITUS\",tblREGASSJune19[[#This Row],[Alloc]])","v":"SITUS"},{"$f":"INDEX(tblREGASSLookup[FUNC],MATCH(tblREGASSJune19[[#This Row],[Concat]],tblREGASSLookup[Concat],0))","v":"CUST"},{"$f":"IF(tblREGASSJune19[[#This Row],[Total ($000)]]=0,\"NO\",IF(ISNA(tblREGASSJune19[[#This Row],[FUNC]]),\"YES\",IF(_xlfn.ISFORMULA(tblREGASSJune19[[#This Row],[FUNC]]),\"NO\",\"YES\")))","v":"NO"}]
[{"$f":"CONCATENATE(tblREGASSJune19[[#This Row],[Primary Account]],tblREGASSJune19[[#This Row],[Primary Name]],tblREGASSJune19[[#This Row],[Secondary Acct]],tblREGASSJune19[[#This Row],[Secondary  Name]],tblREGASSJune19[[#This Row],[Alloc4FUNC]])","v":"1823920DSR COSTS AMORTIZED102525REFRIGERATOR RECYCLING PGM - IDAHO - 200SITUS"},1823920,"DSR COSTS AMORTIZED",102525,"REFRIGERATOR RECYCLING PGM - IDAHO - 200","IDU",0,{"$f":"IF(OR(tblREGASSJune19[[#This Row],[Alloc]]=\"IDU\",tblREGASSJune19[[#This Row],[Alloc]]=\"OR\",tblREGASSJune19[[#This Row],[Alloc]]=\"UT\",tblREGASSJune19[[#This Row],[Alloc]]=\"WYU\",tblREGASSJune19[[#This Row],[Alloc]]=\"WYP\",tblREGASSJune19[[#This Row],[Alloc]]=\"CA\",tblREGASSJune19[[#This Row],[Alloc]]=\"WA\"),\"SITUS\",tblREGASSJune19[[#This Row],[Alloc]])","v":"SITUS"},{"$f":"INDEX(tblREGASSLookup[FUNC],MATCH(tblREGASSJune19[[#This Row],[Concat]],tblREGASSLookup[Concat],0))","v":"CUST"},{"$f":"IF(tblREGASSJune19[[#This Row],[Total ($000)]]=0,\"NO\",IF(ISNA(tblREGASSJune19[[#This Row],[FUNC]]),\"YES\",IF(_xlfn.ISFORMULA(tblREGASSJune19[[#This Row],[FUNC]]),\"NO\",\"YES\")))","v":"NO"}]
[{"$f":"CONCATENATE(tblREGASSJune19[[#This Row],[Primary Account]],tblREGASSJune19[[#This Row],[Primary Name]],tblREGASSJune19[[#This Row],[Secondary Acct]],tblREGASSJune19[[#This Row],[Secondary  Name]],tblREGASSJune19[[#This Row],[Alloc4FUNC]])","v":"1823920DSR COSTS AMORTIZED102528COMMERCIAL FINANSWER EXPRESS - IDAHO - 2SITUS"},1823920,"DSR COSTS AMORTIZED",102528,"COMMERCIAL FINANSWER EXPRESS - IDAHO - 2","IDU",0,{"$f":"IF(OR(tblREGASSJune19[[#This Row],[Alloc]]=\"IDU\",tblREGASSJune19[[#This Row],[Alloc]]=\"OR\",tblREGASSJune19[[#This Row],[Alloc]]=\"UT\",tblREGASSJune19[[#This Row],[Alloc]]=\"WYU\",tblREGASSJune19[[#This Row],[Alloc]]=\"WYP\",tblREGASSJune19[[#This Row],[Alloc]]=\"CA\",tblREGASSJune19[[#This Row],[Alloc]]=\"WA\"),\"SITUS\",tblREGASSJune19[[#This Row],[Alloc]])","v":"SITUS"},{"$f":"INDEX(tblREGASSLookup[FUNC],MATCH(tblREGASSJune19[[#This Row],[Concat]],tblREGASSLookup[Concat],0))","v":"CUST"},{"$f":"IF(tblREGASSJune19[[#This Row],[Total ($000)]]=0,\"NO\",IF(ISNA(tblREGASSJune19[[#This Row],[FUNC]]),\"YES\",IF(_xlfn.ISFORMULA(tblREGASSJune19[[#This Row],[FUNC]]),\"NO\",\"YES\")))","v":"NO"}]
[{"$f":"CONCATENATE(tblREGASSJune19[[#This Row],[Primary Account]],tblREGASSJune19[[#This Row],[Primary Name]],tblREGASSJune19[[#This Row],[Secondary Acct]],tblREGASSJune19[[#This Row],[Secondary  Name]],tblREGASSJune19[[#This Row],[Alloc4FUNC]])","v":"1823920DSR COSTS AMORTIZED102529INDUSTRIAL FINANSWER EXPRESS - IDAHO - 2SITUS"},1823920,"DSR COSTS AMORTIZED",102529,"INDUSTRIAL FINANSWER EXPRESS - IDAHO - 2","IDU",0,{"$f":"IF(OR(tblREGASSJune19[[#This Row],[Alloc]]=\"IDU\",tblREGASSJune19[[#This Row],[Alloc]]=\"OR\",tblREGASSJune19[[#This Row],[Alloc]]=\"UT\",tblREGASSJune19[[#This Row],[Alloc]]=\"WYU\",tblREGASSJune19[[#This Row],[Alloc]]=\"WYP\",tblREGASSJune19[[#This Row],[Alloc]]=\"CA\",tblREGASSJune19[[#This Row],[Alloc]]=\"WA\"),\"SITUS\",tblREGASSJune19[[#This Row],[Alloc]])","v":"SITUS"},{"$f":"INDEX(tblREGASSLookup[FUNC],MATCH(tblREGASSJune19[[#This Row],[Concat]],tblREGASSLookup[Concat],0))","v":"CUST"},{"$f":"IF(tblREGASSJune19[[#This Row],[Total ($000)]]=0,\"NO\",IF(ISNA(tblREGASSJune19[[#This Row],[FUNC]]),\"YES\",IF(_xlfn.ISFORMULA(tblREGASSJune19[[#This Row],[FUNC]]),\"NO\",\"YES\")))","v":"NO"}]
[{"$f":"CONCATENATE(tblREGASSJune19[[#This Row],[Primary Account]],tblREGASSJune19[[#This Row],[Primary Name]],tblREGASSJune19[[#This Row],[Secondary Acct]],tblREGASSJune19[[#This Row],[Secondary  Name]],tblREGASSJune19[[#This Row],[Alloc4FUNC]])","v":"1823920DSR COSTS AMORTIZED102530IRRIGATION EFFICIENCY PROGRAM - IDAHO -SITUS"},1823920,"DSR COSTS AMORTIZED",102530,"IRRIGATION EFFICIENCY PROGRAM - IDAHO -","IDU",0,{"$f":"IF(OR(tblREGASSJune19[[#This Row],[Alloc]]=\"IDU\",tblREGASSJune19[[#This Row],[Alloc]]=\"OR\",tblREGASSJune19[[#This Row],[Alloc]]=\"UT\",tblREGASSJune19[[#This Row],[Alloc]]=\"WYU\",tblREGASSJune19[[#This Row],[Alloc]]=\"WYP\",tblREGASSJune19[[#This Row],[Alloc]]=\"CA\",tblREGASSJune19[[#This Row],[Alloc]]=\"WA\"),\"SITUS\",tblREGASSJune19[[#This Row],[Alloc]])","v":"SITUS"},{"$f":"INDEX(tblREGASSLookup[FUNC],MATCH(tblREGASSJune19[[#This Row],[Concat]],tblREGASSLookup[Concat],0))","v":"CUST"},{"$f":"IF(tblREGASSJune19[[#This Row],[Total ($000)]]=0,\"NO\",IF(ISNA(tblREGASSJune19[[#This Row],[FUNC]]),\"YES\",IF(_xlfn.ISFORMULA(tblREGASSJune19[[#This Row],[FUNC]]),\"NO\",\"YES\")))","v":"NO"}]
[{"$f":"CONCATENATE(tblREGASSJune19[[#This Row],[Primary Account]],tblREGASSJune19[[#This Row],[Primary Name]],tblREGASSJune19[[#This Row],[Secondary Acct]],tblREGASSJune19[[#This Row],[Secondary  Name]],tblREGASSJune19[[#This Row],[Alloc4FUNC]])","v":"1823920DSR COSTS AMORTIZED102532LOW INCOME - UTAH - 2005OTHER"},1823920,"DSR COSTS AMORTIZED",102532,"LOW INCOME - UTAH - 2005","OTHER",48.278149999999997,{"$f":"IF(OR(tblREGASSJune19[[#This Row],[Alloc]]=\"IDU\",tblREGASSJune19[[#This Row],[Alloc]]=\"OR\",tblREGASSJune19[[#This Row],[Alloc]]=\"UT\",tblREGASSJune19[[#This Row],[Alloc]]=\"WYU\",tblREGASSJune19[[#This Row],[Alloc]]=\"WYP\",tblREGASSJune19[[#This Row],[Alloc]]=\"CA\",tblREGASSJune19[[#This Row],[Alloc]]=\"WA\"),\"SITUS\",tblREGASSJune19[[#This Row],[Alloc]])","v":"OTHER"},{"$f":"INDEX(tblREGASSLookup[FUNC],MATCH(tblREGASSJune19[[#This Row],[Concat]],tblREGASSLookup[Concat],0))","v":"CUST"},{"$f":"IF(tblREGASSJune19[[#This Row],[Total ($000)]]=0,\"NO\",IF(ISNA(tblREGASSJune19[[#This Row],[FUNC]]),\"YES\",IF(_xlfn.ISFORMULA(tblREGASSJune19[[#This Row],[FUNC]]),\"NO\",\"YES\")))","v":"NO"}]
[{"$f":"CONCATENATE(tblREGASSJune19[[#This Row],[Primary Account]],tblREGASSJune19[[#This Row],[Primary Name]],tblREGASSJune19[[#This Row],[Secondary Acct]],tblREGASSJune19[[#This Row],[Secondary  Name]],tblREGASSJune19[[#This Row],[Alloc4FUNC]])","v":"1823920DSR COSTS AMORTIZED102533REFRIGERATOR RECYCLING PGM- UTAH - 2005OTHER"},1823920,"DSR COSTS AMORTIZED",102533,"REFRIGERATOR RECYCLING PGM- UTAH - 2005","OTHER",3306.2718399999999,{"$f":"IF(OR(tblREGASSJune19[[#This Row],[Alloc]]=\"IDU\",tblREGASSJune19[[#This Row],[Alloc]]=\"OR\",tblREGASSJune19[[#This Row],[Alloc]]=\"UT\",tblREGASSJune19[[#This Row],[Alloc]]=\"WYU\",tblREGASSJune19[[#This Row],[Alloc]]=\"WYP\",tblREGASSJune19[[#This Row],[Alloc]]=\"CA\",tblREGASSJune19[[#This Row],[Alloc]]=\"WA\"),\"SITUS\",tblREGASSJune19[[#This Row],[Alloc]])","v":"OTHER"},{"$f":"INDEX(tblREGASSLookup[FUNC],MATCH(tblREGASSJune19[[#This Row],[Concat]],tblREGASSLookup[Concat],0))","v":"CUST"},{"$f":"IF(tblREGASSJune19[[#This Row],[Total ($000)]]=0,\"NO\",IF(ISNA(tblREGASSJune19[[#This Row],[FUNC]]),\"YES\",IF(_xlfn.ISFORMULA(tblREGASSJune19[[#This Row],[FUNC]]),\"NO\",\"YES\")))","v":"NO"}]
[{"$f":"CONCATENATE(tblREGASSJune19[[#This Row],[Primary Account]],tblREGASSJune19[[#This Row],[Primary Name]],tblREGASSJune19[[#This Row],[Secondary Acct]],tblREGASSJune19[[#This Row],[Secondary  Name]],tblREGASSJune19[[#This Row],[Alloc4FUNC]])","v":"1823920DSR COSTS AMORTIZED102534A/C LOAD CONTROL - RESIDENTIAL/UTAH - 20OTHER"},1823920,"DSR COSTS AMORTIZED",102534,"A/C LOAD CONTROL - RESIDENTIAL/UTAH - 20","OTHER",3059.7789899999998,{"$f":"IF(OR(tblREGASSJune19[[#This Row],[Alloc]]=\"IDU\",tblREGASSJune19[[#This Row],[Alloc]]=\"OR\",tblREGASSJune19[[#This Row],[Alloc]]=\"UT\",tblREGASSJune19[[#This Row],[Alloc]]=\"WYU\",tblREGASSJune19[[#This Row],[Alloc]]=\"WYP\",tblREGASSJune19[[#This Row],[Alloc]]=\"CA\",tblREGASSJune19[[#This Row],[Alloc]]=\"WA\"),\"SITUS\",tblREGASSJune19[[#This Row],[Alloc]])","v":"OTHER"},{"$f":"INDEX(tblREGASSLookup[FUNC],MATCH(tblREGASSJune19[[#This Row],[Concat]],tblREGASSLookup[Concat],0))","v":"CUST"},{"$f":"IF(tblREGASSJune19[[#This Row],[Total ($000)]]=0,\"NO\",IF(ISNA(tblREGASSJune19[[#This Row],[FUNC]]),\"YES\",IF(_xlfn.ISFORMULA(tblREGASSJune19[[#This Row],[FUNC]]),\"NO\",\"YES\")))","v":"NO"}]
[{"$f":"CONCATENATE(tblREGASSJune19[[#This Row],[Primary Account]],tblREGASSJune19[[#This Row],[Primary Name]],tblREGASSJune19[[#This Row],[Secondary Acct]],tblREGASSJune19[[#This Row],[Secondary  Name]],tblREGASSJune19[[#This Row],[Alloc4FUNC]])","v":"1823920DSR COSTS AMORTIZED102535AIR CONDITIONING - UTAH - 2005OTHER"},1823920,"DSR COSTS AMORTIZED",102535,"AIR CONDITIONING - UTAH - 2005","OTHER",2347.3112900000001,{"$f":"IF(OR(tblREGASSJune19[[#This Row],[Alloc]]=\"IDU\",tblREGASSJune19[[#This Row],[Alloc]]=\"OR\",tblREGASSJune19[[#This Row],[Alloc]]=\"UT\",tblREGASSJune19[[#This Row],[Alloc]]=\"WYU\",tblREGASSJune19[[#This Row],[Alloc]]=\"WYP\",tblREGASSJune19[[#This Row],[Alloc]]=\"CA\",tblREGASSJune19[[#This Row],[Alloc]]=\"WA\"),\"SITUS\",tblREGASSJune19[[#This Row],[Alloc]])","v":"OTHER"},{"$f":"INDEX(tblREGASSLookup[FUNC],MATCH(tblREGASSJune19[[#This Row],[Concat]],tblREGASSLookup[Concat],0))","v":"CUST"},{"$f":"IF(tblREGASSJune19[[#This Row],[Total ($000)]]=0,\"NO\",IF(ISNA(tblREGASSJune19[[#This Row],[FUNC]]),\"YES\",IF(_xlfn.ISFORMULA(tblREGASSJune19[[#This Row],[FUNC]]),\"NO\",\"YES\")))","v":"NO"}]
[{"$f":"CONCATENATE(tblREGASSJune19[[#This Row],[Primary Account]],tblREGASSJune19[[#This Row],[Primary Name]],tblREGASSJune19[[#This Row],[Secondary Acct]],tblREGASSJune19[[#This Row],[Secondary  Name]],tblREGASSJune19[[#This Row],[Alloc4FUNC]])","v":"1823920DSR COSTS AMORTIZED102536COMMERCIAL RETROFIT LIGHTING - UTAH - 20OTHER"},1823920,"DSR COSTS AMORTIZED",102536,"COMMERCIAL RETROFIT LIGHTING - UTAH - 20","OTHER",65.005750000000006,{"$f":"IF(OR(tblREGASSJune19[[#This Row],[Alloc]]=\"IDU\",tblREGASSJune19[[#This Row],[Alloc]]=\"OR\",tblREGASSJune19[[#This Row],[Alloc]]=\"UT\",tblREGASSJune19[[#This Row],[Alloc]]=\"WYU\",tblREGASSJune19[[#This Row],[Alloc]]=\"WYP\",tblREGASSJune19[[#This Row],[Alloc]]=\"CA\",tblREGASSJune19[[#This Row],[Alloc]]=\"WA\"),\"SITUS\",tblREGASSJune19[[#This Row],[Alloc]])","v":"OTHER"},{"$f":"INDEX(tblREGASSLookup[FUNC],MATCH(tblREGASSJune19[[#This Row],[Concat]],tblREGASSLookup[Concat],0))","v":"CUST"},{"$f":"IF(tblREGASSJune19[[#This Row],[Total ($000)]]=0,\"NO\",IF(ISNA(tblREGASSJune19[[#This Row],[FUNC]]),\"YES\",IF(_xlfn.ISFORMULA(tblREGASSJune19[[#This Row],[FUNC]]),\"NO\",\"YES\")))","v":"NO"}]
[{"$f":"CONCATENATE(tblREGASSJune19[[#This Row],[Primary Account]],tblREGASSJune19[[#This Row],[Primary Name]],tblREGASSJune19[[#This Row],[Secondary Acct]],tblREGASSJune19[[#This Row],[Secondary  Name]],tblREGASSJune19[[#This Row],[Alloc4FUNC]])","v":"1823920DSR COSTS AMORTIZED102537COMMERCIAL SMALL RETROFIT - UTAH - 2005OTHER"},1823920,"DSR COSTS AMORTIZED",102537,"COMMERCIAL SMALL RETROFIT - UTAH - 2005","OTHER",222.54929000000001,{"$f":"IF(OR(tblREGASSJune19[[#This Row],[Alloc]]=\"IDU\",tblREGASSJune19[[#This Row],[Alloc]]=\"OR\",tblREGASSJune19[[#This Row],[Alloc]]=\"UT\",tblREGASSJune19[[#This Row],[Alloc]]=\"WYU\",tblREGASSJune19[[#This Row],[Alloc]]=\"WYP\",tblREGASSJune19[[#This Row],[Alloc]]=\"CA\",tblREGASSJune19[[#This Row],[Alloc]]=\"WA\"),\"SITUS\",tblREGASSJune19[[#This Row],[Alloc]])","v":"OTHER"},{"$f":"INDEX(tblREGASSLookup[FUNC],MATCH(tblREGASSJune19[[#This Row],[Concat]],tblREGASSLookup[Concat],0))","v":"CUST"},{"$f":"IF(tblREGASSJune19[[#This Row],[Total ($000)]]=0,\"NO\",IF(ISNA(tblREGASSJune19[[#This Row],[FUNC]]),\"YES\",IF(_xlfn.ISFORMULA(tblREGASSJune19[[#This Row],[FUNC]]),\"NO\",\"YES\")))","v":"NO"}]
[{"$f":"CONCATENATE(tblREGASSJune19[[#This Row],[Primary Account]],tblREGASSJune19[[#This Row],[Primary Name]],tblREGASSJune19[[#This Row],[Secondary Acct]],tblREGASSJune19[[#This Row],[Secondary  Name]],tblREGASSJune19[[#This Row],[Alloc4FUNC]])","v":"1823920DSR COSTS AMORTIZED102539ENERGY FINANSWER - UTAH - 2005OTHER"},1823920,"DSR COSTS AMORTIZED",102539,"ENERGY FINANSWER - UTAH - 2005","OTHER",1475.7383600000001,{"$f":"IF(OR(tblREGASSJune19[[#This Row],[Alloc]]=\"IDU\",tblREGASSJune19[[#This Row],[Alloc]]=\"OR\",tblREGASSJune19[[#This Row],[Alloc]]=\"UT\",tblREGASSJune19[[#This Row],[Alloc]]=\"WYU\",tblREGASSJune19[[#This Row],[Alloc]]=\"WYP\",tblREGASSJune19[[#This Row],[Alloc]]=\"CA\",tblREGASSJune19[[#This Row],[Alloc]]=\"WA\"),\"SITUS\",tblREGASSJune19[[#This Row],[Alloc]])","v":"OTHER"},{"$f":"INDEX(tblREGASSLookup[FUNC],MATCH(tblREGASSJune19[[#This Row],[Concat]],tblREGASSLookup[Concat],0))","v":"CUST"},{"$f":"IF(tblREGASSJune19[[#This Row],[Total ($000)]]=0,\"NO\",IF(ISNA(tblREGASSJune19[[#This Row],[FUNC]]),\"YES\",IF(_xlfn.ISFORMULA(tblREGASSJune19[[#This Row],[FUNC]]),\"NO\",\"YES\")))","v":"NO"}]
[{"$f":"CONCATENATE(tblREGASSJune19[[#This Row],[Primary Account]],tblREGASSJune19[[#This Row],[Primary Name]],tblREGASSJune19[[#This Row],[Secondary Acct]],tblREGASSJune19[[#This Row],[Secondary  Name]],tblREGASSJune19[[#This Row],[Alloc4FUNC]])","v":"1823920DSR COSTS AMORTIZED102540INDUSTRIAL FINANSWER - UTAH - 2005OTHER"},1823920,"DSR COSTS AMORTIZED",102540,"INDUSTRIAL FINANSWER - UTAH - 2005","OTHER",3484.5932400000002,{"$f":"IF(OR(tblREGASSJune19[[#This Row],[Alloc]]=\"IDU\",tblREGASSJune19[[#This Row],[Alloc]]=\"OR\",tblREGASSJune19[[#This Row],[Alloc]]=\"UT\",tblREGASSJune19[[#This Row],[Alloc]]=\"WYU\",tblREGASSJune19[[#This Row],[Alloc]]=\"WYP\",tblREGASSJune19[[#This Row],[Alloc]]=\"CA\",tblREGASSJune19[[#This Row],[Alloc]]=\"WA\"),\"SITUS\",tblREGASSJune19[[#This Row],[Alloc]])","v":"OTHER"},{"$f":"INDEX(tblREGASSLookup[FUNC],MATCH(tblREGASSJune19[[#This Row],[Concat]],tblREGASSLookup[Concat],0))","v":"CUST"},{"$f":"IF(tblREGASSJune19[[#This Row],[Total ($000)]]=0,\"NO\",IF(ISNA(tblREGASSJune19[[#This Row],[FUNC]]),\"YES\",IF(_xlfn.ISFORMULA(tblREGASSJune19[[#This Row],[FUNC]]),\"NO\",\"YES\")))","v":"NO"}]
[{"$f":"CONCATENATE(tblREGASSJune19[[#This Row],[Primary Account]],tblREGASSJune19[[#This Row],[Primary Name]],tblREGASSJune19[[#This Row],[Secondary Acct]],tblREGASSJune19[[#This Row],[Secondary  Name]],tblREGASSJune19[[#This Row],[Alloc4FUNC]])","v":"1823920DSR COSTS AMORTIZED102541INDUSTRIAL RETROFIT LIGHTING - UTAH - 20OTHER"},1823920,"DSR COSTS AMORTIZED",102541,"INDUSTRIAL RETROFIT LIGHTING - UTAH - 20","OTHER",59.976289999999999,{"$f":"IF(OR(tblREGASSJune19[[#This Row],[Alloc]]=\"IDU\",tblREGASSJune19[[#This Row],[Alloc]]=\"OR\",tblREGASSJune19[[#This Row],[Alloc]]=\"UT\",tblREGASSJune19[[#This Row],[Alloc]]=\"WYU\",tblREGASSJune19[[#This Row],[Alloc]]=\"WYP\",tblREGASSJune19[[#This Row],[Alloc]]=\"CA\",tblREGASSJune19[[#This Row],[Alloc]]=\"WA\"),\"SITUS\",tblREGASSJune19[[#This Row],[Alloc]])","v":"OTHER"},{"$f":"INDEX(tblREGASSLookup[FUNC],MATCH(tblREGASSJune19[[#This Row],[Concat]],tblREGASSLookup[Concat],0))","v":"CUST"},{"$f":"IF(tblREGASSJune19[[#This Row],[Total ($000)]]=0,\"NO\",IF(ISNA(tblREGASSJune19[[#This Row],[FUNC]]),\"YES\",IF(_xlfn.ISFORMULA(tblREGASSJune19[[#This Row],[FUNC]]),\"NO\",\"YES\")))","v":"NO"}]
[{"$f":"CONCATENATE(tblREGASSJune19[[#This Row],[Primary Account]],tblREGASSJune19[[#This Row],[Primary Name]],tblREGASSJune19[[#This Row],[Secondary Acct]],tblREGASSJune19[[#This Row],[Secondary  Name]],tblREGASSJune19[[#This Row],[Alloc4FUNC]])","v":"1823920DSR COSTS AMORTIZED1025421823920/102542OTHER"},1823920,"DSR COSTS AMORTIZED",102542,"1823920/102542","OTHER",0,{"$f":"IF(OR(tblREGASSJune19[[#This Row],[Alloc]]=\"IDU\",tblREGASSJune19[[#This Row],[Alloc]]=\"OR\",tblREGASSJune19[[#This Row],[Alloc]]=\"UT\",tblREGASSJune19[[#This Row],[Alloc]]=\"WYU\",tblREGASSJune19[[#This Row],[Alloc]]=\"WYP\",tblREGASSJune19[[#This Row],[Alloc]]=\"CA\",tblREGASSJune19[[#This Row],[Alloc]]=\"WA\"),\"SITUS\",tblREGASSJune19[[#This Row],[Alloc]])","v":"OTHER"},{"$f":"INDEX(tblREGASSLookup[FUNC],MATCH(tblREGASSJune19[[#This Row],[Concat]],tblREGASSLookup[Concat],0))","v":{"$error":"#N/A"}},{"$f":"IF(tblREGASSJune19[[#This Row],[Total ($000)]]=0,\"NO\",IF(ISNA(tblREGASSJune19[[#This Row],[FUNC]]),\"YES\",IF(_xlfn.ISFORMULA(tblREGASSJune19[[#This Row],[FUNC]]),\"NO\",\"YES\")))","v":"NO"}]
[{"$f":"CONCATENATE(tblREGASSJune19[[#This Row],[Primary Account]],tblREGASSJune19[[#This Row],[Primary Name]],tblREGASSJune19[[#This Row],[Secondary Acct]],tblREGASSJune19[[#This Row],[Secondary  Name]],tblREGASSJune19[[#This Row],[Alloc4FUNC]])","v":"1823920DSR COSTS AMORTIZED102543POWER FORWARD - UTAH - 2005OTHER"},1823920,"DSR COSTS AMORTIZED",102543,"POWER FORWARD - UTAH - 2005","OTHER",50,{"$f":"IF(OR(tblREGASSJune19[[#This Row],[Alloc]]=\"IDU\",tblREGASSJune19[[#This Row],[Alloc]]=\"OR\",tblREGASSJune19[[#This Row],[Alloc]]=\"UT\",tblREGASSJune19[[#This Row],[Alloc]]=\"WYU\",tblREGASSJune19[[#This Row],[Alloc]]=\"WYP\",tblREGASSJune19[[#This Row],[Alloc]]=\"CA\",tblREGASSJune19[[#This Row],[Alloc]]=\"WA\"),\"SITUS\",tblREGASSJune19[[#This Row],[Alloc]])","v":"OTHER"},{"$f":"INDEX(tblREGASSLookup[FUNC],MATCH(tblREGASSJune19[[#This Row],[Concat]],tblREGASSLookup[Concat],0))","v":"CUST"},{"$f":"IF(tblREGASSJune19[[#This Row],[Total ($000)]]=0,\"NO\",IF(ISNA(tblREGASSJune19[[#This Row],[FUNC]]),\"YES\",IF(_xlfn.ISFORMULA(tblREGASSJune19[[#This Row],[FUNC]]),\"NO\",\"YES\")))","v":"NO"}]
[{"$f":"CONCATENATE(tblREGASSJune19[[#This Row],[Primary Account]],tblREGASSJune19[[#This Row],[Primary Name]],tblREGASSJune19[[#This Row],[Secondary Acct]],tblREGASSJune19[[#This Row],[Secondary  Name]],tblREGASSJune19[[#This Row],[Alloc4FUNC]])","v":"1823920DSR COSTS AMORTIZED102544COMMERCIAL SELF-DIRECT - UTAH - 2005OTHER"},1823920,"DSR COSTS AMORTIZED",102544,"COMMERCIAL SELF-DIRECT - UTAH - 2005","OTHER",67.378190000000004,{"$f":"IF(OR(tblREGASSJune19[[#This Row],[Alloc]]=\"IDU\",tblREGASSJune19[[#This Row],[Alloc]]=\"OR\",tblREGASSJune19[[#This Row],[Alloc]]=\"UT\",tblREGASSJune19[[#This Row],[Alloc]]=\"WYU\",tblREGASSJune19[[#This Row],[Alloc]]=\"WYP\",tblREGASSJune19[[#This Row],[Alloc]]=\"CA\",tblREGASSJune19[[#This Row],[Alloc]]=\"WA\"),\"SITUS\",tblREGASSJune19[[#This Row],[Alloc]])","v":"OTHER"},{"$f":"INDEX(tblREGASSLookup[FUNC],MATCH(tblREGASSJune19[[#This Row],[Concat]],tblREGASSLookup[Concat],0))","v":"CUST"},{"$f":"IF(tblREGASSJune19[[#This Row],[Total ($000)]]=0,\"NO\",IF(ISNA(tblREGASSJune19[[#This Row],[FUNC]]),\"YES\",IF(_xlfn.ISFORMULA(tblREGASSJune19[[#This Row],[FUNC]]),\"NO\",\"YES\")))","v":"NO"}]
[{"$f":"CONCATENATE(tblREGASSJune19[[#This Row],[Primary Account]],tblREGASSJune19[[#This Row],[Primary Name]],tblREGASSJune19[[#This Row],[Secondary Acct]],tblREGASSJune19[[#This Row],[Secondary  Name]],tblREGASSJune19[[#This Row],[Alloc4FUNC]])","v":"1823920DSR COSTS AMORTIZED102545INDUSTRIAL SELF-DIRECT - UTAH - 2005OTHER"},1823920,"DSR COSTS AMORTIZED",102545,"INDUSTRIAL SELF-DIRECT - UTAH - 2005","OTHER",102.7296,{"$f":"IF(OR(tblREGASSJune19[[#This Row],[Alloc]]=\"IDU\",tblREGASSJune19[[#This Row],[Alloc]]=\"OR\",tblREGASSJune19[[#This Row],[Alloc]]=\"UT\",tblREGASSJune19[[#This Row],[Alloc]]=\"WYU\",tblREGASSJune19[[#This Row],[Alloc]]=\"WYP\",tblREGASSJune19[[#This Row],[Alloc]]=\"CA\",tblREGASSJune19[[#This Row],[Alloc]]=\"WA\"),\"SITUS\",tblREGASSJune19[[#This Row],[Alloc]])","v":"OTHER"},{"$f":"INDEX(tblREGASSLookup[FUNC],MATCH(tblREGASSJune19[[#This Row],[Concat]],tblREGASSLookup[Concat],0))","v":"CUST"},{"$f":"IF(tblREGASSJune19[[#This Row],[Total ($000)]]=0,\"NO\",IF(ISNA(tblREGASSJune19[[#This Row],[FUNC]]),\"YES\",IF(_xlfn.ISFORMULA(tblREGASSJune19[[#This Row],[FUNC]]),\"NO\",\"YES\")))","v":"NO"}]
[{"$f":"CONCATENATE(tblREGASSJune19[[#This Row],[Primary Account]],tblREGASSJune19[[#This Row],[Primary Name]],tblREGASSJune19[[#This Row],[Secondary Acct]],tblREGASSJune19[[#This Row],[Secondary  Name]],tblREGASSJune19[[#This Row],[Alloc4FUNC]])","v":"1823920DSR COSTS AMORTIZED102546RESIDENTIAL NEW CONSTRUCTION - UTAH - 20OTHER"},1823920,"DSR COSTS AMORTIZED",102546,"RESIDENTIAL NEW CONSTRUCTION - UTAH - 20","OTHER",943.91087000000005,{"$f":"IF(OR(tblREGASSJune19[[#This Row],[Alloc]]=\"IDU\",tblREGASSJune19[[#This Row],[Alloc]]=\"OR\",tblREGASSJune19[[#This Row],[Alloc]]=\"UT\",tblREGASSJune19[[#This Row],[Alloc]]=\"WYU\",tblREGASSJune19[[#This Row],[Alloc]]=\"WYP\",tblREGASSJune19[[#This Row],[Alloc]]=\"CA\",tblREGASSJune19[[#This Row],[Alloc]]=\"WA\"),\"SITUS\",tblREGASSJune19[[#This Row],[Alloc]])","v":"OTHER"},{"$f":"INDEX(tblREGASSLookup[FUNC],MATCH(tblREGASSJune19[[#This Row],[Concat]],tblREGASSLookup[Concat],0))","v":"CUST"},{"$f":"IF(tblREGASSJune19[[#This Row],[Total ($000)]]=0,\"NO\",IF(ISNA(tblREGASSJune19[[#This Row],[FUNC]]),\"YES\",IF(_xlfn.ISFORMULA(tblREGASSJune19[[#This Row],[FUNC]]),\"NO\",\"YES\")))","v":"NO"}]
[{"$f":"CONCATENATE(tblREGASSJune19[[#This Row],[Primary Account]],tblREGASSJune19[[#This Row],[Primary Name]],tblREGASSJune19[[#This Row],[Secondary Acct]],tblREGASSJune19[[#This Row],[Secondary  Name]],tblREGASSJune19[[#This Row],[Alloc4FUNC]])","v":"1823920DSR COSTS AMORTIZED102547COMMERCIAL FINANSWER EXPRESS - UTAH - 20OTHER"},1823920,"DSR COSTS AMORTIZED",102547,"COMMERCIAL FINANSWER EXPRESS - UTAH - 20","OTHER",1967.19092,{"$f":"IF(OR(tblREGASSJune19[[#This Row],[Alloc]]=\"IDU\",tblREGASSJune19[[#This Row],[Alloc]]=\"OR\",tblREGASSJune19[[#This Row],[Alloc]]=\"UT\",tblREGASSJune19[[#This Row],[Alloc]]=\"WYU\",tblREGASSJune19[[#This Row],[Alloc]]=\"WYP\",tblREGASSJune19[[#This Row],[Alloc]]=\"CA\",tblREGASSJune19[[#This Row],[Alloc]]=\"WA\"),\"SITUS\",tblREGASSJune19[[#This Row],[Alloc]])","v":"OTHER"},{"$f":"INDEX(tblREGASSLookup[FUNC],MATCH(tblREGASSJune19[[#This Row],[Concat]],tblREGASSLookup[Concat],0))","v":"CUST"},{"$f":"IF(tblREGASSJune19[[#This Row],[Total ($000)]]=0,\"NO\",IF(ISNA(tblREGASSJune19[[#This Row],[FUNC]]),\"YES\",IF(_xlfn.ISFORMULA(tblREGASSJune19[[#This Row],[FUNC]]),\"NO\",\"YES\")))","v":"NO"}]
[{"$f":"CONCATENATE(tblREGASSJune19[[#This Row],[Primary Account]],tblREGASSJune19[[#This Row],[Primary Name]],tblREGASSJune19[[#This Row],[Secondary Acct]],tblREGASSJune19[[#This Row],[Secondary  Name]],tblREGASSJune19[[#This Row],[Alloc4FUNC]])","v":"1823920DSR COSTS AMORTIZED102548INDUSTRIAL FINANSWER EXPRESS - UTAH - 20OTHER"},1823920,"DSR COSTS AMORTIZED",102548,"INDUSTRIAL FINANSWER EXPRESS - UTAH - 20","OTHER",420.56610000000001,{"$f":"IF(OR(tblREGASSJune19[[#This Row],[Alloc]]=\"IDU\",tblREGASSJune19[[#This Row],[Alloc]]=\"OR\",tblREGASSJune19[[#This Row],[Alloc]]=\"UT\",tblREGASSJune19[[#This Row],[Alloc]]=\"WYU\",tblREGASSJune19[[#This Row],[Alloc]]=\"WYP\",tblREGASSJune19[[#This Row],[Alloc]]=\"CA\",tblREGASSJune19[[#This Row],[Alloc]]=\"WA\"),\"SITUS\",tblREGASSJune19[[#This Row],[Alloc]])","v":"OTHER"},{"$f":"INDEX(tblREGASSLookup[FUNC],MATCH(tblREGASSJune19[[#This Row],[Concat]],tblREGASSLookup[Concat],0))","v":"CUST"},{"$f":"IF(tblREGASSJune19[[#This Row],[Total ($000)]]=0,\"NO\",IF(ISNA(tblREGASSJune19[[#This Row],[FUNC]]),\"YES\",IF(_xlfn.ISFORMULA(tblREGASSJune19[[#This Row],[FUNC]]),\"NO\",\"YES\")))","v":"NO"}]
[{"$f":"CONCATENATE(tblREGASSJune19[[#This Row],[Primary Account]],tblREGASSJune19[[#This Row],[Primary Name]],tblREGASSJune19[[#This Row],[Secondary Acct]],tblREGASSJune19[[#This Row],[Secondary  Name]],tblREGASSJune19[[#This Row],[Alloc4FUNC]])","v":"1823920DSR COSTS AMORTIZED102549RETROFIT COMMISSIONING PROGRAM  - UTAH -OTHER"},1823920,"DSR COSTS AMORTIZED",102549,"RETROFIT COMMISSIONING PROGRAM  - UTAH -","OTHER",104.62752,{"$f":"IF(OR(tblREGASSJune19[[#This Row],[Alloc]]=\"IDU\",tblREGASSJune19[[#This Row],[Alloc]]=\"OR\",tblREGASSJune19[[#This Row],[Alloc]]=\"UT\",tblREGASSJune19[[#This Row],[Alloc]]=\"WYU\",tblREGASSJune19[[#This Row],[Alloc]]=\"WYP\",tblREGASSJune19[[#This Row],[Alloc]]=\"CA\",tblREGASSJune19[[#This Row],[Alloc]]=\"WA\"),\"SITUS\",tblREGASSJune19[[#This Row],[Alloc]])","v":"OTHER"},{"$f":"INDEX(tblREGASSLookup[FUNC],MATCH(tblREGASSJune19[[#This Row],[Concat]],tblREGASSLookup[Concat],0))","v":"CUST"},{"$f":"IF(tblREGASSJune19[[#This Row],[Total ($000)]]=0,\"NO\",IF(ISNA(tblREGASSJune19[[#This Row],[FUNC]]),\"YES\",IF(_xlfn.ISFORMULA(tblREGASSJune19[[#This Row],[FUNC]]),\"NO\",\"YES\")))","v":"NO"}]
[{"$f":"CONCATENATE(tblREGASSJune19[[#This Row],[Primary Account]],tblREGASSJune19[[#This Row],[Primary Name]],tblREGASSJune19[[#This Row],[Secondary Acct]],tblREGASSJune19[[#This Row],[Secondary  Name]],tblREGASSJune19[[#This Row],[Alloc4FUNC]])","v":"1823920DSR COSTS AMORTIZED102550C&I LIGHTING LOAD CONTROL  - UTAH - 2005OTHER"},1823920,"DSR COSTS AMORTIZED",102550,"C&I LIGHTING LOAD CONTROL  - UTAH - 2005","OTHER",35.638219999999997,{"$f":"IF(OR(tblREGASSJune19[[#This Row],[Alloc]]=\"IDU\",tblREGASSJune19[[#This Row],[Alloc]]=\"OR\",tblREGASSJune19[[#This Row],[Alloc]]=\"UT\",tblREGASSJune19[[#This Row],[Alloc]]=\"WYU\",tblREGASSJune19[[#This Row],[Alloc]]=\"WYP\",tblREGASSJune19[[#This Row],[Alloc]]=\"CA\",tblREGASSJune19[[#This Row],[Alloc]]=\"WA\"),\"SITUS\",tblREGASSJune19[[#This Row],[Alloc]])","v":"OTHER"},{"$f":"INDEX(tblREGASSLookup[FUNC],MATCH(tblREGASSJune19[[#This Row],[Concat]],tblREGASSLookup[Concat],0))","v":"CUST"},{"$f":"IF(tblREGASSJune19[[#This Row],[Total ($000)]]=0,\"NO\",IF(ISNA(tblREGASSJune19[[#This Row],[FUNC]]),\"YES\",IF(_xlfn.ISFORMULA(tblREGASSJune19[[#This Row],[FUNC]]),\"NO\",\"YES\")))","v":"NO"}]
[{"$f":"CONCATENATE(tblREGASSJune19[[#This Row],[Primary Account]],tblREGASSJune19[[#This Row],[Primary Name]],tblREGASSJune19[[#This Row],[Secondary Acct]],tblREGASSJune19[[#This Row],[Secondary  Name]],tblREGASSJune19[[#This Row],[Alloc4FUNC]])","v":"1823920DSR COSTS AMORTIZED102552ENERGY FINANSWER - WYOMING PPL - 2005SITUS"},1823920,"DSR COSTS AMORTIZED",102552,"ENERGY FINANSWER - WYOMING PPL - 2005","WYP",0,{"$f":"IF(OR(tblREGASSJune19[[#This Row],[Alloc]]=\"IDU\",tblREGASSJune19[[#This Row],[Alloc]]=\"OR\",tblREGASSJune19[[#This Row],[Alloc]]=\"UT\",tblREGASSJune19[[#This Row],[Alloc]]=\"WYU\",tblREGASSJune19[[#This Row],[Alloc]]=\"WYP\",tblREGASSJune19[[#This Row],[Alloc]]=\"CA\",tblREGASSJune19[[#This Row],[Alloc]]=\"WA\"),\"SITUS\",tblREGASSJune19[[#This Row],[Alloc]])","v":"SITUS"},{"$f":"INDEX(tblREGASSLookup[FUNC],MATCH(tblREGASSJune19[[#This Row],[Concat]],tblREGASSLookup[Concat],0))","v":{"$error":"#N/A"}},{"$f":"IF(tblREGASSJune19[[#This Row],[Total ($000)]]=0,\"NO\",IF(ISNA(tblREGASSJune19[[#This Row],[FUNC]]),\"YES\",IF(_xlfn.ISFORMULA(tblREGASSJune19[[#This Row],[FUNC]]),\"NO\",\"YES\")))","v":"NO"}]
[{"$f":"CONCATENATE(tblREGASSJune19[[#This Row],[Primary Account]],tblREGASSJune19[[#This Row],[Primary Name]],tblREGASSJune19[[#This Row],[Secondary Acct]],tblREGASSJune19[[#This Row],[Secondary  Name]],tblREGASSJune19[[#This Row],[Alloc4FUNC]])","v":"1823920DSR COSTS AMORTIZED102553INDUSTRIAL FINANSWER-WYOMING - PPL 2005SITUS"},1823920,"DSR COSTS AMORTIZED",102553,"INDUSTRIAL FINANSWER-WYOMING - PPL 2005","WYP",0,{"$f":"IF(OR(tblREGASSJune19[[#This Row],[Alloc]]=\"IDU\",tblREGASSJune19[[#This Row],[Alloc]]=\"OR\",tblREGASSJune19[[#This Row],[Alloc]]=\"UT\",tblREGASSJune19[[#This Row],[Alloc]]=\"WYU\",tblREGASSJune19[[#This Row],[Alloc]]=\"WYP\",tblREGASSJune19[[#This Row],[Alloc]]=\"CA\",tblREGASSJune19[[#This Row],[Alloc]]=\"WA\"),\"SITUS\",tblREGASSJune19[[#This Row],[Alloc]])","v":"SITUS"},{"$f":"INDEX(tblREGASSLookup[FUNC],MATCH(tblREGASSJune19[[#This Row],[Concat]],tblREGASSLookup[Concat],0))","v":{"$error":"#N/A"}},{"$f":"IF(tblREGASSJune19[[#This Row],[Total ($000)]]=0,\"NO\",IF(ISNA(tblREGASSJune19[[#This Row],[FUNC]]),\"YES\",IF(_xlfn.ISFORMULA(tblREGASSJune19[[#This Row],[FUNC]]),\"NO\",\"YES\")))","v":"NO"}]
[{"$f":"CONCATENATE(tblREGASSJune19[[#This Row],[Primary Account]],tblREGASSJune19[[#This Row],[Primary Name]],tblREGASSJune19[[#This Row],[Secondary Acct]],tblREGASSJune19[[#This Row],[Secondary  Name]],tblREGASSJune19[[#This Row],[Alloc4FUNC]])","v":"1823920DSR COSTS AMORTIZED102554SELF AUDIT - WYOMING - PPL 2005SITUS"},1823920,"DSR COSTS AMORTIZED",102554,"SELF AUDIT - WYOMING - PPL 2005","WYP",0,{"$f":"IF(OR(tblREGASSJune19[[#This Row],[Alloc]]=\"IDU\",tblREGASSJune19[[#This Row],[Alloc]]=\"OR\",tblREGASSJune19[[#This Row],[Alloc]]=\"UT\",tblREGASSJune19[[#This Row],[Alloc]]=\"WYU\",tblREGASSJune19[[#This Row],[Alloc]]=\"WYP\",tblREGASSJune19[[#This Row],[Alloc]]=\"CA\",tblREGASSJune19[[#This Row],[Alloc]]=\"WA\"),\"SITUS\",tblREGASSJune19[[#This Row],[Alloc]])","v":"SITUS"},{"$f":"INDEX(tblREGASSLookup[FUNC],MATCH(tblREGASSJune19[[#This Row],[Concat]],tblREGASSLookup[Concat],0))","v":{"$error":"#N/A"}},{"$f":"IF(tblREGASSJune19[[#This Row],[Total ($000)]]=0,\"NO\",IF(ISNA(tblREGASSJune19[[#This Row],[FUNC]]),\"YES\",IF(_xlfn.ISFORMULA(tblREGASSJune19[[#This Row],[FUNC]]),\"NO\",\"YES\")))","v":"NO"}]
[{"$f":"CONCATENATE(tblREGASSJune19[[#This Row],[Primary Account]],tblREGASSJune19[[#This Row],[Primary Name]],tblREGASSJune19[[#This Row],[Secondary Acct]],tblREGASSJune19[[#This Row],[Secondary  Name]],tblREGASSJune19[[#This Row],[Alloc4FUNC]])","v":"1823920DSR COSTS AMORTIZED102555REFRIGERATOR RECYCLING - PPL WYOMING - 2SITUS"},1823920,"DSR COSTS AMORTIZED",102555,"REFRIGERATOR RECYCLING - PPL WYOMING - 2","WYP",0,{"$f":"IF(OR(tblREGASSJune19[[#This Row],[Alloc]]=\"IDU\",tblREGASSJune19[[#This Row],[Alloc]]=\"OR\",tblREGASSJune19[[#This Row],[Alloc]]=\"UT\",tblREGASSJune19[[#This Row],[Alloc]]=\"WYU\",tblREGASSJune19[[#This Row],[Alloc]]=\"WYP\",tblREGASSJune19[[#This Row],[Alloc]]=\"CA\",tblREGASSJune19[[#This Row],[Alloc]]=\"WA\"),\"SITUS\",tblREGASSJune19[[#This Row],[Alloc]])","v":"SITUS"},{"$f":"INDEX(tblREGASSLookup[FUNC],MATCH(tblREGASSJune19[[#This Row],[Concat]],tblREGASSLookup[Concat],0))","v":{"$error":"#N/A"}},{"$f":"IF(tblREGASSJune19[[#This Row],[Total ($000)]]=0,\"NO\",IF(ISNA(tblREGASSJune19[[#This Row],[FUNC]]),\"YES\",IF(_xlfn.ISFORMULA(tblREGASSJune19[[#This Row],[FUNC]]),\"NO\",\"YES\")))","v":"NO"}]
[{"$f":"CONCATENATE(tblREGASSJune19[[#This Row],[Primary Account]],tblREGASSJune19[[#This Row],[Primary Name]],tblREGASSJune19[[#This Row],[Secondary Acct]],tblREGASSJune19[[#This Row],[Secondary  Name]],tblREGASSJune19[[#This Row],[Alloc4FUNC]])","v":"1823920DSR COSTS AMORTIZED1025561823920/102556OTHER"},1823920,"DSR COSTS AMORTIZED",102556,"1823920/102556","OTHER",1.0000000000000001E-5,{"$f":"IF(OR(tblREGASSJune19[[#This Row],[Alloc]]=\"IDU\",tblREGASSJune19[[#This Row],[Alloc]]=\"OR\",tblREGASSJune19[[#This Row],[Alloc]]=\"UT\",tblREGASSJune19[[#This Row],[Alloc]]=\"WYU\",tblREGASSJune19[[#This Row],[Alloc]]=\"WYP\",tblREGASSJune19[[#This Row],[Alloc]]=\"CA\",tblREGASSJune19[[#This Row],[Alloc]]=\"WA\"),\"SITUS\",tblREGASSJune19[[#This Row],[Alloc]])","v":"OTHER"},{"$f":"INDEX(tblREGASSLookup[FUNC],MATCH(tblREGASSJune19[[#This Row],[Concat]],tblREGASSLookup[Concat],0))","v":"CUST"},{"$f":"IF(tblREGASSJune19[[#This Row],[Total ($000)]]=0,\"NO\",IF(ISNA(tblREGASSJune19[[#This Row],[FUNC]]),\"YES\",IF(_xlfn.ISFORMULA(tblREGASSJune19[[#This Row],[FUNC]]),\"NO\",\"YES\")))","v":"NO"}]
[{"$f":"CONCATENATE(tblREGASSJune19[[#This Row],[Primary Account]],tblREGASSJune19[[#This Row],[Primary Name]],tblREGASSJune19[[#This Row],[Secondary Acct]],tblREGASSJune19[[#This Row],[Secondary  Name]],tblREGASSJune19[[#This Row],[Alloc4FUNC]])","v":"1823920DSR COSTS AMORTIZED102562APPLIANCE INCENTIVE - WASHWISE - WASHINGOTHER"},1823920,"DSR COSTS AMORTIZED",102562,"APPLIANCE INCENTIVE - WASHWISE - WASHING","OTHER",52.954230000000003,{"$f":"IF(OR(tblREGASSJune19[[#This Row],[Alloc]]=\"IDU\",tblREGASSJune19[[#This Row],[Alloc]]=\"OR\",tblREGASSJune19[[#This Row],[Alloc]]=\"UT\",tblREGASSJune19[[#This Row],[Alloc]]=\"WYU\",tblREGASSJune19[[#This Row],[Alloc]]=\"WYP\",tblREGASSJune19[[#This Row],[Alloc]]=\"CA\",tblREGASSJune19[[#This Row],[Alloc]]=\"WA\"),\"SITUS\",tblREGASSJune19[[#This Row],[Alloc]])","v":"OTHER"},{"$f":"INDEX(tblREGASSLookup[FUNC],MATCH(tblREGASSJune19[[#This Row],[Concat]],tblREGASSLookup[Concat],0))","v":"CUST"},{"$f":"IF(tblREGASSJune19[[#This Row],[Total ($000)]]=0,\"NO\",IF(ISNA(tblREGASSJune19[[#This Row],[FUNC]]),\"YES\",IF(_xlfn.ISFORMULA(tblREGASSJune19[[#This Row],[FUNC]]),\"NO\",\"YES\")))","v":"NO"}]
[{"$f":"CONCATENATE(tblREGASSJune19[[#This Row],[Primary Account]],tblREGASSJune19[[#This Row],[Primary Name]],tblREGASSJune19[[#This Row],[Secondary Acct]],tblREGASSJune19[[#This Row],[Secondary  Name]],tblREGASSJune19[[#This Row],[Alloc4FUNC]])","v":"1823920DSR COSTS AMORTIZED102586IRRIGATION LOAD CONTROL - UTAH - 2005OTHER"},1823920,"DSR COSTS AMORTIZED",102586,"IRRIGATION LOAD CONTROL - UTAH - 2005","OTHER",2.8250000000000002,{"$f":"IF(OR(tblREGASSJune19[[#This Row],[Alloc]]=\"IDU\",tblREGASSJune19[[#This Row],[Alloc]]=\"OR\",tblREGASSJune19[[#This Row],[Alloc]]=\"UT\",tblREGASSJune19[[#This Row],[Alloc]]=\"WYU\",tblREGASSJune19[[#This Row],[Alloc]]=\"WYP\",tblREGASSJune19[[#This Row],[Alloc]]=\"CA\",tblREGASSJune19[[#This Row],[Alloc]]=\"WA\"),\"SITUS\",tblREGASSJune19[[#This Row],[Alloc]])","v":"OTHER"},{"$f":"INDEX(tblREGASSLookup[FUNC],MATCH(tblREGASSJune19[[#This Row],[Concat]],tblREGASSLookup[Concat],0))","v":"CUST"},{"$f":"IF(tblREGASSJune19[[#This Row],[Total ($000)]]=0,\"NO\",IF(ISNA(tblREGASSJune19[[#This Row],[FUNC]]),\"YES\",IF(_xlfn.ISFORMULA(tblREGASSJune19[[#This Row],[FUNC]]),\"NO\",\"YES\")))","v":"NO"}]
[{"$f":"CONCATENATE(tblREGASSJune19[[#This Row],[Primary Account]],tblREGASSJune19[[#This Row],[Primary Name]],tblREGASSJune19[[#This Row],[Secondary Acct]],tblREGASSJune19[[#This Row],[Secondary  Name]],tblREGASSJune19[[#This Row],[Alloc4FUNC]])","v":"1823920DSR COSTS AMORTIZED102702ENERGY FINANSWER - WYOMING PPL - 2006SITUS"},1823920,"DSR COSTS AMORTIZED",102702,"ENERGY FINANSWER - WYOMING PPL - 2006","WYP",0,{"$f":"IF(OR(tblREGASSJune19[[#This Row],[Alloc]]=\"IDU\",tblREGASSJune19[[#This Row],[Alloc]]=\"OR\",tblREGASSJune19[[#This Row],[Alloc]]=\"UT\",tblREGASSJune19[[#This Row],[Alloc]]=\"WYU\",tblREGASSJune19[[#This Row],[Alloc]]=\"WYP\",tblREGASSJune19[[#This Row],[Alloc]]=\"CA\",tblREGASSJune19[[#This Row],[Alloc]]=\"WA\"),\"SITUS\",tblREGASSJune19[[#This Row],[Alloc]])","v":"SITUS"},{"$f":"INDEX(tblREGASSLookup[FUNC],MATCH(tblREGASSJune19[[#This Row],[Concat]],tblREGASSLookup[Concat],0))","v":{"$error":"#N/A"}},{"$f":"IF(tblREGASSJune19[[#This Row],[Total ($000)]]=0,\"NO\",IF(ISNA(tblREGASSJune19[[#This Row],[FUNC]]),\"YES\",IF(_xlfn.ISFORMULA(tblREGASSJune19[[#This Row],[FUNC]]),\"NO\",\"YES\")))","v":"NO"}]
[{"$f":"CONCATENATE(tblREGASSJune19[[#This Row],[Primary Account]],tblREGASSJune19[[#This Row],[Primary Name]],tblREGASSJune19[[#This Row],[Secondary Acct]],tblREGASSJune19[[#This Row],[Secondary  Name]],tblREGASSJune19[[#This Row],[Alloc4FUNC]])","v":"1823920DSR COSTS AMORTIZED102703INDUSTRIAL FINANSWER-WYOMING-PPL 2006SITUS"},1823920,"DSR COSTS AMORTIZED",102703,"INDUSTRIAL FINANSWER-WYOMING-PPL 2006","WYP",0,{"$f":"IF(OR(tblREGASSJune19[[#This Row],[Alloc]]=\"IDU\",tblREGASSJune19[[#This Row],[Alloc]]=\"OR\",tblREGASSJune19[[#This Row],[Alloc]]=\"UT\",tblREGASSJune19[[#This Row],[Alloc]]=\"WYU\",tblREGASSJune19[[#This Row],[Alloc]]=\"WYP\",tblREGASSJune19[[#This Row],[Alloc]]=\"CA\",tblREGASSJune19[[#This Row],[Alloc]]=\"WA\"),\"SITUS\",tblREGASSJune19[[#This Row],[Alloc]])","v":"SITUS"},{"$f":"INDEX(tblREGASSLookup[FUNC],MATCH(tblREGASSJune19[[#This Row],[Concat]],tblREGASSLookup[Concat],0))","v":{"$error":"#N/A"}},{"$f":"IF(tblREGASSJune19[[#This Row],[Total ($000)]]=0,\"NO\",IF(ISNA(tblREGASSJune19[[#This Row],[FUNC]]),\"YES\",IF(_xlfn.ISFORMULA(tblREGASSJune19[[#This Row],[FUNC]]),\"NO\",\"YES\")))","v":"NO"}]
[{"$f":"CONCATENATE(tblREGASSJune19[[#This Row],[Primary Account]],tblREGASSJune19[[#This Row],[Primary Name]],tblREGASSJune19[[#This Row],[Secondary Acct]],tblREGASSJune19[[#This Row],[Secondary  Name]],tblREGASSJune19[[#This Row],[Alloc4FUNC]])","v":"1823920DSR COSTS AMORTIZED102706LOW INCOME-UTAH-2006OTHER"},1823920,"DSR COSTS AMORTIZED",102706,"LOW INCOME-UTAH-2006","OTHER",118.51381000000001,{"$f":"IF(OR(tblREGASSJune19[[#This Row],[Alloc]]=\"IDU\",tblREGASSJune19[[#This Row],[Alloc]]=\"OR\",tblREGASSJune19[[#This Row],[Alloc]]=\"UT\",tblREGASSJune19[[#This Row],[Alloc]]=\"WYU\",tblREGASSJune19[[#This Row],[Alloc]]=\"WYP\",tblREGASSJune19[[#This Row],[Alloc]]=\"CA\",tblREGASSJune19[[#This Row],[Alloc]]=\"WA\"),\"SITUS\",tblREGASSJune19[[#This Row],[Alloc]])","v":"OTHER"},{"$f":"INDEX(tblREGASSLookup[FUNC],MATCH(tblREGASSJune19[[#This Row],[Concat]],tblREGASSLookup[Concat],0))","v":"CUST"},{"$f":"IF(tblREGASSJune19[[#This Row],[Total ($000)]]=0,\"NO\",IF(ISNA(tblREGASSJune19[[#This Row],[FUNC]]),\"YES\",IF(_xlfn.ISFORMULA(tblREGASSJune19[[#This Row],[FUNC]]),\"NO\",\"YES\")))","v":"NO"}]
[{"$f":"CONCATENATE(tblREGASSJune19[[#This Row],[Primary Account]],tblREGASSJune19[[#This Row],[Primary Name]],tblREGASSJune19[[#This Row],[Secondary Acct]],tblREGASSJune19[[#This Row],[Secondary  Name]],tblREGASSJune19[[#This Row],[Alloc4FUNC]])","v":"1823920DSR COSTS AMORTIZED102707REFRIGERATOR RECYCLING PGM-UTAH-2006OTHER"},1823920,"DSR COSTS AMORTIZED",102707,"REFRIGERATOR RECYCLING PGM-UTAH-2006","OTHER",3751.5009100000002,{"$f":"IF(OR(tblREGASSJune19[[#This Row],[Alloc]]=\"IDU\",tblREGASSJune19[[#This Row],[Alloc]]=\"OR\",tblREGASSJune19[[#This Row],[Alloc]]=\"UT\",tblREGASSJune19[[#This Row],[Alloc]]=\"WYU\",tblREGASSJune19[[#This Row],[Alloc]]=\"WYP\",tblREGASSJune19[[#This Row],[Alloc]]=\"CA\",tblREGASSJune19[[#This Row],[Alloc]]=\"WA\"),\"SITUS\",tblREGASSJune19[[#This Row],[Alloc]])","v":"OTHER"},{"$f":"INDEX(tblREGASSLookup[FUNC],MATCH(tblREGASSJune19[[#This Row],[Concat]],tblREGASSLookup[Concat],0))","v":"CUST"},{"$f":"IF(tblREGASSJune19[[#This Row],[Total ($000)]]=0,\"NO\",IF(ISNA(tblREGASSJune19[[#This Row],[FUNC]]),\"YES\",IF(_xlfn.ISFORMULA(tblREGASSJune19[[#This Row],[FUNC]]),\"NO\",\"YES\")))","v":"NO"}]
[{"$f":"CONCATENATE(tblREGASSJune19[[#This Row],[Primary Account]],tblREGASSJune19[[#This Row],[Primary Name]],tblREGASSJune19[[#This Row],[Secondary Acct]],tblREGASSJune19[[#This Row],[Secondary  Name]],tblREGASSJune19[[#This Row],[Alloc4FUNC]])","v":"1823920DSR COSTS AMORTIZED102708A/C LOAD CONTROL-RESIDENTIAL/UTAH-2006OTHER"},1823920,"DSR COSTS AMORTIZED",102708,"A/C LOAD CONTROL-RESIDENTIAL/UTAH-2006","OTHER",8623.8516299999992,{"$f":"IF(OR(tblREGASSJune19[[#This Row],[Alloc]]=\"IDU\",tblREGASSJune19[[#This Row],[Alloc]]=\"OR\",tblREGASSJune19[[#This Row],[Alloc]]=\"UT\",tblREGASSJune19[[#This Row],[Alloc]]=\"WYU\",tblREGASSJune19[[#This Row],[Alloc]]=\"WYP\",tblREGASSJune19[[#This Row],[Alloc]]=\"CA\",tblREGASSJune19[[#This Row],[Alloc]]=\"WA\"),\"SITUS\",tblREGASSJune19[[#This Row],[Alloc]])","v":"OTHER"},{"$f":"INDEX(tblREGASSLookup[FUNC],MATCH(tblREGASSJune19[[#This Row],[Concat]],tblREGASSLookup[Concat],0))","v":"CUST"},{"$f":"IF(tblREGASSJune19[[#This Row],[Total ($000)]]=0,\"NO\",IF(ISNA(tblREGASSJune19[[#This Row],[FUNC]]),\"YES\",IF(_xlfn.ISFORMULA(tblREGASSJune19[[#This Row],[FUNC]]),\"NO\",\"YES\")))","v":"NO"}]
[{"$f":"CONCATENATE(tblREGASSJune19[[#This Row],[Primary Account]],tblREGASSJune19[[#This Row],[Primary Name]],tblREGASSJune19[[#This Row],[Secondary Acct]],tblREGASSJune19[[#This Row],[Secondary  Name]],tblREGASSJune19[[#This Row],[Alloc4FUNC]])","v":"1823920DSR COSTS AMORTIZED102709AIR CONDITIONING-UTAH-2006OTHER"},1823920,"DSR COSTS AMORTIZED",102709,"AIR CONDITIONING-UTAH-2006","OTHER",1499.1451300000001,{"$f":"IF(OR(tblREGASSJune19[[#This Row],[Alloc]]=\"IDU\",tblREGASSJune19[[#This Row],[Alloc]]=\"OR\",tblREGASSJune19[[#This Row],[Alloc]]=\"UT\",tblREGASSJune19[[#This Row],[Alloc]]=\"WYU\",tblREGASSJune19[[#This Row],[Alloc]]=\"WYP\",tblREGASSJune19[[#This Row],[Alloc]]=\"CA\",tblREGASSJune19[[#This Row],[Alloc]]=\"WA\"),\"SITUS\",tblREGASSJune19[[#This Row],[Alloc]])","v":"OTHER"},{"$f":"INDEX(tblREGASSLookup[FUNC],MATCH(tblREGASSJune19[[#This Row],[Concat]],tblREGASSLookup[Concat],0))","v":"CUST"},{"$f":"IF(tblREGASSJune19[[#This Row],[Total ($000)]]=0,\"NO\",IF(ISNA(tblREGASSJune19[[#This Row],[FUNC]]),\"YES\",IF(_xlfn.ISFORMULA(tblREGASSJune19[[#This Row],[FUNC]]),\"NO\",\"YES\")))","v":"NO"}]
[{"$f":"CONCATENATE(tblREGASSJune19[[#This Row],[Primary Account]],tblREGASSJune19[[#This Row],[Primary Name]],tblREGASSJune19[[#This Row],[Secondary Acct]],tblREGASSJune19[[#This Row],[Secondary  Name]],tblREGASSJune19[[#This Row],[Alloc4FUNC]])","v":"1823920DSR COSTS AMORTIZED102712ENERGY FINANSWER-UTAH-2006OTHER"},1823920,"DSR COSTS AMORTIZED",102712,"ENERGY FINANSWER-UTAH-2006","OTHER",2187.1782499999999,{"$f":"IF(OR(tblREGASSJune19[[#This Row],[Alloc]]=\"IDU\",tblREGASSJune19[[#This Row],[Alloc]]=\"OR\",tblREGASSJune19[[#This Row],[Alloc]]=\"UT\",tblREGASSJune19[[#This Row],[Alloc]]=\"WYU\",tblREGASSJune19[[#This Row],[Alloc]]=\"WYP\",tblREGASSJune19[[#This Row],[Alloc]]=\"CA\",tblREGASSJune19[[#This Row],[Alloc]]=\"WA\"),\"SITUS\",tblREGASSJune19[[#This Row],[Alloc]])","v":"OTHER"},{"$f":"INDEX(tblREGASSLookup[FUNC],MATCH(tblREGASSJune19[[#This Row],[Concat]],tblREGASSLookup[Concat],0))","v":"CUST"},{"$f":"IF(tblREGASSJune19[[#This Row],[Total ($000)]]=0,\"NO\",IF(ISNA(tblREGASSJune19[[#This Row],[FUNC]]),\"YES\",IF(_xlfn.ISFORMULA(tblREGASSJune19[[#This Row],[FUNC]]),\"NO\",\"YES\")))","v":"NO"}]
[{"$f":"CONCATENATE(tblREGASSJune19[[#This Row],[Primary Account]],tblREGASSJune19[[#This Row],[Primary Name]],tblREGASSJune19[[#This Row],[Secondary Acct]],tblREGASSJune19[[#This Row],[Secondary  Name]],tblREGASSJune19[[#This Row],[Alloc4FUNC]])","v":"1823920DSR COSTS AMORTIZED102713INDUSTRIAL FINANSWER-WYOMING-UTAH-2006OTHER"},1823920,"DSR COSTS AMORTIZED",102713,"INDUSTRIAL FINANSWER-WYOMING-UTAH-2006","OTHER",2747.6797799999999,{"$f":"IF(OR(tblREGASSJune19[[#This Row],[Alloc]]=\"IDU\",tblREGASSJune19[[#This Row],[Alloc]]=\"OR\",tblREGASSJune19[[#This Row],[Alloc]]=\"UT\",tblREGASSJune19[[#This Row],[Alloc]]=\"WYU\",tblREGASSJune19[[#This Row],[Alloc]]=\"WYP\",tblREGASSJune19[[#This Row],[Alloc]]=\"CA\",tblREGASSJune19[[#This Row],[Alloc]]=\"WA\"),\"SITUS\",tblREGASSJune19[[#This Row],[Alloc]])","v":"OTHER"},{"$f":"INDEX(tblREGASSLookup[FUNC],MATCH(tblREGASSJune19[[#This Row],[Concat]],tblREGASSLookup[Concat],0))","v":"CUST"},{"$f":"IF(tblREGASSJune19[[#This Row],[Total ($000)]]=0,\"NO\",IF(ISNA(tblREGASSJune19[[#This Row],[FUNC]]),\"YES\",IF(_xlfn.ISFORMULA(tblREGASSJune19[[#This Row],[FUNC]]),\"NO\",\"YES\")))","v":"NO"}]
[{"$f":"CONCATENATE(tblREGASSJune19[[#This Row],[Primary Account]],tblREGASSJune19[[#This Row],[Primary Name]],tblREGASSJune19[[#This Row],[Secondary Acct]],tblREGASSJune19[[#This Row],[Secondary  Name]],tblREGASSJune19[[#This Row],[Alloc4FUNC]])","v":"1823920DSR COSTS AMORTIZED102717COMMERCIAL SELF-DIRECT-UTAH-2006OTHER"},1823920,"DSR COSTS AMORTIZED",102717,"COMMERCIAL SELF-DIRECT-UTAH-2006","OTHER",64.919430000000006,{"$f":"IF(OR(tblREGASSJune19[[#This Row],[Alloc]]=\"IDU\",tblREGASSJune19[[#This Row],[Alloc]]=\"OR\",tblREGASSJune19[[#This Row],[Alloc]]=\"UT\",tblREGASSJune19[[#This Row],[Alloc]]=\"WYU\",tblREGASSJune19[[#This Row],[Alloc]]=\"WYP\",tblREGASSJune19[[#This Row],[Alloc]]=\"CA\",tblREGASSJune19[[#This Row],[Alloc]]=\"WA\"),\"SITUS\",tblREGASSJune19[[#This Row],[Alloc]])","v":"OTHER"},{"$f":"INDEX(tblREGASSLookup[FUNC],MATCH(tblREGASSJune19[[#This Row],[Concat]],tblREGASSLookup[Concat],0))","v":"CUST"},{"$f":"IF(tblREGASSJune19[[#This Row],[Total ($000)]]=0,\"NO\",IF(ISNA(tblREGASSJune19[[#This Row],[FUNC]]),\"YES\",IF(_xlfn.ISFORMULA(tblREGASSJune19[[#This Row],[FUNC]]),\"NO\",\"YES\")))","v":"NO"}]
[{"$f":"CONCATENATE(tblREGASSJune19[[#This Row],[Primary Account]],tblREGASSJune19[[#This Row],[Primary Name]],tblREGASSJune19[[#This Row],[Secondary Acct]],tblREGASSJune19[[#This Row],[Secondary  Name]],tblREGASSJune19[[#This Row],[Alloc4FUNC]])","v":"1823920DSR COSTS AMORTIZED102718INDUSTRIAL SELF-DIRECT-UTAH-2006OTHER"},1823920,"DSR COSTS AMORTIZED",102718,"INDUSTRIAL SELF-DIRECT-UTAH-2006","OTHER",121.81515,{"$f":"IF(OR(tblREGASSJune19[[#This Row],[Alloc]]=\"IDU\",tblREGASSJune19[[#This Row],[Alloc]]=\"OR\",tblREGASSJune19[[#This Row],[Alloc]]=\"UT\",tblREGASSJune19[[#This Row],[Alloc]]=\"WYU\",tblREGASSJune19[[#This Row],[Alloc]]=\"WYP\",tblREGASSJune19[[#This Row],[Alloc]]=\"CA\",tblREGASSJune19[[#This Row],[Alloc]]=\"WA\"),\"SITUS\",tblREGASSJune19[[#This Row],[Alloc]])","v":"OTHER"},{"$f":"INDEX(tblREGASSLookup[FUNC],MATCH(tblREGASSJune19[[#This Row],[Concat]],tblREGASSLookup[Concat],0))","v":"CUST"},{"$f":"IF(tblREGASSJune19[[#This Row],[Total ($000)]]=0,\"NO\",IF(ISNA(tblREGASSJune19[[#This Row],[FUNC]]),\"YES\",IF(_xlfn.ISFORMULA(tblREGASSJune19[[#This Row],[FUNC]]),\"NO\",\"YES\")))","v":"NO"}]
[{"$f":"CONCATENATE(tblREGASSJune19[[#This Row],[Primary Account]],tblREGASSJune19[[#This Row],[Primary Name]],tblREGASSJune19[[#This Row],[Secondary Acct]],tblREGASSJune19[[#This Row],[Secondary  Name]],tblREGASSJune19[[#This Row],[Alloc4FUNC]])","v":"1823920DSR COSTS AMORTIZED102719RESIDENTIAL NEW CONSTRUCTION-UTAH-2006OTHER"},1823920,"DSR COSTS AMORTIZED",102719,"RESIDENTIAL NEW CONSTRUCTION-UTAH-2006","OTHER",1848.1562899999999,{"$f":"IF(OR(tblREGASSJune19[[#This Row],[Alloc]]=\"IDU\",tblREGASSJune19[[#This Row],[Alloc]]=\"OR\",tblREGASSJune19[[#This Row],[Alloc]]=\"UT\",tblREGASSJune19[[#This Row],[Alloc]]=\"WYU\",tblREGASSJune19[[#This Row],[Alloc]]=\"WYP\",tblREGASSJune19[[#This Row],[Alloc]]=\"CA\",tblREGASSJune19[[#This Row],[Alloc]]=\"WA\"),\"SITUS\",tblREGASSJune19[[#This Row],[Alloc]])","v":"OTHER"},{"$f":"INDEX(tblREGASSLookup[FUNC],MATCH(tblREGASSJune19[[#This Row],[Concat]],tblREGASSLookup[Concat],0))","v":"CUST"},{"$f":"IF(tblREGASSJune19[[#This Row],[Total ($000)]]=0,\"NO\",IF(ISNA(tblREGASSJune19[[#This Row],[FUNC]]),\"YES\",IF(_xlfn.ISFORMULA(tblREGASSJune19[[#This Row],[FUNC]]),\"NO\",\"YES\")))","v":"NO"}]
[{"$f":"CONCATENATE(tblREGASSJune19[[#This Row],[Primary Account]],tblREGASSJune19[[#This Row],[Primary Name]],tblREGASSJune19[[#This Row],[Secondary Acct]],tblREGASSJune19[[#This Row],[Secondary  Name]],tblREGASSJune19[[#This Row],[Alloc4FUNC]])","v":"1823920DSR COSTS AMORTIZED102720COMMERCIAL FINANSWER EXPRESS-UTAH-2006OTHER"},1823920,"DSR COSTS AMORTIZED",102720,"COMMERCIAL FINANSWER EXPRESS-UTAH-2006","OTHER",2468.75695,{"$f":"IF(OR(tblREGASSJune19[[#This Row],[Alloc]]=\"IDU\",tblREGASSJune19[[#This Row],[Alloc]]=\"OR\",tblREGASSJune19[[#This Row],[Alloc]]=\"UT\",tblREGASSJune19[[#This Row],[Alloc]]=\"WYU\",tblREGASSJune19[[#This Row],[Alloc]]=\"WYP\",tblREGASSJune19[[#This Row],[Alloc]]=\"CA\",tblREGASSJune19[[#This Row],[Alloc]]=\"WA\"),\"SITUS\",tblREGASSJune19[[#This Row],[Alloc]])","v":"OTHER"},{"$f":"INDEX(tblREGASSLookup[FUNC],MATCH(tblREGASSJune19[[#This Row],[Concat]],tblREGASSLookup[Concat],0))","v":"CUST"},{"$f":"IF(tblREGASSJune19[[#This Row],[Total ($000)]]=0,\"NO\",IF(ISNA(tblREGASSJune19[[#This Row],[FUNC]]),\"YES\",IF(_xlfn.ISFORMULA(tblREGASSJune19[[#This Row],[FUNC]]),\"NO\",\"YES\")))","v":"NO"}]
[{"$f":"CONCATENATE(tblREGASSJune19[[#This Row],[Primary Account]],tblREGASSJune19[[#This Row],[Primary Name]],tblREGASSJune19[[#This Row],[Secondary Acct]],tblREGASSJune19[[#This Row],[Secondary  Name]],tblREGASSJune19[[#This Row],[Alloc4FUNC]])","v":"1823920DSR COSTS AMORTIZED102721INDUSTRIAL FINANSWER-UTAH-2006OTHER"},1823920,"DSR COSTS AMORTIZED",102721,"INDUSTRIAL FINANSWER-UTAH-2006","OTHER",535.93276000000003,{"$f":"IF(OR(tblREGASSJune19[[#This Row],[Alloc]]=\"IDU\",tblREGASSJune19[[#This Row],[Alloc]]=\"OR\",tblREGASSJune19[[#This Row],[Alloc]]=\"UT\",tblREGASSJune19[[#This Row],[Alloc]]=\"WYU\",tblREGASSJune19[[#This Row],[Alloc]]=\"WYP\",tblREGASSJune19[[#This Row],[Alloc]]=\"CA\",tblREGASSJune19[[#This Row],[Alloc]]=\"WA\"),\"SITUS\",tblREGASSJune19[[#This Row],[Alloc]])","v":"OTHER"},{"$f":"INDEX(tblREGASSLookup[FUNC],MATCH(tblREGASSJune19[[#This Row],[Concat]],tblREGASSLookup[Concat],0))","v":"CUST"},{"$f":"IF(tblREGASSJune19[[#This Row],[Total ($000)]]=0,\"NO\",IF(ISNA(tblREGASSJune19[[#This Row],[FUNC]]),\"YES\",IF(_xlfn.ISFORMULA(tblREGASSJune19[[#This Row],[FUNC]]),\"NO\",\"YES\")))","v":"NO"}]
[{"$f":"CONCATENATE(tblREGASSJune19[[#This Row],[Primary Account]],tblREGASSJune19[[#This Row],[Primary Name]],tblREGASSJune19[[#This Row],[Secondary Acct]],tblREGASSJune19[[#This Row],[Secondary  Name]],tblREGASSJune19[[#This Row],[Alloc4FUNC]])","v":"1823920DSR COSTS AMORTIZED102722RETROFIT COMMISSIONING PROGRAM -UTAH-200OTHER"},1823920,"DSR COSTS AMORTIZED",102722,"RETROFIT COMMISSIONING PROGRAM -UTAH-200","OTHER",210.95123000000001,{"$f":"IF(OR(tblREGASSJune19[[#This Row],[Alloc]]=\"IDU\",tblREGASSJune19[[#This Row],[Alloc]]=\"OR\",tblREGASSJune19[[#This Row],[Alloc]]=\"UT\",tblREGASSJune19[[#This Row],[Alloc]]=\"WYU\",tblREGASSJune19[[#This Row],[Alloc]]=\"WYP\",tblREGASSJune19[[#This Row],[Alloc]]=\"CA\",tblREGASSJune19[[#This Row],[Alloc]]=\"WA\"),\"SITUS\",tblREGASSJune19[[#This Row],[Alloc]])","v":"OTHER"},{"$f":"INDEX(tblREGASSLookup[FUNC],MATCH(tblREGASSJune19[[#This Row],[Concat]],tblREGASSLookup[Concat],0))","v":"CUST"},{"$f":"IF(tblREGASSJune19[[#This Row],[Total ($000)]]=0,\"NO\",IF(ISNA(tblREGASSJune19[[#This Row],[FUNC]]),\"YES\",IF(_xlfn.ISFORMULA(tblREGASSJune19[[#This Row],[FUNC]]),\"NO\",\"YES\")))","v":"NO"}]
[{"$f":"CONCATENATE(tblREGASSJune19[[#This Row],[Primary Account]],tblREGASSJune19[[#This Row],[Primary Name]],tblREGASSJune19[[#This Row],[Secondary Acct]],tblREGASSJune19[[#This Row],[Secondary  Name]],tblREGASSJune19[[#This Row],[Alloc4FUNC]])","v":"1823920DSR COSTS AMORTIZED102723C&I LIGHTING LOAD CONTROL -UTAH-2006OTHER"},1823920,"DSR COSTS AMORTIZED",102723,"C&I LIGHTING LOAD CONTROL -UTAH-2006","OTHER",7.7117699999999996,{"$f":"IF(OR(tblREGASSJune19[[#This Row],[Alloc]]=\"IDU\",tblREGASSJune19[[#This Row],[Alloc]]=\"OR\",tblREGASSJune19[[#This Row],[Alloc]]=\"UT\",tblREGASSJune19[[#This Row],[Alloc]]=\"WYU\",tblREGASSJune19[[#This Row],[Alloc]]=\"WYP\",tblREGASSJune19[[#This Row],[Alloc]]=\"CA\",tblREGASSJune19[[#This Row],[Alloc]]=\"WA\"),\"SITUS\",tblREGASSJune19[[#This Row],[Alloc]])","v":"OTHER"},{"$f":"INDEX(tblREGASSLookup[FUNC],MATCH(tblREGASSJune19[[#This Row],[Concat]],tblREGASSLookup[Concat],0))","v":"CUST"},{"$f":"IF(tblREGASSJune19[[#This Row],[Total ($000)]]=0,\"NO\",IF(ISNA(tblREGASSJune19[[#This Row],[FUNC]]),\"YES\",IF(_xlfn.ISFORMULA(tblREGASSJune19[[#This Row],[FUNC]]),\"NO\",\"YES\")))","v":"NO"}]
[{"$f":"CONCATENATE(tblREGASSJune19[[#This Row],[Primary Account]],tblREGASSJune19[[#This Row],[Primary Name]],tblREGASSJune19[[#This Row],[Secondary Acct]],tblREGASSJune19[[#This Row],[Secondary  Name]],tblREGASSJune19[[#This Row],[Alloc4FUNC]])","v":"1823920DSR COSTS AMORTIZED102725CALIFORNIA DSM EXPENSE-2006OTHER"},1823920,"DSR COSTS AMORTIZED",102725,"CALIFORNIA DSM EXPENSE-2006","OTHER",1.0000000000000001E-5,{"$f":"IF(OR(tblREGASSJune19[[#This Row],[Alloc]]=\"IDU\",tblREGASSJune19[[#This Row],[Alloc]]=\"OR\",tblREGASSJune19[[#This Row],[Alloc]]=\"UT\",tblREGASSJune19[[#This Row],[Alloc]]=\"WYU\",tblREGASSJune19[[#This Row],[Alloc]]=\"WYP\",tblREGASSJune19[[#This Row],[Alloc]]=\"CA\",tblREGASSJune19[[#This Row],[Alloc]]=\"WA\"),\"SITUS\",tblREGASSJune19[[#This Row],[Alloc]])","v":"OTHER"},{"$f":"INDEX(tblREGASSLookup[FUNC],MATCH(tblREGASSJune19[[#This Row],[Concat]],tblREGASSLookup[Concat],0))","v":"CUST"},{"$f":"IF(tblREGASSJune19[[#This Row],[Total ($000)]]=0,\"NO\",IF(ISNA(tblREGASSJune19[[#This Row],[FUNC]]),\"YES\",IF(_xlfn.ISFORMULA(tblREGASSJune19[[#This Row],[FUNC]]),\"NO\",\"YES\")))","v":"NO"}]
[{"$f":"CONCATENATE(tblREGASSJune19[[#This Row],[Primary Account]],tblREGASSJune19[[#This Row],[Primary Name]],tblREGASSJune19[[#This Row],[Secondary Acct]],tblREGASSJune19[[#This Row],[Secondary  Name]],tblREGASSJune19[[#This Row],[Alloc4FUNC]])","v":"1823920DSR COSTS AMORTIZED102759HOME ENERGY EFF INCENTIVE PROG-UTAH-2006OTHER"},1823920,"DSR COSTS AMORTIZED",102759,"HOME ENERGY EFF INCENTIVE PROG-UTAH-2006","OTHER",240.63041999999999,{"$f":"IF(OR(tblREGASSJune19[[#This Row],[Alloc]]=\"IDU\",tblREGASSJune19[[#This Row],[Alloc]]=\"OR\",tblREGASSJune19[[#This Row],[Alloc]]=\"UT\",tblREGASSJune19[[#This Row],[Alloc]]=\"WYU\",tblREGASSJune19[[#This Row],[Alloc]]=\"WYP\",tblREGASSJune19[[#This Row],[Alloc]]=\"CA\",tblREGASSJune19[[#This Row],[Alloc]]=\"WA\"),\"SITUS\",tblREGASSJune19[[#This Row],[Alloc]])","v":"OTHER"},{"$f":"INDEX(tblREGASSLookup[FUNC],MATCH(tblREGASSJune19[[#This Row],[Concat]],tblREGASSLookup[Concat],0))","v":"CUST"},{"$f":"IF(tblREGASSJune19[[#This Row],[Total ($000)]]=0,\"NO\",IF(ISNA(tblREGASSJune19[[#This Row],[FUNC]]),\"YES\",IF(_xlfn.ISFORMULA(tblREGASSJune19[[#This Row],[FUNC]]),\"NO\",\"YES\")))","v":"NO"}]
[{"$f":"CONCATENATE(tblREGASSJune19[[#This Row],[Primary Account]],tblREGASSJune19[[#This Row],[Primary Name]],tblREGASSJune19[[#This Row],[Secondary Acct]],tblREGASSJune19[[#This Row],[Secondary  Name]],tblREGASSJune19[[#This Row],[Alloc4FUNC]])","v":"1823920DSR COSTS AMORTIZED102760HOME ENERGY EFF INCENTIVE PROG-WA-2006OTHER"},1823920,"DSR COSTS AMORTIZED",102760,"HOME ENERGY EFF INCENTIVE PROG-WA-2006","OTHER",15240.2979,{"$f":"IF(OR(tblREGASSJune19[[#This Row],[Alloc]]=\"IDU\",tblREGASSJune19[[#This Row],[Alloc]]=\"OR\",tblREGASSJune19[[#This Row],[Alloc]]=\"UT\",tblREGASSJune19[[#This Row],[Alloc]]=\"WYU\",tblREGASSJune19[[#This Row],[Alloc]]=\"WYP\",tblREGASSJune19[[#This Row],[Alloc]]=\"CA\",tblREGASSJune19[[#This Row],[Alloc]]=\"WA\"),\"SITUS\",tblREGASSJune19[[#This Row],[Alloc]])","v":"OTHER"},{"$f":"INDEX(tblREGASSLookup[FUNC],MATCH(tblREGASSJune19[[#This Row],[Concat]],tblREGASSLookup[Concat],0))","v":"CUST"},{"$f":"IF(tblREGASSJune19[[#This Row],[Total ($000)]]=0,\"NO\",IF(ISNA(tblREGASSJune19[[#This Row],[FUNC]]),\"YES\",IF(_xlfn.ISFORMULA(tblREGASSJune19[[#This Row],[FUNC]]),\"NO\",\"YES\")))","v":"NO"}]
[{"$f":"CONCATENATE(tblREGASSJune19[[#This Row],[Primary Account]],tblREGASSJune19[[#This Row],[Primary Name]],tblREGASSJune19[[#This Row],[Secondary Acct]],tblREGASSJune19[[#This Row],[Secondary  Name]],tblREGASSJune19[[#This Row],[Alloc4FUNC]])","v":"1823920DSR COSTS AMORTIZED102761HOME ENERGY EFF INCENTIVE PROG-PPL WYOMISITUS"},1823920,"DSR COSTS AMORTIZED",102761,"HOME ENERGY EFF INCENTIVE PROG-PPL WYOMI","WYP",0,{"$f":"IF(OR(tblREGASSJune19[[#This Row],[Alloc]]=\"IDU\",tblREGASSJune19[[#This Row],[Alloc]]=\"OR\",tblREGASSJune19[[#This Row],[Alloc]]=\"UT\",tblREGASSJune19[[#This Row],[Alloc]]=\"WYU\",tblREGASSJune19[[#This Row],[Alloc]]=\"WYP\",tblREGASSJune19[[#This Row],[Alloc]]=\"CA\",tblREGASSJune19[[#This Row],[Alloc]]=\"WA\"),\"SITUS\",tblREGASSJune19[[#This Row],[Alloc]])","v":"SITUS"},{"$f":"INDEX(tblREGASSLookup[FUNC],MATCH(tblREGASSJune19[[#This Row],[Concat]],tblREGASSLookup[Concat],0))","v":{"$error":"#N/A"}},{"$f":"IF(tblREGASSJune19[[#This Row],[Total ($000)]]=0,\"NO\",IF(ISNA(tblREGASSJune19[[#This Row],[FUNC]]),\"YES\",IF(_xlfn.ISFORMULA(tblREGASSJune19[[#This Row],[FUNC]]),\"NO\",\"YES\")))","v":"NO"}]
[{"$f":"CONCATENATE(tblREGASSJune19[[#This Row],[Primary Account]],tblREGASSJune19[[#This Row],[Primary Name]],tblREGASSJune19[[#This Row],[Secondary Acct]],tblREGASSJune19[[#This Row],[Secondary  Name]],tblREGASSJune19[[#This Row],[Alloc4FUNC]])","v":"1823920DSR COSTS AMORTIZED102767DSR COSTS BEING AMORTIZEDOTHER"},1823920,"DSR COSTS AMORTIZED",102767,"DSR COSTS BEING AMORTIZED","OTHER",-44183.016029999999,{"$f":"IF(OR(tblREGASSJune19[[#This Row],[Alloc]]=\"IDU\",tblREGASSJune19[[#This Row],[Alloc]]=\"OR\",tblREGASSJune19[[#This Row],[Alloc]]=\"UT\",tblREGASSJune19[[#This Row],[Alloc]]=\"WYU\",tblREGASSJune19[[#This Row],[Alloc]]=\"WYP\",tblREGASSJune19[[#This Row],[Alloc]]=\"CA\",tblREGASSJune19[[#This Row],[Alloc]]=\"WA\"),\"SITUS\",tblREGASSJune19[[#This Row],[Alloc]])","v":"OTHER"},{"$f":"INDEX(tblREGASSLookup[FUNC],MATCH(tblREGASSJune19[[#This Row],[Concat]],tblREGASSLookup[Concat],0))","v":"CUST"},{"$f":"IF(tblREGASSJune19[[#This Row],[Total ($000)]]=0,\"NO\",IF(ISNA(tblREGASSJune19[[#This Row],[FUNC]]),\"YES\",IF(_xlfn.ISFORMULA(tblREGASSJune19[[#This Row],[FUNC]]),\"NO\",\"YES\")))","v":"NO"}]
[{"$f":"CONCATENATE(tblREGASSJune19[[#This Row],[Primary Account]],tblREGASSJune19[[#This Row],[Primary Name]],tblREGASSJune19[[#This Row],[Secondary Acct]],tblREGASSJune19[[#This Row],[Secondary  Name]],tblREGASSJune19[[#This Row],[Alloc4FUNC]])","v":"1823920DSR COSTS AMORTIZED102788DSR COSTS BEING AMORTIZEDSITUS"},1823920,"DSR COSTS AMORTIZED",102788,"DSR COSTS BEING AMORTIZED","WYP",0,{"$f":"IF(OR(tblREGASSJune19[[#This Row],[Alloc]]=\"IDU\",tblREGASSJune19[[#This Row],[Alloc]]=\"OR\",tblREGASSJune19[[#This Row],[Alloc]]=\"UT\",tblREGASSJune19[[#This Row],[Alloc]]=\"WYU\",tblREGASSJune19[[#This Row],[Alloc]]=\"WYP\",tblREGASSJune19[[#This Row],[Alloc]]=\"CA\",tblREGASSJune19[[#This Row],[Alloc]]=\"WA\"),\"SITUS\",tblREGASSJune19[[#This Row],[Alloc]])","v":"SITUS"},{"$f":"INDEX(tblREGASSLookup[FUNC],MATCH(tblREGASSJune19[[#This Row],[Concat]],tblREGASSLookup[Concat],0))","v":"CUST"},{"$f":"IF(tblREGASSJune19[[#This Row],[Total ($000)]]=0,\"NO\",IF(ISNA(tblREGASSJune19[[#This Row],[FUNC]]),\"YES\",IF(_xlfn.ISFORMULA(tblREGASSJune19[[#This Row],[FUNC]]),\"NO\",\"YES\")))","v":"NO"}]
[{"$f":"CONCATENATE(tblREGASSJune19[[#This Row],[Primary Account]],tblREGASSJune19[[#This Row],[Primary Name]],tblREGASSJune19[[#This Row],[Secondary Acct]],tblREGASSJune19[[#This Row],[Secondary  Name]],tblREGASSJune19[[#This Row],[Alloc4FUNC]])","v":"1823920DSR COSTS AMORTIZED102789DSR COSTS BEING AMORTIZEDSITUS"},1823920,"DSR COSTS AMORTIZED",102789,"DSR COSTS BEING AMORTIZED","WYP",0,{"$f":"IF(OR(tblREGASSJune19[[#This Row],[Alloc]]=\"IDU\",tblREGASSJune19[[#This Row],[Alloc]]=\"OR\",tblREGASSJune19[[#This Row],[Alloc]]=\"UT\",tblREGASSJune19[[#This Row],[Alloc]]=\"WYU\",tblREGASSJune19[[#This Row],[Alloc]]=\"WYP\",tblREGASSJune19[[#This Row],[Alloc]]=\"CA\",tblREGASSJune19[[#This Row],[Alloc]]=\"WA\"),\"SITUS\",tblREGASSJune19[[#This Row],[Alloc]])","v":"SITUS"},{"$f":"INDEX(tblREGASSLookup[FUNC],MATCH(tblREGASSJune19[[#This Row],[Concat]],tblREGASSLookup[Concat],0))","v":{"$error":"#N/A"}},{"$f":"IF(tblREGASSJune19[[#This Row],[Total ($000)]]=0,\"NO\",IF(ISNA(tblREGASSJune19[[#This Row],[FUNC]]),\"YES\",IF(_xlfn.ISFORMULA(tblREGASSJune19[[#This Row],[FUNC]]),\"NO\",\"YES\")))","v":"NO"}]
[{"$f":"CONCATENATE(tblREGASSJune19[[#This Row],[Primary Account]],tblREGASSJune19[[#This Row],[Primary Name]],tblREGASSJune19[[#This Row],[Secondary Acct]],tblREGASSJune19[[#This Row],[Secondary  Name]],tblREGASSJune19[[#This Row],[Alloc4FUNC]])","v":"1823920DSR COSTS AMORTIZED102790DSR COSTS BEING AMORTIZEDSITUS"},1823920,"DSR COSTS AMORTIZED",102790,"DSR COSTS BEING AMORTIZED","WYP",0,{"$f":"IF(OR(tblREGASSJune19[[#This Row],[Alloc]]=\"IDU\",tblREGASSJune19[[#This Row],[Alloc]]=\"OR\",tblREGASSJune19[[#This Row],[Alloc]]=\"UT\",tblREGASSJune19[[#This Row],[Alloc]]=\"WYU\",tblREGASSJune19[[#This Row],[Alloc]]=\"WYP\",tblREGASSJune19[[#This Row],[Alloc]]=\"CA\",tblREGASSJune19[[#This Row],[Alloc]]=\"WA\"),\"SITUS\",tblREGASSJune19[[#This Row],[Alloc]])","v":"SITUS"},{"$f":"INDEX(tblREGASSLookup[FUNC],MATCH(tblREGASSJune19[[#This Row],[Concat]],tblREGASSLookup[Concat],0))","v":{"$error":"#N/A"}},{"$f":"IF(tblREGASSJune19[[#This Row],[Total ($000)]]=0,\"NO\",IF(ISNA(tblREGASSJune19[[#This Row],[FUNC]]),\"YES\",IF(_xlfn.ISFORMULA(tblREGASSJune19[[#This Row],[FUNC]]),\"NO\",\"YES\")))","v":"NO"}]
[{"$f":"CONCATENATE(tblREGASSJune19[[#This Row],[Primary Account]],tblREGASSJune19[[#This Row],[Primary Name]],tblREGASSJune19[[#This Row],[Secondary Acct]],tblREGASSJune19[[#This Row],[Secondary  Name]],tblREGASSJune19[[#This Row],[Alloc4FUNC]])","v":"1823920DSR COSTS AMORTIZED102791DSR COSTS BEING AMORTIZEDSITUS"},1823920,"DSR COSTS AMORTIZED",102791,"DSR COSTS BEING AMORTIZED","WYP",0,{"$f":"IF(OR(tblREGASSJune19[[#This Row],[Alloc]]=\"IDU\",tblREGASSJune19[[#This Row],[Alloc]]=\"OR\",tblREGASSJune19[[#This Row],[Alloc]]=\"UT\",tblREGASSJune19[[#This Row],[Alloc]]=\"WYU\",tblREGASSJune19[[#This Row],[Alloc]]=\"WYP\",tblREGASSJune19[[#This Row],[Alloc]]=\"CA\",tblREGASSJune19[[#This Row],[Alloc]]=\"WA\"),\"SITUS\",tblREGASSJune19[[#This Row],[Alloc]])","v":"SITUS"},{"$f":"INDEX(tblREGASSLookup[FUNC],MATCH(tblREGASSJune19[[#This Row],[Concat]],tblREGASSLookup[Concat],0))","v":{"$error":"#N/A"}},{"$f":"IF(tblREGASSJune19[[#This Row],[Total ($000)]]=0,\"NO\",IF(ISNA(tblREGASSJune19[[#This Row],[FUNC]]),\"YES\",IF(_xlfn.ISFORMULA(tblREGASSJune19[[#This Row],[FUNC]]),\"NO\",\"YES\")))","v":"NO"}]
[{"$f":"CONCATENATE(tblREGASSJune19[[#This Row],[Primary Account]],tblREGASSJune19[[#This Row],[Primary Name]],tblREGASSJune19[[#This Row],[Secondary Acct]],tblREGASSJune19[[#This Row],[Secondary  Name]],tblREGASSJune19[[#This Row],[Alloc4FUNC]])","v":"1823920DSR COSTS AMORTIZED102792DSR COSTS BEING AMORTIZEDSITUS"},1823920,"DSR COSTS AMORTIZED",102792,"DSR COSTS BEING AMORTIZED","WYP",0,{"$f":"IF(OR(tblREGASSJune19[[#This Row],[Alloc]]=\"IDU\",tblREGASSJune19[[#This Row],[Alloc]]=\"OR\",tblREGASSJune19[[#This Row],[Alloc]]=\"UT\",tblREGASSJune19[[#This Row],[Alloc]]=\"WYU\",tblREGASSJune19[[#This Row],[Alloc]]=\"WYP\",tblREGASSJune19[[#This Row],[Alloc]]=\"CA\",tblREGASSJune19[[#This Row],[Alloc]]=\"WA\"),\"SITUS\",tblREGASSJune19[[#This Row],[Alloc]])","v":"SITUS"},{"$f":"INDEX(tblREGASSLookup[FUNC],MATCH(tblREGASSJune19[[#This Row],[Concat]],tblREGASSLookup[Concat],0))","v":{"$error":"#N/A"}},{"$f":"IF(tblREGASSJune19[[#This Row],[Total ($000)]]=0,\"NO\",IF(ISNA(tblREGASSJune19[[#This Row],[FUNC]]),\"YES\",IF(_xlfn.ISFORMULA(tblREGASSJune19[[#This Row],[FUNC]]),\"NO\",\"YES\")))","v":"NO"}]
[{"$f":"CONCATENATE(tblREGASSJune19[[#This Row],[Primary Account]],tblREGASSJune19[[#This Row],[Primary Name]],tblREGASSJune19[[#This Row],[Secondary Acct]],tblREGASSJune19[[#This Row],[Secondary  Name]],tblREGASSJune19[[#This Row],[Alloc4FUNC]])","v":"1823920DSR COSTS AMORTIZED102796DSR COSTS BEING AMORTIZEDOTHER"},1823920,"DSR COSTS AMORTIZED",102796,"DSR COSTS BEING AMORTIZED","OTHER",1.0000000000000001E-5,{"$f":"IF(OR(tblREGASSJune19[[#This Row],[Alloc]]=\"IDU\",tblREGASSJune19[[#This Row],[Alloc]]=\"OR\",tblREGASSJune19[[#This Row],[Alloc]]=\"UT\",tblREGASSJune19[[#This Row],[Alloc]]=\"WYU\",tblREGASSJune19[[#This Row],[Alloc]]=\"WYP\",tblREGASSJune19[[#This Row],[Alloc]]=\"CA\",tblREGASSJune19[[#This Row],[Alloc]]=\"WA\"),\"SITUS\",tblREGASSJune19[[#This Row],[Alloc]])","v":"OTHER"},{"$f":"INDEX(tblREGASSLookup[FUNC],MATCH(tblREGASSJune19[[#This Row],[Concat]],tblREGASSLookup[Concat],0))","v":"CUST"},{"$f":"IF(tblREGASSJune19[[#This Row],[Total ($000)]]=0,\"NO\",IF(ISNA(tblREGASSJune19[[#This Row],[FUNC]]),\"YES\",IF(_xlfn.ISFORMULA(tblREGASSJune19[[#This Row],[FUNC]]),\"NO\",\"YES\")))","v":"NO"}]
[{"$f":"CONCATENATE(tblREGASSJune19[[#This Row],[Primary Account]],tblREGASSJune19[[#This Row],[Primary Name]],tblREGASSJune19[[#This Row],[Secondary Acct]],tblREGASSJune19[[#This Row],[Secondary  Name]],tblREGASSJune19[[#This Row],[Alloc4FUNC]])","v":"1823920DSR COSTS AMORTIZED102798ENERGY FINANSWER - WYOMING PPL - 2007SITUS"},1823920,"DSR COSTS AMORTIZED",102798,"ENERGY FINANSWER - WYOMING PPL - 2007","WYP",0,{"$f":"IF(OR(tblREGASSJune19[[#This Row],[Alloc]]=\"IDU\",tblREGASSJune19[[#This Row],[Alloc]]=\"OR\",tblREGASSJune19[[#This Row],[Alloc]]=\"UT\",tblREGASSJune19[[#This Row],[Alloc]]=\"WYU\",tblREGASSJune19[[#This Row],[Alloc]]=\"WYP\",tblREGASSJune19[[#This Row],[Alloc]]=\"CA\",tblREGASSJune19[[#This Row],[Alloc]]=\"WA\"),\"SITUS\",tblREGASSJune19[[#This Row],[Alloc]])","v":"SITUS"},{"$f":"INDEX(tblREGASSLookup[FUNC],MATCH(tblREGASSJune19[[#This Row],[Concat]],tblREGASSLookup[Concat],0))","v":"CUST"},{"$f":"IF(tblREGASSJune19[[#This Row],[Total ($000)]]=0,\"NO\",IF(ISNA(tblREGASSJune19[[#This Row],[FUNC]]),\"YES\",IF(_xlfn.ISFORMULA(tblREGASSJune19[[#This Row],[FUNC]]),\"NO\",\"YES\")))","v":"NO"}]
[{"$f":"CONCATENATE(tblREGASSJune19[[#This Row],[Primary Account]],tblREGASSJune19[[#This Row],[Primary Name]],tblREGASSJune19[[#This Row],[Secondary Acct]],tblREGASSJune19[[#This Row],[Secondary  Name]],tblREGASSJune19[[#This Row],[Alloc4FUNC]])","v":"1823920DSR COSTS AMORTIZED102799MAJOR CUSTOMER  99SITUS"},1823920,"DSR COSTS AMORTIZED",102799,"MAJOR CUSTOMER  99","WYP",0,{"$f":"IF(OR(tblREGASSJune19[[#This Row],[Alloc]]=\"IDU\",tblREGASSJune19[[#This Row],[Alloc]]=\"OR\",tblREGASSJune19[[#This Row],[Alloc]]=\"UT\",tblREGASSJune19[[#This Row],[Alloc]]=\"WYU\",tblREGASSJune19[[#This Row],[Alloc]]=\"WYP\",tblREGASSJune19[[#This Row],[Alloc]]=\"CA\",tblREGASSJune19[[#This Row],[Alloc]]=\"WA\"),\"SITUS\",tblREGASSJune19[[#This Row],[Alloc]])","v":"SITUS"},{"$f":"INDEX(tblREGASSLookup[FUNC],MATCH(tblREGASSJune19[[#This Row],[Concat]],tblREGASSLookup[Concat],0))","v":"CUST"},{"$f":"IF(tblREGASSJune19[[#This Row],[Total ($000)]]=0,\"NO\",IF(ISNA(tblREGASSJune19[[#This Row],[FUNC]]),\"YES\",IF(_xlfn.ISFORMULA(tblREGASSJune19[[#This Row],[FUNC]]),\"NO\",\"YES\")))","v":"NO"}]
[{"$f":"CONCATENATE(tblREGASSJune19[[#This Row],[Primary Account]],tblREGASSJune19[[#This Row],[Primary Name]],tblREGASSJune19[[#This Row],[Secondary Acct]],tblREGASSJune19[[#This Row],[Secondary  Name]],tblREGASSJune19[[#This Row],[Alloc4FUNC]])","v":"1823920DSR COSTS AMORTIZED102802HOME ENERGY EFF INCENTIVE PRO - PPL WYOMSITUS"},1823920,"DSR COSTS AMORTIZED",102802,"HOME ENERGY EFF INCENTIVE PRO - PPL WYOM","WYP",0,{"$f":"IF(OR(tblREGASSJune19[[#This Row],[Alloc]]=\"IDU\",tblREGASSJune19[[#This Row],[Alloc]]=\"OR\",tblREGASSJune19[[#This Row],[Alloc]]=\"UT\",tblREGASSJune19[[#This Row],[Alloc]]=\"WYU\",tblREGASSJune19[[#This Row],[Alloc]]=\"WYP\",tblREGASSJune19[[#This Row],[Alloc]]=\"CA\",tblREGASSJune19[[#This Row],[Alloc]]=\"WA\"),\"SITUS\",tblREGASSJune19[[#This Row],[Alloc]])","v":"SITUS"},{"$f":"INDEX(tblREGASSLookup[FUNC],MATCH(tblREGASSJune19[[#This Row],[Concat]],tblREGASSLookup[Concat],0))","v":"CUST"},{"$f":"IF(tblREGASSJune19[[#This Row],[Total ($000)]]=0,\"NO\",IF(ISNA(tblREGASSJune19[[#This Row],[FUNC]]),\"YES\",IF(_xlfn.ISFORMULA(tblREGASSJune19[[#This Row],[FUNC]]),\"NO\",\"YES\")))","v":"NO"}]
[{"$f":"CONCATENATE(tblREGASSJune19[[#This Row],[Primary Account]],tblREGASSJune19[[#This Row],[Primary Name]],tblREGASSJune19[[#This Row],[Secondary Acct]],tblREGASSJune19[[#This Row],[Secondary  Name]],tblREGASSJune19[[#This Row],[Alloc4FUNC]])","v":"1823920DSR COSTS AMORTIZED102803LOW-INCOME WEATHERIZATION - WYOMING PPL-SITUS"},1823920,"DSR COSTS AMORTIZED",102803,"LOW-INCOME WEATHERIZATION - WYOMING PPL-","WYP",0,{"$f":"IF(OR(tblREGASSJune19[[#This Row],[Alloc]]=\"IDU\",tblREGASSJune19[[#This Row],[Alloc]]=\"OR\",tblREGASSJune19[[#This Row],[Alloc]]=\"UT\",tblREGASSJune19[[#This Row],[Alloc]]=\"WYU\",tblREGASSJune19[[#This Row],[Alloc]]=\"WYP\",tblREGASSJune19[[#This Row],[Alloc]]=\"CA\",tblREGASSJune19[[#This Row],[Alloc]]=\"WA\"),\"SITUS\",tblREGASSJune19[[#This Row],[Alloc]])","v":"SITUS"},{"$f":"INDEX(tblREGASSLookup[FUNC],MATCH(tblREGASSJune19[[#This Row],[Concat]],tblREGASSLookup[Concat],0))","v":"CUST"},{"$f":"IF(tblREGASSJune19[[#This Row],[Total ($000)]]=0,\"NO\",IF(ISNA(tblREGASSJune19[[#This Row],[FUNC]]),\"YES\",IF(_xlfn.ISFORMULA(tblREGASSJune19[[#This Row],[FUNC]]),\"NO\",\"YES\")))","v":"NO"}]
[{"$f":"CONCATENATE(tblREGASSJune19[[#This Row],[Primary Account]],tblREGASSJune19[[#This Row],[Primary Name]],tblREGASSJune19[[#This Row],[Secondary Acct]],tblREGASSJune19[[#This Row],[Secondary  Name]],tblREGASSJune19[[#This Row],[Alloc4FUNC]])","v":"1823920DSR COSTS AMORTIZED102804COMMERCIAL FINANSWER EXPRESS - WY - 2007SITUS"},1823920,"DSR COSTS AMORTIZED",102804,"COMMERCIAL FINANSWER EXPRESS - WY - 2007","WYP",0,{"$f":"IF(OR(tblREGASSJune19[[#This Row],[Alloc]]=\"IDU\",tblREGASSJune19[[#This Row],[Alloc]]=\"OR\",tblREGASSJune19[[#This Row],[Alloc]]=\"UT\",tblREGASSJune19[[#This Row],[Alloc]]=\"WYU\",tblREGASSJune19[[#This Row],[Alloc]]=\"WYP\",tblREGASSJune19[[#This Row],[Alloc]]=\"CA\",tblREGASSJune19[[#This Row],[Alloc]]=\"WA\"),\"SITUS\",tblREGASSJune19[[#This Row],[Alloc]])","v":"SITUS"},{"$f":"INDEX(tblREGASSLookup[FUNC],MATCH(tblREGASSJune19[[#This Row],[Concat]],tblREGASSLookup[Concat],0))","v":"CUST"},{"$f":"IF(tblREGASSJune19[[#This Row],[Total ($000)]]=0,\"NO\",IF(ISNA(tblREGASSJune19[[#This Row],[FUNC]]),\"YES\",IF(_xlfn.ISFORMULA(tblREGASSJune19[[#This Row],[FUNC]]),\"NO\",\"YES\")))","v":"NO"}]
[{"$f":"CONCATENATE(tblREGASSJune19[[#This Row],[Primary Account]],tblREGASSJune19[[#This Row],[Primary Name]],tblREGASSJune19[[#This Row],[Secondary Acct]],tblREGASSJune19[[#This Row],[Secondary  Name]],tblREGASSJune19[[#This Row],[Alloc4FUNC]])","v":"1823920DSR COSTS AMORTIZED102805INDUSTRIAL FINANSWER EXPRESS - WY - 2007SITUS"},1823920,"DSR COSTS AMORTIZED",102805,"INDUSTRIAL FINANSWER EXPRESS - WY - 2007","WYP",0,{"$f":"IF(OR(tblREGASSJune19[[#This Row],[Alloc]]=\"IDU\",tblREGASSJune19[[#This Row],[Alloc]]=\"OR\",tblREGASSJune19[[#This Row],[Alloc]]=\"UT\",tblREGASSJune19[[#This Row],[Alloc]]=\"WYU\",tblREGASSJune19[[#This Row],[Alloc]]=\"WYP\",tblREGASSJune19[[#This Row],[Alloc]]=\"CA\",tblREGASSJune19[[#This Row],[Alloc]]=\"WA\"),\"SITUS\",tblREGASSJune19[[#This Row],[Alloc]])","v":"SITUS"},{"$f":"INDEX(tblREGASSLookup[FUNC],MATCH(tblREGASSJune19[[#This Row],[Concat]],tblREGASSLookup[Concat],0))","v":"CUST"},{"$f":"IF(tblREGASSJune19[[#This Row],[Total ($000)]]=0,\"NO\",IF(ISNA(tblREGASSJune19[[#This Row],[FUNC]]),\"YES\",IF(_xlfn.ISFORMULA(tblREGASSJune19[[#This Row],[FUNC]]),\"NO\",\"YES\")))","v":"NO"}]
[{"$f":"CONCATENATE(tblREGASSJune19[[#This Row],[Primary Account]],tblREGASSJune19[[#This Row],[Primary Name]],tblREGASSJune19[[#This Row],[Secondary Acct]],tblREGASSJune19[[#This Row],[Secondary  Name]],tblREGASSJune19[[#This Row],[Alloc4FUNC]])","v":"1823920DSR COSTS AMORTIZED102806SELF DIRECT - COMMERCIAL - WY - 2007SITUS"},1823920,"DSR COSTS AMORTIZED",102806,"SELF DIRECT - COMMERCIAL - WY - 2007","WYP",0,{"$f":"IF(OR(tblREGASSJune19[[#This Row],[Alloc]]=\"IDU\",tblREGASSJune19[[#This Row],[Alloc]]=\"OR\",tblREGASSJune19[[#This Row],[Alloc]]=\"UT\",tblREGASSJune19[[#This Row],[Alloc]]=\"WYU\",tblREGASSJune19[[#This Row],[Alloc]]=\"WYP\",tblREGASSJune19[[#This Row],[Alloc]]=\"CA\",tblREGASSJune19[[#This Row],[Alloc]]=\"WA\"),\"SITUS\",tblREGASSJune19[[#This Row],[Alloc]])","v":"SITUS"},{"$f":"INDEX(tblREGASSLookup[FUNC],MATCH(tblREGASSJune19[[#This Row],[Concat]],tblREGASSLookup[Concat],0))","v":"CUST"},{"$f":"IF(tblREGASSJune19[[#This Row],[Total ($000)]]=0,\"NO\",IF(ISNA(tblREGASSJune19[[#This Row],[FUNC]]),\"YES\",IF(_xlfn.ISFORMULA(tblREGASSJune19[[#This Row],[FUNC]]),\"NO\",\"YES\")))","v":"NO"}]
[{"$f":"CONCATENATE(tblREGASSJune19[[#This Row],[Primary Account]],tblREGASSJune19[[#This Row],[Primary Name]],tblREGASSJune19[[#This Row],[Secondary Acct]],tblREGASSJune19[[#This Row],[Secondary  Name]],tblREGASSJune19[[#This Row],[Alloc4FUNC]])","v":"1823920DSR COSTS AMORTIZED102807SELF DIRECT - INDUSTRIAL - WY - 2007SITUS"},1823920,"DSR COSTS AMORTIZED",102807,"SELF DIRECT - INDUSTRIAL - WY - 2007","WYP",0,{"$f":"IF(OR(tblREGASSJune19[[#This Row],[Alloc]]=\"IDU\",tblREGASSJune19[[#This Row],[Alloc]]=\"OR\",tblREGASSJune19[[#This Row],[Alloc]]=\"UT\",tblREGASSJune19[[#This Row],[Alloc]]=\"WYU\",tblREGASSJune19[[#This Row],[Alloc]]=\"WYP\",tblREGASSJune19[[#This Row],[Alloc]]=\"CA\",tblREGASSJune19[[#This Row],[Alloc]]=\"WA\"),\"SITUS\",tblREGASSJune19[[#This Row],[Alloc]])","v":"SITUS"},{"$f":"INDEX(tblREGASSLookup[FUNC],MATCH(tblREGASSJune19[[#This Row],[Concat]],tblREGASSLookup[Concat],0))","v":"CUST"},{"$f":"IF(tblREGASSJune19[[#This Row],[Total ($000)]]=0,\"NO\",IF(ISNA(tblREGASSJune19[[#This Row],[FUNC]]),\"YES\",IF(_xlfn.ISFORMULA(tblREGASSJune19[[#This Row],[FUNC]]),\"NO\",\"YES\")))","v":"NO"}]
[{"$f":"CONCATENATE(tblREGASSJune19[[#This Row],[Primary Account]],tblREGASSJune19[[#This Row],[Primary Name]],tblREGASSJune19[[#This Row],[Secondary Acct]],tblREGASSJune19[[#This Row],[Secondary  Name]],tblREGASSJune19[[#This Row],[Alloc4FUNC]])","v":"1823920DSR COSTS AMORTIZED102819A/C LOAD CONTROL - RESIDENTIAL/UTAH - 20OTHER"},1823920,"DSR COSTS AMORTIZED",102819,"A/C LOAD CONTROL - RESIDENTIAL/UTAH - 20","OTHER",5982.4867400000003,{"$f":"IF(OR(tblREGASSJune19[[#This Row],[Alloc]]=\"IDU\",tblREGASSJune19[[#This Row],[Alloc]]=\"OR\",tblREGASSJune19[[#This Row],[Alloc]]=\"UT\",tblREGASSJune19[[#This Row],[Alloc]]=\"WYU\",tblREGASSJune19[[#This Row],[Alloc]]=\"WYP\",tblREGASSJune19[[#This Row],[Alloc]]=\"CA\",tblREGASSJune19[[#This Row],[Alloc]]=\"WA\"),\"SITUS\",tblREGASSJune19[[#This Row],[Alloc]])","v":"OTHER"},{"$f":"INDEX(tblREGASSLookup[FUNC],MATCH(tblREGASSJune19[[#This Row],[Concat]],tblREGASSLookup[Concat],0))","v":"CUST"},{"$f":"IF(tblREGASSJune19[[#This Row],[Total ($000)]]=0,\"NO\",IF(ISNA(tblREGASSJune19[[#This Row],[FUNC]]),\"YES\",IF(_xlfn.ISFORMULA(tblREGASSJune19[[#This Row],[FUNC]]),\"NO\",\"YES\")))","v":"NO"}]
[{"$f":"CONCATENATE(tblREGASSJune19[[#This Row],[Primary Account]],tblREGASSJune19[[#This Row],[Primary Name]],tblREGASSJune19[[#This Row],[Secondary Acct]],tblREGASSJune19[[#This Row],[Secondary  Name]],tblREGASSJune19[[#This Row],[Alloc4FUNC]])","v":"1823920DSR COSTS AMORTIZED102820AIR CONDITIONING - UTAH - 2007OTHER"},1823920,"DSR COSTS AMORTIZED",102820,"AIR CONDITIONING - UTAH - 2007","OTHER",882.56244000000004,{"$f":"IF(OR(tblREGASSJune19[[#This Row],[Alloc]]=\"IDU\",tblREGASSJune19[[#This Row],[Alloc]]=\"OR\",tblREGASSJune19[[#This Row],[Alloc]]=\"UT\",tblREGASSJune19[[#This Row],[Alloc]]=\"WYU\",tblREGASSJune19[[#This Row],[Alloc]]=\"WYP\",tblREGASSJune19[[#This Row],[Alloc]]=\"CA\",tblREGASSJune19[[#This Row],[Alloc]]=\"WA\"),\"SITUS\",tblREGASSJune19[[#This Row],[Alloc]])","v":"OTHER"},{"$f":"INDEX(tblREGASSLookup[FUNC],MATCH(tblREGASSJune19[[#This Row],[Concat]],tblREGASSLookup[Concat],0))","v":"CUST"},{"$f":"IF(tblREGASSJune19[[#This Row],[Total ($000)]]=0,\"NO\",IF(ISNA(tblREGASSJune19[[#This Row],[FUNC]]),\"YES\",IF(_xlfn.ISFORMULA(tblREGASSJune19[[#This Row],[FUNC]]),\"NO\",\"YES\")))","v":"NO"}]
[{"$f":"CONCATENATE(tblREGASSJune19[[#This Row],[Primary Account]],tblREGASSJune19[[#This Row],[Primary Name]],tblREGASSJune19[[#This Row],[Secondary Acct]],tblREGASSJune19[[#This Row],[Secondary  Name]],tblREGASSJune19[[#This Row],[Alloc4FUNC]])","v":"1823920DSR COSTS AMORTIZED102821ENERGY FINANSWER - UTAH - 2007OTHER"},1823920,"DSR COSTS AMORTIZED",102821,"ENERGY FINANSWER - UTAH - 2007","OTHER",1952.2843399999999,{"$f":"IF(OR(tblREGASSJune19[[#This Row],[Alloc]]=\"IDU\",tblREGASSJune19[[#This Row],[Alloc]]=\"OR\",tblREGASSJune19[[#This Row],[Alloc]]=\"UT\",tblREGASSJune19[[#This Row],[Alloc]]=\"WYU\",tblREGASSJune19[[#This Row],[Alloc]]=\"WYP\",tblREGASSJune19[[#This Row],[Alloc]]=\"CA\",tblREGASSJune19[[#This Row],[Alloc]]=\"WA\"),\"SITUS\",tblREGASSJune19[[#This Row],[Alloc]])","v":"OTHER"},{"$f":"INDEX(tblREGASSLookup[FUNC],MATCH(tblREGASSJune19[[#This Row],[Concat]],tblREGASSLookup[Concat],0))","v":"CUST"},{"$f":"IF(tblREGASSJune19[[#This Row],[Total ($000)]]=0,\"NO\",IF(ISNA(tblREGASSJune19[[#This Row],[FUNC]]),\"YES\",IF(_xlfn.ISFORMULA(tblREGASSJune19[[#This Row],[FUNC]]),\"NO\",\"YES\")))","v":"NO"}]
[{"$f":"CONCATENATE(tblREGASSJune19[[#This Row],[Primary Account]],tblREGASSJune19[[#This Row],[Primary Name]],tblREGASSJune19[[#This Row],[Secondary Acct]],tblREGASSJune19[[#This Row],[Secondary  Name]],tblREGASSJune19[[#This Row],[Alloc4FUNC]])","v":"1823920DSR COSTS AMORTIZED102822INDUSTRIAL FINANSWER - UTAH - 2007OTHER"},1823920,"DSR COSTS AMORTIZED",102822,"INDUSTRIAL FINANSWER - UTAH - 2007","OTHER",3369.3951299999999,{"$f":"IF(OR(tblREGASSJune19[[#This Row],[Alloc]]=\"IDU\",tblREGASSJune19[[#This Row],[Alloc]]=\"OR\",tblREGASSJune19[[#This Row],[Alloc]]=\"UT\",tblREGASSJune19[[#This Row],[Alloc]]=\"WYU\",tblREGASSJune19[[#This Row],[Alloc]]=\"WYP\",tblREGASSJune19[[#This Row],[Alloc]]=\"CA\",tblREGASSJune19[[#This Row],[Alloc]]=\"WA\"),\"SITUS\",tblREGASSJune19[[#This Row],[Alloc]])","v":"OTHER"},{"$f":"INDEX(tblREGASSLookup[FUNC],MATCH(tblREGASSJune19[[#This Row],[Concat]],tblREGASSLookup[Concat],0))","v":"CUST"},{"$f":"IF(tblREGASSJune19[[#This Row],[Total ($000)]]=0,\"NO\",IF(ISNA(tblREGASSJune19[[#This Row],[FUNC]]),\"YES\",IF(_xlfn.ISFORMULA(tblREGASSJune19[[#This Row],[FUNC]]),\"NO\",\"YES\")))","v":"NO"}]
[{"$f":"CONCATENATE(tblREGASSJune19[[#This Row],[Primary Account]],tblREGASSJune19[[#This Row],[Primary Name]],tblREGASSJune19[[#This Row],[Secondary Acct]],tblREGASSJune19[[#This Row],[Secondary  Name]],tblREGASSJune19[[#This Row],[Alloc4FUNC]])","v":"1823920DSR COSTS AMORTIZED102823LOW INCOME - UTAH - 2007OTHER"},1823920,"DSR COSTS AMORTIZED",102823,"LOW INCOME - UTAH - 2007","OTHER",117.12991,{"$f":"IF(OR(tblREGASSJune19[[#This Row],[Alloc]]=\"IDU\",tblREGASSJune19[[#This Row],[Alloc]]=\"OR\",tblREGASSJune19[[#This Row],[Alloc]]=\"UT\",tblREGASSJune19[[#This Row],[Alloc]]=\"WYU\",tblREGASSJune19[[#This Row],[Alloc]]=\"WYP\",tblREGASSJune19[[#This Row],[Alloc]]=\"CA\",tblREGASSJune19[[#This Row],[Alloc]]=\"WA\"),\"SITUS\",tblREGASSJune19[[#This Row],[Alloc]])","v":"OTHER"},{"$f":"INDEX(tblREGASSLookup[FUNC],MATCH(tblREGASSJune19[[#This Row],[Concat]],tblREGASSLookup[Concat],0))","v":"CUST"},{"$f":"IF(tblREGASSJune19[[#This Row],[Total ($000)]]=0,\"NO\",IF(ISNA(tblREGASSJune19[[#This Row],[FUNC]]),\"YES\",IF(_xlfn.ISFORMULA(tblREGASSJune19[[#This Row],[FUNC]]),\"NO\",\"YES\")))","v":"NO"}]
[{"$f":"CONCATENATE(tblREGASSJune19[[#This Row],[Primary Account]],tblREGASSJune19[[#This Row],[Primary Name]],tblREGASSJune19[[#This Row],[Secondary Acct]],tblREGASSJune19[[#This Row],[Secondary  Name]],tblREGASSJune19[[#This Row],[Alloc4FUNC]])","v":"1823920DSR COSTS AMORTIZED102824POWER FORWARD - UTAH - 2007OTHER"},1823920,"DSR COSTS AMORTIZED",102824,"POWER FORWARD - UTAH - 2007","OTHER",50,{"$f":"IF(OR(tblREGASSJune19[[#This Row],[Alloc]]=\"IDU\",tblREGASSJune19[[#This Row],[Alloc]]=\"OR\",tblREGASSJune19[[#This Row],[Alloc]]=\"UT\",tblREGASSJune19[[#This Row],[Alloc]]=\"WYU\",tblREGASSJune19[[#This Row],[Alloc]]=\"WYP\",tblREGASSJune19[[#This Row],[Alloc]]=\"CA\",tblREGASSJune19[[#This Row],[Alloc]]=\"WA\"),\"SITUS\",tblREGASSJune19[[#This Row],[Alloc]])","v":"OTHER"},{"$f":"INDEX(tblREGASSLookup[FUNC],MATCH(tblREGASSJune19[[#This Row],[Concat]],tblREGASSLookup[Concat],0))","v":"CUST"},{"$f":"IF(tblREGASSJune19[[#This Row],[Total ($000)]]=0,\"NO\",IF(ISNA(tblREGASSJune19[[#This Row],[FUNC]]),\"YES\",IF(_xlfn.ISFORMULA(tblREGASSJune19[[#This Row],[FUNC]]),\"NO\",\"YES\")))","v":"NO"}]
[{"$f":"CONCATENATE(tblREGASSJune19[[#This Row],[Primary Account]],tblREGASSJune19[[#This Row],[Primary Name]],tblREGASSJune19[[#This Row],[Secondary Acct]],tblREGASSJune19[[#This Row],[Secondary  Name]],tblREGASSJune19[[#This Row],[Alloc4FUNC]])","v":"1823920DSR COSTS AMORTIZED102825REFRIGERATOR RECYCLING PGM- UTAH - 2007OTHER"},1823920,"DSR COSTS AMORTIZED",102825,"REFRIGERATOR RECYCLING PGM- UTAH - 2007","OTHER",3398.6216399999998,{"$f":"IF(OR(tblREGASSJune19[[#This Row],[Alloc]]=\"IDU\",tblREGASSJune19[[#This Row],[Alloc]]=\"OR\",tblREGASSJune19[[#This Row],[Alloc]]=\"UT\",tblREGASSJune19[[#This Row],[Alloc]]=\"WYU\",tblREGASSJune19[[#This Row],[Alloc]]=\"WYP\",tblREGASSJune19[[#This Row],[Alloc]]=\"CA\",tblREGASSJune19[[#This Row],[Alloc]]=\"WA\"),\"SITUS\",tblREGASSJune19[[#This Row],[Alloc]])","v":"OTHER"},{"$f":"INDEX(tblREGASSLookup[FUNC],MATCH(tblREGASSJune19[[#This Row],[Concat]],tblREGASSLookup[Concat],0))","v":"CUST"},{"$f":"IF(tblREGASSJune19[[#This Row],[Total ($000)]]=0,\"NO\",IF(ISNA(tblREGASSJune19[[#This Row],[FUNC]]),\"YES\",IF(_xlfn.ISFORMULA(tblREGASSJune19[[#This Row],[FUNC]]),\"NO\",\"YES\")))","v":"NO"}]
[{"$f":"CONCATENATE(tblREGASSJune19[[#This Row],[Primary Account]],tblREGASSJune19[[#This Row],[Primary Name]],tblREGASSJune19[[#This Row],[Secondary Acct]],tblREGASSJune19[[#This Row],[Secondary  Name]],tblREGASSJune19[[#This Row],[Alloc4FUNC]])","v":"1823920DSR COSTS AMORTIZED102826COMMERCIAL SELF-DIRECT - UTAH - 2007OTHER"},1823920,"DSR COSTS AMORTIZED",102826,"COMMERCIAL SELF-DIRECT - UTAH - 2007","OTHER",61.213540000000002,{"$f":"IF(OR(tblREGASSJune19[[#This Row],[Alloc]]=\"IDU\",tblREGASSJune19[[#This Row],[Alloc]]=\"OR\",tblREGASSJune19[[#This Row],[Alloc]]=\"UT\",tblREGASSJune19[[#This Row],[Alloc]]=\"WYU\",tblREGASSJune19[[#This Row],[Alloc]]=\"WYP\",tblREGASSJune19[[#This Row],[Alloc]]=\"CA\",tblREGASSJune19[[#This Row],[Alloc]]=\"WA\"),\"SITUS\",tblREGASSJune19[[#This Row],[Alloc]])","v":"OTHER"},{"$f":"INDEX(tblREGASSLookup[FUNC],MATCH(tblREGASSJune19[[#This Row],[Concat]],tblREGASSLookup[Concat],0))","v":"CUST"},{"$f":"IF(tblREGASSJune19[[#This Row],[Total ($000)]]=0,\"NO\",IF(ISNA(tblREGASSJune19[[#This Row],[FUNC]]),\"YES\",IF(_xlfn.ISFORMULA(tblREGASSJune19[[#This Row],[FUNC]]),\"NO\",\"YES\")))","v":"NO"}]
[{"$f":"CONCATENATE(tblREGASSJune19[[#This Row],[Primary Account]],tblREGASSJune19[[#This Row],[Primary Name]],tblREGASSJune19[[#This Row],[Secondary Acct]],tblREGASSJune19[[#This Row],[Secondary  Name]],tblREGASSJune19[[#This Row],[Alloc4FUNC]])","v":"1823920DSR COSTS AMORTIZED102827INDUSTRIAL SELF-DIRECT - UTAH - 2007OTHER"},1823920,"DSR COSTS AMORTIZED",102827,"INDUSTRIAL SELF-DIRECT - UTAH - 2007","OTHER",107.61076,{"$f":"IF(OR(tblREGASSJune19[[#This Row],[Alloc]]=\"IDU\",tblREGASSJune19[[#This Row],[Alloc]]=\"OR\",tblREGASSJune19[[#This Row],[Alloc]]=\"UT\",tblREGASSJune19[[#This Row],[Alloc]]=\"WYU\",tblREGASSJune19[[#This Row],[Alloc]]=\"WYP\",tblREGASSJune19[[#This Row],[Alloc]]=\"CA\",tblREGASSJune19[[#This Row],[Alloc]]=\"WA\"),\"SITUS\",tblREGASSJune19[[#This Row],[Alloc]])","v":"OTHER"},{"$f":"INDEX(tblREGASSLookup[FUNC],MATCH(tblREGASSJune19[[#This Row],[Concat]],tblREGASSLookup[Concat],0))","v":"CUST"},{"$f":"IF(tblREGASSJune19[[#This Row],[Total ($000)]]=0,\"NO\",IF(ISNA(tblREGASSJune19[[#This Row],[FUNC]]),\"YES\",IF(_xlfn.ISFORMULA(tblREGASSJune19[[#This Row],[FUNC]]),\"NO\",\"YES\")))","v":"NO"}]
[{"$f":"CONCATENATE(tblREGASSJune19[[#This Row],[Primary Account]],tblREGASSJune19[[#This Row],[Primary Name]],tblREGASSJune19[[#This Row],[Secondary Acct]],tblREGASSJune19[[#This Row],[Secondary  Name]],tblREGASSJune19[[#This Row],[Alloc4FUNC]])","v":"1823920DSR COSTS AMORTIZED102828RESIDENTIAL NEW CONSTRUCTION - UTAH - 20OTHER"},1823920,"DSR COSTS AMORTIZED",102828,"RESIDENTIAL NEW CONSTRUCTION - UTAH - 20","OTHER",1936.3963799999999,{"$f":"IF(OR(tblREGASSJune19[[#This Row],[Alloc]]=\"IDU\",tblREGASSJune19[[#This Row],[Alloc]]=\"OR\",tblREGASSJune19[[#This Row],[Alloc]]=\"UT\",tblREGASSJune19[[#This Row],[Alloc]]=\"WYU\",tblREGASSJune19[[#This Row],[Alloc]]=\"WYP\",tblREGASSJune19[[#This Row],[Alloc]]=\"CA\",tblREGASSJune19[[#This Row],[Alloc]]=\"WA\"),\"SITUS\",tblREGASSJune19[[#This Row],[Alloc]])","v":"OTHER"},{"$f":"INDEX(tblREGASSLookup[FUNC],MATCH(tblREGASSJune19[[#This Row],[Concat]],tblREGASSLookup[Concat],0))","v":"CUST"},{"$f":"IF(tblREGASSJune19[[#This Row],[Total ($000)]]=0,\"NO\",IF(ISNA(tblREGASSJune19[[#This Row],[FUNC]]),\"YES\",IF(_xlfn.ISFORMULA(tblREGASSJune19[[#This Row],[FUNC]]),\"NO\",\"YES\")))","v":"NO"}]
[{"$f":"CONCATENATE(tblREGASSJune19[[#This Row],[Primary Account]],tblREGASSJune19[[#This Row],[Primary Name]],tblREGASSJune19[[#This Row],[Secondary Acct]],tblREGASSJune19[[#This Row],[Secondary  Name]],tblREGASSJune19[[#This Row],[Alloc4FUNC]])","v":"1823920DSR COSTS AMORTIZED102829COMMERCIAL FINANSWER EXPRESS - UTAH - 20OTHER"},1823920,"DSR COSTS AMORTIZED",102829,"COMMERCIAL FINANSWER EXPRESS - UTAH - 20","OTHER",3276.6373699999999,{"$f":"IF(OR(tblREGASSJune19[[#This Row],[Alloc]]=\"IDU\",tblREGASSJune19[[#This Row],[Alloc]]=\"OR\",tblREGASSJune19[[#This Row],[Alloc]]=\"UT\",tblREGASSJune19[[#This Row],[Alloc]]=\"WYU\",tblREGASSJune19[[#This Row],[Alloc]]=\"WYP\",tblREGASSJune19[[#This Row],[Alloc]]=\"CA\",tblREGASSJune19[[#This Row],[Alloc]]=\"WA\"),\"SITUS\",tblREGASSJune19[[#This Row],[Alloc]])","v":"OTHER"},{"$f":"INDEX(tblREGASSLookup[FUNC],MATCH(tblREGASSJune19[[#This Row],[Concat]],tblREGASSLookup[Concat],0))","v":"CUST"},{"$f":"IF(tblREGASSJune19[[#This Row],[Total ($000)]]=0,\"NO\",IF(ISNA(tblREGASSJune19[[#This Row],[FUNC]]),\"YES\",IF(_xlfn.ISFORMULA(tblREGASSJune19[[#This Row],[FUNC]]),\"NO\",\"YES\")))","v":"NO"}]
[{"$f":"CONCATENATE(tblREGASSJune19[[#This Row],[Primary Account]],tblREGASSJune19[[#This Row],[Primary Name]],tblREGASSJune19[[#This Row],[Secondary Acct]],tblREGASSJune19[[#This Row],[Secondary  Name]],tblREGASSJune19[[#This Row],[Alloc4FUNC]])","v":"1823920DSR COSTS AMORTIZED102830INDUSTRIAL FINANSWER EXPRESS - UTAH - 20OTHER"},1823920,"DSR COSTS AMORTIZED",102830,"INDUSTRIAL FINANSWER EXPRESS - UTAH - 20","OTHER",967.89549999999997,{"$f":"IF(OR(tblREGASSJune19[[#This Row],[Alloc]]=\"IDU\",tblREGASSJune19[[#This Row],[Alloc]]=\"OR\",tblREGASSJune19[[#This Row],[Alloc]]=\"UT\",tblREGASSJune19[[#This Row],[Alloc]]=\"WYU\",tblREGASSJune19[[#This Row],[Alloc]]=\"WYP\",tblREGASSJune19[[#This Row],[Alloc]]=\"CA\",tblREGASSJune19[[#This Row],[Alloc]]=\"WA\"),\"SITUS\",tblREGASSJune19[[#This Row],[Alloc]])","v":"OTHER"},{"$f":"INDEX(tblREGASSLookup[FUNC],MATCH(tblREGASSJune19[[#This Row],[Concat]],tblREGASSLookup[Concat],0))","v":"CUST"},{"$f":"IF(tblREGASSJune19[[#This Row],[Total ($000)]]=0,\"NO\",IF(ISNA(tblREGASSJune19[[#This Row],[FUNC]]),\"YES\",IF(_xlfn.ISFORMULA(tblREGASSJune19[[#This Row],[FUNC]]),\"NO\",\"YES\")))","v":"NO"}]
[{"$f":"CONCATENATE(tblREGASSJune19[[#This Row],[Primary Account]],tblREGASSJune19[[#This Row],[Primary Name]],tblREGASSJune19[[#This Row],[Secondary Acct]],tblREGASSJune19[[#This Row],[Secondary  Name]],tblREGASSJune19[[#This Row],[Alloc4FUNC]])","v":"1823920DSR COSTS AMORTIZED102831RETROFIT COMMISSIONING PROGRAM - UTAH -OTHER"},1823920,"DSR COSTS AMORTIZED",102831,"RETROFIT COMMISSIONING PROGRAM - UTAH -","OTHER",187.28456,{"$f":"IF(OR(tblREGASSJune19[[#This Row],[Alloc]]=\"IDU\",tblREGASSJune19[[#This Row],[Alloc]]=\"OR\",tblREGASSJune19[[#This Row],[Alloc]]=\"UT\",tblREGASSJune19[[#This Row],[Alloc]]=\"WYU\",tblREGASSJune19[[#This Row],[Alloc]]=\"WYP\",tblREGASSJune19[[#This Row],[Alloc]]=\"CA\",tblREGASSJune19[[#This Row],[Alloc]]=\"WA\"),\"SITUS\",tblREGASSJune19[[#This Row],[Alloc]])","v":"OTHER"},{"$f":"INDEX(tblREGASSLookup[FUNC],MATCH(tblREGASSJune19[[#This Row],[Concat]],tblREGASSLookup[Concat],0))","v":"CUST"},{"$f":"IF(tblREGASSJune19[[#This Row],[Total ($000)]]=0,\"NO\",IF(ISNA(tblREGASSJune19[[#This Row],[FUNC]]),\"YES\",IF(_xlfn.ISFORMULA(tblREGASSJune19[[#This Row],[FUNC]]),\"NO\",\"YES\")))","v":"NO"}]
[{"$f":"CONCATENATE(tblREGASSJune19[[#This Row],[Primary Account]],tblREGASSJune19[[#This Row],[Primary Name]],tblREGASSJune19[[#This Row],[Secondary Acct]],tblREGASSJune19[[#This Row],[Secondary  Name]],tblREGASSJune19[[#This Row],[Alloc4FUNC]])","v":"1823920DSR COSTS AMORTIZED102833IRRIGATION LOAD CONTROL  - UTAH - 2007OTHER"},1823920,"DSR COSTS AMORTIZED",102833,"IRRIGATION LOAD CONTROL  - UTAH - 2007","OTHER",276.50463999999999,{"$f":"IF(OR(tblREGASSJune19[[#This Row],[Alloc]]=\"IDU\",tblREGASSJune19[[#This Row],[Alloc]]=\"OR\",tblREGASSJune19[[#This Row],[Alloc]]=\"UT\",tblREGASSJune19[[#This Row],[Alloc]]=\"WYU\",tblREGASSJune19[[#This Row],[Alloc]]=\"WYP\",tblREGASSJune19[[#This Row],[Alloc]]=\"CA\",tblREGASSJune19[[#This Row],[Alloc]]=\"WA\"),\"SITUS\",tblREGASSJune19[[#This Row],[Alloc]])","v":"OTHER"},{"$f":"INDEX(tblREGASSLookup[FUNC],MATCH(tblREGASSJune19[[#This Row],[Concat]],tblREGASSLookup[Concat],0))","v":"CUST"},{"$f":"IF(tblREGASSJune19[[#This Row],[Total ($000)]]=0,\"NO\",IF(ISNA(tblREGASSJune19[[#This Row],[FUNC]]),\"YES\",IF(_xlfn.ISFORMULA(tblREGASSJune19[[#This Row],[FUNC]]),\"NO\",\"YES\")))","v":"NO"}]
[{"$f":"CONCATENATE(tblREGASSJune19[[#This Row],[Primary Account]],tblREGASSJune19[[#This Row],[Primary Name]],tblREGASSJune19[[#This Row],[Secondary Acct]],tblREGASSJune19[[#This Row],[Secondary  Name]],tblREGASSJune19[[#This Row],[Alloc4FUNC]])","v":"1823920DSR COSTS AMORTIZED102834HOME ENERGY EFF INCENTIVE PROG - UT 2007OTHER"},1823920,"DSR COSTS AMORTIZED",102834,"HOME ENERGY EFF INCENTIVE PROG - UT 2007","OTHER",3033.9213100000002,{"$f":"IF(OR(tblREGASSJune19[[#This Row],[Alloc]]=\"IDU\",tblREGASSJune19[[#This Row],[Alloc]]=\"OR\",tblREGASSJune19[[#This Row],[Alloc]]=\"UT\",tblREGASSJune19[[#This Row],[Alloc]]=\"WYU\",tblREGASSJune19[[#This Row],[Alloc]]=\"WYP\",tblREGASSJune19[[#This Row],[Alloc]]=\"CA\",tblREGASSJune19[[#This Row],[Alloc]]=\"WA\"),\"SITUS\",tblREGASSJune19[[#This Row],[Alloc]])","v":"OTHER"},{"$f":"INDEX(tblREGASSLookup[FUNC],MATCH(tblREGASSJune19[[#This Row],[Concat]],tblREGASSLookup[Concat],0))","v":"CUST"},{"$f":"IF(tblREGASSJune19[[#This Row],[Total ($000)]]=0,\"NO\",IF(ISNA(tblREGASSJune19[[#This Row],[FUNC]]),\"YES\",IF(_xlfn.ISFORMULA(tblREGASSJune19[[#This Row],[FUNC]]),\"NO\",\"YES\")))","v":"NO"}]
[{"$f":"CONCATENATE(tblREGASSJune19[[#This Row],[Primary Account]],tblREGASSJune19[[#This Row],[Primary Name]],tblREGASSJune19[[#This Row],[Secondary Acct]],tblREGASSJune19[[#This Row],[Secondary  Name]],tblREGASSJune19[[#This Row],[Alloc4FUNC]])","v":"1823920DSR COSTS AMORTIZED102883CALIFORNIA DSM EXPENSE - 2008SITUS"},1823920,"DSR COSTS AMORTIZED",102883,"CALIFORNIA DSM EXPENSE - 2008","CA",1.0000000000000001E-5,{"$f":"IF(OR(tblREGASSJune19[[#This Row],[Alloc]]=\"IDU\",tblREGASSJune19[[#This Row],[Alloc]]=\"OR\",tblREGASSJune19[[#This Row],[Alloc]]=\"UT\",tblREGASSJune19[[#This Row],[Alloc]]=\"WYU\",tblREGASSJune19[[#This Row],[Alloc]]=\"WYP\",tblREGASSJune19[[#This Row],[Alloc]]=\"CA\",tblREGASSJune19[[#This Row],[Alloc]]=\"WA\"),\"SITUS\",tblREGASSJune19[[#This Row],[Alloc]])","v":"SITUS"},{"$f":"INDEX(tblREGASSLookup[FUNC],MATCH(tblREGASSJune19[[#This Row],[Concat]],tblREGASSLookup[Concat],0))","v":"CUST"},{"$f":"IF(tblREGASSJune19[[#This Row],[Total ($000)]]=0,\"NO\",IF(ISNA(tblREGASSJune19[[#This Row],[FUNC]]),\"YES\",IF(_xlfn.ISFORMULA(tblREGASSJune19[[#This Row],[FUNC]]),\"NO\",\"YES\")))","v":"NO"}]
[{"$f":"CONCATENATE(tblREGASSJune19[[#This Row],[Primary Account]],tblREGASSJune19[[#This Row],[Primary Name]],tblREGASSJune19[[#This Row],[Secondary Acct]],tblREGASSJune19[[#This Row],[Secondary  Name]],tblREGASSJune19[[#This Row],[Alloc4FUNC]])","v":"1823920DSR COSTS AMORTIZED102885ENERGY FINANSWER - WYOMING PPL - 2008SITUS"},1823920,"DSR COSTS AMORTIZED",102885,"ENERGY FINANSWER - WYOMING PPL - 2008","WYP",0,{"$f":"IF(OR(tblREGASSJune19[[#This Row],[Alloc]]=\"IDU\",tblREGASSJune19[[#This Row],[Alloc]]=\"OR\",tblREGASSJune19[[#This Row],[Alloc]]=\"UT\",tblREGASSJune19[[#This Row],[Alloc]]=\"WYU\",tblREGASSJune19[[#This Row],[Alloc]]=\"WYP\",tblREGASSJune19[[#This Row],[Alloc]]=\"CA\",tblREGASSJune19[[#This Row],[Alloc]]=\"WA\"),\"SITUS\",tblREGASSJune19[[#This Row],[Alloc]])","v":"SITUS"},{"$f":"INDEX(tblREGASSLookup[FUNC],MATCH(tblREGASSJune19[[#This Row],[Concat]],tblREGASSLookup[Concat],0))","v":"CUST"},{"$f":"IF(tblREGASSJune19[[#This Row],[Total ($000)]]=0,\"NO\",IF(ISNA(tblREGASSJune19[[#This Row],[FUNC]]),\"YES\",IF(_xlfn.ISFORMULA(tblREGASSJune19[[#This Row],[FUNC]]),\"NO\",\"YES\")))","v":"NO"}]
[{"$f":"CONCATENATE(tblREGASSJune19[[#This Row],[Primary Account]],tblREGASSJune19[[#This Row],[Primary Name]],tblREGASSJune19[[#This Row],[Secondary Acct]],tblREGASSJune19[[#This Row],[Secondary  Name]],tblREGASSJune19[[#This Row],[Alloc4FUNC]])","v":"1823920DSR COSTS AMORTIZED102886INDUSTRIAL FINANSWER - WYOMING PPL - 200SITUS"},1823920,"DSR COSTS AMORTIZED",102886,"INDUSTRIAL FINANSWER - WYOMING PPL - 200","WYP",0,{"$f":"IF(OR(tblREGASSJune19[[#This Row],[Alloc]]=\"IDU\",tblREGASSJune19[[#This Row],[Alloc]]=\"OR\",tblREGASSJune19[[#This Row],[Alloc]]=\"UT\",tblREGASSJune19[[#This Row],[Alloc]]=\"WYU\",tblREGASSJune19[[#This Row],[Alloc]]=\"WYP\",tblREGASSJune19[[#This Row],[Alloc]]=\"CA\",tblREGASSJune19[[#This Row],[Alloc]]=\"WA\"),\"SITUS\",tblREGASSJune19[[#This Row],[Alloc]])","v":"SITUS"},{"$f":"INDEX(tblREGASSLookup[FUNC],MATCH(tblREGASSJune19[[#This Row],[Concat]],tblREGASSLookup[Concat],0))","v":"CUST"},{"$f":"IF(tblREGASSJune19[[#This Row],[Total ($000)]]=0,\"NO\",IF(ISNA(tblREGASSJune19[[#This Row],[FUNC]]),\"YES\",IF(_xlfn.ISFORMULA(tblREGASSJune19[[#This Row],[FUNC]]),\"NO\",\"YES\")))","v":"NO"}]
[{"$f":"CONCATENATE(tblREGASSJune19[[#This Row],[Primary Account]],tblREGASSJune19[[#This Row],[Primary Name]],tblREGASSJune19[[#This Row],[Secondary Acct]],tblREGASSJune19[[#This Row],[Secondary  Name]],tblREGASSJune19[[#This Row],[Alloc4FUNC]])","v":"1823920DSR COSTS AMORTIZED102888REFRIGERATOR RECYCLING - WYOMING 2008SITUS"},1823920,"DSR COSTS AMORTIZED",102888,"REFRIGERATOR RECYCLING - WYOMING 2008","WYP",0,{"$f":"IF(OR(tblREGASSJune19[[#This Row],[Alloc]]=\"IDU\",tblREGASSJune19[[#This Row],[Alloc]]=\"OR\",tblREGASSJune19[[#This Row],[Alloc]]=\"UT\",tblREGASSJune19[[#This Row],[Alloc]]=\"WYU\",tblREGASSJune19[[#This Row],[Alloc]]=\"WYP\",tblREGASSJune19[[#This Row],[Alloc]]=\"CA\",tblREGASSJune19[[#This Row],[Alloc]]=\"WA\"),\"SITUS\",tblREGASSJune19[[#This Row],[Alloc]])","v":"SITUS"},{"$f":"INDEX(tblREGASSLookup[FUNC],MATCH(tblREGASSJune19[[#This Row],[Concat]],tblREGASSLookup[Concat],0))","v":"CUST"},{"$f":"IF(tblREGASSJune19[[#This Row],[Total ($000)]]=0,\"NO\",IF(ISNA(tblREGASSJune19[[#This Row],[FUNC]]),\"YES\",IF(_xlfn.ISFORMULA(tblREGASSJune19[[#This Row],[FUNC]]),\"NO\",\"YES\")))","v":"NO"}]
[{"$f":"CONCATENATE(tblREGASSJune19[[#This Row],[Primary Account]],tblREGASSJune19[[#This Row],[Primary Name]],tblREGASSJune19[[#This Row],[Secondary Acct]],tblREGASSJune19[[#This Row],[Secondary  Name]],tblREGASSJune19[[#This Row],[Alloc4FUNC]])","v":"1823920DSR COSTS AMORTIZED102889HOME ENERGY EFF INCENTIVE PROGRAM - WYOMSITUS"},1823920,"DSR COSTS AMORTIZED",102889,"HOME ENERGY EFF INCENTIVE PROGRAM - WYOM","WYP",0,{"$f":"IF(OR(tblREGASSJune19[[#This Row],[Alloc]]=\"IDU\",tblREGASSJune19[[#This Row],[Alloc]]=\"OR\",tblREGASSJune19[[#This Row],[Alloc]]=\"UT\",tblREGASSJune19[[#This Row],[Alloc]]=\"WYU\",tblREGASSJune19[[#This Row],[Alloc]]=\"WYP\",tblREGASSJune19[[#This Row],[Alloc]]=\"CA\",tblREGASSJune19[[#This Row],[Alloc]]=\"WA\"),\"SITUS\",tblREGASSJune19[[#This Row],[Alloc]])","v":"SITUS"},{"$f":"INDEX(tblREGASSLookup[FUNC],MATCH(tblREGASSJune19[[#This Row],[Concat]],tblREGASSLookup[Concat],0))","v":"CUST"},{"$f":"IF(tblREGASSJune19[[#This Row],[Total ($000)]]=0,\"NO\",IF(ISNA(tblREGASSJune19[[#This Row],[FUNC]]),\"YES\",IF(_xlfn.ISFORMULA(tblREGASSJune19[[#This Row],[FUNC]]),\"NO\",\"YES\")))","v":"NO"}]
[{"$f":"CONCATENATE(tblREGASSJune19[[#This Row],[Primary Account]],tblREGASSJune19[[#This Row],[Primary Name]],tblREGASSJune19[[#This Row],[Secondary Acct]],tblREGASSJune19[[#This Row],[Secondary  Name]],tblREGASSJune19[[#This Row],[Alloc4FUNC]])","v":"1823920DSR COSTS AMORTIZED102890LOW INCOME WEATHERIZATION - WYOMING 2008SITUS"},1823920,"DSR COSTS AMORTIZED",102890,"LOW INCOME WEATHERIZATION - WYOMING 2008","WYP",0,{"$f":"IF(OR(tblREGASSJune19[[#This Row],[Alloc]]=\"IDU\",tblREGASSJune19[[#This Row],[Alloc]]=\"OR\",tblREGASSJune19[[#This Row],[Alloc]]=\"UT\",tblREGASSJune19[[#This Row],[Alloc]]=\"WYU\",tblREGASSJune19[[#This Row],[Alloc]]=\"WYP\",tblREGASSJune19[[#This Row],[Alloc]]=\"CA\",tblREGASSJune19[[#This Row],[Alloc]]=\"WA\"),\"SITUS\",tblREGASSJune19[[#This Row],[Alloc]])","v":"SITUS"},{"$f":"INDEX(tblREGASSLookup[FUNC],MATCH(tblREGASSJune19[[#This Row],[Concat]],tblREGASSLookup[Concat],0))","v":"CUST"},{"$f":"IF(tblREGASSJune19[[#This Row],[Total ($000)]]=0,\"NO\",IF(ISNA(tblREGASSJune19[[#This Row],[FUNC]]),\"YES\",IF(_xlfn.ISFORMULA(tblREGASSJune19[[#This Row],[FUNC]]),\"NO\",\"YES\")))","v":"NO"}]
[{"$f":"CONCATENATE(tblREGASSJune19[[#This Row],[Primary Account]],tblREGASSJune19[[#This Row],[Primary Name]],tblREGASSJune19[[#This Row],[Secondary Acct]],tblREGASSJune19[[#This Row],[Secondary  Name]],tblREGASSJune19[[#This Row],[Alloc4FUNC]])","v":"1823920DSR COSTS AMORTIZED102891COMMERCIAL FINANSWER EXPRESS - WYOMING 2SITUS"},1823920,"DSR COSTS AMORTIZED",102891,"COMMERCIAL FINANSWER EXPRESS - WYOMING 2","WYP",0,{"$f":"IF(OR(tblREGASSJune19[[#This Row],[Alloc]]=\"IDU\",tblREGASSJune19[[#This Row],[Alloc]]=\"OR\",tblREGASSJune19[[#This Row],[Alloc]]=\"UT\",tblREGASSJune19[[#This Row],[Alloc]]=\"WYU\",tblREGASSJune19[[#This Row],[Alloc]]=\"WYP\",tblREGASSJune19[[#This Row],[Alloc]]=\"CA\",tblREGASSJune19[[#This Row],[Alloc]]=\"WA\"),\"SITUS\",tblREGASSJune19[[#This Row],[Alloc]])","v":"SITUS"},{"$f":"INDEX(tblREGASSLookup[FUNC],MATCH(tblREGASSJune19[[#This Row],[Concat]],tblREGASSLookup[Concat],0))","v":"CUST"},{"$f":"IF(tblREGASSJune19[[#This Row],[Total ($000)]]=0,\"NO\",IF(ISNA(tblREGASSJune19[[#This Row],[FUNC]]),\"YES\",IF(_xlfn.ISFORMULA(tblREGASSJune19[[#This Row],[FUNC]]),\"NO\",\"YES\")))","v":"NO"}]
[{"$f":"CONCATENATE(tblREGASSJune19[[#This Row],[Primary Account]],tblREGASSJune19[[#This Row],[Primary Name]],tblREGASSJune19[[#This Row],[Secondary Acct]],tblREGASSJune19[[#This Row],[Secondary  Name]],tblREGASSJune19[[#This Row],[Alloc4FUNC]])","v":"1823920DSR COSTS AMORTIZED102892INDUSTRIAL FINANSWER EXPRESS - WY - 2008SITUS"},1823920,"DSR COSTS AMORTIZED",102892,"INDUSTRIAL FINANSWER EXPRESS - WY - 2008","WYP",0,{"$f":"IF(OR(tblREGASSJune19[[#This Row],[Alloc]]=\"IDU\",tblREGASSJune19[[#This Row],[Alloc]]=\"OR\",tblREGASSJune19[[#This Row],[Alloc]]=\"UT\",tblREGASSJune19[[#This Row],[Alloc]]=\"WYU\",tblREGASSJune19[[#This Row],[Alloc]]=\"WYP\",tblREGASSJune19[[#This Row],[Alloc]]=\"CA\",tblREGASSJune19[[#This Row],[Alloc]]=\"WA\"),\"SITUS\",tblREGASSJune19[[#This Row],[Alloc]])","v":"SITUS"},{"$f":"INDEX(tblREGASSLookup[FUNC],MATCH(tblREGASSJune19[[#This Row],[Concat]],tblREGASSLookup[Concat],0))","v":"CUST"},{"$f":"IF(tblREGASSJune19[[#This Row],[Total ($000)]]=0,\"NO\",IF(ISNA(tblREGASSJune19[[#This Row],[FUNC]]),\"YES\",IF(_xlfn.ISFORMULA(tblREGASSJune19[[#This Row],[FUNC]]),\"NO\",\"YES\")))","v":"NO"}]
[{"$f":"CONCATENATE(tblREGASSJune19[[#This Row],[Primary Account]],tblREGASSJune19[[#This Row],[Primary Name]],tblREGASSJune19[[#This Row],[Secondary Acct]],tblREGASSJune19[[#This Row],[Secondary  Name]],tblREGASSJune19[[#This Row],[Alloc4FUNC]])","v":"1823920DSR COSTS AMORTIZED102893SELF DIRECT COMMERCIAL - WYOMING 2008SITUS"},1823920,"DSR COSTS AMORTIZED",102893,"SELF DIRECT COMMERCIAL - WYOMING 2008","WYP",0,{"$f":"IF(OR(tblREGASSJune19[[#This Row],[Alloc]]=\"IDU\",tblREGASSJune19[[#This Row],[Alloc]]=\"OR\",tblREGASSJune19[[#This Row],[Alloc]]=\"UT\",tblREGASSJune19[[#This Row],[Alloc]]=\"WYU\",tblREGASSJune19[[#This Row],[Alloc]]=\"WYP\",tblREGASSJune19[[#This Row],[Alloc]]=\"CA\",tblREGASSJune19[[#This Row],[Alloc]]=\"WA\"),\"SITUS\",tblREGASSJune19[[#This Row],[Alloc]])","v":"SITUS"},{"$f":"INDEX(tblREGASSLookup[FUNC],MATCH(tblREGASSJune19[[#This Row],[Concat]],tblREGASSLookup[Concat],0))","v":"CUST"},{"$f":"IF(tblREGASSJune19[[#This Row],[Total ($000)]]=0,\"NO\",IF(ISNA(tblREGASSJune19[[#This Row],[FUNC]]),\"YES\",IF(_xlfn.ISFORMULA(tblREGASSJune19[[#This Row],[FUNC]]),\"NO\",\"YES\")))","v":"NO"}]
[{"$f":"CONCATENATE(tblREGASSJune19[[#This Row],[Primary Account]],tblREGASSJune19[[#This Row],[Primary Name]],tblREGASSJune19[[#This Row],[Secondary Acct]],tblREGASSJune19[[#This Row],[Secondary  Name]],tblREGASSJune19[[#This Row],[Alloc4FUNC]])","v":"1823920DSR COSTS AMORTIZED102894SELF DIRECT INDUSTRIAL - WYOMING 2008SITUS"},1823920,"DSR COSTS AMORTIZED",102894,"SELF DIRECT INDUSTRIAL - WYOMING 2008","WYP",0,{"$f":"IF(OR(tblREGASSJune19[[#This Row],[Alloc]]=\"IDU\",tblREGASSJune19[[#This Row],[Alloc]]=\"OR\",tblREGASSJune19[[#This Row],[Alloc]]=\"UT\",tblREGASSJune19[[#This Row],[Alloc]]=\"WYU\",tblREGASSJune19[[#This Row],[Alloc]]=\"WYP\",tblREGASSJune19[[#This Row],[Alloc]]=\"CA\",tblREGASSJune19[[#This Row],[Alloc]]=\"WA\"),\"SITUS\",tblREGASSJune19[[#This Row],[Alloc]])","v":"SITUS"},{"$f":"INDEX(tblREGASSLookup[FUNC],MATCH(tblREGASSJune19[[#This Row],[Concat]],tblREGASSLookup[Concat],0))","v":"CUST"},{"$f":"IF(tblREGASSJune19[[#This Row],[Total ($000)]]=0,\"NO\",IF(ISNA(tblREGASSJune19[[#This Row],[FUNC]]),\"YES\",IF(_xlfn.ISFORMULA(tblREGASSJune19[[#This Row],[FUNC]]),\"NO\",\"YES\")))","v":"NO"}]
[{"$f":"CONCATENATE(tblREGASSJune19[[#This Row],[Primary Account]],tblREGASSJune19[[#This Row],[Primary Name]],tblREGASSJune19[[#This Row],[Secondary Acct]],tblREGASSJune19[[#This Row],[Secondary  Name]],tblREGASSJune19[[#This Row],[Alloc4FUNC]])","v":"1823920DSR COSTS AMORTIZED102906AC LOAD CONTROL - RESIDENTIAL - UTAH 200OTHER"},1823920,"DSR COSTS AMORTIZED",102906,"AC LOAD CONTROL - RESIDENTIAL - UTAH 200","OTHER",7175.2080900000001,{"$f":"IF(OR(tblREGASSJune19[[#This Row],[Alloc]]=\"IDU\",tblREGASSJune19[[#This Row],[Alloc]]=\"OR\",tblREGASSJune19[[#This Row],[Alloc]]=\"UT\",tblREGASSJune19[[#This Row],[Alloc]]=\"WYU\",tblREGASSJune19[[#This Row],[Alloc]]=\"WYP\",tblREGASSJune19[[#This Row],[Alloc]]=\"CA\",tblREGASSJune19[[#This Row],[Alloc]]=\"WA\"),\"SITUS\",tblREGASSJune19[[#This Row],[Alloc]])","v":"OTHER"},{"$f":"INDEX(tblREGASSLookup[FUNC],MATCH(tblREGASSJune19[[#This Row],[Concat]],tblREGASSLookup[Concat],0))","v":"CUST"},{"$f":"IF(tblREGASSJune19[[#This Row],[Total ($000)]]=0,\"NO\",IF(ISNA(tblREGASSJune19[[#This Row],[FUNC]]),\"YES\",IF(_xlfn.ISFORMULA(tblREGASSJune19[[#This Row],[FUNC]]),\"NO\",\"YES\")))","v":"NO"}]
[{"$f":"CONCATENATE(tblREGASSJune19[[#This Row],[Primary Account]],tblREGASSJune19[[#This Row],[Primary Name]],tblREGASSJune19[[#This Row],[Secondary Acct]],tblREGASSJune19[[#This Row],[Secondary  Name]],tblREGASSJune19[[#This Row],[Alloc4FUNC]])","v":"1823920DSR COSTS AMORTIZED102907AIR CONDITIONING - UTAH 2008OTHER"},1823920,"DSR COSTS AMORTIZED",102907,"AIR CONDITIONING - UTAH 2008","OTHER",526.31577000000004,{"$f":"IF(OR(tblREGASSJune19[[#This Row],[Alloc]]=\"IDU\",tblREGASSJune19[[#This Row],[Alloc]]=\"OR\",tblREGASSJune19[[#This Row],[Alloc]]=\"UT\",tblREGASSJune19[[#This Row],[Alloc]]=\"WYU\",tblREGASSJune19[[#This Row],[Alloc]]=\"WYP\",tblREGASSJune19[[#This Row],[Alloc]]=\"CA\",tblREGASSJune19[[#This Row],[Alloc]]=\"WA\"),\"SITUS\",tblREGASSJune19[[#This Row],[Alloc]])","v":"OTHER"},{"$f":"INDEX(tblREGASSLookup[FUNC],MATCH(tblREGASSJune19[[#This Row],[Concat]],tblREGASSLookup[Concat],0))","v":"CUST"},{"$f":"IF(tblREGASSJune19[[#This Row],[Total ($000)]]=0,\"NO\",IF(ISNA(tblREGASSJune19[[#This Row],[FUNC]]),\"YES\",IF(_xlfn.ISFORMULA(tblREGASSJune19[[#This Row],[FUNC]]),\"NO\",\"YES\")))","v":"NO"}]
[{"$f":"CONCATENATE(tblREGASSJune19[[#This Row],[Primary Account]],tblREGASSJune19[[#This Row],[Primary Name]],tblREGASSJune19[[#This Row],[Secondary Acct]],tblREGASSJune19[[#This Row],[Secondary  Name]],tblREGASSJune19[[#This Row],[Alloc4FUNC]])","v":"1823920DSR COSTS AMORTIZED102908ENERGY FINANSWER - UTAH - 2008OTHER"},1823920,"DSR COSTS AMORTIZED",102908,"ENERGY FINANSWER - UTAH - 2008","OTHER",3466.0316800000001,{"$f":"IF(OR(tblREGASSJune19[[#This Row],[Alloc]]=\"IDU\",tblREGASSJune19[[#This Row],[Alloc]]=\"OR\",tblREGASSJune19[[#This Row],[Alloc]]=\"UT\",tblREGASSJune19[[#This Row],[Alloc]]=\"WYU\",tblREGASSJune19[[#This Row],[Alloc]]=\"WYP\",tblREGASSJune19[[#This Row],[Alloc]]=\"CA\",tblREGASSJune19[[#This Row],[Alloc]]=\"WA\"),\"SITUS\",tblREGASSJune19[[#This Row],[Alloc]])","v":"OTHER"},{"$f":"INDEX(tblREGASSLookup[FUNC],MATCH(tblREGASSJune19[[#This Row],[Concat]],tblREGASSLookup[Concat],0))","v":"CUST"},{"$f":"IF(tblREGASSJune19[[#This Row],[Total ($000)]]=0,\"NO\",IF(ISNA(tblREGASSJune19[[#This Row],[FUNC]]),\"YES\",IF(_xlfn.ISFORMULA(tblREGASSJune19[[#This Row],[FUNC]]),\"NO\",\"YES\")))","v":"NO"}]
[{"$f":"CONCATENATE(tblREGASSJune19[[#This Row],[Primary Account]],tblREGASSJune19[[#This Row],[Primary Name]],tblREGASSJune19[[#This Row],[Secondary Acct]],tblREGASSJune19[[#This Row],[Secondary  Name]],tblREGASSJune19[[#This Row],[Alloc4FUNC]])","v":"1823920DSR COSTS AMORTIZED102909INDUSTRIAL FINANSWER - UTAH - 2008OTHER"},1823920,"DSR COSTS AMORTIZED",102909,"INDUSTRIAL FINANSWER - UTAH - 2008","OTHER",4288.9031299999997,{"$f":"IF(OR(tblREGASSJune19[[#This Row],[Alloc]]=\"IDU\",tblREGASSJune19[[#This Row],[Alloc]]=\"OR\",tblREGASSJune19[[#This Row],[Alloc]]=\"UT\",tblREGASSJune19[[#This Row],[Alloc]]=\"WYU\",tblREGASSJune19[[#This Row],[Alloc]]=\"WYP\",tblREGASSJune19[[#This Row],[Alloc]]=\"CA\",tblREGASSJune19[[#This Row],[Alloc]]=\"WA\"),\"SITUS\",tblREGASSJune19[[#This Row],[Alloc]])","v":"OTHER"},{"$f":"INDEX(tblREGASSLookup[FUNC],MATCH(tblREGASSJune19[[#This Row],[Concat]],tblREGASSLookup[Concat],0))","v":"CUST"},{"$f":"IF(tblREGASSJune19[[#This Row],[Total ($000)]]=0,\"NO\",IF(ISNA(tblREGASSJune19[[#This Row],[FUNC]]),\"YES\",IF(_xlfn.ISFORMULA(tblREGASSJune19[[#This Row],[FUNC]]),\"NO\",\"YES\")))","v":"NO"}]
[{"$f":"CONCATENATE(tblREGASSJune19[[#This Row],[Primary Account]],tblREGASSJune19[[#This Row],[Primary Name]],tblREGASSJune19[[#This Row],[Secondary Acct]],tblREGASSJune19[[#This Row],[Secondary  Name]],tblREGASSJune19[[#This Row],[Alloc4FUNC]])","v":"1823920DSR COSTS AMORTIZED102910LOW INCOME - UTAH 2008OTHER"},1823920,"DSR COSTS AMORTIZED",102910,"LOW INCOME - UTAH 2008","OTHER",127.42278,{"$f":"IF(OR(tblREGASSJune19[[#This Row],[Alloc]]=\"IDU\",tblREGASSJune19[[#This Row],[Alloc]]=\"OR\",tblREGASSJune19[[#This Row],[Alloc]]=\"UT\",tblREGASSJune19[[#This Row],[Alloc]]=\"WYU\",tblREGASSJune19[[#This Row],[Alloc]]=\"WYP\",tblREGASSJune19[[#This Row],[Alloc]]=\"CA\",tblREGASSJune19[[#This Row],[Alloc]]=\"WA\"),\"SITUS\",tblREGASSJune19[[#This Row],[Alloc]])","v":"OTHER"},{"$f":"INDEX(tblREGASSLookup[FUNC],MATCH(tblREGASSJune19[[#This Row],[Concat]],tblREGASSLookup[Concat],0))","v":"CUST"},{"$f":"IF(tblREGASSJune19[[#This Row],[Total ($000)]]=0,\"NO\",IF(ISNA(tblREGASSJune19[[#This Row],[FUNC]]),\"YES\",IF(_xlfn.ISFORMULA(tblREGASSJune19[[#This Row],[FUNC]]),\"NO\",\"YES\")))","v":"NO"}]
[{"$f":"CONCATENATE(tblREGASSJune19[[#This Row],[Primary Account]],tblREGASSJune19[[#This Row],[Primary Name]],tblREGASSJune19[[#This Row],[Secondary Acct]],tblREGASSJune19[[#This Row],[Secondary  Name]],tblREGASSJune19[[#This Row],[Alloc4FUNC]])","v":"1823920DSR COSTS AMORTIZED102911POWER FORWARD - UTAH - 2008OTHER"},1823920,"DSR COSTS AMORTIZED",102911,"POWER FORWARD - UTAH - 2008","OTHER",50.073210000000003,{"$f":"IF(OR(tblREGASSJune19[[#This Row],[Alloc]]=\"IDU\",tblREGASSJune19[[#This Row],[Alloc]]=\"OR\",tblREGASSJune19[[#This Row],[Alloc]]=\"UT\",tblREGASSJune19[[#This Row],[Alloc]]=\"WYU\",tblREGASSJune19[[#This Row],[Alloc]]=\"WYP\",tblREGASSJune19[[#This Row],[Alloc]]=\"CA\",tblREGASSJune19[[#This Row],[Alloc]]=\"WA\"),\"SITUS\",tblREGASSJune19[[#This Row],[Alloc]])","v":"OTHER"},{"$f":"INDEX(tblREGASSLookup[FUNC],MATCH(tblREGASSJune19[[#This Row],[Concat]],tblREGASSLookup[Concat],0))","v":"CUST"},{"$f":"IF(tblREGASSJune19[[#This Row],[Total ($000)]]=0,\"NO\",IF(ISNA(tblREGASSJune19[[#This Row],[FUNC]]),\"YES\",IF(_xlfn.ISFORMULA(tblREGASSJune19[[#This Row],[FUNC]]),\"NO\",\"YES\")))","v":"NO"}]
[{"$f":"CONCATENATE(tblREGASSJune19[[#This Row],[Primary Account]],tblREGASSJune19[[#This Row],[Primary Name]],tblREGASSJune19[[#This Row],[Secondary Acct]],tblREGASSJune19[[#This Row],[Secondary  Name]],tblREGASSJune19[[#This Row],[Alloc4FUNC]])","v":"1823920DSR COSTS AMORTIZED102912REFRIGERATOR RECYCLING - UTAH - 2008OTHER"},1823920,"DSR COSTS AMORTIZED",102912,"REFRIGERATOR RECYCLING - UTAH - 2008","OTHER",2570.3730799999998,{"$f":"IF(OR(tblREGASSJune19[[#This Row],[Alloc]]=\"IDU\",tblREGASSJune19[[#This Row],[Alloc]]=\"OR\",tblREGASSJune19[[#This Row],[Alloc]]=\"UT\",tblREGASSJune19[[#This Row],[Alloc]]=\"WYU\",tblREGASSJune19[[#This Row],[Alloc]]=\"WYP\",tblREGASSJune19[[#This Row],[Alloc]]=\"CA\",tblREGASSJune19[[#This Row],[Alloc]]=\"WA\"),\"SITUS\",tblREGASSJune19[[#This Row],[Alloc]])","v":"OTHER"},{"$f":"INDEX(tblREGASSLookup[FUNC],MATCH(tblREGASSJune19[[#This Row],[Concat]],tblREGASSLookup[Concat],0))","v":"CUST"},{"$f":"IF(tblREGASSJune19[[#This Row],[Total ($000)]]=0,\"NO\",IF(ISNA(tblREGASSJune19[[#This Row],[FUNC]]),\"YES\",IF(_xlfn.ISFORMULA(tblREGASSJune19[[#This Row],[FUNC]]),\"NO\",\"YES\")))","v":"NO"}]
[{"$f":"CONCATENATE(tblREGASSJune19[[#This Row],[Primary Account]],tblREGASSJune19[[#This Row],[Primary Name]],tblREGASSJune19[[#This Row],[Secondary Acct]],tblREGASSJune19[[#This Row],[Secondary  Name]],tblREGASSJune19[[#This Row],[Alloc4FUNC]])","v":"1823920DSR COSTS AMORTIZED102913COMMERCIAL SELF DIRECT - UTAH - 2008OTHER"},1823920,"DSR COSTS AMORTIZED",102913,"COMMERCIAL SELF DIRECT - UTAH - 2008","OTHER",83.079470000000001,{"$f":"IF(OR(tblREGASSJune19[[#This Row],[Alloc]]=\"IDU\",tblREGASSJune19[[#This Row],[Alloc]]=\"OR\",tblREGASSJune19[[#This Row],[Alloc]]=\"UT\",tblREGASSJune19[[#This Row],[Alloc]]=\"WYU\",tblREGASSJune19[[#This Row],[Alloc]]=\"WYP\",tblREGASSJune19[[#This Row],[Alloc]]=\"CA\",tblREGASSJune19[[#This Row],[Alloc]]=\"WA\"),\"SITUS\",tblREGASSJune19[[#This Row],[Alloc]])","v":"OTHER"},{"$f":"INDEX(tblREGASSLookup[FUNC],MATCH(tblREGASSJune19[[#This Row],[Concat]],tblREGASSLookup[Concat],0))","v":"CUST"},{"$f":"IF(tblREGASSJune19[[#This Row],[Total ($000)]]=0,\"NO\",IF(ISNA(tblREGASSJune19[[#This Row],[FUNC]]),\"YES\",IF(_xlfn.ISFORMULA(tblREGASSJune19[[#This Row],[FUNC]]),\"NO\",\"YES\")))","v":"NO"}]
[{"$f":"CONCATENATE(tblREGASSJune19[[#This Row],[Primary Account]],tblREGASSJune19[[#This Row],[Primary Name]],tblREGASSJune19[[#This Row],[Secondary Acct]],tblREGASSJune19[[#This Row],[Secondary  Name]],tblREGASSJune19[[#This Row],[Alloc4FUNC]])","v":"1823920DSR COSTS AMORTIZED102914INDUSTRIAL SELF DIRECT - UTAH - 2008OTHER"},1823920,"DSR COSTS AMORTIZED",102914,"INDUSTRIAL SELF DIRECT - UTAH - 2008","OTHER",126.04481,{"$f":"IF(OR(tblREGASSJune19[[#This Row],[Alloc]]=\"IDU\",tblREGASSJune19[[#This Row],[Alloc]]=\"OR\",tblREGASSJune19[[#This Row],[Alloc]]=\"UT\",tblREGASSJune19[[#This Row],[Alloc]]=\"WYU\",tblREGASSJune19[[#This Row],[Alloc]]=\"WYP\",tblREGASSJune19[[#This Row],[Alloc]]=\"CA\",tblREGASSJune19[[#This Row],[Alloc]]=\"WA\"),\"SITUS\",tblREGASSJune19[[#This Row],[Alloc]])","v":"OTHER"},{"$f":"INDEX(tblREGASSLookup[FUNC],MATCH(tblREGASSJune19[[#This Row],[Concat]],tblREGASSLookup[Concat],0))","v":"CUST"},{"$f":"IF(tblREGASSJune19[[#This Row],[Total ($000)]]=0,\"NO\",IF(ISNA(tblREGASSJune19[[#This Row],[FUNC]]),\"YES\",IF(_xlfn.ISFORMULA(tblREGASSJune19[[#This Row],[FUNC]]),\"NO\",\"YES\")))","v":"NO"}]
[{"$f":"CONCATENATE(tblREGASSJune19[[#This Row],[Primary Account]],tblREGASSJune19[[#This Row],[Primary Name]],tblREGASSJune19[[#This Row],[Secondary Acct]],tblREGASSJune19[[#This Row],[Secondary  Name]],tblREGASSJune19[[#This Row],[Alloc4FUNC]])","v":"1823920DSR COSTS AMORTIZED102915RESIDENTIAL NEW CONSTRUCTION - UTAH 2008OTHER"},1823920,"DSR COSTS AMORTIZED",102915,"RESIDENTIAL NEW CONSTRUCTION - UTAH 2008","OTHER",1663.64887,{"$f":"IF(OR(tblREGASSJune19[[#This Row],[Alloc]]=\"IDU\",tblREGASSJune19[[#This Row],[Alloc]]=\"OR\",tblREGASSJune19[[#This Row],[Alloc]]=\"UT\",tblREGASSJune19[[#This Row],[Alloc]]=\"WYU\",tblREGASSJune19[[#This Row],[Alloc]]=\"WYP\",tblREGASSJune19[[#This Row],[Alloc]]=\"CA\",tblREGASSJune19[[#This Row],[Alloc]]=\"WA\"),\"SITUS\",tblREGASSJune19[[#This Row],[Alloc]])","v":"OTHER"},{"$f":"INDEX(tblREGASSLookup[FUNC],MATCH(tblREGASSJune19[[#This Row],[Concat]],tblREGASSLookup[Concat],0))","v":"CUST"},{"$f":"IF(tblREGASSJune19[[#This Row],[Total ($000)]]=0,\"NO\",IF(ISNA(tblREGASSJune19[[#This Row],[FUNC]]),\"YES\",IF(_xlfn.ISFORMULA(tblREGASSJune19[[#This Row],[FUNC]]),\"NO\",\"YES\")))","v":"NO"}]
[{"$f":"CONCATENATE(tblREGASSJune19[[#This Row],[Primary Account]],tblREGASSJune19[[#This Row],[Primary Name]],tblREGASSJune19[[#This Row],[Secondary Acct]],tblREGASSJune19[[#This Row],[Secondary  Name]],tblREGASSJune19[[#This Row],[Alloc4FUNC]])","v":"1823920DSR COSTS AMORTIZED102916COMMERCIAL FINANSWER EXPRESS - UTAH 2008OTHER"},1823920,"DSR COSTS AMORTIZED",102916,"COMMERCIAL FINANSWER EXPRESS - UTAH 2008","OTHER",3790.9827599999999,{"$f":"IF(OR(tblREGASSJune19[[#This Row],[Alloc]]=\"IDU\",tblREGASSJune19[[#This Row],[Alloc]]=\"OR\",tblREGASSJune19[[#This Row],[Alloc]]=\"UT\",tblREGASSJune19[[#This Row],[Alloc]]=\"WYU\",tblREGASSJune19[[#This Row],[Alloc]]=\"WYP\",tblREGASSJune19[[#This Row],[Alloc]]=\"CA\",tblREGASSJune19[[#This Row],[Alloc]]=\"WA\"),\"SITUS\",tblREGASSJune19[[#This Row],[Alloc]])","v":"OTHER"},{"$f":"INDEX(tblREGASSLookup[FUNC],MATCH(tblREGASSJune19[[#This Row],[Concat]],tblREGASSLookup[Concat],0))","v":"CUST"},{"$f":"IF(tblREGASSJune19[[#This Row],[Total ($000)]]=0,\"NO\",IF(ISNA(tblREGASSJune19[[#This Row],[FUNC]]),\"YES\",IF(_xlfn.ISFORMULA(tblREGASSJune19[[#This Row],[FUNC]]),\"NO\",\"YES\")))","v":"NO"}]
[{"$f":"CONCATENATE(tblREGASSJune19[[#This Row],[Primary Account]],tblREGASSJune19[[#This Row],[Primary Name]],tblREGASSJune19[[#This Row],[Secondary Acct]],tblREGASSJune19[[#This Row],[Secondary  Name]],tblREGASSJune19[[#This Row],[Alloc4FUNC]])","v":"1823920DSR COSTS AMORTIZED102917INDUSTRIAL FINANSWER EXPRESS - UTAH 2008OTHER"},1823920,"DSR COSTS AMORTIZED",102917,"INDUSTRIAL FINANSWER EXPRESS - UTAH 2008","OTHER",1133.1433500000001,{"$f":"IF(OR(tblREGASSJune19[[#This Row],[Alloc]]=\"IDU\",tblREGASSJune19[[#This Row],[Alloc]]=\"OR\",tblREGASSJune19[[#This Row],[Alloc]]=\"UT\",tblREGASSJune19[[#This Row],[Alloc]]=\"WYU\",tblREGASSJune19[[#This Row],[Alloc]]=\"WYP\",tblREGASSJune19[[#This Row],[Alloc]]=\"CA\",tblREGASSJune19[[#This Row],[Alloc]]=\"WA\"),\"SITUS\",tblREGASSJune19[[#This Row],[Alloc]])","v":"OTHER"},{"$f":"INDEX(tblREGASSLookup[FUNC],MATCH(tblREGASSJune19[[#This Row],[Concat]],tblREGASSLookup[Concat],0))","v":"CUST"},{"$f":"IF(tblREGASSJune19[[#This Row],[Total ($000)]]=0,\"NO\",IF(ISNA(tblREGASSJune19[[#This Row],[FUNC]]),\"YES\",IF(_xlfn.ISFORMULA(tblREGASSJune19[[#This Row],[FUNC]]),\"NO\",\"YES\")))","v":"NO"}]
[{"$f":"CONCATENATE(tblREGASSJune19[[#This Row],[Primary Account]],tblREGASSJune19[[#This Row],[Primary Name]],tblREGASSJune19[[#This Row],[Secondary Acct]],tblREGASSJune19[[#This Row],[Secondary  Name]],tblREGASSJune19[[#This Row],[Alloc4FUNC]])","v":"1823920DSR COSTS AMORTIZED102918RETROFIT COMMISSIONING PROGRAM - UTAH -OTHER"},1823920,"DSR COSTS AMORTIZED",102918,"RETROFIT COMMISSIONING PROGRAM - UTAH -","OTHER",1053.38078,{"$f":"IF(OR(tblREGASSJune19[[#This Row],[Alloc]]=\"IDU\",tblREGASSJune19[[#This Row],[Alloc]]=\"OR\",tblREGASSJune19[[#This Row],[Alloc]]=\"UT\",tblREGASSJune19[[#This Row],[Alloc]]=\"WYU\",tblREGASSJune19[[#This Row],[Alloc]]=\"WYP\",tblREGASSJune19[[#This Row],[Alloc]]=\"CA\",tblREGASSJune19[[#This Row],[Alloc]]=\"WA\"),\"SITUS\",tblREGASSJune19[[#This Row],[Alloc]])","v":"OTHER"},{"$f":"INDEX(tblREGASSLookup[FUNC],MATCH(tblREGASSJune19[[#This Row],[Concat]],tblREGASSLookup[Concat],0))","v":"CUST"},{"$f":"IF(tblREGASSJune19[[#This Row],[Total ($000)]]=0,\"NO\",IF(ISNA(tblREGASSJune19[[#This Row],[FUNC]]),\"YES\",IF(_xlfn.ISFORMULA(tblREGASSJune19[[#This Row],[FUNC]]),\"NO\",\"YES\")))","v":"NO"}]
[{"$f":"CONCATENATE(tblREGASSJune19[[#This Row],[Primary Account]],tblREGASSJune19[[#This Row],[Primary Name]],tblREGASSJune19[[#This Row],[Secondary Acct]],tblREGASSJune19[[#This Row],[Secondary  Name]],tblREGASSJune19[[#This Row],[Alloc4FUNC]])","v":"1823920DSR COSTS AMORTIZED102919C&I LIGHTING LOAD CONTROL  - UTAH - 2008OTHER"},1823920,"DSR COSTS AMORTIZED",102919,"C&I LIGHTING LOAD CONTROL  - UTAH - 2008","OTHER",3.64,{"$f":"IF(OR(tblREGASSJune19[[#This Row],[Alloc]]=\"IDU\",tblREGASSJune19[[#This Row],[Alloc]]=\"OR\",tblREGASSJune19[[#This Row],[Alloc]]=\"UT\",tblREGASSJune19[[#This Row],[Alloc]]=\"WYU\",tblREGASSJune19[[#This Row],[Alloc]]=\"WYP\",tblREGASSJune19[[#This Row],[Alloc]]=\"CA\",tblREGASSJune19[[#This Row],[Alloc]]=\"WA\"),\"SITUS\",tblREGASSJune19[[#This Row],[Alloc]])","v":"OTHER"},{"$f":"INDEX(tblREGASSLookup[FUNC],MATCH(tblREGASSJune19[[#This Row],[Concat]],tblREGASSLookup[Concat],0))","v":"CUST"},{"$f":"IF(tblREGASSJune19[[#This Row],[Total ($000)]]=0,\"NO\",IF(ISNA(tblREGASSJune19[[#This Row],[FUNC]]),\"YES\",IF(_xlfn.ISFORMULA(tblREGASSJune19[[#This Row],[FUNC]]),\"NO\",\"YES\")))","v":"NO"}]
[{"$f":"CONCATENATE(tblREGASSJune19[[#This Row],[Primary Account]],tblREGASSJune19[[#This Row],[Primary Name]],tblREGASSJune19[[#This Row],[Secondary Acct]],tblREGASSJune19[[#This Row],[Secondary  Name]],tblREGASSJune19[[#This Row],[Alloc4FUNC]])","v":"1823920DSR COSTS AMORTIZED102920IRRIGATION LOAD CONTROL - UTAHOTHER"},1823920,"DSR COSTS AMORTIZED",102920,"IRRIGATION LOAD CONTROL - UTAH","OTHER",761.93082000000004,{"$f":"IF(OR(tblREGASSJune19[[#This Row],[Alloc]]=\"IDU\",tblREGASSJune19[[#This Row],[Alloc]]=\"OR\",tblREGASSJune19[[#This Row],[Alloc]]=\"UT\",tblREGASSJune19[[#This Row],[Alloc]]=\"WYU\",tblREGASSJune19[[#This Row],[Alloc]]=\"WYP\",tblREGASSJune19[[#This Row],[Alloc]]=\"CA\",tblREGASSJune19[[#This Row],[Alloc]]=\"WA\"),\"SITUS\",tblREGASSJune19[[#This Row],[Alloc]])","v":"OTHER"},{"$f":"INDEX(tblREGASSLookup[FUNC],MATCH(tblREGASSJune19[[#This Row],[Concat]],tblREGASSLookup[Concat],0))","v":"CUST"},{"$f":"IF(tblREGASSJune19[[#This Row],[Total ($000)]]=0,\"NO\",IF(ISNA(tblREGASSJune19[[#This Row],[FUNC]]),\"YES\",IF(_xlfn.ISFORMULA(tblREGASSJune19[[#This Row],[FUNC]]),\"NO\",\"YES\")))","v":"NO"}]
[{"$f":"CONCATENATE(tblREGASSJune19[[#This Row],[Primary Account]],tblREGASSJune19[[#This Row],[Primary Name]],tblREGASSJune19[[#This Row],[Secondary Acct]],tblREGASSJune19[[#This Row],[Secondary  Name]],tblREGASSJune19[[#This Row],[Alloc4FUNC]])","v":"1823920DSR COSTS AMORTIZED102921HOME ENERGY EFF INCENTIVE PROGRAM - UTAHOTHER"},1823920,"DSR COSTS AMORTIZED",102921,"HOME ENERGY EFF INCENTIVE PROGRAM - UTAH","OTHER",7816.55476,{"$f":"IF(OR(tblREGASSJune19[[#This Row],[Alloc]]=\"IDU\",tblREGASSJune19[[#This Row],[Alloc]]=\"OR\",tblREGASSJune19[[#This Row],[Alloc]]=\"UT\",tblREGASSJune19[[#This Row],[Alloc]]=\"WYU\",tblREGASSJune19[[#This Row],[Alloc]]=\"WYP\",tblREGASSJune19[[#This Row],[Alloc]]=\"CA\",tblREGASSJune19[[#This Row],[Alloc]]=\"WA\"),\"SITUS\",tblREGASSJune19[[#This Row],[Alloc]])","v":"OTHER"},{"$f":"INDEX(tblREGASSLookup[FUNC],MATCH(tblREGASSJune19[[#This Row],[Concat]],tblREGASSLookup[Concat],0))","v":"CUST"},{"$f":"IF(tblREGASSJune19[[#This Row],[Total ($000)]]=0,\"NO\",IF(ISNA(tblREGASSJune19[[#This Row],[FUNC]]),\"YES\",IF(_xlfn.ISFORMULA(tblREGASSJune19[[#This Row],[FUNC]]),\"NO\",\"YES\")))","v":"NO"}]
[{"$f":"CONCATENATE(tblREGASSJune19[[#This Row],[Primary Account]],tblREGASSJune19[[#This Row],[Primary Name]],tblREGASSJune19[[#This Row],[Secondary Acct]],tblREGASSJune19[[#This Row],[Secondary  Name]],tblREGASSJune19[[#This Row],[Alloc4FUNC]])","v":"1823920DSR COSTS AMORTIZED102964CALIFORNIA DSM EXPENSE - 2009OTHER"},1823920,"DSR COSTS AMORTIZED",102964,"CALIFORNIA DSM EXPENSE - 2009","OTHER",1.0000000000000001E-5,{"$f":"IF(OR(tblREGASSJune19[[#This Row],[Alloc]]=\"IDU\",tblREGASSJune19[[#This Row],[Alloc]]=\"OR\",tblREGASSJune19[[#This Row],[Alloc]]=\"UT\",tblREGASSJune19[[#This Row],[Alloc]]=\"WYU\",tblREGASSJune19[[#This Row],[Alloc]]=\"WYP\",tblREGASSJune19[[#This Row],[Alloc]]=\"CA\",tblREGASSJune19[[#This Row],[Alloc]]=\"WA\"),\"SITUS\",tblREGASSJune19[[#This Row],[Alloc]])","v":"OTHER"},{"$f":"INDEX(tblREGASSLookup[FUNC],MATCH(tblREGASSJune19[[#This Row],[Concat]],tblREGASSLookup[Concat],0))","v":"CUST"},{"$f":"IF(tblREGASSJune19[[#This Row],[Total ($000)]]=0,\"NO\",IF(ISNA(tblREGASSJune19[[#This Row],[FUNC]]),\"YES\",IF(_xlfn.ISFORMULA(tblREGASSJune19[[#This Row],[FUNC]]),\"NO\",\"YES\")))","v":"NO"}]
[{"$f":"CONCATENATE(tblREGASSJune19[[#This Row],[Primary Account]],tblREGASSJune19[[#This Row],[Primary Name]],tblREGASSJune19[[#This Row],[Secondary Acct]],tblREGASSJune19[[#This Row],[Secondary  Name]],tblREGASSJune19[[#This Row],[Alloc4FUNC]])","v":"1823920DSR COSTS AMORTIZED102976A/C LOAD CONTROL - RESIDENTIAL/UTAH - 20OTHER"},1823920,"DSR COSTS AMORTIZED",102976,"A/C LOAD CONTROL - RESIDENTIAL/UTAH - 20","OTHER",9816.5333300000002,{"$f":"IF(OR(tblREGASSJune19[[#This Row],[Alloc]]=\"IDU\",tblREGASSJune19[[#This Row],[Alloc]]=\"OR\",tblREGASSJune19[[#This Row],[Alloc]]=\"UT\",tblREGASSJune19[[#This Row],[Alloc]]=\"WYU\",tblREGASSJune19[[#This Row],[Alloc]]=\"WYP\",tblREGASSJune19[[#This Row],[Alloc]]=\"CA\",tblREGASSJune19[[#This Row],[Alloc]]=\"WA\"),\"SITUS\",tblREGASSJune19[[#This Row],[Alloc]])","v":"OTHER"},{"$f":"INDEX(tblREGASSLookup[FUNC],MATCH(tblREGASSJune19[[#This Row],[Concat]],tblREGASSLookup[Concat],0))","v":"CUST"},{"$f":"IF(tblREGASSJune19[[#This Row],[Total ($000)]]=0,\"NO\",IF(ISNA(tblREGASSJune19[[#This Row],[FUNC]]),\"YES\",IF(_xlfn.ISFORMULA(tblREGASSJune19[[#This Row],[FUNC]]),\"NO\",\"YES\")))","v":"NO"}]
[{"$f":"CONCATENATE(tblREGASSJune19[[#This Row],[Primary Account]],tblREGASSJune19[[#This Row],[Primary Name]],tblREGASSJune19[[#This Row],[Secondary Acct]],tblREGASSJune19[[#This Row],[Secondary  Name]],tblREGASSJune19[[#This Row],[Alloc4FUNC]])","v":"1823920DSR COSTS AMORTIZED102977AIR CONDITIONING - UTAH - 2009OTHER"},1823920,"DSR COSTS AMORTIZED",102977,"AIR CONDITIONING - UTAH - 2009","OTHER",499.54298,{"$f":"IF(OR(tblREGASSJune19[[#This Row],[Alloc]]=\"IDU\",tblREGASSJune19[[#This Row],[Alloc]]=\"OR\",tblREGASSJune19[[#This Row],[Alloc]]=\"UT\",tblREGASSJune19[[#This Row],[Alloc]]=\"WYU\",tblREGASSJune19[[#This Row],[Alloc]]=\"WYP\",tblREGASSJune19[[#This Row],[Alloc]]=\"CA\",tblREGASSJune19[[#This Row],[Alloc]]=\"WA\"),\"SITUS\",tblREGASSJune19[[#This Row],[Alloc]])","v":"OTHER"},{"$f":"INDEX(tblREGASSLookup[FUNC],MATCH(tblREGASSJune19[[#This Row],[Concat]],tblREGASSLookup[Concat],0))","v":"CUST"},{"$f":"IF(tblREGASSJune19[[#This Row],[Total ($000)]]=0,\"NO\",IF(ISNA(tblREGASSJune19[[#This Row],[FUNC]]),\"YES\",IF(_xlfn.ISFORMULA(tblREGASSJune19[[#This Row],[FUNC]]),\"NO\",\"YES\")))","v":"NO"}]
[{"$f":"CONCATENATE(tblREGASSJune19[[#This Row],[Primary Account]],tblREGASSJune19[[#This Row],[Primary Name]],tblREGASSJune19[[#This Row],[Secondary Acct]],tblREGASSJune19[[#This Row],[Secondary  Name]],tblREGASSJune19[[#This Row],[Alloc4FUNC]])","v":"1823920DSR COSTS AMORTIZED102978ENERGY FINANSWER - UTAH - 2009OTHER"},1823920,"DSR COSTS AMORTIZED",102978,"ENERGY FINANSWER - UTAH - 2009","OTHER",2531.72993,{"$f":"IF(OR(tblREGASSJune19[[#This Row],[Alloc]]=\"IDU\",tblREGASSJune19[[#This Row],[Alloc]]=\"OR\",tblREGASSJune19[[#This Row],[Alloc]]=\"UT\",tblREGASSJune19[[#This Row],[Alloc]]=\"WYU\",tblREGASSJune19[[#This Row],[Alloc]]=\"WYP\",tblREGASSJune19[[#This Row],[Alloc]]=\"CA\",tblREGASSJune19[[#This Row],[Alloc]]=\"WA\"),\"SITUS\",tblREGASSJune19[[#This Row],[Alloc]])","v":"OTHER"},{"$f":"INDEX(tblREGASSLookup[FUNC],MATCH(tblREGASSJune19[[#This Row],[Concat]],tblREGASSLookup[Concat],0))","v":"CUST"},{"$f":"IF(tblREGASSJune19[[#This Row],[Total ($000)]]=0,\"NO\",IF(ISNA(tblREGASSJune19[[#This Row],[FUNC]]),\"YES\",IF(_xlfn.ISFORMULA(tblREGASSJune19[[#This Row],[FUNC]]),\"NO\",\"YES\")))","v":"NO"}]
[{"$f":"CONCATENATE(tblREGASSJune19[[#This Row],[Primary Account]],tblREGASSJune19[[#This Row],[Primary Name]],tblREGASSJune19[[#This Row],[Secondary Acct]],tblREGASSJune19[[#This Row],[Secondary  Name]],tblREGASSJune19[[#This Row],[Alloc4FUNC]])","v":"1823920DSR COSTS AMORTIZED102979INDUSTRIAL FINANSWER - UTAH - 2009OTHER"},1823920,"DSR COSTS AMORTIZED",102979,"INDUSTRIAL FINANSWER - UTAH - 2009","OTHER",5215.3013000000001,{"$f":"IF(OR(tblREGASSJune19[[#This Row],[Alloc]]=\"IDU\",tblREGASSJune19[[#This Row],[Alloc]]=\"OR\",tblREGASSJune19[[#This Row],[Alloc]]=\"UT\",tblREGASSJune19[[#This Row],[Alloc]]=\"WYU\",tblREGASSJune19[[#This Row],[Alloc]]=\"WYP\",tblREGASSJune19[[#This Row],[Alloc]]=\"CA\",tblREGASSJune19[[#This Row],[Alloc]]=\"WA\"),\"SITUS\",tblREGASSJune19[[#This Row],[Alloc]])","v":"OTHER"},{"$f":"INDEX(tblREGASSLookup[FUNC],MATCH(tblREGASSJune19[[#This Row],[Concat]],tblREGASSLookup[Concat],0))","v":"CUST"},{"$f":"IF(tblREGASSJune19[[#This Row],[Total ($000)]]=0,\"NO\",IF(ISNA(tblREGASSJune19[[#This Row],[FUNC]]),\"YES\",IF(_xlfn.ISFORMULA(tblREGASSJune19[[#This Row],[FUNC]]),\"NO\",\"YES\")))","v":"NO"}]
[{"$f":"CONCATENATE(tblREGASSJune19[[#This Row],[Primary Account]],tblREGASSJune19[[#This Row],[Primary Name]],tblREGASSJune19[[#This Row],[Secondary Acct]],tblREGASSJune19[[#This Row],[Secondary  Name]],tblREGASSJune19[[#This Row],[Alloc4FUNC]])","v":"1823920DSR COSTS AMORTIZED102980LOW INCOME - UTAH - 2009OTHER"},1823920,"DSR COSTS AMORTIZED",102980,"LOW INCOME - UTAH - 2009","OTHER",162.35163,{"$f":"IF(OR(tblREGASSJune19[[#This Row],[Alloc]]=\"IDU\",tblREGASSJune19[[#This Row],[Alloc]]=\"OR\",tblREGASSJune19[[#This Row],[Alloc]]=\"UT\",tblREGASSJune19[[#This Row],[Alloc]]=\"WYU\",tblREGASSJune19[[#This Row],[Alloc]]=\"WYP\",tblREGASSJune19[[#This Row],[Alloc]]=\"CA\",tblREGASSJune19[[#This Row],[Alloc]]=\"WA\"),\"SITUS\",tblREGASSJune19[[#This Row],[Alloc]])","v":"OTHER"},{"$f":"INDEX(tblREGASSLookup[FUNC],MATCH(tblREGASSJune19[[#This Row],[Concat]],tblREGASSLookup[Concat],0))","v":"CUST"},{"$f":"IF(tblREGASSJune19[[#This Row],[Total ($000)]]=0,\"NO\",IF(ISNA(tblREGASSJune19[[#This Row],[FUNC]]),\"YES\",IF(_xlfn.ISFORMULA(tblREGASSJune19[[#This Row],[FUNC]]),\"NO\",\"YES\")))","v":"NO"}]
[{"$f":"CONCATENATE(tblREGASSJune19[[#This Row],[Primary Account]],tblREGASSJune19[[#This Row],[Primary Name]],tblREGASSJune19[[#This Row],[Secondary Acct]],tblREGASSJune19[[#This Row],[Secondary  Name]],tblREGASSJune19[[#This Row],[Alloc4FUNC]])","v":"1823920DSR COSTS AMORTIZED102981POWER FORWARD - UTAH - 2009OTHER"},1823920,"DSR COSTS AMORTIZED",102981,"POWER FORWARD - UTAH - 2009","OTHER",50.171720000000001,{"$f":"IF(OR(tblREGASSJune19[[#This Row],[Alloc]]=\"IDU\",tblREGASSJune19[[#This Row],[Alloc]]=\"OR\",tblREGASSJune19[[#This Row],[Alloc]]=\"UT\",tblREGASSJune19[[#This Row],[Alloc]]=\"WYU\",tblREGASSJune19[[#This Row],[Alloc]]=\"WYP\",tblREGASSJune19[[#This Row],[Alloc]]=\"CA\",tblREGASSJune19[[#This Row],[Alloc]]=\"WA\"),\"SITUS\",tblREGASSJune19[[#This Row],[Alloc]])","v":"OTHER"},{"$f":"INDEX(tblREGASSLookup[FUNC],MATCH(tblREGASSJune19[[#This Row],[Concat]],tblREGASSLookup[Concat],0))","v":"CUST"},{"$f":"IF(tblREGASSJune19[[#This Row],[Total ($000)]]=0,\"NO\",IF(ISNA(tblREGASSJune19[[#This Row],[FUNC]]),\"YES\",IF(_xlfn.ISFORMULA(tblREGASSJune19[[#This Row],[FUNC]]),\"NO\",\"YES\")))","v":"NO"}]
[{"$f":"CONCATENATE(tblREGASSJune19[[#This Row],[Primary Account]],tblREGASSJune19[[#This Row],[Primary Name]],tblREGASSJune19[[#This Row],[Secondary Acct]],tblREGASSJune19[[#This Row],[Secondary  Name]],tblREGASSJune19[[#This Row],[Alloc4FUNC]])","v":"1823920DSR COSTS AMORTIZED102982REFRIGERATOR RECYCLING PGM- UTAH - 2009OTHER"},1823920,"DSR COSTS AMORTIZED",102982,"REFRIGERATOR RECYCLING PGM- UTAH - 2009","OTHER",2339.0797200000002,{"$f":"IF(OR(tblREGASSJune19[[#This Row],[Alloc]]=\"IDU\",tblREGASSJune19[[#This Row],[Alloc]]=\"OR\",tblREGASSJune19[[#This Row],[Alloc]]=\"UT\",tblREGASSJune19[[#This Row],[Alloc]]=\"WYU\",tblREGASSJune19[[#This Row],[Alloc]]=\"WYP\",tblREGASSJune19[[#This Row],[Alloc]]=\"CA\",tblREGASSJune19[[#This Row],[Alloc]]=\"WA\"),\"SITUS\",tblREGASSJune19[[#This Row],[Alloc]])","v":"OTHER"},{"$f":"INDEX(tblREGASSLookup[FUNC],MATCH(tblREGASSJune19[[#This Row],[Concat]],tblREGASSLookup[Concat],0))","v":"CUST"},{"$f":"IF(tblREGASSJune19[[#This Row],[Total ($000)]]=0,\"NO\",IF(ISNA(tblREGASSJune19[[#This Row],[FUNC]]),\"YES\",IF(_xlfn.ISFORMULA(tblREGASSJune19[[#This Row],[FUNC]]),\"NO\",\"YES\")))","v":"NO"}]
[{"$f":"CONCATENATE(tblREGASSJune19[[#This Row],[Primary Account]],tblREGASSJune19[[#This Row],[Primary Name]],tblREGASSJune19[[#This Row],[Secondary Acct]],tblREGASSJune19[[#This Row],[Secondary  Name]],tblREGASSJune19[[#This Row],[Alloc4FUNC]])","v":"1823920DSR COSTS AMORTIZED102983COMMERCIAL SELF-DIRECT - UTAH - 2009OTHER"},1823920,"DSR COSTS AMORTIZED",102983,"COMMERCIAL SELF-DIRECT - UTAH - 2009","OTHER",52.810299999999998,{"$f":"IF(OR(tblREGASSJune19[[#This Row],[Alloc]]=\"IDU\",tblREGASSJune19[[#This Row],[Alloc]]=\"OR\",tblREGASSJune19[[#This Row],[Alloc]]=\"UT\",tblREGASSJune19[[#This Row],[Alloc]]=\"WYU\",tblREGASSJune19[[#This Row],[Alloc]]=\"WYP\",tblREGASSJune19[[#This Row],[Alloc]]=\"CA\",tblREGASSJune19[[#This Row],[Alloc]]=\"WA\"),\"SITUS\",tblREGASSJune19[[#This Row],[Alloc]])","v":"OTHER"},{"$f":"INDEX(tblREGASSLookup[FUNC],MATCH(tblREGASSJune19[[#This Row],[Concat]],tblREGASSLookup[Concat],0))","v":"CUST"},{"$f":"IF(tblREGASSJune19[[#This Row],[Total ($000)]]=0,\"NO\",IF(ISNA(tblREGASSJune19[[#This Row],[FUNC]]),\"YES\",IF(_xlfn.ISFORMULA(tblREGASSJune19[[#This Row],[FUNC]]),\"NO\",\"YES\")))","v":"NO"}]
[{"$f":"CONCATENATE(tblREGASSJune19[[#This Row],[Primary Account]],tblREGASSJune19[[#This Row],[Primary Name]],tblREGASSJune19[[#This Row],[Secondary Acct]],tblREGASSJune19[[#This Row],[Secondary  Name]],tblREGASSJune19[[#This Row],[Alloc4FUNC]])","v":"1823920DSR COSTS AMORTIZED102984INDUSTRIAL SELF-DIRECT - UTAH - 2009OTHER"},1823920,"DSR COSTS AMORTIZED",102984,"INDUSTRIAL SELF-DIRECT - UTAH - 2009","OTHER",71.720429999999993,{"$f":"IF(OR(tblREGASSJune19[[#This Row],[Alloc]]=\"IDU\",tblREGASSJune19[[#This Row],[Alloc]]=\"OR\",tblREGASSJune19[[#This Row],[Alloc]]=\"UT\",tblREGASSJune19[[#This Row],[Alloc]]=\"WYU\",tblREGASSJune19[[#This Row],[Alloc]]=\"WYP\",tblREGASSJune19[[#This Row],[Alloc]]=\"CA\",tblREGASSJune19[[#This Row],[Alloc]]=\"WA\"),\"SITUS\",tblREGASSJune19[[#This Row],[Alloc]])","v":"OTHER"},{"$f":"INDEX(tblREGASSLookup[FUNC],MATCH(tblREGASSJune19[[#This Row],[Concat]],tblREGASSLookup[Concat],0))","v":"CUST"},{"$f":"IF(tblREGASSJune19[[#This Row],[Total ($000)]]=0,\"NO\",IF(ISNA(tblREGASSJune19[[#This Row],[FUNC]]),\"YES\",IF(_xlfn.ISFORMULA(tblREGASSJune19[[#This Row],[FUNC]]),\"NO\",\"YES\")))","v":"NO"}]
[{"$f":"CONCATENATE(tblREGASSJune19[[#This Row],[Primary Account]],tblREGASSJune19[[#This Row],[Primary Name]],tblREGASSJune19[[#This Row],[Secondary Acct]],tblREGASSJune19[[#This Row],[Secondary  Name]],tblREGASSJune19[[#This Row],[Alloc4FUNC]])","v":"1823920DSR COSTS AMORTIZED102985RESIDENTIAL NEW CONSTRUCTION - UTAH - 20OTHER"},1823920,"DSR COSTS AMORTIZED",102985,"RESIDENTIAL NEW CONSTRUCTION - UTAH - 20","OTHER",1446.3907099999999,{"$f":"IF(OR(tblREGASSJune19[[#This Row],[Alloc]]=\"IDU\",tblREGASSJune19[[#This Row],[Alloc]]=\"OR\",tblREGASSJune19[[#This Row],[Alloc]]=\"UT\",tblREGASSJune19[[#This Row],[Alloc]]=\"WYU\",tblREGASSJune19[[#This Row],[Alloc]]=\"WYP\",tblREGASSJune19[[#This Row],[Alloc]]=\"CA\",tblREGASSJune19[[#This Row],[Alloc]]=\"WA\"),\"SITUS\",tblREGASSJune19[[#This Row],[Alloc]])","v":"OTHER"},{"$f":"INDEX(tblREGASSLookup[FUNC],MATCH(tblREGASSJune19[[#This Row],[Concat]],tblREGASSLookup[Concat],0))","v":"CUST"},{"$f":"IF(tblREGASSJune19[[#This Row],[Total ($000)]]=0,\"NO\",IF(ISNA(tblREGASSJune19[[#This Row],[FUNC]]),\"YES\",IF(_xlfn.ISFORMULA(tblREGASSJune19[[#This Row],[FUNC]]),\"NO\",\"YES\")))","v":"NO"}]
[{"$f":"CONCATENATE(tblREGASSJune19[[#This Row],[Primary Account]],tblREGASSJune19[[#This Row],[Primary Name]],tblREGASSJune19[[#This Row],[Secondary Acct]],tblREGASSJune19[[#This Row],[Secondary  Name]],tblREGASSJune19[[#This Row],[Alloc4FUNC]])","v":"1823920DSR COSTS AMORTIZED102986COMMERCIAL FINANSWER EXPRESS - UTAH - 20OTHER"},1823920,"DSR COSTS AMORTIZED",102986,"COMMERCIAL FINANSWER EXPRESS - UTAH - 20","OTHER",3258.2743999999998,{"$f":"IF(OR(tblREGASSJune19[[#This Row],[Alloc]]=\"IDU\",tblREGASSJune19[[#This Row],[Alloc]]=\"OR\",tblREGASSJune19[[#This Row],[Alloc]]=\"UT\",tblREGASSJune19[[#This Row],[Alloc]]=\"WYU\",tblREGASSJune19[[#This Row],[Alloc]]=\"WYP\",tblREGASSJune19[[#This Row],[Alloc]]=\"CA\",tblREGASSJune19[[#This Row],[Alloc]]=\"WA\"),\"SITUS\",tblREGASSJune19[[#This Row],[Alloc]])","v":"OTHER"},{"$f":"INDEX(tblREGASSLookup[FUNC],MATCH(tblREGASSJune19[[#This Row],[Concat]],tblREGASSLookup[Concat],0))","v":"CUST"},{"$f":"IF(tblREGASSJune19[[#This Row],[Total ($000)]]=0,\"NO\",IF(ISNA(tblREGASSJune19[[#This Row],[FUNC]]),\"YES\",IF(_xlfn.ISFORMULA(tblREGASSJune19[[#This Row],[FUNC]]),\"NO\",\"YES\")))","v":"NO"}]
[{"$f":"CONCATENATE(tblREGASSJune19[[#This Row],[Primary Account]],tblREGASSJune19[[#This Row],[Primary Name]],tblREGASSJune19[[#This Row],[Secondary Acct]],tblREGASSJune19[[#This Row],[Secondary  Name]],tblREGASSJune19[[#This Row],[Alloc4FUNC]])","v":"1823920DSR COSTS AMORTIZED102987INDUSTRIAL FINANSWER EXPRESS - UTAH - 20OTHER"},1823920,"DSR COSTS AMORTIZED",102987,"INDUSTRIAL FINANSWER EXPRESS - UTAH - 20","OTHER",775.53372000000002,{"$f":"IF(OR(tblREGASSJune19[[#This Row],[Alloc]]=\"IDU\",tblREGASSJune19[[#This Row],[Alloc]]=\"OR\",tblREGASSJune19[[#This Row],[Alloc]]=\"UT\",tblREGASSJune19[[#This Row],[Alloc]]=\"WYU\",tblREGASSJune19[[#This Row],[Alloc]]=\"WYP\",tblREGASSJune19[[#This Row],[Alloc]]=\"CA\",tblREGASSJune19[[#This Row],[Alloc]]=\"WA\"),\"SITUS\",tblREGASSJune19[[#This Row],[Alloc]])","v":"OTHER"},{"$f":"INDEX(tblREGASSLookup[FUNC],MATCH(tblREGASSJune19[[#This Row],[Concat]],tblREGASSLookup[Concat],0))","v":"CUST"},{"$f":"IF(tblREGASSJune19[[#This Row],[Total ($000)]]=0,\"NO\",IF(ISNA(tblREGASSJune19[[#This Row],[FUNC]]),\"YES\",IF(_xlfn.ISFORMULA(tblREGASSJune19[[#This Row],[FUNC]]),\"NO\",\"YES\")))","v":"NO"}]
[{"$f":"CONCATENATE(tblREGASSJune19[[#This Row],[Primary Account]],tblREGASSJune19[[#This Row],[Primary Name]],tblREGASSJune19[[#This Row],[Secondary Acct]],tblREGASSJune19[[#This Row],[Secondary  Name]],tblREGASSJune19[[#This Row],[Alloc4FUNC]])","v":"1823920DSR COSTS AMORTIZED102988RETROFIT COMMISSIONING PROGRAM  - UTAH -OTHER"},1823920,"DSR COSTS AMORTIZED",102988,"RETROFIT COMMISSIONING PROGRAM  - UTAH -","OTHER",947.45029999999997,{"$f":"IF(OR(tblREGASSJune19[[#This Row],[Alloc]]=\"IDU\",tblREGASSJune19[[#This Row],[Alloc]]=\"OR\",tblREGASSJune19[[#This Row],[Alloc]]=\"UT\",tblREGASSJune19[[#This Row],[Alloc]]=\"WYU\",tblREGASSJune19[[#This Row],[Alloc]]=\"WYP\",tblREGASSJune19[[#This Row],[Alloc]]=\"CA\",tblREGASSJune19[[#This Row],[Alloc]]=\"WA\"),\"SITUS\",tblREGASSJune19[[#This Row],[Alloc]])","v":"OTHER"},{"$f":"INDEX(tblREGASSLookup[FUNC],MATCH(tblREGASSJune19[[#This Row],[Concat]],tblREGASSLookup[Concat],0))","v":"CUST"},{"$f":"IF(tblREGASSJune19[[#This Row],[Total ($000)]]=0,\"NO\",IF(ISNA(tblREGASSJune19[[#This Row],[FUNC]]),\"YES\",IF(_xlfn.ISFORMULA(tblREGASSJune19[[#This Row],[FUNC]]),\"NO\",\"YES\")))","v":"NO"}]
[{"$f":"CONCATENATE(tblREGASSJune19[[#This Row],[Primary Account]],tblREGASSJune19[[#This Row],[Primary Name]],tblREGASSJune19[[#This Row],[Secondary Acct]],tblREGASSJune19[[#This Row],[Secondary  Name]],tblREGASSJune19[[#This Row],[Alloc4FUNC]])","v":"1823920DSR COSTS AMORTIZED102990IRRIGATION LOAD CONTROL  - UTAH - 2009OTHER"},1823920,"DSR COSTS AMORTIZED",102990,"IRRIGATION LOAD CONTROL  - UTAH - 2009","OTHER",2731.80899,{"$f":"IF(OR(tblREGASSJune19[[#This Row],[Alloc]]=\"IDU\",tblREGASSJune19[[#This Row],[Alloc]]=\"OR\",tblREGASSJune19[[#This Row],[Alloc]]=\"UT\",tblREGASSJune19[[#This Row],[Alloc]]=\"WYU\",tblREGASSJune19[[#This Row],[Alloc]]=\"WYP\",tblREGASSJune19[[#This Row],[Alloc]]=\"CA\",tblREGASSJune19[[#This Row],[Alloc]]=\"WA\"),\"SITUS\",tblREGASSJune19[[#This Row],[Alloc]])","v":"OTHER"},{"$f":"INDEX(tblREGASSLookup[FUNC],MATCH(tblREGASSJune19[[#This Row],[Concat]],tblREGASSLookup[Concat],0))","v":"CUST"},{"$f":"IF(tblREGASSJune19[[#This Row],[Total ($000)]]=0,\"NO\",IF(ISNA(tblREGASSJune19[[#This Row],[FUNC]]),\"YES\",IF(_xlfn.ISFORMULA(tblREGASSJune19[[#This Row],[FUNC]]),\"NO\",\"YES\")))","v":"NO"}]
[{"$f":"CONCATENATE(tblREGASSJune19[[#This Row],[Primary Account]],tblREGASSJune19[[#This Row],[Primary Name]],tblREGASSJune19[[#This Row],[Secondary Acct]],tblREGASSJune19[[#This Row],[Secondary  Name]],tblREGASSJune19[[#This Row],[Alloc4FUNC]])","v":"1823920DSR COSTS AMORTIZED102991HOME ENERGY EFF INCENTIVE PROG - UT 2009OTHER"},1823920,"DSR COSTS AMORTIZED",102991,"HOME ENERGY EFF INCENTIVE PROG - UT 2009","OTHER",25439.422709999999,{"$f":"IF(OR(tblREGASSJune19[[#This Row],[Alloc]]=\"IDU\",tblREGASSJune19[[#This Row],[Alloc]]=\"OR\",tblREGASSJune19[[#This Row],[Alloc]]=\"UT\",tblREGASSJune19[[#This Row],[Alloc]]=\"WYU\",tblREGASSJune19[[#This Row],[Alloc]]=\"WYP\",tblREGASSJune19[[#This Row],[Alloc]]=\"CA\",tblREGASSJune19[[#This Row],[Alloc]]=\"WA\"),\"SITUS\",tblREGASSJune19[[#This Row],[Alloc]])","v":"OTHER"},{"$f":"INDEX(tblREGASSLookup[FUNC],MATCH(tblREGASSJune19[[#This Row],[Concat]],tblREGASSLookup[Concat],0))","v":"CUST"},{"$f":"IF(tblREGASSJune19[[#This Row],[Total ($000)]]=0,\"NO\",IF(ISNA(tblREGASSJune19[[#This Row],[FUNC]]),\"YES\",IF(_xlfn.ISFORMULA(tblREGASSJune19[[#This Row],[FUNC]]),\"NO\",\"YES\")))","v":"NO"}]
[{"$f":"CONCATENATE(tblREGASSJune19[[#This Row],[Primary Account]],tblREGASSJune19[[#This Row],[Primary Name]],tblREGASSJune19[[#This Row],[Secondary Acct]],tblREGASSJune19[[#This Row],[Secondary  Name]],tblREGASSJune19[[#This Row],[Alloc4FUNC]])","v":"1823920DSR COSTS AMORTIZED102992ENERGY FINANSWER - WYOMING PPL - 2009OTHER"},1823920,"DSR COSTS AMORTIZED",102992,"ENERGY FINANSWER - WYOMING PPL - 2009","OTHER",21.01595,{"$f":"IF(OR(tblREGASSJune19[[#This Row],[Alloc]]=\"IDU\",tblREGASSJune19[[#This Row],[Alloc]]=\"OR\",tblREGASSJune19[[#This Row],[Alloc]]=\"UT\",tblREGASSJune19[[#This Row],[Alloc]]=\"WYU\",tblREGASSJune19[[#This Row],[Alloc]]=\"WYP\",tblREGASSJune19[[#This Row],[Alloc]]=\"CA\",tblREGASSJune19[[#This Row],[Alloc]]=\"WA\"),\"SITUS\",tblREGASSJune19[[#This Row],[Alloc]])","v":"OTHER"},{"$f":"INDEX(tblREGASSLookup[FUNC],MATCH(tblREGASSJune19[[#This Row],[Concat]],tblREGASSLookup[Concat],0))","v":"CUST"},{"$f":"IF(tblREGASSJune19[[#This Row],[Total ($000)]]=0,\"NO\",IF(ISNA(tblREGASSJune19[[#This Row],[FUNC]]),\"YES\",IF(_xlfn.ISFORMULA(tblREGASSJune19[[#This Row],[FUNC]]),\"NO\",\"YES\")))","v":"NO"}]
[{"$f":"CONCATENATE(tblREGASSJune19[[#This Row],[Primary Account]],tblREGASSJune19[[#This Row],[Primary Name]],tblREGASSJune19[[#This Row],[Secondary Acct]],tblREGASSJune19[[#This Row],[Secondary  Name]],tblREGASSJune19[[#This Row],[Alloc4FUNC]])","v":"1823920DSR COSTS AMORTIZED102993INDUSTRIAL FINANSWER-WYOMING - PPL 2009OTHER"},1823920,"DSR COSTS AMORTIZED",102993,"INDUSTRIAL FINANSWER-WYOMING - PPL 2009","OTHER",95.673599999999993,{"$f":"IF(OR(tblREGASSJune19[[#This Row],[Alloc]]=\"IDU\",tblREGASSJune19[[#This Row],[Alloc]]=\"OR\",tblREGASSJune19[[#This Row],[Alloc]]=\"UT\",tblREGASSJune19[[#This Row],[Alloc]]=\"WYU\",tblREGASSJune19[[#This Row],[Alloc]]=\"WYP\",tblREGASSJune19[[#This Row],[Alloc]]=\"CA\",tblREGASSJune19[[#This Row],[Alloc]]=\"WA\"),\"SITUS\",tblREGASSJune19[[#This Row],[Alloc]])","v":"OTHER"},{"$f":"INDEX(tblREGASSLookup[FUNC],MATCH(tblREGASSJune19[[#This Row],[Concat]],tblREGASSLookup[Concat],0))","v":"CUST"},{"$f":"IF(tblREGASSJune19[[#This Row],[Total ($000)]]=0,\"NO\",IF(ISNA(tblREGASSJune19[[#This Row],[FUNC]]),\"YES\",IF(_xlfn.ISFORMULA(tblREGASSJune19[[#This Row],[FUNC]]),\"NO\",\"YES\")))","v":"NO"}]
[{"$f":"CONCATENATE(tblREGASSJune19[[#This Row],[Primary Account]],tblREGASSJune19[[#This Row],[Primary Name]],tblREGASSJune19[[#This Row],[Secondary Acct]],tblREGASSJune19[[#This Row],[Secondary  Name]],tblREGASSJune19[[#This Row],[Alloc4FUNC]])","v":"1823920DSR COSTS AMORTIZED102995REFRIGERATOR RECYCLING - PPL WYOMING - 2OTHER"},1823920,"DSR COSTS AMORTIZED",102995,"REFRIGERATOR RECYCLING - PPL WYOMING - 2","OTHER",140.11482000000001,{"$f":"IF(OR(tblREGASSJune19[[#This Row],[Alloc]]=\"IDU\",tblREGASSJune19[[#This Row],[Alloc]]=\"OR\",tblREGASSJune19[[#This Row],[Alloc]]=\"UT\",tblREGASSJune19[[#This Row],[Alloc]]=\"WYU\",tblREGASSJune19[[#This Row],[Alloc]]=\"WYP\",tblREGASSJune19[[#This Row],[Alloc]]=\"CA\",tblREGASSJune19[[#This Row],[Alloc]]=\"WA\"),\"SITUS\",tblREGASSJune19[[#This Row],[Alloc]])","v":"OTHER"},{"$f":"INDEX(tblREGASSLookup[FUNC],MATCH(tblREGASSJune19[[#This Row],[Concat]],tblREGASSLookup[Concat],0))","v":"CUST"},{"$f":"IF(tblREGASSJune19[[#This Row],[Total ($000)]]=0,\"NO\",IF(ISNA(tblREGASSJune19[[#This Row],[FUNC]]),\"YES\",IF(_xlfn.ISFORMULA(tblREGASSJune19[[#This Row],[FUNC]]),\"NO\",\"YES\")))","v":"NO"}]
[{"$f":"CONCATENATE(tblREGASSJune19[[#This Row],[Primary Account]],tblREGASSJune19[[#This Row],[Primary Name]],tblREGASSJune19[[#This Row],[Secondary Acct]],tblREGASSJune19[[#This Row],[Secondary  Name]],tblREGASSJune19[[#This Row],[Alloc4FUNC]])","v":"1823920DSR COSTS AMORTIZED102996HOME ENERGY EFF INCENTIVE PRO - PPL WYOMOTHER"},1823920,"DSR COSTS AMORTIZED",102996,"HOME ENERGY EFF INCENTIVE PRO - PPL WYOM","OTHER",439.24164000000002,{"$f":"IF(OR(tblREGASSJune19[[#This Row],[Alloc]]=\"IDU\",tblREGASSJune19[[#This Row],[Alloc]]=\"OR\",tblREGASSJune19[[#This Row],[Alloc]]=\"UT\",tblREGASSJune19[[#This Row],[Alloc]]=\"WYU\",tblREGASSJune19[[#This Row],[Alloc]]=\"WYP\",tblREGASSJune19[[#This Row],[Alloc]]=\"CA\",tblREGASSJune19[[#This Row],[Alloc]]=\"WA\"),\"SITUS\",tblREGASSJune19[[#This Row],[Alloc]])","v":"OTHER"},{"$f":"INDEX(tblREGASSLookup[FUNC],MATCH(tblREGASSJune19[[#This Row],[Concat]],tblREGASSLookup[Concat],0))","v":"CUST"},{"$f":"IF(tblREGASSJune19[[#This Row],[Total ($000)]]=0,\"NO\",IF(ISNA(tblREGASSJune19[[#This Row],[FUNC]]),\"YES\",IF(_xlfn.ISFORMULA(tblREGASSJune19[[#This Row],[FUNC]]),\"NO\",\"YES\")))","v":"NO"}]
[{"$f":"CONCATENATE(tblREGASSJune19[[#This Row],[Primary Account]],tblREGASSJune19[[#This Row],[Primary Name]],tblREGASSJune19[[#This Row],[Secondary Acct]],tblREGASSJune19[[#This Row],[Secondary  Name]],tblREGASSJune19[[#This Row],[Alloc4FUNC]])","v":"1823920DSR COSTS AMORTIZED102997LOW-INCOME WEATHERIZATION - WYOMING PPLOTHER"},1823920,"DSR COSTS AMORTIZED",102997,"LOW-INCOME WEATHERIZATION - WYOMING PPL","OTHER",85.836780000000005,{"$f":"IF(OR(tblREGASSJune19[[#This Row],[Alloc]]=\"IDU\",tblREGASSJune19[[#This Row],[Alloc]]=\"OR\",tblREGASSJune19[[#This Row],[Alloc]]=\"UT\",tblREGASSJune19[[#This Row],[Alloc]]=\"WYU\",tblREGASSJune19[[#This Row],[Alloc]]=\"WYP\",tblREGASSJune19[[#This Row],[Alloc]]=\"CA\",tblREGASSJune19[[#This Row],[Alloc]]=\"WA\"),\"SITUS\",tblREGASSJune19[[#This Row],[Alloc]])","v":"OTHER"},{"$f":"INDEX(tblREGASSLookup[FUNC],MATCH(tblREGASSJune19[[#This Row],[Concat]],tblREGASSLookup[Concat],0))","v":"CUST"},{"$f":"IF(tblREGASSJune19[[#This Row],[Total ($000)]]=0,\"NO\",IF(ISNA(tblREGASSJune19[[#This Row],[FUNC]]),\"YES\",IF(_xlfn.ISFORMULA(tblREGASSJune19[[#This Row],[FUNC]]),\"NO\",\"YES\")))","v":"NO"}]
[{"$f":"CONCATENATE(tblREGASSJune19[[#This Row],[Primary Account]],tblREGASSJune19[[#This Row],[Primary Name]],tblREGASSJune19[[#This Row],[Secondary Acct]],tblREGASSJune19[[#This Row],[Secondary  Name]],tblREGASSJune19[[#This Row],[Alloc4FUNC]])","v":"1823920DSR COSTS AMORTIZED102998COMMERCIAL FINANSWER EXPRESS - WY - 2009OTHER"},1823920,"DSR COSTS AMORTIZED",102998,"COMMERCIAL FINANSWER EXPRESS - WY - 2009","OTHER",139.49113,{"$f":"IF(OR(tblREGASSJune19[[#This Row],[Alloc]]=\"IDU\",tblREGASSJune19[[#This Row],[Alloc]]=\"OR\",tblREGASSJune19[[#This Row],[Alloc]]=\"UT\",tblREGASSJune19[[#This Row],[Alloc]]=\"WYU\",tblREGASSJune19[[#This Row],[Alloc]]=\"WYP\",tblREGASSJune19[[#This Row],[Alloc]]=\"CA\",tblREGASSJune19[[#This Row],[Alloc]]=\"WA\"),\"SITUS\",tblREGASSJune19[[#This Row],[Alloc]])","v":"OTHER"},{"$f":"INDEX(tblREGASSLookup[FUNC],MATCH(tblREGASSJune19[[#This Row],[Concat]],tblREGASSLookup[Concat],0))","v":"CUST"},{"$f":"IF(tblREGASSJune19[[#This Row],[Total ($000)]]=0,\"NO\",IF(ISNA(tblREGASSJune19[[#This Row],[FUNC]]),\"YES\",IF(_xlfn.ISFORMULA(tblREGASSJune19[[#This Row],[FUNC]]),\"NO\",\"YES\")))","v":"NO"}]
[{"$f":"CONCATENATE(tblREGASSJune19[[#This Row],[Primary Account]],tblREGASSJune19[[#This Row],[Primary Name]],tblREGASSJune19[[#This Row],[Secondary Acct]],tblREGASSJune19[[#This Row],[Secondary  Name]],tblREGASSJune19[[#This Row],[Alloc4FUNC]])","v":"1823920DSR COSTS AMORTIZED102999INDUSTRIAL FINANSWER EXPRESS - WY - 2009OTHER"},1823920,"DSR COSTS AMORTIZED",102999,"INDUSTRIAL FINANSWER EXPRESS - WY - 2009","OTHER",58.969430000000003,{"$f":"IF(OR(tblREGASSJune19[[#This Row],[Alloc]]=\"IDU\",tblREGASSJune19[[#This Row],[Alloc]]=\"OR\",tblREGASSJune19[[#This Row],[Alloc]]=\"UT\",tblREGASSJune19[[#This Row],[Alloc]]=\"WYU\",tblREGASSJune19[[#This Row],[Alloc]]=\"WYP\",tblREGASSJune19[[#This Row],[Alloc]]=\"CA\",tblREGASSJune19[[#This Row],[Alloc]]=\"WA\"),\"SITUS\",tblREGASSJune19[[#This Row],[Alloc]])","v":"OTHER"},{"$f":"INDEX(tblREGASSLookup[FUNC],MATCH(tblREGASSJune19[[#This Row],[Concat]],tblREGASSLookup[Concat],0))","v":"CUST"},{"$f":"IF(tblREGASSJune19[[#This Row],[Total ($000)]]=0,\"NO\",IF(ISNA(tblREGASSJune19[[#This Row],[FUNC]]),\"YES\",IF(_xlfn.ISFORMULA(tblREGASSJune19[[#This Row],[FUNC]]),\"NO\",\"YES\")))","v":"NO"}]
[{"$f":"CONCATENATE(tblREGASSJune19[[#This Row],[Primary Account]],tblREGASSJune19[[#This Row],[Primary Name]],tblREGASSJune19[[#This Row],[Secondary Acct]],tblREGASSJune19[[#This Row],[Secondary  Name]],tblREGASSJune19[[#This Row],[Alloc4FUNC]])","v":"1823920DSR COSTS AMORTIZED103000SELF DIRECT - COMMERCIAL - WY - 2009OTHER"},1823920,"DSR COSTS AMORTIZED",103000,"SELF DIRECT - COMMERCIAL - WY - 2009","OTHER",4.7113899999999997,{"$f":"IF(OR(tblREGASSJune19[[#This Row],[Alloc]]=\"IDU\",tblREGASSJune19[[#This Row],[Alloc]]=\"OR\",tblREGASSJune19[[#This Row],[Alloc]]=\"UT\",tblREGASSJune19[[#This Row],[Alloc]]=\"WYU\",tblREGASSJune19[[#This Row],[Alloc]]=\"WYP\",tblREGASSJune19[[#This Row],[Alloc]]=\"CA\",tblREGASSJune19[[#This Row],[Alloc]]=\"WA\"),\"SITUS\",tblREGASSJune19[[#This Row],[Alloc]])","v":"OTHER"},{"$f":"INDEX(tblREGASSLookup[FUNC],MATCH(tblREGASSJune19[[#This Row],[Concat]],tblREGASSLookup[Concat],0))","v":"CUST"},{"$f":"IF(tblREGASSJune19[[#This Row],[Total ($000)]]=0,\"NO\",IF(ISNA(tblREGASSJune19[[#This Row],[FUNC]]),\"YES\",IF(_xlfn.ISFORMULA(tblREGASSJune19[[#This Row],[FUNC]]),\"NO\",\"YES\")))","v":"NO"}]
[{"$f":"CONCATENATE(tblREGASSJune19[[#This Row],[Primary Account]],tblREGASSJune19[[#This Row],[Primary Name]],tblREGASSJune19[[#This Row],[Secondary Acct]],tblREGASSJune19[[#This Row],[Secondary  Name]],tblREGASSJune19[[#This Row],[Alloc4FUNC]])","v":"1823920DSR COSTS AMORTIZED103001SELF DIRECT - INDUSTRIAL  - WY - 2009OTHER"},1823920,"DSR COSTS AMORTIZED",103001,"SELF DIRECT - INDUSTRIAL  - WY - 2009","OTHER",11.546659999999999,{"$f":"IF(OR(tblREGASSJune19[[#This Row],[Alloc]]=\"IDU\",tblREGASSJune19[[#This Row],[Alloc]]=\"OR\",tblREGASSJune19[[#This Row],[Alloc]]=\"UT\",tblREGASSJune19[[#This Row],[Alloc]]=\"WYU\",tblREGASSJune19[[#This Row],[Alloc]]=\"WYP\",tblREGASSJune19[[#This Row],[Alloc]]=\"CA\",tblREGASSJune19[[#This Row],[Alloc]]=\"WA\"),\"SITUS\",tblREGASSJune19[[#This Row],[Alloc]])","v":"OTHER"},{"$f":"INDEX(tblREGASSLookup[FUNC],MATCH(tblREGASSJune19[[#This Row],[Concat]],tblREGASSLookup[Concat],0))","v":"CUST"},{"$f":"IF(tblREGASSJune19[[#This Row],[Total ($000)]]=0,\"NO\",IF(ISNA(tblREGASSJune19[[#This Row],[FUNC]]),\"YES\",IF(_xlfn.ISFORMULA(tblREGASSJune19[[#This Row],[FUNC]]),\"NO\",\"YES\")))","v":"NO"}]
[{"$f":"CONCATENATE(tblREGASSJune19[[#This Row],[Primary Account]],tblREGASSJune19[[#This Row],[Primary Name]],tblREGASSJune19[[#This Row],[Secondary Acct]],tblREGASSJune19[[#This Row],[Secondary  Name]],tblREGASSJune19[[#This Row],[Alloc4FUNC]])","v":"1823920DSR COSTS AMORTIZED103003MAIN CHECK DISB-WIRES/ACH IN CLEAR ACCTOTHER"},1823920,"DSR COSTS AMORTIZED",103003,"MAIN CHECK DISB-WIRES/ACH IN CLEAR ACCT","OTHER",1.79514,{"$f":"IF(OR(tblREGASSJune19[[#This Row],[Alloc]]=\"IDU\",tblREGASSJune19[[#This Row],[Alloc]]=\"OR\",tblREGASSJune19[[#This Row],[Alloc]]=\"UT\",tblREGASSJune19[[#This Row],[Alloc]]=\"WYU\",tblREGASSJune19[[#This Row],[Alloc]]=\"WYP\",tblREGASSJune19[[#This Row],[Alloc]]=\"CA\",tblREGASSJune19[[#This Row],[Alloc]]=\"WA\"),\"SITUS\",tblREGASSJune19[[#This Row],[Alloc]])","v":"OTHER"},{"$f":"INDEX(tblREGASSLookup[FUNC],MATCH(tblREGASSJune19[[#This Row],[Concat]],tblREGASSLookup[Concat],0))","v":"CUST"},{"$f":"IF(tblREGASSJune19[[#This Row],[Total ($000)]]=0,\"NO\",IF(ISNA(tblREGASSJune19[[#This Row],[FUNC]]),\"YES\",IF(_xlfn.ISFORMULA(tblREGASSJune19[[#This Row],[FUNC]]),\"NO\",\"YES\")))","v":"NO"}]
[{"$f":"CONCATENATE(tblREGASSJune19[[#This Row],[Primary Account]],tblREGASSJune19[[#This Row],[Primary Name]],tblREGASSJune19[[#This Row],[Secondary Acct]],tblREGASSJune19[[#This Row],[Secondary  Name]],tblREGASSJune19[[#This Row],[Alloc4FUNC]])","v":"1823920DSR COSTS AMORTIZED103004MAIN CHECK DISB-WIRES/ACH OUT CLEAR ACCTOTHER"},1823920,"DSR COSTS AMORTIZED",103004,"MAIN CHECK DISB-WIRES/ACH OUT CLEAR ACCT","OTHER",1.7908200000000001,{"$f":"IF(OR(tblREGASSJune19[[#This Row],[Alloc]]=\"IDU\",tblREGASSJune19[[#This Row],[Alloc]]=\"OR\",tblREGASSJune19[[#This Row],[Alloc]]=\"UT\",tblREGASSJune19[[#This Row],[Alloc]]=\"WYU\",tblREGASSJune19[[#This Row],[Alloc]]=\"WYP\",tblREGASSJune19[[#This Row],[Alloc]]=\"CA\",tblREGASSJune19[[#This Row],[Alloc]]=\"WA\"),\"SITUS\",tblREGASSJune19[[#This Row],[Alloc]])","v":"OTHER"},{"$f":"INDEX(tblREGASSLookup[FUNC],MATCH(tblREGASSJune19[[#This Row],[Concat]],tblREGASSLookup[Concat],0))","v":"CUST"},{"$f":"IF(tblREGASSJune19[[#This Row],[Total ($000)]]=0,\"NO\",IF(ISNA(tblREGASSJune19[[#This Row],[FUNC]]),\"YES\",IF(_xlfn.ISFORMULA(tblREGASSJune19[[#This Row],[FUNC]]),\"NO\",\"YES\")))","v":"NO"}]
[{"$f":"CONCATENATE(tblREGASSJune19[[#This Row],[Primary Account]],tblREGASSJune19[[#This Row],[Primary Name]],tblREGASSJune19[[#This Row],[Secondary Acct]],tblREGASSJune19[[#This Row],[Secondary  Name]],tblREGASSJune19[[#This Row],[Alloc4FUNC]])","v":"1823920DSR COSTS AMORTIZED103005COMMERCIAL FINANSWER EXPRESS Cat 2- WY -OTHER"},1823920,"DSR COSTS AMORTIZED",103005,"COMMERCIAL FINANSWER EXPRESS Cat 2- WY -","OTHER",236.04952,{"$f":"IF(OR(tblREGASSJune19[[#This Row],[Alloc]]=\"IDU\",tblREGASSJune19[[#This Row],[Alloc]]=\"OR\",tblREGASSJune19[[#This Row],[Alloc]]=\"UT\",tblREGASSJune19[[#This Row],[Alloc]]=\"WYU\",tblREGASSJune19[[#This Row],[Alloc]]=\"WYP\",tblREGASSJune19[[#This Row],[Alloc]]=\"CA\",tblREGASSJune19[[#This Row],[Alloc]]=\"WA\"),\"SITUS\",tblREGASSJune19[[#This Row],[Alloc]])","v":"OTHER"},{"$f":"INDEX(tblREGASSLookup[FUNC],MATCH(tblREGASSJune19[[#This Row],[Concat]],tblREGASSLookup[Concat],0))","v":"CUST"},{"$f":"IF(tblREGASSJune19[[#This Row],[Total ($000)]]=0,\"NO\",IF(ISNA(tblREGASSJune19[[#This Row],[FUNC]]),\"YES\",IF(_xlfn.ISFORMULA(tblREGASSJune19[[#This Row],[FUNC]]),\"NO\",\"YES\")))","v":"NO"}]
[{"$f":"CONCATENATE(tblREGASSJune19[[#This Row],[Primary Account]],tblREGASSJune19[[#This Row],[Primary Name]],tblREGASSJune19[[#This Row],[Secondary Acct]],tblREGASSJune19[[#This Row],[Secondary  Name]],tblREGASSJune19[[#This Row],[Alloc4FUNC]])","v":"1823920DSR COSTS AMORTIZED103006INDUSTRIAL FINANSWER EXPRESS Cat 2- WY -OTHER"},1823920,"DSR COSTS AMORTIZED",103006,"INDUSTRIAL FINANSWER EXPRESS Cat 2- WY -","OTHER",33.684919999999998,{"$f":"IF(OR(tblREGASSJune19[[#This Row],[Alloc]]=\"IDU\",tblREGASSJune19[[#This Row],[Alloc]]=\"OR\",tblREGASSJune19[[#This Row],[Alloc]]=\"UT\",tblREGASSJune19[[#This Row],[Alloc]]=\"WYU\",tblREGASSJune19[[#This Row],[Alloc]]=\"WYP\",tblREGASSJune19[[#This Row],[Alloc]]=\"CA\",tblREGASSJune19[[#This Row],[Alloc]]=\"WA\"),\"SITUS\",tblREGASSJune19[[#This Row],[Alloc]])","v":"OTHER"},{"$f":"INDEX(tblREGASSLookup[FUNC],MATCH(tblREGASSJune19[[#This Row],[Concat]],tblREGASSLookup[Concat],0))","v":"CUST"},{"$f":"IF(tblREGASSJune19[[#This Row],[Total ($000)]]=0,\"NO\",IF(ISNA(tblREGASSJune19[[#This Row],[FUNC]]),\"YES\",IF(_xlfn.ISFORMULA(tblREGASSJune19[[#This Row],[FUNC]]),\"NO\",\"YES\")))","v":"NO"}]
[{"$f":"CONCATENATE(tblREGASSJune19[[#This Row],[Primary Account]],tblREGASSJune19[[#This Row],[Primary Name]],tblREGASSJune19[[#This Row],[Secondary Acct]],tblREGASSJune19[[#This Row],[Secondary  Name]],tblREGASSJune19[[#This Row],[Alloc4FUNC]])","v":"1823920DSR COSTS AMORTIZED103007ENERGY FINANSWER Cat 2 - WY 2009OTHER"},1823920,"DSR COSTS AMORTIZED",103007,"ENERGY FINANSWER Cat 2 - WY 2009","OTHER",39.66245,{"$f":"IF(OR(tblREGASSJune19[[#This Row],[Alloc]]=\"IDU\",tblREGASSJune19[[#This Row],[Alloc]]=\"OR\",tblREGASSJune19[[#This Row],[Alloc]]=\"UT\",tblREGASSJune19[[#This Row],[Alloc]]=\"WYU\",tblREGASSJune19[[#This Row],[Alloc]]=\"WYP\",tblREGASSJune19[[#This Row],[Alloc]]=\"CA\",tblREGASSJune19[[#This Row],[Alloc]]=\"WA\"),\"SITUS\",tblREGASSJune19[[#This Row],[Alloc]])","v":"OTHER"},{"$f":"INDEX(tblREGASSLookup[FUNC],MATCH(tblREGASSJune19[[#This Row],[Concat]],tblREGASSLookup[Concat],0))","v":"CUST"},{"$f":"IF(tblREGASSJune19[[#This Row],[Total ($000)]]=0,\"NO\",IF(ISNA(tblREGASSJune19[[#This Row],[FUNC]]),\"YES\",IF(_xlfn.ISFORMULA(tblREGASSJune19[[#This Row],[FUNC]]),\"NO\",\"YES\")))","v":"NO"}]
[{"$f":"CONCATENATE(tblREGASSJune19[[#This Row],[Primary Account]],tblREGASSJune19[[#This Row],[Primary Name]],tblREGASSJune19[[#This Row],[Secondary Acct]],tblREGASSJune19[[#This Row],[Secondary  Name]],tblREGASSJune19[[#This Row],[Alloc4FUNC]])","v":"1823920DSR COSTS AMORTIZED103008INDUSTRIAL FINANSWER Cat 2 -WY 2009OTHER"},1823920,"DSR COSTS AMORTIZED",103008,"INDUSTRIAL FINANSWER Cat 2 -WY 2009","OTHER",34.008110000000002,{"$f":"IF(OR(tblREGASSJune19[[#This Row],[Alloc]]=\"IDU\",tblREGASSJune19[[#This Row],[Alloc]]=\"OR\",tblREGASSJune19[[#This Row],[Alloc]]=\"UT\",tblREGASSJune19[[#This Row],[Alloc]]=\"WYU\",tblREGASSJune19[[#This Row],[Alloc]]=\"WYP\",tblREGASSJune19[[#This Row],[Alloc]]=\"CA\",tblREGASSJune19[[#This Row],[Alloc]]=\"WA\"),\"SITUS\",tblREGASSJune19[[#This Row],[Alloc]])","v":"OTHER"},{"$f":"INDEX(tblREGASSLookup[FUNC],MATCH(tblREGASSJune19[[#This Row],[Concat]],tblREGASSLookup[Concat],0))","v":"CUST"},{"$f":"IF(tblREGASSJune19[[#This Row],[Total ($000)]]=0,\"NO\",IF(ISNA(tblREGASSJune19[[#This Row],[FUNC]]),\"YES\",IF(_xlfn.ISFORMULA(tblREGASSJune19[[#This Row],[FUNC]]),\"NO\",\"YES\")))","v":"NO"}]
[{"$f":"CONCATENATE(tblREGASSJune19[[#This Row],[Primary Account]],tblREGASSJune19[[#This Row],[Primary Name]],tblREGASSJune19[[#This Row],[Secondary Acct]],tblREGASSJune19[[#This Row],[Secondary  Name]],tblREGASSJune19[[#This Row],[Alloc4FUNC]])","v":"1823920DSR COSTS AMORTIZED103012WYOMING REV RECOVERY - SBC OFFSET CAT 1OTHER"},1823920,"DSR COSTS AMORTIZED",103012,"WYOMING REV RECOVERY - SBC OFFSET CAT 1","OTHER",-10759.266820000001,{"$f":"IF(OR(tblREGASSJune19[[#This Row],[Alloc]]=\"IDU\",tblREGASSJune19[[#This Row],[Alloc]]=\"OR\",tblREGASSJune19[[#This Row],[Alloc]]=\"UT\",tblREGASSJune19[[#This Row],[Alloc]]=\"WYU\",tblREGASSJune19[[#This Row],[Alloc]]=\"WYP\",tblREGASSJune19[[#This Row],[Alloc]]=\"CA\",tblREGASSJune19[[#This Row],[Alloc]]=\"WA\"),\"SITUS\",tblREGASSJune19[[#This Row],[Alloc]])","v":"OTHER"},{"$f":"INDEX(tblREGASSLookup[FUNC],MATCH(tblREGASSJune19[[#This Row],[Concat]],tblREGASSLookup[Concat],0))","v":"CUST"},{"$f":"IF(tblREGASSJune19[[#This Row],[Total ($000)]]=0,\"NO\",IF(ISNA(tblREGASSJune19[[#This Row],[FUNC]]),\"YES\",IF(_xlfn.ISFORMULA(tblREGASSJune19[[#This Row],[FUNC]]),\"NO\",\"YES\")))","v":"NO"}]
[{"$f":"CONCATENATE(tblREGASSJune19[[#This Row],[Primary Account]],tblREGASSJune19[[#This Row],[Primary Name]],tblREGASSJune19[[#This Row],[Secondary Acct]],tblREGASSJune19[[#This Row],[Secondary  Name]],tblREGASSJune19[[#This Row],[Alloc4FUNC]])","v":"1823920DSR COSTS AMORTIZED103013WYOMING REV RECOVERY - SBC OFFSET CAT 2OTHER"},1823920,"DSR COSTS AMORTIZED",103013,"WYOMING REV RECOVERY - SBC OFFSET CAT 2","OTHER",-10608.9004,{"$f":"IF(OR(tblREGASSJune19[[#This Row],[Alloc]]=\"IDU\",tblREGASSJune19[[#This Row],[Alloc]]=\"OR\",tblREGASSJune19[[#This Row],[Alloc]]=\"UT\",tblREGASSJune19[[#This Row],[Alloc]]=\"WYU\",tblREGASSJune19[[#This Row],[Alloc]]=\"WYP\",tblREGASSJune19[[#This Row],[Alloc]]=\"CA\",tblREGASSJune19[[#This Row],[Alloc]]=\"WA\"),\"SITUS\",tblREGASSJune19[[#This Row],[Alloc]])","v":"OTHER"},{"$f":"INDEX(tblREGASSLookup[FUNC],MATCH(tblREGASSJune19[[#This Row],[Concat]],tblREGASSLookup[Concat],0))","v":"CUST"},{"$f":"IF(tblREGASSJune19[[#This Row],[Total ($000)]]=0,\"NO\",IF(ISNA(tblREGASSJune19[[#This Row],[FUNC]]),\"YES\",IF(_xlfn.ISFORMULA(tblREGASSJune19[[#This Row],[FUNC]]),\"NO\",\"YES\")))","v":"NO"}]
[{"$f":"CONCATENATE(tblREGASSJune19[[#This Row],[Primary Account]],tblREGASSJune19[[#This Row],[Primary Name]],tblREGASSJune19[[#This Row],[Secondary Acct]],tblREGASSJune19[[#This Row],[Secondary  Name]],tblREGASSJune19[[#This Row],[Alloc4FUNC]])","v":"1823920DSR COSTS AMORTIZED103014WYOMING REV RECOVERY - SBC OFFSET CAT 3OTHER"},1823920,"DSR COSTS AMORTIZED",103014,"WYOMING REV RECOVERY - SBC OFFSET CAT 3","OTHER",-10191.93166,{"$f":"IF(OR(tblREGASSJune19[[#This Row],[Alloc]]=\"IDU\",tblREGASSJune19[[#This Row],[Alloc]]=\"OR\",tblREGASSJune19[[#This Row],[Alloc]]=\"UT\",tblREGASSJune19[[#This Row],[Alloc]]=\"WYU\",tblREGASSJune19[[#This Row],[Alloc]]=\"WYP\",tblREGASSJune19[[#This Row],[Alloc]]=\"CA\",tblREGASSJune19[[#This Row],[Alloc]]=\"WA\"),\"SITUS\",tblREGASSJune19[[#This Row],[Alloc]])","v":"OTHER"},{"$f":"INDEX(tblREGASSLookup[FUNC],MATCH(tblREGASSJune19[[#This Row],[Concat]],tblREGASSLookup[Concat],0))","v":"CUST"},{"$f":"IF(tblREGASSJune19[[#This Row],[Total ($000)]]=0,\"NO\",IF(ISNA(tblREGASSJune19[[#This Row],[FUNC]]),\"YES\",IF(_xlfn.ISFORMULA(tblREGASSJune19[[#This Row],[FUNC]]),\"NO\",\"YES\")))","v":"NO"}]
[{"$f":"CONCATENATE(tblREGASSJune19[[#This Row],[Primary Account]],tblREGASSJune19[[#This Row],[Primary Name]],tblREGASSJune19[[#This Row],[Secondary Acct]],tblREGASSJune19[[#This Row],[Secondary  Name]],tblREGASSJune19[[#This Row],[Alloc4FUNC]])","v":"1823920DSR COSTS AMORTIZED103031OUTREACH and COMMUNICATIONS - UT 2009OTHER"},1823920,"DSR COSTS AMORTIZED",103031,"OUTREACH and COMMUNICATIONS - UT 2009","OTHER",571.49108000000001,{"$f":"IF(OR(tblREGASSJune19[[#This Row],[Alloc]]=\"IDU\",tblREGASSJune19[[#This Row],[Alloc]]=\"OR\",tblREGASSJune19[[#This Row],[Alloc]]=\"UT\",tblREGASSJune19[[#This Row],[Alloc]]=\"WYU\",tblREGASSJune19[[#This Row],[Alloc]]=\"WYP\",tblREGASSJune19[[#This Row],[Alloc]]=\"CA\",tblREGASSJune19[[#This Row],[Alloc]]=\"WA\"),\"SITUS\",tblREGASSJune19[[#This Row],[Alloc]])","v":"OTHER"},{"$f":"INDEX(tblREGASSLookup[FUNC],MATCH(tblREGASSJune19[[#This Row],[Concat]],tblREGASSLookup[Concat],0))","v":"CUST"},{"$f":"IF(tblREGASSJune19[[#This Row],[Total ($000)]]=0,\"NO\",IF(ISNA(tblREGASSJune19[[#This Row],[FUNC]]),\"YES\",IF(_xlfn.ISFORMULA(tblREGASSJune19[[#This Row],[FUNC]]),\"NO\",\"YES\")))","v":"NO"}]
[{"$f":"CONCATENATE(tblREGASSJune19[[#This Row],[Primary Account]],tblREGASSJune19[[#This Row],[Primary Name]],tblREGASSJune19[[#This Row],[Secondary Acct]],tblREGASSJune19[[#This Row],[Secondary  Name]],tblREGASSJune19[[#This Row],[Alloc4FUNC]])","v":"1823920DSR COSTS AMORTIZED103059CALIFORNIA DSM EXPENSE - 2010OTHER"},1823920,"DSR COSTS AMORTIZED",103059,"CALIFORNIA DSM EXPENSE - 2010","OTHER",1.0000000000000001E-5,{"$f":"IF(OR(tblREGASSJune19[[#This Row],[Alloc]]=\"IDU\",tblREGASSJune19[[#This Row],[Alloc]]=\"OR\",tblREGASSJune19[[#This Row],[Alloc]]=\"UT\",tblREGASSJune19[[#This Row],[Alloc]]=\"WYU\",tblREGASSJune19[[#This Row],[Alloc]]=\"WYP\",tblREGASSJune19[[#This Row],[Alloc]]=\"CA\",tblREGASSJune19[[#This Row],[Alloc]]=\"WA\"),\"SITUS\",tblREGASSJune19[[#This Row],[Alloc]])","v":"OTHER"},{"$f":"INDEX(tblREGASSLookup[FUNC],MATCH(tblREGASSJune19[[#This Row],[Concat]],tblREGASSLookup[Concat],0))","v":"CUST"},{"$f":"IF(tblREGASSJune19[[#This Row],[Total ($000)]]=0,\"NO\",IF(ISNA(tblREGASSJune19[[#This Row],[FUNC]]),\"YES\",IF(_xlfn.ISFORMULA(tblREGASSJune19[[#This Row],[FUNC]]),\"NO\",\"YES\")))","v":"NO"}]
[{"$f":"CONCATENATE(tblREGASSJune19[[#This Row],[Primary Account]],tblREGASSJune19[[#This Row],[Primary Name]],tblREGASSJune19[[#This Row],[Secondary Acct]],tblREGASSJune19[[#This Row],[Secondary  Name]],tblREGASSJune19[[#This Row],[Alloc4FUNC]])","v":"1823920DSR COSTS AMORTIZED103071A/C LOAD CONTROL - RESIDENTIAL/UTAH - 20OTHER"},1823920,"DSR COSTS AMORTIZED",103071,"A/C LOAD CONTROL - RESIDENTIAL/UTAH - 20","OTHER",4836.2692500000003,{"$f":"IF(OR(tblREGASSJune19[[#This Row],[Alloc]]=\"IDU\",tblREGASSJune19[[#This Row],[Alloc]]=\"OR\",tblREGASSJune19[[#This Row],[Alloc]]=\"UT\",tblREGASSJune19[[#This Row],[Alloc]]=\"WYU\",tblREGASSJune19[[#This Row],[Alloc]]=\"WYP\",tblREGASSJune19[[#This Row],[Alloc]]=\"CA\",tblREGASSJune19[[#This Row],[Alloc]]=\"WA\"),\"SITUS\",tblREGASSJune19[[#This Row],[Alloc]])","v":"OTHER"},{"$f":"INDEX(tblREGASSLookup[FUNC],MATCH(tblREGASSJune19[[#This Row],[Concat]],tblREGASSLookup[Concat],0))","v":"CUST"},{"$f":"IF(tblREGASSJune19[[#This Row],[Total ($000)]]=0,\"NO\",IF(ISNA(tblREGASSJune19[[#This Row],[FUNC]]),\"YES\",IF(_xlfn.ISFORMULA(tblREGASSJune19[[#This Row],[FUNC]]),\"NO\",\"YES\")))","v":"NO"}]
[{"$f":"CONCATENATE(tblREGASSJune19[[#This Row],[Primary Account]],tblREGASSJune19[[#This Row],[Primary Name]],tblREGASSJune19[[#This Row],[Secondary Acct]],tblREGASSJune19[[#This Row],[Secondary  Name]],tblREGASSJune19[[#This Row],[Alloc4FUNC]])","v":"1823920DSR COSTS AMORTIZED103072AIR CONDITIONING - UTAH - 2010OTHER"},1823920,"DSR COSTS AMORTIZED",103072,"AIR CONDITIONING - UTAH - 2010","OTHER",1490.28963,{"$f":"IF(OR(tblREGASSJune19[[#This Row],[Alloc]]=\"IDU\",tblREGASSJune19[[#This Row],[Alloc]]=\"OR\",tblREGASSJune19[[#This Row],[Alloc]]=\"UT\",tblREGASSJune19[[#This Row],[Alloc]]=\"WYU\",tblREGASSJune19[[#This Row],[Alloc]]=\"WYP\",tblREGASSJune19[[#This Row],[Alloc]]=\"CA\",tblREGASSJune19[[#This Row],[Alloc]]=\"WA\"),\"SITUS\",tblREGASSJune19[[#This Row],[Alloc]])","v":"OTHER"},{"$f":"INDEX(tblREGASSLookup[FUNC],MATCH(tblREGASSJune19[[#This Row],[Concat]],tblREGASSLookup[Concat],0))","v":"CUST"},{"$f":"IF(tblREGASSJune19[[#This Row],[Total ($000)]]=0,\"NO\",IF(ISNA(tblREGASSJune19[[#This Row],[FUNC]]),\"YES\",IF(_xlfn.ISFORMULA(tblREGASSJune19[[#This Row],[FUNC]]),\"NO\",\"YES\")))","v":"NO"}]
[{"$f":"CONCATENATE(tblREGASSJune19[[#This Row],[Primary Account]],tblREGASSJune19[[#This Row],[Primary Name]],tblREGASSJune19[[#This Row],[Secondary Acct]],tblREGASSJune19[[#This Row],[Secondary  Name]],tblREGASSJune19[[#This Row],[Alloc4FUNC]])","v":"1823920DSR COSTS AMORTIZED103073ENERGY FINANSWER - UTAH - 2010OTHER"},1823920,"DSR COSTS AMORTIZED",103073,"ENERGY FINANSWER - UTAH - 2010","OTHER",3246.0749799999999,{"$f":"IF(OR(tblREGASSJune19[[#This Row],[Alloc]]=\"IDU\",tblREGASSJune19[[#This Row],[Alloc]]=\"OR\",tblREGASSJune19[[#This Row],[Alloc]]=\"UT\",tblREGASSJune19[[#This Row],[Alloc]]=\"WYU\",tblREGASSJune19[[#This Row],[Alloc]]=\"WYP\",tblREGASSJune19[[#This Row],[Alloc]]=\"CA\",tblREGASSJune19[[#This Row],[Alloc]]=\"WA\"),\"SITUS\",tblREGASSJune19[[#This Row],[Alloc]])","v":"OTHER"},{"$f":"INDEX(tblREGASSLookup[FUNC],MATCH(tblREGASSJune19[[#This Row],[Concat]],tblREGASSLookup[Concat],0))","v":"CUST"},{"$f":"IF(tblREGASSJune19[[#This Row],[Total ($000)]]=0,\"NO\",IF(ISNA(tblREGASSJune19[[#This Row],[FUNC]]),\"YES\",IF(_xlfn.ISFORMULA(tblREGASSJune19[[#This Row],[FUNC]]),\"NO\",\"YES\")))","v":"NO"}]
[{"$f":"CONCATENATE(tblREGASSJune19[[#This Row],[Primary Account]],tblREGASSJune19[[#This Row],[Primary Name]],tblREGASSJune19[[#This Row],[Secondary Acct]],tblREGASSJune19[[#This Row],[Secondary  Name]],tblREGASSJune19[[#This Row],[Alloc4FUNC]])","v":"1823920DSR COSTS AMORTIZED103074INDUSTRIAL FINANSWER - UTAH - 2010OTHER"},1823920,"DSR COSTS AMORTIZED",103074,"INDUSTRIAL FINANSWER - UTAH - 2010","OTHER",4523.5925900000002,{"$f":"IF(OR(tblREGASSJune19[[#This Row],[Alloc]]=\"IDU\",tblREGASSJune19[[#This Row],[Alloc]]=\"OR\",tblREGASSJune19[[#This Row],[Alloc]]=\"UT\",tblREGASSJune19[[#This Row],[Alloc]]=\"WYU\",tblREGASSJune19[[#This Row],[Alloc]]=\"WYP\",tblREGASSJune19[[#This Row],[Alloc]]=\"CA\",tblREGASSJune19[[#This Row],[Alloc]]=\"WA\"),\"SITUS\",tblREGASSJune19[[#This Row],[Alloc]])","v":"OTHER"},{"$f":"INDEX(tblREGASSLookup[FUNC],MATCH(tblREGASSJune19[[#This Row],[Concat]],tblREGASSLookup[Concat],0))","v":"CUST"},{"$f":"IF(tblREGASSJune19[[#This Row],[Total ($000)]]=0,\"NO\",IF(ISNA(tblREGASSJune19[[#This Row],[FUNC]]),\"YES\",IF(_xlfn.ISFORMULA(tblREGASSJune19[[#This Row],[FUNC]]),\"NO\",\"YES\")))","v":"NO"}]
[{"$f":"CONCATENATE(tblREGASSJune19[[#This Row],[Primary Account]],tblREGASSJune19[[#This Row],[Primary Name]],tblREGASSJune19[[#This Row],[Secondary Acct]],tblREGASSJune19[[#This Row],[Secondary  Name]],tblREGASSJune19[[#This Row],[Alloc4FUNC]])","v":"1823920DSR COSTS AMORTIZED103075LOW INCOME - UTAH - 2010OTHER"},1823920,"DSR COSTS AMORTIZED",103075,"LOW INCOME - UTAH - 2010","OTHER",258.42205999999999,{"$f":"IF(OR(tblREGASSJune19[[#This Row],[Alloc]]=\"IDU\",tblREGASSJune19[[#This Row],[Alloc]]=\"OR\",tblREGASSJune19[[#This Row],[Alloc]]=\"UT\",tblREGASSJune19[[#This Row],[Alloc]]=\"WYU\",tblREGASSJune19[[#This Row],[Alloc]]=\"WYP\",tblREGASSJune19[[#This Row],[Alloc]]=\"CA\",tblREGASSJune19[[#This Row],[Alloc]]=\"WA\"),\"SITUS\",tblREGASSJune19[[#This Row],[Alloc]])","v":"OTHER"},{"$f":"INDEX(tblREGASSLookup[FUNC],MATCH(tblREGASSJune19[[#This Row],[Concat]],tblREGASSLookup[Concat],0))","v":"CUST"},{"$f":"IF(tblREGASSJune19[[#This Row],[Total ($000)]]=0,\"NO\",IF(ISNA(tblREGASSJune19[[#This Row],[FUNC]]),\"YES\",IF(_xlfn.ISFORMULA(tblREGASSJune19[[#This Row],[FUNC]]),\"NO\",\"YES\")))","v":"NO"}]
[{"$f":"CONCATENATE(tblREGASSJune19[[#This Row],[Primary Account]],tblREGASSJune19[[#This Row],[Primary Name]],tblREGASSJune19[[#This Row],[Secondary Acct]],tblREGASSJune19[[#This Row],[Secondary  Name]],tblREGASSJune19[[#This Row],[Alloc4FUNC]])","v":"1823920DSR COSTS AMORTIZED103076POWER FORWARD - UTAH # 2010OTHER"},1823920,"DSR COSTS AMORTIZED",103076,"POWER FORWARD - UTAH # 2010","OTHER",50.091999999999999,{"$f":"IF(OR(tblREGASSJune19[[#This Row],[Alloc]]=\"IDU\",tblREGASSJune19[[#This Row],[Alloc]]=\"OR\",tblREGASSJune19[[#This Row],[Alloc]]=\"UT\",tblREGASSJune19[[#This Row],[Alloc]]=\"WYU\",tblREGASSJune19[[#This Row],[Alloc]]=\"WYP\",tblREGASSJune19[[#This Row],[Alloc]]=\"CA\",tblREGASSJune19[[#This Row],[Alloc]]=\"WA\"),\"SITUS\",tblREGASSJune19[[#This Row],[Alloc]])","v":"OTHER"},{"$f":"INDEX(tblREGASSLookup[FUNC],MATCH(tblREGASSJune19[[#This Row],[Concat]],tblREGASSLookup[Concat],0))","v":"CUST"},{"$f":"IF(tblREGASSJune19[[#This Row],[Total ($000)]]=0,\"NO\",IF(ISNA(tblREGASSJune19[[#This Row],[FUNC]]),\"YES\",IF(_xlfn.ISFORMULA(tblREGASSJune19[[#This Row],[FUNC]]),\"NO\",\"YES\")))","v":"NO"}]
[{"$f":"CONCATENATE(tblREGASSJune19[[#This Row],[Primary Account]],tblREGASSJune19[[#This Row],[Primary Name]],tblREGASSJune19[[#This Row],[Secondary Acct]],tblREGASSJune19[[#This Row],[Secondary  Name]],tblREGASSJune19[[#This Row],[Alloc4FUNC]])","v":"1823920DSR COSTS AMORTIZED103077REFRIGERATOR RECYCLING PGM- UTAH - 2010OTHER"},1823920,"DSR COSTS AMORTIZED",103077,"REFRIGERATOR RECYCLING PGM- UTAH - 2010","OTHER",2369.8033500000001,{"$f":"IF(OR(tblREGASSJune19[[#This Row],[Alloc]]=\"IDU\",tblREGASSJune19[[#This Row],[Alloc]]=\"OR\",tblREGASSJune19[[#This Row],[Alloc]]=\"UT\",tblREGASSJune19[[#This Row],[Alloc]]=\"WYU\",tblREGASSJune19[[#This Row],[Alloc]]=\"WYP\",tblREGASSJune19[[#This Row],[Alloc]]=\"CA\",tblREGASSJune19[[#This Row],[Alloc]]=\"WA\"),\"SITUS\",tblREGASSJune19[[#This Row],[Alloc]])","v":"OTHER"},{"$f":"INDEX(tblREGASSLookup[FUNC],MATCH(tblREGASSJune19[[#This Row],[Concat]],tblREGASSLookup[Concat],0))","v":"CUST"},{"$f":"IF(tblREGASSJune19[[#This Row],[Total ($000)]]=0,\"NO\",IF(ISNA(tblREGASSJune19[[#This Row],[FUNC]]),\"YES\",IF(_xlfn.ISFORMULA(tblREGASSJune19[[#This Row],[FUNC]]),\"NO\",\"YES\")))","v":"NO"}]
[{"$f":"CONCATENATE(tblREGASSJune19[[#This Row],[Primary Account]],tblREGASSJune19[[#This Row],[Primary Name]],tblREGASSJune19[[#This Row],[Secondary Acct]],tblREGASSJune19[[#This Row],[Secondary  Name]],tblREGASSJune19[[#This Row],[Alloc4FUNC]])","v":"1823920DSR COSTS AMORTIZED103078COMMERCIAL SELF-DIRECT - UTAH - 2010OTHER"},1823920,"DSR COSTS AMORTIZED",103078,"COMMERCIAL SELF-DIRECT - UTAH - 2010","OTHER",186.83529999999999,{"$f":"IF(OR(tblREGASSJune19[[#This Row],[Alloc]]=\"IDU\",tblREGASSJune19[[#This Row],[Alloc]]=\"OR\",tblREGASSJune19[[#This Row],[Alloc]]=\"UT\",tblREGASSJune19[[#This Row],[Alloc]]=\"WYU\",tblREGASSJune19[[#This Row],[Alloc]]=\"WYP\",tblREGASSJune19[[#This Row],[Alloc]]=\"CA\",tblREGASSJune19[[#This Row],[Alloc]]=\"WA\"),\"SITUS\",tblREGASSJune19[[#This Row],[Alloc]])","v":"OTHER"},{"$f":"INDEX(tblREGASSLookup[FUNC],MATCH(tblREGASSJune19[[#This Row],[Concat]],tblREGASSLookup[Concat],0))","v":"CUST"},{"$f":"IF(tblREGASSJune19[[#This Row],[Total ($000)]]=0,\"NO\",IF(ISNA(tblREGASSJune19[[#This Row],[FUNC]]),\"YES\",IF(_xlfn.ISFORMULA(tblREGASSJune19[[#This Row],[FUNC]]),\"NO\",\"YES\")))","v":"NO"}]
[{"$f":"CONCATENATE(tblREGASSJune19[[#This Row],[Primary Account]],tblREGASSJune19[[#This Row],[Primary Name]],tblREGASSJune19[[#This Row],[Secondary Acct]],tblREGASSJune19[[#This Row],[Secondary  Name]],tblREGASSJune19[[#This Row],[Alloc4FUNC]])","v":"1823920DSR COSTS AMORTIZED103079INDUSTRIAL SELF-DIRECT - UTAH - 2010OTHER"},1823920,"DSR COSTS AMORTIZED",103079,"INDUSTRIAL SELF-DIRECT - UTAH - 2010","OTHER",330.07195000000002,{"$f":"IF(OR(tblREGASSJune19[[#This Row],[Alloc]]=\"IDU\",tblREGASSJune19[[#This Row],[Alloc]]=\"OR\",tblREGASSJune19[[#This Row],[Alloc]]=\"UT\",tblREGASSJune19[[#This Row],[Alloc]]=\"WYU\",tblREGASSJune19[[#This Row],[Alloc]]=\"WYP\",tblREGASSJune19[[#This Row],[Alloc]]=\"CA\",tblREGASSJune19[[#This Row],[Alloc]]=\"WA\"),\"SITUS\",tblREGASSJune19[[#This Row],[Alloc]])","v":"OTHER"},{"$f":"INDEX(tblREGASSLookup[FUNC],MATCH(tblREGASSJune19[[#This Row],[Concat]],tblREGASSLookup[Concat],0))","v":"CUST"},{"$f":"IF(tblREGASSJune19[[#This Row],[Total ($000)]]=0,\"NO\",IF(ISNA(tblREGASSJune19[[#This Row],[FUNC]]),\"YES\",IF(_xlfn.ISFORMULA(tblREGASSJune19[[#This Row],[FUNC]]),\"NO\",\"YES\")))","v":"NO"}]
[{"$f":"CONCATENATE(tblREGASSJune19[[#This Row],[Primary Account]],tblREGASSJune19[[#This Row],[Primary Name]],tblREGASSJune19[[#This Row],[Secondary Acct]],tblREGASSJune19[[#This Row],[Secondary  Name]],tblREGASSJune19[[#This Row],[Alloc4FUNC]])","v":"1823920DSR COSTS AMORTIZED103080RESIDENTIAL NEW CONSTRUCTION - UTAH - 20OTHER"},1823920,"DSR COSTS AMORTIZED",103080,"RESIDENTIAL NEW CONSTRUCTION - UTAH - 20","OTHER",2604.5521699999999,{"$f":"IF(OR(tblREGASSJune19[[#This Row],[Alloc]]=\"IDU\",tblREGASSJune19[[#This Row],[Alloc]]=\"OR\",tblREGASSJune19[[#This Row],[Alloc]]=\"UT\",tblREGASSJune19[[#This Row],[Alloc]]=\"WYU\",tblREGASSJune19[[#This Row],[Alloc]]=\"WYP\",tblREGASSJune19[[#This Row],[Alloc]]=\"CA\",tblREGASSJune19[[#This Row],[Alloc]]=\"WA\"),\"SITUS\",tblREGASSJune19[[#This Row],[Alloc]])","v":"OTHER"},{"$f":"INDEX(tblREGASSLookup[FUNC],MATCH(tblREGASSJune19[[#This Row],[Concat]],tblREGASSLookup[Concat],0))","v":"CUST"},{"$f":"IF(tblREGASSJune19[[#This Row],[Total ($000)]]=0,\"NO\",IF(ISNA(tblREGASSJune19[[#This Row],[FUNC]]),\"YES\",IF(_xlfn.ISFORMULA(tblREGASSJune19[[#This Row],[FUNC]]),\"NO\",\"YES\")))","v":"NO"}]
[{"$f":"CONCATENATE(tblREGASSJune19[[#This Row],[Primary Account]],tblREGASSJune19[[#This Row],[Primary Name]],tblREGASSJune19[[#This Row],[Secondary Acct]],tblREGASSJune19[[#This Row],[Secondary  Name]],tblREGASSJune19[[#This Row],[Alloc4FUNC]])","v":"1823920DSR COSTS AMORTIZED103081COMMERCIAL FINANSWER EXPRESS - UTAH - 20OTHER"},1823920,"DSR COSTS AMORTIZED",103081,"COMMERCIAL FINANSWER EXPRESS - UTAH - 20","OTHER",4107.1484,{"$f":"IF(OR(tblREGASSJune19[[#This Row],[Alloc]]=\"IDU\",tblREGASSJune19[[#This Row],[Alloc]]=\"OR\",tblREGASSJune19[[#This Row],[Alloc]]=\"UT\",tblREGASSJune19[[#This Row],[Alloc]]=\"WYU\",tblREGASSJune19[[#This Row],[Alloc]]=\"WYP\",tblREGASSJune19[[#This Row],[Alloc]]=\"CA\",tblREGASSJune19[[#This Row],[Alloc]]=\"WA\"),\"SITUS\",tblREGASSJune19[[#This Row],[Alloc]])","v":"OTHER"},{"$f":"INDEX(tblREGASSLookup[FUNC],MATCH(tblREGASSJune19[[#This Row],[Concat]],tblREGASSLookup[Concat],0))","v":"CUST"},{"$f":"IF(tblREGASSJune19[[#This Row],[Total ($000)]]=0,\"NO\",IF(ISNA(tblREGASSJune19[[#This Row],[FUNC]]),\"YES\",IF(_xlfn.ISFORMULA(tblREGASSJune19[[#This Row],[FUNC]]),\"NO\",\"YES\")))","v":"NO"}]
[{"$f":"CONCATENATE(tblREGASSJune19[[#This Row],[Primary Account]],tblREGASSJune19[[#This Row],[Primary Name]],tblREGASSJune19[[#This Row],[Secondary Acct]],tblREGASSJune19[[#This Row],[Secondary  Name]],tblREGASSJune19[[#This Row],[Alloc4FUNC]])","v":"1823920DSR COSTS AMORTIZED103082INDUSTRIAL FINANSWER EXPRESS - UTAH - 20OTHER"},1823920,"DSR COSTS AMORTIZED",103082,"INDUSTRIAL FINANSWER EXPRESS - UTAH - 20","OTHER",1019.0800400000001,{"$f":"IF(OR(tblREGASSJune19[[#This Row],[Alloc]]=\"IDU\",tblREGASSJune19[[#This Row],[Alloc]]=\"OR\",tblREGASSJune19[[#This Row],[Alloc]]=\"UT\",tblREGASSJune19[[#This Row],[Alloc]]=\"WYU\",tblREGASSJune19[[#This Row],[Alloc]]=\"WYP\",tblREGASSJune19[[#This Row],[Alloc]]=\"CA\",tblREGASSJune19[[#This Row],[Alloc]]=\"WA\"),\"SITUS\",tblREGASSJune19[[#This Row],[Alloc]])","v":"OTHER"},{"$f":"INDEX(tblREGASSLookup[FUNC],MATCH(tblREGASSJune19[[#This Row],[Concat]],tblREGASSLookup[Concat],0))","v":"CUST"},{"$f":"IF(tblREGASSJune19[[#This Row],[Total ($000)]]=0,\"NO\",IF(ISNA(tblREGASSJune19[[#This Row],[FUNC]]),\"YES\",IF(_xlfn.ISFORMULA(tblREGASSJune19[[#This Row],[FUNC]]),\"NO\",\"YES\")))","v":"NO"}]
[{"$f":"CONCATENATE(tblREGASSJune19[[#This Row],[Primary Account]],tblREGASSJune19[[#This Row],[Primary Name]],tblREGASSJune19[[#This Row],[Secondary Acct]],tblREGASSJune19[[#This Row],[Secondary  Name]],tblREGASSJune19[[#This Row],[Alloc4FUNC]])","v":"1823920DSR COSTS AMORTIZED103083RETROFIT COMMISSIONING PROGRAM  - UTAH -OTHER"},1823920,"DSR COSTS AMORTIZED",103083,"RETROFIT COMMISSIONING PROGRAM  - UTAH -","OTHER",986.41423999999995,{"$f":"IF(OR(tblREGASSJune19[[#This Row],[Alloc]]=\"IDU\",tblREGASSJune19[[#This Row],[Alloc]]=\"OR\",tblREGASSJune19[[#This Row],[Alloc]]=\"UT\",tblREGASSJune19[[#This Row],[Alloc]]=\"WYU\",tblREGASSJune19[[#This Row],[Alloc]]=\"WYP\",tblREGASSJune19[[#This Row],[Alloc]]=\"CA\",tblREGASSJune19[[#This Row],[Alloc]]=\"WA\"),\"SITUS\",tblREGASSJune19[[#This Row],[Alloc]])","v":"OTHER"},{"$f":"INDEX(tblREGASSLookup[FUNC],MATCH(tblREGASSJune19[[#This Row],[Concat]],tblREGASSLookup[Concat],0))","v":"CUST"},{"$f":"IF(tblREGASSJune19[[#This Row],[Total ($000)]]=0,\"NO\",IF(ISNA(tblREGASSJune19[[#This Row],[FUNC]]),\"YES\",IF(_xlfn.ISFORMULA(tblREGASSJune19[[#This Row],[FUNC]]),\"NO\",\"YES\")))","v":"NO"}]
[{"$f":"CONCATENATE(tblREGASSJune19[[#This Row],[Primary Account]],tblREGASSJune19[[#This Row],[Primary Name]],tblREGASSJune19[[#This Row],[Secondary Acct]],tblREGASSJune19[[#This Row],[Secondary  Name]],tblREGASSJune19[[#This Row],[Alloc4FUNC]])","v":"1823920DSR COSTS AMORTIZED103085IRRIGATION LOAD CONTROL  - UTAH - 2010OTHER"},1823920,"DSR COSTS AMORTIZED",103085,"IRRIGATION LOAD CONTROL  - UTAH - 2010","OTHER",2512.7119600000001,{"$f":"IF(OR(tblREGASSJune19[[#This Row],[Alloc]]=\"IDU\",tblREGASSJune19[[#This Row],[Alloc]]=\"OR\",tblREGASSJune19[[#This Row],[Alloc]]=\"UT\",tblREGASSJune19[[#This Row],[Alloc]]=\"WYU\",tblREGASSJune19[[#This Row],[Alloc]]=\"WYP\",tblREGASSJune19[[#This Row],[Alloc]]=\"CA\",tblREGASSJune19[[#This Row],[Alloc]]=\"WA\"),\"SITUS\",tblREGASSJune19[[#This Row],[Alloc]])","v":"OTHER"},{"$f":"INDEX(tblREGASSLookup[FUNC],MATCH(tblREGASSJune19[[#This Row],[Concat]],tblREGASSLookup[Concat],0))","v":"CUST"},{"$f":"IF(tblREGASSJune19[[#This Row],[Total ($000)]]=0,\"NO\",IF(ISNA(tblREGASSJune19[[#This Row],[FUNC]]),\"YES\",IF(_xlfn.ISFORMULA(tblREGASSJune19[[#This Row],[FUNC]]),\"NO\",\"YES\")))","v":"NO"}]
[{"$f":"CONCATENATE(tblREGASSJune19[[#This Row],[Primary Account]],tblREGASSJune19[[#This Row],[Primary Name]],tblREGASSJune19[[#This Row],[Secondary Acct]],tblREGASSJune19[[#This Row],[Secondary  Name]],tblREGASSJune19[[#This Row],[Alloc4FUNC]])","v":"1823920DSR COSTS AMORTIZED103086HOME ENERGY EFF INCENTIVE PROG - UT 2010OTHER"},1823920,"DSR COSTS AMORTIZED",103086,"HOME ENERGY EFF INCENTIVE PROG - UT 2010","OTHER",16875.685020000001,{"$f":"IF(OR(tblREGASSJune19[[#This Row],[Alloc]]=\"IDU\",tblREGASSJune19[[#This Row],[Alloc]]=\"OR\",tblREGASSJune19[[#This Row],[Alloc]]=\"UT\",tblREGASSJune19[[#This Row],[Alloc]]=\"WYU\",tblREGASSJune19[[#This Row],[Alloc]]=\"WYP\",tblREGASSJune19[[#This Row],[Alloc]]=\"CA\",tblREGASSJune19[[#This Row],[Alloc]]=\"WA\"),\"SITUS\",tblREGASSJune19[[#This Row],[Alloc]])","v":"OTHER"},{"$f":"INDEX(tblREGASSLookup[FUNC],MATCH(tblREGASSJune19[[#This Row],[Concat]],tblREGASSLookup[Concat],0))","v":"CUST"},{"$f":"IF(tblREGASSJune19[[#This Row],[Total ($000)]]=0,\"NO\",IF(ISNA(tblREGASSJune19[[#This Row],[FUNC]]),\"YES\",IF(_xlfn.ISFORMULA(tblREGASSJune19[[#This Row],[FUNC]]),\"NO\",\"YES\")))","v":"NO"}]
[{"$f":"CONCATENATE(tblREGASSJune19[[#This Row],[Primary Account]],tblREGASSJune19[[#This Row],[Primary Name]],tblREGASSJune19[[#This Row],[Secondary Acct]],tblREGASSJune19[[#This Row],[Secondary  Name]],tblREGASSJune19[[#This Row],[Alloc4FUNC]])","v":"1823920DSR COSTS AMORTIZED103087OUTREACH and COMMUNICATIONS - UT 2010OTHER"},1823920,"DSR COSTS AMORTIZED",103087,"OUTREACH and COMMUNICATIONS - UT 2010","OTHER",1485.4817700000001,{"$f":"IF(OR(tblREGASSJune19[[#This Row],[Alloc]]=\"IDU\",tblREGASSJune19[[#This Row],[Alloc]]=\"OR\",tblREGASSJune19[[#This Row],[Alloc]]=\"UT\",tblREGASSJune19[[#This Row],[Alloc]]=\"WYU\",tblREGASSJune19[[#This Row],[Alloc]]=\"WYP\",tblREGASSJune19[[#This Row],[Alloc]]=\"CA\",tblREGASSJune19[[#This Row],[Alloc]]=\"WA\"),\"SITUS\",tblREGASSJune19[[#This Row],[Alloc]])","v":"OTHER"},{"$f":"INDEX(tblREGASSLookup[FUNC],MATCH(tblREGASSJune19[[#This Row],[Concat]],tblREGASSLookup[Concat],0))","v":"CUST"},{"$f":"IF(tblREGASSJune19[[#This Row],[Total ($000)]]=0,\"NO\",IF(ISNA(tblREGASSJune19[[#This Row],[FUNC]]),\"YES\",IF(_xlfn.ISFORMULA(tblREGASSJune19[[#This Row],[FUNC]]),\"NO\",\"YES\")))","v":"NO"}]
[{"$f":"CONCATENATE(tblREGASSJune19[[#This Row],[Primary Account]],tblREGASSJune19[[#This Row],[Primary Name]],tblREGASSJune19[[#This Row],[Secondary Acct]],tblREGASSJune19[[#This Row],[Secondary  Name]],tblREGASSJune19[[#This Row],[Alloc4FUNC]])","v":"1823920DSR COSTS AMORTIZED103089ENERGY FINANSWER-WY-2010 CAT3OTHER"},1823920,"DSR COSTS AMORTIZED",103089,"ENERGY FINANSWER-WY-2010 CAT3","OTHER",11.26351,{"$f":"IF(OR(tblREGASSJune19[[#This Row],[Alloc]]=\"IDU\",tblREGASSJune19[[#This Row],[Alloc]]=\"OR\",tblREGASSJune19[[#This Row],[Alloc]]=\"UT\",tblREGASSJune19[[#This Row],[Alloc]]=\"WYU\",tblREGASSJune19[[#This Row],[Alloc]]=\"WYP\",tblREGASSJune19[[#This Row],[Alloc]]=\"CA\",tblREGASSJune19[[#This Row],[Alloc]]=\"WA\"),\"SITUS\",tblREGASSJune19[[#This Row],[Alloc]])","v":"OTHER"},{"$f":"INDEX(tblREGASSLookup[FUNC],MATCH(tblREGASSJune19[[#This Row],[Concat]],tblREGASSLookup[Concat],0))","v":"CUST"},{"$f":"IF(tblREGASSJune19[[#This Row],[Total ($000)]]=0,\"NO\",IF(ISNA(tblREGASSJune19[[#This Row],[FUNC]]),\"YES\",IF(_xlfn.ISFORMULA(tblREGASSJune19[[#This Row],[FUNC]]),\"NO\",\"YES\")))","v":"NO"}]
[{"$f":"CONCATENATE(tblREGASSJune19[[#This Row],[Primary Account]],tblREGASSJune19[[#This Row],[Primary Name]],tblREGASSJune19[[#This Row],[Secondary Acct]],tblREGASSJune19[[#This Row],[Secondary  Name]],tblREGASSJune19[[#This Row],[Alloc4FUNC]])","v":"1823920DSR COSTS AMORTIZED103090INDUSTRIAL FINANSWER-WY-2010 CAT3OTHER"},1823920,"DSR COSTS AMORTIZED",103090,"INDUSTRIAL FINANSWER-WY-2010 CAT3","OTHER",668.87369000000001,{"$f":"IF(OR(tblREGASSJune19[[#This Row],[Alloc]]=\"IDU\",tblREGASSJune19[[#This Row],[Alloc]]=\"OR\",tblREGASSJune19[[#This Row],[Alloc]]=\"UT\",tblREGASSJune19[[#This Row],[Alloc]]=\"WYU\",tblREGASSJune19[[#This Row],[Alloc]]=\"WYP\",tblREGASSJune19[[#This Row],[Alloc]]=\"CA\",tblREGASSJune19[[#This Row],[Alloc]]=\"WA\"),\"SITUS\",tblREGASSJune19[[#This Row],[Alloc]])","v":"OTHER"},{"$f":"INDEX(tblREGASSLookup[FUNC],MATCH(tblREGASSJune19[[#This Row],[Concat]],tblREGASSLookup[Concat],0))","v":"CUST"},{"$f":"IF(tblREGASSJune19[[#This Row],[Total ($000)]]=0,\"NO\",IF(ISNA(tblREGASSJune19[[#This Row],[FUNC]]),\"YES\",IF(_xlfn.ISFORMULA(tblREGASSJune19[[#This Row],[FUNC]]),\"NO\",\"YES\")))","v":"NO"}]
[{"$f":"CONCATENATE(tblREGASSJune19[[#This Row],[Primary Account]],tblREGASSJune19[[#This Row],[Primary Name]],tblREGASSJune19[[#This Row],[Secondary Acct]],tblREGASSJune19[[#This Row],[Secondary  Name]],tblREGASSJune19[[#This Row],[Alloc4FUNC]])","v":"1823920DSR COSTS AMORTIZED103092REFRIGERATOR RECYCLING-WY -2010 CAT1OTHER"},1823920,"DSR COSTS AMORTIZED",103092,"REFRIGERATOR RECYCLING-WY -2010 CAT1","OTHER",175.62272999999999,{"$f":"IF(OR(tblREGASSJune19[[#This Row],[Alloc]]=\"IDU\",tblREGASSJune19[[#This Row],[Alloc]]=\"OR\",tblREGASSJune19[[#This Row],[Alloc]]=\"UT\",tblREGASSJune19[[#This Row],[Alloc]]=\"WYU\",tblREGASSJune19[[#This Row],[Alloc]]=\"WYP\",tblREGASSJune19[[#This Row],[Alloc]]=\"CA\",tblREGASSJune19[[#This Row],[Alloc]]=\"WA\"),\"SITUS\",tblREGASSJune19[[#This Row],[Alloc]])","v":"OTHER"},{"$f":"INDEX(tblREGASSLookup[FUNC],MATCH(tblREGASSJune19[[#This Row],[Concat]],tblREGASSLookup[Concat],0))","v":"CUST"},{"$f":"IF(tblREGASSJune19[[#This Row],[Total ($000)]]=0,\"NO\",IF(ISNA(tblREGASSJune19[[#This Row],[FUNC]]),\"YES\",IF(_xlfn.ISFORMULA(tblREGASSJune19[[#This Row],[FUNC]]),\"NO\",\"YES\")))","v":"NO"}]
[{"$f":"CONCATENATE(tblREGASSJune19[[#This Row],[Primary Account]],tblREGASSJune19[[#This Row],[Primary Name]],tblREGASSJune19[[#This Row],[Secondary Acct]],tblREGASSJune19[[#This Row],[Secondary  Name]],tblREGASSJune19[[#This Row],[Alloc4FUNC]])","v":"1823920DSR COSTS AMORTIZED103093HOME ENERGY EFF INCENT PROG Y-2010 CAT1OTHER"},1823920,"DSR COSTS AMORTIZED",103093,"HOME ENERGY EFF INCENT PROG Y-2010 CAT1","OTHER",739.81547,{"$f":"IF(OR(tblREGASSJune19[[#This Row],[Alloc]]=\"IDU\",tblREGASSJune19[[#This Row],[Alloc]]=\"OR\",tblREGASSJune19[[#This Row],[Alloc]]=\"UT\",tblREGASSJune19[[#This Row],[Alloc]]=\"WYU\",tblREGASSJune19[[#This Row],[Alloc]]=\"WYP\",tblREGASSJune19[[#This Row],[Alloc]]=\"CA\",tblREGASSJune19[[#This Row],[Alloc]]=\"WA\"),\"SITUS\",tblREGASSJune19[[#This Row],[Alloc]])","v":"OTHER"},{"$f":"INDEX(tblREGASSLookup[FUNC],MATCH(tblREGASSJune19[[#This Row],[Concat]],tblREGASSLookup[Concat],0))","v":"CUST"},{"$f":"IF(tblREGASSJune19[[#This Row],[Total ($000)]]=0,\"NO\",IF(ISNA(tblREGASSJune19[[#This Row],[FUNC]]),\"YES\",IF(_xlfn.ISFORMULA(tblREGASSJune19[[#This Row],[FUNC]]),\"NO\",\"YES\")))","v":"NO"}]
[{"$f":"CONCATENATE(tblREGASSJune19[[#This Row],[Primary Account]],tblREGASSJune19[[#This Row],[Primary Name]],tblREGASSJune19[[#This Row],[Secondary Acct]],tblREGASSJune19[[#This Row],[Secondary  Name]],tblREGASSJune19[[#This Row],[Alloc4FUNC]])","v":"1823920DSR COSTS AMORTIZED103094LOW-INCOME WEATHERZTN - WY 2010 CAT1OTHER"},1823920,"DSR COSTS AMORTIZED",103094,"LOW-INCOME WEATHERZTN - WY 2010 CAT1","OTHER",49.151409999999998,{"$f":"IF(OR(tblREGASSJune19[[#This Row],[Alloc]]=\"IDU\",tblREGASSJune19[[#This Row],[Alloc]]=\"OR\",tblREGASSJune19[[#This Row],[Alloc]]=\"UT\",tblREGASSJune19[[#This Row],[Alloc]]=\"WYU\",tblREGASSJune19[[#This Row],[Alloc]]=\"WYP\",tblREGASSJune19[[#This Row],[Alloc]]=\"CA\",tblREGASSJune19[[#This Row],[Alloc]]=\"WA\"),\"SITUS\",tblREGASSJune19[[#This Row],[Alloc]])","v":"OTHER"},{"$f":"INDEX(tblREGASSLookup[FUNC],MATCH(tblREGASSJune19[[#This Row],[Concat]],tblREGASSLookup[Concat],0))","v":"CUST"},{"$f":"IF(tblREGASSJune19[[#This Row],[Total ($000)]]=0,\"NO\",IF(ISNA(tblREGASSJune19[[#This Row],[FUNC]]),\"YES\",IF(_xlfn.ISFORMULA(tblREGASSJune19[[#This Row],[FUNC]]),\"NO\",\"YES\")))","v":"NO"}]
[{"$f":"CONCATENATE(tblREGASSJune19[[#This Row],[Primary Account]],tblREGASSJune19[[#This Row],[Primary Name]],tblREGASSJune19[[#This Row],[Secondary Acct]],tblREGASSJune19[[#This Row],[Secondary  Name]],tblREGASSJune19[[#This Row],[Alloc4FUNC]])","v":"1823920DSR COSTS AMORTIZED103095COMMERCIAL FINANSWER EXP WY-2010 CAT3OTHER"},1823920,"DSR COSTS AMORTIZED",103095,"COMMERCIAL FINANSWER EXP WY-2010 CAT3","OTHER",64.702100000000002,{"$f":"IF(OR(tblREGASSJune19[[#This Row],[Alloc]]=\"IDU\",tblREGASSJune19[[#This Row],[Alloc]]=\"OR\",tblREGASSJune19[[#This Row],[Alloc]]=\"UT\",tblREGASSJune19[[#This Row],[Alloc]]=\"WYU\",tblREGASSJune19[[#This Row],[Alloc]]=\"WYP\",tblREGASSJune19[[#This Row],[Alloc]]=\"CA\",tblREGASSJune19[[#This Row],[Alloc]]=\"WA\"),\"SITUS\",tblREGASSJune19[[#This Row],[Alloc]])","v":"OTHER"},{"$f":"INDEX(tblREGASSLookup[FUNC],MATCH(tblREGASSJune19[[#This Row],[Concat]],tblREGASSLookup[Concat],0))","v":"CUST"},{"$f":"IF(tblREGASSJune19[[#This Row],[Total ($000)]]=0,\"NO\",IF(ISNA(tblREGASSJune19[[#This Row],[FUNC]]),\"YES\",IF(_xlfn.ISFORMULA(tblREGASSJune19[[#This Row],[FUNC]]),\"NO\",\"YES\")))","v":"NO"}]
[{"$f":"CONCATENATE(tblREGASSJune19[[#This Row],[Primary Account]],tblREGASSJune19[[#This Row],[Primary Name]],tblREGASSJune19[[#This Row],[Secondary Acct]],tblREGASSJune19[[#This Row],[Secondary  Name]],tblREGASSJune19[[#This Row],[Alloc4FUNC]])","v":"1823920DSR COSTS AMORTIZED103096INDUSTRIAL FINANSWER EXP WY-2010 CAT3OTHER"},1823920,"DSR COSTS AMORTIZED",103096,"INDUSTRIAL FINANSWER EXP WY-2010 CAT3","OTHER",127.25987000000001,{"$f":"IF(OR(tblREGASSJune19[[#This Row],[Alloc]]=\"IDU\",tblREGASSJune19[[#This Row],[Alloc]]=\"OR\",tblREGASSJune19[[#This Row],[Alloc]]=\"UT\",tblREGASSJune19[[#This Row],[Alloc]]=\"WYU\",tblREGASSJune19[[#This Row],[Alloc]]=\"WYP\",tblREGASSJune19[[#This Row],[Alloc]]=\"CA\",tblREGASSJune19[[#This Row],[Alloc]]=\"WA\"),\"SITUS\",tblREGASSJune19[[#This Row],[Alloc]])","v":"OTHER"},{"$f":"INDEX(tblREGASSLookup[FUNC],MATCH(tblREGASSJune19[[#This Row],[Concat]],tblREGASSLookup[Concat],0))","v":"CUST"},{"$f":"IF(tblREGASSJune19[[#This Row],[Total ($000)]]=0,\"NO\",IF(ISNA(tblREGASSJune19[[#This Row],[FUNC]]),\"YES\",IF(_xlfn.ISFORMULA(tblREGASSJune19[[#This Row],[FUNC]]),\"NO\",\"YES\")))","v":"NO"}]
[{"$f":"CONCATENATE(tblREGASSJune19[[#This Row],[Primary Account]],tblREGASSJune19[[#This Row],[Primary Name]],tblREGASSJune19[[#This Row],[Secondary Acct]],tblREGASSJune19[[#This Row],[Secondary  Name]],tblREGASSJune19[[#This Row],[Alloc4FUNC]])","v":"1823920DSR COSTS AMORTIZED103097SELF DIRECT - COMMERCIAL -WY-2010 CAT3OTHER"},1823920,"DSR COSTS AMORTIZED",103097,"SELF DIRECT - COMMERCIAL -WY-2010 CAT3","OTHER",3.2514400000000001,{"$f":"IF(OR(tblREGASSJune19[[#This Row],[Alloc]]=\"IDU\",tblREGASSJune19[[#This Row],[Alloc]]=\"OR\",tblREGASSJune19[[#This Row],[Alloc]]=\"UT\",tblREGASSJune19[[#This Row],[Alloc]]=\"WYU\",tblREGASSJune19[[#This Row],[Alloc]]=\"WYP\",tblREGASSJune19[[#This Row],[Alloc]]=\"CA\",tblREGASSJune19[[#This Row],[Alloc]]=\"WA\"),\"SITUS\",tblREGASSJune19[[#This Row],[Alloc]])","v":"OTHER"},{"$f":"INDEX(tblREGASSLookup[FUNC],MATCH(tblREGASSJune19[[#This Row],[Concat]],tblREGASSLookup[Concat],0))","v":"CUST"},{"$f":"IF(tblREGASSJune19[[#This Row],[Total ($000)]]=0,\"NO\",IF(ISNA(tblREGASSJune19[[#This Row],[FUNC]]),\"YES\",IF(_xlfn.ISFORMULA(tblREGASSJune19[[#This Row],[FUNC]]),\"NO\",\"YES\")))","v":"NO"}]
[{"$f":"CONCATENATE(tblREGASSJune19[[#This Row],[Primary Account]],tblREGASSJune19[[#This Row],[Primary Name]],tblREGASSJune19[[#This Row],[Secondary Acct]],tblREGASSJune19[[#This Row],[Secondary  Name]],tblREGASSJune19[[#This Row],[Alloc4FUNC]])","v":"1823920DSR COSTS AMORTIZED103098SELF DIRECT -INDUSTRIAL -WY-2010 CAT3OTHER"},1823920,"DSR COSTS AMORTIZED",103098,"SELF DIRECT -INDUSTRIAL -WY-2010 CAT3","OTHER",11.94477,{"$f":"IF(OR(tblREGASSJune19[[#This Row],[Alloc]]=\"IDU\",tblREGASSJune19[[#This Row],[Alloc]]=\"OR\",tblREGASSJune19[[#This Row],[Alloc]]=\"UT\",tblREGASSJune19[[#This Row],[Alloc]]=\"WYU\",tblREGASSJune19[[#This Row],[Alloc]]=\"WYP\",tblREGASSJune19[[#This Row],[Alloc]]=\"CA\",tblREGASSJune19[[#This Row],[Alloc]]=\"WA\"),\"SITUS\",tblREGASSJune19[[#This Row],[Alloc]])","v":"OTHER"},{"$f":"INDEX(tblREGASSLookup[FUNC],MATCH(tblREGASSJune19[[#This Row],[Concat]],tblREGASSLookup[Concat],0))","v":"CUST"},{"$f":"IF(tblREGASSJune19[[#This Row],[Total ($000)]]=0,\"NO\",IF(ISNA(tblREGASSJune19[[#This Row],[FUNC]]),\"YES\",IF(_xlfn.ISFORMULA(tblREGASSJune19[[#This Row],[FUNC]]),\"NO\",\"YES\")))","v":"NO"}]
[{"$f":"CONCATENATE(tblREGASSJune19[[#This Row],[Primary Account]],tblREGASSJune19[[#This Row],[Primary Name]],tblREGASSJune19[[#This Row],[Secondary Acct]],tblREGASSJune19[[#This Row],[Secondary  Name]],tblREGASSJune19[[#This Row],[Alloc4FUNC]])","v":"1823920DSR COSTS AMORTIZED103099COMMERCIAL FINANSWER EXP- WY-2010 CAT2OTHER"},1823920,"DSR COSTS AMORTIZED",103099,"COMMERCIAL FINANSWER EXP- WY-2010 CAT2","OTHER",586.97055999999998,{"$f":"IF(OR(tblREGASSJune19[[#This Row],[Alloc]]=\"IDU\",tblREGASSJune19[[#This Row],[Alloc]]=\"OR\",tblREGASSJune19[[#This Row],[Alloc]]=\"UT\",tblREGASSJune19[[#This Row],[Alloc]]=\"WYU\",tblREGASSJune19[[#This Row],[Alloc]]=\"WYP\",tblREGASSJune19[[#This Row],[Alloc]]=\"CA\",tblREGASSJune19[[#This Row],[Alloc]]=\"WA\"),\"SITUS\",tblREGASSJune19[[#This Row],[Alloc]])","v":"OTHER"},{"$f":"INDEX(tblREGASSLookup[FUNC],MATCH(tblREGASSJune19[[#This Row],[Concat]],tblREGASSLookup[Concat],0))","v":"CUST"},{"$f":"IF(tblREGASSJune19[[#This Row],[Total ($000)]]=0,\"NO\",IF(ISNA(tblREGASSJune19[[#This Row],[FUNC]]),\"YES\",IF(_xlfn.ISFORMULA(tblREGASSJune19[[#This Row],[FUNC]]),\"NO\",\"YES\")))","v":"NO"}]
[{"$f":"CONCATENATE(tblREGASSJune19[[#This Row],[Primary Account]],tblREGASSJune19[[#This Row],[Primary Name]],tblREGASSJune19[[#This Row],[Secondary Acct]],tblREGASSJune19[[#This Row],[Secondary  Name]],tblREGASSJune19[[#This Row],[Alloc4FUNC]])","v":"1823920DSR COSTS AMORTIZED103100INDUSTRIAL FINAN EXPRESS WY-2010 CAT2OTHER"},1823920,"DSR COSTS AMORTIZED",103100,"INDUSTRIAL FINAN EXPRESS WY-2010 CAT2","OTHER",54.880290000000002,{"$f":"IF(OR(tblREGASSJune19[[#This Row],[Alloc]]=\"IDU\",tblREGASSJune19[[#This Row],[Alloc]]=\"OR\",tblREGASSJune19[[#This Row],[Alloc]]=\"UT\",tblREGASSJune19[[#This Row],[Alloc]]=\"WYU\",tblREGASSJune19[[#This Row],[Alloc]]=\"WYP\",tblREGASSJune19[[#This Row],[Alloc]]=\"CA\",tblREGASSJune19[[#This Row],[Alloc]]=\"WA\"),\"SITUS\",tblREGASSJune19[[#This Row],[Alloc]])","v":"OTHER"},{"$f":"INDEX(tblREGASSLookup[FUNC],MATCH(tblREGASSJune19[[#This Row],[Concat]],tblREGASSLookup[Concat],0))","v":"CUST"},{"$f":"IF(tblREGASSJune19[[#This Row],[Total ($000)]]=0,\"NO\",IF(ISNA(tblREGASSJune19[[#This Row],[FUNC]]),\"YES\",IF(_xlfn.ISFORMULA(tblREGASSJune19[[#This Row],[FUNC]]),\"NO\",\"YES\")))","v":"NO"}]
[{"$f":"CONCATENATE(tblREGASSJune19[[#This Row],[Primary Account]],tblREGASSJune19[[#This Row],[Primary Name]],tblREGASSJune19[[#This Row],[Secondary Acct]],tblREGASSJune19[[#This Row],[Secondary  Name]],tblREGASSJune19[[#This Row],[Alloc4FUNC]])","v":"1823920DSR COSTS AMORTIZED103101ENERGY FINANSWER -WY 2010 CAT2OTHER"},1823920,"DSR COSTS AMORTIZED",103101,"ENERGY FINANSWER -WY 2010 CAT2","OTHER",186.01231000000001,{"$f":"IF(OR(tblREGASSJune19[[#This Row],[Alloc]]=\"IDU\",tblREGASSJune19[[#This Row],[Alloc]]=\"OR\",tblREGASSJune19[[#This Row],[Alloc]]=\"UT\",tblREGASSJune19[[#This Row],[Alloc]]=\"WYU\",tblREGASSJune19[[#This Row],[Alloc]]=\"WYP\",tblREGASSJune19[[#This Row],[Alloc]]=\"CA\",tblREGASSJune19[[#This Row],[Alloc]]=\"WA\"),\"SITUS\",tblREGASSJune19[[#This Row],[Alloc]])","v":"OTHER"},{"$f":"INDEX(tblREGASSLookup[FUNC],MATCH(tblREGASSJune19[[#This Row],[Concat]],tblREGASSLookup[Concat],0))","v":"CUST"},{"$f":"IF(tblREGASSJune19[[#This Row],[Total ($000)]]=0,\"NO\",IF(ISNA(tblREGASSJune19[[#This Row],[FUNC]]),\"YES\",IF(_xlfn.ISFORMULA(tblREGASSJune19[[#This Row],[FUNC]]),\"NO\",\"YES\")))","v":"NO"}]
[{"$f":"CONCATENATE(tblREGASSJune19[[#This Row],[Primary Account]],tblREGASSJune19[[#This Row],[Primary Name]],tblREGASSJune19[[#This Row],[Secondary Acct]],tblREGASSJune19[[#This Row],[Secondary  Name]],tblREGASSJune19[[#This Row],[Alloc4FUNC]])","v":"1823920DSR COSTS AMORTIZED103102INDUSTRIAL FINANSWER -WY 2010 CAT2OTHER"},1823920,"DSR COSTS AMORTIZED",103102,"INDUSTRIAL FINANSWER -WY 2010 CAT2","OTHER",125.45623000000001,{"$f":"IF(OR(tblREGASSJune19[[#This Row],[Alloc]]=\"IDU\",tblREGASSJune19[[#This Row],[Alloc]]=\"OR\",tblREGASSJune19[[#This Row],[Alloc]]=\"UT\",tblREGASSJune19[[#This Row],[Alloc]]=\"WYU\",tblREGASSJune19[[#This Row],[Alloc]]=\"WYP\",tblREGASSJune19[[#This Row],[Alloc]]=\"CA\",tblREGASSJune19[[#This Row],[Alloc]]=\"WA\"),\"SITUS\",tblREGASSJune19[[#This Row],[Alloc]])","v":"OTHER"},{"$f":"INDEX(tblREGASSLookup[FUNC],MATCH(tblREGASSJune19[[#This Row],[Concat]],tblREGASSLookup[Concat],0))","v":"CUST"},{"$f":"IF(tblREGASSJune19[[#This Row],[Total ($000)]]=0,\"NO\",IF(ISNA(tblREGASSJune19[[#This Row],[FUNC]]),\"YES\",IF(_xlfn.ISFORMULA(tblREGASSJune19[[#This Row],[FUNC]]),\"NO\",\"YES\")))","v":"NO"}]
[{"$f":"CONCATENATE(tblREGASSJune19[[#This Row],[Primary Account]],tblREGASSJune19[[#This Row],[Primary Name]],tblREGASSJune19[[#This Row],[Secondary Acct]],tblREGASSJune19[[#This Row],[Secondary  Name]],tblREGASSJune19[[#This Row],[Alloc4FUNC]])","v":"1823920DSR COSTS AMORTIZED103103Check Disb-Wires/ACH In Clearing - BTOTHER"},1823920,"DSR COSTS AMORTIZED",103103,"Check Disb-Wires/ACH In Clearing - BT","OTHER",0.86268,{"$f":"IF(OR(tblREGASSJune19[[#This Row],[Alloc]]=\"IDU\",tblREGASSJune19[[#This Row],[Alloc]]=\"OR\",tblREGASSJune19[[#This Row],[Alloc]]=\"UT\",tblREGASSJune19[[#This Row],[Alloc]]=\"WYU\",tblREGASSJune19[[#This Row],[Alloc]]=\"WYP\",tblREGASSJune19[[#This Row],[Alloc]]=\"CA\",tblREGASSJune19[[#This Row],[Alloc]]=\"WA\"),\"SITUS\",tblREGASSJune19[[#This Row],[Alloc]])","v":"OTHER"},{"$f":"INDEX(tblREGASSLookup[FUNC],MATCH(tblREGASSJune19[[#This Row],[Concat]],tblREGASSLookup[Concat],0))","v":"CUST"},{"$f":"IF(tblREGASSJune19[[#This Row],[Total ($000)]]=0,\"NO\",IF(ISNA(tblREGASSJune19[[#This Row],[FUNC]]),\"YES\",IF(_xlfn.ISFORMULA(tblREGASSJune19[[#This Row],[FUNC]]),\"NO\",\"YES\")))","v":"NO"}]
[{"$f":"CONCATENATE(tblREGASSJune19[[#This Row],[Primary Account]],tblREGASSJune19[[#This Row],[Primary Name]],tblREGASSJune19[[#This Row],[Secondary Acct]],tblREGASSJune19[[#This Row],[Secondary  Name]],tblREGASSJune19[[#This Row],[Alloc4FUNC]])","v":"1823920DSR COSTS AMORTIZED103104Check Disb-Wires/ACH Out Clearing - BTOTHER"},1823920,"DSR COSTS AMORTIZED",103104,"Check Disb-Wires/ACH Out Clearing - BT","OTHER",3.0861700000000001,{"$f":"IF(OR(tblREGASSJune19[[#This Row],[Alloc]]=\"IDU\",tblREGASSJune19[[#This Row],[Alloc]]=\"OR\",tblREGASSJune19[[#This Row],[Alloc]]=\"UT\",tblREGASSJune19[[#This Row],[Alloc]]=\"WYU\",tblREGASSJune19[[#This Row],[Alloc]]=\"WYP\",tblREGASSJune19[[#This Row],[Alloc]]=\"CA\",tblREGASSJune19[[#This Row],[Alloc]]=\"WA\"),\"SITUS\",tblREGASSJune19[[#This Row],[Alloc]])","v":"OTHER"},{"$f":"INDEX(tblREGASSLookup[FUNC],MATCH(tblREGASSJune19[[#This Row],[Concat]],tblREGASSLookup[Concat],0))","v":"CUST"},{"$f":"IF(tblREGASSJune19[[#This Row],[Total ($000)]]=0,\"NO\",IF(ISNA(tblREGASSJune19[[#This Row],[FUNC]]),\"YES\",IF(_xlfn.ISFORMULA(tblREGASSJune19[[#This Row],[FUNC]]),\"NO\",\"YES\")))","v":"NO"}]
[{"$f":"CONCATENATE(tblREGASSJune19[[#This Row],[Primary Account]],tblREGASSJune19[[#This Row],[Primary Name]],tblREGASSJune19[[#This Row],[Secondary Acct]],tblREGASSJune19[[#This Row],[Secondary  Name]],tblREGASSJune19[[#This Row],[Alloc4FUNC]])","v":"1823920DSR COSTS AMORTIZED103137Company Initiatives DEI Study- WashingtoOTHER"},1823920,"DSR COSTS AMORTIZED",103137,"Company Initiatives DEI Study- Washingto","OTHER",724.31773999999996,{"$f":"IF(OR(tblREGASSJune19[[#This Row],[Alloc]]=\"IDU\",tblREGASSJune19[[#This Row],[Alloc]]=\"OR\",tblREGASSJune19[[#This Row],[Alloc]]=\"UT\",tblREGASSJune19[[#This Row],[Alloc]]=\"WYU\",tblREGASSJune19[[#This Row],[Alloc]]=\"WYP\",tblREGASSJune19[[#This Row],[Alloc]]=\"CA\",tblREGASSJune19[[#This Row],[Alloc]]=\"WA\"),\"SITUS\",tblREGASSJune19[[#This Row],[Alloc]])","v":"OTHER"},{"$f":"INDEX(tblREGASSLookup[FUNC],MATCH(tblREGASSJune19[[#This Row],[Concat]],tblREGASSLookup[Concat],0))","v":"CUST"},{"$f":"IF(tblREGASSJune19[[#This Row],[Total ($000)]]=0,\"NO\",IF(ISNA(tblREGASSJune19[[#This Row],[FUNC]]),\"YES\",IF(_xlfn.ISFORMULA(tblREGASSJune19[[#This Row],[FUNC]]),\"NO\",\"YES\")))","v":"NO"}]
[{"$f":"CONCATENATE(tblREGASSJune19[[#This Row],[Primary Account]],tblREGASSJune19[[#This Row],[Primary Name]],tblREGASSJune19[[#This Row],[Secondary Acct]],tblREGASSJune19[[#This Row],[Secondary  Name]],tblREGASSJune19[[#This Row],[Alloc4FUNC]])","v":"1823920DSR COSTS AMORTIZED103163Commercial Direct Install - Utah - 2011OTHER"},1823920,"DSR COSTS AMORTIZED",103163,"Commercial Direct Install - Utah - 2011","OTHER",2.8718400000000002,{"$f":"IF(OR(tblREGASSJune19[[#This Row],[Alloc]]=\"IDU\",tblREGASSJune19[[#This Row],[Alloc]]=\"OR\",tblREGASSJune19[[#This Row],[Alloc]]=\"UT\",tblREGASSJune19[[#This Row],[Alloc]]=\"WYU\",tblREGASSJune19[[#This Row],[Alloc]]=\"WYP\",tblREGASSJune19[[#This Row],[Alloc]]=\"CA\",tblREGASSJune19[[#This Row],[Alloc]]=\"WA\"),\"SITUS\",tblREGASSJune19[[#This Row],[Alloc]])","v":"OTHER"},{"$f":"INDEX(tblREGASSLookup[FUNC],MATCH(tblREGASSJune19[[#This Row],[Concat]],tblREGASSLookup[Concat],0))","v":"CUST"},{"$f":"IF(tblREGASSJune19[[#This Row],[Total ($000)]]=0,\"NO\",IF(ISNA(tblREGASSJune19[[#This Row],[FUNC]]),\"YES\",IF(_xlfn.ISFORMULA(tblREGASSJune19[[#This Row],[FUNC]]),\"NO\",\"YES\")))","v":"NO"}]
[{"$f":"CONCATENATE(tblREGASSJune19[[#This Row],[Primary Account]],tblREGASSJune19[[#This Row],[Primary Name]],tblREGASSJune19[[#This Row],[Secondary Acct]],tblREGASSJune19[[#This Row],[Secondary  Name]],tblREGASSJune19[[#This Row],[Alloc4FUNC]])","v":"1823920DSR COSTS AMORTIZED103164Commercial Curtailment - Utah - 2011OTHER"},1823920,"DSR COSTS AMORTIZED",103164,"Commercial Curtailment - Utah - 2011","OTHER",29.676439999999999,{"$f":"IF(OR(tblREGASSJune19[[#This Row],[Alloc]]=\"IDU\",tblREGASSJune19[[#This Row],[Alloc]]=\"OR\",tblREGASSJune19[[#This Row],[Alloc]]=\"UT\",tblREGASSJune19[[#This Row],[Alloc]]=\"WYU\",tblREGASSJune19[[#This Row],[Alloc]]=\"WYP\",tblREGASSJune19[[#This Row],[Alloc]]=\"CA\",tblREGASSJune19[[#This Row],[Alloc]]=\"WA\"),\"SITUS\",tblREGASSJune19[[#This Row],[Alloc]])","v":"OTHER"},{"$f":"INDEX(tblREGASSLookup[FUNC],MATCH(tblREGASSJune19[[#This Row],[Concat]],tblREGASSLookup[Concat],0))","v":"CUST"},{"$f":"IF(tblREGASSJune19[[#This Row],[Total ($000)]]=0,\"NO\",IF(ISNA(tblREGASSJune19[[#This Row],[FUNC]]),\"YES\",IF(_xlfn.ISFORMULA(tblREGASSJune19[[#This Row],[FUNC]]),\"NO\",\"YES\")))","v":"NO"}]
[{"$f":"CONCATENATE(tblREGASSJune19[[#This Row],[Primary Account]],tblREGASSJune19[[#This Row],[Primary Name]],tblREGASSJune19[[#This Row],[Secondary Acct]],tblREGASSJune19[[#This Row],[Secondary  Name]],tblREGASSJune19[[#This Row],[Alloc4FUNC]])","v":"1823920DSR COSTS AMORTIZED103165Commercial Direct Install - WashingtonOTHER"},1823920,"DSR COSTS AMORTIZED",103165,"Commercial Direct Install - Washington","OTHER",0.32700000000000001,{"$f":"IF(OR(tblREGASSJune19[[#This Row],[Alloc]]=\"IDU\",tblREGASSJune19[[#This Row],[Alloc]]=\"OR\",tblREGASSJune19[[#This Row],[Alloc]]=\"UT\",tblREGASSJune19[[#This Row],[Alloc]]=\"WYU\",tblREGASSJune19[[#This Row],[Alloc]]=\"WYP\",tblREGASSJune19[[#This Row],[Alloc]]=\"CA\",tblREGASSJune19[[#This Row],[Alloc]]=\"WA\"),\"SITUS\",tblREGASSJune19[[#This Row],[Alloc]])","v":"OTHER"},{"$f":"INDEX(tblREGASSLookup[FUNC],MATCH(tblREGASSJune19[[#This Row],[Concat]],tblREGASSLookup[Concat],0))","v":"CUST"},{"$f":"IF(tblREGASSJune19[[#This Row],[Total ($000)]]=0,\"NO\",IF(ISNA(tblREGASSJune19[[#This Row],[FUNC]]),\"YES\",IF(_xlfn.ISFORMULA(tblREGASSJune19[[#This Row],[FUNC]]),\"NO\",\"YES\")))","v":"NO"}]
[{"$f":"CONCATENATE(tblREGASSJune19[[#This Row],[Primary Account]],tblREGASSJune19[[#This Row],[Primary Name]],tblREGASSJune19[[#This Row],[Secondary Acct]],tblREGASSJune19[[#This Row],[Secondary  Name]],tblREGASSJune19[[#This Row],[Alloc4FUNC]])","v":"1823920DSR COSTS AMORTIZED103166Commercial Curtailment - WashingtonOTHER"},1823920,"DSR COSTS AMORTIZED",103166,"Commercial Curtailment - Washington","OTHER",0,{"$f":"IF(OR(tblREGASSJune19[[#This Row],[Alloc]]=\"IDU\",tblREGASSJune19[[#This Row],[Alloc]]=\"OR\",tblREGASSJune19[[#This Row],[Alloc]]=\"UT\",tblREGASSJune19[[#This Row],[Alloc]]=\"WYU\",tblREGASSJune19[[#This Row],[Alloc]]=\"WYP\",tblREGASSJune19[[#This Row],[Alloc]]=\"CA\",tblREGASSJune19[[#This Row],[Alloc]]=\"WA\"),\"SITUS\",tblREGASSJune19[[#This Row],[Alloc]])","v":"OTHER"},{"$f":"INDEX(tblREGASSLookup[FUNC],MATCH(tblREGASSJune19[[#This Row],[Concat]],tblREGASSLookup[Concat],0))","v":{"$error":"#N/A"}},{"$f":"IF(tblREGASSJune19[[#This Row],[Total ($000)]]=0,\"NO\",IF(ISNA(tblREGASSJune19[[#This Row],[FUNC]]),\"YES\",IF(_xlfn.ISFORMULA(tblREGASSJune19[[#This Row],[FUNC]]),\"NO\",\"YES\")))","v":"NO"}]
[{"$f":"CONCATENATE(tblREGASSJune19[[#This Row],[Primary Account]],tblREGASSJune19[[#This Row],[Primary Name]],tblREGASSJune19[[#This Row],[Secondary Acct]],tblREGASSJune19[[#This Row],[Secondary  Name]],tblREGASSJune19[[#This Row],[Alloc4FUNC]])","v":"1823920DSR COSTS AMORTIZED103167Commercial Direct Install- WY-2011 CAT2OTHER"},1823920,"DSR COSTS AMORTIZED",103167,"Commercial Direct Install- WY-2011 CAT2","OTHER",0,{"$f":"IF(OR(tblREGASSJune19[[#This Row],[Alloc]]=\"IDU\",tblREGASSJune19[[#This Row],[Alloc]]=\"OR\",tblREGASSJune19[[#This Row],[Alloc]]=\"UT\",tblREGASSJune19[[#This Row],[Alloc]]=\"WYU\",tblREGASSJune19[[#This Row],[Alloc]]=\"WYP\",tblREGASSJune19[[#This Row],[Alloc]]=\"CA\",tblREGASSJune19[[#This Row],[Alloc]]=\"WA\"),\"SITUS\",tblREGASSJune19[[#This Row],[Alloc]])","v":"OTHER"},{"$f":"INDEX(tblREGASSLookup[FUNC],MATCH(tblREGASSJune19[[#This Row],[Concat]],tblREGASSLookup[Concat],0))","v":{"$error":"#N/A"}},{"$f":"IF(tblREGASSJune19[[#This Row],[Total ($000)]]=0,\"NO\",IF(ISNA(tblREGASSJune19[[#This Row],[FUNC]]),\"YES\",IF(_xlfn.ISFORMULA(tblREGASSJune19[[#This Row],[FUNC]]),\"NO\",\"YES\")))","v":"NO"}]
[{"$f":"CONCATENATE(tblREGASSJune19[[#This Row],[Primary Account]],tblREGASSJune19[[#This Row],[Primary Name]],tblREGASSJune19[[#This Row],[Secondary Acct]],tblREGASSJune19[[#This Row],[Secondary  Name]],tblREGASSJune19[[#This Row],[Alloc4FUNC]])","v":"1823920DSR COSTS AMORTIZED103168CALIFORNIA DSM EXPENSE - 2011OTHER"},1823920,"DSR COSTS AMORTIZED",103168,"CALIFORNIA DSM EXPENSE - 2011","OTHER",1.0000000000000001E-5,{"$f":"IF(OR(tblREGASSJune19[[#This Row],[Alloc]]=\"IDU\",tblREGASSJune19[[#This Row],[Alloc]]=\"OR\",tblREGASSJune19[[#This Row],[Alloc]]=\"UT\",tblREGASSJune19[[#This Row],[Alloc]]=\"WYU\",tblREGASSJune19[[#This Row],[Alloc]]=\"WYP\",tblREGASSJune19[[#This Row],[Alloc]]=\"CA\",tblREGASSJune19[[#This Row],[Alloc]]=\"WA\"),\"SITUS\",tblREGASSJune19[[#This Row],[Alloc]])","v":"OTHER"},{"$f":"INDEX(tblREGASSLookup[FUNC],MATCH(tblREGASSJune19[[#This Row],[Concat]],tblREGASSLookup[Concat],0))","v":"CUST"},{"$f":"IF(tblREGASSJune19[[#This Row],[Total ($000)]]=0,\"NO\",IF(ISNA(tblREGASSJune19[[#This Row],[FUNC]]),\"YES\",IF(_xlfn.ISFORMULA(tblREGASSJune19[[#This Row],[FUNC]]),\"NO\",\"YES\")))","v":"NO"}]
[{"$f":"CONCATENATE(tblREGASSJune19[[#This Row],[Primary Account]],tblREGASSJune19[[#This Row],[Primary Name]],tblREGASSJune19[[#This Row],[Secondary Acct]],tblREGASSJune19[[#This Row],[Secondary  Name]],tblREGASSJune19[[#This Row],[Alloc4FUNC]])","v":"1823920DSR COSTS AMORTIZED103169Commercial Curtailment - OregonOTHER"},1823920,"DSR COSTS AMORTIZED",103169,"Commercial Curtailment - Oregon","OTHER",26.626629999999999,{"$f":"IF(OR(tblREGASSJune19[[#This Row],[Alloc]]=\"IDU\",tblREGASSJune19[[#This Row],[Alloc]]=\"OR\",tblREGASSJune19[[#This Row],[Alloc]]=\"UT\",tblREGASSJune19[[#This Row],[Alloc]]=\"WYU\",tblREGASSJune19[[#This Row],[Alloc]]=\"WYP\",tblREGASSJune19[[#This Row],[Alloc]]=\"CA\",tblREGASSJune19[[#This Row],[Alloc]]=\"WA\"),\"SITUS\",tblREGASSJune19[[#This Row],[Alloc]])","v":"OTHER"},{"$f":"INDEX(tblREGASSLookup[FUNC],MATCH(tblREGASSJune19[[#This Row],[Concat]],tblREGASSLookup[Concat],0))","v":"CUST"},{"$f":"IF(tblREGASSJune19[[#This Row],[Total ($000)]]=0,\"NO\",IF(ISNA(tblREGASSJune19[[#This Row],[FUNC]]),\"YES\",IF(_xlfn.ISFORMULA(tblREGASSJune19[[#This Row],[FUNC]]),\"NO\",\"YES\")))","v":"NO"}]
[{"$f":"CONCATENATE(tblREGASSJune19[[#This Row],[Primary Account]],tblREGASSJune19[[#This Row],[Primary Name]],tblREGASSJune19[[#This Row],[Secondary Acct]],tblREGASSJune19[[#This Row],[Secondary  Name]],tblREGASSJune19[[#This Row],[Alloc4FUNC]])","v":"1823920DSR COSTS AMORTIZED103181A/C LOAD CONTROL - RESIDENTIAL/UTAH - 20OTHER"},1823920,"DSR COSTS AMORTIZED",103181,"A/C LOAD CONTROL - RESIDENTIAL/UTAH - 20","OTHER",6498.2851300000002,{"$f":"IF(OR(tblREGASSJune19[[#This Row],[Alloc]]=\"IDU\",tblREGASSJune19[[#This Row],[Alloc]]=\"OR\",tblREGASSJune19[[#This Row],[Alloc]]=\"UT\",tblREGASSJune19[[#This Row],[Alloc]]=\"WYU\",tblREGASSJune19[[#This Row],[Alloc]]=\"WYP\",tblREGASSJune19[[#This Row],[Alloc]]=\"CA\",tblREGASSJune19[[#This Row],[Alloc]]=\"WA\"),\"SITUS\",tblREGASSJune19[[#This Row],[Alloc]])","v":"OTHER"},{"$f":"INDEX(tblREGASSLookup[FUNC],MATCH(tblREGASSJune19[[#This Row],[Concat]],tblREGASSLookup[Concat],0))","v":"CUST"},{"$f":"IF(tblREGASSJune19[[#This Row],[Total ($000)]]=0,\"NO\",IF(ISNA(tblREGASSJune19[[#This Row],[FUNC]]),\"YES\",IF(_xlfn.ISFORMULA(tblREGASSJune19[[#This Row],[FUNC]]),\"NO\",\"YES\")))","v":"NO"}]
[{"$f":"CONCATENATE(tblREGASSJune19[[#This Row],[Primary Account]],tblREGASSJune19[[#This Row],[Primary Name]],tblREGASSJune19[[#This Row],[Secondary Acct]],tblREGASSJune19[[#This Row],[Secondary  Name]],tblREGASSJune19[[#This Row],[Alloc4FUNC]])","v":"1823920DSR COSTS AMORTIZED103182AIR CONDITIONING - UTAH - 2011OTHER"},1823920,"DSR COSTS AMORTIZED",103182,"AIR CONDITIONING - UTAH - 2011","OTHER",1304.8748800000001,{"$f":"IF(OR(tblREGASSJune19[[#This Row],[Alloc]]=\"IDU\",tblREGASSJune19[[#This Row],[Alloc]]=\"OR\",tblREGASSJune19[[#This Row],[Alloc]]=\"UT\",tblREGASSJune19[[#This Row],[Alloc]]=\"WYU\",tblREGASSJune19[[#This Row],[Alloc]]=\"WYP\",tblREGASSJune19[[#This Row],[Alloc]]=\"CA\",tblREGASSJune19[[#This Row],[Alloc]]=\"WA\"),\"SITUS\",tblREGASSJune19[[#This Row],[Alloc]])","v":"OTHER"},{"$f":"INDEX(tblREGASSLookup[FUNC],MATCH(tblREGASSJune19[[#This Row],[Concat]],tblREGASSLookup[Concat],0))","v":"CUST"},{"$f":"IF(tblREGASSJune19[[#This Row],[Total ($000)]]=0,\"NO\",IF(ISNA(tblREGASSJune19[[#This Row],[FUNC]]),\"YES\",IF(_xlfn.ISFORMULA(tblREGASSJune19[[#This Row],[FUNC]]),\"NO\",\"YES\")))","v":"NO"}]
[{"$f":"CONCATENATE(tblREGASSJune19[[#This Row],[Primary Account]],tblREGASSJune19[[#This Row],[Primary Name]],tblREGASSJune19[[#This Row],[Secondary Acct]],tblREGASSJune19[[#This Row],[Secondary  Name]],tblREGASSJune19[[#This Row],[Alloc4FUNC]])","v":"1823920DSR COSTS AMORTIZED103183ENERGY FINANSWER - UTAH - 2011OTHER"},1823920,"DSR COSTS AMORTIZED",103183,"ENERGY FINANSWER - UTAH - 2011","OTHER",3647.42121,{"$f":"IF(OR(tblREGASSJune19[[#This Row],[Alloc]]=\"IDU\",tblREGASSJune19[[#This Row],[Alloc]]=\"OR\",tblREGASSJune19[[#This Row],[Alloc]]=\"UT\",tblREGASSJune19[[#This Row],[Alloc]]=\"WYU\",tblREGASSJune19[[#This Row],[Alloc]]=\"WYP\",tblREGASSJune19[[#This Row],[Alloc]]=\"CA\",tblREGASSJune19[[#This Row],[Alloc]]=\"WA\"),\"SITUS\",tblREGASSJune19[[#This Row],[Alloc]])","v":"OTHER"},{"$f":"INDEX(tblREGASSLookup[FUNC],MATCH(tblREGASSJune19[[#This Row],[Concat]],tblREGASSLookup[Concat],0))","v":"CUST"},{"$f":"IF(tblREGASSJune19[[#This Row],[Total ($000)]]=0,\"NO\",IF(ISNA(tblREGASSJune19[[#This Row],[FUNC]]),\"YES\",IF(_xlfn.ISFORMULA(tblREGASSJune19[[#This Row],[FUNC]]),\"NO\",\"YES\")))","v":"NO"}]
[{"$f":"CONCATENATE(tblREGASSJune19[[#This Row],[Primary Account]],tblREGASSJune19[[#This Row],[Primary Name]],tblREGASSJune19[[#This Row],[Secondary Acct]],tblREGASSJune19[[#This Row],[Secondary  Name]],tblREGASSJune19[[#This Row],[Alloc4FUNC]])","v":"1823920DSR COSTS AMORTIZED103184INDUSTRIAL FINANSWER - UTAH - 2011OTHER"},1823920,"DSR COSTS AMORTIZED",103184,"INDUSTRIAL FINANSWER - UTAH - 2011","OTHER",5015.8909999999996,{"$f":"IF(OR(tblREGASSJune19[[#This Row],[Alloc]]=\"IDU\",tblREGASSJune19[[#This Row],[Alloc]]=\"OR\",tblREGASSJune19[[#This Row],[Alloc]]=\"UT\",tblREGASSJune19[[#This Row],[Alloc]]=\"WYU\",tblREGASSJune19[[#This Row],[Alloc]]=\"WYP\",tblREGASSJune19[[#This Row],[Alloc]]=\"CA\",tblREGASSJune19[[#This Row],[Alloc]]=\"WA\"),\"SITUS\",tblREGASSJune19[[#This Row],[Alloc]])","v":"OTHER"},{"$f":"INDEX(tblREGASSLookup[FUNC],MATCH(tblREGASSJune19[[#This Row],[Concat]],tblREGASSLookup[Concat],0))","v":"CUST"},{"$f":"IF(tblREGASSJune19[[#This Row],[Total ($000)]]=0,\"NO\",IF(ISNA(tblREGASSJune19[[#This Row],[FUNC]]),\"YES\",IF(_xlfn.ISFORMULA(tblREGASSJune19[[#This Row],[FUNC]]),\"NO\",\"YES\")))","v":"NO"}]
[{"$f":"CONCATENATE(tblREGASSJune19[[#This Row],[Primary Account]],tblREGASSJune19[[#This Row],[Primary Name]],tblREGASSJune19[[#This Row],[Secondary Acct]],tblREGASSJune19[[#This Row],[Secondary  Name]],tblREGASSJune19[[#This Row],[Alloc4FUNC]])","v":"1823920DSR COSTS AMORTIZED103185LOW INCOME - UTAH - 2011OTHER"},1823920,"DSR COSTS AMORTIZED",103185,"LOW INCOME - UTAH - 2011","OTHER",254.58275,{"$f":"IF(OR(tblREGASSJune19[[#This Row],[Alloc]]=\"IDU\",tblREGASSJune19[[#This Row],[Alloc]]=\"OR\",tblREGASSJune19[[#This Row],[Alloc]]=\"UT\",tblREGASSJune19[[#This Row],[Alloc]]=\"WYU\",tblREGASSJune19[[#This Row],[Alloc]]=\"WYP\",tblREGASSJune19[[#This Row],[Alloc]]=\"CA\",tblREGASSJune19[[#This Row],[Alloc]]=\"WA\"),\"SITUS\",tblREGASSJune19[[#This Row],[Alloc]])","v":"OTHER"},{"$f":"INDEX(tblREGASSLookup[FUNC],MATCH(tblREGASSJune19[[#This Row],[Concat]],tblREGASSLookup[Concat],0))","v":"CUST"},{"$f":"IF(tblREGASSJune19[[#This Row],[Total ($000)]]=0,\"NO\",IF(ISNA(tblREGASSJune19[[#This Row],[FUNC]]),\"YES\",IF(_xlfn.ISFORMULA(tblREGASSJune19[[#This Row],[FUNC]]),\"NO\",\"YES\")))","v":"NO"}]
[{"$f":"CONCATENATE(tblREGASSJune19[[#This Row],[Primary Account]],tblREGASSJune19[[#This Row],[Primary Name]],tblREGASSJune19[[#This Row],[Secondary Acct]],tblREGASSJune19[[#This Row],[Secondary  Name]],tblREGASSJune19[[#This Row],[Alloc4FUNC]])","v":"1823920DSR COSTS AMORTIZED103186Power Forward - Utah - 2011OTHER"},1823920,"DSR COSTS AMORTIZED",103186,"Power Forward - Utah - 2011","OTHER",3.807E-2,{"$f":"IF(OR(tblREGASSJune19[[#This Row],[Alloc]]=\"IDU\",tblREGASSJune19[[#This Row],[Alloc]]=\"OR\",tblREGASSJune19[[#This Row],[Alloc]]=\"UT\",tblREGASSJune19[[#This Row],[Alloc]]=\"WYU\",tblREGASSJune19[[#This Row],[Alloc]]=\"WYP\",tblREGASSJune19[[#This Row],[Alloc]]=\"CA\",tblREGASSJune19[[#This Row],[Alloc]]=\"WA\"),\"SITUS\",tblREGASSJune19[[#This Row],[Alloc]])","v":"OTHER"},{"$f":"INDEX(tblREGASSLookup[FUNC],MATCH(tblREGASSJune19[[#This Row],[Concat]],tblREGASSLookup[Concat],0))","v":"CUST"},{"$f":"IF(tblREGASSJune19[[#This Row],[Total ($000)]]=0,\"NO\",IF(ISNA(tblREGASSJune19[[#This Row],[FUNC]]),\"YES\",IF(_xlfn.ISFORMULA(tblREGASSJune19[[#This Row],[FUNC]]),\"NO\",\"YES\")))","v":"NO"}]
[{"$f":"CONCATENATE(tblREGASSJune19[[#This Row],[Primary Account]],tblREGASSJune19[[#This Row],[Primary Name]],tblREGASSJune19[[#This Row],[Secondary Acct]],tblREGASSJune19[[#This Row],[Secondary  Name]],tblREGASSJune19[[#This Row],[Alloc4FUNC]])","v":"1823920DSR COSTS AMORTIZED103187REFRIGERATOR RECYCLING PGM- UTAH - 2011OTHER"},1823920,"DSR COSTS AMORTIZED",103187,"REFRIGERATOR RECYCLING PGM- UTAH - 2011","OTHER",1880.4767099999999,{"$f":"IF(OR(tblREGASSJune19[[#This Row],[Alloc]]=\"IDU\",tblREGASSJune19[[#This Row],[Alloc]]=\"OR\",tblREGASSJune19[[#This Row],[Alloc]]=\"UT\",tblREGASSJune19[[#This Row],[Alloc]]=\"WYU\",tblREGASSJune19[[#This Row],[Alloc]]=\"WYP\",tblREGASSJune19[[#This Row],[Alloc]]=\"CA\",tblREGASSJune19[[#This Row],[Alloc]]=\"WA\"),\"SITUS\",tblREGASSJune19[[#This Row],[Alloc]])","v":"OTHER"},{"$f":"INDEX(tblREGASSLookup[FUNC],MATCH(tblREGASSJune19[[#This Row],[Concat]],tblREGASSLookup[Concat],0))","v":"CUST"},{"$f":"IF(tblREGASSJune19[[#This Row],[Total ($000)]]=0,\"NO\",IF(ISNA(tblREGASSJune19[[#This Row],[FUNC]]),\"YES\",IF(_xlfn.ISFORMULA(tblREGASSJune19[[#This Row],[FUNC]]),\"NO\",\"YES\")))","v":"NO"}]
[{"$f":"CONCATENATE(tblREGASSJune19[[#This Row],[Primary Account]],tblREGASSJune19[[#This Row],[Primary Name]],tblREGASSJune19[[#This Row],[Secondary Acct]],tblREGASSJune19[[#This Row],[Secondary  Name]],tblREGASSJune19[[#This Row],[Alloc4FUNC]])","v":"1823920DSR COSTS AMORTIZED103188COMMERCIAL SELF-DIRECT - UTAH - 2011OTHER"},1823920,"DSR COSTS AMORTIZED",103188,"COMMERCIAL SELF-DIRECT - UTAH - 2011","OTHER",125.50482,{"$f":"IF(OR(tblREGASSJune19[[#This Row],[Alloc]]=\"IDU\",tblREGASSJune19[[#This Row],[Alloc]]=\"OR\",tblREGASSJune19[[#This Row],[Alloc]]=\"UT\",tblREGASSJune19[[#This Row],[Alloc]]=\"WYU\",tblREGASSJune19[[#This Row],[Alloc]]=\"WYP\",tblREGASSJune19[[#This Row],[Alloc]]=\"CA\",tblREGASSJune19[[#This Row],[Alloc]]=\"WA\"),\"SITUS\",tblREGASSJune19[[#This Row],[Alloc]])","v":"OTHER"},{"$f":"INDEX(tblREGASSLookup[FUNC],MATCH(tblREGASSJune19[[#This Row],[Concat]],tblREGASSLookup[Concat],0))","v":"CUST"},{"$f":"IF(tblREGASSJune19[[#This Row],[Total ($000)]]=0,\"NO\",IF(ISNA(tblREGASSJune19[[#This Row],[FUNC]]),\"YES\",IF(_xlfn.ISFORMULA(tblREGASSJune19[[#This Row],[FUNC]]),\"NO\",\"YES\")))","v":"NO"}]
[{"$f":"CONCATENATE(tblREGASSJune19[[#This Row],[Primary Account]],tblREGASSJune19[[#This Row],[Primary Name]],tblREGASSJune19[[#This Row],[Secondary Acct]],tblREGASSJune19[[#This Row],[Secondary  Name]],tblREGASSJune19[[#This Row],[Alloc4FUNC]])","v":"1823920DSR COSTS AMORTIZED103189INDUSTRIAL SELF-DIRECT - UTAH - 2011OTHER"},1823920,"DSR COSTS AMORTIZED",103189,"INDUSTRIAL SELF-DIRECT - UTAH - 2011","OTHER",239.85731999999999,{"$f":"IF(OR(tblREGASSJune19[[#This Row],[Alloc]]=\"IDU\",tblREGASSJune19[[#This Row],[Alloc]]=\"OR\",tblREGASSJune19[[#This Row],[Alloc]]=\"UT\",tblREGASSJune19[[#This Row],[Alloc]]=\"WYU\",tblREGASSJune19[[#This Row],[Alloc]]=\"WYP\",tblREGASSJune19[[#This Row],[Alloc]]=\"CA\",tblREGASSJune19[[#This Row],[Alloc]]=\"WA\"),\"SITUS\",tblREGASSJune19[[#This Row],[Alloc]])","v":"OTHER"},{"$f":"INDEX(tblREGASSLookup[FUNC],MATCH(tblREGASSJune19[[#This Row],[Concat]],tblREGASSLookup[Concat],0))","v":"CUST"},{"$f":"IF(tblREGASSJune19[[#This Row],[Total ($000)]]=0,\"NO\",IF(ISNA(tblREGASSJune19[[#This Row],[FUNC]]),\"YES\",IF(_xlfn.ISFORMULA(tblREGASSJune19[[#This Row],[FUNC]]),\"NO\",\"YES\")))","v":"NO"}]
[{"$f":"CONCATENATE(tblREGASSJune19[[#This Row],[Primary Account]],tblREGASSJune19[[#This Row],[Primary Name]],tblREGASSJune19[[#This Row],[Secondary Acct]],tblREGASSJune19[[#This Row],[Secondary  Name]],tblREGASSJune19[[#This Row],[Alloc4FUNC]])","v":"1823920DSR COSTS AMORTIZED103190RESIDENTIAL NEW CONSTRUCTION - UTAH - 20OTHER"},1823920,"DSR COSTS AMORTIZED",103190,"RESIDENTIAL NEW CONSTRUCTION - UTAH - 20","OTHER",3071.2638200000001,{"$f":"IF(OR(tblREGASSJune19[[#This Row],[Alloc]]=\"IDU\",tblREGASSJune19[[#This Row],[Alloc]]=\"OR\",tblREGASSJune19[[#This Row],[Alloc]]=\"UT\",tblREGASSJune19[[#This Row],[Alloc]]=\"WYU\",tblREGASSJune19[[#This Row],[Alloc]]=\"WYP\",tblREGASSJune19[[#This Row],[Alloc]]=\"CA\",tblREGASSJune19[[#This Row],[Alloc]]=\"WA\"),\"SITUS\",tblREGASSJune19[[#This Row],[Alloc]])","v":"OTHER"},{"$f":"INDEX(tblREGASSLookup[FUNC],MATCH(tblREGASSJune19[[#This Row],[Concat]],tblREGASSLookup[Concat],0))","v":"CUST"},{"$f":"IF(tblREGASSJune19[[#This Row],[Total ($000)]]=0,\"NO\",IF(ISNA(tblREGASSJune19[[#This Row],[FUNC]]),\"YES\",IF(_xlfn.ISFORMULA(tblREGASSJune19[[#This Row],[FUNC]]),\"NO\",\"YES\")))","v":"NO"}]
[{"$f":"CONCATENATE(tblREGASSJune19[[#This Row],[Primary Account]],tblREGASSJune19[[#This Row],[Primary Name]],tblREGASSJune19[[#This Row],[Secondary Acct]],tblREGASSJune19[[#This Row],[Secondary  Name]],tblREGASSJune19[[#This Row],[Alloc4FUNC]])","v":"1823920DSR COSTS AMORTIZED103191COMMERCIAL FINANSWER EXPRESS - UTAH - 20OTHER"},1823920,"DSR COSTS AMORTIZED",103191,"COMMERCIAL FINANSWER EXPRESS - UTAH - 20","OTHER",4606.6943600000004,{"$f":"IF(OR(tblREGASSJune19[[#This Row],[Alloc]]=\"IDU\",tblREGASSJune19[[#This Row],[Alloc]]=\"OR\",tblREGASSJune19[[#This Row],[Alloc]]=\"UT\",tblREGASSJune19[[#This Row],[Alloc]]=\"WYU\",tblREGASSJune19[[#This Row],[Alloc]]=\"WYP\",tblREGASSJune19[[#This Row],[Alloc]]=\"CA\",tblREGASSJune19[[#This Row],[Alloc]]=\"WA\"),\"SITUS\",tblREGASSJune19[[#This Row],[Alloc]])","v":"OTHER"},{"$f":"INDEX(tblREGASSLookup[FUNC],MATCH(tblREGASSJune19[[#This Row],[Concat]],tblREGASSLookup[Concat],0))","v":"CUST"},{"$f":"IF(tblREGASSJune19[[#This Row],[Total ($000)]]=0,\"NO\",IF(ISNA(tblREGASSJune19[[#This Row],[FUNC]]),\"YES\",IF(_xlfn.ISFORMULA(tblREGASSJune19[[#This Row],[FUNC]]),\"NO\",\"YES\")))","v":"NO"}]
[{"$f":"CONCATENATE(tblREGASSJune19[[#This Row],[Primary Account]],tblREGASSJune19[[#This Row],[Primary Name]],tblREGASSJune19[[#This Row],[Secondary Acct]],tblREGASSJune19[[#This Row],[Secondary  Name]],tblREGASSJune19[[#This Row],[Alloc4FUNC]])","v":"1823920DSR COSTS AMORTIZED103192INDUSTRIAL FINANSWER EXPRESS - UTAH - 20OTHER"},1823920,"DSR COSTS AMORTIZED",103192,"INDUSTRIAL FINANSWER EXPRESS - UTAH - 20","OTHER",1233.1958299999999,{"$f":"IF(OR(tblREGASSJune19[[#This Row],[Alloc]]=\"IDU\",tblREGASSJune19[[#This Row],[Alloc]]=\"OR\",tblREGASSJune19[[#This Row],[Alloc]]=\"UT\",tblREGASSJune19[[#This Row],[Alloc]]=\"WYU\",tblREGASSJune19[[#This Row],[Alloc]]=\"WYP\",tblREGASSJune19[[#This Row],[Alloc]]=\"CA\",tblREGASSJune19[[#This Row],[Alloc]]=\"WA\"),\"SITUS\",tblREGASSJune19[[#This Row],[Alloc]])","v":"OTHER"},{"$f":"INDEX(tblREGASSLookup[FUNC],MATCH(tblREGASSJune19[[#This Row],[Concat]],tblREGASSLookup[Concat],0))","v":"CUST"},{"$f":"IF(tblREGASSJune19[[#This Row],[Total ($000)]]=0,\"NO\",IF(ISNA(tblREGASSJune19[[#This Row],[FUNC]]),\"YES\",IF(_xlfn.ISFORMULA(tblREGASSJune19[[#This Row],[FUNC]]),\"NO\",\"YES\")))","v":"NO"}]
[{"$f":"CONCATENATE(tblREGASSJune19[[#This Row],[Primary Account]],tblREGASSJune19[[#This Row],[Primary Name]],tblREGASSJune19[[#This Row],[Secondary Acct]],tblREGASSJune19[[#This Row],[Secondary  Name]],tblREGASSJune19[[#This Row],[Alloc4FUNC]])","v":"1823920DSR COSTS AMORTIZED103193RETROFIT COMMISSIONING PROGRAM  - UTAH -OTHER"},1823920,"DSR COSTS AMORTIZED",103193,"RETROFIT COMMISSIONING PROGRAM  - UTAH -","OTHER",410.93335999999999,{"$f":"IF(OR(tblREGASSJune19[[#This Row],[Alloc]]=\"IDU\",tblREGASSJune19[[#This Row],[Alloc]]=\"OR\",tblREGASSJune19[[#This Row],[Alloc]]=\"UT\",tblREGASSJune19[[#This Row],[Alloc]]=\"WYU\",tblREGASSJune19[[#This Row],[Alloc]]=\"WYP\",tblREGASSJune19[[#This Row],[Alloc]]=\"CA\",tblREGASSJune19[[#This Row],[Alloc]]=\"WA\"),\"SITUS\",tblREGASSJune19[[#This Row],[Alloc]])","v":"OTHER"},{"$f":"INDEX(tblREGASSLookup[FUNC],MATCH(tblREGASSJune19[[#This Row],[Concat]],tblREGASSLookup[Concat],0))","v":"CUST"},{"$f":"IF(tblREGASSJune19[[#This Row],[Total ($000)]]=0,\"NO\",IF(ISNA(tblREGASSJune19[[#This Row],[FUNC]]),\"YES\",IF(_xlfn.ISFORMULA(tblREGASSJune19[[#This Row],[FUNC]]),\"NO\",\"YES\")))","v":"NO"}]
[{"$f":"CONCATENATE(tblREGASSJune19[[#This Row],[Primary Account]],tblREGASSJune19[[#This Row],[Primary Name]],tblREGASSJune19[[#This Row],[Secondary Acct]],tblREGASSJune19[[#This Row],[Secondary  Name]],tblREGASSJune19[[#This Row],[Alloc4FUNC]])","v":"1823920DSR COSTS AMORTIZED103195IRRIGATION LOAD CONTROL  - UTAH - 2011OTHER"},1823920,"DSR COSTS AMORTIZED",103195,"IRRIGATION LOAD CONTROL  - UTAH - 2011","OTHER",2513.3569299999999,{"$f":"IF(OR(tblREGASSJune19[[#This Row],[Alloc]]=\"IDU\",tblREGASSJune19[[#This Row],[Alloc]]=\"OR\",tblREGASSJune19[[#This Row],[Alloc]]=\"UT\",tblREGASSJune19[[#This Row],[Alloc]]=\"WYU\",tblREGASSJune19[[#This Row],[Alloc]]=\"WYP\",tblREGASSJune19[[#This Row],[Alloc]]=\"CA\",tblREGASSJune19[[#This Row],[Alloc]]=\"WA\"),\"SITUS\",tblREGASSJune19[[#This Row],[Alloc]])","v":"OTHER"},{"$f":"INDEX(tblREGASSLookup[FUNC],MATCH(tblREGASSJune19[[#This Row],[Concat]],tblREGASSLookup[Concat],0))","v":"CUST"},{"$f":"IF(tblREGASSJune19[[#This Row],[Total ($000)]]=0,\"NO\",IF(ISNA(tblREGASSJune19[[#This Row],[FUNC]]),\"YES\",IF(_xlfn.ISFORMULA(tblREGASSJune19[[#This Row],[FUNC]]),\"NO\",\"YES\")))","v":"NO"}]
[{"$f":"CONCATENATE(tblREGASSJune19[[#This Row],[Primary Account]],tblREGASSJune19[[#This Row],[Primary Name]],tblREGASSJune19[[#This Row],[Secondary Acct]],tblREGASSJune19[[#This Row],[Secondary  Name]],tblREGASSJune19[[#This Row],[Alloc4FUNC]])","v":"1823920DSR COSTS AMORTIZED103196HOME ENERGY EFF INCENTIVE PROG - UT 2011OTHER"},1823920,"DSR COSTS AMORTIZED",103196,"HOME ENERGY EFF INCENTIVE PROG - UT 2011","OTHER",11359.762559999999,{"$f":"IF(OR(tblREGASSJune19[[#This Row],[Alloc]]=\"IDU\",tblREGASSJune19[[#This Row],[Alloc]]=\"OR\",tblREGASSJune19[[#This Row],[Alloc]]=\"UT\",tblREGASSJune19[[#This Row],[Alloc]]=\"WYU\",tblREGASSJune19[[#This Row],[Alloc]]=\"WYP\",tblREGASSJune19[[#This Row],[Alloc]]=\"CA\",tblREGASSJune19[[#This Row],[Alloc]]=\"WA\"),\"SITUS\",tblREGASSJune19[[#This Row],[Alloc]])","v":"OTHER"},{"$f":"INDEX(tblREGASSLookup[FUNC],MATCH(tblREGASSJune19[[#This Row],[Concat]],tblREGASSLookup[Concat],0))","v":"CUST"},{"$f":"IF(tblREGASSJune19[[#This Row],[Total ($000)]]=0,\"NO\",IF(ISNA(tblREGASSJune19[[#This Row],[FUNC]]),\"YES\",IF(_xlfn.ISFORMULA(tblREGASSJune19[[#This Row],[FUNC]]),\"NO\",\"YES\")))","v":"NO"}]
[{"$f":"CONCATENATE(tblREGASSJune19[[#This Row],[Primary Account]],tblREGASSJune19[[#This Row],[Primary Name]],tblREGASSJune19[[#This Row],[Secondary Acct]],tblREGASSJune19[[#This Row],[Secondary  Name]],tblREGASSJune19[[#This Row],[Alloc4FUNC]])","v":"1823920DSR COSTS AMORTIZED103197OUTREACH and COMMUNICATIONS - UT 2011OTHER"},1823920,"DSR COSTS AMORTIZED",103197,"OUTREACH and COMMUNICATIONS - UT 2011","OTHER",1437.0285200000001,{"$f":"IF(OR(tblREGASSJune19[[#This Row],[Alloc]]=\"IDU\",tblREGASSJune19[[#This Row],[Alloc]]=\"OR\",tblREGASSJune19[[#This Row],[Alloc]]=\"UT\",tblREGASSJune19[[#This Row],[Alloc]]=\"WYU\",tblREGASSJune19[[#This Row],[Alloc]]=\"WYP\",tblREGASSJune19[[#This Row],[Alloc]]=\"CA\",tblREGASSJune19[[#This Row],[Alloc]]=\"WA\"),\"SITUS\",tblREGASSJune19[[#This Row],[Alloc]])","v":"OTHER"},{"$f":"INDEX(tblREGASSLookup[FUNC],MATCH(tblREGASSJune19[[#This Row],[Concat]],tblREGASSLookup[Concat],0))","v":"CUST"},{"$f":"IF(tblREGASSJune19[[#This Row],[Total ($000)]]=0,\"NO\",IF(ISNA(tblREGASSJune19[[#This Row],[FUNC]]),\"YES\",IF(_xlfn.ISFORMULA(tblREGASSJune19[[#This Row],[FUNC]]),\"NO\",\"YES\")))","v":"NO"}]
[{"$f":"CONCATENATE(tblREGASSJune19[[#This Row],[Primary Account]],tblREGASSJune19[[#This Row],[Primary Name]],tblREGASSJune19[[#This Row],[Secondary Acct]],tblREGASSJune19[[#This Row],[Secondary  Name]],tblREGASSJune19[[#This Row],[Alloc4FUNC]])","v":"1823920DSR COSTS AMORTIZED103199ENERGY FINANSWER-WY-2011 CAT3OTHER"},1823920,"DSR COSTS AMORTIZED",103199,"ENERGY FINANSWER-WY-2011 CAT3","OTHER",29.857749999999999,{"$f":"IF(OR(tblREGASSJune19[[#This Row],[Alloc]]=\"IDU\",tblREGASSJune19[[#This Row],[Alloc]]=\"OR\",tblREGASSJune19[[#This Row],[Alloc]]=\"UT\",tblREGASSJune19[[#This Row],[Alloc]]=\"WYU\",tblREGASSJune19[[#This Row],[Alloc]]=\"WYP\",tblREGASSJune19[[#This Row],[Alloc]]=\"CA\",tblREGASSJune19[[#This Row],[Alloc]]=\"WA\"),\"SITUS\",tblREGASSJune19[[#This Row],[Alloc]])","v":"OTHER"},{"$f":"INDEX(tblREGASSLookup[FUNC],MATCH(tblREGASSJune19[[#This Row],[Concat]],tblREGASSLookup[Concat],0))","v":"CUST"},{"$f":"IF(tblREGASSJune19[[#This Row],[Total ($000)]]=0,\"NO\",IF(ISNA(tblREGASSJune19[[#This Row],[FUNC]]),\"YES\",IF(_xlfn.ISFORMULA(tblREGASSJune19[[#This Row],[FUNC]]),\"NO\",\"YES\")))","v":"NO"}]
[{"$f":"CONCATENATE(tblREGASSJune19[[#This Row],[Primary Account]],tblREGASSJune19[[#This Row],[Primary Name]],tblREGASSJune19[[#This Row],[Secondary Acct]],tblREGASSJune19[[#This Row],[Secondary  Name]],tblREGASSJune19[[#This Row],[Alloc4FUNC]])","v":"1823920DSR COSTS AMORTIZED103200INDUSTRIAL FINANSWER-WY-2011 CAT3OTHER"},1823920,"DSR COSTS AMORTIZED",103200,"INDUSTRIAL FINANSWER-WY-2011 CAT3","OTHER",433.12884000000003,{"$f":"IF(OR(tblREGASSJune19[[#This Row],[Alloc]]=\"IDU\",tblREGASSJune19[[#This Row],[Alloc]]=\"OR\",tblREGASSJune19[[#This Row],[Alloc]]=\"UT\",tblREGASSJune19[[#This Row],[Alloc]]=\"WYU\",tblREGASSJune19[[#This Row],[Alloc]]=\"WYP\",tblREGASSJune19[[#This Row],[Alloc]]=\"CA\",tblREGASSJune19[[#This Row],[Alloc]]=\"WA\"),\"SITUS\",tblREGASSJune19[[#This Row],[Alloc]])","v":"OTHER"},{"$f":"INDEX(tblREGASSLookup[FUNC],MATCH(tblREGASSJune19[[#This Row],[Concat]],tblREGASSLookup[Concat],0))","v":"CUST"},{"$f":"IF(tblREGASSJune19[[#This Row],[Total ($000)]]=0,\"NO\",IF(ISNA(tblREGASSJune19[[#This Row],[FUNC]]),\"YES\",IF(_xlfn.ISFORMULA(tblREGASSJune19[[#This Row],[FUNC]]),\"NO\",\"YES\")))","v":"NO"}]
[{"$f":"CONCATENATE(tblREGASSJune19[[#This Row],[Primary Account]],tblREGASSJune19[[#This Row],[Primary Name]],tblREGASSJune19[[#This Row],[Secondary Acct]],tblREGASSJune19[[#This Row],[Secondary  Name]],tblREGASSJune19[[#This Row],[Alloc4FUNC]])","v":"1823920DSR COSTS AMORTIZED103202REFRIGERATOR RECYCLING-WY -2011 CAT1OTHER"},1823920,"DSR COSTS AMORTIZED",103202,"REFRIGERATOR RECYCLING-WY -2011 CAT1","OTHER",182.83957000000001,{"$f":"IF(OR(tblREGASSJune19[[#This Row],[Alloc]]=\"IDU\",tblREGASSJune19[[#This Row],[Alloc]]=\"OR\",tblREGASSJune19[[#This Row],[Alloc]]=\"UT\",tblREGASSJune19[[#This Row],[Alloc]]=\"WYU\",tblREGASSJune19[[#This Row],[Alloc]]=\"WYP\",tblREGASSJune19[[#This Row],[Alloc]]=\"CA\",tblREGASSJune19[[#This Row],[Alloc]]=\"WA\"),\"SITUS\",tblREGASSJune19[[#This Row],[Alloc]])","v":"OTHER"},{"$f":"INDEX(tblREGASSLookup[FUNC],MATCH(tblREGASSJune19[[#This Row],[Concat]],tblREGASSLookup[Concat],0))","v":"CUST"},{"$f":"IF(tblREGASSJune19[[#This Row],[Total ($000)]]=0,\"NO\",IF(ISNA(tblREGASSJune19[[#This Row],[FUNC]]),\"YES\",IF(_xlfn.ISFORMULA(tblREGASSJune19[[#This Row],[FUNC]]),\"NO\",\"YES\")))","v":"NO"}]
[{"$f":"CONCATENATE(tblREGASSJune19[[#This Row],[Primary Account]],tblREGASSJune19[[#This Row],[Primary Name]],tblREGASSJune19[[#This Row],[Secondary Acct]],tblREGASSJune19[[#This Row],[Secondary  Name]],tblREGASSJune19[[#This Row],[Alloc4FUNC]])","v":"1823920DSR COSTS AMORTIZED103203HOME ENERGY EFF INCENT PROG Y-2011 CAT1OTHER"},1823920,"DSR COSTS AMORTIZED",103203,"HOME ENERGY EFF INCENT PROG Y-2011 CAT1","OTHER",1069.93316,{"$f":"IF(OR(tblREGASSJune19[[#This Row],[Alloc]]=\"IDU\",tblREGASSJune19[[#This Row],[Alloc]]=\"OR\",tblREGASSJune19[[#This Row],[Alloc]]=\"UT\",tblREGASSJune19[[#This Row],[Alloc]]=\"WYU\",tblREGASSJune19[[#This Row],[Alloc]]=\"WYP\",tblREGASSJune19[[#This Row],[Alloc]]=\"CA\",tblREGASSJune19[[#This Row],[Alloc]]=\"WA\"),\"SITUS\",tblREGASSJune19[[#This Row],[Alloc]])","v":"OTHER"},{"$f":"INDEX(tblREGASSLookup[FUNC],MATCH(tblREGASSJune19[[#This Row],[Concat]],tblREGASSLookup[Concat],0))","v":"CUST"},{"$f":"IF(tblREGASSJune19[[#This Row],[Total ($000)]]=0,\"NO\",IF(ISNA(tblREGASSJune19[[#This Row],[FUNC]]),\"YES\",IF(_xlfn.ISFORMULA(tblREGASSJune19[[#This Row],[FUNC]]),\"NO\",\"YES\")))","v":"NO"}]
[{"$f":"CONCATENATE(tblREGASSJune19[[#This Row],[Primary Account]],tblREGASSJune19[[#This Row],[Primary Name]],tblREGASSJune19[[#This Row],[Secondary Acct]],tblREGASSJune19[[#This Row],[Secondary  Name]],tblREGASSJune19[[#This Row],[Alloc4FUNC]])","v":"1823920DSR COSTS AMORTIZED103204Low-Income Weatherztn - Wy 2011 CAT1OTHER"},1823920,"DSR COSTS AMORTIZED",103204,"Low-Income Weatherztn - Wy 2011 CAT1","OTHER",41.544229999999999,{"$f":"IF(OR(tblREGASSJune19[[#This Row],[Alloc]]=\"IDU\",tblREGASSJune19[[#This Row],[Alloc]]=\"OR\",tblREGASSJune19[[#This Row],[Alloc]]=\"UT\",tblREGASSJune19[[#This Row],[Alloc]]=\"WYU\",tblREGASSJune19[[#This Row],[Alloc]]=\"WYP\",tblREGASSJune19[[#This Row],[Alloc]]=\"CA\",tblREGASSJune19[[#This Row],[Alloc]]=\"WA\"),\"SITUS\",tblREGASSJune19[[#This Row],[Alloc]])","v":"OTHER"},{"$f":"INDEX(tblREGASSLookup[FUNC],MATCH(tblREGASSJune19[[#This Row],[Concat]],tblREGASSLookup[Concat],0))","v":"CUST"},{"$f":"IF(tblREGASSJune19[[#This Row],[Total ($000)]]=0,\"NO\",IF(ISNA(tblREGASSJune19[[#This Row],[FUNC]]),\"YES\",IF(_xlfn.ISFORMULA(tblREGASSJune19[[#This Row],[FUNC]]),\"NO\",\"YES\")))","v":"NO"}]
[{"$f":"CONCATENATE(tblREGASSJune19[[#This Row],[Primary Account]],tblREGASSJune19[[#This Row],[Primary Name]],tblREGASSJune19[[#This Row],[Secondary Acct]],tblREGASSJune19[[#This Row],[Secondary  Name]],tblREGASSJune19[[#This Row],[Alloc4FUNC]])","v":"1823920DSR COSTS AMORTIZED103205COMMERCIAL FINANSWER EXP WY-2011 CAT3OTHER"},1823920,"DSR COSTS AMORTIZED",103205,"COMMERCIAL FINANSWER EXP WY-2011 CAT3","OTHER",102.34610000000001,{"$f":"IF(OR(tblREGASSJune19[[#This Row],[Alloc]]=\"IDU\",tblREGASSJune19[[#This Row],[Alloc]]=\"OR\",tblREGASSJune19[[#This Row],[Alloc]]=\"UT\",tblREGASSJune19[[#This Row],[Alloc]]=\"WYU\",tblREGASSJune19[[#This Row],[Alloc]]=\"WYP\",tblREGASSJune19[[#This Row],[Alloc]]=\"CA\",tblREGASSJune19[[#This Row],[Alloc]]=\"WA\"),\"SITUS\",tblREGASSJune19[[#This Row],[Alloc]])","v":"OTHER"},{"$f":"INDEX(tblREGASSLookup[FUNC],MATCH(tblREGASSJune19[[#This Row],[Concat]],tblREGASSLookup[Concat],0))","v":"CUST"},{"$f":"IF(tblREGASSJune19[[#This Row],[Total ($000)]]=0,\"NO\",IF(ISNA(tblREGASSJune19[[#This Row],[FUNC]]),\"YES\",IF(_xlfn.ISFORMULA(tblREGASSJune19[[#This Row],[FUNC]]),\"NO\",\"YES\")))","v":"NO"}]
[{"$f":"CONCATENATE(tblREGASSJune19[[#This Row],[Primary Account]],tblREGASSJune19[[#This Row],[Primary Name]],tblREGASSJune19[[#This Row],[Secondary Acct]],tblREGASSJune19[[#This Row],[Secondary  Name]],tblREGASSJune19[[#This Row],[Alloc4FUNC]])","v":"1823920DSR COSTS AMORTIZED103206INDUSTRIAL FINANSWER EXP WY-2011 CAT3OTHER"},1823920,"DSR COSTS AMORTIZED",103206,"INDUSTRIAL FINANSWER EXP WY-2011 CAT3","OTHER",167.73187999999999,{"$f":"IF(OR(tblREGASSJune19[[#This Row],[Alloc]]=\"IDU\",tblREGASSJune19[[#This Row],[Alloc]]=\"OR\",tblREGASSJune19[[#This Row],[Alloc]]=\"UT\",tblREGASSJune19[[#This Row],[Alloc]]=\"WYU\",tblREGASSJune19[[#This Row],[Alloc]]=\"WYP\",tblREGASSJune19[[#This Row],[Alloc]]=\"CA\",tblREGASSJune19[[#This Row],[Alloc]]=\"WA\"),\"SITUS\",tblREGASSJune19[[#This Row],[Alloc]])","v":"OTHER"},{"$f":"INDEX(tblREGASSLookup[FUNC],MATCH(tblREGASSJune19[[#This Row],[Concat]],tblREGASSLookup[Concat],0))","v":"CUST"},{"$f":"IF(tblREGASSJune19[[#This Row],[Total ($000)]]=0,\"NO\",IF(ISNA(tblREGASSJune19[[#This Row],[FUNC]]),\"YES\",IF(_xlfn.ISFORMULA(tblREGASSJune19[[#This Row],[FUNC]]),\"NO\",\"YES\")))","v":"NO"}]
[{"$f":"CONCATENATE(tblREGASSJune19[[#This Row],[Primary Account]],tblREGASSJune19[[#This Row],[Primary Name]],tblREGASSJune19[[#This Row],[Secondary Acct]],tblREGASSJune19[[#This Row],[Secondary  Name]],tblREGASSJune19[[#This Row],[Alloc4FUNC]])","v":"1823920DSR COSTS AMORTIZED103207Self Direct - Commercial -Wy-2011 CAT3OTHER"},1823920,"DSR COSTS AMORTIZED",103207,"Self Direct - Commercial -Wy-2011 CAT3","OTHER",5.5312200000000002,{"$f":"IF(OR(tblREGASSJune19[[#This Row],[Alloc]]=\"IDU\",tblREGASSJune19[[#This Row],[Alloc]]=\"OR\",tblREGASSJune19[[#This Row],[Alloc]]=\"UT\",tblREGASSJune19[[#This Row],[Alloc]]=\"WYU\",tblREGASSJune19[[#This Row],[Alloc]]=\"WYP\",tblREGASSJune19[[#This Row],[Alloc]]=\"CA\",tblREGASSJune19[[#This Row],[Alloc]]=\"WA\"),\"SITUS\",tblREGASSJune19[[#This Row],[Alloc]])","v":"OTHER"},{"$f":"INDEX(tblREGASSLookup[FUNC],MATCH(tblREGASSJune19[[#This Row],[Concat]],tblREGASSLookup[Concat],0))","v":"CUST"},{"$f":"IF(tblREGASSJune19[[#This Row],[Total ($000)]]=0,\"NO\",IF(ISNA(tblREGASSJune19[[#This Row],[FUNC]]),\"YES\",IF(_xlfn.ISFORMULA(tblREGASSJune19[[#This Row],[FUNC]]),\"NO\",\"YES\")))","v":"NO"}]
[{"$f":"CONCATENATE(tblREGASSJune19[[#This Row],[Primary Account]],tblREGASSJune19[[#This Row],[Primary Name]],tblREGASSJune19[[#This Row],[Secondary Acct]],tblREGASSJune19[[#This Row],[Secondary  Name]],tblREGASSJune19[[#This Row],[Alloc4FUNC]])","v":"1823920DSR COSTS AMORTIZED103208Self Direct -Industrial -Wy-2011 CAT3OTHER"},1823920,"DSR COSTS AMORTIZED",103208,"Self Direct -Industrial -Wy-2011 CAT3","OTHER",268.36527000000001,{"$f":"IF(OR(tblREGASSJune19[[#This Row],[Alloc]]=\"IDU\",tblREGASSJune19[[#This Row],[Alloc]]=\"OR\",tblREGASSJune19[[#This Row],[Alloc]]=\"UT\",tblREGASSJune19[[#This Row],[Alloc]]=\"WYU\",tblREGASSJune19[[#This Row],[Alloc]]=\"WYP\",tblREGASSJune19[[#This Row],[Alloc]]=\"CA\",tblREGASSJune19[[#This Row],[Alloc]]=\"WA\"),\"SITUS\",tblREGASSJune19[[#This Row],[Alloc]])","v":"OTHER"},{"$f":"INDEX(tblREGASSLookup[FUNC],MATCH(tblREGASSJune19[[#This Row],[Concat]],tblREGASSLookup[Concat],0))","v":"CUST"},{"$f":"IF(tblREGASSJune19[[#This Row],[Total ($000)]]=0,\"NO\",IF(ISNA(tblREGASSJune19[[#This Row],[FUNC]]),\"YES\",IF(_xlfn.ISFORMULA(tblREGASSJune19[[#This Row],[FUNC]]),\"NO\",\"YES\")))","v":"NO"}]
[{"$f":"CONCATENATE(tblREGASSJune19[[#This Row],[Primary Account]],tblREGASSJune19[[#This Row],[Primary Name]],tblREGASSJune19[[#This Row],[Secondary Acct]],tblREGASSJune19[[#This Row],[Secondary  Name]],tblREGASSJune19[[#This Row],[Alloc4FUNC]])","v":"1823920DSR COSTS AMORTIZED103209COMMERCIAL FINANSWER EXP- WY-2011 CAT2OTHER"},1823920,"DSR COSTS AMORTIZED",103209,"COMMERCIAL FINANSWER EXP- WY-2011 CAT2","OTHER",894.20281,{"$f":"IF(OR(tblREGASSJune19[[#This Row],[Alloc]]=\"IDU\",tblREGASSJune19[[#This Row],[Alloc]]=\"OR\",tblREGASSJune19[[#This Row],[Alloc]]=\"UT\",tblREGASSJune19[[#This Row],[Alloc]]=\"WYU\",tblREGASSJune19[[#This Row],[Alloc]]=\"WYP\",tblREGASSJune19[[#This Row],[Alloc]]=\"CA\",tblREGASSJune19[[#This Row],[Alloc]]=\"WA\"),\"SITUS\",tblREGASSJune19[[#This Row],[Alloc]])","v":"OTHER"},{"$f":"INDEX(tblREGASSLookup[FUNC],MATCH(tblREGASSJune19[[#This Row],[Concat]],tblREGASSLookup[Concat],0))","v":"CUST"},{"$f":"IF(tblREGASSJune19[[#This Row],[Total ($000)]]=0,\"NO\",IF(ISNA(tblREGASSJune19[[#This Row],[FUNC]]),\"YES\",IF(_xlfn.ISFORMULA(tblREGASSJune19[[#This Row],[FUNC]]),\"NO\",\"YES\")))","v":"NO"}]
[{"$f":"CONCATENATE(tblREGASSJune19[[#This Row],[Primary Account]],tblREGASSJune19[[#This Row],[Primary Name]],tblREGASSJune19[[#This Row],[Secondary Acct]],tblREGASSJune19[[#This Row],[Secondary  Name]],tblREGASSJune19[[#This Row],[Alloc4FUNC]])","v":"1823920DSR COSTS AMORTIZED103210INDUSTRIAL FINAN EXPRESS WY-2011 CAT2OTHER"},1823920,"DSR COSTS AMORTIZED",103210,"INDUSTRIAL FINAN EXPRESS WY-2011 CAT2","OTHER",55.277000000000001,{"$f":"IF(OR(tblREGASSJune19[[#This Row],[Alloc]]=\"IDU\",tblREGASSJune19[[#This Row],[Alloc]]=\"OR\",tblREGASSJune19[[#This Row],[Alloc]]=\"UT\",tblREGASSJune19[[#This Row],[Alloc]]=\"WYU\",tblREGASSJune19[[#This Row],[Alloc]]=\"WYP\",tblREGASSJune19[[#This Row],[Alloc]]=\"CA\",tblREGASSJune19[[#This Row],[Alloc]]=\"WA\"),\"SITUS\",tblREGASSJune19[[#This Row],[Alloc]])","v":"OTHER"},{"$f":"INDEX(tblREGASSLookup[FUNC],MATCH(tblREGASSJune19[[#This Row],[Concat]],tblREGASSLookup[Concat],0))","v":"CUST"},{"$f":"IF(tblREGASSJune19[[#This Row],[Total ($000)]]=0,\"NO\",IF(ISNA(tblREGASSJune19[[#This Row],[FUNC]]),\"YES\",IF(_xlfn.ISFORMULA(tblREGASSJune19[[#This Row],[FUNC]]),\"NO\",\"YES\")))","v":"NO"}]
[{"$f":"CONCATENATE(tblREGASSJune19[[#This Row],[Primary Account]],tblREGASSJune19[[#This Row],[Primary Name]],tblREGASSJune19[[#This Row],[Secondary Acct]],tblREGASSJune19[[#This Row],[Secondary  Name]],tblREGASSJune19[[#This Row],[Alloc4FUNC]])","v":"1823920DSR COSTS AMORTIZED103211ENERGY FINANSWER -WY 2011 CAT2OTHER"},1823920,"DSR COSTS AMORTIZED",103211,"ENERGY FINANSWER -WY 2011 CAT2","OTHER",50.846200000000003,{"$f":"IF(OR(tblREGASSJune19[[#This Row],[Alloc]]=\"IDU\",tblREGASSJune19[[#This Row],[Alloc]]=\"OR\",tblREGASSJune19[[#This Row],[Alloc]]=\"UT\",tblREGASSJune19[[#This Row],[Alloc]]=\"WYU\",tblREGASSJune19[[#This Row],[Alloc]]=\"WYP\",tblREGASSJune19[[#This Row],[Alloc]]=\"CA\",tblREGASSJune19[[#This Row],[Alloc]]=\"WA\"),\"SITUS\",tblREGASSJune19[[#This Row],[Alloc]])","v":"OTHER"},{"$f":"INDEX(tblREGASSLookup[FUNC],MATCH(tblREGASSJune19[[#This Row],[Concat]],tblREGASSLookup[Concat],0))","v":"CUST"},{"$f":"IF(tblREGASSJune19[[#This Row],[Total ($000)]]=0,\"NO\",IF(ISNA(tblREGASSJune19[[#This Row],[FUNC]]),\"YES\",IF(_xlfn.ISFORMULA(tblREGASSJune19[[#This Row],[FUNC]]),\"NO\",\"YES\")))","v":"NO"}]
[{"$f":"CONCATENATE(tblREGASSJune19[[#This Row],[Primary Account]],tblREGASSJune19[[#This Row],[Primary Name]],tblREGASSJune19[[#This Row],[Secondary Acct]],tblREGASSJune19[[#This Row],[Secondary  Name]],tblREGASSJune19[[#This Row],[Alloc4FUNC]])","v":"1823920DSR COSTS AMORTIZED103212INDUSTRIAL FINANSWER -WY 2011 CAT2OTHER"},1823920,"DSR COSTS AMORTIZED",103212,"INDUSTRIAL FINANSWER -WY 2011 CAT2","OTHER",97.67774,{"$f":"IF(OR(tblREGASSJune19[[#This Row],[Alloc]]=\"IDU\",tblREGASSJune19[[#This Row],[Alloc]]=\"OR\",tblREGASSJune19[[#This Row],[Alloc]]=\"UT\",tblREGASSJune19[[#This Row],[Alloc]]=\"WYU\",tblREGASSJune19[[#This Row],[Alloc]]=\"WYP\",tblREGASSJune19[[#This Row],[Alloc]]=\"CA\",tblREGASSJune19[[#This Row],[Alloc]]=\"WA\"),\"SITUS\",tblREGASSJune19[[#This Row],[Alloc]])","v":"OTHER"},{"$f":"INDEX(tblREGASSLookup[FUNC],MATCH(tblREGASSJune19[[#This Row],[Concat]],tblREGASSLookup[Concat],0))","v":"CUST"},{"$f":"IF(tblREGASSJune19[[#This Row],[Total ($000)]]=0,\"NO\",IF(ISNA(tblREGASSJune19[[#This Row],[FUNC]]),\"YES\",IF(_xlfn.ISFORMULA(tblREGASSJune19[[#This Row],[FUNC]]),\"NO\",\"YES\")))","v":"NO"}]
[{"$f":"CONCATENATE(tblREGASSJune19[[#This Row],[Primary Account]],tblREGASSJune19[[#This Row],[Primary Name]],tblREGASSJune19[[#This Row],[Secondary Acct]],tblREGASSJune19[[#This Row],[Secondary  Name]],tblREGASSJune19[[#This Row],[Alloc4FUNC]])","v":"1823920DSR COSTS AMORTIZED103213Self Direct - Commercial Wy-2011 CAT2OTHER"},1823920,"DSR COSTS AMORTIZED",103213,"Self Direct - Commercial Wy-2011 CAT2","OTHER",2.8799399999999999,{"$f":"IF(OR(tblREGASSJune19[[#This Row],[Alloc]]=\"IDU\",tblREGASSJune19[[#This Row],[Alloc]]=\"OR\",tblREGASSJune19[[#This Row],[Alloc]]=\"UT\",tblREGASSJune19[[#This Row],[Alloc]]=\"WYU\",tblREGASSJune19[[#This Row],[Alloc]]=\"WYP\",tblREGASSJune19[[#This Row],[Alloc]]=\"CA\",tblREGASSJune19[[#This Row],[Alloc]]=\"WA\"),\"SITUS\",tblREGASSJune19[[#This Row],[Alloc]])","v":"OTHER"},{"$f":"INDEX(tblREGASSLookup[FUNC],MATCH(tblREGASSJune19[[#This Row],[Concat]],tblREGASSLookup[Concat],0))","v":"CUST"},{"$f":"IF(tblREGASSJune19[[#This Row],[Total ($000)]]=0,\"NO\",IF(ISNA(tblREGASSJune19[[#This Row],[FUNC]]),\"YES\",IF(_xlfn.ISFORMULA(tblREGASSJune19[[#This Row],[FUNC]]),\"NO\",\"YES\")))","v":"NO"}]
[{"$f":"CONCATENATE(tblREGASSJune19[[#This Row],[Primary Account]],tblREGASSJune19[[#This Row],[Primary Name]],tblREGASSJune19[[#This Row],[Secondary Acct]],tblREGASSJune19[[#This Row],[Secondary  Name]],tblREGASSJune19[[#This Row],[Alloc4FUNC]])","v":"1823920DSR COSTS AMORTIZED103214Self Direct- Industrial Wy-2011 CAT2OTHER"},1823920,"DSR COSTS AMORTIZED",103214,"Self Direct- Industrial Wy-2011 CAT2","OTHER",10.69408,{"$f":"IF(OR(tblREGASSJune19[[#This Row],[Alloc]]=\"IDU\",tblREGASSJune19[[#This Row],[Alloc]]=\"OR\",tblREGASSJune19[[#This Row],[Alloc]]=\"UT\",tblREGASSJune19[[#This Row],[Alloc]]=\"WYU\",tblREGASSJune19[[#This Row],[Alloc]]=\"WYP\",tblREGASSJune19[[#This Row],[Alloc]]=\"CA\",tblREGASSJune19[[#This Row],[Alloc]]=\"WA\"),\"SITUS\",tblREGASSJune19[[#This Row],[Alloc]])","v":"OTHER"},{"$f":"INDEX(tblREGASSLookup[FUNC],MATCH(tblREGASSJune19[[#This Row],[Concat]],tblREGASSLookup[Concat],0))","v":"CUST"},{"$f":"IF(tblREGASSJune19[[#This Row],[Total ($000)]]=0,\"NO\",IF(ISNA(tblREGASSJune19[[#This Row],[FUNC]]),\"YES\",IF(_xlfn.ISFORMULA(tblREGASSJune19[[#This Row],[FUNC]]),\"NO\",\"YES\")))","v":"NO"}]
[{"$f":"CONCATENATE(tblREGASSJune19[[#This Row],[Primary Account]],tblREGASSJune19[[#This Row],[Primary Name]],tblREGASSJune19[[#This Row],[Secondary Acct]],tblREGASSJune19[[#This Row],[Secondary  Name]],tblREGASSJune19[[#This Row],[Alloc4FUNC]])","v":"1823920DSR COSTS AMORTIZED103277OUTREACH & COMM- WATTSMART - EVALUATIONOTHER"},1823920,"DSR COSTS AMORTIZED",103277,"OUTREACH & COMM- WATTSMART - EVALUATION","OTHER",1307.8153,{"$f":"IF(OR(tblREGASSJune19[[#This Row],[Alloc]]=\"IDU\",tblREGASSJune19[[#This Row],[Alloc]]=\"OR\",tblREGASSJune19[[#This Row],[Alloc]]=\"UT\",tblREGASSJune19[[#This Row],[Alloc]]=\"WYU\",tblREGASSJune19[[#This Row],[Alloc]]=\"WYP\",tblREGASSJune19[[#This Row],[Alloc]]=\"CA\",tblREGASSJune19[[#This Row],[Alloc]]=\"WA\"),\"SITUS\",tblREGASSJune19[[#This Row],[Alloc]])","v":"OTHER"},{"$f":"INDEX(tblREGASSLookup[FUNC],MATCH(tblREGASSJune19[[#This Row],[Concat]],tblREGASSLookup[Concat],0))","v":"CUST"},{"$f":"IF(tblREGASSJune19[[#This Row],[Total ($000)]]=0,\"NO\",IF(ISNA(tblREGASSJune19[[#This Row],[FUNC]]),\"YES\",IF(_xlfn.ISFORMULA(tblREGASSJune19[[#This Row],[FUNC]]),\"NO\",\"YES\")))","v":"NO"}]
[{"$f":"CONCATENATE(tblREGASSJune19[[#This Row],[Primary Account]],tblREGASSJune19[[#This Row],[Primary Name]],tblREGASSJune19[[#This Row],[Secondary Acct]],tblREGASSJune19[[#This Row],[Secondary  Name]],tblREGASSJune19[[#This Row],[Alloc4FUNC]])","v":"1823920DSR COSTS AMORTIZED103280COMPANY INITIATIVES -PRODUCTION EFFICIENOTHER"},1823920,"DSR COSTS AMORTIZED",103280,"COMPANY INITIATIVES -PRODUCTION EFFICIEN","OTHER",387.56200999999999,{"$f":"IF(OR(tblREGASSJune19[[#This Row],[Alloc]]=\"IDU\",tblREGASSJune19[[#This Row],[Alloc]]=\"OR\",tblREGASSJune19[[#This Row],[Alloc]]=\"UT\",tblREGASSJune19[[#This Row],[Alloc]]=\"WYU\",tblREGASSJune19[[#This Row],[Alloc]]=\"WYP\",tblREGASSJune19[[#This Row],[Alloc]]=\"CA\",tblREGASSJune19[[#This Row],[Alloc]]=\"WA\"),\"SITUS\",tblREGASSJune19[[#This Row],[Alloc]])","v":"OTHER"},{"$f":"INDEX(tblREGASSLookup[FUNC],MATCH(tblREGASSJune19[[#This Row],[Concat]],tblREGASSLookup[Concat],0))","v":"CUST"},{"$f":"IF(tblREGASSJune19[[#This Row],[Total ($000)]]=0,\"NO\",IF(ISNA(tblREGASSJune19[[#This Row],[FUNC]]),\"YES\",IF(_xlfn.ISFORMULA(tblREGASSJune19[[#This Row],[FUNC]]),\"NO\",\"YES\")))","v":"NO"}]
[{"$f":"CONCATENATE(tblREGASSJune19[[#This Row],[Primary Account]],tblREGASSJune19[[#This Row],[Primary Name]],tblREGASSJune19[[#This Row],[Secondary Acct]],tblREGASSJune19[[#This Row],[Secondary  Name]],tblREGASSJune19[[#This Row],[Alloc4FUNC]])","v":"1823920DSR COSTS AMORTIZED103291Portfolio -WY-2011   Cat4OTHER"},1823920,"DSR COSTS AMORTIZED",103291,"Portfolio -WY-2011   Cat4","OTHER",266.24419,{"$f":"IF(OR(tblREGASSJune19[[#This Row],[Alloc]]=\"IDU\",tblREGASSJune19[[#This Row],[Alloc]]=\"OR\",tblREGASSJune19[[#This Row],[Alloc]]=\"UT\",tblREGASSJune19[[#This Row],[Alloc]]=\"WYU\",tblREGASSJune19[[#This Row],[Alloc]]=\"WYP\",tblREGASSJune19[[#This Row],[Alloc]]=\"CA\",tblREGASSJune19[[#This Row],[Alloc]]=\"WA\"),\"SITUS\",tblREGASSJune19[[#This Row],[Alloc]])","v":"OTHER"},{"$f":"INDEX(tblREGASSLookup[FUNC],MATCH(tblREGASSJune19[[#This Row],[Concat]],tblREGASSLookup[Concat],0))","v":"CUST"},{"$f":"IF(tblREGASSJune19[[#This Row],[Total ($000)]]=0,\"NO\",IF(ISNA(tblREGASSJune19[[#This Row],[FUNC]]),\"YES\",IF(_xlfn.ISFORMULA(tblREGASSJune19[[#This Row],[FUNC]]),\"NO\",\"YES\")))","v":"NO"}]
[{"$f":"CONCATENATE(tblREGASSJune19[[#This Row],[Primary Account]],tblREGASSJune19[[#This Row],[Primary Name]],tblREGASSJune19[[#This Row],[Secondary Acct]],tblREGASSJune19[[#This Row],[Secondary  Name]],tblREGASSJune19[[#This Row],[Alloc4FUNC]])","v":"1823920DSR COSTS AMORTIZED103292Portfolio - WashingtonOTHER"},1823920,"DSR COSTS AMORTIZED",103292,"Portfolio - Washington","OTHER",3295.9004100000002,{"$f":"IF(OR(tblREGASSJune19[[#This Row],[Alloc]]=\"IDU\",tblREGASSJune19[[#This Row],[Alloc]]=\"OR\",tblREGASSJune19[[#This Row],[Alloc]]=\"UT\",tblREGASSJune19[[#This Row],[Alloc]]=\"WYU\",tblREGASSJune19[[#This Row],[Alloc]]=\"WYP\",tblREGASSJune19[[#This Row],[Alloc]]=\"CA\",tblREGASSJune19[[#This Row],[Alloc]]=\"WA\"),\"SITUS\",tblREGASSJune19[[#This Row],[Alloc]])","v":"OTHER"},{"$f":"INDEX(tblREGASSLookup[FUNC],MATCH(tblREGASSJune19[[#This Row],[Concat]],tblREGASSLookup[Concat],0))","v":"CUST"},{"$f":"IF(tblREGASSJune19[[#This Row],[Total ($000)]]=0,\"NO\",IF(ISNA(tblREGASSJune19[[#This Row],[FUNC]]),\"YES\",IF(_xlfn.ISFORMULA(tblREGASSJune19[[#This Row],[FUNC]]),\"NO\",\"YES\")))","v":"NO"}]
[{"$f":"CONCATENATE(tblREGASSJune19[[#This Row],[Primary Account]],tblREGASSJune19[[#This Row],[Primary Name]],tblREGASSJune19[[#This Row],[Secondary Acct]],tblREGASSJune19[[#This Row],[Secondary  Name]],tblREGASSJune19[[#This Row],[Alloc4FUNC]])","v":"1823920DSR COSTS AMORTIZED103293Energy Storage Demonstration Project -UTOTHER"},1823920,"DSR COSTS AMORTIZED",103293,"Energy Storage Demonstration Project -UT","OTHER",6.8141999999999996,{"$f":"IF(OR(tblREGASSJune19[[#This Row],[Alloc]]=\"IDU\",tblREGASSJune19[[#This Row],[Alloc]]=\"OR\",tblREGASSJune19[[#This Row],[Alloc]]=\"UT\",tblREGASSJune19[[#This Row],[Alloc]]=\"WYU\",tblREGASSJune19[[#This Row],[Alloc]]=\"WYP\",tblREGASSJune19[[#This Row],[Alloc]]=\"CA\",tblREGASSJune19[[#This Row],[Alloc]]=\"WA\"),\"SITUS\",tblREGASSJune19[[#This Row],[Alloc]])","v":"OTHER"},{"$f":"INDEX(tblREGASSLookup[FUNC],MATCH(tblREGASSJune19[[#This Row],[Concat]],tblREGASSLookup[Concat],0))","v":"CUST"},{"$f":"IF(tblREGASSJune19[[#This Row],[Total ($000)]]=0,\"NO\",IF(ISNA(tblREGASSJune19[[#This Row],[FUNC]]),\"YES\",IF(_xlfn.ISFORMULA(tblREGASSJune19[[#This Row],[FUNC]]),\"NO\",\"YES\")))","v":"NO"}]
[{"$f":"CONCATENATE(tblREGASSJune19[[#This Row],[Primary Account]],tblREGASSJune19[[#This Row],[Primary Name]],tblREGASSJune19[[#This Row],[Secondary Acct]],tblREGASSJune19[[#This Row],[Secondary  Name]],tblREGASSJune19[[#This Row],[Alloc4FUNC]])","v":"1823920DSR COSTS AMORTIZED103295Outreach And Communication-WY-2011OTHER"},1823920,"DSR COSTS AMORTIZED",103295,"Outreach And Communication-WY-2011","OTHER",0.54224000000000006,{"$f":"IF(OR(tblREGASSJune19[[#This Row],[Alloc]]=\"IDU\",tblREGASSJune19[[#This Row],[Alloc]]=\"OR\",tblREGASSJune19[[#This Row],[Alloc]]=\"UT\",tblREGASSJune19[[#This Row],[Alloc]]=\"WYU\",tblREGASSJune19[[#This Row],[Alloc]]=\"WYP\",tblREGASSJune19[[#This Row],[Alloc]]=\"CA\",tblREGASSJune19[[#This Row],[Alloc]]=\"WA\"),\"SITUS\",tblREGASSJune19[[#This Row],[Alloc]])","v":"OTHER"},{"$f":"INDEX(tblREGASSLookup[FUNC],MATCH(tblREGASSJune19[[#This Row],[Concat]],tblREGASSLookup[Concat],0))","v":"CUST"},{"$f":"IF(tblREGASSJune19[[#This Row],[Total ($000)]]=0,\"NO\",IF(ISNA(tblREGASSJune19[[#This Row],[FUNC]]),\"YES\",IF(_xlfn.ISFORMULA(tblREGASSJune19[[#This Row],[FUNC]]),\"NO\",\"YES\")))","v":"NO"}]
[{"$f":"CONCATENATE(tblREGASSJune19[[#This Row],[Primary Account]],tblREGASSJune19[[#This Row],[Primary Name]],tblREGASSJune19[[#This Row],[Secondary Acct]],tblREGASSJune19[[#This Row],[Secondary  Name]],tblREGASSJune19[[#This Row],[Alloc4FUNC]])","v":"1823920DSR COSTS AMORTIZED103299AGRICULURAL FINANSWER EXPRESS - UTAH - 2OTHER"},1823920,"DSR COSTS AMORTIZED",103299,"AGRICULURAL FINANSWER EXPRESS - UTAH - 2","OTHER",0.4,{"$f":"IF(OR(tblREGASSJune19[[#This Row],[Alloc]]=\"IDU\",tblREGASSJune19[[#This Row],[Alloc]]=\"OR\",tblREGASSJune19[[#This Row],[Alloc]]=\"UT\",tblREGASSJune19[[#This Row],[Alloc]]=\"WYU\",tblREGASSJune19[[#This Row],[Alloc]]=\"WYP\",tblREGASSJune19[[#This Row],[Alloc]]=\"CA\",tblREGASSJune19[[#This Row],[Alloc]]=\"WA\"),\"SITUS\",tblREGASSJune19[[#This Row],[Alloc]])","v":"OTHER"},{"$f":"INDEX(tblREGASSLookup[FUNC],MATCH(tblREGASSJune19[[#This Row],[Concat]],tblREGASSLookup[Concat],0))","v":"CUST"},{"$f":"IF(tblREGASSJune19[[#This Row],[Total ($000)]]=0,\"NO\",IF(ISNA(tblREGASSJune19[[#This Row],[FUNC]]),\"YES\",IF(_xlfn.ISFORMULA(tblREGASSJune19[[#This Row],[FUNC]]),\"NO\",\"YES\")))","v":"NO"}]
[{"$f":"CONCATENATE(tblREGASSJune19[[#This Row],[Primary Account]],tblREGASSJune19[[#This Row],[Primary Name]],tblREGASSJune19[[#This Row],[Secondary Acct]],tblREGASSJune19[[#This Row],[Secondary  Name]],tblREGASSJune19[[#This Row],[Alloc4FUNC]])","v":"1823920DSR COSTS AMORTIZED103300AGRICULTURAL FINANSWER EXPRESS - WASHINGOTHER"},1823920,"DSR COSTS AMORTIZED",103300,"AGRICULTURAL FINANSWER EXPRESS - WASHING","OTHER",75.372039999999998,{"$f":"IF(OR(tblREGASSJune19[[#This Row],[Alloc]]=\"IDU\",tblREGASSJune19[[#This Row],[Alloc]]=\"OR\",tblREGASSJune19[[#This Row],[Alloc]]=\"UT\",tblREGASSJune19[[#This Row],[Alloc]]=\"WYU\",tblREGASSJune19[[#This Row],[Alloc]]=\"WYP\",tblREGASSJune19[[#This Row],[Alloc]]=\"CA\",tblREGASSJune19[[#This Row],[Alloc]]=\"WA\"),\"SITUS\",tblREGASSJune19[[#This Row],[Alloc]])","v":"OTHER"},{"$f":"INDEX(tblREGASSLookup[FUNC],MATCH(tblREGASSJune19[[#This Row],[Concat]],tblREGASSLookup[Concat],0))","v":"CUST"},{"$f":"IF(tblREGASSJune19[[#This Row],[Total ($000)]]=0,\"NO\",IF(ISNA(tblREGASSJune19[[#This Row],[FUNC]]),\"YES\",IF(_xlfn.ISFORMULA(tblREGASSJune19[[#This Row],[FUNC]]),\"NO\",\"YES\")))","v":"NO"}]
[{"$f":"CONCATENATE(tblREGASSJune19[[#This Row],[Primary Account]],tblREGASSJune19[[#This Row],[Primary Name]],tblREGASSJune19[[#This Row],[Secondary Acct]],tblREGASSJune19[[#This Row],[Secondary  Name]],tblREGASSJune19[[#This Row],[Alloc4FUNC]])","v":"1823920DSR COSTS AMORTIZED103301PORTFOLIO -WY-2011   CAT2OTHER"},1823920,"DSR COSTS AMORTIZED",103301,"PORTFOLIO -WY-2011   CAT2","OTHER",73.616749999999996,{"$f":"IF(OR(tblREGASSJune19[[#This Row],[Alloc]]=\"IDU\",tblREGASSJune19[[#This Row],[Alloc]]=\"OR\",tblREGASSJune19[[#This Row],[Alloc]]=\"UT\",tblREGASSJune19[[#This Row],[Alloc]]=\"WYU\",tblREGASSJune19[[#This Row],[Alloc]]=\"WYP\",tblREGASSJune19[[#This Row],[Alloc]]=\"CA\",tblREGASSJune19[[#This Row],[Alloc]]=\"WA\"),\"SITUS\",tblREGASSJune19[[#This Row],[Alloc]])","v":"OTHER"},{"$f":"INDEX(tblREGASSLookup[FUNC],MATCH(tblREGASSJune19[[#This Row],[Concat]],tblREGASSLookup[Concat],0))","v":"CUST"},{"$f":"IF(tblREGASSJune19[[#This Row],[Total ($000)]]=0,\"NO\",IF(ISNA(tblREGASSJune19[[#This Row],[FUNC]]),\"YES\",IF(_xlfn.ISFORMULA(tblREGASSJune19[[#This Row],[FUNC]]),\"NO\",\"YES\")))","v":"NO"}]
[{"$f":"CONCATENATE(tblREGASSJune19[[#This Row],[Primary Account]],tblREGASSJune19[[#This Row],[Primary Name]],tblREGASSJune19[[#This Row],[Secondary Acct]],tblREGASSJune19[[#This Row],[Secondary  Name]],tblREGASSJune19[[#This Row],[Alloc4FUNC]])","v":"1823920DSR COSTS AMORTIZED103302PORTFOLIO -WY-2011   CAT3OTHER"},1823920,"DSR COSTS AMORTIZED",103302,"PORTFOLIO -WY-2011   CAT3","OTHER",109.91634000000001,{"$f":"IF(OR(tblREGASSJune19[[#This Row],[Alloc]]=\"IDU\",tblREGASSJune19[[#This Row],[Alloc]]=\"OR\",tblREGASSJune19[[#This Row],[Alloc]]=\"UT\",tblREGASSJune19[[#This Row],[Alloc]]=\"WYU\",tblREGASSJune19[[#This Row],[Alloc]]=\"WYP\",tblREGASSJune19[[#This Row],[Alloc]]=\"CA\",tblREGASSJune19[[#This Row],[Alloc]]=\"WA\"),\"SITUS\",tblREGASSJune19[[#This Row],[Alloc]])","v":"OTHER"},{"$f":"INDEX(tblREGASSLookup[FUNC],MATCH(tblREGASSJune19[[#This Row],[Concat]],tblREGASSLookup[Concat],0))","v":"CUST"},{"$f":"IF(tblREGASSJune19[[#This Row],[Total ($000)]]=0,\"NO\",IF(ISNA(tblREGASSJune19[[#This Row],[FUNC]]),\"YES\",IF(_xlfn.ISFORMULA(tblREGASSJune19[[#This Row],[FUNC]]),\"NO\",\"YES\")))","v":"NO"}]
[{"$f":"CONCATENATE(tblREGASSJune19[[#This Row],[Primary Account]],tblREGASSJune19[[#This Row],[Primary Name]],tblREGASSJune19[[#This Row],[Secondary Acct]],tblREGASSJune19[[#This Row],[Secondary  Name]],tblREGASSJune19[[#This Row],[Alloc4FUNC]])","v":"1823920DSR COSTS AMORTIZED103308Home Energy Reporting -OPower -WA 2011OTHER"},1823920,"DSR COSTS AMORTIZED",103308,"Home Energy Reporting -OPower -WA 2011","OTHER",1292.11277,{"$f":"IF(OR(tblREGASSJune19[[#This Row],[Alloc]]=\"IDU\",tblREGASSJune19[[#This Row],[Alloc]]=\"OR\",tblREGASSJune19[[#This Row],[Alloc]]=\"UT\",tblREGASSJune19[[#This Row],[Alloc]]=\"WYU\",tblREGASSJune19[[#This Row],[Alloc]]=\"WYP\",tblREGASSJune19[[#This Row],[Alloc]]=\"CA\",tblREGASSJune19[[#This Row],[Alloc]]=\"WA\"),\"SITUS\",tblREGASSJune19[[#This Row],[Alloc]])","v":"OTHER"},{"$f":"INDEX(tblREGASSLookup[FUNC],MATCH(tblREGASSJune19[[#This Row],[Concat]],tblREGASSLookup[Concat],0))","v":"CUST"},{"$f":"IF(tblREGASSJune19[[#This Row],[Total ($000)]]=0,\"NO\",IF(ISNA(tblREGASSJune19[[#This Row],[FUNC]]),\"YES\",IF(_xlfn.ISFORMULA(tblREGASSJune19[[#This Row],[FUNC]]),\"NO\",\"YES\")))","v":"NO"}]
[{"$f":"CONCATENATE(tblREGASSJune19[[#This Row],[Primary Account]],tblREGASSJune19[[#This Row],[Primary Name]],tblREGASSJune19[[#This Row],[Secondary Acct]],tblREGASSJune19[[#This Row],[Secondary  Name]],tblREGASSJune19[[#This Row],[Alloc4FUNC]])","v":"1823920DSR COSTS AMORTIZED103309Industrial Curtailment -WA 2011OTHER"},1823920,"DSR COSTS AMORTIZED",103309,"Industrial Curtailment -WA 2011","OTHER",0,{"$f":"IF(OR(tblREGASSJune19[[#This Row],[Alloc]]=\"IDU\",tblREGASSJune19[[#This Row],[Alloc]]=\"OR\",tblREGASSJune19[[#This Row],[Alloc]]=\"UT\",tblREGASSJune19[[#This Row],[Alloc]]=\"WYU\",tblREGASSJune19[[#This Row],[Alloc]]=\"WYP\",tblREGASSJune19[[#This Row],[Alloc]]=\"CA\",tblREGASSJune19[[#This Row],[Alloc]]=\"WA\"),\"SITUS\",tblREGASSJune19[[#This Row],[Alloc]])","v":"OTHER"},{"$f":"INDEX(tblREGASSLookup[FUNC],MATCH(tblREGASSJune19[[#This Row],[Concat]],tblREGASSLookup[Concat],0))","v":{"$error":"#N/A"}},{"$f":"IF(tblREGASSJune19[[#This Row],[Total ($000)]]=0,\"NO\",IF(ISNA(tblREGASSJune19[[#This Row],[FUNC]]),\"YES\",IF(_xlfn.ISFORMULA(tblREGASSJune19[[#This Row],[FUNC]]),\"NO\",\"YES\")))","v":"NO"}]
[{"$f":"CONCATENATE(tblREGASSJune19[[#This Row],[Primary Account]],tblREGASSJune19[[#This Row],[Primary Name]],tblREGASSJune19[[#This Row],[Secondary Acct]],tblREGASSJune19[[#This Row],[Secondary  Name]],tblREGASSJune19[[#This Row],[Alloc4FUNC]])","v":"1823920DSR COSTS AMORTIZED103311CALIFORNIA DSM EXPENSE - 2012OTHER"},1823920,"DSR COSTS AMORTIZED",103311,"CALIFORNIA DSM EXPENSE - 2012","OTHER",1.0000000000000001E-5,{"$f":"IF(OR(tblREGASSJune19[[#This Row],[Alloc]]=\"IDU\",tblREGASSJune19[[#This Row],[Alloc]]=\"OR\",tblREGASSJune19[[#This Row],[Alloc]]=\"UT\",tblREGASSJune19[[#This Row],[Alloc]]=\"WYU\",tblREGASSJune19[[#This Row],[Alloc]]=\"WYP\",tblREGASSJune19[[#This Row],[Alloc]]=\"CA\",tblREGASSJune19[[#This Row],[Alloc]]=\"WA\"),\"SITUS\",tblREGASSJune19[[#This Row],[Alloc]])","v":"OTHER"},{"$f":"INDEX(tblREGASSLookup[FUNC],MATCH(tblREGASSJune19[[#This Row],[Concat]],tblREGASSLookup[Concat],0))","v":"CUST"},{"$f":"IF(tblREGASSJune19[[#This Row],[Total ($000)]]=0,\"NO\",IF(ISNA(tblREGASSJune19[[#This Row],[FUNC]]),\"YES\",IF(_xlfn.ISFORMULA(tblREGASSJune19[[#This Row],[FUNC]]),\"NO\",\"YES\")))","v":"NO"}]
[{"$f":"CONCATENATE(tblREGASSJune19[[#This Row],[Primary Account]],tblREGASSJune19[[#This Row],[Primary Name]],tblREGASSJune19[[#This Row],[Secondary Acct]],tblREGASSJune19[[#This Row],[Secondary  Name]],tblREGASSJune19[[#This Row],[Alloc4FUNC]])","v":"1823920DSR COSTS AMORTIZED103324A/C LOAD CONTROL - RESIDENTIAL/UTAH - 20OTHER"},1823920,"DSR COSTS AMORTIZED",103324,"A/C LOAD CONTROL - RESIDENTIAL/UTAH - 20","OTHER",5793.5013300000001,{"$f":"IF(OR(tblREGASSJune19[[#This Row],[Alloc]]=\"IDU\",tblREGASSJune19[[#This Row],[Alloc]]=\"OR\",tblREGASSJune19[[#This Row],[Alloc]]=\"UT\",tblREGASSJune19[[#This Row],[Alloc]]=\"WYU\",tblREGASSJune19[[#This Row],[Alloc]]=\"WYP\",tblREGASSJune19[[#This Row],[Alloc]]=\"CA\",tblREGASSJune19[[#This Row],[Alloc]]=\"WA\"),\"SITUS\",tblREGASSJune19[[#This Row],[Alloc]])","v":"OTHER"},{"$f":"INDEX(tblREGASSLookup[FUNC],MATCH(tblREGASSJune19[[#This Row],[Concat]],tblREGASSLookup[Concat],0))","v":"CUST"},{"$f":"IF(tblREGASSJune19[[#This Row],[Total ($000)]]=0,\"NO\",IF(ISNA(tblREGASSJune19[[#This Row],[FUNC]]),\"YES\",IF(_xlfn.ISFORMULA(tblREGASSJune19[[#This Row],[FUNC]]),\"NO\",\"YES\")))","v":"NO"}]
[{"$f":"CONCATENATE(tblREGASSJune19[[#This Row],[Primary Account]],tblREGASSJune19[[#This Row],[Primary Name]],tblREGASSJune19[[#This Row],[Secondary Acct]],tblREGASSJune19[[#This Row],[Secondary  Name]],tblREGASSJune19[[#This Row],[Alloc4FUNC]])","v":"1823920DSR COSTS AMORTIZED103325AIR CONDITIONING - UTAH - 2012OTHER"},1823920,"DSR COSTS AMORTIZED",103325,"AIR CONDITIONING - UTAH - 2012","OTHER",1469.8777600000001,{"$f":"IF(OR(tblREGASSJune19[[#This Row],[Alloc]]=\"IDU\",tblREGASSJune19[[#This Row],[Alloc]]=\"OR\",tblREGASSJune19[[#This Row],[Alloc]]=\"UT\",tblREGASSJune19[[#This Row],[Alloc]]=\"WYU\",tblREGASSJune19[[#This Row],[Alloc]]=\"WYP\",tblREGASSJune19[[#This Row],[Alloc]]=\"CA\",tblREGASSJune19[[#This Row],[Alloc]]=\"WA\"),\"SITUS\",tblREGASSJune19[[#This Row],[Alloc]])","v":"OTHER"},{"$f":"INDEX(tblREGASSLookup[FUNC],MATCH(tblREGASSJune19[[#This Row],[Concat]],tblREGASSLookup[Concat],0))","v":"CUST"},{"$f":"IF(tblREGASSJune19[[#This Row],[Total ($000)]]=0,\"NO\",IF(ISNA(tblREGASSJune19[[#This Row],[FUNC]]),\"YES\",IF(_xlfn.ISFORMULA(tblREGASSJune19[[#This Row],[FUNC]]),\"NO\",\"YES\")))","v":"NO"}]
[{"$f":"CONCATENATE(tblREGASSJune19[[#This Row],[Primary Account]],tblREGASSJune19[[#This Row],[Primary Name]],tblREGASSJune19[[#This Row],[Secondary Acct]],tblREGASSJune19[[#This Row],[Secondary  Name]],tblREGASSJune19[[#This Row],[Alloc4FUNC]])","v":"1823920DSR COSTS AMORTIZED103326ENERGY FINANSWER - UTAH - 2012OTHER"},1823920,"DSR COSTS AMORTIZED",103326,"ENERGY FINANSWER - UTAH - 2012","OTHER",6898.5187599999999,{"$f":"IF(OR(tblREGASSJune19[[#This Row],[Alloc]]=\"IDU\",tblREGASSJune19[[#This Row],[Alloc]]=\"OR\",tblREGASSJune19[[#This Row],[Alloc]]=\"UT\",tblREGASSJune19[[#This Row],[Alloc]]=\"WYU\",tblREGASSJune19[[#This Row],[Alloc]]=\"WYP\",tblREGASSJune19[[#This Row],[Alloc]]=\"CA\",tblREGASSJune19[[#This Row],[Alloc]]=\"WA\"),\"SITUS\",tblREGASSJune19[[#This Row],[Alloc]])","v":"OTHER"},{"$f":"INDEX(tblREGASSLookup[FUNC],MATCH(tblREGASSJune19[[#This Row],[Concat]],tblREGASSLookup[Concat],0))","v":"CUST"},{"$f":"IF(tblREGASSJune19[[#This Row],[Total ($000)]]=0,\"NO\",IF(ISNA(tblREGASSJune19[[#This Row],[FUNC]]),\"YES\",IF(_xlfn.ISFORMULA(tblREGASSJune19[[#This Row],[FUNC]]),\"NO\",\"YES\")))","v":"NO"}]
[{"$f":"CONCATENATE(tblREGASSJune19[[#This Row],[Primary Account]],tblREGASSJune19[[#This Row],[Primary Name]],tblREGASSJune19[[#This Row],[Secondary Acct]],tblREGASSJune19[[#This Row],[Secondary  Name]],tblREGASSJune19[[#This Row],[Alloc4FUNC]])","v":"1823920DSR COSTS AMORTIZED103327INDUSTRIAL FINANSWER - UTAH - 2012OTHER"},1823920,"DSR COSTS AMORTIZED",103327,"INDUSTRIAL FINANSWER - UTAH - 2012","OTHER",2934.9706200000001,{"$f":"IF(OR(tblREGASSJune19[[#This Row],[Alloc]]=\"IDU\",tblREGASSJune19[[#This Row],[Alloc]]=\"OR\",tblREGASSJune19[[#This Row],[Alloc]]=\"UT\",tblREGASSJune19[[#This Row],[Alloc]]=\"WYU\",tblREGASSJune19[[#This Row],[Alloc]]=\"WYP\",tblREGASSJune19[[#This Row],[Alloc]]=\"CA\",tblREGASSJune19[[#This Row],[Alloc]]=\"WA\"),\"SITUS\",tblREGASSJune19[[#This Row],[Alloc]])","v":"OTHER"},{"$f":"INDEX(tblREGASSLookup[FUNC],MATCH(tblREGASSJune19[[#This Row],[Concat]],tblREGASSLookup[Concat],0))","v":"CUST"},{"$f":"IF(tblREGASSJune19[[#This Row],[Total ($000)]]=0,\"NO\",IF(ISNA(tblREGASSJune19[[#This Row],[FUNC]]),\"YES\",IF(_xlfn.ISFORMULA(tblREGASSJune19[[#This Row],[FUNC]]),\"NO\",\"YES\")))","v":"NO"}]
[{"$f":"CONCATENATE(tblREGASSJune19[[#This Row],[Primary Account]],tblREGASSJune19[[#This Row],[Primary Name]],tblREGASSJune19[[#This Row],[Secondary Acct]],tblREGASSJune19[[#This Row],[Secondary  Name]],tblREGASSJune19[[#This Row],[Alloc4FUNC]])","v":"1823920DSR COSTS AMORTIZED103328LOW INCOME - UTAH - 2012OTHER"},1823920,"DSR COSTS AMORTIZED",103328,"LOW INCOME - UTAH - 2012","OTHER",177.00416999999999,{"$f":"IF(OR(tblREGASSJune19[[#This Row],[Alloc]]=\"IDU\",tblREGASSJune19[[#This Row],[Alloc]]=\"OR\",tblREGASSJune19[[#This Row],[Alloc]]=\"UT\",tblREGASSJune19[[#This Row],[Alloc]]=\"WYU\",tblREGASSJune19[[#This Row],[Alloc]]=\"WYP\",tblREGASSJune19[[#This Row],[Alloc]]=\"CA\",tblREGASSJune19[[#This Row],[Alloc]]=\"WA\"),\"SITUS\",tblREGASSJune19[[#This Row],[Alloc]])","v":"OTHER"},{"$f":"INDEX(tblREGASSLookup[FUNC],MATCH(tblREGASSJune19[[#This Row],[Concat]],tblREGASSLookup[Concat],0))","v":"CUST"},{"$f":"IF(tblREGASSJune19[[#This Row],[Total ($000)]]=0,\"NO\",IF(ISNA(tblREGASSJune19[[#This Row],[FUNC]]),\"YES\",IF(_xlfn.ISFORMULA(tblREGASSJune19[[#This Row],[FUNC]]),\"NO\",\"YES\")))","v":"NO"}]
[{"$f":"CONCATENATE(tblREGASSJune19[[#This Row],[Primary Account]],tblREGASSJune19[[#This Row],[Primary Name]],tblREGASSJune19[[#This Row],[Secondary Acct]],tblREGASSJune19[[#This Row],[Secondary  Name]],tblREGASSJune19[[#This Row],[Alloc4FUNC]])","v":"1823920DSR COSTS AMORTIZED103330REFRIGERATOR RECYCLING PGM- UTAH - 2012OTHER"},1823920,"DSR COSTS AMORTIZED",103330,"REFRIGERATOR RECYCLING PGM- UTAH - 2012","OTHER",1473.8865699999999,{"$f":"IF(OR(tblREGASSJune19[[#This Row],[Alloc]]=\"IDU\",tblREGASSJune19[[#This Row],[Alloc]]=\"OR\",tblREGASSJune19[[#This Row],[Alloc]]=\"UT\",tblREGASSJune19[[#This Row],[Alloc]]=\"WYU\",tblREGASSJune19[[#This Row],[Alloc]]=\"WYP\",tblREGASSJune19[[#This Row],[Alloc]]=\"CA\",tblREGASSJune19[[#This Row],[Alloc]]=\"WA\"),\"SITUS\",tblREGASSJune19[[#This Row],[Alloc]])","v":"OTHER"},{"$f":"INDEX(tblREGASSLookup[FUNC],MATCH(tblREGASSJune19[[#This Row],[Concat]],tblREGASSLookup[Concat],0))","v":"CUST"},{"$f":"IF(tblREGASSJune19[[#This Row],[Total ($000)]]=0,\"NO\",IF(ISNA(tblREGASSJune19[[#This Row],[FUNC]]),\"YES\",IF(_xlfn.ISFORMULA(tblREGASSJune19[[#This Row],[FUNC]]),\"NO\",\"YES\")))","v":"NO"}]
[{"$f":"CONCATENATE(tblREGASSJune19[[#This Row],[Primary Account]],tblREGASSJune19[[#This Row],[Primary Name]],tblREGASSJune19[[#This Row],[Secondary Acct]],tblREGASSJune19[[#This Row],[Secondary  Name]],tblREGASSJune19[[#This Row],[Alloc4FUNC]])","v":"1823920DSR COSTS AMORTIZED103331COMMERCIAL SELF-DIRECT - UTAH - 2012OTHER"},1823920,"DSR COSTS AMORTIZED",103331,"COMMERCIAL SELF-DIRECT - UTAH - 2012","OTHER",171.93923000000001,{"$f":"IF(OR(tblREGASSJune19[[#This Row],[Alloc]]=\"IDU\",tblREGASSJune19[[#This Row],[Alloc]]=\"OR\",tblREGASSJune19[[#This Row],[Alloc]]=\"UT\",tblREGASSJune19[[#This Row],[Alloc]]=\"WYU\",tblREGASSJune19[[#This Row],[Alloc]]=\"WYP\",tblREGASSJune19[[#This Row],[Alloc]]=\"CA\",tblREGASSJune19[[#This Row],[Alloc]]=\"WA\"),\"SITUS\",tblREGASSJune19[[#This Row],[Alloc]])","v":"OTHER"},{"$f":"INDEX(tblREGASSLookup[FUNC],MATCH(tblREGASSJune19[[#This Row],[Concat]],tblREGASSLookup[Concat],0))","v":"CUST"},{"$f":"IF(tblREGASSJune19[[#This Row],[Total ($000)]]=0,\"NO\",IF(ISNA(tblREGASSJune19[[#This Row],[FUNC]]),\"YES\",IF(_xlfn.ISFORMULA(tblREGASSJune19[[#This Row],[FUNC]]),\"NO\",\"YES\")))","v":"NO"}]
[{"$f":"CONCATENATE(tblREGASSJune19[[#This Row],[Primary Account]],tblREGASSJune19[[#This Row],[Primary Name]],tblREGASSJune19[[#This Row],[Secondary Acct]],tblREGASSJune19[[#This Row],[Secondary  Name]],tblREGASSJune19[[#This Row],[Alloc4FUNC]])","v":"1823920DSR COSTS AMORTIZED103332INDUSTRIAL SELF-DIRECT - UTAH - 2012OTHER"},1823920,"DSR COSTS AMORTIZED",103332,"INDUSTRIAL SELF-DIRECT - UTAH - 2012","OTHER",428.76724999999999,{"$f":"IF(OR(tblREGASSJune19[[#This Row],[Alloc]]=\"IDU\",tblREGASSJune19[[#This Row],[Alloc]]=\"OR\",tblREGASSJune19[[#This Row],[Alloc]]=\"UT\",tblREGASSJune19[[#This Row],[Alloc]]=\"WYU\",tblREGASSJune19[[#This Row],[Alloc]]=\"WYP\",tblREGASSJune19[[#This Row],[Alloc]]=\"CA\",tblREGASSJune19[[#This Row],[Alloc]]=\"WA\"),\"SITUS\",tblREGASSJune19[[#This Row],[Alloc]])","v":"OTHER"},{"$f":"INDEX(tblREGASSLookup[FUNC],MATCH(tblREGASSJune19[[#This Row],[Concat]],tblREGASSLookup[Concat],0))","v":"CUST"},{"$f":"IF(tblREGASSJune19[[#This Row],[Total ($000)]]=0,\"NO\",IF(ISNA(tblREGASSJune19[[#This Row],[FUNC]]),\"YES\",IF(_xlfn.ISFORMULA(tblREGASSJune19[[#This Row],[FUNC]]),\"NO\",\"YES\")))","v":"NO"}]
[{"$f":"CONCATENATE(tblREGASSJune19[[#This Row],[Primary Account]],tblREGASSJune19[[#This Row],[Primary Name]],tblREGASSJune19[[#This Row],[Secondary Acct]],tblREGASSJune19[[#This Row],[Secondary  Name]],tblREGASSJune19[[#This Row],[Alloc4FUNC]])","v":"1823920DSR COSTS AMORTIZED103333RESIDENTIAL NEW CONSTRUCTION - UTAH - 20OTHER"},1823920,"DSR COSTS AMORTIZED",103333,"RESIDENTIAL NEW CONSTRUCTION - UTAH - 20","OTHER",1943.2113099999999,{"$f":"IF(OR(tblREGASSJune19[[#This Row],[Alloc]]=\"IDU\",tblREGASSJune19[[#This Row],[Alloc]]=\"OR\",tblREGASSJune19[[#This Row],[Alloc]]=\"UT\",tblREGASSJune19[[#This Row],[Alloc]]=\"WYU\",tblREGASSJune19[[#This Row],[Alloc]]=\"WYP\",tblREGASSJune19[[#This Row],[Alloc]]=\"CA\",tblREGASSJune19[[#This Row],[Alloc]]=\"WA\"),\"SITUS\",tblREGASSJune19[[#This Row],[Alloc]])","v":"OTHER"},{"$f":"INDEX(tblREGASSLookup[FUNC],MATCH(tblREGASSJune19[[#This Row],[Concat]],tblREGASSLookup[Concat],0))","v":"CUST"},{"$f":"IF(tblREGASSJune19[[#This Row],[Total ($000)]]=0,\"NO\",IF(ISNA(tblREGASSJune19[[#This Row],[FUNC]]),\"YES\",IF(_xlfn.ISFORMULA(tblREGASSJune19[[#This Row],[FUNC]]),\"NO\",\"YES\")))","v":"NO"}]
[{"$f":"CONCATENATE(tblREGASSJune19[[#This Row],[Primary Account]],tblREGASSJune19[[#This Row],[Primary Name]],tblREGASSJune19[[#This Row],[Secondary Acct]],tblREGASSJune19[[#This Row],[Secondary  Name]],tblREGASSJune19[[#This Row],[Alloc4FUNC]])","v":"1823920DSR COSTS AMORTIZED103334COMMERCIAL FINANSWER EXPRESS - UTAH - 20OTHER"},1823920,"DSR COSTS AMORTIZED",103334,"COMMERCIAL FINANSWER EXPRESS - UTAH - 20","OTHER",6221.4018299999998,{"$f":"IF(OR(tblREGASSJune19[[#This Row],[Alloc]]=\"IDU\",tblREGASSJune19[[#This Row],[Alloc]]=\"OR\",tblREGASSJune19[[#This Row],[Alloc]]=\"UT\",tblREGASSJune19[[#This Row],[Alloc]]=\"WYU\",tblREGASSJune19[[#This Row],[Alloc]]=\"WYP\",tblREGASSJune19[[#This Row],[Alloc]]=\"CA\",tblREGASSJune19[[#This Row],[Alloc]]=\"WA\"),\"SITUS\",tblREGASSJune19[[#This Row],[Alloc]])","v":"OTHER"},{"$f":"INDEX(tblREGASSLookup[FUNC],MATCH(tblREGASSJune19[[#This Row],[Concat]],tblREGASSLookup[Concat],0))","v":"CUST"},{"$f":"IF(tblREGASSJune19[[#This Row],[Total ($000)]]=0,\"NO\",IF(ISNA(tblREGASSJune19[[#This Row],[FUNC]]),\"YES\",IF(_xlfn.ISFORMULA(tblREGASSJune19[[#This Row],[FUNC]]),\"NO\",\"YES\")))","v":"NO"}]
[{"$f":"CONCATENATE(tblREGASSJune19[[#This Row],[Primary Account]],tblREGASSJune19[[#This Row],[Primary Name]],tblREGASSJune19[[#This Row],[Secondary Acct]],tblREGASSJune19[[#This Row],[Secondary  Name]],tblREGASSJune19[[#This Row],[Alloc4FUNC]])","v":"1823920DSR COSTS AMORTIZED103335INDUSTRIAL FINANSWER EXPRESS - UTAH - 20OTHER"},1823920,"DSR COSTS AMORTIZED",103335,"INDUSTRIAL FINANSWER EXPRESS - UTAH - 20","OTHER",1280.4048499999999,{"$f":"IF(OR(tblREGASSJune19[[#This Row],[Alloc]]=\"IDU\",tblREGASSJune19[[#This Row],[Alloc]]=\"OR\",tblREGASSJune19[[#This Row],[Alloc]]=\"UT\",tblREGASSJune19[[#This Row],[Alloc]]=\"WYU\",tblREGASSJune19[[#This Row],[Alloc]]=\"WYP\",tblREGASSJune19[[#This Row],[Alloc]]=\"CA\",tblREGASSJune19[[#This Row],[Alloc]]=\"WA\"),\"SITUS\",tblREGASSJune19[[#This Row],[Alloc]])","v":"OTHER"},{"$f":"INDEX(tblREGASSLookup[FUNC],MATCH(tblREGASSJune19[[#This Row],[Concat]],tblREGASSLookup[Concat],0))","v":"CUST"},{"$f":"IF(tblREGASSJune19[[#This Row],[Total ($000)]]=0,\"NO\",IF(ISNA(tblREGASSJune19[[#This Row],[FUNC]]),\"YES\",IF(_xlfn.ISFORMULA(tblREGASSJune19[[#This Row],[FUNC]]),\"NO\",\"YES\")))","v":"NO"}]
[{"$f":"CONCATENATE(tblREGASSJune19[[#This Row],[Primary Account]],tblREGASSJune19[[#This Row],[Primary Name]],tblREGASSJune19[[#This Row],[Secondary Acct]],tblREGASSJune19[[#This Row],[Secondary  Name]],tblREGASSJune19[[#This Row],[Alloc4FUNC]])","v":"1823920DSR COSTS AMORTIZED103336RETROFIT COMMISSIONING PROGRAM  - UTAH -OTHER"},1823920,"DSR COSTS AMORTIZED",103336,"RETROFIT COMMISSIONING PROGRAM  - UTAH -","OTHER",459.69344000000001,{"$f":"IF(OR(tblREGASSJune19[[#This Row],[Alloc]]=\"IDU\",tblREGASSJune19[[#This Row],[Alloc]]=\"OR\",tblREGASSJune19[[#This Row],[Alloc]]=\"UT\",tblREGASSJune19[[#This Row],[Alloc]]=\"WYU\",tblREGASSJune19[[#This Row],[Alloc]]=\"WYP\",tblREGASSJune19[[#This Row],[Alloc]]=\"CA\",tblREGASSJune19[[#This Row],[Alloc]]=\"WA\"),\"SITUS\",tblREGASSJune19[[#This Row],[Alloc]])","v":"OTHER"},{"$f":"INDEX(tblREGASSLookup[FUNC],MATCH(tblREGASSJune19[[#This Row],[Concat]],tblREGASSLookup[Concat],0))","v":"CUST"},{"$f":"IF(tblREGASSJune19[[#This Row],[Total ($000)]]=0,\"NO\",IF(ISNA(tblREGASSJune19[[#This Row],[FUNC]]),\"YES\",IF(_xlfn.ISFORMULA(tblREGASSJune19[[#This Row],[FUNC]]),\"NO\",\"YES\")))","v":"NO"}]
[{"$f":"CONCATENATE(tblREGASSJune19[[#This Row],[Primary Account]],tblREGASSJune19[[#This Row],[Primary Name]],tblREGASSJune19[[#This Row],[Secondary Acct]],tblREGASSJune19[[#This Row],[Secondary  Name]],tblREGASSJune19[[#This Row],[Alloc4FUNC]])","v":"1823920DSR COSTS AMORTIZED103337IRRIGATION LOAD CONTROL  - UTAH - 2012OTHER"},1823920,"DSR COSTS AMORTIZED",103337,"IRRIGATION LOAD CONTROL  - UTAH - 2012","OTHER",2096.5670500000001,{"$f":"IF(OR(tblREGASSJune19[[#This Row],[Alloc]]=\"IDU\",tblREGASSJune19[[#This Row],[Alloc]]=\"OR\",tblREGASSJune19[[#This Row],[Alloc]]=\"UT\",tblREGASSJune19[[#This Row],[Alloc]]=\"WYU\",tblREGASSJune19[[#This Row],[Alloc]]=\"WYP\",tblREGASSJune19[[#This Row],[Alloc]]=\"CA\",tblREGASSJune19[[#This Row],[Alloc]]=\"WA\"),\"SITUS\",tblREGASSJune19[[#This Row],[Alloc]])","v":"OTHER"},{"$f":"INDEX(tblREGASSLookup[FUNC],MATCH(tblREGASSJune19[[#This Row],[Concat]],tblREGASSLookup[Concat],0))","v":"CUST"},{"$f":"IF(tblREGASSJune19[[#This Row],[Total ($000)]]=0,\"NO\",IF(ISNA(tblREGASSJune19[[#This Row],[FUNC]]),\"YES\",IF(_xlfn.ISFORMULA(tblREGASSJune19[[#This Row],[FUNC]]),\"NO\",\"YES\")))","v":"NO"}]
[{"$f":"CONCATENATE(tblREGASSJune19[[#This Row],[Primary Account]],tblREGASSJune19[[#This Row],[Primary Name]],tblREGASSJune19[[#This Row],[Secondary Acct]],tblREGASSJune19[[#This Row],[Secondary  Name]],tblREGASSJune19[[#This Row],[Alloc4FUNC]])","v":"1823920DSR COSTS AMORTIZED103338HOME ENERGY EFF INCENTIVE PROG - UT 2012OTHER"},1823920,"DSR COSTS AMORTIZED",103338,"HOME ENERGY EFF INCENTIVE PROG - UT 2012","OTHER",11113.2752,{"$f":"IF(OR(tblREGASSJune19[[#This Row],[Alloc]]=\"IDU\",tblREGASSJune19[[#This Row],[Alloc]]=\"OR\",tblREGASSJune19[[#This Row],[Alloc]]=\"UT\",tblREGASSJune19[[#This Row],[Alloc]]=\"WYU\",tblREGASSJune19[[#This Row],[Alloc]]=\"WYP\",tblREGASSJune19[[#This Row],[Alloc]]=\"CA\",tblREGASSJune19[[#This Row],[Alloc]]=\"WA\"),\"SITUS\",tblREGASSJune19[[#This Row],[Alloc]])","v":"OTHER"},{"$f":"INDEX(tblREGASSLookup[FUNC],MATCH(tblREGASSJune19[[#This Row],[Concat]],tblREGASSLookup[Concat],0))","v":"CUST"},{"$f":"IF(tblREGASSJune19[[#This Row],[Total ($000)]]=0,\"NO\",IF(ISNA(tblREGASSJune19[[#This Row],[FUNC]]),\"YES\",IF(_xlfn.ISFORMULA(tblREGASSJune19[[#This Row],[FUNC]]),\"NO\",\"YES\")))","v":"NO"}]
[{"$f":"CONCATENATE(tblREGASSJune19[[#This Row],[Primary Account]],tblREGASSJune19[[#This Row],[Primary Name]],tblREGASSJune19[[#This Row],[Secondary Acct]],tblREGASSJune19[[#This Row],[Secondary  Name]],tblREGASSJune19[[#This Row],[Alloc4FUNC]])","v":"1823920DSR COSTS AMORTIZED103339OUTREACH and COMMUNICATIONS - UT 2012OTHER"},1823920,"DSR COSTS AMORTIZED",103339,"OUTREACH and COMMUNICATIONS - UT 2012","OTHER",1836.0049200000001,{"$f":"IF(OR(tblREGASSJune19[[#This Row],[Alloc]]=\"IDU\",tblREGASSJune19[[#This Row],[Alloc]]=\"OR\",tblREGASSJune19[[#This Row],[Alloc]]=\"UT\",tblREGASSJune19[[#This Row],[Alloc]]=\"WYU\",tblREGASSJune19[[#This Row],[Alloc]]=\"WYP\",tblREGASSJune19[[#This Row],[Alloc]]=\"CA\",tblREGASSJune19[[#This Row],[Alloc]]=\"WA\"),\"SITUS\",tblREGASSJune19[[#This Row],[Alloc]])","v":"OTHER"},{"$f":"INDEX(tblREGASSLookup[FUNC],MATCH(tblREGASSJune19[[#This Row],[Concat]],tblREGASSLookup[Concat],0))","v":"CUST"},{"$f":"IF(tblREGASSJune19[[#This Row],[Total ($000)]]=0,\"NO\",IF(ISNA(tblREGASSJune19[[#This Row],[FUNC]]),\"YES\",IF(_xlfn.ISFORMULA(tblREGASSJune19[[#This Row],[FUNC]]),\"NO\",\"YES\")))","v":"NO"}]
[{"$f":"CONCATENATE(tblREGASSJune19[[#This Row],[Primary Account]],tblREGASSJune19[[#This Row],[Primary Name]],tblREGASSJune19[[#This Row],[Secondary Acct]],tblREGASSJune19[[#This Row],[Secondary  Name]],tblREGASSJune19[[#This Row],[Alloc4FUNC]])","v":"1823920DSR COSTS AMORTIZED103340COMMERCIAL DIRECT INSTALL - UT 2012OTHER"},1823920,"DSR COSTS AMORTIZED",103340,"COMMERCIAL DIRECT INSTALL - UT 2012","OTHER",0.436,{"$f":"IF(OR(tblREGASSJune19[[#This Row],[Alloc]]=\"IDU\",tblREGASSJune19[[#This Row],[Alloc]]=\"OR\",tblREGASSJune19[[#This Row],[Alloc]]=\"UT\",tblREGASSJune19[[#This Row],[Alloc]]=\"WYU\",tblREGASSJune19[[#This Row],[Alloc]]=\"WYP\",tblREGASSJune19[[#This Row],[Alloc]]=\"CA\",tblREGASSJune19[[#This Row],[Alloc]]=\"WA\"),\"SITUS\",tblREGASSJune19[[#This Row],[Alloc]])","v":"OTHER"},{"$f":"INDEX(tblREGASSLookup[FUNC],MATCH(tblREGASSJune19[[#This Row],[Concat]],tblREGASSLookup[Concat],0))","v":"CUST"},{"$f":"IF(tblREGASSJune19[[#This Row],[Total ($000)]]=0,\"NO\",IF(ISNA(tblREGASSJune19[[#This Row],[FUNC]]),\"YES\",IF(_xlfn.ISFORMULA(tblREGASSJune19[[#This Row],[FUNC]]),\"NO\",\"YES\")))","v":"NO"}]
[{"$f":"CONCATENATE(tblREGASSJune19[[#This Row],[Primary Account]],tblREGASSJune19[[#This Row],[Primary Name]],tblREGASSJune19[[#This Row],[Secondary Acct]],tblREGASSJune19[[#This Row],[Secondary  Name]],tblREGASSJune19[[#This Row],[Alloc4FUNC]])","v":"1823920DSR COSTS AMORTIZED103341COMMERCIAL CURTAILMENT - UT 2012OTHER"},1823920,"DSR COSTS AMORTIZED",103341,"COMMERCIAL CURTAILMENT - UT 2012","OTHER",-29.676439999999999,{"$f":"IF(OR(tblREGASSJune19[[#This Row],[Alloc]]=\"IDU\",tblREGASSJune19[[#This Row],[Alloc]]=\"OR\",tblREGASSJune19[[#This Row],[Alloc]]=\"UT\",tblREGASSJune19[[#This Row],[Alloc]]=\"WYU\",tblREGASSJune19[[#This Row],[Alloc]]=\"WYP\",tblREGASSJune19[[#This Row],[Alloc]]=\"CA\",tblREGASSJune19[[#This Row],[Alloc]]=\"WA\"),\"SITUS\",tblREGASSJune19[[#This Row],[Alloc]])","v":"OTHER"},{"$f":"INDEX(tblREGASSLookup[FUNC],MATCH(tblREGASSJune19[[#This Row],[Concat]],tblREGASSLookup[Concat],0))","v":"CUST"},{"$f":"IF(tblREGASSJune19[[#This Row],[Total ($000)]]=0,\"NO\",IF(ISNA(tblREGASSJune19[[#This Row],[FUNC]]),\"YES\",IF(_xlfn.ISFORMULA(tblREGASSJune19[[#This Row],[FUNC]]),\"NO\",\"YES\")))","v":"NO"}]
[{"$f":"CONCATENATE(tblREGASSJune19[[#This Row],[Primary Account]],tblREGASSJune19[[#This Row],[Primary Name]],tblREGASSJune19[[#This Row],[Secondary Acct]],tblREGASSJune19[[#This Row],[Secondary  Name]],tblREGASSJune19[[#This Row],[Alloc4FUNC]])","v":"1823920DSR COSTS AMORTIZED103342ENERGY STORAGE DEMO PROJECT - UT 2012OTHER"},1823920,"DSR COSTS AMORTIZED",103342,"ENERGY STORAGE DEMO PROJECT - UT 2012","OTHER",6.3997900000000003,{"$f":"IF(OR(tblREGASSJune19[[#This Row],[Alloc]]=\"IDU\",tblREGASSJune19[[#This Row],[Alloc]]=\"OR\",tblREGASSJune19[[#This Row],[Alloc]]=\"UT\",tblREGASSJune19[[#This Row],[Alloc]]=\"WYU\",tblREGASSJune19[[#This Row],[Alloc]]=\"WYP\",tblREGASSJune19[[#This Row],[Alloc]]=\"CA\",tblREGASSJune19[[#This Row],[Alloc]]=\"WA\"),\"SITUS\",tblREGASSJune19[[#This Row],[Alloc]])","v":"OTHER"},{"$f":"INDEX(tblREGASSLookup[FUNC],MATCH(tblREGASSJune19[[#This Row],[Concat]],tblREGASSLookup[Concat],0))","v":"CUST"},{"$f":"IF(tblREGASSJune19[[#This Row],[Total ($000)]]=0,\"NO\",IF(ISNA(tblREGASSJune19[[#This Row],[FUNC]]),\"YES\",IF(_xlfn.ISFORMULA(tblREGASSJune19[[#This Row],[FUNC]]),\"NO\",\"YES\")))","v":"NO"}]
[{"$f":"CONCATENATE(tblREGASSJune19[[#This Row],[Primary Account]],tblREGASSJune19[[#This Row],[Primary Name]],tblREGASSJune19[[#This Row],[Secondary Acct]],tblREGASSJune19[[#This Row],[Secondary  Name]],tblREGASSJune19[[#This Row],[Alloc4FUNC]])","v":"1823920DSR COSTS AMORTIZED103343AGRICULTURAL FINANSWER EXPRESS - UTAH -OTHER"},1823920,"DSR COSTS AMORTIZED",103343,"AGRICULTURAL FINANSWER EXPRESS - UTAH -","OTHER",21.026949999999999,{"$f":"IF(OR(tblREGASSJune19[[#This Row],[Alloc]]=\"IDU\",tblREGASSJune19[[#This Row],[Alloc]]=\"OR\",tblREGASSJune19[[#This Row],[Alloc]]=\"UT\",tblREGASSJune19[[#This Row],[Alloc]]=\"WYU\",tblREGASSJune19[[#This Row],[Alloc]]=\"WYP\",tblREGASSJune19[[#This Row],[Alloc]]=\"CA\",tblREGASSJune19[[#This Row],[Alloc]]=\"WA\"),\"SITUS\",tblREGASSJune19[[#This Row],[Alloc]])","v":"OTHER"},{"$f":"INDEX(tblREGASSLookup[FUNC],MATCH(tblREGASSJune19[[#This Row],[Concat]],tblREGASSLookup[Concat],0))","v":"CUST"},{"$f":"IF(tblREGASSJune19[[#This Row],[Total ($000)]]=0,\"NO\",IF(ISNA(tblREGASSJune19[[#This Row],[FUNC]]),\"YES\",IF(_xlfn.ISFORMULA(tblREGASSJune19[[#This Row],[FUNC]]),\"NO\",\"YES\")))","v":"NO"}]
[{"$f":"CONCATENATE(tblREGASSJune19[[#This Row],[Primary Account]],tblREGASSJune19[[#This Row],[Primary Name]],tblREGASSJune19[[#This Row],[Secondary Acct]],tblREGASSJune19[[#This Row],[Secondary  Name]],tblREGASSJune19[[#This Row],[Alloc4FUNC]])","v":"1823920DSR COSTS AMORTIZED103346HOME ENERGY REPORTING - UT 2012OTHER"},1823920,"DSR COSTS AMORTIZED",103346,"HOME ENERGY REPORTING - UT 2012","OTHER",534.08069,{"$f":"IF(OR(tblREGASSJune19[[#This Row],[Alloc]]=\"IDU\",tblREGASSJune19[[#This Row],[Alloc]]=\"OR\",tblREGASSJune19[[#This Row],[Alloc]]=\"UT\",tblREGASSJune19[[#This Row],[Alloc]]=\"WYU\",tblREGASSJune19[[#This Row],[Alloc]]=\"WYP\",tblREGASSJune19[[#This Row],[Alloc]]=\"CA\",tblREGASSJune19[[#This Row],[Alloc]]=\"WA\"),\"SITUS\",tblREGASSJune19[[#This Row],[Alloc]])","v":"OTHER"},{"$f":"INDEX(tblREGASSLookup[FUNC],MATCH(tblREGASSJune19[[#This Row],[Concat]],tblREGASSLookup[Concat],0))","v":"CUST"},{"$f":"IF(tblREGASSJune19[[#This Row],[Total ($000)]]=0,\"NO\",IF(ISNA(tblREGASSJune19[[#This Row],[FUNC]]),\"YES\",IF(_xlfn.ISFORMULA(tblREGASSJune19[[#This Row],[FUNC]]),\"NO\",\"YES\")))","v":"NO"}]
[{"$f":"CONCATENATE(tblREGASSJune19[[#This Row],[Primary Account]],tblREGASSJune19[[#This Row],[Primary Name]],tblREGASSJune19[[#This Row],[Secondary Acct]],tblREGASSJune19[[#This Row],[Secondary  Name]],tblREGASSJune19[[#This Row],[Alloc4FUNC]])","v":"1823920DSR COSTS AMORTIZED103347ENERGY FINANSWER-WY-2012 CAT3OTHER"},1823920,"DSR COSTS AMORTIZED",103347,"ENERGY FINANSWER-WY-2012 CAT3","OTHER",19.904620000000001,{"$f":"IF(OR(tblREGASSJune19[[#This Row],[Alloc]]=\"IDU\",tblREGASSJune19[[#This Row],[Alloc]]=\"OR\",tblREGASSJune19[[#This Row],[Alloc]]=\"UT\",tblREGASSJune19[[#This Row],[Alloc]]=\"WYU\",tblREGASSJune19[[#This Row],[Alloc]]=\"WYP\",tblREGASSJune19[[#This Row],[Alloc]]=\"CA\",tblREGASSJune19[[#This Row],[Alloc]]=\"WA\"),\"SITUS\",tblREGASSJune19[[#This Row],[Alloc]])","v":"OTHER"},{"$f":"INDEX(tblREGASSLookup[FUNC],MATCH(tblREGASSJune19[[#This Row],[Concat]],tblREGASSLookup[Concat],0))","v":"CUST"},{"$f":"IF(tblREGASSJune19[[#This Row],[Total ($000)]]=0,\"NO\",IF(ISNA(tblREGASSJune19[[#This Row],[FUNC]]),\"YES\",IF(_xlfn.ISFORMULA(tblREGASSJune19[[#This Row],[FUNC]]),\"NO\",\"YES\")))","v":"NO"}]
[{"$f":"CONCATENATE(tblREGASSJune19[[#This Row],[Primary Account]],tblREGASSJune19[[#This Row],[Primary Name]],tblREGASSJune19[[#This Row],[Secondary Acct]],tblREGASSJune19[[#This Row],[Secondary  Name]],tblREGASSJune19[[#This Row],[Alloc4FUNC]])","v":"1823920DSR COSTS AMORTIZED103348INDUSTRIAL FINANSWER-WY-2012 CAT3OTHER"},1823920,"DSR COSTS AMORTIZED",103348,"INDUSTRIAL FINANSWER-WY-2012 CAT3","OTHER",606.10437999999999,{"$f":"IF(OR(tblREGASSJune19[[#This Row],[Alloc]]=\"IDU\",tblREGASSJune19[[#This Row],[Alloc]]=\"OR\",tblREGASSJune19[[#This Row],[Alloc]]=\"UT\",tblREGASSJune19[[#This Row],[Alloc]]=\"WYU\",tblREGASSJune19[[#This Row],[Alloc]]=\"WYP\",tblREGASSJune19[[#This Row],[Alloc]]=\"CA\",tblREGASSJune19[[#This Row],[Alloc]]=\"WA\"),\"SITUS\",tblREGASSJune19[[#This Row],[Alloc]])","v":"OTHER"},{"$f":"INDEX(tblREGASSLookup[FUNC],MATCH(tblREGASSJune19[[#This Row],[Concat]],tblREGASSLookup[Concat],0))","v":"CUST"},{"$f":"IF(tblREGASSJune19[[#This Row],[Total ($000)]]=0,\"NO\",IF(ISNA(tblREGASSJune19[[#This Row],[FUNC]]),\"YES\",IF(_xlfn.ISFORMULA(tblREGASSJune19[[#This Row],[FUNC]]),\"NO\",\"YES\")))","v":"NO"}]
[{"$f":"CONCATENATE(tblREGASSJune19[[#This Row],[Primary Account]],tblREGASSJune19[[#This Row],[Primary Name]],tblREGASSJune19[[#This Row],[Secondary Acct]],tblREGASSJune19[[#This Row],[Secondary  Name]],tblREGASSJune19[[#This Row],[Alloc4FUNC]])","v":"1823920DSR COSTS AMORTIZED103349REFRIGERATOR RECYCLING-WY -2012 CAT1OTHER"},1823920,"DSR COSTS AMORTIZED",103349,"REFRIGERATOR RECYCLING-WY -2012 CAT1","OTHER",168.84137999999999,{"$f":"IF(OR(tblREGASSJune19[[#This Row],[Alloc]]=\"IDU\",tblREGASSJune19[[#This Row],[Alloc]]=\"OR\",tblREGASSJune19[[#This Row],[Alloc]]=\"UT\",tblREGASSJune19[[#This Row],[Alloc]]=\"WYU\",tblREGASSJune19[[#This Row],[Alloc]]=\"WYP\",tblREGASSJune19[[#This Row],[Alloc]]=\"CA\",tblREGASSJune19[[#This Row],[Alloc]]=\"WA\"),\"SITUS\",tblREGASSJune19[[#This Row],[Alloc]])","v":"OTHER"},{"$f":"INDEX(tblREGASSLookup[FUNC],MATCH(tblREGASSJune19[[#This Row],[Concat]],tblREGASSLookup[Concat],0))","v":"CUST"},{"$f":"IF(tblREGASSJune19[[#This Row],[Total ($000)]]=0,\"NO\",IF(ISNA(tblREGASSJune19[[#This Row],[FUNC]]),\"YES\",IF(_xlfn.ISFORMULA(tblREGASSJune19[[#This Row],[FUNC]]),\"NO\",\"YES\")))","v":"NO"}]
[{"$f":"CONCATENATE(tblREGASSJune19[[#This Row],[Primary Account]],tblREGASSJune19[[#This Row],[Primary Name]],tblREGASSJune19[[#This Row],[Secondary Acct]],tblREGASSJune19[[#This Row],[Secondary  Name]],tblREGASSJune19[[#This Row],[Alloc4FUNC]])","v":"1823920DSR COSTS AMORTIZED103350HOME ENERGY EFF INCENT PROG Y-2012 CAT1OTHER"},1823920,"DSR COSTS AMORTIZED",103350,"HOME ENERGY EFF INCENT PROG Y-2012 CAT1","OTHER",904.0471,{"$f":"IF(OR(tblREGASSJune19[[#This Row],[Alloc]]=\"IDU\",tblREGASSJune19[[#This Row],[Alloc]]=\"OR\",tblREGASSJune19[[#This Row],[Alloc]]=\"UT\",tblREGASSJune19[[#This Row],[Alloc]]=\"WYU\",tblREGASSJune19[[#This Row],[Alloc]]=\"WYP\",tblREGASSJune19[[#This Row],[Alloc]]=\"CA\",tblREGASSJune19[[#This Row],[Alloc]]=\"WA\"),\"SITUS\",tblREGASSJune19[[#This Row],[Alloc]])","v":"OTHER"},{"$f":"INDEX(tblREGASSLookup[FUNC],MATCH(tblREGASSJune19[[#This Row],[Concat]],tblREGASSLookup[Concat],0))","v":"CUST"},{"$f":"IF(tblREGASSJune19[[#This Row],[Total ($000)]]=0,\"NO\",IF(ISNA(tblREGASSJune19[[#This Row],[FUNC]]),\"YES\",IF(_xlfn.ISFORMULA(tblREGASSJune19[[#This Row],[FUNC]]),\"NO\",\"YES\")))","v":"NO"}]
[{"$f":"CONCATENATE(tblREGASSJune19[[#This Row],[Primary Account]],tblREGASSJune19[[#This Row],[Primary Name]],tblREGASSJune19[[#This Row],[Secondary Acct]],tblREGASSJune19[[#This Row],[Secondary  Name]],tblREGASSJune19[[#This Row],[Alloc4FUNC]])","v":"1823920DSR COSTS AMORTIZED103351LOW-INCOME WEATHERZTN - WY 2012 CAT1OTHER"},1823920,"DSR COSTS AMORTIZED",103351,"LOW-INCOME WEATHERZTN - WY 2012 CAT1","OTHER",31.07817,{"$f":"IF(OR(tblREGASSJune19[[#This Row],[Alloc]]=\"IDU\",tblREGASSJune19[[#This Row],[Alloc]]=\"OR\",tblREGASSJune19[[#This Row],[Alloc]]=\"UT\",tblREGASSJune19[[#This Row],[Alloc]]=\"WYU\",tblREGASSJune19[[#This Row],[Alloc]]=\"WYP\",tblREGASSJune19[[#This Row],[Alloc]]=\"CA\",tblREGASSJune19[[#This Row],[Alloc]]=\"WA\"),\"SITUS\",tblREGASSJune19[[#This Row],[Alloc]])","v":"OTHER"},{"$f":"INDEX(tblREGASSLookup[FUNC],MATCH(tblREGASSJune19[[#This Row],[Concat]],tblREGASSLookup[Concat],0))","v":"CUST"},{"$f":"IF(tblREGASSJune19[[#This Row],[Total ($000)]]=0,\"NO\",IF(ISNA(tblREGASSJune19[[#This Row],[FUNC]]),\"YES\",IF(_xlfn.ISFORMULA(tblREGASSJune19[[#This Row],[FUNC]]),\"NO\",\"YES\")))","v":"NO"}]
[{"$f":"CONCATENATE(tblREGASSJune19[[#This Row],[Primary Account]],tblREGASSJune19[[#This Row],[Primary Name]],tblREGASSJune19[[#This Row],[Secondary Acct]],tblREGASSJune19[[#This Row],[Secondary  Name]],tblREGASSJune19[[#This Row],[Alloc4FUNC]])","v":"1823920DSR COSTS AMORTIZED103352COMMERCIAL FINANSWER EXP WY-2012 CAT3OTHER"},1823920,"DSR COSTS AMORTIZED",103352,"COMMERCIAL FINANSWER EXP WY-2012 CAT3","OTHER",142.82818,{"$f":"IF(OR(tblREGASSJune19[[#This Row],[Alloc]]=\"IDU\",tblREGASSJune19[[#This Row],[Alloc]]=\"OR\",tblREGASSJune19[[#This Row],[Alloc]]=\"UT\",tblREGASSJune19[[#This Row],[Alloc]]=\"WYU\",tblREGASSJune19[[#This Row],[Alloc]]=\"WYP\",tblREGASSJune19[[#This Row],[Alloc]]=\"CA\",tblREGASSJune19[[#This Row],[Alloc]]=\"WA\"),\"SITUS\",tblREGASSJune19[[#This Row],[Alloc]])","v":"OTHER"},{"$f":"INDEX(tblREGASSLookup[FUNC],MATCH(tblREGASSJune19[[#This Row],[Concat]],tblREGASSLookup[Concat],0))","v":"CUST"},{"$f":"IF(tblREGASSJune19[[#This Row],[Total ($000)]]=0,\"NO\",IF(ISNA(tblREGASSJune19[[#This Row],[FUNC]]),\"YES\",IF(_xlfn.ISFORMULA(tblREGASSJune19[[#This Row],[FUNC]]),\"NO\",\"YES\")))","v":"NO"}]
[{"$f":"CONCATENATE(tblREGASSJune19[[#This Row],[Primary Account]],tblREGASSJune19[[#This Row],[Primary Name]],tblREGASSJune19[[#This Row],[Secondary Acct]],tblREGASSJune19[[#This Row],[Secondary  Name]],tblREGASSJune19[[#This Row],[Alloc4FUNC]])","v":"1823920DSR COSTS AMORTIZED103353INDUSTRIAL FINANSWER EXP WY-2012 CAT3OTHER"},1823920,"DSR COSTS AMORTIZED",103353,"INDUSTRIAL FINANSWER EXP WY-2012 CAT3","OTHER",169.86372,{"$f":"IF(OR(tblREGASSJune19[[#This Row],[Alloc]]=\"IDU\",tblREGASSJune19[[#This Row],[Alloc]]=\"OR\",tblREGASSJune19[[#This Row],[Alloc]]=\"UT\",tblREGASSJune19[[#This Row],[Alloc]]=\"WYU\",tblREGASSJune19[[#This Row],[Alloc]]=\"WYP\",tblREGASSJune19[[#This Row],[Alloc]]=\"CA\",tblREGASSJune19[[#This Row],[Alloc]]=\"WA\"),\"SITUS\",tblREGASSJune19[[#This Row],[Alloc]])","v":"OTHER"},{"$f":"INDEX(tblREGASSLookup[FUNC],MATCH(tblREGASSJune19[[#This Row],[Concat]],tblREGASSLookup[Concat],0))","v":"CUST"},{"$f":"IF(tblREGASSJune19[[#This Row],[Total ($000)]]=0,\"NO\",IF(ISNA(tblREGASSJune19[[#This Row],[FUNC]]),\"YES\",IF(_xlfn.ISFORMULA(tblREGASSJune19[[#This Row],[FUNC]]),\"NO\",\"YES\")))","v":"NO"}]
[{"$f":"CONCATENATE(tblREGASSJune19[[#This Row],[Primary Account]],tblREGASSJune19[[#This Row],[Primary Name]],tblREGASSJune19[[#This Row],[Secondary Acct]],tblREGASSJune19[[#This Row],[Secondary  Name]],tblREGASSJune19[[#This Row],[Alloc4FUNC]])","v":"1823920DSR COSTS AMORTIZED103354SELF DIRECT - COMMERCIAL -WY-2012 CAT3OTHER"},1823920,"DSR COSTS AMORTIZED",103354,"SELF DIRECT - COMMERCIAL -WY-2012 CAT3","OTHER",3.6276199999999998,{"$f":"IF(OR(tblREGASSJune19[[#This Row],[Alloc]]=\"IDU\",tblREGASSJune19[[#This Row],[Alloc]]=\"OR\",tblREGASSJune19[[#This Row],[Alloc]]=\"UT\",tblREGASSJune19[[#This Row],[Alloc]]=\"WYU\",tblREGASSJune19[[#This Row],[Alloc]]=\"WYP\",tblREGASSJune19[[#This Row],[Alloc]]=\"CA\",tblREGASSJune19[[#This Row],[Alloc]]=\"WA\"),\"SITUS\",tblREGASSJune19[[#This Row],[Alloc]])","v":"OTHER"},{"$f":"INDEX(tblREGASSLookup[FUNC],MATCH(tblREGASSJune19[[#This Row],[Concat]],tblREGASSLookup[Concat],0))","v":"CUST"},{"$f":"IF(tblREGASSJune19[[#This Row],[Total ($000)]]=0,\"NO\",IF(ISNA(tblREGASSJune19[[#This Row],[FUNC]]),\"YES\",IF(_xlfn.ISFORMULA(tblREGASSJune19[[#This Row],[FUNC]]),\"NO\",\"YES\")))","v":"NO"}]
[{"$f":"CONCATENATE(tblREGASSJune19[[#This Row],[Primary Account]],tblREGASSJune19[[#This Row],[Primary Name]],tblREGASSJune19[[#This Row],[Secondary Acct]],tblREGASSJune19[[#This Row],[Secondary  Name]],tblREGASSJune19[[#This Row],[Alloc4FUNC]])","v":"1823920DSR COSTS AMORTIZED103355SELF DIRECT -INDUSTRIAL -WY-2012 CAT3OTHER"},1823920,"DSR COSTS AMORTIZED",103355,"SELF DIRECT -INDUSTRIAL -WY-2012 CAT3","OTHER",60.461350000000003,{"$f":"IF(OR(tblREGASSJune19[[#This Row],[Alloc]]=\"IDU\",tblREGASSJune19[[#This Row],[Alloc]]=\"OR\",tblREGASSJune19[[#This Row],[Alloc]]=\"UT\",tblREGASSJune19[[#This Row],[Alloc]]=\"WYU\",tblREGASSJune19[[#This Row],[Alloc]]=\"WYP\",tblREGASSJune19[[#This Row],[Alloc]]=\"CA\",tblREGASSJune19[[#This Row],[Alloc]]=\"WA\"),\"SITUS\",tblREGASSJune19[[#This Row],[Alloc]])","v":"OTHER"},{"$f":"INDEX(tblREGASSLookup[FUNC],MATCH(tblREGASSJune19[[#This Row],[Concat]],tblREGASSLookup[Concat],0))","v":"CUST"},{"$f":"IF(tblREGASSJune19[[#This Row],[Total ($000)]]=0,\"NO\",IF(ISNA(tblREGASSJune19[[#This Row],[FUNC]]),\"YES\",IF(_xlfn.ISFORMULA(tblREGASSJune19[[#This Row],[FUNC]]),\"NO\",\"YES\")))","v":"NO"}]
[{"$f":"CONCATENATE(tblREGASSJune19[[#This Row],[Primary Account]],tblREGASSJune19[[#This Row],[Primary Name]],tblREGASSJune19[[#This Row],[Secondary Acct]],tblREGASSJune19[[#This Row],[Secondary  Name]],tblREGASSJune19[[#This Row],[Alloc4FUNC]])","v":"1823920DSR COSTS AMORTIZED103356COMMERCIAL FINANSWER EXP- WY-2012 CAT2OTHER"},1823920,"DSR COSTS AMORTIZED",103356,"COMMERCIAL FINANSWER EXP- WY-2012 CAT2","OTHER",1203.22327,{"$f":"IF(OR(tblREGASSJune19[[#This Row],[Alloc]]=\"IDU\",tblREGASSJune19[[#This Row],[Alloc]]=\"OR\",tblREGASSJune19[[#This Row],[Alloc]]=\"UT\",tblREGASSJune19[[#This Row],[Alloc]]=\"WYU\",tblREGASSJune19[[#This Row],[Alloc]]=\"WYP\",tblREGASSJune19[[#This Row],[Alloc]]=\"CA\",tblREGASSJune19[[#This Row],[Alloc]]=\"WA\"),\"SITUS\",tblREGASSJune19[[#This Row],[Alloc]])","v":"OTHER"},{"$f":"INDEX(tblREGASSLookup[FUNC],MATCH(tblREGASSJune19[[#This Row],[Concat]],tblREGASSLookup[Concat],0))","v":"CUST"},{"$f":"IF(tblREGASSJune19[[#This Row],[Total ($000)]]=0,\"NO\",IF(ISNA(tblREGASSJune19[[#This Row],[FUNC]]),\"YES\",IF(_xlfn.ISFORMULA(tblREGASSJune19[[#This Row],[FUNC]]),\"NO\",\"YES\")))","v":"NO"}]
[{"$f":"CONCATENATE(tblREGASSJune19[[#This Row],[Primary Account]],tblREGASSJune19[[#This Row],[Primary Name]],tblREGASSJune19[[#This Row],[Secondary Acct]],tblREGASSJune19[[#This Row],[Secondary  Name]],tblREGASSJune19[[#This Row],[Alloc4FUNC]])","v":"1823920DSR COSTS AMORTIZED103357INDUSTRIAL FINAN EXPRESS WY-2012 CAT2OTHER"},1823920,"DSR COSTS AMORTIZED",103357,"INDUSTRIAL FINAN EXPRESS WY-2012 CAT2","OTHER",58.164349999999999,{"$f":"IF(OR(tblREGASSJune19[[#This Row],[Alloc]]=\"IDU\",tblREGASSJune19[[#This Row],[Alloc]]=\"OR\",tblREGASSJune19[[#This Row],[Alloc]]=\"UT\",tblREGASSJune19[[#This Row],[Alloc]]=\"WYU\",tblREGASSJune19[[#This Row],[Alloc]]=\"WYP\",tblREGASSJune19[[#This Row],[Alloc]]=\"CA\",tblREGASSJune19[[#This Row],[Alloc]]=\"WA\"),\"SITUS\",tblREGASSJune19[[#This Row],[Alloc]])","v":"OTHER"},{"$f":"INDEX(tblREGASSLookup[FUNC],MATCH(tblREGASSJune19[[#This Row],[Concat]],tblREGASSLookup[Concat],0))","v":"CUST"},{"$f":"IF(tblREGASSJune19[[#This Row],[Total ($000)]]=0,\"NO\",IF(ISNA(tblREGASSJune19[[#This Row],[FUNC]]),\"YES\",IF(_xlfn.ISFORMULA(tblREGASSJune19[[#This Row],[FUNC]]),\"NO\",\"YES\")))","v":"NO"}]
[{"$f":"CONCATENATE(tblREGASSJune19[[#This Row],[Primary Account]],tblREGASSJune19[[#This Row],[Primary Name]],tblREGASSJune19[[#This Row],[Secondary Acct]],tblREGASSJune19[[#This Row],[Secondary  Name]],tblREGASSJune19[[#This Row],[Alloc4FUNC]])","v":"1823920DSR COSTS AMORTIZED103358ENERGY FINANSWER -WY 2012 CAT2OTHER"},1823920,"DSR COSTS AMORTIZED",103358,"ENERGY FINANSWER -WY 2012 CAT2","OTHER",59.140839999999997,{"$f":"IF(OR(tblREGASSJune19[[#This Row],[Alloc]]=\"IDU\",tblREGASSJune19[[#This Row],[Alloc]]=\"OR\",tblREGASSJune19[[#This Row],[Alloc]]=\"UT\",tblREGASSJune19[[#This Row],[Alloc]]=\"WYU\",tblREGASSJune19[[#This Row],[Alloc]]=\"WYP\",tblREGASSJune19[[#This Row],[Alloc]]=\"CA\",tblREGASSJune19[[#This Row],[Alloc]]=\"WA\"),\"SITUS\",tblREGASSJune19[[#This Row],[Alloc]])","v":"OTHER"},{"$f":"INDEX(tblREGASSLookup[FUNC],MATCH(tblREGASSJune19[[#This Row],[Concat]],tblREGASSLookup[Concat],0))","v":"CUST"},{"$f":"IF(tblREGASSJune19[[#This Row],[Total ($000)]]=0,\"NO\",IF(ISNA(tblREGASSJune19[[#This Row],[FUNC]]),\"YES\",IF(_xlfn.ISFORMULA(tblREGASSJune19[[#This Row],[FUNC]]),\"NO\",\"YES\")))","v":"NO"}]
[{"$f":"CONCATENATE(tblREGASSJune19[[#This Row],[Primary Account]],tblREGASSJune19[[#This Row],[Primary Name]],tblREGASSJune19[[#This Row],[Secondary Acct]],tblREGASSJune19[[#This Row],[Secondary  Name]],tblREGASSJune19[[#This Row],[Alloc4FUNC]])","v":"1823920DSR COSTS AMORTIZED103359INDUSTRIAL FINANSWER -WY 2012 CAT2OTHER"},1823920,"DSR COSTS AMORTIZED",103359,"INDUSTRIAL FINANSWER -WY 2012 CAT2","OTHER",204.65092000000001,{"$f":"IF(OR(tblREGASSJune19[[#This Row],[Alloc]]=\"IDU\",tblREGASSJune19[[#This Row],[Alloc]]=\"OR\",tblREGASSJune19[[#This Row],[Alloc]]=\"UT\",tblREGASSJune19[[#This Row],[Alloc]]=\"WYU\",tblREGASSJune19[[#This Row],[Alloc]]=\"WYP\",tblREGASSJune19[[#This Row],[Alloc]]=\"CA\",tblREGASSJune19[[#This Row],[Alloc]]=\"WA\"),\"SITUS\",tblREGASSJune19[[#This Row],[Alloc]])","v":"OTHER"},{"$f":"INDEX(tblREGASSLookup[FUNC],MATCH(tblREGASSJune19[[#This Row],[Concat]],tblREGASSLookup[Concat],0))","v":"CUST"},{"$f":"IF(tblREGASSJune19[[#This Row],[Total ($000)]]=0,\"NO\",IF(ISNA(tblREGASSJune19[[#This Row],[FUNC]]),\"YES\",IF(_xlfn.ISFORMULA(tblREGASSJune19[[#This Row],[FUNC]]),\"NO\",\"YES\")))","v":"NO"}]
[{"$f":"CONCATENATE(tblREGASSJune19[[#This Row],[Primary Account]],tblREGASSJune19[[#This Row],[Primary Name]],tblREGASSJune19[[#This Row],[Secondary Acct]],tblREGASSJune19[[#This Row],[Secondary  Name]],tblREGASSJune19[[#This Row],[Alloc4FUNC]])","v":"1823920DSR COSTS AMORTIZED103360SELF DIRECT - COMMERCIAL WY-2012 CAT2OTHER"},1823920,"DSR COSTS AMORTIZED",103360,"SELF DIRECT - COMMERCIAL WY-2012 CAT2","OTHER",0.89290999999999998,{"$f":"IF(OR(tblREGASSJune19[[#This Row],[Alloc]]=\"IDU\",tblREGASSJune19[[#This Row],[Alloc]]=\"OR\",tblREGASSJune19[[#This Row],[Alloc]]=\"UT\",tblREGASSJune19[[#This Row],[Alloc]]=\"WYU\",tblREGASSJune19[[#This Row],[Alloc]]=\"WYP\",tblREGASSJune19[[#This Row],[Alloc]]=\"CA\",tblREGASSJune19[[#This Row],[Alloc]]=\"WA\"),\"SITUS\",tblREGASSJune19[[#This Row],[Alloc]])","v":"OTHER"},{"$f":"INDEX(tblREGASSLookup[FUNC],MATCH(tblREGASSJune19[[#This Row],[Concat]],tblREGASSLookup[Concat],0))","v":"CUST"},{"$f":"IF(tblREGASSJune19[[#This Row],[Total ($000)]]=0,\"NO\",IF(ISNA(tblREGASSJune19[[#This Row],[FUNC]]),\"YES\",IF(_xlfn.ISFORMULA(tblREGASSJune19[[#This Row],[FUNC]]),\"NO\",\"YES\")))","v":"NO"}]
[{"$f":"CONCATENATE(tblREGASSJune19[[#This Row],[Primary Account]],tblREGASSJune19[[#This Row],[Primary Name]],tblREGASSJune19[[#This Row],[Secondary Acct]],tblREGASSJune19[[#This Row],[Secondary  Name]],tblREGASSJune19[[#This Row],[Alloc4FUNC]])","v":"1823920DSR COSTS AMORTIZED103361SELF DIRECT- INDUSTRIAL WY-2012 CAT2OTHER"},1823920,"DSR COSTS AMORTIZED",103361,"SELF DIRECT- INDUSTRIAL WY-2012 CAT2","OTHER",1.14706,{"$f":"IF(OR(tblREGASSJune19[[#This Row],[Alloc]]=\"IDU\",tblREGASSJune19[[#This Row],[Alloc]]=\"OR\",tblREGASSJune19[[#This Row],[Alloc]]=\"UT\",tblREGASSJune19[[#This Row],[Alloc]]=\"WYU\",tblREGASSJune19[[#This Row],[Alloc]]=\"WYP\",tblREGASSJune19[[#This Row],[Alloc]]=\"CA\",tblREGASSJune19[[#This Row],[Alloc]]=\"WA\"),\"SITUS\",tblREGASSJune19[[#This Row],[Alloc]])","v":"OTHER"},{"$f":"INDEX(tblREGASSLookup[FUNC],MATCH(tblREGASSJune19[[#This Row],[Concat]],tblREGASSLookup[Concat],0))","v":"CUST"},{"$f":"IF(tblREGASSJune19[[#This Row],[Total ($000)]]=0,\"NO\",IF(ISNA(tblREGASSJune19[[#This Row],[FUNC]]),\"YES\",IF(_xlfn.ISFORMULA(tblREGASSJune19[[#This Row],[FUNC]]),\"NO\",\"YES\")))","v":"NO"}]
[{"$f":"CONCATENATE(tblREGASSJune19[[#This Row],[Primary Account]],tblREGASSJune19[[#This Row],[Primary Name]],tblREGASSJune19[[#This Row],[Secondary Acct]],tblREGASSJune19[[#This Row],[Secondary  Name]],tblREGASSJune19[[#This Row],[Alloc4FUNC]])","v":"1823920DSR COSTS AMORTIZED103363PORTFOLIO WY-2012 CAT1OTHER"},1823920,"DSR COSTS AMORTIZED",103363,"PORTFOLIO WY-2012 CAT1","OTHER",32.74492,{"$f":"IF(OR(tblREGASSJune19[[#This Row],[Alloc]]=\"IDU\",tblREGASSJune19[[#This Row],[Alloc]]=\"OR\",tblREGASSJune19[[#This Row],[Alloc]]=\"UT\",tblREGASSJune19[[#This Row],[Alloc]]=\"WYU\",tblREGASSJune19[[#This Row],[Alloc]]=\"WYP\",tblREGASSJune19[[#This Row],[Alloc]]=\"CA\",tblREGASSJune19[[#This Row],[Alloc]]=\"WA\"),\"SITUS\",tblREGASSJune19[[#This Row],[Alloc]])","v":"OTHER"},{"$f":"INDEX(tblREGASSLookup[FUNC],MATCH(tblREGASSJune19[[#This Row],[Concat]],tblREGASSLookup[Concat],0))","v":"CUST"},{"$f":"IF(tblREGASSJune19[[#This Row],[Total ($000)]]=0,\"NO\",IF(ISNA(tblREGASSJune19[[#This Row],[FUNC]]),\"YES\",IF(_xlfn.ISFORMULA(tblREGASSJune19[[#This Row],[FUNC]]),\"NO\",\"YES\")))","v":"NO"}]
[{"$f":"CONCATENATE(tblREGASSJune19[[#This Row],[Primary Account]],tblREGASSJune19[[#This Row],[Primary Name]],tblREGASSJune19[[#This Row],[Secondary Acct]],tblREGASSJune19[[#This Row],[Secondary  Name]],tblREGASSJune19[[#This Row],[Alloc4FUNC]])","v":"1823920DSR COSTS AMORTIZED103364OUTREACH AND COMMUNICATION WATTSMT  WY-2OTHER"},1823920,"DSR COSTS AMORTIZED",103364,"OUTREACH AND COMMUNICATION WATTSMT  WY-2","OTHER",154.75172000000001,{"$f":"IF(OR(tblREGASSJune19[[#This Row],[Alloc]]=\"IDU\",tblREGASSJune19[[#This Row],[Alloc]]=\"OR\",tblREGASSJune19[[#This Row],[Alloc]]=\"UT\",tblREGASSJune19[[#This Row],[Alloc]]=\"WYU\",tblREGASSJune19[[#This Row],[Alloc]]=\"WYP\",tblREGASSJune19[[#This Row],[Alloc]]=\"CA\",tblREGASSJune19[[#This Row],[Alloc]]=\"WA\"),\"SITUS\",tblREGASSJune19[[#This Row],[Alloc]])","v":"OTHER"},{"$f":"INDEX(tblREGASSLookup[FUNC],MATCH(tblREGASSJune19[[#This Row],[Concat]],tblREGASSLookup[Concat],0))","v":"CUST"},{"$f":"IF(tblREGASSJune19[[#This Row],[Total ($000)]]=0,\"NO\",IF(ISNA(tblREGASSJune19[[#This Row],[FUNC]]),\"YES\",IF(_xlfn.ISFORMULA(tblREGASSJune19[[#This Row],[FUNC]]),\"NO\",\"YES\")))","v":"NO"}]
[{"$f":"CONCATENATE(tblREGASSJune19[[#This Row],[Primary Account]],tblREGASSJune19[[#This Row],[Primary Name]],tblREGASSJune19[[#This Row],[Secondary Acct]],tblREGASSJune19[[#This Row],[Secondary  Name]],tblREGASSJune19[[#This Row],[Alloc4FUNC]])","v":"1823920DSR COSTS AMORTIZED103365AGRICULURAL FINANSWER EXP WY-2012 CAT2OTHER"},1823920,"DSR COSTS AMORTIZED",103365,"AGRICULURAL FINANSWER EXP WY-2012 CAT2","OTHER",0.59624999999999995,{"$f":"IF(OR(tblREGASSJune19[[#This Row],[Alloc]]=\"IDU\",tblREGASSJune19[[#This Row],[Alloc]]=\"OR\",tblREGASSJune19[[#This Row],[Alloc]]=\"UT\",tblREGASSJune19[[#This Row],[Alloc]]=\"WYU\",tblREGASSJune19[[#This Row],[Alloc]]=\"WYP\",tblREGASSJune19[[#This Row],[Alloc]]=\"CA\",tblREGASSJune19[[#This Row],[Alloc]]=\"WA\"),\"SITUS\",tblREGASSJune19[[#This Row],[Alloc]])","v":"OTHER"},{"$f":"INDEX(tblREGASSLookup[FUNC],MATCH(tblREGASSJune19[[#This Row],[Concat]],tblREGASSLookup[Concat],0))","v":"CUST"},{"$f":"IF(tblREGASSJune19[[#This Row],[Total ($000)]]=0,\"NO\",IF(ISNA(tblREGASSJune19[[#This Row],[FUNC]]),\"YES\",IF(_xlfn.ISFORMULA(tblREGASSJune19[[#This Row],[FUNC]]),\"NO\",\"YES\")))","v":"NO"}]
[{"$f":"CONCATENATE(tblREGASSJune19[[#This Row],[Primary Account]],tblREGASSJune19[[#This Row],[Primary Name]],tblREGASSJune19[[#This Row],[Secondary Acct]],tblREGASSJune19[[#This Row],[Secondary  Name]],tblREGASSJune19[[#This Row],[Alloc4FUNC]])","v":"1823920DSR COSTS AMORTIZED103366AGRICULURAL FINANSWER EXP WY-2012 CAT3OTHER"},1823920,"DSR COSTS AMORTIZED",103366,"AGRICULURAL FINANSWER EXP WY-2012 CAT3","OTHER",7.7400000000000004E-3,{"$f":"IF(OR(tblREGASSJune19[[#This Row],[Alloc]]=\"IDU\",tblREGASSJune19[[#This Row],[Alloc]]=\"OR\",tblREGASSJune19[[#This Row],[Alloc]]=\"UT\",tblREGASSJune19[[#This Row],[Alloc]]=\"WYU\",tblREGASSJune19[[#This Row],[Alloc]]=\"WYP\",tblREGASSJune19[[#This Row],[Alloc]]=\"CA\",tblREGASSJune19[[#This Row],[Alloc]]=\"WA\"),\"SITUS\",tblREGASSJune19[[#This Row],[Alloc]])","v":"OTHER"},{"$f":"INDEX(tblREGASSLookup[FUNC],MATCH(tblREGASSJune19[[#This Row],[Concat]],tblREGASSLookup[Concat],0))","v":"CUST"},{"$f":"IF(tblREGASSJune19[[#This Row],[Total ($000)]]=0,\"NO\",IF(ISNA(tblREGASSJune19[[#This Row],[FUNC]]),\"YES\",IF(_xlfn.ISFORMULA(tblREGASSJune19[[#This Row],[FUNC]]),\"NO\",\"YES\")))","v":"NO"}]
[{"$f":"CONCATENATE(tblREGASSJune19[[#This Row],[Primary Account]],tblREGASSJune19[[#This Row],[Primary Name]],tblREGASSJune19[[#This Row],[Secondary Acct]],tblREGASSJune19[[#This Row],[Secondary  Name]],tblREGASSJune19[[#This Row],[Alloc4FUNC]])","v":"1823920DSR COSTS AMORTIZED103367PORTFOLIO WY-2012 CAT2OTHER"},1823920,"DSR COSTS AMORTIZED",103367,"PORTFOLIO WY-2012 CAT2","OTHER",34.96707,{"$f":"IF(OR(tblREGASSJune19[[#This Row],[Alloc]]=\"IDU\",tblREGASSJune19[[#This Row],[Alloc]]=\"OR\",tblREGASSJune19[[#This Row],[Alloc]]=\"UT\",tblREGASSJune19[[#This Row],[Alloc]]=\"WYU\",tblREGASSJune19[[#This Row],[Alloc]]=\"WYP\",tblREGASSJune19[[#This Row],[Alloc]]=\"CA\",tblREGASSJune19[[#This Row],[Alloc]]=\"WA\"),\"SITUS\",tblREGASSJune19[[#This Row],[Alloc]])","v":"OTHER"},{"$f":"INDEX(tblREGASSLookup[FUNC],MATCH(tblREGASSJune19[[#This Row],[Concat]],tblREGASSLookup[Concat],0))","v":"CUST"},{"$f":"IF(tblREGASSJune19[[#This Row],[Total ($000)]]=0,\"NO\",IF(ISNA(tblREGASSJune19[[#This Row],[FUNC]]),\"YES\",IF(_xlfn.ISFORMULA(tblREGASSJune19[[#This Row],[FUNC]]),\"NO\",\"YES\")))","v":"NO"}]
[{"$f":"CONCATENATE(tblREGASSJune19[[#This Row],[Primary Account]],tblREGASSJune19[[#This Row],[Primary Name]],tblREGASSJune19[[#This Row],[Secondary Acct]],tblREGASSJune19[[#This Row],[Secondary  Name]],tblREGASSJune19[[#This Row],[Alloc4FUNC]])","v":"1823920DSR COSTS AMORTIZED103368PORTFOLIO WY-2012 CAT3OTHER"},1823920,"DSR COSTS AMORTIZED",103368,"PORTFOLIO WY-2012 CAT3","OTHER",29.709720000000001,{"$f":"IF(OR(tblREGASSJune19[[#This Row],[Alloc]]=\"IDU\",tblREGASSJune19[[#This Row],[Alloc]]=\"OR\",tblREGASSJune19[[#This Row],[Alloc]]=\"UT\",tblREGASSJune19[[#This Row],[Alloc]]=\"WYU\",tblREGASSJune19[[#This Row],[Alloc]]=\"WYP\",tblREGASSJune19[[#This Row],[Alloc]]=\"CA\",tblREGASSJune19[[#This Row],[Alloc]]=\"WA\"),\"SITUS\",tblREGASSJune19[[#This Row],[Alloc]])","v":"OTHER"},{"$f":"INDEX(tblREGASSLookup[FUNC],MATCH(tblREGASSJune19[[#This Row],[Concat]],tblREGASSLookup[Concat],0))","v":"CUST"},{"$f":"IF(tblREGASSJune19[[#This Row],[Total ($000)]]=0,\"NO\",IF(ISNA(tblREGASSJune19[[#This Row],[FUNC]]),\"YES\",IF(_xlfn.ISFORMULA(tblREGASSJune19[[#This Row],[FUNC]]),\"NO\",\"YES\")))","v":"NO"}]
[{"$f":"CONCATENATE(tblREGASSJune19[[#This Row],[Primary Account]],tblREGASSJune19[[#This Row],[Primary Name]],tblREGASSJune19[[#This Row],[Secondary Acct]],tblREGASSJune19[[#This Row],[Secondary  Name]],tblREGASSJune19[[#This Row],[Alloc4FUNC]])","v":"1823920DSR COSTS AMORTIZED103369COMMERCIAL CURTAILMENT - OR 2012OTHER"},1823920,"DSR COSTS AMORTIZED",103369,"COMMERCIAL CURTAILMENT - OR 2012","OTHER",-26.626629999999999,{"$f":"IF(OR(tblREGASSJune19[[#This Row],[Alloc]]=\"IDU\",tblREGASSJune19[[#This Row],[Alloc]]=\"OR\",tblREGASSJune19[[#This Row],[Alloc]]=\"UT\",tblREGASSJune19[[#This Row],[Alloc]]=\"WYU\",tblREGASSJune19[[#This Row],[Alloc]]=\"WYP\",tblREGASSJune19[[#This Row],[Alloc]]=\"CA\",tblREGASSJune19[[#This Row],[Alloc]]=\"WA\"),\"SITUS\",tblREGASSJune19[[#This Row],[Alloc]])","v":"OTHER"},{"$f":"INDEX(tblREGASSLookup[FUNC],MATCH(tblREGASSJune19[[#This Row],[Concat]],tblREGASSLookup[Concat],0))","v":"CUST"},{"$f":"IF(tblREGASSJune19[[#This Row],[Total ($000)]]=0,\"NO\",IF(ISNA(tblREGASSJune19[[#This Row],[FUNC]]),\"YES\",IF(_xlfn.ISFORMULA(tblREGASSJune19[[#This Row],[FUNC]]),\"NO\",\"YES\")))","v":"NO"}]
[{"$f":"CONCATENATE(tblREGASSJune19[[#This Row],[Primary Account]],tblREGASSJune19[[#This Row],[Primary Name]],tblREGASSJune19[[#This Row],[Secondary Acct]],tblREGASSJune19[[#This Row],[Secondary  Name]],tblREGASSJune19[[#This Row],[Alloc4FUNC]])","v":"1823920DSR COSTS AMORTIZED103493U.of Utah Student Energy Sponsorship- UTOTHER"},1823920,"DSR COSTS AMORTIZED",103493,"U.of Utah Student Energy Sponsorship- UT","OTHER",7.7960000000000003,{"$f":"IF(OR(tblREGASSJune19[[#This Row],[Alloc]]=\"IDU\",tblREGASSJune19[[#This Row],[Alloc]]=\"OR\",tblREGASSJune19[[#This Row],[Alloc]]=\"UT\",tblREGASSJune19[[#This Row],[Alloc]]=\"WYU\",tblREGASSJune19[[#This Row],[Alloc]]=\"WYP\",tblREGASSJune19[[#This Row],[Alloc]]=\"CA\",tblREGASSJune19[[#This Row],[Alloc]]=\"WA\"),\"SITUS\",tblREGASSJune19[[#This Row],[Alloc]])","v":"OTHER"},{"$f":"INDEX(tblREGASSLookup[FUNC],MATCH(tblREGASSJune19[[#This Row],[Concat]],tblREGASSLookup[Concat],0))","v":"CUST"},{"$f":"IF(tblREGASSJune19[[#This Row],[Total ($000)]]=0,\"NO\",IF(ISNA(tblREGASSJune19[[#This Row],[FUNC]]),\"YES\",IF(_xlfn.ISFORMULA(tblREGASSJune19[[#This Row],[FUNC]]),\"NO\",\"YES\")))","v":"NO"}]
[{"$f":"CONCATENATE(tblREGASSJune19[[#This Row],[Primary Account]],tblREGASSJune19[[#This Row],[Primary Name]],tblREGASSJune19[[#This Row],[Secondary Acct]],tblREGASSJune19[[#This Row],[Secondary  Name]],tblREGASSJune19[[#This Row],[Alloc4FUNC]])","v":"1823920DSR COSTS AMORTIZED103496PORTFOLIO - IDAHOOTHER"},1823920,"DSR COSTS AMORTIZED",103496,"PORTFOLIO - IDAHO","OTHER",2.48142,{"$f":"IF(OR(tblREGASSJune19[[#This Row],[Alloc]]=\"IDU\",tblREGASSJune19[[#This Row],[Alloc]]=\"OR\",tblREGASSJune19[[#This Row],[Alloc]]=\"UT\",tblREGASSJune19[[#This Row],[Alloc]]=\"WYU\",tblREGASSJune19[[#This Row],[Alloc]]=\"WYP\",tblREGASSJune19[[#This Row],[Alloc]]=\"CA\",tblREGASSJune19[[#This Row],[Alloc]]=\"WA\"),\"SITUS\",tblREGASSJune19[[#This Row],[Alloc]])","v":"OTHER"},{"$f":"INDEX(tblREGASSLookup[FUNC],MATCH(tblREGASSJune19[[#This Row],[Concat]],tblREGASSLookup[Concat],0))","v":"CUST"},{"$f":"IF(tblREGASSJune19[[#This Row],[Total ($000)]]=0,\"NO\",IF(ISNA(tblREGASSJune19[[#This Row],[FUNC]]),\"YES\",IF(_xlfn.ISFORMULA(tblREGASSJune19[[#This Row],[FUNC]]),\"NO\",\"YES\")))","v":"NO"}]
[{"$f":"CONCATENATE(tblREGASSJune19[[#This Row],[Primary Account]],tblREGASSJune19[[#This Row],[Primary Name]],tblREGASSJune19[[#This Row],[Secondary Acct]],tblREGASSJune19[[#This Row],[Secondary  Name]],tblREGASSJune19[[#This Row],[Alloc4FUNC]])","v":"1823920DSR COSTS AMORTIZED103497PORTFOLIO - UTAHOTHER"},1823920,"DSR COSTS AMORTIZED",103497,"PORTFOLIO - UTAH","OTHER",42.010570000000001,{"$f":"IF(OR(tblREGASSJune19[[#This Row],[Alloc]]=\"IDU\",tblREGASSJune19[[#This Row],[Alloc]]=\"OR\",tblREGASSJune19[[#This Row],[Alloc]]=\"UT\",tblREGASSJune19[[#This Row],[Alloc]]=\"WYU\",tblREGASSJune19[[#This Row],[Alloc]]=\"WYP\",tblREGASSJune19[[#This Row],[Alloc]]=\"CA\",tblREGASSJune19[[#This Row],[Alloc]]=\"WA\"),\"SITUS\",tblREGASSJune19[[#This Row],[Alloc]])","v":"OTHER"},{"$f":"INDEX(tblREGASSLookup[FUNC],MATCH(tblREGASSJune19[[#This Row],[Concat]],tblREGASSLookup[Concat],0))","v":"CUST"},{"$f":"IF(tblREGASSJune19[[#This Row],[Total ($000)]]=0,\"NO\",IF(ISNA(tblREGASSJune19[[#This Row],[FUNC]]),\"YES\",IF(_xlfn.ISFORMULA(tblREGASSJune19[[#This Row],[FUNC]]),\"NO\",\"YES\")))","v":"NO"}]
[{"$f":"CONCATENATE(tblREGASSJune19[[#This Row],[Primary Account]],tblREGASSJune19[[#This Row],[Primary Name]],tblREGASSJune19[[#This Row],[Secondary Acct]],tblREGASSJune19[[#This Row],[Secondary  Name]],tblREGASSJune19[[#This Row],[Alloc4FUNC]])","v":"1823920DSR COSTS AMORTIZED103623CALIFORNIA DSM EXPENSE - 2013OTHER"},1823920,"DSR COSTS AMORTIZED",103623,"CALIFORNIA DSM EXPENSE - 2013","OTHER",1.0000000000000001E-5,{"$f":"IF(OR(tblREGASSJune19[[#This Row],[Alloc]]=\"IDU\",tblREGASSJune19[[#This Row],[Alloc]]=\"OR\",tblREGASSJune19[[#This Row],[Alloc]]=\"UT\",tblREGASSJune19[[#This Row],[Alloc]]=\"WYU\",tblREGASSJune19[[#This Row],[Alloc]]=\"WYP\",tblREGASSJune19[[#This Row],[Alloc]]=\"CA\",tblREGASSJune19[[#This Row],[Alloc]]=\"WA\"),\"SITUS\",tblREGASSJune19[[#This Row],[Alloc]])","v":"OTHER"},{"$f":"INDEX(tblREGASSLookup[FUNC],MATCH(tblREGASSJune19[[#This Row],[Concat]],tblREGASSLookup[Concat],0))","v":"CUST"},{"$f":"IF(tblREGASSJune19[[#This Row],[Total ($000)]]=0,\"NO\",IF(ISNA(tblREGASSJune19[[#This Row],[FUNC]]),\"YES\",IF(_xlfn.ISFORMULA(tblREGASSJune19[[#This Row],[FUNC]]),\"NO\",\"YES\")))","v":"NO"}]
[{"$f":"CONCATENATE(tblREGASSJune19[[#This Row],[Primary Account]],tblREGASSJune19[[#This Row],[Primary Name]],tblREGASSJune19[[#This Row],[Secondary Acct]],tblREGASSJune19[[#This Row],[Secondary  Name]],tblREGASSJune19[[#This Row],[Alloc4FUNC]])","v":"1823920DSR COSTS AMORTIZED103646PORTFOLIO - IDAHO 2013OTHER"},1823920,"DSR COSTS AMORTIZED",103646,"PORTFOLIO - IDAHO 2013","OTHER",38.10718,{"$f":"IF(OR(tblREGASSJune19[[#This Row],[Alloc]]=\"IDU\",tblREGASSJune19[[#This Row],[Alloc]]=\"OR\",tblREGASSJune19[[#This Row],[Alloc]]=\"UT\",tblREGASSJune19[[#This Row],[Alloc]]=\"WYU\",tblREGASSJune19[[#This Row],[Alloc]]=\"WYP\",tblREGASSJune19[[#This Row],[Alloc]]=\"CA\",tblREGASSJune19[[#This Row],[Alloc]]=\"WA\"),\"SITUS\",tblREGASSJune19[[#This Row],[Alloc]])","v":"OTHER"},{"$f":"INDEX(tblREGASSLookup[FUNC],MATCH(tblREGASSJune19[[#This Row],[Concat]],tblREGASSLookup[Concat],0))","v":"CUST"},{"$f":"IF(tblREGASSJune19[[#This Row],[Total ($000)]]=0,\"NO\",IF(ISNA(tblREGASSJune19[[#This Row],[FUNC]]),\"YES\",IF(_xlfn.ISFORMULA(tblREGASSJune19[[#This Row],[FUNC]]),\"NO\",\"YES\")))","v":"NO"}]
[{"$f":"CONCATENATE(tblREGASSJune19[[#This Row],[Primary Account]],tblREGASSJune19[[#This Row],[Primary Name]],tblREGASSJune19[[#This Row],[Secondary Acct]],tblREGASSJune19[[#This Row],[Secondary  Name]],tblREGASSJune19[[#This Row],[Alloc4FUNC]])","v":"1823920DSR COSTS AMORTIZED103647A/C LOAD CONTROL - RESIDENTIAL/UTAH - 20OTHER"},1823920,"DSR COSTS AMORTIZED",103647,"A/C LOAD CONTROL - RESIDENTIAL/UTAH - 20","OTHER",10293.442940000001,{"$f":"IF(OR(tblREGASSJune19[[#This Row],[Alloc]]=\"IDU\",tblREGASSJune19[[#This Row],[Alloc]]=\"OR\",tblREGASSJune19[[#This Row],[Alloc]]=\"UT\",tblREGASSJune19[[#This Row],[Alloc]]=\"WYU\",tblREGASSJune19[[#This Row],[Alloc]]=\"WYP\",tblREGASSJune19[[#This Row],[Alloc]]=\"CA\",tblREGASSJune19[[#This Row],[Alloc]]=\"WA\"),\"SITUS\",tblREGASSJune19[[#This Row],[Alloc]])","v":"OTHER"},{"$f":"INDEX(tblREGASSLookup[FUNC],MATCH(tblREGASSJune19[[#This Row],[Concat]],tblREGASSLookup[Concat],0))","v":"CUST"},{"$f":"IF(tblREGASSJune19[[#This Row],[Total ($000)]]=0,\"NO\",IF(ISNA(tblREGASSJune19[[#This Row],[FUNC]]),\"YES\",IF(_xlfn.ISFORMULA(tblREGASSJune19[[#This Row],[FUNC]]),\"NO\",\"YES\")))","v":"NO"}]
[{"$f":"CONCATENATE(tblREGASSJune19[[#This Row],[Primary Account]],tblREGASSJune19[[#This Row],[Primary Name]],tblREGASSJune19[[#This Row],[Secondary Acct]],tblREGASSJune19[[#This Row],[Secondary  Name]],tblREGASSJune19[[#This Row],[Alloc4FUNC]])","v":"1823920DSR COSTS AMORTIZED103648AIR CONDITIONING - UTAH - 2013OTHER"},1823920,"DSR COSTS AMORTIZED",103648,"AIR CONDITIONING - UTAH - 2013","OTHER",66.270449999999997,{"$f":"IF(OR(tblREGASSJune19[[#This Row],[Alloc]]=\"IDU\",tblREGASSJune19[[#This Row],[Alloc]]=\"OR\",tblREGASSJune19[[#This Row],[Alloc]]=\"UT\",tblREGASSJune19[[#This Row],[Alloc]]=\"WYU\",tblREGASSJune19[[#This Row],[Alloc]]=\"WYP\",tblREGASSJune19[[#This Row],[Alloc]]=\"CA\",tblREGASSJune19[[#This Row],[Alloc]]=\"WA\"),\"SITUS\",tblREGASSJune19[[#This Row],[Alloc]])","v":"OTHER"},{"$f":"INDEX(tblREGASSLookup[FUNC],MATCH(tblREGASSJune19[[#This Row],[Concat]],tblREGASSLookup[Concat],0))","v":"CUST"},{"$f":"IF(tblREGASSJune19[[#This Row],[Total ($000)]]=0,\"NO\",IF(ISNA(tblREGASSJune19[[#This Row],[FUNC]]),\"YES\",IF(_xlfn.ISFORMULA(tblREGASSJune19[[#This Row],[FUNC]]),\"NO\",\"YES\")))","v":"NO"}]
[{"$f":"CONCATENATE(tblREGASSJune19[[#This Row],[Primary Account]],tblREGASSJune19[[#This Row],[Primary Name]],tblREGASSJune19[[#This Row],[Secondary Acct]],tblREGASSJune19[[#This Row],[Secondary  Name]],tblREGASSJune19[[#This Row],[Alloc4FUNC]])","v":"1823920DSR COSTS AMORTIZED103649ENERGY FINANSWER - UTAH - 2013OTHER"},1823920,"DSR COSTS AMORTIZED",103649,"ENERGY FINANSWER - UTAH - 2013","OTHER",1444.7774899999999,{"$f":"IF(OR(tblREGASSJune19[[#This Row],[Alloc]]=\"IDU\",tblREGASSJune19[[#This Row],[Alloc]]=\"OR\",tblREGASSJune19[[#This Row],[Alloc]]=\"UT\",tblREGASSJune19[[#This Row],[Alloc]]=\"WYU\",tblREGASSJune19[[#This Row],[Alloc]]=\"WYP\",tblREGASSJune19[[#This Row],[Alloc]]=\"CA\",tblREGASSJune19[[#This Row],[Alloc]]=\"WA\"),\"SITUS\",tblREGASSJune19[[#This Row],[Alloc]])","v":"OTHER"},{"$f":"INDEX(tblREGASSLookup[FUNC],MATCH(tblREGASSJune19[[#This Row],[Concat]],tblREGASSLookup[Concat],0))","v":"CUST"},{"$f":"IF(tblREGASSJune19[[#This Row],[Total ($000)]]=0,\"NO\",IF(ISNA(tblREGASSJune19[[#This Row],[FUNC]]),\"YES\",IF(_xlfn.ISFORMULA(tblREGASSJune19[[#This Row],[FUNC]]),\"NO\",\"YES\")))","v":"NO"}]
[{"$f":"CONCATENATE(tblREGASSJune19[[#This Row],[Primary Account]],tblREGASSJune19[[#This Row],[Primary Name]],tblREGASSJune19[[#This Row],[Secondary Acct]],tblREGASSJune19[[#This Row],[Secondary  Name]],tblREGASSJune19[[#This Row],[Alloc4FUNC]])","v":"1823920DSR COSTS AMORTIZED103650INDUSTRIAL FINANSWER - UTAH - 2013OTHER"},1823920,"DSR COSTS AMORTIZED",103650,"INDUSTRIAL FINANSWER - UTAH - 2013","OTHER",2168.27189,{"$f":"IF(OR(tblREGASSJune19[[#This Row],[Alloc]]=\"IDU\",tblREGASSJune19[[#This Row],[Alloc]]=\"OR\",tblREGASSJune19[[#This Row],[Alloc]]=\"UT\",tblREGASSJune19[[#This Row],[Alloc]]=\"WYU\",tblREGASSJune19[[#This Row],[Alloc]]=\"WYP\",tblREGASSJune19[[#This Row],[Alloc]]=\"CA\",tblREGASSJune19[[#This Row],[Alloc]]=\"WA\"),\"SITUS\",tblREGASSJune19[[#This Row],[Alloc]])","v":"OTHER"},{"$f":"INDEX(tblREGASSLookup[FUNC],MATCH(tblREGASSJune19[[#This Row],[Concat]],tblREGASSLookup[Concat],0))","v":"CUST"},{"$f":"IF(tblREGASSJune19[[#This Row],[Total ($000)]]=0,\"NO\",IF(ISNA(tblREGASSJune19[[#This Row],[FUNC]]),\"YES\",IF(_xlfn.ISFORMULA(tblREGASSJune19[[#This Row],[FUNC]]),\"NO\",\"YES\")))","v":"NO"}]
[{"$f":"CONCATENATE(tblREGASSJune19[[#This Row],[Primary Account]],tblREGASSJune19[[#This Row],[Primary Name]],tblREGASSJune19[[#This Row],[Secondary Acct]],tblREGASSJune19[[#This Row],[Secondary  Name]],tblREGASSJune19[[#This Row],[Alloc4FUNC]])","v":"1823920DSR COSTS AMORTIZED103651LOW INCOME - UTAH - 2013OTHER"},1823920,"DSR COSTS AMORTIZED",103651,"LOW INCOME - UTAH - 2013","OTHER",119.81564,{"$f":"IF(OR(tblREGASSJune19[[#This Row],[Alloc]]=\"IDU\",tblREGASSJune19[[#This Row],[Alloc]]=\"OR\",tblREGASSJune19[[#This Row],[Alloc]]=\"UT\",tblREGASSJune19[[#This Row],[Alloc]]=\"WYU\",tblREGASSJune19[[#This Row],[Alloc]]=\"WYP\",tblREGASSJune19[[#This Row],[Alloc]]=\"CA\",tblREGASSJune19[[#This Row],[Alloc]]=\"WA\"),\"SITUS\",tblREGASSJune19[[#This Row],[Alloc]])","v":"OTHER"},{"$f":"INDEX(tblREGASSLookup[FUNC],MATCH(tblREGASSJune19[[#This Row],[Concat]],tblREGASSLookup[Concat],0))","v":"CUST"},{"$f":"IF(tblREGASSJune19[[#This Row],[Total ($000)]]=0,\"NO\",IF(ISNA(tblREGASSJune19[[#This Row],[FUNC]]),\"YES\",IF(_xlfn.ISFORMULA(tblREGASSJune19[[#This Row],[FUNC]]),\"NO\",\"YES\")))","v":"NO"}]
[{"$f":"CONCATENATE(tblREGASSJune19[[#This Row],[Primary Account]],tblREGASSJune19[[#This Row],[Primary Name]],tblREGASSJune19[[#This Row],[Secondary Acct]],tblREGASSJune19[[#This Row],[Secondary  Name]],tblREGASSJune19[[#This Row],[Alloc4FUNC]])","v":"1823920DSR COSTS AMORTIZED103653REFRIGERATOR RECYCLING PGM- UTAH - 2013OTHER"},1823920,"DSR COSTS AMORTIZED",103653,"REFRIGERATOR RECYCLING PGM- UTAH - 2013","OTHER",1543.8144400000001,{"$f":"IF(OR(tblREGASSJune19[[#This Row],[Alloc]]=\"IDU\",tblREGASSJune19[[#This Row],[Alloc]]=\"OR\",tblREGASSJune19[[#This Row],[Alloc]]=\"UT\",tblREGASSJune19[[#This Row],[Alloc]]=\"WYU\",tblREGASSJune19[[#This Row],[Alloc]]=\"WYP\",tblREGASSJune19[[#This Row],[Alloc]]=\"CA\",tblREGASSJune19[[#This Row],[Alloc]]=\"WA\"),\"SITUS\",tblREGASSJune19[[#This Row],[Alloc]])","v":"OTHER"},{"$f":"INDEX(tblREGASSLookup[FUNC],MATCH(tblREGASSJune19[[#This Row],[Concat]],tblREGASSLookup[Concat],0))","v":"CUST"},{"$f":"IF(tblREGASSJune19[[#This Row],[Total ($000)]]=0,\"NO\",IF(ISNA(tblREGASSJune19[[#This Row],[FUNC]]),\"YES\",IF(_xlfn.ISFORMULA(tblREGASSJune19[[#This Row],[FUNC]]),\"NO\",\"YES\")))","v":"NO"}]
[{"$f":"CONCATENATE(tblREGASSJune19[[#This Row],[Primary Account]],tblREGASSJune19[[#This Row],[Primary Name]],tblREGASSJune19[[#This Row],[Secondary Acct]],tblREGASSJune19[[#This Row],[Secondary  Name]],tblREGASSJune19[[#This Row],[Alloc4FUNC]])","v":"1823920DSR COSTS AMORTIZED103654COMMERCIAL SELF-DIRECT - UTAH - 2013OTHER"},1823920,"DSR COSTS AMORTIZED",103654,"COMMERCIAL SELF-DIRECT - UTAH - 2013","OTHER",115.78887,{"$f":"IF(OR(tblREGASSJune19[[#This Row],[Alloc]]=\"IDU\",tblREGASSJune19[[#This Row],[Alloc]]=\"OR\",tblREGASSJune19[[#This Row],[Alloc]]=\"UT\",tblREGASSJune19[[#This Row],[Alloc]]=\"WYU\",tblREGASSJune19[[#This Row],[Alloc]]=\"WYP\",tblREGASSJune19[[#This Row],[Alloc]]=\"CA\",tblREGASSJune19[[#This Row],[Alloc]]=\"WA\"),\"SITUS\",tblREGASSJune19[[#This Row],[Alloc]])","v":"OTHER"},{"$f":"INDEX(tblREGASSLookup[FUNC],MATCH(tblREGASSJune19[[#This Row],[Concat]],tblREGASSLookup[Concat],0))","v":"CUST"},{"$f":"IF(tblREGASSJune19[[#This Row],[Total ($000)]]=0,\"NO\",IF(ISNA(tblREGASSJune19[[#This Row],[FUNC]]),\"YES\",IF(_xlfn.ISFORMULA(tblREGASSJune19[[#This Row],[FUNC]]),\"NO\",\"YES\")))","v":"NO"}]
[{"$f":"CONCATENATE(tblREGASSJune19[[#This Row],[Primary Account]],tblREGASSJune19[[#This Row],[Primary Name]],tblREGASSJune19[[#This Row],[Secondary Acct]],tblREGASSJune19[[#This Row],[Secondary  Name]],tblREGASSJune19[[#This Row],[Alloc4FUNC]])","v":"1823920DSR COSTS AMORTIZED103655INDUSTRIAL SELF-DIRECT - UTAH - 2013OTHER"},1823920,"DSR COSTS AMORTIZED",103655,"INDUSTRIAL SELF-DIRECT - UTAH - 2013","OTHER",318.8664,{"$f":"IF(OR(tblREGASSJune19[[#This Row],[Alloc]]=\"IDU\",tblREGASSJune19[[#This Row],[Alloc]]=\"OR\",tblREGASSJune19[[#This Row],[Alloc]]=\"UT\",tblREGASSJune19[[#This Row],[Alloc]]=\"WYU\",tblREGASSJune19[[#This Row],[Alloc]]=\"WYP\",tblREGASSJune19[[#This Row],[Alloc]]=\"CA\",tblREGASSJune19[[#This Row],[Alloc]]=\"WA\"),\"SITUS\",tblREGASSJune19[[#This Row],[Alloc]])","v":"OTHER"},{"$f":"INDEX(tblREGASSLookup[FUNC],MATCH(tblREGASSJune19[[#This Row],[Concat]],tblREGASSLookup[Concat],0))","v":"CUST"},{"$f":"IF(tblREGASSJune19[[#This Row],[Total ($000)]]=0,\"NO\",IF(ISNA(tblREGASSJune19[[#This Row],[FUNC]]),\"YES\",IF(_xlfn.ISFORMULA(tblREGASSJune19[[#This Row],[FUNC]]),\"NO\",\"YES\")))","v":"NO"}]
[{"$f":"CONCATENATE(tblREGASSJune19[[#This Row],[Primary Account]],tblREGASSJune19[[#This Row],[Primary Name]],tblREGASSJune19[[#This Row],[Secondary Acct]],tblREGASSJune19[[#This Row],[Secondary  Name]],tblREGASSJune19[[#This Row],[Alloc4FUNC]])","v":"1823920DSR COSTS AMORTIZED103656RESIDENTIAL NEW CONSTRUCTION - UTAH - 20OTHER"},1823920,"DSR COSTS AMORTIZED",103656,"RESIDENTIAL NEW CONSTRUCTION - UTAH - 20","OTHER",1313.7971199999999,{"$f":"IF(OR(tblREGASSJune19[[#This Row],[Alloc]]=\"IDU\",tblREGASSJune19[[#This Row],[Alloc]]=\"OR\",tblREGASSJune19[[#This Row],[Alloc]]=\"UT\",tblREGASSJune19[[#This Row],[Alloc]]=\"WYU\",tblREGASSJune19[[#This Row],[Alloc]]=\"WYP\",tblREGASSJune19[[#This Row],[Alloc]]=\"CA\",tblREGASSJune19[[#This Row],[Alloc]]=\"WA\"),\"SITUS\",tblREGASSJune19[[#This Row],[Alloc]])","v":"OTHER"},{"$f":"INDEX(tblREGASSLookup[FUNC],MATCH(tblREGASSJune19[[#This Row],[Concat]],tblREGASSLookup[Concat],0))","v":"CUST"},{"$f":"IF(tblREGASSJune19[[#This Row],[Total ($000)]]=0,\"NO\",IF(ISNA(tblREGASSJune19[[#This Row],[FUNC]]),\"YES\",IF(_xlfn.ISFORMULA(tblREGASSJune19[[#This Row],[FUNC]]),\"NO\",\"YES\")))","v":"NO"}]
[{"$f":"CONCATENATE(tblREGASSJune19[[#This Row],[Primary Account]],tblREGASSJune19[[#This Row],[Primary Name]],tblREGASSJune19[[#This Row],[Secondary Acct]],tblREGASSJune19[[#This Row],[Secondary  Name]],tblREGASSJune19[[#This Row],[Alloc4FUNC]])","v":"1823920DSR COSTS AMORTIZED103657COMMERCIAL FINANSWER EXPRESS - UTAH - 20OTHER"},1823920,"DSR COSTS AMORTIZED",103657,"COMMERCIAL FINANSWER EXPRESS - UTAH - 20","OTHER",8289.5647200000003,{"$f":"IF(OR(tblREGASSJune19[[#This Row],[Alloc]]=\"IDU\",tblREGASSJune19[[#This Row],[Alloc]]=\"OR\",tblREGASSJune19[[#This Row],[Alloc]]=\"UT\",tblREGASSJune19[[#This Row],[Alloc]]=\"WYU\",tblREGASSJune19[[#This Row],[Alloc]]=\"WYP\",tblREGASSJune19[[#This Row],[Alloc]]=\"CA\",tblREGASSJune19[[#This Row],[Alloc]]=\"WA\"),\"SITUS\",tblREGASSJune19[[#This Row],[Alloc]])","v":"OTHER"},{"$f":"INDEX(tblREGASSLookup[FUNC],MATCH(tblREGASSJune19[[#This Row],[Concat]],tblREGASSLookup[Concat],0))","v":"CUST"},{"$f":"IF(tblREGASSJune19[[#This Row],[Total ($000)]]=0,\"NO\",IF(ISNA(tblREGASSJune19[[#This Row],[FUNC]]),\"YES\",IF(_xlfn.ISFORMULA(tblREGASSJune19[[#This Row],[FUNC]]),\"NO\",\"YES\")))","v":"NO"}]
[{"$f":"CONCATENATE(tblREGASSJune19[[#This Row],[Primary Account]],tblREGASSJune19[[#This Row],[Primary Name]],tblREGASSJune19[[#This Row],[Secondary Acct]],tblREGASSJune19[[#This Row],[Secondary  Name]],tblREGASSJune19[[#This Row],[Alloc4FUNC]])","v":"1823920DSR COSTS AMORTIZED103658INDUSTRIAL FINANSWER EXPRESS - UTAH - 20OTHER"},1823920,"DSR COSTS AMORTIZED",103658,"INDUSTRIAL FINANSWER EXPRESS - UTAH - 20","OTHER",1444.13159,{"$f":"IF(OR(tblREGASSJune19[[#This Row],[Alloc]]=\"IDU\",tblREGASSJune19[[#This Row],[Alloc]]=\"OR\",tblREGASSJune19[[#This Row],[Alloc]]=\"UT\",tblREGASSJune19[[#This Row],[Alloc]]=\"WYU\",tblREGASSJune19[[#This Row],[Alloc]]=\"WYP\",tblREGASSJune19[[#This Row],[Alloc]]=\"CA\",tblREGASSJune19[[#This Row],[Alloc]]=\"WA\"),\"SITUS\",tblREGASSJune19[[#This Row],[Alloc]])","v":"OTHER"},{"$f":"INDEX(tblREGASSLookup[FUNC],MATCH(tblREGASSJune19[[#This Row],[Concat]],tblREGASSLookup[Concat],0))","v":"CUST"},{"$f":"IF(tblREGASSJune19[[#This Row],[Total ($000)]]=0,\"NO\",IF(ISNA(tblREGASSJune19[[#This Row],[FUNC]]),\"YES\",IF(_xlfn.ISFORMULA(tblREGASSJune19[[#This Row],[FUNC]]),\"NO\",\"YES\")))","v":"NO"}]
[{"$f":"CONCATENATE(tblREGASSJune19[[#This Row],[Primary Account]],tblREGASSJune19[[#This Row],[Primary Name]],tblREGASSJune19[[#This Row],[Secondary Acct]],tblREGASSJune19[[#This Row],[Secondary  Name]],tblREGASSJune19[[#This Row],[Alloc4FUNC]])","v":"1823920DSR COSTS AMORTIZED103660IRRIGATION LOAD CONTROL  - UTAH - 2013OTHER"},1823920,"DSR COSTS AMORTIZED",103660,"IRRIGATION LOAD CONTROL  - UTAH - 2013","OTHER",806.65102000000002,{"$f":"IF(OR(tblREGASSJune19[[#This Row],[Alloc]]=\"IDU\",tblREGASSJune19[[#This Row],[Alloc]]=\"OR\",tblREGASSJune19[[#This Row],[Alloc]]=\"UT\",tblREGASSJune19[[#This Row],[Alloc]]=\"WYU\",tblREGASSJune19[[#This Row],[Alloc]]=\"WYP\",tblREGASSJune19[[#This Row],[Alloc]]=\"CA\",tblREGASSJune19[[#This Row],[Alloc]]=\"WA\"),\"SITUS\",tblREGASSJune19[[#This Row],[Alloc]])","v":"OTHER"},{"$f":"INDEX(tblREGASSLookup[FUNC],MATCH(tblREGASSJune19[[#This Row],[Concat]],tblREGASSLookup[Concat],0))","v":"CUST"},{"$f":"IF(tblREGASSJune19[[#This Row],[Total ($000)]]=0,\"NO\",IF(ISNA(tblREGASSJune19[[#This Row],[FUNC]]),\"YES\",IF(_xlfn.ISFORMULA(tblREGASSJune19[[#This Row],[FUNC]]),\"NO\",\"YES\")))","v":"NO"}]
[{"$f":"CONCATENATE(tblREGASSJune19[[#This Row],[Primary Account]],tblREGASSJune19[[#This Row],[Primary Name]],tblREGASSJune19[[#This Row],[Secondary Acct]],tblREGASSJune19[[#This Row],[Secondary  Name]],tblREGASSJune19[[#This Row],[Alloc4FUNC]])","v":"1823920DSR COSTS AMORTIZED103661HOME ENERGY EFF INCENTIVE PROG - UT 2013OTHER"},1823920,"DSR COSTS AMORTIZED",103661,"HOME ENERGY EFF INCENTIVE PROG - UT 2013","OTHER",20268.770469999999,{"$f":"IF(OR(tblREGASSJune19[[#This Row],[Alloc]]=\"IDU\",tblREGASSJune19[[#This Row],[Alloc]]=\"OR\",tblREGASSJune19[[#This Row],[Alloc]]=\"UT\",tblREGASSJune19[[#This Row],[Alloc]]=\"WYU\",tblREGASSJune19[[#This Row],[Alloc]]=\"WYP\",tblREGASSJune19[[#This Row],[Alloc]]=\"CA\",tblREGASSJune19[[#This Row],[Alloc]]=\"WA\"),\"SITUS\",tblREGASSJune19[[#This Row],[Alloc]])","v":"OTHER"},{"$f":"INDEX(tblREGASSLookup[FUNC],MATCH(tblREGASSJune19[[#This Row],[Concat]],tblREGASSLookup[Concat],0))","v":"CUST"},{"$f":"IF(tblREGASSJune19[[#This Row],[Total ($000)]]=0,\"NO\",IF(ISNA(tblREGASSJune19[[#This Row],[FUNC]]),\"YES\",IF(_xlfn.ISFORMULA(tblREGASSJune19[[#This Row],[FUNC]]),\"NO\",\"YES\")))","v":"NO"}]
[{"$f":"CONCATENATE(tblREGASSJune19[[#This Row],[Primary Account]],tblREGASSJune19[[#This Row],[Primary Name]],tblREGASSJune19[[#This Row],[Secondary Acct]],tblREGASSJune19[[#This Row],[Secondary  Name]],tblREGASSJune19[[#This Row],[Alloc4FUNC]])","v":"1823920DSR COSTS AMORTIZED103662OUTREACH and COMMUNICATIONS - UT 2013OTHER"},1823920,"DSR COSTS AMORTIZED",103662,"OUTREACH and COMMUNICATIONS - UT 2013","OTHER",1406.0877399999999,{"$f":"IF(OR(tblREGASSJune19[[#This Row],[Alloc]]=\"IDU\",tblREGASSJune19[[#This Row],[Alloc]]=\"OR\",tblREGASSJune19[[#This Row],[Alloc]]=\"UT\",tblREGASSJune19[[#This Row],[Alloc]]=\"WYU\",tblREGASSJune19[[#This Row],[Alloc]]=\"WYP\",tblREGASSJune19[[#This Row],[Alloc]]=\"CA\",tblREGASSJune19[[#This Row],[Alloc]]=\"WA\"),\"SITUS\",tblREGASSJune19[[#This Row],[Alloc]])","v":"OTHER"},{"$f":"INDEX(tblREGASSLookup[FUNC],MATCH(tblREGASSJune19[[#This Row],[Concat]],tblREGASSLookup[Concat],0))","v":"CUST"},{"$f":"IF(tblREGASSJune19[[#This Row],[Total ($000)]]=0,\"NO\",IF(ISNA(tblREGASSJune19[[#This Row],[FUNC]]),\"YES\",IF(_xlfn.ISFORMULA(tblREGASSJune19[[#This Row],[FUNC]]),\"NO\",\"YES\")))","v":"NO"}]
[{"$f":"CONCATENATE(tblREGASSJune19[[#This Row],[Primary Account]],tblREGASSJune19[[#This Row],[Primary Name]],tblREGASSJune19[[#This Row],[Secondary Acct]],tblREGASSJune19[[#This Row],[Secondary  Name]],tblREGASSJune19[[#This Row],[Alloc4FUNC]])","v":"1823920DSR COSTS AMORTIZED103666AGRICULTURAL FINANSWER EXPRESS - UTAH -OTHER"},1823920,"DSR COSTS AMORTIZED",103666,"AGRICULTURAL FINANSWER EXPRESS - UTAH -","OTHER",70.297430000000006,{"$f":"IF(OR(tblREGASSJune19[[#This Row],[Alloc]]=\"IDU\",tblREGASSJune19[[#This Row],[Alloc]]=\"OR\",tblREGASSJune19[[#This Row],[Alloc]]=\"UT\",tblREGASSJune19[[#This Row],[Alloc]]=\"WYU\",tblREGASSJune19[[#This Row],[Alloc]]=\"WYP\",tblREGASSJune19[[#This Row],[Alloc]]=\"CA\",tblREGASSJune19[[#This Row],[Alloc]]=\"WA\"),\"SITUS\",tblREGASSJune19[[#This Row],[Alloc]])","v":"OTHER"},{"$f":"INDEX(tblREGASSLookup[FUNC],MATCH(tblREGASSJune19[[#This Row],[Concat]],tblREGASSLookup[Concat],0))","v":"CUST"},{"$f":"IF(tblREGASSJune19[[#This Row],[Total ($000)]]=0,\"NO\",IF(ISNA(tblREGASSJune19[[#This Row],[FUNC]]),\"YES\",IF(_xlfn.ISFORMULA(tblREGASSJune19[[#This Row],[FUNC]]),\"NO\",\"YES\")))","v":"NO"}]
[{"$f":"CONCATENATE(tblREGASSJune19[[#This Row],[Primary Account]],tblREGASSJune19[[#This Row],[Primary Name]],tblREGASSJune19[[#This Row],[Secondary Acct]],tblREGASSJune19[[#This Row],[Secondary  Name]],tblREGASSJune19[[#This Row],[Alloc4FUNC]])","v":"1823920DSR COSTS AMORTIZED103671HOME ENERGY REPORTING - UT 2013OTHER"},1823920,"DSR COSTS AMORTIZED",103671,"HOME ENERGY REPORTING - UT 2013","OTHER",764.78471999999999,{"$f":"IF(OR(tblREGASSJune19[[#This Row],[Alloc]]=\"IDU\",tblREGASSJune19[[#This Row],[Alloc]]=\"OR\",tblREGASSJune19[[#This Row],[Alloc]]=\"UT\",tblREGASSJune19[[#This Row],[Alloc]]=\"WYU\",tblREGASSJune19[[#This Row],[Alloc]]=\"WYP\",tblREGASSJune19[[#This Row],[Alloc]]=\"CA\",tblREGASSJune19[[#This Row],[Alloc]]=\"WA\"),\"SITUS\",tblREGASSJune19[[#This Row],[Alloc]])","v":"OTHER"},{"$f":"INDEX(tblREGASSLookup[FUNC],MATCH(tblREGASSJune19[[#This Row],[Concat]],tblREGASSLookup[Concat],0))","v":"CUST"},{"$f":"IF(tblREGASSJune19[[#This Row],[Total ($000)]]=0,\"NO\",IF(ISNA(tblREGASSJune19[[#This Row],[FUNC]]),\"YES\",IF(_xlfn.ISFORMULA(tblREGASSJune19[[#This Row],[FUNC]]),\"NO\",\"YES\")))","v":"NO"}]
[{"$f":"CONCATENATE(tblREGASSJune19[[#This Row],[Primary Account]],tblREGASSJune19[[#This Row],[Primary Name]],tblREGASSJune19[[#This Row],[Secondary Acct]],tblREGASSJune19[[#This Row],[Secondary  Name]],tblREGASSJune19[[#This Row],[Alloc4FUNC]])","v":"1823920DSR COSTS AMORTIZED103673RETROFIT COMMISSIONING PROGRAM  - UTAH -OTHER"},1823920,"DSR COSTS AMORTIZED",103673,"RETROFIT COMMISSIONING PROGRAM  - UTAH -","OTHER",134.89554000000001,{"$f":"IF(OR(tblREGASSJune19[[#This Row],[Alloc]]=\"IDU\",tblREGASSJune19[[#This Row],[Alloc]]=\"OR\",tblREGASSJune19[[#This Row],[Alloc]]=\"UT\",tblREGASSJune19[[#This Row],[Alloc]]=\"WYU\",tblREGASSJune19[[#This Row],[Alloc]]=\"WYP\",tblREGASSJune19[[#This Row],[Alloc]]=\"CA\",tblREGASSJune19[[#This Row],[Alloc]]=\"WA\"),\"SITUS\",tblREGASSJune19[[#This Row],[Alloc]])","v":"OTHER"},{"$f":"INDEX(tblREGASSLookup[FUNC],MATCH(tblREGASSJune19[[#This Row],[Concat]],tblREGASSLookup[Concat],0))","v":"CUST"},{"$f":"IF(tblREGASSJune19[[#This Row],[Total ($000)]]=0,\"NO\",IF(ISNA(tblREGASSJune19[[#This Row],[FUNC]]),\"YES\",IF(_xlfn.ISFORMULA(tblREGASSJune19[[#This Row],[FUNC]]),\"NO\",\"YES\")))","v":"NO"}]
[{"$f":"CONCATENATE(tblREGASSJune19[[#This Row],[Primary Account]],tblREGASSJune19[[#This Row],[Primary Name]],tblREGASSJune19[[#This Row],[Secondary Acct]],tblREGASSJune19[[#This Row],[Secondary  Name]],tblREGASSJune19[[#This Row],[Alloc4FUNC]])","v":"1823920DSR COSTS AMORTIZED103675ENERGY FINANSWER-WY-2013 CAT3OTHER"},1823920,"DSR COSTS AMORTIZED",103675,"ENERGY FINANSWER-WY-2013 CAT3","OTHER",26.64667,{"$f":"IF(OR(tblREGASSJune19[[#This Row],[Alloc]]=\"IDU\",tblREGASSJune19[[#This Row],[Alloc]]=\"OR\",tblREGASSJune19[[#This Row],[Alloc]]=\"UT\",tblREGASSJune19[[#This Row],[Alloc]]=\"WYU\",tblREGASSJune19[[#This Row],[Alloc]]=\"WYP\",tblREGASSJune19[[#This Row],[Alloc]]=\"CA\",tblREGASSJune19[[#This Row],[Alloc]]=\"WA\"),\"SITUS\",tblREGASSJune19[[#This Row],[Alloc]])","v":"OTHER"},{"$f":"INDEX(tblREGASSLookup[FUNC],MATCH(tblREGASSJune19[[#This Row],[Concat]],tblREGASSLookup[Concat],0))","v":"CUST"},{"$f":"IF(tblREGASSJune19[[#This Row],[Total ($000)]]=0,\"NO\",IF(ISNA(tblREGASSJune19[[#This Row],[FUNC]]),\"YES\",IF(_xlfn.ISFORMULA(tblREGASSJune19[[#This Row],[FUNC]]),\"NO\",\"YES\")))","v":"NO"}]
[{"$f":"CONCATENATE(tblREGASSJune19[[#This Row],[Primary Account]],tblREGASSJune19[[#This Row],[Primary Name]],tblREGASSJune19[[#This Row],[Secondary Acct]],tblREGASSJune19[[#This Row],[Secondary  Name]],tblREGASSJune19[[#This Row],[Alloc4FUNC]])","v":"1823920DSR COSTS AMORTIZED103676INDUSTRIAL FINANSWER-WY-2013 CAT3OTHER"},1823920,"DSR COSTS AMORTIZED",103676,"INDUSTRIAL FINANSWER-WY-2013 CAT3","OTHER",984.65309000000002,{"$f":"IF(OR(tblREGASSJune19[[#This Row],[Alloc]]=\"IDU\",tblREGASSJune19[[#This Row],[Alloc]]=\"OR\",tblREGASSJune19[[#This Row],[Alloc]]=\"UT\",tblREGASSJune19[[#This Row],[Alloc]]=\"WYU\",tblREGASSJune19[[#This Row],[Alloc]]=\"WYP\",tblREGASSJune19[[#This Row],[Alloc]]=\"CA\",tblREGASSJune19[[#This Row],[Alloc]]=\"WA\"),\"SITUS\",tblREGASSJune19[[#This Row],[Alloc]])","v":"OTHER"},{"$f":"INDEX(tblREGASSLookup[FUNC],MATCH(tblREGASSJune19[[#This Row],[Concat]],tblREGASSLookup[Concat],0))","v":"CUST"},{"$f":"IF(tblREGASSJune19[[#This Row],[Total ($000)]]=0,\"NO\",IF(ISNA(tblREGASSJune19[[#This Row],[FUNC]]),\"YES\",IF(_xlfn.ISFORMULA(tblREGASSJune19[[#This Row],[FUNC]]),\"NO\",\"YES\")))","v":"NO"}]
[{"$f":"CONCATENATE(tblREGASSJune19[[#This Row],[Primary Account]],tblREGASSJune19[[#This Row],[Primary Name]],tblREGASSJune19[[#This Row],[Secondary Acct]],tblREGASSJune19[[#This Row],[Secondary  Name]],tblREGASSJune19[[#This Row],[Alloc4FUNC]])","v":"1823920DSR COSTS AMORTIZED103677REFRIGERATOR RECYCLING-WY -2013 CAT1OTHER"},1823920,"DSR COSTS AMORTIZED",103677,"REFRIGERATOR RECYCLING-WY -2013 CAT1","OTHER",130.01524000000001,{"$f":"IF(OR(tblREGASSJune19[[#This Row],[Alloc]]=\"IDU\",tblREGASSJune19[[#This Row],[Alloc]]=\"OR\",tblREGASSJune19[[#This Row],[Alloc]]=\"UT\",tblREGASSJune19[[#This Row],[Alloc]]=\"WYU\",tblREGASSJune19[[#This Row],[Alloc]]=\"WYP\",tblREGASSJune19[[#This Row],[Alloc]]=\"CA\",tblREGASSJune19[[#This Row],[Alloc]]=\"WA\"),\"SITUS\",tblREGASSJune19[[#This Row],[Alloc]])","v":"OTHER"},{"$f":"INDEX(tblREGASSLookup[FUNC],MATCH(tblREGASSJune19[[#This Row],[Concat]],tblREGASSLookup[Concat],0))","v":"CUST"},{"$f":"IF(tblREGASSJune19[[#This Row],[Total ($000)]]=0,\"NO\",IF(ISNA(tblREGASSJune19[[#This Row],[FUNC]]),\"YES\",IF(_xlfn.ISFORMULA(tblREGASSJune19[[#This Row],[FUNC]]),\"NO\",\"YES\")))","v":"NO"}]
[{"$f":"CONCATENATE(tblREGASSJune19[[#This Row],[Primary Account]],tblREGASSJune19[[#This Row],[Primary Name]],tblREGASSJune19[[#This Row],[Secondary Acct]],tblREGASSJune19[[#This Row],[Secondary  Name]],tblREGASSJune19[[#This Row],[Alloc4FUNC]])","v":"1823920DSR COSTS AMORTIZED103678HOME ENERGY EFF INCENT PROG Y-2013 CAT1OTHER"},1823920,"DSR COSTS AMORTIZED",103678,"HOME ENERGY EFF INCENT PROG Y-2013 CAT1","OTHER",883.94907000000001,{"$f":"IF(OR(tblREGASSJune19[[#This Row],[Alloc]]=\"IDU\",tblREGASSJune19[[#This Row],[Alloc]]=\"OR\",tblREGASSJune19[[#This Row],[Alloc]]=\"UT\",tblREGASSJune19[[#This Row],[Alloc]]=\"WYU\",tblREGASSJune19[[#This Row],[Alloc]]=\"WYP\",tblREGASSJune19[[#This Row],[Alloc]]=\"CA\",tblREGASSJune19[[#This Row],[Alloc]]=\"WA\"),\"SITUS\",tblREGASSJune19[[#This Row],[Alloc]])","v":"OTHER"},{"$f":"INDEX(tblREGASSLookup[FUNC],MATCH(tblREGASSJune19[[#This Row],[Concat]],tblREGASSLookup[Concat],0))","v":"CUST"},{"$f":"IF(tblREGASSJune19[[#This Row],[Total ($000)]]=0,\"NO\",IF(ISNA(tblREGASSJune19[[#This Row],[FUNC]]),\"YES\",IF(_xlfn.ISFORMULA(tblREGASSJune19[[#This Row],[FUNC]]),\"NO\",\"YES\")))","v":"NO"}]
[{"$f":"CONCATENATE(tblREGASSJune19[[#This Row],[Primary Account]],tblREGASSJune19[[#This Row],[Primary Name]],tblREGASSJune19[[#This Row],[Secondary Acct]],tblREGASSJune19[[#This Row],[Secondary  Name]],tblREGASSJune19[[#This Row],[Alloc4FUNC]])","v":"1823920DSR COSTS AMORTIZED103679LOW-INCOME WEATHERZTN - WY 2013 CAT1OTHER"},1823920,"DSR COSTS AMORTIZED",103679,"LOW-INCOME WEATHERZTN - WY 2013 CAT1","OTHER",40.516199999999998,{"$f":"IF(OR(tblREGASSJune19[[#This Row],[Alloc]]=\"IDU\",tblREGASSJune19[[#This Row],[Alloc]]=\"OR\",tblREGASSJune19[[#This Row],[Alloc]]=\"UT\",tblREGASSJune19[[#This Row],[Alloc]]=\"WYU\",tblREGASSJune19[[#This Row],[Alloc]]=\"WYP\",tblREGASSJune19[[#This Row],[Alloc]]=\"CA\",tblREGASSJune19[[#This Row],[Alloc]]=\"WA\"),\"SITUS\",tblREGASSJune19[[#This Row],[Alloc]])","v":"OTHER"},{"$f":"INDEX(tblREGASSLookup[FUNC],MATCH(tblREGASSJune19[[#This Row],[Concat]],tblREGASSLookup[Concat],0))","v":"CUST"},{"$f":"IF(tblREGASSJune19[[#This Row],[Total ($000)]]=0,\"NO\",IF(ISNA(tblREGASSJune19[[#This Row],[FUNC]]),\"YES\",IF(_xlfn.ISFORMULA(tblREGASSJune19[[#This Row],[FUNC]]),\"NO\",\"YES\")))","v":"NO"}]
[{"$f":"CONCATENATE(tblREGASSJune19[[#This Row],[Primary Account]],tblREGASSJune19[[#This Row],[Primary Name]],tblREGASSJune19[[#This Row],[Secondary Acct]],tblREGASSJune19[[#This Row],[Secondary  Name]],tblREGASSJune19[[#This Row],[Alloc4FUNC]])","v":"1823920DSR COSTS AMORTIZED103680COMMERCIAL FINANSWER EXP WY-2013 CAT3OTHER"},1823920,"DSR COSTS AMORTIZED",103680,"COMMERCIAL FINANSWER EXP WY-2013 CAT3","OTHER",424.25855000000001,{"$f":"IF(OR(tblREGASSJune19[[#This Row],[Alloc]]=\"IDU\",tblREGASSJune19[[#This Row],[Alloc]]=\"OR\",tblREGASSJune19[[#This Row],[Alloc]]=\"UT\",tblREGASSJune19[[#This Row],[Alloc]]=\"WYU\",tblREGASSJune19[[#This Row],[Alloc]]=\"WYP\",tblREGASSJune19[[#This Row],[Alloc]]=\"CA\",tblREGASSJune19[[#This Row],[Alloc]]=\"WA\"),\"SITUS\",tblREGASSJune19[[#This Row],[Alloc]])","v":"OTHER"},{"$f":"INDEX(tblREGASSLookup[FUNC],MATCH(tblREGASSJune19[[#This Row],[Concat]],tblREGASSLookup[Concat],0))","v":"CUST"},{"$f":"IF(tblREGASSJune19[[#This Row],[Total ($000)]]=0,\"NO\",IF(ISNA(tblREGASSJune19[[#This Row],[FUNC]]),\"YES\",IF(_xlfn.ISFORMULA(tblREGASSJune19[[#This Row],[FUNC]]),\"NO\",\"YES\")))","v":"NO"}]
[{"$f":"CONCATENATE(tblREGASSJune19[[#This Row],[Primary Account]],tblREGASSJune19[[#This Row],[Primary Name]],tblREGASSJune19[[#This Row],[Secondary Acct]],tblREGASSJune19[[#This Row],[Secondary  Name]],tblREGASSJune19[[#This Row],[Alloc4FUNC]])","v":"1823920DSR COSTS AMORTIZED103681INDUSTRIAL FINANSWER EXP WY-2013 CAT3OTHER"},1823920,"DSR COSTS AMORTIZED",103681,"INDUSTRIAL FINANSWER EXP WY-2013 CAT3","OTHER",168.59556000000001,{"$f":"IF(OR(tblREGASSJune19[[#This Row],[Alloc]]=\"IDU\",tblREGASSJune19[[#This Row],[Alloc]]=\"OR\",tblREGASSJune19[[#This Row],[Alloc]]=\"UT\",tblREGASSJune19[[#This Row],[Alloc]]=\"WYU\",tblREGASSJune19[[#This Row],[Alloc]]=\"WYP\",tblREGASSJune19[[#This Row],[Alloc]]=\"CA\",tblREGASSJune19[[#This Row],[Alloc]]=\"WA\"),\"SITUS\",tblREGASSJune19[[#This Row],[Alloc]])","v":"OTHER"},{"$f":"INDEX(tblREGASSLookup[FUNC],MATCH(tblREGASSJune19[[#This Row],[Concat]],tblREGASSLookup[Concat],0))","v":"CUST"},{"$f":"IF(tblREGASSJune19[[#This Row],[Total ($000)]]=0,\"NO\",IF(ISNA(tblREGASSJune19[[#This Row],[FUNC]]),\"YES\",IF(_xlfn.ISFORMULA(tblREGASSJune19[[#This Row],[FUNC]]),\"NO\",\"YES\")))","v":"NO"}]
[{"$f":"CONCATENATE(tblREGASSJune19[[#This Row],[Primary Account]],tblREGASSJune19[[#This Row],[Primary Name]],tblREGASSJune19[[#This Row],[Secondary Acct]],tblREGASSJune19[[#This Row],[Secondary  Name]],tblREGASSJune19[[#This Row],[Alloc4FUNC]])","v":"1823920DSR COSTS AMORTIZED103682SELF DIRECT - COMMERCIAL -WY-2013 CAT3OTHER"},1823920,"DSR COSTS AMORTIZED",103682,"SELF DIRECT - COMMERCIAL -WY-2013 CAT3","OTHER",1.7641,{"$f":"IF(OR(tblREGASSJune19[[#This Row],[Alloc]]=\"IDU\",tblREGASSJune19[[#This Row],[Alloc]]=\"OR\",tblREGASSJune19[[#This Row],[Alloc]]=\"UT\",tblREGASSJune19[[#This Row],[Alloc]]=\"WYU\",tblREGASSJune19[[#This Row],[Alloc]]=\"WYP\",tblREGASSJune19[[#This Row],[Alloc]]=\"CA\",tblREGASSJune19[[#This Row],[Alloc]]=\"WA\"),\"SITUS\",tblREGASSJune19[[#This Row],[Alloc]])","v":"OTHER"},{"$f":"INDEX(tblREGASSLookup[FUNC],MATCH(tblREGASSJune19[[#This Row],[Concat]],tblREGASSLookup[Concat],0))","v":"CUST"},{"$f":"IF(tblREGASSJune19[[#This Row],[Total ($000)]]=0,\"NO\",IF(ISNA(tblREGASSJune19[[#This Row],[FUNC]]),\"YES\",IF(_xlfn.ISFORMULA(tblREGASSJune19[[#This Row],[FUNC]]),\"NO\",\"YES\")))","v":"NO"}]
[{"$f":"CONCATENATE(tblREGASSJune19[[#This Row],[Primary Account]],tblREGASSJune19[[#This Row],[Primary Name]],tblREGASSJune19[[#This Row],[Secondary Acct]],tblREGASSJune19[[#This Row],[Secondary  Name]],tblREGASSJune19[[#This Row],[Alloc4FUNC]])","v":"1823920DSR COSTS AMORTIZED103683SELF DIRECT -INDUSTRIAL -WY-2013 CAT3OTHER"},1823920,"DSR COSTS AMORTIZED",103683,"SELF DIRECT -INDUSTRIAL -WY-2013 CAT3","OTHER",8.8960299999999997,{"$f":"IF(OR(tblREGASSJune19[[#This Row],[Alloc]]=\"IDU\",tblREGASSJune19[[#This Row],[Alloc]]=\"OR\",tblREGASSJune19[[#This Row],[Alloc]]=\"UT\",tblREGASSJune19[[#This Row],[Alloc]]=\"WYU\",tblREGASSJune19[[#This Row],[Alloc]]=\"WYP\",tblREGASSJune19[[#This Row],[Alloc]]=\"CA\",tblREGASSJune19[[#This Row],[Alloc]]=\"WA\"),\"SITUS\",tblREGASSJune19[[#This Row],[Alloc]])","v":"OTHER"},{"$f":"INDEX(tblREGASSLookup[FUNC],MATCH(tblREGASSJune19[[#This Row],[Concat]],tblREGASSLookup[Concat],0))","v":"CUST"},{"$f":"IF(tblREGASSJune19[[#This Row],[Total ($000)]]=0,\"NO\",IF(ISNA(tblREGASSJune19[[#This Row],[FUNC]]),\"YES\",IF(_xlfn.ISFORMULA(tblREGASSJune19[[#This Row],[FUNC]]),\"NO\",\"YES\")))","v":"NO"}]
[{"$f":"CONCATENATE(tblREGASSJune19[[#This Row],[Primary Account]],tblREGASSJune19[[#This Row],[Primary Name]],tblREGASSJune19[[#This Row],[Secondary Acct]],tblREGASSJune19[[#This Row],[Secondary  Name]],tblREGASSJune19[[#This Row],[Alloc4FUNC]])","v":"1823920DSR COSTS AMORTIZED103684COMMERCIAL FINANSWER EXP- WY-2013 CAT2OTHER"},1823920,"DSR COSTS AMORTIZED",103684,"COMMERCIAL FINANSWER EXP- WY-2013 CAT2","OTHER",1234.0093400000001,{"$f":"IF(OR(tblREGASSJune19[[#This Row],[Alloc]]=\"IDU\",tblREGASSJune19[[#This Row],[Alloc]]=\"OR\",tblREGASSJune19[[#This Row],[Alloc]]=\"UT\",tblREGASSJune19[[#This Row],[Alloc]]=\"WYU\",tblREGASSJune19[[#This Row],[Alloc]]=\"WYP\",tblREGASSJune19[[#This Row],[Alloc]]=\"CA\",tblREGASSJune19[[#This Row],[Alloc]]=\"WA\"),\"SITUS\",tblREGASSJune19[[#This Row],[Alloc]])","v":"OTHER"},{"$f":"INDEX(tblREGASSLookup[FUNC],MATCH(tblREGASSJune19[[#This Row],[Concat]],tblREGASSLookup[Concat],0))","v":"CUST"},{"$f":"IF(tblREGASSJune19[[#This Row],[Total ($000)]]=0,\"NO\",IF(ISNA(tblREGASSJune19[[#This Row],[FUNC]]),\"YES\",IF(_xlfn.ISFORMULA(tblREGASSJune19[[#This Row],[FUNC]]),\"NO\",\"YES\")))","v":"NO"}]
[{"$f":"CONCATENATE(tblREGASSJune19[[#This Row],[Primary Account]],tblREGASSJune19[[#This Row],[Primary Name]],tblREGASSJune19[[#This Row],[Secondary Acct]],tblREGASSJune19[[#This Row],[Secondary  Name]],tblREGASSJune19[[#This Row],[Alloc4FUNC]])","v":"1823920DSR COSTS AMORTIZED103685INDUSTRIAL FINAN EXPRESS WY-2013 CAT2OTHER"},1823920,"DSR COSTS AMORTIZED",103685,"INDUSTRIAL FINAN EXPRESS WY-2013 CAT2","OTHER",84.720119999999994,{"$f":"IF(OR(tblREGASSJune19[[#This Row],[Alloc]]=\"IDU\",tblREGASSJune19[[#This Row],[Alloc]]=\"OR\",tblREGASSJune19[[#This Row],[Alloc]]=\"UT\",tblREGASSJune19[[#This Row],[Alloc]]=\"WYU\",tblREGASSJune19[[#This Row],[Alloc]]=\"WYP\",tblREGASSJune19[[#This Row],[Alloc]]=\"CA\",tblREGASSJune19[[#This Row],[Alloc]]=\"WA\"),\"SITUS\",tblREGASSJune19[[#This Row],[Alloc]])","v":"OTHER"},{"$f":"INDEX(tblREGASSLookup[FUNC],MATCH(tblREGASSJune19[[#This Row],[Concat]],tblREGASSLookup[Concat],0))","v":"CUST"},{"$f":"IF(tblREGASSJune19[[#This Row],[Total ($000)]]=0,\"NO\",IF(ISNA(tblREGASSJune19[[#This Row],[FUNC]]),\"YES\",IF(_xlfn.ISFORMULA(tblREGASSJune19[[#This Row],[FUNC]]),\"NO\",\"YES\")))","v":"NO"}]
[{"$f":"CONCATENATE(tblREGASSJune19[[#This Row],[Primary Account]],tblREGASSJune19[[#This Row],[Primary Name]],tblREGASSJune19[[#This Row],[Secondary Acct]],tblREGASSJune19[[#This Row],[Secondary  Name]],tblREGASSJune19[[#This Row],[Alloc4FUNC]])","v":"1823920DSR COSTS AMORTIZED103686ENERGY FINANSWER -WY 2013 CAT2OTHER"},1823920,"DSR COSTS AMORTIZED",103686,"ENERGY FINANSWER -WY 2013 CAT2","OTHER",25.876909999999999,{"$f":"IF(OR(tblREGASSJune19[[#This Row],[Alloc]]=\"IDU\",tblREGASSJune19[[#This Row],[Alloc]]=\"OR\",tblREGASSJune19[[#This Row],[Alloc]]=\"UT\",tblREGASSJune19[[#This Row],[Alloc]]=\"WYU\",tblREGASSJune19[[#This Row],[Alloc]]=\"WYP\",tblREGASSJune19[[#This Row],[Alloc]]=\"CA\",tblREGASSJune19[[#This Row],[Alloc]]=\"WA\"),\"SITUS\",tblREGASSJune19[[#This Row],[Alloc]])","v":"OTHER"},{"$f":"INDEX(tblREGASSLookup[FUNC],MATCH(tblREGASSJune19[[#This Row],[Concat]],tblREGASSLookup[Concat],0))","v":"CUST"},{"$f":"IF(tblREGASSJune19[[#This Row],[Total ($000)]]=0,\"NO\",IF(ISNA(tblREGASSJune19[[#This Row],[FUNC]]),\"YES\",IF(_xlfn.ISFORMULA(tblREGASSJune19[[#This Row],[FUNC]]),\"NO\",\"YES\")))","v":"NO"}]
[{"$f":"CONCATENATE(tblREGASSJune19[[#This Row],[Primary Account]],tblREGASSJune19[[#This Row],[Primary Name]],tblREGASSJune19[[#This Row],[Secondary Acct]],tblREGASSJune19[[#This Row],[Secondary  Name]],tblREGASSJune19[[#This Row],[Alloc4FUNC]])","v":"1823920DSR COSTS AMORTIZED103687INDUSTRIAL FINANSWER -WY 2013 CAT2OTHER"},1823920,"DSR COSTS AMORTIZED",103687,"INDUSTRIAL FINANSWER -WY 2013 CAT2","OTHER",57.72954,{"$f":"IF(OR(tblREGASSJune19[[#This Row],[Alloc]]=\"IDU\",tblREGASSJune19[[#This Row],[Alloc]]=\"OR\",tblREGASSJune19[[#This Row],[Alloc]]=\"UT\",tblREGASSJune19[[#This Row],[Alloc]]=\"WYU\",tblREGASSJune19[[#This Row],[Alloc]]=\"WYP\",tblREGASSJune19[[#This Row],[Alloc]]=\"CA\",tblREGASSJune19[[#This Row],[Alloc]]=\"WA\"),\"SITUS\",tblREGASSJune19[[#This Row],[Alloc]])","v":"OTHER"},{"$f":"INDEX(tblREGASSLookup[FUNC],MATCH(tblREGASSJune19[[#This Row],[Concat]],tblREGASSLookup[Concat],0))","v":"CUST"},{"$f":"IF(tblREGASSJune19[[#This Row],[Total ($000)]]=0,\"NO\",IF(ISNA(tblREGASSJune19[[#This Row],[FUNC]]),\"YES\",IF(_xlfn.ISFORMULA(tblREGASSJune19[[#This Row],[FUNC]]),\"NO\",\"YES\")))","v":"NO"}]
[{"$f":"CONCATENATE(tblREGASSJune19[[#This Row],[Primary Account]],tblREGASSJune19[[#This Row],[Primary Name]],tblREGASSJune19[[#This Row],[Secondary Acct]],tblREGASSJune19[[#This Row],[Secondary  Name]],tblREGASSJune19[[#This Row],[Alloc4FUNC]])","v":"1823920DSR COSTS AMORTIZED103688SELF DIRECT - COMMERCIAL WY-2013 CAT2OTHER"},1823920,"DSR COSTS AMORTIZED",103688,"SELF DIRECT - COMMERCIAL WY-2013 CAT2","OTHER",2.2983799999999999,{"$f":"IF(OR(tblREGASSJune19[[#This Row],[Alloc]]=\"IDU\",tblREGASSJune19[[#This Row],[Alloc]]=\"OR\",tblREGASSJune19[[#This Row],[Alloc]]=\"UT\",tblREGASSJune19[[#This Row],[Alloc]]=\"WYU\",tblREGASSJune19[[#This Row],[Alloc]]=\"WYP\",tblREGASSJune19[[#This Row],[Alloc]]=\"CA\",tblREGASSJune19[[#This Row],[Alloc]]=\"WA\"),\"SITUS\",tblREGASSJune19[[#This Row],[Alloc]])","v":"OTHER"},{"$f":"INDEX(tblREGASSLookup[FUNC],MATCH(tblREGASSJune19[[#This Row],[Concat]],tblREGASSLookup[Concat],0))","v":"CUST"},{"$f":"IF(tblREGASSJune19[[#This Row],[Total ($000)]]=0,\"NO\",IF(ISNA(tblREGASSJune19[[#This Row],[FUNC]]),\"YES\",IF(_xlfn.ISFORMULA(tblREGASSJune19[[#This Row],[FUNC]]),\"NO\",\"YES\")))","v":"NO"}]
[{"$f":"CONCATENATE(tblREGASSJune19[[#This Row],[Primary Account]],tblREGASSJune19[[#This Row],[Primary Name]],tblREGASSJune19[[#This Row],[Secondary Acct]],tblREGASSJune19[[#This Row],[Secondary  Name]],tblREGASSJune19[[#This Row],[Alloc4FUNC]])","v":"1823920DSR COSTS AMORTIZED103689SELF DIRECT- INDUSTRIAL WY-2013 CAT2OTHER"},1823920,"DSR COSTS AMORTIZED",103689,"SELF DIRECT- INDUSTRIAL WY-2013 CAT2","OTHER",8.1518499999999996,{"$f":"IF(OR(tblREGASSJune19[[#This Row],[Alloc]]=\"IDU\",tblREGASSJune19[[#This Row],[Alloc]]=\"OR\",tblREGASSJune19[[#This Row],[Alloc]]=\"UT\",tblREGASSJune19[[#This Row],[Alloc]]=\"WYU\",tblREGASSJune19[[#This Row],[Alloc]]=\"WYP\",tblREGASSJune19[[#This Row],[Alloc]]=\"CA\",tblREGASSJune19[[#This Row],[Alloc]]=\"WA\"),\"SITUS\",tblREGASSJune19[[#This Row],[Alloc]])","v":"OTHER"},{"$f":"INDEX(tblREGASSLookup[FUNC],MATCH(tblREGASSJune19[[#This Row],[Concat]],tblREGASSLookup[Concat],0))","v":"CUST"},{"$f":"IF(tblREGASSJune19[[#This Row],[Total ($000)]]=0,\"NO\",IF(ISNA(tblREGASSJune19[[#This Row],[FUNC]]),\"YES\",IF(_xlfn.ISFORMULA(tblREGASSJune19[[#This Row],[FUNC]]),\"NO\",\"YES\")))","v":"NO"}]
[{"$f":"CONCATENATE(tblREGASSJune19[[#This Row],[Primary Account]],tblREGASSJune19[[#This Row],[Primary Name]],tblREGASSJune19[[#This Row],[Secondary Acct]],tblREGASSJune19[[#This Row],[Secondary  Name]],tblREGASSJune19[[#This Row],[Alloc4FUNC]])","v":"1823920DSR COSTS AMORTIZED103690PORTFOLIO WY-2013 CAT1OTHER"},1823920,"DSR COSTS AMORTIZED",103690,"PORTFOLIO WY-2013 CAT1","OTHER",129.77682999999999,{"$f":"IF(OR(tblREGASSJune19[[#This Row],[Alloc]]=\"IDU\",tblREGASSJune19[[#This Row],[Alloc]]=\"OR\",tblREGASSJune19[[#This Row],[Alloc]]=\"UT\",tblREGASSJune19[[#This Row],[Alloc]]=\"WYU\",tblREGASSJune19[[#This Row],[Alloc]]=\"WYP\",tblREGASSJune19[[#This Row],[Alloc]]=\"CA\",tblREGASSJune19[[#This Row],[Alloc]]=\"WA\"),\"SITUS\",tblREGASSJune19[[#This Row],[Alloc]])","v":"OTHER"},{"$f":"INDEX(tblREGASSLookup[FUNC],MATCH(tblREGASSJune19[[#This Row],[Concat]],tblREGASSLookup[Concat],0))","v":"CUST"},{"$f":"IF(tblREGASSJune19[[#This Row],[Total ($000)]]=0,\"NO\",IF(ISNA(tblREGASSJune19[[#This Row],[FUNC]]),\"YES\",IF(_xlfn.ISFORMULA(tblREGASSJune19[[#This Row],[FUNC]]),\"NO\",\"YES\")))","v":"NO"}]
[{"$f":"CONCATENATE(tblREGASSJune19[[#This Row],[Primary Account]],tblREGASSJune19[[#This Row],[Primary Name]],tblREGASSJune19[[#This Row],[Secondary Acct]],tblREGASSJune19[[#This Row],[Secondary  Name]],tblREGASSJune19[[#This Row],[Alloc4FUNC]])","v":"1823920DSR COSTS AMORTIZED103691OUTREACH AND COMMUNICATION WATTSMT  WY-2OTHER"},1823920,"DSR COSTS AMORTIZED",103691,"OUTREACH AND COMMUNICATION WATTSMT  WY-2","OTHER",177.71106,{"$f":"IF(OR(tblREGASSJune19[[#This Row],[Alloc]]=\"IDU\",tblREGASSJune19[[#This Row],[Alloc]]=\"OR\",tblREGASSJune19[[#This Row],[Alloc]]=\"UT\",tblREGASSJune19[[#This Row],[Alloc]]=\"WYU\",tblREGASSJune19[[#This Row],[Alloc]]=\"WYP\",tblREGASSJune19[[#This Row],[Alloc]]=\"CA\",tblREGASSJune19[[#This Row],[Alloc]]=\"WA\"),\"SITUS\",tblREGASSJune19[[#This Row],[Alloc]])","v":"OTHER"},{"$f":"INDEX(tblREGASSLookup[FUNC],MATCH(tblREGASSJune19[[#This Row],[Concat]],tblREGASSLookup[Concat],0))","v":"CUST"},{"$f":"IF(tblREGASSJune19[[#This Row],[Total ($000)]]=0,\"NO\",IF(ISNA(tblREGASSJune19[[#This Row],[FUNC]]),\"YES\",IF(_xlfn.ISFORMULA(tblREGASSJune19[[#This Row],[FUNC]]),\"NO\",\"YES\")))","v":"NO"}]
[{"$f":"CONCATENATE(tblREGASSJune19[[#This Row],[Primary Account]],tblREGASSJune19[[#This Row],[Primary Name]],tblREGASSJune19[[#This Row],[Secondary Acct]],tblREGASSJune19[[#This Row],[Secondary  Name]],tblREGASSJune19[[#This Row],[Alloc4FUNC]])","v":"1823920DSR COSTS AMORTIZED103692AGRICULTURAL FINANSWER EXP WY-2013 CAT2OTHER"},1823920,"DSR COSTS AMORTIZED",103692,"AGRICULTURAL FINANSWER EXP WY-2013 CAT2","OTHER",9.77454,{"$f":"IF(OR(tblREGASSJune19[[#This Row],[Alloc]]=\"IDU\",tblREGASSJune19[[#This Row],[Alloc]]=\"OR\",tblREGASSJune19[[#This Row],[Alloc]]=\"UT\",tblREGASSJune19[[#This Row],[Alloc]]=\"WYU\",tblREGASSJune19[[#This Row],[Alloc]]=\"WYP\",tblREGASSJune19[[#This Row],[Alloc]]=\"CA\",tblREGASSJune19[[#This Row],[Alloc]]=\"WA\"),\"SITUS\",tblREGASSJune19[[#This Row],[Alloc]])","v":"OTHER"},{"$f":"INDEX(tblREGASSLookup[FUNC],MATCH(tblREGASSJune19[[#This Row],[Concat]],tblREGASSLookup[Concat],0))","v":"CUST"},{"$f":"IF(tblREGASSJune19[[#This Row],[Total ($000)]]=0,\"NO\",IF(ISNA(tblREGASSJune19[[#This Row],[FUNC]]),\"YES\",IF(_xlfn.ISFORMULA(tblREGASSJune19[[#This Row],[FUNC]]),\"NO\",\"YES\")))","v":"NO"}]
[{"$f":"CONCATENATE(tblREGASSJune19[[#This Row],[Primary Account]],tblREGASSJune19[[#This Row],[Primary Name]],tblREGASSJune19[[#This Row],[Secondary Acct]],tblREGASSJune19[[#This Row],[Secondary  Name]],tblREGASSJune19[[#This Row],[Alloc4FUNC]])","v":"1823920DSR COSTS AMORTIZED103693AGRICULURAL FINANSWER EXP WY-2013 CAT3OTHER"},1823920,"DSR COSTS AMORTIZED",103693,"AGRICULURAL FINANSWER EXP WY-2013 CAT3","OTHER",9.6750000000000003E-2,{"$f":"IF(OR(tblREGASSJune19[[#This Row],[Alloc]]=\"IDU\",tblREGASSJune19[[#This Row],[Alloc]]=\"OR\",tblREGASSJune19[[#This Row],[Alloc]]=\"UT\",tblREGASSJune19[[#This Row],[Alloc]]=\"WYU\",tblREGASSJune19[[#This Row],[Alloc]]=\"WYP\",tblREGASSJune19[[#This Row],[Alloc]]=\"CA\",tblREGASSJune19[[#This Row],[Alloc]]=\"WA\"),\"SITUS\",tblREGASSJune19[[#This Row],[Alloc]])","v":"OTHER"},{"$f":"INDEX(tblREGASSLookup[FUNC],MATCH(tblREGASSJune19[[#This Row],[Concat]],tblREGASSLookup[Concat],0))","v":"CUST"},{"$f":"IF(tblREGASSJune19[[#This Row],[Total ($000)]]=0,\"NO\",IF(ISNA(tblREGASSJune19[[#This Row],[FUNC]]),\"YES\",IF(_xlfn.ISFORMULA(tblREGASSJune19[[#This Row],[FUNC]]),\"NO\",\"YES\")))","v":"NO"}]
[{"$f":"CONCATENATE(tblREGASSJune19[[#This Row],[Primary Account]],tblREGASSJune19[[#This Row],[Primary Name]],tblREGASSJune19[[#This Row],[Secondary Acct]],tblREGASSJune19[[#This Row],[Secondary  Name]],tblREGASSJune19[[#This Row],[Alloc4FUNC]])","v":"1823920DSR COSTS AMORTIZED103694PORTFOLIO WY-2013 CAT2OTHER"},1823920,"DSR COSTS AMORTIZED",103694,"PORTFOLIO WY-2013 CAT2","OTHER",37.646549999999998,{"$f":"IF(OR(tblREGASSJune19[[#This Row],[Alloc]]=\"IDU\",tblREGASSJune19[[#This Row],[Alloc]]=\"OR\",tblREGASSJune19[[#This Row],[Alloc]]=\"UT\",tblREGASSJune19[[#This Row],[Alloc]]=\"WYU\",tblREGASSJune19[[#This Row],[Alloc]]=\"WYP\",tblREGASSJune19[[#This Row],[Alloc]]=\"CA\",tblREGASSJune19[[#This Row],[Alloc]]=\"WA\"),\"SITUS\",tblREGASSJune19[[#This Row],[Alloc]])","v":"OTHER"},{"$f":"INDEX(tblREGASSLookup[FUNC],MATCH(tblREGASSJune19[[#This Row],[Concat]],tblREGASSLookup[Concat],0))","v":"CUST"},{"$f":"IF(tblREGASSJune19[[#This Row],[Total ($000)]]=0,\"NO\",IF(ISNA(tblREGASSJune19[[#This Row],[FUNC]]),\"YES\",IF(_xlfn.ISFORMULA(tblREGASSJune19[[#This Row],[FUNC]]),\"NO\",\"YES\")))","v":"NO"}]
[{"$f":"CONCATENATE(tblREGASSJune19[[#This Row],[Primary Account]],tblREGASSJune19[[#This Row],[Primary Name]],tblREGASSJune19[[#This Row],[Secondary Acct]],tblREGASSJune19[[#This Row],[Secondary  Name]],tblREGASSJune19[[#This Row],[Alloc4FUNC]])","v":"1823920DSR COSTS AMORTIZED103695PORTFOLIO WY-2013 CAT3OTHER"},1823920,"DSR COSTS AMORTIZED",103695,"PORTFOLIO WY-2013 CAT3","OTHER",25.731780000000001,{"$f":"IF(OR(tblREGASSJune19[[#This Row],[Alloc]]=\"IDU\",tblREGASSJune19[[#This Row],[Alloc]]=\"OR\",tblREGASSJune19[[#This Row],[Alloc]]=\"UT\",tblREGASSJune19[[#This Row],[Alloc]]=\"WYU\",tblREGASSJune19[[#This Row],[Alloc]]=\"WYP\",tblREGASSJune19[[#This Row],[Alloc]]=\"CA\",tblREGASSJune19[[#This Row],[Alloc]]=\"WA\"),\"SITUS\",tblREGASSJune19[[#This Row],[Alloc]])","v":"OTHER"},{"$f":"INDEX(tblREGASSLookup[FUNC],MATCH(tblREGASSJune19[[#This Row],[Concat]],tblREGASSLookup[Concat],0))","v":"CUST"},{"$f":"IF(tblREGASSJune19[[#This Row],[Total ($000)]]=0,\"NO\",IF(ISNA(tblREGASSJune19[[#This Row],[FUNC]]),\"YES\",IF(_xlfn.ISFORMULA(tblREGASSJune19[[#This Row],[FUNC]]),\"NO\",\"YES\")))","v":"NO"}]
[{"$f":"CONCATENATE(tblREGASSJune19[[#This Row],[Primary Account]],tblREGASSJune19[[#This Row],[Primary Name]],tblREGASSJune19[[#This Row],[Secondary Acct]],tblREGASSJune19[[#This Row],[Secondary  Name]],tblREGASSJune19[[#This Row],[Alloc4FUNC]])","v":"1823920DSR COSTS AMORTIZED103698COMMERCIAL CURTAILMENT - OR 2013OTHER"},1823920,"DSR COSTS AMORTIZED",103698,"COMMERCIAL CURTAILMENT - OR 2013","OTHER",0,{"$f":"IF(OR(tblREGASSJune19[[#This Row],[Alloc]]=\"IDU\",tblREGASSJune19[[#This Row],[Alloc]]=\"OR\",tblREGASSJune19[[#This Row],[Alloc]]=\"UT\",tblREGASSJune19[[#This Row],[Alloc]]=\"WYU\",tblREGASSJune19[[#This Row],[Alloc]]=\"WYP\",tblREGASSJune19[[#This Row],[Alloc]]=\"CA\",tblREGASSJune19[[#This Row],[Alloc]]=\"WA\"),\"SITUS\",tblREGASSJune19[[#This Row],[Alloc]])","v":"OTHER"},{"$f":"INDEX(tblREGASSLookup[FUNC],MATCH(tblREGASSJune19[[#This Row],[Concat]],tblREGASSLookup[Concat],0))","v":{"$error":"#N/A"}},{"$f":"IF(tblREGASSJune19[[#This Row],[Total ($000)]]=0,\"NO\",IF(ISNA(tblREGASSJune19[[#This Row],[FUNC]]),\"YES\",IF(_xlfn.ISFORMULA(tblREGASSJune19[[#This Row],[FUNC]]),\"NO\",\"YES\")))","v":"NO"}]
[{"$f":"CONCATENATE(tblREGASSJune19[[#This Row],[Primary Account]],tblREGASSJune19[[#This Row],[Primary Name]],tblREGASSJune19[[#This Row],[Secondary Acct]],tblREGASSJune19[[#This Row],[Secondary  Name]],tblREGASSJune19[[#This Row],[Alloc4FUNC]])","v":"1823920DSR COSTS AMORTIZED103700PORTFOLIO - UTAH 2013OTHER"},1823920,"DSR COSTS AMORTIZED",103700,"PORTFOLIO - UTAH 2013","OTHER",434.59116999999998,{"$f":"IF(OR(tblREGASSJune19[[#This Row],[Alloc]]=\"IDU\",tblREGASSJune19[[#This Row],[Alloc]]=\"OR\",tblREGASSJune19[[#This Row],[Alloc]]=\"UT\",tblREGASSJune19[[#This Row],[Alloc]]=\"WYU\",tblREGASSJune19[[#This Row],[Alloc]]=\"WYP\",tblREGASSJune19[[#This Row],[Alloc]]=\"CA\",tblREGASSJune19[[#This Row],[Alloc]]=\"WA\"),\"SITUS\",tblREGASSJune19[[#This Row],[Alloc]])","v":"OTHER"},{"$f":"INDEX(tblREGASSLookup[FUNC],MATCH(tblREGASSJune19[[#This Row],[Concat]],tblREGASSLookup[Concat],0))","v":"CUST"},{"$f":"IF(tblREGASSJune19[[#This Row],[Total ($000)]]=0,\"NO\",IF(ISNA(tblREGASSJune19[[#This Row],[FUNC]]),\"YES\",IF(_xlfn.ISFORMULA(tblREGASSJune19[[#This Row],[FUNC]]),\"NO\",\"YES\")))","v":"NO"}]
[{"$f":"CONCATENATE(tblREGASSJune19[[#This Row],[Primary Account]],tblREGASSJune19[[#This Row],[Primary Name]],tblREGASSJune19[[#This Row],[Secondary Acct]],tblREGASSJune19[[#This Row],[Secondary  Name]],tblREGASSJune19[[#This Row],[Alloc4FUNC]])","v":"1823920DSR COSTS AMORTIZED103701U.of Utah Student Energy Sponsorship- UTOTHER"},1823920,"DSR COSTS AMORTIZED",103701,"U.of Utah Student Energy Sponsorship- UT","OTHER",2.3017500000000002,{"$f":"IF(OR(tblREGASSJune19[[#This Row],[Alloc]]=\"IDU\",tblREGASSJune19[[#This Row],[Alloc]]=\"OR\",tblREGASSJune19[[#This Row],[Alloc]]=\"UT\",tblREGASSJune19[[#This Row],[Alloc]]=\"WYU\",tblREGASSJune19[[#This Row],[Alloc]]=\"WYP\",tblREGASSJune19[[#This Row],[Alloc]]=\"CA\",tblREGASSJune19[[#This Row],[Alloc]]=\"WA\"),\"SITUS\",tblREGASSJune19[[#This Row],[Alloc]])","v":"OTHER"},{"$f":"INDEX(tblREGASSLookup[FUNC],MATCH(tblREGASSJune19[[#This Row],[Concat]],tblREGASSLookup[Concat],0))","v":"CUST"},{"$f":"IF(tblREGASSJune19[[#This Row],[Total ($000)]]=0,\"NO\",IF(ISNA(tblREGASSJune19[[#This Row],[FUNC]]),\"YES\",IF(_xlfn.ISFORMULA(tblREGASSJune19[[#This Row],[FUNC]]),\"NO\",\"YES\")))","v":"NO"}]
[{"$f":"CONCATENATE(tblREGASSJune19[[#This Row],[Primary Account]],tblREGASSJune19[[#This Row],[Primary Name]],tblREGASSJune19[[#This Row],[Secondary Acct]],tblREGASSJune19[[#This Row],[Secondary  Name]],tblREGASSJune19[[#This Row],[Alloc4FUNC]])","v":"1823920DSR COSTS AMORTIZED103732COMMERCIAL (WSB) WATTSMART BUSINESS - UTOTHER"},1823920,"DSR COSTS AMORTIZED",103732,"COMMERCIAL (WSB) WATTSMART BUSINESS - UT","OTHER",0.12625,{"$f":"IF(OR(tblREGASSJune19[[#This Row],[Alloc]]=\"IDU\",tblREGASSJune19[[#This Row],[Alloc]]=\"OR\",tblREGASSJune19[[#This Row],[Alloc]]=\"UT\",tblREGASSJune19[[#This Row],[Alloc]]=\"WYU\",tblREGASSJune19[[#This Row],[Alloc]]=\"WYP\",tblREGASSJune19[[#This Row],[Alloc]]=\"CA\",tblREGASSJune19[[#This Row],[Alloc]]=\"WA\"),\"SITUS\",tblREGASSJune19[[#This Row],[Alloc]])","v":"OTHER"},{"$f":"INDEX(tblREGASSLookup[FUNC],MATCH(tblREGASSJune19[[#This Row],[Concat]],tblREGASSLookup[Concat],0))","v":"CUST"},{"$f":"IF(tblREGASSJune19[[#This Row],[Total ($000)]]=0,\"NO\",IF(ISNA(tblREGASSJune19[[#This Row],[FUNC]]),\"YES\",IF(_xlfn.ISFORMULA(tblREGASSJune19[[#This Row],[FUNC]]),\"NO\",\"YES\")))","v":"NO"}]
[{"$f":"CONCATENATE(tblREGASSJune19[[#This Row],[Primary Account]],tblREGASSJune19[[#This Row],[Primary Name]],tblREGASSJune19[[#This Row],[Secondary Acct]],tblREGASSJune19[[#This Row],[Secondary  Name]],tblREGASSJune19[[#This Row],[Alloc4FUNC]])","v":"1823920DSR COSTS AMORTIZED103734INDUSTRIAL (WSB) WATTSMART BUSINESS - UTOTHER"},1823920,"DSR COSTS AMORTIZED",103734,"INDUSTRIAL (WSB) WATTSMART BUSINESS - UT","OTHER",0.12625,{"$f":"IF(OR(tblREGASSJune19[[#This Row],[Alloc]]=\"IDU\",tblREGASSJune19[[#This Row],[Alloc]]=\"OR\",tblREGASSJune19[[#This Row],[Alloc]]=\"UT\",tblREGASSJune19[[#This Row],[Alloc]]=\"WYU\",tblREGASSJune19[[#This Row],[Alloc]]=\"WYP\",tblREGASSJune19[[#This Row],[Alloc]]=\"CA\",tblREGASSJune19[[#This Row],[Alloc]]=\"WA\"),\"SITUS\",tblREGASSJune19[[#This Row],[Alloc]])","v":"OTHER"},{"$f":"INDEX(tblREGASSLookup[FUNC],MATCH(tblREGASSJune19[[#This Row],[Concat]],tblREGASSLookup[Concat],0))","v":"CUST"},{"$f":"IF(tblREGASSJune19[[#This Row],[Total ($000)]]=0,\"NO\",IF(ISNA(tblREGASSJune19[[#This Row],[FUNC]]),\"YES\",IF(_xlfn.ISFORMULA(tblREGASSJune19[[#This Row],[FUNC]]),\"NO\",\"YES\")))","v":"NO"}]
[{"$f":"CONCATENATE(tblREGASSJune19[[#This Row],[Primary Account]],tblREGASSJune19[[#This Row],[Primary Name]],tblREGASSJune19[[#This Row],[Secondary Acct]],tblREGASSJune19[[#This Row],[Secondary  Name]],tblREGASSJune19[[#This Row],[Alloc4FUNC]])","v":"1823920DSR COSTS AMORTIZED103735WSB - WATTSMART BUSINESS - UT- 2013OTHER"},1823920,"DSR COSTS AMORTIZED",103735,"WSB - WATTSMART BUSINESS - UT- 2013","OTHER",12.1065,{"$f":"IF(OR(tblREGASSJune19[[#This Row],[Alloc]]=\"IDU\",tblREGASSJune19[[#This Row],[Alloc]]=\"OR\",tblREGASSJune19[[#This Row],[Alloc]]=\"UT\",tblREGASSJune19[[#This Row],[Alloc]]=\"WYU\",tblREGASSJune19[[#This Row],[Alloc]]=\"WYP\",tblREGASSJune19[[#This Row],[Alloc]]=\"CA\",tblREGASSJune19[[#This Row],[Alloc]]=\"WA\"),\"SITUS\",tblREGASSJune19[[#This Row],[Alloc]])","v":"OTHER"},{"$f":"INDEX(tblREGASSLookup[FUNC],MATCH(tblREGASSJune19[[#This Row],[Concat]],tblREGASSLookup[Concat],0))","v":"CUST"},{"$f":"IF(tblREGASSJune19[[#This Row],[Total ($000)]]=0,\"NO\",IF(ISNA(tblREGASSJune19[[#This Row],[FUNC]]),\"YES\",IF(_xlfn.ISFORMULA(tblREGASSJune19[[#This Row],[FUNC]]),\"NO\",\"YES\")))","v":"NO"}]
[{"$f":"CONCATENATE(tblREGASSJune19[[#This Row],[Primary Account]],tblREGASSJune19[[#This Row],[Primary Name]],tblREGASSJune19[[#This Row],[Secondary Acct]],tblREGASSJune19[[#This Row],[Secondary  Name]],tblREGASSJune19[[#This Row],[Alloc4FUNC]])","v":"1823920DSR COSTS AMORTIZED103740COMMERCIAL (WSB) WATTSMART BUSINESS - WAOTHER"},1823920,"DSR COSTS AMORTIZED",103740,"COMMERCIAL (WSB) WATTSMART BUSINESS - WA","OTHER",5435.4768000000004,{"$f":"IF(OR(tblREGASSJune19[[#This Row],[Alloc]]=\"IDU\",tblREGASSJune19[[#This Row],[Alloc]]=\"OR\",tblREGASSJune19[[#This Row],[Alloc]]=\"UT\",tblREGASSJune19[[#This Row],[Alloc]]=\"WYU\",tblREGASSJune19[[#This Row],[Alloc]]=\"WYP\",tblREGASSJune19[[#This Row],[Alloc]]=\"CA\",tblREGASSJune19[[#This Row],[Alloc]]=\"WA\"),\"SITUS\",tblREGASSJune19[[#This Row],[Alloc]])","v":"OTHER"},{"$f":"INDEX(tblREGASSLookup[FUNC],MATCH(tblREGASSJune19[[#This Row],[Concat]],tblREGASSLookup[Concat],0))","v":"CUST"},{"$f":"IF(tblREGASSJune19[[#This Row],[Total ($000)]]=0,\"NO\",IF(ISNA(tblREGASSJune19[[#This Row],[FUNC]]),\"YES\",IF(_xlfn.ISFORMULA(tblREGASSJune19[[#This Row],[FUNC]]),\"NO\",\"YES\")))","v":"NO"}]
[{"$f":"CONCATENATE(tblREGASSJune19[[#This Row],[Primary Account]],tblREGASSJune19[[#This Row],[Primary Name]],tblREGASSJune19[[#This Row],[Secondary Acct]],tblREGASSJune19[[#This Row],[Secondary  Name]],tblREGASSJune19[[#This Row],[Alloc4FUNC]])","v":"1823920DSR COSTS AMORTIZED103741INDUSTRIAL WATTSMART BUSINESS - WA-2013OTHER"},1823920,"DSR COSTS AMORTIZED",103741,"INDUSTRIAL WATTSMART BUSINESS - WA-2013","OTHER",6233.1292299999996,{"$f":"IF(OR(tblREGASSJune19[[#This Row],[Alloc]]=\"IDU\",tblREGASSJune19[[#This Row],[Alloc]]=\"OR\",tblREGASSJune19[[#This Row],[Alloc]]=\"UT\",tblREGASSJune19[[#This Row],[Alloc]]=\"WYU\",tblREGASSJune19[[#This Row],[Alloc]]=\"WYP\",tblREGASSJune19[[#This Row],[Alloc]]=\"CA\",tblREGASSJune19[[#This Row],[Alloc]]=\"WA\"),\"SITUS\",tblREGASSJune19[[#This Row],[Alloc]])","v":"OTHER"},{"$f":"INDEX(tblREGASSLookup[FUNC],MATCH(tblREGASSJune19[[#This Row],[Concat]],tblREGASSLookup[Concat],0))","v":"CUST"},{"$f":"IF(tblREGASSJune19[[#This Row],[Total ($000)]]=0,\"NO\",IF(ISNA(tblREGASSJune19[[#This Row],[FUNC]]),\"YES\",IF(_xlfn.ISFORMULA(tblREGASSJune19[[#This Row],[FUNC]]),\"NO\",\"YES\")))","v":"NO"}]
[{"$f":"CONCATENATE(tblREGASSJune19[[#This Row],[Primary Account]],tblREGASSJune19[[#This Row],[Primary Name]],tblREGASSJune19[[#This Row],[Secondary Acct]],tblREGASSJune19[[#This Row],[Secondary  Name]],tblREGASSJune19[[#This Row],[Alloc4FUNC]])","v":"1823920DSR COSTS AMORTIZED103742WSB - WATTSMART BUSINESS - WA- 2013OTHER"},1823920,"DSR COSTS AMORTIZED",103742,"WSB - WATTSMART BUSINESS - WA- 2013","OTHER",4049.3921599999999,{"$f":"IF(OR(tblREGASSJune19[[#This Row],[Alloc]]=\"IDU\",tblREGASSJune19[[#This Row],[Alloc]]=\"OR\",tblREGASSJune19[[#This Row],[Alloc]]=\"UT\",tblREGASSJune19[[#This Row],[Alloc]]=\"WYU\",tblREGASSJune19[[#This Row],[Alloc]]=\"WYP\",tblREGASSJune19[[#This Row],[Alloc]]=\"CA\",tblREGASSJune19[[#This Row],[Alloc]]=\"WA\"),\"SITUS\",tblREGASSJune19[[#This Row],[Alloc]])","v":"OTHER"},{"$f":"INDEX(tblREGASSLookup[FUNC],MATCH(tblREGASSJune19[[#This Row],[Concat]],tblREGASSLookup[Concat],0))","v":"CUST"},{"$f":"IF(tblREGASSJune19[[#This Row],[Total ($000)]]=0,\"NO\",IF(ISNA(tblREGASSJune19[[#This Row],[FUNC]]),\"YES\",IF(_xlfn.ISFORMULA(tblREGASSJune19[[#This Row],[FUNC]]),\"NO\",\"YES\")))","v":"NO"}]
[{"$f":"CONCATENATE(tblREGASSJune19[[#This Row],[Primary Account]],tblREGASSJune19[[#This Row],[Primary Name]],tblREGASSJune19[[#This Row],[Secondary Acct]],tblREGASSJune19[[#This Row],[Secondary  Name]],tblREGASSJune19[[#This Row],[Alloc4FUNC]])","v":"1823920DSR COSTS AMORTIZED103743AGRICULTURAL (WSB) WATTSMART BUSINESS -OTHER"},1823920,"DSR COSTS AMORTIZED",103743,"AGRICULTURAL (WSB) WATTSMART BUSINESS -","OTHER",306.17714999999998,{"$f":"IF(OR(tblREGASSJune19[[#This Row],[Alloc]]=\"IDU\",tblREGASSJune19[[#This Row],[Alloc]]=\"OR\",tblREGASSJune19[[#This Row],[Alloc]]=\"UT\",tblREGASSJune19[[#This Row],[Alloc]]=\"WYU\",tblREGASSJune19[[#This Row],[Alloc]]=\"WYP\",tblREGASSJune19[[#This Row],[Alloc]]=\"CA\",tblREGASSJune19[[#This Row],[Alloc]]=\"WA\"),\"SITUS\",tblREGASSJune19[[#This Row],[Alloc]])","v":"OTHER"},{"$f":"INDEX(tblREGASSLookup[FUNC],MATCH(tblREGASSJune19[[#This Row],[Concat]],tblREGASSLookup[Concat],0))","v":"CUST"},{"$f":"IF(tblREGASSJune19[[#This Row],[Total ($000)]]=0,\"NO\",IF(ISNA(tblREGASSJune19[[#This Row],[FUNC]]),\"YES\",IF(_xlfn.ISFORMULA(tblREGASSJune19[[#This Row],[FUNC]]),\"NO\",\"YES\")))","v":"NO"}]
[{"$f":"CONCATENATE(tblREGASSJune19[[#This Row],[Primary Account]],tblREGASSJune19[[#This Row],[Primary Name]],tblREGASSJune19[[#This Row],[Secondary Acct]],tblREGASSJune19[[#This Row],[Secondary  Name]],tblREGASSJune19[[#This Row],[Alloc4FUNC]])","v":"1823920DSR COSTS AMORTIZED103745CALIFORNIA DSM EXPENSE - 2014OTHER"},1823920,"DSR COSTS AMORTIZED",103745,"CALIFORNIA DSM EXPENSE - 2014","OTHER",1.0000000000000001E-5,{"$f":"IF(OR(tblREGASSJune19[[#This Row],[Alloc]]=\"IDU\",tblREGASSJune19[[#This Row],[Alloc]]=\"OR\",tblREGASSJune19[[#This Row],[Alloc]]=\"UT\",tblREGASSJune19[[#This Row],[Alloc]]=\"WYU\",tblREGASSJune19[[#This Row],[Alloc]]=\"WYP\",tblREGASSJune19[[#This Row],[Alloc]]=\"CA\",tblREGASSJune19[[#This Row],[Alloc]]=\"WA\"),\"SITUS\",tblREGASSJune19[[#This Row],[Alloc]])","v":"OTHER"},{"$f":"INDEX(tblREGASSLookup[FUNC],MATCH(tblREGASSJune19[[#This Row],[Concat]],tblREGASSLookup[Concat],0))","v":"CUST"},{"$f":"IF(tblREGASSJune19[[#This Row],[Total ($000)]]=0,\"NO\",IF(ISNA(tblREGASSJune19[[#This Row],[FUNC]]),\"YES\",IF(_xlfn.ISFORMULA(tblREGASSJune19[[#This Row],[FUNC]]),\"NO\",\"YES\")))","v":"NO"}]
[{"$f":"CONCATENATE(tblREGASSJune19[[#This Row],[Primary Account]],tblREGASSJune19[[#This Row],[Primary Name]],tblREGASSJune19[[#This Row],[Secondary Acct]],tblREGASSJune19[[#This Row],[Secondary  Name]],tblREGASSJune19[[#This Row],[Alloc4FUNC]])","v":"1823920DSR COSTS AMORTIZED103754PORTFOLIO - IDAHO 2014OTHER"},1823920,"DSR COSTS AMORTIZED",103754,"PORTFOLIO - IDAHO 2014","OTHER",29.606560000000002,{"$f":"IF(OR(tblREGASSJune19[[#This Row],[Alloc]]=\"IDU\",tblREGASSJune19[[#This Row],[Alloc]]=\"OR\",tblREGASSJune19[[#This Row],[Alloc]]=\"UT\",tblREGASSJune19[[#This Row],[Alloc]]=\"WYU\",tblREGASSJune19[[#This Row],[Alloc]]=\"WYP\",tblREGASSJune19[[#This Row],[Alloc]]=\"CA\",tblREGASSJune19[[#This Row],[Alloc]]=\"WA\"),\"SITUS\",tblREGASSJune19[[#This Row],[Alloc]])","v":"OTHER"},{"$f":"INDEX(tblREGASSLookup[FUNC],MATCH(tblREGASSJune19[[#This Row],[Concat]],tblREGASSLookup[Concat],0))","v":"CUST"},{"$f":"IF(tblREGASSJune19[[#This Row],[Total ($000)]]=0,\"NO\",IF(ISNA(tblREGASSJune19[[#This Row],[FUNC]]),\"YES\",IF(_xlfn.ISFORMULA(tblREGASSJune19[[#This Row],[FUNC]]),\"NO\",\"YES\")))","v":"NO"}]
[{"$f":"CONCATENATE(tblREGASSJune19[[#This Row],[Primary Account]],tblREGASSJune19[[#This Row],[Primary Name]],tblREGASSJune19[[#This Row],[Secondary Acct]],tblREGASSJune19[[#This Row],[Secondary  Name]],tblREGASSJune19[[#This Row],[Alloc4FUNC]])","v":"1823920DSR COSTS AMORTIZED103756A/C LOAD CONTROL - RESIDENTIAL/UTAH - 20OTHER"},1823920,"DSR COSTS AMORTIZED",103756,"A/C LOAD CONTROL - RESIDENTIAL/UTAH - 20","OTHER",24564.386439999998,{"$f":"IF(OR(tblREGASSJune19[[#This Row],[Alloc]]=\"IDU\",tblREGASSJune19[[#This Row],[Alloc]]=\"OR\",tblREGASSJune19[[#This Row],[Alloc]]=\"UT\",tblREGASSJune19[[#This Row],[Alloc]]=\"WYU\",tblREGASSJune19[[#This Row],[Alloc]]=\"WYP\",tblREGASSJune19[[#This Row],[Alloc]]=\"CA\",tblREGASSJune19[[#This Row],[Alloc]]=\"WA\"),\"SITUS\",tblREGASSJune19[[#This Row],[Alloc]])","v":"OTHER"},{"$f":"INDEX(tblREGASSLookup[FUNC],MATCH(tblREGASSJune19[[#This Row],[Concat]],tblREGASSLookup[Concat],0))","v":"CUST"},{"$f":"IF(tblREGASSJune19[[#This Row],[Total ($000)]]=0,\"NO\",IF(ISNA(tblREGASSJune19[[#This Row],[FUNC]]),\"YES\",IF(_xlfn.ISFORMULA(tblREGASSJune19[[#This Row],[FUNC]]),\"NO\",\"YES\")))","v":"NO"}]
[{"$f":"CONCATENATE(tblREGASSJune19[[#This Row],[Primary Account]],tblREGASSJune19[[#This Row],[Primary Name]],tblREGASSJune19[[#This Row],[Secondary Acct]],tblREGASSJune19[[#This Row],[Secondary  Name]],tblREGASSJune19[[#This Row],[Alloc4FUNC]])","v":"1823920DSR COSTS AMORTIZED103757AGRICULURAL FINANSWER EXPRESS - UTAH - 2OTHER"},1823920,"DSR COSTS AMORTIZED",103757,"AGRICULURAL FINANSWER EXPRESS - UTAH - 2","OTHER",1.05437,{"$f":"IF(OR(tblREGASSJune19[[#This Row],[Alloc]]=\"IDU\",tblREGASSJune19[[#This Row],[Alloc]]=\"OR\",tblREGASSJune19[[#This Row],[Alloc]]=\"UT\",tblREGASSJune19[[#This Row],[Alloc]]=\"WYU\",tblREGASSJune19[[#This Row],[Alloc]]=\"WYP\",tblREGASSJune19[[#This Row],[Alloc]]=\"CA\",tblREGASSJune19[[#This Row],[Alloc]]=\"WA\"),\"SITUS\",tblREGASSJune19[[#This Row],[Alloc]])","v":"OTHER"},{"$f":"INDEX(tblREGASSLookup[FUNC],MATCH(tblREGASSJune19[[#This Row],[Concat]],tblREGASSLookup[Concat],0))","v":"CUST"},{"$f":"IF(tblREGASSJune19[[#This Row],[Total ($000)]]=0,\"NO\",IF(ISNA(tblREGASSJune19[[#This Row],[FUNC]]),\"YES\",IF(_xlfn.ISFORMULA(tblREGASSJune19[[#This Row],[FUNC]]),\"NO\",\"YES\")))","v":"NO"}]
[{"$f":"CONCATENATE(tblREGASSJune19[[#This Row],[Primary Account]],tblREGASSJune19[[#This Row],[Primary Name]],tblREGASSJune19[[#This Row],[Secondary Acct]],tblREGASSJune19[[#This Row],[Secondary  Name]],tblREGASSJune19[[#This Row],[Alloc4FUNC]])","v":"1823920DSR COSTS AMORTIZED103758AIR CONDITIONING - UTAH - 2014OTHER"},1823920,"DSR COSTS AMORTIZED",103758,"AIR CONDITIONING - UTAH - 2014","OTHER",0.59555000000000002,{"$f":"IF(OR(tblREGASSJune19[[#This Row],[Alloc]]=\"IDU\",tblREGASSJune19[[#This Row],[Alloc]]=\"OR\",tblREGASSJune19[[#This Row],[Alloc]]=\"UT\",tblREGASSJune19[[#This Row],[Alloc]]=\"WYU\",tblREGASSJune19[[#This Row],[Alloc]]=\"WYP\",tblREGASSJune19[[#This Row],[Alloc]]=\"CA\",tblREGASSJune19[[#This Row],[Alloc]]=\"WA\"),\"SITUS\",tblREGASSJune19[[#This Row],[Alloc]])","v":"OTHER"},{"$f":"INDEX(tblREGASSLookup[FUNC],MATCH(tblREGASSJune19[[#This Row],[Concat]],tblREGASSLookup[Concat],0))","v":"CUST"},{"$f":"IF(tblREGASSJune19[[#This Row],[Total ($000)]]=0,\"NO\",IF(ISNA(tblREGASSJune19[[#This Row],[FUNC]]),\"YES\",IF(_xlfn.ISFORMULA(tblREGASSJune19[[#This Row],[FUNC]]),\"NO\",\"YES\")))","v":"NO"}]
[{"$f":"CONCATENATE(tblREGASSJune19[[#This Row],[Primary Account]],tblREGASSJune19[[#This Row],[Primary Name]],tblREGASSJune19[[#This Row],[Secondary Acct]],tblREGASSJune19[[#This Row],[Secondary  Name]],tblREGASSJune19[[#This Row],[Alloc4FUNC]])","v":"1823920DSR COSTS AMORTIZED103759COMMERCIAL FINANSWER EXPRESS - UTAH - 20OTHER"},1823920,"DSR COSTS AMORTIZED",103759,"COMMERCIAL FINANSWER EXPRESS - UTAH - 20","OTHER",401.09062,{"$f":"IF(OR(tblREGASSJune19[[#This Row],[Alloc]]=\"IDU\",tblREGASSJune19[[#This Row],[Alloc]]=\"OR\",tblREGASSJune19[[#This Row],[Alloc]]=\"UT\",tblREGASSJune19[[#This Row],[Alloc]]=\"WYU\",tblREGASSJune19[[#This Row],[Alloc]]=\"WYP\",tblREGASSJune19[[#This Row],[Alloc]]=\"CA\",tblREGASSJune19[[#This Row],[Alloc]]=\"WA\"),\"SITUS\",tblREGASSJune19[[#This Row],[Alloc]])","v":"OTHER"},{"$f":"INDEX(tblREGASSLookup[FUNC],MATCH(tblREGASSJune19[[#This Row],[Concat]],tblREGASSLookup[Concat],0))","v":"CUST"},{"$f":"IF(tblREGASSJune19[[#This Row],[Total ($000)]]=0,\"NO\",IF(ISNA(tblREGASSJune19[[#This Row],[FUNC]]),\"YES\",IF(_xlfn.ISFORMULA(tblREGASSJune19[[#This Row],[FUNC]]),\"NO\",\"YES\")))","v":"NO"}]
[{"$f":"CONCATENATE(tblREGASSJune19[[#This Row],[Primary Account]],tblREGASSJune19[[#This Row],[Primary Name]],tblREGASSJune19[[#This Row],[Secondary Acct]],tblREGASSJune19[[#This Row],[Secondary  Name]],tblREGASSJune19[[#This Row],[Alloc4FUNC]])","v":"1823920DSR COSTS AMORTIZED103760ENERGY FINANSWER - UTAH - 2014OTHER"},1823920,"DSR COSTS AMORTIZED",103760,"ENERGY FINANSWER - UTAH - 2014","OTHER",37.16628,{"$f":"IF(OR(tblREGASSJune19[[#This Row],[Alloc]]=\"IDU\",tblREGASSJune19[[#This Row],[Alloc]]=\"OR\",tblREGASSJune19[[#This Row],[Alloc]]=\"UT\",tblREGASSJune19[[#This Row],[Alloc]]=\"WYU\",tblREGASSJune19[[#This Row],[Alloc]]=\"WYP\",tblREGASSJune19[[#This Row],[Alloc]]=\"CA\",tblREGASSJune19[[#This Row],[Alloc]]=\"WA\"),\"SITUS\",tblREGASSJune19[[#This Row],[Alloc]])","v":"OTHER"},{"$f":"INDEX(tblREGASSLookup[FUNC],MATCH(tblREGASSJune19[[#This Row],[Concat]],tblREGASSLookup[Concat],0))","v":"CUST"},{"$f":"IF(tblREGASSJune19[[#This Row],[Total ($000)]]=0,\"NO\",IF(ISNA(tblREGASSJune19[[#This Row],[FUNC]]),\"YES\",IF(_xlfn.ISFORMULA(tblREGASSJune19[[#This Row],[FUNC]]),\"NO\",\"YES\")))","v":"NO"}]
[{"$f":"CONCATENATE(tblREGASSJune19[[#This Row],[Primary Account]],tblREGASSJune19[[#This Row],[Primary Name]],tblREGASSJune19[[#This Row],[Secondary Acct]],tblREGASSJune19[[#This Row],[Secondary  Name]],tblREGASSJune19[[#This Row],[Alloc4FUNC]])","v":"1823920DSR COSTS AMORTIZED103761HOME ENERGY EFF INCENTIVE PROG - UT 2014OTHER"},1823920,"DSR COSTS AMORTIZED",103761,"HOME ENERGY EFF INCENTIVE PROG - UT 2014","OTHER",24908.45808,{"$f":"IF(OR(tblREGASSJune19[[#This Row],[Alloc]]=\"IDU\",tblREGASSJune19[[#This Row],[Alloc]]=\"OR\",tblREGASSJune19[[#This Row],[Alloc]]=\"UT\",tblREGASSJune19[[#This Row],[Alloc]]=\"WYU\",tblREGASSJune19[[#This Row],[Alloc]]=\"WYP\",tblREGASSJune19[[#This Row],[Alloc]]=\"CA\",tblREGASSJune19[[#This Row],[Alloc]]=\"WA\"),\"SITUS\",tblREGASSJune19[[#This Row],[Alloc]])","v":"OTHER"},{"$f":"INDEX(tblREGASSLookup[FUNC],MATCH(tblREGASSJune19[[#This Row],[Concat]],tblREGASSLookup[Concat],0))","v":"CUST"},{"$f":"IF(tblREGASSJune19[[#This Row],[Total ($000)]]=0,\"NO\",IF(ISNA(tblREGASSJune19[[#This Row],[FUNC]]),\"YES\",IF(_xlfn.ISFORMULA(tblREGASSJune19[[#This Row],[FUNC]]),\"NO\",\"YES\")))","v":"NO"}]
[{"$f":"CONCATENATE(tblREGASSJune19[[#This Row],[Primary Account]],tblREGASSJune19[[#This Row],[Primary Name]],tblREGASSJune19[[#This Row],[Secondary Acct]],tblREGASSJune19[[#This Row],[Secondary  Name]],tblREGASSJune19[[#This Row],[Alloc4FUNC]])","v":"1823920DSR COSTS AMORTIZED103762HOME ENERGY REPORTING - UT 2014OTHER"},1823920,"DSR COSTS AMORTIZED",103762,"HOME ENERGY REPORTING - UT 2014","OTHER",1630.2454700000001,{"$f":"IF(OR(tblREGASSJune19[[#This Row],[Alloc]]=\"IDU\",tblREGASSJune19[[#This Row],[Alloc]]=\"OR\",tblREGASSJune19[[#This Row],[Alloc]]=\"UT\",tblREGASSJune19[[#This Row],[Alloc]]=\"WYU\",tblREGASSJune19[[#This Row],[Alloc]]=\"WYP\",tblREGASSJune19[[#This Row],[Alloc]]=\"CA\",tblREGASSJune19[[#This Row],[Alloc]]=\"WA\"),\"SITUS\",tblREGASSJune19[[#This Row],[Alloc]])","v":"OTHER"},{"$f":"INDEX(tblREGASSLookup[FUNC],MATCH(tblREGASSJune19[[#This Row],[Concat]],tblREGASSLookup[Concat],0))","v":"CUST"},{"$f":"IF(tblREGASSJune19[[#This Row],[Total ($000)]]=0,\"NO\",IF(ISNA(tblREGASSJune19[[#This Row],[FUNC]]),\"YES\",IF(_xlfn.ISFORMULA(tblREGASSJune19[[#This Row],[FUNC]]),\"NO\",\"YES\")))","v":"NO"}]
[{"$f":"CONCATENATE(tblREGASSJune19[[#This Row],[Primary Account]],tblREGASSJune19[[#This Row],[Primary Name]],tblREGASSJune19[[#This Row],[Secondary Acct]],tblREGASSJune19[[#This Row],[Secondary  Name]],tblREGASSJune19[[#This Row],[Alloc4FUNC]])","v":"1823920DSR COSTS AMORTIZED103763INDUSTRIAL FINANSWER - UTAH - 2014OTHER"},1823920,"DSR COSTS AMORTIZED",103763,"INDUSTRIAL FINANSWER - UTAH - 2014","OTHER",59.767749999999999,{"$f":"IF(OR(tblREGASSJune19[[#This Row],[Alloc]]=\"IDU\",tblREGASSJune19[[#This Row],[Alloc]]=\"OR\",tblREGASSJune19[[#This Row],[Alloc]]=\"UT\",tblREGASSJune19[[#This Row],[Alloc]]=\"WYU\",tblREGASSJune19[[#This Row],[Alloc]]=\"WYP\",tblREGASSJune19[[#This Row],[Alloc]]=\"CA\",tblREGASSJune19[[#This Row],[Alloc]]=\"WA\"),\"SITUS\",tblREGASSJune19[[#This Row],[Alloc]])","v":"OTHER"},{"$f":"INDEX(tblREGASSLookup[FUNC],MATCH(tblREGASSJune19[[#This Row],[Concat]],tblREGASSLookup[Concat],0))","v":"CUST"},{"$f":"IF(tblREGASSJune19[[#This Row],[Total ($000)]]=0,\"NO\",IF(ISNA(tblREGASSJune19[[#This Row],[FUNC]]),\"YES\",IF(_xlfn.ISFORMULA(tblREGASSJune19[[#This Row],[FUNC]]),\"NO\",\"YES\")))","v":"NO"}]
[{"$f":"CONCATENATE(tblREGASSJune19[[#This Row],[Primary Account]],tblREGASSJune19[[#This Row],[Primary Name]],tblREGASSJune19[[#This Row],[Secondary Acct]],tblREGASSJune19[[#This Row],[Secondary  Name]],tblREGASSJune19[[#This Row],[Alloc4FUNC]])","v":"1823920DSR COSTS AMORTIZED103764INDUSTRIAL FINANSWER EXPRESS - UTAH - 20OTHER"},1823920,"DSR COSTS AMORTIZED",103764,"INDUSTRIAL FINANSWER EXPRESS - UTAH - 20","OTHER",144.06113999999999,{"$f":"IF(OR(tblREGASSJune19[[#This Row],[Alloc]]=\"IDU\",tblREGASSJune19[[#This Row],[Alloc]]=\"OR\",tblREGASSJune19[[#This Row],[Alloc]]=\"UT\",tblREGASSJune19[[#This Row],[Alloc]]=\"WYU\",tblREGASSJune19[[#This Row],[Alloc]]=\"WYP\",tblREGASSJune19[[#This Row],[Alloc]]=\"CA\",tblREGASSJune19[[#This Row],[Alloc]]=\"WA\"),\"SITUS\",tblREGASSJune19[[#This Row],[Alloc]])","v":"OTHER"},{"$f":"INDEX(tblREGASSLookup[FUNC],MATCH(tblREGASSJune19[[#This Row],[Concat]],tblREGASSLookup[Concat],0))","v":"CUST"},{"$f":"IF(tblREGASSJune19[[#This Row],[Total ($000)]]=0,\"NO\",IF(ISNA(tblREGASSJune19[[#This Row],[FUNC]]),\"YES\",IF(_xlfn.ISFORMULA(tblREGASSJune19[[#This Row],[FUNC]]),\"NO\",\"YES\")))","v":"NO"}]
[{"$f":"CONCATENATE(tblREGASSJune19[[#This Row],[Primary Account]],tblREGASSJune19[[#This Row],[Primary Name]],tblREGASSJune19[[#This Row],[Secondary Acct]],tblREGASSJune19[[#This Row],[Secondary  Name]],tblREGASSJune19[[#This Row],[Alloc4FUNC]])","v":"1823920DSR COSTS AMORTIZED103765IRRIGATION LOAD CONTROL  - UTAH - 2014OTHER"},1823920,"DSR COSTS AMORTIZED",103765,"IRRIGATION LOAD CONTROL  - UTAH - 2014","OTHER",596.81268,{"$f":"IF(OR(tblREGASSJune19[[#This Row],[Alloc]]=\"IDU\",tblREGASSJune19[[#This Row],[Alloc]]=\"OR\",tblREGASSJune19[[#This Row],[Alloc]]=\"UT\",tblREGASSJune19[[#This Row],[Alloc]]=\"WYU\",tblREGASSJune19[[#This Row],[Alloc]]=\"WYP\",tblREGASSJune19[[#This Row],[Alloc]]=\"CA\",tblREGASSJune19[[#This Row],[Alloc]]=\"WA\"),\"SITUS\",tblREGASSJune19[[#This Row],[Alloc]])","v":"OTHER"},{"$f":"INDEX(tblREGASSLookup[FUNC],MATCH(tblREGASSJune19[[#This Row],[Concat]],tblREGASSLookup[Concat],0))","v":"CUST"},{"$f":"IF(tblREGASSJune19[[#This Row],[Total ($000)]]=0,\"NO\",IF(ISNA(tblREGASSJune19[[#This Row],[FUNC]]),\"YES\",IF(_xlfn.ISFORMULA(tblREGASSJune19[[#This Row],[FUNC]]),\"NO\",\"YES\")))","v":"NO"}]
[{"$f":"CONCATENATE(tblREGASSJune19[[#This Row],[Primary Account]],tblREGASSJune19[[#This Row],[Primary Name]],tblREGASSJune19[[#This Row],[Secondary Acct]],tblREGASSJune19[[#This Row],[Secondary  Name]],tblREGASSJune19[[#This Row],[Alloc4FUNC]])","v":"1823920DSR COSTS AMORTIZED103766LOW INCOME - UTAH - 2014OTHER"},1823920,"DSR COSTS AMORTIZED",103766,"LOW INCOME - UTAH - 2014","OTHER",170.1138,{"$f":"IF(OR(tblREGASSJune19[[#This Row],[Alloc]]=\"IDU\",tblREGASSJune19[[#This Row],[Alloc]]=\"OR\",tblREGASSJune19[[#This Row],[Alloc]]=\"UT\",tblREGASSJune19[[#This Row],[Alloc]]=\"WYU\",tblREGASSJune19[[#This Row],[Alloc]]=\"WYP\",tblREGASSJune19[[#This Row],[Alloc]]=\"CA\",tblREGASSJune19[[#This Row],[Alloc]]=\"WA\"),\"SITUS\",tblREGASSJune19[[#This Row],[Alloc]])","v":"OTHER"},{"$f":"INDEX(tblREGASSLookup[FUNC],MATCH(tblREGASSJune19[[#This Row],[Concat]],tblREGASSLookup[Concat],0))","v":"CUST"},{"$f":"IF(tblREGASSJune19[[#This Row],[Total ($000)]]=0,\"NO\",IF(ISNA(tblREGASSJune19[[#This Row],[FUNC]]),\"YES\",IF(_xlfn.ISFORMULA(tblREGASSJune19[[#This Row],[FUNC]]),\"NO\",\"YES\")))","v":"NO"}]
[{"$f":"CONCATENATE(tblREGASSJune19[[#This Row],[Primary Account]],tblREGASSJune19[[#This Row],[Primary Name]],tblREGASSJune19[[#This Row],[Secondary Acct]],tblREGASSJune19[[#This Row],[Secondary  Name]],tblREGASSJune19[[#This Row],[Alloc4FUNC]])","v":"1823920DSR COSTS AMORTIZED103767OUTREACH and COMMUNICATIONS - UT 2014OTHER"},1823920,"DSR COSTS AMORTIZED",103767,"OUTREACH and COMMUNICATIONS - UT 2014","OTHER",1585.1090300000001,{"$f":"IF(OR(tblREGASSJune19[[#This Row],[Alloc]]=\"IDU\",tblREGASSJune19[[#This Row],[Alloc]]=\"OR\",tblREGASSJune19[[#This Row],[Alloc]]=\"UT\",tblREGASSJune19[[#This Row],[Alloc]]=\"WYU\",tblREGASSJune19[[#This Row],[Alloc]]=\"WYP\",tblREGASSJune19[[#This Row],[Alloc]]=\"CA\",tblREGASSJune19[[#This Row],[Alloc]]=\"WA\"),\"SITUS\",tblREGASSJune19[[#This Row],[Alloc]])","v":"OTHER"},{"$f":"INDEX(tblREGASSLookup[FUNC],MATCH(tblREGASSJune19[[#This Row],[Concat]],tblREGASSLookup[Concat],0))","v":"CUST"},{"$f":"IF(tblREGASSJune19[[#This Row],[Total ($000)]]=0,\"NO\",IF(ISNA(tblREGASSJune19[[#This Row],[FUNC]]),\"YES\",IF(_xlfn.ISFORMULA(tblREGASSJune19[[#This Row],[FUNC]]),\"NO\",\"YES\")))","v":"NO"}]
[{"$f":"CONCATENATE(tblREGASSJune19[[#This Row],[Primary Account]],tblREGASSJune19[[#This Row],[Primary Name]],tblREGASSJune19[[#This Row],[Secondary Acct]],tblREGASSJune19[[#This Row],[Secondary  Name]],tblREGASSJune19[[#This Row],[Alloc4FUNC]])","v":"1823920DSR COSTS AMORTIZED103768PORTFOLIO - UTAH 2014OTHER"},1823920,"DSR COSTS AMORTIZED",103768,"PORTFOLIO - UTAH 2014","OTHER",241.77144999999999,{"$f":"IF(OR(tblREGASSJune19[[#This Row],[Alloc]]=\"IDU\",tblREGASSJune19[[#This Row],[Alloc]]=\"OR\",tblREGASSJune19[[#This Row],[Alloc]]=\"UT\",tblREGASSJune19[[#This Row],[Alloc]]=\"WYU\",tblREGASSJune19[[#This Row],[Alloc]]=\"WYP\",tblREGASSJune19[[#This Row],[Alloc]]=\"CA\",tblREGASSJune19[[#This Row],[Alloc]]=\"WA\"),\"SITUS\",tblREGASSJune19[[#This Row],[Alloc]])","v":"OTHER"},{"$f":"INDEX(tblREGASSLookup[FUNC],MATCH(tblREGASSJune19[[#This Row],[Concat]],tblREGASSLookup[Concat],0))","v":"CUST"},{"$f":"IF(tblREGASSJune19[[#This Row],[Total ($000)]]=0,\"NO\",IF(ISNA(tblREGASSJune19[[#This Row],[FUNC]]),\"YES\",IF(_xlfn.ISFORMULA(tblREGASSJune19[[#This Row],[FUNC]]),\"NO\",\"YES\")))","v":"NO"}]
[{"$f":"CONCATENATE(tblREGASSJune19[[#This Row],[Primary Account]],tblREGASSJune19[[#This Row],[Primary Name]],tblREGASSJune19[[#This Row],[Secondary Acct]],tblREGASSJune19[[#This Row],[Secondary  Name]],tblREGASSJune19[[#This Row],[Alloc4FUNC]])","v":"1823920DSR COSTS AMORTIZED103769REFRIGERATOR RECYCLING PGM- UTAH - 2014OTHER"},1823920,"DSR COSTS AMORTIZED",103769,"REFRIGERATOR RECYCLING PGM- UTAH - 2014","OTHER",1761.77487,{"$f":"IF(OR(tblREGASSJune19[[#This Row],[Alloc]]=\"IDU\",tblREGASSJune19[[#This Row],[Alloc]]=\"OR\",tblREGASSJune19[[#This Row],[Alloc]]=\"UT\",tblREGASSJune19[[#This Row],[Alloc]]=\"WYU\",tblREGASSJune19[[#This Row],[Alloc]]=\"WYP\",tblREGASSJune19[[#This Row],[Alloc]]=\"CA\",tblREGASSJune19[[#This Row],[Alloc]]=\"WA\"),\"SITUS\",tblREGASSJune19[[#This Row],[Alloc]])","v":"OTHER"},{"$f":"INDEX(tblREGASSLookup[FUNC],MATCH(tblREGASSJune19[[#This Row],[Concat]],tblREGASSLookup[Concat],0))","v":"CUST"},{"$f":"IF(tblREGASSJune19[[#This Row],[Total ($000)]]=0,\"NO\",IF(ISNA(tblREGASSJune19[[#This Row],[FUNC]]),\"YES\",IF(_xlfn.ISFORMULA(tblREGASSJune19[[#This Row],[FUNC]]),\"NO\",\"YES\")))","v":"NO"}]
[{"$f":"CONCATENATE(tblREGASSJune19[[#This Row],[Primary Account]],tblREGASSJune19[[#This Row],[Primary Name]],tblREGASSJune19[[#This Row],[Secondary Acct]],tblREGASSJune19[[#This Row],[Secondary  Name]],tblREGASSJune19[[#This Row],[Alloc4FUNC]])","v":"1823920DSR COSTS AMORTIZED103770RESIDENTIAL NEW CONSTRUCTION - UTAH - 20OTHER"},1823920,"DSR COSTS AMORTIZED",103770,"RESIDENTIAL NEW CONSTRUCTION - UTAH - 20","OTHER",1202.90924,{"$f":"IF(OR(tblREGASSJune19[[#This Row],[Alloc]]=\"IDU\",tblREGASSJune19[[#This Row],[Alloc]]=\"OR\",tblREGASSJune19[[#This Row],[Alloc]]=\"UT\",tblREGASSJune19[[#This Row],[Alloc]]=\"WYU\",tblREGASSJune19[[#This Row],[Alloc]]=\"WYP\",tblREGASSJune19[[#This Row],[Alloc]]=\"CA\",tblREGASSJune19[[#This Row],[Alloc]]=\"WA\"),\"SITUS\",tblREGASSJune19[[#This Row],[Alloc]])","v":"OTHER"},{"$f":"INDEX(tblREGASSLookup[FUNC],MATCH(tblREGASSJune19[[#This Row],[Concat]],tblREGASSLookup[Concat],0))","v":"CUST"},{"$f":"IF(tblREGASSJune19[[#This Row],[Total ($000)]]=0,\"NO\",IF(ISNA(tblREGASSJune19[[#This Row],[FUNC]]),\"YES\",IF(_xlfn.ISFORMULA(tblREGASSJune19[[#This Row],[FUNC]]),\"NO\",\"YES\")))","v":"NO"}]
[{"$f":"CONCATENATE(tblREGASSJune19[[#This Row],[Primary Account]],tblREGASSJune19[[#This Row],[Primary Name]],tblREGASSJune19[[#This Row],[Secondary Acct]],tblREGASSJune19[[#This Row],[Secondary  Name]],tblREGASSJune19[[#This Row],[Alloc4FUNC]])","v":"1823920DSR COSTS AMORTIZED103771RETROFIT COMMISSIONING PROGRAM  - UTAH -OTHER"},1823920,"DSR COSTS AMORTIZED",103771,"RETROFIT COMMISSIONING PROGRAM  - UTAH -","OTHER",1.0694999999999999,{"$f":"IF(OR(tblREGASSJune19[[#This Row],[Alloc]]=\"IDU\",tblREGASSJune19[[#This Row],[Alloc]]=\"OR\",tblREGASSJune19[[#This Row],[Alloc]]=\"UT\",tblREGASSJune19[[#This Row],[Alloc]]=\"WYU\",tblREGASSJune19[[#This Row],[Alloc]]=\"WYP\",tblREGASSJune19[[#This Row],[Alloc]]=\"CA\",tblREGASSJune19[[#This Row],[Alloc]]=\"WA\"),\"SITUS\",tblREGASSJune19[[#This Row],[Alloc]])","v":"OTHER"},{"$f":"INDEX(tblREGASSLookup[FUNC],MATCH(tblREGASSJune19[[#This Row],[Concat]],tblREGASSLookup[Concat],0))","v":"CUST"},{"$f":"IF(tblREGASSJune19[[#This Row],[Total ($000)]]=0,\"NO\",IF(ISNA(tblREGASSJune19[[#This Row],[FUNC]]),\"YES\",IF(_xlfn.ISFORMULA(tblREGASSJune19[[#This Row],[FUNC]]),\"NO\",\"YES\")))","v":"NO"}]
[{"$f":"CONCATENATE(tblREGASSJune19[[#This Row],[Primary Account]],tblREGASSJune19[[#This Row],[Primary Name]],tblREGASSJune19[[#This Row],[Secondary Acct]],tblREGASSJune19[[#This Row],[Secondary  Name]],tblREGASSJune19[[#This Row],[Alloc4FUNC]])","v":"1823920DSR COSTS AMORTIZED103772COMMERCIAL SELF-DIRECT - UTAH - 2014OTHER"},1823920,"DSR COSTS AMORTIZED",103772,"COMMERCIAL SELF-DIRECT - UTAH - 2014","OTHER",29.320430000000002,{"$f":"IF(OR(tblREGASSJune19[[#This Row],[Alloc]]=\"IDU\",tblREGASSJune19[[#This Row],[Alloc]]=\"OR\",tblREGASSJune19[[#This Row],[Alloc]]=\"UT\",tblREGASSJune19[[#This Row],[Alloc]]=\"WYU\",tblREGASSJune19[[#This Row],[Alloc]]=\"WYP\",tblREGASSJune19[[#This Row],[Alloc]]=\"CA\",tblREGASSJune19[[#This Row],[Alloc]]=\"WA\"),\"SITUS\",tblREGASSJune19[[#This Row],[Alloc]])","v":"OTHER"},{"$f":"INDEX(tblREGASSLookup[FUNC],MATCH(tblREGASSJune19[[#This Row],[Concat]],tblREGASSLookup[Concat],0))","v":"CUST"},{"$f":"IF(tblREGASSJune19[[#This Row],[Total ($000)]]=0,\"NO\",IF(ISNA(tblREGASSJune19[[#This Row],[FUNC]]),\"YES\",IF(_xlfn.ISFORMULA(tblREGASSJune19[[#This Row],[FUNC]]),\"NO\",\"YES\")))","v":"NO"}]
[{"$f":"CONCATENATE(tblREGASSJune19[[#This Row],[Primary Account]],tblREGASSJune19[[#This Row],[Primary Name]],tblREGASSJune19[[#This Row],[Secondary Acct]],tblREGASSJune19[[#This Row],[Secondary  Name]],tblREGASSJune19[[#This Row],[Alloc4FUNC]])","v":"1823920DSR COSTS AMORTIZED103773INDUSTRIAL SELF-DIRECT - UTAH - 2014OTHER"},1823920,"DSR COSTS AMORTIZED",103773,"INDUSTRIAL SELF-DIRECT - UTAH - 2014","OTHER",52.930729999999997,{"$f":"IF(OR(tblREGASSJune19[[#This Row],[Alloc]]=\"IDU\",tblREGASSJune19[[#This Row],[Alloc]]=\"OR\",tblREGASSJune19[[#This Row],[Alloc]]=\"UT\",tblREGASSJune19[[#This Row],[Alloc]]=\"WYU\",tblREGASSJune19[[#This Row],[Alloc]]=\"WYP\",tblREGASSJune19[[#This Row],[Alloc]]=\"CA\",tblREGASSJune19[[#This Row],[Alloc]]=\"WA\"),\"SITUS\",tblREGASSJune19[[#This Row],[Alloc]])","v":"OTHER"},{"$f":"INDEX(tblREGASSLookup[FUNC],MATCH(tblREGASSJune19[[#This Row],[Concat]],tblREGASSLookup[Concat],0))","v":"CUST"},{"$f":"IF(tblREGASSJune19[[#This Row],[Total ($000)]]=0,\"NO\",IF(ISNA(tblREGASSJune19[[#This Row],[FUNC]]),\"YES\",IF(_xlfn.ISFORMULA(tblREGASSJune19[[#This Row],[FUNC]]),\"NO\",\"YES\")))","v":"NO"}]
[{"$f":"CONCATENATE(tblREGASSJune19[[#This Row],[Primary Account]],tblREGASSJune19[[#This Row],[Primary Name]],tblREGASSJune19[[#This Row],[Secondary Acct]],tblREGASSJune19[[#This Row],[Secondary  Name]],tblREGASSJune19[[#This Row],[Alloc4FUNC]])","v":"1823920DSR COSTS AMORTIZED103774COMMERCIAL (WSB) WATTSMART BUS - UT- 201OTHER"},1823920,"DSR COSTS AMORTIZED",103774,"COMMERCIAL (WSB) WATTSMART BUS - UT- 201","OTHER",12238.989089999999,{"$f":"IF(OR(tblREGASSJune19[[#This Row],[Alloc]]=\"IDU\",tblREGASSJune19[[#This Row],[Alloc]]=\"OR\",tblREGASSJune19[[#This Row],[Alloc]]=\"UT\",tblREGASSJune19[[#This Row],[Alloc]]=\"WYU\",tblREGASSJune19[[#This Row],[Alloc]]=\"WYP\",tblREGASSJune19[[#This Row],[Alloc]]=\"CA\",tblREGASSJune19[[#This Row],[Alloc]]=\"WA\"),\"SITUS\",tblREGASSJune19[[#This Row],[Alloc]])","v":"OTHER"},{"$f":"INDEX(tblREGASSLookup[FUNC],MATCH(tblREGASSJune19[[#This Row],[Concat]],tblREGASSLookup[Concat],0))","v":"CUST"},{"$f":"IF(tblREGASSJune19[[#This Row],[Total ($000)]]=0,\"NO\",IF(ISNA(tblREGASSJune19[[#This Row],[FUNC]]),\"YES\",IF(_xlfn.ISFORMULA(tblREGASSJune19[[#This Row],[FUNC]]),\"NO\",\"YES\")))","v":"NO"}]
[{"$f":"CONCATENATE(tblREGASSJune19[[#This Row],[Primary Account]],tblREGASSJune19[[#This Row],[Primary Name]],tblREGASSJune19[[#This Row],[Secondary Acct]],tblREGASSJune19[[#This Row],[Secondary  Name]],tblREGASSJune19[[#This Row],[Alloc4FUNC]])","v":"1823920DSR COSTS AMORTIZED103775INDUSTRIAL (WSB) WATTSMART BUS- UT- 2014OTHER"},1823920,"DSR COSTS AMORTIZED",103775,"INDUSTRIAL (WSB) WATTSMART BUS- UT- 2014","OTHER",6640.0237100000004,{"$f":"IF(OR(tblREGASSJune19[[#This Row],[Alloc]]=\"IDU\",tblREGASSJune19[[#This Row],[Alloc]]=\"OR\",tblREGASSJune19[[#This Row],[Alloc]]=\"UT\",tblREGASSJune19[[#This Row],[Alloc]]=\"WYU\",tblREGASSJune19[[#This Row],[Alloc]]=\"WYP\",tblREGASSJune19[[#This Row],[Alloc]]=\"CA\",tblREGASSJune19[[#This Row],[Alloc]]=\"WA\"),\"SITUS\",tblREGASSJune19[[#This Row],[Alloc]])","v":"OTHER"},{"$f":"INDEX(tblREGASSLookup[FUNC],MATCH(tblREGASSJune19[[#This Row],[Concat]],tblREGASSLookup[Concat],0))","v":"CUST"},{"$f":"IF(tblREGASSJune19[[#This Row],[Total ($000)]]=0,\"NO\",IF(ISNA(tblREGASSJune19[[#This Row],[FUNC]]),\"YES\",IF(_xlfn.ISFORMULA(tblREGASSJune19[[#This Row],[FUNC]]),\"NO\",\"YES\")))","v":"NO"}]
[{"$f":"CONCATENATE(tblREGASSJune19[[#This Row],[Primary Account]],tblREGASSJune19[[#This Row],[Primary Name]],tblREGASSJune19[[#This Row],[Secondary Acct]],tblREGASSJune19[[#This Row],[Secondary  Name]],tblREGASSJune19[[#This Row],[Alloc4FUNC]])","v":"1823920DSR COSTS AMORTIZED103776WSB - WATTSMART BUS- UT- 2014OTHER"},1823920,"DSR COSTS AMORTIZED",103776,"WSB - WATTSMART BUS- UT- 2014","OTHER",3635.5106099999998,{"$f":"IF(OR(tblREGASSJune19[[#This Row],[Alloc]]=\"IDU\",tblREGASSJune19[[#This Row],[Alloc]]=\"OR\",tblREGASSJune19[[#This Row],[Alloc]]=\"UT\",tblREGASSJune19[[#This Row],[Alloc]]=\"WYU\",tblREGASSJune19[[#This Row],[Alloc]]=\"WYP\",tblREGASSJune19[[#This Row],[Alloc]]=\"CA\",tblREGASSJune19[[#This Row],[Alloc]]=\"WA\"),\"SITUS\",tblREGASSJune19[[#This Row],[Alloc]])","v":"OTHER"},{"$f":"INDEX(tblREGASSLookup[FUNC],MATCH(tblREGASSJune19[[#This Row],[Concat]],tblREGASSLookup[Concat],0))","v":"CUST"},{"$f":"IF(tblREGASSJune19[[#This Row],[Total ($000)]]=0,\"NO\",IF(ISNA(tblREGASSJune19[[#This Row],[FUNC]]),\"YES\",IF(_xlfn.ISFORMULA(tblREGASSJune19[[#This Row],[FUNC]]),\"NO\",\"YES\")))","v":"NO"}]
[{"$f":"CONCATENATE(tblREGASSJune19[[#This Row],[Primary Account]],tblREGASSJune19[[#This Row],[Primary Name]],tblREGASSJune19[[#This Row],[Secondary Acct]],tblREGASSJune19[[#This Row],[Secondary  Name]],tblREGASSJune19[[#This Row],[Alloc4FUNC]])","v":"1823920DSR COSTS AMORTIZED103777AGRICULTURAL (WSB) WATTSMART BUS- UT- 20OTHER"},1823920,"DSR COSTS AMORTIZED",103777,"AGRICULTURAL (WSB) WATTSMART BUS- UT- 20","OTHER",161.43752000000001,{"$f":"IF(OR(tblREGASSJune19[[#This Row],[Alloc]]=\"IDU\",tblREGASSJune19[[#This Row],[Alloc]]=\"OR\",tblREGASSJune19[[#This Row],[Alloc]]=\"UT\",tblREGASSJune19[[#This Row],[Alloc]]=\"WYU\",tblREGASSJune19[[#This Row],[Alloc]]=\"WYP\",tblREGASSJune19[[#This Row],[Alloc]]=\"CA\",tblREGASSJune19[[#This Row],[Alloc]]=\"WA\"),\"SITUS\",tblREGASSJune19[[#This Row],[Alloc]])","v":"OTHER"},{"$f":"INDEX(tblREGASSLookup[FUNC],MATCH(tblREGASSJune19[[#This Row],[Concat]],tblREGASSLookup[Concat],0))","v":"CUST"},{"$f":"IF(tblREGASSJune19[[#This Row],[Total ($000)]]=0,\"NO\",IF(ISNA(tblREGASSJune19[[#This Row],[FUNC]]),\"YES\",IF(_xlfn.ISFORMULA(tblREGASSJune19[[#This Row],[FUNC]]),\"NO\",\"YES\")))","v":"NO"}]
[{"$f":"CONCATENATE(tblREGASSJune19[[#This Row],[Primary Account]],tblREGASSJune19[[#This Row],[Primary Name]],tblREGASSJune19[[#This Row],[Secondary Acct]],tblREGASSJune19[[#This Row],[Secondary  Name]],tblREGASSJune19[[#This Row],[Alloc4FUNC]])","v":"1823920DSR COSTS AMORTIZED103778U.of Utah Student Energy Sponsorship- UTOTHER"},1823920,"DSR COSTS AMORTIZED",103778,"U.of Utah Student Energy Sponsorship- UT","OTHER",5.2847600000000003,{"$f":"IF(OR(tblREGASSJune19[[#This Row],[Alloc]]=\"IDU\",tblREGASSJune19[[#This Row],[Alloc]]=\"OR\",tblREGASSJune19[[#This Row],[Alloc]]=\"UT\",tblREGASSJune19[[#This Row],[Alloc]]=\"WYU\",tblREGASSJune19[[#This Row],[Alloc]]=\"WYP\",tblREGASSJune19[[#This Row],[Alloc]]=\"CA\",tblREGASSJune19[[#This Row],[Alloc]]=\"WA\"),\"SITUS\",tblREGASSJune19[[#This Row],[Alloc]])","v":"OTHER"},{"$f":"INDEX(tblREGASSLookup[FUNC],MATCH(tblREGASSJune19[[#This Row],[Concat]],tblREGASSLookup[Concat],0))","v":"CUST"},{"$f":"IF(tblREGASSJune19[[#This Row],[Total ($000)]]=0,\"NO\",IF(ISNA(tblREGASSJune19[[#This Row],[FUNC]]),\"YES\",IF(_xlfn.ISFORMULA(tblREGASSJune19[[#This Row],[FUNC]]),\"NO\",\"YES\")))","v":"NO"}]
[{"$f":"CONCATENATE(tblREGASSJune19[[#This Row],[Primary Account]],tblREGASSJune19[[#This Row],[Primary Name]],tblREGASSJune19[[#This Row],[Secondary Acct]],tblREGASSJune19[[#This Row],[Secondary  Name]],tblREGASSJune19[[#This Row],[Alloc4FUNC]])","v":"1823920DSR COSTS AMORTIZED103779AGRICULURAL FINANSWER EXP WY-2014 CAT2OTHER"},1823920,"DSR COSTS AMORTIZED",103779,"AGRICULURAL FINANSWER EXP WY-2014 CAT2","OTHER",4.2154299999999996,{"$f":"IF(OR(tblREGASSJune19[[#This Row],[Alloc]]=\"IDU\",tblREGASSJune19[[#This Row],[Alloc]]=\"OR\",tblREGASSJune19[[#This Row],[Alloc]]=\"UT\",tblREGASSJune19[[#This Row],[Alloc]]=\"WYU\",tblREGASSJune19[[#This Row],[Alloc]]=\"WYP\",tblREGASSJune19[[#This Row],[Alloc]]=\"CA\",tblREGASSJune19[[#This Row],[Alloc]]=\"WA\"),\"SITUS\",tblREGASSJune19[[#This Row],[Alloc]])","v":"OTHER"},{"$f":"INDEX(tblREGASSLookup[FUNC],MATCH(tblREGASSJune19[[#This Row],[Concat]],tblREGASSLookup[Concat],0))","v":"CUST"},{"$f":"IF(tblREGASSJune19[[#This Row],[Total ($000)]]=0,\"NO\",IF(ISNA(tblREGASSJune19[[#This Row],[FUNC]]),\"YES\",IF(_xlfn.ISFORMULA(tblREGASSJune19[[#This Row],[FUNC]]),\"NO\",\"YES\")))","v":"NO"}]
[{"$f":"CONCATENATE(tblREGASSJune19[[#This Row],[Primary Account]],tblREGASSJune19[[#This Row],[Primary Name]],tblREGASSJune19[[#This Row],[Secondary Acct]],tblREGASSJune19[[#This Row],[Secondary  Name]],tblREGASSJune19[[#This Row],[Alloc4FUNC]])","v":"1823920DSR COSTS AMORTIZED103780AGRICULURAL FINANSWER EXP WY-2014 CAT3OTHER"},1823920,"DSR COSTS AMORTIZED",103780,"AGRICULURAL FINANSWER EXP WY-2014 CAT3","OTHER",0.13313,{"$f":"IF(OR(tblREGASSJune19[[#This Row],[Alloc]]=\"IDU\",tblREGASSJune19[[#This Row],[Alloc]]=\"OR\",tblREGASSJune19[[#This Row],[Alloc]]=\"UT\",tblREGASSJune19[[#This Row],[Alloc]]=\"WYU\",tblREGASSJune19[[#This Row],[Alloc]]=\"WYP\",tblREGASSJune19[[#This Row],[Alloc]]=\"CA\",tblREGASSJune19[[#This Row],[Alloc]]=\"WA\"),\"SITUS\",tblREGASSJune19[[#This Row],[Alloc]])","v":"OTHER"},{"$f":"INDEX(tblREGASSLookup[FUNC],MATCH(tblREGASSJune19[[#This Row],[Concat]],tblREGASSLookup[Concat],0))","v":"CUST"},{"$f":"IF(tblREGASSJune19[[#This Row],[Total ($000)]]=0,\"NO\",IF(ISNA(tblREGASSJune19[[#This Row],[FUNC]]),\"YES\",IF(_xlfn.ISFORMULA(tblREGASSJune19[[#This Row],[FUNC]]),\"NO\",\"YES\")))","v":"NO"}]
[{"$f":"CONCATENATE(tblREGASSJune19[[#This Row],[Primary Account]],tblREGASSJune19[[#This Row],[Primary Name]],tblREGASSJune19[[#This Row],[Secondary Acct]],tblREGASSJune19[[#This Row],[Secondary  Name]],tblREGASSJune19[[#This Row],[Alloc4FUNC]])","v":"1823920DSR COSTS AMORTIZED103781COMMERCIAL FINANSWER EXP- WY-2014 CAT2OTHER"},1823920,"DSR COSTS AMORTIZED",103781,"COMMERCIAL FINANSWER EXP- WY-2014 CAT2","OTHER",1177.82871,{"$f":"IF(OR(tblREGASSJune19[[#This Row],[Alloc]]=\"IDU\",tblREGASSJune19[[#This Row],[Alloc]]=\"OR\",tblREGASSJune19[[#This Row],[Alloc]]=\"UT\",tblREGASSJune19[[#This Row],[Alloc]]=\"WYU\",tblREGASSJune19[[#This Row],[Alloc]]=\"WYP\",tblREGASSJune19[[#This Row],[Alloc]]=\"CA\",tblREGASSJune19[[#This Row],[Alloc]]=\"WA\"),\"SITUS\",tblREGASSJune19[[#This Row],[Alloc]])","v":"OTHER"},{"$f":"INDEX(tblREGASSLookup[FUNC],MATCH(tblREGASSJune19[[#This Row],[Concat]],tblREGASSLookup[Concat],0))","v":"CUST"},{"$f":"IF(tblREGASSJune19[[#This Row],[Total ($000)]]=0,\"NO\",IF(ISNA(tblREGASSJune19[[#This Row],[FUNC]]),\"YES\",IF(_xlfn.ISFORMULA(tblREGASSJune19[[#This Row],[FUNC]]),\"NO\",\"YES\")))","v":"NO"}]
[{"$f":"CONCATENATE(tblREGASSJune19[[#This Row],[Primary Account]],tblREGASSJune19[[#This Row],[Primary Name]],tblREGASSJune19[[#This Row],[Secondary Acct]],tblREGASSJune19[[#This Row],[Secondary  Name]],tblREGASSJune19[[#This Row],[Alloc4FUNC]])","v":"1823920DSR COSTS AMORTIZED103782COMMERCIAL FINANSWER EXP WY-2014 CAT3OTHER"},1823920,"DSR COSTS AMORTIZED",103782,"COMMERCIAL FINANSWER EXP WY-2014 CAT3","OTHER",255.17862,{"$f":"IF(OR(tblREGASSJune19[[#This Row],[Alloc]]=\"IDU\",tblREGASSJune19[[#This Row],[Alloc]]=\"OR\",tblREGASSJune19[[#This Row],[Alloc]]=\"UT\",tblREGASSJune19[[#This Row],[Alloc]]=\"WYU\",tblREGASSJune19[[#This Row],[Alloc]]=\"WYP\",tblREGASSJune19[[#This Row],[Alloc]]=\"CA\",tblREGASSJune19[[#This Row],[Alloc]]=\"WA\"),\"SITUS\",tblREGASSJune19[[#This Row],[Alloc]])","v":"OTHER"},{"$f":"INDEX(tblREGASSLookup[FUNC],MATCH(tblREGASSJune19[[#This Row],[Concat]],tblREGASSLookup[Concat],0))","v":"CUST"},{"$f":"IF(tblREGASSJune19[[#This Row],[Total ($000)]]=0,\"NO\",IF(ISNA(tblREGASSJune19[[#This Row],[FUNC]]),\"YES\",IF(_xlfn.ISFORMULA(tblREGASSJune19[[#This Row],[FUNC]]),\"NO\",\"YES\")))","v":"NO"}]
[{"$f":"CONCATENATE(tblREGASSJune19[[#This Row],[Primary Account]],tblREGASSJune19[[#This Row],[Primary Name]],tblREGASSJune19[[#This Row],[Secondary Acct]],tblREGASSJune19[[#This Row],[Secondary  Name]],tblREGASSJune19[[#This Row],[Alloc4FUNC]])","v":"1823920DSR COSTS AMORTIZED103783ENERGY FINANSWER -WY 2014 CAT2OTHER"},1823920,"DSR COSTS AMORTIZED",103783,"ENERGY FINANSWER -WY 2014 CAT2","OTHER",31.76061,{"$f":"IF(OR(tblREGASSJune19[[#This Row],[Alloc]]=\"IDU\",tblREGASSJune19[[#This Row],[Alloc]]=\"OR\",tblREGASSJune19[[#This Row],[Alloc]]=\"UT\",tblREGASSJune19[[#This Row],[Alloc]]=\"WYU\",tblREGASSJune19[[#This Row],[Alloc]]=\"WYP\",tblREGASSJune19[[#This Row],[Alloc]]=\"CA\",tblREGASSJune19[[#This Row],[Alloc]]=\"WA\"),\"SITUS\",tblREGASSJune19[[#This Row],[Alloc]])","v":"OTHER"},{"$f":"INDEX(tblREGASSLookup[FUNC],MATCH(tblREGASSJune19[[#This Row],[Concat]],tblREGASSLookup[Concat],0))","v":"CUST"},{"$f":"IF(tblREGASSJune19[[#This Row],[Total ($000)]]=0,\"NO\",IF(ISNA(tblREGASSJune19[[#This Row],[FUNC]]),\"YES\",IF(_xlfn.ISFORMULA(tblREGASSJune19[[#This Row],[FUNC]]),\"NO\",\"YES\")))","v":"NO"}]
[{"$f":"CONCATENATE(tblREGASSJune19[[#This Row],[Primary Account]],tblREGASSJune19[[#This Row],[Primary Name]],tblREGASSJune19[[#This Row],[Secondary Acct]],tblREGASSJune19[[#This Row],[Secondary  Name]],tblREGASSJune19[[#This Row],[Alloc4FUNC]])","v":"1823920DSR COSTS AMORTIZED103784ENERGY FINANSWER-WY-2014 CAT3OTHER"},1823920,"DSR COSTS AMORTIZED",103784,"ENERGY FINANSWER-WY-2014 CAT3","OTHER",71.310919999999996,{"$f":"IF(OR(tblREGASSJune19[[#This Row],[Alloc]]=\"IDU\",tblREGASSJune19[[#This Row],[Alloc]]=\"OR\",tblREGASSJune19[[#This Row],[Alloc]]=\"UT\",tblREGASSJune19[[#This Row],[Alloc]]=\"WYU\",tblREGASSJune19[[#This Row],[Alloc]]=\"WYP\",tblREGASSJune19[[#This Row],[Alloc]]=\"CA\",tblREGASSJune19[[#This Row],[Alloc]]=\"WA\"),\"SITUS\",tblREGASSJune19[[#This Row],[Alloc]])","v":"OTHER"},{"$f":"INDEX(tblREGASSLookup[FUNC],MATCH(tblREGASSJune19[[#This Row],[Concat]],tblREGASSLookup[Concat],0))","v":"CUST"},{"$f":"IF(tblREGASSJune19[[#This Row],[Total ($000)]]=0,\"NO\",IF(ISNA(tblREGASSJune19[[#This Row],[FUNC]]),\"YES\",IF(_xlfn.ISFORMULA(tblREGASSJune19[[#This Row],[FUNC]]),\"NO\",\"YES\")))","v":"NO"}]
[{"$f":"CONCATENATE(tblREGASSJune19[[#This Row],[Primary Account]],tblREGASSJune19[[#This Row],[Primary Name]],tblREGASSJune19[[#This Row],[Secondary Acct]],tblREGASSJune19[[#This Row],[Secondary  Name]],tblREGASSJune19[[#This Row],[Alloc4FUNC]])","v":"1823920DSR COSTS AMORTIZED103785HOME ENERGY EFF INCENT PROG Y-2014 CAT1OTHER"},1823920,"DSR COSTS AMORTIZED",103785,"HOME ENERGY EFF INCENT PROG Y-2014 CAT1","OTHER",1183.1683,{"$f":"IF(OR(tblREGASSJune19[[#This Row],[Alloc]]=\"IDU\",tblREGASSJune19[[#This Row],[Alloc]]=\"OR\",tblREGASSJune19[[#This Row],[Alloc]]=\"UT\",tblREGASSJune19[[#This Row],[Alloc]]=\"WYU\",tblREGASSJune19[[#This Row],[Alloc]]=\"WYP\",tblREGASSJune19[[#This Row],[Alloc]]=\"CA\",tblREGASSJune19[[#This Row],[Alloc]]=\"WA\"),\"SITUS\",tblREGASSJune19[[#This Row],[Alloc]])","v":"OTHER"},{"$f":"INDEX(tblREGASSLookup[FUNC],MATCH(tblREGASSJune19[[#This Row],[Concat]],tblREGASSLookup[Concat],0))","v":"CUST"},{"$f":"IF(tblREGASSJune19[[#This Row],[Total ($000)]]=0,\"NO\",IF(ISNA(tblREGASSJune19[[#This Row],[FUNC]]),\"YES\",IF(_xlfn.ISFORMULA(tblREGASSJune19[[#This Row],[FUNC]]),\"NO\",\"YES\")))","v":"NO"}]
[{"$f":"CONCATENATE(tblREGASSJune19[[#This Row],[Primary Account]],tblREGASSJune19[[#This Row],[Primary Name]],tblREGASSJune19[[#This Row],[Secondary Acct]],tblREGASSJune19[[#This Row],[Secondary  Name]],tblREGASSJune19[[#This Row],[Alloc4FUNC]])","v":"1823920DSR COSTS AMORTIZED103786INDUSTRIAL FINANSWER -WY 2014 CAT2OTHER"},1823920,"DSR COSTS AMORTIZED",103786,"INDUSTRIAL FINANSWER -WY 2014 CAT2","OTHER",95.02319,{"$f":"IF(OR(tblREGASSJune19[[#This Row],[Alloc]]=\"IDU\",tblREGASSJune19[[#This Row],[Alloc]]=\"OR\",tblREGASSJune19[[#This Row],[Alloc]]=\"UT\",tblREGASSJune19[[#This Row],[Alloc]]=\"WYU\",tblREGASSJune19[[#This Row],[Alloc]]=\"WYP\",tblREGASSJune19[[#This Row],[Alloc]]=\"CA\",tblREGASSJune19[[#This Row],[Alloc]]=\"WA\"),\"SITUS\",tblREGASSJune19[[#This Row],[Alloc]])","v":"OTHER"},{"$f":"INDEX(tblREGASSLookup[FUNC],MATCH(tblREGASSJune19[[#This Row],[Concat]],tblREGASSLookup[Concat],0))","v":"CUST"},{"$f":"IF(tblREGASSJune19[[#This Row],[Total ($000)]]=0,\"NO\",IF(ISNA(tblREGASSJune19[[#This Row],[FUNC]]),\"YES\",IF(_xlfn.ISFORMULA(tblREGASSJune19[[#This Row],[FUNC]]),\"NO\",\"YES\")))","v":"NO"}]
[{"$f":"CONCATENATE(tblREGASSJune19[[#This Row],[Primary Account]],tblREGASSJune19[[#This Row],[Primary Name]],tblREGASSJune19[[#This Row],[Secondary Acct]],tblREGASSJune19[[#This Row],[Secondary  Name]],tblREGASSJune19[[#This Row],[Alloc4FUNC]])","v":"1823920DSR COSTS AMORTIZED103787INDUSTRIAL FINANSWER-WY-2014 CAT3OTHER"},1823920,"DSR COSTS AMORTIZED",103787,"INDUSTRIAL FINANSWER-WY-2014 CAT3","OTHER",356.13992000000002,{"$f":"IF(OR(tblREGASSJune19[[#This Row],[Alloc]]=\"IDU\",tblREGASSJune19[[#This Row],[Alloc]]=\"OR\",tblREGASSJune19[[#This Row],[Alloc]]=\"UT\",tblREGASSJune19[[#This Row],[Alloc]]=\"WYU\",tblREGASSJune19[[#This Row],[Alloc]]=\"WYP\",tblREGASSJune19[[#This Row],[Alloc]]=\"CA\",tblREGASSJune19[[#This Row],[Alloc]]=\"WA\"),\"SITUS\",tblREGASSJune19[[#This Row],[Alloc]])","v":"OTHER"},{"$f":"INDEX(tblREGASSLookup[FUNC],MATCH(tblREGASSJune19[[#This Row],[Concat]],tblREGASSLookup[Concat],0))","v":"CUST"},{"$f":"IF(tblREGASSJune19[[#This Row],[Total ($000)]]=0,\"NO\",IF(ISNA(tblREGASSJune19[[#This Row],[FUNC]]),\"YES\",IF(_xlfn.ISFORMULA(tblREGASSJune19[[#This Row],[FUNC]]),\"NO\",\"YES\")))","v":"NO"}]
[{"$f":"CONCATENATE(tblREGASSJune19[[#This Row],[Primary Account]],tblREGASSJune19[[#This Row],[Primary Name]],tblREGASSJune19[[#This Row],[Secondary Acct]],tblREGASSJune19[[#This Row],[Secondary  Name]],tblREGASSJune19[[#This Row],[Alloc4FUNC]])","v":"1823920DSR COSTS AMORTIZED103788INDUSTRIAL FINAN EXPRESS WY-2014 CAT2OTHER"},1823920,"DSR COSTS AMORTIZED",103788,"INDUSTRIAL FINAN EXPRESS WY-2014 CAT2","OTHER",136.21788000000001,{"$f":"IF(OR(tblREGASSJune19[[#This Row],[Alloc]]=\"IDU\",tblREGASSJune19[[#This Row],[Alloc]]=\"OR\",tblREGASSJune19[[#This Row],[Alloc]]=\"UT\",tblREGASSJune19[[#This Row],[Alloc]]=\"WYU\",tblREGASSJune19[[#This Row],[Alloc]]=\"WYP\",tblREGASSJune19[[#This Row],[Alloc]]=\"CA\",tblREGASSJune19[[#This Row],[Alloc]]=\"WA\"),\"SITUS\",tblREGASSJune19[[#This Row],[Alloc]])","v":"OTHER"},{"$f":"INDEX(tblREGASSLookup[FUNC],MATCH(tblREGASSJune19[[#This Row],[Concat]],tblREGASSLookup[Concat],0))","v":"CUST"},{"$f":"IF(tblREGASSJune19[[#This Row],[Total ($000)]]=0,\"NO\",IF(ISNA(tblREGASSJune19[[#This Row],[FUNC]]),\"YES\",IF(_xlfn.ISFORMULA(tblREGASSJune19[[#This Row],[FUNC]]),\"NO\",\"YES\")))","v":"NO"}]
[{"$f":"CONCATENATE(tblREGASSJune19[[#This Row],[Primary Account]],tblREGASSJune19[[#This Row],[Primary Name]],tblREGASSJune19[[#This Row],[Secondary Acct]],tblREGASSJune19[[#This Row],[Secondary  Name]],tblREGASSJune19[[#This Row],[Alloc4FUNC]])","v":"1823920DSR COSTS AMORTIZED103789INDUSTRIAL FINANSWER EXP WY-2014 CAT3OTHER"},1823920,"DSR COSTS AMORTIZED",103789,"INDUSTRIAL FINANSWER EXP WY-2014 CAT3","OTHER",202.89221000000001,{"$f":"IF(OR(tblREGASSJune19[[#This Row],[Alloc]]=\"IDU\",tblREGASSJune19[[#This Row],[Alloc]]=\"OR\",tblREGASSJune19[[#This Row],[Alloc]]=\"UT\",tblREGASSJune19[[#This Row],[Alloc]]=\"WYU\",tblREGASSJune19[[#This Row],[Alloc]]=\"WYP\",tblREGASSJune19[[#This Row],[Alloc]]=\"CA\",tblREGASSJune19[[#This Row],[Alloc]]=\"WA\"),\"SITUS\",tblREGASSJune19[[#This Row],[Alloc]])","v":"OTHER"},{"$f":"INDEX(tblREGASSLookup[FUNC],MATCH(tblREGASSJune19[[#This Row],[Concat]],tblREGASSLookup[Concat],0))","v":"CUST"},{"$f":"IF(tblREGASSJune19[[#This Row],[Total ($000)]]=0,\"NO\",IF(ISNA(tblREGASSJune19[[#This Row],[FUNC]]),\"YES\",IF(_xlfn.ISFORMULA(tblREGASSJune19[[#This Row],[FUNC]]),\"NO\",\"YES\")))","v":"NO"}]
[{"$f":"CONCATENATE(tblREGASSJune19[[#This Row],[Primary Account]],tblREGASSJune19[[#This Row],[Primary Name]],tblREGASSJune19[[#This Row],[Secondary Acct]],tblREGASSJune19[[#This Row],[Secondary  Name]],tblREGASSJune19[[#This Row],[Alloc4FUNC]])","v":"1823920DSR COSTS AMORTIZED103790LOW-INCOME WEATHERZTN - WY 2014 CAT1OTHER"},1823920,"DSR COSTS AMORTIZED",103790,"LOW-INCOME WEATHERZTN - WY 2014 CAT1","OTHER",30.193359999999998,{"$f":"IF(OR(tblREGASSJune19[[#This Row],[Alloc]]=\"IDU\",tblREGASSJune19[[#This Row],[Alloc]]=\"OR\",tblREGASSJune19[[#This Row],[Alloc]]=\"UT\",tblREGASSJune19[[#This Row],[Alloc]]=\"WYU\",tblREGASSJune19[[#This Row],[Alloc]]=\"WYP\",tblREGASSJune19[[#This Row],[Alloc]]=\"CA\",tblREGASSJune19[[#This Row],[Alloc]]=\"WA\"),\"SITUS\",tblREGASSJune19[[#This Row],[Alloc]])","v":"OTHER"},{"$f":"INDEX(tblREGASSLookup[FUNC],MATCH(tblREGASSJune19[[#This Row],[Concat]],tblREGASSLookup[Concat],0))","v":"CUST"},{"$f":"IF(tblREGASSJune19[[#This Row],[Total ($000)]]=0,\"NO\",IF(ISNA(tblREGASSJune19[[#This Row],[FUNC]]),\"YES\",IF(_xlfn.ISFORMULA(tblREGASSJune19[[#This Row],[FUNC]]),\"NO\",\"YES\")))","v":"NO"}]
[{"$f":"CONCATENATE(tblREGASSJune19[[#This Row],[Primary Account]],tblREGASSJune19[[#This Row],[Primary Name]],tblREGASSJune19[[#This Row],[Secondary Acct]],tblREGASSJune19[[#This Row],[Secondary  Name]],tblREGASSJune19[[#This Row],[Alloc4FUNC]])","v":"1823920DSR COSTS AMORTIZED103791OUTREACH AND COMMUNICATION WATTSMT  WY-2OTHER"},1823920,"DSR COSTS AMORTIZED",103791,"OUTREACH AND COMMUNICATION WATTSMT  WY-2","OTHER",156.99248,{"$f":"IF(OR(tblREGASSJune19[[#This Row],[Alloc]]=\"IDU\",tblREGASSJune19[[#This Row],[Alloc]]=\"OR\",tblREGASSJune19[[#This Row],[Alloc]]=\"UT\",tblREGASSJune19[[#This Row],[Alloc]]=\"WYU\",tblREGASSJune19[[#This Row],[Alloc]]=\"WYP\",tblREGASSJune19[[#This Row],[Alloc]]=\"CA\",tblREGASSJune19[[#This Row],[Alloc]]=\"WA\"),\"SITUS\",tblREGASSJune19[[#This Row],[Alloc]])","v":"OTHER"},{"$f":"INDEX(tblREGASSLookup[FUNC],MATCH(tblREGASSJune19[[#This Row],[Concat]],tblREGASSLookup[Concat],0))","v":"CUST"},{"$f":"IF(tblREGASSJune19[[#This Row],[Total ($000)]]=0,\"NO\",IF(ISNA(tblREGASSJune19[[#This Row],[FUNC]]),\"YES\",IF(_xlfn.ISFORMULA(tblREGASSJune19[[#This Row],[FUNC]]),\"NO\",\"YES\")))","v":"NO"}]
[{"$f":"CONCATENATE(tblREGASSJune19[[#This Row],[Primary Account]],tblREGASSJune19[[#This Row],[Primary Name]],tblREGASSJune19[[#This Row],[Secondary Acct]],tblREGASSJune19[[#This Row],[Secondary  Name]],tblREGASSJune19[[#This Row],[Alloc4FUNC]])","v":"1823920DSR COSTS AMORTIZED103792PORTFOLIO WY-2014 CAT1OTHER"},1823920,"DSR COSTS AMORTIZED",103792,"PORTFOLIO WY-2014 CAT1","OTHER",62.941569999999999,{"$f":"IF(OR(tblREGASSJune19[[#This Row],[Alloc]]=\"IDU\",tblREGASSJune19[[#This Row],[Alloc]]=\"OR\",tblREGASSJune19[[#This Row],[Alloc]]=\"UT\",tblREGASSJune19[[#This Row],[Alloc]]=\"WYU\",tblREGASSJune19[[#This Row],[Alloc]]=\"WYP\",tblREGASSJune19[[#This Row],[Alloc]]=\"CA\",tblREGASSJune19[[#This Row],[Alloc]]=\"WA\"),\"SITUS\",tblREGASSJune19[[#This Row],[Alloc]])","v":"OTHER"},{"$f":"INDEX(tblREGASSLookup[FUNC],MATCH(tblREGASSJune19[[#This Row],[Concat]],tblREGASSLookup[Concat],0))","v":"CUST"},{"$f":"IF(tblREGASSJune19[[#This Row],[Total ($000)]]=0,\"NO\",IF(ISNA(tblREGASSJune19[[#This Row],[FUNC]]),\"YES\",IF(_xlfn.ISFORMULA(tblREGASSJune19[[#This Row],[FUNC]]),\"NO\",\"YES\")))","v":"NO"}]
[{"$f":"CONCATENATE(tblREGASSJune19[[#This Row],[Primary Account]],tblREGASSJune19[[#This Row],[Primary Name]],tblREGASSJune19[[#This Row],[Secondary Acct]],tblREGASSJune19[[#This Row],[Secondary  Name]],tblREGASSJune19[[#This Row],[Alloc4FUNC]])","v":"1823920DSR COSTS AMORTIZED103793PORTFOLIO WY-2014 CAT2OTHER"},1823920,"DSR COSTS AMORTIZED",103793,"PORTFOLIO WY-2014 CAT2","OTHER",147.18541999999999,{"$f":"IF(OR(tblREGASSJune19[[#This Row],[Alloc]]=\"IDU\",tblREGASSJune19[[#This Row],[Alloc]]=\"OR\",tblREGASSJune19[[#This Row],[Alloc]]=\"UT\",tblREGASSJune19[[#This Row],[Alloc]]=\"WYU\",tblREGASSJune19[[#This Row],[Alloc]]=\"WYP\",tblREGASSJune19[[#This Row],[Alloc]]=\"CA\",tblREGASSJune19[[#This Row],[Alloc]]=\"WA\"),\"SITUS\",tblREGASSJune19[[#This Row],[Alloc]])","v":"OTHER"},{"$f":"INDEX(tblREGASSLookup[FUNC],MATCH(tblREGASSJune19[[#This Row],[Concat]],tblREGASSLookup[Concat],0))","v":"CUST"},{"$f":"IF(tblREGASSJune19[[#This Row],[Total ($000)]]=0,\"NO\",IF(ISNA(tblREGASSJune19[[#This Row],[FUNC]]),\"YES\",IF(_xlfn.ISFORMULA(tblREGASSJune19[[#This Row],[FUNC]]),\"NO\",\"YES\")))","v":"NO"}]
[{"$f":"CONCATENATE(tblREGASSJune19[[#This Row],[Primary Account]],tblREGASSJune19[[#This Row],[Primary Name]],tblREGASSJune19[[#This Row],[Secondary Acct]],tblREGASSJune19[[#This Row],[Secondary  Name]],tblREGASSJune19[[#This Row],[Alloc4FUNC]])","v":"1823920DSR COSTS AMORTIZED103794PORTFOLIO WY-2014 CAT3OTHER"},1823920,"DSR COSTS AMORTIZED",103794,"PORTFOLIO WY-2014 CAT3","OTHER",257.58067999999997,{"$f":"IF(OR(tblREGASSJune19[[#This Row],[Alloc]]=\"IDU\",tblREGASSJune19[[#This Row],[Alloc]]=\"OR\",tblREGASSJune19[[#This Row],[Alloc]]=\"UT\",tblREGASSJune19[[#This Row],[Alloc]]=\"WYU\",tblREGASSJune19[[#This Row],[Alloc]]=\"WYP\",tblREGASSJune19[[#This Row],[Alloc]]=\"CA\",tblREGASSJune19[[#This Row],[Alloc]]=\"WA\"),\"SITUS\",tblREGASSJune19[[#This Row],[Alloc]])","v":"OTHER"},{"$f":"INDEX(tblREGASSLookup[FUNC],MATCH(tblREGASSJune19[[#This Row],[Concat]],tblREGASSLookup[Concat],0))","v":"CUST"},{"$f":"IF(tblREGASSJune19[[#This Row],[Total ($000)]]=0,\"NO\",IF(ISNA(tblREGASSJune19[[#This Row],[FUNC]]),\"YES\",IF(_xlfn.ISFORMULA(tblREGASSJune19[[#This Row],[FUNC]]),\"NO\",\"YES\")))","v":"NO"}]
[{"$f":"CONCATENATE(tblREGASSJune19[[#This Row],[Primary Account]],tblREGASSJune19[[#This Row],[Primary Name]],tblREGASSJune19[[#This Row],[Secondary Acct]],tblREGASSJune19[[#This Row],[Secondary  Name]],tblREGASSJune19[[#This Row],[Alloc4FUNC]])","v":"1823920DSR COSTS AMORTIZED103795REFRIGERATOR RECYCLING-WY -2014 CAT1OTHER"},1823920,"DSR COSTS AMORTIZED",103795,"REFRIGERATOR RECYCLING-WY -2014 CAT1","OTHER",159.32512,{"$f":"IF(OR(tblREGASSJune19[[#This Row],[Alloc]]=\"IDU\",tblREGASSJune19[[#This Row],[Alloc]]=\"OR\",tblREGASSJune19[[#This Row],[Alloc]]=\"UT\",tblREGASSJune19[[#This Row],[Alloc]]=\"WYU\",tblREGASSJune19[[#This Row],[Alloc]]=\"WYP\",tblREGASSJune19[[#This Row],[Alloc]]=\"CA\",tblREGASSJune19[[#This Row],[Alloc]]=\"WA\"),\"SITUS\",tblREGASSJune19[[#This Row],[Alloc]])","v":"OTHER"},{"$f":"INDEX(tblREGASSLookup[FUNC],MATCH(tblREGASSJune19[[#This Row],[Concat]],tblREGASSLookup[Concat],0))","v":"CUST"},{"$f":"IF(tblREGASSJune19[[#This Row],[Total ($000)]]=0,\"NO\",IF(ISNA(tblREGASSJune19[[#This Row],[FUNC]]),\"YES\",IF(_xlfn.ISFORMULA(tblREGASSJune19[[#This Row],[FUNC]]),\"NO\",\"YES\")))","v":"NO"}]
[{"$f":"CONCATENATE(tblREGASSJune19[[#This Row],[Primary Account]],tblREGASSJune19[[#This Row],[Primary Name]],tblREGASSJune19[[#This Row],[Secondary Acct]],tblREGASSJune19[[#This Row],[Secondary  Name]],tblREGASSJune19[[#This Row],[Alloc4FUNC]])","v":"1823920DSR COSTS AMORTIZED103796SELF DIRECT - COMMERCIAL WY-2014 CAT2OTHER"},1823920,"DSR COSTS AMORTIZED",103796,"SELF DIRECT - COMMERCIAL WY-2014 CAT2","OTHER",1.8237300000000001,{"$f":"IF(OR(tblREGASSJune19[[#This Row],[Alloc]]=\"IDU\",tblREGASSJune19[[#This Row],[Alloc]]=\"OR\",tblREGASSJune19[[#This Row],[Alloc]]=\"UT\",tblREGASSJune19[[#This Row],[Alloc]]=\"WYU\",tblREGASSJune19[[#This Row],[Alloc]]=\"WYP\",tblREGASSJune19[[#This Row],[Alloc]]=\"CA\",tblREGASSJune19[[#This Row],[Alloc]]=\"WA\"),\"SITUS\",tblREGASSJune19[[#This Row],[Alloc]])","v":"OTHER"},{"$f":"INDEX(tblREGASSLookup[FUNC],MATCH(tblREGASSJune19[[#This Row],[Concat]],tblREGASSLookup[Concat],0))","v":"CUST"},{"$f":"IF(tblREGASSJune19[[#This Row],[Total ($000)]]=0,\"NO\",IF(ISNA(tblREGASSJune19[[#This Row],[FUNC]]),\"YES\",IF(_xlfn.ISFORMULA(tblREGASSJune19[[#This Row],[FUNC]]),\"NO\",\"YES\")))","v":"NO"}]
[{"$f":"CONCATENATE(tblREGASSJune19[[#This Row],[Primary Account]],tblREGASSJune19[[#This Row],[Primary Name]],tblREGASSJune19[[#This Row],[Secondary Acct]],tblREGASSJune19[[#This Row],[Secondary  Name]],tblREGASSJune19[[#This Row],[Alloc4FUNC]])","v":"1823920DSR COSTS AMORTIZED103797SELF DIRECT - COMMERCIAL -WY-2014 CAT3OTHER"},1823920,"DSR COSTS AMORTIZED",103797,"SELF DIRECT - COMMERCIAL -WY-2014 CAT3","OTHER",1.9025300000000001,{"$f":"IF(OR(tblREGASSJune19[[#This Row],[Alloc]]=\"IDU\",tblREGASSJune19[[#This Row],[Alloc]]=\"OR\",tblREGASSJune19[[#This Row],[Alloc]]=\"UT\",tblREGASSJune19[[#This Row],[Alloc]]=\"WYU\",tblREGASSJune19[[#This Row],[Alloc]]=\"WYP\",tblREGASSJune19[[#This Row],[Alloc]]=\"CA\",tblREGASSJune19[[#This Row],[Alloc]]=\"WA\"),\"SITUS\",tblREGASSJune19[[#This Row],[Alloc]])","v":"OTHER"},{"$f":"INDEX(tblREGASSLookup[FUNC],MATCH(tblREGASSJune19[[#This Row],[Concat]],tblREGASSLookup[Concat],0))","v":"CUST"},{"$f":"IF(tblREGASSJune19[[#This Row],[Total ($000)]]=0,\"NO\",IF(ISNA(tblREGASSJune19[[#This Row],[FUNC]]),\"YES\",IF(_xlfn.ISFORMULA(tblREGASSJune19[[#This Row],[FUNC]]),\"NO\",\"YES\")))","v":"NO"}]
[{"$f":"CONCATENATE(tblREGASSJune19[[#This Row],[Primary Account]],tblREGASSJune19[[#This Row],[Primary Name]],tblREGASSJune19[[#This Row],[Secondary Acct]],tblREGASSJune19[[#This Row],[Secondary  Name]],tblREGASSJune19[[#This Row],[Alloc4FUNC]])","v":"1823920DSR COSTS AMORTIZED103798SELF DIRECT- INDUSTRIAL WY-2014 CAT2OTHER"},1823920,"DSR COSTS AMORTIZED",103798,"SELF DIRECT- INDUSTRIAL WY-2014 CAT2","OTHER",2.3199800000000002,{"$f":"IF(OR(tblREGASSJune19[[#This Row],[Alloc]]=\"IDU\",tblREGASSJune19[[#This Row],[Alloc]]=\"OR\",tblREGASSJune19[[#This Row],[Alloc]]=\"UT\",tblREGASSJune19[[#This Row],[Alloc]]=\"WYU\",tblREGASSJune19[[#This Row],[Alloc]]=\"WYP\",tblREGASSJune19[[#This Row],[Alloc]]=\"CA\",tblREGASSJune19[[#This Row],[Alloc]]=\"WA\"),\"SITUS\",tblREGASSJune19[[#This Row],[Alloc]])","v":"OTHER"},{"$f":"INDEX(tblREGASSLookup[FUNC],MATCH(tblREGASSJune19[[#This Row],[Concat]],tblREGASSLookup[Concat],0))","v":"CUST"},{"$f":"IF(tblREGASSJune19[[#This Row],[Total ($000)]]=0,\"NO\",IF(ISNA(tblREGASSJune19[[#This Row],[FUNC]]),\"YES\",IF(_xlfn.ISFORMULA(tblREGASSJune19[[#This Row],[FUNC]]),\"NO\",\"YES\")))","v":"NO"}]
[{"$f":"CONCATENATE(tblREGASSJune19[[#This Row],[Primary Account]],tblREGASSJune19[[#This Row],[Primary Name]],tblREGASSJune19[[#This Row],[Secondary Acct]],tblREGASSJune19[[#This Row],[Secondary  Name]],tblREGASSJune19[[#This Row],[Alloc4FUNC]])","v":"1823920DSR COSTS AMORTIZED103799SELF DIRECT -INDUSTRIAL -WY-2014 CAT3OTHER"},1823920,"DSR COSTS AMORTIZED",103799,"SELF DIRECT -INDUSTRIAL -WY-2014 CAT3","OTHER",197.86494999999999,{"$f":"IF(OR(tblREGASSJune19[[#This Row],[Alloc]]=\"IDU\",tblREGASSJune19[[#This Row],[Alloc]]=\"OR\",tblREGASSJune19[[#This Row],[Alloc]]=\"UT\",tblREGASSJune19[[#This Row],[Alloc]]=\"WYU\",tblREGASSJune19[[#This Row],[Alloc]]=\"WYP\",tblREGASSJune19[[#This Row],[Alloc]]=\"CA\",tblREGASSJune19[[#This Row],[Alloc]]=\"WA\"),\"SITUS\",tblREGASSJune19[[#This Row],[Alloc]])","v":"OTHER"},{"$f":"INDEX(tblREGASSLookup[FUNC],MATCH(tblREGASSJune19[[#This Row],[Concat]],tblREGASSLookup[Concat],0))","v":"CUST"},{"$f":"IF(tblREGASSJune19[[#This Row],[Total ($000)]]=0,\"NO\",IF(ISNA(tblREGASSJune19[[#This Row],[FUNC]]),\"YES\",IF(_xlfn.ISFORMULA(tblREGASSJune19[[#This Row],[FUNC]]),\"NO\",\"YES\")))","v":"NO"}]
[{"$f":"CONCATENATE(tblREGASSJune19[[#This Row],[Primary Account]],tblREGASSJune19[[#This Row],[Primary Name]],tblREGASSJune19[[#This Row],[Secondary Acct]],tblREGASSJune19[[#This Row],[Secondary  Name]],tblREGASSJune19[[#This Row],[Alloc4FUNC]])","v":"1823920DSR COSTS AMORTIZED103805WSB - WATTSMART BUSINESS - CA- 2014OTHER"},1823920,"DSR COSTS AMORTIZED",103805,"WSB - WATTSMART BUSINESS - CA- 2014","OTHER",1.0000000000000001E-5,{"$f":"IF(OR(tblREGASSJune19[[#This Row],[Alloc]]=\"IDU\",tblREGASSJune19[[#This Row],[Alloc]]=\"OR\",tblREGASSJune19[[#This Row],[Alloc]]=\"UT\",tblREGASSJune19[[#This Row],[Alloc]]=\"WYU\",tblREGASSJune19[[#This Row],[Alloc]]=\"WYP\",tblREGASSJune19[[#This Row],[Alloc]]=\"CA\",tblREGASSJune19[[#This Row],[Alloc]]=\"WA\"),\"SITUS\",tblREGASSJune19[[#This Row],[Alloc]])","v":"OTHER"},{"$f":"INDEX(tblREGASSLookup[FUNC],MATCH(tblREGASSJune19[[#This Row],[Concat]],tblREGASSLookup[Concat],0))","v":"CUST"},{"$f":"IF(tblREGASSJune19[[#This Row],[Total ($000)]]=0,\"NO\",IF(ISNA(tblREGASSJune19[[#This Row],[FUNC]]),\"YES\",IF(_xlfn.ISFORMULA(tblREGASSJune19[[#This Row],[FUNC]]),\"NO\",\"YES\")))","v":"NO"}]
[{"$f":"CONCATENATE(tblREGASSJune19[[#This Row],[Primary Account]],tblREGASSJune19[[#This Row],[Primary Name]],tblREGASSJune19[[#This Row],[Secondary Acct]],tblREGASSJune19[[#This Row],[Secondary  Name]],tblREGASSJune19[[#This Row],[Alloc4FUNC]])","v":"1823920DSR COSTS AMORTIZED103808WSB - WATTSMART BUSINESS - ID- 2014OTHER"},1823920,"DSR COSTS AMORTIZED",103808,"WSB - WATTSMART BUSINESS - ID- 2014","OTHER",32.300719999999998,{"$f":"IF(OR(tblREGASSJune19[[#This Row],[Alloc]]=\"IDU\",tblREGASSJune19[[#This Row],[Alloc]]=\"OR\",tblREGASSJune19[[#This Row],[Alloc]]=\"UT\",tblREGASSJune19[[#This Row],[Alloc]]=\"WYU\",tblREGASSJune19[[#This Row],[Alloc]]=\"WYP\",tblREGASSJune19[[#This Row],[Alloc]]=\"CA\",tblREGASSJune19[[#This Row],[Alloc]]=\"WA\"),\"SITUS\",tblREGASSJune19[[#This Row],[Alloc]])","v":"OTHER"},{"$f":"INDEX(tblREGASSLookup[FUNC],MATCH(tblREGASSJune19[[#This Row],[Concat]],tblREGASSLookup[Concat],0))","v":"CUST"},{"$f":"IF(tblREGASSJune19[[#This Row],[Total ($000)]]=0,\"NO\",IF(ISNA(tblREGASSJune19[[#This Row],[FUNC]]),\"YES\",IF(_xlfn.ISFORMULA(tblREGASSJune19[[#This Row],[FUNC]]),\"NO\",\"YES\")))","v":"NO"}]
[{"$f":"CONCATENATE(tblREGASSJune19[[#This Row],[Primary Account]],tblREGASSJune19[[#This Row],[Primary Name]],tblREGASSJune19[[#This Row],[Secondary Acct]],tblREGASSJune19[[#This Row],[Secondary  Name]],tblREGASSJune19[[#This Row],[Alloc4FUNC]])","v":"1823920DSR COSTS AMORTIZED103809WSB Small Business Comm - ID-2014OTHER"},1823920,"DSR COSTS AMORTIZED",103809,"WSB Small Business Comm - ID-2014","OTHER",10.866529999999999,{"$f":"IF(OR(tblREGASSJune19[[#This Row],[Alloc]]=\"IDU\",tblREGASSJune19[[#This Row],[Alloc]]=\"OR\",tblREGASSJune19[[#This Row],[Alloc]]=\"UT\",tblREGASSJune19[[#This Row],[Alloc]]=\"WYU\",tblREGASSJune19[[#This Row],[Alloc]]=\"WYP\",tblREGASSJune19[[#This Row],[Alloc]]=\"CA\",tblREGASSJune19[[#This Row],[Alloc]]=\"WA\"),\"SITUS\",tblREGASSJune19[[#This Row],[Alloc]])","v":"OTHER"},{"$f":"INDEX(tblREGASSLookup[FUNC],MATCH(tblREGASSJune19[[#This Row],[Concat]],tblREGASSLookup[Concat],0))","v":"CUST"},{"$f":"IF(tblREGASSJune19[[#This Row],[Total ($000)]]=0,\"NO\",IF(ISNA(tblREGASSJune19[[#This Row],[FUNC]]),\"YES\",IF(_xlfn.ISFORMULA(tblREGASSJune19[[#This Row],[FUNC]]),\"NO\",\"YES\")))","v":"NO"}]
[{"$f":"CONCATENATE(tblREGASSJune19[[#This Row],[Primary Account]],tblREGASSJune19[[#This Row],[Primary Name]],tblREGASSJune19[[#This Row],[Secondary Acct]],tblREGASSJune19[[#This Row],[Secondary  Name]],tblREGASSJune19[[#This Row],[Alloc4FUNC]])","v":"1823920DSR COSTS AMORTIZED103810WSB Small Business Ind - ID 2014OTHER"},1823920,"DSR COSTS AMORTIZED",103810,"WSB Small Business Ind - ID 2014","OTHER",8.3825099999999999,{"$f":"IF(OR(tblREGASSJune19[[#This Row],[Alloc]]=\"IDU\",tblREGASSJune19[[#This Row],[Alloc]]=\"OR\",tblREGASSJune19[[#This Row],[Alloc]]=\"UT\",tblREGASSJune19[[#This Row],[Alloc]]=\"WYU\",tblREGASSJune19[[#This Row],[Alloc]]=\"WYP\",tblREGASSJune19[[#This Row],[Alloc]]=\"CA\",tblREGASSJune19[[#This Row],[Alloc]]=\"WA\"),\"SITUS\",tblREGASSJune19[[#This Row],[Alloc]])","v":"OTHER"},{"$f":"INDEX(tblREGASSLookup[FUNC],MATCH(tblREGASSJune19[[#This Row],[Concat]],tblREGASSLookup[Concat],0))","v":"CUST"},{"$f":"IF(tblREGASSJune19[[#This Row],[Total ($000)]]=0,\"NO\",IF(ISNA(tblREGASSJune19[[#This Row],[FUNC]]),\"YES\",IF(_xlfn.ISFORMULA(tblREGASSJune19[[#This Row],[FUNC]]),\"NO\",\"YES\")))","v":"NO"}]
[{"$f":"CONCATENATE(tblREGASSJune19[[#This Row],[Primary Account]],tblREGASSJune19[[#This Row],[Primary Name]],tblREGASSJune19[[#This Row],[Secondary Acct]],tblREGASSJune19[[#This Row],[Secondary  Name]],tblREGASSJune19[[#This Row],[Alloc4FUNC]])","v":"1823920DSR COSTS AMORTIZED103811WSB - Wattsmart Business - WY Cat 2- 201OTHER"},1823920,"DSR COSTS AMORTIZED",103811,"WSB - Wattsmart Business - WY Cat 2- 201","OTHER",26.243549999999999,{"$f":"IF(OR(tblREGASSJune19[[#This Row],[Alloc]]=\"IDU\",tblREGASSJune19[[#This Row],[Alloc]]=\"OR\",tblREGASSJune19[[#This Row],[Alloc]]=\"UT\",tblREGASSJune19[[#This Row],[Alloc]]=\"WYU\",tblREGASSJune19[[#This Row],[Alloc]]=\"WYP\",tblREGASSJune19[[#This Row],[Alloc]]=\"CA\",tblREGASSJune19[[#This Row],[Alloc]]=\"WA\"),\"SITUS\",tblREGASSJune19[[#This Row],[Alloc]])","v":"OTHER"},{"$f":"INDEX(tblREGASSLookup[FUNC],MATCH(tblREGASSJune19[[#This Row],[Concat]],tblREGASSLookup[Concat],0))","v":"CUST"},{"$f":"IF(tblREGASSJune19[[#This Row],[Total ($000)]]=0,\"NO\",IF(ISNA(tblREGASSJune19[[#This Row],[FUNC]]),\"YES\",IF(_xlfn.ISFORMULA(tblREGASSJune19[[#This Row],[FUNC]]),\"NO\",\"YES\")))","v":"NO"}]
[{"$f":"CONCATENATE(tblREGASSJune19[[#This Row],[Primary Account]],tblREGASSJune19[[#This Row],[Primary Name]],tblREGASSJune19[[#This Row],[Secondary Acct]],tblREGASSJune19[[#This Row],[Secondary  Name]],tblREGASSJune19[[#This Row],[Alloc4FUNC]])","v":"1823920DSR COSTS AMORTIZED103812WSB - Small Business Comm - WY Cat2 -201OTHER"},1823920,"DSR COSTS AMORTIZED",103812,"WSB - Small Business Comm - WY Cat2 -201","OTHER",7.26058,{"$f":"IF(OR(tblREGASSJune19[[#This Row],[Alloc]]=\"IDU\",tblREGASSJune19[[#This Row],[Alloc]]=\"OR\",tblREGASSJune19[[#This Row],[Alloc]]=\"UT\",tblREGASSJune19[[#This Row],[Alloc]]=\"WYU\",tblREGASSJune19[[#This Row],[Alloc]]=\"WYP\",tblREGASSJune19[[#This Row],[Alloc]]=\"CA\",tblREGASSJune19[[#This Row],[Alloc]]=\"WA\"),\"SITUS\",tblREGASSJune19[[#This Row],[Alloc]])","v":"OTHER"},{"$f":"INDEX(tblREGASSLookup[FUNC],MATCH(tblREGASSJune19[[#This Row],[Concat]],tblREGASSLookup[Concat],0))","v":"CUST"},{"$f":"IF(tblREGASSJune19[[#This Row],[Total ($000)]]=0,\"NO\",IF(ISNA(tblREGASSJune19[[#This Row],[FUNC]]),\"YES\",IF(_xlfn.ISFORMULA(tblREGASSJune19[[#This Row],[FUNC]]),\"NO\",\"YES\")))","v":"NO"}]
[{"$f":"CONCATENATE(tblREGASSJune19[[#This Row],[Primary Account]],tblREGASSJune19[[#This Row],[Primary Name]],tblREGASSJune19[[#This Row],[Secondary Acct]],tblREGASSJune19[[#This Row],[Secondary  Name]],tblREGASSJune19[[#This Row],[Alloc4FUNC]])","v":"1823920DSR COSTS AMORTIZED103813WBS Small Business Ind - WY Cat2-2014OTHER"},1823920,"DSR COSTS AMORTIZED",103813,"WBS Small Business Ind - WY Cat2-2014","OTHER",4.5135899999999998,{"$f":"IF(OR(tblREGASSJune19[[#This Row],[Alloc]]=\"IDU\",tblREGASSJune19[[#This Row],[Alloc]]=\"OR\",tblREGASSJune19[[#This Row],[Alloc]]=\"UT\",tblREGASSJune19[[#This Row],[Alloc]]=\"WYU\",tblREGASSJune19[[#This Row],[Alloc]]=\"WYP\",tblREGASSJune19[[#This Row],[Alloc]]=\"CA\",tblREGASSJune19[[#This Row],[Alloc]]=\"WA\"),\"SITUS\",tblREGASSJune19[[#This Row],[Alloc]])","v":"OTHER"},{"$f":"INDEX(tblREGASSLookup[FUNC],MATCH(tblREGASSJune19[[#This Row],[Concat]],tblREGASSLookup[Concat],0))","v":"CUST"},{"$f":"IF(tblREGASSJune19[[#This Row],[Total ($000)]]=0,\"NO\",IF(ISNA(tblREGASSJune19[[#This Row],[FUNC]]),\"YES\",IF(_xlfn.ISFORMULA(tblREGASSJune19[[#This Row],[FUNC]]),\"NO\",\"YES\")))","v":"NO"}]
[{"$f":"CONCATENATE(tblREGASSJune19[[#This Row],[Primary Account]],tblREGASSJune19[[#This Row],[Primary Name]],tblREGASSJune19[[#This Row],[Secondary Acct]],tblREGASSJune19[[#This Row],[Secondary  Name]],tblREGASSJune19[[#This Row],[Alloc4FUNC]])","v":"1823920DSR COSTS AMORTIZED103814WSB Small Business Comm- UT-2014OTHER"},1823920,"DSR COSTS AMORTIZED",103814,"WSB Small Business Comm- UT-2014","OTHER",1634.9569899999999,{"$f":"IF(OR(tblREGASSJune19[[#This Row],[Alloc]]=\"IDU\",tblREGASSJune19[[#This Row],[Alloc]]=\"OR\",tblREGASSJune19[[#This Row],[Alloc]]=\"UT\",tblREGASSJune19[[#This Row],[Alloc]]=\"WYU\",tblREGASSJune19[[#This Row],[Alloc]]=\"WYP\",tblREGASSJune19[[#This Row],[Alloc]]=\"CA\",tblREGASSJune19[[#This Row],[Alloc]]=\"WA\"),\"SITUS\",tblREGASSJune19[[#This Row],[Alloc]])","v":"OTHER"},{"$f":"INDEX(tblREGASSLookup[FUNC],MATCH(tblREGASSJune19[[#This Row],[Concat]],tblREGASSLookup[Concat],0))","v":"CUST"},{"$f":"IF(tblREGASSJune19[[#This Row],[Total ($000)]]=0,\"NO\",IF(ISNA(tblREGASSJune19[[#This Row],[FUNC]]),\"YES\",IF(_xlfn.ISFORMULA(tblREGASSJune19[[#This Row],[FUNC]]),\"NO\",\"YES\")))","v":"NO"}]
[{"$f":"CONCATENATE(tblREGASSJune19[[#This Row],[Primary Account]],tblREGASSJune19[[#This Row],[Primary Name]],tblREGASSJune19[[#This Row],[Secondary Acct]],tblREGASSJune19[[#This Row],[Secondary  Name]],tblREGASSJune19[[#This Row],[Alloc4FUNC]])","v":"1823920DSR COSTS AMORTIZED103815WBS Small Business Ind- UT-2014OTHER"},1823920,"DSR COSTS AMORTIZED",103815,"WBS Small Business Ind- UT-2014","OTHER",22.793559999999999,{"$f":"IF(OR(tblREGASSJune19[[#This Row],[Alloc]]=\"IDU\",tblREGASSJune19[[#This Row],[Alloc]]=\"OR\",tblREGASSJune19[[#This Row],[Alloc]]=\"UT\",tblREGASSJune19[[#This Row],[Alloc]]=\"WYU\",tblREGASSJune19[[#This Row],[Alloc]]=\"WYP\",tblREGASSJune19[[#This Row],[Alloc]]=\"CA\",tblREGASSJune19[[#This Row],[Alloc]]=\"WA\"),\"SITUS\",tblREGASSJune19[[#This Row],[Alloc]])","v":"OTHER"},{"$f":"INDEX(tblREGASSLookup[FUNC],MATCH(tblREGASSJune19[[#This Row],[Concat]],tblREGASSLookup[Concat],0))","v":"CUST"},{"$f":"IF(tblREGASSJune19[[#This Row],[Total ($000)]]=0,\"NO\",IF(ISNA(tblREGASSJune19[[#This Row],[FUNC]]),\"YES\",IF(_xlfn.ISFORMULA(tblREGASSJune19[[#This Row],[FUNC]]),\"NO\",\"YES\")))","v":"NO"}]
[{"$f":"CONCATENATE(tblREGASSJune19[[#This Row],[Primary Account]],tblREGASSJune19[[#This Row],[Primary Name]],tblREGASSJune19[[#This Row],[Secondary Acct]],tblREGASSJune19[[#This Row],[Secondary  Name]],tblREGASSJune19[[#This Row],[Alloc4FUNC]])","v":"1823920DSR COSTS AMORTIZED103816WSB Small Business Comm- WA-2014OTHER"},1823920,"DSR COSTS AMORTIZED",103816,"WSB Small Business Comm- WA-2014","OTHER",556.86608000000001,{"$f":"IF(OR(tblREGASSJune19[[#This Row],[Alloc]]=\"IDU\",tblREGASSJune19[[#This Row],[Alloc]]=\"OR\",tblREGASSJune19[[#This Row],[Alloc]]=\"UT\",tblREGASSJune19[[#This Row],[Alloc]]=\"WYU\",tblREGASSJune19[[#This Row],[Alloc]]=\"WYP\",tblREGASSJune19[[#This Row],[Alloc]]=\"CA\",tblREGASSJune19[[#This Row],[Alloc]]=\"WA\"),\"SITUS\",tblREGASSJune19[[#This Row],[Alloc]])","v":"OTHER"},{"$f":"INDEX(tblREGASSLookup[FUNC],MATCH(tblREGASSJune19[[#This Row],[Concat]],tblREGASSLookup[Concat],0))","v":"CUST"},{"$f":"IF(tblREGASSJune19[[#This Row],[Total ($000)]]=0,\"NO\",IF(ISNA(tblREGASSJune19[[#This Row],[FUNC]]),\"YES\",IF(_xlfn.ISFORMULA(tblREGASSJune19[[#This Row],[FUNC]]),\"NO\",\"YES\")))","v":"NO"}]
[{"$f":"CONCATENATE(tblREGASSJune19[[#This Row],[Primary Account]],tblREGASSJune19[[#This Row],[Primary Name]],tblREGASSJune19[[#This Row],[Secondary Acct]],tblREGASSJune19[[#This Row],[Secondary  Name]],tblREGASSJune19[[#This Row],[Alloc4FUNC]])","v":"1823920DSR COSTS AMORTIZED103817WBS Small Business Ind- WA-2014OTHER"},1823920,"DSR COSTS AMORTIZED",103817,"WBS Small Business Ind- WA-2014","OTHER",46.381120000000003,{"$f":"IF(OR(tblREGASSJune19[[#This Row],[Alloc]]=\"IDU\",tblREGASSJune19[[#This Row],[Alloc]]=\"OR\",tblREGASSJune19[[#This Row],[Alloc]]=\"UT\",tblREGASSJune19[[#This Row],[Alloc]]=\"WYU\",tblREGASSJune19[[#This Row],[Alloc]]=\"WYP\",tblREGASSJune19[[#This Row],[Alloc]]=\"CA\",tblREGASSJune19[[#This Row],[Alloc]]=\"WA\"),\"SITUS\",tblREGASSJune19[[#This Row],[Alloc]])","v":"OTHER"},{"$f":"INDEX(tblREGASSLookup[FUNC],MATCH(tblREGASSJune19[[#This Row],[Concat]],tblREGASSLookup[Concat],0))","v":"CUST"},{"$f":"IF(tblREGASSJune19[[#This Row],[Total ($000)]]=0,\"NO\",IF(ISNA(tblREGASSJune19[[#This Row],[FUNC]]),\"YES\",IF(_xlfn.ISFORMULA(tblREGASSJune19[[#This Row],[FUNC]]),\"NO\",\"YES\")))","v":"NO"}]
[{"$f":"CONCATENATE(tblREGASSJune19[[#This Row],[Primary Account]],tblREGASSJune19[[#This Row],[Primary Name]],tblREGASSJune19[[#This Row],[Secondary Acct]],tblREGASSJune19[[#This Row],[Secondary  Name]],tblREGASSJune19[[#This Row],[Alloc4FUNC]])","v":"1823920DSR COSTS AMORTIZED103834HOME ENERGY REPORTING - ID 2014OTHER"},1823920,"DSR COSTS AMORTIZED",103834,"HOME ENERGY REPORTING - ID 2014","OTHER",20.472989999999999,{"$f":"IF(OR(tblREGASSJune19[[#This Row],[Alloc]]=\"IDU\",tblREGASSJune19[[#This Row],[Alloc]]=\"OR\",tblREGASSJune19[[#This Row],[Alloc]]=\"UT\",tblREGASSJune19[[#This Row],[Alloc]]=\"WYU\",tblREGASSJune19[[#This Row],[Alloc]]=\"WYP\",tblREGASSJune19[[#This Row],[Alloc]]=\"CA\",tblREGASSJune19[[#This Row],[Alloc]]=\"WA\"),\"SITUS\",tblREGASSJune19[[#This Row],[Alloc]])","v":"OTHER"},{"$f":"INDEX(tblREGASSLookup[FUNC],MATCH(tblREGASSJune19[[#This Row],[Concat]],tblREGASSLookup[Concat],0))","v":"CUST"},{"$f":"IF(tblREGASSJune19[[#This Row],[Total ($000)]]=0,\"NO\",IF(ISNA(tblREGASSJune19[[#This Row],[FUNC]]),\"YES\",IF(_xlfn.ISFORMULA(tblREGASSJune19[[#This Row],[FUNC]]),\"NO\",\"YES\")))","v":"NO"}]
[{"$f":"CONCATENATE(tblREGASSJune19[[#This Row],[Primary Account]],tblREGASSJune19[[#This Row],[Primary Name]],tblREGASSJune19[[#This Row],[Secondary Acct]],tblREGASSJune19[[#This Row],[Secondary  Name]],tblREGASSJune19[[#This Row],[Alloc4FUNC]])","v":"1823920DSR COSTS AMORTIZED103835HOME ENERGY REPORTING - WY 2014OTHER"},1823920,"DSR COSTS AMORTIZED",103835,"HOME ENERGY REPORTING - WY 2014","OTHER",22.901019999999999,{"$f":"IF(OR(tblREGASSJune19[[#This Row],[Alloc]]=\"IDU\",tblREGASSJune19[[#This Row],[Alloc]]=\"OR\",tblREGASSJune19[[#This Row],[Alloc]]=\"UT\",tblREGASSJune19[[#This Row],[Alloc]]=\"WYU\",tblREGASSJune19[[#This Row],[Alloc]]=\"WYP\",tblREGASSJune19[[#This Row],[Alloc]]=\"CA\",tblREGASSJune19[[#This Row],[Alloc]]=\"WA\"),\"SITUS\",tblREGASSJune19[[#This Row],[Alloc]])","v":"OTHER"},{"$f":"INDEX(tblREGASSLookup[FUNC],MATCH(tblREGASSJune19[[#This Row],[Concat]],tblREGASSLookup[Concat],0))","v":"CUST"},{"$f":"IF(tblREGASSJune19[[#This Row],[Total ($000)]]=0,\"NO\",IF(ISNA(tblREGASSJune19[[#This Row],[FUNC]]),\"YES\",IF(_xlfn.ISFORMULA(tblREGASSJune19[[#This Row],[FUNC]]),\"NO\",\"YES\")))","v":"NO"}]
[{"$f":"CONCATENATE(tblREGASSJune19[[#This Row],[Primary Account]],tblREGASSJune19[[#This Row],[Primary Name]],tblREGASSJune19[[#This Row],[Secondary Acct]],tblREGASSJune19[[#This Row],[Secondary  Name]],tblREGASSJune19[[#This Row],[Alloc4FUNC]])","v":"1823920DSR COSTS AMORTIZED103845REFRIGERATOR RECYCLING COMM - WASHINGTONOTHER"},1823920,"DSR COSTS AMORTIZED",103845,"REFRIGERATOR RECYCLING COMM - WASHINGTON","OTHER",1.2270000000000001,{"$f":"IF(OR(tblREGASSJune19[[#This Row],[Alloc]]=\"IDU\",tblREGASSJune19[[#This Row],[Alloc]]=\"OR\",tblREGASSJune19[[#This Row],[Alloc]]=\"UT\",tblREGASSJune19[[#This Row],[Alloc]]=\"WYU\",tblREGASSJune19[[#This Row],[Alloc]]=\"WYP\",tblREGASSJune19[[#This Row],[Alloc]]=\"CA\",tblREGASSJune19[[#This Row],[Alloc]]=\"WA\"),\"SITUS\",tblREGASSJune19[[#This Row],[Alloc]])","v":"OTHER"},{"$f":"INDEX(tblREGASSLookup[FUNC],MATCH(tblREGASSJune19[[#This Row],[Concat]],tblREGASSLookup[Concat],0))","v":"CUST"},{"$f":"IF(tblREGASSJune19[[#This Row],[Total ($000)]]=0,\"NO\",IF(ISNA(tblREGASSJune19[[#This Row],[FUNC]]),\"YES\",IF(_xlfn.ISFORMULA(tblREGASSJune19[[#This Row],[FUNC]]),\"NO\",\"YES\")))","v":"NO"}]
[{"$f":"CONCATENATE(tblREGASSJune19[[#This Row],[Primary Account]],tblREGASSJune19[[#This Row],[Primary Name]],tblREGASSJune19[[#This Row],[Secondary Acct]],tblREGASSJune19[[#This Row],[Secondary  Name]],tblREGASSJune19[[#This Row],[Alloc4FUNC]])","v":"1823920DSR COSTS AMORTIZED103856WSB Wattsmart Business Agric - ID-2014OTHER"},1823920,"DSR COSTS AMORTIZED",103856,"WSB Wattsmart Business Agric - ID-2014","OTHER",9.0999999999999998E-2,{"$f":"IF(OR(tblREGASSJune19[[#This Row],[Alloc]]=\"IDU\",tblREGASSJune19[[#This Row],[Alloc]]=\"OR\",tblREGASSJune19[[#This Row],[Alloc]]=\"UT\",tblREGASSJune19[[#This Row],[Alloc]]=\"WYU\",tblREGASSJune19[[#This Row],[Alloc]]=\"WYP\",tblREGASSJune19[[#This Row],[Alloc]]=\"CA\",tblREGASSJune19[[#This Row],[Alloc]]=\"WA\"),\"SITUS\",tblREGASSJune19[[#This Row],[Alloc]])","v":"OTHER"},{"$f":"INDEX(tblREGASSLookup[FUNC],MATCH(tblREGASSJune19[[#This Row],[Concat]],tblREGASSLookup[Concat],0))","v":"CUST"},{"$f":"IF(tblREGASSJune19[[#This Row],[Total ($000)]]=0,\"NO\",IF(ISNA(tblREGASSJune19[[#This Row],[FUNC]]),\"YES\",IF(_xlfn.ISFORMULA(tblREGASSJune19[[#This Row],[FUNC]]),\"NO\",\"YES\")))","v":"NO"}]
[{"$f":"CONCATENATE(tblREGASSJune19[[#This Row],[Primary Account]],tblREGASSJune19[[#This Row],[Primary Name]],tblREGASSJune19[[#This Row],[Secondary Acct]],tblREGASSJune19[[#This Row],[Secondary  Name]],tblREGASSJune19[[#This Row],[Alloc4FUNC]])","v":"1823920DSR COSTS AMORTIZED103858WSB Wattsmart Business Comm- WY Cat3 -20OTHER"},1823920,"DSR COSTS AMORTIZED",103858,"WSB Wattsmart Business Comm- WY Cat3 -20","OTHER",8.0637299999999996,{"$f":"IF(OR(tblREGASSJune19[[#This Row],[Alloc]]=\"IDU\",tblREGASSJune19[[#This Row],[Alloc]]=\"OR\",tblREGASSJune19[[#This Row],[Alloc]]=\"UT\",tblREGASSJune19[[#This Row],[Alloc]]=\"WYU\",tblREGASSJune19[[#This Row],[Alloc]]=\"WYP\",tblREGASSJune19[[#This Row],[Alloc]]=\"CA\",tblREGASSJune19[[#This Row],[Alloc]]=\"WA\"),\"SITUS\",tblREGASSJune19[[#This Row],[Alloc]])","v":"OTHER"},{"$f":"INDEX(tblREGASSLookup[FUNC],MATCH(tblREGASSJune19[[#This Row],[Concat]],tblREGASSLookup[Concat],0))","v":"CUST"},{"$f":"IF(tblREGASSJune19[[#This Row],[Total ($000)]]=0,\"NO\",IF(ISNA(tblREGASSJune19[[#This Row],[FUNC]]),\"YES\",IF(_xlfn.ISFORMULA(tblREGASSJune19[[#This Row],[FUNC]]),\"NO\",\"YES\")))","v":"NO"}]
[{"$f":"CONCATENATE(tblREGASSJune19[[#This Row],[Primary Account]],tblREGASSJune19[[#This Row],[Primary Name]],tblREGASSJune19[[#This Row],[Secondary Acct]],tblREGASSJune19[[#This Row],[Secondary  Name]],tblREGASSJune19[[#This Row],[Alloc4FUNC]])","v":"1823920DSR COSTS AMORTIZED103859WBS Wattsmart Business Ind- WY Cat2-2014OTHER"},1823920,"DSR COSTS AMORTIZED",103859,"WBS Wattsmart Business Ind- WY Cat2-2014","OTHER",26.358560000000001,{"$f":"IF(OR(tblREGASSJune19[[#This Row],[Alloc]]=\"IDU\",tblREGASSJune19[[#This Row],[Alloc]]=\"OR\",tblREGASSJune19[[#This Row],[Alloc]]=\"UT\",tblREGASSJune19[[#This Row],[Alloc]]=\"WYU\",tblREGASSJune19[[#This Row],[Alloc]]=\"WYP\",tblREGASSJune19[[#This Row],[Alloc]]=\"CA\",tblREGASSJune19[[#This Row],[Alloc]]=\"WA\"),\"SITUS\",tblREGASSJune19[[#This Row],[Alloc]])","v":"OTHER"},{"$f":"INDEX(tblREGASSLookup[FUNC],MATCH(tblREGASSJune19[[#This Row],[Concat]],tblREGASSLookup[Concat],0))","v":"CUST"},{"$f":"IF(tblREGASSJune19[[#This Row],[Total ($000)]]=0,\"NO\",IF(ISNA(tblREGASSJune19[[#This Row],[FUNC]]),\"YES\",IF(_xlfn.ISFORMULA(tblREGASSJune19[[#This Row],[FUNC]]),\"NO\",\"YES\")))","v":"NO"}]
[{"$f":"CONCATENATE(tblREGASSJune19[[#This Row],[Primary Account]],tblREGASSJune19[[#This Row],[Primary Name]],tblREGASSJune19[[#This Row],[Secondary Acct]],tblREGASSJune19[[#This Row],[Secondary  Name]],tblREGASSJune19[[#This Row],[Alloc4FUNC]])","v":"1823920DSR COSTS AMORTIZED103860WSB- Wattsmart Business- WY Cat 3- 2014OTHER"},1823920,"DSR COSTS AMORTIZED",103860,"WSB- Wattsmart Business- WY Cat 3- 2014","OTHER",4.5800999999999998,{"$f":"IF(OR(tblREGASSJune19[[#This Row],[Alloc]]=\"IDU\",tblREGASSJune19[[#This Row],[Alloc]]=\"OR\",tblREGASSJune19[[#This Row],[Alloc]]=\"UT\",tblREGASSJune19[[#This Row],[Alloc]]=\"WYU\",tblREGASSJune19[[#This Row],[Alloc]]=\"WYP\",tblREGASSJune19[[#This Row],[Alloc]]=\"CA\",tblREGASSJune19[[#This Row],[Alloc]]=\"WA\"),\"SITUS\",tblREGASSJune19[[#This Row],[Alloc]])","v":"OTHER"},{"$f":"INDEX(tblREGASSLookup[FUNC],MATCH(tblREGASSJune19[[#This Row],[Concat]],tblREGASSLookup[Concat],0))","v":"CUST"},{"$f":"IF(tblREGASSJune19[[#This Row],[Total ($000)]]=0,\"NO\",IF(ISNA(tblREGASSJune19[[#This Row],[FUNC]]),\"YES\",IF(_xlfn.ISFORMULA(tblREGASSJune19[[#This Row],[FUNC]]),\"NO\",\"YES\")))","v":"NO"}]
[{"$f":"CONCATENATE(tblREGASSJune19[[#This Row],[Primary Account]],tblREGASSJune19[[#This Row],[Primary Name]],tblREGASSJune19[[#This Row],[Secondary Acct]],tblREGASSJune19[[#This Row],[Secondary  Name]],tblREGASSJune19[[#This Row],[Alloc4FUNC]])","v":"1823920DSR COSTS AMORTIZED103862OUTREACH AND COMMUNICATION  ID-2014OTHER"},1823920,"DSR COSTS AMORTIZED",103862,"OUTREACH AND COMMUNICATION  ID-2014","OTHER",4.9894100000000003,{"$f":"IF(OR(tblREGASSJune19[[#This Row],[Alloc]]=\"IDU\",tblREGASSJune19[[#This Row],[Alloc]]=\"OR\",tblREGASSJune19[[#This Row],[Alloc]]=\"UT\",tblREGASSJune19[[#This Row],[Alloc]]=\"WYU\",tblREGASSJune19[[#This Row],[Alloc]]=\"WYP\",tblREGASSJune19[[#This Row],[Alloc]]=\"CA\",tblREGASSJune19[[#This Row],[Alloc]]=\"WA\"),\"SITUS\",tblREGASSJune19[[#This Row],[Alloc]])","v":"OTHER"},{"$f":"INDEX(tblREGASSLookup[FUNC],MATCH(tblREGASSJune19[[#This Row],[Concat]],tblREGASSLookup[Concat],0))","v":"CUST"},{"$f":"IF(tblREGASSJune19[[#This Row],[Total ($000)]]=0,\"NO\",IF(ISNA(tblREGASSJune19[[#This Row],[FUNC]]),\"YES\",IF(_xlfn.ISFORMULA(tblREGASSJune19[[#This Row],[FUNC]]),\"NO\",\"YES\")))","v":"NO"}]
[{"$f":"CONCATENATE(tblREGASSJune19[[#This Row],[Primary Account]],tblREGASSJune19[[#This Row],[Primary Name]],tblREGASSJune19[[#This Row],[Secondary Acct]],tblREGASSJune19[[#This Row],[Secondary  Name]],tblREGASSJune19[[#This Row],[Alloc4FUNC]])","v":"1823920DSR COSTS AMORTIZED103865CALIFORNIA DSM EXPENSE - 2015OTHER"},1823920,"DSR COSTS AMORTIZED",103865,"CALIFORNIA DSM EXPENSE - 2015","OTHER",1.0000000000000001E-5,{"$f":"IF(OR(tblREGASSJune19[[#This Row],[Alloc]]=\"IDU\",tblREGASSJune19[[#This Row],[Alloc]]=\"OR\",tblREGASSJune19[[#This Row],[Alloc]]=\"UT\",tblREGASSJune19[[#This Row],[Alloc]]=\"WYU\",tblREGASSJune19[[#This Row],[Alloc]]=\"WYP\",tblREGASSJune19[[#This Row],[Alloc]]=\"CA\",tblREGASSJune19[[#This Row],[Alloc]]=\"WA\"),\"SITUS\",tblREGASSJune19[[#This Row],[Alloc]])","v":"OTHER"},{"$f":"INDEX(tblREGASSLookup[FUNC],MATCH(tblREGASSJune19[[#This Row],[Concat]],tblREGASSLookup[Concat],0))","v":"CUST"},{"$f":"IF(tblREGASSJune19[[#This Row],[Total ($000)]]=0,\"NO\",IF(ISNA(tblREGASSJune19[[#This Row],[FUNC]]),\"YES\",IF(_xlfn.ISFORMULA(tblREGASSJune19[[#This Row],[FUNC]]),\"NO\",\"YES\")))","v":"NO"}]
[{"$f":"CONCATENATE(tblREGASSJune19[[#This Row],[Primary Account]],tblREGASSJune19[[#This Row],[Primary Name]],tblREGASSJune19[[#This Row],[Secondary Acct]],tblREGASSJune19[[#This Row],[Secondary  Name]],tblREGASSJune19[[#This Row],[Alloc4FUNC]])","v":"1823920DSR COSTS AMORTIZED103874PORTFOLIO - IDAHO 2015OTHER"},1823920,"DSR COSTS AMORTIZED",103874,"PORTFOLIO - IDAHO 2015","OTHER",23.155809999999999,{"$f":"IF(OR(tblREGASSJune19[[#This Row],[Alloc]]=\"IDU\",tblREGASSJune19[[#This Row],[Alloc]]=\"OR\",tblREGASSJune19[[#This Row],[Alloc]]=\"UT\",tblREGASSJune19[[#This Row],[Alloc]]=\"WYU\",tblREGASSJune19[[#This Row],[Alloc]]=\"WYP\",tblREGASSJune19[[#This Row],[Alloc]]=\"CA\",tblREGASSJune19[[#This Row],[Alloc]]=\"WA\"),\"SITUS\",tblREGASSJune19[[#This Row],[Alloc]])","v":"OTHER"},{"$f":"INDEX(tblREGASSLookup[FUNC],MATCH(tblREGASSJune19[[#This Row],[Concat]],tblREGASSLookup[Concat],0))","v":"CUST"},{"$f":"IF(tblREGASSJune19[[#This Row],[Total ($000)]]=0,\"NO\",IF(ISNA(tblREGASSJune19[[#This Row],[FUNC]]),\"YES\",IF(_xlfn.ISFORMULA(tblREGASSJune19[[#This Row],[FUNC]]),\"NO\",\"YES\")))","v":"NO"}]
[{"$f":"CONCATENATE(tblREGASSJune19[[#This Row],[Primary Account]],tblREGASSJune19[[#This Row],[Primary Name]],tblREGASSJune19[[#This Row],[Secondary Acct]],tblREGASSJune19[[#This Row],[Secondary  Name]],tblREGASSJune19[[#This Row],[Alloc4FUNC]])","v":"1823920DSR COSTS AMORTIZED103876WSB - WATTSMART BUSINESS - ID- 2015OTHER"},1823920,"DSR COSTS AMORTIZED",103876,"WSB - WATTSMART BUSINESS - ID- 2015","OTHER",410.11273,{"$f":"IF(OR(tblREGASSJune19[[#This Row],[Alloc]]=\"IDU\",tblREGASSJune19[[#This Row],[Alloc]]=\"OR\",tblREGASSJune19[[#This Row],[Alloc]]=\"UT\",tblREGASSJune19[[#This Row],[Alloc]]=\"WYU\",tblREGASSJune19[[#This Row],[Alloc]]=\"WYP\",tblREGASSJune19[[#This Row],[Alloc]]=\"CA\",tblREGASSJune19[[#This Row],[Alloc]]=\"WA\"),\"SITUS\",tblREGASSJune19[[#This Row],[Alloc]])","v":"OTHER"},{"$f":"INDEX(tblREGASSLookup[FUNC],MATCH(tblREGASSJune19[[#This Row],[Concat]],tblREGASSLookup[Concat],0))","v":"CUST"},{"$f":"IF(tblREGASSJune19[[#This Row],[Total ($000)]]=0,\"NO\",IF(ISNA(tblREGASSJune19[[#This Row],[FUNC]]),\"YES\",IF(_xlfn.ISFORMULA(tblREGASSJune19[[#This Row],[FUNC]]),\"NO\",\"YES\")))","v":"NO"}]
[{"$f":"CONCATENATE(tblREGASSJune19[[#This Row],[Primary Account]],tblREGASSJune19[[#This Row],[Primary Name]],tblREGASSJune19[[#This Row],[Secondary Acct]],tblREGASSJune19[[#This Row],[Secondary  Name]],tblREGASSJune19[[#This Row],[Alloc4FUNC]])","v":"1823920DSR COSTS AMORTIZED103877WSB Small Business Comm - ID-2015OTHER"},1823920,"DSR COSTS AMORTIZED",103877,"WSB Small Business Comm - ID-2015","OTHER",1344.78052,{"$f":"IF(OR(tblREGASSJune19[[#This Row],[Alloc]]=\"IDU\",tblREGASSJune19[[#This Row],[Alloc]]=\"OR\",tblREGASSJune19[[#This Row],[Alloc]]=\"UT\",tblREGASSJune19[[#This Row],[Alloc]]=\"WYU\",tblREGASSJune19[[#This Row],[Alloc]]=\"WYP\",tblREGASSJune19[[#This Row],[Alloc]]=\"CA\",tblREGASSJune19[[#This Row],[Alloc]]=\"WA\"),\"SITUS\",tblREGASSJune19[[#This Row],[Alloc]])","v":"OTHER"},{"$f":"INDEX(tblREGASSLookup[FUNC],MATCH(tblREGASSJune19[[#This Row],[Concat]],tblREGASSLookup[Concat],0))","v":"CUST"},{"$f":"IF(tblREGASSJune19[[#This Row],[Total ($000)]]=0,\"NO\",IF(ISNA(tblREGASSJune19[[#This Row],[FUNC]]),\"YES\",IF(_xlfn.ISFORMULA(tblREGASSJune19[[#This Row],[FUNC]]),\"NO\",\"YES\")))","v":"NO"}]
[{"$f":"CONCATENATE(tblREGASSJune19[[#This Row],[Primary Account]],tblREGASSJune19[[#This Row],[Primary Name]],tblREGASSJune19[[#This Row],[Secondary Acct]],tblREGASSJune19[[#This Row],[Secondary  Name]],tblREGASSJune19[[#This Row],[Alloc4FUNC]])","v":"1823920DSR COSTS AMORTIZED103878WSB Small Business Ind - ID 2015OTHER"},1823920,"DSR COSTS AMORTIZED",103878,"WSB Small Business Ind - ID 2015","OTHER",263.88233000000002,{"$f":"IF(OR(tblREGASSJune19[[#This Row],[Alloc]]=\"IDU\",tblREGASSJune19[[#This Row],[Alloc]]=\"OR\",tblREGASSJune19[[#This Row],[Alloc]]=\"UT\",tblREGASSJune19[[#This Row],[Alloc]]=\"WYU\",tblREGASSJune19[[#This Row],[Alloc]]=\"WYP\",tblREGASSJune19[[#This Row],[Alloc]]=\"CA\",tblREGASSJune19[[#This Row],[Alloc]]=\"WA\"),\"SITUS\",tblREGASSJune19[[#This Row],[Alloc]])","v":"OTHER"},{"$f":"INDEX(tblREGASSLookup[FUNC],MATCH(tblREGASSJune19[[#This Row],[Concat]],tblREGASSLookup[Concat],0))","v":"CUST"},{"$f":"IF(tblREGASSJune19[[#This Row],[Total ($000)]]=0,\"NO\",IF(ISNA(tblREGASSJune19[[#This Row],[FUNC]]),\"YES\",IF(_xlfn.ISFORMULA(tblREGASSJune19[[#This Row],[FUNC]]),\"NO\",\"YES\")))","v":"NO"}]
[{"$f":"CONCATENATE(tblREGASSJune19[[#This Row],[Primary Account]],tblREGASSJune19[[#This Row],[Primary Name]],tblREGASSJune19[[#This Row],[Secondary Acct]],tblREGASSJune19[[#This Row],[Secondary  Name]],tblREGASSJune19[[#This Row],[Alloc4FUNC]])","v":"1823920DSR COSTS AMORTIZED103879HOME ENERGY REPORTING - ID 2015OTHER"},1823920,"DSR COSTS AMORTIZED",103879,"HOME ENERGY REPORTING - ID 2015","OTHER",135.76651000000001,{"$f":"IF(OR(tblREGASSJune19[[#This Row],[Alloc]]=\"IDU\",tblREGASSJune19[[#This Row],[Alloc]]=\"OR\",tblREGASSJune19[[#This Row],[Alloc]]=\"UT\",tblREGASSJune19[[#This Row],[Alloc]]=\"WYU\",tblREGASSJune19[[#This Row],[Alloc]]=\"WYP\",tblREGASSJune19[[#This Row],[Alloc]]=\"CA\",tblREGASSJune19[[#This Row],[Alloc]]=\"WA\"),\"SITUS\",tblREGASSJune19[[#This Row],[Alloc]])","v":"OTHER"},{"$f":"INDEX(tblREGASSLookup[FUNC],MATCH(tblREGASSJune19[[#This Row],[Concat]],tblREGASSLookup[Concat],0))","v":"CUST"},{"$f":"IF(tblREGASSJune19[[#This Row],[Total ($000)]]=0,\"NO\",IF(ISNA(tblREGASSJune19[[#This Row],[FUNC]]),\"YES\",IF(_xlfn.ISFORMULA(tblREGASSJune19[[#This Row],[FUNC]]),\"NO\",\"YES\")))","v":"NO"}]
[{"$f":"CONCATENATE(tblREGASSJune19[[#This Row],[Primary Account]],tblREGASSJune19[[#This Row],[Primary Name]],tblREGASSJune19[[#This Row],[Secondary Acct]],tblREGASSJune19[[#This Row],[Secondary  Name]],tblREGASSJune19[[#This Row],[Alloc4FUNC]])","v":"1823920DSR COSTS AMORTIZED103880WSB Wattsmart Business Agric - ID-2015OTHER"},1823920,"DSR COSTS AMORTIZED",103880,"WSB Wattsmart Business Agric - ID-2015","OTHER",227.20256000000001,{"$f":"IF(OR(tblREGASSJune19[[#This Row],[Alloc]]=\"IDU\",tblREGASSJune19[[#This Row],[Alloc]]=\"OR\",tblREGASSJune19[[#This Row],[Alloc]]=\"UT\",tblREGASSJune19[[#This Row],[Alloc]]=\"WYU\",tblREGASSJune19[[#This Row],[Alloc]]=\"WYP\",tblREGASSJune19[[#This Row],[Alloc]]=\"CA\",tblREGASSJune19[[#This Row],[Alloc]]=\"WA\"),\"SITUS\",tblREGASSJune19[[#This Row],[Alloc]])","v":"OTHER"},{"$f":"INDEX(tblREGASSLookup[FUNC],MATCH(tblREGASSJune19[[#This Row],[Concat]],tblREGASSLookup[Concat],0))","v":"CUST"},{"$f":"IF(tblREGASSJune19[[#This Row],[Total ($000)]]=0,\"NO\",IF(ISNA(tblREGASSJune19[[#This Row],[FUNC]]),\"YES\",IF(_xlfn.ISFORMULA(tblREGASSJune19[[#This Row],[FUNC]]),\"NO\",\"YES\")))","v":"NO"}]
[{"$f":"CONCATENATE(tblREGASSJune19[[#This Row],[Primary Account]],tblREGASSJune19[[#This Row],[Primary Name]],tblREGASSJune19[[#This Row],[Secondary Acct]],tblREGASSJune19[[#This Row],[Secondary  Name]],tblREGASSJune19[[#This Row],[Alloc4FUNC]])","v":"1823920DSR COSTS AMORTIZED103881OUTREACH AND COMMUNICATION  ID-2015OTHER"},1823920,"DSR COSTS AMORTIZED",103881,"OUTREACH AND COMMUNICATION  ID-2015","OTHER",152.61505,{"$f":"IF(OR(tblREGASSJune19[[#This Row],[Alloc]]=\"IDU\",tblREGASSJune19[[#This Row],[Alloc]]=\"OR\",tblREGASSJune19[[#This Row],[Alloc]]=\"UT\",tblREGASSJune19[[#This Row],[Alloc]]=\"WYU\",tblREGASSJune19[[#This Row],[Alloc]]=\"WYP\",tblREGASSJune19[[#This Row],[Alloc]]=\"CA\",tblREGASSJune19[[#This Row],[Alloc]]=\"WA\"),\"SITUS\",tblREGASSJune19[[#This Row],[Alloc]])","v":"OTHER"},{"$f":"INDEX(tblREGASSLookup[FUNC],MATCH(tblREGASSJune19[[#This Row],[Concat]],tblREGASSLookup[Concat],0))","v":"CUST"},{"$f":"IF(tblREGASSJune19[[#This Row],[Total ($000)]]=0,\"NO\",IF(ISNA(tblREGASSJune19[[#This Row],[FUNC]]),\"YES\",IF(_xlfn.ISFORMULA(tblREGASSJune19[[#This Row],[FUNC]]),\"NO\",\"YES\")))","v":"NO"}]
[{"$f":"CONCATENATE(tblREGASSJune19[[#This Row],[Primary Account]],tblREGASSJune19[[#This Row],[Primary Name]],tblREGASSJune19[[#This Row],[Secondary Acct]],tblREGASSJune19[[#This Row],[Secondary  Name]],tblREGASSJune19[[#This Row],[Alloc4FUNC]])","v":"1823920DSR COSTS AMORTIZED103882A/C LOAD CONTROL - RESIDENTIAL/UTAH - 20OTHER"},1823920,"DSR COSTS AMORTIZED",103882,"A/C LOAD CONTROL - RESIDENTIAL/UTAH - 20","OTHER",4173.9674100000002,{"$f":"IF(OR(tblREGASSJune19[[#This Row],[Alloc]]=\"IDU\",tblREGASSJune19[[#This Row],[Alloc]]=\"OR\",tblREGASSJune19[[#This Row],[Alloc]]=\"UT\",tblREGASSJune19[[#This Row],[Alloc]]=\"WYU\",tblREGASSJune19[[#This Row],[Alloc]]=\"WYP\",tblREGASSJune19[[#This Row],[Alloc]]=\"CA\",tblREGASSJune19[[#This Row],[Alloc]]=\"WA\"),\"SITUS\",tblREGASSJune19[[#This Row],[Alloc]])","v":"OTHER"},{"$f":"INDEX(tblREGASSLookup[FUNC],MATCH(tblREGASSJune19[[#This Row],[Concat]],tblREGASSLookup[Concat],0))","v":"CUST"},{"$f":"IF(tblREGASSJune19[[#This Row],[Total ($000)]]=0,\"NO\",IF(ISNA(tblREGASSJune19[[#This Row],[FUNC]]),\"YES\",IF(_xlfn.ISFORMULA(tblREGASSJune19[[#This Row],[FUNC]]),\"NO\",\"YES\")))","v":"NO"}]
[{"$f":"CONCATENATE(tblREGASSJune19[[#This Row],[Primary Account]],tblREGASSJune19[[#This Row],[Primary Name]],tblREGASSJune19[[#This Row],[Secondary Acct]],tblREGASSJune19[[#This Row],[Secondary  Name]],tblREGASSJune19[[#This Row],[Alloc4FUNC]])","v":"1823920DSR COSTS AMORTIZED103887HOME ENERGY EFF INCENTIVE PROG - UT 2015OTHER"},1823920,"DSR COSTS AMORTIZED",103887,"HOME ENERGY EFF INCENTIVE PROG - UT 2015","OTHER",18922.35413,{"$f":"IF(OR(tblREGASSJune19[[#This Row],[Alloc]]=\"IDU\",tblREGASSJune19[[#This Row],[Alloc]]=\"OR\",tblREGASSJune19[[#This Row],[Alloc]]=\"UT\",tblREGASSJune19[[#This Row],[Alloc]]=\"WYU\",tblREGASSJune19[[#This Row],[Alloc]]=\"WYP\",tblREGASSJune19[[#This Row],[Alloc]]=\"CA\",tblREGASSJune19[[#This Row],[Alloc]]=\"WA\"),\"SITUS\",tblREGASSJune19[[#This Row],[Alloc]])","v":"OTHER"},{"$f":"INDEX(tblREGASSLookup[FUNC],MATCH(tblREGASSJune19[[#This Row],[Concat]],tblREGASSLookup[Concat],0))","v":"CUST"},{"$f":"IF(tblREGASSJune19[[#This Row],[Total ($000)]]=0,\"NO\",IF(ISNA(tblREGASSJune19[[#This Row],[FUNC]]),\"YES\",IF(_xlfn.ISFORMULA(tblREGASSJune19[[#This Row],[FUNC]]),\"NO\",\"YES\")))","v":"NO"}]
[{"$f":"CONCATENATE(tblREGASSJune19[[#This Row],[Primary Account]],tblREGASSJune19[[#This Row],[Primary Name]],tblREGASSJune19[[#This Row],[Secondary Acct]],tblREGASSJune19[[#This Row],[Secondary  Name]],tblREGASSJune19[[#This Row],[Alloc4FUNC]])","v":"1823920DSR COSTS AMORTIZED103888HOME ENERGY REPORTING - UT 2015OTHER"},1823920,"DSR COSTS AMORTIZED",103888,"HOME ENERGY REPORTING - UT 2015","OTHER",2877.7691799999998,{"$f":"IF(OR(tblREGASSJune19[[#This Row],[Alloc]]=\"IDU\",tblREGASSJune19[[#This Row],[Alloc]]=\"OR\",tblREGASSJune19[[#This Row],[Alloc]]=\"UT\",tblREGASSJune19[[#This Row],[Alloc]]=\"WYU\",tblREGASSJune19[[#This Row],[Alloc]]=\"WYP\",tblREGASSJune19[[#This Row],[Alloc]]=\"CA\",tblREGASSJune19[[#This Row],[Alloc]]=\"WA\"),\"SITUS\",tblREGASSJune19[[#This Row],[Alloc]])","v":"OTHER"},{"$f":"INDEX(tblREGASSLookup[FUNC],MATCH(tblREGASSJune19[[#This Row],[Concat]],tblREGASSLookup[Concat],0))","v":"CUST"},{"$f":"IF(tblREGASSJune19[[#This Row],[Total ($000)]]=0,\"NO\",IF(ISNA(tblREGASSJune19[[#This Row],[FUNC]]),\"YES\",IF(_xlfn.ISFORMULA(tblREGASSJune19[[#This Row],[FUNC]]),\"NO\",\"YES\")))","v":"NO"}]
[{"$f":"CONCATENATE(tblREGASSJune19[[#This Row],[Primary Account]],tblREGASSJune19[[#This Row],[Primary Name]],tblREGASSJune19[[#This Row],[Secondary Acct]],tblREGASSJune19[[#This Row],[Secondary  Name]],tblREGASSJune19[[#This Row],[Alloc4FUNC]])","v":"1823920DSR COSTS AMORTIZED103891IRRIGATION LOAD CONTROL  - UTAH - 2015OTHER"},1823920,"DSR COSTS AMORTIZED",103891,"IRRIGATION LOAD CONTROL  - UTAH - 2015","OTHER",476.39917000000003,{"$f":"IF(OR(tblREGASSJune19[[#This Row],[Alloc]]=\"IDU\",tblREGASSJune19[[#This Row],[Alloc]]=\"OR\",tblREGASSJune19[[#This Row],[Alloc]]=\"UT\",tblREGASSJune19[[#This Row],[Alloc]]=\"WYU\",tblREGASSJune19[[#This Row],[Alloc]]=\"WYP\",tblREGASSJune19[[#This Row],[Alloc]]=\"CA\",tblREGASSJune19[[#This Row],[Alloc]]=\"WA\"),\"SITUS\",tblREGASSJune19[[#This Row],[Alloc]])","v":"OTHER"},{"$f":"INDEX(tblREGASSLookup[FUNC],MATCH(tblREGASSJune19[[#This Row],[Concat]],tblREGASSLookup[Concat],0))","v":"CUST"},{"$f":"IF(tblREGASSJune19[[#This Row],[Total ($000)]]=0,\"NO\",IF(ISNA(tblREGASSJune19[[#This Row],[FUNC]]),\"YES\",IF(_xlfn.ISFORMULA(tblREGASSJune19[[#This Row],[FUNC]]),\"NO\",\"YES\")))","v":"NO"}]
[{"$f":"CONCATENATE(tblREGASSJune19[[#This Row],[Primary Account]],tblREGASSJune19[[#This Row],[Primary Name]],tblREGASSJune19[[#This Row],[Secondary Acct]],tblREGASSJune19[[#This Row],[Secondary  Name]],tblREGASSJune19[[#This Row],[Alloc4FUNC]])","v":"1823920DSR COSTS AMORTIZED103892LOW INCOME - UTAH - 2015OTHER"},1823920,"DSR COSTS AMORTIZED",103892,"LOW INCOME - UTAH - 2015","OTHER",63.903219999999997,{"$f":"IF(OR(tblREGASSJune19[[#This Row],[Alloc]]=\"IDU\",tblREGASSJune19[[#This Row],[Alloc]]=\"OR\",tblREGASSJune19[[#This Row],[Alloc]]=\"UT\",tblREGASSJune19[[#This Row],[Alloc]]=\"WYU\",tblREGASSJune19[[#This Row],[Alloc]]=\"WYP\",tblREGASSJune19[[#This Row],[Alloc]]=\"CA\",tblREGASSJune19[[#This Row],[Alloc]]=\"WA\"),\"SITUS\",tblREGASSJune19[[#This Row],[Alloc]])","v":"OTHER"},{"$f":"INDEX(tblREGASSLookup[FUNC],MATCH(tblREGASSJune19[[#This Row],[Concat]],tblREGASSLookup[Concat],0))","v":"CUST"},{"$f":"IF(tblREGASSJune19[[#This Row],[Total ($000)]]=0,\"NO\",IF(ISNA(tblREGASSJune19[[#This Row],[FUNC]]),\"YES\",IF(_xlfn.ISFORMULA(tblREGASSJune19[[#This Row],[FUNC]]),\"NO\",\"YES\")))","v":"NO"}]
[{"$f":"CONCATENATE(tblREGASSJune19[[#This Row],[Primary Account]],tblREGASSJune19[[#This Row],[Primary Name]],tblREGASSJune19[[#This Row],[Secondary Acct]],tblREGASSJune19[[#This Row],[Secondary  Name]],tblREGASSJune19[[#This Row],[Alloc4FUNC]])","v":"1823920DSR COSTS AMORTIZED103893OUTREACH and COMMUNICATIONS - UT 2015OTHER"},1823920,"DSR COSTS AMORTIZED",103893,"OUTREACH and COMMUNICATIONS - UT 2015","OTHER",1610.8740600000001,{"$f":"IF(OR(tblREGASSJune19[[#This Row],[Alloc]]=\"IDU\",tblREGASSJune19[[#This Row],[Alloc]]=\"OR\",tblREGASSJune19[[#This Row],[Alloc]]=\"UT\",tblREGASSJune19[[#This Row],[Alloc]]=\"WYU\",tblREGASSJune19[[#This Row],[Alloc]]=\"WYP\",tblREGASSJune19[[#This Row],[Alloc]]=\"CA\",tblREGASSJune19[[#This Row],[Alloc]]=\"WA\"),\"SITUS\",tblREGASSJune19[[#This Row],[Alloc]])","v":"OTHER"},{"$f":"INDEX(tblREGASSLookup[FUNC],MATCH(tblREGASSJune19[[#This Row],[Concat]],tblREGASSLookup[Concat],0))","v":"CUST"},{"$f":"IF(tblREGASSJune19[[#This Row],[Total ($000)]]=0,\"NO\",IF(ISNA(tblREGASSJune19[[#This Row],[FUNC]]),\"YES\",IF(_xlfn.ISFORMULA(tblREGASSJune19[[#This Row],[FUNC]]),\"NO\",\"YES\")))","v":"NO"}]
[{"$f":"CONCATENATE(tblREGASSJune19[[#This Row],[Primary Account]],tblREGASSJune19[[#This Row],[Primary Name]],tblREGASSJune19[[#This Row],[Secondary Acct]],tblREGASSJune19[[#This Row],[Secondary  Name]],tblREGASSJune19[[#This Row],[Alloc4FUNC]])","v":"1823920DSR COSTS AMORTIZED103894PORTFOLIO - UTAH 2015OTHER"},1823920,"DSR COSTS AMORTIZED",103894,"PORTFOLIO - UTAH 2015","OTHER",370.42480999999998,{"$f":"IF(OR(tblREGASSJune19[[#This Row],[Alloc]]=\"IDU\",tblREGASSJune19[[#This Row],[Alloc]]=\"OR\",tblREGASSJune19[[#This Row],[Alloc]]=\"UT\",tblREGASSJune19[[#This Row],[Alloc]]=\"WYU\",tblREGASSJune19[[#This Row],[Alloc]]=\"WYP\",tblREGASSJune19[[#This Row],[Alloc]]=\"CA\",tblREGASSJune19[[#This Row],[Alloc]]=\"WA\"),\"SITUS\",tblREGASSJune19[[#This Row],[Alloc]])","v":"OTHER"},{"$f":"INDEX(tblREGASSLookup[FUNC],MATCH(tblREGASSJune19[[#This Row],[Concat]],tblREGASSLookup[Concat],0))","v":"CUST"},{"$f":"IF(tblREGASSJune19[[#This Row],[Total ($000)]]=0,\"NO\",IF(ISNA(tblREGASSJune19[[#This Row],[FUNC]]),\"YES\",IF(_xlfn.ISFORMULA(tblREGASSJune19[[#This Row],[FUNC]]),\"NO\",\"YES\")))","v":"NO"}]
[{"$f":"CONCATENATE(tblREGASSJune19[[#This Row],[Primary Account]],tblREGASSJune19[[#This Row],[Primary Name]],tblREGASSJune19[[#This Row],[Secondary Acct]],tblREGASSJune19[[#This Row],[Secondary  Name]],tblREGASSJune19[[#This Row],[Alloc4FUNC]])","v":"1823920DSR COSTS AMORTIZED103895REFRIGERATOR RECYCLING PGM- UTAH - 2015OTHER"},1823920,"DSR COSTS AMORTIZED",103895,"REFRIGERATOR RECYCLING PGM- UTAH - 2015","OTHER",1124.93406,{"$f":"IF(OR(tblREGASSJune19[[#This Row],[Alloc]]=\"IDU\",tblREGASSJune19[[#This Row],[Alloc]]=\"OR\",tblREGASSJune19[[#This Row],[Alloc]]=\"UT\",tblREGASSJune19[[#This Row],[Alloc]]=\"WYU\",tblREGASSJune19[[#This Row],[Alloc]]=\"WYP\",tblREGASSJune19[[#This Row],[Alloc]]=\"CA\",tblREGASSJune19[[#This Row],[Alloc]]=\"WA\"),\"SITUS\",tblREGASSJune19[[#This Row],[Alloc]])","v":"OTHER"},{"$f":"INDEX(tblREGASSLookup[FUNC],MATCH(tblREGASSJune19[[#This Row],[Concat]],tblREGASSLookup[Concat],0))","v":"CUST"},{"$f":"IF(tblREGASSJune19[[#This Row],[Total ($000)]]=0,\"NO\",IF(ISNA(tblREGASSJune19[[#This Row],[FUNC]]),\"YES\",IF(_xlfn.ISFORMULA(tblREGASSJune19[[#This Row],[FUNC]]),\"NO\",\"YES\")))","v":"NO"}]
[{"$f":"CONCATENATE(tblREGASSJune19[[#This Row],[Primary Account]],tblREGASSJune19[[#This Row],[Primary Name]],tblREGASSJune19[[#This Row],[Secondary Acct]],tblREGASSJune19[[#This Row],[Secondary  Name]],tblREGASSJune19[[#This Row],[Alloc4FUNC]])","v":"1823920DSR COSTS AMORTIZED103896RESIDENTIAL NEW CONSTRUCTION - UTAH - 20OTHER"},1823920,"DSR COSTS AMORTIZED",103896,"RESIDENTIAL NEW CONSTRUCTION - UTAH - 20","OTHER",1890.20046,{"$f":"IF(OR(tblREGASSJune19[[#This Row],[Alloc]]=\"IDU\",tblREGASSJune19[[#This Row],[Alloc]]=\"OR\",tblREGASSJune19[[#This Row],[Alloc]]=\"UT\",tblREGASSJune19[[#This Row],[Alloc]]=\"WYU\",tblREGASSJune19[[#This Row],[Alloc]]=\"WYP\",tblREGASSJune19[[#This Row],[Alloc]]=\"CA\",tblREGASSJune19[[#This Row],[Alloc]]=\"WA\"),\"SITUS\",tblREGASSJune19[[#This Row],[Alloc]])","v":"OTHER"},{"$f":"INDEX(tblREGASSLookup[FUNC],MATCH(tblREGASSJune19[[#This Row],[Concat]],tblREGASSLookup[Concat],0))","v":"CUST"},{"$f":"IF(tblREGASSJune19[[#This Row],[Total ($000)]]=0,\"NO\",IF(ISNA(tblREGASSJune19[[#This Row],[FUNC]]),\"YES\",IF(_xlfn.ISFORMULA(tblREGASSJune19[[#This Row],[FUNC]]),\"NO\",\"YES\")))","v":"NO"}]
[{"$f":"CONCATENATE(tblREGASSJune19[[#This Row],[Primary Account]],tblREGASSJune19[[#This Row],[Primary Name]],tblREGASSJune19[[#This Row],[Secondary Acct]],tblREGASSJune19[[#This Row],[Secondary  Name]],tblREGASSJune19[[#This Row],[Alloc4FUNC]])","v":"1823920DSR COSTS AMORTIZED103900COMMERCIAL (WSB) WATTSMART BUS - UT- 201OTHER"},1823920,"DSR COSTS AMORTIZED",103900,"COMMERCIAL (WSB) WATTSMART BUS - UT- 201","OTHER",15213.332770000001,{"$f":"IF(OR(tblREGASSJune19[[#This Row],[Alloc]]=\"IDU\",tblREGASSJune19[[#This Row],[Alloc]]=\"OR\",tblREGASSJune19[[#This Row],[Alloc]]=\"UT\",tblREGASSJune19[[#This Row],[Alloc]]=\"WYU\",tblREGASSJune19[[#This Row],[Alloc]]=\"WYP\",tblREGASSJune19[[#This Row],[Alloc]]=\"CA\",tblREGASSJune19[[#This Row],[Alloc]]=\"WA\"),\"SITUS\",tblREGASSJune19[[#This Row],[Alloc]])","v":"OTHER"},{"$f":"INDEX(tblREGASSLookup[FUNC],MATCH(tblREGASSJune19[[#This Row],[Concat]],tblREGASSLookup[Concat],0))","v":"CUST"},{"$f":"IF(tblREGASSJune19[[#This Row],[Total ($000)]]=0,\"NO\",IF(ISNA(tblREGASSJune19[[#This Row],[FUNC]]),\"YES\",IF(_xlfn.ISFORMULA(tblREGASSJune19[[#This Row],[FUNC]]),\"NO\",\"YES\")))","v":"NO"}]
[{"$f":"CONCATENATE(tblREGASSJune19[[#This Row],[Primary Account]],tblREGASSJune19[[#This Row],[Primary Name]],tblREGASSJune19[[#This Row],[Secondary Acct]],tblREGASSJune19[[#This Row],[Secondary  Name]],tblREGASSJune19[[#This Row],[Alloc4FUNC]])","v":"1823920DSR COSTS AMORTIZED103901INDUSTRIAL (WSB) WATTSMART BUS- UT- 2015OTHER"},1823920,"DSR COSTS AMORTIZED",103901,"INDUSTRIAL (WSB) WATTSMART BUS- UT- 2015","OTHER",6315.7614299999996,{"$f":"IF(OR(tblREGASSJune19[[#This Row],[Alloc]]=\"IDU\",tblREGASSJune19[[#This Row],[Alloc]]=\"OR\",tblREGASSJune19[[#This Row],[Alloc]]=\"UT\",tblREGASSJune19[[#This Row],[Alloc]]=\"WYU\",tblREGASSJune19[[#This Row],[Alloc]]=\"WYP\",tblREGASSJune19[[#This Row],[Alloc]]=\"CA\",tblREGASSJune19[[#This Row],[Alloc]]=\"WA\"),\"SITUS\",tblREGASSJune19[[#This Row],[Alloc]])","v":"OTHER"},{"$f":"INDEX(tblREGASSLookup[FUNC],MATCH(tblREGASSJune19[[#This Row],[Concat]],tblREGASSLookup[Concat],0))","v":"CUST"},{"$f":"IF(tblREGASSJune19[[#This Row],[Total ($000)]]=0,\"NO\",IF(ISNA(tblREGASSJune19[[#This Row],[FUNC]]),\"YES\",IF(_xlfn.ISFORMULA(tblREGASSJune19[[#This Row],[FUNC]]),\"NO\",\"YES\")))","v":"NO"}]
[{"$f":"CONCATENATE(tblREGASSJune19[[#This Row],[Primary Account]],tblREGASSJune19[[#This Row],[Primary Name]],tblREGASSJune19[[#This Row],[Secondary Acct]],tblREGASSJune19[[#This Row],[Secondary  Name]],tblREGASSJune19[[#This Row],[Alloc4FUNC]])","v":"1823920DSR COSTS AMORTIZED103902WSB - WATTSMART BUS- UT- 2015OTHER"},1823920,"DSR COSTS AMORTIZED",103902,"WSB - WATTSMART BUS- UT- 2015","OTHER",4776.8338199999998,{"$f":"IF(OR(tblREGASSJune19[[#This Row],[Alloc]]=\"IDU\",tblREGASSJune19[[#This Row],[Alloc]]=\"OR\",tblREGASSJune19[[#This Row],[Alloc]]=\"UT\",tblREGASSJune19[[#This Row],[Alloc]]=\"WYU\",tblREGASSJune19[[#This Row],[Alloc]]=\"WYP\",tblREGASSJune19[[#This Row],[Alloc]]=\"CA\",tblREGASSJune19[[#This Row],[Alloc]]=\"WA\"),\"SITUS\",tblREGASSJune19[[#This Row],[Alloc]])","v":"OTHER"},{"$f":"INDEX(tblREGASSLookup[FUNC],MATCH(tblREGASSJune19[[#This Row],[Concat]],tblREGASSLookup[Concat],0))","v":"CUST"},{"$f":"IF(tblREGASSJune19[[#This Row],[Total ($000)]]=0,\"NO\",IF(ISNA(tblREGASSJune19[[#This Row],[FUNC]]),\"YES\",IF(_xlfn.ISFORMULA(tblREGASSJune19[[#This Row],[FUNC]]),\"NO\",\"YES\")))","v":"NO"}]
[{"$f":"CONCATENATE(tblREGASSJune19[[#This Row],[Primary Account]],tblREGASSJune19[[#This Row],[Primary Name]],tblREGASSJune19[[#This Row],[Secondary Acct]],tblREGASSJune19[[#This Row],[Secondary  Name]],tblREGASSJune19[[#This Row],[Alloc4FUNC]])","v":"1823920DSR COSTS AMORTIZED103903AGRICULTURAL (WSB) WATTSMART BUS- UT- 20OTHER"},1823920,"DSR COSTS AMORTIZED",103903,"AGRICULTURAL (WSB) WATTSMART BUS- UT- 20","OTHER",257.37293,{"$f":"IF(OR(tblREGASSJune19[[#This Row],[Alloc]]=\"IDU\",tblREGASSJune19[[#This Row],[Alloc]]=\"OR\",tblREGASSJune19[[#This Row],[Alloc]]=\"UT\",tblREGASSJune19[[#This Row],[Alloc]]=\"WYU\",tblREGASSJune19[[#This Row],[Alloc]]=\"WYP\",tblREGASSJune19[[#This Row],[Alloc]]=\"CA\",tblREGASSJune19[[#This Row],[Alloc]]=\"WA\"),\"SITUS\",tblREGASSJune19[[#This Row],[Alloc]])","v":"OTHER"},{"$f":"INDEX(tblREGASSLookup[FUNC],MATCH(tblREGASSJune19[[#This Row],[Concat]],tblREGASSLookup[Concat],0))","v":"CUST"},{"$f":"IF(tblREGASSJune19[[#This Row],[Total ($000)]]=0,\"NO\",IF(ISNA(tblREGASSJune19[[#This Row],[FUNC]]),\"YES\",IF(_xlfn.ISFORMULA(tblREGASSJune19[[#This Row],[FUNC]]),\"NO\",\"YES\")))","v":"NO"}]
[{"$f":"CONCATENATE(tblREGASSJune19[[#This Row],[Primary Account]],tblREGASSJune19[[#This Row],[Primary Name]],tblREGASSJune19[[#This Row],[Secondary Acct]],tblREGASSJune19[[#This Row],[Secondary  Name]],tblREGASSJune19[[#This Row],[Alloc4FUNC]])","v":"1823920DSR COSTS AMORTIZED103904U.of Utah Student Energy Sponsorship- UTOTHER"},1823920,"DSR COSTS AMORTIZED",103904,"U.of Utah Student Energy Sponsorship- UT","OTHER",6.16533,{"$f":"IF(OR(tblREGASSJune19[[#This Row],[Alloc]]=\"IDU\",tblREGASSJune19[[#This Row],[Alloc]]=\"OR\",tblREGASSJune19[[#This Row],[Alloc]]=\"UT\",tblREGASSJune19[[#This Row],[Alloc]]=\"WYU\",tblREGASSJune19[[#This Row],[Alloc]]=\"WYP\",tblREGASSJune19[[#This Row],[Alloc]]=\"CA\",tblREGASSJune19[[#This Row],[Alloc]]=\"WA\"),\"SITUS\",tblREGASSJune19[[#This Row],[Alloc]])","v":"OTHER"},{"$f":"INDEX(tblREGASSLookup[FUNC],MATCH(tblREGASSJune19[[#This Row],[Concat]],tblREGASSLookup[Concat],0))","v":"CUST"},{"$f":"IF(tblREGASSJune19[[#This Row],[Total ($000)]]=0,\"NO\",IF(ISNA(tblREGASSJune19[[#This Row],[FUNC]]),\"YES\",IF(_xlfn.ISFORMULA(tblREGASSJune19[[#This Row],[FUNC]]),\"NO\",\"YES\")))","v":"NO"}]
[{"$f":"CONCATENATE(tblREGASSJune19[[#This Row],[Primary Account]],tblREGASSJune19[[#This Row],[Primary Name]],tblREGASSJune19[[#This Row],[Secondary Acct]],tblREGASSJune19[[#This Row],[Secondary  Name]],tblREGASSJune19[[#This Row],[Alloc4FUNC]])","v":"1823920DSR COSTS AMORTIZED103905WSB Small Business Comm- UT-2015OTHER"},1823920,"DSR COSTS AMORTIZED",103905,"WSB Small Business Comm- UT-2015","OTHER",3896.1082500000002,{"$f":"IF(OR(tblREGASSJune19[[#This Row],[Alloc]]=\"IDU\",tblREGASSJune19[[#This Row],[Alloc]]=\"OR\",tblREGASSJune19[[#This Row],[Alloc]]=\"UT\",tblREGASSJune19[[#This Row],[Alloc]]=\"WYU\",tblREGASSJune19[[#This Row],[Alloc]]=\"WYP\",tblREGASSJune19[[#This Row],[Alloc]]=\"CA\",tblREGASSJune19[[#This Row],[Alloc]]=\"WA\"),\"SITUS\",tblREGASSJune19[[#This Row],[Alloc]])","v":"OTHER"},{"$f":"INDEX(tblREGASSLookup[FUNC],MATCH(tblREGASSJune19[[#This Row],[Concat]],tblREGASSLookup[Concat],0))","v":"CUST"},{"$f":"IF(tblREGASSJune19[[#This Row],[Total ($000)]]=0,\"NO\",IF(ISNA(tblREGASSJune19[[#This Row],[FUNC]]),\"YES\",IF(_xlfn.ISFORMULA(tblREGASSJune19[[#This Row],[FUNC]]),\"NO\",\"YES\")))","v":"NO"}]
[{"$f":"CONCATENATE(tblREGASSJune19[[#This Row],[Primary Account]],tblREGASSJune19[[#This Row],[Primary Name]],tblREGASSJune19[[#This Row],[Secondary Acct]],tblREGASSJune19[[#This Row],[Secondary  Name]],tblREGASSJune19[[#This Row],[Alloc4FUNC]])","v":"1823920DSR COSTS AMORTIZED103906WBS Small Business Ind- UT-2015OTHER"},1823920,"DSR COSTS AMORTIZED",103906,"WBS Small Business Ind- UT-2015","OTHER",261.57416000000001,{"$f":"IF(OR(tblREGASSJune19[[#This Row],[Alloc]]=\"IDU\",tblREGASSJune19[[#This Row],[Alloc]]=\"OR\",tblREGASSJune19[[#This Row],[Alloc]]=\"UT\",tblREGASSJune19[[#This Row],[Alloc]]=\"WYU\",tblREGASSJune19[[#This Row],[Alloc]]=\"WYP\",tblREGASSJune19[[#This Row],[Alloc]]=\"CA\",tblREGASSJune19[[#This Row],[Alloc]]=\"WA\"),\"SITUS\",tblREGASSJune19[[#This Row],[Alloc]])","v":"OTHER"},{"$f":"INDEX(tblREGASSLookup[FUNC],MATCH(tblREGASSJune19[[#This Row],[Concat]],tblREGASSLookup[Concat],0))","v":"CUST"},{"$f":"IF(tblREGASSJune19[[#This Row],[Total ($000)]]=0,\"NO\",IF(ISNA(tblREGASSJune19[[#This Row],[FUNC]]),\"YES\",IF(_xlfn.ISFORMULA(tblREGASSJune19[[#This Row],[FUNC]]),\"NO\",\"YES\")))","v":"NO"}]
[{"$f":"CONCATENATE(tblREGASSJune19[[#This Row],[Primary Account]],tblREGASSJune19[[#This Row],[Primary Name]],tblREGASSJune19[[#This Row],[Secondary Acct]],tblREGASSJune19[[#This Row],[Secondary  Name]],tblREGASSJune19[[#This Row],[Alloc4FUNC]])","v":"1823920DSR COSTS AMORTIZED103907AGRICULURAL FINANSWER EXP WY-2015 CAT2OTHER"},1823920,"DSR COSTS AMORTIZED",103907,"AGRICULURAL FINANSWER EXP WY-2015 CAT2","OTHER",0.11609,{"$f":"IF(OR(tblREGASSJune19[[#This Row],[Alloc]]=\"IDU\",tblREGASSJune19[[#This Row],[Alloc]]=\"OR\",tblREGASSJune19[[#This Row],[Alloc]]=\"UT\",tblREGASSJune19[[#This Row],[Alloc]]=\"WYU\",tblREGASSJune19[[#This Row],[Alloc]]=\"WYP\",tblREGASSJune19[[#This Row],[Alloc]]=\"CA\",tblREGASSJune19[[#This Row],[Alloc]]=\"WA\"),\"SITUS\",tblREGASSJune19[[#This Row],[Alloc]])","v":"OTHER"},{"$f":"INDEX(tblREGASSLookup[FUNC],MATCH(tblREGASSJune19[[#This Row],[Concat]],tblREGASSLookup[Concat],0))","v":"CUST"},{"$f":"IF(tblREGASSJune19[[#This Row],[Total ($000)]]=0,\"NO\",IF(ISNA(tblREGASSJune19[[#This Row],[FUNC]]),\"YES\",IF(_xlfn.ISFORMULA(tblREGASSJune19[[#This Row],[FUNC]]),\"NO\",\"YES\")))","v":"NO"}]
[{"$f":"CONCATENATE(tblREGASSJune19[[#This Row],[Primary Account]],tblREGASSJune19[[#This Row],[Primary Name]],tblREGASSJune19[[#This Row],[Secondary Acct]],tblREGASSJune19[[#This Row],[Secondary  Name]],tblREGASSJune19[[#This Row],[Alloc4FUNC]])","v":"1823920DSR COSTS AMORTIZED103909COMMERCIAL FINANSWER EXP- WY-2015 CAT2OTHER"},1823920,"DSR COSTS AMORTIZED",103909,"COMMERCIAL FINANSWER EXP- WY-2015 CAT2","OTHER",97.360370000000003,{"$f":"IF(OR(tblREGASSJune19[[#This Row],[Alloc]]=\"IDU\",tblREGASSJune19[[#This Row],[Alloc]]=\"OR\",tblREGASSJune19[[#This Row],[Alloc]]=\"UT\",tblREGASSJune19[[#This Row],[Alloc]]=\"WYU\",tblREGASSJune19[[#This Row],[Alloc]]=\"WYP\",tblREGASSJune19[[#This Row],[Alloc]]=\"CA\",tblREGASSJune19[[#This Row],[Alloc]]=\"WA\"),\"SITUS\",tblREGASSJune19[[#This Row],[Alloc]])","v":"OTHER"},{"$f":"INDEX(tblREGASSLookup[FUNC],MATCH(tblREGASSJune19[[#This Row],[Concat]],tblREGASSLookup[Concat],0))","v":"CUST"},{"$f":"IF(tblREGASSJune19[[#This Row],[Total ($000)]]=0,\"NO\",IF(ISNA(tblREGASSJune19[[#This Row],[FUNC]]),\"YES\",IF(_xlfn.ISFORMULA(tblREGASSJune19[[#This Row],[FUNC]]),\"NO\",\"YES\")))","v":"NO"}]
[{"$f":"CONCATENATE(tblREGASSJune19[[#This Row],[Primary Account]],tblREGASSJune19[[#This Row],[Primary Name]],tblREGASSJune19[[#This Row],[Secondary Acct]],tblREGASSJune19[[#This Row],[Secondary  Name]],tblREGASSJune19[[#This Row],[Alloc4FUNC]])","v":"1823920DSR COSTS AMORTIZED103910COMMERCIAL FINANSWER EXP WY-2015 CAT3OTHER"},1823920,"DSR COSTS AMORTIZED",103910,"COMMERCIAL FINANSWER EXP WY-2015 CAT3","OTHER",53.90484,{"$f":"IF(OR(tblREGASSJune19[[#This Row],[Alloc]]=\"IDU\",tblREGASSJune19[[#This Row],[Alloc]]=\"OR\",tblREGASSJune19[[#This Row],[Alloc]]=\"UT\",tblREGASSJune19[[#This Row],[Alloc]]=\"WYU\",tblREGASSJune19[[#This Row],[Alloc]]=\"WYP\",tblREGASSJune19[[#This Row],[Alloc]]=\"CA\",tblREGASSJune19[[#This Row],[Alloc]]=\"WA\"),\"SITUS\",tblREGASSJune19[[#This Row],[Alloc]])","v":"OTHER"},{"$f":"INDEX(tblREGASSLookup[FUNC],MATCH(tblREGASSJune19[[#This Row],[Concat]],tblREGASSLookup[Concat],0))","v":"CUST"},{"$f":"IF(tblREGASSJune19[[#This Row],[Total ($000)]]=0,\"NO\",IF(ISNA(tblREGASSJune19[[#This Row],[FUNC]]),\"YES\",IF(_xlfn.ISFORMULA(tblREGASSJune19[[#This Row],[FUNC]]),\"NO\",\"YES\")))","v":"NO"}]
[{"$f":"CONCATENATE(tblREGASSJune19[[#This Row],[Primary Account]],tblREGASSJune19[[#This Row],[Primary Name]],tblREGASSJune19[[#This Row],[Secondary Acct]],tblREGASSJune19[[#This Row],[Secondary  Name]],tblREGASSJune19[[#This Row],[Alloc4FUNC]])","v":"1823920DSR COSTS AMORTIZED103911ENERGY FINANSWER -WY 2015 CAT2OTHER"},1823920,"DSR COSTS AMORTIZED",103911,"ENERGY FINANSWER -WY 2015 CAT2","OTHER",4.5240000000000002E-2,{"$f":"IF(OR(tblREGASSJune19[[#This Row],[Alloc]]=\"IDU\",tblREGASSJune19[[#This Row],[Alloc]]=\"OR\",tblREGASSJune19[[#This Row],[Alloc]]=\"UT\",tblREGASSJune19[[#This Row],[Alloc]]=\"WYU\",tblREGASSJune19[[#This Row],[Alloc]]=\"WYP\",tblREGASSJune19[[#This Row],[Alloc]]=\"CA\",tblREGASSJune19[[#This Row],[Alloc]]=\"WA\"),\"SITUS\",tblREGASSJune19[[#This Row],[Alloc]])","v":"OTHER"},{"$f":"INDEX(tblREGASSLookup[FUNC],MATCH(tblREGASSJune19[[#This Row],[Concat]],tblREGASSLookup[Concat],0))","v":"CUST"},{"$f":"IF(tblREGASSJune19[[#This Row],[Total ($000)]]=0,\"NO\",IF(ISNA(tblREGASSJune19[[#This Row],[FUNC]]),\"YES\",IF(_xlfn.ISFORMULA(tblREGASSJune19[[#This Row],[FUNC]]),\"NO\",\"YES\")))","v":"NO"}]
[{"$f":"CONCATENATE(tblREGASSJune19[[#This Row],[Primary Account]],tblREGASSJune19[[#This Row],[Primary Name]],tblREGASSJune19[[#This Row],[Secondary Acct]],tblREGASSJune19[[#This Row],[Secondary  Name]],tblREGASSJune19[[#This Row],[Alloc4FUNC]])","v":"1823920DSR COSTS AMORTIZED103912ENERGY FINANSWER-WY-2015 CAT3OTHER"},1823920,"DSR COSTS AMORTIZED",103912,"ENERGY FINANSWER-WY-2015 CAT3","OTHER",42.907899999999998,{"$f":"IF(OR(tblREGASSJune19[[#This Row],[Alloc]]=\"IDU\",tblREGASSJune19[[#This Row],[Alloc]]=\"OR\",tblREGASSJune19[[#This Row],[Alloc]]=\"UT\",tblREGASSJune19[[#This Row],[Alloc]]=\"WYU\",tblREGASSJune19[[#This Row],[Alloc]]=\"WYP\",tblREGASSJune19[[#This Row],[Alloc]]=\"CA\",tblREGASSJune19[[#This Row],[Alloc]]=\"WA\"),\"SITUS\",tblREGASSJune19[[#This Row],[Alloc]])","v":"OTHER"},{"$f":"INDEX(tblREGASSLookup[FUNC],MATCH(tblREGASSJune19[[#This Row],[Concat]],tblREGASSLookup[Concat],0))","v":"CUST"},{"$f":"IF(tblREGASSJune19[[#This Row],[Total ($000)]]=0,\"NO\",IF(ISNA(tblREGASSJune19[[#This Row],[FUNC]]),\"YES\",IF(_xlfn.ISFORMULA(tblREGASSJune19[[#This Row],[FUNC]]),\"NO\",\"YES\")))","v":"NO"}]
[{"$f":"CONCATENATE(tblREGASSJune19[[#This Row],[Primary Account]],tblREGASSJune19[[#This Row],[Primary Name]],tblREGASSJune19[[#This Row],[Secondary Acct]],tblREGASSJune19[[#This Row],[Secondary  Name]],tblREGASSJune19[[#This Row],[Alloc4FUNC]])","v":"1823920DSR COSTS AMORTIZED103913HOME ENERGY EFF INCENT PROG Y-2015 CAT1OTHER"},1823920,"DSR COSTS AMORTIZED",103913,"HOME ENERGY EFF INCENT PROG Y-2015 CAT1","OTHER",1207.25532,{"$f":"IF(OR(tblREGASSJune19[[#This Row],[Alloc]]=\"IDU\",tblREGASSJune19[[#This Row],[Alloc]]=\"OR\",tblREGASSJune19[[#This Row],[Alloc]]=\"UT\",tblREGASSJune19[[#This Row],[Alloc]]=\"WYU\",tblREGASSJune19[[#This Row],[Alloc]]=\"WYP\",tblREGASSJune19[[#This Row],[Alloc]]=\"CA\",tblREGASSJune19[[#This Row],[Alloc]]=\"WA\"),\"SITUS\",tblREGASSJune19[[#This Row],[Alloc]])","v":"OTHER"},{"$f":"INDEX(tblREGASSLookup[FUNC],MATCH(tblREGASSJune19[[#This Row],[Concat]],tblREGASSLookup[Concat],0))","v":"CUST"},{"$f":"IF(tblREGASSJune19[[#This Row],[Total ($000)]]=0,\"NO\",IF(ISNA(tblREGASSJune19[[#This Row],[FUNC]]),\"YES\",IF(_xlfn.ISFORMULA(tblREGASSJune19[[#This Row],[FUNC]]),\"NO\",\"YES\")))","v":"NO"}]
[{"$f":"CONCATENATE(tblREGASSJune19[[#This Row],[Primary Account]],tblREGASSJune19[[#This Row],[Primary Name]],tblREGASSJune19[[#This Row],[Secondary Acct]],tblREGASSJune19[[#This Row],[Secondary  Name]],tblREGASSJune19[[#This Row],[Alloc4FUNC]])","v":"1823920DSR COSTS AMORTIZED103914INDUSTRIAL FINANSWER -WY 2015 CAT2OTHER"},1823920,"DSR COSTS AMORTIZED",103914,"INDUSTRIAL FINANSWER -WY 2015 CAT2","OTHER",1.9707300000000001,{"$f":"IF(OR(tblREGASSJune19[[#This Row],[Alloc]]=\"IDU\",tblREGASSJune19[[#This Row],[Alloc]]=\"OR\",tblREGASSJune19[[#This Row],[Alloc]]=\"UT\",tblREGASSJune19[[#This Row],[Alloc]]=\"WYU\",tblREGASSJune19[[#This Row],[Alloc]]=\"WYP\",tblREGASSJune19[[#This Row],[Alloc]]=\"CA\",tblREGASSJune19[[#This Row],[Alloc]]=\"WA\"),\"SITUS\",tblREGASSJune19[[#This Row],[Alloc]])","v":"OTHER"},{"$f":"INDEX(tblREGASSLookup[FUNC],MATCH(tblREGASSJune19[[#This Row],[Concat]],tblREGASSLookup[Concat],0))","v":"CUST"},{"$f":"IF(tblREGASSJune19[[#This Row],[Total ($000)]]=0,\"NO\",IF(ISNA(tblREGASSJune19[[#This Row],[FUNC]]),\"YES\",IF(_xlfn.ISFORMULA(tblREGASSJune19[[#This Row],[FUNC]]),\"NO\",\"YES\")))","v":"NO"}]
[{"$f":"CONCATENATE(tblREGASSJune19[[#This Row],[Primary Account]],tblREGASSJune19[[#This Row],[Primary Name]],tblREGASSJune19[[#This Row],[Secondary Acct]],tblREGASSJune19[[#This Row],[Secondary  Name]],tblREGASSJune19[[#This Row],[Alloc4FUNC]])","v":"1823920DSR COSTS AMORTIZED103915INDUSTRIAL FINANSWER-WY-2015 CAT3OTHER"},1823920,"DSR COSTS AMORTIZED",103915,"INDUSTRIAL FINANSWER-WY-2015 CAT3","OTHER",84.763649999999998,{"$f":"IF(OR(tblREGASSJune19[[#This Row],[Alloc]]=\"IDU\",tblREGASSJune19[[#This Row],[Alloc]]=\"OR\",tblREGASSJune19[[#This Row],[Alloc]]=\"UT\",tblREGASSJune19[[#This Row],[Alloc]]=\"WYU\",tblREGASSJune19[[#This Row],[Alloc]]=\"WYP\",tblREGASSJune19[[#This Row],[Alloc]]=\"CA\",tblREGASSJune19[[#This Row],[Alloc]]=\"WA\"),\"SITUS\",tblREGASSJune19[[#This Row],[Alloc]])","v":"OTHER"},{"$f":"INDEX(tblREGASSLookup[FUNC],MATCH(tblREGASSJune19[[#This Row],[Concat]],tblREGASSLookup[Concat],0))","v":"CUST"},{"$f":"IF(tblREGASSJune19[[#This Row],[Total ($000)]]=0,\"NO\",IF(ISNA(tblREGASSJune19[[#This Row],[FUNC]]),\"YES\",IF(_xlfn.ISFORMULA(tblREGASSJune19[[#This Row],[FUNC]]),\"NO\",\"YES\")))","v":"NO"}]
[{"$f":"CONCATENATE(tblREGASSJune19[[#This Row],[Primary Account]],tblREGASSJune19[[#This Row],[Primary Name]],tblREGASSJune19[[#This Row],[Secondary Acct]],tblREGASSJune19[[#This Row],[Secondary  Name]],tblREGASSJune19[[#This Row],[Alloc4FUNC]])","v":"1823920DSR COSTS AMORTIZED103916INDUSTRIAL FINAN EXPRESS WY-2015 CAT2OTHER"},1823920,"DSR COSTS AMORTIZED",103916,"INDUSTRIAL FINAN EXPRESS WY-2015 CAT2","OTHER",9.3697800000000004,{"$f":"IF(OR(tblREGASSJune19[[#This Row],[Alloc]]=\"IDU\",tblREGASSJune19[[#This Row],[Alloc]]=\"OR\",tblREGASSJune19[[#This Row],[Alloc]]=\"UT\",tblREGASSJune19[[#This Row],[Alloc]]=\"WYU\",tblREGASSJune19[[#This Row],[Alloc]]=\"WYP\",tblREGASSJune19[[#This Row],[Alloc]]=\"CA\",tblREGASSJune19[[#This Row],[Alloc]]=\"WA\"),\"SITUS\",tblREGASSJune19[[#This Row],[Alloc]])","v":"OTHER"},{"$f":"INDEX(tblREGASSLookup[FUNC],MATCH(tblREGASSJune19[[#This Row],[Concat]],tblREGASSLookup[Concat],0))","v":"CUST"},{"$f":"IF(tblREGASSJune19[[#This Row],[Total ($000)]]=0,\"NO\",IF(ISNA(tblREGASSJune19[[#This Row],[FUNC]]),\"YES\",IF(_xlfn.ISFORMULA(tblREGASSJune19[[#This Row],[FUNC]]),\"NO\",\"YES\")))","v":"NO"}]
[{"$f":"CONCATENATE(tblREGASSJune19[[#This Row],[Primary Account]],tblREGASSJune19[[#This Row],[Primary Name]],tblREGASSJune19[[#This Row],[Secondary Acct]],tblREGASSJune19[[#This Row],[Secondary  Name]],tblREGASSJune19[[#This Row],[Alloc4FUNC]])","v":"1823920DSR COSTS AMORTIZED103917INDUSTRIAL FINANSWER EXP WY-2015 CAT3OTHER"},1823920,"DSR COSTS AMORTIZED",103917,"INDUSTRIAL FINANSWER EXP WY-2015 CAT3","OTHER",3.1943199999999998,{"$f":"IF(OR(tblREGASSJune19[[#This Row],[Alloc]]=\"IDU\",tblREGASSJune19[[#This Row],[Alloc]]=\"OR\",tblREGASSJune19[[#This Row],[Alloc]]=\"UT\",tblREGASSJune19[[#This Row],[Alloc]]=\"WYU\",tblREGASSJune19[[#This Row],[Alloc]]=\"WYP\",tblREGASSJune19[[#This Row],[Alloc]]=\"CA\",tblREGASSJune19[[#This Row],[Alloc]]=\"WA\"),\"SITUS\",tblREGASSJune19[[#This Row],[Alloc]])","v":"OTHER"},{"$f":"INDEX(tblREGASSLookup[FUNC],MATCH(tblREGASSJune19[[#This Row],[Concat]],tblREGASSLookup[Concat],0))","v":"CUST"},{"$f":"IF(tblREGASSJune19[[#This Row],[Total ($000)]]=0,\"NO\",IF(ISNA(tblREGASSJune19[[#This Row],[FUNC]]),\"YES\",IF(_xlfn.ISFORMULA(tblREGASSJune19[[#This Row],[FUNC]]),\"NO\",\"YES\")))","v":"NO"}]
[{"$f":"CONCATENATE(tblREGASSJune19[[#This Row],[Primary Account]],tblREGASSJune19[[#This Row],[Primary Name]],tblREGASSJune19[[#This Row],[Secondary Acct]],tblREGASSJune19[[#This Row],[Secondary  Name]],tblREGASSJune19[[#This Row],[Alloc4FUNC]])","v":"1823920DSR COSTS AMORTIZED103918LOW-INCOME WEATHERZTN - WY 2015 CAT1OTHER"},1823920,"DSR COSTS AMORTIZED",103918,"LOW-INCOME WEATHERZTN - WY 2015 CAT1","OTHER",29.610939999999999,{"$f":"IF(OR(tblREGASSJune19[[#This Row],[Alloc]]=\"IDU\",tblREGASSJune19[[#This Row],[Alloc]]=\"OR\",tblREGASSJune19[[#This Row],[Alloc]]=\"UT\",tblREGASSJune19[[#This Row],[Alloc]]=\"WYU\",tblREGASSJune19[[#This Row],[Alloc]]=\"WYP\",tblREGASSJune19[[#This Row],[Alloc]]=\"CA\",tblREGASSJune19[[#This Row],[Alloc]]=\"WA\"),\"SITUS\",tblREGASSJune19[[#This Row],[Alloc]])","v":"OTHER"},{"$f":"INDEX(tblREGASSLookup[FUNC],MATCH(tblREGASSJune19[[#This Row],[Concat]],tblREGASSLookup[Concat],0))","v":"CUST"},{"$f":"IF(tblREGASSJune19[[#This Row],[Total ($000)]]=0,\"NO\",IF(ISNA(tblREGASSJune19[[#This Row],[FUNC]]),\"YES\",IF(_xlfn.ISFORMULA(tblREGASSJune19[[#This Row],[FUNC]]),\"NO\",\"YES\")))","v":"NO"}]
[{"$f":"CONCATENATE(tblREGASSJune19[[#This Row],[Primary Account]],tblREGASSJune19[[#This Row],[Primary Name]],tblREGASSJune19[[#This Row],[Secondary Acct]],tblREGASSJune19[[#This Row],[Secondary  Name]],tblREGASSJune19[[#This Row],[Alloc4FUNC]])","v":"1823920DSR COSTS AMORTIZED103919OUTREACH AND COMMUNICATION WATTSMT  WY-2OTHER"},1823920,"DSR COSTS AMORTIZED",103919,"OUTREACH AND COMMUNICATION WATTSMT  WY-2","OTHER",120.62633,{"$f":"IF(OR(tblREGASSJune19[[#This Row],[Alloc]]=\"IDU\",tblREGASSJune19[[#This Row],[Alloc]]=\"OR\",tblREGASSJune19[[#This Row],[Alloc]]=\"UT\",tblREGASSJune19[[#This Row],[Alloc]]=\"WYU\",tblREGASSJune19[[#This Row],[Alloc]]=\"WYP\",tblREGASSJune19[[#This Row],[Alloc]]=\"CA\",tblREGASSJune19[[#This Row],[Alloc]]=\"WA\"),\"SITUS\",tblREGASSJune19[[#This Row],[Alloc]])","v":"OTHER"},{"$f":"INDEX(tblREGASSLookup[FUNC],MATCH(tblREGASSJune19[[#This Row],[Concat]],tblREGASSLookup[Concat],0))","v":"CUST"},{"$f":"IF(tblREGASSJune19[[#This Row],[Total ($000)]]=0,\"NO\",IF(ISNA(tblREGASSJune19[[#This Row],[FUNC]]),\"YES\",IF(_xlfn.ISFORMULA(tblREGASSJune19[[#This Row],[FUNC]]),\"NO\",\"YES\")))","v":"NO"}]
[{"$f":"CONCATENATE(tblREGASSJune19[[#This Row],[Primary Account]],tblREGASSJune19[[#This Row],[Primary Name]],tblREGASSJune19[[#This Row],[Secondary Acct]],tblREGASSJune19[[#This Row],[Secondary  Name]],tblREGASSJune19[[#This Row],[Alloc4FUNC]])","v":"1823920DSR COSTS AMORTIZED103920PORTFOLIO WY-2015 CAT1OTHER"},1823920,"DSR COSTS AMORTIZED",103920,"PORTFOLIO WY-2015 CAT1","OTHER",70.861239999999995,{"$f":"IF(OR(tblREGASSJune19[[#This Row],[Alloc]]=\"IDU\",tblREGASSJune19[[#This Row],[Alloc]]=\"OR\",tblREGASSJune19[[#This Row],[Alloc]]=\"UT\",tblREGASSJune19[[#This Row],[Alloc]]=\"WYU\",tblREGASSJune19[[#This Row],[Alloc]]=\"WYP\",tblREGASSJune19[[#This Row],[Alloc]]=\"CA\",tblREGASSJune19[[#This Row],[Alloc]]=\"WA\"),\"SITUS\",tblREGASSJune19[[#This Row],[Alloc]])","v":"OTHER"},{"$f":"INDEX(tblREGASSLookup[FUNC],MATCH(tblREGASSJune19[[#This Row],[Concat]],tblREGASSLookup[Concat],0))","v":"CUST"},{"$f":"IF(tblREGASSJune19[[#This Row],[Total ($000)]]=0,\"NO\",IF(ISNA(tblREGASSJune19[[#This Row],[FUNC]]),\"YES\",IF(_xlfn.ISFORMULA(tblREGASSJune19[[#This Row],[FUNC]]),\"NO\",\"YES\")))","v":"NO"}]
[{"$f":"CONCATENATE(tblREGASSJune19[[#This Row],[Primary Account]],tblREGASSJune19[[#This Row],[Primary Name]],tblREGASSJune19[[#This Row],[Secondary Acct]],tblREGASSJune19[[#This Row],[Secondary  Name]],tblREGASSJune19[[#This Row],[Alloc4FUNC]])","v":"1823920DSR COSTS AMORTIZED103921PORTFOLIO WY-2015 CAT2OTHER"},1823920,"DSR COSTS AMORTIZED",103921,"PORTFOLIO WY-2015 CAT2","OTHER",29.47242,{"$f":"IF(OR(tblREGASSJune19[[#This Row],[Alloc]]=\"IDU\",tblREGASSJune19[[#This Row],[Alloc]]=\"OR\",tblREGASSJune19[[#This Row],[Alloc]]=\"UT\",tblREGASSJune19[[#This Row],[Alloc]]=\"WYU\",tblREGASSJune19[[#This Row],[Alloc]]=\"WYP\",tblREGASSJune19[[#This Row],[Alloc]]=\"CA\",tblREGASSJune19[[#This Row],[Alloc]]=\"WA\"),\"SITUS\",tblREGASSJune19[[#This Row],[Alloc]])","v":"OTHER"},{"$f":"INDEX(tblREGASSLookup[FUNC],MATCH(tblREGASSJune19[[#This Row],[Concat]],tblREGASSLookup[Concat],0))","v":"CUST"},{"$f":"IF(tblREGASSJune19[[#This Row],[Total ($000)]]=0,\"NO\",IF(ISNA(tblREGASSJune19[[#This Row],[FUNC]]),\"YES\",IF(_xlfn.ISFORMULA(tblREGASSJune19[[#This Row],[FUNC]]),\"NO\",\"YES\")))","v":"NO"}]
[{"$f":"CONCATENATE(tblREGASSJune19[[#This Row],[Primary Account]],tblREGASSJune19[[#This Row],[Primary Name]],tblREGASSJune19[[#This Row],[Secondary Acct]],tblREGASSJune19[[#This Row],[Secondary  Name]],tblREGASSJune19[[#This Row],[Alloc4FUNC]])","v":"1823920DSR COSTS AMORTIZED103922PORTFOLIO WY-2015 CAT3OTHER"},1823920,"DSR COSTS AMORTIZED",103922,"PORTFOLIO WY-2015 CAT3","OTHER",47.482419999999998,{"$f":"IF(OR(tblREGASSJune19[[#This Row],[Alloc]]=\"IDU\",tblREGASSJune19[[#This Row],[Alloc]]=\"OR\",tblREGASSJune19[[#This Row],[Alloc]]=\"UT\",tblREGASSJune19[[#This Row],[Alloc]]=\"WYU\",tblREGASSJune19[[#This Row],[Alloc]]=\"WYP\",tblREGASSJune19[[#This Row],[Alloc]]=\"CA\",tblREGASSJune19[[#This Row],[Alloc]]=\"WA\"),\"SITUS\",tblREGASSJune19[[#This Row],[Alloc]])","v":"OTHER"},{"$f":"INDEX(tblREGASSLookup[FUNC],MATCH(tblREGASSJune19[[#This Row],[Concat]],tblREGASSLookup[Concat],0))","v":"CUST"},{"$f":"IF(tblREGASSJune19[[#This Row],[Total ($000)]]=0,\"NO\",IF(ISNA(tblREGASSJune19[[#This Row],[FUNC]]),\"YES\",IF(_xlfn.ISFORMULA(tblREGASSJune19[[#This Row],[FUNC]]),\"NO\",\"YES\")))","v":"NO"}]
[{"$f":"CONCATENATE(tblREGASSJune19[[#This Row],[Primary Account]],tblREGASSJune19[[#This Row],[Primary Name]],tblREGASSJune19[[#This Row],[Secondary Acct]],tblREGASSJune19[[#This Row],[Secondary  Name]],tblREGASSJune19[[#This Row],[Alloc4FUNC]])","v":"1823920DSR COSTS AMORTIZED103923REFRIGERATOR RECYCLING-WY -2015 CAT1OTHER"},1823920,"DSR COSTS AMORTIZED",103923,"REFRIGERATOR RECYCLING-WY -2015 CAT1","OTHER",99.175210000000007,{"$f":"IF(OR(tblREGASSJune19[[#This Row],[Alloc]]=\"IDU\",tblREGASSJune19[[#This Row],[Alloc]]=\"OR\",tblREGASSJune19[[#This Row],[Alloc]]=\"UT\",tblREGASSJune19[[#This Row],[Alloc]]=\"WYU\",tblREGASSJune19[[#This Row],[Alloc]]=\"WYP\",tblREGASSJune19[[#This Row],[Alloc]]=\"CA\",tblREGASSJune19[[#This Row],[Alloc]]=\"WA\"),\"SITUS\",tblREGASSJune19[[#This Row],[Alloc]])","v":"OTHER"},{"$f":"INDEX(tblREGASSLookup[FUNC],MATCH(tblREGASSJune19[[#This Row],[Concat]],tblREGASSLookup[Concat],0))","v":"CUST"},{"$f":"IF(tblREGASSJune19[[#This Row],[Total ($000)]]=0,\"NO\",IF(ISNA(tblREGASSJune19[[#This Row],[FUNC]]),\"YES\",IF(_xlfn.ISFORMULA(tblREGASSJune19[[#This Row],[FUNC]]),\"NO\",\"YES\")))","v":"NO"}]
[{"$f":"CONCATENATE(tblREGASSJune19[[#This Row],[Primary Account]],tblREGASSJune19[[#This Row],[Primary Name]],tblREGASSJune19[[#This Row],[Secondary Acct]],tblREGASSJune19[[#This Row],[Secondary  Name]],tblREGASSJune19[[#This Row],[Alloc4FUNC]])","v":"1823920DSR COSTS AMORTIZED103925SELF DIRECT - COMMERCIAL -WY-2015 CAT3OTHER"},1823920,"DSR COSTS AMORTIZED",103925,"SELF DIRECT - COMMERCIAL -WY-2015 CAT3","OTHER",8.7150000000000005E-2,{"$f":"IF(OR(tblREGASSJune19[[#This Row],[Alloc]]=\"IDU\",tblREGASSJune19[[#This Row],[Alloc]]=\"OR\",tblREGASSJune19[[#This Row],[Alloc]]=\"UT\",tblREGASSJune19[[#This Row],[Alloc]]=\"WYU\",tblREGASSJune19[[#This Row],[Alloc]]=\"WYP\",tblREGASSJune19[[#This Row],[Alloc]]=\"CA\",tblREGASSJune19[[#This Row],[Alloc]]=\"WA\"),\"SITUS\",tblREGASSJune19[[#This Row],[Alloc]])","v":"OTHER"},{"$f":"INDEX(tblREGASSLookup[FUNC],MATCH(tblREGASSJune19[[#This Row],[Concat]],tblREGASSLookup[Concat],0))","v":"CUST"},{"$f":"IF(tblREGASSJune19[[#This Row],[Total ($000)]]=0,\"NO\",IF(ISNA(tblREGASSJune19[[#This Row],[FUNC]]),\"YES\",IF(_xlfn.ISFORMULA(tblREGASSJune19[[#This Row],[FUNC]]),\"NO\",\"YES\")))","v":"NO"}]
[{"$f":"CONCATENATE(tblREGASSJune19[[#This Row],[Primary Account]],tblREGASSJune19[[#This Row],[Primary Name]],tblREGASSJune19[[#This Row],[Secondary Acct]],tblREGASSJune19[[#This Row],[Secondary  Name]],tblREGASSJune19[[#This Row],[Alloc4FUNC]])","v":"1823920DSR COSTS AMORTIZED103927SELF DIRECT -INDUSTRIAL -WY-2015 CAT3OTHER"},1823920,"DSR COSTS AMORTIZED",103927,"SELF DIRECT -INDUSTRIAL -WY-2015 CAT3","OTHER",0.58338999999999996,{"$f":"IF(OR(tblREGASSJune19[[#This Row],[Alloc]]=\"IDU\",tblREGASSJune19[[#This Row],[Alloc]]=\"OR\",tblREGASSJune19[[#This Row],[Alloc]]=\"UT\",tblREGASSJune19[[#This Row],[Alloc]]=\"WYU\",tblREGASSJune19[[#This Row],[Alloc]]=\"WYP\",tblREGASSJune19[[#This Row],[Alloc]]=\"CA\",tblREGASSJune19[[#This Row],[Alloc]]=\"WA\"),\"SITUS\",tblREGASSJune19[[#This Row],[Alloc]])","v":"OTHER"},{"$f":"INDEX(tblREGASSLookup[FUNC],MATCH(tblREGASSJune19[[#This Row],[Concat]],tblREGASSLookup[Concat],0))","v":"CUST"},{"$f":"IF(tblREGASSJune19[[#This Row],[Total ($000)]]=0,\"NO\",IF(ISNA(tblREGASSJune19[[#This Row],[FUNC]]),\"YES\",IF(_xlfn.ISFORMULA(tblREGASSJune19[[#This Row],[FUNC]]),\"NO\",\"YES\")))","v":"NO"}]
[{"$f":"CONCATENATE(tblREGASSJune19[[#This Row],[Primary Account]],tblREGASSJune19[[#This Row],[Primary Name]],tblREGASSJune19[[#This Row],[Secondary Acct]],tblREGASSJune19[[#This Row],[Secondary  Name]],tblREGASSJune19[[#This Row],[Alloc4FUNC]])","v":"1823920DSR COSTS AMORTIZED103928WSB - Wattsmart Business - WY Cat 2- 201OTHER"},1823920,"DSR COSTS AMORTIZED",103928,"WSB - Wattsmart Business - WY Cat 2- 201","OTHER",639.16872999999998,{"$f":"IF(OR(tblREGASSJune19[[#This Row],[Alloc]]=\"IDU\",tblREGASSJune19[[#This Row],[Alloc]]=\"OR\",tblREGASSJune19[[#This Row],[Alloc]]=\"UT\",tblREGASSJune19[[#This Row],[Alloc]]=\"WYU\",tblREGASSJune19[[#This Row],[Alloc]]=\"WYP\",tblREGASSJune19[[#This Row],[Alloc]]=\"CA\",tblREGASSJune19[[#This Row],[Alloc]]=\"WA\"),\"SITUS\",tblREGASSJune19[[#This Row],[Alloc]])","v":"OTHER"},{"$f":"INDEX(tblREGASSLookup[FUNC],MATCH(tblREGASSJune19[[#This Row],[Concat]],tblREGASSLookup[Concat],0))","v":"CUST"},{"$f":"IF(tblREGASSJune19[[#This Row],[Total ($000)]]=0,\"NO\",IF(ISNA(tblREGASSJune19[[#This Row],[FUNC]]),\"YES\",IF(_xlfn.ISFORMULA(tblREGASSJune19[[#This Row],[FUNC]]),\"NO\",\"YES\")))","v":"NO"}]
[{"$f":"CONCATENATE(tblREGASSJune19[[#This Row],[Primary Account]],tblREGASSJune19[[#This Row],[Primary Name]],tblREGASSJune19[[#This Row],[Secondary Acct]],tblREGASSJune19[[#This Row],[Secondary  Name]],tblREGASSJune19[[#This Row],[Alloc4FUNC]])","v":"1823920DSR COSTS AMORTIZED103929WSB - Small Business Comm - WY Cat2 -201OTHER"},1823920,"DSR COSTS AMORTIZED",103929,"WSB - Small Business Comm - WY Cat2 -201","OTHER",1070.6802600000001,{"$f":"IF(OR(tblREGASSJune19[[#This Row],[Alloc]]=\"IDU\",tblREGASSJune19[[#This Row],[Alloc]]=\"OR\",tblREGASSJune19[[#This Row],[Alloc]]=\"UT\",tblREGASSJune19[[#This Row],[Alloc]]=\"WYU\",tblREGASSJune19[[#This Row],[Alloc]]=\"WYP\",tblREGASSJune19[[#This Row],[Alloc]]=\"CA\",tblREGASSJune19[[#This Row],[Alloc]]=\"WA\"),\"SITUS\",tblREGASSJune19[[#This Row],[Alloc]])","v":"OTHER"},{"$f":"INDEX(tblREGASSLookup[FUNC],MATCH(tblREGASSJune19[[#This Row],[Concat]],tblREGASSLookup[Concat],0))","v":"CUST"},{"$f":"IF(tblREGASSJune19[[#This Row],[Total ($000)]]=0,\"NO\",IF(ISNA(tblREGASSJune19[[#This Row],[FUNC]]),\"YES\",IF(_xlfn.ISFORMULA(tblREGASSJune19[[#This Row],[FUNC]]),\"NO\",\"YES\")))","v":"NO"}]
[{"$f":"CONCATENATE(tblREGASSJune19[[#This Row],[Primary Account]],tblREGASSJune19[[#This Row],[Primary Name]],tblREGASSJune19[[#This Row],[Secondary Acct]],tblREGASSJune19[[#This Row],[Secondary  Name]],tblREGASSJune19[[#This Row],[Alloc4FUNC]])","v":"1823920DSR COSTS AMORTIZED103930WBS- Wattsmart Business Ind -WY Cat2-201OTHER"},1823920,"DSR COSTS AMORTIZED",103930,"WBS- Wattsmart Business Ind -WY Cat2-201","OTHER",286.47379999999998,{"$f":"IF(OR(tblREGASSJune19[[#This Row],[Alloc]]=\"IDU\",tblREGASSJune19[[#This Row],[Alloc]]=\"OR\",tblREGASSJune19[[#This Row],[Alloc]]=\"UT\",tblREGASSJune19[[#This Row],[Alloc]]=\"WYU\",tblREGASSJune19[[#This Row],[Alloc]]=\"WYP\",tblREGASSJune19[[#This Row],[Alloc]]=\"CA\",tblREGASSJune19[[#This Row],[Alloc]]=\"WA\"),\"SITUS\",tblREGASSJune19[[#This Row],[Alloc]])","v":"OTHER"},{"$f":"INDEX(tblREGASSLookup[FUNC],MATCH(tblREGASSJune19[[#This Row],[Concat]],tblREGASSLookup[Concat],0))","v":"CUST"},{"$f":"IF(tblREGASSJune19[[#This Row],[Total ($000)]]=0,\"NO\",IF(ISNA(tblREGASSJune19[[#This Row],[FUNC]]),\"YES\",IF(_xlfn.ISFORMULA(tblREGASSJune19[[#This Row],[FUNC]]),\"NO\",\"YES\")))","v":"NO"}]
[{"$f":"CONCATENATE(tblREGASSJune19[[#This Row],[Primary Account]],tblREGASSJune19[[#This Row],[Primary Name]],tblREGASSJune19[[#This Row],[Secondary Acct]],tblREGASSJune19[[#This Row],[Secondary  Name]],tblREGASSJune19[[#This Row],[Alloc4FUNC]])","v":"1823920DSR COSTS AMORTIZED103931HOME ENERGY REPORTING - WY 2015OTHER"},1823920,"DSR COSTS AMORTIZED",103931,"HOME ENERGY REPORTING - WY 2015","OTHER",138.83637999999999,{"$f":"IF(OR(tblREGASSJune19[[#This Row],[Alloc]]=\"IDU\",tblREGASSJune19[[#This Row],[Alloc]]=\"OR\",tblREGASSJune19[[#This Row],[Alloc]]=\"UT\",tblREGASSJune19[[#This Row],[Alloc]]=\"WYU\",tblREGASSJune19[[#This Row],[Alloc]]=\"WYP\",tblREGASSJune19[[#This Row],[Alloc]]=\"CA\",tblREGASSJune19[[#This Row],[Alloc]]=\"WA\"),\"SITUS\",tblREGASSJune19[[#This Row],[Alloc]])","v":"OTHER"},{"$f":"INDEX(tblREGASSLookup[FUNC],MATCH(tblREGASSJune19[[#This Row],[Concat]],tblREGASSLookup[Concat],0))","v":"CUST"},{"$f":"IF(tblREGASSJune19[[#This Row],[Total ($000)]]=0,\"NO\",IF(ISNA(tblREGASSJune19[[#This Row],[FUNC]]),\"YES\",IF(_xlfn.ISFORMULA(tblREGASSJune19[[#This Row],[FUNC]]),\"NO\",\"YES\")))","v":"NO"}]
[{"$f":"CONCATENATE(tblREGASSJune19[[#This Row],[Primary Account]],tblREGASSJune19[[#This Row],[Primary Name]],tblREGASSJune19[[#This Row],[Secondary Acct]],tblREGASSJune19[[#This Row],[Secondary  Name]],tblREGASSJune19[[#This Row],[Alloc4FUNC]])","v":"1823920DSR COSTS AMORTIZED103932WSB- Wattsmart Business- WY Cat 3- 2015OTHER"},1823920,"DSR COSTS AMORTIZED",103932,"WSB- Wattsmart Business- WY Cat 3- 2015","OTHER",178.05016000000001,{"$f":"IF(OR(tblREGASSJune19[[#This Row],[Alloc]]=\"IDU\",tblREGASSJune19[[#This Row],[Alloc]]=\"OR\",tblREGASSJune19[[#This Row],[Alloc]]=\"UT\",tblREGASSJune19[[#This Row],[Alloc]]=\"WYU\",tblREGASSJune19[[#This Row],[Alloc]]=\"WYP\",tblREGASSJune19[[#This Row],[Alloc]]=\"CA\",tblREGASSJune19[[#This Row],[Alloc]]=\"WA\"),\"SITUS\",tblREGASSJune19[[#This Row],[Alloc]])","v":"OTHER"},{"$f":"INDEX(tblREGASSLookup[FUNC],MATCH(tblREGASSJune19[[#This Row],[Concat]],tblREGASSLookup[Concat],0))","v":"CUST"},{"$f":"IF(tblREGASSJune19[[#This Row],[Total ($000)]]=0,\"NO\",IF(ISNA(tblREGASSJune19[[#This Row],[FUNC]]),\"YES\",IF(_xlfn.ISFORMULA(tblREGASSJune19[[#This Row],[FUNC]]),\"NO\",\"YES\")))","v":"NO"}]
[{"$f":"CONCATENATE(tblREGASSJune19[[#This Row],[Primary Account]],tblREGASSJune19[[#This Row],[Primary Name]],tblREGASSJune19[[#This Row],[Secondary Acct]],tblREGASSJune19[[#This Row],[Secondary  Name]],tblREGASSJune19[[#This Row],[Alloc4FUNC]])","v":"1823920DSR COSTS AMORTIZED103933REFRIG RECYCLE COMM -WY 2015 CAT2OTHER"},1823920,"DSR COSTS AMORTIZED",103933,"REFRIG RECYCLE COMM -WY 2015 CAT2","OTHER",0.9415,{"$f":"IF(OR(tblREGASSJune19[[#This Row],[Alloc]]=\"IDU\",tblREGASSJune19[[#This Row],[Alloc]]=\"OR\",tblREGASSJune19[[#This Row],[Alloc]]=\"UT\",tblREGASSJune19[[#This Row],[Alloc]]=\"WYU\",tblREGASSJune19[[#This Row],[Alloc]]=\"WYP\",tblREGASSJune19[[#This Row],[Alloc]]=\"CA\",tblREGASSJune19[[#This Row],[Alloc]]=\"WA\"),\"SITUS\",tblREGASSJune19[[#This Row],[Alloc]])","v":"OTHER"},{"$f":"INDEX(tblREGASSLookup[FUNC],MATCH(tblREGASSJune19[[#This Row],[Concat]],tblREGASSLookup[Concat],0))","v":"CUST"},{"$f":"IF(tblREGASSJune19[[#This Row],[Total ($000)]]=0,\"NO\",IF(ISNA(tblREGASSJune19[[#This Row],[FUNC]]),\"YES\",IF(_xlfn.ISFORMULA(tblREGASSJune19[[#This Row],[FUNC]]),\"NO\",\"YES\")))","v":"NO"}]
[{"$f":"CONCATENATE(tblREGASSJune19[[#This Row],[Primary Account]],tblREGASSJune19[[#This Row],[Primary Name]],tblREGASSJune19[[#This Row],[Secondary Acct]],tblREGASSJune19[[#This Row],[Secondary  Name]],tblREGASSJune19[[#This Row],[Alloc4FUNC]])","v":"1823920DSR COSTS AMORTIZED103934REFRIG RECYCLE COMM -WY 2015 CAT3OTHER"},1823920,"DSR COSTS AMORTIZED",103934,"REFRIG RECYCLE COMM -WY 2015 CAT3","OTHER",0.70669999999999999,{"$f":"IF(OR(tblREGASSJune19[[#This Row],[Alloc]]=\"IDU\",tblREGASSJune19[[#This Row],[Alloc]]=\"OR\",tblREGASSJune19[[#This Row],[Alloc]]=\"UT\",tblREGASSJune19[[#This Row],[Alloc]]=\"WYU\",tblREGASSJune19[[#This Row],[Alloc]]=\"WYP\",tblREGASSJune19[[#This Row],[Alloc]]=\"CA\",tblREGASSJune19[[#This Row],[Alloc]]=\"WA\"),\"SITUS\",tblREGASSJune19[[#This Row],[Alloc]])","v":"OTHER"},{"$f":"INDEX(tblREGASSLookup[FUNC],MATCH(tblREGASSJune19[[#This Row],[Concat]],tblREGASSLookup[Concat],0))","v":"CUST"},{"$f":"IF(tblREGASSJune19[[#This Row],[Total ($000)]]=0,\"NO\",IF(ISNA(tblREGASSJune19[[#This Row],[FUNC]]),\"YES\",IF(_xlfn.ISFORMULA(tblREGASSJune19[[#This Row],[FUNC]]),\"NO\",\"YES\")))","v":"NO"}]
[{"$f":"CONCATENATE(tblREGASSJune19[[#This Row],[Primary Account]],tblREGASSJune19[[#This Row],[Primary Name]],tblREGASSJune19[[#This Row],[Secondary Acct]],tblREGASSJune19[[#This Row],[Secondary  Name]],tblREGASSJune19[[#This Row],[Alloc4FUNC]])","v":"1823920DSR COSTS AMORTIZED103935WSB Wattsmart Business Comm- WY Cat3 -20OTHER"},1823920,"DSR COSTS AMORTIZED",103935,"WSB Wattsmart Business Comm- WY Cat3 -20","OTHER",381.15552000000002,{"$f":"IF(OR(tblREGASSJune19[[#This Row],[Alloc]]=\"IDU\",tblREGASSJune19[[#This Row],[Alloc]]=\"OR\",tblREGASSJune19[[#This Row],[Alloc]]=\"UT\",tblREGASSJune19[[#This Row],[Alloc]]=\"WYU\",tblREGASSJune19[[#This Row],[Alloc]]=\"WYP\",tblREGASSJune19[[#This Row],[Alloc]]=\"CA\",tblREGASSJune19[[#This Row],[Alloc]]=\"WA\"),\"SITUS\",tblREGASSJune19[[#This Row],[Alloc]])","v":"OTHER"},{"$f":"INDEX(tblREGASSLookup[FUNC],MATCH(tblREGASSJune19[[#This Row],[Concat]],tblREGASSLookup[Concat],0))","v":"CUST"},{"$f":"IF(tblREGASSJune19[[#This Row],[Total ($000)]]=0,\"NO\",IF(ISNA(tblREGASSJune19[[#This Row],[FUNC]]),\"YES\",IF(_xlfn.ISFORMULA(tblREGASSJune19[[#This Row],[FUNC]]),\"NO\",\"YES\")))","v":"NO"}]
[{"$f":"CONCATENATE(tblREGASSJune19[[#This Row],[Primary Account]],tblREGASSJune19[[#This Row],[Primary Name]],tblREGASSJune19[[#This Row],[Secondary Acct]],tblREGASSJune19[[#This Row],[Secondary  Name]],tblREGASSJune19[[#This Row],[Alloc4FUNC]])","v":"1823920DSR COSTS AMORTIZED103936WBS- Wattsmart Bus Ind- WY Cat3-2015OTHER"},1823920,"DSR COSTS AMORTIZED",103936,"WBS- Wattsmart Bus Ind- WY Cat3-2015","OTHER",1486.6839600000001,{"$f":"IF(OR(tblREGASSJune19[[#This Row],[Alloc]]=\"IDU\",tblREGASSJune19[[#This Row],[Alloc]]=\"OR\",tblREGASSJune19[[#This Row],[Alloc]]=\"UT\",tblREGASSJune19[[#This Row],[Alloc]]=\"WYU\",tblREGASSJune19[[#This Row],[Alloc]]=\"WYP\",tblREGASSJune19[[#This Row],[Alloc]]=\"CA\",tblREGASSJune19[[#This Row],[Alloc]]=\"WA\"),\"SITUS\",tblREGASSJune19[[#This Row],[Alloc]])","v":"OTHER"},{"$f":"INDEX(tblREGASSLookup[FUNC],MATCH(tblREGASSJune19[[#This Row],[Concat]],tblREGASSLookup[Concat],0))","v":"CUST"},{"$f":"IF(tblREGASSJune19[[#This Row],[Total ($000)]]=0,\"NO\",IF(ISNA(tblREGASSJune19[[#This Row],[FUNC]]),\"YES\",IF(_xlfn.ISFORMULA(tblREGASSJune19[[#This Row],[FUNC]]),\"NO\",\"YES\")))","v":"NO"}]
[{"$f":"CONCATENATE(tblREGASSJune19[[#This Row],[Primary Account]],tblREGASSJune19[[#This Row],[Primary Name]],tblREGASSJune19[[#This Row],[Secondary Acct]],tblREGASSJune19[[#This Row],[Secondary  Name]],tblREGASSJune19[[#This Row],[Alloc4FUNC]])","v":"1823920DSR COSTS AMORTIZED103937WSB- Wattsmart Business Agric- WY Cat2 -OTHER"},1823920,"DSR COSTS AMORTIZED",103937,"WSB- Wattsmart Business Agric- WY Cat2 -","OTHER",17.503979999999999,{"$f":"IF(OR(tblREGASSJune19[[#This Row],[Alloc]]=\"IDU\",tblREGASSJune19[[#This Row],[Alloc]]=\"OR\",tblREGASSJune19[[#This Row],[Alloc]]=\"UT\",tblREGASSJune19[[#This Row],[Alloc]]=\"WYU\",tblREGASSJune19[[#This Row],[Alloc]]=\"WYP\",tblREGASSJune19[[#This Row],[Alloc]]=\"CA\",tblREGASSJune19[[#This Row],[Alloc]]=\"WA\"),\"SITUS\",tblREGASSJune19[[#This Row],[Alloc]])","v":"OTHER"},{"$f":"INDEX(tblREGASSLookup[FUNC],MATCH(tblREGASSJune19[[#This Row],[Concat]],tblREGASSLookup[Concat],0))","v":"CUST"},{"$f":"IF(tblREGASSJune19[[#This Row],[Total ($000)]]=0,\"NO\",IF(ISNA(tblREGASSJune19[[#This Row],[FUNC]]),\"YES\",IF(_xlfn.ISFORMULA(tblREGASSJune19[[#This Row],[FUNC]]),\"NO\",\"YES\")))","v":"NO"}]
[{"$f":"CONCATENATE(tblREGASSJune19[[#This Row],[Primary Account]],tblREGASSJune19[[#This Row],[Primary Name]],tblREGASSJune19[[#This Row],[Secondary Acct]],tblREGASSJune19[[#This Row],[Secondary  Name]],tblREGASSJune19[[#This Row],[Alloc4FUNC]])","v":"1823920DSR COSTS AMORTIZED103938WSB- Wattsmart Business Agric- WY Cat3 -OTHER"},1823920,"DSR COSTS AMORTIZED",103938,"WSB- Wattsmart Business Agric- WY Cat3 -","OTHER",7.1059999999999998E-2,{"$f":"IF(OR(tblREGASSJune19[[#This Row],[Alloc]]=\"IDU\",tblREGASSJune19[[#This Row],[Alloc]]=\"OR\",tblREGASSJune19[[#This Row],[Alloc]]=\"UT\",tblREGASSJune19[[#This Row],[Alloc]]=\"WYU\",tblREGASSJune19[[#This Row],[Alloc]]=\"WYP\",tblREGASSJune19[[#This Row],[Alloc]]=\"CA\",tblREGASSJune19[[#This Row],[Alloc]]=\"WA\"),\"SITUS\",tblREGASSJune19[[#This Row],[Alloc]])","v":"OTHER"},{"$f":"INDEX(tblREGASSLookup[FUNC],MATCH(tblREGASSJune19[[#This Row],[Concat]],tblREGASSLookup[Concat],0))","v":"CUST"},{"$f":"IF(tblREGASSJune19[[#This Row],[Total ($000)]]=0,\"NO\",IF(ISNA(tblREGASSJune19[[#This Row],[FUNC]]),\"YES\",IF(_xlfn.ISFORMULA(tblREGASSJune19[[#This Row],[FUNC]]),\"NO\",\"YES\")))","v":"NO"}]
[{"$f":"CONCATENATE(tblREGASSJune19[[#This Row],[Primary Account]],tblREGASSJune19[[#This Row],[Primary Name]],tblREGASSJune19[[#This Row],[Secondary Acct]],tblREGASSJune19[[#This Row],[Secondary  Name]],tblREGASSJune19[[#This Row],[Alloc4FUNC]])","v":"1823920DSR COSTS AMORTIZED103959COMMERCIAL ENERGY REPORTS-SMB -UT 2015OTHER"},1823920,"DSR COSTS AMORTIZED",103959,"COMMERCIAL ENERGY REPORTS-SMB -UT 2015","OTHER",3.12845,{"$f":"IF(OR(tblREGASSJune19[[#This Row],[Alloc]]=\"IDU\",tblREGASSJune19[[#This Row],[Alloc]]=\"OR\",tblREGASSJune19[[#This Row],[Alloc]]=\"UT\",tblREGASSJune19[[#This Row],[Alloc]]=\"WYU\",tblREGASSJune19[[#This Row],[Alloc]]=\"WYP\",tblREGASSJune19[[#This Row],[Alloc]]=\"CA\",tblREGASSJune19[[#This Row],[Alloc]]=\"WA\"),\"SITUS\",tblREGASSJune19[[#This Row],[Alloc]])","v":"OTHER"},{"$f":"INDEX(tblREGASSLookup[FUNC],MATCH(tblREGASSJune19[[#This Row],[Concat]],tblREGASSLookup[Concat],0))","v":"CUST"},{"$f":"IF(tblREGASSJune19[[#This Row],[Total ($000)]]=0,\"NO\",IF(ISNA(tblREGASSJune19[[#This Row],[FUNC]]),\"YES\",IF(_xlfn.ISFORMULA(tblREGASSJune19[[#This Row],[FUNC]]),\"NO\",\"YES\")))","v":"NO"}]
[{"$f":"CONCATENATE(tblREGASSJune19[[#This Row],[Primary Account]],tblREGASSJune19[[#This Row],[Primary Name]],tblREGASSJune19[[#This Row],[Secondary Acct]],tblREGASSJune19[[#This Row],[Secondary  Name]],tblREGASSJune19[[#This Row],[Alloc4FUNC]])","v":"1823920DSR COSTS AMORTIZED103962Portfolio - EM&V C&I - ID- 2015OTHER"},1823920,"DSR COSTS AMORTIZED",103962,"Portfolio - EM&V C&I - ID- 2015","OTHER",2.4565199999999998,{"$f":"IF(OR(tblREGASSJune19[[#This Row],[Alloc]]=\"IDU\",tblREGASSJune19[[#This Row],[Alloc]]=\"OR\",tblREGASSJune19[[#This Row],[Alloc]]=\"UT\",tblREGASSJune19[[#This Row],[Alloc]]=\"WYU\",tblREGASSJune19[[#This Row],[Alloc]]=\"WYP\",tblREGASSJune19[[#This Row],[Alloc]]=\"CA\",tblREGASSJune19[[#This Row],[Alloc]]=\"WA\"),\"SITUS\",tblREGASSJune19[[#This Row],[Alloc]])","v":"OTHER"},{"$f":"INDEX(tblREGASSLookup[FUNC],MATCH(tblREGASSJune19[[#This Row],[Concat]],tblREGASSLookup[Concat],0))","v":"CUST"},{"$f":"IF(tblREGASSJune19[[#This Row],[Total ($000)]]=0,\"NO\",IF(ISNA(tblREGASSJune19[[#This Row],[FUNC]]),\"YES\",IF(_xlfn.ISFORMULA(tblREGASSJune19[[#This Row],[FUNC]]),\"NO\",\"YES\")))","v":"NO"}]
[{"$f":"CONCATENATE(tblREGASSJune19[[#This Row],[Primary Account]],tblREGASSJune19[[#This Row],[Primary Name]],tblREGASSJune19[[#This Row],[Secondary Acct]],tblREGASSJune19[[#This Row],[Secondary  Name]],tblREGASSJune19[[#This Row],[Alloc4FUNC]])","v":"1823920DSR COSTS AMORTIZED103963Portfolio - EM&V RES - ID- 2015OTHER"},1823920,"DSR COSTS AMORTIZED",103963,"Portfolio - EM&V RES - ID- 2015","OTHER",41.308979999999998,{"$f":"IF(OR(tblREGASSJune19[[#This Row],[Alloc]]=\"IDU\",tblREGASSJune19[[#This Row],[Alloc]]=\"OR\",tblREGASSJune19[[#This Row],[Alloc]]=\"UT\",tblREGASSJune19[[#This Row],[Alloc]]=\"WYU\",tblREGASSJune19[[#This Row],[Alloc]]=\"WYP\",tblREGASSJune19[[#This Row],[Alloc]]=\"CA\",tblREGASSJune19[[#This Row],[Alloc]]=\"WA\"),\"SITUS\",tblREGASSJune19[[#This Row],[Alloc]])","v":"OTHER"},{"$f":"INDEX(tblREGASSLookup[FUNC],MATCH(tblREGASSJune19[[#This Row],[Concat]],tblREGASSLookup[Concat],0))","v":"CUST"},{"$f":"IF(tblREGASSJune19[[#This Row],[Total ($000)]]=0,\"NO\",IF(ISNA(tblREGASSJune19[[#This Row],[FUNC]]),\"YES\",IF(_xlfn.ISFORMULA(tblREGASSJune19[[#This Row],[FUNC]]),\"NO\",\"YES\")))","v":"NO"}]
[{"$f":"CONCATENATE(tblREGASSJune19[[#This Row],[Primary Account]],tblREGASSJune19[[#This Row],[Primary Name]],tblREGASSJune19[[#This Row],[Secondary Acct]],tblREGASSJune19[[#This Row],[Secondary  Name]],tblREGASSJune19[[#This Row],[Alloc4FUNC]])","v":"1823920DSR COSTS AMORTIZED104013CALIFORNIA DSM EXPENSE - 2016OTHER"},1823920,"DSR COSTS AMORTIZED",104013,"CALIFORNIA DSM EXPENSE - 2016","OTHER",1.0000000000000001E-5,{"$f":"IF(OR(tblREGASSJune19[[#This Row],[Alloc]]=\"IDU\",tblREGASSJune19[[#This Row],[Alloc]]=\"OR\",tblREGASSJune19[[#This Row],[Alloc]]=\"UT\",tblREGASSJune19[[#This Row],[Alloc]]=\"WYU\",tblREGASSJune19[[#This Row],[Alloc]]=\"WYP\",tblREGASSJune19[[#This Row],[Alloc]]=\"CA\",tblREGASSJune19[[#This Row],[Alloc]]=\"WA\"),\"SITUS\",tblREGASSJune19[[#This Row],[Alloc]])","v":"OTHER"},{"$f":"INDEX(tblREGASSLookup[FUNC],MATCH(tblREGASSJune19[[#This Row],[Concat]],tblREGASSLookup[Concat],0))","v":"CUST"},{"$f":"IF(tblREGASSJune19[[#This Row],[Total ($000)]]=0,\"NO\",IF(ISNA(tblREGASSJune19[[#This Row],[FUNC]]),\"YES\",IF(_xlfn.ISFORMULA(tblREGASSJune19[[#This Row],[FUNC]]),\"NO\",\"YES\")))","v":"NO"}]
[{"$f":"CONCATENATE(tblREGASSJune19[[#This Row],[Primary Account]],tblREGASSJune19[[#This Row],[Primary Name]],tblREGASSJune19[[#This Row],[Secondary Acct]],tblREGASSJune19[[#This Row],[Secondary  Name]],tblREGASSJune19[[#This Row],[Alloc4FUNC]])","v":"1823920DSR COSTS AMORTIZED104015HOME ENERGY REPORTING - ID 2016OTHER"},1823920,"DSR COSTS AMORTIZED",104015,"HOME ENERGY REPORTING - ID 2016","OTHER",94.087389999999999,{"$f":"IF(OR(tblREGASSJune19[[#This Row],[Alloc]]=\"IDU\",tblREGASSJune19[[#This Row],[Alloc]]=\"OR\",tblREGASSJune19[[#This Row],[Alloc]]=\"UT\",tblREGASSJune19[[#This Row],[Alloc]]=\"WYU\",tblREGASSJune19[[#This Row],[Alloc]]=\"WYP\",tblREGASSJune19[[#This Row],[Alloc]]=\"CA\",tblREGASSJune19[[#This Row],[Alloc]]=\"WA\"),\"SITUS\",tblREGASSJune19[[#This Row],[Alloc]])","v":"OTHER"},{"$f":"INDEX(tblREGASSLookup[FUNC],MATCH(tblREGASSJune19[[#This Row],[Concat]],tblREGASSLookup[Concat],0))","v":"CUST"},{"$f":"IF(tblREGASSJune19[[#This Row],[Total ($000)]]=0,\"NO\",IF(ISNA(tblREGASSJune19[[#This Row],[FUNC]]),\"YES\",IF(_xlfn.ISFORMULA(tblREGASSJune19[[#This Row],[FUNC]]),\"NO\",\"YES\")))","v":"NO"}]
[{"$f":"CONCATENATE(tblREGASSJune19[[#This Row],[Primary Account]],tblREGASSJune19[[#This Row],[Primary Name]],tblREGASSJune19[[#This Row],[Secondary Acct]],tblREGASSJune19[[#This Row],[Secondary  Name]],tblREGASSJune19[[#This Row],[Alloc4FUNC]])","v":"1823920DSR COSTS AMORTIZED104018OUTREACH AND COMMUNICATION  ID-2016OTHER"},1823920,"DSR COSTS AMORTIZED",104018,"OUTREACH AND COMMUNICATION  ID-2016","OTHER",98.463830000000002,{"$f":"IF(OR(tblREGASSJune19[[#This Row],[Alloc]]=\"IDU\",tblREGASSJune19[[#This Row],[Alloc]]=\"OR\",tblREGASSJune19[[#This Row],[Alloc]]=\"UT\",tblREGASSJune19[[#This Row],[Alloc]]=\"WYU\",tblREGASSJune19[[#This Row],[Alloc]]=\"WYP\",tblREGASSJune19[[#This Row],[Alloc]]=\"CA\",tblREGASSJune19[[#This Row],[Alloc]]=\"WA\"),\"SITUS\",tblREGASSJune19[[#This Row],[Alloc]])","v":"OTHER"},{"$f":"INDEX(tblREGASSLookup[FUNC],MATCH(tblREGASSJune19[[#This Row],[Concat]],tblREGASSLookup[Concat],0))","v":"CUST"},{"$f":"IF(tblREGASSJune19[[#This Row],[Total ($000)]]=0,\"NO\",IF(ISNA(tblREGASSJune19[[#This Row],[FUNC]]),\"YES\",IF(_xlfn.ISFORMULA(tblREGASSJune19[[#This Row],[FUNC]]),\"NO\",\"YES\")))","v":"NO"}]
[{"$f":"CONCATENATE(tblREGASSJune19[[#This Row],[Primary Account]],tblREGASSJune19[[#This Row],[Primary Name]],tblREGASSJune19[[#This Row],[Secondary Acct]],tblREGASSJune19[[#This Row],[Secondary  Name]],tblREGASSJune19[[#This Row],[Alloc4FUNC]])","v":"1823920DSR COSTS AMORTIZED104019PORTFOLIO - IDAHO 2016OTHER"},1823920,"DSR COSTS AMORTIZED",104019,"PORTFOLIO - IDAHO 2016","OTHER",5.7778499999999999,{"$f":"IF(OR(tblREGASSJune19[[#This Row],[Alloc]]=\"IDU\",tblREGASSJune19[[#This Row],[Alloc]]=\"OR\",tblREGASSJune19[[#This Row],[Alloc]]=\"UT\",tblREGASSJune19[[#This Row],[Alloc]]=\"WYU\",tblREGASSJune19[[#This Row],[Alloc]]=\"WYP\",tblREGASSJune19[[#This Row],[Alloc]]=\"CA\",tblREGASSJune19[[#This Row],[Alloc]]=\"WA\"),\"SITUS\",tblREGASSJune19[[#This Row],[Alloc]])","v":"OTHER"},{"$f":"INDEX(tblREGASSLookup[FUNC],MATCH(tblREGASSJune19[[#This Row],[Concat]],tblREGASSLookup[Concat],0))","v":"CUST"},{"$f":"IF(tblREGASSJune19[[#This Row],[Total ($000)]]=0,\"NO\",IF(ISNA(tblREGASSJune19[[#This Row],[FUNC]]),\"YES\",IF(_xlfn.ISFORMULA(tblREGASSJune19[[#This Row],[FUNC]]),\"NO\",\"YES\")))","v":"NO"}]
[{"$f":"CONCATENATE(tblREGASSJune19[[#This Row],[Primary Account]],tblREGASSJune19[[#This Row],[Primary Name]],tblREGASSJune19[[#This Row],[Secondary Acct]],tblREGASSJune19[[#This Row],[Secondary  Name]],tblREGASSJune19[[#This Row],[Alloc4FUNC]])","v":"1823920DSR COSTS AMORTIZED104020Portfolio - EM&V C&I - ID- 2016OTHER"},1823920,"DSR COSTS AMORTIZED",104020,"Portfolio - EM&V C&I - ID- 2016","OTHER",165.88249999999999,{"$f":"IF(OR(tblREGASSJune19[[#This Row],[Alloc]]=\"IDU\",tblREGASSJune19[[#This Row],[Alloc]]=\"OR\",tblREGASSJune19[[#This Row],[Alloc]]=\"UT\",tblREGASSJune19[[#This Row],[Alloc]]=\"WYU\",tblREGASSJune19[[#This Row],[Alloc]]=\"WYP\",tblREGASSJune19[[#This Row],[Alloc]]=\"CA\",tblREGASSJune19[[#This Row],[Alloc]]=\"WA\"),\"SITUS\",tblREGASSJune19[[#This Row],[Alloc]])","v":"OTHER"},{"$f":"INDEX(tblREGASSLookup[FUNC],MATCH(tblREGASSJune19[[#This Row],[Concat]],tblREGASSLookup[Concat],0))","v":"CUST"},{"$f":"IF(tblREGASSJune19[[#This Row],[Total ($000)]]=0,\"NO\",IF(ISNA(tblREGASSJune19[[#This Row],[FUNC]]),\"YES\",IF(_xlfn.ISFORMULA(tblREGASSJune19[[#This Row],[FUNC]]),\"NO\",\"YES\")))","v":"NO"}]
[{"$f":"CONCATENATE(tblREGASSJune19[[#This Row],[Primary Account]],tblREGASSJune19[[#This Row],[Primary Name]],tblREGASSJune19[[#This Row],[Secondary Acct]],tblREGASSJune19[[#This Row],[Secondary  Name]],tblREGASSJune19[[#This Row],[Alloc4FUNC]])","v":"1823920DSR COSTS AMORTIZED104021Portfolio - EM&V RES - ID- 2016OTHER"},1823920,"DSR COSTS AMORTIZED",104021,"Portfolio - EM&V RES - ID- 2016","OTHER",164.61161000000001,{"$f":"IF(OR(tblREGASSJune19[[#This Row],[Alloc]]=\"IDU\",tblREGASSJune19[[#This Row],[Alloc]]=\"OR\",tblREGASSJune19[[#This Row],[Alloc]]=\"UT\",tblREGASSJune19[[#This Row],[Alloc]]=\"WYU\",tblREGASSJune19[[#This Row],[Alloc]]=\"WYP\",tblREGASSJune19[[#This Row],[Alloc]]=\"CA\",tblREGASSJune19[[#This Row],[Alloc]]=\"WA\"),\"SITUS\",tblREGASSJune19[[#This Row],[Alloc]])","v":"OTHER"},{"$f":"INDEX(tblREGASSLookup[FUNC],MATCH(tblREGASSJune19[[#This Row],[Concat]],tblREGASSLookup[Concat],0))","v":"CUST"},{"$f":"IF(tblREGASSJune19[[#This Row],[Total ($000)]]=0,\"NO\",IF(ISNA(tblREGASSJune19[[#This Row],[FUNC]]),\"YES\",IF(_xlfn.ISFORMULA(tblREGASSJune19[[#This Row],[FUNC]]),\"NO\",\"YES\")))","v":"NO"}]
[{"$f":"CONCATENATE(tblREGASSJune19[[#This Row],[Primary Account]],tblREGASSJune19[[#This Row],[Primary Name]],tblREGASSJune19[[#This Row],[Secondary Acct]],tblREGASSJune19[[#This Row],[Secondary  Name]],tblREGASSJune19[[#This Row],[Alloc4FUNC]])","v":"1823920DSR COSTS AMORTIZED104023WSB Small Business Comm - ID-2016OTHER"},1823920,"DSR COSTS AMORTIZED",104023,"WSB Small Business Comm - ID-2016","OTHER",1392.49982,{"$f":"IF(OR(tblREGASSJune19[[#This Row],[Alloc]]=\"IDU\",tblREGASSJune19[[#This Row],[Alloc]]=\"OR\",tblREGASSJune19[[#This Row],[Alloc]]=\"UT\",tblREGASSJune19[[#This Row],[Alloc]]=\"WYU\",tblREGASSJune19[[#This Row],[Alloc]]=\"WYP\",tblREGASSJune19[[#This Row],[Alloc]]=\"CA\",tblREGASSJune19[[#This Row],[Alloc]]=\"WA\"),\"SITUS\",tblREGASSJune19[[#This Row],[Alloc]])","v":"OTHER"},{"$f":"INDEX(tblREGASSLookup[FUNC],MATCH(tblREGASSJune19[[#This Row],[Concat]],tblREGASSLookup[Concat],0))","v":"CUST"},{"$f":"IF(tblREGASSJune19[[#This Row],[Total ($000)]]=0,\"NO\",IF(ISNA(tblREGASSJune19[[#This Row],[FUNC]]),\"YES\",IF(_xlfn.ISFORMULA(tblREGASSJune19[[#This Row],[FUNC]]),\"NO\",\"YES\")))","v":"NO"}]
[{"$f":"CONCATENATE(tblREGASSJune19[[#This Row],[Primary Account]],tblREGASSJune19[[#This Row],[Primary Name]],tblREGASSJune19[[#This Row],[Secondary Acct]],tblREGASSJune19[[#This Row],[Secondary  Name]],tblREGASSJune19[[#This Row],[Alloc4FUNC]])","v":"1823920DSR COSTS AMORTIZED104024WSB Small Business Ind - ID 2016OTHER"},1823920,"DSR COSTS AMORTIZED",104024,"WSB Small Business Ind - ID 2016","OTHER",220.06164000000001,{"$f":"IF(OR(tblREGASSJune19[[#This Row],[Alloc]]=\"IDU\",tblREGASSJune19[[#This Row],[Alloc]]=\"OR\",tblREGASSJune19[[#This Row],[Alloc]]=\"UT\",tblREGASSJune19[[#This Row],[Alloc]]=\"WYU\",tblREGASSJune19[[#This Row],[Alloc]]=\"WYP\",tblREGASSJune19[[#This Row],[Alloc]]=\"CA\",tblREGASSJune19[[#This Row],[Alloc]]=\"WA\"),\"SITUS\",tblREGASSJune19[[#This Row],[Alloc]])","v":"OTHER"},{"$f":"INDEX(tblREGASSLookup[FUNC],MATCH(tblREGASSJune19[[#This Row],[Concat]],tblREGASSLookup[Concat],0))","v":"CUST"},{"$f":"IF(tblREGASSJune19[[#This Row],[Total ($000)]]=0,\"NO\",IF(ISNA(tblREGASSJune19[[#This Row],[FUNC]]),\"YES\",IF(_xlfn.ISFORMULA(tblREGASSJune19[[#This Row],[FUNC]]),\"NO\",\"YES\")))","v":"NO"}]
[{"$f":"CONCATENATE(tblREGASSJune19[[#This Row],[Primary Account]],tblREGASSJune19[[#This Row],[Primary Name]],tblREGASSJune19[[#This Row],[Secondary Acct]],tblREGASSJune19[[#This Row],[Secondary  Name]],tblREGASSJune19[[#This Row],[Alloc4FUNC]])","v":"1823920DSR COSTS AMORTIZED104025WSB - WATTSMART BUSINESS - ID- 2016OTHER"},1823920,"DSR COSTS AMORTIZED",104025,"WSB - WATTSMART BUSINESS - ID- 2016","OTHER",606.84477000000004,{"$f":"IF(OR(tblREGASSJune19[[#This Row],[Alloc]]=\"IDU\",tblREGASSJune19[[#This Row],[Alloc]]=\"OR\",tblREGASSJune19[[#This Row],[Alloc]]=\"UT\",tblREGASSJune19[[#This Row],[Alloc]]=\"WYU\",tblREGASSJune19[[#This Row],[Alloc]]=\"WYP\",tblREGASSJune19[[#This Row],[Alloc]]=\"CA\",tblREGASSJune19[[#This Row],[Alloc]]=\"WA\"),\"SITUS\",tblREGASSJune19[[#This Row],[Alloc]])","v":"OTHER"},{"$f":"INDEX(tblREGASSLookup[FUNC],MATCH(tblREGASSJune19[[#This Row],[Concat]],tblREGASSLookup[Concat],0))","v":"CUST"},{"$f":"IF(tblREGASSJune19[[#This Row],[Total ($000)]]=0,\"NO\",IF(ISNA(tblREGASSJune19[[#This Row],[FUNC]]),\"YES\",IF(_xlfn.ISFORMULA(tblREGASSJune19[[#This Row],[FUNC]]),\"NO\",\"YES\")))","v":"NO"}]
[{"$f":"CONCATENATE(tblREGASSJune19[[#This Row],[Primary Account]],tblREGASSJune19[[#This Row],[Primary Name]],tblREGASSJune19[[#This Row],[Secondary Acct]],tblREGASSJune19[[#This Row],[Secondary  Name]],tblREGASSJune19[[#This Row],[Alloc4FUNC]])","v":"1823920DSR COSTS AMORTIZED104026WSB Wattsmart Business Agric - ID-2016OTHER"},1823920,"DSR COSTS AMORTIZED",104026,"WSB Wattsmart Business Agric - ID-2016","OTHER",311.15789000000001,{"$f":"IF(OR(tblREGASSJune19[[#This Row],[Alloc]]=\"IDU\",tblREGASSJune19[[#This Row],[Alloc]]=\"OR\",tblREGASSJune19[[#This Row],[Alloc]]=\"UT\",tblREGASSJune19[[#This Row],[Alloc]]=\"WYU\",tblREGASSJune19[[#This Row],[Alloc]]=\"WYP\",tblREGASSJune19[[#This Row],[Alloc]]=\"CA\",tblREGASSJune19[[#This Row],[Alloc]]=\"WA\"),\"SITUS\",tblREGASSJune19[[#This Row],[Alloc]])","v":"OTHER"},{"$f":"INDEX(tblREGASSLookup[FUNC],MATCH(tblREGASSJune19[[#This Row],[Concat]],tblREGASSLookup[Concat],0))","v":"CUST"},{"$f":"IF(tblREGASSJune19[[#This Row],[Total ($000)]]=0,\"NO\",IF(ISNA(tblREGASSJune19[[#This Row],[FUNC]]),\"YES\",IF(_xlfn.ISFORMULA(tblREGASSJune19[[#This Row],[FUNC]]),\"NO\",\"YES\")))","v":"NO"}]
[{"$f":"CONCATENATE(tblREGASSJune19[[#This Row],[Primary Account]],tblREGASSJune19[[#This Row],[Primary Name]],tblREGASSJune19[[#This Row],[Secondary Acct]],tblREGASSJune19[[#This Row],[Secondary  Name]],tblREGASSJune19[[#This Row],[Alloc4FUNC]])","v":"1823920DSR COSTS AMORTIZED104027A/C LOAD CONTROL - RESIDENTIAL/UTAH - 20OTHER"},1823920,"DSR COSTS AMORTIZED",104027,"A/C LOAD CONTROL - RESIDENTIAL/UTAH - 20","OTHER",4956.9313000000002,{"$f":"IF(OR(tblREGASSJune19[[#This Row],[Alloc]]=\"IDU\",tblREGASSJune19[[#This Row],[Alloc]]=\"OR\",tblREGASSJune19[[#This Row],[Alloc]]=\"UT\",tblREGASSJune19[[#This Row],[Alloc]]=\"WYU\",tblREGASSJune19[[#This Row],[Alloc]]=\"WYP\",tblREGASSJune19[[#This Row],[Alloc]]=\"CA\",tblREGASSJune19[[#This Row],[Alloc]]=\"WA\"),\"SITUS\",tblREGASSJune19[[#This Row],[Alloc]])","v":"OTHER"},{"$f":"INDEX(tblREGASSLookup[FUNC],MATCH(tblREGASSJune19[[#This Row],[Concat]],tblREGASSLookup[Concat],0))","v":"CUST"},{"$f":"IF(tblREGASSJune19[[#This Row],[Total ($000)]]=0,\"NO\",IF(ISNA(tblREGASSJune19[[#This Row],[FUNC]]),\"YES\",IF(_xlfn.ISFORMULA(tblREGASSJune19[[#This Row],[FUNC]]),\"NO\",\"YES\")))","v":"NO"}]
[{"$f":"CONCATENATE(tblREGASSJune19[[#This Row],[Primary Account]],tblREGASSJune19[[#This Row],[Primary Name]],tblREGASSJune19[[#This Row],[Secondary Acct]],tblREGASSJune19[[#This Row],[Secondary  Name]],tblREGASSJune19[[#This Row],[Alloc4FUNC]])","v":"1823920DSR COSTS AMORTIZED104029HOME ENERGY EFF INCENTIVE PROG - UT 2016OTHER"},1823920,"DSR COSTS AMORTIZED",104029,"HOME ENERGY EFF INCENTIVE PROG - UT 2016","OTHER",12571.77735,{"$f":"IF(OR(tblREGASSJune19[[#This Row],[Alloc]]=\"IDU\",tblREGASSJune19[[#This Row],[Alloc]]=\"OR\",tblREGASSJune19[[#This Row],[Alloc]]=\"UT\",tblREGASSJune19[[#This Row],[Alloc]]=\"WYU\",tblREGASSJune19[[#This Row],[Alloc]]=\"WYP\",tblREGASSJune19[[#This Row],[Alloc]]=\"CA\",tblREGASSJune19[[#This Row],[Alloc]]=\"WA\"),\"SITUS\",tblREGASSJune19[[#This Row],[Alloc]])","v":"OTHER"},{"$f":"INDEX(tblREGASSLookup[FUNC],MATCH(tblREGASSJune19[[#This Row],[Concat]],tblREGASSLookup[Concat],0))","v":"CUST"},{"$f":"IF(tblREGASSJune19[[#This Row],[Total ($000)]]=0,\"NO\",IF(ISNA(tblREGASSJune19[[#This Row],[FUNC]]),\"YES\",IF(_xlfn.ISFORMULA(tblREGASSJune19[[#This Row],[FUNC]]),\"NO\",\"YES\")))","v":"NO"}]
[{"$f":"CONCATENATE(tblREGASSJune19[[#This Row],[Primary Account]],tblREGASSJune19[[#This Row],[Primary Name]],tblREGASSJune19[[#This Row],[Secondary Acct]],tblREGASSJune19[[#This Row],[Secondary  Name]],tblREGASSJune19[[#This Row],[Alloc4FUNC]])","v":"1823920DSR COSTS AMORTIZED104030HOME ENERGY REPORTING - UT 2016OTHER"},1823920,"DSR COSTS AMORTIZED",104030,"HOME ENERGY REPORTING - UT 2016","OTHER",2335.3649799999998,{"$f":"IF(OR(tblREGASSJune19[[#This Row],[Alloc]]=\"IDU\",tblREGASSJune19[[#This Row],[Alloc]]=\"OR\",tblREGASSJune19[[#This Row],[Alloc]]=\"UT\",tblREGASSJune19[[#This Row],[Alloc]]=\"WYU\",tblREGASSJune19[[#This Row],[Alloc]]=\"WYP\",tblREGASSJune19[[#This Row],[Alloc]]=\"CA\",tblREGASSJune19[[#This Row],[Alloc]]=\"WA\"),\"SITUS\",tblREGASSJune19[[#This Row],[Alloc]])","v":"OTHER"},{"$f":"INDEX(tblREGASSLookup[FUNC],MATCH(tblREGASSJune19[[#This Row],[Concat]],tblREGASSLookup[Concat],0))","v":"CUST"},{"$f":"IF(tblREGASSJune19[[#This Row],[Total ($000)]]=0,\"NO\",IF(ISNA(tblREGASSJune19[[#This Row],[FUNC]]),\"YES\",IF(_xlfn.ISFORMULA(tblREGASSJune19[[#This Row],[FUNC]]),\"NO\",\"YES\")))","v":"NO"}]
[{"$f":"CONCATENATE(tblREGASSJune19[[#This Row],[Primary Account]],tblREGASSJune19[[#This Row],[Primary Name]],tblREGASSJune19[[#This Row],[Secondary Acct]],tblREGASSJune19[[#This Row],[Secondary  Name]],tblREGASSJune19[[#This Row],[Alloc4FUNC]])","v":"1823920DSR COSTS AMORTIZED104031IRRIGATION LOAD CONTROL  - UTAH - 2016OTHER"},1823920,"DSR COSTS AMORTIZED",104031,"IRRIGATION LOAD CONTROL  - UTAH - 2016","OTHER",429.74952000000002,{"$f":"IF(OR(tblREGASSJune19[[#This Row],[Alloc]]=\"IDU\",tblREGASSJune19[[#This Row],[Alloc]]=\"OR\",tblREGASSJune19[[#This Row],[Alloc]]=\"UT\",tblREGASSJune19[[#This Row],[Alloc]]=\"WYU\",tblREGASSJune19[[#This Row],[Alloc]]=\"WYP\",tblREGASSJune19[[#This Row],[Alloc]]=\"CA\",tblREGASSJune19[[#This Row],[Alloc]]=\"WA\"),\"SITUS\",tblREGASSJune19[[#This Row],[Alloc]])","v":"OTHER"},{"$f":"INDEX(tblREGASSLookup[FUNC],MATCH(tblREGASSJune19[[#This Row],[Concat]],tblREGASSLookup[Concat],0))","v":"CUST"},{"$f":"IF(tblREGASSJune19[[#This Row],[Total ($000)]]=0,\"NO\",IF(ISNA(tblREGASSJune19[[#This Row],[FUNC]]),\"YES\",IF(_xlfn.ISFORMULA(tblREGASSJune19[[#This Row],[FUNC]]),\"NO\",\"YES\")))","v":"NO"}]
[{"$f":"CONCATENATE(tblREGASSJune19[[#This Row],[Primary Account]],tblREGASSJune19[[#This Row],[Primary Name]],tblREGASSJune19[[#This Row],[Secondary Acct]],tblREGASSJune19[[#This Row],[Secondary  Name]],tblREGASSJune19[[#This Row],[Alloc4FUNC]])","v":"1823920DSR COSTS AMORTIZED104032LOW INCOME - UTAH - 2016OTHER"},1823920,"DSR COSTS AMORTIZED",104032,"LOW INCOME - UTAH - 2016","OTHER",58.891030000000001,{"$f":"IF(OR(tblREGASSJune19[[#This Row],[Alloc]]=\"IDU\",tblREGASSJune19[[#This Row],[Alloc]]=\"OR\",tblREGASSJune19[[#This Row],[Alloc]]=\"UT\",tblREGASSJune19[[#This Row],[Alloc]]=\"WYU\",tblREGASSJune19[[#This Row],[Alloc]]=\"WYP\",tblREGASSJune19[[#This Row],[Alloc]]=\"CA\",tblREGASSJune19[[#This Row],[Alloc]]=\"WA\"),\"SITUS\",tblREGASSJune19[[#This Row],[Alloc]])","v":"OTHER"},{"$f":"INDEX(tblREGASSLookup[FUNC],MATCH(tblREGASSJune19[[#This Row],[Concat]],tblREGASSLookup[Concat],0))","v":"CUST"},{"$f":"IF(tblREGASSJune19[[#This Row],[Total ($000)]]=0,\"NO\",IF(ISNA(tblREGASSJune19[[#This Row],[FUNC]]),\"YES\",IF(_xlfn.ISFORMULA(tblREGASSJune19[[#This Row],[FUNC]]),\"NO\",\"YES\")))","v":"NO"}]
[{"$f":"CONCATENATE(tblREGASSJune19[[#This Row],[Primary Account]],tblREGASSJune19[[#This Row],[Primary Name]],tblREGASSJune19[[#This Row],[Secondary Acct]],tblREGASSJune19[[#This Row],[Secondary  Name]],tblREGASSJune19[[#This Row],[Alloc4FUNC]])","v":"1823920DSR COSTS AMORTIZED104033OUTREACH and COMMUNICATIONS - UT 2016OTHER"},1823920,"DSR COSTS AMORTIZED",104033,"OUTREACH and COMMUNICATIONS - UT 2016","OTHER",1312.53,{"$f":"IF(OR(tblREGASSJune19[[#This Row],[Alloc]]=\"IDU\",tblREGASSJune19[[#This Row],[Alloc]]=\"OR\",tblREGASSJune19[[#This Row],[Alloc]]=\"UT\",tblREGASSJune19[[#This Row],[Alloc]]=\"WYU\",tblREGASSJune19[[#This Row],[Alloc]]=\"WYP\",tblREGASSJune19[[#This Row],[Alloc]]=\"CA\",tblREGASSJune19[[#This Row],[Alloc]]=\"WA\"),\"SITUS\",tblREGASSJune19[[#This Row],[Alloc]])","v":"OTHER"},{"$f":"INDEX(tblREGASSLookup[FUNC],MATCH(tblREGASSJune19[[#This Row],[Concat]],tblREGASSLookup[Concat],0))","v":"CUST"},{"$f":"IF(tblREGASSJune19[[#This Row],[Total ($000)]]=0,\"NO\",IF(ISNA(tblREGASSJune19[[#This Row],[FUNC]]),\"YES\",IF(_xlfn.ISFORMULA(tblREGASSJune19[[#This Row],[FUNC]]),\"NO\",\"YES\")))","v":"NO"}]
[{"$f":"CONCATENATE(tblREGASSJune19[[#This Row],[Primary Account]],tblREGASSJune19[[#This Row],[Primary Name]],tblREGASSJune19[[#This Row],[Secondary Acct]],tblREGASSJune19[[#This Row],[Secondary  Name]],tblREGASSJune19[[#This Row],[Alloc4FUNC]])","v":"1823920DSR COSTS AMORTIZED104034PORTFOLIO - UTAH 2016OTHER"},1823920,"DSR COSTS AMORTIZED",104034,"PORTFOLIO - UTAH 2016","OTHER",164.42179999999999,{"$f":"IF(OR(tblREGASSJune19[[#This Row],[Alloc]]=\"IDU\",tblREGASSJune19[[#This Row],[Alloc]]=\"OR\",tblREGASSJune19[[#This Row],[Alloc]]=\"UT\",tblREGASSJune19[[#This Row],[Alloc]]=\"WYU\",tblREGASSJune19[[#This Row],[Alloc]]=\"WYP\",tblREGASSJune19[[#This Row],[Alloc]]=\"CA\",tblREGASSJune19[[#This Row],[Alloc]]=\"WA\"),\"SITUS\",tblREGASSJune19[[#This Row],[Alloc]])","v":"OTHER"},{"$f":"INDEX(tblREGASSLookup[FUNC],MATCH(tblREGASSJune19[[#This Row],[Concat]],tblREGASSLookup[Concat],0))","v":"CUST"},{"$f":"IF(tblREGASSJune19[[#This Row],[Total ($000)]]=0,\"NO\",IF(ISNA(tblREGASSJune19[[#This Row],[FUNC]]),\"YES\",IF(_xlfn.ISFORMULA(tblREGASSJune19[[#This Row],[FUNC]]),\"NO\",\"YES\")))","v":"NO"}]
[{"$f":"CONCATENATE(tblREGASSJune19[[#This Row],[Primary Account]],tblREGASSJune19[[#This Row],[Primary Name]],tblREGASSJune19[[#This Row],[Secondary Acct]],tblREGASSJune19[[#This Row],[Secondary  Name]],tblREGASSJune19[[#This Row],[Alloc4FUNC]])","v":"1823920DSR COSTS AMORTIZED104035REFRIGERATOR RECYCLING PGM- UTAH - 2016OTHER"},1823920,"DSR COSTS AMORTIZED",104035,"REFRIGERATOR RECYCLING PGM- UTAH - 2016","OTHER",182.22494,{"$f":"IF(OR(tblREGASSJune19[[#This Row],[Alloc]]=\"IDU\",tblREGASSJune19[[#This Row],[Alloc]]=\"OR\",tblREGASSJune19[[#This Row],[Alloc]]=\"UT\",tblREGASSJune19[[#This Row],[Alloc]]=\"WYU\",tblREGASSJune19[[#This Row],[Alloc]]=\"WYP\",tblREGASSJune19[[#This Row],[Alloc]]=\"CA\",tblREGASSJune19[[#This Row],[Alloc]]=\"WA\"),\"SITUS\",tblREGASSJune19[[#This Row],[Alloc]])","v":"OTHER"},{"$f":"INDEX(tblREGASSLookup[FUNC],MATCH(tblREGASSJune19[[#This Row],[Concat]],tblREGASSLookup[Concat],0))","v":"CUST"},{"$f":"IF(tblREGASSJune19[[#This Row],[Total ($000)]]=0,\"NO\",IF(ISNA(tblREGASSJune19[[#This Row],[FUNC]]),\"YES\",IF(_xlfn.ISFORMULA(tblREGASSJune19[[#This Row],[FUNC]]),\"NO\",\"YES\")))","v":"NO"}]
[{"$f":"CONCATENATE(tblREGASSJune19[[#This Row],[Primary Account]],tblREGASSJune19[[#This Row],[Primary Name]],tblREGASSJune19[[#This Row],[Secondary Acct]],tblREGASSJune19[[#This Row],[Secondary  Name]],tblREGASSJune19[[#This Row],[Alloc4FUNC]])","v":"1823920DSR COSTS AMORTIZED104036RESIDENTIAL NEW CONSTRUCTION - UTAH - 20OTHER"},1823920,"DSR COSTS AMORTIZED",104036,"RESIDENTIAL NEW CONSTRUCTION - UTAH - 20","OTHER",1565.4318000000001,{"$f":"IF(OR(tblREGASSJune19[[#This Row],[Alloc]]=\"IDU\",tblREGASSJune19[[#This Row],[Alloc]]=\"OR\",tblREGASSJune19[[#This Row],[Alloc]]=\"UT\",tblREGASSJune19[[#This Row],[Alloc]]=\"WYU\",tblREGASSJune19[[#This Row],[Alloc]]=\"WYP\",tblREGASSJune19[[#This Row],[Alloc]]=\"CA\",tblREGASSJune19[[#This Row],[Alloc]]=\"WA\"),\"SITUS\",tblREGASSJune19[[#This Row],[Alloc]])","v":"OTHER"},{"$f":"INDEX(tblREGASSLookup[FUNC],MATCH(tblREGASSJune19[[#This Row],[Concat]],tblREGASSLookup[Concat],0))","v":"CUST"},{"$f":"IF(tblREGASSJune19[[#This Row],[Total ($000)]]=0,\"NO\",IF(ISNA(tblREGASSJune19[[#This Row],[FUNC]]),\"YES\",IF(_xlfn.ISFORMULA(tblREGASSJune19[[#This Row],[FUNC]]),\"NO\",\"YES\")))","v":"NO"}]
[{"$f":"CONCATENATE(tblREGASSJune19[[#This Row],[Primary Account]],tblREGASSJune19[[#This Row],[Primary Name]],tblREGASSJune19[[#This Row],[Secondary Acct]],tblREGASSJune19[[#This Row],[Secondary  Name]],tblREGASSJune19[[#This Row],[Alloc4FUNC]])","v":"1823920DSR COSTS AMORTIZED104037COMMERCIAL (WSB) WATTSMART BUS - UT- 201OTHER"},1823920,"DSR COSTS AMORTIZED",104037,"COMMERCIAL (WSB) WATTSMART BUS - UT- 201","OTHER",20226.021410000001,{"$f":"IF(OR(tblREGASSJune19[[#This Row],[Alloc]]=\"IDU\",tblREGASSJune19[[#This Row],[Alloc]]=\"OR\",tblREGASSJune19[[#This Row],[Alloc]]=\"UT\",tblREGASSJune19[[#This Row],[Alloc]]=\"WYU\",tblREGASSJune19[[#This Row],[Alloc]]=\"WYP\",tblREGASSJune19[[#This Row],[Alloc]]=\"CA\",tblREGASSJune19[[#This Row],[Alloc]]=\"WA\"),\"SITUS\",tblREGASSJune19[[#This Row],[Alloc]])","v":"OTHER"},{"$f":"INDEX(tblREGASSLookup[FUNC],MATCH(tblREGASSJune19[[#This Row],[Concat]],tblREGASSLookup[Concat],0))","v":"CUST"},{"$f":"IF(tblREGASSJune19[[#This Row],[Total ($000)]]=0,\"NO\",IF(ISNA(tblREGASSJune19[[#This Row],[FUNC]]),\"YES\",IF(_xlfn.ISFORMULA(tblREGASSJune19[[#This Row],[FUNC]]),\"NO\",\"YES\")))","v":"NO"}]
[{"$f":"CONCATENATE(tblREGASSJune19[[#This Row],[Primary Account]],tblREGASSJune19[[#This Row],[Primary Name]],tblREGASSJune19[[#This Row],[Secondary Acct]],tblREGASSJune19[[#This Row],[Secondary  Name]],tblREGASSJune19[[#This Row],[Alloc4FUNC]])","v":"1823920DSR COSTS AMORTIZED104038INDUSTRIAL (WSB) WATTSMART BUS- UT- 2016OTHER"},1823920,"DSR COSTS AMORTIZED",104038,"INDUSTRIAL (WSB) WATTSMART BUS- UT- 2016","OTHER",10333.15,{"$f":"IF(OR(tblREGASSJune19[[#This Row],[Alloc]]=\"IDU\",tblREGASSJune19[[#This Row],[Alloc]]=\"OR\",tblREGASSJune19[[#This Row],[Alloc]]=\"UT\",tblREGASSJune19[[#This Row],[Alloc]]=\"WYU\",tblREGASSJune19[[#This Row],[Alloc]]=\"WYP\",tblREGASSJune19[[#This Row],[Alloc]]=\"CA\",tblREGASSJune19[[#This Row],[Alloc]]=\"WA\"),\"SITUS\",tblREGASSJune19[[#This Row],[Alloc]])","v":"OTHER"},{"$f":"INDEX(tblREGASSLookup[FUNC],MATCH(tblREGASSJune19[[#This Row],[Concat]],tblREGASSLookup[Concat],0))","v":"CUST"},{"$f":"IF(tblREGASSJune19[[#This Row],[Total ($000)]]=0,\"NO\",IF(ISNA(tblREGASSJune19[[#This Row],[FUNC]]),\"YES\",IF(_xlfn.ISFORMULA(tblREGASSJune19[[#This Row],[FUNC]]),\"NO\",\"YES\")))","v":"NO"}]
[{"$f":"CONCATENATE(tblREGASSJune19[[#This Row],[Primary Account]],tblREGASSJune19[[#This Row],[Primary Name]],tblREGASSJune19[[#This Row],[Secondary Acct]],tblREGASSJune19[[#This Row],[Secondary  Name]],tblREGASSJune19[[#This Row],[Alloc4FUNC]])","v":"1823920DSR COSTS AMORTIZED104039WSB Small Business Comm- UT-2016OTHER"},1823920,"DSR COSTS AMORTIZED",104039,"WSB Small Business Comm- UT-2016","OTHER",113.69498,{"$f":"IF(OR(tblREGASSJune19[[#This Row],[Alloc]]=\"IDU\",tblREGASSJune19[[#This Row],[Alloc]]=\"OR\",tblREGASSJune19[[#This Row],[Alloc]]=\"UT\",tblREGASSJune19[[#This Row],[Alloc]]=\"WYU\",tblREGASSJune19[[#This Row],[Alloc]]=\"WYP\",tblREGASSJune19[[#This Row],[Alloc]]=\"CA\",tblREGASSJune19[[#This Row],[Alloc]]=\"WA\"),\"SITUS\",tblREGASSJune19[[#This Row],[Alloc]])","v":"OTHER"},{"$f":"INDEX(tblREGASSLookup[FUNC],MATCH(tblREGASSJune19[[#This Row],[Concat]],tblREGASSLookup[Concat],0))","v":"CUST"},{"$f":"IF(tblREGASSJune19[[#This Row],[Total ($000)]]=0,\"NO\",IF(ISNA(tblREGASSJune19[[#This Row],[FUNC]]),\"YES\",IF(_xlfn.ISFORMULA(tblREGASSJune19[[#This Row],[FUNC]]),\"NO\",\"YES\")))","v":"NO"}]
[{"$f":"CONCATENATE(tblREGASSJune19[[#This Row],[Primary Account]],tblREGASSJune19[[#This Row],[Primary Name]],tblREGASSJune19[[#This Row],[Secondary Acct]],tblREGASSJune19[[#This Row],[Secondary  Name]],tblREGASSJune19[[#This Row],[Alloc4FUNC]])","v":"1823920DSR COSTS AMORTIZED104041WSB - WATTSMART BUS- UT- 2016OTHER"},1823920,"DSR COSTS AMORTIZED",104041,"WSB - WATTSMART BUS- UT- 2016","OTHER",5307.5627299999996,{"$f":"IF(OR(tblREGASSJune19[[#This Row],[Alloc]]=\"IDU\",tblREGASSJune19[[#This Row],[Alloc]]=\"OR\",tblREGASSJune19[[#This Row],[Alloc]]=\"UT\",tblREGASSJune19[[#This Row],[Alloc]]=\"WYU\",tblREGASSJune19[[#This Row],[Alloc]]=\"WYP\",tblREGASSJune19[[#This Row],[Alloc]]=\"CA\",tblREGASSJune19[[#This Row],[Alloc]]=\"WA\"),\"SITUS\",tblREGASSJune19[[#This Row],[Alloc]])","v":"OTHER"},{"$f":"INDEX(tblREGASSLookup[FUNC],MATCH(tblREGASSJune19[[#This Row],[Concat]],tblREGASSLookup[Concat],0))","v":"CUST"},{"$f":"IF(tblREGASSJune19[[#This Row],[Total ($000)]]=0,\"NO\",IF(ISNA(tblREGASSJune19[[#This Row],[FUNC]]),\"YES\",IF(_xlfn.ISFORMULA(tblREGASSJune19[[#This Row],[FUNC]]),\"NO\",\"YES\")))","v":"NO"}]
[{"$f":"CONCATENATE(tblREGASSJune19[[#This Row],[Primary Account]],tblREGASSJune19[[#This Row],[Primary Name]],tblREGASSJune19[[#This Row],[Secondary Acct]],tblREGASSJune19[[#This Row],[Secondary  Name]],tblREGASSJune19[[#This Row],[Alloc4FUNC]])","v":"1823920DSR COSTS AMORTIZED104042AGRICULTURAL (WSB) WATTSMART BUS- UT- 20OTHER"},1823920,"DSR COSTS AMORTIZED",104042,"AGRICULTURAL (WSB) WATTSMART BUS- UT- 20","OTHER",1098.96389,{"$f":"IF(OR(tblREGASSJune19[[#This Row],[Alloc]]=\"IDU\",tblREGASSJune19[[#This Row],[Alloc]]=\"OR\",tblREGASSJune19[[#This Row],[Alloc]]=\"UT\",tblREGASSJune19[[#This Row],[Alloc]]=\"WYU\",tblREGASSJune19[[#This Row],[Alloc]]=\"WYP\",tblREGASSJune19[[#This Row],[Alloc]]=\"CA\",tblREGASSJune19[[#This Row],[Alloc]]=\"WA\"),\"SITUS\",tblREGASSJune19[[#This Row],[Alloc]])","v":"OTHER"},{"$f":"INDEX(tblREGASSLookup[FUNC],MATCH(tblREGASSJune19[[#This Row],[Concat]],tblREGASSLookup[Concat],0))","v":"CUST"},{"$f":"IF(tblREGASSJune19[[#This Row],[Total ($000)]]=0,\"NO\",IF(ISNA(tblREGASSJune19[[#This Row],[FUNC]]),\"YES\",IF(_xlfn.ISFORMULA(tblREGASSJune19[[#This Row],[FUNC]]),\"NO\",\"YES\")))","v":"NO"}]
[{"$f":"CONCATENATE(tblREGASSJune19[[#This Row],[Primary Account]],tblREGASSJune19[[#This Row],[Primary Name]],tblREGASSJune19[[#This Row],[Secondary Acct]],tblREGASSJune19[[#This Row],[Secondary  Name]],tblREGASSJune19[[#This Row],[Alloc4FUNC]])","v":"1823920DSR COSTS AMORTIZED104043U.of Utah Student Energy Sponsorship- UTOTHER"},1823920,"DSR COSTS AMORTIZED",104043,"U.of Utah Student Energy Sponsorship- UT","OTHER",5.3305199999999999,{"$f":"IF(OR(tblREGASSJune19[[#This Row],[Alloc]]=\"IDU\",tblREGASSJune19[[#This Row],[Alloc]]=\"OR\",tblREGASSJune19[[#This Row],[Alloc]]=\"UT\",tblREGASSJune19[[#This Row],[Alloc]]=\"WYU\",tblREGASSJune19[[#This Row],[Alloc]]=\"WYP\",tblREGASSJune19[[#This Row],[Alloc]]=\"CA\",tblREGASSJune19[[#This Row],[Alloc]]=\"WA\"),\"SITUS\",tblREGASSJune19[[#This Row],[Alloc]])","v":"OTHER"},{"$f":"INDEX(tblREGASSLookup[FUNC],MATCH(tblREGASSJune19[[#This Row],[Concat]],tblREGASSLookup[Concat],0))","v":"CUST"},{"$f":"IF(tblREGASSJune19[[#This Row],[Total ($000)]]=0,\"NO\",IF(ISNA(tblREGASSJune19[[#This Row],[FUNC]]),\"YES\",IF(_xlfn.ISFORMULA(tblREGASSJune19[[#This Row],[FUNC]]),\"NO\",\"YES\")))","v":"NO"}]
[{"$f":"CONCATENATE(tblREGASSJune19[[#This Row],[Primary Account]],tblREGASSJune19[[#This Row],[Primary Name]],tblREGASSJune19[[#This Row],[Secondary Acct]],tblREGASSJune19[[#This Row],[Secondary  Name]],tblREGASSJune19[[#This Row],[Alloc4FUNC]])","v":"1823920DSR COSTS AMORTIZED104044HOME ENERGY REPORTING - WY 2016OTHER"},1823920,"DSR COSTS AMORTIZED",104044,"HOME ENERGY REPORTING - WY 2016","OTHER",93.839259999999996,{"$f":"IF(OR(tblREGASSJune19[[#This Row],[Alloc]]=\"IDU\",tblREGASSJune19[[#This Row],[Alloc]]=\"OR\",tblREGASSJune19[[#This Row],[Alloc]]=\"UT\",tblREGASSJune19[[#This Row],[Alloc]]=\"WYU\",tblREGASSJune19[[#This Row],[Alloc]]=\"WYP\",tblREGASSJune19[[#This Row],[Alloc]]=\"CA\",tblREGASSJune19[[#This Row],[Alloc]]=\"WA\"),\"SITUS\",tblREGASSJune19[[#This Row],[Alloc]])","v":"OTHER"},{"$f":"INDEX(tblREGASSLookup[FUNC],MATCH(tblREGASSJune19[[#This Row],[Concat]],tblREGASSLookup[Concat],0))","v":"CUST"},{"$f":"IF(tblREGASSJune19[[#This Row],[Total ($000)]]=0,\"NO\",IF(ISNA(tblREGASSJune19[[#This Row],[FUNC]]),\"YES\",IF(_xlfn.ISFORMULA(tblREGASSJune19[[#This Row],[FUNC]]),\"NO\",\"YES\")))","v":"NO"}]
[{"$f":"CONCATENATE(tblREGASSJune19[[#This Row],[Primary Account]],tblREGASSJune19[[#This Row],[Primary Name]],tblREGASSJune19[[#This Row],[Secondary Acct]],tblREGASSJune19[[#This Row],[Secondary  Name]],tblREGASSJune19[[#This Row],[Alloc4FUNC]])","v":"1823920DSR COSTS AMORTIZED104045HOME ENERGY EFF INCENT PROG Y-2016 CAT1OTHER"},1823920,"DSR COSTS AMORTIZED",104045,"HOME ENERGY EFF INCENT PROG Y-2016 CAT1","OTHER",659.04978000000006,{"$f":"IF(OR(tblREGASSJune19[[#This Row],[Alloc]]=\"IDU\",tblREGASSJune19[[#This Row],[Alloc]]=\"OR\",tblREGASSJune19[[#This Row],[Alloc]]=\"UT\",tblREGASSJune19[[#This Row],[Alloc]]=\"WYU\",tblREGASSJune19[[#This Row],[Alloc]]=\"WYP\",tblREGASSJune19[[#This Row],[Alloc]]=\"CA\",tblREGASSJune19[[#This Row],[Alloc]]=\"WA\"),\"SITUS\",tblREGASSJune19[[#This Row],[Alloc]])","v":"OTHER"},{"$f":"INDEX(tblREGASSLookup[FUNC],MATCH(tblREGASSJune19[[#This Row],[Concat]],tblREGASSLookup[Concat],0))","v":"CUST"},{"$f":"IF(tblREGASSJune19[[#This Row],[Total ($000)]]=0,\"NO\",IF(ISNA(tblREGASSJune19[[#This Row],[FUNC]]),\"YES\",IF(_xlfn.ISFORMULA(tblREGASSJune19[[#This Row],[FUNC]]),\"NO\",\"YES\")))","v":"NO"}]
[{"$f":"CONCATENATE(tblREGASSJune19[[#This Row],[Primary Account]],tblREGASSJune19[[#This Row],[Primary Name]],tblREGASSJune19[[#This Row],[Secondary Acct]],tblREGASSJune19[[#This Row],[Secondary  Name]],tblREGASSJune19[[#This Row],[Alloc4FUNC]])","v":"1823920DSR COSTS AMORTIZED104046LOW-INCOME WEATHERZTN - WY 2016 CAT1OTHER"},1823920,"DSR COSTS AMORTIZED",104046,"LOW-INCOME WEATHERZTN - WY 2016 CAT1","OTHER",14.43304,{"$f":"IF(OR(tblREGASSJune19[[#This Row],[Alloc]]=\"IDU\",tblREGASSJune19[[#This Row],[Alloc]]=\"OR\",tblREGASSJune19[[#This Row],[Alloc]]=\"UT\",tblREGASSJune19[[#This Row],[Alloc]]=\"WYU\",tblREGASSJune19[[#This Row],[Alloc]]=\"WYP\",tblREGASSJune19[[#This Row],[Alloc]]=\"CA\",tblREGASSJune19[[#This Row],[Alloc]]=\"WA\"),\"SITUS\",tblREGASSJune19[[#This Row],[Alloc]])","v":"OTHER"},{"$f":"INDEX(tblREGASSLookup[FUNC],MATCH(tblREGASSJune19[[#This Row],[Concat]],tblREGASSLookup[Concat],0))","v":"CUST"},{"$f":"IF(tblREGASSJune19[[#This Row],[Total ($000)]]=0,\"NO\",IF(ISNA(tblREGASSJune19[[#This Row],[FUNC]]),\"YES\",IF(_xlfn.ISFORMULA(tblREGASSJune19[[#This Row],[FUNC]]),\"NO\",\"YES\")))","v":"NO"}]
[{"$f":"CONCATENATE(tblREGASSJune19[[#This Row],[Primary Account]],tblREGASSJune19[[#This Row],[Primary Name]],tblREGASSJune19[[#This Row],[Secondary Acct]],tblREGASSJune19[[#This Row],[Secondary  Name]],tblREGASSJune19[[#This Row],[Alloc4FUNC]])","v":"1823920DSR COSTS AMORTIZED104047OUTREACH AND COMMUNICATION WATTSMT  WY-2OTHER"},1823920,"DSR COSTS AMORTIZED",104047,"OUTREACH AND COMMUNICATION WATTSMT  WY-2","OTHER",79.419359999999998,{"$f":"IF(OR(tblREGASSJune19[[#This Row],[Alloc]]=\"IDU\",tblREGASSJune19[[#This Row],[Alloc]]=\"OR\",tblREGASSJune19[[#This Row],[Alloc]]=\"UT\",tblREGASSJune19[[#This Row],[Alloc]]=\"WYU\",tblREGASSJune19[[#This Row],[Alloc]]=\"WYP\",tblREGASSJune19[[#This Row],[Alloc]]=\"CA\",tblREGASSJune19[[#This Row],[Alloc]]=\"WA\"),\"SITUS\",tblREGASSJune19[[#This Row],[Alloc]])","v":"OTHER"},{"$f":"INDEX(tblREGASSLookup[FUNC],MATCH(tblREGASSJune19[[#This Row],[Concat]],tblREGASSLookup[Concat],0))","v":"CUST"},{"$f":"IF(tblREGASSJune19[[#This Row],[Total ($000)]]=0,\"NO\",IF(ISNA(tblREGASSJune19[[#This Row],[FUNC]]),\"YES\",IF(_xlfn.ISFORMULA(tblREGASSJune19[[#This Row],[FUNC]]),\"NO\",\"YES\")))","v":"NO"}]
[{"$f":"CONCATENATE(tblREGASSJune19[[#This Row],[Primary Account]],tblREGASSJune19[[#This Row],[Primary Name]],tblREGASSJune19[[#This Row],[Secondary Acct]],tblREGASSJune19[[#This Row],[Secondary  Name]],tblREGASSJune19[[#This Row],[Alloc4FUNC]])","v":"1823920DSR COSTS AMORTIZED104048PORTFOLIO WY-2016 CAT1OTHER"},1823920,"DSR COSTS AMORTIZED",104048,"PORTFOLIO WY-2016 CAT1","OTHER",131.45639,{"$f":"IF(OR(tblREGASSJune19[[#This Row],[Alloc]]=\"IDU\",tblREGASSJune19[[#This Row],[Alloc]]=\"OR\",tblREGASSJune19[[#This Row],[Alloc]]=\"UT\",tblREGASSJune19[[#This Row],[Alloc]]=\"WYU\",tblREGASSJune19[[#This Row],[Alloc]]=\"WYP\",tblREGASSJune19[[#This Row],[Alloc]]=\"CA\",tblREGASSJune19[[#This Row],[Alloc]]=\"WA\"),\"SITUS\",tblREGASSJune19[[#This Row],[Alloc]])","v":"OTHER"},{"$f":"INDEX(tblREGASSLookup[FUNC],MATCH(tblREGASSJune19[[#This Row],[Concat]],tblREGASSLookup[Concat],0))","v":"CUST"},{"$f":"IF(tblREGASSJune19[[#This Row],[Total ($000)]]=0,\"NO\",IF(ISNA(tblREGASSJune19[[#This Row],[FUNC]]),\"YES\",IF(_xlfn.ISFORMULA(tblREGASSJune19[[#This Row],[FUNC]]),\"NO\",\"YES\")))","v":"NO"}]
[{"$f":"CONCATENATE(tblREGASSJune19[[#This Row],[Primary Account]],tblREGASSJune19[[#This Row],[Primary Name]],tblREGASSJune19[[#This Row],[Secondary Acct]],tblREGASSJune19[[#This Row],[Secondary  Name]],tblREGASSJune19[[#This Row],[Alloc4FUNC]])","v":"1823920DSR COSTS AMORTIZED104049PORTFOLIO WY-2016 CAT2OTHER"},1823920,"DSR COSTS AMORTIZED",104049,"PORTFOLIO WY-2016 CAT2","OTHER",37.161940000000001,{"$f":"IF(OR(tblREGASSJune19[[#This Row],[Alloc]]=\"IDU\",tblREGASSJune19[[#This Row],[Alloc]]=\"OR\",tblREGASSJune19[[#This Row],[Alloc]]=\"UT\",tblREGASSJune19[[#This Row],[Alloc]]=\"WYU\",tblREGASSJune19[[#This Row],[Alloc]]=\"WYP\",tblREGASSJune19[[#This Row],[Alloc]]=\"CA\",tblREGASSJune19[[#This Row],[Alloc]]=\"WA\"),\"SITUS\",tblREGASSJune19[[#This Row],[Alloc]])","v":"OTHER"},{"$f":"INDEX(tblREGASSLookup[FUNC],MATCH(tblREGASSJune19[[#This Row],[Concat]],tblREGASSLookup[Concat],0))","v":"CUST"},{"$f":"IF(tblREGASSJune19[[#This Row],[Total ($000)]]=0,\"NO\",IF(ISNA(tblREGASSJune19[[#This Row],[FUNC]]),\"YES\",IF(_xlfn.ISFORMULA(tblREGASSJune19[[#This Row],[FUNC]]),\"NO\",\"YES\")))","v":"NO"}]
[{"$f":"CONCATENATE(tblREGASSJune19[[#This Row],[Primary Account]],tblREGASSJune19[[#This Row],[Primary Name]],tblREGASSJune19[[#This Row],[Secondary Acct]],tblREGASSJune19[[#This Row],[Secondary  Name]],tblREGASSJune19[[#This Row],[Alloc4FUNC]])","v":"1823920DSR COSTS AMORTIZED104050PORTFOLIO WY-2016 CAT3OTHER"},1823920,"DSR COSTS AMORTIZED",104050,"PORTFOLIO WY-2016 CAT3","OTHER",44.546979999999998,{"$f":"IF(OR(tblREGASSJune19[[#This Row],[Alloc]]=\"IDU\",tblREGASSJune19[[#This Row],[Alloc]]=\"OR\",tblREGASSJune19[[#This Row],[Alloc]]=\"UT\",tblREGASSJune19[[#This Row],[Alloc]]=\"WYU\",tblREGASSJune19[[#This Row],[Alloc]]=\"WYP\",tblREGASSJune19[[#This Row],[Alloc]]=\"CA\",tblREGASSJune19[[#This Row],[Alloc]]=\"WA\"),\"SITUS\",tblREGASSJune19[[#This Row],[Alloc]])","v":"OTHER"},{"$f":"INDEX(tblREGASSLookup[FUNC],MATCH(tblREGASSJune19[[#This Row],[Concat]],tblREGASSLookup[Concat],0))","v":"CUST"},{"$f":"IF(tblREGASSJune19[[#This Row],[Total ($000)]]=0,\"NO\",IF(ISNA(tblREGASSJune19[[#This Row],[FUNC]]),\"YES\",IF(_xlfn.ISFORMULA(tblREGASSJune19[[#This Row],[FUNC]]),\"NO\",\"YES\")))","v":"NO"}]
[{"$f":"CONCATENATE(tblREGASSJune19[[#This Row],[Primary Account]],tblREGASSJune19[[#This Row],[Primary Name]],tblREGASSJune19[[#This Row],[Secondary Acct]],tblREGASSJune19[[#This Row],[Secondary  Name]],tblREGASSJune19[[#This Row],[Alloc4FUNC]])","v":"1823920DSR COSTS AMORTIZED104051REFRIGERATOR RECYCLING-WY -2016 CAT1OTHER"},1823920,"DSR COSTS AMORTIZED",104051,"REFRIGERATOR RECYCLING-WY -2016 CAT1","OTHER",15.974970000000001,{"$f":"IF(OR(tblREGASSJune19[[#This Row],[Alloc]]=\"IDU\",tblREGASSJune19[[#This Row],[Alloc]]=\"OR\",tblREGASSJune19[[#This Row],[Alloc]]=\"UT\",tblREGASSJune19[[#This Row],[Alloc]]=\"WYU\",tblREGASSJune19[[#This Row],[Alloc]]=\"WYP\",tblREGASSJune19[[#This Row],[Alloc]]=\"CA\",tblREGASSJune19[[#This Row],[Alloc]]=\"WA\"),\"SITUS\",tblREGASSJune19[[#This Row],[Alloc]])","v":"OTHER"},{"$f":"INDEX(tblREGASSLookup[FUNC],MATCH(tblREGASSJune19[[#This Row],[Concat]],tblREGASSLookup[Concat],0))","v":"CUST"},{"$f":"IF(tblREGASSJune19[[#This Row],[Total ($000)]]=0,\"NO\",IF(ISNA(tblREGASSJune19[[#This Row],[FUNC]]),\"YES\",IF(_xlfn.ISFORMULA(tblREGASSJune19[[#This Row],[FUNC]]),\"NO\",\"YES\")))","v":"NO"}]
[{"$f":"CONCATENATE(tblREGASSJune19[[#This Row],[Primary Account]],tblREGASSJune19[[#This Row],[Primary Name]],tblREGASSJune19[[#This Row],[Secondary Acct]],tblREGASSJune19[[#This Row],[Secondary  Name]],tblREGASSJune19[[#This Row],[Alloc4FUNC]])","v":"1823920DSR COSTS AMORTIZED104052REFRIG RECYCLE COMM -WY 2016 CAT2OTHER"},1823920,"DSR COSTS AMORTIZED",104052,"REFRIG RECYCLE COMM -WY 2016 CAT2","OTHER",1.1307199999999999,{"$f":"IF(OR(tblREGASSJune19[[#This Row],[Alloc]]=\"IDU\",tblREGASSJune19[[#This Row],[Alloc]]=\"OR\",tblREGASSJune19[[#This Row],[Alloc]]=\"UT\",tblREGASSJune19[[#This Row],[Alloc]]=\"WYU\",tblREGASSJune19[[#This Row],[Alloc]]=\"WYP\",tblREGASSJune19[[#This Row],[Alloc]]=\"CA\",tblREGASSJune19[[#This Row],[Alloc]]=\"WA\"),\"SITUS\",tblREGASSJune19[[#This Row],[Alloc]])","v":"OTHER"},{"$f":"INDEX(tblREGASSLookup[FUNC],MATCH(tblREGASSJune19[[#This Row],[Concat]],tblREGASSLookup[Concat],0))","v":"CUST"},{"$f":"IF(tblREGASSJune19[[#This Row],[Total ($000)]]=0,\"NO\",IF(ISNA(tblREGASSJune19[[#This Row],[FUNC]]),\"YES\",IF(_xlfn.ISFORMULA(tblREGASSJune19[[#This Row],[FUNC]]),\"NO\",\"YES\")))","v":"NO"}]
[{"$f":"CONCATENATE(tblREGASSJune19[[#This Row],[Primary Account]],tblREGASSJune19[[#This Row],[Primary Name]],tblREGASSJune19[[#This Row],[Secondary Acct]],tblREGASSJune19[[#This Row],[Secondary  Name]],tblREGASSJune19[[#This Row],[Alloc4FUNC]])","v":"1823920DSR COSTS AMORTIZED104053REFRIG RECYCLE COMM -WY 2016 CAT3OTHER"},1823920,"DSR COSTS AMORTIZED",104053,"REFRIG RECYCLE COMM -WY 2016 CAT3","OTHER",-0.70669999999999999,{"$f":"IF(OR(tblREGASSJune19[[#This Row],[Alloc]]=\"IDU\",tblREGASSJune19[[#This Row],[Alloc]]=\"OR\",tblREGASSJune19[[#This Row],[Alloc]]=\"UT\",tblREGASSJune19[[#This Row],[Alloc]]=\"WYU\",tblREGASSJune19[[#This Row],[Alloc]]=\"WYP\",tblREGASSJune19[[#This Row],[Alloc]]=\"CA\",tblREGASSJune19[[#This Row],[Alloc]]=\"WA\"),\"SITUS\",tblREGASSJune19[[#This Row],[Alloc]])","v":"OTHER"},{"$f":"INDEX(tblREGASSLookup[FUNC],MATCH(tblREGASSJune19[[#This Row],[Concat]],tblREGASSLookup[Concat],0))","v":"CUST"},{"$f":"IF(tblREGASSJune19[[#This Row],[Total ($000)]]=0,\"NO\",IF(ISNA(tblREGASSJune19[[#This Row],[FUNC]]),\"YES\",IF(_xlfn.ISFORMULA(tblREGASSJune19[[#This Row],[FUNC]]),\"NO\",\"YES\")))","v":"NO"}]
[{"$f":"CONCATENATE(tblREGASSJune19[[#This Row],[Primary Account]],tblREGASSJune19[[#This Row],[Primary Name]],tblREGASSJune19[[#This Row],[Secondary Acct]],tblREGASSJune19[[#This Row],[Secondary  Name]],tblREGASSJune19[[#This Row],[Alloc4FUNC]])","v":"1823920DSR COSTS AMORTIZED104054WSB- Wattsmart Bus Comm- WY Cat2 -2016OTHER"},1823920,"DSR COSTS AMORTIZED",104054,"WSB- Wattsmart Bus Comm- WY Cat2 -2016","OTHER",1448.56258,{"$f":"IF(OR(tblREGASSJune19[[#This Row],[Alloc]]=\"IDU\",tblREGASSJune19[[#This Row],[Alloc]]=\"OR\",tblREGASSJune19[[#This Row],[Alloc]]=\"UT\",tblREGASSJune19[[#This Row],[Alloc]]=\"WYU\",tblREGASSJune19[[#This Row],[Alloc]]=\"WYP\",tblREGASSJune19[[#This Row],[Alloc]]=\"CA\",tblREGASSJune19[[#This Row],[Alloc]]=\"WA\"),\"SITUS\",tblREGASSJune19[[#This Row],[Alloc]])","v":"OTHER"},{"$f":"INDEX(tblREGASSLookup[FUNC],MATCH(tblREGASSJune19[[#This Row],[Concat]],tblREGASSLookup[Concat],0))","v":"CUST"},{"$f":"IF(tblREGASSJune19[[#This Row],[Total ($000)]]=0,\"NO\",IF(ISNA(tblREGASSJune19[[#This Row],[FUNC]]),\"YES\",IF(_xlfn.ISFORMULA(tblREGASSJune19[[#This Row],[FUNC]]),\"NO\",\"YES\")))","v":"NO"}]
[{"$f":"CONCATENATE(tblREGASSJune19[[#This Row],[Primary Account]],tblREGASSJune19[[#This Row],[Primary Name]],tblREGASSJune19[[#This Row],[Secondary Acct]],tblREGASSJune19[[#This Row],[Secondary  Name]],tblREGASSJune19[[#This Row],[Alloc4FUNC]])","v":"1823920DSR COSTS AMORTIZED104055WBS- Wattsmart Business Ind -WY Cat2-201OTHER"},1823920,"DSR COSTS AMORTIZED",104055,"WBS- Wattsmart Business Ind -WY Cat2-201","OTHER",192.61528000000001,{"$f":"IF(OR(tblREGASSJune19[[#This Row],[Alloc]]=\"IDU\",tblREGASSJune19[[#This Row],[Alloc]]=\"OR\",tblREGASSJune19[[#This Row],[Alloc]]=\"UT\",tblREGASSJune19[[#This Row],[Alloc]]=\"WYU\",tblREGASSJune19[[#This Row],[Alloc]]=\"WYP\",tblREGASSJune19[[#This Row],[Alloc]]=\"CA\",tblREGASSJune19[[#This Row],[Alloc]]=\"WA\"),\"SITUS\",tblREGASSJune19[[#This Row],[Alloc]])","v":"OTHER"},{"$f":"INDEX(tblREGASSLookup[FUNC],MATCH(tblREGASSJune19[[#This Row],[Concat]],tblREGASSLookup[Concat],0))","v":"CUST"},{"$f":"IF(tblREGASSJune19[[#This Row],[Total ($000)]]=0,\"NO\",IF(ISNA(tblREGASSJune19[[#This Row],[FUNC]]),\"YES\",IF(_xlfn.ISFORMULA(tblREGASSJune19[[#This Row],[FUNC]]),\"NO\",\"YES\")))","v":"NO"}]
[{"$f":"CONCATENATE(tblREGASSJune19[[#This Row],[Primary Account]],tblREGASSJune19[[#This Row],[Primary Name]],tblREGASSJune19[[#This Row],[Secondary Acct]],tblREGASSJune19[[#This Row],[Secondary  Name]],tblREGASSJune19[[#This Row],[Alloc4FUNC]])","v":"1823920DSR COSTS AMORTIZED104056WSB - Wattsmart Business - WY Cat 2- 201OTHER"},1823920,"DSR COSTS AMORTIZED",104056,"WSB - Wattsmart Business - WY Cat 2- 201","OTHER",911.89212999999995,{"$f":"IF(OR(tblREGASSJune19[[#This Row],[Alloc]]=\"IDU\",tblREGASSJune19[[#This Row],[Alloc]]=\"OR\",tblREGASSJune19[[#This Row],[Alloc]]=\"UT\",tblREGASSJune19[[#This Row],[Alloc]]=\"WYU\",tblREGASSJune19[[#This Row],[Alloc]]=\"WYP\",tblREGASSJune19[[#This Row],[Alloc]]=\"CA\",tblREGASSJune19[[#This Row],[Alloc]]=\"WA\"),\"SITUS\",tblREGASSJune19[[#This Row],[Alloc]])","v":"OTHER"},{"$f":"INDEX(tblREGASSLookup[FUNC],MATCH(tblREGASSJune19[[#This Row],[Concat]],tblREGASSLookup[Concat],0))","v":"CUST"},{"$f":"IF(tblREGASSJune19[[#This Row],[Total ($000)]]=0,\"NO\",IF(ISNA(tblREGASSJune19[[#This Row],[FUNC]]),\"YES\",IF(_xlfn.ISFORMULA(tblREGASSJune19[[#This Row],[FUNC]]),\"NO\",\"YES\")))","v":"NO"}]
[{"$f":"CONCATENATE(tblREGASSJune19[[#This Row],[Primary Account]],tblREGASSJune19[[#This Row],[Primary Name]],tblREGASSJune19[[#This Row],[Secondary Acct]],tblREGASSJune19[[#This Row],[Secondary  Name]],tblREGASSJune19[[#This Row],[Alloc4FUNC]])","v":"1823920DSR COSTS AMORTIZED104057WSB Wattsmart Business Comm- WY Cat3 -20OTHER"},1823920,"DSR COSTS AMORTIZED",104057,"WSB Wattsmart Business Comm- WY Cat3 -20","OTHER",467.38661000000002,{"$f":"IF(OR(tblREGASSJune19[[#This Row],[Alloc]]=\"IDU\",tblREGASSJune19[[#This Row],[Alloc]]=\"OR\",tblREGASSJune19[[#This Row],[Alloc]]=\"UT\",tblREGASSJune19[[#This Row],[Alloc]]=\"WYU\",tblREGASSJune19[[#This Row],[Alloc]]=\"WYP\",tblREGASSJune19[[#This Row],[Alloc]]=\"CA\",tblREGASSJune19[[#This Row],[Alloc]]=\"WA\"),\"SITUS\",tblREGASSJune19[[#This Row],[Alloc]])","v":"OTHER"},{"$f":"INDEX(tblREGASSLookup[FUNC],MATCH(tblREGASSJune19[[#This Row],[Concat]],tblREGASSLookup[Concat],0))","v":"CUST"},{"$f":"IF(tblREGASSJune19[[#This Row],[Total ($000)]]=0,\"NO\",IF(ISNA(tblREGASSJune19[[#This Row],[FUNC]]),\"YES\",IF(_xlfn.ISFORMULA(tblREGASSJune19[[#This Row],[FUNC]]),\"NO\",\"YES\")))","v":"NO"}]
[{"$f":"CONCATENATE(tblREGASSJune19[[#This Row],[Primary Account]],tblREGASSJune19[[#This Row],[Primary Name]],tblREGASSJune19[[#This Row],[Secondary Acct]],tblREGASSJune19[[#This Row],[Secondary  Name]],tblREGASSJune19[[#This Row],[Alloc4FUNC]])","v":"1823920DSR COSTS AMORTIZED104058WBS- Wattsmart Bus Ind- WY Cat3-2016OTHER"},1823920,"DSR COSTS AMORTIZED",104058,"WBS- Wattsmart Bus Ind- WY Cat3-2016","OTHER",1238.6295700000001,{"$f":"IF(OR(tblREGASSJune19[[#This Row],[Alloc]]=\"IDU\",tblREGASSJune19[[#This Row],[Alloc]]=\"OR\",tblREGASSJune19[[#This Row],[Alloc]]=\"UT\",tblREGASSJune19[[#This Row],[Alloc]]=\"WYU\",tblREGASSJune19[[#This Row],[Alloc]]=\"WYP\",tblREGASSJune19[[#This Row],[Alloc]]=\"CA\",tblREGASSJune19[[#This Row],[Alloc]]=\"WA\"),\"SITUS\",tblREGASSJune19[[#This Row],[Alloc]])","v":"OTHER"},{"$f":"INDEX(tblREGASSLookup[FUNC],MATCH(tblREGASSJune19[[#This Row],[Concat]],tblREGASSLookup[Concat],0))","v":"CUST"},{"$f":"IF(tblREGASSJune19[[#This Row],[Total ($000)]]=0,\"NO\",IF(ISNA(tblREGASSJune19[[#This Row],[FUNC]]),\"YES\",IF(_xlfn.ISFORMULA(tblREGASSJune19[[#This Row],[FUNC]]),\"NO\",\"YES\")))","v":"NO"}]
[{"$f":"CONCATENATE(tblREGASSJune19[[#This Row],[Primary Account]],tblREGASSJune19[[#This Row],[Primary Name]],tblREGASSJune19[[#This Row],[Secondary Acct]],tblREGASSJune19[[#This Row],[Secondary  Name]],tblREGASSJune19[[#This Row],[Alloc4FUNC]])","v":"1823920DSR COSTS AMORTIZED104059WSB- Wattsmart Business Agric- WY Cat2 -OTHER"},1823920,"DSR COSTS AMORTIZED",104059,"WSB- Wattsmart Business Agric- WY Cat2 -","OTHER",4.3329500000000003,{"$f":"IF(OR(tblREGASSJune19[[#This Row],[Alloc]]=\"IDU\",tblREGASSJune19[[#This Row],[Alloc]]=\"OR\",tblREGASSJune19[[#This Row],[Alloc]]=\"UT\",tblREGASSJune19[[#This Row],[Alloc]]=\"WYU\",tblREGASSJune19[[#This Row],[Alloc]]=\"WYP\",tblREGASSJune19[[#This Row],[Alloc]]=\"CA\",tblREGASSJune19[[#This Row],[Alloc]]=\"WA\"),\"SITUS\",tblREGASSJune19[[#This Row],[Alloc]])","v":"OTHER"},{"$f":"INDEX(tblREGASSLookup[FUNC],MATCH(tblREGASSJune19[[#This Row],[Concat]],tblREGASSLookup[Concat],0))","v":"CUST"},{"$f":"IF(tblREGASSJune19[[#This Row],[Total ($000)]]=0,\"NO\",IF(ISNA(tblREGASSJune19[[#This Row],[FUNC]]),\"YES\",IF(_xlfn.ISFORMULA(tblREGASSJune19[[#This Row],[FUNC]]),\"NO\",\"YES\")))","v":"NO"}]
[{"$f":"CONCATENATE(tblREGASSJune19[[#This Row],[Primary Account]],tblREGASSJune19[[#This Row],[Primary Name]],tblREGASSJune19[[#This Row],[Secondary Acct]],tblREGASSJune19[[#This Row],[Secondary  Name]],tblREGASSJune19[[#This Row],[Alloc4FUNC]])","v":"1823920DSR COSTS AMORTIZED104060WSB- Wattsmart Business Agric- WY Cat3 -OTHER"},1823920,"DSR COSTS AMORTIZED",104060,"WSB- Wattsmart Business Agric- WY Cat3 -","OTHER",2.21347,{"$f":"IF(OR(tblREGASSJune19[[#This Row],[Alloc]]=\"IDU\",tblREGASSJune19[[#This Row],[Alloc]]=\"OR\",tblREGASSJune19[[#This Row],[Alloc]]=\"UT\",tblREGASSJune19[[#This Row],[Alloc]]=\"WYU\",tblREGASSJune19[[#This Row],[Alloc]]=\"WYP\",tblREGASSJune19[[#This Row],[Alloc]]=\"CA\",tblREGASSJune19[[#This Row],[Alloc]]=\"WA\"),\"SITUS\",tblREGASSJune19[[#This Row],[Alloc]])","v":"OTHER"},{"$f":"INDEX(tblREGASSLookup[FUNC],MATCH(tblREGASSJune19[[#This Row],[Concat]],tblREGASSLookup[Concat],0))","v":"CUST"},{"$f":"IF(tblREGASSJune19[[#This Row],[Total ($000)]]=0,\"NO\",IF(ISNA(tblREGASSJune19[[#This Row],[FUNC]]),\"YES\",IF(_xlfn.ISFORMULA(tblREGASSJune19[[#This Row],[FUNC]]),\"NO\",\"YES\")))","v":"NO"}]
[{"$f":"CONCATENATE(tblREGASSJune19[[#This Row],[Primary Account]],tblREGASSJune19[[#This Row],[Primary Name]],tblREGASSJune19[[#This Row],[Secondary Acct]],tblREGASSJune19[[#This Row],[Secondary  Name]],tblREGASSJune19[[#This Row],[Alloc4FUNC]])","v":"1823920DSR COSTS AMORTIZED104061WSB- Wattsmart Business- WY Cat 3- 2016OTHER"},1823920,"DSR COSTS AMORTIZED",104061,"WSB- Wattsmart Business- WY Cat 3- 2016","OTHER",602.48880999999994,{"$f":"IF(OR(tblREGASSJune19[[#This Row],[Alloc]]=\"IDU\",tblREGASSJune19[[#This Row],[Alloc]]=\"OR\",tblREGASSJune19[[#This Row],[Alloc]]=\"UT\",tblREGASSJune19[[#This Row],[Alloc]]=\"WYU\",tblREGASSJune19[[#This Row],[Alloc]]=\"WYP\",tblREGASSJune19[[#This Row],[Alloc]]=\"CA\",tblREGASSJune19[[#This Row],[Alloc]]=\"WA\"),\"SITUS\",tblREGASSJune19[[#This Row],[Alloc]])","v":"OTHER"},{"$f":"INDEX(tblREGASSLookup[FUNC],MATCH(tblREGASSJune19[[#This Row],[Concat]],tblREGASSLookup[Concat],0))","v":"CUST"},{"$f":"IF(tblREGASSJune19[[#This Row],[Total ($000)]]=0,\"NO\",IF(ISNA(tblREGASSJune19[[#This Row],[FUNC]]),\"YES\",IF(_xlfn.ISFORMULA(tblREGASSJune19[[#This Row],[FUNC]]),\"NO\",\"YES\")))","v":"NO"}]
[{"$f":"CONCATENATE(tblREGASSJune19[[#This Row],[Primary Account]],tblREGASSJune19[[#This Row],[Primary Name]],tblREGASSJune19[[#This Row],[Secondary Acct]],tblREGASSJune19[[#This Row],[Secondary  Name]],tblREGASSJune19[[#This Row],[Alloc4FUNC]])","v":"1823920DSR COSTS AMORTIZED104080OUTREACH & COMM WATTSMT WY-2016 CAT2OTHER"},1823920,"DSR COSTS AMORTIZED",104080,"OUTREACH & COMM WATTSMT WY-2016 CAT2","OTHER",44.464550000000003,{"$f":"IF(OR(tblREGASSJune19[[#This Row],[Alloc]]=\"IDU\",tblREGASSJune19[[#This Row],[Alloc]]=\"OR\",tblREGASSJune19[[#This Row],[Alloc]]=\"UT\",tblREGASSJune19[[#This Row],[Alloc]]=\"WYU\",tblREGASSJune19[[#This Row],[Alloc]]=\"WYP\",tblREGASSJune19[[#This Row],[Alloc]]=\"CA\",tblREGASSJune19[[#This Row],[Alloc]]=\"WA\"),\"SITUS\",tblREGASSJune19[[#This Row],[Alloc]])","v":"OTHER"},{"$f":"INDEX(tblREGASSLookup[FUNC],MATCH(tblREGASSJune19[[#This Row],[Concat]],tblREGASSLookup[Concat],0))","v":"CUST"},{"$f":"IF(tblREGASSJune19[[#This Row],[Total ($000)]]=0,\"NO\",IF(ISNA(tblREGASSJune19[[#This Row],[FUNC]]),\"YES\",IF(_xlfn.ISFORMULA(tblREGASSJune19[[#This Row],[FUNC]]),\"NO\",\"YES\")))","v":"NO"}]
[{"$f":"CONCATENATE(tblREGASSJune19[[#This Row],[Primary Account]],tblREGASSJune19[[#This Row],[Primary Name]],tblREGASSJune19[[#This Row],[Secondary Acct]],tblREGASSJune19[[#This Row],[Secondary  Name]],tblREGASSJune19[[#This Row],[Alloc4FUNC]])","v":"1823920DSR COSTS AMORTIZED104081OUTREACH & COMM WATTSMT WY-2016 CAT3OTHER"},1823920,"DSR COSTS AMORTIZED",104081,"OUTREACH & COMM WATTSMT WY-2016 CAT3","OTHER",42.077210000000001,{"$f":"IF(OR(tblREGASSJune19[[#This Row],[Alloc]]=\"IDU\",tblREGASSJune19[[#This Row],[Alloc]]=\"OR\",tblREGASSJune19[[#This Row],[Alloc]]=\"UT\",tblREGASSJune19[[#This Row],[Alloc]]=\"WYU\",tblREGASSJune19[[#This Row],[Alloc]]=\"WYP\",tblREGASSJune19[[#This Row],[Alloc]]=\"CA\",tblREGASSJune19[[#This Row],[Alloc]]=\"WA\"),\"SITUS\",tblREGASSJune19[[#This Row],[Alloc]])","v":"OTHER"},{"$f":"INDEX(tblREGASSLookup[FUNC],MATCH(tblREGASSJune19[[#This Row],[Concat]],tblREGASSLookup[Concat],0))","v":"CUST"},{"$f":"IF(tblREGASSJune19[[#This Row],[Total ($000)]]=0,\"NO\",IF(ISNA(tblREGASSJune19[[#This Row],[FUNC]]),\"YES\",IF(_xlfn.ISFORMULA(tblREGASSJune19[[#This Row],[FUNC]]),\"NO\",\"YES\")))","v":"NO"}]
[{"$f":"CONCATENATE(tblREGASSJune19[[#This Row],[Primary Account]],tblREGASSJune19[[#This Row],[Primary Name]],tblREGASSJune19[[#This Row],[Secondary Acct]],tblREGASSJune19[[#This Row],[Secondary  Name]],tblREGASSJune19[[#This Row],[Alloc4FUNC]])","v":"1823920DSR COSTS AMORTIZED104109WA DSM - 186055 Clear Acct BalanceOTHER"},1823920,"DSR COSTS AMORTIZED",104109,"WA DSM - 186055 Clear Acct Balance","OTHER",-840.74851000000001,{"$f":"IF(OR(tblREGASSJune19[[#This Row],[Alloc]]=\"IDU\",tblREGASSJune19[[#This Row],[Alloc]]=\"OR\",tblREGASSJune19[[#This Row],[Alloc]]=\"UT\",tblREGASSJune19[[#This Row],[Alloc]]=\"WYU\",tblREGASSJune19[[#This Row],[Alloc]]=\"WYP\",tblREGASSJune19[[#This Row],[Alloc]]=\"CA\",tblREGASSJune19[[#This Row],[Alloc]]=\"WA\"),\"SITUS\",tblREGASSJune19[[#This Row],[Alloc]])","v":"OTHER"},{"$f":"INDEX(tblREGASSLookup[FUNC],MATCH(tblREGASSJune19[[#This Row],[Concat]],tblREGASSLookup[Concat],0))","v":"CUST"},{"$f":"IF(tblREGASSJune19[[#This Row],[Total ($000)]]=0,\"NO\",IF(ISNA(tblREGASSJune19[[#This Row],[FUNC]]),\"YES\",IF(_xlfn.ISFORMULA(tblREGASSJune19[[#This Row],[FUNC]]),\"NO\",\"YES\")))","v":"NO"}]
[{"$f":"CONCATENATE(tblREGASSJune19[[#This Row],[Primary Account]],tblREGASSJune19[[#This Row],[Primary Name]],tblREGASSJune19[[#This Row],[Secondary Acct]],tblREGASSJune19[[#This Row],[Secondary  Name]],tblREGASSJune19[[#This Row],[Alloc4FUNC]])","v":"1823920DSR COSTS AMORTIZED104110ID DSM - 186025 Clear Acct BalanceOTHER"},1823920,"DSR COSTS AMORTIZED",104110,"ID DSM - 186025 Clear Acct Balance","OTHER",397.83625999999998,{"$f":"IF(OR(tblREGASSJune19[[#This Row],[Alloc]]=\"IDU\",tblREGASSJune19[[#This Row],[Alloc]]=\"OR\",tblREGASSJune19[[#This Row],[Alloc]]=\"UT\",tblREGASSJune19[[#This Row],[Alloc]]=\"WYU\",tblREGASSJune19[[#This Row],[Alloc]]=\"WYP\",tblREGASSJune19[[#This Row],[Alloc]]=\"CA\",tblREGASSJune19[[#This Row],[Alloc]]=\"WA\"),\"SITUS\",tblREGASSJune19[[#This Row],[Alloc]])","v":"OTHER"},{"$f":"INDEX(tblREGASSLookup[FUNC],MATCH(tblREGASSJune19[[#This Row],[Concat]],tblREGASSLookup[Concat],0))","v":"CUST"},{"$f":"IF(tblREGASSJune19[[#This Row],[Total ($000)]]=0,\"NO\",IF(ISNA(tblREGASSJune19[[#This Row],[FUNC]]),\"YES\",IF(_xlfn.ISFORMULA(tblREGASSJune19[[#This Row],[FUNC]]),\"NO\",\"YES\")))","v":"NO"}]
[{"$f":"CONCATENATE(tblREGASSJune19[[#This Row],[Primary Account]],tblREGASSJune19[[#This Row],[Primary Name]],tblREGASSJune19[[#This Row],[Secondary Acct]],tblREGASSJune19[[#This Row],[Secondary  Name]],tblREGASSJune19[[#This Row],[Alloc4FUNC]])","v":"1823920DSR COSTS AMORTIZED104111WY DSM - 186065 Clear Acct BalanceOTHER"},1823920,"DSR COSTS AMORTIZED",104111,"WY DSM - 186065 Clear Acct Balance","OTHER",-1404.86526,{"$f":"IF(OR(tblREGASSJune19[[#This Row],[Alloc]]=\"IDU\",tblREGASSJune19[[#This Row],[Alloc]]=\"OR\",tblREGASSJune19[[#This Row],[Alloc]]=\"UT\",tblREGASSJune19[[#This Row],[Alloc]]=\"WYU\",tblREGASSJune19[[#This Row],[Alloc]]=\"WYP\",tblREGASSJune19[[#This Row],[Alloc]]=\"CA\",tblREGASSJune19[[#This Row],[Alloc]]=\"WA\"),\"SITUS\",tblREGASSJune19[[#This Row],[Alloc]])","v":"OTHER"},{"$f":"INDEX(tblREGASSLookup[FUNC],MATCH(tblREGASSJune19[[#This Row],[Concat]],tblREGASSLookup[Concat],0))","v":"CUST"},{"$f":"IF(tblREGASSJune19[[#This Row],[Total ($000)]]=0,\"NO\",IF(ISNA(tblREGASSJune19[[#This Row],[FUNC]]),\"YES\",IF(_xlfn.ISFORMULA(tblREGASSJune19[[#This Row],[FUNC]]),\"NO\",\"YES\")))","v":"NO"}]
[{"$f":"CONCATENATE(tblREGASSJune19[[#This Row],[Primary Account]],tblREGASSJune19[[#This Row],[Primary Name]],tblREGASSJune19[[#This Row],[Secondary Acct]],tblREGASSJune19[[#This Row],[Secondary  Name]],tblREGASSJune19[[#This Row],[Alloc4FUNC]])","v":"1823930DSR COSTS NOT AMORT101300WEATHERIZATION  96SITUS"},1823930,"DSR COSTS NOT AMORT",101300,"WEATHERIZATION  96","IDU",0,{"$f":"IF(OR(tblREGASSJune19[[#This Row],[Alloc]]=\"IDU\",tblREGASSJune19[[#This Row],[Alloc]]=\"OR\",tblREGASSJune19[[#This Row],[Alloc]]=\"UT\",tblREGASSJune19[[#This Row],[Alloc]]=\"WYU\",tblREGASSJune19[[#This Row],[Alloc]]=\"WYP\",tblREGASSJune19[[#This Row],[Alloc]]=\"CA\",tblREGASSJune19[[#This Row],[Alloc]]=\"WA\"),\"SITUS\",tblREGASSJune19[[#This Row],[Alloc]])","v":"SITUS"},{"$f":"INDEX(tblREGASSLookup[FUNC],MATCH(tblREGASSJune19[[#This Row],[Concat]],tblREGASSLookup[Concat],0))","v":{"$error":"#N/A"}},{"$f":"IF(tblREGASSJune19[[#This Row],[Total ($000)]]=0,\"NO\",IF(ISNA(tblREGASSJune19[[#This Row],[FUNC]]),\"YES\",IF(_xlfn.ISFORMULA(tblREGASSJune19[[#This Row],[FUNC]]),\"NO\",\"YES\")))","v":"NO"}]
[{"$f":"CONCATENATE(tblREGASSJune19[[#This Row],[Primary Account]],tblREGASSJune19[[#This Row],[Primary Name]],tblREGASSJune19[[#This Row],[Secondary Acct]],tblREGASSJune19[[#This Row],[Secondary  Name]],tblREGASSJune19[[#This Row],[Alloc4FUNC]])","v":"1823930DSR COSTS NOT AMORT101301\"IDAHO WEATHERIZATION, ID-P 1997\"SITUS"},1823930,"DSR COSTS NOT AMORT",101301,"\"IDAHO WEATHERIZATION, ID-P 1997\"","IDU",0,{"$f":"IF(OR(tblREGASSJune19[[#This Row],[Alloc]]=\"IDU\",tblREGASSJune19[[#This Row],[Alloc]]=\"OR\",tblREGASSJune19[[#This Row],[Alloc]]=\"UT\",tblREGASSJune19[[#This Row],[Alloc]]=\"WYU\",tblREGASSJune19[[#This Row],[Alloc]]=\"WYP\",tblREGASSJune19[[#This Row],[Alloc]]=\"CA\",tblREGASSJune19[[#This Row],[Alloc]]=\"WA\"),\"SITUS\",tblREGASSJune19[[#This Row],[Alloc]])","v":"SITUS"},{"$f":"INDEX(tblREGASSLookup[FUNC],MATCH(tblREGASSJune19[[#This Row],[Concat]],tblREGASSLookup[Concat],0))","v":{"$error":"#N/A"}},{"$f":"IF(tblREGASSJune19[[#This Row],[Total ($000)]]=0,\"NO\",IF(ISNA(tblREGASSJune19[[#This Row],[FUNC]]),\"YES\",IF(_xlfn.ISFORMULA(tblREGASSJune19[[#This Row],[FUNC]]),\"NO\",\"YES\")))","v":"NO"}]
[{"$f":"CONCATENATE(tblREGASSJune19[[#This Row],[Primary Account]],tblREGASSJune19[[#This Row],[Primary Name]],tblREGASSJune19[[#This Row],[Secondary Acct]],tblREGASSJune19[[#This Row],[Secondary  Name]],tblREGASSJune19[[#This Row],[Alloc4FUNC]])","v":"1823930DSR COSTS NOT AMORT101302SUPER GOOD CENT 90SITUS"},1823930,"DSR COSTS NOT AMORT",101302,"SUPER GOOD CENT 90","IDU",0,{"$f":"IF(OR(tblREGASSJune19[[#This Row],[Alloc]]=\"IDU\",tblREGASSJune19[[#This Row],[Alloc]]=\"OR\",tblREGASSJune19[[#This Row],[Alloc]]=\"UT\",tblREGASSJune19[[#This Row],[Alloc]]=\"WYU\",tblREGASSJune19[[#This Row],[Alloc]]=\"WYP\",tblREGASSJune19[[#This Row],[Alloc]]=\"CA\",tblREGASSJune19[[#This Row],[Alloc]]=\"WA\"),\"SITUS\",tblREGASSJune19[[#This Row],[Alloc]])","v":"SITUS"},{"$f":"INDEX(tblREGASSLookup[FUNC],MATCH(tblREGASSJune19[[#This Row],[Concat]],tblREGASSLookup[Concat],0))","v":{"$error":"#N/A"}},{"$f":"IF(tblREGASSJune19[[#This Row],[Total ($000)]]=0,\"NO\",IF(ISNA(tblREGASSJune19[[#This Row],[FUNC]]),\"YES\",IF(_xlfn.ISFORMULA(tblREGASSJune19[[#This Row],[FUNC]]),\"NO\",\"YES\")))","v":"NO"}]
[{"$f":"CONCATENATE(tblREGASSJune19[[#This Row],[Primary Account]],tblREGASSJune19[[#This Row],[Primary Name]],tblREGASSJune19[[#This Row],[Secondary Acct]],tblREGASSJune19[[#This Row],[Secondary  Name]],tblREGASSJune19[[#This Row],[Alloc4FUNC]])","v":"1823930DSR COSTS NOT AMORT101303SUPER GOOD CENT 91SITUS"},1823930,"DSR COSTS NOT AMORT",101303,"SUPER GOOD CENT 91","IDU",0,{"$f":"IF(OR(tblREGASSJune19[[#This Row],[Alloc]]=\"IDU\",tblREGASSJune19[[#This Row],[Alloc]]=\"OR\",tblREGASSJune19[[#This Row],[Alloc]]=\"UT\",tblREGASSJune19[[#This Row],[Alloc]]=\"WYU\",tblREGASSJune19[[#This Row],[Alloc]]=\"WYP\",tblREGASSJune19[[#This Row],[Alloc]]=\"CA\",tblREGASSJune19[[#This Row],[Alloc]]=\"WA\"),\"SITUS\",tblREGASSJune19[[#This Row],[Alloc]])","v":"SITUS"},{"$f":"INDEX(tblREGASSLookup[FUNC],MATCH(tblREGASSJune19[[#This Row],[Concat]],tblREGASSLookup[Concat],0))","v":{"$error":"#N/A"}},{"$f":"IF(tblREGASSJune19[[#This Row],[Total ($000)]]=0,\"NO\",IF(ISNA(tblREGASSJune19[[#This Row],[FUNC]]),\"YES\",IF(_xlfn.ISFORMULA(tblREGASSJune19[[#This Row],[FUNC]]),\"NO\",\"YES\")))","v":"NO"}]
[{"$f":"CONCATENATE(tblREGASSJune19[[#This Row],[Primary Account]],tblREGASSJune19[[#This Row],[Primary Name]],tblREGASSJune19[[#This Row],[Secondary Acct]],tblREGASSJune19[[#This Row],[Secondary  Name]],tblREGASSJune19[[#This Row],[Alloc4FUNC]])","v":"1823930DSR COSTS NOT AMORT101304SUPER GOOD CENT 92SITUS"},1823930,"DSR COSTS NOT AMORT",101304,"SUPER GOOD CENT 92","IDU",0,{"$f":"IF(OR(tblREGASSJune19[[#This Row],[Alloc]]=\"IDU\",tblREGASSJune19[[#This Row],[Alloc]]=\"OR\",tblREGASSJune19[[#This Row],[Alloc]]=\"UT\",tblREGASSJune19[[#This Row],[Alloc]]=\"WYU\",tblREGASSJune19[[#This Row],[Alloc]]=\"WYP\",tblREGASSJune19[[#This Row],[Alloc]]=\"CA\",tblREGASSJune19[[#This Row],[Alloc]]=\"WA\"),\"SITUS\",tblREGASSJune19[[#This Row],[Alloc]])","v":"SITUS"},{"$f":"INDEX(tblREGASSLookup[FUNC],MATCH(tblREGASSJune19[[#This Row],[Concat]],tblREGASSLookup[Concat],0))","v":{"$error":"#N/A"}},{"$f":"IF(tblREGASSJune19[[#This Row],[Total ($000)]]=0,\"NO\",IF(ISNA(tblREGASSJune19[[#This Row],[FUNC]]),\"YES\",IF(_xlfn.ISFORMULA(tblREGASSJune19[[#This Row],[FUNC]]),\"NO\",\"YES\")))","v":"NO"}]
[{"$f":"CONCATENATE(tblREGASSJune19[[#This Row],[Primary Account]],tblREGASSJune19[[#This Row],[Primary Name]],tblREGASSJune19[[#This Row],[Secondary Acct]],tblREGASSJune19[[#This Row],[Secondary  Name]],tblREGASSJune19[[#This Row],[Alloc4FUNC]])","v":"1823930DSR COSTS NOT AMORT101305CASH GRANT   ID 92SITUS"},1823930,"DSR COSTS NOT AMORT",101305,"CASH GRANT   ID 92","IDU",0,{"$f":"IF(OR(tblREGASSJune19[[#This Row],[Alloc]]=\"IDU\",tblREGASSJune19[[#This Row],[Alloc]]=\"OR\",tblREGASSJune19[[#This Row],[Alloc]]=\"UT\",tblREGASSJune19[[#This Row],[Alloc]]=\"WYU\",tblREGASSJune19[[#This Row],[Alloc]]=\"WYP\",tblREGASSJune19[[#This Row],[Alloc]]=\"CA\",tblREGASSJune19[[#This Row],[Alloc]]=\"WA\"),\"SITUS\",tblREGASSJune19[[#This Row],[Alloc]])","v":"SITUS"},{"$f":"INDEX(tblREGASSLookup[FUNC],MATCH(tblREGASSJune19[[#This Row],[Concat]],tblREGASSLookup[Concat],0))","v":{"$error":"#N/A"}},{"$f":"IF(tblREGASSJune19[[#This Row],[Total ($000)]]=0,\"NO\",IF(ISNA(tblREGASSJune19[[#This Row],[FUNC]]),\"YES\",IF(_xlfn.ISFORMULA(tblREGASSJune19[[#This Row],[FUNC]]),\"NO\",\"YES\")))","v":"NO"}]
[{"$f":"CONCATENATE(tblREGASSJune19[[#This Row],[Primary Account]],tblREGASSJune19[[#This Row],[Primary Name]],tblREGASSJune19[[#This Row],[Secondary Acct]],tblREGASSJune19[[#This Row],[Secondary  Name]],tblREGASSJune19[[#This Row],[Alloc4FUNC]])","v":"1823930DSR COSTS NOT AMORT101306LOW INCOME   ID 90SITUS"},1823930,"DSR COSTS NOT AMORT",101306,"LOW INCOME   ID 90","IDU",0,{"$f":"IF(OR(tblREGASSJune19[[#This Row],[Alloc]]=\"IDU\",tblREGASSJune19[[#This Row],[Alloc]]=\"OR\",tblREGASSJune19[[#This Row],[Alloc]]=\"UT\",tblREGASSJune19[[#This Row],[Alloc]]=\"WYU\",tblREGASSJune19[[#This Row],[Alloc]]=\"WYP\",tblREGASSJune19[[#This Row],[Alloc]]=\"CA\",tblREGASSJune19[[#This Row],[Alloc]]=\"WA\"),\"SITUS\",tblREGASSJune19[[#This Row],[Alloc]])","v":"SITUS"},{"$f":"INDEX(tblREGASSLookup[FUNC],MATCH(tblREGASSJune19[[#This Row],[Concat]],tblREGASSLookup[Concat],0))","v":{"$error":"#N/A"}},{"$f":"IF(tblREGASSJune19[[#This Row],[Total ($000)]]=0,\"NO\",IF(ISNA(tblREGASSJune19[[#This Row],[FUNC]]),\"YES\",IF(_xlfn.ISFORMULA(tblREGASSJune19[[#This Row],[FUNC]]),\"NO\",\"YES\")))","v":"NO"}]
[{"$f":"CONCATENATE(tblREGASSJune19[[#This Row],[Primary Account]],tblREGASSJune19[[#This Row],[Primary Name]],tblREGASSJune19[[#This Row],[Secondary Acct]],tblREGASSJune19[[#This Row],[Secondary  Name]],tblREGASSJune19[[#This Row],[Alloc4FUNC]])","v":"1823930DSR COSTS NOT AMORT101307LOW INCOME   ID 91SITUS"},1823930,"DSR COSTS NOT AMORT",101307,"LOW INCOME   ID 91","IDU",0,{"$f":"IF(OR(tblREGASSJune19[[#This Row],[Alloc]]=\"IDU\",tblREGASSJune19[[#This Row],[Alloc]]=\"OR\",tblREGASSJune19[[#This Row],[Alloc]]=\"UT\",tblREGASSJune19[[#This Row],[Alloc]]=\"WYU\",tblREGASSJune19[[#This Row],[Alloc]]=\"WYP\",tblREGASSJune19[[#This Row],[Alloc]]=\"CA\",tblREGASSJune19[[#This Row],[Alloc]]=\"WA\"),\"SITUS\",tblREGASSJune19[[#This Row],[Alloc]])","v":"SITUS"},{"$f":"INDEX(tblREGASSLookup[FUNC],MATCH(tblREGASSJune19[[#This Row],[Concat]],tblREGASSLookup[Concat],0))","v":{"$error":"#N/A"}},{"$f":"IF(tblREGASSJune19[[#This Row],[Total ($000)]]=0,\"NO\",IF(ISNA(tblREGASSJune19[[#This Row],[FUNC]]),\"YES\",IF(_xlfn.ISFORMULA(tblREGASSJune19[[#This Row],[FUNC]]),\"NO\",\"YES\")))","v":"NO"}]
[{"$f":"CONCATENATE(tblREGASSJune19[[#This Row],[Primary Account]],tblREGASSJune19[[#This Row],[Primary Name]],tblREGASSJune19[[#This Row],[Secondary Acct]],tblREGASSJune19[[#This Row],[Secondary  Name]],tblREGASSJune19[[#This Row],[Alloc4FUNC]])","v":"1823930DSR COSTS NOT AMORT101308LOW INCOME   ID 92SITUS"},1823930,"DSR COSTS NOT AMORT",101308,"LOW INCOME   ID 92","IDU",0,{"$f":"IF(OR(tblREGASSJune19[[#This Row],[Alloc]]=\"IDU\",tblREGASSJune19[[#This Row],[Alloc]]=\"OR\",tblREGASSJune19[[#This Row],[Alloc]]=\"UT\",tblREGASSJune19[[#This Row],[Alloc]]=\"WYU\",tblREGASSJune19[[#This Row],[Alloc]]=\"WYP\",tblREGASSJune19[[#This Row],[Alloc]]=\"CA\",tblREGASSJune19[[#This Row],[Alloc]]=\"WA\"),\"SITUS\",tblREGASSJune19[[#This Row],[Alloc]])","v":"SITUS"},{"$f":"INDEX(tblREGASSLookup[FUNC],MATCH(tblREGASSJune19[[#This Row],[Concat]],tblREGASSLookup[Concat],0))","v":{"$error":"#N/A"}},{"$f":"IF(tblREGASSJune19[[#This Row],[Total ($000)]]=0,\"NO\",IF(ISNA(tblREGASSJune19[[#This Row],[FUNC]]),\"YES\",IF(_xlfn.ISFORMULA(tblREGASSJune19[[#This Row],[FUNC]]),\"NO\",\"YES\")))","v":"NO"}]
[{"$f":"CONCATENATE(tblREGASSJune19[[#This Row],[Primary Account]],tblREGASSJune19[[#This Row],[Primary Name]],tblREGASSJune19[[#This Row],[Secondary Acct]],tblREGASSJune19[[#This Row],[Secondary  Name]],tblREGASSJune19[[#This Row],[Alloc4FUNC]])","v":"1823930DSR COSTS NOT AMORT101309LOW INCOME   ID 93SITUS"},1823930,"DSR COSTS NOT AMORT",101309,"LOW INCOME   ID 93","IDU",0,{"$f":"IF(OR(tblREGASSJune19[[#This Row],[Alloc]]=\"IDU\",tblREGASSJune19[[#This Row],[Alloc]]=\"OR\",tblREGASSJune19[[#This Row],[Alloc]]=\"UT\",tblREGASSJune19[[#This Row],[Alloc]]=\"WYU\",tblREGASSJune19[[#This Row],[Alloc]]=\"WYP\",tblREGASSJune19[[#This Row],[Alloc]]=\"CA\",tblREGASSJune19[[#This Row],[Alloc]]=\"WA\"),\"SITUS\",tblREGASSJune19[[#This Row],[Alloc]])","v":"SITUS"},{"$f":"INDEX(tblREGASSLookup[FUNC],MATCH(tblREGASSJune19[[#This Row],[Concat]],tblREGASSLookup[Concat],0))","v":{"$error":"#N/A"}},{"$f":"IF(tblREGASSJune19[[#This Row],[Total ($000)]]=0,\"NO\",IF(ISNA(tblREGASSJune19[[#This Row],[FUNC]]),\"YES\",IF(_xlfn.ISFORMULA(tblREGASSJune19[[#This Row],[FUNC]]),\"NO\",\"YES\")))","v":"NO"}]
[{"$f":"CONCATENATE(tblREGASSJune19[[#This Row],[Primary Account]],tblREGASSJune19[[#This Row],[Primary Name]],tblREGASSJune19[[#This Row],[Secondary Acct]],tblREGASSJune19[[#This Row],[Secondary  Name]],tblREGASSJune19[[#This Row],[Alloc4FUNC]])","v":"1823930DSR COSTS NOT AMORT101310LOW INCOME   ID 94SITUS"},1823930,"DSR COSTS NOT AMORT",101310,"LOW INCOME   ID 94","IDU",0,{"$f":"IF(OR(tblREGASSJune19[[#This Row],[Alloc]]=\"IDU\",tblREGASSJune19[[#This Row],[Alloc]]=\"OR\",tblREGASSJune19[[#This Row],[Alloc]]=\"UT\",tblREGASSJune19[[#This Row],[Alloc]]=\"WYU\",tblREGASSJune19[[#This Row],[Alloc]]=\"WYP\",tblREGASSJune19[[#This Row],[Alloc]]=\"CA\",tblREGASSJune19[[#This Row],[Alloc]]=\"WA\"),\"SITUS\",tblREGASSJune19[[#This Row],[Alloc]])","v":"SITUS"},{"$f":"INDEX(tblREGASSLookup[FUNC],MATCH(tblREGASSJune19[[#This Row],[Concat]],tblREGASSLookup[Concat],0))","v":{"$error":"#N/A"}},{"$f":"IF(tblREGASSJune19[[#This Row],[Total ($000)]]=0,\"NO\",IF(ISNA(tblREGASSJune19[[#This Row],[FUNC]]),\"YES\",IF(_xlfn.ISFORMULA(tblREGASSJune19[[#This Row],[FUNC]]),\"NO\",\"YES\")))","v":"NO"}]
[{"$f":"CONCATENATE(tblREGASSJune19[[#This Row],[Primary Account]],tblREGASSJune19[[#This Row],[Primary Name]],tblREGASSJune19[[#This Row],[Secondary Acct]],tblREGASSJune19[[#This Row],[Secondary  Name]],tblREGASSJune19[[#This Row],[Alloc4FUNC]])","v":"1823930DSR COSTS NOT AMORT101311LOW INCOME   ID 95SITUS"},1823930,"DSR COSTS NOT AMORT",101311,"LOW INCOME   ID 95","IDU",0,{"$f":"IF(OR(tblREGASSJune19[[#This Row],[Alloc]]=\"IDU\",tblREGASSJune19[[#This Row],[Alloc]]=\"OR\",tblREGASSJune19[[#This Row],[Alloc]]=\"UT\",tblREGASSJune19[[#This Row],[Alloc]]=\"WYU\",tblREGASSJune19[[#This Row],[Alloc]]=\"WYP\",tblREGASSJune19[[#This Row],[Alloc]]=\"CA\",tblREGASSJune19[[#This Row],[Alloc]]=\"WA\"),\"SITUS\",tblREGASSJune19[[#This Row],[Alloc]])","v":"SITUS"},{"$f":"INDEX(tblREGASSLookup[FUNC],MATCH(tblREGASSJune19[[#This Row],[Concat]],tblREGASSLookup[Concat],0))","v":{"$error":"#N/A"}},{"$f":"IF(tblREGASSJune19[[#This Row],[Total ($000)]]=0,\"NO\",IF(ISNA(tblREGASSJune19[[#This Row],[FUNC]]),\"YES\",IF(_xlfn.ISFORMULA(tblREGASSJune19[[#This Row],[FUNC]]),\"NO\",\"YES\")))","v":"NO"}]
[{"$f":"CONCATENATE(tblREGASSJune19[[#This Row],[Primary Account]],tblREGASSJune19[[#This Row],[Primary Name]],tblREGASSJune19[[#This Row],[Secondary Acct]],tblREGASSJune19[[#This Row],[Secondary  Name]],tblREGASSJune19[[#This Row],[Alloc4FUNC]])","v":"1823930DSR COSTS NOT AMORT101312LOW INCOME   ID 96SITUS"},1823930,"DSR COSTS NOT AMORT",101312,"LOW INCOME   ID 96","IDU",0,{"$f":"IF(OR(tblREGASSJune19[[#This Row],[Alloc]]=\"IDU\",tblREGASSJune19[[#This Row],[Alloc]]=\"OR\",tblREGASSJune19[[#This Row],[Alloc]]=\"UT\",tblREGASSJune19[[#This Row],[Alloc]]=\"WYU\",tblREGASSJune19[[#This Row],[Alloc]]=\"WYP\",tblREGASSJune19[[#This Row],[Alloc]]=\"CA\",tblREGASSJune19[[#This Row],[Alloc]]=\"WA\"),\"SITUS\",tblREGASSJune19[[#This Row],[Alloc]])","v":"SITUS"},{"$f":"INDEX(tblREGASSLookup[FUNC],MATCH(tblREGASSJune19[[#This Row],[Concat]],tblREGASSLookup[Concat],0))","v":{"$error":"#N/A"}},{"$f":"IF(tblREGASSJune19[[#This Row],[Total ($000)]]=0,\"NO\",IF(ISNA(tblREGASSJune19[[#This Row],[FUNC]]),\"YES\",IF(_xlfn.ISFORMULA(tblREGASSJune19[[#This Row],[FUNC]]),\"NO\",\"YES\")))","v":"NO"}]
[{"$f":"CONCATENATE(tblREGASSJune19[[#This Row],[Primary Account]],tblREGASSJune19[[#This Row],[Primary Name]],tblREGASSJune19[[#This Row],[Secondary Acct]],tblREGASSJune19[[#This Row],[Secondary  Name]],tblREGASSJune19[[#This Row],[Alloc4FUNC]])","v":"1823930DSR COSTS NOT AMORT101313\"LOW INCOME PROGRAM, ID-UT 1998\"SITUS"},1823930,"DSR COSTS NOT AMORT",101313,"\"LOW INCOME PROGRAM, ID-UT 1998\"","IDU",0,{"$f":"IF(OR(tblREGASSJune19[[#This Row],[Alloc]]=\"IDU\",tblREGASSJune19[[#This Row],[Alloc]]=\"OR\",tblREGASSJune19[[#This Row],[Alloc]]=\"UT\",tblREGASSJune19[[#This Row],[Alloc]]=\"WYU\",tblREGASSJune19[[#This Row],[Alloc]]=\"WYP\",tblREGASSJune19[[#This Row],[Alloc]]=\"CA\",tblREGASSJune19[[#This Row],[Alloc]]=\"WA\"),\"SITUS\",tblREGASSJune19[[#This Row],[Alloc]])","v":"SITUS"},{"$f":"INDEX(tblREGASSLookup[FUNC],MATCH(tblREGASSJune19[[#This Row],[Concat]],tblREGASSLookup[Concat],0))","v":{"$error":"#N/A"}},{"$f":"IF(tblREGASSJune19[[#This Row],[Total ($000)]]=0,\"NO\",IF(ISNA(tblREGASSJune19[[#This Row],[FUNC]]),\"YES\",IF(_xlfn.ISFORMULA(tblREGASSJune19[[#This Row],[FUNC]]),\"NO\",\"YES\")))","v":"NO"}]
[{"$f":"CONCATENATE(tblREGASSJune19[[#This Row],[Primary Account]],tblREGASSJune19[[#This Row],[Primary Name]],tblREGASSJune19[[#This Row],[Secondary Acct]],tblREGASSJune19[[#This Row],[Secondary  Name]],tblREGASSJune19[[#This Row],[Alloc4FUNC]])","v":"1823930DSR COSTS NOT AMORT101314CASH GRANT   ID 90SITUS"},1823930,"DSR COSTS NOT AMORT",101314,"CASH GRANT   ID 90","IDU",0,{"$f":"IF(OR(tblREGASSJune19[[#This Row],[Alloc]]=\"IDU\",tblREGASSJune19[[#This Row],[Alloc]]=\"OR\",tblREGASSJune19[[#This Row],[Alloc]]=\"UT\",tblREGASSJune19[[#This Row],[Alloc]]=\"WYU\",tblREGASSJune19[[#This Row],[Alloc]]=\"WYP\",tblREGASSJune19[[#This Row],[Alloc]]=\"CA\",tblREGASSJune19[[#This Row],[Alloc]]=\"WA\"),\"SITUS\",tblREGASSJune19[[#This Row],[Alloc]])","v":"SITUS"},{"$f":"INDEX(tblREGASSLookup[FUNC],MATCH(tblREGASSJune19[[#This Row],[Concat]],tblREGASSLookup[Concat],0))","v":{"$error":"#N/A"}},{"$f":"IF(tblREGASSJune19[[#This Row],[Total ($000)]]=0,\"NO\",IF(ISNA(tblREGASSJune19[[#This Row],[FUNC]]),\"YES\",IF(_xlfn.ISFORMULA(tblREGASSJune19[[#This Row],[FUNC]]),\"NO\",\"YES\")))","v":"NO"}]
[{"$f":"CONCATENATE(tblREGASSJune19[[#This Row],[Primary Account]],tblREGASSJune19[[#This Row],[Primary Name]],tblREGASSJune19[[#This Row],[Secondary Acct]],tblREGASSJune19[[#This Row],[Secondary  Name]],tblREGASSJune19[[#This Row],[Alloc4FUNC]])","v":"1823930DSR COSTS NOT AMORT101315CASH GRANT   ID 91SITUS"},1823930,"DSR COSTS NOT AMORT",101315,"CASH GRANT   ID 91","IDU",0,{"$f":"IF(OR(tblREGASSJune19[[#This Row],[Alloc]]=\"IDU\",tblREGASSJune19[[#This Row],[Alloc]]=\"OR\",tblREGASSJune19[[#This Row],[Alloc]]=\"UT\",tblREGASSJune19[[#This Row],[Alloc]]=\"WYU\",tblREGASSJune19[[#This Row],[Alloc]]=\"WYP\",tblREGASSJune19[[#This Row],[Alloc]]=\"CA\",tblREGASSJune19[[#This Row],[Alloc]]=\"WA\"),\"SITUS\",tblREGASSJune19[[#This Row],[Alloc]])","v":"SITUS"},{"$f":"INDEX(tblREGASSLookup[FUNC],MATCH(tblREGASSJune19[[#This Row],[Concat]],tblREGASSLookup[Concat],0))","v":{"$error":"#N/A"}},{"$f":"IF(tblREGASSJune19[[#This Row],[Total ($000)]]=0,\"NO\",IF(ISNA(tblREGASSJune19[[#This Row],[FUNC]]),\"YES\",IF(_xlfn.ISFORMULA(tblREGASSJune19[[#This Row],[FUNC]]),\"NO\",\"YES\")))","v":"NO"}]
[{"$f":"CONCATENATE(tblREGASSJune19[[#This Row],[Primary Account]],tblREGASSJune19[[#This Row],[Primary Name]],tblREGASSJune19[[#This Row],[Secondary Acct]],tblREGASSJune19[[#This Row],[Secondary  Name]],tblREGASSJune19[[#This Row],[Alloc4FUNC]])","v":"1823930DSR COSTS NOT AMORT101316CASH GRANT   ID 92SITUS"},1823930,"DSR COSTS NOT AMORT",101316,"CASH GRANT   ID 92","IDU",0,{"$f":"IF(OR(tblREGASSJune19[[#This Row],[Alloc]]=\"IDU\",tblREGASSJune19[[#This Row],[Alloc]]=\"OR\",tblREGASSJune19[[#This Row],[Alloc]]=\"UT\",tblREGASSJune19[[#This Row],[Alloc]]=\"WYU\",tblREGASSJune19[[#This Row],[Alloc]]=\"WYP\",tblREGASSJune19[[#This Row],[Alloc]]=\"CA\",tblREGASSJune19[[#This Row],[Alloc]]=\"WA\"),\"SITUS\",tblREGASSJune19[[#This Row],[Alloc]])","v":"SITUS"},{"$f":"INDEX(tblREGASSLookup[FUNC],MATCH(tblREGASSJune19[[#This Row],[Concat]],tblREGASSLookup[Concat],0))","v":{"$error":"#N/A"}},{"$f":"IF(tblREGASSJune19[[#This Row],[Total ($000)]]=0,\"NO\",IF(ISNA(tblREGASSJune19[[#This Row],[FUNC]]),\"YES\",IF(_xlfn.ISFORMULA(tblREGASSJune19[[#This Row],[FUNC]]),\"NO\",\"YES\")))","v":"NO"}]
[{"$f":"CONCATENATE(tblREGASSJune19[[#This Row],[Primary Account]],tblREGASSJune19[[#This Row],[Primary Name]],tblREGASSJune19[[#This Row],[Secondary Acct]],tblREGASSJune19[[#This Row],[Secondary  Name]],tblREGASSJune19[[#This Row],[Alloc4FUNC]])","v":"1823930DSR COSTS NOT AMORT101317CASH GRANT   ID 93SITUS"},1823930,"DSR COSTS NOT AMORT",101317,"CASH GRANT   ID 93","IDU",0,{"$f":"IF(OR(tblREGASSJune19[[#This Row],[Alloc]]=\"IDU\",tblREGASSJune19[[#This Row],[Alloc]]=\"OR\",tblREGASSJune19[[#This Row],[Alloc]]=\"UT\",tblREGASSJune19[[#This Row],[Alloc]]=\"WYU\",tblREGASSJune19[[#This Row],[Alloc]]=\"WYP\",tblREGASSJune19[[#This Row],[Alloc]]=\"CA\",tblREGASSJune19[[#This Row],[Alloc]]=\"WA\"),\"SITUS\",tblREGASSJune19[[#This Row],[Alloc]])","v":"SITUS"},{"$f":"INDEX(tblREGASSLookup[FUNC],MATCH(tblREGASSJune19[[#This Row],[Concat]],tblREGASSLookup[Concat],0))","v":{"$error":"#N/A"}},{"$f":"IF(tblREGASSJune19[[#This Row],[Total ($000)]]=0,\"NO\",IF(ISNA(tblREGASSJune19[[#This Row],[FUNC]]),\"YES\",IF(_xlfn.ISFORMULA(tblREGASSJune19[[#This Row],[FUNC]]),\"NO\",\"YES\")))","v":"NO"}]
[{"$f":"CONCATENATE(tblREGASSJune19[[#This Row],[Primary Account]],tblREGASSJune19[[#This Row],[Primary Name]],tblREGASSJune19[[#This Row],[Secondary Acct]],tblREGASSJune19[[#This Row],[Secondary  Name]],tblREGASSJune19[[#This Row],[Alloc4FUNC]])","v":"1823930DSR COSTS NOT AMORT101318CASH GRANT   ID 94SITUS"},1823930,"DSR COSTS NOT AMORT",101318,"CASH GRANT   ID 94","IDU",0,{"$f":"IF(OR(tblREGASSJune19[[#This Row],[Alloc]]=\"IDU\",tblREGASSJune19[[#This Row],[Alloc]]=\"OR\",tblREGASSJune19[[#This Row],[Alloc]]=\"UT\",tblREGASSJune19[[#This Row],[Alloc]]=\"WYU\",tblREGASSJune19[[#This Row],[Alloc]]=\"WYP\",tblREGASSJune19[[#This Row],[Alloc]]=\"CA\",tblREGASSJune19[[#This Row],[Alloc]]=\"WA\"),\"SITUS\",tblREGASSJune19[[#This Row],[Alloc]])","v":"SITUS"},{"$f":"INDEX(tblREGASSLookup[FUNC],MATCH(tblREGASSJune19[[#This Row],[Concat]],tblREGASSLookup[Concat],0))","v":{"$error":"#N/A"}},{"$f":"IF(tblREGASSJune19[[#This Row],[Total ($000)]]=0,\"NO\",IF(ISNA(tblREGASSJune19[[#This Row],[FUNC]]),\"YES\",IF(_xlfn.ISFORMULA(tblREGASSJune19[[#This Row],[FUNC]]),\"NO\",\"YES\")))","v":"NO"}]
[{"$f":"CONCATENATE(tblREGASSJune19[[#This Row],[Primary Account]],tblREGASSJune19[[#This Row],[Primary Name]],tblREGASSJune19[[#This Row],[Secondary Acct]],tblREGASSJune19[[#This Row],[Secondary  Name]],tblREGASSJune19[[#This Row],[Alloc4FUNC]])","v":"1823930DSR COSTS NOT AMORT101319CASH GRANT   ID 95SITUS"},1823930,"DSR COSTS NOT AMORT",101319,"CASH GRANT   ID 95","IDU",0,{"$f":"IF(OR(tblREGASSJune19[[#This Row],[Alloc]]=\"IDU\",tblREGASSJune19[[#This Row],[Alloc]]=\"OR\",tblREGASSJune19[[#This Row],[Alloc]]=\"UT\",tblREGASSJune19[[#This Row],[Alloc]]=\"WYU\",tblREGASSJune19[[#This Row],[Alloc]]=\"WYP\",tblREGASSJune19[[#This Row],[Alloc]]=\"CA\",tblREGASSJune19[[#This Row],[Alloc]]=\"WA\"),\"SITUS\",tblREGASSJune19[[#This Row],[Alloc]])","v":"SITUS"},{"$f":"INDEX(tblREGASSLookup[FUNC],MATCH(tblREGASSJune19[[#This Row],[Concat]],tblREGASSLookup[Concat],0))","v":{"$error":"#N/A"}},{"$f":"IF(tblREGASSJune19[[#This Row],[Total ($000)]]=0,\"NO\",IF(ISNA(tblREGASSJune19[[#This Row],[FUNC]]),\"YES\",IF(_xlfn.ISFORMULA(tblREGASSJune19[[#This Row],[FUNC]]),\"NO\",\"YES\")))","v":"NO"}]
[{"$f":"CONCATENATE(tblREGASSJune19[[#This Row],[Primary Account]],tblREGASSJune19[[#This Row],[Primary Name]],tblREGASSJune19[[#This Row],[Secondary Acct]],tblREGASSJune19[[#This Row],[Secondary  Name]],tblREGASSJune19[[#This Row],[Alloc4FUNC]])","v":"1823930DSR COSTS NOT AMORT101320CASH GRANT   ID 96SITUS"},1823930,"DSR COSTS NOT AMORT",101320,"CASH GRANT   ID 96","IDU",0,{"$f":"IF(OR(tblREGASSJune19[[#This Row],[Alloc]]=\"IDU\",tblREGASSJune19[[#This Row],[Alloc]]=\"OR\",tblREGASSJune19[[#This Row],[Alloc]]=\"UT\",tblREGASSJune19[[#This Row],[Alloc]]=\"WYU\",tblREGASSJune19[[#This Row],[Alloc]]=\"WYP\",tblREGASSJune19[[#This Row],[Alloc]]=\"CA\",tblREGASSJune19[[#This Row],[Alloc]]=\"WA\"),\"SITUS\",tblREGASSJune19[[#This Row],[Alloc]])","v":"SITUS"},{"$f":"INDEX(tblREGASSLookup[FUNC],MATCH(tblREGASSJune19[[#This Row],[Concat]],tblREGASSLookup[Concat],0))","v":{"$error":"#N/A"}},{"$f":"IF(tblREGASSJune19[[#This Row],[Total ($000)]]=0,\"NO\",IF(ISNA(tblREGASSJune19[[#This Row],[FUNC]]),\"YES\",IF(_xlfn.ISFORMULA(tblREGASSJune19[[#This Row],[FUNC]]),\"NO\",\"YES\")))","v":"NO"}]
[{"$f":"CONCATENATE(tblREGASSJune19[[#This Row],[Primary Account]],tblREGASSJune19[[#This Row],[Primary Name]],tblREGASSJune19[[#This Row],[Secondary Acct]],tblREGASSJune19[[#This Row],[Secondary  Name]],tblREGASSJune19[[#This Row],[Alloc4FUNC]])","v":"1823930DSR COSTS NOT AMORT101321\"CASH GRANT HIP REGATE, IDAHO - UT 1997\"SITUS"},1823930,"DSR COSTS NOT AMORT",101321,"\"CASH GRANT HIP REGATE, IDAHO - UT 1997\"","IDU",0,{"$f":"IF(OR(tblREGASSJune19[[#This Row],[Alloc]]=\"IDU\",tblREGASSJune19[[#This Row],[Alloc]]=\"OR\",tblREGASSJune19[[#This Row],[Alloc]]=\"UT\",tblREGASSJune19[[#This Row],[Alloc]]=\"WYU\",tblREGASSJune19[[#This Row],[Alloc]]=\"WYP\",tblREGASSJune19[[#This Row],[Alloc]]=\"CA\",tblREGASSJune19[[#This Row],[Alloc]]=\"WA\"),\"SITUS\",tblREGASSJune19[[#This Row],[Alloc]])","v":"SITUS"},{"$f":"INDEX(tblREGASSLookup[FUNC],MATCH(tblREGASSJune19[[#This Row],[Concat]],tblREGASSLookup[Concat],0))","v":{"$error":"#N/A"}},{"$f":"IF(tblREGASSJune19[[#This Row],[Total ($000)]]=0,\"NO\",IF(ISNA(tblREGASSJune19[[#This Row],[FUNC]]),\"YES\",IF(_xlfn.ISFORMULA(tblREGASSJune19[[#This Row],[FUNC]]),\"NO\",\"YES\")))","v":"NO"}]
[{"$f":"CONCATENATE(tblREGASSJune19[[#This Row],[Primary Account]],tblREGASSJune19[[#This Row],[Primary Name]],tblREGASSJune19[[#This Row],[Secondary Acct]],tblREGASSJune19[[#This Row],[Secondary  Name]],tblREGASSJune19[[#This Row],[Alloc4FUNC]])","v":"1823930DSR COSTS NOT AMORT101322\"WEATHER LOANS, IDAHO - U 1997\"SITUS"},1823930,"DSR COSTS NOT AMORT",101322,"\"WEATHER LOANS, IDAHO - U 1997\"","IDU",0,{"$f":"IF(OR(tblREGASSJune19[[#This Row],[Alloc]]=\"IDU\",tblREGASSJune19[[#This Row],[Alloc]]=\"OR\",tblREGASSJune19[[#This Row],[Alloc]]=\"UT\",tblREGASSJune19[[#This Row],[Alloc]]=\"WYU\",tblREGASSJune19[[#This Row],[Alloc]]=\"WYP\",tblREGASSJune19[[#This Row],[Alloc]]=\"CA\",tblREGASSJune19[[#This Row],[Alloc]]=\"WA\"),\"SITUS\",tblREGASSJune19[[#This Row],[Alloc]])","v":"SITUS"},{"$f":"INDEX(tblREGASSLookup[FUNC],MATCH(tblREGASSJune19[[#This Row],[Concat]],tblREGASSLookup[Concat],0))","v":{"$error":"#N/A"}},{"$f":"IF(tblREGASSJune19[[#This Row],[Total ($000)]]=0,\"NO\",IF(ISNA(tblREGASSJune19[[#This Row],[FUNC]]),\"YES\",IF(_xlfn.ISFORMULA(tblREGASSJune19[[#This Row],[FUNC]]),\"NO\",\"YES\")))","v":"NO"}]
[{"$f":"CONCATENATE(tblREGASSJune19[[#This Row],[Primary Account]],tblREGASSJune19[[#This Row],[Primary Name]],tblREGASSJune19[[#This Row],[Secondary Acct]],tblREGASSJune19[[#This Row],[Secondary  Name]],tblREGASSJune19[[#This Row],[Alloc4FUNC]])","v":"1823930DSR COSTS NOT AMORT101323\"WEATHER LOANS, IDAHO - U 1998\"SITUS"},1823930,"DSR COSTS NOT AMORT",101323,"\"WEATHER LOANS, IDAHO - U 1998\"","IDU",0,{"$f":"IF(OR(tblREGASSJune19[[#This Row],[Alloc]]=\"IDU\",tblREGASSJune19[[#This Row],[Alloc]]=\"OR\",tblREGASSJune19[[#This Row],[Alloc]]=\"UT\",tblREGASSJune19[[#This Row],[Alloc]]=\"WYU\",tblREGASSJune19[[#This Row],[Alloc]]=\"WYP\",tblREGASSJune19[[#This Row],[Alloc]]=\"CA\",tblREGASSJune19[[#This Row],[Alloc]]=\"WA\"),\"SITUS\",tblREGASSJune19[[#This Row],[Alloc]])","v":"SITUS"},{"$f":"INDEX(tblREGASSLookup[FUNC],MATCH(tblREGASSJune19[[#This Row],[Concat]],tblREGASSLookup[Concat],0))","v":{"$error":"#N/A"}},{"$f":"IF(tblREGASSJune19[[#This Row],[Total ($000)]]=0,\"NO\",IF(ISNA(tblREGASSJune19[[#This Row],[FUNC]]),\"YES\",IF(_xlfn.ISFORMULA(tblREGASSJune19[[#This Row],[FUNC]]),\"NO\",\"YES\")))","v":"NO"}]
[{"$f":"CONCATENATE(tblREGASSJune19[[#This Row],[Primary Account]],tblREGASSJune19[[#This Row],[Primary Name]],tblREGASSJune19[[#This Row],[Secondary Acct]],tblREGASSJune19[[#This Row],[Secondary  Name]],tblREGASSJune19[[#This Row],[Alloc4FUNC]])","v":"1823930DSR COSTS NOT AMORT101324EARLY PAYOFF ID 92SITUS"},1823930,"DSR COSTS NOT AMORT",101324,"EARLY PAYOFF ID 92","IDU",0,{"$f":"IF(OR(tblREGASSJune19[[#This Row],[Alloc]]=\"IDU\",tblREGASSJune19[[#This Row],[Alloc]]=\"OR\",tblREGASSJune19[[#This Row],[Alloc]]=\"UT\",tblREGASSJune19[[#This Row],[Alloc]]=\"WYU\",tblREGASSJune19[[#This Row],[Alloc]]=\"WYP\",tblREGASSJune19[[#This Row],[Alloc]]=\"CA\",tblREGASSJune19[[#This Row],[Alloc]]=\"WA\"),\"SITUS\",tblREGASSJune19[[#This Row],[Alloc]])","v":"SITUS"},{"$f":"INDEX(tblREGASSLookup[FUNC],MATCH(tblREGASSJune19[[#This Row],[Concat]],tblREGASSLookup[Concat],0))","v":{"$error":"#N/A"}},{"$f":"IF(tblREGASSJune19[[#This Row],[Total ($000)]]=0,\"NO\",IF(ISNA(tblREGASSJune19[[#This Row],[FUNC]]),\"YES\",IF(_xlfn.ISFORMULA(tblREGASSJune19[[#This Row],[FUNC]]),\"NO\",\"YES\")))","v":"NO"}]
[{"$f":"CONCATENATE(tblREGASSJune19[[#This Row],[Primary Account]],tblREGASSJune19[[#This Row],[Primary Name]],tblREGASSJune19[[#This Row],[Secondary Acct]],tblREGASSJune19[[#This Row],[Secondary  Name]],tblREGASSJune19[[#This Row],[Alloc4FUNC]])","v":"1823930DSR COSTS NOT AMORT101325EARLY PAYOFF ID 93SITUS"},1823930,"DSR COSTS NOT AMORT",101325,"EARLY PAYOFF ID 93","IDU",0,{"$f":"IF(OR(tblREGASSJune19[[#This Row],[Alloc]]=\"IDU\",tblREGASSJune19[[#This Row],[Alloc]]=\"OR\",tblREGASSJune19[[#This Row],[Alloc]]=\"UT\",tblREGASSJune19[[#This Row],[Alloc]]=\"WYU\",tblREGASSJune19[[#This Row],[Alloc]]=\"WYP\",tblREGASSJune19[[#This Row],[Alloc]]=\"CA\",tblREGASSJune19[[#This Row],[Alloc]]=\"WA\"),\"SITUS\",tblREGASSJune19[[#This Row],[Alloc]])","v":"SITUS"},{"$f":"INDEX(tblREGASSLookup[FUNC],MATCH(tblREGASSJune19[[#This Row],[Concat]],tblREGASSLookup[Concat],0))","v":{"$error":"#N/A"}},{"$f":"IF(tblREGASSJune19[[#This Row],[Total ($000)]]=0,\"NO\",IF(ISNA(tblREGASSJune19[[#This Row],[FUNC]]),\"YES\",IF(_xlfn.ISFORMULA(tblREGASSJune19[[#This Row],[FUNC]]),\"NO\",\"YES\")))","v":"NO"}]
[{"$f":"CONCATENATE(tblREGASSJune19[[#This Row],[Primary Account]],tblREGASSJune19[[#This Row],[Primary Name]],tblREGASSJune19[[#This Row],[Secondary Acct]],tblREGASSJune19[[#This Row],[Secondary  Name]],tblREGASSJune19[[#This Row],[Alloc4FUNC]])","v":"1823930DSR COSTS NOT AMORT101326IRRIGATION   ID 93SITUS"},1823930,"DSR COSTS NOT AMORT",101326,"IRRIGATION   ID 93","IDU",0,{"$f":"IF(OR(tblREGASSJune19[[#This Row],[Alloc]]=\"IDU\",tblREGASSJune19[[#This Row],[Alloc]]=\"OR\",tblREGASSJune19[[#This Row],[Alloc]]=\"UT\",tblREGASSJune19[[#This Row],[Alloc]]=\"WYU\",tblREGASSJune19[[#This Row],[Alloc]]=\"WYP\",tblREGASSJune19[[#This Row],[Alloc]]=\"CA\",tblREGASSJune19[[#This Row],[Alloc]]=\"WA\"),\"SITUS\",tblREGASSJune19[[#This Row],[Alloc]])","v":"SITUS"},{"$f":"INDEX(tblREGASSLookup[FUNC],MATCH(tblREGASSJune19[[#This Row],[Concat]],tblREGASSLookup[Concat],0))","v":{"$error":"#N/A"}},{"$f":"IF(tblREGASSJune19[[#This Row],[Total ($000)]]=0,\"NO\",IF(ISNA(tblREGASSJune19[[#This Row],[FUNC]]),\"YES\",IF(_xlfn.ISFORMULA(tblREGASSJune19[[#This Row],[FUNC]]),\"NO\",\"YES\")))","v":"NO"}]
[{"$f":"CONCATENATE(tblREGASSJune19[[#This Row],[Primary Account]],tblREGASSJune19[[#This Row],[Primary Name]],tblREGASSJune19[[#This Row],[Secondary Acct]],tblREGASSJune19[[#This Row],[Secondary  Name]],tblREGASSJune19[[#This Row],[Alloc4FUNC]])","v":"1823930DSR COSTS NOT AMORT101327IRRIGATION   ID 94SITUS"},1823930,"DSR COSTS NOT AMORT",101327,"IRRIGATION   ID 94","IDU",0,{"$f":"IF(OR(tblREGASSJune19[[#This Row],[Alloc]]=\"IDU\",tblREGASSJune19[[#This Row],[Alloc]]=\"OR\",tblREGASSJune19[[#This Row],[Alloc]]=\"UT\",tblREGASSJune19[[#This Row],[Alloc]]=\"WYU\",tblREGASSJune19[[#This Row],[Alloc]]=\"WYP\",tblREGASSJune19[[#This Row],[Alloc]]=\"CA\",tblREGASSJune19[[#This Row],[Alloc]]=\"WA\"),\"SITUS\",tblREGASSJune19[[#This Row],[Alloc]])","v":"SITUS"},{"$f":"INDEX(tblREGASSLookup[FUNC],MATCH(tblREGASSJune19[[#This Row],[Concat]],tblREGASSLookup[Concat],0))","v":{"$error":"#N/A"}},{"$f":"IF(tblREGASSJune19[[#This Row],[Total ($000)]]=0,\"NO\",IF(ISNA(tblREGASSJune19[[#This Row],[FUNC]]),\"YES\",IF(_xlfn.ISFORMULA(tblREGASSJune19[[#This Row],[FUNC]]),\"NO\",\"YES\")))","v":"NO"}]
[{"$f":"CONCATENATE(tblREGASSJune19[[#This Row],[Primary Account]],tblREGASSJune19[[#This Row],[Primary Name]],tblREGASSJune19[[#This Row],[Secondary Acct]],tblREGASSJune19[[#This Row],[Secondary  Name]],tblREGASSJune19[[#This Row],[Alloc4FUNC]])","v":"1823930DSR COSTS NOT AMORT101328IRRIGATION   ID 95SITUS"},1823930,"DSR COSTS NOT AMORT",101328,"IRRIGATION   ID 95","IDU",0,{"$f":"IF(OR(tblREGASSJune19[[#This Row],[Alloc]]=\"IDU\",tblREGASSJune19[[#This Row],[Alloc]]=\"OR\",tblREGASSJune19[[#This Row],[Alloc]]=\"UT\",tblREGASSJune19[[#This Row],[Alloc]]=\"WYU\",tblREGASSJune19[[#This Row],[Alloc]]=\"WYP\",tblREGASSJune19[[#This Row],[Alloc]]=\"CA\",tblREGASSJune19[[#This Row],[Alloc]]=\"WA\"),\"SITUS\",tblREGASSJune19[[#This Row],[Alloc]])","v":"SITUS"},{"$f":"INDEX(tblREGASSLookup[FUNC],MATCH(tblREGASSJune19[[#This Row],[Concat]],tblREGASSLookup[Concat],0))","v":{"$error":"#N/A"}},{"$f":"IF(tblREGASSJune19[[#This Row],[Total ($000)]]=0,\"NO\",IF(ISNA(tblREGASSJune19[[#This Row],[FUNC]]),\"YES\",IF(_xlfn.ISFORMULA(tblREGASSJune19[[#This Row],[FUNC]]),\"NO\",\"YES\")))","v":"NO"}]
[{"$f":"CONCATENATE(tblREGASSJune19[[#This Row],[Primary Account]],tblREGASSJune19[[#This Row],[Primary Name]],tblREGASSJune19[[#This Row],[Secondary Acct]],tblREGASSJune19[[#This Row],[Secondary  Name]],tblREGASSJune19[[#This Row],[Alloc4FUNC]])","v":"1823930DSR COSTS NOT AMORT101329SELF AUDIT - IDAHO-UT 1998SITUS"},1823930,"DSR COSTS NOT AMORT",101329,"SELF AUDIT - IDAHO-UT 1998","IDU",0,{"$f":"IF(OR(tblREGASSJune19[[#This Row],[Alloc]]=\"IDU\",tblREGASSJune19[[#This Row],[Alloc]]=\"OR\",tblREGASSJune19[[#This Row],[Alloc]]=\"UT\",tblREGASSJune19[[#This Row],[Alloc]]=\"WYU\",tblREGASSJune19[[#This Row],[Alloc]]=\"WYP\",tblREGASSJune19[[#This Row],[Alloc]]=\"CA\",tblREGASSJune19[[#This Row],[Alloc]]=\"WA\"),\"SITUS\",tblREGASSJune19[[#This Row],[Alloc]])","v":"SITUS"},{"$f":"INDEX(tblREGASSLookup[FUNC],MATCH(tblREGASSJune19[[#This Row],[Concat]],tblREGASSLookup[Concat],0))","v":{"$error":"#N/A"}},{"$f":"IF(tblREGASSJune19[[#This Row],[Total ($000)]]=0,\"NO\",IF(ISNA(tblREGASSJune19[[#This Row],[FUNC]]),\"YES\",IF(_xlfn.ISFORMULA(tblREGASSJune19[[#This Row],[FUNC]]),\"NO\",\"YES\")))","v":"NO"}]
[{"$f":"CONCATENATE(tblREGASSJune19[[#This Row],[Primary Account]],tblREGASSJune19[[#This Row],[Primary Name]],tblREGASSJune19[[#This Row],[Secondary Acct]],tblREGASSJune19[[#This Row],[Secondary  Name]],tblREGASSJune19[[#This Row],[Alloc4FUNC]])","v":"1823930DSR COSTS NOT AMORT101330REG MOBILE HOME 93SITUS"},1823930,"DSR COSTS NOT AMORT",101330,"REG MOBILE HOME 93","IDU",0,{"$f":"IF(OR(tblREGASSJune19[[#This Row],[Alloc]]=\"IDU\",tblREGASSJune19[[#This Row],[Alloc]]=\"OR\",tblREGASSJune19[[#This Row],[Alloc]]=\"UT\",tblREGASSJune19[[#This Row],[Alloc]]=\"WYU\",tblREGASSJune19[[#This Row],[Alloc]]=\"WYP\",tblREGASSJune19[[#This Row],[Alloc]]=\"CA\",tblREGASSJune19[[#This Row],[Alloc]]=\"WA\"),\"SITUS\",tblREGASSJune19[[#This Row],[Alloc]])","v":"SITUS"},{"$f":"INDEX(tblREGASSLookup[FUNC],MATCH(tblREGASSJune19[[#This Row],[Concat]],tblREGASSLookup[Concat],0))","v":{"$error":"#N/A"}},{"$f":"IF(tblREGASSJune19[[#This Row],[Total ($000)]]=0,\"NO\",IF(ISNA(tblREGASSJune19[[#This Row],[FUNC]]),\"YES\",IF(_xlfn.ISFORMULA(tblREGASSJune19[[#This Row],[FUNC]]),\"NO\",\"YES\")))","v":"NO"}]
[{"$f":"CONCATENATE(tblREGASSJune19[[#This Row],[Primary Account]],tblREGASSJune19[[#This Row],[Primary Name]],tblREGASSJune19[[#This Row],[Secondary Acct]],tblREGASSJune19[[#This Row],[Secondary  Name]],tblREGASSJune19[[#This Row],[Alloc4FUNC]])","v":"1823930DSR COSTS NOT AMORT101331REG MOBILE HOME 94SITUS"},1823930,"DSR COSTS NOT AMORT",101331,"REG MOBILE HOME 94","IDU",0,{"$f":"IF(OR(tblREGASSJune19[[#This Row],[Alloc]]=\"IDU\",tblREGASSJune19[[#This Row],[Alloc]]=\"OR\",tblREGASSJune19[[#This Row],[Alloc]]=\"UT\",tblREGASSJune19[[#This Row],[Alloc]]=\"WYU\",tblREGASSJune19[[#This Row],[Alloc]]=\"WYP\",tblREGASSJune19[[#This Row],[Alloc]]=\"CA\",tblREGASSJune19[[#This Row],[Alloc]]=\"WA\"),\"SITUS\",tblREGASSJune19[[#This Row],[Alloc]])","v":"SITUS"},{"$f":"INDEX(tblREGASSLookup[FUNC],MATCH(tblREGASSJune19[[#This Row],[Concat]],tblREGASSLookup[Concat],0))","v":{"$error":"#N/A"}},{"$f":"IF(tblREGASSJune19[[#This Row],[Total ($000)]]=0,\"NO\",IF(ISNA(tblREGASSJune19[[#This Row],[FUNC]]),\"YES\",IF(_xlfn.ISFORMULA(tblREGASSJune19[[#This Row],[FUNC]]),\"NO\",\"YES\")))","v":"NO"}]
[{"$f":"CONCATENATE(tblREGASSJune19[[#This Row],[Primary Account]],tblREGASSJune19[[#This Row],[Primary Name]],tblREGASSJune19[[#This Row],[Secondary Acct]],tblREGASSJune19[[#This Row],[Secondary  Name]],tblREGASSJune19[[#This Row],[Alloc4FUNC]])","v":"1823930DSR COSTS NOT AMORT101332REG MOBILE HOME 95SITUS"},1823930,"DSR COSTS NOT AMORT",101332,"REG MOBILE HOME 95","IDU",0,{"$f":"IF(OR(tblREGASSJune19[[#This Row],[Alloc]]=\"IDU\",tblREGASSJune19[[#This Row],[Alloc]]=\"OR\",tblREGASSJune19[[#This Row],[Alloc]]=\"UT\",tblREGASSJune19[[#This Row],[Alloc]]=\"WYU\",tblREGASSJune19[[#This Row],[Alloc]]=\"WYP\",tblREGASSJune19[[#This Row],[Alloc]]=\"CA\",tblREGASSJune19[[#This Row],[Alloc]]=\"WA\"),\"SITUS\",tblREGASSJune19[[#This Row],[Alloc]])","v":"SITUS"},{"$f":"INDEX(tblREGASSLookup[FUNC],MATCH(tblREGASSJune19[[#This Row],[Concat]],tblREGASSLookup[Concat],0))","v":{"$error":"#N/A"}},{"$f":"IF(tblREGASSJune19[[#This Row],[Total ($000)]]=0,\"NO\",IF(ISNA(tblREGASSJune19[[#This Row],[FUNC]]),\"YES\",IF(_xlfn.ISFORMULA(tblREGASSJune19[[#This Row],[FUNC]]),\"NO\",\"YES\")))","v":"NO"}]
[{"$f":"CONCATENATE(tblREGASSJune19[[#This Row],[Primary Account]],tblREGASSJune19[[#This Row],[Primary Name]],tblREGASSJune19[[#This Row],[Secondary Acct]],tblREGASSJune19[[#This Row],[Secondary  Name]],tblREGASSJune19[[#This Row],[Alloc4FUNC]])","v":"1823930DSR COSTS NOT AMORT101333REG MOBILE HOME 96SITUS"},1823930,"DSR COSTS NOT AMORT",101333,"REG MOBILE HOME 96","IDU",0,{"$f":"IF(OR(tblREGASSJune19[[#This Row],[Alloc]]=\"IDU\",tblREGASSJune19[[#This Row],[Alloc]]=\"OR\",tblREGASSJune19[[#This Row],[Alloc]]=\"UT\",tblREGASSJune19[[#This Row],[Alloc]]=\"WYU\",tblREGASSJune19[[#This Row],[Alloc]]=\"WYP\",tblREGASSJune19[[#This Row],[Alloc]]=\"CA\",tblREGASSJune19[[#This Row],[Alloc]]=\"WA\"),\"SITUS\",tblREGASSJune19[[#This Row],[Alloc]])","v":"SITUS"},{"$f":"INDEX(tblREGASSLookup[FUNC],MATCH(tblREGASSJune19[[#This Row],[Concat]],tblREGASSLookup[Concat],0))","v":{"$error":"#N/A"}},{"$f":"IF(tblREGASSJune19[[#This Row],[Total ($000)]]=0,\"NO\",IF(ISNA(tblREGASSJune19[[#This Row],[FUNC]]),\"YES\",IF(_xlfn.ISFORMULA(tblREGASSJune19[[#This Row],[FUNC]]),\"NO\",\"YES\")))","v":"NO"}]
[{"$f":"CONCATENATE(tblREGASSJune19[[#This Row],[Primary Account]],tblREGASSJune19[[#This Row],[Primary Name]],tblREGASSJune19[[#This Row],[Secondary Acct]],tblREGASSJune19[[#This Row],[Secondary  Name]],tblREGASSJune19[[#This Row],[Alloc4FUNC]])","v":"1823930DSR COSTS NOT AMORT101334\"REGIONAL MOBILE HOME (MAP), ID-UT 1997\"SITUS"},1823930,"DSR COSTS NOT AMORT",101334,"\"REGIONAL MOBILE HOME (MAP), ID-UT 1997\"","IDU",0,{"$f":"IF(OR(tblREGASSJune19[[#This Row],[Alloc]]=\"IDU\",tblREGASSJune19[[#This Row],[Alloc]]=\"OR\",tblREGASSJune19[[#This Row],[Alloc]]=\"UT\",tblREGASSJune19[[#This Row],[Alloc]]=\"WYU\",tblREGASSJune19[[#This Row],[Alloc]]=\"WYP\",tblREGASSJune19[[#This Row],[Alloc]]=\"CA\",tblREGASSJune19[[#This Row],[Alloc]]=\"WA\"),\"SITUS\",tblREGASSJune19[[#This Row],[Alloc]])","v":"SITUS"},{"$f":"INDEX(tblREGASSLookup[FUNC],MATCH(tblREGASSJune19[[#This Row],[Concat]],tblREGASSLookup[Concat],0))","v":{"$error":"#N/A"}},{"$f":"IF(tblREGASSJune19[[#This Row],[Total ($000)]]=0,\"NO\",IF(ISNA(tblREGASSJune19[[#This Row],[FUNC]]),\"YES\",IF(_xlfn.ISFORMULA(tblREGASSJune19[[#This Row],[FUNC]]),\"NO\",\"YES\")))","v":"NO"}]
[{"$f":"CONCATENATE(tblREGASSJune19[[#This Row],[Primary Account]],tblREGASSJune19[[#This Row],[Primary Name]],tblREGASSJune19[[#This Row],[Secondary Acct]],tblREGASSJune19[[#This Row],[Secondary  Name]],tblREGASSJune19[[#This Row],[Alloc4FUNC]])","v":"1823930DSR COSTS NOT AMORT101335TECH MONITOR ID 92SITUS"},1823930,"DSR COSTS NOT AMORT",101335,"TECH MONITOR ID 92","IDU",0,{"$f":"IF(OR(tblREGASSJune19[[#This Row],[Alloc]]=\"IDU\",tblREGASSJune19[[#This Row],[Alloc]]=\"OR\",tblREGASSJune19[[#This Row],[Alloc]]=\"UT\",tblREGASSJune19[[#This Row],[Alloc]]=\"WYU\",tblREGASSJune19[[#This Row],[Alloc]]=\"WYP\",tblREGASSJune19[[#This Row],[Alloc]]=\"CA\",tblREGASSJune19[[#This Row],[Alloc]]=\"WA\"),\"SITUS\",tblREGASSJune19[[#This Row],[Alloc]])","v":"SITUS"},{"$f":"INDEX(tblREGASSLookup[FUNC],MATCH(tblREGASSJune19[[#This Row],[Concat]],tblREGASSLookup[Concat],0))","v":{"$error":"#N/A"}},{"$f":"IF(tblREGASSJune19[[#This Row],[Total ($000)]]=0,\"NO\",IF(ISNA(tblREGASSJune19[[#This Row],[FUNC]]),\"YES\",IF(_xlfn.ISFORMULA(tblREGASSJune19[[#This Row],[FUNC]]),\"NO\",\"YES\")))","v":"NO"}]
[{"$f":"CONCATENATE(tblREGASSJune19[[#This Row],[Primary Account]],tblREGASSJune19[[#This Row],[Primary Name]],tblREGASSJune19[[#This Row],[Secondary Acct]],tblREGASSJune19[[#This Row],[Secondary  Name]],tblREGASSJune19[[#This Row],[Alloc4FUNC]])","v":"1823930DSR COSTS NOT AMORT101336TECH MONITOR ID 93SITUS"},1823930,"DSR COSTS NOT AMORT",101336,"TECH MONITOR ID 93","IDU",0,{"$f":"IF(OR(tblREGASSJune19[[#This Row],[Alloc]]=\"IDU\",tblREGASSJune19[[#This Row],[Alloc]]=\"OR\",tblREGASSJune19[[#This Row],[Alloc]]=\"UT\",tblREGASSJune19[[#This Row],[Alloc]]=\"WYU\",tblREGASSJune19[[#This Row],[Alloc]]=\"WYP\",tblREGASSJune19[[#This Row],[Alloc]]=\"CA\",tblREGASSJune19[[#This Row],[Alloc]]=\"WA\"),\"SITUS\",tblREGASSJune19[[#This Row],[Alloc]])","v":"SITUS"},{"$f":"INDEX(tblREGASSLookup[FUNC],MATCH(tblREGASSJune19[[#This Row],[Concat]],tblREGASSLookup[Concat],0))","v":{"$error":"#N/A"}},{"$f":"IF(tblREGASSJune19[[#This Row],[Total ($000)]]=0,\"NO\",IF(ISNA(tblREGASSJune19[[#This Row],[FUNC]]),\"YES\",IF(_xlfn.ISFORMULA(tblREGASSJune19[[#This Row],[FUNC]]),\"NO\",\"YES\")))","v":"NO"}]
[{"$f":"CONCATENATE(tblREGASSJune19[[#This Row],[Primary Account]],tblREGASSJune19[[#This Row],[Primary Name]],tblREGASSJune19[[#This Row],[Secondary Acct]],tblREGASSJune19[[#This Row],[Secondary  Name]],tblREGASSJune19[[#This Row],[Alloc4FUNC]])","v":"1823930DSR COSTS NOT AMORT101337HASSLE FREE  ID 92SITUS"},1823930,"DSR COSTS NOT AMORT",101337,"HASSLE FREE  ID 92","IDU",0,{"$f":"IF(OR(tblREGASSJune19[[#This Row],[Alloc]]=\"IDU\",tblREGASSJune19[[#This Row],[Alloc]]=\"OR\",tblREGASSJune19[[#This Row],[Alloc]]=\"UT\",tblREGASSJune19[[#This Row],[Alloc]]=\"WYU\",tblREGASSJune19[[#This Row],[Alloc]]=\"WYP\",tblREGASSJune19[[#This Row],[Alloc]]=\"CA\",tblREGASSJune19[[#This Row],[Alloc]]=\"WA\"),\"SITUS\",tblREGASSJune19[[#This Row],[Alloc]])","v":"SITUS"},{"$f":"INDEX(tblREGASSLookup[FUNC],MATCH(tblREGASSJune19[[#This Row],[Concat]],tblREGASSLookup[Concat],0))","v":{"$error":"#N/A"}},{"$f":"IF(tblREGASSJune19[[#This Row],[Total ($000)]]=0,\"NO\",IF(ISNA(tblREGASSJune19[[#This Row],[FUNC]]),\"YES\",IF(_xlfn.ISFORMULA(tblREGASSJune19[[#This Row],[FUNC]]),\"NO\",\"YES\")))","v":"NO"}]
[{"$f":"CONCATENATE(tblREGASSJune19[[#This Row],[Primary Account]],tblREGASSJune19[[#This Row],[Primary Name]],tblREGASSJune19[[#This Row],[Secondary Acct]],tblREGASSJune19[[#This Row],[Secondary  Name]],tblREGASSJune19[[#This Row],[Alloc4FUNC]])","v":"1823930DSR COSTS NOT AMORT101338HASSLE FREE  ID 94SITUS"},1823930,"DSR COSTS NOT AMORT",101338,"HASSLE FREE  ID 94","IDU",0,{"$f":"IF(OR(tblREGASSJune19[[#This Row],[Alloc]]=\"IDU\",tblREGASSJune19[[#This Row],[Alloc]]=\"OR\",tblREGASSJune19[[#This Row],[Alloc]]=\"UT\",tblREGASSJune19[[#This Row],[Alloc]]=\"WYU\",tblREGASSJune19[[#This Row],[Alloc]]=\"WYP\",tblREGASSJune19[[#This Row],[Alloc]]=\"CA\",tblREGASSJune19[[#This Row],[Alloc]]=\"WA\"),\"SITUS\",tblREGASSJune19[[#This Row],[Alloc]])","v":"SITUS"},{"$f":"INDEX(tblREGASSLookup[FUNC],MATCH(tblREGASSJune19[[#This Row],[Concat]],tblREGASSLookup[Concat],0))","v":{"$error":"#N/A"}},{"$f":"IF(tblREGASSJune19[[#This Row],[Total ($000)]]=0,\"NO\",IF(ISNA(tblREGASSJune19[[#This Row],[FUNC]]),\"YES\",IF(_xlfn.ISFORMULA(tblREGASSJune19[[#This Row],[FUNC]]),\"NO\",\"YES\")))","v":"NO"}]
[{"$f":"CONCATENATE(tblREGASSJune19[[#This Row],[Primary Account]],tblREGASSJune19[[#This Row],[Primary Name]],tblREGASSJune19[[#This Row],[Secondary Acct]],tblREGASSJune19[[#This Row],[Secondary  Name]],tblREGASSJune19[[#This Row],[Alloc4FUNC]])","v":"1823930DSR COSTS NOT AMORT101339HASSLE FREE  ID 95SITUS"},1823930,"DSR COSTS NOT AMORT",101339,"HASSLE FREE  ID 95","IDU",0,{"$f":"IF(OR(tblREGASSJune19[[#This Row],[Alloc]]=\"IDU\",tblREGASSJune19[[#This Row],[Alloc]]=\"OR\",tblREGASSJune19[[#This Row],[Alloc]]=\"UT\",tblREGASSJune19[[#This Row],[Alloc]]=\"WYU\",tblREGASSJune19[[#This Row],[Alloc]]=\"WYP\",tblREGASSJune19[[#This Row],[Alloc]]=\"CA\",tblREGASSJune19[[#This Row],[Alloc]]=\"WA\"),\"SITUS\",tblREGASSJune19[[#This Row],[Alloc]])","v":"SITUS"},{"$f":"INDEX(tblREGASSLookup[FUNC],MATCH(tblREGASSJune19[[#This Row],[Concat]],tblREGASSLookup[Concat],0))","v":{"$error":"#N/A"}},{"$f":"IF(tblREGASSJune19[[#This Row],[Total ($000)]]=0,\"NO\",IF(ISNA(tblREGASSJune19[[#This Row],[FUNC]]),\"YES\",IF(_xlfn.ISFORMULA(tblREGASSJune19[[#This Row],[FUNC]]),\"NO\",\"YES\")))","v":"NO"}]
[{"$f":"CONCATENATE(tblREGASSJune19[[#This Row],[Primary Account]],tblREGASSJune19[[#This Row],[Primary Name]],tblREGASSJune19[[#This Row],[Secondary Acct]],tblREGASSJune19[[#This Row],[Secondary  Name]],tblREGASSJune19[[#This Row],[Alloc4FUNC]])","v":"1823930DSR COSTS NOT AMORT101340HASSLE FREE  ID 96SITUS"},1823930,"DSR COSTS NOT AMORT",101340,"HASSLE FREE  ID 96","IDU",0,{"$f":"IF(OR(tblREGASSJune19[[#This Row],[Alloc]]=\"IDU\",tblREGASSJune19[[#This Row],[Alloc]]=\"OR\",tblREGASSJune19[[#This Row],[Alloc]]=\"UT\",tblREGASSJune19[[#This Row],[Alloc]]=\"WYU\",tblREGASSJune19[[#This Row],[Alloc]]=\"WYP\",tblREGASSJune19[[#This Row],[Alloc]]=\"CA\",tblREGASSJune19[[#This Row],[Alloc]]=\"WA\"),\"SITUS\",tblREGASSJune19[[#This Row],[Alloc]])","v":"SITUS"},{"$f":"INDEX(tblREGASSLookup[FUNC],MATCH(tblREGASSJune19[[#This Row],[Concat]],tblREGASSLookup[Concat],0))","v":{"$error":"#N/A"}},{"$f":"IF(tblREGASSJune19[[#This Row],[Total ($000)]]=0,\"NO\",IF(ISNA(tblREGASSJune19[[#This Row],[FUNC]]),\"YES\",IF(_xlfn.ISFORMULA(tblREGASSJune19[[#This Row],[FUNC]]),\"NO\",\"YES\")))","v":"NO"}]
[{"$f":"CONCATENATE(tblREGASSJune19[[#This Row],[Primary Account]],tblREGASSJune19[[#This Row],[Primary Name]],tblREGASSJune19[[#This Row],[Secondary Acct]],tblREGASSJune19[[#This Row],[Secondary  Name]],tblREGASSJune19[[#This Row],[Alloc4FUNC]])","v":"1823930DSR COSTS NOT AMORT101341HASSLE FREE EFFICIENCY - IDAHO-UT 1997SITUS"},1823930,"DSR COSTS NOT AMORT",101341,"HASSLE FREE EFFICIENCY - IDAHO-UT 1997","IDU",0,{"$f":"IF(OR(tblREGASSJune19[[#This Row],[Alloc]]=\"IDU\",tblREGASSJune19[[#This Row],[Alloc]]=\"OR\",tblREGASSJune19[[#This Row],[Alloc]]=\"UT\",tblREGASSJune19[[#This Row],[Alloc]]=\"WYU\",tblREGASSJune19[[#This Row],[Alloc]]=\"WYP\",tblREGASSJune19[[#This Row],[Alloc]]=\"CA\",tblREGASSJune19[[#This Row],[Alloc]]=\"WA\"),\"SITUS\",tblREGASSJune19[[#This Row],[Alloc]])","v":"SITUS"},{"$f":"INDEX(tblREGASSLookup[FUNC],MATCH(tblREGASSJune19[[#This Row],[Concat]],tblREGASSLookup[Concat],0))","v":{"$error":"#N/A"}},{"$f":"IF(tblREGASSJune19[[#This Row],[Total ($000)]]=0,\"NO\",IF(ISNA(tblREGASSJune19[[#This Row],[FUNC]]),\"YES\",IF(_xlfn.ISFORMULA(tblREGASSJune19[[#This Row],[FUNC]]),\"NO\",\"YES\")))","v":"NO"}]
[{"$f":"CONCATENATE(tblREGASSJune19[[#This Row],[Primary Account]],tblREGASSJune19[[#This Row],[Primary Name]],tblREGASSJune19[[#This Row],[Secondary Acct]],tblREGASSJune19[[#This Row],[Secondary  Name]],tblREGASSJune19[[#This Row],[Alloc4FUNC]])","v":"1823930DSR COSTS NOT AMORT101342HASSLE FREE EFFICIENCY - IDAHO-UT 1998SITUS"},1823930,"DSR COSTS NOT AMORT",101342,"HASSLE FREE EFFICIENCY - IDAHO-UT 1998","IDU",0,{"$f":"IF(OR(tblREGASSJune19[[#This Row],[Alloc]]=\"IDU\",tblREGASSJune19[[#This Row],[Alloc]]=\"OR\",tblREGASSJune19[[#This Row],[Alloc]]=\"UT\",tblREGASSJune19[[#This Row],[Alloc]]=\"WYU\",tblREGASSJune19[[#This Row],[Alloc]]=\"WYP\",tblREGASSJune19[[#This Row],[Alloc]]=\"CA\",tblREGASSJune19[[#This Row],[Alloc]]=\"WA\"),\"SITUS\",tblREGASSJune19[[#This Row],[Alloc]])","v":"SITUS"},{"$f":"INDEX(tblREGASSLookup[FUNC],MATCH(tblREGASSJune19[[#This Row],[Concat]],tblREGASSLookup[Concat],0))","v":{"$error":"#N/A"}},{"$f":"IF(tblREGASSJune19[[#This Row],[Total ($000)]]=0,\"NO\",IF(ISNA(tblREGASSJune19[[#This Row],[FUNC]]),\"YES\",IF(_xlfn.ISFORMULA(tblREGASSJune19[[#This Row],[FUNC]]),\"NO\",\"YES\")))","v":"NO"}]
[{"$f":"CONCATENATE(tblREGASSJune19[[#This Row],[Primary Account]],tblREGASSJune19[[#This Row],[Primary Name]],tblREGASSJune19[[#This Row],[Secondary Acct]],tblREGASSJune19[[#This Row],[Secondary  Name]],tblREGASSJune19[[#This Row],[Alloc4FUNC]])","v":"1823930DSR COSTS NOT AMORT101343ENERGY FINANSWER91SITUS"},1823930,"DSR COSTS NOT AMORT",101343,"ENERGY FINANSWER91","IDU",0,{"$f":"IF(OR(tblREGASSJune19[[#This Row],[Alloc]]=\"IDU\",tblREGASSJune19[[#This Row],[Alloc]]=\"OR\",tblREGASSJune19[[#This Row],[Alloc]]=\"UT\",tblREGASSJune19[[#This Row],[Alloc]]=\"WYU\",tblREGASSJune19[[#This Row],[Alloc]]=\"WYP\",tblREGASSJune19[[#This Row],[Alloc]]=\"CA\",tblREGASSJune19[[#This Row],[Alloc]]=\"WA\"),\"SITUS\",tblREGASSJune19[[#This Row],[Alloc]])","v":"SITUS"},{"$f":"INDEX(tblREGASSLookup[FUNC],MATCH(tblREGASSJune19[[#This Row],[Concat]],tblREGASSLookup[Concat],0))","v":{"$error":"#N/A"}},{"$f":"IF(tblREGASSJune19[[#This Row],[Total ($000)]]=0,\"NO\",IF(ISNA(tblREGASSJune19[[#This Row],[FUNC]]),\"YES\",IF(_xlfn.ISFORMULA(tblREGASSJune19[[#This Row],[FUNC]]),\"NO\",\"YES\")))","v":"NO"}]
[{"$f":"CONCATENATE(tblREGASSJune19[[#This Row],[Primary Account]],tblREGASSJune19[[#This Row],[Primary Name]],tblREGASSJune19[[#This Row],[Secondary Acct]],tblREGASSJune19[[#This Row],[Secondary  Name]],tblREGASSJune19[[#This Row],[Alloc4FUNC]])","v":"1823930DSR COSTS NOT AMORT101344ENERGY FINANSWER92SITUS"},1823930,"DSR COSTS NOT AMORT",101344,"ENERGY FINANSWER92","IDU",0,{"$f":"IF(OR(tblREGASSJune19[[#This Row],[Alloc]]=\"IDU\",tblREGASSJune19[[#This Row],[Alloc]]=\"OR\",tblREGASSJune19[[#This Row],[Alloc]]=\"UT\",tblREGASSJune19[[#This Row],[Alloc]]=\"WYU\",tblREGASSJune19[[#This Row],[Alloc]]=\"WYP\",tblREGASSJune19[[#This Row],[Alloc]]=\"CA\",tblREGASSJune19[[#This Row],[Alloc]]=\"WA\"),\"SITUS\",tblREGASSJune19[[#This Row],[Alloc]])","v":"SITUS"},{"$f":"INDEX(tblREGASSLookup[FUNC],MATCH(tblREGASSJune19[[#This Row],[Concat]],tblREGASSLookup[Concat],0))","v":{"$error":"#N/A"}},{"$f":"IF(tblREGASSJune19[[#This Row],[Total ($000)]]=0,\"NO\",IF(ISNA(tblREGASSJune19[[#This Row],[FUNC]]),\"YES\",IF(_xlfn.ISFORMULA(tblREGASSJune19[[#This Row],[FUNC]]),\"NO\",\"YES\")))","v":"NO"}]
[{"$f":"CONCATENATE(tblREGASSJune19[[#This Row],[Primary Account]],tblREGASSJune19[[#This Row],[Primary Name]],tblREGASSJune19[[#This Row],[Secondary Acct]],tblREGASSJune19[[#This Row],[Secondary  Name]],tblREGASSJune19[[#This Row],[Alloc4FUNC]])","v":"1823930DSR COSTS NOT AMORT101345ENERGY FINANSWER93SITUS"},1823930,"DSR COSTS NOT AMORT",101345,"ENERGY FINANSWER93","IDU",0,{"$f":"IF(OR(tblREGASSJune19[[#This Row],[Alloc]]=\"IDU\",tblREGASSJune19[[#This Row],[Alloc]]=\"OR\",tblREGASSJune19[[#This Row],[Alloc]]=\"UT\",tblREGASSJune19[[#This Row],[Alloc]]=\"WYU\",tblREGASSJune19[[#This Row],[Alloc]]=\"WYP\",tblREGASSJune19[[#This Row],[Alloc]]=\"CA\",tblREGASSJune19[[#This Row],[Alloc]]=\"WA\"),\"SITUS\",tblREGASSJune19[[#This Row],[Alloc]])","v":"SITUS"},{"$f":"INDEX(tblREGASSLookup[FUNC],MATCH(tblREGASSJune19[[#This Row],[Concat]],tblREGASSLookup[Concat],0))","v":{"$error":"#N/A"}},{"$f":"IF(tblREGASSJune19[[#This Row],[Total ($000)]]=0,\"NO\",IF(ISNA(tblREGASSJune19[[#This Row],[FUNC]]),\"YES\",IF(_xlfn.ISFORMULA(tblREGASSJune19[[#This Row],[FUNC]]),\"NO\",\"YES\")))","v":"NO"}]
[{"$f":"CONCATENATE(tblREGASSJune19[[#This Row],[Primary Account]],tblREGASSJune19[[#This Row],[Primary Name]],tblREGASSJune19[[#This Row],[Secondary Acct]],tblREGASSJune19[[#This Row],[Secondary  Name]],tblREGASSJune19[[#This Row],[Alloc4FUNC]])","v":"1823930DSR COSTS NOT AMORT101346ENERGY FINANSWER94SITUS"},1823930,"DSR COSTS NOT AMORT",101346,"ENERGY FINANSWER94","IDU",0,{"$f":"IF(OR(tblREGASSJune19[[#This Row],[Alloc]]=\"IDU\",tblREGASSJune19[[#This Row],[Alloc]]=\"OR\",tblREGASSJune19[[#This Row],[Alloc]]=\"UT\",tblREGASSJune19[[#This Row],[Alloc]]=\"WYU\",tblREGASSJune19[[#This Row],[Alloc]]=\"WYP\",tblREGASSJune19[[#This Row],[Alloc]]=\"CA\",tblREGASSJune19[[#This Row],[Alloc]]=\"WA\"),\"SITUS\",tblREGASSJune19[[#This Row],[Alloc]])","v":"SITUS"},{"$f":"INDEX(tblREGASSLookup[FUNC],MATCH(tblREGASSJune19[[#This Row],[Concat]],tblREGASSLookup[Concat],0))","v":{"$error":"#N/A"}},{"$f":"IF(tblREGASSJune19[[#This Row],[Total ($000)]]=0,\"NO\",IF(ISNA(tblREGASSJune19[[#This Row],[FUNC]]),\"YES\",IF(_xlfn.ISFORMULA(tblREGASSJune19[[#This Row],[FUNC]]),\"NO\",\"YES\")))","v":"NO"}]
[{"$f":"CONCATENATE(tblREGASSJune19[[#This Row],[Primary Account]],tblREGASSJune19[[#This Row],[Primary Name]],tblREGASSJune19[[#This Row],[Secondary Acct]],tblREGASSJune19[[#This Row],[Secondary  Name]],tblREGASSJune19[[#This Row],[Alloc4FUNC]])","v":"1823930DSR COSTS NOT AMORT101347ENERGY FINANSWER95SITUS"},1823930,"DSR COSTS NOT AMORT",101347,"ENERGY FINANSWER95","IDU",0,{"$f":"IF(OR(tblREGASSJune19[[#This Row],[Alloc]]=\"IDU\",tblREGASSJune19[[#This Row],[Alloc]]=\"OR\",tblREGASSJune19[[#This Row],[Alloc]]=\"UT\",tblREGASSJune19[[#This Row],[Alloc]]=\"WYU\",tblREGASSJune19[[#This Row],[Alloc]]=\"WYP\",tblREGASSJune19[[#This Row],[Alloc]]=\"CA\",tblREGASSJune19[[#This Row],[Alloc]]=\"WA\"),\"SITUS\",tblREGASSJune19[[#This Row],[Alloc]])","v":"SITUS"},{"$f":"INDEX(tblREGASSLookup[FUNC],MATCH(tblREGASSJune19[[#This Row],[Concat]],tblREGASSLookup[Concat],0))","v":{"$error":"#N/A"}},{"$f":"IF(tblREGASSJune19[[#This Row],[Total ($000)]]=0,\"NO\",IF(ISNA(tblREGASSJune19[[#This Row],[FUNC]]),\"YES\",IF(_xlfn.ISFORMULA(tblREGASSJune19[[#This Row],[FUNC]]),\"NO\",\"YES\")))","v":"NO"}]
[{"$f":"CONCATENATE(tblREGASSJune19[[#This Row],[Primary Account]],tblREGASSJune19[[#This Row],[Primary Name]],tblREGASSJune19[[#This Row],[Secondary Acct]],tblREGASSJune19[[#This Row],[Secondary  Name]],tblREGASSJune19[[#This Row],[Alloc4FUNC]])","v":"1823930DSR COSTS NOT AMORT101348ENERGY FINANSWER96SITUS"},1823930,"DSR COSTS NOT AMORT",101348,"ENERGY FINANSWER96","IDU",0,{"$f":"IF(OR(tblREGASSJune19[[#This Row],[Alloc]]=\"IDU\",tblREGASSJune19[[#This Row],[Alloc]]=\"OR\",tblREGASSJune19[[#This Row],[Alloc]]=\"UT\",tblREGASSJune19[[#This Row],[Alloc]]=\"WYU\",tblREGASSJune19[[#This Row],[Alloc]]=\"WYP\",tblREGASSJune19[[#This Row],[Alloc]]=\"CA\",tblREGASSJune19[[#This Row],[Alloc]]=\"WA\"),\"SITUS\",tblREGASSJune19[[#This Row],[Alloc]])","v":"SITUS"},{"$f":"INDEX(tblREGASSLookup[FUNC],MATCH(tblREGASSJune19[[#This Row],[Concat]],tblREGASSLookup[Concat],0))","v":{"$error":"#N/A"}},{"$f":"IF(tblREGASSJune19[[#This Row],[Total ($000)]]=0,\"NO\",IF(ISNA(tblREGASSJune19[[#This Row],[FUNC]]),\"YES\",IF(_xlfn.ISFORMULA(tblREGASSJune19[[#This Row],[FUNC]]),\"NO\",\"YES\")))","v":"NO"}]
[{"$f":"CONCATENATE(tblREGASSJune19[[#This Row],[Primary Account]],tblREGASSJune19[[#This Row],[Primary Name]],tblREGASSJune19[[#This Row],[Secondary Acct]],tblREGASSJune19[[#This Row],[Secondary  Name]],tblREGASSJune19[[#This Row],[Alloc4FUNC]])","v":"1823930DSR COSTS NOT AMORT101349\"ENERGY FINANSWER, ID-UT 1997\"SITUS"},1823930,"DSR COSTS NOT AMORT",101349,"\"ENERGY FINANSWER, ID-UT 1997\"","IDU",0,{"$f":"IF(OR(tblREGASSJune19[[#This Row],[Alloc]]=\"IDU\",tblREGASSJune19[[#This Row],[Alloc]]=\"OR\",tblREGASSJune19[[#This Row],[Alloc]]=\"UT\",tblREGASSJune19[[#This Row],[Alloc]]=\"WYU\",tblREGASSJune19[[#This Row],[Alloc]]=\"WYP\",tblREGASSJune19[[#This Row],[Alloc]]=\"CA\",tblREGASSJune19[[#This Row],[Alloc]]=\"WA\"),\"SITUS\",tblREGASSJune19[[#This Row],[Alloc]])","v":"SITUS"},{"$f":"INDEX(tblREGASSLookup[FUNC],MATCH(tblREGASSJune19[[#This Row],[Concat]],tblREGASSLookup[Concat],0))","v":{"$error":"#N/A"}},{"$f":"IF(tblREGASSJune19[[#This Row],[Total ($000)]]=0,\"NO\",IF(ISNA(tblREGASSJune19[[#This Row],[FUNC]]),\"YES\",IF(_xlfn.ISFORMULA(tblREGASSJune19[[#This Row],[FUNC]]),\"NO\",\"YES\")))","v":"NO"}]
[{"$f":"CONCATENATE(tblREGASSJune19[[#This Row],[Primary Account]],tblREGASSJune19[[#This Row],[Primary Name]],tblREGASSJune19[[#This Row],[Secondary Acct]],tblREGASSJune19[[#This Row],[Secondary  Name]],tblREGASSJune19[[#This Row],[Alloc4FUNC]])","v":"1823930DSR COSTS NOT AMORT101350\"ENERGY FINANSWER, ID-UT 1998\"SITUS"},1823930,"DSR COSTS NOT AMORT",101350,"\"ENERGY FINANSWER, ID-UT 1998\"","IDU",0,{"$f":"IF(OR(tblREGASSJune19[[#This Row],[Alloc]]=\"IDU\",tblREGASSJune19[[#This Row],[Alloc]]=\"OR\",tblREGASSJune19[[#This Row],[Alloc]]=\"UT\",tblREGASSJune19[[#This Row],[Alloc]]=\"WYU\",tblREGASSJune19[[#This Row],[Alloc]]=\"WYP\",tblREGASSJune19[[#This Row],[Alloc]]=\"CA\",tblREGASSJune19[[#This Row],[Alloc]]=\"WA\"),\"SITUS\",tblREGASSJune19[[#This Row],[Alloc]])","v":"SITUS"},{"$f":"INDEX(tblREGASSLookup[FUNC],MATCH(tblREGASSJune19[[#This Row],[Concat]],tblREGASSLookup[Concat],0))","v":{"$error":"#N/A"}},{"$f":"IF(tblREGASSJune19[[#This Row],[Total ($000)]]=0,\"NO\",IF(ISNA(tblREGASSJune19[[#This Row],[FUNC]]),\"YES\",IF(_xlfn.ISFORMULA(tblREGASSJune19[[#This Row],[FUNC]]),\"NO\",\"YES\")))","v":"NO"}]
[{"$f":"CONCATENATE(tblREGASSJune19[[#This Row],[Primary Account]],tblREGASSJune19[[#This Row],[Primary Name]],tblREGASSJune19[[#This Row],[Secondary Acct]],tblREGASSJune19[[#This Row],[Secondary  Name]],tblREGASSJune19[[#This Row],[Alloc4FUNC]])","v":"1823930DSR COSTS NOT AMORT101351MAJOR CUSTOMER  95SITUS"},1823930,"DSR COSTS NOT AMORT",101351,"MAJOR CUSTOMER  95","IDU",0,{"$f":"IF(OR(tblREGASSJune19[[#This Row],[Alloc]]=\"IDU\",tblREGASSJune19[[#This Row],[Alloc]]=\"OR\",tblREGASSJune19[[#This Row],[Alloc]]=\"UT\",tblREGASSJune19[[#This Row],[Alloc]]=\"WYU\",tblREGASSJune19[[#This Row],[Alloc]]=\"WYP\",tblREGASSJune19[[#This Row],[Alloc]]=\"CA\",tblREGASSJune19[[#This Row],[Alloc]]=\"WA\"),\"SITUS\",tblREGASSJune19[[#This Row],[Alloc]])","v":"SITUS"},{"$f":"INDEX(tblREGASSLookup[FUNC],MATCH(tblREGASSJune19[[#This Row],[Concat]],tblREGASSLookup[Concat],0))","v":{"$error":"#N/A"}},{"$f":"IF(tblREGASSJune19[[#This Row],[Total ($000)]]=0,\"NO\",IF(ISNA(tblREGASSJune19[[#This Row],[FUNC]]),\"YES\",IF(_xlfn.ISFORMULA(tblREGASSJune19[[#This Row],[FUNC]]),\"NO\",\"YES\")))","v":"NO"}]
[{"$f":"CONCATENATE(tblREGASSJune19[[#This Row],[Primary Account]],tblREGASSJune19[[#This Row],[Primary Name]],tblREGASSJune19[[#This Row],[Secondary Acct]],tblREGASSJune19[[#This Row],[Secondary  Name]],tblREGASSJune19[[#This Row],[Alloc4FUNC]])","v":"1823930DSR COSTS NOT AMORT101353IND FINANSWER   94SITUS"},1823930,"DSR COSTS NOT AMORT",101353,"IND FINANSWER   94","IDU",0,{"$f":"IF(OR(tblREGASSJune19[[#This Row],[Alloc]]=\"IDU\",tblREGASSJune19[[#This Row],[Alloc]]=\"OR\",tblREGASSJune19[[#This Row],[Alloc]]=\"UT\",tblREGASSJune19[[#This Row],[Alloc]]=\"WYU\",tblREGASSJune19[[#This Row],[Alloc]]=\"WYP\",tblREGASSJune19[[#This Row],[Alloc]]=\"CA\",tblREGASSJune19[[#This Row],[Alloc]]=\"WA\"),\"SITUS\",tblREGASSJune19[[#This Row],[Alloc]])","v":"SITUS"},{"$f":"INDEX(tblREGASSLookup[FUNC],MATCH(tblREGASSJune19[[#This Row],[Concat]],tblREGASSLookup[Concat],0))","v":{"$error":"#N/A"}},{"$f":"IF(tblREGASSJune19[[#This Row],[Total ($000)]]=0,\"NO\",IF(ISNA(tblREGASSJune19[[#This Row],[FUNC]]),\"YES\",IF(_xlfn.ISFORMULA(tblREGASSJune19[[#This Row],[FUNC]]),\"NO\",\"YES\")))","v":"NO"}]
[{"$f":"CONCATENATE(tblREGASSJune19[[#This Row],[Primary Account]],tblREGASSJune19[[#This Row],[Primary Name]],tblREGASSJune19[[#This Row],[Secondary Acct]],tblREGASSJune19[[#This Row],[Secondary  Name]],tblREGASSJune19[[#This Row],[Alloc4FUNC]])","v":"1823930DSR COSTS NOT AMORT101354IND FINANSWER   96SITUS"},1823930,"DSR COSTS NOT AMORT",101354,"IND FINANSWER   96","IDU",0,{"$f":"IF(OR(tblREGASSJune19[[#This Row],[Alloc]]=\"IDU\",tblREGASSJune19[[#This Row],[Alloc]]=\"OR\",tblREGASSJune19[[#This Row],[Alloc]]=\"UT\",tblREGASSJune19[[#This Row],[Alloc]]=\"WYU\",tblREGASSJune19[[#This Row],[Alloc]]=\"WYP\",tblREGASSJune19[[#This Row],[Alloc]]=\"CA\",tblREGASSJune19[[#This Row],[Alloc]]=\"WA\"),\"SITUS\",tblREGASSJune19[[#This Row],[Alloc]])","v":"SITUS"},{"$f":"INDEX(tblREGASSLookup[FUNC],MATCH(tblREGASSJune19[[#This Row],[Concat]],tblREGASSLookup[Concat],0))","v":{"$error":"#N/A"}},{"$f":"IF(tblREGASSJune19[[#This Row],[Total ($000)]]=0,\"NO\",IF(ISNA(tblREGASSJune19[[#This Row],[FUNC]]),\"YES\",IF(_xlfn.ISFORMULA(tblREGASSJune19[[#This Row],[FUNC]]),\"NO\",\"YES\")))","v":"NO"}]
[{"$f":"CONCATENATE(tblREGASSJune19[[#This Row],[Primary Account]],tblREGASSJune19[[#This Row],[Primary Name]],tblREGASSJune19[[#This Row],[Secondary Acct]],tblREGASSJune19[[#This Row],[Secondary  Name]],tblREGASSJune19[[#This Row],[Alloc4FUNC]])","v":"1823930DSR COSTS NOT AMORT101355\"INDUSTRIAL FINANSWER, ID-UT 1997\"SITUS"},1823930,"DSR COSTS NOT AMORT",101355,"\"INDUSTRIAL FINANSWER, ID-UT 1997\"","IDU",0,{"$f":"IF(OR(tblREGASSJune19[[#This Row],[Alloc]]=\"IDU\",tblREGASSJune19[[#This Row],[Alloc]]=\"OR\",tblREGASSJune19[[#This Row],[Alloc]]=\"UT\",tblREGASSJune19[[#This Row],[Alloc]]=\"WYU\",tblREGASSJune19[[#This Row],[Alloc]]=\"WYP\",tblREGASSJune19[[#This Row],[Alloc]]=\"CA\",tblREGASSJune19[[#This Row],[Alloc]]=\"WA\"),\"SITUS\",tblREGASSJune19[[#This Row],[Alloc]])","v":"SITUS"},{"$f":"INDEX(tblREGASSLookup[FUNC],MATCH(tblREGASSJune19[[#This Row],[Concat]],tblREGASSLookup[Concat],0))","v":{"$error":"#N/A"}},{"$f":"IF(tblREGASSJune19[[#This Row],[Total ($000)]]=0,\"NO\",IF(ISNA(tblREGASSJune19[[#This Row],[FUNC]]),\"YES\",IF(_xlfn.ISFORMULA(tblREGASSJune19[[#This Row],[FUNC]]),\"NO\",\"YES\")))","v":"NO"}]
[{"$f":"CONCATENATE(tblREGASSJune19[[#This Row],[Primary Account]],tblREGASSJune19[[#This Row],[Primary Name]],tblREGASSJune19[[#This Row],[Secondary Acct]],tblREGASSJune19[[#This Row],[Secondary  Name]],tblREGASSJune19[[#This Row],[Alloc4FUNC]])","v":"1823930DSR COSTS NOT AMORT101356\"INDUSTRIAL FINANSWER, ID-UT 1998\"SITUS"},1823930,"DSR COSTS NOT AMORT",101356,"\"INDUSTRIAL FINANSWER, ID-UT 1998\"","IDU",0,{"$f":"IF(OR(tblREGASSJune19[[#This Row],[Alloc]]=\"IDU\",tblREGASSJune19[[#This Row],[Alloc]]=\"OR\",tblREGASSJune19[[#This Row],[Alloc]]=\"UT\",tblREGASSJune19[[#This Row],[Alloc]]=\"WYU\",tblREGASSJune19[[#This Row],[Alloc]]=\"WYP\",tblREGASSJune19[[#This Row],[Alloc]]=\"CA\",tblREGASSJune19[[#This Row],[Alloc]]=\"WA\"),\"SITUS\",tblREGASSJune19[[#This Row],[Alloc]])","v":"SITUS"},{"$f":"INDEX(tblREGASSLookup[FUNC],MATCH(tblREGASSJune19[[#This Row],[Concat]],tblREGASSLookup[Concat],0))","v":{"$error":"#N/A"}},{"$f":"IF(tblREGASSJune19[[#This Row],[Total ($000)]]=0,\"NO\",IF(ISNA(tblREGASSJune19[[#This Row],[FUNC]]),\"YES\",IF(_xlfn.ISFORMULA(tblREGASSJune19[[#This Row],[FUNC]]),\"NO\",\"YES\")))","v":"NO"}]
[{"$f":"CONCATENATE(tblREGASSJune19[[#This Row],[Primary Account]],tblREGASSJune19[[#This Row],[Primary Name]],tblREGASSJune19[[#This Row],[Secondary Acct]],tblREGASSJune19[[#This Row],[Secondary  Name]],tblREGASSJune19[[#This Row],[Alloc4FUNC]])","v":"1823930DSR COSTS NOT AMORT101357COMM RETROFIT   93SITUS"},1823930,"DSR COSTS NOT AMORT",101357,"COMM RETROFIT   93","IDU",0,{"$f":"IF(OR(tblREGASSJune19[[#This Row],[Alloc]]=\"IDU\",tblREGASSJune19[[#This Row],[Alloc]]=\"OR\",tblREGASSJune19[[#This Row],[Alloc]]=\"UT\",tblREGASSJune19[[#This Row],[Alloc]]=\"WYU\",tblREGASSJune19[[#This Row],[Alloc]]=\"WYP\",tblREGASSJune19[[#This Row],[Alloc]]=\"CA\",tblREGASSJune19[[#This Row],[Alloc]]=\"WA\"),\"SITUS\",tblREGASSJune19[[#This Row],[Alloc]])","v":"SITUS"},{"$f":"INDEX(tblREGASSLookup[FUNC],MATCH(tblREGASSJune19[[#This Row],[Concat]],tblREGASSLookup[Concat],0))","v":{"$error":"#N/A"}},{"$f":"IF(tblREGASSJune19[[#This Row],[Total ($000)]]=0,\"NO\",IF(ISNA(tblREGASSJune19[[#This Row],[FUNC]]),\"YES\",IF(_xlfn.ISFORMULA(tblREGASSJune19[[#This Row],[FUNC]]),\"NO\",\"YES\")))","v":"NO"}]
[{"$f":"CONCATENATE(tblREGASSJune19[[#This Row],[Primary Account]],tblREGASSJune19[[#This Row],[Primary Name]],tblREGASSJune19[[#This Row],[Secondary Acct]],tblREGASSJune19[[#This Row],[Secondary  Name]],tblREGASSJune19[[#This Row],[Alloc4FUNC]])","v":"1823930DSR COSTS NOT AMORT101358FINANSWER 12000 92SITUS"},1823930,"DSR COSTS NOT AMORT",101358,"FINANSWER 12000 92","IDU",0,{"$f":"IF(OR(tblREGASSJune19[[#This Row],[Alloc]]=\"IDU\",tblREGASSJune19[[#This Row],[Alloc]]=\"OR\",tblREGASSJune19[[#This Row],[Alloc]]=\"UT\",tblREGASSJune19[[#This Row],[Alloc]]=\"WYU\",tblREGASSJune19[[#This Row],[Alloc]]=\"WYP\",tblREGASSJune19[[#This Row],[Alloc]]=\"CA\",tblREGASSJune19[[#This Row],[Alloc]]=\"WA\"),\"SITUS\",tblREGASSJune19[[#This Row],[Alloc]])","v":"SITUS"},{"$f":"INDEX(tblREGASSLookup[FUNC],MATCH(tblREGASSJune19[[#This Row],[Concat]],tblREGASSLookup[Concat],0))","v":{"$error":"#N/A"}},{"$f":"IF(tblREGASSJune19[[#This Row],[Total ($000)]]=0,\"NO\",IF(ISNA(tblREGASSJune19[[#This Row],[FUNC]]),\"YES\",IF(_xlfn.ISFORMULA(tblREGASSJune19[[#This Row],[FUNC]]),\"NO\",\"YES\")))","v":"NO"}]
[{"$f":"CONCATENATE(tblREGASSJune19[[#This Row],[Primary Account]],tblREGASSJune19[[#This Row],[Primary Name]],tblREGASSJune19[[#This Row],[Secondary Acct]],tblREGASSJune19[[#This Row],[Secondary  Name]],tblREGASSJune19[[#This Row],[Alloc4FUNC]])","v":"1823930DSR COSTS NOT AMORT101359FINANSWER 12000 93SITUS"},1823930,"DSR COSTS NOT AMORT",101359,"FINANSWER 12000 93","IDU",0,{"$f":"IF(OR(tblREGASSJune19[[#This Row],[Alloc]]=\"IDU\",tblREGASSJune19[[#This Row],[Alloc]]=\"OR\",tblREGASSJune19[[#This Row],[Alloc]]=\"UT\",tblREGASSJune19[[#This Row],[Alloc]]=\"WYU\",tblREGASSJune19[[#This Row],[Alloc]]=\"WYP\",tblREGASSJune19[[#This Row],[Alloc]]=\"CA\",tblREGASSJune19[[#This Row],[Alloc]]=\"WA\"),\"SITUS\",tblREGASSJune19[[#This Row],[Alloc]])","v":"SITUS"},{"$f":"INDEX(tblREGASSLookup[FUNC],MATCH(tblREGASSJune19[[#This Row],[Concat]],tblREGASSLookup[Concat],0))","v":{"$error":"#N/A"}},{"$f":"IF(tblREGASSJune19[[#This Row],[Total ($000)]]=0,\"NO\",IF(ISNA(tblREGASSJune19[[#This Row],[FUNC]]),\"YES\",IF(_xlfn.ISFORMULA(tblREGASSJune19[[#This Row],[FUNC]]),\"NO\",\"YES\")))","v":"NO"}]
[{"$f":"CONCATENATE(tblREGASSJune19[[#This Row],[Primary Account]],tblREGASSJune19[[#This Row],[Primary Name]],tblREGASSJune19[[#This Row],[Secondary Acct]],tblREGASSJune19[[#This Row],[Secondary  Name]],tblREGASSJune19[[#This Row],[Alloc4FUNC]])","v":"1823930DSR COSTS NOT AMORT101360FINANSWER 12000 94SITUS"},1823930,"DSR COSTS NOT AMORT",101360,"FINANSWER 12000 94","IDU",0,{"$f":"IF(OR(tblREGASSJune19[[#This Row],[Alloc]]=\"IDU\",tblREGASSJune19[[#This Row],[Alloc]]=\"OR\",tblREGASSJune19[[#This Row],[Alloc]]=\"UT\",tblREGASSJune19[[#This Row],[Alloc]]=\"WYU\",tblREGASSJune19[[#This Row],[Alloc]]=\"WYP\",tblREGASSJune19[[#This Row],[Alloc]]=\"CA\",tblREGASSJune19[[#This Row],[Alloc]]=\"WA\"),\"SITUS\",tblREGASSJune19[[#This Row],[Alloc]])","v":"SITUS"},{"$f":"INDEX(tblREGASSLookup[FUNC],MATCH(tblREGASSJune19[[#This Row],[Concat]],tblREGASSLookup[Concat],0))","v":{"$error":"#N/A"}},{"$f":"IF(tblREGASSJune19[[#This Row],[Total ($000)]]=0,\"NO\",IF(ISNA(tblREGASSJune19[[#This Row],[FUNC]]),\"YES\",IF(_xlfn.ISFORMULA(tblREGASSJune19[[#This Row],[FUNC]]),\"NO\",\"YES\")))","v":"NO"}]
[{"$f":"CONCATENATE(tblREGASSJune19[[#This Row],[Primary Account]],tblREGASSJune19[[#This Row],[Primary Name]],tblREGASSJune19[[#This Row],[Secondary Acct]],tblREGASSJune19[[#This Row],[Secondary  Name]],tblREGASSJune19[[#This Row],[Alloc4FUNC]])","v":"1823930DSR COSTS NOT AMORT101361WHOLESALE PURCH 92SITUS"},1823930,"DSR COSTS NOT AMORT",101361,"WHOLESALE PURCH 92","IDU",0,{"$f":"IF(OR(tblREGASSJune19[[#This Row],[Alloc]]=\"IDU\",tblREGASSJune19[[#This Row],[Alloc]]=\"OR\",tblREGASSJune19[[#This Row],[Alloc]]=\"UT\",tblREGASSJune19[[#This Row],[Alloc]]=\"WYU\",tblREGASSJune19[[#This Row],[Alloc]]=\"WYP\",tblREGASSJune19[[#This Row],[Alloc]]=\"CA\",tblREGASSJune19[[#This Row],[Alloc]]=\"WA\"),\"SITUS\",tblREGASSJune19[[#This Row],[Alloc]])","v":"SITUS"},{"$f":"INDEX(tblREGASSLookup[FUNC],MATCH(tblREGASSJune19[[#This Row],[Concat]],tblREGASSLookup[Concat],0))","v":{"$error":"#N/A"}},{"$f":"IF(tblREGASSJune19[[#This Row],[Total ($000)]]=0,\"NO\",IF(ISNA(tblREGASSJune19[[#This Row],[FUNC]]),\"YES\",IF(_xlfn.ISFORMULA(tblREGASSJune19[[#This Row],[FUNC]]),\"NO\",\"YES\")))","v":"NO"}]
[{"$f":"CONCATENATE(tblREGASSJune19[[#This Row],[Primary Account]],tblREGASSJune19[[#This Row],[Primary Name]],tblREGASSJune19[[#This Row],[Secondary Acct]],tblREGASSJune19[[#This Row],[Secondary  Name]],tblREGASSJune19[[#This Row],[Alloc4FUNC]])","v":"1823930DSR COSTS NOT AMORT101362MANF ACQUISITION92SITUS"},1823930,"DSR COSTS NOT AMORT",101362,"MANF ACQUISITION92","IDU",0,{"$f":"IF(OR(tblREGASSJune19[[#This Row],[Alloc]]=\"IDU\",tblREGASSJune19[[#This Row],[Alloc]]=\"OR\",tblREGASSJune19[[#This Row],[Alloc]]=\"UT\",tblREGASSJune19[[#This Row],[Alloc]]=\"WYU\",tblREGASSJune19[[#This Row],[Alloc]]=\"WYP\",tblREGASSJune19[[#This Row],[Alloc]]=\"CA\",tblREGASSJune19[[#This Row],[Alloc]]=\"WA\"),\"SITUS\",tblREGASSJune19[[#This Row],[Alloc]])","v":"SITUS"},{"$f":"INDEX(tblREGASSLookup[FUNC],MATCH(tblREGASSJune19[[#This Row],[Concat]],tblREGASSLookup[Concat],0))","v":{"$error":"#N/A"}},{"$f":"IF(tblREGASSJune19[[#This Row],[Total ($000)]]=0,\"NO\",IF(ISNA(tblREGASSJune19[[#This Row],[FUNC]]),\"YES\",IF(_xlfn.ISFORMULA(tblREGASSJune19[[#This Row],[FUNC]]),\"NO\",\"YES\")))","v":"NO"}]
[{"$f":"CONCATENATE(tblREGASSJune19[[#This Row],[Primary Account]],tblREGASSJune19[[#This Row],[Primary Name]],tblREGASSJune19[[#This Row],[Secondary Acct]],tblREGASSJune19[[#This Row],[Secondary  Name]],tblREGASSJune19[[#This Row],[Alloc4FUNC]])","v":"1823930DSR COSTS NOT AMORT101363HOME COMFORT    92SITUS"},1823930,"DSR COSTS NOT AMORT",101363,"HOME COMFORT    92","IDU",0,{"$f":"IF(OR(tblREGASSJune19[[#This Row],[Alloc]]=\"IDU\",tblREGASSJune19[[#This Row],[Alloc]]=\"OR\",tblREGASSJune19[[#This Row],[Alloc]]=\"UT\",tblREGASSJune19[[#This Row],[Alloc]]=\"WYU\",tblREGASSJune19[[#This Row],[Alloc]]=\"WYP\",tblREGASSJune19[[#This Row],[Alloc]]=\"CA\",tblREGASSJune19[[#This Row],[Alloc]]=\"WA\"),\"SITUS\",tblREGASSJune19[[#This Row],[Alloc]])","v":"SITUS"},{"$f":"INDEX(tblREGASSLookup[FUNC],MATCH(tblREGASSJune19[[#This Row],[Concat]],tblREGASSLookup[Concat],0))","v":{"$error":"#N/A"}},{"$f":"IF(tblREGASSJune19[[#This Row],[Total ($000)]]=0,\"NO\",IF(ISNA(tblREGASSJune19[[#This Row],[FUNC]]),\"YES\",IF(_xlfn.ISFORMULA(tblREGASSJune19[[#This Row],[FUNC]]),\"NO\",\"YES\")))","v":"NO"}]
[{"$f":"CONCATENATE(tblREGASSJune19[[#This Row],[Primary Account]],tblREGASSJune19[[#This Row],[Primary Name]],tblREGASSJune19[[#This Row],[Secondary Acct]],tblREGASSJune19[[#This Row],[Secondary  Name]],tblREGASSJune19[[#This Row],[Alloc4FUNC]])","v":"1823930DSR COSTS NOT AMORT101364REFRIGERATION   92SITUS"},1823930,"DSR COSTS NOT AMORT",101364,"REFRIGERATION   92","IDU",0,{"$f":"IF(OR(tblREGASSJune19[[#This Row],[Alloc]]=\"IDU\",tblREGASSJune19[[#This Row],[Alloc]]=\"OR\",tblREGASSJune19[[#This Row],[Alloc]]=\"UT\",tblREGASSJune19[[#This Row],[Alloc]]=\"WYU\",tblREGASSJune19[[#This Row],[Alloc]]=\"WYP\",tblREGASSJune19[[#This Row],[Alloc]]=\"CA\",tblREGASSJune19[[#This Row],[Alloc]]=\"WA\"),\"SITUS\",tblREGASSJune19[[#This Row],[Alloc]])","v":"SITUS"},{"$f":"INDEX(tblREGASSLookup[FUNC],MATCH(tblREGASSJune19[[#This Row],[Concat]],tblREGASSLookup[Concat],0))","v":{"$error":"#N/A"}},{"$f":"IF(tblREGASSJune19[[#This Row],[Total ($000)]]=0,\"NO\",IF(ISNA(tblREGASSJune19[[#This Row],[FUNC]]),\"YES\",IF(_xlfn.ISFORMULA(tblREGASSJune19[[#This Row],[FUNC]]),\"NO\",\"YES\")))","v":"NO"}]
[{"$f":"CONCATENATE(tblREGASSJune19[[#This Row],[Primary Account]],tblREGASSJune19[[#This Row],[Primary Name]],tblREGASSJune19[[#This Row],[Secondary Acct]],tblREGASSJune19[[#This Row],[Secondary  Name]],tblREGASSJune19[[#This Row],[Alloc4FUNC]])","v":"1823930DSR COSTS NOT AMORT101365REFRIGERATION   93SITUS"},1823930,"DSR COSTS NOT AMORT",101365,"REFRIGERATION   93","IDU",0,{"$f":"IF(OR(tblREGASSJune19[[#This Row],[Alloc]]=\"IDU\",tblREGASSJune19[[#This Row],[Alloc]]=\"OR\",tblREGASSJune19[[#This Row],[Alloc]]=\"UT\",tblREGASSJune19[[#This Row],[Alloc]]=\"WYU\",tblREGASSJune19[[#This Row],[Alloc]]=\"WYP\",tblREGASSJune19[[#This Row],[Alloc]]=\"CA\",tblREGASSJune19[[#This Row],[Alloc]]=\"WA\"),\"SITUS\",tblREGASSJune19[[#This Row],[Alloc]])","v":"SITUS"},{"$f":"INDEX(tblREGASSLookup[FUNC],MATCH(tblREGASSJune19[[#This Row],[Concat]],tblREGASSLookup[Concat],0))","v":{"$error":"#N/A"}},{"$f":"IF(tblREGASSJune19[[#This Row],[Total ($000)]]=0,\"NO\",IF(ISNA(tblREGASSJune19[[#This Row],[FUNC]]),\"YES\",IF(_xlfn.ISFORMULA(tblREGASSJune19[[#This Row],[FUNC]]),\"NO\",\"YES\")))","v":"NO"}]
[{"$f":"CONCATENATE(tblREGASSJune19[[#This Row],[Primary Account]],tblREGASSJune19[[#This Row],[Primary Name]],tblREGASSJune19[[#This Row],[Secondary Acct]],tblREGASSJune19[[#This Row],[Secondary  Name]],tblREGASSJune19[[#This Row],[Alloc4FUNC]])","v":"1823930DSR COSTS NOT AMORT101366REFRIGERATION   94SITUS"},1823930,"DSR COSTS NOT AMORT",101366,"REFRIGERATION   94","IDU",0,{"$f":"IF(OR(tblREGASSJune19[[#This Row],[Alloc]]=\"IDU\",tblREGASSJune19[[#This Row],[Alloc]]=\"OR\",tblREGASSJune19[[#This Row],[Alloc]]=\"UT\",tblREGASSJune19[[#This Row],[Alloc]]=\"WYU\",tblREGASSJune19[[#This Row],[Alloc]]=\"WYP\",tblREGASSJune19[[#This Row],[Alloc]]=\"CA\",tblREGASSJune19[[#This Row],[Alloc]]=\"WA\"),\"SITUS\",tblREGASSJune19[[#This Row],[Alloc]])","v":"SITUS"},{"$f":"INDEX(tblREGASSLookup[FUNC],MATCH(tblREGASSJune19[[#This Row],[Concat]],tblREGASSLookup[Concat],0))","v":{"$error":"#N/A"}},{"$f":"IF(tblREGASSJune19[[#This Row],[Total ($000)]]=0,\"NO\",IF(ISNA(tblREGASSJune19[[#This Row],[FUNC]]),\"YES\",IF(_xlfn.ISFORMULA(tblREGASSJune19[[#This Row],[FUNC]]),\"NO\",\"YES\")))","v":"NO"}]
[{"$f":"CONCATENATE(tblREGASSJune19[[#This Row],[Primary Account]],tblREGASSJune19[[#This Row],[Primary Name]],tblREGASSJune19[[#This Row],[Secondary Acct]],tblREGASSJune19[[#This Row],[Secondary  Name]],tblREGASSJune19[[#This Row],[Alloc4FUNC]])","v":"1823930DSR COSTS NOT AMORT101367REFRIGERATION   95SITUS"},1823930,"DSR COSTS NOT AMORT",101367,"REFRIGERATION   95","IDU",0,{"$f":"IF(OR(tblREGASSJune19[[#This Row],[Alloc]]=\"IDU\",tblREGASSJune19[[#This Row],[Alloc]]=\"OR\",tblREGASSJune19[[#This Row],[Alloc]]=\"UT\",tblREGASSJune19[[#This Row],[Alloc]]=\"WYU\",tblREGASSJune19[[#This Row],[Alloc]]=\"WYP\",tblREGASSJune19[[#This Row],[Alloc]]=\"CA\",tblREGASSJune19[[#This Row],[Alloc]]=\"WA\"),\"SITUS\",tblREGASSJune19[[#This Row],[Alloc]])","v":"SITUS"},{"$f":"INDEX(tblREGASSLookup[FUNC],MATCH(tblREGASSJune19[[#This Row],[Concat]],tblREGASSLookup[Concat],0))","v":{"$error":"#N/A"}},{"$f":"IF(tblREGASSJune19[[#This Row],[Total ($000)]]=0,\"NO\",IF(ISNA(tblREGASSJune19[[#This Row],[FUNC]]),\"YES\",IF(_xlfn.ISFORMULA(tblREGASSJune19[[#This Row],[FUNC]]),\"NO\",\"YES\")))","v":"NO"}]
[{"$f":"CONCATENATE(tblREGASSJune19[[#This Row],[Primary Account]],tblREGASSJune19[[#This Row],[Primary Name]],tblREGASSJune19[[#This Row],[Secondary Acct]],tblREGASSJune19[[#This Row],[Secondary  Name]],tblREGASSJune19[[#This Row],[Alloc4FUNC]])","v":"1823930DSR COSTS NOT AMORT101368REFRIGERATION   96SITUS"},1823930,"DSR COSTS NOT AMORT",101368,"REFRIGERATION   96","IDU",0,{"$f":"IF(OR(tblREGASSJune19[[#This Row],[Alloc]]=\"IDU\",tblREGASSJune19[[#This Row],[Alloc]]=\"OR\",tblREGASSJune19[[#This Row],[Alloc]]=\"UT\",tblREGASSJune19[[#This Row],[Alloc]]=\"WYU\",tblREGASSJune19[[#This Row],[Alloc]]=\"WYP\",tblREGASSJune19[[#This Row],[Alloc]]=\"CA\",tblREGASSJune19[[#This Row],[Alloc]]=\"WA\"),\"SITUS\",tblREGASSJune19[[#This Row],[Alloc]])","v":"SITUS"},{"$f":"INDEX(tblREGASSLookup[FUNC],MATCH(tblREGASSJune19[[#This Row],[Concat]],tblREGASSLookup[Concat],0))","v":{"$error":"#N/A"}},{"$f":"IF(tblREGASSJune19[[#This Row],[Total ($000)]]=0,\"NO\",IF(ISNA(tblREGASSJune19[[#This Row],[FUNC]]),\"YES\",IF(_xlfn.ISFORMULA(tblREGASSJune19[[#This Row],[FUNC]]),\"NO\",\"YES\")))","v":"NO"}]
[{"$f":"CONCATENATE(tblREGASSJune19[[#This Row],[Primary Account]],tblREGASSJune19[[#This Row],[Primary Name]],tblREGASSJune19[[#This Row],[Secondary Acct]],tblREGASSJune19[[#This Row],[Secondary  Name]],tblREGASSJune19[[#This Row],[Alloc4FUNC]])","v":"1823930DSR COSTS NOT AMORT101369SUPER EFFICIENT REFRIGERATOR ID-UT 1997SITUS"},1823930,"DSR COSTS NOT AMORT",101369,"SUPER EFFICIENT REFRIGERATOR ID-UT 1997","IDU",0,{"$f":"IF(OR(tblREGASSJune19[[#This Row],[Alloc]]=\"IDU\",tblREGASSJune19[[#This Row],[Alloc]]=\"OR\",tblREGASSJune19[[#This Row],[Alloc]]=\"UT\",tblREGASSJune19[[#This Row],[Alloc]]=\"WYU\",tblREGASSJune19[[#This Row],[Alloc]]=\"WYP\",tblREGASSJune19[[#This Row],[Alloc]]=\"CA\",tblREGASSJune19[[#This Row],[Alloc]]=\"WA\"),\"SITUS\",tblREGASSJune19[[#This Row],[Alloc]])","v":"SITUS"},{"$f":"INDEX(tblREGASSLookup[FUNC],MATCH(tblREGASSJune19[[#This Row],[Concat]],tblREGASSLookup[Concat],0))","v":{"$error":"#N/A"}},{"$f":"IF(tblREGASSJune19[[#This Row],[Total ($000)]]=0,\"NO\",IF(ISNA(tblREGASSJune19[[#This Row],[FUNC]]),\"YES\",IF(_xlfn.ISFORMULA(tblREGASSJune19[[#This Row],[FUNC]]),\"NO\",\"YES\")))","v":"NO"}]
[{"$f":"CONCATENATE(tblREGASSJune19[[#This Row],[Primary Account]],tblREGASSJune19[[#This Row],[Primary Name]],tblREGASSJune19[[#This Row],[Secondary Acct]],tblREGASSJune19[[#This Row],[Secondary  Name]],tblREGASSJune19[[#This Row],[Alloc4FUNC]])","v":"1823930DSR COSTS NOT AMORT101370SUPER EFFICIENT REFRIGERATOR ID-UT 1998SITUS"},1823930,"DSR COSTS NOT AMORT",101370,"SUPER EFFICIENT REFRIGERATOR ID-UT 1998","IDU",0,{"$f":"IF(OR(tblREGASSJune19[[#This Row],[Alloc]]=\"IDU\",tblREGASSJune19[[#This Row],[Alloc]]=\"OR\",tblREGASSJune19[[#This Row],[Alloc]]=\"UT\",tblREGASSJune19[[#This Row],[Alloc]]=\"WYU\",tblREGASSJune19[[#This Row],[Alloc]]=\"WYP\",tblREGASSJune19[[#This Row],[Alloc]]=\"CA\",tblREGASSJune19[[#This Row],[Alloc]]=\"WA\"),\"SITUS\",tblREGASSJune19[[#This Row],[Alloc]])","v":"SITUS"},{"$f":"INDEX(tblREGASSLookup[FUNC],MATCH(tblREGASSJune19[[#This Row],[Concat]],tblREGASSLookup[Concat],0))","v":{"$error":"#N/A"}},{"$f":"IF(tblREGASSJune19[[#This Row],[Total ($000)]]=0,\"NO\",IF(ISNA(tblREGASSJune19[[#This Row],[FUNC]]),\"YES\",IF(_xlfn.ISFORMULA(tblREGASSJune19[[#This Row],[FUNC]]),\"NO\",\"YES\")))","v":"NO"}]
[{"$f":"CONCATENATE(tblREGASSJune19[[#This Row],[Primary Account]],tblREGASSJune19[[#This Row],[Primary Name]],tblREGASSJune19[[#This Row],[Secondary Acct]],tblREGASSJune19[[#This Row],[Secondary  Name]],tblREGASSJune19[[#This Row],[Alloc4FUNC]])","v":"1823930DSR COSTS NOT AMORT101371REG ENERGY MNGT 93SITUS"},1823930,"DSR COSTS NOT AMORT",101371,"REG ENERGY MNGT 93","IDU",0,{"$f":"IF(OR(tblREGASSJune19[[#This Row],[Alloc]]=\"IDU\",tblREGASSJune19[[#This Row],[Alloc]]=\"OR\",tblREGASSJune19[[#This Row],[Alloc]]=\"UT\",tblREGASSJune19[[#This Row],[Alloc]]=\"WYU\",tblREGASSJune19[[#This Row],[Alloc]]=\"WYP\",tblREGASSJune19[[#This Row],[Alloc]]=\"CA\",tblREGASSJune19[[#This Row],[Alloc]]=\"WA\"),\"SITUS\",tblREGASSJune19[[#This Row],[Alloc]])","v":"SITUS"},{"$f":"INDEX(tblREGASSLookup[FUNC],MATCH(tblREGASSJune19[[#This Row],[Concat]],tblREGASSLookup[Concat],0))","v":{"$error":"#N/A"}},{"$f":"IF(tblREGASSJune19[[#This Row],[Total ($000)]]=0,\"NO\",IF(ISNA(tblREGASSJune19[[#This Row],[FUNC]]),\"YES\",IF(_xlfn.ISFORMULA(tblREGASSJune19[[#This Row],[FUNC]]),\"NO\",\"YES\")))","v":"NO"}]
[{"$f":"CONCATENATE(tblREGASSJune19[[#This Row],[Primary Account]],tblREGASSJune19[[#This Row],[Primary Name]],tblREGASSJune19[[#This Row],[Secondary Acct]],tblREGASSJune19[[#This Row],[Secondary  Name]],tblREGASSJune19[[#This Row],[Alloc4FUNC]])","v":"1823930DSR COSTS NOT AMORT101372PROG DEVELOPMNT 93SITUS"},1823930,"DSR COSTS NOT AMORT",101372,"PROG DEVELOPMNT 93","IDU",0,{"$f":"IF(OR(tblREGASSJune19[[#This Row],[Alloc]]=\"IDU\",tblREGASSJune19[[#This Row],[Alloc]]=\"OR\",tblREGASSJune19[[#This Row],[Alloc]]=\"UT\",tblREGASSJune19[[#This Row],[Alloc]]=\"WYU\",tblREGASSJune19[[#This Row],[Alloc]]=\"WYP\",tblREGASSJune19[[#This Row],[Alloc]]=\"CA\",tblREGASSJune19[[#This Row],[Alloc]]=\"WA\"),\"SITUS\",tblREGASSJune19[[#This Row],[Alloc]])","v":"SITUS"},{"$f":"INDEX(tblREGASSLookup[FUNC],MATCH(tblREGASSJune19[[#This Row],[Concat]],tblREGASSLookup[Concat],0))","v":{"$error":"#N/A"}},{"$f":"IF(tblREGASSJune19[[#This Row],[Total ($000)]]=0,\"NO\",IF(ISNA(tblREGASSJune19[[#This Row],[FUNC]]),\"YES\",IF(_xlfn.ISFORMULA(tblREGASSJune19[[#This Row],[FUNC]]),\"NO\",\"YES\")))","v":"NO"}]
[{"$f":"CONCATENATE(tblREGASSJune19[[#This Row],[Primary Account]],tblREGASSJune19[[#This Row],[Primary Name]],tblREGASSJune19[[#This Row],[Secondary Acct]],tblREGASSJune19[[#This Row],[Secondary  Name]],tblREGASSJune19[[#This Row],[Alloc4FUNC]])","v":"1823930DSR COSTS NOT AMORT101373LOAD STUDIES    93SITUS"},1823930,"DSR COSTS NOT AMORT",101373,"LOAD STUDIES    93","IDU",0,{"$f":"IF(OR(tblREGASSJune19[[#This Row],[Alloc]]=\"IDU\",tblREGASSJune19[[#This Row],[Alloc]]=\"OR\",tblREGASSJune19[[#This Row],[Alloc]]=\"UT\",tblREGASSJune19[[#This Row],[Alloc]]=\"WYU\",tblREGASSJune19[[#This Row],[Alloc]]=\"WYP\",tblREGASSJune19[[#This Row],[Alloc]]=\"CA\",tblREGASSJune19[[#This Row],[Alloc]]=\"WA\"),\"SITUS\",tblREGASSJune19[[#This Row],[Alloc]])","v":"SITUS"},{"$f":"INDEX(tblREGASSLookup[FUNC],MATCH(tblREGASSJune19[[#This Row],[Concat]],tblREGASSLookup[Concat],0))","v":{"$error":"#N/A"}},{"$f":"IF(tblREGASSJune19[[#This Row],[Total ($000)]]=0,\"NO\",IF(ISNA(tblREGASSJune19[[#This Row],[FUNC]]),\"YES\",IF(_xlfn.ISFORMULA(tblREGASSJune19[[#This Row],[FUNC]]),\"NO\",\"YES\")))","v":"NO"}]
[{"$f":"CONCATENATE(tblREGASSJune19[[#This Row],[Primary Account]],tblREGASSJune19[[#This Row],[Primary Name]],tblREGASSJune19[[#This Row],[Secondary Acct]],tblREGASSJune19[[#This Row],[Secondary  Name]],tblREGASSJune19[[#This Row],[Alloc4FUNC]])","v":"1823930DSR COSTS NOT AMORT101374SUPER GOOD CENTS93SITUS"},1823930,"DSR COSTS NOT AMORT",101374,"SUPER GOOD CENTS93","IDU",0,{"$f":"IF(OR(tblREGASSJune19[[#This Row],[Alloc]]=\"IDU\",tblREGASSJune19[[#This Row],[Alloc]]=\"OR\",tblREGASSJune19[[#This Row],[Alloc]]=\"UT\",tblREGASSJune19[[#This Row],[Alloc]]=\"WYU\",tblREGASSJune19[[#This Row],[Alloc]]=\"WYP\",tblREGASSJune19[[#This Row],[Alloc]]=\"CA\",tblREGASSJune19[[#This Row],[Alloc]]=\"WA\"),\"SITUS\",tblREGASSJune19[[#This Row],[Alloc]])","v":"SITUS"},{"$f":"INDEX(tblREGASSLookup[FUNC],MATCH(tblREGASSJune19[[#This Row],[Concat]],tblREGASSLookup[Concat],0))","v":{"$error":"#N/A"}},{"$f":"IF(tblREGASSJune19[[#This Row],[Total ($000)]]=0,\"NO\",IF(ISNA(tblREGASSJune19[[#This Row],[FUNC]]),\"YES\",IF(_xlfn.ISFORMULA(tblREGASSJune19[[#This Row],[FUNC]]),\"NO\",\"YES\")))","v":"NO"}]
[{"$f":"CONCATENATE(tblREGASSJune19[[#This Row],[Primary Account]],tblREGASSJune19[[#This Row],[Primary Name]],tblREGASSJune19[[#This Row],[Secondary Acct]],tblREGASSJune19[[#This Row],[Secondary  Name]],tblREGASSJune19[[#This Row],[Alloc4FUNC]])","v":"1823930DSR COSTS NOT AMORT101375SUPER GOOD CENTS94SITUS"},1823930,"DSR COSTS NOT AMORT",101375,"SUPER GOOD CENTS94","IDU",0,{"$f":"IF(OR(tblREGASSJune19[[#This Row],[Alloc]]=\"IDU\",tblREGASSJune19[[#This Row],[Alloc]]=\"OR\",tblREGASSJune19[[#This Row],[Alloc]]=\"UT\",tblREGASSJune19[[#This Row],[Alloc]]=\"WYU\",tblREGASSJune19[[#This Row],[Alloc]]=\"WYP\",tblREGASSJune19[[#This Row],[Alloc]]=\"CA\",tblREGASSJune19[[#This Row],[Alloc]]=\"WA\"),\"SITUS\",tblREGASSJune19[[#This Row],[Alloc]])","v":"SITUS"},{"$f":"INDEX(tblREGASSLookup[FUNC],MATCH(tblREGASSJune19[[#This Row],[Concat]],tblREGASSLookup[Concat],0))","v":{"$error":"#N/A"}},{"$f":"IF(tblREGASSJune19[[#This Row],[Total ($000)]]=0,\"NO\",IF(ISNA(tblREGASSJune19[[#This Row],[FUNC]]),\"YES\",IF(_xlfn.ISFORMULA(tblREGASSJune19[[#This Row],[FUNC]]),\"NO\",\"YES\")))","v":"NO"}]
[{"$f":"CONCATENATE(tblREGASSJune19[[#This Row],[Primary Account]],tblREGASSJune19[[#This Row],[Primary Name]],tblREGASSJune19[[#This Row],[Secondary Acct]],tblREGASSJune19[[#This Row],[Secondary  Name]],tblREGASSJune19[[#This Row],[Alloc4FUNC]])","v":"1823930DSR COSTS NOT AMORT101376SUPER GOOD CENTS95SITUS"},1823930,"DSR COSTS NOT AMORT",101376,"SUPER GOOD CENTS95","IDU",0,{"$f":"IF(OR(tblREGASSJune19[[#This Row],[Alloc]]=\"IDU\",tblREGASSJune19[[#This Row],[Alloc]]=\"OR\",tblREGASSJune19[[#This Row],[Alloc]]=\"UT\",tblREGASSJune19[[#This Row],[Alloc]]=\"WYU\",tblREGASSJune19[[#This Row],[Alloc]]=\"WYP\",tblREGASSJune19[[#This Row],[Alloc]]=\"CA\",tblREGASSJune19[[#This Row],[Alloc]]=\"WA\"),\"SITUS\",tblREGASSJune19[[#This Row],[Alloc]])","v":"SITUS"},{"$f":"INDEX(tblREGASSLookup[FUNC],MATCH(tblREGASSJune19[[#This Row],[Concat]],tblREGASSLookup[Concat],0))","v":{"$error":"#N/A"}},{"$f":"IF(tblREGASSJune19[[#This Row],[Total ($000)]]=0,\"NO\",IF(ISNA(tblREGASSJune19[[#This Row],[FUNC]]),\"YES\",IF(_xlfn.ISFORMULA(tblREGASSJune19[[#This Row],[FUNC]]),\"NO\",\"YES\")))","v":"NO"}]
[{"$f":"CONCATENATE(tblREGASSJune19[[#This Row],[Primary Account]],tblREGASSJune19[[#This Row],[Primary Name]],tblREGASSJune19[[#This Row],[Secondary Acct]],tblREGASSJune19[[#This Row],[Secondary  Name]],tblREGASSJune19[[#This Row],[Alloc4FUNC]])","v":"1823930DSR COSTS NOT AMORT101377SUPER GOOD CENTS96SITUS"},1823930,"DSR COSTS NOT AMORT",101377,"SUPER GOOD CENTS96","IDU",0,{"$f":"IF(OR(tblREGASSJune19[[#This Row],[Alloc]]=\"IDU\",tblREGASSJune19[[#This Row],[Alloc]]=\"OR\",tblREGASSJune19[[#This Row],[Alloc]]=\"UT\",tblREGASSJune19[[#This Row],[Alloc]]=\"WYU\",tblREGASSJune19[[#This Row],[Alloc]]=\"WYP\",tblREGASSJune19[[#This Row],[Alloc]]=\"CA\",tblREGASSJune19[[#This Row],[Alloc]]=\"WA\"),\"SITUS\",tblREGASSJune19[[#This Row],[Alloc]])","v":"SITUS"},{"$f":"INDEX(tblREGASSLookup[FUNC],MATCH(tblREGASSJune19[[#This Row],[Concat]],tblREGASSLookup[Concat],0))","v":{"$error":"#N/A"}},{"$f":"IF(tblREGASSJune19[[#This Row],[Total ($000)]]=0,\"NO\",IF(ISNA(tblREGASSJune19[[#This Row],[FUNC]]),\"YES\",IF(_xlfn.ISFORMULA(tblREGASSJune19[[#This Row],[FUNC]]),\"NO\",\"YES\")))","v":"NO"}]
[{"$f":"CONCATENATE(tblREGASSJune19[[#This Row],[Primary Account]],tblREGASSJune19[[#This Row],[Primary Name]],tblREGASSJune19[[#This Row],[Secondary Acct]],tblREGASSJune19[[#This Row],[Secondary  Name]],tblREGASSJune19[[#This Row],[Alloc4FUNC]])","v":"1823930DSR COSTS NOT AMORT101378\"SUPER GOOD CENTS, ID-UT 1997\"SITUS"},1823930,"DSR COSTS NOT AMORT",101378,"\"SUPER GOOD CENTS, ID-UT 1997\"","IDU",0,{"$f":"IF(OR(tblREGASSJune19[[#This Row],[Alloc]]=\"IDU\",tblREGASSJune19[[#This Row],[Alloc]]=\"OR\",tblREGASSJune19[[#This Row],[Alloc]]=\"UT\",tblREGASSJune19[[#This Row],[Alloc]]=\"WYU\",tblREGASSJune19[[#This Row],[Alloc]]=\"WYP\",tblREGASSJune19[[#This Row],[Alloc]]=\"CA\",tblREGASSJune19[[#This Row],[Alloc]]=\"WA\"),\"SITUS\",tblREGASSJune19[[#This Row],[Alloc]])","v":"SITUS"},{"$f":"INDEX(tblREGASSLookup[FUNC],MATCH(tblREGASSJune19[[#This Row],[Concat]],tblREGASSLookup[Concat],0))","v":{"$error":"#N/A"}},{"$f":"IF(tblREGASSJune19[[#This Row],[Total ($000)]]=0,\"NO\",IF(ISNA(tblREGASSJune19[[#This Row],[FUNC]]),\"YES\",IF(_xlfn.ISFORMULA(tblREGASSJune19[[#This Row],[FUNC]]),\"NO\",\"YES\")))","v":"NO"}]
[{"$f":"CONCATENATE(tblREGASSJune19[[#This Row],[Primary Account]],tblREGASSJune19[[#This Row],[Primary Name]],tblREGASSJune19[[#This Row],[Secondary Acct]],tblREGASSJune19[[#This Row],[Secondary  Name]],tblREGASSJune19[[#This Row],[Alloc4FUNC]])","v":"1823930DSR COSTS NOT AMORT101379\"SUPER GOOD CENTS, ID-UT 1998\"SITUS"},1823930,"DSR COSTS NOT AMORT",101379,"\"SUPER GOOD CENTS, ID-UT 1998\"","IDU",0,{"$f":"IF(OR(tblREGASSJune19[[#This Row],[Alloc]]=\"IDU\",tblREGASSJune19[[#This Row],[Alloc]]=\"OR\",tblREGASSJune19[[#This Row],[Alloc]]=\"UT\",tblREGASSJune19[[#This Row],[Alloc]]=\"WYU\",tblREGASSJune19[[#This Row],[Alloc]]=\"WYP\",tblREGASSJune19[[#This Row],[Alloc]]=\"CA\",tblREGASSJune19[[#This Row],[Alloc]]=\"WA\"),\"SITUS\",tblREGASSJune19[[#This Row],[Alloc]])","v":"SITUS"},{"$f":"INDEX(tblREGASSLookup[FUNC],MATCH(tblREGASSJune19[[#This Row],[Concat]],tblREGASSLookup[Concat],0))","v":{"$error":"#N/A"}},{"$f":"IF(tblREGASSJune19[[#This Row],[Total ($000)]]=0,\"NO\",IF(ISNA(tblREGASSJune19[[#This Row],[FUNC]]),\"YES\",IF(_xlfn.ISFORMULA(tblREGASSJune19[[#This Row],[FUNC]]),\"NO\",\"YES\")))","v":"NO"}]
[{"$f":"CONCATENATE(tblREGASSJune19[[#This Row],[Primary Account]],tblREGASSJune19[[#This Row],[Primary Name]],tblREGASSJune19[[#This Row],[Secondary Acct]],tblREGASSJune19[[#This Row],[Secondary  Name]],tblREGASSJune19[[#This Row],[Alloc4FUNC]])","v":"1823930DSR COSTS NOT AMORT101380INT BEARING VAR 96SITUS"},1823930,"DSR COSTS NOT AMORT",101380,"INT BEARING VAR 96","IDU",0,{"$f":"IF(OR(tblREGASSJune19[[#This Row],[Alloc]]=\"IDU\",tblREGASSJune19[[#This Row],[Alloc]]=\"OR\",tblREGASSJune19[[#This Row],[Alloc]]=\"UT\",tblREGASSJune19[[#This Row],[Alloc]]=\"WYU\",tblREGASSJune19[[#This Row],[Alloc]]=\"WYP\",tblREGASSJune19[[#This Row],[Alloc]]=\"CA\",tblREGASSJune19[[#This Row],[Alloc]]=\"WA\"),\"SITUS\",tblREGASSJune19[[#This Row],[Alloc]])","v":"SITUS"},{"$f":"INDEX(tblREGASSLookup[FUNC],MATCH(tblREGASSJune19[[#This Row],[Concat]],tblREGASSLookup[Concat],0))","v":{"$error":"#N/A"}},{"$f":"IF(tblREGASSJune19[[#This Row],[Total ($000)]]=0,\"NO\",IF(ISNA(tblREGASSJune19[[#This Row],[FUNC]]),\"YES\",IF(_xlfn.ISFORMULA(tblREGASSJune19[[#This Row],[FUNC]]),\"NO\",\"YES\")))","v":"NO"}]
[{"$f":"CONCATENATE(tblREGASSJune19[[#This Row],[Primary Account]],tblREGASSJune19[[#This Row],[Primary Name]],tblREGASSJune19[[#This Row],[Secondary Acct]],tblREGASSJune19[[#This Row],[Secondary  Name]],tblREGASSJune19[[#This Row],[Alloc4FUNC]])","v":"1823930DSR COSTS NOT AMORT101381EF LIGHT PRO    93SITUS"},1823930,"DSR COSTS NOT AMORT",101381,"EF LIGHT PRO    93","IDU",0,{"$f":"IF(OR(tblREGASSJune19[[#This Row],[Alloc]]=\"IDU\",tblREGASSJune19[[#This Row],[Alloc]]=\"OR\",tblREGASSJune19[[#This Row],[Alloc]]=\"UT\",tblREGASSJune19[[#This Row],[Alloc]]=\"WYU\",tblREGASSJune19[[#This Row],[Alloc]]=\"WYP\",tblREGASSJune19[[#This Row],[Alloc]]=\"CA\",tblREGASSJune19[[#This Row],[Alloc]]=\"WA\"),\"SITUS\",tblREGASSJune19[[#This Row],[Alloc]])","v":"SITUS"},{"$f":"INDEX(tblREGASSLookup[FUNC],MATCH(tblREGASSJune19[[#This Row],[Concat]],tblREGASSLookup[Concat],0))","v":{"$error":"#N/A"}},{"$f":"IF(tblREGASSJune19[[#This Row],[Total ($000)]]=0,\"NO\",IF(ISNA(tblREGASSJune19[[#This Row],[FUNC]]),\"YES\",IF(_xlfn.ISFORMULA(tblREGASSJune19[[#This Row],[FUNC]]),\"NO\",\"YES\")))","v":"NO"}]
[{"$f":"CONCATENATE(tblREGASSJune19[[#This Row],[Primary Account]],tblREGASSJune19[[#This Row],[Primary Name]],tblREGASSJune19[[#This Row],[Secondary Acct]],tblREGASSJune19[[#This Row],[Secondary  Name]],tblREGASSJune19[[#This Row],[Alloc4FUNC]])","v":"1823930DSR COSTS NOT AMORT101382IRRIGATION      93SITUS"},1823930,"DSR COSTS NOT AMORT",101382,"IRRIGATION      93","IDU",0,{"$f":"IF(OR(tblREGASSJune19[[#This Row],[Alloc]]=\"IDU\",tblREGASSJune19[[#This Row],[Alloc]]=\"OR\",tblREGASSJune19[[#This Row],[Alloc]]=\"UT\",tblREGASSJune19[[#This Row],[Alloc]]=\"WYU\",tblREGASSJune19[[#This Row],[Alloc]]=\"WYP\",tblREGASSJune19[[#This Row],[Alloc]]=\"CA\",tblREGASSJune19[[#This Row],[Alloc]]=\"WA\"),\"SITUS\",tblREGASSJune19[[#This Row],[Alloc]])","v":"SITUS"},{"$f":"INDEX(tblREGASSLookup[FUNC],MATCH(tblREGASSJune19[[#This Row],[Concat]],tblREGASSLookup[Concat],0))","v":{"$error":"#N/A"}},{"$f":"IF(tblREGASSJune19[[#This Row],[Total ($000)]]=0,\"NO\",IF(ISNA(tblREGASSJune19[[#This Row],[FUNC]]),\"YES\",IF(_xlfn.ISFORMULA(tblREGASSJune19[[#This Row],[FUNC]]),\"NO\",\"YES\")))","v":"NO"}]
[{"$f":"CONCATENATE(tblREGASSJune19[[#This Row],[Primary Account]],tblREGASSJune19[[#This Row],[Primary Name]],tblREGASSJune19[[#This Row],[Secondary Acct]],tblREGASSJune19[[#This Row],[Secondary  Name]],tblREGASSJune19[[#This Row],[Alloc4FUNC]])","v":"1823930DSR COSTS NOT AMORT101383DSM OTHER PROGS 94SITUS"},1823930,"DSR COSTS NOT AMORT",101383,"DSM OTHER PROGS 94","IDU",0,{"$f":"IF(OR(tblREGASSJune19[[#This Row],[Alloc]]=\"IDU\",tblREGASSJune19[[#This Row],[Alloc]]=\"OR\",tblREGASSJune19[[#This Row],[Alloc]]=\"UT\",tblREGASSJune19[[#This Row],[Alloc]]=\"WYU\",tblREGASSJune19[[#This Row],[Alloc]]=\"WYP\",tblREGASSJune19[[#This Row],[Alloc]]=\"CA\",tblREGASSJune19[[#This Row],[Alloc]]=\"WA\"),\"SITUS\",tblREGASSJune19[[#This Row],[Alloc]])","v":"SITUS"},{"$f":"INDEX(tblREGASSLookup[FUNC],MATCH(tblREGASSJune19[[#This Row],[Concat]],tblREGASSLookup[Concat],0))","v":{"$error":"#N/A"}},{"$f":"IF(tblREGASSJune19[[#This Row],[Total ($000)]]=0,\"NO\",IF(ISNA(tblREGASSJune19[[#This Row],[FUNC]]),\"YES\",IF(_xlfn.ISFORMULA(tblREGASSJune19[[#This Row],[FUNC]]),\"NO\",\"YES\")))","v":"NO"}]
[{"$f":"CONCATENATE(tblREGASSJune19[[#This Row],[Primary Account]],tblREGASSJune19[[#This Row],[Primary Name]],tblREGASSJune19[[#This Row],[Secondary Acct]],tblREGASSJune19[[#This Row],[Secondary  Name]],tblREGASSJune19[[#This Row],[Alloc4FUNC]])","v":"1823930DSR COSTS NOT AMORT101384DSM OTHER PROGS 95SITUS"},1823930,"DSR COSTS NOT AMORT",101384,"DSM OTHER PROGS 95","IDU",0,{"$f":"IF(OR(tblREGASSJune19[[#This Row],[Alloc]]=\"IDU\",tblREGASSJune19[[#This Row],[Alloc]]=\"OR\",tblREGASSJune19[[#This Row],[Alloc]]=\"UT\",tblREGASSJune19[[#This Row],[Alloc]]=\"WYU\",tblREGASSJune19[[#This Row],[Alloc]]=\"WYP\",tblREGASSJune19[[#This Row],[Alloc]]=\"CA\",tblREGASSJune19[[#This Row],[Alloc]]=\"WA\"),\"SITUS\",tblREGASSJune19[[#This Row],[Alloc]])","v":"SITUS"},{"$f":"INDEX(tblREGASSLookup[FUNC],MATCH(tblREGASSJune19[[#This Row],[Concat]],tblREGASSLookup[Concat],0))","v":{"$error":"#N/A"}},{"$f":"IF(tblREGASSJune19[[#This Row],[Total ($000)]]=0,\"NO\",IF(ISNA(tblREGASSJune19[[#This Row],[FUNC]]),\"YES\",IF(_xlfn.ISFORMULA(tblREGASSJune19[[#This Row],[FUNC]]),\"NO\",\"YES\")))","v":"NO"}]
[{"$f":"CONCATENATE(tblREGASSJune19[[#This Row],[Primary Account]],tblREGASSJune19[[#This Row],[Primary Name]],tblREGASSJune19[[#This Row],[Secondary Acct]],tblREGASSJune19[[#This Row],[Secondary  Name]],tblREGASSJune19[[#This Row],[Alloc4FUNC]])","v":"1823930DSR COSTS NOT AMORT101385DSM OTHER PROGS 96SITUS"},1823930,"DSR COSTS NOT AMORT",101385,"DSM OTHER PROGS 96","IDU",0,{"$f":"IF(OR(tblREGASSJune19[[#This Row],[Alloc]]=\"IDU\",tblREGASSJune19[[#This Row],[Alloc]]=\"OR\",tblREGASSJune19[[#This Row],[Alloc]]=\"UT\",tblREGASSJune19[[#This Row],[Alloc]]=\"WYU\",tblREGASSJune19[[#This Row],[Alloc]]=\"WYP\",tblREGASSJune19[[#This Row],[Alloc]]=\"CA\",tblREGASSJune19[[#This Row],[Alloc]]=\"WA\"),\"SITUS\",tblREGASSJune19[[#This Row],[Alloc]])","v":"SITUS"},{"$f":"INDEX(tblREGASSLookup[FUNC],MATCH(tblREGASSJune19[[#This Row],[Concat]],tblREGASSLookup[Concat],0))","v":{"$error":"#N/A"}},{"$f":"IF(tblREGASSJune19[[#This Row],[Total ($000)]]=0,\"NO\",IF(ISNA(tblREGASSJune19[[#This Row],[FUNC]]),\"YES\",IF(_xlfn.ISFORMULA(tblREGASSJune19[[#This Row],[FUNC]]),\"NO\",\"YES\")))","v":"NO"}]
[{"$f":"CONCATENATE(tblREGASSJune19[[#This Row],[Primary Account]],tblREGASSJune19[[#This Row],[Primary Name]],tblREGASSJune19[[#This Row],[Secondary Acct]],tblREGASSJune19[[#This Row],[Secondary  Name]],tblREGASSJune19[[#This Row],[Alloc4FUNC]])","v":"1823930DSR COSTS NOT AMORT101386MARKET RESEARCH 94SITUS"},1823930,"DSR COSTS NOT AMORT",101386,"MARKET RESEARCH 94","IDU",0,{"$f":"IF(OR(tblREGASSJune19[[#This Row],[Alloc]]=\"IDU\",tblREGASSJune19[[#This Row],[Alloc]]=\"OR\",tblREGASSJune19[[#This Row],[Alloc]]=\"UT\",tblREGASSJune19[[#This Row],[Alloc]]=\"WYU\",tblREGASSJune19[[#This Row],[Alloc]]=\"WYP\",tblREGASSJune19[[#This Row],[Alloc]]=\"CA\",tblREGASSJune19[[#This Row],[Alloc]]=\"WA\"),\"SITUS\",tblREGASSJune19[[#This Row],[Alloc]])","v":"SITUS"},{"$f":"INDEX(tblREGASSLookup[FUNC],MATCH(tblREGASSJune19[[#This Row],[Concat]],tblREGASSLookup[Concat],0))","v":{"$error":"#N/A"}},{"$f":"IF(tblREGASSJune19[[#This Row],[Total ($000)]]=0,\"NO\",IF(ISNA(tblREGASSJune19[[#This Row],[FUNC]]),\"YES\",IF(_xlfn.ISFORMULA(tblREGASSJune19[[#This Row],[FUNC]]),\"NO\",\"YES\")))","v":"NO"}]
[{"$f":"CONCATENATE(tblREGASSJune19[[#This Row],[Primary Account]],tblREGASSJune19[[#This Row],[Primary Name]],tblREGASSJune19[[#This Row],[Secondary Acct]],tblREGASSJune19[[#This Row],[Secondary  Name]],tblREGASSJune19[[#This Row],[Alloc4FUNC]])","v":"1823930DSR COSTS NOT AMORT101387MARKET RESEARCH 95SITUS"},1823930,"DSR COSTS NOT AMORT",101387,"MARKET RESEARCH 95","IDU",0,{"$f":"IF(OR(tblREGASSJune19[[#This Row],[Alloc]]=\"IDU\",tblREGASSJune19[[#This Row],[Alloc]]=\"OR\",tblREGASSJune19[[#This Row],[Alloc]]=\"UT\",tblREGASSJune19[[#This Row],[Alloc]]=\"WYU\",tblREGASSJune19[[#This Row],[Alloc]]=\"WYP\",tblREGASSJune19[[#This Row],[Alloc]]=\"CA\",tblREGASSJune19[[#This Row],[Alloc]]=\"WA\"),\"SITUS\",tblREGASSJune19[[#This Row],[Alloc]])","v":"SITUS"},{"$f":"INDEX(tblREGASSLookup[FUNC],MATCH(tblREGASSJune19[[#This Row],[Concat]],tblREGASSLookup[Concat],0))","v":{"$error":"#N/A"}},{"$f":"IF(tblREGASSJune19[[#This Row],[Total ($000)]]=0,\"NO\",IF(ISNA(tblREGASSJune19[[#This Row],[FUNC]]),\"YES\",IF(_xlfn.ISFORMULA(tblREGASSJune19[[#This Row],[FUNC]]),\"NO\",\"YES\")))","v":"NO"}]
[{"$f":"CONCATENATE(tblREGASSJune19[[#This Row],[Primary Account]],tblREGASSJune19[[#This Row],[Primary Name]],tblREGASSJune19[[#This Row],[Secondary Acct]],tblREGASSJune19[[#This Row],[Secondary  Name]],tblREGASSJune19[[#This Row],[Alloc4FUNC]])","v":"1823930DSR COSTS NOT AMORT101388MARKET RESEARCH 96SITUS"},1823930,"DSR COSTS NOT AMORT",101388,"MARKET RESEARCH 96","IDU",0,{"$f":"IF(OR(tblREGASSJune19[[#This Row],[Alloc]]=\"IDU\",tblREGASSJune19[[#This Row],[Alloc]]=\"OR\",tblREGASSJune19[[#This Row],[Alloc]]=\"UT\",tblREGASSJune19[[#This Row],[Alloc]]=\"WYU\",tblREGASSJune19[[#This Row],[Alloc]]=\"WYP\",tblREGASSJune19[[#This Row],[Alloc]]=\"CA\",tblREGASSJune19[[#This Row],[Alloc]]=\"WA\"),\"SITUS\",tblREGASSJune19[[#This Row],[Alloc]])","v":"SITUS"},{"$f":"INDEX(tblREGASSLookup[FUNC],MATCH(tblREGASSJune19[[#This Row],[Concat]],tblREGASSLookup[Concat],0))","v":{"$error":"#N/A"}},{"$f":"IF(tblREGASSJune19[[#This Row],[Total ($000)]]=0,\"NO\",IF(ISNA(tblREGASSJune19[[#This Row],[FUNC]]),\"YES\",IF(_xlfn.ISFORMULA(tblREGASSJune19[[#This Row],[FUNC]]),\"NO\",\"YES\")))","v":"NO"}]
[{"$f":"CONCATENATE(tblREGASSJune19[[#This Row],[Primary Account]],tblREGASSJune19[[#This Row],[Primary Name]],tblREGASSJune19[[#This Row],[Secondary Acct]],tblREGASSJune19[[#This Row],[Secondary  Name]],tblREGASSJune19[[#This Row],[Alloc4FUNC]])","v":"1823930DSR COSTS NOT AMORT101389NORTHWEST ENERGY EFFICIENCY ALLIANCE-IDASITUS"},1823930,"DSR COSTS NOT AMORT",101389,"NORTHWEST ENERGY EFFICIENCY ALLIANCE-IDA","IDU",0,{"$f":"IF(OR(tblREGASSJune19[[#This Row],[Alloc]]=\"IDU\",tblREGASSJune19[[#This Row],[Alloc]]=\"OR\",tblREGASSJune19[[#This Row],[Alloc]]=\"UT\",tblREGASSJune19[[#This Row],[Alloc]]=\"WYU\",tblREGASSJune19[[#This Row],[Alloc]]=\"WYP\",tblREGASSJune19[[#This Row],[Alloc]]=\"CA\",tblREGASSJune19[[#This Row],[Alloc]]=\"WA\"),\"SITUS\",tblREGASSJune19[[#This Row],[Alloc]])","v":"SITUS"},{"$f":"INDEX(tblREGASSLookup[FUNC],MATCH(tblREGASSJune19[[#This Row],[Concat]],tblREGASSLookup[Concat],0))","v":{"$error":"#N/A"}},{"$f":"IF(tblREGASSJune19[[#This Row],[Total ($000)]]=0,\"NO\",IF(ISNA(tblREGASSJune19[[#This Row],[FUNC]]),\"YES\",IF(_xlfn.ISFORMULA(tblREGASSJune19[[#This Row],[FUNC]]),\"NO\",\"YES\")))","v":"NO"}]
[{"$f":"CONCATENATE(tblREGASSJune19[[#This Row],[Primary Account]],tblREGASSJune19[[#This Row],[Primary Name]],tblREGASSJune19[[#This Row],[Secondary Acct]],tblREGASSJune19[[#This Row],[Secondary  Name]],tblREGASSJune19[[#This Row],[Alloc4FUNC]])","v":"1823930DSR COSTS NOT AMORT101881HASSEL FREE EFFICIENCY IDAHO-UT 1999SITUS"},1823930,"DSR COSTS NOT AMORT",101881,"HASSEL FREE EFFICIENCY IDAHO-UT 1999","IDU",0,{"$f":"IF(OR(tblREGASSJune19[[#This Row],[Alloc]]=\"IDU\",tblREGASSJune19[[#This Row],[Alloc]]=\"OR\",tblREGASSJune19[[#This Row],[Alloc]]=\"UT\",tblREGASSJune19[[#This Row],[Alloc]]=\"WYU\",tblREGASSJune19[[#This Row],[Alloc]]=\"WYP\",tblREGASSJune19[[#This Row],[Alloc]]=\"CA\",tblREGASSJune19[[#This Row],[Alloc]]=\"WA\"),\"SITUS\",tblREGASSJune19[[#This Row],[Alloc]])","v":"SITUS"},{"$f":"INDEX(tblREGASSLookup[FUNC],MATCH(tblREGASSJune19[[#This Row],[Concat]],tblREGASSLookup[Concat],0))","v":{"$error":"#N/A"}},{"$f":"IF(tblREGASSJune19[[#This Row],[Total ($000)]]=0,\"NO\",IF(ISNA(tblREGASSJune19[[#This Row],[FUNC]]),\"YES\",IF(_xlfn.ISFORMULA(tblREGASSJune19[[#This Row],[FUNC]]),\"NO\",\"YES\")))","v":"NO"}]
[{"$f":"CONCATENATE(tblREGASSJune19[[#This Row],[Primary Account]],tblREGASSJune19[[#This Row],[Primary Name]],tblREGASSJune19[[#This Row],[Secondary Acct]],tblREGASSJune19[[#This Row],[Secondary  Name]],tblREGASSJune19[[#This Row],[Alloc4FUNC]])","v":"1823930DSR COSTS NOT AMORT101883LOW INCOME WEATHER - 1999SITUS"},1823930,"DSR COSTS NOT AMORT",101883,"LOW INCOME WEATHER - 1999","IDU",0,{"$f":"IF(OR(tblREGASSJune19[[#This Row],[Alloc]]=\"IDU\",tblREGASSJune19[[#This Row],[Alloc]]=\"OR\",tblREGASSJune19[[#This Row],[Alloc]]=\"UT\",tblREGASSJune19[[#This Row],[Alloc]]=\"WYU\",tblREGASSJune19[[#This Row],[Alloc]]=\"WYP\",tblREGASSJune19[[#This Row],[Alloc]]=\"CA\",tblREGASSJune19[[#This Row],[Alloc]]=\"WA\"),\"SITUS\",tblREGASSJune19[[#This Row],[Alloc]])","v":"SITUS"},{"$f":"INDEX(tblREGASSLookup[FUNC],MATCH(tblREGASSJune19[[#This Row],[Concat]],tblREGASSLookup[Concat],0))","v":{"$error":"#N/A"}},{"$f":"IF(tblREGASSJune19[[#This Row],[Total ($000)]]=0,\"NO\",IF(ISNA(tblREGASSJune19[[#This Row],[FUNC]]),\"YES\",IF(_xlfn.ISFORMULA(tblREGASSJune19[[#This Row],[FUNC]]),\"NO\",\"YES\")))","v":"NO"}]
[{"$f":"CONCATENATE(tblREGASSJune19[[#This Row],[Primary Account]],tblREGASSJune19[[#This Row],[Primary Name]],tblREGASSJune19[[#This Row],[Secondary Acct]],tblREGASSJune19[[#This Row],[Secondary  Name]],tblREGASSJune19[[#This Row],[Alloc4FUNC]])","v":"1823930DSR COSTS NOT AMORT101884SELF AUDIT - 1999SITUS"},1823930,"DSR COSTS NOT AMORT",101884,"SELF AUDIT - 1999","IDU",0,{"$f":"IF(OR(tblREGASSJune19[[#This Row],[Alloc]]=\"IDU\",tblREGASSJune19[[#This Row],[Alloc]]=\"OR\",tblREGASSJune19[[#This Row],[Alloc]]=\"UT\",tblREGASSJune19[[#This Row],[Alloc]]=\"WYU\",tblREGASSJune19[[#This Row],[Alloc]]=\"WYP\",tblREGASSJune19[[#This Row],[Alloc]]=\"CA\",tblREGASSJune19[[#This Row],[Alloc]]=\"WA\"),\"SITUS\",tblREGASSJune19[[#This Row],[Alloc]])","v":"SITUS"},{"$f":"INDEX(tblREGASSLookup[FUNC],MATCH(tblREGASSJune19[[#This Row],[Concat]],tblREGASSLookup[Concat],0))","v":{"$error":"#N/A"}},{"$f":"IF(tblREGASSJune19[[#This Row],[Total ($000)]]=0,\"NO\",IF(ISNA(tblREGASSJune19[[#This Row],[FUNC]]),\"YES\",IF(_xlfn.ISFORMULA(tblREGASSJune19[[#This Row],[FUNC]]),\"NO\",\"YES\")))","v":"NO"}]
[{"$f":"CONCATENATE(tblREGASSJune19[[#This Row],[Primary Account]],tblREGASSJune19[[#This Row],[Primary Name]],tblREGASSJune19[[#This Row],[Secondary Acct]],tblREGASSJune19[[#This Row],[Secondary  Name]],tblREGASSJune19[[#This Row],[Alloc4FUNC]])","v":"1823930DSR COSTS NOT AMORT101886ENERGY FINANSWER - IDAHO UP&L - 1999SITUS"},1823930,"DSR COSTS NOT AMORT",101886,"ENERGY FINANSWER - IDAHO UP&L - 1999","IDU",0,{"$f":"IF(OR(tblREGASSJune19[[#This Row],[Alloc]]=\"IDU\",tblREGASSJune19[[#This Row],[Alloc]]=\"OR\",tblREGASSJune19[[#This Row],[Alloc]]=\"UT\",tblREGASSJune19[[#This Row],[Alloc]]=\"WYU\",tblREGASSJune19[[#This Row],[Alloc]]=\"WYP\",tblREGASSJune19[[#This Row],[Alloc]]=\"CA\",tblREGASSJune19[[#This Row],[Alloc]]=\"WA\"),\"SITUS\",tblREGASSJune19[[#This Row],[Alloc]])","v":"SITUS"},{"$f":"INDEX(tblREGASSLookup[FUNC],MATCH(tblREGASSJune19[[#This Row],[Concat]],tblREGASSLookup[Concat],0))","v":{"$error":"#N/A"}},{"$f":"IF(tblREGASSJune19[[#This Row],[Total ($000)]]=0,\"NO\",IF(ISNA(tblREGASSJune19[[#This Row],[FUNC]]),\"YES\",IF(_xlfn.ISFORMULA(tblREGASSJune19[[#This Row],[FUNC]]),\"NO\",\"YES\")))","v":"NO"}]
[{"$f":"CONCATENATE(tblREGASSJune19[[#This Row],[Primary Account]],tblREGASSJune19[[#This Row],[Primary Name]],tblREGASSJune19[[#This Row],[Secondary Acct]],tblREGASSJune19[[#This Row],[Secondary  Name]],tblREGASSJune19[[#This Row],[Alloc4FUNC]])","v":"1823930DSR COSTS NOT AMORT101887INDUSTRIAL  FINANSWER - IDAHO UP&L - 199SITUS"},1823930,"DSR COSTS NOT AMORT",101887,"INDUSTRIAL  FINANSWER - IDAHO UP&L - 199","IDU",0,{"$f":"IF(OR(tblREGASSJune19[[#This Row],[Alloc]]=\"IDU\",tblREGASSJune19[[#This Row],[Alloc]]=\"OR\",tblREGASSJune19[[#This Row],[Alloc]]=\"UT\",tblREGASSJune19[[#This Row],[Alloc]]=\"WYU\",tblREGASSJune19[[#This Row],[Alloc]]=\"WYP\",tblREGASSJune19[[#This Row],[Alloc]]=\"CA\",tblREGASSJune19[[#This Row],[Alloc]]=\"WA\"),\"SITUS\",tblREGASSJune19[[#This Row],[Alloc]])","v":"SITUS"},{"$f":"INDEX(tblREGASSLookup[FUNC],MATCH(tblREGASSJune19[[#This Row],[Concat]],tblREGASSLookup[Concat],0))","v":{"$error":"#N/A"}},{"$f":"IF(tblREGASSJune19[[#This Row],[Total ($000)]]=0,\"NO\",IF(ISNA(tblREGASSJune19[[#This Row],[FUNC]]),\"YES\",IF(_xlfn.ISFORMULA(tblREGASSJune19[[#This Row],[FUNC]]),\"NO\",\"YES\")))","v":"NO"}]
[{"$f":"CONCATENATE(tblREGASSJune19[[#This Row],[Primary Account]],tblREGASSJune19[[#This Row],[Primary Name]],tblREGASSJune19[[#This Row],[Secondary Acct]],tblREGASSJune19[[#This Row],[Secondary  Name]],tblREGASSJune19[[#This Row],[Alloc4FUNC]])","v":"1823930DSR COSTS NOT AMORT101914NEEA - IDAHO UTAH 1999SITUS"},1823930,"DSR COSTS NOT AMORT",101914,"NEEA - IDAHO UTAH 1999","IDU",0,{"$f":"IF(OR(tblREGASSJune19[[#This Row],[Alloc]]=\"IDU\",tblREGASSJune19[[#This Row],[Alloc]]=\"OR\",tblREGASSJune19[[#This Row],[Alloc]]=\"UT\",tblREGASSJune19[[#This Row],[Alloc]]=\"WYU\",tblREGASSJune19[[#This Row],[Alloc]]=\"WYP\",tblREGASSJune19[[#This Row],[Alloc]]=\"CA\",tblREGASSJune19[[#This Row],[Alloc]]=\"WA\"),\"SITUS\",tblREGASSJune19[[#This Row],[Alloc]])","v":"SITUS"},{"$f":"INDEX(tblREGASSLookup[FUNC],MATCH(tblREGASSJune19[[#This Row],[Concat]],tblREGASSLookup[Concat],0))","v":{"$error":"#N/A"}},{"$f":"IF(tblREGASSJune19[[#This Row],[Total ($000)]]=0,\"NO\",IF(ISNA(tblREGASSJune19[[#This Row],[FUNC]]),\"YES\",IF(_xlfn.ISFORMULA(tblREGASSJune19[[#This Row],[FUNC]]),\"NO\",\"YES\")))","v":"NO"}]
[{"$f":"CONCATENATE(tblREGASSJune19[[#This Row],[Primary Account]],tblREGASSJune19[[#This Row],[Primary Name]],tblREGASSJune19[[#This Row],[Secondary Acct]],tblREGASSJune19[[#This Row],[Secondary  Name]],tblREGASSJune19[[#This Row],[Alloc4FUNC]])","v":"1823930DSR COSTS NOT AMORT101917WEATHERIZATION LOANS - IDAHO UP&L - 1999SITUS"},1823930,"DSR COSTS NOT AMORT",101917,"WEATHERIZATION LOANS - IDAHO UP&L - 1999","IDU",0,{"$f":"IF(OR(tblREGASSJune19[[#This Row],[Alloc]]=\"IDU\",tblREGASSJune19[[#This Row],[Alloc]]=\"OR\",tblREGASSJune19[[#This Row],[Alloc]]=\"UT\",tblREGASSJune19[[#This Row],[Alloc]]=\"WYU\",tblREGASSJune19[[#This Row],[Alloc]]=\"WYP\",tblREGASSJune19[[#This Row],[Alloc]]=\"CA\",tblREGASSJune19[[#This Row],[Alloc]]=\"WA\"),\"SITUS\",tblREGASSJune19[[#This Row],[Alloc]])","v":"SITUS"},{"$f":"INDEX(tblREGASSLookup[FUNC],MATCH(tblREGASSJune19[[#This Row],[Concat]],tblREGASSLookup[Concat],0))","v":{"$error":"#N/A"}},{"$f":"IF(tblREGASSJune19[[#This Row],[Total ($000)]]=0,\"NO\",IF(ISNA(tblREGASSJune19[[#This Row],[FUNC]]),\"YES\",IF(_xlfn.ISFORMULA(tblREGASSJune19[[#This Row],[FUNC]]),\"NO\",\"YES\")))","v":"NO"}]
[{"$f":"CONCATENATE(tblREGASSJune19[[#This Row],[Primary Account]],tblREGASSJune19[[#This Row],[Primary Name]],tblREGASSJune19[[#This Row],[Secondary Acct]],tblREGASSJune19[[#This Row],[Secondary  Name]],tblREGASSJune19[[#This Row],[Alloc4FUNC]])","v":"1823930DSR COSTS NOT AMORT101920LOW INCOME BID WZ - IDU 1999SITUS"},1823930,"DSR COSTS NOT AMORT",101920,"LOW INCOME BID WZ - IDU 1999","IDU",0,{"$f":"IF(OR(tblREGASSJune19[[#This Row],[Alloc]]=\"IDU\",tblREGASSJune19[[#This Row],[Alloc]]=\"OR\",tblREGASSJune19[[#This Row],[Alloc]]=\"UT\",tblREGASSJune19[[#This Row],[Alloc]]=\"WYU\",tblREGASSJune19[[#This Row],[Alloc]]=\"WYP\",tblREGASSJune19[[#This Row],[Alloc]]=\"CA\",tblREGASSJune19[[#This Row],[Alloc]]=\"WA\"),\"SITUS\",tblREGASSJune19[[#This Row],[Alloc]])","v":"SITUS"},{"$f":"INDEX(tblREGASSLookup[FUNC],MATCH(tblREGASSJune19[[#This Row],[Concat]],tblREGASSLookup[Concat],0))","v":{"$error":"#N/A"}},{"$f":"IF(tblREGASSJune19[[#This Row],[Total ($000)]]=0,\"NO\",IF(ISNA(tblREGASSJune19[[#This Row],[FUNC]]),\"YES\",IF(_xlfn.ISFORMULA(tblREGASSJune19[[#This Row],[FUNC]]),\"NO\",\"YES\")))","v":"NO"}]
[{"$f":"CONCATENATE(tblREGASSJune19[[#This Row],[Primary Account]],tblREGASSJune19[[#This Row],[Primary Name]],tblREGASSJune19[[#This Row],[Secondary Acct]],tblREGASSJune19[[#This Row],[Secondary  Name]],tblREGASSJune19[[#This Row],[Alloc4FUNC]])","v":"1823930DSR COSTS NOT AMORT101926ENERGY FINANSWER - IDAHO-UT 2000SITUS"},1823930,"DSR COSTS NOT AMORT",101926,"ENERGY FINANSWER - IDAHO-UT 2000","IDU",0,{"$f":"IF(OR(tblREGASSJune19[[#This Row],[Alloc]]=\"IDU\",tblREGASSJune19[[#This Row],[Alloc]]=\"OR\",tblREGASSJune19[[#This Row],[Alloc]]=\"UT\",tblREGASSJune19[[#This Row],[Alloc]]=\"WYU\",tblREGASSJune19[[#This Row],[Alloc]]=\"WYP\",tblREGASSJune19[[#This Row],[Alloc]]=\"CA\",tblREGASSJune19[[#This Row],[Alloc]]=\"WA\"),\"SITUS\",tblREGASSJune19[[#This Row],[Alloc]])","v":"SITUS"},{"$f":"INDEX(tblREGASSLookup[FUNC],MATCH(tblREGASSJune19[[#This Row],[Concat]],tblREGASSLookup[Concat],0))","v":{"$error":"#N/A"}},{"$f":"IF(tblREGASSJune19[[#This Row],[Total ($000)]]=0,\"NO\",IF(ISNA(tblREGASSJune19[[#This Row],[FUNC]]),\"YES\",IF(_xlfn.ISFORMULA(tblREGASSJune19[[#This Row],[FUNC]]),\"NO\",\"YES\")))","v":"NO"}]
[{"$f":"CONCATENATE(tblREGASSJune19[[#This Row],[Primary Account]],tblREGASSJune19[[#This Row],[Primary Name]],tblREGASSJune19[[#This Row],[Secondary Acct]],tblREGASSJune19[[#This Row],[Secondary  Name]],tblREGASSJune19[[#This Row],[Alloc4FUNC]])","v":"1823930DSR COSTS NOT AMORT101927HASSLEFREE EFFICIENCY - IDAHO-UT 2000SITUS"},1823930,"DSR COSTS NOT AMORT",101927,"HASSLEFREE EFFICIENCY - IDAHO-UT 2000","IDU",0,{"$f":"IF(OR(tblREGASSJune19[[#This Row],[Alloc]]=\"IDU\",tblREGASSJune19[[#This Row],[Alloc]]=\"OR\",tblREGASSJune19[[#This Row],[Alloc]]=\"UT\",tblREGASSJune19[[#This Row],[Alloc]]=\"WYU\",tblREGASSJune19[[#This Row],[Alloc]]=\"WYP\",tblREGASSJune19[[#This Row],[Alloc]]=\"CA\",tblREGASSJune19[[#This Row],[Alloc]]=\"WA\"),\"SITUS\",tblREGASSJune19[[#This Row],[Alloc]])","v":"SITUS"},{"$f":"INDEX(tblREGASSLookup[FUNC],MATCH(tblREGASSJune19[[#This Row],[Concat]],tblREGASSLookup[Concat],0))","v":{"$error":"#N/A"}},{"$f":"IF(tblREGASSJune19[[#This Row],[Total ($000)]]=0,\"NO\",IF(ISNA(tblREGASSJune19[[#This Row],[FUNC]]),\"YES\",IF(_xlfn.ISFORMULA(tblREGASSJune19[[#This Row],[FUNC]]),\"NO\",\"YES\")))","v":"NO"}]
[{"$f":"CONCATENATE(tblREGASSJune19[[#This Row],[Primary Account]],tblREGASSJune19[[#This Row],[Primary Name]],tblREGASSJune19[[#This Row],[Secondary Acct]],tblREGASSJune19[[#This Row],[Secondary  Name]],tblREGASSJune19[[#This Row],[Alloc4FUNC]])","v":"1823930DSR COSTS NOT AMORT101928INDUSTRIAL FINANSWER - IDAHO-UT 2000SITUS"},1823930,"DSR COSTS NOT AMORT",101928,"INDUSTRIAL FINANSWER - IDAHO-UT 2000","IDU",0,{"$f":"IF(OR(tblREGASSJune19[[#This Row],[Alloc]]=\"IDU\",tblREGASSJune19[[#This Row],[Alloc]]=\"OR\",tblREGASSJune19[[#This Row],[Alloc]]=\"UT\",tblREGASSJune19[[#This Row],[Alloc]]=\"WYU\",tblREGASSJune19[[#This Row],[Alloc]]=\"WYP\",tblREGASSJune19[[#This Row],[Alloc]]=\"CA\",tblREGASSJune19[[#This Row],[Alloc]]=\"WA\"),\"SITUS\",tblREGASSJune19[[#This Row],[Alloc]])","v":"SITUS"},{"$f":"INDEX(tblREGASSLookup[FUNC],MATCH(tblREGASSJune19[[#This Row],[Concat]],tblREGASSLookup[Concat],0))","v":{"$error":"#N/A"}},{"$f":"IF(tblREGASSJune19[[#This Row],[Total ($000)]]=0,\"NO\",IF(ISNA(tblREGASSJune19[[#This Row],[FUNC]]),\"YES\",IF(_xlfn.ISFORMULA(tblREGASSJune19[[#This Row],[FUNC]]),\"NO\",\"YES\")))","v":"NO"}]
[{"$f":"CONCATENATE(tblREGASSJune19[[#This Row],[Primary Account]],tblREGASSJune19[[#This Row],[Primary Name]],tblREGASSJune19[[#This Row],[Secondary Acct]],tblREGASSJune19[[#This Row],[Secondary  Name]],tblREGASSJune19[[#This Row],[Alloc4FUNC]])","v":"1823930DSR COSTS NOT AMORT101929LOW INCOME WZ  - IDAHO-UT 2000SITUS"},1823930,"DSR COSTS NOT AMORT",101929,"LOW INCOME WZ  - IDAHO-UT 2000","IDU",0,{"$f":"IF(OR(tblREGASSJune19[[#This Row],[Alloc]]=\"IDU\",tblREGASSJune19[[#This Row],[Alloc]]=\"OR\",tblREGASSJune19[[#This Row],[Alloc]]=\"UT\",tblREGASSJune19[[#This Row],[Alloc]]=\"WYU\",tblREGASSJune19[[#This Row],[Alloc]]=\"WYP\",tblREGASSJune19[[#This Row],[Alloc]]=\"CA\",tblREGASSJune19[[#This Row],[Alloc]]=\"WA\"),\"SITUS\",tblREGASSJune19[[#This Row],[Alloc]])","v":"SITUS"},{"$f":"INDEX(tblREGASSLookup[FUNC],MATCH(tblREGASSJune19[[#This Row],[Concat]],tblREGASSLookup[Concat],0))","v":{"$error":"#N/A"}},{"$f":"IF(tblREGASSJune19[[#This Row],[Total ($000)]]=0,\"NO\",IF(ISNA(tblREGASSJune19[[#This Row],[FUNC]]),\"YES\",IF(_xlfn.ISFORMULA(tblREGASSJune19[[#This Row],[FUNC]]),\"NO\",\"YES\")))","v":"NO"}]
[{"$f":"CONCATENATE(tblREGASSJune19[[#This Row],[Primary Account]],tblREGASSJune19[[#This Row],[Primary Name]],tblREGASSJune19[[#This Row],[Secondary Acct]],tblREGASSJune19[[#This Row],[Secondary  Name]],tblREGASSJune19[[#This Row],[Alloc4FUNC]])","v":"1823930DSR COSTS NOT AMORT101930SELF AUDIT - IDAHO-UT 2000SITUS"},1823930,"DSR COSTS NOT AMORT",101930,"SELF AUDIT - IDAHO-UT 2000","IDU",0,{"$f":"IF(OR(tblREGASSJune19[[#This Row],[Alloc]]=\"IDU\",tblREGASSJune19[[#This Row],[Alloc]]=\"OR\",tblREGASSJune19[[#This Row],[Alloc]]=\"UT\",tblREGASSJune19[[#This Row],[Alloc]]=\"WYU\",tblREGASSJune19[[#This Row],[Alloc]]=\"WYP\",tblREGASSJune19[[#This Row],[Alloc]]=\"CA\",tblREGASSJune19[[#This Row],[Alloc]]=\"WA\"),\"SITUS\",tblREGASSJune19[[#This Row],[Alloc]])","v":"SITUS"},{"$f":"INDEX(tblREGASSLookup[FUNC],MATCH(tblREGASSJune19[[#This Row],[Concat]],tblREGASSLookup[Concat],0))","v":{"$error":"#N/A"}},{"$f":"IF(tblREGASSJune19[[#This Row],[Total ($000)]]=0,\"NO\",IF(ISNA(tblREGASSJune19[[#This Row],[FUNC]]),\"YES\",IF(_xlfn.ISFORMULA(tblREGASSJune19[[#This Row],[FUNC]]),\"NO\",\"YES\")))","v":"NO"}]
[{"$f":"CONCATENATE(tblREGASSJune19[[#This Row],[Primary Account]],tblREGASSJune19[[#This Row],[Primary Name]],tblREGASSJune19[[#This Row],[Secondary Acct]],tblREGASSJune19[[#This Row],[Secondary  Name]],tblREGASSJune19[[#This Row],[Alloc4FUNC]])","v":"1823930DSR COSTS NOT AMORT101950\"LOW INCOME BID WZ, ID 2000\"SITUS"},1823930,"DSR COSTS NOT AMORT",101950,"\"LOW INCOME BID WZ, ID 2000\"","IDU",0,{"$f":"IF(OR(tblREGASSJune19[[#This Row],[Alloc]]=\"IDU\",tblREGASSJune19[[#This Row],[Alloc]]=\"OR\",tblREGASSJune19[[#This Row],[Alloc]]=\"UT\",tblREGASSJune19[[#This Row],[Alloc]]=\"WYU\",tblREGASSJune19[[#This Row],[Alloc]]=\"WYP\",tblREGASSJune19[[#This Row],[Alloc]]=\"CA\",tblREGASSJune19[[#This Row],[Alloc]]=\"WA\"),\"SITUS\",tblREGASSJune19[[#This Row],[Alloc]])","v":"SITUS"},{"$f":"INDEX(tblREGASSLookup[FUNC],MATCH(tblREGASSJune19[[#This Row],[Concat]],tblREGASSLookup[Concat],0))","v":{"$error":"#N/A"}},{"$f":"IF(tblREGASSJune19[[#This Row],[Total ($000)]]=0,\"NO\",IF(ISNA(tblREGASSJune19[[#This Row],[FUNC]]),\"YES\",IF(_xlfn.ISFORMULA(tblREGASSJune19[[#This Row],[FUNC]]),\"NO\",\"YES\")))","v":"NO"}]
[{"$f":"CONCATENATE(tblREGASSJune19[[#This Row],[Primary Account]],tblREGASSJune19[[#This Row],[Primary Name]],tblREGASSJune19[[#This Row],[Secondary Acct]],tblREGASSJune19[[#This Row],[Secondary  Name]],tblREGASSJune19[[#This Row],[Alloc4FUNC]])","v":"1823930DSR COSTS NOT AMORT101955NEEA - IDAHO-UT 2000SITUS"},1823930,"DSR COSTS NOT AMORT",101955,"NEEA - IDAHO-UT 2000","IDU",0,{"$f":"IF(OR(tblREGASSJune19[[#This Row],[Alloc]]=\"IDU\",tblREGASSJune19[[#This Row],[Alloc]]=\"OR\",tblREGASSJune19[[#This Row],[Alloc]]=\"UT\",tblREGASSJune19[[#This Row],[Alloc]]=\"WYU\",tblREGASSJune19[[#This Row],[Alloc]]=\"WYP\",tblREGASSJune19[[#This Row],[Alloc]]=\"CA\",tblREGASSJune19[[#This Row],[Alloc]]=\"WA\"),\"SITUS\",tblREGASSJune19[[#This Row],[Alloc]])","v":"SITUS"},{"$f":"INDEX(tblREGASSLookup[FUNC],MATCH(tblREGASSJune19[[#This Row],[Concat]],tblREGASSLookup[Concat],0))","v":{"$error":"#N/A"}},{"$f":"IF(tblREGASSJune19[[#This Row],[Total ($000)]]=0,\"NO\",IF(ISNA(tblREGASSJune19[[#This Row],[FUNC]]),\"YES\",IF(_xlfn.ISFORMULA(tblREGASSJune19[[#This Row],[FUNC]]),\"NO\",\"YES\")))","v":"NO"}]
[{"$f":"CONCATENATE(tblREGASSJune19[[#This Row],[Primary Account]],tblREGASSJune19[[#This Row],[Primary Name]],tblREGASSJune19[[#This Row],[Secondary Acct]],tblREGASSJune19[[#This Row],[Secondary  Name]],tblREGASSJune19[[#This Row],[Alloc4FUNC]])","v":"1823930DSR COSTS NOT AMORT102062ENERGY FINANSWER - ID-UT 2001SITUS"},1823930,"DSR COSTS NOT AMORT",102062,"ENERGY FINANSWER - ID-UT 2001","IDU",0,{"$f":"IF(OR(tblREGASSJune19[[#This Row],[Alloc]]=\"IDU\",tblREGASSJune19[[#This Row],[Alloc]]=\"OR\",tblREGASSJune19[[#This Row],[Alloc]]=\"UT\",tblREGASSJune19[[#This Row],[Alloc]]=\"WYU\",tblREGASSJune19[[#This Row],[Alloc]]=\"WYP\",tblREGASSJune19[[#This Row],[Alloc]]=\"CA\",tblREGASSJune19[[#This Row],[Alloc]]=\"WA\"),\"SITUS\",tblREGASSJune19[[#This Row],[Alloc]])","v":"SITUS"},{"$f":"INDEX(tblREGASSLookup[FUNC],MATCH(tblREGASSJune19[[#This Row],[Concat]],tblREGASSLookup[Concat],0))","v":{"$error":"#N/A"}},{"$f":"IF(tblREGASSJune19[[#This Row],[Total ($000)]]=0,\"NO\",IF(ISNA(tblREGASSJune19[[#This Row],[FUNC]]),\"YES\",IF(_xlfn.ISFORMULA(tblREGASSJune19[[#This Row],[FUNC]]),\"NO\",\"YES\")))","v":"NO"}]
[{"$f":"CONCATENATE(tblREGASSJune19[[#This Row],[Primary Account]],tblREGASSJune19[[#This Row],[Primary Name]],tblREGASSJune19[[#This Row],[Secondary Acct]],tblREGASSJune19[[#This Row],[Secondary  Name]],tblREGASSJune19[[#This Row],[Alloc4FUNC]])","v":"1823930DSR COSTS NOT AMORT102063HASSLEFREE EFFICIENCY - ID-UT 2001SITUS"},1823930,"DSR COSTS NOT AMORT",102063,"HASSLEFREE EFFICIENCY - ID-UT 2001","IDU",0,{"$f":"IF(OR(tblREGASSJune19[[#This Row],[Alloc]]=\"IDU\",tblREGASSJune19[[#This Row],[Alloc]]=\"OR\",tblREGASSJune19[[#This Row],[Alloc]]=\"UT\",tblREGASSJune19[[#This Row],[Alloc]]=\"WYU\",tblREGASSJune19[[#This Row],[Alloc]]=\"WYP\",tblREGASSJune19[[#This Row],[Alloc]]=\"CA\",tblREGASSJune19[[#This Row],[Alloc]]=\"WA\"),\"SITUS\",tblREGASSJune19[[#This Row],[Alloc]])","v":"SITUS"},{"$f":"INDEX(tblREGASSLookup[FUNC],MATCH(tblREGASSJune19[[#This Row],[Concat]],tblREGASSLookup[Concat],0))","v":{"$error":"#N/A"}},{"$f":"IF(tblREGASSJune19[[#This Row],[Total ($000)]]=0,\"NO\",IF(ISNA(tblREGASSJune19[[#This Row],[FUNC]]),\"YES\",IF(_xlfn.ISFORMULA(tblREGASSJune19[[#This Row],[FUNC]]),\"NO\",\"YES\")))","v":"NO"}]
[{"$f":"CONCATENATE(tblREGASSJune19[[#This Row],[Primary Account]],tblREGASSJune19[[#This Row],[Primary Name]],tblREGASSJune19[[#This Row],[Secondary Acct]],tblREGASSJune19[[#This Row],[Secondary  Name]],tblREGASSJune19[[#This Row],[Alloc4FUNC]])","v":"1823930DSR COSTS NOT AMORT102064INDUSTRIAL FINANSWER - ID-UT 2001SITUS"},1823930,"DSR COSTS NOT AMORT",102064,"INDUSTRIAL FINANSWER - ID-UT 2001","IDU",0,{"$f":"IF(OR(tblREGASSJune19[[#This Row],[Alloc]]=\"IDU\",tblREGASSJune19[[#This Row],[Alloc]]=\"OR\",tblREGASSJune19[[#This Row],[Alloc]]=\"UT\",tblREGASSJune19[[#This Row],[Alloc]]=\"WYU\",tblREGASSJune19[[#This Row],[Alloc]]=\"WYP\",tblREGASSJune19[[#This Row],[Alloc]]=\"CA\",tblREGASSJune19[[#This Row],[Alloc]]=\"WA\"),\"SITUS\",tblREGASSJune19[[#This Row],[Alloc]])","v":"SITUS"},{"$f":"INDEX(tblREGASSLookup[FUNC],MATCH(tblREGASSJune19[[#This Row],[Concat]],tblREGASSLookup[Concat],0))","v":{"$error":"#N/A"}},{"$f":"IF(tblREGASSJune19[[#This Row],[Total ($000)]]=0,\"NO\",IF(ISNA(tblREGASSJune19[[#This Row],[FUNC]]),\"YES\",IF(_xlfn.ISFORMULA(tblREGASSJune19[[#This Row],[FUNC]]),\"NO\",\"YES\")))","v":"NO"}]
[{"$f":"CONCATENATE(tblREGASSJune19[[#This Row],[Primary Account]],tblREGASSJune19[[#This Row],[Primary Name]],tblREGASSJune19[[#This Row],[Secondary Acct]],tblREGASSJune19[[#This Row],[Secondary  Name]],tblREGASSJune19[[#This Row],[Alloc4FUNC]])","v":"1823930DSR COSTS NOT AMORT102065LOW INCOME WZ - ID-UT 2001SITUS"},1823930,"DSR COSTS NOT AMORT",102065,"LOW INCOME WZ - ID-UT 2001","IDU",0,{"$f":"IF(OR(tblREGASSJune19[[#This Row],[Alloc]]=\"IDU\",tblREGASSJune19[[#This Row],[Alloc]]=\"OR\",tblREGASSJune19[[#This Row],[Alloc]]=\"UT\",tblREGASSJune19[[#This Row],[Alloc]]=\"WYU\",tblREGASSJune19[[#This Row],[Alloc]]=\"WYP\",tblREGASSJune19[[#This Row],[Alloc]]=\"CA\",tblREGASSJune19[[#This Row],[Alloc]]=\"WA\"),\"SITUS\",tblREGASSJune19[[#This Row],[Alloc]])","v":"SITUS"},{"$f":"INDEX(tblREGASSLookup[FUNC],MATCH(tblREGASSJune19[[#This Row],[Concat]],tblREGASSLookup[Concat],0))","v":{"$error":"#N/A"}},{"$f":"IF(tblREGASSJune19[[#This Row],[Total ($000)]]=0,\"NO\",IF(ISNA(tblREGASSJune19[[#This Row],[FUNC]]),\"YES\",IF(_xlfn.ISFORMULA(tblREGASSJune19[[#This Row],[FUNC]]),\"NO\",\"YES\")))","v":"NO"}]
[{"$f":"CONCATENATE(tblREGASSJune19[[#This Row],[Primary Account]],tblREGASSJune19[[#This Row],[Primary Name]],tblREGASSJune19[[#This Row],[Secondary Acct]],tblREGASSJune19[[#This Row],[Secondary  Name]],tblREGASSJune19[[#This Row],[Alloc4FUNC]])","v":"1823930DSR COSTS NOT AMORT102066SELF AUDIT - ID-UT 2001SITUS"},1823930,"DSR COSTS NOT AMORT",102066,"SELF AUDIT - ID-UT 2001","IDU",0,{"$f":"IF(OR(tblREGASSJune19[[#This Row],[Alloc]]=\"IDU\",tblREGASSJune19[[#This Row],[Alloc]]=\"OR\",tblREGASSJune19[[#This Row],[Alloc]]=\"UT\",tblREGASSJune19[[#This Row],[Alloc]]=\"WYU\",tblREGASSJune19[[#This Row],[Alloc]]=\"WYP\",tblREGASSJune19[[#This Row],[Alloc]]=\"CA\",tblREGASSJune19[[#This Row],[Alloc]]=\"WA\"),\"SITUS\",tblREGASSJune19[[#This Row],[Alloc]])","v":"SITUS"},{"$f":"INDEX(tblREGASSLookup[FUNC],MATCH(tblREGASSJune19[[#This Row],[Concat]],tblREGASSLookup[Concat],0))","v":{"$error":"#N/A"}},{"$f":"IF(tblREGASSJune19[[#This Row],[Total ($000)]]=0,\"NO\",IF(ISNA(tblREGASSJune19[[#This Row],[FUNC]]),\"YES\",IF(_xlfn.ISFORMULA(tblREGASSJune19[[#This Row],[FUNC]]),\"NO\",\"YES\")))","v":"NO"}]
[{"$f":"CONCATENATE(tblREGASSJune19[[#This Row],[Primary Account]],tblREGASSJune19[[#This Row],[Primary Name]],tblREGASSJune19[[#This Row],[Secondary Acct]],tblREGASSJune19[[#This Row],[Secondary  Name]],tblREGASSJune19[[#This Row],[Alloc4FUNC]])","v":"1823930DSR COSTS NOT AMORT102079NEEA - IDAHO - UTAH 2001SITUS"},1823930,"DSR COSTS NOT AMORT",102079,"NEEA - IDAHO - UTAH 2001","IDU",0,{"$f":"IF(OR(tblREGASSJune19[[#This Row],[Alloc]]=\"IDU\",tblREGASSJune19[[#This Row],[Alloc]]=\"OR\",tblREGASSJune19[[#This Row],[Alloc]]=\"UT\",tblREGASSJune19[[#This Row],[Alloc]]=\"WYU\",tblREGASSJune19[[#This Row],[Alloc]]=\"WYP\",tblREGASSJune19[[#This Row],[Alloc]]=\"CA\",tblREGASSJune19[[#This Row],[Alloc]]=\"WA\"),\"SITUS\",tblREGASSJune19[[#This Row],[Alloc]])","v":"SITUS"},{"$f":"INDEX(tblREGASSLookup[FUNC],MATCH(tblREGASSJune19[[#This Row],[Concat]],tblREGASSLookup[Concat],0))","v":{"$error":"#N/A"}},{"$f":"IF(tblREGASSJune19[[#This Row],[Total ($000)]]=0,\"NO\",IF(ISNA(tblREGASSJune19[[#This Row],[FUNC]]),\"YES\",IF(_xlfn.ISFORMULA(tblREGASSJune19[[#This Row],[FUNC]]),\"NO\",\"YES\")))","v":"NO"}]
[{"$f":"CONCATENATE(tblREGASSJune19[[#This Row],[Primary Account]],tblREGASSJune19[[#This Row],[Primary Name]],tblREGASSJune19[[#This Row],[Secondary Acct]],tblREGASSJune19[[#This Row],[Secondary  Name]],tblREGASSJune19[[#This Row],[Alloc4FUNC]])","v":"1823930DSR COSTS NOT AMORT102180HASSLEFREE EFFICIENCY - IDU - 2002SITUS"},1823930,"DSR COSTS NOT AMORT",102180,"HASSLEFREE EFFICIENCY - IDU - 2002","IDU",0,{"$f":"IF(OR(tblREGASSJune19[[#This Row],[Alloc]]=\"IDU\",tblREGASSJune19[[#This Row],[Alloc]]=\"OR\",tblREGASSJune19[[#This Row],[Alloc]]=\"UT\",tblREGASSJune19[[#This Row],[Alloc]]=\"WYU\",tblREGASSJune19[[#This Row],[Alloc]]=\"WYP\",tblREGASSJune19[[#This Row],[Alloc]]=\"CA\",tblREGASSJune19[[#This Row],[Alloc]]=\"WA\"),\"SITUS\",tblREGASSJune19[[#This Row],[Alloc]])","v":"SITUS"},{"$f":"INDEX(tblREGASSLookup[FUNC],MATCH(tblREGASSJune19[[#This Row],[Concat]],tblREGASSLookup[Concat],0))","v":{"$error":"#N/A"}},{"$f":"IF(tblREGASSJune19[[#This Row],[Total ($000)]]=0,\"NO\",IF(ISNA(tblREGASSJune19[[#This Row],[FUNC]]),\"YES\",IF(_xlfn.ISFORMULA(tblREGASSJune19[[#This Row],[FUNC]]),\"NO\",\"YES\")))","v":"NO"}]
[{"$f":"CONCATENATE(tblREGASSJune19[[#This Row],[Primary Account]],tblREGASSJune19[[#This Row],[Primary Name]],tblREGASSJune19[[#This Row],[Secondary Acct]],tblREGASSJune19[[#This Row],[Secondary  Name]],tblREGASSJune19[[#This Row],[Alloc4FUNC]])","v":"1823930DSR COSTS NOT AMORT102181INDUSTRIAL FINANSWER - IDU - 2002SITUS"},1823930,"DSR COSTS NOT AMORT",102181,"INDUSTRIAL FINANSWER - IDU - 2002","IDU",0,{"$f":"IF(OR(tblREGASSJune19[[#This Row],[Alloc]]=\"IDU\",tblREGASSJune19[[#This Row],[Alloc]]=\"OR\",tblREGASSJune19[[#This Row],[Alloc]]=\"UT\",tblREGASSJune19[[#This Row],[Alloc]]=\"WYU\",tblREGASSJune19[[#This Row],[Alloc]]=\"WYP\",tblREGASSJune19[[#This Row],[Alloc]]=\"CA\",tblREGASSJune19[[#This Row],[Alloc]]=\"WA\"),\"SITUS\",tblREGASSJune19[[#This Row],[Alloc]])","v":"SITUS"},{"$f":"INDEX(tblREGASSLookup[FUNC],MATCH(tblREGASSJune19[[#This Row],[Concat]],tblREGASSLookup[Concat],0))","v":{"$error":"#N/A"}},{"$f":"IF(tblREGASSJune19[[#This Row],[Total ($000)]]=0,\"NO\",IF(ISNA(tblREGASSJune19[[#This Row],[FUNC]]),\"YES\",IF(_xlfn.ISFORMULA(tblREGASSJune19[[#This Row],[FUNC]]),\"NO\",\"YES\")))","v":"NO"}]
[{"$f":"CONCATENATE(tblREGASSJune19[[#This Row],[Primary Account]],tblREGASSJune19[[#This Row],[Primary Name]],tblREGASSJune19[[#This Row],[Secondary Acct]],tblREGASSJune19[[#This Row],[Secondary  Name]],tblREGASSJune19[[#This Row],[Alloc4FUNC]])","v":"1823930DSR COSTS NOT AMORT102182LOW INCOME WZ - IDU - 2002SITUS"},1823930,"DSR COSTS NOT AMORT",102182,"LOW INCOME WZ - IDU - 2002","IDU",0,{"$f":"IF(OR(tblREGASSJune19[[#This Row],[Alloc]]=\"IDU\",tblREGASSJune19[[#This Row],[Alloc]]=\"OR\",tblREGASSJune19[[#This Row],[Alloc]]=\"UT\",tblREGASSJune19[[#This Row],[Alloc]]=\"WYU\",tblREGASSJune19[[#This Row],[Alloc]]=\"WYP\",tblREGASSJune19[[#This Row],[Alloc]]=\"CA\",tblREGASSJune19[[#This Row],[Alloc]]=\"WA\"),\"SITUS\",tblREGASSJune19[[#This Row],[Alloc]])","v":"SITUS"},{"$f":"INDEX(tblREGASSLookup[FUNC],MATCH(tblREGASSJune19[[#This Row],[Concat]],tblREGASSLookup[Concat],0))","v":{"$error":"#N/A"}},{"$f":"IF(tblREGASSJune19[[#This Row],[Total ($000)]]=0,\"NO\",IF(ISNA(tblREGASSJune19[[#This Row],[FUNC]]),\"YES\",IF(_xlfn.ISFORMULA(tblREGASSJune19[[#This Row],[FUNC]]),\"NO\",\"YES\")))","v":"NO"}]
[{"$f":"CONCATENATE(tblREGASSJune19[[#This Row],[Primary Account]],tblREGASSJune19[[#This Row],[Primary Name]],tblREGASSJune19[[#This Row],[Secondary Acct]],tblREGASSJune19[[#This Row],[Secondary  Name]],tblREGASSJune19[[#This Row],[Alloc4FUNC]])","v":"1823930DSR COSTS NOT AMORT102183SELF AUDIT - IDU - 2002SITUS"},1823930,"DSR COSTS NOT AMORT",102183,"SELF AUDIT - IDU - 2002","IDU",0,{"$f":"IF(OR(tblREGASSJune19[[#This Row],[Alloc]]=\"IDU\",tblREGASSJune19[[#This Row],[Alloc]]=\"OR\",tblREGASSJune19[[#This Row],[Alloc]]=\"UT\",tblREGASSJune19[[#This Row],[Alloc]]=\"WYU\",tblREGASSJune19[[#This Row],[Alloc]]=\"WYP\",tblREGASSJune19[[#This Row],[Alloc]]=\"CA\",tblREGASSJune19[[#This Row],[Alloc]]=\"WA\"),\"SITUS\",tblREGASSJune19[[#This Row],[Alloc]])","v":"SITUS"},{"$f":"INDEX(tblREGASSLookup[FUNC],MATCH(tblREGASSJune19[[#This Row],[Concat]],tblREGASSLookup[Concat],0))","v":{"$error":"#N/A"}},{"$f":"IF(tblREGASSJune19[[#This Row],[Total ($000)]]=0,\"NO\",IF(ISNA(tblREGASSJune19[[#This Row],[FUNC]]),\"YES\",IF(_xlfn.ISFORMULA(tblREGASSJune19[[#This Row],[FUNC]]),\"NO\",\"YES\")))","v":"NO"}]
[{"$f":"CONCATENATE(tblREGASSJune19[[#This Row],[Primary Account]],tblREGASSJune19[[#This Row],[Primary Name]],tblREGASSJune19[[#This Row],[Secondary Acct]],tblREGASSJune19[[#This Row],[Secondary  Name]],tblREGASSJune19[[#This Row],[Alloc4FUNC]])","v":"1823930DSR COSTS NOT AMORT102184NEEA - IDU - 2002 ACTUALSSITUS"},1823930,"DSR COSTS NOT AMORT",102184,"NEEA - IDU - 2002 ACTUALS","IDU",0,{"$f":"IF(OR(tblREGASSJune19[[#This Row],[Alloc]]=\"IDU\",tblREGASSJune19[[#This Row],[Alloc]]=\"OR\",tblREGASSJune19[[#This Row],[Alloc]]=\"UT\",tblREGASSJune19[[#This Row],[Alloc]]=\"WYU\",tblREGASSJune19[[#This Row],[Alloc]]=\"WYP\",tblREGASSJune19[[#This Row],[Alloc]]=\"CA\",tblREGASSJune19[[#This Row],[Alloc]]=\"WA\"),\"SITUS\",tblREGASSJune19[[#This Row],[Alloc]])","v":"SITUS"},{"$f":"INDEX(tblREGASSLookup[FUNC],MATCH(tblREGASSJune19[[#This Row],[Concat]],tblREGASSLookup[Concat],0))","v":{"$error":"#N/A"}},{"$f":"IF(tblREGASSJune19[[#This Row],[Total ($000)]]=0,\"NO\",IF(ISNA(tblREGASSJune19[[#This Row],[FUNC]]),\"YES\",IF(_xlfn.ISFORMULA(tblREGASSJune19[[#This Row],[FUNC]]),\"NO\",\"YES\")))","v":"NO"}]
[{"$f":"CONCATENATE(tblREGASSJune19[[#This Row],[Primary Account]],tblREGASSJune19[[#This Row],[Primary Name]],tblREGASSJune19[[#This Row],[Secondary Acct]],tblREGASSJune19[[#This Row],[Secondary  Name]],tblREGASSJune19[[#This Row],[Alloc4FUNC]])","v":"1823930DSR COSTS NOT AMORT102204COMPACT FLUORESCENT - UT 2002SITUS"},1823930,"DSR COSTS NOT AMORT",102204,"COMPACT FLUORESCENT - UT 2002","IDU",0,{"$f":"IF(OR(tblREGASSJune19[[#This Row],[Alloc]]=\"IDU\",tblREGASSJune19[[#This Row],[Alloc]]=\"OR\",tblREGASSJune19[[#This Row],[Alloc]]=\"UT\",tblREGASSJune19[[#This Row],[Alloc]]=\"WYU\",tblREGASSJune19[[#This Row],[Alloc]]=\"WYP\",tblREGASSJune19[[#This Row],[Alloc]]=\"CA\",tblREGASSJune19[[#This Row],[Alloc]]=\"WA\"),\"SITUS\",tblREGASSJune19[[#This Row],[Alloc]])","v":"SITUS"},{"$f":"INDEX(tblREGASSLookup[FUNC],MATCH(tblREGASSJune19[[#This Row],[Concat]],tblREGASSLookup[Concat],0))","v":{"$error":"#N/A"}},{"$f":"IF(tblREGASSJune19[[#This Row],[Total ($000)]]=0,\"NO\",IF(ISNA(tblREGASSJune19[[#This Row],[FUNC]]),\"YES\",IF(_xlfn.ISFORMULA(tblREGASSJune19[[#This Row],[FUNC]]),\"NO\",\"YES\")))","v":"NO"}]
[{"$f":"CONCATENATE(tblREGASSJune19[[#This Row],[Primary Account]],tblREGASSJune19[[#This Row],[Primary Name]],tblREGASSJune19[[#This Row],[Secondary Acct]],tblREGASSJune19[[#This Row],[Secondary  Name]],tblREGASSJune19[[#This Row],[Alloc4FUNC]])","v":"1823930DSR COSTS NOT AMORT102216WEATHERIZATION LOANS - RES UT 2003SITUS"},1823930,"DSR COSTS NOT AMORT",102216,"WEATHERIZATION LOANS - RES UT 2003","IDU",0,{"$f":"IF(OR(tblREGASSJune19[[#This Row],[Alloc]]=\"IDU\",tblREGASSJune19[[#This Row],[Alloc]]=\"OR\",tblREGASSJune19[[#This Row],[Alloc]]=\"UT\",tblREGASSJune19[[#This Row],[Alloc]]=\"WYU\",tblREGASSJune19[[#This Row],[Alloc]]=\"WYP\",tblREGASSJune19[[#This Row],[Alloc]]=\"CA\",tblREGASSJune19[[#This Row],[Alloc]]=\"WA\"),\"SITUS\",tblREGASSJune19[[#This Row],[Alloc]])","v":"SITUS"},{"$f":"INDEX(tblREGASSLookup[FUNC],MATCH(tblREGASSJune19[[#This Row],[Concat]],tblREGASSLookup[Concat],0))","v":{"$error":"#N/A"}},{"$f":"IF(tblREGASSJune19[[#This Row],[Total ($000)]]=0,\"NO\",IF(ISNA(tblREGASSJune19[[#This Row],[FUNC]]),\"YES\",IF(_xlfn.ISFORMULA(tblREGASSJune19[[#This Row],[FUNC]]),\"NO\",\"YES\")))","v":"NO"}]
[{"$f":"CONCATENATE(tblREGASSJune19[[#This Row],[Primary Account]],tblREGASSJune19[[#This Row],[Primary Name]],tblREGASSJune19[[#This Row],[Secondary Acct]],tblREGASSJune19[[#This Row],[Secondary  Name]],tblREGASSJune19[[#This Row],[Alloc4FUNC]])","v":"1823930DSR COSTS NOT AMORT102217COMPACT FLOURESCENT - IDU 2002SITUS"},1823930,"DSR COSTS NOT AMORT",102217,"COMPACT FLOURESCENT - IDU 2002","IDU",0,{"$f":"IF(OR(tblREGASSJune19[[#This Row],[Alloc]]=\"IDU\",tblREGASSJune19[[#This Row],[Alloc]]=\"OR\",tblREGASSJune19[[#This Row],[Alloc]]=\"UT\",tblREGASSJune19[[#This Row],[Alloc]]=\"WYU\",tblREGASSJune19[[#This Row],[Alloc]]=\"WYP\",tblREGASSJune19[[#This Row],[Alloc]]=\"CA\",tblREGASSJune19[[#This Row],[Alloc]]=\"WA\"),\"SITUS\",tblREGASSJune19[[#This Row],[Alloc]])","v":"SITUS"},{"$f":"INDEX(tblREGASSLookup[FUNC],MATCH(tblREGASSJune19[[#This Row],[Concat]],tblREGASSLookup[Concat],0))","v":{"$error":"#N/A"}},{"$f":"IF(tblREGASSJune19[[#This Row],[Total ($000)]]=0,\"NO\",IF(ISNA(tblREGASSJune19[[#This Row],[FUNC]]),\"YES\",IF(_xlfn.ISFORMULA(tblREGASSJune19[[#This Row],[FUNC]]),\"NO\",\"YES\")))","v":"NO"}]
[{"$f":"CONCATENATE(tblREGASSJune19[[#This Row],[Primary Account]],tblREGASSJune19[[#This Row],[Primary Name]],tblREGASSJune19[[#This Row],[Secondary Acct]],tblREGASSJune19[[#This Row],[Secondary  Name]],tblREGASSJune19[[#This Row],[Alloc4FUNC]])","v":"1823930DSR COSTS NOT AMORT102218ENERGY FINANSWER - IDU 2003SITUS"},1823930,"DSR COSTS NOT AMORT",102218,"ENERGY FINANSWER - IDU 2003","IDU",0,{"$f":"IF(OR(tblREGASSJune19[[#This Row],[Alloc]]=\"IDU\",tblREGASSJune19[[#This Row],[Alloc]]=\"OR\",tblREGASSJune19[[#This Row],[Alloc]]=\"UT\",tblREGASSJune19[[#This Row],[Alloc]]=\"WYU\",tblREGASSJune19[[#This Row],[Alloc]]=\"WYP\",tblREGASSJune19[[#This Row],[Alloc]]=\"CA\",tblREGASSJune19[[#This Row],[Alloc]]=\"WA\"),\"SITUS\",tblREGASSJune19[[#This Row],[Alloc]])","v":"SITUS"},{"$f":"INDEX(tblREGASSLookup[FUNC],MATCH(tblREGASSJune19[[#This Row],[Concat]],tblREGASSLookup[Concat],0))","v":{"$error":"#N/A"}},{"$f":"IF(tblREGASSJune19[[#This Row],[Total ($000)]]=0,\"NO\",IF(ISNA(tblREGASSJune19[[#This Row],[FUNC]]),\"YES\",IF(_xlfn.ISFORMULA(tblREGASSJune19[[#This Row],[FUNC]]),\"NO\",\"YES\")))","v":"NO"}]
[{"$f":"CONCATENATE(tblREGASSJune19[[#This Row],[Primary Account]],tblREGASSJune19[[#This Row],[Primary Name]],tblREGASSJune19[[#This Row],[Secondary Acct]],tblREGASSJune19[[#This Row],[Secondary  Name]],tblREGASSJune19[[#This Row],[Alloc4FUNC]])","v":"1823930DSR COSTS NOT AMORT102219INDUSTRIAL FINANSWER - IDU 2003SITUS"},1823930,"DSR COSTS NOT AMORT",102219,"INDUSTRIAL FINANSWER - IDU 2003","IDU",0,{"$f":"IF(OR(tblREGASSJune19[[#This Row],[Alloc]]=\"IDU\",tblREGASSJune19[[#This Row],[Alloc]]=\"OR\",tblREGASSJune19[[#This Row],[Alloc]]=\"UT\",tblREGASSJune19[[#This Row],[Alloc]]=\"WYU\",tblREGASSJune19[[#This Row],[Alloc]]=\"WYP\",tblREGASSJune19[[#This Row],[Alloc]]=\"CA\",tblREGASSJune19[[#This Row],[Alloc]]=\"WA\"),\"SITUS\",tblREGASSJune19[[#This Row],[Alloc]])","v":"SITUS"},{"$f":"INDEX(tblREGASSLookup[FUNC],MATCH(tblREGASSJune19[[#This Row],[Concat]],tblREGASSLookup[Concat],0))","v":{"$error":"#N/A"}},{"$f":"IF(tblREGASSJune19[[#This Row],[Total ($000)]]=0,\"NO\",IF(ISNA(tblREGASSJune19[[#This Row],[FUNC]]),\"YES\",IF(_xlfn.ISFORMULA(tblREGASSJune19[[#This Row],[FUNC]]),\"NO\",\"YES\")))","v":"NO"}]
[{"$f":"CONCATENATE(tblREGASSJune19[[#This Row],[Primary Account]],tblREGASSJune19[[#This Row],[Primary Name]],tblREGASSJune19[[#This Row],[Secondary Acct]],tblREGASSJune19[[#This Row],[Secondary  Name]],tblREGASSJune19[[#This Row],[Alloc4FUNC]])","v":"1823930DSR COSTS NOT AMORT102220LOAN INCOME WZ - IDU 2003SITUS"},1823930,"DSR COSTS NOT AMORT",102220,"LOAN INCOME WZ - IDU 2003","IDU",0,{"$f":"IF(OR(tblREGASSJune19[[#This Row],[Alloc]]=\"IDU\",tblREGASSJune19[[#This Row],[Alloc]]=\"OR\",tblREGASSJune19[[#This Row],[Alloc]]=\"UT\",tblREGASSJune19[[#This Row],[Alloc]]=\"WYU\",tblREGASSJune19[[#This Row],[Alloc]]=\"WYP\",tblREGASSJune19[[#This Row],[Alloc]]=\"CA\",tblREGASSJune19[[#This Row],[Alloc]]=\"WA\"),\"SITUS\",tblREGASSJune19[[#This Row],[Alloc]])","v":"SITUS"},{"$f":"INDEX(tblREGASSLookup[FUNC],MATCH(tblREGASSJune19[[#This Row],[Concat]],tblREGASSLookup[Concat],0))","v":{"$error":"#N/A"}},{"$f":"IF(tblREGASSJune19[[#This Row],[Total ($000)]]=0,\"NO\",IF(ISNA(tblREGASSJune19[[#This Row],[FUNC]]),\"YES\",IF(_xlfn.ISFORMULA(tblREGASSJune19[[#This Row],[FUNC]]),\"NO\",\"YES\")))","v":"NO"}]
[{"$f":"CONCATENATE(tblREGASSJune19[[#This Row],[Primary Account]],tblREGASSJune19[[#This Row],[Primary Name]],tblREGASSJune19[[#This Row],[Secondary Acct]],tblREGASSJune19[[#This Row],[Secondary  Name]],tblREGASSJune19[[#This Row],[Alloc4FUNC]])","v":"1823930DSR COSTS NOT AMORT102221NEEA - IDU 2003SITUS"},1823930,"DSR COSTS NOT AMORT",102221,"NEEA - IDU 2003","IDU",0,{"$f":"IF(OR(tblREGASSJune19[[#This Row],[Alloc]]=\"IDU\",tblREGASSJune19[[#This Row],[Alloc]]=\"OR\",tblREGASSJune19[[#This Row],[Alloc]]=\"UT\",tblREGASSJune19[[#This Row],[Alloc]]=\"WYU\",tblREGASSJune19[[#This Row],[Alloc]]=\"WYP\",tblREGASSJune19[[#This Row],[Alloc]]=\"CA\",tblREGASSJune19[[#This Row],[Alloc]]=\"WA\"),\"SITUS\",tblREGASSJune19[[#This Row],[Alloc]])","v":"SITUS"},{"$f":"INDEX(tblREGASSLookup[FUNC],MATCH(tblREGASSJune19[[#This Row],[Concat]],tblREGASSLookup[Concat],0))","v":{"$error":"#N/A"}},{"$f":"IF(tblREGASSJune19[[#This Row],[Total ($000)]]=0,\"NO\",IF(ISNA(tblREGASSJune19[[#This Row],[FUNC]]),\"YES\",IF(_xlfn.ISFORMULA(tblREGASSJune19[[#This Row],[FUNC]]),\"NO\",\"YES\")))","v":"NO"}]
[{"$f":"CONCATENATE(tblREGASSJune19[[#This Row],[Primary Account]],tblREGASSJune19[[#This Row],[Primary Name]],tblREGASSJune19[[#This Row],[Secondary Acct]],tblREGASSJune19[[#This Row],[Secondary  Name]],tblREGASSJune19[[#This Row],[Alloc4FUNC]])","v":"1823930DSR COSTS NOT AMORT102222SELF AUDIT - IDAHO-UT 2003SITUS"},1823930,"DSR COSTS NOT AMORT",102222,"SELF AUDIT - IDAHO-UT 2003","IDU",0,{"$f":"IF(OR(tblREGASSJune19[[#This Row],[Alloc]]=\"IDU\",tblREGASSJune19[[#This Row],[Alloc]]=\"OR\",tblREGASSJune19[[#This Row],[Alloc]]=\"UT\",tblREGASSJune19[[#This Row],[Alloc]]=\"WYU\",tblREGASSJune19[[#This Row],[Alloc]]=\"WYP\",tblREGASSJune19[[#This Row],[Alloc]]=\"CA\",tblREGASSJune19[[#This Row],[Alloc]]=\"WA\"),\"SITUS\",tblREGASSJune19[[#This Row],[Alloc]])","v":"SITUS"},{"$f":"INDEX(tblREGASSLookup[FUNC],MATCH(tblREGASSJune19[[#This Row],[Concat]],tblREGASSLookup[Concat],0))","v":{"$error":"#N/A"}},{"$f":"IF(tblREGASSJune19[[#This Row],[Total ($000)]]=0,\"NO\",IF(ISNA(tblREGASSJune19[[#This Row],[FUNC]]),\"YES\",IF(_xlfn.ISFORMULA(tblREGASSJune19[[#This Row],[FUNC]]),\"NO\",\"YES\")))","v":"NO"}]
[{"$f":"CONCATENATE(tblREGASSJune19[[#This Row],[Primary Account]],tblREGASSJune19[[#This Row],[Primary Name]],tblREGASSJune19[[#This Row],[Secondary Acct]],tblREGASSJune19[[#This Row],[Secondary  Name]],tblREGASSJune19[[#This Row],[Alloc4FUNC]])","v":"1823930DSR COSTS NOT AMORT102263IRRIGATION INTERRUPTIBLE IDAHO - UT 2003SITUS"},1823930,"DSR COSTS NOT AMORT",102263,"IRRIGATION INTERRUPTIBLE IDAHO - UT 2003","IDU",0,{"$f":"IF(OR(tblREGASSJune19[[#This Row],[Alloc]]=\"IDU\",tblREGASSJune19[[#This Row],[Alloc]]=\"OR\",tblREGASSJune19[[#This Row],[Alloc]]=\"UT\",tblREGASSJune19[[#This Row],[Alloc]]=\"WYU\",tblREGASSJune19[[#This Row],[Alloc]]=\"WYP\",tblREGASSJune19[[#This Row],[Alloc]]=\"CA\",tblREGASSJune19[[#This Row],[Alloc]]=\"WA\"),\"SITUS\",tblREGASSJune19[[#This Row],[Alloc]])","v":"SITUS"},{"$f":"INDEX(tblREGASSLookup[FUNC],MATCH(tblREGASSJune19[[#This Row],[Concat]],tblREGASSLookup[Concat],0))","v":{"$error":"#N/A"}},{"$f":"IF(tblREGASSJune19[[#This Row],[Total ($000)]]=0,\"NO\",IF(ISNA(tblREGASSJune19[[#This Row],[FUNC]]),\"YES\",IF(_xlfn.ISFORMULA(tblREGASSJune19[[#This Row],[FUNC]]),\"NO\",\"YES\")))","v":"NO"}]
[{"$f":"CONCATENATE(tblREGASSJune19[[#This Row],[Primary Account]],tblREGASSJune19[[#This Row],[Primary Name]],tblREGASSJune19[[#This Row],[Secondary Acct]],tblREGASSJune19[[#This Row],[Secondary  Name]],tblREGASSJune19[[#This Row],[Alloc4FUNC]])","v":"1823930DSR COSTS NOT AMORT102352INDUSTRIAL FINANSWER - IDU 2004SITUS"},1823930,"DSR COSTS NOT AMORT",102352,"INDUSTRIAL FINANSWER - IDU 2004","IDU",0,{"$f":"IF(OR(tblREGASSJune19[[#This Row],[Alloc]]=\"IDU\",tblREGASSJune19[[#This Row],[Alloc]]=\"OR\",tblREGASSJune19[[#This Row],[Alloc]]=\"UT\",tblREGASSJune19[[#This Row],[Alloc]]=\"WYU\",tblREGASSJune19[[#This Row],[Alloc]]=\"WYP\",tblREGASSJune19[[#This Row],[Alloc]]=\"CA\",tblREGASSJune19[[#This Row],[Alloc]]=\"WA\"),\"SITUS\",tblREGASSJune19[[#This Row],[Alloc]])","v":"SITUS"},{"$f":"INDEX(tblREGASSLookup[FUNC],MATCH(tblREGASSJune19[[#This Row],[Concat]],tblREGASSLookup[Concat],0))","v":"CUST"},{"$f":"IF(tblREGASSJune19[[#This Row],[Total ($000)]]=0,\"NO\",IF(ISNA(tblREGASSJune19[[#This Row],[FUNC]]),\"YES\",IF(_xlfn.ISFORMULA(tblREGASSJune19[[#This Row],[FUNC]]),\"NO\",\"YES\")))","v":"NO"}]
[{"$f":"CONCATENATE(tblREGASSJune19[[#This Row],[Primary Account]],tblREGASSJune19[[#This Row],[Primary Name]],tblREGASSJune19[[#This Row],[Secondary Acct]],tblREGASSJune19[[#This Row],[Secondary  Name]],tblREGASSJune19[[#This Row],[Alloc4FUNC]])","v":"1823930DSR COSTS NOT AMORT102353LOW INCOME WZ - IDU 2004SITUS"},1823930,"DSR COSTS NOT AMORT",102353,"LOW INCOME WZ - IDU 2004","IDU",0,{"$f":"IF(OR(tblREGASSJune19[[#This Row],[Alloc]]=\"IDU\",tblREGASSJune19[[#This Row],[Alloc]]=\"OR\",tblREGASSJune19[[#This Row],[Alloc]]=\"UT\",tblREGASSJune19[[#This Row],[Alloc]]=\"WYU\",tblREGASSJune19[[#This Row],[Alloc]]=\"WYP\",tblREGASSJune19[[#This Row],[Alloc]]=\"CA\",tblREGASSJune19[[#This Row],[Alloc]]=\"WA\"),\"SITUS\",tblREGASSJune19[[#This Row],[Alloc]])","v":"SITUS"},{"$f":"INDEX(tblREGASSLookup[FUNC],MATCH(tblREGASSJune19[[#This Row],[Concat]],tblREGASSLookup[Concat],0))","v":"CUST"},{"$f":"IF(tblREGASSJune19[[#This Row],[Total ($000)]]=0,\"NO\",IF(ISNA(tblREGASSJune19[[#This Row],[FUNC]]),\"YES\",IF(_xlfn.ISFORMULA(tblREGASSJune19[[#This Row],[FUNC]]),\"NO\",\"YES\")))","v":"NO"}]
[{"$f":"CONCATENATE(tblREGASSJune19[[#This Row],[Primary Account]],tblREGASSJune19[[#This Row],[Primary Name]],tblREGASSJune19[[#This Row],[Secondary Acct]],tblREGASSJune19[[#This Row],[Secondary  Name]],tblREGASSJune19[[#This Row],[Alloc4FUNC]])","v":"1823930DSR COSTS NOT AMORT102354NEEA - IDU 2004SITUS"},1823930,"DSR COSTS NOT AMORT",102354,"NEEA - IDU 2004","IDU",0,{"$f":"IF(OR(tblREGASSJune19[[#This Row],[Alloc]]=\"IDU\",tblREGASSJune19[[#This Row],[Alloc]]=\"OR\",tblREGASSJune19[[#This Row],[Alloc]]=\"UT\",tblREGASSJune19[[#This Row],[Alloc]]=\"WYU\",tblREGASSJune19[[#This Row],[Alloc]]=\"WYP\",tblREGASSJune19[[#This Row],[Alloc]]=\"CA\",tblREGASSJune19[[#This Row],[Alloc]]=\"WA\"),\"SITUS\",tblREGASSJune19[[#This Row],[Alloc]])","v":"SITUS"},{"$f":"INDEX(tblREGASSLookup[FUNC],MATCH(tblREGASSJune19[[#This Row],[Concat]],tblREGASSLookup[Concat],0))","v":"CUST"},{"$f":"IF(tblREGASSJune19[[#This Row],[Total ($000)]]=0,\"NO\",IF(ISNA(tblREGASSJune19[[#This Row],[FUNC]]),\"YES\",IF(_xlfn.ISFORMULA(tblREGASSJune19[[#This Row],[FUNC]]),\"NO\",\"YES\")))","v":"NO"}]
[{"$f":"CONCATENATE(tblREGASSJune19[[#This Row],[Primary Account]],tblREGASSJune19[[#This Row],[Primary Name]],tblREGASSJune19[[#This Row],[Secondary Acct]],tblREGASSJune19[[#This Row],[Secondary  Name]],tblREGASSJune19[[#This Row],[Alloc4FUNC]])","v":"1823930DSR COSTS NOT AMORT102355SELF AUDIT - IDAHO-UT 2004SITUS"},1823930,"DSR COSTS NOT AMORT",102355,"SELF AUDIT - IDAHO-UT 2004","IDU",0,{"$f":"IF(OR(tblREGASSJune19[[#This Row],[Alloc]]=\"IDU\",tblREGASSJune19[[#This Row],[Alloc]]=\"OR\",tblREGASSJune19[[#This Row],[Alloc]]=\"UT\",tblREGASSJune19[[#This Row],[Alloc]]=\"WYU\",tblREGASSJune19[[#This Row],[Alloc]]=\"WYP\",tblREGASSJune19[[#This Row],[Alloc]]=\"CA\",tblREGASSJune19[[#This Row],[Alloc]]=\"WA\"),\"SITUS\",tblREGASSJune19[[#This Row],[Alloc]])","v":"SITUS"},{"$f":"INDEX(tblREGASSLookup[FUNC],MATCH(tblREGASSJune19[[#This Row],[Concat]],tblREGASSLookup[Concat],0))","v":{"$error":"#N/A"}},{"$f":"IF(tblREGASSJune19[[#This Row],[Total ($000)]]=0,\"NO\",IF(ISNA(tblREGASSJune19[[#This Row],[FUNC]]),\"YES\",IF(_xlfn.ISFORMULA(tblREGASSJune19[[#This Row],[FUNC]]),\"NO\",\"YES\")))","v":"NO"}]
[{"$f":"CONCATENATE(tblREGASSJune19[[#This Row],[Primary Account]],tblREGASSJune19[[#This Row],[Primary Name]],tblREGASSJune19[[#This Row],[Secondary Acct]],tblREGASSJune19[[#This Row],[Secondary  Name]],tblREGASSJune19[[#This Row],[Alloc4FUNC]])","v":"1823930DSR COSTS NOT AMORT102356IRRIGATION INTERRUPTIBLE - IDU 2004SITUS"},1823930,"DSR COSTS NOT AMORT",102356,"IRRIGATION INTERRUPTIBLE - IDU 2004","IDU",0,{"$f":"IF(OR(tblREGASSJune19[[#This Row],[Alloc]]=\"IDU\",tblREGASSJune19[[#This Row],[Alloc]]=\"OR\",tblREGASSJune19[[#This Row],[Alloc]]=\"UT\",tblREGASSJune19[[#This Row],[Alloc]]=\"WYU\",tblREGASSJune19[[#This Row],[Alloc]]=\"WYP\",tblREGASSJune19[[#This Row],[Alloc]]=\"CA\",tblREGASSJune19[[#This Row],[Alloc]]=\"WA\"),\"SITUS\",tblREGASSJune19[[#This Row],[Alloc]])","v":"SITUS"},{"$f":"INDEX(tblREGASSLookup[FUNC],MATCH(tblREGASSJune19[[#This Row],[Concat]],tblREGASSLookup[Concat],0))","v":"CUST"},{"$f":"IF(tblREGASSJune19[[#This Row],[Total ($000)]]=0,\"NO\",IF(ISNA(tblREGASSJune19[[#This Row],[FUNC]]),\"YES\",IF(_xlfn.ISFORMULA(tblREGASSJune19[[#This Row],[FUNC]]),\"NO\",\"YES\")))","v":"NO"}]
[{"$f":"CONCATENATE(tblREGASSJune19[[#This Row],[Primary Account]],tblREGASSJune19[[#This Row],[Primary Name]],tblREGASSJune19[[#This Row],[Secondary Acct]],tblREGASSJune19[[#This Row],[Secondary  Name]],tblREGASSJune19[[#This Row],[Alloc4FUNC]])","v":"1823930DSR COSTS NOT AMORT102358WEATHERIZATION LOANS - RESIDENTIAL UT 20SITUS"},1823930,"DSR COSTS NOT AMORT",102358,"WEATHERIZATION LOANS - RESIDENTIAL UT 20","IDU",0,{"$f":"IF(OR(tblREGASSJune19[[#This Row],[Alloc]]=\"IDU\",tblREGASSJune19[[#This Row],[Alloc]]=\"OR\",tblREGASSJune19[[#This Row],[Alloc]]=\"UT\",tblREGASSJune19[[#This Row],[Alloc]]=\"WYU\",tblREGASSJune19[[#This Row],[Alloc]]=\"WYP\",tblREGASSJune19[[#This Row],[Alloc]]=\"CA\",tblREGASSJune19[[#This Row],[Alloc]]=\"WA\"),\"SITUS\",tblREGASSJune19[[#This Row],[Alloc]])","v":"SITUS"},{"$f":"INDEX(tblREGASSLookup[FUNC],MATCH(tblREGASSJune19[[#This Row],[Concat]],tblREGASSLookup[Concat],0))","v":{"$error":"#N/A"}},{"$f":"IF(tblREGASSJune19[[#This Row],[Total ($000)]]=0,\"NO\",IF(ISNA(tblREGASSJune19[[#This Row],[FUNC]]),\"YES\",IF(_xlfn.ISFORMULA(tblREGASSJune19[[#This Row],[FUNC]]),\"NO\",\"YES\")))","v":"NO"}]
[{"$f":"CONCATENATE(tblREGASSJune19[[#This Row],[Primary Account]],tblREGASSJune19[[#This Row],[Primary Name]],tblREGASSJune19[[#This Row],[Secondary Acct]],tblREGASSJune19[[#This Row],[Secondary  Name]],tblREGASSJune19[[#This Row],[Alloc4FUNC]])","v":"1823930DSR COSTS NOT AMORT102519INDUSTRIAL FINANSWER - IDAHO-UT 2005SITUS"},1823930,"DSR COSTS NOT AMORT",102519,"INDUSTRIAL FINANSWER - IDAHO-UT 2005","IDU",0,{"$f":"IF(OR(tblREGASSJune19[[#This Row],[Alloc]]=\"IDU\",tblREGASSJune19[[#This Row],[Alloc]]=\"OR\",tblREGASSJune19[[#This Row],[Alloc]]=\"UT\",tblREGASSJune19[[#This Row],[Alloc]]=\"WYU\",tblREGASSJune19[[#This Row],[Alloc]]=\"WYP\",tblREGASSJune19[[#This Row],[Alloc]]=\"CA\",tblREGASSJune19[[#This Row],[Alloc]]=\"WA\"),\"SITUS\",tblREGASSJune19[[#This Row],[Alloc]])","v":"SITUS"},{"$f":"INDEX(tblREGASSLookup[FUNC],MATCH(tblREGASSJune19[[#This Row],[Concat]],tblREGASSLookup[Concat],0))","v":"CUST"},{"$f":"IF(tblREGASSJune19[[#This Row],[Total ($000)]]=0,\"NO\",IF(ISNA(tblREGASSJune19[[#This Row],[FUNC]]),\"YES\",IF(_xlfn.ISFORMULA(tblREGASSJune19[[#This Row],[FUNC]]),\"NO\",\"YES\")))","v":"NO"}]
[{"$f":"CONCATENATE(tblREGASSJune19[[#This Row],[Primary Account]],tblREGASSJune19[[#This Row],[Primary Name]],tblREGASSJune19[[#This Row],[Secondary Acct]],tblREGASSJune19[[#This Row],[Secondary  Name]],tblREGASSJune19[[#This Row],[Alloc4FUNC]])","v":"1823930DSR COSTS NOT AMORT102520LOW INCOME WZ  - IDAHO-UT 2005SITUS"},1823930,"DSR COSTS NOT AMORT",102520,"LOW INCOME WZ  - IDAHO-UT 2005","IDU",0,{"$f":"IF(OR(tblREGASSJune19[[#This Row],[Alloc]]=\"IDU\",tblREGASSJune19[[#This Row],[Alloc]]=\"OR\",tblREGASSJune19[[#This Row],[Alloc]]=\"UT\",tblREGASSJune19[[#This Row],[Alloc]]=\"WYU\",tblREGASSJune19[[#This Row],[Alloc]]=\"WYP\",tblREGASSJune19[[#This Row],[Alloc]]=\"CA\",tblREGASSJune19[[#This Row],[Alloc]]=\"WA\"),\"SITUS\",tblREGASSJune19[[#This Row],[Alloc]])","v":"SITUS"},{"$f":"INDEX(tblREGASSLookup[FUNC],MATCH(tblREGASSJune19[[#This Row],[Concat]],tblREGASSLookup[Concat],0))","v":"CUST"},{"$f":"IF(tblREGASSJune19[[#This Row],[Total ($000)]]=0,\"NO\",IF(ISNA(tblREGASSJune19[[#This Row],[FUNC]]),\"YES\",IF(_xlfn.ISFORMULA(tblREGASSJune19[[#This Row],[FUNC]]),\"NO\",\"YES\")))","v":"NO"}]
[{"$f":"CONCATENATE(tblREGASSJune19[[#This Row],[Primary Account]],tblREGASSJune19[[#This Row],[Primary Name]],tblREGASSJune19[[#This Row],[Secondary Acct]],tblREGASSJune19[[#This Row],[Secondary  Name]],tblREGASSJune19[[#This Row],[Alloc4FUNC]])","v":"1823930DSR COSTS NOT AMORT102521NEEA - IDAHO - UTAH 2005SITUS"},1823930,"DSR COSTS NOT AMORT",102521,"NEEA - IDAHO - UTAH 2005","IDU",0,{"$f":"IF(OR(tblREGASSJune19[[#This Row],[Alloc]]=\"IDU\",tblREGASSJune19[[#This Row],[Alloc]]=\"OR\",tblREGASSJune19[[#This Row],[Alloc]]=\"UT\",tblREGASSJune19[[#This Row],[Alloc]]=\"WYU\",tblREGASSJune19[[#This Row],[Alloc]]=\"WYP\",tblREGASSJune19[[#This Row],[Alloc]]=\"CA\",tblREGASSJune19[[#This Row],[Alloc]]=\"WA\"),\"SITUS\",tblREGASSJune19[[#This Row],[Alloc]])","v":"SITUS"},{"$f":"INDEX(tblREGASSLookup[FUNC],MATCH(tblREGASSJune19[[#This Row],[Concat]],tblREGASSLookup[Concat],0))","v":"CUST"},{"$f":"IF(tblREGASSJune19[[#This Row],[Total ($000)]]=0,\"NO\",IF(ISNA(tblREGASSJune19[[#This Row],[FUNC]]),\"YES\",IF(_xlfn.ISFORMULA(tblREGASSJune19[[#This Row],[FUNC]]),\"NO\",\"YES\")))","v":"NO"}]
[{"$f":"CONCATENATE(tblREGASSJune19[[#This Row],[Primary Account]],tblREGASSJune19[[#This Row],[Primary Name]],tblREGASSJune19[[#This Row],[Secondary Acct]],tblREGASSJune19[[#This Row],[Secondary  Name]],tblREGASSJune19[[#This Row],[Alloc4FUNC]])","v":"1823930DSR COSTS NOT AMORT102522SELF AUDIT - IDAHO-UT 2005SITUS"},1823930,"DSR COSTS NOT AMORT",102522,"SELF AUDIT - IDAHO-UT 2005","IDU",0,{"$f":"IF(OR(tblREGASSJune19[[#This Row],[Alloc]]=\"IDU\",tblREGASSJune19[[#This Row],[Alloc]]=\"OR\",tblREGASSJune19[[#This Row],[Alloc]]=\"UT\",tblREGASSJune19[[#This Row],[Alloc]]=\"WYU\",tblREGASSJune19[[#This Row],[Alloc]]=\"WYP\",tblREGASSJune19[[#This Row],[Alloc]]=\"CA\",tblREGASSJune19[[#This Row],[Alloc]]=\"WA\"),\"SITUS\",tblREGASSJune19[[#This Row],[Alloc]])","v":"SITUS"},{"$f":"INDEX(tblREGASSLookup[FUNC],MATCH(tblREGASSJune19[[#This Row],[Concat]],tblREGASSLookup[Concat],0))","v":"CUST"},{"$f":"IF(tblREGASSJune19[[#This Row],[Total ($000)]]=0,\"NO\",IF(ISNA(tblREGASSJune19[[#This Row],[FUNC]]),\"YES\",IF(_xlfn.ISFORMULA(tblREGASSJune19[[#This Row],[FUNC]]),\"NO\",\"YES\")))","v":"NO"}]
[{"$f":"CONCATENATE(tblREGASSJune19[[#This Row],[Primary Account]],tblREGASSJune19[[#This Row],[Primary Name]],tblREGASSJune19[[#This Row],[Secondary Acct]],tblREGASSJune19[[#This Row],[Secondary  Name]],tblREGASSJune19[[#This Row],[Alloc4FUNC]])","v":"1823930DSR COSTS NOT AMORT102523IRRIGATION INTERRUPTIBLE IDAHO - UT 2005SITUS"},1823930,"DSR COSTS NOT AMORT",102523,"IRRIGATION INTERRUPTIBLE IDAHO - UT 2005","IDU",0,{"$f":"IF(OR(tblREGASSJune19[[#This Row],[Alloc]]=\"IDU\",tblREGASSJune19[[#This Row],[Alloc]]=\"OR\",tblREGASSJune19[[#This Row],[Alloc]]=\"UT\",tblREGASSJune19[[#This Row],[Alloc]]=\"WYU\",tblREGASSJune19[[#This Row],[Alloc]]=\"WYP\",tblREGASSJune19[[#This Row],[Alloc]]=\"CA\",tblREGASSJune19[[#This Row],[Alloc]]=\"WA\"),\"SITUS\",tblREGASSJune19[[#This Row],[Alloc]])","v":"SITUS"},{"$f":"INDEX(tblREGASSLookup[FUNC],MATCH(tblREGASSJune19[[#This Row],[Concat]],tblREGASSLookup[Concat],0))","v":"CUST"},{"$f":"IF(tblREGASSJune19[[#This Row],[Total ($000)]]=0,\"NO\",IF(ISNA(tblREGASSJune19[[#This Row],[FUNC]]),\"YES\",IF(_xlfn.ISFORMULA(tblREGASSJune19[[#This Row],[FUNC]]),\"NO\",\"YES\")))","v":"NO"}]
[{"$f":"CONCATENATE(tblREGASSJune19[[#This Row],[Primary Account]],tblREGASSJune19[[#This Row],[Primary Name]],tblREGASSJune19[[#This Row],[Secondary Acct]],tblREGASSJune19[[#This Row],[Secondary  Name]],tblREGASSJune19[[#This Row],[Alloc4FUNC]])","v":"1823930DSR COSTS NOT AMORT102524WEATHERIZATION LOANS - RESIDENTIAL/ID-UTSITUS"},1823930,"DSR COSTS NOT AMORT",102524,"WEATHERIZATION LOANS - RESIDENTIAL/ID-UT","IDU",0,{"$f":"IF(OR(tblREGASSJune19[[#This Row],[Alloc]]=\"IDU\",tblREGASSJune19[[#This Row],[Alloc]]=\"OR\",tblREGASSJune19[[#This Row],[Alloc]]=\"UT\",tblREGASSJune19[[#This Row],[Alloc]]=\"WYU\",tblREGASSJune19[[#This Row],[Alloc]]=\"WYP\",tblREGASSJune19[[#This Row],[Alloc]]=\"CA\",tblREGASSJune19[[#This Row],[Alloc]]=\"WA\"),\"SITUS\",tblREGASSJune19[[#This Row],[Alloc]])","v":"SITUS"},{"$f":"INDEX(tblREGASSLookup[FUNC],MATCH(tblREGASSJune19[[#This Row],[Concat]],tblREGASSLookup[Concat],0))","v":"CUST"},{"$f":"IF(tblREGASSJune19[[#This Row],[Total ($000)]]=0,\"NO\",IF(ISNA(tblREGASSJune19[[#This Row],[FUNC]]),\"YES\",IF(_xlfn.ISFORMULA(tblREGASSJune19[[#This Row],[FUNC]]),\"NO\",\"YES\")))","v":"NO"}]
[{"$f":"CONCATENATE(tblREGASSJune19[[#This Row],[Primary Account]],tblREGASSJune19[[#This Row],[Primary Name]],tblREGASSJune19[[#This Row],[Secondary Acct]],tblREGASSJune19[[#This Row],[Secondary  Name]],tblREGASSJune19[[#This Row],[Alloc4FUNC]])","v":"1823930DSR COSTS NOT AMORT102573ENERGY FINANSWER ID/UT 2006SITUS"},1823930,"DSR COSTS NOT AMORT",102573,"ENERGY FINANSWER ID/UT 2006","IDU",0.154,{"$f":"IF(OR(tblREGASSJune19[[#This Row],[Alloc]]=\"IDU\",tblREGASSJune19[[#This Row],[Alloc]]=\"OR\",tblREGASSJune19[[#This Row],[Alloc]]=\"UT\",tblREGASSJune19[[#This Row],[Alloc]]=\"WYU\",tblREGASSJune19[[#This Row],[Alloc]]=\"WYP\",tblREGASSJune19[[#This Row],[Alloc]]=\"CA\",tblREGASSJune19[[#This Row],[Alloc]]=\"WA\"),\"SITUS\",tblREGASSJune19[[#This Row],[Alloc]])","v":"SITUS"},{"$f":"INDEX(tblREGASSLookup[FUNC],MATCH(tblREGASSJune19[[#This Row],[Concat]],tblREGASSLookup[Concat],0))","v":"CUST"},{"$f":"IF(tblREGASSJune19[[#This Row],[Total ($000)]]=0,\"NO\",IF(ISNA(tblREGASSJune19[[#This Row],[FUNC]]),\"YES\",IF(_xlfn.ISFORMULA(tblREGASSJune19[[#This Row],[FUNC]]),\"NO\",\"YES\")))","v":"NO"}]
[{"$f":"CONCATENATE(tblREGASSJune19[[#This Row],[Primary Account]],tblREGASSJune19[[#This Row],[Primary Name]],tblREGASSJune19[[#This Row],[Secondary Acct]],tblREGASSJune19[[#This Row],[Secondary  Name]],tblREGASSJune19[[#This Row],[Alloc4FUNC]])","v":"1823930DSR COSTS NOT AMORT102574INDUSTRIAL FINANSWER-ID-UT 2006SITUS"},1823930,"DSR COSTS NOT AMORT",102574,"INDUSTRIAL FINANSWER-ID-UT 2006","IDU",2.52,{"$f":"IF(OR(tblREGASSJune19[[#This Row],[Alloc]]=\"IDU\",tblREGASSJune19[[#This Row],[Alloc]]=\"OR\",tblREGASSJune19[[#This Row],[Alloc]]=\"UT\",tblREGASSJune19[[#This Row],[Alloc]]=\"WYU\",tblREGASSJune19[[#This Row],[Alloc]]=\"WYP\",tblREGASSJune19[[#This Row],[Alloc]]=\"CA\",tblREGASSJune19[[#This Row],[Alloc]]=\"WA\"),\"SITUS\",tblREGASSJune19[[#This Row],[Alloc]])","v":"SITUS"},{"$f":"INDEX(tblREGASSLookup[FUNC],MATCH(tblREGASSJune19[[#This Row],[Concat]],tblREGASSLookup[Concat],0))","v":"CUST"},{"$f":"IF(tblREGASSJune19[[#This Row],[Total ($000)]]=0,\"NO\",IF(ISNA(tblREGASSJune19[[#This Row],[FUNC]]),\"YES\",IF(_xlfn.ISFORMULA(tblREGASSJune19[[#This Row],[FUNC]]),\"NO\",\"YES\")))","v":"NO"}]
[{"$f":"CONCATENATE(tblREGASSJune19[[#This Row],[Primary Account]],tblREGASSJune19[[#This Row],[Primary Name]],tblREGASSJune19[[#This Row],[Secondary Acct]],tblREGASSJune19[[#This Row],[Secondary  Name]],tblREGASSJune19[[#This Row],[Alloc4FUNC]])","v":"1823930DSR COSTS NOT AMORT102575LOW INCOME WZ -ID-UT 2006SITUS"},1823930,"DSR COSTS NOT AMORT",102575,"LOW INCOME WZ -ID-UT 2006","IDU",144.26159999999999,{"$f":"IF(OR(tblREGASSJune19[[#This Row],[Alloc]]=\"IDU\",tblREGASSJune19[[#This Row],[Alloc]]=\"OR\",tblREGASSJune19[[#This Row],[Alloc]]=\"UT\",tblREGASSJune19[[#This Row],[Alloc]]=\"WYU\",tblREGASSJune19[[#This Row],[Alloc]]=\"WYP\",tblREGASSJune19[[#This Row],[Alloc]]=\"CA\",tblREGASSJune19[[#This Row],[Alloc]]=\"WA\"),\"SITUS\",tblREGASSJune19[[#This Row],[Alloc]])","v":"SITUS"},{"$f":"INDEX(tblREGASSLookup[FUNC],MATCH(tblREGASSJune19[[#This Row],[Concat]],tblREGASSLookup[Concat],0))","v":"CUST"},{"$f":"IF(tblREGASSJune19[[#This Row],[Total ($000)]]=0,\"NO\",IF(ISNA(tblREGASSJune19[[#This Row],[FUNC]]),\"YES\",IF(_xlfn.ISFORMULA(tblREGASSJune19[[#This Row],[FUNC]]),\"NO\",\"YES\")))","v":"NO"}]
[{"$f":"CONCATENATE(tblREGASSJune19[[#This Row],[Primary Account]],tblREGASSJune19[[#This Row],[Primary Name]],tblREGASSJune19[[#This Row],[Secondary Acct]],tblREGASSJune19[[#This Row],[Secondary  Name]],tblREGASSJune19[[#This Row],[Alloc4FUNC]])","v":"1823930DSR COSTS NOT AMORT102576NEEA-IDAHO-UTAH 2006SITUS"},1823930,"DSR COSTS NOT AMORT",102576,"NEEA-IDAHO-UTAH 2006","IDU",359.13749000000001,{"$f":"IF(OR(tblREGASSJune19[[#This Row],[Alloc]]=\"IDU\",tblREGASSJune19[[#This Row],[Alloc]]=\"OR\",tblREGASSJune19[[#This Row],[Alloc]]=\"UT\",tblREGASSJune19[[#This Row],[Alloc]]=\"WYU\",tblREGASSJune19[[#This Row],[Alloc]]=\"WYP\",tblREGASSJune19[[#This Row],[Alloc]]=\"CA\",tblREGASSJune19[[#This Row],[Alloc]]=\"WA\"),\"SITUS\",tblREGASSJune19[[#This Row],[Alloc]])","v":"SITUS"},{"$f":"INDEX(tblREGASSLookup[FUNC],MATCH(tblREGASSJune19[[#This Row],[Concat]],tblREGASSLookup[Concat],0))","v":"CUST"},{"$f":"IF(tblREGASSJune19[[#This Row],[Total ($000)]]=0,\"NO\",IF(ISNA(tblREGASSJune19[[#This Row],[FUNC]]),\"YES\",IF(_xlfn.ISFORMULA(tblREGASSJune19[[#This Row],[FUNC]]),\"NO\",\"YES\")))","v":"NO"}]
[{"$f":"CONCATENATE(tblREGASSJune19[[#This Row],[Primary Account]],tblREGASSJune19[[#This Row],[Primary Name]],tblREGASSJune19[[#This Row],[Secondary Acct]],tblREGASSJune19[[#This Row],[Secondary  Name]],tblREGASSJune19[[#This Row],[Alloc4FUNC]])","v":"1823930DSR COSTS NOT AMORT102577IRRIGATION INTERRUPTIBLE ID-UT 2006SITUS"},1823930,"DSR COSTS NOT AMORT",102577,"IRRIGATION INTERRUPTIBLE ID-UT 2006","IDU",361.23489999999998,{"$f":"IF(OR(tblREGASSJune19[[#This Row],[Alloc]]=\"IDU\",tblREGASSJune19[[#This Row],[Alloc]]=\"OR\",tblREGASSJune19[[#This Row],[Alloc]]=\"UT\",tblREGASSJune19[[#This Row],[Alloc]]=\"WYU\",tblREGASSJune19[[#This Row],[Alloc]]=\"WYP\",tblREGASSJune19[[#This Row],[Alloc]]=\"CA\",tblREGASSJune19[[#This Row],[Alloc]]=\"WA\"),\"SITUS\",tblREGASSJune19[[#This Row],[Alloc]])","v":"SITUS"},{"$f":"INDEX(tblREGASSLookup[FUNC],MATCH(tblREGASSJune19[[#This Row],[Concat]],tblREGASSLookup[Concat],0))","v":"CUST"},{"$f":"IF(tblREGASSJune19[[#This Row],[Total ($000)]]=0,\"NO\",IF(ISNA(tblREGASSJune19[[#This Row],[FUNC]]),\"YES\",IF(_xlfn.ISFORMULA(tblREGASSJune19[[#This Row],[FUNC]]),\"NO\",\"YES\")))","v":"NO"}]
[{"$f":"CONCATENATE(tblREGASSJune19[[#This Row],[Primary Account]],tblREGASSJune19[[#This Row],[Primary Name]],tblREGASSJune19[[#This Row],[Secondary Acct]],tblREGASSJune19[[#This Row],[Secondary  Name]],tblREGASSJune19[[#This Row],[Alloc4FUNC]])","v":"1823930DSR COSTS NOT AMORT102578WEATHERIZATION LOANS-RESDL/ID-UT 2006SITUS"},1823930,"DSR COSTS NOT AMORT",102578,"WEATHERIZATION LOANS-RESDL/ID-UT 2006","IDU",1.60364,{"$f":"IF(OR(tblREGASSJune19[[#This Row],[Alloc]]=\"IDU\",tblREGASSJune19[[#This Row],[Alloc]]=\"OR\",tblREGASSJune19[[#This Row],[Alloc]]=\"UT\",tblREGASSJune19[[#This Row],[Alloc]]=\"WYU\",tblREGASSJune19[[#This Row],[Alloc]]=\"WYP\",tblREGASSJune19[[#This Row],[Alloc]]=\"CA\",tblREGASSJune19[[#This Row],[Alloc]]=\"WA\"),\"SITUS\",tblREGASSJune19[[#This Row],[Alloc]])","v":"SITUS"},{"$f":"INDEX(tblREGASSLookup[FUNC],MATCH(tblREGASSJune19[[#This Row],[Concat]],tblREGASSLookup[Concat],0))","v":"CUST"},{"$f":"IF(tblREGASSJune19[[#This Row],[Total ($000)]]=0,\"NO\",IF(ISNA(tblREGASSJune19[[#This Row],[FUNC]]),\"YES\",IF(_xlfn.ISFORMULA(tblREGASSJune19[[#This Row],[FUNC]]),\"NO\",\"YES\")))","v":"NO"}]
[{"$f":"CONCATENATE(tblREGASSJune19[[#This Row],[Primary Account]],tblREGASSJune19[[#This Row],[Primary Name]],tblREGASSJune19[[#This Row],[Secondary Acct]],tblREGASSJune19[[#This Row],[Secondary  Name]],tblREGASSJune19[[#This Row],[Alloc4FUNC]])","v":"1823930DSR COSTS NOT AMORT102579REFRIGERATOR RECYCLING PGM-ID-UT 2006SITUS"},1823930,"DSR COSTS NOT AMORT",102579,"REFRIGERATOR RECYCLING PGM-ID-UT 2006","IDU",143.04400000000001,{"$f":"IF(OR(tblREGASSJune19[[#This Row],[Alloc]]=\"IDU\",tblREGASSJune19[[#This Row],[Alloc]]=\"OR\",tblREGASSJune19[[#This Row],[Alloc]]=\"UT\",tblREGASSJune19[[#This Row],[Alloc]]=\"WYU\",tblREGASSJune19[[#This Row],[Alloc]]=\"WYP\",tblREGASSJune19[[#This Row],[Alloc]]=\"CA\",tblREGASSJune19[[#This Row],[Alloc]]=\"WA\"),\"SITUS\",tblREGASSJune19[[#This Row],[Alloc]])","v":"SITUS"},{"$f":"INDEX(tblREGASSLookup[FUNC],MATCH(tblREGASSJune19[[#This Row],[Concat]],tblREGASSLookup[Concat],0))","v":"CUST"},{"$f":"IF(tblREGASSJune19[[#This Row],[Total ($000)]]=0,\"NO\",IF(ISNA(tblREGASSJune19[[#This Row],[FUNC]]),\"YES\",IF(_xlfn.ISFORMULA(tblREGASSJune19[[#This Row],[FUNC]]),\"NO\",\"YES\")))","v":"NO"}]
[{"$f":"CONCATENATE(tblREGASSJune19[[#This Row],[Primary Account]],tblREGASSJune19[[#This Row],[Primary Name]],tblREGASSJune19[[#This Row],[Secondary Acct]],tblREGASSJune19[[#This Row],[Secondary  Name]],tblREGASSJune19[[#This Row],[Alloc4FUNC]])","v":"1823930DSR COSTS NOT AMORT102580COMMERCIAL FINANSWER EXPR-ID-UT 2006SITUS"},1823930,"DSR COSTS NOT AMORT",102580,"COMMERCIAL FINANSWER EXPR-ID-UT 2006","IDU",117.17189,{"$f":"IF(OR(tblREGASSJune19[[#This Row],[Alloc]]=\"IDU\",tblREGASSJune19[[#This Row],[Alloc]]=\"OR\",tblREGASSJune19[[#This Row],[Alloc]]=\"UT\",tblREGASSJune19[[#This Row],[Alloc]]=\"WYU\",tblREGASSJune19[[#This Row],[Alloc]]=\"WYP\",tblREGASSJune19[[#This Row],[Alloc]]=\"CA\",tblREGASSJune19[[#This Row],[Alloc]]=\"WA\"),\"SITUS\",tblREGASSJune19[[#This Row],[Alloc]])","v":"SITUS"},{"$f":"INDEX(tblREGASSLookup[FUNC],MATCH(tblREGASSJune19[[#This Row],[Concat]],tblREGASSLookup[Concat],0))","v":"CUST"},{"$f":"IF(tblREGASSJune19[[#This Row],[Total ($000)]]=0,\"NO\",IF(ISNA(tblREGASSJune19[[#This Row],[FUNC]]),\"YES\",IF(_xlfn.ISFORMULA(tblREGASSJune19[[#This Row],[FUNC]]),\"NO\",\"YES\")))","v":"NO"}]
[{"$f":"CONCATENATE(tblREGASSJune19[[#This Row],[Primary Account]],tblREGASSJune19[[#This Row],[Primary Name]],tblREGASSJune19[[#This Row],[Secondary Acct]],tblREGASSJune19[[#This Row],[Secondary  Name]],tblREGASSJune19[[#This Row],[Alloc4FUNC]])","v":"1823930DSR COSTS NOT AMORT102581INDUSTRIAL FINANSWER EXPR-ID-UT 2006SITUS"},1823930,"DSR COSTS NOT AMORT",102581,"INDUSTRIAL FINANSWER EXPR-ID-UT 2006","IDU",46.617190000000001,{"$f":"IF(OR(tblREGASSJune19[[#This Row],[Alloc]]=\"IDU\",tblREGASSJune19[[#This Row],[Alloc]]=\"OR\",tblREGASSJune19[[#This Row],[Alloc]]=\"UT\",tblREGASSJune19[[#This Row],[Alloc]]=\"WYU\",tblREGASSJune19[[#This Row],[Alloc]]=\"WYP\",tblREGASSJune19[[#This Row],[Alloc]]=\"CA\",tblREGASSJune19[[#This Row],[Alloc]]=\"WA\"),\"SITUS\",tblREGASSJune19[[#This Row],[Alloc]])","v":"SITUS"},{"$f":"INDEX(tblREGASSLookup[FUNC],MATCH(tblREGASSJune19[[#This Row],[Concat]],tblREGASSLookup[Concat],0))","v":"CUST"},{"$f":"IF(tblREGASSJune19[[#This Row],[Total ($000)]]=0,\"NO\",IF(ISNA(tblREGASSJune19[[#This Row],[FUNC]]),\"YES\",IF(_xlfn.ISFORMULA(tblREGASSJune19[[#This Row],[FUNC]]),\"NO\",\"YES\")))","v":"NO"}]
[{"$f":"CONCATENATE(tblREGASSJune19[[#This Row],[Primary Account]],tblREGASSJune19[[#This Row],[Primary Name]],tblREGASSJune19[[#This Row],[Secondary Acct]],tblREGASSJune19[[#This Row],[Secondary  Name]],tblREGASSJune19[[#This Row],[Alloc4FUNC]])","v":"1823930DSR COSTS NOT AMORT102582IRRIGATION EFFICIENCY PRGRM-ID-UT 2006SITUS"},1823930,"DSR COSTS NOT AMORT",102582,"IRRIGATION EFFICIENCY PRGRM-ID-UT 2006","IDU",245.85731999999999,{"$f":"IF(OR(tblREGASSJune19[[#This Row],[Alloc]]=\"IDU\",tblREGASSJune19[[#This Row],[Alloc]]=\"OR\",tblREGASSJune19[[#This Row],[Alloc]]=\"UT\",tblREGASSJune19[[#This Row],[Alloc]]=\"WYU\",tblREGASSJune19[[#This Row],[Alloc]]=\"WYP\",tblREGASSJune19[[#This Row],[Alloc]]=\"CA\",tblREGASSJune19[[#This Row],[Alloc]]=\"WA\"),\"SITUS\",tblREGASSJune19[[#This Row],[Alloc]])","v":"SITUS"},{"$f":"INDEX(tblREGASSLookup[FUNC],MATCH(tblREGASSJune19[[#This Row],[Concat]],tblREGASSLookup[Concat],0))","v":"CUST"},{"$f":"IF(tblREGASSJune19[[#This Row],[Total ($000)]]=0,\"NO\",IF(ISNA(tblREGASSJune19[[#This Row],[FUNC]]),\"YES\",IF(_xlfn.ISFORMULA(tblREGASSJune19[[#This Row],[FUNC]]),\"NO\",\"YES\")))","v":"NO"}]
[{"$f":"CONCATENATE(tblREGASSJune19[[#This Row],[Primary Account]],tblREGASSJune19[[#This Row],[Primary Name]],tblREGASSJune19[[#This Row],[Secondary Acct]],tblREGASSJune19[[#This Row],[Secondary  Name]],tblREGASSJune19[[#This Row],[Alloc4FUNC]])","v":"1823930DSR COSTS NOT AMORT102758HOME ENERGY EFFICIENCY INCENTIVE PROGM-ISITUS"},1823930,"DSR COSTS NOT AMORT",102758,"HOME ENERGY EFFICIENCY INCENTIVE PROGM-I","IDU",102.69298999999999,{"$f":"IF(OR(tblREGASSJune19[[#This Row],[Alloc]]=\"IDU\",tblREGASSJune19[[#This Row],[Alloc]]=\"OR\",tblREGASSJune19[[#This Row],[Alloc]]=\"UT\",tblREGASSJune19[[#This Row],[Alloc]]=\"WYU\",tblREGASSJune19[[#This Row],[Alloc]]=\"WYP\",tblREGASSJune19[[#This Row],[Alloc]]=\"CA\",tblREGASSJune19[[#This Row],[Alloc]]=\"WA\"),\"SITUS\",tblREGASSJune19[[#This Row],[Alloc]])","v":"SITUS"},{"$f":"INDEX(tblREGASSLookup[FUNC],MATCH(tblREGASSJune19[[#This Row],[Concat]],tblREGASSLookup[Concat],0))","v":"CUST"},{"$f":"IF(tblREGASSJune19[[#This Row],[Total ($000)]]=0,\"NO\",IF(ISNA(tblREGASSJune19[[#This Row],[FUNC]]),\"YES\",IF(_xlfn.ISFORMULA(tblREGASSJune19[[#This Row],[FUNC]]),\"NO\",\"YES\")))","v":"NO"}]
[{"$f":"CONCATENATE(tblREGASSJune19[[#This Row],[Primary Account]],tblREGASSJune19[[#This Row],[Primary Name]],tblREGASSJune19[[#This Row],[Secondary Acct]],tblREGASSJune19[[#This Row],[Secondary  Name]],tblREGASSJune19[[#This Row],[Alloc4FUNC]])","v":"1823930DSR COSTS NOT AMORT102808WEATHERIZATION LOANS RESIDTL/ ID-UT 2007OTHER"},1823930,"DSR COSTS NOT AMORT",102808,"WEATHERIZATION LOANS RESIDTL/ ID-UT 2007","OTHER",3.0000000000000001E-3,{"$f":"IF(OR(tblREGASSJune19[[#This Row],[Alloc]]=\"IDU\",tblREGASSJune19[[#This Row],[Alloc]]=\"OR\",tblREGASSJune19[[#This Row],[Alloc]]=\"UT\",tblREGASSJune19[[#This Row],[Alloc]]=\"WYU\",tblREGASSJune19[[#This Row],[Alloc]]=\"WYP\",tblREGASSJune19[[#This Row],[Alloc]]=\"CA\",tblREGASSJune19[[#This Row],[Alloc]]=\"WA\"),\"SITUS\",tblREGASSJune19[[#This Row],[Alloc]])","v":"OTHER"},{"$f":"INDEX(tblREGASSLookup[FUNC],MATCH(tblREGASSJune19[[#This Row],[Concat]],tblREGASSLookup[Concat],0))","v":"CUST"},{"$f":"IF(tblREGASSJune19[[#This Row],[Total ($000)]]=0,\"NO\",IF(ISNA(tblREGASSJune19[[#This Row],[FUNC]]),\"YES\",IF(_xlfn.ISFORMULA(tblREGASSJune19[[#This Row],[FUNC]]),\"NO\",\"YES\")))","v":"NO"}]
[{"$f":"CONCATENATE(tblREGASSJune19[[#This Row],[Primary Account]],tblREGASSJune19[[#This Row],[Primary Name]],tblREGASSJune19[[#This Row],[Secondary Acct]],tblREGASSJune19[[#This Row],[Secondary  Name]],tblREGASSJune19[[#This Row],[Alloc4FUNC]])","v":"1823930DSR COSTS NOT AMORT102809ENERGY FINANSWER IDU 2007OTHER"},1823930,"DSR COSTS NOT AMORT",102809,"ENERGY FINANSWER IDU 2007","OTHER",3.8346100000000001,{"$f":"IF(OR(tblREGASSJune19[[#This Row],[Alloc]]=\"IDU\",tblREGASSJune19[[#This Row],[Alloc]]=\"OR\",tblREGASSJune19[[#This Row],[Alloc]]=\"UT\",tblREGASSJune19[[#This Row],[Alloc]]=\"WYU\",tblREGASSJune19[[#This Row],[Alloc]]=\"WYP\",tblREGASSJune19[[#This Row],[Alloc]]=\"CA\",tblREGASSJune19[[#This Row],[Alloc]]=\"WA\"),\"SITUS\",tblREGASSJune19[[#This Row],[Alloc]])","v":"OTHER"},{"$f":"INDEX(tblREGASSLookup[FUNC],MATCH(tblREGASSJune19[[#This Row],[Concat]],tblREGASSLookup[Concat],0))","v":"CUST"},{"$f":"IF(tblREGASSJune19[[#This Row],[Total ($000)]]=0,\"NO\",IF(ISNA(tblREGASSJune19[[#This Row],[FUNC]]),\"YES\",IF(_xlfn.ISFORMULA(tblREGASSJune19[[#This Row],[FUNC]]),\"NO\",\"YES\")))","v":"NO"}]
[{"$f":"CONCATENATE(tblREGASSJune19[[#This Row],[Primary Account]],tblREGASSJune19[[#This Row],[Primary Name]],tblREGASSJune19[[#This Row],[Secondary Acct]],tblREGASSJune19[[#This Row],[Secondary  Name]],tblREGASSJune19[[#This Row],[Alloc4FUNC]])","v":"1823930DSR COSTS NOT AMORT102810Industrial Finanswer ID - 2007OTHER"},1823930,"DSR COSTS NOT AMORT",102810,"Industrial Finanswer ID - 2007","OTHER",1.0999999999999999E-2,{"$f":"IF(OR(tblREGASSJune19[[#This Row],[Alloc]]=\"IDU\",tblREGASSJune19[[#This Row],[Alloc]]=\"OR\",tblREGASSJune19[[#This Row],[Alloc]]=\"UT\",tblREGASSJune19[[#This Row],[Alloc]]=\"WYU\",tblREGASSJune19[[#This Row],[Alloc]]=\"WYP\",tblREGASSJune19[[#This Row],[Alloc]]=\"CA\",tblREGASSJune19[[#This Row],[Alloc]]=\"WA\"),\"SITUS\",tblREGASSJune19[[#This Row],[Alloc]])","v":"OTHER"},{"$f":"INDEX(tblREGASSLookup[FUNC],MATCH(tblREGASSJune19[[#This Row],[Concat]],tblREGASSLookup[Concat],0))","v":"CUST"},{"$f":"IF(tblREGASSJune19[[#This Row],[Total ($000)]]=0,\"NO\",IF(ISNA(tblREGASSJune19[[#This Row],[FUNC]]),\"YES\",IF(_xlfn.ISFORMULA(tblREGASSJune19[[#This Row],[FUNC]]),\"NO\",\"YES\")))","v":"NO"}]
[{"$f":"CONCATENATE(tblREGASSJune19[[#This Row],[Primary Account]],tblREGASSJune19[[#This Row],[Primary Name]],tblREGASSJune19[[#This Row],[Secondary Acct]],tblREGASSJune19[[#This Row],[Secondary  Name]],tblREGASSJune19[[#This Row],[Alloc4FUNC]])","v":"1823930DSR COSTS NOT AMORT102811IRRIGATION INTERRUPTIBLE ID-UT 2007OTHER"},1823930,"DSR COSTS NOT AMORT",102811,"IRRIGATION INTERRUPTIBLE ID-UT 2007","OTHER",846.00710000000004,{"$f":"IF(OR(tblREGASSJune19[[#This Row],[Alloc]]=\"IDU\",tblREGASSJune19[[#This Row],[Alloc]]=\"OR\",tblREGASSJune19[[#This Row],[Alloc]]=\"UT\",tblREGASSJune19[[#This Row],[Alloc]]=\"WYU\",tblREGASSJune19[[#This Row],[Alloc]]=\"WYP\",tblREGASSJune19[[#This Row],[Alloc]]=\"CA\",tblREGASSJune19[[#This Row],[Alloc]]=\"WA\"),\"SITUS\",tblREGASSJune19[[#This Row],[Alloc]])","v":"OTHER"},{"$f":"INDEX(tblREGASSLookup[FUNC],MATCH(tblREGASSJune19[[#This Row],[Concat]],tblREGASSLookup[Concat],0))","v":"CUST"},{"$f":"IF(tblREGASSJune19[[#This Row],[Total ($000)]]=0,\"NO\",IF(ISNA(tblREGASSJune19[[#This Row],[FUNC]]),\"YES\",IF(_xlfn.ISFORMULA(tblREGASSJune19[[#This Row],[FUNC]]),\"NO\",\"YES\")))","v":"NO"}]
[{"$f":"CONCATENATE(tblREGASSJune19[[#This Row],[Primary Account]],tblREGASSJune19[[#This Row],[Primary Name]],tblREGASSJune19[[#This Row],[Secondary Acct]],tblREGASSJune19[[#This Row],[Secondary  Name]],tblREGASSJune19[[#This Row],[Alloc4FUNC]])","v":"1823930DSR COSTS NOT AMORT102812LOW INCOME WZ  - ID-UT 2007OTHER"},1823930,"DSR COSTS NOT AMORT",102812,"LOW INCOME WZ  - ID-UT 2007","OTHER",101.28661,{"$f":"IF(OR(tblREGASSJune19[[#This Row],[Alloc]]=\"IDU\",tblREGASSJune19[[#This Row],[Alloc]]=\"OR\",tblREGASSJune19[[#This Row],[Alloc]]=\"UT\",tblREGASSJune19[[#This Row],[Alloc]]=\"WYU\",tblREGASSJune19[[#This Row],[Alloc]]=\"WYP\",tblREGASSJune19[[#This Row],[Alloc]]=\"CA\",tblREGASSJune19[[#This Row],[Alloc]]=\"WA\"),\"SITUS\",tblREGASSJune19[[#This Row],[Alloc]])","v":"OTHER"},{"$f":"INDEX(tblREGASSLookup[FUNC],MATCH(tblREGASSJune19[[#This Row],[Concat]],tblREGASSLookup[Concat],0))","v":"CUST"},{"$f":"IF(tblREGASSJune19[[#This Row],[Total ($000)]]=0,\"NO\",IF(ISNA(tblREGASSJune19[[#This Row],[FUNC]]),\"YES\",IF(_xlfn.ISFORMULA(tblREGASSJune19[[#This Row],[FUNC]]),\"NO\",\"YES\")))","v":"NO"}]
[{"$f":"CONCATENATE(tblREGASSJune19[[#This Row],[Primary Account]],tblREGASSJune19[[#This Row],[Primary Name]],tblREGASSJune19[[#This Row],[Secondary Acct]],tblREGASSJune19[[#This Row],[Secondary  Name]],tblREGASSJune19[[#This Row],[Alloc4FUNC]])","v":"1823930DSR COSTS NOT AMORT102813NEEA - IDAHO - UTAH 2007OTHER"},1823930,"DSR COSTS NOT AMORT",102813,"NEEA - IDAHO - UTAH 2007","OTHER",360.53384999999997,{"$f":"IF(OR(tblREGASSJune19[[#This Row],[Alloc]]=\"IDU\",tblREGASSJune19[[#This Row],[Alloc]]=\"OR\",tblREGASSJune19[[#This Row],[Alloc]]=\"UT\",tblREGASSJune19[[#This Row],[Alloc]]=\"WYU\",tblREGASSJune19[[#This Row],[Alloc]]=\"WYP\",tblREGASSJune19[[#This Row],[Alloc]]=\"CA\",tblREGASSJune19[[#This Row],[Alloc]]=\"WA\"),\"SITUS\",tblREGASSJune19[[#This Row],[Alloc]])","v":"OTHER"},{"$f":"INDEX(tblREGASSLookup[FUNC],MATCH(tblREGASSJune19[[#This Row],[Concat]],tblREGASSLookup[Concat],0))","v":"CUST"},{"$f":"IF(tblREGASSJune19[[#This Row],[Total ($000)]]=0,\"NO\",IF(ISNA(tblREGASSJune19[[#This Row],[FUNC]]),\"YES\",IF(_xlfn.ISFORMULA(tblREGASSJune19[[#This Row],[FUNC]]),\"NO\",\"YES\")))","v":"NO"}]
[{"$f":"CONCATENATE(tblREGASSJune19[[#This Row],[Primary Account]],tblREGASSJune19[[#This Row],[Primary Name]],tblREGASSJune19[[#This Row],[Secondary Acct]],tblREGASSJune19[[#This Row],[Secondary  Name]],tblREGASSJune19[[#This Row],[Alloc4FUNC]])","v":"1823930DSR COSTS NOT AMORT102814REFRIGERATOR RECYCLING PGM - ID-UT 2007OTHER"},1823930,"DSR COSTS NOT AMORT",102814,"REFRIGERATOR RECYCLING PGM - ID-UT 2007","OTHER",123.29439000000001,{"$f":"IF(OR(tblREGASSJune19[[#This Row],[Alloc]]=\"IDU\",tblREGASSJune19[[#This Row],[Alloc]]=\"OR\",tblREGASSJune19[[#This Row],[Alloc]]=\"UT\",tblREGASSJune19[[#This Row],[Alloc]]=\"WYU\",tblREGASSJune19[[#This Row],[Alloc]]=\"WYP\",tblREGASSJune19[[#This Row],[Alloc]]=\"CA\",tblREGASSJune19[[#This Row],[Alloc]]=\"WA\"),\"SITUS\",tblREGASSJune19[[#This Row],[Alloc]])","v":"OTHER"},{"$f":"INDEX(tblREGASSLookup[FUNC],MATCH(tblREGASSJune19[[#This Row],[Concat]],tblREGASSLookup[Concat],0))","v":"CUST"},{"$f":"IF(tblREGASSJune19[[#This Row],[Total ($000)]]=0,\"NO\",IF(ISNA(tblREGASSJune19[[#This Row],[FUNC]]),\"YES\",IF(_xlfn.ISFORMULA(tblREGASSJune19[[#This Row],[FUNC]]),\"NO\",\"YES\")))","v":"NO"}]
[{"$f":"CONCATENATE(tblREGASSJune19[[#This Row],[Primary Account]],tblREGASSJune19[[#This Row],[Primary Name]],tblREGASSJune19[[#This Row],[Secondary Acct]],tblREGASSJune19[[#This Row],[Secondary  Name]],tblREGASSJune19[[#This Row],[Alloc4FUNC]])","v":"1823930DSR COSTS NOT AMORT102815COMMERCIAL FINANSWER EXPR - ID-UT 2007OTHER"},1823930,"DSR COSTS NOT AMORT",102815,"COMMERCIAL FINANSWER EXPR - ID-UT 2007","OTHER",61.336190000000002,{"$f":"IF(OR(tblREGASSJune19[[#This Row],[Alloc]]=\"IDU\",tblREGASSJune19[[#This Row],[Alloc]]=\"OR\",tblREGASSJune19[[#This Row],[Alloc]]=\"UT\",tblREGASSJune19[[#This Row],[Alloc]]=\"WYU\",tblREGASSJune19[[#This Row],[Alloc]]=\"WYP\",tblREGASSJune19[[#This Row],[Alloc]]=\"CA\",tblREGASSJune19[[#This Row],[Alloc]]=\"WA\"),\"SITUS\",tblREGASSJune19[[#This Row],[Alloc]])","v":"OTHER"},{"$f":"INDEX(tblREGASSLookup[FUNC],MATCH(tblREGASSJune19[[#This Row],[Concat]],tblREGASSLookup[Concat],0))","v":"CUST"},{"$f":"IF(tblREGASSJune19[[#This Row],[Total ($000)]]=0,\"NO\",IF(ISNA(tblREGASSJune19[[#This Row],[FUNC]]),\"YES\",IF(_xlfn.ISFORMULA(tblREGASSJune19[[#This Row],[FUNC]]),\"NO\",\"YES\")))","v":"NO"}]
[{"$f":"CONCATENATE(tblREGASSJune19[[#This Row],[Primary Account]],tblREGASSJune19[[#This Row],[Primary Name]],tblREGASSJune19[[#This Row],[Secondary Acct]],tblREGASSJune19[[#This Row],[Secondary  Name]],tblREGASSJune19[[#This Row],[Alloc4FUNC]])","v":"1823930DSR COSTS NOT AMORT102816INDUSTRIAL FINANSWER EXPR - ID-UT 2007OTHER"},1823930,"DSR COSTS NOT AMORT",102816,"INDUSTRIAL FINANSWER EXPR - ID-UT 2007","OTHER",120.21977,{"$f":"IF(OR(tblREGASSJune19[[#This Row],[Alloc]]=\"IDU\",tblREGASSJune19[[#This Row],[Alloc]]=\"OR\",tblREGASSJune19[[#This Row],[Alloc]]=\"UT\",tblREGASSJune19[[#This Row],[Alloc]]=\"WYU\",tblREGASSJune19[[#This Row],[Alloc]]=\"WYP\",tblREGASSJune19[[#This Row],[Alloc]]=\"CA\",tblREGASSJune19[[#This Row],[Alloc]]=\"WA\"),\"SITUS\",tblREGASSJune19[[#This Row],[Alloc]])","v":"OTHER"},{"$f":"INDEX(tblREGASSLookup[FUNC],MATCH(tblREGASSJune19[[#This Row],[Concat]],tblREGASSLookup[Concat],0))","v":"CUST"},{"$f":"IF(tblREGASSJune19[[#This Row],[Total ($000)]]=0,\"NO\",IF(ISNA(tblREGASSJune19[[#This Row],[FUNC]]),\"YES\",IF(_xlfn.ISFORMULA(tblREGASSJune19[[#This Row],[FUNC]]),\"NO\",\"YES\")))","v":"NO"}]
[{"$f":"CONCATENATE(tblREGASSJune19[[#This Row],[Primary Account]],tblREGASSJune19[[#This Row],[Primary Name]],tblREGASSJune19[[#This Row],[Secondary Acct]],tblREGASSJune19[[#This Row],[Secondary  Name]],tblREGASSJune19[[#This Row],[Alloc4FUNC]])","v":"1823930DSR COSTS NOT AMORT102817IRRIGATION EFFICIENCY PRGRM - ID-UT 2007OTHER"},1823930,"DSR COSTS NOT AMORT",102817,"IRRIGATION EFFICIENCY PRGRM - ID-UT 2007","OTHER",274.98216000000002,{"$f":"IF(OR(tblREGASSJune19[[#This Row],[Alloc]]=\"IDU\",tblREGASSJune19[[#This Row],[Alloc]]=\"OR\",tblREGASSJune19[[#This Row],[Alloc]]=\"UT\",tblREGASSJune19[[#This Row],[Alloc]]=\"WYU\",tblREGASSJune19[[#This Row],[Alloc]]=\"WYP\",tblREGASSJune19[[#This Row],[Alloc]]=\"CA\",tblREGASSJune19[[#This Row],[Alloc]]=\"WA\"),\"SITUS\",tblREGASSJune19[[#This Row],[Alloc]])","v":"OTHER"},{"$f":"INDEX(tblREGASSLookup[FUNC],MATCH(tblREGASSJune19[[#This Row],[Concat]],tblREGASSLookup[Concat],0))","v":"CUST"},{"$f":"IF(tblREGASSJune19[[#This Row],[Total ($000)]]=0,\"NO\",IF(ISNA(tblREGASSJune19[[#This Row],[FUNC]]),\"YES\",IF(_xlfn.ISFORMULA(tblREGASSJune19[[#This Row],[FUNC]]),\"NO\",\"YES\")))","v":"NO"}]
[{"$f":"CONCATENATE(tblREGASSJune19[[#This Row],[Primary Account]],tblREGASSJune19[[#This Row],[Primary Name]],tblREGASSJune19[[#This Row],[Secondary Acct]],tblREGASSJune19[[#This Row],[Secondary  Name]],tblREGASSJune19[[#This Row],[Alloc4FUNC]])","v":"1823930DSR COSTS NOT AMORT102818HOME ENERGY EFFICIENCY INCENTIVE PROG  -OTHER"},1823930,"DSR COSTS NOT AMORT",102818,"HOME ENERGY EFFICIENCY INCENTIVE PROG  -","OTHER",229.13469000000001,{"$f":"IF(OR(tblREGASSJune19[[#This Row],[Alloc]]=\"IDU\",tblREGASSJune19[[#This Row],[Alloc]]=\"OR\",tblREGASSJune19[[#This Row],[Alloc]]=\"UT\",tblREGASSJune19[[#This Row],[Alloc]]=\"WYU\",tblREGASSJune19[[#This Row],[Alloc]]=\"WYP\",tblREGASSJune19[[#This Row],[Alloc]]=\"CA\",tblREGASSJune19[[#This Row],[Alloc]]=\"WA\"),\"SITUS\",tblREGASSJune19[[#This Row],[Alloc]])","v":"OTHER"},{"$f":"INDEX(tblREGASSLookup[FUNC],MATCH(tblREGASSJune19[[#This Row],[Concat]],tblREGASSLookup[Concat],0))","v":"CUST"},{"$f":"IF(tblREGASSJune19[[#This Row],[Total ($000)]]=0,\"NO\",IF(ISNA(tblREGASSJune19[[#This Row],[FUNC]]),\"YES\",IF(_xlfn.ISFORMULA(tblREGASSJune19[[#This Row],[FUNC]]),\"NO\",\"YES\")))","v":"NO"}]
[{"$f":"CONCATENATE(tblREGASSJune19[[#This Row],[Primary Account]],tblREGASSJune19[[#This Row],[Primary Name]],tblREGASSJune19[[#This Row],[Secondary Acct]],tblREGASSJune19[[#This Row],[Secondary  Name]],tblREGASSJune19[[#This Row],[Alloc4FUNC]])","v":"1823930DSR COSTS NOT AMORT102896ENERGY FINANSWER - ID/UT 2008OTHER"},1823930,"DSR COSTS NOT AMORT",102896,"ENERGY FINANSWER - ID/UT 2008","OTHER",19.45187,{"$f":"IF(OR(tblREGASSJune19[[#This Row],[Alloc]]=\"IDU\",tblREGASSJune19[[#This Row],[Alloc]]=\"OR\",tblREGASSJune19[[#This Row],[Alloc]]=\"UT\",tblREGASSJune19[[#This Row],[Alloc]]=\"WYU\",tblREGASSJune19[[#This Row],[Alloc]]=\"WYP\",tblREGASSJune19[[#This Row],[Alloc]]=\"CA\",tblREGASSJune19[[#This Row],[Alloc]]=\"WA\"),\"SITUS\",tblREGASSJune19[[#This Row],[Alloc]])","v":"OTHER"},{"$f":"INDEX(tblREGASSLookup[FUNC],MATCH(tblREGASSJune19[[#This Row],[Concat]],tblREGASSLookup[Concat],0))","v":"CUST"},{"$f":"IF(tblREGASSJune19[[#This Row],[Total ($000)]]=0,\"NO\",IF(ISNA(tblREGASSJune19[[#This Row],[FUNC]]),\"YES\",IF(_xlfn.ISFORMULA(tblREGASSJune19[[#This Row],[FUNC]]),\"NO\",\"YES\")))","v":"NO"}]
[{"$f":"CONCATENATE(tblREGASSJune19[[#This Row],[Primary Account]],tblREGASSJune19[[#This Row],[Primary Name]],tblREGASSJune19[[#This Row],[Secondary Acct]],tblREGASSJune19[[#This Row],[Secondary  Name]],tblREGASSJune19[[#This Row],[Alloc4FUNC]])","v":"1823930DSR COSTS NOT AMORT102897INDUSTRIAL FINANSWER - ID-UT 2008OTHER"},1823930,"DSR COSTS NOT AMORT",102897,"INDUSTRIAL FINANSWER - ID-UT 2008","OTHER",101.73987,{"$f":"IF(OR(tblREGASSJune19[[#This Row],[Alloc]]=\"IDU\",tblREGASSJune19[[#This Row],[Alloc]]=\"OR\",tblREGASSJune19[[#This Row],[Alloc]]=\"UT\",tblREGASSJune19[[#This Row],[Alloc]]=\"WYU\",tblREGASSJune19[[#This Row],[Alloc]]=\"WYP\",tblREGASSJune19[[#This Row],[Alloc]]=\"CA\",tblREGASSJune19[[#This Row],[Alloc]]=\"WA\"),\"SITUS\",tblREGASSJune19[[#This Row],[Alloc]])","v":"OTHER"},{"$f":"INDEX(tblREGASSLookup[FUNC],MATCH(tblREGASSJune19[[#This Row],[Concat]],tblREGASSLookup[Concat],0))","v":"CUST"},{"$f":"IF(tblREGASSJune19[[#This Row],[Total ($000)]]=0,\"NO\",IF(ISNA(tblREGASSJune19[[#This Row],[FUNC]]),\"YES\",IF(_xlfn.ISFORMULA(tblREGASSJune19[[#This Row],[FUNC]]),\"NO\",\"YES\")))","v":"NO"}]
[{"$f":"CONCATENATE(tblREGASSJune19[[#This Row],[Primary Account]],tblREGASSJune19[[#This Row],[Primary Name]],tblREGASSJune19[[#This Row],[Secondary Acct]],tblREGASSJune19[[#This Row],[Secondary  Name]],tblREGASSJune19[[#This Row],[Alloc4FUNC]])","v":"1823930DSR COSTS NOT AMORT102898IRRIGATION INTERRUPTIBLE - IDAHO - 2008OTHER"},1823930,"DSR COSTS NOT AMORT",102898,"IRRIGATION INTERRUPTIBLE - IDAHO - 2008","OTHER",3126.6369,{"$f":"IF(OR(tblREGASSJune19[[#This Row],[Alloc]]=\"IDU\",tblREGASSJune19[[#This Row],[Alloc]]=\"OR\",tblREGASSJune19[[#This Row],[Alloc]]=\"UT\",tblREGASSJune19[[#This Row],[Alloc]]=\"WYU\",tblREGASSJune19[[#This Row],[Alloc]]=\"WYP\",tblREGASSJune19[[#This Row],[Alloc]]=\"CA\",tblREGASSJune19[[#This Row],[Alloc]]=\"WA\"),\"SITUS\",tblREGASSJune19[[#This Row],[Alloc]])","v":"OTHER"},{"$f":"INDEX(tblREGASSLookup[FUNC],MATCH(tblREGASSJune19[[#This Row],[Concat]],tblREGASSLookup[Concat],0))","v":"CUST"},{"$f":"IF(tblREGASSJune19[[#This Row],[Total ($000)]]=0,\"NO\",IF(ISNA(tblREGASSJune19[[#This Row],[FUNC]]),\"YES\",IF(_xlfn.ISFORMULA(tblREGASSJune19[[#This Row],[FUNC]]),\"NO\",\"YES\")))","v":"NO"}]
[{"$f":"CONCATENATE(tblREGASSJune19[[#This Row],[Primary Account]],tblREGASSJune19[[#This Row],[Primary Name]],tblREGASSJune19[[#This Row],[Secondary Acct]],tblREGASSJune19[[#This Row],[Secondary  Name]],tblREGASSJune19[[#This Row],[Alloc4FUNC]])","v":"1823930DSR COSTS NOT AMORT102899LOW INCOME WEATHERIZATION - IDAHO 2008OTHER"},1823930,"DSR COSTS NOT AMORT",102899,"LOW INCOME WEATHERIZATION - IDAHO 2008","OTHER",164.57782,{"$f":"IF(OR(tblREGASSJune19[[#This Row],[Alloc]]=\"IDU\",tblREGASSJune19[[#This Row],[Alloc]]=\"OR\",tblREGASSJune19[[#This Row],[Alloc]]=\"UT\",tblREGASSJune19[[#This Row],[Alloc]]=\"WYU\",tblREGASSJune19[[#This Row],[Alloc]]=\"WYP\",tblREGASSJune19[[#This Row],[Alloc]]=\"CA\",tblREGASSJune19[[#This Row],[Alloc]]=\"WA\"),\"SITUS\",tblREGASSJune19[[#This Row],[Alloc]])","v":"OTHER"},{"$f":"INDEX(tblREGASSLookup[FUNC],MATCH(tblREGASSJune19[[#This Row],[Concat]],tblREGASSLookup[Concat],0))","v":"CUST"},{"$f":"IF(tblREGASSJune19[[#This Row],[Total ($000)]]=0,\"NO\",IF(ISNA(tblREGASSJune19[[#This Row],[FUNC]]),\"YES\",IF(_xlfn.ISFORMULA(tblREGASSJune19[[#This Row],[FUNC]]),\"NO\",\"YES\")))","v":"NO"}]
[{"$f":"CONCATENATE(tblREGASSJune19[[#This Row],[Primary Account]],tblREGASSJune19[[#This Row],[Primary Name]],tblREGASSJune19[[#This Row],[Secondary Acct]],tblREGASSJune19[[#This Row],[Secondary  Name]],tblREGASSJune19[[#This Row],[Alloc4FUNC]])","v":"1823930DSR COSTS NOT AMORT102900NEEA - IDAHO - 2008OTHER"},1823930,"DSR COSTS NOT AMORT",102900,"NEEA - IDAHO - 2008","OTHER",317.33852000000002,{"$f":"IF(OR(tblREGASSJune19[[#This Row],[Alloc]]=\"IDU\",tblREGASSJune19[[#This Row],[Alloc]]=\"OR\",tblREGASSJune19[[#This Row],[Alloc]]=\"UT\",tblREGASSJune19[[#This Row],[Alloc]]=\"WYU\",tblREGASSJune19[[#This Row],[Alloc]]=\"WYP\",tblREGASSJune19[[#This Row],[Alloc]]=\"CA\",tblREGASSJune19[[#This Row],[Alloc]]=\"WA\"),\"SITUS\",tblREGASSJune19[[#This Row],[Alloc]])","v":"OTHER"},{"$f":"INDEX(tblREGASSLookup[FUNC],MATCH(tblREGASSJune19[[#This Row],[Concat]],tblREGASSLookup[Concat],0))","v":"CUST"},{"$f":"IF(tblREGASSJune19[[#This Row],[Total ($000)]]=0,\"NO\",IF(ISNA(tblREGASSJune19[[#This Row],[FUNC]]),\"YES\",IF(_xlfn.ISFORMULA(tblREGASSJune19[[#This Row],[FUNC]]),\"NO\",\"YES\")))","v":"NO"}]
[{"$f":"CONCATENATE(tblREGASSJune19[[#This Row],[Primary Account]],tblREGASSJune19[[#This Row],[Primary Name]],tblREGASSJune19[[#This Row],[Secondary Acct]],tblREGASSJune19[[#This Row],[Secondary  Name]],tblREGASSJune19[[#This Row],[Alloc4FUNC]])","v":"1823930DSR COSTS NOT AMORT102901REFRIGERATOR RECYCLING PRGM - IDAHO 2008OTHER"},1823930,"DSR COSTS NOT AMORT",102901,"REFRIGERATOR RECYCLING PRGM - IDAHO 2008","OTHER",113.29595,{"$f":"IF(OR(tblREGASSJune19[[#This Row],[Alloc]]=\"IDU\",tblREGASSJune19[[#This Row],[Alloc]]=\"OR\",tblREGASSJune19[[#This Row],[Alloc]]=\"UT\",tblREGASSJune19[[#This Row],[Alloc]]=\"WYU\",tblREGASSJune19[[#This Row],[Alloc]]=\"WYP\",tblREGASSJune19[[#This Row],[Alloc]]=\"CA\",tblREGASSJune19[[#This Row],[Alloc]]=\"WA\"),\"SITUS\",tblREGASSJune19[[#This Row],[Alloc]])","v":"OTHER"},{"$f":"INDEX(tblREGASSLookup[FUNC],MATCH(tblREGASSJune19[[#This Row],[Concat]],tblREGASSLookup[Concat],0))","v":"CUST"},{"$f":"IF(tblREGASSJune19[[#This Row],[Total ($000)]]=0,\"NO\",IF(ISNA(tblREGASSJune19[[#This Row],[FUNC]]),\"YES\",IF(_xlfn.ISFORMULA(tblREGASSJune19[[#This Row],[FUNC]]),\"NO\",\"YES\")))","v":"NO"}]
[{"$f":"CONCATENATE(tblREGASSJune19[[#This Row],[Primary Account]],tblREGASSJune19[[#This Row],[Primary Name]],tblREGASSJune19[[#This Row],[Secondary Acct]],tblREGASSJune19[[#This Row],[Secondary  Name]],tblREGASSJune19[[#This Row],[Alloc4FUNC]])","v":"1823930DSR COSTS NOT AMORT102902COMMERCIAL FINANSWER EXPRESS - IDAHO 200OTHER"},1823930,"DSR COSTS NOT AMORT",102902,"COMMERCIAL FINANSWER EXPRESS - IDAHO 200","OTHER",108.38252,{"$f":"IF(OR(tblREGASSJune19[[#This Row],[Alloc]]=\"IDU\",tblREGASSJune19[[#This Row],[Alloc]]=\"OR\",tblREGASSJune19[[#This Row],[Alloc]]=\"UT\",tblREGASSJune19[[#This Row],[Alloc]]=\"WYU\",tblREGASSJune19[[#This Row],[Alloc]]=\"WYP\",tblREGASSJune19[[#This Row],[Alloc]]=\"CA\",tblREGASSJune19[[#This Row],[Alloc]]=\"WA\"),\"SITUS\",tblREGASSJune19[[#This Row],[Alloc]])","v":"OTHER"},{"$f":"INDEX(tblREGASSLookup[FUNC],MATCH(tblREGASSJune19[[#This Row],[Concat]],tblREGASSLookup[Concat],0))","v":"CUST"},{"$f":"IF(tblREGASSJune19[[#This Row],[Total ($000)]]=0,\"NO\",IF(ISNA(tblREGASSJune19[[#This Row],[FUNC]]),\"YES\",IF(_xlfn.ISFORMULA(tblREGASSJune19[[#This Row],[FUNC]]),\"NO\",\"YES\")))","v":"NO"}]
[{"$f":"CONCATENATE(tblREGASSJune19[[#This Row],[Primary Account]],tblREGASSJune19[[#This Row],[Primary Name]],tblREGASSJune19[[#This Row],[Secondary Acct]],tblREGASSJune19[[#This Row],[Secondary  Name]],tblREGASSJune19[[#This Row],[Alloc4FUNC]])","v":"1823930DSR COSTS NOT AMORT102903INDUSTRIAL FINANSWER - IDAHO - 2008OTHER"},1823930,"DSR COSTS NOT AMORT",102903,"INDUSTRIAL FINANSWER - IDAHO - 2008","OTHER",58.373260000000002,{"$f":"IF(OR(tblREGASSJune19[[#This Row],[Alloc]]=\"IDU\",tblREGASSJune19[[#This Row],[Alloc]]=\"OR\",tblREGASSJune19[[#This Row],[Alloc]]=\"UT\",tblREGASSJune19[[#This Row],[Alloc]]=\"WYU\",tblREGASSJune19[[#This Row],[Alloc]]=\"WYP\",tblREGASSJune19[[#This Row],[Alloc]]=\"CA\",tblREGASSJune19[[#This Row],[Alloc]]=\"WA\"),\"SITUS\",tblREGASSJune19[[#This Row],[Alloc]])","v":"OTHER"},{"$f":"INDEX(tblREGASSLookup[FUNC],MATCH(tblREGASSJune19[[#This Row],[Concat]],tblREGASSLookup[Concat],0))","v":"CUST"},{"$f":"IF(tblREGASSJune19[[#This Row],[Total ($000)]]=0,\"NO\",IF(ISNA(tblREGASSJune19[[#This Row],[FUNC]]),\"YES\",IF(_xlfn.ISFORMULA(tblREGASSJune19[[#This Row],[FUNC]]),\"NO\",\"YES\")))","v":"NO"}]
[{"$f":"CONCATENATE(tblREGASSJune19[[#This Row],[Primary Account]],tblREGASSJune19[[#This Row],[Primary Name]],tblREGASSJune19[[#This Row],[Secondary Acct]],tblREGASSJune19[[#This Row],[Secondary  Name]],tblREGASSJune19[[#This Row],[Alloc4FUNC]])","v":"1823930DSR COSTS NOT AMORT102904IRRIGATION EFFICIENCY PRGM - IDAHO - 200OTHER"},1823930,"DSR COSTS NOT AMORT",102904,"IRRIGATION EFFICIENCY PRGM - IDAHO - 200","OTHER",268.05756000000002,{"$f":"IF(OR(tblREGASSJune19[[#This Row],[Alloc]]=\"IDU\",tblREGASSJune19[[#This Row],[Alloc]]=\"OR\",tblREGASSJune19[[#This Row],[Alloc]]=\"UT\",tblREGASSJune19[[#This Row],[Alloc]]=\"WYU\",tblREGASSJune19[[#This Row],[Alloc]]=\"WYP\",tblREGASSJune19[[#This Row],[Alloc]]=\"CA\",tblREGASSJune19[[#This Row],[Alloc]]=\"WA\"),\"SITUS\",tblREGASSJune19[[#This Row],[Alloc]])","v":"OTHER"},{"$f":"INDEX(tblREGASSLookup[FUNC],MATCH(tblREGASSJune19[[#This Row],[Concat]],tblREGASSLookup[Concat],0))","v":"CUST"},{"$f":"IF(tblREGASSJune19[[#This Row],[Total ($000)]]=0,\"NO\",IF(ISNA(tblREGASSJune19[[#This Row],[FUNC]]),\"YES\",IF(_xlfn.ISFORMULA(tblREGASSJune19[[#This Row],[FUNC]]),\"NO\",\"YES\")))","v":"NO"}]
[{"$f":"CONCATENATE(tblREGASSJune19[[#This Row],[Primary Account]],tblREGASSJune19[[#This Row],[Primary Name]],tblREGASSJune19[[#This Row],[Secondary Acct]],tblREGASSJune19[[#This Row],[Secondary  Name]],tblREGASSJune19[[#This Row],[Alloc4FUNC]])","v":"1823930DSR COSTS NOT AMORT102905HOME ENERGY EFF INCENTIVE PROGRAM - IDAHOTHER"},1823930,"DSR COSTS NOT AMORT",102905,"HOME ENERGY EFF INCENTIVE PROGRAM - IDAH","OTHER",490.10075000000001,{"$f":"IF(OR(tblREGASSJune19[[#This Row],[Alloc]]=\"IDU\",tblREGASSJune19[[#This Row],[Alloc]]=\"OR\",tblREGASSJune19[[#This Row],[Alloc]]=\"UT\",tblREGASSJune19[[#This Row],[Alloc]]=\"WYU\",tblREGASSJune19[[#This Row],[Alloc]]=\"WYP\",tblREGASSJune19[[#This Row],[Alloc]]=\"CA\",tblREGASSJune19[[#This Row],[Alloc]]=\"WA\"),\"SITUS\",tblREGASSJune19[[#This Row],[Alloc]])","v":"OTHER"},{"$f":"INDEX(tblREGASSLookup[FUNC],MATCH(tblREGASSJune19[[#This Row],[Concat]],tblREGASSLookup[Concat],0))","v":"CUST"},{"$f":"IF(tblREGASSJune19[[#This Row],[Total ($000)]]=0,\"NO\",IF(ISNA(tblREGASSJune19[[#This Row],[FUNC]]),\"YES\",IF(_xlfn.ISFORMULA(tblREGASSJune19[[#This Row],[FUNC]]),\"NO\",\"YES\")))","v":"NO"}]
[{"$f":"CONCATENATE(tblREGASSJune19[[#This Row],[Primary Account]],tblREGASSJune19[[#This Row],[Primary Name]],tblREGASSJune19[[#This Row],[Secondary Acct]],tblREGASSJune19[[#This Row],[Secondary  Name]],tblREGASSJune19[[#This Row],[Alloc4FUNC]])","v":"1823930DSR COSTS NOT AMORT102957CATEGORY 1 - WYOMING - 2008OTHER"},1823930,"DSR COSTS NOT AMORT",102957,"CATEGORY 1 - WYOMING - 2008","OTHER",17.336749999999999,{"$f":"IF(OR(tblREGASSJune19[[#This Row],[Alloc]]=\"IDU\",tblREGASSJune19[[#This Row],[Alloc]]=\"OR\",tblREGASSJune19[[#This Row],[Alloc]]=\"UT\",tblREGASSJune19[[#This Row],[Alloc]]=\"WYU\",tblREGASSJune19[[#This Row],[Alloc]]=\"WYP\",tblREGASSJune19[[#This Row],[Alloc]]=\"CA\",tblREGASSJune19[[#This Row],[Alloc]]=\"WA\"),\"SITUS\",tblREGASSJune19[[#This Row],[Alloc]])","v":"OTHER"},{"$f":"INDEX(tblREGASSLookup[FUNC],MATCH(tblREGASSJune19[[#This Row],[Concat]],tblREGASSLookup[Concat],0))","v":"CUST"},{"$f":"IF(tblREGASSJune19[[#This Row],[Total ($000)]]=0,\"NO\",IF(ISNA(tblREGASSJune19[[#This Row],[FUNC]]),\"YES\",IF(_xlfn.ISFORMULA(tblREGASSJune19[[#This Row],[FUNC]]),\"NO\",\"YES\")))","v":"NO"}]
[{"$f":"CONCATENATE(tblREGASSJune19[[#This Row],[Primary Account]],tblREGASSJune19[[#This Row],[Primary Name]],tblREGASSJune19[[#This Row],[Secondary Acct]],tblREGASSJune19[[#This Row],[Secondary  Name]],tblREGASSJune19[[#This Row],[Alloc4FUNC]])","v":"1823930DSR COSTS NOT AMORT102958CATEGORY 2 - WYOMING - 2008OTHER"},1823930,"DSR COSTS NOT AMORT",102958,"CATEGORY 2 - WYOMING - 2008","OTHER",9.3955800000000007,{"$f":"IF(OR(tblREGASSJune19[[#This Row],[Alloc]]=\"IDU\",tblREGASSJune19[[#This Row],[Alloc]]=\"OR\",tblREGASSJune19[[#This Row],[Alloc]]=\"UT\",tblREGASSJune19[[#This Row],[Alloc]]=\"WYU\",tblREGASSJune19[[#This Row],[Alloc]]=\"WYP\",tblREGASSJune19[[#This Row],[Alloc]]=\"CA\",tblREGASSJune19[[#This Row],[Alloc]]=\"WA\"),\"SITUS\",tblREGASSJune19[[#This Row],[Alloc]])","v":"OTHER"},{"$f":"INDEX(tblREGASSLookup[FUNC],MATCH(tblREGASSJune19[[#This Row],[Concat]],tblREGASSLookup[Concat],0))","v":"CUST"},{"$f":"IF(tblREGASSJune19[[#This Row],[Total ($000)]]=0,\"NO\",IF(ISNA(tblREGASSJune19[[#This Row],[FUNC]]),\"YES\",IF(_xlfn.ISFORMULA(tblREGASSJune19[[#This Row],[FUNC]]),\"NO\",\"YES\")))","v":"NO"}]
[{"$f":"CONCATENATE(tblREGASSJune19[[#This Row],[Primary Account]],tblREGASSJune19[[#This Row],[Primary Name]],tblREGASSJune19[[#This Row],[Secondary Acct]],tblREGASSJune19[[#This Row],[Secondary  Name]],tblREGASSJune19[[#This Row],[Alloc4FUNC]])","v":"1823930DSR COSTS NOT AMORT102959CATEGORY 3 - WYOMING - 2008OTHER"},1823930,"DSR COSTS NOT AMORT",102959,"CATEGORY 3 - WYOMING - 2008","OTHER",32.767299999999999,{"$f":"IF(OR(tblREGASSJune19[[#This Row],[Alloc]]=\"IDU\",tblREGASSJune19[[#This Row],[Alloc]]=\"OR\",tblREGASSJune19[[#This Row],[Alloc]]=\"UT\",tblREGASSJune19[[#This Row],[Alloc]]=\"WYU\",tblREGASSJune19[[#This Row],[Alloc]]=\"WYP\",tblREGASSJune19[[#This Row],[Alloc]]=\"CA\",tblREGASSJune19[[#This Row],[Alloc]]=\"WA\"),\"SITUS\",tblREGASSJune19[[#This Row],[Alloc]])","v":"OTHER"},{"$f":"INDEX(tblREGASSLookup[FUNC],MATCH(tblREGASSJune19[[#This Row],[Concat]],tblREGASSLookup[Concat],0))","v":"CUST"},{"$f":"IF(tblREGASSJune19[[#This Row],[Total ($000)]]=0,\"NO\",IF(ISNA(tblREGASSJune19[[#This Row],[FUNC]]),\"YES\",IF(_xlfn.ISFORMULA(tblREGASSJune19[[#This Row],[FUNC]]),\"NO\",\"YES\")))","v":"NO"}]
[{"$f":"CONCATENATE(tblREGASSJune19[[#This Row],[Primary Account]],tblREGASSJune19[[#This Row],[Primary Name]],tblREGASSJune19[[#This Row],[Secondary Acct]],tblREGASSJune19[[#This Row],[Secondary  Name]],tblREGASSJune19[[#This Row],[Alloc4FUNC]])","v":"1823930DSR COSTS NOT AMORT102966ENERGY FINANSWER - ID/UT 2009OTHER"},1823930,"DSR COSTS NOT AMORT",102966,"ENERGY FINANSWER - ID/UT 2009","OTHER",49.790480000000002,{"$f":"IF(OR(tblREGASSJune19[[#This Row],[Alloc]]=\"IDU\",tblREGASSJune19[[#This Row],[Alloc]]=\"OR\",tblREGASSJune19[[#This Row],[Alloc]]=\"UT\",tblREGASSJune19[[#This Row],[Alloc]]=\"WYU\",tblREGASSJune19[[#This Row],[Alloc]]=\"WYP\",tblREGASSJune19[[#This Row],[Alloc]]=\"CA\",tblREGASSJune19[[#This Row],[Alloc]]=\"WA\"),\"SITUS\",tblREGASSJune19[[#This Row],[Alloc]])","v":"OTHER"},{"$f":"INDEX(tblREGASSLookup[FUNC],MATCH(tblREGASSJune19[[#This Row],[Concat]],tblREGASSLookup[Concat],0))","v":"CUST"},{"$f":"IF(tblREGASSJune19[[#This Row],[Total ($000)]]=0,\"NO\",IF(ISNA(tblREGASSJune19[[#This Row],[FUNC]]),\"YES\",IF(_xlfn.ISFORMULA(tblREGASSJune19[[#This Row],[FUNC]]),\"NO\",\"YES\")))","v":"NO"}]
[{"$f":"CONCATENATE(tblREGASSJune19[[#This Row],[Primary Account]],tblREGASSJune19[[#This Row],[Primary Name]],tblREGASSJune19[[#This Row],[Secondary Acct]],tblREGASSJune19[[#This Row],[Secondary  Name]],tblREGASSJune19[[#This Row],[Alloc4FUNC]])","v":"1823930DSR COSTS NOT AMORT102967INDUSTRIAL FINANSWER - ID-UT 2009OTHER"},1823930,"DSR COSTS NOT AMORT",102967,"INDUSTRIAL FINANSWER - ID-UT 2009","OTHER",308.63628,{"$f":"IF(OR(tblREGASSJune19[[#This Row],[Alloc]]=\"IDU\",tblREGASSJune19[[#This Row],[Alloc]]=\"OR\",tblREGASSJune19[[#This Row],[Alloc]]=\"UT\",tblREGASSJune19[[#This Row],[Alloc]]=\"WYU\",tblREGASSJune19[[#This Row],[Alloc]]=\"WYP\",tblREGASSJune19[[#This Row],[Alloc]]=\"CA\",tblREGASSJune19[[#This Row],[Alloc]]=\"WA\"),\"SITUS\",tblREGASSJune19[[#This Row],[Alloc]])","v":"OTHER"},{"$f":"INDEX(tblREGASSLookup[FUNC],MATCH(tblREGASSJune19[[#This Row],[Concat]],tblREGASSLookup[Concat],0))","v":"CUST"},{"$f":"IF(tblREGASSJune19[[#This Row],[Total ($000)]]=0,\"NO\",IF(ISNA(tblREGASSJune19[[#This Row],[FUNC]]),\"YES\",IF(_xlfn.ISFORMULA(tblREGASSJune19[[#This Row],[FUNC]]),\"NO\",\"YES\")))","v":"NO"}]
[{"$f":"CONCATENATE(tblREGASSJune19[[#This Row],[Primary Account]],tblREGASSJune19[[#This Row],[Primary Name]],tblREGASSJune19[[#This Row],[Secondary Acct]],tblREGASSJune19[[#This Row],[Secondary  Name]],tblREGASSJune19[[#This Row],[Alloc4FUNC]])","v":"1823930DSR COSTS NOT AMORT102968IRRIGATION INTERRUPTIBLE ID-UT 2009OTHER"},1823930,"DSR COSTS NOT AMORT",102968,"IRRIGATION INTERRUPTIBLE ID-UT 2009","OTHER",3816.4172600000002,{"$f":"IF(OR(tblREGASSJune19[[#This Row],[Alloc]]=\"IDU\",tblREGASSJune19[[#This Row],[Alloc]]=\"OR\",tblREGASSJune19[[#This Row],[Alloc]]=\"UT\",tblREGASSJune19[[#This Row],[Alloc]]=\"WYU\",tblREGASSJune19[[#This Row],[Alloc]]=\"WYP\",tblREGASSJune19[[#This Row],[Alloc]]=\"CA\",tblREGASSJune19[[#This Row],[Alloc]]=\"WA\"),\"SITUS\",tblREGASSJune19[[#This Row],[Alloc]])","v":"OTHER"},{"$f":"INDEX(tblREGASSLookup[FUNC],MATCH(tblREGASSJune19[[#This Row],[Concat]],tblREGASSLookup[Concat],0))","v":"CUST"},{"$f":"IF(tblREGASSJune19[[#This Row],[Total ($000)]]=0,\"NO\",IF(ISNA(tblREGASSJune19[[#This Row],[FUNC]]),\"YES\",IF(_xlfn.ISFORMULA(tblREGASSJune19[[#This Row],[FUNC]]),\"NO\",\"YES\")))","v":"NO"}]
[{"$f":"CONCATENATE(tblREGASSJune19[[#This Row],[Primary Account]],tblREGASSJune19[[#This Row],[Primary Name]],tblREGASSJune19[[#This Row],[Secondary Acct]],tblREGASSJune19[[#This Row],[Secondary  Name]],tblREGASSJune19[[#This Row],[Alloc4FUNC]])","v":"1823930DSR COSTS NOT AMORT102969LOW INCOME WZ  - ID-UT 2009OTHER"},1823930,"DSR COSTS NOT AMORT",102969,"LOW INCOME WZ  - ID-UT 2009","OTHER",197.81917000000001,{"$f":"IF(OR(tblREGASSJune19[[#This Row],[Alloc]]=\"IDU\",tblREGASSJune19[[#This Row],[Alloc]]=\"OR\",tblREGASSJune19[[#This Row],[Alloc]]=\"UT\",tblREGASSJune19[[#This Row],[Alloc]]=\"WYU\",tblREGASSJune19[[#This Row],[Alloc]]=\"WYP\",tblREGASSJune19[[#This Row],[Alloc]]=\"CA\",tblREGASSJune19[[#This Row],[Alloc]]=\"WA\"),\"SITUS\",tblREGASSJune19[[#This Row],[Alloc]])","v":"OTHER"},{"$f":"INDEX(tblREGASSLookup[FUNC],MATCH(tblREGASSJune19[[#This Row],[Concat]],tblREGASSLookup[Concat],0))","v":"CUST"},{"$f":"IF(tblREGASSJune19[[#This Row],[Total ($000)]]=0,\"NO\",IF(ISNA(tblREGASSJune19[[#This Row],[FUNC]]),\"YES\",IF(_xlfn.ISFORMULA(tblREGASSJune19[[#This Row],[FUNC]]),\"NO\",\"YES\")))","v":"NO"}]
[{"$f":"CONCATENATE(tblREGASSJune19[[#This Row],[Primary Account]],tblREGASSJune19[[#This Row],[Primary Name]],tblREGASSJune19[[#This Row],[Secondary Acct]],tblREGASSJune19[[#This Row],[Secondary  Name]],tblREGASSJune19[[#This Row],[Alloc4FUNC]])","v":"1823930DSR COSTS NOT AMORT102970NEEA - IDAHO - UTAH 2009OTHER"},1823930,"DSR COSTS NOT AMORT",102970,"NEEA - IDAHO - UTAH 2009","OTHER",287.19031000000001,{"$f":"IF(OR(tblREGASSJune19[[#This Row],[Alloc]]=\"IDU\",tblREGASSJune19[[#This Row],[Alloc]]=\"OR\",tblREGASSJune19[[#This Row],[Alloc]]=\"UT\",tblREGASSJune19[[#This Row],[Alloc]]=\"WYU\",tblREGASSJune19[[#This Row],[Alloc]]=\"WYP\",tblREGASSJune19[[#This Row],[Alloc]]=\"CA\",tblREGASSJune19[[#This Row],[Alloc]]=\"WA\"),\"SITUS\",tblREGASSJune19[[#This Row],[Alloc]])","v":"OTHER"},{"$f":"INDEX(tblREGASSLookup[FUNC],MATCH(tblREGASSJune19[[#This Row],[Concat]],tblREGASSLookup[Concat],0))","v":"CUST"},{"$f":"IF(tblREGASSJune19[[#This Row],[Total ($000)]]=0,\"NO\",IF(ISNA(tblREGASSJune19[[#This Row],[FUNC]]),\"YES\",IF(_xlfn.ISFORMULA(tblREGASSJune19[[#This Row],[FUNC]]),\"NO\",\"YES\")))","v":"NO"}]
[{"$f":"CONCATENATE(tblREGASSJune19[[#This Row],[Primary Account]],tblREGASSJune19[[#This Row],[Primary Name]],tblREGASSJune19[[#This Row],[Secondary Acct]],tblREGASSJune19[[#This Row],[Secondary  Name]],tblREGASSJune19[[#This Row],[Alloc4FUNC]])","v":"1823930DSR COSTS NOT AMORT102971REFRIGERATOR RECYCLING PGM - ID-UT 2009OTHER"},1823930,"DSR COSTS NOT AMORT",102971,"REFRIGERATOR RECYCLING PGM - ID-UT 2009","OTHER",108.1255,{"$f":"IF(OR(tblREGASSJune19[[#This Row],[Alloc]]=\"IDU\",tblREGASSJune19[[#This Row],[Alloc]]=\"OR\",tblREGASSJune19[[#This Row],[Alloc]]=\"UT\",tblREGASSJune19[[#This Row],[Alloc]]=\"WYU\",tblREGASSJune19[[#This Row],[Alloc]]=\"WYP\",tblREGASSJune19[[#This Row],[Alloc]]=\"CA\",tblREGASSJune19[[#This Row],[Alloc]]=\"WA\"),\"SITUS\",tblREGASSJune19[[#This Row],[Alloc]])","v":"OTHER"},{"$f":"INDEX(tblREGASSLookup[FUNC],MATCH(tblREGASSJune19[[#This Row],[Concat]],tblREGASSLookup[Concat],0))","v":"CUST"},{"$f":"IF(tblREGASSJune19[[#This Row],[Total ($000)]]=0,\"NO\",IF(ISNA(tblREGASSJune19[[#This Row],[FUNC]]),\"YES\",IF(_xlfn.ISFORMULA(tblREGASSJune19[[#This Row],[FUNC]]),\"NO\",\"YES\")))","v":"NO"}]
[{"$f":"CONCATENATE(tblREGASSJune19[[#This Row],[Primary Account]],tblREGASSJune19[[#This Row],[Primary Name]],tblREGASSJune19[[#This Row],[Secondary Acct]],tblREGASSJune19[[#This Row],[Secondary  Name]],tblREGASSJune19[[#This Row],[Alloc4FUNC]])","v":"1823930DSR COSTS NOT AMORT102972COMMERCIAL FINANSWER EXPR - ID-UT 2009OTHER"},1823930,"DSR COSTS NOT AMORT",102972,"COMMERCIAL FINANSWER EXPR - ID-UT 2009","OTHER",189.9254,{"$f":"IF(OR(tblREGASSJune19[[#This Row],[Alloc]]=\"IDU\",tblREGASSJune19[[#This Row],[Alloc]]=\"OR\",tblREGASSJune19[[#This Row],[Alloc]]=\"UT\",tblREGASSJune19[[#This Row],[Alloc]]=\"WYU\",tblREGASSJune19[[#This Row],[Alloc]]=\"WYP\",tblREGASSJune19[[#This Row],[Alloc]]=\"CA\",tblREGASSJune19[[#This Row],[Alloc]]=\"WA\"),\"SITUS\",tblREGASSJune19[[#This Row],[Alloc]])","v":"OTHER"},{"$f":"INDEX(tblREGASSLookup[FUNC],MATCH(tblREGASSJune19[[#This Row],[Concat]],tblREGASSLookup[Concat],0))","v":"CUST"},{"$f":"IF(tblREGASSJune19[[#This Row],[Total ($000)]]=0,\"NO\",IF(ISNA(tblREGASSJune19[[#This Row],[FUNC]]),\"YES\",IF(_xlfn.ISFORMULA(tblREGASSJune19[[#This Row],[FUNC]]),\"NO\",\"YES\")))","v":"NO"}]
[{"$f":"CONCATENATE(tblREGASSJune19[[#This Row],[Primary Account]],tblREGASSJune19[[#This Row],[Primary Name]],tblREGASSJune19[[#This Row],[Secondary Acct]],tblREGASSJune19[[#This Row],[Secondary  Name]],tblREGASSJune19[[#This Row],[Alloc4FUNC]])","v":"1823930DSR COSTS NOT AMORT102973INDUSTRIAL FINANSWER EXPR - ID-UT 2009OTHER"},1823930,"DSR COSTS NOT AMORT",102973,"INDUSTRIAL FINANSWER EXPR - ID-UT 2009","OTHER",73.97869,{"$f":"IF(OR(tblREGASSJune19[[#This Row],[Alloc]]=\"IDU\",tblREGASSJune19[[#This Row],[Alloc]]=\"OR\",tblREGASSJune19[[#This Row],[Alloc]]=\"UT\",tblREGASSJune19[[#This Row],[Alloc]]=\"WYU\",tblREGASSJune19[[#This Row],[Alloc]]=\"WYP\",tblREGASSJune19[[#This Row],[Alloc]]=\"CA\",tblREGASSJune19[[#This Row],[Alloc]]=\"WA\"),\"SITUS\",tblREGASSJune19[[#This Row],[Alloc]])","v":"OTHER"},{"$f":"INDEX(tblREGASSLookup[FUNC],MATCH(tblREGASSJune19[[#This Row],[Concat]],tblREGASSLookup[Concat],0))","v":"CUST"},{"$f":"IF(tblREGASSJune19[[#This Row],[Total ($000)]]=0,\"NO\",IF(ISNA(tblREGASSJune19[[#This Row],[FUNC]]),\"YES\",IF(_xlfn.ISFORMULA(tblREGASSJune19[[#This Row],[FUNC]]),\"NO\",\"YES\")))","v":"NO"}]
[{"$f":"CONCATENATE(tblREGASSJune19[[#This Row],[Primary Account]],tblREGASSJune19[[#This Row],[Primary Name]],tblREGASSJune19[[#This Row],[Secondary Acct]],tblREGASSJune19[[#This Row],[Secondary  Name]],tblREGASSJune19[[#This Row],[Alloc4FUNC]])","v":"1823930DSR COSTS NOT AMORT102974IRRIGATION EFFICIENCY PRGRM - ID-UT 2009OTHER"},1823930,"DSR COSTS NOT AMORT",102974,"IRRIGATION EFFICIENCY PRGRM - ID-UT 2009","OTHER",807.23829999999998,{"$f":"IF(OR(tblREGASSJune19[[#This Row],[Alloc]]=\"IDU\",tblREGASSJune19[[#This Row],[Alloc]]=\"OR\",tblREGASSJune19[[#This Row],[Alloc]]=\"UT\",tblREGASSJune19[[#This Row],[Alloc]]=\"WYU\",tblREGASSJune19[[#This Row],[Alloc]]=\"WYP\",tblREGASSJune19[[#This Row],[Alloc]]=\"CA\",tblREGASSJune19[[#This Row],[Alloc]]=\"WA\"),\"SITUS\",tblREGASSJune19[[#This Row],[Alloc]])","v":"OTHER"},{"$f":"INDEX(tblREGASSLookup[FUNC],MATCH(tblREGASSJune19[[#This Row],[Concat]],tblREGASSLookup[Concat],0))","v":"CUST"},{"$f":"IF(tblREGASSJune19[[#This Row],[Total ($000)]]=0,\"NO\",IF(ISNA(tblREGASSJune19[[#This Row],[FUNC]]),\"YES\",IF(_xlfn.ISFORMULA(tblREGASSJune19[[#This Row],[FUNC]]),\"NO\",\"YES\")))","v":"NO"}]
[{"$f":"CONCATENATE(tblREGASSJune19[[#This Row],[Primary Account]],tblREGASSJune19[[#This Row],[Primary Name]],tblREGASSJune19[[#This Row],[Secondary Acct]],tblREGASSJune19[[#This Row],[Secondary  Name]],tblREGASSJune19[[#This Row],[Alloc4FUNC]])","v":"1823930DSR COSTS NOT AMORT102975HOME ENERGY EFFICIENCY INCENTIVE PROG  -OTHER"},1823930,"DSR COSTS NOT AMORT",102975,"HOME ENERGY EFFICIENCY INCENTIVE PROG  -","OTHER",593.56381999999996,{"$f":"IF(OR(tblREGASSJune19[[#This Row],[Alloc]]=\"IDU\",tblREGASSJune19[[#This Row],[Alloc]]=\"OR\",tblREGASSJune19[[#This Row],[Alloc]]=\"UT\",tblREGASSJune19[[#This Row],[Alloc]]=\"WYU\",tblREGASSJune19[[#This Row],[Alloc]]=\"WYP\",tblREGASSJune19[[#This Row],[Alloc]]=\"CA\",tblREGASSJune19[[#This Row],[Alloc]]=\"WA\"),\"SITUS\",tblREGASSJune19[[#This Row],[Alloc]])","v":"OTHER"},{"$f":"INDEX(tblREGASSLookup[FUNC],MATCH(tblREGASSJune19[[#This Row],[Concat]],tblREGASSLookup[Concat],0))","v":"CUST"},{"$f":"IF(tblREGASSJune19[[#This Row],[Total ($000)]]=0,\"NO\",IF(ISNA(tblREGASSJune19[[#This Row],[FUNC]]),\"YES\",IF(_xlfn.ISFORMULA(tblREGASSJune19[[#This Row],[FUNC]]),\"NO\",\"YES\")))","v":"NO"}]
[{"$f":"CONCATENATE(tblREGASSJune19[[#This Row],[Primary Account]],tblREGASSJune19[[#This Row],[Primary Name]],tblREGASSJune19[[#This Row],[Secondary Acct]],tblREGASSJune19[[#This Row],[Secondary  Name]],tblREGASSJune19[[#This Row],[Alloc4FUNC]])","v":"1823930DSR COSTS NOT AMORT103061ENERGY FINANSWER - ID/UT 2010OTHER"},1823930,"DSR COSTS NOT AMORT",103061,"ENERGY FINANSWER - ID/UT 2010","OTHER",47.20308,{"$f":"IF(OR(tblREGASSJune19[[#This Row],[Alloc]]=\"IDU\",tblREGASSJune19[[#This Row],[Alloc]]=\"OR\",tblREGASSJune19[[#This Row],[Alloc]]=\"UT\",tblREGASSJune19[[#This Row],[Alloc]]=\"WYU\",tblREGASSJune19[[#This Row],[Alloc]]=\"WYP\",tblREGASSJune19[[#This Row],[Alloc]]=\"CA\",tblREGASSJune19[[#This Row],[Alloc]]=\"WA\"),\"SITUS\",tblREGASSJune19[[#This Row],[Alloc]])","v":"OTHER"},{"$f":"INDEX(tblREGASSLookup[FUNC],MATCH(tblREGASSJune19[[#This Row],[Concat]],tblREGASSLookup[Concat],0))","v":"CUST"},{"$f":"IF(tblREGASSJune19[[#This Row],[Total ($000)]]=0,\"NO\",IF(ISNA(tblREGASSJune19[[#This Row],[FUNC]]),\"YES\",IF(_xlfn.ISFORMULA(tblREGASSJune19[[#This Row],[FUNC]]),\"NO\",\"YES\")))","v":"NO"}]
[{"$f":"CONCATENATE(tblREGASSJune19[[#This Row],[Primary Account]],tblREGASSJune19[[#This Row],[Primary Name]],tblREGASSJune19[[#This Row],[Secondary Acct]],tblREGASSJune19[[#This Row],[Secondary  Name]],tblREGASSJune19[[#This Row],[Alloc4FUNC]])","v":"1823930DSR COSTS NOT AMORT103062INDUSTRIAL FINANSWER - ID-UT 2010OTHER"},1823930,"DSR COSTS NOT AMORT",103062,"INDUSTRIAL FINANSWER - ID-UT 2010","OTHER",321.98257999999998,{"$f":"IF(OR(tblREGASSJune19[[#This Row],[Alloc]]=\"IDU\",tblREGASSJune19[[#This Row],[Alloc]]=\"OR\",tblREGASSJune19[[#This Row],[Alloc]]=\"UT\",tblREGASSJune19[[#This Row],[Alloc]]=\"WYU\",tblREGASSJune19[[#This Row],[Alloc]]=\"WYP\",tblREGASSJune19[[#This Row],[Alloc]]=\"CA\",tblREGASSJune19[[#This Row],[Alloc]]=\"WA\"),\"SITUS\",tblREGASSJune19[[#This Row],[Alloc]])","v":"OTHER"},{"$f":"INDEX(tblREGASSLookup[FUNC],MATCH(tblREGASSJune19[[#This Row],[Concat]],tblREGASSLookup[Concat],0))","v":"CUST"},{"$f":"IF(tblREGASSJune19[[#This Row],[Total ($000)]]=0,\"NO\",IF(ISNA(tblREGASSJune19[[#This Row],[FUNC]]),\"YES\",IF(_xlfn.ISFORMULA(tblREGASSJune19[[#This Row],[FUNC]]),\"NO\",\"YES\")))","v":"NO"}]
[{"$f":"CONCATENATE(tblREGASSJune19[[#This Row],[Primary Account]],tblREGASSJune19[[#This Row],[Primary Name]],tblREGASSJune19[[#This Row],[Secondary Acct]],tblREGASSJune19[[#This Row],[Secondary  Name]],tblREGASSJune19[[#This Row],[Alloc4FUNC]])","v":"1823930DSR COSTS NOT AMORT103063IRRIGATION INTERRUPTIBLE ID-UT 2010OTHER"},1823930,"DSR COSTS NOT AMORT",103063,"IRRIGATION INTERRUPTIBLE ID-UT 2010","OTHER",4283.3929399999997,{"$f":"IF(OR(tblREGASSJune19[[#This Row],[Alloc]]=\"IDU\",tblREGASSJune19[[#This Row],[Alloc]]=\"OR\",tblREGASSJune19[[#This Row],[Alloc]]=\"UT\",tblREGASSJune19[[#This Row],[Alloc]]=\"WYU\",tblREGASSJune19[[#This Row],[Alloc]]=\"WYP\",tblREGASSJune19[[#This Row],[Alloc]]=\"CA\",tblREGASSJune19[[#This Row],[Alloc]]=\"WA\"),\"SITUS\",tblREGASSJune19[[#This Row],[Alloc]])","v":"OTHER"},{"$f":"INDEX(tblREGASSLookup[FUNC],MATCH(tblREGASSJune19[[#This Row],[Concat]],tblREGASSLookup[Concat],0))","v":"CUST"},{"$f":"IF(tblREGASSJune19[[#This Row],[Total ($000)]]=0,\"NO\",IF(ISNA(tblREGASSJune19[[#This Row],[FUNC]]),\"YES\",IF(_xlfn.ISFORMULA(tblREGASSJune19[[#This Row],[FUNC]]),\"NO\",\"YES\")))","v":"NO"}]
[{"$f":"CONCATENATE(tblREGASSJune19[[#This Row],[Primary Account]],tblREGASSJune19[[#This Row],[Primary Name]],tblREGASSJune19[[#This Row],[Secondary Acct]],tblREGASSJune19[[#This Row],[Secondary  Name]],tblREGASSJune19[[#This Row],[Alloc4FUNC]])","v":"1823930DSR COSTS NOT AMORT103064LOW INCOME WZ  - ID-UT 2010OTHER"},1823930,"DSR COSTS NOT AMORT",103064,"LOW INCOME WZ  - ID-UT 2010","OTHER",133.67257000000001,{"$f":"IF(OR(tblREGASSJune19[[#This Row],[Alloc]]=\"IDU\",tblREGASSJune19[[#This Row],[Alloc]]=\"OR\",tblREGASSJune19[[#This Row],[Alloc]]=\"UT\",tblREGASSJune19[[#This Row],[Alloc]]=\"WYU\",tblREGASSJune19[[#This Row],[Alloc]]=\"WYP\",tblREGASSJune19[[#This Row],[Alloc]]=\"CA\",tblREGASSJune19[[#This Row],[Alloc]]=\"WA\"),\"SITUS\",tblREGASSJune19[[#This Row],[Alloc]])","v":"OTHER"},{"$f":"INDEX(tblREGASSLookup[FUNC],MATCH(tblREGASSJune19[[#This Row],[Concat]],tblREGASSLookup[Concat],0))","v":"CUST"},{"$f":"IF(tblREGASSJune19[[#This Row],[Total ($000)]]=0,\"NO\",IF(ISNA(tblREGASSJune19[[#This Row],[FUNC]]),\"YES\",IF(_xlfn.ISFORMULA(tblREGASSJune19[[#This Row],[FUNC]]),\"NO\",\"YES\")))","v":"NO"}]
[{"$f":"CONCATENATE(tblREGASSJune19[[#This Row],[Primary Account]],tblREGASSJune19[[#This Row],[Primary Name]],tblREGASSJune19[[#This Row],[Secondary Acct]],tblREGASSJune19[[#This Row],[Secondary  Name]],tblREGASSJune19[[#This Row],[Alloc4FUNC]])","v":"1823930DSR COSTS NOT AMORT103065NEEA - IDAHO - UTAH 2010OTHER"},1823930,"DSR COSTS NOT AMORT",103065,"NEEA - IDAHO - UTAH 2010","OTHER",0.46115,{"$f":"IF(OR(tblREGASSJune19[[#This Row],[Alloc]]=\"IDU\",tblREGASSJune19[[#This Row],[Alloc]]=\"OR\",tblREGASSJune19[[#This Row],[Alloc]]=\"UT\",tblREGASSJune19[[#This Row],[Alloc]]=\"WYU\",tblREGASSJune19[[#This Row],[Alloc]]=\"WYP\",tblREGASSJune19[[#This Row],[Alloc]]=\"CA\",tblREGASSJune19[[#This Row],[Alloc]]=\"WA\"),\"SITUS\",tblREGASSJune19[[#This Row],[Alloc]])","v":"OTHER"},{"$f":"INDEX(tblREGASSLookup[FUNC],MATCH(tblREGASSJune19[[#This Row],[Concat]],tblREGASSLookup[Concat],0))","v":"CUST"},{"$f":"IF(tblREGASSJune19[[#This Row],[Total ($000)]]=0,\"NO\",IF(ISNA(tblREGASSJune19[[#This Row],[FUNC]]),\"YES\",IF(_xlfn.ISFORMULA(tblREGASSJune19[[#This Row],[FUNC]]),\"NO\",\"YES\")))","v":"NO"}]
[{"$f":"CONCATENATE(tblREGASSJune19[[#This Row],[Primary Account]],tblREGASSJune19[[#This Row],[Primary Name]],tblREGASSJune19[[#This Row],[Secondary Acct]],tblREGASSJune19[[#This Row],[Secondary  Name]],tblREGASSJune19[[#This Row],[Alloc4FUNC]])","v":"1823930DSR COSTS NOT AMORT103066REFRIGERATOR RECYCLING PGM - ID-UT 2010OTHER"},1823930,"DSR COSTS NOT AMORT",103066,"REFRIGERATOR RECYCLING PGM - ID-UT 2010","OTHER",165.80113,{"$f":"IF(OR(tblREGASSJune19[[#This Row],[Alloc]]=\"IDU\",tblREGASSJune19[[#This Row],[Alloc]]=\"OR\",tblREGASSJune19[[#This Row],[Alloc]]=\"UT\",tblREGASSJune19[[#This Row],[Alloc]]=\"WYU\",tblREGASSJune19[[#This Row],[Alloc]]=\"WYP\",tblREGASSJune19[[#This Row],[Alloc]]=\"CA\",tblREGASSJune19[[#This Row],[Alloc]]=\"WA\"),\"SITUS\",tblREGASSJune19[[#This Row],[Alloc]])","v":"OTHER"},{"$f":"INDEX(tblREGASSLookup[FUNC],MATCH(tblREGASSJune19[[#This Row],[Concat]],tblREGASSLookup[Concat],0))","v":"CUST"},{"$f":"IF(tblREGASSJune19[[#This Row],[Total ($000)]]=0,\"NO\",IF(ISNA(tblREGASSJune19[[#This Row],[FUNC]]),\"YES\",IF(_xlfn.ISFORMULA(tblREGASSJune19[[#This Row],[FUNC]]),\"NO\",\"YES\")))","v":"NO"}]
[{"$f":"CONCATENATE(tblREGASSJune19[[#This Row],[Primary Account]],tblREGASSJune19[[#This Row],[Primary Name]],tblREGASSJune19[[#This Row],[Secondary Acct]],tblREGASSJune19[[#This Row],[Secondary  Name]],tblREGASSJune19[[#This Row],[Alloc4FUNC]])","v":"1823930DSR COSTS NOT AMORT103067COMMERCIAL FINANSWER EXPR - ID-UT 2010OTHER"},1823930,"DSR COSTS NOT AMORT",103067,"COMMERCIAL FINANSWER EXPR - ID-UT 2010","OTHER",513.47792000000004,{"$f":"IF(OR(tblREGASSJune19[[#This Row],[Alloc]]=\"IDU\",tblREGASSJune19[[#This Row],[Alloc]]=\"OR\",tblREGASSJune19[[#This Row],[Alloc]]=\"UT\",tblREGASSJune19[[#This Row],[Alloc]]=\"WYU\",tblREGASSJune19[[#This Row],[Alloc]]=\"WYP\",tblREGASSJune19[[#This Row],[Alloc]]=\"CA\",tblREGASSJune19[[#This Row],[Alloc]]=\"WA\"),\"SITUS\",tblREGASSJune19[[#This Row],[Alloc]])","v":"OTHER"},{"$f":"INDEX(tblREGASSLookup[FUNC],MATCH(tblREGASSJune19[[#This Row],[Concat]],tblREGASSLookup[Concat],0))","v":"CUST"},{"$f":"IF(tblREGASSJune19[[#This Row],[Total ($000)]]=0,\"NO\",IF(ISNA(tblREGASSJune19[[#This Row],[FUNC]]),\"YES\",IF(_xlfn.ISFORMULA(tblREGASSJune19[[#This Row],[FUNC]]),\"NO\",\"YES\")))","v":"NO"}]
[{"$f":"CONCATENATE(tblREGASSJune19[[#This Row],[Primary Account]],tblREGASSJune19[[#This Row],[Primary Name]],tblREGASSJune19[[#This Row],[Secondary Acct]],tblREGASSJune19[[#This Row],[Secondary  Name]],tblREGASSJune19[[#This Row],[Alloc4FUNC]])","v":"1823930DSR COSTS NOT AMORT103068INDUSTRIAL FINANSWER EXPR - ID-UT 2010OTHER"},1823930,"DSR COSTS NOT AMORT",103068,"INDUSTRIAL FINANSWER EXPR - ID-UT 2010","OTHER",107.01175000000001,{"$f":"IF(OR(tblREGASSJune19[[#This Row],[Alloc]]=\"IDU\",tblREGASSJune19[[#This Row],[Alloc]]=\"OR\",tblREGASSJune19[[#This Row],[Alloc]]=\"UT\",tblREGASSJune19[[#This Row],[Alloc]]=\"WYU\",tblREGASSJune19[[#This Row],[Alloc]]=\"WYP\",tblREGASSJune19[[#This Row],[Alloc]]=\"CA\",tblREGASSJune19[[#This Row],[Alloc]]=\"WA\"),\"SITUS\",tblREGASSJune19[[#This Row],[Alloc]])","v":"OTHER"},{"$f":"INDEX(tblREGASSLookup[FUNC],MATCH(tblREGASSJune19[[#This Row],[Concat]],tblREGASSLookup[Concat],0))","v":"CUST"},{"$f":"IF(tblREGASSJune19[[#This Row],[Total ($000)]]=0,\"NO\",IF(ISNA(tblREGASSJune19[[#This Row],[FUNC]]),\"YES\",IF(_xlfn.ISFORMULA(tblREGASSJune19[[#This Row],[FUNC]]),\"NO\",\"YES\")))","v":"NO"}]
[{"$f":"CONCATENATE(tblREGASSJune19[[#This Row],[Primary Account]],tblREGASSJune19[[#This Row],[Primary Name]],tblREGASSJune19[[#This Row],[Secondary Acct]],tblREGASSJune19[[#This Row],[Secondary  Name]],tblREGASSJune19[[#This Row],[Alloc4FUNC]])","v":"1823930DSR COSTS NOT AMORT103069IRRIGATION EFFICIENCY PRGRM - ID-UT 2010OTHER"},1823930,"DSR COSTS NOT AMORT",103069,"IRRIGATION EFFICIENCY PRGRM - ID-UT 2010","OTHER",637.00941999999998,{"$f":"IF(OR(tblREGASSJune19[[#This Row],[Alloc]]=\"IDU\",tblREGASSJune19[[#This Row],[Alloc]]=\"OR\",tblREGASSJune19[[#This Row],[Alloc]]=\"UT\",tblREGASSJune19[[#This Row],[Alloc]]=\"WYU\",tblREGASSJune19[[#This Row],[Alloc]]=\"WYP\",tblREGASSJune19[[#This Row],[Alloc]]=\"CA\",tblREGASSJune19[[#This Row],[Alloc]]=\"WA\"),\"SITUS\",tblREGASSJune19[[#This Row],[Alloc]])","v":"OTHER"},{"$f":"INDEX(tblREGASSLookup[FUNC],MATCH(tblREGASSJune19[[#This Row],[Concat]],tblREGASSLookup[Concat],0))","v":"CUST"},{"$f":"IF(tblREGASSJune19[[#This Row],[Total ($000)]]=0,\"NO\",IF(ISNA(tblREGASSJune19[[#This Row],[FUNC]]),\"YES\",IF(_xlfn.ISFORMULA(tblREGASSJune19[[#This Row],[FUNC]]),\"NO\",\"YES\")))","v":"NO"}]
[{"$f":"CONCATENATE(tblREGASSJune19[[#This Row],[Primary Account]],tblREGASSJune19[[#This Row],[Primary Name]],tblREGASSJune19[[#This Row],[Secondary Acct]],tblREGASSJune19[[#This Row],[Secondary  Name]],tblREGASSJune19[[#This Row],[Alloc4FUNC]])","v":"1823930DSR COSTS NOT AMORT103070HOME ENERGY EFFICIENCY INCENTIVE PROG  -OTHER"},1823930,"DSR COSTS NOT AMORT",103070,"HOME ENERGY EFFICIENCY INCENTIVE PROG  -","OTHER",1305.0138400000001,{"$f":"IF(OR(tblREGASSJune19[[#This Row],[Alloc]]=\"IDU\",tblREGASSJune19[[#This Row],[Alloc]]=\"OR\",tblREGASSJune19[[#This Row],[Alloc]]=\"UT\",tblREGASSJune19[[#This Row],[Alloc]]=\"WYU\",tblREGASSJune19[[#This Row],[Alloc]]=\"WYP\",tblREGASSJune19[[#This Row],[Alloc]]=\"CA\",tblREGASSJune19[[#This Row],[Alloc]]=\"WA\"),\"SITUS\",tblREGASSJune19[[#This Row],[Alloc]])","v":"OTHER"},{"$f":"INDEX(tblREGASSLookup[FUNC],MATCH(tblREGASSJune19[[#This Row],[Concat]],tblREGASSLookup[Concat],0))","v":"CUST"},{"$f":"IF(tblREGASSJune19[[#This Row],[Total ($000)]]=0,\"NO\",IF(ISNA(tblREGASSJune19[[#This Row],[FUNC]]),\"YES\",IF(_xlfn.ISFORMULA(tblREGASSJune19[[#This Row],[FUNC]]),\"NO\",\"YES\")))","v":"NO"}]
[{"$f":"CONCATENATE(tblREGASSJune19[[#This Row],[Primary Account]],tblREGASSJune19[[#This Row],[Primary Name]],tblREGASSJune19[[#This Row],[Secondary Acct]],tblREGASSJune19[[#This Row],[Secondary  Name]],tblREGASSJune19[[#This Row],[Alloc4FUNC]])","v":"1823930DSR COSTS NOT AMORT103171ENERGY FINANSWER - ID/UT 2011OTHER"},1823930,"DSR COSTS NOT AMORT",103171,"ENERGY FINANSWER - ID/UT 2011","OTHER",23.137599999999999,{"$f":"IF(OR(tblREGASSJune19[[#This Row],[Alloc]]=\"IDU\",tblREGASSJune19[[#This Row],[Alloc]]=\"OR\",tblREGASSJune19[[#This Row],[Alloc]]=\"UT\",tblREGASSJune19[[#This Row],[Alloc]]=\"WYU\",tblREGASSJune19[[#This Row],[Alloc]]=\"WYP\",tblREGASSJune19[[#This Row],[Alloc]]=\"CA\",tblREGASSJune19[[#This Row],[Alloc]]=\"WA\"),\"SITUS\",tblREGASSJune19[[#This Row],[Alloc]])","v":"OTHER"},{"$f":"INDEX(tblREGASSLookup[FUNC],MATCH(tblREGASSJune19[[#This Row],[Concat]],tblREGASSLookup[Concat],0))","v":"CUST"},{"$f":"IF(tblREGASSJune19[[#This Row],[Total ($000)]]=0,\"NO\",IF(ISNA(tblREGASSJune19[[#This Row],[FUNC]]),\"YES\",IF(_xlfn.ISFORMULA(tblREGASSJune19[[#This Row],[FUNC]]),\"NO\",\"YES\")))","v":"NO"}]
[{"$f":"CONCATENATE(tblREGASSJune19[[#This Row],[Primary Account]],tblREGASSJune19[[#This Row],[Primary Name]],tblREGASSJune19[[#This Row],[Secondary Acct]],tblREGASSJune19[[#This Row],[Secondary  Name]],tblREGASSJune19[[#This Row],[Alloc4FUNC]])","v":"1823930DSR COSTS NOT AMORT103172INDUSTRIAL FINANSWER - ID-UT 2011OTHER"},1823930,"DSR COSTS NOT AMORT",103172,"INDUSTRIAL FINANSWER - ID-UT 2011","OTHER",142.68645000000001,{"$f":"IF(OR(tblREGASSJune19[[#This Row],[Alloc]]=\"IDU\",tblREGASSJune19[[#This Row],[Alloc]]=\"OR\",tblREGASSJune19[[#This Row],[Alloc]]=\"UT\",tblREGASSJune19[[#This Row],[Alloc]]=\"WYU\",tblREGASSJune19[[#This Row],[Alloc]]=\"WYP\",tblREGASSJune19[[#This Row],[Alloc]]=\"CA\",tblREGASSJune19[[#This Row],[Alloc]]=\"WA\"),\"SITUS\",tblREGASSJune19[[#This Row],[Alloc]])","v":"OTHER"},{"$f":"INDEX(tblREGASSLookup[FUNC],MATCH(tblREGASSJune19[[#This Row],[Concat]],tblREGASSLookup[Concat],0))","v":"CUST"},{"$f":"IF(tblREGASSJune19[[#This Row],[Total ($000)]]=0,\"NO\",IF(ISNA(tblREGASSJune19[[#This Row],[FUNC]]),\"YES\",IF(_xlfn.ISFORMULA(tblREGASSJune19[[#This Row],[FUNC]]),\"NO\",\"YES\")))","v":"NO"}]
[{"$f":"CONCATENATE(tblREGASSJune19[[#This Row],[Primary Account]],tblREGASSJune19[[#This Row],[Primary Name]],tblREGASSJune19[[#This Row],[Secondary Acct]],tblREGASSJune19[[#This Row],[Secondary  Name]],tblREGASSJune19[[#This Row],[Alloc4FUNC]])","v":"1823930DSR COSTS NOT AMORT103173IRRIGATION INTERRUPTIBLE ID-UT 2011OTHER"},1823930,"DSR COSTS NOT AMORT",103173,"IRRIGATION INTERRUPTIBLE ID-UT 2011","OTHER",37.325920000000004,{"$f":"IF(OR(tblREGASSJune19[[#This Row],[Alloc]]=\"IDU\",tblREGASSJune19[[#This Row],[Alloc]]=\"OR\",tblREGASSJune19[[#This Row],[Alloc]]=\"UT\",tblREGASSJune19[[#This Row],[Alloc]]=\"WYU\",tblREGASSJune19[[#This Row],[Alloc]]=\"WYP\",tblREGASSJune19[[#This Row],[Alloc]]=\"CA\",tblREGASSJune19[[#This Row],[Alloc]]=\"WA\"),\"SITUS\",tblREGASSJune19[[#This Row],[Alloc]])","v":"OTHER"},{"$f":"INDEX(tblREGASSLookup[FUNC],MATCH(tblREGASSJune19[[#This Row],[Concat]],tblREGASSLookup[Concat],0))","v":"CUST"},{"$f":"IF(tblREGASSJune19[[#This Row],[Total ($000)]]=0,\"NO\",IF(ISNA(tblREGASSJune19[[#This Row],[FUNC]]),\"YES\",IF(_xlfn.ISFORMULA(tblREGASSJune19[[#This Row],[FUNC]]),\"NO\",\"YES\")))","v":"NO"}]
[{"$f":"CONCATENATE(tblREGASSJune19[[#This Row],[Primary Account]],tblREGASSJune19[[#This Row],[Primary Name]],tblREGASSJune19[[#This Row],[Secondary Acct]],tblREGASSJune19[[#This Row],[Secondary  Name]],tblREGASSJune19[[#This Row],[Alloc4FUNC]])","v":"1823930DSR COSTS NOT AMORT103174LOW INCOME WZ  - ID-UT 2011OTHER"},1823930,"DSR COSTS NOT AMORT",103174,"LOW INCOME WZ  - ID-UT 2011","OTHER",425.00497000000001,{"$f":"IF(OR(tblREGASSJune19[[#This Row],[Alloc]]=\"IDU\",tblREGASSJune19[[#This Row],[Alloc]]=\"OR\",tblREGASSJune19[[#This Row],[Alloc]]=\"UT\",tblREGASSJune19[[#This Row],[Alloc]]=\"WYU\",tblREGASSJune19[[#This Row],[Alloc]]=\"WYP\",tblREGASSJune19[[#This Row],[Alloc]]=\"CA\",tblREGASSJune19[[#This Row],[Alloc]]=\"WA\"),\"SITUS\",tblREGASSJune19[[#This Row],[Alloc]])","v":"OTHER"},{"$f":"INDEX(tblREGASSLookup[FUNC],MATCH(tblREGASSJune19[[#This Row],[Concat]],tblREGASSLookup[Concat],0))","v":"CUST"},{"$f":"IF(tblREGASSJune19[[#This Row],[Total ($000)]]=0,\"NO\",IF(ISNA(tblREGASSJune19[[#This Row],[FUNC]]),\"YES\",IF(_xlfn.ISFORMULA(tblREGASSJune19[[#This Row],[FUNC]]),\"NO\",\"YES\")))","v":"NO"}]
[{"$f":"CONCATENATE(tblREGASSJune19[[#This Row],[Primary Account]],tblREGASSJune19[[#This Row],[Primary Name]],tblREGASSJune19[[#This Row],[Secondary Acct]],tblREGASSJune19[[#This Row],[Secondary  Name]],tblREGASSJune19[[#This Row],[Alloc4FUNC]])","v":"1823930DSR COSTS NOT AMORT103176REFRIGERATOR RECYCLING PGM - ID-UT 2011OTHER"},1823930,"DSR COSTS NOT AMORT",103176,"REFRIGERATOR RECYCLING PGM - ID-UT 2011","OTHER",126.28608,{"$f":"IF(OR(tblREGASSJune19[[#This Row],[Alloc]]=\"IDU\",tblREGASSJune19[[#This Row],[Alloc]]=\"OR\",tblREGASSJune19[[#This Row],[Alloc]]=\"UT\",tblREGASSJune19[[#This Row],[Alloc]]=\"WYU\",tblREGASSJune19[[#This Row],[Alloc]]=\"WYP\",tblREGASSJune19[[#This Row],[Alloc]]=\"CA\",tblREGASSJune19[[#This Row],[Alloc]]=\"WA\"),\"SITUS\",tblREGASSJune19[[#This Row],[Alloc]])","v":"OTHER"},{"$f":"INDEX(tblREGASSLookup[FUNC],MATCH(tblREGASSJune19[[#This Row],[Concat]],tblREGASSLookup[Concat],0))","v":"CUST"},{"$f":"IF(tblREGASSJune19[[#This Row],[Total ($000)]]=0,\"NO\",IF(ISNA(tblREGASSJune19[[#This Row],[FUNC]]),\"YES\",IF(_xlfn.ISFORMULA(tblREGASSJune19[[#This Row],[FUNC]]),\"NO\",\"YES\")))","v":"NO"}]
[{"$f":"CONCATENATE(tblREGASSJune19[[#This Row],[Primary Account]],tblREGASSJune19[[#This Row],[Primary Name]],tblREGASSJune19[[#This Row],[Secondary Acct]],tblREGASSJune19[[#This Row],[Secondary  Name]],tblREGASSJune19[[#This Row],[Alloc4FUNC]])","v":"1823930DSR COSTS NOT AMORT103177COMMERCIAL FINANSWER EXPR - ID-UT 2011OTHER"},1823930,"DSR COSTS NOT AMORT",103177,"COMMERCIAL FINANSWER EXPR - ID-UT 2011","OTHER",631.68134999999995,{"$f":"IF(OR(tblREGASSJune19[[#This Row],[Alloc]]=\"IDU\",tblREGASSJune19[[#This Row],[Alloc]]=\"OR\",tblREGASSJune19[[#This Row],[Alloc]]=\"UT\",tblREGASSJune19[[#This Row],[Alloc]]=\"WYU\",tblREGASSJune19[[#This Row],[Alloc]]=\"WYP\",tblREGASSJune19[[#This Row],[Alloc]]=\"CA\",tblREGASSJune19[[#This Row],[Alloc]]=\"WA\"),\"SITUS\",tblREGASSJune19[[#This Row],[Alloc]])","v":"OTHER"},{"$f":"INDEX(tblREGASSLookup[FUNC],MATCH(tblREGASSJune19[[#This Row],[Concat]],tblREGASSLookup[Concat],0))","v":"CUST"},{"$f":"IF(tblREGASSJune19[[#This Row],[Total ($000)]]=0,\"NO\",IF(ISNA(tblREGASSJune19[[#This Row],[FUNC]]),\"YES\",IF(_xlfn.ISFORMULA(tblREGASSJune19[[#This Row],[FUNC]]),\"NO\",\"YES\")))","v":"NO"}]
[{"$f":"CONCATENATE(tblREGASSJune19[[#This Row],[Primary Account]],tblREGASSJune19[[#This Row],[Primary Name]],tblREGASSJune19[[#This Row],[Secondary Acct]],tblREGASSJune19[[#This Row],[Secondary  Name]],tblREGASSJune19[[#This Row],[Alloc4FUNC]])","v":"1823930DSR COSTS NOT AMORT103178INDUSTRIAL FINANSWER EXPR - ID-UT 2011OTHER"},1823930,"DSR COSTS NOT AMORT",103178,"INDUSTRIAL FINANSWER EXPR - ID-UT 2011","OTHER",77.214200000000005,{"$f":"IF(OR(tblREGASSJune19[[#This Row],[Alloc]]=\"IDU\",tblREGASSJune19[[#This Row],[Alloc]]=\"OR\",tblREGASSJune19[[#This Row],[Alloc]]=\"UT\",tblREGASSJune19[[#This Row],[Alloc]]=\"WYU\",tblREGASSJune19[[#This Row],[Alloc]]=\"WYP\",tblREGASSJune19[[#This Row],[Alloc]]=\"CA\",tblREGASSJune19[[#This Row],[Alloc]]=\"WA\"),\"SITUS\",tblREGASSJune19[[#This Row],[Alloc]])","v":"OTHER"},{"$f":"INDEX(tblREGASSLookup[FUNC],MATCH(tblREGASSJune19[[#This Row],[Concat]],tblREGASSLookup[Concat],0))","v":"CUST"},{"$f":"IF(tblREGASSJune19[[#This Row],[Total ($000)]]=0,\"NO\",IF(ISNA(tblREGASSJune19[[#This Row],[FUNC]]),\"YES\",IF(_xlfn.ISFORMULA(tblREGASSJune19[[#This Row],[FUNC]]),\"NO\",\"YES\")))","v":"NO"}]
[{"$f":"CONCATENATE(tblREGASSJune19[[#This Row],[Primary Account]],tblREGASSJune19[[#This Row],[Primary Name]],tblREGASSJune19[[#This Row],[Secondary Acct]],tblREGASSJune19[[#This Row],[Secondary  Name]],tblREGASSJune19[[#This Row],[Alloc4FUNC]])","v":"1823930DSR COSTS NOT AMORT103179IRRIGATION EFFICIENCY PRGRM - ID-UT 2011OTHER"},1823930,"DSR COSTS NOT AMORT",103179,"IRRIGATION EFFICIENCY PRGRM - ID-UT 2011","OTHER",507.57371999999998,{"$f":"IF(OR(tblREGASSJune19[[#This Row],[Alloc]]=\"IDU\",tblREGASSJune19[[#This Row],[Alloc]]=\"OR\",tblREGASSJune19[[#This Row],[Alloc]]=\"UT\",tblREGASSJune19[[#This Row],[Alloc]]=\"WYU\",tblREGASSJune19[[#This Row],[Alloc]]=\"WYP\",tblREGASSJune19[[#This Row],[Alloc]]=\"CA\",tblREGASSJune19[[#This Row],[Alloc]]=\"WA\"),\"SITUS\",tblREGASSJune19[[#This Row],[Alloc]])","v":"OTHER"},{"$f":"INDEX(tblREGASSLookup[FUNC],MATCH(tblREGASSJune19[[#This Row],[Concat]],tblREGASSLookup[Concat],0))","v":"CUST"},{"$f":"IF(tblREGASSJune19[[#This Row],[Total ($000)]]=0,\"NO\",IF(ISNA(tblREGASSJune19[[#This Row],[FUNC]]),\"YES\",IF(_xlfn.ISFORMULA(tblREGASSJune19[[#This Row],[FUNC]]),\"NO\",\"YES\")))","v":"NO"}]
[{"$f":"CONCATENATE(tblREGASSJune19[[#This Row],[Primary Account]],tblREGASSJune19[[#This Row],[Primary Name]],tblREGASSJune19[[#This Row],[Secondary Acct]],tblREGASSJune19[[#This Row],[Secondary  Name]],tblREGASSJune19[[#This Row],[Alloc4FUNC]])","v":"1823930DSR COSTS NOT AMORT103180HOME ENERGY EFFICIENCY INCENTIVE PROG  -OTHER"},1823930,"DSR COSTS NOT AMORT",103180,"HOME ENERGY EFFICIENCY INCENTIVE PROG  -","OTHER",699.07396000000006,{"$f":"IF(OR(tblREGASSJune19[[#This Row],[Alloc]]=\"IDU\",tblREGASSJune19[[#This Row],[Alloc]]=\"OR\",tblREGASSJune19[[#This Row],[Alloc]]=\"UT\",tblREGASSJune19[[#This Row],[Alloc]]=\"WYU\",tblREGASSJune19[[#This Row],[Alloc]]=\"WYP\",tblREGASSJune19[[#This Row],[Alloc]]=\"CA\",tblREGASSJune19[[#This Row],[Alloc]]=\"WA\"),\"SITUS\",tblREGASSJune19[[#This Row],[Alloc]])","v":"OTHER"},{"$f":"INDEX(tblREGASSLookup[FUNC],MATCH(tblREGASSJune19[[#This Row],[Concat]],tblREGASSLookup[Concat],0))","v":"CUST"},{"$f":"IF(tblREGASSJune19[[#This Row],[Total ($000)]]=0,\"NO\",IF(ISNA(tblREGASSJune19[[#This Row],[FUNC]]),\"YES\",IF(_xlfn.ISFORMULA(tblREGASSJune19[[#This Row],[FUNC]]),\"NO\",\"YES\")))","v":"NO"}]
[{"$f":"CONCATENATE(tblREGASSJune19[[#This Row],[Primary Account]],tblREGASSJune19[[#This Row],[Primary Name]],tblREGASSJune19[[#This Row],[Secondary Acct]],tblREGASSJune19[[#This Row],[Secondary  Name]],tblREGASSJune19[[#This Row],[Alloc4FUNC]])","v":"1823930DSR COSTS NOT AMORT103312ENERGY FINANSWER - ID 2012OTHER"},1823930,"DSR COSTS NOT AMORT",103312,"ENERGY FINANSWER - ID 2012","OTHER",35.377119999999998,{"$f":"IF(OR(tblREGASSJune19[[#This Row],[Alloc]]=\"IDU\",tblREGASSJune19[[#This Row],[Alloc]]=\"OR\",tblREGASSJune19[[#This Row],[Alloc]]=\"UT\",tblREGASSJune19[[#This Row],[Alloc]]=\"WYU\",tblREGASSJune19[[#This Row],[Alloc]]=\"WYP\",tblREGASSJune19[[#This Row],[Alloc]]=\"CA\",tblREGASSJune19[[#This Row],[Alloc]]=\"WA\"),\"SITUS\",tblREGASSJune19[[#This Row],[Alloc]])","v":"OTHER"},{"$f":"INDEX(tblREGASSLookup[FUNC],MATCH(tblREGASSJune19[[#This Row],[Concat]],tblREGASSLookup[Concat],0))","v":"CUST"},{"$f":"IF(tblREGASSJune19[[#This Row],[Total ($000)]]=0,\"NO\",IF(ISNA(tblREGASSJune19[[#This Row],[FUNC]]),\"YES\",IF(_xlfn.ISFORMULA(tblREGASSJune19[[#This Row],[FUNC]]),\"NO\",\"YES\")))","v":"NO"}]
[{"$f":"CONCATENATE(tblREGASSJune19[[#This Row],[Primary Account]],tblREGASSJune19[[#This Row],[Primary Name]],tblREGASSJune19[[#This Row],[Secondary Acct]],tblREGASSJune19[[#This Row],[Secondary  Name]],tblREGASSJune19[[#This Row],[Alloc4FUNC]])","v":"1823930DSR COSTS NOT AMORT103313INDUSTRIAL FINANSWER - ID 2012OTHER"},1823930,"DSR COSTS NOT AMORT",103313,"INDUSTRIAL FINANSWER - ID 2012","OTHER",303.18799000000001,{"$f":"IF(OR(tblREGASSJune19[[#This Row],[Alloc]]=\"IDU\",tblREGASSJune19[[#This Row],[Alloc]]=\"OR\",tblREGASSJune19[[#This Row],[Alloc]]=\"UT\",tblREGASSJune19[[#This Row],[Alloc]]=\"WYU\",tblREGASSJune19[[#This Row],[Alloc]]=\"WYP\",tblREGASSJune19[[#This Row],[Alloc]]=\"CA\",tblREGASSJune19[[#This Row],[Alloc]]=\"WA\"),\"SITUS\",tblREGASSJune19[[#This Row],[Alloc]])","v":"OTHER"},{"$f":"INDEX(tblREGASSLookup[FUNC],MATCH(tblREGASSJune19[[#This Row],[Concat]],tblREGASSLookup[Concat],0))","v":"CUST"},{"$f":"IF(tblREGASSJune19[[#This Row],[Total ($000)]]=0,\"NO\",IF(ISNA(tblREGASSJune19[[#This Row],[FUNC]]),\"YES\",IF(_xlfn.ISFORMULA(tblREGASSJune19[[#This Row],[FUNC]]),\"NO\",\"YES\")))","v":"NO"}]
[{"$f":"CONCATENATE(tblREGASSJune19[[#This Row],[Primary Account]],tblREGASSJune19[[#This Row],[Primary Name]],tblREGASSJune19[[#This Row],[Secondary Acct]],tblREGASSJune19[[#This Row],[Secondary  Name]],tblREGASSJune19[[#This Row],[Alloc4FUNC]])","v":"1823930DSR COSTS NOT AMORT103314IRRIGATION INTERRUPTIBLE- ID 2012OTHER"},1823930,"DSR COSTS NOT AMORT",103314,"IRRIGATION INTERRUPTIBLE- ID 2012","OTHER",44.237549999999999,{"$f":"IF(OR(tblREGASSJune19[[#This Row],[Alloc]]=\"IDU\",tblREGASSJune19[[#This Row],[Alloc]]=\"OR\",tblREGASSJune19[[#This Row],[Alloc]]=\"UT\",tblREGASSJune19[[#This Row],[Alloc]]=\"WYU\",tblREGASSJune19[[#This Row],[Alloc]]=\"WYP\",tblREGASSJune19[[#This Row],[Alloc]]=\"CA\",tblREGASSJune19[[#This Row],[Alloc]]=\"WA\"),\"SITUS\",tblREGASSJune19[[#This Row],[Alloc]])","v":"OTHER"},{"$f":"INDEX(tblREGASSLookup[FUNC],MATCH(tblREGASSJune19[[#This Row],[Concat]],tblREGASSLookup[Concat],0))","v":"CUST"},{"$f":"IF(tblREGASSJune19[[#This Row],[Total ($000)]]=0,\"NO\",IF(ISNA(tblREGASSJune19[[#This Row],[FUNC]]),\"YES\",IF(_xlfn.ISFORMULA(tblREGASSJune19[[#This Row],[FUNC]]),\"NO\",\"YES\")))","v":"NO"}]
[{"$f":"CONCATENATE(tblREGASSJune19[[#This Row],[Primary Account]],tblREGASSJune19[[#This Row],[Primary Name]],tblREGASSJune19[[#This Row],[Secondary Acct]],tblREGASSJune19[[#This Row],[Secondary  Name]],tblREGASSJune19[[#This Row],[Alloc4FUNC]])","v":"1823930DSR COSTS NOT AMORT103315LOW INCOME WZ  - ID- 2012OTHER"},1823930,"DSR COSTS NOT AMORT",103315,"LOW INCOME WZ  - ID- 2012","OTHER",295.92408,{"$f":"IF(OR(tblREGASSJune19[[#This Row],[Alloc]]=\"IDU\",tblREGASSJune19[[#This Row],[Alloc]]=\"OR\",tblREGASSJune19[[#This Row],[Alloc]]=\"UT\",tblREGASSJune19[[#This Row],[Alloc]]=\"WYU\",tblREGASSJune19[[#This Row],[Alloc]]=\"WYP\",tblREGASSJune19[[#This Row],[Alloc]]=\"CA\",tblREGASSJune19[[#This Row],[Alloc]]=\"WA\"),\"SITUS\",tblREGASSJune19[[#This Row],[Alloc]])","v":"OTHER"},{"$f":"INDEX(tblREGASSLookup[FUNC],MATCH(tblREGASSJune19[[#This Row],[Concat]],tblREGASSLookup[Concat],0))","v":"CUST"},{"$f":"IF(tblREGASSJune19[[#This Row],[Total ($000)]]=0,\"NO\",IF(ISNA(tblREGASSJune19[[#This Row],[FUNC]]),\"YES\",IF(_xlfn.ISFORMULA(tblREGASSJune19[[#This Row],[FUNC]]),\"NO\",\"YES\")))","v":"NO"}]
[{"$f":"CONCATENATE(tblREGASSJune19[[#This Row],[Primary Account]],tblREGASSJune19[[#This Row],[Primary Name]],tblREGASSJune19[[#This Row],[Secondary Acct]],tblREGASSJune19[[#This Row],[Secondary  Name]],tblREGASSJune19[[#This Row],[Alloc4FUNC]])","v":"1823930DSR COSTS NOT AMORT103317REFRIGERATOR RECYCLING PGM - ID 2012OTHER"},1823930,"DSR COSTS NOT AMORT",103317,"REFRIGERATOR RECYCLING PGM - ID 2012","OTHER",115.49608000000001,{"$f":"IF(OR(tblREGASSJune19[[#This Row],[Alloc]]=\"IDU\",tblREGASSJune19[[#This Row],[Alloc]]=\"OR\",tblREGASSJune19[[#This Row],[Alloc]]=\"UT\",tblREGASSJune19[[#This Row],[Alloc]]=\"WYU\",tblREGASSJune19[[#This Row],[Alloc]]=\"WYP\",tblREGASSJune19[[#This Row],[Alloc]]=\"CA\",tblREGASSJune19[[#This Row],[Alloc]]=\"WA\"),\"SITUS\",tblREGASSJune19[[#This Row],[Alloc]])","v":"OTHER"},{"$f":"INDEX(tblREGASSLookup[FUNC],MATCH(tblREGASSJune19[[#This Row],[Concat]],tblREGASSLookup[Concat],0))","v":"CUST"},{"$f":"IF(tblREGASSJune19[[#This Row],[Total ($000)]]=0,\"NO\",IF(ISNA(tblREGASSJune19[[#This Row],[FUNC]]),\"YES\",IF(_xlfn.ISFORMULA(tblREGASSJune19[[#This Row],[FUNC]]),\"NO\",\"YES\")))","v":"NO"}]
[{"$f":"CONCATENATE(tblREGASSJune19[[#This Row],[Primary Account]],tblREGASSJune19[[#This Row],[Primary Name]],tblREGASSJune19[[#This Row],[Secondary Acct]],tblREGASSJune19[[#This Row],[Secondary  Name]],tblREGASSJune19[[#This Row],[Alloc4FUNC]])","v":"1823930DSR COSTS NOT AMORT103318COMMERCIAL FINANSWER EXPR - ID 2012OTHER"},1823930,"DSR COSTS NOT AMORT",103318,"COMMERCIAL FINANSWER EXPR - ID 2012","OTHER",705.67894000000001,{"$f":"IF(OR(tblREGASSJune19[[#This Row],[Alloc]]=\"IDU\",tblREGASSJune19[[#This Row],[Alloc]]=\"OR\",tblREGASSJune19[[#This Row],[Alloc]]=\"UT\",tblREGASSJune19[[#This Row],[Alloc]]=\"WYU\",tblREGASSJune19[[#This Row],[Alloc]]=\"WYP\",tblREGASSJune19[[#This Row],[Alloc]]=\"CA\",tblREGASSJune19[[#This Row],[Alloc]]=\"WA\"),\"SITUS\",tblREGASSJune19[[#This Row],[Alloc]])","v":"OTHER"},{"$f":"INDEX(tblREGASSLookup[FUNC],MATCH(tblREGASSJune19[[#This Row],[Concat]],tblREGASSLookup[Concat],0))","v":"CUST"},{"$f":"IF(tblREGASSJune19[[#This Row],[Total ($000)]]=0,\"NO\",IF(ISNA(tblREGASSJune19[[#This Row],[FUNC]]),\"YES\",IF(_xlfn.ISFORMULA(tblREGASSJune19[[#This Row],[FUNC]]),\"NO\",\"YES\")))","v":"NO"}]
[{"$f":"CONCATENATE(tblREGASSJune19[[#This Row],[Primary Account]],tblREGASSJune19[[#This Row],[Primary Name]],tblREGASSJune19[[#This Row],[Secondary Acct]],tblREGASSJune19[[#This Row],[Secondary  Name]],tblREGASSJune19[[#This Row],[Alloc4FUNC]])","v":"1823930DSR COSTS NOT AMORT103319INDUSTRIAL FINANSWER EXPR - ID 2012OTHER"},1823930,"DSR COSTS NOT AMORT",103319,"INDUSTRIAL FINANSWER EXPR - ID 2012","OTHER",225.87345999999999,{"$f":"IF(OR(tblREGASSJune19[[#This Row],[Alloc]]=\"IDU\",tblREGASSJune19[[#This Row],[Alloc]]=\"OR\",tblREGASSJune19[[#This Row],[Alloc]]=\"UT\",tblREGASSJune19[[#This Row],[Alloc]]=\"WYU\",tblREGASSJune19[[#This Row],[Alloc]]=\"WYP\",tblREGASSJune19[[#This Row],[Alloc]]=\"CA\",tblREGASSJune19[[#This Row],[Alloc]]=\"WA\"),\"SITUS\",tblREGASSJune19[[#This Row],[Alloc]])","v":"OTHER"},{"$f":"INDEX(tblREGASSLookup[FUNC],MATCH(tblREGASSJune19[[#This Row],[Concat]],tblREGASSLookup[Concat],0))","v":"CUST"},{"$f":"IF(tblREGASSJune19[[#This Row],[Total ($000)]]=0,\"NO\",IF(ISNA(tblREGASSJune19[[#This Row],[FUNC]]),\"YES\",IF(_xlfn.ISFORMULA(tblREGASSJune19[[#This Row],[FUNC]]),\"NO\",\"YES\")))","v":"NO"}]
[{"$f":"CONCATENATE(tblREGASSJune19[[#This Row],[Primary Account]],tblREGASSJune19[[#This Row],[Primary Name]],tblREGASSJune19[[#This Row],[Secondary Acct]],tblREGASSJune19[[#This Row],[Secondary  Name]],tblREGASSJune19[[#This Row],[Alloc4FUNC]])","v":"1823930DSR COSTS NOT AMORT103320IRRIGATION EFFICIENCY PRGRM - ID 2012OTHER"},1823930,"DSR COSTS NOT AMORT",103320,"IRRIGATION EFFICIENCY PRGRM - ID 2012","OTHER",846.70905000000005,{"$f":"IF(OR(tblREGASSJune19[[#This Row],[Alloc]]=\"IDU\",tblREGASSJune19[[#This Row],[Alloc]]=\"OR\",tblREGASSJune19[[#This Row],[Alloc]]=\"UT\",tblREGASSJune19[[#This Row],[Alloc]]=\"WYU\",tblREGASSJune19[[#This Row],[Alloc]]=\"WYP\",tblREGASSJune19[[#This Row],[Alloc]]=\"CA\",tblREGASSJune19[[#This Row],[Alloc]]=\"WA\"),\"SITUS\",tblREGASSJune19[[#This Row],[Alloc]])","v":"OTHER"},{"$f":"INDEX(tblREGASSLookup[FUNC],MATCH(tblREGASSJune19[[#This Row],[Concat]],tblREGASSLookup[Concat],0))","v":"CUST"},{"$f":"IF(tblREGASSJune19[[#This Row],[Total ($000)]]=0,\"NO\",IF(ISNA(tblREGASSJune19[[#This Row],[FUNC]]),\"YES\",IF(_xlfn.ISFORMULA(tblREGASSJune19[[#This Row],[FUNC]]),\"NO\",\"YES\")))","v":"NO"}]
[{"$f":"CONCATENATE(tblREGASSJune19[[#This Row],[Primary Account]],tblREGASSJune19[[#This Row],[Primary Name]],tblREGASSJune19[[#This Row],[Secondary Acct]],tblREGASSJune19[[#This Row],[Secondary  Name]],tblREGASSJune19[[#This Row],[Alloc4FUNC]])","v":"1823930DSR COSTS NOT AMORT103321HOME ENERGY EFFICIENCY INCENTIVE PROG  -OTHER"},1823930,"DSR COSTS NOT AMORT",103321,"HOME ENERGY EFFICIENCY INCENTIVE PROG  -","OTHER",789.23712999999998,{"$f":"IF(OR(tblREGASSJune19[[#This Row],[Alloc]]=\"IDU\",tblREGASSJune19[[#This Row],[Alloc]]=\"OR\",tblREGASSJune19[[#This Row],[Alloc]]=\"UT\",tblREGASSJune19[[#This Row],[Alloc]]=\"WYU\",tblREGASSJune19[[#This Row],[Alloc]]=\"WYP\",tblREGASSJune19[[#This Row],[Alloc]]=\"CA\",tblREGASSJune19[[#This Row],[Alloc]]=\"WA\"),\"SITUS\",tblREGASSJune19[[#This Row],[Alloc]])","v":"OTHER"},{"$f":"INDEX(tblREGASSLookup[FUNC],MATCH(tblREGASSJune19[[#This Row],[Concat]],tblREGASSLookup[Concat],0))","v":"CUST"},{"$f":"IF(tblREGASSJune19[[#This Row],[Total ($000)]]=0,\"NO\",IF(ISNA(tblREGASSJune19[[#This Row],[FUNC]]),\"YES\",IF(_xlfn.ISFORMULA(tblREGASSJune19[[#This Row],[FUNC]]),\"NO\",\"YES\")))","v":"NO"}]
[{"$f":"CONCATENATE(tblREGASSJune19[[#This Row],[Primary Account]],tblREGASSJune19[[#This Row],[Primary Name]],tblREGASSJune19[[#This Row],[Secondary Acct]],tblREGASSJune19[[#This Row],[Secondary  Name]],tblREGASSJune19[[#This Row],[Alloc4FUNC]])","v":"1823930DSR COSTS NOT AMORT103322COMMERCIAL DIRECT INSTALL - ID 2012OTHER"},1823930,"DSR COSTS NOT AMORT",103322,"COMMERCIAL DIRECT INSTALL - ID 2012","OTHER",8.1750000000000003E-2,{"$f":"IF(OR(tblREGASSJune19[[#This Row],[Alloc]]=\"IDU\",tblREGASSJune19[[#This Row],[Alloc]]=\"OR\",tblREGASSJune19[[#This Row],[Alloc]]=\"UT\",tblREGASSJune19[[#This Row],[Alloc]]=\"WYU\",tblREGASSJune19[[#This Row],[Alloc]]=\"WYP\",tblREGASSJune19[[#This Row],[Alloc]]=\"CA\",tblREGASSJune19[[#This Row],[Alloc]]=\"WA\"),\"SITUS\",tblREGASSJune19[[#This Row],[Alloc]])","v":"OTHER"},{"$f":"INDEX(tblREGASSLookup[FUNC],MATCH(tblREGASSJune19[[#This Row],[Concat]],tblREGASSLookup[Concat],0))","v":"CUST"},{"$f":"IF(tblREGASSJune19[[#This Row],[Total ($000)]]=0,\"NO\",IF(ISNA(tblREGASSJune19[[#This Row],[FUNC]]),\"YES\",IF(_xlfn.ISFORMULA(tblREGASSJune19[[#This Row],[FUNC]]),\"NO\",\"YES\")))","v":"NO"}]
[{"$f":"CONCATENATE(tblREGASSJune19[[#This Row],[Primary Account]],tblREGASSJune19[[#This Row],[Primary Name]],tblREGASSJune19[[#This Row],[Secondary Acct]],tblREGASSJune19[[#This Row],[Secondary  Name]],tblREGASSJune19[[#This Row],[Alloc4FUNC]])","v":"1823930DSR COSTS NOT AMORT103323AGRICULURAL FINANSWER EXPR - ID 2012OTHER"},1823930,"DSR COSTS NOT AMORT",103323,"AGRICULURAL FINANSWER EXPR - ID 2012","OTHER",7.4726400000000002,{"$f":"IF(OR(tblREGASSJune19[[#This Row],[Alloc]]=\"IDU\",tblREGASSJune19[[#This Row],[Alloc]]=\"OR\",tblREGASSJune19[[#This Row],[Alloc]]=\"UT\",tblREGASSJune19[[#This Row],[Alloc]]=\"WYU\",tblREGASSJune19[[#This Row],[Alloc]]=\"WYP\",tblREGASSJune19[[#This Row],[Alloc]]=\"CA\",tblREGASSJune19[[#This Row],[Alloc]]=\"WA\"),\"SITUS\",tblREGASSJune19[[#This Row],[Alloc]])","v":"OTHER"},{"$f":"INDEX(tblREGASSLookup[FUNC],MATCH(tblREGASSJune19[[#This Row],[Concat]],tblREGASSLookup[Concat],0))","v":"CUST"},{"$f":"IF(tblREGASSJune19[[#This Row],[Total ($000)]]=0,\"NO\",IF(ISNA(tblREGASSJune19[[#This Row],[FUNC]]),\"YES\",IF(_xlfn.ISFORMULA(tblREGASSJune19[[#This Row],[FUNC]]),\"NO\",\"YES\")))","v":"NO"}]
[{"$f":"CONCATENATE(tblREGASSJune19[[#This Row],[Primary Account]],tblREGASSJune19[[#This Row],[Primary Name]],tblREGASSJune19[[#This Row],[Secondary Acct]],tblREGASSJune19[[#This Row],[Secondary  Name]],tblREGASSJune19[[#This Row],[Alloc4FUNC]])","v":"1823930DSR COSTS NOT AMORT103396ENERGY MANAGEMENT-COMM - UT 2012OTHER"},1823930,"DSR COSTS NOT AMORT",103396,"ENERGY MANAGEMENT-COMM - UT 2012","OTHER",0,{"$f":"IF(OR(tblREGASSJune19[[#This Row],[Alloc]]=\"IDU\",tblREGASSJune19[[#This Row],[Alloc]]=\"OR\",tblREGASSJune19[[#This Row],[Alloc]]=\"UT\",tblREGASSJune19[[#This Row],[Alloc]]=\"WYU\",tblREGASSJune19[[#This Row],[Alloc]]=\"WYP\",tblREGASSJune19[[#This Row],[Alloc]]=\"CA\",tblREGASSJune19[[#This Row],[Alloc]]=\"WA\"),\"SITUS\",tblREGASSJune19[[#This Row],[Alloc]])","v":"OTHER"},{"$f":"INDEX(tblREGASSLookup[FUNC],MATCH(tblREGASSJune19[[#This Row],[Concat]],tblREGASSLookup[Concat],0))","v":{"$error":"#N/A"}},{"$f":"IF(tblREGASSJune19[[#This Row],[Total ($000)]]=0,\"NO\",IF(ISNA(tblREGASSJune19[[#This Row],[FUNC]]),\"YES\",IF(_xlfn.ISFORMULA(tblREGASSJune19[[#This Row],[FUNC]]),\"NO\",\"YES\")))","v":"NO"}]
[{"$f":"CONCATENATE(tblREGASSJune19[[#This Row],[Primary Account]],tblREGASSJune19[[#This Row],[Primary Name]],tblREGASSJune19[[#This Row],[Secondary Acct]],tblREGASSJune19[[#This Row],[Secondary  Name]],tblREGASSJune19[[#This Row],[Alloc4FUNC]])","v":"1823930DSR COSTS NOT AMORT103397ENERGY MANAGEMENT-IND - UT 2012OTHER"},1823930,"DSR COSTS NOT AMORT",103397,"ENERGY MANAGEMENT-IND - UT 2012","OTHER",0,{"$f":"IF(OR(tblREGASSJune19[[#This Row],[Alloc]]=\"IDU\",tblREGASSJune19[[#This Row],[Alloc]]=\"OR\",tblREGASSJune19[[#This Row],[Alloc]]=\"UT\",tblREGASSJune19[[#This Row],[Alloc]]=\"WYU\",tblREGASSJune19[[#This Row],[Alloc]]=\"WYP\",tblREGASSJune19[[#This Row],[Alloc]]=\"CA\",tblREGASSJune19[[#This Row],[Alloc]]=\"WA\"),\"SITUS\",tblREGASSJune19[[#This Row],[Alloc]])","v":"OTHER"},{"$f":"INDEX(tblREGASSLookup[FUNC],MATCH(tblREGASSJune19[[#This Row],[Concat]],tblREGASSLookup[Concat],0))","v":{"$error":"#N/A"}},{"$f":"IF(tblREGASSJune19[[#This Row],[Total ($000)]]=0,\"NO\",IF(ISNA(tblREGASSJune19[[#This Row],[FUNC]]),\"YES\",IF(_xlfn.ISFORMULA(tblREGASSJune19[[#This Row],[FUNC]]),\"NO\",\"YES\")))","v":"NO"}]
[{"$f":"CONCATENATE(tblREGASSJune19[[#This Row],[Primary Account]],tblREGASSJune19[[#This Row],[Primary Name]],tblREGASSJune19[[#This Row],[Secondary Acct]],tblREGASSJune19[[#This Row],[Secondary  Name]],tblREGASSJune19[[#This Row],[Alloc4FUNC]])","v":"1823930DSR COSTS NOT AMORT103398RECOMMISSIONING INDUSTRIAL - UT 2012OTHER"},1823930,"DSR COSTS NOT AMORT",103398,"RECOMMISSIONING INDUSTRIAL - UT 2012","OTHER",5.9971500000000004,{"$f":"IF(OR(tblREGASSJune19[[#This Row],[Alloc]]=\"IDU\",tblREGASSJune19[[#This Row],[Alloc]]=\"OR\",tblREGASSJune19[[#This Row],[Alloc]]=\"UT\",tblREGASSJune19[[#This Row],[Alloc]]=\"WYU\",tblREGASSJune19[[#This Row],[Alloc]]=\"WYP\",tblREGASSJune19[[#This Row],[Alloc]]=\"CA\",tblREGASSJune19[[#This Row],[Alloc]]=\"WA\"),\"SITUS\",tblREGASSJune19[[#This Row],[Alloc]])","v":"OTHER"},{"$f":"INDEX(tblREGASSLookup[FUNC],MATCH(tblREGASSJune19[[#This Row],[Concat]],tblREGASSLookup[Concat],0))","v":"CUST"},{"$f":"IF(tblREGASSJune19[[#This Row],[Total ($000)]]=0,\"NO\",IF(ISNA(tblREGASSJune19[[#This Row],[FUNC]]),\"YES\",IF(_xlfn.ISFORMULA(tblREGASSJune19[[#This Row],[FUNC]]),\"NO\",\"YES\")))","v":"NO"}]
[{"$f":"CONCATENATE(tblREGASSJune19[[#This Row],[Primary Account]],tblREGASSJune19[[#This Row],[Primary Name]],tblREGASSJune19[[#This Row],[Secondary Acct]],tblREGASSJune19[[#This Row],[Secondary  Name]],tblREGASSJune19[[#This Row],[Alloc4FUNC]])","v":"1823930DSR COSTS NOT AMORT103399ENERGY MANAGEMENT-COMM - WA 2012OTHER"},1823930,"DSR COSTS NOT AMORT",103399,"ENERGY MANAGEMENT-COMM - WA 2012","OTHER",0,{"$f":"IF(OR(tblREGASSJune19[[#This Row],[Alloc]]=\"IDU\",tblREGASSJune19[[#This Row],[Alloc]]=\"OR\",tblREGASSJune19[[#This Row],[Alloc]]=\"UT\",tblREGASSJune19[[#This Row],[Alloc]]=\"WYU\",tblREGASSJune19[[#This Row],[Alloc]]=\"WYP\",tblREGASSJune19[[#This Row],[Alloc]]=\"CA\",tblREGASSJune19[[#This Row],[Alloc]]=\"WA\"),\"SITUS\",tblREGASSJune19[[#This Row],[Alloc]])","v":"OTHER"},{"$f":"INDEX(tblREGASSLookup[FUNC],MATCH(tblREGASSJune19[[#This Row],[Concat]],tblREGASSLookup[Concat],0))","v":{"$error":"#N/A"}},{"$f":"IF(tblREGASSJune19[[#This Row],[Total ($000)]]=0,\"NO\",IF(ISNA(tblREGASSJune19[[#This Row],[FUNC]]),\"YES\",IF(_xlfn.ISFORMULA(tblREGASSJune19[[#This Row],[FUNC]]),\"NO\",\"YES\")))","v":"NO"}]
[{"$f":"CONCATENATE(tblREGASSJune19[[#This Row],[Primary Account]],tblREGASSJune19[[#This Row],[Primary Name]],tblREGASSJune19[[#This Row],[Secondary Acct]],tblREGASSJune19[[#This Row],[Secondary  Name]],tblREGASSJune19[[#This Row],[Alloc4FUNC]])","v":"1823930DSR COSTS NOT AMORT103400ENERGY MANAGEMENT-IND - WA 2012OTHER"},1823930,"DSR COSTS NOT AMORT",103400,"ENERGY MANAGEMENT-IND - WA 2012","OTHER",0,{"$f":"IF(OR(tblREGASSJune19[[#This Row],[Alloc]]=\"IDU\",tblREGASSJune19[[#This Row],[Alloc]]=\"OR\",tblREGASSJune19[[#This Row],[Alloc]]=\"UT\",tblREGASSJune19[[#This Row],[Alloc]]=\"WYU\",tblREGASSJune19[[#This Row],[Alloc]]=\"WYP\",tblREGASSJune19[[#This Row],[Alloc]]=\"CA\",tblREGASSJune19[[#This Row],[Alloc]]=\"WA\"),\"SITUS\",tblREGASSJune19[[#This Row],[Alloc]])","v":"OTHER"},{"$f":"INDEX(tblREGASSLookup[FUNC],MATCH(tblREGASSJune19[[#This Row],[Concat]],tblREGASSLookup[Concat],0))","v":{"$error":"#N/A"}},{"$f":"IF(tblREGASSJune19[[#This Row],[Total ($000)]]=0,\"NO\",IF(ISNA(tblREGASSJune19[[#This Row],[FUNC]]),\"YES\",IF(_xlfn.ISFORMULA(tblREGASSJune19[[#This Row],[FUNC]]),\"NO\",\"YES\")))","v":"NO"}]
[{"$f":"CONCATENATE(tblREGASSJune19[[#This Row],[Primary Account]],tblREGASSJune19[[#This Row],[Primary Name]],tblREGASSJune19[[#This Row],[Secondary Acct]],tblREGASSJune19[[#This Row],[Secondary  Name]],tblREGASSJune19[[#This Row],[Alloc4FUNC]])","v":"1823930DSR COSTS NOT AMORT103403ENERGY MGMT INDUST- WY CAT2 -2012OTHER"},1823930,"DSR COSTS NOT AMORT",103403,"ENERGY MGMT INDUST- WY CAT2 -2012","OTHER",0,{"$f":"IF(OR(tblREGASSJune19[[#This Row],[Alloc]]=\"IDU\",tblREGASSJune19[[#This Row],[Alloc]]=\"OR\",tblREGASSJune19[[#This Row],[Alloc]]=\"UT\",tblREGASSJune19[[#This Row],[Alloc]]=\"WYU\",tblREGASSJune19[[#This Row],[Alloc]]=\"WYP\",tblREGASSJune19[[#This Row],[Alloc]]=\"CA\",tblREGASSJune19[[#This Row],[Alloc]]=\"WA\"),\"SITUS\",tblREGASSJune19[[#This Row],[Alloc]])","v":"OTHER"},{"$f":"INDEX(tblREGASSLookup[FUNC],MATCH(tblREGASSJune19[[#This Row],[Concat]],tblREGASSLookup[Concat],0))","v":{"$error":"#N/A"}},{"$f":"IF(tblREGASSJune19[[#This Row],[Total ($000)]]=0,\"NO\",IF(ISNA(tblREGASSJune19[[#This Row],[FUNC]]),\"YES\",IF(_xlfn.ISFORMULA(tblREGASSJune19[[#This Row],[FUNC]]),\"NO\",\"YES\")))","v":"NO"}]
[{"$f":"CONCATENATE(tblREGASSJune19[[#This Row],[Primary Account]],tblREGASSJune19[[#This Row],[Primary Name]],tblREGASSJune19[[#This Row],[Secondary Acct]],tblREGASSJune19[[#This Row],[Secondary  Name]],tblREGASSJune19[[#This Row],[Alloc4FUNC]])","v":"1823930DSR COSTS NOT AMORT103634AGRICULURAL FINANSWER EXPR - ID 2013OTHER"},1823930,"DSR COSTS NOT AMORT",103634,"AGRICULURAL FINANSWER EXPR - ID 2013","OTHER",20.56673,{"$f":"IF(OR(tblREGASSJune19[[#This Row],[Alloc]]=\"IDU\",tblREGASSJune19[[#This Row],[Alloc]]=\"OR\",tblREGASSJune19[[#This Row],[Alloc]]=\"UT\",tblREGASSJune19[[#This Row],[Alloc]]=\"WYU\",tblREGASSJune19[[#This Row],[Alloc]]=\"WYP\",tblREGASSJune19[[#This Row],[Alloc]]=\"CA\",tblREGASSJune19[[#This Row],[Alloc]]=\"WA\"),\"SITUS\",tblREGASSJune19[[#This Row],[Alloc]])","v":"OTHER"},{"$f":"INDEX(tblREGASSLookup[FUNC],MATCH(tblREGASSJune19[[#This Row],[Concat]],tblREGASSLookup[Concat],0))","v":"CUST"},{"$f":"IF(tblREGASSJune19[[#This Row],[Total ($000)]]=0,\"NO\",IF(ISNA(tblREGASSJune19[[#This Row],[FUNC]]),\"YES\",IF(_xlfn.ISFORMULA(tblREGASSJune19[[#This Row],[FUNC]]),\"NO\",\"YES\")))","v":"NO"}]
[{"$f":"CONCATENATE(tblREGASSJune19[[#This Row],[Primary Account]],tblREGASSJune19[[#This Row],[Primary Name]],tblREGASSJune19[[#This Row],[Secondary Acct]],tblREGASSJune19[[#This Row],[Secondary  Name]],tblREGASSJune19[[#This Row],[Alloc4FUNC]])","v":"1823930DSR COSTS NOT AMORT103635ENERGY FINANSWER - ID 2013OTHER"},1823930,"DSR COSTS NOT AMORT",103635,"ENERGY FINANSWER - ID 2013","OTHER",77.020679999999999,{"$f":"IF(OR(tblREGASSJune19[[#This Row],[Alloc]]=\"IDU\",tblREGASSJune19[[#This Row],[Alloc]]=\"OR\",tblREGASSJune19[[#This Row],[Alloc]]=\"UT\",tblREGASSJune19[[#This Row],[Alloc]]=\"WYU\",tblREGASSJune19[[#This Row],[Alloc]]=\"WYP\",tblREGASSJune19[[#This Row],[Alloc]]=\"CA\",tblREGASSJune19[[#This Row],[Alloc]]=\"WA\"),\"SITUS\",tblREGASSJune19[[#This Row],[Alloc]])","v":"OTHER"},{"$f":"INDEX(tblREGASSLookup[FUNC],MATCH(tblREGASSJune19[[#This Row],[Concat]],tblREGASSLookup[Concat],0))","v":"CUST"},{"$f":"IF(tblREGASSJune19[[#This Row],[Total ($000)]]=0,\"NO\",IF(ISNA(tblREGASSJune19[[#This Row],[FUNC]]),\"YES\",IF(_xlfn.ISFORMULA(tblREGASSJune19[[#This Row],[FUNC]]),\"NO\",\"YES\")))","v":"NO"}]
[{"$f":"CONCATENATE(tblREGASSJune19[[#This Row],[Primary Account]],tblREGASSJune19[[#This Row],[Primary Name]],tblREGASSJune19[[#This Row],[Secondary Acct]],tblREGASSJune19[[#This Row],[Secondary  Name]],tblREGASSJune19[[#This Row],[Alloc4FUNC]])","v":"1823930DSR COSTS NOT AMORT103636INDUSTRIAL FINANSWER - ID 2013OTHER"},1823930,"DSR COSTS NOT AMORT",103636,"INDUSTRIAL FINANSWER - ID 2013","OTHER",294.46746000000002,{"$f":"IF(OR(tblREGASSJune19[[#This Row],[Alloc]]=\"IDU\",tblREGASSJune19[[#This Row],[Alloc]]=\"OR\",tblREGASSJune19[[#This Row],[Alloc]]=\"UT\",tblREGASSJune19[[#This Row],[Alloc]]=\"WYU\",tblREGASSJune19[[#This Row],[Alloc]]=\"WYP\",tblREGASSJune19[[#This Row],[Alloc]]=\"CA\",tblREGASSJune19[[#This Row],[Alloc]]=\"WA\"),\"SITUS\",tblREGASSJune19[[#This Row],[Alloc]])","v":"OTHER"},{"$f":"INDEX(tblREGASSLookup[FUNC],MATCH(tblREGASSJune19[[#This Row],[Concat]],tblREGASSLookup[Concat],0))","v":"CUST"},{"$f":"IF(tblREGASSJune19[[#This Row],[Total ($000)]]=0,\"NO\",IF(ISNA(tblREGASSJune19[[#This Row],[FUNC]]),\"YES\",IF(_xlfn.ISFORMULA(tblREGASSJune19[[#This Row],[FUNC]]),\"NO\",\"YES\")))","v":"NO"}]
[{"$f":"CONCATENATE(tblREGASSJune19[[#This Row],[Primary Account]],tblREGASSJune19[[#This Row],[Primary Name]],tblREGASSJune19[[#This Row],[Secondary Acct]],tblREGASSJune19[[#This Row],[Secondary  Name]],tblREGASSJune19[[#This Row],[Alloc4FUNC]])","v":"1823930DSR COSTS NOT AMORT103637IRRIGATION INTERRUPTIBLE- ID 2013OTHER"},1823930,"DSR COSTS NOT AMORT",103637,"IRRIGATION INTERRUPTIBLE- ID 2013","OTHER",0,{"$f":"IF(OR(tblREGASSJune19[[#This Row],[Alloc]]=\"IDU\",tblREGASSJune19[[#This Row],[Alloc]]=\"OR\",tblREGASSJune19[[#This Row],[Alloc]]=\"UT\",tblREGASSJune19[[#This Row],[Alloc]]=\"WYU\",tblREGASSJune19[[#This Row],[Alloc]]=\"WYP\",tblREGASSJune19[[#This Row],[Alloc]]=\"CA\",tblREGASSJune19[[#This Row],[Alloc]]=\"WA\"),\"SITUS\",tblREGASSJune19[[#This Row],[Alloc]])","v":"OTHER"},{"$f":"INDEX(tblREGASSLookup[FUNC],MATCH(tblREGASSJune19[[#This Row],[Concat]],tblREGASSLookup[Concat],0))","v":{"$error":"#N/A"}},{"$f":"IF(tblREGASSJune19[[#This Row],[Total ($000)]]=0,\"NO\",IF(ISNA(tblREGASSJune19[[#This Row],[FUNC]]),\"YES\",IF(_xlfn.ISFORMULA(tblREGASSJune19[[#This Row],[FUNC]]),\"NO\",\"YES\")))","v":"NO"}]
[{"$f":"CONCATENATE(tblREGASSJune19[[#This Row],[Primary Account]],tblREGASSJune19[[#This Row],[Primary Name]],tblREGASSJune19[[#This Row],[Secondary Acct]],tblREGASSJune19[[#This Row],[Secondary  Name]],tblREGASSJune19[[#This Row],[Alloc4FUNC]])","v":"1823930DSR COSTS NOT AMORT103638LOW INCOME WZ  - ID- 2013OTHER"},1823930,"DSR COSTS NOT AMORT",103638,"LOW INCOME WZ  - ID- 2013","OTHER",226.28635,{"$f":"IF(OR(tblREGASSJune19[[#This Row],[Alloc]]=\"IDU\",tblREGASSJune19[[#This Row],[Alloc]]=\"OR\",tblREGASSJune19[[#This Row],[Alloc]]=\"UT\",tblREGASSJune19[[#This Row],[Alloc]]=\"WYU\",tblREGASSJune19[[#This Row],[Alloc]]=\"WYP\",tblREGASSJune19[[#This Row],[Alloc]]=\"CA\",tblREGASSJune19[[#This Row],[Alloc]]=\"WA\"),\"SITUS\",tblREGASSJune19[[#This Row],[Alloc]])","v":"OTHER"},{"$f":"INDEX(tblREGASSLookup[FUNC],MATCH(tblREGASSJune19[[#This Row],[Concat]],tblREGASSLookup[Concat],0))","v":"CUST"},{"$f":"IF(tblREGASSJune19[[#This Row],[Total ($000)]]=0,\"NO\",IF(ISNA(tblREGASSJune19[[#This Row],[FUNC]]),\"YES\",IF(_xlfn.ISFORMULA(tblREGASSJune19[[#This Row],[FUNC]]),\"NO\",\"YES\")))","v":"NO"}]
[{"$f":"CONCATENATE(tblREGASSJune19[[#This Row],[Primary Account]],tblREGASSJune19[[#This Row],[Primary Name]],tblREGASSJune19[[#This Row],[Secondary Acct]],tblREGASSJune19[[#This Row],[Secondary  Name]],tblREGASSJune19[[#This Row],[Alloc4FUNC]])","v":"1823930DSR COSTS NOT AMORT103640REFRIGERATOR RECYCLING PGM - ID 2013OTHER"},1823930,"DSR COSTS NOT AMORT",103640,"REFRIGERATOR RECYCLING PGM - ID 2013","OTHER",115.10593,{"$f":"IF(OR(tblREGASSJune19[[#This Row],[Alloc]]=\"IDU\",tblREGASSJune19[[#This Row],[Alloc]]=\"OR\",tblREGASSJune19[[#This Row],[Alloc]]=\"UT\",tblREGASSJune19[[#This Row],[Alloc]]=\"WYU\",tblREGASSJune19[[#This Row],[Alloc]]=\"WYP\",tblREGASSJune19[[#This Row],[Alloc]]=\"CA\",tblREGASSJune19[[#This Row],[Alloc]]=\"WA\"),\"SITUS\",tblREGASSJune19[[#This Row],[Alloc]])","v":"OTHER"},{"$f":"INDEX(tblREGASSLookup[FUNC],MATCH(tblREGASSJune19[[#This Row],[Concat]],tblREGASSLookup[Concat],0))","v":"CUST"},{"$f":"IF(tblREGASSJune19[[#This Row],[Total ($000)]]=0,\"NO\",IF(ISNA(tblREGASSJune19[[#This Row],[FUNC]]),\"YES\",IF(_xlfn.ISFORMULA(tblREGASSJune19[[#This Row],[FUNC]]),\"NO\",\"YES\")))","v":"NO"}]
[{"$f":"CONCATENATE(tblREGASSJune19[[#This Row],[Primary Account]],tblREGASSJune19[[#This Row],[Primary Name]],tblREGASSJune19[[#This Row],[Secondary Acct]],tblREGASSJune19[[#This Row],[Secondary  Name]],tblREGASSJune19[[#This Row],[Alloc4FUNC]])","v":"1823930DSR COSTS NOT AMORT103641COMMERCIAL FINANSWER EXPR - ID 2013OTHER"},1823930,"DSR COSTS NOT AMORT",103641,"COMMERCIAL FINANSWER EXPR - ID 2013","OTHER",615.11851000000001,{"$f":"IF(OR(tblREGASSJune19[[#This Row],[Alloc]]=\"IDU\",tblREGASSJune19[[#This Row],[Alloc]]=\"OR\",tblREGASSJune19[[#This Row],[Alloc]]=\"UT\",tblREGASSJune19[[#This Row],[Alloc]]=\"WYU\",tblREGASSJune19[[#This Row],[Alloc]]=\"WYP\",tblREGASSJune19[[#This Row],[Alloc]]=\"CA\",tblREGASSJune19[[#This Row],[Alloc]]=\"WA\"),\"SITUS\",tblREGASSJune19[[#This Row],[Alloc]])","v":"OTHER"},{"$f":"INDEX(tblREGASSLookup[FUNC],MATCH(tblREGASSJune19[[#This Row],[Concat]],tblREGASSLookup[Concat],0))","v":"CUST"},{"$f":"IF(tblREGASSJune19[[#This Row],[Total ($000)]]=0,\"NO\",IF(ISNA(tblREGASSJune19[[#This Row],[FUNC]]),\"YES\",IF(_xlfn.ISFORMULA(tblREGASSJune19[[#This Row],[FUNC]]),\"NO\",\"YES\")))","v":"NO"}]
[{"$f":"CONCATENATE(tblREGASSJune19[[#This Row],[Primary Account]],tblREGASSJune19[[#This Row],[Primary Name]],tblREGASSJune19[[#This Row],[Secondary Acct]],tblREGASSJune19[[#This Row],[Secondary  Name]],tblREGASSJune19[[#This Row],[Alloc4FUNC]])","v":"1823930DSR COSTS NOT AMORT103642INDUSTRIAL FINANSWER EXPR - ID 2013OTHER"},1823930,"DSR COSTS NOT AMORT",103642,"INDUSTRIAL FINANSWER EXPR - ID 2013","OTHER",363.38632999999999,{"$f":"IF(OR(tblREGASSJune19[[#This Row],[Alloc]]=\"IDU\",tblREGASSJune19[[#This Row],[Alloc]]=\"OR\",tblREGASSJune19[[#This Row],[Alloc]]=\"UT\",tblREGASSJune19[[#This Row],[Alloc]]=\"WYU\",tblREGASSJune19[[#This Row],[Alloc]]=\"WYP\",tblREGASSJune19[[#This Row],[Alloc]]=\"CA\",tblREGASSJune19[[#This Row],[Alloc]]=\"WA\"),\"SITUS\",tblREGASSJune19[[#This Row],[Alloc]])","v":"OTHER"},{"$f":"INDEX(tblREGASSLookup[FUNC],MATCH(tblREGASSJune19[[#This Row],[Concat]],tblREGASSLookup[Concat],0))","v":"CUST"},{"$f":"IF(tblREGASSJune19[[#This Row],[Total ($000)]]=0,\"NO\",IF(ISNA(tblREGASSJune19[[#This Row],[FUNC]]),\"YES\",IF(_xlfn.ISFORMULA(tblREGASSJune19[[#This Row],[FUNC]]),\"NO\",\"YES\")))","v":"NO"}]
[{"$f":"CONCATENATE(tblREGASSJune19[[#This Row],[Primary Account]],tblREGASSJune19[[#This Row],[Primary Name]],tblREGASSJune19[[#This Row],[Secondary Acct]],tblREGASSJune19[[#This Row],[Secondary  Name]],tblREGASSJune19[[#This Row],[Alloc4FUNC]])","v":"1823930DSR COSTS NOT AMORT103643IRRIGATION EFFICIENCY PRGRM - ID 2013OTHER"},1823930,"DSR COSTS NOT AMORT",103643,"IRRIGATION EFFICIENCY PRGRM - ID 2013","OTHER",1221.7800500000001,{"$f":"IF(OR(tblREGASSJune19[[#This Row],[Alloc]]=\"IDU\",tblREGASSJune19[[#This Row],[Alloc]]=\"OR\",tblREGASSJune19[[#This Row],[Alloc]]=\"UT\",tblREGASSJune19[[#This Row],[Alloc]]=\"WYU\",tblREGASSJune19[[#This Row],[Alloc]]=\"WYP\",tblREGASSJune19[[#This Row],[Alloc]]=\"CA\",tblREGASSJune19[[#This Row],[Alloc]]=\"WA\"),\"SITUS\",tblREGASSJune19[[#This Row],[Alloc]])","v":"OTHER"},{"$f":"INDEX(tblREGASSLookup[FUNC],MATCH(tblREGASSJune19[[#This Row],[Concat]],tblREGASSLookup[Concat],0))","v":"CUST"},{"$f":"IF(tblREGASSJune19[[#This Row],[Total ($000)]]=0,\"NO\",IF(ISNA(tblREGASSJune19[[#This Row],[FUNC]]),\"YES\",IF(_xlfn.ISFORMULA(tblREGASSJune19[[#This Row],[FUNC]]),\"NO\",\"YES\")))","v":"NO"}]
[{"$f":"CONCATENATE(tblREGASSJune19[[#This Row],[Primary Account]],tblREGASSJune19[[#This Row],[Primary Name]],tblREGASSJune19[[#This Row],[Secondary Acct]],tblREGASSJune19[[#This Row],[Secondary  Name]],tblREGASSJune19[[#This Row],[Alloc4FUNC]])","v":"1823930DSR COSTS NOT AMORT103644HOME ENERGY EFFICIENCY INCENTIVE PROG  -OTHER"},1823930,"DSR COSTS NOT AMORT",103644,"HOME ENERGY EFFICIENCY INCENTIVE PROG  -","OTHER",843.82664999999997,{"$f":"IF(OR(tblREGASSJune19[[#This Row],[Alloc]]=\"IDU\",tblREGASSJune19[[#This Row],[Alloc]]=\"OR\",tblREGASSJune19[[#This Row],[Alloc]]=\"UT\",tblREGASSJune19[[#This Row],[Alloc]]=\"WYU\",tblREGASSJune19[[#This Row],[Alloc]]=\"WYP\",tblREGASSJune19[[#This Row],[Alloc]]=\"CA\",tblREGASSJune19[[#This Row],[Alloc]]=\"WA\"),\"SITUS\",tblREGASSJune19[[#This Row],[Alloc]])","v":"OTHER"},{"$f":"INDEX(tblREGASSLookup[FUNC],MATCH(tblREGASSJune19[[#This Row],[Concat]],tblREGASSLookup[Concat],0))","v":"CUST"},{"$f":"IF(tblREGASSJune19[[#This Row],[Total ($000)]]=0,\"NO\",IF(ISNA(tblREGASSJune19[[#This Row],[FUNC]]),\"YES\",IF(_xlfn.ISFORMULA(tblREGASSJune19[[#This Row],[FUNC]]),\"NO\",\"YES\")))","v":"NO"}]
[{"$f":"CONCATENATE(tblREGASSJune19[[#This Row],[Primary Account]],tblREGASSJune19[[#This Row],[Primary Name]],tblREGASSJune19[[#This Row],[Secondary Acct]],tblREGASSJune19[[#This Row],[Secondary  Name]],tblREGASSJune19[[#This Row],[Alloc4FUNC]])","v":"1823930DSR COSTS NOT AMORT103672RECOMMISSIONING INDUSTRIAL - UT 2013OTHER"},1823930,"DSR COSTS NOT AMORT",103672,"RECOMMISSIONING INDUSTRIAL - UT 2013","OTHER",57.58267,{"$f":"IF(OR(tblREGASSJune19[[#This Row],[Alloc]]=\"IDU\",tblREGASSJune19[[#This Row],[Alloc]]=\"OR\",tblREGASSJune19[[#This Row],[Alloc]]=\"UT\",tblREGASSJune19[[#This Row],[Alloc]]=\"WYU\",tblREGASSJune19[[#This Row],[Alloc]]=\"WYP\",tblREGASSJune19[[#This Row],[Alloc]]=\"CA\",tblREGASSJune19[[#This Row],[Alloc]]=\"WA\"),\"SITUS\",tblREGASSJune19[[#This Row],[Alloc]])","v":"OTHER"},{"$f":"INDEX(tblREGASSLookup[FUNC],MATCH(tblREGASSJune19[[#This Row],[Concat]],tblREGASSLookup[Concat],0))","v":"CUST"},{"$f":"IF(tblREGASSJune19[[#This Row],[Total ($000)]]=0,\"NO\",IF(ISNA(tblREGASSJune19[[#This Row],[FUNC]]),\"YES\",IF(_xlfn.ISFORMULA(tblREGASSJune19[[#This Row],[FUNC]]),\"NO\",\"YES\")))","v":"NO"}]
[{"$f":"CONCATENATE(tblREGASSJune19[[#This Row],[Primary Account]],tblREGASSJune19[[#This Row],[Primary Name]],tblREGASSJune19[[#This Row],[Secondary Acct]],tblREGASSJune19[[#This Row],[Secondary  Name]],tblREGASSJune19[[#This Row],[Alloc4FUNC]])","v":"1823930DSR COSTS NOT AMORT103746AGRICULURAL FINANSWER EXPR - ID 2014OTHER"},1823930,"DSR COSTS NOT AMORT",103746,"AGRICULURAL FINANSWER EXPR - ID 2014","OTHER",121.60559000000001,{"$f":"IF(OR(tblREGASSJune19[[#This Row],[Alloc]]=\"IDU\",tblREGASSJune19[[#This Row],[Alloc]]=\"OR\",tblREGASSJune19[[#This Row],[Alloc]]=\"UT\",tblREGASSJune19[[#This Row],[Alloc]]=\"WYU\",tblREGASSJune19[[#This Row],[Alloc]]=\"WYP\",tblREGASSJune19[[#This Row],[Alloc]]=\"CA\",tblREGASSJune19[[#This Row],[Alloc]]=\"WA\"),\"SITUS\",tblREGASSJune19[[#This Row],[Alloc]])","v":"OTHER"},{"$f":"INDEX(tblREGASSLookup[FUNC],MATCH(tblREGASSJune19[[#This Row],[Concat]],tblREGASSLookup[Concat],0))","v":"CUST"},{"$f":"IF(tblREGASSJune19[[#This Row],[Total ($000)]]=0,\"NO\",IF(ISNA(tblREGASSJune19[[#This Row],[FUNC]]),\"YES\",IF(_xlfn.ISFORMULA(tblREGASSJune19[[#This Row],[FUNC]]),\"NO\",\"YES\")))","v":"NO"}]
[{"$f":"CONCATENATE(tblREGASSJune19[[#This Row],[Primary Account]],tblREGASSJune19[[#This Row],[Primary Name]],tblREGASSJune19[[#This Row],[Secondary Acct]],tblREGASSJune19[[#This Row],[Secondary  Name]],tblREGASSJune19[[#This Row],[Alloc4FUNC]])","v":"1823930DSR COSTS NOT AMORT103747COMMERCIAL FINANSWER EXPR - ID 2014OTHER"},1823930,"DSR COSTS NOT AMORT",103747,"COMMERCIAL FINANSWER EXPR - ID 2014","OTHER",682.87081000000001,{"$f":"IF(OR(tblREGASSJune19[[#This Row],[Alloc]]=\"IDU\",tblREGASSJune19[[#This Row],[Alloc]]=\"OR\",tblREGASSJune19[[#This Row],[Alloc]]=\"UT\",tblREGASSJune19[[#This Row],[Alloc]]=\"WYU\",tblREGASSJune19[[#This Row],[Alloc]]=\"WYP\",tblREGASSJune19[[#This Row],[Alloc]]=\"CA\",tblREGASSJune19[[#This Row],[Alloc]]=\"WA\"),\"SITUS\",tblREGASSJune19[[#This Row],[Alloc]])","v":"OTHER"},{"$f":"INDEX(tblREGASSLookup[FUNC],MATCH(tblREGASSJune19[[#This Row],[Concat]],tblREGASSLookup[Concat],0))","v":"CUST"},{"$f":"IF(tblREGASSJune19[[#This Row],[Total ($000)]]=0,\"NO\",IF(ISNA(tblREGASSJune19[[#This Row],[FUNC]]),\"YES\",IF(_xlfn.ISFORMULA(tblREGASSJune19[[#This Row],[FUNC]]),\"NO\",\"YES\")))","v":"NO"}]
[{"$f":"CONCATENATE(tblREGASSJune19[[#This Row],[Primary Account]],tblREGASSJune19[[#This Row],[Primary Name]],tblREGASSJune19[[#This Row],[Secondary Acct]],tblREGASSJune19[[#This Row],[Secondary  Name]],tblREGASSJune19[[#This Row],[Alloc4FUNC]])","v":"1823930DSR COSTS NOT AMORT103748ENERGY FINANSWER - ID 2014OTHER"},1823930,"DSR COSTS NOT AMORT",103748,"ENERGY FINANSWER - ID 2014","OTHER",153.74046999999999,{"$f":"IF(OR(tblREGASSJune19[[#This Row],[Alloc]]=\"IDU\",tblREGASSJune19[[#This Row],[Alloc]]=\"OR\",tblREGASSJune19[[#This Row],[Alloc]]=\"UT\",tblREGASSJune19[[#This Row],[Alloc]]=\"WYU\",tblREGASSJune19[[#This Row],[Alloc]]=\"WYP\",tblREGASSJune19[[#This Row],[Alloc]]=\"CA\",tblREGASSJune19[[#This Row],[Alloc]]=\"WA\"),\"SITUS\",tblREGASSJune19[[#This Row],[Alloc]])","v":"OTHER"},{"$f":"INDEX(tblREGASSLookup[FUNC],MATCH(tblREGASSJune19[[#This Row],[Concat]],tblREGASSLookup[Concat],0))","v":"CUST"},{"$f":"IF(tblREGASSJune19[[#This Row],[Total ($000)]]=0,\"NO\",IF(ISNA(tblREGASSJune19[[#This Row],[FUNC]]),\"YES\",IF(_xlfn.ISFORMULA(tblREGASSJune19[[#This Row],[FUNC]]),\"NO\",\"YES\")))","v":"NO"}]
[{"$f":"CONCATENATE(tblREGASSJune19[[#This Row],[Primary Account]],tblREGASSJune19[[#This Row],[Primary Name]],tblREGASSJune19[[#This Row],[Secondary Acct]],tblREGASSJune19[[#This Row],[Secondary  Name]],tblREGASSJune19[[#This Row],[Alloc4FUNC]])","v":"1823930DSR COSTS NOT AMORT103749HOME ENERGY EFFICIENCY INCENTIVE PROG  -OTHER"},1823930,"DSR COSTS NOT AMORT",103749,"HOME ENERGY EFFICIENCY INCENTIVE PROG  -","OTHER",854.31682999999998,{"$f":"IF(OR(tblREGASSJune19[[#This Row],[Alloc]]=\"IDU\",tblREGASSJune19[[#This Row],[Alloc]]=\"OR\",tblREGASSJune19[[#This Row],[Alloc]]=\"UT\",tblREGASSJune19[[#This Row],[Alloc]]=\"WYU\",tblREGASSJune19[[#This Row],[Alloc]]=\"WYP\",tblREGASSJune19[[#This Row],[Alloc]]=\"CA\",tblREGASSJune19[[#This Row],[Alloc]]=\"WA\"),\"SITUS\",tblREGASSJune19[[#This Row],[Alloc]])","v":"OTHER"},{"$f":"INDEX(tblREGASSLookup[FUNC],MATCH(tblREGASSJune19[[#This Row],[Concat]],tblREGASSLookup[Concat],0))","v":"CUST"},{"$f":"IF(tblREGASSJune19[[#This Row],[Total ($000)]]=0,\"NO\",IF(ISNA(tblREGASSJune19[[#This Row],[FUNC]]),\"YES\",IF(_xlfn.ISFORMULA(tblREGASSJune19[[#This Row],[FUNC]]),\"NO\",\"YES\")))","v":"NO"}]
[{"$f":"CONCATENATE(tblREGASSJune19[[#This Row],[Primary Account]],tblREGASSJune19[[#This Row],[Primary Name]],tblREGASSJune19[[#This Row],[Secondary Acct]],tblREGASSJune19[[#This Row],[Secondary  Name]],tblREGASSJune19[[#This Row],[Alloc4FUNC]])","v":"1823930DSR COSTS NOT AMORT103750INDUSTRIAL FINANSWER - ID 2014OTHER"},1823930,"DSR COSTS NOT AMORT",103750,"INDUSTRIAL FINANSWER - ID 2014","OTHER",104.98147,{"$f":"IF(OR(tblREGASSJune19[[#This Row],[Alloc]]=\"IDU\",tblREGASSJune19[[#This Row],[Alloc]]=\"OR\",tblREGASSJune19[[#This Row],[Alloc]]=\"UT\",tblREGASSJune19[[#This Row],[Alloc]]=\"WYU\",tblREGASSJune19[[#This Row],[Alloc]]=\"WYP\",tblREGASSJune19[[#This Row],[Alloc]]=\"CA\",tblREGASSJune19[[#This Row],[Alloc]]=\"WA\"),\"SITUS\",tblREGASSJune19[[#This Row],[Alloc]])","v":"OTHER"},{"$f":"INDEX(tblREGASSLookup[FUNC],MATCH(tblREGASSJune19[[#This Row],[Concat]],tblREGASSLookup[Concat],0))","v":"CUST"},{"$f":"IF(tblREGASSJune19[[#This Row],[Total ($000)]]=0,\"NO\",IF(ISNA(tblREGASSJune19[[#This Row],[FUNC]]),\"YES\",IF(_xlfn.ISFORMULA(tblREGASSJune19[[#This Row],[FUNC]]),\"NO\",\"YES\")))","v":"NO"}]
[{"$f":"CONCATENATE(tblREGASSJune19[[#This Row],[Primary Account]],tblREGASSJune19[[#This Row],[Primary Name]],tblREGASSJune19[[#This Row],[Secondary Acct]],tblREGASSJune19[[#This Row],[Secondary  Name]],tblREGASSJune19[[#This Row],[Alloc4FUNC]])","v":"1823930DSR COSTS NOT AMORT103751INDUSTRIAL FINANSWER EXPR - ID 2014OTHER"},1823930,"DSR COSTS NOT AMORT",103751,"INDUSTRIAL FINANSWER EXPR - ID 2014","OTHER",267.80570999999998,{"$f":"IF(OR(tblREGASSJune19[[#This Row],[Alloc]]=\"IDU\",tblREGASSJune19[[#This Row],[Alloc]]=\"OR\",tblREGASSJune19[[#This Row],[Alloc]]=\"UT\",tblREGASSJune19[[#This Row],[Alloc]]=\"WYU\",tblREGASSJune19[[#This Row],[Alloc]]=\"WYP\",tblREGASSJune19[[#This Row],[Alloc]]=\"CA\",tblREGASSJune19[[#This Row],[Alloc]]=\"WA\"),\"SITUS\",tblREGASSJune19[[#This Row],[Alloc]])","v":"OTHER"},{"$f":"INDEX(tblREGASSLookup[FUNC],MATCH(tblREGASSJune19[[#This Row],[Concat]],tblREGASSLookup[Concat],0))","v":"CUST"},{"$f":"IF(tblREGASSJune19[[#This Row],[Total ($000)]]=0,\"NO\",IF(ISNA(tblREGASSJune19[[#This Row],[FUNC]]),\"YES\",IF(_xlfn.ISFORMULA(tblREGASSJune19[[#This Row],[FUNC]]),\"NO\",\"YES\")))","v":"NO"}]
[{"$f":"CONCATENATE(tblREGASSJune19[[#This Row],[Primary Account]],tblREGASSJune19[[#This Row],[Primary Name]],tblREGASSJune19[[#This Row],[Secondary Acct]],tblREGASSJune19[[#This Row],[Secondary  Name]],tblREGASSJune19[[#This Row],[Alloc4FUNC]])","v":"1823930DSR COSTS NOT AMORT103752IRRIGATION EFFICIENCY PRGRM - ID 2014OTHER"},1823930,"DSR COSTS NOT AMORT",103752,"IRRIGATION EFFICIENCY PRGRM - ID 2014","OTHER",449.08541000000002,{"$f":"IF(OR(tblREGASSJune19[[#This Row],[Alloc]]=\"IDU\",tblREGASSJune19[[#This Row],[Alloc]]=\"OR\",tblREGASSJune19[[#This Row],[Alloc]]=\"UT\",tblREGASSJune19[[#This Row],[Alloc]]=\"WYU\",tblREGASSJune19[[#This Row],[Alloc]]=\"WYP\",tblREGASSJune19[[#This Row],[Alloc]]=\"CA\",tblREGASSJune19[[#This Row],[Alloc]]=\"WA\"),\"SITUS\",tblREGASSJune19[[#This Row],[Alloc]])","v":"OTHER"},{"$f":"INDEX(tblREGASSLookup[FUNC],MATCH(tblREGASSJune19[[#This Row],[Concat]],tblREGASSLookup[Concat],0))","v":"CUST"},{"$f":"IF(tblREGASSJune19[[#This Row],[Total ($000)]]=0,\"NO\",IF(ISNA(tblREGASSJune19[[#This Row],[FUNC]]),\"YES\",IF(_xlfn.ISFORMULA(tblREGASSJune19[[#This Row],[FUNC]]),\"NO\",\"YES\")))","v":"NO"}]
[{"$f":"CONCATENATE(tblREGASSJune19[[#This Row],[Primary Account]],tblREGASSJune19[[#This Row],[Primary Name]],tblREGASSJune19[[#This Row],[Secondary Acct]],tblREGASSJune19[[#This Row],[Secondary  Name]],tblREGASSJune19[[#This Row],[Alloc4FUNC]])","v":"1823930DSR COSTS NOT AMORT103753LOW INCOME WZ  - ID- 2014OTHER"},1823930,"DSR COSTS NOT AMORT",103753,"LOW INCOME WZ  - ID- 2014","OTHER",297.81939999999997,{"$f":"IF(OR(tblREGASSJune19[[#This Row],[Alloc]]=\"IDU\",tblREGASSJune19[[#This Row],[Alloc]]=\"OR\",tblREGASSJune19[[#This Row],[Alloc]]=\"UT\",tblREGASSJune19[[#This Row],[Alloc]]=\"WYU\",tblREGASSJune19[[#This Row],[Alloc]]=\"WYP\",tblREGASSJune19[[#This Row],[Alloc]]=\"CA\",tblREGASSJune19[[#This Row],[Alloc]]=\"WA\"),\"SITUS\",tblREGASSJune19[[#This Row],[Alloc]])","v":"OTHER"},{"$f":"INDEX(tblREGASSLookup[FUNC],MATCH(tblREGASSJune19[[#This Row],[Concat]],tblREGASSLookup[Concat],0))","v":"CUST"},{"$f":"IF(tblREGASSJune19[[#This Row],[Total ($000)]]=0,\"NO\",IF(ISNA(tblREGASSJune19[[#This Row],[FUNC]]),\"YES\",IF(_xlfn.ISFORMULA(tblREGASSJune19[[#This Row],[FUNC]]),\"NO\",\"YES\")))","v":"NO"}]
[{"$f":"CONCATENATE(tblREGASSJune19[[#This Row],[Primary Account]],tblREGASSJune19[[#This Row],[Primary Name]],tblREGASSJune19[[#This Row],[Secondary Acct]],tblREGASSJune19[[#This Row],[Secondary  Name]],tblREGASSJune19[[#This Row],[Alloc4FUNC]])","v":"1823930DSR COSTS NOT AMORT103755REFRIGERATOR RECYCLING PGM - ID 2014OTHER"},1823930,"DSR COSTS NOT AMORT",103755,"REFRIGERATOR RECYCLING PGM - ID 2014","OTHER",121.88800000000001,{"$f":"IF(OR(tblREGASSJune19[[#This Row],[Alloc]]=\"IDU\",tblREGASSJune19[[#This Row],[Alloc]]=\"OR\",tblREGASSJune19[[#This Row],[Alloc]]=\"UT\",tblREGASSJune19[[#This Row],[Alloc]]=\"WYU\",tblREGASSJune19[[#This Row],[Alloc]]=\"WYP\",tblREGASSJune19[[#This Row],[Alloc]]=\"CA\",tblREGASSJune19[[#This Row],[Alloc]]=\"WA\"),\"SITUS\",tblREGASSJune19[[#This Row],[Alloc]])","v":"OTHER"},{"$f":"INDEX(tblREGASSLookup[FUNC],MATCH(tblREGASSJune19[[#This Row],[Concat]],tblREGASSLookup[Concat],0))","v":"CUST"},{"$f":"IF(tblREGASSJune19[[#This Row],[Total ($000)]]=0,\"NO\",IF(ISNA(tblREGASSJune19[[#This Row],[FUNC]]),\"YES\",IF(_xlfn.ISFORMULA(tblREGASSJune19[[#This Row],[FUNC]]),\"NO\",\"YES\")))","v":"NO"}]
[{"$f":"CONCATENATE(tblREGASSJune19[[#This Row],[Primary Account]],tblREGASSJune19[[#This Row],[Primary Name]],tblREGASSJune19[[#This Row],[Secondary Acct]],tblREGASSJune19[[#This Row],[Secondary  Name]],tblREGASSJune19[[#This Row],[Alloc4FUNC]])","v":"1823930DSR COSTS NOT AMORT103866AGRICULURAL FINANSWER EXPR - ID 2015OTHER"},1823930,"DSR COSTS NOT AMORT",103866,"AGRICULURAL FINANSWER EXPR - ID 2015","OTHER",2.0491999999999999,{"$f":"IF(OR(tblREGASSJune19[[#This Row],[Alloc]]=\"IDU\",tblREGASSJune19[[#This Row],[Alloc]]=\"OR\",tblREGASSJune19[[#This Row],[Alloc]]=\"UT\",tblREGASSJune19[[#This Row],[Alloc]]=\"WYU\",tblREGASSJune19[[#This Row],[Alloc]]=\"WYP\",tblREGASSJune19[[#This Row],[Alloc]]=\"CA\",tblREGASSJune19[[#This Row],[Alloc]]=\"WA\"),\"SITUS\",tblREGASSJune19[[#This Row],[Alloc]])","v":"OTHER"},{"$f":"INDEX(tblREGASSLookup[FUNC],MATCH(tblREGASSJune19[[#This Row],[Concat]],tblREGASSLookup[Concat],0))","v":"CUST"},{"$f":"IF(tblREGASSJune19[[#This Row],[Total ($000)]]=0,\"NO\",IF(ISNA(tblREGASSJune19[[#This Row],[FUNC]]),\"YES\",IF(_xlfn.ISFORMULA(tblREGASSJune19[[#This Row],[FUNC]]),\"NO\",\"YES\")))","v":"NO"}]
[{"$f":"CONCATENATE(tblREGASSJune19[[#This Row],[Primary Account]],tblREGASSJune19[[#This Row],[Primary Name]],tblREGASSJune19[[#This Row],[Secondary Acct]],tblREGASSJune19[[#This Row],[Secondary  Name]],tblREGASSJune19[[#This Row],[Alloc4FUNC]])","v":"1823930DSR COSTS NOT AMORT103867COMMERCIAL FINANSWER EXPR - ID 2015OTHER"},1823930,"DSR COSTS NOT AMORT",103867,"COMMERCIAL FINANSWER EXPR - ID 2015","OTHER",157.44874999999999,{"$f":"IF(OR(tblREGASSJune19[[#This Row],[Alloc]]=\"IDU\",tblREGASSJune19[[#This Row],[Alloc]]=\"OR\",tblREGASSJune19[[#This Row],[Alloc]]=\"UT\",tblREGASSJune19[[#This Row],[Alloc]]=\"WYU\",tblREGASSJune19[[#This Row],[Alloc]]=\"WYP\",tblREGASSJune19[[#This Row],[Alloc]]=\"CA\",tblREGASSJune19[[#This Row],[Alloc]]=\"WA\"),\"SITUS\",tblREGASSJune19[[#This Row],[Alloc]])","v":"OTHER"},{"$f":"INDEX(tblREGASSLookup[FUNC],MATCH(tblREGASSJune19[[#This Row],[Concat]],tblREGASSLookup[Concat],0))","v":"CUST"},{"$f":"IF(tblREGASSJune19[[#This Row],[Total ($000)]]=0,\"NO\",IF(ISNA(tblREGASSJune19[[#This Row],[FUNC]]),\"YES\",IF(_xlfn.ISFORMULA(tblREGASSJune19[[#This Row],[FUNC]]),\"NO\",\"YES\")))","v":"NO"}]
[{"$f":"CONCATENATE(tblREGASSJune19[[#This Row],[Primary Account]],tblREGASSJune19[[#This Row],[Primary Name]],tblREGASSJune19[[#This Row],[Secondary Acct]],tblREGASSJune19[[#This Row],[Secondary  Name]],tblREGASSJune19[[#This Row],[Alloc4FUNC]])","v":"1823930DSR COSTS NOT AMORT103868ENERGY FINANSWER - ID 2015OTHER"},1823930,"DSR COSTS NOT AMORT",103868,"ENERGY FINANSWER - ID 2015","OTHER",5.7079300000000002,{"$f":"IF(OR(tblREGASSJune19[[#This Row],[Alloc]]=\"IDU\",tblREGASSJune19[[#This Row],[Alloc]]=\"OR\",tblREGASSJune19[[#This Row],[Alloc]]=\"UT\",tblREGASSJune19[[#This Row],[Alloc]]=\"WYU\",tblREGASSJune19[[#This Row],[Alloc]]=\"WYP\",tblREGASSJune19[[#This Row],[Alloc]]=\"CA\",tblREGASSJune19[[#This Row],[Alloc]]=\"WA\"),\"SITUS\",tblREGASSJune19[[#This Row],[Alloc]])","v":"OTHER"},{"$f":"INDEX(tblREGASSLookup[FUNC],MATCH(tblREGASSJune19[[#This Row],[Concat]],tblREGASSLookup[Concat],0))","v":"CUST"},{"$f":"IF(tblREGASSJune19[[#This Row],[Total ($000)]]=0,\"NO\",IF(ISNA(tblREGASSJune19[[#This Row],[FUNC]]),\"YES\",IF(_xlfn.ISFORMULA(tblREGASSJune19[[#This Row],[FUNC]]),\"NO\",\"YES\")))","v":"NO"}]
[{"$f":"CONCATENATE(tblREGASSJune19[[#This Row],[Primary Account]],tblREGASSJune19[[#This Row],[Primary Name]],tblREGASSJune19[[#This Row],[Secondary Acct]],tblREGASSJune19[[#This Row],[Secondary  Name]],tblREGASSJune19[[#This Row],[Alloc4FUNC]])","v":"1823930DSR COSTS NOT AMORT103869HOME ENERGY EFFICIENCY INCENTIVE PROG  -OTHER"},1823930,"DSR COSTS NOT AMORT",103869,"HOME ENERGY EFFICIENCY INCENTIVE PROG  -","OTHER",848.10026000000005,{"$f":"IF(OR(tblREGASSJune19[[#This Row],[Alloc]]=\"IDU\",tblREGASSJune19[[#This Row],[Alloc]]=\"OR\",tblREGASSJune19[[#This Row],[Alloc]]=\"UT\",tblREGASSJune19[[#This Row],[Alloc]]=\"WYU\",tblREGASSJune19[[#This Row],[Alloc]]=\"WYP\",tblREGASSJune19[[#This Row],[Alloc]]=\"CA\",tblREGASSJune19[[#This Row],[Alloc]]=\"WA\"),\"SITUS\",tblREGASSJune19[[#This Row],[Alloc]])","v":"OTHER"},{"$f":"INDEX(tblREGASSLookup[FUNC],MATCH(tblREGASSJune19[[#This Row],[Concat]],tblREGASSLookup[Concat],0))","v":"CUST"},{"$f":"IF(tblREGASSJune19[[#This Row],[Total ($000)]]=0,\"NO\",IF(ISNA(tblREGASSJune19[[#This Row],[FUNC]]),\"YES\",IF(_xlfn.ISFORMULA(tblREGASSJune19[[#This Row],[FUNC]]),\"NO\",\"YES\")))","v":"NO"}]
[{"$f":"CONCATENATE(tblREGASSJune19[[#This Row],[Primary Account]],tblREGASSJune19[[#This Row],[Primary Name]],tblREGASSJune19[[#This Row],[Secondary Acct]],tblREGASSJune19[[#This Row],[Secondary  Name]],tblREGASSJune19[[#This Row],[Alloc4FUNC]])","v":"1823930DSR COSTS NOT AMORT103870INDUSTRIAL FINANSWER - ID 2015OTHER"},1823930,"DSR COSTS NOT AMORT",103870,"INDUSTRIAL FINANSWER - ID 2015","OTHER",62.730440000000002,{"$f":"IF(OR(tblREGASSJune19[[#This Row],[Alloc]]=\"IDU\",tblREGASSJune19[[#This Row],[Alloc]]=\"OR\",tblREGASSJune19[[#This Row],[Alloc]]=\"UT\",tblREGASSJune19[[#This Row],[Alloc]]=\"WYU\",tblREGASSJune19[[#This Row],[Alloc]]=\"WYP\",tblREGASSJune19[[#This Row],[Alloc]]=\"CA\",tblREGASSJune19[[#This Row],[Alloc]]=\"WA\"),\"SITUS\",tblREGASSJune19[[#This Row],[Alloc]])","v":"OTHER"},{"$f":"INDEX(tblREGASSLookup[FUNC],MATCH(tblREGASSJune19[[#This Row],[Concat]],tblREGASSLookup[Concat],0))","v":"CUST"},{"$f":"IF(tblREGASSJune19[[#This Row],[Total ($000)]]=0,\"NO\",IF(ISNA(tblREGASSJune19[[#This Row],[FUNC]]),\"YES\",IF(_xlfn.ISFORMULA(tblREGASSJune19[[#This Row],[FUNC]]),\"NO\",\"YES\")))","v":"NO"}]
[{"$f":"CONCATENATE(tblREGASSJune19[[#This Row],[Primary Account]],tblREGASSJune19[[#This Row],[Primary Name]],tblREGASSJune19[[#This Row],[Secondary Acct]],tblREGASSJune19[[#This Row],[Secondary  Name]],tblREGASSJune19[[#This Row],[Alloc4FUNC]])","v":"1823930DSR COSTS NOT AMORT103871INDUSTRIAL FINANSWER EXPR - ID 2015OTHER"},1823930,"DSR COSTS NOT AMORT",103871,"INDUSTRIAL FINANSWER EXPR - ID 2015","OTHER",79.587940000000003,{"$f":"IF(OR(tblREGASSJune19[[#This Row],[Alloc]]=\"IDU\",tblREGASSJune19[[#This Row],[Alloc]]=\"OR\",tblREGASSJune19[[#This Row],[Alloc]]=\"UT\",tblREGASSJune19[[#This Row],[Alloc]]=\"WYU\",tblREGASSJune19[[#This Row],[Alloc]]=\"WYP\",tblREGASSJune19[[#This Row],[Alloc]]=\"CA\",tblREGASSJune19[[#This Row],[Alloc]]=\"WA\"),\"SITUS\",tblREGASSJune19[[#This Row],[Alloc]])","v":"OTHER"},{"$f":"INDEX(tblREGASSLookup[FUNC],MATCH(tblREGASSJune19[[#This Row],[Concat]],tblREGASSLookup[Concat],0))","v":"CUST"},{"$f":"IF(tblREGASSJune19[[#This Row],[Total ($000)]]=0,\"NO\",IF(ISNA(tblREGASSJune19[[#This Row],[FUNC]]),\"YES\",IF(_xlfn.ISFORMULA(tblREGASSJune19[[#This Row],[FUNC]]),\"NO\",\"YES\")))","v":"NO"}]
[{"$f":"CONCATENATE(tblREGASSJune19[[#This Row],[Primary Account]],tblREGASSJune19[[#This Row],[Primary Name]],tblREGASSJune19[[#This Row],[Secondary Acct]],tblREGASSJune19[[#This Row],[Secondary  Name]],tblREGASSJune19[[#This Row],[Alloc4FUNC]])","v":"1823930DSR COSTS NOT AMORT103872IRRIGATION EFFICIENCY PRGRM - ID 2015OTHER"},1823930,"DSR COSTS NOT AMORT",103872,"IRRIGATION EFFICIENCY PRGRM - ID 2015","OTHER",236.3903,{"$f":"IF(OR(tblREGASSJune19[[#This Row],[Alloc]]=\"IDU\",tblREGASSJune19[[#This Row],[Alloc]]=\"OR\",tblREGASSJune19[[#This Row],[Alloc]]=\"UT\",tblREGASSJune19[[#This Row],[Alloc]]=\"WYU\",tblREGASSJune19[[#This Row],[Alloc]]=\"WYP\",tblREGASSJune19[[#This Row],[Alloc]]=\"CA\",tblREGASSJune19[[#This Row],[Alloc]]=\"WA\"),\"SITUS\",tblREGASSJune19[[#This Row],[Alloc]])","v":"OTHER"},{"$f":"INDEX(tblREGASSLookup[FUNC],MATCH(tblREGASSJune19[[#This Row],[Concat]],tblREGASSLookup[Concat],0))","v":"CUST"},{"$f":"IF(tblREGASSJune19[[#This Row],[Total ($000)]]=0,\"NO\",IF(ISNA(tblREGASSJune19[[#This Row],[FUNC]]),\"YES\",IF(_xlfn.ISFORMULA(tblREGASSJune19[[#This Row],[FUNC]]),\"NO\",\"YES\")))","v":"NO"}]
[{"$f":"CONCATENATE(tblREGASSJune19[[#This Row],[Primary Account]],tblREGASSJune19[[#This Row],[Primary Name]],tblREGASSJune19[[#This Row],[Secondary Acct]],tblREGASSJune19[[#This Row],[Secondary  Name]],tblREGASSJune19[[#This Row],[Alloc4FUNC]])","v":"1823930DSR COSTS NOT AMORT103873LOW INCOME WZ  - ID- 2015OTHER"},1823930,"DSR COSTS NOT AMORT",103873,"LOW INCOME WZ  - ID- 2015","OTHER",296.08478000000002,{"$f":"IF(OR(tblREGASSJune19[[#This Row],[Alloc]]=\"IDU\",tblREGASSJune19[[#This Row],[Alloc]]=\"OR\",tblREGASSJune19[[#This Row],[Alloc]]=\"UT\",tblREGASSJune19[[#This Row],[Alloc]]=\"WYU\",tblREGASSJune19[[#This Row],[Alloc]]=\"WYP\",tblREGASSJune19[[#This Row],[Alloc]]=\"CA\",tblREGASSJune19[[#This Row],[Alloc]]=\"WA\"),\"SITUS\",tblREGASSJune19[[#This Row],[Alloc]])","v":"OTHER"},{"$f":"INDEX(tblREGASSLookup[FUNC],MATCH(tblREGASSJune19[[#This Row],[Concat]],tblREGASSLookup[Concat],0))","v":"CUST"},{"$f":"IF(tblREGASSJune19[[#This Row],[Total ($000)]]=0,\"NO\",IF(ISNA(tblREGASSJune19[[#This Row],[FUNC]]),\"YES\",IF(_xlfn.ISFORMULA(tblREGASSJune19[[#This Row],[FUNC]]),\"NO\",\"YES\")))","v":"NO"}]
[{"$f":"CONCATENATE(tblREGASSJune19[[#This Row],[Primary Account]],tblREGASSJune19[[#This Row],[Primary Name]],tblREGASSJune19[[#This Row],[Secondary Acct]],tblREGASSJune19[[#This Row],[Secondary  Name]],tblREGASSJune19[[#This Row],[Alloc4FUNC]])","v":"1823930DSR COSTS NOT AMORT103875REFRIGERATOR RECYCLING PGM - ID 2015OTHER"},1823930,"DSR COSTS NOT AMORT",103875,"REFRIGERATOR RECYCLING PGM - ID 2015","OTHER",105.98939,{"$f":"IF(OR(tblREGASSJune19[[#This Row],[Alloc]]=\"IDU\",tblREGASSJune19[[#This Row],[Alloc]]=\"OR\",tblREGASSJune19[[#This Row],[Alloc]]=\"UT\",tblREGASSJune19[[#This Row],[Alloc]]=\"WYU\",tblREGASSJune19[[#This Row],[Alloc]]=\"WYP\",tblREGASSJune19[[#This Row],[Alloc]]=\"CA\",tblREGASSJune19[[#This Row],[Alloc]]=\"WA\"),\"SITUS\",tblREGASSJune19[[#This Row],[Alloc]])","v":"OTHER"},{"$f":"INDEX(tblREGASSLookup[FUNC],MATCH(tblREGASSJune19[[#This Row],[Concat]],tblREGASSLookup[Concat],0))","v":"CUST"},{"$f":"IF(tblREGASSJune19[[#This Row],[Total ($000)]]=0,\"NO\",IF(ISNA(tblREGASSJune19[[#This Row],[FUNC]]),\"YES\",IF(_xlfn.ISFORMULA(tblREGASSJune19[[#This Row],[FUNC]]),\"NO\",\"YES\")))","v":"NO"}]
[{"$f":"CONCATENATE(tblREGASSJune19[[#This Row],[Primary Account]],tblREGASSJune19[[#This Row],[Primary Name]],tblREGASSJune19[[#This Row],[Secondary Acct]],tblREGASSJune19[[#This Row],[Secondary  Name]],tblREGASSJune19[[#This Row],[Alloc4FUNC]])","v":"1823930DSR COSTS NOT AMORT104014HOME ENERGY EFFICIENCY INCENTIVE PROG  -OTHER"},1823930,"DSR COSTS NOT AMORT",104014,"HOME ENERGY EFFICIENCY INCENTIVE PROG  -","OTHER",450.07639999999998,{"$f":"IF(OR(tblREGASSJune19[[#This Row],[Alloc]]=\"IDU\",tblREGASSJune19[[#This Row],[Alloc]]=\"OR\",tblREGASSJune19[[#This Row],[Alloc]]=\"UT\",tblREGASSJune19[[#This Row],[Alloc]]=\"WYU\",tblREGASSJune19[[#This Row],[Alloc]]=\"WYP\",tblREGASSJune19[[#This Row],[Alloc]]=\"CA\",tblREGASSJune19[[#This Row],[Alloc]]=\"WA\"),\"SITUS\",tblREGASSJune19[[#This Row],[Alloc]])","v":"OTHER"},{"$f":"INDEX(tblREGASSLookup[FUNC],MATCH(tblREGASSJune19[[#This Row],[Concat]],tblREGASSLookup[Concat],0))","v":"CUST"},{"$f":"IF(tblREGASSJune19[[#This Row],[Total ($000)]]=0,\"NO\",IF(ISNA(tblREGASSJune19[[#This Row],[FUNC]]),\"YES\",IF(_xlfn.ISFORMULA(tblREGASSJune19[[#This Row],[FUNC]]),\"NO\",\"YES\")))","v":"NO"}]
[{"$f":"CONCATENATE(tblREGASSJune19[[#This Row],[Primary Account]],tblREGASSJune19[[#This Row],[Primary Name]],tblREGASSJune19[[#This Row],[Secondary Acct]],tblREGASSJune19[[#This Row],[Secondary  Name]],tblREGASSJune19[[#This Row],[Alloc4FUNC]])","v":"1823930DSR COSTS NOT AMORT104016IRRIGATION EFFICIENCY PRGRM - ID 2016OTHER"},1823930,"DSR COSTS NOT AMORT",104016,"IRRIGATION EFFICIENCY PRGRM - ID 2016","OTHER",80.058080000000004,{"$f":"IF(OR(tblREGASSJune19[[#This Row],[Alloc]]=\"IDU\",tblREGASSJune19[[#This Row],[Alloc]]=\"OR\",tblREGASSJune19[[#This Row],[Alloc]]=\"UT\",tblREGASSJune19[[#This Row],[Alloc]]=\"WYU\",tblREGASSJune19[[#This Row],[Alloc]]=\"WYP\",tblREGASSJune19[[#This Row],[Alloc]]=\"CA\",tblREGASSJune19[[#This Row],[Alloc]]=\"WA\"),\"SITUS\",tblREGASSJune19[[#This Row],[Alloc]])","v":"OTHER"},{"$f":"INDEX(tblREGASSLookup[FUNC],MATCH(tblREGASSJune19[[#This Row],[Concat]],tblREGASSLookup[Concat],0))","v":"CUST"},{"$f":"IF(tblREGASSJune19[[#This Row],[Total ($000)]]=0,\"NO\",IF(ISNA(tblREGASSJune19[[#This Row],[FUNC]]),\"YES\",IF(_xlfn.ISFORMULA(tblREGASSJune19[[#This Row],[FUNC]]),\"NO\",\"YES\")))","v":"NO"}]
[{"$f":"CONCATENATE(tblREGASSJune19[[#This Row],[Primary Account]],tblREGASSJune19[[#This Row],[Primary Name]],tblREGASSJune19[[#This Row],[Secondary Acct]],tblREGASSJune19[[#This Row],[Secondary  Name]],tblREGASSJune19[[#This Row],[Alloc4FUNC]])","v":"1823930DSR COSTS NOT AMORT104017LOW INCOME WZ  - ID- 2016OTHER"},1823930,"DSR COSTS NOT AMORT",104017,"LOW INCOME WZ  - ID- 2016","OTHER",244.62808000000001,{"$f":"IF(OR(tblREGASSJune19[[#This Row],[Alloc]]=\"IDU\",tblREGASSJune19[[#This Row],[Alloc]]=\"OR\",tblREGASSJune19[[#This Row],[Alloc]]=\"UT\",tblREGASSJune19[[#This Row],[Alloc]]=\"WYU\",tblREGASSJune19[[#This Row],[Alloc]]=\"WYP\",tblREGASSJune19[[#This Row],[Alloc]]=\"CA\",tblREGASSJune19[[#This Row],[Alloc]]=\"WA\"),\"SITUS\",tblREGASSJune19[[#This Row],[Alloc]])","v":"OTHER"},{"$f":"INDEX(tblREGASSLookup[FUNC],MATCH(tblREGASSJune19[[#This Row],[Concat]],tblREGASSLookup[Concat],0))","v":"CUST"},{"$f":"IF(tblREGASSJune19[[#This Row],[Total ($000)]]=0,\"NO\",IF(ISNA(tblREGASSJune19[[#This Row],[FUNC]]),\"YES\",IF(_xlfn.ISFORMULA(tblREGASSJune19[[#This Row],[FUNC]]),\"NO\",\"YES\")))","v":"NO"}]
[{"$f":"CONCATENATE(tblREGASSJune19[[#This Row],[Primary Account]],tblREGASSJune19[[#This Row],[Primary Name]],tblREGASSJune19[[#This Row],[Secondary Acct]],tblREGASSJune19[[#This Row],[Secondary  Name]],tblREGASSJune19[[#This Row],[Alloc4FUNC]])","v":"1823930DSR COSTS NOT AMORT104022REFRIGERATOR RECYCLING PGM - ID 2016OTHER"},1823930,"DSR COSTS NOT AMORT",104022,"REFRIGERATOR RECYCLING PGM - ID 2016","OTHER",13.798170000000001,{"$f":"IF(OR(tblREGASSJune19[[#This Row],[Alloc]]=\"IDU\",tblREGASSJune19[[#This Row],[Alloc]]=\"OR\",tblREGASSJune19[[#This Row],[Alloc]]=\"UT\",tblREGASSJune19[[#This Row],[Alloc]]=\"WYU\",tblREGASSJune19[[#This Row],[Alloc]]=\"WYP\",tblREGASSJune19[[#This Row],[Alloc]]=\"CA\",tblREGASSJune19[[#This Row],[Alloc]]=\"WA\"),\"SITUS\",tblREGASSJune19[[#This Row],[Alloc]])","v":"OTHER"},{"$f":"INDEX(tblREGASSLookup[FUNC],MATCH(tblREGASSJune19[[#This Row],[Concat]],tblREGASSLookup[Concat],0))","v":"CUST"},{"$f":"IF(tblREGASSJune19[[#This Row],[Total ($000)]]=0,\"NO\",IF(ISNA(tblREGASSJune19[[#This Row],[FUNC]]),\"YES\",IF(_xlfn.ISFORMULA(tblREGASSJune19[[#This Row],[FUNC]]),\"NO\",\"YES\")))","v":"NO"}]
[{"$f":"CONCATENATE(tblREGASSJune19[[#This Row],[Primary Account]],tblREGASSJune19[[#This Row],[Primary Name]],tblREGASSJune19[[#This Row],[Secondary Acct]],tblREGASSJune19[[#This Row],[Secondary  Name]],tblREGASSJune19[[#This Row],[Alloc4FUNC]])","v":"1823940DSR CARRYING CHARGES101391DSR CARRY CHG ID-USITUS"},1823940,"DSR CARRYING CHARGES",101391,"DSR CARRY CHG ID-U","IDU",0,{"$f":"IF(OR(tblREGASSJune19[[#This Row],[Alloc]]=\"IDU\",tblREGASSJune19[[#This Row],[Alloc]]=\"OR\",tblREGASSJune19[[#This Row],[Alloc]]=\"UT\",tblREGASSJune19[[#This Row],[Alloc]]=\"WYU\",tblREGASSJune19[[#This Row],[Alloc]]=\"WYP\",tblREGASSJune19[[#This Row],[Alloc]]=\"CA\",tblREGASSJune19[[#This Row],[Alloc]]=\"WA\"),\"SITUS\",tblREGASSJune19[[#This Row],[Alloc]])","v":"SITUS"},{"$f":"INDEX(tblREGASSLookup[FUNC],MATCH(tblREGASSJune19[[#This Row],[Concat]],tblREGASSLookup[Concat],0))","v":{"$error":"#N/A"}},{"$f":"IF(tblREGASSJune19[[#This Row],[Total ($000)]]=0,\"NO\",IF(ISNA(tblREGASSJune19[[#This Row],[FUNC]]),\"YES\",IF(_xlfn.ISFORMULA(tblREGASSJune19[[#This Row],[FUNC]]),\"NO\",\"YES\")))","v":"NO"}]
[{"$f":"CONCATENATE(tblREGASSJune19[[#This Row],[Primary Account]],tblREGASSJune19[[#This Row],[Primary Name]],tblREGASSJune19[[#This Row],[Secondary Acct]],tblREGASSJune19[[#This Row],[Secondary  Name]],tblREGASSJune19[[#This Row],[Alloc4FUNC]])","v":"1823940DSR CARRYING CHARGES101469ENERGY FINANSWER94SITUS"},1823940,"DSR CARRYING CHARGES",101469,"ENERGY FINANSWER94","UT",0,{"$f":"IF(OR(tblREGASSJune19[[#This Row],[Alloc]]=\"IDU\",tblREGASSJune19[[#This Row],[Alloc]]=\"OR\",tblREGASSJune19[[#This Row],[Alloc]]=\"UT\",tblREGASSJune19[[#This Row],[Alloc]]=\"WYU\",tblREGASSJune19[[#This Row],[Alloc]]=\"WYP\",tblREGASSJune19[[#This Row],[Alloc]]=\"CA\",tblREGASSJune19[[#This Row],[Alloc]]=\"WA\"),\"SITUS\",tblREGASSJune19[[#This Row],[Alloc]])","v":"SITUS"},{"$f":"INDEX(tblREGASSLookup[FUNC],MATCH(tblREGASSJune19[[#This Row],[Concat]],tblREGASSLookup[Concat],0))","v":{"$error":"#N/A"}},{"$f":"IF(tblREGASSJune19[[#This Row],[Total ($000)]]=0,\"NO\",IF(ISNA(tblREGASSJune19[[#This Row],[FUNC]]),\"YES\",IF(_xlfn.ISFORMULA(tblREGASSJune19[[#This Row],[FUNC]]),\"NO\",\"YES\")))","v":"NO"}]
[{"$f":"CONCATENATE(tblREGASSJune19[[#This Row],[Primary Account]],tblREGASSJune19[[#This Row],[Primary Name]],tblREGASSJune19[[#This Row],[Secondary Acct]],tblREGASSJune19[[#This Row],[Secondary  Name]],tblREGASSJune19[[#This Row],[Alloc4FUNC]])","v":"1823940DSR CARRYING CHARGES101470ENERGY FINANSWER95SITUS"},1823940,"DSR CARRYING CHARGES",101470,"ENERGY FINANSWER95","UT",0,{"$f":"IF(OR(tblREGASSJune19[[#This Row],[Alloc]]=\"IDU\",tblREGASSJune19[[#This Row],[Alloc]]=\"OR\",tblREGASSJune19[[#This Row],[Alloc]]=\"UT\",tblREGASSJune19[[#This Row],[Alloc]]=\"WYU\",tblREGASSJune19[[#This Row],[Alloc]]=\"WYP\",tblREGASSJune19[[#This Row],[Alloc]]=\"CA\",tblREGASSJune19[[#This Row],[Alloc]]=\"WA\"),\"SITUS\",tblREGASSJune19[[#This Row],[Alloc]])","v":"SITUS"},{"$f":"INDEX(tblREGASSLookup[FUNC],MATCH(tblREGASSJune19[[#This Row],[Concat]],tblREGASSLookup[Concat],0))","v":{"$error":"#N/A"}},{"$f":"IF(tblREGASSJune19[[#This Row],[Total ($000)]]=0,\"NO\",IF(ISNA(tblREGASSJune19[[#This Row],[FUNC]]),\"YES\",IF(_xlfn.ISFORMULA(tblREGASSJune19[[#This Row],[FUNC]]),\"NO\",\"YES\")))","v":"NO"}]
[{"$f":"CONCATENATE(tblREGASSJune19[[#This Row],[Primary Account]],tblREGASSJune19[[#This Row],[Primary Name]],tblREGASSJune19[[#This Row],[Secondary Acct]],tblREGASSJune19[[#This Row],[Secondary  Name]],tblREGASSJune19[[#This Row],[Alloc4FUNC]])","v":"1823940DSR CARRYING CHARGES101471ENERGY FINANSWER96SITUS"},1823940,"DSR CARRYING CHARGES",101471,"ENERGY FINANSWER96","UT",0,{"$f":"IF(OR(tblREGASSJune19[[#This Row],[Alloc]]=\"IDU\",tblREGASSJune19[[#This Row],[Alloc]]=\"OR\",tblREGASSJune19[[#This Row],[Alloc]]=\"UT\",tblREGASSJune19[[#This Row],[Alloc]]=\"WYU\",tblREGASSJune19[[#This Row],[Alloc]]=\"WYP\",tblREGASSJune19[[#This Row],[Alloc]]=\"CA\",tblREGASSJune19[[#This Row],[Alloc]]=\"WA\"),\"SITUS\",tblREGASSJune19[[#This Row],[Alloc]])","v":"SITUS"},{"$f":"INDEX(tblREGASSLookup[FUNC],MATCH(tblREGASSJune19[[#This Row],[Concat]],tblREGASSLookup[Concat],0))","v":{"$error":"#N/A"}},{"$f":"IF(tblREGASSJune19[[#This Row],[Total ($000)]]=0,\"NO\",IF(ISNA(tblREGASSJune19[[#This Row],[FUNC]]),\"YES\",IF(_xlfn.ISFORMULA(tblREGASSJune19[[#This Row],[FUNC]]),\"NO\",\"YES\")))","v":"NO"}]
[{"$f":"CONCATENATE(tblREGASSJune19[[#This Row],[Primary Account]],tblREGASSJune19[[#This Row],[Primary Name]],tblREGASSJune19[[#This Row],[Secondary Acct]],tblREGASSJune19[[#This Row],[Secondary  Name]],tblREGASSJune19[[#This Row],[Alloc4FUNC]])","v":"1823940DSR CARRYING CHARGES101472IND FINANSWER   94SITUS"},1823940,"DSR CARRYING CHARGES",101472,"IND FINANSWER   94","UT",0,{"$f":"IF(OR(tblREGASSJune19[[#This Row],[Alloc]]=\"IDU\",tblREGASSJune19[[#This Row],[Alloc]]=\"OR\",tblREGASSJune19[[#This Row],[Alloc]]=\"UT\",tblREGASSJune19[[#This Row],[Alloc]]=\"WYU\",tblREGASSJune19[[#This Row],[Alloc]]=\"WYP\",tblREGASSJune19[[#This Row],[Alloc]]=\"CA\",tblREGASSJune19[[#This Row],[Alloc]]=\"WA\"),\"SITUS\",tblREGASSJune19[[#This Row],[Alloc]])","v":"SITUS"},{"$f":"INDEX(tblREGASSLookup[FUNC],MATCH(tblREGASSJune19[[#This Row],[Concat]],tblREGASSLookup[Concat],0))","v":{"$error":"#N/A"}},{"$f":"IF(tblREGASSJune19[[#This Row],[Total ($000)]]=0,\"NO\",IF(ISNA(tblREGASSJune19[[#This Row],[FUNC]]),\"YES\",IF(_xlfn.ISFORMULA(tblREGASSJune19[[#This Row],[FUNC]]),\"NO\",\"YES\")))","v":"NO"}]
[{"$f":"CONCATENATE(tblREGASSJune19[[#This Row],[Primary Account]],tblREGASSJune19[[#This Row],[Primary Name]],tblREGASSJune19[[#This Row],[Secondary Acct]],tblREGASSJune19[[#This Row],[Secondary  Name]],tblREGASSJune19[[#This Row],[Alloc4FUNC]])","v":"1823940DSR CARRYING CHARGES101473IND FINANSWER   95SITUS"},1823940,"DSR CARRYING CHARGES",101473,"IND FINANSWER   95","UT",0,{"$f":"IF(OR(tblREGASSJune19[[#This Row],[Alloc]]=\"IDU\",tblREGASSJune19[[#This Row],[Alloc]]=\"OR\",tblREGASSJune19[[#This Row],[Alloc]]=\"UT\",tblREGASSJune19[[#This Row],[Alloc]]=\"WYU\",tblREGASSJune19[[#This Row],[Alloc]]=\"WYP\",tblREGASSJune19[[#This Row],[Alloc]]=\"CA\",tblREGASSJune19[[#This Row],[Alloc]]=\"WA\"),\"SITUS\",tblREGASSJune19[[#This Row],[Alloc]])","v":"SITUS"},{"$f":"INDEX(tblREGASSLookup[FUNC],MATCH(tblREGASSJune19[[#This Row],[Concat]],tblREGASSLookup[Concat],0))","v":{"$error":"#N/A"}},{"$f":"IF(tblREGASSJune19[[#This Row],[Total ($000)]]=0,\"NO\",IF(ISNA(tblREGASSJune19[[#This Row],[FUNC]]),\"YES\",IF(_xlfn.ISFORMULA(tblREGASSJune19[[#This Row],[FUNC]]),\"NO\",\"YES\")))","v":"NO"}]
[{"$f":"CONCATENATE(tblREGASSJune19[[#This Row],[Primary Account]],tblREGASSJune19[[#This Row],[Primary Name]],tblREGASSJune19[[#This Row],[Secondary Acct]],tblREGASSJune19[[#This Row],[Secondary  Name]],tblREGASSJune19[[#This Row],[Alloc4FUNC]])","v":"1823940DSR CARRYING CHARGES101474IND FINANSWER   96SITUS"},1823940,"DSR CARRYING CHARGES",101474,"IND FINANSWER   96","UT",0,{"$f":"IF(OR(tblREGASSJune19[[#This Row],[Alloc]]=\"IDU\",tblREGASSJune19[[#This Row],[Alloc]]=\"OR\",tblREGASSJune19[[#This Row],[Alloc]]=\"UT\",tblREGASSJune19[[#This Row],[Alloc]]=\"WYU\",tblREGASSJune19[[#This Row],[Alloc]]=\"WYP\",tblREGASSJune19[[#This Row],[Alloc]]=\"CA\",tblREGASSJune19[[#This Row],[Alloc]]=\"WA\"),\"SITUS\",tblREGASSJune19[[#This Row],[Alloc]])","v":"SITUS"},{"$f":"INDEX(tblREGASSLookup[FUNC],MATCH(tblREGASSJune19[[#This Row],[Concat]],tblREGASSLookup[Concat],0))","v":{"$error":"#N/A"}},{"$f":"IF(tblREGASSJune19[[#This Row],[Total ($000)]]=0,\"NO\",IF(ISNA(tblREGASSJune19[[#This Row],[FUNC]]),\"YES\",IF(_xlfn.ISFORMULA(tblREGASSJune19[[#This Row],[FUNC]]),\"NO\",\"YES\")))","v":"NO"}]
[{"$f":"CONCATENATE(tblREGASSJune19[[#This Row],[Primary Account]],tblREGASSJune19[[#This Row],[Primary Name]],tblREGASSJune19[[#This Row],[Secondary Acct]],tblREGASSJune19[[#This Row],[Secondary  Name]],tblREGASSJune19[[#This Row],[Alloc4FUNC]])","v":"1823940DSR CARRYING CHARGES101475FINANSWER 12000 94SITUS"},1823940,"DSR CARRYING CHARGES",101475,"FINANSWER 12000 94","UT",0,{"$f":"IF(OR(tblREGASSJune19[[#This Row],[Alloc]]=\"IDU\",tblREGASSJune19[[#This Row],[Alloc]]=\"OR\",tblREGASSJune19[[#This Row],[Alloc]]=\"UT\",tblREGASSJune19[[#This Row],[Alloc]]=\"WYU\",tblREGASSJune19[[#This Row],[Alloc]]=\"WYP\",tblREGASSJune19[[#This Row],[Alloc]]=\"CA\",tblREGASSJune19[[#This Row],[Alloc]]=\"WA\"),\"SITUS\",tblREGASSJune19[[#This Row],[Alloc]])","v":"SITUS"},{"$f":"INDEX(tblREGASSLookup[FUNC],MATCH(tblREGASSJune19[[#This Row],[Concat]],tblREGASSLookup[Concat],0))","v":{"$error":"#N/A"}},{"$f":"IF(tblREGASSJune19[[#This Row],[Total ($000)]]=0,\"NO\",IF(ISNA(tblREGASSJune19[[#This Row],[FUNC]]),\"YES\",IF(_xlfn.ISFORMULA(tblREGASSJune19[[#This Row],[FUNC]]),\"NO\",\"YES\")))","v":"NO"}]
[{"$f":"CONCATENATE(tblREGASSJune19[[#This Row],[Primary Account]],tblREGASSJune19[[#This Row],[Primary Name]],tblREGASSJune19[[#This Row],[Secondary Acct]],tblREGASSJune19[[#This Row],[Secondary  Name]],tblREGASSJune19[[#This Row],[Alloc4FUNC]])","v":"1823940DSR CARRYING CHARGES101477COMM RETRO      94SITUS"},1823940,"DSR CARRYING CHARGES",101477,"COMM RETRO      94","UT",0,{"$f":"IF(OR(tblREGASSJune19[[#This Row],[Alloc]]=\"IDU\",tblREGASSJune19[[#This Row],[Alloc]]=\"OR\",tblREGASSJune19[[#This Row],[Alloc]]=\"UT\",tblREGASSJune19[[#This Row],[Alloc]]=\"WYU\",tblREGASSJune19[[#This Row],[Alloc]]=\"WYP\",tblREGASSJune19[[#This Row],[Alloc]]=\"CA\",tblREGASSJune19[[#This Row],[Alloc]]=\"WA\"),\"SITUS\",tblREGASSJune19[[#This Row],[Alloc]])","v":"SITUS"},{"$f":"INDEX(tblREGASSLookup[FUNC],MATCH(tblREGASSJune19[[#This Row],[Concat]],tblREGASSLookup[Concat],0))","v":{"$error":"#N/A"}},{"$f":"IF(tblREGASSJune19[[#This Row],[Total ($000)]]=0,\"NO\",IF(ISNA(tblREGASSJune19[[#This Row],[FUNC]]),\"YES\",IF(_xlfn.ISFORMULA(tblREGASSJune19[[#This Row],[FUNC]]),\"NO\",\"YES\")))","v":"NO"}]
[{"$f":"CONCATENATE(tblREGASSJune19[[#This Row],[Primary Account]],tblREGASSJune19[[#This Row],[Primary Name]],tblREGASSJune19[[#This Row],[Secondary Acct]],tblREGASSJune19[[#This Row],[Secondary  Name]],tblREGASSJune19[[#This Row],[Alloc4FUNC]])","v":"1823940DSR CARRYING CHARGES101479ECONS           94SITUS"},1823940,"DSR CARRYING CHARGES",101479,"ECONS           94","UT",0,{"$f":"IF(OR(tblREGASSJune19[[#This Row],[Alloc]]=\"IDU\",tblREGASSJune19[[#This Row],[Alloc]]=\"OR\",tblREGASSJune19[[#This Row],[Alloc]]=\"UT\",tblREGASSJune19[[#This Row],[Alloc]]=\"WYU\",tblREGASSJune19[[#This Row],[Alloc]]=\"WYP\",tblREGASSJune19[[#This Row],[Alloc]]=\"CA\",tblREGASSJune19[[#This Row],[Alloc]]=\"WA\"),\"SITUS\",tblREGASSJune19[[#This Row],[Alloc]])","v":"SITUS"},{"$f":"INDEX(tblREGASSLookup[FUNC],MATCH(tblREGASSJune19[[#This Row],[Concat]],tblREGASSLookup[Concat],0))","v":{"$error":"#N/A"}},{"$f":"IF(tblREGASSJune19[[#This Row],[Total ($000)]]=0,\"NO\",IF(ISNA(tblREGASSJune19[[#This Row],[FUNC]]),\"YES\",IF(_xlfn.ISFORMULA(tblREGASSJune19[[#This Row],[FUNC]]),\"NO\",\"YES\")))","v":"NO"}]
[{"$f":"CONCATENATE(tblREGASSJune19[[#This Row],[Primary Account]],tblREGASSJune19[[#This Row],[Primary Name]],tblREGASSJune19[[#This Row],[Secondary Acct]],tblREGASSJune19[[#This Row],[Secondary  Name]],tblREGASSJune19[[#This Row],[Alloc4FUNC]])","v":"1823940DSR CARRYING CHARGES101480ECONS           95SITUS"},1823940,"DSR CARRYING CHARGES",101480,"ECONS           95","UT",0,{"$f":"IF(OR(tblREGASSJune19[[#This Row],[Alloc]]=\"IDU\",tblREGASSJune19[[#This Row],[Alloc]]=\"OR\",tblREGASSJune19[[#This Row],[Alloc]]=\"UT\",tblREGASSJune19[[#This Row],[Alloc]]=\"WYU\",tblREGASSJune19[[#This Row],[Alloc]]=\"WYP\",tblREGASSJune19[[#This Row],[Alloc]]=\"CA\",tblREGASSJune19[[#This Row],[Alloc]]=\"WA\"),\"SITUS\",tblREGASSJune19[[#This Row],[Alloc]])","v":"SITUS"},{"$f":"INDEX(tblREGASSLookup[FUNC],MATCH(tblREGASSJune19[[#This Row],[Concat]],tblREGASSLookup[Concat],0))","v":{"$error":"#N/A"}},{"$f":"IF(tblREGASSJune19[[#This Row],[Total ($000)]]=0,\"NO\",IF(ISNA(tblREGASSJune19[[#This Row],[FUNC]]),\"YES\",IF(_xlfn.ISFORMULA(tblREGASSJune19[[#This Row],[FUNC]]),\"NO\",\"YES\")))","v":"NO"}]
[{"$f":"CONCATENATE(tblREGASSJune19[[#This Row],[Primary Account]],tblREGASSJune19[[#This Row],[Primary Name]],tblREGASSJune19[[#This Row],[Secondary Acct]],tblREGASSJune19[[#This Row],[Secondary  Name]],tblREGASSJune19[[#This Row],[Alloc4FUNC]])","v":"1823940DSR CARRYING CHARGES101481ECONS           96SITUS"},1823940,"DSR CARRYING CHARGES",101481,"ECONS           96","UT",0,{"$f":"IF(OR(tblREGASSJune19[[#This Row],[Alloc]]=\"IDU\",tblREGASSJune19[[#This Row],[Alloc]]=\"OR\",tblREGASSJune19[[#This Row],[Alloc]]=\"UT\",tblREGASSJune19[[#This Row],[Alloc]]=\"WYU\",tblREGASSJune19[[#This Row],[Alloc]]=\"WYP\",tblREGASSJune19[[#This Row],[Alloc]]=\"CA\",tblREGASSJune19[[#This Row],[Alloc]]=\"WA\"),\"SITUS\",tblREGASSJune19[[#This Row],[Alloc]])","v":"SITUS"},{"$f":"INDEX(tblREGASSLookup[FUNC],MATCH(tblREGASSJune19[[#This Row],[Concat]],tblREGASSLookup[Concat],0))","v":{"$error":"#N/A"}},{"$f":"IF(tblREGASSJune19[[#This Row],[Total ($000)]]=0,\"NO\",IF(ISNA(tblREGASSJune19[[#This Row],[FUNC]]),\"YES\",IF(_xlfn.ISFORMULA(tblREGASSJune19[[#This Row],[FUNC]]),\"NO\",\"YES\")))","v":"NO"}]
[{"$f":"CONCATENATE(tblREGASSJune19[[#This Row],[Primary Account]],tblREGASSJune19[[#This Row],[Primary Name]],tblREGASSJune19[[#This Row],[Secondary Acct]],tblREGASSJune19[[#This Row],[Secondary  Name]],tblREGASSJune19[[#This Row],[Alloc4FUNC]])","v":"1823940DSR CARRYING CHARGES101483RFP EUA ONSITE  95SITUS"},1823940,"DSR CARRYING CHARGES",101483,"RFP EUA ONSITE  95","UT",0,{"$f":"IF(OR(tblREGASSJune19[[#This Row],[Alloc]]=\"IDU\",tblREGASSJune19[[#This Row],[Alloc]]=\"OR\",tblREGASSJune19[[#This Row],[Alloc]]=\"UT\",tblREGASSJune19[[#This Row],[Alloc]]=\"WYU\",tblREGASSJune19[[#This Row],[Alloc]]=\"WYP\",tblREGASSJune19[[#This Row],[Alloc]]=\"CA\",tblREGASSJune19[[#This Row],[Alloc]]=\"WA\"),\"SITUS\",tblREGASSJune19[[#This Row],[Alloc]])","v":"SITUS"},{"$f":"INDEX(tblREGASSLookup[FUNC],MATCH(tblREGASSJune19[[#This Row],[Concat]],tblREGASSLookup[Concat],0))","v":{"$error":"#N/A"}},{"$f":"IF(tblREGASSJune19[[#This Row],[Total ($000)]]=0,\"NO\",IF(ISNA(tblREGASSJune19[[#This Row],[FUNC]]),\"YES\",IF(_xlfn.ISFORMULA(tblREGASSJune19[[#This Row],[FUNC]]),\"NO\",\"YES\")))","v":"NO"}]
[{"$f":"CONCATENATE(tblREGASSJune19[[#This Row],[Primary Account]],tblREGASSJune19[[#This Row],[Primary Name]],tblREGASSJune19[[#This Row],[Secondary Acct]],tblREGASSJune19[[#This Row],[Secondary  Name]],tblREGASSJune19[[#This Row],[Alloc4FUNC]])","v":"1823940DSR CARRYING CHARGES101484RFP EUA ONSITE  96SITUS"},1823940,"DSR CARRYING CHARGES",101484,"RFP EUA ONSITE  96","UT",0,{"$f":"IF(OR(tblREGASSJune19[[#This Row],[Alloc]]=\"IDU\",tblREGASSJune19[[#This Row],[Alloc]]=\"OR\",tblREGASSJune19[[#This Row],[Alloc]]=\"UT\",tblREGASSJune19[[#This Row],[Alloc]]=\"WYU\",tblREGASSJune19[[#This Row],[Alloc]]=\"WYP\",tblREGASSJune19[[#This Row],[Alloc]]=\"CA\",tblREGASSJune19[[#This Row],[Alloc]]=\"WA\"),\"SITUS\",tblREGASSJune19[[#This Row],[Alloc]])","v":"SITUS"},{"$f":"INDEX(tblREGASSLookup[FUNC],MATCH(tblREGASSJune19[[#This Row],[Concat]],tblREGASSLookup[Concat],0))","v":{"$error":"#N/A"}},{"$f":"IF(tblREGASSJune19[[#This Row],[Total ($000)]]=0,\"NO\",IF(ISNA(tblREGASSJune19[[#This Row],[FUNC]]),\"YES\",IF(_xlfn.ISFORMULA(tblREGASSJune19[[#This Row],[FUNC]]),\"NO\",\"YES\")))","v":"NO"}]
[{"$f":"CONCATENATE(tblREGASSJune19[[#This Row],[Primary Account]],tblREGASSJune19[[#This Row],[Primary Name]],tblREGASSJune19[[#This Row],[Secondary Acct]],tblREGASSJune19[[#This Row],[Secondary  Name]],tblREGASSJune19[[#This Row],[Alloc4FUNC]])","v":"1823940DSR CARRYING CHARGES101486RFP CES/WAY - CARRYING CHG - UT 1995SITUS"},1823940,"DSR CARRYING CHARGES",101486,"RFP CES/WAY - CARRYING CHG - UT 1995","UT",0,{"$f":"IF(OR(tblREGASSJune19[[#This Row],[Alloc]]=\"IDU\",tblREGASSJune19[[#This Row],[Alloc]]=\"OR\",tblREGASSJune19[[#This Row],[Alloc]]=\"UT\",tblREGASSJune19[[#This Row],[Alloc]]=\"WYU\",tblREGASSJune19[[#This Row],[Alloc]]=\"WYP\",tblREGASSJune19[[#This Row],[Alloc]]=\"CA\",tblREGASSJune19[[#This Row],[Alloc]]=\"WA\"),\"SITUS\",tblREGASSJune19[[#This Row],[Alloc]])","v":"SITUS"},{"$f":"INDEX(tblREGASSLookup[FUNC],MATCH(tblREGASSJune19[[#This Row],[Concat]],tblREGASSLookup[Concat],0))","v":{"$error":"#N/A"}},{"$f":"IF(tblREGASSJune19[[#This Row],[Total ($000)]]=0,\"NO\",IF(ISNA(tblREGASSJune19[[#This Row],[FUNC]]),\"YES\",IF(_xlfn.ISFORMULA(tblREGASSJune19[[#This Row],[FUNC]]),\"NO\",\"YES\")))","v":"NO"}]
[{"$f":"CONCATENATE(tblREGASSJune19[[#This Row],[Primary Account]],tblREGASSJune19[[#This Row],[Primary Name]],tblREGASSJune19[[#This Row],[Secondary Acct]],tblREGASSJune19[[#This Row],[Secondary  Name]],tblREGASSJune19[[#This Row],[Alloc4FUNC]])","v":"1823940DSR CARRYING CHARGES101487RFP CES/WAY - CARRYING CHG - UT 1996SITUS"},1823940,"DSR CARRYING CHARGES",101487,"RFP CES/WAY - CARRYING CHG - UT 1996","UT",0,{"$f":"IF(OR(tblREGASSJune19[[#This Row],[Alloc]]=\"IDU\",tblREGASSJune19[[#This Row],[Alloc]]=\"OR\",tblREGASSJune19[[#This Row],[Alloc]]=\"UT\",tblREGASSJune19[[#This Row],[Alloc]]=\"WYU\",tblREGASSJune19[[#This Row],[Alloc]]=\"WYP\",tblREGASSJune19[[#This Row],[Alloc]]=\"CA\",tblREGASSJune19[[#This Row],[Alloc]]=\"WA\"),\"SITUS\",tblREGASSJune19[[#This Row],[Alloc]])","v":"SITUS"},{"$f":"INDEX(tblREGASSLookup[FUNC],MATCH(tblREGASSJune19[[#This Row],[Concat]],tblREGASSLookup[Concat],0))","v":{"$error":"#N/A"}},{"$f":"IF(tblREGASSJune19[[#This Row],[Total ($000)]]=0,\"NO\",IF(ISNA(tblREGASSJune19[[#This Row],[FUNC]]),\"YES\",IF(_xlfn.ISFORMULA(tblREGASSJune19[[#This Row],[FUNC]]),\"NO\",\"YES\")))","v":"NO"}]
[{"$f":"CONCATENATE(tblREGASSJune19[[#This Row],[Primary Account]],tblREGASSJune19[[#This Row],[Primary Name]],tblREGASSJune19[[#This Row],[Secondary Acct]],tblREGASSJune19[[#This Row],[Secondary  Name]],tblREGASSJune19[[#This Row],[Alloc4FUNC]])","v":"1823940DSR CARRYING CHARGES101489MAJOR ACCOUNTS  94SITUS"},1823940,"DSR CARRYING CHARGES",101489,"MAJOR ACCOUNTS  94","UT",0,{"$f":"IF(OR(tblREGASSJune19[[#This Row],[Alloc]]=\"IDU\",tblREGASSJune19[[#This Row],[Alloc]]=\"OR\",tblREGASSJune19[[#This Row],[Alloc]]=\"UT\",tblREGASSJune19[[#This Row],[Alloc]]=\"WYU\",tblREGASSJune19[[#This Row],[Alloc]]=\"WYP\",tblREGASSJune19[[#This Row],[Alloc]]=\"CA\",tblREGASSJune19[[#This Row],[Alloc]]=\"WA\"),\"SITUS\",tblREGASSJune19[[#This Row],[Alloc]])","v":"SITUS"},{"$f":"INDEX(tblREGASSLookup[FUNC],MATCH(tblREGASSJune19[[#This Row],[Concat]],tblREGASSLookup[Concat],0))","v":{"$error":"#N/A"}},{"$f":"IF(tblREGASSJune19[[#This Row],[Total ($000)]]=0,\"NO\",IF(ISNA(tblREGASSJune19[[#This Row],[FUNC]]),\"YES\",IF(_xlfn.ISFORMULA(tblREGASSJune19[[#This Row],[FUNC]]),\"NO\",\"YES\")))","v":"NO"}]
[{"$f":"CONCATENATE(tblREGASSJune19[[#This Row],[Primary Account]],tblREGASSJune19[[#This Row],[Primary Name]],tblREGASSJune19[[#This Row],[Secondary Acct]],tblREGASSJune19[[#This Row],[Secondary  Name]],tblREGASSJune19[[#This Row],[Alloc4FUNC]])","v":"1823940DSR CARRYING CHARGES101490MAJOR ACCOUNTS  95SITUS"},1823940,"DSR CARRYING CHARGES",101490,"MAJOR ACCOUNTS  95","UT",0,{"$f":"IF(OR(tblREGASSJune19[[#This Row],[Alloc]]=\"IDU\",tblREGASSJune19[[#This Row],[Alloc]]=\"OR\",tblREGASSJune19[[#This Row],[Alloc]]=\"UT\",tblREGASSJune19[[#This Row],[Alloc]]=\"WYU\",tblREGASSJune19[[#This Row],[Alloc]]=\"WYP\",tblREGASSJune19[[#This Row],[Alloc]]=\"CA\",tblREGASSJune19[[#This Row],[Alloc]]=\"WA\"),\"SITUS\",tblREGASSJune19[[#This Row],[Alloc]])","v":"SITUS"},{"$f":"INDEX(tblREGASSLookup[FUNC],MATCH(tblREGASSJune19[[#This Row],[Concat]],tblREGASSLookup[Concat],0))","v":{"$error":"#N/A"}},{"$f":"IF(tblREGASSJune19[[#This Row],[Total ($000)]]=0,\"NO\",IF(ISNA(tblREGASSJune19[[#This Row],[FUNC]]),\"YES\",IF(_xlfn.ISFORMULA(tblREGASSJune19[[#This Row],[FUNC]]),\"NO\",\"YES\")))","v":"NO"}]
[{"$f":"CONCATENATE(tblREGASSJune19[[#This Row],[Primary Account]],tblREGASSJune19[[#This Row],[Primary Name]],tblREGASSJune19[[#This Row],[Secondary Acct]],tblREGASSJune19[[#This Row],[Secondary  Name]],tblREGASSJune19[[#This Row],[Alloc4FUNC]])","v":"1823940DSR CARRYING CHARGES101491MAJOR ACCOUNTS  96SITUS"},1823940,"DSR CARRYING CHARGES",101491,"MAJOR ACCOUNTS  96","UT",0,{"$f":"IF(OR(tblREGASSJune19[[#This Row],[Alloc]]=\"IDU\",tblREGASSJune19[[#This Row],[Alloc]]=\"OR\",tblREGASSJune19[[#This Row],[Alloc]]=\"UT\",tblREGASSJune19[[#This Row],[Alloc]]=\"WYU\",tblREGASSJune19[[#This Row],[Alloc]]=\"WYP\",tblREGASSJune19[[#This Row],[Alloc]]=\"CA\",tblREGASSJune19[[#This Row],[Alloc]]=\"WA\"),\"SITUS\",tblREGASSJune19[[#This Row],[Alloc]])","v":"SITUS"},{"$f":"INDEX(tblREGASSLookup[FUNC],MATCH(tblREGASSJune19[[#This Row],[Concat]],tblREGASSLookup[Concat],0))","v":{"$error":"#N/A"}},{"$f":"IF(tblREGASSJune19[[#This Row],[Total ($000)]]=0,\"NO\",IF(ISNA(tblREGASSJune19[[#This Row],[FUNC]]),\"YES\",IF(_xlfn.ISFORMULA(tblREGASSJune19[[#This Row],[FUNC]]),\"NO\",\"YES\")))","v":"NO"}]
[{"$f":"CONCATENATE(tblREGASSJune19[[#This Row],[Primary Account]],tblREGASSJune19[[#This Row],[Primary Name]],tblREGASSJune19[[#This Row],[Secondary Acct]],tblREGASSJune19[[#This Row],[Secondary  Name]],tblREGASSJune19[[#This Row],[Alloc4FUNC]])","v":"1823940DSR CARRYING CHARGES101493REFRIGERATION   95SITUS"},1823940,"DSR CARRYING CHARGES",101493,"REFRIGERATION   95","UT",0,{"$f":"IF(OR(tblREGASSJune19[[#This Row],[Alloc]]=\"IDU\",tblREGASSJune19[[#This Row],[Alloc]]=\"OR\",tblREGASSJune19[[#This Row],[Alloc]]=\"UT\",tblREGASSJune19[[#This Row],[Alloc]]=\"WYU\",tblREGASSJune19[[#This Row],[Alloc]]=\"WYP\",tblREGASSJune19[[#This Row],[Alloc]]=\"CA\",tblREGASSJune19[[#This Row],[Alloc]]=\"WA\"),\"SITUS\",tblREGASSJune19[[#This Row],[Alloc]])","v":"SITUS"},{"$f":"INDEX(tblREGASSLookup[FUNC],MATCH(tblREGASSJune19[[#This Row],[Concat]],tblREGASSLookup[Concat],0))","v":{"$error":"#N/A"}},{"$f":"IF(tblREGASSJune19[[#This Row],[Total ($000)]]=0,\"NO\",IF(ISNA(tblREGASSJune19[[#This Row],[FUNC]]),\"YES\",IF(_xlfn.ISFORMULA(tblREGASSJune19[[#This Row],[FUNC]]),\"NO\",\"YES\")))","v":"NO"}]
[{"$f":"CONCATENATE(tblREGASSJune19[[#This Row],[Primary Account]],tblREGASSJune19[[#This Row],[Primary Name]],tblREGASSJune19[[#This Row],[Secondary Acct]],tblREGASSJune19[[#This Row],[Secondary  Name]],tblREGASSJune19[[#This Row],[Alloc4FUNC]])","v":"1823940DSR CARRYING CHARGES101496SCHEDULE 5      94SITUS"},1823940,"DSR CARRYING CHARGES",101496,"SCHEDULE 5      94","UT",0,{"$f":"IF(OR(tblREGASSJune19[[#This Row],[Alloc]]=\"IDU\",tblREGASSJune19[[#This Row],[Alloc]]=\"OR\",tblREGASSJune19[[#This Row],[Alloc]]=\"UT\",tblREGASSJune19[[#This Row],[Alloc]]=\"WYU\",tblREGASSJune19[[#This Row],[Alloc]]=\"WYP\",tblREGASSJune19[[#This Row],[Alloc]]=\"CA\",tblREGASSJune19[[#This Row],[Alloc]]=\"WA\"),\"SITUS\",tblREGASSJune19[[#This Row],[Alloc]])","v":"SITUS"},{"$f":"INDEX(tblREGASSLookup[FUNC],MATCH(tblREGASSJune19[[#This Row],[Concat]],tblREGASSLookup[Concat],0))","v":{"$error":"#N/A"}},{"$f":"IF(tblREGASSJune19[[#This Row],[Total ($000)]]=0,\"NO\",IF(ISNA(tblREGASSJune19[[#This Row],[FUNC]]),\"YES\",IF(_xlfn.ISFORMULA(tblREGASSJune19[[#This Row],[FUNC]]),\"NO\",\"YES\")))","v":"NO"}]
[{"$f":"CONCATENATE(tblREGASSJune19[[#This Row],[Primary Account]],tblREGASSJune19[[#This Row],[Primary Name]],tblREGASSJune19[[#This Row],[Secondary Acct]],tblREGASSJune19[[#This Row],[Secondary  Name]],tblREGASSJune19[[#This Row],[Alloc4FUNC]])","v":"1823940DSR CARRYING CHARGES101497MARKET TRANS    96SITUS"},1823940,"DSR CARRYING CHARGES",101497,"MARKET TRANS    96","UT",0,{"$f":"IF(OR(tblREGASSJune19[[#This Row],[Alloc]]=\"IDU\",tblREGASSJune19[[#This Row],[Alloc]]=\"OR\",tblREGASSJune19[[#This Row],[Alloc]]=\"UT\",tblREGASSJune19[[#This Row],[Alloc]]=\"WYU\",tblREGASSJune19[[#This Row],[Alloc]]=\"WYP\",tblREGASSJune19[[#This Row],[Alloc]]=\"CA\",tblREGASSJune19[[#This Row],[Alloc]]=\"WA\"),\"SITUS\",tblREGASSJune19[[#This Row],[Alloc]])","v":"SITUS"},{"$f":"INDEX(tblREGASSLookup[FUNC],MATCH(tblREGASSJune19[[#This Row],[Concat]],tblREGASSLookup[Concat],0))","v":{"$error":"#N/A"}},{"$f":"IF(tblREGASSJune19[[#This Row],[Total ($000)]]=0,\"NO\",IF(ISNA(tblREGASSJune19[[#This Row],[FUNC]]),\"YES\",IF(_xlfn.ISFORMULA(tblREGASSJune19[[#This Row],[FUNC]]),\"NO\",\"YES\")))","v":"NO"}]
[{"$f":"CONCATENATE(tblREGASSJune19[[#This Row],[Primary Account]],tblREGASSJune19[[#This Row],[Primary Name]],tblREGASSJune19[[#This Row],[Secondary Acct]],tblREGASSJune19[[#This Row],[Secondary  Name]],tblREGASSJune19[[#This Row],[Alloc4FUNC]])","v":"1823940DSR CARRYING CHARGES102146UT CARRYING CHARGE - 2001/2002OTHER"},1823940,"DSR CARRYING CHARGES",102146,"UT CARRYING CHARGE - 2001/2002","OTHER",3457.2049999999999,{"$f":"IF(OR(tblREGASSJune19[[#This Row],[Alloc]]=\"IDU\",tblREGASSJune19[[#This Row],[Alloc]]=\"OR\",tblREGASSJune19[[#This Row],[Alloc]]=\"UT\",tblREGASSJune19[[#This Row],[Alloc]]=\"WYU\",tblREGASSJune19[[#This Row],[Alloc]]=\"WYP\",tblREGASSJune19[[#This Row],[Alloc]]=\"CA\",tblREGASSJune19[[#This Row],[Alloc]]=\"WA\"),\"SITUS\",tblREGASSJune19[[#This Row],[Alloc]])","v":"OTHER"},{"$f":"INDEX(tblREGASSLookup[FUNC],MATCH(tblREGASSJune19[[#This Row],[Concat]],tblREGASSLookup[Concat],0))","v":"CUST"},{"$f":"IF(tblREGASSJune19[[#This Row],[Total ($000)]]=0,\"NO\",IF(ISNA(tblREGASSJune19[[#This Row],[FUNC]]),\"YES\",IF(_xlfn.ISFORMULA(tblREGASSJune19[[#This Row],[FUNC]]),\"NO\",\"YES\")))","v":"NO"}]
[{"$f":"CONCATENATE(tblREGASSJune19[[#This Row],[Primary Account]],tblREGASSJune19[[#This Row],[Primary Name]],tblREGASSJune19[[#This Row],[Secondary Acct]],tblREGASSJune19[[#This Row],[Secondary  Name]],tblREGASSJune19[[#This Row],[Alloc4FUNC]])","v":"1823940DSR CARRYING CHARGES102188WA REVENUE RECOVERY - CARRYING CHG PENALOTHER"},1823940,"DSR CARRYING CHARGES",102188,"WA REVENUE RECOVERY - CARRYING CHG PENAL","OTHER",-679.53083000000004,{"$f":"IF(OR(tblREGASSJune19[[#This Row],[Alloc]]=\"IDU\",tblREGASSJune19[[#This Row],[Alloc]]=\"OR\",tblREGASSJune19[[#This Row],[Alloc]]=\"UT\",tblREGASSJune19[[#This Row],[Alloc]]=\"WYU\",tblREGASSJune19[[#This Row],[Alloc]]=\"WYP\",tblREGASSJune19[[#This Row],[Alloc]]=\"CA\",tblREGASSJune19[[#This Row],[Alloc]]=\"WA\"),\"SITUS\",tblREGASSJune19[[#This Row],[Alloc]])","v":"OTHER"},{"$f":"INDEX(tblREGASSLookup[FUNC],MATCH(tblREGASSJune19[[#This Row],[Concat]],tblREGASSLookup[Concat],0))","v":"CUST"},{"$f":"IF(tblREGASSJune19[[#This Row],[Total ($000)]]=0,\"NO\",IF(ISNA(tblREGASSJune19[[#This Row],[FUNC]]),\"YES\",IF(_xlfn.ISFORMULA(tblREGASSJune19[[#This Row],[FUNC]]),\"NO\",\"YES\")))","v":"NO"}]
[{"$f":"CONCATENATE(tblREGASSJune19[[#This Row],[Primary Account]],tblREGASSJune19[[#This Row],[Primary Name]],tblREGASSJune19[[#This Row],[Secondary Acct]],tblREGASSJune19[[#This Row],[Secondary  Name]],tblREGASSJune19[[#This Row],[Alloc4FUNC]])","v":"1823940DSR CARRYING CHARGES102766DSR CARRYING CHARGESSITUS"},1823940,"DSR CARRYING CHARGES",102766,"DSR CARRYING CHARGES","IDU",163.02600000000001,{"$f":"IF(OR(tblREGASSJune19[[#This Row],[Alloc]]=\"IDU\",tblREGASSJune19[[#This Row],[Alloc]]=\"OR\",tblREGASSJune19[[#This Row],[Alloc]]=\"UT\",tblREGASSJune19[[#This Row],[Alloc]]=\"WYU\",tblREGASSJune19[[#This Row],[Alloc]]=\"WYP\",tblREGASSJune19[[#This Row],[Alloc]]=\"CA\",tblREGASSJune19[[#This Row],[Alloc]]=\"WA\"),\"SITUS\",tblREGASSJune19[[#This Row],[Alloc]])","v":"SITUS"},{"$f":"INDEX(tblREGASSLookup[FUNC],MATCH(tblREGASSJune19[[#This Row],[Concat]],tblREGASSLookup[Concat],0))","v":"CUST"},{"$f":"IF(tblREGASSJune19[[#This Row],[Total ($000)]]=0,\"NO\",IF(ISNA(tblREGASSJune19[[#This Row],[FUNC]]),\"YES\",IF(_xlfn.ISFORMULA(tblREGASSJune19[[#This Row],[FUNC]]),\"NO\",\"YES\")))","v":"NO"}]
[{"$f":"CONCATENATE(tblREGASSJune19[[#This Row],[Primary Account]],tblREGASSJune19[[#This Row],[Primary Name]],tblREGASSJune19[[#This Row],[Secondary Acct]],tblREGASSJune19[[#This Row],[Secondary  Name]],tblREGASSJune19[[#This Row],[Alloc4FUNC]])","v":"1823940DSR CARRYING CHARGES103140Wy DSM - Cat1 - Carrying ChargesOTHER"},1823940,"DSR CARRYING CHARGES",103140,"Wy DSM - Cat1 - Carrying Charges","OTHER",-101.753,{"$f":"IF(OR(tblREGASSJune19[[#This Row],[Alloc]]=\"IDU\",tblREGASSJune19[[#This Row],[Alloc]]=\"OR\",tblREGASSJune19[[#This Row],[Alloc]]=\"UT\",tblREGASSJune19[[#This Row],[Alloc]]=\"WYU\",tblREGASSJune19[[#This Row],[Alloc]]=\"WYP\",tblREGASSJune19[[#This Row],[Alloc]]=\"CA\",tblREGASSJune19[[#This Row],[Alloc]]=\"WA\"),\"SITUS\",tblREGASSJune19[[#This Row],[Alloc]])","v":"OTHER"},{"$f":"INDEX(tblREGASSLookup[FUNC],MATCH(tblREGASSJune19[[#This Row],[Concat]],tblREGASSLookup[Concat],0))","v":"CUST"},{"$f":"IF(tblREGASSJune19[[#This Row],[Total ($000)]]=0,\"NO\",IF(ISNA(tblREGASSJune19[[#This Row],[FUNC]]),\"YES\",IF(_xlfn.ISFORMULA(tblREGASSJune19[[#This Row],[FUNC]]),\"NO\",\"YES\")))","v":"NO"}]
[{"$f":"CONCATENATE(tblREGASSJune19[[#This Row],[Primary Account]],tblREGASSJune19[[#This Row],[Primary Name]],tblREGASSJune19[[#This Row],[Secondary Acct]],tblREGASSJune19[[#This Row],[Secondary  Name]],tblREGASSJune19[[#This Row],[Alloc4FUNC]])","v":"1823940DSR CARRYING CHARGES103141Wy DSM - Cat2 - Carrying ChargesOTHER"},1823940,"DSR CARRYING CHARGES",103141,"Wy DSM - Cat2 - Carrying Charges","OTHER",-33.746000000000002,{"$f":"IF(OR(tblREGASSJune19[[#This Row],[Alloc]]=\"IDU\",tblREGASSJune19[[#This Row],[Alloc]]=\"OR\",tblREGASSJune19[[#This Row],[Alloc]]=\"UT\",tblREGASSJune19[[#This Row],[Alloc]]=\"WYU\",tblREGASSJune19[[#This Row],[Alloc]]=\"WYP\",tblREGASSJune19[[#This Row],[Alloc]]=\"CA\",tblREGASSJune19[[#This Row],[Alloc]]=\"WA\"),\"SITUS\",tblREGASSJune19[[#This Row],[Alloc]])","v":"OTHER"},{"$f":"INDEX(tblREGASSLookup[FUNC],MATCH(tblREGASSJune19[[#This Row],[Concat]],tblREGASSLookup[Concat],0))","v":"CUST"},{"$f":"IF(tblREGASSJune19[[#This Row],[Total ($000)]]=0,\"NO\",IF(ISNA(tblREGASSJune19[[#This Row],[FUNC]]),\"YES\",IF(_xlfn.ISFORMULA(tblREGASSJune19[[#This Row],[FUNC]]),\"NO\",\"YES\")))","v":"NO"}]
[{"$f":"CONCATENATE(tblREGASSJune19[[#This Row],[Primary Account]],tblREGASSJune19[[#This Row],[Primary Name]],tblREGASSJune19[[#This Row],[Secondary Acct]],tblREGASSJune19[[#This Row],[Secondary  Name]],tblREGASSJune19[[#This Row],[Alloc4FUNC]])","v":"1823940DSR CARRYING CHARGES103142Wy DSM - Cat3 - Carrying ChargesOTHER"},1823940,"DSR CARRYING CHARGES",103142,"Wy DSM - Cat3 - Carrying Charges","OTHER",-86.477000000000004,{"$f":"IF(OR(tblREGASSJune19[[#This Row],[Alloc]]=\"IDU\",tblREGASSJune19[[#This Row],[Alloc]]=\"OR\",tblREGASSJune19[[#This Row],[Alloc]]=\"UT\",tblREGASSJune19[[#This Row],[Alloc]]=\"WYU\",tblREGASSJune19[[#This Row],[Alloc]]=\"WYP\",tblREGASSJune19[[#This Row],[Alloc]]=\"CA\",tblREGASSJune19[[#This Row],[Alloc]]=\"WA\"),\"SITUS\",tblREGASSJune19[[#This Row],[Alloc]])","v":"OTHER"},{"$f":"INDEX(tblREGASSLookup[FUNC],MATCH(tblREGASSJune19[[#This Row],[Concat]],tblREGASSLookup[Concat],0))","v":"CUST"},{"$f":"IF(tblREGASSJune19[[#This Row],[Total ($000)]]=0,\"NO\",IF(ISNA(tblREGASSJune19[[#This Row],[FUNC]]),\"YES\",IF(_xlfn.ISFORMULA(tblREGASSJune19[[#This Row],[FUNC]]),\"NO\",\"YES\")))","v":"NO"}]
[{"$f":"CONCATENATE(tblREGASSJune19[[#This Row],[Primary Account]],tblREGASSJune19[[#This Row],[Primary Name]],tblREGASSJune19[[#This Row],[Secondary Acct]],tblREGASSJune19[[#This Row],[Secondary  Name]],tblREGASSJune19[[#This Row],[Alloc4FUNC]])","v":"1823940DSR CARRYING CHARGES103279CA CARRYING CHRG LIEE - 2011OTHER"},1823940,"DSR CARRYING CHARGES",103279,"CA CARRYING CHRG LIEE - 2011","OTHER",0,{"$f":"IF(OR(tblREGASSJune19[[#This Row],[Alloc]]=\"IDU\",tblREGASSJune19[[#This Row],[Alloc]]=\"OR\",tblREGASSJune19[[#This Row],[Alloc]]=\"UT\",tblREGASSJune19[[#This Row],[Alloc]]=\"WYU\",tblREGASSJune19[[#This Row],[Alloc]]=\"WYP\",tblREGASSJune19[[#This Row],[Alloc]]=\"CA\",tblREGASSJune19[[#This Row],[Alloc]]=\"WA\"),\"SITUS\",tblREGASSJune19[[#This Row],[Alloc]])","v":"OTHER"},{"$f":"INDEX(tblREGASSLookup[FUNC],MATCH(tblREGASSJune19[[#This Row],[Concat]],tblREGASSLookup[Concat],0))","v":"CUST"},{"$f":"IF(tblREGASSJune19[[#This Row],[Total ($000)]]=0,\"NO\",IF(ISNA(tblREGASSJune19[[#This Row],[FUNC]]),\"YES\",IF(_xlfn.ISFORMULA(tblREGASSJune19[[#This Row],[FUNC]]),\"NO\",\"YES\")))","v":"NO"}]
[{"$f":"CONCATENATE(tblREGASSJune19[[#This Row],[Primary Account]],tblREGASSJune19[[#This Row],[Primary Name]],tblREGASSJune19[[#This Row],[Secondary Acct]],tblREGASSJune19[[#This Row],[Secondary  Name]],tblREGASSJune19[[#This Row],[Alloc4FUNC]])","v":"1823950DSR DEF AMORTIZATION102203OR REV - DEF RECOVERY OFFEST 2002OTHER"},1823950,"DSR DEF AMORTIZATION",102203,"OR REV - DEF RECOVERY OFFEST 2002","OTHER",0,{"$f":"IF(OR(tblREGASSJune19[[#This Row],[Alloc]]=\"IDU\",tblREGASSJune19[[#This Row],[Alloc]]=\"OR\",tblREGASSJune19[[#This Row],[Alloc]]=\"UT\",tblREGASSJune19[[#This Row],[Alloc]]=\"WYU\",tblREGASSJune19[[#This Row],[Alloc]]=\"WYP\",tblREGASSJune19[[#This Row],[Alloc]]=\"CA\",tblREGASSJune19[[#This Row],[Alloc]]=\"WA\"),\"SITUS\",tblREGASSJune19[[#This Row],[Alloc]])","v":"OTHER"},{"$f":"INDEX(tblREGASSLookup[FUNC],MATCH(tblREGASSJune19[[#This Row],[Concat]],tblREGASSLookup[Concat],0))","v":{"$error":"#N/A"}},{"$f":"IF(tblREGASSJune19[[#This Row],[Total ($000)]]=0,\"NO\",IF(ISNA(tblREGASSJune19[[#This Row],[FUNC]]),\"YES\",IF(_xlfn.ISFORMULA(tblREGASSJune19[[#This Row],[FUNC]]),\"NO\",\"YES\")))","v":"NO"}]
[{"$f":"CONCATENATE(tblREGASSJune19[[#This Row],[Primary Account]],tblREGASSJune19[[#This Row],[Primary Name]],tblREGASSJune19[[#This Row],[Secondary Acct]],tblREGASSJune19[[#This Row],[Secondary  Name]],tblREGASSJune19[[#This Row],[Alloc4FUNC]])","v":"1823960DSR DEF NET LOST REV101662NET LOST REVN COMMSITUS"},1823960,"DSR DEF NET LOST REV",101662,"NET LOST REVN COMM","UT",0,{"$f":"IF(OR(tblREGASSJune19[[#This Row],[Alloc]]=\"IDU\",tblREGASSJune19[[#This Row],[Alloc]]=\"OR\",tblREGASSJune19[[#This Row],[Alloc]]=\"UT\",tblREGASSJune19[[#This Row],[Alloc]]=\"WYU\",tblREGASSJune19[[#This Row],[Alloc]]=\"WYP\",tblREGASSJune19[[#This Row],[Alloc]]=\"CA\",tblREGASSJune19[[#This Row],[Alloc]]=\"WA\"),\"SITUS\",tblREGASSJune19[[#This Row],[Alloc]])","v":"SITUS"},{"$f":"INDEX(tblREGASSLookup[FUNC],MATCH(tblREGASSJune19[[#This Row],[Concat]],tblREGASSLookup[Concat],0))","v":{"$error":"#N/A"}},{"$f":"IF(tblREGASSJune19[[#This Row],[Total ($000)]]=0,\"NO\",IF(ISNA(tblREGASSJune19[[#This Row],[FUNC]]),\"YES\",IF(_xlfn.ISFORMULA(tblREGASSJune19[[#This Row],[FUNC]]),\"NO\",\"YES\")))","v":"NO"}]
[{"$f":"CONCATENATE(tblREGASSJune19[[#This Row],[Primary Account]],tblREGASSJune19[[#This Row],[Primary Name]],tblREGASSJune19[[#This Row],[Secondary Acct]],tblREGASSJune19[[#This Row],[Secondary  Name]],tblREGASSJune19[[#This Row],[Alloc4FUNC]])","v":"1823960DSR DEF NET LOST REV101663NET LOST REVN COMMSITUS"},1823960,"DSR DEF NET LOST REV",101663,"NET LOST REVN COMM","UT",0,{"$f":"IF(OR(tblREGASSJune19[[#This Row],[Alloc]]=\"IDU\",tblREGASSJune19[[#This Row],[Alloc]]=\"OR\",tblREGASSJune19[[#This Row],[Alloc]]=\"UT\",tblREGASSJune19[[#This Row],[Alloc]]=\"WYU\",tblREGASSJune19[[#This Row],[Alloc]]=\"WYP\",tblREGASSJune19[[#This Row],[Alloc]]=\"CA\",tblREGASSJune19[[#This Row],[Alloc]]=\"WA\"),\"SITUS\",tblREGASSJune19[[#This Row],[Alloc]])","v":"SITUS"},{"$f":"INDEX(tblREGASSLookup[FUNC],MATCH(tblREGASSJune19[[#This Row],[Concat]],tblREGASSLookup[Concat],0))","v":{"$error":"#N/A"}},{"$f":"IF(tblREGASSJune19[[#This Row],[Total ($000)]]=0,\"NO\",IF(ISNA(tblREGASSJune19[[#This Row],[FUNC]]),\"YES\",IF(_xlfn.ISFORMULA(tblREGASSJune19[[#This Row],[FUNC]]),\"NO\",\"YES\")))","v":"NO"}]
[{"$f":"CONCATENATE(tblREGASSJune19[[#This Row],[Primary Account]],tblREGASSJune19[[#This Row],[Primary Name]],tblREGASSJune19[[#This Row],[Secondary Acct]],tblREGASSJune19[[#This Row],[Secondary  Name]],tblREGASSJune19[[#This Row],[Alloc4FUNC]])","v":"1823960DSR DEF NET LOST REV101664UTAH NET LOST REV - COMM. FINANSWER 1996SITUS"},1823960,"DSR DEF NET LOST REV",101664,"UTAH NET LOST REV - COMM. FINANSWER 1996","UT",0,{"$f":"IF(OR(tblREGASSJune19[[#This Row],[Alloc]]=\"IDU\",tblREGASSJune19[[#This Row],[Alloc]]=\"OR\",tblREGASSJune19[[#This Row],[Alloc]]=\"UT\",tblREGASSJune19[[#This Row],[Alloc]]=\"WYU\",tblREGASSJune19[[#This Row],[Alloc]]=\"WYP\",tblREGASSJune19[[#This Row],[Alloc]]=\"CA\",tblREGASSJune19[[#This Row],[Alloc]]=\"WA\"),\"SITUS\",tblREGASSJune19[[#This Row],[Alloc]])","v":"SITUS"},{"$f":"INDEX(tblREGASSLookup[FUNC],MATCH(tblREGASSJune19[[#This Row],[Concat]],tblREGASSLookup[Concat],0))","v":{"$error":"#N/A"}},{"$f":"IF(tblREGASSJune19[[#This Row],[Total ($000)]]=0,\"NO\",IF(ISNA(tblREGASSJune19[[#This Row],[FUNC]]),\"YES\",IF(_xlfn.ISFORMULA(tblREGASSJune19[[#This Row],[FUNC]]),\"NO\",\"YES\")))","v":"NO"}]
[{"$f":"CONCATENATE(tblREGASSJune19[[#This Row],[Primary Account]],tblREGASSJune19[[#This Row],[Primary Name]],tblREGASSJune19[[#This Row],[Secondary Acct]],tblREGASSJune19[[#This Row],[Secondary  Name]],tblREGASSJune19[[#This Row],[Alloc4FUNC]])","v":"1823960DSR DEF NET LOST REV101665NET LOST REVN ECONSSITUS"},1823960,"DSR DEF NET LOST REV",101665,"NET LOST REVN ECONS","UT",0,{"$f":"IF(OR(tblREGASSJune19[[#This Row],[Alloc]]=\"IDU\",tblREGASSJune19[[#This Row],[Alloc]]=\"OR\",tblREGASSJune19[[#This Row],[Alloc]]=\"UT\",tblREGASSJune19[[#This Row],[Alloc]]=\"WYU\",tblREGASSJune19[[#This Row],[Alloc]]=\"WYP\",tblREGASSJune19[[#This Row],[Alloc]]=\"CA\",tblREGASSJune19[[#This Row],[Alloc]]=\"WA\"),\"SITUS\",tblREGASSJune19[[#This Row],[Alloc]])","v":"SITUS"},{"$f":"INDEX(tblREGASSLookup[FUNC],MATCH(tblREGASSJune19[[#This Row],[Concat]],tblREGASSLookup[Concat],0))","v":{"$error":"#N/A"}},{"$f":"IF(tblREGASSJune19[[#This Row],[Total ($000)]]=0,\"NO\",IF(ISNA(tblREGASSJune19[[#This Row],[FUNC]]),\"YES\",IF(_xlfn.ISFORMULA(tblREGASSJune19[[#This Row],[FUNC]]),\"NO\",\"YES\")))","v":"NO"}]
[{"$f":"CONCATENATE(tblREGASSJune19[[#This Row],[Primary Account]],tblREGASSJune19[[#This Row],[Primary Name]],tblREGASSJune19[[#This Row],[Secondary Acct]],tblREGASSJune19[[#This Row],[Secondary  Name]],tblREGASSJune19[[#This Row],[Alloc4FUNC]])","v":"1823960DSR DEF NET LOST REV101666NET LOST REVN ECONSSITUS"},1823960,"DSR DEF NET LOST REV",101666,"NET LOST REVN ECONS","UT",0,{"$f":"IF(OR(tblREGASSJune19[[#This Row],[Alloc]]=\"IDU\",tblREGASSJune19[[#This Row],[Alloc]]=\"OR\",tblREGASSJune19[[#This Row],[Alloc]]=\"UT\",tblREGASSJune19[[#This Row],[Alloc]]=\"WYU\",tblREGASSJune19[[#This Row],[Alloc]]=\"WYP\",tblREGASSJune19[[#This Row],[Alloc]]=\"CA\",tblREGASSJune19[[#This Row],[Alloc]]=\"WA\"),\"SITUS\",tblREGASSJune19[[#This Row],[Alloc]])","v":"SITUS"},{"$f":"INDEX(tblREGASSLookup[FUNC],MATCH(tblREGASSJune19[[#This Row],[Concat]],tblREGASSLookup[Concat],0))","v":{"$error":"#N/A"}},{"$f":"IF(tblREGASSJune19[[#This Row],[Total ($000)]]=0,\"NO\",IF(ISNA(tblREGASSJune19[[#This Row],[FUNC]]),\"YES\",IF(_xlfn.ISFORMULA(tblREGASSJune19[[#This Row],[FUNC]]),\"NO\",\"YES\")))","v":"NO"}]
[{"$f":"CONCATENATE(tblREGASSJune19[[#This Row],[Primary Account]],tblREGASSJune19[[#This Row],[Primary Name]],tblREGASSJune19[[#This Row],[Secondary Acct]],tblREGASSJune19[[#This Row],[Secondary  Name]],tblREGASSJune19[[#This Row],[Alloc4FUNC]])","v":"1823960DSR DEF NET LOST REV101667UTAH NET LOST REV - LOW INCOME - 1995SITUS"},1823960,"DSR DEF NET LOST REV",101667,"UTAH NET LOST REV - LOW INCOME - 1995","UT",0,{"$f":"IF(OR(tblREGASSJune19[[#This Row],[Alloc]]=\"IDU\",tblREGASSJune19[[#This Row],[Alloc]]=\"OR\",tblREGASSJune19[[#This Row],[Alloc]]=\"UT\",tblREGASSJune19[[#This Row],[Alloc]]=\"WYU\",tblREGASSJune19[[#This Row],[Alloc]]=\"WYP\",tblREGASSJune19[[#This Row],[Alloc]]=\"CA\",tblREGASSJune19[[#This Row],[Alloc]]=\"WA\"),\"SITUS\",tblREGASSJune19[[#This Row],[Alloc]])","v":"SITUS"},{"$f":"INDEX(tblREGASSLookup[FUNC],MATCH(tblREGASSJune19[[#This Row],[Concat]],tblREGASSLookup[Concat],0))","v":{"$error":"#N/A"}},{"$f":"IF(tblREGASSJune19[[#This Row],[Total ($000)]]=0,\"NO\",IF(ISNA(tblREGASSJune19[[#This Row],[FUNC]]),\"YES\",IF(_xlfn.ISFORMULA(tblREGASSJune19[[#This Row],[FUNC]]),\"NO\",\"YES\")))","v":"NO"}]
[{"$f":"CONCATENATE(tblREGASSJune19[[#This Row],[Primary Account]],tblREGASSJune19[[#This Row],[Primary Name]],tblREGASSJune19[[#This Row],[Secondary Acct]],tblREGASSJune19[[#This Row],[Secondary  Name]],tblREGASSJune19[[#This Row],[Alloc4FUNC]])","v":"1823960DSR DEF NET LOST REV101668UTAH NET LOST REV - LOW INCOME - 1996SITUS"},1823960,"DSR DEF NET LOST REV",101668,"UTAH NET LOST REV - LOW INCOME - 1996","UT",0,{"$f":"IF(OR(tblREGASSJune19[[#This Row],[Alloc]]=\"IDU\",tblREGASSJune19[[#This Row],[Alloc]]=\"OR\",tblREGASSJune19[[#This Row],[Alloc]]=\"UT\",tblREGASSJune19[[#This Row],[Alloc]]=\"WYU\",tblREGASSJune19[[#This Row],[Alloc]]=\"WYP\",tblREGASSJune19[[#This Row],[Alloc]]=\"CA\",tblREGASSJune19[[#This Row],[Alloc]]=\"WA\"),\"SITUS\",tblREGASSJune19[[#This Row],[Alloc]])","v":"SITUS"},{"$f":"INDEX(tblREGASSLookup[FUNC],MATCH(tblREGASSJune19[[#This Row],[Concat]],tblREGASSLookup[Concat],0))","v":{"$error":"#N/A"}},{"$f":"IF(tblREGASSJune19[[#This Row],[Total ($000)]]=0,\"NO\",IF(ISNA(tblREGASSJune19[[#This Row],[FUNC]]),\"YES\",IF(_xlfn.ISFORMULA(tblREGASSJune19[[#This Row],[FUNC]]),\"NO\",\"YES\")))","v":"NO"}]
[{"$f":"CONCATENATE(tblREGASSJune19[[#This Row],[Primary Account]],tblREGASSJune19[[#This Row],[Primary Name]],tblREGASSJune19[[#This Row],[Secondary Acct]],tblREGASSJune19[[#This Row],[Secondary  Name]],tblREGASSJune19[[#This Row],[Alloc4FUNC]])","v":"1823960DSR DEF NET LOST REV101669NET LOST REVN LOWSITUS"},1823960,"DSR DEF NET LOST REV",101669,"NET LOST REVN LOW","UT",0,{"$f":"IF(OR(tblREGASSJune19[[#This Row],[Alloc]]=\"IDU\",tblREGASSJune19[[#This Row],[Alloc]]=\"OR\",tblREGASSJune19[[#This Row],[Alloc]]=\"UT\",tblREGASSJune19[[#This Row],[Alloc]]=\"WYU\",tblREGASSJune19[[#This Row],[Alloc]]=\"WYP\",tblREGASSJune19[[#This Row],[Alloc]]=\"CA\",tblREGASSJune19[[#This Row],[Alloc]]=\"WA\"),\"SITUS\",tblREGASSJune19[[#This Row],[Alloc]])","v":"SITUS"},{"$f":"INDEX(tblREGASSLookup[FUNC],MATCH(tblREGASSJune19[[#This Row],[Concat]],tblREGASSLookup[Concat],0))","v":{"$error":"#N/A"}},{"$f":"IF(tblREGASSJune19[[#This Row],[Total ($000)]]=0,\"NO\",IF(ISNA(tblREGASSJune19[[#This Row],[FUNC]]),\"YES\",IF(_xlfn.ISFORMULA(tblREGASSJune19[[#This Row],[FUNC]]),\"NO\",\"YES\")))","v":"NO"}]
[{"$f":"CONCATENATE(tblREGASSJune19[[#This Row],[Primary Account]],tblREGASSJune19[[#This Row],[Primary Name]],tblREGASSJune19[[#This Row],[Secondary Acct]],tblREGASSJune19[[#This Row],[Secondary  Name]],tblREGASSJune19[[#This Row],[Alloc4FUNC]])","v":"1823960DSR DEF NET LOST REV101670NET LOST REVN SERPSITUS"},1823960,"DSR DEF NET LOST REV",101670,"NET LOST REVN SERP","UT",0,{"$f":"IF(OR(tblREGASSJune19[[#This Row],[Alloc]]=\"IDU\",tblREGASSJune19[[#This Row],[Alloc]]=\"OR\",tblREGASSJune19[[#This Row],[Alloc]]=\"UT\",tblREGASSJune19[[#This Row],[Alloc]]=\"WYU\",tblREGASSJune19[[#This Row],[Alloc]]=\"WYP\",tblREGASSJune19[[#This Row],[Alloc]]=\"CA\",tblREGASSJune19[[#This Row],[Alloc]]=\"WA\"),\"SITUS\",tblREGASSJune19[[#This Row],[Alloc]])","v":"SITUS"},{"$f":"INDEX(tblREGASSLookup[FUNC],MATCH(tblREGASSJune19[[#This Row],[Concat]],tblREGASSLookup[Concat],0))","v":{"$error":"#N/A"}},{"$f":"IF(tblREGASSJune19[[#This Row],[Total ($000)]]=0,\"NO\",IF(ISNA(tblREGASSJune19[[#This Row],[FUNC]]),\"YES\",IF(_xlfn.ISFORMULA(tblREGASSJune19[[#This Row],[FUNC]]),\"NO\",\"YES\")))","v":"NO"}]
[{"$f":"CONCATENATE(tblREGASSJune19[[#This Row],[Primary Account]],tblREGASSJune19[[#This Row],[Primary Name]],tblREGASSJune19[[#This Row],[Secondary Acct]],tblREGASSJune19[[#This Row],[Secondary  Name]],tblREGASSJune19[[#This Row],[Alloc4FUNC]])","v":"1823960DSR DEF NET LOST REV101671NET LOST REVN SERPSITUS"},1823960,"DSR DEF NET LOST REV",101671,"NET LOST REVN SERP","UT",0,{"$f":"IF(OR(tblREGASSJune19[[#This Row],[Alloc]]=\"IDU\",tblREGASSJune19[[#This Row],[Alloc]]=\"OR\",tblREGASSJune19[[#This Row],[Alloc]]=\"UT\",tblREGASSJune19[[#This Row],[Alloc]]=\"WYU\",tblREGASSJune19[[#This Row],[Alloc]]=\"WYP\",tblREGASSJune19[[#This Row],[Alloc]]=\"CA\",tblREGASSJune19[[#This Row],[Alloc]]=\"WA\"),\"SITUS\",tblREGASSJune19[[#This Row],[Alloc]])","v":"SITUS"},{"$f":"INDEX(tblREGASSLookup[FUNC],MATCH(tblREGASSJune19[[#This Row],[Concat]],tblREGASSLookup[Concat],0))","v":{"$error":"#N/A"}},{"$f":"IF(tblREGASSJune19[[#This Row],[Total ($000)]]=0,\"NO\",IF(ISNA(tblREGASSJune19[[#This Row],[FUNC]]),\"YES\",IF(_xlfn.ISFORMULA(tblREGASSJune19[[#This Row],[FUNC]]),\"NO\",\"YES\")))","v":"NO"}]
[{"$f":"CONCATENATE(tblREGASSJune19[[#This Row],[Primary Account]],tblREGASSJune19[[#This Row],[Primary Name]],tblREGASSJune19[[#This Row],[Secondary Acct]],tblREGASSJune19[[#This Row],[Secondary  Name]],tblREGASSJune19[[#This Row],[Alloc4FUNC]])","v":"1823960DSR DEF NET LOST REV101672NET LOST REVN SERPSITUS"},1823960,"DSR DEF NET LOST REV",101672,"NET LOST REVN SERP","UT",0,{"$f":"IF(OR(tblREGASSJune19[[#This Row],[Alloc]]=\"IDU\",tblREGASSJune19[[#This Row],[Alloc]]=\"OR\",tblREGASSJune19[[#This Row],[Alloc]]=\"UT\",tblREGASSJune19[[#This Row],[Alloc]]=\"WYU\",tblREGASSJune19[[#This Row],[Alloc]]=\"WYP\",tblREGASSJune19[[#This Row],[Alloc]]=\"CA\",tblREGASSJune19[[#This Row],[Alloc]]=\"WA\"),\"SITUS\",tblREGASSJune19[[#This Row],[Alloc]])","v":"SITUS"},{"$f":"INDEX(tblREGASSLookup[FUNC],MATCH(tblREGASSJune19[[#This Row],[Concat]],tblREGASSLookup[Concat],0))","v":{"$error":"#N/A"}},{"$f":"IF(tblREGASSJune19[[#This Row],[Total ($000)]]=0,\"NO\",IF(ISNA(tblREGASSJune19[[#This Row],[FUNC]]),\"YES\",IF(_xlfn.ISFORMULA(tblREGASSJune19[[#This Row],[FUNC]]),\"NO\",\"YES\")))","v":"NO"}]
[{"$f":"CONCATENATE(tblREGASSJune19[[#This Row],[Primary Account]],tblREGASSJune19[[#This Row],[Primary Name]],tblREGASSJune19[[#This Row],[Secondary Acct]],tblREGASSJune19[[#This Row],[Secondary  Name]],tblREGASSJune19[[#This Row],[Alloc4FUNC]])","v":"1823960DSR DEF NET LOST REV101673NET LOST REVN 12000SITUS"},1823960,"DSR DEF NET LOST REV",101673,"NET LOST REVN 12000","UT",0,{"$f":"IF(OR(tblREGASSJune19[[#This Row],[Alloc]]=\"IDU\",tblREGASSJune19[[#This Row],[Alloc]]=\"OR\",tblREGASSJune19[[#This Row],[Alloc]]=\"UT\",tblREGASSJune19[[#This Row],[Alloc]]=\"WYU\",tblREGASSJune19[[#This Row],[Alloc]]=\"WYP\",tblREGASSJune19[[#This Row],[Alloc]]=\"CA\",tblREGASSJune19[[#This Row],[Alloc]]=\"WA\"),\"SITUS\",tblREGASSJune19[[#This Row],[Alloc]])","v":"SITUS"},{"$f":"INDEX(tblREGASSLookup[FUNC],MATCH(tblREGASSJune19[[#This Row],[Concat]],tblREGASSLookup[Concat],0))","v":{"$error":"#N/A"}},{"$f":"IF(tblREGASSJune19[[#This Row],[Total ($000)]]=0,\"NO\",IF(ISNA(tblREGASSJune19[[#This Row],[FUNC]]),\"YES\",IF(_xlfn.ISFORMULA(tblREGASSJune19[[#This Row],[FUNC]]),\"NO\",\"YES\")))","v":"NO"}]
[{"$f":"CONCATENATE(tblREGASSJune19[[#This Row],[Primary Account]],tblREGASSJune19[[#This Row],[Primary Name]],tblREGASSJune19[[#This Row],[Secondary Acct]],tblREGASSJune19[[#This Row],[Secondary  Name]],tblREGASSJune19[[#This Row],[Alloc4FUNC]])","v":"1823960DSR DEF NET LOST REV101674NET LOST REVN 12000SITUS"},1823960,"DSR DEF NET LOST REV",101674,"NET LOST REVN 12000","UT",0,{"$f":"IF(OR(tblREGASSJune19[[#This Row],[Alloc]]=\"IDU\",tblREGASSJune19[[#This Row],[Alloc]]=\"OR\",tblREGASSJune19[[#This Row],[Alloc]]=\"UT\",tblREGASSJune19[[#This Row],[Alloc]]=\"WYU\",tblREGASSJune19[[#This Row],[Alloc]]=\"WYP\",tblREGASSJune19[[#This Row],[Alloc]]=\"CA\",tblREGASSJune19[[#This Row],[Alloc]]=\"WA\"),\"SITUS\",tblREGASSJune19[[#This Row],[Alloc]])","v":"SITUS"},{"$f":"INDEX(tblREGASSLookup[FUNC],MATCH(tblREGASSJune19[[#This Row],[Concat]],tblREGASSLookup[Concat],0))","v":{"$error":"#N/A"}},{"$f":"IF(tblREGASSJune19[[#This Row],[Total ($000)]]=0,\"NO\",IF(ISNA(tblREGASSJune19[[#This Row],[FUNC]]),\"YES\",IF(_xlfn.ISFORMULA(tblREGASSJune19[[#This Row],[FUNC]]),\"NO\",\"YES\")))","v":"NO"}]
[{"$f":"CONCATENATE(tblREGASSJune19[[#This Row],[Primary Account]],tblREGASSJune19[[#This Row],[Primary Name]],tblREGASSJune19[[#This Row],[Secondary Acct]],tblREGASSJune19[[#This Row],[Secondary  Name]],tblREGASSJune19[[#This Row],[Alloc4FUNC]])","v":"1823960DSR DEF NET LOST REV101675NET LOST REVN 12000SITUS"},1823960,"DSR DEF NET LOST REV",101675,"NET LOST REVN 12000","UT",0,{"$f":"IF(OR(tblREGASSJune19[[#This Row],[Alloc]]=\"IDU\",tblREGASSJune19[[#This Row],[Alloc]]=\"OR\",tblREGASSJune19[[#This Row],[Alloc]]=\"UT\",tblREGASSJune19[[#This Row],[Alloc]]=\"WYU\",tblREGASSJune19[[#This Row],[Alloc]]=\"WYP\",tblREGASSJune19[[#This Row],[Alloc]]=\"CA\",tblREGASSJune19[[#This Row],[Alloc]]=\"WA\"),\"SITUS\",tblREGASSJune19[[#This Row],[Alloc]])","v":"SITUS"},{"$f":"INDEX(tblREGASSLookup[FUNC],MATCH(tblREGASSJune19[[#This Row],[Concat]],tblREGASSLookup[Concat],0))","v":{"$error":"#N/A"}},{"$f":"IF(tblREGASSJune19[[#This Row],[Total ($000)]]=0,\"NO\",IF(ISNA(tblREGASSJune19[[#This Row],[FUNC]]),\"YES\",IF(_xlfn.ISFORMULA(tblREGASSJune19[[#This Row],[FUNC]]),\"NO\",\"YES\")))","v":"NO"}]
[{"$f":"CONCATENATE(tblREGASSJune19[[#This Row],[Primary Account]],tblREGASSJune19[[#This Row],[Primary Name]],tblREGASSJune19[[#This Row],[Secondary Acct]],tblREGASSJune19[[#This Row],[Secondary  Name]],tblREGASSJune19[[#This Row],[Alloc4FUNC]])","v":"1823960DSR DEF NET LOST REV101676NET LOST REVN SCHD 5SITUS"},1823960,"DSR DEF NET LOST REV",101676,"NET LOST REVN SCHD 5","UT",0,{"$f":"IF(OR(tblREGASSJune19[[#This Row],[Alloc]]=\"IDU\",tblREGASSJune19[[#This Row],[Alloc]]=\"OR\",tblREGASSJune19[[#This Row],[Alloc]]=\"UT\",tblREGASSJune19[[#This Row],[Alloc]]=\"WYU\",tblREGASSJune19[[#This Row],[Alloc]]=\"WYP\",tblREGASSJune19[[#This Row],[Alloc]]=\"CA\",tblREGASSJune19[[#This Row],[Alloc]]=\"WA\"),\"SITUS\",tblREGASSJune19[[#This Row],[Alloc]])","v":"SITUS"},{"$f":"INDEX(tblREGASSLookup[FUNC],MATCH(tblREGASSJune19[[#This Row],[Concat]],tblREGASSLookup[Concat],0))","v":{"$error":"#N/A"}},{"$f":"IF(tblREGASSJune19[[#This Row],[Total ($000)]]=0,\"NO\",IF(ISNA(tblREGASSJune19[[#This Row],[FUNC]]),\"YES\",IF(_xlfn.ISFORMULA(tblREGASSJune19[[#This Row],[FUNC]]),\"NO\",\"YES\")))","v":"NO"}]
[{"$f":"CONCATENATE(tblREGASSJune19[[#This Row],[Primary Account]],tblREGASSJune19[[#This Row],[Primary Name]],tblREGASSJune19[[#This Row],[Secondary Acct]],tblREGASSJune19[[#This Row],[Secondary  Name]],tblREGASSJune19[[#This Row],[Alloc4FUNC]])","v":"1823960DSR DEF NET LOST REV101678NET LOST REVN MAJORSITUS"},1823960,"DSR DEF NET LOST REV",101678,"NET LOST REVN MAJOR","UT",0,{"$f":"IF(OR(tblREGASSJune19[[#This Row],[Alloc]]=\"IDU\",tblREGASSJune19[[#This Row],[Alloc]]=\"OR\",tblREGASSJune19[[#This Row],[Alloc]]=\"UT\",tblREGASSJune19[[#This Row],[Alloc]]=\"WYU\",tblREGASSJune19[[#This Row],[Alloc]]=\"WYP\",tblREGASSJune19[[#This Row],[Alloc]]=\"CA\",tblREGASSJune19[[#This Row],[Alloc]]=\"WA\"),\"SITUS\",tblREGASSJune19[[#This Row],[Alloc]])","v":"SITUS"},{"$f":"INDEX(tblREGASSLookup[FUNC],MATCH(tblREGASSJune19[[#This Row],[Concat]],tblREGASSLookup[Concat],0))","v":{"$error":"#N/A"}},{"$f":"IF(tblREGASSJune19[[#This Row],[Total ($000)]]=0,\"NO\",IF(ISNA(tblREGASSJune19[[#This Row],[FUNC]]),\"YES\",IF(_xlfn.ISFORMULA(tblREGASSJune19[[#This Row],[FUNC]]),\"NO\",\"YES\")))","v":"NO"}]
[{"$f":"CONCATENATE(tblREGASSJune19[[#This Row],[Primary Account]],tblREGASSJune19[[#This Row],[Primary Name]],tblREGASSJune19[[#This Row],[Secondary Acct]],tblREGASSJune19[[#This Row],[Secondary  Name]],tblREGASSJune19[[#This Row],[Alloc4FUNC]])","v":"1823960DSR DEF NET LOST REV101679NET LOST REVN MAJORSITUS"},1823960,"DSR DEF NET LOST REV",101679,"NET LOST REVN MAJOR","UT",0,{"$f":"IF(OR(tblREGASSJune19[[#This Row],[Alloc]]=\"IDU\",tblREGASSJune19[[#This Row],[Alloc]]=\"OR\",tblREGASSJune19[[#This Row],[Alloc]]=\"UT\",tblREGASSJune19[[#This Row],[Alloc]]=\"WYU\",tblREGASSJune19[[#This Row],[Alloc]]=\"WYP\",tblREGASSJune19[[#This Row],[Alloc]]=\"CA\",tblREGASSJune19[[#This Row],[Alloc]]=\"WA\"),\"SITUS\",tblREGASSJune19[[#This Row],[Alloc]])","v":"SITUS"},{"$f":"INDEX(tblREGASSLookup[FUNC],MATCH(tblREGASSJune19[[#This Row],[Concat]],tblREGASSLookup[Concat],0))","v":{"$error":"#N/A"}},{"$f":"IF(tblREGASSJune19[[#This Row],[Total ($000)]]=0,\"NO\",IF(ISNA(tblREGASSJune19[[#This Row],[FUNC]]),\"YES\",IF(_xlfn.ISFORMULA(tblREGASSJune19[[#This Row],[FUNC]]),\"NO\",\"YES\")))","v":"NO"}]
[{"$f":"CONCATENATE(tblREGASSJune19[[#This Row],[Primary Account]],tblREGASSJune19[[#This Row],[Primary Name]],tblREGASSJune19[[#This Row],[Secondary Acct]],tblREGASSJune19[[#This Row],[Secondary  Name]],tblREGASSJune19[[#This Row],[Alloc4FUNC]])","v":"1823960DSR DEF NET LOST REV101680NET LOST REVN MAJORSITUS"},1823960,"DSR DEF NET LOST REV",101680,"NET LOST REVN MAJOR","UT",0,{"$f":"IF(OR(tblREGASSJune19[[#This Row],[Alloc]]=\"IDU\",tblREGASSJune19[[#This Row],[Alloc]]=\"OR\",tblREGASSJune19[[#This Row],[Alloc]]=\"UT\",tblREGASSJune19[[#This Row],[Alloc]]=\"WYU\",tblREGASSJune19[[#This Row],[Alloc]]=\"WYP\",tblREGASSJune19[[#This Row],[Alloc]]=\"CA\",tblREGASSJune19[[#This Row],[Alloc]]=\"WA\"),\"SITUS\",tblREGASSJune19[[#This Row],[Alloc]])","v":"SITUS"},{"$f":"INDEX(tblREGASSLookup[FUNC],MATCH(tblREGASSJune19[[#This Row],[Concat]],tblREGASSLookup[Concat],0))","v":{"$error":"#N/A"}},{"$f":"IF(tblREGASSJune19[[#This Row],[Total ($000)]]=0,\"NO\",IF(ISNA(tblREGASSJune19[[#This Row],[FUNC]]),\"YES\",IF(_xlfn.ISFORMULA(tblREGASSJune19[[#This Row],[FUNC]]),\"NO\",\"YES\")))","v":"NO"}]
[{"$f":"CONCATENATE(tblREGASSJune19[[#This Row],[Primary Account]],tblREGASSJune19[[#This Row],[Primary Name]],tblREGASSJune19[[#This Row],[Secondary Acct]],tblREGASSJune19[[#This Row],[Secondary  Name]],tblREGASSJune19[[#This Row],[Alloc4FUNC]])","v":"1823960DSR DEF NET LOST REV101681UTAH NET LOST REV - COMM. SPACE - 1994SITUS"},1823960,"DSR DEF NET LOST REV",101681,"UTAH NET LOST REV - COMM. SPACE - 1994","UT",0,{"$f":"IF(OR(tblREGASSJune19[[#This Row],[Alloc]]=\"IDU\",tblREGASSJune19[[#This Row],[Alloc]]=\"OR\",tblREGASSJune19[[#This Row],[Alloc]]=\"UT\",tblREGASSJune19[[#This Row],[Alloc]]=\"WYU\",tblREGASSJune19[[#This Row],[Alloc]]=\"WYP\",tblREGASSJune19[[#This Row],[Alloc]]=\"CA\",tblREGASSJune19[[#This Row],[Alloc]]=\"WA\"),\"SITUS\",tblREGASSJune19[[#This Row],[Alloc]])","v":"SITUS"},{"$f":"INDEX(tblREGASSLookup[FUNC],MATCH(tblREGASSJune19[[#This Row],[Concat]],tblREGASSLookup[Concat],0))","v":{"$error":"#N/A"}},{"$f":"IF(tblREGASSJune19[[#This Row],[Total ($000)]]=0,\"NO\",IF(ISNA(tblREGASSJune19[[#This Row],[FUNC]]),\"YES\",IF(_xlfn.ISFORMULA(tblREGASSJune19[[#This Row],[FUNC]]),\"NO\",\"YES\")))","v":"NO"}]
[{"$f":"CONCATENATE(tblREGASSJune19[[#This Row],[Primary Account]],tblREGASSJune19[[#This Row],[Primary Name]],tblREGASSJune19[[#This Row],[Secondary Acct]],tblREGASSJune19[[#This Row],[Secondary  Name]],tblREGASSJune19[[#This Row],[Alloc4FUNC]])","v":"1823960DSR DEF NET LOST REV101682NET LOST REVN COMMSITUS"},1823960,"DSR DEF NET LOST REV",101682,"NET LOST REVN COMM","UT",0,{"$f":"IF(OR(tblREGASSJune19[[#This Row],[Alloc]]=\"IDU\",tblREGASSJune19[[#This Row],[Alloc]]=\"OR\",tblREGASSJune19[[#This Row],[Alloc]]=\"UT\",tblREGASSJune19[[#This Row],[Alloc]]=\"WYU\",tblREGASSJune19[[#This Row],[Alloc]]=\"WYP\",tblREGASSJune19[[#This Row],[Alloc]]=\"CA\",tblREGASSJune19[[#This Row],[Alloc]]=\"WA\"),\"SITUS\",tblREGASSJune19[[#This Row],[Alloc]])","v":"SITUS"},{"$f":"INDEX(tblREGASSLookup[FUNC],MATCH(tblREGASSJune19[[#This Row],[Concat]],tblREGASSLookup[Concat],0))","v":{"$error":"#N/A"}},{"$f":"IF(tblREGASSJune19[[#This Row],[Total ($000)]]=0,\"NO\",IF(ISNA(tblREGASSJune19[[#This Row],[FUNC]]),\"YES\",IF(_xlfn.ISFORMULA(tblREGASSJune19[[#This Row],[FUNC]]),\"NO\",\"YES\")))","v":"NO"}]
[{"$f":"CONCATENATE(tblREGASSJune19[[#This Row],[Primary Account]],tblREGASSJune19[[#This Row],[Primary Name]],tblREGASSJune19[[#This Row],[Secondary Acct]],tblREGASSJune19[[#This Row],[Secondary  Name]],tblREGASSJune19[[#This Row],[Alloc4FUNC]])","v":"1823960DSR DEF NET LOST REV101683NET LOST REVN COMMSITUS"},1823960,"DSR DEF NET LOST REV",101683,"NET LOST REVN COMM","UT",0,{"$f":"IF(OR(tblREGASSJune19[[#This Row],[Alloc]]=\"IDU\",tblREGASSJune19[[#This Row],[Alloc]]=\"OR\",tblREGASSJune19[[#This Row],[Alloc]]=\"UT\",tblREGASSJune19[[#This Row],[Alloc]]=\"WYU\",tblREGASSJune19[[#This Row],[Alloc]]=\"WYP\",tblREGASSJune19[[#This Row],[Alloc]]=\"CA\",tblREGASSJune19[[#This Row],[Alloc]]=\"WA\"),\"SITUS\",tblREGASSJune19[[#This Row],[Alloc]])","v":"SITUS"},{"$f":"INDEX(tblREGASSLookup[FUNC],MATCH(tblREGASSJune19[[#This Row],[Concat]],tblREGASSLookup[Concat],0))","v":{"$error":"#N/A"}},{"$f":"IF(tblREGASSJune19[[#This Row],[Total ($000)]]=0,\"NO\",IF(ISNA(tblREGASSJune19[[#This Row],[FUNC]]),\"YES\",IF(_xlfn.ISFORMULA(tblREGASSJune19[[#This Row],[FUNC]]),\"NO\",\"YES\")))","v":"NO"}]
[{"$f":"CONCATENATE(tblREGASSJune19[[#This Row],[Primary Account]],tblREGASSJune19[[#This Row],[Primary Name]],tblREGASSJune19[[#This Row],[Secondary Acct]],tblREGASSJune19[[#This Row],[Secondary  Name]],tblREGASSJune19[[#This Row],[Alloc4FUNC]])","v":"1823960DSR DEF NET LOST REV101684NET LOST REVN COMMSITUS"},1823960,"DSR DEF NET LOST REV",101684,"NET LOST REVN COMM","UT",0,{"$f":"IF(OR(tblREGASSJune19[[#This Row],[Alloc]]=\"IDU\",tblREGASSJune19[[#This Row],[Alloc]]=\"OR\",tblREGASSJune19[[#This Row],[Alloc]]=\"UT\",tblREGASSJune19[[#This Row],[Alloc]]=\"WYU\",tblREGASSJune19[[#This Row],[Alloc]]=\"WYP\",tblREGASSJune19[[#This Row],[Alloc]]=\"CA\",tblREGASSJune19[[#This Row],[Alloc]]=\"WA\"),\"SITUS\",tblREGASSJune19[[#This Row],[Alloc]])","v":"SITUS"},{"$f":"INDEX(tblREGASSLookup[FUNC],MATCH(tblREGASSJune19[[#This Row],[Concat]],tblREGASSLookup[Concat],0))","v":{"$error":"#N/A"}},{"$f":"IF(tblREGASSJune19[[#This Row],[Total ($000)]]=0,\"NO\",IF(ISNA(tblREGASSJune19[[#This Row],[FUNC]]),\"YES\",IF(_xlfn.ISFORMULA(tblREGASSJune19[[#This Row],[FUNC]]),\"NO\",\"YES\")))","v":"NO"}]
[{"$f":"CONCATENATE(tblREGASSJune19[[#This Row],[Primary Account]],tblREGASSJune19[[#This Row],[Primary Name]],tblREGASSJune19[[#This Row],[Secondary Acct]],tblREGASSJune19[[#This Row],[Secondary  Name]],tblREGASSJune19[[#This Row],[Alloc4FUNC]])","v":"1823960DSR DEF NET LOST REV101685NET LOST REVN INDSITUS"},1823960,"DSR DEF NET LOST REV",101685,"NET LOST REVN IND","UT",0,{"$f":"IF(OR(tblREGASSJune19[[#This Row],[Alloc]]=\"IDU\",tblREGASSJune19[[#This Row],[Alloc]]=\"OR\",tblREGASSJune19[[#This Row],[Alloc]]=\"UT\",tblREGASSJune19[[#This Row],[Alloc]]=\"WYU\",tblREGASSJune19[[#This Row],[Alloc]]=\"WYP\",tblREGASSJune19[[#This Row],[Alloc]]=\"CA\",tblREGASSJune19[[#This Row],[Alloc]]=\"WA\"),\"SITUS\",tblREGASSJune19[[#This Row],[Alloc]])","v":"SITUS"},{"$f":"INDEX(tblREGASSLookup[FUNC],MATCH(tblREGASSJune19[[#This Row],[Concat]],tblREGASSLookup[Concat],0))","v":{"$error":"#N/A"}},{"$f":"IF(tblREGASSJune19[[#This Row],[Total ($000)]]=0,\"NO\",IF(ISNA(tblREGASSJune19[[#This Row],[FUNC]]),\"YES\",IF(_xlfn.ISFORMULA(tblREGASSJune19[[#This Row],[FUNC]]),\"NO\",\"YES\")))","v":"NO"}]
[{"$f":"CONCATENATE(tblREGASSJune19[[#This Row],[Primary Account]],tblREGASSJune19[[#This Row],[Primary Name]],tblREGASSJune19[[#This Row],[Secondary Acct]],tblREGASSJune19[[#This Row],[Secondary  Name]],tblREGASSJune19[[#This Row],[Alloc4FUNC]])","v":"1823960DSR DEF NET LOST REV101686NET LOST REVN INDSITUS"},1823960,"DSR DEF NET LOST REV",101686,"NET LOST REVN IND","UT",0,{"$f":"IF(OR(tblREGASSJune19[[#This Row],[Alloc]]=\"IDU\",tblREGASSJune19[[#This Row],[Alloc]]=\"OR\",tblREGASSJune19[[#This Row],[Alloc]]=\"UT\",tblREGASSJune19[[#This Row],[Alloc]]=\"WYU\",tblREGASSJune19[[#This Row],[Alloc]]=\"WYP\",tblREGASSJune19[[#This Row],[Alloc]]=\"CA\",tblREGASSJune19[[#This Row],[Alloc]]=\"WA\"),\"SITUS\",tblREGASSJune19[[#This Row],[Alloc]])","v":"SITUS"},{"$f":"INDEX(tblREGASSLookup[FUNC],MATCH(tblREGASSJune19[[#This Row],[Concat]],tblREGASSLookup[Concat],0))","v":{"$error":"#N/A"}},{"$f":"IF(tblREGASSJune19[[#This Row],[Total ($000)]]=0,\"NO\",IF(ISNA(tblREGASSJune19[[#This Row],[FUNC]]),\"YES\",IF(_xlfn.ISFORMULA(tblREGASSJune19[[#This Row],[FUNC]]),\"NO\",\"YES\")))","v":"NO"}]
[{"$f":"CONCATENATE(tblREGASSJune19[[#This Row],[Primary Account]],tblREGASSJune19[[#This Row],[Primary Name]],tblREGASSJune19[[#This Row],[Secondary Acct]],tblREGASSJune19[[#This Row],[Secondary  Name]],tblREGASSJune19[[#This Row],[Alloc4FUNC]])","v":"1823960DSR DEF NET LOST REV101687NET LOST REVN INDSITUS"},1823960,"DSR DEF NET LOST REV",101687,"NET LOST REVN IND","UT",0,{"$f":"IF(OR(tblREGASSJune19[[#This Row],[Alloc]]=\"IDU\",tblREGASSJune19[[#This Row],[Alloc]]=\"OR\",tblREGASSJune19[[#This Row],[Alloc]]=\"UT\",tblREGASSJune19[[#This Row],[Alloc]]=\"WYU\",tblREGASSJune19[[#This Row],[Alloc]]=\"WYP\",tblREGASSJune19[[#This Row],[Alloc]]=\"CA\",tblREGASSJune19[[#This Row],[Alloc]]=\"WA\"),\"SITUS\",tblREGASSJune19[[#This Row],[Alloc]])","v":"SITUS"},{"$f":"INDEX(tblREGASSLookup[FUNC],MATCH(tblREGASSJune19[[#This Row],[Concat]],tblREGASSLookup[Concat],0))","v":{"$error":"#N/A"}},{"$f":"IF(tblREGASSJune19[[#This Row],[Total ($000)]]=0,\"NO\",IF(ISNA(tblREGASSJune19[[#This Row],[FUNC]]),\"YES\",IF(_xlfn.ISFORMULA(tblREGASSJune19[[#This Row],[FUNC]]),\"NO\",\"YES\")))","v":"NO"}]
[{"$f":"CONCATENATE(tblREGASSJune19[[#This Row],[Primary Account]],tblREGASSJune19[[#This Row],[Primary Name]],tblREGASSJune19[[#This Row],[Secondary Acct]],tblREGASSJune19[[#This Row],[Secondary  Name]],tblREGASSJune19[[#This Row],[Alloc4FUNC]])","v":"1823960DSR DEF NET LOST REV101688NET LOST REVN INDSITUS"},1823960,"DSR DEF NET LOST REV",101688,"NET LOST REVN IND","UT",0,{"$f":"IF(OR(tblREGASSJune19[[#This Row],[Alloc]]=\"IDU\",tblREGASSJune19[[#This Row],[Alloc]]=\"OR\",tblREGASSJune19[[#This Row],[Alloc]]=\"UT\",tblREGASSJune19[[#This Row],[Alloc]]=\"WYU\",tblREGASSJune19[[#This Row],[Alloc]]=\"WYP\",tblREGASSJune19[[#This Row],[Alloc]]=\"CA\",tblREGASSJune19[[#This Row],[Alloc]]=\"WA\"),\"SITUS\",tblREGASSJune19[[#This Row],[Alloc]])","v":"SITUS"},{"$f":"INDEX(tblREGASSLookup[FUNC],MATCH(tblREGASSJune19[[#This Row],[Concat]],tblREGASSLookup[Concat],0))","v":{"$error":"#N/A"}},{"$f":"IF(tblREGASSJune19[[#This Row],[Total ($000)]]=0,\"NO\",IF(ISNA(tblREGASSJune19[[#This Row],[FUNC]]),\"YES\",IF(_xlfn.ISFORMULA(tblREGASSJune19[[#This Row],[FUNC]]),\"NO\",\"YES\")))","v":"NO"}]
[{"$f":"CONCATENATE(tblREGASSJune19[[#This Row],[Primary Account]],tblREGASSJune19[[#This Row],[Primary Name]],tblREGASSJune19[[#This Row],[Secondary Acct]],tblREGASSJune19[[#This Row],[Secondary  Name]],tblREGASSJune19[[#This Row],[Alloc4FUNC]])","v":"1823960DSR DEF NET LOST REV101691NET LOST EF RETROSITUS"},1823960,"DSR DEF NET LOST REV",101691,"NET LOST EF RETRO","UT",0,{"$f":"IF(OR(tblREGASSJune19[[#This Row],[Alloc]]=\"IDU\",tblREGASSJune19[[#This Row],[Alloc]]=\"OR\",tblREGASSJune19[[#This Row],[Alloc]]=\"UT\",tblREGASSJune19[[#This Row],[Alloc]]=\"WYU\",tblREGASSJune19[[#This Row],[Alloc]]=\"WYP\",tblREGASSJune19[[#This Row],[Alloc]]=\"CA\",tblREGASSJune19[[#This Row],[Alloc]]=\"WA\"),\"SITUS\",tblREGASSJune19[[#This Row],[Alloc]])","v":"SITUS"},{"$f":"INDEX(tblREGASSLookup[FUNC],MATCH(tblREGASSJune19[[#This Row],[Concat]],tblREGASSLookup[Concat],0))","v":{"$error":"#N/A"}},{"$f":"IF(tblREGASSJune19[[#This Row],[Total ($000)]]=0,\"NO\",IF(ISNA(tblREGASSJune19[[#This Row],[FUNC]]),\"YES\",IF(_xlfn.ISFORMULA(tblREGASSJune19[[#This Row],[FUNC]]),\"NO\",\"YES\")))","v":"NO"}]
[{"$f":"CONCATENATE(tblREGASSJune19[[#This Row],[Primary Account]],tblREGASSJune19[[#This Row],[Primary Name]],tblREGASSJune19[[#This Row],[Secondary Acct]],tblREGASSJune19[[#This Row],[Secondary  Name]],tblREGASSJune19[[#This Row],[Alloc4FUNC]])","v":"1823960DSR DEF NET LOST REV101692NET LOST EF RETROSITUS"},1823960,"DSR DEF NET LOST REV",101692,"NET LOST EF RETRO","UT",0,{"$f":"IF(OR(tblREGASSJune19[[#This Row],[Alloc]]=\"IDU\",tblREGASSJune19[[#This Row],[Alloc]]=\"OR\",tblREGASSJune19[[#This Row],[Alloc]]=\"UT\",tblREGASSJune19[[#This Row],[Alloc]]=\"WYU\",tblREGASSJune19[[#This Row],[Alloc]]=\"WYP\",tblREGASSJune19[[#This Row],[Alloc]]=\"CA\",tblREGASSJune19[[#This Row],[Alloc]]=\"WA\"),\"SITUS\",tblREGASSJune19[[#This Row],[Alloc]])","v":"SITUS"},{"$f":"INDEX(tblREGASSLookup[FUNC],MATCH(tblREGASSJune19[[#This Row],[Concat]],tblREGASSLookup[Concat],0))","v":{"$error":"#N/A"}},{"$f":"IF(tblREGASSJune19[[#This Row],[Total ($000)]]=0,\"NO\",IF(ISNA(tblREGASSJune19[[#This Row],[FUNC]]),\"YES\",IF(_xlfn.ISFORMULA(tblREGASSJune19[[#This Row],[FUNC]]),\"NO\",\"YES\")))","v":"NO"}]
[{"$f":"CONCATENATE(tblREGASSJune19[[#This Row],[Primary Account]],tblREGASSJune19[[#This Row],[Primary Name]],tblREGASSJune19[[#This Row],[Secondary Acct]],tblREGASSJune19[[#This Row],[Secondary  Name]],tblREGASSJune19[[#This Row],[Alloc4FUNC]])","v":"1823960DSR DEF NET LOST REV101693NET LOST CES WAYSITUS"},1823960,"DSR DEF NET LOST REV",101693,"NET LOST CES WAY","UT",0,{"$f":"IF(OR(tblREGASSJune19[[#This Row],[Alloc]]=\"IDU\",tblREGASSJune19[[#This Row],[Alloc]]=\"OR\",tblREGASSJune19[[#This Row],[Alloc]]=\"UT\",tblREGASSJune19[[#This Row],[Alloc]]=\"WYU\",tblREGASSJune19[[#This Row],[Alloc]]=\"WYP\",tblREGASSJune19[[#This Row],[Alloc]]=\"CA\",tblREGASSJune19[[#This Row],[Alloc]]=\"WA\"),\"SITUS\",tblREGASSJune19[[#This Row],[Alloc]])","v":"SITUS"},{"$f":"INDEX(tblREGASSLookup[FUNC],MATCH(tblREGASSJune19[[#This Row],[Concat]],tblREGASSLookup[Concat],0))","v":{"$error":"#N/A"}},{"$f":"IF(tblREGASSJune19[[#This Row],[Total ($000)]]=0,\"NO\",IF(ISNA(tblREGASSJune19[[#This Row],[FUNC]]),\"YES\",IF(_xlfn.ISFORMULA(tblREGASSJune19[[#This Row],[FUNC]]),\"NO\",\"YES\")))","v":"NO"}]
[{"$f":"CONCATENATE(tblREGASSJune19[[#This Row],[Primary Account]],tblREGASSJune19[[#This Row],[Primary Name]],tblREGASSJune19[[#This Row],[Secondary Acct]],tblREGASSJune19[[#This Row],[Secondary  Name]],tblREGASSJune19[[#This Row],[Alloc4FUNC]])","v":"1823960DSR DEF NET LOST REV101694NET LOST CES WAYSITUS"},1823960,"DSR DEF NET LOST REV",101694,"NET LOST CES WAY","UT",0,{"$f":"IF(OR(tblREGASSJune19[[#This Row],[Alloc]]=\"IDU\",tblREGASSJune19[[#This Row],[Alloc]]=\"OR\",tblREGASSJune19[[#This Row],[Alloc]]=\"UT\",tblREGASSJune19[[#This Row],[Alloc]]=\"WYU\",tblREGASSJune19[[#This Row],[Alloc]]=\"WYP\",tblREGASSJune19[[#This Row],[Alloc]]=\"CA\",tblREGASSJune19[[#This Row],[Alloc]]=\"WA\"),\"SITUS\",tblREGASSJune19[[#This Row],[Alloc]])","v":"SITUS"},{"$f":"INDEX(tblREGASSLookup[FUNC],MATCH(tblREGASSJune19[[#This Row],[Concat]],tblREGASSLookup[Concat],0))","v":{"$error":"#N/A"}},{"$f":"IF(tblREGASSJune19[[#This Row],[Total ($000)]]=0,\"NO\",IF(ISNA(tblREGASSJune19[[#This Row],[FUNC]]),\"YES\",IF(_xlfn.ISFORMULA(tblREGASSJune19[[#This Row],[FUNC]]),\"NO\",\"YES\")))","v":"NO"}]
[{"$f":"CONCATENATE(tblREGASSJune19[[#This Row],[Primary Account]],tblREGASSJune19[[#This Row],[Primary Name]],tblREGASSJune19[[#This Row],[Secondary Acct]],tblREGASSJune19[[#This Row],[Secondary  Name]],tblREGASSJune19[[#This Row],[Alloc4FUNC]])","v":"1823960DSR DEF NET LOST REV101695NET LOST EF CUSTOMSITUS"},1823960,"DSR DEF NET LOST REV",101695,"NET LOST EF CUSTOM","UT",0,{"$f":"IF(OR(tblREGASSJune19[[#This Row],[Alloc]]=\"IDU\",tblREGASSJune19[[#This Row],[Alloc]]=\"OR\",tblREGASSJune19[[#This Row],[Alloc]]=\"UT\",tblREGASSJune19[[#This Row],[Alloc]]=\"WYU\",tblREGASSJune19[[#This Row],[Alloc]]=\"WYP\",tblREGASSJune19[[#This Row],[Alloc]]=\"CA\",tblREGASSJune19[[#This Row],[Alloc]]=\"WA\"),\"SITUS\",tblREGASSJune19[[#This Row],[Alloc]])","v":"SITUS"},{"$f":"INDEX(tblREGASSLookup[FUNC],MATCH(tblREGASSJune19[[#This Row],[Concat]],tblREGASSLookup[Concat],0))","v":{"$error":"#N/A"}},{"$f":"IF(tblREGASSJune19[[#This Row],[Total ($000)]]=0,\"NO\",IF(ISNA(tblREGASSJune19[[#This Row],[FUNC]]),\"YES\",IF(_xlfn.ISFORMULA(tblREGASSJune19[[#This Row],[FUNC]]),\"NO\",\"YES\")))","v":"NO"}]
[{"$f":"CONCATENATE(tblREGASSJune19[[#This Row],[Primary Account]],tblREGASSJune19[[#This Row],[Primary Name]],tblREGASSJune19[[#This Row],[Secondary Acct]],tblREGASSJune19[[#This Row],[Secondary  Name]],tblREGASSJune19[[#This Row],[Alloc4FUNC]])","v":"1823960DSR DEF NET LOST REV101696NET LOST EF CUSTOMSITUS"},1823960,"DSR DEF NET LOST REV",101696,"NET LOST EF CUSTOM","UT",0,{"$f":"IF(OR(tblREGASSJune19[[#This Row],[Alloc]]=\"IDU\",tblREGASSJune19[[#This Row],[Alloc]]=\"OR\",tblREGASSJune19[[#This Row],[Alloc]]=\"UT\",tblREGASSJune19[[#This Row],[Alloc]]=\"WYU\",tblREGASSJune19[[#This Row],[Alloc]]=\"WYP\",tblREGASSJune19[[#This Row],[Alloc]]=\"CA\",tblREGASSJune19[[#This Row],[Alloc]]=\"WA\"),\"SITUS\",tblREGASSJune19[[#This Row],[Alloc]])","v":"SITUS"},{"$f":"INDEX(tblREGASSLookup[FUNC],MATCH(tblREGASSJune19[[#This Row],[Concat]],tblREGASSLookup[Concat],0))","v":{"$error":"#N/A"}},{"$f":"IF(tblREGASSJune19[[#This Row],[Total ($000)]]=0,\"NO\",IF(ISNA(tblREGASSJune19[[#This Row],[FUNC]]),\"YES\",IF(_xlfn.ISFORMULA(tblREGASSJune19[[#This Row],[FUNC]]),\"NO\",\"YES\")))","v":"NO"}]
[{"$f":"CONCATENATE(tblREGASSJune19[[#This Row],[Primary Account]],tblREGASSJune19[[#This Row],[Primary Name]],tblREGASSJune19[[#This Row],[Secondary Acct]],tblREGASSJune19[[#This Row],[Secondary  Name]],tblREGASSJune19[[#This Row],[Alloc4FUNC]])","v":"1823960DSR DEF NET LOST REV101697NET LOST EF PRESCRIPTSITUS"},1823960,"DSR DEF NET LOST REV",101697,"NET LOST EF PRESCRIPT","UT",0,{"$f":"IF(OR(tblREGASSJune19[[#This Row],[Alloc]]=\"IDU\",tblREGASSJune19[[#This Row],[Alloc]]=\"OR\",tblREGASSJune19[[#This Row],[Alloc]]=\"UT\",tblREGASSJune19[[#This Row],[Alloc]]=\"WYU\",tblREGASSJune19[[#This Row],[Alloc]]=\"WYP\",tblREGASSJune19[[#This Row],[Alloc]]=\"CA\",tblREGASSJune19[[#This Row],[Alloc]]=\"WA\"),\"SITUS\",tblREGASSJune19[[#This Row],[Alloc]])","v":"SITUS"},{"$f":"INDEX(tblREGASSLookup[FUNC],MATCH(tblREGASSJune19[[#This Row],[Concat]],tblREGASSLookup[Concat],0))","v":{"$error":"#N/A"}},{"$f":"IF(tblREGASSJune19[[#This Row],[Total ($000)]]=0,\"NO\",IF(ISNA(tblREGASSJune19[[#This Row],[FUNC]]),\"YES\",IF(_xlfn.ISFORMULA(tblREGASSJune19[[#This Row],[FUNC]]),\"NO\",\"YES\")))","v":"NO"}]
[{"$f":"CONCATENATE(tblREGASSJune19[[#This Row],[Primary Account]],tblREGASSJune19[[#This Row],[Primary Name]],tblREGASSJune19[[#This Row],[Secondary Acct]],tblREGASSJune19[[#This Row],[Secondary  Name]],tblREGASSJune19[[#This Row],[Alloc4FUNC]])","v":"1823960DSR DEF NET LOST REV101698NET LOST EF PRESCRIPTSITUS"},1823960,"DSR DEF NET LOST REV",101698,"NET LOST EF PRESCRIPT","UT",0,{"$f":"IF(OR(tblREGASSJune19[[#This Row],[Alloc]]=\"IDU\",tblREGASSJune19[[#This Row],[Alloc]]=\"OR\",tblREGASSJune19[[#This Row],[Alloc]]=\"UT\",tblREGASSJune19[[#This Row],[Alloc]]=\"WYU\",tblREGASSJune19[[#This Row],[Alloc]]=\"WYP\",tblREGASSJune19[[#This Row],[Alloc]]=\"CA\",tblREGASSJune19[[#This Row],[Alloc]]=\"WA\"),\"SITUS\",tblREGASSJune19[[#This Row],[Alloc]])","v":"SITUS"},{"$f":"INDEX(tblREGASSLookup[FUNC],MATCH(tblREGASSJune19[[#This Row],[Concat]],tblREGASSLookup[Concat],0))","v":{"$error":"#N/A"}},{"$f":"IF(tblREGASSJune19[[#This Row],[Total ($000)]]=0,\"NO\",IF(ISNA(tblREGASSJune19[[#This Row],[FUNC]]),\"YES\",IF(_xlfn.ISFORMULA(tblREGASSJune19[[#This Row],[FUNC]]),\"NO\",\"YES\")))","v":"NO"}]
[{"$f":"CONCATENATE(tblREGASSJune19[[#This Row],[Primary Account]],tblREGASSJune19[[#This Row],[Primary Name]],tblREGASSJune19[[#This Row],[Secondary Acct]],tblREGASSJune19[[#This Row],[Secondary  Name]],tblREGASSJune19[[#This Row],[Alloc4FUNC]])","v":"1823960DSR DEF NET LOST REV101699NET LOST EF COMMERCIALSITUS"},1823960,"DSR DEF NET LOST REV",101699,"NET LOST EF COMMERCIAL","UT",0,{"$f":"IF(OR(tblREGASSJune19[[#This Row],[Alloc]]=\"IDU\",tblREGASSJune19[[#This Row],[Alloc]]=\"OR\",tblREGASSJune19[[#This Row],[Alloc]]=\"UT\",tblREGASSJune19[[#This Row],[Alloc]]=\"WYU\",tblREGASSJune19[[#This Row],[Alloc]]=\"WYP\",tblREGASSJune19[[#This Row],[Alloc]]=\"CA\",tblREGASSJune19[[#This Row],[Alloc]]=\"WA\"),\"SITUS\",tblREGASSJune19[[#This Row],[Alloc]])","v":"SITUS"},{"$f":"INDEX(tblREGASSLookup[FUNC],MATCH(tblREGASSJune19[[#This Row],[Concat]],tblREGASSLookup[Concat],0))","v":{"$error":"#N/A"}},{"$f":"IF(tblREGASSJune19[[#This Row],[Total ($000)]]=0,\"NO\",IF(ISNA(tblREGASSJune19[[#This Row],[FUNC]]),\"YES\",IF(_xlfn.ISFORMULA(tblREGASSJune19[[#This Row],[FUNC]]),\"NO\",\"YES\")))","v":"NO"}]
[{"$f":"CONCATENATE(tblREGASSJune19[[#This Row],[Primary Account]],tblREGASSJune19[[#This Row],[Primary Name]],tblREGASSJune19[[#This Row],[Secondary Acct]],tblREGASSJune19[[#This Row],[Secondary  Name]],tblREGASSJune19[[#This Row],[Alloc4FUNC]])","v":"1823960DSR DEF NET LOST REV101700NET LOST EF COMMERCIALSITUS"},1823960,"DSR DEF NET LOST REV",101700,"NET LOST EF COMMERCIAL","UT",0,{"$f":"IF(OR(tblREGASSJune19[[#This Row],[Alloc]]=\"IDU\",tblREGASSJune19[[#This Row],[Alloc]]=\"OR\",tblREGASSJune19[[#This Row],[Alloc]]=\"UT\",tblREGASSJune19[[#This Row],[Alloc]]=\"WYU\",tblREGASSJune19[[#This Row],[Alloc]]=\"WYP\",tblREGASSJune19[[#This Row],[Alloc]]=\"CA\",tblREGASSJune19[[#This Row],[Alloc]]=\"WA\"),\"SITUS\",tblREGASSJune19[[#This Row],[Alloc]])","v":"SITUS"},{"$f":"INDEX(tblREGASSLookup[FUNC],MATCH(tblREGASSJune19[[#This Row],[Concat]],tblREGASSLookup[Concat],0))","v":{"$error":"#N/A"}},{"$f":"IF(tblREGASSJune19[[#This Row],[Total ($000)]]=0,\"NO\",IF(ISNA(tblREGASSJune19[[#This Row],[FUNC]]),\"YES\",IF(_xlfn.ISFORMULA(tblREGASSJune19[[#This Row],[FUNC]]),\"NO\",\"YES\")))","v":"NO"}]
[{"$f":"CONCATENATE(tblREGASSJune19[[#This Row],[Primary Account]],tblREGASSJune19[[#This Row],[Primary Name]],tblREGASSJune19[[#This Row],[Secondary Acct]],tblREGASSJune19[[#This Row],[Secondary  Name]],tblREGASSJune19[[#This Row],[Alloc4FUNC]])","v":"1823990OTHR REG ASSET-N CST138010Reg Asset Current - Decom CostsOTHER"},1823990,"OTHR REG ASSET-N CST",138010,"Reg Asset Current - Decom Costs","OTHER",0,{"$f":"IF(OR(tblREGASSJune19[[#This Row],[Alloc]]=\"IDU\",tblREGASSJune19[[#This Row],[Alloc]]=\"OR\",tblREGASSJune19[[#This Row],[Alloc]]=\"UT\",tblREGASSJune19[[#This Row],[Alloc]]=\"WYU\",tblREGASSJune19[[#This Row],[Alloc]]=\"WYP\",tblREGASSJune19[[#This Row],[Alloc]]=\"CA\",tblREGASSJune19[[#This Row],[Alloc]]=\"WA\"),\"SITUS\",tblREGASSJune19[[#This Row],[Alloc]])","v":"OTHER"},{"$f":"INDEX(tblREGASSLookup[FUNC],MATCH(tblREGASSJune19[[#This Row],[Concat]],tblREGASSLookup[Concat],0))","v":{"$error":"#N/A"}},{"$f":"IF(tblREGASSJune19[[#This Row],[Total ($000)]]=0,\"NO\",IF(ISNA(tblREGASSJune19[[#This Row],[FUNC]]),\"YES\",IF(_xlfn.ISFORMULA(tblREGASSJune19[[#This Row],[FUNC]]),\"NO\",\"YES\")))","v":"NO"}]
[{"$f":"CONCATENATE(tblREGASSJune19[[#This Row],[Primary Account]],tblREGASSJune19[[#This Row],[Primary Name]],tblREGASSJune19[[#This Row],[Secondary Acct]],tblREGASSJune19[[#This Row],[Secondary  Name]],tblREGASSJune19[[#This Row],[Alloc4FUNC]])","v":"1823990OTHR REG ASSET-N CST138015Reg Asset Current - Energy West MiningSE"},1823990,"OTHR REG ASSET-N CST",138015,"Reg Asset Current - Energy West Mining","SE",2289.9000415384598,{"$f":"IF(OR(tblREGASSJune19[[#This Row],[Alloc]]=\"IDU\",tblREGASSJune19[[#This Row],[Alloc]]=\"OR\",tblREGASSJune19[[#This Row],[Alloc]]=\"UT\",tblREGASSJune19[[#This Row],[Alloc]]=\"WYU\",tblREGASSJune19[[#This Row],[Alloc]]=\"WYP\",tblREGASSJune19[[#This Row],[Alloc]]=\"CA\",tblREGASSJune19[[#This Row],[Alloc]]=\"WA\"),\"SITUS\",tblREGASSJune19[[#This Row],[Alloc]])","v":"SE"},{"$f":"INDEX(tblREGASSLookup[FUNC],MATCH(tblREGASSJune19[[#This Row],[Concat]],tblREGASSLookup[Concat],0))","v":"P"},{"$f":"IF(tblREGASSJune19[[#This Row],[Total ($000)]]=0,\"NO\",IF(ISNA(tblREGASSJune19[[#This Row],[FUNC]]),\"YES\",IF(_xlfn.ISFORMULA(tblREGASSJune19[[#This Row],[FUNC]]),\"NO\",\"YES\")))","v":"NO"}]
[{"$f":"CONCATENATE(tblREGASSJune19[[#This Row],[Primary Account]],tblREGASSJune19[[#This Row],[Primary Name]],tblREGASSJune19[[#This Row],[Secondary Acct]],tblREGASSJune19[[#This Row],[Secondary  Name]],tblREGASSJune19[[#This Row],[Alloc4FUNC]])","v":"1823990OTHR REG ASSET-N CST138020Reg Asset Current - DSMOTHER"},1823990,"OTHR REG ASSET-N CST",138020,"Reg Asset Current - DSM","OTHER",6055.0056100000002,{"$f":"IF(OR(tblREGASSJune19[[#This Row],[Alloc]]=\"IDU\",tblREGASSJune19[[#This Row],[Alloc]]=\"OR\",tblREGASSJune19[[#This Row],[Alloc]]=\"UT\",tblREGASSJune19[[#This Row],[Alloc]]=\"WYU\",tblREGASSJune19[[#This Row],[Alloc]]=\"WYP\",tblREGASSJune19[[#This Row],[Alloc]]=\"CA\",tblREGASSJune19[[#This Row],[Alloc]]=\"WA\"),\"SITUS\",tblREGASSJune19[[#This Row],[Alloc]])","v":"OTHER"},{"$f":"INDEX(tblREGASSLookup[FUNC],MATCH(tblREGASSJune19[[#This Row],[Concat]],tblREGASSLookup[Concat],0))","v":"P"},{"$f":"IF(tblREGASSJune19[[#This Row],[Total ($000)]]=0,\"NO\",IF(ISNA(tblREGASSJune19[[#This Row],[FUNC]]),\"YES\",IF(_xlfn.ISFORMULA(tblREGASSJune19[[#This Row],[FUNC]]),\"NO\",\"YES\")))","v":"NO"}]
[{"$f":"CONCATENATE(tblREGASSJune19[[#This Row],[Primary Account]],tblREGASSJune19[[#This Row],[Primary Name]],tblREGASSJune19[[#This Row],[Secondary Acct]],tblREGASSJune19[[#This Row],[Secondary  Name]],tblREGASSJune19[[#This Row],[Alloc4FUNC]])","v":"1823990OTHR REG ASSET-N CST138030Reg Asset Current - OR SB 408OTHER"},1823990,"OTHR REG ASSET-N CST",138030,"Reg Asset Current - OR SB 408","OTHER",0,{"$f":"IF(OR(tblREGASSJune19[[#This Row],[Alloc]]=\"IDU\",tblREGASSJune19[[#This Row],[Alloc]]=\"OR\",tblREGASSJune19[[#This Row],[Alloc]]=\"UT\",tblREGASSJune19[[#This Row],[Alloc]]=\"WYU\",tblREGASSJune19[[#This Row],[Alloc]]=\"WYP\",tblREGASSJune19[[#This Row],[Alloc]]=\"CA\",tblREGASSJune19[[#This Row],[Alloc]]=\"WA\"),\"SITUS\",tblREGASSJune19[[#This Row],[Alloc]])","v":"OTHER"},{"$f":"INDEX(tblREGASSLookup[FUNC],MATCH(tblREGASSJune19[[#This Row],[Concat]],tblREGASSLookup[Concat],0))","v":{"$error":"#N/A"}},{"$f":"IF(tblREGASSJune19[[#This Row],[Total ($000)]]=0,\"NO\",IF(ISNA(tblREGASSJune19[[#This Row],[FUNC]]),\"YES\",IF(_xlfn.ISFORMULA(tblREGASSJune19[[#This Row],[FUNC]]),\"NO\",\"YES\")))","v":"NO"}]
[{"$f":"CONCATENATE(tblREGASSJune19[[#This Row],[Primary Account]],tblREGASSJune19[[#This Row],[Primary Name]],tblREGASSJune19[[#This Row],[Secondary Acct]],tblREGASSJune19[[#This Row],[Secondary  Name]],tblREGASSJune19[[#This Row],[Alloc4FUNC]])","v":"1823990OTHR REG ASSET-N CST138040Reg Asset Current - New Res/RenewablesOTHER"},1823990,"OTHR REG ASSET-N CST",138040,"Reg Asset Current - New Res/Renewables","OTHER",0,{"$f":"IF(OR(tblREGASSJune19[[#This Row],[Alloc]]=\"IDU\",tblREGASSJune19[[#This Row],[Alloc]]=\"OR\",tblREGASSJune19[[#This Row],[Alloc]]=\"UT\",tblREGASSJune19[[#This Row],[Alloc]]=\"WYU\",tblREGASSJune19[[#This Row],[Alloc]]=\"WYP\",tblREGASSJune19[[#This Row],[Alloc]]=\"CA\",tblREGASSJune19[[#This Row],[Alloc]]=\"WA\"),\"SITUS\",tblREGASSJune19[[#This Row],[Alloc]])","v":"OTHER"},{"$f":"INDEX(tblREGASSLookup[FUNC],MATCH(tblREGASSJune19[[#This Row],[Concat]],tblREGASSLookup[Concat],0))","v":{"$error":"#N/A"}},{"$f":"IF(tblREGASSJune19[[#This Row],[Total ($000)]]=0,\"NO\",IF(ISNA(tblREGASSJune19[[#This Row],[FUNC]]),\"YES\",IF(_xlfn.ISFORMULA(tblREGASSJune19[[#This Row],[FUNC]]),\"NO\",\"YES\")))","v":"NO"}]
[{"$f":"CONCATENATE(tblREGASSJune19[[#This Row],[Primary Account]],tblREGASSJune19[[#This Row],[Primary Name]],tblREGASSJune19[[#This Row],[Secondary Acct]],tblREGASSJune19[[#This Row],[Secondary  Name]],tblREGASSJune19[[#This Row],[Alloc4FUNC]])","v":"1823990OTHR REG ASSET-N CST138045Reg Asset Current - GHG AllowancesOTHER"},1823990,"OTHR REG ASSET-N CST",138045,"Reg Asset Current - GHG Allowances","OTHER",254.68284923076899,{"$f":"IF(OR(tblREGASSJune19[[#This Row],[Alloc]]=\"IDU\",tblREGASSJune19[[#This Row],[Alloc]]=\"OR\",tblREGASSJune19[[#This Row],[Alloc]]=\"UT\",tblREGASSJune19[[#This Row],[Alloc]]=\"WYU\",tblREGASSJune19[[#This Row],[Alloc]]=\"WYP\",tblREGASSJune19[[#This Row],[Alloc]]=\"CA\",tblREGASSJune19[[#This Row],[Alloc]]=\"WA\"),\"SITUS\",tblREGASSJune19[[#This Row],[Alloc]])","v":"OTHER"},{"$f":"INDEX(tblREGASSLookup[FUNC],MATCH(tblREGASSJune19[[#This Row],[Concat]],tblREGASSLookup[Concat],0))","v":"P"},{"$f":"IF(tblREGASSJune19[[#This Row],[Total ($000)]]=0,\"NO\",IF(ISNA(tblREGASSJune19[[#This Row],[FUNC]]),\"YES\",IF(_xlfn.ISFORMULA(tblREGASSJune19[[#This Row],[FUNC]]),\"NO\",\"YES\")))","v":"NO"}]
[{"$f":"CONCATENATE(tblREGASSJune19[[#This Row],[Primary Account]],tblREGASSJune19[[#This Row],[Primary Name]],tblREGASSJune19[[#This Row],[Secondary Acct]],tblREGASSJune19[[#This Row],[Secondary  Name]],tblREGASSJune19[[#This Row],[Alloc4FUNC]])","v":"1823990OTHR REG ASSET-N CST138050Reg Asset Current - Def Net Power CostsOTHER"},1823990,"OTHR REG ASSET-N CST",138050,"Reg Asset Current - Def Net Power Costs","OTHER",18564.1442023077,{"$f":"IF(OR(tblREGASSJune19[[#This Row],[Alloc]]=\"IDU\",tblREGASSJune19[[#This Row],[Alloc]]=\"OR\",tblREGASSJune19[[#This Row],[Alloc]]=\"UT\",tblREGASSJune19[[#This Row],[Alloc]]=\"WYU\",tblREGASSJune19[[#This Row],[Alloc]]=\"WYP\",tblREGASSJune19[[#This Row],[Alloc]]=\"CA\",tblREGASSJune19[[#This Row],[Alloc]]=\"WA\"),\"SITUS\",tblREGASSJune19[[#This Row],[Alloc]])","v":"OTHER"},{"$f":"INDEX(tblREGASSLookup[FUNC],MATCH(tblREGASSJune19[[#This Row],[Concat]],tblREGASSLookup[Concat],0))","v":"P"},{"$f":"IF(tblREGASSJune19[[#This Row],[Total ($000)]]=0,\"NO\",IF(ISNA(tblREGASSJune19[[#This Row],[FUNC]]),\"YES\",IF(_xlfn.ISFORMULA(tblREGASSJune19[[#This Row],[FUNC]]),\"NO\",\"YES\")))","v":"NO"}]
[{"$f":"CONCATENATE(tblREGASSJune19[[#This Row],[Primary Account]],tblREGASSJune19[[#This Row],[Primary Name]],tblREGASSJune19[[#This Row],[Secondary Acct]],tblREGASSJune19[[#This Row],[Secondary  Name]],tblREGASSJune19[[#This Row],[Alloc4FUNC]])","v":"1823990OTHR REG ASSET-N CST138055Reg Asset Current - Def RECs in RatesOTHER"},1823990,"OTHR REG ASSET-N CST",138055,"Reg Asset Current - Def RECs in Rates","OTHER",1260.8445876923099,{"$f":"IF(OR(tblREGASSJune19[[#This Row],[Alloc]]=\"IDU\",tblREGASSJune19[[#This Row],[Alloc]]=\"OR\",tblREGASSJune19[[#This Row],[Alloc]]=\"UT\",tblREGASSJune19[[#This Row],[Alloc]]=\"WYU\",tblREGASSJune19[[#This Row],[Alloc]]=\"WYP\",tblREGASSJune19[[#This Row],[Alloc]]=\"CA\",tblREGASSJune19[[#This Row],[Alloc]]=\"WA\"),\"SITUS\",tblREGASSJune19[[#This Row],[Alloc]])","v":"OTHER"},{"$f":"INDEX(tblREGASSLookup[FUNC],MATCH(tblREGASSJune19[[#This Row],[Concat]],tblREGASSLookup[Concat],0))","v":"P"},{"$f":"IF(tblREGASSJune19[[#This Row],[Total ($000)]]=0,\"NO\",IF(ISNA(tblREGASSJune19[[#This Row],[FUNC]]),\"YES\",IF(_xlfn.ISFORMULA(tblREGASSJune19[[#This Row],[FUNC]]),\"NO\",\"YES\")))","v":"NO"}]
[{"$f":"CONCATENATE(tblREGASSJune19[[#This Row],[Primary Account]],tblREGASSJune19[[#This Row],[Primary Name]],tblREGASSJune19[[#This Row],[Secondary Acct]],tblREGASSJune19[[#This Row],[Secondary  Name]],tblREGASSJune19[[#This Row],[Alloc4FUNC]])","v":"1823990OTHR REG ASSET-N CST138060Reg Asset Current - BPA Balancing AcctsOTHER"},1823990,"OTHR REG ASSET-N CST",138060,"Reg Asset Current - BPA Balancing Accts","OTHER",6990.8264592307696,{"$f":"IF(OR(tblREGASSJune19[[#This Row],[Alloc]]=\"IDU\",tblREGASSJune19[[#This Row],[Alloc]]=\"OR\",tblREGASSJune19[[#This Row],[Alloc]]=\"UT\",tblREGASSJune19[[#This Row],[Alloc]]=\"WYU\",tblREGASSJune19[[#This Row],[Alloc]]=\"WYP\",tblREGASSJune19[[#This Row],[Alloc]]=\"CA\",tblREGASSJune19[[#This Row],[Alloc]]=\"WA\"),\"SITUS\",tblREGASSJune19[[#This Row],[Alloc]])","v":"OTHER"},{"$f":"INDEX(tblREGASSLookup[FUNC],MATCH(tblREGASSJune19[[#This Row],[Concat]],tblREGASSLookup[Concat],0))","v":"CUST"},{"$f":"IF(tblREGASSJune19[[#This Row],[Total ($000)]]=0,\"NO\",IF(ISNA(tblREGASSJune19[[#This Row],[FUNC]]),\"YES\",IF(_xlfn.ISFORMULA(tblREGASSJune19[[#This Row],[FUNC]]),\"NO\",\"YES\")))","v":"NO"}]
[{"$f":"CONCATENATE(tblREGASSJune19[[#This Row],[Primary Account]],tblREGASSJune19[[#This Row],[Primary Name]],tblREGASSJune19[[#This Row],[Secondary Acct]],tblREGASSJune19[[#This Row],[Secondary  Name]],tblREGASSJune19[[#This Row],[Alloc4FUNC]])","v":"1823990OTHR REG ASSET-N CST138070Reg Asset Current - Intervenor/Eval FeesOTHER"},1823990,"OTHR REG ASSET-N CST",138070,"Reg Asset Current - Intervenor/Eval Fees","OTHER",0,{"$f":"IF(OR(tblREGASSJune19[[#This Row],[Alloc]]=\"IDU\",tblREGASSJune19[[#This Row],[Alloc]]=\"OR\",tblREGASSJune19[[#This Row],[Alloc]]=\"UT\",tblREGASSJune19[[#This Row],[Alloc]]=\"WYU\",tblREGASSJune19[[#This Row],[Alloc]]=\"WYP\",tblREGASSJune19[[#This Row],[Alloc]]=\"CA\",tblREGASSJune19[[#This Row],[Alloc]]=\"WA\"),\"SITUS\",tblREGASSJune19[[#This Row],[Alloc]])","v":"OTHER"},{"$f":"INDEX(tblREGASSLookup[FUNC],MATCH(tblREGASSJune19[[#This Row],[Concat]],tblREGASSLookup[Concat],0))","v":{"$error":"#N/A"}},{"$f":"IF(tblREGASSJune19[[#This Row],[Total ($000)]]=0,\"NO\",IF(ISNA(tblREGASSJune19[[#This Row],[FUNC]]),\"YES\",IF(_xlfn.ISFORMULA(tblREGASSJune19[[#This Row],[FUNC]]),\"NO\",\"YES\")))","v":"NO"}]
[{"$f":"CONCATENATE(tblREGASSJune19[[#This Row],[Primary Account]],tblREGASSJune19[[#This Row],[Primary Name]],tblREGASSJune19[[#This Row],[Secondary Acct]],tblREGASSJune19[[#This Row],[Secondary  Name]],tblREGASSJune19[[#This Row],[Alloc4FUNC]])","v":"1823990OTHR REG ASSET-N CST138080Reg Asset Current - Transition SeveranceOTHER"},1823990,"OTHR REG ASSET-N CST",138080,"Reg Asset Current - Transition Severance","OTHER",0,{"$f":"IF(OR(tblREGASSJune19[[#This Row],[Alloc]]=\"IDU\",tblREGASSJune19[[#This Row],[Alloc]]=\"OR\",tblREGASSJune19[[#This Row],[Alloc]]=\"UT\",tblREGASSJune19[[#This Row],[Alloc]]=\"WYU\",tblREGASSJune19[[#This Row],[Alloc]]=\"WYP\",tblREGASSJune19[[#This Row],[Alloc]]=\"CA\",tblREGASSJune19[[#This Row],[Alloc]]=\"WA\"),\"SITUS\",tblREGASSJune19[[#This Row],[Alloc]])","v":"OTHER"},{"$f":"INDEX(tblREGASSLookup[FUNC],MATCH(tblREGASSJune19[[#This Row],[Concat]],tblREGASSLookup[Concat],0))","v":{"$error":"#N/A"}},{"$f":"IF(tblREGASSJune19[[#This Row],[Total ($000)]]=0,\"NO\",IF(ISNA(tblREGASSJune19[[#This Row],[FUNC]]),\"YES\",IF(_xlfn.ISFORMULA(tblREGASSJune19[[#This Row],[FUNC]]),\"NO\",\"YES\")))","v":"NO"}]
[{"$f":"CONCATENATE(tblREGASSJune19[[#This Row],[Primary Account]],tblREGASSJune19[[#This Row],[Primary Name]],tblREGASSJune19[[#This Row],[Secondary Acct]],tblREGASSJune19[[#This Row],[Secondary  Name]],tblREGASSJune19[[#This Row],[Alloc4FUNC]])","v":"1823990OTHR REG ASSET-N CST138090Reg Asset Current - Solar Feed-InOTHER"},1823990,"OTHR REG ASSET-N CST",138090,"Reg Asset Current - Solar Feed-In","OTHER",3849.7624892307699,{"$f":"IF(OR(tblREGASSJune19[[#This Row],[Alloc]]=\"IDU\",tblREGASSJune19[[#This Row],[Alloc]]=\"OR\",tblREGASSJune19[[#This Row],[Alloc]]=\"UT\",tblREGASSJune19[[#This Row],[Alloc]]=\"WYU\",tblREGASSJune19[[#This Row],[Alloc]]=\"WYP\",tblREGASSJune19[[#This Row],[Alloc]]=\"CA\",tblREGASSJune19[[#This Row],[Alloc]]=\"WA\"),\"SITUS\",tblREGASSJune19[[#This Row],[Alloc]])","v":"OTHER"},{"$f":"INDEX(tblREGASSLookup[FUNC],MATCH(tblREGASSJune19[[#This Row],[Concat]],tblREGASSLookup[Concat],0))","v":"p"},{"$f":"IF(tblREGASSJune19[[#This Row],[Total ($000)]]=0,\"NO\",IF(ISNA(tblREGASSJune19[[#This Row],[FUNC]]),\"YES\",IF(_xlfn.ISFORMULA(tblREGASSJune19[[#This Row],[FUNC]]),\"NO\",\"YES\")))","v":"NO"}]
[{"$f":"CONCATENATE(tblREGASSJune19[[#This Row],[Primary Account]],tblREGASSJune19[[#This Row],[Primary Name]],tblREGASSJune19[[#This Row],[Secondary Acct]],tblREGASSJune19[[#This Row],[Secondary  Name]],tblREGASSJune19[[#This Row],[Alloc4FUNC]])","v":"1823990OTHR REG ASSET-N CST138190Reg Asset Current - OtherOTHER"},1823990,"OTHR REG ASSET-N CST",138190,"Reg Asset Current - Other","OTHER",2333.8444615384601,{"$f":"IF(OR(tblREGASSJune19[[#This Row],[Alloc]]=\"IDU\",tblREGASSJune19[[#This Row],[Alloc]]=\"OR\",tblREGASSJune19[[#This Row],[Alloc]]=\"UT\",tblREGASSJune19[[#This Row],[Alloc]]=\"WYU\",tblREGASSJune19[[#This Row],[Alloc]]=\"WYP\",tblREGASSJune19[[#This Row],[Alloc]]=\"CA\",tblREGASSJune19[[#This Row],[Alloc]]=\"WA\"),\"SITUS\",tblREGASSJune19[[#This Row],[Alloc]])","v":"OTHER"},{"$f":"INDEX(tblREGASSLookup[FUNC],MATCH(tblREGASSJune19[[#This Row],[Concat]],tblREGASSLookup[Concat],0))","v":"PTD"},{"$f":"IF(tblREGASSJune19[[#This Row],[Total ($000)]]=0,\"NO\",IF(ISNA(tblREGASSJune19[[#This Row],[FUNC]]),\"YES\",IF(_xlfn.ISFORMULA(tblREGASSJune19[[#This Row],[FUNC]]),\"NO\",\"YES\")))","v":"NO"}]
[{"$f":"CONCATENATE(tblREGASSJune19[[#This Row],[Primary Account]],tblREGASSJune19[[#This Row],[Primary Name]],tblREGASSJune19[[#This Row],[Secondary Acct]],tblREGASSJune19[[#This Row],[Secondary  Name]],tblREGASSJune19[[#This Row],[Alloc4FUNC]])","v":"1823990OTHR REG ASSET-N CST184500Deferred Regulatory ExpenseSITUS"},1823990,"OTHR REG ASSET-N CST",184500,"Deferred Regulatory Expense","IDU",0,{"$f":"IF(OR(tblREGASSJune19[[#This Row],[Alloc]]=\"IDU\",tblREGASSJune19[[#This Row],[Alloc]]=\"OR\",tblREGASSJune19[[#This Row],[Alloc]]=\"UT\",tblREGASSJune19[[#This Row],[Alloc]]=\"WYU\",tblREGASSJune19[[#This Row],[Alloc]]=\"WYP\",tblREGASSJune19[[#This Row],[Alloc]]=\"CA\",tblREGASSJune19[[#This Row],[Alloc]]=\"WA\"),\"SITUS\",tblREGASSJune19[[#This Row],[Alloc]])","v":"SITUS"},{"$f":"INDEX(tblREGASSLookup[FUNC],MATCH(tblREGASSJune19[[#This Row],[Concat]],tblREGASSLookup[Concat],0))","v":{"$error":"#N/A"}},{"$f":"IF(tblREGASSJune19[[#This Row],[Total ($000)]]=0,\"NO\",IF(ISNA(tblREGASSJune19[[#This Row],[FUNC]]),\"YES\",IF(_xlfn.ISFORMULA(tblREGASSJune19[[#This Row],[FUNC]]),\"NO\",\"YES\")))","v":"NO"}]
[{"$f":"CONCATENATE(tblREGASSJune19[[#This Row],[Primary Account]],tblREGASSJune19[[#This Row],[Primary Name]],tblREGASSJune19[[#This Row],[Secondary Acct]],tblREGASSJune19[[#This Row],[Secondary  Name]],tblREGASSJune19[[#This Row],[Alloc4FUNC]])","v":"1823990OTHR REG ASSET-N CST185340TRANSITION COSTS - WASITUS"},1823990,"OTHR REG ASSET-N CST",185340,"TRANSITION COSTS - WA","WA",0,{"$f":"IF(OR(tblREGASSJune19[[#This Row],[Alloc]]=\"IDU\",tblREGASSJune19[[#This Row],[Alloc]]=\"OR\",tblREGASSJune19[[#This Row],[Alloc]]=\"UT\",tblREGASSJune19[[#This Row],[Alloc]]=\"WYU\",tblREGASSJune19[[#This Row],[Alloc]]=\"WYP\",tblREGASSJune19[[#This Row],[Alloc]]=\"CA\",tblREGASSJune19[[#This Row],[Alloc]]=\"WA\"),\"SITUS\",tblREGASSJune19[[#This Row],[Alloc]])","v":"SITUS"},{"$f":"INDEX(tblREGASSLookup[FUNC],MATCH(tblREGASSJune19[[#This Row],[Concat]],tblREGASSLookup[Concat],0))","v":{"$error":"#N/A"}},{"$f":"IF(tblREGASSJune19[[#This Row],[Total ($000)]]=0,\"NO\",IF(ISNA(tblREGASSJune19[[#This Row],[FUNC]]),\"YES\",IF(_xlfn.ISFORMULA(tblREGASSJune19[[#This Row],[FUNC]]),\"NO\",\"YES\")))","v":"NO"}]
[{"$f":"CONCATENATE(tblREGASSJune19[[#This Row],[Primary Account]],tblREGASSJune19[[#This Row],[Primary Name]],tblREGASSJune19[[#This Row],[Secondary Acct]],tblREGASSJune19[[#This Row],[Secondary  Name]],tblREGASSJune19[[#This Row],[Alloc4FUNC]])","v":"1823990OTHR REG ASSET-N CST186090CONTRA REG ASSET - DSM RESERVEOTHER"},1823990,"OTHR REG ASSET-N CST",186090,"CONTRA REG ASSET - DSM RESERVE","OTHER",0,{"$f":"IF(OR(tblREGASSJune19[[#This Row],[Alloc]]=\"IDU\",tblREGASSJune19[[#This Row],[Alloc]]=\"OR\",tblREGASSJune19[[#This Row],[Alloc]]=\"UT\",tblREGASSJune19[[#This Row],[Alloc]]=\"WYU\",tblREGASSJune19[[#This Row],[Alloc]]=\"WYP\",tblREGASSJune19[[#This Row],[Alloc]]=\"CA\",tblREGASSJune19[[#This Row],[Alloc]]=\"WA\"),\"SITUS\",tblREGASSJune19[[#This Row],[Alloc]])","v":"OTHER"},{"$f":"INDEX(tblREGASSLookup[FUNC],MATCH(tblREGASSJune19[[#This Row],[Concat]],tblREGASSLookup[Concat],0))","v":{"$error":"#N/A"}},{"$f":"IF(tblREGASSJune19[[#This Row],[Total ($000)]]=0,\"NO\",IF(ISNA(tblREGASSJune19[[#This Row],[FUNC]]),\"YES\",IF(_xlfn.ISFORMULA(tblREGASSJune19[[#This Row],[FUNC]]),\"NO\",\"YES\")))","v":"NO"}]
[{"$f":"CONCATENATE(tblREGASSJune19[[#This Row],[Primary Account]],tblREGASSJune19[[#This Row],[Primary Name]],tblREGASSJune19[[#This Row],[Secondary Acct]],tblREGASSJune19[[#This Row],[Secondary  Name]],tblREGASSJune19[[#This Row],[Alloc4FUNC]])","v":"1823990OTHR REG ASSET-N CST186095RegA - DSM - Recl to CurrOTHER"},1823990,"OTHR REG ASSET-N CST",186095,"RegA - DSM - Recl to Curr","OTHER",0,{"$f":"IF(OR(tblREGASSJune19[[#This Row],[Alloc]]=\"IDU\",tblREGASSJune19[[#This Row],[Alloc]]=\"OR\",tblREGASSJune19[[#This Row],[Alloc]]=\"UT\",tblREGASSJune19[[#This Row],[Alloc]]=\"WYU\",tblREGASSJune19[[#This Row],[Alloc]]=\"WYP\",tblREGASSJune19[[#This Row],[Alloc]]=\"CA\",tblREGASSJune19[[#This Row],[Alloc]]=\"WA\"),\"SITUS\",tblREGASSJune19[[#This Row],[Alloc]])","v":"OTHER"},{"$f":"INDEX(tblREGASSLookup[FUNC],MATCH(tblREGASSJune19[[#This Row],[Concat]],tblREGASSLookup[Concat],0))","v":"P"},{"$f":"IF(tblREGASSJune19[[#This Row],[Total ($000)]]=0,\"NO\",IF(ISNA(tblREGASSJune19[[#This Row],[FUNC]]),\"YES\",IF(_xlfn.ISFORMULA(tblREGASSJune19[[#This Row],[FUNC]]),\"NO\",\"YES\")))","v":"NO"}]
[{"$f":"CONCATENATE(tblREGASSJune19[[#This Row],[Primary Account]],tblREGASSJune19[[#This Row],[Primary Name]],tblREGASSJune19[[#This Row],[Secondary Acct]],tblREGASSJune19[[#This Row],[Secondary  Name]],tblREGASSJune19[[#This Row],[Alloc4FUNC]])","v":"1823990OTHR REG ASSET-N CST186099Regulatory Asset - Balance ReclassOTHER"},1823990,"OTHR REG ASSET-N CST",186099,"Regulatory Asset - Balance Reclass","OTHER",0,{"$f":"IF(OR(tblREGASSJune19[[#This Row],[Alloc]]=\"IDU\",tblREGASSJune19[[#This Row],[Alloc]]=\"OR\",tblREGASSJune19[[#This Row],[Alloc]]=\"UT\",tblREGASSJune19[[#This Row],[Alloc]]=\"WYU\",tblREGASSJune19[[#This Row],[Alloc]]=\"WYP\",tblREGASSJune19[[#This Row],[Alloc]]=\"CA\",tblREGASSJune19[[#This Row],[Alloc]]=\"WA\"),\"SITUS\",tblREGASSJune19[[#This Row],[Alloc]])","v":"OTHER"},{"$f":"INDEX(tblREGASSLookup[FUNC],MATCH(tblREGASSJune19[[#This Row],[Concat]],tblREGASSLookup[Concat],0))","v":"P"},{"$f":"IF(tblREGASSJune19[[#This Row],[Total ($000)]]=0,\"NO\",IF(ISNA(tblREGASSJune19[[#This Row],[FUNC]]),\"YES\",IF(_xlfn.ISFORMULA(tblREGASSJune19[[#This Row],[FUNC]]),\"NO\",\"YES\")))","v":"NO"}]
[{"$f":"CONCATENATE(tblREGASSJune19[[#This Row],[Primary Account]],tblREGASSJune19[[#This Row],[Primary Name]],tblREGASSJune19[[#This Row],[Secondary Acct]],tblREGASSJune19[[#This Row],[Secondary  Name]],tblREGASSJune19[[#This Row],[Alloc4FUNC]])","v":"1823990OTHR REG ASSET-N CST186100Calif Alternative Rate for Energy (CARE)OTHER"},1823990,"OTHR REG ASSET-N CST",186100,"Calif Alternative Rate for Energy (CARE)","OTHER",395.16185538461502,{"$f":"IF(OR(tblREGASSJune19[[#This Row],[Alloc]]=\"IDU\",tblREGASSJune19[[#This Row],[Alloc]]=\"OR\",tblREGASSJune19[[#This Row],[Alloc]]=\"UT\",tblREGASSJune19[[#This Row],[Alloc]]=\"WYU\",tblREGASSJune19[[#This Row],[Alloc]]=\"WYP\",tblREGASSJune19[[#This Row],[Alloc]]=\"CA\",tblREGASSJune19[[#This Row],[Alloc]]=\"WA\"),\"SITUS\",tblREGASSJune19[[#This Row],[Alloc]])","v":"OTHER"},{"$f":"INDEX(tblREGASSLookup[FUNC],MATCH(tblREGASSJune19[[#This Row],[Concat]],tblREGASSLookup[Concat],0))","v":"CUST"},{"$f":"IF(tblREGASSJune19[[#This Row],[Total ($000)]]=0,\"NO\",IF(ISNA(tblREGASSJune19[[#This Row],[FUNC]]),\"YES\",IF(_xlfn.ISFORMULA(tblREGASSJune19[[#This Row],[FUNC]]),\"NO\",\"YES\")))","v":"NO"}]
[{"$f":"CONCATENATE(tblREGASSJune19[[#This Row],[Primary Account]],tblREGASSJune19[[#This Row],[Primary Name]],tblREGASSJune19[[#This Row],[Secondary Acct]],tblREGASSJune19[[#This Row],[Secondary  Name]],tblREGASSJune19[[#This Row],[Alloc4FUNC]])","v":"1823990OTHR REG ASSET-N CST186119Reg Asset - DSM - CA - Balance ReclassOTHER"},1823990,"OTHR REG ASSET-N CST",186119,"Reg Asset - DSM - CA - Balance Reclass","OTHER",2674.43968692308,{"$f":"IF(OR(tblREGASSJune19[[#This Row],[Alloc]]=\"IDU\",tblREGASSJune19[[#This Row],[Alloc]]=\"OR\",tblREGASSJune19[[#This Row],[Alloc]]=\"UT\",tblREGASSJune19[[#This Row],[Alloc]]=\"WYU\",tblREGASSJune19[[#This Row],[Alloc]]=\"WYP\",tblREGASSJune19[[#This Row],[Alloc]]=\"CA\",tblREGASSJune19[[#This Row],[Alloc]]=\"WA\"),\"SITUS\",tblREGASSJune19[[#This Row],[Alloc]])","v":"OTHER"},{"$f":"INDEX(tblREGASSLookup[FUNC],MATCH(tblREGASSJune19[[#This Row],[Concat]],tblREGASSLookup[Concat],0))","v":"P"},{"$f":"IF(tblREGASSJune19[[#This Row],[Total ($000)]]=0,\"NO\",IF(ISNA(tblREGASSJune19[[#This Row],[FUNC]]),\"YES\",IF(_xlfn.ISFORMULA(tblREGASSJune19[[#This Row],[FUNC]]),\"NO\",\"YES\")))","v":"NO"}]
[{"$f":"CONCATENATE(tblREGASSJune19[[#This Row],[Primary Account]],tblREGASSJune19[[#This Row],[Primary Name]],tblREGASSJune19[[#This Row],[Secondary Acct]],tblREGASSJune19[[#This Row],[Secondary  Name]],tblREGASSJune19[[#This Row],[Alloc4FUNC]])","v":"1823990OTHR REG ASSET-N CST186129Reg Asset - DSM - ID - Balance ReclassOTHER"},1823990,"OTHR REG ASSET-N CST",186129,"Reg Asset - DSM - ID - Balance Reclass","OTHER",1502.60230461538,{"$f":"IF(OR(tblREGASSJune19[[#This Row],[Alloc]]=\"IDU\",tblREGASSJune19[[#This Row],[Alloc]]=\"OR\",tblREGASSJune19[[#This Row],[Alloc]]=\"UT\",tblREGASSJune19[[#This Row],[Alloc]]=\"WYU\",tblREGASSJune19[[#This Row],[Alloc]]=\"WYP\",tblREGASSJune19[[#This Row],[Alloc]]=\"CA\",tblREGASSJune19[[#This Row],[Alloc]]=\"WA\"),\"SITUS\",tblREGASSJune19[[#This Row],[Alloc]])","v":"OTHER"},{"$f":"INDEX(tblREGASSLookup[FUNC],MATCH(tblREGASSJune19[[#This Row],[Concat]],tblREGASSLookup[Concat],0))","v":"P"},{"$f":"IF(tblREGASSJune19[[#This Row],[Total ($000)]]=0,\"NO\",IF(ISNA(tblREGASSJune19[[#This Row],[FUNC]]),\"YES\",IF(_xlfn.ISFORMULA(tblREGASSJune19[[#This Row],[FUNC]]),\"NO\",\"YES\")))","v":"NO"}]
[{"$f":"CONCATENATE(tblREGASSJune19[[#This Row],[Primary Account]],tblREGASSJune19[[#This Row],[Primary Name]],tblREGASSJune19[[#This Row],[Secondary Acct]],tblREGASSJune19[[#This Row],[Secondary  Name]],tblREGASSJune19[[#This Row],[Alloc4FUNC]])","v":"1823990OTHR REG ASSET-N CST186137RegA - DSM - OR - Reclass to CurrentOTHER"},1823990,"OTHR REG ASSET-N CST",186137,"RegA - DSM - OR - Reclass to Current","OTHER",-123.433570769231,{"$f":"IF(OR(tblREGASSJune19[[#This Row],[Alloc]]=\"IDU\",tblREGASSJune19[[#This Row],[Alloc]]=\"OR\",tblREGASSJune19[[#This Row],[Alloc]]=\"UT\",tblREGASSJune19[[#This Row],[Alloc]]=\"WYU\",tblREGASSJune19[[#This Row],[Alloc]]=\"WYP\",tblREGASSJune19[[#This Row],[Alloc]]=\"CA\",tblREGASSJune19[[#This Row],[Alloc]]=\"WA\"),\"SITUS\",tblREGASSJune19[[#This Row],[Alloc]])","v":"OTHER"},{"$f":"INDEX(tblREGASSLookup[FUNC],MATCH(tblREGASSJune19[[#This Row],[Concat]],tblREGASSLookup[Concat],0))","v":"P"},{"$f":"IF(tblREGASSJune19[[#This Row],[Total ($000)]]=0,\"NO\",IF(ISNA(tblREGASSJune19[[#This Row],[FUNC]]),\"YES\",IF(_xlfn.ISFORMULA(tblREGASSJune19[[#This Row],[FUNC]]),\"NO\",\"YES\")))","v":"NO"}]
[{"$f":"CONCATENATE(tblREGASSJune19[[#This Row],[Primary Account]],tblREGASSJune19[[#This Row],[Primary Name]],tblREGASSJune19[[#This Row],[Secondary Acct]],tblREGASSJune19[[#This Row],[Secondary  Name]],tblREGASSJune19[[#This Row],[Alloc4FUNC]])","v":"1823990OTHR REG ASSET-N CST186139Reg Asset - DSM - OR - Balance ReclassOTHER"},1823990,"OTHR REG ASSET-N CST",186139,"Reg Asset - DSM - OR - Balance Reclass","OTHER",0,{"$f":"IF(OR(tblREGASSJune19[[#This Row],[Alloc]]=\"IDU\",tblREGASSJune19[[#This Row],[Alloc]]=\"OR\",tblREGASSJune19[[#This Row],[Alloc]]=\"UT\",tblREGASSJune19[[#This Row],[Alloc]]=\"WYU\",tblREGASSJune19[[#This Row],[Alloc]]=\"WYP\",tblREGASSJune19[[#This Row],[Alloc]]=\"CA\",tblREGASSJune19[[#This Row],[Alloc]]=\"WA\"),\"SITUS\",tblREGASSJune19[[#This Row],[Alloc]])","v":"OTHER"},{"$f":"INDEX(tblREGASSLookup[FUNC],MATCH(tblREGASSJune19[[#This Row],[Concat]],tblREGASSLookup[Concat],0))","v":"P"},{"$f":"IF(tblREGASSJune19[[#This Row],[Total ($000)]]=0,\"NO\",IF(ISNA(tblREGASSJune19[[#This Row],[FUNC]]),\"YES\",IF(_xlfn.ISFORMULA(tblREGASSJune19[[#This Row],[FUNC]]),\"NO\",\"YES\")))","v":"NO"}]
[{"$f":"CONCATENATE(tblREGASSJune19[[#This Row],[Primary Account]],tblREGASSJune19[[#This Row],[Primary Name]],tblREGASSJune19[[#This Row],[Secondary Acct]],tblREGASSJune19[[#This Row],[Secondary  Name]],tblREGASSJune19[[#This Row],[Alloc4FUNC]])","v":"1823990OTHR REG ASSET-N CST186147RegA - DSM - UT - Reclass to CurrentOTHER"},1823990,"OTHR REG ASSET-N CST",186147,"RegA - DSM - UT - Reclass to Current","OTHER",-4423.9196738461496,{"$f":"IF(OR(tblREGASSJune19[[#This Row],[Alloc]]=\"IDU\",tblREGASSJune19[[#This Row],[Alloc]]=\"OR\",tblREGASSJune19[[#This Row],[Alloc]]=\"UT\",tblREGASSJune19[[#This Row],[Alloc]]=\"WYU\",tblREGASSJune19[[#This Row],[Alloc]]=\"WYP\",tblREGASSJune19[[#This Row],[Alloc]]=\"CA\",tblREGASSJune19[[#This Row],[Alloc]]=\"WA\"),\"SITUS\",tblREGASSJune19[[#This Row],[Alloc]])","v":"OTHER"},{"$f":"INDEX(tblREGASSLookup[FUNC],MATCH(tblREGASSJune19[[#This Row],[Concat]],tblREGASSLookup[Concat],0))","v":"P"},{"$f":"IF(tblREGASSJune19[[#This Row],[Total ($000)]]=0,\"NO\",IF(ISNA(tblREGASSJune19[[#This Row],[FUNC]]),\"YES\",IF(_xlfn.ISFORMULA(tblREGASSJune19[[#This Row],[FUNC]]),\"NO\",\"YES\")))","v":"NO"}]
[{"$f":"CONCATENATE(tblREGASSJune19[[#This Row],[Primary Account]],tblREGASSJune19[[#This Row],[Primary Name]],tblREGASSJune19[[#This Row],[Secondary Acct]],tblREGASSJune19[[#This Row],[Secondary  Name]],tblREGASSJune19[[#This Row],[Alloc4FUNC]])","v":"1823990OTHR REG ASSET-N CST186149Reg Asset - DSM - UT - Balance ReclassOTHER"},1823990,"OTHR REG ASSET-N CST",186149,"Reg Asset - DSM - UT - Balance Reclass","OTHER",11969.061669230799,{"$f":"IF(OR(tblREGASSJune19[[#This Row],[Alloc]]=\"IDU\",tblREGASSJune19[[#This Row],[Alloc]]=\"OR\",tblREGASSJune19[[#This Row],[Alloc]]=\"UT\",tblREGASSJune19[[#This Row],[Alloc]]=\"WYU\",tblREGASSJune19[[#This Row],[Alloc]]=\"WYP\",tblREGASSJune19[[#This Row],[Alloc]]=\"CA\",tblREGASSJune19[[#This Row],[Alloc]]=\"WA\"),\"SITUS\",tblREGASSJune19[[#This Row],[Alloc]])","v":"OTHER"},{"$f":"INDEX(tblREGASSLookup[FUNC],MATCH(tblREGASSJune19[[#This Row],[Concat]],tblREGASSLookup[Concat],0))","v":"P"},{"$f":"IF(tblREGASSJune19[[#This Row],[Total ($000)]]=0,\"NO\",IF(ISNA(tblREGASSJune19[[#This Row],[FUNC]]),\"YES\",IF(_xlfn.ISFORMULA(tblREGASSJune19[[#This Row],[FUNC]]),\"NO\",\"YES\")))","v":"NO"}]
[{"$f":"CONCATENATE(tblREGASSJune19[[#This Row],[Primary Account]],tblREGASSJune19[[#This Row],[Primary Name]],tblREGASSJune19[[#This Row],[Secondary Acct]],tblREGASSJune19[[#This Row],[Secondary  Name]],tblREGASSJune19[[#This Row],[Alloc4FUNC]])","v":"1823990OTHR REG ASSET-N CST186157RegA - DSM - WA - Reclass to CurrentOTHER"},1823990,"OTHR REG ASSET-N CST",186157,"RegA - DSM - WA - Reclass to Current","OTHER",0,{"$f":"IF(OR(tblREGASSJune19[[#This Row],[Alloc]]=\"IDU\",tblREGASSJune19[[#This Row],[Alloc]]=\"OR\",tblREGASSJune19[[#This Row],[Alloc]]=\"UT\",tblREGASSJune19[[#This Row],[Alloc]]=\"WYU\",tblREGASSJune19[[#This Row],[Alloc]]=\"WYP\",tblREGASSJune19[[#This Row],[Alloc]]=\"CA\",tblREGASSJune19[[#This Row],[Alloc]]=\"WA\"),\"SITUS\",tblREGASSJune19[[#This Row],[Alloc]])","v":"OTHER"},{"$f":"INDEX(tblREGASSLookup[FUNC],MATCH(tblREGASSJune19[[#This Row],[Concat]],tblREGASSLookup[Concat],0))","v":"P"},{"$f":"IF(tblREGASSJune19[[#This Row],[Total ($000)]]=0,\"NO\",IF(ISNA(tblREGASSJune19[[#This Row],[FUNC]]),\"YES\",IF(_xlfn.ISFORMULA(tblREGASSJune19[[#This Row],[FUNC]]),\"NO\",\"YES\")))","v":"NO"}]
[{"$f":"CONCATENATE(tblREGASSJune19[[#This Row],[Primary Account]],tblREGASSJune19[[#This Row],[Primary Name]],tblREGASSJune19[[#This Row],[Secondary Acct]],tblREGASSJune19[[#This Row],[Secondary  Name]],tblREGASSJune19[[#This Row],[Alloc4FUNC]])","v":"1823990OTHR REG ASSET-N CST186159Reg Asset - DSM - WA - Balance ReclassOTHER"},1823990,"OTHR REG ASSET-N CST",186159,"Reg Asset - DSM - WA - Balance Reclass","OTHER",2915.6418107692298,{"$f":"IF(OR(tblREGASSJune19[[#This Row],[Alloc]]=\"IDU\",tblREGASSJune19[[#This Row],[Alloc]]=\"OR\",tblREGASSJune19[[#This Row],[Alloc]]=\"UT\",tblREGASSJune19[[#This Row],[Alloc]]=\"WYU\",tblREGASSJune19[[#This Row],[Alloc]]=\"WYP\",tblREGASSJune19[[#This Row],[Alloc]]=\"CA\",tblREGASSJune19[[#This Row],[Alloc]]=\"WA\"),\"SITUS\",tblREGASSJune19[[#This Row],[Alloc]])","v":"OTHER"},{"$f":"INDEX(tblREGASSLookup[FUNC],MATCH(tblREGASSJune19[[#This Row],[Concat]],tblREGASSLookup[Concat],0))","v":"P"},{"$f":"IF(tblREGASSJune19[[#This Row],[Total ($000)]]=0,\"NO\",IF(ISNA(tblREGASSJune19[[#This Row],[FUNC]]),\"YES\",IF(_xlfn.ISFORMULA(tblREGASSJune19[[#This Row],[FUNC]]),\"NO\",\"YES\")))","v":"NO"}]
[{"$f":"CONCATENATE(tblREGASSJune19[[#This Row],[Primary Account]],tblREGASSJune19[[#This Row],[Primary Name]],tblREGASSJune19[[#This Row],[Secondary Acct]],tblREGASSJune19[[#This Row],[Secondary  Name]],tblREGASSJune19[[#This Row],[Alloc4FUNC]])","v":"1823990OTHR REG ASSET-N CST186167RegA - DSM - WY - Reclass to CurrentOTHER"},1823990,"OTHR REG ASSET-N CST",186167,"RegA - DSM - WY - Reclass to Current","OTHER",-1507.65236538462,{"$f":"IF(OR(tblREGASSJune19[[#This Row],[Alloc]]=\"IDU\",tblREGASSJune19[[#This Row],[Alloc]]=\"OR\",tblREGASSJune19[[#This Row],[Alloc]]=\"UT\",tblREGASSJune19[[#This Row],[Alloc]]=\"WYU\",tblREGASSJune19[[#This Row],[Alloc]]=\"WYP\",tblREGASSJune19[[#This Row],[Alloc]]=\"CA\",tblREGASSJune19[[#This Row],[Alloc]]=\"WA\"),\"SITUS\",tblREGASSJune19[[#This Row],[Alloc]])","v":"OTHER"},{"$f":"INDEX(tblREGASSLookup[FUNC],MATCH(tblREGASSJune19[[#This Row],[Concat]],tblREGASSLookup[Concat],0))","v":"P"},{"$f":"IF(tblREGASSJune19[[#This Row],[Total ($000)]]=0,\"NO\",IF(ISNA(tblREGASSJune19[[#This Row],[FUNC]]),\"YES\",IF(_xlfn.ISFORMULA(tblREGASSJune19[[#This Row],[FUNC]]),\"NO\",\"YES\")))","v":"NO"}]
[{"$f":"CONCATENATE(tblREGASSJune19[[#This Row],[Primary Account]],tblREGASSJune19[[#This Row],[Primary Name]],tblREGASSJune19[[#This Row],[Secondary Acct]],tblREGASSJune19[[#This Row],[Secondary  Name]],tblREGASSJune19[[#This Row],[Alloc4FUNC]])","v":"1823990OTHR REG ASSET-N CST186169Reg Asset - DSM - WY - Balance ReclassOTHER"},1823990,"OTHR REG ASSET-N CST",186169,"Reg Asset - DSM - WY - Balance Reclass","OTHER",621.13062846153798,{"$f":"IF(OR(tblREGASSJune19[[#This Row],[Alloc]]=\"IDU\",tblREGASSJune19[[#This Row],[Alloc]]=\"OR\",tblREGASSJune19[[#This Row],[Alloc]]=\"UT\",tblREGASSJune19[[#This Row],[Alloc]]=\"WYU\",tblREGASSJune19[[#This Row],[Alloc]]=\"WYP\",tblREGASSJune19[[#This Row],[Alloc]]=\"CA\",tblREGASSJune19[[#This Row],[Alloc]]=\"WA\"),\"SITUS\",tblREGASSJune19[[#This Row],[Alloc]])","v":"OTHER"},{"$f":"INDEX(tblREGASSLookup[FUNC],MATCH(tblREGASSJune19[[#This Row],[Concat]],tblREGASSLookup[Concat],0))","v":"P"},{"$f":"IF(tblREGASSJune19[[#This Row],[Total ($000)]]=0,\"NO\",IF(ISNA(tblREGASSJune19[[#This Row],[FUNC]]),\"YES\",IF(_xlfn.ISFORMULA(tblREGASSJune19[[#This Row],[FUNC]]),\"NO\",\"YES\")))","v":"NO"}]
[{"$f":"CONCATENATE(tblREGASSJune19[[#This Row],[Primary Account]],tblREGASSJune19[[#This Row],[Primary Name]],tblREGASSJune19[[#This Row],[Secondary Acct]],tblREGASSJune19[[#This Row],[Secondary  Name]],tblREGASSJune19[[#This Row],[Alloc4FUNC]])","v":"1823990OTHR REG ASSET-N CST186501Powerdale Hydro Decom Reg Asset - CASITUS"},1823990,"OTHR REG ASSET-N CST",186501,"Powerdale Hydro Decom Reg Asset - CA","CA",0,{"$f":"IF(OR(tblREGASSJune19[[#This Row],[Alloc]]=\"IDU\",tblREGASSJune19[[#This Row],[Alloc]]=\"OR\",tblREGASSJune19[[#This Row],[Alloc]]=\"UT\",tblREGASSJune19[[#This Row],[Alloc]]=\"WYU\",tblREGASSJune19[[#This Row],[Alloc]]=\"WYP\",tblREGASSJune19[[#This Row],[Alloc]]=\"CA\",tblREGASSJune19[[#This Row],[Alloc]]=\"WA\"),\"SITUS\",tblREGASSJune19[[#This Row],[Alloc]])","v":"SITUS"},{"$f":"INDEX(tblREGASSLookup[FUNC],MATCH(tblREGASSJune19[[#This Row],[Concat]],tblREGASSLookup[Concat],0))","v":{"$error":"#N/A"}},{"$f":"IF(tblREGASSJune19[[#This Row],[Total ($000)]]=0,\"NO\",IF(ISNA(tblREGASSJune19[[#This Row],[FUNC]]),\"YES\",IF(_xlfn.ISFORMULA(tblREGASSJune19[[#This Row],[FUNC]]),\"NO\",\"YES\")))","v":"NO"}]
[{"$f":"CONCATENATE(tblREGASSJune19[[#This Row],[Primary Account]],tblREGASSJune19[[#This Row],[Primary Name]],tblREGASSJune19[[#This Row],[Secondary Acct]],tblREGASSJune19[[#This Row],[Secondary  Name]],tblREGASSJune19[[#This Row],[Alloc4FUNC]])","v":"1823990OTHR REG ASSET-N CST186502POWERDALE HYDRO DECOM REG ASSET - IDSITUS"},1823990,"OTHR REG ASSET-N CST",186502,"POWERDALE HYDRO DECOM REG ASSET - ID","IDU",52.021867692307701,{"$f":"IF(OR(tblREGASSJune19[[#This Row],[Alloc]]=\"IDU\",tblREGASSJune19[[#This Row],[Alloc]]=\"OR\",tblREGASSJune19[[#This Row],[Alloc]]=\"UT\",tblREGASSJune19[[#This Row],[Alloc]]=\"WYU\",tblREGASSJune19[[#This Row],[Alloc]]=\"WYP\",tblREGASSJune19[[#This Row],[Alloc]]=\"CA\",tblREGASSJune19[[#This Row],[Alloc]]=\"WA\"),\"SITUS\",tblREGASSJune19[[#This Row],[Alloc]])","v":"SITUS"},{"$f":"INDEX(tblREGASSLookup[FUNC],MATCH(tblREGASSJune19[[#This Row],[Concat]],tblREGASSLookup[Concat],0))","v":"P"},{"$f":"IF(tblREGASSJune19[[#This Row],[Total ($000)]]=0,\"NO\",IF(ISNA(tblREGASSJune19[[#This Row],[FUNC]]),\"YES\",IF(_xlfn.ISFORMULA(tblREGASSJune19[[#This Row],[FUNC]]),\"NO\",\"YES\")))","v":"NO"}]
[{"$f":"CONCATENATE(tblREGASSJune19[[#This Row],[Primary Account]],tblREGASSJune19[[#This Row],[Primary Name]],tblREGASSJune19[[#This Row],[Secondary Acct]],tblREGASSJune19[[#This Row],[Secondary  Name]],tblREGASSJune19[[#This Row],[Alloc4FUNC]])","v":"1823990OTHR REG ASSET-N CST186503POWERDALE HYDRO DECOM REG ASSET - ORSITUS"},1823990,"OTHR REG ASSET-N CST",186503,"POWERDALE HYDRO DECOM REG ASSET - OR","OR",0,{"$f":"IF(OR(tblREGASSJune19[[#This Row],[Alloc]]=\"IDU\",tblREGASSJune19[[#This Row],[Alloc]]=\"OR\",tblREGASSJune19[[#This Row],[Alloc]]=\"UT\",tblREGASSJune19[[#This Row],[Alloc]]=\"WYU\",tblREGASSJune19[[#This Row],[Alloc]]=\"WYP\",tblREGASSJune19[[#This Row],[Alloc]]=\"CA\",tblREGASSJune19[[#This Row],[Alloc]]=\"WA\"),\"SITUS\",tblREGASSJune19[[#This Row],[Alloc]])","v":"SITUS"},{"$f":"INDEX(tblREGASSLookup[FUNC],MATCH(tblREGASSJune19[[#This Row],[Concat]],tblREGASSLookup[Concat],0))","v":{"$error":"#N/A"}},{"$f":"IF(tblREGASSJune19[[#This Row],[Total ($000)]]=0,\"NO\",IF(ISNA(tblREGASSJune19[[#This Row],[FUNC]]),\"YES\",IF(_xlfn.ISFORMULA(tblREGASSJune19[[#This Row],[FUNC]]),\"NO\",\"YES\")))","v":"NO"}]
[{"$f":"CONCATENATE(tblREGASSJune19[[#This Row],[Primary Account]],tblREGASSJune19[[#This Row],[Primary Name]],tblREGASSJune19[[#This Row],[Secondary Acct]],tblREGASSJune19[[#This Row],[Secondary  Name]],tblREGASSJune19[[#This Row],[Alloc4FUNC]])","v":"1823990OTHR REG ASSET-N CST186504POWERDALE HYDRO DECOM REG ASSET - WASITUS"},1823990,"OTHR REG ASSET-N CST",186504,"POWERDALE HYDRO DECOM REG ASSET - WA","WA",0,{"$f":"IF(OR(tblREGASSJune19[[#This Row],[Alloc]]=\"IDU\",tblREGASSJune19[[#This Row],[Alloc]]=\"OR\",tblREGASSJune19[[#This Row],[Alloc]]=\"UT\",tblREGASSJune19[[#This Row],[Alloc]]=\"WYU\",tblREGASSJune19[[#This Row],[Alloc]]=\"WYP\",tblREGASSJune19[[#This Row],[Alloc]]=\"CA\",tblREGASSJune19[[#This Row],[Alloc]]=\"WA\"),\"SITUS\",tblREGASSJune19[[#This Row],[Alloc]])","v":"SITUS"},{"$f":"INDEX(tblREGASSLookup[FUNC],MATCH(tblREGASSJune19[[#This Row],[Concat]],tblREGASSLookup[Concat],0))","v":{"$error":"#N/A"}},{"$f":"IF(tblREGASSJune19[[#This Row],[Total ($000)]]=0,\"NO\",IF(ISNA(tblREGASSJune19[[#This Row],[FUNC]]),\"YES\",IF(_xlfn.ISFORMULA(tblREGASSJune19[[#This Row],[FUNC]]),\"NO\",\"YES\")))","v":"NO"}]
[{"$f":"CONCATENATE(tblREGASSJune19[[#This Row],[Primary Account]],tblREGASSJune19[[#This Row],[Primary Name]],tblREGASSJune19[[#This Row],[Secondary Acct]],tblREGASSJune19[[#This Row],[Secondary  Name]],tblREGASSJune19[[#This Row],[Alloc4FUNC]])","v":"1823990OTHR REG ASSET-N CST186505POWERDALE HYDRO DECOM REG ASSET - WYSITUS"},1823990,"OTHR REG ASSET-N CST",186505,"POWERDALE HYDRO DECOM REG ASSET - WY","WYU",0,{"$f":"IF(OR(tblREGASSJune19[[#This Row],[Alloc]]=\"IDU\",tblREGASSJune19[[#This Row],[Alloc]]=\"OR\",tblREGASSJune19[[#This Row],[Alloc]]=\"UT\",tblREGASSJune19[[#This Row],[Alloc]]=\"WYU\",tblREGASSJune19[[#This Row],[Alloc]]=\"WYP\",tblREGASSJune19[[#This Row],[Alloc]]=\"CA\",tblREGASSJune19[[#This Row],[Alloc]]=\"WA\"),\"SITUS\",tblREGASSJune19[[#This Row],[Alloc]])","v":"SITUS"},{"$f":"INDEX(tblREGASSLookup[FUNC],MATCH(tblREGASSJune19[[#This Row],[Concat]],tblREGASSLookup[Concat],0))","v":{"$error":"#N/A"}},{"$f":"IF(tblREGASSJune19[[#This Row],[Total ($000)]]=0,\"NO\",IF(ISNA(tblREGASSJune19[[#This Row],[FUNC]]),\"YES\",IF(_xlfn.ISFORMULA(tblREGASSJune19[[#This Row],[FUNC]]),\"NO\",\"YES\")))","v":"NO"}]
[{"$f":"CONCATENATE(tblREGASSJune19[[#This Row],[Primary Account]],tblREGASSJune19[[#This Row],[Primary Name]],tblREGASSJune19[[#This Row],[Secondary Acct]],tblREGASSJune19[[#This Row],[Secondary  Name]],tblREGASSJune19[[#This Row],[Alloc4FUNC]])","v":"1823990OTHR REG ASSET-N CST186595RegA - Decom Costs - Recl to CurrOTHER"},1823990,"OTHR REG ASSET-N CST",186595,"RegA - Decom Costs - Recl to Curr","OTHER",0,{"$f":"IF(OR(tblREGASSJune19[[#This Row],[Alloc]]=\"IDU\",tblREGASSJune19[[#This Row],[Alloc]]=\"OR\",tblREGASSJune19[[#This Row],[Alloc]]=\"UT\",tblREGASSJune19[[#This Row],[Alloc]]=\"WYU\",tblREGASSJune19[[#This Row],[Alloc]]=\"WYP\",tblREGASSJune19[[#This Row],[Alloc]]=\"CA\",tblREGASSJune19[[#This Row],[Alloc]]=\"WA\"),\"SITUS\",tblREGASSJune19[[#This Row],[Alloc]])","v":"OTHER"},{"$f":"INDEX(tblREGASSLookup[FUNC],MATCH(tblREGASSJune19[[#This Row],[Concat]],tblREGASSLookup[Concat],0))","v":{"$error":"#N/A"}},{"$f":"IF(tblREGASSJune19[[#This Row],[Total ($000)]]=0,\"NO\",IF(ISNA(tblREGASSJune19[[#This Row],[FUNC]]),\"YES\",IF(_xlfn.ISFORMULA(tblREGASSJune19[[#This Row],[FUNC]]),\"NO\",\"YES\")))","v":"NO"}]
[{"$f":"CONCATENATE(tblREGASSJune19[[#This Row],[Primary Account]],tblREGASSJune19[[#This Row],[Primary Name]],tblREGASSJune19[[#This Row],[Secondary Acct]],tblREGASSJune19[[#This Row],[Secondary  Name]],tblREGASSJune19[[#This Row],[Alloc4FUNC]])","v":"1823990OTHR REG ASSET-N CST186793RegA - Deer Creek - OR - Recl to CurrSE"},1823990,"OTHR REG ASSET-N CST",186793,"RegA - Deer Creek - OR - Recl to Curr","SE",-2289.9000415384598,{"$f":"IF(OR(tblREGASSJune19[[#This Row],[Alloc]]=\"IDU\",tblREGASSJune19[[#This Row],[Alloc]]=\"OR\",tblREGASSJune19[[#This Row],[Alloc]]=\"UT\",tblREGASSJune19[[#This Row],[Alloc]]=\"WYU\",tblREGASSJune19[[#This Row],[Alloc]]=\"WYP\",tblREGASSJune19[[#This Row],[Alloc]]=\"CA\",tblREGASSJune19[[#This Row],[Alloc]]=\"WA\"),\"SITUS\",tblREGASSJune19[[#This Row],[Alloc]])","v":"SE"},{"$f":"INDEX(tblREGASSLookup[FUNC],MATCH(tblREGASSJune19[[#This Row],[Concat]],tblREGASSLookup[Concat],0))","v":"P"},{"$f":"IF(tblREGASSJune19[[#This Row],[Total ($000)]]=0,\"NO\",IF(ISNA(tblREGASSJune19[[#This Row],[FUNC]]),\"YES\",IF(_xlfn.ISFORMULA(tblREGASSJune19[[#This Row],[FUNC]]),\"NO\",\"YES\")))","v":"NO"}]
[{"$f":"CONCATENATE(tblREGASSJune19[[#This Row],[Primary Account]],tblREGASSJune19[[#This Row],[Primary Name]],tblREGASSJune19[[#This Row],[Secondary Acct]],tblREGASSJune19[[#This Row],[Secondary  Name]],tblREGASSJune19[[#This Row],[Alloc4FUNC]])","v":"1823990OTHR REG ASSET-N CST187003RETAIL ACCESS PROJECT - INCOTHER"},1823990,"OTHR REG ASSET-N CST",187003,"RETAIL ACCESS PROJECT - INC","OTHER",0,{"$f":"IF(OR(tblREGASSJune19[[#This Row],[Alloc]]=\"IDU\",tblREGASSJune19[[#This Row],[Alloc]]=\"OR\",tblREGASSJune19[[#This Row],[Alloc]]=\"UT\",tblREGASSJune19[[#This Row],[Alloc]]=\"WYU\",tblREGASSJune19[[#This Row],[Alloc]]=\"WYP\",tblREGASSJune19[[#This Row],[Alloc]]=\"CA\",tblREGASSJune19[[#This Row],[Alloc]]=\"WA\"),\"SITUS\",tblREGASSJune19[[#This Row],[Alloc]])","v":"OTHER"},{"$f":"INDEX(tblREGASSLookup[FUNC],MATCH(tblREGASSJune19[[#This Row],[Concat]],tblREGASSLookup[Concat],0))","v":{"$error":"#N/A"}},{"$f":"IF(tblREGASSJune19[[#This Row],[Total ($000)]]=0,\"NO\",IF(ISNA(tblREGASSJune19[[#This Row],[FUNC]]),\"YES\",IF(_xlfn.ISFORMULA(tblREGASSJune19[[#This Row],[FUNC]]),\"NO\",\"YES\")))","v":"NO"}]
[{"$f":"CONCATENATE(tblREGASSJune19[[#This Row],[Primary Account]],tblREGASSJune19[[#This Row],[Primary Name]],tblREGASSJune19[[#This Row],[Secondary Acct]],tblREGASSJune19[[#This Row],[Secondary  Name]],tblREGASSJune19[[#This Row],[Alloc4FUNC]])","v":"1823990OTHR REG ASSET-N CST187004ENERGY TRUST OF OREGON - SB 1149OTHER"},1823990,"OTHR REG ASSET-N CST",187004,"ENERGY TRUST OF OREGON - SB 1149","OTHER",0,{"$f":"IF(OR(tblREGASSJune19[[#This Row],[Alloc]]=\"IDU\",tblREGASSJune19[[#This Row],[Alloc]]=\"OR\",tblREGASSJune19[[#This Row],[Alloc]]=\"UT\",tblREGASSJune19[[#This Row],[Alloc]]=\"WYU\",tblREGASSJune19[[#This Row],[Alloc]]=\"WYP\",tblREGASSJune19[[#This Row],[Alloc]]=\"CA\",tblREGASSJune19[[#This Row],[Alloc]]=\"WA\"),\"SITUS\",tblREGASSJune19[[#This Row],[Alloc]])","v":"OTHER"},{"$f":"INDEX(tblREGASSLookup[FUNC],MATCH(tblREGASSJune19[[#This Row],[Concat]],tblREGASSLookup[Concat],0))","v":{"$error":"#N/A"}},{"$f":"IF(tblREGASSJune19[[#This Row],[Total ($000)]]=0,\"NO\",IF(ISNA(tblREGASSJune19[[#This Row],[FUNC]]),\"YES\",IF(_xlfn.ISFORMULA(tblREGASSJune19[[#This Row],[FUNC]]),\"NO\",\"YES\")))","v":"NO"}]
[{"$f":"CONCATENATE(tblREGASSJune19[[#This Row],[Primary Account]],tblREGASSJune19[[#This Row],[Primary Name]],tblREGASSJune19[[#This Row],[Secondary Acct]],tblREGASSJune19[[#This Row],[Secondary  Name]],tblREGASSJune19[[#This Row],[Alloc4FUNC]])","v":"1823990OTHR REG ASSET-N CST187005SB1149 IMPLEMENT - PHASE 1 RESIDENTIALOTHER"},1823990,"OTHR REG ASSET-N CST",187005,"SB1149 IMPLEMENT - PHASE 1 RESIDENTIAL","OTHER",0,{"$f":"IF(OR(tblREGASSJune19[[#This Row],[Alloc]]=\"IDU\",tblREGASSJune19[[#This Row],[Alloc]]=\"OR\",tblREGASSJune19[[#This Row],[Alloc]]=\"UT\",tblREGASSJune19[[#This Row],[Alloc]]=\"WYU\",tblREGASSJune19[[#This Row],[Alloc]]=\"WYP\",tblREGASSJune19[[#This Row],[Alloc]]=\"CA\",tblREGASSJune19[[#This Row],[Alloc]]=\"WA\"),\"SITUS\",tblREGASSJune19[[#This Row],[Alloc]])","v":"OTHER"},{"$f":"INDEX(tblREGASSLookup[FUNC],MATCH(tblREGASSJune19[[#This Row],[Concat]],tblREGASSLookup[Concat],0))","v":{"$error":"#N/A"}},{"$f":"IF(tblREGASSJune19[[#This Row],[Total ($000)]]=0,\"NO\",IF(ISNA(tblREGASSJune19[[#This Row],[FUNC]]),\"YES\",IF(_xlfn.ISFORMULA(tblREGASSJune19[[#This Row],[FUNC]]),\"NO\",\"YES\")))","v":"NO"}]
[{"$f":"CONCATENATE(tblREGASSJune19[[#This Row],[Primary Account]],tblREGASSJune19[[#This Row],[Primary Name]],tblREGASSJune19[[#This Row],[Secondary Acct]],tblREGASSJune19[[#This Row],[Secondary  Name]],tblREGASSJune19[[#This Row],[Alloc4FUNC]])","v":"1823990OTHR REG ASSET-N CST187006SB1149 IMPLEMENT - SMALL NONRESIDENTIALOTHER"},1823990,"OTHR REG ASSET-N CST",187006,"SB1149 IMPLEMENT - SMALL NONRESIDENTIAL","OTHER",0,{"$f":"IF(OR(tblREGASSJune19[[#This Row],[Alloc]]=\"IDU\",tblREGASSJune19[[#This Row],[Alloc]]=\"OR\",tblREGASSJune19[[#This Row],[Alloc]]=\"UT\",tblREGASSJune19[[#This Row],[Alloc]]=\"WYU\",tblREGASSJune19[[#This Row],[Alloc]]=\"WYP\",tblREGASSJune19[[#This Row],[Alloc]]=\"CA\",tblREGASSJune19[[#This Row],[Alloc]]=\"WA\"),\"SITUS\",tblREGASSJune19[[#This Row],[Alloc]])","v":"OTHER"},{"$f":"INDEX(tblREGASSLookup[FUNC],MATCH(tblREGASSJune19[[#This Row],[Concat]],tblREGASSLookup[Concat],0))","v":{"$error":"#N/A"}},{"$f":"IF(tblREGASSJune19[[#This Row],[Total ($000)]]=0,\"NO\",IF(ISNA(tblREGASSJune19[[#This Row],[FUNC]]),\"YES\",IF(_xlfn.ISFORMULA(tblREGASSJune19[[#This Row],[FUNC]]),\"NO\",\"YES\")))","v":"NO"}]
[{"$f":"CONCATENATE(tblREGASSJune19[[#This Row],[Primary Account]],tblREGASSJune19[[#This Row],[Primary Name]],tblREGASSJune19[[#This Row],[Secondary Acct]],tblREGASSJune19[[#This Row],[Secondary  Name]],tblREGASSJune19[[#This Row],[Alloc4FUNC]])","v":"1823990OTHR REG ASSET-N CST187007SB1149 IMPLEMENT - LARGE NONRESIDENTIALOTHER"},1823990,"OTHR REG ASSET-N CST",187007,"SB1149 IMPLEMENT - LARGE NONRESIDENTIAL","OTHER",0,{"$f":"IF(OR(tblREGASSJune19[[#This Row],[Alloc]]=\"IDU\",tblREGASSJune19[[#This Row],[Alloc]]=\"OR\",tblREGASSJune19[[#This Row],[Alloc]]=\"UT\",tblREGASSJune19[[#This Row],[Alloc]]=\"WYU\",tblREGASSJune19[[#This Row],[Alloc]]=\"WYP\",tblREGASSJune19[[#This Row],[Alloc]]=\"CA\",tblREGASSJune19[[#This Row],[Alloc]]=\"WA\"),\"SITUS\",tblREGASSJune19[[#This Row],[Alloc]])","v":"OTHER"},{"$f":"INDEX(tblREGASSLookup[FUNC],MATCH(tblREGASSJune19[[#This Row],[Concat]],tblREGASSLookup[Concat],0))","v":{"$error":"#N/A"}},{"$f":"IF(tblREGASSJune19[[#This Row],[Total ($000)]]=0,\"NO\",IF(ISNA(tblREGASSJune19[[#This Row],[FUNC]]),\"YES\",IF(_xlfn.ISFORMULA(tblREGASSJune19[[#This Row],[FUNC]]),\"NO\",\"YES\")))","v":"NO"}]
[{"$f":"CONCATENATE(tblREGASSJune19[[#This Row],[Primary Account]],tblREGASSJune19[[#This Row],[Primary Name]],tblREGASSJune19[[#This Row],[Secondary Acct]],tblREGASSJune19[[#This Row],[Secondary  Name]],tblREGASSJune19[[#This Row],[Alloc4FUNC]])","v":"1823990OTHR REG ASSET-N CST187028TRANSITION COSTS-RETIREMENT & DISPLACESO"},1823990,"OTHR REG ASSET-N CST",187028,"TRANSITION COSTS-RETIREMENT & DISPLACE","SO",0,{"$f":"IF(OR(tblREGASSJune19[[#This Row],[Alloc]]=\"IDU\",tblREGASSJune19[[#This Row],[Alloc]]=\"OR\",tblREGASSJune19[[#This Row],[Alloc]]=\"UT\",tblREGASSJune19[[#This Row],[Alloc]]=\"WYU\",tblREGASSJune19[[#This Row],[Alloc]]=\"WYP\",tblREGASSJune19[[#This Row],[Alloc]]=\"CA\",tblREGASSJune19[[#This Row],[Alloc]]=\"WA\"),\"SITUS\",tblREGASSJune19[[#This Row],[Alloc]])","v":"SO"},{"$f":"INDEX(tblREGASSLookup[FUNC],MATCH(tblREGASSJune19[[#This Row],[Concat]],tblREGASSLookup[Concat],0))","v":"P"},{"$f":"IF(tblREGASSJune19[[#This Row],[Total ($000)]]=0,\"NO\",IF(ISNA(tblREGASSJune19[[#This Row],[FUNC]]),\"YES\",IF(_xlfn.ISFORMULA(tblREGASSJune19[[#This Row],[FUNC]]),\"NO\",\"YES\")))","v":"NO"}]
[{"$f":"CONCATENATE(tblREGASSJune19[[#This Row],[Primary Account]],tblREGASSJune19[[#This Row],[Primary Name]],tblREGASSJune19[[#This Row],[Secondary Acct]],tblREGASSJune19[[#This Row],[Secondary  Name]],tblREGASSJune19[[#This Row],[Alloc4FUNC]])","v":"1823990OTHR REG ASSET-N CST187041CHOLLA FUEL CONTRACT NEGOTIATIONSSE"},1823990,"OTHR REG ASSET-N CST",187041,"CHOLLA FUEL CONTRACT NEGOTIATIONS","SE",0,{"$f":"IF(OR(tblREGASSJune19[[#This Row],[Alloc]]=\"IDU\",tblREGASSJune19[[#This Row],[Alloc]]=\"OR\",tblREGASSJune19[[#This Row],[Alloc]]=\"UT\",tblREGASSJune19[[#This Row],[Alloc]]=\"WYU\",tblREGASSJune19[[#This Row],[Alloc]]=\"WYP\",tblREGASSJune19[[#This Row],[Alloc]]=\"CA\",tblREGASSJune19[[#This Row],[Alloc]]=\"WA\"),\"SITUS\",tblREGASSJune19[[#This Row],[Alloc]])","v":"SE"},{"$f":"INDEX(tblREGASSLookup[FUNC],MATCH(tblREGASSJune19[[#This Row],[Concat]],tblREGASSLookup[Concat],0))","v":{"$error":"#N/A"}},{"$f":"IF(tblREGASSJune19[[#This Row],[Total ($000)]]=0,\"NO\",IF(ISNA(tblREGASSJune19[[#This Row],[FUNC]]),\"YES\",IF(_xlfn.ISFORMULA(tblREGASSJune19[[#This Row],[FUNC]]),\"NO\",\"YES\")))","v":"NO"}]
[{"$f":"CONCATENATE(tblREGASSJune19[[#This Row],[Primary Account]],tblREGASSJune19[[#This Row],[Primary Name]],tblREGASSJune19[[#This Row],[Secondary Acct]],tblREGASSJune19[[#This Row],[Secondary  Name]],tblREGASSJune19[[#This Row],[Alloc4FUNC]])","v":"1823990OTHR REG ASSET-N CST187042Reg Asset - CA GHG AllowancesOTHER"},1823990,"OTHR REG ASSET-N CST",187042,"Reg Asset - CA GHG Allowances","OTHER",-960.82313692307696,{"$f":"IF(OR(tblREGASSJune19[[#This Row],[Alloc]]=\"IDU\",tblREGASSJune19[[#This Row],[Alloc]]=\"OR\",tblREGASSJune19[[#This Row],[Alloc]]=\"UT\",tblREGASSJune19[[#This Row],[Alloc]]=\"WYU\",tblREGASSJune19[[#This Row],[Alloc]]=\"WYP\",tblREGASSJune19[[#This Row],[Alloc]]=\"CA\",tblREGASSJune19[[#This Row],[Alloc]]=\"WA\"),\"SITUS\",tblREGASSJune19[[#This Row],[Alloc]])","v":"OTHER"},{"$f":"INDEX(tblREGASSLookup[FUNC],MATCH(tblREGASSJune19[[#This Row],[Concat]],tblREGASSLookup[Concat],0))","v":"P"},{"$f":"IF(tblREGASSJune19[[#This Row],[Total ($000)]]=0,\"NO\",IF(ISNA(tblREGASSJune19[[#This Row],[FUNC]]),\"YES\",IF(_xlfn.ISFORMULA(tblREGASSJune19[[#This Row],[FUNC]]),\"NO\",\"YES\")))","v":"NO"}]
[{"$f":"CONCATENATE(tblREGASSJune19[[#This Row],[Primary Account]],tblREGASSJune19[[#This Row],[Primary Name]],tblREGASSJune19[[#This Row],[Secondary Acct]],tblREGASSJune19[[#This Row],[Secondary  Name]],tblREGASSJune19[[#This Row],[Alloc4FUNC]])","v":"1823990OTHR REG ASSET-N CST187043Reg Asset - CY14 CA GHG AllowancesOTHER"},1823990,"OTHR REG ASSET-N CST",187043,"Reg Asset - CY14 CA GHG Allowances","OTHER",0,{"$f":"IF(OR(tblREGASSJune19[[#This Row],[Alloc]]=\"IDU\",tblREGASSJune19[[#This Row],[Alloc]]=\"OR\",tblREGASSJune19[[#This Row],[Alloc]]=\"UT\",tblREGASSJune19[[#This Row],[Alloc]]=\"WYU\",tblREGASSJune19[[#This Row],[Alloc]]=\"WYP\",tblREGASSJune19[[#This Row],[Alloc]]=\"CA\",tblREGASSJune19[[#This Row],[Alloc]]=\"WA\"),\"SITUS\",tblREGASSJune19[[#This Row],[Alloc]])","v":"OTHER"},{"$f":"INDEX(tblREGASSLookup[FUNC],MATCH(tblREGASSJune19[[#This Row],[Concat]],tblREGASSLookup[Concat],0))","v":{"$error":"#N/A"}},{"$f":"IF(tblREGASSJune19[[#This Row],[Total ($000)]]=0,\"NO\",IF(ISNA(tblREGASSJune19[[#This Row],[FUNC]]),\"YES\",IF(_xlfn.ISFORMULA(tblREGASSJune19[[#This Row],[FUNC]]),\"NO\",\"YES\")))","v":"NO"}]
[{"$f":"CONCATENATE(tblREGASSJune19[[#This Row],[Primary Account]],tblREGASSJune19[[#This Row],[Primary Name]],tblREGASSJune19[[#This Row],[Secondary Acct]],tblREGASSJune19[[#This Row],[Secondary  Name]],tblREGASSJune19[[#This Row],[Alloc4FUNC]])","v":"1823990OTHR REG ASSET-N CST187048RegA - CA GHG Allowances - Recl to CurrOTHER"},1823990,"OTHR REG ASSET-N CST",187048,"RegA - CA GHG Allowances - Recl to Curr","OTHER",-254.68284923076899,{"$f":"IF(OR(tblREGASSJune19[[#This Row],[Alloc]]=\"IDU\",tblREGASSJune19[[#This Row],[Alloc]]=\"OR\",tblREGASSJune19[[#This Row],[Alloc]]=\"UT\",tblREGASSJune19[[#This Row],[Alloc]]=\"WYU\",tblREGASSJune19[[#This Row],[Alloc]]=\"WYP\",tblREGASSJune19[[#This Row],[Alloc]]=\"CA\",tblREGASSJune19[[#This Row],[Alloc]]=\"WA\"),\"SITUS\",tblREGASSJune19[[#This Row],[Alloc]])","v":"OTHER"},{"$f":"INDEX(tblREGASSLookup[FUNC],MATCH(tblREGASSJune19[[#This Row],[Concat]],tblREGASSLookup[Concat],0))","v":"P"},{"$f":"IF(tblREGASSJune19[[#This Row],[Total ($000)]]=0,\"NO\",IF(ISNA(tblREGASSJune19[[#This Row],[FUNC]]),\"YES\",IF(_xlfn.ISFORMULA(tblREGASSJune19[[#This Row],[FUNC]]),\"NO\",\"YES\")))","v":"NO"}]
[{"$f":"CONCATENATE(tblREGASSJune19[[#This Row],[Primary Account]],tblREGASSJune19[[#This Row],[Primary Name]],tblREGASSJune19[[#This Row],[Secondary Acct]],tblREGASSJune19[[#This Row],[Secondary  Name]],tblREGASSJune19[[#This Row],[Alloc4FUNC]])","v":"1823990OTHR REG ASSET-N CST187049RegA - CA GHG Allowances - Balance ReclOTHER"},1823990,"OTHR REG ASSET-N CST",187049,"RegA - CA GHG Allowances - Balance Recl","OTHER",1215.50598615385,{"$f":"IF(OR(tblREGASSJune19[[#This Row],[Alloc]]=\"IDU\",tblREGASSJune19[[#This Row],[Alloc]]=\"OR\",tblREGASSJune19[[#This Row],[Alloc]]=\"UT\",tblREGASSJune19[[#This Row],[Alloc]]=\"WYU\",tblREGASSJune19[[#This Row],[Alloc]]=\"WYP\",tblREGASSJune19[[#This Row],[Alloc]]=\"CA\",tblREGASSJune19[[#This Row],[Alloc]]=\"WA\"),\"SITUS\",tblREGASSJune19[[#This Row],[Alloc]])","v":"OTHER"},{"$f":"INDEX(tblREGASSLookup[FUNC],MATCH(tblREGASSJune19[[#This Row],[Concat]],tblREGASSLookup[Concat],0))","v":"P"},{"$f":"IF(tblREGASSJune19[[#This Row],[Total ($000)]]=0,\"NO\",IF(ISNA(tblREGASSJune19[[#This Row],[FUNC]]),\"YES\",IF(_xlfn.ISFORMULA(tblREGASSJune19[[#This Row],[FUNC]]),\"NO\",\"YES\")))","v":"NO"}]
[{"$f":"CONCATENATE(tblREGASSJune19[[#This Row],[Primary Account]],tblREGASSJune19[[#This Row],[Primary Name]],tblREGASSJune19[[#This Row],[Secondary Acct]],tblREGASSJune19[[#This Row],[Secondary  Name]],tblREGASSJune19[[#This Row],[Alloc4FUNC]])","v":"1823990OTHR REG ASSET-N CST187050CHOLLA PLANT TRANSACTION COSTSSGCT"},1823990,"OTHR REG ASSET-N CST",187050,"CHOLLA PLANT TRANSACTION COSTS","SGCT",0,{"$f":"IF(OR(tblREGASSJune19[[#This Row],[Alloc]]=\"IDU\",tblREGASSJune19[[#This Row],[Alloc]]=\"OR\",tblREGASSJune19[[#This Row],[Alloc]]=\"UT\",tblREGASSJune19[[#This Row],[Alloc]]=\"WYU\",tblREGASSJune19[[#This Row],[Alloc]]=\"WYP\",tblREGASSJune19[[#This Row],[Alloc]]=\"CA\",tblREGASSJune19[[#This Row],[Alloc]]=\"WA\"),\"SITUS\",tblREGASSJune19[[#This Row],[Alloc]])","v":"SGCT"},{"$f":"INDEX(tblREGASSLookup[FUNC],MATCH(tblREGASSJune19[[#This Row],[Concat]],tblREGASSLookup[Concat],0))","v":"P"},{"$f":"IF(tblREGASSJune19[[#This Row],[Total ($000)]]=0,\"NO\",IF(ISNA(tblREGASSJune19[[#This Row],[FUNC]]),\"YES\",IF(_xlfn.ISFORMULA(tblREGASSJune19[[#This Row],[FUNC]]),\"NO\",\"YES\")))","v":"NO"}]
[{"$f":"CONCATENATE(tblREGASSJune19[[#This Row],[Primary Account]],tblREGASSJune19[[#This Row],[Primary Name]],tblREGASSJune19[[#This Row],[Secondary Acct]],tblREGASSJune19[[#This Row],[Secondary  Name]],tblREGASSJune19[[#This Row],[Alloc4FUNC]])","v":"1823990OTHR REG ASSET-N CST187051WASHINGTON COLSTRIP #3 REGULATORY ASSETSE"},1823990,"OTHR REG ASSET-N CST",187051,"WASHINGTON COLSTRIP #3 REGULATORY ASSET","SE",0,{"$f":"IF(OR(tblREGASSJune19[[#This Row],[Alloc]]=\"IDU\",tblREGASSJune19[[#This Row],[Alloc]]=\"OR\",tblREGASSJune19[[#This Row],[Alloc]]=\"UT\",tblREGASSJune19[[#This Row],[Alloc]]=\"WYU\",tblREGASSJune19[[#This Row],[Alloc]]=\"WYP\",tblREGASSJune19[[#This Row],[Alloc]]=\"CA\",tblREGASSJune19[[#This Row],[Alloc]]=\"WA\"),\"SITUS\",tblREGASSJune19[[#This Row],[Alloc]])","v":"SE"},{"$f":"INDEX(tblREGASSLookup[FUNC],MATCH(tblREGASSJune19[[#This Row],[Concat]],tblREGASSLookup[Concat],0))","v":"P"},{"$f":"IF(tblREGASSJune19[[#This Row],[Total ($000)]]=0,\"NO\",IF(ISNA(tblREGASSJune19[[#This Row],[FUNC]]),\"YES\",IF(_xlfn.ISFORMULA(tblREGASSJune19[[#This Row],[FUNC]]),\"NO\",\"YES\")))","v":"NO"}]
[{"$f":"CONCATENATE(tblREGASSJune19[[#This Row],[Primary Account]],tblREGASSJune19[[#This Row],[Primary Name]],tblREGASSJune19[[#This Row],[Secondary Acct]],tblREGASSJune19[[#This Row],[Secondary  Name]],tblREGASSJune19[[#This Row],[Alloc4FUNC]])","v":"1823990OTHR REG ASSET-N CST187051WASHINGTON COLSTRIP #3 REGULATORY ASSETSITUS"},1823990,"OTHR REG ASSET-N CST",187051,"WASHINGTON COLSTRIP #3 REGULATORY ASSET","WA",108.75474,{"$f":"IF(OR(tblREGASSJune19[[#This Row],[Alloc]]=\"IDU\",tblREGASSJune19[[#This Row],[Alloc]]=\"OR\",tblREGASSJune19[[#This Row],[Alloc]]=\"UT\",tblREGASSJune19[[#This Row],[Alloc]]=\"WYU\",tblREGASSJune19[[#This Row],[Alloc]]=\"WYP\",tblREGASSJune19[[#This Row],[Alloc]]=\"CA\",tblREGASSJune19[[#This Row],[Alloc]]=\"WA\"),\"SITUS\",tblREGASSJune19[[#This Row],[Alloc]])","v":"SITUS"},{"$f":"INDEX(tblREGASSLookup[FUNC],MATCH(tblREGASSJune19[[#This Row],[Concat]],tblREGASSLookup[Concat],0))","v":"P"},{"$f":"IF(tblREGASSJune19[[#This Row],[Total ($000)]]=0,\"NO\",IF(ISNA(tblREGASSJune19[[#This Row],[FUNC]]),\"YES\",IF(_xlfn.ISFORMULA(tblREGASSJune19[[#This Row],[FUNC]]),\"NO\",\"YES\")))","v":"NO"}]
[{"$f":"CONCATENATE(tblREGASSJune19[[#This Row],[Primary Account]],tblREGASSJune19[[#This Row],[Primary Name]],tblREGASSJune19[[#This Row],[Secondary Acct]],tblREGASSJune19[[#This Row],[Secondary  Name]],tblREGASSJune19[[#This Row],[Alloc4FUNC]])","v":"1823990OTHR REG ASSET-N CST187058TRAIL MOUNTAIN MINE CLOSURE COSTSSE"},1823990,"OTHR REG ASSET-N CST",187058,"TRAIL MOUNTAIN MINE CLOSURE COSTS","SE",0,{"$f":"IF(OR(tblREGASSJune19[[#This Row],[Alloc]]=\"IDU\",tblREGASSJune19[[#This Row],[Alloc]]=\"OR\",tblREGASSJune19[[#This Row],[Alloc]]=\"UT\",tblREGASSJune19[[#This Row],[Alloc]]=\"WYU\",tblREGASSJune19[[#This Row],[Alloc]]=\"WYP\",tblREGASSJune19[[#This Row],[Alloc]]=\"CA\",tblREGASSJune19[[#This Row],[Alloc]]=\"WA\"),\"SITUS\",tblREGASSJune19[[#This Row],[Alloc]])","v":"SE"},{"$f":"INDEX(tblREGASSLookup[FUNC],MATCH(tblREGASSJune19[[#This Row],[Concat]],tblREGASSLookup[Concat],0))","v":"P"},{"$f":"IF(tblREGASSJune19[[#This Row],[Total ($000)]]=0,\"NO\",IF(ISNA(tblREGASSJune19[[#This Row],[FUNC]]),\"YES\",IF(_xlfn.ISFORMULA(tblREGASSJune19[[#This Row],[FUNC]]),\"NO\",\"YES\")))","v":"NO"}]
[{"$f":"CONCATENATE(tblREGASSJune19[[#This Row],[Primary Account]],tblREGASSJune19[[#This Row],[Primary Name]],tblREGASSJune19[[#This Row],[Secondary Acct]],tblREGASSJune19[[#This Row],[Secondary  Name]],tblREGASSJune19[[#This Row],[Alloc4FUNC]])","v":"1823990OTHR REG ASSET-N CST187059TRAIL MTN MINE UNRECOVERED INVESTSE"},1823990,"OTHR REG ASSET-N CST",187059,"TRAIL MTN MINE UNRECOVERED INVEST","SE",0,{"$f":"IF(OR(tblREGASSJune19[[#This Row],[Alloc]]=\"IDU\",tblREGASSJune19[[#This Row],[Alloc]]=\"OR\",tblREGASSJune19[[#This Row],[Alloc]]=\"UT\",tblREGASSJune19[[#This Row],[Alloc]]=\"WYU\",tblREGASSJune19[[#This Row],[Alloc]]=\"WYP\",tblREGASSJune19[[#This Row],[Alloc]]=\"CA\",tblREGASSJune19[[#This Row],[Alloc]]=\"WA\"),\"SITUS\",tblREGASSJune19[[#This Row],[Alloc]])","v":"SE"},{"$f":"INDEX(tblREGASSLookup[FUNC],MATCH(tblREGASSJune19[[#This Row],[Concat]],tblREGASSLookup[Concat],0))","v":{"$error":"#N/A"}},{"$f":"IF(tblREGASSJune19[[#This Row],[Total ($000)]]=0,\"NO\",IF(ISNA(tblREGASSJune19[[#This Row],[FUNC]]),\"YES\",IF(_xlfn.ISFORMULA(tblREGASSJune19[[#This Row],[FUNC]]),\"NO\",\"YES\")))","v":"NO"}]
[{"$f":"CONCATENATE(tblREGASSJune19[[#This Row],[Primary Account]],tblREGASSJune19[[#This Row],[Primary Name]],tblREGASSJune19[[#This Row],[Secondary Acct]],tblREGASSJune19[[#This Row],[Secondary  Name]],tblREGASSJune19[[#This Row],[Alloc4FUNC]])","v":"1823990OTHR REG ASSET-N CST187070Trail Mtn Mine Costs - Deseret SettlemenSE"},1823990,"OTHR REG ASSET-N CST",187070,"Trail Mtn Mine Costs - Deseret Settlemen","SE",0,{"$f":"IF(OR(tblREGASSJune19[[#This Row],[Alloc]]=\"IDU\",tblREGASSJune19[[#This Row],[Alloc]]=\"OR\",tblREGASSJune19[[#This Row],[Alloc]]=\"UT\",tblREGASSJune19[[#This Row],[Alloc]]=\"WYU\",tblREGASSJune19[[#This Row],[Alloc]]=\"WYP\",tblREGASSJune19[[#This Row],[Alloc]]=\"CA\",tblREGASSJune19[[#This Row],[Alloc]]=\"WA\"),\"SITUS\",tblREGASSJune19[[#This Row],[Alloc]])","v":"SE"},{"$f":"INDEX(tblREGASSLookup[FUNC],MATCH(tblREGASSJune19[[#This Row],[Concat]],tblREGASSLookup[Concat],0))","v":"P"},{"$f":"IF(tblREGASSJune19[[#This Row],[Total ($000)]]=0,\"NO\",IF(ISNA(tblREGASSJune19[[#This Row],[FUNC]]),\"YES\",IF(_xlfn.ISFORMULA(tblREGASSJune19[[#This Row],[FUNC]]),\"NO\",\"YES\")))","v":"NO"}]
[{"$f":"CONCATENATE(tblREGASSJune19[[#This Row],[Primary Account]],tblREGASSJune19[[#This Row],[Primary Name]],tblREGASSJune19[[#This Row],[Secondary Acct]],tblREGASSJune19[[#This Row],[Secondary  Name]],tblREGASSJune19[[#This Row],[Alloc4FUNC]])","v":"1823990OTHR REG ASSET-N CST187082RTO Grid West N/R - WYOTHER"},1823990,"OTHR REG ASSET-N CST",187082,"RTO Grid West N/R - WY","OTHER",0,{"$f":"IF(OR(tblREGASSJune19[[#This Row],[Alloc]]=\"IDU\",tblREGASSJune19[[#This Row],[Alloc]]=\"OR\",tblREGASSJune19[[#This Row],[Alloc]]=\"UT\",tblREGASSJune19[[#This Row],[Alloc]]=\"WYU\",tblREGASSJune19[[#This Row],[Alloc]]=\"WYP\",tblREGASSJune19[[#This Row],[Alloc]]=\"CA\",tblREGASSJune19[[#This Row],[Alloc]]=\"WA\"),\"SITUS\",tblREGASSJune19[[#This Row],[Alloc]])","v":"OTHER"},{"$f":"INDEX(tblREGASSLookup[FUNC],MATCH(tblREGASSJune19[[#This Row],[Concat]],tblREGASSLookup[Concat],0))","v":{"$error":"#N/A"}},{"$f":"IF(tblREGASSJune19[[#This Row],[Total ($000)]]=0,\"NO\",IF(ISNA(tblREGASSJune19[[#This Row],[FUNC]]),\"YES\",IF(_xlfn.ISFORMULA(tblREGASSJune19[[#This Row],[FUNC]]),\"NO\",\"YES\")))","v":"NO"}]
[{"$f":"CONCATENATE(tblREGASSJune19[[#This Row],[Primary Account]],tblREGASSJune19[[#This Row],[Primary Name]],tblREGASSJune19[[#This Row],[Secondary Acct]],tblREGASSJune19[[#This Row],[Secondary  Name]],tblREGASSJune19[[#This Row],[Alloc4FUNC]])","v":"1823990OTHR REG ASSET-N CST187090REGULATORY ASSET - FEDERAL INT EXPSITUS"},1823990,"OTHR REG ASSET-N CST",187090,"REGULATORY ASSET - FEDERAL INT EXP","UT",0,{"$f":"IF(OR(tblREGASSJune19[[#This Row],[Alloc]]=\"IDU\",tblREGASSJune19[[#This Row],[Alloc]]=\"OR\",tblREGASSJune19[[#This Row],[Alloc]]=\"UT\",tblREGASSJune19[[#This Row],[Alloc]]=\"WYU\",tblREGASSJune19[[#This Row],[Alloc]]=\"WYP\",tblREGASSJune19[[#This Row],[Alloc]]=\"CA\",tblREGASSJune19[[#This Row],[Alloc]]=\"WA\"),\"SITUS\",tblREGASSJune19[[#This Row],[Alloc]])","v":"SITUS"},{"$f":"INDEX(tblREGASSLookup[FUNC],MATCH(tblREGASSJune19[[#This Row],[Concat]],tblREGASSLookup[Concat],0))","v":{"$error":"#N/A"}},{"$f":"IF(tblREGASSJune19[[#This Row],[Total ($000)]]=0,\"NO\",IF(ISNA(tblREGASSJune19[[#This Row],[FUNC]]),\"YES\",IF(_xlfn.ISFORMULA(tblREGASSJune19[[#This Row],[FUNC]]),\"NO\",\"YES\")))","v":"NO"}]
[{"$f":"CONCATENATE(tblREGASSJune19[[#This Row],[Primary Account]],tblREGASSJune19[[#This Row],[Primary Name]],tblREGASSJune19[[#This Row],[Secondary Acct]],tblREGASSJune19[[#This Row],[Secondary  Name]],tblREGASSJune19[[#This Row],[Alloc4FUNC]])","v":"1823990OTHR REG ASSET-N CST187091Regulatory Asset - Federal Int Exp (WY)OTHER"},1823990,"OTHR REG ASSET-N CST",187091,"Regulatory Asset - Federal Int Exp (WY)","OTHER",0,{"$f":"IF(OR(tblREGASSJune19[[#This Row],[Alloc]]=\"IDU\",tblREGASSJune19[[#This Row],[Alloc]]=\"OR\",tblREGASSJune19[[#This Row],[Alloc]]=\"UT\",tblREGASSJune19[[#This Row],[Alloc]]=\"WYU\",tblREGASSJune19[[#This Row],[Alloc]]=\"WYP\",tblREGASSJune19[[#This Row],[Alloc]]=\"CA\",tblREGASSJune19[[#This Row],[Alloc]]=\"WA\"),\"SITUS\",tblREGASSJune19[[#This Row],[Alloc]])","v":"OTHER"},{"$f":"INDEX(tblREGASSLookup[FUNC],MATCH(tblREGASSJune19[[#This Row],[Concat]],tblREGASSLookup[Concat],0))","v":{"$error":"#N/A"}},{"$f":"IF(tblREGASSJune19[[#This Row],[Total ($000)]]=0,\"NO\",IF(ISNA(tblREGASSJune19[[#This Row],[FUNC]]),\"YES\",IF(_xlfn.ISFORMULA(tblREGASSJune19[[#This Row],[FUNC]]),\"NO\",\"YES\")))","v":"NO"}]
[{"$f":"CONCATENATE(tblREGASSJune19[[#This Row],[Primary Account]],tblREGASSJune19[[#This Row],[Primary Name]],tblREGASSJune19[[#This Row],[Secondary Acct]],tblREGASSJune19[[#This Row],[Secondary  Name]],tblREGASSJune19[[#This Row],[Alloc4FUNC]])","v":"1823990OTHR REG ASSET-N CST187092Reg Asset - Federal Repair Interest (ID)OTHER"},1823990,"OTHR REG ASSET-N CST",187092,"Reg Asset - Federal Repair Interest (ID)","OTHER",0,{"$f":"IF(OR(tblREGASSJune19[[#This Row],[Alloc]]=\"IDU\",tblREGASSJune19[[#This Row],[Alloc]]=\"OR\",tblREGASSJune19[[#This Row],[Alloc]]=\"UT\",tblREGASSJune19[[#This Row],[Alloc]]=\"WYU\",tblREGASSJune19[[#This Row],[Alloc]]=\"WYP\",tblREGASSJune19[[#This Row],[Alloc]]=\"CA\",tblREGASSJune19[[#This Row],[Alloc]]=\"WA\"),\"SITUS\",tblREGASSJune19[[#This Row],[Alloc]])","v":"OTHER"},{"$f":"INDEX(tblREGASSLookup[FUNC],MATCH(tblREGASSJune19[[#This Row],[Concat]],tblREGASSLookup[Concat],0))","v":{"$error":"#N/A"}},{"$f":"IF(tblREGASSJune19[[#This Row],[Total ($000)]]=0,\"NO\",IF(ISNA(tblREGASSJune19[[#This Row],[FUNC]]),\"YES\",IF(_xlfn.ISFORMULA(tblREGASSJune19[[#This Row],[FUNC]]),\"NO\",\"YES\")))","v":"NO"}]
[{"$f":"CONCATENATE(tblREGASSJune19[[#This Row],[Primary Account]],tblREGASSJune19[[#This Row],[Primary Name]],tblREGASSJune19[[#This Row],[Secondary Acct]],tblREGASSJune19[[#This Row],[Secondary  Name]],tblREGASSJune19[[#This Row],[Alloc4FUNC]])","v":"1823990OTHR REG ASSET-N CST187095Reg Asset - Medicare SubsidyOTHER"},1823990,"OTHR REG ASSET-N CST",187095,"Reg Asset - Medicare Subsidy","OTHER",0,{"$f":"IF(OR(tblREGASSJune19[[#This Row],[Alloc]]=\"IDU\",tblREGASSJune19[[#This Row],[Alloc]]=\"OR\",tblREGASSJune19[[#This Row],[Alloc]]=\"UT\",tblREGASSJune19[[#This Row],[Alloc]]=\"WYU\",tblREGASSJune19[[#This Row],[Alloc]]=\"WYP\",tblREGASSJune19[[#This Row],[Alloc]]=\"CA\",tblREGASSJune19[[#This Row],[Alloc]]=\"WA\"),\"SITUS\",tblREGASSJune19[[#This Row],[Alloc]])","v":"OTHER"},{"$f":"INDEX(tblREGASSLookup[FUNC],MATCH(tblREGASSJune19[[#This Row],[Concat]],tblREGASSLookup[Concat],0))","v":{"$error":"#N/A"}},{"$f":"IF(tblREGASSJune19[[#This Row],[Total ($000)]]=0,\"NO\",IF(ISNA(tblREGASSJune19[[#This Row],[FUNC]]),\"YES\",IF(_xlfn.ISFORMULA(tblREGASSJune19[[#This Row],[FUNC]]),\"NO\",\"YES\")))","v":"NO"}]
[{"$f":"CONCATENATE(tblREGASSJune19[[#This Row],[Primary Account]],tblREGASSJune19[[#This Row],[Primary Name]],tblREGASSJune19[[#This Row],[Secondary Acct]],tblREGASSJune19[[#This Row],[Secondary  Name]],tblREGASSJune19[[#This Row],[Alloc4FUNC]])","v":"1823990OTHR REG ASSET-N CST187096Reg Asset - Tax Rev Req Adj-WYSITUS"},1823990,"OTHR REG ASSET-N CST",187096,"Reg Asset - Tax Rev Req Adj-WY","WYU",0,{"$f":"IF(OR(tblREGASSJune19[[#This Row],[Alloc]]=\"IDU\",tblREGASSJune19[[#This Row],[Alloc]]=\"OR\",tblREGASSJune19[[#This Row],[Alloc]]=\"UT\",tblREGASSJune19[[#This Row],[Alloc]]=\"WYU\",tblREGASSJune19[[#This Row],[Alloc]]=\"WYP\",tblREGASSJune19[[#This Row],[Alloc]]=\"CA\",tblREGASSJune19[[#This Row],[Alloc]]=\"WA\"),\"SITUS\",tblREGASSJune19[[#This Row],[Alloc]])","v":"SITUS"},{"$f":"INDEX(tblREGASSLookup[FUNC],MATCH(tblREGASSJune19[[#This Row],[Concat]],tblREGASSLookup[Concat],0))","v":{"$error":"#N/A"}},{"$f":"IF(tblREGASSJune19[[#This Row],[Total ($000)]]=0,\"NO\",IF(ISNA(tblREGASSJune19[[#This Row],[FUNC]]),\"YES\",IF(_xlfn.ISFORMULA(tblREGASSJune19[[#This Row],[FUNC]]),\"NO\",\"YES\")))","v":"NO"}]
[{"$f":"CONCATENATE(tblREGASSJune19[[#This Row],[Primary Account]],tblREGASSJune19[[#This Row],[Primary Name]],tblREGASSJune19[[#This Row],[Secondary Acct]],tblREGASSJune19[[#This Row],[Secondary  Name]],tblREGASSJune19[[#This Row],[Alloc4FUNC]])","v":"1823990OTHR REG ASSET-N CST187105Y2K DEFERRAL - OREGON 98-00OTHER"},1823990,"OTHR REG ASSET-N CST",187105,"Y2K DEFERRAL - OREGON 98-00","OTHER",0,{"$f":"IF(OR(tblREGASSJune19[[#This Row],[Alloc]]=\"IDU\",tblREGASSJune19[[#This Row],[Alloc]]=\"OR\",tblREGASSJune19[[#This Row],[Alloc]]=\"UT\",tblREGASSJune19[[#This Row],[Alloc]]=\"WYU\",tblREGASSJune19[[#This Row],[Alloc]]=\"WYP\",tblREGASSJune19[[#This Row],[Alloc]]=\"CA\",tblREGASSJune19[[#This Row],[Alloc]]=\"WA\"),\"SITUS\",tblREGASSJune19[[#This Row],[Alloc]])","v":"OTHER"},{"$f":"INDEX(tblREGASSLookup[FUNC],MATCH(tblREGASSJune19[[#This Row],[Concat]],tblREGASSLookup[Concat],0))","v":{"$error":"#N/A"}},{"$f":"IF(tblREGASSJune19[[#This Row],[Total ($000)]]=0,\"NO\",IF(ISNA(tblREGASSJune19[[#This Row],[FUNC]]),\"YES\",IF(_xlfn.ISFORMULA(tblREGASSJune19[[#This Row],[FUNC]]),\"NO\",\"YES\")))","v":"NO"}]
[{"$f":"CONCATENATE(tblREGASSJune19[[#This Row],[Primary Account]],tblREGASSJune19[[#This Row],[Primary Name]],tblREGASSJune19[[#This Row],[Secondary Acct]],tblREGASSJune19[[#This Row],[Secondary  Name]],tblREGASSJune19[[#This Row],[Alloc4FUNC]])","v":"1823990OTHR REG ASSET-N CST187106BSIP/SAP - UTSITUS"},1823990,"OTHR REG ASSET-N CST",187106,"BSIP/SAP - UT","UT",0,{"$f":"IF(OR(tblREGASSJune19[[#This Row],[Alloc]]=\"IDU\",tblREGASSJune19[[#This Row],[Alloc]]=\"OR\",tblREGASSJune19[[#This Row],[Alloc]]=\"UT\",tblREGASSJune19[[#This Row],[Alloc]]=\"WYU\",tblREGASSJune19[[#This Row],[Alloc]]=\"WYP\",tblREGASSJune19[[#This Row],[Alloc]]=\"CA\",tblREGASSJune19[[#This Row],[Alloc]]=\"WA\"),\"SITUS\",tblREGASSJune19[[#This Row],[Alloc]])","v":"SITUS"},{"$f":"INDEX(tblREGASSLookup[FUNC],MATCH(tblREGASSJune19[[#This Row],[Concat]],tblREGASSLookup[Concat],0))","v":{"$error":"#N/A"}},{"$f":"IF(tblREGASSJune19[[#This Row],[Total ($000)]]=0,\"NO\",IF(ISNA(tblREGASSJune19[[#This Row],[FUNC]]),\"YES\",IF(_xlfn.ISFORMULA(tblREGASSJune19[[#This Row],[FUNC]]),\"NO\",\"YES\")))","v":"NO"}]
[{"$f":"CONCATENATE(tblREGASSJune19[[#This Row],[Primary Account]],tblREGASSJune19[[#This Row],[Primary Name]],tblREGASSJune19[[#This Row],[Secondary Acct]],tblREGASSJune19[[#This Row],[Secondary  Name]],tblREGASSJune19[[#This Row],[Alloc4FUNC]])","v":"1823990OTHR REG ASSET-N CST187107GLENROCK MINE EXCLUDING RECLAMATION - UTSITUS"},1823990,"OTHR REG ASSET-N CST",187107,"GLENROCK MINE EXCLUDING RECLAMATION - UT","UT",0,{"$f":"IF(OR(tblREGASSJune19[[#This Row],[Alloc]]=\"IDU\",tblREGASSJune19[[#This Row],[Alloc]]=\"OR\",tblREGASSJune19[[#This Row],[Alloc]]=\"UT\",tblREGASSJune19[[#This Row],[Alloc]]=\"WYU\",tblREGASSJune19[[#This Row],[Alloc]]=\"WYP\",tblREGASSJune19[[#This Row],[Alloc]]=\"CA\",tblREGASSJune19[[#This Row],[Alloc]]=\"WA\"),\"SITUS\",tblREGASSJune19[[#This Row],[Alloc]])","v":"SITUS"},{"$f":"INDEX(tblREGASSLookup[FUNC],MATCH(tblREGASSJune19[[#This Row],[Concat]],tblREGASSLookup[Concat],0))","v":{"$error":"#N/A"}},{"$f":"IF(tblREGASSJune19[[#This Row],[Total ($000)]]=0,\"NO\",IF(ISNA(tblREGASSJune19[[#This Row],[FUNC]]),\"YES\",IF(_xlfn.ISFORMULA(tblREGASSJune19[[#This Row],[FUNC]]),\"NO\",\"YES\")))","v":"NO"}]
[{"$f":"CONCATENATE(tblREGASSJune19[[#This Row],[Primary Account]],tblREGASSJune19[[#This Row],[Primary Name]],tblREGASSJune19[[#This Row],[Secondary Acct]],tblREGASSJune19[[#This Row],[Secondary  Name]],tblREGASSJune19[[#This Row],[Alloc4FUNC]])","v":"1823990OTHR REG ASSET-N CST187108SOFTWARE WRITE DOWN  1997 - UTSITUS"},1823990,"OTHR REG ASSET-N CST",187108,"SOFTWARE WRITE DOWN  1997 - UT","UT",0,{"$f":"IF(OR(tblREGASSJune19[[#This Row],[Alloc]]=\"IDU\",tblREGASSJune19[[#This Row],[Alloc]]=\"OR\",tblREGASSJune19[[#This Row],[Alloc]]=\"UT\",tblREGASSJune19[[#This Row],[Alloc]]=\"WYU\",tblREGASSJune19[[#This Row],[Alloc]]=\"WYP\",tblREGASSJune19[[#This Row],[Alloc]]=\"CA\",tblREGASSJune19[[#This Row],[Alloc]]=\"WA\"),\"SITUS\",tblREGASSJune19[[#This Row],[Alloc]])","v":"SITUS"},{"$f":"INDEX(tblREGASSLookup[FUNC],MATCH(tblREGASSJune19[[#This Row],[Concat]],tblREGASSLookup[Concat],0))","v":{"$error":"#N/A"}},{"$f":"IF(tblREGASSJune19[[#This Row],[Total ($000)]]=0,\"NO\",IF(ISNA(tblREGASSJune19[[#This Row],[FUNC]]),\"YES\",IF(_xlfn.ISFORMULA(tblREGASSJune19[[#This Row],[FUNC]]),\"NO\",\"YES\")))","v":"NO"}]
[{"$f":"CONCATENATE(tblREGASSJune19[[#This Row],[Primary Account]],tblREGASSJune19[[#This Row],[Primary Name]],tblREGASSJune19[[#This Row],[Secondary Acct]],tblREGASSJune19[[#This Row],[Secondary  Name]],tblREGASSJune19[[#This Row],[Alloc4FUNC]])","v":"1823990OTHR REG ASSET-N CST187109SOFTWARE WRITE DOWN  1999 - UTSITUS"},1823990,"OTHR REG ASSET-N CST",187109,"SOFTWARE WRITE DOWN  1999 - UT","UT",0,{"$f":"IF(OR(tblREGASSJune19[[#This Row],[Alloc]]=\"IDU\",tblREGASSJune19[[#This Row],[Alloc]]=\"OR\",tblREGASSJune19[[#This Row],[Alloc]]=\"UT\",tblREGASSJune19[[#This Row],[Alloc]]=\"WYU\",tblREGASSJune19[[#This Row],[Alloc]]=\"WYP\",tblREGASSJune19[[#This Row],[Alloc]]=\"CA\",tblREGASSJune19[[#This Row],[Alloc]]=\"WA\"),\"SITUS\",tblREGASSJune19[[#This Row],[Alloc]])","v":"SITUS"},{"$f":"INDEX(tblREGASSLookup[FUNC],MATCH(tblREGASSJune19[[#This Row],[Concat]],tblREGASSLookup[Concat],0))","v":{"$error":"#N/A"}},{"$f":"IF(tblREGASSJune19[[#This Row],[Total ($000)]]=0,\"NO\",IF(ISNA(tblREGASSJune19[[#This Row],[FUNC]]),\"YES\",IF(_xlfn.ISFORMULA(tblREGASSJune19[[#This Row],[FUNC]]),\"NO\",\"YES\")))","v":"NO"}]
[{"$f":"CONCATENATE(tblREGASSJune19[[#This Row],[Primary Account]],tblREGASSJune19[[#This Row],[Primary Name]],tblREGASSJune19[[#This Row],[Secondary Acct]],tblREGASSJune19[[#This Row],[Secondary  Name]],tblREGASSJune19[[#This Row],[Alloc4FUNC]])","v":"1823990OTHR REG ASSET-N CST187110TRANSITION TEAM COSTS - UTSITUS"},1823990,"OTHR REG ASSET-N CST",187110,"TRANSITION TEAM COSTS - UT","UT",0,{"$f":"IF(OR(tblREGASSJune19[[#This Row],[Alloc]]=\"IDU\",tblREGASSJune19[[#This Row],[Alloc]]=\"OR\",tblREGASSJune19[[#This Row],[Alloc]]=\"UT\",tblREGASSJune19[[#This Row],[Alloc]]=\"WYU\",tblREGASSJune19[[#This Row],[Alloc]]=\"WYP\",tblREGASSJune19[[#This Row],[Alloc]]=\"CA\",tblREGASSJune19[[#This Row],[Alloc]]=\"WA\"),\"SITUS\",tblREGASSJune19[[#This Row],[Alloc]])","v":"SITUS"},{"$f":"INDEX(tblREGASSLookup[FUNC],MATCH(tblREGASSJune19[[#This Row],[Concat]],tblREGASSLookup[Concat],0))","v":{"$error":"#N/A"}},{"$f":"IF(tblREGASSJune19[[#This Row],[Total ($000)]]=0,\"NO\",IF(ISNA(tblREGASSJune19[[#This Row],[FUNC]]),\"YES\",IF(_xlfn.ISFORMULA(tblREGASSJune19[[#This Row],[FUNC]]),\"NO\",\"YES\")))","v":"NO"}]
[{"$f":"CONCATENATE(tblREGASSJune19[[#This Row],[Primary Account]],tblREGASSJune19[[#This Row],[Primary Name]],tblREGASSJune19[[#This Row],[Secondary Acct]],tblREGASSJune19[[#This Row],[Secondary  Name]],tblREGASSJune19[[#This Row],[Alloc4FUNC]])","v":"1823990OTHR REG ASSET-N CST187111NOELL KEMPF CAP - UTSITUS"},1823990,"OTHR REG ASSET-N CST",187111,"NOELL KEMPF CAP - UT","UT",0,{"$f":"IF(OR(tblREGASSJune19[[#This Row],[Alloc]]=\"IDU\",tblREGASSJune19[[#This Row],[Alloc]]=\"OR\",tblREGASSJune19[[#This Row],[Alloc]]=\"UT\",tblREGASSJune19[[#This Row],[Alloc]]=\"WYU\",tblREGASSJune19[[#This Row],[Alloc]]=\"WYP\",tblREGASSJune19[[#This Row],[Alloc]]=\"CA\",tblREGASSJune19[[#This Row],[Alloc]]=\"WA\"),\"SITUS\",tblREGASSJune19[[#This Row],[Alloc]])","v":"SITUS"},{"$f":"INDEX(tblREGASSLookup[FUNC],MATCH(tblREGASSJune19[[#This Row],[Concat]],tblREGASSLookup[Concat],0))","v":{"$error":"#N/A"}},{"$f":"IF(tblREGASSJune19[[#This Row],[Total ($000)]]=0,\"NO\",IF(ISNA(tblREGASSJune19[[#This Row],[FUNC]]),\"YES\",IF(_xlfn.ISFORMULA(tblREGASSJune19[[#This Row],[FUNC]]),\"NO\",\"YES\")))","v":"NO"}]
[{"$f":"CONCATENATE(tblREGASSJune19[[#This Row],[Primary Account]],tblREGASSJune19[[#This Row],[Primary Name]],tblREGASSJune19[[#This Row],[Secondary Acct]],tblREGASSJune19[[#This Row],[Secondary  Name]],tblREGASSJune19[[#This Row],[Alloc4FUNC]])","v":"1823990OTHR REG ASSET-N CST187112P&M STRIKE AMORT - UTSITUS"},1823990,"OTHR REG ASSET-N CST",187112,"P&M STRIKE AMORT - UT","UT",0,{"$f":"IF(OR(tblREGASSJune19[[#This Row],[Alloc]]=\"IDU\",tblREGASSJune19[[#This Row],[Alloc]]=\"OR\",tblREGASSJune19[[#This Row],[Alloc]]=\"UT\",tblREGASSJune19[[#This Row],[Alloc]]=\"WYU\",tblREGASSJune19[[#This Row],[Alloc]]=\"WYP\",tblREGASSJune19[[#This Row],[Alloc]]=\"CA\",tblREGASSJune19[[#This Row],[Alloc]]=\"WA\"),\"SITUS\",tblREGASSJune19[[#This Row],[Alloc]])","v":"SITUS"},{"$f":"INDEX(tblREGASSLookup[FUNC],MATCH(tblREGASSJune19[[#This Row],[Concat]],tblREGASSLookup[Concat],0))","v":{"$error":"#N/A"}},{"$f":"IF(tblREGASSJune19[[#This Row],[Total ($000)]]=0,\"NO\",IF(ISNA(tblREGASSJune19[[#This Row],[FUNC]]),\"YES\",IF(_xlfn.ISFORMULA(tblREGASSJune19[[#This Row],[FUNC]]),\"NO\",\"YES\")))","v":"NO"}]
[{"$f":"CONCATENATE(tblREGASSJune19[[#This Row],[Primary Account]],tblREGASSJune19[[#This Row],[Primary Name]],tblREGASSJune19[[#This Row],[Secondary Acct]],tblREGASSJune19[[#This Row],[Secondary  Name]],tblREGASSJune19[[#This Row],[Alloc4FUNC]])","v":"1823990OTHR REG ASSET-N CST18711398 EARLY RETIREMENT - ORSITUS"},1823990,"OTHR REG ASSET-N CST",187113,"98 EARLY RETIREMENT - OR","OR",0,{"$f":"IF(OR(tblREGASSJune19[[#This Row],[Alloc]]=\"IDU\",tblREGASSJune19[[#This Row],[Alloc]]=\"OR\",tblREGASSJune19[[#This Row],[Alloc]]=\"UT\",tblREGASSJune19[[#This Row],[Alloc]]=\"WYU\",tblREGASSJune19[[#This Row],[Alloc]]=\"WYP\",tblREGASSJune19[[#This Row],[Alloc]]=\"CA\",tblREGASSJune19[[#This Row],[Alloc]]=\"WA\"),\"SITUS\",tblREGASSJune19[[#This Row],[Alloc]])","v":"SITUS"},{"$f":"INDEX(tblREGASSLookup[FUNC],MATCH(tblREGASSJune19[[#This Row],[Concat]],tblREGASSLookup[Concat],0))","v":{"$error":"#N/A"}},{"$f":"IF(tblREGASSJune19[[#This Row],[Total ($000)]]=0,\"NO\",IF(ISNA(tblREGASSJune19[[#This Row],[FUNC]]),\"YES\",IF(_xlfn.ISFORMULA(tblREGASSJune19[[#This Row],[FUNC]]),\"NO\",\"YES\")))","v":"NO"}]
[{"$f":"CONCATENATE(tblREGASSJune19[[#This Row],[Primary Account]],tblREGASSJune19[[#This Row],[Primary Name]],tblREGASSJune19[[#This Row],[Secondary Acct]],tblREGASSJune19[[#This Row],[Secondary  Name]],tblREGASSJune19[[#This Row],[Alloc4FUNC]])","v":"1823990OTHR REG ASSET-N CST18711494-98 FED/STATE INCOME TAX AUDIT PAYMENTOTHER"},1823990,"OTHR REG ASSET-N CST",187114,"94-98 FED/STATE INCOME TAX AUDIT PAYMENT","OTHER",0,{"$f":"IF(OR(tblREGASSJune19[[#This Row],[Alloc]]=\"IDU\",tblREGASSJune19[[#This Row],[Alloc]]=\"OR\",tblREGASSJune19[[#This Row],[Alloc]]=\"UT\",tblREGASSJune19[[#This Row],[Alloc]]=\"WYU\",tblREGASSJune19[[#This Row],[Alloc]]=\"WYP\",tblREGASSJune19[[#This Row],[Alloc]]=\"CA\",tblREGASSJune19[[#This Row],[Alloc]]=\"WA\"),\"SITUS\",tblREGASSJune19[[#This Row],[Alloc]])","v":"OTHER"},{"$f":"INDEX(tblREGASSLookup[FUNC],MATCH(tblREGASSJune19[[#This Row],[Concat]],tblREGASSLookup[Concat],0))","v":{"$error":"#N/A"}},{"$f":"IF(tblREGASSJune19[[#This Row],[Total ($000)]]=0,\"NO\",IF(ISNA(tblREGASSJune19[[#This Row],[FUNC]]),\"YES\",IF(_xlfn.ISFORMULA(tblREGASSJune19[[#This Row],[FUNC]]),\"NO\",\"YES\")))","v":"NO"}]
[{"$f":"CONCATENATE(tblREGASSJune19[[#This Row],[Primary Account]],tblREGASSJune19[[#This Row],[Primary Name]],tblREGASSJune19[[#This Row],[Secondary Acct]],tblREGASSJune19[[#This Row],[Secondary  Name]],tblREGASSJune19[[#This Row],[Alloc4FUNC]])","v":"1823990OTHR REG ASSET-N CST187190Reg Asset-WA REC CY2014 ForwardOTHER"},1823990,"OTHR REG ASSET-N CST",187190,"Reg Asset-WA REC CY2014 Forward","OTHER",0,{"$f":"IF(OR(tblREGASSJune19[[#This Row],[Alloc]]=\"IDU\",tblREGASSJune19[[#This Row],[Alloc]]=\"OR\",tblREGASSJune19[[#This Row],[Alloc]]=\"UT\",tblREGASSJune19[[#This Row],[Alloc]]=\"WYU\",tblREGASSJune19[[#This Row],[Alloc]]=\"WYP\",tblREGASSJune19[[#This Row],[Alloc]]=\"CA\",tblREGASSJune19[[#This Row],[Alloc]]=\"WA\"),\"SITUS\",tblREGASSJune19[[#This Row],[Alloc]])","v":"OTHER"},{"$f":"INDEX(tblREGASSLookup[FUNC],MATCH(tblREGASSJune19[[#This Row],[Concat]],tblREGASSLookup[Concat],0))","v":"P"},{"$f":"IF(tblREGASSJune19[[#This Row],[Total ($000)]]=0,\"NO\",IF(ISNA(tblREGASSJune19[[#This Row],[FUNC]]),\"YES\",IF(_xlfn.ISFORMULA(tblREGASSJune19[[#This Row],[FUNC]]),\"NO\",\"YES\")))","v":"NO"}]
[{"$f":"CONCATENATE(tblREGASSJune19[[#This Row],[Primary Account]],tblREGASSJune19[[#This Row],[Primary Name]],tblREGASSJune19[[#This Row],[Secondary Acct]],tblREGASSJune19[[#This Row],[Secondary  Name]],tblREGASSJune19[[#This Row],[Alloc4FUNC]])","v":"1823990OTHR REG ASSET-N CST187191Reg Asset  - WA RPS PurchaseOTHER"},1823990,"OTHR REG ASSET-N CST",187191,"Reg Asset  - WA RPS Purchase","OTHER",55.915706923076897,{"$f":"IF(OR(tblREGASSJune19[[#This Row],[Alloc]]=\"IDU\",tblREGASSJune19[[#This Row],[Alloc]]=\"OR\",tblREGASSJune19[[#This Row],[Alloc]]=\"UT\",tblREGASSJune19[[#This Row],[Alloc]]=\"WYU\",tblREGASSJune19[[#This Row],[Alloc]]=\"WYP\",tblREGASSJune19[[#This Row],[Alloc]]=\"CA\",tblREGASSJune19[[#This Row],[Alloc]]=\"WA\"),\"SITUS\",tblREGASSJune19[[#This Row],[Alloc]])","v":"OTHER"},{"$f":"INDEX(tblREGASSLookup[FUNC],MATCH(tblREGASSJune19[[#This Row],[Concat]],tblREGASSLookup[Concat],0))","v":"P"},{"$f":"IF(tblREGASSJune19[[#This Row],[Total ($000)]]=0,\"NO\",IF(ISNA(tblREGASSJune19[[#This Row],[FUNC]]),\"YES\",IF(_xlfn.ISFORMULA(tblREGASSJune19[[#This Row],[FUNC]]),\"NO\",\"YES\")))","v":"NO"}]
[{"$f":"CONCATENATE(tblREGASSJune19[[#This Row],[Primary Account]],tblREGASSJune19[[#This Row],[Primary Name]],tblREGASSJune19[[#This Row],[Secondary Acct]],tblREGASSJune19[[#This Row],[Secondary  Name]],tblREGASSJune19[[#This Row],[Alloc4FUNC]])","v":"1823990OTHR REG ASSET-N CST187201MAY 2000 TRANSITION PLAN COSTS - CASITUS"},1823990,"OTHR REG ASSET-N CST",187201,"MAY 2000 TRANSITION PLAN COSTS - CA","CA",0,{"$f":"IF(OR(tblREGASSJune19[[#This Row],[Alloc]]=\"IDU\",tblREGASSJune19[[#This Row],[Alloc]]=\"OR\",tblREGASSJune19[[#This Row],[Alloc]]=\"UT\",tblREGASSJune19[[#This Row],[Alloc]]=\"WYU\",tblREGASSJune19[[#This Row],[Alloc]]=\"WYP\",tblREGASSJune19[[#This Row],[Alloc]]=\"CA\",tblREGASSJune19[[#This Row],[Alloc]]=\"WA\"),\"SITUS\",tblREGASSJune19[[#This Row],[Alloc]])","v":"SITUS"},{"$f":"INDEX(tblREGASSLookup[FUNC],MATCH(tblREGASSJune19[[#This Row],[Concat]],tblREGASSLookup[Concat],0))","v":{"$error":"#N/A"}},{"$f":"IF(tblREGASSJune19[[#This Row],[Total ($000)]]=0,\"NO\",IF(ISNA(tblREGASSJune19[[#This Row],[FUNC]]),\"YES\",IF(_xlfn.ISFORMULA(tblREGASSJune19[[#This Row],[FUNC]]),\"NO\",\"YES\")))","v":"NO"}]
[{"$f":"CONCATENATE(tblREGASSJune19[[#This Row],[Primary Account]],tblREGASSJune19[[#This Row],[Primary Name]],tblREGASSJune19[[#This Row],[Secondary Acct]],tblREGASSJune19[[#This Row],[Secondary  Name]],tblREGASSJune19[[#This Row],[Alloc4FUNC]])","v":"1823990OTHR REG ASSET-N CST187202MAY 2000 TRANSITION PLAN COSTS - IDSITUS"},1823990,"OTHR REG ASSET-N CST",187202,"MAY 2000 TRANSITION PLAN COSTS - ID","IDU",0,{"$f":"IF(OR(tblREGASSJune19[[#This Row],[Alloc]]=\"IDU\",tblREGASSJune19[[#This Row],[Alloc]]=\"OR\",tblREGASSJune19[[#This Row],[Alloc]]=\"UT\",tblREGASSJune19[[#This Row],[Alloc]]=\"WYU\",tblREGASSJune19[[#This Row],[Alloc]]=\"WYP\",tblREGASSJune19[[#This Row],[Alloc]]=\"CA\",tblREGASSJune19[[#This Row],[Alloc]]=\"WA\"),\"SITUS\",tblREGASSJune19[[#This Row],[Alloc]])","v":"SITUS"},{"$f":"INDEX(tblREGASSLookup[FUNC],MATCH(tblREGASSJune19[[#This Row],[Concat]],tblREGASSLookup[Concat],0))","v":{"$error":"#N/A"}},{"$f":"IF(tblREGASSJune19[[#This Row],[Total ($000)]]=0,\"NO\",IF(ISNA(tblREGASSJune19[[#This Row],[FUNC]]),\"YES\",IF(_xlfn.ISFORMULA(tblREGASSJune19[[#This Row],[FUNC]]),\"NO\",\"YES\")))","v":"NO"}]
[{"$f":"CONCATENATE(tblREGASSJune19[[#This Row],[Primary Account]],tblREGASSJune19[[#This Row],[Primary Name]],tblREGASSJune19[[#This Row],[Secondary Acct]],tblREGASSJune19[[#This Row],[Secondary  Name]],tblREGASSJune19[[#This Row],[Alloc4FUNC]])","v":"1823990OTHR REG ASSET-N CST187203MAY 2000 TRANSITION PLAN COSTS - OROTHER"},1823990,"OTHR REG ASSET-N CST",187203,"MAY 2000 TRANSITION PLAN COSTS - OR","OTHER",0,{"$f":"IF(OR(tblREGASSJune19[[#This Row],[Alloc]]=\"IDU\",tblREGASSJune19[[#This Row],[Alloc]]=\"OR\",tblREGASSJune19[[#This Row],[Alloc]]=\"UT\",tblREGASSJune19[[#This Row],[Alloc]]=\"WYU\",tblREGASSJune19[[#This Row],[Alloc]]=\"WYP\",tblREGASSJune19[[#This Row],[Alloc]]=\"CA\",tblREGASSJune19[[#This Row],[Alloc]]=\"WA\"),\"SITUS\",tblREGASSJune19[[#This Row],[Alloc]])","v":"OTHER"},{"$f":"INDEX(tblREGASSLookup[FUNC],MATCH(tblREGASSJune19[[#This Row],[Concat]],tblREGASSLookup[Concat],0))","v":{"$error":"#N/A"}},{"$f":"IF(tblREGASSJune19[[#This Row],[Total ($000)]]=0,\"NO\",IF(ISNA(tblREGASSJune19[[#This Row],[FUNC]]),\"YES\",IF(_xlfn.ISFORMULA(tblREGASSJune19[[#This Row],[FUNC]]),\"NO\",\"YES\")))","v":"NO"}]
[{"$f":"CONCATENATE(tblREGASSJune19[[#This Row],[Primary Account]],tblREGASSJune19[[#This Row],[Primary Name]],tblREGASSJune19[[#This Row],[Secondary Acct]],tblREGASSJune19[[#This Row],[Secondary  Name]],tblREGASSJune19[[#This Row],[Alloc4FUNC]])","v":"1823990OTHR REG ASSET-N CST187204MAY 2000 TRANSITION PLAN COSTS - UTSITUS"},1823990,"OTHR REG ASSET-N CST",187204,"MAY 2000 TRANSITION PLAN COSTS - UT","UT",0,{"$f":"IF(OR(tblREGASSJune19[[#This Row],[Alloc]]=\"IDU\",tblREGASSJune19[[#This Row],[Alloc]]=\"OR\",tblREGASSJune19[[#This Row],[Alloc]]=\"UT\",tblREGASSJune19[[#This Row],[Alloc]]=\"WYU\",tblREGASSJune19[[#This Row],[Alloc]]=\"WYP\",tblREGASSJune19[[#This Row],[Alloc]]=\"CA\",tblREGASSJune19[[#This Row],[Alloc]]=\"WA\"),\"SITUS\",tblREGASSJune19[[#This Row],[Alloc]])","v":"SITUS"},{"$f":"INDEX(tblREGASSLookup[FUNC],MATCH(tblREGASSJune19[[#This Row],[Concat]],tblREGASSLookup[Concat],0))","v":{"$error":"#N/A"}},{"$f":"IF(tblREGASSJune19[[#This Row],[Total ($000)]]=0,\"NO\",IF(ISNA(tblREGASSJune19[[#This Row],[FUNC]]),\"YES\",IF(_xlfn.ISFORMULA(tblREGASSJune19[[#This Row],[FUNC]]),\"NO\",\"YES\")))","v":"NO"}]
[{"$f":"CONCATENATE(tblREGASSJune19[[#This Row],[Primary Account]],tblREGASSJune19[[#This Row],[Primary Name]],tblREGASSJune19[[#This Row],[Secondary Acct]],tblREGASSJune19[[#This Row],[Secondary  Name]],tblREGASSJune19[[#This Row],[Alloc4FUNC]])","v":"1823990OTHR REG ASSET-N CST187205MAY 2000 TRANSITION PLAN COSTS - WYPSITUS"},1823990,"OTHR REG ASSET-N CST",187205,"MAY 2000 TRANSITION PLAN COSTS - WYP","WYP",0,{"$f":"IF(OR(tblREGASSJune19[[#This Row],[Alloc]]=\"IDU\",tblREGASSJune19[[#This Row],[Alloc]]=\"OR\",tblREGASSJune19[[#This Row],[Alloc]]=\"UT\",tblREGASSJune19[[#This Row],[Alloc]]=\"WYU\",tblREGASSJune19[[#This Row],[Alloc]]=\"WYP\",tblREGASSJune19[[#This Row],[Alloc]]=\"CA\",tblREGASSJune19[[#This Row],[Alloc]]=\"WA\"),\"SITUS\",tblREGASSJune19[[#This Row],[Alloc]])","v":"SITUS"},{"$f":"INDEX(tblREGASSLookup[FUNC],MATCH(tblREGASSJune19[[#This Row],[Concat]],tblREGASSLookup[Concat],0))","v":{"$error":"#N/A"}},{"$f":"IF(tblREGASSJune19[[#This Row],[Total ($000)]]=0,\"NO\",IF(ISNA(tblREGASSJune19[[#This Row],[FUNC]]),\"YES\",IF(_xlfn.ISFORMULA(tblREGASSJune19[[#This Row],[FUNC]]),\"NO\",\"YES\")))","v":"NO"}]
[{"$f":"CONCATENATE(tblREGASSJune19[[#This Row],[Primary Account]],tblREGASSJune19[[#This Row],[Primary Name]],tblREGASSJune19[[#This Row],[Secondary Acct]],tblREGASSJune19[[#This Row],[Secondary  Name]],tblREGASSJune19[[#This Row],[Alloc4FUNC]])","v":"1823990OTHR REG ASSET-N CST187206MAY 2000 TRANSITION PLAN COSTS - WYUSITUS"},1823990,"OTHR REG ASSET-N CST",187206,"MAY 2000 TRANSITION PLAN COSTS - WYU","WYU",0,{"$f":"IF(OR(tblREGASSJune19[[#This Row],[Alloc]]=\"IDU\",tblREGASSJune19[[#This Row],[Alloc]]=\"OR\",tblREGASSJune19[[#This Row],[Alloc]]=\"UT\",tblREGASSJune19[[#This Row],[Alloc]]=\"WYU\",tblREGASSJune19[[#This Row],[Alloc]]=\"WYP\",tblREGASSJune19[[#This Row],[Alloc]]=\"CA\",tblREGASSJune19[[#This Row],[Alloc]]=\"WA\"),\"SITUS\",tblREGASSJune19[[#This Row],[Alloc]])","v":"SITUS"},{"$f":"INDEX(tblREGASSLookup[FUNC],MATCH(tblREGASSJune19[[#This Row],[Concat]],tblREGASSLookup[Concat],0))","v":{"$error":"#N/A"}},{"$f":"IF(tblREGASSJune19[[#This Row],[Total ($000)]]=0,\"NO\",IF(ISNA(tblREGASSJune19[[#This Row],[FUNC]]),\"YES\",IF(_xlfn.ISFORMULA(tblREGASSJune19[[#This Row],[FUNC]]),\"NO\",\"YES\")))","v":"NO"}]
[{"$f":"CONCATENATE(tblREGASSJune19[[#This Row],[Primary Account]],tblREGASSJune19[[#This Row],[Primary Name]],tblREGASSJune19[[#This Row],[Secondary Acct]],tblREGASSJune19[[#This Row],[Secondary  Name]],tblREGASSJune19[[#This Row],[Alloc4FUNC]])","v":"1823990OTHR REG ASSET-N CST187211MEHC TRANSITION PLAN - WASITUS"},1823990,"OTHR REG ASSET-N CST",187211,"MEHC TRANSITION PLAN - WA","WA",0,{"$f":"IF(OR(tblREGASSJune19[[#This Row],[Alloc]]=\"IDU\",tblREGASSJune19[[#This Row],[Alloc]]=\"OR\",tblREGASSJune19[[#This Row],[Alloc]]=\"UT\",tblREGASSJune19[[#This Row],[Alloc]]=\"WYU\",tblREGASSJune19[[#This Row],[Alloc]]=\"WYP\",tblREGASSJune19[[#This Row],[Alloc]]=\"CA\",tblREGASSJune19[[#This Row],[Alloc]]=\"WA\"),\"SITUS\",tblREGASSJune19[[#This Row],[Alloc]])","v":"SITUS"},{"$f":"INDEX(tblREGASSLookup[FUNC],MATCH(tblREGASSJune19[[#This Row],[Concat]],tblREGASSLookup[Concat],0))","v":{"$error":"#N/A"}},{"$f":"IF(tblREGASSJune19[[#This Row],[Total ($000)]]=0,\"NO\",IF(ISNA(tblREGASSJune19[[#This Row],[FUNC]]),\"YES\",IF(_xlfn.ISFORMULA(tblREGASSJune19[[#This Row],[FUNC]]),\"NO\",\"YES\")))","v":"NO"}]
[{"$f":"CONCATENATE(tblREGASSJune19[[#This Row],[Primary Account]],tblREGASSJune19[[#This Row],[Primary Name]],tblREGASSJune19[[#This Row],[Secondary Acct]],tblREGASSJune19[[#This Row],[Secondary  Name]],tblREGASSJune19[[#This Row],[Alloc4FUNC]])","v":"1823990OTHR REG ASSET-N CST187213WY 2006- TRAN SEV CSTOTHER"},1823990,"OTHR REG ASSET-N CST",187213,"WY 2006- TRAN SEV CST","OTHER",0,{"$f":"IF(OR(tblREGASSJune19[[#This Row],[Alloc]]=\"IDU\",tblREGASSJune19[[#This Row],[Alloc]]=\"OR\",tblREGASSJune19[[#This Row],[Alloc]]=\"UT\",tblREGASSJune19[[#This Row],[Alloc]]=\"WYU\",tblREGASSJune19[[#This Row],[Alloc]]=\"WYP\",tblREGASSJune19[[#This Row],[Alloc]]=\"CA\",tblREGASSJune19[[#This Row],[Alloc]]=\"WA\"),\"SITUS\",tblREGASSJune19[[#This Row],[Alloc]])","v":"OTHER"},{"$f":"INDEX(tblREGASSLookup[FUNC],MATCH(tblREGASSJune19[[#This Row],[Concat]],tblREGASSLookup[Concat],0))","v":{"$error":"#N/A"}},{"$f":"IF(tblREGASSJune19[[#This Row],[Total ($000)]]=0,\"NO\",IF(ISNA(tblREGASSJune19[[#This Row],[FUNC]]),\"YES\",IF(_xlfn.ISFORMULA(tblREGASSJune19[[#This Row],[FUNC]]),\"NO\",\"YES\")))","v":"NO"}]
[{"$f":"CONCATENATE(tblREGASSJune19[[#This Row],[Primary Account]],tblREGASSJune19[[#This Row],[Primary Name]],tblREGASSJune19[[#This Row],[Secondary Acct]],tblREGASSJune19[[#This Row],[Secondary  Name]],tblREGASSJune19[[#This Row],[Alloc4FUNC]])","v":"1823990OTHR REG ASSET-N CST187214OR - MEHC Transition Service CostsOTHER"},1823990,"OTHR REG ASSET-N CST",187214,"OR - MEHC Transition Service Costs","OTHER",0,{"$f":"IF(OR(tblREGASSJune19[[#This Row],[Alloc]]=\"IDU\",tblREGASSJune19[[#This Row],[Alloc]]=\"OR\",tblREGASSJune19[[#This Row],[Alloc]]=\"UT\",tblREGASSJune19[[#This Row],[Alloc]]=\"WYU\",tblREGASSJune19[[#This Row],[Alloc]]=\"WYP\",tblREGASSJune19[[#This Row],[Alloc]]=\"CA\",tblREGASSJune19[[#This Row],[Alloc]]=\"WA\"),\"SITUS\",tblREGASSJune19[[#This Row],[Alloc]])","v":"OTHER"},{"$f":"INDEX(tblREGASSLookup[FUNC],MATCH(tblREGASSJune19[[#This Row],[Concat]],tblREGASSLookup[Concat],0))","v":{"$error":"#N/A"}},{"$f":"IF(tblREGASSJune19[[#This Row],[Total ($000)]]=0,\"NO\",IF(ISNA(tblREGASSJune19[[#This Row],[FUNC]]),\"YES\",IF(_xlfn.ISFORMULA(tblREGASSJune19[[#This Row],[FUNC]]),\"NO\",\"YES\")))","v":"NO"}]
[{"$f":"CONCATENATE(tblREGASSJune19[[#This Row],[Primary Account]],tblREGASSJune19[[#This Row],[Primary Name]],tblREGASSJune19[[#This Row],[Secondary Acct]],tblREGASSJune19[[#This Row],[Secondary  Name]],tblREGASSJune19[[#This Row],[Alloc4FUNC]])","v":"1823990OTHR REG ASSET-N CST187215CA - MEHC Transition Severance CostsSITUS"},1823990,"OTHR REG ASSET-N CST",187215,"CA - MEHC Transition Severance Costs","CA",0,{"$f":"IF(OR(tblREGASSJune19[[#This Row],[Alloc]]=\"IDU\",tblREGASSJune19[[#This Row],[Alloc]]=\"OR\",tblREGASSJune19[[#This Row],[Alloc]]=\"UT\",tblREGASSJune19[[#This Row],[Alloc]]=\"WYU\",tblREGASSJune19[[#This Row],[Alloc]]=\"WYP\",tblREGASSJune19[[#This Row],[Alloc]]=\"CA\",tblREGASSJune19[[#This Row],[Alloc]]=\"WA\"),\"SITUS\",tblREGASSJune19[[#This Row],[Alloc]])","v":"SITUS"},{"$f":"INDEX(tblREGASSLookup[FUNC],MATCH(tblREGASSJune19[[#This Row],[Concat]],tblREGASSLookup[Concat],0))","v":{"$error":"#N/A"}},{"$f":"IF(tblREGASSJune19[[#This Row],[Total ($000)]]=0,\"NO\",IF(ISNA(tblREGASSJune19[[#This Row],[FUNC]]),\"YES\",IF(_xlfn.ISFORMULA(tblREGASSJune19[[#This Row],[FUNC]]),\"NO\",\"YES\")))","v":"NO"}]
[{"$f":"CONCATENATE(tblREGASSJune19[[#This Row],[Primary Account]],tblREGASSJune19[[#This Row],[Primary Name]],tblREGASSJune19[[#This Row],[Secondary Acct]],tblREGASSJune19[[#This Row],[Secondary  Name]],tblREGASSJune19[[#This Row],[Alloc4FUNC]])","v":"1823990OTHR REG ASSET-N CST187221Reg Asset - Tax Adj on PR Benefits - CAOTHER"},1823990,"OTHR REG ASSET-N CST",187221,"Reg Asset - Tax Adj on PR Benefits - CA","OTHER",0,{"$f":"IF(OR(tblREGASSJune19[[#This Row],[Alloc]]=\"IDU\",tblREGASSJune19[[#This Row],[Alloc]]=\"OR\",tblREGASSJune19[[#This Row],[Alloc]]=\"UT\",tblREGASSJune19[[#This Row],[Alloc]]=\"WYU\",tblREGASSJune19[[#This Row],[Alloc]]=\"WYP\",tblREGASSJune19[[#This Row],[Alloc]]=\"CA\",tblREGASSJune19[[#This Row],[Alloc]]=\"WA\"),\"SITUS\",tblREGASSJune19[[#This Row],[Alloc]])","v":"OTHER"},{"$f":"INDEX(tblREGASSLookup[FUNC],MATCH(tblREGASSJune19[[#This Row],[Concat]],tblREGASSLookup[Concat],0))","v":{"$error":"#N/A"}},{"$f":"IF(tblREGASSJune19[[#This Row],[Total ($000)]]=0,\"NO\",IF(ISNA(tblREGASSJune19[[#This Row],[FUNC]]),\"YES\",IF(_xlfn.ISFORMULA(tblREGASSJune19[[#This Row],[FUNC]]),\"NO\",\"YES\")))","v":"NO"}]
[{"$f":"CONCATENATE(tblREGASSJune19[[#This Row],[Primary Account]],tblREGASSJune19[[#This Row],[Primary Name]],tblREGASSJune19[[#This Row],[Secondary Acct]],tblREGASSJune19[[#This Row],[Secondary  Name]],tblREGASSJune19[[#This Row],[Alloc4FUNC]])","v":"1823990OTHR REG ASSET-N CST187222Reg Asset - Tax Adj on PR Benefits - IDOTHER"},1823990,"OTHR REG ASSET-N CST",187222,"Reg Asset - Tax Adj on PR Benefits - ID","OTHER",0,{"$f":"IF(OR(tblREGASSJune19[[#This Row],[Alloc]]=\"IDU\",tblREGASSJune19[[#This Row],[Alloc]]=\"OR\",tblREGASSJune19[[#This Row],[Alloc]]=\"UT\",tblREGASSJune19[[#This Row],[Alloc]]=\"WYU\",tblREGASSJune19[[#This Row],[Alloc]]=\"WYP\",tblREGASSJune19[[#This Row],[Alloc]]=\"CA\",tblREGASSJune19[[#This Row],[Alloc]]=\"WA\"),\"SITUS\",tblREGASSJune19[[#This Row],[Alloc]])","v":"OTHER"},{"$f":"INDEX(tblREGASSLookup[FUNC],MATCH(tblREGASSJune19[[#This Row],[Concat]],tblREGASSLookup[Concat],0))","v":{"$error":"#N/A"}},{"$f":"IF(tblREGASSJune19[[#This Row],[Total ($000)]]=0,\"NO\",IF(ISNA(tblREGASSJune19[[#This Row],[FUNC]]),\"YES\",IF(_xlfn.ISFORMULA(tblREGASSJune19[[#This Row],[FUNC]]),\"NO\",\"YES\")))","v":"NO"}]
[{"$f":"CONCATENATE(tblREGASSJune19[[#This Row],[Primary Account]],tblREGASSJune19[[#This Row],[Primary Name]],tblREGASSJune19[[#This Row],[Secondary Acct]],tblREGASSJune19[[#This Row],[Secondary  Name]],tblREGASSJune19[[#This Row],[Alloc4FUNC]])","v":"1823990OTHR REG ASSET-N CST187223Reg Asset - Tax Adj on PR Benefits - OROTHER"},1823990,"OTHR REG ASSET-N CST",187223,"Reg Asset - Tax Adj on PR Benefits - OR","OTHER",0,{"$f":"IF(OR(tblREGASSJune19[[#This Row],[Alloc]]=\"IDU\",tblREGASSJune19[[#This Row],[Alloc]]=\"OR\",tblREGASSJune19[[#This Row],[Alloc]]=\"UT\",tblREGASSJune19[[#This Row],[Alloc]]=\"WYU\",tblREGASSJune19[[#This Row],[Alloc]]=\"WYP\",tblREGASSJune19[[#This Row],[Alloc]]=\"CA\",tblREGASSJune19[[#This Row],[Alloc]]=\"WA\"),\"SITUS\",tblREGASSJune19[[#This Row],[Alloc]])","v":"OTHER"},{"$f":"INDEX(tblREGASSLookup[FUNC],MATCH(tblREGASSJune19[[#This Row],[Concat]],tblREGASSLookup[Concat],0))","v":"LABOR"},{"$f":"IF(tblREGASSJune19[[#This Row],[Total ($000)]]=0,\"NO\",IF(ISNA(tblREGASSJune19[[#This Row],[FUNC]]),\"YES\",IF(_xlfn.ISFORMULA(tblREGASSJune19[[#This Row],[FUNC]]),\"NO\",\"YES\")))","v":"NO"}]
[{"$f":"CONCATENATE(tblREGASSJune19[[#This Row],[Primary Account]],tblREGASSJune19[[#This Row],[Primary Name]],tblREGASSJune19[[#This Row],[Secondary Acct]],tblREGASSJune19[[#This Row],[Secondary  Name]],tblREGASSJune19[[#This Row],[Alloc4FUNC]])","v":"1823990OTHR REG ASSET-N CST187224Reg Asset - Tax Adj on PR Benefits - UTOTHER"},1823990,"OTHR REG ASSET-N CST",187224,"Reg Asset - Tax Adj on PR Benefits - UT","OTHER",0,{"$f":"IF(OR(tblREGASSJune19[[#This Row],[Alloc]]=\"IDU\",tblREGASSJune19[[#This Row],[Alloc]]=\"OR\",tblREGASSJune19[[#This Row],[Alloc]]=\"UT\",tblREGASSJune19[[#This Row],[Alloc]]=\"WYU\",tblREGASSJune19[[#This Row],[Alloc]]=\"WYP\",tblREGASSJune19[[#This Row],[Alloc]]=\"CA\",tblREGASSJune19[[#This Row],[Alloc]]=\"WA\"),\"SITUS\",tblREGASSJune19[[#This Row],[Alloc]])","v":"OTHER"},{"$f":"INDEX(tblREGASSLookup[FUNC],MATCH(tblREGASSJune19[[#This Row],[Concat]],tblREGASSLookup[Concat],0))","v":{"$error":"#N/A"}},{"$f":"IF(tblREGASSJune19[[#This Row],[Total ($000)]]=0,\"NO\",IF(ISNA(tblREGASSJune19[[#This Row],[FUNC]]),\"YES\",IF(_xlfn.ISFORMULA(tblREGASSJune19[[#This Row],[FUNC]]),\"NO\",\"YES\")))","v":"NO"}]
[{"$f":"CONCATENATE(tblREGASSJune19[[#This Row],[Primary Account]],tblREGASSJune19[[#This Row],[Primary Name]],tblREGASSJune19[[#This Row],[Secondary Acct]],tblREGASSJune19[[#This Row],[Secondary  Name]],tblREGASSJune19[[#This Row],[Alloc4FUNC]])","v":"1823990OTHR REG ASSET-N CST187225Reg Asset - Tax Adj on PR Benefits - WAOTHER"},1823990,"OTHR REG ASSET-N CST",187225,"Reg Asset - Tax Adj on PR Benefits - WA","OTHER",0,{"$f":"IF(OR(tblREGASSJune19[[#This Row],[Alloc]]=\"IDU\",tblREGASSJune19[[#This Row],[Alloc]]=\"OR\",tblREGASSJune19[[#This Row],[Alloc]]=\"UT\",tblREGASSJune19[[#This Row],[Alloc]]=\"WYU\",tblREGASSJune19[[#This Row],[Alloc]]=\"WYP\",tblREGASSJune19[[#This Row],[Alloc]]=\"CA\",tblREGASSJune19[[#This Row],[Alloc]]=\"WA\"),\"SITUS\",tblREGASSJune19[[#This Row],[Alloc]])","v":"OTHER"},{"$f":"INDEX(tblREGASSLookup[FUNC],MATCH(tblREGASSJune19[[#This Row],[Concat]],tblREGASSLookup[Concat],0))","v":{"$error":"#N/A"}},{"$f":"IF(tblREGASSJune19[[#This Row],[Total ($000)]]=0,\"NO\",IF(ISNA(tblREGASSJune19[[#This Row],[FUNC]]),\"YES\",IF(_xlfn.ISFORMULA(tblREGASSJune19[[#This Row],[FUNC]]),\"NO\",\"YES\")))","v":"NO"}]
[{"$f":"CONCATENATE(tblREGASSJune19[[#This Row],[Primary Account]],tblREGASSJune19[[#This Row],[Primary Name]],tblREGASSJune19[[#This Row],[Secondary Acct]],tblREGASSJune19[[#This Row],[Secondary  Name]],tblREGASSJune19[[#This Row],[Alloc4FUNC]])","v":"1823990OTHR REG ASSET-N CST187226Reg Asset - Tax Adj on PR Benefits - WYOTHER"},1823990,"OTHR REG ASSET-N CST",187226,"Reg Asset - Tax Adj on PR Benefits - WY","OTHER",0,{"$f":"IF(OR(tblREGASSJune19[[#This Row],[Alloc]]=\"IDU\",tblREGASSJune19[[#This Row],[Alloc]]=\"OR\",tblREGASSJune19[[#This Row],[Alloc]]=\"UT\",tblREGASSJune19[[#This Row],[Alloc]]=\"WYU\",tblREGASSJune19[[#This Row],[Alloc]]=\"WYP\",tblREGASSJune19[[#This Row],[Alloc]]=\"CA\",tblREGASSJune19[[#This Row],[Alloc]]=\"WA\"),\"SITUS\",tblREGASSJune19[[#This Row],[Alloc]])","v":"OTHER"},{"$f":"INDEX(tblREGASSLookup[FUNC],MATCH(tblREGASSJune19[[#This Row],[Concat]],tblREGASSLookup[Concat],0))","v":{"$error":"#N/A"}},{"$f":"IF(tblREGASSJune19[[#This Row],[Total ($000)]]=0,\"NO\",IF(ISNA(tblREGASSJune19[[#This Row],[FUNC]]),\"YES\",IF(_xlfn.ISFORMULA(tblREGASSJune19[[#This Row],[FUNC]]),\"NO\",\"YES\")))","v":"NO"}]
[{"$f":"CONCATENATE(tblREGASSJune19[[#This Row],[Primary Account]],tblREGASSJune19[[#This Row],[Primary Name]],tblREGASSJune19[[#This Row],[Secondary Acct]],tblREGASSJune19[[#This Row],[Secondary  Name]],tblREGASSJune19[[#This Row],[Alloc4FUNC]])","v":"1823990OTHR REG ASSET-N CST187245RegA - Transition Severance - Recl to CuOTHER"},1823990,"OTHR REG ASSET-N CST",187245,"RegA - Transition Severance - Recl to Cu","OTHER",0,{"$f":"IF(OR(tblREGASSJune19[[#This Row],[Alloc]]=\"IDU\",tblREGASSJune19[[#This Row],[Alloc]]=\"OR\",tblREGASSJune19[[#This Row],[Alloc]]=\"UT\",tblREGASSJune19[[#This Row],[Alloc]]=\"WYU\",tblREGASSJune19[[#This Row],[Alloc]]=\"WYP\",tblREGASSJune19[[#This Row],[Alloc]]=\"CA\",tblREGASSJune19[[#This Row],[Alloc]]=\"WA\"),\"SITUS\",tblREGASSJune19[[#This Row],[Alloc]])","v":"OTHER"},{"$f":"INDEX(tblREGASSLookup[FUNC],MATCH(tblREGASSJune19[[#This Row],[Concat]],tblREGASSLookup[Concat],0))","v":{"$error":"#N/A"}},{"$f":"IF(tblREGASSJune19[[#This Row],[Total ($000)]]=0,\"NO\",IF(ISNA(tblREGASSJune19[[#This Row],[FUNC]]),\"YES\",IF(_xlfn.ISFORMULA(tblREGASSJune19[[#This Row],[FUNC]]),\"NO\",\"YES\")))","v":"NO"}]
[{"$f":"CONCATENATE(tblREGASSJune19[[#This Row],[Primary Account]],tblREGASSJune19[[#This Row],[Primary Name]],tblREGASSJune19[[#This Row],[Secondary Acct]],tblREGASSJune19[[#This Row],[Secondary  Name]],tblREGASSJune19[[#This Row],[Alloc4FUNC]])","v":"1823990OTHR REG ASSET-N CST187255RegA - BPA Balancing Accts - Recl to CurOTHER"},1823990,"OTHR REG ASSET-N CST",187255,"RegA - BPA Balancing Accts - Recl to Cur","OTHER",-6990.8264592307696,{"$f":"IF(OR(tblREGASSJune19[[#This Row],[Alloc]]=\"IDU\",tblREGASSJune19[[#This Row],[Alloc]]=\"OR\",tblREGASSJune19[[#This Row],[Alloc]]=\"UT\",tblREGASSJune19[[#This Row],[Alloc]]=\"WYU\",tblREGASSJune19[[#This Row],[Alloc]]=\"WYP\",tblREGASSJune19[[#This Row],[Alloc]]=\"CA\",tblREGASSJune19[[#This Row],[Alloc]]=\"WA\"),\"SITUS\",tblREGASSJune19[[#This Row],[Alloc]])","v":"OTHER"},{"$f":"INDEX(tblREGASSLookup[FUNC],MATCH(tblREGASSJune19[[#This Row],[Concat]],tblREGASSLookup[Concat],0))","v":"CUST"},{"$f":"IF(tblREGASSJune19[[#This Row],[Total ($000)]]=0,\"NO\",IF(ISNA(tblREGASSJune19[[#This Row],[FUNC]]),\"YES\",IF(_xlfn.ISFORMULA(tblREGASSJune19[[#This Row],[FUNC]]),\"NO\",\"YES\")))","v":"NO"}]
[{"$f":"CONCATENATE(tblREGASSJune19[[#This Row],[Primary Account]],tblREGASSJune19[[#This Row],[Primary Name]],tblREGASSJune19[[#This Row],[Secondary Acct]],tblREGASSJune19[[#This Row],[Secondary  Name]],tblREGASSJune19[[#This Row],[Alloc4FUNC]])","v":"1823990OTHR REG ASSET-N CST187300CA - Jan 2010 Storm CostsOTHER"},1823990,"OTHR REG ASSET-N CST",187300,"CA - Jan 2010 Storm Costs","OTHER",2167.6650984615399,{"$f":"IF(OR(tblREGASSJune19[[#This Row],[Alloc]]=\"IDU\",tblREGASSJune19[[#This Row],[Alloc]]=\"OR\",tblREGASSJune19[[#This Row],[Alloc]]=\"UT\",tblREGASSJune19[[#This Row],[Alloc]]=\"WYU\",tblREGASSJune19[[#This Row],[Alloc]]=\"WYP\",tblREGASSJune19[[#This Row],[Alloc]]=\"CA\",tblREGASSJune19[[#This Row],[Alloc]]=\"WA\"),\"SITUS\",tblREGASSJune19[[#This Row],[Alloc]])","v":"OTHER"},{"$f":"INDEX(tblREGASSLookup[FUNC],MATCH(tblREGASSJune19[[#This Row],[Concat]],tblREGASSLookup[Concat],0))","v":"P"},{"$f":"IF(tblREGASSJune19[[#This Row],[Total ($000)]]=0,\"NO\",IF(ISNA(tblREGASSJune19[[#This Row],[FUNC]]),\"YES\",IF(_xlfn.ISFORMULA(tblREGASSJune19[[#This Row],[FUNC]]),\"NO\",\"YES\")))","v":"NO"}]
[{"$f":"CONCATENATE(tblREGASSJune19[[#This Row],[Primary Account]],tblREGASSJune19[[#This Row],[Primary Name]],tblREGASSJune19[[#This Row],[Secondary Acct]],tblREGASSJune19[[#This Row],[Secondary  Name]],tblREGASSJune19[[#This Row],[Alloc4FUNC]])","v":"1823990OTHR REG ASSET-N CST187305RegA - ID 2017 Protocol - MSP DeferralSITUS"},1823990,"OTHR REG ASSET-N CST",187305,"RegA - ID 2017 Protocol - MSP Deferral","IDU",150,{"$f":"IF(OR(tblREGASSJune19[[#This Row],[Alloc]]=\"IDU\",tblREGASSJune19[[#This Row],[Alloc]]=\"OR\",tblREGASSJune19[[#This Row],[Alloc]]=\"UT\",tblREGASSJune19[[#This Row],[Alloc]]=\"WYU\",tblREGASSJune19[[#This Row],[Alloc]]=\"WYP\",tblREGASSJune19[[#This Row],[Alloc]]=\"CA\",tblREGASSJune19[[#This Row],[Alloc]]=\"WA\"),\"SITUS\",tblREGASSJune19[[#This Row],[Alloc]])","v":"SITUS"},{"$f":"INDEX(tblREGASSLookup[FUNC],MATCH(tblREGASSJune19[[#This Row],[Concat]],tblREGASSLookup[Concat],0))","v":"P"},{"$f":"IF(tblREGASSJune19[[#This Row],[Total ($000)]]=0,\"NO\",IF(ISNA(tblREGASSJune19[[#This Row],[FUNC]]),\"YES\",IF(_xlfn.ISFORMULA(tblREGASSJune19[[#This Row],[FUNC]]),\"NO\",\"YES\")))","v":"NO"}]
[{"$f":"CONCATENATE(tblREGASSJune19[[#This Row],[Primary Account]],tblREGASSJune19[[#This Row],[Primary Name]],tblREGASSJune19[[#This Row],[Secondary Acct]],tblREGASSJune19[[#This Row],[Secondary  Name]],tblREGASSJune19[[#This Row],[Alloc4FUNC]])","v":"1823990OTHR REG ASSET-N CST187306RegA - UT 2017 Protocol - MSP DeferralSITUS"},1823990,"OTHR REG ASSET-N CST",187306,"RegA - UT 2017 Protocol - MSP Deferral","UT",8800.0018461538493,{"$f":"IF(OR(tblREGASSJune19[[#This Row],[Alloc]]=\"IDU\",tblREGASSJune19[[#This Row],[Alloc]]=\"OR\",tblREGASSJune19[[#This Row],[Alloc]]=\"UT\",tblREGASSJune19[[#This Row],[Alloc]]=\"WYU\",tblREGASSJune19[[#This Row],[Alloc]]=\"WYP\",tblREGASSJune19[[#This Row],[Alloc]]=\"CA\",tblREGASSJune19[[#This Row],[Alloc]]=\"WA\"),\"SITUS\",tblREGASSJune19[[#This Row],[Alloc]])","v":"SITUS"},{"$f":"INDEX(tblREGASSLookup[FUNC],MATCH(tblREGASSJune19[[#This Row],[Concat]],tblREGASSLookup[Concat],0))","v":"P"},{"$f":"IF(tblREGASSJune19[[#This Row],[Total ($000)]]=0,\"NO\",IF(ISNA(tblREGASSJune19[[#This Row],[FUNC]]),\"YES\",IF(_xlfn.ISFORMULA(tblREGASSJune19[[#This Row],[FUNC]]),\"NO\",\"YES\")))","v":"NO"}]
[{"$f":"CONCATENATE(tblREGASSJune19[[#This Row],[Primary Account]],tblREGASSJune19[[#This Row],[Primary Name]],tblREGASSJune19[[#This Row],[Secondary Acct]],tblREGASSJune19[[#This Row],[Secondary  Name]],tblREGASSJune19[[#This Row],[Alloc4FUNC]])","v":"1823990OTHR REG ASSET-N CST187307RegA - WY 2017 Protocol - MSP DeferralSITUS"},1823990,"OTHR REG ASSET-N CST",187307,"RegA - WY 2017 Protocol - MSP Deferral","WYP",0,{"$f":"IF(OR(tblREGASSJune19[[#This Row],[Alloc]]=\"IDU\",tblREGASSJune19[[#This Row],[Alloc]]=\"OR\",tblREGASSJune19[[#This Row],[Alloc]]=\"UT\",tblREGASSJune19[[#This Row],[Alloc]]=\"WYU\",tblREGASSJune19[[#This Row],[Alloc]]=\"WYP\",tblREGASSJune19[[#This Row],[Alloc]]=\"CA\",tblREGASSJune19[[#This Row],[Alloc]]=\"WA\"),\"SITUS\",tblREGASSJune19[[#This Row],[Alloc]])","v":"SITUS"},{"$f":"INDEX(tblREGASSLookup[FUNC],MATCH(tblREGASSJune19[[#This Row],[Concat]],tblREGASSLookup[Concat],0))","v":"P"},{"$f":"IF(tblREGASSJune19[[#This Row],[Total ($000)]]=0,\"NO\",IF(ISNA(tblREGASSJune19[[#This Row],[FUNC]]),\"YES\",IF(_xlfn.ISFORMULA(tblREGASSJune19[[#This Row],[FUNC]]),\"NO\",\"YES\")))","v":"NO"}]
[{"$f":"CONCATENATE(tblREGASSJune19[[#This Row],[Primary Account]],tblREGASSJune19[[#This Row],[Primary Name]],tblREGASSJune19[[#This Row],[Secondary Acct]],tblREGASSJune19[[#This Row],[Secondary  Name]],tblREGASSJune19[[#This Row],[Alloc4FUNC]])","v":"1823990OTHR REG ASSET-N CST187307RegA - WY 2017 Protocol - MSP DeferralSITUS"},1823990,"OTHR REG ASSET-N CST",187307,"RegA - WY 2017 Protocol - MSP Deferral","WYU",2399.998,{"$f":"IF(OR(tblREGASSJune19[[#This Row],[Alloc]]=\"IDU\",tblREGASSJune19[[#This Row],[Alloc]]=\"OR\",tblREGASSJune19[[#This Row],[Alloc]]=\"UT\",tblREGASSJune19[[#This Row],[Alloc]]=\"WYU\",tblREGASSJune19[[#This Row],[Alloc]]=\"WYP\",tblREGASSJune19[[#This Row],[Alloc]]=\"CA\",tblREGASSJune19[[#This Row],[Alloc]]=\"WA\"),\"SITUS\",tblREGASSJune19[[#This Row],[Alloc]])","v":"SITUS"},{"$f":"INDEX(tblREGASSLookup[FUNC],MATCH(tblREGASSJune19[[#This Row],[Concat]],tblREGASSLookup[Concat],0))","v":"P"},{"$f":"IF(tblREGASSJune19[[#This Row],[Total ($000)]]=0,\"NO\",IF(ISNA(tblREGASSJune19[[#This Row],[FUNC]]),\"YES\",IF(_xlfn.ISFORMULA(tblREGASSJune19[[#This Row],[FUNC]]),\"NO\",\"YES\")))","v":"NO"}]
[{"$f":"CONCATENATE(tblREGASSJune19[[#This Row],[Primary Account]],tblREGASSJune19[[#This Row],[Primary Name]],tblREGASSJune19[[#This Row],[Secondary Acct]],tblREGASSJune19[[#This Row],[Secondary  Name]],tblREGASSJune19[[#This Row],[Alloc4FUNC]])","v":"1823990OTHR REG ASSET-N CST187311Contra Reg Asset-Carbon Plt Dec/Inv-CASITUS"},1823990,"OTHR REG ASSET-N CST",187311,"Contra Reg Asset-Carbon Plt Dec/Inv-CA","CA",-52.047510000000003,{"$f":"IF(OR(tblREGASSJune19[[#This Row],[Alloc]]=\"IDU\",tblREGASSJune19[[#This Row],[Alloc]]=\"OR\",tblREGASSJune19[[#This Row],[Alloc]]=\"UT\",tblREGASSJune19[[#This Row],[Alloc]]=\"WYU\",tblREGASSJune19[[#This Row],[Alloc]]=\"WYP\",tblREGASSJune19[[#This Row],[Alloc]]=\"CA\",tblREGASSJune19[[#This Row],[Alloc]]=\"WA\"),\"SITUS\",tblREGASSJune19[[#This Row],[Alloc]])","v":"SITUS"},{"$f":"INDEX(tblREGASSLookup[FUNC],MATCH(tblREGASSJune19[[#This Row],[Concat]],tblREGASSLookup[Concat],0))","v":"P"},{"$f":"IF(tblREGASSJune19[[#This Row],[Total ($000)]]=0,\"NO\",IF(ISNA(tblREGASSJune19[[#This Row],[FUNC]]),\"YES\",IF(_xlfn.ISFORMULA(tblREGASSJune19[[#This Row],[FUNC]]),\"NO\",\"YES\")))","v":"NO"}]
[{"$f":"CONCATENATE(tblREGASSJune19[[#This Row],[Primary Account]],tblREGASSJune19[[#This Row],[Primary Name]],tblREGASSJune19[[#This Row],[Secondary Acct]],tblREGASSJune19[[#This Row],[Secondary  Name]],tblREGASSJune19[[#This Row],[Alloc4FUNC]])","v":"1823990OTHR REG ASSET-N CST187320Reg Asset - Deprec Increase - IDSITUS"},1823990,"OTHR REG ASSET-N CST",187320,"Reg Asset - Deprec Increase - ID","IDU",-58.191205384615401,{"$f":"IF(OR(tblREGASSJune19[[#This Row],[Alloc]]=\"IDU\",tblREGASSJune19[[#This Row],[Alloc]]=\"OR\",tblREGASSJune19[[#This Row],[Alloc]]=\"UT\",tblREGASSJune19[[#This Row],[Alloc]]=\"WYU\",tblREGASSJune19[[#This Row],[Alloc]]=\"WYP\",tblREGASSJune19[[#This Row],[Alloc]]=\"CA\",tblREGASSJune19[[#This Row],[Alloc]]=\"WA\"),\"SITUS\",tblREGASSJune19[[#This Row],[Alloc]])","v":"SITUS"},{"$f":"INDEX(tblREGASSLookup[FUNC],MATCH(tblREGASSJune19[[#This Row],[Concat]],tblREGASSLookup[Concat],0))","v":"P"},{"$f":"IF(tblREGASSJune19[[#This Row],[Total ($000)]]=0,\"NO\",IF(ISNA(tblREGASSJune19[[#This Row],[FUNC]]),\"YES\",IF(_xlfn.ISFORMULA(tblREGASSJune19[[#This Row],[FUNC]]),\"NO\",\"YES\")))","v":"NO"}]
[{"$f":"CONCATENATE(tblREGASSJune19[[#This Row],[Primary Account]],tblREGASSJune19[[#This Row],[Primary Name]],tblREGASSJune19[[#This Row],[Secondary Acct]],tblREGASSJune19[[#This Row],[Secondary  Name]],tblREGASSJune19[[#This Row],[Alloc4FUNC]])","v":"1823990OTHR REG ASSET-N CST187321Reg Asset - Deprec Increase - UTSITUS"},1823990,"OTHR REG ASSET-N CST",187321,"Reg Asset - Deprec Increase - UT","UT",1600.53973,{"$f":"IF(OR(tblREGASSJune19[[#This Row],[Alloc]]=\"IDU\",tblREGASSJune19[[#This Row],[Alloc]]=\"OR\",tblREGASSJune19[[#This Row],[Alloc]]=\"UT\",tblREGASSJune19[[#This Row],[Alloc]]=\"WYU\",tblREGASSJune19[[#This Row],[Alloc]]=\"WYP\",tblREGASSJune19[[#This Row],[Alloc]]=\"CA\",tblREGASSJune19[[#This Row],[Alloc]]=\"WA\"),\"SITUS\",tblREGASSJune19[[#This Row],[Alloc]])","v":"SITUS"},{"$f":"INDEX(tblREGASSLookup[FUNC],MATCH(tblREGASSJune19[[#This Row],[Concat]],tblREGASSLookup[Concat],0))","v":"P"},{"$f":"IF(tblREGASSJune19[[#This Row],[Total ($000)]]=0,\"NO\",IF(ISNA(tblREGASSJune19[[#This Row],[FUNC]]),\"YES\",IF(_xlfn.ISFORMULA(tblREGASSJune19[[#This Row],[FUNC]]),\"NO\",\"YES\")))","v":"NO"}]
[{"$f":"CONCATENATE(tblREGASSJune19[[#This Row],[Primary Account]],tblREGASSJune19[[#This Row],[Primary Name]],tblREGASSJune19[[#This Row],[Secondary Acct]],tblREGASSJune19[[#This Row],[Secondary  Name]],tblREGASSJune19[[#This Row],[Alloc4FUNC]])","v":"1823990OTHR REG ASSET-N CST187322Reg Asset - Deprec Increase - WYSITUS"},1823990,"OTHR REG ASSET-N CST",187322,"Reg Asset - Deprec Increase - WY","WYP",5527.3867700000001,{"$f":"IF(OR(tblREGASSJune19[[#This Row],[Alloc]]=\"IDU\",tblREGASSJune19[[#This Row],[Alloc]]=\"OR\",tblREGASSJune19[[#This Row],[Alloc]]=\"UT\",tblREGASSJune19[[#This Row],[Alloc]]=\"WYU\",tblREGASSJune19[[#This Row],[Alloc]]=\"WYP\",tblREGASSJune19[[#This Row],[Alloc]]=\"CA\",tblREGASSJune19[[#This Row],[Alloc]]=\"WA\"),\"SITUS\",tblREGASSJune19[[#This Row],[Alloc]])","v":"SITUS"},{"$f":"INDEX(tblREGASSLookup[FUNC],MATCH(tblREGASSJune19[[#This Row],[Concat]],tblREGASSLookup[Concat],0))","v":"P"},{"$f":"IF(tblREGASSJune19[[#This Row],[Total ($000)]]=0,\"NO\",IF(ISNA(tblREGASSJune19[[#This Row],[FUNC]]),\"YES\",IF(_xlfn.ISFORMULA(tblREGASSJune19[[#This Row],[FUNC]]),\"NO\",\"YES\")))","v":"NO"}]
[{"$f":"CONCATENATE(tblREGASSJune19[[#This Row],[Primary Account]],tblREGASSJune19[[#This Row],[Primary Name]],tblREGASSJune19[[#This Row],[Secondary Acct]],tblREGASSJune19[[#This Row],[Secondary  Name]],tblREGASSJune19[[#This Row],[Alloc4FUNC]])","v":"1823990OTHR REG ASSET-N CST187330Reg Asset - Carbon Unrec Plant - IDSITUS"},1823990,"OTHR REG ASSET-N CST",187330,"Reg Asset - Carbon Unrec Plant - ID","IDU",957.27733999999998,{"$f":"IF(OR(tblREGASSJune19[[#This Row],[Alloc]]=\"IDU\",tblREGASSJune19[[#This Row],[Alloc]]=\"OR\",tblREGASSJune19[[#This Row],[Alloc]]=\"UT\",tblREGASSJune19[[#This Row],[Alloc]]=\"WYU\",tblREGASSJune19[[#This Row],[Alloc]]=\"WYP\",tblREGASSJune19[[#This Row],[Alloc]]=\"CA\",tblREGASSJune19[[#This Row],[Alloc]]=\"WA\"),\"SITUS\",tblREGASSJune19[[#This Row],[Alloc]])","v":"SITUS"},{"$f":"INDEX(tblREGASSLookup[FUNC],MATCH(tblREGASSJune19[[#This Row],[Concat]],tblREGASSLookup[Concat],0))","v":"P"},{"$f":"IF(tblREGASSJune19[[#This Row],[Total ($000)]]=0,\"NO\",IF(ISNA(tblREGASSJune19[[#This Row],[FUNC]]),\"YES\",IF(_xlfn.ISFORMULA(tblREGASSJune19[[#This Row],[FUNC]]),\"NO\",\"YES\")))","v":"NO"}]
[{"$f":"CONCATENATE(tblREGASSJune19[[#This Row],[Primary Account]],tblREGASSJune19[[#This Row],[Primary Name]],tblREGASSJune19[[#This Row],[Secondary Acct]],tblREGASSJune19[[#This Row],[Secondary  Name]],tblREGASSJune19[[#This Row],[Alloc4FUNC]])","v":"1823990OTHR REG ASSET-N CST187331Reg Asset - Carbon Decomm - IDSITUS"},1823990,"OTHR REG ASSET-N CST",187331,"Reg Asset - Carbon Decomm - ID","IDU",0,{"$f":"IF(OR(tblREGASSJune19[[#This Row],[Alloc]]=\"IDU\",tblREGASSJune19[[#This Row],[Alloc]]=\"OR\",tblREGASSJune19[[#This Row],[Alloc]]=\"UT\",tblREGASSJune19[[#This Row],[Alloc]]=\"WYU\",tblREGASSJune19[[#This Row],[Alloc]]=\"WYP\",tblREGASSJune19[[#This Row],[Alloc]]=\"CA\",tblREGASSJune19[[#This Row],[Alloc]]=\"WA\"),\"SITUS\",tblREGASSJune19[[#This Row],[Alloc]])","v":"SITUS"},{"$f":"INDEX(tblREGASSLookup[FUNC],MATCH(tblREGASSJune19[[#This Row],[Concat]],tblREGASSLookup[Concat],0))","v":{"$error":"#N/A"}},{"$f":"IF(tblREGASSJune19[[#This Row],[Total ($000)]]=0,\"NO\",IF(ISNA(tblREGASSJune19[[#This Row],[FUNC]]),\"YES\",IF(_xlfn.ISFORMULA(tblREGASSJune19[[#This Row],[FUNC]]),\"NO\",\"YES\")))","v":"NO"}]
[{"$f":"CONCATENATE(tblREGASSJune19[[#This Row],[Primary Account]],tblREGASSJune19[[#This Row],[Primary Name]],tblREGASSJune19[[#This Row],[Secondary Acct]],tblREGASSJune19[[#This Row],[Secondary  Name]],tblREGASSJune19[[#This Row],[Alloc4FUNC]])","v":"1823990OTHR REG ASSET-N CST187332Reg Asset - Carbon Unrec Plant - UTSITUS"},1823990,"OTHR REG ASSET-N CST",187332,"Reg Asset - Carbon Unrec Plant - UT","UT",6889.2820199999996,{"$f":"IF(OR(tblREGASSJune19[[#This Row],[Alloc]]=\"IDU\",tblREGASSJune19[[#This Row],[Alloc]]=\"OR\",tblREGASSJune19[[#This Row],[Alloc]]=\"UT\",tblREGASSJune19[[#This Row],[Alloc]]=\"WYU\",tblREGASSJune19[[#This Row],[Alloc]]=\"WYP\",tblREGASSJune19[[#This Row],[Alloc]]=\"CA\",tblREGASSJune19[[#This Row],[Alloc]]=\"WA\"),\"SITUS\",tblREGASSJune19[[#This Row],[Alloc]])","v":"SITUS"},{"$f":"INDEX(tblREGASSLookup[FUNC],MATCH(tblREGASSJune19[[#This Row],[Concat]],tblREGASSLookup[Concat],0))","v":"P"},{"$f":"IF(tblREGASSJune19[[#This Row],[Total ($000)]]=0,\"NO\",IF(ISNA(tblREGASSJune19[[#This Row],[FUNC]]),\"YES\",IF(_xlfn.ISFORMULA(tblREGASSJune19[[#This Row],[FUNC]]),\"NO\",\"YES\")))","v":"NO"}]
[{"$f":"CONCATENATE(tblREGASSJune19[[#This Row],[Primary Account]],tblREGASSJune19[[#This Row],[Primary Name]],tblREGASSJune19[[#This Row],[Secondary Acct]],tblREGASSJune19[[#This Row],[Secondary  Name]],tblREGASSJune19[[#This Row],[Alloc4FUNC]])","v":"1823990OTHR REG ASSET-N CST187333Reg Asset - Carbon Decomm - UTSITUS"},1823990,"OTHR REG ASSET-N CST",187333,"Reg Asset - Carbon Decomm - UT","UT",0,{"$f":"IF(OR(tblREGASSJune19[[#This Row],[Alloc]]=\"IDU\",tblREGASSJune19[[#This Row],[Alloc]]=\"OR\",tblREGASSJune19[[#This Row],[Alloc]]=\"UT\",tblREGASSJune19[[#This Row],[Alloc]]=\"WYU\",tblREGASSJune19[[#This Row],[Alloc]]=\"WYP\",tblREGASSJune19[[#This Row],[Alloc]]=\"CA\",tblREGASSJune19[[#This Row],[Alloc]]=\"WA\"),\"SITUS\",tblREGASSJune19[[#This Row],[Alloc]])","v":"SITUS"},{"$f":"INDEX(tblREGASSLookup[FUNC],MATCH(tblREGASSJune19[[#This Row],[Concat]],tblREGASSLookup[Concat],0))","v":{"$error":"#N/A"}},{"$f":"IF(tblREGASSJune19[[#This Row],[Total ($000)]]=0,\"NO\",IF(ISNA(tblREGASSJune19[[#This Row],[FUNC]]),\"YES\",IF(_xlfn.ISFORMULA(tblREGASSJune19[[#This Row],[FUNC]]),\"NO\",\"YES\")))","v":"NO"}]
[{"$f":"CONCATENATE(tblREGASSJune19[[#This Row],[Primary Account]],tblREGASSJune19[[#This Row],[Primary Name]],tblREGASSJune19[[#This Row],[Secondary Acct]],tblREGASSJune19[[#This Row],[Secondary  Name]],tblREGASSJune19[[#This Row],[Alloc4FUNC]])","v":"1823990OTHR REG ASSET-N CST187334Reg Asset - Carbon Unrec Plant - WYSITUS"},1823990,"OTHR REG ASSET-N CST",187334,"Reg Asset - Carbon Unrec Plant - WY","WYP",2316.37554,{"$f":"IF(OR(tblREGASSJune19[[#This Row],[Alloc]]=\"IDU\",tblREGASSJune19[[#This Row],[Alloc]]=\"OR\",tblREGASSJune19[[#This Row],[Alloc]]=\"UT\",tblREGASSJune19[[#This Row],[Alloc]]=\"WYU\",tblREGASSJune19[[#This Row],[Alloc]]=\"WYP\",tblREGASSJune19[[#This Row],[Alloc]]=\"CA\",tblREGASSJune19[[#This Row],[Alloc]]=\"WA\"),\"SITUS\",tblREGASSJune19[[#This Row],[Alloc]])","v":"SITUS"},{"$f":"INDEX(tblREGASSLookup[FUNC],MATCH(tblREGASSJune19[[#This Row],[Concat]],tblREGASSLookup[Concat],0))","v":"P"},{"$f":"IF(tblREGASSJune19[[#This Row],[Total ($000)]]=0,\"NO\",IF(ISNA(tblREGASSJune19[[#This Row],[FUNC]]),\"YES\",IF(_xlfn.ISFORMULA(tblREGASSJune19[[#This Row],[FUNC]]),\"NO\",\"YES\")))","v":"NO"}]
[{"$f":"CONCATENATE(tblREGASSJune19[[#This Row],[Primary Account]],tblREGASSJune19[[#This Row],[Primary Name]],tblREGASSJune19[[#This Row],[Secondary Acct]],tblREGASSJune19[[#This Row],[Secondary  Name]],tblREGASSJune19[[#This Row],[Alloc4FUNC]])","v":"1823990OTHR REG ASSET-N CST187335Reg Asset - Carbon Decomm - WYSITUS"},1823990,"OTHR REG ASSET-N CST",187335,"Reg Asset - Carbon Decomm - WY","WYP",0,{"$f":"IF(OR(tblREGASSJune19[[#This Row],[Alloc]]=\"IDU\",tblREGASSJune19[[#This Row],[Alloc]]=\"OR\",tblREGASSJune19[[#This Row],[Alloc]]=\"UT\",tblREGASSJune19[[#This Row],[Alloc]]=\"WYU\",tblREGASSJune19[[#This Row],[Alloc]]=\"WYP\",tblREGASSJune19[[#This Row],[Alloc]]=\"CA\",tblREGASSJune19[[#This Row],[Alloc]]=\"WA\"),\"SITUS\",tblREGASSJune19[[#This Row],[Alloc]])","v":"SITUS"},{"$f":"INDEX(tblREGASSLookup[FUNC],MATCH(tblREGASSJune19[[#This Row],[Concat]],tblREGASSLookup[Concat],0))","v":{"$error":"#N/A"}},{"$f":"IF(tblREGASSJune19[[#This Row],[Total ($000)]]=0,\"NO\",IF(ISNA(tblREGASSJune19[[#This Row],[FUNC]]),\"YES\",IF(_xlfn.ISFORMULA(tblREGASSJune19[[#This Row],[FUNC]]),\"NO\",\"YES\")))","v":"NO"}]
[{"$f":"CONCATENATE(tblREGASSJune19[[#This Row],[Primary Account]],tblREGASSJune19[[#This Row],[Primary Name]],tblREGASSJune19[[#This Row],[Secondary Acct]],tblREGASSJune19[[#This Row],[Secondary  Name]],tblREGASSJune19[[#This Row],[Alloc4FUNC]])","v":"1823990OTHR REG ASSET-N CST187338REG ASSET - CARBON PLT DECOM/INVENTORYSG"},1823990,"OTHR REG ASSET-N CST",187338,"REG ASSET - CARBON PLT DECOM/INVENTORY","SG",3448.66939,{"$f":"IF(OR(tblREGASSJune19[[#This Row],[Alloc]]=\"IDU\",tblREGASSJune19[[#This Row],[Alloc]]=\"OR\",tblREGASSJune19[[#This Row],[Alloc]]=\"UT\",tblREGASSJune19[[#This Row],[Alloc]]=\"WYU\",tblREGASSJune19[[#This Row],[Alloc]]=\"WYP\",tblREGASSJune19[[#This Row],[Alloc]]=\"CA\",tblREGASSJune19[[#This Row],[Alloc]]=\"WA\"),\"SITUS\",tblREGASSJune19[[#This Row],[Alloc]])","v":"SG"},{"$f":"INDEX(tblREGASSLookup[FUNC],MATCH(tblREGASSJune19[[#This Row],[Concat]],tblREGASSLookup[Concat],0))","v":"P"},{"$f":"IF(tblREGASSJune19[[#This Row],[Total ($000)]]=0,\"NO\",IF(ISNA(tblREGASSJune19[[#This Row],[FUNC]]),\"YES\",IF(_xlfn.ISFORMULA(tblREGASSJune19[[#This Row],[FUNC]]),\"NO\",\"YES\")))","v":"NO"}]
[{"$f":"CONCATENATE(tblREGASSJune19[[#This Row],[Primary Account]],tblREGASSJune19[[#This Row],[Primary Name]],tblREGASSJune19[[#This Row],[Secondary Acct]],tblREGASSJune19[[#This Row],[Secondary  Name]],tblREGASSJune19[[#This Row],[Alloc4FUNC]])","v":"1823990OTHR REG ASSET-N CST187340Reg Asset-OR Sch 94 Distr Safety SurchOTHER"},1823990,"OTHR REG ASSET-N CST",187340,"Reg Asset-OR Sch 94 Distr Safety Surch","OTHER",0,{"$f":"IF(OR(tblREGASSJune19[[#This Row],[Alloc]]=\"IDU\",tblREGASSJune19[[#This Row],[Alloc]]=\"OR\",tblREGASSJune19[[#This Row],[Alloc]]=\"UT\",tblREGASSJune19[[#This Row],[Alloc]]=\"WYU\",tblREGASSJune19[[#This Row],[Alloc]]=\"WYP\",tblREGASSJune19[[#This Row],[Alloc]]=\"CA\",tblREGASSJune19[[#This Row],[Alloc]]=\"WA\"),\"SITUS\",tblREGASSJune19[[#This Row],[Alloc]])","v":"OTHER"},{"$f":"INDEX(tblREGASSLookup[FUNC],MATCH(tblREGASSJune19[[#This Row],[Concat]],tblREGASSLookup[Concat],0))","v":{"$error":"#N/A"}},{"$f":"IF(tblREGASSJune19[[#This Row],[Total ($000)]]=0,\"NO\",IF(ISNA(tblREGASSJune19[[#This Row],[FUNC]]),\"YES\",IF(_xlfn.ISFORMULA(tblREGASSJune19[[#This Row],[FUNC]]),\"NO\",\"YES\")))","v":"NO"}]
[{"$f":"CONCATENATE(tblREGASSJune19[[#This Row],[Primary Account]],tblREGASSJune19[[#This Row],[Primary Name]],tblREGASSJune19[[#This Row],[Secondary Acct]],tblREGASSJune19[[#This Row],[Secondary  Name]],tblREGASSJune19[[#This Row],[Alloc4FUNC]])","v":"1823990OTHR REG ASSET-N CST187345Reg Asset - UT - Pref Stock Redemp LossOTHER"},1823990,"OTHR REG ASSET-N CST",187345,"Reg Asset - UT - Pref Stock Redemp Loss","OTHER",429.8476,{"$f":"IF(OR(tblREGASSJune19[[#This Row],[Alloc]]=\"IDU\",tblREGASSJune19[[#This Row],[Alloc]]=\"OR\",tblREGASSJune19[[#This Row],[Alloc]]=\"UT\",tblREGASSJune19[[#This Row],[Alloc]]=\"WYU\",tblREGASSJune19[[#This Row],[Alloc]]=\"WYP\",tblREGASSJune19[[#This Row],[Alloc]]=\"CA\",tblREGASSJune19[[#This Row],[Alloc]]=\"WA\"),\"SITUS\",tblREGASSJune19[[#This Row],[Alloc]])","v":"OTHER"},{"$f":"INDEX(tblREGASSLookup[FUNC],MATCH(tblREGASSJune19[[#This Row],[Concat]],tblREGASSLookup[Concat],0))","v":"P"},{"$f":"IF(tblREGASSJune19[[#This Row],[Total ($000)]]=0,\"NO\",IF(ISNA(tblREGASSJune19[[#This Row],[FUNC]]),\"YES\",IF(_xlfn.ISFORMULA(tblREGASSJune19[[#This Row],[FUNC]]),\"NO\",\"YES\")))","v":"NO"}]
[{"$f":"CONCATENATE(tblREGASSJune19[[#This Row],[Primary Account]],tblREGASSJune19[[#This Row],[Primary Name]],tblREGASSJune19[[#This Row],[Secondary Acct]],tblREGASSJune19[[#This Row],[Secondary  Name]],tblREGASSJune19[[#This Row],[Alloc4FUNC]])","v":"1823990OTHR REG ASSET-N CST187346Reg Asset - WY - Pref Stock Redemp LossOTHER"},1823990,"OTHR REG ASSET-N CST",187346,"Reg Asset - WY - Pref Stock Redemp Loss","OTHER",148.13414,{"$f":"IF(OR(tblREGASSJune19[[#This Row],[Alloc]]=\"IDU\",tblREGASSJune19[[#This Row],[Alloc]]=\"OR\",tblREGASSJune19[[#This Row],[Alloc]]=\"UT\",tblREGASSJune19[[#This Row],[Alloc]]=\"WYU\",tblREGASSJune19[[#This Row],[Alloc]]=\"WYP\",tblREGASSJune19[[#This Row],[Alloc]]=\"CA\",tblREGASSJune19[[#This Row],[Alloc]]=\"WA\"),\"SITUS\",tblREGASSJune19[[#This Row],[Alloc]])","v":"OTHER"},{"$f":"INDEX(tblREGASSLookup[FUNC],MATCH(tblREGASSJune19[[#This Row],[Concat]],tblREGASSLookup[Concat],0))","v":"P"},{"$f":"IF(tblREGASSJune19[[#This Row],[Total ($000)]]=0,\"NO\",IF(ISNA(tblREGASSJune19[[#This Row],[FUNC]]),\"YES\",IF(_xlfn.ISFORMULA(tblREGASSJune19[[#This Row],[FUNC]]),\"NO\",\"YES\")))","v":"NO"}]
[{"$f":"CONCATENATE(tblREGASSJune19[[#This Row],[Primary Account]],tblREGASSJune19[[#This Row],[Primary Name]],tblREGASSJune19[[#This Row],[Secondary Acct]],tblREGASSJune19[[#This Row],[Secondary  Name]],tblREGASSJune19[[#This Row],[Alloc4FUNC]])","v":"1823990OTHR REG ASSET-N CST187347Reg Asset - WA - Pref Stock Redemp LossOTHER"},1823990,"OTHR REG ASSET-N CST",187347,"Reg Asset - WA - Pref Stock Redemp Loss","OTHER",68.808179999999993,{"$f":"IF(OR(tblREGASSJune19[[#This Row],[Alloc]]=\"IDU\",tblREGASSJune19[[#This Row],[Alloc]]=\"OR\",tblREGASSJune19[[#This Row],[Alloc]]=\"UT\",tblREGASSJune19[[#This Row],[Alloc]]=\"WYU\",tblREGASSJune19[[#This Row],[Alloc]]=\"WYP\",tblREGASSJune19[[#This Row],[Alloc]]=\"CA\",tblREGASSJune19[[#This Row],[Alloc]]=\"WA\"),\"SITUS\",tblREGASSJune19[[#This Row],[Alloc]])","v":"OTHER"},{"$f":"INDEX(tblREGASSLookup[FUNC],MATCH(tblREGASSJune19[[#This Row],[Concat]],tblREGASSLookup[Concat],0))","v":"P"},{"$f":"IF(tblREGASSJune19[[#This Row],[Total ($000)]]=0,\"NO\",IF(ISNA(tblREGASSJune19[[#This Row],[FUNC]]),\"YES\",IF(_xlfn.ISFORMULA(tblREGASSJune19[[#This Row],[FUNC]]),\"NO\",\"YES\")))","v":"NO"}]
[{"$f":"CONCATENATE(tblREGASSJune19[[#This Row],[Primary Account]],tblREGASSJune19[[#This Row],[Primary Name]],tblREGASSJune19[[#This Row],[Secondary Acct]],tblREGASSJune19[[#This Row],[Secondary  Name]],tblREGASSJune19[[#This Row],[Alloc4FUNC]])","v":"1823990OTHR REG ASSET-N CST187350ID - Deferred Overburden CostsOTHER"},1823990,"OTHR REG ASSET-N CST",187350,"ID - Deferred Overburden Costs","OTHER",469.90124384615399,{"$f":"IF(OR(tblREGASSJune19[[#This Row],[Alloc]]=\"IDU\",tblREGASSJune19[[#This Row],[Alloc]]=\"OR\",tblREGASSJune19[[#This Row],[Alloc]]=\"UT\",tblREGASSJune19[[#This Row],[Alloc]]=\"WYU\",tblREGASSJune19[[#This Row],[Alloc]]=\"WYP\",tblREGASSJune19[[#This Row],[Alloc]]=\"CA\",tblREGASSJune19[[#This Row],[Alloc]]=\"WA\"),\"SITUS\",tblREGASSJune19[[#This Row],[Alloc]])","v":"OTHER"},{"$f":"INDEX(tblREGASSLookup[FUNC],MATCH(tblREGASSJune19[[#This Row],[Concat]],tblREGASSLookup[Concat],0))","v":"P"},{"$f":"IF(tblREGASSJune19[[#This Row],[Total ($000)]]=0,\"NO\",IF(ISNA(tblREGASSJune19[[#This Row],[FUNC]]),\"YES\",IF(_xlfn.ISFORMULA(tblREGASSJune19[[#This Row],[FUNC]]),\"NO\",\"YES\")))","v":"NO"}]
[{"$f":"CONCATENATE(tblREGASSJune19[[#This Row],[Primary Account]],tblREGASSJune19[[#This Row],[Primary Name]],tblREGASSJune19[[#This Row],[Secondary Acct]],tblREGASSJune19[[#This Row],[Secondary  Name]],tblREGASSJune19[[#This Row],[Alloc4FUNC]])","v":"1823990OTHR REG ASSET-N CST187351WY - Deferred Overburden CostsSITUS"},1823990,"OTHR REG ASSET-N CST",187351,"WY - Deferred Overburden Costs","WYP",1322.18126076923,{"$f":"IF(OR(tblREGASSJune19[[#This Row],[Alloc]]=\"IDU\",tblREGASSJune19[[#This Row],[Alloc]]=\"OR\",tblREGASSJune19[[#This Row],[Alloc]]=\"UT\",tblREGASSJune19[[#This Row],[Alloc]]=\"WYU\",tblREGASSJune19[[#This Row],[Alloc]]=\"WYP\",tblREGASSJune19[[#This Row],[Alloc]]=\"CA\",tblREGASSJune19[[#This Row],[Alloc]]=\"WA\"),\"SITUS\",tblREGASSJune19[[#This Row],[Alloc]])","v":"SITUS"},{"$f":"INDEX(tblREGASSLookup[FUNC],MATCH(tblREGASSJune19[[#This Row],[Concat]],tblREGASSLookup[Concat],0))","v":"P"},{"$f":"IF(tblREGASSJune19[[#This Row],[Total ($000)]]=0,\"NO\",IF(ISNA(tblREGASSJune19[[#This Row],[FUNC]]),\"YES\",IF(_xlfn.ISFORMULA(tblREGASSJune19[[#This Row],[FUNC]]),\"NO\",\"YES\")))","v":"NO"}]
[{"$f":"CONCATENATE(tblREGASSJune19[[#This Row],[Primary Account]],tblREGASSJune19[[#This Row],[Primary Name]],tblREGASSJune19[[#This Row],[Secondary Acct]],tblREGASSJune19[[#This Row],[Secondary  Name]],tblREGASSJune19[[#This Row],[Alloc4FUNC]])","v":"1823990OTHR REG ASSET-N CST187356Reg Asset-WA-Merwin ProjectOTHER"},1823990,"OTHR REG ASSET-N CST",187356,"Reg Asset-WA-Merwin Project","OTHER",-3.4319999999999999,{"$f":"IF(OR(tblREGASSJune19[[#This Row],[Alloc]]=\"IDU\",tblREGASSJune19[[#This Row],[Alloc]]=\"OR\",tblREGASSJune19[[#This Row],[Alloc]]=\"UT\",tblREGASSJune19[[#This Row],[Alloc]]=\"WYU\",tblREGASSJune19[[#This Row],[Alloc]]=\"WYP\",tblREGASSJune19[[#This Row],[Alloc]]=\"CA\",tblREGASSJune19[[#This Row],[Alloc]]=\"WA\"),\"SITUS\",tblREGASSJune19[[#This Row],[Alloc]])","v":"OTHER"},{"$f":"INDEX(tblREGASSLookup[FUNC],MATCH(tblREGASSJune19[[#This Row],[Concat]],tblREGASSLookup[Concat],0))","v":"P"},{"$f":"IF(tblREGASSJune19[[#This Row],[Total ($000)]]=0,\"NO\",IF(ISNA(tblREGASSJune19[[#This Row],[FUNC]]),\"YES\",IF(_xlfn.ISFORMULA(tblREGASSJune19[[#This Row],[FUNC]]),\"NO\",\"YES\")))","v":"NO"}]
[{"$f":"CONCATENATE(tblREGASSJune19[[#This Row],[Primary Account]],tblREGASSJune19[[#This Row],[Primary Name]],tblREGASSJune19[[#This Row],[Secondary Acct]],tblREGASSJune19[[#This Row],[Secondary  Name]],tblREGASSJune19[[#This Row],[Alloc4FUNC]])","v":"1823990OTHR REG ASSET-N CST187357CA Mobile Home Park Conversion (MHPCBA)OTHER"},1823990,"OTHR REG ASSET-N CST",187357,"CA Mobile Home Park Conversion (MHPCBA)","OTHER",198.02766384615401,{"$f":"IF(OR(tblREGASSJune19[[#This Row],[Alloc]]=\"IDU\",tblREGASSJune19[[#This Row],[Alloc]]=\"OR\",tblREGASSJune19[[#This Row],[Alloc]]=\"UT\",tblREGASSJune19[[#This Row],[Alloc]]=\"WYU\",tblREGASSJune19[[#This Row],[Alloc]]=\"WYP\",tblREGASSJune19[[#This Row],[Alloc]]=\"CA\",tblREGASSJune19[[#This Row],[Alloc]]=\"WA\"),\"SITUS\",tblREGASSJune19[[#This Row],[Alloc]])","v":"OTHER"},{"$f":"INDEX(tblREGASSLookup[FUNC],MATCH(tblREGASSJune19[[#This Row],[Concat]],tblREGASSLookup[Concat],0))","v":"CUST"},{"$f":"IF(tblREGASSJune19[[#This Row],[Total ($000)]]=0,\"NO\",IF(ISNA(tblREGASSJune19[[#This Row],[FUNC]]),\"YES\",IF(_xlfn.ISFORMULA(tblREGASSJune19[[#This Row],[FUNC]]),\"NO\",\"YES\")))","v":"NO"}]
[{"$f":"CONCATENATE(tblREGASSJune19[[#This Row],[Primary Account]],tblREGASSJune19[[#This Row],[Primary Name]],tblREGASSJune19[[#This Row],[Secondary Acct]],tblREGASSJune19[[#This Row],[Secondary  Name]],tblREGASSJune19[[#This Row],[Alloc4FUNC]])","v":"1823990OTHR REG ASSET-N CST187358Reg Asset - UT MPA Balancing AccountOTHER"},1823990,"OTHR REG ASSET-N CST",187358,"Reg Asset - UT MPA Balancing Account","OTHER",0,{"$f":"IF(OR(tblREGASSJune19[[#This Row],[Alloc]]=\"IDU\",tblREGASSJune19[[#This Row],[Alloc]]=\"OR\",tblREGASSJune19[[#This Row],[Alloc]]=\"UT\",tblREGASSJune19[[#This Row],[Alloc]]=\"WYU\",tblREGASSJune19[[#This Row],[Alloc]]=\"WYP\",tblREGASSJune19[[#This Row],[Alloc]]=\"CA\",tblREGASSJune19[[#This Row],[Alloc]]=\"WA\"),\"SITUS\",tblREGASSJune19[[#This Row],[Alloc]])","v":"OTHER"},{"$f":"INDEX(tblREGASSLookup[FUNC],MATCH(tblREGASSJune19[[#This Row],[Concat]],tblREGASSLookup[Concat],0))","v":{"$error":"#N/A"}},{"$f":"IF(tblREGASSJune19[[#This Row],[Total ($000)]]=0,\"NO\",IF(ISNA(tblREGASSJune19[[#This Row],[FUNC]]),\"YES\",IF(_xlfn.ISFORMULA(tblREGASSJune19[[#This Row],[FUNC]]),\"NO\",\"YES\")))","v":"NO"}]
[{"$f":"CONCATENATE(tblREGASSJune19[[#This Row],[Primary Account]],tblREGASSJune19[[#This Row],[Primary Name]],tblREGASSJune19[[#This Row],[Secondary Acct]],tblREGASSJune19[[#This Row],[Secondary  Name]],tblREGASSJune19[[#This Row],[Alloc4FUNC]])","v":"1823990OTHR REG ASSET-N CST187359Reg Asset - UT Major Plant AdditionsOTHER"},1823990,"OTHR REG ASSET-N CST",187359,"Reg Asset - UT Major Plant Additions","OTHER",0,{"$f":"IF(OR(tblREGASSJune19[[#This Row],[Alloc]]=\"IDU\",tblREGASSJune19[[#This Row],[Alloc]]=\"OR\",tblREGASSJune19[[#This Row],[Alloc]]=\"UT\",tblREGASSJune19[[#This Row],[Alloc]]=\"WYU\",tblREGASSJune19[[#This Row],[Alloc]]=\"WYP\",tblREGASSJune19[[#This Row],[Alloc]]=\"CA\",tblREGASSJune19[[#This Row],[Alloc]]=\"WA\"),\"SITUS\",tblREGASSJune19[[#This Row],[Alloc]])","v":"OTHER"},{"$f":"INDEX(tblREGASSLookup[FUNC],MATCH(tblREGASSJune19[[#This Row],[Concat]],tblREGASSLookup[Concat],0))","v":{"$error":"#N/A"}},{"$f":"IF(tblREGASSJune19[[#This Row],[Total ($000)]]=0,\"NO\",IF(ISNA(tblREGASSJune19[[#This Row],[FUNC]]),\"YES\",IF(_xlfn.ISFORMULA(tblREGASSJune19[[#This Row],[FUNC]]),\"NO\",\"YES\")))","v":"NO"}]
[{"$f":"CONCATENATE(tblREGASSJune19[[#This Row],[Primary Account]],tblREGASSJune19[[#This Row],[Primary Name]],tblREGASSJune19[[#This Row],[Secondary Acct]],tblREGASSJune19[[#This Row],[Secondary  Name]],tblREGASSJune19[[#This Row],[Alloc4FUNC]])","v":"1823990OTHR REG ASSET-N CST187360Reg Asset - WY Def Advertising CostsOTHER"},1823990,"OTHR REG ASSET-N CST",187360,"Reg Asset - WY Def Advertising Costs","OTHER",0,{"$f":"IF(OR(tblREGASSJune19[[#This Row],[Alloc]]=\"IDU\",tblREGASSJune19[[#This Row],[Alloc]]=\"OR\",tblREGASSJune19[[#This Row],[Alloc]]=\"UT\",tblREGASSJune19[[#This Row],[Alloc]]=\"WYU\",tblREGASSJune19[[#This Row],[Alloc]]=\"WYP\",tblREGASSJune19[[#This Row],[Alloc]]=\"CA\",tblREGASSJune19[[#This Row],[Alloc]]=\"WA\"),\"SITUS\",tblREGASSJune19[[#This Row],[Alloc]])","v":"OTHER"},{"$f":"INDEX(tblREGASSLookup[FUNC],MATCH(tblREGASSJune19[[#This Row],[Concat]],tblREGASSLookup[Concat],0))","v":{"$error":"#N/A"}},{"$f":"IF(tblREGASSJune19[[#This Row],[Total ($000)]]=0,\"NO\",IF(ISNA(tblREGASSJune19[[#This Row],[FUNC]]),\"YES\",IF(_xlfn.ISFORMULA(tblREGASSJune19[[#This Row],[FUNC]]),\"NO\",\"YES\")))","v":"NO"}]
[{"$f":"CONCATENATE(tblREGASSJune19[[#This Row],[Primary Account]],tblREGASSJune19[[#This Row],[Primary Name]],tblREGASSJune19[[#This Row],[Secondary Acct]],tblREGASSJune19[[#This Row],[Secondary  Name]],tblREGASSJune19[[#This Row],[Alloc4FUNC]])","v":"1823990OTHR REG ASSET-N CST187363Reg Asset - CA Naughton U3 CostsOTHER"},1823990,"OTHR REG ASSET-N CST",187363,"Reg Asset - CA Naughton U3 Costs","OTHER",0,{"$f":"IF(OR(tblREGASSJune19[[#This Row],[Alloc]]=\"IDU\",tblREGASSJune19[[#This Row],[Alloc]]=\"OR\",tblREGASSJune19[[#This Row],[Alloc]]=\"UT\",tblREGASSJune19[[#This Row],[Alloc]]=\"WYU\",tblREGASSJune19[[#This Row],[Alloc]]=\"WYP\",tblREGASSJune19[[#This Row],[Alloc]]=\"CA\",tblREGASSJune19[[#This Row],[Alloc]]=\"WA\"),\"SITUS\",tblREGASSJune19[[#This Row],[Alloc]])","v":"OTHER"},{"$f":"INDEX(tblREGASSLookup[FUNC],MATCH(tblREGASSJune19[[#This Row],[Concat]],tblREGASSLookup[Concat],0))","v":{"$error":"#N/A"}},{"$f":"IF(tblREGASSJune19[[#This Row],[Total ($000)]]=0,\"NO\",IF(ISNA(tblREGASSJune19[[#This Row],[FUNC]]),\"YES\",IF(_xlfn.ISFORMULA(tblREGASSJune19[[#This Row],[FUNC]]),\"NO\",\"YES\")))","v":"NO"}]
[{"$f":"CONCATENATE(tblREGASSJune19[[#This Row],[Primary Account]],tblREGASSJune19[[#This Row],[Primary Name]],tblREGASSJune19[[#This Row],[Secondary Acct]],tblREGASSJune19[[#This Row],[Secondary  Name]],tblREGASSJune19[[#This Row],[Alloc4FUNC]])","v":"1823990OTHR REG ASSET-N CST187365Reg Asset  - Naughton Unit #3 CostsOTHER"},1823990,"OTHR REG ASSET-N CST",187365,"Reg Asset  - Naughton Unit #3 Costs","OTHER",0,{"$f":"IF(OR(tblREGASSJune19[[#This Row],[Alloc]]=\"IDU\",tblREGASSJune19[[#This Row],[Alloc]]=\"OR\",tblREGASSJune19[[#This Row],[Alloc]]=\"UT\",tblREGASSJune19[[#This Row],[Alloc]]=\"WYU\",tblREGASSJune19[[#This Row],[Alloc]]=\"WYP\",tblREGASSJune19[[#This Row],[Alloc]]=\"CA\",tblREGASSJune19[[#This Row],[Alloc]]=\"WA\"),\"SITUS\",tblREGASSJune19[[#This Row],[Alloc]])","v":"OTHER"},{"$f":"INDEX(tblREGASSLookup[FUNC],MATCH(tblREGASSJune19[[#This Row],[Concat]],tblREGASSLookup[Concat],0))","v":{"$error":"#N/A"}},{"$f":"IF(tblREGASSJune19[[#This Row],[Total ($000)]]=0,\"NO\",IF(ISNA(tblREGASSJune19[[#This Row],[FUNC]]),\"YES\",IF(_xlfn.ISFORMULA(tblREGASSJune19[[#This Row],[FUNC]]),\"NO\",\"YES\")))","v":"NO"}]
[{"$f":"CONCATENATE(tblREGASSJune19[[#This Row],[Primary Account]],tblREGASSJune19[[#This Row],[Primary Name]],tblREGASSJune19[[#This Row],[Secondary Acct]],tblREGASSJune19[[#This Row],[Secondary  Name]],tblREGASSJune19[[#This Row],[Alloc4FUNC]])","v":"1823990OTHR REG ASSET-N CST187367Contra Reg Asset - Naughton U3 - OROTHER"},1823990,"OTHR REG ASSET-N CST",187367,"Contra Reg Asset - Naughton U3 - OR","OTHER",0,{"$f":"IF(OR(tblREGASSJune19[[#This Row],[Alloc]]=\"IDU\",tblREGASSJune19[[#This Row],[Alloc]]=\"OR\",tblREGASSJune19[[#This Row],[Alloc]]=\"UT\",tblREGASSJune19[[#This Row],[Alloc]]=\"WYU\",tblREGASSJune19[[#This Row],[Alloc]]=\"WYP\",tblREGASSJune19[[#This Row],[Alloc]]=\"CA\",tblREGASSJune19[[#This Row],[Alloc]]=\"WA\"),\"SITUS\",tblREGASSJune19[[#This Row],[Alloc]])","v":"OTHER"},{"$f":"INDEX(tblREGASSLookup[FUNC],MATCH(tblREGASSJune19[[#This Row],[Concat]],tblREGASSLookup[Concat],0))","v":{"$error":"#N/A"}},{"$f":"IF(tblREGASSJune19[[#This Row],[Total ($000)]]=0,\"NO\",IF(ISNA(tblREGASSJune19[[#This Row],[FUNC]]),\"YES\",IF(_xlfn.ISFORMULA(tblREGASSJune19[[#This Row],[FUNC]]),\"NO\",\"YES\")))","v":"NO"}]
[{"$f":"CONCATENATE(tblREGASSJune19[[#This Row],[Primary Account]],tblREGASSJune19[[#This Row],[Primary Name]],tblREGASSJune19[[#This Row],[Secondary Acct]],tblREGASSJune19[[#This Row],[Secondary  Name]],tblREGASSJune19[[#This Row],[Alloc4FUNC]])","v":"1823990OTHR REG ASSET-N CST187368Contra Reg Asset - Naughton U3 - WAOTHER"},1823990,"OTHR REG ASSET-N CST",187368,"Contra Reg Asset - Naughton U3 - WA","OTHER",0,{"$f":"IF(OR(tblREGASSJune19[[#This Row],[Alloc]]=\"IDU\",tblREGASSJune19[[#This Row],[Alloc]]=\"OR\",tblREGASSJune19[[#This Row],[Alloc]]=\"UT\",tblREGASSJune19[[#This Row],[Alloc]]=\"WYU\",tblREGASSJune19[[#This Row],[Alloc]]=\"WYP\",tblREGASSJune19[[#This Row],[Alloc]]=\"CA\",tblREGASSJune19[[#This Row],[Alloc]]=\"WA\"),\"SITUS\",tblREGASSJune19[[#This Row],[Alloc]])","v":"OTHER"},{"$f":"INDEX(tblREGASSLookup[FUNC],MATCH(tblREGASSJune19[[#This Row],[Concat]],tblREGASSLookup[Concat],0))","v":{"$error":"#N/A"}},{"$f":"IF(tblREGASSJune19[[#This Row],[Total ($000)]]=0,\"NO\",IF(ISNA(tblREGASSJune19[[#This Row],[FUNC]]),\"YES\",IF(_xlfn.ISFORMULA(tblREGASSJune19[[#This Row],[FUNC]]),\"NO\",\"YES\")))","v":"NO"}]
[{"$f":"CONCATENATE(tblREGASSJune19[[#This Row],[Primary Account]],tblREGASSJune19[[#This Row],[Primary Name]],tblREGASSJune19[[#This Row],[Secondary Acct]],tblREGASSJune19[[#This Row],[Secondary  Name]],tblREGASSJune19[[#This Row],[Alloc4FUNC]])","v":"1823990OTHR REG ASSET-N CST187370Reg Asset - OR Solar Feed-In TariffOTHER"},1823990,"OTHR REG ASSET-N CST",187370,"Reg Asset - OR Solar Feed-In Tariff","OTHER",0,{"$f":"IF(OR(tblREGASSJune19[[#This Row],[Alloc]]=\"IDU\",tblREGASSJune19[[#This Row],[Alloc]]=\"OR\",tblREGASSJune19[[#This Row],[Alloc]]=\"UT\",tblREGASSJune19[[#This Row],[Alloc]]=\"WYU\",tblREGASSJune19[[#This Row],[Alloc]]=\"WYP\",tblREGASSJune19[[#This Row],[Alloc]]=\"CA\",tblREGASSJune19[[#This Row],[Alloc]]=\"WA\"),\"SITUS\",tblREGASSJune19[[#This Row],[Alloc]])","v":"OTHER"},{"$f":"INDEX(tblREGASSLookup[FUNC],MATCH(tblREGASSJune19[[#This Row],[Concat]],tblREGASSLookup[Concat],0))","v":{"$error":"#N/A"}},{"$f":"IF(tblREGASSJune19[[#This Row],[Total ($000)]]=0,\"NO\",IF(ISNA(tblREGASSJune19[[#This Row],[FUNC]]),\"YES\",IF(_xlfn.ISFORMULA(tblREGASSJune19[[#This Row],[FUNC]]),\"NO\",\"YES\")))","v":"NO"}]
[{"$f":"CONCATENATE(tblREGASSJune19[[#This Row],[Primary Account]],tblREGASSJune19[[#This Row],[Primary Name]],tblREGASSJune19[[#This Row],[Secondary Acct]],tblREGASSJune19[[#This Row],[Secondary  Name]],tblREGASSJune19[[#This Row],[Alloc4FUNC]])","v":"1823990OTHR REG ASSET-N CST187371REG ASSET - CA SOLAR FEED-IN TARIFFOTHER"},1823990,"OTHR REG ASSET-N CST",187371,"REG ASSET - CA SOLAR FEED-IN TARIFF","OTHER",-830.16085461538501,{"$f":"IF(OR(tblREGASSJune19[[#This Row],[Alloc]]=\"IDU\",tblREGASSJune19[[#This Row],[Alloc]]=\"OR\",tblREGASSJune19[[#This Row],[Alloc]]=\"UT\",tblREGASSJune19[[#This Row],[Alloc]]=\"WYU\",tblREGASSJune19[[#This Row],[Alloc]]=\"WYP\",tblREGASSJune19[[#This Row],[Alloc]]=\"CA\",tblREGASSJune19[[#This Row],[Alloc]]=\"WA\"),\"SITUS\",tblREGASSJune19[[#This Row],[Alloc]])","v":"OTHER"},{"$f":"INDEX(tblREGASSLookup[FUNC],MATCH(tblREGASSJune19[[#This Row],[Concat]],tblREGASSLookup[Concat],0))","v":"P"},{"$f":"IF(tblREGASSJune19[[#This Row],[Total ($000)]]=0,\"NO\",IF(ISNA(tblREGASSJune19[[#This Row],[FUNC]]),\"YES\",IF(_xlfn.ISFORMULA(tblREGASSJune19[[#This Row],[FUNC]]),\"NO\",\"YES\")))","v":"NO"}]
[{"$f":"CONCATENATE(tblREGASSJune19[[#This Row],[Primary Account]],tblREGASSJune19[[#This Row],[Primary Name]],tblREGASSJune19[[#This Row],[Secondary Acct]],tblREGASSJune19[[#This Row],[Secondary  Name]],tblREGASSJune19[[#This Row],[Alloc4FUNC]])","v":"1823990OTHR REG ASSET-N CST187372Reg Asset - OR Solar Feed-In Tariff 2012OTHER"},1823990,"OTHR REG ASSET-N CST",187372,"Reg Asset - OR Solar Feed-In Tariff 2012","OTHER",0,{"$f":"IF(OR(tblREGASSJune19[[#This Row],[Alloc]]=\"IDU\",tblREGASSJune19[[#This Row],[Alloc]]=\"OR\",tblREGASSJune19[[#This Row],[Alloc]]=\"UT\",tblREGASSJune19[[#This Row],[Alloc]]=\"WYU\",tblREGASSJune19[[#This Row],[Alloc]]=\"WYP\",tblREGASSJune19[[#This Row],[Alloc]]=\"CA\",tblREGASSJune19[[#This Row],[Alloc]]=\"WA\"),\"SITUS\",tblREGASSJune19[[#This Row],[Alloc]])","v":"OTHER"},{"$f":"INDEX(tblREGASSLookup[FUNC],MATCH(tblREGASSJune19[[#This Row],[Concat]],tblREGASSLookup[Concat],0))","v":{"$error":"#N/A"}},{"$f":"IF(tblREGASSJune19[[#This Row],[Total ($000)]]=0,\"NO\",IF(ISNA(tblREGASSJune19[[#This Row],[FUNC]]),\"YES\",IF(_xlfn.ISFORMULA(tblREGASSJune19[[#This Row],[FUNC]]),\"NO\",\"YES\")))","v":"NO"}]
[{"$f":"CONCATENATE(tblREGASSJune19[[#This Row],[Primary Account]],tblREGASSJune19[[#This Row],[Primary Name]],tblREGASSJune19[[#This Row],[Secondary Acct]],tblREGASSJune19[[#This Row],[Secondary  Name]],tblREGASSJune19[[#This Row],[Alloc4FUNC]])","v":"1823990OTHR REG ASSET-N CST187373Reg Asset-OR Solar Feed-In Tariff 2013OTHER"},1823990,"OTHR REG ASSET-N CST",187373,"Reg Asset-OR Solar Feed-In Tariff 2013","OTHER",0,{"$f":"IF(OR(tblREGASSJune19[[#This Row],[Alloc]]=\"IDU\",tblREGASSJune19[[#This Row],[Alloc]]=\"OR\",tblREGASSJune19[[#This Row],[Alloc]]=\"UT\",tblREGASSJune19[[#This Row],[Alloc]]=\"WYU\",tblREGASSJune19[[#This Row],[Alloc]]=\"WYP\",tblREGASSJune19[[#This Row],[Alloc]]=\"CA\",tblREGASSJune19[[#This Row],[Alloc]]=\"WA\"),\"SITUS\",tblREGASSJune19[[#This Row],[Alloc]])","v":"OTHER"},{"$f":"INDEX(tblREGASSLookup[FUNC],MATCH(tblREGASSJune19[[#This Row],[Concat]],tblREGASSLookup[Concat],0))","v":{"$error":"#N/A"}},{"$f":"IF(tblREGASSJune19[[#This Row],[Total ($000)]]=0,\"NO\",IF(ISNA(tblREGASSJune19[[#This Row],[FUNC]]),\"YES\",IF(_xlfn.ISFORMULA(tblREGASSJune19[[#This Row],[FUNC]]),\"NO\",\"YES\")))","v":"NO"}]
[{"$f":"CONCATENATE(tblREGASSJune19[[#This Row],[Primary Account]],tblREGASSJune19[[#This Row],[Primary Name]],tblREGASSJune19[[#This Row],[Secondary Acct]],tblREGASSJune19[[#This Row],[Secondary  Name]],tblREGASSJune19[[#This Row],[Alloc4FUNC]])","v":"1823990OTHR REG ASSET-N CST187374Reg Asset-OR Solar Feed-In Tariff 2014OTHER"},1823990,"OTHR REG ASSET-N CST",187374,"Reg Asset-OR Solar Feed-In Tariff 2014","OTHER",0,{"$f":"IF(OR(tblREGASSJune19[[#This Row],[Alloc]]=\"IDU\",tblREGASSJune19[[#This Row],[Alloc]]=\"OR\",tblREGASSJune19[[#This Row],[Alloc]]=\"UT\",tblREGASSJune19[[#This Row],[Alloc]]=\"WYU\",tblREGASSJune19[[#This Row],[Alloc]]=\"WYP\",tblREGASSJune19[[#This Row],[Alloc]]=\"CA\",tblREGASSJune19[[#This Row],[Alloc]]=\"WA\"),\"SITUS\",tblREGASSJune19[[#This Row],[Alloc]])","v":"OTHER"},{"$f":"INDEX(tblREGASSLookup[FUNC],MATCH(tblREGASSJune19[[#This Row],[Concat]],tblREGASSLookup[Concat],0))","v":{"$error":"#N/A"}},{"$f":"IF(tblREGASSJune19[[#This Row],[Total ($000)]]=0,\"NO\",IF(ISNA(tblREGASSJune19[[#This Row],[FUNC]]),\"YES\",IF(_xlfn.ISFORMULA(tblREGASSJune19[[#This Row],[FUNC]]),\"NO\",\"YES\")))","v":"NO"}]
[{"$f":"CONCATENATE(tblREGASSJune19[[#This Row],[Primary Account]],tblREGASSJune19[[#This Row],[Primary Name]],tblREGASSJune19[[#This Row],[Secondary Acct]],tblREGASSJune19[[#This Row],[Secondary  Name]],tblREGASSJune19[[#This Row],[Alloc4FUNC]])","v":"1823990OTHR REG ASSET-N CST187375Reg Asset-OR Solar Feed-In Tariff 2015OTHER"},1823990,"OTHR REG ASSET-N CST",187375,"Reg Asset-OR Solar Feed-In Tariff 2015","OTHER",0,{"$f":"IF(OR(tblREGASSJune19[[#This Row],[Alloc]]=\"IDU\",tblREGASSJune19[[#This Row],[Alloc]]=\"OR\",tblREGASSJune19[[#This Row],[Alloc]]=\"UT\",tblREGASSJune19[[#This Row],[Alloc]]=\"WYU\",tblREGASSJune19[[#This Row],[Alloc]]=\"WYP\",tblREGASSJune19[[#This Row],[Alloc]]=\"CA\",tblREGASSJune19[[#This Row],[Alloc]]=\"WA\"),\"SITUS\",tblREGASSJune19[[#This Row],[Alloc]])","v":"OTHER"},{"$f":"INDEX(tblREGASSLookup[FUNC],MATCH(tblREGASSJune19[[#This Row],[Concat]],tblREGASSLookup[Concat],0))","v":"P"},{"$f":"IF(tblREGASSJune19[[#This Row],[Total ($000)]]=0,\"NO\",IF(ISNA(tblREGASSJune19[[#This Row],[FUNC]]),\"YES\",IF(_xlfn.ISFORMULA(tblREGASSJune19[[#This Row],[FUNC]]),\"NO\",\"YES\")))","v":"NO"}]
[{"$f":"CONCATENATE(tblREGASSJune19[[#This Row],[Primary Account]],tblREGASSJune19[[#This Row],[Primary Name]],tblREGASSJune19[[#This Row],[Secondary Acct]],tblREGASSJune19[[#This Row],[Secondary  Name]],tblREGASSJune19[[#This Row],[Alloc4FUNC]])","v":"1823990OTHR REG ASSET-N CST187376Reg Asset-OR Solar Feed-In Tariff 2016OTHER"},1823990,"OTHR REG ASSET-N CST",187376,"Reg Asset-OR Solar Feed-In Tariff 2016","OTHER",0,{"$f":"IF(OR(tblREGASSJune19[[#This Row],[Alloc]]=\"IDU\",tblREGASSJune19[[#This Row],[Alloc]]=\"OR\",tblREGASSJune19[[#This Row],[Alloc]]=\"UT\",tblREGASSJune19[[#This Row],[Alloc]]=\"WYU\",tblREGASSJune19[[#This Row],[Alloc]]=\"WYP\",tblREGASSJune19[[#This Row],[Alloc]]=\"CA\",tblREGASSJune19[[#This Row],[Alloc]]=\"WA\"),\"SITUS\",tblREGASSJune19[[#This Row],[Alloc]])","v":"OTHER"},{"$f":"INDEX(tblREGASSLookup[FUNC],MATCH(tblREGASSJune19[[#This Row],[Concat]],tblREGASSLookup[Concat],0))","v":"P"},{"$f":"IF(tblREGASSJune19[[#This Row],[Total ($000)]]=0,\"NO\",IF(ISNA(tblREGASSJune19[[#This Row],[FUNC]]),\"YES\",IF(_xlfn.ISFORMULA(tblREGASSJune19[[#This Row],[FUNC]]),\"NO\",\"YES\")))","v":"NO"}]
[{"$f":"CONCATENATE(tblREGASSJune19[[#This Row],[Primary Account]],tblREGASSJune19[[#This Row],[Primary Name]],tblREGASSJune19[[#This Row],[Secondary Acct]],tblREGASSJune19[[#This Row],[Secondary  Name]],tblREGASSJune19[[#This Row],[Alloc4FUNC]])","v":"1823990OTHR REG ASSET-N CST187377Reg Asset-OR Solar Feed-In Tariff 2017OTHER"},1823990,"OTHR REG ASSET-N CST",187377,"Reg Asset-OR Solar Feed-In Tariff 2017","OTHER",312.745590769231,{"$f":"IF(OR(tblREGASSJune19[[#This Row],[Alloc]]=\"IDU\",tblREGASSJune19[[#This Row],[Alloc]]=\"OR\",tblREGASSJune19[[#This Row],[Alloc]]=\"UT\",tblREGASSJune19[[#This Row],[Alloc]]=\"WYU\",tblREGASSJune19[[#This Row],[Alloc]]=\"WYP\",tblREGASSJune19[[#This Row],[Alloc]]=\"CA\",tblREGASSJune19[[#This Row],[Alloc]]=\"WA\"),\"SITUS\",tblREGASSJune19[[#This Row],[Alloc]])","v":"OTHER"},{"$f":"INDEX(tblREGASSLookup[FUNC],MATCH(tblREGASSJune19[[#This Row],[Concat]],tblREGASSLookup[Concat],0))","v":"P"},{"$f":"IF(tblREGASSJune19[[#This Row],[Total ($000)]]=0,\"NO\",IF(ISNA(tblREGASSJune19[[#This Row],[FUNC]]),\"YES\",IF(_xlfn.ISFORMULA(tblREGASSJune19[[#This Row],[FUNC]]),\"NO\",\"YES\")))","v":"NO"}]
[{"$f":"CONCATENATE(tblREGASSJune19[[#This Row],[Primary Account]],tblREGASSJune19[[#This Row],[Primary Name]],tblREGASSJune19[[#This Row],[Secondary Acct]],tblREGASSJune19[[#This Row],[Secondary  Name]],tblREGASSJune19[[#This Row],[Alloc4FUNC]])","v":"1823990OTHR REG ASSET-N CST187378Reg Asset-OR Solar Feed-In Tariff 2018OTHER"},1823990,"OTHR REG ASSET-N CST",187378,"Reg Asset-OR Solar Feed-In Tariff 2018","OTHER",3548.3614607692298,{"$f":"IF(OR(tblREGASSJune19[[#This Row],[Alloc]]=\"IDU\",tblREGASSJune19[[#This Row],[Alloc]]=\"OR\",tblREGASSJune19[[#This Row],[Alloc]]=\"UT\",tblREGASSJune19[[#This Row],[Alloc]]=\"WYU\",tblREGASSJune19[[#This Row],[Alloc]]=\"WYP\",tblREGASSJune19[[#This Row],[Alloc]]=\"CA\",tblREGASSJune19[[#This Row],[Alloc]]=\"WA\"),\"SITUS\",tblREGASSJune19[[#This Row],[Alloc]])","v":"OTHER"},{"$f":"INDEX(tblREGASSLookup[FUNC],MATCH(tblREGASSJune19[[#This Row],[Concat]],tblREGASSLookup[Concat],0))","v":"P"},{"$f":"IF(tblREGASSJune19[[#This Row],[Total ($000)]]=0,\"NO\",IF(ISNA(tblREGASSJune19[[#This Row],[FUNC]]),\"YES\",IF(_xlfn.ISFORMULA(tblREGASSJune19[[#This Row],[FUNC]]),\"NO\",\"YES\")))","v":"NO"}]
[{"$f":"CONCATENATE(tblREGASSJune19[[#This Row],[Primary Account]],tblREGASSJune19[[#This Row],[Primary Name]],tblREGASSJune19[[#This Row],[Secondary Acct]],tblREGASSJune19[[#This Row],[Secondary  Name]],tblREGASSJune19[[#This Row],[Alloc4FUNC]])","v":"1823990OTHR REG ASSET-N CST187379Reg Asset-OR Solar Feed-In Tariff 2019OTHER"},1823990,"OTHR REG ASSET-N CST",187379,"Reg Asset-OR Solar Feed-In Tariff 2019","OTHER",1091.99806846154,{"$f":"IF(OR(tblREGASSJune19[[#This Row],[Alloc]]=\"IDU\",tblREGASSJune19[[#This Row],[Alloc]]=\"OR\",tblREGASSJune19[[#This Row],[Alloc]]=\"UT\",tblREGASSJune19[[#This Row],[Alloc]]=\"WYU\",tblREGASSJune19[[#This Row],[Alloc]]=\"WYP\",tblREGASSJune19[[#This Row],[Alloc]]=\"CA\",tblREGASSJune19[[#This Row],[Alloc]]=\"WA\"),\"SITUS\",tblREGASSJune19[[#This Row],[Alloc]])","v":"OTHER"},{"$f":"INDEX(tblREGASSLookup[FUNC],MATCH(tblREGASSJune19[[#This Row],[Concat]],tblREGASSLookup[Concat],0))","v":"P"},{"$f":"IF(tblREGASSJune19[[#This Row],[Total ($000)]]=0,\"NO\",IF(ISNA(tblREGASSJune19[[#This Row],[FUNC]]),\"YES\",IF(_xlfn.ISFORMULA(tblREGASSJune19[[#This Row],[FUNC]]),\"NO\",\"YES\")))","v":"NO"}]
[{"$f":"CONCATENATE(tblREGASSJune19[[#This Row],[Primary Account]],tblREGASSJune19[[#This Row],[Primary Name]],tblREGASSJune19[[#This Row],[Secondary Acct]],tblREGASSJune19[[#This Row],[Secondary  Name]],tblREGASSJune19[[#This Row],[Alloc4FUNC]])","v":"1823990OTHR REG ASSET-N CST187380Reg Asset - UT Solar Incentive ProgramOTHER"},1823990,"OTHR REG ASSET-N CST",187380,"Reg Asset - UT Solar Incentive Program","OTHER",-13710.9148023077,{"$f":"IF(OR(tblREGASSJune19[[#This Row],[Alloc]]=\"IDU\",tblREGASSJune19[[#This Row],[Alloc]]=\"OR\",tblREGASSJune19[[#This Row],[Alloc]]=\"UT\",tblREGASSJune19[[#This Row],[Alloc]]=\"WYU\",tblREGASSJune19[[#This Row],[Alloc]]=\"WYP\",tblREGASSJune19[[#This Row],[Alloc]]=\"CA\",tblREGASSJune19[[#This Row],[Alloc]]=\"WA\"),\"SITUS\",tblREGASSJune19[[#This Row],[Alloc]])","v":"OTHER"},{"$f":"INDEX(tblREGASSLookup[FUNC],MATCH(tblREGASSJune19[[#This Row],[Concat]],tblREGASSLookup[Concat],0))","v":"P"},{"$f":"IF(tblREGASSJune19[[#This Row],[Total ($000)]]=0,\"NO\",IF(ISNA(tblREGASSJune19[[#This Row],[FUNC]]),\"YES\",IF(_xlfn.ISFORMULA(tblREGASSJune19[[#This Row],[FUNC]]),\"NO\",\"YES\")))","v":"NO"}]
[{"$f":"CONCATENATE(tblREGASSJune19[[#This Row],[Primary Account]],tblREGASSJune19[[#This Row],[Primary Name]],tblREGASSJune19[[#This Row],[Secondary Acct]],tblREGASSJune19[[#This Row],[Secondary  Name]],tblREGASSJune19[[#This Row],[Alloc4FUNC]])","v":"1823990OTHR REG ASSET-N CST187381RegA - CA Solar Feed-In - Recl to CurrOTHER"},1823990,"OTHR REG ASSET-N CST",187381,"RegA - CA Solar Feed-In - Recl to Curr","OTHER",0,{"$f":"IF(OR(tblREGASSJune19[[#This Row],[Alloc]]=\"IDU\",tblREGASSJune19[[#This Row],[Alloc]]=\"OR\",tblREGASSJune19[[#This Row],[Alloc]]=\"UT\",tblREGASSJune19[[#This Row],[Alloc]]=\"WYU\",tblREGASSJune19[[#This Row],[Alloc]]=\"WYP\",tblREGASSJune19[[#This Row],[Alloc]]=\"CA\",tblREGASSJune19[[#This Row],[Alloc]]=\"WA\"),\"SITUS\",tblREGASSJune19[[#This Row],[Alloc]])","v":"OTHER"},{"$f":"INDEX(tblREGASSLookup[FUNC],MATCH(tblREGASSJune19[[#This Row],[Concat]],tblREGASSLookup[Concat],0))","v":{"$error":"#N/A"}},{"$f":"IF(tblREGASSJune19[[#This Row],[Total ($000)]]=0,\"NO\",IF(ISNA(tblREGASSJune19[[#This Row],[FUNC]]),\"YES\",IF(_xlfn.ISFORMULA(tblREGASSJune19[[#This Row],[FUNC]]),\"NO\",\"YES\")))","v":"NO"}]
[{"$f":"CONCATENATE(tblREGASSJune19[[#This Row],[Primary Account]],tblREGASSJune19[[#This Row],[Primary Name]],tblREGASSJune19[[#This Row],[Secondary Acct]],tblREGASSJune19[[#This Row],[Secondary  Name]],tblREGASSJune19[[#This Row],[Alloc4FUNC]])","v":"1823990OTHR REG ASSET-N CST187383RegA - OR Solar Feed-In - Recl to CurrOTHER"},1823990,"OTHR REG ASSET-N CST",187383,"RegA - OR Solar Feed-In - Recl to Curr","OTHER",-3780.2162938461502,{"$f":"IF(OR(tblREGASSJune19[[#This Row],[Alloc]]=\"IDU\",tblREGASSJune19[[#This Row],[Alloc]]=\"OR\",tblREGASSJune19[[#This Row],[Alloc]]=\"UT\",tblREGASSJune19[[#This Row],[Alloc]]=\"WYU\",tblREGASSJune19[[#This Row],[Alloc]]=\"WYP\",tblREGASSJune19[[#This Row],[Alloc]]=\"CA\",tblREGASSJune19[[#This Row],[Alloc]]=\"WA\"),\"SITUS\",tblREGASSJune19[[#This Row],[Alloc]])","v":"OTHER"},{"$f":"INDEX(tblREGASSLookup[FUNC],MATCH(tblREGASSJune19[[#This Row],[Concat]],tblREGASSLookup[Concat],0))","v":"P"},{"$f":"IF(tblREGASSJune19[[#This Row],[Total ($000)]]=0,\"NO\",IF(ISNA(tblREGASSJune19[[#This Row],[FUNC]]),\"YES\",IF(_xlfn.ISFORMULA(tblREGASSJune19[[#This Row],[FUNC]]),\"NO\",\"YES\")))","v":"NO"}]
[{"$f":"CONCATENATE(tblREGASSJune19[[#This Row],[Primary Account]],tblREGASSJune19[[#This Row],[Primary Name]],tblREGASSJune19[[#This Row],[Secondary Acct]],tblREGASSJune19[[#This Row],[Secondary  Name]],tblREGASSJune19[[#This Row],[Alloc4FUNC]])","v":"1823990OTHR REG ASSET-N CST187384RegA - UT Solar Feed-In - Recl to CurrOTHER"},1823990,"OTHR REG ASSET-N CST",187384,"RegA - UT Solar Feed-In - Recl to Curr","OTHER",-69.546195384615402,{"$f":"IF(OR(tblREGASSJune19[[#This Row],[Alloc]]=\"IDU\",tblREGASSJune19[[#This Row],[Alloc]]=\"OR\",tblREGASSJune19[[#This Row],[Alloc]]=\"UT\",tblREGASSJune19[[#This Row],[Alloc]]=\"WYU\",tblREGASSJune19[[#This Row],[Alloc]]=\"WYP\",tblREGASSJune19[[#This Row],[Alloc]]=\"CA\",tblREGASSJune19[[#This Row],[Alloc]]=\"WA\"),\"SITUS\",tblREGASSJune19[[#This Row],[Alloc]])","v":"OTHER"},{"$f":"INDEX(tblREGASSLookup[FUNC],MATCH(tblREGASSJune19[[#This Row],[Concat]],tblREGASSLookup[Concat],0))","v":"P"},{"$f":"IF(tblREGASSJune19[[#This Row],[Total ($000)]]=0,\"NO\",IF(ISNA(tblREGASSJune19[[#This Row],[FUNC]]),\"YES\",IF(_xlfn.ISFORMULA(tblREGASSJune19[[#This Row],[FUNC]]),\"NO\",\"YES\")))","v":"NO"}]
[{"$f":"CONCATENATE(tblREGASSJune19[[#This Row],[Primary Account]],tblREGASSJune19[[#This Row],[Primary Name]],tblREGASSJune19[[#This Row],[Secondary Acct]],tblREGASSJune19[[#This Row],[Secondary  Name]],tblREGASSJune19[[#This Row],[Alloc4FUNC]])","v":"1823990OTHR REG ASSET-N CST187385RegA - Solar Feed-In - Recl to CurrOTHER"},1823990,"OTHR REG ASSET-N CST",187385,"RegA - Solar Feed-In - Recl to Curr","OTHER",0,{"$f":"IF(OR(tblREGASSJune19[[#This Row],[Alloc]]=\"IDU\",tblREGASSJune19[[#This Row],[Alloc]]=\"OR\",tblREGASSJune19[[#This Row],[Alloc]]=\"UT\",tblREGASSJune19[[#This Row],[Alloc]]=\"WYU\",tblREGASSJune19[[#This Row],[Alloc]]=\"WYP\",tblREGASSJune19[[#This Row],[Alloc]]=\"CA\",tblREGASSJune19[[#This Row],[Alloc]]=\"WA\"),\"SITUS\",tblREGASSJune19[[#This Row],[Alloc]])","v":"OTHER"},{"$f":"INDEX(tblREGASSLookup[FUNC],MATCH(tblREGASSJune19[[#This Row],[Concat]],tblREGASSLookup[Concat],0))","v":{"$error":"#N/A"}},{"$f":"IF(tblREGASSJune19[[#This Row],[Total ($000)]]=0,\"NO\",IF(ISNA(tblREGASSJune19[[#This Row],[FUNC]]),\"YES\",IF(_xlfn.ISFORMULA(tblREGASSJune19[[#This Row],[FUNC]]),\"NO\",\"YES\")))","v":"NO"}]
[{"$f":"CONCATENATE(tblREGASSJune19[[#This Row],[Primary Account]],tblREGASSJune19[[#This Row],[Primary Name]],tblREGASSJune19[[#This Row],[Secondary Acct]],tblREGASSJune19[[#This Row],[Secondary  Name]],tblREGASSJune19[[#This Row],[Alloc4FUNC]])","v":"1823990OTHR REG ASSET-N CST187387Reg Asset-Utah STEP Pilot Prog Bal AcctOTHER"},1823990,"OTHR REG ASSET-N CST",187387,"Reg Asset-Utah STEP Pilot Prog Bal Acct","OTHER",-9668.6533484615393,{"$f":"IF(OR(tblREGASSJune19[[#This Row],[Alloc]]=\"IDU\",tblREGASSJune19[[#This Row],[Alloc]]=\"OR\",tblREGASSJune19[[#This Row],[Alloc]]=\"UT\",tblREGASSJune19[[#This Row],[Alloc]]=\"WYU\",tblREGASSJune19[[#This Row],[Alloc]]=\"WYP\",tblREGASSJune19[[#This Row],[Alloc]]=\"CA\",tblREGASSJune19[[#This Row],[Alloc]]=\"WA\"),\"SITUS\",tblREGASSJune19[[#This Row],[Alloc]])","v":"OTHER"},{"$f":"INDEX(tblREGASSLookup[FUNC],MATCH(tblREGASSJune19[[#This Row],[Concat]],tblREGASSLookup[Concat],0))","v":"P"},{"$f":"IF(tblREGASSJune19[[#This Row],[Total ($000)]]=0,\"NO\",IF(ISNA(tblREGASSJune19[[#This Row],[FUNC]]),\"YES\",IF(_xlfn.ISFORMULA(tblREGASSJune19[[#This Row],[FUNC]]),\"NO\",\"YES\")))","v":"NO"}]
[{"$f":"CONCATENATE(tblREGASSJune19[[#This Row],[Primary Account]],tblREGASSJune19[[#This Row],[Primary Name]],tblREGASSJune19[[#This Row],[Secondary Acct]],tblREGASSJune19[[#This Row],[Secondary  Name]],tblREGASSJune19[[#This Row],[Alloc4FUNC]])","v":"1823990OTHR REG ASSET-N CST187390UT-Klamath Hydro Relicensing CostsOTHER"},1823990,"OTHR REG ASSET-N CST",187390,"UT-Klamath Hydro Relicensing Costs","OTHER",15665.8971615385,{"$f":"IF(OR(tblREGASSJune19[[#This Row],[Alloc]]=\"IDU\",tblREGASSJune19[[#This Row],[Alloc]]=\"OR\",tblREGASSJune19[[#This Row],[Alloc]]=\"UT\",tblREGASSJune19[[#This Row],[Alloc]]=\"WYU\",tblREGASSJune19[[#This Row],[Alloc]]=\"WYP\",tblREGASSJune19[[#This Row],[Alloc]]=\"CA\",tblREGASSJune19[[#This Row],[Alloc]]=\"WA\"),\"SITUS\",tblREGASSJune19[[#This Row],[Alloc]])","v":"OTHER"},{"$f":"INDEX(tblREGASSLookup[FUNC],MATCH(tblREGASSJune19[[#This Row],[Concat]],tblREGASSLookup[Concat],0))","v":"P"},{"$f":"IF(tblREGASSJune19[[#This Row],[Total ($000)]]=0,\"NO\",IF(ISNA(tblREGASSJune19[[#This Row],[FUNC]]),\"YES\",IF(_xlfn.ISFORMULA(tblREGASSJune19[[#This Row],[FUNC]]),\"NO\",\"YES\")))","v":"NO"}]
[{"$f":"CONCATENATE(tblREGASSJune19[[#This Row],[Primary Account]],tblREGASSJune19[[#This Row],[Primary Name]],tblREGASSJune19[[#This Row],[Secondary Acct]],tblREGASSJune19[[#This Row],[Secondary  Name]],tblREGASSJune19[[#This Row],[Alloc4FUNC]])","v":"1823990OTHR REG ASSET-N CST187391RegA - CA Solar Feed-In - Recl to LiabOTHER"},1823990,"OTHR REG ASSET-N CST",187391,"RegA - CA Solar Feed-In - Recl to Liab","OTHER",830.16085461538501,{"$f":"IF(OR(tblREGASSJune19[[#This Row],[Alloc]]=\"IDU\",tblREGASSJune19[[#This Row],[Alloc]]=\"OR\",tblREGASSJune19[[#This Row],[Alloc]]=\"UT\",tblREGASSJune19[[#This Row],[Alloc]]=\"WYU\",tblREGASSJune19[[#This Row],[Alloc]]=\"WYP\",tblREGASSJune19[[#This Row],[Alloc]]=\"CA\",tblREGASSJune19[[#This Row],[Alloc]]=\"WA\"),\"SITUS\",tblREGASSJune19[[#This Row],[Alloc]])","v":"OTHER"},{"$f":"INDEX(tblREGASSLookup[FUNC],MATCH(tblREGASSJune19[[#This Row],[Concat]],tblREGASSLookup[Concat],0))","v":"P"},{"$f":"IF(tblREGASSJune19[[#This Row],[Total ($000)]]=0,\"NO\",IF(ISNA(tblREGASSJune19[[#This Row],[FUNC]]),\"YES\",IF(_xlfn.ISFORMULA(tblREGASSJune19[[#This Row],[FUNC]]),\"NO\",\"YES\")))","v":"NO"}]
[{"$f":"CONCATENATE(tblREGASSJune19[[#This Row],[Primary Account]],tblREGASSJune19[[#This Row],[Primary Name]],tblREGASSJune19[[#This Row],[Secondary Acct]],tblREGASSJune19[[#This Row],[Secondary  Name]],tblREGASSJune19[[#This Row],[Alloc4FUNC]])","v":"1823990OTHR REG ASSET-N CST187394RegA - UT Solar Feed-In - Recl to LiabOTHER"},1823990,"OTHR REG ASSET-N CST",187394,"RegA - UT Solar Feed-In - Recl to Liab","OTHER",23379.568150769199,{"$f":"IF(OR(tblREGASSJune19[[#This Row],[Alloc]]=\"IDU\",tblREGASSJune19[[#This Row],[Alloc]]=\"OR\",tblREGASSJune19[[#This Row],[Alloc]]=\"UT\",tblREGASSJune19[[#This Row],[Alloc]]=\"WYU\",tblREGASSJune19[[#This Row],[Alloc]]=\"WYP\",tblREGASSJune19[[#This Row],[Alloc]]=\"CA\",tblREGASSJune19[[#This Row],[Alloc]]=\"WA\"),\"SITUS\",tblREGASSJune19[[#This Row],[Alloc]])","v":"OTHER"},{"$f":"INDEX(tblREGASSLookup[FUNC],MATCH(tblREGASSJune19[[#This Row],[Concat]],tblREGASSLookup[Concat],0))","v":"P"},{"$f":"IF(tblREGASSJune19[[#This Row],[Total ($000)]]=0,\"NO\",IF(ISNA(tblREGASSJune19[[#This Row],[FUNC]]),\"YES\",IF(_xlfn.ISFORMULA(tblREGASSJune19[[#This Row],[FUNC]]),\"NO\",\"YES\")))","v":"NO"}]
[{"$f":"CONCATENATE(tblREGASSJune19[[#This Row],[Primary Account]],tblREGASSJune19[[#This Row],[Primary Name]],tblREGASSJune19[[#This Row],[Secondary Acct]],tblREGASSJune19[[#This Row],[Secondary  Name]],tblREGASSJune19[[#This Row],[Alloc4FUNC]])","v":"1823990OTHR REG ASSET-N CST187415Reg Asset-UT Subscriber Solar ProgramOTHER"},1823990,"OTHR REG ASSET-N CST",187415,"Reg Asset-UT Subscriber Solar Program","OTHER",1654.1892646153799,{"$f":"IF(OR(tblREGASSJune19[[#This Row],[Alloc]]=\"IDU\",tblREGASSJune19[[#This Row],[Alloc]]=\"OR\",tblREGASSJune19[[#This Row],[Alloc]]=\"UT\",tblREGASSJune19[[#This Row],[Alloc]]=\"WYU\",tblREGASSJune19[[#This Row],[Alloc]]=\"WYP\",tblREGASSJune19[[#This Row],[Alloc]]=\"CA\",tblREGASSJune19[[#This Row],[Alloc]]=\"WA\"),\"SITUS\",tblREGASSJune19[[#This Row],[Alloc]])","v":"OTHER"},{"$f":"INDEX(tblREGASSLookup[FUNC],MATCH(tblREGASSJune19[[#This Row],[Concat]],tblREGASSLookup[Concat],0))","v":"P"},{"$f":"IF(tblREGASSJune19[[#This Row],[Total ($000)]]=0,\"NO\",IF(ISNA(tblREGASSJune19[[#This Row],[FUNC]]),\"YES\",IF(_xlfn.ISFORMULA(tblREGASSJune19[[#This Row],[FUNC]]),\"NO\",\"YES\")))","v":"NO"}]
[{"$f":"CONCATENATE(tblREGASSJune19[[#This Row],[Primary Account]],tblREGASSJune19[[#This Row],[Primary Name]],tblREGASSJune19[[#This Row],[Secondary Acct]],tblREGASSJune19[[#This Row],[Secondary  Name]],tblREGASSJune19[[#This Row],[Alloc4FUNC]])","v":"1823990OTHR REG ASSET-N CST187420RegA - OR Community SolarOTHER"},1823990,"OTHR REG ASSET-N CST",187420,"RegA - OR Community Solar","OTHER",18.7661661538462,{"$f":"IF(OR(tblREGASSJune19[[#This Row],[Alloc]]=\"IDU\",tblREGASSJune19[[#This Row],[Alloc]]=\"OR\",tblREGASSJune19[[#This Row],[Alloc]]=\"UT\",tblREGASSJune19[[#This Row],[Alloc]]=\"WYU\",tblREGASSJune19[[#This Row],[Alloc]]=\"WYP\",tblREGASSJune19[[#This Row],[Alloc]]=\"CA\",tblREGASSJune19[[#This Row],[Alloc]]=\"WA\"),\"SITUS\",tblREGASSJune19[[#This Row],[Alloc]])","v":"OTHER"},{"$f":"INDEX(tblREGASSLookup[FUNC],MATCH(tblREGASSJune19[[#This Row],[Concat]],tblREGASSLookup[Concat],0))","v":"P"},{"$f":"IF(tblREGASSJune19[[#This Row],[Total ($000)]]=0,\"NO\",IF(ISNA(tblREGASSJune19[[#This Row],[FUNC]]),\"YES\",IF(_xlfn.ISFORMULA(tblREGASSJune19[[#This Row],[FUNC]]),\"NO\",\"YES\")))","v":"NO"}]
[{"$f":"CONCATENATE(tblREGASSJune19[[#This Row],[Primary Account]],tblREGASSJune19[[#This Row],[Primary Name]],tblREGASSJune19[[#This Row],[Secondary Acct]],tblREGASSJune19[[#This Row],[Secondary  Name]],tblREGASSJune19[[#This Row],[Alloc4FUNC]])","v":"1823990OTHR REG ASSET-N CST187460Reg Asset  - CA RPS PurchaseOTHER"},1823990,"OTHR REG ASSET-N CST",187460,"Reg Asset  - CA RPS Purchase","OTHER",0,{"$f":"IF(OR(tblREGASSJune19[[#This Row],[Alloc]]=\"IDU\",tblREGASSJune19[[#This Row],[Alloc]]=\"OR\",tblREGASSJune19[[#This Row],[Alloc]]=\"UT\",tblREGASSJune19[[#This Row],[Alloc]]=\"WYU\",tblREGASSJune19[[#This Row],[Alloc]]=\"WYP\",tblREGASSJune19[[#This Row],[Alloc]]=\"CA\",tblREGASSJune19[[#This Row],[Alloc]]=\"WA\"),\"SITUS\",tblREGASSJune19[[#This Row],[Alloc]])","v":"OTHER"},{"$f":"INDEX(tblREGASSLookup[FUNC],MATCH(tblREGASSJune19[[#This Row],[Concat]],tblREGASSLookup[Concat],0))","v":{"$error":"#N/A"}},{"$f":"IF(tblREGASSJune19[[#This Row],[Total ($000)]]=0,\"NO\",IF(ISNA(tblREGASSJune19[[#This Row],[FUNC]]),\"YES\",IF(_xlfn.ISFORMULA(tblREGASSJune19[[#This Row],[FUNC]]),\"NO\",\"YES\")))","v":"NO"}]
[{"$f":"CONCATENATE(tblREGASSJune19[[#This Row],[Primary Account]],tblREGASSJune19[[#This Row],[Primary Name]],tblREGASSJune19[[#This Row],[Secondary Acct]],tblREGASSJune19[[#This Row],[Secondary  Name]],tblREGASSJune19[[#This Row],[Alloc4FUNC]])","v":"1823990OTHR REG ASSET-N CST187470Reg A-WA Decoupling Mech Sep16-Jun17OTHER"},1823990,"OTHR REG ASSET-N CST",187470,"Reg A-WA Decoupling Mech Sep16-Jun17","OTHER",-1334.03159538462,{"$f":"IF(OR(tblREGASSJune19[[#This Row],[Alloc]]=\"IDU\",tblREGASSJune19[[#This Row],[Alloc]]=\"OR\",tblREGASSJune19[[#This Row],[Alloc]]=\"UT\",tblREGASSJune19[[#This Row],[Alloc]]=\"WYU\",tblREGASSJune19[[#This Row],[Alloc]]=\"WYP\",tblREGASSJune19[[#This Row],[Alloc]]=\"CA\",tblREGASSJune19[[#This Row],[Alloc]]=\"WA\"),\"SITUS\",tblREGASSJune19[[#This Row],[Alloc]])","v":"OTHER"},{"$f":"INDEX(tblREGASSLookup[FUNC],MATCH(tblREGASSJune19[[#This Row],[Concat]],tblREGASSLookup[Concat],0))","v":"P"},{"$f":"IF(tblREGASSJune19[[#This Row],[Total ($000)]]=0,\"NO\",IF(ISNA(tblREGASSJune19[[#This Row],[FUNC]]),\"YES\",IF(_xlfn.ISFORMULA(tblREGASSJune19[[#This Row],[FUNC]]),\"NO\",\"YES\")))","v":"NO"}]
[{"$f":"CONCATENATE(tblREGASSJune19[[#This Row],[Primary Account]],tblREGASSJune19[[#This Row],[Primary Name]],tblREGASSJune19[[#This Row],[Secondary Acct]],tblREGASSJune19[[#This Row],[Secondary  Name]],tblREGASSJune19[[#This Row],[Alloc4FUNC]])","v":"1823990OTHR REG ASSET-N CST187471Reg A-WA Decoupling Mech Jul17-Jun18OTHER"},1823990,"OTHR REG ASSET-N CST",187471,"Reg A-WA Decoupling Mech Jul17-Jun18","OTHER",-301.09614461538501,{"$f":"IF(OR(tblREGASSJune19[[#This Row],[Alloc]]=\"IDU\",tblREGASSJune19[[#This Row],[Alloc]]=\"OR\",tblREGASSJune19[[#This Row],[Alloc]]=\"UT\",tblREGASSJune19[[#This Row],[Alloc]]=\"WYU\",tblREGASSJune19[[#This Row],[Alloc]]=\"WYP\",tblREGASSJune19[[#This Row],[Alloc]]=\"CA\",tblREGASSJune19[[#This Row],[Alloc]]=\"WA\"),\"SITUS\",tblREGASSJune19[[#This Row],[Alloc]])","v":"OTHER"},{"$f":"INDEX(tblREGASSLookup[FUNC],MATCH(tblREGASSJune19[[#This Row],[Concat]],tblREGASSLookup[Concat],0))","v":"P"},{"$f":"IF(tblREGASSJune19[[#This Row],[Total ($000)]]=0,\"NO\",IF(ISNA(tblREGASSJune19[[#This Row],[FUNC]]),\"YES\",IF(_xlfn.ISFORMULA(tblREGASSJune19[[#This Row],[FUNC]]),\"NO\",\"YES\")))","v":"NO"}]
[{"$f":"CONCATENATE(tblREGASSJune19[[#This Row],[Primary Account]],tblREGASSJune19[[#This Row],[Primary Name]],tblREGASSJune19[[#This Row],[Secondary Acct]],tblREGASSJune19[[#This Row],[Secondary  Name]],tblREGASSJune19[[#This Row],[Alloc4FUNC]])","v":"1823990OTHR REG ASSET-N CST187472Reg A-WA Decoupling Mech Jul18-Jun19OTHER"},1823990,"OTHR REG ASSET-N CST",187472,"Reg A-WA Decoupling Mech Jul18-Jun19","OTHER",-92.197396153846199,{"$f":"IF(OR(tblREGASSJune19[[#This Row],[Alloc]]=\"IDU\",tblREGASSJune19[[#This Row],[Alloc]]=\"OR\",tblREGASSJune19[[#This Row],[Alloc]]=\"UT\",tblREGASSJune19[[#This Row],[Alloc]]=\"WYU\",tblREGASSJune19[[#This Row],[Alloc]]=\"WYP\",tblREGASSJune19[[#This Row],[Alloc]]=\"CA\",tblREGASSJune19[[#This Row],[Alloc]]=\"WA\"),\"SITUS\",tblREGASSJune19[[#This Row],[Alloc]])","v":"OTHER"},{"$f":"INDEX(tblREGASSLookup[FUNC],MATCH(tblREGASSJune19[[#This Row],[Concat]],tblREGASSLookup[Concat],0))","v":"P"},{"$f":"IF(tblREGASSJune19[[#This Row],[Total ($000)]]=0,\"NO\",IF(ISNA(tblREGASSJune19[[#This Row],[FUNC]]),\"YES\",IF(_xlfn.ISFORMULA(tblREGASSJune19[[#This Row],[FUNC]]),\"NO\",\"YES\")))","v":"NO"}]
[{"$f":"CONCATENATE(tblREGASSJune19[[#This Row],[Primary Account]],tblREGASSJune19[[#This Row],[Primary Name]],tblREGASSJune19[[#This Row],[Secondary Acct]],tblREGASSJune19[[#This Row],[Secondary  Name]],tblREGASSJune19[[#This Row],[Alloc4FUNC]])","v":"1823990OTHR REG ASSET-N CST187480Contra Reg A-WA Decoupling Sep16-Jun17OTHER"},1823990,"OTHR REG ASSET-N CST",187480,"Contra Reg A-WA Decoupling Sep16-Jun17","OTHER",0,{"$f":"IF(OR(tblREGASSJune19[[#This Row],[Alloc]]=\"IDU\",tblREGASSJune19[[#This Row],[Alloc]]=\"OR\",tblREGASSJune19[[#This Row],[Alloc]]=\"UT\",tblREGASSJune19[[#This Row],[Alloc]]=\"WYU\",tblREGASSJune19[[#This Row],[Alloc]]=\"WYP\",tblREGASSJune19[[#This Row],[Alloc]]=\"CA\",tblREGASSJune19[[#This Row],[Alloc]]=\"WA\"),\"SITUS\",tblREGASSJune19[[#This Row],[Alloc]])","v":"OTHER"},{"$f":"INDEX(tblREGASSLookup[FUNC],MATCH(tblREGASSJune19[[#This Row],[Concat]],tblREGASSLookup[Concat],0))","v":"P"},{"$f":"IF(tblREGASSJune19[[#This Row],[Total ($000)]]=0,\"NO\",IF(ISNA(tblREGASSJune19[[#This Row],[FUNC]]),\"YES\",IF(_xlfn.ISFORMULA(tblREGASSJune19[[#This Row],[FUNC]]),\"NO\",\"YES\")))","v":"NO"}]
[{"$f":"CONCATENATE(tblREGASSJune19[[#This Row],[Primary Account]],tblREGASSJune19[[#This Row],[Primary Name]],tblREGASSJune19[[#This Row],[Secondary Acct]],tblREGASSJune19[[#This Row],[Secondary  Name]],tblREGASSJune19[[#This Row],[Alloc4FUNC]])","v":"1823990OTHR REG ASSET-N CST187481Contra Reg A-WA Decoupling Jul17-Jun18OTHER"},1823990,"OTHR REG ASSET-N CST",187481,"Contra Reg A-WA Decoupling Jul17-Jun18","OTHER",-916.54398538461498,{"$f":"IF(OR(tblREGASSJune19[[#This Row],[Alloc]]=\"IDU\",tblREGASSJune19[[#This Row],[Alloc]]=\"OR\",tblREGASSJune19[[#This Row],[Alloc]]=\"UT\",tblREGASSJune19[[#This Row],[Alloc]]=\"WYU\",tblREGASSJune19[[#This Row],[Alloc]]=\"WYP\",tblREGASSJune19[[#This Row],[Alloc]]=\"CA\",tblREGASSJune19[[#This Row],[Alloc]]=\"WA\"),\"SITUS\",tblREGASSJune19[[#This Row],[Alloc]])","v":"OTHER"},{"$f":"INDEX(tblREGASSLookup[FUNC],MATCH(tblREGASSJune19[[#This Row],[Concat]],tblREGASSLookup[Concat],0))","v":"P"},{"$f":"IF(tblREGASSJune19[[#This Row],[Total ($000)]]=0,\"NO\",IF(ISNA(tblREGASSJune19[[#This Row],[FUNC]]),\"YES\",IF(_xlfn.ISFORMULA(tblREGASSJune19[[#This Row],[FUNC]]),\"NO\",\"YES\")))","v":"NO"}]
[{"$f":"CONCATENATE(tblREGASSJune19[[#This Row],[Primary Account]],tblREGASSJune19[[#This Row],[Primary Name]],tblREGASSJune19[[#This Row],[Secondary Acct]],tblREGASSJune19[[#This Row],[Secondary  Name]],tblREGASSJune19[[#This Row],[Alloc4FUNC]])","v":"1823990OTHR REG ASSET-N CST187482Contra Reg A-WA Decoupling Jul18-Jun19OTHER"},1823990,"OTHR REG ASSET-N CST",187482,"Contra Reg A-WA Decoupling Jul18-Jun19","OTHER",-618.13699846153804,{"$f":"IF(OR(tblREGASSJune19[[#This Row],[Alloc]]=\"IDU\",tblREGASSJune19[[#This Row],[Alloc]]=\"OR\",tblREGASSJune19[[#This Row],[Alloc]]=\"UT\",tblREGASSJune19[[#This Row],[Alloc]]=\"WYU\",tblREGASSJune19[[#This Row],[Alloc]]=\"WYP\",tblREGASSJune19[[#This Row],[Alloc]]=\"CA\",tblREGASSJune19[[#This Row],[Alloc]]=\"WA\"),\"SITUS\",tblREGASSJune19[[#This Row],[Alloc]])","v":"OTHER"},{"$f":"INDEX(tblREGASSLookup[FUNC],MATCH(tblREGASSJune19[[#This Row],[Concat]],tblREGASSLookup[Concat],0))","v":"P"},{"$f":"IF(tblREGASSJune19[[#This Row],[Total ($000)]]=0,\"NO\",IF(ISNA(tblREGASSJune19[[#This Row],[FUNC]]),\"YES\",IF(_xlfn.ISFORMULA(tblREGASSJune19[[#This Row],[FUNC]]),\"NO\",\"YES\")))","v":"NO"}]
[{"$f":"CONCATENATE(tblREGASSJune19[[#This Row],[Primary Account]],tblREGASSJune19[[#This Row],[Primary Name]],tblREGASSJune19[[#This Row],[Secondary Acct]],tblREGASSJune19[[#This Row],[Secondary  Name]],tblREGASSJune19[[#This Row],[Alloc4FUNC]])","v":"1823990OTHR REG ASSET-N CST187489Reg A-WA Decoupling Mechanism-ReclassOTHER"},1823990,"OTHR REG ASSET-N CST",187489,"Reg A-WA Decoupling Mechanism-Reclass","OTHER",3262.00612,{"$f":"IF(OR(tblREGASSJune19[[#This Row],[Alloc]]=\"IDU\",tblREGASSJune19[[#This Row],[Alloc]]=\"OR\",tblREGASSJune19[[#This Row],[Alloc]]=\"UT\",tblREGASSJune19[[#This Row],[Alloc]]=\"WYU\",tblREGASSJune19[[#This Row],[Alloc]]=\"WYP\",tblREGASSJune19[[#This Row],[Alloc]]=\"CA\",tblREGASSJune19[[#This Row],[Alloc]]=\"WA\"),\"SITUS\",tblREGASSJune19[[#This Row],[Alloc]])","v":"OTHER"},{"$f":"INDEX(tblREGASSLookup[FUNC],MATCH(tblREGASSJune19[[#This Row],[Concat]],tblREGASSLookup[Concat],0))","v":"P"},{"$f":"IF(tblREGASSJune19[[#This Row],[Total ($000)]]=0,\"NO\",IF(ISNA(tblREGASSJune19[[#This Row],[FUNC]]),\"YES\",IF(_xlfn.ISFORMULA(tblREGASSJune19[[#This Row],[FUNC]]),\"NO\",\"YES\")))","v":"NO"}]
[{"$f":"CONCATENATE(tblREGASSJune19[[#This Row],[Primary Account]],tblREGASSJune19[[#This Row],[Primary Name]],tblREGASSJune19[[#This Row],[Secondary Acct]],tblREGASSJune19[[#This Row],[Secondary  Name]],tblREGASSJune19[[#This Row],[Alloc4FUNC]])","v":"1823990OTHR REG ASSET-N CST187495RegA - Other - Recl to CurrOTHER"},1823990,"OTHR REG ASSET-N CST",187495,"RegA - Other - Recl to Curr","OTHER",-2333.8444569230801,{"$f":"IF(OR(tblREGASSJune19[[#This Row],[Alloc]]=\"IDU\",tblREGASSJune19[[#This Row],[Alloc]]=\"OR\",tblREGASSJune19[[#This Row],[Alloc]]=\"UT\",tblREGASSJune19[[#This Row],[Alloc]]=\"WYU\",tblREGASSJune19[[#This Row],[Alloc]]=\"WYP\",tblREGASSJune19[[#This Row],[Alloc]]=\"CA\",tblREGASSJune19[[#This Row],[Alloc]]=\"WA\"),\"SITUS\",tblREGASSJune19[[#This Row],[Alloc]])","v":"OTHER"},{"$f":"INDEX(tblREGASSLookup[FUNC],MATCH(tblREGASSJune19[[#This Row],[Concat]],tblREGASSLookup[Concat],0))","v":"P"},{"$f":"IF(tblREGASSJune19[[#This Row],[Total ($000)]]=0,\"NO\",IF(ISNA(tblREGASSJune19[[#This Row],[FUNC]]),\"YES\",IF(_xlfn.ISFORMULA(tblREGASSJune19[[#This Row],[FUNC]]),\"NO\",\"YES\")))","v":"NO"}]
[{"$f":"CONCATENATE(tblREGASSJune19[[#This Row],[Primary Account]],tblREGASSJune19[[#This Row],[Primary Name]],tblREGASSJune19[[#This Row],[Secondary Acct]],tblREGASSJune19[[#This Row],[Secondary  Name]],tblREGASSJune19[[#This Row],[Alloc4FUNC]])","v":"1823990OTHR REG ASSET-N CST187496RegA - OR Asset Sale Gain-Recl to CurrOTHER"},1823990,"OTHR REG ASSET-N CST",187496,"RegA - OR Asset Sale Gain-Recl to Curr","OTHER",0,{"$f":"IF(OR(tblREGASSJune19[[#This Row],[Alloc]]=\"IDU\",tblREGASSJune19[[#This Row],[Alloc]]=\"OR\",tblREGASSJune19[[#This Row],[Alloc]]=\"UT\",tblREGASSJune19[[#This Row],[Alloc]]=\"WYU\",tblREGASSJune19[[#This Row],[Alloc]]=\"WYP\",tblREGASSJune19[[#This Row],[Alloc]]=\"CA\",tblREGASSJune19[[#This Row],[Alloc]]=\"WA\"),\"SITUS\",tblREGASSJune19[[#This Row],[Alloc]])","v":"OTHER"},{"$f":"INDEX(tblREGASSLookup[FUNC],MATCH(tblREGASSJune19[[#This Row],[Concat]],tblREGASSLookup[Concat],0))","v":{"$error":"#N/A"}},{"$f":"IF(tblREGASSJune19[[#This Row],[Total ($000)]]=0,\"NO\",IF(ISNA(tblREGASSJune19[[#This Row],[FUNC]]),\"YES\",IF(_xlfn.ISFORMULA(tblREGASSJune19[[#This Row],[FUNC]]),\"NO\",\"YES\")))","v":"NO"}]
[{"$f":"CONCATENATE(tblREGASSJune19[[#This Row],[Primary Account]],tblREGASSJune19[[#This Row],[Primary Name]],tblREGASSJune19[[#This Row],[Secondary Acct]],tblREGASSJune19[[#This Row],[Secondary  Name]],tblREGASSJune19[[#This Row],[Alloc4FUNC]])","v":"1823990OTHR REG ASSET-N CST187630Reg Asset - UT EIM Expense DeferralOTHER"},1823990,"OTHR REG ASSET-N CST",187630,"Reg Asset - UT EIM Expense Deferral","OTHER",8011.64083307692,{"$f":"IF(OR(tblREGASSJune19[[#This Row],[Alloc]]=\"IDU\",tblREGASSJune19[[#This Row],[Alloc]]=\"OR\",tblREGASSJune19[[#This Row],[Alloc]]=\"UT\",tblREGASSJune19[[#This Row],[Alloc]]=\"WYU\",tblREGASSJune19[[#This Row],[Alloc]]=\"WYP\",tblREGASSJune19[[#This Row],[Alloc]]=\"CA\",tblREGASSJune19[[#This Row],[Alloc]]=\"WA\"),\"SITUS\",tblREGASSJune19[[#This Row],[Alloc]])","v":"OTHER"},{"$f":"INDEX(tblREGASSLookup[FUNC],MATCH(tblREGASSJune19[[#This Row],[Concat]],tblREGASSLookup[Concat],0))","v":"P"},{"$f":"IF(tblREGASSJune19[[#This Row],[Total ($000)]]=0,\"NO\",IF(ISNA(tblREGASSJune19[[#This Row],[FUNC]]),\"YES\",IF(_xlfn.ISFORMULA(tblREGASSJune19[[#This Row],[FUNC]]),\"NO\",\"YES\")))","v":"NO"}]
[{"$f":"CONCATENATE(tblREGASSJune19[[#This Row],[Primary Account]],tblREGASSJune19[[#This Row],[Primary Name]],tblREGASSJune19[[#This Row],[Secondary Acct]],tblREGASSJune19[[#This Row],[Secondary  Name]],tblREGASSJune19[[#This Row],[Alloc4FUNC]])","v":"1823990OTHR REG ASSET-N CST187631Contra Reg Asset - UT EIM  DeferralOTHER"},1823990,"OTHR REG ASSET-N CST",187631,"Contra Reg Asset - UT EIM  Deferral","OTHER",-8011.64083307692,{"$f":"IF(OR(tblREGASSJune19[[#This Row],[Alloc]]=\"IDU\",tblREGASSJune19[[#This Row],[Alloc]]=\"OR\",tblREGASSJune19[[#This Row],[Alloc]]=\"UT\",tblREGASSJune19[[#This Row],[Alloc]]=\"WYU\",tblREGASSJune19[[#This Row],[Alloc]]=\"WYP\",tblREGASSJune19[[#This Row],[Alloc]]=\"CA\",tblREGASSJune19[[#This Row],[Alloc]]=\"WA\"),\"SITUS\",tblREGASSJune19[[#This Row],[Alloc]])","v":"OTHER"},{"$f":"INDEX(tblREGASSLookup[FUNC],MATCH(tblREGASSJune19[[#This Row],[Concat]],tblREGASSLookup[Concat],0))","v":"P"},{"$f":"IF(tblREGASSJune19[[#This Row],[Total ($000)]]=0,\"NO\",IF(ISNA(tblREGASSJune19[[#This Row],[FUNC]]),\"YES\",IF(_xlfn.ISFORMULA(tblREGASSJune19[[#This Row],[FUNC]]),\"NO\",\"YES\")))","v":"NO"}]
[{"$f":"CONCATENATE(tblREGASSJune19[[#This Row],[Primary Account]],tblREGASSJune19[[#This Row],[Primary Name]],tblREGASSJune19[[#This Row],[Secondary Acct]],tblREGASSJune19[[#This Row],[Secondary  Name]],tblREGASSJune19[[#This Row],[Alloc4FUNC]])","v":"1823990OTHR REG ASSET-N CST187650Reg Asset - RPS Compliance PurchasesOTHER"},1823990,"OTHR REG ASSET-N CST",187650,"Reg Asset - RPS Compliance Purchases","OTHER",0,{"$f":"IF(OR(tblREGASSJune19[[#This Row],[Alloc]]=\"IDU\",tblREGASSJune19[[#This Row],[Alloc]]=\"OR\",tblREGASSJune19[[#This Row],[Alloc]]=\"UT\",tblREGASSJune19[[#This Row],[Alloc]]=\"WYU\",tblREGASSJune19[[#This Row],[Alloc]]=\"WYP\",tblREGASSJune19[[#This Row],[Alloc]]=\"CA\",tblREGASSJune19[[#This Row],[Alloc]]=\"WA\"),\"SITUS\",tblREGASSJune19[[#This Row],[Alloc]])","v":"OTHER"},{"$f":"INDEX(tblREGASSLookup[FUNC],MATCH(tblREGASSJune19[[#This Row],[Concat]],tblREGASSLookup[Concat],0))","v":"P"},{"$f":"IF(tblREGASSJune19[[#This Row],[Total ($000)]]=0,\"NO\",IF(ISNA(tblREGASSJune19[[#This Row],[FUNC]]),\"YES\",IF(_xlfn.ISFORMULA(tblREGASSJune19[[#This Row],[FUNC]]),\"NO\",\"YES\")))","v":"NO"}]
[{"$f":"CONCATENATE(tblREGASSJune19[[#This Row],[Primary Account]],tblREGASSJune19[[#This Row],[Primary Name]],tblREGASSJune19[[#This Row],[Secondary Acct]],tblREGASSJune19[[#This Row],[Secondary  Name]],tblREGASSJune19[[#This Row],[Alloc4FUNC]])","v":"1823990OTHR REG ASSET-N CST187660RegA-OR Transp Electrification PilotOTHER"},1823990,"OTHR REG ASSET-N CST",187660,"RegA-OR Transp Electrification Pilot","OTHER",131.106435384615,{"$f":"IF(OR(tblREGASSJune19[[#This Row],[Alloc]]=\"IDU\",tblREGASSJune19[[#This Row],[Alloc]]=\"OR\",tblREGASSJune19[[#This Row],[Alloc]]=\"UT\",tblREGASSJune19[[#This Row],[Alloc]]=\"WYU\",tblREGASSJune19[[#This Row],[Alloc]]=\"WYP\",tblREGASSJune19[[#This Row],[Alloc]]=\"CA\",tblREGASSJune19[[#This Row],[Alloc]]=\"WA\"),\"SITUS\",tblREGASSJune19[[#This Row],[Alloc]])","v":"OTHER"},{"$f":"INDEX(tblREGASSLookup[FUNC],MATCH(tblREGASSJune19[[#This Row],[Concat]],tblREGASSLookup[Concat],0))","v":"P"},{"$f":"IF(tblREGASSJune19[[#This Row],[Total ($000)]]=0,\"NO\",IF(ISNA(tblREGASSJune19[[#This Row],[FUNC]]),\"YES\",IF(_xlfn.ISFORMULA(tblREGASSJune19[[#This Row],[FUNC]]),\"NO\",\"YES\")))","v":"NO"}]
[{"$f":"CONCATENATE(tblREGASSJune19[[#This Row],[Primary Account]],tblREGASSJune19[[#This Row],[Primary Name]],tblREGASSJune19[[#This Row],[Secondary Acct]],tblREGASSJune19[[#This Row],[Secondary  Name]],tblREGASSJune19[[#This Row],[Alloc4FUNC]])","v":"1823990OTHR REG ASSET-N CST187662RegA-CA Transp Electrification PilotOTHER"},1823990,"OTHR REG ASSET-N CST",187662,"RegA-CA Transp Electrification Pilot","OTHER",-243.88741999999999,{"$f":"IF(OR(tblREGASSJune19[[#This Row],[Alloc]]=\"IDU\",tblREGASSJune19[[#This Row],[Alloc]]=\"OR\",tblREGASSJune19[[#This Row],[Alloc]]=\"UT\",tblREGASSJune19[[#This Row],[Alloc]]=\"WYU\",tblREGASSJune19[[#This Row],[Alloc]]=\"WYP\",tblREGASSJune19[[#This Row],[Alloc]]=\"CA\",tblREGASSJune19[[#This Row],[Alloc]]=\"WA\"),\"SITUS\",tblREGASSJune19[[#This Row],[Alloc]])","v":"OTHER"},{"$f":"INDEX(tblREGASSLookup[FUNC],MATCH(tblREGASSJune19[[#This Row],[Concat]],tblREGASSLookup[Concat],0))","v":"P"},{"$f":"IF(tblREGASSJune19[[#This Row],[Total ($000)]]=0,\"NO\",IF(ISNA(tblREGASSJune19[[#This Row],[FUNC]]),\"YES\",IF(_xlfn.ISFORMULA(tblREGASSJune19[[#This Row],[FUNC]]),\"NO\",\"YES\")))","v":"NO"}]
[{"$f":"CONCATENATE(tblREGASSJune19[[#This Row],[Primary Account]],tblREGASSJune19[[#This Row],[Primary Name]],tblREGASSJune19[[#This Row],[Secondary Acct]],tblREGASSJune19[[#This Row],[Secondary  Name]],tblREGASSJune19[[#This Row],[Alloc4FUNC]])","v":"1823990OTHR REG ASSET-N CST187664RegA-WA Transp Electrification PilotOTHER"},1823990,"OTHR REG ASSET-N CST",187664,"RegA-WA Transp Electrification Pilot","OTHER",8.8391915384615398,{"$f":"IF(OR(tblREGASSJune19[[#This Row],[Alloc]]=\"IDU\",tblREGASSJune19[[#This Row],[Alloc]]=\"OR\",tblREGASSJune19[[#This Row],[Alloc]]=\"UT\",tblREGASSJune19[[#This Row],[Alloc]]=\"WYU\",tblREGASSJune19[[#This Row],[Alloc]]=\"WYP\",tblREGASSJune19[[#This Row],[Alloc]]=\"CA\",tblREGASSJune19[[#This Row],[Alloc]]=\"WA\"),\"SITUS\",tblREGASSJune19[[#This Row],[Alloc]])","v":"OTHER"},{"$f":"INDEX(tblREGASSLookup[FUNC],MATCH(tblREGASSJune19[[#This Row],[Concat]],tblREGASSLookup[Concat],0))","v":"P"},{"$f":"IF(tblREGASSJune19[[#This Row],[Total ($000)]]=0,\"NO\",IF(ISNA(tblREGASSJune19[[#This Row],[FUNC]]),\"YES\",IF(_xlfn.ISFORMULA(tblREGASSJune19[[#This Row],[FUNC]]),\"NO\",\"YES\")))","v":"NO"}]
[{"$f":"CONCATENATE(tblREGASSJune19[[#This Row],[Primary Account]],tblREGASSJune19[[#This Row],[Primary Name]],tblREGASSJune19[[#This Row],[Secondary Acct]],tblREGASSJune19[[#This Row],[Secondary  Name]],tblREGASSJune19[[#This Row],[Alloc4FUNC]])","v":"1823990OTHR REG ASSET-N CST187764IMPLEMENTATION COST II - RESIDENTIALOTHER"},1823990,"OTHR REG ASSET-N CST",187764,"IMPLEMENTATION COST II - RESIDENTIAL","OTHER",0,{"$f":"IF(OR(tblREGASSJune19[[#This Row],[Alloc]]=\"IDU\",tblREGASSJune19[[#This Row],[Alloc]]=\"OR\",tblREGASSJune19[[#This Row],[Alloc]]=\"UT\",tblREGASSJune19[[#This Row],[Alloc]]=\"WYU\",tblREGASSJune19[[#This Row],[Alloc]]=\"WYP\",tblREGASSJune19[[#This Row],[Alloc]]=\"CA\",tblREGASSJune19[[#This Row],[Alloc]]=\"WA\"),\"SITUS\",tblREGASSJune19[[#This Row],[Alloc]])","v":"OTHER"},{"$f":"INDEX(tblREGASSLookup[FUNC],MATCH(tblREGASSJune19[[#This Row],[Concat]],tblREGASSLookup[Concat],0))","v":{"$error":"#N/A"}},{"$f":"IF(tblREGASSJune19[[#This Row],[Total ($000)]]=0,\"NO\",IF(ISNA(tblREGASSJune19[[#This Row],[FUNC]]),\"YES\",IF(_xlfn.ISFORMULA(tblREGASSJune19[[#This Row],[FUNC]]),\"NO\",\"YES\")))","v":"NO"}]
[{"$f":"CONCATENATE(tblREGASSJune19[[#This Row],[Primary Account]],tblREGASSJune19[[#This Row],[Primary Name]],tblREGASSJune19[[#This Row],[Secondary Acct]],tblREGASSJune19[[#This Row],[Secondary  Name]],tblREGASSJune19[[#This Row],[Alloc4FUNC]])","v":"1823990OTHR REG ASSET-N CST187765IMPLEMENTATION COST II - NONRESIDENTIALOTHER"},1823990,"OTHR REG ASSET-N CST",187765,"IMPLEMENTATION COST II - NONRESIDENTIAL","OTHER",0,{"$f":"IF(OR(tblREGASSJune19[[#This Row],[Alloc]]=\"IDU\",tblREGASSJune19[[#This Row],[Alloc]]=\"OR\",tblREGASSJune19[[#This Row],[Alloc]]=\"UT\",tblREGASSJune19[[#This Row],[Alloc]]=\"WYU\",tblREGASSJune19[[#This Row],[Alloc]]=\"WYP\",tblREGASSJune19[[#This Row],[Alloc]]=\"CA\",tblREGASSJune19[[#This Row],[Alloc]]=\"WA\"),\"SITUS\",tblREGASSJune19[[#This Row],[Alloc]])","v":"OTHER"},{"$f":"INDEX(tblREGASSLookup[FUNC],MATCH(tblREGASSJune19[[#This Row],[Concat]],tblREGASSLookup[Concat],0))","v":{"$error":"#N/A"}},{"$f":"IF(tblREGASSJune19[[#This Row],[Total ($000)]]=0,\"NO\",IF(ISNA(tblREGASSJune19[[#This Row],[FUNC]]),\"YES\",IF(_xlfn.ISFORMULA(tblREGASSJune19[[#This Row],[FUNC]]),\"NO\",\"YES\")))","v":"NO"}]
[{"$f":"CONCATENATE(tblREGASSJune19[[#This Row],[Primary Account]],tblREGASSJune19[[#This Row],[Primary Name]],tblREGASSJune19[[#This Row],[Secondary Acct]],tblREGASSJune19[[#This Row],[Secondary  Name]],tblREGASSJune19[[#This Row],[Alloc4FUNC]])","v":"1823990OTHR REG ASSET-N CST187766IMPLEMENTATION COST II - NON-RESIDENTIALOTHER"},1823990,"OTHR REG ASSET-N CST",187766,"IMPLEMENTATION COST II - NON-RESIDENTIAL","OTHER",0,{"$f":"IF(OR(tblREGASSJune19[[#This Row],[Alloc]]=\"IDU\",tblREGASSJune19[[#This Row],[Alloc]]=\"OR\",tblREGASSJune19[[#This Row],[Alloc]]=\"UT\",tblREGASSJune19[[#This Row],[Alloc]]=\"WYU\",tblREGASSJune19[[#This Row],[Alloc]]=\"WYP\",tblREGASSJune19[[#This Row],[Alloc]]=\"CA\",tblREGASSJune19[[#This Row],[Alloc]]=\"WA\"),\"SITUS\",tblREGASSJune19[[#This Row],[Alloc]])","v":"OTHER"},{"$f":"INDEX(tblREGASSLookup[FUNC],MATCH(tblREGASSJune19[[#This Row],[Concat]],tblREGASSLookup[Concat],0))","v":{"$error":"#N/A"}},{"$f":"IF(tblREGASSJune19[[#This Row],[Total ($000)]]=0,\"NO\",IF(ISNA(tblREGASSJune19[[#This Row],[FUNC]]),\"YES\",IF(_xlfn.ISFORMULA(tblREGASSJune19[[#This Row],[FUNC]]),\"NO\",\"YES\")))","v":"NO"}]
[{"$f":"CONCATENATE(tblREGASSJune19[[#This Row],[Primary Account]],tblREGASSJune19[[#This Row],[Primary Name]],tblREGASSJune19[[#This Row],[Secondary Acct]],tblREGASSJune19[[#This Row],[Secondary  Name]],tblREGASSJune19[[#This Row],[Alloc4FUNC]])","v":"1823990OTHR REG ASSET-N CST187767IMPLEMENTATION COST 3 - RESIDENTIALOTHER"},1823990,"OTHR REG ASSET-N CST",187767,"IMPLEMENTATION COST 3 - RESIDENTIAL","OTHER",0,{"$f":"IF(OR(tblREGASSJune19[[#This Row],[Alloc]]=\"IDU\",tblREGASSJune19[[#This Row],[Alloc]]=\"OR\",tblREGASSJune19[[#This Row],[Alloc]]=\"UT\",tblREGASSJune19[[#This Row],[Alloc]]=\"WYU\",tblREGASSJune19[[#This Row],[Alloc]]=\"WYP\",tblREGASSJune19[[#This Row],[Alloc]]=\"CA\",tblREGASSJune19[[#This Row],[Alloc]]=\"WA\"),\"SITUS\",tblREGASSJune19[[#This Row],[Alloc]])","v":"OTHER"},{"$f":"INDEX(tblREGASSLookup[FUNC],MATCH(tblREGASSJune19[[#This Row],[Concat]],tblREGASSLookup[Concat],0))","v":{"$error":"#N/A"}},{"$f":"IF(tblREGASSJune19[[#This Row],[Total ($000)]]=0,\"NO\",IF(ISNA(tblREGASSJune19[[#This Row],[FUNC]]),\"YES\",IF(_xlfn.ISFORMULA(tblREGASSJune19[[#This Row],[FUNC]]),\"NO\",\"YES\")))","v":"NO"}]
[{"$f":"CONCATENATE(tblREGASSJune19[[#This Row],[Primary Account]],tblREGASSJune19[[#This Row],[Primary Name]],tblREGASSJune19[[#This Row],[Secondary Acct]],tblREGASSJune19[[#This Row],[Secondary  Name]],tblREGASSJune19[[#This Row],[Alloc4FUNC]])","v":"1823990OTHR REG ASSET-N CST187768IMPLEMENTATION COST 3 - NON RES SMALLOTHER"},1823990,"OTHR REG ASSET-N CST",187768,"IMPLEMENTATION COST 3 - NON RES SMALL","OTHER",0,{"$f":"IF(OR(tblREGASSJune19[[#This Row],[Alloc]]=\"IDU\",tblREGASSJune19[[#This Row],[Alloc]]=\"OR\",tblREGASSJune19[[#This Row],[Alloc]]=\"UT\",tblREGASSJune19[[#This Row],[Alloc]]=\"WYU\",tblREGASSJune19[[#This Row],[Alloc]]=\"WYP\",tblREGASSJune19[[#This Row],[Alloc]]=\"CA\",tblREGASSJune19[[#This Row],[Alloc]]=\"WA\"),\"SITUS\",tblREGASSJune19[[#This Row],[Alloc]])","v":"OTHER"},{"$f":"INDEX(tblREGASSLookup[FUNC],MATCH(tblREGASSJune19[[#This Row],[Concat]],tblREGASSLookup[Concat],0))","v":{"$error":"#N/A"}},{"$f":"IF(tblREGASSJune19[[#This Row],[Total ($000)]]=0,\"NO\",IF(ISNA(tblREGASSJune19[[#This Row],[FUNC]]),\"YES\",IF(_xlfn.ISFORMULA(tblREGASSJune19[[#This Row],[FUNC]]),\"NO\",\"YES\")))","v":"NO"}]
[{"$f":"CONCATENATE(tblREGASSJune19[[#This Row],[Primary Account]],tblREGASSJune19[[#This Row],[Primary Name]],tblREGASSJune19[[#This Row],[Secondary Acct]],tblREGASSJune19[[#This Row],[Secondary  Name]],tblREGASSJune19[[#This Row],[Alloc4FUNC]])","v":"1823990OTHR REG ASSET-N CST187769IMPLEMENTATION COST 3 - NON RES LARGEOTHER"},1823990,"OTHR REG ASSET-N CST",187769,"IMPLEMENTATION COST 3 - NON RES LARGE","OTHER",0,{"$f":"IF(OR(tblREGASSJune19[[#This Row],[Alloc]]=\"IDU\",tblREGASSJune19[[#This Row],[Alloc]]=\"OR\",tblREGASSJune19[[#This Row],[Alloc]]=\"UT\",tblREGASSJune19[[#This Row],[Alloc]]=\"WYU\",tblREGASSJune19[[#This Row],[Alloc]]=\"WYP\",tblREGASSJune19[[#This Row],[Alloc]]=\"CA\",tblREGASSJune19[[#This Row],[Alloc]]=\"WA\"),\"SITUS\",tblREGASSJune19[[#This Row],[Alloc]])","v":"OTHER"},{"$f":"INDEX(tblREGASSLookup[FUNC],MATCH(tblREGASSJune19[[#This Row],[Concat]],tblREGASSLookup[Concat],0))","v":{"$error":"#N/A"}},{"$f":"IF(tblREGASSJune19[[#This Row],[Total ($000)]]=0,\"NO\",IF(ISNA(tblREGASSJune19[[#This Row],[FUNC]]),\"YES\",IF(_xlfn.ISFORMULA(tblREGASSJune19[[#This Row],[FUNC]]),\"NO\",\"YES\")))","v":"NO"}]
[{"$f":"CONCATENATE(tblREGASSJune19[[#This Row],[Primary Account]],tblREGASSJune19[[#This Row],[Primary Name]],tblREGASSJune19[[#This Row],[Secondary Acct]],tblREGASSJune19[[#This Row],[Secondary  Name]],tblREGASSJune19[[#This Row],[Alloc4FUNC]])","v":"1823990OTHR REG ASSET-N CST187802Reg Asset - CA ECAC CY2012OTHER"},1823990,"OTHR REG ASSET-N CST",187802,"Reg Asset - CA ECAC CY2012","OTHER",0,{"$f":"IF(OR(tblREGASSJune19[[#This Row],[Alloc]]=\"IDU\",tblREGASSJune19[[#This Row],[Alloc]]=\"OR\",tblREGASSJune19[[#This Row],[Alloc]]=\"UT\",tblREGASSJune19[[#This Row],[Alloc]]=\"WYU\",tblREGASSJune19[[#This Row],[Alloc]]=\"WYP\",tblREGASSJune19[[#This Row],[Alloc]]=\"CA\",tblREGASSJune19[[#This Row],[Alloc]]=\"WA\"),\"SITUS\",tblREGASSJune19[[#This Row],[Alloc]])","v":"OTHER"},{"$f":"INDEX(tblREGASSLookup[FUNC],MATCH(tblREGASSJune19[[#This Row],[Concat]],tblREGASSLookup[Concat],0))","v":{"$error":"#N/A"}},{"$f":"IF(tblREGASSJune19[[#This Row],[Total ($000)]]=0,\"NO\",IF(ISNA(tblREGASSJune19[[#This Row],[FUNC]]),\"YES\",IF(_xlfn.ISFORMULA(tblREGASSJune19[[#This Row],[FUNC]]),\"NO\",\"YES\")))","v":"NO"}]
[{"$f":"CONCATENATE(tblREGASSJune19[[#This Row],[Primary Account]],tblREGASSJune19[[#This Row],[Primary Name]],tblREGASSJune19[[#This Row],[Secondary Acct]],tblREGASSJune19[[#This Row],[Secondary  Name]],tblREGASSJune19[[#This Row],[Alloc4FUNC]])","v":"1823990OTHR REG ASSET-N CST187803Reg Asset  - CA ECAC CY2013OTHER"},1823990,"OTHR REG ASSET-N CST",187803,"Reg Asset  - CA ECAC CY2013","OTHER",0,{"$f":"IF(OR(tblREGASSJune19[[#This Row],[Alloc]]=\"IDU\",tblREGASSJune19[[#This Row],[Alloc]]=\"OR\",tblREGASSJune19[[#This Row],[Alloc]]=\"UT\",tblREGASSJune19[[#This Row],[Alloc]]=\"WYU\",tblREGASSJune19[[#This Row],[Alloc]]=\"WYP\",tblREGASSJune19[[#This Row],[Alloc]]=\"CA\",tblREGASSJune19[[#This Row],[Alloc]]=\"WA\"),\"SITUS\",tblREGASSJune19[[#This Row],[Alloc]])","v":"OTHER"},{"$f":"INDEX(tblREGASSLookup[FUNC],MATCH(tblREGASSJune19[[#This Row],[Concat]],tblREGASSLookup[Concat],0))","v":{"$error":"#N/A"}},{"$f":"IF(tblREGASSJune19[[#This Row],[Total ($000)]]=0,\"NO\",IF(ISNA(tblREGASSJune19[[#This Row],[FUNC]]),\"YES\",IF(_xlfn.ISFORMULA(tblREGASSJune19[[#This Row],[FUNC]]),\"NO\",\"YES\")))","v":"NO"}]
[{"$f":"CONCATENATE(tblREGASSJune19[[#This Row],[Primary Account]],tblREGASSJune19[[#This Row],[Primary Name]],tblREGASSJune19[[#This Row],[Secondary Acct]],tblREGASSJune19[[#This Row],[Secondary  Name]],tblREGASSJune19[[#This Row],[Alloc4FUNC]])","v":"1823990OTHR REG ASSET-N CST187804Reg Asset  - CA ECAC CY2014OTHER"},1823990,"OTHR REG ASSET-N CST",187804,"Reg Asset  - CA ECAC CY2014","OTHER",0,{"$f":"IF(OR(tblREGASSJune19[[#This Row],[Alloc]]=\"IDU\",tblREGASSJune19[[#This Row],[Alloc]]=\"OR\",tblREGASSJune19[[#This Row],[Alloc]]=\"UT\",tblREGASSJune19[[#This Row],[Alloc]]=\"WYU\",tblREGASSJune19[[#This Row],[Alloc]]=\"WYP\",tblREGASSJune19[[#This Row],[Alloc]]=\"CA\",tblREGASSJune19[[#This Row],[Alloc]]=\"WA\"),\"SITUS\",tblREGASSJune19[[#This Row],[Alloc]])","v":"OTHER"},{"$f":"INDEX(tblREGASSLookup[FUNC],MATCH(tblREGASSJune19[[#This Row],[Concat]],tblREGASSLookup[Concat],0))","v":{"$error":"#N/A"}},{"$f":"IF(tblREGASSJune19[[#This Row],[Total ($000)]]=0,\"NO\",IF(ISNA(tblREGASSJune19[[#This Row],[FUNC]]),\"YES\",IF(_xlfn.ISFORMULA(tblREGASSJune19[[#This Row],[FUNC]]),\"NO\",\"YES\")))","v":"NO"}]
[{"$f":"CONCATENATE(tblREGASSJune19[[#This Row],[Primary Account]],tblREGASSJune19[[#This Row],[Primary Name]],tblREGASSJune19[[#This Row],[Secondary Acct]],tblREGASSJune19[[#This Row],[Secondary  Name]],tblREGASSJune19[[#This Row],[Alloc4FUNC]])","v":"1823990OTHR REG ASSET-N CST187805Reg Asset  - CA ECAC CY2015OTHER"},1823990,"OTHR REG ASSET-N CST",187805,"Reg Asset  - CA ECAC CY2015","OTHER",0,{"$f":"IF(OR(tblREGASSJune19[[#This Row],[Alloc]]=\"IDU\",tblREGASSJune19[[#This Row],[Alloc]]=\"OR\",tblREGASSJune19[[#This Row],[Alloc]]=\"UT\",tblREGASSJune19[[#This Row],[Alloc]]=\"WYU\",tblREGASSJune19[[#This Row],[Alloc]]=\"WYP\",tblREGASSJune19[[#This Row],[Alloc]]=\"CA\",tblREGASSJune19[[#This Row],[Alloc]]=\"WA\"),\"SITUS\",tblREGASSJune19[[#This Row],[Alloc]])","v":"OTHER"},{"$f":"INDEX(tblREGASSLookup[FUNC],MATCH(tblREGASSJune19[[#This Row],[Concat]],tblREGASSLookup[Concat],0))","v":"P"},{"$f":"IF(tblREGASSJune19[[#This Row],[Total ($000)]]=0,\"NO\",IF(ISNA(tblREGASSJune19[[#This Row],[FUNC]]),\"YES\",IF(_xlfn.ISFORMULA(tblREGASSJune19[[#This Row],[FUNC]]),\"NO\",\"YES\")))","v":"NO"}]
[{"$f":"CONCATENATE(tblREGASSJune19[[#This Row],[Primary Account]],tblREGASSJune19[[#This Row],[Primary Name]],tblREGASSJune19[[#This Row],[Secondary Acct]],tblREGASSJune19[[#This Row],[Secondary  Name]],tblREGASSJune19[[#This Row],[Alloc4FUNC]])","v":"1823990OTHR REG ASSET-N CST187806Reg Asset  - CA ECAC CY2016OTHER"},1823990,"OTHR REG ASSET-N CST",187806,"Reg Asset  - CA ECAC CY2016","OTHER",0,{"$f":"IF(OR(tblREGASSJune19[[#This Row],[Alloc]]=\"IDU\",tblREGASSJune19[[#This Row],[Alloc]]=\"OR\",tblREGASSJune19[[#This Row],[Alloc]]=\"UT\",tblREGASSJune19[[#This Row],[Alloc]]=\"WYU\",tblREGASSJune19[[#This Row],[Alloc]]=\"WYP\",tblREGASSJune19[[#This Row],[Alloc]]=\"CA\",tblREGASSJune19[[#This Row],[Alloc]]=\"WA\"),\"SITUS\",tblREGASSJune19[[#This Row],[Alloc]])","v":"OTHER"},{"$f":"INDEX(tblREGASSLookup[FUNC],MATCH(tblREGASSJune19[[#This Row],[Concat]],tblREGASSLookup[Concat],0))","v":"P"},{"$f":"IF(tblREGASSJune19[[#This Row],[Total ($000)]]=0,\"NO\",IF(ISNA(tblREGASSJune19[[#This Row],[FUNC]]),\"YES\",IF(_xlfn.ISFORMULA(tblREGASSJune19[[#This Row],[FUNC]]),\"NO\",\"YES\")))","v":"NO"}]
[{"$f":"CONCATENATE(tblREGASSJune19[[#This Row],[Primary Account]],tblREGASSJune19[[#This Row],[Primary Name]],tblREGASSJune19[[#This Row],[Secondary Acct]],tblREGASSJune19[[#This Row],[Secondary  Name]],tblREGASSJune19[[#This Row],[Alloc4FUNC]])","v":"1823990OTHR REG ASSET-N CST187807CONTRA REG ASSET - CA ECAC CY2012OTHER"},1823990,"OTHR REG ASSET-N CST",187807,"CONTRA REG ASSET - CA ECAC CY2012","OTHER",0,{"$f":"IF(OR(tblREGASSJune19[[#This Row],[Alloc]]=\"IDU\",tblREGASSJune19[[#This Row],[Alloc]]=\"OR\",tblREGASSJune19[[#This Row],[Alloc]]=\"UT\",tblREGASSJune19[[#This Row],[Alloc]]=\"WYU\",tblREGASSJune19[[#This Row],[Alloc]]=\"WYP\",tblREGASSJune19[[#This Row],[Alloc]]=\"CA\",tblREGASSJune19[[#This Row],[Alloc]]=\"WA\"),\"SITUS\",tblREGASSJune19[[#This Row],[Alloc]])","v":"OTHER"},{"$f":"INDEX(tblREGASSLookup[FUNC],MATCH(tblREGASSJune19[[#This Row],[Concat]],tblREGASSLookup[Concat],0))","v":{"$error":"#N/A"}},{"$f":"IF(tblREGASSJune19[[#This Row],[Total ($000)]]=0,\"NO\",IF(ISNA(tblREGASSJune19[[#This Row],[FUNC]]),\"YES\",IF(_xlfn.ISFORMULA(tblREGASSJune19[[#This Row],[FUNC]]),\"NO\",\"YES\")))","v":"NO"}]
[{"$f":"CONCATENATE(tblREGASSJune19[[#This Row],[Primary Account]],tblREGASSJune19[[#This Row],[Primary Name]],tblREGASSJune19[[#This Row],[Secondary Acct]],tblREGASSJune19[[#This Row],[Secondary  Name]],tblREGASSJune19[[#This Row],[Alloc4FUNC]])","v":"1823990OTHR REG ASSET-N CST187808Contra Reg Asset - CA ECAC CY2013OTHER"},1823990,"OTHR REG ASSET-N CST",187808,"Contra Reg Asset - CA ECAC CY2013","OTHER",0,{"$f":"IF(OR(tblREGASSJune19[[#This Row],[Alloc]]=\"IDU\",tblREGASSJune19[[#This Row],[Alloc]]=\"OR\",tblREGASSJune19[[#This Row],[Alloc]]=\"UT\",tblREGASSJune19[[#This Row],[Alloc]]=\"WYU\",tblREGASSJune19[[#This Row],[Alloc]]=\"WYP\",tblREGASSJune19[[#This Row],[Alloc]]=\"CA\",tblREGASSJune19[[#This Row],[Alloc]]=\"WA\"),\"SITUS\",tblREGASSJune19[[#This Row],[Alloc]])","v":"OTHER"},{"$f":"INDEX(tblREGASSLookup[FUNC],MATCH(tblREGASSJune19[[#This Row],[Concat]],tblREGASSLookup[Concat],0))","v":{"$error":"#N/A"}},{"$f":"IF(tblREGASSJune19[[#This Row],[Total ($000)]]=0,\"NO\",IF(ISNA(tblREGASSJune19[[#This Row],[FUNC]]),\"YES\",IF(_xlfn.ISFORMULA(tblREGASSJune19[[#This Row],[FUNC]]),\"NO\",\"YES\")))","v":"NO"}]
[{"$f":"CONCATENATE(tblREGASSJune19[[#This Row],[Primary Account]],tblREGASSJune19[[#This Row],[Primary Name]],tblREGASSJune19[[#This Row],[Secondary Acct]],tblREGASSJune19[[#This Row],[Secondary  Name]],tblREGASSJune19[[#This Row],[Alloc4FUNC]])","v":"1823990OTHR REG ASSET-N CST187809Contra Reg Asset - CA ECAC CY2014OTHER"},1823990,"OTHR REG ASSET-N CST",187809,"Contra Reg Asset - CA ECAC CY2014","OTHER",0,{"$f":"IF(OR(tblREGASSJune19[[#This Row],[Alloc]]=\"IDU\",tblREGASSJune19[[#This Row],[Alloc]]=\"OR\",tblREGASSJune19[[#This Row],[Alloc]]=\"UT\",tblREGASSJune19[[#This Row],[Alloc]]=\"WYU\",tblREGASSJune19[[#This Row],[Alloc]]=\"WYP\",tblREGASSJune19[[#This Row],[Alloc]]=\"CA\",tblREGASSJune19[[#This Row],[Alloc]]=\"WA\"),\"SITUS\",tblREGASSJune19[[#This Row],[Alloc]])","v":"OTHER"},{"$f":"INDEX(tblREGASSLookup[FUNC],MATCH(tblREGASSJune19[[#This Row],[Concat]],tblREGASSLookup[Concat],0))","v":{"$error":"#N/A"}},{"$f":"IF(tblREGASSJune19[[#This Row],[Total ($000)]]=0,\"NO\",IF(ISNA(tblREGASSJune19[[#This Row],[FUNC]]),\"YES\",IF(_xlfn.ISFORMULA(tblREGASSJune19[[#This Row],[FUNC]]),\"NO\",\"YES\")))","v":"NO"}]
[{"$f":"CONCATENATE(tblREGASSJune19[[#This Row],[Primary Account]],tblREGASSJune19[[#This Row],[Primary Name]],tblREGASSJune19[[#This Row],[Secondary Acct]],tblREGASSJune19[[#This Row],[Secondary  Name]],tblREGASSJune19[[#This Row],[Alloc4FUNC]])","v":"1823990OTHR REG ASSET-N CST187810Reg Asset - ID ECAM Dec11-Nov12 MnsantoOTHER"},1823990,"OTHR REG ASSET-N CST",187810,"Reg Asset - ID ECAM Dec11-Nov12 Mnsanto","OTHER",0,{"$f":"IF(OR(tblREGASSJune19[[#This Row],[Alloc]]=\"IDU\",tblREGASSJune19[[#This Row],[Alloc]]=\"OR\",tblREGASSJune19[[#This Row],[Alloc]]=\"UT\",tblREGASSJune19[[#This Row],[Alloc]]=\"WYU\",tblREGASSJune19[[#This Row],[Alloc]]=\"WYP\",tblREGASSJune19[[#This Row],[Alloc]]=\"CA\",tblREGASSJune19[[#This Row],[Alloc]]=\"WA\"),\"SITUS\",tblREGASSJune19[[#This Row],[Alloc]])","v":"OTHER"},{"$f":"INDEX(tblREGASSLookup[FUNC],MATCH(tblREGASSJune19[[#This Row],[Concat]],tblREGASSLookup[Concat],0))","v":{"$error":"#N/A"}},{"$f":"IF(tblREGASSJune19[[#This Row],[Total ($000)]]=0,\"NO\",IF(ISNA(tblREGASSJune19[[#This Row],[FUNC]]),\"YES\",IF(_xlfn.ISFORMULA(tblREGASSJune19[[#This Row],[FUNC]]),\"NO\",\"YES\")))","v":"NO"}]
[{"$f":"CONCATENATE(tblREGASSJune19[[#This Row],[Primary Account]],tblREGASSJune19[[#This Row],[Primary Name]],tblREGASSJune19[[#This Row],[Secondary Acct]],tblREGASSJune19[[#This Row],[Secondary  Name]],tblREGASSJune19[[#This Row],[Alloc4FUNC]])","v":"1823990OTHR REG ASSET-N CST187811Reg Asset - ID ECAM Dec11-Nov12 AgriumOTHER"},1823990,"OTHR REG ASSET-N CST",187811,"Reg Asset - ID ECAM Dec11-Nov12 Agrium","OTHER",0,{"$f":"IF(OR(tblREGASSJune19[[#This Row],[Alloc]]=\"IDU\",tblREGASSJune19[[#This Row],[Alloc]]=\"OR\",tblREGASSJune19[[#This Row],[Alloc]]=\"UT\",tblREGASSJune19[[#This Row],[Alloc]]=\"WYU\",tblREGASSJune19[[#This Row],[Alloc]]=\"WYP\",tblREGASSJune19[[#This Row],[Alloc]]=\"CA\",tblREGASSJune19[[#This Row],[Alloc]]=\"WA\"),\"SITUS\",tblREGASSJune19[[#This Row],[Alloc]])","v":"OTHER"},{"$f":"INDEX(tblREGASSLookup[FUNC],MATCH(tblREGASSJune19[[#This Row],[Concat]],tblREGASSLookup[Concat],0))","v":{"$error":"#N/A"}},{"$f":"IF(tblREGASSJune19[[#This Row],[Total ($000)]]=0,\"NO\",IF(ISNA(tblREGASSJune19[[#This Row],[FUNC]]),\"YES\",IF(_xlfn.ISFORMULA(tblREGASSJune19[[#This Row],[FUNC]]),\"NO\",\"YES\")))","v":"NO"}]
[{"$f":"CONCATENATE(tblREGASSJune19[[#This Row],[Primary Account]],tblREGASSJune19[[#This Row],[Primary Name]],tblREGASSJune19[[#This Row],[Secondary Acct]],tblREGASSJune19[[#This Row],[Secondary  Name]],tblREGASSJune19[[#This Row],[Alloc4FUNC]])","v":"1823990OTHR REG ASSET-N CST187812Reg Asset - ID ECAM Dec11-Nov12OTHER"},1823990,"OTHR REG ASSET-N CST",187812,"Reg Asset - ID ECAM Dec11-Nov12","OTHER",0,{"$f":"IF(OR(tblREGASSJune19[[#This Row],[Alloc]]=\"IDU\",tblREGASSJune19[[#This Row],[Alloc]]=\"OR\",tblREGASSJune19[[#This Row],[Alloc]]=\"UT\",tblREGASSJune19[[#This Row],[Alloc]]=\"WYU\",tblREGASSJune19[[#This Row],[Alloc]]=\"WYP\",tblREGASSJune19[[#This Row],[Alloc]]=\"CA\",tblREGASSJune19[[#This Row],[Alloc]]=\"WA\"),\"SITUS\",tblREGASSJune19[[#This Row],[Alloc]])","v":"OTHER"},{"$f":"INDEX(tblREGASSLookup[FUNC],MATCH(tblREGASSJune19[[#This Row],[Concat]],tblREGASSLookup[Concat],0))","v":{"$error":"#N/A"}},{"$f":"IF(tblREGASSJune19[[#This Row],[Total ($000)]]=0,\"NO\",IF(ISNA(tblREGASSJune19[[#This Row],[FUNC]]),\"YES\",IF(_xlfn.ISFORMULA(tblREGASSJune19[[#This Row],[FUNC]]),\"NO\",\"YES\")))","v":"NO"}]
[{"$f":"CONCATENATE(tblREGASSJune19[[#This Row],[Primary Account]],tblREGASSJune19[[#This Row],[Primary Name]],tblREGASSJune19[[#This Row],[Secondary Acct]],tblREGASSJune19[[#This Row],[Secondary  Name]],tblREGASSJune19[[#This Row],[Alloc4FUNC]])","v":"1823990OTHR REG ASSET-N CST187813Reg Asset  - ID ECAM Dec12-Nov13OTHER"},1823990,"OTHR REG ASSET-N CST",187813,"Reg Asset  - ID ECAM Dec12-Nov13","OTHER",0,{"$f":"IF(OR(tblREGASSJune19[[#This Row],[Alloc]]=\"IDU\",tblREGASSJune19[[#This Row],[Alloc]]=\"OR\",tblREGASSJune19[[#This Row],[Alloc]]=\"UT\",tblREGASSJune19[[#This Row],[Alloc]]=\"WYU\",tblREGASSJune19[[#This Row],[Alloc]]=\"WYP\",tblREGASSJune19[[#This Row],[Alloc]]=\"CA\",tblREGASSJune19[[#This Row],[Alloc]]=\"WA\"),\"SITUS\",tblREGASSJune19[[#This Row],[Alloc]])","v":"OTHER"},{"$f":"INDEX(tblREGASSLookup[FUNC],MATCH(tblREGASSJune19[[#This Row],[Concat]],tblREGASSLookup[Concat],0))","v":{"$error":"#N/A"}},{"$f":"IF(tblREGASSJune19[[#This Row],[Total ($000)]]=0,\"NO\",IF(ISNA(tblREGASSJune19[[#This Row],[FUNC]]),\"YES\",IF(_xlfn.ISFORMULA(tblREGASSJune19[[#This Row],[FUNC]]),\"NO\",\"YES\")))","v":"NO"}]
[{"$f":"CONCATENATE(tblREGASSJune19[[#This Row],[Primary Account]],tblREGASSJune19[[#This Row],[Primary Name]],tblREGASSJune19[[#This Row],[Secondary Acct]],tblREGASSJune19[[#This Row],[Secondary  Name]],tblREGASSJune19[[#This Row],[Alloc4FUNC]])","v":"1823990OTHR REG ASSET-N CST187814Reg Asset  - ID ECAM Dec13-Nov14OTHER"},1823990,"OTHR REG ASSET-N CST",187814,"Reg Asset  - ID ECAM Dec13-Nov14","OTHER",0,{"$f":"IF(OR(tblREGASSJune19[[#This Row],[Alloc]]=\"IDU\",tblREGASSJune19[[#This Row],[Alloc]]=\"OR\",tblREGASSJune19[[#This Row],[Alloc]]=\"UT\",tblREGASSJune19[[#This Row],[Alloc]]=\"WYU\",tblREGASSJune19[[#This Row],[Alloc]]=\"WYP\",tblREGASSJune19[[#This Row],[Alloc]]=\"CA\",tblREGASSJune19[[#This Row],[Alloc]]=\"WA\"),\"SITUS\",tblREGASSJune19[[#This Row],[Alloc]])","v":"OTHER"},{"$f":"INDEX(tblREGASSLookup[FUNC],MATCH(tblREGASSJune19[[#This Row],[Concat]],tblREGASSLookup[Concat],0))","v":{"$error":"#N/A"}},{"$f":"IF(tblREGASSJune19[[#This Row],[Total ($000)]]=0,\"NO\",IF(ISNA(tblREGASSJune19[[#This Row],[FUNC]]),\"YES\",IF(_xlfn.ISFORMULA(tblREGASSJune19[[#This Row],[FUNC]]),\"NO\",\"YES\")))","v":"NO"}]
[{"$f":"CONCATENATE(tblREGASSJune19[[#This Row],[Primary Account]],tblREGASSJune19[[#This Row],[Primary Name]],tblREGASSJune19[[#This Row],[Secondary Acct]],tblREGASSJune19[[#This Row],[Secondary  Name]],tblREGASSJune19[[#This Row],[Alloc4FUNC]])","v":"1823990OTHR REG ASSET-N CST187815Reg Asset - ID ECAM Dec12-Nov13 MnsantoOTHER"},1823990,"OTHR REG ASSET-N CST",187815,"Reg Asset - ID ECAM Dec12-Nov13 Mnsanto","OTHER",0,{"$f":"IF(OR(tblREGASSJune19[[#This Row],[Alloc]]=\"IDU\",tblREGASSJune19[[#This Row],[Alloc]]=\"OR\",tblREGASSJune19[[#This Row],[Alloc]]=\"UT\",tblREGASSJune19[[#This Row],[Alloc]]=\"WYU\",tblREGASSJune19[[#This Row],[Alloc]]=\"WYP\",tblREGASSJune19[[#This Row],[Alloc]]=\"CA\",tblREGASSJune19[[#This Row],[Alloc]]=\"WA\"),\"SITUS\",tblREGASSJune19[[#This Row],[Alloc]])","v":"OTHER"},{"$f":"INDEX(tblREGASSLookup[FUNC],MATCH(tblREGASSJune19[[#This Row],[Concat]],tblREGASSLookup[Concat],0))","v":{"$error":"#N/A"}},{"$f":"IF(tblREGASSJune19[[#This Row],[Total ($000)]]=0,\"NO\",IF(ISNA(tblREGASSJune19[[#This Row],[FUNC]]),\"YES\",IF(_xlfn.ISFORMULA(tblREGASSJune19[[#This Row],[FUNC]]),\"NO\",\"YES\")))","v":"NO"}]
[{"$f":"CONCATENATE(tblREGASSJune19[[#This Row],[Primary Account]],tblREGASSJune19[[#This Row],[Primary Name]],tblREGASSJune19[[#This Row],[Secondary Acct]],tblREGASSJune19[[#This Row],[Secondary  Name]],tblREGASSJune19[[#This Row],[Alloc4FUNC]])","v":"1823990OTHR REG ASSET-N CST187816REG ASSET - ID ECAM DEC12-NOV13 AGRIUMOTHER"},1823990,"OTHR REG ASSET-N CST",187816,"REG ASSET - ID ECAM DEC12-NOV13 AGRIUM","OTHER",0,{"$f":"IF(OR(tblREGASSJune19[[#This Row],[Alloc]]=\"IDU\",tblREGASSJune19[[#This Row],[Alloc]]=\"OR\",tblREGASSJune19[[#This Row],[Alloc]]=\"UT\",tblREGASSJune19[[#This Row],[Alloc]]=\"WYU\",tblREGASSJune19[[#This Row],[Alloc]]=\"WYP\",tblREGASSJune19[[#This Row],[Alloc]]=\"CA\",tblREGASSJune19[[#This Row],[Alloc]]=\"WA\"),\"SITUS\",tblREGASSJune19[[#This Row],[Alloc]])","v":"OTHER"},{"$f":"INDEX(tblREGASSLookup[FUNC],MATCH(tblREGASSJune19[[#This Row],[Concat]],tblREGASSLookup[Concat],0))","v":{"$error":"#N/A"}},{"$f":"IF(tblREGASSJune19[[#This Row],[Total ($000)]]=0,\"NO\",IF(ISNA(tblREGASSJune19[[#This Row],[FUNC]]),\"YES\",IF(_xlfn.ISFORMULA(tblREGASSJune19[[#This Row],[FUNC]]),\"NO\",\"YES\")))","v":"NO"}]
[{"$f":"CONCATENATE(tblREGASSJune19[[#This Row],[Primary Account]],tblREGASSJune19[[#This Row],[Primary Name]],tblREGASSJune19[[#This Row],[Secondary Acct]],tblREGASSJune19[[#This Row],[Secondary  Name]],tblREGASSJune19[[#This Row],[Alloc4FUNC]])","v":"1823990OTHR REG ASSET-N CST187817Contra Reg Asset - ID ECAM Dec11-Nov12OTHER"},1823990,"OTHR REG ASSET-N CST",187817,"Contra Reg Asset - ID ECAM Dec11-Nov12","OTHER",0,{"$f":"IF(OR(tblREGASSJune19[[#This Row],[Alloc]]=\"IDU\",tblREGASSJune19[[#This Row],[Alloc]]=\"OR\",tblREGASSJune19[[#This Row],[Alloc]]=\"UT\",tblREGASSJune19[[#This Row],[Alloc]]=\"WYU\",tblREGASSJune19[[#This Row],[Alloc]]=\"WYP\",tblREGASSJune19[[#This Row],[Alloc]]=\"CA\",tblREGASSJune19[[#This Row],[Alloc]]=\"WA\"),\"SITUS\",tblREGASSJune19[[#This Row],[Alloc]])","v":"OTHER"},{"$f":"INDEX(tblREGASSLookup[FUNC],MATCH(tblREGASSJune19[[#This Row],[Concat]],tblREGASSLookup[Concat],0))","v":{"$error":"#N/A"}},{"$f":"IF(tblREGASSJune19[[#This Row],[Total ($000)]]=0,\"NO\",IF(ISNA(tblREGASSJune19[[#This Row],[FUNC]]),\"YES\",IF(_xlfn.ISFORMULA(tblREGASSJune19[[#This Row],[FUNC]]),\"NO\",\"YES\")))","v":"NO"}]
[{"$f":"CONCATENATE(tblREGASSJune19[[#This Row],[Primary Account]],tblREGASSJune19[[#This Row],[Primary Name]],tblREGASSJune19[[#This Row],[Secondary Acct]],tblREGASSJune19[[#This Row],[Secondary  Name]],tblREGASSJune19[[#This Row],[Alloc4FUNC]])","v":"1823990OTHR REG ASSET-N CST187818Contra Reg Asset - ID ECAM Dec12-Nov13OTHER"},1823990,"OTHR REG ASSET-N CST",187818,"Contra Reg Asset - ID ECAM Dec12-Nov13","OTHER",0,{"$f":"IF(OR(tblREGASSJune19[[#This Row],[Alloc]]=\"IDU\",tblREGASSJune19[[#This Row],[Alloc]]=\"OR\",tblREGASSJune19[[#This Row],[Alloc]]=\"UT\",tblREGASSJune19[[#This Row],[Alloc]]=\"WYU\",tblREGASSJune19[[#This Row],[Alloc]]=\"WYP\",tblREGASSJune19[[#This Row],[Alloc]]=\"CA\",tblREGASSJune19[[#This Row],[Alloc]]=\"WA\"),\"SITUS\",tblREGASSJune19[[#This Row],[Alloc]])","v":"OTHER"},{"$f":"INDEX(tblREGASSLookup[FUNC],MATCH(tblREGASSJune19[[#This Row],[Concat]],tblREGASSLookup[Concat],0))","v":{"$error":"#N/A"}},{"$f":"IF(tblREGASSJune19[[#This Row],[Total ($000)]]=0,\"NO\",IF(ISNA(tblREGASSJune19[[#This Row],[FUNC]]),\"YES\",IF(_xlfn.ISFORMULA(tblREGASSJune19[[#This Row],[FUNC]]),\"NO\",\"YES\")))","v":"NO"}]
[{"$f":"CONCATENATE(tblREGASSJune19[[#This Row],[Primary Account]],tblREGASSJune19[[#This Row],[Primary Name]],tblREGASSJune19[[#This Row],[Secondary Acct]],tblREGASSJune19[[#This Row],[Secondary  Name]],tblREGASSJune19[[#This Row],[Alloc4FUNC]])","v":"1823990OTHR REG ASSET-N CST187819Contra Reg Asset - ID ECAM Dec13-Nov14OTHER"},1823990,"OTHR REG ASSET-N CST",187819,"Contra Reg Asset - ID ECAM Dec13-Nov14","OTHER",0,{"$f":"IF(OR(tblREGASSJune19[[#This Row],[Alloc]]=\"IDU\",tblREGASSJune19[[#This Row],[Alloc]]=\"OR\",tblREGASSJune19[[#This Row],[Alloc]]=\"UT\",tblREGASSJune19[[#This Row],[Alloc]]=\"WYU\",tblREGASSJune19[[#This Row],[Alloc]]=\"WYP\",tblREGASSJune19[[#This Row],[Alloc]]=\"CA\",tblREGASSJune19[[#This Row],[Alloc]]=\"WA\"),\"SITUS\",tblREGASSJune19[[#This Row],[Alloc]])","v":"OTHER"},{"$f":"INDEX(tblREGASSLookup[FUNC],MATCH(tblREGASSJune19[[#This Row],[Concat]],tblREGASSLookup[Concat],0))","v":{"$error":"#N/A"}},{"$f":"IF(tblREGASSJune19[[#This Row],[Total ($000)]]=0,\"NO\",IF(ISNA(tblREGASSJune19[[#This Row],[FUNC]]),\"YES\",IF(_xlfn.ISFORMULA(tblREGASSJune19[[#This Row],[FUNC]]),\"NO\",\"YES\")))","v":"NO"}]
[{"$f":"CONCATENATE(tblREGASSJune19[[#This Row],[Primary Account]],tblREGASSJune19[[#This Row],[Primary Name]],tblREGASSJune19[[#This Row],[Secondary Acct]],tblREGASSJune19[[#This Row],[Secondary  Name]],tblREGASSJune19[[#This Row],[Alloc4FUNC]])","v":"1823990OTHR REG ASSET-N CST187821Reg Asset - UT EBA Oct-Dec11OTHER"},1823990,"OTHR REG ASSET-N CST",187821,"Reg Asset - UT EBA Oct-Dec11","OTHER",0,{"$f":"IF(OR(tblREGASSJune19[[#This Row],[Alloc]]=\"IDU\",tblREGASSJune19[[#This Row],[Alloc]]=\"OR\",tblREGASSJune19[[#This Row],[Alloc]]=\"UT\",tblREGASSJune19[[#This Row],[Alloc]]=\"WYU\",tblREGASSJune19[[#This Row],[Alloc]]=\"WYP\",tblREGASSJune19[[#This Row],[Alloc]]=\"CA\",tblREGASSJune19[[#This Row],[Alloc]]=\"WA\"),\"SITUS\",tblREGASSJune19[[#This Row],[Alloc]])","v":"OTHER"},{"$f":"INDEX(tblREGASSLookup[FUNC],MATCH(tblREGASSJune19[[#This Row],[Concat]],tblREGASSLookup[Concat],0))","v":{"$error":"#N/A"}},{"$f":"IF(tblREGASSJune19[[#This Row],[Total ($000)]]=0,\"NO\",IF(ISNA(tblREGASSJune19[[#This Row],[FUNC]]),\"YES\",IF(_xlfn.ISFORMULA(tblREGASSJune19[[#This Row],[FUNC]]),\"NO\",\"YES\")))","v":"NO"}]
[{"$f":"CONCATENATE(tblREGASSJune19[[#This Row],[Primary Account]],tblREGASSJune19[[#This Row],[Primary Name]],tblREGASSJune19[[#This Row],[Secondary Acct]],tblREGASSJune19[[#This Row],[Secondary  Name]],tblREGASSJune19[[#This Row],[Alloc4FUNC]])","v":"1823990OTHR REG ASSET-N CST187822Reg Asset - UT EBA CY2012OTHER"},1823990,"OTHR REG ASSET-N CST",187822,"Reg Asset - UT EBA CY2012","OTHER",0,{"$f":"IF(OR(tblREGASSJune19[[#This Row],[Alloc]]=\"IDU\",tblREGASSJune19[[#This Row],[Alloc]]=\"OR\",tblREGASSJune19[[#This Row],[Alloc]]=\"UT\",tblREGASSJune19[[#This Row],[Alloc]]=\"WYU\",tblREGASSJune19[[#This Row],[Alloc]]=\"WYP\",tblREGASSJune19[[#This Row],[Alloc]]=\"CA\",tblREGASSJune19[[#This Row],[Alloc]]=\"WA\"),\"SITUS\",tblREGASSJune19[[#This Row],[Alloc]])","v":"OTHER"},{"$f":"INDEX(tblREGASSLookup[FUNC],MATCH(tblREGASSJune19[[#This Row],[Concat]],tblREGASSLookup[Concat],0))","v":{"$error":"#N/A"}},{"$f":"IF(tblREGASSJune19[[#This Row],[Total ($000)]]=0,\"NO\",IF(ISNA(tblREGASSJune19[[#This Row],[FUNC]]),\"YES\",IF(_xlfn.ISFORMULA(tblREGASSJune19[[#This Row],[FUNC]]),\"NO\",\"YES\")))","v":"NO"}]
[{"$f":"CONCATENATE(tblREGASSJune19[[#This Row],[Primary Account]],tblREGASSJune19[[#This Row],[Primary Name]],tblREGASSJune19[[#This Row],[Secondary Acct]],tblREGASSJune19[[#This Row],[Secondary  Name]],tblREGASSJune19[[#This Row],[Alloc4FUNC]])","v":"1823990OTHR REG ASSET-N CST187823Reg Asset - UT EBA Oct11-Dec11OTHER"},1823990,"OTHR REG ASSET-N CST",187823,"Reg Asset - UT EBA Oct11-Dec11","OTHER",0,{"$f":"IF(OR(tblREGASSJune19[[#This Row],[Alloc]]=\"IDU\",tblREGASSJune19[[#This Row],[Alloc]]=\"OR\",tblREGASSJune19[[#This Row],[Alloc]]=\"UT\",tblREGASSJune19[[#This Row],[Alloc]]=\"WYU\",tblREGASSJune19[[#This Row],[Alloc]]=\"WYP\",tblREGASSJune19[[#This Row],[Alloc]]=\"CA\",tblREGASSJune19[[#This Row],[Alloc]]=\"WA\"),\"SITUS\",tblREGASSJune19[[#This Row],[Alloc]])","v":"OTHER"},{"$f":"INDEX(tblREGASSLookup[FUNC],MATCH(tblREGASSJune19[[#This Row],[Concat]],tblREGASSLookup[Concat],0))","v":{"$error":"#N/A"}},{"$f":"IF(tblREGASSJune19[[#This Row],[Total ($000)]]=0,\"NO\",IF(ISNA(tblREGASSJune19[[#This Row],[FUNC]]),\"YES\",IF(_xlfn.ISFORMULA(tblREGASSJune19[[#This Row],[FUNC]]),\"NO\",\"YES\")))","v":"NO"}]
[{"$f":"CONCATENATE(tblREGASSJune19[[#This Row],[Primary Account]],tblREGASSJune19[[#This Row],[Primary Name]],tblREGASSJune19[[#This Row],[Secondary Acct]],tblREGASSJune19[[#This Row],[Secondary  Name]],tblREGASSJune19[[#This Row],[Alloc4FUNC]])","v":"1823990OTHR REG ASSET-N CST187824Reg Asset  - UT EBA CY2013OTHER"},1823990,"OTHR REG ASSET-N CST",187824,"Reg Asset  - UT EBA CY2013","OTHER",0,{"$f":"IF(OR(tblREGASSJune19[[#This Row],[Alloc]]=\"IDU\",tblREGASSJune19[[#This Row],[Alloc]]=\"OR\",tblREGASSJune19[[#This Row],[Alloc]]=\"UT\",tblREGASSJune19[[#This Row],[Alloc]]=\"WYU\",tblREGASSJune19[[#This Row],[Alloc]]=\"WYP\",tblREGASSJune19[[#This Row],[Alloc]]=\"CA\",tblREGASSJune19[[#This Row],[Alloc]]=\"WA\"),\"SITUS\",tblREGASSJune19[[#This Row],[Alloc]])","v":"OTHER"},{"$f":"INDEX(tblREGASSLookup[FUNC],MATCH(tblREGASSJune19[[#This Row],[Concat]],tblREGASSLookup[Concat],0))","v":{"$error":"#N/A"}},{"$f":"IF(tblREGASSJune19[[#This Row],[Total ($000)]]=0,\"NO\",IF(ISNA(tblREGASSJune19[[#This Row],[FUNC]]),\"YES\",IF(_xlfn.ISFORMULA(tblREGASSJune19[[#This Row],[FUNC]]),\"NO\",\"YES\")))","v":"NO"}]
[{"$f":"CONCATENATE(tblREGASSJune19[[#This Row],[Primary Account]],tblREGASSJune19[[#This Row],[Primary Name]],tblREGASSJune19[[#This Row],[Secondary Acct]],tblREGASSJune19[[#This Row],[Secondary  Name]],tblREGASSJune19[[#This Row],[Alloc4FUNC]])","v":"1823990OTHR REG ASSET-N CST187825Reg Asset  - UT EBA CY2014OTHER"},1823990,"OTHR REG ASSET-N CST",187825,"Reg Asset  - UT EBA CY2014","OTHER",0,{"$f":"IF(OR(tblREGASSJune19[[#This Row],[Alloc]]=\"IDU\",tblREGASSJune19[[#This Row],[Alloc]]=\"OR\",tblREGASSJune19[[#This Row],[Alloc]]=\"UT\",tblREGASSJune19[[#This Row],[Alloc]]=\"WYU\",tblREGASSJune19[[#This Row],[Alloc]]=\"WYP\",tblREGASSJune19[[#This Row],[Alloc]]=\"CA\",tblREGASSJune19[[#This Row],[Alloc]]=\"WA\"),\"SITUS\",tblREGASSJune19[[#This Row],[Alloc]])","v":"OTHER"},{"$f":"INDEX(tblREGASSLookup[FUNC],MATCH(tblREGASSJune19[[#This Row],[Concat]],tblREGASSLookup[Concat],0))","v":"P"},{"$f":"IF(tblREGASSJune19[[#This Row],[Total ($000)]]=0,\"NO\",IF(ISNA(tblREGASSJune19[[#This Row],[FUNC]]),\"YES\",IF(_xlfn.ISFORMULA(tblREGASSJune19[[#This Row],[FUNC]]),\"NO\",\"YES\")))","v":"NO"}]
[{"$f":"CONCATENATE(tblREGASSJune19[[#This Row],[Primary Account]],tblREGASSJune19[[#This Row],[Primary Name]],tblREGASSJune19[[#This Row],[Secondary Acct]],tblREGASSJune19[[#This Row],[Secondary  Name]],tblREGASSJune19[[#This Row],[Alloc4FUNC]])","v":"1823990OTHR REG ASSET-N CST187826Reg Asset  - UT EBA CY2015OTHER"},1823990,"OTHR REG ASSET-N CST",187826,"Reg Asset  - UT EBA CY2015","OTHER",0,{"$f":"IF(OR(tblREGASSJune19[[#This Row],[Alloc]]=\"IDU\",tblREGASSJune19[[#This Row],[Alloc]]=\"OR\",tblREGASSJune19[[#This Row],[Alloc]]=\"UT\",tblREGASSJune19[[#This Row],[Alloc]]=\"WYU\",tblREGASSJune19[[#This Row],[Alloc]]=\"WYP\",tblREGASSJune19[[#This Row],[Alloc]]=\"CA\",tblREGASSJune19[[#This Row],[Alloc]]=\"WA\"),\"SITUS\",tblREGASSJune19[[#This Row],[Alloc]])","v":"OTHER"},{"$f":"INDEX(tblREGASSLookup[FUNC],MATCH(tblREGASSJune19[[#This Row],[Concat]],tblREGASSLookup[Concat],0))","v":"P"},{"$f":"IF(tblREGASSJune19[[#This Row],[Total ($000)]]=0,\"NO\",IF(ISNA(tblREGASSJune19[[#This Row],[FUNC]]),\"YES\",IF(_xlfn.ISFORMULA(tblREGASSJune19[[#This Row],[FUNC]]),\"NO\",\"YES\")))","v":"NO"}]
[{"$f":"CONCATENATE(tblREGASSJune19[[#This Row],[Primary Account]],tblREGASSJune19[[#This Row],[Primary Name]],tblREGASSJune19[[#This Row],[Secondary Acct]],tblREGASSJune19[[#This Row],[Secondary  Name]],tblREGASSJune19[[#This Row],[Alloc4FUNC]])","v":"1823990OTHR REG ASSET-N CST187827Reg Asset  - UT EBA CY2016OTHER"},1823990,"OTHR REG ASSET-N CST",187827,"Reg Asset  - UT EBA CY2016","OTHER",0,{"$f":"IF(OR(tblREGASSJune19[[#This Row],[Alloc]]=\"IDU\",tblREGASSJune19[[#This Row],[Alloc]]=\"OR\",tblREGASSJune19[[#This Row],[Alloc]]=\"UT\",tblREGASSJune19[[#This Row],[Alloc]]=\"WYU\",tblREGASSJune19[[#This Row],[Alloc]]=\"WYP\",tblREGASSJune19[[#This Row],[Alloc]]=\"CA\",tblREGASSJune19[[#This Row],[Alloc]]=\"WA\"),\"SITUS\",tblREGASSJune19[[#This Row],[Alloc]])","v":"OTHER"},{"$f":"INDEX(tblREGASSLookup[FUNC],MATCH(tblREGASSJune19[[#This Row],[Concat]],tblREGASSLookup[Concat],0))","v":"P"},{"$f":"IF(tblREGASSJune19[[#This Row],[Total ($000)]]=0,\"NO\",IF(ISNA(tblREGASSJune19[[#This Row],[FUNC]]),\"YES\",IF(_xlfn.ISFORMULA(tblREGASSJune19[[#This Row],[FUNC]]),\"NO\",\"YES\")))","v":"NO"}]
[{"$f":"CONCATENATE(tblREGASSJune19[[#This Row],[Primary Account]],tblREGASSJune19[[#This Row],[Primary Name]],tblREGASSJune19[[#This Row],[Secondary Acct]],tblREGASSJune19[[#This Row],[Secondary  Name]],tblREGASSJune19[[#This Row],[Alloc4FUNC]])","v":"1823990OTHR REG ASSET-N CST187828Reg Asset - UT EBA CY2017OTHER"},1823990,"OTHR REG ASSET-N CST",187828,"Reg Asset - UT EBA CY2017","OTHER",441.71212153846199,{"$f":"IF(OR(tblREGASSJune19[[#This Row],[Alloc]]=\"IDU\",tblREGASSJune19[[#This Row],[Alloc]]=\"OR\",tblREGASSJune19[[#This Row],[Alloc]]=\"UT\",tblREGASSJune19[[#This Row],[Alloc]]=\"WYU\",tblREGASSJune19[[#This Row],[Alloc]]=\"WYP\",tblREGASSJune19[[#This Row],[Alloc]]=\"CA\",tblREGASSJune19[[#This Row],[Alloc]]=\"WA\"),\"SITUS\",tblREGASSJune19[[#This Row],[Alloc]])","v":"OTHER"},{"$f":"INDEX(tblREGASSLookup[FUNC],MATCH(tblREGASSJune19[[#This Row],[Concat]],tblREGASSLookup[Concat],0))","v":"P"},{"$f":"IF(tblREGASSJune19[[#This Row],[Total ($000)]]=0,\"NO\",IF(ISNA(tblREGASSJune19[[#This Row],[FUNC]]),\"YES\",IF(_xlfn.ISFORMULA(tblREGASSJune19[[#This Row],[FUNC]]),\"NO\",\"YES\")))","v":"NO"}]
[{"$f":"CONCATENATE(tblREGASSJune19[[#This Row],[Primary Account]],tblREGASSJune19[[#This Row],[Primary Name]],tblREGASSJune19[[#This Row],[Secondary Acct]],tblREGASSJune19[[#This Row],[Secondary  Name]],tblREGASSJune19[[#This Row],[Alloc4FUNC]])","v":"1823990OTHR REG ASSET-N CST187829Reg Asset - UT EBA Group AmortizationOTHER"},1823990,"OTHR REG ASSET-N CST",187829,"Reg Asset - UT EBA Group Amortization","OTHER",0,{"$f":"IF(OR(tblREGASSJune19[[#This Row],[Alloc]]=\"IDU\",tblREGASSJune19[[#This Row],[Alloc]]=\"OR\",tblREGASSJune19[[#This Row],[Alloc]]=\"UT\",tblREGASSJune19[[#This Row],[Alloc]]=\"WYU\",tblREGASSJune19[[#This Row],[Alloc]]=\"WYP\",tblREGASSJune19[[#This Row],[Alloc]]=\"CA\",tblREGASSJune19[[#This Row],[Alloc]]=\"WA\"),\"SITUS\",tblREGASSJune19[[#This Row],[Alloc]])","v":"OTHER"},{"$f":"INDEX(tblREGASSLookup[FUNC],MATCH(tblREGASSJune19[[#This Row],[Concat]],tblREGASSLookup[Concat],0))","v":{"$error":"#N/A"}},{"$f":"IF(tblREGASSJune19[[#This Row],[Total ($000)]]=0,\"NO\",IF(ISNA(tblREGASSJune19[[#This Row],[FUNC]]),\"YES\",IF(_xlfn.ISFORMULA(tblREGASSJune19[[#This Row],[FUNC]]),\"NO\",\"YES\")))","v":"NO"}]
[{"$f":"CONCATENATE(tblREGASSJune19[[#This Row],[Primary Account]],tblREGASSJune19[[#This Row],[Primary Name]],tblREGASSJune19[[#This Row],[Secondary Acct]],tblREGASSJune19[[#This Row],[Secondary  Name]],tblREGASSJune19[[#This Row],[Alloc4FUNC]])","v":"1823990OTHR REG ASSET-N CST187832Reg Asset - UT RBA CY2012OTHER"},1823990,"OTHR REG ASSET-N CST",187832,"Reg Asset - UT RBA CY2012","OTHER",0,{"$f":"IF(OR(tblREGASSJune19[[#This Row],[Alloc]]=\"IDU\",tblREGASSJune19[[#This Row],[Alloc]]=\"OR\",tblREGASSJune19[[#This Row],[Alloc]]=\"UT\",tblREGASSJune19[[#This Row],[Alloc]]=\"WYU\",tblREGASSJune19[[#This Row],[Alloc]]=\"WYP\",tblREGASSJune19[[#This Row],[Alloc]]=\"CA\",tblREGASSJune19[[#This Row],[Alloc]]=\"WA\"),\"SITUS\",tblREGASSJune19[[#This Row],[Alloc]])","v":"OTHER"},{"$f":"INDEX(tblREGASSLookup[FUNC],MATCH(tblREGASSJune19[[#This Row],[Concat]],tblREGASSLookup[Concat],0))","v":{"$error":"#N/A"}},{"$f":"IF(tblREGASSJune19[[#This Row],[Total ($000)]]=0,\"NO\",IF(ISNA(tblREGASSJune19[[#This Row],[FUNC]]),\"YES\",IF(_xlfn.ISFORMULA(tblREGASSJune19[[#This Row],[FUNC]]),\"NO\",\"YES\")))","v":"NO"}]
[{"$f":"CONCATENATE(tblREGASSJune19[[#This Row],[Primary Account]],tblREGASSJune19[[#This Row],[Primary Name]],tblREGASSJune19[[#This Row],[Secondary Acct]],tblREGASSJune19[[#This Row],[Secondary  Name]],tblREGASSJune19[[#This Row],[Alloc4FUNC]])","v":"1823990OTHR REG ASSET-N CST187834Reg Asset  - UT RBA CY2013OTHER"},1823990,"OTHR REG ASSET-N CST",187834,"Reg Asset  - UT RBA CY2013","OTHER",0,{"$f":"IF(OR(tblREGASSJune19[[#This Row],[Alloc]]=\"IDU\",tblREGASSJune19[[#This Row],[Alloc]]=\"OR\",tblREGASSJune19[[#This Row],[Alloc]]=\"UT\",tblREGASSJune19[[#This Row],[Alloc]]=\"WYU\",tblREGASSJune19[[#This Row],[Alloc]]=\"WYP\",tblREGASSJune19[[#This Row],[Alloc]]=\"CA\",tblREGASSJune19[[#This Row],[Alloc]]=\"WA\"),\"SITUS\",tblREGASSJune19[[#This Row],[Alloc]])","v":"OTHER"},{"$f":"INDEX(tblREGASSLookup[FUNC],MATCH(tblREGASSJune19[[#This Row],[Concat]],tblREGASSLookup[Concat],0))","v":{"$error":"#N/A"}},{"$f":"IF(tblREGASSJune19[[#This Row],[Total ($000)]]=0,\"NO\",IF(ISNA(tblREGASSJune19[[#This Row],[FUNC]]),\"YES\",IF(_xlfn.ISFORMULA(tblREGASSJune19[[#This Row],[FUNC]]),\"NO\",\"YES\")))","v":"NO"}]
[{"$f":"CONCATENATE(tblREGASSJune19[[#This Row],[Primary Account]],tblREGASSJune19[[#This Row],[Primary Name]],tblREGASSJune19[[#This Row],[Secondary Acct]],tblREGASSJune19[[#This Row],[Secondary  Name]],tblREGASSJune19[[#This Row],[Alloc4FUNC]])","v":"1823990OTHR REG ASSET-N CST187835Reg Asset  - UT RBA CY2014OTHER"},1823990,"OTHR REG ASSET-N CST",187835,"Reg Asset  - UT RBA CY2014","OTHER",0,{"$f":"IF(OR(tblREGASSJune19[[#This Row],[Alloc]]=\"IDU\",tblREGASSJune19[[#This Row],[Alloc]]=\"OR\",tblREGASSJune19[[#This Row],[Alloc]]=\"UT\",tblREGASSJune19[[#This Row],[Alloc]]=\"WYU\",tblREGASSJune19[[#This Row],[Alloc]]=\"WYP\",tblREGASSJune19[[#This Row],[Alloc]]=\"CA\",tblREGASSJune19[[#This Row],[Alloc]]=\"WA\"),\"SITUS\",tblREGASSJune19[[#This Row],[Alloc]])","v":"OTHER"},{"$f":"INDEX(tblREGASSLookup[FUNC],MATCH(tblREGASSJune19[[#This Row],[Concat]],tblREGASSLookup[Concat],0))","v":"P"},{"$f":"IF(tblREGASSJune19[[#This Row],[Total ($000)]]=0,\"NO\",IF(ISNA(tblREGASSJune19[[#This Row],[FUNC]]),\"YES\",IF(_xlfn.ISFORMULA(tblREGASSJune19[[#This Row],[FUNC]]),\"NO\",\"YES\")))","v":"NO"}]
[{"$f":"CONCATENATE(tblREGASSJune19[[#This Row],[Primary Account]],tblREGASSJune19[[#This Row],[Primary Name]],tblREGASSJune19[[#This Row],[Secondary Acct]],tblREGASSJune19[[#This Row],[Secondary  Name]],tblREGASSJune19[[#This Row],[Alloc4FUNC]])","v":"1823990OTHR REG ASSET-N CST187836Reg Asset  - UT RBA CY2015OTHER"},1823990,"OTHR REG ASSET-N CST",187836,"Reg Asset  - UT RBA CY2015","OTHER",0,{"$f":"IF(OR(tblREGASSJune19[[#This Row],[Alloc]]=\"IDU\",tblREGASSJune19[[#This Row],[Alloc]]=\"OR\",tblREGASSJune19[[#This Row],[Alloc]]=\"UT\",tblREGASSJune19[[#This Row],[Alloc]]=\"WYU\",tblREGASSJune19[[#This Row],[Alloc]]=\"WYP\",tblREGASSJune19[[#This Row],[Alloc]]=\"CA\",tblREGASSJune19[[#This Row],[Alloc]]=\"WA\"),\"SITUS\",tblREGASSJune19[[#This Row],[Alloc]])","v":"OTHER"},{"$f":"INDEX(tblREGASSLookup[FUNC],MATCH(tblREGASSJune19[[#This Row],[Concat]],tblREGASSLookup[Concat],0))","v":"P"},{"$f":"IF(tblREGASSJune19[[#This Row],[Total ($000)]]=0,\"NO\",IF(ISNA(tblREGASSJune19[[#This Row],[FUNC]]),\"YES\",IF(_xlfn.ISFORMULA(tblREGASSJune19[[#This Row],[FUNC]]),\"NO\",\"YES\")))","v":"NO"}]
[{"$f":"CONCATENATE(tblREGASSJune19[[#This Row],[Primary Account]],tblREGASSJune19[[#This Row],[Primary Name]],tblREGASSJune19[[#This Row],[Secondary Acct]],tblREGASSJune19[[#This Row],[Secondary  Name]],tblREGASSJune19[[#This Row],[Alloc4FUNC]])","v":"1823990OTHR REG ASSET-N CST187837Reg Asset  - UT RBA CY2016OTHER"},1823990,"OTHR REG ASSET-N CST",187837,"Reg Asset  - UT RBA CY2016","OTHER",0,{"$f":"IF(OR(tblREGASSJune19[[#This Row],[Alloc]]=\"IDU\",tblREGASSJune19[[#This Row],[Alloc]]=\"OR\",tblREGASSJune19[[#This Row],[Alloc]]=\"UT\",tblREGASSJune19[[#This Row],[Alloc]]=\"WYU\",tblREGASSJune19[[#This Row],[Alloc]]=\"WYP\",tblREGASSJune19[[#This Row],[Alloc]]=\"CA\",tblREGASSJune19[[#This Row],[Alloc]]=\"WA\"),\"SITUS\",tblREGASSJune19[[#This Row],[Alloc]])","v":"OTHER"},{"$f":"INDEX(tblREGASSLookup[FUNC],MATCH(tblREGASSJune19[[#This Row],[Concat]],tblREGASSLookup[Concat],0))","v":"P"},{"$f":"IF(tblREGASSJune19[[#This Row],[Total ($000)]]=0,\"NO\",IF(ISNA(tblREGASSJune19[[#This Row],[FUNC]]),\"YES\",IF(_xlfn.ISFORMULA(tblREGASSJune19[[#This Row],[FUNC]]),\"NO\",\"YES\")))","v":"NO"}]
[{"$f":"CONCATENATE(tblREGASSJune19[[#This Row],[Primary Account]],tblREGASSJune19[[#This Row],[Primary Name]],tblREGASSJune19[[#This Row],[Secondary Acct]],tblREGASSJune19[[#This Row],[Secondary  Name]],tblREGASSJune19[[#This Row],[Alloc4FUNC]])","v":"1823990OTHR REG ASSET-N CST187838Reg Asset - UT RBA CY2017OTHER"},1823990,"OTHR REG ASSET-N CST",187838,"Reg Asset - UT RBA CY2017","OTHER",187.32803230769201,{"$f":"IF(OR(tblREGASSJune19[[#This Row],[Alloc]]=\"IDU\",tblREGASSJune19[[#This Row],[Alloc]]=\"OR\",tblREGASSJune19[[#This Row],[Alloc]]=\"UT\",tblREGASSJune19[[#This Row],[Alloc]]=\"WYU\",tblREGASSJune19[[#This Row],[Alloc]]=\"WYP\",tblREGASSJune19[[#This Row],[Alloc]]=\"CA\",tblREGASSJune19[[#This Row],[Alloc]]=\"WA\"),\"SITUS\",tblREGASSJune19[[#This Row],[Alloc]])","v":"OTHER"},{"$f":"INDEX(tblREGASSLookup[FUNC],MATCH(tblREGASSJune19[[#This Row],[Concat]],tblREGASSLookup[Concat],0))","v":"P"},{"$f":"IF(tblREGASSJune19[[#This Row],[Total ($000)]]=0,\"NO\",IF(ISNA(tblREGASSJune19[[#This Row],[FUNC]]),\"YES\",IF(_xlfn.ISFORMULA(tblREGASSJune19[[#This Row],[FUNC]]),\"NO\",\"YES\")))","v":"NO"}]
[{"$f":"CONCATENATE(tblREGASSJune19[[#This Row],[Primary Account]],tblREGASSJune19[[#This Row],[Primary Name]],tblREGASSJune19[[#This Row],[Secondary Acct]],tblREGASSJune19[[#This Row],[Secondary  Name]],tblREGASSJune19[[#This Row],[Alloc4FUNC]])","v":"1823990OTHR REG ASSET-N CST187839Reg Asset - UT RBA CY2018OTHER"},1823990,"OTHR REG ASSET-N CST",187839,"Reg Asset - UT RBA CY2018","OTHER",798.49638307692305,{"$f":"IF(OR(tblREGASSJune19[[#This Row],[Alloc]]=\"IDU\",tblREGASSJune19[[#This Row],[Alloc]]=\"OR\",tblREGASSJune19[[#This Row],[Alloc]]=\"UT\",tblREGASSJune19[[#This Row],[Alloc]]=\"WYU\",tblREGASSJune19[[#This Row],[Alloc]]=\"WYP\",tblREGASSJune19[[#This Row],[Alloc]]=\"CA\",tblREGASSJune19[[#This Row],[Alloc]]=\"WA\"),\"SITUS\",tblREGASSJune19[[#This Row],[Alloc]])","v":"OTHER"},{"$f":"INDEX(tblREGASSLookup[FUNC],MATCH(tblREGASSJune19[[#This Row],[Concat]],tblREGASSLookup[Concat],0))","v":"P"},{"$f":"IF(tblREGASSJune19[[#This Row],[Total ($000)]]=0,\"NO\",IF(ISNA(tblREGASSJune19[[#This Row],[FUNC]]),\"YES\",IF(_xlfn.ISFORMULA(tblREGASSJune19[[#This Row],[FUNC]]),\"NO\",\"YES\")))","v":"NO"}]
[{"$f":"CONCATENATE(tblREGASSJune19[[#This Row],[Primary Account]],tblREGASSJune19[[#This Row],[Primary Name]],tblREGASSJune19[[#This Row],[Secondary Acct]],tblREGASSJune19[[#This Row],[Secondary  Name]],tblREGASSJune19[[#This Row],[Alloc4FUNC]])","v":"1823990OTHR REG ASSET-N CST187842Contra Reg Asset - UT EBA CY2012OTHER"},1823990,"OTHR REG ASSET-N CST",187842,"Contra Reg Asset - UT EBA CY2012","OTHER",0,{"$f":"IF(OR(tblREGASSJune19[[#This Row],[Alloc]]=\"IDU\",tblREGASSJune19[[#This Row],[Alloc]]=\"OR\",tblREGASSJune19[[#This Row],[Alloc]]=\"UT\",tblREGASSJune19[[#This Row],[Alloc]]=\"WYU\",tblREGASSJune19[[#This Row],[Alloc]]=\"WYP\",tblREGASSJune19[[#This Row],[Alloc]]=\"CA\",tblREGASSJune19[[#This Row],[Alloc]]=\"WA\"),\"SITUS\",tblREGASSJune19[[#This Row],[Alloc]])","v":"OTHER"},{"$f":"INDEX(tblREGASSLookup[FUNC],MATCH(tblREGASSJune19[[#This Row],[Concat]],tblREGASSLookup[Concat],0))","v":{"$error":"#N/A"}},{"$f":"IF(tblREGASSJune19[[#This Row],[Total ($000)]]=0,\"NO\",IF(ISNA(tblREGASSJune19[[#This Row],[FUNC]]),\"YES\",IF(_xlfn.ISFORMULA(tblREGASSJune19[[#This Row],[FUNC]]),\"NO\",\"YES\")))","v":"NO"}]
[{"$f":"CONCATENATE(tblREGASSJune19[[#This Row],[Primary Account]],tblREGASSJune19[[#This Row],[Primary Name]],tblREGASSJune19[[#This Row],[Secondary Acct]],tblREGASSJune19[[#This Row],[Secondary  Name]],tblREGASSJune19[[#This Row],[Alloc4FUNC]])","v":"1823990OTHR REG ASSET-N CST187844Contra Reg Asset - UT EBA CY2013OTHER"},1823990,"OTHR REG ASSET-N CST",187844,"Contra Reg Asset - UT EBA CY2013","OTHER",0,{"$f":"IF(OR(tblREGASSJune19[[#This Row],[Alloc]]=\"IDU\",tblREGASSJune19[[#This Row],[Alloc]]=\"OR\",tblREGASSJune19[[#This Row],[Alloc]]=\"UT\",tblREGASSJune19[[#This Row],[Alloc]]=\"WYU\",tblREGASSJune19[[#This Row],[Alloc]]=\"WYP\",tblREGASSJune19[[#This Row],[Alloc]]=\"CA\",tblREGASSJune19[[#This Row],[Alloc]]=\"WA\"),\"SITUS\",tblREGASSJune19[[#This Row],[Alloc]])","v":"OTHER"},{"$f":"INDEX(tblREGASSLookup[FUNC],MATCH(tblREGASSJune19[[#This Row],[Concat]],tblREGASSLookup[Concat],0))","v":{"$error":"#N/A"}},{"$f":"IF(tblREGASSJune19[[#This Row],[Total ($000)]]=0,\"NO\",IF(ISNA(tblREGASSJune19[[#This Row],[FUNC]]),\"YES\",IF(_xlfn.ISFORMULA(tblREGASSJune19[[#This Row],[FUNC]]),\"NO\",\"YES\")))","v":"NO"}]
[{"$f":"CONCATENATE(tblREGASSJune19[[#This Row],[Primary Account]],tblREGASSJune19[[#This Row],[Primary Name]],tblREGASSJune19[[#This Row],[Secondary Acct]],tblREGASSJune19[[#This Row],[Secondary  Name]],tblREGASSJune19[[#This Row],[Alloc4FUNC]])","v":"1823990OTHR REG ASSET-N CST187845Contra Reg Asset - UT EBA CY2014OTHER"},1823990,"OTHR REG ASSET-N CST",187845,"Contra Reg Asset - UT EBA CY2014","OTHER",0,{"$f":"IF(OR(tblREGASSJune19[[#This Row],[Alloc]]=\"IDU\",tblREGASSJune19[[#This Row],[Alloc]]=\"OR\",tblREGASSJune19[[#This Row],[Alloc]]=\"UT\",tblREGASSJune19[[#This Row],[Alloc]]=\"WYU\",tblREGASSJune19[[#This Row],[Alloc]]=\"WYP\",tblREGASSJune19[[#This Row],[Alloc]]=\"CA\",tblREGASSJune19[[#This Row],[Alloc]]=\"WA\"),\"SITUS\",tblREGASSJune19[[#This Row],[Alloc]])","v":"OTHER"},{"$f":"INDEX(tblREGASSLookup[FUNC],MATCH(tblREGASSJune19[[#This Row],[Concat]],tblREGASSLookup[Concat],0))","v":{"$error":"#N/A"}},{"$f":"IF(tblREGASSJune19[[#This Row],[Total ($000)]]=0,\"NO\",IF(ISNA(tblREGASSJune19[[#This Row],[FUNC]]),\"YES\",IF(_xlfn.ISFORMULA(tblREGASSJune19[[#This Row],[FUNC]]),\"NO\",\"YES\")))","v":"NO"}]
[{"$f":"CONCATENATE(tblREGASSJune19[[#This Row],[Primary Account]],tblREGASSJune19[[#This Row],[Primary Name]],tblREGASSJune19[[#This Row],[Secondary Acct]],tblREGASSJune19[[#This Row],[Secondary  Name]],tblREGASSJune19[[#This Row],[Alloc4FUNC]])","v":"1823990OTHR REG ASSET-N CST187846Contra Reg Asset - UT EBA CY2015OTHER"},1823990,"OTHR REG ASSET-N CST",187846,"Contra Reg Asset - UT EBA CY2015","OTHER",0,{"$f":"IF(OR(tblREGASSJune19[[#This Row],[Alloc]]=\"IDU\",tblREGASSJune19[[#This Row],[Alloc]]=\"OR\",tblREGASSJune19[[#This Row],[Alloc]]=\"UT\",tblREGASSJune19[[#This Row],[Alloc]]=\"WYU\",tblREGASSJune19[[#This Row],[Alloc]]=\"WYP\",tblREGASSJune19[[#This Row],[Alloc]]=\"CA\",tblREGASSJune19[[#This Row],[Alloc]]=\"WA\"),\"SITUS\",tblREGASSJune19[[#This Row],[Alloc]])","v":"OTHER"},{"$f":"INDEX(tblREGASSLookup[FUNC],MATCH(tblREGASSJune19[[#This Row],[Concat]],tblREGASSLookup[Concat],0))","v":"P"},{"$f":"IF(tblREGASSJune19[[#This Row],[Total ($000)]]=0,\"NO\",IF(ISNA(tblREGASSJune19[[#This Row],[FUNC]]),\"YES\",IF(_xlfn.ISFORMULA(tblREGASSJune19[[#This Row],[FUNC]]),\"NO\",\"YES\")))","v":"NO"}]
[{"$f":"CONCATENATE(tblREGASSJune19[[#This Row],[Primary Account]],tblREGASSJune19[[#This Row],[Primary Name]],tblREGASSJune19[[#This Row],[Secondary Acct]],tblREGASSJune19[[#This Row],[Secondary  Name]],tblREGASSJune19[[#This Row],[Alloc4FUNC]])","v":"1823990OTHR REG ASSET-N CST187847Contra Reg Asset - UT EBA CY2016OTHER"},1823990,"OTHR REG ASSET-N CST",187847,"Contra Reg Asset - UT EBA CY2016","OTHER",0,{"$f":"IF(OR(tblREGASSJune19[[#This Row],[Alloc]]=\"IDU\",tblREGASSJune19[[#This Row],[Alloc]]=\"OR\",tblREGASSJune19[[#This Row],[Alloc]]=\"UT\",tblREGASSJune19[[#This Row],[Alloc]]=\"WYU\",tblREGASSJune19[[#This Row],[Alloc]]=\"WYP\",tblREGASSJune19[[#This Row],[Alloc]]=\"CA\",tblREGASSJune19[[#This Row],[Alloc]]=\"WA\"),\"SITUS\",tblREGASSJune19[[#This Row],[Alloc]])","v":"OTHER"},{"$f":"INDEX(tblREGASSLookup[FUNC],MATCH(tblREGASSJune19[[#This Row],[Concat]],tblREGASSLookup[Concat],0))","v":"P"},{"$f":"IF(tblREGASSJune19[[#This Row],[Total ($000)]]=0,\"NO\",IF(ISNA(tblREGASSJune19[[#This Row],[FUNC]]),\"YES\",IF(_xlfn.ISFORMULA(tblREGASSJune19[[#This Row],[FUNC]]),\"NO\",\"YES\")))","v":"NO"}]
[{"$f":"CONCATENATE(tblREGASSJune19[[#This Row],[Primary Account]],tblREGASSJune19[[#This Row],[Primary Name]],tblREGASSJune19[[#This Row],[Secondary Acct]],tblREGASSJune19[[#This Row],[Secondary  Name]],tblREGASSJune19[[#This Row],[Alloc4FUNC]])","v":"1823990OTHR REG ASSET-N CST187848Contra Reg Asset - UT EBA CY2017OTHER"},1823990,"OTHR REG ASSET-N CST",187848,"Contra Reg Asset - UT EBA CY2017","OTHER",-532.75697769230806,{"$f":"IF(OR(tblREGASSJune19[[#This Row],[Alloc]]=\"IDU\",tblREGASSJune19[[#This Row],[Alloc]]=\"OR\",tblREGASSJune19[[#This Row],[Alloc]]=\"UT\",tblREGASSJune19[[#This Row],[Alloc]]=\"WYU\",tblREGASSJune19[[#This Row],[Alloc]]=\"WYP\",tblREGASSJune19[[#This Row],[Alloc]]=\"CA\",tblREGASSJune19[[#This Row],[Alloc]]=\"WA\"),\"SITUS\",tblREGASSJune19[[#This Row],[Alloc]])","v":"OTHER"},{"$f":"INDEX(tblREGASSLookup[FUNC],MATCH(tblREGASSJune19[[#This Row],[Concat]],tblREGASSLookup[Concat],0))","v":"P"},{"$f":"IF(tblREGASSJune19[[#This Row],[Total ($000)]]=0,\"NO\",IF(ISNA(tblREGASSJune19[[#This Row],[FUNC]]),\"YES\",IF(_xlfn.ISFORMULA(tblREGASSJune19[[#This Row],[FUNC]]),\"NO\",\"YES\")))","v":"NO"}]
[{"$f":"CONCATENATE(tblREGASSJune19[[#This Row],[Primary Account]],tblREGASSJune19[[#This Row],[Primary Name]],tblREGASSJune19[[#This Row],[Secondary Acct]],tblREGASSJune19[[#This Row],[Secondary  Name]],tblREGASSJune19[[#This Row],[Alloc4FUNC]])","v":"1823990OTHR REG ASSET-N CST187852Reg Asset - WY ECAM CY2012OTHER"},1823990,"OTHR REG ASSET-N CST",187852,"Reg Asset - WY ECAM CY2012","OTHER",0,{"$f":"IF(OR(tblREGASSJune19[[#This Row],[Alloc]]=\"IDU\",tblREGASSJune19[[#This Row],[Alloc]]=\"OR\",tblREGASSJune19[[#This Row],[Alloc]]=\"UT\",tblREGASSJune19[[#This Row],[Alloc]]=\"WYU\",tblREGASSJune19[[#This Row],[Alloc]]=\"WYP\",tblREGASSJune19[[#This Row],[Alloc]]=\"CA\",tblREGASSJune19[[#This Row],[Alloc]]=\"WA\"),\"SITUS\",tblREGASSJune19[[#This Row],[Alloc]])","v":"OTHER"},{"$f":"INDEX(tblREGASSLookup[FUNC],MATCH(tblREGASSJune19[[#This Row],[Concat]],tblREGASSLookup[Concat],0))","v":{"$error":"#N/A"}},{"$f":"IF(tblREGASSJune19[[#This Row],[Total ($000)]]=0,\"NO\",IF(ISNA(tblREGASSJune19[[#This Row],[FUNC]]),\"YES\",IF(_xlfn.ISFORMULA(tblREGASSJune19[[#This Row],[FUNC]]),\"NO\",\"YES\")))","v":"NO"}]
[{"$f":"CONCATENATE(tblREGASSJune19[[#This Row],[Primary Account]],tblREGASSJune19[[#This Row],[Primary Name]],tblREGASSJune19[[#This Row],[Secondary Acct]],tblREGASSJune19[[#This Row],[Secondary  Name]],tblREGASSJune19[[#This Row],[Alloc4FUNC]])","v":"1823990OTHR REG ASSET-N CST187853Reg Asset  - WY ECAM CY2013OTHER"},1823990,"OTHR REG ASSET-N CST",187853,"Reg Asset  - WY ECAM CY2013","OTHER",0,{"$f":"IF(OR(tblREGASSJune19[[#This Row],[Alloc]]=\"IDU\",tblREGASSJune19[[#This Row],[Alloc]]=\"OR\",tblREGASSJune19[[#This Row],[Alloc]]=\"UT\",tblREGASSJune19[[#This Row],[Alloc]]=\"WYU\",tblREGASSJune19[[#This Row],[Alloc]]=\"WYP\",tblREGASSJune19[[#This Row],[Alloc]]=\"CA\",tblREGASSJune19[[#This Row],[Alloc]]=\"WA\"),\"SITUS\",tblREGASSJune19[[#This Row],[Alloc]])","v":"OTHER"},{"$f":"INDEX(tblREGASSLookup[FUNC],MATCH(tblREGASSJune19[[#This Row],[Concat]],tblREGASSLookup[Concat],0))","v":{"$error":"#N/A"}},{"$f":"IF(tblREGASSJune19[[#This Row],[Total ($000)]]=0,\"NO\",IF(ISNA(tblREGASSJune19[[#This Row],[FUNC]]),\"YES\",IF(_xlfn.ISFORMULA(tblREGASSJune19[[#This Row],[FUNC]]),\"NO\",\"YES\")))","v":"NO"}]
[{"$f":"CONCATENATE(tblREGASSJune19[[#This Row],[Primary Account]],tblREGASSJune19[[#This Row],[Primary Name]],tblREGASSJune19[[#This Row],[Secondary Acct]],tblREGASSJune19[[#This Row],[Secondary  Name]],tblREGASSJune19[[#This Row],[Alloc4FUNC]])","v":"1823990OTHR REG ASSET-N CST187854Reg Asset  - WY ECAM CY2014OTHER"},1823990,"OTHR REG ASSET-N CST",187854,"Reg Asset  - WY ECAM CY2014","OTHER",0,{"$f":"IF(OR(tblREGASSJune19[[#This Row],[Alloc]]=\"IDU\",tblREGASSJune19[[#This Row],[Alloc]]=\"OR\",tblREGASSJune19[[#This Row],[Alloc]]=\"UT\",tblREGASSJune19[[#This Row],[Alloc]]=\"WYU\",tblREGASSJune19[[#This Row],[Alloc]]=\"WYP\",tblREGASSJune19[[#This Row],[Alloc]]=\"CA\",tblREGASSJune19[[#This Row],[Alloc]]=\"WA\"),\"SITUS\",tblREGASSJune19[[#This Row],[Alloc]])","v":"OTHER"},{"$f":"INDEX(tblREGASSLookup[FUNC],MATCH(tblREGASSJune19[[#This Row],[Concat]],tblREGASSLookup[Concat],0))","v":{"$error":"#N/A"}},{"$f":"IF(tblREGASSJune19[[#This Row],[Total ($000)]]=0,\"NO\",IF(ISNA(tblREGASSJune19[[#This Row],[FUNC]]),\"YES\",IF(_xlfn.ISFORMULA(tblREGASSJune19[[#This Row],[FUNC]]),\"NO\",\"YES\")))","v":"NO"}]
[{"$f":"CONCATENATE(tblREGASSJune19[[#This Row],[Primary Account]],tblREGASSJune19[[#This Row],[Primary Name]],tblREGASSJune19[[#This Row],[Secondary Acct]],tblREGASSJune19[[#This Row],[Secondary  Name]],tblREGASSJune19[[#This Row],[Alloc4FUNC]])","v":"1823990OTHR REG ASSET-N CST187855Reg Asset  - WY ECAM CY2015OTHER"},1823990,"OTHR REG ASSET-N CST",187855,"Reg Asset  - WY ECAM CY2015","OTHER",0,{"$f":"IF(OR(tblREGASSJune19[[#This Row],[Alloc]]=\"IDU\",tblREGASSJune19[[#This Row],[Alloc]]=\"OR\",tblREGASSJune19[[#This Row],[Alloc]]=\"UT\",tblREGASSJune19[[#This Row],[Alloc]]=\"WYU\",tblREGASSJune19[[#This Row],[Alloc]]=\"WYP\",tblREGASSJune19[[#This Row],[Alloc]]=\"CA\",tblREGASSJune19[[#This Row],[Alloc]]=\"WA\"),\"SITUS\",tblREGASSJune19[[#This Row],[Alloc]])","v":"OTHER"},{"$f":"INDEX(tblREGASSLookup[FUNC],MATCH(tblREGASSJune19[[#This Row],[Concat]],tblREGASSLookup[Concat],0))","v":"P"},{"$f":"IF(tblREGASSJune19[[#This Row],[Total ($000)]]=0,\"NO\",IF(ISNA(tblREGASSJune19[[#This Row],[FUNC]]),\"YES\",IF(_xlfn.ISFORMULA(tblREGASSJune19[[#This Row],[FUNC]]),\"NO\",\"YES\")))","v":"NO"}]
[{"$f":"CONCATENATE(tblREGASSJune19[[#This Row],[Primary Account]],tblREGASSJune19[[#This Row],[Primary Name]],tblREGASSJune19[[#This Row],[Secondary Acct]],tblREGASSJune19[[#This Row],[Secondary  Name]],tblREGASSJune19[[#This Row],[Alloc4FUNC]])","v":"1823990OTHR REG ASSET-N CST187856Reg Asset  - WY ECAM CY2016OTHER"},1823990,"OTHR REG ASSET-N CST",187856,"Reg Asset  - WY ECAM CY2016","OTHER",-59.178286923076897,{"$f":"IF(OR(tblREGASSJune19[[#This Row],[Alloc]]=\"IDU\",tblREGASSJune19[[#This Row],[Alloc]]=\"OR\",tblREGASSJune19[[#This Row],[Alloc]]=\"UT\",tblREGASSJune19[[#This Row],[Alloc]]=\"WYU\",tblREGASSJune19[[#This Row],[Alloc]]=\"WYP\",tblREGASSJune19[[#This Row],[Alloc]]=\"CA\",tblREGASSJune19[[#This Row],[Alloc]]=\"WA\"),\"SITUS\",tblREGASSJune19[[#This Row],[Alloc]])","v":"OTHER"},{"$f":"INDEX(tblREGASSLookup[FUNC],MATCH(tblREGASSJune19[[#This Row],[Concat]],tblREGASSLookup[Concat],0))","v":"P"},{"$f":"IF(tblREGASSJune19[[#This Row],[Total ($000)]]=0,\"NO\",IF(ISNA(tblREGASSJune19[[#This Row],[FUNC]]),\"YES\",IF(_xlfn.ISFORMULA(tblREGASSJune19[[#This Row],[FUNC]]),\"NO\",\"YES\")))","v":"NO"}]
[{"$f":"CONCATENATE(tblREGASSJune19[[#This Row],[Primary Account]],tblREGASSJune19[[#This Row],[Primary Name]],tblREGASSJune19[[#This Row],[Secondary Acct]],tblREGASSJune19[[#This Row],[Secondary  Name]],tblREGASSJune19[[#This Row],[Alloc4FUNC]])","v":"1823990OTHR REG ASSET-N CST187857Reg Asset - WY ECAM CY2017OTHER"},1823990,"OTHR REG ASSET-N CST",187857,"Reg Asset - WY ECAM CY2017","OTHER",-1590.8055315384599,{"$f":"IF(OR(tblREGASSJune19[[#This Row],[Alloc]]=\"IDU\",tblREGASSJune19[[#This Row],[Alloc]]=\"OR\",tblREGASSJune19[[#This Row],[Alloc]]=\"UT\",tblREGASSJune19[[#This Row],[Alloc]]=\"WYU\",tblREGASSJune19[[#This Row],[Alloc]]=\"WYP\",tblREGASSJune19[[#This Row],[Alloc]]=\"CA\",tblREGASSJune19[[#This Row],[Alloc]]=\"WA\"),\"SITUS\",tblREGASSJune19[[#This Row],[Alloc]])","v":"OTHER"},{"$f":"INDEX(tblREGASSLookup[FUNC],MATCH(tblREGASSJune19[[#This Row],[Concat]],tblREGASSLookup[Concat],0))","v":"P"},{"$f":"IF(tblREGASSJune19[[#This Row],[Total ($000)]]=0,\"NO\",IF(ISNA(tblREGASSJune19[[#This Row],[FUNC]]),\"YES\",IF(_xlfn.ISFORMULA(tblREGASSJune19[[#This Row],[FUNC]]),\"NO\",\"YES\")))","v":"NO"}]
[{"$f":"CONCATENATE(tblREGASSJune19[[#This Row],[Primary Account]],tblREGASSJune19[[#This Row],[Primary Name]],tblREGASSJune19[[#This Row],[Secondary Acct]],tblREGASSJune19[[#This Row],[Secondary  Name]],tblREGASSJune19[[#This Row],[Alloc4FUNC]])","v":"1823990OTHR REG ASSET-N CST187858Reg Asset - WY ECAM CY2018OTHER"},1823990,"OTHR REG ASSET-N CST",187858,"Reg Asset - WY ECAM CY2018","OTHER",5812.9319723076896,{"$f":"IF(OR(tblREGASSJune19[[#This Row],[Alloc]]=\"IDU\",tblREGASSJune19[[#This Row],[Alloc]]=\"OR\",tblREGASSJune19[[#This Row],[Alloc]]=\"UT\",tblREGASSJune19[[#This Row],[Alloc]]=\"WYU\",tblREGASSJune19[[#This Row],[Alloc]]=\"WYP\",tblREGASSJune19[[#This Row],[Alloc]]=\"CA\",tblREGASSJune19[[#This Row],[Alloc]]=\"WA\"),\"SITUS\",tblREGASSJune19[[#This Row],[Alloc]])","v":"OTHER"},{"$f":"INDEX(tblREGASSLookup[FUNC],MATCH(tblREGASSJune19[[#This Row],[Concat]],tblREGASSLookup[Concat],0))","v":"P"},{"$f":"IF(tblREGASSJune19[[#This Row],[Total ($000)]]=0,\"NO\",IF(ISNA(tblREGASSJune19[[#This Row],[FUNC]]),\"YES\",IF(_xlfn.ISFORMULA(tblREGASSJune19[[#This Row],[FUNC]]),\"NO\",\"YES\")))","v":"NO"}]
[{"$f":"CONCATENATE(tblREGASSJune19[[#This Row],[Primary Account]],tblREGASSJune19[[#This Row],[Primary Name]],tblREGASSJune19[[#This Row],[Secondary Acct]],tblREGASSJune19[[#This Row],[Secondary  Name]],tblREGASSJune19[[#This Row],[Alloc4FUNC]])","v":"1823990OTHR REG ASSET-N CST187859Reg Asset - WY ECAM CY2019OTHER"},1823990,"OTHR REG ASSET-N CST",187859,"Reg Asset - WY ECAM CY2019","OTHER",1283.03421307692,{"$f":"IF(OR(tblREGASSJune19[[#This Row],[Alloc]]=\"IDU\",tblREGASSJune19[[#This Row],[Alloc]]=\"OR\",tblREGASSJune19[[#This Row],[Alloc]]=\"UT\",tblREGASSJune19[[#This Row],[Alloc]]=\"WYU\",tblREGASSJune19[[#This Row],[Alloc]]=\"WYP\",tblREGASSJune19[[#This Row],[Alloc]]=\"CA\",tblREGASSJune19[[#This Row],[Alloc]]=\"WA\"),\"SITUS\",tblREGASSJune19[[#This Row],[Alloc]])","v":"OTHER"},{"$f":"INDEX(tblREGASSLookup[FUNC],MATCH(tblREGASSJune19[[#This Row],[Concat]],tblREGASSLookup[Concat],0))","v":"P"},{"$f":"IF(tblREGASSJune19[[#This Row],[Total ($000)]]=0,\"NO\",IF(ISNA(tblREGASSJune19[[#This Row],[FUNC]]),\"YES\",IF(_xlfn.ISFORMULA(tblREGASSJune19[[#This Row],[FUNC]]),\"NO\",\"YES\")))","v":"NO"}]
[{"$f":"CONCATENATE(tblREGASSJune19[[#This Row],[Primary Account]],tblREGASSJune19[[#This Row],[Primary Name]],tblREGASSJune19[[#This Row],[Secondary Acct]],tblREGASSJune19[[#This Row],[Secondary  Name]],tblREGASSJune19[[#This Row],[Alloc4FUNC]])","v":"1823990OTHR REG ASSET-N CST187862Reg Asset - WY RRA CY2012OTHER"},1823990,"OTHR REG ASSET-N CST",187862,"Reg Asset - WY RRA CY2012","OTHER",0,{"$f":"IF(OR(tblREGASSJune19[[#This Row],[Alloc]]=\"IDU\",tblREGASSJune19[[#This Row],[Alloc]]=\"OR\",tblREGASSJune19[[#This Row],[Alloc]]=\"UT\",tblREGASSJune19[[#This Row],[Alloc]]=\"WYU\",tblREGASSJune19[[#This Row],[Alloc]]=\"WYP\",tblREGASSJune19[[#This Row],[Alloc]]=\"CA\",tblREGASSJune19[[#This Row],[Alloc]]=\"WA\"),\"SITUS\",tblREGASSJune19[[#This Row],[Alloc]])","v":"OTHER"},{"$f":"INDEX(tblREGASSLookup[FUNC],MATCH(tblREGASSJune19[[#This Row],[Concat]],tblREGASSLookup[Concat],0))","v":{"$error":"#N/A"}},{"$f":"IF(tblREGASSJune19[[#This Row],[Total ($000)]]=0,\"NO\",IF(ISNA(tblREGASSJune19[[#This Row],[FUNC]]),\"YES\",IF(_xlfn.ISFORMULA(tblREGASSJune19[[#This Row],[FUNC]]),\"NO\",\"YES\")))","v":"NO"}]
[{"$f":"CONCATENATE(tblREGASSJune19[[#This Row],[Primary Account]],tblREGASSJune19[[#This Row],[Primary Name]],tblREGASSJune19[[#This Row],[Secondary Acct]],tblREGASSJune19[[#This Row],[Secondary  Name]],tblREGASSJune19[[#This Row],[Alloc4FUNC]])","v":"1823990OTHR REG ASSET-N CST187863Reg Asset  - WY RRA CY2013OTHER"},1823990,"OTHR REG ASSET-N CST",187863,"Reg Asset  - WY RRA CY2013","OTHER",0,{"$f":"IF(OR(tblREGASSJune19[[#This Row],[Alloc]]=\"IDU\",tblREGASSJune19[[#This Row],[Alloc]]=\"OR\",tblREGASSJune19[[#This Row],[Alloc]]=\"UT\",tblREGASSJune19[[#This Row],[Alloc]]=\"WYU\",tblREGASSJune19[[#This Row],[Alloc]]=\"WYP\",tblREGASSJune19[[#This Row],[Alloc]]=\"CA\",tblREGASSJune19[[#This Row],[Alloc]]=\"WA\"),\"SITUS\",tblREGASSJune19[[#This Row],[Alloc]])","v":"OTHER"},{"$f":"INDEX(tblREGASSLookup[FUNC],MATCH(tblREGASSJune19[[#This Row],[Concat]],tblREGASSLookup[Concat],0))","v":{"$error":"#N/A"}},{"$f":"IF(tblREGASSJune19[[#This Row],[Total ($000)]]=0,\"NO\",IF(ISNA(tblREGASSJune19[[#This Row],[FUNC]]),\"YES\",IF(_xlfn.ISFORMULA(tblREGASSJune19[[#This Row],[FUNC]]),\"NO\",\"YES\")))","v":"NO"}]
[{"$f":"CONCATENATE(tblREGASSJune19[[#This Row],[Primary Account]],tblREGASSJune19[[#This Row],[Primary Name]],tblREGASSJune19[[#This Row],[Secondary Acct]],tblREGASSJune19[[#This Row],[Secondary  Name]],tblREGASSJune19[[#This Row],[Alloc4FUNC]])","v":"1823990OTHR REG ASSET-N CST187864Reg Asset  - WY RRA CY2014OTHER"},1823990,"OTHR REG ASSET-N CST",187864,"Reg Asset  - WY RRA CY2014","OTHER",0,{"$f":"IF(OR(tblREGASSJune19[[#This Row],[Alloc]]=\"IDU\",tblREGASSJune19[[#This Row],[Alloc]]=\"OR\",tblREGASSJune19[[#This Row],[Alloc]]=\"UT\",tblREGASSJune19[[#This Row],[Alloc]]=\"WYU\",tblREGASSJune19[[#This Row],[Alloc]]=\"WYP\",tblREGASSJune19[[#This Row],[Alloc]]=\"CA\",tblREGASSJune19[[#This Row],[Alloc]]=\"WA\"),\"SITUS\",tblREGASSJune19[[#This Row],[Alloc]])","v":"OTHER"},{"$f":"INDEX(tblREGASSLookup[FUNC],MATCH(tblREGASSJune19[[#This Row],[Concat]],tblREGASSLookup[Concat],0))","v":{"$error":"#N/A"}},{"$f":"IF(tblREGASSJune19[[#This Row],[Total ($000)]]=0,\"NO\",IF(ISNA(tblREGASSJune19[[#This Row],[FUNC]]),\"YES\",IF(_xlfn.ISFORMULA(tblREGASSJune19[[#This Row],[FUNC]]),\"NO\",\"YES\")))","v":"NO"}]
[{"$f":"CONCATENATE(tblREGASSJune19[[#This Row],[Primary Account]],tblREGASSJune19[[#This Row],[Primary Name]],tblREGASSJune19[[#This Row],[Secondary Acct]],tblREGASSJune19[[#This Row],[Secondary  Name]],tblREGASSJune19[[#This Row],[Alloc4FUNC]])","v":"1823990OTHR REG ASSET-N CST187865Reg Asset  - WY RRA CY2015OTHER"},1823990,"OTHR REG ASSET-N CST",187865,"Reg Asset  - WY RRA CY2015","OTHER",0,{"$f":"IF(OR(tblREGASSJune19[[#This Row],[Alloc]]=\"IDU\",tblREGASSJune19[[#This Row],[Alloc]]=\"OR\",tblREGASSJune19[[#This Row],[Alloc]]=\"UT\",tblREGASSJune19[[#This Row],[Alloc]]=\"WYU\",tblREGASSJune19[[#This Row],[Alloc]]=\"WYP\",tblREGASSJune19[[#This Row],[Alloc]]=\"CA\",tblREGASSJune19[[#This Row],[Alloc]]=\"WA\"),\"SITUS\",tblREGASSJune19[[#This Row],[Alloc]])","v":"OTHER"},{"$f":"INDEX(tblREGASSLookup[FUNC],MATCH(tblREGASSJune19[[#This Row],[Concat]],tblREGASSLookup[Concat],0))","v":"P"},{"$f":"IF(tblREGASSJune19[[#This Row],[Total ($000)]]=0,\"NO\",IF(ISNA(tblREGASSJune19[[#This Row],[FUNC]]),\"YES\",IF(_xlfn.ISFORMULA(tblREGASSJune19[[#This Row],[FUNC]]),\"NO\",\"YES\")))","v":"NO"}]
[{"$f":"CONCATENATE(tblREGASSJune19[[#This Row],[Primary Account]],tblREGASSJune19[[#This Row],[Primary Name]],tblREGASSJune19[[#This Row],[Secondary Acct]],tblREGASSJune19[[#This Row],[Secondary  Name]],tblREGASSJune19[[#This Row],[Alloc4FUNC]])","v":"1823990OTHR REG ASSET-N CST187866Reg Asset  - WY RRA CY2016OTHER"},1823990,"OTHR REG ASSET-N CST",187866,"Reg Asset  - WY RRA CY2016","OTHER",-9.2929399999999998,{"$f":"IF(OR(tblREGASSJune19[[#This Row],[Alloc]]=\"IDU\",tblREGASSJune19[[#This Row],[Alloc]]=\"OR\",tblREGASSJune19[[#This Row],[Alloc]]=\"UT\",tblREGASSJune19[[#This Row],[Alloc]]=\"WYU\",tblREGASSJune19[[#This Row],[Alloc]]=\"WYP\",tblREGASSJune19[[#This Row],[Alloc]]=\"CA\",tblREGASSJune19[[#This Row],[Alloc]]=\"WA\"),\"SITUS\",tblREGASSJune19[[#This Row],[Alloc]])","v":"OTHER"},{"$f":"INDEX(tblREGASSLookup[FUNC],MATCH(tblREGASSJune19[[#This Row],[Concat]],tblREGASSLookup[Concat],0))","v":"P"},{"$f":"IF(tblREGASSJune19[[#This Row],[Total ($000)]]=0,\"NO\",IF(ISNA(tblREGASSJune19[[#This Row],[FUNC]]),\"YES\",IF(_xlfn.ISFORMULA(tblREGASSJune19[[#This Row],[FUNC]]),\"NO\",\"YES\")))","v":"NO"}]
[{"$f":"CONCATENATE(tblREGASSJune19[[#This Row],[Primary Account]],tblREGASSJune19[[#This Row],[Primary Name]],tblREGASSJune19[[#This Row],[Secondary Acct]],tblREGASSJune19[[#This Row],[Secondary  Name]],tblREGASSJune19[[#This Row],[Alloc4FUNC]])","v":"1823990OTHR REG ASSET-N CST187867Reg Asset - WY RRA CY2017OTHER"},1823990,"OTHR REG ASSET-N CST",187867,"Reg Asset - WY RRA CY2017","OTHER",253.53064538461501,{"$f":"IF(OR(tblREGASSJune19[[#This Row],[Alloc]]=\"IDU\",tblREGASSJune19[[#This Row],[Alloc]]=\"OR\",tblREGASSJune19[[#This Row],[Alloc]]=\"UT\",tblREGASSJune19[[#This Row],[Alloc]]=\"WYU\",tblREGASSJune19[[#This Row],[Alloc]]=\"WYP\",tblREGASSJune19[[#This Row],[Alloc]]=\"CA\",tblREGASSJune19[[#This Row],[Alloc]]=\"WA\"),\"SITUS\",tblREGASSJune19[[#This Row],[Alloc]])","v":"OTHER"},{"$f":"INDEX(tblREGASSLookup[FUNC],MATCH(tblREGASSJune19[[#This Row],[Concat]],tblREGASSLookup[Concat],0))","v":"P"},{"$f":"IF(tblREGASSJune19[[#This Row],[Total ($000)]]=0,\"NO\",IF(ISNA(tblREGASSJune19[[#This Row],[FUNC]]),\"YES\",IF(_xlfn.ISFORMULA(tblREGASSJune19[[#This Row],[FUNC]]),\"NO\",\"YES\")))","v":"NO"}]
[{"$f":"CONCATENATE(tblREGASSJune19[[#This Row],[Primary Account]],tblREGASSJune19[[#This Row],[Primary Name]],tblREGASSJune19[[#This Row],[Secondary Acct]],tblREGASSJune19[[#This Row],[Secondary  Name]],tblREGASSJune19[[#This Row],[Alloc4FUNC]])","v":"1823990OTHR REG ASSET-N CST187868Reg Asset - WY RRA CY2018OTHER"},1823990,"OTHR REG ASSET-N CST",187868,"Reg Asset - WY RRA CY2018","OTHER",485.89350615384598,{"$f":"IF(OR(tblREGASSJune19[[#This Row],[Alloc]]=\"IDU\",tblREGASSJune19[[#This Row],[Alloc]]=\"OR\",tblREGASSJune19[[#This Row],[Alloc]]=\"UT\",tblREGASSJune19[[#This Row],[Alloc]]=\"WYU\",tblREGASSJune19[[#This Row],[Alloc]]=\"WYP\",tblREGASSJune19[[#This Row],[Alloc]]=\"CA\",tblREGASSJune19[[#This Row],[Alloc]]=\"WA\"),\"SITUS\",tblREGASSJune19[[#This Row],[Alloc]])","v":"OTHER"},{"$f":"INDEX(tblREGASSLookup[FUNC],MATCH(tblREGASSJune19[[#This Row],[Concat]],tblREGASSLookup[Concat],0))","v":"P"},{"$f":"IF(tblREGASSJune19[[#This Row],[Total ($000)]]=0,\"NO\",IF(ISNA(tblREGASSJune19[[#This Row],[FUNC]]),\"YES\",IF(_xlfn.ISFORMULA(tblREGASSJune19[[#This Row],[FUNC]]),\"NO\",\"YES\")))","v":"NO"}]
[{"$f":"CONCATENATE(tblREGASSJune19[[#This Row],[Primary Account]],tblREGASSJune19[[#This Row],[Primary Name]],tblREGASSJune19[[#This Row],[Secondary Acct]],tblREGASSJune19[[#This Row],[Secondary  Name]],tblREGASSJune19[[#This Row],[Alloc4FUNC]])","v":"1823990OTHR REG ASSET-N CST187869Reg Asset - WY RRA CY2019OTHER"},1823990,"OTHR REG ASSET-N CST",187869,"Reg Asset - WY RRA CY2019","OTHER",-31.816421538461501,{"$f":"IF(OR(tblREGASSJune19[[#This Row],[Alloc]]=\"IDU\",tblREGASSJune19[[#This Row],[Alloc]]=\"OR\",tblREGASSJune19[[#This Row],[Alloc]]=\"UT\",tblREGASSJune19[[#This Row],[Alloc]]=\"WYU\",tblREGASSJune19[[#This Row],[Alloc]]=\"WYP\",tblREGASSJune19[[#This Row],[Alloc]]=\"CA\",tblREGASSJune19[[#This Row],[Alloc]]=\"WA\"),\"SITUS\",tblREGASSJune19[[#This Row],[Alloc]])","v":"OTHER"},{"$f":"INDEX(tblREGASSLookup[FUNC],MATCH(tblREGASSJune19[[#This Row],[Concat]],tblREGASSLookup[Concat],0))","v":"P"},{"$f":"IF(tblREGASSJune19[[#This Row],[Total ($000)]]=0,\"NO\",IF(ISNA(tblREGASSJune19[[#This Row],[FUNC]]),\"YES\",IF(_xlfn.ISFORMULA(tblREGASSJune19[[#This Row],[FUNC]]),\"NO\",\"YES\")))","v":"NO"}]
[{"$f":"CONCATENATE(tblREGASSJune19[[#This Row],[Primary Account]],tblREGASSJune19[[#This Row],[Primary Name]],tblREGASSJune19[[#This Row],[Secondary Acct]],tblREGASSJune19[[#This Row],[Secondary  Name]],tblREGASSJune19[[#This Row],[Alloc4FUNC]])","v":"1823990OTHR REG ASSET-N CST187872Contra Reg Asset - WY ECAM CY2012OTHER"},1823990,"OTHR REG ASSET-N CST",187872,"Contra Reg Asset - WY ECAM CY2012","OTHER",0,{"$f":"IF(OR(tblREGASSJune19[[#This Row],[Alloc]]=\"IDU\",tblREGASSJune19[[#This Row],[Alloc]]=\"OR\",tblREGASSJune19[[#This Row],[Alloc]]=\"UT\",tblREGASSJune19[[#This Row],[Alloc]]=\"WYU\",tblREGASSJune19[[#This Row],[Alloc]]=\"WYP\",tblREGASSJune19[[#This Row],[Alloc]]=\"CA\",tblREGASSJune19[[#This Row],[Alloc]]=\"WA\"),\"SITUS\",tblREGASSJune19[[#This Row],[Alloc]])","v":"OTHER"},{"$f":"INDEX(tblREGASSLookup[FUNC],MATCH(tblREGASSJune19[[#This Row],[Concat]],tblREGASSLookup[Concat],0))","v":{"$error":"#N/A"}},{"$f":"IF(tblREGASSJune19[[#This Row],[Total ($000)]]=0,\"NO\",IF(ISNA(tblREGASSJune19[[#This Row],[FUNC]]),\"YES\",IF(_xlfn.ISFORMULA(tblREGASSJune19[[#This Row],[FUNC]]),\"NO\",\"YES\")))","v":"NO"}]
[{"$f":"CONCATENATE(tblREGASSJune19[[#This Row],[Primary Account]],tblREGASSJune19[[#This Row],[Primary Name]],tblREGASSJune19[[#This Row],[Secondary Acct]],tblREGASSJune19[[#This Row],[Secondary  Name]],tblREGASSJune19[[#This Row],[Alloc4FUNC]])","v":"1823990OTHR REG ASSET-N CST187873Contra Reg Asset - WY ECAM CY2013OTHER"},1823990,"OTHR REG ASSET-N CST",187873,"Contra Reg Asset - WY ECAM CY2013","OTHER",0,{"$f":"IF(OR(tblREGASSJune19[[#This Row],[Alloc]]=\"IDU\",tblREGASSJune19[[#This Row],[Alloc]]=\"OR\",tblREGASSJune19[[#This Row],[Alloc]]=\"UT\",tblREGASSJune19[[#This Row],[Alloc]]=\"WYU\",tblREGASSJune19[[#This Row],[Alloc]]=\"WYP\",tblREGASSJune19[[#This Row],[Alloc]]=\"CA\",tblREGASSJune19[[#This Row],[Alloc]]=\"WA\"),\"SITUS\",tblREGASSJune19[[#This Row],[Alloc]])","v":"OTHER"},{"$f":"INDEX(tblREGASSLookup[FUNC],MATCH(tblREGASSJune19[[#This Row],[Concat]],tblREGASSLookup[Concat],0))","v":{"$error":"#N/A"}},{"$f":"IF(tblREGASSJune19[[#This Row],[Total ($000)]]=0,\"NO\",IF(ISNA(tblREGASSJune19[[#This Row],[FUNC]]),\"YES\",IF(_xlfn.ISFORMULA(tblREGASSJune19[[#This Row],[FUNC]]),\"NO\",\"YES\")))","v":"NO"}]
[{"$f":"CONCATENATE(tblREGASSJune19[[#This Row],[Primary Account]],tblREGASSJune19[[#This Row],[Primary Name]],tblREGASSJune19[[#This Row],[Secondary Acct]],tblREGASSJune19[[#This Row],[Secondary  Name]],tblREGASSJune19[[#This Row],[Alloc4FUNC]])","v":"1823990OTHR REG ASSET-N CST187874Contra Reg Asset - WY ECAM CY2014OTHER"},1823990,"OTHR REG ASSET-N CST",187874,"Contra Reg Asset - WY ECAM CY2014","OTHER",0,{"$f":"IF(OR(tblREGASSJune19[[#This Row],[Alloc]]=\"IDU\",tblREGASSJune19[[#This Row],[Alloc]]=\"OR\",tblREGASSJune19[[#This Row],[Alloc]]=\"UT\",tblREGASSJune19[[#This Row],[Alloc]]=\"WYU\",tblREGASSJune19[[#This Row],[Alloc]]=\"WYP\",tblREGASSJune19[[#This Row],[Alloc]]=\"CA\",tblREGASSJune19[[#This Row],[Alloc]]=\"WA\"),\"SITUS\",tblREGASSJune19[[#This Row],[Alloc]])","v":"OTHER"},{"$f":"INDEX(tblREGASSLookup[FUNC],MATCH(tblREGASSJune19[[#This Row],[Concat]],tblREGASSLookup[Concat],0))","v":{"$error":"#N/A"}},{"$f":"IF(tblREGASSJune19[[#This Row],[Total ($000)]]=0,\"NO\",IF(ISNA(tblREGASSJune19[[#This Row],[FUNC]]),\"YES\",IF(_xlfn.ISFORMULA(tblREGASSJune19[[#This Row],[FUNC]]),\"NO\",\"YES\")))","v":"NO"}]
[{"$f":"CONCATENATE(tblREGASSJune19[[#This Row],[Primary Account]],tblREGASSJune19[[#This Row],[Primary Name]],tblREGASSJune19[[#This Row],[Secondary Acct]],tblREGASSJune19[[#This Row],[Secondary  Name]],tblREGASSJune19[[#This Row],[Alloc4FUNC]])","v":"1823990OTHR REG ASSET-N CST187875Contra Reg Asset - WY ECAM CY2015OTHER"},1823990,"OTHR REG ASSET-N CST",187875,"Contra Reg Asset - WY ECAM CY2015","OTHER",0,{"$f":"IF(OR(tblREGASSJune19[[#This Row],[Alloc]]=\"IDU\",tblREGASSJune19[[#This Row],[Alloc]]=\"OR\",tblREGASSJune19[[#This Row],[Alloc]]=\"UT\",tblREGASSJune19[[#This Row],[Alloc]]=\"WYU\",tblREGASSJune19[[#This Row],[Alloc]]=\"WYP\",tblREGASSJune19[[#This Row],[Alloc]]=\"CA\",tblREGASSJune19[[#This Row],[Alloc]]=\"WA\"),\"SITUS\",tblREGASSJune19[[#This Row],[Alloc]])","v":"OTHER"},{"$f":"INDEX(tblREGASSLookup[FUNC],MATCH(tblREGASSJune19[[#This Row],[Concat]],tblREGASSLookup[Concat],0))","v":"P"},{"$f":"IF(tblREGASSJune19[[#This Row],[Total ($000)]]=0,\"NO\",IF(ISNA(tblREGASSJune19[[#This Row],[FUNC]]),\"YES\",IF(_xlfn.ISFORMULA(tblREGASSJune19[[#This Row],[FUNC]]),\"NO\",\"YES\")))","v":"NO"}]
[{"$f":"CONCATENATE(tblREGASSJune19[[#This Row],[Primary Account]],tblREGASSJune19[[#This Row],[Primary Name]],tblREGASSJune19[[#This Row],[Secondary Acct]],tblREGASSJune19[[#This Row],[Secondary  Name]],tblREGASSJune19[[#This Row],[Alloc4FUNC]])","v":"1823990OTHR REG ASSET-N CST187876CONTRA REG ASSET - WY ECAM CY2016OTHER"},1823990,"OTHR REG ASSET-N CST",187876,"CONTRA REG ASSET - WY ECAM CY2016","OTHER",0,{"$f":"IF(OR(tblREGASSJune19[[#This Row],[Alloc]]=\"IDU\",tblREGASSJune19[[#This Row],[Alloc]]=\"OR\",tblREGASSJune19[[#This Row],[Alloc]]=\"UT\",tblREGASSJune19[[#This Row],[Alloc]]=\"WYU\",tblREGASSJune19[[#This Row],[Alloc]]=\"WYP\",tblREGASSJune19[[#This Row],[Alloc]]=\"CA\",tblREGASSJune19[[#This Row],[Alloc]]=\"WA\"),\"SITUS\",tblREGASSJune19[[#This Row],[Alloc]])","v":"OTHER"},{"$f":"INDEX(tblREGASSLookup[FUNC],MATCH(tblREGASSJune19[[#This Row],[Concat]],tblREGASSLookup[Concat],0))","v":"P"},{"$f":"IF(tblREGASSJune19[[#This Row],[Total ($000)]]=0,\"NO\",IF(ISNA(tblREGASSJune19[[#This Row],[FUNC]]),\"YES\",IF(_xlfn.ISFORMULA(tblREGASSJune19[[#This Row],[FUNC]]),\"NO\",\"YES\")))","v":"NO"}]
[{"$f":"CONCATENATE(tblREGASSJune19[[#This Row],[Primary Account]],tblREGASSJune19[[#This Row],[Primary Name]],tblREGASSJune19[[#This Row],[Secondary Acct]],tblREGASSJune19[[#This Row],[Secondary  Name]],tblREGASSJune19[[#This Row],[Alloc4FUNC]])","v":"1823990OTHR REG ASSET-N CST187877Contra Reg Asset - WY ECAM CY2018OTHER"},1823990,"OTHR REG ASSET-N CST",187877,"Contra Reg Asset - WY ECAM CY2018","OTHER",-557.81922846153805,{"$f":"IF(OR(tblREGASSJune19[[#This Row],[Alloc]]=\"IDU\",tblREGASSJune19[[#This Row],[Alloc]]=\"OR\",tblREGASSJune19[[#This Row],[Alloc]]=\"UT\",tblREGASSJune19[[#This Row],[Alloc]]=\"WYU\",tblREGASSJune19[[#This Row],[Alloc]]=\"WYP\",tblREGASSJune19[[#This Row],[Alloc]]=\"CA\",tblREGASSJune19[[#This Row],[Alloc]]=\"WA\"),\"SITUS\",tblREGASSJune19[[#This Row],[Alloc]])","v":"OTHER"},{"$f":"INDEX(tblREGASSLookup[FUNC],MATCH(tblREGASSJune19[[#This Row],[Concat]],tblREGASSLookup[Concat],0))","v":"P"},{"$f":"IF(tblREGASSJune19[[#This Row],[Total ($000)]]=0,\"NO\",IF(ISNA(tblREGASSJune19[[#This Row],[FUNC]]),\"YES\",IF(_xlfn.ISFORMULA(tblREGASSJune19[[#This Row],[FUNC]]),\"NO\",\"YES\")))","v":"NO"}]
[{"$f":"CONCATENATE(tblREGASSJune19[[#This Row],[Primary Account]],tblREGASSJune19[[#This Row],[Primary Name]],tblREGASSJune19[[#This Row],[Secondary Acct]],tblREGASSJune19[[#This Row],[Secondary  Name]],tblREGASSJune19[[#This Row],[Alloc4FUNC]])","v":"1823990OTHR REG ASSET-N CST187878Contra Reg Asset - WY ECAM CY2017OTHER"},1823990,"OTHR REG ASSET-N CST",187878,"Contra Reg Asset - WY ECAM CY2017","OTHER",-143.13918923076901,{"$f":"IF(OR(tblREGASSJune19[[#This Row],[Alloc]]=\"IDU\",tblREGASSJune19[[#This Row],[Alloc]]=\"OR\",tblREGASSJune19[[#This Row],[Alloc]]=\"UT\",tblREGASSJune19[[#This Row],[Alloc]]=\"WYU\",tblREGASSJune19[[#This Row],[Alloc]]=\"WYP\",tblREGASSJune19[[#This Row],[Alloc]]=\"CA\",tblREGASSJune19[[#This Row],[Alloc]]=\"WA\"),\"SITUS\",tblREGASSJune19[[#This Row],[Alloc]])","v":"OTHER"},{"$f":"INDEX(tblREGASSLookup[FUNC],MATCH(tblREGASSJune19[[#This Row],[Concat]],tblREGASSLookup[Concat],0))","v":"P"},{"$f":"IF(tblREGASSJune19[[#This Row],[Total ($000)]]=0,\"NO\",IF(ISNA(tblREGASSJune19[[#This Row],[FUNC]]),\"YES\",IF(_xlfn.ISFORMULA(tblREGASSJune19[[#This Row],[FUNC]]),\"NO\",\"YES\")))","v":"NO"}]
[{"$f":"CONCATENATE(tblREGASSJune19[[#This Row],[Primary Account]],tblREGASSJune19[[#This Row],[Primary Name]],tblREGASSJune19[[#This Row],[Secondary Acct]],tblREGASSJune19[[#This Row],[Secondary  Name]],tblREGASSJune19[[#This Row],[Alloc4FUNC]])","v":"1823990OTHR REG ASSET-N CST187879Contra Reg Asset - WY ECAM CY2019OTHER"},1823990,"OTHR REG ASSET-N CST",187879,"Contra Reg Asset - WY ECAM CY2019","OTHER",-59.8245461538461,{"$f":"IF(OR(tblREGASSJune19[[#This Row],[Alloc]]=\"IDU\",tblREGASSJune19[[#This Row],[Alloc]]=\"OR\",tblREGASSJune19[[#This Row],[Alloc]]=\"UT\",tblREGASSJune19[[#This Row],[Alloc]]=\"WYU\",tblREGASSJune19[[#This Row],[Alloc]]=\"WYP\",tblREGASSJune19[[#This Row],[Alloc]]=\"CA\",tblREGASSJune19[[#This Row],[Alloc]]=\"WA\"),\"SITUS\",tblREGASSJune19[[#This Row],[Alloc]])","v":"OTHER"},{"$f":"INDEX(tblREGASSLookup[FUNC],MATCH(tblREGASSJune19[[#This Row],[Concat]],tblREGASSLookup[Concat],0))","v":"P"},{"$f":"IF(tblREGASSJune19[[#This Row],[Total ($000)]]=0,\"NO\",IF(ISNA(tblREGASSJune19[[#This Row],[FUNC]]),\"YES\",IF(_xlfn.ISFORMULA(tblREGASSJune19[[#This Row],[FUNC]]),\"NO\",\"YES\")))","v":"NO"}]
[{"$f":"CONCATENATE(tblREGASSJune19[[#This Row],[Primary Account]],tblREGASSJune19[[#This Row],[Primary Name]],tblREGASSJune19[[#This Row],[Secondary Acct]],tblREGASSJune19[[#This Row],[Secondary  Name]],tblREGASSJune19[[#This Row],[Alloc4FUNC]])","v":"1823990OTHR REG ASSET-N CST187880Reg Asset - UT RBA CY2019OTHER"},1823990,"OTHR REG ASSET-N CST",187880,"Reg Asset - UT RBA CY2019","OTHER",-91.0767569230769,{"$f":"IF(OR(tblREGASSJune19[[#This Row],[Alloc]]=\"IDU\",tblREGASSJune19[[#This Row],[Alloc]]=\"OR\",tblREGASSJune19[[#This Row],[Alloc]]=\"UT\",tblREGASSJune19[[#This Row],[Alloc]]=\"WYU\",tblREGASSJune19[[#This Row],[Alloc]]=\"WYP\",tblREGASSJune19[[#This Row],[Alloc]]=\"CA\",tblREGASSJune19[[#This Row],[Alloc]]=\"WA\"),\"SITUS\",tblREGASSJune19[[#This Row],[Alloc]])","v":"OTHER"},{"$f":"INDEX(tblREGASSLookup[FUNC],MATCH(tblREGASSJune19[[#This Row],[Concat]],tblREGASSLookup[Concat],0))","v":"P"},{"$f":"IF(tblREGASSJune19[[#This Row],[Total ($000)]]=0,\"NO\",IF(ISNA(tblREGASSJune19[[#This Row],[FUNC]]),\"YES\",IF(_xlfn.ISFORMULA(tblREGASSJune19[[#This Row],[FUNC]]),\"NO\",\"YES\")))","v":"NO"}]
[{"$f":"CONCATENATE(tblREGASSJune19[[#This Row],[Primary Account]],tblREGASSJune19[[#This Row],[Primary Name]],tblREGASSJune19[[#This Row],[Secondary Acct]],tblREGASSJune19[[#This Row],[Secondary  Name]],tblREGASSJune19[[#This Row],[Alloc4FUNC]])","v":"1823990OTHR REG ASSET-N CST187881Deferred Exc RECs in Rates-UT (2011-12)OTHER"},1823990,"OTHR REG ASSET-N CST",187881,"Deferred Exc RECs in Rates-UT (2011-12)","OTHER",0,{"$f":"IF(OR(tblREGASSJune19[[#This Row],[Alloc]]=\"IDU\",tblREGASSJune19[[#This Row],[Alloc]]=\"OR\",tblREGASSJune19[[#This Row],[Alloc]]=\"UT\",tblREGASSJune19[[#This Row],[Alloc]]=\"WYU\",tblREGASSJune19[[#This Row],[Alloc]]=\"WYP\",tblREGASSJune19[[#This Row],[Alloc]]=\"CA\",tblREGASSJune19[[#This Row],[Alloc]]=\"WA\"),\"SITUS\",tblREGASSJune19[[#This Row],[Alloc]])","v":"OTHER"},{"$f":"INDEX(tblREGASSLookup[FUNC],MATCH(tblREGASSJune19[[#This Row],[Concat]],tblREGASSLookup[Concat],0))","v":{"$error":"#N/A"}},{"$f":"IF(tblREGASSJune19[[#This Row],[Total ($000)]]=0,\"NO\",IF(ISNA(tblREGASSJune19[[#This Row],[FUNC]]),\"YES\",IF(_xlfn.ISFORMULA(tblREGASSJune19[[#This Row],[FUNC]]),\"NO\",\"YES\")))","v":"NO"}]
[{"$f":"CONCATENATE(tblREGASSJune19[[#This Row],[Primary Account]],tblREGASSJune19[[#This Row],[Primary Name]],tblREGASSJune19[[#This Row],[Secondary Acct]],tblREGASSJune19[[#This Row],[Secondary  Name]],tblREGASSJune19[[#This Row],[Alloc4FUNC]])","v":"1823990OTHR REG ASSET-N CST187883Deferred Exc RECs in Rates-WY (2011-12)OTHER"},1823990,"OTHR REG ASSET-N CST",187883,"Deferred Exc RECs in Rates-WY (2011-12)","OTHER",0,{"$f":"IF(OR(tblREGASSJune19[[#This Row],[Alloc]]=\"IDU\",tblREGASSJune19[[#This Row],[Alloc]]=\"OR\",tblREGASSJune19[[#This Row],[Alloc]]=\"UT\",tblREGASSJune19[[#This Row],[Alloc]]=\"WYU\",tblREGASSJune19[[#This Row],[Alloc]]=\"WYP\",tblREGASSJune19[[#This Row],[Alloc]]=\"CA\",tblREGASSJune19[[#This Row],[Alloc]]=\"WA\"),\"SITUS\",tblREGASSJune19[[#This Row],[Alloc]])","v":"OTHER"},{"$f":"INDEX(tblREGASSLookup[FUNC],MATCH(tblREGASSJune19[[#This Row],[Concat]],tblREGASSLookup[Concat],0))","v":{"$error":"#N/A"}},{"$f":"IF(tblREGASSJune19[[#This Row],[Total ($000)]]=0,\"NO\",IF(ISNA(tblREGASSJune19[[#This Row],[FUNC]]),\"YES\",IF(_xlfn.ISFORMULA(tblREGASSJune19[[#This Row],[FUNC]]),\"NO\",\"YES\")))","v":"NO"}]
[{"$f":"CONCATENATE(tblREGASSJune19[[#This Row],[Primary Account]],tblREGASSJune19[[#This Row],[Primary Name]],tblREGASSJune19[[#This Row],[Secondary Acct]],tblREGASSJune19[[#This Row],[Secondary  Name]],tblREGASSJune19[[#This Row],[Alloc4FUNC]])","v":"1823990OTHR REG ASSET-N CST187886Reg Asset-OR RPS Compliance PurchasesOTHER"},1823990,"OTHR REG ASSET-N CST",187886,"Reg Asset-OR RPS Compliance Purchases","OTHER",132.314971538462,{"$f":"IF(OR(tblREGASSJune19[[#This Row],[Alloc]]=\"IDU\",tblREGASSJune19[[#This Row],[Alloc]]=\"OR\",tblREGASSJune19[[#This Row],[Alloc]]=\"UT\",tblREGASSJune19[[#This Row],[Alloc]]=\"WYU\",tblREGASSJune19[[#This Row],[Alloc]]=\"WYP\",tblREGASSJune19[[#This Row],[Alloc]]=\"CA\",tblREGASSJune19[[#This Row],[Alloc]]=\"WA\"),\"SITUS\",tblREGASSJune19[[#This Row],[Alloc]])","v":"OTHER"},{"$f":"INDEX(tblREGASSLookup[FUNC],MATCH(tblREGASSJune19[[#This Row],[Concat]],tblREGASSLookup[Concat],0))","v":"P"},{"$f":"IF(tblREGASSJune19[[#This Row],[Total ($000)]]=0,\"NO\",IF(ISNA(tblREGASSJune19[[#This Row],[FUNC]]),\"YES\",IF(_xlfn.ISFORMULA(tblREGASSJune19[[#This Row],[FUNC]]),\"NO\",\"YES\")))","v":"NO"}]
[{"$f":"CONCATENATE(tblREGASSJune19[[#This Row],[Primary Account]],tblREGASSJune19[[#This Row],[Primary Name]],tblREGASSJune19[[#This Row],[Secondary Acct]],tblREGASSJune19[[#This Row],[Secondary  Name]],tblREGASSJune19[[#This Row],[Alloc4FUNC]])","v":"1823990OTHR REG ASSET-N CST187888RegA - WA RECs in Rates - Recl to CurrOTHER"},1823990,"OTHR REG ASSET-N CST",187888,"RegA - WA RECs in Rates - Recl to Curr","OTHER",-35.450707692307702,{"$f":"IF(OR(tblREGASSJune19[[#This Row],[Alloc]]=\"IDU\",tblREGASSJune19[[#This Row],[Alloc]]=\"OR\",tblREGASSJune19[[#This Row],[Alloc]]=\"UT\",tblREGASSJune19[[#This Row],[Alloc]]=\"WYU\",tblREGASSJune19[[#This Row],[Alloc]]=\"WYP\",tblREGASSJune19[[#This Row],[Alloc]]=\"CA\",tblREGASSJune19[[#This Row],[Alloc]]=\"WA\"),\"SITUS\",tblREGASSJune19[[#This Row],[Alloc]])","v":"OTHER"},{"$f":"INDEX(tblREGASSLookup[FUNC],MATCH(tblREGASSJune19[[#This Row],[Concat]],tblREGASSLookup[Concat],0))","v":"P"},{"$f":"IF(tblREGASSJune19[[#This Row],[Total ($000)]]=0,\"NO\",IF(ISNA(tblREGASSJune19[[#This Row],[FUNC]]),\"YES\",IF(_xlfn.ISFORMULA(tblREGASSJune19[[#This Row],[FUNC]]),\"NO\",\"YES\")))","v":"NO"}]
[{"$f":"CONCATENATE(tblREGASSJune19[[#This Row],[Primary Account]],tblREGASSJune19[[#This Row],[Primary Name]],tblREGASSJune19[[#This Row],[Secondary Acct]],tblREGASSJune19[[#This Row],[Secondary  Name]],tblREGASSJune19[[#This Row],[Alloc4FUNC]])","v":"1823990OTHR REG ASSET-N CST187889RegA - WA RECs in Rates - Balance ReclOTHER"},1823990,"OTHR REG ASSET-N CST",187889,"RegA - WA RECs in Rates - Balance Recl","OTHER",0,{"$f":"IF(OR(tblREGASSJune19[[#This Row],[Alloc]]=\"IDU\",tblREGASSJune19[[#This Row],[Alloc]]=\"OR\",tblREGASSJune19[[#This Row],[Alloc]]=\"UT\",tblREGASSJune19[[#This Row],[Alloc]]=\"WYU\",tblREGASSJune19[[#This Row],[Alloc]]=\"WYP\",tblREGASSJune19[[#This Row],[Alloc]]=\"CA\",tblREGASSJune19[[#This Row],[Alloc]]=\"WA\"),\"SITUS\",tblREGASSJune19[[#This Row],[Alloc]])","v":"OTHER"},{"$f":"INDEX(tblREGASSLookup[FUNC],MATCH(tblREGASSJune19[[#This Row],[Concat]],tblREGASSLookup[Concat],0))","v":"P"},{"$f":"IF(tblREGASSJune19[[#This Row],[Total ($000)]]=0,\"NO\",IF(ISNA(tblREGASSJune19[[#This Row],[FUNC]]),\"YES\",IF(_xlfn.ISFORMULA(tblREGASSJune19[[#This Row],[FUNC]]),\"NO\",\"YES\")))","v":"NO"}]
[{"$f":"CONCATENATE(tblREGASSJune19[[#This Row],[Primary Account]],tblREGASSJune19[[#This Row],[Primary Name]],tblREGASSJune19[[#This Row],[Secondary Acct]],tblREGASSJune19[[#This Row],[Secondary  Name]],tblREGASSJune19[[#This Row],[Alloc4FUNC]])","v":"1823990OTHR REG ASSET-N CST187890Contra Reg Asset - WA Deferral of RECsOTHER"},1823990,"OTHR REG ASSET-N CST",187890,"Contra Reg Asset - WA Deferral of RECs","OTHER",0,{"$f":"IF(OR(tblREGASSJune19[[#This Row],[Alloc]]=\"IDU\",tblREGASSJune19[[#This Row],[Alloc]]=\"OR\",tblREGASSJune19[[#This Row],[Alloc]]=\"UT\",tblREGASSJune19[[#This Row],[Alloc]]=\"WYU\",tblREGASSJune19[[#This Row],[Alloc]]=\"WYP\",tblREGASSJune19[[#This Row],[Alloc]]=\"CA\",tblREGASSJune19[[#This Row],[Alloc]]=\"WA\"),\"SITUS\",tblREGASSJune19[[#This Row],[Alloc]])","v":"OTHER"},{"$f":"INDEX(tblREGASSLookup[FUNC],MATCH(tblREGASSJune19[[#This Row],[Concat]],tblREGASSLookup[Concat],0))","v":{"$error":"#N/A"}},{"$f":"IF(tblREGASSJune19[[#This Row],[Total ($000)]]=0,\"NO\",IF(ISNA(tblREGASSJune19[[#This Row],[FUNC]]),\"YES\",IF(_xlfn.ISFORMULA(tblREGASSJune19[[#This Row],[FUNC]]),\"NO\",\"YES\")))","v":"NO"}]
[{"$f":"CONCATENATE(tblREGASSJune19[[#This Row],[Primary Account]],tblREGASSJune19[[#This Row],[Primary Name]],tblREGASSJune19[[#This Row],[Secondary Acct]],tblREGASSJune19[[#This Row],[Secondary  Name]],tblREGASSJune19[[#This Row],[Alloc4FUNC]])","v":"1823990OTHR REG ASSET-N CST187891Deferral of Excess RECs in Rates - UTOTHER"},1823990,"OTHR REG ASSET-N CST",187891,"Deferral of Excess RECs in Rates - UT","OTHER",0,{"$f":"IF(OR(tblREGASSJune19[[#This Row],[Alloc]]=\"IDU\",tblREGASSJune19[[#This Row],[Alloc]]=\"OR\",tblREGASSJune19[[#This Row],[Alloc]]=\"UT\",tblREGASSJune19[[#This Row],[Alloc]]=\"WYU\",tblREGASSJune19[[#This Row],[Alloc]]=\"WYP\",tblREGASSJune19[[#This Row],[Alloc]]=\"CA\",tblREGASSJune19[[#This Row],[Alloc]]=\"WA\"),\"SITUS\",tblREGASSJune19[[#This Row],[Alloc]])","v":"OTHER"},{"$f":"INDEX(tblREGASSLookup[FUNC],MATCH(tblREGASSJune19[[#This Row],[Concat]],tblREGASSLookup[Concat],0))","v":{"$error":"#N/A"}},{"$f":"IF(tblREGASSJune19[[#This Row],[Total ($000)]]=0,\"NO\",IF(ISNA(tblREGASSJune19[[#This Row],[FUNC]]),\"YES\",IF(_xlfn.ISFORMULA(tblREGASSJune19[[#This Row],[FUNC]]),\"NO\",\"YES\")))","v":"NO"}]
[{"$f":"CONCATENATE(tblREGASSJune19[[#This Row],[Primary Account]],tblREGASSJune19[[#This Row],[Primary Name]],tblREGASSJune19[[#This Row],[Secondary Acct]],tblREGASSJune19[[#This Row],[Secondary  Name]],tblREGASSJune19[[#This Row],[Alloc4FUNC]])","v":"1823990OTHR REG ASSET-N CST187892Deferral of Excess RECs in Rates - WAOTHER"},1823990,"OTHR REG ASSET-N CST",187892,"Deferral of Excess RECs in Rates - WA","OTHER",0,{"$f":"IF(OR(tblREGASSJune19[[#This Row],[Alloc]]=\"IDU\",tblREGASSJune19[[#This Row],[Alloc]]=\"OR\",tblREGASSJune19[[#This Row],[Alloc]]=\"UT\",tblREGASSJune19[[#This Row],[Alloc]]=\"WYU\",tblREGASSJune19[[#This Row],[Alloc]]=\"WYP\",tblREGASSJune19[[#This Row],[Alloc]]=\"CA\",tblREGASSJune19[[#This Row],[Alloc]]=\"WA\"),\"SITUS\",tblREGASSJune19[[#This Row],[Alloc]])","v":"OTHER"},{"$f":"INDEX(tblREGASSLookup[FUNC],MATCH(tblREGASSJune19[[#This Row],[Concat]],tblREGASSLookup[Concat],0))","v":"P"},{"$f":"IF(tblREGASSJune19[[#This Row],[Total ($000)]]=0,\"NO\",IF(ISNA(tblREGASSJune19[[#This Row],[FUNC]]),\"YES\",IF(_xlfn.ISFORMULA(tblREGASSJune19[[#This Row],[FUNC]]),\"NO\",\"YES\")))","v":"NO"}]
[{"$f":"CONCATENATE(tblREGASSJune19[[#This Row],[Primary Account]],tblREGASSJune19[[#This Row],[Primary Name]],tblREGASSJune19[[#This Row],[Secondary Acct]],tblREGASSJune19[[#This Row],[Secondary  Name]],tblREGASSJune19[[#This Row],[Alloc4FUNC]])","v":"1823990OTHR REG ASSET-N CST187893Deferral of Excess RECs in Rates - WYOTHER"},1823990,"OTHR REG ASSET-N CST",187893,"Deferral of Excess RECs in Rates - WY","OTHER",0,{"$f":"IF(OR(tblREGASSJune19[[#This Row],[Alloc]]=\"IDU\",tblREGASSJune19[[#This Row],[Alloc]]=\"OR\",tblREGASSJune19[[#This Row],[Alloc]]=\"UT\",tblREGASSJune19[[#This Row],[Alloc]]=\"WYU\",tblREGASSJune19[[#This Row],[Alloc]]=\"WYP\",tblREGASSJune19[[#This Row],[Alloc]]=\"CA\",tblREGASSJune19[[#This Row],[Alloc]]=\"WA\"),\"SITUS\",tblREGASSJune19[[#This Row],[Alloc]])","v":"OTHER"},{"$f":"INDEX(tblREGASSLookup[FUNC],MATCH(tblREGASSJune19[[#This Row],[Concat]],tblREGASSLookup[Concat],0))","v":{"$error":"#N/A"}},{"$f":"IF(tblREGASSJune19[[#This Row],[Total ($000)]]=0,\"NO\",IF(ISNA(tblREGASSJune19[[#This Row],[FUNC]]),\"YES\",IF(_xlfn.ISFORMULA(tblREGASSJune19[[#This Row],[FUNC]]),\"NO\",\"YES\")))","v":"NO"}]
[{"$f":"CONCATENATE(tblREGASSJune19[[#This Row],[Primary Account]],tblREGASSJune19[[#This Row],[Primary Name]],tblREGASSJune19[[#This Row],[Secondary Acct]],tblREGASSJune19[[#This Row],[Secondary  Name]],tblREGASSJune19[[#This Row],[Alloc4FUNC]])","v":"1823990OTHR REG ASSET-N CST187894RegA - OR RECs in Rates - Recl to CurrOTHER"},1823990,"OTHR REG ASSET-N CST",187894,"RegA - OR RECs in Rates - Recl to Curr","OTHER",-75.639563846153806,{"$f":"IF(OR(tblREGASSJune19[[#This Row],[Alloc]]=\"IDU\",tblREGASSJune19[[#This Row],[Alloc]]=\"OR\",tblREGASSJune19[[#This Row],[Alloc]]=\"UT\",tblREGASSJune19[[#This Row],[Alloc]]=\"WYU\",tblREGASSJune19[[#This Row],[Alloc]]=\"WYP\",tblREGASSJune19[[#This Row],[Alloc]]=\"CA\",tblREGASSJune19[[#This Row],[Alloc]]=\"WA\"),\"SITUS\",tblREGASSJune19[[#This Row],[Alloc]])","v":"OTHER"},{"$f":"INDEX(tblREGASSLookup[FUNC],MATCH(tblREGASSJune19[[#This Row],[Concat]],tblREGASSLookup[Concat],0))","v":"P"},{"$f":"IF(tblREGASSJune19[[#This Row],[Total ($000)]]=0,\"NO\",IF(ISNA(tblREGASSJune19[[#This Row],[FUNC]]),\"YES\",IF(_xlfn.ISFORMULA(tblREGASSJune19[[#This Row],[FUNC]]),\"NO\",\"YES\")))","v":"NO"}]
[{"$f":"CONCATENATE(tblREGASSJune19[[#This Row],[Primary Account]],tblREGASSJune19[[#This Row],[Primary Name]],tblREGASSJune19[[#This Row],[Secondary Acct]],tblREGASSJune19[[#This Row],[Secondary  Name]],tblREGASSJune19[[#This Row],[Alloc4FUNC]])","v":"1823990OTHR REG ASSET-N CST187895RegA - OR RECs in Rates - Balance ReclOTHER"},1823990,"OTHR REG ASSET-N CST",187895,"RegA - OR RECs in Rates - Balance Recl","OTHER",0,{"$f":"IF(OR(tblREGASSJune19[[#This Row],[Alloc]]=\"IDU\",tblREGASSJune19[[#This Row],[Alloc]]=\"OR\",tblREGASSJune19[[#This Row],[Alloc]]=\"UT\",tblREGASSJune19[[#This Row],[Alloc]]=\"WYU\",tblREGASSJune19[[#This Row],[Alloc]]=\"WYP\",tblREGASSJune19[[#This Row],[Alloc]]=\"CA\",tblREGASSJune19[[#This Row],[Alloc]]=\"WA\"),\"SITUS\",tblREGASSJune19[[#This Row],[Alloc]])","v":"OTHER"},{"$f":"INDEX(tblREGASSLookup[FUNC],MATCH(tblREGASSJune19[[#This Row],[Concat]],tblREGASSLookup[Concat],0))","v":"P"},{"$f":"IF(tblREGASSJune19[[#This Row],[Total ($000)]]=0,\"NO\",IF(ISNA(tblREGASSJune19[[#This Row],[FUNC]]),\"YES\",IF(_xlfn.ISFORMULA(tblREGASSJune19[[#This Row],[FUNC]]),\"NO\",\"YES\")))","v":"NO"}]
[{"$f":"CONCATENATE(tblREGASSJune19[[#This Row],[Primary Account]],tblREGASSJune19[[#This Row],[Primary Name]],tblREGASSJune19[[#This Row],[Secondary Acct]],tblREGASSJune19[[#This Row],[Secondary  Name]],tblREGASSJune19[[#This Row],[Alloc4FUNC]])","v":"1823990OTHR REG ASSET-N CST187896RegA - UT RECs in Rates - Recl to CurrOTHER"},1823990,"OTHR REG ASSET-N CST",187896,"RegA - UT RECs in Rates - Recl to Curr","OTHER",-654.26924538461503,{"$f":"IF(OR(tblREGASSJune19[[#This Row],[Alloc]]=\"IDU\",tblREGASSJune19[[#This Row],[Alloc]]=\"OR\",tblREGASSJune19[[#This Row],[Alloc]]=\"UT\",tblREGASSJune19[[#This Row],[Alloc]]=\"WYU\",tblREGASSJune19[[#This Row],[Alloc]]=\"WYP\",tblREGASSJune19[[#This Row],[Alloc]]=\"CA\",tblREGASSJune19[[#This Row],[Alloc]]=\"WA\"),\"SITUS\",tblREGASSJune19[[#This Row],[Alloc]])","v":"OTHER"},{"$f":"INDEX(tblREGASSLookup[FUNC],MATCH(tblREGASSJune19[[#This Row],[Concat]],tblREGASSLookup[Concat],0))","v":"P"},{"$f":"IF(tblREGASSJune19[[#This Row],[Total ($000)]]=0,\"NO\",IF(ISNA(tblREGASSJune19[[#This Row],[FUNC]]),\"YES\",IF(_xlfn.ISFORMULA(tblREGASSJune19[[#This Row],[FUNC]]),\"NO\",\"YES\")))","v":"NO"}]
[{"$f":"CONCATENATE(tblREGASSJune19[[#This Row],[Primary Account]],tblREGASSJune19[[#This Row],[Primary Name]],tblREGASSJune19[[#This Row],[Secondary Acct]],tblREGASSJune19[[#This Row],[Secondary  Name]],tblREGASSJune19[[#This Row],[Alloc4FUNC]])","v":"1823990OTHR REG ASSET-N CST187897RegA - UT RECs in Rates - Recl to LiabOTHER"},1823990,"OTHR REG ASSET-N CST",187897,"RegA - UT RECs in Rates - Recl to Liab","OTHER",45.300733076923102,{"$f":"IF(OR(tblREGASSJune19[[#This Row],[Alloc]]=\"IDU\",tblREGASSJune19[[#This Row],[Alloc]]=\"OR\",tblREGASSJune19[[#This Row],[Alloc]]=\"UT\",tblREGASSJune19[[#This Row],[Alloc]]=\"WYU\",tblREGASSJune19[[#This Row],[Alloc]]=\"WYP\",tblREGASSJune19[[#This Row],[Alloc]]=\"CA\",tblREGASSJune19[[#This Row],[Alloc]]=\"WA\"),\"SITUS\",tblREGASSJune19[[#This Row],[Alloc]])","v":"OTHER"},{"$f":"INDEX(tblREGASSLookup[FUNC],MATCH(tblREGASSJune19[[#This Row],[Concat]],tblREGASSLookup[Concat],0))","v":"P"},{"$f":"IF(tblREGASSJune19[[#This Row],[Total ($000)]]=0,\"NO\",IF(ISNA(tblREGASSJune19[[#This Row],[FUNC]]),\"YES\",IF(_xlfn.ISFORMULA(tblREGASSJune19[[#This Row],[FUNC]]),\"NO\",\"YES\")))","v":"NO"}]
[{"$f":"CONCATENATE(tblREGASSJune19[[#This Row],[Primary Account]],tblREGASSJune19[[#This Row],[Primary Name]],tblREGASSJune19[[#This Row],[Secondary Acct]],tblREGASSJune19[[#This Row],[Secondary  Name]],tblREGASSJune19[[#This Row],[Alloc4FUNC]])","v":"1823990OTHR REG ASSET-N CST187898RegA - Def RECs in Rates - Recl to CurrOTHER"},1823990,"OTHR REG ASSET-N CST",187898,"RegA - Def RECs in Rates - Recl to Curr","OTHER",-495.48507076923102,{"$f":"IF(OR(tblREGASSJune19[[#This Row],[Alloc]]=\"IDU\",tblREGASSJune19[[#This Row],[Alloc]]=\"OR\",tblREGASSJune19[[#This Row],[Alloc]]=\"UT\",tblREGASSJune19[[#This Row],[Alloc]]=\"WYU\",tblREGASSJune19[[#This Row],[Alloc]]=\"WYP\",tblREGASSJune19[[#This Row],[Alloc]]=\"CA\",tblREGASSJune19[[#This Row],[Alloc]]=\"WA\"),\"SITUS\",tblREGASSJune19[[#This Row],[Alloc]])","v":"OTHER"},{"$f":"INDEX(tblREGASSLookup[FUNC],MATCH(tblREGASSJune19[[#This Row],[Concat]],tblREGASSLookup[Concat],0))","v":"P"},{"$f":"IF(tblREGASSJune19[[#This Row],[Total ($000)]]=0,\"NO\",IF(ISNA(tblREGASSJune19[[#This Row],[FUNC]]),\"YES\",IF(_xlfn.ISFORMULA(tblREGASSJune19[[#This Row],[FUNC]]),\"NO\",\"YES\")))","v":"NO"}]
[{"$f":"CONCATENATE(tblREGASSJune19[[#This Row],[Primary Account]],tblREGASSJune19[[#This Row],[Primary Name]],tblREGASSJune19[[#This Row],[Secondary Acct]],tblREGASSJune19[[#This Row],[Secondary  Name]],tblREGASSJune19[[#This Row],[Alloc4FUNC]])","v":"1823990OTHR REG ASSET-N CST187899RegA - WY RECs in Rates - Recl to LiabOTHER"},1823990,"OTHR REG ASSET-N CST",187899,"RegA - WY RECs in Rates - Recl to Liab","OTHER",6.63590384615385,{"$f":"IF(OR(tblREGASSJune19[[#This Row],[Alloc]]=\"IDU\",tblREGASSJune19[[#This Row],[Alloc]]=\"OR\",tblREGASSJune19[[#This Row],[Alloc]]=\"UT\",tblREGASSJune19[[#This Row],[Alloc]]=\"WYU\",tblREGASSJune19[[#This Row],[Alloc]]=\"WYP\",tblREGASSJune19[[#This Row],[Alloc]]=\"CA\",tblREGASSJune19[[#This Row],[Alloc]]=\"WA\"),\"SITUS\",tblREGASSJune19[[#This Row],[Alloc]])","v":"OTHER"},{"$f":"INDEX(tblREGASSLookup[FUNC],MATCH(tblREGASSJune19[[#This Row],[Concat]],tblREGASSLookup[Concat],0))","v":"P"},{"$f":"IF(tblREGASSJune19[[#This Row],[Total ($000)]]=0,\"NO\",IF(ISNA(tblREGASSJune19[[#This Row],[FUNC]]),\"YES\",IF(_xlfn.ISFORMULA(tblREGASSJune19[[#This Row],[FUNC]]),\"NO\",\"YES\")))","v":"NO"}]
[{"$f":"CONCATENATE(tblREGASSJune19[[#This Row],[Primary Account]],tblREGASSJune19[[#This Row],[Primary Name]],tblREGASSJune19[[#This Row],[Secondary Acct]],tblREGASSJune19[[#This Row],[Secondary  Name]],tblREGASSJune19[[#This Row],[Alloc4FUNC]])","v":"1823990OTHR REG ASSET-N CST187901OR - DEFERRED NET POWER COSTSOTHER"},1823990,"OTHR REG ASSET-N CST",187901,"OR - DEFERRED NET POWER COSTS","OTHER",0,{"$f":"IF(OR(tblREGASSJune19[[#This Row],[Alloc]]=\"IDU\",tblREGASSJune19[[#This Row],[Alloc]]=\"OR\",tblREGASSJune19[[#This Row],[Alloc]]=\"UT\",tblREGASSJune19[[#This Row],[Alloc]]=\"WYU\",tblREGASSJune19[[#This Row],[Alloc]]=\"WYP\",tblREGASSJune19[[#This Row],[Alloc]]=\"CA\",tblREGASSJune19[[#This Row],[Alloc]]=\"WA\"),\"SITUS\",tblREGASSJune19[[#This Row],[Alloc]])","v":"OTHER"},{"$f":"INDEX(tblREGASSLookup[FUNC],MATCH(tblREGASSJune19[[#This Row],[Concat]],tblREGASSLookup[Concat],0))","v":{"$error":"#N/A"}},{"$f":"IF(tblREGASSJune19[[#This Row],[Total ($000)]]=0,\"NO\",IF(ISNA(tblREGASSJune19[[#This Row],[FUNC]]),\"YES\",IF(_xlfn.ISFORMULA(tblREGASSJune19[[#This Row],[FUNC]]),\"NO\",\"YES\")))","v":"NO"}]
[{"$f":"CONCATENATE(tblREGASSJune19[[#This Row],[Primary Account]],tblREGASSJune19[[#This Row],[Primary Name]],tblREGASSJune19[[#This Row],[Secondary Acct]],tblREGASSJune19[[#This Row],[Secondary  Name]],tblREGASSJune19[[#This Row],[Alloc4FUNC]])","v":"1823990OTHR REG ASSET-N CST187902UT - DEFERRED NET POWER COSTSOTHER"},1823990,"OTHR REG ASSET-N CST",187902,"UT - DEFERRED NET POWER COSTS","OTHER",0,{"$f":"IF(OR(tblREGASSJune19[[#This Row],[Alloc]]=\"IDU\",tblREGASSJune19[[#This Row],[Alloc]]=\"OR\",tblREGASSJune19[[#This Row],[Alloc]]=\"UT\",tblREGASSJune19[[#This Row],[Alloc]]=\"WYU\",tblREGASSJune19[[#This Row],[Alloc]]=\"WYP\",tblREGASSJune19[[#This Row],[Alloc]]=\"CA\",tblREGASSJune19[[#This Row],[Alloc]]=\"WA\"),\"SITUS\",tblREGASSJune19[[#This Row],[Alloc]])","v":"OTHER"},{"$f":"INDEX(tblREGASSLookup[FUNC],MATCH(tblREGASSJune19[[#This Row],[Concat]],tblREGASSLookup[Concat],0))","v":{"$error":"#N/A"}},{"$f":"IF(tblREGASSJune19[[#This Row],[Total ($000)]]=0,\"NO\",IF(ISNA(tblREGASSJune19[[#This Row],[FUNC]]),\"YES\",IF(_xlfn.ISFORMULA(tblREGASSJune19[[#This Row],[FUNC]]),\"NO\",\"YES\")))","v":"NO"}]
[{"$f":"CONCATENATE(tblREGASSJune19[[#This Row],[Primary Account]],tblREGASSJune19[[#This Row],[Primary Name]],tblREGASSJune19[[#This Row],[Secondary Acct]],tblREGASSJune19[[#This Row],[Secondary  Name]],tblREGASSJune19[[#This Row],[Alloc4FUNC]])","v":"1823990OTHR REG ASSET-N CST187903WYO - DEFERRED EXCESS NET POWER COSTSOTHER"},1823990,"OTHR REG ASSET-N CST",187903,"WYO - DEFERRED EXCESS NET POWER COSTS","OTHER",0,{"$f":"IF(OR(tblREGASSJune19[[#This Row],[Alloc]]=\"IDU\",tblREGASSJune19[[#This Row],[Alloc]]=\"OR\",tblREGASSJune19[[#This Row],[Alloc]]=\"UT\",tblREGASSJune19[[#This Row],[Alloc]]=\"WYU\",tblREGASSJune19[[#This Row],[Alloc]]=\"WYP\",tblREGASSJune19[[#This Row],[Alloc]]=\"CA\",tblREGASSJune19[[#This Row],[Alloc]]=\"WA\"),\"SITUS\",tblREGASSJune19[[#This Row],[Alloc]])","v":"OTHER"},{"$f":"INDEX(tblREGASSLookup[FUNC],MATCH(tblREGASSJune19[[#This Row],[Concat]],tblREGASSLookup[Concat],0))","v":{"$error":"#N/A"}},{"$f":"IF(tblREGASSJune19[[#This Row],[Total ($000)]]=0,\"NO\",IF(ISNA(tblREGASSJune19[[#This Row],[FUNC]]),\"YES\",IF(_xlfn.ISFORMULA(tblREGASSJune19[[#This Row],[FUNC]]),\"NO\",\"YES\")))","v":"NO"}]
[{"$f":"CONCATENATE(tblREGASSJune19[[#This Row],[Primary Account]],tblREGASSJune19[[#This Row],[Primary Name]],tblREGASSJune19[[#This Row],[Secondary Acct]],tblREGASSJune19[[#This Row],[Secondary  Name]],tblREGASSJune19[[#This Row],[Alloc4FUNC]])","v":"1823990OTHR REG ASSET-N CST187904ID - DEFERRED NET POWER COSTSOTHER"},1823990,"OTHR REG ASSET-N CST",187904,"ID - DEFERRED NET POWER COSTS","OTHER",0,{"$f":"IF(OR(tblREGASSJune19[[#This Row],[Alloc]]=\"IDU\",tblREGASSJune19[[#This Row],[Alloc]]=\"OR\",tblREGASSJune19[[#This Row],[Alloc]]=\"UT\",tblREGASSJune19[[#This Row],[Alloc]]=\"WYU\",tblREGASSJune19[[#This Row],[Alloc]]=\"WYP\",tblREGASSJune19[[#This Row],[Alloc]]=\"CA\",tblREGASSJune19[[#This Row],[Alloc]]=\"WA\"),\"SITUS\",tblREGASSJune19[[#This Row],[Alloc]])","v":"OTHER"},{"$f":"INDEX(tblREGASSLookup[FUNC],MATCH(tblREGASSJune19[[#This Row],[Concat]],tblREGASSLookup[Concat],0))","v":{"$error":"#N/A"}},{"$f":"IF(tblREGASSJune19[[#This Row],[Total ($000)]]=0,\"NO\",IF(ISNA(tblREGASSJune19[[#This Row],[FUNC]]),\"YES\",IF(_xlfn.ISFORMULA(tblREGASSJune19[[#This Row],[FUNC]]),\"NO\",\"YES\")))","v":"NO"}]
[{"$f":"CONCATENATE(tblREGASSJune19[[#This Row],[Primary Account]],tblREGASSJune19[[#This Row],[Primary Name]],tblREGASSJune19[[#This Row],[Secondary Acct]],tblREGASSJune19[[#This Row],[Secondary  Name]],tblREGASSJune19[[#This Row],[Alloc4FUNC]])","v":"1823990OTHR REG ASSET-N CST187905CA - DEF NET POWER COSTSOTHER"},1823990,"OTHR REG ASSET-N CST",187905,"CA - DEF NET POWER COSTS","OTHER",0,{"$f":"IF(OR(tblREGASSJune19[[#This Row],[Alloc]]=\"IDU\",tblREGASSJune19[[#This Row],[Alloc]]=\"OR\",tblREGASSJune19[[#This Row],[Alloc]]=\"UT\",tblREGASSJune19[[#This Row],[Alloc]]=\"WYU\",tblREGASSJune19[[#This Row],[Alloc]]=\"WYP\",tblREGASSJune19[[#This Row],[Alloc]]=\"CA\",tblREGASSJune19[[#This Row],[Alloc]]=\"WA\"),\"SITUS\",tblREGASSJune19[[#This Row],[Alloc]])","v":"OTHER"},{"$f":"INDEX(tblREGASSLookup[FUNC],MATCH(tblREGASSJune19[[#This Row],[Concat]],tblREGASSLookup[Concat],0))","v":{"$error":"#N/A"}},{"$f":"IF(tblREGASSJune19[[#This Row],[Total ($000)]]=0,\"NO\",IF(ISNA(tblREGASSJune19[[#This Row],[FUNC]]),\"YES\",IF(_xlfn.ISFORMULA(tblREGASSJune19[[#This Row],[FUNC]]),\"NO\",\"YES\")))","v":"NO"}]
[{"$f":"CONCATENATE(tblREGASSJune19[[#This Row],[Primary Account]],tblREGASSJune19[[#This Row],[Primary Name]],tblREGASSJune19[[#This Row],[Secondary Acct]],tblREGASSJune19[[#This Row],[Secondary  Name]],tblREGASSJune19[[#This Row],[Alloc4FUNC]])","v":"1823990OTHR REG ASSET-N CST187906DEF EXCESS NPC - OR UE116 BRIDGEOTHER"},1823990,"OTHR REG ASSET-N CST",187906,"DEF EXCESS NPC - OR UE116 BRIDGE","OTHER",0,{"$f":"IF(OR(tblREGASSJune19[[#This Row],[Alloc]]=\"IDU\",tblREGASSJune19[[#This Row],[Alloc]]=\"OR\",tblREGASSJune19[[#This Row],[Alloc]]=\"UT\",tblREGASSJune19[[#This Row],[Alloc]]=\"WYU\",tblREGASSJune19[[#This Row],[Alloc]]=\"WYP\",tblREGASSJune19[[#This Row],[Alloc]]=\"CA\",tblREGASSJune19[[#This Row],[Alloc]]=\"WA\"),\"SITUS\",tblREGASSJune19[[#This Row],[Alloc]])","v":"OTHER"},{"$f":"INDEX(tblREGASSLookup[FUNC],MATCH(tblREGASSJune19[[#This Row],[Concat]],tblREGASSLookup[Concat],0))","v":{"$error":"#N/A"}},{"$f":"IF(tblREGASSJune19[[#This Row],[Total ($000)]]=0,\"NO\",IF(ISNA(tblREGASSJune19[[#This Row],[FUNC]]),\"YES\",IF(_xlfn.ISFORMULA(tblREGASSJune19[[#This Row],[FUNC]]),\"NO\",\"YES\")))","v":"NO"}]
[{"$f":"CONCATENATE(tblREGASSJune19[[#This Row],[Primary Account]],tblREGASSJune19[[#This Row],[Primary Name]],tblREGASSJune19[[#This Row],[Secondary Acct]],tblREGASSJune19[[#This Row],[Secondary  Name]],tblREGASSJune19[[#This Row],[Alloc4FUNC]])","v":"1823990OTHR REG ASSET-N CST187907OR UE134 POWER COSTOTHER"},1823990,"OTHR REG ASSET-N CST",187907,"OR UE134 POWER COST","OTHER",0,{"$f":"IF(OR(tblREGASSJune19[[#This Row],[Alloc]]=\"IDU\",tblREGASSJune19[[#This Row],[Alloc]]=\"OR\",tblREGASSJune19[[#This Row],[Alloc]]=\"UT\",tblREGASSJune19[[#This Row],[Alloc]]=\"WYU\",tblREGASSJune19[[#This Row],[Alloc]]=\"WYP\",tblREGASSJune19[[#This Row],[Alloc]]=\"CA\",tblREGASSJune19[[#This Row],[Alloc]]=\"WA\"),\"SITUS\",tblREGASSJune19[[#This Row],[Alloc]])","v":"OTHER"},{"$f":"INDEX(tblREGASSLookup[FUNC],MATCH(tblREGASSJune19[[#This Row],[Concat]],tblREGASSLookup[Concat],0))","v":{"$error":"#N/A"}},{"$f":"IF(tblREGASSJune19[[#This Row],[Total ($000)]]=0,\"NO\",IF(ISNA(tblREGASSJune19[[#This Row],[FUNC]]),\"YES\",IF(_xlfn.ISFORMULA(tblREGASSJune19[[#This Row],[FUNC]]),\"NO\",\"YES\")))","v":"NO"}]
[{"$f":"CONCATENATE(tblREGASSJune19[[#This Row],[Primary Account]],tblREGASSJune19[[#This Row],[Primary Name]],tblREGASSJune19[[#This Row],[Secondary Acct]],tblREGASSJune19[[#This Row],[Secondary  Name]],tblREGASSJune19[[#This Row],[Alloc4FUNC]])","v":"1823990OTHR REG ASSET-N CST187908Def Net Power WY - 2007OTHER"},1823990,"OTHR REG ASSET-N CST",187908,"Def Net Power WY - 2007","OTHER",0,{"$f":"IF(OR(tblREGASSJune19[[#This Row],[Alloc]]=\"IDU\",tblREGASSJune19[[#This Row],[Alloc]]=\"OR\",tblREGASSJune19[[#This Row],[Alloc]]=\"UT\",tblREGASSJune19[[#This Row],[Alloc]]=\"WYU\",tblREGASSJune19[[#This Row],[Alloc]]=\"WYP\",tblREGASSJune19[[#This Row],[Alloc]]=\"CA\",tblREGASSJune19[[#This Row],[Alloc]]=\"WA\"),\"SITUS\",tblREGASSJune19[[#This Row],[Alloc]])","v":"OTHER"},{"$f":"INDEX(tblREGASSLookup[FUNC],MATCH(tblREGASSJune19[[#This Row],[Concat]],tblREGASSLookup[Concat],0))","v":{"$error":"#N/A"}},{"$f":"IF(tblREGASSJune19[[#This Row],[Total ($000)]]=0,\"NO\",IF(ISNA(tblREGASSJune19[[#This Row],[FUNC]]),\"YES\",IF(_xlfn.ISFORMULA(tblREGASSJune19[[#This Row],[FUNC]]),\"NO\",\"YES\")))","v":"NO"}]
[{"$f":"CONCATENATE(tblREGASSJune19[[#This Row],[Primary Account]],tblREGASSJune19[[#This Row],[Primary Name]],tblREGASSJune19[[#This Row],[Secondary Acct]],tblREGASSJune19[[#This Row],[Secondary  Name]],tblREGASSJune19[[#This Row],[Alloc4FUNC]])","v":"1823990OTHR REG ASSET-N CST187909Def Net Power - Wyoming 2008OTHER"},1823990,"OTHR REG ASSET-N CST",187909,"Def Net Power - Wyoming 2008","OTHER",0,{"$f":"IF(OR(tblREGASSJune19[[#This Row],[Alloc]]=\"IDU\",tblREGASSJune19[[#This Row],[Alloc]]=\"OR\",tblREGASSJune19[[#This Row],[Alloc]]=\"UT\",tblREGASSJune19[[#This Row],[Alloc]]=\"WYU\",tblREGASSJune19[[#This Row],[Alloc]]=\"WYP\",tblREGASSJune19[[#This Row],[Alloc]]=\"CA\",tblREGASSJune19[[#This Row],[Alloc]]=\"WA\"),\"SITUS\",tblREGASSJune19[[#This Row],[Alloc]])","v":"OTHER"},{"$f":"INDEX(tblREGASSLookup[FUNC],MATCH(tblREGASSJune19[[#This Row],[Concat]],tblREGASSLookup[Concat],0))","v":{"$error":"#N/A"}},{"$f":"IF(tblREGASSJune19[[#This Row],[Total ($000)]]=0,\"NO\",IF(ISNA(tblREGASSJune19[[#This Row],[FUNC]]),\"YES\",IF(_xlfn.ISFORMULA(tblREGASSJune19[[#This Row],[FUNC]]),\"NO\",\"YES\")))","v":"NO"}]
[{"$f":"CONCATENATE(tblREGASSJune19[[#This Row],[Primary Account]],tblREGASSJune19[[#This Row],[Primary Name]],tblREGASSJune19[[#This Row],[Secondary Acct]],tblREGASSJune19[[#This Row],[Secondary  Name]],tblREGASSJune19[[#This Row],[Alloc4FUNC]])","v":"1823990OTHR REG ASSET-N CST187911REG ASSET - LAKE SIDE LIQ. DAMAGES - WYSITUS"},1823990,"OTHR REG ASSET-N CST",187911,"REG ASSET - LAKE SIDE LIQ. DAMAGES - WY","WYP",785.76197000000002,{"$f":"IF(OR(tblREGASSJune19[[#This Row],[Alloc]]=\"IDU\",tblREGASSJune19[[#This Row],[Alloc]]=\"OR\",tblREGASSJune19[[#This Row],[Alloc]]=\"UT\",tblREGASSJune19[[#This Row],[Alloc]]=\"WYU\",tblREGASSJune19[[#This Row],[Alloc]]=\"WYP\",tblREGASSJune19[[#This Row],[Alloc]]=\"CA\",tblREGASSJune19[[#This Row],[Alloc]]=\"WA\"),\"SITUS\",tblREGASSJune19[[#This Row],[Alloc]])","v":"SITUS"},{"$f":"INDEX(tblREGASSLookup[FUNC],MATCH(tblREGASSJune19[[#This Row],[Concat]],tblREGASSLookup[Concat],0))","v":"P"},{"$f":"IF(tblREGASSJune19[[#This Row],[Total ($000)]]=0,\"NO\",IF(ISNA(tblREGASSJune19[[#This Row],[FUNC]]),\"YES\",IF(_xlfn.ISFORMULA(tblREGASSJune19[[#This Row],[FUNC]]),\"NO\",\"YES\")))","v":"NO"}]
[{"$f":"CONCATENATE(tblREGASSJune19[[#This Row],[Primary Account]],tblREGASSJune19[[#This Row],[Primary Name]],tblREGASSJune19[[#This Row],[Secondary Acct]],tblREGASSJune19[[#This Row],[Secondary  Name]],tblREGASSJune19[[#This Row],[Alloc4FUNC]])","v":"1823990OTHR REG ASSET-N CST187912CONTRA - REGULATORY ASSETSSITUS"},1823990,"OTHR REG ASSET-N CST",187912,"CONTRA - REGULATORY ASSETS","CA",0,{"$f":"IF(OR(tblREGASSJune19[[#This Row],[Alloc]]=\"IDU\",tblREGASSJune19[[#This Row],[Alloc]]=\"OR\",tblREGASSJune19[[#This Row],[Alloc]]=\"UT\",tblREGASSJune19[[#This Row],[Alloc]]=\"WYU\",tblREGASSJune19[[#This Row],[Alloc]]=\"WYP\",tblREGASSJune19[[#This Row],[Alloc]]=\"CA\",tblREGASSJune19[[#This Row],[Alloc]]=\"WA\"),\"SITUS\",tblREGASSJune19[[#This Row],[Alloc]])","v":"SITUS"},{"$f":"INDEX(tblREGASSLookup[FUNC],MATCH(tblREGASSJune19[[#This Row],[Concat]],tblREGASSLookup[Concat],0))","v":"P"},{"$f":"IF(tblREGASSJune19[[#This Row],[Total ($000)]]=0,\"NO\",IF(ISNA(tblREGASSJune19[[#This Row],[FUNC]]),\"YES\",IF(_xlfn.ISFORMULA(tblREGASSJune19[[#This Row],[FUNC]]),\"NO\",\"YES\")))","v":"NO"}]
[{"$f":"CONCATENATE(tblREGASSJune19[[#This Row],[Primary Account]],tblREGASSJune19[[#This Row],[Primary Name]],tblREGASSJune19[[#This Row],[Secondary Acct]],tblREGASSJune19[[#This Row],[Secondary  Name]],tblREGASSJune19[[#This Row],[Alloc4FUNC]])","v":"1823990OTHR REG ASSET-N CST187913Reg Asset - Goodnoe Hills Liq. Damages -SITUS"},1823990,"OTHR REG ASSET-N CST",187913,"Reg Asset - Goodnoe Hills Liq. Damages -","WYP",318.750002307692,{"$f":"IF(OR(tblREGASSJune19[[#This Row],[Alloc]]=\"IDU\",tblREGASSJune19[[#This Row],[Alloc]]=\"OR\",tblREGASSJune19[[#This Row],[Alloc]]=\"UT\",tblREGASSJune19[[#This Row],[Alloc]]=\"WYU\",tblREGASSJune19[[#This Row],[Alloc]]=\"WYP\",tblREGASSJune19[[#This Row],[Alloc]]=\"CA\",tblREGASSJune19[[#This Row],[Alloc]]=\"WA\"),\"SITUS\",tblREGASSJune19[[#This Row],[Alloc]])","v":"SITUS"},{"$f":"INDEX(tblREGASSLookup[FUNC],MATCH(tblREGASSJune19[[#This Row],[Concat]],tblREGASSLookup[Concat],0))","v":"P"},{"$f":"IF(tblREGASSJune19[[#This Row],[Total ($000)]]=0,\"NO\",IF(ISNA(tblREGASSJune19[[#This Row],[FUNC]]),\"YES\",IF(_xlfn.ISFORMULA(tblREGASSJune19[[#This Row],[FUNC]]),\"NO\",\"YES\")))","v":"NO"}]
[{"$f":"CONCATENATE(tblREGASSJune19[[#This Row],[Primary Account]],tblREGASSJune19[[#This Row],[Primary Name]],tblREGASSJune19[[#This Row],[Secondary Acct]],tblREGASSJune19[[#This Row],[Secondary  Name]],tblREGASSJune19[[#This Row],[Alloc4FUNC]])","v":"1823990OTHR REG ASSET-N CST187914\"Reg Asset-UT-Liq. Damages JB4, N1&2\"SITUS"},1823990,"OTHR REG ASSET-N CST",187914,"\"Reg Asset-UT-Liq. Damages JB4, N1&2\"","UT",524.99980000000005,{"$f":"IF(OR(tblREGASSJune19[[#This Row],[Alloc]]=\"IDU\",tblREGASSJune19[[#This Row],[Alloc]]=\"OR\",tblREGASSJune19[[#This Row],[Alloc]]=\"UT\",tblREGASSJune19[[#This Row],[Alloc]]=\"WYU\",tblREGASSJune19[[#This Row],[Alloc]]=\"WYP\",tblREGASSJune19[[#This Row],[Alloc]]=\"CA\",tblREGASSJune19[[#This Row],[Alloc]]=\"WA\"),\"SITUS\",tblREGASSJune19[[#This Row],[Alloc]])","v":"SITUS"},{"$f":"INDEX(tblREGASSLookup[FUNC],MATCH(tblREGASSJune19[[#This Row],[Concat]],tblREGASSLookup[Concat],0))","v":"P"},{"$f":"IF(tblREGASSJune19[[#This Row],[Total ($000)]]=0,\"NO\",IF(ISNA(tblREGASSJune19[[#This Row],[FUNC]]),\"YES\",IF(_xlfn.ISFORMULA(tblREGASSJune19[[#This Row],[FUNC]]),\"NO\",\"YES\")))","v":"NO"}]
[{"$f":"CONCATENATE(tblREGASSJune19[[#This Row],[Primary Account]],tblREGASSJune19[[#This Row],[Primary Name]],tblREGASSJune19[[#This Row],[Secondary Acct]],tblREGASSJune19[[#This Row],[Secondary  Name]],tblREGASSJune19[[#This Row],[Alloc4FUNC]])","v":"1823990OTHR REG ASSET-N CST187915Reg Asset-WY-Liq. Damages N2SITUS"},1823990,"OTHR REG ASSET-N CST",187915,"Reg Asset-WY-Liq. Damages N2","WYP",85.614199999999997,{"$f":"IF(OR(tblREGASSJune19[[#This Row],[Alloc]]=\"IDU\",tblREGASSJune19[[#This Row],[Alloc]]=\"OR\",tblREGASSJune19[[#This Row],[Alloc]]=\"UT\",tblREGASSJune19[[#This Row],[Alloc]]=\"WYU\",tblREGASSJune19[[#This Row],[Alloc]]=\"WYP\",tblREGASSJune19[[#This Row],[Alloc]]=\"CA\",tblREGASSJune19[[#This Row],[Alloc]]=\"WA\"),\"SITUS\",tblREGASSJune19[[#This Row],[Alloc]])","v":"SITUS"},{"$f":"INDEX(tblREGASSLookup[FUNC],MATCH(tblREGASSJune19[[#This Row],[Concat]],tblREGASSLookup[Concat],0))","v":"P"},{"$f":"IF(tblREGASSJune19[[#This Row],[Total ($000)]]=0,\"NO\",IF(ISNA(tblREGASSJune19[[#This Row],[FUNC]]),\"YES\",IF(_xlfn.ISFORMULA(tblREGASSJune19[[#This Row],[FUNC]]),\"NO\",\"YES\")))","v":"NO"}]
[{"$f":"CONCATENATE(tblREGASSJune19[[#This Row],[Primary Account]],tblREGASSJune19[[#This Row],[Primary Name]],tblREGASSJune19[[#This Row],[Secondary Acct]],tblREGASSJune19[[#This Row],[Secondary  Name]],tblREGASSJune19[[#This Row],[Alloc4FUNC]])","v":"1823990OTHR REG ASSET-N CST187920OR-RCAC REV REQUIREMENTOTHER"},1823990,"OTHR REG ASSET-N CST",187920,"OR-RCAC REV REQUIREMENT","OTHER",0,{"$f":"IF(OR(tblREGASSJune19[[#This Row],[Alloc]]=\"IDU\",tblREGASSJune19[[#This Row],[Alloc]]=\"OR\",tblREGASSJune19[[#This Row],[Alloc]]=\"UT\",tblREGASSJune19[[#This Row],[Alloc]]=\"WYU\",tblREGASSJune19[[#This Row],[Alloc]]=\"WYP\",tblREGASSJune19[[#This Row],[Alloc]]=\"CA\",tblREGASSJune19[[#This Row],[Alloc]]=\"WA\"),\"SITUS\",tblREGASSJune19[[#This Row],[Alloc]])","v":"OTHER"},{"$f":"INDEX(tblREGASSLookup[FUNC],MATCH(tblREGASSJune19[[#This Row],[Concat]],tblREGASSLookup[Concat],0))","v":{"$error":"#N/A"}},{"$f":"IF(tblREGASSJune19[[#This Row],[Total ($000)]]=0,\"NO\",IF(ISNA(tblREGASSJune19[[#This Row],[FUNC]]),\"YES\",IF(_xlfn.ISFORMULA(tblREGASSJune19[[#This Row],[FUNC]]),\"NO\",\"YES\")))","v":"NO"}]
[{"$f":"CONCATENATE(tblREGASSJune19[[#This Row],[Primary Account]],tblREGASSJune19[[#This Row],[Primary Name]],tblREGASSJune19[[#This Row],[Secondary Acct]],tblREGASSJune19[[#This Row],[Secondary  Name]],tblREGASSJune19[[#This Row],[Alloc4FUNC]])","v":"1823990OTHR REG ASSET-N CST187921WA-Chehalis Plant Rev Reqmt - Reg AssetSITUS"},1823990,"OTHR REG ASSET-N CST",187921,"WA-Chehalis Plant Rev Reqmt - Reg Asset","WA",0,{"$f":"IF(OR(tblREGASSJune19[[#This Row],[Alloc]]=\"IDU\",tblREGASSJune19[[#This Row],[Alloc]]=\"OR\",tblREGASSJune19[[#This Row],[Alloc]]=\"UT\",tblREGASSJune19[[#This Row],[Alloc]]=\"WYU\",tblREGASSJune19[[#This Row],[Alloc]]=\"WYP\",tblREGASSJune19[[#This Row],[Alloc]]=\"CA\",tblREGASSJune19[[#This Row],[Alloc]]=\"WA\"),\"SITUS\",tblREGASSJune19[[#This Row],[Alloc]])","v":"SITUS"},{"$f":"INDEX(tblREGASSLookup[FUNC],MATCH(tblREGASSJune19[[#This Row],[Concat]],tblREGASSLookup[Concat],0))","v":{"$error":"#N/A"}},{"$f":"IF(tblREGASSJune19[[#This Row],[Total ($000)]]=0,\"NO\",IF(ISNA(tblREGASSJune19[[#This Row],[FUNC]]),\"YES\",IF(_xlfn.ISFORMULA(tblREGASSJune19[[#This Row],[FUNC]]),\"NO\",\"YES\")))","v":"NO"}]
[{"$f":"CONCATENATE(tblREGASSJune19[[#This Row],[Primary Account]],tblREGASSJune19[[#This Row],[Primary Name]],tblREGASSJune19[[#This Row],[Secondary Acct]],tblREGASSJune19[[#This Row],[Secondary  Name]],tblREGASSJune19[[#This Row],[Alloc4FUNC]])","v":"1823990OTHR REG ASSET-N CST187922Reg Asset-RECs & SO2 Revenue Req - WYOTHER"},1823990,"OTHR REG ASSET-N CST",187922,"Reg Asset-RECs & SO2 Revenue Req - WY","OTHER",0,{"$f":"IF(OR(tblREGASSJune19[[#This Row],[Alloc]]=\"IDU\",tblREGASSJune19[[#This Row],[Alloc]]=\"OR\",tblREGASSJune19[[#This Row],[Alloc]]=\"UT\",tblREGASSJune19[[#This Row],[Alloc]]=\"WYU\",tblREGASSJune19[[#This Row],[Alloc]]=\"WYP\",tblREGASSJune19[[#This Row],[Alloc]]=\"CA\",tblREGASSJune19[[#This Row],[Alloc]]=\"WA\"),\"SITUS\",tblREGASSJune19[[#This Row],[Alloc]])","v":"OTHER"},{"$f":"INDEX(tblREGASSLookup[FUNC],MATCH(tblREGASSJune19[[#This Row],[Concat]],tblREGASSLookup[Concat],0))","v":{"$error":"#N/A"}},{"$f":"IF(tblREGASSJune19[[#This Row],[Total ($000)]]=0,\"NO\",IF(ISNA(tblREGASSJune19[[#This Row],[FUNC]]),\"YES\",IF(_xlfn.ISFORMULA(tblREGASSJune19[[#This Row],[FUNC]]),\"NO\",\"YES\")))","v":"NO"}]
[{"$f":"CONCATENATE(tblREGASSJune19[[#This Row],[Primary Account]],tblREGASSJune19[[#This Row],[Primary Name]],tblREGASSJune19[[#This Row],[Secondary Acct]],tblREGASSJune19[[#This Row],[Secondary  Name]],tblREGASSJune19[[#This Row],[Alloc4FUNC]])","v":"1823990OTHR REG ASSET-N CST187923Reg Asset-OR Sch 203-Black Cap SolarOTHER"},1823990,"OTHR REG ASSET-N CST",187923,"Reg Asset-OR Sch 203-Black Cap Solar","OTHER",0,{"$f":"IF(OR(tblREGASSJune19[[#This Row],[Alloc]]=\"IDU\",tblREGASSJune19[[#This Row],[Alloc]]=\"OR\",tblREGASSJune19[[#This Row],[Alloc]]=\"UT\",tblREGASSJune19[[#This Row],[Alloc]]=\"WYU\",tblREGASSJune19[[#This Row],[Alloc]]=\"WYP\",tblREGASSJune19[[#This Row],[Alloc]]=\"CA\",tblREGASSJune19[[#This Row],[Alloc]]=\"WA\"),\"SITUS\",tblREGASSJune19[[#This Row],[Alloc]])","v":"OTHER"},{"$f":"INDEX(tblREGASSLookup[FUNC],MATCH(tblREGASSJune19[[#This Row],[Concat]],tblREGASSLookup[Concat],0))","v":{"$error":"#N/A"}},{"$f":"IF(tblREGASSJune19[[#This Row],[Total ($000)]]=0,\"NO\",IF(ISNA(tblREGASSJune19[[#This Row],[FUNC]]),\"YES\",IF(_xlfn.ISFORMULA(tblREGASSJune19[[#This Row],[FUNC]]),\"NO\",\"YES\")))","v":"NO"}]
[{"$f":"CONCATENATE(tblREGASSJune19[[#This Row],[Primary Account]],tblREGASSJune19[[#This Row],[Primary Name]],tblREGASSJune19[[#This Row],[Secondary Acct]],tblREGASSJune19[[#This Row],[Secondary  Name]],tblREGASSJune19[[#This Row],[Alloc4FUNC]])","v":"1823990OTHR REG ASSET-N CST187925RegA - New Res/Renewables - Recl to CurrOTHER"},1823990,"OTHR REG ASSET-N CST",187925,"RegA - New Res/Renewables - Recl to Curr","OTHER",0,{"$f":"IF(OR(tblREGASSJune19[[#This Row],[Alloc]]=\"IDU\",tblREGASSJune19[[#This Row],[Alloc]]=\"OR\",tblREGASSJune19[[#This Row],[Alloc]]=\"UT\",tblREGASSJune19[[#This Row],[Alloc]]=\"WYU\",tblREGASSJune19[[#This Row],[Alloc]]=\"WYP\",tblREGASSJune19[[#This Row],[Alloc]]=\"CA\",tblREGASSJune19[[#This Row],[Alloc]]=\"WA\"),\"SITUS\",tblREGASSJune19[[#This Row],[Alloc]])","v":"OTHER"},{"$f":"INDEX(tblREGASSLookup[FUNC],MATCH(tblREGASSJune19[[#This Row],[Concat]],tblREGASSLookup[Concat],0))","v":{"$error":"#N/A"}},{"$f":"IF(tblREGASSJune19[[#This Row],[Total ($000)]]=0,\"NO\",IF(ISNA(tblREGASSJune19[[#This Row],[FUNC]]),\"YES\",IF(_xlfn.ISFORMULA(tblREGASSJune19[[#This Row],[FUNC]]),\"NO\",\"YES\")))","v":"NO"}]
[{"$f":"CONCATENATE(tblREGASSJune19[[#This Row],[Primary Account]],tblREGASSJune19[[#This Row],[Primary Name]],tblREGASSJune19[[#This Row],[Secondary Acct]],tblREGASSJune19[[#This Row],[Secondary  Name]],tblREGASSJune19[[#This Row],[Alloc4FUNC]])","v":"1823990OTHR REG ASSET-N CST187930OR SB 408 REG ASSETOTHER"},1823990,"OTHR REG ASSET-N CST",187930,"OR SB 408 REG ASSET","OTHER",0,{"$f":"IF(OR(tblREGASSJune19[[#This Row],[Alloc]]=\"IDU\",tblREGASSJune19[[#This Row],[Alloc]]=\"OR\",tblREGASSJune19[[#This Row],[Alloc]]=\"UT\",tblREGASSJune19[[#This Row],[Alloc]]=\"WYU\",tblREGASSJune19[[#This Row],[Alloc]]=\"WYP\",tblREGASSJune19[[#This Row],[Alloc]]=\"CA\",tblREGASSJune19[[#This Row],[Alloc]]=\"WA\"),\"SITUS\",tblREGASSJune19[[#This Row],[Alloc]])","v":"OTHER"},{"$f":"INDEX(tblREGASSLookup[FUNC],MATCH(tblREGASSJune19[[#This Row],[Concat]],tblREGASSLookup[Concat],0))","v":{"$error":"#N/A"}},{"$f":"IF(tblREGASSJune19[[#This Row],[Total ($000)]]=0,\"NO\",IF(ISNA(tblREGASSJune19[[#This Row],[FUNC]]),\"YES\",IF(_xlfn.ISFORMULA(tblREGASSJune19[[#This Row],[FUNC]]),\"NO\",\"YES\")))","v":"NO"}]
[{"$f":"CONCATENATE(tblREGASSJune19[[#This Row],[Primary Account]],tblREGASSJune19[[#This Row],[Primary Name]],tblREGASSJune19[[#This Row],[Secondary Acct]],tblREGASSJune19[[#This Row],[Secondary  Name]],tblREGASSJune19[[#This Row],[Alloc4FUNC]])","v":"1823990OTHR REG ASSET-N CST187935RegA - OR SB 408 - Recl to CurrOTHER"},1823990,"OTHR REG ASSET-N CST",187935,"RegA - OR SB 408 - Recl to Curr","OTHER",0,{"$f":"IF(OR(tblREGASSJune19[[#This Row],[Alloc]]=\"IDU\",tblREGASSJune19[[#This Row],[Alloc]]=\"OR\",tblREGASSJune19[[#This Row],[Alloc]]=\"UT\",tblREGASSJune19[[#This Row],[Alloc]]=\"WYU\",tblREGASSJune19[[#This Row],[Alloc]]=\"WYP\",tblREGASSJune19[[#This Row],[Alloc]]=\"CA\",tblREGASSJune19[[#This Row],[Alloc]]=\"WA\"),\"SITUS\",tblREGASSJune19[[#This Row],[Alloc]])","v":"OTHER"},{"$f":"INDEX(tblREGASSLookup[FUNC],MATCH(tblREGASSJune19[[#This Row],[Concat]],tblREGASSLookup[Concat],0))","v":{"$error":"#N/A"}},{"$f":"IF(tblREGASSJune19[[#This Row],[Total ($000)]]=0,\"NO\",IF(ISNA(tblREGASSJune19[[#This Row],[FUNC]]),\"YES\",IF(_xlfn.ISFORMULA(tblREGASSJune19[[#This Row],[FUNC]]),\"NO\",\"YES\")))","v":"NO"}]
[{"$f":"CONCATENATE(tblREGASSJune19[[#This Row],[Primary Account]],tblREGASSJune19[[#This Row],[Primary Name]],tblREGASSJune19[[#This Row],[Secondary Acct]],tblREGASSJune19[[#This Row],[Secondary  Name]],tblREGASSJune19[[#This Row],[Alloc4FUNC]])","v":"1823990OTHR REG ASSET-N CST187936SB 408 REG ASSET - MCBIT (EVEN YEAR 1)OTHER"},1823990,"OTHR REG ASSET-N CST",187936,"SB 408 REG ASSET - MCBIT (EVEN YEAR 1)","OTHER",0,{"$f":"IF(OR(tblREGASSJune19[[#This Row],[Alloc]]=\"IDU\",tblREGASSJune19[[#This Row],[Alloc]]=\"OR\",tblREGASSJune19[[#This Row],[Alloc]]=\"UT\",tblREGASSJune19[[#This Row],[Alloc]]=\"WYU\",tblREGASSJune19[[#This Row],[Alloc]]=\"WYP\",tblREGASSJune19[[#This Row],[Alloc]]=\"CA\",tblREGASSJune19[[#This Row],[Alloc]]=\"WA\"),\"SITUS\",tblREGASSJune19[[#This Row],[Alloc]])","v":"OTHER"},{"$f":"INDEX(tblREGASSLookup[FUNC],MATCH(tblREGASSJune19[[#This Row],[Concat]],tblREGASSLookup[Concat],0))","v":{"$error":"#N/A"}},{"$f":"IF(tblREGASSJune19[[#This Row],[Total ($000)]]=0,\"NO\",IF(ISNA(tblREGASSJune19[[#This Row],[FUNC]]),\"YES\",IF(_xlfn.ISFORMULA(tblREGASSJune19[[#This Row],[FUNC]]),\"NO\",\"YES\")))","v":"NO"}]
[{"$f":"CONCATENATE(tblREGASSJune19[[#This Row],[Primary Account]],tblREGASSJune19[[#This Row],[Primary Name]],tblREGASSJune19[[#This Row],[Secondary Acct]],tblREGASSJune19[[#This Row],[Secondary  Name]],tblREGASSJune19[[#This Row],[Alloc4FUNC]])","v":"1823990OTHR REG ASSET-N CST187937SB 408 REG ASSET - MCBIT (ODD YEAR 1)OTHER"},1823990,"OTHR REG ASSET-N CST",187937,"SB 408 REG ASSET - MCBIT (ODD YEAR 1)","OTHER",0,{"$f":"IF(OR(tblREGASSJune19[[#This Row],[Alloc]]=\"IDU\",tblREGASSJune19[[#This Row],[Alloc]]=\"OR\",tblREGASSJune19[[#This Row],[Alloc]]=\"UT\",tblREGASSJune19[[#This Row],[Alloc]]=\"WYU\",tblREGASSJune19[[#This Row],[Alloc]]=\"WYP\",tblREGASSJune19[[#This Row],[Alloc]]=\"CA\",tblREGASSJune19[[#This Row],[Alloc]]=\"WA\"),\"SITUS\",tblREGASSJune19[[#This Row],[Alloc]])","v":"OTHER"},{"$f":"INDEX(tblREGASSLookup[FUNC],MATCH(tblREGASSJune19[[#This Row],[Concat]],tblREGASSLookup[Concat],0))","v":{"$error":"#N/A"}},{"$f":"IF(tblREGASSJune19[[#This Row],[Total ($000)]]=0,\"NO\",IF(ISNA(tblREGASSJune19[[#This Row],[FUNC]]),\"YES\",IF(_xlfn.ISFORMULA(tblREGASSJune19[[#This Row],[FUNC]]),\"NO\",\"YES\")))","v":"NO"}]
[{"$f":"CONCATENATE(tblREGASSJune19[[#This Row],[Primary Account]],tblREGASSJune19[[#This Row],[Primary Name]],tblREGASSJune19[[#This Row],[Secondary Acct]],tblREGASSJune19[[#This Row],[Secondary  Name]],tblREGASSJune19[[#This Row],[Alloc4FUNC]])","v":"1823990OTHR REG ASSET-N CST187938SB 408 REG ASSET - MCBIT (EVEN YEAR 2)OTHER"},1823990,"OTHR REG ASSET-N CST",187938,"SB 408 REG ASSET - MCBIT (EVEN YEAR 2)","OTHER",0,{"$f":"IF(OR(tblREGASSJune19[[#This Row],[Alloc]]=\"IDU\",tblREGASSJune19[[#This Row],[Alloc]]=\"OR\",tblREGASSJune19[[#This Row],[Alloc]]=\"UT\",tblREGASSJune19[[#This Row],[Alloc]]=\"WYU\",tblREGASSJune19[[#This Row],[Alloc]]=\"WYP\",tblREGASSJune19[[#This Row],[Alloc]]=\"CA\",tblREGASSJune19[[#This Row],[Alloc]]=\"WA\"),\"SITUS\",tblREGASSJune19[[#This Row],[Alloc]])","v":"OTHER"},{"$f":"INDEX(tblREGASSLookup[FUNC],MATCH(tblREGASSJune19[[#This Row],[Concat]],tblREGASSLookup[Concat],0))","v":{"$error":"#N/A"}},{"$f":"IF(tblREGASSJune19[[#This Row],[Total ($000)]]=0,\"NO\",IF(ISNA(tblREGASSJune19[[#This Row],[FUNC]]),\"YES\",IF(_xlfn.ISFORMULA(tblREGASSJune19[[#This Row],[FUNC]]),\"NO\",\"YES\")))","v":"NO"}]
[{"$f":"CONCATENATE(tblREGASSJune19[[#This Row],[Primary Account]],tblREGASSJune19[[#This Row],[Primary Name]],tblREGASSJune19[[#This Row],[Secondary Acct]],tblREGASSJune19[[#This Row],[Secondary  Name]],tblREGASSJune19[[#This Row],[Alloc4FUNC]])","v":"1823990OTHR REG ASSET-N CST187951DEFERRED COST OF TOU GUARANTEESITUS"},1823990,"OTHR REG ASSET-N CST",187951,"DEFERRED COST OF TOU GUARANTEE","OR",0,{"$f":"IF(OR(tblREGASSJune19[[#This Row],[Alloc]]=\"IDU\",tblREGASSJune19[[#This Row],[Alloc]]=\"OR\",tblREGASSJune19[[#This Row],[Alloc]]=\"UT\",tblREGASSJune19[[#This Row],[Alloc]]=\"WYU\",tblREGASSJune19[[#This Row],[Alloc]]=\"WYP\",tblREGASSJune19[[#This Row],[Alloc]]=\"CA\",tblREGASSJune19[[#This Row],[Alloc]]=\"WA\"),\"SITUS\",tblREGASSJune19[[#This Row],[Alloc]])","v":"SITUS"},{"$f":"INDEX(tblREGASSLookup[FUNC],MATCH(tblREGASSJune19[[#This Row],[Concat]],tblREGASSLookup[Concat],0))","v":{"$error":"#N/A"}},{"$f":"IF(tblREGASSJune19[[#This Row],[Total ($000)]]=0,\"NO\",IF(ISNA(tblREGASSJune19[[#This Row],[FUNC]]),\"YES\",IF(_xlfn.ISFORMULA(tblREGASSJune19[[#This Row],[FUNC]]),\"NO\",\"YES\")))","v":"NO"}]
[{"$f":"CONCATENATE(tblREGASSJune19[[#This Row],[Primary Account]],tblREGASSJune19[[#This Row],[Primary Name]],tblREGASSJune19[[#This Row],[Secondary Acct]],tblREGASSJune19[[#This Row],[Secondary  Name]],tblREGASSJune19[[#This Row],[Alloc4FUNC]])","v":"1823990OTHR REG ASSET-N CST187952DEFERRED INTERVENEROTHER"},1823990,"OTHR REG ASSET-N CST",187952,"DEFERRED INTERVENER","OTHER",0.40699999999999997,{"$f":"IF(OR(tblREGASSJune19[[#This Row],[Alloc]]=\"IDU\",tblREGASSJune19[[#This Row],[Alloc]]=\"OR\",tblREGASSJune19[[#This Row],[Alloc]]=\"UT\",tblREGASSJune19[[#This Row],[Alloc]]=\"WYU\",tblREGASSJune19[[#This Row],[Alloc]]=\"WYP\",tblREGASSJune19[[#This Row],[Alloc]]=\"CA\",tblREGASSJune19[[#This Row],[Alloc]]=\"WA\"),\"SITUS\",tblREGASSJune19[[#This Row],[Alloc]])","v":"OTHER"},{"$f":"INDEX(tblREGASSLookup[FUNC],MATCH(tblREGASSJune19[[#This Row],[Concat]],tblREGASSLookup[Concat],0))","v":"COMMON"},{"$f":"IF(tblREGASSJune19[[#This Row],[Total ($000)]]=0,\"NO\",IF(ISNA(tblREGASSJune19[[#This Row],[FUNC]]),\"YES\",IF(_xlfn.ISFORMULA(tblREGASSJune19[[#This Row],[FUNC]]),\"NO\",\"YES\")))","v":"NO"}]
[{"$f":"CONCATENATE(tblREGASSJune19[[#This Row],[Primary Account]],tblREGASSJune19[[#This Row],[Primary Name]],tblREGASSJune19[[#This Row],[Secondary Acct]],tblREGASSJune19[[#This Row],[Secondary  Name]],tblREGASSJune19[[#This Row],[Alloc4FUNC]])","v":"1823990OTHR REG ASSET-N CST187953CA Klamath Transition Memo Account (KTMASITUS"},1823990,"OTHR REG ASSET-N CST",187953,"CA Klamath Transition Memo Account (KTMA","CA",0,{"$f":"IF(OR(tblREGASSJune19[[#This Row],[Alloc]]=\"IDU\",tblREGASSJune19[[#This Row],[Alloc]]=\"OR\",tblREGASSJune19[[#This Row],[Alloc]]=\"UT\",tblREGASSJune19[[#This Row],[Alloc]]=\"WYU\",tblREGASSJune19[[#This Row],[Alloc]]=\"WYP\",tblREGASSJune19[[#This Row],[Alloc]]=\"CA\",tblREGASSJune19[[#This Row],[Alloc]]=\"WA\"),\"SITUS\",tblREGASSJune19[[#This Row],[Alloc]])","v":"SITUS"},{"$f":"INDEX(tblREGASSLookup[FUNC],MATCH(tblREGASSJune19[[#This Row],[Concat]],tblREGASSLookup[Concat],0))","v":{"$error":"#N/A"}},{"$f":"IF(tblREGASSJune19[[#This Row],[Total ($000)]]=0,\"NO\",IF(ISNA(tblREGASSJune19[[#This Row],[FUNC]]),\"YES\",IF(_xlfn.ISFORMULA(tblREGASSJune19[[#This Row],[FUNC]]),\"NO\",\"YES\")))","v":"NO"}]
[{"$f":"CONCATENATE(tblREGASSJune19[[#This Row],[Primary Account]],tblREGASSJune19[[#This Row],[Primary Name]],tblREGASSJune19[[#This Row],[Secondary Acct]],tblREGASSJune19[[#This Row],[Secondary  Name]],tblREGASSJune19[[#This Row],[Alloc4FUNC]])","v":"1823990OTHR REG ASSET-N CST187956CA DEFERRED INTERVENOR FUNDINGOTHER"},1823990,"OTHR REG ASSET-N CST",187956,"CA DEFERRED INTERVENOR FUNDING","OTHER",42.160469999999997,{"$f":"IF(OR(tblREGASSJune19[[#This Row],[Alloc]]=\"IDU\",tblREGASSJune19[[#This Row],[Alloc]]=\"OR\",tblREGASSJune19[[#This Row],[Alloc]]=\"UT\",tblREGASSJune19[[#This Row],[Alloc]]=\"WYU\",tblREGASSJune19[[#This Row],[Alloc]]=\"WYP\",tblREGASSJune19[[#This Row],[Alloc]]=\"CA\",tblREGASSJune19[[#This Row],[Alloc]]=\"WA\"),\"SITUS\",tblREGASSJune19[[#This Row],[Alloc]])","v":"OTHER"},{"$f":"INDEX(tblREGASSLookup[FUNC],MATCH(tblREGASSJune19[[#This Row],[Concat]],tblREGASSLookup[Concat],0))","v":"COMMON"},{"$f":"IF(tblREGASSJune19[[#This Row],[Total ($000)]]=0,\"NO\",IF(ISNA(tblREGASSJune19[[#This Row],[FUNC]]),\"YES\",IF(_xlfn.ISFORMULA(tblREGASSJune19[[#This Row],[FUNC]]),\"NO\",\"YES\")))","v":"NO"}]
[{"$f":"CONCATENATE(tblREGASSJune19[[#This Row],[Primary Account]],tblREGASSJune19[[#This Row],[Primary Name]],tblREGASSJune19[[#This Row],[Secondary Acct]],tblREGASSJune19[[#This Row],[Secondary  Name]],tblREGASSJune19[[#This Row],[Alloc4FUNC]])","v":"1823990OTHR REG ASSET-N CST187957DEFERRED OR INDEPENDENT EVALUATOR FEESOTHER"},1823990,"OTHR REG ASSET-N CST",187957,"DEFERRED OR INDEPENDENT EVALUATOR FEES","OTHER",0,{"$f":"IF(OR(tblREGASSJune19[[#This Row],[Alloc]]=\"IDU\",tblREGASSJune19[[#This Row],[Alloc]]=\"OR\",tblREGASSJune19[[#This Row],[Alloc]]=\"UT\",tblREGASSJune19[[#This Row],[Alloc]]=\"WYU\",tblREGASSJune19[[#This Row],[Alloc]]=\"WYP\",tblREGASSJune19[[#This Row],[Alloc]]=\"CA\",tblREGASSJune19[[#This Row],[Alloc]]=\"WA\"),\"SITUS\",tblREGASSJune19[[#This Row],[Alloc]])","v":"OTHER"},{"$f":"INDEX(tblREGASSLookup[FUNC],MATCH(tblREGASSJune19[[#This Row],[Concat]],tblREGASSLookup[Concat],0))","v":"COMMON"},{"$f":"IF(tblREGASSJune19[[#This Row],[Total ($000)]]=0,\"NO\",IF(ISNA(tblREGASSJune19[[#This Row],[FUNC]]),\"YES\",IF(_xlfn.ISFORMULA(tblREGASSJune19[[#This Row],[FUNC]]),\"NO\",\"YES\")))","v":"NO"}]
[{"$f":"CONCATENATE(tblREGASSJune19[[#This Row],[Primary Account]],tblREGASSJune19[[#This Row],[Primary Name]],tblREGASSJune19[[#This Row],[Secondary Acct]],tblREGASSJune19[[#This Row],[Secondary  Name]],tblREGASSJune19[[#This Row],[Alloc4FUNC]])","v":"1823990OTHR REG ASSET-N CST187958ID Deferred Intervenor FundingSITUS"},1823990,"OTHR REG ASSET-N CST",187958,"ID Deferred Intervenor Funding","IDU",60.712623846153797,{"$f":"IF(OR(tblREGASSJune19[[#This Row],[Alloc]]=\"IDU\",tblREGASSJune19[[#This Row],[Alloc]]=\"OR\",tblREGASSJune19[[#This Row],[Alloc]]=\"UT\",tblREGASSJune19[[#This Row],[Alloc]]=\"WYU\",tblREGASSJune19[[#This Row],[Alloc]]=\"WYP\",tblREGASSJune19[[#This Row],[Alloc]]=\"CA\",tblREGASSJune19[[#This Row],[Alloc]]=\"WA\"),\"SITUS\",tblREGASSJune19[[#This Row],[Alloc]])","v":"SITUS"},{"$f":"INDEX(tblREGASSLookup[FUNC],MATCH(tblREGASSJune19[[#This Row],[Concat]],tblREGASSLookup[Concat],0))","v":"COMMON"},{"$f":"IF(tblREGASSJune19[[#This Row],[Total ($000)]]=0,\"NO\",IF(ISNA(tblREGASSJune19[[#This Row],[FUNC]]),\"YES\",IF(_xlfn.ISFORMULA(tblREGASSJune19[[#This Row],[FUNC]]),\"NO\",\"YES\")))","v":"NO"}]
[{"$f":"CONCATENATE(tblREGASSJune19[[#This Row],[Primary Account]],tblREGASSJune19[[#This Row],[Primary Name]],tblREGASSJune19[[#This Row],[Secondary Acct]],tblREGASSJune19[[#This Row],[Secondary  Name]],tblREGASSJune19[[#This Row],[Alloc4FUNC]])","v":"1823990OTHR REG ASSET-N CST187964RegA - Intervenor Fees - Recl to LiabOTHER"},1823990,"OTHR REG ASSET-N CST",187964,"RegA - Intervenor Fees - Recl to Liab","OTHER",109.033801538462,{"$f":"IF(OR(tblREGASSJune19[[#This Row],[Alloc]]=\"IDU\",tblREGASSJune19[[#This Row],[Alloc]]=\"OR\",tblREGASSJune19[[#This Row],[Alloc]]=\"UT\",tblREGASSJune19[[#This Row],[Alloc]]=\"WYU\",tblREGASSJune19[[#This Row],[Alloc]]=\"WYP\",tblREGASSJune19[[#This Row],[Alloc]]=\"CA\",tblREGASSJune19[[#This Row],[Alloc]]=\"WA\"),\"SITUS\",tblREGASSJune19[[#This Row],[Alloc]])","v":"OTHER"},{"$f":"INDEX(tblREGASSLookup[FUNC],MATCH(tblREGASSJune19[[#This Row],[Concat]],tblREGASSLookup[Concat],0))","v":"COMMON"},{"$f":"IF(tblREGASSJune19[[#This Row],[Total ($000)]]=0,\"NO\",IF(ISNA(tblREGASSJune19[[#This Row],[FUNC]]),\"YES\",IF(_xlfn.ISFORMULA(tblREGASSJune19[[#This Row],[FUNC]]),\"NO\",\"YES\")))","v":"NO"}]
[{"$f":"CONCATENATE(tblREGASSJune19[[#This Row],[Primary Account]],tblREGASSJune19[[#This Row],[Primary Name]],tblREGASSJune19[[#This Row],[Secondary Acct]],tblREGASSJune19[[#This Row],[Secondary  Name]],tblREGASSJune19[[#This Row],[Alloc4FUNC]])","v":"1823990OTHR REG ASSET-N CST187965RegA - Intervenor/Eval Fees - Recl to CuOTHER"},1823990,"OTHR REG ASSET-N CST",187965,"RegA - Intervenor/Eval Fees - Recl to Cu","OTHER",0,{"$f":"IF(OR(tblREGASSJune19[[#This Row],[Alloc]]=\"IDU\",tblREGASSJune19[[#This Row],[Alloc]]=\"OR\",tblREGASSJune19[[#This Row],[Alloc]]=\"UT\",tblREGASSJune19[[#This Row],[Alloc]]=\"WYU\",tblREGASSJune19[[#This Row],[Alloc]]=\"WYP\",tblREGASSJune19[[#This Row],[Alloc]]=\"CA\",tblREGASSJune19[[#This Row],[Alloc]]=\"WA\"),\"SITUS\",tblREGASSJune19[[#This Row],[Alloc]])","v":"OTHER"},{"$f":"INDEX(tblREGASSLookup[FUNC],MATCH(tblREGASSJune19[[#This Row],[Concat]],tblREGASSLookup[Concat],0))","v":{"$error":"#N/A"}},{"$f":"IF(tblREGASSJune19[[#This Row],[Total ($000)]]=0,\"NO\",IF(ISNA(tblREGASSJune19[[#This Row],[FUNC]]),\"YES\",IF(_xlfn.ISFORMULA(tblREGASSJune19[[#This Row],[FUNC]]),\"NO\",\"YES\")))","v":"NO"}]
[{"$f":"CONCATENATE(tblREGASSJune19[[#This Row],[Primary Account]],tblREGASSJune19[[#This Row],[Primary Name]],tblREGASSJune19[[#This Row],[Secondary Acct]],tblREGASSJune19[[#This Row],[Secondary  Name]],tblREGASSJune19[[#This Row],[Alloc4FUNC]])","v":"1823990OTHR REG ASSET-N CST187966RegA - CA (CARE) Program - Recl to LiabOTHER"},1823990,"OTHR REG ASSET-N CST",187966,"RegA - CA (CARE) Program - Recl to Liab","OTHER",0,{"$f":"IF(OR(tblREGASSJune19[[#This Row],[Alloc]]=\"IDU\",tblREGASSJune19[[#This Row],[Alloc]]=\"OR\",tblREGASSJune19[[#This Row],[Alloc]]=\"UT\",tblREGASSJune19[[#This Row],[Alloc]]=\"WYU\",tblREGASSJune19[[#This Row],[Alloc]]=\"WYP\",tblREGASSJune19[[#This Row],[Alloc]]=\"CA\",tblREGASSJune19[[#This Row],[Alloc]]=\"WA\"),\"SITUS\",tblREGASSJune19[[#This Row],[Alloc]])","v":"OTHER"},{"$f":"INDEX(tblREGASSLookup[FUNC],MATCH(tblREGASSJune19[[#This Row],[Concat]],tblREGASSLookup[Concat],0))","v":{"$error":"#N/A"}},{"$f":"IF(tblREGASSJune19[[#This Row],[Total ($000)]]=0,\"NO\",IF(ISNA(tblREGASSJune19[[#This Row],[FUNC]]),\"YES\",IF(_xlfn.ISFORMULA(tblREGASSJune19[[#This Row],[FUNC]]),\"NO\",\"YES\")))","v":"NO"}]
[{"$f":"CONCATENATE(tblREGASSJune19[[#This Row],[Primary Account]],tblREGASSJune19[[#This Row],[Primary Name]],tblREGASSJune19[[#This Row],[Secondary Acct]],tblREGASSJune19[[#This Row],[Secondary  Name]],tblREGASSJune19[[#This Row],[Alloc4FUNC]])","v":"1823990OTHR REG ASSET-N CST187967RegA - OR Asset Sale Gain-Balance ReclOTHER"},1823990,"OTHR REG ASSET-N CST",187967,"RegA - OR Asset Sale Gain-Balance Recl","OTHER",1039.86887230769,{"$f":"IF(OR(tblREGASSJune19[[#This Row],[Alloc]]=\"IDU\",tblREGASSJune19[[#This Row],[Alloc]]=\"OR\",tblREGASSJune19[[#This Row],[Alloc]]=\"UT\",tblREGASSJune19[[#This Row],[Alloc]]=\"WYU\",tblREGASSJune19[[#This Row],[Alloc]]=\"WYP\",tblREGASSJune19[[#This Row],[Alloc]]=\"CA\",tblREGASSJune19[[#This Row],[Alloc]]=\"WA\"),\"SITUS\",tblREGASSJune19[[#This Row],[Alloc]])","v":"OTHER"},{"$f":"INDEX(tblREGASSLookup[FUNC],MATCH(tblREGASSJune19[[#This Row],[Concat]],tblREGASSLookup[Concat],0))","v":"P"},{"$f":"IF(tblREGASSJune19[[#This Row],[Total ($000)]]=0,\"NO\",IF(ISNA(tblREGASSJune19[[#This Row],[FUNC]]),\"YES\",IF(_xlfn.ISFORMULA(tblREGASSJune19[[#This Row],[FUNC]]),\"NO\",\"YES\")))","v":"NO"}]
[{"$f":"CONCATENATE(tblREGASSJune19[[#This Row],[Primary Account]],tblREGASSJune19[[#This Row],[Primary Name]],tblREGASSJune19[[#This Row],[Secondary Acct]],tblREGASSJune19[[#This Row],[Secondary  Name]],tblREGASSJune19[[#This Row],[Alloc4FUNC]])","v":"1823990OTHR REG ASSET-N CST187968Reg A - Insurance Reserves - ReclassOTHER"},1823990,"OTHR REG ASSET-N CST",187968,"Reg A - Insurance Reserves - Reclass","OTHER",6416.6109500000002,{"$f":"IF(OR(tblREGASSJune19[[#This Row],[Alloc]]=\"IDU\",tblREGASSJune19[[#This Row],[Alloc]]=\"OR\",tblREGASSJune19[[#This Row],[Alloc]]=\"UT\",tblREGASSJune19[[#This Row],[Alloc]]=\"WYU\",tblREGASSJune19[[#This Row],[Alloc]]=\"WYP\",tblREGASSJune19[[#This Row],[Alloc]]=\"CA\",tblREGASSJune19[[#This Row],[Alloc]]=\"WA\"),\"SITUS\",tblREGASSJune19[[#This Row],[Alloc]])","v":"OTHER"},{"$f":"INDEX(tblREGASSLookup[FUNC],MATCH(tblREGASSJune19[[#This Row],[Concat]],tblREGASSLookup[Concat],0))","v":"LABOR"},{"$f":"IF(tblREGASSJune19[[#This Row],[Total ($000)]]=0,\"NO\",IF(ISNA(tblREGASSJune19[[#This Row],[FUNC]]),\"YES\",IF(_xlfn.ISFORMULA(tblREGASSJune19[[#This Row],[FUNC]]),\"NO\",\"YES\")))","v":"NO"}]
[{"$f":"CONCATENATE(tblREGASSJune19[[#This Row],[Primary Account]],tblREGASSJune19[[#This Row],[Primary Name]],tblREGASSJune19[[#This Row],[Secondary Acct]],tblREGASSJune19[[#This Row],[Secondary  Name]],tblREGASSJune19[[#This Row],[Alloc4FUNC]])","v":"1823990OTHR REG ASSET-N CST187970DEFERRED NET POWER COSTS - WY 09OTHER"},1823990,"OTHR REG ASSET-N CST",187970,"DEFERRED NET POWER COSTS - WY 09","OTHER",0,{"$f":"IF(OR(tblREGASSJune19[[#This Row],[Alloc]]=\"IDU\",tblREGASSJune19[[#This Row],[Alloc]]=\"OR\",tblREGASSJune19[[#This Row],[Alloc]]=\"UT\",tblREGASSJune19[[#This Row],[Alloc]]=\"WYU\",tblREGASSJune19[[#This Row],[Alloc]]=\"WYP\",tblREGASSJune19[[#This Row],[Alloc]]=\"CA\",tblREGASSJune19[[#This Row],[Alloc]]=\"WA\"),\"SITUS\",tblREGASSJune19[[#This Row],[Alloc]])","v":"OTHER"},{"$f":"INDEX(tblREGASSLookup[FUNC],MATCH(tblREGASSJune19[[#This Row],[Concat]],tblREGASSLookup[Concat],0))","v":{"$error":"#N/A"}},{"$f":"IF(tblREGASSJune19[[#This Row],[Total ($000)]]=0,\"NO\",IF(ISNA(tblREGASSJune19[[#This Row],[FUNC]]),\"YES\",IF(_xlfn.ISFORMULA(tblREGASSJune19[[#This Row],[FUNC]]),\"NO\",\"YES\")))","v":"NO"}]
[{"$f":"CONCATENATE(tblREGASSJune19[[#This Row],[Primary Account]],tblREGASSJune19[[#This Row],[Primary Name]],tblREGASSJune19[[#This Row],[Secondary Acct]],tblREGASSJune19[[#This Row],[Secondary  Name]],tblREGASSJune19[[#This Row],[Alloc4FUNC]])","v":"1823990OTHR REG ASSET-N CST187971Deferred Net Power Costs - WY 10OTHER"},1823990,"OTHR REG ASSET-N CST",187971,"Deferred Net Power Costs - WY 10","OTHER",0,{"$f":"IF(OR(tblREGASSJune19[[#This Row],[Alloc]]=\"IDU\",tblREGASSJune19[[#This Row],[Alloc]]=\"OR\",tblREGASSJune19[[#This Row],[Alloc]]=\"UT\",tblREGASSJune19[[#This Row],[Alloc]]=\"WYU\",tblREGASSJune19[[#This Row],[Alloc]]=\"WYP\",tblREGASSJune19[[#This Row],[Alloc]]=\"CA\",tblREGASSJune19[[#This Row],[Alloc]]=\"WA\"),\"SITUS\",tblREGASSJune19[[#This Row],[Alloc]])","v":"OTHER"},{"$f":"INDEX(tblREGASSLookup[FUNC],MATCH(tblREGASSJune19[[#This Row],[Concat]],tblREGASSLookup[Concat],0))","v":{"$error":"#N/A"}},{"$f":"IF(tblREGASSJune19[[#This Row],[Total ($000)]]=0,\"NO\",IF(ISNA(tblREGASSJune19[[#This Row],[FUNC]]),\"YES\",IF(_xlfn.ISFORMULA(tblREGASSJune19[[#This Row],[FUNC]]),\"NO\",\"YES\")))","v":"NO"}]
[{"$f":"CONCATENATE(tblREGASSJune19[[#This Row],[Primary Account]],tblREGASSJune19[[#This Row],[Primary Name]],tblREGASSJune19[[#This Row],[Secondary Acct]],tblREGASSJune19[[#This Row],[Secondary  Name]],tblREGASSJune19[[#This Row],[Alloc4FUNC]])","v":"1823990OTHR REG ASSET-N CST187972Deferred Net Power Costs - WY 11OTHER"},1823990,"OTHR REG ASSET-N CST",187972,"Deferred Net Power Costs - WY 11","OTHER",0,{"$f":"IF(OR(tblREGASSJune19[[#This Row],[Alloc]]=\"IDU\",tblREGASSJune19[[#This Row],[Alloc]]=\"OR\",tblREGASSJune19[[#This Row],[Alloc]]=\"UT\",tblREGASSJune19[[#This Row],[Alloc]]=\"WYU\",tblREGASSJune19[[#This Row],[Alloc]]=\"WYP\",tblREGASSJune19[[#This Row],[Alloc]]=\"CA\",tblREGASSJune19[[#This Row],[Alloc]]=\"WA\"),\"SITUS\",tblREGASSJune19[[#This Row],[Alloc]])","v":"OTHER"},{"$f":"INDEX(tblREGASSLookup[FUNC],MATCH(tblREGASSJune19[[#This Row],[Concat]],tblREGASSLookup[Concat],0))","v":{"$error":"#N/A"}},{"$f":"IF(tblREGASSJune19[[#This Row],[Total ($000)]]=0,\"NO\",IF(ISNA(tblREGASSJune19[[#This Row],[FUNC]]),\"YES\",IF(_xlfn.ISFORMULA(tblREGASSJune19[[#This Row],[FUNC]]),\"NO\",\"YES\")))","v":"NO"}]
[{"$f":"CONCATENATE(tblREGASSJune19[[#This Row],[Primary Account]],tblREGASSJune19[[#This Row],[Primary Name]],tblREGASSJune19[[#This Row],[Secondary Acct]],tblREGASSJune19[[#This Row],[Secondary  Name]],tblREGASSJune19[[#This Row],[Alloc4FUNC]])","v":"1823990OTHR REG ASSET-N CST187973Contra Reg Asset - CA ECAC CY2015OTHER"},1823990,"OTHR REG ASSET-N CST",187973,"Contra Reg Asset - CA ECAC CY2015","OTHER",-334.92930307692302,{"$f":"IF(OR(tblREGASSJune19[[#This Row],[Alloc]]=\"IDU\",tblREGASSJune19[[#This Row],[Alloc]]=\"OR\",tblREGASSJune19[[#This Row],[Alloc]]=\"UT\",tblREGASSJune19[[#This Row],[Alloc]]=\"WYU\",tblREGASSJune19[[#This Row],[Alloc]]=\"WYP\",tblREGASSJune19[[#This Row],[Alloc]]=\"CA\",tblREGASSJune19[[#This Row],[Alloc]]=\"WA\"),\"SITUS\",tblREGASSJune19[[#This Row],[Alloc]])","v":"OTHER"},{"$f":"INDEX(tblREGASSLookup[FUNC],MATCH(tblREGASSJune19[[#This Row],[Concat]],tblREGASSLookup[Concat],0))","v":"P"},{"$f":"IF(tblREGASSJune19[[#This Row],[Total ($000)]]=0,\"NO\",IF(ISNA(tblREGASSJune19[[#This Row],[FUNC]]),\"YES\",IF(_xlfn.ISFORMULA(tblREGASSJune19[[#This Row],[FUNC]]),\"NO\",\"YES\")))","v":"NO"}]
[{"$f":"CONCATENATE(tblREGASSJune19[[#This Row],[Primary Account]],tblREGASSJune19[[#This Row],[Primary Name]],tblREGASSJune19[[#This Row],[Secondary Acct]],tblREGASSJune19[[#This Row],[Secondary  Name]],tblREGASSJune19[[#This Row],[Alloc4FUNC]])","v":"1823990OTHR REG ASSET-N CST187974Contra Reg Asset - CA ECAC CY2016OTHER"},1823990,"OTHR REG ASSET-N CST",187974,"Contra Reg Asset - CA ECAC CY2016","OTHER",-169.58058923076899,{"$f":"IF(OR(tblREGASSJune19[[#This Row],[Alloc]]=\"IDU\",tblREGASSJune19[[#This Row],[Alloc]]=\"OR\",tblREGASSJune19[[#This Row],[Alloc]]=\"UT\",tblREGASSJune19[[#This Row],[Alloc]]=\"WYU\",tblREGASSJune19[[#This Row],[Alloc]]=\"WYP\",tblREGASSJune19[[#This Row],[Alloc]]=\"CA\",tblREGASSJune19[[#This Row],[Alloc]]=\"WA\"),\"SITUS\",tblREGASSJune19[[#This Row],[Alloc]])","v":"OTHER"},{"$f":"INDEX(tblREGASSLookup[FUNC],MATCH(tblREGASSJune19[[#This Row],[Concat]],tblREGASSLookup[Concat],0))","v":"P"},{"$f":"IF(tblREGASSJune19[[#This Row],[Total ($000)]]=0,\"NO\",IF(ISNA(tblREGASSJune19[[#This Row],[FUNC]]),\"YES\",IF(_xlfn.ISFORMULA(tblREGASSJune19[[#This Row],[FUNC]]),\"NO\",\"YES\")))","v":"NO"}]
[{"$f":"CONCATENATE(tblREGASSJune19[[#This Row],[Primary Account]],tblREGASSJune19[[#This Row],[Primary Name]],tblREGASSJune19[[#This Row],[Secondary Acct]],tblREGASSJune19[[#This Row],[Secondary  Name]],tblREGASSJune19[[#This Row],[Alloc4FUNC]])","v":"1823990OTHR REG ASSET-N CST187975Reg Asset - CA ECACOTHER"},1823990,"OTHR REG ASSET-N CST",187975,"Reg Asset - CA ECAC","OTHER",2250.7121838461499,{"$f":"IF(OR(tblREGASSJune19[[#This Row],[Alloc]]=\"IDU\",tblREGASSJune19[[#This Row],[Alloc]]=\"OR\",tblREGASSJune19[[#This Row],[Alloc]]=\"UT\",tblREGASSJune19[[#This Row],[Alloc]]=\"WYU\",tblREGASSJune19[[#This Row],[Alloc]]=\"WYP\",tblREGASSJune19[[#This Row],[Alloc]]=\"CA\",tblREGASSJune19[[#This Row],[Alloc]]=\"WA\"),\"SITUS\",tblREGASSJune19[[#This Row],[Alloc]])","v":"OTHER"},{"$f":"INDEX(tblREGASSLookup[FUNC],MATCH(tblREGASSJune19[[#This Row],[Concat]],tblREGASSLookup[Concat],0))","v":"P"},{"$f":"IF(tblREGASSJune19[[#This Row],[Total ($000)]]=0,\"NO\",IF(ISNA(tblREGASSJune19[[#This Row],[FUNC]]),\"YES\",IF(_xlfn.ISFORMULA(tblREGASSJune19[[#This Row],[FUNC]]),\"NO\",\"YES\")))","v":"NO"}]
[{"$f":"CONCATENATE(tblREGASSJune19[[#This Row],[Primary Account]],tblREGASSJune19[[#This Row],[Primary Name]],tblREGASSJune19[[#This Row],[Secondary Acct]],tblREGASSJune19[[#This Row],[Secondary  Name]],tblREGASSJune19[[#This Row],[Alloc4FUNC]])","v":"1823990OTHR REG ASSET-N CST187976Reg Asset - CA ECAC CY2017OTHER"},1823990,"OTHR REG ASSET-N CST",187976,"Reg Asset - CA ECAC CY2017","OTHER",115.610992307692,{"$f":"IF(OR(tblREGASSJune19[[#This Row],[Alloc]]=\"IDU\",tblREGASSJune19[[#This Row],[Alloc]]=\"OR\",tblREGASSJune19[[#This Row],[Alloc]]=\"UT\",tblREGASSJune19[[#This Row],[Alloc]]=\"WYU\",tblREGASSJune19[[#This Row],[Alloc]]=\"WYP\",tblREGASSJune19[[#This Row],[Alloc]]=\"CA\",tblREGASSJune19[[#This Row],[Alloc]]=\"WA\"),\"SITUS\",tblREGASSJune19[[#This Row],[Alloc]])","v":"OTHER"},{"$f":"INDEX(tblREGASSLookup[FUNC],MATCH(tblREGASSJune19[[#This Row],[Concat]],tblREGASSLookup[Concat],0))","v":"P"},{"$f":"IF(tblREGASSJune19[[#This Row],[Total ($000)]]=0,\"NO\",IF(ISNA(tblREGASSJune19[[#This Row],[FUNC]]),\"YES\",IF(_xlfn.ISFORMULA(tblREGASSJune19[[#This Row],[FUNC]]),\"NO\",\"YES\")))","v":"NO"}]
[{"$f":"CONCATENATE(tblREGASSJune19[[#This Row],[Primary Account]],tblREGASSJune19[[#This Row],[Primary Name]],tblREGASSJune19[[#This Row],[Secondary Acct]],tblREGASSJune19[[#This Row],[Secondary  Name]],tblREGASSJune19[[#This Row],[Alloc4FUNC]])","v":"1823990OTHR REG ASSET-N CST187977Contra Reg Asset - CA ECAC CY2017OTHER"},1823990,"OTHR REG ASSET-N CST",187977,"Contra Reg Asset - CA ECAC CY2017","OTHER",-107.322813076923,{"$f":"IF(OR(tblREGASSJune19[[#This Row],[Alloc]]=\"IDU\",tblREGASSJune19[[#This Row],[Alloc]]=\"OR\",tblREGASSJune19[[#This Row],[Alloc]]=\"UT\",tblREGASSJune19[[#This Row],[Alloc]]=\"WYU\",tblREGASSJune19[[#This Row],[Alloc]]=\"WYP\",tblREGASSJune19[[#This Row],[Alloc]]=\"CA\",tblREGASSJune19[[#This Row],[Alloc]]=\"WA\"),\"SITUS\",tblREGASSJune19[[#This Row],[Alloc]])","v":"OTHER"},{"$f":"INDEX(tblREGASSLookup[FUNC],MATCH(tblREGASSJune19[[#This Row],[Concat]],tblREGASSLookup[Concat],0))","v":"P"},{"$f":"IF(tblREGASSJune19[[#This Row],[Total ($000)]]=0,\"NO\",IF(ISNA(tblREGASSJune19[[#This Row],[FUNC]]),\"YES\",IF(_xlfn.ISFORMULA(tblREGASSJune19[[#This Row],[FUNC]]),\"NO\",\"YES\")))","v":"NO"}]
[{"$f":"CONCATENATE(tblREGASSJune19[[#This Row],[Primary Account]],tblREGASSJune19[[#This Row],[Primary Name]],tblREGASSJune19[[#This Row],[Secondary Acct]],tblREGASSJune19[[#This Row],[Secondary  Name]],tblREGASSJune19[[#This Row],[Alloc4FUNC]])","v":"1823990OTHR REG ASSET-N CST187978Reg Asset - CA ECAC CY2018OTHER"},1823990,"OTHR REG ASSET-N CST",187978,"Reg Asset - CA ECAC CY2018","OTHER",3485.68692846154,{"$f":"IF(OR(tblREGASSJune19[[#This Row],[Alloc]]=\"IDU\",tblREGASSJune19[[#This Row],[Alloc]]=\"OR\",tblREGASSJune19[[#This Row],[Alloc]]=\"UT\",tblREGASSJune19[[#This Row],[Alloc]]=\"WYU\",tblREGASSJune19[[#This Row],[Alloc]]=\"WYP\",tblREGASSJune19[[#This Row],[Alloc]]=\"CA\",tblREGASSJune19[[#This Row],[Alloc]]=\"WA\"),\"SITUS\",tblREGASSJune19[[#This Row],[Alloc]])","v":"OTHER"},{"$f":"INDEX(tblREGASSLookup[FUNC],MATCH(tblREGASSJune19[[#This Row],[Concat]],tblREGASSLookup[Concat],0))","v":"P"},{"$f":"IF(tblREGASSJune19[[#This Row],[Total ($000)]]=0,\"NO\",IF(ISNA(tblREGASSJune19[[#This Row],[FUNC]]),\"YES\",IF(_xlfn.ISFORMULA(tblREGASSJune19[[#This Row],[FUNC]]),\"NO\",\"YES\")))","v":"NO"}]
[{"$f":"CONCATENATE(tblREGASSJune19[[#This Row],[Primary Account]],tblREGASSJune19[[#This Row],[Primary Name]],tblREGASSJune19[[#This Row],[Secondary Acct]],tblREGASSJune19[[#This Row],[Secondary  Name]],tblREGASSJune19[[#This Row],[Alloc4FUNC]])","v":"1823990OTHR REG ASSET-N CST187979Contra Reg Asset - CA ECAC CY2018OTHER"},1823990,"OTHR REG ASSET-N CST",187979,"Contra Reg Asset - CA ECAC CY2018","OTHER",-188.712893076923,{"$f":"IF(OR(tblREGASSJune19[[#This Row],[Alloc]]=\"IDU\",tblREGASSJune19[[#This Row],[Alloc]]=\"OR\",tblREGASSJune19[[#This Row],[Alloc]]=\"UT\",tblREGASSJune19[[#This Row],[Alloc]]=\"WYU\",tblREGASSJune19[[#This Row],[Alloc]]=\"WYP\",tblREGASSJune19[[#This Row],[Alloc]]=\"CA\",tblREGASSJune19[[#This Row],[Alloc]]=\"WA\"),\"SITUS\",tblREGASSJune19[[#This Row],[Alloc]])","v":"OTHER"},{"$f":"INDEX(tblREGASSLookup[FUNC],MATCH(tblREGASSJune19[[#This Row],[Concat]],tblREGASSLookup[Concat],0))","v":"P"},{"$f":"IF(tblREGASSJune19[[#This Row],[Total ($000)]]=0,\"NO\",IF(ISNA(tblREGASSJune19[[#This Row],[FUNC]]),\"YES\",IF(_xlfn.ISFORMULA(tblREGASSJune19[[#This Row],[FUNC]]),\"NO\",\"YES\")))","v":"NO"}]
[{"$f":"CONCATENATE(tblREGASSJune19[[#This Row],[Primary Account]],tblREGASSJune19[[#This Row],[Primary Name]],tblREGASSJune19[[#This Row],[Secondary Acct]],tblREGASSJune19[[#This Row],[Secondary  Name]],tblREGASSJune19[[#This Row],[Alloc4FUNC]])","v":"1823990OTHR REG ASSET-N CST187980Deferred Net Power Costs - ID 09OTHER"},1823990,"OTHR REG ASSET-N CST",187980,"Deferred Net Power Costs - ID 09","OTHER",0,{"$f":"IF(OR(tblREGASSJune19[[#This Row],[Alloc]]=\"IDU\",tblREGASSJune19[[#This Row],[Alloc]]=\"OR\",tblREGASSJune19[[#This Row],[Alloc]]=\"UT\",tblREGASSJune19[[#This Row],[Alloc]]=\"WYU\",tblREGASSJune19[[#This Row],[Alloc]]=\"WYP\",tblREGASSJune19[[#This Row],[Alloc]]=\"CA\",tblREGASSJune19[[#This Row],[Alloc]]=\"WA\"),\"SITUS\",tblREGASSJune19[[#This Row],[Alloc]])","v":"OTHER"},{"$f":"INDEX(tblREGASSLookup[FUNC],MATCH(tblREGASSJune19[[#This Row],[Concat]],tblREGASSLookup[Concat],0))","v":{"$error":"#N/A"}},{"$f":"IF(tblREGASSJune19[[#This Row],[Total ($000)]]=0,\"NO\",IF(ISNA(tblREGASSJune19[[#This Row],[FUNC]]),\"YES\",IF(_xlfn.ISFORMULA(tblREGASSJune19[[#This Row],[FUNC]]),\"NO\",\"YES\")))","v":"NO"}]
[{"$f":"CONCATENATE(tblREGASSJune19[[#This Row],[Primary Account]],tblREGASSJune19[[#This Row],[Primary Name]],tblREGASSJune19[[#This Row],[Secondary Acct]],tblREGASSJune19[[#This Row],[Secondary  Name]],tblREGASSJune19[[#This Row],[Alloc4FUNC]])","v":"1823990OTHR REG ASSET-N CST187981Deferred Net Power Costs - ID 10OTHER"},1823990,"OTHR REG ASSET-N CST",187981,"Deferred Net Power Costs - ID 10","OTHER",0,{"$f":"IF(OR(tblREGASSJune19[[#This Row],[Alloc]]=\"IDU\",tblREGASSJune19[[#This Row],[Alloc]]=\"OR\",tblREGASSJune19[[#This Row],[Alloc]]=\"UT\",tblREGASSJune19[[#This Row],[Alloc]]=\"WYU\",tblREGASSJune19[[#This Row],[Alloc]]=\"WYP\",tblREGASSJune19[[#This Row],[Alloc]]=\"CA\",tblREGASSJune19[[#This Row],[Alloc]]=\"WA\"),\"SITUS\",tblREGASSJune19[[#This Row],[Alloc]])","v":"OTHER"},{"$f":"INDEX(tblREGASSLookup[FUNC],MATCH(tblREGASSJune19[[#This Row],[Concat]],tblREGASSLookup[Concat],0))","v":{"$error":"#N/A"}},{"$f":"IF(tblREGASSJune19[[#This Row],[Total ($000)]]=0,\"NO\",IF(ISNA(tblREGASSJune19[[#This Row],[FUNC]]),\"YES\",IF(_xlfn.ISFORMULA(tblREGASSJune19[[#This Row],[FUNC]]),\"NO\",\"YES\")))","v":"NO"}]
[{"$f":"CONCATENATE(tblREGASSJune19[[#This Row],[Primary Account]],tblREGASSJune19[[#This Row],[Primary Name]],tblREGASSJune19[[#This Row],[Secondary Acct]],tblREGASSJune19[[#This Row],[Secondary  Name]],tblREGASSJune19[[#This Row],[Alloc4FUNC]])","v":"1823990OTHR REG ASSET-N CST187982Deferred Net Power Costs - ID 11OTHER"},1823990,"OTHR REG ASSET-N CST",187982,"Deferred Net Power Costs - ID 11","OTHER",0,{"$f":"IF(OR(tblREGASSJune19[[#This Row],[Alloc]]=\"IDU\",tblREGASSJune19[[#This Row],[Alloc]]=\"OR\",tblREGASSJune19[[#This Row],[Alloc]]=\"UT\",tblREGASSJune19[[#This Row],[Alloc]]=\"WYU\",tblREGASSJune19[[#This Row],[Alloc]]=\"WYP\",tblREGASSJune19[[#This Row],[Alloc]]=\"CA\",tblREGASSJune19[[#This Row],[Alloc]]=\"WA\"),\"SITUS\",tblREGASSJune19[[#This Row],[Alloc]])","v":"OTHER"},{"$f":"INDEX(tblREGASSLookup[FUNC],MATCH(tblREGASSJune19[[#This Row],[Concat]],tblREGASSLookup[Concat],0))","v":{"$error":"#N/A"}},{"$f":"IF(tblREGASSJune19[[#This Row],[Total ($000)]]=0,\"NO\",IF(ISNA(tblREGASSJune19[[#This Row],[FUNC]]),\"YES\",IF(_xlfn.ISFORMULA(tblREGASSJune19[[#This Row],[FUNC]]),\"NO\",\"YES\")))","v":"NO"}]
[{"$f":"CONCATENATE(tblREGASSJune19[[#This Row],[Primary Account]],tblREGASSJune19[[#This Row],[Primary Name]],tblREGASSJune19[[#This Row],[Secondary Acct]],tblREGASSJune19[[#This Row],[Secondary  Name]],tblREGASSJune19[[#This Row],[Alloc4FUNC]])","v":"1823990OTHR REG ASSET-N CST187983\"Reg Asset - ID ECAM Dec10-Nov11, MnsantOTHER"},1823990,"OTHR REG ASSET-N CST",187983,"\"Reg Asset - ID ECAM Dec10-Nov11, Mnsant","OTHER",0,{"$f":"IF(OR(tblREGASSJune19[[#This Row],[Alloc]]=\"IDU\",tblREGASSJune19[[#This Row],[Alloc]]=\"OR\",tblREGASSJune19[[#This Row],[Alloc]]=\"UT\",tblREGASSJune19[[#This Row],[Alloc]]=\"WYU\",tblREGASSJune19[[#This Row],[Alloc]]=\"WYP\",tblREGASSJune19[[#This Row],[Alloc]]=\"CA\",tblREGASSJune19[[#This Row],[Alloc]]=\"WA\"),\"SITUS\",tblREGASSJune19[[#This Row],[Alloc]])","v":"OTHER"},{"$f":"INDEX(tblREGASSLookup[FUNC],MATCH(tblREGASSJune19[[#This Row],[Concat]],tblREGASSLookup[Concat],0))","v":{"$error":"#N/A"}},{"$f":"IF(tblREGASSJune19[[#This Row],[Total ($000)]]=0,\"NO\",IF(ISNA(tblREGASSJune19[[#This Row],[FUNC]]),\"YES\",IF(_xlfn.ISFORMULA(tblREGASSJune19[[#This Row],[FUNC]]),\"NO\",\"YES\")))","v":"NO"}]
[{"$f":"CONCATENATE(tblREGASSJune19[[#This Row],[Primary Account]],tblREGASSJune19[[#This Row],[Primary Name]],tblREGASSJune19[[#This Row],[Secondary Acct]],tblREGASSJune19[[#This Row],[Secondary  Name]],tblREGASSJune19[[#This Row],[Alloc4FUNC]])","v":"1823990OTHR REG ASSET-N CST187984\"Reg Asset - ID ECAM Dec10-Nov11, AgriumOTHER"},1823990,"OTHR REG ASSET-N CST",187984,"\"Reg Asset - ID ECAM Dec10-Nov11, Agrium","OTHER",0,{"$f":"IF(OR(tblREGASSJune19[[#This Row],[Alloc]]=\"IDU\",tblREGASSJune19[[#This Row],[Alloc]]=\"OR\",tblREGASSJune19[[#This Row],[Alloc]]=\"UT\",tblREGASSJune19[[#This Row],[Alloc]]=\"WYU\",tblREGASSJune19[[#This Row],[Alloc]]=\"WYP\",tblREGASSJune19[[#This Row],[Alloc]]=\"CA\",tblREGASSJune19[[#This Row],[Alloc]]=\"WA\"),\"SITUS\",tblREGASSJune19[[#This Row],[Alloc]])","v":"OTHER"},{"$f":"INDEX(tblREGASSLookup[FUNC],MATCH(tblREGASSJune19[[#This Row],[Concat]],tblREGASSLookup[Concat],0))","v":{"$error":"#N/A"}},{"$f":"IF(tblREGASSJune19[[#This Row],[Total ($000)]]=0,\"NO\",IF(ISNA(tblREGASSJune19[[#This Row],[FUNC]]),\"YES\",IF(_xlfn.ISFORMULA(tblREGASSJune19[[#This Row],[FUNC]]),\"NO\",\"YES\")))","v":"NO"}]
[{"$f":"CONCATENATE(tblREGASSJune19[[#This Row],[Primary Account]],tblREGASSJune19[[#This Row],[Primary Name]],tblREGASSJune19[[#This Row],[Secondary Acct]],tblREGASSJune19[[#This Row],[Secondary  Name]],tblREGASSJune19[[#This Row],[Alloc4FUNC]])","v":"1823990OTHR REG ASSET-N CST187985Utah ECAM Regulatory AssetOTHER"},1823990,"OTHR REG ASSET-N CST",187985,"Utah ECAM Regulatory Asset","OTHER",0,{"$f":"IF(OR(tblREGASSJune19[[#This Row],[Alloc]]=\"IDU\",tblREGASSJune19[[#This Row],[Alloc]]=\"OR\",tblREGASSJune19[[#This Row],[Alloc]]=\"UT\",tblREGASSJune19[[#This Row],[Alloc]]=\"WYU\",tblREGASSJune19[[#This Row],[Alloc]]=\"WYP\",tblREGASSJune19[[#This Row],[Alloc]]=\"CA\",tblREGASSJune19[[#This Row],[Alloc]]=\"WA\"),\"SITUS\",tblREGASSJune19[[#This Row],[Alloc]])","v":"OTHER"},{"$f":"INDEX(tblREGASSLookup[FUNC],MATCH(tblREGASSJune19[[#This Row],[Concat]],tblREGASSLookup[Concat],0))","v":{"$error":"#N/A"}},{"$f":"IF(tblREGASSJune19[[#This Row],[Total ($000)]]=0,\"NO\",IF(ISNA(tblREGASSJune19[[#This Row],[FUNC]]),\"YES\",IF(_xlfn.ISFORMULA(tblREGASSJune19[[#This Row],[FUNC]]),\"NO\",\"YES\")))","v":"NO"}]
[{"$f":"CONCATENATE(tblREGASSJune19[[#This Row],[Primary Account]],tblREGASSJune19[[#This Row],[Primary Name]],tblREGASSJune19[[#This Row],[Secondary Acct]],tblREGASSJune19[[#This Row],[Secondary  Name]],tblREGASSJune19[[#This Row],[Alloc4FUNC]])","v":"1823990OTHR REG ASSET-N CST187988Deferred Net Power Costs - OROTHER"},1823990,"OTHR REG ASSET-N CST",187988,"Deferred Net Power Costs - OR","OTHER",0,{"$f":"IF(OR(tblREGASSJune19[[#This Row],[Alloc]]=\"IDU\",tblREGASSJune19[[#This Row],[Alloc]]=\"OR\",tblREGASSJune19[[#This Row],[Alloc]]=\"UT\",tblREGASSJune19[[#This Row],[Alloc]]=\"WYU\",tblREGASSJune19[[#This Row],[Alloc]]=\"WYP\",tblREGASSJune19[[#This Row],[Alloc]]=\"CA\",tblREGASSJune19[[#This Row],[Alloc]]=\"WA\"),\"SITUS\",tblREGASSJune19[[#This Row],[Alloc]])","v":"OTHER"},{"$f":"INDEX(tblREGASSLookup[FUNC],MATCH(tblREGASSJune19[[#This Row],[Concat]],tblREGASSLookup[Concat],0))","v":{"$error":"#N/A"}},{"$f":"IF(tblREGASSJune19[[#This Row],[Total ($000)]]=0,\"NO\",IF(ISNA(tblREGASSJune19[[#This Row],[FUNC]]),\"YES\",IF(_xlfn.ISFORMULA(tblREGASSJune19[[#This Row],[FUNC]]),\"NO\",\"YES\")))","v":"NO"}]
[{"$f":"CONCATENATE(tblREGASSJune19[[#This Row],[Primary Account]],tblREGASSJune19[[#This Row],[Primary Name]],tblREGASSJune19[[#This Row],[Secondary Acct]],tblREGASSJune19[[#This Row],[Secondary  Name]],tblREGASSJune19[[#This Row],[Alloc4FUNC]])","v":"1823990OTHR REG ASSET-N CST187992Contra Reg Asset - CA - Def NPCOTHER"},1823990,"OTHR REG ASSET-N CST",187992,"Contra Reg Asset - CA - Def NPC","OTHER",0,{"$f":"IF(OR(tblREGASSJune19[[#This Row],[Alloc]]=\"IDU\",tblREGASSJune19[[#This Row],[Alloc]]=\"OR\",tblREGASSJune19[[#This Row],[Alloc]]=\"UT\",tblREGASSJune19[[#This Row],[Alloc]]=\"WYU\",tblREGASSJune19[[#This Row],[Alloc]]=\"WYP\",tblREGASSJune19[[#This Row],[Alloc]]=\"CA\",tblREGASSJune19[[#This Row],[Alloc]]=\"WA\"),\"SITUS\",tblREGASSJune19[[#This Row],[Alloc]])","v":"OTHER"},{"$f":"INDEX(tblREGASSLookup[FUNC],MATCH(tblREGASSJune19[[#This Row],[Concat]],tblREGASSLookup[Concat],0))","v":{"$error":"#N/A"}},{"$f":"IF(tblREGASSJune19[[#This Row],[Total ($000)]]=0,\"NO\",IF(ISNA(tblREGASSJune19[[#This Row],[FUNC]]),\"YES\",IF(_xlfn.ISFORMULA(tblREGASSJune19[[#This Row],[FUNC]]),\"NO\",\"YES\")))","v":"NO"}]
[{"$f":"CONCATENATE(tblREGASSJune19[[#This Row],[Primary Account]],tblREGASSJune19[[#This Row],[Primary Name]],tblREGASSJune19[[#This Row],[Secondary Acct]],tblREGASSJune19[[#This Row],[Secondary  Name]],tblREGASSJune19[[#This Row],[Alloc4FUNC]])","v":"1823990OTHR REG ASSET-N CST187993Contra Reg Asset - ID - Def NPCOTHER"},1823990,"OTHR REG ASSET-N CST",187993,"Contra Reg Asset - ID - Def NPC","OTHER",0,{"$f":"IF(OR(tblREGASSJune19[[#This Row],[Alloc]]=\"IDU\",tblREGASSJune19[[#This Row],[Alloc]]=\"OR\",tblREGASSJune19[[#This Row],[Alloc]]=\"UT\",tblREGASSJune19[[#This Row],[Alloc]]=\"WYU\",tblREGASSJune19[[#This Row],[Alloc]]=\"WYP\",tblREGASSJune19[[#This Row],[Alloc]]=\"CA\",tblREGASSJune19[[#This Row],[Alloc]]=\"WA\"),\"SITUS\",tblREGASSJune19[[#This Row],[Alloc]])","v":"OTHER"},{"$f":"INDEX(tblREGASSLookup[FUNC],MATCH(tblREGASSJune19[[#This Row],[Concat]],tblREGASSLookup[Concat],0))","v":{"$error":"#N/A"}},{"$f":"IF(tblREGASSJune19[[#This Row],[Total ($000)]]=0,\"NO\",IF(ISNA(tblREGASSJune19[[#This Row],[FUNC]]),\"YES\",IF(_xlfn.ISFORMULA(tblREGASSJune19[[#This Row],[FUNC]]),\"NO\",\"YES\")))","v":"NO"}]
[{"$f":"CONCATENATE(tblREGASSJune19[[#This Row],[Primary Account]],tblREGASSJune19[[#This Row],[Primary Name]],tblREGASSJune19[[#This Row],[Secondary Acct]],tblREGASSJune19[[#This Row],[Secondary  Name]],tblREGASSJune19[[#This Row],[Alloc4FUNC]])","v":"1823990OTHR REG ASSET-N CST187994Contra Reg Asset - WY - Def NPCOTHER"},1823990,"OTHR REG ASSET-N CST",187994,"Contra Reg Asset - WY - Def NPC","OTHER",0,{"$f":"IF(OR(tblREGASSJune19[[#This Row],[Alloc]]=\"IDU\",tblREGASSJune19[[#This Row],[Alloc]]=\"OR\",tblREGASSJune19[[#This Row],[Alloc]]=\"UT\",tblREGASSJune19[[#This Row],[Alloc]]=\"WYU\",tblREGASSJune19[[#This Row],[Alloc]]=\"WYP\",tblREGASSJune19[[#This Row],[Alloc]]=\"CA\",tblREGASSJune19[[#This Row],[Alloc]]=\"WA\"),\"SITUS\",tblREGASSJune19[[#This Row],[Alloc]])","v":"OTHER"},{"$f":"INDEX(tblREGASSLookup[FUNC],MATCH(tblREGASSJune19[[#This Row],[Concat]],tblREGASSLookup[Concat],0))","v":{"$error":"#N/A"}},{"$f":"IF(tblREGASSJune19[[#This Row],[Total ($000)]]=0,\"NO\",IF(ISNA(tblREGASSJune19[[#This Row],[FUNC]]),\"YES\",IF(_xlfn.ISFORMULA(tblREGASSJune19[[#This Row],[FUNC]]),\"NO\",\"YES\")))","v":"NO"}]
[{"$f":"CONCATENATE(tblREGASSJune19[[#This Row],[Primary Account]],tblREGASSJune19[[#This Row],[Primary Name]],tblREGASSJune19[[#This Row],[Secondary Acct]],tblREGASSJune19[[#This Row],[Secondary  Name]],tblREGASSJune19[[#This Row],[Alloc4FUNC]])","v":"1823990OTHR REG ASSET-N CST187995Utah ECAM Regulatory Asset - ContraOTHER"},1823990,"OTHR REG ASSET-N CST",187995,"Utah ECAM Regulatory Asset - Contra","OTHER",0,{"$f":"IF(OR(tblREGASSJune19[[#This Row],[Alloc]]=\"IDU\",tblREGASSJune19[[#This Row],[Alloc]]=\"OR\",tblREGASSJune19[[#This Row],[Alloc]]=\"UT\",tblREGASSJune19[[#This Row],[Alloc]]=\"WYU\",tblREGASSJune19[[#This Row],[Alloc]]=\"WYP\",tblREGASSJune19[[#This Row],[Alloc]]=\"CA\",tblREGASSJune19[[#This Row],[Alloc]]=\"WA\"),\"SITUS\",tblREGASSJune19[[#This Row],[Alloc]])","v":"OTHER"},{"$f":"INDEX(tblREGASSLookup[FUNC],MATCH(tblREGASSJune19[[#This Row],[Concat]],tblREGASSLookup[Concat],0))","v":{"$error":"#N/A"}},{"$f":"IF(tblREGASSJune19[[#This Row],[Total ($000)]]=0,\"NO\",IF(ISNA(tblREGASSJune19[[#This Row],[FUNC]]),\"YES\",IF(_xlfn.ISFORMULA(tblREGASSJune19[[#This Row],[FUNC]]),\"NO\",\"YES\")))","v":"NO"}]
[{"$f":"CONCATENATE(tblREGASSJune19[[#This Row],[Primary Account]],tblREGASSJune19[[#This Row],[Primary Name]],tblREGASSJune19[[#This Row],[Secondary Acct]],tblREGASSJune19[[#This Row],[Secondary  Name]],tblREGASSJune19[[#This Row],[Alloc4FUNC]])","v":"1823990OTHR REG ASSET-N CST187998RegA - Def Net Power Costs - Recl to CurOTHER"},1823990,"OTHR REG ASSET-N CST",187998,"RegA - Def Net Power Costs - Recl to Cur","OTHER",0,{"$f":"IF(OR(tblREGASSJune19[[#This Row],[Alloc]]=\"IDU\",tblREGASSJune19[[#This Row],[Alloc]]=\"OR\",tblREGASSJune19[[#This Row],[Alloc]]=\"UT\",tblREGASSJune19[[#This Row],[Alloc]]=\"WYU\",tblREGASSJune19[[#This Row],[Alloc]]=\"WYP\",tblREGASSJune19[[#This Row],[Alloc]]=\"CA\",tblREGASSJune19[[#This Row],[Alloc]]=\"WA\"),\"SITUS\",tblREGASSJune19[[#This Row],[Alloc]])","v":"OTHER"},{"$f":"INDEX(tblREGASSLookup[FUNC],MATCH(tblREGASSJune19[[#This Row],[Concat]],tblREGASSLookup[Concat],0))","v":{"$error":"#N/A"}},{"$f":"IF(tblREGASSJune19[[#This Row],[Total ($000)]]=0,\"NO\",IF(ISNA(tblREGASSJune19[[#This Row],[FUNC]]),\"YES\",IF(_xlfn.ISFORMULA(tblREGASSJune19[[#This Row],[FUNC]]),\"NO\",\"YES\")))","v":"NO"}]
[{"$f":"CONCATENATE(tblREGASSJune19[[#This Row],[Primary Account]],tblREGASSJune19[[#This Row],[Primary Name]],tblREGASSJune19[[#This Row],[Secondary Acct]],tblREGASSJune19[[#This Row],[Secondary  Name]],tblREGASSJune19[[#This Row],[Alloc4FUNC]])","v":"1823990OTHR REG ASSET-N CST187999Reg Asset - Def NPC Balance ReclassOTHER"},1823990,"OTHR REG ASSET-N CST",187999,"Reg Asset - Def NPC Balance Reclass","OTHER",0,{"$f":"IF(OR(tblREGASSJune19[[#This Row],[Alloc]]=\"IDU\",tblREGASSJune19[[#This Row],[Alloc]]=\"OR\",tblREGASSJune19[[#This Row],[Alloc]]=\"UT\",tblREGASSJune19[[#This Row],[Alloc]]=\"WYU\",tblREGASSJune19[[#This Row],[Alloc]]=\"WYP\",tblREGASSJune19[[#This Row],[Alloc]]=\"CA\",tblREGASSJune19[[#This Row],[Alloc]]=\"WA\"),\"SITUS\",tblREGASSJune19[[#This Row],[Alloc]])","v":"OTHER"},{"$f":"INDEX(tblREGASSLookup[FUNC],MATCH(tblREGASSJune19[[#This Row],[Concat]],tblREGASSLookup[Concat],0))","v":{"$error":"#N/A"}},{"$f":"IF(tblREGASSJune19[[#This Row],[Total ($000)]]=0,\"NO\",IF(ISNA(tblREGASSJune19[[#This Row],[FUNC]]),\"YES\",IF(_xlfn.ISFORMULA(tblREGASSJune19[[#This Row],[FUNC]]),\"NO\",\"YES\")))","v":"NO"}]
[{"$f":"CONCATENATE(tblREGASSJune19[[#This Row],[Primary Account]],tblREGASSJune19[[#This Row],[Primary Name]],tblREGASSJune19[[#This Row],[Secondary Acct]],tblREGASSJune19[[#This Row],[Secondary  Name]],tblREGASSJune19[[#This Row],[Alloc4FUNC]])","v":"1823990OTHR REG ASSET-N CST188000REG ASSET - ENVIRONMENTAL COSTSSITUS"},1823990,"OTHR REG ASSET-N CST",188000,"REG ASSET - ENVIRONMENTAL COSTS","OR",0,{"$f":"IF(OR(tblREGASSJune19[[#This Row],[Alloc]]=\"IDU\",tblREGASSJune19[[#This Row],[Alloc]]=\"OR\",tblREGASSJune19[[#This Row],[Alloc]]=\"UT\",tblREGASSJune19[[#This Row],[Alloc]]=\"WYU\",tblREGASSJune19[[#This Row],[Alloc]]=\"WYP\",tblREGASSJune19[[#This Row],[Alloc]]=\"CA\",tblREGASSJune19[[#This Row],[Alloc]]=\"WA\"),\"SITUS\",tblREGASSJune19[[#This Row],[Alloc]])","v":"SITUS"},{"$f":"INDEX(tblREGASSLookup[FUNC],MATCH(tblREGASSJune19[[#This Row],[Concat]],tblREGASSLookup[Concat],0))","v":{"$error":"#N/A"}},{"$f":"IF(tblREGASSJune19[[#This Row],[Total ($000)]]=0,\"NO\",IF(ISNA(tblREGASSJune19[[#This Row],[FUNC]]),\"YES\",IF(_xlfn.ISFORMULA(tblREGASSJune19[[#This Row],[FUNC]]),\"NO\",\"YES\")))","v":"NO"}]
[{"$f":"CONCATENATE(tblREGASSJune19[[#This Row],[Primary Account]],tblREGASSJune19[[#This Row],[Primary Name]],tblREGASSJune19[[#This Row],[Secondary Acct]],tblREGASSJune19[[#This Row],[Secondary  Name]],tblREGASSJune19[[#This Row],[Alloc4FUNC]])","v":"1823990OTHR REG ASSET-N CST188000REG ASSET - ENVIRONMENTAL COSTSSG"},1823990,"OTHR REG ASSET-N CST",188000,"REG ASSET - ENVIRONMENTAL COSTS","SG",0,{"$f":"IF(OR(tblREGASSJune19[[#This Row],[Alloc]]=\"IDU\",tblREGASSJune19[[#This Row],[Alloc]]=\"OR\",tblREGASSJune19[[#This Row],[Alloc]]=\"UT\",tblREGASSJune19[[#This Row],[Alloc]]=\"WYU\",tblREGASSJune19[[#This Row],[Alloc]]=\"WYP\",tblREGASSJune19[[#This Row],[Alloc]]=\"CA\",tblREGASSJune19[[#This Row],[Alloc]]=\"WA\"),\"SITUS\",tblREGASSJune19[[#This Row],[Alloc]])","v":"SG"},{"$f":"INDEX(tblREGASSLookup[FUNC],MATCH(tblREGASSJune19[[#This Row],[Concat]],tblREGASSLookup[Concat],0))","v":{"$error":"#N/A"}},{"$f":"IF(tblREGASSJune19[[#This Row],[Total ($000)]]=0,\"NO\",IF(ISNA(tblREGASSJune19[[#This Row],[FUNC]]),\"YES\",IF(_xlfn.ISFORMULA(tblREGASSJune19[[#This Row],[FUNC]]),\"NO\",\"YES\")))","v":"NO"}]
[{"$f":"CONCATENATE(tblREGASSJune19[[#This Row],[Primary Account]],tblREGASSJune19[[#This Row],[Primary Name]],tblREGASSJune19[[#This Row],[Secondary Acct]],tblREGASSJune19[[#This Row],[Secondary  Name]],tblREGASSJune19[[#This Row],[Alloc4FUNC]])","v":"1823990OTHR REG ASSET-N CST189500Reg Asset - CA ECAC CY2019OTHER"},1823990,"OTHR REG ASSET-N CST",189500,"Reg Asset - CA ECAC CY2019","OTHER",379.54921307692302,{"$f":"IF(OR(tblREGASSJune19[[#This Row],[Alloc]]=\"IDU\",tblREGASSJune19[[#This Row],[Alloc]]=\"OR\",tblREGASSJune19[[#This Row],[Alloc]]=\"UT\",tblREGASSJune19[[#This Row],[Alloc]]=\"WYU\",tblREGASSJune19[[#This Row],[Alloc]]=\"WYP\",tblREGASSJune19[[#This Row],[Alloc]]=\"CA\",tblREGASSJune19[[#This Row],[Alloc]]=\"WA\"),\"SITUS\",tblREGASSJune19[[#This Row],[Alloc]])","v":"OTHER"},{"$f":"INDEX(tblREGASSLookup[FUNC],MATCH(tblREGASSJune19[[#This Row],[Concat]],tblREGASSLookup[Concat],0))","v":"P"},{"$f":"IF(tblREGASSJune19[[#This Row],[Total ($000)]]=0,\"NO\",IF(ISNA(tblREGASSJune19[[#This Row],[FUNC]]),\"YES\",IF(_xlfn.ISFORMULA(tblREGASSJune19[[#This Row],[FUNC]]),\"NO\",\"YES\")))","v":"NO"}]
[{"$f":"CONCATENATE(tblREGASSJune19[[#This Row],[Primary Account]],tblREGASSJune19[[#This Row],[Primary Name]],tblREGASSJune19[[#This Row],[Secondary Acct]],tblREGASSJune19[[#This Row],[Secondary  Name]],tblREGASSJune19[[#This Row],[Alloc4FUNC]])","v":"1823990OTHR REG ASSET-N CST189501Contra Reg Asset - CA ECAC CY2019OTHER"},1823990,"OTHR REG ASSET-N CST",189501,"Contra Reg Asset - CA ECAC CY2019","OTHER",-18.8524392307692,{"$f":"IF(OR(tblREGASSJune19[[#This Row],[Alloc]]=\"IDU\",tblREGASSJune19[[#This Row],[Alloc]]=\"OR\",tblREGASSJune19[[#This Row],[Alloc]]=\"UT\",tblREGASSJune19[[#This Row],[Alloc]]=\"WYU\",tblREGASSJune19[[#This Row],[Alloc]]=\"WYP\",tblREGASSJune19[[#This Row],[Alloc]]=\"CA\",tblREGASSJune19[[#This Row],[Alloc]]=\"WA\"),\"SITUS\",tblREGASSJune19[[#This Row],[Alloc]])","v":"OTHER"},{"$f":"INDEX(tblREGASSLookup[FUNC],MATCH(tblREGASSJune19[[#This Row],[Concat]],tblREGASSLookup[Concat],0))","v":"P"},{"$f":"IF(tblREGASSJune19[[#This Row],[Total ($000)]]=0,\"NO\",IF(ISNA(tblREGASSJune19[[#This Row],[FUNC]]),\"YES\",IF(_xlfn.ISFORMULA(tblREGASSJune19[[#This Row],[FUNC]]),\"NO\",\"YES\")))","v":"NO"}]
[{"$f":"CONCATENATE(tblREGASSJune19[[#This Row],[Primary Account]],tblREGASSJune19[[#This Row],[Primary Name]],tblREGASSJune19[[#This Row],[Secondary Acct]],tblREGASSJune19[[#This Row],[Secondary  Name]],tblREGASSJune19[[#This Row],[Alloc4FUNC]])","v":"1823990OTHR REG ASSET-N CST189502Reg Asset - CA ECAC CY2020OTHER"},1823990,"OTHR REG ASSET-N CST",189502,"Reg Asset - CA ECAC CY2020","OTHER",14.7404853846154,{"$f":"IF(OR(tblREGASSJune19[[#This Row],[Alloc]]=\"IDU\",tblREGASSJune19[[#This Row],[Alloc]]=\"OR\",tblREGASSJune19[[#This Row],[Alloc]]=\"UT\",tblREGASSJune19[[#This Row],[Alloc]]=\"WYU\",tblREGASSJune19[[#This Row],[Alloc]]=\"WYP\",tblREGASSJune19[[#This Row],[Alloc]]=\"CA\",tblREGASSJune19[[#This Row],[Alloc]]=\"WA\"),\"SITUS\",tblREGASSJune19[[#This Row],[Alloc]])","v":"OTHER"},{"$f":"INDEX(tblREGASSLookup[FUNC],MATCH(tblREGASSJune19[[#This Row],[Concat]],tblREGASSLookup[Concat],0))","v":"P"},{"$f":"IF(tblREGASSJune19[[#This Row],[Total ($000)]]=0,\"NO\",IF(ISNA(tblREGASSJune19[[#This Row],[FUNC]]),\"YES\",IF(_xlfn.ISFORMULA(tblREGASSJune19[[#This Row],[FUNC]]),\"NO\",\"YES\")))","v":"NO"}]
[{"$f":"CONCATENATE(tblREGASSJune19[[#This Row],[Primary Account]],tblREGASSJune19[[#This Row],[Primary Name]],tblREGASSJune19[[#This Row],[Secondary Acct]],tblREGASSJune19[[#This Row],[Secondary  Name]],tblREGASSJune19[[#This Row],[Alloc4FUNC]])","v":"1823990OTHR REG ASSET-N CST189503Contra Reg Asset - CA ECAC CY2020OTHER"},1823990,"OTHR REG ASSET-N CST",189503,"Contra Reg Asset - CA ECAC CY2020","OTHER",-0.73702461538461495,{"$f":"IF(OR(tblREGASSJune19[[#This Row],[Alloc]]=\"IDU\",tblREGASSJune19[[#This Row],[Alloc]]=\"OR\",tblREGASSJune19[[#This Row],[Alloc]]=\"UT\",tblREGASSJune19[[#This Row],[Alloc]]=\"WYU\",tblREGASSJune19[[#This Row],[Alloc]]=\"WYP\",tblREGASSJune19[[#This Row],[Alloc]]=\"CA\",tblREGASSJune19[[#This Row],[Alloc]]=\"WA\"),\"SITUS\",tblREGASSJune19[[#This Row],[Alloc]])","v":"OTHER"},{"$f":"INDEX(tblREGASSLookup[FUNC],MATCH(tblREGASSJune19[[#This Row],[Concat]],tblREGASSLookup[Concat],0))","v":"P"},{"$f":"IF(tblREGASSJune19[[#This Row],[Total ($000)]]=0,\"NO\",IF(ISNA(tblREGASSJune19[[#This Row],[FUNC]]),\"YES\",IF(_xlfn.ISFORMULA(tblREGASSJune19[[#This Row],[FUNC]]),\"NO\",\"YES\")))","v":"NO"}]
[{"$f":"CONCATENATE(tblREGASSJune19[[#This Row],[Primary Account]],tblREGASSJune19[[#This Row],[Primary Name]],tblREGASSJune19[[#This Row],[Secondary Acct]],tblREGASSJune19[[#This Row],[Secondary  Name]],tblREGASSJune19[[#This Row],[Alloc4FUNC]])","v":"1823990OTHR REG ASSET-N CST189504Reg Asset - CA ECAC CY2021OTHER"},1823990,"OTHR REG ASSET-N CST",189504,"Reg Asset - CA ECAC CY2021","OTHER",13.6971169230769,{"$f":"IF(OR(tblREGASSJune19[[#This Row],[Alloc]]=\"IDU\",tblREGASSJune19[[#This Row],[Alloc]]=\"OR\",tblREGASSJune19[[#This Row],[Alloc]]=\"UT\",tblREGASSJune19[[#This Row],[Alloc]]=\"WYU\",tblREGASSJune19[[#This Row],[Alloc]]=\"WYP\",tblREGASSJune19[[#This Row],[Alloc]]=\"CA\",tblREGASSJune19[[#This Row],[Alloc]]=\"WA\"),\"SITUS\",tblREGASSJune19[[#This Row],[Alloc]])","v":"OTHER"},{"$f":"INDEX(tblREGASSLookup[FUNC],MATCH(tblREGASSJune19[[#This Row],[Concat]],tblREGASSLookup[Concat],0))","v":"P"},{"$f":"IF(tblREGASSJune19[[#This Row],[Total ($000)]]=0,\"NO\",IF(ISNA(tblREGASSJune19[[#This Row],[FUNC]]),\"YES\",IF(_xlfn.ISFORMULA(tblREGASSJune19[[#This Row],[FUNC]]),\"NO\",\"YES\")))","v":"NO"}]
[{"$f":"CONCATENATE(tblREGASSJune19[[#This Row],[Primary Account]],tblREGASSJune19[[#This Row],[Primary Name]],tblREGASSJune19[[#This Row],[Secondary Acct]],tblREGASSJune19[[#This Row],[Secondary  Name]],tblREGASSJune19[[#This Row],[Alloc4FUNC]])","v":"1823990OTHR REG ASSET-N CST189505Contra Reg Asset - CA ECAC CY2021OTHER"},1823990,"OTHR REG ASSET-N CST",189505,"Contra Reg Asset - CA ECAC CY2021","OTHER",-0.68485538461538498,{"$f":"IF(OR(tblREGASSJune19[[#This Row],[Alloc]]=\"IDU\",tblREGASSJune19[[#This Row],[Alloc]]=\"OR\",tblREGASSJune19[[#This Row],[Alloc]]=\"UT\",tblREGASSJune19[[#This Row],[Alloc]]=\"WYU\",tblREGASSJune19[[#This Row],[Alloc]]=\"WYP\",tblREGASSJune19[[#This Row],[Alloc]]=\"CA\",tblREGASSJune19[[#This Row],[Alloc]]=\"WA\"),\"SITUS\",tblREGASSJune19[[#This Row],[Alloc]])","v":"OTHER"},{"$f":"INDEX(tblREGASSLookup[FUNC],MATCH(tblREGASSJune19[[#This Row],[Concat]],tblREGASSLookup[Concat],0))","v":"P"},{"$f":"IF(tblREGASSJune19[[#This Row],[Total ($000)]]=0,\"NO\",IF(ISNA(tblREGASSJune19[[#This Row],[FUNC]]),\"YES\",IF(_xlfn.ISFORMULA(tblREGASSJune19[[#This Row],[FUNC]]),\"NO\",\"YES\")))","v":"NO"}]
[{"$f":"CONCATENATE(tblREGASSJune19[[#This Row],[Primary Account]],tblREGASSJune19[[#This Row],[Primary Name]],tblREGASSJune19[[#This Row],[Secondary Acct]],tblREGASSJune19[[#This Row],[Secondary  Name]],tblREGASSJune19[[#This Row],[Alloc4FUNC]])","v":"1823990OTHR REG ASSET-N CST189528RegA - CA Def Exc NPC - Recl to CurrOTHER"},1823990,"OTHR REG ASSET-N CST",189528,"RegA - CA Def Exc NPC - Recl to Curr","OTHER",-2126.95768692308,{"$f":"IF(OR(tblREGASSJune19[[#This Row],[Alloc]]=\"IDU\",tblREGASSJune19[[#This Row],[Alloc]]=\"OR\",tblREGASSJune19[[#This Row],[Alloc]]=\"UT\",tblREGASSJune19[[#This Row],[Alloc]]=\"WYU\",tblREGASSJune19[[#This Row],[Alloc]]=\"WYP\",tblREGASSJune19[[#This Row],[Alloc]]=\"CA\",tblREGASSJune19[[#This Row],[Alloc]]=\"WA\"),\"SITUS\",tblREGASSJune19[[#This Row],[Alloc]])","v":"OTHER"},{"$f":"INDEX(tblREGASSLookup[FUNC],MATCH(tblREGASSJune19[[#This Row],[Concat]],tblREGASSLookup[Concat],0))","v":"P"},{"$f":"IF(tblREGASSJune19[[#This Row],[Total ($000)]]=0,\"NO\",IF(ISNA(tblREGASSJune19[[#This Row],[FUNC]]),\"YES\",IF(_xlfn.ISFORMULA(tblREGASSJune19[[#This Row],[FUNC]]),\"NO\",\"YES\")))","v":"NO"}]
[{"$f":"CONCATENATE(tblREGASSJune19[[#This Row],[Primary Account]],tblREGASSJune19[[#This Row],[Primary Name]],tblREGASSJune19[[#This Row],[Secondary Acct]],tblREGASSJune19[[#This Row],[Secondary  Name]],tblREGASSJune19[[#This Row],[Alloc4FUNC]])","v":"1823990OTHR REG ASSET-N CST189530Reg Asset  - ID ECAM Dec14-Nov15OTHER"},1823990,"OTHR REG ASSET-N CST",189530,"Reg Asset  - ID ECAM Dec14-Nov15","OTHER",0,{"$f":"IF(OR(tblREGASSJune19[[#This Row],[Alloc]]=\"IDU\",tblREGASSJune19[[#This Row],[Alloc]]=\"OR\",tblREGASSJune19[[#This Row],[Alloc]]=\"UT\",tblREGASSJune19[[#This Row],[Alloc]]=\"WYU\",tblREGASSJune19[[#This Row],[Alloc]]=\"WYP\",tblREGASSJune19[[#This Row],[Alloc]]=\"CA\",tblREGASSJune19[[#This Row],[Alloc]]=\"WA\"),\"SITUS\",tblREGASSJune19[[#This Row],[Alloc]])","v":"OTHER"},{"$f":"INDEX(tblREGASSLookup[FUNC],MATCH(tblREGASSJune19[[#This Row],[Concat]],tblREGASSLookup[Concat],0))","v":"P"},{"$f":"IF(tblREGASSJune19[[#This Row],[Total ($000)]]=0,\"NO\",IF(ISNA(tblREGASSJune19[[#This Row],[FUNC]]),\"YES\",IF(_xlfn.ISFORMULA(tblREGASSJune19[[#This Row],[FUNC]]),\"NO\",\"YES\")))","v":"NO"}]
[{"$f":"CONCATENATE(tblREGASSJune19[[#This Row],[Primary Account]],tblREGASSJune19[[#This Row],[Primary Name]],tblREGASSJune19[[#This Row],[Secondary Acct]],tblREGASSJune19[[#This Row],[Secondary  Name]],tblREGASSJune19[[#This Row],[Alloc4FUNC]])","v":"1823990OTHR REG ASSET-N CST189531Reg Asset  - ID ECAM Dec15-Dec16OTHER"},1823990,"OTHR REG ASSET-N CST",189531,"Reg Asset  - ID ECAM Dec15-Dec16","OTHER",0,{"$f":"IF(OR(tblREGASSJune19[[#This Row],[Alloc]]=\"IDU\",tblREGASSJune19[[#This Row],[Alloc]]=\"OR\",tblREGASSJune19[[#This Row],[Alloc]]=\"UT\",tblREGASSJune19[[#This Row],[Alloc]]=\"WYU\",tblREGASSJune19[[#This Row],[Alloc]]=\"WYP\",tblREGASSJune19[[#This Row],[Alloc]]=\"CA\",tblREGASSJune19[[#This Row],[Alloc]]=\"WA\"),\"SITUS\",tblREGASSJune19[[#This Row],[Alloc]])","v":"OTHER"},{"$f":"INDEX(tblREGASSLookup[FUNC],MATCH(tblREGASSJune19[[#This Row],[Concat]],tblREGASSLookup[Concat],0))","v":"P"},{"$f":"IF(tblREGASSJune19[[#This Row],[Total ($000)]]=0,\"NO\",IF(ISNA(tblREGASSJune19[[#This Row],[FUNC]]),\"YES\",IF(_xlfn.ISFORMULA(tblREGASSJune19[[#This Row],[FUNC]]),\"NO\",\"YES\")))","v":"NO"}]
[{"$f":"CONCATENATE(tblREGASSJune19[[#This Row],[Primary Account]],tblREGASSJune19[[#This Row],[Primary Name]],tblREGASSJune19[[#This Row],[Secondary Acct]],tblREGASSJune19[[#This Row],[Secondary  Name]],tblREGASSJune19[[#This Row],[Alloc4FUNC]])","v":"1823990OTHR REG ASSET-N CST189532Reg Asset  - ID ECAM CY 2017OTHER"},1823990,"OTHR REG ASSET-N CST",189532,"Reg Asset  - ID ECAM CY 2017","OTHER",2555.7826130769199,{"$f":"IF(OR(tblREGASSJune19[[#This Row],[Alloc]]=\"IDU\",tblREGASSJune19[[#This Row],[Alloc]]=\"OR\",tblREGASSJune19[[#This Row],[Alloc]]=\"UT\",tblREGASSJune19[[#This Row],[Alloc]]=\"WYU\",tblREGASSJune19[[#This Row],[Alloc]]=\"WYP\",tblREGASSJune19[[#This Row],[Alloc]]=\"CA\",tblREGASSJune19[[#This Row],[Alloc]]=\"WA\"),\"SITUS\",tblREGASSJune19[[#This Row],[Alloc]])","v":"OTHER"},{"$f":"INDEX(tblREGASSLookup[FUNC],MATCH(tblREGASSJune19[[#This Row],[Concat]],tblREGASSLookup[Concat],0))","v":"P"},{"$f":"IF(tblREGASSJune19[[#This Row],[Total ($000)]]=0,\"NO\",IF(ISNA(tblREGASSJune19[[#This Row],[FUNC]]),\"YES\",IF(_xlfn.ISFORMULA(tblREGASSJune19[[#This Row],[FUNC]]),\"NO\",\"YES\")))","v":"NO"}]
[{"$f":"CONCATENATE(tblREGASSJune19[[#This Row],[Primary Account]],tblREGASSJune19[[#This Row],[Primary Name]],tblREGASSJune19[[#This Row],[Secondary Acct]],tblREGASSJune19[[#This Row],[Secondary  Name]],tblREGASSJune19[[#This Row],[Alloc4FUNC]])","v":"1823990OTHR REG ASSET-N CST189533Reg Asset  - ID ECAM CY 2018OTHER"},1823990,"OTHR REG ASSET-N CST",189533,"Reg Asset  - ID ECAM CY 2018","OTHER",13154.118086923099,{"$f":"IF(OR(tblREGASSJune19[[#This Row],[Alloc]]=\"IDU\",tblREGASSJune19[[#This Row],[Alloc]]=\"OR\",tblREGASSJune19[[#This Row],[Alloc]]=\"UT\",tblREGASSJune19[[#This Row],[Alloc]]=\"WYU\",tblREGASSJune19[[#This Row],[Alloc]]=\"WYP\",tblREGASSJune19[[#This Row],[Alloc]]=\"CA\",tblREGASSJune19[[#This Row],[Alloc]]=\"WA\"),\"SITUS\",tblREGASSJune19[[#This Row],[Alloc]])","v":"OTHER"},{"$f":"INDEX(tblREGASSLookup[FUNC],MATCH(tblREGASSJune19[[#This Row],[Concat]],tblREGASSLookup[Concat],0))","v":"P"},{"$f":"IF(tblREGASSJune19[[#This Row],[Total ($000)]]=0,\"NO\",IF(ISNA(tblREGASSJune19[[#This Row],[FUNC]]),\"YES\",IF(_xlfn.ISFORMULA(tblREGASSJune19[[#This Row],[FUNC]]),\"NO\",\"YES\")))","v":"NO"}]
[{"$f":"CONCATENATE(tblREGASSJune19[[#This Row],[Primary Account]],tblREGASSJune19[[#This Row],[Primary Name]],tblREGASSJune19[[#This Row],[Secondary Acct]],tblREGASSJune19[[#This Row],[Secondary  Name]],tblREGASSJune19[[#This Row],[Alloc4FUNC]])","v":"1823990OTHR REG ASSET-N CST189534Reg Asset-ID ECAM CY 2019OTHER"},1823990,"OTHR REG ASSET-N CST",189534,"Reg Asset-ID ECAM CY 2019","OTHER",3046.1424476923098,{"$f":"IF(OR(tblREGASSJune19[[#This Row],[Alloc]]=\"IDU\",tblREGASSJune19[[#This Row],[Alloc]]=\"OR\",tblREGASSJune19[[#This Row],[Alloc]]=\"UT\",tblREGASSJune19[[#This Row],[Alloc]]=\"WYU\",tblREGASSJune19[[#This Row],[Alloc]]=\"WYP\",tblREGASSJune19[[#This Row],[Alloc]]=\"CA\",tblREGASSJune19[[#This Row],[Alloc]]=\"WA\"),\"SITUS\",tblREGASSJune19[[#This Row],[Alloc]])","v":"OTHER"},{"$f":"INDEX(tblREGASSLookup[FUNC],MATCH(tblREGASSJune19[[#This Row],[Concat]],tblREGASSLookup[Concat],0))","v":"P"},{"$f":"IF(tblREGASSJune19[[#This Row],[Total ($000)]]=0,\"NO\",IF(ISNA(tblREGASSJune19[[#This Row],[FUNC]]),\"YES\",IF(_xlfn.ISFORMULA(tblREGASSJune19[[#This Row],[FUNC]]),\"NO\",\"YES\")))","v":"NO"}]
[{"$f":"CONCATENATE(tblREGASSJune19[[#This Row],[Primary Account]],tblREGASSJune19[[#This Row],[Primary Name]],tblREGASSJune19[[#This Row],[Secondary Acct]],tblREGASSJune19[[#This Row],[Secondary  Name]],tblREGASSJune19[[#This Row],[Alloc4FUNC]])","v":"1823990OTHR REG ASSET-N CST189535Reg Asset-ID ECAM CY 2020OTHER"},1823990,"OTHR REG ASSET-N CST",189535,"Reg Asset-ID ECAM CY 2020","OTHER",92.865049230769202,{"$f":"IF(OR(tblREGASSJune19[[#This Row],[Alloc]]=\"IDU\",tblREGASSJune19[[#This Row],[Alloc]]=\"OR\",tblREGASSJune19[[#This Row],[Alloc]]=\"UT\",tblREGASSJune19[[#This Row],[Alloc]]=\"WYU\",tblREGASSJune19[[#This Row],[Alloc]]=\"WYP\",tblREGASSJune19[[#This Row],[Alloc]]=\"CA\",tblREGASSJune19[[#This Row],[Alloc]]=\"WA\"),\"SITUS\",tblREGASSJune19[[#This Row],[Alloc]])","v":"OTHER"},{"$f":"INDEX(tblREGASSLookup[FUNC],MATCH(tblREGASSJune19[[#This Row],[Concat]],tblREGASSLookup[Concat],0))","v":"P"},{"$f":"IF(tblREGASSJune19[[#This Row],[Total ($000)]]=0,\"NO\",IF(ISNA(tblREGASSJune19[[#This Row],[FUNC]]),\"YES\",IF(_xlfn.ISFORMULA(tblREGASSJune19[[#This Row],[FUNC]]),\"NO\",\"YES\")))","v":"NO"}]
[{"$f":"CONCATENATE(tblREGASSJune19[[#This Row],[Primary Account]],tblREGASSJune19[[#This Row],[Primary Name]],tblREGASSJune19[[#This Row],[Secondary Acct]],tblREGASSJune19[[#This Row],[Secondary  Name]],tblREGASSJune19[[#This Row],[Alloc4FUNC]])","v":"1823990OTHR REG ASSET-N CST189536Reg Asset-ID ECAM CY 2021OTHER"},1823990,"OTHR REG ASSET-N CST",189536,"Reg Asset-ID ECAM CY 2021","OTHER",86.291827692307706,{"$f":"IF(OR(tblREGASSJune19[[#This Row],[Alloc]]=\"IDU\",tblREGASSJune19[[#This Row],[Alloc]]=\"OR\",tblREGASSJune19[[#This Row],[Alloc]]=\"UT\",tblREGASSJune19[[#This Row],[Alloc]]=\"WYU\",tblREGASSJune19[[#This Row],[Alloc]]=\"WYP\",tblREGASSJune19[[#This Row],[Alloc]]=\"CA\",tblREGASSJune19[[#This Row],[Alloc]]=\"WA\"),\"SITUS\",tblREGASSJune19[[#This Row],[Alloc]])","v":"OTHER"},{"$f":"INDEX(tblREGASSLookup[FUNC],MATCH(tblREGASSJune19[[#This Row],[Concat]],tblREGASSLookup[Concat],0))","v":"P"},{"$f":"IF(tblREGASSJune19[[#This Row],[Total ($000)]]=0,\"NO\",IF(ISNA(tblREGASSJune19[[#This Row],[FUNC]]),\"YES\",IF(_xlfn.ISFORMULA(tblREGASSJune19[[#This Row],[FUNC]]),\"NO\",\"YES\")))","v":"NO"}]
[{"$f":"CONCATENATE(tblREGASSJune19[[#This Row],[Primary Account]],tblREGASSJune19[[#This Row],[Primary Name]],tblREGASSJune19[[#This Row],[Secondary Acct]],tblREGASSJune19[[#This Row],[Secondary  Name]],tblREGASSJune19[[#This Row],[Alloc4FUNC]])","v":"1823990OTHR REG ASSET-N CST189540Contra Reg Asset - ID ECAM Dec14-Nov15OTHER"},1823990,"OTHR REG ASSET-N CST",189540,"Contra Reg Asset - ID ECAM Dec14-Nov15","OTHER",0,{"$f":"IF(OR(tblREGASSJune19[[#This Row],[Alloc]]=\"IDU\",tblREGASSJune19[[#This Row],[Alloc]]=\"OR\",tblREGASSJune19[[#This Row],[Alloc]]=\"UT\",tblREGASSJune19[[#This Row],[Alloc]]=\"WYU\",tblREGASSJune19[[#This Row],[Alloc]]=\"WYP\",tblREGASSJune19[[#This Row],[Alloc]]=\"CA\",tblREGASSJune19[[#This Row],[Alloc]]=\"WA\"),\"SITUS\",tblREGASSJune19[[#This Row],[Alloc]])","v":"OTHER"},{"$f":"INDEX(tblREGASSLookup[FUNC],MATCH(tblREGASSJune19[[#This Row],[Concat]],tblREGASSLookup[Concat],0))","v":{"$error":"#N/A"}},{"$f":"IF(tblREGASSJune19[[#This Row],[Total ($000)]]=0,\"NO\",IF(ISNA(tblREGASSJune19[[#This Row],[FUNC]]),\"YES\",IF(_xlfn.ISFORMULA(tblREGASSJune19[[#This Row],[FUNC]]),\"NO\",\"YES\")))","v":"NO"}]
[{"$f":"CONCATENATE(tblREGASSJune19[[#This Row],[Primary Account]],tblREGASSJune19[[#This Row],[Primary Name]],tblREGASSJune19[[#This Row],[Secondary Acct]],tblREGASSJune19[[#This Row],[Secondary  Name]],tblREGASSJune19[[#This Row],[Alloc4FUNC]])","v":"1823990OTHR REG ASSET-N CST189541Contra Reg Asset - ID ECAM Dec15-Dec16OTHER"},1823990,"OTHR REG ASSET-N CST",189541,"Contra Reg Asset - ID ECAM Dec15-Dec16","OTHER",0,{"$f":"IF(OR(tblREGASSJune19[[#This Row],[Alloc]]=\"IDU\",tblREGASSJune19[[#This Row],[Alloc]]=\"OR\",tblREGASSJune19[[#This Row],[Alloc]]=\"UT\",tblREGASSJune19[[#This Row],[Alloc]]=\"WYU\",tblREGASSJune19[[#This Row],[Alloc]]=\"WYP\",tblREGASSJune19[[#This Row],[Alloc]]=\"CA\",tblREGASSJune19[[#This Row],[Alloc]]=\"WA\"),\"SITUS\",tblREGASSJune19[[#This Row],[Alloc]])","v":"OTHER"},{"$f":"INDEX(tblREGASSLookup[FUNC],MATCH(tblREGASSJune19[[#This Row],[Concat]],tblREGASSLookup[Concat],0))","v":"P"},{"$f":"IF(tblREGASSJune19[[#This Row],[Total ($000)]]=0,\"NO\",IF(ISNA(tblREGASSJune19[[#This Row],[FUNC]]),\"YES\",IF(_xlfn.ISFORMULA(tblREGASSJune19[[#This Row],[FUNC]]),\"NO\",\"YES\")))","v":"NO"}]
[{"$f":"CONCATENATE(tblREGASSJune19[[#This Row],[Primary Account]],tblREGASSJune19[[#This Row],[Primary Name]],tblREGASSJune19[[#This Row],[Secondary Acct]],tblREGASSJune19[[#This Row],[Secondary  Name]],tblREGASSJune19[[#This Row],[Alloc4FUNC]])","v":"1823990OTHR REG ASSET-N CST189542Contra Reg Asset - ID ECAM CY 2017OTHER"},1823990,"OTHR REG ASSET-N CST",189542,"Contra Reg Asset - ID ECAM CY 2017","OTHER",0,{"$f":"IF(OR(tblREGASSJune19[[#This Row],[Alloc]]=\"IDU\",tblREGASSJune19[[#This Row],[Alloc]]=\"OR\",tblREGASSJune19[[#This Row],[Alloc]]=\"UT\",tblREGASSJune19[[#This Row],[Alloc]]=\"WYU\",tblREGASSJune19[[#This Row],[Alloc]]=\"WYP\",tblREGASSJune19[[#This Row],[Alloc]]=\"CA\",tblREGASSJune19[[#This Row],[Alloc]]=\"WA\"),\"SITUS\",tblREGASSJune19[[#This Row],[Alloc]])","v":"OTHER"},{"$f":"INDEX(tblREGASSLookup[FUNC],MATCH(tblREGASSJune19[[#This Row],[Concat]],tblREGASSLookup[Concat],0))","v":"P"},{"$f":"IF(tblREGASSJune19[[#This Row],[Total ($000)]]=0,\"NO\",IF(ISNA(tblREGASSJune19[[#This Row],[FUNC]]),\"YES\",IF(_xlfn.ISFORMULA(tblREGASSJune19[[#This Row],[FUNC]]),\"NO\",\"YES\")))","v":"NO"}]
[{"$f":"CONCATENATE(tblREGASSJune19[[#This Row],[Primary Account]],tblREGASSJune19[[#This Row],[Primary Name]],tblREGASSJune19[[#This Row],[Secondary Acct]],tblREGASSJune19[[#This Row],[Secondary  Name]],tblREGASSJune19[[#This Row],[Alloc4FUNC]])","v":"1823990OTHR REG ASSET-N CST189543Contra Reg Asset - ID ECAM CY 2018OTHER"},1823990,"OTHR REG ASSET-N CST",189543,"Contra Reg Asset - ID ECAM CY 2018","OTHER",-375.745106923077,{"$f":"IF(OR(tblREGASSJune19[[#This Row],[Alloc]]=\"IDU\",tblREGASSJune19[[#This Row],[Alloc]]=\"OR\",tblREGASSJune19[[#This Row],[Alloc]]=\"UT\",tblREGASSJune19[[#This Row],[Alloc]]=\"WYU\",tblREGASSJune19[[#This Row],[Alloc]]=\"WYP\",tblREGASSJune19[[#This Row],[Alloc]]=\"CA\",tblREGASSJune19[[#This Row],[Alloc]]=\"WA\"),\"SITUS\",tblREGASSJune19[[#This Row],[Alloc]])","v":"OTHER"},{"$f":"INDEX(tblREGASSLookup[FUNC],MATCH(tblREGASSJune19[[#This Row],[Concat]],tblREGASSLookup[Concat],0))","v":"P"},{"$f":"IF(tblREGASSJune19[[#This Row],[Total ($000)]]=0,\"NO\",IF(ISNA(tblREGASSJune19[[#This Row],[FUNC]]),\"YES\",IF(_xlfn.ISFORMULA(tblREGASSJune19[[#This Row],[FUNC]]),\"NO\",\"YES\")))","v":"NO"}]
[{"$f":"CONCATENATE(tblREGASSJune19[[#This Row],[Primary Account]],tblREGASSJune19[[#This Row],[Primary Name]],tblREGASSJune19[[#This Row],[Secondary Acct]],tblREGASSJune19[[#This Row],[Secondary  Name]],tblREGASSJune19[[#This Row],[Alloc4FUNC]])","v":"1823990OTHR REG ASSET-N CST189544Contra Reg Asset - ID ECAM CY 2019OTHER"},1823990,"OTHR REG ASSET-N CST",189544,"Contra Reg Asset - ID ECAM CY 2019","OTHER",-124.66482153846199,{"$f":"IF(OR(tblREGASSJune19[[#This Row],[Alloc]]=\"IDU\",tblREGASSJune19[[#This Row],[Alloc]]=\"OR\",tblREGASSJune19[[#This Row],[Alloc]]=\"UT\",tblREGASSJune19[[#This Row],[Alloc]]=\"WYU\",tblREGASSJune19[[#This Row],[Alloc]]=\"WYP\",tblREGASSJune19[[#This Row],[Alloc]]=\"CA\",tblREGASSJune19[[#This Row],[Alloc]]=\"WA\"),\"SITUS\",tblREGASSJune19[[#This Row],[Alloc]])","v":"OTHER"},{"$f":"INDEX(tblREGASSLookup[FUNC],MATCH(tblREGASSJune19[[#This Row],[Concat]],tblREGASSLookup[Concat],0))","v":"P"},{"$f":"IF(tblREGASSJune19[[#This Row],[Total ($000)]]=0,\"NO\",IF(ISNA(tblREGASSJune19[[#This Row],[FUNC]]),\"YES\",IF(_xlfn.ISFORMULA(tblREGASSJune19[[#This Row],[FUNC]]),\"NO\",\"YES\")))","v":"NO"}]
[{"$f":"CONCATENATE(tblREGASSJune19[[#This Row],[Primary Account]],tblREGASSJune19[[#This Row],[Primary Name]],tblREGASSJune19[[#This Row],[Secondary Acct]],tblREGASSJune19[[#This Row],[Secondary  Name]],tblREGASSJune19[[#This Row],[Alloc4FUNC]])","v":"1823990OTHR REG ASSET-N CST189545Contra Reg Asset - ID ECAM CY 2020OTHER"},1823990,"OTHR REG ASSET-N CST",189545,"Contra Reg Asset - ID ECAM CY 2020","OTHER",-4.64325307692308,{"$f":"IF(OR(tblREGASSJune19[[#This Row],[Alloc]]=\"IDU\",tblREGASSJune19[[#This Row],[Alloc]]=\"OR\",tblREGASSJune19[[#This Row],[Alloc]]=\"UT\",tblREGASSJune19[[#This Row],[Alloc]]=\"WYU\",tblREGASSJune19[[#This Row],[Alloc]]=\"WYP\",tblREGASSJune19[[#This Row],[Alloc]]=\"CA\",tblREGASSJune19[[#This Row],[Alloc]]=\"WA\"),\"SITUS\",tblREGASSJune19[[#This Row],[Alloc]])","v":"OTHER"},{"$f":"INDEX(tblREGASSLookup[FUNC],MATCH(tblREGASSJune19[[#This Row],[Concat]],tblREGASSLookup[Concat],0))","v":"P"},{"$f":"IF(tblREGASSJune19[[#This Row],[Total ($000)]]=0,\"NO\",IF(ISNA(tblREGASSJune19[[#This Row],[FUNC]]),\"YES\",IF(_xlfn.ISFORMULA(tblREGASSJune19[[#This Row],[FUNC]]),\"NO\",\"YES\")))","v":"NO"}]
[{"$f":"CONCATENATE(tblREGASSJune19[[#This Row],[Primary Account]],tblREGASSJune19[[#This Row],[Primary Name]],tblREGASSJune19[[#This Row],[Secondary Acct]],tblREGASSJune19[[#This Row],[Secondary  Name]],tblREGASSJune19[[#This Row],[Alloc4FUNC]])","v":"1823990OTHR REG ASSET-N CST189546Contra Reg Asset - ID ECAM CY 2021OTHER"},1823990,"OTHR REG ASSET-N CST",189546,"Contra Reg Asset - ID ECAM CY 2021","OTHER",-4.3145907692307697,{"$f":"IF(OR(tblREGASSJune19[[#This Row],[Alloc]]=\"IDU\",tblREGASSJune19[[#This Row],[Alloc]]=\"OR\",tblREGASSJune19[[#This Row],[Alloc]]=\"UT\",tblREGASSJune19[[#This Row],[Alloc]]=\"WYU\",tblREGASSJune19[[#This Row],[Alloc]]=\"WYP\",tblREGASSJune19[[#This Row],[Alloc]]=\"CA\",tblREGASSJune19[[#This Row],[Alloc]]=\"WA\"),\"SITUS\",tblREGASSJune19[[#This Row],[Alloc]])","v":"OTHER"},{"$f":"INDEX(tblREGASSLookup[FUNC],MATCH(tblREGASSJune19[[#This Row],[Concat]],tblREGASSLookup[Concat],0))","v":"P"},{"$f":"IF(tblREGASSJune19[[#This Row],[Total ($000)]]=0,\"NO\",IF(ISNA(tblREGASSJune19[[#This Row],[FUNC]]),\"YES\",IF(_xlfn.ISFORMULA(tblREGASSJune19[[#This Row],[FUNC]]),\"NO\",\"YES\")))","v":"NO"}]
[{"$f":"CONCATENATE(tblREGASSJune19[[#This Row],[Primary Account]],tblREGASSJune19[[#This Row],[Primary Name]],tblREGASSJune19[[#This Row],[Secondary Acct]],tblREGASSJune19[[#This Row],[Secondary  Name]],tblREGASSJune19[[#This Row],[Alloc4FUNC]])","v":"1823990OTHR REG ASSET-N CST189568RegA - ID Def Exc NPC - Recl to CurrOTHER"},1823990,"OTHR REG ASSET-N CST",189568,"RegA - ID Def Exc NPC - Recl to Curr","OTHER",-10148.068099230801,{"$f":"IF(OR(tblREGASSJune19[[#This Row],[Alloc]]=\"IDU\",tblREGASSJune19[[#This Row],[Alloc]]=\"OR\",tblREGASSJune19[[#This Row],[Alloc]]=\"UT\",tblREGASSJune19[[#This Row],[Alloc]]=\"WYU\",tblREGASSJune19[[#This Row],[Alloc]]=\"WYP\",tblREGASSJune19[[#This Row],[Alloc]]=\"CA\",tblREGASSJune19[[#This Row],[Alloc]]=\"WA\"),\"SITUS\",tblREGASSJune19[[#This Row],[Alloc]])","v":"OTHER"},{"$f":"INDEX(tblREGASSLookup[FUNC],MATCH(tblREGASSJune19[[#This Row],[Concat]],tblREGASSLookup[Concat],0))","v":"P"},{"$f":"IF(tblREGASSJune19[[#This Row],[Total ($000)]]=0,\"NO\",IF(ISNA(tblREGASSJune19[[#This Row],[FUNC]]),\"YES\",IF(_xlfn.ISFORMULA(tblREGASSJune19[[#This Row],[FUNC]]),\"NO\",\"YES\")))","v":"NO"}]
[{"$f":"CONCATENATE(tblREGASSJune19[[#This Row],[Primary Account]],tblREGASSJune19[[#This Row],[Primary Name]],tblREGASSJune19[[#This Row],[Secondary Acct]],tblREGASSJune19[[#This Row],[Secondary  Name]],tblREGASSJune19[[#This Row],[Alloc4FUNC]])","v":"1823990OTHR REG ASSET-N CST189570Reg Asset - OR TAM CY2020OTHER"},1823990,"OTHR REG ASSET-N CST",189570,"Reg Asset - OR TAM CY2020","OTHER",356.55815615384603,{"$f":"IF(OR(tblREGASSJune19[[#This Row],[Alloc]]=\"IDU\",tblREGASSJune19[[#This Row],[Alloc]]=\"OR\",tblREGASSJune19[[#This Row],[Alloc]]=\"UT\",tblREGASSJune19[[#This Row],[Alloc]]=\"WYU\",tblREGASSJune19[[#This Row],[Alloc]]=\"WYP\",tblREGASSJune19[[#This Row],[Alloc]]=\"CA\",tblREGASSJune19[[#This Row],[Alloc]]=\"WA\"),\"SITUS\",tblREGASSJune19[[#This Row],[Alloc]])","v":"OTHER"},{"$f":"INDEX(tblREGASSLookup[FUNC],MATCH(tblREGASSJune19[[#This Row],[Concat]],tblREGASSLookup[Concat],0))","v":"P"},{"$f":"IF(tblREGASSJune19[[#This Row],[Total ($000)]]=0,\"NO\",IF(ISNA(tblREGASSJune19[[#This Row],[FUNC]]),\"YES\",IF(_xlfn.ISFORMULA(tblREGASSJune19[[#This Row],[FUNC]]),\"NO\",\"YES\")))","v":"NO"}]
[{"$f":"CONCATENATE(tblREGASSJune19[[#This Row],[Primary Account]],tblREGASSJune19[[#This Row],[Primary Name]],tblREGASSJune19[[#This Row],[Secondary Acct]],tblREGASSJune19[[#This Row],[Secondary  Name]],tblREGASSJune19[[#This Row],[Alloc4FUNC]])","v":"1823990OTHR REG ASSET-N CST189571Reg Asset - OR TAM CY2021OTHER"},1823990,"OTHR REG ASSET-N CST",189571,"Reg Asset - OR TAM CY2021","OTHER",451.29,{"$f":"IF(OR(tblREGASSJune19[[#This Row],[Alloc]]=\"IDU\",tblREGASSJune19[[#This Row],[Alloc]]=\"OR\",tblREGASSJune19[[#This Row],[Alloc]]=\"UT\",tblREGASSJune19[[#This Row],[Alloc]]=\"WYU\",tblREGASSJune19[[#This Row],[Alloc]]=\"WYP\",tblREGASSJune19[[#This Row],[Alloc]]=\"CA\",tblREGASSJune19[[#This Row],[Alloc]]=\"WA\"),\"SITUS\",tblREGASSJune19[[#This Row],[Alloc]])","v":"OTHER"},{"$f":"INDEX(tblREGASSLookup[FUNC],MATCH(tblREGASSJune19[[#This Row],[Concat]],tblREGASSLookup[Concat],0))","v":"P"},{"$f":"IF(tblREGASSJune19[[#This Row],[Total ($000)]]=0,\"NO\",IF(ISNA(tblREGASSJune19[[#This Row],[FUNC]]),\"YES\",IF(_xlfn.ISFORMULA(tblREGASSJune19[[#This Row],[FUNC]]),\"NO\",\"YES\")))","v":"NO"}]
[{"$f":"CONCATENATE(tblREGASSJune19[[#This Row],[Primary Account]],tblREGASSJune19[[#This Row],[Primary Name]],tblREGASSJune19[[#This Row],[Secondary Acct]],tblREGASSJune19[[#This Row],[Secondary  Name]],tblREGASSJune19[[#This Row],[Alloc4FUNC]])","v":"1823990OTHR REG ASSET-N CST189580Contra Reg Asset - OR TAM CY2020OTHER"},1823990,"OTHR REG ASSET-N CST",189580,"Contra Reg Asset - OR TAM CY2020","OTHER",-17.827907692307701,{"$f":"IF(OR(tblREGASSJune19[[#This Row],[Alloc]]=\"IDU\",tblREGASSJune19[[#This Row],[Alloc]]=\"OR\",tblREGASSJune19[[#This Row],[Alloc]]=\"UT\",tblREGASSJune19[[#This Row],[Alloc]]=\"WYU\",tblREGASSJune19[[#This Row],[Alloc]]=\"WYP\",tblREGASSJune19[[#This Row],[Alloc]]=\"CA\",tblREGASSJune19[[#This Row],[Alloc]]=\"WA\"),\"SITUS\",tblREGASSJune19[[#This Row],[Alloc]])","v":"OTHER"},{"$f":"INDEX(tblREGASSLookup[FUNC],MATCH(tblREGASSJune19[[#This Row],[Concat]],tblREGASSLookup[Concat],0))","v":"P"},{"$f":"IF(tblREGASSJune19[[#This Row],[Total ($000)]]=0,\"NO\",IF(ISNA(tblREGASSJune19[[#This Row],[FUNC]]),\"YES\",IF(_xlfn.ISFORMULA(tblREGASSJune19[[#This Row],[FUNC]]),\"NO\",\"YES\")))","v":"NO"}]
[{"$f":"CONCATENATE(tblREGASSJune19[[#This Row],[Primary Account]],tblREGASSJune19[[#This Row],[Primary Name]],tblREGASSJune19[[#This Row],[Secondary Acct]],tblREGASSJune19[[#This Row],[Secondary  Name]],tblREGASSJune19[[#This Row],[Alloc4FUNC]])","v":"1823990OTHR REG ASSET-N CST189581Contra Reg Asset - OR TAM CY2021OTHER"},1823990,"OTHR REG ASSET-N CST",189581,"Contra Reg Asset - OR TAM CY2021","OTHER",-22.564499999999999,{"$f":"IF(OR(tblREGASSJune19[[#This Row],[Alloc]]=\"IDU\",tblREGASSJune19[[#This Row],[Alloc]]=\"OR\",tblREGASSJune19[[#This Row],[Alloc]]=\"UT\",tblREGASSJune19[[#This Row],[Alloc]]=\"WYU\",tblREGASSJune19[[#This Row],[Alloc]]=\"WYP\",tblREGASSJune19[[#This Row],[Alloc]]=\"CA\",tblREGASSJune19[[#This Row],[Alloc]]=\"WA\"),\"SITUS\",tblREGASSJune19[[#This Row],[Alloc]])","v":"OTHER"},{"$f":"INDEX(tblREGASSLookup[FUNC],MATCH(tblREGASSJune19[[#This Row],[Concat]],tblREGASSLookup[Concat],0))","v":"P"},{"$f":"IF(tblREGASSJune19[[#This Row],[Total ($000)]]=0,\"NO\",IF(ISNA(tblREGASSJune19[[#This Row],[FUNC]]),\"YES\",IF(_xlfn.ISFORMULA(tblREGASSJune19[[#This Row],[FUNC]]),\"NO\",\"YES\")))","v":"NO"}]
[{"$f":"CONCATENATE(tblREGASSJune19[[#This Row],[Primary Account]],tblREGASSJune19[[#This Row],[Primary Name]],tblREGASSJune19[[#This Row],[Secondary Acct]],tblREGASSJune19[[#This Row],[Secondary  Name]],tblREGASSJune19[[#This Row],[Alloc4FUNC]])","v":"1823990OTHR REG ASSET-N CST189608Reg Asset - UT EBA CY2018OTHER"},1823990,"OTHR REG ASSET-N CST",189608,"Reg Asset - UT EBA CY2018","OTHER",24727.8759584615,{"$f":"IF(OR(tblREGASSJune19[[#This Row],[Alloc]]=\"IDU\",tblREGASSJune19[[#This Row],[Alloc]]=\"OR\",tblREGASSJune19[[#This Row],[Alloc]]=\"UT\",tblREGASSJune19[[#This Row],[Alloc]]=\"WYU\",tblREGASSJune19[[#This Row],[Alloc]]=\"WYP\",tblREGASSJune19[[#This Row],[Alloc]]=\"CA\",tblREGASSJune19[[#This Row],[Alloc]]=\"WA\"),\"SITUS\",tblREGASSJune19[[#This Row],[Alloc]])","v":"OTHER"},{"$f":"INDEX(tblREGASSLookup[FUNC],MATCH(tblREGASSJune19[[#This Row],[Concat]],tblREGASSLookup[Concat],0))","v":"P"},{"$f":"IF(tblREGASSJune19[[#This Row],[Total ($000)]]=0,\"NO\",IF(ISNA(tblREGASSJune19[[#This Row],[FUNC]]),\"YES\",IF(_xlfn.ISFORMULA(tblREGASSJune19[[#This Row],[FUNC]]),\"NO\",\"YES\")))","v":"NO"}]
[{"$f":"CONCATENATE(tblREGASSJune19[[#This Row],[Primary Account]],tblREGASSJune19[[#This Row],[Primary Name]],tblREGASSJune19[[#This Row],[Secondary Acct]],tblREGASSJune19[[#This Row],[Secondary  Name]],tblREGASSJune19[[#This Row],[Alloc4FUNC]])","v":"1823990OTHR REG ASSET-N CST189609Reg Asset - UT EBA CY2019OTHER"},1823990,"OTHR REG ASSET-N CST",189609,"Reg Asset - UT EBA CY2019","OTHER",7764.26373846154,{"$f":"IF(OR(tblREGASSJune19[[#This Row],[Alloc]]=\"IDU\",tblREGASSJune19[[#This Row],[Alloc]]=\"OR\",tblREGASSJune19[[#This Row],[Alloc]]=\"UT\",tblREGASSJune19[[#This Row],[Alloc]]=\"WYU\",tblREGASSJune19[[#This Row],[Alloc]]=\"WYP\",tblREGASSJune19[[#This Row],[Alloc]]=\"CA\",tblREGASSJune19[[#This Row],[Alloc]]=\"WA\"),\"SITUS\",tblREGASSJune19[[#This Row],[Alloc]])","v":"OTHER"},{"$f":"INDEX(tblREGASSLookup[FUNC],MATCH(tblREGASSJune19[[#This Row],[Concat]],tblREGASSLookup[Concat],0))","v":"P"},{"$f":"IF(tblREGASSJune19[[#This Row],[Total ($000)]]=0,\"NO\",IF(ISNA(tblREGASSJune19[[#This Row],[FUNC]]),\"YES\",IF(_xlfn.ISFORMULA(tblREGASSJune19[[#This Row],[FUNC]]),\"NO\",\"YES\")))","v":"NO"}]
[{"$f":"CONCATENATE(tblREGASSJune19[[#This Row],[Primary Account]],tblREGASSJune19[[#This Row],[Primary Name]],tblREGASSJune19[[#This Row],[Secondary Acct]],tblREGASSJune19[[#This Row],[Secondary  Name]],tblREGASSJune19[[#This Row],[Alloc4FUNC]])","v":"1823990OTHR REG ASSET-N CST189610Reg Asset - UT EBA CY2020OTHER"},1823990,"OTHR REG ASSET-N CST",189610,"Reg Asset - UT EBA CY2020","OTHER",648.58129923076899,{"$f":"IF(OR(tblREGASSJune19[[#This Row],[Alloc]]=\"IDU\",tblREGASSJune19[[#This Row],[Alloc]]=\"OR\",tblREGASSJune19[[#This Row],[Alloc]]=\"UT\",tblREGASSJune19[[#This Row],[Alloc]]=\"WYU\",tblREGASSJune19[[#This Row],[Alloc]]=\"WYP\",tblREGASSJune19[[#This Row],[Alloc]]=\"CA\",tblREGASSJune19[[#This Row],[Alloc]]=\"WA\"),\"SITUS\",tblREGASSJune19[[#This Row],[Alloc]])","v":"OTHER"},{"$f":"INDEX(tblREGASSLookup[FUNC],MATCH(tblREGASSJune19[[#This Row],[Concat]],tblREGASSLookup[Concat],0))","v":"P"},{"$f":"IF(tblREGASSJune19[[#This Row],[Total ($000)]]=0,\"NO\",IF(ISNA(tblREGASSJune19[[#This Row],[FUNC]]),\"YES\",IF(_xlfn.ISFORMULA(tblREGASSJune19[[#This Row],[FUNC]]),\"NO\",\"YES\")))","v":"NO"}]
[{"$f":"CONCATENATE(tblREGASSJune19[[#This Row],[Primary Account]],tblREGASSJune19[[#This Row],[Primary Name]],tblREGASSJune19[[#This Row],[Secondary Acct]],tblREGASSJune19[[#This Row],[Secondary  Name]],tblREGASSJune19[[#This Row],[Alloc4FUNC]])","v":"1823990OTHR REG ASSET-N CST189611Reg Asset - UT EBA CY2021OTHER"},1823990,"OTHR REG ASSET-N CST",189611,"Reg Asset - UT EBA CY2021","OTHER",602.67307692307702,{"$f":"IF(OR(tblREGASSJune19[[#This Row],[Alloc]]=\"IDU\",tblREGASSJune19[[#This Row],[Alloc]]=\"OR\",tblREGASSJune19[[#This Row],[Alloc]]=\"UT\",tblREGASSJune19[[#This Row],[Alloc]]=\"WYU\",tblREGASSJune19[[#This Row],[Alloc]]=\"WYP\",tblREGASSJune19[[#This Row],[Alloc]]=\"CA\",tblREGASSJune19[[#This Row],[Alloc]]=\"WA\"),\"SITUS\",tblREGASSJune19[[#This Row],[Alloc]])","v":"OTHER"},{"$f":"INDEX(tblREGASSLookup[FUNC],MATCH(tblREGASSJune19[[#This Row],[Concat]],tblREGASSLookup[Concat],0))","v":"P"},{"$f":"IF(tblREGASSJune19[[#This Row],[Total ($000)]]=0,\"NO\",IF(ISNA(tblREGASSJune19[[#This Row],[FUNC]]),\"YES\",IF(_xlfn.ISFORMULA(tblREGASSJune19[[#This Row],[FUNC]]),\"NO\",\"YES\")))","v":"NO"}]
[{"$f":"CONCATENATE(tblREGASSJune19[[#This Row],[Primary Account]],tblREGASSJune19[[#This Row],[Primary Name]],tblREGASSJune19[[#This Row],[Secondary Acct]],tblREGASSJune19[[#This Row],[Secondary  Name]],tblREGASSJune19[[#This Row],[Alloc4FUNC]])","v":"1823990OTHR REG ASSET-N CST189618Contra Reg Asset - UT EBA CY2018OTHER"},1823990,"OTHR REG ASSET-N CST",189618,"Contra Reg Asset - UT EBA CY2018","OTHER",-1525.94498923077,{"$f":"IF(OR(tblREGASSJune19[[#This Row],[Alloc]]=\"IDU\",tblREGASSJune19[[#This Row],[Alloc]]=\"OR\",tblREGASSJune19[[#This Row],[Alloc]]=\"UT\",tblREGASSJune19[[#This Row],[Alloc]]=\"WYU\",tblREGASSJune19[[#This Row],[Alloc]]=\"WYP\",tblREGASSJune19[[#This Row],[Alloc]]=\"CA\",tblREGASSJune19[[#This Row],[Alloc]]=\"WA\"),\"SITUS\",tblREGASSJune19[[#This Row],[Alloc]])","v":"OTHER"},{"$f":"INDEX(tblREGASSLookup[FUNC],MATCH(tblREGASSJune19[[#This Row],[Concat]],tblREGASSLookup[Concat],0))","v":"P"},{"$f":"IF(tblREGASSJune19[[#This Row],[Total ($000)]]=0,\"NO\",IF(ISNA(tblREGASSJune19[[#This Row],[FUNC]]),\"YES\",IF(_xlfn.ISFORMULA(tblREGASSJune19[[#This Row],[FUNC]]),\"NO\",\"YES\")))","v":"NO"}]
[{"$f":"CONCATENATE(tblREGASSJune19[[#This Row],[Primary Account]],tblREGASSJune19[[#This Row],[Primary Name]],tblREGASSJune19[[#This Row],[Secondary Acct]],tblREGASSJune19[[#This Row],[Secondary  Name]],tblREGASSJune19[[#This Row],[Alloc4FUNC]])","v":"1823990OTHR REG ASSET-N CST189619Contra Reg Asset - UT EBA CY2019OTHER"},1823990,"OTHR REG ASSET-N CST",189619,"Contra Reg Asset - UT EBA CY2019","OTHER",-439.84090846153799,{"$f":"IF(OR(tblREGASSJune19[[#This Row],[Alloc]]=\"IDU\",tblREGASSJune19[[#This Row],[Alloc]]=\"OR\",tblREGASSJune19[[#This Row],[Alloc]]=\"UT\",tblREGASSJune19[[#This Row],[Alloc]]=\"WYU\",tblREGASSJune19[[#This Row],[Alloc]]=\"WYP\",tblREGASSJune19[[#This Row],[Alloc]]=\"CA\",tblREGASSJune19[[#This Row],[Alloc]]=\"WA\"),\"SITUS\",tblREGASSJune19[[#This Row],[Alloc]])","v":"OTHER"},{"$f":"INDEX(tblREGASSLookup[FUNC],MATCH(tblREGASSJune19[[#This Row],[Concat]],tblREGASSLookup[Concat],0))","v":"P"},{"$f":"IF(tblREGASSJune19[[#This Row],[Total ($000)]]=0,\"NO\",IF(ISNA(tblREGASSJune19[[#This Row],[FUNC]]),\"YES\",IF(_xlfn.ISFORMULA(tblREGASSJune19[[#This Row],[FUNC]]),\"NO\",\"YES\")))","v":"NO"}]
[{"$f":"CONCATENATE(tblREGASSJune19[[#This Row],[Primary Account]],tblREGASSJune19[[#This Row],[Primary Name]],tblREGASSJune19[[#This Row],[Secondary Acct]],tblREGASSJune19[[#This Row],[Secondary  Name]],tblREGASSJune19[[#This Row],[Alloc4FUNC]])","v":"1823990OTHR REG ASSET-N CST189620Contra Reg Asset - UT EBA CY2020OTHER"},1823990,"OTHR REG ASSET-N CST",189620,"Contra Reg Asset - UT EBA CY2020","OTHER",-32.4290661538462,{"$f":"IF(OR(tblREGASSJune19[[#This Row],[Alloc]]=\"IDU\",tblREGASSJune19[[#This Row],[Alloc]]=\"OR\",tblREGASSJune19[[#This Row],[Alloc]]=\"UT\",tblREGASSJune19[[#This Row],[Alloc]]=\"WYU\",tblREGASSJune19[[#This Row],[Alloc]]=\"WYP\",tblREGASSJune19[[#This Row],[Alloc]]=\"CA\",tblREGASSJune19[[#This Row],[Alloc]]=\"WA\"),\"SITUS\",tblREGASSJune19[[#This Row],[Alloc]])","v":"OTHER"},{"$f":"INDEX(tblREGASSLookup[FUNC],MATCH(tblREGASSJune19[[#This Row],[Concat]],tblREGASSLookup[Concat],0))","v":"P"},{"$f":"IF(tblREGASSJune19[[#This Row],[Total ($000)]]=0,\"NO\",IF(ISNA(tblREGASSJune19[[#This Row],[FUNC]]),\"YES\",IF(_xlfn.ISFORMULA(tblREGASSJune19[[#This Row],[FUNC]]),\"NO\",\"YES\")))","v":"NO"}]
[{"$f":"CONCATENATE(tblREGASSJune19[[#This Row],[Primary Account]],tblREGASSJune19[[#This Row],[Primary Name]],tblREGASSJune19[[#This Row],[Secondary Acct]],tblREGASSJune19[[#This Row],[Secondary  Name]],tblREGASSJune19[[#This Row],[Alloc4FUNC]])","v":"1823990OTHR REG ASSET-N CST189621Contra Reg Asset - UT EBA CY2021OTHER"},1823990,"OTHR REG ASSET-N CST",189621,"Contra Reg Asset - UT EBA CY2021","OTHER",-30.133655384615398,{"$f":"IF(OR(tblREGASSJune19[[#This Row],[Alloc]]=\"IDU\",tblREGASSJune19[[#This Row],[Alloc]]=\"OR\",tblREGASSJune19[[#This Row],[Alloc]]=\"UT\",tblREGASSJune19[[#This Row],[Alloc]]=\"WYU\",tblREGASSJune19[[#This Row],[Alloc]]=\"WYP\",tblREGASSJune19[[#This Row],[Alloc]]=\"CA\",tblREGASSJune19[[#This Row],[Alloc]]=\"WA\"),\"SITUS\",tblREGASSJune19[[#This Row],[Alloc]])","v":"OTHER"},{"$f":"INDEX(tblREGASSLookup[FUNC],MATCH(tblREGASSJune19[[#This Row],[Concat]],tblREGASSLookup[Concat],0))","v":"P"},{"$f":"IF(tblREGASSJune19[[#This Row],[Total ($000)]]=0,\"NO\",IF(ISNA(tblREGASSJune19[[#This Row],[FUNC]]),\"YES\",IF(_xlfn.ISFORMULA(tblREGASSJune19[[#This Row],[FUNC]]),\"NO\",\"YES\")))","v":"NO"}]
[{"$f":"CONCATENATE(tblREGASSJune19[[#This Row],[Primary Account]],tblREGASSJune19[[#This Row],[Primary Name]],tblREGASSJune19[[#This Row],[Secondary Acct]],tblREGASSJune19[[#This Row],[Secondary  Name]],tblREGASSJune19[[#This Row],[Alloc4FUNC]])","v":"1823990OTHR REG ASSET-N CST189638RegA - UT Def Exc NPC - Recl to CurrOTHER"},1823990,"OTHR REG ASSET-N CST",189638,"RegA - UT Def Exc NPC - Recl to Curr","OTHER",-4487.0501530769197,{"$f":"IF(OR(tblREGASSJune19[[#This Row],[Alloc]]=\"IDU\",tblREGASSJune19[[#This Row],[Alloc]]=\"OR\",tblREGASSJune19[[#This Row],[Alloc]]=\"UT\",tblREGASSJune19[[#This Row],[Alloc]]=\"WYU\",tblREGASSJune19[[#This Row],[Alloc]]=\"WYP\",tblREGASSJune19[[#This Row],[Alloc]]=\"CA\",tblREGASSJune19[[#This Row],[Alloc]]=\"WA\"),\"SITUS\",tblREGASSJune19[[#This Row],[Alloc]])","v":"OTHER"},{"$f":"INDEX(tblREGASSLookup[FUNC],MATCH(tblREGASSJune19[[#This Row],[Concat]],tblREGASSLookup[Concat],0))","v":"P"},{"$f":"IF(tblREGASSJune19[[#This Row],[Total ($000)]]=0,\"NO\",IF(ISNA(tblREGASSJune19[[#This Row],[FUNC]]),\"YES\",IF(_xlfn.ISFORMULA(tblREGASSJune19[[#This Row],[FUNC]]),\"NO\",\"YES\")))","v":"NO"}]
[{"$f":"CONCATENATE(tblREGASSJune19[[#This Row],[Primary Account]],tblREGASSJune19[[#This Row],[Primary Name]],tblREGASSJune19[[#This Row],[Secondary Acct]],tblREGASSJune19[[#This Row],[Secondary  Name]],tblREGASSJune19[[#This Row],[Alloc4FUNC]])","v":"1823990OTHR REG ASSET-N CST189639RegA - UT Def Exc NPC - Recl to LiabOTHER"},1823990,"OTHR REG ASSET-N CST",189639,"RegA - UT Def Exc NPC - Recl to Liab","OTHER",0,{"$f":"IF(OR(tblREGASSJune19[[#This Row],[Alloc]]=\"IDU\",tblREGASSJune19[[#This Row],[Alloc]]=\"OR\",tblREGASSJune19[[#This Row],[Alloc]]=\"UT\",tblREGASSJune19[[#This Row],[Alloc]]=\"WYU\",tblREGASSJune19[[#This Row],[Alloc]]=\"WYP\",tblREGASSJune19[[#This Row],[Alloc]]=\"CA\",tblREGASSJune19[[#This Row],[Alloc]]=\"WA\"),\"SITUS\",tblREGASSJune19[[#This Row],[Alloc]])","v":"OTHER"},{"$f":"INDEX(tblREGASSLookup[FUNC],MATCH(tblREGASSJune19[[#This Row],[Concat]],tblREGASSLookup[Concat],0))","v":"P"},{"$f":"IF(tblREGASSJune19[[#This Row],[Total ($000)]]=0,\"NO\",IF(ISNA(tblREGASSJune19[[#This Row],[FUNC]]),\"YES\",IF(_xlfn.ISFORMULA(tblREGASSJune19[[#This Row],[FUNC]]),\"NO\",\"YES\")))","v":"NO"}]
[{"$f":"CONCATENATE(tblREGASSJune19[[#This Row],[Primary Account]],tblREGASSJune19[[#This Row],[Primary Name]],tblREGASSJune19[[#This Row],[Secondary Acct]],tblREGASSJune19[[#This Row],[Secondary  Name]],tblREGASSJune19[[#This Row],[Alloc4FUNC]])","v":"1823990OTHR REG ASSET-N CST189640Reg Asset-WA-Colstrip Outage DeferralOTHER"},1823990,"OTHR REG ASSET-N CST",189640,"Reg Asset-WA-Colstrip Outage Deferral","OTHER",0,{"$f":"IF(OR(tblREGASSJune19[[#This Row],[Alloc]]=\"IDU\",tblREGASSJune19[[#This Row],[Alloc]]=\"OR\",tblREGASSJune19[[#This Row],[Alloc]]=\"UT\",tblREGASSJune19[[#This Row],[Alloc]]=\"WYU\",tblREGASSJune19[[#This Row],[Alloc]]=\"WYP\",tblREGASSJune19[[#This Row],[Alloc]]=\"CA\",tblREGASSJune19[[#This Row],[Alloc]]=\"WA\"),\"SITUS\",tblREGASSJune19[[#This Row],[Alloc]])","v":"OTHER"},{"$f":"INDEX(tblREGASSLookup[FUNC],MATCH(tblREGASSJune19[[#This Row],[Concat]],tblREGASSLookup[Concat],0))","v":{"$error":"#N/A"}},{"$f":"IF(tblREGASSJune19[[#This Row],[Total ($000)]]=0,\"NO\",IF(ISNA(tblREGASSJune19[[#This Row],[FUNC]]),\"YES\",IF(_xlfn.ISFORMULA(tblREGASSJune19[[#This Row],[FUNC]]),\"NO\",\"YES\")))","v":"NO"}]
[{"$f":"CONCATENATE(tblREGASSJune19[[#This Row],[Primary Account]],tblREGASSJune19[[#This Row],[Primary Name]],tblREGASSJune19[[#This Row],[Secondary Acct]],tblREGASSJune19[[#This Row],[Secondary  Name]],tblREGASSJune19[[#This Row],[Alloc4FUNC]])","v":"1823990OTHR REG ASSET-N CST189649RegA - WA Def Exc NPC - Recl to LiabOTHER"},1823990,"OTHR REG ASSET-N CST",189649,"RegA - WA Def Exc NPC - Recl to Liab","OTHER",0,{"$f":"IF(OR(tblREGASSJune19[[#This Row],[Alloc]]=\"IDU\",tblREGASSJune19[[#This Row],[Alloc]]=\"OR\",tblREGASSJune19[[#This Row],[Alloc]]=\"UT\",tblREGASSJune19[[#This Row],[Alloc]]=\"WYU\",tblREGASSJune19[[#This Row],[Alloc]]=\"WYP\",tblREGASSJune19[[#This Row],[Alloc]]=\"CA\",tblREGASSJune19[[#This Row],[Alloc]]=\"WA\"),\"SITUS\",tblREGASSJune19[[#This Row],[Alloc]])","v":"OTHER"},{"$f":"INDEX(tblREGASSLookup[FUNC],MATCH(tblREGASSJune19[[#This Row],[Concat]],tblREGASSLookup[Concat],0))","v":"P"},{"$f":"IF(tblREGASSJune19[[#This Row],[Total ($000)]]=0,\"NO\",IF(ISNA(tblREGASSJune19[[#This Row],[FUNC]]),\"YES\",IF(_xlfn.ISFORMULA(tblREGASSJune19[[#This Row],[FUNC]]),\"NO\",\"YES\")))","v":"NO"}]
[{"$f":"CONCATENATE(tblREGASSJune19[[#This Row],[Primary Account]],tblREGASSJune19[[#This Row],[Primary Name]],tblREGASSJune19[[#This Row],[Secondary Acct]],tblREGASSJune19[[#This Row],[Secondary  Name]],tblREGASSJune19[[#This Row],[Alloc4FUNC]])","v":"1823990OTHR REG ASSET-N CST189650Reg Asset - WY ECAM CY2020OTHER"},1823990,"OTHR REG ASSET-N CST",189650,"Reg Asset - WY ECAM CY2020","OTHER",175.41175999999999,{"$f":"IF(OR(tblREGASSJune19[[#This Row],[Alloc]]=\"IDU\",tblREGASSJune19[[#This Row],[Alloc]]=\"OR\",tblREGASSJune19[[#This Row],[Alloc]]=\"UT\",tblREGASSJune19[[#This Row],[Alloc]]=\"WYU\",tblREGASSJune19[[#This Row],[Alloc]]=\"WYP\",tblREGASSJune19[[#This Row],[Alloc]]=\"CA\",tblREGASSJune19[[#This Row],[Alloc]]=\"WA\"),\"SITUS\",tblREGASSJune19[[#This Row],[Alloc]])","v":"OTHER"},{"$f":"INDEX(tblREGASSLookup[FUNC],MATCH(tblREGASSJune19[[#This Row],[Concat]],tblREGASSLookup[Concat],0))","v":"P"},{"$f":"IF(tblREGASSJune19[[#This Row],[Total ($000)]]=0,\"NO\",IF(ISNA(tblREGASSJune19[[#This Row],[FUNC]]),\"YES\",IF(_xlfn.ISFORMULA(tblREGASSJune19[[#This Row],[FUNC]]),\"NO\",\"YES\")))","v":"NO"}]
[{"$f":"CONCATENATE(tblREGASSJune19[[#This Row],[Primary Account]],tblREGASSJune19[[#This Row],[Primary Name]],tblREGASSJune19[[#This Row],[Secondary Acct]],tblREGASSJune19[[#This Row],[Secondary  Name]],tblREGASSJune19[[#This Row],[Alloc4FUNC]])","v":"1823990OTHR REG ASSET-N CST189651Reg Asset - WY ECAM CY2021OTHER"},1823990,"OTHR REG ASSET-N CST",189651,"Reg Asset - WY ECAM CY2021","OTHER",162.99567384615401,{"$f":"IF(OR(tblREGASSJune19[[#This Row],[Alloc]]=\"IDU\",tblREGASSJune19[[#This Row],[Alloc]]=\"OR\",tblREGASSJune19[[#This Row],[Alloc]]=\"UT\",tblREGASSJune19[[#This Row],[Alloc]]=\"WYU\",tblREGASSJune19[[#This Row],[Alloc]]=\"WYP\",tblREGASSJune19[[#This Row],[Alloc]]=\"CA\",tblREGASSJune19[[#This Row],[Alloc]]=\"WA\"),\"SITUS\",tblREGASSJune19[[#This Row],[Alloc]])","v":"OTHER"},{"$f":"INDEX(tblREGASSLookup[FUNC],MATCH(tblREGASSJune19[[#This Row],[Concat]],tblREGASSLookup[Concat],0))","v":"P"},{"$f":"IF(tblREGASSJune19[[#This Row],[Total ($000)]]=0,\"NO\",IF(ISNA(tblREGASSJune19[[#This Row],[FUNC]]),\"YES\",IF(_xlfn.ISFORMULA(tblREGASSJune19[[#This Row],[FUNC]]),\"NO\",\"YES\")))","v":"NO"}]
[{"$f":"CONCATENATE(tblREGASSJune19[[#This Row],[Primary Account]],tblREGASSJune19[[#This Row],[Primary Name]],tblREGASSJune19[[#This Row],[Secondary Acct]],tblREGASSJune19[[#This Row],[Secondary  Name]],tblREGASSJune19[[#This Row],[Alloc4FUNC]])","v":"1823990OTHR REG ASSET-N CST189660Contra Reg Asset - WY ECAM CY2020OTHER"},1823990,"OTHR REG ASSET-N CST",189660,"Contra Reg Asset - WY ECAM CY2020","OTHER",-8.7705869230769196,{"$f":"IF(OR(tblREGASSJune19[[#This Row],[Alloc]]=\"IDU\",tblREGASSJune19[[#This Row],[Alloc]]=\"OR\",tblREGASSJune19[[#This Row],[Alloc]]=\"UT\",tblREGASSJune19[[#This Row],[Alloc]]=\"WYU\",tblREGASSJune19[[#This Row],[Alloc]]=\"WYP\",tblREGASSJune19[[#This Row],[Alloc]]=\"CA\",tblREGASSJune19[[#This Row],[Alloc]]=\"WA\"),\"SITUS\",tblREGASSJune19[[#This Row],[Alloc]])","v":"OTHER"},{"$f":"INDEX(tblREGASSLookup[FUNC],MATCH(tblREGASSJune19[[#This Row],[Concat]],tblREGASSLookup[Concat],0))","v":"P"},{"$f":"IF(tblREGASSJune19[[#This Row],[Total ($000)]]=0,\"NO\",IF(ISNA(tblREGASSJune19[[#This Row],[FUNC]]),\"YES\",IF(_xlfn.ISFORMULA(tblREGASSJune19[[#This Row],[FUNC]]),\"NO\",\"YES\")))","v":"NO"}]
[{"$f":"CONCATENATE(tblREGASSJune19[[#This Row],[Primary Account]],tblREGASSJune19[[#This Row],[Primary Name]],tblREGASSJune19[[#This Row],[Secondary Acct]],tblREGASSJune19[[#This Row],[Secondary  Name]],tblREGASSJune19[[#This Row],[Alloc4FUNC]])","v":"1823990OTHR REG ASSET-N CST189661Contra Reg Asset - WY ECAM CY2021OTHER"},1823990,"OTHR REG ASSET-N CST",189661,"Contra Reg Asset - WY ECAM CY2021","OTHER",-8.1497846153846201,{"$f":"IF(OR(tblREGASSJune19[[#This Row],[Alloc]]=\"IDU\",tblREGASSJune19[[#This Row],[Alloc]]=\"OR\",tblREGASSJune19[[#This Row],[Alloc]]=\"UT\",tblREGASSJune19[[#This Row],[Alloc]]=\"WYU\",tblREGASSJune19[[#This Row],[Alloc]]=\"WYP\",tblREGASSJune19[[#This Row],[Alloc]]=\"CA\",tblREGASSJune19[[#This Row],[Alloc]]=\"WA\"),\"SITUS\",tblREGASSJune19[[#This Row],[Alloc]])","v":"OTHER"},{"$f":"INDEX(tblREGASSLookup[FUNC],MATCH(tblREGASSJune19[[#This Row],[Concat]],tblREGASSLookup[Concat],0))","v":"P"},{"$f":"IF(tblREGASSJune19[[#This Row],[Total ($000)]]=0,\"NO\",IF(ISNA(tblREGASSJune19[[#This Row],[FUNC]]),\"YES\",IF(_xlfn.ISFORMULA(tblREGASSJune19[[#This Row],[FUNC]]),\"NO\",\"YES\")))","v":"NO"}]
[{"$f":"CONCATENATE(tblREGASSJune19[[#This Row],[Primary Account]],tblREGASSJune19[[#This Row],[Primary Name]],tblREGASSJune19[[#This Row],[Secondary Acct]],tblREGASSJune19[[#This Row],[Secondary  Name]],tblREGASSJune19[[#This Row],[Alloc4FUNC]])","v":"1823990OTHR REG ASSET-N CST189688RegA - WY Def Exc NPC - Recl to CurrOTHER"},1823990,"OTHR REG ASSET-N CST",189688,"RegA - WY Def Exc NPC - Recl to Curr","OTHER",-1802.0682661538499,{"$f":"IF(OR(tblREGASSJune19[[#This Row],[Alloc]]=\"IDU\",tblREGASSJune19[[#This Row],[Alloc]]=\"OR\",tblREGASSJune19[[#This Row],[Alloc]]=\"UT\",tblREGASSJune19[[#This Row],[Alloc]]=\"WYU\",tblREGASSJune19[[#This Row],[Alloc]]=\"WYP\",tblREGASSJune19[[#This Row],[Alloc]]=\"CA\",tblREGASSJune19[[#This Row],[Alloc]]=\"WA\"),\"SITUS\",tblREGASSJune19[[#This Row],[Alloc]])","v":"OTHER"},{"$f":"INDEX(tblREGASSLookup[FUNC],MATCH(tblREGASSJune19[[#This Row],[Concat]],tblREGASSLookup[Concat],0))","v":"P"},{"$f":"IF(tblREGASSJune19[[#This Row],[Total ($000)]]=0,\"NO\",IF(ISNA(tblREGASSJune19[[#This Row],[FUNC]]),\"YES\",IF(_xlfn.ISFORMULA(tblREGASSJune19[[#This Row],[FUNC]]),\"NO\",\"YES\")))","v":"NO"}]
[{"$f":"CONCATENATE(tblREGASSJune19[[#This Row],[Primary Account]],tblREGASSJune19[[#This Row],[Primary Name]],tblREGASSJune19[[#This Row],[Secondary Acct]],tblREGASSJune19[[#This Row],[Secondary  Name]],tblREGASSJune19[[#This Row],[Alloc4FUNC]])","v":"1823990OTHR REG ASSET-N CST189689RegA - WY Def Exc NPC - Recl to LiabOTHER"},1823990,"OTHR REG ASSET-N CST",189689,"RegA - WY Def Exc NPC - Recl to Liab","OTHER",1422.8176100000001,{"$f":"IF(OR(tblREGASSJune19[[#This Row],[Alloc]]=\"IDU\",tblREGASSJune19[[#This Row],[Alloc]]=\"OR\",tblREGASSJune19[[#This Row],[Alloc]]=\"UT\",tblREGASSJune19[[#This Row],[Alloc]]=\"WYU\",tblREGASSJune19[[#This Row],[Alloc]]=\"WYP\",tblREGASSJune19[[#This Row],[Alloc]]=\"CA\",tblREGASSJune19[[#This Row],[Alloc]]=\"WA\"),\"SITUS\",tblREGASSJune19[[#This Row],[Alloc]])","v":"OTHER"},{"$f":"INDEX(tblREGASSLookup[FUNC],MATCH(tblREGASSJune19[[#This Row],[Concat]],tblREGASSLookup[Concat],0))","v":"P"},{"$f":"IF(tblREGASSJune19[[#This Row],[Total ($000)]]=0,\"NO\",IF(ISNA(tblREGASSJune19[[#This Row],[FUNC]]),\"YES\",IF(_xlfn.ISFORMULA(tblREGASSJune19[[#This Row],[FUNC]]),\"NO\",\"YES\")))","v":"NO"}]
[{"$f":"CONCATENATE(tblREGASSJune19[[#This Row],[Primary Account]],tblREGASSJune19[[#This Row],[Primary Name]],tblREGASSJune19[[#This Row],[Secondary Acct]],tblREGASSJune19[[#This Row],[Secondary  Name]],tblREGASSJune19[[#This Row],[Alloc4FUNC]])","v":"1823990OTHR REG ASSET-N CST288712Reg Liab - OR Property Insurance ReserveSITUS"},1823990,"OTHR REG ASSET-N CST",288712,"Reg Liab - OR Property Insurance Reserve","OR",0,{"$f":"IF(OR(tblREGASSJune19[[#This Row],[Alloc]]=\"IDU\",tblREGASSJune19[[#This Row],[Alloc]]=\"OR\",tblREGASSJune19[[#This Row],[Alloc]]=\"UT\",tblREGASSJune19[[#This Row],[Alloc]]=\"WYU\",tblREGASSJune19[[#This Row],[Alloc]]=\"WYP\",tblREGASSJune19[[#This Row],[Alloc]]=\"CA\",tblREGASSJune19[[#This Row],[Alloc]]=\"WA\"),\"SITUS\",tblREGASSJune19[[#This Row],[Alloc]])","v":"SITUS"},{"$f":"INDEX(tblREGASSLookup[FUNC],MATCH(tblREGASSJune19[[#This Row],[Concat]],tblREGASSLookup[Concat],0))","v":"P"},{"$f":"IF(tblREGASSJune19[[#This Row],[Total ($000)]]=0,\"NO\",IF(ISNA(tblREGASSJune19[[#This Row],[FUNC]]),\"YES\",IF(_xlfn.ISFORMULA(tblREGASSJune19[[#This Row],[FUNC]]),\"NO\",\"YES\")))","v":"NO"}]
[{"$f":"CONCATENATE(tblREGASSJune19[[#This Row],[Primary Account]],tblREGASSJune19[[#This Row],[Primary Name]],tblREGASSJune19[[#This Row],[Secondary Acct]],tblREGASSJune19[[#This Row],[Secondary  Name]],tblREGASSJune19[[#This Row],[Alloc4FUNC]])","v":"1823990OTHR REG ASSET-N CST530190Miscellaneous Contracts & ServicesOTHER"},1823990,"OTHR REG ASSET-N CST",530190,"Miscellaneous Contracts & Services","OTHER",0,{"$f":"IF(OR(tblREGASSJune19[[#This Row],[Alloc]]=\"IDU\",tblREGASSJune19[[#This Row],[Alloc]]=\"OR\",tblREGASSJune19[[#This Row],[Alloc]]=\"UT\",tblREGASSJune19[[#This Row],[Alloc]]=\"WYU\",tblREGASSJune19[[#This Row],[Alloc]]=\"WYP\",tblREGASSJune19[[#This Row],[Alloc]]=\"CA\",tblREGASSJune19[[#This Row],[Alloc]]=\"WA\"),\"SITUS\",tblREGASSJune19[[#This Row],[Alloc]])","v":"OTHER"},{"$f":"INDEX(tblREGASSLookup[FUNC],MATCH(tblREGASSJune19[[#This Row],[Concat]],tblREGASSLookup[Concat],0))","v":"P"},{"$f":"IF(tblREGASSJune19[[#This Row],[Total ($000)]]=0,\"NO\",IF(ISNA(tblREGASSJune19[[#This Row],[FUNC]]),\"YES\",IF(_xlfn.ISFORMULA(tblREGASSJune19[[#This Row],[FUNC]]),\"NO\",\"YES\")))","v":"NO"}]
[{"$f":"CONCATENATE(tblREGASSJune19[[#This Row],[Primary Account]],tblREGASSJune19[[#This Row],[Primary Name]],tblREGASSJune19[[#This Row],[Secondary Acct]],tblREGASSJune19[[#This Row],[Secondary  Name]],tblREGASSJune19[[#This Row],[Alloc4FUNC]])","v":"1823993OTH REG ASSET-NON CO111547REG ASSET-CHOLLA PLANT TRANS COSTS ORSITUS"},1823993,"OTH REG ASSET-NON CO",111547,"REG ASSET-CHOLLA PLANT TRANS COSTS OR","OR",0,{"$f":"IF(OR(tblREGASSJune19[[#This Row],[Alloc]]=\"IDU\",tblREGASSJune19[[#This Row],[Alloc]]=\"OR\",tblREGASSJune19[[#This Row],[Alloc]]=\"UT\",tblREGASSJune19[[#This Row],[Alloc]]=\"WYU\",tblREGASSJune19[[#This Row],[Alloc]]=\"WYP\",tblREGASSJune19[[#This Row],[Alloc]]=\"CA\",tblREGASSJune19[[#This Row],[Alloc]]=\"WA\"),\"SITUS\",tblREGASSJune19[[#This Row],[Alloc]])","v":"SITUS"},{"$f":"INDEX(tblREGASSLookup[FUNC],MATCH(tblREGASSJune19[[#This Row],[Concat]],tblREGASSLookup[Concat],0))","v":{"$error":"#N/A"}},{"$f":"IF(tblREGASSJune19[[#This Row],[Total ($000)]]=0,\"NO\",IF(ISNA(tblREGASSJune19[[#This Row],[FUNC]]),\"YES\",IF(_xlfn.ISFORMULA(tblREGASSJune19[[#This Row],[FUNC]]),\"NO\",\"YES\")))","v":"NO"}]
[{"$f":"CONCATENATE(tblREGASSJune19[[#This Row],[Primary Account]],tblREGASSJune19[[#This Row],[Primary Name]],tblREGASSJune19[[#This Row],[Secondary Acct]],tblREGASSJune19[[#This Row],[Secondary  Name]],tblREGASSJune19[[#This Row],[Alloc4FUNC]])","v":"1823993OTH REG ASSET-NON CO187060CHOLLA PLANT TRANSACTION COSTS-ORSITUS"},1823993,"OTH REG ASSET-NON CO",187060,"CHOLLA PLANT TRANSACTION COSTS-OR","OR",0,{"$f":"IF(OR(tblREGASSJune19[[#This Row],[Alloc]]=\"IDU\",tblREGASSJune19[[#This Row],[Alloc]]=\"OR\",tblREGASSJune19[[#This Row],[Alloc]]=\"UT\",tblREGASSJune19[[#This Row],[Alloc]]=\"WYU\",tblREGASSJune19[[#This Row],[Alloc]]=\"WYP\",tblREGASSJune19[[#This Row],[Alloc]]=\"CA\",tblREGASSJune19[[#This Row],[Alloc]]=\"WA\"),\"SITUS\",tblREGASSJune19[[#This Row],[Alloc]])","v":"SITUS"},{"$f":"INDEX(tblREGASSLookup[FUNC],MATCH(tblREGASSJune19[[#This Row],[Concat]],tblREGASSLookup[Concat],0))","v":"P"},{"$f":"IF(tblREGASSJune19[[#This Row],[Total ($000)]]=0,\"NO\",IF(ISNA(tblREGASSJune19[[#This Row],[FUNC]]),\"YES\",IF(_xlfn.ISFORMULA(tblREGASSJune19[[#This Row],[FUNC]]),\"NO\",\"YES\")))","v":"NO"}]
[{"$f":"CONCATENATE(tblREGASSJune19[[#This Row],[Primary Account]],tblREGASSJune19[[#This Row],[Primary Name]],tblREGASSJune19[[#This Row],[Secondary Acct]],tblREGASSJune19[[#This Row],[Secondary  Name]],tblREGASSJune19[[#This Row],[Alloc4FUNC]])","v":"1823994OTH REG ASSET-NON CO111548REG ASSET-CHOLLA PLANT TRANS COSTS WASITUS"},1823994,"OTH REG ASSET-NON CO",111548,"REG ASSET-CHOLLA PLANT TRANS COSTS WA","WA",0,{"$f":"IF(OR(tblREGASSJune19[[#This Row],[Alloc]]=\"IDU\",tblREGASSJune19[[#This Row],[Alloc]]=\"OR\",tblREGASSJune19[[#This Row],[Alloc]]=\"UT\",tblREGASSJune19[[#This Row],[Alloc]]=\"WYU\",tblREGASSJune19[[#This Row],[Alloc]]=\"WYP\",tblREGASSJune19[[#This Row],[Alloc]]=\"CA\",tblREGASSJune19[[#This Row],[Alloc]]=\"WA\"),\"SITUS\",tblREGASSJune19[[#This Row],[Alloc]])","v":"SITUS"},{"$f":"INDEX(tblREGASSLookup[FUNC],MATCH(tblREGASSJune19[[#This Row],[Concat]],tblREGASSLookup[Concat],0))","v":{"$error":"#N/A"}},{"$f":"IF(tblREGASSJune19[[#This Row],[Total ($000)]]=0,\"NO\",IF(ISNA(tblREGASSJune19[[#This Row],[FUNC]]),\"YES\",IF(_xlfn.ISFORMULA(tblREGASSJune19[[#This Row],[FUNC]]),\"NO\",\"YES\")))","v":"NO"}]
[{"$f":"CONCATENATE(tblREGASSJune19[[#This Row],[Primary Account]],tblREGASSJune19[[#This Row],[Primary Name]],tblREGASSJune19[[#This Row],[Secondary Acct]],tblREGASSJune19[[#This Row],[Secondary  Name]],tblREGASSJune19[[#This Row],[Alloc4FUNC]])","v":"1823994OTH REG ASSET-NON CO187061CHOLLA PLANT TRANSACTION COSTS-WASITUS"},1823994,"OTH REG ASSET-NON CO",187061,"CHOLLA PLANT TRANSACTION COSTS-WA","WA",0,{"$f":"IF(OR(tblREGASSJune19[[#This Row],[Alloc]]=\"IDU\",tblREGASSJune19[[#This Row],[Alloc]]=\"OR\",tblREGASSJune19[[#This Row],[Alloc]]=\"UT\",tblREGASSJune19[[#This Row],[Alloc]]=\"WYU\",tblREGASSJune19[[#This Row],[Alloc]]=\"WYP\",tblREGASSJune19[[#This Row],[Alloc]]=\"CA\",tblREGASSJune19[[#This Row],[Alloc]]=\"WA\"),\"SITUS\",tblREGASSJune19[[#This Row],[Alloc]])","v":"SITUS"},{"$f":"INDEX(tblREGASSLookup[FUNC],MATCH(tblREGASSJune19[[#This Row],[Concat]],tblREGASSLookup[Concat],0))","v":"P"},{"$f":"IF(tblREGASSJune19[[#This Row],[Total ($000)]]=0,\"NO\",IF(ISNA(tblREGASSJune19[[#This Row],[FUNC]]),\"YES\",IF(_xlfn.ISFORMULA(tblREGASSJune19[[#This Row],[FUNC]]),\"NO\",\"YES\")))","v":"NO"}]
[{"$f":"CONCATENATE(tblREGASSJune19[[#This Row],[Primary Account]],tblREGASSJune19[[#This Row],[Primary Name]],tblREGASSJune19[[#This Row],[Secondary Acct]],tblREGASSJune19[[#This Row],[Secondary  Name]],tblREGASSJune19[[#This Row],[Alloc4FUNC]])","v":"1823995OTH REG ASSET-NON CO111549REG ASSET-CHOLLA PLANT TRANS COSTS IDSITUS"},1823995,"OTH REG ASSET-NON CO",111549,"REG ASSET-CHOLLA PLANT TRANS COSTS ID","IDU",0,{"$f":"IF(OR(tblREGASSJune19[[#This Row],[Alloc]]=\"IDU\",tblREGASSJune19[[#This Row],[Alloc]]=\"OR\",tblREGASSJune19[[#This Row],[Alloc]]=\"UT\",tblREGASSJune19[[#This Row],[Alloc]]=\"WYU\",tblREGASSJune19[[#This Row],[Alloc]]=\"WYP\",tblREGASSJune19[[#This Row],[Alloc]]=\"CA\",tblREGASSJune19[[#This Row],[Alloc]]=\"WA\"),\"SITUS\",tblREGASSJune19[[#This Row],[Alloc]])","v":"SITUS"},{"$f":"INDEX(tblREGASSLookup[FUNC],MATCH(tblREGASSJune19[[#This Row],[Concat]],tblREGASSLookup[Concat],0))","v":{"$error":"#N/A"}},{"$f":"IF(tblREGASSJune19[[#This Row],[Total ($000)]]=0,\"NO\",IF(ISNA(tblREGASSJune19[[#This Row],[FUNC]]),\"YES\",IF(_xlfn.ISFORMULA(tblREGASSJune19[[#This Row],[FUNC]]),\"NO\",\"YES\")))","v":"NO"}]
[{"$f":"CONCATENATE(tblREGASSJune19[[#This Row],[Primary Account]],tblREGASSJune19[[#This Row],[Primary Name]],tblREGASSJune19[[#This Row],[Secondary Acct]],tblREGASSJune19[[#This Row],[Secondary  Name]],tblREGASSJune19[[#This Row],[Alloc4FUNC]])","v":"1823995OTH REG ASSET-NON CO187062CHOLLA PLANT TRANSACTION COSTS-IDSITUS"},1823995,"OTH REG ASSET-NON CO",187062,"CHOLLA PLANT TRANSACTION COSTS-ID","IDU",0,{"$f":"IF(OR(tblREGASSJune19[[#This Row],[Alloc]]=\"IDU\",tblREGASSJune19[[#This Row],[Alloc]]=\"OR\",tblREGASSJune19[[#This Row],[Alloc]]=\"UT\",tblREGASSJune19[[#This Row],[Alloc]]=\"WYU\",tblREGASSJune19[[#This Row],[Alloc]]=\"WYP\",tblREGASSJune19[[#This Row],[Alloc]]=\"CA\",tblREGASSJune19[[#This Row],[Alloc]]=\"WA\"),\"SITUS\",tblREGASSJune19[[#This Row],[Alloc]])","v":"SITUS"},{"$f":"INDEX(tblREGASSLookup[FUNC],MATCH(tblREGASSJune19[[#This Row],[Concat]],tblREGASSLookup[Concat],0))","v":"P"},{"$f":"IF(tblREGASSJune19[[#This Row],[Total ($000)]]=0,\"NO\",IF(ISNA(tblREGASSJune19[[#This Row],[FUNC]]),\"YES\",IF(_xlfn.ISFORMULA(tblREGASSJune19[[#This Row],[FUNC]]),\"NO\",\"YES\")))","v":"NO"}]
[{"$f":"CONCATENATE(tblREGASSJune19[[#This Row],[Primary Account]],tblREGASSJune19[[#This Row],[Primary Name]],tblREGASSJune19[[#This Row],[Secondary Acct]],tblREGASSJune19[[#This Row],[Secondary  Name]],tblREGASSJune19[[#This Row],[Alloc4FUNC]])","v":"1823999REGULATORY ASST-OTH186001DSM Regulatory Assets-AccrualsOTHER"},1823999,"REGULATORY ASST-OTH",186001,"DSM Regulatory Assets-Accruals","OTHER",0,{"$f":"IF(OR(tblREGASSJune19[[#This Row],[Alloc]]=\"IDU\",tblREGASSJune19[[#This Row],[Alloc]]=\"OR\",tblREGASSJune19[[#This Row],[Alloc]]=\"UT\",tblREGASSJune19[[#This Row],[Alloc]]=\"WYU\",tblREGASSJune19[[#This Row],[Alloc]]=\"WYP\",tblREGASSJune19[[#This Row],[Alloc]]=\"CA\",tblREGASSJune19[[#This Row],[Alloc]]=\"WA\"),\"SITUS\",tblREGASSJune19[[#This Row],[Alloc]])","v":"OTHER"},{"$f":"INDEX(tblREGASSLookup[FUNC],MATCH(tblREGASSJune19[[#This Row],[Concat]],tblREGASSLookup[Concat],0))","v":"P"},{"$f":"IF(tblREGASSJune19[[#This Row],[Total ($000)]]=0,\"NO\",IF(ISNA(tblREGASSJune19[[#This Row],[FUNC]]),\"YES\",IF(_xlfn.ISFORMULA(tblREGASSJune19[[#This Row],[FUNC]]),\"NO\",\"YES\")))","v":"NO"}]
[{"$f":"CONCATENATE(tblREGASSJune19[[#This Row],[Primary Account]],tblREGASSJune19[[#This Row],[Primary Name]],tblREGASSJune19[[#This Row],[Secondary Acct]],tblREGASSJune19[[#This Row],[Secondary  Name]],tblREGASSJune19[[#This Row],[Alloc4FUNC]])","v":"1823999REGULATORY ASST-OTH186011DSM Reg Asset - Accruals - CAOTHER"},1823999,"REGULATORY ASST-OTH",186011,"DSM Reg Asset - Accruals - CA","OTHER",268.69155769230798,{"$f":"IF(OR(tblREGASSJune19[[#This Row],[Alloc]]=\"IDU\",tblREGASSJune19[[#This Row],[Alloc]]=\"OR\",tblREGASSJune19[[#This Row],[Alloc]]=\"UT\",tblREGASSJune19[[#This Row],[Alloc]]=\"WYU\",tblREGASSJune19[[#This Row],[Alloc]]=\"WYP\",tblREGASSJune19[[#This Row],[Alloc]]=\"CA\",tblREGASSJune19[[#This Row],[Alloc]]=\"WA\"),\"SITUS\",tblREGASSJune19[[#This Row],[Alloc]])","v":"OTHER"},{"$f":"INDEX(tblREGASSLookup[FUNC],MATCH(tblREGASSJune19[[#This Row],[Concat]],tblREGASSLookup[Concat],0))","v":"P"},{"$f":"IF(tblREGASSJune19[[#This Row],[Total ($000)]]=0,\"NO\",IF(ISNA(tblREGASSJune19[[#This Row],[FUNC]]),\"YES\",IF(_xlfn.ISFORMULA(tblREGASSJune19[[#This Row],[FUNC]]),\"NO\",\"YES\")))","v":"NO"}]
[{"$f":"CONCATENATE(tblREGASSJune19[[#This Row],[Primary Account]],tblREGASSJune19[[#This Row],[Primary Name]],tblREGASSJune19[[#This Row],[Secondary Acct]],tblREGASSJune19[[#This Row],[Secondary  Name]],tblREGASSJune19[[#This Row],[Alloc4FUNC]])","v":"1823999REGULATORY ASST-OTH186015DSM Reg Asset - Balancing Acct - CAOTHER"},1823999,"REGULATORY ASST-OTH",186015,"DSM Reg Asset - Balancing Acct - CA","OTHER",-2943.1312446153802,{"$f":"IF(OR(tblREGASSJune19[[#This Row],[Alloc]]=\"IDU\",tblREGASSJune19[[#This Row],[Alloc]]=\"OR\",tblREGASSJune19[[#This Row],[Alloc]]=\"UT\",tblREGASSJune19[[#This Row],[Alloc]]=\"WYU\",tblREGASSJune19[[#This Row],[Alloc]]=\"WYP\",tblREGASSJune19[[#This Row],[Alloc]]=\"CA\",tblREGASSJune19[[#This Row],[Alloc]]=\"WA\"),\"SITUS\",tblREGASSJune19[[#This Row],[Alloc]])","v":"OTHER"},{"$f":"INDEX(tblREGASSLookup[FUNC],MATCH(tblREGASSJune19[[#This Row],[Concat]],tblREGASSLookup[Concat],0))","v":"P"},{"$f":"IF(tblREGASSJune19[[#This Row],[Total ($000)]]=0,\"NO\",IF(ISNA(tblREGASSJune19[[#This Row],[FUNC]]),\"YES\",IF(_xlfn.ISFORMULA(tblREGASSJune19[[#This Row],[FUNC]]),\"NO\",\"YES\")))","v":"NO"}]
[{"$f":"CONCATENATE(tblREGASSJune19[[#This Row],[Primary Account]],tblREGASSJune19[[#This Row],[Primary Name]],tblREGASSJune19[[#This Row],[Secondary Acct]],tblREGASSJune19[[#This Row],[Secondary  Name]],tblREGASSJune19[[#This Row],[Alloc4FUNC]])","v":"1823999REGULATORY ASST-OTH186021DSM Reg Asset - Accruals - IDOTHER"},1823999,"REGULATORY ASST-OTH",186021,"DSM Reg Asset - Accruals - ID","OTHER",364.64251307692302,{"$f":"IF(OR(tblREGASSJune19[[#This Row],[Alloc]]=\"IDU\",tblREGASSJune19[[#This Row],[Alloc]]=\"OR\",tblREGASSJune19[[#This Row],[Alloc]]=\"UT\",tblREGASSJune19[[#This Row],[Alloc]]=\"WYU\",tblREGASSJune19[[#This Row],[Alloc]]=\"WYP\",tblREGASSJune19[[#This Row],[Alloc]]=\"CA\",tblREGASSJune19[[#This Row],[Alloc]]=\"WA\"),\"SITUS\",tblREGASSJune19[[#This Row],[Alloc]])","v":"OTHER"},{"$f":"INDEX(tblREGASSLookup[FUNC],MATCH(tblREGASSJune19[[#This Row],[Concat]],tblREGASSLookup[Concat],0))","v":"P"},{"$f":"IF(tblREGASSJune19[[#This Row],[Total ($000)]]=0,\"NO\",IF(ISNA(tblREGASSJune19[[#This Row],[FUNC]]),\"YES\",IF(_xlfn.ISFORMULA(tblREGASSJune19[[#This Row],[FUNC]]),\"NO\",\"YES\")))","v":"NO"}]
[{"$f":"CONCATENATE(tblREGASSJune19[[#This Row],[Primary Account]],tblREGASSJune19[[#This Row],[Primary Name]],tblREGASSJune19[[#This Row],[Secondary Acct]],tblREGASSJune19[[#This Row],[Secondary  Name]],tblREGASSJune19[[#This Row],[Alloc4FUNC]])","v":"1823999REGULATORY ASST-OTH186025DSM Reg Asset - Balancing Acct - IDOTHER"},1823999,"REGULATORY ASST-OTH",186025,"DSM Reg Asset - Balancing Acct - ID","OTHER",-1843.88080615385,{"$f":"IF(OR(tblREGASSJune19[[#This Row],[Alloc]]=\"IDU\",tblREGASSJune19[[#This Row],[Alloc]]=\"OR\",tblREGASSJune19[[#This Row],[Alloc]]=\"UT\",tblREGASSJune19[[#This Row],[Alloc]]=\"WYU\",tblREGASSJune19[[#This Row],[Alloc]]=\"WYP\",tblREGASSJune19[[#This Row],[Alloc]]=\"CA\",tblREGASSJune19[[#This Row],[Alloc]]=\"WA\"),\"SITUS\",tblREGASSJune19[[#This Row],[Alloc]])","v":"OTHER"},{"$f":"INDEX(tblREGASSLookup[FUNC],MATCH(tblREGASSJune19[[#This Row],[Concat]],tblREGASSLookup[Concat],0))","v":"P"},{"$f":"IF(tblREGASSJune19[[#This Row],[Total ($000)]]=0,\"NO\",IF(ISNA(tblREGASSJune19[[#This Row],[FUNC]]),\"YES\",IF(_xlfn.ISFORMULA(tblREGASSJune19[[#This Row],[FUNC]]),\"NO\",\"YES\")))","v":"NO"}]
[{"$f":"CONCATENATE(tblREGASSJune19[[#This Row],[Primary Account]],tblREGASSJune19[[#This Row],[Primary Name]],tblREGASSJune19[[#This Row],[Secondary Acct]],tblREGASSJune19[[#This Row],[Secondary  Name]],tblREGASSJune19[[#This Row],[Alloc4FUNC]])","v":"1823999REGULATORY ASST-OTH186035DSM Reg Asset - Balancing Acct - OROTHER"},1823999,"REGULATORY ASST-OTH",186035,"DSM Reg Asset - Balancing Acct - OR","OTHER",131.28032769230799,{"$f":"IF(OR(tblREGASSJune19[[#This Row],[Alloc]]=\"IDU\",tblREGASSJune19[[#This Row],[Alloc]]=\"OR\",tblREGASSJune19[[#This Row],[Alloc]]=\"UT\",tblREGASSJune19[[#This Row],[Alloc]]=\"WYU\",tblREGASSJune19[[#This Row],[Alloc]]=\"WYP\",tblREGASSJune19[[#This Row],[Alloc]]=\"CA\",tblREGASSJune19[[#This Row],[Alloc]]=\"WA\"),\"SITUS\",tblREGASSJune19[[#This Row],[Alloc]])","v":"OTHER"},{"$f":"INDEX(tblREGASSLookup[FUNC],MATCH(tblREGASSJune19[[#This Row],[Concat]],tblREGASSLookup[Concat],0))","v":"P"},{"$f":"IF(tblREGASSJune19[[#This Row],[Total ($000)]]=0,\"NO\",IF(ISNA(tblREGASSJune19[[#This Row],[FUNC]]),\"YES\",IF(_xlfn.ISFORMULA(tblREGASSJune19[[#This Row],[FUNC]]),\"NO\",\"YES\")))","v":"NO"}]
[{"$f":"CONCATENATE(tblREGASSJune19[[#This Row],[Primary Account]],tblREGASSJune19[[#This Row],[Primary Name]],tblREGASSJune19[[#This Row],[Secondary Acct]],tblREGASSJune19[[#This Row],[Secondary  Name]],tblREGASSJune19[[#This Row],[Alloc4FUNC]])","v":"1823999REGULATORY ASST-OTH186041DSM Reg Asset - Accruals - UTOTHER"},1823999,"REGULATORY ASST-OTH",186041,"DSM Reg Asset - Accruals - UT","OTHER",4568.8969115384598,{"$f":"IF(OR(tblREGASSJune19[[#This Row],[Alloc]]=\"IDU\",tblREGASSJune19[[#This Row],[Alloc]]=\"OR\",tblREGASSJune19[[#This Row],[Alloc]]=\"UT\",tblREGASSJune19[[#This Row],[Alloc]]=\"WYU\",tblREGASSJune19[[#This Row],[Alloc]]=\"WYP\",tblREGASSJune19[[#This Row],[Alloc]]=\"CA\",tblREGASSJune19[[#This Row],[Alloc]]=\"WA\"),\"SITUS\",tblREGASSJune19[[#This Row],[Alloc]])","v":"OTHER"},{"$f":"INDEX(tblREGASSLookup[FUNC],MATCH(tblREGASSJune19[[#This Row],[Concat]],tblREGASSLookup[Concat],0))","v":"P"},{"$f":"IF(tblREGASSJune19[[#This Row],[Total ($000)]]=0,\"NO\",IF(ISNA(tblREGASSJune19[[#This Row],[FUNC]]),\"YES\",IF(_xlfn.ISFORMULA(tblREGASSJune19[[#This Row],[FUNC]]),\"NO\",\"YES\")))","v":"NO"}]
[{"$f":"CONCATENATE(tblREGASSJune19[[#This Row],[Primary Account]],tblREGASSJune19[[#This Row],[Primary Name]],tblREGASSJune19[[#This Row],[Secondary Acct]],tblREGASSJune19[[#This Row],[Secondary  Name]],tblREGASSJune19[[#This Row],[Alloc4FUNC]])","v":"1823999REGULATORY ASST-OTH186045DSM Reg Asset - Balancing Acct - UTOTHER"},1823999,"REGULATORY ASST-OTH",186045,"DSM Reg Asset - Balancing Acct - UT","OTHER",-104504.825358462,{"$f":"IF(OR(tblREGASSJune19[[#This Row],[Alloc]]=\"IDU\",tblREGASSJune19[[#This Row],[Alloc]]=\"OR\",tblREGASSJune19[[#This Row],[Alloc]]=\"UT\",tblREGASSJune19[[#This Row],[Alloc]]=\"WYU\",tblREGASSJune19[[#This Row],[Alloc]]=\"WYP\",tblREGASSJune19[[#This Row],[Alloc]]=\"CA\",tblREGASSJune19[[#This Row],[Alloc]]=\"WA\"),\"SITUS\",tblREGASSJune19[[#This Row],[Alloc]])","v":"OTHER"},{"$f":"INDEX(tblREGASSLookup[FUNC],MATCH(tblREGASSJune19[[#This Row],[Concat]],tblREGASSLookup[Concat],0))","v":"P"},{"$f":"IF(tblREGASSJune19[[#This Row],[Total ($000)]]=0,\"NO\",IF(ISNA(tblREGASSJune19[[#This Row],[FUNC]]),\"YES\",IF(_xlfn.ISFORMULA(tblREGASSJune19[[#This Row],[FUNC]]),\"NO\",\"YES\")))","v":"NO"}]
[{"$f":"CONCATENATE(tblREGASSJune19[[#This Row],[Primary Account]],tblREGASSJune19[[#This Row],[Primary Name]],tblREGASSJune19[[#This Row],[Secondary Acct]],tblREGASSJune19[[#This Row],[Secondary  Name]],tblREGASSJune19[[#This Row],[Alloc4FUNC]])","v":"1823999REGULATORY ASST-OTH186051DSM Reg Asset - Accruals - WAOTHER"},1823999,"REGULATORY ASST-OTH",186051,"DSM Reg Asset - Accruals - WA","OTHER",810.33494076923103,{"$f":"IF(OR(tblREGASSJune19[[#This Row],[Alloc]]=\"IDU\",tblREGASSJune19[[#This Row],[Alloc]]=\"OR\",tblREGASSJune19[[#This Row],[Alloc]]=\"UT\",tblREGASSJune19[[#This Row],[Alloc]]=\"WYU\",tblREGASSJune19[[#This Row],[Alloc]]=\"WYP\",tblREGASSJune19[[#This Row],[Alloc]]=\"CA\",tblREGASSJune19[[#This Row],[Alloc]]=\"WA\"),\"SITUS\",tblREGASSJune19[[#This Row],[Alloc]])","v":"OTHER"},{"$f":"INDEX(tblREGASSLookup[FUNC],MATCH(tblREGASSJune19[[#This Row],[Concat]],tblREGASSLookup[Concat],0))","v":"P"},{"$f":"IF(tblREGASSJune19[[#This Row],[Total ($000)]]=0,\"NO\",IF(ISNA(tblREGASSJune19[[#This Row],[FUNC]]),\"YES\",IF(_xlfn.ISFORMULA(tblREGASSJune19[[#This Row],[FUNC]]),\"NO\",\"YES\")))","v":"NO"}]
[{"$f":"CONCATENATE(tblREGASSJune19[[#This Row],[Primary Account]],tblREGASSJune19[[#This Row],[Primary Name]],tblREGASSJune19[[#This Row],[Secondary Acct]],tblREGASSJune19[[#This Row],[Secondary  Name]],tblREGASSJune19[[#This Row],[Alloc4FUNC]])","v":"1823999REGULATORY ASST-OTH186055DSM Reg Asset - Balancing Acct - WAOTHER"},1823999,"REGULATORY ASST-OTH",186055,"DSM Reg Asset - Balancing Acct - WA","OTHER",-3725.9767515384601,{"$f":"IF(OR(tblREGASSJune19[[#This Row],[Alloc]]=\"IDU\",tblREGASSJune19[[#This Row],[Alloc]]=\"OR\",tblREGASSJune19[[#This Row],[Alloc]]=\"UT\",tblREGASSJune19[[#This Row],[Alloc]]=\"WYU\",tblREGASSJune19[[#This Row],[Alloc]]=\"WYP\",tblREGASSJune19[[#This Row],[Alloc]]=\"CA\",tblREGASSJune19[[#This Row],[Alloc]]=\"WA\"),\"SITUS\",tblREGASSJune19[[#This Row],[Alloc]])","v":"OTHER"},{"$f":"INDEX(tblREGASSLookup[FUNC],MATCH(tblREGASSJune19[[#This Row],[Concat]],tblREGASSLookup[Concat],0))","v":"P"},{"$f":"IF(tblREGASSJune19[[#This Row],[Total ($000)]]=0,\"NO\",IF(ISNA(tblREGASSJune19[[#This Row],[FUNC]]),\"YES\",IF(_xlfn.ISFORMULA(tblREGASSJune19[[#This Row],[FUNC]]),\"NO\",\"YES\")))","v":"NO"}]
[{"$f":"CONCATENATE(tblREGASSJune19[[#This Row],[Primary Account]],tblREGASSJune19[[#This Row],[Primary Name]],tblREGASSJune19[[#This Row],[Secondary Acct]],tblREGASSJune19[[#This Row],[Secondary  Name]],tblREGASSJune19[[#This Row],[Alloc4FUNC]])","v":"1823999REGULATORY ASST-OTH186061DSM Reg Asset - Accruals - WYOTHER"},1823999,"REGULATORY ASST-OTH",186061,"DSM Reg Asset - Accruals - WY","OTHER",433.76925384615402,{"$f":"IF(OR(tblREGASSJune19[[#This Row],[Alloc]]=\"IDU\",tblREGASSJune19[[#This Row],[Alloc]]=\"OR\",tblREGASSJune19[[#This Row],[Alloc]]=\"UT\",tblREGASSJune19[[#This Row],[Alloc]]=\"WYU\",tblREGASSJune19[[#This Row],[Alloc]]=\"WYP\",tblREGASSJune19[[#This Row],[Alloc]]=\"CA\",tblREGASSJune19[[#This Row],[Alloc]]=\"WA\"),\"SITUS\",tblREGASSJune19[[#This Row],[Alloc]])","v":"OTHER"},{"$f":"INDEX(tblREGASSLookup[FUNC],MATCH(tblREGASSJune19[[#This Row],[Concat]],tblREGASSLookup[Concat],0))","v":"P"},{"$f":"IF(tblREGASSJune19[[#This Row],[Total ($000)]]=0,\"NO\",IF(ISNA(tblREGASSJune19[[#This Row],[FUNC]]),\"YES\",IF(_xlfn.ISFORMULA(tblREGASSJune19[[#This Row],[FUNC]]),\"NO\",\"YES\")))","v":"NO"}]
[{"$f":"CONCATENATE(tblREGASSJune19[[#This Row],[Primary Account]],tblREGASSJune19[[#This Row],[Primary Name]],tblREGASSJune19[[#This Row],[Secondary Acct]],tblREGASSJune19[[#This Row],[Secondary  Name]],tblREGASSJune19[[#This Row],[Alloc4FUNC]])","v":"1823999REGULATORY ASST-OTH186065DSM Reg Asset - Balancing Acct - WYOTHER"},1823999,"REGULATORY ASST-OTH",186065,"DSM Reg Asset - Balancing Acct - WY","OTHER",-1060.56601692308,{"$f":"IF(OR(tblREGASSJune19[[#This Row],[Alloc]]=\"IDU\",tblREGASSJune19[[#This Row],[Alloc]]=\"OR\",tblREGASSJune19[[#This Row],[Alloc]]=\"UT\",tblREGASSJune19[[#This Row],[Alloc]]=\"WYU\",tblREGASSJune19[[#This Row],[Alloc]]=\"WYP\",tblREGASSJune19[[#This Row],[Alloc]]=\"CA\",tblREGASSJune19[[#This Row],[Alloc]]=\"WA\"),\"SITUS\",tblREGASSJune19[[#This Row],[Alloc]])","v":"OTHER"},{"$f":"INDEX(tblREGASSLookup[FUNC],MATCH(tblREGASSJune19[[#This Row],[Concat]],tblREGASSLookup[Concat],0))","v":"P"},{"$f":"IF(tblREGASSJune19[[#This Row],[Total ($000)]]=0,\"NO\",IF(ISNA(tblREGASSJune19[[#This Row],[FUNC]]),\"YES\",IF(_xlfn.ISFORMULA(tblREGASSJune19[[#This Row],[FUNC]]),\"NO\",\"YES\")))","v":"NO"}]
[{"$f":"CONCATENATE(tblREGASSJune19[[#This Row],[Primary Account]],tblREGASSJune19[[#This Row],[Primary Name]],tblREGASSJune19[[#This Row],[Secondary Acct]],tblREGASSJune19[[#This Row],[Secondary  Name]],tblREGASSJune19[[#This Row],[Alloc4FUNC]])","v":"1823999REGULATORY ASST-OTH186071DSM Reg Asset - Accruals - WY Cat 1OTHER"},1823999,"REGULATORY ASST-OTH",186071,"DSM Reg Asset - Accruals - WY Cat 1","OTHER",93.042589230769195,{"$f":"IF(OR(tblREGASSJune19[[#This Row],[Alloc]]=\"IDU\",tblREGASSJune19[[#This Row],[Alloc]]=\"OR\",tblREGASSJune19[[#This Row],[Alloc]]=\"UT\",tblREGASSJune19[[#This Row],[Alloc]]=\"WYU\",tblREGASSJune19[[#This Row],[Alloc]]=\"WYP\",tblREGASSJune19[[#This Row],[Alloc]]=\"CA\",tblREGASSJune19[[#This Row],[Alloc]]=\"WA\"),\"SITUS\",tblREGASSJune19[[#This Row],[Alloc]])","v":"OTHER"},{"$f":"INDEX(tblREGASSLookup[FUNC],MATCH(tblREGASSJune19[[#This Row],[Concat]],tblREGASSLookup[Concat],0))","v":"P"},{"$f":"IF(tblREGASSJune19[[#This Row],[Total ($000)]]=0,\"NO\",IF(ISNA(tblREGASSJune19[[#This Row],[FUNC]]),\"YES\",IF(_xlfn.ISFORMULA(tblREGASSJune19[[#This Row],[FUNC]]),\"NO\",\"YES\")))","v":"NO"}]
[{"$f":"CONCATENATE(tblREGASSJune19[[#This Row],[Primary Account]],tblREGASSJune19[[#This Row],[Primary Name]],tblREGASSJune19[[#This Row],[Secondary Acct]],tblREGASSJune19[[#This Row],[Secondary  Name]],tblREGASSJune19[[#This Row],[Alloc4FUNC]])","v":"1823999REGULATORY ASST-OTH186075DSM Reg Asset-Balancing Acct-WY Cat 1OTHER"},1823999,"REGULATORY ASST-OTH",186075,"DSM Reg Asset-Balancing Acct-WY Cat 1","OTHER",-1001.9849253846201,{"$f":"IF(OR(tblREGASSJune19[[#This Row],[Alloc]]=\"IDU\",tblREGASSJune19[[#This Row],[Alloc]]=\"OR\",tblREGASSJune19[[#This Row],[Alloc]]=\"UT\",tblREGASSJune19[[#This Row],[Alloc]]=\"WYU\",tblREGASSJune19[[#This Row],[Alloc]]=\"WYP\",tblREGASSJune19[[#This Row],[Alloc]]=\"CA\",tblREGASSJune19[[#This Row],[Alloc]]=\"WA\"),\"SITUS\",tblREGASSJune19[[#This Row],[Alloc]])","v":"OTHER"},{"$f":"INDEX(tblREGASSLookup[FUNC],MATCH(tblREGASSJune19[[#This Row],[Concat]],tblREGASSLookup[Concat],0))","v":"P"},{"$f":"IF(tblREGASSJune19[[#This Row],[Total ($000)]]=0,\"NO\",IF(ISNA(tblREGASSJune19[[#This Row],[FUNC]]),\"YES\",IF(_xlfn.ISFORMULA(tblREGASSJune19[[#This Row],[FUNC]]),\"NO\",\"YES\")))","v":"NO"}]
[{"$f":"CONCATENATE(tblREGASSJune19[[#This Row],[Primary Account]],tblREGASSJune19[[#This Row],[Primary Name]],tblREGASSJune19[[#This Row],[Secondary Acct]],tblREGASSJune19[[#This Row],[Secondary  Name]],tblREGASSJune19[[#This Row],[Alloc4FUNC]])","v":"1823999REGULATORY ASST-OTH186081DSM Reg Asset - Accruals - WY Cat 2OTHER"},1823999,"REGULATORY ASST-OTH",186081,"DSM Reg Asset - Accruals - WY Cat 2","OTHER",80.293996153846194,{"$f":"IF(OR(tblREGASSJune19[[#This Row],[Alloc]]=\"IDU\",tblREGASSJune19[[#This Row],[Alloc]]=\"OR\",tblREGASSJune19[[#This Row],[Alloc]]=\"UT\",tblREGASSJune19[[#This Row],[Alloc]]=\"WYU\",tblREGASSJune19[[#This Row],[Alloc]]=\"WYP\",tblREGASSJune19[[#This Row],[Alloc]]=\"CA\",tblREGASSJune19[[#This Row],[Alloc]]=\"WA\"),\"SITUS\",tblREGASSJune19[[#This Row],[Alloc]])","v":"OTHER"},{"$f":"INDEX(tblREGASSLookup[FUNC],MATCH(tblREGASSJune19[[#This Row],[Concat]],tblREGASSLookup[Concat],0))","v":"P"},{"$f":"IF(tblREGASSJune19[[#This Row],[Total ($000)]]=0,\"NO\",IF(ISNA(tblREGASSJune19[[#This Row],[FUNC]]),\"YES\",IF(_xlfn.ISFORMULA(tblREGASSJune19[[#This Row],[FUNC]]),\"NO\",\"YES\")))","v":"NO"}]
[{"$f":"CONCATENATE(tblREGASSJune19[[#This Row],[Primary Account]],tblREGASSJune19[[#This Row],[Primary Name]],tblREGASSJune19[[#This Row],[Secondary Acct]],tblREGASSJune19[[#This Row],[Secondary  Name]],tblREGASSJune19[[#This Row],[Alloc4FUNC]])","v":"1823999REGULATORY ASST-OTH186085DSM Reg Asset-Balancing Acct-WY Cat 2OTHER"},1823999,"REGULATORY ASST-OTH",186085,"DSM Reg Asset-Balancing Acct-WY Cat 2","OTHER",-39.483463846153803,{"$f":"IF(OR(tblREGASSJune19[[#This Row],[Alloc]]=\"IDU\",tblREGASSJune19[[#This Row],[Alloc]]=\"OR\",tblREGASSJune19[[#This Row],[Alloc]]=\"UT\",tblREGASSJune19[[#This Row],[Alloc]]=\"WYU\",tblREGASSJune19[[#This Row],[Alloc]]=\"WYP\",tblREGASSJune19[[#This Row],[Alloc]]=\"CA\",tblREGASSJune19[[#This Row],[Alloc]]=\"WA\"),\"SITUS\",tblREGASSJune19[[#This Row],[Alloc]])","v":"OTHER"},{"$f":"INDEX(tblREGASSLookup[FUNC],MATCH(tblREGASSJune19[[#This Row],[Concat]],tblREGASSLookup[Concat],0))","v":"P"},{"$f":"IF(tblREGASSJune19[[#This Row],[Total ($000)]]=0,\"NO\",IF(ISNA(tblREGASSJune19[[#This Row],[FUNC]]),\"YES\",IF(_xlfn.ISFORMULA(tblREGASSJune19[[#This Row],[FUNC]]),\"NO\",\"YES\")))","v":"NO"}]
[{"$f":"CONCATENATE(tblREGASSJune19[[#This Row],[Primary Account]],tblREGASSJune19[[#This Row],[Primary Name]],tblREGASSJune19[[#This Row],[Secondary Acct]],tblREGASSJune19[[#This Row],[Secondary  Name]],tblREGASSJune19[[#This Row],[Alloc4FUNC]])","v":"1823999REGULATORY ASST-OTH186140Reg Asset-UT Rev Req DSM/STEP-ClrgOTHER"},1823999,"REGULATORY ASST-OTH",186140,"Reg Asset-UT Rev Req DSM/STEP-Clrg","OTHER",0,{"$f":"IF(OR(tblREGASSJune19[[#This Row],[Alloc]]=\"IDU\",tblREGASSJune19[[#This Row],[Alloc]]=\"OR\",tblREGASSJune19[[#This Row],[Alloc]]=\"UT\",tblREGASSJune19[[#This Row],[Alloc]]=\"WYU\",tblREGASSJune19[[#This Row],[Alloc]]=\"WYP\",tblREGASSJune19[[#This Row],[Alloc]]=\"CA\",tblREGASSJune19[[#This Row],[Alloc]]=\"WA\"),\"SITUS\",tblREGASSJune19[[#This Row],[Alloc]])","v":"OTHER"},{"$f":"INDEX(tblREGASSLookup[FUNC],MATCH(tblREGASSJune19[[#This Row],[Concat]],tblREGASSLookup[Concat],0))","v":{"$error":"#N/A"}},{"$f":"IF(tblREGASSJune19[[#This Row],[Total ($000)]]=0,\"NO\",IF(ISNA(tblREGASSJune19[[#This Row],[FUNC]]),\"YES\",IF(_xlfn.ISFORMULA(tblREGASSJune19[[#This Row],[FUNC]]),\"NO\",\"YES\")))","v":"NO"}]
[null,null,null,null,null,null,{"$f":"SUBTOTAL(109,tblREGASSJune19[Total ($000)])","v":749210.86009615485}]

{"sheet":"REGASSETS Lookup","index":23,"n_rows":1072,"n_cols":9,"rows_kept":1072,"cut":false,"hidden":false,"merged":[]}
["Concat","Primary Account","Primary Name","Secondary Acct","Secondary  Name","Alloc","Total ($000)","Alloc4FUNC","FUNC"]
[{"$f":"CONCATENATE(tblREGASSLookup[[#This Row],[Primary Account]],tblREGASSLookup[[#This Row],[Primary Name]],tblREGASSLookup[[#This Row],[Secondary Acct]],tblREGASSLookup[[#This Row],[Secondary  Name]],tblREGASSLookup[[#This Row],[Alloc4FUNC]])","v":"1823700OTH REGA-ENERGY WEST186801Reg Asset-Deer Creek-Elec Plt In SvcSE"},1823700,"OTH REGA-ENERGY WEST",186801,"Reg Asset-Deer Creek-Elec Plt In Svc","SE",null,{"$f":"IF(OR(tblREGASSLookup[[#This Row],[Alloc]]=\"IDU\",tblREGASSLookup[[#This Row],[Alloc]]=\"OR\",tblREGASSLookup[[#This Row],[Alloc]]=\"UT\",tblREGASSLookup[[#This Row],[Alloc]]=\"WYU\",tblREGASSLookup[[#This Row],[Alloc]]=\"WYP\",tblREGASSLookup[[#This Row],[Alloc]]=\"CA\",tblREGASSLookup[[#This Row],[Alloc]]=\"WA\"),\"SITUS\",tblREGASSLookup[[#This Row],[Alloc]])","v":"SE"},"P"]
[{"$f":"CONCATENATE(tblREGASSLookup[[#This Row],[Primary Account]],tblREGASSLookup[[#This Row],[Primary Name]],tblREGASSLookup[[#This Row],[Secondary Acct]],tblREGASSLookup[[#This Row],[Secondary  Name]],tblREGASSLookup[[#This Row],[Alloc4FUNC]])","v":"1823700OTH REGA-ENERGY WEST186802Reg Asset-Deer Creek-EPIS IntangiblesSE"},1823700,"OTH REGA-ENERGY WEST",186802,"Reg Asset-Deer Creek-EPIS Intangibles","SE",null,{"$f":"IF(OR(tblREGASSLookup[[#This Row],[Alloc]]=\"IDU\",tblREGASSLookup[[#This Row],[Alloc]]=\"OR\",tblREGASSLookup[[#This Row],[Alloc]]=\"UT\",tblREGASSLookup[[#This Row],[Alloc]]=\"WYU\",tblREGASSLookup[[#This Row],[Alloc]]=\"WYP\",tblREGASSLookup[[#This Row],[Alloc]]=\"CA\",tblREGASSLookup[[#This Row],[Alloc]]=\"WA\"),\"SITUS\",tblREGASSLookup[[#This Row],[Alloc]])","v":"SE"},"P"]
[{"$f":"CONCATENATE(tblREGASSLookup[[#This Row],[Primary Account]],tblREGASSLookup[[#This Row],[Primary Name]],tblREGASSLookup[[#This Row],[Secondary Acct]],tblREGASSLookup[[#This Row],[Secondary  Name]],tblREGASSLookup[[#This Row],[Alloc4FUNC]])","v":"1823700OTH REGA-ENERGY WEST186805Reg Asset-Deer Creek-CWIPSE"},1823700,"OTH REGA-ENERGY WEST",186805,"Reg Asset-Deer Creek-CWIP","SE",null,{"$f":"IF(OR(tblREGASSLookup[[#This Row],[Alloc]]=\"IDU\",tblREGASSLookup[[#This Row],[Alloc]]=\"OR\",tblREGASSLookup[[#This Row],[Alloc]]=\"UT\",tblREGASSLookup[[#This Row],[Alloc]]=\"WYU\",tblREGASSLookup[[#This Row],[Alloc]]=\"WYP\",tblREGASSLookup[[#This Row],[Alloc]]=\"CA\",tblREGASSLookup[[#This Row],[Alloc]]=\"WA\"),\"SITUS\",tblREGASSLookup[[#This Row],[Alloc]])","v":"SE"},"P"]
[{"$f":"CONCATENATE(tblREGASSLookup[[#This Row],[Primary Account]],tblREGASSLookup[[#This Row],[Primary Name]],tblREGASSLookup[[#This Row],[Secondary Acct]],tblREGASSLookup[[#This Row],[Secondary  Name]],tblREGASSLookup[[#This Row],[Alloc4FUNC]])","v":"1823700OTH REGA-ENERGY WEST186806Reg Asset-Deer Creek-PS&ISE"},1823700,"OTH REGA-ENERGY WEST",186806,"Reg Asset-Deer Creek-PS&I","SE",null,{"$f":"IF(OR(tblREGASSLookup[[#This Row],[Alloc]]=\"IDU\",tblREGASSLookup[[#This Row],[Alloc]]=\"OR\",tblREGASSLookup[[#This Row],[Alloc]]=\"UT\",tblREGASSLookup[[#This Row],[Alloc]]=\"WYU\",tblREGASSLookup[[#This Row],[Alloc]]=\"WYP\",tblREGASSLookup[[#This Row],[Alloc]]=\"CA\",tblREGASSLookup[[#This Row],[Alloc]]=\"WA\"),\"SITUS\",tblREGASSLookup[[#This Row],[Alloc]])","v":"SE"},"P"]
[{"$f":"CONCATENATE(tblREGASSLookup[[#This Row],[Primary Account]],tblREGASSLookup[[#This Row],[Primary Name]],tblREGASSLookup[[#This Row],[Secondary Acct]],tblREGASSLookup[[#This Row],[Secondary  Name]],tblREGASSLookup[[#This Row],[Alloc4FUNC]])","v":"1823700OTH REGA-ENERGY WEST186811Reg Asset-Deer Creek Sale-EPISSE"},1823700,"OTH REGA-ENERGY WEST",186811,"Reg Asset-Deer Creek Sale-EPIS","SE",null,{"$f":"IF(OR(tblREGASSLookup[[#This Row],[Alloc]]=\"IDU\",tblREGASSLookup[[#This Row],[Alloc]]=\"OR\",tblREGASSLookup[[#This Row],[Alloc]]=\"UT\",tblREGASSLookup[[#This Row],[Alloc]]=\"WYU\",tblREGASSLookup[[#This Row],[Alloc]]=\"WYP\",tblREGASSLookup[[#This Row],[Alloc]]=\"CA\",tblREGASSLookup[[#This Row],[Alloc]]=\"WA\"),\"SITUS\",tblREGASSLookup[[#This Row],[Alloc]])","v":"SE"},"P"]
[{"$f":"CONCATENATE(tblREGASSLookup[[#This Row],[Primary Account]],tblREGASSLookup[[#This Row],[Primary Name]],tblREGASSLookup[[#This Row],[Secondary Acct]],tblREGASSLookup[[#This Row],[Secondary  Name]],tblREGASSLookup[[#This Row],[Alloc4FUNC]])","v":"1823700OTH REGA-ENERGY WEST186812Contra RA-DCM PP&E-OR-To G/L Bal AcctSITUS"},1823700,"OTH REGA-ENERGY WEST",186812,"Contra RA-DCM PP&E-OR-To G/L Bal Acct","SITUS",null,{"$f":"IF(OR(tblREGASSLookup[[#This Row],[Alloc]]=\"IDU\",tblREGASSLookup[[#This Row],[Alloc]]=\"OR\",tblREGASSLookup[[#This Row],[Alloc]]=\"UT\",tblREGASSLookup[[#This Row],[Alloc]]=\"WYU\",tblREGASSLookup[[#This Row],[Alloc]]=\"WYP\",tblREGASSLookup[[#This Row],[Alloc]]=\"CA\",tblREGASSLookup[[#This Row],[Alloc]]=\"WA\"),\"SITUS\",tblREGASSLookup[[#This Row],[Alloc]])","v":"SITUS"},"P"]
[{"$f":"CONCATENATE(tblREGASSLookup[[#This Row],[Primary Account]],tblREGASSLookup[[#This Row],[Primary Name]],tblREGASSLookup[[#This Row],[Secondary Acct]],tblREGASSLookup[[#This Row],[Secondary  Name]],tblREGASSLookup[[#This Row],[Alloc4FUNC]])","v":"1823700OTH REGA-ENERGY WEST186815Reg Asset-Deer Creek Sale-CWIPSE"},1823700,"OTH REGA-ENERGY WEST",186815,"Reg Asset-Deer Creek Sale-CWIP","SE",null,{"$f":"IF(OR(tblREGASSLookup[[#This Row],[Alloc]]=\"IDU\",tblREGASSLookup[[#This Row],[Alloc]]=\"OR\",tblREGASSLookup[[#This Row],[Alloc]]=\"UT\",tblREGASSLookup[[#This Row],[Alloc]]=\"WYU\",tblREGASSLookup[[#This Row],[Alloc]]=\"WYP\",tblREGASSLookup[[#This Row],[Alloc]]=\"CA\",tblREGASSLookup[[#This Row],[Alloc]]=\"WA\"),\"SITUS\",tblREGASSLookup[[#This Row],[Alloc]])","v":"SE"},"P"]
[{"$f":"CONCATENATE(tblREGASSLookup[[#This Row],[Primary Account]],tblREGASSLookup[[#This Row],[Primary Name]],tblREGASSLookup[[#This Row],[Secondary Acct]],tblREGASSLookup[[#This Row],[Secondary  Name]],tblREGASSLookup[[#This Row],[Alloc4FUNC]])","v":"1823700OTH REGA-ENERGY WEST186816Contra RA-DCM PP&E-To Joint OwnersSE"},1823700,"OTH REGA-ENERGY WEST",186816,"Contra RA-DCM PP&E-To Joint Owners","SE",null,{"$f":"IF(OR(tblREGASSLookup[[#This Row],[Alloc]]=\"IDU\",tblREGASSLookup[[#This Row],[Alloc]]=\"OR\",tblREGASSLookup[[#This Row],[Alloc]]=\"UT\",tblREGASSLookup[[#This Row],[Alloc]]=\"WYU\",tblREGASSLookup[[#This Row],[Alloc]]=\"WYP\",tblREGASSLookup[[#This Row],[Alloc]]=\"CA\",tblREGASSLookup[[#This Row],[Alloc]]=\"WA\"),\"SITUS\",tblREGASSLookup[[#This Row],[Alloc]])","v":"SE"},"P"]
[{"$f":"CONCATENATE(tblREGASSLookup[[#This Row],[Primary Account]],tblREGASSLookup[[#This Row],[Primary Name]],tblREGASSLookup[[#This Row],[Secondary Acct]],tblREGASSLookup[[#This Row],[Secondary  Name]],tblREGASSLookup[[#This Row],[Alloc4FUNC]])","v":"1823700OTH REGA-ENERGY WEST186817Contra RA-DCM PP&E-Amortz & Oth AdjsSITUS"},1823700,"OTH REGA-ENERGY WEST",186817,"Contra RA-DCM PP&E-Amortz & Oth Adjs","SITUS",null,{"$f":"IF(OR(tblREGASSLookup[[#This Row],[Alloc]]=\"IDU\",tblREGASSLookup[[#This Row],[Alloc]]=\"OR\",tblREGASSLookup[[#This Row],[Alloc]]=\"UT\",tblREGASSLookup[[#This Row],[Alloc]]=\"WYU\",tblREGASSLookup[[#This Row],[Alloc]]=\"WYP\",tblREGASSLookup[[#This Row],[Alloc]]=\"CA\",tblREGASSLookup[[#This Row],[Alloc]]=\"WA\"),\"SITUS\",tblREGASSLookup[[#This Row],[Alloc]])","v":"SITUS"},"P"]
[{"$f":"CONCATENATE(tblREGASSLookup[[#This Row],[Primary Account]],tblREGASSLookup[[#This Row],[Primary Name]],tblREGASSLookup[[#This Row],[Secondary Acct]],tblREGASSLookup[[#This Row],[Secondary  Name]],tblREGASSLookup[[#This Row],[Alloc4FUNC]])","v":"1823700OTH REGA-ENERGY WEST186817Contra RA-DCM PP&E-Amortz & Oth AdjsSE"},1823700,"OTH REGA-ENERGY WEST",186817,"Contra RA-DCM PP&E-Amortz & Oth Adjs","SE",null,{"$f":"IF(OR(tblREGASSLookup[[#This Row],[Alloc]]=\"IDU\",tblREGASSLookup[[#This Row],[Alloc]]=\"OR\",tblREGASSLookup[[#This Row],[Alloc]]=\"UT\",tblREGASSLookup[[#This Row],[Alloc]]=\"WYU\",tblREGASSLookup[[#This Row],[Alloc]]=\"WYP\",tblREGASSLookup[[#This Row],[Alloc]]=\"CA\",tblREGASSLookup[[#This Row],[Alloc]]=\"WA\"),\"SITUS\",tblREGASSLookup[[#This Row],[Alloc]])","v":"SE"},"P"]
[{"$f":"CONCATENATE(tblREGASSLookup[[#This Row],[Primary Account]],tblREGASSLookup[[#This Row],[Primary Name]],tblREGASSLookup[[#This Row],[Secondary Acct]],tblREGASSLookup[[#This Row],[Secondary  Name]],tblREGASSLookup[[#This Row],[Alloc4FUNC]])","v":"1823700OTH REGA-ENERGY WEST186817Contra RA-DCM PP&E-Amortz & Oth AdjsSITUS"},1823700,"OTH REGA-ENERGY WEST",186817,"Contra RA-DCM PP&E-Amortz & Oth Adjs","SITUS",null,{"$f":"IF(OR(tblREGASSLookup[[#This Row],[Alloc]]=\"IDU\",tblREGASSLookup[[#This Row],[Alloc]]=\"OR\",tblREGASSLookup[[#This Row],[Alloc]]=\"UT\",tblREGASSLookup[[#This Row],[Alloc]]=\"WYU\",tblREGASSLookup[[#This Row],[Alloc]]=\"WYP\",tblREGASSLookup[[#This Row],[Alloc]]=\"CA\",tblREGASSLookup[[#This Row],[Alloc]]=\"WA\"),\"SITUS\",tblREGASSLookup[[#This Row],[Alloc]])","v":"SITUS"},"P"]
[{"$f":"CONCATENATE(tblREGASSLookup[[#This Row],[Primary Account]],tblREGASSLookup[[#This Row],[Primary Name]],tblREGASSLookup[[#This Row],[Secondary Acct]],tblREGASSLookup[[#This Row],[Secondary  Name]],tblREGASSLookup[[#This Row],[Alloc4FUNC]])","v":"1823700OTH REGA-ENERGY WEST186817Contra RA-DCM PP&E-Amortz & Oth AdjsSITUS"},1823700,"OTH REGA-ENERGY WEST",186817,"Contra RA-DCM PP&E-Amortz & Oth Adjs","SITUS",null,{"$f":"IF(OR(tblREGASSLookup[[#This Row],[Alloc]]=\"IDU\",tblREGASSLookup[[#This Row],[Alloc]]=\"OR\",tblREGASSLookup[[#This Row],[Alloc]]=\"UT\",tblREGASSLookup[[#This Row],[Alloc]]=\"WYU\",tblREGASSLookup[[#This Row],[Alloc]]=\"WYP\",tblREGASSLookup[[#This Row],[Alloc]]=\"CA\",tblREGASSLookup[[#This Row],[Alloc]]=\"WA\"),\"SITUS\",tblREGASSLookup[[#This Row],[Alloc]])","v":"SITUS"},"P"]
[{"$f":"CONCATENATE(tblREGASSLookup[[#This Row],[Primary Account]],tblREGASSLookup[[#This Row],[Primary Name]],tblREGASSLookup[[#This Row],[Secondary Acct]],tblREGASSLookup[[#This Row],[Secondary  Name]],tblREGASSLookup[[#This Row],[Alloc4FUNC]])","v":"1823700OTH REGA-ENERGY WEST186817Contra RA-DCM PP&E-Amortz & Oth AdjsSITUS"},1823700,"OTH REGA-ENERGY WEST",186817,"Contra RA-DCM PP&E-Amortz & Oth Adjs","SITUS",null,{"$f":"IF(OR(tblREGASSLookup[[#This Row],[Alloc]]=\"IDU\",tblREGASSLookup[[#This Row],[Alloc]]=\"OR\",tblREGASSLookup[[#This Row],[Alloc]]=\"UT\",tblREGASSLookup[[#This Row],[Alloc]]=\"WYU\",tblREGASSLookup[[#This Row],[Alloc]]=\"WYP\",tblREGASSLookup[[#This Row],[Alloc]]=\"CA\",tblREGASSLookup[[#This Row],[Alloc]]=\"WA\"),\"SITUS\",tblREGASSLookup[[#This Row],[Alloc]])","v":"SITUS"},"P"]
[{"$f":"CONCATENATE(tblREGASSLookup[[#This Row],[Primary Account]],tblREGASSLookup[[#This Row],[Primary Name]],tblREGASSLookup[[#This Row],[Secondary Acct]],tblREGASSLookup[[#This Row],[Secondary  Name]],tblREGASSLookup[[#This Row],[Alloc4FUNC]])","v":"1823700OTH REGA-ENERGY WEST186817Contra RA-DCM PP&E-Amortz & Oth AdjsSITUS"},1823700,"OTH REGA-ENERGY WEST",186817,"Contra RA-DCM PP&E-Amortz & Oth Adjs","SITUS",null,{"$f":"IF(OR(tblREGASSLookup[[#This Row],[Alloc]]=\"IDU\",tblREGASSLookup[[#This Row],[Alloc]]=\"OR\",tblREGASSLookup[[#This Row],[Alloc]]=\"UT\",tblREGASSLookup[[#This Row],[Alloc]]=\"WYU\",tblREGASSLookup[[#This Row],[Alloc]]=\"WYP\",tblREGASSLookup[[#This Row],[Alloc]]=\"CA\",tblREGASSLookup[[#This Row],[Alloc]]=\"WA\"),\"SITUS\",tblREGASSLookup[[#This Row],[Alloc]])","v":"SITUS"},"P"]
[{"$f":"CONCATENATE(tblREGASSLookup[[#This Row],[Primary Account]],tblREGASSLookup[[#This Row],[Primary Name]],tblREGASSLookup[[#This Row],[Secondary Acct]],tblREGASSLookup[[#This Row],[Secondary  Name]],tblREGASSLookup[[#This Row],[Alloc4FUNC]])","v":"1823700OTH REGA-ENERGY WEST186820Reg Asset-Deer Creek Mine AROSE"},1823700,"OTH REGA-ENERGY WEST",186820,"Reg Asset-Deer Creek Mine ARO","SE",null,{"$f":"IF(OR(tblREGASSLookup[[#This Row],[Alloc]]=\"IDU\",tblREGASSLookup[[#This Row],[Alloc]]=\"OR\",tblREGASSLookup[[#This Row],[Alloc]]=\"UT\",tblREGASSLookup[[#This Row],[Alloc]]=\"WYU\",tblREGASSLookup[[#This Row],[Alloc]]=\"WYP\",tblREGASSLookup[[#This Row],[Alloc]]=\"CA\",tblREGASSLookup[[#This Row],[Alloc]]=\"WA\"),\"SITUS\",tblREGASSLookup[[#This Row],[Alloc]])","v":"SE"},"P"]
[{"$f":"CONCATENATE(tblREGASSLookup[[#This Row],[Primary Account]],tblREGASSLookup[[#This Row],[Primary Name]],tblREGASSLookup[[#This Row],[Secondary Acct]],tblREGASSLookup[[#This Row],[Secondary  Name]],tblREGASSLookup[[#This Row],[Alloc4FUNC]])","v":"1823700OTH REGA-ENERGY WEST186825Reg Asset-Deer Creek Mine M&SSE"},1823700,"OTH REGA-ENERGY WEST",186825,"Reg Asset-Deer Creek Mine M&S","SE",null,{"$f":"IF(OR(tblREGASSLookup[[#This Row],[Alloc]]=\"IDU\",tblREGASSLookup[[#This Row],[Alloc]]=\"OR\",tblREGASSLookup[[#This Row],[Alloc]]=\"UT\",tblREGASSLookup[[#This Row],[Alloc]]=\"WYU\",tblREGASSLookup[[#This Row],[Alloc]]=\"WYP\",tblREGASSLookup[[#This Row],[Alloc]]=\"CA\",tblREGASSLookup[[#This Row],[Alloc]]=\"WA\"),\"SITUS\",tblREGASSLookup[[#This Row],[Alloc]])","v":"SE"},"P"]
[{"$f":"CONCATENATE(tblREGASSLookup[[#This Row],[Primary Account]],tblREGASSLookup[[#This Row],[Primary Name]],tblREGASSLookup[[#This Row],[Secondary Acct]],tblREGASSLookup[[#This Row],[Secondary  Name]],tblREGASSLookup[[#This Row],[Alloc4FUNC]])","v":"1823700OTH REGA-ENERGY WEST186826Reg Asset-Deer Creek-Prepaid RoyaltiesSE"},1823700,"OTH REGA-ENERGY WEST",186826,"Reg Asset-Deer Creek-Prepaid Royalties","SE",null,{"$f":"IF(OR(tblREGASSLookup[[#This Row],[Alloc]]=\"IDU\",tblREGASSLookup[[#This Row],[Alloc]]=\"OR\",tblREGASSLookup[[#This Row],[Alloc]]=\"UT\",tblREGASSLookup[[#This Row],[Alloc]]=\"WYU\",tblREGASSLookup[[#This Row],[Alloc]]=\"WYP\",tblREGASSLookup[[#This Row],[Alloc]]=\"CA\",tblREGASSLookup[[#This Row],[Alloc]]=\"WA\"),\"SITUS\",tblREGASSLookup[[#This Row],[Alloc]])","v":"SE"},"P"]
[{"$f":"CONCATENATE(tblREGASSLookup[[#This Row],[Primary Account]],tblREGASSLookup[[#This Row],[Primary Name]],tblREGASSLookup[[#This Row],[Secondary Acct]],tblREGASSLookup[[#This Row],[Secondary  Name]],tblREGASSLookup[[#This Row],[Alloc4FUNC]])","v":"1823700OTH REGA-ENERGY WEST186828Reg Asset-Deer Creek-Recovery RoyaltiesSE"},1823700,"OTH REGA-ENERGY WEST",186828,"Reg Asset-Deer Creek-Recovery Royalties","SE",null,{"$f":"IF(OR(tblREGASSLookup[[#This Row],[Alloc]]=\"IDU\",tblREGASSLookup[[#This Row],[Alloc]]=\"OR\",tblREGASSLookup[[#This Row],[Alloc]]=\"UT\",tblREGASSLookup[[#This Row],[Alloc]]=\"WYU\",tblREGASSLookup[[#This Row],[Alloc]]=\"WYP\",tblREGASSLookup[[#This Row],[Alloc]]=\"CA\",tblREGASSLookup[[#This Row],[Alloc]]=\"WA\"),\"SITUS\",tblREGASSLookup[[#This Row],[Alloc]])","v":"SE"},"P"]
[{"$f":"CONCATENATE(tblREGASSLookup[[#This Row],[Primary Account]],tblREGASSLookup[[#This Row],[Primary Name]],tblREGASSLookup[[#This Row],[Secondary Acct]],tblREGASSLookup[[#This Row],[Secondary  Name]],tblREGASSLookup[[#This Row],[Alloc4FUNC]])","v":"1823700OTH REGA-ENERGY WEST186830Reg Asset-Deer Creek-Union Suppl BenSE"},1823700,"OTH REGA-ENERGY WEST",186830,"Reg Asset-Deer Creek-Union Suppl Ben","SE",null,{"$f":"IF(OR(tblREGASSLookup[[#This Row],[Alloc]]=\"IDU\",tblREGASSLookup[[#This Row],[Alloc]]=\"OR\",tblREGASSLookup[[#This Row],[Alloc]]=\"UT\",tblREGASSLookup[[#This Row],[Alloc]]=\"WYU\",tblREGASSLookup[[#This Row],[Alloc]]=\"WYP\",tblREGASSLookup[[#This Row],[Alloc]]=\"CA\",tblREGASSLookup[[#This Row],[Alloc]]=\"WA\"),\"SITUS\",tblREGASSLookup[[#This Row],[Alloc]])","v":"SE"},"P"]
[{"$f":"CONCATENATE(tblREGASSLookup[[#This Row],[Primary Account]],tblREGASSLookup[[#This Row],[Primary Name]],tblREGASSLookup[[#This Row],[Secondary Acct]],tblREGASSLookup[[#This Row],[Secondary  Name]],tblREGASSLookup[[#This Row],[Alloc4FUNC]])","v":"1823700OTH REGA-ENERGY WEST186833Reg Asset-Deer Creek-Nonunion SeveranceSE"},1823700,"OTH REGA-ENERGY WEST",186833,"Reg Asset-Deer Creek-Nonunion Severance","SE",null,{"$f":"IF(OR(tblREGASSLookup[[#This Row],[Alloc]]=\"IDU\",tblREGASSLookup[[#This Row],[Alloc]]=\"OR\",tblREGASSLookup[[#This Row],[Alloc]]=\"UT\",tblREGASSLookup[[#This Row],[Alloc]]=\"WYU\",tblREGASSLookup[[#This Row],[Alloc]]=\"WYP\",tblREGASSLookup[[#This Row],[Alloc]]=\"CA\",tblREGASSLookup[[#This Row],[Alloc]]=\"WA\"),\"SITUS\",tblREGASSLookup[[#This Row],[Alloc]])","v":"SE"},"P"]
[{"$f":"CONCATENATE(tblREGASSLookup[[#This Row],[Primary Account]],tblREGASSLookup[[#This Row],[Primary Name]],tblREGASSLookup[[#This Row],[Secondary Acct]],tblREGASSLookup[[#This Row],[Secondary  Name]],tblREGASSLookup[[#This Row],[Alloc4FUNC]])","v":"1823700OTH REGA-ENERGY WEST186835Reg Asset-Deer Creek-Misc Closure CostsSE"},1823700,"OTH REGA-ENERGY WEST",186835,"Reg Asset-Deer Creek-Misc Closure Costs","SE",null,{"$f":"IF(OR(tblREGASSLookup[[#This Row],[Alloc]]=\"IDU\",tblREGASSLookup[[#This Row],[Alloc]]=\"OR\",tblREGASSLookup[[#This Row],[Alloc]]=\"UT\",tblREGASSLookup[[#This Row],[Alloc]]=\"WYU\",tblREGASSLookup[[#This Row],[Alloc]]=\"WYP\",tblREGASSLookup[[#This Row],[Alloc]]=\"CA\",tblREGASSLookup[[#This Row],[Alloc]]=\"WA\"),\"SITUS\",tblREGASSLookup[[#This Row],[Alloc]])","v":"SE"},"P"]
[{"$f":"CONCATENATE(tblREGASSLookup[[#This Row],[Primary Account]],tblREGASSLookup[[#This Row],[Primary Name]],tblREGASSLookup[[#This Row],[Secondary Acct]],tblREGASSLookup[[#This Row],[Secondary  Name]],tblREGASSLookup[[#This Row],[Alloc4FUNC]])","v":"1823700OTH REGA-ENERGY WEST186836Contra RA-DCM Closure-To Joint OwnersSE"},1823700,"OTH REGA-ENERGY WEST",186836,"Contra RA-DCM Closure-To Joint Owners","SE",null,{"$f":"IF(OR(tblREGASSLookup[[#This Row],[Alloc]]=\"IDU\",tblREGASSLookup[[#This Row],[Alloc]]=\"OR\",tblREGASSLookup[[#This Row],[Alloc]]=\"UT\",tblREGASSLookup[[#This Row],[Alloc]]=\"WYU\",tblREGASSLookup[[#This Row],[Alloc]]=\"WYP\",tblREGASSLookup[[#This Row],[Alloc]]=\"CA\",tblREGASSLookup[[#This Row],[Alloc]]=\"WA\"),\"SITUS\",tblREGASSLookup[[#This Row],[Alloc]])","v":"SE"},"P"]
[{"$f":"CONCATENATE(tblREGASSLookup[[#This Row],[Primary Account]],tblREGASSLookup[[#This Row],[Primary Name]],tblREGASSLookup[[#This Row],[Secondary Acct]],tblREGASSLookup[[#This Row],[Secondary  Name]],tblREGASSLookup[[#This Row],[Alloc4FUNC]])","v":"1823700OTH REGA-ENERGY WEST186837Contra RA-DCM Closure-Amortz & Oth AdjsSITUS"},1823700,"OTH REGA-ENERGY WEST",186837,"Contra RA-DCM Closure-Amortz & Oth Adjs","SITUS",null,{"$f":"IF(OR(tblREGASSLookup[[#This Row],[Alloc]]=\"IDU\",tblREGASSLookup[[#This Row],[Alloc]]=\"OR\",tblREGASSLookup[[#This Row],[Alloc]]=\"UT\",tblREGASSLookup[[#This Row],[Alloc]]=\"WYU\",tblREGASSLookup[[#This Row],[Alloc]]=\"WYP\",tblREGASSLookup[[#This Row],[Alloc]]=\"CA\",tblREGASSLookup[[#This Row],[Alloc]]=\"WA\"),\"SITUS\",tblREGASSLookup[[#This Row],[Alloc]])","v":"SITUS"},"P"]
[{"$f":"CONCATENATE(tblREGASSLookup[[#This Row],[Primary Account]],tblREGASSLookup[[#This Row],[Primary Name]],tblREGASSLookup[[#This Row],[Secondary Acct]],tblREGASSLookup[[#This Row],[Secondary  Name]],tblREGASSLookup[[#This Row],[Alloc4FUNC]])","v":"1823700OTH REGA-ENERGY WEST186837Contra RA-DCM Closure-Amortz & Oth AdjsSITUS"},1823700,"OTH REGA-ENERGY WEST",186837,"Contra RA-DCM Closure-Amortz & Oth Adjs","SITUS",null,{"$f":"IF(OR(tblREGASSLookup[[#This Row],[Alloc]]=\"IDU\",tblREGASSLookup[[#This Row],[Alloc]]=\"OR\",tblREGASSLookup[[#This Row],[Alloc]]=\"UT\",tblREGASSLookup[[#This Row],[Alloc]]=\"WYU\",tblREGASSLookup[[#This Row],[Alloc]]=\"WYP\",tblREGASSLookup[[#This Row],[Alloc]]=\"CA\",tblREGASSLookup[[#This Row],[Alloc]]=\"WA\"),\"SITUS\",tblREGASSLookup[[#This Row],[Alloc]])","v":"SITUS"},"P"]
[{"$f":"CONCATENATE(tblREGASSLookup[[#This Row],[Primary Account]],tblREGASSLookup[[#This Row],[Primary Name]],tblREGASSLookup[[#This Row],[Secondary Acct]],tblREGASSLookup[[#This Row],[Secondary  Name]],tblREGASSLookup[[#This Row],[Alloc4FUNC]])","v":"1823700OTH REGA-ENERGY WEST186839Reg Asset-Deer Creek-Tax Flow-ThroughSE"},1823700,"OTH REGA-ENERGY WEST",186839,"Reg Asset-Deer Creek-Tax Flow-Through","SE",null,{"$f":"IF(OR(tblREGASSLookup[[#This Row],[Alloc]]=\"IDU\",tblREGASSLookup[[#This Row],[Alloc]]=\"OR\",tblREGASSLookup[[#This Row],[Alloc]]=\"UT\",tblREGASSLookup[[#This Row],[Alloc]]=\"WYU\",tblREGASSLookup[[#This Row],[Alloc]]=\"WYP\",tblREGASSLookup[[#This Row],[Alloc]]=\"CA\",tblREGASSLookup[[#This Row],[Alloc]]=\"WA\"),\"SITUS\",tblREGASSLookup[[#This Row],[Alloc]])","v":"SE"},"P"]
[{"$f":"CONCATENATE(tblREGASSLookup[[#This Row],[Primary Account]],tblREGASSLookup[[#This Row],[Primary Name]],tblREGASSLookup[[#This Row],[Secondary Acct]],tblREGASSLookup[[#This Row],[Secondary  Name]],tblREGASSLookup[[#This Row],[Alloc4FUNC]])","v":"1823700OTH REGA-ENERGY WEST186841Contra Reg Asset-Deer Creek Aband-CASITUS"},1823700,"OTH REGA-ENERGY WEST",186841,"Contra Reg Asset-Deer Creek Aband-CA","SITUS",null,{"$f":"IF(OR(tblREGASSLookup[[#This Row],[Alloc]]=\"IDU\",tblREGASSLookup[[#This Row],[Alloc]]=\"OR\",tblREGASSLookup[[#This Row],[Alloc]]=\"UT\",tblREGASSLookup[[#This Row],[Alloc]]=\"WYU\",tblREGASSLookup[[#This Row],[Alloc]]=\"WYP\",tblREGASSLookup[[#This Row],[Alloc]]=\"CA\",tblREGASSLookup[[#This Row],[Alloc]]=\"WA\"),\"SITUS\",tblREGASSLookup[[#This Row],[Alloc]])","v":"SITUS"},"P"]
[{"$f":"CONCATENATE(tblREGASSLookup[[#This Row],[Primary Account]],tblREGASSLookup[[#This Row],[Primary Name]],tblREGASSLookup[[#This Row],[Secondary Acct]],tblREGASSLookup[[#This Row],[Secondary  Name]],tblREGASSLookup[[#This Row],[Alloc4FUNC]])","v":"1823700OTH REGA-ENERGY WEST186844Contra Reg Asset-Deer Creek Aband-UTSITUS"},1823700,"OTH REGA-ENERGY WEST",186844,"Contra Reg Asset-Deer Creek Aband-UT","SITUS",null,{"$f":"IF(OR(tblREGASSLookup[[#This Row],[Alloc]]=\"IDU\",tblREGASSLookup[[#This Row],[Alloc]]=\"OR\",tblREGASSLookup[[#This Row],[Alloc]]=\"UT\",tblREGASSLookup[[#This Row],[Alloc]]=\"WYU\",tblREGASSLookup[[#This Row],[Alloc]]=\"WYP\",tblREGASSLookup[[#This Row],[Alloc]]=\"CA\",tblREGASSLookup[[#This Row],[Alloc]]=\"WA\"),\"SITUS\",tblREGASSLookup[[#This Row],[Alloc]])","v":"SITUS"},"P"]
[{"$f":"CONCATENATE(tblREGASSLookup[[#This Row],[Primary Account]],tblREGASSLookup[[#This Row],[Primary Name]],tblREGASSLookup[[#This Row],[Secondary Acct]],tblREGASSLookup[[#This Row],[Secondary  Name]],tblREGASSLookup[[#This Row],[Alloc4FUNC]])","v":"1823700OTH REGA-ENERGY WEST186845Contra Reg Asset-Deer Creek Aband-WASITUS"},1823700,"OTH REGA-ENERGY WEST",186845,"Contra Reg Asset-Deer Creek Aband-WA","SITUS",null,{"$f":"IF(OR(tblREGASSLookup[[#This Row],[Alloc]]=\"IDU\",tblREGASSLookup[[#This Row],[Alloc]]=\"OR\",tblREGASSLookup[[#This Row],[Alloc]]=\"UT\",tblREGASSLookup[[#This Row],[Alloc]]=\"WYU\",tblREGASSLookup[[#This Row],[Alloc]]=\"WYP\",tblREGASSLookup[[#This Row],[Alloc]]=\"CA\",tblREGASSLookup[[#This Row],[Alloc]]=\"WA\"),\"SITUS\",tblREGASSLookup[[#This Row],[Alloc]])","v":"SITUS"},"P"]
[{"$f":"CONCATENATE(tblREGASSLookup[[#This Row],[Primary Account]],tblREGASSLookup[[#This Row],[Primary Name]],tblREGASSLookup[[#This Row],[Secondary Acct]],tblREGASSLookup[[#This Row],[Secondary  Name]],tblREGASSLookup[[#This Row],[Alloc4FUNC]])","v":"1823700OTH REGA-ENERGY WEST186846Contra Reg Asset-Deer Creek Aband-WYSITUS"},1823700,"OTH REGA-ENERGY WEST",186846,"Contra Reg Asset-Deer Creek Aband-WY","SITUS",null,{"$f":"IF(OR(tblREGASSLookup[[#This Row],[Alloc]]=\"IDU\",tblREGASSLookup[[#This Row],[Alloc]]=\"OR\",tblREGASSLookup[[#This Row],[Alloc]]=\"UT\",tblREGASSLookup[[#This Row],[Alloc]]=\"WYU\",tblREGASSLookup[[#This Row],[Alloc]]=\"WYP\",tblREGASSLookup[[#This Row],[Alloc]]=\"CA\",tblREGASSLookup[[#This Row],[Alloc]]=\"WA\"),\"SITUS\",tblREGASSLookup[[#This Row],[Alloc]])","v":"SITUS"},"P"]
[{"$f":"CONCATENATE(tblREGASSLookup[[#This Row],[Primary Account]],tblREGASSLookup[[#This Row],[Primary Name]],tblREGASSLookup[[#This Row],[Secondary Acct]],tblREGASSLookup[[#This Row],[Secondary  Name]],tblREGASSLookup[[#This Row],[Alloc4FUNC]])","v":"1823700OTH REGA-ENERGY WEST186851Contra Reg Asset-Deer Creek Closure-CASITUS"},1823700,"OTH REGA-ENERGY WEST",186851,"Contra Reg Asset-Deer Creek Closure-CA","SITUS",null,{"$f":"IF(OR(tblREGASSLookup[[#This Row],[Alloc]]=\"IDU\",tblREGASSLookup[[#This Row],[Alloc]]=\"OR\",tblREGASSLookup[[#This Row],[Alloc]]=\"UT\",tblREGASSLookup[[#This Row],[Alloc]]=\"WYU\",tblREGASSLookup[[#This Row],[Alloc]]=\"WYP\",tblREGASSLookup[[#This Row],[Alloc]]=\"CA\",tblREGASSLookup[[#This Row],[Alloc]]=\"WA\"),\"SITUS\",tblREGASSLookup[[#This Row],[Alloc]])","v":"SITUS"},"P"]
[{"$f":"CONCATENATE(tblREGASSLookup[[#This Row],[Primary Account]],tblREGASSLookup[[#This Row],[Primary Name]],tblREGASSLookup[[#This Row],[Secondary Acct]],tblREGASSLookup[[#This Row],[Secondary  Name]],tblREGASSLookup[[#This Row],[Alloc4FUNC]])","v":"1823700OTH REGA-ENERGY WEST186852CONTRA REG ASSET-DEER CREEK CLOSURE-IDSITUS"},1823700,"OTH REGA-ENERGY WEST",186852,"CONTRA REG ASSET-DEER CREEK CLOSURE-ID","SITUS",null,{"$f":"IF(OR(tblREGASSLookup[[#This Row],[Alloc]]=\"IDU\",tblREGASSLookup[[#This Row],[Alloc]]=\"OR\",tblREGASSLookup[[#This Row],[Alloc]]=\"UT\",tblREGASSLookup[[#This Row],[Alloc]]=\"WYU\",tblREGASSLookup[[#This Row],[Alloc]]=\"WYP\",tblREGASSLookup[[#This Row],[Alloc]]=\"CA\",tblREGASSLookup[[#This Row],[Alloc]]=\"WA\"),\"SITUS\",tblREGASSLookup[[#This Row],[Alloc]])","v":"SITUS"},"P"]
[{"$f":"CONCATENATE(tblREGASSLookup[[#This Row],[Primary Account]],tblREGASSLookup[[#This Row],[Primary Name]],tblREGASSLookup[[#This Row],[Secondary Acct]],tblREGASSLookup[[#This Row],[Secondary  Name]],tblREGASSLookup[[#This Row],[Alloc4FUNC]])","v":"1823700OTH REGA-ENERGY WEST186853Contra Reg Asset-Deer Creek Closure-ORSITUS"},1823700,"OTH REGA-ENERGY WEST",186853,"Contra Reg Asset-Deer Creek Closure-OR","SITUS",null,{"$f":"IF(OR(tblREGASSLookup[[#This Row],[Alloc]]=\"IDU\",tblREGASSLookup[[#This Row],[Alloc]]=\"OR\",tblREGASSLookup[[#This Row],[Alloc]]=\"UT\",tblREGASSLookup[[#This Row],[Alloc]]=\"WYU\",tblREGASSLookup[[#This Row],[Alloc]]=\"WYP\",tblREGASSLookup[[#This Row],[Alloc]]=\"CA\",tblREGASSLookup[[#This Row],[Alloc]]=\"WA\"),\"SITUS\",tblREGASSLookup[[#This Row],[Alloc]])","v":"SITUS"},"P"]
[{"$f":"CONCATENATE(tblREGASSLookup[[#This Row],[Primary Account]],tblREGASSLookup[[#This Row],[Primary Name]],tblREGASSLookup[[#This Row],[Secondary Acct]],tblREGASSLookup[[#This Row],[Secondary  Name]],tblREGASSLookup[[#This Row],[Alloc4FUNC]])","v":"1823700OTH REGA-ENERGY WEST186854CONTRA REG ASSET-DEER CREEK CLOSURE-UTSITUS"},1823700,"OTH REGA-ENERGY WEST",186854,"CONTRA REG ASSET-DEER CREEK CLOSURE-UT","SITUS",null,{"$f":"IF(OR(tblREGASSLookup[[#This Row],[Alloc]]=\"IDU\",tblREGASSLookup[[#This Row],[Alloc]]=\"OR\",tblREGASSLookup[[#This Row],[Alloc]]=\"UT\",tblREGASSLookup[[#This Row],[Alloc]]=\"WYU\",tblREGASSLookup[[#This Row],[Alloc]]=\"WYP\",tblREGASSLookup[[#This Row],[Alloc]]=\"CA\",tblREGASSLookup[[#This Row],[Alloc]]=\"WA\"),\"SITUS\",tblREGASSLookup[[#This Row],[Alloc]])","v":"SITUS"},"P"]
[{"$f":"CONCATENATE(tblREGASSLookup[[#This Row],[Primary Account]],tblREGASSLookup[[#This Row],[Primary Name]],tblREGASSLookup[[#This Row],[Secondary Acct]],tblREGASSLookup[[#This Row],[Secondary  Name]],tblREGASSLookup[[#This Row],[Alloc4FUNC]])","v":"1823700OTH REGA-ENERGY WEST186855Contra Reg Asset-Deer Creek Closure-WASITUS"},1823700,"OTH REGA-ENERGY WEST",186855,"Contra Reg Asset-Deer Creek Closure-WA","SITUS",null,{"$f":"IF(OR(tblREGASSLookup[[#This Row],[Alloc]]=\"IDU\",tblREGASSLookup[[#This Row],[Alloc]]=\"OR\",tblREGASSLookup[[#This Row],[Alloc]]=\"UT\",tblREGASSLookup[[#This Row],[Alloc]]=\"WYU\",tblREGASSLookup[[#This Row],[Alloc]]=\"WYP\",tblREGASSLookup[[#This Row],[Alloc]]=\"CA\",tblREGASSLookup[[#This Row],[Alloc]]=\"WA\"),\"SITUS\",tblREGASSLookup[[#This Row],[Alloc]])","v":"SITUS"},"P"]
[{"$f":"CONCATENATE(tblREGASSLookup[[#This Row],[Primary Account]],tblREGASSLookup[[#This Row],[Primary Name]],tblREGASSLookup[[#This Row],[Secondary Acct]],tblREGASSLookup[[#This Row],[Secondary  Name]],tblREGASSLookup[[#This Row],[Alloc4FUNC]])","v":"1823700OTH REGA-ENERGY WEST186856CONTRA REG ASSET-DEER CREEK CLOSURE-WYSITUS"},1823700,"OTH REGA-ENERGY WEST",186856,"CONTRA REG ASSET-DEER CREEK CLOSURE-WY","SITUS",null,{"$f":"IF(OR(tblREGASSLookup[[#This Row],[Alloc]]=\"IDU\",tblREGASSLookup[[#This Row],[Alloc]]=\"OR\",tblREGASSLookup[[#This Row],[Alloc]]=\"UT\",tblREGASSLookup[[#This Row],[Alloc]]=\"WYU\",tblREGASSLookup[[#This Row],[Alloc]]=\"WYP\",tblREGASSLookup[[#This Row],[Alloc]]=\"CA\",tblREGASSLookup[[#This Row],[Alloc]]=\"WA\"),\"SITUS\",tblREGASSLookup[[#This Row],[Alloc]])","v":"SITUS"},"P"]
[{"$f":"CONCATENATE(tblREGASSLookup[[#This Row],[Primary Account]],tblREGASSLookup[[#This Row],[Primary Name]],tblREGASSLookup[[#This Row],[Secondary Acct]],tblREGASSLookup[[#This Row],[Secondary  Name]],tblREGASSLookup[[#This Row],[Alloc4FUNC]])","v":"1823700OTH REGA-ENERGY WEST186860RA-Deer Creek-ROR Offset-Assets SoldSITUS"},1823700,"OTH REGA-ENERGY WEST",186860,"RA-Deer Creek-ROR Offset-Assets Sold","SITUS",null,{"$f":"IF(OR(tblREGASSLookup[[#This Row],[Alloc]]=\"IDU\",tblREGASSLookup[[#This Row],[Alloc]]=\"OR\",tblREGASSLookup[[#This Row],[Alloc]]=\"UT\",tblREGASSLookup[[#This Row],[Alloc]]=\"WYU\",tblREGASSLookup[[#This Row],[Alloc]]=\"WYP\",tblREGASSLookup[[#This Row],[Alloc]]=\"CA\",tblREGASSLookup[[#This Row],[Alloc]]=\"WA\"),\"SITUS\",tblREGASSLookup[[#This Row],[Alloc]])","v":"SITUS"},"P"]
[{"$f":"CONCATENATE(tblREGASSLookup[[#This Row],[Primary Account]],tblREGASSLookup[[#This Row],[Primary Name]],tblREGASSLookup[[#This Row],[Secondary Acct]],tblREGASSLookup[[#This Row],[Secondary  Name]],tblREGASSLookup[[#This Row],[Alloc4FUNC]])","v":"1823700OTH REGA-ENERGY WEST186860RA-Deer Creek-ROR Offset-Assets SoldSITUS"},1823700,"OTH REGA-ENERGY WEST",186860,"RA-Deer Creek-ROR Offset-Assets Sold","SITUS",null,{"$f":"IF(OR(tblREGASSLookup[[#This Row],[Alloc]]=\"IDU\",tblREGASSLookup[[#This Row],[Alloc]]=\"OR\",tblREGASSLookup[[#This Row],[Alloc]]=\"UT\",tblREGASSLookup[[#This Row],[Alloc]]=\"WYU\",tblREGASSLookup[[#This Row],[Alloc]]=\"WYP\",tblREGASSLookup[[#This Row],[Alloc]]=\"CA\",tblREGASSLookup[[#This Row],[Alloc]]=\"WA\"),\"SITUS\",tblREGASSLookup[[#This Row],[Alloc]])","v":"SITUS"},"P"]
[{"$f":"CONCATENATE(tblREGASSLookup[[#This Row],[Primary Account]],tblREGASSLookup[[#This Row],[Primary Name]],tblREGASSLookup[[#This Row],[Secondary Acct]],tblREGASSLookup[[#This Row],[Secondary  Name]],tblREGASSLookup[[#This Row],[Alloc4FUNC]])","v":"1823700OTH REGA-ENERGY WEST186861RA-Deer Creek-ROR Offset-Fuel InventorySITUS"},1823700,"OTH REGA-ENERGY WEST",186861,"RA-Deer Creek-ROR Offset-Fuel Inventory","SITUS",null,{"$f":"IF(OR(tblREGASSLookup[[#This Row],[Alloc]]=\"IDU\",tblREGASSLookup[[#This Row],[Alloc]]=\"OR\",tblREGASSLookup[[#This Row],[Alloc]]=\"UT\",tblREGASSLookup[[#This Row],[Alloc]]=\"WYU\",tblREGASSLookup[[#This Row],[Alloc]]=\"WYP\",tblREGASSLookup[[#This Row],[Alloc]]=\"CA\",tblREGASSLookup[[#This Row],[Alloc]]=\"WA\"),\"SITUS\",tblREGASSLookup[[#This Row],[Alloc]])","v":"SITUS"},"P"]
[{"$f":"CONCATENATE(tblREGASSLookup[[#This Row],[Primary Account]],tblREGASSLookup[[#This Row],[Primary Name]],tblREGASSLookup[[#This Row],[Secondary Acct]],tblREGASSLookup[[#This Row],[Secondary  Name]],tblREGASSLookup[[#This Row],[Alloc4FUNC]])","v":"1823700OTH REGA-ENERGY WEST186861RA-Deer Creek-ROR Offset-Fuel InventorySITUS"},1823700,"OTH REGA-ENERGY WEST",186861,"RA-Deer Creek-ROR Offset-Fuel Inventory","SITUS",null,{"$f":"IF(OR(tblREGASSLookup[[#This Row],[Alloc]]=\"IDU\",tblREGASSLookup[[#This Row],[Alloc]]=\"OR\",tblREGASSLookup[[#This Row],[Alloc]]=\"UT\",tblREGASSLookup[[#This Row],[Alloc]]=\"WYU\",tblREGASSLookup[[#This Row],[Alloc]]=\"WYP\",tblREGASSLookup[[#This Row],[Alloc]]=\"CA\",tblREGASSLookup[[#This Row],[Alloc]]=\"WA\"),\"SITUS\",tblREGASSLookup[[#This Row],[Alloc]])","v":"SITUS"},"P"]
[{"$f":"CONCATENATE(tblREGASSLookup[[#This Row],[Primary Account]],tblREGASSLookup[[#This Row],[Primary Name]],tblREGASSLookup[[#This Row],[Secondary Acct]],tblREGASSLookup[[#This Row],[Secondary  Name]],tblREGASSLookup[[#This Row],[Alloc4FUNC]])","v":"1823700OTH REGA-ENERGY WEST186861RA-Deer Creek-ROR Offset-Fuel InventorySITUS"},1823700,"OTH REGA-ENERGY WEST",186861,"RA-Deer Creek-ROR Offset-Fuel Inventory","SITUS",null,{"$f":"IF(OR(tblREGASSLookup[[#This Row],[Alloc]]=\"IDU\",tblREGASSLookup[[#This Row],[Alloc]]=\"OR\",tblREGASSLookup[[#This Row],[Alloc]]=\"UT\",tblREGASSLookup[[#This Row],[Alloc]]=\"WYU\",tblREGASSLookup[[#This Row],[Alloc]]=\"WYP\",tblREGASSLookup[[#This Row],[Alloc]]=\"CA\",tblREGASSLookup[[#This Row],[Alloc]]=\"WA\"),\"SITUS\",tblREGASSLookup[[#This Row],[Alloc]])","v":"SITUS"},"P"]
[{"$f":"CONCATENATE(tblREGASSLookup[[#This Row],[Primary Account]],tblREGASSLookup[[#This Row],[Primary Name]],tblREGASSLookup[[#This Row],[Secondary Acct]],tblREGASSLookup[[#This Row],[Secondary  Name]],tblREGASSLookup[[#This Row],[Alloc4FUNC]])","v":"1823700OTH REGA-ENERGY WEST186862RA-Deer Creek-ROR Offset-Fossil RockSITUS"},1823700,"OTH REGA-ENERGY WEST",186862,"RA-Deer Creek-ROR Offset-Fossil Rock","SITUS",null,{"$f":"IF(OR(tblREGASSLookup[[#This Row],[Alloc]]=\"IDU\",tblREGASSLookup[[#This Row],[Alloc]]=\"OR\",tblREGASSLookup[[#This Row],[Alloc]]=\"UT\",tblREGASSLookup[[#This Row],[Alloc]]=\"WYU\",tblREGASSLookup[[#This Row],[Alloc]]=\"WYP\",tblREGASSLookup[[#This Row],[Alloc]]=\"CA\",tblREGASSLookup[[#This Row],[Alloc]]=\"WA\"),\"SITUS\",tblREGASSLookup[[#This Row],[Alloc]])","v":"SITUS"},"P"]
[{"$f":"CONCATENATE(tblREGASSLookup[[#This Row],[Primary Account]],tblREGASSLookup[[#This Row],[Primary Name]],tblREGASSLookup[[#This Row],[Secondary Acct]],tblREGASSLookup[[#This Row],[Secondary  Name]],tblREGASSLookup[[#This Row],[Alloc4FUNC]])","v":"1823700OTH REGA-ENERGY WEST186862RA-Deer Creek-ROR Offset-Fossil RockSITUS"},1823700,"OTH REGA-ENERGY WEST",186862,"RA-Deer Creek-ROR Offset-Fossil Rock","SITUS",null,{"$f":"IF(OR(tblREGASSLookup[[#This Row],[Alloc]]=\"IDU\",tblREGASSLookup[[#This Row],[Alloc]]=\"OR\",tblREGASSLookup[[#This Row],[Alloc]]=\"UT\",tblREGASSLookup[[#This Row],[Alloc]]=\"WYU\",tblREGASSLookup[[#This Row],[Alloc]]=\"WYP\",tblREGASSLookup[[#This Row],[Alloc]]=\"CA\",tblREGASSLookup[[#This Row],[Alloc]]=\"WA\"),\"SITUS\",tblREGASSLookup[[#This Row],[Alloc]])","v":"SITUS"},"P"]
[{"$f":"CONCATENATE(tblREGASSLookup[[#This Row],[Primary Account]],tblREGASSLookup[[#This Row],[Primary Name]],tblREGASSLookup[[#This Row],[Secondary Acct]],tblREGASSLookup[[#This Row],[Secondary  Name]],tblREGASSLookup[[#This Row],[Alloc4FUNC]])","v":"1823700OTH REGA-ENERGY WEST186863RA-Deer Creek-ROR Offset-Note Intrst-IDSITUS"},1823700,"OTH REGA-ENERGY WEST",186863,"RA-Deer Creek-ROR Offset-Note Intrst-ID","SITUS",null,{"$f":"IF(OR(tblREGASSLookup[[#This Row],[Alloc]]=\"IDU\",tblREGASSLookup[[#This Row],[Alloc]]=\"OR\",tblREGASSLookup[[#This Row],[Alloc]]=\"UT\",tblREGASSLookup[[#This Row],[Alloc]]=\"WYU\",tblREGASSLookup[[#This Row],[Alloc]]=\"WYP\",tblREGASSLookup[[#This Row],[Alloc]]=\"CA\",tblREGASSLookup[[#This Row],[Alloc]]=\"WA\"),\"SITUS\",tblREGASSLookup[[#This Row],[Alloc]])","v":"SITUS"},"P"]
[{"$f":"CONCATENATE(tblREGASSLookup[[#This Row],[Primary Account]],tblREGASSLookup[[#This Row],[Primary Name]],tblREGASSLookup[[#This Row],[Secondary Acct]],tblREGASSLookup[[#This Row],[Secondary  Name]],tblREGASSLookup[[#This Row],[Alloc4FUNC]])","v":"1823700OTH REGA-ENERGY WEST186870RA-DC ROR Offset-Assets Sold-AmortzSITUS"},1823700,"OTH REGA-ENERGY WEST",186870,"RA-DC ROR Offset-Assets Sold-Amortz","SITUS",null,{"$f":"IF(OR(tblREGASSLookup[[#This Row],[Alloc]]=\"IDU\",tblREGASSLookup[[#This Row],[Alloc]]=\"OR\",tblREGASSLookup[[#This Row],[Alloc]]=\"UT\",tblREGASSLookup[[#This Row],[Alloc]]=\"WYU\",tblREGASSLookup[[#This Row],[Alloc]]=\"WYP\",tblREGASSLookup[[#This Row],[Alloc]]=\"CA\",tblREGASSLookup[[#This Row],[Alloc]]=\"WA\"),\"SITUS\",tblREGASSLookup[[#This Row],[Alloc]])","v":"SITUS"},"P"]
[{"$f":"CONCATENATE(tblREGASSLookup[[#This Row],[Primary Account]],tblREGASSLookup[[#This Row],[Primary Name]],tblREGASSLookup[[#This Row],[Secondary Acct]],tblREGASSLookup[[#This Row],[Secondary  Name]],tblREGASSLookup[[#This Row],[Alloc4FUNC]])","v":"1823700OTH REGA-ENERGY WEST186871RA-DC ROR Offset-Fuel Inventory-AmortzSITUS"},1823700,"OTH REGA-ENERGY WEST",186871,"RA-DC ROR Offset-Fuel Inventory-Amortz","SITUS",null,{"$f":"IF(OR(tblREGASSLookup[[#This Row],[Alloc]]=\"IDU\",tblREGASSLookup[[#This Row],[Alloc]]=\"OR\",tblREGASSLookup[[#This Row],[Alloc]]=\"UT\",tblREGASSLookup[[#This Row],[Alloc]]=\"WYU\",tblREGASSLookup[[#This Row],[Alloc]]=\"WYP\",tblREGASSLookup[[#This Row],[Alloc]]=\"CA\",tblREGASSLookup[[#This Row],[Alloc]]=\"WA\"),\"SITUS\",tblREGASSLookup[[#This Row],[Alloc]])","v":"SITUS"},"P"]
[{"$f":"CONCATENATE(tblREGASSLookup[[#This Row],[Primary Account]],tblREGASSLookup[[#This Row],[Primary Name]],tblREGASSLookup[[#This Row],[Secondary Acct]],tblREGASSLookup[[#This Row],[Secondary  Name]],tblREGASSLookup[[#This Row],[Alloc4FUNC]])","v":"1823700OTH REGA-ENERGY WEST186872RA-DC ROR Offset-Fossil Rock-AmortzSITUS"},1823700,"OTH REGA-ENERGY WEST",186872,"RA-DC ROR Offset-Fossil Rock-Amortz","SITUS",null,{"$f":"IF(OR(tblREGASSLookup[[#This Row],[Alloc]]=\"IDU\",tblREGASSLookup[[#This Row],[Alloc]]=\"OR\",tblREGASSLookup[[#This Row],[Alloc]]=\"UT\",tblREGASSLookup[[#This Row],[Alloc]]=\"WYU\",tblREGASSLookup[[#This Row],[Alloc]]=\"WYP\",tblREGASSLookup[[#This Row],[Alloc]]=\"CA\",tblREGASSLookup[[#This Row],[Alloc]]=\"WA\"),\"SITUS\",tblREGASSLookup[[#This Row],[Alloc]])","v":"SITUS"},"P"]
[{"$f":"CONCATENATE(tblREGASSLookup[[#This Row],[Primary Account]],tblREGASSLookup[[#This Row],[Primary Name]],tblREGASSLookup[[#This Row],[Secondary Acct]],tblREGASSLookup[[#This Row],[Secondary  Name]],tblREGASSLookup[[#This Row],[Alloc4FUNC]])","v":"1823700OTH REGA-ENERGY WEST186881Reg Asset-UMWA Pension Trust ObligSE"},1823700,"OTH REGA-ENERGY WEST",186881,"Reg Asset-UMWA Pension Trust Oblig","SE",null,{"$f":"IF(OR(tblREGASSLookup[[#This Row],[Alloc]]=\"IDU\",tblREGASSLookup[[#This Row],[Alloc]]=\"OR\",tblREGASSLookup[[#This Row],[Alloc]]=\"UT\",tblREGASSLookup[[#This Row],[Alloc]]=\"WYU\",tblREGASSLookup[[#This Row],[Alloc]]=\"WYP\",tblREGASSLookup[[#This Row],[Alloc]]=\"CA\",tblREGASSLookup[[#This Row],[Alloc]]=\"WA\"),\"SITUS\",tblREGASSLookup[[#This Row],[Alloc]])","v":"SE"},"P"]
[{"$f":"CONCATENATE(tblREGASSLookup[[#This Row],[Primary Account]],tblREGASSLookup[[#This Row],[Primary Name]],tblREGASSLookup[[#This Row],[Secondary Acct]],tblREGASSLookup[[#This Row],[Secondary  Name]],tblREGASSLookup[[#This Row],[Alloc4FUNC]])","v":"1823700OTH REGA-ENERGY WEST186886Contra RA-UMWA Pens W/D-To Joint OwnersOTHER"},1823700,"OTH REGA-ENERGY WEST",186886,"Contra RA-UMWA Pens W/D-To Joint Owners","OTHER",null,{"$f":"IF(OR(tblREGASSLookup[[#This Row],[Alloc]]=\"IDU\",tblREGASSLookup[[#This Row],[Alloc]]=\"OR\",tblREGASSLookup[[#This Row],[Alloc]]=\"UT\",tblREGASSLookup[[#This Row],[Alloc]]=\"WYU\",tblREGASSLookup[[#This Row],[Alloc]]=\"WYP\",tblREGASSLookup[[#This Row],[Alloc]]=\"CA\",tblREGASSLookup[[#This Row],[Alloc]]=\"WA\"),\"SITUS\",tblREGASSLookup[[#This Row],[Alloc]])","v":"OTHER"},"P"]
[{"$f":"CONCATENATE(tblREGASSLookup[[#This Row],[Primary Account]],tblREGASSLookup[[#This Row],[Primary Name]],tblREGASSLookup[[#This Row],[Secondary Acct]],tblREGASSLookup[[#This Row],[Secondary  Name]],tblREGASSLookup[[#This Row],[Alloc4FUNC]])","v":"1823700OTH REGA-ENERGY WEST186891Contra Reg Asset-UMWA Pension Trust-CAOTHER"},1823700,"OTH REGA-ENERGY WEST",186891,"Contra Reg Asset-UMWA Pension Trust-CA","OTHER",null,{"$f":"IF(OR(tblREGASSLookup[[#This Row],[Alloc]]=\"IDU\",tblREGASSLookup[[#This Row],[Alloc]]=\"OR\",tblREGASSLookup[[#This Row],[Alloc]]=\"UT\",tblREGASSLookup[[#This Row],[Alloc]]=\"WYU\",tblREGASSLookup[[#This Row],[Alloc]]=\"WYP\",tblREGASSLookup[[#This Row],[Alloc]]=\"CA\",tblREGASSLookup[[#This Row],[Alloc]]=\"WA\"),\"SITUS\",tblREGASSLookup[[#This Row],[Alloc]])","v":"OTHER"},"P"]
[{"$f":"CONCATENATE(tblREGASSLookup[[#This Row],[Primary Account]],tblREGASSLookup[[#This Row],[Primary Name]],tblREGASSLookup[[#This Row],[Secondary Acct]],tblREGASSLookup[[#This Row],[Secondary  Name]],tblREGASSLookup[[#This Row],[Alloc4FUNC]])","v":"1823700OTH REGA-ENERGY WEST186895Contra Reg Asset-UMWA Pension Trust-WAOTHER"},1823700,"OTH REGA-ENERGY WEST",186895,"Contra Reg Asset-UMWA Pension Trust-WA","OTHER",null,{"$f":"IF(OR(tblREGASSLookup[[#This Row],[Alloc]]=\"IDU\",tblREGASSLookup[[#This Row],[Alloc]]=\"OR\",tblREGASSLookup[[#This Row],[Alloc]]=\"UT\",tblREGASSLookup[[#This Row],[Alloc]]=\"WYU\",tblREGASSLookup[[#This Row],[Alloc]]=\"WYP\",tblREGASSLookup[[#This Row],[Alloc]]=\"CA\",tblREGASSLookup[[#This Row],[Alloc]]=\"WA\"),\"SITUS\",tblREGASSLookup[[#This Row],[Alloc]])","v":"OTHER"},"P"]
[{"$f":"CONCATENATE(tblREGASSLookup[[#This Row],[Primary Account]],tblREGASSLookup[[#This Row],[Primary Name]],tblREGASSLookup[[#This Row],[Secondary Acct]],tblREGASSLookup[[#This Row],[Secondary  Name]],tblREGASSLookup[[#This Row],[Alloc4FUNC]])","v":"1823870DEFERRED PENSION187017FAS 158 Pen Liab AdjSO"},1823870,"DEFERRED PENSION",187017,"FAS 158 Pen Liab Adj","SO",null,{"$f":"IF(OR(tblREGASSLookup[[#This Row],[Alloc]]=\"IDU\",tblREGASSLookup[[#This Row],[Alloc]]=\"OR\",tblREGASSLookup[[#This Row],[Alloc]]=\"UT\",tblREGASSLookup[[#This Row],[Alloc]]=\"WYU\",tblREGASSLookup[[#This Row],[Alloc]]=\"WYP\",tblREGASSLookup[[#This Row],[Alloc]]=\"CA\",tblREGASSLookup[[#This Row],[Alloc]]=\"WA\"),\"SITUS\",tblREGASSLookup[[#This Row],[Alloc]])","v":"SO"},"LABOR"]
[{"$f":"CONCATENATE(tblREGASSLookup[[#This Row],[Primary Account]],tblREGASSLookup[[#This Row],[Primary Name]],tblREGASSLookup[[#This Row],[Secondary Acct]],tblREGASSLookup[[#This Row],[Secondary  Name]],tblREGASSLookup[[#This Row],[Alloc4FUNC]])","v":"1823870DEFERRED PENSION187600Contra Pension Reg Asset MMT & CTG - ORSITUS"},1823870,"DEFERRED PENSION",187600,"Contra Pension Reg Asset MMT & CTG - OR","SITUS",null,{"$f":"IF(OR(tblREGASSLookup[[#This Row],[Alloc]]=\"IDU\",tblREGASSLookup[[#This Row],[Alloc]]=\"OR\",tblREGASSLookup[[#This Row],[Alloc]]=\"UT\",tblREGASSLookup[[#This Row],[Alloc]]=\"WYU\",tblREGASSLookup[[#This Row],[Alloc]]=\"WYP\",tblREGASSLookup[[#This Row],[Alloc]]=\"CA\",tblREGASSLookup[[#This Row],[Alloc]]=\"WA\"),\"SITUS\",tblREGASSLookup[[#This Row],[Alloc]])","v":"SITUS"},"LABOR"]
[{"$f":"CONCATENATE(tblREGASSLookup[[#This Row],[Primary Account]],tblREGASSLookup[[#This Row],[Primary Name]],tblREGASSLookup[[#This Row],[Secondary Acct]],tblREGASSLookup[[#This Row],[Secondary  Name]],tblREGASSLookup[[#This Row],[Alloc4FUNC]])","v":"1823870DEFERRED PENSION187602Reg Asset -  Pension MMT - UTSITUS"},1823870,"DEFERRED PENSION",187602,"Reg Asset -  Pension MMT - UT","SITUS",null,{"$f":"IF(OR(tblREGASSLookup[[#This Row],[Alloc]]=\"IDU\",tblREGASSLookup[[#This Row],[Alloc]]=\"OR\",tblREGASSLookup[[#This Row],[Alloc]]=\"UT\",tblREGASSLookup[[#This Row],[Alloc]]=\"WYU\",tblREGASSLookup[[#This Row],[Alloc]]=\"WYP\",tblREGASSLookup[[#This Row],[Alloc]]=\"CA\",tblREGASSLookup[[#This Row],[Alloc]]=\"WA\"),\"SITUS\",tblREGASSLookup[[#This Row],[Alloc]])","v":"SITUS"},"LABOR"]
[{"$f":"CONCATENATE(tblREGASSLookup[[#This Row],[Primary Account]],tblREGASSLookup[[#This Row],[Primary Name]],tblREGASSLookup[[#This Row],[Secondary Acct]],tblREGASSLookup[[#This Row],[Secondary  Name]],tblREGASSLookup[[#This Row],[Alloc4FUNC]])","v":"1823870DEFERRED PENSION187604Contra Pension Reg Asset MMT & CTG - CASITUS"},1823870,"DEFERRED PENSION",187604,"Contra Pension Reg Asset MMT & CTG - CA","SITUS",null,{"$f":"IF(OR(tblREGASSLookup[[#This Row],[Alloc]]=\"IDU\",tblREGASSLookup[[#This Row],[Alloc]]=\"OR\",tblREGASSLookup[[#This Row],[Alloc]]=\"UT\",tblREGASSLookup[[#This Row],[Alloc]]=\"WYU\",tblREGASSLookup[[#This Row],[Alloc]]=\"WYP\",tblREGASSLookup[[#This Row],[Alloc]]=\"CA\",tblREGASSLookup[[#This Row],[Alloc]]=\"WA\"),\"SITUS\",tblREGASSLookup[[#This Row],[Alloc]])","v":"SITUS"},"LABOR"]
[{"$f":"CONCATENATE(tblREGASSLookup[[#This Row],[Primary Account]],tblREGASSLookup[[#This Row],[Primary Name]],tblREGASSLookup[[#This Row],[Secondary Acct]],tblREGASSLookup[[#This Row],[Secondary  Name]],tblREGASSLookup[[#This Row],[Alloc4FUNC]])","v":"1823870DEFERRED PENSION187607Contra Reg Asset 2016 Pension Plan CTGSO"},1823870,"DEFERRED PENSION",187607,"Contra Reg Asset 2016 Pension Plan CTG","SO",null,{"$f":"IF(OR(tblREGASSLookup[[#This Row],[Alloc]]=\"IDU\",tblREGASSLookup[[#This Row],[Alloc]]=\"OR\",tblREGASSLookup[[#This Row],[Alloc]]=\"UT\",tblREGASSLookup[[#This Row],[Alloc]]=\"WYU\",tblREGASSLookup[[#This Row],[Alloc]]=\"WYP\",tblREGASSLookup[[#This Row],[Alloc]]=\"CA\",tblREGASSLookup[[#This Row],[Alloc]]=\"WA\"),\"SITUS\",tblREGASSLookup[[#This Row],[Alloc]])","v":"SO"},"LABOR"]
[{"$f":"CONCATENATE(tblREGASSLookup[[#This Row],[Primary Account]],tblREGASSLookup[[#This Row],[Primary Name]],tblREGASSLookup[[#This Row],[Secondary Acct]],tblREGASSLookup[[#This Row],[Secondary  Name]],tblREGASSLookup[[#This Row],[Alloc4FUNC]])","v":"1823870DEFERRED PENSION187621Reg Asset FAS - 158SO"},1823870,"DEFERRED PENSION",187621,"Reg Asset FAS - 158","SO",null,{"$f":"IF(OR(tblREGASSLookup[[#This Row],[Alloc]]=\"IDU\",tblREGASSLookup[[#This Row],[Alloc]]=\"OR\",tblREGASSLookup[[#This Row],[Alloc]]=\"UT\",tblREGASSLookup[[#This Row],[Alloc]]=\"WYU\",tblREGASSLookup[[#This Row],[Alloc]]=\"WYP\",tblREGASSLookup[[#This Row],[Alloc]]=\"CA\",tblREGASSLookup[[#This Row],[Alloc]]=\"WA\"),\"SITUS\",tblREGASSLookup[[#This Row],[Alloc]])","v":"SO"},"LABOR"]
[{"$f":"CONCATENATE(tblREGASSLookup[[#This Row],[Primary Account]],tblREGASSLookup[[#This Row],[Primary Name]],tblREGASSLookup[[#This Row],[Secondary Acct]],tblREGASSLookup[[#This Row],[Secondary  Name]],tblREGASSLookup[[#This Row],[Alloc4FUNC]])","v":"1823870DEFERRED PENSION187622Reg Asset - Post-Ret MMT - ORSITUS"},1823870,"DEFERRED PENSION",187622,"Reg Asset - Post-Ret MMT - OR","SITUS",null,{"$f":"IF(OR(tblREGASSLookup[[#This Row],[Alloc]]=\"IDU\",tblREGASSLookup[[#This Row],[Alloc]]=\"OR\",tblREGASSLookup[[#This Row],[Alloc]]=\"UT\",tblREGASSLookup[[#This Row],[Alloc]]=\"WYU\",tblREGASSLookup[[#This Row],[Alloc]]=\"WYP\",tblREGASSLookup[[#This Row],[Alloc]]=\"CA\",tblREGASSLookup[[#This Row],[Alloc]]=\"WA\"),\"SITUS\",tblREGASSLookup[[#This Row],[Alloc]])","v":"SITUS"},"LABOR"]
[{"$f":"CONCATENATE(tblREGASSLookup[[#This Row],[Primary Account]],tblREGASSLookup[[#This Row],[Primary Name]],tblREGASSLookup[[#This Row],[Secondary Acct]],tblREGASSLookup[[#This Row],[Secondary  Name]],tblREGASSLookup[[#This Row],[Alloc4FUNC]])","v":"1823870DEFERRED PENSION187624Reg Asset - Post-Ret MMT - UTSITUS"},1823870,"DEFERRED PENSION",187624,"Reg Asset - Post-Ret MMT - UT","SITUS",null,{"$f":"IF(OR(tblREGASSLookup[[#This Row],[Alloc]]=\"IDU\",tblREGASSLookup[[#This Row],[Alloc]]=\"OR\",tblREGASSLookup[[#This Row],[Alloc]]=\"UT\",tblREGASSLookup[[#This Row],[Alloc]]=\"WYU\",tblREGASSLookup[[#This Row],[Alloc]]=\"WYP\",tblREGASSLookup[[#This Row],[Alloc]]=\"CA\",tblREGASSLookup[[#This Row],[Alloc]]=\"WA\"),\"SITUS\",tblREGASSLookup[[#This Row],[Alloc]])","v":"SITUS"},"LABOR"]
[{"$f":"CONCATENATE(tblREGASSLookup[[#This Row],[Primary Account]],tblREGASSLookup[[#This Row],[Primary Name]],tblREGASSLookup[[#This Row],[Secondary Acct]],tblREGASSLookup[[#This Row],[Secondary  Name]],tblREGASSLookup[[#This Row],[Alloc4FUNC]])","v":"1823870DEFERRED PENSION187627Reg Asset - Post-Ret MMT - CASITUS"},1823870,"DEFERRED PENSION",187627,"Reg Asset - Post-Ret MMT - CA","SITUS",null,{"$f":"IF(OR(tblREGASSLookup[[#This Row],[Alloc]]=\"IDU\",tblREGASSLookup[[#This Row],[Alloc]]=\"OR\",tblREGASSLookup[[#This Row],[Alloc]]=\"UT\",tblREGASSLookup[[#This Row],[Alloc]]=\"WYU\",tblREGASSLookup[[#This Row],[Alloc]]=\"WYP\",tblREGASSLookup[[#This Row],[Alloc]]=\"CA\",tblREGASSLookup[[#This Row],[Alloc]]=\"WA\"),\"SITUS\",tblREGASSLookup[[#This Row],[Alloc]])","v":"SITUS"},"LABOR"]
[{"$f":"CONCATENATE(tblREGASSLookup[[#This Row],[Primary Account]],tblREGASSLookup[[#This Row],[Primary Name]],tblREGASSLookup[[#This Row],[Secondary Acct]],tblREGASSLookup[[#This Row],[Secondary  Name]],tblREGASSLookup[[#This Row],[Alloc4FUNC]])","v":"1823870DEFERRED PENSION187629Reg Asset - Post-Ret - Settlement LossSITUS"},1823870,"DEFERRED PENSION",187629,"Reg Asset - Post-Ret - Settlement Loss","SITUS",null,{"$f":"IF(OR(tblREGASSLookup[[#This Row],[Alloc]]=\"IDU\",tblREGASSLookup[[#This Row],[Alloc]]=\"OR\",tblREGASSLookup[[#This Row],[Alloc]]=\"UT\",tblREGASSLookup[[#This Row],[Alloc]]=\"WYU\",tblREGASSLookup[[#This Row],[Alloc]]=\"WYP\",tblREGASSLookup[[#This Row],[Alloc]]=\"CA\",tblREGASSLookup[[#This Row],[Alloc]]=\"WA\"),\"SITUS\",tblREGASSLookup[[#This Row],[Alloc]])","v":"SITUS"},"LABOR"]
[{"$f":"CONCATENATE(tblREGASSLookup[[#This Row],[Primary Account]],tblREGASSLookup[[#This Row],[Primary Name]],tblREGASSLookup[[#This Row],[Secondary Acct]],tblREGASSLookup[[#This Row],[Secondary  Name]],tblREGASSLookup[[#This Row],[Alloc4FUNC]])","v":"1823870DEFERRED PENSION187629Reg Asset - Post-Ret - Settlement LossSO"},1823870,"DEFERRED PENSION",187629,"Reg Asset - Post-Ret - Settlement Loss","SO",null,{"$f":"IF(OR(tblREGASSLookup[[#This Row],[Alloc]]=\"IDU\",tblREGASSLookup[[#This Row],[Alloc]]=\"OR\",tblREGASSLookup[[#This Row],[Alloc]]=\"UT\",tblREGASSLookup[[#This Row],[Alloc]]=\"WYU\",tblREGASSLookup[[#This Row],[Alloc]]=\"WYP\",tblREGASSLookup[[#This Row],[Alloc]]=\"CA\",tblREGASSLookup[[#This Row],[Alloc]]=\"WA\"),\"SITUS\",tblREGASSLookup[[#This Row],[Alloc]])","v":"SO"},"LABOR"]
[{"$f":"CONCATENATE(tblREGASSLookup[[#This Row],[Primary Account]],tblREGASSLookup[[#This Row],[Primary Name]],tblREGASSLookup[[#This Row],[Secondary Acct]],tblREGASSLookup[[#This Row],[Secondary  Name]],tblREGASSLookup[[#This Row],[Alloc4FUNC]])","v":"1823870DEFERRED PENSION187629Reg Asset - Post-Ret - Settlement LossSITUS"},1823870,"DEFERRED PENSION",187629,"Reg Asset - Post-Ret - Settlement Loss","SITUS",null,{"$f":"IF(OR(tblREGASSLookup[[#This Row],[Alloc]]=\"IDU\",tblREGASSLookup[[#This Row],[Alloc]]=\"OR\",tblREGASSLookup[[#This Row],[Alloc]]=\"UT\",tblREGASSLookup[[#This Row],[Alloc]]=\"WYU\",tblREGASSLookup[[#This Row],[Alloc]]=\"WYP\",tblREGASSLookup[[#This Row],[Alloc]]=\"CA\",tblREGASSLookup[[#This Row],[Alloc]]=\"WA\"),\"SITUS\",tblREGASSLookup[[#This Row],[Alloc]])","v":"SITUS"},"LABOR"]
[{"$f":"CONCATENATE(tblREGASSLookup[[#This Row],[Primary Account]],tblREGASSLookup[[#This Row],[Primary Name]],tblREGASSLookup[[#This Row],[Secondary Acct]],tblREGASSLookup[[#This Row],[Secondary  Name]],tblREGASSLookup[[#This Row],[Alloc4FUNC]])","v":"1823870DEFERRED PENSION187629Reg Asset - Post-Ret - Settlement LossSITUS"},1823870,"DEFERRED PENSION",187629,"Reg Asset - Post-Ret - Settlement Loss","SITUS",null,{"$f":"IF(OR(tblREGASSLookup[[#This Row],[Alloc]]=\"IDU\",tblREGASSLookup[[#This Row],[Alloc]]=\"OR\",tblREGASSLookup[[#This Row],[Alloc]]=\"UT\",tblREGASSLookup[[#This Row],[Alloc]]=\"WYU\",tblREGASSLookup[[#This Row],[Alloc]]=\"WYP\",tblREGASSLookup[[#This Row],[Alloc]]=\"CA\",tblREGASSLookup[[#This Row],[Alloc]]=\"WA\"),\"SITUS\",tblREGASSLookup[[#This Row],[Alloc]])","v":"SITUS"},"LABOR"]
[{"$f":"CONCATENATE(tblREGASSLookup[[#This Row],[Primary Account]],tblREGASSLookup[[#This Row],[Primary Name]],tblREGASSLookup[[#This Row],[Secondary Acct]],tblREGASSLookup[[#This Row],[Secondary  Name]],tblREGASSLookup[[#This Row],[Alloc4FUNC]])","v":"1823870DEFERRED PENSION187629Reg Asset - Post-Ret - Settlement LossSITUS"},1823870,"DEFERRED PENSION",187629,"Reg Asset - Post-Ret - Settlement Loss","SITUS",null,{"$f":"IF(OR(tblREGASSLookup[[#This Row],[Alloc]]=\"IDU\",tblREGASSLookup[[#This Row],[Alloc]]=\"OR\",tblREGASSLookup[[#This Row],[Alloc]]=\"UT\",tblREGASSLookup[[#This Row],[Alloc]]=\"WYU\",tblREGASSLookup[[#This Row],[Alloc]]=\"WYP\",tblREGASSLookup[[#This Row],[Alloc]]=\"CA\",tblREGASSLookup[[#This Row],[Alloc]]=\"WA\"),\"SITUS\",tblREGASSLookup[[#This Row],[Alloc]])","v":"SITUS"},"LABOR"]
[{"$f":"CONCATENATE(tblREGASSLookup[[#This Row],[Primary Account]],tblREGASSLookup[[#This Row],[Primary Name]],tblREGASSLookup[[#This Row],[Secondary Acct]],tblREGASSLookup[[#This Row],[Secondary  Name]],tblREGASSLookup[[#This Row],[Alloc4FUNC]])","v":"1823870DEFERRED PENSION187640Reg Asset-PostRet Sttlmt Loss-CC-UTSITUS"},1823870,"DEFERRED PENSION",187640,"Reg Asset-PostRet Sttlmt Loss-CC-UT","SITUS",null,{"$f":"IF(OR(tblREGASSLookup[[#This Row],[Alloc]]=\"IDU\",tblREGASSLookup[[#This Row],[Alloc]]=\"OR\",tblREGASSLookup[[#This Row],[Alloc]]=\"UT\",tblREGASSLookup[[#This Row],[Alloc]]=\"WYU\",tblREGASSLookup[[#This Row],[Alloc]]=\"WYP\",tblREGASSLookup[[#This Row],[Alloc]]=\"CA\",tblREGASSLookup[[#This Row],[Alloc]]=\"WA\"),\"SITUS\",tblREGASSLookup[[#This Row],[Alloc]])","v":"SITUS"},"LABOR"]
[{"$f":"CONCATENATE(tblREGASSLookup[[#This Row],[Primary Account]],tblREGASSLookup[[#This Row],[Primary Name]],tblREGASSLookup[[#This Row],[Secondary Acct]],tblREGASSLookup[[#This Row],[Secondary  Name]],tblREGASSLookup[[#This Row],[Alloc4FUNC]])","v":"1823870DEFERRED PENSION187641Reg Asset-PostRet Sttlmt Loss-CC-WYSITUS"},1823870,"DEFERRED PENSION",187641,"Reg Asset-PostRet Sttlmt Loss-CC-WY","SITUS",null,{"$f":"IF(OR(tblREGASSLookup[[#This Row],[Alloc]]=\"IDU\",tblREGASSLookup[[#This Row],[Alloc]]=\"OR\",tblREGASSLookup[[#This Row],[Alloc]]=\"UT\",tblREGASSLookup[[#This Row],[Alloc]]=\"WYU\",tblREGASSLookup[[#This Row],[Alloc]]=\"WYP\",tblREGASSLookup[[#This Row],[Alloc]]=\"CA\",tblREGASSLookup[[#This Row],[Alloc]]=\"WA\"),\"SITUS\",tblREGASSLookup[[#This Row],[Alloc]])","v":"SITUS"},"LABOR"]
[{"$f":"CONCATENATE(tblREGASSLookup[[#This Row],[Primary Account]],tblREGASSLookup[[#This Row],[Primary Name]],tblREGASSLookup[[#This Row],[Secondary Acct]],tblREGASSLookup[[#This Row],[Secondary  Name]],tblREGASSLookup[[#This Row],[Alloc4FUNC]])","v":"1823910ENVIR CST UNDR AMORT102465UTAH METALS CLEANUPSO"},1823910,"ENVIR CST UNDR AMORT",102465,"UTAH METALS CLEANUP","SO",null,{"$f":"IF(OR(tblREGASSLookup[[#This Row],[Alloc]]=\"IDU\",tblREGASSLookup[[#This Row],[Alloc]]=\"OR\",tblREGASSLookup[[#This Row],[Alloc]]=\"UT\",tblREGASSLookup[[#This Row],[Alloc]]=\"WYU\",tblREGASSLookup[[#This Row],[Alloc]]=\"WYP\",tblREGASSLookup[[#This Row],[Alloc]]=\"CA\",tblREGASSLookup[[#This Row],[Alloc]]=\"WA\"),\"SITUS\",tblREGASSLookup[[#This Row],[Alloc]])","v":"SO"},"ESD"]
[{"$f":"CONCATENATE(tblREGASSLookup[[#This Row],[Primary Account]],tblREGASSLookup[[#This Row],[Primary Name]],tblREGASSLookup[[#This Row],[Secondary Acct]],tblREGASSLookup[[#This Row],[Secondary  Name]],tblREGASSLookup[[#This Row],[Alloc4FUNC]])","v":"1823910ENVIR CST UNDR AMORT102570D-SM RETAIL MINOR SITESSO"},1823910,"ENVIR CST UNDR AMORT",102570,"D-SM RETAIL MINOR SITES","SO",null,{"$f":"IF(OR(tblREGASSLookup[[#This Row],[Alloc]]=\"IDU\",tblREGASSLookup[[#This Row],[Alloc]]=\"OR\",tblREGASSLookup[[#This Row],[Alloc]]=\"UT\",tblREGASSLookup[[#This Row],[Alloc]]=\"WYU\",tblREGASSLookup[[#This Row],[Alloc]]=\"WYP\",tblREGASSLookup[[#This Row],[Alloc]]=\"CA\",tblREGASSLookup[[#This Row],[Alloc]]=\"WA\"),\"SITUS\",tblREGASSLookup[[#This Row],[Alloc]])","v":"SO"},"P"]
[{"$f":"CONCATENATE(tblREGASSLookup[[#This Row],[Primary Account]],tblREGASSLookup[[#This Row],[Primary Name]],tblREGASSLookup[[#This Row],[Secondary Acct]],tblREGASSLookup[[#This Row],[Secondary  Name]],tblREGASSLookup[[#This Row],[Alloc4FUNC]])","v":"1823910ENVIR CST UNDR AMORT103408D-SM RETAIL MINOR SITESSO"},1823910,"ENVIR CST UNDR AMORT",103408,"D-SM RETAIL MINOR SITES","SO",null,{"$f":"IF(OR(tblREGASSLookup[[#This Row],[Alloc]]=\"IDU\",tblREGASSLookup[[#This Row],[Alloc]]=\"OR\",tblREGASSLookup[[#This Row],[Alloc]]=\"UT\",tblREGASSLookup[[#This Row],[Alloc]]=\"WYU\",tblREGASSLookup[[#This Row],[Alloc]]=\"WYP\",tblREGASSLookup[[#This Row],[Alloc]]=\"CA\",tblREGASSLookup[[#This Row],[Alloc]]=\"WA\"),\"SITUS\",tblREGASSLookup[[#This Row],[Alloc]])","v":"SO"},"P"]
[{"$f":"CONCATENATE(tblREGASSLookup[[#This Row],[Primary Account]],tblREGASSLookup[[#This Row],[Primary Name]],tblREGASSLookup[[#This Row],[Secondary Acct]],tblREGASSLookup[[#This Row],[Secondary  Name]],tblREGASSLookup[[#This Row],[Alloc4FUNC]])","v":"1823910ENVIR CST UNDR AMORT103409D-SM RETAIL MINOR SITESSO"},1823910,"ENVIR CST UNDR AMORT",103409,"D-SM RETAIL MINOR SITES","SO",null,{"$f":"IF(OR(tblREGASSLookup[[#This Row],[Alloc]]=\"IDU\",tblREGASSLookup[[#This Row],[Alloc]]=\"OR\",tblREGASSLookup[[#This Row],[Alloc]]=\"UT\",tblREGASSLookup[[#This Row],[Alloc]]=\"WYU\",tblREGASSLookup[[#This Row],[Alloc]]=\"WYP\",tblREGASSLookup[[#This Row],[Alloc]]=\"CA\",tblREGASSLookup[[#This Row],[Alloc]]=\"WA\"),\"SITUS\",tblREGASSLookup[[#This Row],[Alloc]])","v":"SO"},"P"]
[{"$f":"CONCATENATE(tblREGASSLookup[[#This Row],[Primary Account]],tblREGASSLookup[[#This Row],[Primary Name]],tblREGASSLookup[[#This Row],[Secondary Acct]],tblREGASSLookup[[#This Row],[Secondary  Name]],tblREGASSLookup[[#This Row],[Alloc4FUNC]])","v":"1823910ENVIR CST UNDR AMORT103410D-SM RETAIL MINOR SITESSO"},1823910,"ENVIR CST UNDR AMORT",103410,"D-SM RETAIL MINOR SITES","SO",null,{"$f":"IF(OR(tblREGASSLookup[[#This Row],[Alloc]]=\"IDU\",tblREGASSLookup[[#This Row],[Alloc]]=\"OR\",tblREGASSLookup[[#This Row],[Alloc]]=\"UT\",tblREGASSLookup[[#This Row],[Alloc]]=\"WYU\",tblREGASSLookup[[#This Row],[Alloc]]=\"WYP\",tblREGASSLookup[[#This Row],[Alloc]]=\"CA\",tblREGASSLookup[[#This Row],[Alloc]]=\"WA\"),\"SITUS\",tblREGASSLookup[[#This Row],[Alloc]])","v":"SO"},"P"]
[{"$f":"CONCATENATE(tblREGASSLookup[[#This Row],[Primary Account]],tblREGASSLookup[[#This Row],[Primary Name]],tblREGASSLookup[[#This Row],[Secondary Acct]],tblREGASSLookup[[#This Row],[Secondary  Name]],tblREGASSLookup[[#This Row],[Alloc4FUNC]])","v":"1823910ENVIR CST UNDR AMORT103411D-SM RETAIL MINOR SITESSO"},1823910,"ENVIR CST UNDR AMORT",103411,"D-SM RETAIL MINOR SITES","SO",null,{"$f":"IF(OR(tblREGASSLookup[[#This Row],[Alloc]]=\"IDU\",tblREGASSLookup[[#This Row],[Alloc]]=\"OR\",tblREGASSLookup[[#This Row],[Alloc]]=\"UT\",tblREGASSLookup[[#This Row],[Alloc]]=\"WYU\",tblREGASSLookup[[#This Row],[Alloc]]=\"WYP\",tblREGASSLookup[[#This Row],[Alloc]]=\"CA\",tblREGASSLookup[[#This Row],[Alloc]]=\"WA\"),\"SITUS\",tblREGASSLookup[[#This Row],[Alloc]])","v":"SO"},"P"]
[{"$f":"CONCATENATE(tblREGASSLookup[[#This Row],[Primary Account]],tblREGASSLookup[[#This Row],[Primary Name]],tblREGASSLookup[[#This Row],[Secondary Acct]],tblREGASSLookup[[#This Row],[Secondary  Name]],tblREGASSLookup[[#This Row],[Alloc4FUNC]])","v":"1823910ENVIR CST UNDR AMORT103412D-SM RETAIL MINOR SITESSO"},1823910,"ENVIR CST UNDR AMORT",103412,"D-SM RETAIL MINOR SITES","SO",null,{"$f":"IF(OR(tblREGASSLookup[[#This Row],[Alloc]]=\"IDU\",tblREGASSLookup[[#This Row],[Alloc]]=\"OR\",tblREGASSLookup[[#This Row],[Alloc]]=\"UT\",tblREGASSLookup[[#This Row],[Alloc]]=\"WYU\",tblREGASSLookup[[#This Row],[Alloc]]=\"WYP\",tblREGASSLookup[[#This Row],[Alloc]]=\"CA\",tblREGASSLookup[[#This Row],[Alloc]]=\"WA\"),\"SITUS\",tblREGASSLookup[[#This Row],[Alloc]])","v":"SO"},"P"]
[{"$f":"CONCATENATE(tblREGASSLookup[[#This Row],[Primary Account]],tblREGASSLookup[[#This Row],[Primary Name]],tblREGASSLookup[[#This Row],[Secondary Acct]],tblREGASSLookup[[#This Row],[Secondary  Name]],tblREGASSLookup[[#This Row],[Alloc4FUNC]])","v":"1823910ENVIR CST UNDR AMORT103413D-SM RETAIL MINOR SITESSO"},1823910,"ENVIR CST UNDR AMORT",103413,"D-SM RETAIL MINOR SITES","SO",null,{"$f":"IF(OR(tblREGASSLookup[[#This Row],[Alloc]]=\"IDU\",tblREGASSLookup[[#This Row],[Alloc]]=\"OR\",tblREGASSLookup[[#This Row],[Alloc]]=\"UT\",tblREGASSLookup[[#This Row],[Alloc]]=\"WYU\",tblREGASSLookup[[#This Row],[Alloc]]=\"WYP\",tblREGASSLookup[[#This Row],[Alloc]]=\"CA\",tblREGASSLookup[[#This Row],[Alloc]]=\"WA\"),\"SITUS\",tblREGASSLookup[[#This Row],[Alloc]])","v":"SO"},"P"]
[{"$f":"CONCATENATE(tblREGASSLookup[[#This Row],[Primary Account]],tblREGASSLookup[[#This Row],[Primary Name]],tblREGASSLookup[[#This Row],[Secondary Acct]],tblREGASSLookup[[#This Row],[Secondary  Name]],tblREGASSLookup[[#This Row],[Alloc4FUNC]])","v":"1823910ENVIR CST UNDR AMORT103415ASTORIA YOUNGS BAY CLEANUPSO"},1823910,"ENVIR CST UNDR AMORT",103415,"ASTORIA YOUNGS BAY CLEANUP","SO",null,{"$f":"IF(OR(tblREGASSLookup[[#This Row],[Alloc]]=\"IDU\",tblREGASSLookup[[#This Row],[Alloc]]=\"OR\",tblREGASSLookup[[#This Row],[Alloc]]=\"UT\",tblREGASSLookup[[#This Row],[Alloc]]=\"WYU\",tblREGASSLookup[[#This Row],[Alloc]]=\"WYP\",tblREGASSLookup[[#This Row],[Alloc]]=\"CA\",tblREGASSLookup[[#This Row],[Alloc]]=\"WA\"),\"SITUS\",tblREGASSLookup[[#This Row],[Alloc]])","v":"SO"},"ESD"]
[{"$f":"CONCATENATE(tblREGASSLookup[[#This Row],[Primary Account]],tblREGASSLookup[[#This Row],[Primary Name]],tblREGASSLookup[[#This Row],[Secondary Acct]],tblREGASSLookup[[#This Row],[Secondary  Name]],tblREGASSLookup[[#This Row],[Alloc4FUNC]])","v":"1823910ENVIR CST UNDR AMORT103416ASTORIA YOUNGS BAY CLEANUPSO"},1823910,"ENVIR CST UNDR AMORT",103416,"ASTORIA YOUNGS BAY CLEANUP","SO",null,{"$f":"IF(OR(tblREGASSLookup[[#This Row],[Alloc]]=\"IDU\",tblREGASSLookup[[#This Row],[Alloc]]=\"OR\",tblREGASSLookup[[#This Row],[Alloc]]=\"UT\",tblREGASSLookup[[#This Row],[Alloc]]=\"WYU\",tblREGASSLookup[[#This Row],[Alloc]]=\"WYP\",tblREGASSLookup[[#This Row],[Alloc]]=\"CA\",tblREGASSLookup[[#This Row],[Alloc]]=\"WA\"),\"SITUS\",tblREGASSLookup[[#This Row],[Alloc]])","v":"SO"},"ESD"]
[{"$f":"CONCATENATE(tblREGASSLookup[[#This Row],[Primary Account]],tblREGASSLookup[[#This Row],[Primary Name]],tblREGASSLookup[[#This Row],[Secondary Acct]],tblREGASSLookup[[#This Row],[Secondary  Name]],tblREGASSLookup[[#This Row],[Alloc4FUNC]])","v":"1823910ENVIR CST UNDR AMORT103417ASTORIA YOUNGS BAY CLEANUPSO"},1823910,"ENVIR CST UNDR AMORT",103417,"ASTORIA YOUNGS BAY CLEANUP","SO",null,{"$f":"IF(OR(tblREGASSLookup[[#This Row],[Alloc]]=\"IDU\",tblREGASSLookup[[#This Row],[Alloc]]=\"OR\",tblREGASSLookup[[#This Row],[Alloc]]=\"UT\",tblREGASSLookup[[#This Row],[Alloc]]=\"WYU\",tblREGASSLookup[[#This Row],[Alloc]]=\"WYP\",tblREGASSLookup[[#This Row],[Alloc]]=\"CA\",tblREGASSLookup[[#This Row],[Alloc]]=\"WA\"),\"SITUS\",tblREGASSLookup[[#This Row],[Alloc]])","v":"SO"},"ESD"]
[{"$f":"CONCATENATE(tblREGASSLookup[[#This Row],[Primary Account]],tblREGASSLookup[[#This Row],[Primary Name]],tblREGASSLookup[[#This Row],[Secondary Acct]],tblREGASSLookup[[#This Row],[Secondary  Name]],tblREGASSLookup[[#This Row],[Alloc4FUNC]])","v":"1823910ENVIR CST UNDR AMORT103418ASTORIA YOUNGS BAY CLEANUPSO"},1823910,"ENVIR CST UNDR AMORT",103418,"ASTORIA YOUNGS BAY CLEANUP","SO",null,{"$f":"IF(OR(tblREGASSLookup[[#This Row],[Alloc]]=\"IDU\",tblREGASSLookup[[#This Row],[Alloc]]=\"OR\",tblREGASSLookup[[#This Row],[Alloc]]=\"UT\",tblREGASSLookup[[#This Row],[Alloc]]=\"WYU\",tblREGASSLookup[[#This Row],[Alloc]]=\"WYP\",tblREGASSLookup[[#This Row],[Alloc]]=\"CA\",tblREGASSLookup[[#This Row],[Alloc]]=\"WA\"),\"SITUS\",tblREGASSLookup[[#This Row],[Alloc]])","v":"SO"},"ESD"]
[{"$f":"CONCATENATE(tblREGASSLookup[[#This Row],[Primary Account]],tblREGASSLookup[[#This Row],[Primary Name]],tblREGASSLookup[[#This Row],[Secondary Acct]],tblREGASSLookup[[#This Row],[Secondary  Name]],tblREGASSLookup[[#This Row],[Alloc4FUNC]])","v":"1823910ENVIR CST UNDR AMORT103419ASTORIA YOUNGS BAY CLEANUPSO"},1823910,"ENVIR CST UNDR AMORT",103419,"ASTORIA YOUNGS BAY CLEANUP","SO",null,{"$f":"IF(OR(tblREGASSLookup[[#This Row],[Alloc]]=\"IDU\",tblREGASSLookup[[#This Row],[Alloc]]=\"OR\",tblREGASSLookup[[#This Row],[Alloc]]=\"UT\",tblREGASSLookup[[#This Row],[Alloc]]=\"WYU\",tblREGASSLookup[[#This Row],[Alloc]]=\"WYP\",tblREGASSLookup[[#This Row],[Alloc]]=\"CA\",tblREGASSLookup[[#This Row],[Alloc]]=\"WA\"),\"SITUS\",tblREGASSLookup[[#This Row],[Alloc]])","v":"SO"},"ESD"]
[{"$f":"CONCATENATE(tblREGASSLookup[[#This Row],[Primary Account]],tblREGASSLookup[[#This Row],[Primary Name]],tblREGASSLookup[[#This Row],[Secondary Acct]],tblREGASSLookup[[#This Row],[Secondary  Name]],tblREGASSLookup[[#This Row],[Alloc4FUNC]])","v":"1823910ENVIR CST UNDR AMORT103420ASTORIA YOUNGS BAY CLEANUPSO"},1823910,"ENVIR CST UNDR AMORT",103420,"ASTORIA YOUNGS BAY CLEANUP","SO",null,{"$f":"IF(OR(tblREGASSLookup[[#This Row],[Alloc]]=\"IDU\",tblREGASSLookup[[#This Row],[Alloc]]=\"OR\",tblREGASSLookup[[#This Row],[Alloc]]=\"UT\",tblREGASSLookup[[#This Row],[Alloc]]=\"WYU\",tblREGASSLookup[[#This Row],[Alloc]]=\"WYP\",tblREGASSLookup[[#This Row],[Alloc]]=\"CA\",tblREGASSLookup[[#This Row],[Alloc]]=\"WA\"),\"SITUS\",tblREGASSLookup[[#This Row],[Alloc]])","v":"SO"},"ESD"]
[{"$f":"CONCATENATE(tblREGASSLookup[[#This Row],[Primary Account]],tblREGASSLookup[[#This Row],[Primary Name]],tblREGASSLookup[[#This Row],[Secondary Acct]],tblREGASSLookup[[#This Row],[Secondary  Name]],tblREGASSLookup[[#This Row],[Alloc4FUNC]])","v":"1823910ENVIR CST UNDR AMORT103421SILVER BELL MINE ENVIRONMENTAL REMEDSO"},1823910,"ENVIR CST UNDR AMORT",103421,"SILVER BELL MINE ENVIRONMENTAL REMED","SO",null,{"$f":"IF(OR(tblREGASSLookup[[#This Row],[Alloc]]=\"IDU\",tblREGASSLookup[[#This Row],[Alloc]]=\"OR\",tblREGASSLookup[[#This Row],[Alloc]]=\"UT\",tblREGASSLookup[[#This Row],[Alloc]]=\"WYU\",tblREGASSLookup[[#This Row],[Alloc]]=\"WYP\",tblREGASSLookup[[#This Row],[Alloc]]=\"CA\",tblREGASSLookup[[#This Row],[Alloc]]=\"WA\"),\"SITUS\",tblREGASSLookup[[#This Row],[Alloc]])","v":"SO"},"ESD"]
[{"$f":"CONCATENATE(tblREGASSLookup[[#This Row],[Primary Account]],tblREGASSLookup[[#This Row],[Primary Name]],tblREGASSLookup[[#This Row],[Secondary Acct]],tblREGASSLookup[[#This Row],[Secondary  Name]],tblREGASSLookup[[#This Row],[Alloc4FUNC]])","v":"1823910ENVIR CST UNDR AMORT103422SILVER BELL MINE ENVIRONMENTAL REMEDSO"},1823910,"ENVIR CST UNDR AMORT",103422,"SILVER BELL MINE ENVIRONMENTAL REMED","SO",null,{"$f":"IF(OR(tblREGASSLookup[[#This Row],[Alloc]]=\"IDU\",tblREGASSLookup[[#This Row],[Alloc]]=\"OR\",tblREGASSLookup[[#This Row],[Alloc]]=\"UT\",tblREGASSLookup[[#This Row],[Alloc]]=\"WYU\",tblREGASSLookup[[#This Row],[Alloc]]=\"WYP\",tblREGASSLookup[[#This Row],[Alloc]]=\"CA\",tblREGASSLookup[[#This Row],[Alloc]]=\"WA\"),\"SITUS\",tblREGASSLookup[[#This Row],[Alloc]])","v":"SO"},"ESD"]
[{"$f":"CONCATENATE(tblREGASSLookup[[#This Row],[Primary Account]],tblREGASSLookup[[#This Row],[Primary Name]],tblREGASSLookup[[#This Row],[Secondary Acct]],tblREGASSLookup[[#This Row],[Secondary  Name]],tblREGASSLookup[[#This Row],[Alloc4FUNC]])","v":"1823910ENVIR CST UNDR AMORT103423SILVER BELL MINE ENVIRONMENTAL REMEDSO"},1823910,"ENVIR CST UNDR AMORT",103423,"SILVER BELL MINE ENVIRONMENTAL REMED","SO",null,{"$f":"IF(OR(tblREGASSLookup[[#This Row],[Alloc]]=\"IDU\",tblREGASSLookup[[#This Row],[Alloc]]=\"OR\",tblREGASSLookup[[#This Row],[Alloc]]=\"UT\",tblREGASSLookup[[#This Row],[Alloc]]=\"WYU\",tblREGASSLookup[[#This Row],[Alloc]]=\"WYP\",tblREGASSLookup[[#This Row],[Alloc]]=\"CA\",tblREGASSLookup[[#This Row],[Alloc]]=\"WA\"),\"SITUS\",tblREGASSLookup[[#This Row],[Alloc]])","v":"SO"},"ESD"]
[{"$f":"CONCATENATE(tblREGASSLookup[[#This Row],[Primary Account]],tblREGASSLookup[[#This Row],[Primary Name]],tblREGASSLookup[[#This Row],[Secondary Acct]],tblREGASSLookup[[#This Row],[Secondary  Name]],tblREGASSLookup[[#This Row],[Alloc4FUNC]])","v":"1823910ENVIR CST UNDR AMORT103424SILVER BELL MINE ENVIRONMENTAL REMEDSO"},1823910,"ENVIR CST UNDR AMORT",103424,"SILVER BELL MINE ENVIRONMENTAL REMED","SO",null,{"$f":"IF(OR(tblREGASSLookup[[#This Row],[Alloc]]=\"IDU\",tblREGASSLookup[[#This Row],[Alloc]]=\"OR\",tblREGASSLookup[[#This Row],[Alloc]]=\"UT\",tblREGASSLookup[[#This Row],[Alloc]]=\"WYU\",tblREGASSLookup[[#This Row],[Alloc]]=\"WYP\",tblREGASSLookup[[#This Row],[Alloc]]=\"CA\",tblREGASSLookup[[#This Row],[Alloc]]=\"WA\"),\"SITUS\",tblREGASSLookup[[#This Row],[Alloc]])","v":"SO"},"ESD"]
[{"$f":"CONCATENATE(tblREGASSLookup[[#This Row],[Primary Account]],tblREGASSLookup[[#This Row],[Primary Name]],tblREGASSLookup[[#This Row],[Secondary Acct]],tblREGASSLookup[[#This Row],[Secondary  Name]],tblREGASSLookup[[#This Row],[Alloc4FUNC]])","v":"1823910ENVIR CST UNDR AMORT103425SILVER BELL MINE ENVIRONMENTAL REMEDSO"},1823910,"ENVIR CST UNDR AMORT",103425,"SILVER BELL MINE ENVIRONMENTAL REMED","SO",null,{"$f":"IF(OR(tblREGASSLookup[[#This Row],[Alloc]]=\"IDU\",tblREGASSLookup[[#This Row],[Alloc]]=\"OR\",tblREGASSLookup[[#This Row],[Alloc]]=\"UT\",tblREGASSLookup[[#This Row],[Alloc]]=\"WYU\",tblREGASSLookup[[#This Row],[Alloc]]=\"WYP\",tblREGASSLookup[[#This Row],[Alloc]]=\"CA\",tblREGASSLookup[[#This Row],[Alloc]]=\"WA\"),\"SITUS\",tblREGASSLookup[[#This Row],[Alloc]])","v":"SO"},"ESD"]
[{"$f":"CONCATENATE(tblREGASSLookup[[#This Row],[Primary Account]],tblREGASSLookup[[#This Row],[Primary Name]],tblREGASSLookup[[#This Row],[Secondary Acct]],tblREGASSLookup[[#This Row],[Secondary  Name]],tblREGASSLookup[[#This Row],[Alloc4FUNC]])","v":"1823910ENVIR CST UNDR AMORT103426SILVER BELL MINE ENVIRONMENTAL REMEDSO"},1823910,"ENVIR CST UNDR AMORT",103426,"SILVER BELL MINE ENVIRONMENTAL REMED","SO",null,{"$f":"IF(OR(tblREGASSLookup[[#This Row],[Alloc]]=\"IDU\",tblREGASSLookup[[#This Row],[Alloc]]=\"OR\",tblREGASSLookup[[#This Row],[Alloc]]=\"UT\",tblREGASSLookup[[#This Row],[Alloc]]=\"WYU\",tblREGASSLookup[[#This Row],[Alloc]]=\"WYP\",tblREGASSLookup[[#This Row],[Alloc]]=\"CA\",tblREGASSLookup[[#This Row],[Alloc]]=\"WA\"),\"SITUS\",tblREGASSLookup[[#This Row],[Alloc]])","v":"SO"},"ESD"]
[{"$f":"CONCATENATE(tblREGASSLookup[[#This Row],[Primary Account]],tblREGASSLookup[[#This Row],[Primary Name]],tblREGASSLookup[[#This Row],[Secondary Acct]],tblREGASSLookup[[#This Row],[Secondary  Name]],tblREGASSLookup[[#This Row],[Alloc4FUNC]])","v":"1823910ENVIR CST UNDR AMORT103435WASHINGTON NON-DEFERRED COSTSSITUS"},1823910,"ENVIR CST UNDR AMORT",103435,"WASHINGTON NON-DEFERRED COSTS","SITUS",null,{"$f":"IF(OR(tblREGASSLookup[[#This Row],[Alloc]]=\"IDU\",tblREGASSLookup[[#This Row],[Alloc]]=\"OR\",tblREGASSLookup[[#This Row],[Alloc]]=\"UT\",tblREGASSLookup[[#This Row],[Alloc]]=\"WYU\",tblREGASSLookup[[#This Row],[Alloc]]=\"WYP\",tblREGASSLookup[[#This Row],[Alloc]]=\"CA\",tblREGASSLookup[[#This Row],[Alloc]]=\"WA\"),\"SITUS\",tblREGASSLookup[[#This Row],[Alloc]])","v":"SITUS"},"ESD"]
[{"$f":"CONCATENATE(tblREGASSLookup[[#This Row],[Primary Account]],tblREGASSLookup[[#This Row],[Primary Name]],tblREGASSLookup[[#This Row],[Secondary Acct]],tblREGASSLookup[[#This Row],[Secondary  Name]],tblREGASSLookup[[#This Row],[Alloc4FUNC]])","v":"1823910ENVIR CST UNDR AMORT103436WASHINGTON NON-DEFERRED COSTSSITUS"},1823910,"ENVIR CST UNDR AMORT",103436,"WASHINGTON NON-DEFERRED COSTS","SITUS",null,{"$f":"IF(OR(tblREGASSLookup[[#This Row],[Alloc]]=\"IDU\",tblREGASSLookup[[#This Row],[Alloc]]=\"OR\",tblREGASSLookup[[#This Row],[Alloc]]=\"UT\",tblREGASSLookup[[#This Row],[Alloc]]=\"WYU\",tblREGASSLookup[[#This Row],[Alloc]]=\"WYP\",tblREGASSLookup[[#This Row],[Alloc]]=\"CA\",tblREGASSLookup[[#This Row],[Alloc]]=\"WA\"),\"SITUS\",tblREGASSLookup[[#This Row],[Alloc]])","v":"SITUS"},"ESD"]
[{"$f":"CONCATENATE(tblREGASSLookup[[#This Row],[Primary Account]],tblREGASSLookup[[#This Row],[Primary Name]],tblREGASSLookup[[#This Row],[Secondary Acct]],tblREGASSLookup[[#This Row],[Secondary  Name]],tblREGASSLookup[[#This Row],[Alloc4FUNC]])","v":"1823910ENVIR CST UNDR AMORT103437WASHINGTON NON-DEFERRED COSTSSITUS"},1823910,"ENVIR CST UNDR AMORT",103437,"WASHINGTON NON-DEFERRED COSTS","SITUS",null,{"$f":"IF(OR(tblREGASSLookup[[#This Row],[Alloc]]=\"IDU\",tblREGASSLookup[[#This Row],[Alloc]]=\"OR\",tblREGASSLookup[[#This Row],[Alloc]]=\"UT\",tblREGASSLookup[[#This Row],[Alloc]]=\"WYU\",tblREGASSLookup[[#This Row],[Alloc]]=\"WYP\",tblREGASSLookup[[#This Row],[Alloc]]=\"CA\",tblREGASSLookup[[#This Row],[Alloc]]=\"WA\"),\"SITUS\",tblREGASSLookup[[#This Row],[Alloc]])","v":"SITUS"},"ESD"]
[{"$f":"CONCATENATE(tblREGASSLookup[[#This Row],[Primary Account]],tblREGASSLookup[[#This Row],[Primary Name]],tblREGASSLookup[[#This Row],[Secondary Acct]],tblREGASSLookup[[#This Row],[Secondary  Name]],tblREGASSLookup[[#This Row],[Alloc4FUNC]])","v":"1823910ENVIR CST UNDR AMORT103438WASHINGTON NON-DEFERRED COSTSSITUS"},1823910,"ENVIR CST UNDR AMORT",103438,"WASHINGTON NON-DEFERRED COSTS","SITUS",null,{"$f":"IF(OR(tblREGASSLookup[[#This Row],[Alloc]]=\"IDU\",tblREGASSLookup[[#This Row],[Alloc]]=\"OR\",tblREGASSLookup[[#This Row],[Alloc]]=\"UT\",tblREGASSLookup[[#This Row],[Alloc]]=\"WYU\",tblREGASSLookup[[#This Row],[Alloc]]=\"WYP\",tblREGASSLookup[[#This Row],[Alloc]]=\"CA\",tblREGASSLookup[[#This Row],[Alloc]]=\"WA\"),\"SITUS\",tblREGASSLookup[[#This Row],[Alloc]])","v":"SITUS"},"ESD"]
[{"$f":"CONCATENATE(tblREGASSLookup[[#This Row],[Primary Account]],tblREGASSLookup[[#This Row],[Primary Name]],tblREGASSLookup[[#This Row],[Secondary Acct]],tblREGASSLookup[[#This Row],[Secondary  Name]],tblREGASSLookup[[#This Row],[Alloc4FUNC]])","v":"1823910ENVIR CST UNDR AMORT103439WASHINGTON NON-DEFERRED COSTSSITUS"},1823910,"ENVIR CST UNDR AMORT",103439,"WASHINGTON NON-DEFERRED COSTS","SITUS",null,{"$f":"IF(OR(tblREGASSLookup[[#This Row],[Alloc]]=\"IDU\",tblREGASSLookup[[#This Row],[Alloc]]=\"OR\",tblREGASSLookup[[#This Row],[Alloc]]=\"UT\",tblREGASSLookup[[#This Row],[Alloc]]=\"WYU\",tblREGASSLookup[[#This Row],[Alloc]]=\"WYP\",tblREGASSLookup[[#This Row],[Alloc]]=\"CA\",tblREGASSLookup[[#This Row],[Alloc]]=\"WA\"),\"SITUS\",tblREGASSLookup[[#This Row],[Alloc]])","v":"SITUS"},"ESD"]
[{"$f":"CONCATENATE(tblREGASSLookup[[#This Row],[Primary Account]],tblREGASSLookup[[#This Row],[Primary Name]],tblREGASSLookup[[#This Row],[Secondary Acct]],tblREGASSLookup[[#This Row],[Secondary  Name]],tblREGASSLookup[[#This Row],[Alloc4FUNC]])","v":"1823910ENVIR CST UNDR AMORT103440WASHINGTON NON-DEFERRED COSTSSITUS"},1823910,"ENVIR CST UNDR AMORT",103440,"WASHINGTON NON-DEFERRED COSTS","SITUS",null,{"$f":"IF(OR(tblREGASSLookup[[#This Row],[Alloc]]=\"IDU\",tblREGASSLookup[[#This Row],[Alloc]]=\"OR\",tblREGASSLookup[[#This Row],[Alloc]]=\"UT\",tblREGASSLookup[[#This Row],[Alloc]]=\"WYU\",tblREGASSLookup[[#This Row],[Alloc]]=\"WYP\",tblREGASSLookup[[#This Row],[Alloc]]=\"CA\",tblREGASSLookup[[#This Row],[Alloc]]=\"WA\"),\"SITUS\",tblREGASSLookup[[#This Row],[Alloc]])","v":"SITUS"},"ESD"]
[{"$f":"CONCATENATE(tblREGASSLookup[[#This Row],[Primary Account]],tblREGASSLookup[[#This Row],[Primary Name]],tblREGASSLookup[[#This Row],[Secondary Acct]],tblREGASSLookup[[#This Row],[Secondary  Name]],tblREGASSLookup[[#This Row],[Alloc4FUNC]])","v":"1823910ENVIR CST UNDR AMORT103443SILVER BELL MINE ENVIRONMENTAL REMEDSO"},1823910,"ENVIR CST UNDR AMORT",103443,"SILVER BELL MINE ENVIRONMENTAL REMED","SO",null,{"$f":"IF(OR(tblREGASSLookup[[#This Row],[Alloc]]=\"IDU\",tblREGASSLookup[[#This Row],[Alloc]]=\"OR\",tblREGASSLookup[[#This Row],[Alloc]]=\"UT\",tblREGASSLookup[[#This Row],[Alloc]]=\"WYU\",tblREGASSLookup[[#This Row],[Alloc]]=\"WYP\",tblREGASSLookup[[#This Row],[Alloc]]=\"CA\",tblREGASSLookup[[#This Row],[Alloc]]=\"WA\"),\"SITUS\",tblREGASSLookup[[#This Row],[Alloc]])","v":"SO"},"ESD"]
[{"$f":"CONCATENATE(tblREGASSLookup[[#This Row],[Primary Account]],tblREGASSLookup[[#This Row],[Primary Name]],tblREGASSLookup[[#This Row],[Secondary Acct]],tblREGASSLookup[[#This Row],[Secondary  Name]],tblREGASSLookup[[#This Row],[Alloc4FUNC]])","v":"1823910ENVIR CST UNDR AMORT103445American Barrel (UT)SO"},1823910,"ENVIR CST UNDR AMORT",103445,"American Barrel (UT)","SO",null,{"$f":"IF(OR(tblREGASSLookup[[#This Row],[Alloc]]=\"IDU\",tblREGASSLookup[[#This Row],[Alloc]]=\"OR\",tblREGASSLookup[[#This Row],[Alloc]]=\"UT\",tblREGASSLookup[[#This Row],[Alloc]]=\"WYU\",tblREGASSLookup[[#This Row],[Alloc]]=\"WYP\",tblREGASSLookup[[#This Row],[Alloc]]=\"CA\",tblREGASSLookup[[#This Row],[Alloc]]=\"WA\"),\"SITUS\",tblREGASSLookup[[#This Row],[Alloc]])","v":"SO"},"ESD"]
[{"$f":"CONCATENATE(tblREGASSLookup[[#This Row],[Primary Account]],tblREGASSLookup[[#This Row],[Primary Name]],tblREGASSLookup[[#This Row],[Secondary Acct]],tblREGASSLookup[[#This Row],[Secondary  Name]],tblREGASSLookup[[#This Row],[Alloc4FUNC]])","v":"1823910ENVIR CST UNDR AMORT103446Astoria/Unocal (Downtown)SO"},1823910,"ENVIR CST UNDR AMORT",103446,"Astoria/Unocal (Downtown)","SO",null,{"$f":"IF(OR(tblREGASSLookup[[#This Row],[Alloc]]=\"IDU\",tblREGASSLookup[[#This Row],[Alloc]]=\"OR\",tblREGASSLookup[[#This Row],[Alloc]]=\"UT\",tblREGASSLookup[[#This Row],[Alloc]]=\"WYU\",tblREGASSLookup[[#This Row],[Alloc]]=\"WYP\",tblREGASSLookup[[#This Row],[Alloc]]=\"CA\",tblREGASSLookup[[#This Row],[Alloc]]=\"WA\"),\"SITUS\",tblREGASSLookup[[#This Row],[Alloc]])","v":"SO"},"ESD"]
[{"$f":"CONCATENATE(tblREGASSLookup[[#This Row],[Primary Account]],tblREGASSLookup[[#This Row],[Primary Name]],tblREGASSLookup[[#This Row],[Secondary Acct]],tblREGASSLookup[[#This Row],[Secondary  Name]],tblREGASSLookup[[#This Row],[Alloc4FUNC]])","v":"1823910ENVIR CST UNDR AMORT103447Big Fork Hydro Plant (MT)SO"},1823910,"ENVIR CST UNDR AMORT",103447,"Big Fork Hydro Plant (MT)","SO",null,{"$f":"IF(OR(tblREGASSLookup[[#This Row],[Alloc]]=\"IDU\",tblREGASSLookup[[#This Row],[Alloc]]=\"OR\",tblREGASSLookup[[#This Row],[Alloc]]=\"UT\",tblREGASSLookup[[#This Row],[Alloc]]=\"WYU\",tblREGASSLookup[[#This Row],[Alloc]]=\"WYP\",tblREGASSLookup[[#This Row],[Alloc]]=\"CA\",tblREGASSLookup[[#This Row],[Alloc]]=\"WA\"),\"SITUS\",tblREGASSLookup[[#This Row],[Alloc]])","v":"SO"},"ESD"]
[{"$f":"CONCATENATE(tblREGASSLookup[[#This Row],[Primary Account]],tblREGASSLookup[[#This Row],[Primary Name]],tblREGASSLookup[[#This Row],[Secondary Acct]],tblREGASSLookup[[#This Row],[Secondary  Name]],tblREGASSLookup[[#This Row],[Alloc4FUNC]])","v":"1823910ENVIR CST UNDR AMORT103448Bridger Coal Fuel Oil SpillSO"},1823910,"ENVIR CST UNDR AMORT",103448,"Bridger Coal Fuel Oil Spill","SO",null,{"$f":"IF(OR(tblREGASSLookup[[#This Row],[Alloc]]=\"IDU\",tblREGASSLookup[[#This Row],[Alloc]]=\"OR\",tblREGASSLookup[[#This Row],[Alloc]]=\"UT\",tblREGASSLookup[[#This Row],[Alloc]]=\"WYU\",tblREGASSLookup[[#This Row],[Alloc]]=\"WYP\",tblREGASSLookup[[#This Row],[Alloc]]=\"CA\",tblREGASSLookup[[#This Row],[Alloc]]=\"WA\"),\"SITUS\",tblREGASSLookup[[#This Row],[Alloc]])","v":"SO"},"ESD"]
[{"$f":"CONCATENATE(tblREGASSLookup[[#This Row],[Primary Account]],tblREGASSLookup[[#This Row],[Primary Name]],tblREGASSLookup[[#This Row],[Secondary Acct]],tblREGASSLookup[[#This Row],[Secondary  Name]],tblREGASSLookup[[#This Row],[Alloc4FUNC]])","v":"1823910ENVIR CST UNDR AMORT103449Bridger FGD Pond 1 ClosureSO"},1823910,"ENVIR CST UNDR AMORT",103449,"Bridger FGD Pond 1 Closure","SO",null,{"$f":"IF(OR(tblREGASSLookup[[#This Row],[Alloc]]=\"IDU\",tblREGASSLookup[[#This Row],[Alloc]]=\"OR\",tblREGASSLookup[[#This Row],[Alloc]]=\"UT\",tblREGASSLookup[[#This Row],[Alloc]]=\"WYU\",tblREGASSLookup[[#This Row],[Alloc]]=\"WYP\",tblREGASSLookup[[#This Row],[Alloc]]=\"CA\",tblREGASSLookup[[#This Row],[Alloc]]=\"WA\"),\"SITUS\",tblREGASSLookup[[#This Row],[Alloc]])","v":"SO"},"ESD"]
[{"$f":"CONCATENATE(tblREGASSLookup[[#This Row],[Primary Account]],tblREGASSLookup[[#This Row],[Primary Name]],tblREGASSLookup[[#This Row],[Secondary Acct]],tblREGASSLookup[[#This Row],[Secondary  Name]],tblREGASSLookup[[#This Row],[Alloc4FUNC]])","v":"1823910ENVIR CST UNDR AMORT103450Bridger Plant Oil SpillsSO"},1823910,"ENVIR CST UNDR AMORT",103450,"Bridger Plant Oil Spills","SO",null,{"$f":"IF(OR(tblREGASSLookup[[#This Row],[Alloc]]=\"IDU\",tblREGASSLookup[[#This Row],[Alloc]]=\"OR\",tblREGASSLookup[[#This Row],[Alloc]]=\"UT\",tblREGASSLookup[[#This Row],[Alloc]]=\"WYU\",tblREGASSLookup[[#This Row],[Alloc]]=\"WYP\",tblREGASSLookup[[#This Row],[Alloc]]=\"CA\",tblREGASSLookup[[#This Row],[Alloc]]=\"WA\"),\"SITUS\",tblREGASSLookup[[#This Row],[Alloc]])","v":"SO"},"ESD"]
[{"$f":"CONCATENATE(tblREGASSLookup[[#This Row],[Primary Account]],tblREGASSLookup[[#This Row],[Primary Name]],tblREGASSLookup[[#This Row],[Secondary Acct]],tblREGASSLookup[[#This Row],[Secondary  Name]],tblREGASSLookup[[#This Row],[Alloc4FUNC]])","v":"1823910ENVIR CST UNDR AMORT103451Cedar Stream Plant (UT)SO"},1823910,"ENVIR CST UNDR AMORT",103451,"Cedar Stream Plant (UT)","SO",null,{"$f":"IF(OR(tblREGASSLookup[[#This Row],[Alloc]]=\"IDU\",tblREGASSLookup[[#This Row],[Alloc]]=\"OR\",tblREGASSLookup[[#This Row],[Alloc]]=\"UT\",tblREGASSLookup[[#This Row],[Alloc]]=\"WYU\",tblREGASSLookup[[#This Row],[Alloc]]=\"WYP\",tblREGASSLookup[[#This Row],[Alloc]]=\"CA\",tblREGASSLookup[[#This Row],[Alloc]]=\"WA\"),\"SITUS\",tblREGASSLookup[[#This Row],[Alloc]])","v":"SO"},"ESD"]
[{"$f":"CONCATENATE(tblREGASSLookup[[#This Row],[Primary Account]],tblREGASSLookup[[#This Row],[Primary Name]],tblREGASSLookup[[#This Row],[Secondary Acct]],tblREGASSLookup[[#This Row],[Secondary  Name]],tblREGASSLookup[[#This Row],[Alloc4FUNC]])","v":"1823910ENVIR CST UNDR AMORT103452Dave Johnston Oil SpillSO"},1823910,"ENVIR CST UNDR AMORT",103452,"Dave Johnston Oil Spill","SO",null,{"$f":"IF(OR(tblREGASSLookup[[#This Row],[Alloc]]=\"IDU\",tblREGASSLookup[[#This Row],[Alloc]]=\"OR\",tblREGASSLookup[[#This Row],[Alloc]]=\"UT\",tblREGASSLookup[[#This Row],[Alloc]]=\"WYU\",tblREGASSLookup[[#This Row],[Alloc]]=\"WYP\",tblREGASSLookup[[#This Row],[Alloc]]=\"CA\",tblREGASSLookup[[#This Row],[Alloc]]=\"WA\"),\"SITUS\",tblREGASSLookup[[#This Row],[Alloc]])","v":"SO"},"ESD"]
[{"$f":"CONCATENATE(tblREGASSLookup[[#This Row],[Primary Account]],tblREGASSLookup[[#This Row],[Primary Name]],tblREGASSLookup[[#This Row],[Secondary Acct]],tblREGASSLookup[[#This Row],[Secondary  Name]],tblREGASSLookup[[#This Row],[Alloc4FUNC]])","v":"1823910ENVIR CST UNDR AMORT103453Eugene MGP (50% PCRP)SO"},1823910,"ENVIR CST UNDR AMORT",103453,"Eugene MGP (50% PCRP)","SO",null,{"$f":"IF(OR(tblREGASSLookup[[#This Row],[Alloc]]=\"IDU\",tblREGASSLookup[[#This Row],[Alloc]]=\"OR\",tblREGASSLookup[[#This Row],[Alloc]]=\"UT\",tblREGASSLookup[[#This Row],[Alloc]]=\"WYU\",tblREGASSLookup[[#This Row],[Alloc]]=\"WYP\",tblREGASSLookup[[#This Row],[Alloc]]=\"CA\",tblREGASSLookup[[#This Row],[Alloc]]=\"WA\"),\"SITUS\",tblREGASSLookup[[#This Row],[Alloc]])","v":"SO"},"ESD"]
[{"$f":"CONCATENATE(tblREGASSLookup[[#This Row],[Primary Account]],tblREGASSLookup[[#This Row],[Primary Name]],tblREGASSLookup[[#This Row],[Secondary Acct]],tblREGASSLookup[[#This Row],[Secondary  Name]],tblREGASSLookup[[#This Row],[Alloc4FUNC]])","v":"1823910ENVIR CST UNDR AMORT103454Everett MGP (2/3 PCRP)SO"},1823910,"ENVIR CST UNDR AMORT",103454,"Everett MGP (2/3 PCRP)","SO",null,{"$f":"IF(OR(tblREGASSLookup[[#This Row],[Alloc]]=\"IDU\",tblREGASSLookup[[#This Row],[Alloc]]=\"OR\",tblREGASSLookup[[#This Row],[Alloc]]=\"UT\",tblREGASSLookup[[#This Row],[Alloc]]=\"WYU\",tblREGASSLookup[[#This Row],[Alloc]]=\"WYP\",tblREGASSLookup[[#This Row],[Alloc]]=\"CA\",tblREGASSLookup[[#This Row],[Alloc]]=\"WA\"),\"SITUS\",tblREGASSLookup[[#This Row],[Alloc]])","v":"SO"},"ESD"]
[{"$f":"CONCATENATE(tblREGASSLookup[[#This Row],[Primary Account]],tblREGASSLookup[[#This Row],[Primary Name]],tblREGASSLookup[[#This Row],[Secondary Acct]],tblREGASSLookup[[#This Row],[Secondary  Name]],tblREGASSLookup[[#This Row],[Alloc4FUNC]])","v":"1823910ENVIR CST UNDR AMORT103455Hunter Fuel Oil SpillsSO"},1823910,"ENVIR CST UNDR AMORT",103455,"Hunter Fuel Oil Spills","SO",null,{"$f":"IF(OR(tblREGASSLookup[[#This Row],[Alloc]]=\"IDU\",tblREGASSLookup[[#This Row],[Alloc]]=\"OR\",tblREGASSLookup[[#This Row],[Alloc]]=\"UT\",tblREGASSLookup[[#This Row],[Alloc]]=\"WYU\",tblREGASSLookup[[#This Row],[Alloc]]=\"WYP\",tblREGASSLookup[[#This Row],[Alloc]]=\"CA\",tblREGASSLookup[[#This Row],[Alloc]]=\"WA\"),\"SITUS\",tblREGASSLookup[[#This Row],[Alloc]])","v":"SO"},"ESD"]
[{"$f":"CONCATENATE(tblREGASSLookup[[#This Row],[Primary Account]],tblREGASSLookup[[#This Row],[Primary Name]],tblREGASSLookup[[#This Row],[Secondary Acct]],tblREGASSLookup[[#This Row],[Secondary  Name]],tblREGASSLookup[[#This Row],[Alloc4FUNC]])","v":"1823910ENVIR CST UNDR AMORT103456Huntington Ash LandfillSO"},1823910,"ENVIR CST UNDR AMORT",103456,"Huntington Ash Landfill","SO",null,{"$f":"IF(OR(tblREGASSLookup[[#This Row],[Alloc]]=\"IDU\",tblREGASSLookup[[#This Row],[Alloc]]=\"OR\",tblREGASSLookup[[#This Row],[Alloc]]=\"UT\",tblREGASSLookup[[#This Row],[Alloc]]=\"WYU\",tblREGASSLookup[[#This Row],[Alloc]]=\"WYP\",tblREGASSLookup[[#This Row],[Alloc]]=\"CA\",tblREGASSLookup[[#This Row],[Alloc]]=\"WA\"),\"SITUS\",tblREGASSLookup[[#This Row],[Alloc]])","v":"SO"},"ESD"]
[{"$f":"CONCATENATE(tblREGASSLookup[[#This Row],[Primary Account]],tblREGASSLookup[[#This Row],[Primary Name]],tblREGASSLookup[[#This Row],[Secondary Acct]],tblREGASSLookup[[#This Row],[Secondary  Name]],tblREGASSLookup[[#This Row],[Alloc4FUNC]])","v":"1823910ENVIR CST UNDR AMORT103457Idaho Falls Pole YardSO"},1823910,"ENVIR CST UNDR AMORT",103457,"Idaho Falls Pole Yard","SO",null,{"$f":"IF(OR(tblREGASSLookup[[#This Row],[Alloc]]=\"IDU\",tblREGASSLookup[[#This Row],[Alloc]]=\"OR\",tblREGASSLookup[[#This Row],[Alloc]]=\"UT\",tblREGASSLookup[[#This Row],[Alloc]]=\"WYU\",tblREGASSLookup[[#This Row],[Alloc]]=\"WYP\",tblREGASSLookup[[#This Row],[Alloc]]=\"CA\",tblREGASSLookup[[#This Row],[Alloc]]=\"WA\"),\"SITUS\",tblREGASSLookup[[#This Row],[Alloc]])","v":"SO"},"ESD"]
[{"$f":"CONCATENATE(tblREGASSLookup[[#This Row],[Primary Account]],tblREGASSLookup[[#This Row],[Primary Name]],tblREGASSLookup[[#This Row],[Secondary Acct]],tblREGASSLookup[[#This Row],[Secondary  Name]],tblREGASSLookup[[#This Row],[Alloc4FUNC]])","v":"1823910ENVIR CST UNDR AMORT103458Jordan Plant SubstationSO"},1823910,"ENVIR CST UNDR AMORT",103458,"Jordan Plant Substation","SO",null,{"$f":"IF(OR(tblREGASSLookup[[#This Row],[Alloc]]=\"IDU\",tblREGASSLookup[[#This Row],[Alloc]]=\"OR\",tblREGASSLookup[[#This Row],[Alloc]]=\"UT\",tblREGASSLookup[[#This Row],[Alloc]]=\"WYU\",tblREGASSLookup[[#This Row],[Alloc]]=\"WYP\",tblREGASSLookup[[#This Row],[Alloc]]=\"CA\",tblREGASSLookup[[#This Row],[Alloc]]=\"WA\"),\"SITUS\",tblREGASSLookup[[#This Row],[Alloc]])","v":"SO"},"ESD"]
[{"$f":"CONCATENATE(tblREGASSLookup[[#This Row],[Primary Account]],tblREGASSLookup[[#This Row],[Primary Name]],tblREGASSLookup[[#This Row],[Secondary Acct]],tblREGASSLookup[[#This Row],[Secondary  Name]],tblREGASSLookup[[#This Row],[Alloc4FUNC]])","v":"1823910ENVIR CST UNDR AMORT103459Little Mountain Gas PlantSO"},1823910,"ENVIR CST UNDR AMORT",103459,"Little Mountain Gas Plant","SO",null,{"$f":"IF(OR(tblREGASSLookup[[#This Row],[Alloc]]=\"IDU\",tblREGASSLookup[[#This Row],[Alloc]]=\"OR\",tblREGASSLookup[[#This Row],[Alloc]]=\"UT\",tblREGASSLookup[[#This Row],[Alloc]]=\"WYU\",tblREGASSLookup[[#This Row],[Alloc]]=\"WYP\",tblREGASSLookup[[#This Row],[Alloc]]=\"CA\",tblREGASSLookup[[#This Row],[Alloc]]=\"WA\"),\"SITUS\",tblREGASSLookup[[#This Row],[Alloc]])","v":"SO"},"ESD"]
[{"$f":"CONCATENATE(tblREGASSLookup[[#This Row],[Primary Account]],tblREGASSLookup[[#This Row],[Primary Name]],tblREGASSLookup[[#This Row],[Secondary Acct]],tblREGASSLookup[[#This Row],[Secondary  Name]],tblREGASSLookup[[#This Row],[Alloc4FUNC]])","v":"1823910ENVIR CST UNDR AMORT103460Montague Ranch (CA)SO"},1823910,"ENVIR CST UNDR AMORT",103460,"Montague Ranch (CA)","SO",null,{"$f":"IF(OR(tblREGASSLookup[[#This Row],[Alloc]]=\"IDU\",tblREGASSLookup[[#This Row],[Alloc]]=\"OR\",tblREGASSLookup[[#This Row],[Alloc]]=\"UT\",tblREGASSLookup[[#This Row],[Alloc]]=\"WYU\",tblREGASSLookup[[#This Row],[Alloc]]=\"WYP\",tblREGASSLookup[[#This Row],[Alloc]]=\"CA\",tblREGASSLookup[[#This Row],[Alloc]]=\"WA\"),\"SITUS\",tblREGASSLookup[[#This Row],[Alloc]])","v":"SO"},"ESD"]
[{"$f":"CONCATENATE(tblREGASSLookup[[#This Row],[Primary Account]],tblREGASSLookup[[#This Row],[Primary Name]],tblREGASSLookup[[#This Row],[Secondary Acct]],tblREGASSLookup[[#This Row],[Secondary  Name]],tblREGASSLookup[[#This Row],[Alloc4FUNC]])","v":"1823910ENVIR CST UNDR AMORT103461Naughton FGD Pond ClosureSO"},1823910,"ENVIR CST UNDR AMORT",103461,"Naughton FGD Pond Closure","SO",null,{"$f":"IF(OR(tblREGASSLookup[[#This Row],[Alloc]]=\"IDU\",tblREGASSLookup[[#This Row],[Alloc]]=\"OR\",tblREGASSLookup[[#This Row],[Alloc]]=\"UT\",tblREGASSLookup[[#This Row],[Alloc]]=\"WYU\",tblREGASSLookup[[#This Row],[Alloc]]=\"WYP\",tblREGASSLookup[[#This Row],[Alloc]]=\"CA\",tblREGASSLookup[[#This Row],[Alloc]]=\"WA\"),\"SITUS\",tblREGASSLookup[[#This Row],[Alloc]])","v":"SO"},"ESD"]
[{"$f":"CONCATENATE(tblREGASSLookup[[#This Row],[Primary Account]],tblREGASSLookup[[#This Row],[Primary Name]],tblREGASSLookup[[#This Row],[Secondary Acct]],tblREGASSLookup[[#This Row],[Secondary  Name]],tblREGASSLookup[[#This Row],[Alloc4FUNC]])","v":"1823910ENVIR CST UNDR AMORT103462Ogden MGPSO"},1823910,"ENVIR CST UNDR AMORT",103462,"Ogden MGP","SO",null,{"$f":"IF(OR(tblREGASSLookup[[#This Row],[Alloc]]=\"IDU\",tblREGASSLookup[[#This Row],[Alloc]]=\"OR\",tblREGASSLookup[[#This Row],[Alloc]]=\"UT\",tblREGASSLookup[[#This Row],[Alloc]]=\"WYU\",tblREGASSLookup[[#This Row],[Alloc]]=\"WYP\",tblREGASSLookup[[#This Row],[Alloc]]=\"CA\",tblREGASSLookup[[#This Row],[Alloc]]=\"WA\"),\"SITUS\",tblREGASSLookup[[#This Row],[Alloc]])","v":"SO"},"ESD"]
[{"$f":"CONCATENATE(tblREGASSLookup[[#This Row],[Primary Account]],tblREGASSLookup[[#This Row],[Primary Name]],tblREGASSLookup[[#This Row],[Secondary Acct]],tblREGASSLookup[[#This Row],[Secondary  Name]],tblREGASSLookup[[#This Row],[Alloc4FUNC]])","v":"1823910ENVIR CST UNDR AMORT103464Powerdale Hydro PlantSO"},1823910,"ENVIR CST UNDR AMORT",103464,"Powerdale Hydro Plant","SO",null,{"$f":"IF(OR(tblREGASSLookup[[#This Row],[Alloc]]=\"IDU\",tblREGASSLookup[[#This Row],[Alloc]]=\"OR\",tblREGASSLookup[[#This Row],[Alloc]]=\"UT\",tblREGASSLookup[[#This Row],[Alloc]]=\"WYU\",tblREGASSLookup[[#This Row],[Alloc]]=\"WYP\",tblREGASSLookup[[#This Row],[Alloc]]=\"CA\",tblREGASSLookup[[#This Row],[Alloc]]=\"WA\"),\"SITUS\",tblREGASSLookup[[#This Row],[Alloc]])","v":"SO"},"ESD"]
[{"$f":"CONCATENATE(tblREGASSLookup[[#This Row],[Primary Account]],tblREGASSLookup[[#This Row],[Primary Name]],tblREGASSLookup[[#This Row],[Secondary Acct]],tblREGASSLookup[[#This Row],[Secondary  Name]],tblREGASSLookup[[#This Row],[Alloc4FUNC]])","v":"1823910ENVIR CST UNDR AMORT103465Tacoma A St. (25% PCRP)SO"},1823910,"ENVIR CST UNDR AMORT",103465,"Tacoma A St. (25% PCRP)","SO",null,{"$f":"IF(OR(tblREGASSLookup[[#This Row],[Alloc]]=\"IDU\",tblREGASSLookup[[#This Row],[Alloc]]=\"OR\",tblREGASSLookup[[#This Row],[Alloc]]=\"UT\",tblREGASSLookup[[#This Row],[Alloc]]=\"WYU\",tblREGASSLookup[[#This Row],[Alloc]]=\"WYP\",tblREGASSLookup[[#This Row],[Alloc]]=\"CA\",tblREGASSLookup[[#This Row],[Alloc]]=\"WA\"),\"SITUS\",tblREGASSLookup[[#This Row],[Alloc]])","v":"SO"},"ESD"]
[{"$f":"CONCATENATE(tblREGASSLookup[[#This Row],[Primary Account]],tblREGASSLookup[[#This Row],[Primary Name]],tblREGASSLookup[[#This Row],[Secondary Acct]],tblREGASSLookup[[#This Row],[Secondary  Name]],tblREGASSLookup[[#This Row],[Alloc4FUNC]])","v":"1823910ENVIR CST UNDR AMORT103466Portland Harbor Service CtrSO"},1823910,"ENVIR CST UNDR AMORT",103466,"Portland Harbor Service Ctr","SO",null,{"$f":"IF(OR(tblREGASSLookup[[#This Row],[Alloc]]=\"IDU\",tblREGASSLookup[[#This Row],[Alloc]]=\"OR\",tblREGASSLookup[[#This Row],[Alloc]]=\"UT\",tblREGASSLookup[[#This Row],[Alloc]]=\"WYU\",tblREGASSLookup[[#This Row],[Alloc]]=\"WYP\",tblREGASSLookup[[#This Row],[Alloc]]=\"CA\",tblREGASSLookup[[#This Row],[Alloc]]=\"WA\"),\"SITUS\",tblREGASSLookup[[#This Row],[Alloc]])","v":"SO"},"ESD"]
[{"$f":"CONCATENATE(tblREGASSLookup[[#This Row],[Primary Account]],tblREGASSLookup[[#This Row],[Primary Name]],tblREGASSLookup[[#This Row],[Secondary Acct]],tblREGASSLookup[[#This Row],[Secondary  Name]],tblREGASSLookup[[#This Row],[Alloc4FUNC]])","v":"1823910ENVIR CST UNDR AMORT103467Wyodak Fuel Oil SpillSO"},1823910,"ENVIR CST UNDR AMORT",103467,"Wyodak Fuel Oil Spill","SO",null,{"$f":"IF(OR(tblREGASSLookup[[#This Row],[Alloc]]=\"IDU\",tblREGASSLookup[[#This Row],[Alloc]]=\"OR\",tblREGASSLookup[[#This Row],[Alloc]]=\"UT\",tblREGASSLookup[[#This Row],[Alloc]]=\"WYU\",tblREGASSLookup[[#This Row],[Alloc]]=\"WYP\",tblREGASSLookup[[#This Row],[Alloc]]=\"CA\",tblREGASSLookup[[#This Row],[Alloc]]=\"WA\"),\"SITUS\",tblREGASSLookup[[#This Row],[Alloc]])","v":"SO"},"ESD"]
[{"$f":"CONCATENATE(tblREGASSLookup[[#This Row],[Primary Account]],tblREGASSLookup[[#This Row],[Primary Name]],tblREGASSLookup[[#This Row],[Secondary Acct]],tblREGASSLookup[[#This Row],[Secondary  Name]],tblREGASSLookup[[#This Row],[Alloc4FUNC]])","v":"1823910ENVIR CST UNDR AMORT103585CLINE FALLS-HYDROSO"},1823910,"ENVIR CST UNDR AMORT",103585,"CLINE FALLS-HYDRO","SO",null,{"$f":"IF(OR(tblREGASSLookup[[#This Row],[Alloc]]=\"IDU\",tblREGASSLookup[[#This Row],[Alloc]]=\"OR\",tblREGASSLookup[[#This Row],[Alloc]]=\"UT\",tblREGASSLookup[[#This Row],[Alloc]]=\"WYU\",tblREGASSLookup[[#This Row],[Alloc]]=\"WYP\",tblREGASSLookup[[#This Row],[Alloc]]=\"CA\",tblREGASSLookup[[#This Row],[Alloc]]=\"WA\"),\"SITUS\",tblREGASSLookup[[#This Row],[Alloc]])","v":"SO"},"ESD"]
[{"$f":"CONCATENATE(tblREGASSLookup[[#This Row],[Primary Account]],tblREGASSLookup[[#This Row],[Primary Name]],tblREGASSLookup[[#This Row],[Secondary Acct]],tblREGASSLookup[[#This Row],[Secondary  Name]],tblREGASSLookup[[#This Row],[Alloc4FUNC]])","v":"1823910ENVIR CST UNDR AMORT103737Geneva Rock Bldg - Hunter PlantSO"},1823910,"ENVIR CST UNDR AMORT",103737,"Geneva Rock Bldg - Hunter Plant","SO",null,{"$f":"IF(OR(tblREGASSLookup[[#This Row],[Alloc]]=\"IDU\",tblREGASSLookup[[#This Row],[Alloc]]=\"OR\",tblREGASSLookup[[#This Row],[Alloc]]=\"UT\",tblREGASSLookup[[#This Row],[Alloc]]=\"WYU\",tblREGASSLookup[[#This Row],[Alloc]]=\"WYP\",tblREGASSLookup[[#This Row],[Alloc]]=\"CA\",tblREGASSLookup[[#This Row],[Alloc]]=\"WA\"),\"SITUS\",tblREGASSLookup[[#This Row],[Alloc]])","v":"SO"},"ESD"]
[{"$f":"CONCATENATE(tblREGASSLookup[[#This Row],[Primary Account]],tblREGASSLookup[[#This Row],[Primary Name]],tblREGASSLookup[[#This Row],[Secondary Acct]],tblREGASSLookup[[#This Row],[Secondary  Name]],tblREGASSLookup[[#This Row],[Alloc4FUNC]])","v":"1823910ENVIR CST UNDR AMORT103851Alturas Service Center (CA)SO"},1823910,"ENVIR CST UNDR AMORT",103851,"Alturas Service Center (CA)","SO",null,{"$f":"IF(OR(tblREGASSLookup[[#This Row],[Alloc]]=\"IDU\",tblREGASSLookup[[#This Row],[Alloc]]=\"OR\",tblREGASSLookup[[#This Row],[Alloc]]=\"UT\",tblREGASSLookup[[#This Row],[Alloc]]=\"WYU\",tblREGASSLookup[[#This Row],[Alloc]]=\"WYP\",tblREGASSLookup[[#This Row],[Alloc]]=\"CA\",tblREGASSLookup[[#This Row],[Alloc]]=\"WA\"),\"SITUS\",tblREGASSLookup[[#This Row],[Alloc]])","v":"SO"},"ESD"]
[{"$f":"CONCATENATE(tblREGASSLookup[[#This Row],[Primary Account]],tblREGASSLookup[[#This Row],[Primary Name]],tblREGASSLookup[[#This Row],[Secondary Acct]],tblREGASSLookup[[#This Row],[Secondary  Name]],tblREGASSLookup[[#This Row],[Alloc4FUNC]])","v":"1823910ENVIR CST UNDR AMORT103852Pendleton Service Center  (OR)SO"},1823910,"ENVIR CST UNDR AMORT",103852,"Pendleton Service Center  (OR)","SO",null,{"$f":"IF(OR(tblREGASSLookup[[#This Row],[Alloc]]=\"IDU\",tblREGASSLookup[[#This Row],[Alloc]]=\"OR\",tblREGASSLookup[[#This Row],[Alloc]]=\"UT\",tblREGASSLookup[[#This Row],[Alloc]]=\"WYU\",tblREGASSLookup[[#This Row],[Alloc]]=\"WYP\",tblREGASSLookup[[#This Row],[Alloc]]=\"CA\",tblREGASSLookup[[#This Row],[Alloc]]=\"WA\"),\"SITUS\",tblREGASSLookup[[#This Row],[Alloc]])","v":"SO"},"ESD"]
[{"$f":"CONCATENATE(tblREGASSLookup[[#This Row],[Primary Account]],tblREGASSLookup[[#This Row],[Primary Name]],tblREGASSLookup[[#This Row],[Secondary Acct]],tblREGASSLookup[[#This Row],[Secondary  Name]],tblREGASSLookup[[#This Row],[Alloc4FUNC]])","v":"1823910ENVIR CST UNDR AMORT103853Sunnyside Service Center (WA)SO"},1823910,"ENVIR CST UNDR AMORT",103853,"Sunnyside Service Center (WA)","SO",null,{"$f":"IF(OR(tblREGASSLookup[[#This Row],[Alloc]]=\"IDU\",tblREGASSLookup[[#This Row],[Alloc]]=\"OR\",tblREGASSLookup[[#This Row],[Alloc]]=\"UT\",tblREGASSLookup[[#This Row],[Alloc]]=\"WYU\",tblREGASSLookup[[#This Row],[Alloc]]=\"WYP\",tblREGASSLookup[[#This Row],[Alloc]]=\"CA\",tblREGASSLookup[[#This Row],[Alloc]]=\"WA\"),\"SITUS\",tblREGASSLookup[[#This Row],[Alloc]])","v":"SO"},"ESD"]
[{"$f":"CONCATENATE(tblREGASSLookup[[#This Row],[Primary Account]],tblREGASSLookup[[#This Row],[Primary Name]],tblREGASSLookup[[#This Row],[Secondary Acct]],tblREGASSLookup[[#This Row],[Secondary  Name]],tblREGASSLookup[[#This Row],[Alloc4FUNC]])","v":"1823910ENVIR CST UNDR AMORT103940D-SM Retail Minor Sites - RMP - 2012SO"},1823910,"ENVIR CST UNDR AMORT",103940,"D-SM Retail Minor Sites - RMP - 2012","SO",null,{"$f":"IF(OR(tblREGASSLookup[[#This Row],[Alloc]]=\"IDU\",tblREGASSLookup[[#This Row],[Alloc]]=\"OR\",tblREGASSLookup[[#This Row],[Alloc]]=\"UT\",tblREGASSLookup[[#This Row],[Alloc]]=\"WYU\",tblREGASSLookup[[#This Row],[Alloc]]=\"WYP\",tblREGASSLookup[[#This Row],[Alloc]]=\"CA\",tblREGASSLookup[[#This Row],[Alloc]]=\"WA\"),\"SITUS\",tblREGASSLookup[[#This Row],[Alloc]])","v":"SO"},"ESD"]
[{"$f":"CONCATENATE(tblREGASSLookup[[#This Row],[Primary Account]],tblREGASSLookup[[#This Row],[Primary Name]],tblREGASSLookup[[#This Row],[Secondary Acct]],tblREGASSLookup[[#This Row],[Secondary  Name]],tblREGASSLookup[[#This Row],[Alloc4FUNC]])","v":"1823910ENVIR CST UNDR AMORT103941D-SM Retail Minor Sites - RMP - 2013SO"},1823910,"ENVIR CST UNDR AMORT",103941,"D-SM Retail Minor Sites - RMP - 2013","SO",null,{"$f":"IF(OR(tblREGASSLookup[[#This Row],[Alloc]]=\"IDU\",tblREGASSLookup[[#This Row],[Alloc]]=\"OR\",tblREGASSLookup[[#This Row],[Alloc]]=\"UT\",tblREGASSLookup[[#This Row],[Alloc]]=\"WYU\",tblREGASSLookup[[#This Row],[Alloc]]=\"WYP\",tblREGASSLookup[[#This Row],[Alloc]]=\"CA\",tblREGASSLookup[[#This Row],[Alloc]]=\"WA\"),\"SITUS\",tblREGASSLookup[[#This Row],[Alloc]])","v":"SO"},"ESD"]
[{"$f":"CONCATENATE(tblREGASSLookup[[#This Row],[Primary Account]],tblREGASSLookup[[#This Row],[Primary Name]],tblREGASSLookup[[#This Row],[Secondary Acct]],tblREGASSLookup[[#This Row],[Secondary  Name]],tblREGASSLookup[[#This Row],[Alloc4FUNC]])","v":"1823910ENVIR CST UNDR AMORT103942D-SM Retail Minor Sites - RMP - 2014SO"},1823910,"ENVIR CST UNDR AMORT",103942,"D-SM Retail Minor Sites - RMP - 2014","SO",null,{"$f":"IF(OR(tblREGASSLookup[[#This Row],[Alloc]]=\"IDU\",tblREGASSLookup[[#This Row],[Alloc]]=\"OR\",tblREGASSLookup[[#This Row],[Alloc]]=\"UT\",tblREGASSLookup[[#This Row],[Alloc]]=\"WYU\",tblREGASSLookup[[#This Row],[Alloc]]=\"WYP\",tblREGASSLookup[[#This Row],[Alloc]]=\"CA\",tblREGASSLookup[[#This Row],[Alloc]]=\"WA\"),\"SITUS\",tblREGASSLookup[[#This Row],[Alloc]])","v":"SO"},"ESD"]
[{"$f":"CONCATENATE(tblREGASSLookup[[#This Row],[Primary Account]],tblREGASSLookup[[#This Row],[Primary Name]],tblREGASSLookup[[#This Row],[Secondary Acct]],tblREGASSLookup[[#This Row],[Secondary  Name]],tblREGASSLookup[[#This Row],[Alloc4FUNC]])","v":"1823910ENVIR CST UNDR AMORT103943D-SM Retail Minor Sites - RMP - 2007SO"},1823910,"ENVIR CST UNDR AMORT",103943,"D-SM Retail Minor Sites - RMP - 2007","SO",null,{"$f":"IF(OR(tblREGASSLookup[[#This Row],[Alloc]]=\"IDU\",tblREGASSLookup[[#This Row],[Alloc]]=\"OR\",tblREGASSLookup[[#This Row],[Alloc]]=\"UT\",tblREGASSLookup[[#This Row],[Alloc]]=\"WYU\",tblREGASSLookup[[#This Row],[Alloc]]=\"WYP\",tblREGASSLookup[[#This Row],[Alloc]]=\"CA\",tblREGASSLookup[[#This Row],[Alloc]]=\"WA\"),\"SITUS\",tblREGASSLookup[[#This Row],[Alloc]])","v":"SO"},"ESD"]
[{"$f":"CONCATENATE(tblREGASSLookup[[#This Row],[Primary Account]],tblREGASSLookup[[#This Row],[Primary Name]],tblREGASSLookup[[#This Row],[Secondary Acct]],tblREGASSLookup[[#This Row],[Secondary  Name]],tblREGASSLookup[[#This Row],[Alloc4FUNC]])","v":"1823910ENVIR CST UNDR AMORT103944D-SM Retail Minor Sites - RMP - 2008SO"},1823910,"ENVIR CST UNDR AMORT",103944,"D-SM Retail Minor Sites - RMP - 2008","SO",null,{"$f":"IF(OR(tblREGASSLookup[[#This Row],[Alloc]]=\"IDU\",tblREGASSLookup[[#This Row],[Alloc]]=\"OR\",tblREGASSLookup[[#This Row],[Alloc]]=\"UT\",tblREGASSLookup[[#This Row],[Alloc]]=\"WYU\",tblREGASSLookup[[#This Row],[Alloc]]=\"WYP\",tblREGASSLookup[[#This Row],[Alloc]]=\"CA\",tblREGASSLookup[[#This Row],[Alloc]]=\"WA\"),\"SITUS\",tblREGASSLookup[[#This Row],[Alloc]])","v":"SO"},"ESD"]
[{"$f":"CONCATENATE(tblREGASSLookup[[#This Row],[Primary Account]],tblREGASSLookup[[#This Row],[Primary Name]],tblREGASSLookup[[#This Row],[Secondary Acct]],tblREGASSLookup[[#This Row],[Secondary  Name]],tblREGASSLookup[[#This Row],[Alloc4FUNC]])","v":"1823910ENVIR CST UNDR AMORT103945D-SM Retail Minor Sites - RMP - 2009SO"},1823910,"ENVIR CST UNDR AMORT",103945,"D-SM Retail Minor Sites - RMP - 2009","SO",null,{"$f":"IF(OR(tblREGASSLookup[[#This Row],[Alloc]]=\"IDU\",tblREGASSLookup[[#This Row],[Alloc]]=\"OR\",tblREGASSLookup[[#This Row],[Alloc]]=\"UT\",tblREGASSLookup[[#This Row],[Alloc]]=\"WYU\",tblREGASSLookup[[#This Row],[Alloc]]=\"WYP\",tblREGASSLookup[[#This Row],[Alloc]]=\"CA\",tblREGASSLookup[[#This Row],[Alloc]]=\"WA\"),\"SITUS\",tblREGASSLookup[[#This Row],[Alloc]])","v":"SO"},"ESD"]
[{"$f":"CONCATENATE(tblREGASSLookup[[#This Row],[Primary Account]],tblREGASSLookup[[#This Row],[Primary Name]],tblREGASSLookup[[#This Row],[Secondary Acct]],tblREGASSLookup[[#This Row],[Secondary  Name]],tblREGASSLookup[[#This Row],[Alloc4FUNC]])","v":"1823910ENVIR CST UNDR AMORT103946D-SM Retail Minor Sites - RMP - 2010SO"},1823910,"ENVIR CST UNDR AMORT",103946,"D-SM Retail Minor Sites - RMP - 2010","SO",null,{"$f":"IF(OR(tblREGASSLookup[[#This Row],[Alloc]]=\"IDU\",tblREGASSLookup[[#This Row],[Alloc]]=\"OR\",tblREGASSLookup[[#This Row],[Alloc]]=\"UT\",tblREGASSLookup[[#This Row],[Alloc]]=\"WYU\",tblREGASSLookup[[#This Row],[Alloc]]=\"WYP\",tblREGASSLookup[[#This Row],[Alloc]]=\"CA\",tblREGASSLookup[[#This Row],[Alloc]]=\"WA\"),\"SITUS\",tblREGASSLookup[[#This Row],[Alloc]])","v":"SO"},"ESD"]
[{"$f":"CONCATENATE(tblREGASSLookup[[#This Row],[Primary Account]],tblREGASSLookup[[#This Row],[Primary Name]],tblREGASSLookup[[#This Row],[Secondary Acct]],tblREGASSLookup[[#This Row],[Secondary  Name]],tblREGASSLookup[[#This Row],[Alloc4FUNC]])","v":"1823910ENVIR CST UNDR AMORT103947D-SM Retail Minor Sites - RMP - 2011SO"},1823910,"ENVIR CST UNDR AMORT",103947,"D-SM Retail Minor Sites - RMP - 2011","SO",null,{"$f":"IF(OR(tblREGASSLookup[[#This Row],[Alloc]]=\"IDU\",tblREGASSLookup[[#This Row],[Alloc]]=\"OR\",tblREGASSLookup[[#This Row],[Alloc]]=\"UT\",tblREGASSLookup[[#This Row],[Alloc]]=\"WYU\",tblREGASSLookup[[#This Row],[Alloc]]=\"WYP\",tblREGASSLookup[[#This Row],[Alloc]]=\"CA\",tblREGASSLookup[[#This Row],[Alloc]]=\"WA\"),\"SITUS\",tblREGASSLookup[[#This Row],[Alloc]])","v":"SO"},"ESD"]
[{"$f":"CONCATENATE(tblREGASSLookup[[#This Row],[Primary Account]],tblREGASSLookup[[#This Row],[Primary Name]],tblREGASSLookup[[#This Row],[Secondary Acct]],tblREGASSLookup[[#This Row],[Secondary  Name]],tblREGASSLookup[[#This Row],[Alloc4FUNC]])","v":"1823910ENVIR CST UNDR AMORT103948WASHINGTON NON-DEFERRED COSTS-SPPC PACIFSITUS"},1823910,"ENVIR CST UNDR AMORT",103948,"WASHINGTON NON-DEFERRED COSTS-SPPC PACIF","SITUS",null,{"$f":"IF(OR(tblREGASSLookup[[#This Row],[Alloc]]=\"IDU\",tblREGASSLookup[[#This Row],[Alloc]]=\"OR\",tblREGASSLookup[[#This Row],[Alloc]]=\"UT\",tblREGASSLookup[[#This Row],[Alloc]]=\"WYU\",tblREGASSLookup[[#This Row],[Alloc]]=\"WYP\",tblREGASSLookup[[#This Row],[Alloc]]=\"CA\",tblREGASSLookup[[#This Row],[Alloc]]=\"WA\"),\"SITUS\",tblREGASSLookup[[#This Row],[Alloc]])","v":"SITUS"},"ESD"]
[{"$f":"CONCATENATE(tblREGASSLookup[[#This Row],[Primary Account]],tblREGASSLookup[[#This Row],[Primary Name]],tblREGASSLookup[[#This Row],[Secondary Acct]],tblREGASSLookup[[#This Row],[Secondary  Name]],tblREGASSLookup[[#This Row],[Alloc4FUNC]])","v":"1823910ENVIR CST UNDR AMORT103949WASHINGTON NON-DEFERRED COSTS-SPPC ROCKYSITUS"},1823910,"ENVIR CST UNDR AMORT",103949,"WASHINGTON NON-DEFERRED COSTS-SPPC ROCKY","SITUS",null,{"$f":"IF(OR(tblREGASSLookup[[#This Row],[Alloc]]=\"IDU\",tblREGASSLookup[[#This Row],[Alloc]]=\"OR\",tblREGASSLookup[[#This Row],[Alloc]]=\"UT\",tblREGASSLookup[[#This Row],[Alloc]]=\"WYU\",tblREGASSLookup[[#This Row],[Alloc]]=\"WYP\",tblREGASSLookup[[#This Row],[Alloc]]=\"CA\",tblREGASSLookup[[#This Row],[Alloc]]=\"WA\"),\"SITUS\",tblREGASSLookup[[#This Row],[Alloc]])","v":"SITUS"},"ESD"]
[{"$f":"CONCATENATE(tblREGASSLookup[[#This Row],[Primary Account]],tblREGASSLookup[[#This Row],[Primary Name]],tblREGASSLookup[[#This Row],[Secondary Acct]],tblREGASSLookup[[#This Row],[Secondary  Name]],tblREGASSLookup[[#This Row],[Alloc4FUNC]])","v":"1823910ENVIR CST UNDR AMORT103950WASHINGTON NON-DEFERRED COSTS-REMEDIATIOSITUS"},1823910,"ENVIR CST UNDR AMORT",103950,"WASHINGTON NON-DEFERRED COSTS-REMEDIATIO","SITUS",null,{"$f":"IF(OR(tblREGASSLookup[[#This Row],[Alloc]]=\"IDU\",tblREGASSLookup[[#This Row],[Alloc]]=\"OR\",tblREGASSLookup[[#This Row],[Alloc]]=\"UT\",tblREGASSLookup[[#This Row],[Alloc]]=\"WYU\",tblREGASSLookup[[#This Row],[Alloc]]=\"WYP\",tblREGASSLookup[[#This Row],[Alloc]]=\"CA\",tblREGASSLookup[[#This Row],[Alloc]]=\"WA\"),\"SITUS\",tblREGASSLookup[[#This Row],[Alloc]])","v":"SITUS"},"ESD"]
[{"$f":"CONCATENATE(tblREGASSLookup[[#This Row],[Primary Account]],tblREGASSLookup[[#This Row],[Primary Name]],tblREGASSLookup[[#This Row],[Secondary Acct]],tblREGASSLookup[[#This Row],[Secondary  Name]],tblREGASSLookup[[#This Row],[Alloc4FUNC]])","v":"1823910ENVIR CST UNDR AMORT103951WASHINGTON NON-DEFERRED COSTS-REMEDIATIOSITUS"},1823910,"ENVIR CST UNDR AMORT",103951,"WASHINGTON NON-DEFERRED COSTS-REMEDIATIO","SITUS",null,{"$f":"IF(OR(tblREGASSLookup[[#This Row],[Alloc]]=\"IDU\",tblREGASSLookup[[#This Row],[Alloc]]=\"OR\",tblREGASSLookup[[#This Row],[Alloc]]=\"UT\",tblREGASSLookup[[#This Row],[Alloc]]=\"WYU\",tblREGASSLookup[[#This Row],[Alloc]]=\"WYP\",tblREGASSLookup[[#This Row],[Alloc]]=\"CA\",tblREGASSLookup[[#This Row],[Alloc]]=\"WA\"),\"SITUS\",tblREGASSLookup[[#This Row],[Alloc]])","v":"SITUS"},"ESD"]
[{"$f":"CONCATENATE(tblREGASSLookup[[#This Row],[Primary Account]],tblREGASSLookup[[#This Row],[Primary Name]],tblREGASSLookup[[#This Row],[Secondary Acct]],tblREGASSLookup[[#This Row],[Secondary  Name]],tblREGASSLookup[[#This Row],[Alloc4FUNC]])","v":"1823910ENVIR CST UNDR AMORT103952WASHINGTON NON-DEFERRED COSTS-REMEDIATIOSITUS"},1823910,"ENVIR CST UNDR AMORT",103952,"WASHINGTON NON-DEFERRED COSTS-REMEDIATIO","SITUS",null,{"$f":"IF(OR(tblREGASSLookup[[#This Row],[Alloc]]=\"IDU\",tblREGASSLookup[[#This Row],[Alloc]]=\"OR\",tblREGASSLookup[[#This Row],[Alloc]]=\"UT\",tblREGASSLookup[[#This Row],[Alloc]]=\"WYU\",tblREGASSLookup[[#This Row],[Alloc]]=\"WYP\",tblREGASSLookup[[#This Row],[Alloc]]=\"CA\",tblREGASSLookup[[#This Row],[Alloc]]=\"WA\"),\"SITUS\",tblREGASSLookup[[#This Row],[Alloc]])","v":"SITUS"},"ESD"]
[{"$f":"CONCATENATE(tblREGASSLookup[[#This Row],[Primary Account]],tblREGASSLookup[[#This Row],[Primary Name]],tblREGASSLookup[[#This Row],[Secondary Acct]],tblREGASSLookup[[#This Row],[Secondary  Name]],tblREGASSLookup[[#This Row],[Alloc4FUNC]])","v":"1823910ENVIR CST UNDR AMORT103953Wash Non-Def Costs - SPPC - RMP - 2012SITUS"},1823910,"ENVIR CST UNDR AMORT",103953,"Wash Non-Def Costs - SPPC - RMP - 2012","SITUS",null,{"$f":"IF(OR(tblREGASSLookup[[#This Row],[Alloc]]=\"IDU\",tblREGASSLookup[[#This Row],[Alloc]]=\"OR\",tblREGASSLookup[[#This Row],[Alloc]]=\"UT\",tblREGASSLookup[[#This Row],[Alloc]]=\"WYU\",tblREGASSLookup[[#This Row],[Alloc]]=\"WYP\",tblREGASSLookup[[#This Row],[Alloc]]=\"CA\",tblREGASSLookup[[#This Row],[Alloc]]=\"WA\"),\"SITUS\",tblREGASSLookup[[#This Row],[Alloc]])","v":"SITUS"},"ESD"]
[{"$f":"CONCATENATE(tblREGASSLookup[[#This Row],[Primary Account]],tblREGASSLookup[[#This Row],[Primary Name]],tblREGASSLookup[[#This Row],[Secondary Acct]],tblREGASSLookup[[#This Row],[Secondary  Name]],tblREGASSLookup[[#This Row],[Alloc4FUNC]])","v":"1823910ENVIR CST UNDR AMORT103954Wash Non-Def Costs - SPPC - RMP - 2013SITUS"},1823910,"ENVIR CST UNDR AMORT",103954,"Wash Non-Def Costs - SPPC - RMP - 2013","SITUS",null,{"$f":"IF(OR(tblREGASSLookup[[#This Row],[Alloc]]=\"IDU\",tblREGASSLookup[[#This Row],[Alloc]]=\"OR\",tblREGASSLookup[[#This Row],[Alloc]]=\"UT\",tblREGASSLookup[[#This Row],[Alloc]]=\"WYU\",tblREGASSLookup[[#This Row],[Alloc]]=\"WYP\",tblREGASSLookup[[#This Row],[Alloc]]=\"CA\",tblREGASSLookup[[#This Row],[Alloc]]=\"WA\"),\"SITUS\",tblREGASSLookup[[#This Row],[Alloc]])","v":"SITUS"},"ESD"]
[{"$f":"CONCATENATE(tblREGASSLookup[[#This Row],[Primary Account]],tblREGASSLookup[[#This Row],[Primary Name]],tblREGASSLookup[[#This Row],[Secondary Acct]],tblREGASSLookup[[#This Row],[Secondary  Name]],tblREGASSLookup[[#This Row],[Alloc4FUNC]])","v":"1823910ENVIR CST UNDR AMORT103955Wash Non-Def Costs - SPPC - RMP - 2014SITUS"},1823910,"ENVIR CST UNDR AMORT",103955,"Wash Non-Def Costs - SPPC - RMP - 2014","SITUS",null,{"$f":"IF(OR(tblREGASSLookup[[#This Row],[Alloc]]=\"IDU\",tblREGASSLookup[[#This Row],[Alloc]]=\"OR\",tblREGASSLookup[[#This Row],[Alloc]]=\"UT\",tblREGASSLookup[[#This Row],[Alloc]]=\"WYU\",tblREGASSLookup[[#This Row],[Alloc]]=\"WYP\",tblREGASSLookup[[#This Row],[Alloc]]=\"CA\",tblREGASSLookup[[#This Row],[Alloc]]=\"WA\"),\"SITUS\",tblREGASSLookup[[#This Row],[Alloc]])","v":"SITUS"},"ESD"]
[{"$f":"CONCATENATE(tblREGASSLookup[[#This Row],[Primary Account]],tblREGASSLookup[[#This Row],[Primary Name]],tblREGASSLookup[[#This Row],[Secondary Acct]],tblREGASSLookup[[#This Row],[Secondary  Name]],tblREGASSLookup[[#This Row],[Alloc4FUNC]])","v":"1823910ENVIR CST UNDR AMORT103961D-SM RETAIL MINOR SITES - RMPSO"},1823910,"ENVIR CST UNDR AMORT",103961,"D-SM RETAIL MINOR SITES - RMP","SO",null,{"$f":"IF(OR(tblREGASSLookup[[#This Row],[Alloc]]=\"IDU\",tblREGASSLookup[[#This Row],[Alloc]]=\"OR\",tblREGASSLookup[[#This Row],[Alloc]]=\"UT\",tblREGASSLookup[[#This Row],[Alloc]]=\"WYU\",tblREGASSLookup[[#This Row],[Alloc]]=\"WYP\",tblREGASSLookup[[#This Row],[Alloc]]=\"CA\",tblREGASSLookup[[#This Row],[Alloc]]=\"WA\"),\"SITUS\",tblREGASSLookup[[#This Row],[Alloc]])","v":"SO"},"ESD"]
[{"$f":"CONCATENATE(tblREGASSLookup[[#This Row],[Primary Account]],tblREGASSLookup[[#This Row],[Primary Name]],tblREGASSLookup[[#This Row],[Secondary Acct]],tblREGASSLookup[[#This Row],[Secondary  Name]],tblREGASSLookup[[#This Row],[Alloc4FUNC]])","v":"1823910ENVIR CST UNDR AMORT104072FREEPORT SUBSTATIONSO"},1823910,"ENVIR CST UNDR AMORT",104072,"FREEPORT SUBSTATION","SO",null,{"$f":"IF(OR(tblREGASSLookup[[#This Row],[Alloc]]=\"IDU\",tblREGASSLookup[[#This Row],[Alloc]]=\"OR\",tblREGASSLookup[[#This Row],[Alloc]]=\"UT\",tblREGASSLookup[[#This Row],[Alloc]]=\"WYU\",tblREGASSLookup[[#This Row],[Alloc]]=\"WYP\",tblREGASSLookup[[#This Row],[Alloc]]=\"CA\",tblREGASSLookup[[#This Row],[Alloc]]=\"WA\"),\"SITUS\",tblREGASSLookup[[#This Row],[Alloc]])","v":"SO"},"ESD"]
[{"$f":"CONCATENATE(tblREGASSLookup[[#This Row],[Primary Account]],tblREGASSLookup[[#This Row],[Primary Name]],tblREGASSLookup[[#This Row],[Secondary Acct]],tblREGASSLookup[[#This Row],[Secondary  Name]],tblREGASSLookup[[#This Row],[Alloc4FUNC]])","v":"1823910ENVIR CST UNDR AMORT104108Bors Property  (OR) - 2016SO"},1823910,"ENVIR CST UNDR AMORT",104108,"Bors Property  (OR) - 2016","SO",null,{"$f":"IF(OR(tblREGASSLookup[[#This Row],[Alloc]]=\"IDU\",tblREGASSLookup[[#This Row],[Alloc]]=\"OR\",tblREGASSLookup[[#This Row],[Alloc]]=\"UT\",tblREGASSLookup[[#This Row],[Alloc]]=\"WYU\",tblREGASSLookup[[#This Row],[Alloc]]=\"WYP\",tblREGASSLookup[[#This Row],[Alloc]]=\"CA\",tblREGASSLookup[[#This Row],[Alloc]]=\"WA\"),\"SITUS\",tblREGASSLookup[[#This Row],[Alloc]])","v":"SO"},"ESD"]
[{"$f":"CONCATENATE(tblREGASSLookup[[#This Row],[Primary Account]],tblREGASSLookup[[#This Row],[Primary Name]],tblREGASSLookup[[#This Row],[Secondary Acct]],tblREGASSLookup[[#This Row],[Secondary  Name]],tblREGASSLookup[[#This Row],[Alloc4FUNC]])","v":"1823910ENVIR CST UNDR AMORT104112Carbon Ash Spill  (UT) - 2016SO"},1823910,"ENVIR CST UNDR AMORT",104112,"Carbon Ash Spill  (UT) - 2016","SO",null,{"$f":"IF(OR(tblREGASSLookup[[#This Row],[Alloc]]=\"IDU\",tblREGASSLookup[[#This Row],[Alloc]]=\"OR\",tblREGASSLookup[[#This Row],[Alloc]]=\"UT\",tblREGASSLookup[[#This Row],[Alloc]]=\"WYU\",tblREGASSLookup[[#This Row],[Alloc]]=\"WYP\",tblREGASSLookup[[#This Row],[Alloc]]=\"CA\",tblREGASSLookup[[#This Row],[Alloc]]=\"WA\"),\"SITUS\",tblREGASSLookup[[#This Row],[Alloc]])","v":"SO"},"ESD"]
[{"$f":"CONCATENATE(tblREGASSLookup[[#This Row],[Primary Account]],tblREGASSLookup[[#This Row],[Primary Name]],tblREGASSLookup[[#This Row],[Secondary Acct]],tblREGASSLookup[[#This Row],[Secondary  Name]],tblREGASSLookup[[#This Row],[Alloc4FUNC]])","v":"1823920DSR COSTS AMORTIZED0DSR COST AMORTSITUS"},1823920,"DSR COSTS AMORTIZED",0,"DSR COST AMORT","SITUS",null,{"$f":"IF(OR(tblREGASSLookup[[#This Row],[Alloc]]=\"IDU\",tblREGASSLookup[[#This Row],[Alloc]]=\"OR\",tblREGASSLookup[[#This Row],[Alloc]]=\"UT\",tblREGASSLookup[[#This Row],[Alloc]]=\"WYU\",tblREGASSLookup[[#This Row],[Alloc]]=\"WYP\",tblREGASSLookup[[#This Row],[Alloc]]=\"CA\",tblREGASSLookup[[#This Row],[Alloc]]=\"WA\"),\"SITUS\",tblREGASSLookup[[#This Row],[Alloc]])","v":"SITUS"},"CUST"]
[{"$f":"CONCATENATE(tblREGASSLookup[[#This Row],[Primary Account]],tblREGASSLookup[[#This Row],[Primary Name]],tblREGASSLookup[[#This Row],[Secondary Acct]],tblREGASSLookup[[#This Row],[Secondary  Name]],tblREGASSLookup[[#This Row],[Alloc4FUNC]])","v":"1823920DSR COSTS AMORTIZED0DSR COST AMORTOTHER"},1823920,"DSR COSTS AMORTIZED",0,"DSR COST AMORT","OTHER",null,{"$f":"IF(OR(tblREGASSLookup[[#This Row],[Alloc]]=\"IDU\",tblREGASSLookup[[#This Row],[Alloc]]=\"OR\",tblREGASSLookup[[#This Row],[Alloc]]=\"UT\",tblREGASSLookup[[#This Row],[Alloc]]=\"WYU\",tblREGASSLookup[[#This Row],[Alloc]]=\"WYP\",tblREGASSLookup[[#This Row],[Alloc]]=\"CA\",tblREGASSLookup[[#This Row],[Alloc]]=\"WA\"),\"SITUS\",tblREGASSLookup[[#This Row],[Alloc]])","v":"OTHER"},"CUST"]
[{"$f":"CONCATENATE(tblREGASSLookup[[#This Row],[Primary Account]],tblREGASSLookup[[#This Row],[Primary Name]],tblREGASSLookup[[#This Row],[Secondary Acct]],tblREGASSLookup[[#This Row],[Secondary  Name]],tblREGASSLookup[[#This Row],[Alloc4FUNC]])","v":"1823920DSR COSTS AMORTIZED0DSR COST AMORTSITUS"},1823920,"DSR COSTS AMORTIZED",0,"DSR COST AMORT","SITUS",null,{"$f":"IF(OR(tblREGASSLookup[[#This Row],[Alloc]]=\"IDU\",tblREGASSLookup[[#This Row],[Alloc]]=\"OR\",tblREGASSLookup[[#This Row],[Alloc]]=\"UT\",tblREGASSLookup[[#This Row],[Alloc]]=\"WYU\",tblREGASSLookup[[#This Row],[Alloc]]=\"WYP\",tblREGASSLookup[[#This Row],[Alloc]]=\"CA\",tblREGASSLookup[[#This Row],[Alloc]]=\"WA\"),\"SITUS\",tblREGASSLookup[[#This Row],[Alloc]])","v":"SITUS"},"CUST"]
[{"$f":"CONCATENATE(tblREGASSLookup[[#This Row],[Primary Account]],tblREGASSLookup[[#This Row],[Primary Name]],tblREGASSLookup[[#This Row],[Secondary Acct]],tblREGASSLookup[[#This Row],[Secondary  Name]],tblREGASSLookup[[#This Row],[Alloc4FUNC]])","v":"1823920DSR COSTS AMORTIZED102030ENERGY FINANSWER - WASHINGTONOTHER"},1823920,"DSR COSTS AMORTIZED",102030,"ENERGY FINANSWER - WASHINGTON","OTHER",null,{"$f":"IF(OR(tblREGASSLookup[[#This Row],[Alloc]]=\"IDU\",tblREGASSLookup[[#This Row],[Alloc]]=\"OR\",tblREGASSLookup[[#This Row],[Alloc]]=\"UT\",tblREGASSLookup[[#This Row],[Alloc]]=\"WYU\",tblREGASSLookup[[#This Row],[Alloc]]=\"WYP\",tblREGASSLookup[[#This Row],[Alloc]]=\"CA\",tblREGASSLookup[[#This Row],[Alloc]]=\"WA\"),\"SITUS\",tblREGASSLookup[[#This Row],[Alloc]])","v":"OTHER"},"CUST"]
[{"$f":"CONCATENATE(tblREGASSLookup[[#This Row],[Primary Account]],tblREGASSLookup[[#This Row],[Primary Name]],tblREGASSLookup[[#This Row],[Secondary Acct]],tblREGASSLookup[[#This Row],[Secondary  Name]],tblREGASSLookup[[#This Row],[Alloc4FUNC]])","v":"1823920DSR COSTS AMORTIZED102032INDUSTRIAL FINANSWER - WASHINGTONOTHER"},1823920,"DSR COSTS AMORTIZED",102032,"INDUSTRIAL FINANSWER - WASHINGTON","OTHER",null,{"$f":"IF(OR(tblREGASSLookup[[#This Row],[Alloc]]=\"IDU\",tblREGASSLookup[[#This Row],[Alloc]]=\"OR\",tblREGASSLookup[[#This Row],[Alloc]]=\"UT\",tblREGASSLookup[[#This Row],[Alloc]]=\"WYU\",tblREGASSLookup[[#This Row],[Alloc]]=\"WYP\",tblREGASSLookup[[#This Row],[Alloc]]=\"CA\",tblREGASSLookup[[#This Row],[Alloc]]=\"WA\"),\"SITUS\",tblREGASSLookup[[#This Row],[Alloc]])","v":"OTHER"},"CUST"]
[{"$f":"CONCATENATE(tblREGASSLookup[[#This Row],[Primary Account]],tblREGASSLookup[[#This Row],[Primary Name]],tblREGASSLookup[[#This Row],[Secondary Acct]],tblREGASSLookup[[#This Row],[Secondary  Name]],tblREGASSLookup[[#This Row],[Alloc4FUNC]])","v":"1823920DSR COSTS AMORTIZED102033LOW INCOME - WASHINGTONOTHER"},1823920,"DSR COSTS AMORTIZED",102033,"LOW INCOME - WASHINGTON","OTHER",null,{"$f":"IF(OR(tblREGASSLookup[[#This Row],[Alloc]]=\"IDU\",tblREGASSLookup[[#This Row],[Alloc]]=\"OR\",tblREGASSLookup[[#This Row],[Alloc]]=\"UT\",tblREGASSLookup[[#This Row],[Alloc]]=\"WYU\",tblREGASSLookup[[#This Row],[Alloc]]=\"WYP\",tblREGASSLookup[[#This Row],[Alloc]]=\"CA\",tblREGASSLookup[[#This Row],[Alloc]]=\"WA\"),\"SITUS\",tblREGASSLookup[[#This Row],[Alloc]])","v":"OTHER"},"CUST"]
[{"$f":"CONCATENATE(tblREGASSLookup[[#This Row],[Primary Account]],tblREGASSLookup[[#This Row],[Primary Name]],tblREGASSLookup[[#This Row],[Secondary Acct]],tblREGASSLookup[[#This Row],[Secondary  Name]],tblREGASSLookup[[#This Row],[Alloc4FUNC]])","v":"1823920DSR COSTS AMORTIZED102034SELF AUDIT - WASHINGTONOTHER"},1823920,"DSR COSTS AMORTIZED",102034,"SELF AUDIT - WASHINGTON","OTHER",null,{"$f":"IF(OR(tblREGASSLookup[[#This Row],[Alloc]]=\"IDU\",tblREGASSLookup[[#This Row],[Alloc]]=\"OR\",tblREGASSLookup[[#This Row],[Alloc]]=\"UT\",tblREGASSLookup[[#This Row],[Alloc]]=\"WYU\",tblREGASSLookup[[#This Row],[Alloc]]=\"WYP\",tblREGASSLookup[[#This Row],[Alloc]]=\"CA\",tblREGASSLookup[[#This Row],[Alloc]]=\"WA\"),\"SITUS\",tblREGASSLookup[[#This Row],[Alloc]])","v":"OTHER"},"CUST"]
[{"$f":"CONCATENATE(tblREGASSLookup[[#This Row],[Primary Account]],tblREGASSLookup[[#This Row],[Primary Name]],tblREGASSLookup[[#This Row],[Secondary Acct]],tblREGASSLookup[[#This Row],[Secondary  Name]],tblREGASSLookup[[#This Row],[Alloc4FUNC]])","v":"1823920DSR COSTS AMORTIZED102036COMMERCIAL SMALL RETROFIT - WASHINGTONOTHER"},1823920,"DSR COSTS AMORTIZED",102036,"COMMERCIAL SMALL RETROFIT - WASHINGTON","OTHER",null,{"$f":"IF(OR(tblREGASSLookup[[#This Row],[Alloc]]=\"IDU\",tblREGASSLookup[[#This Row],[Alloc]]=\"OR\",tblREGASSLookup[[#This Row],[Alloc]]=\"UT\",tblREGASSLookup[[#This Row],[Alloc]]=\"WYU\",tblREGASSLookup[[#This Row],[Alloc]]=\"WYP\",tblREGASSLookup[[#This Row],[Alloc]]=\"CA\",tblREGASSLookup[[#This Row],[Alloc]]=\"WA\"),\"SITUS\",tblREGASSLookup[[#This Row],[Alloc]])","v":"OTHER"},"CUST"]
[{"$f":"CONCATENATE(tblREGASSLookup[[#This Row],[Primary Account]],tblREGASSLookup[[#This Row],[Primary Name]],tblREGASSLookup[[#This Row],[Secondary Acct]],tblREGASSLookup[[#This Row],[Secondary  Name]],tblREGASSLookup[[#This Row],[Alloc4FUNC]])","v":"1823920DSR COSTS AMORTIZED102037INDUSTRIAL SMALL RETROFIT - WASHINGTONOTHER"},1823920,"DSR COSTS AMORTIZED",102037,"INDUSTRIAL SMALL RETROFIT - WASHINGTON","OTHER",null,{"$f":"IF(OR(tblREGASSLookup[[#This Row],[Alloc]]=\"IDU\",tblREGASSLookup[[#This Row],[Alloc]]=\"OR\",tblREGASSLookup[[#This Row],[Alloc]]=\"UT\",tblREGASSLookup[[#This Row],[Alloc]]=\"WYU\",tblREGASSLookup[[#This Row],[Alloc]]=\"WYP\",tblREGASSLookup[[#This Row],[Alloc]]=\"CA\",tblREGASSLookup[[#This Row],[Alloc]]=\"WA\"),\"SITUS\",tblREGASSLookup[[#This Row],[Alloc]])","v":"OTHER"},"CUST"]
[{"$f":"CONCATENATE(tblREGASSLookup[[#This Row],[Primary Account]],tblREGASSLookup[[#This Row],[Primary Name]],tblREGASSLookup[[#This Row],[Secondary Acct]],tblREGASSLookup[[#This Row],[Secondary  Name]],tblREGASSLookup[[#This Row],[Alloc4FUNC]])","v":"1823920DSR COSTS AMORTIZED102038COMMERCIAL RETROFIT LIGHTING - WASHINGTOOTHER"},1823920,"DSR COSTS AMORTIZED",102038,"COMMERCIAL RETROFIT LIGHTING - WASHINGTO","OTHER",null,{"$f":"IF(OR(tblREGASSLookup[[#This Row],[Alloc]]=\"IDU\",tblREGASSLookup[[#This Row],[Alloc]]=\"OR\",tblREGASSLookup[[#This Row],[Alloc]]=\"UT\",tblREGASSLookup[[#This Row],[Alloc]]=\"WYU\",tblREGASSLookup[[#This Row],[Alloc]]=\"WYP\",tblREGASSLookup[[#This Row],[Alloc]]=\"CA\",tblREGASSLookup[[#This Row],[Alloc]]=\"WA\"),\"SITUS\",tblREGASSLookup[[#This Row],[Alloc]])","v":"OTHER"},"CUST"]
[{"$f":"CONCATENATE(tblREGASSLookup[[#This Row],[Primary Account]],tblREGASSLookup[[#This Row],[Primary Name]],tblREGASSLookup[[#This Row],[Secondary Acct]],tblREGASSLookup[[#This Row],[Secondary  Name]],tblREGASSLookup[[#This Row],[Alloc4FUNC]])","v":"1823920DSR COSTS AMORTIZED102039INDUSTRIAL RETROFIT LIGHTING-WAOTHER"},1823920,"DSR COSTS AMORTIZED",102039,"INDUSTRIAL RETROFIT LIGHTING-WA","OTHER",null,{"$f":"IF(OR(tblREGASSLookup[[#This Row],[Alloc]]=\"IDU\",tblREGASSLookup[[#This Row],[Alloc]]=\"OR\",tblREGASSLookup[[#This Row],[Alloc]]=\"UT\",tblREGASSLookup[[#This Row],[Alloc]]=\"WYU\",tblREGASSLookup[[#This Row],[Alloc]]=\"WYP\",tblREGASSLookup[[#This Row],[Alloc]]=\"CA\",tblREGASSLookup[[#This Row],[Alloc]]=\"WA\"),\"SITUS\",tblREGASSLookup[[#This Row],[Alloc]])","v":"OTHER"},"CUST"]
[{"$f":"CONCATENATE(tblREGASSLookup[[#This Row],[Primary Account]],tblREGASSLookup[[#This Row],[Primary Name]],tblREGASSLookup[[#This Row],[Secondary Acct]],tblREGASSLookup[[#This Row],[Secondary  Name]],tblREGASSLookup[[#This Row],[Alloc4FUNC]])","v":"1823920DSR COSTS AMORTIZED102040NEEA - WASHINGTONOTHER"},1823920,"DSR COSTS AMORTIZED",102040,"NEEA - WASHINGTON","OTHER",null,{"$f":"IF(OR(tblREGASSLookup[[#This Row],[Alloc]]=\"IDU\",tblREGASSLookup[[#This Row],[Alloc]]=\"OR\",tblREGASSLookup[[#This Row],[Alloc]]=\"UT\",tblREGASSLookup[[#This Row],[Alloc]]=\"WYU\",tblREGASSLookup[[#This Row],[Alloc]]=\"WYP\",tblREGASSLookup[[#This Row],[Alloc]]=\"CA\",tblREGASSLookup[[#This Row],[Alloc]]=\"WA\"),\"SITUS\",tblREGASSLookup[[#This Row],[Alloc]])","v":"OTHER"},"CUST"]
[{"$f":"CONCATENATE(tblREGASSLookup[[#This Row],[Primary Account]],tblREGASSLookup[[#This Row],[Primary Name]],tblREGASSLookup[[#This Row],[Secondary Acct]],tblREGASSLookup[[#This Row],[Secondary  Name]],tblREGASSLookup[[#This Row],[Alloc4FUNC]])","v":"1823920DSR COSTS AMORTIZED102043ENERGY CODE DEVELOPMENTOTHER"},1823920,"DSR COSTS AMORTIZED",102043,"ENERGY CODE DEVELOPMENT","OTHER",null,{"$f":"IF(OR(tblREGASSLookup[[#This Row],[Alloc]]=\"IDU\",tblREGASSLookup[[#This Row],[Alloc]]=\"OR\",tblREGASSLookup[[#This Row],[Alloc]]=\"UT\",tblREGASSLookup[[#This Row],[Alloc]]=\"WYU\",tblREGASSLookup[[#This Row],[Alloc]]=\"WYP\",tblREGASSLookup[[#This Row],[Alloc]]=\"CA\",tblREGASSLookup[[#This Row],[Alloc]]=\"WA\"),\"SITUS\",tblREGASSLookup[[#This Row],[Alloc]])","v":"OTHER"},"CUST"]
[{"$f":"CONCATENATE(tblREGASSLookup[[#This Row],[Primary Account]],tblREGASSLookup[[#This Row],[Primary Name]],tblREGASSLookup[[#This Row],[Secondary Acct]],tblREGASSLookup[[#This Row],[Secondary  Name]],tblREGASSLookup[[#This Row],[Alloc4FUNC]])","v":"1823920DSR COSTS AMORTIZED102044HOME COMFORT - WASHINGTONOTHER"},1823920,"DSR COSTS AMORTIZED",102044,"HOME COMFORT - WASHINGTON","OTHER",null,{"$f":"IF(OR(tblREGASSLookup[[#This Row],[Alloc]]=\"IDU\",tblREGASSLookup[[#This Row],[Alloc]]=\"OR\",tblREGASSLookup[[#This Row],[Alloc]]=\"UT\",tblREGASSLookup[[#This Row],[Alloc]]=\"WYU\",tblREGASSLookup[[#This Row],[Alloc]]=\"WYP\",tblREGASSLookup[[#This Row],[Alloc]]=\"CA\",tblREGASSLookup[[#This Row],[Alloc]]=\"WA\"),\"SITUS\",tblREGASSLookup[[#This Row],[Alloc]])","v":"OTHER"},"CUST"]
[{"$f":"CONCATENATE(tblREGASSLookup[[#This Row],[Primary Account]],tblREGASSLookup[[#This Row],[Primary Name]],tblREGASSLookup[[#This Row],[Secondary Acct]],tblREGASSLookup[[#This Row],[Secondary  Name]],tblREGASSLookup[[#This Row],[Alloc4FUNC]])","v":"1823920DSR COSTS AMORTIZED102045WEATHERIZATION - WASHINGTONOTHER"},1823920,"DSR COSTS AMORTIZED",102045,"WEATHERIZATION - WASHINGTON","OTHER",null,{"$f":"IF(OR(tblREGASSLookup[[#This Row],[Alloc]]=\"IDU\",tblREGASSLookup[[#This Row],[Alloc]]=\"OR\",tblREGASSLookup[[#This Row],[Alloc]]=\"UT\",tblREGASSLookup[[#This Row],[Alloc]]=\"WYU\",tblREGASSLookup[[#This Row],[Alloc]]=\"WYP\",tblREGASSLookup[[#This Row],[Alloc]]=\"CA\",tblREGASSLookup[[#This Row],[Alloc]]=\"WA\"),\"SITUS\",tblREGASSLookup[[#This Row],[Alloc]])","v":"OTHER"},"CUST"]
[{"$f":"CONCATENATE(tblREGASSLookup[[#This Row],[Primary Account]],tblREGASSLookup[[#This Row],[Primary Name]],tblREGASSLookup[[#This Row],[Secondary Acct]],tblREGASSLookup[[#This Row],[Secondary  Name]],tblREGASSLookup[[#This Row],[Alloc4FUNC]])","v":"1823920DSR COSTS AMORTIZED102046HASSLE FREEOTHER"},1823920,"DSR COSTS AMORTIZED",102046,"HASSLE FREE","OTHER",null,{"$f":"IF(OR(tblREGASSLookup[[#This Row],[Alloc]]=\"IDU\",tblREGASSLookup[[#This Row],[Alloc]]=\"OR\",tblREGASSLookup[[#This Row],[Alloc]]=\"UT\",tblREGASSLookup[[#This Row],[Alloc]]=\"WYU\",tblREGASSLookup[[#This Row],[Alloc]]=\"WYP\",tblREGASSLookup[[#This Row],[Alloc]]=\"CA\",tblREGASSLookup[[#This Row],[Alloc]]=\"WA\"),\"SITUS\",tblREGASSLookup[[#This Row],[Alloc]])","v":"OTHER"},"CUST"]
[{"$f":"CONCATENATE(tblREGASSLookup[[#This Row],[Primary Account]],tblREGASSLookup[[#This Row],[Primary Name]],tblREGASSLookup[[#This Row],[Secondary Acct]],tblREGASSLookup[[#This Row],[Secondary  Name]],tblREGASSLookup[[#This Row],[Alloc4FUNC]])","v":"1823920DSR COSTS AMORTIZED102072COMPACT FLUORESCENT LAMPS - WASHINGTONOTHER"},1823920,"DSR COSTS AMORTIZED",102072,"COMPACT FLUORESCENT LAMPS - WASHINGTON","OTHER",null,{"$f":"IF(OR(tblREGASSLookup[[#This Row],[Alloc]]=\"IDU\",tblREGASSLookup[[#This Row],[Alloc]]=\"OR\",tblREGASSLookup[[#This Row],[Alloc]]=\"UT\",tblREGASSLookup[[#This Row],[Alloc]]=\"WYU\",tblREGASSLookup[[#This Row],[Alloc]]=\"WYP\",tblREGASSLookup[[#This Row],[Alloc]]=\"CA\",tblREGASSLookup[[#This Row],[Alloc]]=\"WA\"),\"SITUS\",tblREGASSLookup[[#This Row],[Alloc]])","v":"OTHER"},"CUST"]
[{"$f":"CONCATENATE(tblREGASSLookup[[#This Row],[Primary Account]],tblREGASSLookup[[#This Row],[Primary Name]],tblREGASSLookup[[#This Row],[Secondary Acct]],tblREGASSLookup[[#This Row],[Secondary  Name]],tblREGASSLookup[[#This Row],[Alloc4FUNC]])","v":"1823920DSR COSTS AMORTIZED102127RESIDENTIAL PROGRAM RESEARCH - WAOTHER"},1823920,"DSR COSTS AMORTIZED",102127,"RESIDENTIAL PROGRAM RESEARCH - WA","OTHER",null,{"$f":"IF(OR(tblREGASSLookup[[#This Row],[Alloc]]=\"IDU\",tblREGASSLookup[[#This Row],[Alloc]]=\"OR\",tblREGASSLookup[[#This Row],[Alloc]]=\"UT\",tblREGASSLookup[[#This Row],[Alloc]]=\"WYU\",tblREGASSLookup[[#This Row],[Alloc]]=\"WYP\",tblREGASSLookup[[#This Row],[Alloc]]=\"CA\",tblREGASSLookup[[#This Row],[Alloc]]=\"WA\"),\"SITUS\",tblREGASSLookup[[#This Row],[Alloc]])","v":"OTHER"},"CUST"]
[{"$f":"CONCATENATE(tblREGASSLookup[[#This Row],[Primary Account]],tblREGASSLookup[[#This Row],[Primary Name]],tblREGASSLookup[[#This Row],[Secondary Acct]],tblREGASSLookup[[#This Row],[Secondary  Name]],tblREGASSLookup[[#This Row],[Alloc4FUNC]])","v":"1823920DSR COSTS AMORTIZED102128WA REVENUE RECOVERY - SBC OFFSETOTHER"},1823920,"DSR COSTS AMORTIZED",102128,"WA REVENUE RECOVERY - SBC OFFSET","OTHER",null,{"$f":"IF(OR(tblREGASSLookup[[#This Row],[Alloc]]=\"IDU\",tblREGASSLookup[[#This Row],[Alloc]]=\"OR\",tblREGASSLookup[[#This Row],[Alloc]]=\"UT\",tblREGASSLookup[[#This Row],[Alloc]]=\"WYU\",tblREGASSLookup[[#This Row],[Alloc]]=\"WYP\",tblREGASSLookup[[#This Row],[Alloc]]=\"CA\",tblREGASSLookup[[#This Row],[Alloc]]=\"WA\"),\"SITUS\",tblREGASSLookup[[#This Row],[Alloc]])","v":"OTHER"},"CUST"]
[{"$f":"CONCATENATE(tblREGASSLookup[[#This Row],[Primary Account]],tblREGASSLookup[[#This Row],[Primary Name]],tblREGASSLookup[[#This Row],[Secondary Acct]],tblREGASSLookup[[#This Row],[Secondary  Name]],tblREGASSLookup[[#This Row],[Alloc4FUNC]])","v":"1823920DSR COSTS AMORTIZED102131ENERGY FINANSWER - UTAH 2001/2002OTHER"},1823920,"DSR COSTS AMORTIZED",102131,"ENERGY FINANSWER - UTAH 2001/2002","OTHER",null,{"$f":"IF(OR(tblREGASSLookup[[#This Row],[Alloc]]=\"IDU\",tblREGASSLookup[[#This Row],[Alloc]]=\"OR\",tblREGASSLookup[[#This Row],[Alloc]]=\"UT\",tblREGASSLookup[[#This Row],[Alloc]]=\"WYU\",tblREGASSLookup[[#This Row],[Alloc]]=\"WYP\",tblREGASSLookup[[#This Row],[Alloc]]=\"CA\",tblREGASSLookup[[#This Row],[Alloc]]=\"WA\"),\"SITUS\",tblREGASSLookup[[#This Row],[Alloc]])","v":"OTHER"},"CUST"]
[{"$f":"CONCATENATE(tblREGASSLookup[[#This Row],[Primary Account]],tblREGASSLookup[[#This Row],[Primary Name]],tblREGASSLookup[[#This Row],[Secondary Acct]],tblREGASSLookup[[#This Row],[Secondary  Name]],tblREGASSLookup[[#This Row],[Alloc4FUNC]])","v":"1823920DSR COSTS AMORTIZED102133INDUSTRIAL FINANSWER - UTAH 2001/2002OTHER"},1823920,"DSR COSTS AMORTIZED",102133,"INDUSTRIAL FINANSWER - UTAH 2001/2002","OTHER",null,{"$f":"IF(OR(tblREGASSLookup[[#This Row],[Alloc]]=\"IDU\",tblREGASSLookup[[#This Row],[Alloc]]=\"OR\",tblREGASSLookup[[#This Row],[Alloc]]=\"UT\",tblREGASSLookup[[#This Row],[Alloc]]=\"WYU\",tblREGASSLookup[[#This Row],[Alloc]]=\"WYP\",tblREGASSLookup[[#This Row],[Alloc]]=\"CA\",tblREGASSLookup[[#This Row],[Alloc]]=\"WA\"),\"SITUS\",tblREGASSLookup[[#This Row],[Alloc]])","v":"OTHER"},"CUST"]
[{"$f":"CONCATENATE(tblREGASSLookup[[#This Row],[Primary Account]],tblREGASSLookup[[#This Row],[Primary Name]],tblREGASSLookup[[#This Row],[Secondary Acct]],tblREGASSLookup[[#This Row],[Secondary  Name]],tblREGASSLookup[[#This Row],[Alloc4FUNC]])","v":"1823920DSR COSTS AMORTIZED102138COMPACT FLUOR LAMPS (CFL) UT 2001/2002OTHER"},1823920,"DSR COSTS AMORTIZED",102138,"COMPACT FLUOR LAMPS (CFL) UT 2001/2002","OTHER",null,{"$f":"IF(OR(tblREGASSLookup[[#This Row],[Alloc]]=\"IDU\",tblREGASSLookup[[#This Row],[Alloc]]=\"OR\",tblREGASSLookup[[#This Row],[Alloc]]=\"UT\",tblREGASSLookup[[#This Row],[Alloc]]=\"WYU\",tblREGASSLookup[[#This Row],[Alloc]]=\"WYP\",tblREGASSLookup[[#This Row],[Alloc]]=\"CA\",tblREGASSLookup[[#This Row],[Alloc]]=\"WA\"),\"SITUS\",tblREGASSLookup[[#This Row],[Alloc]])","v":"OTHER"},"CUST"]
[{"$f":"CONCATENATE(tblREGASSLookup[[#This Row],[Primary Account]],tblREGASSLookup[[#This Row],[Primary Name]],tblREGASSLookup[[#This Row],[Secondary Acct]],tblREGASSLookup[[#This Row],[Secondary  Name]],tblREGASSLookup[[#This Row],[Alloc4FUNC]])","v":"1823920DSR COSTS AMORTIZED102147COMMERCIAL SMALL RETROFIT - UT 2001/2002OTHER"},1823920,"DSR COSTS AMORTIZED",102147,"COMMERCIAL SMALL RETROFIT - UT 2001/2002","OTHER",null,{"$f":"IF(OR(tblREGASSLookup[[#This Row],[Alloc]]=\"IDU\",tblREGASSLookup[[#This Row],[Alloc]]=\"OR\",tblREGASSLookup[[#This Row],[Alloc]]=\"UT\",tblREGASSLookup[[#This Row],[Alloc]]=\"WYU\",tblREGASSLookup[[#This Row],[Alloc]]=\"WYP\",tblREGASSLookup[[#This Row],[Alloc]]=\"CA\",tblREGASSLookup[[#This Row],[Alloc]]=\"WA\"),\"SITUS\",tblREGASSLookup[[#This Row],[Alloc]])","v":"OTHER"},"CUST"]
[{"$f":"CONCATENATE(tblREGASSLookup[[#This Row],[Primary Account]],tblREGASSLookup[[#This Row],[Primary Name]],tblREGASSLookup[[#This Row],[Secondary Acct]],tblREGASSLookup[[#This Row],[Secondary  Name]],tblREGASSLookup[[#This Row],[Alloc4FUNC]])","v":"1823920DSR COSTS AMORTIZED102148INDUSTRIAL SMALL RETROFIT - UT 2002OTHER"},1823920,"DSR COSTS AMORTIZED",102148,"INDUSTRIAL SMALL RETROFIT - UT 2002","OTHER",null,{"$f":"IF(OR(tblREGASSLookup[[#This Row],[Alloc]]=\"IDU\",tblREGASSLookup[[#This Row],[Alloc]]=\"OR\",tblREGASSLookup[[#This Row],[Alloc]]=\"UT\",tblREGASSLookup[[#This Row],[Alloc]]=\"WYU\",tblREGASSLookup[[#This Row],[Alloc]]=\"WYP\",tblREGASSLookup[[#This Row],[Alloc]]=\"CA\",tblREGASSLookup[[#This Row],[Alloc]]=\"WA\"),\"SITUS\",tblREGASSLookup[[#This Row],[Alloc]])","v":"OTHER"},"CUST"]
[{"$f":"CONCATENATE(tblREGASSLookup[[#This Row],[Primary Account]],tblREGASSLookup[[#This Row],[Primary Name]],tblREGASSLookup[[#This Row],[Secondary Acct]],tblREGASSLookup[[#This Row],[Secondary  Name]],tblREGASSLookup[[#This Row],[Alloc4FUNC]])","v":"1823920DSR COSTS AMORTIZED102149COMMERCIAL RETROFIT LIGHTING - UT 2001/2OTHER"},1823920,"DSR COSTS AMORTIZED",102149,"COMMERCIAL RETROFIT LIGHTING - UT 2001/2","OTHER",null,{"$f":"IF(OR(tblREGASSLookup[[#This Row],[Alloc]]=\"IDU\",tblREGASSLookup[[#This Row],[Alloc]]=\"OR\",tblREGASSLookup[[#This Row],[Alloc]]=\"UT\",tblREGASSLookup[[#This Row],[Alloc]]=\"WYU\",tblREGASSLookup[[#This Row],[Alloc]]=\"WYP\",tblREGASSLookup[[#This Row],[Alloc]]=\"CA\",tblREGASSLookup[[#This Row],[Alloc]]=\"WA\"),\"SITUS\",tblREGASSLookup[[#This Row],[Alloc]])","v":"OTHER"},"CUST"]
[{"$f":"CONCATENATE(tblREGASSLookup[[#This Row],[Primary Account]],tblREGASSLookup[[#This Row],[Primary Name]],tblREGASSLookup[[#This Row],[Secondary Acct]],tblREGASSLookup[[#This Row],[Secondary  Name]],tblREGASSLookup[[#This Row],[Alloc4FUNC]])","v":"1823920DSR COSTS AMORTIZED102150INDUSTRIAL RETROFIT LIGHTING - UT 2001/2OTHER"},1823920,"DSR COSTS AMORTIZED",102150,"INDUSTRIAL RETROFIT LIGHTING - UT 2001/2","OTHER",null,{"$f":"IF(OR(tblREGASSLookup[[#This Row],[Alloc]]=\"IDU\",tblREGASSLookup[[#This Row],[Alloc]]=\"OR\",tblREGASSLookup[[#This Row],[Alloc]]=\"UT\",tblREGASSLookup[[#This Row],[Alloc]]=\"WYU\",tblREGASSLookup[[#This Row],[Alloc]]=\"WYP\",tblREGASSLookup[[#This Row],[Alloc]]=\"CA\",tblREGASSLookup[[#This Row],[Alloc]]=\"WA\"),\"SITUS\",tblREGASSLookup[[#This Row],[Alloc]])","v":"OTHER"},"CUST"]
[{"$f":"CONCATENATE(tblREGASSLookup[[#This Row],[Primary Account]],tblREGASSLookup[[#This Row],[Primary Name]],tblREGASSLookup[[#This Row],[Secondary Acct]],tblREGASSLookup[[#This Row],[Secondary  Name]],tblREGASSLookup[[#This Row],[Alloc4FUNC]])","v":"1823920DSR COSTS AMORTIZED102185WEB AUDIT PILOT - WAOTHER"},1823920,"DSR COSTS AMORTIZED",102185,"WEB AUDIT PILOT - WA","OTHER",null,{"$f":"IF(OR(tblREGASSLookup[[#This Row],[Alloc]]=\"IDU\",tblREGASSLookup[[#This Row],[Alloc]]=\"OR\",tblREGASSLookup[[#This Row],[Alloc]]=\"UT\",tblREGASSLookup[[#This Row],[Alloc]]=\"WYU\",tblREGASSLookup[[#This Row],[Alloc]]=\"WYP\",tblREGASSLookup[[#This Row],[Alloc]]=\"CA\",tblREGASSLookup[[#This Row],[Alloc]]=\"WA\"),\"SITUS\",tblREGASSLookup[[#This Row],[Alloc]])","v":"OTHER"},"CUST"]
[{"$f":"CONCATENATE(tblREGASSLookup[[#This Row],[Primary Account]],tblREGASSLookup[[#This Row],[Primary Name]],tblREGASSLookup[[#This Row],[Secondary Acct]],tblREGASSLookup[[#This Row],[Secondary  Name]],tblREGASSLookup[[#This Row],[Alloc4FUNC]])","v":"1823920DSR COSTS AMORTIZED102186APPLIANCE REBATE - WAOTHER"},1823920,"DSR COSTS AMORTIZED",102186,"APPLIANCE REBATE - WA","OTHER",null,{"$f":"IF(OR(tblREGASSLookup[[#This Row],[Alloc]]=\"IDU\",tblREGASSLookup[[#This Row],[Alloc]]=\"OR\",tblREGASSLookup[[#This Row],[Alloc]]=\"UT\",tblREGASSLookup[[#This Row],[Alloc]]=\"WYU\",tblREGASSLookup[[#This Row],[Alloc]]=\"WYP\",tblREGASSLookup[[#This Row],[Alloc]]=\"CA\",tblREGASSLookup[[#This Row],[Alloc]]=\"WA\"),\"SITUS\",tblREGASSLookup[[#This Row],[Alloc]])","v":"OTHER"},"CUST"]
[{"$f":"CONCATENATE(tblREGASSLookup[[#This Row],[Primary Account]],tblREGASSLookup[[#This Row],[Primary Name]],tblREGASSLookup[[#This Row],[Secondary Acct]],tblREGASSLookup[[#This Row],[Secondary  Name]],tblREGASSLookup[[#This Row],[Alloc4FUNC]])","v":"1823920DSR COSTS AMORTIZED102195INDUSTRIAL RETROFIT LIGHTING - UT 2002OTHER"},1823920,"DSR COSTS AMORTIZED",102195,"INDUSTRIAL RETROFIT LIGHTING - UT 2002","OTHER",null,{"$f":"IF(OR(tblREGASSLookup[[#This Row],[Alloc]]=\"IDU\",tblREGASSLookup[[#This Row],[Alloc]]=\"OR\",tblREGASSLookup[[#This Row],[Alloc]]=\"UT\",tblREGASSLookup[[#This Row],[Alloc]]=\"WYU\",tblREGASSLookup[[#This Row],[Alloc]]=\"WYP\",tblREGASSLookup[[#This Row],[Alloc]]=\"CA\",tblREGASSLookup[[#This Row],[Alloc]]=\"WA\"),\"SITUS\",tblREGASSLookup[[#This Row],[Alloc]])","v":"OTHER"},"CUST"]
[{"$f":"CONCATENATE(tblREGASSLookup[[#This Row],[Primary Account]],tblREGASSLookup[[#This Row],[Primary Name]],tblREGASSLookup[[#This Row],[Secondary Acct]],tblREGASSLookup[[#This Row],[Secondary  Name]],tblREGASSLookup[[#This Row],[Alloc4FUNC]])","v":"1823920DSR COSTS AMORTIZED102196POWER FORWARD UT 2002OTHER"},1823920,"DSR COSTS AMORTIZED",102196,"POWER FORWARD UT 2002","OTHER",null,{"$f":"IF(OR(tblREGASSLookup[[#This Row],[Alloc]]=\"IDU\",tblREGASSLookup[[#This Row],[Alloc]]=\"OR\",tblREGASSLookup[[#This Row],[Alloc]]=\"UT\",tblREGASSLookup[[#This Row],[Alloc]]=\"WYU\",tblREGASSLookup[[#This Row],[Alloc]]=\"WYP\",tblREGASSLookup[[#This Row],[Alloc]]=\"CA\",tblREGASSLookup[[#This Row],[Alloc]]=\"WA\"),\"SITUS\",tblREGASSLookup[[#This Row],[Alloc]])","v":"OTHER"},"CUST"]
[{"$f":"CONCATENATE(tblREGASSLookup[[#This Row],[Primary Account]],tblREGASSLookup[[#This Row],[Primary Name]],tblREGASSLookup[[#This Row],[Secondary Acct]],tblREGASSLookup[[#This Row],[Secondary  Name]],tblREGASSLookup[[#This Row],[Alloc4FUNC]])","v":"1823920DSR COSTS AMORTIZED102205A/C LOAD CONTROL PGM - RESIDENTIAL - UTOTHER"},1823920,"DSR COSTS AMORTIZED",102205,"A/C LOAD CONTROL PGM - RESIDENTIAL - UT","OTHER",null,{"$f":"IF(OR(tblREGASSLookup[[#This Row],[Alloc]]=\"IDU\",tblREGASSLookup[[#This Row],[Alloc]]=\"OR\",tblREGASSLookup[[#This Row],[Alloc]]=\"UT\",tblREGASSLookup[[#This Row],[Alloc]]=\"WYU\",tblREGASSLookup[[#This Row],[Alloc]]=\"WYP\",tblREGASSLookup[[#This Row],[Alloc]]=\"CA\",tblREGASSLookup[[#This Row],[Alloc]]=\"WA\"),\"SITUS\",tblREGASSLookup[[#This Row],[Alloc]])","v":"OTHER"},"CUST"]
[{"$f":"CONCATENATE(tblREGASSLookup[[#This Row],[Primary Account]],tblREGASSLookup[[#This Row],[Primary Name]],tblREGASSLookup[[#This Row],[Secondary Acct]],tblREGASSLookup[[#This Row],[Secondary  Name]],tblREGASSLookup[[#This Row],[Alloc4FUNC]])","v":"1823920DSR COSTS AMORTIZED102206SCHOOL ENERGY EDUCATION - WAOTHER"},1823920,"DSR COSTS AMORTIZED",102206,"SCHOOL ENERGY EDUCATION - WA","OTHER",null,{"$f":"IF(OR(tblREGASSLookup[[#This Row],[Alloc]]=\"IDU\",tblREGASSLookup[[#This Row],[Alloc]]=\"OR\",tblREGASSLookup[[#This Row],[Alloc]]=\"UT\",tblREGASSLookup[[#This Row],[Alloc]]=\"WYU\",tblREGASSLookup[[#This Row],[Alloc]]=\"WYP\",tblREGASSLookup[[#This Row],[Alloc]]=\"CA\",tblREGASSLookup[[#This Row],[Alloc]]=\"WA\"),\"SITUS\",tblREGASSLookup[[#This Row],[Alloc]])","v":"OTHER"},"CUST"]
[{"$f":"CONCATENATE(tblREGASSLookup[[#This Row],[Primary Account]],tblREGASSLookup[[#This Row],[Primary Name]],tblREGASSLookup[[#This Row],[Secondary Acct]],tblREGASSLookup[[#This Row],[Secondary  Name]],tblREGASSLookup[[#This Row],[Alloc4FUNC]])","v":"1823920DSR COSTS AMORTIZED102209AIR CONDITIONING - UT 2002OTHER"},1823920,"DSR COSTS AMORTIZED",102209,"AIR CONDITIONING - UT 2002","OTHER",null,{"$f":"IF(OR(tblREGASSLookup[[#This Row],[Alloc]]=\"IDU\",tblREGASSLookup[[#This Row],[Alloc]]=\"OR\",tblREGASSLookup[[#This Row],[Alloc]]=\"UT\",tblREGASSLookup[[#This Row],[Alloc]]=\"WYU\",tblREGASSLookup[[#This Row],[Alloc]]=\"WYP\",tblREGASSLookup[[#This Row],[Alloc]]=\"CA\",tblREGASSLookup[[#This Row],[Alloc]]=\"WA\"),\"SITUS\",tblREGASSLookup[[#This Row],[Alloc]])","v":"OTHER"},"CUST"]
[{"$f":"CONCATENATE(tblREGASSLookup[[#This Row],[Primary Account]],tblREGASSLookup[[#This Row],[Primary Name]],tblREGASSLookup[[#This Row],[Secondary Acct]],tblREGASSLookup[[#This Row],[Secondary  Name]],tblREGASSLookup[[#This Row],[Alloc4FUNC]])","v":"1823920DSR COSTS AMORTIZED102213REFRIGERATOR RECYCLING PGM - UT 2003OTHER"},1823920,"DSR COSTS AMORTIZED",102213,"REFRIGERATOR RECYCLING PGM - UT 2003","OTHER",null,{"$f":"IF(OR(tblREGASSLookup[[#This Row],[Alloc]]=\"IDU\",tblREGASSLookup[[#This Row],[Alloc]]=\"OR\",tblREGASSLookup[[#This Row],[Alloc]]=\"UT\",tblREGASSLookup[[#This Row],[Alloc]]=\"WYU\",tblREGASSLookup[[#This Row],[Alloc]]=\"WYP\",tblREGASSLookup[[#This Row],[Alloc]]=\"CA\",tblREGASSLookup[[#This Row],[Alloc]]=\"WA\"),\"SITUS\",tblREGASSLookup[[#This Row],[Alloc]])","v":"OTHER"},"CUST"]
[{"$f":"CONCATENATE(tblREGASSLookup[[#This Row],[Primary Account]],tblREGASSLookup[[#This Row],[Primary Name]],tblREGASSLookup[[#This Row],[Secondary Acct]],tblREGASSLookup[[#This Row],[Secondary  Name]],tblREGASSLookup[[#This Row],[Alloc4FUNC]])","v":"1823920DSR COSTS AMORTIZED102214REFRIGERATOR RECYCLING PGM - WAOTHER"},1823920,"DSR COSTS AMORTIZED",102214,"REFRIGERATOR RECYCLING PGM - WA","OTHER",null,{"$f":"IF(OR(tblREGASSLookup[[#This Row],[Alloc]]=\"IDU\",tblREGASSLookup[[#This Row],[Alloc]]=\"OR\",tblREGASSLookup[[#This Row],[Alloc]]=\"UT\",tblREGASSLookup[[#This Row],[Alloc]]=\"WYU\",tblREGASSLookup[[#This Row],[Alloc]]=\"WYP\",tblREGASSLookup[[#This Row],[Alloc]]=\"CA\",tblREGASSLookup[[#This Row],[Alloc]]=\"WA\"),\"SITUS\",tblREGASSLookup[[#This Row],[Alloc]])","v":"OTHER"},"CUST"]
[{"$f":"CONCATENATE(tblREGASSLookup[[#This Row],[Primary Account]],tblREGASSLookup[[#This Row],[Primary Name]],tblREGASSLookup[[#This Row],[Secondary Acct]],tblREGASSLookup[[#This Row],[Secondary  Name]],tblREGASSLookup[[#This Row],[Alloc4FUNC]])","v":"1823920DSR COSTS AMORTIZED102223A/C LOAD CONTROL - RESIDENTIAL UT 2003OTHER"},1823920,"DSR COSTS AMORTIZED",102223,"A/C LOAD CONTROL - RESIDENTIAL UT 2003","OTHER",null,{"$f":"IF(OR(tblREGASSLookup[[#This Row],[Alloc]]=\"IDU\",tblREGASSLookup[[#This Row],[Alloc]]=\"OR\",tblREGASSLookup[[#This Row],[Alloc]]=\"UT\",tblREGASSLookup[[#This Row],[Alloc]]=\"WYU\",tblREGASSLookup[[#This Row],[Alloc]]=\"WYP\",tblREGASSLookup[[#This Row],[Alloc]]=\"CA\",tblREGASSLookup[[#This Row],[Alloc]]=\"WA\"),\"SITUS\",tblREGASSLookup[[#This Row],[Alloc]])","v":"OTHER"},"CUST"]
[{"$f":"CONCATENATE(tblREGASSLookup[[#This Row],[Primary Account]],tblREGASSLookup[[#This Row],[Primary Name]],tblREGASSLookup[[#This Row],[Secondary Acct]],tblREGASSLookup[[#This Row],[Secondary  Name]],tblREGASSLookup[[#This Row],[Alloc4FUNC]])","v":"1823920DSR COSTS AMORTIZED102225AIR CONDITIONING - UT 2003OTHER"},1823920,"DSR COSTS AMORTIZED",102225,"AIR CONDITIONING - UT 2003","OTHER",null,{"$f":"IF(OR(tblREGASSLookup[[#This Row],[Alloc]]=\"IDU\",tblREGASSLookup[[#This Row],[Alloc]]=\"OR\",tblREGASSLookup[[#This Row],[Alloc]]=\"UT\",tblREGASSLookup[[#This Row],[Alloc]]=\"WYU\",tblREGASSLookup[[#This Row],[Alloc]]=\"WYP\",tblREGASSLookup[[#This Row],[Alloc]]=\"CA\",tblREGASSLookup[[#This Row],[Alloc]]=\"WA\"),\"SITUS\",tblREGASSLookup[[#This Row],[Alloc]])","v":"OTHER"},"CUST"]
[{"$f":"CONCATENATE(tblREGASSLookup[[#This Row],[Primary Account]],tblREGASSLookup[[#This Row],[Primary Name]],tblREGASSLookup[[#This Row],[Secondary Acct]],tblREGASSLookup[[#This Row],[Secondary  Name]],tblREGASSLookup[[#This Row],[Alloc4FUNC]])","v":"1823920DSR COSTS AMORTIZED102226COMMERCIAL RETROFIT LIGHTING - UT 2003OTHER"},1823920,"DSR COSTS AMORTIZED",102226,"COMMERCIAL RETROFIT LIGHTING - UT 2003","OTHER",null,{"$f":"IF(OR(tblREGASSLookup[[#This Row],[Alloc]]=\"IDU\",tblREGASSLookup[[#This Row],[Alloc]]=\"OR\",tblREGASSLookup[[#This Row],[Alloc]]=\"UT\",tblREGASSLookup[[#This Row],[Alloc]]=\"WYU\",tblREGASSLookup[[#This Row],[Alloc]]=\"WYP\",tblREGASSLookup[[#This Row],[Alloc]]=\"CA\",tblREGASSLookup[[#This Row],[Alloc]]=\"WA\"),\"SITUS\",tblREGASSLookup[[#This Row],[Alloc]])","v":"OTHER"},"CUST"]
[{"$f":"CONCATENATE(tblREGASSLookup[[#This Row],[Primary Account]],tblREGASSLookup[[#This Row],[Primary Name]],tblREGASSLookup[[#This Row],[Secondary Acct]],tblREGASSLookup[[#This Row],[Secondary  Name]],tblREGASSLookup[[#This Row],[Alloc4FUNC]])","v":"1823920DSR COSTS AMORTIZED102227COMMERCIAL SMALL RETROFIT - UT 2003OTHER"},1823920,"DSR COSTS AMORTIZED",102227,"COMMERCIAL SMALL RETROFIT - UT 2003","OTHER",null,{"$f":"IF(OR(tblREGASSLookup[[#This Row],[Alloc]]=\"IDU\",tblREGASSLookup[[#This Row],[Alloc]]=\"OR\",tblREGASSLookup[[#This Row],[Alloc]]=\"UT\",tblREGASSLookup[[#This Row],[Alloc]]=\"WYU\",tblREGASSLookup[[#This Row],[Alloc]]=\"WYP\",tblREGASSLookup[[#This Row],[Alloc]]=\"CA\",tblREGASSLookup[[#This Row],[Alloc]]=\"WA\"),\"SITUS\",tblREGASSLookup[[#This Row],[Alloc]])","v":"OTHER"},"CUST"]
[{"$f":"CONCATENATE(tblREGASSLookup[[#This Row],[Primary Account]],tblREGASSLookup[[#This Row],[Primary Name]],tblREGASSLookup[[#This Row],[Secondary Acct]],tblREGASSLookup[[#This Row],[Secondary  Name]],tblREGASSLookup[[#This Row],[Alloc4FUNC]])","v":"1823920DSR COSTS AMORTIZED102228COMPACT FLOURESCENT LAMP (CFL) - UT 2002OTHER"},1823920,"DSR COSTS AMORTIZED",102228,"COMPACT FLOURESCENT LAMP (CFL) - UT 2002","OTHER",null,{"$f":"IF(OR(tblREGASSLookup[[#This Row],[Alloc]]=\"IDU\",tblREGASSLookup[[#This Row],[Alloc]]=\"OR\",tblREGASSLookup[[#This Row],[Alloc]]=\"UT\",tblREGASSLookup[[#This Row],[Alloc]]=\"WYU\",tblREGASSLookup[[#This Row],[Alloc]]=\"WYP\",tblREGASSLookup[[#This Row],[Alloc]]=\"CA\",tblREGASSLookup[[#This Row],[Alloc]]=\"WA\"),\"SITUS\",tblREGASSLookup[[#This Row],[Alloc]])","v":"OTHER"},"CUST"]
[{"$f":"CONCATENATE(tblREGASSLookup[[#This Row],[Primary Account]],tblREGASSLookup[[#This Row],[Primary Name]],tblREGASSLookup[[#This Row],[Secondary Acct]],tblREGASSLookup[[#This Row],[Secondary  Name]],tblREGASSLookup[[#This Row],[Alloc4FUNC]])","v":"1823920DSR COSTS AMORTIZED102229ENERGY FINANSWER - UT 2003OTHER"},1823920,"DSR COSTS AMORTIZED",102229,"ENERGY FINANSWER - UT 2003","OTHER",null,{"$f":"IF(OR(tblREGASSLookup[[#This Row],[Alloc]]=\"IDU\",tblREGASSLookup[[#This Row],[Alloc]]=\"OR\",tblREGASSLookup[[#This Row],[Alloc]]=\"UT\",tblREGASSLookup[[#This Row],[Alloc]]=\"WYU\",tblREGASSLookup[[#This Row],[Alloc]]=\"WYP\",tblREGASSLookup[[#This Row],[Alloc]]=\"CA\",tblREGASSLookup[[#This Row],[Alloc]]=\"WA\"),\"SITUS\",tblREGASSLookup[[#This Row],[Alloc]])","v":"OTHER"},"CUST"]
[{"$f":"CONCATENATE(tblREGASSLookup[[#This Row],[Primary Account]],tblREGASSLookup[[#This Row],[Primary Name]],tblREGASSLookup[[#This Row],[Secondary Acct]],tblREGASSLookup[[#This Row],[Secondary  Name]],tblREGASSLookup[[#This Row],[Alloc4FUNC]])","v":"1823920DSR COSTS AMORTIZED102230INDUSTRIAL FINANSWER - UT 2003OTHER"},1823920,"DSR COSTS AMORTIZED",102230,"INDUSTRIAL FINANSWER - UT 2003","OTHER",null,{"$f":"IF(OR(tblREGASSLookup[[#This Row],[Alloc]]=\"IDU\",tblREGASSLookup[[#This Row],[Alloc]]=\"OR\",tblREGASSLookup[[#This Row],[Alloc]]=\"UT\",tblREGASSLookup[[#This Row],[Alloc]]=\"WYU\",tblREGASSLookup[[#This Row],[Alloc]]=\"WYP\",tblREGASSLookup[[#This Row],[Alloc]]=\"CA\",tblREGASSLookup[[#This Row],[Alloc]]=\"WA\"),\"SITUS\",tblREGASSLookup[[#This Row],[Alloc]])","v":"OTHER"},"CUST"]
[{"$f":"CONCATENATE(tblREGASSLookup[[#This Row],[Primary Account]],tblREGASSLookup[[#This Row],[Primary Name]],tblREGASSLookup[[#This Row],[Secondary Acct]],tblREGASSLookup[[#This Row],[Secondary  Name]],tblREGASSLookup[[#This Row],[Alloc4FUNC]])","v":"1823920DSR COSTS AMORTIZED102231INDUSTRIAL RETROFIT LIGHTING - UT 2003OTHER"},1823920,"DSR COSTS AMORTIZED",102231,"INDUSTRIAL RETROFIT LIGHTING - UT 2003","OTHER",null,{"$f":"IF(OR(tblREGASSLookup[[#This Row],[Alloc]]=\"IDU\",tblREGASSLookup[[#This Row],[Alloc]]=\"OR\",tblREGASSLookup[[#This Row],[Alloc]]=\"UT\",tblREGASSLookup[[#This Row],[Alloc]]=\"WYU\",tblREGASSLookup[[#This Row],[Alloc]]=\"WYP\",tblREGASSLookup[[#This Row],[Alloc]]=\"CA\",tblREGASSLookup[[#This Row],[Alloc]]=\"WA\"),\"SITUS\",tblREGASSLookup[[#This Row],[Alloc]])","v":"OTHER"},"CUST"]
[{"$f":"CONCATENATE(tblREGASSLookup[[#This Row],[Primary Account]],tblREGASSLookup[[#This Row],[Primary Name]],tblREGASSLookup[[#This Row],[Secondary Acct]],tblREGASSLookup[[#This Row],[Secondary  Name]],tblREGASSLookup[[#This Row],[Alloc4FUNC]])","v":"1823920DSR COSTS AMORTIZED102232INDUSTRIAL SMALL RETROFIT - UTAH - 2003OTHER"},1823920,"DSR COSTS AMORTIZED",102232,"INDUSTRIAL SMALL RETROFIT - UTAH - 2003","OTHER",null,{"$f":"IF(OR(tblREGASSLookup[[#This Row],[Alloc]]=\"IDU\",tblREGASSLookup[[#This Row],[Alloc]]=\"OR\",tblREGASSLookup[[#This Row],[Alloc]]=\"UT\",tblREGASSLookup[[#This Row],[Alloc]]=\"WYU\",tblREGASSLookup[[#This Row],[Alloc]]=\"WYP\",tblREGASSLookup[[#This Row],[Alloc]]=\"CA\",tblREGASSLookup[[#This Row],[Alloc]]=\"WA\"),\"SITUS\",tblREGASSLookup[[#This Row],[Alloc]])","v":"OTHER"},"CUST"]
[{"$f":"CONCATENATE(tblREGASSLookup[[#This Row],[Primary Account]],tblREGASSLookup[[#This Row],[Primary Name]],tblREGASSLookup[[#This Row],[Secondary Acct]],tblREGASSLookup[[#This Row],[Secondary  Name]],tblREGASSLookup[[#This Row],[Alloc4FUNC]])","v":"1823920DSR COSTS AMORTIZED102233POWER FORWARD - UT 2003OTHER"},1823920,"DSR COSTS AMORTIZED",102233,"POWER FORWARD - UT 2003","OTHER",null,{"$f":"IF(OR(tblREGASSLookup[[#This Row],[Alloc]]=\"IDU\",tblREGASSLookup[[#This Row],[Alloc]]=\"OR\",tblREGASSLookup[[#This Row],[Alloc]]=\"UT\",tblREGASSLookup[[#This Row],[Alloc]]=\"WYU\",tblREGASSLookup[[#This Row],[Alloc]]=\"WYP\",tblREGASSLookup[[#This Row],[Alloc]]=\"CA\",tblREGASSLookup[[#This Row],[Alloc]]=\"WA\"),\"SITUS\",tblREGASSLookup[[#This Row],[Alloc]])","v":"OTHER"},"CUST"]
[{"$f":"CONCATENATE(tblREGASSLookup[[#This Row],[Primary Account]],tblREGASSLookup[[#This Row],[Primary Name]],tblREGASSLookup[[#This Row],[Secondary Acct]],tblREGASSLookup[[#This Row],[Secondary  Name]],tblREGASSLookup[[#This Row],[Alloc4FUNC]])","v":"1823920DSR COSTS AMORTIZED102245CA REVENUE RECOVERY - BALANCING ACCTOTHER"},1823920,"DSR COSTS AMORTIZED",102245,"CA REVENUE RECOVERY - BALANCING ACCT","OTHER",null,{"$f":"IF(OR(tblREGASSLookup[[#This Row],[Alloc]]=\"IDU\",tblREGASSLookup[[#This Row],[Alloc]]=\"OR\",tblREGASSLookup[[#This Row],[Alloc]]=\"UT\",tblREGASSLookup[[#This Row],[Alloc]]=\"WYU\",tblREGASSLookup[[#This Row],[Alloc]]=\"WYP\",tblREGASSLookup[[#This Row],[Alloc]]=\"CA\",tblREGASSLookup[[#This Row],[Alloc]]=\"WA\"),\"SITUS\",tblREGASSLookup[[#This Row],[Alloc]])","v":"OTHER"},"CUST"]
[{"$f":"CONCATENATE(tblREGASSLookup[[#This Row],[Primary Account]],tblREGASSLookup[[#This Row],[Primary Name]],tblREGASSLookup[[#This Row],[Secondary Acct]],tblREGASSLookup[[#This Row],[Secondary  Name]],tblREGASSLookup[[#This Row],[Alloc4FUNC]])","v":"1823920DSR COSTS AMORTIZED102327COMMERCIAL SELF-DIRECT UT 2003OTHER"},1823920,"DSR COSTS AMORTIZED",102327,"COMMERCIAL SELF-DIRECT UT 2003","OTHER",null,{"$f":"IF(OR(tblREGASSLookup[[#This Row],[Alloc]]=\"IDU\",tblREGASSLookup[[#This Row],[Alloc]]=\"OR\",tblREGASSLookup[[#This Row],[Alloc]]=\"UT\",tblREGASSLookup[[#This Row],[Alloc]]=\"WYU\",tblREGASSLookup[[#This Row],[Alloc]]=\"WYP\",tblREGASSLookup[[#This Row],[Alloc]]=\"CA\",tblREGASSLookup[[#This Row],[Alloc]]=\"WA\"),\"SITUS\",tblREGASSLookup[[#This Row],[Alloc]])","v":"OTHER"},"CUST"]
[{"$f":"CONCATENATE(tblREGASSLookup[[#This Row],[Primary Account]],tblREGASSLookup[[#This Row],[Primary Name]],tblREGASSLookup[[#This Row],[Secondary Acct]],tblREGASSLookup[[#This Row],[Secondary  Name]],tblREGASSLookup[[#This Row],[Alloc4FUNC]])","v":"1823920DSR COSTS AMORTIZED102328INDUSTRIAL SELF-DIRECT UT 2003OTHER"},1823920,"DSR COSTS AMORTIZED",102328,"INDUSTRIAL SELF-DIRECT UT 2003","OTHER",null,{"$f":"IF(OR(tblREGASSLookup[[#This Row],[Alloc]]=\"IDU\",tblREGASSLookup[[#This Row],[Alloc]]=\"OR\",tblREGASSLookup[[#This Row],[Alloc]]=\"UT\",tblREGASSLookup[[#This Row],[Alloc]]=\"WYU\",tblREGASSLookup[[#This Row],[Alloc]]=\"WYP\",tblREGASSLookup[[#This Row],[Alloc]]=\"CA\",tblREGASSLookup[[#This Row],[Alloc]]=\"WA\"),\"SITUS\",tblREGASSLookup[[#This Row],[Alloc]])","v":"OTHER"},"CUST"]
[{"$f":"CONCATENATE(tblREGASSLookup[[#This Row],[Primary Account]],tblREGASSLookup[[#This Row],[Primary Name]],tblREGASSLookup[[#This Row],[Secondary Acct]],tblREGASSLookup[[#This Row],[Secondary  Name]],tblREGASSLookup[[#This Row],[Alloc4FUNC]])","v":"1823920DSR COSTS AMORTIZED102336LOW INCOME - UTAH - 2004OTHER"},1823920,"DSR COSTS AMORTIZED",102336,"LOW INCOME - UTAH - 2004","OTHER",null,{"$f":"IF(OR(tblREGASSLookup[[#This Row],[Alloc]]=\"IDU\",tblREGASSLookup[[#This Row],[Alloc]]=\"OR\",tblREGASSLookup[[#This Row],[Alloc]]=\"UT\",tblREGASSLookup[[#This Row],[Alloc]]=\"WYU\",tblREGASSLookup[[#This Row],[Alloc]]=\"WYP\",tblREGASSLookup[[#This Row],[Alloc]]=\"CA\",tblREGASSLookup[[#This Row],[Alloc]]=\"WA\"),\"SITUS\",tblREGASSLookup[[#This Row],[Alloc]])","v":"OTHER"},"CUST"]
[{"$f":"CONCATENATE(tblREGASSLookup[[#This Row],[Primary Account]],tblREGASSLookup[[#This Row],[Primary Name]],tblREGASSLookup[[#This Row],[Secondary Acct]],tblREGASSLookup[[#This Row],[Secondary  Name]],tblREGASSLookup[[#This Row],[Alloc4FUNC]])","v":"1823920DSR COSTS AMORTIZED102337REFRIGERATOR RECYCLING PGM - UT 2004OTHER"},1823920,"DSR COSTS AMORTIZED",102337,"REFRIGERATOR RECYCLING PGM - UT 2004","OTHER",null,{"$f":"IF(OR(tblREGASSLookup[[#This Row],[Alloc]]=\"IDU\",tblREGASSLookup[[#This Row],[Alloc]]=\"OR\",tblREGASSLookup[[#This Row],[Alloc]]=\"UT\",tblREGASSLookup[[#This Row],[Alloc]]=\"WYU\",tblREGASSLookup[[#This Row],[Alloc]]=\"WYP\",tblREGASSLookup[[#This Row],[Alloc]]=\"CA\",tblREGASSLookup[[#This Row],[Alloc]]=\"WA\"),\"SITUS\",tblREGASSLookup[[#This Row],[Alloc]])","v":"OTHER"},"CUST"]
[{"$f":"CONCATENATE(tblREGASSLookup[[#This Row],[Primary Account]],tblREGASSLookup[[#This Row],[Primary Name]],tblREGASSLookup[[#This Row],[Secondary Acct]],tblREGASSLookup[[#This Row],[Secondary  Name]],tblREGASSLookup[[#This Row],[Alloc4FUNC]])","v":"1823920DSR COSTS AMORTIZED102338AC LOAD CONTROL - RESIDENTIAL UT 2004OTHER"},1823920,"DSR COSTS AMORTIZED",102338,"AC LOAD CONTROL - RESIDENTIAL UT 2004","OTHER",null,{"$f":"IF(OR(tblREGASSLookup[[#This Row],[Alloc]]=\"IDU\",tblREGASSLookup[[#This Row],[Alloc]]=\"OR\",tblREGASSLookup[[#This Row],[Alloc]]=\"UT\",tblREGASSLookup[[#This Row],[Alloc]]=\"WYU\",tblREGASSLookup[[#This Row],[Alloc]]=\"WYP\",tblREGASSLookup[[#This Row],[Alloc]]=\"CA\",tblREGASSLookup[[#This Row],[Alloc]]=\"WA\"),\"SITUS\",tblREGASSLookup[[#This Row],[Alloc]])","v":"OTHER"},"CUST"]
[{"$f":"CONCATENATE(tblREGASSLookup[[#This Row],[Primary Account]],tblREGASSLookup[[#This Row],[Primary Name]],tblREGASSLookup[[#This Row],[Secondary Acct]],tblREGASSLookup[[#This Row],[Secondary  Name]],tblREGASSLookup[[#This Row],[Alloc4FUNC]])","v":"1823920DSR COSTS AMORTIZED102339AIR CONDITIONING - UT 2004OTHER"},1823920,"DSR COSTS AMORTIZED",102339,"AIR CONDITIONING - UT 2004","OTHER",null,{"$f":"IF(OR(tblREGASSLookup[[#This Row],[Alloc]]=\"IDU\",tblREGASSLookup[[#This Row],[Alloc]]=\"OR\",tblREGASSLookup[[#This Row],[Alloc]]=\"UT\",tblREGASSLookup[[#This Row],[Alloc]]=\"WYU\",tblREGASSLookup[[#This Row],[Alloc]]=\"WYP\",tblREGASSLookup[[#This Row],[Alloc]]=\"CA\",tblREGASSLookup[[#This Row],[Alloc]]=\"WA\"),\"SITUS\",tblREGASSLookup[[#This Row],[Alloc]])","v":"OTHER"},"CUST"]
[{"$f":"CONCATENATE(tblREGASSLookup[[#This Row],[Primary Account]],tblREGASSLookup[[#This Row],[Primary Name]],tblREGASSLookup[[#This Row],[Secondary Acct]],tblREGASSLookup[[#This Row],[Secondary  Name]],tblREGASSLookup[[#This Row],[Alloc4FUNC]])","v":"1823920DSR COSTS AMORTIZED102340COMMERCIAL RETROFIT LIGHTING - UT 2004OTHER"},1823920,"DSR COSTS AMORTIZED",102340,"COMMERCIAL RETROFIT LIGHTING - UT 2004","OTHER",null,{"$f":"IF(OR(tblREGASSLookup[[#This Row],[Alloc]]=\"IDU\",tblREGASSLookup[[#This Row],[Alloc]]=\"OR\",tblREGASSLookup[[#This Row],[Alloc]]=\"UT\",tblREGASSLookup[[#This Row],[Alloc]]=\"WYU\",tblREGASSLookup[[#This Row],[Alloc]]=\"WYP\",tblREGASSLookup[[#This Row],[Alloc]]=\"CA\",tblREGASSLookup[[#This Row],[Alloc]]=\"WA\"),\"SITUS\",tblREGASSLookup[[#This Row],[Alloc]])","v":"OTHER"},"CUST"]
[{"$f":"CONCATENATE(tblREGASSLookup[[#This Row],[Primary Account]],tblREGASSLookup[[#This Row],[Primary Name]],tblREGASSLookup[[#This Row],[Secondary Acct]],tblREGASSLookup[[#This Row],[Secondary  Name]],tblREGASSLookup[[#This Row],[Alloc4FUNC]])","v":"1823920DSR COSTS AMORTIZED102341COMMERCIAL SMALL RETROFIT - UT 2004OTHER"},1823920,"DSR COSTS AMORTIZED",102341,"COMMERCIAL SMALL RETROFIT - UT 2004","OTHER",null,{"$f":"IF(OR(tblREGASSLookup[[#This Row],[Alloc]]=\"IDU\",tblREGASSLookup[[#This Row],[Alloc]]=\"OR\",tblREGASSLookup[[#This Row],[Alloc]]=\"UT\",tblREGASSLookup[[#This Row],[Alloc]]=\"WYU\",tblREGASSLookup[[#This Row],[Alloc]]=\"WYP\",tblREGASSLookup[[#This Row],[Alloc]]=\"CA\",tblREGASSLookup[[#This Row],[Alloc]]=\"WA\"),\"SITUS\",tblREGASSLookup[[#This Row],[Alloc]])","v":"OTHER"},"CUST"]
[{"$f":"CONCATENATE(tblREGASSLookup[[#This Row],[Primary Account]],tblREGASSLookup[[#This Row],[Primary Name]],tblREGASSLookup[[#This Row],[Secondary Acct]],tblREGASSLookup[[#This Row],[Secondary  Name]],tblREGASSLookup[[#This Row],[Alloc4FUNC]])","v":"1823920DSR COSTS AMORTIZED102342COMPACT FLOURESCENT LAMPS (CFL) UT 2004OTHER"},1823920,"DSR COSTS AMORTIZED",102342,"COMPACT FLOURESCENT LAMPS (CFL) UT 2004","OTHER",null,{"$f":"IF(OR(tblREGASSLookup[[#This Row],[Alloc]]=\"IDU\",tblREGASSLookup[[#This Row],[Alloc]]=\"OR\",tblREGASSLookup[[#This Row],[Alloc]]=\"UT\",tblREGASSLookup[[#This Row],[Alloc]]=\"WYU\",tblREGASSLookup[[#This Row],[Alloc]]=\"WYP\",tblREGASSLookup[[#This Row],[Alloc]]=\"CA\",tblREGASSLookup[[#This Row],[Alloc]]=\"WA\"),\"SITUS\",tblREGASSLookup[[#This Row],[Alloc]])","v":"OTHER"},"CUST"]
[{"$f":"CONCATENATE(tblREGASSLookup[[#This Row],[Primary Account]],tblREGASSLookup[[#This Row],[Primary Name]],tblREGASSLookup[[#This Row],[Secondary Acct]],tblREGASSLookup[[#This Row],[Secondary  Name]],tblREGASSLookup[[#This Row],[Alloc4FUNC]])","v":"1823920DSR COSTS AMORTIZED102343ENERGY FINANSWER - UT 2004OTHER"},1823920,"DSR COSTS AMORTIZED",102343,"ENERGY FINANSWER - UT 2004","OTHER",null,{"$f":"IF(OR(tblREGASSLookup[[#This Row],[Alloc]]=\"IDU\",tblREGASSLookup[[#This Row],[Alloc]]=\"OR\",tblREGASSLookup[[#This Row],[Alloc]]=\"UT\",tblREGASSLookup[[#This Row],[Alloc]]=\"WYU\",tblREGASSLookup[[#This Row],[Alloc]]=\"WYP\",tblREGASSLookup[[#This Row],[Alloc]]=\"CA\",tblREGASSLookup[[#This Row],[Alloc]]=\"WA\"),\"SITUS\",tblREGASSLookup[[#This Row],[Alloc]])","v":"OTHER"},"CUST"]
[{"$f":"CONCATENATE(tblREGASSLookup[[#This Row],[Primary Account]],tblREGASSLookup[[#This Row],[Primary Name]],tblREGASSLookup[[#This Row],[Secondary Acct]],tblREGASSLookup[[#This Row],[Secondary  Name]],tblREGASSLookup[[#This Row],[Alloc4FUNC]])","v":"1823920DSR COSTS AMORTIZED102344INDUSTRIAL FINANSWER - UT 2004OTHER"},1823920,"DSR COSTS AMORTIZED",102344,"INDUSTRIAL FINANSWER - UT 2004","OTHER",null,{"$f":"IF(OR(tblREGASSLookup[[#This Row],[Alloc]]=\"IDU\",tblREGASSLookup[[#This Row],[Alloc]]=\"OR\",tblREGASSLookup[[#This Row],[Alloc]]=\"UT\",tblREGASSLookup[[#This Row],[Alloc]]=\"WYU\",tblREGASSLookup[[#This Row],[Alloc]]=\"WYP\",tblREGASSLookup[[#This Row],[Alloc]]=\"CA\",tblREGASSLookup[[#This Row],[Alloc]]=\"WA\"),\"SITUS\",tblREGASSLookup[[#This Row],[Alloc]])","v":"OTHER"},"CUST"]
[{"$f":"CONCATENATE(tblREGASSLookup[[#This Row],[Primary Account]],tblREGASSLookup[[#This Row],[Primary Name]],tblREGASSLookup[[#This Row],[Secondary Acct]],tblREGASSLookup[[#This Row],[Secondary  Name]],tblREGASSLookup[[#This Row],[Alloc4FUNC]])","v":"1823920DSR COSTS AMORTIZED102345INDUSTRIAL RETROFIT - UT 2004OTHER"},1823920,"DSR COSTS AMORTIZED",102345,"INDUSTRIAL RETROFIT - UT 2004","OTHER",null,{"$f":"IF(OR(tblREGASSLookup[[#This Row],[Alloc]]=\"IDU\",tblREGASSLookup[[#This Row],[Alloc]]=\"OR\",tblREGASSLookup[[#This Row],[Alloc]]=\"UT\",tblREGASSLookup[[#This Row],[Alloc]]=\"WYU\",tblREGASSLookup[[#This Row],[Alloc]]=\"WYP\",tblREGASSLookup[[#This Row],[Alloc]]=\"CA\",tblREGASSLookup[[#This Row],[Alloc]]=\"WA\"),\"SITUS\",tblREGASSLookup[[#This Row],[Alloc]])","v":"OTHER"},"CUST"]
[{"$f":"CONCATENATE(tblREGASSLookup[[#This Row],[Primary Account]],tblREGASSLookup[[#This Row],[Primary Name]],tblREGASSLookup[[#This Row],[Secondary Acct]],tblREGASSLookup[[#This Row],[Secondary  Name]],tblREGASSLookup[[#This Row],[Alloc4FUNC]])","v":"1823920DSR COSTS AMORTIZED102346INDUSTRIAL SMALL RETROFIT - UT 2004OTHER"},1823920,"DSR COSTS AMORTIZED",102346,"INDUSTRIAL SMALL RETROFIT - UT 2004","OTHER",null,{"$f":"IF(OR(tblREGASSLookup[[#This Row],[Alloc]]=\"IDU\",tblREGASSLookup[[#This Row],[Alloc]]=\"OR\",tblREGASSLookup[[#This Row],[Alloc]]=\"UT\",tblREGASSLookup[[#This Row],[Alloc]]=\"WYU\",tblREGASSLookup[[#This Row],[Alloc]]=\"WYP\",tblREGASSLookup[[#This Row],[Alloc]]=\"CA\",tblREGASSLookup[[#This Row],[Alloc]]=\"WA\"),\"SITUS\",tblREGASSLookup[[#This Row],[Alloc]])","v":"OTHER"},"CUST"]
[{"$f":"CONCATENATE(tblREGASSLookup[[#This Row],[Primary Account]],tblREGASSLookup[[#This Row],[Primary Name]],tblREGASSLookup[[#This Row],[Secondary Acct]],tblREGASSLookup[[#This Row],[Secondary  Name]],tblREGASSLookup[[#This Row],[Alloc4FUNC]])","v":"1823920DSR COSTS AMORTIZED102347POWER FORWARD - UT 2004OTHER"},1823920,"DSR COSTS AMORTIZED",102347,"POWER FORWARD - UT 2004","OTHER",null,{"$f":"IF(OR(tblREGASSLookup[[#This Row],[Alloc]]=\"IDU\",tblREGASSLookup[[#This Row],[Alloc]]=\"OR\",tblREGASSLookup[[#This Row],[Alloc]]=\"UT\",tblREGASSLookup[[#This Row],[Alloc]]=\"WYU\",tblREGASSLookup[[#This Row],[Alloc]]=\"WYP\",tblREGASSLookup[[#This Row],[Alloc]]=\"CA\",tblREGASSLookup[[#This Row],[Alloc]]=\"WA\"),\"SITUS\",tblREGASSLookup[[#This Row],[Alloc]])","v":"OTHER"},"CUST"]
[{"$f":"CONCATENATE(tblREGASSLookup[[#This Row],[Primary Account]],tblREGASSLookup[[#This Row],[Primary Name]],tblREGASSLookup[[#This Row],[Secondary Acct]],tblREGASSLookup[[#This Row],[Secondary  Name]],tblREGASSLookup[[#This Row],[Alloc4FUNC]])","v":"1823920DSR COSTS AMORTIZED102348COMMERCIAL SELF-DIRECT - UT 2004OTHER"},1823920,"DSR COSTS AMORTIZED",102348,"COMMERCIAL SELF-DIRECT - UT 2004","OTHER",null,{"$f":"IF(OR(tblREGASSLookup[[#This Row],[Alloc]]=\"IDU\",tblREGASSLookup[[#This Row],[Alloc]]=\"OR\",tblREGASSLookup[[#This Row],[Alloc]]=\"UT\",tblREGASSLookup[[#This Row],[Alloc]]=\"WYU\",tblREGASSLookup[[#This Row],[Alloc]]=\"WYP\",tblREGASSLookup[[#This Row],[Alloc]]=\"CA\",tblREGASSLookup[[#This Row],[Alloc]]=\"WA\"),\"SITUS\",tblREGASSLookup[[#This Row],[Alloc]])","v":"OTHER"},"CUST"]
[{"$f":"CONCATENATE(tblREGASSLookup[[#This Row],[Primary Account]],tblREGASSLookup[[#This Row],[Primary Name]],tblREGASSLookup[[#This Row],[Secondary Acct]],tblREGASSLookup[[#This Row],[Secondary  Name]],tblREGASSLookup[[#This Row],[Alloc4FUNC]])","v":"1823920DSR COSTS AMORTIZED102349INDUSTRIAL SELF-DIRECT - UT 2004OTHER"},1823920,"DSR COSTS AMORTIZED",102349,"INDUSTRIAL SELF-DIRECT - UT 2004","OTHER",null,{"$f":"IF(OR(tblREGASSLookup[[#This Row],[Alloc]]=\"IDU\",tblREGASSLookup[[#This Row],[Alloc]]=\"OR\",tblREGASSLookup[[#This Row],[Alloc]]=\"UT\",tblREGASSLookup[[#This Row],[Alloc]]=\"WYU\",tblREGASSLookup[[#This Row],[Alloc]]=\"WYP\",tblREGASSLookup[[#This Row],[Alloc]]=\"CA\",tblREGASSLookup[[#This Row],[Alloc]]=\"WA\"),\"SITUS\",tblREGASSLookup[[#This Row],[Alloc]])","v":"OTHER"},"CUST"]
[{"$f":"CONCATENATE(tblREGASSLookup[[#This Row],[Primary Account]],tblREGASSLookup[[#This Row],[Primary Name]],tblREGASSLookup[[#This Row],[Secondary Acct]],tblREGASSLookup[[#This Row],[Secondary  Name]],tblREGASSLookup[[#This Row],[Alloc4FUNC]])","v":"1823920DSR COSTS AMORTIZED102443ESIDENTIAL NEW CONSTRUCTION - WASHINGTONOTHER"},1823920,"DSR COSTS AMORTIZED",102443,"ESIDENTIAL NEW CONSTRUCTION - WASHINGTON","OTHER",null,{"$f":"IF(OR(tblREGASSLookup[[#This Row],[Alloc]]=\"IDU\",tblREGASSLookup[[#This Row],[Alloc]]=\"OR\",tblREGASSLookup[[#This Row],[Alloc]]=\"UT\",tblREGASSLookup[[#This Row],[Alloc]]=\"WYU\",tblREGASSLookup[[#This Row],[Alloc]]=\"WYP\",tblREGASSLookup[[#This Row],[Alloc]]=\"CA\",tblREGASSLookup[[#This Row],[Alloc]]=\"WA\"),\"SITUS\",tblREGASSLookup[[#This Row],[Alloc]])","v":"OTHER"},"CUST"]
[{"$f":"CONCATENATE(tblREGASSLookup[[#This Row],[Primary Account]],tblREGASSLookup[[#This Row],[Primary Name]],tblREGASSLookup[[#This Row],[Secondary Acct]],tblREGASSLookup[[#This Row],[Secondary  Name]],tblREGASSLookup[[#This Row],[Alloc4FUNC]])","v":"1823920DSR COSTS AMORTIZED102444RESIDENTIAL NEW CONSTRUCTION - UTAH - 20OTHER"},1823920,"DSR COSTS AMORTIZED",102444,"RESIDENTIAL NEW CONSTRUCTION - UTAH - 20","OTHER",null,{"$f":"IF(OR(tblREGASSLookup[[#This Row],[Alloc]]=\"IDU\",tblREGASSLookup[[#This Row],[Alloc]]=\"OR\",tblREGASSLookup[[#This Row],[Alloc]]=\"UT\",tblREGASSLookup[[#This Row],[Alloc]]=\"WYU\",tblREGASSLookup[[#This Row],[Alloc]]=\"WYP\",tblREGASSLookup[[#This Row],[Alloc]]=\"CA\",tblREGASSLookup[[#This Row],[Alloc]]=\"WA\"),\"SITUS\",tblREGASSLookup[[#This Row],[Alloc]])","v":"OTHER"},"CUST"]
[{"$f":"CONCATENATE(tblREGASSLookup[[#This Row],[Primary Account]],tblREGASSLookup[[#This Row],[Primary Name]],tblREGASSLookup[[#This Row],[Secondary Acct]],tblREGASSLookup[[#This Row],[Secondary  Name]],tblREGASSLookup[[#This Row],[Alloc4FUNC]])","v":"1823920DSR COSTS AMORTIZED102458COMMERCIAL FINANSWER EXPRESS - WASHINGTOOTHER"},1823920,"DSR COSTS AMORTIZED",102458,"COMMERCIAL FINANSWER EXPRESS - WASHINGTO","OTHER",null,{"$f":"IF(OR(tblREGASSLookup[[#This Row],[Alloc]]=\"IDU\",tblREGASSLookup[[#This Row],[Alloc]]=\"OR\",tblREGASSLookup[[#This Row],[Alloc]]=\"UT\",tblREGASSLookup[[#This Row],[Alloc]]=\"WYU\",tblREGASSLookup[[#This Row],[Alloc]]=\"WYP\",tblREGASSLookup[[#This Row],[Alloc]]=\"CA\",tblREGASSLookup[[#This Row],[Alloc]]=\"WA\"),\"SITUS\",tblREGASSLookup[[#This Row],[Alloc]])","v":"OTHER"},"CUST"]
[{"$f":"CONCATENATE(tblREGASSLookup[[#This Row],[Primary Account]],tblREGASSLookup[[#This Row],[Primary Name]],tblREGASSLookup[[#This Row],[Secondary Acct]],tblREGASSLookup[[#This Row],[Secondary  Name]],tblREGASSLookup[[#This Row],[Alloc4FUNC]])","v":"1823920DSR COSTS AMORTIZED102459INDUSTRIAL FINANSWER EXPRESS - WASHINGTOOTHER"},1823920,"DSR COSTS AMORTIZED",102459,"INDUSTRIAL FINANSWER EXPRESS - WASHINGTO","OTHER",null,{"$f":"IF(OR(tblREGASSLookup[[#This Row],[Alloc]]=\"IDU\",tblREGASSLookup[[#This Row],[Alloc]]=\"OR\",tblREGASSLookup[[#This Row],[Alloc]]=\"UT\",tblREGASSLookup[[#This Row],[Alloc]]=\"WYU\",tblREGASSLookup[[#This Row],[Alloc]]=\"WYP\",tblREGASSLookup[[#This Row],[Alloc]]=\"CA\",tblREGASSLookup[[#This Row],[Alloc]]=\"WA\"),\"SITUS\",tblREGASSLookup[[#This Row],[Alloc]])","v":"OTHER"},"CUST"]
[{"$f":"CONCATENATE(tblREGASSLookup[[#This Row],[Primary Account]],tblREGASSLookup[[#This Row],[Primary Name]],tblREGASSLookup[[#This Row],[Secondary Acct]],tblREGASSLookup[[#This Row],[Secondary  Name]],tblREGASSLookup[[#This Row],[Alloc4FUNC]])","v":"1823920DSR COSTS AMORTIZED102460COMMERCIAL FINANSWER EXPRESS - UTAH - 20OTHER"},1823920,"DSR COSTS AMORTIZED",102460,"COMMERCIAL FINANSWER EXPRESS - UTAH - 20","OTHER",null,{"$f":"IF(OR(tblREGASSLookup[[#This Row],[Alloc]]=\"IDU\",tblREGASSLookup[[#This Row],[Alloc]]=\"OR\",tblREGASSLookup[[#This Row],[Alloc]]=\"UT\",tblREGASSLookup[[#This Row],[Alloc]]=\"WYU\",tblREGASSLookup[[#This Row],[Alloc]]=\"WYP\",tblREGASSLookup[[#This Row],[Alloc]]=\"CA\",tblREGASSLookup[[#This Row],[Alloc]]=\"WA\"),\"SITUS\",tblREGASSLookup[[#This Row],[Alloc]])","v":"OTHER"},"CUST"]
[{"$f":"CONCATENATE(tblREGASSLookup[[#This Row],[Primary Account]],tblREGASSLookup[[#This Row],[Primary Name]],tblREGASSLookup[[#This Row],[Secondary Acct]],tblREGASSLookup[[#This Row],[Secondary  Name]],tblREGASSLookup[[#This Row],[Alloc4FUNC]])","v":"1823920DSR COSTS AMORTIZED102461INDUSTRIAL FINANSWER EXPRESS - UTAH - 20OTHER"},1823920,"DSR COSTS AMORTIZED",102461,"INDUSTRIAL FINANSWER EXPRESS - UTAH - 20","OTHER",null,{"$f":"IF(OR(tblREGASSLookup[[#This Row],[Alloc]]=\"IDU\",tblREGASSLookup[[#This Row],[Alloc]]=\"OR\",tblREGASSLookup[[#This Row],[Alloc]]=\"UT\",tblREGASSLookup[[#This Row],[Alloc]]=\"WYU\",tblREGASSLookup[[#This Row],[Alloc]]=\"WYP\",tblREGASSLookup[[#This Row],[Alloc]]=\"CA\",tblREGASSLookup[[#This Row],[Alloc]]=\"WA\"),\"SITUS\",tblREGASSLookup[[#This Row],[Alloc]])","v":"OTHER"},"CUST"]
[{"$f":"CONCATENATE(tblREGASSLookup[[#This Row],[Primary Account]],tblREGASSLookup[[#This Row],[Primary Name]],tblREGASSLookup[[#This Row],[Secondary Acct]],tblREGASSLookup[[#This Row],[Secondary  Name]],tblREGASSLookup[[#This Row],[Alloc4FUNC]])","v":"1823920DSR COSTS AMORTIZED102462UTAH REVENUE RECOVERY - SBC OFFSETOTHER"},1823920,"DSR COSTS AMORTIZED",102462,"UTAH REVENUE RECOVERY - SBC OFFSET","OTHER",null,{"$f":"IF(OR(tblREGASSLookup[[#This Row],[Alloc]]=\"IDU\",tblREGASSLookup[[#This Row],[Alloc]]=\"OR\",tblREGASSLookup[[#This Row],[Alloc]]=\"UT\",tblREGASSLookup[[#This Row],[Alloc]]=\"WYU\",tblREGASSLookup[[#This Row],[Alloc]]=\"WYP\",tblREGASSLookup[[#This Row],[Alloc]]=\"CA\",tblREGASSLookup[[#This Row],[Alloc]]=\"WA\"),\"SITUS\",tblREGASSLookup[[#This Row],[Alloc]])","v":"OTHER"},"CUST"]
[{"$f":"CONCATENATE(tblREGASSLookup[[#This Row],[Primary Account]],tblREGASSLookup[[#This Row],[Primary Name]],tblREGASSLookup[[#This Row],[Secondary Acct]],tblREGASSLookup[[#This Row],[Secondary  Name]],tblREGASSLookup[[#This Row],[Alloc4FUNC]])","v":"1823920DSR COSTS AMORTIZED102502RETROFIT COMMISSIONING PROGRAM  - UTAHOTHER"},1823920,"DSR COSTS AMORTIZED",102502,"RETROFIT COMMISSIONING PROGRAM  - UTAH","OTHER",null,{"$f":"IF(OR(tblREGASSLookup[[#This Row],[Alloc]]=\"IDU\",tblREGASSLookup[[#This Row],[Alloc]]=\"OR\",tblREGASSLookup[[#This Row],[Alloc]]=\"UT\",tblREGASSLookup[[#This Row],[Alloc]]=\"WYU\",tblREGASSLookup[[#This Row],[Alloc]]=\"WYP\",tblREGASSLookup[[#This Row],[Alloc]]=\"CA\",tblREGASSLookup[[#This Row],[Alloc]]=\"WA\"),\"SITUS\",tblREGASSLookup[[#This Row],[Alloc]])","v":"OTHER"},"CUST"]
[{"$f":"CONCATENATE(tblREGASSLookup[[#This Row],[Primary Account]],tblREGASSLookup[[#This Row],[Primary Name]],tblREGASSLookup[[#This Row],[Secondary Acct]],tblREGASSLookup[[#This Row],[Secondary  Name]],tblREGASSLookup[[#This Row],[Alloc4FUNC]])","v":"1823920DSR COSTS AMORTIZED102503C&I LIGHTING LOAD CONTROL  - UTAH - 2004OTHER"},1823920,"DSR COSTS AMORTIZED",102503,"C&I LIGHTING LOAD CONTROL  - UTAH - 2004","OTHER",null,{"$f":"IF(OR(tblREGASSLookup[[#This Row],[Alloc]]=\"IDU\",tblREGASSLookup[[#This Row],[Alloc]]=\"OR\",tblREGASSLookup[[#This Row],[Alloc]]=\"UT\",tblREGASSLookup[[#This Row],[Alloc]]=\"WYU\",tblREGASSLookup[[#This Row],[Alloc]]=\"WYP\",tblREGASSLookup[[#This Row],[Alloc]]=\"CA\",tblREGASSLookup[[#This Row],[Alloc]]=\"WA\"),\"SITUS\",tblREGASSLookup[[#This Row],[Alloc]])","v":"OTHER"},"CUST"]
[{"$f":"CONCATENATE(tblREGASSLookup[[#This Row],[Primary Account]],tblREGASSLookup[[#This Row],[Primary Name]],tblREGASSLookup[[#This Row],[Secondary Acct]],tblREGASSLookup[[#This Row],[Secondary  Name]],tblREGASSLookup[[#This Row],[Alloc4FUNC]])","v":"1823920DSR COSTS AMORTIZED102518ENERGY FINANSWER - ID/UT 2005SITUS"},1823920,"DSR COSTS AMORTIZED",102518,"ENERGY FINANSWER - ID/UT 2005","SITUS",null,{"$f":"IF(OR(tblREGASSLookup[[#This Row],[Alloc]]=\"IDU\",tblREGASSLookup[[#This Row],[Alloc]]=\"OR\",tblREGASSLookup[[#This Row],[Alloc]]=\"UT\",tblREGASSLookup[[#This Row],[Alloc]]=\"WYU\",tblREGASSLookup[[#This Row],[Alloc]]=\"WYP\",tblREGASSLookup[[#This Row],[Alloc]]=\"CA\",tblREGASSLookup[[#This Row],[Alloc]]=\"WA\"),\"SITUS\",tblREGASSLookup[[#This Row],[Alloc]])","v":"SITUS"},"CUST"]
[{"$f":"CONCATENATE(tblREGASSLookup[[#This Row],[Primary Account]],tblREGASSLookup[[#This Row],[Primary Name]],tblREGASSLookup[[#This Row],[Secondary Acct]],tblREGASSLookup[[#This Row],[Secondary  Name]],tblREGASSLookup[[#This Row],[Alloc4FUNC]])","v":"1823920DSR COSTS AMORTIZED102525REFRIGERATOR RECYCLING PGM - IDAHO - 200SITUS"},1823920,"DSR COSTS AMORTIZED",102525,"REFRIGERATOR RECYCLING PGM - IDAHO - 200","SITUS",null,{"$f":"IF(OR(tblREGASSLookup[[#This Row],[Alloc]]=\"IDU\",tblREGASSLookup[[#This Row],[Alloc]]=\"OR\",tblREGASSLookup[[#This Row],[Alloc]]=\"UT\",tblREGASSLookup[[#This Row],[Alloc]]=\"WYU\",tblREGASSLookup[[#This Row],[Alloc]]=\"WYP\",tblREGASSLookup[[#This Row],[Alloc]]=\"CA\",tblREGASSLookup[[#This Row],[Alloc]]=\"WA\"),\"SITUS\",tblREGASSLookup[[#This Row],[Alloc]])","v":"SITUS"},"CUST"]
[{"$f":"CONCATENATE(tblREGASSLookup[[#This Row],[Primary Account]],tblREGASSLookup[[#This Row],[Primary Name]],tblREGASSLookup[[#This Row],[Secondary Acct]],tblREGASSLookup[[#This Row],[Secondary  Name]],tblREGASSLookup[[#This Row],[Alloc4FUNC]])","v":"1823920DSR COSTS AMORTIZED102528COMMERCIAL FINANSWER EXPRESS - IDAHO - 2SITUS"},1823920,"DSR COSTS AMORTIZED",102528,"COMMERCIAL FINANSWER EXPRESS - IDAHO - 2","SITUS",null,{"$f":"IF(OR(tblREGASSLookup[[#This Row],[Alloc]]=\"IDU\",tblREGASSLookup[[#This Row],[Alloc]]=\"OR\",tblREGASSLookup[[#This Row],[Alloc]]=\"UT\",tblREGASSLookup[[#This Row],[Alloc]]=\"WYU\",tblREGASSLookup[[#This Row],[Alloc]]=\"WYP\",tblREGASSLookup[[#This Row],[Alloc]]=\"CA\",tblREGASSLookup[[#This Row],[Alloc]]=\"WA\"),\"SITUS\",tblREGASSLookup[[#This Row],[Alloc]])","v":"SITUS"},"CUST"]
[{"$f":"CONCATENATE(tblREGASSLookup[[#This Row],[Primary Account]],tblREGASSLookup[[#This Row],[Primary Name]],tblREGASSLookup[[#This Row],[Secondary Acct]],tblREGASSLookup[[#This Row],[Secondary  Name]],tblREGASSLookup[[#This Row],[Alloc4FUNC]])","v":"1823920DSR COSTS AMORTIZED102529INDUSTRIAL FINANSWER EXPRESS - IDAHO - 2SITUS"},1823920,"DSR COSTS AMORTIZED",102529,"INDUSTRIAL FINANSWER EXPRESS - IDAHO - 2","SITUS",null,{"$f":"IF(OR(tblREGASSLookup[[#This Row],[Alloc]]=\"IDU\",tblREGASSLookup[[#This Row],[Alloc]]=\"OR\",tblREGASSLookup[[#This Row],[Alloc]]=\"UT\",tblREGASSLookup[[#This Row],[Alloc]]=\"WYU\",tblREGASSLookup[[#This Row],[Alloc]]=\"WYP\",tblREGASSLookup[[#This Row],[Alloc]]=\"CA\",tblREGASSLookup[[#This Row],[Alloc]]=\"WA\"),\"SITUS\",tblREGASSLookup[[#This Row],[Alloc]])","v":"SITUS"},"CUST"]
[{"$f":"CONCATENATE(tblREGASSLookup[[#This Row],[Primary Account]],tblREGASSLookup[[#This Row],[Primary Name]],tblREGASSLookup[[#This Row],[Secondary Acct]],tblREGASSLookup[[#This Row],[Secondary  Name]],tblREGASSLookup[[#This Row],[Alloc4FUNC]])","v":"1823920DSR COSTS AMORTIZED102530IRRIGATION EFFICIENCY PROGRAM - IDAHO -SITUS"},1823920,"DSR COSTS AMORTIZED",102530,"IRRIGATION EFFICIENCY PROGRAM - IDAHO -","SITUS",null,{"$f":"IF(OR(tblREGASSLookup[[#This Row],[Alloc]]=\"IDU\",tblREGASSLookup[[#This Row],[Alloc]]=\"OR\",tblREGASSLookup[[#This Row],[Alloc]]=\"UT\",tblREGASSLookup[[#This Row],[Alloc]]=\"WYU\",tblREGASSLookup[[#This Row],[Alloc]]=\"WYP\",tblREGASSLookup[[#This Row],[Alloc]]=\"CA\",tblREGASSLookup[[#This Row],[Alloc]]=\"WA\"),\"SITUS\",tblREGASSLookup[[#This Row],[Alloc]])","v":"SITUS"},"CUST"]
[{"$f":"CONCATENATE(tblREGASSLookup[[#This Row],[Primary Account]],tblREGASSLookup[[#This Row],[Primary Name]],tblREGASSLookup[[#This Row],[Secondary Acct]],tblREGASSLookup[[#This Row],[Secondary  Name]],tblREGASSLookup[[#This Row],[Alloc4FUNC]])","v":"1823920DSR COSTS AMORTIZED102532LOW INCOME - UTAH - 2005OTHER"},1823920,"DSR COSTS AMORTIZED",102532,"LOW INCOME - UTAH - 2005","OTHER",null,{"$f":"IF(OR(tblREGASSLookup[[#This Row],[Alloc]]=\"IDU\",tblREGASSLookup[[#This Row],[Alloc]]=\"OR\",tblREGASSLookup[[#This Row],[Alloc]]=\"UT\",tblREGASSLookup[[#This Row],[Alloc]]=\"WYU\",tblREGASSLookup[[#This Row],[Alloc]]=\"WYP\",tblREGASSLookup[[#This Row],[Alloc]]=\"CA\",tblREGASSLookup[[#This Row],[Alloc]]=\"WA\"),\"SITUS\",tblREGASSLookup[[#This Row],[Alloc]])","v":"OTHER"},"CUST"]
[{"$f":"CONCATENATE(tblREGASSLookup[[#This Row],[Primary Account]],tblREGASSLookup[[#This Row],[Primary Name]],tblREGASSLookup[[#This Row],[Secondary Acct]],tblREGASSLookup[[#This Row],[Secondary  Name]],tblREGASSLookup[[#This Row],[Alloc4FUNC]])","v":"1823920DSR COSTS AMORTIZED102533REFRIGERATOR RECYCLING PGM- UTAH - 2005OTHER"},1823920,"DSR COSTS AMORTIZED",102533,"REFRIGERATOR RECYCLING PGM- UTAH - 2005","OTHER",null,{"$f":"IF(OR(tblREGASSLookup[[#This Row],[Alloc]]=\"IDU\",tblREGASSLookup[[#This Row],[Alloc]]=\"OR\",tblREGASSLookup[[#This Row],[Alloc]]=\"UT\",tblREGASSLookup[[#This Row],[Alloc]]=\"WYU\",tblREGASSLookup[[#This Row],[Alloc]]=\"WYP\",tblREGASSLookup[[#This Row],[Alloc]]=\"CA\",tblREGASSLookup[[#This Row],[Alloc]]=\"WA\"),\"SITUS\",tblREGASSLookup[[#This Row],[Alloc]])","v":"OTHER"},"CUST"]
[{"$f":"CONCATENATE(tblREGASSLookup[[#This Row],[Primary Account]],tblREGASSLookup[[#This Row],[Primary Name]],tblREGASSLookup[[#This Row],[Secondary Acct]],tblREGASSLookup[[#This Row],[Secondary  Name]],tblREGASSLookup[[#This Row],[Alloc4FUNC]])","v":"1823920DSR COSTS AMORTIZED102534A/C LOAD CONTROL - RESIDENTIAL/UTAH - 20OTHER"},1823920,"DSR COSTS AMORTIZED",102534,"A/C LOAD CONTROL - RESIDENTIAL/UTAH - 20","OTHER",null,{"$f":"IF(OR(tblREGASSLookup[[#This Row],[Alloc]]=\"IDU\",tblREGASSLookup[[#This Row],[Alloc]]=\"OR\",tblREGASSLookup[[#This Row],[Alloc]]=\"UT\",tblREGASSLookup[[#This Row],[Alloc]]=\"WYU\",tblREGASSLookup[[#This Row],[Alloc]]=\"WYP\",tblREGASSLookup[[#This Row],[Alloc]]=\"CA\",tblREGASSLookup[[#This Row],[Alloc]]=\"WA\"),\"SITUS\",tblREGASSLookup[[#This Row],[Alloc]])","v":"OTHER"},"CUST"]
[{"$f":"CONCATENATE(tblREGASSLookup[[#This Row],[Primary Account]],tblREGASSLookup[[#This Row],[Primary Name]],tblREGASSLookup[[#This Row],[Secondary Acct]],tblREGASSLookup[[#This Row],[Secondary  Name]],tblREGASSLookup[[#This Row],[Alloc4FUNC]])","v":"1823920DSR COSTS AMORTIZED102535AIR CONDITIONING - UTAH - 2005OTHER"},1823920,"DSR COSTS AMORTIZED",102535,"AIR CONDITIONING - UTAH - 2005","OTHER",null,{"$f":"IF(OR(tblREGASSLookup[[#This Row],[Alloc]]=\"IDU\",tblREGASSLookup[[#This Row],[Alloc]]=\"OR\",tblREGASSLookup[[#This Row],[Alloc]]=\"UT\",tblREGASSLookup[[#This Row],[Alloc]]=\"WYU\",tblREGASSLookup[[#This Row],[Alloc]]=\"WYP\",tblREGASSLookup[[#This Row],[Alloc]]=\"CA\",tblREGASSLookup[[#This Row],[Alloc]]=\"WA\"),\"SITUS\",tblREGASSLookup[[#This Row],[Alloc]])","v":"OTHER"},"CUST"]
[{"$f":"CONCATENATE(tblREGASSLookup[[#This Row],[Primary Account]],tblREGASSLookup[[#This Row],[Primary Name]],tblREGASSLookup[[#This Row],[Secondary Acct]],tblREGASSLookup[[#This Row],[Secondary  Name]],tblREGASSLookup[[#This Row],[Alloc4FUNC]])","v":"1823920DSR COSTS AMORTIZED102536COMMERCIAL RETROFIT LIGHTING - UTAH - 20OTHER"},1823920,"DSR COSTS AMORTIZED",102536,"COMMERCIAL RETROFIT LIGHTING - UTAH - 20","OTHER",null,{"$f":"IF(OR(tblREGASSLookup[[#This Row],[Alloc]]=\"IDU\",tblREGASSLookup[[#This Row],[Alloc]]=\"OR\",tblREGASSLookup[[#This Row],[Alloc]]=\"UT\",tblREGASSLookup[[#This Row],[Alloc]]=\"WYU\",tblREGASSLookup[[#This Row],[Alloc]]=\"WYP\",tblREGASSLookup[[#This Row],[Alloc]]=\"CA\",tblREGASSLookup[[#This Row],[Alloc]]=\"WA\"),\"SITUS\",tblREGASSLookup[[#This Row],[Alloc]])","v":"OTHER"},"CUST"]
[{"$f":"CONCATENATE(tblREGASSLookup[[#This Row],[Primary Account]],tblREGASSLookup[[#This Row],[Primary Name]],tblREGASSLookup[[#This Row],[Secondary Acct]],tblREGASSLookup[[#This Row],[Secondary  Name]],tblREGASSLookup[[#This Row],[Alloc4FUNC]])","v":"1823920DSR COSTS AMORTIZED102537COMMERCIAL SMALL RETROFIT - UTAH - 2005OTHER"},1823920,"DSR COSTS AMORTIZED",102537,"COMMERCIAL SMALL RETROFIT - UTAH - 2005","OTHER",null,{"$f":"IF(OR(tblREGASSLookup[[#This Row],[Alloc]]=\"IDU\",tblREGASSLookup[[#This Row],[Alloc]]=\"OR\",tblREGASSLookup[[#This Row],[Alloc]]=\"UT\",tblREGASSLookup[[#This Row],[Alloc]]=\"WYU\",tblREGASSLookup[[#This Row],[Alloc]]=\"WYP\",tblREGASSLookup[[#This Row],[Alloc]]=\"CA\",tblREGASSLookup[[#This Row],[Alloc]]=\"WA\"),\"SITUS\",tblREGASSLookup[[#This Row],[Alloc]])","v":"OTHER"},"CUST"]
[{"$f":"CONCATENATE(tblREGASSLookup[[#This Row],[Primary Account]],tblREGASSLookup[[#This Row],[Primary Name]],tblREGASSLookup[[#This Row],[Secondary Acct]],tblREGASSLookup[[#This Row],[Secondary  Name]],tblREGASSLookup[[#This Row],[Alloc4FUNC]])","v":"1823920DSR COSTS AMORTIZED102539ENERGY FINANSWER - UTAH - 2005OTHER"},1823920,"DSR COSTS AMORTIZED",102539,"ENERGY FINANSWER - UTAH - 2005","OTHER",null,{"$f":"IF(OR(tblREGASSLookup[[#This Row],[Alloc]]=\"IDU\",tblREGASSLookup[[#This Row],[Alloc]]=\"OR\",tblREGASSLookup[[#This Row],[Alloc]]=\"UT\",tblREGASSLookup[[#This Row],[Alloc]]=\"WYU\",tblREGASSLookup[[#This Row],[Alloc]]=\"WYP\",tblREGASSLookup[[#This Row],[Alloc]]=\"CA\",tblREGASSLookup[[#This Row],[Alloc]]=\"WA\"),\"SITUS\",tblREGASSLookup[[#This Row],[Alloc]])","v":"OTHER"},"CUST"]
[{"$f":"CONCATENATE(tblREGASSLookup[[#This Row],[Primary Account]],tblREGASSLookup[[#This Row],[Primary Name]],tblREGASSLookup[[#This Row],[Secondary Acct]],tblREGASSLookup[[#This Row],[Secondary  Name]],tblREGASSLookup[[#This Row],[Alloc4FUNC]])","v":"1823920DSR COSTS AMORTIZED102540INDUSTRIAL FINANSWER - UTAH - 2005OTHER"},1823920,"DSR COSTS AMORTIZED",102540,"INDUSTRIAL FINANSWER - UTAH - 2005","OTHER",null,{"$f":"IF(OR(tblREGASSLookup[[#This Row],[Alloc]]=\"IDU\",tblREGASSLookup[[#This Row],[Alloc]]=\"OR\",tblREGASSLookup[[#This Row],[Alloc]]=\"UT\",tblREGASSLookup[[#This Row],[Alloc]]=\"WYU\",tblREGASSLookup[[#This Row],[Alloc]]=\"WYP\",tblREGASSLookup[[#This Row],[Alloc]]=\"CA\",tblREGASSLookup[[#This Row],[Alloc]]=\"WA\"),\"SITUS\",tblREGASSLookup[[#This Row],[Alloc]])","v":"OTHER"},"CUST"]
[{"$f":"CONCATENATE(tblREGASSLookup[[#This Row],[Primary Account]],tblREGASSLookup[[#This Row],[Primary Name]],tblREGASSLookup[[#This Row],[Secondary Acct]],tblREGASSLookup[[#This Row],[Secondary  Name]],tblREGASSLookup[[#This Row],[Alloc4FUNC]])","v":"1823920DSR COSTS AMORTIZED102541INDUSTRIAL RETROFIT LIGHTING - UTAH - 20OTHER"},1823920,"DSR COSTS AMORTIZED",102541,"INDUSTRIAL RETROFIT LIGHTING - UTAH - 20","OTHER",null,{"$f":"IF(OR(tblREGASSLookup[[#This Row],[Alloc]]=\"IDU\",tblREGASSLookup[[#This Row],[Alloc]]=\"OR\",tblREGASSLookup[[#This Row],[Alloc]]=\"UT\",tblREGASSLookup[[#This Row],[Alloc]]=\"WYU\",tblREGASSLookup[[#This Row],[Alloc]]=\"WYP\",tblREGASSLookup[[#This Row],[Alloc]]=\"CA\",tblREGASSLookup[[#This Row],[Alloc]]=\"WA\"),\"SITUS\",tblREGASSLookup[[#This Row],[Alloc]])","v":"OTHER"},"CUST"]
[{"$f":"CONCATENATE(tblREGASSLookup[[#This Row],[Primary Account]],tblREGASSLookup[[#This Row],[Primary Name]],tblREGASSLookup[[#This Row],[Secondary Acct]],tblREGASSLookup[[#This Row],[Secondary  Name]],tblREGASSLookup[[#This Row],[Alloc4FUNC]])","v":"1823920DSR COSTS AMORTIZED102543POWER FORWARD - UTAH - 2005OTHER"},1823920,"DSR COSTS AMORTIZED",102543,"POWER FORWARD - UTAH - 2005","OTHER",null,{"$f":"IF(OR(tblREGASSLookup[[#This Row],[Alloc]]=\"IDU\",tblREGASSLookup[[#This Row],[Alloc]]=\"OR\",tblREGASSLookup[[#This Row],[Alloc]]=\"UT\",tblREGASSLookup[[#This Row],[Alloc]]=\"WYU\",tblREGASSLookup[[#This Row],[Alloc]]=\"WYP\",tblREGASSLookup[[#This Row],[Alloc]]=\"CA\",tblREGASSLookup[[#This Row],[Alloc]]=\"WA\"),\"SITUS\",tblREGASSLookup[[#This Row],[Alloc]])","v":"OTHER"},"CUST"]
[{"$f":"CONCATENATE(tblREGASSLookup[[#This Row],[Primary Account]],tblREGASSLookup[[#This Row],[Primary Name]],tblREGASSLookup[[#This Row],[Secondary Acct]],tblREGASSLookup[[#This Row],[Secondary  Name]],tblREGASSLookup[[#This Row],[Alloc4FUNC]])","v":"1823920DSR COSTS AMORTIZED102544COMMERCIAL SELF-DIRECT - UTAH - 2005OTHER"},1823920,"DSR COSTS AMORTIZED",102544,"COMMERCIAL SELF-DIRECT - UTAH - 2005","OTHER",null,{"$f":"IF(OR(tblREGASSLookup[[#This Row],[Alloc]]=\"IDU\",tblREGASSLookup[[#This Row],[Alloc]]=\"OR\",tblREGASSLookup[[#This Row],[Alloc]]=\"UT\",tblREGASSLookup[[#This Row],[Alloc]]=\"WYU\",tblREGASSLookup[[#This Row],[Alloc]]=\"WYP\",tblREGASSLookup[[#This Row],[Alloc]]=\"CA\",tblREGASSLookup[[#This Row],[Alloc]]=\"WA\"),\"SITUS\",tblREGASSLookup[[#This Row],[Alloc]])","v":"OTHER"},"CUST"]
[{"$f":"CONCATENATE(tblREGASSLookup[[#This Row],[Primary Account]],tblREGASSLookup[[#This Row],[Primary Name]],tblREGASSLookup[[#This Row],[Secondary Acct]],tblREGASSLookup[[#This Row],[Secondary  Name]],tblREGASSLookup[[#This Row],[Alloc4FUNC]])","v":"1823920DSR COSTS AMORTIZED102545INDUSTRIAL SELF-DIRECT - UTAH - 2005OTHER"},1823920,"DSR COSTS AMORTIZED",102545,"INDUSTRIAL SELF-DIRECT - UTAH - 2005","OTHER",null,{"$f":"IF(OR(tblREGASSLookup[[#This Row],[Alloc]]=\"IDU\",tblREGASSLookup[[#This Row],[Alloc]]=\"OR\",tblREGASSLookup[[#This Row],[Alloc]]=\"UT\",tblREGASSLookup[[#This Row],[Alloc]]=\"WYU\",tblREGASSLookup[[#This Row],[Alloc]]=\"WYP\",tblREGASSLookup[[#This Row],[Alloc]]=\"CA\",tblREGASSLookup[[#This Row],[Alloc]]=\"WA\"),\"SITUS\",tblREGASSLookup[[#This Row],[Alloc]])","v":"OTHER"},"CUST"]
[{"$f":"CONCATENATE(tblREGASSLookup[[#This Row],[Primary Account]],tblREGASSLookup[[#This Row],[Primary Name]],tblREGASSLookup[[#This Row],[Secondary Acct]],tblREGASSLookup[[#This Row],[Secondary  Name]],tblREGASSLookup[[#This Row],[Alloc4FUNC]])","v":"1823920DSR COSTS AMORTIZED102546RESIDENTIAL NEW CONSTRUCTION - UTAH - 20OTHER"},1823920,"DSR COSTS AMORTIZED",102546,"RESIDENTIAL NEW CONSTRUCTION - UTAH - 20","OTHER",null,{"$f":"IF(OR(tblREGASSLookup[[#This Row],[Alloc]]=\"IDU\",tblREGASSLookup[[#This Row],[Alloc]]=\"OR\",tblREGASSLookup[[#This Row],[Alloc]]=\"UT\",tblREGASSLookup[[#This Row],[Alloc]]=\"WYU\",tblREGASSLookup[[#This Row],[Alloc]]=\"WYP\",tblREGASSLookup[[#This Row],[Alloc]]=\"CA\",tblREGASSLookup[[#This Row],[Alloc]]=\"WA\"),\"SITUS\",tblREGASSLookup[[#This Row],[Alloc]])","v":"OTHER"},"CUST"]
[{"$f":"CONCATENATE(tblREGASSLookup[[#This Row],[Primary Account]],tblREGASSLookup[[#This Row],[Primary Name]],tblREGASSLookup[[#This Row],[Secondary Acct]],tblREGASSLookup[[#This Row],[Secondary  Name]],tblREGASSLookup[[#This Row],[Alloc4FUNC]])","v":"1823920DSR COSTS AMORTIZED102547COMMERCIAL FINANSWER EXPRESS - UTAH - 20OTHER"},1823920,"DSR COSTS AMORTIZED",102547,"COMMERCIAL FINANSWER EXPRESS - UTAH - 20","OTHER",null,{"$f":"IF(OR(tblREGASSLookup[[#This Row],[Alloc]]=\"IDU\",tblREGASSLookup[[#This Row],[Alloc]]=\"OR\",tblREGASSLookup[[#This Row],[Alloc]]=\"UT\",tblREGASSLookup[[#This Row],[Alloc]]=\"WYU\",tblREGASSLookup[[#This Row],[Alloc]]=\"WYP\",tblREGASSLookup[[#This Row],[Alloc]]=\"CA\",tblREGASSLookup[[#This Row],[Alloc]]=\"WA\"),\"SITUS\",tblREGASSLookup[[#This Row],[Alloc]])","v":"OTHER"},"CUST"]
[{"$f":"CONCATENATE(tblREGASSLookup[[#This Row],[Primary Account]],tblREGASSLookup[[#This Row],[Primary Name]],tblREGASSLookup[[#This Row],[Secondary Acct]],tblREGASSLookup[[#This Row],[Secondary  Name]],tblREGASSLookup[[#This Row],[Alloc4FUNC]])","v":"1823920DSR COSTS AMORTIZED102548INDUSTRIAL FINANSWER EXPRESS - UTAH - 20OTHER"},1823920,"DSR COSTS AMORTIZED",102548,"INDUSTRIAL FINANSWER EXPRESS - UTAH - 20","OTHER",null,{"$f":"IF(OR(tblREGASSLookup[[#This Row],[Alloc]]=\"IDU\",tblREGASSLookup[[#This Row],[Alloc]]=\"OR\",tblREGASSLookup[[#This Row],[Alloc]]=\"UT\",tblREGASSLookup[[#This Row],[Alloc]]=\"WYU\",tblREGASSLookup[[#This Row],[Alloc]]=\"WYP\",tblREGASSLookup[[#This Row],[Alloc]]=\"CA\",tblREGASSLookup[[#This Row],[Alloc]]=\"WA\"),\"SITUS\",tblREGASSLookup[[#This Row],[Alloc]])","v":"OTHER"},"CUST"]
[{"$f":"CONCATENATE(tblREGASSLookup[[#This Row],[Primary Account]],tblREGASSLookup[[#This Row],[Primary Name]],tblREGASSLookup[[#This Row],[Secondary Acct]],tblREGASSLookup[[#This Row],[Secondary  Name]],tblREGASSLookup[[#This Row],[Alloc4FUNC]])","v":"1823920DSR COSTS AMORTIZED102549RETROFIT COMMISSIONING PROGRAM  - UTAH -OTHER"},1823920,"DSR COSTS AMORTIZED",102549,"RETROFIT COMMISSIONING PROGRAM  - UTAH -","OTHER",null,{"$f":"IF(OR(tblREGASSLookup[[#This Row],[Alloc]]=\"IDU\",tblREGASSLookup[[#This Row],[Alloc]]=\"OR\",tblREGASSLookup[[#This Row],[Alloc]]=\"UT\",tblREGASSLookup[[#This Row],[Alloc]]=\"WYU\",tblREGASSLookup[[#This Row],[Alloc]]=\"WYP\",tblREGASSLookup[[#This Row],[Alloc]]=\"CA\",tblREGASSLookup[[#This Row],[Alloc]]=\"WA\"),\"SITUS\",tblREGASSLookup[[#This Row],[Alloc]])","v":"OTHER"},"CUST"]
[{"$f":"CONCATENATE(tblREGASSLookup[[#This Row],[Primary Account]],tblREGASSLookup[[#This Row],[Primary Name]],tblREGASSLookup[[#This Row],[Secondary Acct]],tblREGASSLookup[[#This Row],[Secondary  Name]],tblREGASSLookup[[#This Row],[Alloc4FUNC]])","v":"1823920DSR COSTS AMORTIZED102550C&I LIGHTING LOAD CONTROL  - UTAH - 2005OTHER"},1823920,"DSR COSTS AMORTIZED",102550,"C&I LIGHTING LOAD CONTROL  - UTAH - 2005","OTHER",null,{"$f":"IF(OR(tblREGASSLookup[[#This Row],[Alloc]]=\"IDU\",tblREGASSLookup[[#This Row],[Alloc]]=\"OR\",tblREGASSLookup[[#This Row],[Alloc]]=\"UT\",tblREGASSLookup[[#This Row],[Alloc]]=\"WYU\",tblREGASSLookup[[#This Row],[Alloc]]=\"WYP\",tblREGASSLookup[[#This Row],[Alloc]]=\"CA\",tblREGASSLookup[[#This Row],[Alloc]]=\"WA\"),\"SITUS\",tblREGASSLookup[[#This Row],[Alloc]])","v":"OTHER"},"CUST"]
[{"$f":"CONCATENATE(tblREGASSLookup[[#This Row],[Primary Account]],tblREGASSLookup[[#This Row],[Primary Name]],tblREGASSLookup[[#This Row],[Secondary Acct]],tblREGASSLookup[[#This Row],[Secondary  Name]],tblREGASSLookup[[#This Row],[Alloc4FUNC]])","v":"1823920DSR COSTS AMORTIZED1025561823920/102556OTHER"},1823920,"DSR COSTS AMORTIZED",102556,"1823920/102556","OTHER",null,{"$f":"IF(OR(tblREGASSLookup[[#This Row],[Alloc]]=\"IDU\",tblREGASSLookup[[#This Row],[Alloc]]=\"OR\",tblREGASSLookup[[#This Row],[Alloc]]=\"UT\",tblREGASSLookup[[#This Row],[Alloc]]=\"WYU\",tblREGASSLookup[[#This Row],[Alloc]]=\"WYP\",tblREGASSLookup[[#This Row],[Alloc]]=\"CA\",tblREGASSLookup[[#This Row],[Alloc]]=\"WA\"),\"SITUS\",tblREGASSLookup[[#This Row],[Alloc]])","v":"OTHER"},"CUST"]
[{"$f":"CONCATENATE(tblREGASSLookup[[#This Row],[Primary Account]],tblREGASSLookup[[#This Row],[Primary Name]],tblREGASSLookup[[#This Row],[Secondary Acct]],tblREGASSLookup[[#This Row],[Secondary  Name]],tblREGASSLookup[[#This Row],[Alloc4FUNC]])","v":"1823920DSR COSTS AMORTIZED102562APPLIANCE INCENTIVE - WASHWISE - WASHINGOTHER"},1823920,"DSR COSTS AMORTIZED",102562,"APPLIANCE INCENTIVE - WASHWISE - WASHING","OTHER",null,{"$f":"IF(OR(tblREGASSLookup[[#This Row],[Alloc]]=\"IDU\",tblREGASSLookup[[#This Row],[Alloc]]=\"OR\",tblREGASSLookup[[#This Row],[Alloc]]=\"UT\",tblREGASSLookup[[#This Row],[Alloc]]=\"WYU\",tblREGASSLookup[[#This Row],[Alloc]]=\"WYP\",tblREGASSLookup[[#This Row],[Alloc]]=\"CA\",tblREGASSLookup[[#This Row],[Alloc]]=\"WA\"),\"SITUS\",tblREGASSLookup[[#This Row],[Alloc]])","v":"OTHER"},"CUST"]
[{"$f":"CONCATENATE(tblREGASSLookup[[#This Row],[Primary Account]],tblREGASSLookup[[#This Row],[Primary Name]],tblREGASSLookup[[#This Row],[Secondary Acct]],tblREGASSLookup[[#This Row],[Secondary  Name]],tblREGASSLookup[[#This Row],[Alloc4FUNC]])","v":"1823920DSR COSTS AMORTIZED102586IRRIGATION LOAD CONTROL - UTAH - 2005OTHER"},1823920,"DSR COSTS AMORTIZED",102586,"IRRIGATION LOAD CONTROL - UTAH - 2005","OTHER",null,{"$f":"IF(OR(tblREGASSLookup[[#This Row],[Alloc]]=\"IDU\",tblREGASSLookup[[#This Row],[Alloc]]=\"OR\",tblREGASSLookup[[#This Row],[Alloc]]=\"UT\",tblREGASSLookup[[#This Row],[Alloc]]=\"WYU\",tblREGASSLookup[[#This Row],[Alloc]]=\"WYP\",tblREGASSLookup[[#This Row],[Alloc]]=\"CA\",tblREGASSLookup[[#This Row],[Alloc]]=\"WA\"),\"SITUS\",tblREGASSLookup[[#This Row],[Alloc]])","v":"OTHER"},"CUST"]
[{"$f":"CONCATENATE(tblREGASSLookup[[#This Row],[Primary Account]],tblREGASSLookup[[#This Row],[Primary Name]],tblREGASSLookup[[#This Row],[Secondary Acct]],tblREGASSLookup[[#This Row],[Secondary  Name]],tblREGASSLookup[[#This Row],[Alloc4FUNC]])","v":"1823920DSR COSTS AMORTIZED102706LOW INCOME-UTAH-2006OTHER"},1823920,"DSR COSTS AMORTIZED",102706,"LOW INCOME-UTAH-2006","OTHER",null,{"$f":"IF(OR(tblREGASSLookup[[#This Row],[Alloc]]=\"IDU\",tblREGASSLookup[[#This Row],[Alloc]]=\"OR\",tblREGASSLookup[[#This Row],[Alloc]]=\"UT\",tblREGASSLookup[[#This Row],[Alloc]]=\"WYU\",tblREGASSLookup[[#This Row],[Alloc]]=\"WYP\",tblREGASSLookup[[#This Row],[Alloc]]=\"CA\",tblREGASSLookup[[#This Row],[Alloc]]=\"WA\"),\"SITUS\",tblREGASSLookup[[#This Row],[Alloc]])","v":"OTHER"},"CUST"]
[{"$f":"CONCATENATE(tblREGASSLookup[[#This Row],[Primary Account]],tblREGASSLookup[[#This Row],[Primary Name]],tblREGASSLookup[[#This Row],[Secondary Acct]],tblREGASSLookup[[#This Row],[Secondary  Name]],tblREGASSLookup[[#This Row],[Alloc4FUNC]])","v":"1823920DSR COSTS AMORTIZED102707REFRIGERATOR RECYCLING PGM-UTAH-2006OTHER"},1823920,"DSR COSTS AMORTIZED",102707,"REFRIGERATOR RECYCLING PGM-UTAH-2006","OTHER",null,{"$f":"IF(OR(tblREGASSLookup[[#This Row],[Alloc]]=\"IDU\",tblREGASSLookup[[#This Row],[Alloc]]=\"OR\",tblREGASSLookup[[#This Row],[Alloc]]=\"UT\",tblREGASSLookup[[#This Row],[Alloc]]=\"WYU\",tblREGASSLookup[[#This Row],[Alloc]]=\"WYP\",tblREGASSLookup[[#This Row],[Alloc]]=\"CA\",tblREGASSLookup[[#This Row],[Alloc]]=\"WA\"),\"SITUS\",tblREGASSLookup[[#This Row],[Alloc]])","v":"OTHER"},"CUST"]
[{"$f":"CONCATENATE(tblREGASSLookup[[#This Row],[Primary Account]],tblREGASSLookup[[#This Row],[Primary Name]],tblREGASSLookup[[#This Row],[Secondary Acct]],tblREGASSLookup[[#This Row],[Secondary  Name]],tblREGASSLookup[[#This Row],[Alloc4FUNC]])","v":"1823920DSR COSTS AMORTIZED102708A/C LOAD CONTROL-RESIDENTIAL/UTAH-2006OTHER"},1823920,"DSR COSTS AMORTIZED",102708,"A/C LOAD CONTROL-RESIDENTIAL/UTAH-2006","OTHER",null,{"$f":"IF(OR(tblREGASSLookup[[#This Row],[Alloc]]=\"IDU\",tblREGASSLookup[[#This Row],[Alloc]]=\"OR\",tblREGASSLookup[[#This Row],[Alloc]]=\"UT\",tblREGASSLookup[[#This Row],[Alloc]]=\"WYU\",tblREGASSLookup[[#This Row],[Alloc]]=\"WYP\",tblREGASSLookup[[#This Row],[Alloc]]=\"CA\",tblREGASSLookup[[#This Row],[Alloc]]=\"WA\"),\"SITUS\",tblREGASSLookup[[#This Row],[Alloc]])","v":"OTHER"},"CUST"]
[{"$f":"CONCATENATE(tblREGASSLookup[[#This Row],[Primary Account]],tblREGASSLookup[[#This Row],[Primary Name]],tblREGASSLookup[[#This Row],[Secondary Acct]],tblREGASSLookup[[#This Row],[Secondary  Name]],tblREGASSLookup[[#This Row],[Alloc4FUNC]])","v":"1823920DSR COSTS AMORTIZED102709AIR CONDITIONING-UTAH-2006OTHER"},1823920,"DSR COSTS AMORTIZED",102709,"AIR CONDITIONING-UTAH-2006","OTHER",null,{"$f":"IF(OR(tblREGASSLookup[[#This Row],[Alloc]]=\"IDU\",tblREGASSLookup[[#This Row],[Alloc]]=\"OR\",tblREGASSLookup[[#This Row],[Alloc]]=\"UT\",tblREGASSLookup[[#This Row],[Alloc]]=\"WYU\",tblREGASSLookup[[#This Row],[Alloc]]=\"WYP\",tblREGASSLookup[[#This Row],[Alloc]]=\"CA\",tblREGASSLookup[[#This Row],[Alloc]]=\"WA\"),\"SITUS\",tblREGASSLookup[[#This Row],[Alloc]])","v":"OTHER"},"CUST"]
[{"$f":"CONCATENATE(tblREGASSLookup[[#This Row],[Primary Account]],tblREGASSLookup[[#This Row],[Primary Name]],tblREGASSLookup[[#This Row],[Secondary Acct]],tblREGASSLookup[[#This Row],[Secondary  Name]],tblREGASSLookup[[#This Row],[Alloc4FUNC]])","v":"1823920DSR COSTS AMORTIZED102712ENERGY FINANSWER-UTAH-2006OTHER"},1823920,"DSR COSTS AMORTIZED",102712,"ENERGY FINANSWER-UTAH-2006","OTHER",null,{"$f":"IF(OR(tblREGASSLookup[[#This Row],[Alloc]]=\"IDU\",tblREGASSLookup[[#This Row],[Alloc]]=\"OR\",tblREGASSLookup[[#This Row],[Alloc]]=\"UT\",tblREGASSLookup[[#This Row],[Alloc]]=\"WYU\",tblREGASSLookup[[#This Row],[Alloc]]=\"WYP\",tblREGASSLookup[[#This Row],[Alloc]]=\"CA\",tblREGASSLookup[[#This Row],[Alloc]]=\"WA\"),\"SITUS\",tblREGASSLookup[[#This Row],[Alloc]])","v":"OTHER"},"CUST"]
[{"$f":"CONCATENATE(tblREGASSLookup[[#This Row],[Primary Account]],tblREGASSLookup[[#This Row],[Primary Name]],tblREGASSLookup[[#This Row],[Secondary Acct]],tblREGASSLookup[[#This Row],[Secondary  Name]],tblREGASSLookup[[#This Row],[Alloc4FUNC]])","v":"1823920DSR COSTS AMORTIZED102713INDUSTRIAL FINANSWER-WYOMING-UTAH-2006OTHER"},1823920,"DSR COSTS AMORTIZED",102713,"INDUSTRIAL FINANSWER-WYOMING-UTAH-2006","OTHER",null,{"$f":"IF(OR(tblREGASSLookup[[#This Row],[Alloc]]=\"IDU\",tblREGASSLookup[[#This Row],[Alloc]]=\"OR\",tblREGASSLookup[[#This Row],[Alloc]]=\"UT\",tblREGASSLookup[[#This Row],[Alloc]]=\"WYU\",tblREGASSLookup[[#This Row],[Alloc]]=\"WYP\",tblREGASSLookup[[#This Row],[Alloc]]=\"CA\",tblREGASSLookup[[#This Row],[Alloc]]=\"WA\"),\"SITUS\",tblREGASSLookup[[#This Row],[Alloc]])","v":"OTHER"},"CUST"]
[{"$f":"CONCATENATE(tblREGASSLookup[[#This Row],[Primary Account]],tblREGASSLookup[[#This Row],[Primary Name]],tblREGASSLookup[[#This Row],[Secondary Acct]],tblREGASSLookup[[#This Row],[Secondary  Name]],tblREGASSLookup[[#This Row],[Alloc4FUNC]])","v":"1823920DSR COSTS AMORTIZED102717COMMERCIAL SELF-DIRECT-UTAH-2006OTHER"},1823920,"DSR COSTS AMORTIZED",102717,"COMMERCIAL SELF-DIRECT-UTAH-2006","OTHER",null,{"$f":"IF(OR(tblREGASSLookup[[#This Row],[Alloc]]=\"IDU\",tblREGASSLookup[[#This Row],[Alloc]]=\"OR\",tblREGASSLookup[[#This Row],[Alloc]]=\"UT\",tblREGASSLookup[[#This Row],[Alloc]]=\"WYU\",tblREGASSLookup[[#This Row],[Alloc]]=\"WYP\",tblREGASSLookup[[#This Row],[Alloc]]=\"CA\",tblREGASSLookup[[#This Row],[Alloc]]=\"WA\"),\"SITUS\",tblREGASSLookup[[#This Row],[Alloc]])","v":"OTHER"},"CUST"]
[{"$f":"CONCATENATE(tblREGASSLookup[[#This Row],[Primary Account]],tblREGASSLookup[[#This Row],[Primary Name]],tblREGASSLookup[[#This Row],[Secondary Acct]],tblREGASSLookup[[#This Row],[Secondary  Name]],tblREGASSLookup[[#This Row],[Alloc4FUNC]])","v":"1823920DSR COSTS AMORTIZED102718INDUSTRIAL SELF-DIRECT-UTAH-2006OTHER"},1823920,"DSR COSTS AMORTIZED",102718,"INDUSTRIAL SELF-DIRECT-UTAH-2006","OTHER",null,{"$f":"IF(OR(tblREGASSLookup[[#This Row],[Alloc]]=\"IDU\",tblREGASSLookup[[#This Row],[Alloc]]=\"OR\",tblREGASSLookup[[#This Row],[Alloc]]=\"UT\",tblREGASSLookup[[#This Row],[Alloc]]=\"WYU\",tblREGASSLookup[[#This Row],[Alloc]]=\"WYP\",tblREGASSLookup[[#This Row],[Alloc]]=\"CA\",tblREGASSLookup[[#This Row],[Alloc]]=\"WA\"),\"SITUS\",tblREGASSLookup[[#This Row],[Alloc]])","v":"OTHER"},"CUST"]
[{"$f":"CONCATENATE(tblREGASSLookup[[#This Row],[Primary Account]],tblREGASSLookup[[#This Row],[Primary Name]],tblREGASSLookup[[#This Row],[Secondary Acct]],tblREGASSLookup[[#This Row],[Secondary  Name]],tblREGASSLookup[[#This Row],[Alloc4FUNC]])","v":"1823920DSR COSTS AMORTIZED102719RESIDENTIAL NEW CONSTRUCTION-UTAH-2006OTHER"},1823920,"DSR COSTS AMORTIZED",102719,"RESIDENTIAL NEW CONSTRUCTION-UTAH-2006","OTHER",null,{"$f":"IF(OR(tblREGASSLookup[[#This Row],[Alloc]]=\"IDU\",tblREGASSLookup[[#This Row],[Alloc]]=\"OR\",tblREGASSLookup[[#This Row],[Alloc]]=\"UT\",tblREGASSLookup[[#This Row],[Alloc]]=\"WYU\",tblREGASSLookup[[#This Row],[Alloc]]=\"WYP\",tblREGASSLookup[[#This Row],[Alloc]]=\"CA\",tblREGASSLookup[[#This Row],[Alloc]]=\"WA\"),\"SITUS\",tblREGASSLookup[[#This Row],[Alloc]])","v":"OTHER"},"CUST"]
[{"$f":"CONCATENATE(tblREGASSLookup[[#This Row],[Primary Account]],tblREGASSLookup[[#This Row],[Primary Name]],tblREGASSLookup[[#This Row],[Secondary Acct]],tblREGASSLookup[[#This Row],[Secondary  Name]],tblREGASSLookup[[#This Row],[Alloc4FUNC]])","v":"1823920DSR COSTS AMORTIZED102720COMMERCIAL FINANSWER EXPRESS-UTAH-2006OTHER"},1823920,"DSR COSTS AMORTIZED",102720,"COMMERCIAL FINANSWER EXPRESS-UTAH-2006","OTHER",null,{"$f":"IF(OR(tblREGASSLookup[[#This Row],[Alloc]]=\"IDU\",tblREGASSLookup[[#This Row],[Alloc]]=\"OR\",tblREGASSLookup[[#This Row],[Alloc]]=\"UT\",tblREGASSLookup[[#This Row],[Alloc]]=\"WYU\",tblREGASSLookup[[#This Row],[Alloc]]=\"WYP\",tblREGASSLookup[[#This Row],[Alloc]]=\"CA\",tblREGASSLookup[[#This Row],[Alloc]]=\"WA\"),\"SITUS\",tblREGASSLookup[[#This Row],[Alloc]])","v":"OTHER"},"CUST"]
[{"$f":"CONCATENATE(tblREGASSLookup[[#This Row],[Primary Account]],tblREGASSLookup[[#This Row],[Primary Name]],tblREGASSLookup[[#This Row],[Secondary Acct]],tblREGASSLookup[[#This Row],[Secondary  Name]],tblREGASSLookup[[#This Row],[Alloc4FUNC]])","v":"1823920DSR COSTS AMORTIZED102721INDUSTRIAL FINANSWER-UTAH-2006OTHER"},1823920,"DSR COSTS AMORTIZED",102721,"INDUSTRIAL FINANSWER-UTAH-2006","OTHER",null,{"$f":"IF(OR(tblREGASSLookup[[#This Row],[Alloc]]=\"IDU\",tblREGASSLookup[[#This Row],[Alloc]]=\"OR\",tblREGASSLookup[[#This Row],[Alloc]]=\"UT\",tblREGASSLookup[[#This Row],[Alloc]]=\"WYU\",tblREGASSLookup[[#This Row],[Alloc]]=\"WYP\",tblREGASSLookup[[#This Row],[Alloc]]=\"CA\",tblREGASSLookup[[#This Row],[Alloc]]=\"WA\"),\"SITUS\",tblREGASSLookup[[#This Row],[Alloc]])","v":"OTHER"},"CUST"]
[{"$f":"CONCATENATE(tblREGASSLookup[[#This Row],[Primary Account]],tblREGASSLookup[[#This Row],[Primary Name]],tblREGASSLookup[[#This Row],[Secondary Acct]],tblREGASSLookup[[#This Row],[Secondary  Name]],tblREGASSLookup[[#This Row],[Alloc4FUNC]])","v":"1823920DSR COSTS AMORTIZED102722RETROFIT COMMISSIONING PROGRAM -UTAH-200OTHER"},1823920,"DSR COSTS AMORTIZED",102722,"RETROFIT COMMISSIONING PROGRAM -UTAH-200","OTHER",null,{"$f":"IF(OR(tblREGASSLookup[[#This Row],[Alloc]]=\"IDU\",tblREGASSLookup[[#This Row],[Alloc]]=\"OR\",tblREGASSLookup[[#This Row],[Alloc]]=\"UT\",tblREGASSLookup[[#This Row],[Alloc]]=\"WYU\",tblREGASSLookup[[#This Row],[Alloc]]=\"WYP\",tblREGASSLookup[[#This Row],[Alloc]]=\"CA\",tblREGASSLookup[[#This Row],[Alloc]]=\"WA\"),\"SITUS\",tblREGASSLookup[[#This Row],[Alloc]])","v":"OTHER"},"CUST"]
[{"$f":"CONCATENATE(tblREGASSLookup[[#This Row],[Primary Account]],tblREGASSLookup[[#This Row],[Primary Name]],tblREGASSLookup[[#This Row],[Secondary Acct]],tblREGASSLookup[[#This Row],[Secondary  Name]],tblREGASSLookup[[#This Row],[Alloc4FUNC]])","v":"1823920DSR COSTS AMORTIZED102723C&I LIGHTING LOAD CONTROL -UTAH-2006OTHER"},1823920,"DSR COSTS AMORTIZED",102723,"C&I LIGHTING LOAD CONTROL -UTAH-2006","OTHER",null,{"$f":"IF(OR(tblREGASSLookup[[#This Row],[Alloc]]=\"IDU\",tblREGASSLookup[[#This Row],[Alloc]]=\"OR\",tblREGASSLookup[[#This Row],[Alloc]]=\"UT\",tblREGASSLookup[[#This Row],[Alloc]]=\"WYU\",tblREGASSLookup[[#This Row],[Alloc]]=\"WYP\",tblREGASSLookup[[#This Row],[Alloc]]=\"CA\",tblREGASSLookup[[#This Row],[Alloc]]=\"WA\"),\"SITUS\",tblREGASSLookup[[#This Row],[Alloc]])","v":"OTHER"},"CUST"]
[{"$f":"CONCATENATE(tblREGASSLookup[[#This Row],[Primary Account]],tblREGASSLookup[[#This Row],[Primary Name]],tblREGASSLookup[[#This Row],[Secondary Acct]],tblREGASSLookup[[#This Row],[Secondary  Name]],tblREGASSLookup[[#This Row],[Alloc4FUNC]])","v":"1823920DSR COSTS AMORTIZED102725CALIFORNIA DSM EXPENSE-2006OTHER"},1823920,"DSR COSTS AMORTIZED",102725,"CALIFORNIA DSM EXPENSE-2006","OTHER",null,{"$f":"IF(OR(tblREGASSLookup[[#This Row],[Alloc]]=\"IDU\",tblREGASSLookup[[#This Row],[Alloc]]=\"OR\",tblREGASSLookup[[#This Row],[Alloc]]=\"UT\",tblREGASSLookup[[#This Row],[Alloc]]=\"WYU\",tblREGASSLookup[[#This Row],[Alloc]]=\"WYP\",tblREGASSLookup[[#This Row],[Alloc]]=\"CA\",tblREGASSLookup[[#This Row],[Alloc]]=\"WA\"),\"SITUS\",tblREGASSLookup[[#This Row],[Alloc]])","v":"OTHER"},"CUST"]
[{"$f":"CONCATENATE(tblREGASSLookup[[#This Row],[Primary Account]],tblREGASSLookup[[#This Row],[Primary Name]],tblREGASSLookup[[#This Row],[Secondary Acct]],tblREGASSLookup[[#This Row],[Secondary  Name]],tblREGASSLookup[[#This Row],[Alloc4FUNC]])","v":"1823920DSR COSTS AMORTIZED102759HOME ENERGY EFF INCENTIVE PROG-UTAH-2006OTHER"},1823920,"DSR COSTS AMORTIZED",102759,"HOME ENERGY EFF INCENTIVE PROG-UTAH-2006","OTHER",null,{"$f":"IF(OR(tblREGASSLookup[[#This Row],[Alloc]]=\"IDU\",tblREGASSLookup[[#This Row],[Alloc]]=\"OR\",tblREGASSLookup[[#This Row],[Alloc]]=\"UT\",tblREGASSLookup[[#This Row],[Alloc]]=\"WYU\",tblREGASSLookup[[#This Row],[Alloc]]=\"WYP\",tblREGASSLookup[[#This Row],[Alloc]]=\"CA\",tblREGASSLookup[[#This Row],[Alloc]]=\"WA\"),\"SITUS\",tblREGASSLookup[[#This Row],[Alloc]])","v":"OTHER"},"CUST"]
[{"$f":"CONCATENATE(tblREGASSLookup[[#This Row],[Primary Account]],tblREGASSLookup[[#This Row],[Primary Name]],tblREGASSLookup[[#This Row],[Secondary Acct]],tblREGASSLookup[[#This Row],[Secondary  Name]],tblREGASSLookup[[#This Row],[Alloc4FUNC]])","v":"1823920DSR COSTS AMORTIZED102760HOME ENERGY EFF INCENTIVE PROG-WA-2006OTHER"},1823920,"DSR COSTS AMORTIZED",102760,"HOME ENERGY EFF INCENTIVE PROG-WA-2006","OTHER",null,{"$f":"IF(OR(tblREGASSLookup[[#This Row],[Alloc]]=\"IDU\",tblREGASSLookup[[#This Row],[Alloc]]=\"OR\",tblREGASSLookup[[#This Row],[Alloc]]=\"UT\",tblREGASSLookup[[#This Row],[Alloc]]=\"WYU\",tblREGASSLookup[[#This Row],[Alloc]]=\"WYP\",tblREGASSLookup[[#This Row],[Alloc]]=\"CA\",tblREGASSLookup[[#This Row],[Alloc]]=\"WA\"),\"SITUS\",tblREGASSLookup[[#This Row],[Alloc]])","v":"OTHER"},"CUST"]
[{"$f":"CONCATENATE(tblREGASSLookup[[#This Row],[Primary Account]],tblREGASSLookup[[#This Row],[Primary Name]],tblREGASSLookup[[#This Row],[Secondary Acct]],tblREGASSLookup[[#This Row],[Secondary  Name]],tblREGASSLookup[[#This Row],[Alloc4FUNC]])","v":"1823920DSR COSTS AMORTIZED102767DSR COSTS BEING AMORTIZEDOTHER"},1823920,"DSR COSTS AMORTIZED",102767,"DSR COSTS BEING AMORTIZED","OTHER",null,{"$f":"IF(OR(tblREGASSLookup[[#This Row],[Alloc]]=\"IDU\",tblREGASSLookup[[#This Row],[Alloc]]=\"OR\",tblREGASSLookup[[#This Row],[Alloc]]=\"UT\",tblREGASSLookup[[#This Row],[Alloc]]=\"WYU\",tblREGASSLookup[[#This Row],[Alloc]]=\"WYP\",tblREGASSLookup[[#This Row],[Alloc]]=\"CA\",tblREGASSLookup[[#This Row],[Alloc]]=\"WA\"),\"SITUS\",tblREGASSLookup[[#This Row],[Alloc]])","v":"OTHER"},"CUST"]
[{"$f":"CONCATENATE(tblREGASSLookup[[#This Row],[Primary Account]],tblREGASSLookup[[#This Row],[Primary Name]],tblREGASSLookup[[#This Row],[Secondary Acct]],tblREGASSLookup[[#This Row],[Secondary  Name]],tblREGASSLookup[[#This Row],[Alloc4FUNC]])","v":"1823920DSR COSTS AMORTIZED102788DSR COSTS BEING AMORTIZEDSITUS"},1823920,"DSR COSTS AMORTIZED",102788,"DSR COSTS BEING AMORTIZED","SITUS",null,{"$f":"IF(OR(tblREGASSLookup[[#This Row],[Alloc]]=\"IDU\",tblREGASSLookup[[#This Row],[Alloc]]=\"OR\",tblREGASSLookup[[#This Row],[Alloc]]=\"UT\",tblREGASSLookup[[#This Row],[Alloc]]=\"WYU\",tblREGASSLookup[[#This Row],[Alloc]]=\"WYP\",tblREGASSLookup[[#This Row],[Alloc]]=\"CA\",tblREGASSLookup[[#This Row],[Alloc]]=\"WA\"),\"SITUS\",tblREGASSLookup[[#This Row],[Alloc]])","v":"SITUS"},"CUST"]
[{"$f":"CONCATENATE(tblREGASSLookup[[#This Row],[Primary Account]],tblREGASSLookup[[#This Row],[Primary Name]],tblREGASSLookup[[#This Row],[Secondary Acct]],tblREGASSLookup[[#This Row],[Secondary  Name]],tblREGASSLookup[[#This Row],[Alloc4FUNC]])","v":"1823920DSR COSTS AMORTIZED102796DSR COSTS BEING AMORTIZEDOTHER"},1823920,"DSR COSTS AMORTIZED",102796,"DSR COSTS BEING AMORTIZED","OTHER",null,{"$f":"IF(OR(tblREGASSLookup[[#This Row],[Alloc]]=\"IDU\",tblREGASSLookup[[#This Row],[Alloc]]=\"OR\",tblREGASSLookup[[#This Row],[Alloc]]=\"UT\",tblREGASSLookup[[#This Row],[Alloc]]=\"WYU\",tblREGASSLookup[[#This Row],[Alloc]]=\"WYP\",tblREGASSLookup[[#This Row],[Alloc]]=\"CA\",tblREGASSLookup[[#This Row],[Alloc]]=\"WA\"),\"SITUS\",tblREGASSLookup[[#This Row],[Alloc]])","v":"OTHER"},"CUST"]
[{"$f":"CONCATENATE(tblREGASSLookup[[#This Row],[Primary Account]],tblREGASSLookup[[#This Row],[Primary Name]],tblREGASSLookup[[#This Row],[Secondary Acct]],tblREGASSLookup[[#This Row],[Secondary  Name]],tblREGASSLookup[[#This Row],[Alloc4FUNC]])","v":"1823920DSR COSTS AMORTIZED102798ENERGY FINANSWER - WYOMING PPL - 2007SITUS"},1823920,"DSR COSTS AMORTIZED",102798,"ENERGY FINANSWER - WYOMING PPL - 2007","SITUS",null,{"$f":"IF(OR(tblREGASSLookup[[#This Row],[Alloc]]=\"IDU\",tblREGASSLookup[[#This Row],[Alloc]]=\"OR\",tblREGASSLookup[[#This Row],[Alloc]]=\"UT\",tblREGASSLookup[[#This Row],[Alloc]]=\"WYU\",tblREGASSLookup[[#This Row],[Alloc]]=\"WYP\",tblREGASSLookup[[#This Row],[Alloc]]=\"CA\",tblREGASSLookup[[#This Row],[Alloc]]=\"WA\"),\"SITUS\",tblREGASSLookup[[#This Row],[Alloc]])","v":"SITUS"},"CUST"]
[{"$f":"CONCATENATE(tblREGASSLookup[[#This Row],[Primary Account]],tblREGASSLookup[[#This Row],[Primary Name]],tblREGASSLookup[[#This Row],[Secondary Acct]],tblREGASSLookup[[#This Row],[Secondary  Name]],tblREGASSLookup[[#This Row],[Alloc4FUNC]])","v":"1823920DSR COSTS AMORTIZED102799MAJOR CUSTOMER  99SITUS"},1823920,"DSR COSTS AMORTIZED",102799,"MAJOR CUSTOMER  99","SITUS",null,{"$f":"IF(OR(tblREGASSLookup[[#This Row],[Alloc]]=\"IDU\",tblREGASSLookup[[#This Row],[Alloc]]=\"OR\",tblREGASSLookup[[#This Row],[Alloc]]=\"UT\",tblREGASSLookup[[#This Row],[Alloc]]=\"WYU\",tblREGASSLookup[[#This Row],[Alloc]]=\"WYP\",tblREGASSLookup[[#This Row],[Alloc]]=\"CA\",tblREGASSLookup[[#This Row],[Alloc]]=\"WA\"),\"SITUS\",tblREGASSLookup[[#This Row],[Alloc]])","v":"SITUS"},"CUST"]
[{"$f":"CONCATENATE(tblREGASSLookup[[#This Row],[Primary Account]],tblREGASSLookup[[#This Row],[Primary Name]],tblREGASSLookup[[#This Row],[Secondary Acct]],tblREGASSLookup[[#This Row],[Secondary  Name]],tblREGASSLookup[[#This Row],[Alloc4FUNC]])","v":"1823920DSR COSTS AMORTIZED102802HOME ENERGY EFF INCENTIVE PRO - PPL WYOMSITUS"},1823920,"DSR COSTS AMORTIZED",102802,"HOME ENERGY EFF INCENTIVE PRO - PPL WYOM","SITUS",null,{"$f":"IF(OR(tblREGASSLookup[[#This Row],[Alloc]]=\"IDU\",tblREGASSLookup[[#This Row],[Alloc]]=\"OR\",tblREGASSLookup[[#This Row],[Alloc]]=\"UT\",tblREGASSLookup[[#This Row],[Alloc]]=\"WYU\",tblREGASSLookup[[#This Row],[Alloc]]=\"WYP\",tblREGASSLookup[[#This Row],[Alloc]]=\"CA\",tblREGASSLookup[[#This Row],[Alloc]]=\"WA\"),\"SITUS\",tblREGASSLookup[[#This Row],[Alloc]])","v":"SITUS"},"CUST"]
[{"$f":"CONCATENATE(tblREGASSLookup[[#This Row],[Primary Account]],tblREGASSLookup[[#This Row],[Primary Name]],tblREGASSLookup[[#This Row],[Secondary Acct]],tblREGASSLookup[[#This Row],[Secondary  Name]],tblREGASSLookup[[#This Row],[Alloc4FUNC]])","v":"1823920DSR COSTS AMORTIZED102803LOW-INCOME WEATHERIZATION - WYOMING PPL-SITUS"},1823920,"DSR COSTS AMORTIZED",102803,"LOW-INCOME WEATHERIZATION - WYOMING PPL-","SITUS",null,{"$f":"IF(OR(tblREGASSLookup[[#This Row],[Alloc]]=\"IDU\",tblREGASSLookup[[#This Row],[Alloc]]=\"OR\",tblREGASSLookup[[#This Row],[Alloc]]=\"UT\",tblREGASSLookup[[#This Row],[Alloc]]=\"WYU\",tblREGASSLookup[[#This Row],[Alloc]]=\"WYP\",tblREGASSLookup[[#This Row],[Alloc]]=\"CA\",tblREGASSLookup[[#This Row],[Alloc]]=\"WA\"),\"SITUS\",tblREGASSLookup[[#This Row],[Alloc]])","v":"SITUS"},"CUST"]
[{"$f":"CONCATENATE(tblREGASSLookup[[#This Row],[Primary Account]],tblREGASSLookup[[#This Row],[Primary Name]],tblREGASSLookup[[#This Row],[Secondary Acct]],tblREGASSLookup[[#This Row],[Secondary  Name]],tblREGASSLookup[[#This Row],[Alloc4FUNC]])","v":"1823920DSR COSTS AMORTIZED102804COMMERCIAL FINANSWER EXPRESS - WY - 2007SITUS"},1823920,"DSR COSTS AMORTIZED",102804,"COMMERCIAL FINANSWER EXPRESS - WY - 2007","SITUS",null,{"$f":"IF(OR(tblREGASSLookup[[#This Row],[Alloc]]=\"IDU\",tblREGASSLookup[[#This Row],[Alloc]]=\"OR\",tblREGASSLookup[[#This Row],[Alloc]]=\"UT\",tblREGASSLookup[[#This Row],[Alloc]]=\"WYU\",tblREGASSLookup[[#This Row],[Alloc]]=\"WYP\",tblREGASSLookup[[#This Row],[Alloc]]=\"CA\",tblREGASSLookup[[#This Row],[Alloc]]=\"WA\"),\"SITUS\",tblREGASSLookup[[#This Row],[Alloc]])","v":"SITUS"},"CUST"]
[{"$f":"CONCATENATE(tblREGASSLookup[[#This Row],[Primary Account]],tblREGASSLookup[[#This Row],[Primary Name]],tblREGASSLookup[[#This Row],[Secondary Acct]],tblREGASSLookup[[#This Row],[Secondary  Name]],tblREGASSLookup[[#This Row],[Alloc4FUNC]])","v":"1823920DSR COSTS AMORTIZED102805INDUSTRIAL FINANSWER EXPRESS - WY - 2007SITUS"},1823920,"DSR COSTS AMORTIZED",102805,"INDUSTRIAL FINANSWER EXPRESS - WY - 2007","SITUS",null,{"$f":"IF(OR(tblREGASSLookup[[#This Row],[Alloc]]=\"IDU\",tblREGASSLookup[[#This Row],[Alloc]]=\"OR\",tblREGASSLookup[[#This Row],[Alloc]]=\"UT\",tblREGASSLookup[[#This Row],[Alloc]]=\"WYU\",tblREGASSLookup[[#This Row],[Alloc]]=\"WYP\",tblREGASSLookup[[#This Row],[Alloc]]=\"CA\",tblREGASSLookup[[#This Row],[Alloc]]=\"WA\"),\"SITUS\",tblREGASSLookup[[#This Row],[Alloc]])","v":"SITUS"},"CUST"]
[{"$f":"CONCATENATE(tblREGASSLookup[[#This Row],[Primary Account]],tblREGASSLookup[[#This Row],[Primary Name]],tblREGASSLookup[[#This Row],[Secondary Acct]],tblREGASSLookup[[#This Row],[Secondary  Name]],tblREGASSLookup[[#This Row],[Alloc4FUNC]])","v":"1823920DSR COSTS AMORTIZED102806SELF DIRECT - COMMERCIAL - WY - 2007SITUS"},1823920,"DSR COSTS AMORTIZED",102806,"SELF DIRECT - COMMERCIAL - WY - 2007","SITUS",null,{"$f":"IF(OR(tblREGASSLookup[[#This Row],[Alloc]]=\"IDU\",tblREGASSLookup[[#This Row],[Alloc]]=\"OR\",tblREGASSLookup[[#This Row],[Alloc]]=\"UT\",tblREGASSLookup[[#This Row],[Alloc]]=\"WYU\",tblREGASSLookup[[#This Row],[Alloc]]=\"WYP\",tblREGASSLookup[[#This Row],[Alloc]]=\"CA\",tblREGASSLookup[[#This Row],[Alloc]]=\"WA\"),\"SITUS\",tblREGASSLookup[[#This Row],[Alloc]])","v":"SITUS"},"CUST"]
[{"$f":"CONCATENATE(tblREGASSLookup[[#This Row],[Primary Account]],tblREGASSLookup[[#This Row],[Primary Name]],tblREGASSLookup[[#This Row],[Secondary Acct]],tblREGASSLookup[[#This Row],[Secondary  Name]],tblREGASSLookup[[#This Row],[Alloc4FUNC]])","v":"1823920DSR COSTS AMORTIZED102807SELF DIRECT - INDUSTRIAL - WY - 2007SITUS"},1823920,"DSR COSTS AMORTIZED",102807,"SELF DIRECT - INDUSTRIAL - WY - 2007","SITUS",null,{"$f":"IF(OR(tblREGASSLookup[[#This Row],[Alloc]]=\"IDU\",tblREGASSLookup[[#This Row],[Alloc]]=\"OR\",tblREGASSLookup[[#This Row],[Alloc]]=\"UT\",tblREGASSLookup[[#This Row],[Alloc]]=\"WYU\",tblREGASSLookup[[#This Row],[Alloc]]=\"WYP\",tblREGASSLookup[[#This Row],[Alloc]]=\"CA\",tblREGASSLookup[[#This Row],[Alloc]]=\"WA\"),\"SITUS\",tblREGASSLookup[[#This Row],[Alloc]])","v":"SITUS"},"CUST"]
[{"$f":"CONCATENATE(tblREGASSLookup[[#This Row],[Primary Account]],tblREGASSLookup[[#This Row],[Primary Name]],tblREGASSLookup[[#This Row],[Secondary Acct]],tblREGASSLookup[[#This Row],[Secondary  Name]],tblREGASSLookup[[#This Row],[Alloc4FUNC]])","v":"1823920DSR COSTS AMORTIZED102819A/C LOAD CONTROL - RESIDENTIAL/UTAH - 20OTHER"},1823920,"DSR COSTS AMORTIZED",102819,"A/C LOAD CONTROL - RESIDENTIAL/UTAH - 20","OTHER",null,{"$f":"IF(OR(tblREGASSLookup[[#This Row],[Alloc]]=\"IDU\",tblREGASSLookup[[#This Row],[Alloc]]=\"OR\",tblREGASSLookup[[#This Row],[Alloc]]=\"UT\",tblREGASSLookup[[#This Row],[Alloc]]=\"WYU\",tblREGASSLookup[[#This Row],[Alloc]]=\"WYP\",tblREGASSLookup[[#This Row],[Alloc]]=\"CA\",tblREGASSLookup[[#This Row],[Alloc]]=\"WA\"),\"SITUS\",tblREGASSLookup[[#This Row],[Alloc]])","v":"OTHER"},"CUST"]
[{"$f":"CONCATENATE(tblREGASSLookup[[#This Row],[Primary Account]],tblREGASSLookup[[#This Row],[Primary Name]],tblREGASSLookup[[#This Row],[Secondary Acct]],tblREGASSLookup[[#This Row],[Secondary  Name]],tblREGASSLookup[[#This Row],[Alloc4FUNC]])","v":"1823920DSR COSTS AMORTIZED102820AIR CONDITIONING - UTAH - 2007OTHER"},1823920,"DSR COSTS AMORTIZED",102820,"AIR CONDITIONING - UTAH - 2007","OTHER",null,{"$f":"IF(OR(tblREGASSLookup[[#This Row],[Alloc]]=\"IDU\",tblREGASSLookup[[#This Row],[Alloc]]=\"OR\",tblREGASSLookup[[#This Row],[Alloc]]=\"UT\",tblREGASSLookup[[#This Row],[Alloc]]=\"WYU\",tblREGASSLookup[[#This Row],[Alloc]]=\"WYP\",tblREGASSLookup[[#This Row],[Alloc]]=\"CA\",tblREGASSLookup[[#This Row],[Alloc]]=\"WA\"),\"SITUS\",tblREGASSLookup[[#This Row],[Alloc]])","v":"OTHER"},"CUST"]
[{"$f":"CONCATENATE(tblREGASSLookup[[#This Row],[Primary Account]],tblREGASSLookup[[#This Row],[Primary Name]],tblREGASSLookup[[#This Row],[Secondary Acct]],tblREGASSLookup[[#This Row],[Secondary  Name]],tblREGASSLookup[[#This Row],[Alloc4FUNC]])","v":"1823920DSR COSTS AMORTIZED102821ENERGY FINANSWER - UTAH - 2007OTHER"},1823920,"DSR COSTS AMORTIZED",102821,"ENERGY FINANSWER - UTAH - 2007","OTHER",null,{"$f":"IF(OR(tblREGASSLookup[[#This Row],[Alloc]]=\"IDU\",tblREGASSLookup[[#This Row],[Alloc]]=\"OR\",tblREGASSLookup[[#This Row],[Alloc]]=\"UT\",tblREGASSLookup[[#This Row],[Alloc]]=\"WYU\",tblREGASSLookup[[#This Row],[Alloc]]=\"WYP\",tblREGASSLookup[[#This Row],[Alloc]]=\"CA\",tblREGASSLookup[[#This Row],[Alloc]]=\"WA\"),\"SITUS\",tblREGASSLookup[[#This Row],[Alloc]])","v":"OTHER"},"CUST"]
[{"$f":"CONCATENATE(tblREGASSLookup[[#This Row],[Primary Account]],tblREGASSLookup[[#This Row],[Primary Name]],tblREGASSLookup[[#This Row],[Secondary Acct]],tblREGASSLookup[[#This Row],[Secondary  Name]],tblREGASSLookup[[#This Row],[Alloc4FUNC]])","v":"1823920DSR COSTS AMORTIZED102822INDUSTRIAL FINANSWER - UTAH - 2007OTHER"},1823920,"DSR COSTS AMORTIZED",102822,"INDUSTRIAL FINANSWER - UTAH - 2007","OTHER",null,{"$f":"IF(OR(tblREGASSLookup[[#This Row],[Alloc]]=\"IDU\",tblREGASSLookup[[#This Row],[Alloc]]=\"OR\",tblREGASSLookup[[#This Row],[Alloc]]=\"UT\",tblREGASSLookup[[#This Row],[Alloc]]=\"WYU\",tblREGASSLookup[[#This Row],[Alloc]]=\"WYP\",tblREGASSLookup[[#This Row],[Alloc]]=\"CA\",tblREGASSLookup[[#This Row],[Alloc]]=\"WA\"),\"SITUS\",tblREGASSLookup[[#This Row],[Alloc]])","v":"OTHER"},"CUST"]
[{"$f":"CONCATENATE(tblREGASSLookup[[#This Row],[Primary Account]],tblREGASSLookup[[#This Row],[Primary Name]],tblREGASSLookup[[#This Row],[Secondary Acct]],tblREGASSLookup[[#This Row],[Secondary  Name]],tblREGASSLookup[[#This Row],[Alloc4FUNC]])","v":"1823920DSR COSTS AMORTIZED102823LOW INCOME - UTAH - 2007OTHER"},1823920,"DSR COSTS AMORTIZED",102823,"LOW INCOME - UTAH - 2007","OTHER",null,{"$f":"IF(OR(tblREGASSLookup[[#This Row],[Alloc]]=\"IDU\",tblREGASSLookup[[#This Row],[Alloc]]=\"OR\",tblREGASSLookup[[#This Row],[Alloc]]=\"UT\",tblREGASSLookup[[#This Row],[Alloc]]=\"WYU\",tblREGASSLookup[[#This Row],[Alloc]]=\"WYP\",tblREGASSLookup[[#This Row],[Alloc]]=\"CA\",tblREGASSLookup[[#This Row],[Alloc]]=\"WA\"),\"SITUS\",tblREGASSLookup[[#This Row],[Alloc]])","v":"OTHER"},"CUST"]
[{"$f":"CONCATENATE(tblREGASSLookup[[#This Row],[Primary Account]],tblREGASSLookup[[#This Row],[Primary Name]],tblREGASSLookup[[#This Row],[Secondary Acct]],tblREGASSLookup[[#This Row],[Secondary  Name]],tblREGASSLookup[[#This Row],[Alloc4FUNC]])","v":"1823920DSR COSTS AMORTIZED102824POWER FORWARD - UTAH - 2007OTHER"},1823920,"DSR COSTS AMORTIZED",102824,"POWER FORWARD - UTAH - 2007","OTHER",null,{"$f":"IF(OR(tblREGASSLookup[[#This Row],[Alloc]]=\"IDU\",tblREGASSLookup[[#This Row],[Alloc]]=\"OR\",tblREGASSLookup[[#This Row],[Alloc]]=\"UT\",tblREGASSLookup[[#This Row],[Alloc]]=\"WYU\",tblREGASSLookup[[#This Row],[Alloc]]=\"WYP\",tblREGASSLookup[[#This Row],[Alloc]]=\"CA\",tblREGASSLookup[[#This Row],[Alloc]]=\"WA\"),\"SITUS\",tblREGASSLookup[[#This Row],[Alloc]])","v":"OTHER"},"CUST"]
[{"$f":"CONCATENATE(tblREGASSLookup[[#This Row],[Primary Account]],tblREGASSLookup[[#This Row],[Primary Name]],tblREGASSLookup[[#This Row],[Secondary Acct]],tblREGASSLookup[[#This Row],[Secondary  Name]],tblREGASSLookup[[#This Row],[Alloc4FUNC]])","v":"1823920DSR COSTS AMORTIZED102825REFRIGERATOR RECYCLING PGM- UTAH - 2007OTHER"},1823920,"DSR COSTS AMORTIZED",102825,"REFRIGERATOR RECYCLING PGM- UTAH - 2007","OTHER",null,{"$f":"IF(OR(tblREGASSLookup[[#This Row],[Alloc]]=\"IDU\",tblREGASSLookup[[#This Row],[Alloc]]=\"OR\",tblREGASSLookup[[#This Row],[Alloc]]=\"UT\",tblREGASSLookup[[#This Row],[Alloc]]=\"WYU\",tblREGASSLookup[[#This Row],[Alloc]]=\"WYP\",tblREGASSLookup[[#This Row],[Alloc]]=\"CA\",tblREGASSLookup[[#This Row],[Alloc]]=\"WA\"),\"SITUS\",tblREGASSLookup[[#This Row],[Alloc]])","v":"OTHER"},"CUST"]
[{"$f":"CONCATENATE(tblREGASSLookup[[#This Row],[Primary Account]],tblREGASSLookup[[#This Row],[Primary Name]],tblREGASSLookup[[#This Row],[Secondary Acct]],tblREGASSLookup[[#This Row],[Secondary  Name]],tblREGASSLookup[[#This Row],[Alloc4FUNC]])","v":"1823920DSR COSTS AMORTIZED102826COMMERCIAL SELF-DIRECT - UTAH - 2007OTHER"},1823920,"DSR COSTS AMORTIZED",102826,"COMMERCIAL SELF-DIRECT - UTAH - 2007","OTHER",null,{"$f":"IF(OR(tblREGASSLookup[[#This Row],[Alloc]]=\"IDU\",tblREGASSLookup[[#This Row],[Alloc]]=\"OR\",tblREGASSLookup[[#This Row],[Alloc]]=\"UT\",tblREGASSLookup[[#This Row],[Alloc]]=\"WYU\",tblREGASSLookup[[#This Row],[Alloc]]=\"WYP\",tblREGASSLookup[[#This Row],[Alloc]]=\"CA\",tblREGASSLookup[[#This Row],[Alloc]]=\"WA\"),\"SITUS\",tblREGASSLookup[[#This Row],[Alloc]])","v":"OTHER"},"CUST"]
[{"$f":"CONCATENATE(tblREGASSLookup[[#This Row],[Primary Account]],tblREGASSLookup[[#This Row],[Primary Name]],tblREGASSLookup[[#This Row],[Secondary Acct]],tblREGASSLookup[[#This Row],[Secondary  Name]],tblREGASSLookup[[#This Row],[Alloc4FUNC]])","v":"1823920DSR COSTS AMORTIZED102827INDUSTRIAL SELF-DIRECT - UTAH - 2007OTHER"},1823920,"DSR COSTS AMORTIZED",102827,"INDUSTRIAL SELF-DIRECT - UTAH - 2007","OTHER",null,{"$f":"IF(OR(tblREGASSLookup[[#This Row],[Alloc]]=\"IDU\",tblREGASSLookup[[#This Row],[Alloc]]=\"OR\",tblREGASSLookup[[#This Row],[Alloc]]=\"UT\",tblREGASSLookup[[#This Row],[Alloc]]=\"WYU\",tblREGASSLookup[[#This Row],[Alloc]]=\"WYP\",tblREGASSLookup[[#This Row],[Alloc]]=\"CA\",tblREGASSLookup[[#This Row],[Alloc]]=\"WA\"),\"SITUS\",tblREGASSLookup[[#This Row],[Alloc]])","v":"OTHER"},"CUST"]
[{"$f":"CONCATENATE(tblREGASSLookup[[#This Row],[Primary Account]],tblREGASSLookup[[#This Row],[Primary Name]],tblREGASSLookup[[#This Row],[Secondary Acct]],tblREGASSLookup[[#This Row],[Secondary  Name]],tblREGASSLookup[[#This Row],[Alloc4FUNC]])","v":"1823920DSR COSTS AMORTIZED102828RESIDENTIAL NEW CONSTRUCTION - UTAH - 20OTHER"},1823920,"DSR COSTS AMORTIZED",102828,"RESIDENTIAL NEW CONSTRUCTION - UTAH - 20","OTHER",null,{"$f":"IF(OR(tblREGASSLookup[[#This Row],[Alloc]]=\"IDU\",tblREGASSLookup[[#This Row],[Alloc]]=\"OR\",tblREGASSLookup[[#This Row],[Alloc]]=\"UT\",tblREGASSLookup[[#This Row],[Alloc]]=\"WYU\",tblREGASSLookup[[#This Row],[Alloc]]=\"WYP\",tblREGASSLookup[[#This Row],[Alloc]]=\"CA\",tblREGASSLookup[[#This Row],[Alloc]]=\"WA\"),\"SITUS\",tblREGASSLookup[[#This Row],[Alloc]])","v":"OTHER"},"CUST"]
[{"$f":"CONCATENATE(tblREGASSLookup[[#This Row],[Primary Account]],tblREGASSLookup[[#This Row],[Primary Name]],tblREGASSLookup[[#This Row],[Secondary Acct]],tblREGASSLookup[[#This Row],[Secondary  Name]],tblREGASSLookup[[#This Row],[Alloc4FUNC]])","v":"1823920DSR COSTS AMORTIZED102829COMMERCIAL FINANSWER EXPRESS - UTAH - 20OTHER"},1823920,"DSR COSTS AMORTIZED",102829,"COMMERCIAL FINANSWER EXPRESS - UTAH - 20","OTHER",null,{"$f":"IF(OR(tblREGASSLookup[[#This Row],[Alloc]]=\"IDU\",tblREGASSLookup[[#This Row],[Alloc]]=\"OR\",tblREGASSLookup[[#This Row],[Alloc]]=\"UT\",tblREGASSLookup[[#This Row],[Alloc]]=\"WYU\",tblREGASSLookup[[#This Row],[Alloc]]=\"WYP\",tblREGASSLookup[[#This Row],[Alloc]]=\"CA\",tblREGASSLookup[[#This Row],[Alloc]]=\"WA\"),\"SITUS\",tblREGASSLookup[[#This Row],[Alloc]])","v":"OTHER"},"CUST"]
[{"$f":"CONCATENATE(tblREGASSLookup[[#This Row],[Primary Account]],tblREGASSLookup[[#This Row],[Primary Name]],tblREGASSLookup[[#This Row],[Secondary Acct]],tblREGASSLookup[[#This Row],[Secondary  Name]],tblREGASSLookup[[#This Row],[Alloc4FUNC]])","v":"1823920DSR COSTS AMORTIZED102830INDUSTRIAL FINANSWER EXPRESS - UTAH - 20OTHER"},1823920,"DSR COSTS AMORTIZED",102830,"INDUSTRIAL FINANSWER EXPRESS - UTAH - 20","OTHER",null,{"$f":"IF(OR(tblREGASSLookup[[#This Row],[Alloc]]=\"IDU\",tblREGASSLookup[[#This Row],[Alloc]]=\"OR\",tblREGASSLookup[[#This Row],[Alloc]]=\"UT\",tblREGASSLookup[[#This Row],[Alloc]]=\"WYU\",tblREGASSLookup[[#This Row],[Alloc]]=\"WYP\",tblREGASSLookup[[#This Row],[Alloc]]=\"CA\",tblREGASSLookup[[#This Row],[Alloc]]=\"WA\"),\"SITUS\",tblREGASSLookup[[#This Row],[Alloc]])","v":"OTHER"},"CUST"]
[{"$f":"CONCATENATE(tblREGASSLookup[[#This Row],[Primary Account]],tblREGASSLookup[[#This Row],[Primary Name]],tblREGASSLookup[[#This Row],[Secondary Acct]],tblREGASSLookup[[#This Row],[Secondary  Name]],tblREGASSLookup[[#This Row],[Alloc4FUNC]])","v":"1823920DSR COSTS AMORTIZED102831RETROFIT COMMISSIONING PROGRAM - UTAH -OTHER"},1823920,"DSR COSTS AMORTIZED",102831,"RETROFIT COMMISSIONING PROGRAM - UTAH -","OTHER",null,{"$f":"IF(OR(tblREGASSLookup[[#This Row],[Alloc]]=\"IDU\",tblREGASSLookup[[#This Row],[Alloc]]=\"OR\",tblREGASSLookup[[#This Row],[Alloc]]=\"UT\",tblREGASSLookup[[#This Row],[Alloc]]=\"WYU\",tblREGASSLookup[[#This Row],[Alloc]]=\"WYP\",tblREGASSLookup[[#This Row],[Alloc]]=\"CA\",tblREGASSLookup[[#This Row],[Alloc]]=\"WA\"),\"SITUS\",tblREGASSLookup[[#This Row],[Alloc]])","v":"OTHER"},"CUST"]
[{"$f":"CONCATENATE(tblREGASSLookup[[#This Row],[Primary Account]],tblREGASSLookup[[#This Row],[Primary Name]],tblREGASSLookup[[#This Row],[Secondary Acct]],tblREGASSLookup[[#This Row],[Secondary  Name]],tblREGASSLookup[[#This Row],[Alloc4FUNC]])","v":"1823920DSR COSTS AMORTIZED102833IRRIGATION LOAD CONTROL  - UTAH - 2007OTHER"},1823920,"DSR COSTS AMORTIZED",102833,"IRRIGATION LOAD CONTROL  - UTAH - 2007","OTHER",null,{"$f":"IF(OR(tblREGASSLookup[[#This Row],[Alloc]]=\"IDU\",tblREGASSLookup[[#This Row],[Alloc]]=\"OR\",tblREGASSLookup[[#This Row],[Alloc]]=\"UT\",tblREGASSLookup[[#This Row],[Alloc]]=\"WYU\",tblREGASSLookup[[#This Row],[Alloc]]=\"WYP\",tblREGASSLookup[[#This Row],[Alloc]]=\"CA\",tblREGASSLookup[[#This Row],[Alloc]]=\"WA\"),\"SITUS\",tblREGASSLookup[[#This Row],[Alloc]])","v":"OTHER"},"CUST"]
[{"$f":"CONCATENATE(tblREGASSLookup[[#This Row],[Primary Account]],tblREGASSLookup[[#This Row],[Primary Name]],tblREGASSLookup[[#This Row],[Secondary Acct]],tblREGASSLookup[[#This Row],[Secondary  Name]],tblREGASSLookup[[#This Row],[Alloc4FUNC]])","v":"1823920DSR COSTS AMORTIZED102834HOME ENERGY EFF INCENTIVE PROG - UT 2007OTHER"},1823920,"DSR COSTS AMORTIZED",102834,"HOME ENERGY EFF INCENTIVE PROG - UT 2007","OTHER",null,{"$f":"IF(OR(tblREGASSLookup[[#This Row],[Alloc]]=\"IDU\",tblREGASSLookup[[#This Row],[Alloc]]=\"OR\",tblREGASSLookup[[#This Row],[Alloc]]=\"UT\",tblREGASSLookup[[#This Row],[Alloc]]=\"WYU\",tblREGASSLookup[[#This Row],[Alloc]]=\"WYP\",tblREGASSLookup[[#This Row],[Alloc]]=\"CA\",tblREGASSLookup[[#This Row],[Alloc]]=\"WA\"),\"SITUS\",tblREGASSLookup[[#This Row],[Alloc]])","v":"OTHER"},"CUST"]
[{"$f":"CONCATENATE(tblREGASSLookup[[#This Row],[Primary Account]],tblREGASSLookup[[#This Row],[Primary Name]],tblREGASSLookup[[#This Row],[Secondary Acct]],tblREGASSLookup[[#This Row],[Secondary  Name]],tblREGASSLookup[[#This Row],[Alloc4FUNC]])","v":"1823920DSR COSTS AMORTIZED102883CALIFORNIA DSM EXPENSE - 2008SITUS"},1823920,"DSR COSTS AMORTIZED",102883,"CALIFORNIA DSM EXPENSE - 2008","SITUS",null,{"$f":"IF(OR(tblREGASSLookup[[#This Row],[Alloc]]=\"IDU\",tblREGASSLookup[[#This Row],[Alloc]]=\"OR\",tblREGASSLookup[[#This Row],[Alloc]]=\"UT\",tblREGASSLookup[[#This Row],[Alloc]]=\"WYU\",tblREGASSLookup[[#This Row],[Alloc]]=\"WYP\",tblREGASSLookup[[#This Row],[Alloc]]=\"CA\",tblREGASSLookup[[#This Row],[Alloc]]=\"WA\"),\"SITUS\",tblREGASSLookup[[#This Row],[Alloc]])","v":"SITUS"},"CUST"]
[{"$f":"CONCATENATE(tblREGASSLookup[[#This Row],[Primary Account]],tblREGASSLookup[[#This Row],[Primary Name]],tblREGASSLookup[[#This Row],[Secondary Acct]],tblREGASSLookup[[#This Row],[Secondary  Name]],tblREGASSLookup[[#This Row],[Alloc4FUNC]])","v":"1823920DSR COSTS AMORTIZED102885ENERGY FINANSWER - WYOMING PPL - 2008SITUS"},1823920,"DSR COSTS AMORTIZED",102885,"ENERGY FINANSWER - WYOMING PPL - 2008","SITUS",null,{"$f":"IF(OR(tblREGASSLookup[[#This Row],[Alloc]]=\"IDU\",tblREGASSLookup[[#This Row],[Alloc]]=\"OR\",tblREGASSLookup[[#This Row],[Alloc]]=\"UT\",tblREGASSLookup[[#This Row],[Alloc]]=\"WYU\",tblREGASSLookup[[#This Row],[Alloc]]=\"WYP\",tblREGASSLookup[[#This Row],[Alloc]]=\"CA\",tblREGASSLookup[[#This Row],[Alloc]]=\"WA\"),\"SITUS\",tblREGASSLookup[[#This Row],[Alloc]])","v":"SITUS"},"CUST"]
[{"$f":"CONCATENATE(tblREGASSLookup[[#This Row],[Primary Account]],tblREGASSLookup[[#This Row],[Primary Name]],tblREGASSLookup[[#This Row],[Secondary Acct]],tblREGASSLookup[[#This Row],[Secondary  Name]],tblREGASSLookup[[#This Row],[Alloc4FUNC]])","v":"1823920DSR COSTS AMORTIZED102886INDUSTRIAL FINANSWER - WYOMING PPL - 200SITUS"},1823920,"DSR COSTS AMORTIZED",102886,"INDUSTRIAL FINANSWER - WYOMING PPL - 200","SITUS",null,{"$f":"IF(OR(tblREGASSLookup[[#This Row],[Alloc]]=\"IDU\",tblREGASSLookup[[#This Row],[Alloc]]=\"OR\",tblREGASSLookup[[#This Row],[Alloc]]=\"UT\",tblREGASSLookup[[#This Row],[Alloc]]=\"WYU\",tblREGASSLookup[[#This Row],[Alloc]]=\"WYP\",tblREGASSLookup[[#This Row],[Alloc]]=\"CA\",tblREGASSLookup[[#This Row],[Alloc]]=\"WA\"),\"SITUS\",tblREGASSLookup[[#This Row],[Alloc]])","v":"SITUS"},"CUST"]
[{"$f":"CONCATENATE(tblREGASSLookup[[#This Row],[Primary Account]],tblREGASSLookup[[#This Row],[Primary Name]],tblREGASSLookup[[#This Row],[Secondary Acct]],tblREGASSLookup[[#This Row],[Secondary  Name]],tblREGASSLookup[[#This Row],[Alloc4FUNC]])","v":"1823920DSR COSTS AMORTIZED102888REFRIGERATOR RECYCLING - WYOMING 2008SITUS"},1823920,"DSR COSTS AMORTIZED",102888,"REFRIGERATOR RECYCLING - WYOMING 2008","SITUS",null,{"$f":"IF(OR(tblREGASSLookup[[#This Row],[Alloc]]=\"IDU\",tblREGASSLookup[[#This Row],[Alloc]]=\"OR\",tblREGASSLookup[[#This Row],[Alloc]]=\"UT\",tblREGASSLookup[[#This Row],[Alloc]]=\"WYU\",tblREGASSLookup[[#This Row],[Alloc]]=\"WYP\",tblREGASSLookup[[#This Row],[Alloc]]=\"CA\",tblREGASSLookup[[#This Row],[Alloc]]=\"WA\"),\"SITUS\",tblREGASSLookup[[#This Row],[Alloc]])","v":"SITUS"},"CUST"]
[{"$f":"CONCATENATE(tblREGASSLookup[[#This Row],[Primary Account]],tblREGASSLookup[[#This Row],[Primary Name]],tblREGASSLookup[[#This Row],[Secondary Acct]],tblREGASSLookup[[#This Row],[Secondary  Name]],tblREGASSLookup[[#This Row],[Alloc4FUNC]])","v":"1823920DSR COSTS AMORTIZED102889HOME ENERGY EFF INCENTIVE PROGRAM - WYOMSITUS"},1823920,"DSR COSTS AMORTIZED",102889,"HOME ENERGY EFF INCENTIVE PROGRAM - WYOM","SITUS",null,{"$f":"IF(OR(tblREGASSLookup[[#This Row],[Alloc]]=\"IDU\",tblREGASSLookup[[#This Row],[Alloc]]=\"OR\",tblREGASSLookup[[#This Row],[Alloc]]=\"UT\",tblREGASSLookup[[#This Row],[Alloc]]=\"WYU\",tblREGASSLookup[[#This Row],[Alloc]]=\"WYP\",tblREGASSLookup[[#This Row],[Alloc]]=\"CA\",tblREGASSLookup[[#This Row],[Alloc]]=\"WA\"),\"SITUS\",tblREGASSLookup[[#This Row],[Alloc]])","v":"SITUS"},"CUST"]
[{"$f":"CONCATENATE(tblREGASSLookup[[#This Row],[Primary Account]],tblREGASSLookup[[#This Row],[Primary Name]],tblREGASSLookup[[#This Row],[Secondary Acct]],tblREGASSLookup[[#This Row],[Secondary  Name]],tblREGASSLookup[[#This Row],[Alloc4FUNC]])","v":"1823920DSR COSTS AMORTIZED102890LOW INCOME WEATHERIZATION - WYOMING 2008SITUS"},1823920,"DSR COSTS AMORTIZED",102890,"LOW INCOME WEATHERIZATION - WYOMING 2008","SITUS",null,{"$f":"IF(OR(tblREGASSLookup[[#This Row],[Alloc]]=\"IDU\",tblREGASSLookup[[#This Row],[Alloc]]=\"OR\",tblREGASSLookup[[#This Row],[Alloc]]=\"UT\",tblREGASSLookup[[#This Row],[Alloc]]=\"WYU\",tblREGASSLookup[[#This Row],[Alloc]]=\"WYP\",tblREGASSLookup[[#This Row],[Alloc]]=\"CA\",tblREGASSLookup[[#This Row],[Alloc]]=\"WA\"),\"SITUS\",tblREGASSLookup[[#This Row],[Alloc]])","v":"SITUS"},"CUST"]
[{"$f":"CONCATENATE(tblREGASSLookup[[#This Row],[Primary Account]],tblREGASSLookup[[#This Row],[Primary Name]],tblREGASSLookup[[#This Row],[Secondary Acct]],tblREGASSLookup[[#This Row],[Secondary  Name]],tblREGASSLookup[[#This Row],[Alloc4FUNC]])","v":"1823920DSR COSTS AMORTIZED102891COMMERCIAL FINANSWER EXPRESS - WYOMING 2SITUS"},1823920,"DSR COSTS AMORTIZED",102891,"COMMERCIAL FINANSWER EXPRESS - WYOMING 2","SITUS",null,{"$f":"IF(OR(tblREGASSLookup[[#This Row],[Alloc]]=\"IDU\",tblREGASSLookup[[#This Row],[Alloc]]=\"OR\",tblREGASSLookup[[#This Row],[Alloc]]=\"UT\",tblREGASSLookup[[#This Row],[Alloc]]=\"WYU\",tblREGASSLookup[[#This Row],[Alloc]]=\"WYP\",tblREGASSLookup[[#This Row],[Alloc]]=\"CA\",tblREGASSLookup[[#This Row],[Alloc]]=\"WA\"),\"SITUS\",tblREGASSLookup[[#This Row],[Alloc]])","v":"SITUS"},"CUST"]
[{"$f":"CONCATENATE(tblREGASSLookup[[#This Row],[Primary Account]],tblREGASSLookup[[#This Row],[Primary Name]],tblREGASSLookup[[#This Row],[Secondary Acct]],tblREGASSLookup[[#This Row],[Secondary  Name]],tblREGASSLookup[[#This Row],[Alloc4FUNC]])","v":"1823920DSR COSTS AMORTIZED102892INDUSTRIAL FINANSWER EXPRESS - WY - 2008SITUS"},1823920,"DSR COSTS AMORTIZED",102892,"INDUSTRIAL FINANSWER EXPRESS - WY - 2008","SITUS",null,{"$f":"IF(OR(tblREGASSLookup[[#This Row],[Alloc]]=\"IDU\",tblREGASSLookup[[#This Row],[Alloc]]=\"OR\",tblREGASSLookup[[#This Row],[Alloc]]=\"UT\",tblREGASSLookup[[#This Row],[Alloc]]=\"WYU\",tblREGASSLookup[[#This Row],[Alloc]]=\"WYP\",tblREGASSLookup[[#This Row],[Alloc]]=\"CA\",tblREGASSLookup[[#This Row],[Alloc]]=\"WA\"),\"SITUS\",tblREGASSLookup[[#This Row],[Alloc]])","v":"SITUS"},"CUST"]
[{"$f":"CONCATENATE(tblREGASSLookup[[#This Row],[Primary Account]],tblREGASSLookup[[#This Row],[Primary Name]],tblREGASSLookup[[#This Row],[Secondary Acct]],tblREGASSLookup[[#This Row],[Secondary  Name]],tblREGASSLookup[[#This Row],[Alloc4FUNC]])","v":"1823920DSR COSTS AMORTIZED102893SELF DIRECT COMMERCIAL - WYOMING 2008SITUS"},1823920,"DSR COSTS AMORTIZED",102893,"SELF DIRECT COMMERCIAL - WYOMING 2008","SITUS",null,{"$f":"IF(OR(tblREGASSLookup[[#This Row],[Alloc]]=\"IDU\",tblREGASSLookup[[#This Row],[Alloc]]=\"OR\",tblREGASSLookup[[#This Row],[Alloc]]=\"UT\",tblREGASSLookup[[#This Row],[Alloc]]=\"WYU\",tblREGASSLookup[[#This Row],[Alloc]]=\"WYP\",tblREGASSLookup[[#This Row],[Alloc]]=\"CA\",tblREGASSLookup[[#This Row],[Alloc]]=\"WA\"),\"SITUS\",tblREGASSLookup[[#This Row],[Alloc]])","v":"SITUS"},"CUST"]
[{"$f":"CONCATENATE(tblREGASSLookup[[#This Row],[Primary Account]],tblREGASSLookup[[#This Row],[Primary Name]],tblREGASSLookup[[#This Row],[Secondary Acct]],tblREGASSLookup[[#This Row],[Secondary  Name]],tblREGASSLookup[[#This Row],[Alloc4FUNC]])","v":"1823920DSR COSTS AMORTIZED102894SELF DIRECT INDUSTRIAL - WYOMING 2008SITUS"},1823920,"DSR COSTS AMORTIZED",102894,"SELF DIRECT INDUSTRIAL - WYOMING 2008","SITUS",null,{"$f":"IF(OR(tblREGASSLookup[[#This Row],[Alloc]]=\"IDU\",tblREGASSLookup[[#This Row],[Alloc]]=\"OR\",tblREGASSLookup[[#This Row],[Alloc]]=\"UT\",tblREGASSLookup[[#This Row],[Alloc]]=\"WYU\",tblREGASSLookup[[#This Row],[Alloc]]=\"WYP\",tblREGASSLookup[[#This Row],[Alloc]]=\"CA\",tblREGASSLookup[[#This Row],[Alloc]]=\"WA\"),\"SITUS\",tblREGASSLookup[[#This Row],[Alloc]])","v":"SITUS"},"CUST"]
[{"$f":"CONCATENATE(tblREGASSLookup[[#This Row],[Primary Account]],tblREGASSLookup[[#This Row],[Primary Name]],tblREGASSLookup[[#This Row],[Secondary Acct]],tblREGASSLookup[[#This Row],[Secondary  Name]],tblREGASSLookup[[#This Row],[Alloc4FUNC]])","v":"1823920DSR COSTS AMORTIZED102906AC LOAD CONTROL - RESIDENTIAL - UTAH 200OTHER"},1823920,"DSR COSTS AMORTIZED",102906,"AC LOAD CONTROL - RESIDENTIAL - UTAH 200","OTHER",null,{"$f":"IF(OR(tblREGASSLookup[[#This Row],[Alloc]]=\"IDU\",tblREGASSLookup[[#This Row],[Alloc]]=\"OR\",tblREGASSLookup[[#This Row],[Alloc]]=\"UT\",tblREGASSLookup[[#This Row],[Alloc]]=\"WYU\",tblREGASSLookup[[#This Row],[Alloc]]=\"WYP\",tblREGASSLookup[[#This Row],[Alloc]]=\"CA\",tblREGASSLookup[[#This Row],[Alloc]]=\"WA\"),\"SITUS\",tblREGASSLookup[[#This Row],[Alloc]])","v":"OTHER"},"CUST"]
[{"$f":"CONCATENATE(tblREGASSLookup[[#This Row],[Primary Account]],tblREGASSLookup[[#This Row],[Primary Name]],tblREGASSLookup[[#This Row],[Secondary Acct]],tblREGASSLookup[[#This Row],[Secondary  Name]],tblREGASSLookup[[#This Row],[Alloc4FUNC]])","v":"1823920DSR COSTS AMORTIZED102907AIR CONDITIONING - UTAH 2008OTHER"},1823920,"DSR COSTS AMORTIZED",102907,"AIR CONDITIONING - UTAH 2008","OTHER",null,{"$f":"IF(OR(tblREGASSLookup[[#This Row],[Alloc]]=\"IDU\",tblREGASSLookup[[#This Row],[Alloc]]=\"OR\",tblREGASSLookup[[#This Row],[Alloc]]=\"UT\",tblREGASSLookup[[#This Row],[Alloc]]=\"WYU\",tblREGASSLookup[[#This Row],[Alloc]]=\"WYP\",tblREGASSLookup[[#This Row],[Alloc]]=\"CA\",tblREGASSLookup[[#This Row],[Alloc]]=\"WA\"),\"SITUS\",tblREGASSLookup[[#This Row],[Alloc]])","v":"OTHER"},"CUST"]
[{"$f":"CONCATENATE(tblREGASSLookup[[#This Row],[Primary Account]],tblREGASSLookup[[#This Row],[Primary Name]],tblREGASSLookup[[#This Row],[Secondary Acct]],tblREGASSLookup[[#This Row],[Secondary  Name]],tblREGASSLookup[[#This Row],[Alloc4FUNC]])","v":"1823920DSR COSTS AMORTIZED102908ENERGY FINANSWER - UTAH - 2008OTHER"},1823920,"DSR COSTS AMORTIZED",102908,"ENERGY FINANSWER - UTAH - 2008","OTHER",null,{"$f":"IF(OR(tblREGASSLookup[[#This Row],[Alloc]]=\"IDU\",tblREGASSLookup[[#This Row],[Alloc]]=\"OR\",tblREGASSLookup[[#This Row],[Alloc]]=\"UT\",tblREGASSLookup[[#This Row],[Alloc]]=\"WYU\",tblREGASSLookup[[#This Row],[Alloc]]=\"WYP\",tblREGASSLookup[[#This Row],[Alloc]]=\"CA\",tblREGASSLookup[[#This Row],[Alloc]]=\"WA\"),\"SITUS\",tblREGASSLookup[[#This Row],[Alloc]])","v":"OTHER"},"CUST"]
[{"$f":"CONCATENATE(tblREGASSLookup[[#This Row],[Primary Account]],tblREGASSLookup[[#This Row],[Primary Name]],tblREGASSLookup[[#This Row],[Secondary Acct]],tblREGASSLookup[[#This Row],[Secondary  Name]],tblREGASSLookup[[#This Row],[Alloc4FUNC]])","v":"1823920DSR COSTS AMORTIZED102909INDUSTRIAL FINANSWER - UTAH - 2008OTHER"},1823920,"DSR COSTS AMORTIZED",102909,"INDUSTRIAL FINANSWER - UTAH - 2008","OTHER",null,{"$f":"IF(OR(tblREGASSLookup[[#This Row],[Alloc]]=\"IDU\",tblREGASSLookup[[#This Row],[Alloc]]=\"OR\",tblREGASSLookup[[#This Row],[Alloc]]=\"UT\",tblREGASSLookup[[#This Row],[Alloc]]=\"WYU\",tblREGASSLookup[[#This Row],[Alloc]]=\"WYP\",tblREGASSLookup[[#This Row],[Alloc]]=\"CA\",tblREGASSLookup[[#This Row],[Alloc]]=\"WA\"),\"SITUS\",tblREGASSLookup[[#This Row],[Alloc]])","v":"OTHER"},"CUST"]
[{"$f":"CONCATENATE(tblREGASSLookup[[#This Row],[Primary Account]],tblREGASSLookup[[#This Row],[Primary Name]],tblREGASSLookup[[#This Row],[Secondary Acct]],tblREGASSLookup[[#This Row],[Secondary  Name]],tblREGASSLookup[[#This Row],[Alloc4FUNC]])","v":"1823920DSR COSTS AMORTIZED102910LOW INCOME - UTAH 2008OTHER"},1823920,"DSR COSTS AMORTIZED",102910,"LOW INCOME - UTAH 2008","OTHER",null,{"$f":"IF(OR(tblREGASSLookup[[#This Row],[Alloc]]=\"IDU\",tblREGASSLookup[[#This Row],[Alloc]]=\"OR\",tblREGASSLookup[[#This Row],[Alloc]]=\"UT\",tblREGASSLookup[[#This Row],[Alloc]]=\"WYU\",tblREGASSLookup[[#This Row],[Alloc]]=\"WYP\",tblREGASSLookup[[#This Row],[Alloc]]=\"CA\",tblREGASSLookup[[#This Row],[Alloc]]=\"WA\"),\"SITUS\",tblREGASSLookup[[#This Row],[Alloc]])","v":"OTHER"},"CUST"]
[{"$f":"CONCATENATE(tblREGASSLookup[[#This Row],[Primary Account]],tblREGASSLookup[[#This Row],[Primary Name]],tblREGASSLookup[[#This Row],[Secondary Acct]],tblREGASSLookup[[#This Row],[Secondary  Name]],tblREGASSLookup[[#This Row],[Alloc4FUNC]])","v":"1823920DSR COSTS AMORTIZED102911POWER FORWARD - UTAH - 2008OTHER"},1823920,"DSR COSTS AMORTIZED",102911,"POWER FORWARD - UTAH - 2008","OTHER",null,{"$f":"IF(OR(tblREGASSLookup[[#This Row],[Alloc]]=\"IDU\",tblREGASSLookup[[#This Row],[Alloc]]=\"OR\",tblREGASSLookup[[#This Row],[Alloc]]=\"UT\",tblREGASSLookup[[#This Row],[Alloc]]=\"WYU\",tblREGASSLookup[[#This Row],[Alloc]]=\"WYP\",tblREGASSLookup[[#This Row],[Alloc]]=\"CA\",tblREGASSLookup[[#This Row],[Alloc]]=\"WA\"),\"SITUS\",tblREGASSLookup[[#This Row],[Alloc]])","v":"OTHER"},"CUST"]
[{"$f":"CONCATENATE(tblREGASSLookup[[#This Row],[Primary Account]],tblREGASSLookup[[#This Row],[Primary Name]],tblREGASSLookup[[#This Row],[Secondary Acct]],tblREGASSLookup[[#This Row],[Secondary  Name]],tblREGASSLookup[[#This Row],[Alloc4FUNC]])","v":"1823920DSR COSTS AMORTIZED102912REFRIGERATOR RECYCLING - UTAH - 2008OTHER"},1823920,"DSR COSTS AMORTIZED",102912,"REFRIGERATOR RECYCLING - UTAH - 2008","OTHER",null,{"$f":"IF(OR(tblREGASSLookup[[#This Row],[Alloc]]=\"IDU\",tblREGASSLookup[[#This Row],[Alloc]]=\"OR\",tblREGASSLookup[[#This Row],[Alloc]]=\"UT\",tblREGASSLookup[[#This Row],[Alloc]]=\"WYU\",tblREGASSLookup[[#This Row],[Alloc]]=\"WYP\",tblREGASSLookup[[#This Row],[Alloc]]=\"CA\",tblREGASSLookup[[#This Row],[Alloc]]=\"WA\"),\"SITUS\",tblREGASSLookup[[#This Row],[Alloc]])","v":"OTHER"},"CUST"]
[{"$f":"CONCATENATE(tblREGASSLookup[[#This Row],[Primary Account]],tblREGASSLookup[[#This Row],[Primary Name]],tblREGASSLookup[[#This Row],[Secondary Acct]],tblREGASSLookup[[#This Row],[Secondary  Name]],tblREGASSLookup[[#This Row],[Alloc4FUNC]])","v":"1823920DSR COSTS AMORTIZED102913COMMERCIAL SELF DIRECT - UTAH - 2008OTHER"},1823920,"DSR COSTS AMORTIZED",102913,"COMMERCIAL SELF DIRECT - UTAH - 2008","OTHER",null,{"$f":"IF(OR(tblREGASSLookup[[#This Row],[Alloc]]=\"IDU\",tblREGASSLookup[[#This Row],[Alloc]]=\"OR\",tblREGASSLookup[[#This Row],[Alloc]]=\"UT\",tblREGASSLookup[[#This Row],[Alloc]]=\"WYU\",tblREGASSLookup[[#This Row],[Alloc]]=\"WYP\",tblREGASSLookup[[#This Row],[Alloc]]=\"CA\",tblREGASSLookup[[#This Row],[Alloc]]=\"WA\"),\"SITUS\",tblREGASSLookup[[#This Row],[Alloc]])","v":"OTHER"},"CUST"]
[{"$f":"CONCATENATE(tblREGASSLookup[[#This Row],[Primary Account]],tblREGASSLookup[[#This Row],[Primary Name]],tblREGASSLookup[[#This Row],[Secondary Acct]],tblREGASSLookup[[#This Row],[Secondary  Name]],tblREGASSLookup[[#This Row],[Alloc4FUNC]])","v":"1823920DSR COSTS AMORTIZED102914INDUSTRIAL SELF DIRECT - UTAH - 2008OTHER"},1823920,"DSR COSTS AMORTIZED",102914,"INDUSTRIAL SELF DIRECT - UTAH - 2008","OTHER",null,{"$f":"IF(OR(tblREGASSLookup[[#This Row],[Alloc]]=\"IDU\",tblREGASSLookup[[#This Row],[Alloc]]=\"OR\",tblREGASSLookup[[#This Row],[Alloc]]=\"UT\",tblREGASSLookup[[#This Row],[Alloc]]=\"WYU\",tblREGASSLookup[[#This Row],[Alloc]]=\"WYP\",tblREGASSLookup[[#This Row],[Alloc]]=\"CA\",tblREGASSLookup[[#This Row],[Alloc]]=\"WA\"),\"SITUS\",tblREGASSLookup[[#This Row],[Alloc]])","v":"OTHER"},"CUST"]
[{"$f":"CONCATENATE(tblREGASSLookup[[#This Row],[Primary Account]],tblREGASSLookup[[#This Row],[Primary Name]],tblREGASSLookup[[#This Row],[Secondary Acct]],tblREGASSLookup[[#This Row],[Secondary  Name]],tblREGASSLookup[[#This Row],[Alloc4FUNC]])","v":"1823920DSR COSTS AMORTIZED102915RESIDENTIAL NEW CONSTRUCTION - UTAH 2008OTHER"},1823920,"DSR COSTS AMORTIZED",102915,"RESIDENTIAL NEW CONSTRUCTION - UTAH 2008","OTHER",null,{"$f":"IF(OR(tblREGASSLookup[[#This Row],[Alloc]]=\"IDU\",tblREGASSLookup[[#This Row],[Alloc]]=\"OR\",tblREGASSLookup[[#This Row],[Alloc]]=\"UT\",tblREGASSLookup[[#This Row],[Alloc]]=\"WYU\",tblREGASSLookup[[#This Row],[Alloc]]=\"WYP\",tblREGASSLookup[[#This Row],[Alloc]]=\"CA\",tblREGASSLookup[[#This Row],[Alloc]]=\"WA\"),\"SITUS\",tblREGASSLookup[[#This Row],[Alloc]])","v":"OTHER"},"CUST"]
[{"$f":"CONCATENATE(tblREGASSLookup[[#This Row],[Primary Account]],tblREGASSLookup[[#This Row],[Primary Name]],tblREGASSLookup[[#This Row],[Secondary Acct]],tblREGASSLookup[[#This Row],[Secondary  Name]],tblREGASSLookup[[#This Row],[Alloc4FUNC]])","v":"1823920DSR COSTS AMORTIZED102916COMMERCIAL FINANSWER EXPRESS - UTAH 2008OTHER"},1823920,"DSR COSTS AMORTIZED",102916,"COMMERCIAL FINANSWER EXPRESS - UTAH 2008","OTHER",null,{"$f":"IF(OR(tblREGASSLookup[[#This Row],[Alloc]]=\"IDU\",tblREGASSLookup[[#This Row],[Alloc]]=\"OR\",tblREGASSLookup[[#This Row],[Alloc]]=\"UT\",tblREGASSLookup[[#This Row],[Alloc]]=\"WYU\",tblREGASSLookup[[#This Row],[Alloc]]=\"WYP\",tblREGASSLookup[[#This Row],[Alloc]]=\"CA\",tblREGASSLookup[[#This Row],[Alloc]]=\"WA\"),\"SITUS\",tblREGASSLookup[[#This Row],[Alloc]])","v":"OTHER"},"CUST"]
[{"$f":"CONCATENATE(tblREGASSLookup[[#This Row],[Primary Account]],tblREGASSLookup[[#This Row],[Primary Name]],tblREGASSLookup[[#This Row],[Secondary Acct]],tblREGASSLookup[[#This Row],[Secondary  Name]],tblREGASSLookup[[#This Row],[Alloc4FUNC]])","v":"1823920DSR COSTS AMORTIZED102917INDUSTRIAL FINANSWER EXPRESS - UTAH 2008OTHER"},1823920,"DSR COSTS AMORTIZED",102917,"INDUSTRIAL FINANSWER EXPRESS - UTAH 2008","OTHER",null,{"$f":"IF(OR(tblREGASSLookup[[#This Row],[Alloc]]=\"IDU\",tblREGASSLookup[[#This Row],[Alloc]]=\"OR\",tblREGASSLookup[[#This Row],[Alloc]]=\"UT\",tblREGASSLookup[[#This Row],[Alloc]]=\"WYU\",tblREGASSLookup[[#This Row],[Alloc]]=\"WYP\",tblREGASSLookup[[#This Row],[Alloc]]=\"CA\",tblREGASSLookup[[#This Row],[Alloc]]=\"WA\"),\"SITUS\",tblREGASSLookup[[#This Row],[Alloc]])","v":"OTHER"},"CUST"]
[{"$f":"CONCATENATE(tblREGASSLookup[[#This Row],[Primary Account]],tblREGASSLookup[[#This Row],[Primary Name]],tblREGASSLookup[[#This Row],[Secondary Acct]],tblREGASSLookup[[#This Row],[Secondary  Name]],tblREGASSLookup[[#This Row],[Alloc4FUNC]])","v":"1823920DSR COSTS AMORTIZED102918RETROFIT COMMISSIONING PROGRAM - UTAH -OTHER"},1823920,"DSR COSTS AMORTIZED",102918,"RETROFIT COMMISSIONING PROGRAM - UTAH -","OTHER",null,{"$f":"IF(OR(tblREGASSLookup[[#This Row],[Alloc]]=\"IDU\",tblREGASSLookup[[#This Row],[Alloc]]=\"OR\",tblREGASSLookup[[#This Row],[Alloc]]=\"UT\",tblREGASSLookup[[#This Row],[Alloc]]=\"WYU\",tblREGASSLookup[[#This Row],[Alloc]]=\"WYP\",tblREGASSLookup[[#This Row],[Alloc]]=\"CA\",tblREGASSLookup[[#This Row],[Alloc]]=\"WA\"),\"SITUS\",tblREGASSLookup[[#This Row],[Alloc]])","v":"OTHER"},"CUST"]
[{"$f":"CONCATENATE(tblREGASSLookup[[#This Row],[Primary Account]],tblREGASSLookup[[#This Row],[Primary Name]],tblREGASSLookup[[#This Row],[Secondary Acct]],tblREGASSLookup[[#This Row],[Secondary  Name]],tblREGASSLookup[[#This Row],[Alloc4FUNC]])","v":"1823920DSR COSTS AMORTIZED102919C&I LIGHTING LOAD CONTROL  - UTAH - 2008OTHER"},1823920,"DSR COSTS AMORTIZED",102919,"C&I LIGHTING LOAD CONTROL  - UTAH - 2008","OTHER",null,{"$f":"IF(OR(tblREGASSLookup[[#This Row],[Alloc]]=\"IDU\",tblREGASSLookup[[#This Row],[Alloc]]=\"OR\",tblREGASSLookup[[#This Row],[Alloc]]=\"UT\",tblREGASSLookup[[#This Row],[Alloc]]=\"WYU\",tblREGASSLookup[[#This Row],[Alloc]]=\"WYP\",tblREGASSLookup[[#This Row],[Alloc]]=\"CA\",tblREGASSLookup[[#This Row],[Alloc]]=\"WA\"),\"SITUS\",tblREGASSLookup[[#This Row],[Alloc]])","v":"OTHER"},"CUST"]
[{"$f":"CONCATENATE(tblREGASSLookup[[#This Row],[Primary Account]],tblREGASSLookup[[#This Row],[Primary Name]],tblREGASSLookup[[#This Row],[Secondary Acct]],tblREGASSLookup[[#This Row],[Secondary  Name]],tblREGASSLookup[[#This Row],[Alloc4FUNC]])","v":"1823920DSR COSTS AMORTIZED102920IRRIGATION LOAD CONTROL - UTAHOTHER"},1823920,"DSR COSTS AMORTIZED",102920,"IRRIGATION LOAD CONTROL - UTAH","OTHER",null,{"$f":"IF(OR(tblREGASSLookup[[#This Row],[Alloc]]=\"IDU\",tblREGASSLookup[[#This Row],[Alloc]]=\"OR\",tblREGASSLookup[[#This Row],[Alloc]]=\"UT\",tblREGASSLookup[[#This Row],[Alloc]]=\"WYU\",tblREGASSLookup[[#This Row],[Alloc]]=\"WYP\",tblREGASSLookup[[#This Row],[Alloc]]=\"CA\",tblREGASSLookup[[#This Row],[Alloc]]=\"WA\"),\"SITUS\",tblREGASSLookup[[#This Row],[Alloc]])","v":"OTHER"},"CUST"]
[{"$f":"CONCATENATE(tblREGASSLookup[[#This Row],[Primary Account]],tblREGASSLookup[[#This Row],[Primary Name]],tblREGASSLookup[[#This Row],[Secondary Acct]],tblREGASSLookup[[#This Row],[Secondary  Name]],tblREGASSLookup[[#This Row],[Alloc4FUNC]])","v":"1823920DSR COSTS AMORTIZED102921HOME ENERGY EFF INCENTIVE PROGRAM - UTAHOTHER"},1823920,"DSR COSTS AMORTIZED",102921,"HOME ENERGY EFF INCENTIVE PROGRAM - UTAH","OTHER",null,{"$f":"IF(OR(tblREGASSLookup[[#This Row],[Alloc]]=\"IDU\",tblREGASSLookup[[#This Row],[Alloc]]=\"OR\",tblREGASSLookup[[#This Row],[Alloc]]=\"UT\",tblREGASSLookup[[#This Row],[Alloc]]=\"WYU\",tblREGASSLookup[[#This Row],[Alloc]]=\"WYP\",tblREGASSLookup[[#This Row],[Alloc]]=\"CA\",tblREGASSLookup[[#This Row],[Alloc]]=\"WA\"),\"SITUS\",tblREGASSLookup[[#This Row],[Alloc]])","v":"OTHER"},"CUST"]
[{"$f":"CONCATENATE(tblREGASSLookup[[#This Row],[Primary Account]],tblREGASSLookup[[#This Row],[Primary Name]],tblREGASSLookup[[#This Row],[Secondary Acct]],tblREGASSLookup[[#This Row],[Secondary  Name]],tblREGASSLookup[[#This Row],[Alloc4FUNC]])","v":"1823920DSR COSTS AMORTIZED102964CALIFORNIA DSM EXPENSE - 2009OTHER"},1823920,"DSR COSTS AMORTIZED",102964,"CALIFORNIA DSM EXPENSE - 2009","OTHER",null,{"$f":"IF(OR(tblREGASSLookup[[#This Row],[Alloc]]=\"IDU\",tblREGASSLookup[[#This Row],[Alloc]]=\"OR\",tblREGASSLookup[[#This Row],[Alloc]]=\"UT\",tblREGASSLookup[[#This Row],[Alloc]]=\"WYU\",tblREGASSLookup[[#This Row],[Alloc]]=\"WYP\",tblREGASSLookup[[#This Row],[Alloc]]=\"CA\",tblREGASSLookup[[#This Row],[Alloc]]=\"WA\"),\"SITUS\",tblREGASSLookup[[#This Row],[Alloc]])","v":"OTHER"},"CUST"]
[{"$f":"CONCATENATE(tblREGASSLookup[[#This Row],[Primary Account]],tblREGASSLookup[[#This Row],[Primary Name]],tblREGASSLookup[[#This Row],[Secondary Acct]],tblREGASSLookup[[#This Row],[Secondary  Name]],tblREGASSLookup[[#This Row],[Alloc4FUNC]])","v":"1823920DSR COSTS AMORTIZED102976A/C LOAD CONTROL - RESIDENTIAL/UTAH - 20OTHER"},1823920,"DSR COSTS AMORTIZED",102976,"A/C LOAD CONTROL - RESIDENTIAL/UTAH - 20","OTHER",null,{"$f":"IF(OR(tblREGASSLookup[[#This Row],[Alloc]]=\"IDU\",tblREGASSLookup[[#This Row],[Alloc]]=\"OR\",tblREGASSLookup[[#This Row],[Alloc]]=\"UT\",tblREGASSLookup[[#This Row],[Alloc]]=\"WYU\",tblREGASSLookup[[#This Row],[Alloc]]=\"WYP\",tblREGASSLookup[[#This Row],[Alloc]]=\"CA\",tblREGASSLookup[[#This Row],[Alloc]]=\"WA\"),\"SITUS\",tblREGASSLookup[[#This Row],[Alloc]])","v":"OTHER"},"CUST"]
[{"$f":"CONCATENATE(tblREGASSLookup[[#This Row],[Primary Account]],tblREGASSLookup[[#This Row],[Primary Name]],tblREGASSLookup[[#This Row],[Secondary Acct]],tblREGASSLookup[[#This Row],[Secondary  Name]],tblREGASSLookup[[#This Row],[Alloc4FUNC]])","v":"1823920DSR COSTS AMORTIZED102977AIR CONDITIONING - UTAH - 2009OTHER"},1823920,"DSR COSTS AMORTIZED",102977,"AIR CONDITIONING - UTAH - 2009","OTHER",null,{"$f":"IF(OR(tblREGASSLookup[[#This Row],[Alloc]]=\"IDU\",tblREGASSLookup[[#This Row],[Alloc]]=\"OR\",tblREGASSLookup[[#This Row],[Alloc]]=\"UT\",tblREGASSLookup[[#This Row],[Alloc]]=\"WYU\",tblREGASSLookup[[#This Row],[Alloc]]=\"WYP\",tblREGASSLookup[[#This Row],[Alloc]]=\"CA\",tblREGASSLookup[[#This Row],[Alloc]]=\"WA\"),\"SITUS\",tblREGASSLookup[[#This Row],[Alloc]])","v":"OTHER"},"CUST"]
[{"$f":"CONCATENATE(tblREGASSLookup[[#This Row],[Primary Account]],tblREGASSLookup[[#This Row],[Primary Name]],tblREGASSLookup[[#This Row],[Secondary Acct]],tblREGASSLookup[[#This Row],[Secondary  Name]],tblREGASSLookup[[#This Row],[Alloc4FUNC]])","v":"1823920DSR COSTS AMORTIZED102978ENERGY FINANSWER - UTAH - 2009OTHER"},1823920,"DSR COSTS AMORTIZED",102978,"ENERGY FINANSWER - UTAH - 2009","OTHER",null,{"$f":"IF(OR(tblREGASSLookup[[#This Row],[Alloc]]=\"IDU\",tblREGASSLookup[[#This Row],[Alloc]]=\"OR\",tblREGASSLookup[[#This Row],[Alloc]]=\"UT\",tblREGASSLookup[[#This Row],[Alloc]]=\"WYU\",tblREGASSLookup[[#This Row],[Alloc]]=\"WYP\",tblREGASSLookup[[#This Row],[Alloc]]=\"CA\",tblREGASSLookup[[#This Row],[Alloc]]=\"WA\"),\"SITUS\",tblREGASSLookup[[#This Row],[Alloc]])","v":"OTHER"},"CUST"]
[{"$f":"CONCATENATE(tblREGASSLookup[[#This Row],[Primary Account]],tblREGASSLookup[[#This Row],[Primary Name]],tblREGASSLookup[[#This Row],[Secondary Acct]],tblREGASSLookup[[#This Row],[Secondary  Name]],tblREGASSLookup[[#This Row],[Alloc4FUNC]])","v":"1823920DSR COSTS AMORTIZED102979INDUSTRIAL FINANSWER - UTAH - 2009OTHER"},1823920,"DSR COSTS AMORTIZED",102979,"INDUSTRIAL FINANSWER - UTAH - 2009","OTHER",null,{"$f":"IF(OR(tblREGASSLookup[[#This Row],[Alloc]]=\"IDU\",tblREGASSLookup[[#This Row],[Alloc]]=\"OR\",tblREGASSLookup[[#This Row],[Alloc]]=\"UT\",tblREGASSLookup[[#This Row],[Alloc]]=\"WYU\",tblREGASSLookup[[#This Row],[Alloc]]=\"WYP\",tblREGASSLookup[[#This Row],[Alloc]]=\"CA\",tblREGASSLookup[[#This Row],[Alloc]]=\"WA\"),\"SITUS\",tblREGASSLookup[[#This Row],[Alloc]])","v":"OTHER"},"CUST"]
[{"$f":"CONCATENATE(tblREGASSLookup[[#This Row],[Primary Account]],tblREGASSLookup[[#This Row],[Primary Name]],tblREGASSLookup[[#This Row],[Secondary Acct]],tblREGASSLookup[[#This Row],[Secondary  Name]],tblREGASSLookup[[#This Row],[Alloc4FUNC]])","v":"1823920DSR COSTS AMORTIZED102980LOW INCOME - UTAH - 2009OTHER"},1823920,"DSR COSTS AMORTIZED",102980,"LOW INCOME - UTAH - 2009","OTHER",null,{"$f":"IF(OR(tblREGASSLookup[[#This Row],[Alloc]]=\"IDU\",tblREGASSLookup[[#This Row],[Alloc]]=\"OR\",tblREGASSLookup[[#This Row],[Alloc]]=\"UT\",tblREGASSLookup[[#This Row],[Alloc]]=\"WYU\",tblREGASSLookup[[#This Row],[Alloc]]=\"WYP\",tblREGASSLookup[[#This Row],[Alloc]]=\"CA\",tblREGASSLookup[[#This Row],[Alloc]]=\"WA\"),\"SITUS\",tblREGASSLookup[[#This Row],[Alloc]])","v":"OTHER"},"CUST"]
[{"$f":"CONCATENATE(tblREGASSLookup[[#This Row],[Primary Account]],tblREGASSLookup[[#This Row],[Primary Name]],tblREGASSLookup[[#This Row],[Secondary Acct]],tblREGASSLookup[[#This Row],[Secondary  Name]],tblREGASSLookup[[#This Row],[Alloc4FUNC]])","v":"1823920DSR COSTS AMORTIZED102981POWER FORWARD - UTAH - 2009OTHER"},1823920,"DSR COSTS AMORTIZED",102981,"POWER FORWARD - UTAH - 2009","OTHER",null,{"$f":"IF(OR(tblREGASSLookup[[#This Row],[Alloc]]=\"IDU\",tblREGASSLookup[[#This Row],[Alloc]]=\"OR\",tblREGASSLookup[[#This Row],[Alloc]]=\"UT\",tblREGASSLookup[[#This Row],[Alloc]]=\"WYU\",tblREGASSLookup[[#This Row],[Alloc]]=\"WYP\",tblREGASSLookup[[#This Row],[Alloc]]=\"CA\",tblREGASSLookup[[#This Row],[Alloc]]=\"WA\"),\"SITUS\",tblREGASSLookup[[#This Row],[Alloc]])","v":"OTHER"},"CUST"]
[{"$f":"CONCATENATE(tblREGASSLookup[[#This Row],[Primary Account]],tblREGASSLookup[[#This Row],[Primary Name]],tblREGASSLookup[[#This Row],[Secondary Acct]],tblREGASSLookup[[#This Row],[Secondary  Name]],tblREGASSLookup[[#This Row],[Alloc4FUNC]])","v":"1823920DSR COSTS AMORTIZED102982REFRIGERATOR RECYCLING PGM- UTAH - 2009OTHER"},1823920,"DSR COSTS AMORTIZED",102982,"REFRIGERATOR RECYCLING PGM- UTAH - 2009","OTHER",null,{"$f":"IF(OR(tblREGASSLookup[[#This Row],[Alloc]]=\"IDU\",tblREGASSLookup[[#This Row],[Alloc]]=\"OR\",tblREGASSLookup[[#This Row],[Alloc]]=\"UT\",tblREGASSLookup[[#This Row],[Alloc]]=\"WYU\",tblREGASSLookup[[#This Row],[Alloc]]=\"WYP\",tblREGASSLookup[[#This Row],[Alloc]]=\"CA\",tblREGASSLookup[[#This Row],[Alloc]]=\"WA\"),\"SITUS\",tblREGASSLookup[[#This Row],[Alloc]])","v":"OTHER"},"CUST"]
[{"$f":"CONCATENATE(tblREGASSLookup[[#This Row],[Primary Account]],tblREGASSLookup[[#This Row],[Primary Name]],tblREGASSLookup[[#This Row],[Secondary Acct]],tblREGASSLookup[[#This Row],[Secondary  Name]],tblREGASSLookup[[#This Row],[Alloc4FUNC]])","v":"1823920DSR COSTS AMORTIZED102983COMMERCIAL SELF-DIRECT - UTAH - 2009OTHER"},1823920,"DSR COSTS AMORTIZED",102983,"COMMERCIAL SELF-DIRECT - UTAH - 2009","OTHER",null,{"$f":"IF(OR(tblREGASSLookup[[#This Row],[Alloc]]=\"IDU\",tblREGASSLookup[[#This Row],[Alloc]]=\"OR\",tblREGASSLookup[[#This Row],[Alloc]]=\"UT\",tblREGASSLookup[[#This Row],[Alloc]]=\"WYU\",tblREGASSLookup[[#This Row],[Alloc]]=\"WYP\",tblREGASSLookup[[#This Row],[Alloc]]=\"CA\",tblREGASSLookup[[#This Row],[Alloc]]=\"WA\"),\"SITUS\",tblREGASSLookup[[#This Row],[Alloc]])","v":"OTHER"},"CUST"]
[{"$f":"CONCATENATE(tblREGASSLookup[[#This Row],[Primary Account]],tblREGASSLookup[[#This Row],[Primary Name]],tblREGASSLookup[[#This Row],[Secondary Acct]],tblREGASSLookup[[#This Row],[Secondary  Name]],tblREGASSLookup[[#This Row],[Alloc4FUNC]])","v":"1823920DSR COSTS AMORTIZED102984INDUSTRIAL SELF-DIRECT - UTAH - 2009OTHER"},1823920,"DSR COSTS AMORTIZED",102984,"INDUSTRIAL SELF-DIRECT - UTAH - 2009","OTHER",null,{"$f":"IF(OR(tblREGASSLookup[[#This Row],[Alloc]]=\"IDU\",tblREGASSLookup[[#This Row],[Alloc]]=\"OR\",tblREGASSLookup[[#This Row],[Alloc]]=\"UT\",tblREGASSLookup[[#This Row],[Alloc]]=\"WYU\",tblREGASSLookup[[#This Row],[Alloc]]=\"WYP\",tblREGASSLookup[[#This Row],[Alloc]]=\"CA\",tblREGASSLookup[[#This Row],[Alloc]]=\"WA\"),\"SITUS\",tblREGASSLookup[[#This Row],[Alloc]])","v":"OTHER"},"CUST"]
[{"$f":"CONCATENATE(tblREGASSLookup[[#This Row],[Primary Account]],tblREGASSLookup[[#This Row],[Primary Name]],tblREGASSLookup[[#This Row],[Secondary Acct]],tblREGASSLookup[[#This Row],[Secondary  Name]],tblREGASSLookup[[#This Row],[Alloc4FUNC]])","v":"1823920DSR COSTS AMORTIZED102985RESIDENTIAL NEW CONSTRUCTION - UTAH - 20OTHER"},1823920,"DSR COSTS AMORTIZED",102985,"RESIDENTIAL NEW CONSTRUCTION - UTAH - 20","OTHER",null,{"$f":"IF(OR(tblREGASSLookup[[#This Row],[Alloc]]=\"IDU\",tblREGASSLookup[[#This Row],[Alloc]]=\"OR\",tblREGASSLookup[[#This Row],[Alloc]]=\"UT\",tblREGASSLookup[[#This Row],[Alloc]]=\"WYU\",tblREGASSLookup[[#This Row],[Alloc]]=\"WYP\",tblREGASSLookup[[#This Row],[Alloc]]=\"CA\",tblREGASSLookup[[#This Row],[Alloc]]=\"WA\"),\"SITUS\",tblREGASSLookup[[#This Row],[Alloc]])","v":"OTHER"},"CUST"]
[{"$f":"CONCATENATE(tblREGASSLookup[[#This Row],[Primary Account]],tblREGASSLookup[[#This Row],[Primary Name]],tblREGASSLookup[[#This Row],[Secondary Acct]],tblREGASSLookup[[#This Row],[Secondary  Name]],tblREGASSLookup[[#This Row],[Alloc4FUNC]])","v":"1823920DSR COSTS AMORTIZED102986COMMERCIAL FINANSWER EXPRESS - UTAH - 20OTHER"},1823920,"DSR COSTS AMORTIZED",102986,"COMMERCIAL FINANSWER EXPRESS - UTAH - 20","OTHER",null,{"$f":"IF(OR(tblREGASSLookup[[#This Row],[Alloc]]=\"IDU\",tblREGASSLookup[[#This Row],[Alloc]]=\"OR\",tblREGASSLookup[[#This Row],[Alloc]]=\"UT\",tblREGASSLookup[[#This Row],[Alloc]]=\"WYU\",tblREGASSLookup[[#This Row],[Alloc]]=\"WYP\",tblREGASSLookup[[#This Row],[Alloc]]=\"CA\",tblREGASSLookup[[#This Row],[Alloc]]=\"WA\"),\"SITUS\",tblREGASSLookup[[#This Row],[Alloc]])","v":"OTHER"},"CUST"]
[{"$f":"CONCATENATE(tblREGASSLookup[[#This Row],[Primary Account]],tblREGASSLookup[[#This Row],[Primary Name]],tblREGASSLookup[[#This Row],[Secondary Acct]],tblREGASSLookup[[#This Row],[Secondary  Name]],tblREGASSLookup[[#This Row],[Alloc4FUNC]])","v":"1823920DSR COSTS AMORTIZED102987INDUSTRIAL FINANSWER EXPRESS - UTAH - 20OTHER"},1823920,"DSR COSTS AMORTIZED",102987,"INDUSTRIAL FINANSWER EXPRESS - UTAH - 20","OTHER",null,{"$f":"IF(OR(tblREGASSLookup[[#This Row],[Alloc]]=\"IDU\",tblREGASSLookup[[#This Row],[Alloc]]=\"OR\",tblREGASSLookup[[#This Row],[Alloc]]=\"UT\",tblREGASSLookup[[#This Row],[Alloc]]=\"WYU\",tblREGASSLookup[[#This Row],[Alloc]]=\"WYP\",tblREGASSLookup[[#This Row],[Alloc]]=\"CA\",tblREGASSLookup[[#This Row],[Alloc]]=\"WA\"),\"SITUS\",tblREGASSLookup[[#This Row],[Alloc]])","v":"OTHER"},"CUST"]
[{"$f":"CONCATENATE(tblREGASSLookup[[#This Row],[Primary Account]],tblREGASSLookup[[#This Row],[Primary Name]],tblREGASSLookup[[#This Row],[Secondary Acct]],tblREGASSLookup[[#This Row],[Secondary  Name]],tblREGASSLookup[[#This Row],[Alloc4FUNC]])","v":"1823920DSR COSTS AMORTIZED102988RETROFIT COMMISSIONING PROGRAM  - UTAH -OTHER"},1823920,"DSR COSTS AMORTIZED",102988,"RETROFIT COMMISSIONING PROGRAM  - UTAH -","OTHER",null,{"$f":"IF(OR(tblREGASSLookup[[#This Row],[Alloc]]=\"IDU\",tblREGASSLookup[[#This Row],[Alloc]]=\"OR\",tblREGASSLookup[[#This Row],[Alloc]]=\"UT\",tblREGASSLookup[[#This Row],[Alloc]]=\"WYU\",tblREGASSLookup[[#This Row],[Alloc]]=\"WYP\",tblREGASSLookup[[#This Row],[Alloc]]=\"CA\",tblREGASSLookup[[#This Row],[Alloc]]=\"WA\"),\"SITUS\",tblREGASSLookup[[#This Row],[Alloc]])","v":"OTHER"},"CUST"]
[{"$f":"CONCATENATE(tblREGASSLookup[[#This Row],[Primary Account]],tblREGASSLookup[[#This Row],[Primary Name]],tblREGASSLookup[[#This Row],[Secondary Acct]],tblREGASSLookup[[#This Row],[Secondary  Name]],tblREGASSLookup[[#This Row],[Alloc4FUNC]])","v":"1823920DSR COSTS AMORTIZED102990IRRIGATION LOAD CONTROL  - UTAH - 2009OTHER"},1823920,"DSR COSTS AMORTIZED",102990,"IRRIGATION LOAD CONTROL  - UTAH - 2009","OTHER",null,{"$f":"IF(OR(tblREGASSLookup[[#This Row],[Alloc]]=\"IDU\",tblREGASSLookup[[#This Row],[Alloc]]=\"OR\",tblREGASSLookup[[#This Row],[Alloc]]=\"UT\",tblREGASSLookup[[#This Row],[Alloc]]=\"WYU\",tblREGASSLookup[[#This Row],[Alloc]]=\"WYP\",tblREGASSLookup[[#This Row],[Alloc]]=\"CA\",tblREGASSLookup[[#This Row],[Alloc]]=\"WA\"),\"SITUS\",tblREGASSLookup[[#This Row],[Alloc]])","v":"OTHER"},"CUST"]
[{"$f":"CONCATENATE(tblREGASSLookup[[#This Row],[Primary Account]],tblREGASSLookup[[#This Row],[Primary Name]],tblREGASSLookup[[#This Row],[Secondary Acct]],tblREGASSLookup[[#This Row],[Secondary  Name]],tblREGASSLookup[[#This Row],[Alloc4FUNC]])","v":"1823920DSR COSTS AMORTIZED102991HOME ENERGY EFF INCENTIVE PROG - UT 2009OTHER"},1823920,"DSR COSTS AMORTIZED",102991,"HOME ENERGY EFF INCENTIVE PROG - UT 2009","OTHER",null,{"$f":"IF(OR(tblREGASSLookup[[#This Row],[Alloc]]=\"IDU\",tblREGASSLookup[[#This Row],[Alloc]]=\"OR\",tblREGASSLookup[[#This Row],[Alloc]]=\"UT\",tblREGASSLookup[[#This Row],[Alloc]]=\"WYU\",tblREGASSLookup[[#This Row],[Alloc]]=\"WYP\",tblREGASSLookup[[#This Row],[Alloc]]=\"CA\",tblREGASSLookup[[#This Row],[Alloc]]=\"WA\"),\"SITUS\",tblREGASSLookup[[#This Row],[Alloc]])","v":"OTHER"},"CUST"]
[{"$f":"CONCATENATE(tblREGASSLookup[[#This Row],[Primary Account]],tblREGASSLookup[[#This Row],[Primary Name]],tblREGASSLookup[[#This Row],[Secondary Acct]],tblREGASSLookup[[#This Row],[Secondary  Name]],tblREGASSLookup[[#This Row],[Alloc4FUNC]])","v":"1823920DSR COSTS AMORTIZED102992ENERGY FINANSWER - WYOMING PPL - 2009OTHER"},1823920,"DSR COSTS AMORTIZED",102992,"ENERGY FINANSWER - WYOMING PPL - 2009","OTHER",null,{"$f":"IF(OR(tblREGASSLookup[[#This Row],[Alloc]]=\"IDU\",tblREGASSLookup[[#This Row],[Alloc]]=\"OR\",tblREGASSLookup[[#This Row],[Alloc]]=\"UT\",tblREGASSLookup[[#This Row],[Alloc]]=\"WYU\",tblREGASSLookup[[#This Row],[Alloc]]=\"WYP\",tblREGASSLookup[[#This Row],[Alloc]]=\"CA\",tblREGASSLookup[[#This Row],[Alloc]]=\"WA\"),\"SITUS\",tblREGASSLookup[[#This Row],[Alloc]])","v":"OTHER"},"CUST"]
[{"$f":"CONCATENATE(tblREGASSLookup[[#This Row],[Primary Account]],tblREGASSLookup[[#This Row],[Primary Name]],tblREGASSLookup[[#This Row],[Secondary Acct]],tblREGASSLookup[[#This Row],[Secondary  Name]],tblREGASSLookup[[#This Row],[Alloc4FUNC]])","v":"1823920DSR COSTS AMORTIZED102993INDUSTRIAL FINANSWER-WYOMING - PPL 2009OTHER"},1823920,"DSR COSTS AMORTIZED",102993,"INDUSTRIAL FINANSWER-WYOMING - PPL 2009","OTHER",null,{"$f":"IF(OR(tblREGASSLookup[[#This Row],[Alloc]]=\"IDU\",tblREGASSLookup[[#This Row],[Alloc]]=\"OR\",tblREGASSLookup[[#This Row],[Alloc]]=\"UT\",tblREGASSLookup[[#This Row],[Alloc]]=\"WYU\",tblREGASSLookup[[#This Row],[Alloc]]=\"WYP\",tblREGASSLookup[[#This Row],[Alloc]]=\"CA\",tblREGASSLookup[[#This Row],[Alloc]]=\"WA\"),\"SITUS\",tblREGASSLookup[[#This Row],[Alloc]])","v":"OTHER"},"CUST"]
[{"$f":"CONCATENATE(tblREGASSLookup[[#This Row],[Primary Account]],tblREGASSLookup[[#This Row],[Primary Name]],tblREGASSLookup[[#This Row],[Secondary Acct]],tblREGASSLookup[[#This Row],[Secondary  Name]],tblREGASSLookup[[#This Row],[Alloc4FUNC]])","v":"1823920DSR COSTS AMORTIZED102995REFRIGERATOR RECYCLING - PPL WYOMING - 2OTHER"},1823920,"DSR COSTS AMORTIZED",102995,"REFRIGERATOR RECYCLING - PPL WYOMING - 2","OTHER",null,{"$f":"IF(OR(tblREGASSLookup[[#This Row],[Alloc]]=\"IDU\",tblREGASSLookup[[#This Row],[Alloc]]=\"OR\",tblREGASSLookup[[#This Row],[Alloc]]=\"UT\",tblREGASSLookup[[#This Row],[Alloc]]=\"WYU\",tblREGASSLookup[[#This Row],[Alloc]]=\"WYP\",tblREGASSLookup[[#This Row],[Alloc]]=\"CA\",tblREGASSLookup[[#This Row],[Alloc]]=\"WA\"),\"SITUS\",tblREGASSLookup[[#This Row],[Alloc]])","v":"OTHER"},"CUST"]
[{"$f":"CONCATENATE(tblREGASSLookup[[#This Row],[Primary Account]],tblREGASSLookup[[#This Row],[Primary Name]],tblREGASSLookup[[#This Row],[Secondary Acct]],tblREGASSLookup[[#This Row],[Secondary  Name]],tblREGASSLookup[[#This Row],[Alloc4FUNC]])","v":"1823920DSR COSTS AMORTIZED102996HOME ENERGY EFF INCENTIVE PRO - PPL WYOMOTHER"},1823920,"DSR COSTS AMORTIZED",102996,"HOME ENERGY EFF INCENTIVE PRO - PPL WYOM","OTHER",null,{"$f":"IF(OR(tblREGASSLookup[[#This Row],[Alloc]]=\"IDU\",tblREGASSLookup[[#This Row],[Alloc]]=\"OR\",tblREGASSLookup[[#This Row],[Alloc]]=\"UT\",tblREGASSLookup[[#This Row],[Alloc]]=\"WYU\",tblREGASSLookup[[#This Row],[Alloc]]=\"WYP\",tblREGASSLookup[[#This Row],[Alloc]]=\"CA\",tblREGASSLookup[[#This Row],[Alloc]]=\"WA\"),\"SITUS\",tblREGASSLookup[[#This Row],[Alloc]])","v":"OTHER"},"CUST"]
[{"$f":"CONCATENATE(tblREGASSLookup[[#This Row],[Primary Account]],tblREGASSLookup[[#This Row],[Primary Name]],tblREGASSLookup[[#This Row],[Secondary Acct]],tblREGASSLookup[[#This Row],[Secondary  Name]],tblREGASSLookup[[#This Row],[Alloc4FUNC]])","v":"1823920DSR COSTS AMORTIZED102997LOW-INCOME WEATHERIZATION - WYOMING PPLOTHER"},1823920,"DSR COSTS AMORTIZED",102997,"LOW-INCOME WEATHERIZATION - WYOMING PPL","OTHER",null,{"$f":"IF(OR(tblREGASSLookup[[#This Row],[Alloc]]=\"IDU\",tblREGASSLookup[[#This Row],[Alloc]]=\"OR\",tblREGASSLookup[[#This Row],[Alloc]]=\"UT\",tblREGASSLookup[[#This Row],[Alloc]]=\"WYU\",tblREGASSLookup[[#This Row],[Alloc]]=\"WYP\",tblREGASSLookup[[#This Row],[Alloc]]=\"CA\",tblREGASSLookup[[#This Row],[Alloc]]=\"WA\"),\"SITUS\",tblREGASSLookup[[#This Row],[Alloc]])","v":"OTHER"},"CUST"]
[{"$f":"CONCATENATE(tblREGASSLookup[[#This Row],[Primary Account]],tblREGASSLookup[[#This Row],[Primary Name]],tblREGASSLookup[[#This Row],[Secondary Acct]],tblREGASSLookup[[#This Row],[Secondary  Name]],tblREGASSLookup[[#This Row],[Alloc4FUNC]])","v":"1823920DSR COSTS AMORTIZED102998COMMERCIAL FINANSWER EXPRESS - WY - 2009OTHER"},1823920,"DSR COSTS AMORTIZED",102998,"COMMERCIAL FINANSWER EXPRESS - WY - 2009","OTHER",null,{"$f":"IF(OR(tblREGASSLookup[[#This Row],[Alloc]]=\"IDU\",tblREGASSLookup[[#This Row],[Alloc]]=\"OR\",tblREGASSLookup[[#This Row],[Alloc]]=\"UT\",tblREGASSLookup[[#This Row],[Alloc]]=\"WYU\",tblREGASSLookup[[#This Row],[Alloc]]=\"WYP\",tblREGASSLookup[[#This Row],[Alloc]]=\"CA\",tblREGASSLookup[[#This Row],[Alloc]]=\"WA\"),\"SITUS\",tblREGASSLookup[[#This Row],[Alloc]])","v":"OTHER"},"CUST"]
[{"$f":"CONCATENATE(tblREGASSLookup[[#This Row],[Primary Account]],tblREGASSLookup[[#This Row],[Primary Name]],tblREGASSLookup[[#This Row],[Secondary Acct]],tblREGASSLookup[[#This Row],[Secondary  Name]],tblREGASSLookup[[#This Row],[Alloc4FUNC]])","v":"1823920DSR COSTS AMORTIZED102999INDUSTRIAL FINANSWER EXPRESS - WY - 2009OTHER"},1823920,"DSR COSTS AMORTIZED",102999,"INDUSTRIAL FINANSWER EXPRESS - WY - 2009","OTHER",null,{"$f":"IF(OR(tblREGASSLookup[[#This Row],[Alloc]]=\"IDU\",tblREGASSLookup[[#This Row],[Alloc]]=\"OR\",tblREGASSLookup[[#This Row],[Alloc]]=\"UT\",tblREGASSLookup[[#This Row],[Alloc]]=\"WYU\",tblREGASSLookup[[#This Row],[Alloc]]=\"WYP\",tblREGASSLookup[[#This Row],[Alloc]]=\"CA\",tblREGASSLookup[[#This Row],[Alloc]]=\"WA\"),\"SITUS\",tblREGASSLookup[[#This Row],[Alloc]])","v":"OTHER"},"CUST"]
[{"$f":"CONCATENATE(tblREGASSLookup[[#This Row],[Primary Account]],tblREGASSLookup[[#This Row],[Primary Name]],tblREGASSLookup[[#This Row],[Secondary Acct]],tblREGASSLookup[[#This Row],[Secondary  Name]],tblREGASSLookup[[#This Row],[Alloc4FUNC]])","v":"1823920DSR COSTS AMORTIZED103000SELF DIRECT - COMMERCIAL - WY - 2009OTHER"},1823920,"DSR COSTS AMORTIZED",103000,"SELF DIRECT - COMMERCIAL - WY - 2009","OTHER",null,{"$f":"IF(OR(tblREGASSLookup[[#This Row],[Alloc]]=\"IDU\",tblREGASSLookup[[#This Row],[Alloc]]=\"OR\",tblREGASSLookup[[#This Row],[Alloc]]=\"UT\",tblREGASSLookup[[#This Row],[Alloc]]=\"WYU\",tblREGASSLookup[[#This Row],[Alloc]]=\"WYP\",tblREGASSLookup[[#This Row],[Alloc]]=\"CA\",tblREGASSLookup[[#This Row],[Alloc]]=\"WA\"),\"SITUS\",tblREGASSLookup[[#This Row],[Alloc]])","v":"OTHER"},"CUST"]
[{"$f":"CONCATENATE(tblREGASSLookup[[#This Row],[Primary Account]],tblREGASSLookup[[#This Row],[Primary Name]],tblREGASSLookup[[#This Row],[Secondary Acct]],tblREGASSLookup[[#This Row],[Secondary  Name]],tblREGASSLookup[[#This Row],[Alloc4FUNC]])","v":"1823920DSR COSTS AMORTIZED103001SELF DIRECT - INDUSTRIAL  - WY - 2009OTHER"},1823920,"DSR COSTS AMORTIZED",103001,"SELF DIRECT - INDUSTRIAL  - WY - 2009","OTHER",null,{"$f":"IF(OR(tblREGASSLookup[[#This Row],[Alloc]]=\"IDU\",tblREGASSLookup[[#This Row],[Alloc]]=\"OR\",tblREGASSLookup[[#This Row],[Alloc]]=\"UT\",tblREGASSLookup[[#This Row],[Alloc]]=\"WYU\",tblREGASSLookup[[#This Row],[Alloc]]=\"WYP\",tblREGASSLookup[[#This Row],[Alloc]]=\"CA\",tblREGASSLookup[[#This Row],[Alloc]]=\"WA\"),\"SITUS\",tblREGASSLookup[[#This Row],[Alloc]])","v":"OTHER"},"CUST"]
[{"$f":"CONCATENATE(tblREGASSLookup[[#This Row],[Primary Account]],tblREGASSLookup[[#This Row],[Primary Name]],tblREGASSLookup[[#This Row],[Secondary Acct]],tblREGASSLookup[[#This Row],[Secondary  Name]],tblREGASSLookup[[#This Row],[Alloc4FUNC]])","v":"1823920DSR COSTS AMORTIZED103003MAIN CHECK DISB-WIRES/ACH IN CLEAR ACCTOTHER"},1823920,"DSR COSTS AMORTIZED",103003,"MAIN CHECK DISB-WIRES/ACH IN CLEAR ACCT","OTHER",null,{"$f":"IF(OR(tblREGASSLookup[[#This Row],[Alloc]]=\"IDU\",tblREGASSLookup[[#This Row],[Alloc]]=\"OR\",tblREGASSLookup[[#This Row],[Alloc]]=\"UT\",tblREGASSLookup[[#This Row],[Alloc]]=\"WYU\",tblREGASSLookup[[#This Row],[Alloc]]=\"WYP\",tblREGASSLookup[[#This Row],[Alloc]]=\"CA\",tblREGASSLookup[[#This Row],[Alloc]]=\"WA\"),\"SITUS\",tblREGASSLookup[[#This Row],[Alloc]])","v":"OTHER"},"CUST"]
[{"$f":"CONCATENATE(tblREGASSLookup[[#This Row],[Primary Account]],tblREGASSLookup[[#This Row],[Primary Name]],tblREGASSLookup[[#This Row],[Secondary Acct]],tblREGASSLookup[[#This Row],[Secondary  Name]],tblREGASSLookup[[#This Row],[Alloc4FUNC]])","v":"1823920DSR COSTS AMORTIZED103004MAIN CHECK DISB-WIRES/ACH OUT CLEAR ACCTOTHER"},1823920,"DSR COSTS AMORTIZED",103004,"MAIN CHECK DISB-WIRES/ACH OUT CLEAR ACCT","OTHER",null,{"$f":"IF(OR(tblREGASSLookup[[#This Row],[Alloc]]=\"IDU\",tblREGASSLookup[[#This Row],[Alloc]]=\"OR\",tblREGASSLookup[[#This Row],[Alloc]]=\"UT\",tblREGASSLookup[[#This Row],[Alloc]]=\"WYU\",tblREGASSLookup[[#This Row],[Alloc]]=\"WYP\",tblREGASSLookup[[#This Row],[Alloc]]=\"CA\",tblREGASSLookup[[#This Row],[Alloc]]=\"WA\"),\"SITUS\",tblREGASSLookup[[#This Row],[Alloc]])","v":"OTHER"},"CUST"]
[{"$f":"CONCATENATE(tblREGASSLookup[[#This Row],[Primary Account]],tblREGASSLookup[[#This Row],[Primary Name]],tblREGASSLookup[[#This Row],[Secondary Acct]],tblREGASSLookup[[#This Row],[Secondary  Name]],tblREGASSLookup[[#This Row],[Alloc4FUNC]])","v":"1823920DSR COSTS AMORTIZED103005COMMERCIAL FINANSWER EXPRESS Cat 2- WY -OTHER"},1823920,"DSR COSTS AMORTIZED",103005,"COMMERCIAL FINANSWER EXPRESS Cat 2- WY -","OTHER",null,{"$f":"IF(OR(tblREGASSLookup[[#This Row],[Alloc]]=\"IDU\",tblREGASSLookup[[#This Row],[Alloc]]=\"OR\",tblREGASSLookup[[#This Row],[Alloc]]=\"UT\",tblREGASSLookup[[#This Row],[Alloc]]=\"WYU\",tblREGASSLookup[[#This Row],[Alloc]]=\"WYP\",tblREGASSLookup[[#This Row],[Alloc]]=\"CA\",tblREGASSLookup[[#This Row],[Alloc]]=\"WA\"),\"SITUS\",tblREGASSLookup[[#This Row],[Alloc]])","v":"OTHER"},"CUST"]
[{"$f":"CONCATENATE(tblREGASSLookup[[#This Row],[Primary Account]],tblREGASSLookup[[#This Row],[Primary Name]],tblREGASSLookup[[#This Row],[Secondary Acct]],tblREGASSLookup[[#This Row],[Secondary  Name]],tblREGASSLookup[[#This Row],[Alloc4FUNC]])","v":"1823920DSR COSTS AMORTIZED103006INDUSTRIAL FINANSWER EXPRESS Cat 2- WY -OTHER"},1823920,"DSR COSTS AMORTIZED",103006,"INDUSTRIAL FINANSWER EXPRESS Cat 2- WY -","OTHER",null,{"$f":"IF(OR(tblREGASSLookup[[#This Row],[Alloc]]=\"IDU\",tblREGASSLookup[[#This Row],[Alloc]]=\"OR\",tblREGASSLookup[[#This Row],[Alloc]]=\"UT\",tblREGASSLookup[[#This Row],[Alloc]]=\"WYU\",tblREGASSLookup[[#This Row],[Alloc]]=\"WYP\",tblREGASSLookup[[#This Row],[Alloc]]=\"CA\",tblREGASSLookup[[#This Row],[Alloc]]=\"WA\"),\"SITUS\",tblREGASSLookup[[#This Row],[Alloc]])","v":"OTHER"},"CUST"]
[{"$f":"CONCATENATE(tblREGASSLookup[[#This Row],[Primary Account]],tblREGASSLookup[[#This Row],[Primary Name]],tblREGASSLookup[[#This Row],[Secondary Acct]],tblREGASSLookup[[#This Row],[Secondary  Name]],tblREGASSLookup[[#This Row],[Alloc4FUNC]])","v":"1823920DSR COSTS AMORTIZED103007ENERGY FINANSWER Cat 2 - WY 2009OTHER"},1823920,"DSR COSTS AMORTIZED",103007,"ENERGY FINANSWER Cat 2 - WY 2009","OTHER",null,{"$f":"IF(OR(tblREGASSLookup[[#This Row],[Alloc]]=\"IDU\",tblREGASSLookup[[#This Row],[Alloc]]=\"OR\",tblREGASSLookup[[#This Row],[Alloc]]=\"UT\",tblREGASSLookup[[#This Row],[Alloc]]=\"WYU\",tblREGASSLookup[[#This Row],[Alloc]]=\"WYP\",tblREGASSLookup[[#This Row],[Alloc]]=\"CA\",tblREGASSLookup[[#This Row],[Alloc]]=\"WA\"),\"SITUS\",tblREGASSLookup[[#This Row],[Alloc]])","v":"OTHER"},"CUST"]
[{"$f":"CONCATENATE(tblREGASSLookup[[#This Row],[Primary Account]],tblREGASSLookup[[#This Row],[Primary Name]],tblREGASSLookup[[#This Row],[Secondary Acct]],tblREGASSLookup[[#This Row],[Secondary  Name]],tblREGASSLookup[[#This Row],[Alloc4FUNC]])","v":"1823920DSR COSTS AMORTIZED103008INDUSTRIAL FINANSWER Cat 2 -WY 2009OTHER"},1823920,"DSR COSTS AMORTIZED",103008,"INDUSTRIAL FINANSWER Cat 2 -WY 2009","OTHER",null,{"$f":"IF(OR(tblREGASSLookup[[#This Row],[Alloc]]=\"IDU\",tblREGASSLookup[[#This Row],[Alloc]]=\"OR\",tblREGASSLookup[[#This Row],[Alloc]]=\"UT\",tblREGASSLookup[[#This Row],[Alloc]]=\"WYU\",tblREGASSLookup[[#This Row],[Alloc]]=\"WYP\",tblREGASSLookup[[#This Row],[Alloc]]=\"CA\",tblREGASSLookup[[#This Row],[Alloc]]=\"WA\"),\"SITUS\",tblREGASSLookup[[#This Row],[Alloc]])","v":"OTHER"},"CUST"]
[{"$f":"CONCATENATE(tblREGASSLookup[[#This Row],[Primary Account]],tblREGASSLookup[[#This Row],[Primary Name]],tblREGASSLookup[[#This Row],[Secondary Acct]],tblREGASSLookup[[#This Row],[Secondary  Name]],tblREGASSLookup[[#This Row],[Alloc4FUNC]])","v":"1823920DSR COSTS AMORTIZED103012WYOMING REV RECOVERY - SBC OFFSET CAT 1OTHER"},1823920,"DSR COSTS AMORTIZED",103012,"WYOMING REV RECOVERY - SBC OFFSET CAT 1","OTHER",null,{"$f":"IF(OR(tblREGASSLookup[[#This Row],[Alloc]]=\"IDU\",tblREGASSLookup[[#This Row],[Alloc]]=\"OR\",tblREGASSLookup[[#This Row],[Alloc]]=\"UT\",tblREGASSLookup[[#This Row],[Alloc]]=\"WYU\",tblREGASSLookup[[#This Row],[Alloc]]=\"WYP\",tblREGASSLookup[[#This Row],[Alloc]]=\"CA\",tblREGASSLookup[[#This Row],[Alloc]]=\"WA\"),\"SITUS\",tblREGASSLookup[[#This Row],[Alloc]])","v":"OTHER"},"CUST"]
[{"$f":"CONCATENATE(tblREGASSLookup[[#This Row],[Primary Account]],tblREGASSLookup[[#This Row],[Primary Name]],tblREGASSLookup[[#This Row],[Secondary Acct]],tblREGASSLookup[[#This Row],[Secondary  Name]],tblREGASSLookup[[#This Row],[Alloc4FUNC]])","v":"1823920DSR COSTS AMORTIZED103013WYOMING REV RECOVERY - SBC OFFSET CAT 2OTHER"},1823920,"DSR COSTS AMORTIZED",103013,"WYOMING REV RECOVERY - SBC OFFSET CAT 2","OTHER",null,{"$f":"IF(OR(tblREGASSLookup[[#This Row],[Alloc]]=\"IDU\",tblREGASSLookup[[#This Row],[Alloc]]=\"OR\",tblREGASSLookup[[#This Row],[Alloc]]=\"UT\",tblREGASSLookup[[#This Row],[Alloc]]=\"WYU\",tblREGASSLookup[[#This Row],[Alloc]]=\"WYP\",tblREGASSLookup[[#This Row],[Alloc]]=\"CA\",tblREGASSLookup[[#This Row],[Alloc]]=\"WA\"),\"SITUS\",tblREGASSLookup[[#This Row],[Alloc]])","v":"OTHER"},"CUST"]
[{"$f":"CONCATENATE(tblREGASSLookup[[#This Row],[Primary Account]],tblREGASSLookup[[#This Row],[Primary Name]],tblREGASSLookup[[#This Row],[Secondary Acct]],tblREGASSLookup[[#This Row],[Secondary  Name]],tblREGASSLookup[[#This Row],[Alloc4FUNC]])","v":"1823920DSR COSTS AMORTIZED103014WYOMING REV RECOVERY - SBC OFFSET CAT 3OTHER"},1823920,"DSR COSTS AMORTIZED",103014,"WYOMING REV RECOVERY - SBC OFFSET CAT 3","OTHER",null,{"$f":"IF(OR(tblREGASSLookup[[#This Row],[Alloc]]=\"IDU\",tblREGASSLookup[[#This Row],[Alloc]]=\"OR\",tblREGASSLookup[[#This Row],[Alloc]]=\"UT\",tblREGASSLookup[[#This Row],[Alloc]]=\"WYU\",tblREGASSLookup[[#This Row],[Alloc]]=\"WYP\",tblREGASSLookup[[#This Row],[Alloc]]=\"CA\",tblREGASSLookup[[#This Row],[Alloc]]=\"WA\"),\"SITUS\",tblREGASSLookup[[#This Row],[Alloc]])","v":"OTHER"},"CUST"]
[{"$f":"CONCATENATE(tblREGASSLookup[[#This Row],[Primary Account]],tblREGASSLookup[[#This Row],[Primary Name]],tblREGASSLookup[[#This Row],[Secondary Acct]],tblREGASSLookup[[#This Row],[Secondary  Name]],tblREGASSLookup[[#This Row],[Alloc4FUNC]])","v":"1823920DSR COSTS AMORTIZED103031OUTREACH and COMMUNICATIONS - UT 2009OTHER"},1823920,"DSR COSTS AMORTIZED",103031,"OUTREACH and COMMUNICATIONS - UT 2009","OTHER",null,{"$f":"IF(OR(tblREGASSLookup[[#This Row],[Alloc]]=\"IDU\",tblREGASSLookup[[#This Row],[Alloc]]=\"OR\",tblREGASSLookup[[#This Row],[Alloc]]=\"UT\",tblREGASSLookup[[#This Row],[Alloc]]=\"WYU\",tblREGASSLookup[[#This Row],[Alloc]]=\"WYP\",tblREGASSLookup[[#This Row],[Alloc]]=\"CA\",tblREGASSLookup[[#This Row],[Alloc]]=\"WA\"),\"SITUS\",tblREGASSLookup[[#This Row],[Alloc]])","v":"OTHER"},"CUST"]
[{"$f":"CONCATENATE(tblREGASSLookup[[#This Row],[Primary Account]],tblREGASSLookup[[#This Row],[Primary Name]],tblREGASSLookup[[#This Row],[Secondary Acct]],tblREGASSLookup[[#This Row],[Secondary  Name]],tblREGASSLookup[[#This Row],[Alloc4FUNC]])","v":"1823920DSR COSTS AMORTIZED103059CALIFORNIA DSM EXPENSE - 2010OTHER"},1823920,"DSR COSTS AMORTIZED",103059,"CALIFORNIA DSM EXPENSE - 2010","OTHER",null,{"$f":"IF(OR(tblREGASSLookup[[#This Row],[Alloc]]=\"IDU\",tblREGASSLookup[[#This Row],[Alloc]]=\"OR\",tblREGASSLookup[[#This Row],[Alloc]]=\"UT\",tblREGASSLookup[[#This Row],[Alloc]]=\"WYU\",tblREGASSLookup[[#This Row],[Alloc]]=\"WYP\",tblREGASSLookup[[#This Row],[Alloc]]=\"CA\",tblREGASSLookup[[#This Row],[Alloc]]=\"WA\"),\"SITUS\",tblREGASSLookup[[#This Row],[Alloc]])","v":"OTHER"},"CUST"]
[{"$f":"CONCATENATE(tblREGASSLookup[[#This Row],[Primary Account]],tblREGASSLookup[[#This Row],[Primary Name]],tblREGASSLookup[[#This Row],[Secondary Acct]],tblREGASSLookup[[#This Row],[Secondary  Name]],tblREGASSLookup[[#This Row],[Alloc4FUNC]])","v":"1823920DSR COSTS AMORTIZED103071A/C LOAD CONTROL - RESIDENTIAL/UTAH - 20OTHER"},1823920,"DSR COSTS AMORTIZED",103071,"A/C LOAD CONTROL - RESIDENTIAL/UTAH - 20","OTHER",null,{"$f":"IF(OR(tblREGASSLookup[[#This Row],[Alloc]]=\"IDU\",tblREGASSLookup[[#This Row],[Alloc]]=\"OR\",tblREGASSLookup[[#This Row],[Alloc]]=\"UT\",tblREGASSLookup[[#This Row],[Alloc]]=\"WYU\",tblREGASSLookup[[#This Row],[Alloc]]=\"WYP\",tblREGASSLookup[[#This Row],[Alloc]]=\"CA\",tblREGASSLookup[[#This Row],[Alloc]]=\"WA\"),\"SITUS\",tblREGASSLookup[[#This Row],[Alloc]])","v":"OTHER"},"CUST"]
[{"$f":"CONCATENATE(tblREGASSLookup[[#This Row],[Primary Account]],tblREGASSLookup[[#This Row],[Primary Name]],tblREGASSLookup[[#This Row],[Secondary Acct]],tblREGASSLookup[[#This Row],[Secondary  Name]],tblREGASSLookup[[#This Row],[Alloc4FUNC]])","v":"1823920DSR COSTS AMORTIZED103072AIR CONDITIONING - UTAH - 2010OTHER"},1823920,"DSR COSTS AMORTIZED",103072,"AIR CONDITIONING - UTAH - 2010","OTHER",null,{"$f":"IF(OR(tblREGASSLookup[[#This Row],[Alloc]]=\"IDU\",tblREGASSLookup[[#This Row],[Alloc]]=\"OR\",tblREGASSLookup[[#This Row],[Alloc]]=\"UT\",tblREGASSLookup[[#This Row],[Alloc]]=\"WYU\",tblREGASSLookup[[#This Row],[Alloc]]=\"WYP\",tblREGASSLookup[[#This Row],[Alloc]]=\"CA\",tblREGASSLookup[[#This Row],[Alloc]]=\"WA\"),\"SITUS\",tblREGASSLookup[[#This Row],[Alloc]])","v":"OTHER"},"CUST"]
[{"$f":"CONCATENATE(tblREGASSLookup[[#This Row],[Primary Account]],tblREGASSLookup[[#This Row],[Primary Name]],tblREGASSLookup[[#This Row],[Secondary Acct]],tblREGASSLookup[[#This Row],[Secondary  Name]],tblREGASSLookup[[#This Row],[Alloc4FUNC]])","v":"1823920DSR COSTS AMORTIZED103073ENERGY FINANSWER - UTAH - 2010OTHER"},1823920,"DSR COSTS AMORTIZED",103073,"ENERGY FINANSWER - UTAH - 2010","OTHER",null,{"$f":"IF(OR(tblREGASSLookup[[#This Row],[Alloc]]=\"IDU\",tblREGASSLookup[[#This Row],[Alloc]]=\"OR\",tblREGASSLookup[[#This Row],[Alloc]]=\"UT\",tblREGASSLookup[[#This Row],[Alloc]]=\"WYU\",tblREGASSLookup[[#This Row],[Alloc]]=\"WYP\",tblREGASSLookup[[#This Row],[Alloc]]=\"CA\",tblREGASSLookup[[#This Row],[Alloc]]=\"WA\"),\"SITUS\",tblREGASSLookup[[#This Row],[Alloc]])","v":"OTHER"},"CUST"]
[{"$f":"CONCATENATE(tblREGASSLookup[[#This Row],[Primary Account]],tblREGASSLookup[[#This Row],[Primary Name]],tblREGASSLookup[[#This Row],[Secondary Acct]],tblREGASSLookup[[#This Row],[Secondary  Name]],tblREGASSLookup[[#This Row],[Alloc4FUNC]])","v":"1823920DSR COSTS AMORTIZED103074INDUSTRIAL FINANSWER - UTAH - 2010OTHER"},1823920,"DSR COSTS AMORTIZED",103074,"INDUSTRIAL FINANSWER - UTAH - 2010","OTHER",null,{"$f":"IF(OR(tblREGASSLookup[[#This Row],[Alloc]]=\"IDU\",tblREGASSLookup[[#This Row],[Alloc]]=\"OR\",tblREGASSLookup[[#This Row],[Alloc]]=\"UT\",tblREGASSLookup[[#This Row],[Alloc]]=\"WYU\",tblREGASSLookup[[#This Row],[Alloc]]=\"WYP\",tblREGASSLookup[[#This Row],[Alloc]]=\"CA\",tblREGASSLookup[[#This Row],[Alloc]]=\"WA\"),\"SITUS\",tblREGASSLookup[[#This Row],[Alloc]])","v":"OTHER"},"CUST"]
[{"$f":"CONCATENATE(tblREGASSLookup[[#This Row],[Primary Account]],tblREGASSLookup[[#This Row],[Primary Name]],tblREGASSLookup[[#This Row],[Secondary Acct]],tblREGASSLookup[[#This Row],[Secondary  Name]],tblREGASSLookup[[#This Row],[Alloc4FUNC]])","v":"1823920DSR COSTS AMORTIZED103075LOW INCOME - UTAH - 2010OTHER"},1823920,"DSR COSTS AMORTIZED",103075,"LOW INCOME - UTAH - 2010","OTHER",null,{"$f":"IF(OR(tblREGASSLookup[[#This Row],[Alloc]]=\"IDU\",tblREGASSLookup[[#This Row],[Alloc]]=\"OR\",tblREGASSLookup[[#This Row],[Alloc]]=\"UT\",tblREGASSLookup[[#This Row],[Alloc]]=\"WYU\",tblREGASSLookup[[#This Row],[Alloc]]=\"WYP\",tblREGASSLookup[[#This Row],[Alloc]]=\"CA\",tblREGASSLookup[[#This Row],[Alloc]]=\"WA\"),\"SITUS\",tblREGASSLookup[[#This Row],[Alloc]])","v":"OTHER"},"CUST"]
[{"$f":"CONCATENATE(tblREGASSLookup[[#This Row],[Primary Account]],tblREGASSLookup[[#This Row],[Primary Name]],tblREGASSLookup[[#This Row],[Secondary Acct]],tblREGASSLookup[[#This Row],[Secondary  Name]],tblREGASSLookup[[#This Row],[Alloc4FUNC]])","v":"1823920DSR COSTS AMORTIZED103076POWER FORWARD - UTAH # 2010OTHER"},1823920,"DSR COSTS AMORTIZED",103076,"POWER FORWARD - UTAH # 2010","OTHER",null,{"$f":"IF(OR(tblREGASSLookup[[#This Row],[Alloc]]=\"IDU\",tblREGASSLookup[[#This Row],[Alloc]]=\"OR\",tblREGASSLookup[[#This Row],[Alloc]]=\"UT\",tblREGASSLookup[[#This Row],[Alloc]]=\"WYU\",tblREGASSLookup[[#This Row],[Alloc]]=\"WYP\",tblREGASSLookup[[#This Row],[Alloc]]=\"CA\",tblREGASSLookup[[#This Row],[Alloc]]=\"WA\"),\"SITUS\",tblREGASSLookup[[#This Row],[Alloc]])","v":"OTHER"},"CUST"]
[{"$f":"CONCATENATE(tblREGASSLookup[[#This Row],[Primary Account]],tblREGASSLookup[[#This Row],[Primary Name]],tblREGASSLookup[[#This Row],[Secondary Acct]],tblREGASSLookup[[#This Row],[Secondary  Name]],tblREGASSLookup[[#This Row],[Alloc4FUNC]])","v":"1823920DSR COSTS AMORTIZED103077REFRIGERATOR RECYCLING PGM- UTAH - 2010OTHER"},1823920,"DSR COSTS AMORTIZED",103077,"REFRIGERATOR RECYCLING PGM- UTAH - 2010","OTHER",null,{"$f":"IF(OR(tblREGASSLookup[[#This Row],[Alloc]]=\"IDU\",tblREGASSLookup[[#This Row],[Alloc]]=\"OR\",tblREGASSLookup[[#This Row],[Alloc]]=\"UT\",tblREGASSLookup[[#This Row],[Alloc]]=\"WYU\",tblREGASSLookup[[#This Row],[Alloc]]=\"WYP\",tblREGASSLookup[[#This Row],[Alloc]]=\"CA\",tblREGASSLookup[[#This Row],[Alloc]]=\"WA\"),\"SITUS\",tblREGASSLookup[[#This Row],[Alloc]])","v":"OTHER"},"CUST"]
[{"$f":"CONCATENATE(tblREGASSLookup[[#This Row],[Primary Account]],tblREGASSLookup[[#This Row],[Primary Name]],tblREGASSLookup[[#This Row],[Secondary Acct]],tblREGASSLookup[[#This Row],[Secondary  Name]],tblREGASSLookup[[#This Row],[Alloc4FUNC]])","v":"1823920DSR COSTS AMORTIZED103078COMMERCIAL SELF-DIRECT - UTAH - 2010OTHER"},1823920,"DSR COSTS AMORTIZED",103078,"COMMERCIAL SELF-DIRECT - UTAH - 2010","OTHER",null,{"$f":"IF(OR(tblREGASSLookup[[#This Row],[Alloc]]=\"IDU\",tblREGASSLookup[[#This Row],[Alloc]]=\"OR\",tblREGASSLookup[[#This Row],[Alloc]]=\"UT\",tblREGASSLookup[[#This Row],[Alloc]]=\"WYU\",tblREGASSLookup[[#This Row],[Alloc]]=\"WYP\",tblREGASSLookup[[#This Row],[Alloc]]=\"CA\",tblREGASSLookup[[#This Row],[Alloc]]=\"WA\"),\"SITUS\",tblREGASSLookup[[#This Row],[Alloc]])","v":"OTHER"},"CUST"]
[{"$f":"CONCATENATE(tblREGASSLookup[[#This Row],[Primary Account]],tblREGASSLookup[[#This Row],[Primary Name]],tblREGASSLookup[[#This Row],[Secondary Acct]],tblREGASSLookup[[#This Row],[Secondary  Name]],tblREGASSLookup[[#This Row],[Alloc4FUNC]])","v":"1823920DSR COSTS AMORTIZED103079INDUSTRIAL SELF-DIRECT - UTAH - 2010OTHER"},1823920,"DSR COSTS AMORTIZED",103079,"INDUSTRIAL SELF-DIRECT - UTAH - 2010","OTHER",null,{"$f":"IF(OR(tblREGASSLookup[[#This Row],[Alloc]]=\"IDU\",tblREGASSLookup[[#This Row],[Alloc]]=\"OR\",tblREGASSLookup[[#This Row],[Alloc]]=\"UT\",tblREGASSLookup[[#This Row],[Alloc]]=\"WYU\",tblREGASSLookup[[#This Row],[Alloc]]=\"WYP\",tblREGASSLookup[[#This Row],[Alloc]]=\"CA\",tblREGASSLookup[[#This Row],[Alloc]]=\"WA\"),\"SITUS\",tblREGASSLookup[[#This Row],[Alloc]])","v":"OTHER"},"CUST"]
[{"$f":"CONCATENATE(tblREGASSLookup[[#This Row],[Primary Account]],tblREGASSLookup[[#This Row],[Primary Name]],tblREGASSLookup[[#This Row],[Secondary Acct]],tblREGASSLookup[[#This Row],[Secondary  Name]],tblREGASSLookup[[#This Row],[Alloc4FUNC]])","v":"1823920DSR COSTS AMORTIZED103080RESIDENTIAL NEW CONSTRUCTION - UTAH - 20OTHER"},1823920,"DSR COSTS AMORTIZED",103080,"RESIDENTIAL NEW CONSTRUCTION - UTAH - 20","OTHER",null,{"$f":"IF(OR(tblREGASSLookup[[#This Row],[Alloc]]=\"IDU\",tblREGASSLookup[[#This Row],[Alloc]]=\"OR\",tblREGASSLookup[[#This Row],[Alloc]]=\"UT\",tblREGASSLookup[[#This Row],[Alloc]]=\"WYU\",tblREGASSLookup[[#This Row],[Alloc]]=\"WYP\",tblREGASSLookup[[#This Row],[Alloc]]=\"CA\",tblREGASSLookup[[#This Row],[Alloc]]=\"WA\"),\"SITUS\",tblREGASSLookup[[#This Row],[Alloc]])","v":"OTHER"},"CUST"]
[{"$f":"CONCATENATE(tblREGASSLookup[[#This Row],[Primary Account]],tblREGASSLookup[[#This Row],[Primary Name]],tblREGASSLookup[[#This Row],[Secondary Acct]],tblREGASSLookup[[#This Row],[Secondary  Name]],tblREGASSLookup[[#This Row],[Alloc4FUNC]])","v":"1823920DSR COSTS AMORTIZED103081COMMERCIAL FINANSWER EXPRESS - UTAH - 20OTHER"},1823920,"DSR COSTS AMORTIZED",103081,"COMMERCIAL FINANSWER EXPRESS - UTAH - 20","OTHER",null,{"$f":"IF(OR(tblREGASSLookup[[#This Row],[Alloc]]=\"IDU\",tblREGASSLookup[[#This Row],[Alloc]]=\"OR\",tblREGASSLookup[[#This Row],[Alloc]]=\"UT\",tblREGASSLookup[[#This Row],[Alloc]]=\"WYU\",tblREGASSLookup[[#This Row],[Alloc]]=\"WYP\",tblREGASSLookup[[#This Row],[Alloc]]=\"CA\",tblREGASSLookup[[#This Row],[Alloc]]=\"WA\"),\"SITUS\",tblREGASSLookup[[#This Row],[Alloc]])","v":"OTHER"},"CUST"]
[{"$f":"CONCATENATE(tblREGASSLookup[[#This Row],[Primary Account]],tblREGASSLookup[[#This Row],[Primary Name]],tblREGASSLookup[[#This Row],[Secondary Acct]],tblREGASSLookup[[#This Row],[Secondary  Name]],tblREGASSLookup[[#This Row],[Alloc4FUNC]])","v":"1823920DSR COSTS AMORTIZED103082INDUSTRIAL FINANSWER EXPRESS - UTAH - 20OTHER"},1823920,"DSR COSTS AMORTIZED",103082,"INDUSTRIAL FINANSWER EXPRESS - UTAH - 20","OTHER",null,{"$f":"IF(OR(tblREGASSLookup[[#This Row],[Alloc]]=\"IDU\",tblREGASSLookup[[#This Row],[Alloc]]=\"OR\",tblREGASSLookup[[#This Row],[Alloc]]=\"UT\",tblREGASSLookup[[#This Row],[Alloc]]=\"WYU\",tblREGASSLookup[[#This Row],[Alloc]]=\"WYP\",tblREGASSLookup[[#This Row],[Alloc]]=\"CA\",tblREGASSLookup[[#This Row],[Alloc]]=\"WA\"),\"SITUS\",tblREGASSLookup[[#This Row],[Alloc]])","v":"OTHER"},"CUST"]
[{"$f":"CONCATENATE(tblREGASSLookup[[#This Row],[Primary Account]],tblREGASSLookup[[#This Row],[Primary Name]],tblREGASSLookup[[#This Row],[Secondary Acct]],tblREGASSLookup[[#This Row],[Secondary  Name]],tblREGASSLookup[[#This Row],[Alloc4FUNC]])","v":"1823920DSR COSTS AMORTIZED103083RETROFIT COMMISSIONING PROGRAM  - UTAH -OTHER"},1823920,"DSR COSTS AMORTIZED",103083,"RETROFIT COMMISSIONING PROGRAM  - UTAH -","OTHER",null,{"$f":"IF(OR(tblREGASSLookup[[#This Row],[Alloc]]=\"IDU\",tblREGASSLookup[[#This Row],[Alloc]]=\"OR\",tblREGASSLookup[[#This Row],[Alloc]]=\"UT\",tblREGASSLookup[[#This Row],[Alloc]]=\"WYU\",tblREGASSLookup[[#This Row],[Alloc]]=\"WYP\",tblREGASSLookup[[#This Row],[Alloc]]=\"CA\",tblREGASSLookup[[#This Row],[Alloc]]=\"WA\"),\"SITUS\",tblREGASSLookup[[#This Row],[Alloc]])","v":"OTHER"},"CUST"]
[{"$f":"CONCATENATE(tblREGASSLookup[[#This Row],[Primary Account]],tblREGASSLookup[[#This Row],[Primary Name]],tblREGASSLookup[[#This Row],[Secondary Acct]],tblREGASSLookup[[#This Row],[Secondary  Name]],tblREGASSLookup[[#This Row],[Alloc4FUNC]])","v":"1823920DSR COSTS AMORTIZED103085IRRIGATION LOAD CONTROL  - UTAH - 2010OTHER"},1823920,"DSR COSTS AMORTIZED",103085,"IRRIGATION LOAD CONTROL  - UTAH - 2010","OTHER",null,{"$f":"IF(OR(tblREGASSLookup[[#This Row],[Alloc]]=\"IDU\",tblREGASSLookup[[#This Row],[Alloc]]=\"OR\",tblREGASSLookup[[#This Row],[Alloc]]=\"UT\",tblREGASSLookup[[#This Row],[Alloc]]=\"WYU\",tblREGASSLookup[[#This Row],[Alloc]]=\"WYP\",tblREGASSLookup[[#This Row],[Alloc]]=\"CA\",tblREGASSLookup[[#This Row],[Alloc]]=\"WA\"),\"SITUS\",tblREGASSLookup[[#This Row],[Alloc]])","v":"OTHER"},"CUST"]
[{"$f":"CONCATENATE(tblREGASSLookup[[#This Row],[Primary Account]],tblREGASSLookup[[#This Row],[Primary Name]],tblREGASSLookup[[#This Row],[Secondary Acct]],tblREGASSLookup[[#This Row],[Secondary  Name]],tblREGASSLookup[[#This Row],[Alloc4FUNC]])","v":"1823920DSR COSTS AMORTIZED103086HOME ENERGY EFF INCENTIVE PROG - UT 2010OTHER"},1823920,"DSR COSTS AMORTIZED",103086,"HOME ENERGY EFF INCENTIVE PROG - UT 2010","OTHER",null,{"$f":"IF(OR(tblREGASSLookup[[#This Row],[Alloc]]=\"IDU\",tblREGASSLookup[[#This Row],[Alloc]]=\"OR\",tblREGASSLookup[[#This Row],[Alloc]]=\"UT\",tblREGASSLookup[[#This Row],[Alloc]]=\"WYU\",tblREGASSLookup[[#This Row],[Alloc]]=\"WYP\",tblREGASSLookup[[#This Row],[Alloc]]=\"CA\",tblREGASSLookup[[#This Row],[Alloc]]=\"WA\"),\"SITUS\",tblREGASSLookup[[#This Row],[Alloc]])","v":"OTHER"},"CUST"]
[{"$f":"CONCATENATE(tblREGASSLookup[[#This Row],[Primary Account]],tblREGASSLookup[[#This Row],[Primary Name]],tblREGASSLookup[[#This Row],[Secondary Acct]],tblREGASSLookup[[#This Row],[Secondary  Name]],tblREGASSLookup[[#This Row],[Alloc4FUNC]])","v":"1823920DSR COSTS AMORTIZED103087OUTREACH and COMMUNICATIONS - UT 2010OTHER"},1823920,"DSR COSTS AMORTIZED",103087,"OUTREACH and COMMUNICATIONS - UT 2010","OTHER",null,{"$f":"IF(OR(tblREGASSLookup[[#This Row],[Alloc]]=\"IDU\",tblREGASSLookup[[#This Row],[Alloc]]=\"OR\",tblREGASSLookup[[#This Row],[Alloc]]=\"UT\",tblREGASSLookup[[#This Row],[Alloc]]=\"WYU\",tblREGASSLookup[[#This Row],[Alloc]]=\"WYP\",tblREGASSLookup[[#This Row],[Alloc]]=\"CA\",tblREGASSLookup[[#This Row],[Alloc]]=\"WA\"),\"SITUS\",tblREGASSLookup[[#This Row],[Alloc]])","v":"OTHER"},"CUST"]
[{"$f":"CONCATENATE(tblREGASSLookup[[#This Row],[Primary Account]],tblREGASSLookup[[#This Row],[Primary Name]],tblREGASSLookup[[#This Row],[Secondary Acct]],tblREGASSLookup[[#This Row],[Secondary  Name]],tblREGASSLookup[[#This Row],[Alloc4FUNC]])","v":"1823920DSR COSTS AMORTIZED103089ENERGY FINANSWER-WY-2010 CAT3OTHER"},1823920,"DSR COSTS AMORTIZED",103089,"ENERGY FINANSWER-WY-2010 CAT3","OTHER",null,{"$f":"IF(OR(tblREGASSLookup[[#This Row],[Alloc]]=\"IDU\",tblREGASSLookup[[#This Row],[Alloc]]=\"OR\",tblREGASSLookup[[#This Row],[Alloc]]=\"UT\",tblREGASSLookup[[#This Row],[Alloc]]=\"WYU\",tblREGASSLookup[[#This Row],[Alloc]]=\"WYP\",tblREGASSLookup[[#This Row],[Alloc]]=\"CA\",tblREGASSLookup[[#This Row],[Alloc]]=\"WA\"),\"SITUS\",tblREGASSLookup[[#This Row],[Alloc]])","v":"OTHER"},"CUST"]
[{"$f":"CONCATENATE(tblREGASSLookup[[#This Row],[Primary Account]],tblREGASSLookup[[#This Row],[Primary Name]],tblREGASSLookup[[#This Row],[Secondary Acct]],tblREGASSLookup[[#This Row],[Secondary  Name]],tblREGASSLookup[[#This Row],[Alloc4FUNC]])","v":"1823920DSR COSTS AMORTIZED103090INDUSTRIAL FINANSWER-WY-2010 CAT3OTHER"},1823920,"DSR COSTS AMORTIZED",103090,"INDUSTRIAL FINANSWER-WY-2010 CAT3","OTHER",null,{"$f":"IF(OR(tblREGASSLookup[[#This Row],[Alloc]]=\"IDU\",tblREGASSLookup[[#This Row],[Alloc]]=\"OR\",tblREGASSLookup[[#This Row],[Alloc]]=\"UT\",tblREGASSLookup[[#This Row],[Alloc]]=\"WYU\",tblREGASSLookup[[#This Row],[Alloc]]=\"WYP\",tblREGASSLookup[[#This Row],[Alloc]]=\"CA\",tblREGASSLookup[[#This Row],[Alloc]]=\"WA\"),\"SITUS\",tblREGASSLookup[[#This Row],[Alloc]])","v":"OTHER"},"CUST"]
[{"$f":"CONCATENATE(tblREGASSLookup[[#This Row],[Primary Account]],tblREGASSLookup[[#This Row],[Primary Name]],tblREGASSLookup[[#This Row],[Secondary Acct]],tblREGASSLookup[[#This Row],[Secondary  Name]],tblREGASSLookup[[#This Row],[Alloc4FUNC]])","v":"1823920DSR COSTS AMORTIZED103092REFRIGERATOR RECYCLING-WY -2010 CAT1OTHER"},1823920,"DSR COSTS AMORTIZED",103092,"REFRIGERATOR RECYCLING-WY -2010 CAT1","OTHER",null,{"$f":"IF(OR(tblREGASSLookup[[#This Row],[Alloc]]=\"IDU\",tblREGASSLookup[[#This Row],[Alloc]]=\"OR\",tblREGASSLookup[[#This Row],[Alloc]]=\"UT\",tblREGASSLookup[[#This Row],[Alloc]]=\"WYU\",tblREGASSLookup[[#This Row],[Alloc]]=\"WYP\",tblREGASSLookup[[#This Row],[Alloc]]=\"CA\",tblREGASSLookup[[#This Row],[Alloc]]=\"WA\"),\"SITUS\",tblREGASSLookup[[#This Row],[Alloc]])","v":"OTHER"},"CUST"]
[{"$f":"CONCATENATE(tblREGASSLookup[[#This Row],[Primary Account]],tblREGASSLookup[[#This Row],[Primary Name]],tblREGASSLookup[[#This Row],[Secondary Acct]],tblREGASSLookup[[#This Row],[Secondary  Name]],tblREGASSLookup[[#This Row],[Alloc4FUNC]])","v":"1823920DSR COSTS AMORTIZED103093HOME ENERGY EFF INCENT PROG Y-2010 CAT1OTHER"},1823920,"DSR COSTS AMORTIZED",103093,"HOME ENERGY EFF INCENT PROG Y-2010 CAT1","OTHER",null,{"$f":"IF(OR(tblREGASSLookup[[#This Row],[Alloc]]=\"IDU\",tblREGASSLookup[[#This Row],[Alloc]]=\"OR\",tblREGASSLookup[[#This Row],[Alloc]]=\"UT\",tblREGASSLookup[[#This Row],[Alloc]]=\"WYU\",tblREGASSLookup[[#This Row],[Alloc]]=\"WYP\",tblREGASSLookup[[#This Row],[Alloc]]=\"CA\",tblREGASSLookup[[#This Row],[Alloc]]=\"WA\"),\"SITUS\",tblREGASSLookup[[#This Row],[Alloc]])","v":"OTHER"},"CUST"]
[{"$f":"CONCATENATE(tblREGASSLookup[[#This Row],[Primary Account]],tblREGASSLookup[[#This Row],[Primary Name]],tblREGASSLookup[[#This Row],[Secondary Acct]],tblREGASSLookup[[#This Row],[Secondary  Name]],tblREGASSLookup[[#This Row],[Alloc4FUNC]])","v":"1823920DSR COSTS AMORTIZED103094LOW-INCOME WEATHERZTN - WY 2010 CAT1OTHER"},1823920,"DSR COSTS AMORTIZED",103094,"LOW-INCOME WEATHERZTN - WY 2010 CAT1","OTHER",null,{"$f":"IF(OR(tblREGASSLookup[[#This Row],[Alloc]]=\"IDU\",tblREGASSLookup[[#This Row],[Alloc]]=\"OR\",tblREGASSLookup[[#This Row],[Alloc]]=\"UT\",tblREGASSLookup[[#This Row],[Alloc]]=\"WYU\",tblREGASSLookup[[#This Row],[Alloc]]=\"WYP\",tblREGASSLookup[[#This Row],[Alloc]]=\"CA\",tblREGASSLookup[[#This Row],[Alloc]]=\"WA\"),\"SITUS\",tblREGASSLookup[[#This Row],[Alloc]])","v":"OTHER"},"CUST"]
[{"$f":"CONCATENATE(tblREGASSLookup[[#This Row],[Primary Account]],tblREGASSLookup[[#This Row],[Primary Name]],tblREGASSLookup[[#This Row],[Secondary Acct]],tblREGASSLookup[[#This Row],[Secondary  Name]],tblREGASSLookup[[#This Row],[Alloc4FUNC]])","v":"1823920DSR COSTS AMORTIZED103095COMMERCIAL FINANSWER EXP WY-2010 CAT3OTHER"},1823920,"DSR COSTS AMORTIZED",103095,"COMMERCIAL FINANSWER EXP WY-2010 CAT3","OTHER",null,{"$f":"IF(OR(tblREGASSLookup[[#This Row],[Alloc]]=\"IDU\",tblREGASSLookup[[#This Row],[Alloc]]=\"OR\",tblREGASSLookup[[#This Row],[Alloc]]=\"UT\",tblREGASSLookup[[#This Row],[Alloc]]=\"WYU\",tblREGASSLookup[[#This Row],[Alloc]]=\"WYP\",tblREGASSLookup[[#This Row],[Alloc]]=\"CA\",tblREGASSLookup[[#This Row],[Alloc]]=\"WA\"),\"SITUS\",tblREGASSLookup[[#This Row],[Alloc]])","v":"OTHER"},"CUST"]
[{"$f":"CONCATENATE(tblREGASSLookup[[#This Row],[Primary Account]],tblREGASSLookup[[#This Row],[Primary Name]],tblREGASSLookup[[#This Row],[Secondary Acct]],tblREGASSLookup[[#This Row],[Secondary  Name]],tblREGASSLookup[[#This Row],[Alloc4FUNC]])","v":"1823920DSR COSTS AMORTIZED103096INDUSTRIAL FINANSWER EXP WY-2010 CAT3OTHER"},1823920,"DSR COSTS AMORTIZED",103096,"INDUSTRIAL FINANSWER EXP WY-2010 CAT3","OTHER",null,{"$f":"IF(OR(tblREGASSLookup[[#This Row],[Alloc]]=\"IDU\",tblREGASSLookup[[#This Row],[Alloc]]=\"OR\",tblREGASSLookup[[#This Row],[Alloc]]=\"UT\",tblREGASSLookup[[#This Row],[Alloc]]=\"WYU\",tblREGASSLookup[[#This Row],[Alloc]]=\"WYP\",tblREGASSLookup[[#This Row],[Alloc]]=\"CA\",tblREGASSLookup[[#This Row],[Alloc]]=\"WA\"),\"SITUS\",tblREGASSLookup[[#This Row],[Alloc]])","v":"OTHER"},"CUST"]
[{"$f":"CONCATENATE(tblREGASSLookup[[#This Row],[Primary Account]],tblREGASSLookup[[#This Row],[Primary Name]],tblREGASSLookup[[#This Row],[Secondary Acct]],tblREGASSLookup[[#This Row],[Secondary  Name]],tblREGASSLookup[[#This Row],[Alloc4FUNC]])","v":"1823920DSR COSTS AMORTIZED103097SELF DIRECT - COMMERCIAL -WY-2010 CAT3OTHER"},1823920,"DSR COSTS AMORTIZED",103097,"SELF DIRECT - COMMERCIAL -WY-2010 CAT3","OTHER",null,{"$f":"IF(OR(tblREGASSLookup[[#This Row],[Alloc]]=\"IDU\",tblREGASSLookup[[#This Row],[Alloc]]=\"OR\",tblREGASSLookup[[#This Row],[Alloc]]=\"UT\",tblREGASSLookup[[#This Row],[Alloc]]=\"WYU\",tblREGASSLookup[[#This Row],[Alloc]]=\"WYP\",tblREGASSLookup[[#This Row],[Alloc]]=\"CA\",tblREGASSLookup[[#This Row],[Alloc]]=\"WA\"),\"SITUS\",tblREGASSLookup[[#This Row],[Alloc]])","v":"OTHER"},"CUST"]
[{"$f":"CONCATENATE(tblREGASSLookup[[#This Row],[Primary Account]],tblREGASSLookup[[#This Row],[Primary Name]],tblREGASSLookup[[#This Row],[Secondary Acct]],tblREGASSLookup[[#This Row],[Secondary  Name]],tblREGASSLookup[[#This Row],[Alloc4FUNC]])","v":"1823920DSR COSTS AMORTIZED103098SELF DIRECT -INDUSTRIAL -WY-2010 CAT3OTHER"},1823920,"DSR COSTS AMORTIZED",103098,"SELF DIRECT -INDUSTRIAL -WY-2010 CAT3","OTHER",null,{"$f":"IF(OR(tblREGASSLookup[[#This Row],[Alloc]]=\"IDU\",tblREGASSLookup[[#This Row],[Alloc]]=\"OR\",tblREGASSLookup[[#This Row],[Alloc]]=\"UT\",tblREGASSLookup[[#This Row],[Alloc]]=\"WYU\",tblREGASSLookup[[#This Row],[Alloc]]=\"WYP\",tblREGASSLookup[[#This Row],[Alloc]]=\"CA\",tblREGASSLookup[[#This Row],[Alloc]]=\"WA\"),\"SITUS\",tblREGASSLookup[[#This Row],[Alloc]])","v":"OTHER"},"CUST"]
[{"$f":"CONCATENATE(tblREGASSLookup[[#This Row],[Primary Account]],tblREGASSLookup[[#This Row],[Primary Name]],tblREGASSLookup[[#This Row],[Secondary Acct]],tblREGASSLookup[[#This Row],[Secondary  Name]],tblREGASSLookup[[#This Row],[Alloc4FUNC]])","v":"1823920DSR COSTS AMORTIZED103099COMMERCIAL FINANSWER EXP- WY-2010 CAT2OTHER"},1823920,"DSR COSTS AMORTIZED",103099,"COMMERCIAL FINANSWER EXP- WY-2010 CAT2","OTHER",null,{"$f":"IF(OR(tblREGASSLookup[[#This Row],[Alloc]]=\"IDU\",tblREGASSLookup[[#This Row],[Alloc]]=\"OR\",tblREGASSLookup[[#This Row],[Alloc]]=\"UT\",tblREGASSLookup[[#This Row],[Alloc]]=\"WYU\",tblREGASSLookup[[#This Row],[Alloc]]=\"WYP\",tblREGASSLookup[[#This Row],[Alloc]]=\"CA\",tblREGASSLookup[[#This Row],[Alloc]]=\"WA\"),\"SITUS\",tblREGASSLookup[[#This Row],[Alloc]])","v":"OTHER"},"CUST"]
[{"$f":"CONCATENATE(tblREGASSLookup[[#This Row],[Primary Account]],tblREGASSLookup[[#This Row],[Primary Name]],tblREGASSLookup[[#This Row],[Secondary Acct]],tblREGASSLookup[[#This Row],[Secondary  Name]],tblREGASSLookup[[#This Row],[Alloc4FUNC]])","v":"1823920DSR COSTS AMORTIZED103100INDUSTRIAL FINAN EXPRESS WY-2010 CAT2OTHER"},1823920,"DSR COSTS AMORTIZED",103100,"INDUSTRIAL FINAN EXPRESS WY-2010 CAT2","OTHER",null,{"$f":"IF(OR(tblREGASSLookup[[#This Row],[Alloc]]=\"IDU\",tblREGASSLookup[[#This Row],[Alloc]]=\"OR\",tblREGASSLookup[[#This Row],[Alloc]]=\"UT\",tblREGASSLookup[[#This Row],[Alloc]]=\"WYU\",tblREGASSLookup[[#This Row],[Alloc]]=\"WYP\",tblREGASSLookup[[#This Row],[Alloc]]=\"CA\",tblREGASSLookup[[#This Row],[Alloc]]=\"WA\"),\"SITUS\",tblREGASSLookup[[#This Row],[Alloc]])","v":"OTHER"},"CUST"]
[{"$f":"CONCATENATE(tblREGASSLookup[[#This Row],[Primary Account]],tblREGASSLookup[[#This Row],[Primary Name]],tblREGASSLookup[[#This Row],[Secondary Acct]],tblREGASSLookup[[#This Row],[Secondary  Name]],tblREGASSLookup[[#This Row],[Alloc4FUNC]])","v":"1823920DSR COSTS AMORTIZED103101ENERGY FINANSWER -WY 2010 CAT2OTHER"},1823920,"DSR COSTS AMORTIZED",103101,"ENERGY FINANSWER -WY 2010 CAT2","OTHER",null,{"$f":"IF(OR(tblREGASSLookup[[#This Row],[Alloc]]=\"IDU\",tblREGASSLookup[[#This Row],[Alloc]]=\"OR\",tblREGASSLookup[[#This Row],[Alloc]]=\"UT\",tblREGASSLookup[[#This Row],[Alloc]]=\"WYU\",tblREGASSLookup[[#This Row],[Alloc]]=\"WYP\",tblREGASSLookup[[#This Row],[Alloc]]=\"CA\",tblREGASSLookup[[#This Row],[Alloc]]=\"WA\"),\"SITUS\",tblREGASSLookup[[#This Row],[Alloc]])","v":"OTHER"},"CUST"]
[{"$f":"CONCATENATE(tblREGASSLookup[[#This Row],[Primary Account]],tblREGASSLookup[[#This Row],[Primary Name]],tblREGASSLookup[[#This Row],[Secondary Acct]],tblREGASSLookup[[#This Row],[Secondary  Name]],tblREGASSLookup[[#This Row],[Alloc4FUNC]])","v":"1823920DSR COSTS AMORTIZED103102INDUSTRIAL FINANSWER -WY 2010 CAT2OTHER"},1823920,"DSR COSTS AMORTIZED",103102,"INDUSTRIAL FINANSWER -WY 2010 CAT2","OTHER",null,{"$f":"IF(OR(tblREGASSLookup[[#This Row],[Alloc]]=\"IDU\",tblREGASSLookup[[#This Row],[Alloc]]=\"OR\",tblREGASSLookup[[#This Row],[Alloc]]=\"UT\",tblREGASSLookup[[#This Row],[Alloc]]=\"WYU\",tblREGASSLookup[[#This Row],[Alloc]]=\"WYP\",tblREGASSLookup[[#This Row],[Alloc]]=\"CA\",tblREGASSLookup[[#This Row],[Alloc]]=\"WA\"),\"SITUS\",tblREGASSLookup[[#This Row],[Alloc]])","v":"OTHER"},"CUST"]
[{"$f":"CONCATENATE(tblREGASSLookup[[#This Row],[Primary Account]],tblREGASSLookup[[#This Row],[Primary Name]],tblREGASSLookup[[#This Row],[Secondary Acct]],tblREGASSLookup[[#This Row],[Secondary  Name]],tblREGASSLookup[[#This Row],[Alloc4FUNC]])","v":"1823920DSR COSTS AMORTIZED103103Check Disb-Wires/ACH In Clearing - BTOTHER"},1823920,"DSR COSTS AMORTIZED",103103,"Check Disb-Wires/ACH In Clearing - BT","OTHER",null,{"$f":"IF(OR(tblREGASSLookup[[#This Row],[Alloc]]=\"IDU\",tblREGASSLookup[[#This Row],[Alloc]]=\"OR\",tblREGASSLookup[[#This Row],[Alloc]]=\"UT\",tblREGASSLookup[[#This Row],[Alloc]]=\"WYU\",tblREGASSLookup[[#This Row],[Alloc]]=\"WYP\",tblREGASSLookup[[#This Row],[Alloc]]=\"CA\",tblREGASSLookup[[#This Row],[Alloc]]=\"WA\"),\"SITUS\",tblREGASSLookup[[#This Row],[Alloc]])","v":"OTHER"},"CUST"]
[{"$f":"CONCATENATE(tblREGASSLookup[[#This Row],[Primary Account]],tblREGASSLookup[[#This Row],[Primary Name]],tblREGASSLookup[[#This Row],[Secondary Acct]],tblREGASSLookup[[#This Row],[Secondary  Name]],tblREGASSLookup[[#This Row],[Alloc4FUNC]])","v":"1823920DSR COSTS AMORTIZED103104Check Disb-Wires/ACH Out Clearing - BTOTHER"},1823920,"DSR COSTS AMORTIZED",103104,"Check Disb-Wires/ACH Out Clearing - BT","OTHER",null,{"$f":"IF(OR(tblREGASSLookup[[#This Row],[Alloc]]=\"IDU\",tblREGASSLookup[[#This Row],[Alloc]]=\"OR\",tblREGASSLookup[[#This Row],[Alloc]]=\"UT\",tblREGASSLookup[[#This Row],[Alloc]]=\"WYU\",tblREGASSLookup[[#This Row],[Alloc]]=\"WYP\",tblREGASSLookup[[#This Row],[Alloc]]=\"CA\",tblREGASSLookup[[#This Row],[Alloc]]=\"WA\"),\"SITUS\",tblREGASSLookup[[#This Row],[Alloc]])","v":"OTHER"},"CUST"]
[{"$f":"CONCATENATE(tblREGASSLookup[[#This Row],[Primary Account]],tblREGASSLookup[[#This Row],[Primary Name]],tblREGASSLookup[[#This Row],[Secondary Acct]],tblREGASSLookup[[#This Row],[Secondary  Name]],tblREGASSLookup[[#This Row],[Alloc4FUNC]])","v":"1823920DSR COSTS AMORTIZED103137Company Initiatives DEI Study- WashingtoOTHER"},1823920,"DSR COSTS AMORTIZED",103137,"Company Initiatives DEI Study- Washingto","OTHER",null,{"$f":"IF(OR(tblREGASSLookup[[#This Row],[Alloc]]=\"IDU\",tblREGASSLookup[[#This Row],[Alloc]]=\"OR\",tblREGASSLookup[[#This Row],[Alloc]]=\"UT\",tblREGASSLookup[[#This Row],[Alloc]]=\"WYU\",tblREGASSLookup[[#This Row],[Alloc]]=\"WYP\",tblREGASSLookup[[#This Row],[Alloc]]=\"CA\",tblREGASSLookup[[#This Row],[Alloc]]=\"WA\"),\"SITUS\",tblREGASSLookup[[#This Row],[Alloc]])","v":"OTHER"},"CUST"]
[{"$f":"CONCATENATE(tblREGASSLookup[[#This Row],[Primary Account]],tblREGASSLookup[[#This Row],[Primary Name]],tblREGASSLookup[[#This Row],[Secondary Acct]],tblREGASSLookup[[#This Row],[Secondary  Name]],tblREGASSLookup[[#This Row],[Alloc4FUNC]])","v":"1823920DSR COSTS AMORTIZED103163Commercial Direct Install - Utah - 2011OTHER"},1823920,"DSR COSTS AMORTIZED",103163,"Commercial Direct Install - Utah - 2011","OTHER",null,{"$f":"IF(OR(tblREGASSLookup[[#This Row],[Alloc]]=\"IDU\",tblREGASSLookup[[#This Row],[Alloc]]=\"OR\",tblREGASSLookup[[#This Row],[Alloc]]=\"UT\",tblREGASSLookup[[#This Row],[Alloc]]=\"WYU\",tblREGASSLookup[[#This Row],[Alloc]]=\"WYP\",tblREGASSLookup[[#This Row],[Alloc]]=\"CA\",tblREGASSLookup[[#This Row],[Alloc]]=\"WA\"),\"SITUS\",tblREGASSLookup[[#This Row],[Alloc]])","v":"OTHER"},"CUST"]
[{"$f":"CONCATENATE(tblREGASSLookup[[#This Row],[Primary Account]],tblREGASSLookup[[#This Row],[Primary Name]],tblREGASSLookup[[#This Row],[Secondary Acct]],tblREGASSLookup[[#This Row],[Secondary  Name]],tblREGASSLookup[[#This Row],[Alloc4FUNC]])","v":"1823920DSR COSTS AMORTIZED103164Commercial Curtailment - Utah - 2011OTHER"},1823920,"DSR COSTS AMORTIZED",103164,"Commercial Curtailment - Utah - 2011","OTHER",null,{"$f":"IF(OR(tblREGASSLookup[[#This Row],[Alloc]]=\"IDU\",tblREGASSLookup[[#This Row],[Alloc]]=\"OR\",tblREGASSLookup[[#This Row],[Alloc]]=\"UT\",tblREGASSLookup[[#This Row],[Alloc]]=\"WYU\",tblREGASSLookup[[#This Row],[Alloc]]=\"WYP\",tblREGASSLookup[[#This Row],[Alloc]]=\"CA\",tblREGASSLookup[[#This Row],[Alloc]]=\"WA\"),\"SITUS\",tblREGASSLookup[[#This Row],[Alloc]])","v":"OTHER"},"CUST"]
[{"$f":"CONCATENATE(tblREGASSLookup[[#This Row],[Primary Account]],tblREGASSLookup[[#This Row],[Primary Name]],tblREGASSLookup[[#This Row],[Secondary Acct]],tblREGASSLookup[[#This Row],[Secondary  Name]],tblREGASSLookup[[#This Row],[Alloc4FUNC]])","v":"1823920DSR COSTS AMORTIZED103165Commercial Direct Install - WashingtonOTHER"},1823920,"DSR COSTS AMORTIZED",103165,"Commercial Direct Install - Washington","OTHER",null,{"$f":"IF(OR(tblREGASSLookup[[#This Row],[Alloc]]=\"IDU\",tblREGASSLookup[[#This Row],[Alloc]]=\"OR\",tblREGASSLookup[[#This Row],[Alloc]]=\"UT\",tblREGASSLookup[[#This Row],[Alloc]]=\"WYU\",tblREGASSLookup[[#This Row],[Alloc]]=\"WYP\",tblREGASSLookup[[#This Row],[Alloc]]=\"CA\",tblREGASSLookup[[#This Row],[Alloc]]=\"WA\"),\"SITUS\",tblREGASSLookup[[#This Row],[Alloc]])","v":"OTHER"},"CUST"]
[{"$f":"CONCATENATE(tblREGASSLookup[[#This Row],[Primary Account]],tblREGASSLookup[[#This Row],[Primary Name]],tblREGASSLookup[[#This Row],[Secondary Acct]],tblREGASSLookup[[#This Row],[Secondary  Name]],tblREGASSLookup[[#This Row],[Alloc4FUNC]])","v":"1823920DSR COSTS AMORTIZED103168CALIFORNIA DSM EXPENSE - 2011OTHER"},1823920,"DSR COSTS AMORTIZED",103168,"CALIFORNIA DSM EXPENSE - 2011","OTHER",null,{"$f":"IF(OR(tblREGASSLookup[[#This Row],[Alloc]]=\"IDU\",tblREGASSLookup[[#This Row],[Alloc]]=\"OR\",tblREGASSLookup[[#This Row],[Alloc]]=\"UT\",tblREGASSLookup[[#This Row],[Alloc]]=\"WYU\",tblREGASSLookup[[#This Row],[Alloc]]=\"WYP\",tblREGASSLookup[[#This Row],[Alloc]]=\"CA\",tblREGASSLookup[[#This Row],[Alloc]]=\"WA\"),\"SITUS\",tblREGASSLookup[[#This Row],[Alloc]])","v":"OTHER"},"CUST"]
[{"$f":"CONCATENATE(tblREGASSLookup[[#This Row],[Primary Account]],tblREGASSLookup[[#This Row],[Primary Name]],tblREGASSLookup[[#This Row],[Secondary Acct]],tblREGASSLookup[[#This Row],[Secondary  Name]],tblREGASSLookup[[#This Row],[Alloc4FUNC]])","v":"1823920DSR COSTS AMORTIZED103169Commercial Curtailment - OregonOTHER"},1823920,"DSR COSTS AMORTIZED",103169,"Commercial Curtailment - Oregon","OTHER",null,{"$f":"IF(OR(tblREGASSLookup[[#This Row],[Alloc]]=\"IDU\",tblREGASSLookup[[#This Row],[Alloc]]=\"OR\",tblREGASSLookup[[#This Row],[Alloc]]=\"UT\",tblREGASSLookup[[#This Row],[Alloc]]=\"WYU\",tblREGASSLookup[[#This Row],[Alloc]]=\"WYP\",tblREGASSLookup[[#This Row],[Alloc]]=\"CA\",tblREGASSLookup[[#This Row],[Alloc]]=\"WA\"),\"SITUS\",tblREGASSLookup[[#This Row],[Alloc]])","v":"OTHER"},"CUST"]
[{"$f":"CONCATENATE(tblREGASSLookup[[#This Row],[Primary Account]],tblREGASSLookup[[#This Row],[Primary Name]],tblREGASSLookup[[#This Row],[Secondary Acct]],tblREGASSLookup[[#This Row],[Secondary  Name]],tblREGASSLookup[[#This Row],[Alloc4FUNC]])","v":"1823920DSR COSTS AMORTIZED103181A/C LOAD CONTROL - RESIDENTIAL/UTAH - 20OTHER"},1823920,"DSR COSTS AMORTIZED",103181,"A/C LOAD CONTROL - RESIDENTIAL/UTAH - 20","OTHER",null,{"$f":"IF(OR(tblREGASSLookup[[#This Row],[Alloc]]=\"IDU\",tblREGASSLookup[[#This Row],[Alloc]]=\"OR\",tblREGASSLookup[[#This Row],[Alloc]]=\"UT\",tblREGASSLookup[[#This Row],[Alloc]]=\"WYU\",tblREGASSLookup[[#This Row],[Alloc]]=\"WYP\",tblREGASSLookup[[#This Row],[Alloc]]=\"CA\",tblREGASSLookup[[#This Row],[Alloc]]=\"WA\"),\"SITUS\",tblREGASSLookup[[#This Row],[Alloc]])","v":"OTHER"},"CUST"]
[{"$f":"CONCATENATE(tblREGASSLookup[[#This Row],[Primary Account]],tblREGASSLookup[[#This Row],[Primary Name]],tblREGASSLookup[[#This Row],[Secondary Acct]],tblREGASSLookup[[#This Row],[Secondary  Name]],tblREGASSLookup[[#This Row],[Alloc4FUNC]])","v":"1823920DSR COSTS AMORTIZED103182AIR CONDITIONING - UTAH - 2011OTHER"},1823920,"DSR COSTS AMORTIZED",103182,"AIR CONDITIONING - UTAH - 2011","OTHER",null,{"$f":"IF(OR(tblREGASSLookup[[#This Row],[Alloc]]=\"IDU\",tblREGASSLookup[[#This Row],[Alloc]]=\"OR\",tblREGASSLookup[[#This Row],[Alloc]]=\"UT\",tblREGASSLookup[[#This Row],[Alloc]]=\"WYU\",tblREGASSLookup[[#This Row],[Alloc]]=\"WYP\",tblREGASSLookup[[#This Row],[Alloc]]=\"CA\",tblREGASSLookup[[#This Row],[Alloc]]=\"WA\"),\"SITUS\",tblREGASSLookup[[#This Row],[Alloc]])","v":"OTHER"},"CUST"]
[{"$f":"CONCATENATE(tblREGASSLookup[[#This Row],[Primary Account]],tblREGASSLookup[[#This Row],[Primary Name]],tblREGASSLookup[[#This Row],[Secondary Acct]],tblREGASSLookup[[#This Row],[Secondary  Name]],tblREGASSLookup[[#This Row],[Alloc4FUNC]])","v":"1823920DSR COSTS AMORTIZED103183ENERGY FINANSWER - UTAH - 2011OTHER"},1823920,"DSR COSTS AMORTIZED",103183,"ENERGY FINANSWER - UTAH - 2011","OTHER",null,{"$f":"IF(OR(tblREGASSLookup[[#This Row],[Alloc]]=\"IDU\",tblREGASSLookup[[#This Row],[Alloc]]=\"OR\",tblREGASSLookup[[#This Row],[Alloc]]=\"UT\",tblREGASSLookup[[#This Row],[Alloc]]=\"WYU\",tblREGASSLookup[[#This Row],[Alloc]]=\"WYP\",tblREGASSLookup[[#This Row],[Alloc]]=\"CA\",tblREGASSLookup[[#This Row],[Alloc]]=\"WA\"),\"SITUS\",tblREGASSLookup[[#This Row],[Alloc]])","v":"OTHER"},"CUST"]
[{"$f":"CONCATENATE(tblREGASSLookup[[#This Row],[Primary Account]],tblREGASSLookup[[#This Row],[Primary Name]],tblREGASSLookup[[#This Row],[Secondary Acct]],tblREGASSLookup[[#This Row],[Secondary  Name]],tblREGASSLookup[[#This Row],[Alloc4FUNC]])","v":"1823920DSR COSTS AMORTIZED103184INDUSTRIAL FINANSWER - UTAH - 2011OTHER"},1823920,"DSR COSTS AMORTIZED",103184,"INDUSTRIAL FINANSWER - UTAH - 2011","OTHER",null,{"$f":"IF(OR(tblREGASSLookup[[#This Row],[Alloc]]=\"IDU\",tblREGASSLookup[[#This Row],[Alloc]]=\"OR\",tblREGASSLookup[[#This Row],[Alloc]]=\"UT\",tblREGASSLookup[[#This Row],[Alloc]]=\"WYU\",tblREGASSLookup[[#This Row],[Alloc]]=\"WYP\",tblREGASSLookup[[#This Row],[Alloc]]=\"CA\",tblREGASSLookup[[#This Row],[Alloc]]=\"WA\"),\"SITUS\",tblREGASSLookup[[#This Row],[Alloc]])","v":"OTHER"},"CUST"]
[{"$f":"CONCATENATE(tblREGASSLookup[[#This Row],[Primary Account]],tblREGASSLookup[[#This Row],[Primary Name]],tblREGASSLookup[[#This Row],[Secondary Acct]],tblREGASSLookup[[#This Row],[Secondary  Name]],tblREGASSLookup[[#This Row],[Alloc4FUNC]])","v":"1823920DSR COSTS AMORTIZED103185LOW INCOME - UTAH - 2011OTHER"},1823920,"DSR COSTS AMORTIZED",103185,"LOW INCOME - UTAH - 2011","OTHER",null,{"$f":"IF(OR(tblREGASSLookup[[#This Row],[Alloc]]=\"IDU\",tblREGASSLookup[[#This Row],[Alloc]]=\"OR\",tblREGASSLookup[[#This Row],[Alloc]]=\"UT\",tblREGASSLookup[[#This Row],[Alloc]]=\"WYU\",tblREGASSLookup[[#This Row],[Alloc]]=\"WYP\",tblREGASSLookup[[#This Row],[Alloc]]=\"CA\",tblREGASSLookup[[#This Row],[Alloc]]=\"WA\"),\"SITUS\",tblREGASSLookup[[#This Row],[Alloc]])","v":"OTHER"},"CUST"]
[{"$f":"CONCATENATE(tblREGASSLookup[[#This Row],[Primary Account]],tblREGASSLookup[[#This Row],[Primary Name]],tblREGASSLookup[[#This Row],[Secondary Acct]],tblREGASSLookup[[#This Row],[Secondary  Name]],tblREGASSLookup[[#This Row],[Alloc4FUNC]])","v":"1823920DSR COSTS AMORTIZED103186Power Forward - Utah - 2011OTHER"},1823920,"DSR COSTS AMORTIZED",103186,"Power Forward - Utah - 2011","OTHER",null,{"$f":"IF(OR(tblREGASSLookup[[#This Row],[Alloc]]=\"IDU\",tblREGASSLookup[[#This Row],[Alloc]]=\"OR\",tblREGASSLookup[[#This Row],[Alloc]]=\"UT\",tblREGASSLookup[[#This Row],[Alloc]]=\"WYU\",tblREGASSLookup[[#This Row],[Alloc]]=\"WYP\",tblREGASSLookup[[#This Row],[Alloc]]=\"CA\",tblREGASSLookup[[#This Row],[Alloc]]=\"WA\"),\"SITUS\",tblREGASSLookup[[#This Row],[Alloc]])","v":"OTHER"},"CUST"]
[{"$f":"CONCATENATE(tblREGASSLookup[[#This Row],[Primary Account]],tblREGASSLookup[[#This Row],[Primary Name]],tblREGASSLookup[[#This Row],[Secondary Acct]],tblREGASSLookup[[#This Row],[Secondary  Name]],tblREGASSLookup[[#This Row],[Alloc4FUNC]])","v":"1823920DSR COSTS AMORTIZED103187REFRIGERATOR RECYCLING PGM- UTAH - 2011OTHER"},1823920,"DSR COSTS AMORTIZED",103187,"REFRIGERATOR RECYCLING PGM- UTAH - 2011","OTHER",null,{"$f":"IF(OR(tblREGASSLookup[[#This Row],[Alloc]]=\"IDU\",tblREGASSLookup[[#This Row],[Alloc]]=\"OR\",tblREGASSLookup[[#This Row],[Alloc]]=\"UT\",tblREGASSLookup[[#This Row],[Alloc]]=\"WYU\",tblREGASSLookup[[#This Row],[Alloc]]=\"WYP\",tblREGASSLookup[[#This Row],[Alloc]]=\"CA\",tblREGASSLookup[[#This Row],[Alloc]]=\"WA\"),\"SITUS\",tblREGASSLookup[[#This Row],[Alloc]])","v":"OTHER"},"CUST"]
[{"$f":"CONCATENATE(tblREGASSLookup[[#This Row],[Primary Account]],tblREGASSLookup[[#This Row],[Primary Name]],tblREGASSLookup[[#This Row],[Secondary Acct]],tblREGASSLookup[[#This Row],[Secondary  Name]],tblREGASSLookup[[#This Row],[Alloc4FUNC]])","v":"1823920DSR COSTS AMORTIZED103188COMMERCIAL SELF-DIRECT - UTAH - 2011OTHER"},1823920,"DSR COSTS AMORTIZED",103188,"COMMERCIAL SELF-DIRECT - UTAH - 2011","OTHER",null,{"$f":"IF(OR(tblREGASSLookup[[#This Row],[Alloc]]=\"IDU\",tblREGASSLookup[[#This Row],[Alloc]]=\"OR\",tblREGASSLookup[[#This Row],[Alloc]]=\"UT\",tblREGASSLookup[[#This Row],[Alloc]]=\"WYU\",tblREGASSLookup[[#This Row],[Alloc]]=\"WYP\",tblREGASSLookup[[#This Row],[Alloc]]=\"CA\",tblREGASSLookup[[#This Row],[Alloc]]=\"WA\"),\"SITUS\",tblREGASSLookup[[#This Row],[Alloc]])","v":"OTHER"},"CUST"]
[{"$f":"CONCATENATE(tblREGASSLookup[[#This Row],[Primary Account]],tblREGASSLookup[[#This Row],[Primary Name]],tblREGASSLookup[[#This Row],[Secondary Acct]],tblREGASSLookup[[#This Row],[Secondary  Name]],tblREGASSLookup[[#This Row],[Alloc4FUNC]])","v":"1823920DSR COSTS AMORTIZED103189INDUSTRIAL SELF-DIRECT - UTAH - 2011OTHER"},1823920,"DSR COSTS AMORTIZED",103189,"INDUSTRIAL SELF-DIRECT - UTAH - 2011","OTHER",null,{"$f":"IF(OR(tblREGASSLookup[[#This Row],[Alloc]]=\"IDU\",tblREGASSLookup[[#This Row],[Alloc]]=\"OR\",tblREGASSLookup[[#This Row],[Alloc]]=\"UT\",tblREGASSLookup[[#This Row],[Alloc]]=\"WYU\",tblREGASSLookup[[#This Row],[Alloc]]=\"WYP\",tblREGASSLookup[[#This Row],[Alloc]]=\"CA\",tblREGASSLookup[[#This Row],[Alloc]]=\"WA\"),\"SITUS\",tblREGASSLookup[[#This Row],[Alloc]])","v":"OTHER"},"CUST"]
[{"$f":"CONCATENATE(tblREGASSLookup[[#This Row],[Primary Account]],tblREGASSLookup[[#This Row],[Primary Name]],tblREGASSLookup[[#This Row],[Secondary Acct]],tblREGASSLookup[[#This Row],[Secondary  Name]],tblREGASSLookup[[#This Row],[Alloc4FUNC]])","v":"1823920DSR COSTS AMORTIZED103190RESIDENTIAL NEW CONSTRUCTION - UTAH - 20OTHER"},1823920,"DSR COSTS AMORTIZED",103190,"RESIDENTIAL NEW CONSTRUCTION - UTAH - 20","OTHER",null,{"$f":"IF(OR(tblREGASSLookup[[#This Row],[Alloc]]=\"IDU\",tblREGASSLookup[[#This Row],[Alloc]]=\"OR\",tblREGASSLookup[[#This Row],[Alloc]]=\"UT\",tblREGASSLookup[[#This Row],[Alloc]]=\"WYU\",tblREGASSLookup[[#This Row],[Alloc]]=\"WYP\",tblREGASSLookup[[#This Row],[Alloc]]=\"CA\",tblREGASSLookup[[#This Row],[Alloc]]=\"WA\"),\"SITUS\",tblREGASSLookup[[#This Row],[Alloc]])","v":"OTHER"},"CUST"]
[{"$f":"CONCATENATE(tblREGASSLookup[[#This Row],[Primary Account]],tblREGASSLookup[[#This Row],[Primary Name]],tblREGASSLookup[[#This Row],[Secondary Acct]],tblREGASSLookup[[#This Row],[Secondary  Name]],tblREGASSLookup[[#This Row],[Alloc4FUNC]])","v":"1823920DSR COSTS AMORTIZED103191COMMERCIAL FINANSWER EXPRESS - UTAH - 20OTHER"},1823920,"DSR COSTS AMORTIZED",103191,"COMMERCIAL FINANSWER EXPRESS - UTAH - 20","OTHER",null,{"$f":"IF(OR(tblREGASSLookup[[#This Row],[Alloc]]=\"IDU\",tblREGASSLookup[[#This Row],[Alloc]]=\"OR\",tblREGASSLookup[[#This Row],[Alloc]]=\"UT\",tblREGASSLookup[[#This Row],[Alloc]]=\"WYU\",tblREGASSLookup[[#This Row],[Alloc]]=\"WYP\",tblREGASSLookup[[#This Row],[Alloc]]=\"CA\",tblREGASSLookup[[#This Row],[Alloc]]=\"WA\"),\"SITUS\",tblREGASSLookup[[#This Row],[Alloc]])","v":"OTHER"},"CUST"]
[{"$f":"CONCATENATE(tblREGASSLookup[[#This Row],[Primary Account]],tblREGASSLookup[[#This Row],[Primary Name]],tblREGASSLookup[[#This Row],[Secondary Acct]],tblREGASSLookup[[#This Row],[Secondary  Name]],tblREGASSLookup[[#This Row],[Alloc4FUNC]])","v":"1823920DSR COSTS AMORTIZED103192INDUSTRIAL FINANSWER EXPRESS - UTAH - 20OTHER"},1823920,"DSR COSTS AMORTIZED",103192,"INDUSTRIAL FINANSWER EXPRESS - UTAH - 20","OTHER",null,{"$f":"IF(OR(tblREGASSLookup[[#This Row],[Alloc]]=\"IDU\",tblREGASSLookup[[#This Row],[Alloc]]=\"OR\",tblREGASSLookup[[#This Row],[Alloc]]=\"UT\",tblREGASSLookup[[#This Row],[Alloc]]=\"WYU\",tblREGASSLookup[[#This Row],[Alloc]]=\"WYP\",tblREGASSLookup[[#This Row],[Alloc]]=\"CA\",tblREGASSLookup[[#This Row],[Alloc]]=\"WA\"),\"SITUS\",tblREGASSLookup[[#This Row],[Alloc]])","v":"OTHER"},"CUST"]
[{"$f":"CONCATENATE(tblREGASSLookup[[#This Row],[Primary Account]],tblREGASSLookup[[#This Row],[Primary Name]],tblREGASSLookup[[#This Row],[Secondary Acct]],tblREGASSLookup[[#This Row],[Secondary  Name]],tblREGASSLookup[[#This Row],[Alloc4FUNC]])","v":"1823920DSR COSTS AMORTIZED103193RETROFIT COMMISSIONING PROGRAM  - UTAH -OTHER"},1823920,"DSR COSTS AMORTIZED",103193,"RETROFIT COMMISSIONING PROGRAM  - UTAH -","OTHER",null,{"$f":"IF(OR(tblREGASSLookup[[#This Row],[Alloc]]=\"IDU\",tblREGASSLookup[[#This Row],[Alloc]]=\"OR\",tblREGASSLookup[[#This Row],[Alloc]]=\"UT\",tblREGASSLookup[[#This Row],[Alloc]]=\"WYU\",tblREGASSLookup[[#This Row],[Alloc]]=\"WYP\",tblREGASSLookup[[#This Row],[Alloc]]=\"CA\",tblREGASSLookup[[#This Row],[Alloc]]=\"WA\"),\"SITUS\",tblREGASSLookup[[#This Row],[Alloc]])","v":"OTHER"},"CUST"]
[{"$f":"CONCATENATE(tblREGASSLookup[[#This Row],[Primary Account]],tblREGASSLookup[[#This Row],[Primary Name]],tblREGASSLookup[[#This Row],[Secondary Acct]],tblREGASSLookup[[#This Row],[Secondary  Name]],tblREGASSLookup[[#This Row],[Alloc4FUNC]])","v":"1823920DSR COSTS AMORTIZED103195IRRIGATION LOAD CONTROL  - UTAH - 2011OTHER"},1823920,"DSR COSTS AMORTIZED",103195,"IRRIGATION LOAD CONTROL  - UTAH - 2011","OTHER",null,{"$f":"IF(OR(tblREGASSLookup[[#This Row],[Alloc]]=\"IDU\",tblREGASSLookup[[#This Row],[Alloc]]=\"OR\",tblREGASSLookup[[#This Row],[Alloc]]=\"UT\",tblREGASSLookup[[#This Row],[Alloc]]=\"WYU\",tblREGASSLookup[[#This Row],[Alloc]]=\"WYP\",tblREGASSLookup[[#This Row],[Alloc]]=\"CA\",tblREGASSLookup[[#This Row],[Alloc]]=\"WA\"),\"SITUS\",tblREGASSLookup[[#This Row],[Alloc]])","v":"OTHER"},"CUST"]
[{"$f":"CONCATENATE(tblREGASSLookup[[#This Row],[Primary Account]],tblREGASSLookup[[#This Row],[Primary Name]],tblREGASSLookup[[#This Row],[Secondary Acct]],tblREGASSLookup[[#This Row],[Secondary  Name]],tblREGASSLookup[[#This Row],[Alloc4FUNC]])","v":"1823920DSR COSTS AMORTIZED103196HOME ENERGY EFF INCENTIVE PROG - UT 2011OTHER"},1823920,"DSR COSTS AMORTIZED",103196,"HOME ENERGY EFF INCENTIVE PROG - UT 2011","OTHER",null,{"$f":"IF(OR(tblREGASSLookup[[#This Row],[Alloc]]=\"IDU\",tblREGASSLookup[[#This Row],[Alloc]]=\"OR\",tblREGASSLookup[[#This Row],[Alloc]]=\"UT\",tblREGASSLookup[[#This Row],[Alloc]]=\"WYU\",tblREGASSLookup[[#This Row],[Alloc]]=\"WYP\",tblREGASSLookup[[#This Row],[Alloc]]=\"CA\",tblREGASSLookup[[#This Row],[Alloc]]=\"WA\"),\"SITUS\",tblREGASSLookup[[#This Row],[Alloc]])","v":"OTHER"},"CUST"]
[{"$f":"CONCATENATE(tblREGASSLookup[[#This Row],[Primary Account]],tblREGASSLookup[[#This Row],[Primary Name]],tblREGASSLookup[[#This Row],[Secondary Acct]],tblREGASSLookup[[#This Row],[Secondary  Name]],tblREGASSLookup[[#This Row],[Alloc4FUNC]])","v":"1823920DSR COSTS AMORTIZED103197OUTREACH and COMMUNICATIONS - UT 2011OTHER"},1823920,"DSR COSTS AMORTIZED",103197,"OUTREACH and COMMUNICATIONS - UT 2011","OTHER",null,{"$f":"IF(OR(tblREGASSLookup[[#This Row],[Alloc]]=\"IDU\",tblREGASSLookup[[#This Row],[Alloc]]=\"OR\",tblREGASSLookup[[#This Row],[Alloc]]=\"UT\",tblREGASSLookup[[#This Row],[Alloc]]=\"WYU\",tblREGASSLookup[[#This Row],[Alloc]]=\"WYP\",tblREGASSLookup[[#This Row],[Alloc]]=\"CA\",tblREGASSLookup[[#This Row],[Alloc]]=\"WA\"),\"SITUS\",tblREGASSLookup[[#This Row],[Alloc]])","v":"OTHER"},"CUST"]
[{"$f":"CONCATENATE(tblREGASSLookup[[#This Row],[Primary Account]],tblREGASSLookup[[#This Row],[Primary Name]],tblREGASSLookup[[#This Row],[Secondary Acct]],tblREGASSLookup[[#This Row],[Secondary  Name]],tblREGASSLookup[[#This Row],[Alloc4FUNC]])","v":"1823920DSR COSTS AMORTIZED103199ENERGY FINANSWER-WY-2011 CAT3OTHER"},1823920,"DSR COSTS AMORTIZED",103199,"ENERGY FINANSWER-WY-2011 CAT3","OTHER",null,{"$f":"IF(OR(tblREGASSLookup[[#This Row],[Alloc]]=\"IDU\",tblREGASSLookup[[#This Row],[Alloc]]=\"OR\",tblREGASSLookup[[#This Row],[Alloc]]=\"UT\",tblREGASSLookup[[#This Row],[Alloc]]=\"WYU\",tblREGASSLookup[[#This Row],[Alloc]]=\"WYP\",tblREGASSLookup[[#This Row],[Alloc]]=\"CA\",tblREGASSLookup[[#This Row],[Alloc]]=\"WA\"),\"SITUS\",tblREGASSLookup[[#This Row],[Alloc]])","v":"OTHER"},"CUST"]
[{"$f":"CONCATENATE(tblREGASSLookup[[#This Row],[Primary Account]],tblREGASSLookup[[#This Row],[Primary Name]],tblREGASSLookup[[#This Row],[Secondary Acct]],tblREGASSLookup[[#This Row],[Secondary  Name]],tblREGASSLookup[[#This Row],[Alloc4FUNC]])","v":"1823920DSR COSTS AMORTIZED103200INDUSTRIAL FINANSWER-WY-2011 CAT3OTHER"},1823920,"DSR COSTS AMORTIZED",103200,"INDUSTRIAL FINANSWER-WY-2011 CAT3","OTHER",null,{"$f":"IF(OR(tblREGASSLookup[[#This Row],[Alloc]]=\"IDU\",tblREGASSLookup[[#This Row],[Alloc]]=\"OR\",tblREGASSLookup[[#This Row],[Alloc]]=\"UT\",tblREGASSLookup[[#This Row],[Alloc]]=\"WYU\",tblREGASSLookup[[#This Row],[Alloc]]=\"WYP\",tblREGASSLookup[[#This Row],[Alloc]]=\"CA\",tblREGASSLookup[[#This Row],[Alloc]]=\"WA\"),\"SITUS\",tblREGASSLookup[[#This Row],[Alloc]])","v":"OTHER"},"CUST"]
[{"$f":"CONCATENATE(tblREGASSLookup[[#This Row],[Primary Account]],tblREGASSLookup[[#This Row],[Primary Name]],tblREGASSLookup[[#This Row],[Secondary Acct]],tblREGASSLookup[[#This Row],[Secondary  Name]],tblREGASSLookup[[#This Row],[Alloc4FUNC]])","v":"1823920DSR COSTS AMORTIZED103202REFRIGERATOR RECYCLING-WY -2011 CAT1OTHER"},1823920,"DSR COSTS AMORTIZED",103202,"REFRIGERATOR RECYCLING-WY -2011 CAT1","OTHER",null,{"$f":"IF(OR(tblREGASSLookup[[#This Row],[Alloc]]=\"IDU\",tblREGASSLookup[[#This Row],[Alloc]]=\"OR\",tblREGASSLookup[[#This Row],[Alloc]]=\"UT\",tblREGASSLookup[[#This Row],[Alloc]]=\"WYU\",tblREGASSLookup[[#This Row],[Alloc]]=\"WYP\",tblREGASSLookup[[#This Row],[Alloc]]=\"CA\",tblREGASSLookup[[#This Row],[Alloc]]=\"WA\"),\"SITUS\",tblREGASSLookup[[#This Row],[Alloc]])","v":"OTHER"},"CUST"]
[{"$f":"CONCATENATE(tblREGASSLookup[[#This Row],[Primary Account]],tblREGASSLookup[[#This Row],[Primary Name]],tblREGASSLookup[[#This Row],[Secondary Acct]],tblREGASSLookup[[#This Row],[Secondary  Name]],tblREGASSLookup[[#This Row],[Alloc4FUNC]])","v":"1823920DSR COSTS AMORTIZED103203HOME ENERGY EFF INCENT PROG Y-2011 CAT1OTHER"},1823920,"DSR COSTS AMORTIZED",103203,"HOME ENERGY EFF INCENT PROG Y-2011 CAT1","OTHER",null,{"$f":"IF(OR(tblREGASSLookup[[#This Row],[Alloc]]=\"IDU\",tblREGASSLookup[[#This Row],[Alloc]]=\"OR\",tblREGASSLookup[[#This Row],[Alloc]]=\"UT\",tblREGASSLookup[[#This Row],[Alloc]]=\"WYU\",tblREGASSLookup[[#This Row],[Alloc]]=\"WYP\",tblREGASSLookup[[#This Row],[Alloc]]=\"CA\",tblREGASSLookup[[#This Row],[Alloc]]=\"WA\"),\"SITUS\",tblREGASSLookup[[#This Row],[Alloc]])","v":"OTHER"},"CUST"]
[{"$f":"CONCATENATE(tblREGASSLookup[[#This Row],[Primary Account]],tblREGASSLookup[[#This Row],[Primary Name]],tblREGASSLookup[[#This Row],[Secondary Acct]],tblREGASSLookup[[#This Row],[Secondary  Name]],tblREGASSLookup[[#This Row],[Alloc4FUNC]])","v":"1823920DSR COSTS AMORTIZED103204Low-Income Weatherztn - Wy 2011 CAT1OTHER"},1823920,"DSR COSTS AMORTIZED",103204,"Low-Income Weatherztn - Wy 2011 CAT1","OTHER",null,{"$f":"IF(OR(tblREGASSLookup[[#This Row],[Alloc]]=\"IDU\",tblREGASSLookup[[#This Row],[Alloc]]=\"OR\",tblREGASSLookup[[#This Row],[Alloc]]=\"UT\",tblREGASSLookup[[#This Row],[Alloc]]=\"WYU\",tblREGASSLookup[[#This Row],[Alloc]]=\"WYP\",tblREGASSLookup[[#This Row],[Alloc]]=\"CA\",tblREGASSLookup[[#This Row],[Alloc]]=\"WA\"),\"SITUS\",tblREGASSLookup[[#This Row],[Alloc]])","v":"OTHER"},"CUST"]
[{"$f":"CONCATENATE(tblREGASSLookup[[#This Row],[Primary Account]],tblREGASSLookup[[#This Row],[Primary Name]],tblREGASSLookup[[#This Row],[Secondary Acct]],tblREGASSLookup[[#This Row],[Secondary  Name]],tblREGASSLookup[[#This Row],[Alloc4FUNC]])","v":"1823920DSR COSTS AMORTIZED103205COMMERCIAL FINANSWER EXP WY-2011 CAT3OTHER"},1823920,"DSR COSTS AMORTIZED",103205,"COMMERCIAL FINANSWER EXP WY-2011 CAT3","OTHER",null,{"$f":"IF(OR(tblREGASSLookup[[#This Row],[Alloc]]=\"IDU\",tblREGASSLookup[[#This Row],[Alloc]]=\"OR\",tblREGASSLookup[[#This Row],[Alloc]]=\"UT\",tblREGASSLookup[[#This Row],[Alloc]]=\"WYU\",tblREGASSLookup[[#This Row],[Alloc]]=\"WYP\",tblREGASSLookup[[#This Row],[Alloc]]=\"CA\",tblREGASSLookup[[#This Row],[Alloc]]=\"WA\"),\"SITUS\",tblREGASSLookup[[#This Row],[Alloc]])","v":"OTHER"},"CUST"]
[{"$f":"CONCATENATE(tblREGASSLookup[[#This Row],[Primary Account]],tblREGASSLookup[[#This Row],[Primary Name]],tblREGASSLookup[[#This Row],[Secondary Acct]],tblREGASSLookup[[#This Row],[Secondary  Name]],tblREGASSLookup[[#This Row],[Alloc4FUNC]])","v":"1823920DSR COSTS AMORTIZED103206INDUSTRIAL FINANSWER EXP WY-2011 CAT3OTHER"},1823920,"DSR COSTS AMORTIZED",103206,"INDUSTRIAL FINANSWER EXP WY-2011 CAT3","OTHER",null,{"$f":"IF(OR(tblREGASSLookup[[#This Row],[Alloc]]=\"IDU\",tblREGASSLookup[[#This Row],[Alloc]]=\"OR\",tblREGASSLookup[[#This Row],[Alloc]]=\"UT\",tblREGASSLookup[[#This Row],[Alloc]]=\"WYU\",tblREGASSLookup[[#This Row],[Alloc]]=\"WYP\",tblREGASSLookup[[#This Row],[Alloc]]=\"CA\",tblREGASSLookup[[#This Row],[Alloc]]=\"WA\"),\"SITUS\",tblREGASSLookup[[#This Row],[Alloc]])","v":"OTHER"},"CUST"]
[{"$f":"CONCATENATE(tblREGASSLookup[[#This Row],[Primary Account]],tblREGASSLookup[[#This Row],[Primary Name]],tblREGASSLookup[[#This Row],[Secondary Acct]],tblREGASSLookup[[#This Row],[Secondary  Name]],tblREGASSLookup[[#This Row],[Alloc4FUNC]])","v":"1823920DSR COSTS AMORTIZED103207Self Direct - Commercial -Wy-2011 CAT3OTHER"},1823920,"DSR COSTS AMORTIZED",103207,"Self Direct - Commercial -Wy-2011 CAT3","OTHER",null,{"$f":"IF(OR(tblREGASSLookup[[#This Row],[Alloc]]=\"IDU\",tblREGASSLookup[[#This Row],[Alloc]]=\"OR\",tblREGASSLookup[[#This Row],[Alloc]]=\"UT\",tblREGASSLookup[[#This Row],[Alloc]]=\"WYU\",tblREGASSLookup[[#This Row],[Alloc]]=\"WYP\",tblREGASSLookup[[#This Row],[Alloc]]=\"CA\",tblREGASSLookup[[#This Row],[Alloc]]=\"WA\"),\"SITUS\",tblREGASSLookup[[#This Row],[Alloc]])","v":"OTHER"},"CUST"]
[{"$f":"CONCATENATE(tblREGASSLookup[[#This Row],[Primary Account]],tblREGASSLookup[[#This Row],[Primary Name]],tblREGASSLookup[[#This Row],[Secondary Acct]],tblREGASSLookup[[#This Row],[Secondary  Name]],tblREGASSLookup[[#This Row],[Alloc4FUNC]])","v":"1823920DSR COSTS AMORTIZED103208Self Direct -Industrial -Wy-2011 CAT3OTHER"},1823920,"DSR COSTS AMORTIZED",103208,"Self Direct -Industrial -Wy-2011 CAT3","OTHER",null,{"$f":"IF(OR(tblREGASSLookup[[#This Row],[Alloc]]=\"IDU\",tblREGASSLookup[[#This Row],[Alloc]]=\"OR\",tblREGASSLookup[[#This Row],[Alloc]]=\"UT\",tblREGASSLookup[[#This Row],[Alloc]]=\"WYU\",tblREGASSLookup[[#This Row],[Alloc]]=\"WYP\",tblREGASSLookup[[#This Row],[Alloc]]=\"CA\",tblREGASSLookup[[#This Row],[Alloc]]=\"WA\"),\"SITUS\",tblREGASSLookup[[#This Row],[Alloc]])","v":"OTHER"},"CUST"]
[{"$f":"CONCATENATE(tblREGASSLookup[[#This Row],[Primary Account]],tblREGASSLookup[[#This Row],[Primary Name]],tblREGASSLookup[[#This Row],[Secondary Acct]],tblREGASSLookup[[#This Row],[Secondary  Name]],tblREGASSLookup[[#This Row],[Alloc4FUNC]])","v":"1823920DSR COSTS AMORTIZED103209COMMERCIAL FINANSWER EXP- WY-2011 CAT2OTHER"},1823920,"DSR COSTS AMORTIZED",103209,"COMMERCIAL FINANSWER EXP- WY-2011 CAT2","OTHER",null,{"$f":"IF(OR(tblREGASSLookup[[#This Row],[Alloc]]=\"IDU\",tblREGASSLookup[[#This Row],[Alloc]]=\"OR\",tblREGASSLookup[[#This Row],[Alloc]]=\"UT\",tblREGASSLookup[[#This Row],[Alloc]]=\"WYU\",tblREGASSLookup[[#This Row],[Alloc]]=\"WYP\",tblREGASSLookup[[#This Row],[Alloc]]=\"CA\",tblREGASSLookup[[#This Row],[Alloc]]=\"WA\"),\"SITUS\",tblREGASSLookup[[#This Row],[Alloc]])","v":"OTHER"},"CUST"]
[{"$f":"CONCATENATE(tblREGASSLookup[[#This Row],[Primary Account]],tblREGASSLookup[[#This Row],[Primary Name]],tblREGASSLookup[[#This Row],[Secondary Acct]],tblREGASSLookup[[#This Row],[Secondary  Name]],tblREGASSLookup[[#This Row],[Alloc4FUNC]])","v":"1823920DSR COSTS AMORTIZED103210INDUSTRIAL FINAN EXPRESS WY-2011 CAT2OTHER"},1823920,"DSR COSTS AMORTIZED",103210,"INDUSTRIAL FINAN EXPRESS WY-2011 CAT2","OTHER",null,{"$f":"IF(OR(tblREGASSLookup[[#This Row],[Alloc]]=\"IDU\",tblREGASSLookup[[#This Row],[Alloc]]=\"OR\",tblREGASSLookup[[#This Row],[Alloc]]=\"UT\",tblREGASSLookup[[#This Row],[Alloc]]=\"WYU\",tblREGASSLookup[[#This Row],[Alloc]]=\"WYP\",tblREGASSLookup[[#This Row],[Alloc]]=\"CA\",tblREGASSLookup[[#This Row],[Alloc]]=\"WA\"),\"SITUS\",tblREGASSLookup[[#This Row],[Alloc]])","v":"OTHER"},"CUST"]
[{"$f":"CONCATENATE(tblREGASSLookup[[#This Row],[Primary Account]],tblREGASSLookup[[#This Row],[Primary Name]],tblREGASSLookup[[#This Row],[Secondary Acct]],tblREGASSLookup[[#This Row],[Secondary  Name]],tblREGASSLookup[[#This Row],[Alloc4FUNC]])","v":"1823920DSR COSTS AMORTIZED103211ENERGY FINANSWER -WY 2011 CAT2OTHER"},1823920,"DSR COSTS AMORTIZED",103211,"ENERGY FINANSWER -WY 2011 CAT2","OTHER",null,{"$f":"IF(OR(tblREGASSLookup[[#This Row],[Alloc]]=\"IDU\",tblREGASSLookup[[#This Row],[Alloc]]=\"OR\",tblREGASSLookup[[#This Row],[Alloc]]=\"UT\",tblREGASSLookup[[#This Row],[Alloc]]=\"WYU\",tblREGASSLookup[[#This Row],[Alloc]]=\"WYP\",tblREGASSLookup[[#This Row],[Alloc]]=\"CA\",tblREGASSLookup[[#This Row],[Alloc]]=\"WA\"),\"SITUS\",tblREGASSLookup[[#This Row],[Alloc]])","v":"OTHER"},"CUST"]
[{"$f":"CONCATENATE(tblREGASSLookup[[#This Row],[Primary Account]],tblREGASSLookup[[#This Row],[Primary Name]],tblREGASSLookup[[#This Row],[Secondary Acct]],tblREGASSLookup[[#This Row],[Secondary  Name]],tblREGASSLookup[[#This Row],[Alloc4FUNC]])","v":"1823920DSR COSTS AMORTIZED103212INDUSTRIAL FINANSWER -WY 2011 CAT2OTHER"},1823920,"DSR COSTS AMORTIZED",103212,"INDUSTRIAL FINANSWER -WY 2011 CAT2","OTHER",null,{"$f":"IF(OR(tblREGASSLookup[[#This Row],[Alloc]]=\"IDU\",tblREGASSLookup[[#This Row],[Alloc]]=\"OR\",tblREGASSLookup[[#This Row],[Alloc]]=\"UT\",tblREGASSLookup[[#This Row],[Alloc]]=\"WYU\",tblREGASSLookup[[#This Row],[Alloc]]=\"WYP\",tblREGASSLookup[[#This Row],[Alloc]]=\"CA\",tblREGASSLookup[[#This Row],[Alloc]]=\"WA\"),\"SITUS\",tblREGASSLookup[[#This Row],[Alloc]])","v":"OTHER"},"CUST"]
[{"$f":"CONCATENATE(tblREGASSLookup[[#This Row],[Primary Account]],tblREGASSLookup[[#This Row],[Primary Name]],tblREGASSLookup[[#This Row],[Secondary Acct]],tblREGASSLookup[[#This Row],[Secondary  Name]],tblREGASSLookup[[#This Row],[Alloc4FUNC]])","v":"1823920DSR COSTS AMORTIZED103213Self Direct - Commercial Wy-2011 CAT2OTHER"},1823920,"DSR COSTS AMORTIZED",103213,"Self Direct - Commercial Wy-2011 CAT2","OTHER",null,{"$f":"IF(OR(tblREGASSLookup[[#This Row],[Alloc]]=\"IDU\",tblREGASSLookup[[#This Row],[Alloc]]=\"OR\",tblREGASSLookup[[#This Row],[Alloc]]=\"UT\",tblREGASSLookup[[#This Row],[Alloc]]=\"WYU\",tblREGASSLookup[[#This Row],[Alloc]]=\"WYP\",tblREGASSLookup[[#This Row],[Alloc]]=\"CA\",tblREGASSLookup[[#This Row],[Alloc]]=\"WA\"),\"SITUS\",tblREGASSLookup[[#This Row],[Alloc]])","v":"OTHER"},"CUST"]
[{"$f":"CONCATENATE(tblREGASSLookup[[#This Row],[Primary Account]],tblREGASSLookup[[#This Row],[Primary Name]],tblREGASSLookup[[#This Row],[Secondary Acct]],tblREGASSLookup[[#This Row],[Secondary  Name]],tblREGASSLookup[[#This Row],[Alloc4FUNC]])","v":"1823920DSR COSTS AMORTIZED103214Self Direct- Industrial Wy-2011 CAT2OTHER"},1823920,"DSR COSTS AMORTIZED",103214,"Self Direct- Industrial Wy-2011 CAT2","OTHER",null,{"$f":"IF(OR(tblREGASSLookup[[#This Row],[Alloc]]=\"IDU\",tblREGASSLookup[[#This Row],[Alloc]]=\"OR\",tblREGASSLookup[[#This Row],[Alloc]]=\"UT\",tblREGASSLookup[[#This Row],[Alloc]]=\"WYU\",tblREGASSLookup[[#This Row],[Alloc]]=\"WYP\",tblREGASSLookup[[#This Row],[Alloc]]=\"CA\",tblREGASSLookup[[#This Row],[Alloc]]=\"WA\"),\"SITUS\",tblREGASSLookup[[#This Row],[Alloc]])","v":"OTHER"},"CUST"]
[{"$f":"CONCATENATE(tblREGASSLookup[[#This Row],[Primary Account]],tblREGASSLookup[[#This Row],[Primary Name]],tblREGASSLookup[[#This Row],[Secondary Acct]],tblREGASSLookup[[#This Row],[Secondary  Name]],tblREGASSLookup[[#This Row],[Alloc4FUNC]])","v":"1823920DSR COSTS AMORTIZED103277OUTREACH & COMM- WATTSMART - EVALUATIONOTHER"},1823920,"DSR COSTS AMORTIZED",103277,"OUTREACH & COMM- WATTSMART - EVALUATION","OTHER",null,{"$f":"IF(OR(tblREGASSLookup[[#This Row],[Alloc]]=\"IDU\",tblREGASSLookup[[#This Row],[Alloc]]=\"OR\",tblREGASSLookup[[#This Row],[Alloc]]=\"UT\",tblREGASSLookup[[#This Row],[Alloc]]=\"WYU\",tblREGASSLookup[[#This Row],[Alloc]]=\"WYP\",tblREGASSLookup[[#This Row],[Alloc]]=\"CA\",tblREGASSLookup[[#This Row],[Alloc]]=\"WA\"),\"SITUS\",tblREGASSLookup[[#This Row],[Alloc]])","v":"OTHER"},"CUST"]
[{"$f":"CONCATENATE(tblREGASSLookup[[#This Row],[Primary Account]],tblREGASSLookup[[#This Row],[Primary Name]],tblREGASSLookup[[#This Row],[Secondary Acct]],tblREGASSLookup[[#This Row],[Secondary  Name]],tblREGASSLookup[[#This Row],[Alloc4FUNC]])","v":"1823920DSR COSTS AMORTIZED103280COMPANY INITIATIVES -PRODUCTION EFFICIENOTHER"},1823920,"DSR COSTS AMORTIZED",103280,"COMPANY INITIATIVES -PRODUCTION EFFICIEN","OTHER",null,{"$f":"IF(OR(tblREGASSLookup[[#This Row],[Alloc]]=\"IDU\",tblREGASSLookup[[#This Row],[Alloc]]=\"OR\",tblREGASSLookup[[#This Row],[Alloc]]=\"UT\",tblREGASSLookup[[#This Row],[Alloc]]=\"WYU\",tblREGASSLookup[[#This Row],[Alloc]]=\"WYP\",tblREGASSLookup[[#This Row],[Alloc]]=\"CA\",tblREGASSLookup[[#This Row],[Alloc]]=\"WA\"),\"SITUS\",tblREGASSLookup[[#This Row],[Alloc]])","v":"OTHER"},"CUST"]
[{"$f":"CONCATENATE(tblREGASSLookup[[#This Row],[Primary Account]],tblREGASSLookup[[#This Row],[Primary Name]],tblREGASSLookup[[#This Row],[Secondary Acct]],tblREGASSLookup[[#This Row],[Secondary  Name]],tblREGASSLookup[[#This Row],[Alloc4FUNC]])","v":"1823920DSR COSTS AMORTIZED103291Portfolio -WY-2011   Cat4OTHER"},1823920,"DSR COSTS AMORTIZED",103291,"Portfolio -WY-2011   Cat4","OTHER",null,{"$f":"IF(OR(tblREGASSLookup[[#This Row],[Alloc]]=\"IDU\",tblREGASSLookup[[#This Row],[Alloc]]=\"OR\",tblREGASSLookup[[#This Row],[Alloc]]=\"UT\",tblREGASSLookup[[#This Row],[Alloc]]=\"WYU\",tblREGASSLookup[[#This Row],[Alloc]]=\"WYP\",tblREGASSLookup[[#This Row],[Alloc]]=\"CA\",tblREGASSLookup[[#This Row],[Alloc]]=\"WA\"),\"SITUS\",tblREGASSLookup[[#This Row],[Alloc]])","v":"OTHER"},"CUST"]
[{"$f":"CONCATENATE(tblREGASSLookup[[#This Row],[Primary Account]],tblREGASSLookup[[#This Row],[Primary Name]],tblREGASSLookup[[#This Row],[Secondary Acct]],tblREGASSLookup[[#This Row],[Secondary  Name]],tblREGASSLookup[[#This Row],[Alloc4FUNC]])","v":"1823920DSR COSTS AMORTIZED103292Portfolio - WashingtonOTHER"},1823920,"DSR COSTS AMORTIZED",103292,"Portfolio - Washington","OTHER",null,{"$f":"IF(OR(tblREGASSLookup[[#This Row],[Alloc]]=\"IDU\",tblREGASSLookup[[#This Row],[Alloc]]=\"OR\",tblREGASSLookup[[#This Row],[Alloc]]=\"UT\",tblREGASSLookup[[#This Row],[Alloc]]=\"WYU\",tblREGASSLookup[[#This Row],[Alloc]]=\"WYP\",tblREGASSLookup[[#This Row],[Alloc]]=\"CA\",tblREGASSLookup[[#This Row],[Alloc]]=\"WA\"),\"SITUS\",tblREGASSLookup[[#This Row],[Alloc]])","v":"OTHER"},"CUST"]
[{"$f":"CONCATENATE(tblREGASSLookup[[#This Row],[Primary Account]],tblREGASSLookup[[#This Row],[Primary Name]],tblREGASSLookup[[#This Row],[Secondary Acct]],tblREGASSLookup[[#This Row],[Secondary  Name]],tblREGASSLookup[[#This Row],[Alloc4FUNC]])","v":"1823920DSR COSTS AMORTIZED103293Energy Storage Demonstration Project -UTOTHER"},1823920,"DSR COSTS AMORTIZED",103293,"Energy Storage Demonstration Project -UT","OTHER",null,{"$f":"IF(OR(tblREGASSLookup[[#This Row],[Alloc]]=\"IDU\",tblREGASSLookup[[#This Row],[Alloc]]=\"OR\",tblREGASSLookup[[#This Row],[Alloc]]=\"UT\",tblREGASSLookup[[#This Row],[Alloc]]=\"WYU\",tblREGASSLookup[[#This Row],[Alloc]]=\"WYP\",tblREGASSLookup[[#This Row],[Alloc]]=\"CA\",tblREGASSLookup[[#This Row],[Alloc]]=\"WA\"),\"SITUS\",tblREGASSLookup[[#This Row],[Alloc]])","v":"OTHER"},"CUST"]
[{"$f":"CONCATENATE(tblREGASSLookup[[#This Row],[Primary Account]],tblREGASSLookup[[#This Row],[Primary Name]],tblREGASSLookup[[#This Row],[Secondary Acct]],tblREGASSLookup[[#This Row],[Secondary  Name]],tblREGASSLookup[[#This Row],[Alloc4FUNC]])","v":"1823920DSR COSTS AMORTIZED103295Outreach And Communication-WY-2011OTHER"},1823920,"DSR COSTS AMORTIZED",103295,"Outreach And Communication-WY-2011","OTHER",null,{"$f":"IF(OR(tblREGASSLookup[[#This Row],[Alloc]]=\"IDU\",tblREGASSLookup[[#This Row],[Alloc]]=\"OR\",tblREGASSLookup[[#This Row],[Alloc]]=\"UT\",tblREGASSLookup[[#This Row],[Alloc]]=\"WYU\",tblREGASSLookup[[#This Row],[Alloc]]=\"WYP\",tblREGASSLookup[[#This Row],[Alloc]]=\"CA\",tblREGASSLookup[[#This Row],[Alloc]]=\"WA\"),\"SITUS\",tblREGASSLookup[[#This Row],[Alloc]])","v":"OTHER"},"CUST"]
[{"$f":"CONCATENATE(tblREGASSLookup[[#This Row],[Primary Account]],tblREGASSLookup[[#This Row],[Primary Name]],tblREGASSLookup[[#This Row],[Secondary Acct]],tblREGASSLookup[[#This Row],[Secondary  Name]],tblREGASSLookup[[#This Row],[Alloc4FUNC]])","v":"1823920DSR COSTS AMORTIZED103299AGRICULURAL FINANSWER EXPRESS - UTAH - 2OTHER"},1823920,"DSR COSTS AMORTIZED",103299,"AGRICULURAL FINANSWER EXPRESS - UTAH - 2","OTHER",null,{"$f":"IF(OR(tblREGASSLookup[[#This Row],[Alloc]]=\"IDU\",tblREGASSLookup[[#This Row],[Alloc]]=\"OR\",tblREGASSLookup[[#This Row],[Alloc]]=\"UT\",tblREGASSLookup[[#This Row],[Alloc]]=\"WYU\",tblREGASSLookup[[#This Row],[Alloc]]=\"WYP\",tblREGASSLookup[[#This Row],[Alloc]]=\"CA\",tblREGASSLookup[[#This Row],[Alloc]]=\"WA\"),\"SITUS\",tblREGASSLookup[[#This Row],[Alloc]])","v":"OTHER"},"CUST"]
[{"$f":"CONCATENATE(tblREGASSLookup[[#This Row],[Primary Account]],tblREGASSLookup[[#This Row],[Primary Name]],tblREGASSLookup[[#This Row],[Secondary Acct]],tblREGASSLookup[[#This Row],[Secondary  Name]],tblREGASSLookup[[#This Row],[Alloc4FUNC]])","v":"1823920DSR COSTS AMORTIZED103300AGRICULTURAL FINANSWER EXPRESS - WASHINGOTHER"},1823920,"DSR COSTS AMORTIZED",103300,"AGRICULTURAL FINANSWER EXPRESS - WASHING","OTHER",null,{"$f":"IF(OR(tblREGASSLookup[[#This Row],[Alloc]]=\"IDU\",tblREGASSLookup[[#This Row],[Alloc]]=\"OR\",tblREGASSLookup[[#This Row],[Alloc]]=\"UT\",tblREGASSLookup[[#This Row],[Alloc]]=\"WYU\",tblREGASSLookup[[#This Row],[Alloc]]=\"WYP\",tblREGASSLookup[[#This Row],[Alloc]]=\"CA\",tblREGASSLookup[[#This Row],[Alloc]]=\"WA\"),\"SITUS\",tblREGASSLookup[[#This Row],[Alloc]])","v":"OTHER"},"CUST"]
[{"$f":"CONCATENATE(tblREGASSLookup[[#This Row],[Primary Account]],tblREGASSLookup[[#This Row],[Primary Name]],tblREGASSLookup[[#This Row],[Secondary Acct]],tblREGASSLookup[[#This Row],[Secondary  Name]],tblREGASSLookup[[#This Row],[Alloc4FUNC]])","v":"1823920DSR COSTS AMORTIZED103301PORTFOLIO -WY-2011   CAT2OTHER"},1823920,"DSR COSTS AMORTIZED",103301,"PORTFOLIO -WY-2011   CAT2","OTHER",null,{"$f":"IF(OR(tblREGASSLookup[[#This Row],[Alloc]]=\"IDU\",tblREGASSLookup[[#This Row],[Alloc]]=\"OR\",tblREGASSLookup[[#This Row],[Alloc]]=\"UT\",tblREGASSLookup[[#This Row],[Alloc]]=\"WYU\",tblREGASSLookup[[#This Row],[Alloc]]=\"WYP\",tblREGASSLookup[[#This Row],[Alloc]]=\"CA\",tblREGASSLookup[[#This Row],[Alloc]]=\"WA\"),\"SITUS\",tblREGASSLookup[[#This Row],[Alloc]])","v":"OTHER"},"CUST"]
[{"$f":"CONCATENATE(tblREGASSLookup[[#This Row],[Primary Account]],tblREGASSLookup[[#This Row],[Primary Name]],tblREGASSLookup[[#This Row],[Secondary Acct]],tblREGASSLookup[[#This Row],[Secondary  Name]],tblREGASSLookup[[#This Row],[Alloc4FUNC]])","v":"1823920DSR COSTS AMORTIZED103302PORTFOLIO -WY-2011   CAT3OTHER"},1823920,"DSR COSTS AMORTIZED",103302,"PORTFOLIO -WY-2011   CAT3","OTHER",null,{"$f":"IF(OR(tblREGASSLookup[[#This Row],[Alloc]]=\"IDU\",tblREGASSLookup[[#This Row],[Alloc]]=\"OR\",tblREGASSLookup[[#This Row],[Alloc]]=\"UT\",tblREGASSLookup[[#This Row],[Alloc]]=\"WYU\",tblREGASSLookup[[#This Row],[Alloc]]=\"WYP\",tblREGASSLookup[[#This Row],[Alloc]]=\"CA\",tblREGASSLookup[[#This Row],[Alloc]]=\"WA\"),\"SITUS\",tblREGASSLookup[[#This Row],[Alloc]])","v":"OTHER"},"CUST"]
[{"$f":"CONCATENATE(tblREGASSLookup[[#This Row],[Primary Account]],tblREGASSLookup[[#This Row],[Primary Name]],tblREGASSLookup[[#This Row],[Secondary Acct]],tblREGASSLookup[[#This Row],[Secondary  Name]],tblREGASSLookup[[#This Row],[Alloc4FUNC]])","v":"1823920DSR COSTS AMORTIZED103308Home Energy Reporting -OPower -WA 2011OTHER"},1823920,"DSR COSTS AMORTIZED",103308,"Home Energy Reporting -OPower -WA 2011","OTHER",null,{"$f":"IF(OR(tblREGASSLookup[[#This Row],[Alloc]]=\"IDU\",tblREGASSLookup[[#This Row],[Alloc]]=\"OR\",tblREGASSLookup[[#This Row],[Alloc]]=\"UT\",tblREGASSLookup[[#This Row],[Alloc]]=\"WYU\",tblREGASSLookup[[#This Row],[Alloc]]=\"WYP\",tblREGASSLookup[[#This Row],[Alloc]]=\"CA\",tblREGASSLookup[[#This Row],[Alloc]]=\"WA\"),\"SITUS\",tblREGASSLookup[[#This Row],[Alloc]])","v":"OTHER"},"CUST"]
[{"$f":"CONCATENATE(tblREGASSLookup[[#This Row],[Primary Account]],tblREGASSLookup[[#This Row],[Primary Name]],tblREGASSLookup[[#This Row],[Secondary Acct]],tblREGASSLookup[[#This Row],[Secondary  Name]],tblREGASSLookup[[#This Row],[Alloc4FUNC]])","v":"1823920DSR COSTS AMORTIZED103311CALIFORNIA DSM EXPENSE - 2012OTHER"},1823920,"DSR COSTS AMORTIZED",103311,"CALIFORNIA DSM EXPENSE - 2012","OTHER",null,{"$f":"IF(OR(tblREGASSLookup[[#This Row],[Alloc]]=\"IDU\",tblREGASSLookup[[#This Row],[Alloc]]=\"OR\",tblREGASSLookup[[#This Row],[Alloc]]=\"UT\",tblREGASSLookup[[#This Row],[Alloc]]=\"WYU\",tblREGASSLookup[[#This Row],[Alloc]]=\"WYP\",tblREGASSLookup[[#This Row],[Alloc]]=\"CA\",tblREGASSLookup[[#This Row],[Alloc]]=\"WA\"),\"SITUS\",tblREGASSLookup[[#This Row],[Alloc]])","v":"OTHER"},"CUST"]
[{"$f":"CONCATENATE(tblREGASSLookup[[#This Row],[Primary Account]],tblREGASSLookup[[#This Row],[Primary Name]],tblREGASSLookup[[#This Row],[Secondary Acct]],tblREGASSLookup[[#This Row],[Secondary  Name]],tblREGASSLookup[[#This Row],[Alloc4FUNC]])","v":"1823920DSR COSTS AMORTIZED103324A/C LOAD CONTROL - RESIDENTIAL/UTAH - 20OTHER"},1823920,"DSR COSTS AMORTIZED",103324,"A/C LOAD CONTROL - RESIDENTIAL/UTAH - 20","OTHER",null,{"$f":"IF(OR(tblREGASSLookup[[#This Row],[Alloc]]=\"IDU\",tblREGASSLookup[[#This Row],[Alloc]]=\"OR\",tblREGASSLookup[[#This Row],[Alloc]]=\"UT\",tblREGASSLookup[[#This Row],[Alloc]]=\"WYU\",tblREGASSLookup[[#This Row],[Alloc]]=\"WYP\",tblREGASSLookup[[#This Row],[Alloc]]=\"CA\",tblREGASSLookup[[#This Row],[Alloc]]=\"WA\"),\"SITUS\",tblREGASSLookup[[#This Row],[Alloc]])","v":"OTHER"},"CUST"]
[{"$f":"CONCATENATE(tblREGASSLookup[[#This Row],[Primary Account]],tblREGASSLookup[[#This Row],[Primary Name]],tblREGASSLookup[[#This Row],[Secondary Acct]],tblREGASSLookup[[#This Row],[Secondary  Name]],tblREGASSLookup[[#This Row],[Alloc4FUNC]])","v":"1823920DSR COSTS AMORTIZED103325AIR CONDITIONING - UTAH - 2012OTHER"},1823920,"DSR COSTS AMORTIZED",103325,"AIR CONDITIONING - UTAH - 2012","OTHER",null,{"$f":"IF(OR(tblREGASSLookup[[#This Row],[Alloc]]=\"IDU\",tblREGASSLookup[[#This Row],[Alloc]]=\"OR\",tblREGASSLookup[[#This Row],[Alloc]]=\"UT\",tblREGASSLookup[[#This Row],[Alloc]]=\"WYU\",tblREGASSLookup[[#This Row],[Alloc]]=\"WYP\",tblREGASSLookup[[#This Row],[Alloc]]=\"CA\",tblREGASSLookup[[#This Row],[Alloc]]=\"WA\"),\"SITUS\",tblREGASSLookup[[#This Row],[Alloc]])","v":"OTHER"},"CUST"]
[{"$f":"CONCATENATE(tblREGASSLookup[[#This Row],[Primary Account]],tblREGASSLookup[[#This Row],[Primary Name]],tblREGASSLookup[[#This Row],[Secondary Acct]],tblREGASSLookup[[#This Row],[Secondary  Name]],tblREGASSLookup[[#This Row],[Alloc4FUNC]])","v":"1823920DSR COSTS AMORTIZED103326ENERGY FINANSWER - UTAH - 2012OTHER"},1823920,"DSR COSTS AMORTIZED",103326,"ENERGY FINANSWER - UTAH - 2012","OTHER",null,{"$f":"IF(OR(tblREGASSLookup[[#This Row],[Alloc]]=\"IDU\",tblREGASSLookup[[#This Row],[Alloc]]=\"OR\",tblREGASSLookup[[#This Row],[Alloc]]=\"UT\",tblREGASSLookup[[#This Row],[Alloc]]=\"WYU\",tblREGASSLookup[[#This Row],[Alloc]]=\"WYP\",tblREGASSLookup[[#This Row],[Alloc]]=\"CA\",tblREGASSLookup[[#This Row],[Alloc]]=\"WA\"),\"SITUS\",tblREGASSLookup[[#This Row],[Alloc]])","v":"OTHER"},"CUST"]
[{"$f":"CONCATENATE(tblREGASSLookup[[#This Row],[Primary Account]],tblREGASSLookup[[#This Row],[Primary Name]],tblREGASSLookup[[#This Row],[Secondary Acct]],tblREGASSLookup[[#This Row],[Secondary  Name]],tblREGASSLookup[[#This Row],[Alloc4FUNC]])","v":"1823920DSR COSTS AMORTIZED103327INDUSTRIAL FINANSWER - UTAH - 2012OTHER"},1823920,"DSR COSTS AMORTIZED",103327,"INDUSTRIAL FINANSWER - UTAH - 2012","OTHER",null,{"$f":"IF(OR(tblREGASSLookup[[#This Row],[Alloc]]=\"IDU\",tblREGASSLookup[[#This Row],[Alloc]]=\"OR\",tblREGASSLookup[[#This Row],[Alloc]]=\"UT\",tblREGASSLookup[[#This Row],[Alloc]]=\"WYU\",tblREGASSLookup[[#This Row],[Alloc]]=\"WYP\",tblREGASSLookup[[#This Row],[Alloc]]=\"CA\",tblREGASSLookup[[#This Row],[Alloc]]=\"WA\"),\"SITUS\",tblREGASSLookup[[#This Row],[Alloc]])","v":"OTHER"},"CUST"]
[{"$f":"CONCATENATE(tblREGASSLookup[[#This Row],[Primary Account]],tblREGASSLookup[[#This Row],[Primary Name]],tblREGASSLookup[[#This Row],[Secondary Acct]],tblREGASSLookup[[#This Row],[Secondary  Name]],tblREGASSLookup[[#This Row],[Alloc4FUNC]])","v":"1823920DSR COSTS AMORTIZED103328LOW INCOME - UTAH - 2012OTHER"},1823920,"DSR COSTS AMORTIZED",103328,"LOW INCOME - UTAH - 2012","OTHER",null,{"$f":"IF(OR(tblREGASSLookup[[#This Row],[Alloc]]=\"IDU\",tblREGASSLookup[[#This Row],[Alloc]]=\"OR\",tblREGASSLookup[[#This Row],[Alloc]]=\"UT\",tblREGASSLookup[[#This Row],[Alloc]]=\"WYU\",tblREGASSLookup[[#This Row],[Alloc]]=\"WYP\",tblREGASSLookup[[#This Row],[Alloc]]=\"CA\",tblREGASSLookup[[#This Row],[Alloc]]=\"WA\"),\"SITUS\",tblREGASSLookup[[#This Row],[Alloc]])","v":"OTHER"},"CUST"]
[{"$f":"CONCATENATE(tblREGASSLookup[[#This Row],[Primary Account]],tblREGASSLookup[[#This Row],[Primary Name]],tblREGASSLookup[[#This Row],[Secondary Acct]],tblREGASSLookup[[#This Row],[Secondary  Name]],tblREGASSLookup[[#This Row],[Alloc4FUNC]])","v":"1823920DSR COSTS AMORTIZED103330REFRIGERATOR RECYCLING PGM- UTAH - 2012OTHER"},1823920,"DSR COSTS AMORTIZED",103330,"REFRIGERATOR RECYCLING PGM- UTAH - 2012","OTHER",null,{"$f":"IF(OR(tblREGASSLookup[[#This Row],[Alloc]]=\"IDU\",tblREGASSLookup[[#This Row],[Alloc]]=\"OR\",tblREGASSLookup[[#This Row],[Alloc]]=\"UT\",tblREGASSLookup[[#This Row],[Alloc]]=\"WYU\",tblREGASSLookup[[#This Row],[Alloc]]=\"WYP\",tblREGASSLookup[[#This Row],[Alloc]]=\"CA\",tblREGASSLookup[[#This Row],[Alloc]]=\"WA\"),\"SITUS\",tblREGASSLookup[[#This Row],[Alloc]])","v":"OTHER"},"CUST"]
[{"$f":"CONCATENATE(tblREGASSLookup[[#This Row],[Primary Account]],tblREGASSLookup[[#This Row],[Primary Name]],tblREGASSLookup[[#This Row],[Secondary Acct]],tblREGASSLookup[[#This Row],[Secondary  Name]],tblREGASSLookup[[#This Row],[Alloc4FUNC]])","v":"1823920DSR COSTS AMORTIZED103331COMMERCIAL SELF-DIRECT - UTAH - 2012OTHER"},1823920,"DSR COSTS AMORTIZED",103331,"COMMERCIAL SELF-DIRECT - UTAH - 2012","OTHER",null,{"$f":"IF(OR(tblREGASSLookup[[#This Row],[Alloc]]=\"IDU\",tblREGASSLookup[[#This Row],[Alloc]]=\"OR\",tblREGASSLookup[[#This Row],[Alloc]]=\"UT\",tblREGASSLookup[[#This Row],[Alloc]]=\"WYU\",tblREGASSLookup[[#This Row],[Alloc]]=\"WYP\",tblREGASSLookup[[#This Row],[Alloc]]=\"CA\",tblREGASSLookup[[#This Row],[Alloc]]=\"WA\"),\"SITUS\",tblREGASSLookup[[#This Row],[Alloc]])","v":"OTHER"},"CUST"]
[{"$f":"CONCATENATE(tblREGASSLookup[[#This Row],[Primary Account]],tblREGASSLookup[[#This Row],[Primary Name]],tblREGASSLookup[[#This Row],[Secondary Acct]],tblREGASSLookup[[#This Row],[Secondary  Name]],tblREGASSLookup[[#This Row],[Alloc4FUNC]])","v":"1823920DSR COSTS AMORTIZED103332INDUSTRIAL SELF-DIRECT - UTAH - 2012OTHER"},1823920,"DSR COSTS AMORTIZED",103332,"INDUSTRIAL SELF-DIRECT - UTAH - 2012","OTHER",null,{"$f":"IF(OR(tblREGASSLookup[[#This Row],[Alloc]]=\"IDU\",tblREGASSLookup[[#This Row],[Alloc]]=\"OR\",tblREGASSLookup[[#This Row],[Alloc]]=\"UT\",tblREGASSLookup[[#This Row],[Alloc]]=\"WYU\",tblREGASSLookup[[#This Row],[Alloc]]=\"WYP\",tblREGASSLookup[[#This Row],[Alloc]]=\"CA\",tblREGASSLookup[[#This Row],[Alloc]]=\"WA\"),\"SITUS\",tblREGASSLookup[[#This Row],[Alloc]])","v":"OTHER"},"CUST"]
[{"$f":"CONCATENATE(tblREGASSLookup[[#This Row],[Primary Account]],tblREGASSLookup[[#This Row],[Primary Name]],tblREGASSLookup[[#This Row],[Secondary Acct]],tblREGASSLookup[[#This Row],[Secondary  Name]],tblREGASSLookup[[#This Row],[Alloc4FUNC]])","v":"1823920DSR COSTS AMORTIZED103333RESIDENTIAL NEW CONSTRUCTION - UTAH - 20OTHER"},1823920,"DSR COSTS AMORTIZED",103333,"RESIDENTIAL NEW CONSTRUCTION - UTAH - 20","OTHER",null,{"$f":"IF(OR(tblREGASSLookup[[#This Row],[Alloc]]=\"IDU\",tblREGASSLookup[[#This Row],[Alloc]]=\"OR\",tblREGASSLookup[[#This Row],[Alloc]]=\"UT\",tblREGASSLookup[[#This Row],[Alloc]]=\"WYU\",tblREGASSLookup[[#This Row],[Alloc]]=\"WYP\",tblREGASSLookup[[#This Row],[Alloc]]=\"CA\",tblREGASSLookup[[#This Row],[Alloc]]=\"WA\"),\"SITUS\",tblREGASSLookup[[#This Row],[Alloc]])","v":"OTHER"},"CUST"]
[{"$f":"CONCATENATE(tblREGASSLookup[[#This Row],[Primary Account]],tblREGASSLookup[[#This Row],[Primary Name]],tblREGASSLookup[[#This Row],[Secondary Acct]],tblREGASSLookup[[#This Row],[Secondary  Name]],tblREGASSLookup[[#This Row],[Alloc4FUNC]])","v":"1823920DSR COSTS AMORTIZED103334COMMERCIAL FINANSWER EXPRESS - UTAH - 20OTHER"},1823920,"DSR COSTS AMORTIZED",103334,"COMMERCIAL FINANSWER EXPRESS - UTAH - 20","OTHER",null,{"$f":"IF(OR(tblREGASSLookup[[#This Row],[Alloc]]=\"IDU\",tblREGASSLookup[[#This Row],[Alloc]]=\"OR\",tblREGASSLookup[[#This Row],[Alloc]]=\"UT\",tblREGASSLookup[[#This Row],[Alloc]]=\"WYU\",tblREGASSLookup[[#This Row],[Alloc]]=\"WYP\",tblREGASSLookup[[#This Row],[Alloc]]=\"CA\",tblREGASSLookup[[#This Row],[Alloc]]=\"WA\"),\"SITUS\",tblREGASSLookup[[#This Row],[Alloc]])","v":"OTHER"},"CUST"]
[{"$f":"CONCATENATE(tblREGASSLookup[[#This Row],[Primary Account]],tblREGASSLookup[[#This Row],[Primary Name]],tblREGASSLookup[[#This Row],[Secondary Acct]],tblREGASSLookup[[#This Row],[Secondary  Name]],tblREGASSLookup[[#This Row],[Alloc4FUNC]])","v":"1823920DSR COSTS AMORTIZED103335INDUSTRIAL FINANSWER EXPRESS - UTAH - 20OTHER"},1823920,"DSR COSTS AMORTIZED",103335,"INDUSTRIAL FINANSWER EXPRESS - UTAH - 20","OTHER",null,{"$f":"IF(OR(tblREGASSLookup[[#This Row],[Alloc]]=\"IDU\",tblREGASSLookup[[#This Row],[Alloc]]=\"OR\",tblREGASSLookup[[#This Row],[Alloc]]=\"UT\",tblREGASSLookup[[#This Row],[Alloc]]=\"WYU\",tblREGASSLookup[[#This Row],[Alloc]]=\"WYP\",tblREGASSLookup[[#This Row],[Alloc]]=\"CA\",tblREGASSLookup[[#This Row],[Alloc]]=\"WA\"),\"SITUS\",tblREGASSLookup[[#This Row],[Alloc]])","v":"OTHER"},"CUST"]
[{"$f":"CONCATENATE(tblREGASSLookup[[#This Row],[Primary Account]],tblREGASSLookup[[#This Row],[Primary Name]],tblREGASSLookup[[#This Row],[Secondary Acct]],tblREGASSLookup[[#This Row],[Secondary  Name]],tblREGASSLookup[[#This Row],[Alloc4FUNC]])","v":"1823920DSR COSTS AMORTIZED103336RETROFIT COMMISSIONING PROGRAM  - UTAH -OTHER"},1823920,"DSR COSTS AMORTIZED",103336,"RETROFIT COMMISSIONING PROGRAM  - UTAH -","OTHER",null,{"$f":"IF(OR(tblREGASSLookup[[#This Row],[Alloc]]=\"IDU\",tblREGASSLookup[[#This Row],[Alloc]]=\"OR\",tblREGASSLookup[[#This Row],[Alloc]]=\"UT\",tblREGASSLookup[[#This Row],[Alloc]]=\"WYU\",tblREGASSLookup[[#This Row],[Alloc]]=\"WYP\",tblREGASSLookup[[#This Row],[Alloc]]=\"CA\",tblREGASSLookup[[#This Row],[Alloc]]=\"WA\"),\"SITUS\",tblREGASSLookup[[#This Row],[Alloc]])","v":"OTHER"},"CUST"]
[{"$f":"CONCATENATE(tblREGASSLookup[[#This Row],[Primary Account]],tblREGASSLookup[[#This Row],[Primary Name]],tblREGASSLookup[[#This Row],[Secondary Acct]],tblREGASSLookup[[#This Row],[Secondary  Name]],tblREGASSLookup[[#This Row],[Alloc4FUNC]])","v":"1823920DSR COSTS AMORTIZED103337IRRIGATION LOAD CONTROL  - UTAH - 2012OTHER"},1823920,"DSR COSTS AMORTIZED",103337,"IRRIGATION LOAD CONTROL  - UTAH - 2012","OTHER",null,{"$f":"IF(OR(tblREGASSLookup[[#This Row],[Alloc]]=\"IDU\",tblREGASSLookup[[#This Row],[Alloc]]=\"OR\",tblREGASSLookup[[#This Row],[Alloc]]=\"UT\",tblREGASSLookup[[#This Row],[Alloc]]=\"WYU\",tblREGASSLookup[[#This Row],[Alloc]]=\"WYP\",tblREGASSLookup[[#This Row],[Alloc]]=\"CA\",tblREGASSLookup[[#This Row],[Alloc]]=\"WA\"),\"SITUS\",tblREGASSLookup[[#This Row],[Alloc]])","v":"OTHER"},"CUST"]
[{"$f":"CONCATENATE(tblREGASSLookup[[#This Row],[Primary Account]],tblREGASSLookup[[#This Row],[Primary Name]],tblREGASSLookup[[#This Row],[Secondary Acct]],tblREGASSLookup[[#This Row],[Secondary  Name]],tblREGASSLookup[[#This Row],[Alloc4FUNC]])","v":"1823920DSR COSTS AMORTIZED103338HOME ENERGY EFF INCENTIVE PROG - UT 2012OTHER"},1823920,"DSR COSTS AMORTIZED",103338,"HOME ENERGY EFF INCENTIVE PROG - UT 2012","OTHER",null,{"$f":"IF(OR(tblREGASSLookup[[#This Row],[Alloc]]=\"IDU\",tblREGASSLookup[[#This Row],[Alloc]]=\"OR\",tblREGASSLookup[[#This Row],[Alloc]]=\"UT\",tblREGASSLookup[[#This Row],[Alloc]]=\"WYU\",tblREGASSLookup[[#This Row],[Alloc]]=\"WYP\",tblREGASSLookup[[#This Row],[Alloc]]=\"CA\",tblREGASSLookup[[#This Row],[Alloc]]=\"WA\"),\"SITUS\",tblREGASSLookup[[#This Row],[Alloc]])","v":"OTHER"},"CUST"]
[{"$f":"CONCATENATE(tblREGASSLookup[[#This Row],[Primary Account]],tblREGASSLookup[[#This Row],[Primary Name]],tblREGASSLookup[[#This Row],[Secondary Acct]],tblREGASSLookup[[#This Row],[Secondary  Name]],tblREGASSLookup[[#This Row],[Alloc4FUNC]])","v":"1823920DSR COSTS AMORTIZED103339OUTREACH and COMMUNICATIONS - UT 2012OTHER"},1823920,"DSR COSTS AMORTIZED",103339,"OUTREACH and COMMUNICATIONS - UT 2012","OTHER",null,{"$f":"IF(OR(tblREGASSLookup[[#This Row],[Alloc]]=\"IDU\",tblREGASSLookup[[#This Row],[Alloc]]=\"OR\",tblREGASSLookup[[#This Row],[Alloc]]=\"UT\",tblREGASSLookup[[#This Row],[Alloc]]=\"WYU\",tblREGASSLookup[[#This Row],[Alloc]]=\"WYP\",tblREGASSLookup[[#This Row],[Alloc]]=\"CA\",tblREGASSLookup[[#This Row],[Alloc]]=\"WA\"),\"SITUS\",tblREGASSLookup[[#This Row],[Alloc]])","v":"OTHER"},"CUST"]
[{"$f":"CONCATENATE(tblREGASSLookup[[#This Row],[Primary Account]],tblREGASSLookup[[#This Row],[Primary Name]],tblREGASSLookup[[#This Row],[Secondary Acct]],tblREGASSLookup[[#This Row],[Secondary  Name]],tblREGASSLookup[[#This Row],[Alloc4FUNC]])","v":"1823920DSR COSTS AMORTIZED103340COMMERCIAL DIRECT INSTALL - UT 2012OTHER"},1823920,"DSR COSTS AMORTIZED",103340,"COMMERCIAL DIRECT INSTALL - UT 2012","OTHER",null,{"$f":"IF(OR(tblREGASSLookup[[#This Row],[Alloc]]=\"IDU\",tblREGASSLookup[[#This Row],[Alloc]]=\"OR\",tblREGASSLookup[[#This Row],[Alloc]]=\"UT\",tblREGASSLookup[[#This Row],[Alloc]]=\"WYU\",tblREGASSLookup[[#This Row],[Alloc]]=\"WYP\",tblREGASSLookup[[#This Row],[Alloc]]=\"CA\",tblREGASSLookup[[#This Row],[Alloc]]=\"WA\"),\"SITUS\",tblREGASSLookup[[#This Row],[Alloc]])","v":"OTHER"},"CUST"]
[{"$f":"CONCATENATE(tblREGASSLookup[[#This Row],[Primary Account]],tblREGASSLookup[[#This Row],[Primary Name]],tblREGASSLookup[[#This Row],[Secondary Acct]],tblREGASSLookup[[#This Row],[Secondary  Name]],tblREGASSLookup[[#This Row],[Alloc4FUNC]])","v":"1823920DSR COSTS AMORTIZED103341COMMERCIAL CURTAILMENT - UT 2012OTHER"},1823920,"DSR COSTS AMORTIZED",103341,"COMMERCIAL CURTAILMENT - UT 2012","OTHER",null,{"$f":"IF(OR(tblREGASSLookup[[#This Row],[Alloc]]=\"IDU\",tblREGASSLookup[[#This Row],[Alloc]]=\"OR\",tblREGASSLookup[[#This Row],[Alloc]]=\"UT\",tblREGASSLookup[[#This Row],[Alloc]]=\"WYU\",tblREGASSLookup[[#This Row],[Alloc]]=\"WYP\",tblREGASSLookup[[#This Row],[Alloc]]=\"CA\",tblREGASSLookup[[#This Row],[Alloc]]=\"WA\"),\"SITUS\",tblREGASSLookup[[#This Row],[Alloc]])","v":"OTHER"},"CUST"]
[{"$f":"CONCATENATE(tblREGASSLookup[[#This Row],[Primary Account]],tblREGASSLookup[[#This Row],[Primary Name]],tblREGASSLookup[[#This Row],[Secondary Acct]],tblREGASSLookup[[#This Row],[Secondary  Name]],tblREGASSLookup[[#This Row],[Alloc4FUNC]])","v":"1823920DSR COSTS AMORTIZED103342ENERGY STORAGE DEMO PROJECT - UT 2012OTHER"},1823920,"DSR COSTS AMORTIZED",103342,"ENERGY STORAGE DEMO PROJECT - UT 2012","OTHER",null,{"$f":"IF(OR(tblREGASSLookup[[#This Row],[Alloc]]=\"IDU\",tblREGASSLookup[[#This Row],[Alloc]]=\"OR\",tblREGASSLookup[[#This Row],[Alloc]]=\"UT\",tblREGASSLookup[[#This Row],[Alloc]]=\"WYU\",tblREGASSLookup[[#This Row],[Alloc]]=\"WYP\",tblREGASSLookup[[#This Row],[Alloc]]=\"CA\",tblREGASSLookup[[#This Row],[Alloc]]=\"WA\"),\"SITUS\",tblREGASSLookup[[#This Row],[Alloc]])","v":"OTHER"},"CUST"]
[{"$f":"CONCATENATE(tblREGASSLookup[[#This Row],[Primary Account]],tblREGASSLookup[[#This Row],[Primary Name]],tblREGASSLookup[[#This Row],[Secondary Acct]],tblREGASSLookup[[#This Row],[Secondary  Name]],tblREGASSLookup[[#This Row],[Alloc4FUNC]])","v":"1823920DSR COSTS AMORTIZED103343AGRICULTURAL FINANSWER EXPRESS - UTAH -OTHER"},1823920,"DSR COSTS AMORTIZED",103343,"AGRICULTURAL FINANSWER EXPRESS - UTAH -","OTHER",null,{"$f":"IF(OR(tblREGASSLookup[[#This Row],[Alloc]]=\"IDU\",tblREGASSLookup[[#This Row],[Alloc]]=\"OR\",tblREGASSLookup[[#This Row],[Alloc]]=\"UT\",tblREGASSLookup[[#This Row],[Alloc]]=\"WYU\",tblREGASSLookup[[#This Row],[Alloc]]=\"WYP\",tblREGASSLookup[[#This Row],[Alloc]]=\"CA\",tblREGASSLookup[[#This Row],[Alloc]]=\"WA\"),\"SITUS\",tblREGASSLookup[[#This Row],[Alloc]])","v":"OTHER"},"CUST"]
[{"$f":"CONCATENATE(tblREGASSLookup[[#This Row],[Primary Account]],tblREGASSLookup[[#This Row],[Primary Name]],tblREGASSLookup[[#This Row],[Secondary Acct]],tblREGASSLookup[[#This Row],[Secondary  Name]],tblREGASSLookup[[#This Row],[Alloc4FUNC]])","v":"1823920DSR COSTS AMORTIZED103346HOME ENERGY REPORTING - UT 2012OTHER"},1823920,"DSR COSTS AMORTIZED",103346,"HOME ENERGY REPORTING - UT 2012","OTHER",null,{"$f":"IF(OR(tblREGASSLookup[[#This Row],[Alloc]]=\"IDU\",tblREGASSLookup[[#This Row],[Alloc]]=\"OR\",tblREGASSLookup[[#This Row],[Alloc]]=\"UT\",tblREGASSLookup[[#This Row],[Alloc]]=\"WYU\",tblREGASSLookup[[#This Row],[Alloc]]=\"WYP\",tblREGASSLookup[[#This Row],[Alloc]]=\"CA\",tblREGASSLookup[[#This Row],[Alloc]]=\"WA\"),\"SITUS\",tblREGASSLookup[[#This Row],[Alloc]])","v":"OTHER"},"CUST"]
[{"$f":"CONCATENATE(tblREGASSLookup[[#This Row],[Primary Account]],tblREGASSLookup[[#This Row],[Primary Name]],tblREGASSLookup[[#This Row],[Secondary Acct]],tblREGASSLookup[[#This Row],[Secondary  Name]],tblREGASSLookup[[#This Row],[Alloc4FUNC]])","v":"1823920DSR COSTS AMORTIZED103347ENERGY FINANSWER-WY-2012 CAT3OTHER"},1823920,"DSR COSTS AMORTIZED",103347,"ENERGY FINANSWER-WY-2012 CAT3","OTHER",null,{"$f":"IF(OR(tblREGASSLookup[[#This Row],[Alloc]]=\"IDU\",tblREGASSLookup[[#This Row],[Alloc]]=\"OR\",tblREGASSLookup[[#This Row],[Alloc]]=\"UT\",tblREGASSLookup[[#This Row],[Alloc]]=\"WYU\",tblREGASSLookup[[#This Row],[Alloc]]=\"WYP\",tblREGASSLookup[[#This Row],[Alloc]]=\"CA\",tblREGASSLookup[[#This Row],[Alloc]]=\"WA\"),\"SITUS\",tblREGASSLookup[[#This Row],[Alloc]])","v":"OTHER"},"CUST"]
[{"$f":"CONCATENATE(tblREGASSLookup[[#This Row],[Primary Account]],tblREGASSLookup[[#This Row],[Primary Name]],tblREGASSLookup[[#This Row],[Secondary Acct]],tblREGASSLookup[[#This Row],[Secondary  Name]],tblREGASSLookup[[#This Row],[Alloc4FUNC]])","v":"1823920DSR COSTS AMORTIZED103348INDUSTRIAL FINANSWER-WY-2012 CAT3OTHER"},1823920,"DSR COSTS AMORTIZED",103348,"INDUSTRIAL FINANSWER-WY-2012 CAT3","OTHER",null,{"$f":"IF(OR(tblREGASSLookup[[#This Row],[Alloc]]=\"IDU\",tblREGASSLookup[[#This Row],[Alloc]]=\"OR\",tblREGASSLookup[[#This Row],[Alloc]]=\"UT\",tblREGASSLookup[[#This Row],[Alloc]]=\"WYU\",tblREGASSLookup[[#This Row],[Alloc]]=\"WYP\",tblREGASSLookup[[#This Row],[Alloc]]=\"CA\",tblREGASSLookup[[#This Row],[Alloc]]=\"WA\"),\"SITUS\",tblREGASSLookup[[#This Row],[Alloc]])","v":"OTHER"},"CUST"]
[{"$f":"CONCATENATE(tblREGASSLookup[[#This Row],[Primary Account]],tblREGASSLookup[[#This Row],[Primary Name]],tblREGASSLookup[[#This Row],[Secondary Acct]],tblREGASSLookup[[#This Row],[Secondary  Name]],tblREGASSLookup[[#This Row],[Alloc4FUNC]])","v":"1823920DSR COSTS AMORTIZED103349REFRIGERATOR RECYCLING-WY -2012 CAT1OTHER"},1823920,"DSR COSTS AMORTIZED",103349,"REFRIGERATOR RECYCLING-WY -2012 CAT1","OTHER",null,{"$f":"IF(OR(tblREGASSLookup[[#This Row],[Alloc]]=\"IDU\",tblREGASSLookup[[#This Row],[Alloc]]=\"OR\",tblREGASSLookup[[#This Row],[Alloc]]=\"UT\",tblREGASSLookup[[#This Row],[Alloc]]=\"WYU\",tblREGASSLookup[[#This Row],[Alloc]]=\"WYP\",tblREGASSLookup[[#This Row],[Alloc]]=\"CA\",tblREGASSLookup[[#This Row],[Alloc]]=\"WA\"),\"SITUS\",tblREGASSLookup[[#This Row],[Alloc]])","v":"OTHER"},"CUST"]
[{"$f":"CONCATENATE(tblREGASSLookup[[#This Row],[Primary Account]],tblREGASSLookup[[#This Row],[Primary Name]],tblREGASSLookup[[#This Row],[Secondary Acct]],tblREGASSLookup[[#This Row],[Secondary  Name]],tblREGASSLookup[[#This Row],[Alloc4FUNC]])","v":"1823920DSR COSTS AMORTIZED103350HOME ENERGY EFF INCENT PROG Y-2012 CAT1OTHER"},1823920,"DSR COSTS AMORTIZED",103350,"HOME ENERGY EFF INCENT PROG Y-2012 CAT1","OTHER",null,{"$f":"IF(OR(tblREGASSLookup[[#This Row],[Alloc]]=\"IDU\",tblREGASSLookup[[#This Row],[Alloc]]=\"OR\",tblREGASSLookup[[#This Row],[Alloc]]=\"UT\",tblREGASSLookup[[#This Row],[Alloc]]=\"WYU\",tblREGASSLookup[[#This Row],[Alloc]]=\"WYP\",tblREGASSLookup[[#This Row],[Alloc]]=\"CA\",tblREGASSLookup[[#This Row],[Alloc]]=\"WA\"),\"SITUS\",tblREGASSLookup[[#This Row],[Alloc]])","v":"OTHER"},"CUST"]
[{"$f":"CONCATENATE(tblREGASSLookup[[#This Row],[Primary Account]],tblREGASSLookup[[#This Row],[Primary Name]],tblREGASSLookup[[#This Row],[Secondary Acct]],tblREGASSLookup[[#This Row],[Secondary  Name]],tblREGASSLookup[[#This Row],[Alloc4FUNC]])","v":"1823920DSR COSTS AMORTIZED103351LOW-INCOME WEATHERZTN - WY 2012 CAT1OTHER"},1823920,"DSR COSTS AMORTIZED",103351,"LOW-INCOME WEATHERZTN - WY 2012 CAT1","OTHER",null,{"$f":"IF(OR(tblREGASSLookup[[#This Row],[Alloc]]=\"IDU\",tblREGASSLookup[[#This Row],[Alloc]]=\"OR\",tblREGASSLookup[[#This Row],[Alloc]]=\"UT\",tblREGASSLookup[[#This Row],[Alloc]]=\"WYU\",tblREGASSLookup[[#This Row],[Alloc]]=\"WYP\",tblREGASSLookup[[#This Row],[Alloc]]=\"CA\",tblREGASSLookup[[#This Row],[Alloc]]=\"WA\"),\"SITUS\",tblREGASSLookup[[#This Row],[Alloc]])","v":"OTHER"},"CUST"]
[{"$f":"CONCATENATE(tblREGASSLookup[[#This Row],[Primary Account]],tblREGASSLookup[[#This Row],[Primary Name]],tblREGASSLookup[[#This Row],[Secondary Acct]],tblREGASSLookup[[#This Row],[Secondary  Name]],tblREGASSLookup[[#This Row],[Alloc4FUNC]])","v":"1823920DSR COSTS AMORTIZED103352COMMERCIAL FINANSWER EXP WY-2012 CAT3OTHER"},1823920,"DSR COSTS AMORTIZED",103352,"COMMERCIAL FINANSWER EXP WY-2012 CAT3","OTHER",null,{"$f":"IF(OR(tblREGASSLookup[[#This Row],[Alloc]]=\"IDU\",tblREGASSLookup[[#This Row],[Alloc]]=\"OR\",tblREGASSLookup[[#This Row],[Alloc]]=\"UT\",tblREGASSLookup[[#This Row],[Alloc]]=\"WYU\",tblREGASSLookup[[#This Row],[Alloc]]=\"WYP\",tblREGASSLookup[[#This Row],[Alloc]]=\"CA\",tblREGASSLookup[[#This Row],[Alloc]]=\"WA\"),\"SITUS\",tblREGASSLookup[[#This Row],[Alloc]])","v":"OTHER"},"CUST"]
[{"$f":"CONCATENATE(tblREGASSLookup[[#This Row],[Primary Account]],tblREGASSLookup[[#This Row],[Primary Name]],tblREGASSLookup[[#This Row],[Secondary Acct]],tblREGASSLookup[[#This Row],[Secondary  Name]],tblREGASSLookup[[#This Row],[Alloc4FUNC]])","v":"1823920DSR COSTS AMORTIZED103353INDUSTRIAL FINANSWER EXP WY-2012 CAT3OTHER"},1823920,"DSR COSTS AMORTIZED",103353,"INDUSTRIAL FINANSWER EXP WY-2012 CAT3","OTHER",null,{"$f":"IF(OR(tblREGASSLookup[[#This Row],[Alloc]]=\"IDU\",tblREGASSLookup[[#This Row],[Alloc]]=\"OR\",tblREGASSLookup[[#This Row],[Alloc]]=\"UT\",tblREGASSLookup[[#This Row],[Alloc]]=\"WYU\",tblREGASSLookup[[#This Row],[Alloc]]=\"WYP\",tblREGASSLookup[[#This Row],[Alloc]]=\"CA\",tblREGASSLookup[[#This Row],[Alloc]]=\"WA\"),\"SITUS\",tblREGASSLookup[[#This Row],[Alloc]])","v":"OTHER"},"CUST"]
[{"$f":"CONCATENATE(tblREGASSLookup[[#This Row],[Primary Account]],tblREGASSLookup[[#This Row],[Primary Name]],tblREGASSLookup[[#This Row],[Secondary Acct]],tblREGASSLookup[[#This Row],[Secondary  Name]],tblREGASSLookup[[#This Row],[Alloc4FUNC]])","v":"1823920DSR COSTS AMORTIZED103354SELF DIRECT - COMMERCIAL -WY-2012 CAT3OTHER"},1823920,"DSR COSTS AMORTIZED",103354,"SELF DIRECT - COMMERCIAL -WY-2012 CAT3","OTHER",null,{"$f":"IF(OR(tblREGASSLookup[[#This Row],[Alloc]]=\"IDU\",tblREGASSLookup[[#This Row],[Alloc]]=\"OR\",tblREGASSLookup[[#This Row],[Alloc]]=\"UT\",tblREGASSLookup[[#This Row],[Alloc]]=\"WYU\",tblREGASSLookup[[#This Row],[Alloc]]=\"WYP\",tblREGASSLookup[[#This Row],[Alloc]]=\"CA\",tblREGASSLookup[[#This Row],[Alloc]]=\"WA\"),\"SITUS\",tblREGASSLookup[[#This Row],[Alloc]])","v":"OTHER"},"CUST"]
[{"$f":"CONCATENATE(tblREGASSLookup[[#This Row],[Primary Account]],tblREGASSLookup[[#This Row],[Primary Name]],tblREGASSLookup[[#This Row],[Secondary Acct]],tblREGASSLookup[[#This Row],[Secondary  Name]],tblREGASSLookup[[#This Row],[Alloc4FUNC]])","v":"1823920DSR COSTS AMORTIZED103355SELF DIRECT -INDUSTRIAL -WY-2012 CAT3OTHER"},1823920,"DSR COSTS AMORTIZED",103355,"SELF DIRECT -INDUSTRIAL -WY-2012 CAT3","OTHER",null,{"$f":"IF(OR(tblREGASSLookup[[#This Row],[Alloc]]=\"IDU\",tblREGASSLookup[[#This Row],[Alloc]]=\"OR\",tblREGASSLookup[[#This Row],[Alloc]]=\"UT\",tblREGASSLookup[[#This Row],[Alloc]]=\"WYU\",tblREGASSLookup[[#This Row],[Alloc]]=\"WYP\",tblREGASSLookup[[#This Row],[Alloc]]=\"CA\",tblREGASSLookup[[#This Row],[Alloc]]=\"WA\"),\"SITUS\",tblREGASSLookup[[#This Row],[Alloc]])","v":"OTHER"},"CUST"]
[{"$f":"CONCATENATE(tblREGASSLookup[[#This Row],[Primary Account]],tblREGASSLookup[[#This Row],[Primary Name]],tblREGASSLookup[[#This Row],[Secondary Acct]],tblREGASSLookup[[#This Row],[Secondary  Name]],tblREGASSLookup[[#This Row],[Alloc4FUNC]])","v":"1823920DSR COSTS AMORTIZED103356COMMERCIAL FINANSWER EXP- WY-2012 CAT2OTHER"},1823920,"DSR COSTS AMORTIZED",103356,"COMMERCIAL FINANSWER EXP- WY-2012 CAT2","OTHER",null,{"$f":"IF(OR(tblREGASSLookup[[#This Row],[Alloc]]=\"IDU\",tblREGASSLookup[[#This Row],[Alloc]]=\"OR\",tblREGASSLookup[[#This Row],[Alloc]]=\"UT\",tblREGASSLookup[[#This Row],[Alloc]]=\"WYU\",tblREGASSLookup[[#This Row],[Alloc]]=\"WYP\",tblREGASSLookup[[#This Row],[Alloc]]=\"CA\",tblREGASSLookup[[#This Row],[Alloc]]=\"WA\"),\"SITUS\",tblREGASSLookup[[#This Row],[Alloc]])","v":"OTHER"},"CUST"]
[{"$f":"CONCATENATE(tblREGASSLookup[[#This Row],[Primary Account]],tblREGASSLookup[[#This Row],[Primary Name]],tblREGASSLookup[[#This Row],[Secondary Acct]],tblREGASSLookup[[#This Row],[Secondary  Name]],tblREGASSLookup[[#This Row],[Alloc4FUNC]])","v":"1823920DSR COSTS AMORTIZED103357INDUSTRIAL FINAN EXPRESS WY-2012 CAT2OTHER"},1823920,"DSR COSTS AMORTIZED",103357,"INDUSTRIAL FINAN EXPRESS WY-2012 CAT2","OTHER",null,{"$f":"IF(OR(tblREGASSLookup[[#This Row],[Alloc]]=\"IDU\",tblREGASSLookup[[#This Row],[Alloc]]=\"OR\",tblREGASSLookup[[#This Row],[Alloc]]=\"UT\",tblREGASSLookup[[#This Row],[Alloc]]=\"WYU\",tblREGASSLookup[[#This Row],[Alloc]]=\"WYP\",tblREGASSLookup[[#This Row],[Alloc]]=\"CA\",tblREGASSLookup[[#This Row],[Alloc]]=\"WA\"),\"SITUS\",tblREGASSLookup[[#This Row],[Alloc]])","v":"OTHER"},"CUST"]
[{"$f":"CONCATENATE(tblREGASSLookup[[#This Row],[Primary Account]],tblREGASSLookup[[#This Row],[Primary Name]],tblREGASSLookup[[#This Row],[Secondary Acct]],tblREGASSLookup[[#This Row],[Secondary  Name]],tblREGASSLookup[[#This Row],[Alloc4FUNC]])","v":"1823920DSR COSTS AMORTIZED103358ENERGY FINANSWER -WY 2012 CAT2OTHER"},1823920,"DSR COSTS AMORTIZED",103358,"ENERGY FINANSWER -WY 2012 CAT2","OTHER",null,{"$f":"IF(OR(tblREGASSLookup[[#This Row],[Alloc]]=\"IDU\",tblREGASSLookup[[#This Row],[Alloc]]=\"OR\",tblREGASSLookup[[#This Row],[Alloc]]=\"UT\",tblREGASSLookup[[#This Row],[Alloc]]=\"WYU\",tblREGASSLookup[[#This Row],[Alloc]]=\"WYP\",tblREGASSLookup[[#This Row],[Alloc]]=\"CA\",tblREGASSLookup[[#This Row],[Alloc]]=\"WA\"),\"SITUS\",tblREGASSLookup[[#This Row],[Alloc]])","v":"OTHER"},"CUST"]
[{"$f":"CONCATENATE(tblREGASSLookup[[#This Row],[Primary Account]],tblREGASSLookup[[#This Row],[Primary Name]],tblREGASSLookup[[#This Row],[Secondary Acct]],tblREGASSLookup[[#This Row],[Secondary  Name]],tblREGASSLookup[[#This Row],[Alloc4FUNC]])","v":"1823920DSR COSTS AMORTIZED103359INDUSTRIAL FINANSWER -WY 2012 CAT2OTHER"},1823920,"DSR COSTS AMORTIZED",103359,"INDUSTRIAL FINANSWER -WY 2012 CAT2","OTHER",null,{"$f":"IF(OR(tblREGASSLookup[[#This Row],[Alloc]]=\"IDU\",tblREGASSLookup[[#This Row],[Alloc]]=\"OR\",tblREGASSLookup[[#This Row],[Alloc]]=\"UT\",tblREGASSLookup[[#This Row],[Alloc]]=\"WYU\",tblREGASSLookup[[#This Row],[Alloc]]=\"WYP\",tblREGASSLookup[[#This Row],[Alloc]]=\"CA\",tblREGASSLookup[[#This Row],[Alloc]]=\"WA\"),\"SITUS\",tblREGASSLookup[[#This Row],[Alloc]])","v":"OTHER"},"CUST"]
[{"$f":"CONCATENATE(tblREGASSLookup[[#This Row],[Primary Account]],tblREGASSLookup[[#This Row],[Primary Name]],tblREGASSLookup[[#This Row],[Secondary Acct]],tblREGASSLookup[[#This Row],[Secondary  Name]],tblREGASSLookup[[#This Row],[Alloc4FUNC]])","v":"1823920DSR COSTS AMORTIZED103360SELF DIRECT - COMMERCIAL WY-2012 CAT2OTHER"},1823920,"DSR COSTS AMORTIZED",103360,"SELF DIRECT - COMMERCIAL WY-2012 CAT2","OTHER",null,{"$f":"IF(OR(tblREGASSLookup[[#This Row],[Alloc]]=\"IDU\",tblREGASSLookup[[#This Row],[Alloc]]=\"OR\",tblREGASSLookup[[#This Row],[Alloc]]=\"UT\",tblREGASSLookup[[#This Row],[Alloc]]=\"WYU\",tblREGASSLookup[[#This Row],[Alloc]]=\"WYP\",tblREGASSLookup[[#This Row],[Alloc]]=\"CA\",tblREGASSLookup[[#This Row],[Alloc]]=\"WA\"),\"SITUS\",tblREGASSLookup[[#This Row],[Alloc]])","v":"OTHER"},"CUST"]
[{"$f":"CONCATENATE(tblREGASSLookup[[#This Row],[Primary Account]],tblREGASSLookup[[#This Row],[Primary Name]],tblREGASSLookup[[#This Row],[Secondary Acct]],tblREGASSLookup[[#This Row],[Secondary  Name]],tblREGASSLookup[[#This Row],[Alloc4FUNC]])","v":"1823920DSR COSTS AMORTIZED103361SELF DIRECT- INDUSTRIAL WY-2012 CAT2OTHER"},1823920,"DSR COSTS AMORTIZED",103361,"SELF DIRECT- INDUSTRIAL WY-2012 CAT2","OTHER",null,{"$f":"IF(OR(tblREGASSLookup[[#This Row],[Alloc]]=\"IDU\",tblREGASSLookup[[#This Row],[Alloc]]=\"OR\",tblREGASSLookup[[#This Row],[Alloc]]=\"UT\",tblREGASSLookup[[#This Row],[Alloc]]=\"WYU\",tblREGASSLookup[[#This Row],[Alloc]]=\"WYP\",tblREGASSLookup[[#This Row],[Alloc]]=\"CA\",tblREGASSLookup[[#This Row],[Alloc]]=\"WA\"),\"SITUS\",tblREGASSLookup[[#This Row],[Alloc]])","v":"OTHER"},"CUST"]
[{"$f":"CONCATENATE(tblREGASSLookup[[#This Row],[Primary Account]],tblREGASSLookup[[#This Row],[Primary Name]],tblREGASSLookup[[#This Row],[Secondary Acct]],tblREGASSLookup[[#This Row],[Secondary  Name]],tblREGASSLookup[[#This Row],[Alloc4FUNC]])","v":"1823920DSR COSTS AMORTIZED103363PORTFOLIO WY-2012 CAT1OTHER"},1823920,"DSR COSTS AMORTIZED",103363,"PORTFOLIO WY-2012 CAT1","OTHER",null,{"$f":"IF(OR(tblREGASSLookup[[#This Row],[Alloc]]=\"IDU\",tblREGASSLookup[[#This Row],[Alloc]]=\"OR\",tblREGASSLookup[[#This Row],[Alloc]]=\"UT\",tblREGASSLookup[[#This Row],[Alloc]]=\"WYU\",tblREGASSLookup[[#This Row],[Alloc]]=\"WYP\",tblREGASSLookup[[#This Row],[Alloc]]=\"CA\",tblREGASSLookup[[#This Row],[Alloc]]=\"WA\"),\"SITUS\",tblREGASSLookup[[#This Row],[Alloc]])","v":"OTHER"},"CUST"]
[{"$f":"CONCATENATE(tblREGASSLookup[[#This Row],[Primary Account]],tblREGASSLookup[[#This Row],[Primary Name]],tblREGASSLookup[[#This Row],[Secondary Acct]],tblREGASSLookup[[#This Row],[Secondary  Name]],tblREGASSLookup[[#This Row],[Alloc4FUNC]])","v":"1823920DSR COSTS AMORTIZED103364OUTREACH AND COMMUNICATION WATTSMT  WY-2OTHER"},1823920,"DSR COSTS AMORTIZED",103364,"OUTREACH AND COMMUNICATION WATTSMT  WY-2","OTHER",null,{"$f":"IF(OR(tblREGASSLookup[[#This Row],[Alloc]]=\"IDU\",tblREGASSLookup[[#This Row],[Alloc]]=\"OR\",tblREGASSLookup[[#This Row],[Alloc]]=\"UT\",tblREGASSLookup[[#This Row],[Alloc]]=\"WYU\",tblREGASSLookup[[#This Row],[Alloc]]=\"WYP\",tblREGASSLookup[[#This Row],[Alloc]]=\"CA\",tblREGASSLookup[[#This Row],[Alloc]]=\"WA\"),\"SITUS\",tblREGASSLookup[[#This Row],[Alloc]])","v":"OTHER"},"CUST"]
[{"$f":"CONCATENATE(tblREGASSLookup[[#This Row],[Primary Account]],tblREGASSLookup[[#This Row],[Primary Name]],tblREGASSLookup[[#This Row],[Secondary Acct]],tblREGASSLookup[[#This Row],[Secondary  Name]],tblREGASSLookup[[#This Row],[Alloc4FUNC]])","v":"1823920DSR COSTS AMORTIZED103365AGRICULURAL FINANSWER EXP WY-2012 CAT2OTHER"},1823920,"DSR COSTS AMORTIZED",103365,"AGRICULURAL FINANSWER EXP WY-2012 CAT2","OTHER",null,{"$f":"IF(OR(tblREGASSLookup[[#This Row],[Alloc]]=\"IDU\",tblREGASSLookup[[#This Row],[Alloc]]=\"OR\",tblREGASSLookup[[#This Row],[Alloc]]=\"UT\",tblREGASSLookup[[#This Row],[Alloc]]=\"WYU\",tblREGASSLookup[[#This Row],[Alloc]]=\"WYP\",tblREGASSLookup[[#This Row],[Alloc]]=\"CA\",tblREGASSLookup[[#This Row],[Alloc]]=\"WA\"),\"SITUS\",tblREGASSLookup[[#This Row],[Alloc]])","v":"OTHER"},"CUST"]
[{"$f":"CONCATENATE(tblREGASSLookup[[#This Row],[Primary Account]],tblREGASSLookup[[#This Row],[Primary Name]],tblREGASSLookup[[#This Row],[Secondary Acct]],tblREGASSLookup[[#This Row],[Secondary  Name]],tblREGASSLookup[[#This Row],[Alloc4FUNC]])","v":"1823920DSR COSTS AMORTIZED103366AGRICULURAL FINANSWER EXP WY-2012 CAT3OTHER"},1823920,"DSR COSTS AMORTIZED",103366,"AGRICULURAL FINANSWER EXP WY-2012 CAT3","OTHER",null,{"$f":"IF(OR(tblREGASSLookup[[#This Row],[Alloc]]=\"IDU\",tblREGASSLookup[[#This Row],[Alloc]]=\"OR\",tblREGASSLookup[[#This Row],[Alloc]]=\"UT\",tblREGASSLookup[[#This Row],[Alloc]]=\"WYU\",tblREGASSLookup[[#This Row],[Alloc]]=\"WYP\",tblREGASSLookup[[#This Row],[Alloc]]=\"CA\",tblREGASSLookup[[#This Row],[Alloc]]=\"WA\"),\"SITUS\",tblREGASSLookup[[#This Row],[Alloc]])","v":"OTHER"},"CUST"]
[{"$f":"CONCATENATE(tblREGASSLookup[[#This Row],[Primary Account]],tblREGASSLookup[[#This Row],[Primary Name]],tblREGASSLookup[[#This Row],[Secondary Acct]],tblREGASSLookup[[#This Row],[Secondary  Name]],tblREGASSLookup[[#This Row],[Alloc4FUNC]])","v":"1823920DSR COSTS AMORTIZED103367PORTFOLIO WY-2012 CAT2OTHER"},1823920,"DSR COSTS AMORTIZED",103367,"PORTFOLIO WY-2012 CAT2","OTHER",null,{"$f":"IF(OR(tblREGASSLookup[[#This Row],[Alloc]]=\"IDU\",tblREGASSLookup[[#This Row],[Alloc]]=\"OR\",tblREGASSLookup[[#This Row],[Alloc]]=\"UT\",tblREGASSLookup[[#This Row],[Alloc]]=\"WYU\",tblREGASSLookup[[#This Row],[Alloc]]=\"WYP\",tblREGASSLookup[[#This Row],[Alloc]]=\"CA\",tblREGASSLookup[[#This Row],[Alloc]]=\"WA\"),\"SITUS\",tblREGASSLookup[[#This Row],[Alloc]])","v":"OTHER"},"CUST"]
[{"$f":"CONCATENATE(tblREGASSLookup[[#This Row],[Primary Account]],tblREGASSLookup[[#This Row],[Primary Name]],tblREGASSLookup[[#This Row],[Secondary Acct]],tblREGASSLookup[[#This Row],[Secondary  Name]],tblREGASSLookup[[#This Row],[Alloc4FUNC]])","v":"1823920DSR COSTS AMORTIZED103368PORTFOLIO WY-2012 CAT3OTHER"},1823920,"DSR COSTS AMORTIZED",103368,"PORTFOLIO WY-2012 CAT3","OTHER",null,{"$f":"IF(OR(tblREGASSLookup[[#This Row],[Alloc]]=\"IDU\",tblREGASSLookup[[#This Row],[Alloc]]=\"OR\",tblREGASSLookup[[#This Row],[Alloc]]=\"UT\",tblREGASSLookup[[#This Row],[Alloc]]=\"WYU\",tblREGASSLookup[[#This Row],[Alloc]]=\"WYP\",tblREGASSLookup[[#This Row],[Alloc]]=\"CA\",tblREGASSLookup[[#This Row],[Alloc]]=\"WA\"),\"SITUS\",tblREGASSLookup[[#This Row],[Alloc]])","v":"OTHER"},"CUST"]
[{"$f":"CONCATENATE(tblREGASSLookup[[#This Row],[Primary Account]],tblREGASSLookup[[#This Row],[Primary Name]],tblREGASSLookup[[#This Row],[Secondary Acct]],tblREGASSLookup[[#This Row],[Secondary  Name]],tblREGASSLookup[[#This Row],[Alloc4FUNC]])","v":"1823920DSR COSTS AMORTIZED103369COMMERCIAL CURTAILMENT - OR 2012OTHER"},1823920,"DSR COSTS AMORTIZED",103369,"COMMERCIAL CURTAILMENT - OR 2012","OTHER",null,{"$f":"IF(OR(tblREGASSLookup[[#This Row],[Alloc]]=\"IDU\",tblREGASSLookup[[#This Row],[Alloc]]=\"OR\",tblREGASSLookup[[#This Row],[Alloc]]=\"UT\",tblREGASSLookup[[#This Row],[Alloc]]=\"WYU\",tblREGASSLookup[[#This Row],[Alloc]]=\"WYP\",tblREGASSLookup[[#This Row],[Alloc]]=\"CA\",tblREGASSLookup[[#This Row],[Alloc]]=\"WA\"),\"SITUS\",tblREGASSLookup[[#This Row],[Alloc]])","v":"OTHER"},"CUST"]
[{"$f":"CONCATENATE(tblREGASSLookup[[#This Row],[Primary Account]],tblREGASSLookup[[#This Row],[Primary Name]],tblREGASSLookup[[#This Row],[Secondary Acct]],tblREGASSLookup[[#This Row],[Secondary  Name]],tblREGASSLookup[[#This Row],[Alloc4FUNC]])","v":"1823920DSR COSTS AMORTIZED103493U.of Utah Student Energy Sponsorship- UTOTHER"},1823920,"DSR COSTS AMORTIZED",103493,"U.of Utah Student Energy Sponsorship- UT","OTHER",null,{"$f":"IF(OR(tblREGASSLookup[[#This Row],[Alloc]]=\"IDU\",tblREGASSLookup[[#This Row],[Alloc]]=\"OR\",tblREGASSLookup[[#This Row],[Alloc]]=\"UT\",tblREGASSLookup[[#This Row],[Alloc]]=\"WYU\",tblREGASSLookup[[#This Row],[Alloc]]=\"WYP\",tblREGASSLookup[[#This Row],[Alloc]]=\"CA\",tblREGASSLookup[[#This Row],[Alloc]]=\"WA\"),\"SITUS\",tblREGASSLookup[[#This Row],[Alloc]])","v":"OTHER"},"CUST"]
[{"$f":"CONCATENATE(tblREGASSLookup[[#This Row],[Primary Account]],tblREGASSLookup[[#This Row],[Primary Name]],tblREGASSLookup[[#This Row],[Secondary Acct]],tblREGASSLookup[[#This Row],[Secondary  Name]],tblREGASSLookup[[#This Row],[Alloc4FUNC]])","v":"1823920DSR COSTS AMORTIZED103496PORTFOLIO - IDAHOOTHER"},1823920,"DSR COSTS AMORTIZED",103496,"PORTFOLIO - IDAHO","OTHER",null,{"$f":"IF(OR(tblREGASSLookup[[#This Row],[Alloc]]=\"IDU\",tblREGASSLookup[[#This Row],[Alloc]]=\"OR\",tblREGASSLookup[[#This Row],[Alloc]]=\"UT\",tblREGASSLookup[[#This Row],[Alloc]]=\"WYU\",tblREGASSLookup[[#This Row],[Alloc]]=\"WYP\",tblREGASSLookup[[#This Row],[Alloc]]=\"CA\",tblREGASSLookup[[#This Row],[Alloc]]=\"WA\"),\"SITUS\",tblREGASSLookup[[#This Row],[Alloc]])","v":"OTHER"},"CUST"]
[{"$f":"CONCATENATE(tblREGASSLookup[[#This Row],[Primary Account]],tblREGASSLookup[[#This Row],[Primary Name]],tblREGASSLookup[[#This Row],[Secondary Acct]],tblREGASSLookup[[#This Row],[Secondary  Name]],tblREGASSLookup[[#This Row],[Alloc4FUNC]])","v":"1823920DSR COSTS AMORTIZED103497PORTFOLIO - UTAHOTHER"},1823920,"DSR COSTS AMORTIZED",103497,"PORTFOLIO - UTAH","OTHER",null,{"$f":"IF(OR(tblREGASSLookup[[#This Row],[Alloc]]=\"IDU\",tblREGASSLookup[[#This Row],[Alloc]]=\"OR\",tblREGASSLookup[[#This Row],[Alloc]]=\"UT\",tblREGASSLookup[[#This Row],[Alloc]]=\"WYU\",tblREGASSLookup[[#This Row],[Alloc]]=\"WYP\",tblREGASSLookup[[#This Row],[Alloc]]=\"CA\",tblREGASSLookup[[#This Row],[Alloc]]=\"WA\"),\"SITUS\",tblREGASSLookup[[#This Row],[Alloc]])","v":"OTHER"},"CUST"]
[{"$f":"CONCATENATE(tblREGASSLookup[[#This Row],[Primary Account]],tblREGASSLookup[[#This Row],[Primary Name]],tblREGASSLookup[[#This Row],[Secondary Acct]],tblREGASSLookup[[#This Row],[Secondary  Name]],tblREGASSLookup[[#This Row],[Alloc4FUNC]])","v":"1823920DSR COSTS AMORTIZED103623CALIFORNIA DSM EXPENSE - 2013OTHER"},1823920,"DSR COSTS AMORTIZED",103623,"CALIFORNIA DSM EXPENSE - 2013","OTHER",null,{"$f":"IF(OR(tblREGASSLookup[[#This Row],[Alloc]]=\"IDU\",tblREGASSLookup[[#This Row],[Alloc]]=\"OR\",tblREGASSLookup[[#This Row],[Alloc]]=\"UT\",tblREGASSLookup[[#This Row],[Alloc]]=\"WYU\",tblREGASSLookup[[#This Row],[Alloc]]=\"WYP\",tblREGASSLookup[[#This Row],[Alloc]]=\"CA\",tblREGASSLookup[[#This Row],[Alloc]]=\"WA\"),\"SITUS\",tblREGASSLookup[[#This Row],[Alloc]])","v":"OTHER"},"CUST"]
[{"$f":"CONCATENATE(tblREGASSLookup[[#This Row],[Primary Account]],tblREGASSLookup[[#This Row],[Primary Name]],tblREGASSLookup[[#This Row],[Secondary Acct]],tblREGASSLookup[[#This Row],[Secondary  Name]],tblREGASSLookup[[#This Row],[Alloc4FUNC]])","v":"1823920DSR COSTS AMORTIZED103646PORTFOLIO - IDAHO 2013OTHER"},1823920,"DSR COSTS AMORTIZED",103646,"PORTFOLIO - IDAHO 2013","OTHER",null,{"$f":"IF(OR(tblREGASSLookup[[#This Row],[Alloc]]=\"IDU\",tblREGASSLookup[[#This Row],[Alloc]]=\"OR\",tblREGASSLookup[[#This Row],[Alloc]]=\"UT\",tblREGASSLookup[[#This Row],[Alloc]]=\"WYU\",tblREGASSLookup[[#This Row],[Alloc]]=\"WYP\",tblREGASSLookup[[#This Row],[Alloc]]=\"CA\",tblREGASSLookup[[#This Row],[Alloc]]=\"WA\"),\"SITUS\",tblREGASSLookup[[#This Row],[Alloc]])","v":"OTHER"},"CUST"]
[{"$f":"CONCATENATE(tblREGASSLookup[[#This Row],[Primary Account]],tblREGASSLookup[[#This Row],[Primary Name]],tblREGASSLookup[[#This Row],[Secondary Acct]],tblREGASSLookup[[#This Row],[Secondary  Name]],tblREGASSLookup[[#This Row],[Alloc4FUNC]])","v":"1823920DSR COSTS AMORTIZED103647A/C LOAD CONTROL - RESIDENTIAL/UTAH - 20OTHER"},1823920,"DSR COSTS AMORTIZED",103647,"A/C LOAD CONTROL - RESIDENTIAL/UTAH - 20","OTHER",null,{"$f":"IF(OR(tblREGASSLookup[[#This Row],[Alloc]]=\"IDU\",tblREGASSLookup[[#This Row],[Alloc]]=\"OR\",tblREGASSLookup[[#This Row],[Alloc]]=\"UT\",tblREGASSLookup[[#This Row],[Alloc]]=\"WYU\",tblREGASSLookup[[#This Row],[Alloc]]=\"WYP\",tblREGASSLookup[[#This Row],[Alloc]]=\"CA\",tblREGASSLookup[[#This Row],[Alloc]]=\"WA\"),\"SITUS\",tblREGASSLookup[[#This Row],[Alloc]])","v":"OTHER"},"CUST"]
[{"$f":"CONCATENATE(tblREGASSLookup[[#This Row],[Primary Account]],tblREGASSLookup[[#This Row],[Primary Name]],tblREGASSLookup[[#This Row],[Secondary Acct]],tblREGASSLookup[[#This Row],[Secondary  Name]],tblREGASSLookup[[#This Row],[Alloc4FUNC]])","v":"1823920DSR COSTS AMORTIZED103648AIR CONDITIONING - UTAH - 2013OTHER"},1823920,"DSR COSTS AMORTIZED",103648,"AIR CONDITIONING - UTAH - 2013","OTHER",null,{"$f":"IF(OR(tblREGASSLookup[[#This Row],[Alloc]]=\"IDU\",tblREGASSLookup[[#This Row],[Alloc]]=\"OR\",tblREGASSLookup[[#This Row],[Alloc]]=\"UT\",tblREGASSLookup[[#This Row],[Alloc]]=\"WYU\",tblREGASSLookup[[#This Row],[Alloc]]=\"WYP\",tblREGASSLookup[[#This Row],[Alloc]]=\"CA\",tblREGASSLookup[[#This Row],[Alloc]]=\"WA\"),\"SITUS\",tblREGASSLookup[[#This Row],[Alloc]])","v":"OTHER"},"CUST"]
[{"$f":"CONCATENATE(tblREGASSLookup[[#This Row],[Primary Account]],tblREGASSLookup[[#This Row],[Primary Name]],tblREGASSLookup[[#This Row],[Secondary Acct]],tblREGASSLookup[[#This Row],[Secondary  Name]],tblREGASSLookup[[#This Row],[Alloc4FUNC]])","v":"1823920DSR COSTS AMORTIZED103649ENERGY FINANSWER - UTAH - 2013OTHER"},1823920,"DSR COSTS AMORTIZED",103649,"ENERGY FINANSWER - UTAH - 2013","OTHER",null,{"$f":"IF(OR(tblREGASSLookup[[#This Row],[Alloc]]=\"IDU\",tblREGASSLookup[[#This Row],[Alloc]]=\"OR\",tblREGASSLookup[[#This Row],[Alloc]]=\"UT\",tblREGASSLookup[[#This Row],[Alloc]]=\"WYU\",tblREGASSLookup[[#This Row],[Alloc]]=\"WYP\",tblREGASSLookup[[#This Row],[Alloc]]=\"CA\",tblREGASSLookup[[#This Row],[Alloc]]=\"WA\"),\"SITUS\",tblREGASSLookup[[#This Row],[Alloc]])","v":"OTHER"},"CUST"]
[{"$f":"CONCATENATE(tblREGASSLookup[[#This Row],[Primary Account]],tblREGASSLookup[[#This Row],[Primary Name]],tblREGASSLookup[[#This Row],[Secondary Acct]],tblREGASSLookup[[#This Row],[Secondary  Name]],tblREGASSLookup[[#This Row],[Alloc4FUNC]])","v":"1823920DSR COSTS AMORTIZED103650INDUSTRIAL FINANSWER - UTAH - 2013OTHER"},1823920,"DSR COSTS AMORTIZED",103650,"INDUSTRIAL FINANSWER - UTAH - 2013","OTHER",null,{"$f":"IF(OR(tblREGASSLookup[[#This Row],[Alloc]]=\"IDU\",tblREGASSLookup[[#This Row],[Alloc]]=\"OR\",tblREGASSLookup[[#This Row],[Alloc]]=\"UT\",tblREGASSLookup[[#This Row],[Alloc]]=\"WYU\",tblREGASSLookup[[#This Row],[Alloc]]=\"WYP\",tblREGASSLookup[[#This Row],[Alloc]]=\"CA\",tblREGASSLookup[[#This Row],[Alloc]]=\"WA\"),\"SITUS\",tblREGASSLookup[[#This Row],[Alloc]])","v":"OTHER"},"CUST"]
[{"$f":"CONCATENATE(tblREGASSLookup[[#This Row],[Primary Account]],tblREGASSLookup[[#This Row],[Primary Name]],tblREGASSLookup[[#This Row],[Secondary Acct]],tblREGASSLookup[[#This Row],[Secondary  Name]],tblREGASSLookup[[#This Row],[Alloc4FUNC]])","v":"1823920DSR COSTS AMORTIZED103651LOW INCOME - UTAH - 2013OTHER"},1823920,"DSR COSTS AMORTIZED",103651,"LOW INCOME - UTAH - 2013","OTHER",null,{"$f":"IF(OR(tblREGASSLookup[[#This Row],[Alloc]]=\"IDU\",tblREGASSLookup[[#This Row],[Alloc]]=\"OR\",tblREGASSLookup[[#This Row],[Alloc]]=\"UT\",tblREGASSLookup[[#This Row],[Alloc]]=\"WYU\",tblREGASSLookup[[#This Row],[Alloc]]=\"WYP\",tblREGASSLookup[[#This Row],[Alloc]]=\"CA\",tblREGASSLookup[[#This Row],[Alloc]]=\"WA\"),\"SITUS\",tblREGASSLookup[[#This Row],[Alloc]])","v":"OTHER"},"CUST"]
[{"$f":"CONCATENATE(tblREGASSLookup[[#This Row],[Primary Account]],tblREGASSLookup[[#This Row],[Primary Name]],tblREGASSLookup[[#This Row],[Secondary Acct]],tblREGASSLookup[[#This Row],[Secondary  Name]],tblREGASSLookup[[#This Row],[Alloc4FUNC]])","v":"1823920DSR COSTS AMORTIZED103653REFRIGERATOR RECYCLING PGM- UTAH - 2013OTHER"},1823920,"DSR COSTS AMORTIZED",103653,"REFRIGERATOR RECYCLING PGM- UTAH - 2013","OTHER",null,{"$f":"IF(OR(tblREGASSLookup[[#This Row],[Alloc]]=\"IDU\",tblREGASSLookup[[#This Row],[Alloc]]=\"OR\",tblREGASSLookup[[#This Row],[Alloc]]=\"UT\",tblREGASSLookup[[#This Row],[Alloc]]=\"WYU\",tblREGASSLookup[[#This Row],[Alloc]]=\"WYP\",tblREGASSLookup[[#This Row],[Alloc]]=\"CA\",tblREGASSLookup[[#This Row],[Alloc]]=\"WA\"),\"SITUS\",tblREGASSLookup[[#This Row],[Alloc]])","v":"OTHER"},"CUST"]
[{"$f":"CONCATENATE(tblREGASSLookup[[#This Row],[Primary Account]],tblREGASSLookup[[#This Row],[Primary Name]],tblREGASSLookup[[#This Row],[Secondary Acct]],tblREGASSLookup[[#This Row],[Secondary  Name]],tblREGASSLookup[[#This Row],[Alloc4FUNC]])","v":"1823920DSR COSTS AMORTIZED103654COMMERCIAL SELF-DIRECT - UTAH - 2013OTHER"},1823920,"DSR COSTS AMORTIZED",103654,"COMMERCIAL SELF-DIRECT - UTAH - 2013","OTHER",null,{"$f":"IF(OR(tblREGASSLookup[[#This Row],[Alloc]]=\"IDU\",tblREGASSLookup[[#This Row],[Alloc]]=\"OR\",tblREGASSLookup[[#This Row],[Alloc]]=\"UT\",tblREGASSLookup[[#This Row],[Alloc]]=\"WYU\",tblREGASSLookup[[#This Row],[Alloc]]=\"WYP\",tblREGASSLookup[[#This Row],[Alloc]]=\"CA\",tblREGASSLookup[[#This Row],[Alloc]]=\"WA\"),\"SITUS\",tblREGASSLookup[[#This Row],[Alloc]])","v":"OTHER"},"CUST"]
[{"$f":"CONCATENATE(tblREGASSLookup[[#This Row],[Primary Account]],tblREGASSLookup[[#This Row],[Primary Name]],tblREGASSLookup[[#This Row],[Secondary Acct]],tblREGASSLookup[[#This Row],[Secondary  Name]],tblREGASSLookup[[#This Row],[Alloc4FUNC]])","v":"1823920DSR COSTS AMORTIZED103655INDUSTRIAL SELF-DIRECT - UTAH - 2013OTHER"},1823920,"DSR COSTS AMORTIZED",103655,"INDUSTRIAL SELF-DIRECT - UTAH - 2013","OTHER",null,{"$f":"IF(OR(tblREGASSLookup[[#This Row],[Alloc]]=\"IDU\",tblREGASSLookup[[#This Row],[Alloc]]=\"OR\",tblREGASSLookup[[#This Row],[Alloc]]=\"UT\",tblREGASSLookup[[#This Row],[Alloc]]=\"WYU\",tblREGASSLookup[[#This Row],[Alloc]]=\"WYP\",tblREGASSLookup[[#This Row],[Alloc]]=\"CA\",tblREGASSLookup[[#This Row],[Alloc]]=\"WA\"),\"SITUS\",tblREGASSLookup[[#This Row],[Alloc]])","v":"OTHER"},"CUST"]
[{"$f":"CONCATENATE(tblREGASSLookup[[#This Row],[Primary Account]],tblREGASSLookup[[#This Row],[Primary Name]],tblREGASSLookup[[#This Row],[Secondary Acct]],tblREGASSLookup[[#This Row],[Secondary  Name]],tblREGASSLookup[[#This Row],[Alloc4FUNC]])","v":"1823920DSR COSTS AMORTIZED103656RESIDENTIAL NEW CONSTRUCTION - UTAH - 20OTHER"},1823920,"DSR COSTS AMORTIZED",103656,"RESIDENTIAL NEW CONSTRUCTION - UTAH - 20","OTHER",null,{"$f":"IF(OR(tblREGASSLookup[[#This Row],[Alloc]]=\"IDU\",tblREGASSLookup[[#This Row],[Alloc]]=\"OR\",tblREGASSLookup[[#This Row],[Alloc]]=\"UT\",tblREGASSLookup[[#This Row],[Alloc]]=\"WYU\",tblREGASSLookup[[#This Row],[Alloc]]=\"WYP\",tblREGASSLookup[[#This Row],[Alloc]]=\"CA\",tblREGASSLookup[[#This Row],[Alloc]]=\"WA\"),\"SITUS\",tblREGASSLookup[[#This Row],[Alloc]])","v":"OTHER"},"CUST"]
[{"$f":"CONCATENATE(tblREGASSLookup[[#This Row],[Primary Account]],tblREGASSLookup[[#This Row],[Primary Name]],tblREGASSLookup[[#This Row],[Secondary Acct]],tblREGASSLookup[[#This Row],[Secondary  Name]],tblREGASSLookup[[#This Row],[Alloc4FUNC]])","v":"1823920DSR COSTS AMORTIZED103657COMMERCIAL FINANSWER EXPRESS - UTAH - 20OTHER"},1823920,"DSR COSTS AMORTIZED",103657,"COMMERCIAL FINANSWER EXPRESS - UTAH - 20","OTHER",null,{"$f":"IF(OR(tblREGASSLookup[[#This Row],[Alloc]]=\"IDU\",tblREGASSLookup[[#This Row],[Alloc]]=\"OR\",tblREGASSLookup[[#This Row],[Alloc]]=\"UT\",tblREGASSLookup[[#This Row],[Alloc]]=\"WYU\",tblREGASSLookup[[#This Row],[Alloc]]=\"WYP\",tblREGASSLookup[[#This Row],[Alloc]]=\"CA\",tblREGASSLookup[[#This Row],[Alloc]]=\"WA\"),\"SITUS\",tblREGASSLookup[[#This Row],[Alloc]])","v":"OTHER"},"CUST"]
[{"$f":"CONCATENATE(tblREGASSLookup[[#This Row],[Primary Account]],tblREGASSLookup[[#This Row],[Primary Name]],tblREGASSLookup[[#This Row],[Secondary Acct]],tblREGASSLookup[[#This Row],[Secondary  Name]],tblREGASSLookup[[#This Row],[Alloc4FUNC]])","v":"1823920DSR COSTS AMORTIZED103658INDUSTRIAL FINANSWER EXPRESS - UTAH - 20OTHER"},1823920,"DSR COSTS AMORTIZED",103658,"INDUSTRIAL FINANSWER EXPRESS - UTAH - 20","OTHER",null,{"$f":"IF(OR(tblREGASSLookup[[#This Row],[Alloc]]=\"IDU\",tblREGASSLookup[[#This Row],[Alloc]]=\"OR\",tblREGASSLookup[[#This Row],[Alloc]]=\"UT\",tblREGASSLookup[[#This Row],[Alloc]]=\"WYU\",tblREGASSLookup[[#This Row],[Alloc]]=\"WYP\",tblREGASSLookup[[#This Row],[Alloc]]=\"CA\",tblREGASSLookup[[#This Row],[Alloc]]=\"WA\"),\"SITUS\",tblREGASSLookup[[#This Row],[Alloc]])","v":"OTHER"},"CUST"]
[{"$f":"CONCATENATE(tblREGASSLookup[[#This Row],[Primary Account]],tblREGASSLookup[[#This Row],[Primary Name]],tblREGASSLookup[[#This Row],[Secondary Acct]],tblREGASSLookup[[#This Row],[Secondary  Name]],tblREGASSLookup[[#This Row],[Alloc4FUNC]])","v":"1823920DSR COSTS AMORTIZED103660IRRIGATION LOAD CONTROL  - UTAH - 2013OTHER"},1823920,"DSR COSTS AMORTIZED",103660,"IRRIGATION LOAD CONTROL  - UTAH - 2013","OTHER",null,{"$f":"IF(OR(tblREGASSLookup[[#This Row],[Alloc]]=\"IDU\",tblREGASSLookup[[#This Row],[Alloc]]=\"OR\",tblREGASSLookup[[#This Row],[Alloc]]=\"UT\",tblREGASSLookup[[#This Row],[Alloc]]=\"WYU\",tblREGASSLookup[[#This Row],[Alloc]]=\"WYP\",tblREGASSLookup[[#This Row],[Alloc]]=\"CA\",tblREGASSLookup[[#This Row],[Alloc]]=\"WA\"),\"SITUS\",tblREGASSLookup[[#This Row],[Alloc]])","v":"OTHER"},"CUST"]
[{"$f":"CONCATENATE(tblREGASSLookup[[#This Row],[Primary Account]],tblREGASSLookup[[#This Row],[Primary Name]],tblREGASSLookup[[#This Row],[Secondary Acct]],tblREGASSLookup[[#This Row],[Secondary  Name]],tblREGASSLookup[[#This Row],[Alloc4FUNC]])","v":"1823920DSR COSTS AMORTIZED103661HOME ENERGY EFF INCENTIVE PROG - UT 2013OTHER"},1823920,"DSR COSTS AMORTIZED",103661,"HOME ENERGY EFF INCENTIVE PROG - UT 2013","OTHER",null,{"$f":"IF(OR(tblREGASSLookup[[#This Row],[Alloc]]=\"IDU\",tblREGASSLookup[[#This Row],[Alloc]]=\"OR\",tblREGASSLookup[[#This Row],[Alloc]]=\"UT\",tblREGASSLookup[[#This Row],[Alloc]]=\"WYU\",tblREGASSLookup[[#This Row],[Alloc]]=\"WYP\",tblREGASSLookup[[#This Row],[Alloc]]=\"CA\",tblREGASSLookup[[#This Row],[Alloc]]=\"WA\"),\"SITUS\",tblREGASSLookup[[#This Row],[Alloc]])","v":"OTHER"},"CUST"]
[{"$f":"CONCATENATE(tblREGASSLookup[[#This Row],[Primary Account]],tblREGASSLookup[[#This Row],[Primary Name]],tblREGASSLookup[[#This Row],[Secondary Acct]],tblREGASSLookup[[#This Row],[Secondary  Name]],tblREGASSLookup[[#This Row],[Alloc4FUNC]])","v":"1823920DSR COSTS AMORTIZED103662OUTREACH and COMMUNICATIONS - UT 2013OTHER"},1823920,"DSR COSTS AMORTIZED",103662,"OUTREACH and COMMUNICATIONS - UT 2013","OTHER",null,{"$f":"IF(OR(tblREGASSLookup[[#This Row],[Alloc]]=\"IDU\",tblREGASSLookup[[#This Row],[Alloc]]=\"OR\",tblREGASSLookup[[#This Row],[Alloc]]=\"UT\",tblREGASSLookup[[#This Row],[Alloc]]=\"WYU\",tblREGASSLookup[[#This Row],[Alloc]]=\"WYP\",tblREGASSLookup[[#This Row],[Alloc]]=\"CA\",tblREGASSLookup[[#This Row],[Alloc]]=\"WA\"),\"SITUS\",tblREGASSLookup[[#This Row],[Alloc]])","v":"OTHER"},"CUST"]
[{"$f":"CONCATENATE(tblREGASSLookup[[#This Row],[Primary Account]],tblREGASSLookup[[#This Row],[Primary Name]],tblREGASSLookup[[#This Row],[Secondary Acct]],tblREGASSLookup[[#This Row],[Secondary  Name]],tblREGASSLookup[[#This Row],[Alloc4FUNC]])","v":"1823920DSR COSTS AMORTIZED103666AGRICULTURAL FINANSWER EXPRESS - UTAH -OTHER"},1823920,"DSR COSTS AMORTIZED",103666,"AGRICULTURAL FINANSWER EXPRESS - UTAH -","OTHER",null,{"$f":"IF(OR(tblREGASSLookup[[#This Row],[Alloc]]=\"IDU\",tblREGASSLookup[[#This Row],[Alloc]]=\"OR\",tblREGASSLookup[[#This Row],[Alloc]]=\"UT\",tblREGASSLookup[[#This Row],[Alloc]]=\"WYU\",tblREGASSLookup[[#This Row],[Alloc]]=\"WYP\",tblREGASSLookup[[#This Row],[Alloc]]=\"CA\",tblREGASSLookup[[#This Row],[Alloc]]=\"WA\"),\"SITUS\",tblREGASSLookup[[#This Row],[Alloc]])","v":"OTHER"},"CUST"]
[{"$f":"CONCATENATE(tblREGASSLookup[[#This Row],[Primary Account]],tblREGASSLookup[[#This Row],[Primary Name]],tblREGASSLookup[[#This Row],[Secondary Acct]],tblREGASSLookup[[#This Row],[Secondary  Name]],tblREGASSLookup[[#This Row],[Alloc4FUNC]])","v":"1823920DSR COSTS AMORTIZED103671HOME ENERGY REPORTING - UT 2013OTHER"},1823920,"DSR COSTS AMORTIZED",103671,"HOME ENERGY REPORTING - UT 2013","OTHER",null,{"$f":"IF(OR(tblREGASSLookup[[#This Row],[Alloc]]=\"IDU\",tblREGASSLookup[[#This Row],[Alloc]]=\"OR\",tblREGASSLookup[[#This Row],[Alloc]]=\"UT\",tblREGASSLookup[[#This Row],[Alloc]]=\"WYU\",tblREGASSLookup[[#This Row],[Alloc]]=\"WYP\",tblREGASSLookup[[#This Row],[Alloc]]=\"CA\",tblREGASSLookup[[#This Row],[Alloc]]=\"WA\"),\"SITUS\",tblREGASSLookup[[#This Row],[Alloc]])","v":"OTHER"},"CUST"]
[{"$f":"CONCATENATE(tblREGASSLookup[[#This Row],[Primary Account]],tblREGASSLookup[[#This Row],[Primary Name]],tblREGASSLookup[[#This Row],[Secondary Acct]],tblREGASSLookup[[#This Row],[Secondary  Name]],tblREGASSLookup[[#This Row],[Alloc4FUNC]])","v":"1823920DSR COSTS AMORTIZED103673RETROFIT COMMISSIONING PROGRAM  - UTAH -OTHER"},1823920,"DSR COSTS AMORTIZED",103673,"RETROFIT COMMISSIONING PROGRAM  - UTAH -","OTHER",null,{"$f":"IF(OR(tblREGASSLookup[[#This Row],[Alloc]]=\"IDU\",tblREGASSLookup[[#This Row],[Alloc]]=\"OR\",tblREGASSLookup[[#This Row],[Alloc]]=\"UT\",tblREGASSLookup[[#This Row],[Alloc]]=\"WYU\",tblREGASSLookup[[#This Row],[Alloc]]=\"WYP\",tblREGASSLookup[[#This Row],[Alloc]]=\"CA\",tblREGASSLookup[[#This Row],[Alloc]]=\"WA\"),\"SITUS\",tblREGASSLookup[[#This Row],[Alloc]])","v":"OTHER"},"CUST"]
[{"$f":"CONCATENATE(tblREGASSLookup[[#This Row],[Primary Account]],tblREGASSLookup[[#This Row],[Primary Name]],tblREGASSLookup[[#This Row],[Secondary Acct]],tblREGASSLookup[[#This Row],[Secondary  Name]],tblREGASSLookup[[#This Row],[Alloc4FUNC]])","v":"1823920DSR COSTS AMORTIZED103675ENERGY FINANSWER-WY-2013 CAT3OTHER"},1823920,"DSR COSTS AMORTIZED",103675,"ENERGY FINANSWER-WY-2013 CAT3","OTHER",null,{"$f":"IF(OR(tblREGASSLookup[[#This Row],[Alloc]]=\"IDU\",tblREGASSLookup[[#This Row],[Alloc]]=\"OR\",tblREGASSLookup[[#This Row],[Alloc]]=\"UT\",tblREGASSLookup[[#This Row],[Alloc]]=\"WYU\",tblREGASSLookup[[#This Row],[Alloc]]=\"WYP\",tblREGASSLookup[[#This Row],[Alloc]]=\"CA\",tblREGASSLookup[[#This Row],[Alloc]]=\"WA\"),\"SITUS\",tblREGASSLookup[[#This Row],[Alloc]])","v":"OTHER"},"CUST"]
[{"$f":"CONCATENATE(tblREGASSLookup[[#This Row],[Primary Account]],tblREGASSLookup[[#This Row],[Primary Name]],tblREGASSLookup[[#This Row],[Secondary Acct]],tblREGASSLookup[[#This Row],[Secondary  Name]],tblREGASSLookup[[#This Row],[Alloc4FUNC]])","v":"1823920DSR COSTS AMORTIZED103676INDUSTRIAL FINANSWER-WY-2013 CAT3OTHER"},1823920,"DSR COSTS AMORTIZED",103676,"INDUSTRIAL FINANSWER-WY-2013 CAT3","OTHER",null,{"$f":"IF(OR(tblREGASSLookup[[#This Row],[Alloc]]=\"IDU\",tblREGASSLookup[[#This Row],[Alloc]]=\"OR\",tblREGASSLookup[[#This Row],[Alloc]]=\"UT\",tblREGASSLookup[[#This Row],[Alloc]]=\"WYU\",tblREGASSLookup[[#This Row],[Alloc]]=\"WYP\",tblREGASSLookup[[#This Row],[Alloc]]=\"CA\",tblREGASSLookup[[#This Row],[Alloc]]=\"WA\"),\"SITUS\",tblREGASSLookup[[#This Row],[Alloc]])","v":"OTHER"},"CUST"]
[{"$f":"CONCATENATE(tblREGASSLookup[[#This Row],[Primary Account]],tblREGASSLookup[[#This Row],[Primary Name]],tblREGASSLookup[[#This Row],[Secondary Acct]],tblREGASSLookup[[#This Row],[Secondary  Name]],tblREGASSLookup[[#This Row],[Alloc4FUNC]])","v":"1823920DSR COSTS AMORTIZED103677REFRIGERATOR RECYCLING-WY -2013 CAT1OTHER"},1823920,"DSR COSTS AMORTIZED",103677,"REFRIGERATOR RECYCLING-WY -2013 CAT1","OTHER",null,{"$f":"IF(OR(tblREGASSLookup[[#This Row],[Alloc]]=\"IDU\",tblREGASSLookup[[#This Row],[Alloc]]=\"OR\",tblREGASSLookup[[#This Row],[Alloc]]=\"UT\",tblREGASSLookup[[#This Row],[Alloc]]=\"WYU\",tblREGASSLookup[[#This Row],[Alloc]]=\"WYP\",tblREGASSLookup[[#This Row],[Alloc]]=\"CA\",tblREGASSLookup[[#This Row],[Alloc]]=\"WA\"),\"SITUS\",tblREGASSLookup[[#This Row],[Alloc]])","v":"OTHER"},"CUST"]
[{"$f":"CONCATENATE(tblREGASSLookup[[#This Row],[Primary Account]],tblREGASSLookup[[#This Row],[Primary Name]],tblREGASSLookup[[#This Row],[Secondary Acct]],tblREGASSLookup[[#This Row],[Secondary  Name]],tblREGASSLookup[[#This Row],[Alloc4FUNC]])","v":"1823920DSR COSTS AMORTIZED103678HOME ENERGY EFF INCENT PROG Y-2013 CAT1OTHER"},1823920,"DSR COSTS AMORTIZED",103678,"HOME ENERGY EFF INCENT PROG Y-2013 CAT1","OTHER",null,{"$f":"IF(OR(tblREGASSLookup[[#This Row],[Alloc]]=\"IDU\",tblREGASSLookup[[#This Row],[Alloc]]=\"OR\",tblREGASSLookup[[#This Row],[Alloc]]=\"UT\",tblREGASSLookup[[#This Row],[Alloc]]=\"WYU\",tblREGASSLookup[[#This Row],[Alloc]]=\"WYP\",tblREGASSLookup[[#This Row],[Alloc]]=\"CA\",tblREGASSLookup[[#This Row],[Alloc]]=\"WA\"),\"SITUS\",tblREGASSLookup[[#This Row],[Alloc]])","v":"OTHER"},"CUST"]
[{"$f":"CONCATENATE(tblREGASSLookup[[#This Row],[Primary Account]],tblREGASSLookup[[#This Row],[Primary Name]],tblREGASSLookup[[#This Row],[Secondary Acct]],tblREGASSLookup[[#This Row],[Secondary  Name]],tblREGASSLookup[[#This Row],[Alloc4FUNC]])","v":"1823920DSR COSTS AMORTIZED103679LOW-INCOME WEATHERZTN - WY 2013 CAT1OTHER"},1823920,"DSR COSTS AMORTIZED",103679,"LOW-INCOME WEATHERZTN - WY 2013 CAT1","OTHER",null,{"$f":"IF(OR(tblREGASSLookup[[#This Row],[Alloc]]=\"IDU\",tblREGASSLookup[[#This Row],[Alloc]]=\"OR\",tblREGASSLookup[[#This Row],[Alloc]]=\"UT\",tblREGASSLookup[[#This Row],[Alloc]]=\"WYU\",tblREGASSLookup[[#This Row],[Alloc]]=\"WYP\",tblREGASSLookup[[#This Row],[Alloc]]=\"CA\",tblREGASSLookup[[#This Row],[Alloc]]=\"WA\"),\"SITUS\",tblREGASSLookup[[#This Row],[Alloc]])","v":"OTHER"},"CUST"]
[{"$f":"CONCATENATE(tblREGASSLookup[[#This Row],[Primary Account]],tblREGASSLookup[[#This Row],[Primary Name]],tblREGASSLookup[[#This Row],[Secondary Acct]],tblREGASSLookup[[#This Row],[Secondary  Name]],tblREGASSLookup[[#This Row],[Alloc4FUNC]])","v":"1823920DSR COSTS AMORTIZED103680COMMERCIAL FINANSWER EXP WY-2013 CAT3OTHER"},1823920,"DSR COSTS AMORTIZED",103680,"COMMERCIAL FINANSWER EXP WY-2013 CAT3","OTHER",null,{"$f":"IF(OR(tblREGASSLookup[[#This Row],[Alloc]]=\"IDU\",tblREGASSLookup[[#This Row],[Alloc]]=\"OR\",tblREGASSLookup[[#This Row],[Alloc]]=\"UT\",tblREGASSLookup[[#This Row],[Alloc]]=\"WYU\",tblREGASSLookup[[#This Row],[Alloc]]=\"WYP\",tblREGASSLookup[[#This Row],[Alloc]]=\"CA\",tblREGASSLookup[[#This Row],[Alloc]]=\"WA\"),\"SITUS\",tblREGASSLookup[[#This Row],[Alloc]])","v":"OTHER"},"CUST"]
[{"$f":"CONCATENATE(tblREGASSLookup[[#This Row],[Primary Account]],tblREGASSLookup[[#This Row],[Primary Name]],tblREGASSLookup[[#This Row],[Secondary Acct]],tblREGASSLookup[[#This Row],[Secondary  Name]],tblREGASSLookup[[#This Row],[Alloc4FUNC]])","v":"1823920DSR COSTS AMORTIZED103681INDUSTRIAL FINANSWER EXP WY-2013 CAT3OTHER"},1823920,"DSR COSTS AMORTIZED",103681,"INDUSTRIAL FINANSWER EXP WY-2013 CAT3","OTHER",null,{"$f":"IF(OR(tblREGASSLookup[[#This Row],[Alloc]]=\"IDU\",tblREGASSLookup[[#This Row],[Alloc]]=\"OR\",tblREGASSLookup[[#This Row],[Alloc]]=\"UT\",tblREGASSLookup[[#This Row],[Alloc]]=\"WYU\",tblREGASSLookup[[#This Row],[Alloc]]=\"WYP\",tblREGASSLookup[[#This Row],[Alloc]]=\"CA\",tblREGASSLookup[[#This Row],[Alloc]]=\"WA\"),\"SITUS\",tblREGASSLookup[[#This Row],[Alloc]])","v":"OTHER"},"CUST"]
[{"$f":"CONCATENATE(tblREGASSLookup[[#This Row],[Primary Account]],tblREGASSLookup[[#This Row],[Primary Name]],tblREGASSLookup[[#This Row],[Secondary Acct]],tblREGASSLookup[[#This Row],[Secondary  Name]],tblREGASSLookup[[#This Row],[Alloc4FUNC]])","v":"1823920DSR COSTS AMORTIZED103682SELF DIRECT - COMMERCIAL -WY-2013 CAT3OTHER"},1823920,"DSR COSTS AMORTIZED",103682,"SELF DIRECT - COMMERCIAL -WY-2013 CAT3","OTHER",null,{"$f":"IF(OR(tblREGASSLookup[[#This Row],[Alloc]]=\"IDU\",tblREGASSLookup[[#This Row],[Alloc]]=\"OR\",tblREGASSLookup[[#This Row],[Alloc]]=\"UT\",tblREGASSLookup[[#This Row],[Alloc]]=\"WYU\",tblREGASSLookup[[#This Row],[Alloc]]=\"WYP\",tblREGASSLookup[[#This Row],[Alloc]]=\"CA\",tblREGASSLookup[[#This Row],[Alloc]]=\"WA\"),\"SITUS\",tblREGASSLookup[[#This Row],[Alloc]])","v":"OTHER"},"CUST"]
[{"$f":"CONCATENATE(tblREGASSLookup[[#This Row],[Primary Account]],tblREGASSLookup[[#This Row],[Primary Name]],tblREGASSLookup[[#This Row],[Secondary Acct]],tblREGASSLookup[[#This Row],[Secondary  Name]],tblREGASSLookup[[#This Row],[Alloc4FUNC]])","v":"1823920DSR COSTS AMORTIZED103683SELF DIRECT -INDUSTRIAL -WY-2013 CAT3OTHER"},1823920,"DSR COSTS AMORTIZED",103683,"SELF DIRECT -INDUSTRIAL -WY-2013 CAT3","OTHER",null,{"$f":"IF(OR(tblREGASSLookup[[#This Row],[Alloc]]=\"IDU\",tblREGASSLookup[[#This Row],[Alloc]]=\"OR\",tblREGASSLookup[[#This Row],[Alloc]]=\"UT\",tblREGASSLookup[[#This Row],[Alloc]]=\"WYU\",tblREGASSLookup[[#This Row],[Alloc]]=\"WYP\",tblREGASSLookup[[#This Row],[Alloc]]=\"CA\",tblREGASSLookup[[#This Row],[Alloc]]=\"WA\"),\"SITUS\",tblREGASSLookup[[#This Row],[Alloc]])","v":"OTHER"},"CUST"]
[{"$f":"CONCATENATE(tblREGASSLookup[[#This Row],[Primary Account]],tblREGASSLookup[[#This Row],[Primary Name]],tblREGASSLookup[[#This Row],[Secondary Acct]],tblREGASSLookup[[#This Row],[Secondary  Name]],tblREGASSLookup[[#This Row],[Alloc4FUNC]])","v":"1823920DSR COSTS AMORTIZED103684COMMERCIAL FINANSWER EXP- WY-2013 CAT2OTHER"},1823920,"DSR COSTS AMORTIZED",103684,"COMMERCIAL FINANSWER EXP- WY-2013 CAT2","OTHER",null,{"$f":"IF(OR(tblREGASSLookup[[#This Row],[Alloc]]=\"IDU\",tblREGASSLookup[[#This Row],[Alloc]]=\"OR\",tblREGASSLookup[[#This Row],[Alloc]]=\"UT\",tblREGASSLookup[[#This Row],[Alloc]]=\"WYU\",tblREGASSLookup[[#This Row],[Alloc]]=\"WYP\",tblREGASSLookup[[#This Row],[Alloc]]=\"CA\",tblREGASSLookup[[#This Row],[Alloc]]=\"WA\"),\"SITUS\",tblREGASSLookup[[#This Row],[Alloc]])","v":"OTHER"},"CUST"]
[{"$f":"CONCATENATE(tblREGASSLookup[[#This Row],[Primary Account]],tblREGASSLookup[[#This Row],[Primary Name]],tblREGASSLookup[[#This Row],[Secondary Acct]],tblREGASSLookup[[#This Row],[Secondary  Name]],tblREGASSLookup[[#This Row],[Alloc4FUNC]])","v":"1823920DSR COSTS AMORTIZED103685INDUSTRIAL FINAN EXPRESS WY-2013 CAT2OTHER"},1823920,"DSR COSTS AMORTIZED",103685,"INDUSTRIAL FINAN EXPRESS WY-2013 CAT2","OTHER",null,{"$f":"IF(OR(tblREGASSLookup[[#This Row],[Alloc]]=\"IDU\",tblREGASSLookup[[#This Row],[Alloc]]=\"OR\",tblREGASSLookup[[#This Row],[Alloc]]=\"UT\",tblREGASSLookup[[#This Row],[Alloc]]=\"WYU\",tblREGASSLookup[[#This Row],[Alloc]]=\"WYP\",tblREGASSLookup[[#This Row],[Alloc]]=\"CA\",tblREGASSLookup[[#This Row],[Alloc]]=\"WA\"),\"SITUS\",tblREGASSLookup[[#This Row],[Alloc]])","v":"OTHER"},"CUST"]
[{"$f":"CONCATENATE(tblREGASSLookup[[#This Row],[Primary Account]],tblREGASSLookup[[#This Row],[Primary Name]],tblREGASSLookup[[#This Row],[Secondary Acct]],tblREGASSLookup[[#This Row],[Secondary  Name]],tblREGASSLookup[[#This Row],[Alloc4FUNC]])","v":"1823920DSR COSTS AMORTIZED103686ENERGY FINANSWER -WY 2013 CAT2OTHER"},1823920,"DSR COSTS AMORTIZED",103686,"ENERGY FINANSWER -WY 2013 CAT2","OTHER",null,{"$f":"IF(OR(tblREGASSLookup[[#This Row],[Alloc]]=\"IDU\",tblREGASSLookup[[#This Row],[Alloc]]=\"OR\",tblREGASSLookup[[#This Row],[Alloc]]=\"UT\",tblREGASSLookup[[#This Row],[Alloc]]=\"WYU\",tblREGASSLookup[[#This Row],[Alloc]]=\"WYP\",tblREGASSLookup[[#This Row],[Alloc]]=\"CA\",tblREGASSLookup[[#This Row],[Alloc]]=\"WA\"),\"SITUS\",tblREGASSLookup[[#This Row],[Alloc]])","v":"OTHER"},"CUST"]
[{"$f":"CONCATENATE(tblREGASSLookup[[#This Row],[Primary Account]],tblREGASSLookup[[#This Row],[Primary Name]],tblREGASSLookup[[#This Row],[Secondary Acct]],tblREGASSLookup[[#This Row],[Secondary  Name]],tblREGASSLookup[[#This Row],[Alloc4FUNC]])","v":"1823920DSR COSTS AMORTIZED103687INDUSTRIAL FINANSWER -WY 2013 CAT2OTHER"},1823920,"DSR COSTS AMORTIZED",103687,"INDUSTRIAL FINANSWER -WY 2013 CAT2","OTHER",null,{"$f":"IF(OR(tblREGASSLookup[[#This Row],[Alloc]]=\"IDU\",tblREGASSLookup[[#This Row],[Alloc]]=\"OR\",tblREGASSLookup[[#This Row],[Alloc]]=\"UT\",tblREGASSLookup[[#This Row],[Alloc]]=\"WYU\",tblREGASSLookup[[#This Row],[Alloc]]=\"WYP\",tblREGASSLookup[[#This Row],[Alloc]]=\"CA\",tblREGASSLookup[[#This Row],[Alloc]]=\"WA\"),\"SITUS\",tblREGASSLookup[[#This Row],[Alloc]])","v":"OTHER"},"CUST"]
[{"$f":"CONCATENATE(tblREGASSLookup[[#This Row],[Primary Account]],tblREGASSLookup[[#This Row],[Primary Name]],tblREGASSLookup[[#This Row],[Secondary Acct]],tblREGASSLookup[[#This Row],[Secondary  Name]],tblREGASSLookup[[#This Row],[Alloc4FUNC]])","v":"1823920DSR COSTS AMORTIZED103688SELF DIRECT - COMMERCIAL WY-2013 CAT2OTHER"},1823920,"DSR COSTS AMORTIZED",103688,"SELF DIRECT - COMMERCIAL WY-2013 CAT2","OTHER",null,{"$f":"IF(OR(tblREGASSLookup[[#This Row],[Alloc]]=\"IDU\",tblREGASSLookup[[#This Row],[Alloc]]=\"OR\",tblREGASSLookup[[#This Row],[Alloc]]=\"UT\",tblREGASSLookup[[#This Row],[Alloc]]=\"WYU\",tblREGASSLookup[[#This Row],[Alloc]]=\"WYP\",tblREGASSLookup[[#This Row],[Alloc]]=\"CA\",tblREGASSLookup[[#This Row],[Alloc]]=\"WA\"),\"SITUS\",tblREGASSLookup[[#This Row],[Alloc]])","v":"OTHER"},"CUST"]
[{"$f":"CONCATENATE(tblREGASSLookup[[#This Row],[Primary Account]],tblREGASSLookup[[#This Row],[Primary Name]],tblREGASSLookup[[#This Row],[Secondary Acct]],tblREGASSLookup[[#This Row],[Secondary  Name]],tblREGASSLookup[[#This Row],[Alloc4FUNC]])","v":"1823920DSR COSTS AMORTIZED103689SELF DIRECT- INDUSTRIAL WY-2013 CAT2OTHER"},1823920,"DSR COSTS AMORTIZED",103689,"SELF DIRECT- INDUSTRIAL WY-2013 CAT2","OTHER",null,{"$f":"IF(OR(tblREGASSLookup[[#This Row],[Alloc]]=\"IDU\",tblREGASSLookup[[#This Row],[Alloc]]=\"OR\",tblREGASSLookup[[#This Row],[Alloc]]=\"UT\",tblREGASSLookup[[#This Row],[Alloc]]=\"WYU\",tblREGASSLookup[[#This Row],[Alloc]]=\"WYP\",tblREGASSLookup[[#This Row],[Alloc]]=\"CA\",tblREGASSLookup[[#This Row],[Alloc]]=\"WA\"),\"SITUS\",tblREGASSLookup[[#This Row],[Alloc]])","v":"OTHER"},"CUST"]
[{"$f":"CONCATENATE(tblREGASSLookup[[#This Row],[Primary Account]],tblREGASSLookup[[#This Row],[Primary Name]],tblREGASSLookup[[#This Row],[Secondary Acct]],tblREGASSLookup[[#This Row],[Secondary  Name]],tblREGASSLookup[[#This Row],[Alloc4FUNC]])","v":"1823920DSR COSTS AMORTIZED103690PORTFOLIO WY-2013 CAT1OTHER"},1823920,"DSR COSTS AMORTIZED",103690,"PORTFOLIO WY-2013 CAT1","OTHER",null,{"$f":"IF(OR(tblREGASSLookup[[#This Row],[Alloc]]=\"IDU\",tblREGASSLookup[[#This Row],[Alloc]]=\"OR\",tblREGASSLookup[[#This Row],[Alloc]]=\"UT\",tblREGASSLookup[[#This Row],[Alloc]]=\"WYU\",tblREGASSLookup[[#This Row],[Alloc]]=\"WYP\",tblREGASSLookup[[#This Row],[Alloc]]=\"CA\",tblREGASSLookup[[#This Row],[Alloc]]=\"WA\"),\"SITUS\",tblREGASSLookup[[#This Row],[Alloc]])","v":"OTHER"},"CUST"]
[{"$f":"CONCATENATE(tblREGASSLookup[[#This Row],[Primary Account]],tblREGASSLookup[[#This Row],[Primary Name]],tblREGASSLookup[[#This Row],[Secondary Acct]],tblREGASSLookup[[#This Row],[Secondary  Name]],tblREGASSLookup[[#This Row],[Alloc4FUNC]])","v":"1823920DSR COSTS AMORTIZED103691OUTREACH AND COMMUNICATION WATTSMT  WY-2OTHER"},1823920,"DSR COSTS AMORTIZED",103691,"OUTREACH AND COMMUNICATION WATTSMT  WY-2","OTHER",null,{"$f":"IF(OR(tblREGASSLookup[[#This Row],[Alloc]]=\"IDU\",tblREGASSLookup[[#This Row],[Alloc]]=\"OR\",tblREGASSLookup[[#This Row],[Alloc]]=\"UT\",tblREGASSLookup[[#This Row],[Alloc]]=\"WYU\",tblREGASSLookup[[#This Row],[Alloc]]=\"WYP\",tblREGASSLookup[[#This Row],[Alloc]]=\"CA\",tblREGASSLookup[[#This Row],[Alloc]]=\"WA\"),\"SITUS\",tblREGASSLookup[[#This Row],[Alloc]])","v":"OTHER"},"CUST"]
[{"$f":"CONCATENATE(tblREGASSLookup[[#This Row],[Primary Account]],tblREGASSLookup[[#This Row],[Primary Name]],tblREGASSLookup[[#This Row],[Secondary Acct]],tblREGASSLookup[[#This Row],[Secondary  Name]],tblREGASSLookup[[#This Row],[Alloc4FUNC]])","v":"1823920DSR COSTS AMORTIZED103692AGRICULTURAL FINANSWER EXP WY-2013 CAT2OTHER"},1823920,"DSR COSTS AMORTIZED",103692,"AGRICULTURAL FINANSWER EXP WY-2013 CAT2","OTHER",null,{"$f":"IF(OR(tblREGASSLookup[[#This Row],[Alloc]]=\"IDU\",tblREGASSLookup[[#This Row],[Alloc]]=\"OR\",tblREGASSLookup[[#This Row],[Alloc]]=\"UT\",tblREGASSLookup[[#This Row],[Alloc]]=\"WYU\",tblREGASSLookup[[#This Row],[Alloc]]=\"WYP\",tblREGASSLookup[[#This Row],[Alloc]]=\"CA\",tblREGASSLookup[[#This Row],[Alloc]]=\"WA\"),\"SITUS\",tblREGASSLookup[[#This Row],[Alloc]])","v":"OTHER"},"CUST"]
[{"$f":"CONCATENATE(tblREGASSLookup[[#This Row],[Primary Account]],tblREGASSLookup[[#This Row],[Primary Name]],tblREGASSLookup[[#This Row],[Secondary Acct]],tblREGASSLookup[[#This Row],[Secondary  Name]],tblREGASSLookup[[#This Row],[Alloc4FUNC]])","v":"1823920DSR COSTS AMORTIZED103693AGRICULURAL FINANSWER EXP WY-2013 CAT3OTHER"},1823920,"DSR COSTS AMORTIZED",103693,"AGRICULURAL FINANSWER EXP WY-2013 CAT3","OTHER",null,{"$f":"IF(OR(tblREGASSLookup[[#This Row],[Alloc]]=\"IDU\",tblREGASSLookup[[#This Row],[Alloc]]=\"OR\",tblREGASSLookup[[#This Row],[Alloc]]=\"UT\",tblREGASSLookup[[#This Row],[Alloc]]=\"WYU\",tblREGASSLookup[[#This Row],[Alloc]]=\"WYP\",tblREGASSLookup[[#This Row],[Alloc]]=\"CA\",tblREGASSLookup[[#This Row],[Alloc]]=\"WA\"),\"SITUS\",tblREGASSLookup[[#This Row],[Alloc]])","v":"OTHER"},"CUST"]
[{"$f":"CONCATENATE(tblREGASSLookup[[#This Row],[Primary Account]],tblREGASSLookup[[#This Row],[Primary Name]],tblREGASSLookup[[#This Row],[Secondary Acct]],tblREGASSLookup[[#This Row],[Secondary  Name]],tblREGASSLookup[[#This Row],[Alloc4FUNC]])","v":"1823920DSR COSTS AMORTIZED103694PORTFOLIO WY-2013 CAT2OTHER"},1823920,"DSR COSTS AMORTIZED",103694,"PORTFOLIO WY-2013 CAT2","OTHER",null,{"$f":"IF(OR(tblREGASSLookup[[#This Row],[Alloc]]=\"IDU\",tblREGASSLookup[[#This Row],[Alloc]]=\"OR\",tblREGASSLookup[[#This Row],[Alloc]]=\"UT\",tblREGASSLookup[[#This Row],[Alloc]]=\"WYU\",tblREGASSLookup[[#This Row],[Alloc]]=\"WYP\",tblREGASSLookup[[#This Row],[Alloc]]=\"CA\",tblREGASSLookup[[#This Row],[Alloc]]=\"WA\"),\"SITUS\",tblREGASSLookup[[#This Row],[Alloc]])","v":"OTHER"},"CUST"]
[{"$f":"CONCATENATE(tblREGASSLookup[[#This Row],[Primary Account]],tblREGASSLookup[[#This Row],[Primary Name]],tblREGASSLookup[[#This Row],[Secondary Acct]],tblREGASSLookup[[#This Row],[Secondary  Name]],tblREGASSLookup[[#This Row],[Alloc4FUNC]])","v":"1823920DSR COSTS AMORTIZED103695PORTFOLIO WY-2013 CAT3OTHER"},1823920,"DSR COSTS AMORTIZED",103695,"PORTFOLIO WY-2013 CAT3","OTHER",null,{"$f":"IF(OR(tblREGASSLookup[[#This Row],[Alloc]]=\"IDU\",tblREGASSLookup[[#This Row],[Alloc]]=\"OR\",tblREGASSLookup[[#This Row],[Alloc]]=\"UT\",tblREGASSLookup[[#This Row],[Alloc]]=\"WYU\",tblREGASSLookup[[#This Row],[Alloc]]=\"WYP\",tblREGASSLookup[[#This Row],[Alloc]]=\"CA\",tblREGASSLookup[[#This Row],[Alloc]]=\"WA\"),\"SITUS\",tblREGASSLookup[[#This Row],[Alloc]])","v":"OTHER"},"CUST"]
[{"$f":"CONCATENATE(tblREGASSLookup[[#This Row],[Primary Account]],tblREGASSLookup[[#This Row],[Primary Name]],tblREGASSLookup[[#This Row],[Secondary Acct]],tblREGASSLookup[[#This Row],[Secondary  Name]],tblREGASSLookup[[#This Row],[Alloc4FUNC]])","v":"1823920DSR COSTS AMORTIZED103700PORTFOLIO - UTAH 2013OTHER"},1823920,"DSR COSTS AMORTIZED",103700,"PORTFOLIO - UTAH 2013","OTHER",null,{"$f":"IF(OR(tblREGASSLookup[[#This Row],[Alloc]]=\"IDU\",tblREGASSLookup[[#This Row],[Alloc]]=\"OR\",tblREGASSLookup[[#This Row],[Alloc]]=\"UT\",tblREGASSLookup[[#This Row],[Alloc]]=\"WYU\",tblREGASSLookup[[#This Row],[Alloc]]=\"WYP\",tblREGASSLookup[[#This Row],[Alloc]]=\"CA\",tblREGASSLookup[[#This Row],[Alloc]]=\"WA\"),\"SITUS\",tblREGASSLookup[[#This Row],[Alloc]])","v":"OTHER"},"CUST"]
[{"$f":"CONCATENATE(tblREGASSLookup[[#This Row],[Primary Account]],tblREGASSLookup[[#This Row],[Primary Name]],tblREGASSLookup[[#This Row],[Secondary Acct]],tblREGASSLookup[[#This Row],[Secondary  Name]],tblREGASSLookup[[#This Row],[Alloc4FUNC]])","v":"1823920DSR COSTS AMORTIZED103701U.of Utah Student Energy Sponsorship- UTOTHER"},1823920,"DSR COSTS AMORTIZED",103701,"U.of Utah Student Energy Sponsorship- UT","OTHER",null,{"$f":"IF(OR(tblREGASSLookup[[#This Row],[Alloc]]=\"IDU\",tblREGASSLookup[[#This Row],[Alloc]]=\"OR\",tblREGASSLookup[[#This Row],[Alloc]]=\"UT\",tblREGASSLookup[[#This Row],[Alloc]]=\"WYU\",tblREGASSLookup[[#This Row],[Alloc]]=\"WYP\",tblREGASSLookup[[#This Row],[Alloc]]=\"CA\",tblREGASSLookup[[#This Row],[Alloc]]=\"WA\"),\"SITUS\",tblREGASSLookup[[#This Row],[Alloc]])","v":"OTHER"},"CUST"]
[{"$f":"CONCATENATE(tblREGASSLookup[[#This Row],[Primary Account]],tblREGASSLookup[[#This Row],[Primary Name]],tblREGASSLookup[[#This Row],[Secondary Acct]],tblREGASSLookup[[#This Row],[Secondary  Name]],tblREGASSLookup[[#This Row],[Alloc4FUNC]])","v":"1823920DSR COSTS AMORTIZED103732COMMERCIAL (WSB) WATTSMART BUSINESS - UTOTHER"},1823920,"DSR COSTS AMORTIZED",103732,"COMMERCIAL (WSB) WATTSMART BUSINESS - UT","OTHER",null,{"$f":"IF(OR(tblREGASSLookup[[#This Row],[Alloc]]=\"IDU\",tblREGASSLookup[[#This Row],[Alloc]]=\"OR\",tblREGASSLookup[[#This Row],[Alloc]]=\"UT\",tblREGASSLookup[[#This Row],[Alloc]]=\"WYU\",tblREGASSLookup[[#This Row],[Alloc]]=\"WYP\",tblREGASSLookup[[#This Row],[Alloc]]=\"CA\",tblREGASSLookup[[#This Row],[Alloc]]=\"WA\"),\"SITUS\",tblREGASSLookup[[#This Row],[Alloc]])","v":"OTHER"},"CUST"]
[{"$f":"CONCATENATE(tblREGASSLookup[[#This Row],[Primary Account]],tblREGASSLookup[[#This Row],[Primary Name]],tblREGASSLookup[[#This Row],[Secondary Acct]],tblREGASSLookup[[#This Row],[Secondary  Name]],tblREGASSLookup[[#This Row],[Alloc4FUNC]])","v":"1823920DSR COSTS AMORTIZED103734INDUSTRIAL (WSB) WATTSMART BUSINESS - UTOTHER"},1823920,"DSR COSTS AMORTIZED",103734,"INDUSTRIAL (WSB) WATTSMART BUSINESS - UT","OTHER",null,{"$f":"IF(OR(tblREGASSLookup[[#This Row],[Alloc]]=\"IDU\",tblREGASSLookup[[#This Row],[Alloc]]=\"OR\",tblREGASSLookup[[#This Row],[Alloc]]=\"UT\",tblREGASSLookup[[#This Row],[Alloc]]=\"WYU\",tblREGASSLookup[[#This Row],[Alloc]]=\"WYP\",tblREGASSLookup[[#This Row],[Alloc]]=\"CA\",tblREGASSLookup[[#This Row],[Alloc]]=\"WA\"),\"SITUS\",tblREGASSLookup[[#This Row],[Alloc]])","v":"OTHER"},"CUST"]
[{"$f":"CONCATENATE(tblREGASSLookup[[#This Row],[Primary Account]],tblREGASSLookup[[#This Row],[Primary Name]],tblREGASSLookup[[#This Row],[Secondary Acct]],tblREGASSLookup[[#This Row],[Secondary  Name]],tblREGASSLookup[[#This Row],[Alloc4FUNC]])","v":"1823920DSR COSTS AMORTIZED103735WSB - WATTSMART BUSINESS - UT- 2013OTHER"},1823920,"DSR COSTS AMORTIZED",103735,"WSB - WATTSMART BUSINESS - UT- 2013","OTHER",null,{"$f":"IF(OR(tblREGASSLookup[[#This Row],[Alloc]]=\"IDU\",tblREGASSLookup[[#This Row],[Alloc]]=\"OR\",tblREGASSLookup[[#This Row],[Alloc]]=\"UT\",tblREGASSLookup[[#This Row],[Alloc]]=\"WYU\",tblREGASSLookup[[#This Row],[Alloc]]=\"WYP\",tblREGASSLookup[[#This Row],[Alloc]]=\"CA\",tblREGASSLookup[[#This Row],[Alloc]]=\"WA\"),\"SITUS\",tblREGASSLookup[[#This Row],[Alloc]])","v":"OTHER"},"CUST"]
[{"$f":"CONCATENATE(tblREGASSLookup[[#This Row],[Primary Account]],tblREGASSLookup[[#This Row],[Primary Name]],tblREGASSLookup[[#This Row],[Secondary Acct]],tblREGASSLookup[[#This Row],[Secondary  Name]],tblREGASSLookup[[#This Row],[Alloc4FUNC]])","v":"1823920DSR COSTS AMORTIZED103740COMMERCIAL (WSB) WATTSMART BUSINESS - WAOTHER"},1823920,"DSR COSTS AMORTIZED",103740,"COMMERCIAL (WSB) WATTSMART BUSINESS - WA","OTHER",null,{"$f":"IF(OR(tblREGASSLookup[[#This Row],[Alloc]]=\"IDU\",tblREGASSLookup[[#This Row],[Alloc]]=\"OR\",tblREGASSLookup[[#This Row],[Alloc]]=\"UT\",tblREGASSLookup[[#This Row],[Alloc]]=\"WYU\",tblREGASSLookup[[#This Row],[Alloc]]=\"WYP\",tblREGASSLookup[[#This Row],[Alloc]]=\"CA\",tblREGASSLookup[[#This Row],[Alloc]]=\"WA\"),\"SITUS\",tblREGASSLookup[[#This Row],[Alloc]])","v":"OTHER"},"CUST"]
[{"$f":"CONCATENATE(tblREGASSLookup[[#This Row],[Primary Account]],tblREGASSLookup[[#This Row],[Primary Name]],tblREGASSLookup[[#This Row],[Secondary Acct]],tblREGASSLookup[[#This Row],[Secondary  Name]],tblREGASSLookup[[#This Row],[Alloc4FUNC]])","v":"1823920DSR COSTS AMORTIZED103741INDUSTRIAL WATTSMART BUSINESS - WA-2013OTHER"},1823920,"DSR COSTS AMORTIZED",103741,"INDUSTRIAL WATTSMART BUSINESS - WA-2013","OTHER",null,{"$f":"IF(OR(tblREGASSLookup[[#This Row],[Alloc]]=\"IDU\",tblREGASSLookup[[#This Row],[Alloc]]=\"OR\",tblREGASSLookup[[#This Row],[Alloc]]=\"UT\",tblREGASSLookup[[#This Row],[Alloc]]=\"WYU\",tblREGASSLookup[[#This Row],[Alloc]]=\"WYP\",tblREGASSLookup[[#This Row],[Alloc]]=\"CA\",tblREGASSLookup[[#This Row],[Alloc]]=\"WA\"),\"SITUS\",tblREGASSLookup[[#This Row],[Alloc]])","v":"OTHER"},"CUST"]
[{"$f":"CONCATENATE(tblREGASSLookup[[#This Row],[Primary Account]],tblREGASSLookup[[#This Row],[Primary Name]],tblREGASSLookup[[#This Row],[Secondary Acct]],tblREGASSLookup[[#This Row],[Secondary  Name]],tblREGASSLookup[[#This Row],[Alloc4FUNC]])","v":"1823920DSR COSTS AMORTIZED103742WSB - WATTSMART BUSINESS - WA- 2013OTHER"},1823920,"DSR COSTS AMORTIZED",103742,"WSB - WATTSMART BUSINESS - WA- 2013","OTHER",null,{"$f":"IF(OR(tblREGASSLookup[[#This Row],[Alloc]]=\"IDU\",tblREGASSLookup[[#This Row],[Alloc]]=\"OR\",tblREGASSLookup[[#This Row],[Alloc]]=\"UT\",tblREGASSLookup[[#This Row],[Alloc]]=\"WYU\",tblREGASSLookup[[#This Row],[Alloc]]=\"WYP\",tblREGASSLookup[[#This Row],[Alloc]]=\"CA\",tblREGASSLookup[[#This Row],[Alloc]]=\"WA\"),\"SITUS\",tblREGASSLookup[[#This Row],[Alloc]])","v":"OTHER"},"CUST"]
[{"$f":"CONCATENATE(tblREGASSLookup[[#This Row],[Primary Account]],tblREGASSLookup[[#This Row],[Primary Name]],tblREGASSLookup[[#This Row],[Secondary Acct]],tblREGASSLookup[[#This Row],[Secondary  Name]],tblREGASSLookup[[#This Row],[Alloc4FUNC]])","v":"1823920DSR COSTS AMORTIZED103743AGRICULTURAL (WSB) WATTSMART BUSINESS -OTHER"},1823920,"DSR COSTS AMORTIZED",103743,"AGRICULTURAL (WSB) WATTSMART BUSINESS -","OTHER",null,{"$f":"IF(OR(tblREGASSLookup[[#This Row],[Alloc]]=\"IDU\",tblREGASSLookup[[#This Row],[Alloc]]=\"OR\",tblREGASSLookup[[#This Row],[Alloc]]=\"UT\",tblREGASSLookup[[#This Row],[Alloc]]=\"WYU\",tblREGASSLookup[[#This Row],[Alloc]]=\"WYP\",tblREGASSLookup[[#This Row],[Alloc]]=\"CA\",tblREGASSLookup[[#This Row],[Alloc]]=\"WA\"),\"SITUS\",tblREGASSLookup[[#This Row],[Alloc]])","v":"OTHER"},"CUST"]
[{"$f":"CONCATENATE(tblREGASSLookup[[#This Row],[Primary Account]],tblREGASSLookup[[#This Row],[Primary Name]],tblREGASSLookup[[#This Row],[Secondary Acct]],tblREGASSLookup[[#This Row],[Secondary  Name]],tblREGASSLookup[[#This Row],[Alloc4FUNC]])","v":"1823920DSR COSTS AMORTIZED103745CALIFORNIA DSM EXPENSE - 2014OTHER"},1823920,"DSR COSTS AMORTIZED",103745,"CALIFORNIA DSM EXPENSE - 2014","OTHER",null,{"$f":"IF(OR(tblREGASSLookup[[#This Row],[Alloc]]=\"IDU\",tblREGASSLookup[[#This Row],[Alloc]]=\"OR\",tblREGASSLookup[[#This Row],[Alloc]]=\"UT\",tblREGASSLookup[[#This Row],[Alloc]]=\"WYU\",tblREGASSLookup[[#This Row],[Alloc]]=\"WYP\",tblREGASSLookup[[#This Row],[Alloc]]=\"CA\",tblREGASSLookup[[#This Row],[Alloc]]=\"WA\"),\"SITUS\",tblREGASSLookup[[#This Row],[Alloc]])","v":"OTHER"},"CUST"]
[{"$f":"CONCATENATE(tblREGASSLookup[[#This Row],[Primary Account]],tblREGASSLookup[[#This Row],[Primary Name]],tblREGASSLookup[[#This Row],[Secondary Acct]],tblREGASSLookup[[#This Row],[Secondary  Name]],tblREGASSLookup[[#This Row],[Alloc4FUNC]])","v":"1823920DSR COSTS AMORTIZED103754PORTFOLIO - IDAHO 2014OTHER"},1823920,"DSR COSTS AMORTIZED",103754,"PORTFOLIO - IDAHO 2014","OTHER",null,{"$f":"IF(OR(tblREGASSLookup[[#This Row],[Alloc]]=\"IDU\",tblREGASSLookup[[#This Row],[Alloc]]=\"OR\",tblREGASSLookup[[#This Row],[Alloc]]=\"UT\",tblREGASSLookup[[#This Row],[Alloc]]=\"WYU\",tblREGASSLookup[[#This Row],[Alloc]]=\"WYP\",tblREGASSLookup[[#This Row],[Alloc]]=\"CA\",tblREGASSLookup[[#This Row],[Alloc]]=\"WA\"),\"SITUS\",tblREGASSLookup[[#This Row],[Alloc]])","v":"OTHER"},"CUST"]
[{"$f":"CONCATENATE(tblREGASSLookup[[#This Row],[Primary Account]],tblREGASSLookup[[#This Row],[Primary Name]],tblREGASSLookup[[#This Row],[Secondary Acct]],tblREGASSLookup[[#This Row],[Secondary  Name]],tblREGASSLookup[[#This Row],[Alloc4FUNC]])","v":"1823920DSR COSTS AMORTIZED103756A/C LOAD CONTROL - RESIDENTIAL/UTAH - 20OTHER"},1823920,"DSR COSTS AMORTIZED",103756,"A/C LOAD CONTROL - RESIDENTIAL/UTAH - 20","OTHER",null,{"$f":"IF(OR(tblREGASSLookup[[#This Row],[Alloc]]=\"IDU\",tblREGASSLookup[[#This Row],[Alloc]]=\"OR\",tblREGASSLookup[[#This Row],[Alloc]]=\"UT\",tblREGASSLookup[[#This Row],[Alloc]]=\"WYU\",tblREGASSLookup[[#This Row],[Alloc]]=\"WYP\",tblREGASSLookup[[#This Row],[Alloc]]=\"CA\",tblREGASSLookup[[#This Row],[Alloc]]=\"WA\"),\"SITUS\",tblREGASSLookup[[#This Row],[Alloc]])","v":"OTHER"},"CUST"]
[{"$f":"CONCATENATE(tblREGASSLookup[[#This Row],[Primary Account]],tblREGASSLookup[[#This Row],[Primary Name]],tblREGASSLookup[[#This Row],[Secondary Acct]],tblREGASSLookup[[#This Row],[Secondary  Name]],tblREGASSLookup[[#This Row],[Alloc4FUNC]])","v":"1823920DSR COSTS AMORTIZED103757AGRICULURAL FINANSWER EXPRESS - UTAH - 2OTHER"},1823920,"DSR COSTS AMORTIZED",103757,"AGRICULURAL FINANSWER EXPRESS - UTAH - 2","OTHER",null,{"$f":"IF(OR(tblREGASSLookup[[#This Row],[Alloc]]=\"IDU\",tblREGASSLookup[[#This Row],[Alloc]]=\"OR\",tblREGASSLookup[[#This Row],[Alloc]]=\"UT\",tblREGASSLookup[[#This Row],[Alloc]]=\"WYU\",tblREGASSLookup[[#This Row],[Alloc]]=\"WYP\",tblREGASSLookup[[#This Row],[Alloc]]=\"CA\",tblREGASSLookup[[#This Row],[Alloc]]=\"WA\"),\"SITUS\",tblREGASSLookup[[#This Row],[Alloc]])","v":"OTHER"},"CUST"]
[{"$f":"CONCATENATE(tblREGASSLookup[[#This Row],[Primary Account]],tblREGASSLookup[[#This Row],[Primary Name]],tblREGASSLookup[[#This Row],[Secondary Acct]],tblREGASSLookup[[#This Row],[Secondary  Name]],tblREGASSLookup[[#This Row],[Alloc4FUNC]])","v":"1823920DSR COSTS AMORTIZED103758AIR CONDITIONING - UTAH - 2014OTHER"},1823920,"DSR COSTS AMORTIZED",103758,"AIR CONDITIONING - UTAH - 2014","OTHER",null,{"$f":"IF(OR(tblREGASSLookup[[#This Row],[Alloc]]=\"IDU\",tblREGASSLookup[[#This Row],[Alloc]]=\"OR\",tblREGASSLookup[[#This Row],[Alloc]]=\"UT\",tblREGASSLookup[[#This Row],[Alloc]]=\"WYU\",tblREGASSLookup[[#This Row],[Alloc]]=\"WYP\",tblREGASSLookup[[#This Row],[Alloc]]=\"CA\",tblREGASSLookup[[#This Row],[Alloc]]=\"WA\"),\"SITUS\",tblREGASSLookup[[#This Row],[Alloc]])","v":"OTHER"},"CUST"]
[{"$f":"CONCATENATE(tblREGASSLookup[[#This Row],[Primary Account]],tblREGASSLookup[[#This Row],[Primary Name]],tblREGASSLookup[[#This Row],[Secondary Acct]],tblREGASSLookup[[#This Row],[Secondary  Name]],tblREGASSLookup[[#This Row],[Alloc4FUNC]])","v":"1823920DSR COSTS AMORTIZED103759COMMERCIAL FINANSWER EXPRESS - UTAH - 20OTHER"},1823920,"DSR COSTS AMORTIZED",103759,"COMMERCIAL FINANSWER EXPRESS - UTAH - 20","OTHER",null,{"$f":"IF(OR(tblREGASSLookup[[#This Row],[Alloc]]=\"IDU\",tblREGASSLookup[[#This Row],[Alloc]]=\"OR\",tblREGASSLookup[[#This Row],[Alloc]]=\"UT\",tblREGASSLookup[[#This Row],[Alloc]]=\"WYU\",tblREGASSLookup[[#This Row],[Alloc]]=\"WYP\",tblREGASSLookup[[#This Row],[Alloc]]=\"CA\",tblREGASSLookup[[#This Row],[Alloc]]=\"WA\"),\"SITUS\",tblREGASSLookup[[#This Row],[Alloc]])","v":"OTHER"},"CUST"]
[{"$f":"CONCATENATE(tblREGASSLookup[[#This Row],[Primary Account]],tblREGASSLookup[[#This Row],[Primary Name]],tblREGASSLookup[[#This Row],[Secondary Acct]],tblREGASSLookup[[#This Row],[Secondary  Name]],tblREGASSLookup[[#This Row],[Alloc4FUNC]])","v":"1823920DSR COSTS AMORTIZED103760ENERGY FINANSWER - UTAH - 2014OTHER"},1823920,"DSR COSTS AMORTIZED",103760,"ENERGY FINANSWER - UTAH - 2014","OTHER",null,{"$f":"IF(OR(tblREGASSLookup[[#This Row],[Alloc]]=\"IDU\",tblREGASSLookup[[#This Row],[Alloc]]=\"OR\",tblREGASSLookup[[#This Row],[Alloc]]=\"UT\",tblREGASSLookup[[#This Row],[Alloc]]=\"WYU\",tblREGASSLookup[[#This Row],[Alloc]]=\"WYP\",tblREGASSLookup[[#This Row],[Alloc]]=\"CA\",tblREGASSLookup[[#This Row],[Alloc]]=\"WA\"),\"SITUS\",tblREGASSLookup[[#This Row],[Alloc]])","v":"OTHER"},"CUST"]
[{"$f":"CONCATENATE(tblREGASSLookup[[#This Row],[Primary Account]],tblREGASSLookup[[#This Row],[Primary Name]],tblREGASSLookup[[#This Row],[Secondary Acct]],tblREGASSLookup[[#This Row],[Secondary  Name]],tblREGASSLookup[[#This Row],[Alloc4FUNC]])","v":"1823920DSR COSTS AMORTIZED103761HOME ENERGY EFF INCENTIVE PROG - UT 2014OTHER"},1823920,"DSR COSTS AMORTIZED",103761,"HOME ENERGY EFF INCENTIVE PROG - UT 2014","OTHER",null,{"$f":"IF(OR(tblREGASSLookup[[#This Row],[Alloc]]=\"IDU\",tblREGASSLookup[[#This Row],[Alloc]]=\"OR\",tblREGASSLookup[[#This Row],[Alloc]]=\"UT\",tblREGASSLookup[[#This Row],[Alloc]]=\"WYU\",tblREGASSLookup[[#This Row],[Alloc]]=\"WYP\",tblREGASSLookup[[#This Row],[Alloc]]=\"CA\",tblREGASSLookup[[#This Row],[Alloc]]=\"WA\"),\"SITUS\",tblREGASSLookup[[#This Row],[Alloc]])","v":"OTHER"},"CUST"]
[{"$f":"CONCATENATE(tblREGASSLookup[[#This Row],[Primary Account]],tblREGASSLookup[[#This Row],[Primary Name]],tblREGASSLookup[[#This Row],[Secondary Acct]],tblREGASSLookup[[#This Row],[Secondary  Name]],tblREGASSLookup[[#This Row],[Alloc4FUNC]])","v":"1823920DSR COSTS AMORTIZED103762HOME ENERGY REPORTING - UT 2014OTHER"},1823920,"DSR COSTS AMORTIZED",103762,"HOME ENERGY REPORTING - UT 2014","OTHER",null,{"$f":"IF(OR(tblREGASSLookup[[#This Row],[Alloc]]=\"IDU\",tblREGASSLookup[[#This Row],[Alloc]]=\"OR\",tblREGASSLookup[[#This Row],[Alloc]]=\"UT\",tblREGASSLookup[[#This Row],[Alloc]]=\"WYU\",tblREGASSLookup[[#This Row],[Alloc]]=\"WYP\",tblREGASSLookup[[#This Row],[Alloc]]=\"CA\",tblREGASSLookup[[#This Row],[Alloc]]=\"WA\"),\"SITUS\",tblREGASSLookup[[#This Row],[Alloc]])","v":"OTHER"},"CUST"]
[{"$f":"CONCATENATE(tblREGASSLookup[[#This Row],[Primary Account]],tblREGASSLookup[[#This Row],[Primary Name]],tblREGASSLookup[[#This Row],[Secondary Acct]],tblREGASSLookup[[#This Row],[Secondary  Name]],tblREGASSLookup[[#This Row],[Alloc4FUNC]])","v":"1823920DSR COSTS AMORTIZED103763INDUSTRIAL FINANSWER - UTAH - 2014OTHER"},1823920,"DSR COSTS AMORTIZED",103763,"INDUSTRIAL FINANSWER - UTAH - 2014","OTHER",null,{"$f":"IF(OR(tblREGASSLookup[[#This Row],[Alloc]]=\"IDU\",tblREGASSLookup[[#This Row],[Alloc]]=\"OR\",tblREGASSLookup[[#This Row],[Alloc]]=\"UT\",tblREGASSLookup[[#This Row],[Alloc]]=\"WYU\",tblREGASSLookup[[#This Row],[Alloc]]=\"WYP\",tblREGASSLookup[[#This Row],[Alloc]]=\"CA\",tblREGASSLookup[[#This Row],[Alloc]]=\"WA\"),\"SITUS\",tblREGASSLookup[[#This Row],[Alloc]])","v":"OTHER"},"CUST"]
[{"$f":"CONCATENATE(tblREGASSLookup[[#This Row],[Primary Account]],tblREGASSLookup[[#This Row],[Primary Name]],tblREGASSLookup[[#This Row],[Secondary Acct]],tblREGASSLookup[[#This Row],[Secondary  Name]],tblREGASSLookup[[#This Row],[Alloc4FUNC]])","v":"1823920DSR COSTS AMORTIZED103764INDUSTRIAL FINANSWER EXPRESS - UTAH - 20OTHER"},1823920,"DSR COSTS AMORTIZED",103764,"INDUSTRIAL FINANSWER EXPRESS - UTAH - 20","OTHER",null,{"$f":"IF(OR(tblREGASSLookup[[#This Row],[Alloc]]=\"IDU\",tblREGASSLookup[[#This Row],[Alloc]]=\"OR\",tblREGASSLookup[[#This Row],[Alloc]]=\"UT\",tblREGASSLookup[[#This Row],[Alloc]]=\"WYU\",tblREGASSLookup[[#This Row],[Alloc]]=\"WYP\",tblREGASSLookup[[#This Row],[Alloc]]=\"CA\",tblREGASSLookup[[#This Row],[Alloc]]=\"WA\"),\"SITUS\",tblREGASSLookup[[#This Row],[Alloc]])","v":"OTHER"},"CUST"]
[{"$f":"CONCATENATE(tblREGASSLookup[[#This Row],[Primary Account]],tblREGASSLookup[[#This Row],[Primary Name]],tblREGASSLookup[[#This Row],[Secondary Acct]],tblREGASSLookup[[#This Row],[Secondary  Name]],tblREGASSLookup[[#This Row],[Alloc4FUNC]])","v":"1823920DSR COSTS AMORTIZED103765IRRIGATION LOAD CONTROL  - UTAH - 2014OTHER"},1823920,"DSR COSTS AMORTIZED",103765,"IRRIGATION LOAD CONTROL  - UTAH - 2014","OTHER",null,{"$f":"IF(OR(tblREGASSLookup[[#This Row],[Alloc]]=\"IDU\",tblREGASSLookup[[#This Row],[Alloc]]=\"OR\",tblREGASSLookup[[#This Row],[Alloc]]=\"UT\",tblREGASSLookup[[#This Row],[Alloc]]=\"WYU\",tblREGASSLookup[[#This Row],[Alloc]]=\"WYP\",tblREGASSLookup[[#This Row],[Alloc]]=\"CA\",tblREGASSLookup[[#This Row],[Alloc]]=\"WA\"),\"SITUS\",tblREGASSLookup[[#This Row],[Alloc]])","v":"OTHER"},"CUST"]
[{"$f":"CONCATENATE(tblREGASSLookup[[#This Row],[Primary Account]],tblREGASSLookup[[#This Row],[Primary Name]],tblREGASSLookup[[#This Row],[Secondary Acct]],tblREGASSLookup[[#This Row],[Secondary  Name]],tblREGASSLookup[[#This Row],[Alloc4FUNC]])","v":"1823920DSR COSTS AMORTIZED103766LOW INCOME - UTAH - 2014OTHER"},1823920,"DSR COSTS AMORTIZED",103766,"LOW INCOME - UTAH - 2014","OTHER",null,{"$f":"IF(OR(tblREGASSLookup[[#This Row],[Alloc]]=\"IDU\",tblREGASSLookup[[#This Row],[Alloc]]=\"OR\",tblREGASSLookup[[#This Row],[Alloc]]=\"UT\",tblREGASSLookup[[#This Row],[Alloc]]=\"WYU\",tblREGASSLookup[[#This Row],[Alloc]]=\"WYP\",tblREGASSLookup[[#This Row],[Alloc]]=\"CA\",tblREGASSLookup[[#This Row],[Alloc]]=\"WA\"),\"SITUS\",tblREGASSLookup[[#This Row],[Alloc]])","v":"OTHER"},"CUST"]
[{"$f":"CONCATENATE(tblREGASSLookup[[#This Row],[Primary Account]],tblREGASSLookup[[#This Row],[Primary Name]],tblREGASSLookup[[#This Row],[Secondary Acct]],tblREGASSLookup[[#This Row],[Secondary  Name]],tblREGASSLookup[[#This Row],[Alloc4FUNC]])","v":"1823920DSR COSTS AMORTIZED103767OUTREACH and COMMUNICATIONS - UT 2014OTHER"},1823920,"DSR COSTS AMORTIZED",103767,"OUTREACH and COMMUNICATIONS - UT 2014","OTHER",null,{"$f":"IF(OR(tblREGASSLookup[[#This Row],[Alloc]]=\"IDU\",tblREGASSLookup[[#This Row],[Alloc]]=\"OR\",tblREGASSLookup[[#This Row],[Alloc]]=\"UT\",tblREGASSLookup[[#This Row],[Alloc]]=\"WYU\",tblREGASSLookup[[#This Row],[Alloc]]=\"WYP\",tblREGASSLookup[[#This Row],[Alloc]]=\"CA\",tblREGASSLookup[[#This Row],[Alloc]]=\"WA\"),\"SITUS\",tblREGASSLookup[[#This Row],[Alloc]])","v":"OTHER"},"CUST"]
[{"$f":"CONCATENATE(tblREGASSLookup[[#This Row],[Primary Account]],tblREGASSLookup[[#This Row],[Primary Name]],tblREGASSLookup[[#This Row],[Secondary Acct]],tblREGASSLookup[[#This Row],[Secondary  Name]],tblREGASSLookup[[#This Row],[Alloc4FUNC]])","v":"1823920DSR COSTS AMORTIZED103768PORTFOLIO - UTAH 2014OTHER"},1823920,"DSR COSTS AMORTIZED",103768,"PORTFOLIO - UTAH 2014","OTHER",null,{"$f":"IF(OR(tblREGASSLookup[[#This Row],[Alloc]]=\"IDU\",tblREGASSLookup[[#This Row],[Alloc]]=\"OR\",tblREGASSLookup[[#This Row],[Alloc]]=\"UT\",tblREGASSLookup[[#This Row],[Alloc]]=\"WYU\",tblREGASSLookup[[#This Row],[Alloc]]=\"WYP\",tblREGASSLookup[[#This Row],[Alloc]]=\"CA\",tblREGASSLookup[[#This Row],[Alloc]]=\"WA\"),\"SITUS\",tblREGASSLookup[[#This Row],[Alloc]])","v":"OTHER"},"CUST"]
[{"$f":"CONCATENATE(tblREGASSLookup[[#This Row],[Primary Account]],tblREGASSLookup[[#This Row],[Primary Name]],tblREGASSLookup[[#This Row],[Secondary Acct]],tblREGASSLookup[[#This Row],[Secondary  Name]],tblREGASSLookup[[#This Row],[Alloc4FUNC]])","v":"1823920DSR COSTS AMORTIZED103769REFRIGERATOR RECYCLING PGM- UTAH - 2014OTHER"},1823920,"DSR COSTS AMORTIZED",103769,"REFRIGERATOR RECYCLING PGM- UTAH - 2014","OTHER",null,{"$f":"IF(OR(tblREGASSLookup[[#This Row],[Alloc]]=\"IDU\",tblREGASSLookup[[#This Row],[Alloc]]=\"OR\",tblREGASSLookup[[#This Row],[Alloc]]=\"UT\",tblREGASSLookup[[#This Row],[Alloc]]=\"WYU\",tblREGASSLookup[[#This Row],[Alloc]]=\"WYP\",tblREGASSLookup[[#This Row],[Alloc]]=\"CA\",tblREGASSLookup[[#This Row],[Alloc]]=\"WA\"),\"SITUS\",tblREGASSLookup[[#This Row],[Alloc]])","v":"OTHER"},"CUST"]
[{"$f":"CONCATENATE(tblREGASSLookup[[#This Row],[Primary Account]],tblREGASSLookup[[#This Row],[Primary Name]],tblREGASSLookup[[#This Row],[Secondary Acct]],tblREGASSLookup[[#This Row],[Secondary  Name]],tblREGASSLookup[[#This Row],[Alloc4FUNC]])","v":"1823920DSR COSTS AMORTIZED103770RESIDENTIAL NEW CONSTRUCTION - UTAH - 20OTHER"},1823920,"DSR COSTS AMORTIZED",103770,"RESIDENTIAL NEW CONSTRUCTION - UTAH - 20","OTHER",null,{"$f":"IF(OR(tblREGASSLookup[[#This Row],[Alloc]]=\"IDU\",tblREGASSLookup[[#This Row],[Alloc]]=\"OR\",tblREGASSLookup[[#This Row],[Alloc]]=\"UT\",tblREGASSLookup[[#This Row],[Alloc]]=\"WYU\",tblREGASSLookup[[#This Row],[Alloc]]=\"WYP\",tblREGASSLookup[[#This Row],[Alloc]]=\"CA\",tblREGASSLookup[[#This Row],[Alloc]]=\"WA\"),\"SITUS\",tblREGASSLookup[[#This Row],[Alloc]])","v":"OTHER"},"CUST"]
[{"$f":"CONCATENATE(tblREGASSLookup[[#This Row],[Primary Account]],tblREGASSLookup[[#This Row],[Primary Name]],tblREGASSLookup[[#This Row],[Secondary Acct]],tblREGASSLookup[[#This Row],[Secondary  Name]],tblREGASSLookup[[#This Row],[Alloc4FUNC]])","v":"1823920DSR COSTS AMORTIZED103771RETROFIT COMMISSIONING PROGRAM  - UTAH -OTHER"},1823920,"DSR COSTS AMORTIZED",103771,"RETROFIT COMMISSIONING PROGRAM  - UTAH -","OTHER",null,{"$f":"IF(OR(tblREGASSLookup[[#This Row],[Alloc]]=\"IDU\",tblREGASSLookup[[#This Row],[Alloc]]=\"OR\",tblREGASSLookup[[#This Row],[Alloc]]=\"UT\",tblREGASSLookup[[#This Row],[Alloc]]=\"WYU\",tblREGASSLookup[[#This Row],[Alloc]]=\"WYP\",tblREGASSLookup[[#This Row],[Alloc]]=\"CA\",tblREGASSLookup[[#This Row],[Alloc]]=\"WA\"),\"SITUS\",tblREGASSLookup[[#This Row],[Alloc]])","v":"OTHER"},"CUST"]
[{"$f":"CONCATENATE(tblREGASSLookup[[#This Row],[Primary Account]],tblREGASSLookup[[#This Row],[Primary Name]],tblREGASSLookup[[#This Row],[Secondary Acct]],tblREGASSLookup[[#This Row],[Secondary  Name]],tblREGASSLookup[[#This Row],[Alloc4FUNC]])","v":"1823920DSR COSTS AMORTIZED103772COMMERCIAL SELF-DIRECT - UTAH - 2014OTHER"},1823920,"DSR COSTS AMORTIZED",103772,"COMMERCIAL SELF-DIRECT - UTAH - 2014","OTHER",null,{"$f":"IF(OR(tblREGASSLookup[[#This Row],[Alloc]]=\"IDU\",tblREGASSLookup[[#This Row],[Alloc]]=\"OR\",tblREGASSLookup[[#This Row],[Alloc]]=\"UT\",tblREGASSLookup[[#This Row],[Alloc]]=\"WYU\",tblREGASSLookup[[#This Row],[Alloc]]=\"WYP\",tblREGASSLookup[[#This Row],[Alloc]]=\"CA\",tblREGASSLookup[[#This Row],[Alloc]]=\"WA\"),\"SITUS\",tblREGASSLookup[[#This Row],[Alloc]])","v":"OTHER"},"CUST"]
[{"$f":"CONCATENATE(tblREGASSLookup[[#This Row],[Primary Account]],tblREGASSLookup[[#This Row],[Primary Name]],tblREGASSLookup[[#This Row],[Secondary Acct]],tblREGASSLookup[[#This Row],[Secondary  Name]],tblREGASSLookup[[#This Row],[Alloc4FUNC]])","v":"1823920DSR COSTS AMORTIZED103773INDUSTRIAL SELF-DIRECT - UTAH - 2014OTHER"},1823920,"DSR COSTS AMORTIZED",103773,"INDUSTRIAL SELF-DIRECT - UTAH - 2014","OTHER",null,{"$f":"IF(OR(tblREGASSLookup[[#This Row],[Alloc]]=\"IDU\",tblREGASSLookup[[#This Row],[Alloc]]=\"OR\",tblREGASSLookup[[#This Row],[Alloc]]=\"UT\",tblREGASSLookup[[#This Row],[Alloc]]=\"WYU\",tblREGASSLookup[[#This Row],[Alloc]]=\"WYP\",tblREGASSLookup[[#This Row],[Alloc]]=\"CA\",tblREGASSLookup[[#This Row],[Alloc]]=\"WA\"),\"SITUS\",tblREGASSLookup[[#This Row],[Alloc]])","v":"OTHER"},"CUST"]
[{"$f":"CONCATENATE(tblREGASSLookup[[#This Row],[Primary Account]],tblREGASSLookup[[#This Row],[Primary Name]],tblREGASSLookup[[#This Row],[Secondary Acct]],tblREGASSLookup[[#This Row],[Secondary  Name]],tblREGASSLookup[[#This Row],[Alloc4FUNC]])","v":"1823920DSR COSTS AMORTIZED103774COMMERCIAL (WSB) WATTSMART BUS - UT- 201OTHER"},1823920,"DSR COSTS AMORTIZED",103774,"COMMERCIAL (WSB) WATTSMART BUS - UT- 201","OTHER",null,{"$f":"IF(OR(tblREGASSLookup[[#This Row],[Alloc]]=\"IDU\",tblREGASSLookup[[#This Row],[Alloc]]=\"OR\",tblREGASSLookup[[#This Row],[Alloc]]=\"UT\",tblREGASSLookup[[#This Row],[Alloc]]=\"WYU\",tblREGASSLookup[[#This Row],[Alloc]]=\"WYP\",tblREGASSLookup[[#This Row],[Alloc]]=\"CA\",tblREGASSLookup[[#This Row],[Alloc]]=\"WA\"),\"SITUS\",tblREGASSLookup[[#This Row],[Alloc]])","v":"OTHER"},"CUST"]
[{"$f":"CONCATENATE(tblREGASSLookup[[#This Row],[Primary Account]],tblREGASSLookup[[#This Row],[Primary Name]],tblREGASSLookup[[#This Row],[Secondary Acct]],tblREGASSLookup[[#This Row],[Secondary  Name]],tblREGASSLookup[[#This Row],[Alloc4FUNC]])","v":"1823920DSR COSTS AMORTIZED103775INDUSTRIAL (WSB) WATTSMART BUS- UT- 2014OTHER"},1823920,"DSR COSTS AMORTIZED",103775,"INDUSTRIAL (WSB) WATTSMART BUS- UT- 2014","OTHER",null,{"$f":"IF(OR(tblREGASSLookup[[#This Row],[Alloc]]=\"IDU\",tblREGASSLookup[[#This Row],[Alloc]]=\"OR\",tblREGASSLookup[[#This Row],[Alloc]]=\"UT\",tblREGASSLookup[[#This Row],[Alloc]]=\"WYU\",tblREGASSLookup[[#This Row],[Alloc]]=\"WYP\",tblREGASSLookup[[#This Row],[Alloc]]=\"CA\",tblREGASSLookup[[#This Row],[Alloc]]=\"WA\"),\"SITUS\",tblREGASSLookup[[#This Row],[Alloc]])","v":"OTHER"},"CUST"]
[{"$f":"CONCATENATE(tblREGASSLookup[[#This Row],[Primary Account]],tblREGASSLookup[[#This Row],[Primary Name]],tblREGASSLookup[[#This Row],[Secondary Acct]],tblREGASSLookup[[#This Row],[Secondary  Name]],tblREGASSLookup[[#This Row],[Alloc4FUNC]])","v":"1823920DSR COSTS AMORTIZED103776WSB - WATTSMART BUS- UT- 2014OTHER"},1823920,"DSR COSTS AMORTIZED",103776,"WSB - WATTSMART BUS- UT- 2014","OTHER",null,{"$f":"IF(OR(tblREGASSLookup[[#This Row],[Alloc]]=\"IDU\",tblREGASSLookup[[#This Row],[Alloc]]=\"OR\",tblREGASSLookup[[#This Row],[Alloc]]=\"UT\",tblREGASSLookup[[#This Row],[Alloc]]=\"WYU\",tblREGASSLookup[[#This Row],[Alloc]]=\"WYP\",tblREGASSLookup[[#This Row],[Alloc]]=\"CA\",tblREGASSLookup[[#This Row],[Alloc]]=\"WA\"),\"SITUS\",tblREGASSLookup[[#This Row],[Alloc]])","v":"OTHER"},"CUST"]
[{"$f":"CONCATENATE(tblREGASSLookup[[#This Row],[Primary Account]],tblREGASSLookup[[#This Row],[Primary Name]],tblREGASSLookup[[#This Row],[Secondary Acct]],tblREGASSLookup[[#This Row],[Secondary  Name]],tblREGASSLookup[[#This Row],[Alloc4FUNC]])","v":"1823920DSR COSTS AMORTIZED103777AGRICULTURAL (WSB) WATTSMART BUS- UT- 20OTHER"},1823920,"DSR COSTS AMORTIZED",103777,"AGRICULTURAL (WSB) WATTSMART BUS- UT- 20","OTHER",null,{"$f":"IF(OR(tblREGASSLookup[[#This Row],[Alloc]]=\"IDU\",tblREGASSLookup[[#This Row],[Alloc]]=\"OR\",tblREGASSLookup[[#This Row],[Alloc]]=\"UT\",tblREGASSLookup[[#This Row],[Alloc]]=\"WYU\",tblREGASSLookup[[#This Row],[Alloc]]=\"WYP\",tblREGASSLookup[[#This Row],[Alloc]]=\"CA\",tblREGASSLookup[[#This Row],[Alloc]]=\"WA\"),\"SITUS\",tblREGASSLookup[[#This Row],[Alloc]])","v":"OTHER"},"CUST"]
[{"$f":"CONCATENATE(tblREGASSLookup[[#This Row],[Primary Account]],tblREGASSLookup[[#This Row],[Primary Name]],tblREGASSLookup[[#This Row],[Secondary Acct]],tblREGASSLookup[[#This Row],[Secondary  Name]],tblREGASSLookup[[#This Row],[Alloc4FUNC]])","v":"1823920DSR COSTS AMORTIZED103778U.of Utah Student Energy Sponsorship- UTOTHER"},1823920,"DSR COSTS AMORTIZED",103778,"U.of Utah Student Energy Sponsorship- UT","OTHER",null,{"$f":"IF(OR(tblREGASSLookup[[#This Row],[Alloc]]=\"IDU\",tblREGASSLookup[[#This Row],[Alloc]]=\"OR\",tblREGASSLookup[[#This Row],[Alloc]]=\"UT\",tblREGASSLookup[[#This Row],[Alloc]]=\"WYU\",tblREGASSLookup[[#This Row],[Alloc]]=\"WYP\",tblREGASSLookup[[#This Row],[Alloc]]=\"CA\",tblREGASSLookup[[#This Row],[Alloc]]=\"WA\"),\"SITUS\",tblREGASSLookup[[#This Row],[Alloc]])","v":"OTHER"},"CUST"]
[{"$f":"CONCATENATE(tblREGASSLookup[[#This Row],[Primary Account]],tblREGASSLookup[[#This Row],[Primary Name]],tblREGASSLookup[[#This Row],[Secondary Acct]],tblREGASSLookup[[#This Row],[Secondary  Name]],tblREGASSLookup[[#This Row],[Alloc4FUNC]])","v":"1823920DSR COSTS AMORTIZED103779AGRICULURAL FINANSWER EXP WY-2014 CAT2OTHER"},1823920,"DSR COSTS AMORTIZED",103779,"AGRICULURAL FINANSWER EXP WY-2014 CAT2","OTHER",null,{"$f":"IF(OR(tblREGASSLookup[[#This Row],[Alloc]]=\"IDU\",tblREGASSLookup[[#This Row],[Alloc]]=\"OR\",tblREGASSLookup[[#This Row],[Alloc]]=\"UT\",tblREGASSLookup[[#This Row],[Alloc]]=\"WYU\",tblREGASSLookup[[#This Row],[Alloc]]=\"WYP\",tblREGASSLookup[[#This Row],[Alloc]]=\"CA\",tblREGASSLookup[[#This Row],[Alloc]]=\"WA\"),\"SITUS\",tblREGASSLookup[[#This Row],[Alloc]])","v":"OTHER"},"CUST"]
[{"$f":"CONCATENATE(tblREGASSLookup[[#This Row],[Primary Account]],tblREGASSLookup[[#This Row],[Primary Name]],tblREGASSLookup[[#This Row],[Secondary Acct]],tblREGASSLookup[[#This Row],[Secondary  Name]],tblREGASSLookup[[#This Row],[Alloc4FUNC]])","v":"1823920DSR COSTS AMORTIZED103780AGRICULURAL FINANSWER EXP WY-2014 CAT3OTHER"},1823920,"DSR COSTS AMORTIZED",103780,"AGRICULURAL FINANSWER EXP WY-2014 CAT3","OTHER",null,{"$f":"IF(OR(tblREGASSLookup[[#This Row],[Alloc]]=\"IDU\",tblREGASSLookup[[#This Row],[Alloc]]=\"OR\",tblREGASSLookup[[#This Row],[Alloc]]=\"UT\",tblREGASSLookup[[#This Row],[Alloc]]=\"WYU\",tblREGASSLookup[[#This Row],[Alloc]]=\"WYP\",tblREGASSLookup[[#This Row],[Alloc]]=\"CA\",tblREGASSLookup[[#This Row],[Alloc]]=\"WA\"),\"SITUS\",tblREGASSLookup[[#This Row],[Alloc]])","v":"OTHER"},"CUST"]
[{"$f":"CONCATENATE(tblREGASSLookup[[#This Row],[Primary Account]],tblREGASSLookup[[#This Row],[Primary Name]],tblREGASSLookup[[#This Row],[Secondary Acct]],tblREGASSLookup[[#This Row],[Secondary  Name]],tblREGASSLookup[[#This Row],[Alloc4FUNC]])","v":"1823920DSR COSTS AMORTIZED103781COMMERCIAL FINANSWER EXP- WY-2014 CAT2OTHER"},1823920,"DSR COSTS AMORTIZED",103781,"COMMERCIAL FINANSWER EXP- WY-2014 CAT2","OTHER",null,{"$f":"IF(OR(tblREGASSLookup[[#This Row],[Alloc]]=\"IDU\",tblREGASSLookup[[#This Row],[Alloc]]=\"OR\",tblREGASSLookup[[#This Row],[Alloc]]=\"UT\",tblREGASSLookup[[#This Row],[Alloc]]=\"WYU\",tblREGASSLookup[[#This Row],[Alloc]]=\"WYP\",tblREGASSLookup[[#This Row],[Alloc]]=\"CA\",tblREGASSLookup[[#This Row],[Alloc]]=\"WA\"),\"SITUS\",tblREGASSLookup[[#This Row],[Alloc]])","v":"OTHER"},"CUST"]
[{"$f":"CONCATENATE(tblREGASSLookup[[#This Row],[Primary Account]],tblREGASSLookup[[#This Row],[Primary Name]],tblREGASSLookup[[#This Row],[Secondary Acct]],tblREGASSLookup[[#This Row],[Secondary  Name]],tblREGASSLookup[[#This Row],[Alloc4FUNC]])","v":"1823920DSR COSTS AMORTIZED103782COMMERCIAL FINANSWER EXP WY-2014 CAT3OTHER"},1823920,"DSR COSTS AMORTIZED",103782,"COMMERCIAL FINANSWER EXP WY-2014 CAT3","OTHER",null,{"$f":"IF(OR(tblREGASSLookup[[#This Row],[Alloc]]=\"IDU\",tblREGASSLookup[[#This Row],[Alloc]]=\"OR\",tblREGASSLookup[[#This Row],[Alloc]]=\"UT\",tblREGASSLookup[[#This Row],[Alloc]]=\"WYU\",tblREGASSLookup[[#This Row],[Alloc]]=\"WYP\",tblREGASSLookup[[#This Row],[Alloc]]=\"CA\",tblREGASSLookup[[#This Row],[Alloc]]=\"WA\"),\"SITUS\",tblREGASSLookup[[#This Row],[Alloc]])","v":"OTHER"},"CUST"]
[{"$f":"CONCATENATE(tblREGASSLookup[[#This Row],[Primary Account]],tblREGASSLookup[[#This Row],[Primary Name]],tblREGASSLookup[[#This Row],[Secondary Acct]],tblREGASSLookup[[#This Row],[Secondary  Name]],tblREGASSLookup[[#This Row],[Alloc4FUNC]])","v":"1823920DSR COSTS AMORTIZED103783ENERGY FINANSWER -WY 2014 CAT2OTHER"},1823920,"DSR COSTS AMORTIZED",103783,"ENERGY FINANSWER -WY 2014 CAT2","OTHER",null,{"$f":"IF(OR(tblREGASSLookup[[#This Row],[Alloc]]=\"IDU\",tblREGASSLookup[[#This Row],[Alloc]]=\"OR\",tblREGASSLookup[[#This Row],[Alloc]]=\"UT\",tblREGASSLookup[[#This Row],[Alloc]]=\"WYU\",tblREGASSLookup[[#This Row],[Alloc]]=\"WYP\",tblREGASSLookup[[#This Row],[Alloc]]=\"CA\",tblREGASSLookup[[#This Row],[Alloc]]=\"WA\"),\"SITUS\",tblREGASSLookup[[#This Row],[Alloc]])","v":"OTHER"},"CUST"]
[{"$f":"CONCATENATE(tblREGASSLookup[[#This Row],[Primary Account]],tblREGASSLookup[[#This Row],[Primary Name]],tblREGASSLookup[[#This Row],[Secondary Acct]],tblREGASSLookup[[#This Row],[Secondary  Name]],tblREGASSLookup[[#This Row],[Alloc4FUNC]])","v":"1823920DSR COSTS AMORTIZED103784ENERGY FINANSWER-WY-2014 CAT3OTHER"},1823920,"DSR COSTS AMORTIZED",103784,"ENERGY FINANSWER-WY-2014 CAT3","OTHER",null,{"$f":"IF(OR(tblREGASSLookup[[#This Row],[Alloc]]=\"IDU\",tblREGASSLookup[[#This Row],[Alloc]]=\"OR\",tblREGASSLookup[[#This Row],[Alloc]]=\"UT\",tblREGASSLookup[[#This Row],[Alloc]]=\"WYU\",tblREGASSLookup[[#This Row],[Alloc]]=\"WYP\",tblREGASSLookup[[#This Row],[Alloc]]=\"CA\",tblREGASSLookup[[#This Row],[Alloc]]=\"WA\"),\"SITUS\",tblREGASSLookup[[#This Row],[Alloc]])","v":"OTHER"},"CUST"]
[{"$f":"CONCATENATE(tblREGASSLookup[[#This Row],[Primary Account]],tblREGASSLookup[[#This Row],[Primary Name]],tblREGASSLookup[[#This Row],[Secondary Acct]],tblREGASSLookup[[#This Row],[Secondary  Name]],tblREGASSLookup[[#This Row],[Alloc4FUNC]])","v":"1823920DSR COSTS AMORTIZED103785HOME ENERGY EFF INCENT PROG Y-2014 CAT1OTHER"},1823920,"DSR COSTS AMORTIZED",103785,"HOME ENERGY EFF INCENT PROG Y-2014 CAT1","OTHER",null,{"$f":"IF(OR(tblREGASSLookup[[#This Row],[Alloc]]=\"IDU\",tblREGASSLookup[[#This Row],[Alloc]]=\"OR\",tblREGASSLookup[[#This Row],[Alloc]]=\"UT\",tblREGASSLookup[[#This Row],[Alloc]]=\"WYU\",tblREGASSLookup[[#This Row],[Alloc]]=\"WYP\",tblREGASSLookup[[#This Row],[Alloc]]=\"CA\",tblREGASSLookup[[#This Row],[Alloc]]=\"WA\"),\"SITUS\",tblREGASSLookup[[#This Row],[Alloc]])","v":"OTHER"},"CUST"]
[{"$f":"CONCATENATE(tblREGASSLookup[[#This Row],[Primary Account]],tblREGASSLookup[[#This Row],[Primary Name]],tblREGASSLookup[[#This Row],[Secondary Acct]],tblREGASSLookup[[#This Row],[Secondary  Name]],tblREGASSLookup[[#This Row],[Alloc4FUNC]])","v":"1823920DSR COSTS AMORTIZED103786INDUSTRIAL FINANSWER -WY 2014 CAT2OTHER"},1823920,"DSR COSTS AMORTIZED",103786,"INDUSTRIAL FINANSWER -WY 2014 CAT2","OTHER",null,{"$f":"IF(OR(tblREGASSLookup[[#This Row],[Alloc]]=\"IDU\",tblREGASSLookup[[#This Row],[Alloc]]=\"OR\",tblREGASSLookup[[#This Row],[Alloc]]=\"UT\",tblREGASSLookup[[#This Row],[Alloc]]=\"WYU\",tblREGASSLookup[[#This Row],[Alloc]]=\"WYP\",tblREGASSLookup[[#This Row],[Alloc]]=\"CA\",tblREGASSLookup[[#This Row],[Alloc]]=\"WA\"),\"SITUS\",tblREGASSLookup[[#This Row],[Alloc]])","v":"OTHER"},"CUST"]
[{"$f":"CONCATENATE(tblREGASSLookup[[#This Row],[Primary Account]],tblREGASSLookup[[#This Row],[Primary Name]],tblREGASSLookup[[#This Row],[Secondary Acct]],tblREGASSLookup[[#This Row],[Secondary  Name]],tblREGASSLookup[[#This Row],[Alloc4FUNC]])","v":"1823920DSR COSTS AMORTIZED103787INDUSTRIAL FINANSWER-WY-2014 CAT3OTHER"},1823920,"DSR COSTS AMORTIZED",103787,"INDUSTRIAL FINANSWER-WY-2014 CAT3","OTHER",null,{"$f":"IF(OR(tblREGASSLookup[[#This Row],[Alloc]]=\"IDU\",tblREGASSLookup[[#This Row],[Alloc]]=\"OR\",tblREGASSLookup[[#This Row],[Alloc]]=\"UT\",tblREGASSLookup[[#This Row],[Alloc]]=\"WYU\",tblREGASSLookup[[#This Row],[Alloc]]=\"WYP\",tblREGASSLookup[[#This Row],[Alloc]]=\"CA\",tblREGASSLookup[[#This Row],[Alloc]]=\"WA\"),\"SITUS\",tblREGASSLookup[[#This Row],[Alloc]])","v":"OTHER"},"CUST"]
[{"$f":"CONCATENATE(tblREGASSLookup[[#This Row],[Primary Account]],tblREGASSLookup[[#This Row],[Primary Name]],tblREGASSLookup[[#This Row],[Secondary Acct]],tblREGASSLookup[[#This Row],[Secondary  Name]],tblREGASSLookup[[#This Row],[Alloc4FUNC]])","v":"1823920DSR COSTS AMORTIZED103788INDUSTRIAL FINAN EXPRESS WY-2014 CAT2OTHER"},1823920,"DSR COSTS AMORTIZED",103788,"INDUSTRIAL FINAN EXPRESS WY-2014 CAT2","OTHER",null,{"$f":"IF(OR(tblREGASSLookup[[#This Row],[Alloc]]=\"IDU\",tblREGASSLookup[[#This Row],[Alloc]]=\"OR\",tblREGASSLookup[[#This Row],[Alloc]]=\"UT\",tblREGASSLookup[[#This Row],[Alloc]]=\"WYU\",tblREGASSLookup[[#This Row],[Alloc]]=\"WYP\",tblREGASSLookup[[#This Row],[Alloc]]=\"CA\",tblREGASSLookup[[#This Row],[Alloc]]=\"WA\"),\"SITUS\",tblREGASSLookup[[#This Row],[Alloc]])","v":"OTHER"},"CUST"]
[{"$f":"CONCATENATE(tblREGASSLookup[[#This Row],[Primary Account]],tblREGASSLookup[[#This Row],[Primary Name]],tblREGASSLookup[[#This Row],[Secondary Acct]],tblREGASSLookup[[#This Row],[Secondary  Name]],tblREGASSLookup[[#This Row],[Alloc4FUNC]])","v":"1823920DSR COSTS AMORTIZED103789INDUSTRIAL FINANSWER EXP WY-2014 CAT3OTHER"},1823920,"DSR COSTS AMORTIZED",103789,"INDUSTRIAL FINANSWER EXP WY-2014 CAT3","OTHER",null,{"$f":"IF(OR(tblREGASSLookup[[#This Row],[Alloc]]=\"IDU\",tblREGASSLookup[[#This Row],[Alloc]]=\"OR\",tblREGASSLookup[[#This Row],[Alloc]]=\"UT\",tblREGASSLookup[[#This Row],[Alloc]]=\"WYU\",tblREGASSLookup[[#This Row],[Alloc]]=\"WYP\",tblREGASSLookup[[#This Row],[Alloc]]=\"CA\",tblREGASSLookup[[#This Row],[Alloc]]=\"WA\"),\"SITUS\",tblREGASSLookup[[#This Row],[Alloc]])","v":"OTHER"},"CUST"]
[{"$f":"CONCATENATE(tblREGASSLookup[[#This Row],[Primary Account]],tblREGASSLookup[[#This Row],[Primary Name]],tblREGASSLookup[[#This Row],[Secondary Acct]],tblREGASSLookup[[#This Row],[Secondary  Name]],tblREGASSLookup[[#This Row],[Alloc4FUNC]])","v":"1823920DSR COSTS AMORTIZED103790LOW-INCOME WEATHERZTN - WY 2014 CAT1OTHER"},1823920,"DSR COSTS AMORTIZED",103790,"LOW-INCOME WEATHERZTN - WY 2014 CAT1","OTHER",null,{"$f":"IF(OR(tblREGASSLookup[[#This Row],[Alloc]]=\"IDU\",tblREGASSLookup[[#This Row],[Alloc]]=\"OR\",tblREGASSLookup[[#This Row],[Alloc]]=\"UT\",tblREGASSLookup[[#This Row],[Alloc]]=\"WYU\",tblREGASSLookup[[#This Row],[Alloc]]=\"WYP\",tblREGASSLookup[[#This Row],[Alloc]]=\"CA\",tblREGASSLookup[[#This Row],[Alloc]]=\"WA\"),\"SITUS\",tblREGASSLookup[[#This Row],[Alloc]])","v":"OTHER"},"CUST"]
[{"$f":"CONCATENATE(tblREGASSLookup[[#This Row],[Primary Account]],tblREGASSLookup[[#This Row],[Primary Name]],tblREGASSLookup[[#This Row],[Secondary Acct]],tblREGASSLookup[[#This Row],[Secondary  Name]],tblREGASSLookup[[#This Row],[Alloc4FUNC]])","v":"1823920DSR COSTS AMORTIZED103791OUTREACH AND COMMUNICATION WATTSMT  WY-2OTHER"},1823920,"DSR COSTS AMORTIZED",103791,"OUTREACH AND COMMUNICATION WATTSMT  WY-2","OTHER",null,{"$f":"IF(OR(tblREGASSLookup[[#This Row],[Alloc]]=\"IDU\",tblREGASSLookup[[#This Row],[Alloc]]=\"OR\",tblREGASSLookup[[#This Row],[Alloc]]=\"UT\",tblREGASSLookup[[#This Row],[Alloc]]=\"WYU\",tblREGASSLookup[[#This Row],[Alloc]]=\"WYP\",tblREGASSLookup[[#This Row],[Alloc]]=\"CA\",tblREGASSLookup[[#This Row],[Alloc]]=\"WA\"),\"SITUS\",tblREGASSLookup[[#This Row],[Alloc]])","v":"OTHER"},"CUST"]
[{"$f":"CONCATENATE(tblREGASSLookup[[#This Row],[Primary Account]],tblREGASSLookup[[#This Row],[Primary Name]],tblREGASSLookup[[#This Row],[Secondary Acct]],tblREGASSLookup[[#This Row],[Secondary  Name]],tblREGASSLookup[[#This Row],[Alloc4FUNC]])","v":"1823920DSR COSTS AMORTIZED103792PORTFOLIO WY-2014 CAT1OTHER"},1823920,"DSR COSTS AMORTIZED",103792,"PORTFOLIO WY-2014 CAT1","OTHER",null,{"$f":"IF(OR(tblREGASSLookup[[#This Row],[Alloc]]=\"IDU\",tblREGASSLookup[[#This Row],[Alloc]]=\"OR\",tblREGASSLookup[[#This Row],[Alloc]]=\"UT\",tblREGASSLookup[[#This Row],[Alloc]]=\"WYU\",tblREGASSLookup[[#This Row],[Alloc]]=\"WYP\",tblREGASSLookup[[#This Row],[Alloc]]=\"CA\",tblREGASSLookup[[#This Row],[Alloc]]=\"WA\"),\"SITUS\",tblREGASSLookup[[#This Row],[Alloc]])","v":"OTHER"},"CUST"]
[{"$f":"CONCATENATE(tblREGASSLookup[[#This Row],[Primary Account]],tblREGASSLookup[[#This Row],[Primary Name]],tblREGASSLookup[[#This Row],[Secondary Acct]],tblREGASSLookup[[#This Row],[Secondary  Name]],tblREGASSLookup[[#This Row],[Alloc4FUNC]])","v":"1823920DSR COSTS AMORTIZED103793PORTFOLIO WY-2014 CAT2OTHER"},1823920,"DSR COSTS AMORTIZED",103793,"PORTFOLIO WY-2014 CAT2","OTHER",null,{"$f":"IF(OR(tblREGASSLookup[[#This Row],[Alloc]]=\"IDU\",tblREGASSLookup[[#This Row],[Alloc]]=\"OR\",tblREGASSLookup[[#This Row],[Alloc]]=\"UT\",tblREGASSLookup[[#This Row],[Alloc]]=\"WYU\",tblREGASSLookup[[#This Row],[Alloc]]=\"WYP\",tblREGASSLookup[[#This Row],[Alloc]]=\"CA\",tblREGASSLookup[[#This Row],[Alloc]]=\"WA\"),\"SITUS\",tblREGASSLookup[[#This Row],[Alloc]])","v":"OTHER"},"CUST"]
[{"$f":"CONCATENATE(tblREGASSLookup[[#This Row],[Primary Account]],tblREGASSLookup[[#This Row],[Primary Name]],tblREGASSLookup[[#This Row],[Secondary Acct]],tblREGASSLookup[[#This Row],[Secondary  Name]],tblREGASSLookup[[#This Row],[Alloc4FUNC]])","v":"1823920DSR COSTS AMORTIZED103794PORTFOLIO WY-2014 CAT3OTHER"},1823920,"DSR COSTS AMORTIZED",103794,"PORTFOLIO WY-2014 CAT3","OTHER",null,{"$f":"IF(OR(tblREGASSLookup[[#This Row],[Alloc]]=\"IDU\",tblREGASSLookup[[#This Row],[Alloc]]=\"OR\",tblREGASSLookup[[#This Row],[Alloc]]=\"UT\",tblREGASSLookup[[#This Row],[Alloc]]=\"WYU\",tblREGASSLookup[[#This Row],[Alloc]]=\"WYP\",tblREGASSLookup[[#This Row],[Alloc]]=\"CA\",tblREGASSLookup[[#This Row],[Alloc]]=\"WA\"),\"SITUS\",tblREGASSLookup[[#This Row],[Alloc]])","v":"OTHER"},"CUST"]
[{"$f":"CONCATENATE(tblREGASSLookup[[#This Row],[Primary Account]],tblREGASSLookup[[#This Row],[Primary Name]],tblREGASSLookup[[#This Row],[Secondary Acct]],tblREGASSLookup[[#This Row],[Secondary  Name]],tblREGASSLookup[[#This Row],[Alloc4FUNC]])","v":"1823920DSR COSTS AMORTIZED103795REFRIGERATOR RECYCLING-WY -2014 CAT1OTHER"},1823920,"DSR COSTS AMORTIZED",103795,"REFRIGERATOR RECYCLING-WY -2014 CAT1","OTHER",null,{"$f":"IF(OR(tblREGASSLookup[[#This Row],[Alloc]]=\"IDU\",tblREGASSLookup[[#This Row],[Alloc]]=\"OR\",tblREGASSLookup[[#This Row],[Alloc]]=\"UT\",tblREGASSLookup[[#This Row],[Alloc]]=\"WYU\",tblREGASSLookup[[#This Row],[Alloc]]=\"WYP\",tblREGASSLookup[[#This Row],[Alloc]]=\"CA\",tblREGASSLookup[[#This Row],[Alloc]]=\"WA\"),\"SITUS\",tblREGASSLookup[[#This Row],[Alloc]])","v":"OTHER"},"CUST"]
[{"$f":"CONCATENATE(tblREGASSLookup[[#This Row],[Primary Account]],tblREGASSLookup[[#This Row],[Primary Name]],tblREGASSLookup[[#This Row],[Secondary Acct]],tblREGASSLookup[[#This Row],[Secondary  Name]],tblREGASSLookup[[#This Row],[Alloc4FUNC]])","v":"1823920DSR COSTS AMORTIZED103796SELF DIRECT - COMMERCIAL WY-2014 CAT2OTHER"},1823920,"DSR COSTS AMORTIZED",103796,"SELF DIRECT - COMMERCIAL WY-2014 CAT2","OTHER",null,{"$f":"IF(OR(tblREGASSLookup[[#This Row],[Alloc]]=\"IDU\",tblREGASSLookup[[#This Row],[Alloc]]=\"OR\",tblREGASSLookup[[#This Row],[Alloc]]=\"UT\",tblREGASSLookup[[#This Row],[Alloc]]=\"WYU\",tblREGASSLookup[[#This Row],[Alloc]]=\"WYP\",tblREGASSLookup[[#This Row],[Alloc]]=\"CA\",tblREGASSLookup[[#This Row],[Alloc]]=\"WA\"),\"SITUS\",tblREGASSLookup[[#This Row],[Alloc]])","v":"OTHER"},"CUST"]
[{"$f":"CONCATENATE(tblREGASSLookup[[#This Row],[Primary Account]],tblREGASSLookup[[#This Row],[Primary Name]],tblREGASSLookup[[#This Row],[Secondary Acct]],tblREGASSLookup[[#This Row],[Secondary  Name]],tblREGASSLookup[[#This Row],[Alloc4FUNC]])","v":"1823920DSR COSTS AMORTIZED103797SELF DIRECT - COMMERCIAL -WY-2014 CAT3OTHER"},1823920,"DSR COSTS AMORTIZED",103797,"SELF DIRECT - COMMERCIAL -WY-2014 CAT3","OTHER",null,{"$f":"IF(OR(tblREGASSLookup[[#This Row],[Alloc]]=\"IDU\",tblREGASSLookup[[#This Row],[Alloc]]=\"OR\",tblREGASSLookup[[#This Row],[Alloc]]=\"UT\",tblREGASSLookup[[#This Row],[Alloc]]=\"WYU\",tblREGASSLookup[[#This Row],[Alloc]]=\"WYP\",tblREGASSLookup[[#This Row],[Alloc]]=\"CA\",tblREGASSLookup[[#This Row],[Alloc]]=\"WA\"),\"SITUS\",tblREGASSLookup[[#This Row],[Alloc]])","v":"OTHER"},"CUST"]
[{"$f":"CONCATENATE(tblREGASSLookup[[#This Row],[Primary Account]],tblREGASSLookup[[#This Row],[Primary Name]],tblREGASSLookup[[#This Row],[Secondary Acct]],tblREGASSLookup[[#This Row],[Secondary  Name]],tblREGASSLookup[[#This Row],[Alloc4FUNC]])","v":"1823920DSR COSTS AMORTIZED103798SELF DIRECT- INDUSTRIAL WY-2014 CAT2OTHER"},1823920,"DSR COSTS AMORTIZED",103798,"SELF DIRECT- INDUSTRIAL WY-2014 CAT2","OTHER",null,{"$f":"IF(OR(tblREGASSLookup[[#This Row],[Alloc]]=\"IDU\",tblREGASSLookup[[#This Row],[Alloc]]=\"OR\",tblREGASSLookup[[#This Row],[Alloc]]=\"UT\",tblREGASSLookup[[#This Row],[Alloc]]=\"WYU\",tblREGASSLookup[[#This Row],[Alloc]]=\"WYP\",tblREGASSLookup[[#This Row],[Alloc]]=\"CA\",tblREGASSLookup[[#This Row],[Alloc]]=\"WA\"),\"SITUS\",tblREGASSLookup[[#This Row],[Alloc]])","v":"OTHER"},"CUST"]
[{"$f":"CONCATENATE(tblREGASSLookup[[#This Row],[Primary Account]],tblREGASSLookup[[#This Row],[Primary Name]],tblREGASSLookup[[#This Row],[Secondary Acct]],tblREGASSLookup[[#This Row],[Secondary  Name]],tblREGASSLookup[[#This Row],[Alloc4FUNC]])","v":"1823920DSR COSTS AMORTIZED103799SELF DIRECT -INDUSTRIAL -WY-2014 CAT3OTHER"},1823920,"DSR COSTS AMORTIZED",103799,"SELF DIRECT -INDUSTRIAL -WY-2014 CAT3","OTHER",null,{"$f":"IF(OR(tblREGASSLookup[[#This Row],[Alloc]]=\"IDU\",tblREGASSLookup[[#This Row],[Alloc]]=\"OR\",tblREGASSLookup[[#This Row],[Alloc]]=\"UT\",tblREGASSLookup[[#This Row],[Alloc]]=\"WYU\",tblREGASSLookup[[#This Row],[Alloc]]=\"WYP\",tblREGASSLookup[[#This Row],[Alloc]]=\"CA\",tblREGASSLookup[[#This Row],[Alloc]]=\"WA\"),\"SITUS\",tblREGASSLookup[[#This Row],[Alloc]])","v":"OTHER"},"CUST"]
[{"$f":"CONCATENATE(tblREGASSLookup[[#This Row],[Primary Account]],tblREGASSLookup[[#This Row],[Primary Name]],tblREGASSLookup[[#This Row],[Secondary Acct]],tblREGASSLookup[[#This Row],[Secondary  Name]],tblREGASSLookup[[#This Row],[Alloc4FUNC]])","v":"1823920DSR COSTS AMORTIZED103805WSB - WATTSMART BUSINESS - CA- 2014OTHER"},1823920,"DSR COSTS AMORTIZED",103805,"WSB - WATTSMART BUSINESS - CA- 2014","OTHER",null,{"$f":"IF(OR(tblREGASSLookup[[#This Row],[Alloc]]=\"IDU\",tblREGASSLookup[[#This Row],[Alloc]]=\"OR\",tblREGASSLookup[[#This Row],[Alloc]]=\"UT\",tblREGASSLookup[[#This Row],[Alloc]]=\"WYU\",tblREGASSLookup[[#This Row],[Alloc]]=\"WYP\",tblREGASSLookup[[#This Row],[Alloc]]=\"CA\",tblREGASSLookup[[#This Row],[Alloc]]=\"WA\"),\"SITUS\",tblREGASSLookup[[#This Row],[Alloc]])","v":"OTHER"},"CUST"]
[{"$f":"CONCATENATE(tblREGASSLookup[[#This Row],[Primary Account]],tblREGASSLookup[[#This Row],[Primary Name]],tblREGASSLookup[[#This Row],[Secondary Acct]],tblREGASSLookup[[#This Row],[Secondary  Name]],tblREGASSLookup[[#This Row],[Alloc4FUNC]])","v":"1823920DSR COSTS AMORTIZED103808WSB - WATTSMART BUSINESS - ID- 2014OTHER"},1823920,"DSR COSTS AMORTIZED",103808,"WSB - WATTSMART BUSINESS - ID- 2014","OTHER",null,{"$f":"IF(OR(tblREGASSLookup[[#This Row],[Alloc]]=\"IDU\",tblREGASSLookup[[#This Row],[Alloc]]=\"OR\",tblREGASSLookup[[#This Row],[Alloc]]=\"UT\",tblREGASSLookup[[#This Row],[Alloc]]=\"WYU\",tblREGASSLookup[[#This Row],[Alloc]]=\"WYP\",tblREGASSLookup[[#This Row],[Alloc]]=\"CA\",tblREGASSLookup[[#This Row],[Alloc]]=\"WA\"),\"SITUS\",tblREGASSLookup[[#This Row],[Alloc]])","v":"OTHER"},"CUST"]
[{"$f":"CONCATENATE(tblREGASSLookup[[#This Row],[Primary Account]],tblREGASSLookup[[#This Row],[Primary Name]],tblREGASSLookup[[#This Row],[Secondary Acct]],tblREGASSLookup[[#This Row],[Secondary  Name]],tblREGASSLookup[[#This Row],[Alloc4FUNC]])","v":"1823920DSR COSTS AMORTIZED103809WSB Small Business Comm - ID-2014OTHER"},1823920,"DSR COSTS AMORTIZED",103809,"WSB Small Business Comm - ID-2014","OTHER",null,{"$f":"IF(OR(tblREGASSLookup[[#This Row],[Alloc]]=\"IDU\",tblREGASSLookup[[#This Row],[Alloc]]=\"OR\",tblREGASSLookup[[#This Row],[Alloc]]=\"UT\",tblREGASSLookup[[#This Row],[Alloc]]=\"WYU\",tblREGASSLookup[[#This Row],[Alloc]]=\"WYP\",tblREGASSLookup[[#This Row],[Alloc]]=\"CA\",tblREGASSLookup[[#This Row],[Alloc]]=\"WA\"),\"SITUS\",tblREGASSLookup[[#This Row],[Alloc]])","v":"OTHER"},"CUST"]
[{"$f":"CONCATENATE(tblREGASSLookup[[#This Row],[Primary Account]],tblREGASSLookup[[#This Row],[Primary Name]],tblREGASSLookup[[#This Row],[Secondary Acct]],tblREGASSLookup[[#This Row],[Secondary  Name]],tblREGASSLookup[[#This Row],[Alloc4FUNC]])","v":"1823920DSR COSTS AMORTIZED103810WSB Small Business Ind - ID 2014OTHER"},1823920,"DSR COSTS AMORTIZED",103810,"WSB Small Business Ind - ID 2014","OTHER",null,{"$f":"IF(OR(tblREGASSLookup[[#This Row],[Alloc]]=\"IDU\",tblREGASSLookup[[#This Row],[Alloc]]=\"OR\",tblREGASSLookup[[#This Row],[Alloc]]=\"UT\",tblREGASSLookup[[#This Row],[Alloc]]=\"WYU\",tblREGASSLookup[[#This Row],[Alloc]]=\"WYP\",tblREGASSLookup[[#This Row],[Alloc]]=\"CA\",tblREGASSLookup[[#This Row],[Alloc]]=\"WA\"),\"SITUS\",tblREGASSLookup[[#This Row],[Alloc]])","v":"OTHER"},"CUST"]
[{"$f":"CONCATENATE(tblREGASSLookup[[#This Row],[Primary Account]],tblREGASSLookup[[#This Row],[Primary Name]],tblREGASSLookup[[#This Row],[Secondary Acct]],tblREGASSLookup[[#This Row],[Secondary  Name]],tblREGASSLookup[[#This Row],[Alloc4FUNC]])","v":"1823920DSR COSTS AMORTIZED103811WSB - Wattsmart Business - WY Cat 2- 201OTHER"},1823920,"DSR COSTS AMORTIZED",103811,"WSB - Wattsmart Business - WY Cat 2- 201","OTHER",null,{"$f":"IF(OR(tblREGASSLookup[[#This Row],[Alloc]]=\"IDU\",tblREGASSLookup[[#This Row],[Alloc]]=\"OR\",tblREGASSLookup[[#This Row],[Alloc]]=\"UT\",tblREGASSLookup[[#This Row],[Alloc]]=\"WYU\",tblREGASSLookup[[#This Row],[Alloc]]=\"WYP\",tblREGASSLookup[[#This Row],[Alloc]]=\"CA\",tblREGASSLookup[[#This Row],[Alloc]]=\"WA\"),\"SITUS\",tblREGASSLookup[[#This Row],[Alloc]])","v":"OTHER"},"CUST"]
[{"$f":"CONCATENATE(tblREGASSLookup[[#This Row],[Primary Account]],tblREGASSLookup[[#This Row],[Primary Name]],tblREGASSLookup[[#This Row],[Secondary Acct]],tblREGASSLookup[[#This Row],[Secondary  Name]],tblREGASSLookup[[#This Row],[Alloc4FUNC]])","v":"1823920DSR COSTS AMORTIZED103812WSB - Small Business Comm - WY Cat2 -201OTHER"},1823920,"DSR COSTS AMORTIZED",103812,"WSB - Small Business Comm - WY Cat2 -201","OTHER",null,{"$f":"IF(OR(tblREGASSLookup[[#This Row],[Alloc]]=\"IDU\",tblREGASSLookup[[#This Row],[Alloc]]=\"OR\",tblREGASSLookup[[#This Row],[Alloc]]=\"UT\",tblREGASSLookup[[#This Row],[Alloc]]=\"WYU\",tblREGASSLookup[[#This Row],[Alloc]]=\"WYP\",tblREGASSLookup[[#This Row],[Alloc]]=\"CA\",tblREGASSLookup[[#This Row],[Alloc]]=\"WA\"),\"SITUS\",tblREGASSLookup[[#This Row],[Alloc]])","v":"OTHER"},"CUST"]
[{"$f":"CONCATENATE(tblREGASSLookup[[#This Row],[Primary Account]],tblREGASSLookup[[#This Row],[Primary Name]],tblREGASSLookup[[#This Row],[Secondary Acct]],tblREGASSLookup[[#This Row],[Secondary  Name]],tblREGASSLookup[[#This Row],[Alloc4FUNC]])","v":"1823920DSR COSTS AMORTIZED103813WBS Small Business Ind - WY Cat2-2014OTHER"},1823920,"DSR COSTS AMORTIZED",103813,"WBS Small Business Ind - WY Cat2-2014","OTHER",null,{"$f":"IF(OR(tblREGASSLookup[[#This Row],[Alloc]]=\"IDU\",tblREGASSLookup[[#This Row],[Alloc]]=\"OR\",tblREGASSLookup[[#This Row],[Alloc]]=\"UT\",tblREGASSLookup[[#This Row],[Alloc]]=\"WYU\",tblREGASSLookup[[#This Row],[Alloc]]=\"WYP\",tblREGASSLookup[[#This Row],[Alloc]]=\"CA\",tblREGASSLookup[[#This Row],[Alloc]]=\"WA\"),\"SITUS\",tblREGASSLookup[[#This Row],[Alloc]])","v":"OTHER"},"CUST"]
[{"$f":"CONCATENATE(tblREGASSLookup[[#This Row],[Primary Account]],tblREGASSLookup[[#This Row],[Primary Name]],tblREGASSLookup[[#This Row],[Secondary Acct]],tblREGASSLookup[[#This Row],[Secondary  Name]],tblREGASSLookup[[#This Row],[Alloc4FUNC]])","v":"1823920DSR COSTS AMORTIZED103814WSB Small Business Comm- UT-2014OTHER"},1823920,"DSR COSTS AMORTIZED",103814,"WSB Small Business Comm- UT-2014","OTHER",null,{"$f":"IF(OR(tblREGASSLookup[[#This Row],[Alloc]]=\"IDU\",tblREGASSLookup[[#This Row],[Alloc]]=\"OR\",tblREGASSLookup[[#This Row],[Alloc]]=\"UT\",tblREGASSLookup[[#This Row],[Alloc]]=\"WYU\",tblREGASSLookup[[#This Row],[Alloc]]=\"WYP\",tblREGASSLookup[[#This Row],[Alloc]]=\"CA\",tblREGASSLookup[[#This Row],[Alloc]]=\"WA\"),\"SITUS\",tblREGASSLookup[[#This Row],[Alloc]])","v":"OTHER"},"CUST"]
[{"$f":"CONCATENATE(tblREGASSLookup[[#This Row],[Primary Account]],tblREGASSLookup[[#This Row],[Primary Name]],tblREGASSLookup[[#This Row],[Secondary Acct]],tblREGASSLookup[[#This Row],[Secondary  Name]],tblREGASSLookup[[#This Row],[Alloc4FUNC]])","v":"1823920DSR COSTS AMORTIZED103815WBS Small Business Ind- UT-2014OTHER"},1823920,"DSR COSTS AMORTIZED",103815,"WBS Small Business Ind- UT-2014","OTHER",null,{"$f":"IF(OR(tblREGASSLookup[[#This Row],[Alloc]]=\"IDU\",tblREGASSLookup[[#This Row],[Alloc]]=\"OR\",tblREGASSLookup[[#This Row],[Alloc]]=\"UT\",tblREGASSLookup[[#This Row],[Alloc]]=\"WYU\",tblREGASSLookup[[#This Row],[Alloc]]=\"WYP\",tblREGASSLookup[[#This Row],[Alloc]]=\"CA\",tblREGASSLookup[[#This Row],[Alloc]]=\"WA\"),\"SITUS\",tblREGASSLookup[[#This Row],[Alloc]])","v":"OTHER"},"CUST"]
[{"$f":"CONCATENATE(tblREGASSLookup[[#This Row],[Primary Account]],tblREGASSLookup[[#This Row],[Primary Name]],tblREGASSLookup[[#This Row],[Secondary Acct]],tblREGASSLookup[[#This Row],[Secondary  Name]],tblREGASSLookup[[#This Row],[Alloc4FUNC]])","v":"1823920DSR COSTS AMORTIZED103816WSB Small Business Comm- WA-2014OTHER"},1823920,"DSR COSTS AMORTIZED",103816,"WSB Small Business Comm- WA-2014","OTHER",null,{"$f":"IF(OR(tblREGASSLookup[[#This Row],[Alloc]]=\"IDU\",tblREGASSLookup[[#This Row],[Alloc]]=\"OR\",tblREGASSLookup[[#This Row],[Alloc]]=\"UT\",tblREGASSLookup[[#This Row],[Alloc]]=\"WYU\",tblREGASSLookup[[#This Row],[Alloc]]=\"WYP\",tblREGASSLookup[[#This Row],[Alloc]]=\"CA\",tblREGASSLookup[[#This Row],[Alloc]]=\"WA\"),\"SITUS\",tblREGASSLookup[[#This Row],[Alloc]])","v":"OTHER"},"CUST"]
[{"$f":"CONCATENATE(tblREGASSLookup[[#This Row],[Primary Account]],tblREGASSLookup[[#This Row],[Primary Name]],tblREGASSLookup[[#This Row],[Secondary Acct]],tblREGASSLookup[[#This Row],[Secondary  Name]],tblREGASSLookup[[#This Row],[Alloc4FUNC]])","v":"1823920DSR COSTS AMORTIZED103817WBS Small Business Ind- WA-2014OTHER"},1823920,"DSR COSTS AMORTIZED",103817,"WBS Small Business Ind- WA-2014","OTHER",null,{"$f":"IF(OR(tblREGASSLookup[[#This Row],[Alloc]]=\"IDU\",tblREGASSLookup[[#This Row],[Alloc]]=\"OR\",tblREGASSLookup[[#This Row],[Alloc]]=\"UT\",tblREGASSLookup[[#This Row],[Alloc]]=\"WYU\",tblREGASSLookup[[#This Row],[Alloc]]=\"WYP\",tblREGASSLookup[[#This Row],[Alloc]]=\"CA\",tblREGASSLookup[[#This Row],[Alloc]]=\"WA\"),\"SITUS\",tblREGASSLookup[[#This Row],[Alloc]])","v":"OTHER"},"CUST"]
[{"$f":"CONCATENATE(tblREGASSLookup[[#This Row],[Primary Account]],tblREGASSLookup[[#This Row],[Primary Name]],tblREGASSLookup[[#This Row],[Secondary Acct]],tblREGASSLookup[[#This Row],[Secondary  Name]],tblREGASSLookup[[#This Row],[Alloc4FUNC]])","v":"1823920DSR COSTS AMORTIZED103834HOME ENERGY REPORTING - ID 2014OTHER"},1823920,"DSR COSTS AMORTIZED",103834,"HOME ENERGY REPORTING - ID 2014","OTHER",null,{"$f":"IF(OR(tblREGASSLookup[[#This Row],[Alloc]]=\"IDU\",tblREGASSLookup[[#This Row],[Alloc]]=\"OR\",tblREGASSLookup[[#This Row],[Alloc]]=\"UT\",tblREGASSLookup[[#This Row],[Alloc]]=\"WYU\",tblREGASSLookup[[#This Row],[Alloc]]=\"WYP\",tblREGASSLookup[[#This Row],[Alloc]]=\"CA\",tblREGASSLookup[[#This Row],[Alloc]]=\"WA\"),\"SITUS\",tblREGASSLookup[[#This Row],[Alloc]])","v":"OTHER"},"CUST"]
[{"$f":"CONCATENATE(tblREGASSLookup[[#This Row],[Primary Account]],tblREGASSLookup[[#This Row],[Primary Name]],tblREGASSLookup[[#This Row],[Secondary Acct]],tblREGASSLookup[[#This Row],[Secondary  Name]],tblREGASSLookup[[#This Row],[Alloc4FUNC]])","v":"1823920DSR COSTS AMORTIZED103835HOME ENERGY REPORTING - WY 2014OTHER"},1823920,"DSR COSTS AMORTIZED",103835,"HOME ENERGY REPORTING - WY 2014","OTHER",null,{"$f":"IF(OR(tblREGASSLookup[[#This Row],[Alloc]]=\"IDU\",tblREGASSLookup[[#This Row],[Alloc]]=\"OR\",tblREGASSLookup[[#This Row],[Alloc]]=\"UT\",tblREGASSLookup[[#This Row],[Alloc]]=\"WYU\",tblREGASSLookup[[#This Row],[Alloc]]=\"WYP\",tblREGASSLookup[[#This Row],[Alloc]]=\"CA\",tblREGASSLookup[[#This Row],[Alloc]]=\"WA\"),\"SITUS\",tblREGASSLookup[[#This Row],[Alloc]])","v":"OTHER"},"CUST"]
[{"$f":"CONCATENATE(tblREGASSLookup[[#This Row],[Primary Account]],tblREGASSLookup[[#This Row],[Primary Name]],tblREGASSLookup[[#This Row],[Secondary Acct]],tblREGASSLookup[[#This Row],[Secondary  Name]],tblREGASSLookup[[#This Row],[Alloc4FUNC]])","v":"1823920DSR COSTS AMORTIZED103845REFRIGERATOR RECYCLING COMM - WASHINGTONOTHER"},1823920,"DSR COSTS AMORTIZED",103845,"REFRIGERATOR RECYCLING COMM - WASHINGTON","OTHER",null,{"$f":"IF(OR(tblREGASSLookup[[#This Row],[Alloc]]=\"IDU\",tblREGASSLookup[[#This Row],[Alloc]]=\"OR\",tblREGASSLookup[[#This Row],[Alloc]]=\"UT\",tblREGASSLookup[[#This Row],[Alloc]]=\"WYU\",tblREGASSLookup[[#This Row],[Alloc]]=\"WYP\",tblREGASSLookup[[#This Row],[Alloc]]=\"CA\",tblREGASSLookup[[#This Row],[Alloc]]=\"WA\"),\"SITUS\",tblREGASSLookup[[#This Row],[Alloc]])","v":"OTHER"},"CUST"]
[{"$f":"CONCATENATE(tblREGASSLookup[[#This Row],[Primary Account]],tblREGASSLookup[[#This Row],[Primary Name]],tblREGASSLookup[[#This Row],[Secondary Acct]],tblREGASSLookup[[#This Row],[Secondary  Name]],tblREGASSLookup[[#This Row],[Alloc4FUNC]])","v":"1823920DSR COSTS AMORTIZED103856WSB Wattsmart Business Agric - ID-2014OTHER"},1823920,"DSR COSTS AMORTIZED",103856,"WSB Wattsmart Business Agric - ID-2014","OTHER",null,{"$f":"IF(OR(tblREGASSLookup[[#This Row],[Alloc]]=\"IDU\",tblREGASSLookup[[#This Row],[Alloc]]=\"OR\",tblREGASSLookup[[#This Row],[Alloc]]=\"UT\",tblREGASSLookup[[#This Row],[Alloc]]=\"WYU\",tblREGASSLookup[[#This Row],[Alloc]]=\"WYP\",tblREGASSLookup[[#This Row],[Alloc]]=\"CA\",tblREGASSLookup[[#This Row],[Alloc]]=\"WA\"),\"SITUS\",tblREGASSLookup[[#This Row],[Alloc]])","v":"OTHER"},"CUST"]
[{"$f":"CONCATENATE(tblREGASSLookup[[#This Row],[Primary Account]],tblREGASSLookup[[#This Row],[Primary Name]],tblREGASSLookup[[#This Row],[Secondary Acct]],tblREGASSLookup[[#This Row],[Secondary  Name]],tblREGASSLookup[[#This Row],[Alloc4FUNC]])","v":"1823920DSR COSTS AMORTIZED103858WSB Wattsmart Business Comm- WY Cat3 -20OTHER"},1823920,"DSR COSTS AMORTIZED",103858,"WSB Wattsmart Business Comm- WY Cat3 -20","OTHER",null,{"$f":"IF(OR(tblREGASSLookup[[#This Row],[Alloc]]=\"IDU\",tblREGASSLookup[[#This Row],[Alloc]]=\"OR\",tblREGASSLookup[[#This Row],[Alloc]]=\"UT\",tblREGASSLookup[[#This Row],[Alloc]]=\"WYU\",tblREGASSLookup[[#This Row],[Alloc]]=\"WYP\",tblREGASSLookup[[#This Row],[Alloc]]=\"CA\",tblREGASSLookup[[#This Row],[Alloc]]=\"WA\"),\"SITUS\",tblREGASSLookup[[#This Row],[Alloc]])","v":"OTHER"},"CUST"]
[{"$f":"CONCATENATE(tblREGASSLookup[[#This Row],[Primary Account]],tblREGASSLookup[[#This Row],[Primary Name]],tblREGASSLookup[[#This Row],[Secondary Acct]],tblREGASSLookup[[#This Row],[Secondary  Name]],tblREGASSLookup[[#This Row],[Alloc4FUNC]])","v":"1823920DSR COSTS AMORTIZED103859WBS Wattsmart Business Ind- WY Cat2-2014OTHER"},1823920,"DSR COSTS AMORTIZED",103859,"WBS Wattsmart Business Ind- WY Cat2-2014","OTHER",null,{"$f":"IF(OR(tblREGASSLookup[[#This Row],[Alloc]]=\"IDU\",tblREGASSLookup[[#This Row],[Alloc]]=\"OR\",tblREGASSLookup[[#This Row],[Alloc]]=\"UT\",tblREGASSLookup[[#This Row],[Alloc]]=\"WYU\",tblREGASSLookup[[#This Row],[Alloc]]=\"WYP\",tblREGASSLookup[[#This Row],[Alloc]]=\"CA\",tblREGASSLookup[[#This Row],[Alloc]]=\"WA\"),\"SITUS\",tblREGASSLookup[[#This Row],[Alloc]])","v":"OTHER"},"CUST"]
[{"$f":"CONCATENATE(tblREGASSLookup[[#This Row],[Primary Account]],tblREGASSLookup[[#This Row],[Primary Name]],tblREGASSLookup[[#This Row],[Secondary Acct]],tblREGASSLookup[[#This Row],[Secondary  Name]],tblREGASSLookup[[#This Row],[Alloc4FUNC]])","v":"1823920DSR COSTS AMORTIZED103860WSB- Wattsmart Business- WY Cat 3- 2014OTHER"},1823920,"DSR COSTS AMORTIZED",103860,"WSB- Wattsmart Business- WY Cat 3- 2014","OTHER",null,{"$f":"IF(OR(tblREGASSLookup[[#This Row],[Alloc]]=\"IDU\",tblREGASSLookup[[#This Row],[Alloc]]=\"OR\",tblREGASSLookup[[#This Row],[Alloc]]=\"UT\",tblREGASSLookup[[#This Row],[Alloc]]=\"WYU\",tblREGASSLookup[[#This Row],[Alloc]]=\"WYP\",tblREGASSLookup[[#This Row],[Alloc]]=\"CA\",tblREGASSLookup[[#This Row],[Alloc]]=\"WA\"),\"SITUS\",tblREGASSLookup[[#This Row],[Alloc]])","v":"OTHER"},"CUST"]
[{"$f":"CONCATENATE(tblREGASSLookup[[#This Row],[Primary Account]],tblREGASSLookup[[#This Row],[Primary Name]],tblREGASSLookup[[#This Row],[Secondary Acct]],tblREGASSLookup[[#This Row],[Secondary  Name]],tblREGASSLookup[[#This Row],[Alloc4FUNC]])","v":"1823920DSR COSTS AMORTIZED103862OUTREACH AND COMMUNICATION  ID-2014OTHER"},1823920,"DSR COSTS AMORTIZED",103862,"OUTREACH AND COMMUNICATION  ID-2014","OTHER",null,{"$f":"IF(OR(tblREGASSLookup[[#This Row],[Alloc]]=\"IDU\",tblREGASSLookup[[#This Row],[Alloc]]=\"OR\",tblREGASSLookup[[#This Row],[Alloc]]=\"UT\",tblREGASSLookup[[#This Row],[Alloc]]=\"WYU\",tblREGASSLookup[[#This Row],[Alloc]]=\"WYP\",tblREGASSLookup[[#This Row],[Alloc]]=\"CA\",tblREGASSLookup[[#This Row],[Alloc]]=\"WA\"),\"SITUS\",tblREGASSLookup[[#This Row],[Alloc]])","v":"OTHER"},"CUST"]
[{"$f":"CONCATENATE(tblREGASSLookup[[#This Row],[Primary Account]],tblREGASSLookup[[#This Row],[Primary Name]],tblREGASSLookup[[#This Row],[Secondary Acct]],tblREGASSLookup[[#This Row],[Secondary  Name]],tblREGASSLookup[[#This Row],[Alloc4FUNC]])","v":"1823920DSR COSTS AMORTIZED103865CALIFORNIA DSM EXPENSE - 2015OTHER"},1823920,"DSR COSTS AMORTIZED",103865,"CALIFORNIA DSM EXPENSE - 2015","OTHER",null,{"$f":"IF(OR(tblREGASSLookup[[#This Row],[Alloc]]=\"IDU\",tblREGASSLookup[[#This Row],[Alloc]]=\"OR\",tblREGASSLookup[[#This Row],[Alloc]]=\"UT\",tblREGASSLookup[[#This Row],[Alloc]]=\"WYU\",tblREGASSLookup[[#This Row],[Alloc]]=\"WYP\",tblREGASSLookup[[#This Row],[Alloc]]=\"CA\",tblREGASSLookup[[#This Row],[Alloc]]=\"WA\"),\"SITUS\",tblREGASSLookup[[#This Row],[Alloc]])","v":"OTHER"},"CUST"]
[{"$f":"CONCATENATE(tblREGASSLookup[[#This Row],[Primary Account]],tblREGASSLookup[[#This Row],[Primary Name]],tblREGASSLookup[[#This Row],[Secondary Acct]],tblREGASSLookup[[#This Row],[Secondary  Name]],tblREGASSLookup[[#This Row],[Alloc4FUNC]])","v":"1823920DSR COSTS AMORTIZED103874PORTFOLIO - IDAHO 2015OTHER"},1823920,"DSR COSTS AMORTIZED",103874,"PORTFOLIO - IDAHO 2015","OTHER",null,{"$f":"IF(OR(tblREGASSLookup[[#This Row],[Alloc]]=\"IDU\",tblREGASSLookup[[#This Row],[Alloc]]=\"OR\",tblREGASSLookup[[#This Row],[Alloc]]=\"UT\",tblREGASSLookup[[#This Row],[Alloc]]=\"WYU\",tblREGASSLookup[[#This Row],[Alloc]]=\"WYP\",tblREGASSLookup[[#This Row],[Alloc]]=\"CA\",tblREGASSLookup[[#This Row],[Alloc]]=\"WA\"),\"SITUS\",tblREGASSLookup[[#This Row],[Alloc]])","v":"OTHER"},"CUST"]
[{"$f":"CONCATENATE(tblREGASSLookup[[#This Row],[Primary Account]],tblREGASSLookup[[#This Row],[Primary Name]],tblREGASSLookup[[#This Row],[Secondary Acct]],tblREGASSLookup[[#This Row],[Secondary  Name]],tblREGASSLookup[[#This Row],[Alloc4FUNC]])","v":"1823920DSR COSTS AMORTIZED103876WSB - WATTSMART BUSINESS - ID- 2015OTHER"},1823920,"DSR COSTS AMORTIZED",103876,"WSB - WATTSMART BUSINESS - ID- 2015","OTHER",null,{"$f":"IF(OR(tblREGASSLookup[[#This Row],[Alloc]]=\"IDU\",tblREGASSLookup[[#This Row],[Alloc]]=\"OR\",tblREGASSLookup[[#This Row],[Alloc]]=\"UT\",tblREGASSLookup[[#This Row],[Alloc]]=\"WYU\",tblREGASSLookup[[#This Row],[Alloc]]=\"WYP\",tblREGASSLookup[[#This Row],[Alloc]]=\"CA\",tblREGASSLookup[[#This Row],[Alloc]]=\"WA\"),\"SITUS\",tblREGASSLookup[[#This Row],[Alloc]])","v":"OTHER"},"CUST"]
[{"$f":"CONCATENATE(tblREGASSLookup[[#This Row],[Primary Account]],tblREGASSLookup[[#This Row],[Primary Name]],tblREGASSLookup[[#This Row],[Secondary Acct]],tblREGASSLookup[[#This Row],[Secondary  Name]],tblREGASSLookup[[#This Row],[Alloc4FUNC]])","v":"1823920DSR COSTS AMORTIZED103877WSB Small Business Comm - ID-2015OTHER"},1823920,"DSR COSTS AMORTIZED",103877,"WSB Small Business Comm - ID-2015","OTHER",null,{"$f":"IF(OR(tblREGASSLookup[[#This Row],[Alloc]]=\"IDU\",tblREGASSLookup[[#This Row],[Alloc]]=\"OR\",tblREGASSLookup[[#This Row],[Alloc]]=\"UT\",tblREGASSLookup[[#This Row],[Alloc]]=\"WYU\",tblREGASSLookup[[#This Row],[Alloc]]=\"WYP\",tblREGASSLookup[[#This Row],[Alloc]]=\"CA\",tblREGASSLookup[[#This Row],[Alloc]]=\"WA\"),\"SITUS\",tblREGASSLookup[[#This Row],[Alloc]])","v":"OTHER"},"CUST"]
[{"$f":"CONCATENATE(tblREGASSLookup[[#This Row],[Primary Account]],tblREGASSLookup[[#This Row],[Primary Name]],tblREGASSLookup[[#This Row],[Secondary Acct]],tblREGASSLookup[[#This Row],[Secondary  Name]],tblREGASSLookup[[#This Row],[Alloc4FUNC]])","v":"1823920DSR COSTS AMORTIZED103878WSB Small Business Ind - ID 2015OTHER"},1823920,"DSR COSTS AMORTIZED",103878,"WSB Small Business Ind - ID 2015","OTHER",null,{"$f":"IF(OR(tblREGASSLookup[[#This Row],[Alloc]]=\"IDU\",tblREGASSLookup[[#This Row],[Alloc]]=\"OR\",tblREGASSLookup[[#This Row],[Alloc]]=\"UT\",tblREGASSLookup[[#This Row],[Alloc]]=\"WYU\",tblREGASSLookup[[#This Row],[Alloc]]=\"WYP\",tblREGASSLookup[[#This Row],[Alloc]]=\"CA\",tblREGASSLookup[[#This Row],[Alloc]]=\"WA\"),\"SITUS\",tblREGASSLookup[[#This Row],[Alloc]])","v":"OTHER"},"CUST"]
[{"$f":"CONCATENATE(tblREGASSLookup[[#This Row],[Primary Account]],tblREGASSLookup[[#This Row],[Primary Name]],tblREGASSLookup[[#This Row],[Secondary Acct]],tblREGASSLookup[[#This Row],[Secondary  Name]],tblREGASSLookup[[#This Row],[Alloc4FUNC]])","v":"1823920DSR COSTS AMORTIZED103879HOME ENERGY REPORTING - ID 2015OTHER"},1823920,"DSR COSTS AMORTIZED",103879,"HOME ENERGY REPORTING - ID 2015","OTHER",null,{"$f":"IF(OR(tblREGASSLookup[[#This Row],[Alloc]]=\"IDU\",tblREGASSLookup[[#This Row],[Alloc]]=\"OR\",tblREGASSLookup[[#This Row],[Alloc]]=\"UT\",tblREGASSLookup[[#This Row],[Alloc]]=\"WYU\",tblREGASSLookup[[#This Row],[Alloc]]=\"WYP\",tblREGASSLookup[[#This Row],[Alloc]]=\"CA\",tblREGASSLookup[[#This Row],[Alloc]]=\"WA\"),\"SITUS\",tblREGASSLookup[[#This Row],[Alloc]])","v":"OTHER"},"CUST"]
[{"$f":"CONCATENATE(tblREGASSLookup[[#This Row],[Primary Account]],tblREGASSLookup[[#This Row],[Primary Name]],tblREGASSLookup[[#This Row],[Secondary Acct]],tblREGASSLookup[[#This Row],[Secondary  Name]],tblREGASSLookup[[#This Row],[Alloc4FUNC]])","v":"1823920DSR COSTS AMORTIZED103880WSB Wattsmart Business Agric - ID-2015OTHER"},1823920,"DSR COSTS AMORTIZED",103880,"WSB Wattsmart Business Agric - ID-2015","OTHER",null,{"$f":"IF(OR(tblREGASSLookup[[#This Row],[Alloc]]=\"IDU\",tblREGASSLookup[[#This Row],[Alloc]]=\"OR\",tblREGASSLookup[[#This Row],[Alloc]]=\"UT\",tblREGASSLookup[[#This Row],[Alloc]]=\"WYU\",tblREGASSLookup[[#This Row],[Alloc]]=\"WYP\",tblREGASSLookup[[#This Row],[Alloc]]=\"CA\",tblREGASSLookup[[#This Row],[Alloc]]=\"WA\"),\"SITUS\",tblREGASSLookup[[#This Row],[Alloc]])","v":"OTHER"},"CUST"]
[{"$f":"CONCATENATE(tblREGASSLookup[[#This Row],[Primary Account]],tblREGASSLookup[[#This Row],[Primary Name]],tblREGASSLookup[[#This Row],[Secondary Acct]],tblREGASSLookup[[#This Row],[Secondary  Name]],tblREGASSLookup[[#This Row],[Alloc4FUNC]])","v":"1823920DSR COSTS AMORTIZED103881OUTREACH AND COMMUNICATION  ID-2015OTHER"},1823920,"DSR COSTS AMORTIZED",103881,"OUTREACH AND COMMUNICATION  ID-2015","OTHER",null,{"$f":"IF(OR(tblREGASSLookup[[#This Row],[Alloc]]=\"IDU\",tblREGASSLookup[[#This Row],[Alloc]]=\"OR\",tblREGASSLookup[[#This Row],[Alloc]]=\"UT\",tblREGASSLookup[[#This Row],[Alloc]]=\"WYU\",tblREGASSLookup[[#This Row],[Alloc]]=\"WYP\",tblREGASSLookup[[#This Row],[Alloc]]=\"CA\",tblREGASSLookup[[#This Row],[Alloc]]=\"WA\"),\"SITUS\",tblREGASSLookup[[#This Row],[Alloc]])","v":"OTHER"},"CUST"]
[{"$f":"CONCATENATE(tblREGASSLookup[[#This Row],[Primary Account]],tblREGASSLookup[[#This Row],[Primary Name]],tblREGASSLookup[[#This Row],[Secondary Acct]],tblREGASSLookup[[#This Row],[Secondary  Name]],tblREGASSLookup[[#This Row],[Alloc4FUNC]])","v":"1823920DSR COSTS AMORTIZED103882A/C LOAD CONTROL - RESIDENTIAL/UTAH - 20OTHER"},1823920,"DSR COSTS AMORTIZED",103882,"A/C LOAD CONTROL - RESIDENTIAL/UTAH - 20","OTHER",null,{"$f":"IF(OR(tblREGASSLookup[[#This Row],[Alloc]]=\"IDU\",tblREGASSLookup[[#This Row],[Alloc]]=\"OR\",tblREGASSLookup[[#This Row],[Alloc]]=\"UT\",tblREGASSLookup[[#This Row],[Alloc]]=\"WYU\",tblREGASSLookup[[#This Row],[Alloc]]=\"WYP\",tblREGASSLookup[[#This Row],[Alloc]]=\"CA\",tblREGASSLookup[[#This Row],[Alloc]]=\"WA\"),\"SITUS\",tblREGASSLookup[[#This Row],[Alloc]])","v":"OTHER"},"CUST"]
[{"$f":"CONCATENATE(tblREGASSLookup[[#This Row],[Primary Account]],tblREGASSLookup[[#This Row],[Primary Name]],tblREGASSLookup[[#This Row],[Secondary Acct]],tblREGASSLookup[[#This Row],[Secondary  Name]],tblREGASSLookup[[#This Row],[Alloc4FUNC]])","v":"1823920DSR COSTS AMORTIZED103887HOME ENERGY EFF INCENTIVE PROG - UT 2015OTHER"},1823920,"DSR COSTS AMORTIZED",103887,"HOME ENERGY EFF INCENTIVE PROG - UT 2015","OTHER",null,{"$f":"IF(OR(tblREGASSLookup[[#This Row],[Alloc]]=\"IDU\",tblREGASSLookup[[#This Row],[Alloc]]=\"OR\",tblREGASSLookup[[#This Row],[Alloc]]=\"UT\",tblREGASSLookup[[#This Row],[Alloc]]=\"WYU\",tblREGASSLookup[[#This Row],[Alloc]]=\"WYP\",tblREGASSLookup[[#This Row],[Alloc]]=\"CA\",tblREGASSLookup[[#This Row],[Alloc]]=\"WA\"),\"SITUS\",tblREGASSLookup[[#This Row],[Alloc]])","v":"OTHER"},"CUST"]
[{"$f":"CONCATENATE(tblREGASSLookup[[#This Row],[Primary Account]],tblREGASSLookup[[#This Row],[Primary Name]],tblREGASSLookup[[#This Row],[Secondary Acct]],tblREGASSLookup[[#This Row],[Secondary  Name]],tblREGASSLookup[[#This Row],[Alloc4FUNC]])","v":"1823920DSR COSTS AMORTIZED103888HOME ENERGY REPORTING - UT 2015OTHER"},1823920,"DSR COSTS AMORTIZED",103888,"HOME ENERGY REPORTING - UT 2015","OTHER",null,{"$f":"IF(OR(tblREGASSLookup[[#This Row],[Alloc]]=\"IDU\",tblREGASSLookup[[#This Row],[Alloc]]=\"OR\",tblREGASSLookup[[#This Row],[Alloc]]=\"UT\",tblREGASSLookup[[#This Row],[Alloc]]=\"WYU\",tblREGASSLookup[[#This Row],[Alloc]]=\"WYP\",tblREGASSLookup[[#This Row],[Alloc]]=\"CA\",tblREGASSLookup[[#This Row],[Alloc]]=\"WA\"),\"SITUS\",tblREGASSLookup[[#This Row],[Alloc]])","v":"OTHER"},"CUST"]
[{"$f":"CONCATENATE(tblREGASSLookup[[#This Row],[Primary Account]],tblREGASSLookup[[#This Row],[Primary Name]],tblREGASSLookup[[#This Row],[Secondary Acct]],tblREGASSLookup[[#This Row],[Secondary  Name]],tblREGASSLookup[[#This Row],[Alloc4FUNC]])","v":"1823920DSR COSTS AMORTIZED103891IRRIGATION LOAD CONTROL  - UTAH - 2015OTHER"},1823920,"DSR COSTS AMORTIZED",103891,"IRRIGATION LOAD CONTROL  - UTAH - 2015","OTHER",null,{"$f":"IF(OR(tblREGASSLookup[[#This Row],[Alloc]]=\"IDU\",tblREGASSLookup[[#This Row],[Alloc]]=\"OR\",tblREGASSLookup[[#This Row],[Alloc]]=\"UT\",tblREGASSLookup[[#This Row],[Alloc]]=\"WYU\",tblREGASSLookup[[#This Row],[Alloc]]=\"WYP\",tblREGASSLookup[[#This Row],[Alloc]]=\"CA\",tblREGASSLookup[[#This Row],[Alloc]]=\"WA\"),\"SITUS\",tblREGASSLookup[[#This Row],[Alloc]])","v":"OTHER"},"CUST"]
[{"$f":"CONCATENATE(tblREGASSLookup[[#This Row],[Primary Account]],tblREGASSLookup[[#This Row],[Primary Name]],tblREGASSLookup[[#This Row],[Secondary Acct]],tblREGASSLookup[[#This Row],[Secondary  Name]],tblREGASSLookup[[#This Row],[Alloc4FUNC]])","v":"1823920DSR COSTS AMORTIZED103892LOW INCOME - UTAH - 2015OTHER"},1823920,"DSR COSTS AMORTIZED",103892,"LOW INCOME - UTAH - 2015","OTHER",null,{"$f":"IF(OR(tblREGASSLookup[[#This Row],[Alloc]]=\"IDU\",tblREGASSLookup[[#This Row],[Alloc]]=\"OR\",tblREGASSLookup[[#This Row],[Alloc]]=\"UT\",tblREGASSLookup[[#This Row],[Alloc]]=\"WYU\",tblREGASSLookup[[#This Row],[Alloc]]=\"WYP\",tblREGASSLookup[[#This Row],[Alloc]]=\"CA\",tblREGASSLookup[[#This Row],[Alloc]]=\"WA\"),\"SITUS\",tblREGASSLookup[[#This Row],[Alloc]])","v":"OTHER"},"CUST"]
[{"$f":"CONCATENATE(tblREGASSLookup[[#This Row],[Primary Account]],tblREGASSLookup[[#This Row],[Primary Name]],tblREGASSLookup[[#This Row],[Secondary Acct]],tblREGASSLookup[[#This Row],[Secondary  Name]],tblREGASSLookup[[#This Row],[Alloc4FUNC]])","v":"1823920DSR COSTS AMORTIZED103893OUTREACH and COMMUNICATIONS - UT 2015OTHER"},1823920,"DSR COSTS AMORTIZED",103893,"OUTREACH and COMMUNICATIONS - UT 2015","OTHER",null,{"$f":"IF(OR(tblREGASSLookup[[#This Row],[Alloc]]=\"IDU\",tblREGASSLookup[[#This Row],[Alloc]]=\"OR\",tblREGASSLookup[[#This Row],[Alloc]]=\"UT\",tblREGASSLookup[[#This Row],[Alloc]]=\"WYU\",tblREGASSLookup[[#This Row],[Alloc]]=\"WYP\",tblREGASSLookup[[#This Row],[Alloc]]=\"CA\",tblREGASSLookup[[#This Row],[Alloc]]=\"WA\"),\"SITUS\",tblREGASSLookup[[#This Row],[Alloc]])","v":"OTHER"},"CUST"]
[{"$f":"CONCATENATE(tblREGASSLookup[[#This Row],[Primary Account]],tblREGASSLookup[[#This Row],[Primary Name]],tblREGASSLookup[[#This Row],[Secondary Acct]],tblREGASSLookup[[#This Row],[Secondary  Name]],tblREGASSLookup[[#This Row],[Alloc4FUNC]])","v":"1823920DSR COSTS AMORTIZED103894PORTFOLIO - UTAH 2015OTHER"},1823920,"DSR COSTS AMORTIZED",103894,"PORTFOLIO - UTAH 2015","OTHER",null,{"$f":"IF(OR(tblREGASSLookup[[#This Row],[Alloc]]=\"IDU\",tblREGASSLookup[[#This Row],[Alloc]]=\"OR\",tblREGASSLookup[[#This Row],[Alloc]]=\"UT\",tblREGASSLookup[[#This Row],[Alloc]]=\"WYU\",tblREGASSLookup[[#This Row],[Alloc]]=\"WYP\",tblREGASSLookup[[#This Row],[Alloc]]=\"CA\",tblREGASSLookup[[#This Row],[Alloc]]=\"WA\"),\"SITUS\",tblREGASSLookup[[#This Row],[Alloc]])","v":"OTHER"},"CUST"]
[{"$f":"CONCATENATE(tblREGASSLookup[[#This Row],[Primary Account]],tblREGASSLookup[[#This Row],[Primary Name]],tblREGASSLookup[[#This Row],[Secondary Acct]],tblREGASSLookup[[#This Row],[Secondary  Name]],tblREGASSLookup[[#This Row],[Alloc4FUNC]])","v":"1823920DSR COSTS AMORTIZED103895REFRIGERATOR RECYCLING PGM- UTAH - 2015OTHER"},1823920,"DSR COSTS AMORTIZED",103895,"REFRIGERATOR RECYCLING PGM- UTAH - 2015","OTHER",null,{"$f":"IF(OR(tblREGASSLookup[[#This Row],[Alloc]]=\"IDU\",tblREGASSLookup[[#This Row],[Alloc]]=\"OR\",tblREGASSLookup[[#This Row],[Alloc]]=\"UT\",tblREGASSLookup[[#This Row],[Alloc]]=\"WYU\",tblREGASSLookup[[#This Row],[Alloc]]=\"WYP\",tblREGASSLookup[[#This Row],[Alloc]]=\"CA\",tblREGASSLookup[[#This Row],[Alloc]]=\"WA\"),\"SITUS\",tblREGASSLookup[[#This Row],[Alloc]])","v":"OTHER"},"CUST"]
[{"$f":"CONCATENATE(tblREGASSLookup[[#This Row],[Primary Account]],tblREGASSLookup[[#This Row],[Primary Name]],tblREGASSLookup[[#This Row],[Secondary Acct]],tblREGASSLookup[[#This Row],[Secondary  Name]],tblREGASSLookup[[#This Row],[Alloc4FUNC]])","v":"1823920DSR COSTS AMORTIZED103896RESIDENTIAL NEW CONSTRUCTION - UTAH - 20OTHER"},1823920,"DSR COSTS AMORTIZED",103896,"RESIDENTIAL NEW CONSTRUCTION - UTAH - 20","OTHER",null,{"$f":"IF(OR(tblREGASSLookup[[#This Row],[Alloc]]=\"IDU\",tblREGASSLookup[[#This Row],[Alloc]]=\"OR\",tblREGASSLookup[[#This Row],[Alloc]]=\"UT\",tblREGASSLookup[[#This Row],[Alloc]]=\"WYU\",tblREGASSLookup[[#This Row],[Alloc]]=\"WYP\",tblREGASSLookup[[#This Row],[Alloc]]=\"CA\",tblREGASSLookup[[#This Row],[Alloc]]=\"WA\"),\"SITUS\",tblREGASSLookup[[#This Row],[Alloc]])","v":"OTHER"},"CUST"]
[{"$f":"CONCATENATE(tblREGASSLookup[[#This Row],[Primary Account]],tblREGASSLookup[[#This Row],[Primary Name]],tblREGASSLookup[[#This Row],[Secondary Acct]],tblREGASSLookup[[#This Row],[Secondary  Name]],tblREGASSLookup[[#This Row],[Alloc4FUNC]])","v":"1823920DSR COSTS AMORTIZED103900COMMERCIAL (WSB) WATTSMART BUS - UT- 201OTHER"},1823920,"DSR COSTS AMORTIZED",103900,"COMMERCIAL (WSB) WATTSMART BUS - UT- 201","OTHER",null,{"$f":"IF(OR(tblREGASSLookup[[#This Row],[Alloc]]=\"IDU\",tblREGASSLookup[[#This Row],[Alloc]]=\"OR\",tblREGASSLookup[[#This Row],[Alloc]]=\"UT\",tblREGASSLookup[[#This Row],[Alloc]]=\"WYU\",tblREGASSLookup[[#This Row],[Alloc]]=\"WYP\",tblREGASSLookup[[#This Row],[Alloc]]=\"CA\",tblREGASSLookup[[#This Row],[Alloc]]=\"WA\"),\"SITUS\",tblREGASSLookup[[#This Row],[Alloc]])","v":"OTHER"},"CUST"]
[{"$f":"CONCATENATE(tblREGASSLookup[[#This Row],[Primary Account]],tblREGASSLookup[[#This Row],[Primary Name]],tblREGASSLookup[[#This Row],[Secondary Acct]],tblREGASSLookup[[#This Row],[Secondary  Name]],tblREGASSLookup[[#This Row],[Alloc4FUNC]])","v":"1823920DSR COSTS AMORTIZED103901INDUSTRIAL (WSB) WATTSMART BUS- UT- 2015OTHER"},1823920,"DSR COSTS AMORTIZED",103901,"INDUSTRIAL (WSB) WATTSMART BUS- UT- 2015","OTHER",null,{"$f":"IF(OR(tblREGASSLookup[[#This Row],[Alloc]]=\"IDU\",tblREGASSLookup[[#This Row],[Alloc]]=\"OR\",tblREGASSLookup[[#This Row],[Alloc]]=\"UT\",tblREGASSLookup[[#This Row],[Alloc]]=\"WYU\",tblREGASSLookup[[#This Row],[Alloc]]=\"WYP\",tblREGASSLookup[[#This Row],[Alloc]]=\"CA\",tblREGASSLookup[[#This Row],[Alloc]]=\"WA\"),\"SITUS\",tblREGASSLookup[[#This Row],[Alloc]])","v":"OTHER"},"CUST"]
[{"$f":"CONCATENATE(tblREGASSLookup[[#This Row],[Primary Account]],tblREGASSLookup[[#This Row],[Primary Name]],tblREGASSLookup[[#This Row],[Secondary Acct]],tblREGASSLookup[[#This Row],[Secondary  Name]],tblREGASSLookup[[#This Row],[Alloc4FUNC]])","v":"1823920DSR COSTS AMORTIZED103902WSB - WATTSMART BUS- UT- 2015OTHER"},1823920,"DSR COSTS AMORTIZED",103902,"WSB - WATTSMART BUS- UT- 2015","OTHER",null,{"$f":"IF(OR(tblREGASSLookup[[#This Row],[Alloc]]=\"IDU\",tblREGASSLookup[[#This Row],[Alloc]]=\"OR\",tblREGASSLookup[[#This Row],[Alloc]]=\"UT\",tblREGASSLookup[[#This Row],[Alloc]]=\"WYU\",tblREGASSLookup[[#This Row],[Alloc]]=\"WYP\",tblREGASSLookup[[#This Row],[Alloc]]=\"CA\",tblREGASSLookup[[#This Row],[Alloc]]=\"WA\"),\"SITUS\",tblREGASSLookup[[#This Row],[Alloc]])","v":"OTHER"},"CUST"]
[{"$f":"CONCATENATE(tblREGASSLookup[[#This Row],[Primary Account]],tblREGASSLookup[[#This Row],[Primary Name]],tblREGASSLookup[[#This Row],[Secondary Acct]],tblREGASSLookup[[#This Row],[Secondary  Name]],tblREGASSLookup[[#This Row],[Alloc4FUNC]])","v":"1823920DSR COSTS AMORTIZED103903AGRICULTURAL (WSB) WATTSMART BUS- UT- 20OTHER"},1823920,"DSR COSTS AMORTIZED",103903,"AGRICULTURAL (WSB) WATTSMART BUS- UT- 20","OTHER",null,{"$f":"IF(OR(tblREGASSLookup[[#This Row],[Alloc]]=\"IDU\",tblREGASSLookup[[#This Row],[Alloc]]=\"OR\",tblREGASSLookup[[#This Row],[Alloc]]=\"UT\",tblREGASSLookup[[#This Row],[Alloc]]=\"WYU\",tblREGASSLookup[[#This Row],[Alloc]]=\"WYP\",tblREGASSLookup[[#This Row],[Alloc]]=\"CA\",tblREGASSLookup[[#This Row],[Alloc]]=\"WA\"),\"SITUS\",tblREGASSLookup[[#This Row],[Alloc]])","v":"OTHER"},"CUST"]
[{"$f":"CONCATENATE(tblREGASSLookup[[#This Row],[Primary Account]],tblREGASSLookup[[#This Row],[Primary Name]],tblREGASSLookup[[#This Row],[Secondary Acct]],tblREGASSLookup[[#This Row],[Secondary  Name]],tblREGASSLookup[[#This Row],[Alloc4FUNC]])","v":"1823920DSR COSTS AMORTIZED103904U.of Utah Student Energy Sponsorship- UTOTHER"},1823920,"DSR COSTS AMORTIZED",103904,"U.of Utah Student Energy Sponsorship- UT","OTHER",null,{"$f":"IF(OR(tblREGASSLookup[[#This Row],[Alloc]]=\"IDU\",tblREGASSLookup[[#This Row],[Alloc]]=\"OR\",tblREGASSLookup[[#This Row],[Alloc]]=\"UT\",tblREGASSLookup[[#This Row],[Alloc]]=\"WYU\",tblREGASSLookup[[#This Row],[Alloc]]=\"WYP\",tblREGASSLookup[[#This Row],[Alloc]]=\"CA\",tblREGASSLookup[[#This Row],[Alloc]]=\"WA\"),\"SITUS\",tblREGASSLookup[[#This Row],[Alloc]])","v":"OTHER"},"CUST"]
[{"$f":"CONCATENATE(tblREGASSLookup[[#This Row],[Primary Account]],tblREGASSLookup[[#This Row],[Primary Name]],tblREGASSLookup[[#This Row],[Secondary Acct]],tblREGASSLookup[[#This Row],[Secondary  Name]],tblREGASSLookup[[#This Row],[Alloc4FUNC]])","v":"1823920DSR COSTS AMORTIZED103905WSB Small Business Comm- UT-2015OTHER"},1823920,"DSR COSTS AMORTIZED",103905,"WSB Small Business Comm- UT-2015","OTHER",null,{"$f":"IF(OR(tblREGASSLookup[[#This Row],[Alloc]]=\"IDU\",tblREGASSLookup[[#This Row],[Alloc]]=\"OR\",tblREGASSLookup[[#This Row],[Alloc]]=\"UT\",tblREGASSLookup[[#This Row],[Alloc]]=\"WYU\",tblREGASSLookup[[#This Row],[Alloc]]=\"WYP\",tblREGASSLookup[[#This Row],[Alloc]]=\"CA\",tblREGASSLookup[[#This Row],[Alloc]]=\"WA\"),\"SITUS\",tblREGASSLookup[[#This Row],[Alloc]])","v":"OTHER"},"CUST"]
[{"$f":"CONCATENATE(tblREGASSLookup[[#This Row],[Primary Account]],tblREGASSLookup[[#This Row],[Primary Name]],tblREGASSLookup[[#This Row],[Secondary Acct]],tblREGASSLookup[[#This Row],[Secondary  Name]],tblREGASSLookup[[#This Row],[Alloc4FUNC]])","v":"1823920DSR COSTS AMORTIZED103906WBS Small Business Ind- UT-2015OTHER"},1823920,"DSR COSTS AMORTIZED",103906,"WBS Small Business Ind- UT-2015","OTHER",null,{"$f":"IF(OR(tblREGASSLookup[[#This Row],[Alloc]]=\"IDU\",tblREGASSLookup[[#This Row],[Alloc]]=\"OR\",tblREGASSLookup[[#This Row],[Alloc]]=\"UT\",tblREGASSLookup[[#This Row],[Alloc]]=\"WYU\",tblREGASSLookup[[#This Row],[Alloc]]=\"WYP\",tblREGASSLookup[[#This Row],[Alloc]]=\"CA\",tblREGASSLookup[[#This Row],[Alloc]]=\"WA\"),\"SITUS\",tblREGASSLookup[[#This Row],[Alloc]])","v":"OTHER"},"CUST"]
[{"$f":"CONCATENATE(tblREGASSLookup[[#This Row],[Primary Account]],tblREGASSLookup[[#This Row],[Primary Name]],tblREGASSLookup[[#This Row],[Secondary Acct]],tblREGASSLookup[[#This Row],[Secondary  Name]],tblREGASSLookup[[#This Row],[Alloc4FUNC]])","v":"1823920DSR COSTS AMORTIZED103907AGRICULURAL FINANSWER EXP WY-2015 CAT2OTHER"},1823920,"DSR COSTS AMORTIZED",103907,"AGRICULURAL FINANSWER EXP WY-2015 CAT2","OTHER",null,{"$f":"IF(OR(tblREGASSLookup[[#This Row],[Alloc]]=\"IDU\",tblREGASSLookup[[#This Row],[Alloc]]=\"OR\",tblREGASSLookup[[#This Row],[Alloc]]=\"UT\",tblREGASSLookup[[#This Row],[Alloc]]=\"WYU\",tblREGASSLookup[[#This Row],[Alloc]]=\"WYP\",tblREGASSLookup[[#This Row],[Alloc]]=\"CA\",tblREGASSLookup[[#This Row],[Alloc]]=\"WA\"),\"SITUS\",tblREGASSLookup[[#This Row],[Alloc]])","v":"OTHER"},"CUST"]
[{"$f":"CONCATENATE(tblREGASSLookup[[#This Row],[Primary Account]],tblREGASSLookup[[#This Row],[Primary Name]],tblREGASSLookup[[#This Row],[Secondary Acct]],tblREGASSLookup[[#This Row],[Secondary  Name]],tblREGASSLookup[[#This Row],[Alloc4FUNC]])","v":"1823920DSR COSTS AMORTIZED103909COMMERCIAL FINANSWER EXP- WY-2015 CAT2OTHER"},1823920,"DSR COSTS AMORTIZED",103909,"COMMERCIAL FINANSWER EXP- WY-2015 CAT2","OTHER",null,{"$f":"IF(OR(tblREGASSLookup[[#This Row],[Alloc]]=\"IDU\",tblREGASSLookup[[#This Row],[Alloc]]=\"OR\",tblREGASSLookup[[#This Row],[Alloc]]=\"UT\",tblREGASSLookup[[#This Row],[Alloc]]=\"WYU\",tblREGASSLookup[[#This Row],[Alloc]]=\"WYP\",tblREGASSLookup[[#This Row],[Alloc]]=\"CA\",tblREGASSLookup[[#This Row],[Alloc]]=\"WA\"),\"SITUS\",tblREGASSLookup[[#This Row],[Alloc]])","v":"OTHER"},"CUST"]
[{"$f":"CONCATENATE(tblREGASSLookup[[#This Row],[Primary Account]],tblREGASSLookup[[#This Row],[Primary Name]],tblREGASSLookup[[#This Row],[Secondary Acct]],tblREGASSLookup[[#This Row],[Secondary  Name]],tblREGASSLookup[[#This Row],[Alloc4FUNC]])","v":"1823920DSR COSTS AMORTIZED103910COMMERCIAL FINANSWER EXP WY-2015 CAT3OTHER"},1823920,"DSR COSTS AMORTIZED",103910,"COMMERCIAL FINANSWER EXP WY-2015 CAT3","OTHER",null,{"$f":"IF(OR(tblREGASSLookup[[#This Row],[Alloc]]=\"IDU\",tblREGASSLookup[[#This Row],[Alloc]]=\"OR\",tblREGASSLookup[[#This Row],[Alloc]]=\"UT\",tblREGASSLookup[[#This Row],[Alloc]]=\"WYU\",tblREGASSLookup[[#This Row],[Alloc]]=\"WYP\",tblREGASSLookup[[#This Row],[Alloc]]=\"CA\",tblREGASSLookup[[#This Row],[Alloc]]=\"WA\"),\"SITUS\",tblREGASSLookup[[#This Row],[Alloc]])","v":"OTHER"},"CUST"]
[{"$f":"CONCATENATE(tblREGASSLookup[[#This Row],[Primary Account]],tblREGASSLookup[[#This Row],[Primary Name]],tblREGASSLookup[[#This Row],[Secondary Acct]],tblREGASSLookup[[#This Row],[Secondary  Name]],tblREGASSLookup[[#This Row],[Alloc4FUNC]])","v":"1823920DSR COSTS AMORTIZED103911ENERGY FINANSWER -WY 2015 CAT2OTHER"},1823920,"DSR COSTS AMORTIZED",103911,"ENERGY FINANSWER -WY 2015 CAT2","OTHER",null,{"$f":"IF(OR(tblREGASSLookup[[#This Row],[Alloc]]=\"IDU\",tblREGASSLookup[[#This Row],[Alloc]]=\"OR\",tblREGASSLookup[[#This Row],[Alloc]]=\"UT\",tblREGASSLookup[[#This Row],[Alloc]]=\"WYU\",tblREGASSLookup[[#This Row],[Alloc]]=\"WYP\",tblREGASSLookup[[#This Row],[Alloc]]=\"CA\",tblREGASSLookup[[#This Row],[Alloc]]=\"WA\"),\"SITUS\",tblREGASSLookup[[#This Row],[Alloc]])","v":"OTHER"},"CUST"]
[{"$f":"CONCATENATE(tblREGASSLookup[[#This Row],[Primary Account]],tblREGASSLookup[[#This Row],[Primary Name]],tblREGASSLookup[[#This Row],[Secondary Acct]],tblREGASSLookup[[#This Row],[Secondary  Name]],tblREGASSLookup[[#This Row],[Alloc4FUNC]])","v":"1823920DSR COSTS AMORTIZED103912ENERGY FINANSWER-WY-2015 CAT3OTHER"},1823920,"DSR COSTS AMORTIZED",103912,"ENERGY FINANSWER-WY-2015 CAT3","OTHER",null,{"$f":"IF(OR(tblREGASSLookup[[#This Row],[Alloc]]=\"IDU\",tblREGASSLookup[[#This Row],[Alloc]]=\"OR\",tblREGASSLookup[[#This Row],[Alloc]]=\"UT\",tblREGASSLookup[[#This Row],[Alloc]]=\"WYU\",tblREGASSLookup[[#This Row],[Alloc]]=\"WYP\",tblREGASSLookup[[#This Row],[Alloc]]=\"CA\",tblREGASSLookup[[#This Row],[Alloc]]=\"WA\"),\"SITUS\",tblREGASSLookup[[#This Row],[Alloc]])","v":"OTHER"},"CUST"]
[{"$f":"CONCATENATE(tblREGASSLookup[[#This Row],[Primary Account]],tblREGASSLookup[[#This Row],[Primary Name]],tblREGASSLookup[[#This Row],[Secondary Acct]],tblREGASSLookup[[#This Row],[Secondary  Name]],tblREGASSLookup[[#This Row],[Alloc4FUNC]])","v":"1823920DSR COSTS AMORTIZED103913HOME ENERGY EFF INCENT PROG Y-2015 CAT1OTHER"},1823920,"DSR COSTS AMORTIZED",103913,"HOME ENERGY EFF INCENT PROG Y-2015 CAT1","OTHER",null,{"$f":"IF(OR(tblREGASSLookup[[#This Row],[Alloc]]=\"IDU\",tblREGASSLookup[[#This Row],[Alloc]]=\"OR\",tblREGASSLookup[[#This Row],[Alloc]]=\"UT\",tblREGASSLookup[[#This Row],[Alloc]]=\"WYU\",tblREGASSLookup[[#This Row],[Alloc]]=\"WYP\",tblREGASSLookup[[#This Row],[Alloc]]=\"CA\",tblREGASSLookup[[#This Row],[Alloc]]=\"WA\"),\"SITUS\",tblREGASSLookup[[#This Row],[Alloc]])","v":"OTHER"},"CUST"]
[{"$f":"CONCATENATE(tblREGASSLookup[[#This Row],[Primary Account]],tblREGASSLookup[[#This Row],[Primary Name]],tblREGASSLookup[[#This Row],[Secondary Acct]],tblREGASSLookup[[#This Row],[Secondary  Name]],tblREGASSLookup[[#This Row],[Alloc4FUNC]])","v":"1823920DSR COSTS AMORTIZED103914INDUSTRIAL FINANSWER -WY 2015 CAT2OTHER"},1823920,"DSR COSTS AMORTIZED",103914,"INDUSTRIAL FINANSWER -WY 2015 CAT2","OTHER",null,{"$f":"IF(OR(tblREGASSLookup[[#This Row],[Alloc]]=\"IDU\",tblREGASSLookup[[#This Row],[Alloc]]=\"OR\",tblREGASSLookup[[#This Row],[Alloc]]=\"UT\",tblREGASSLookup[[#This Row],[Alloc]]=\"WYU\",tblREGASSLookup[[#This Row],[Alloc]]=\"WYP\",tblREGASSLookup[[#This Row],[Alloc]]=\"CA\",tblREGASSLookup[[#This Row],[Alloc]]=\"WA\"),\"SITUS\",tblREGASSLookup[[#This Row],[Alloc]])","v":"OTHER"},"CUST"]
[{"$f":"CONCATENATE(tblREGASSLookup[[#This Row],[Primary Account]],tblREGASSLookup[[#This Row],[Primary Name]],tblREGASSLookup[[#This Row],[Secondary Acct]],tblREGASSLookup[[#This Row],[Secondary  Name]],tblREGASSLookup[[#This Row],[Alloc4FUNC]])","v":"1823920DSR COSTS AMORTIZED103915INDUSTRIAL FINANSWER-WY-2015 CAT3OTHER"},1823920,"DSR COSTS AMORTIZED",103915,"INDUSTRIAL FINANSWER-WY-2015 CAT3","OTHER",null,{"$f":"IF(OR(tblREGASSLookup[[#This Row],[Alloc]]=\"IDU\",tblREGASSLookup[[#This Row],[Alloc]]=\"OR\",tblREGASSLookup[[#This Row],[Alloc]]=\"UT\",tblREGASSLookup[[#This Row],[Alloc]]=\"WYU\",tblREGASSLookup[[#This Row],[Alloc]]=\"WYP\",tblREGASSLookup[[#This Row],[Alloc]]=\"CA\",tblREGASSLookup[[#This Row],[Alloc]]=\"WA\"),\"SITUS\",tblREGASSLookup[[#This Row],[Alloc]])","v":"OTHER"},"CUST"]
[{"$f":"CONCATENATE(tblREGASSLookup[[#This Row],[Primary Account]],tblREGASSLookup[[#This Row],[Primary Name]],tblREGASSLookup[[#This Row],[Secondary Acct]],tblREGASSLookup[[#This Row],[Secondary  Name]],tblREGASSLookup[[#This Row],[Alloc4FUNC]])","v":"1823920DSR COSTS AMORTIZED103916INDUSTRIAL FINAN EXPRESS WY-2015 CAT2OTHER"},1823920,"DSR COSTS AMORTIZED",103916,"INDUSTRIAL FINAN EXPRESS WY-2015 CAT2","OTHER",null,{"$f":"IF(OR(tblREGASSLookup[[#This Row],[Alloc]]=\"IDU\",tblREGASSLookup[[#This Row],[Alloc]]=\"OR\",tblREGASSLookup[[#This Row],[Alloc]]=\"UT\",tblREGASSLookup[[#This Row],[Alloc]]=\"WYU\",tblREGASSLookup[[#This Row],[Alloc]]=\"WYP\",tblREGASSLookup[[#This Row],[Alloc]]=\"CA\",tblREGASSLookup[[#This Row],[Alloc]]=\"WA\"),\"SITUS\",tblREGASSLookup[[#This Row],[Alloc]])","v":"OTHER"},"CUST"]
[{"$f":"CONCATENATE(tblREGASSLookup[[#This Row],[Primary Account]],tblREGASSLookup[[#This Row],[Primary Name]],tblREGASSLookup[[#This Row],[Secondary Acct]],tblREGASSLookup[[#This Row],[Secondary  Name]],tblREGASSLookup[[#This Row],[Alloc4FUNC]])","v":"1823920DSR COSTS AMORTIZED103917INDUSTRIAL FINANSWER EXP WY-2015 CAT3OTHER"},1823920,"DSR COSTS AMORTIZED",103917,"INDUSTRIAL FINANSWER EXP WY-2015 CAT3","OTHER",null,{"$f":"IF(OR(tblREGASSLookup[[#This Row],[Alloc]]=\"IDU\",tblREGASSLookup[[#This Row],[Alloc]]=\"OR\",tblREGASSLookup[[#This Row],[Alloc]]=\"UT\",tblREGASSLookup[[#This Row],[Alloc]]=\"WYU\",tblREGASSLookup[[#This Row],[Alloc]]=\"WYP\",tblREGASSLookup[[#This Row],[Alloc]]=\"CA\",tblREGASSLookup[[#This Row],[Alloc]]=\"WA\"),\"SITUS\",tblREGASSLookup[[#This Row],[Alloc]])","v":"OTHER"},"CUST"]
[{"$f":"CONCATENATE(tblREGASSLookup[[#This Row],[Primary Account]],tblREGASSLookup[[#This Row],[Primary Name]],tblREGASSLookup[[#This Row],[Secondary Acct]],tblREGASSLookup[[#This Row],[Secondary  Name]],tblREGASSLookup[[#This Row],[Alloc4FUNC]])","v":"1823920DSR COSTS AMORTIZED103918LOW-INCOME WEATHERZTN - WY 2015 CAT1OTHER"},1823920,"DSR COSTS AMORTIZED",103918,"LOW-INCOME WEATHERZTN - WY 2015 CAT1","OTHER",null,{"$f":"IF(OR(tblREGASSLookup[[#This Row],[Alloc]]=\"IDU\",tblREGASSLookup[[#This Row],[Alloc]]=\"OR\",tblREGASSLookup[[#This Row],[Alloc]]=\"UT\",tblREGASSLookup[[#This Row],[Alloc]]=\"WYU\",tblREGASSLookup[[#This Row],[Alloc]]=\"WYP\",tblREGASSLookup[[#This Row],[Alloc]]=\"CA\",tblREGASSLookup[[#This Row],[Alloc]]=\"WA\"),\"SITUS\",tblREGASSLookup[[#This Row],[Alloc]])","v":"OTHER"},"CUST"]
[{"$f":"CONCATENATE(tblREGASSLookup[[#This Row],[Primary Account]],tblREGASSLookup[[#This Row],[Primary Name]],tblREGASSLookup[[#This Row],[Secondary Acct]],tblREGASSLookup[[#This Row],[Secondary  Name]],tblREGASSLookup[[#This Row],[Alloc4FUNC]])","v":"1823920DSR COSTS AMORTIZED103919OUTREACH AND COMMUNICATION WATTSMT  WY-2OTHER"},1823920,"DSR COSTS AMORTIZED",103919,"OUTREACH AND COMMUNICATION WATTSMT  WY-2","OTHER",null,{"$f":"IF(OR(tblREGASSLookup[[#This Row],[Alloc]]=\"IDU\",tblREGASSLookup[[#This Row],[Alloc]]=\"OR\",tblREGASSLookup[[#This Row],[Alloc]]=\"UT\",tblREGASSLookup[[#This Row],[Alloc]]=\"WYU\",tblREGASSLookup[[#This Row],[Alloc]]=\"WYP\",tblREGASSLookup[[#This Row],[Alloc]]=\"CA\",tblREGASSLookup[[#This Row],[Alloc]]=\"WA\"),\"SITUS\",tblREGASSLookup[[#This Row],[Alloc]])","v":"OTHER"},"CUST"]
[{"$f":"CONCATENATE(tblREGASSLookup[[#This Row],[Primary Account]],tblREGASSLookup[[#This Row],[Primary Name]],tblREGASSLookup[[#This Row],[Secondary Acct]],tblREGASSLookup[[#This Row],[Secondary  Name]],tblREGASSLookup[[#This Row],[Alloc4FUNC]])","v":"1823920DSR COSTS AMORTIZED103920PORTFOLIO WY-2015 CAT1OTHER"},1823920,"DSR COSTS AMORTIZED",103920,"PORTFOLIO WY-2015 CAT1","OTHER",null,{"$f":"IF(OR(tblREGASSLookup[[#This Row],[Alloc]]=\"IDU\",tblREGASSLookup[[#This Row],[Alloc]]=\"OR\",tblREGASSLookup[[#This Row],[Alloc]]=\"UT\",tblREGASSLookup[[#This Row],[Alloc]]=\"WYU\",tblREGASSLookup[[#This Row],[Alloc]]=\"WYP\",tblREGASSLookup[[#This Row],[Alloc]]=\"CA\",tblREGASSLookup[[#This Row],[Alloc]]=\"WA\"),\"SITUS\",tblREGASSLookup[[#This Row],[Alloc]])","v":"OTHER"},"CUST"]
[{"$f":"CONCATENATE(tblREGASSLookup[[#This Row],[Primary Account]],tblREGASSLookup[[#This Row],[Primary Name]],tblREGASSLookup[[#This Row],[Secondary Acct]],tblREGASSLookup[[#This Row],[Secondary  Name]],tblREGASSLookup[[#This Row],[Alloc4FUNC]])","v":"1823920DSR COSTS AMORTIZED103921PORTFOLIO WY-2015 CAT2OTHER"},1823920,"DSR COSTS AMORTIZED",103921,"PORTFOLIO WY-2015 CAT2","OTHER",null,{"$f":"IF(OR(tblREGASSLookup[[#This Row],[Alloc]]=\"IDU\",tblREGASSLookup[[#This Row],[Alloc]]=\"OR\",tblREGASSLookup[[#This Row],[Alloc]]=\"UT\",tblREGASSLookup[[#This Row],[Alloc]]=\"WYU\",tblREGASSLookup[[#This Row],[Alloc]]=\"WYP\",tblREGASSLookup[[#This Row],[Alloc]]=\"CA\",tblREGASSLookup[[#This Row],[Alloc]]=\"WA\"),\"SITUS\",tblREGASSLookup[[#This Row],[Alloc]])","v":"OTHER"},"CUST"]
[{"$f":"CONCATENATE(tblREGASSLookup[[#This Row],[Primary Account]],tblREGASSLookup[[#This Row],[Primary Name]],tblREGASSLookup[[#This Row],[Secondary Acct]],tblREGASSLookup[[#This Row],[Secondary  Name]],tblREGASSLookup[[#This Row],[Alloc4FUNC]])","v":"1823920DSR COSTS AMORTIZED103922PORTFOLIO WY-2015 CAT3OTHER"},1823920,"DSR COSTS AMORTIZED",103922,"PORTFOLIO WY-2015 CAT3","OTHER",null,{"$f":"IF(OR(tblREGASSLookup[[#This Row],[Alloc]]=\"IDU\",tblREGASSLookup[[#This Row],[Alloc]]=\"OR\",tblREGASSLookup[[#This Row],[Alloc]]=\"UT\",tblREGASSLookup[[#This Row],[Alloc]]=\"WYU\",tblREGASSLookup[[#This Row],[Alloc]]=\"WYP\",tblREGASSLookup[[#This Row],[Alloc]]=\"CA\",tblREGASSLookup[[#This Row],[Alloc]]=\"WA\"),\"SITUS\",tblREGASSLookup[[#This Row],[Alloc]])","v":"OTHER"},"CUST"]
[{"$f":"CONCATENATE(tblREGASSLookup[[#This Row],[Primary Account]],tblREGASSLookup[[#This Row],[Primary Name]],tblREGASSLookup[[#This Row],[Secondary Acct]],tblREGASSLookup[[#This Row],[Secondary  Name]],tblREGASSLookup[[#This Row],[Alloc4FUNC]])","v":"1823920DSR COSTS AMORTIZED103923REFRIGERATOR RECYCLING-WY -2015 CAT1OTHER"},1823920,"DSR COSTS AMORTIZED",103923,"REFRIGERATOR RECYCLING-WY -2015 CAT1","OTHER",null,{"$f":"IF(OR(tblREGASSLookup[[#This Row],[Alloc]]=\"IDU\",tblREGASSLookup[[#This Row],[Alloc]]=\"OR\",tblREGASSLookup[[#This Row],[Alloc]]=\"UT\",tblREGASSLookup[[#This Row],[Alloc]]=\"WYU\",tblREGASSLookup[[#This Row],[Alloc]]=\"WYP\",tblREGASSLookup[[#This Row],[Alloc]]=\"CA\",tblREGASSLookup[[#This Row],[Alloc]]=\"WA\"),\"SITUS\",tblREGASSLookup[[#This Row],[Alloc]])","v":"OTHER"},"CUST"]
[{"$f":"CONCATENATE(tblREGASSLookup[[#This Row],[Primary Account]],tblREGASSLookup[[#This Row],[Primary Name]],tblREGASSLookup[[#This Row],[Secondary Acct]],tblREGASSLookup[[#This Row],[Secondary  Name]],tblREGASSLookup[[#This Row],[Alloc4FUNC]])","v":"1823920DSR COSTS AMORTIZED103925SELF DIRECT - COMMERCIAL -WY-2015 CAT3OTHER"},1823920,"DSR COSTS AMORTIZED",103925,"SELF DIRECT - COMMERCIAL -WY-2015 CAT3","OTHER",null,{"$f":"IF(OR(tblREGASSLookup[[#This Row],[Alloc]]=\"IDU\",tblREGASSLookup[[#This Row],[Alloc]]=\"OR\",tblREGASSLookup[[#This Row],[Alloc]]=\"UT\",tblREGASSLookup[[#This Row],[Alloc]]=\"WYU\",tblREGASSLookup[[#This Row],[Alloc]]=\"WYP\",tblREGASSLookup[[#This Row],[Alloc]]=\"CA\",tblREGASSLookup[[#This Row],[Alloc]]=\"WA\"),\"SITUS\",tblREGASSLookup[[#This Row],[Alloc]])","v":"OTHER"},"CUST"]
[{"$f":"CONCATENATE(tblREGASSLookup[[#This Row],[Primary Account]],tblREGASSLookup[[#This Row],[Primary Name]],tblREGASSLookup[[#This Row],[Secondary Acct]],tblREGASSLookup[[#This Row],[Secondary  Name]],tblREGASSLookup[[#This Row],[Alloc4FUNC]])","v":"1823920DSR COSTS AMORTIZED103927SELF DIRECT -INDUSTRIAL -WY-2015 CAT3OTHER"},1823920,"DSR COSTS AMORTIZED",103927,"SELF DIRECT -INDUSTRIAL -WY-2015 CAT3","OTHER",null,{"$f":"IF(OR(tblREGASSLookup[[#This Row],[Alloc]]=\"IDU\",tblREGASSLookup[[#This Row],[Alloc]]=\"OR\",tblREGASSLookup[[#This Row],[Alloc]]=\"UT\",tblREGASSLookup[[#This Row],[Alloc]]=\"WYU\",tblREGASSLookup[[#This Row],[Alloc]]=\"WYP\",tblREGASSLookup[[#This Row],[Alloc]]=\"CA\",tblREGASSLookup[[#This Row],[Alloc]]=\"WA\"),\"SITUS\",tblREGASSLookup[[#This Row],[Alloc]])","v":"OTHER"},"CUST"]
[{"$f":"CONCATENATE(tblREGASSLookup[[#This Row],[Primary Account]],tblREGASSLookup[[#This Row],[Primary Name]],tblREGASSLookup[[#This Row],[Secondary Acct]],tblREGASSLookup[[#This Row],[Secondary  Name]],tblREGASSLookup[[#This Row],[Alloc4FUNC]])","v":"1823920DSR COSTS AMORTIZED103928WSB - Wattsmart Business - WY Cat 2- 201OTHER"},1823920,"DSR COSTS AMORTIZED",103928,"WSB - Wattsmart Business - WY Cat 2- 201","OTHER",null,{"$f":"IF(OR(tblREGASSLookup[[#This Row],[Alloc]]=\"IDU\",tblREGASSLookup[[#This Row],[Alloc]]=\"OR\",tblREGASSLookup[[#This Row],[Alloc]]=\"UT\",tblREGASSLookup[[#This Row],[Alloc]]=\"WYU\",tblREGASSLookup[[#This Row],[Alloc]]=\"WYP\",tblREGASSLookup[[#This Row],[Alloc]]=\"CA\",tblREGASSLookup[[#This Row],[Alloc]]=\"WA\"),\"SITUS\",tblREGASSLookup[[#This Row],[Alloc]])","v":"OTHER"},"CUST"]
[{"$f":"CONCATENATE(tblREGASSLookup[[#This Row],[Primary Account]],tblREGASSLookup[[#This Row],[Primary Name]],tblREGASSLookup[[#This Row],[Secondary Acct]],tblREGASSLookup[[#This Row],[Secondary  Name]],tblREGASSLookup[[#This Row],[Alloc4FUNC]])","v":"1823920DSR COSTS AMORTIZED103929WSB - Small Business Comm - WY Cat2 -201OTHER"},1823920,"DSR COSTS AMORTIZED",103929,"WSB - Small Business Comm - WY Cat2 -201","OTHER",null,{"$f":"IF(OR(tblREGASSLookup[[#This Row],[Alloc]]=\"IDU\",tblREGASSLookup[[#This Row],[Alloc]]=\"OR\",tblREGASSLookup[[#This Row],[Alloc]]=\"UT\",tblREGASSLookup[[#This Row],[Alloc]]=\"WYU\",tblREGASSLookup[[#This Row],[Alloc]]=\"WYP\",tblREGASSLookup[[#This Row],[Alloc]]=\"CA\",tblREGASSLookup[[#This Row],[Alloc]]=\"WA\"),\"SITUS\",tblREGASSLookup[[#This Row],[Alloc]])","v":"OTHER"},"CUST"]
[{"$f":"CONCATENATE(tblREGASSLookup[[#This Row],[Primary Account]],tblREGASSLookup[[#This Row],[Primary Name]],tblREGASSLookup[[#This Row],[Secondary Acct]],tblREGASSLookup[[#This Row],[Secondary  Name]],tblREGASSLookup[[#This Row],[Alloc4FUNC]])","v":"1823920DSR COSTS AMORTIZED103930WBS- Wattsmart Business Ind -WY Cat2-201OTHER"},1823920,"DSR COSTS AMORTIZED",103930,"WBS- Wattsmart Business Ind -WY Cat2-201","OTHER",null,{"$f":"IF(OR(tblREGASSLookup[[#This Row],[Alloc]]=\"IDU\",tblREGASSLookup[[#This Row],[Alloc]]=\"OR\",tblREGASSLookup[[#This Row],[Alloc]]=\"UT\",tblREGASSLookup[[#This Row],[Alloc]]=\"WYU\",tblREGASSLookup[[#This Row],[Alloc]]=\"WYP\",tblREGASSLookup[[#This Row],[Alloc]]=\"CA\",tblREGASSLookup[[#This Row],[Alloc]]=\"WA\"),\"SITUS\",tblREGASSLookup[[#This Row],[Alloc]])","v":"OTHER"},"CUST"]
[{"$f":"CONCATENATE(tblREGASSLookup[[#This Row],[Primary Account]],tblREGASSLookup[[#This Row],[Primary Name]],tblREGASSLookup[[#This Row],[Secondary Acct]],tblREGASSLookup[[#This Row],[Secondary  Name]],tblREGASSLookup[[#This Row],[Alloc4FUNC]])","v":"1823920DSR COSTS AMORTIZED103931HOME ENERGY REPORTING - WY 2015OTHER"},1823920,"DSR COSTS AMORTIZED",103931,"HOME ENERGY REPORTING - WY 2015","OTHER",null,{"$f":"IF(OR(tblREGASSLookup[[#This Row],[Alloc]]=\"IDU\",tblREGASSLookup[[#This Row],[Alloc]]=\"OR\",tblREGASSLookup[[#This Row],[Alloc]]=\"UT\",tblREGASSLookup[[#This Row],[Alloc]]=\"WYU\",tblREGASSLookup[[#This Row],[Alloc]]=\"WYP\",tblREGASSLookup[[#This Row],[Alloc]]=\"CA\",tblREGASSLookup[[#This Row],[Alloc]]=\"WA\"),\"SITUS\",tblREGASSLookup[[#This Row],[Alloc]])","v":"OTHER"},"CUST"]
[{"$f":"CONCATENATE(tblREGASSLookup[[#This Row],[Primary Account]],tblREGASSLookup[[#This Row],[Primary Name]],tblREGASSLookup[[#This Row],[Secondary Acct]],tblREGASSLookup[[#This Row],[Secondary  Name]],tblREGASSLookup[[#This Row],[Alloc4FUNC]])","v":"1823920DSR COSTS AMORTIZED103932WSB- Wattsmart Business- WY Cat 3- 2015OTHER"},1823920,"DSR COSTS AMORTIZED",103932,"WSB- Wattsmart Business- WY Cat 3- 2015","OTHER",null,{"$f":"IF(OR(tblREGASSLookup[[#This Row],[Alloc]]=\"IDU\",tblREGASSLookup[[#This Row],[Alloc]]=\"OR\",tblREGASSLookup[[#This Row],[Alloc]]=\"UT\",tblREGASSLookup[[#This Row],[Alloc]]=\"WYU\",tblREGASSLookup[[#This Row],[Alloc]]=\"WYP\",tblREGASSLookup[[#This Row],[Alloc]]=\"CA\",tblREGASSLookup[[#This Row],[Alloc]]=\"WA\"),\"SITUS\",tblREGASSLookup[[#This Row],[Alloc]])","v":"OTHER"},"CUST"]
[{"$f":"CONCATENATE(tblREGASSLookup[[#This Row],[Primary Account]],tblREGASSLookup[[#This Row],[Primary Name]],tblREGASSLookup[[#This Row],[Secondary Acct]],tblREGASSLookup[[#This Row],[Secondary  Name]],tblREGASSLookup[[#This Row],[Alloc4FUNC]])","v":"1823920DSR COSTS AMORTIZED103933REFRIG RECYCLE COMM -WY 2015 CAT2OTHER"},1823920,"DSR COSTS AMORTIZED",103933,"REFRIG RECYCLE COMM -WY 2015 CAT2","OTHER",null,{"$f":"IF(OR(tblREGASSLookup[[#This Row],[Alloc]]=\"IDU\",tblREGASSLookup[[#This Row],[Alloc]]=\"OR\",tblREGASSLookup[[#This Row],[Alloc]]=\"UT\",tblREGASSLookup[[#This Row],[Alloc]]=\"WYU\",tblREGASSLookup[[#This Row],[Alloc]]=\"WYP\",tblREGASSLookup[[#This Row],[Alloc]]=\"CA\",tblREGASSLookup[[#This Row],[Alloc]]=\"WA\"),\"SITUS\",tblREGASSLookup[[#This Row],[Alloc]])","v":"OTHER"},"CUST"]
[{"$f":"CONCATENATE(tblREGASSLookup[[#This Row],[Primary Account]],tblREGASSLookup[[#This Row],[Primary Name]],tblREGASSLookup[[#This Row],[Secondary Acct]],tblREGASSLookup[[#This Row],[Secondary  Name]],tblREGASSLookup[[#This Row],[Alloc4FUNC]])","v":"1823920DSR COSTS AMORTIZED103934REFRIG RECYCLE COMM -WY 2015 CAT3OTHER"},1823920,"DSR COSTS AMORTIZED",103934,"REFRIG RECYCLE COMM -WY 2015 CAT3","OTHER",null,{"$f":"IF(OR(tblREGASSLookup[[#This Row],[Alloc]]=\"IDU\",tblREGASSLookup[[#This Row],[Alloc]]=\"OR\",tblREGASSLookup[[#This Row],[Alloc]]=\"UT\",tblREGASSLookup[[#This Row],[Alloc]]=\"WYU\",tblREGASSLookup[[#This Row],[Alloc]]=\"WYP\",tblREGASSLookup[[#This Row],[Alloc]]=\"CA\",tblREGASSLookup[[#This Row],[Alloc]]=\"WA\"),\"SITUS\",tblREGASSLookup[[#This Row],[Alloc]])","v":"OTHER"},"CUST"]
[{"$f":"CONCATENATE(tblREGASSLookup[[#This Row],[Primary Account]],tblREGASSLookup[[#This Row],[Primary Name]],tblREGASSLookup[[#This Row],[Secondary Acct]],tblREGASSLookup[[#This Row],[Secondary  Name]],tblREGASSLookup[[#This Row],[Alloc4FUNC]])","v":"1823920DSR COSTS AMORTIZED103935WSB Wattsmart Business Comm- WY Cat3 -20OTHER"},1823920,"DSR COSTS AMORTIZED",103935,"WSB Wattsmart Business Comm- WY Cat3 -20","OTHER",null,{"$f":"IF(OR(tblREGASSLookup[[#This Row],[Alloc]]=\"IDU\",tblREGASSLookup[[#This Row],[Alloc]]=\"OR\",tblREGASSLookup[[#This Row],[Alloc]]=\"UT\",tblREGASSLookup[[#This Row],[Alloc]]=\"WYU\",tblREGASSLookup[[#This Row],[Alloc]]=\"WYP\",tblREGASSLookup[[#This Row],[Alloc]]=\"CA\",tblREGASSLookup[[#This Row],[Alloc]]=\"WA\"),\"SITUS\",tblREGASSLookup[[#This Row],[Alloc]])","v":"OTHER"},"CUST"]
[{"$f":"CONCATENATE(tblREGASSLookup[[#This Row],[Primary Account]],tblREGASSLookup[[#This Row],[Primary Name]],tblREGASSLookup[[#This Row],[Secondary Acct]],tblREGASSLookup[[#This Row],[Secondary  Name]],tblREGASSLookup[[#This Row],[Alloc4FUNC]])","v":"1823920DSR COSTS AMORTIZED103936WBS- Wattsmart Bus Ind- WY Cat3-2015OTHER"},1823920,"DSR COSTS AMORTIZED",103936,"WBS- Wattsmart Bus Ind- WY Cat3-2015","OTHER",null,{"$f":"IF(OR(tblREGASSLookup[[#This Row],[Alloc]]=\"IDU\",tblREGASSLookup[[#This Row],[Alloc]]=\"OR\",tblREGASSLookup[[#This Row],[Alloc]]=\"UT\",tblREGASSLookup[[#This Row],[Alloc]]=\"WYU\",tblREGASSLookup[[#This Row],[Alloc]]=\"WYP\",tblREGASSLookup[[#This Row],[Alloc]]=\"CA\",tblREGASSLookup[[#This Row],[Alloc]]=\"WA\"),\"SITUS\",tblREGASSLookup[[#This Row],[Alloc]])","v":"OTHER"},"CUST"]
[{"$f":"CONCATENATE(tblREGASSLookup[[#This Row],[Primary Account]],tblREGASSLookup[[#This Row],[Primary Name]],tblREGASSLookup[[#This Row],[Secondary Acct]],tblREGASSLookup[[#This Row],[Secondary  Name]],tblREGASSLookup[[#This Row],[Alloc4FUNC]])","v":"1823920DSR COSTS AMORTIZED103937WSB- Wattsmart Business Agric- WY Cat2 -OTHER"},1823920,"DSR COSTS AMORTIZED",103937,"WSB- Wattsmart Business Agric- WY Cat2 -","OTHER",null,{"$f":"IF(OR(tblREGASSLookup[[#This Row],[Alloc]]=\"IDU\",tblREGASSLookup[[#This Row],[Alloc]]=\"OR\",tblREGASSLookup[[#This Row],[Alloc]]=\"UT\",tblREGASSLookup[[#This Row],[Alloc]]=\"WYU\",tblREGASSLookup[[#This Row],[Alloc]]=\"WYP\",tblREGASSLookup[[#This Row],[Alloc]]=\"CA\",tblREGASSLookup[[#This Row],[Alloc]]=\"WA\"),\"SITUS\",tblREGASSLookup[[#This Row],[Alloc]])","v":"OTHER"},"CUST"]
[{"$f":"CONCATENATE(tblREGASSLookup[[#This Row],[Primary Account]],tblREGASSLookup[[#This Row],[Primary Name]],tblREGASSLookup[[#This Row],[Secondary Acct]],tblREGASSLookup[[#This Row],[Secondary  Name]],tblREGASSLookup[[#This Row],[Alloc4FUNC]])","v":"1823920DSR COSTS AMORTIZED103938WSB- Wattsmart Business Agric- WY Cat3 -OTHER"},1823920,"DSR COSTS AMORTIZED",103938,"WSB- Wattsmart Business Agric- WY Cat3 -","OTHER",null,{"$f":"IF(OR(tblREGASSLookup[[#This Row],[Alloc]]=\"IDU\",tblREGASSLookup[[#This Row],[Alloc]]=\"OR\",tblREGASSLookup[[#This Row],[Alloc]]=\"UT\",tblREGASSLookup[[#This Row],[Alloc]]=\"WYU\",tblREGASSLookup[[#This Row],[Alloc]]=\"WYP\",tblREGASSLookup[[#This Row],[Alloc]]=\"CA\",tblREGASSLookup[[#This Row],[Alloc]]=\"WA\"),\"SITUS\",tblREGASSLookup[[#This Row],[Alloc]])","v":"OTHER"},"CUST"]
[{"$f":"CONCATENATE(tblREGASSLookup[[#This Row],[Primary Account]],tblREGASSLookup[[#This Row],[Primary Name]],tblREGASSLookup[[#This Row],[Secondary Acct]],tblREGASSLookup[[#This Row],[Secondary  Name]],tblREGASSLookup[[#This Row],[Alloc4FUNC]])","v":"1823920DSR COSTS AMORTIZED103959COMMERCIAL ENERGY REPORTS-SMB -UT 2015OTHER"},1823920,"DSR COSTS AMORTIZED",103959,"COMMERCIAL ENERGY REPORTS-SMB -UT 2015","OTHER",null,{"$f":"IF(OR(tblREGASSLookup[[#This Row],[Alloc]]=\"IDU\",tblREGASSLookup[[#This Row],[Alloc]]=\"OR\",tblREGASSLookup[[#This Row],[Alloc]]=\"UT\",tblREGASSLookup[[#This Row],[Alloc]]=\"WYU\",tblREGASSLookup[[#This Row],[Alloc]]=\"WYP\",tblREGASSLookup[[#This Row],[Alloc]]=\"CA\",tblREGASSLookup[[#This Row],[Alloc]]=\"WA\"),\"SITUS\",tblREGASSLookup[[#This Row],[Alloc]])","v":"OTHER"},"CUST"]
[{"$f":"CONCATENATE(tblREGASSLookup[[#This Row],[Primary Account]],tblREGASSLookup[[#This Row],[Primary Name]],tblREGASSLookup[[#This Row],[Secondary Acct]],tblREGASSLookup[[#This Row],[Secondary  Name]],tblREGASSLookup[[#This Row],[Alloc4FUNC]])","v":"1823920DSR COSTS AMORTIZED103962Portfolio - EM&V C&I - ID- 2015OTHER"},1823920,"DSR COSTS AMORTIZED",103962,"Portfolio - EM&V C&I - ID- 2015","OTHER",null,{"$f":"IF(OR(tblREGASSLookup[[#This Row],[Alloc]]=\"IDU\",tblREGASSLookup[[#This Row],[Alloc]]=\"OR\",tblREGASSLookup[[#This Row],[Alloc]]=\"UT\",tblREGASSLookup[[#This Row],[Alloc]]=\"WYU\",tblREGASSLookup[[#This Row],[Alloc]]=\"WYP\",tblREGASSLookup[[#This Row],[Alloc]]=\"CA\",tblREGASSLookup[[#This Row],[Alloc]]=\"WA\"),\"SITUS\",tblREGASSLookup[[#This Row],[Alloc]])","v":"OTHER"},"CUST"]
[{"$f":"CONCATENATE(tblREGASSLookup[[#This Row],[Primary Account]],tblREGASSLookup[[#This Row],[Primary Name]],tblREGASSLookup[[#This Row],[Secondary Acct]],tblREGASSLookup[[#This Row],[Secondary  Name]],tblREGASSLookup[[#This Row],[Alloc4FUNC]])","v":"1823920DSR COSTS AMORTIZED103963Portfolio - EM&V RES - ID- 2015OTHER"},1823920,"DSR COSTS AMORTIZED",103963,"Portfolio - EM&V RES - ID- 2015","OTHER",null,{"$f":"IF(OR(tblREGASSLookup[[#This Row],[Alloc]]=\"IDU\",tblREGASSLookup[[#This Row],[Alloc]]=\"OR\",tblREGASSLookup[[#This Row],[Alloc]]=\"UT\",tblREGASSLookup[[#This Row],[Alloc]]=\"WYU\",tblREGASSLookup[[#This Row],[Alloc]]=\"WYP\",tblREGASSLookup[[#This Row],[Alloc]]=\"CA\",tblREGASSLookup[[#This Row],[Alloc]]=\"WA\"),\"SITUS\",tblREGASSLookup[[#This Row],[Alloc]])","v":"OTHER"},"CUST"]
[{"$f":"CONCATENATE(tblREGASSLookup[[#This Row],[Primary Account]],tblREGASSLookup[[#This Row],[Primary Name]],tblREGASSLookup[[#This Row],[Secondary Acct]],tblREGASSLookup[[#This Row],[Secondary  Name]],tblREGASSLookup[[#This Row],[Alloc4FUNC]])","v":"1823920DSR COSTS AMORTIZED104013CALIFORNIA DSM EXPENSE - 2016OTHER"},1823920,"DSR COSTS AMORTIZED",104013,"CALIFORNIA DSM EXPENSE - 2016","OTHER",null,{"$f":"IF(OR(tblREGASSLookup[[#This Row],[Alloc]]=\"IDU\",tblREGASSLookup[[#This Row],[Alloc]]=\"OR\",tblREGASSLookup[[#This Row],[Alloc]]=\"UT\",tblREGASSLookup[[#This Row],[Alloc]]=\"WYU\",tblREGASSLookup[[#This Row],[Alloc]]=\"WYP\",tblREGASSLookup[[#This Row],[Alloc]]=\"CA\",tblREGASSLookup[[#This Row],[Alloc]]=\"WA\"),\"SITUS\",tblREGASSLookup[[#This Row],[Alloc]])","v":"OTHER"},"CUST"]
[{"$f":"CONCATENATE(tblREGASSLookup[[#This Row],[Primary Account]],tblREGASSLookup[[#This Row],[Primary Name]],tblREGASSLookup[[#This Row],[Secondary Acct]],tblREGASSLookup[[#This Row],[Secondary  Name]],tblREGASSLookup[[#This Row],[Alloc4FUNC]])","v":"1823920DSR COSTS AMORTIZED104015HOME ENERGY REPORTING - ID 2016OTHER"},1823920,"DSR COSTS AMORTIZED",104015,"HOME ENERGY REPORTING - ID 2016","OTHER",null,{"$f":"IF(OR(tblREGASSLookup[[#This Row],[Alloc]]=\"IDU\",tblREGASSLookup[[#This Row],[Alloc]]=\"OR\",tblREGASSLookup[[#This Row],[Alloc]]=\"UT\",tblREGASSLookup[[#This Row],[Alloc]]=\"WYU\",tblREGASSLookup[[#This Row],[Alloc]]=\"WYP\",tblREGASSLookup[[#This Row],[Alloc]]=\"CA\",tblREGASSLookup[[#This Row],[Alloc]]=\"WA\"),\"SITUS\",tblREGASSLookup[[#This Row],[Alloc]])","v":"OTHER"},"CUST"]
[{"$f":"CONCATENATE(tblREGASSLookup[[#This Row],[Primary Account]],tblREGASSLookup[[#This Row],[Primary Name]],tblREGASSLookup[[#This Row],[Secondary Acct]],tblREGASSLookup[[#This Row],[Secondary  Name]],tblREGASSLookup[[#This Row],[Alloc4FUNC]])","v":"1823920DSR COSTS AMORTIZED104018OUTREACH AND COMMUNICATION  ID-2016OTHER"},1823920,"DSR COSTS AMORTIZED",104018,"OUTREACH AND COMMUNICATION  ID-2016","OTHER",null,{"$f":"IF(OR(tblREGASSLookup[[#This Row],[Alloc]]=\"IDU\",tblREGASSLookup[[#This Row],[Alloc]]=\"OR\",tblREGASSLookup[[#This Row],[Alloc]]=\"UT\",tblREGASSLookup[[#This Row],[Alloc]]=\"WYU\",tblREGASSLookup[[#This Row],[Alloc]]=\"WYP\",tblREGASSLookup[[#This Row],[Alloc]]=\"CA\",tblREGASSLookup[[#This Row],[Alloc]]=\"WA\"),\"SITUS\",tblREGASSLookup[[#This Row],[Alloc]])","v":"OTHER"},"CUST"]
[{"$f":"CONCATENATE(tblREGASSLookup[[#This Row],[Primary Account]],tblREGASSLookup[[#This Row],[Primary Name]],tblREGASSLookup[[#This Row],[Secondary Acct]],tblREGASSLookup[[#This Row],[Secondary  Name]],tblREGASSLookup[[#This Row],[Alloc4FUNC]])","v":"1823920DSR COSTS AMORTIZED104019PORTFOLIO - IDAHO 2016OTHER"},1823920,"DSR COSTS AMORTIZED",104019,"PORTFOLIO - IDAHO 2016","OTHER",null,{"$f":"IF(OR(tblREGASSLookup[[#This Row],[Alloc]]=\"IDU\",tblREGASSLookup[[#This Row],[Alloc]]=\"OR\",tblREGASSLookup[[#This Row],[Alloc]]=\"UT\",tblREGASSLookup[[#This Row],[Alloc]]=\"WYU\",tblREGASSLookup[[#This Row],[Alloc]]=\"WYP\",tblREGASSLookup[[#This Row],[Alloc]]=\"CA\",tblREGASSLookup[[#This Row],[Alloc]]=\"WA\"),\"SITUS\",tblREGASSLookup[[#This Row],[Alloc]])","v":"OTHER"},"CUST"]
[{"$f":"CONCATENATE(tblREGASSLookup[[#This Row],[Primary Account]],tblREGASSLookup[[#This Row],[Primary Name]],tblREGASSLookup[[#This Row],[Secondary Acct]],tblREGASSLookup[[#This Row],[Secondary  Name]],tblREGASSLookup[[#This Row],[Alloc4FUNC]])","v":"1823920DSR COSTS AMORTIZED104020Portfolio - EM&V C&I - ID- 2016OTHER"},1823920,"DSR COSTS AMORTIZED",104020,"Portfolio - EM&V C&I - ID- 2016","OTHER",null,{"$f":"IF(OR(tblREGASSLookup[[#This Row],[Alloc]]=\"IDU\",tblREGASSLookup[[#This Row],[Alloc]]=\"OR\",tblREGASSLookup[[#This Row],[Alloc]]=\"UT\",tblREGASSLookup[[#This Row],[Alloc]]=\"WYU\",tblREGASSLookup[[#This Row],[Alloc]]=\"WYP\",tblREGASSLookup[[#This Row],[Alloc]]=\"CA\",tblREGASSLookup[[#This Row],[Alloc]]=\"WA\"),\"SITUS\",tblREGASSLookup[[#This Row],[Alloc]])","v":"OTHER"},"CUST"]
[{"$f":"CONCATENATE(tblREGASSLookup[[#This Row],[Primary Account]],tblREGASSLookup[[#This Row],[Primary Name]],tblREGASSLookup[[#This Row],[Secondary Acct]],tblREGASSLookup[[#This Row],[Secondary  Name]],tblREGASSLookup[[#This Row],[Alloc4FUNC]])","v":"1823920DSR COSTS AMORTIZED104021Portfolio - EM&V RES - ID- 2016OTHER"},1823920,"DSR COSTS AMORTIZED",104021,"Portfolio - EM&V RES - ID- 2016","OTHER",null,{"$f":"IF(OR(tblREGASSLookup[[#This Row],[Alloc]]=\"IDU\",tblREGASSLookup[[#This Row],[Alloc]]=\"OR\",tblREGASSLookup[[#This Row],[Alloc]]=\"UT\",tblREGASSLookup[[#This Row],[Alloc]]=\"WYU\",tblREGASSLookup[[#This Row],[Alloc]]=\"WYP\",tblREGASSLookup[[#This Row],[Alloc]]=\"CA\",tblREGASSLookup[[#This Row],[Alloc]]=\"WA\"),\"SITUS\",tblREGASSLookup[[#This Row],[Alloc]])","v":"OTHER"},"CUST"]
[{"$f":"CONCATENATE(tblREGASSLookup[[#This Row],[Primary Account]],tblREGASSLookup[[#This Row],[Primary Name]],tblREGASSLookup[[#This Row],[Secondary Acct]],tblREGASSLookup[[#This Row],[Secondary  Name]],tblREGASSLookup[[#This Row],[Alloc4FUNC]])","v":"1823920DSR COSTS AMORTIZED104023WSB Small Business Comm - ID-2016OTHER"},1823920,"DSR COSTS AMORTIZED",104023,"WSB Small Business Comm - ID-2016","OTHER",null,{"$f":"IF(OR(tblREGASSLookup[[#This Row],[Alloc]]=\"IDU\",tblREGASSLookup[[#This Row],[Alloc]]=\"OR\",tblREGASSLookup[[#This Row],[Alloc]]=\"UT\",tblREGASSLookup[[#This Row],[Alloc]]=\"WYU\",tblREGASSLookup[[#This Row],[Alloc]]=\"WYP\",tblREGASSLookup[[#This Row],[Alloc]]=\"CA\",tblREGASSLookup[[#This Row],[Alloc]]=\"WA\"),\"SITUS\",tblREGASSLookup[[#This Row],[Alloc]])","v":"OTHER"},"CUST"]
[{"$f":"CONCATENATE(tblREGASSLookup[[#This Row],[Primary Account]],tblREGASSLookup[[#This Row],[Primary Name]],tblREGASSLookup[[#This Row],[Secondary Acct]],tblREGASSLookup[[#This Row],[Secondary  Name]],tblREGASSLookup[[#This Row],[Alloc4FUNC]])","v":"1823920DSR COSTS AMORTIZED104024WSB Small Business Ind - ID 2016OTHER"},1823920,"DSR COSTS AMORTIZED",104024,"WSB Small Business Ind - ID 2016","OTHER",null,{"$f":"IF(OR(tblREGASSLookup[[#This Row],[Alloc]]=\"IDU\",tblREGASSLookup[[#This Row],[Alloc]]=\"OR\",tblREGASSLookup[[#This Row],[Alloc]]=\"UT\",tblREGASSLookup[[#This Row],[Alloc]]=\"WYU\",tblREGASSLookup[[#This Row],[Alloc]]=\"WYP\",tblREGASSLookup[[#This Row],[Alloc]]=\"CA\",tblREGASSLookup[[#This Row],[Alloc]]=\"WA\"),\"SITUS\",tblREGASSLookup[[#This Row],[Alloc]])","v":"OTHER"},"CUST"]
[{"$f":"CONCATENATE(tblREGASSLookup[[#This Row],[Primary Account]],tblREGASSLookup[[#This Row],[Primary Name]],tblREGASSLookup[[#This Row],[Secondary Acct]],tblREGASSLookup[[#This Row],[Secondary  Name]],tblREGASSLookup[[#This Row],[Alloc4FUNC]])","v":"1823920DSR COSTS AMORTIZED104025WSB - WATTSMART BUSINESS - ID- 2016OTHER"},1823920,"DSR COSTS AMORTIZED",104025,"WSB - WATTSMART BUSINESS - ID- 2016","OTHER",null,{"$f":"IF(OR(tblREGASSLookup[[#This Row],[Alloc]]=\"IDU\",tblREGASSLookup[[#This Row],[Alloc]]=\"OR\",tblREGASSLookup[[#This Row],[Alloc]]=\"UT\",tblREGASSLookup[[#This Row],[Alloc]]=\"WYU\",tblREGASSLookup[[#This Row],[Alloc]]=\"WYP\",tblREGASSLookup[[#This Row],[Alloc]]=\"CA\",tblREGASSLookup[[#This Row],[Alloc]]=\"WA\"),\"SITUS\",tblREGASSLookup[[#This Row],[Alloc]])","v":"OTHER"},"CUST"]
[{"$f":"CONCATENATE(tblREGASSLookup[[#This Row],[Primary Account]],tblREGASSLookup[[#This Row],[Primary Name]],tblREGASSLookup[[#This Row],[Secondary Acct]],tblREGASSLookup[[#This Row],[Secondary  Name]],tblREGASSLookup[[#This Row],[Alloc4FUNC]])","v":"1823920DSR COSTS AMORTIZED104026WSB Wattsmart Business Agric - ID-2016OTHER"},1823920,"DSR COSTS AMORTIZED",104026,"WSB Wattsmart Business Agric - ID-2016","OTHER",null,{"$f":"IF(OR(tblREGASSLookup[[#This Row],[Alloc]]=\"IDU\",tblREGASSLookup[[#This Row],[Alloc]]=\"OR\",tblREGASSLookup[[#This Row],[Alloc]]=\"UT\",tblREGASSLookup[[#This Row],[Alloc]]=\"WYU\",tblREGASSLookup[[#This Row],[Alloc]]=\"WYP\",tblREGASSLookup[[#This Row],[Alloc]]=\"CA\",tblREGASSLookup[[#This Row],[Alloc]]=\"WA\"),\"SITUS\",tblREGASSLookup[[#This Row],[Alloc]])","v":"OTHER"},"CUST"]
[{"$f":"CONCATENATE(tblREGASSLookup[[#This Row],[Primary Account]],tblREGASSLookup[[#This Row],[Primary Name]],tblREGASSLookup[[#This Row],[Secondary Acct]],tblREGASSLookup[[#This Row],[Secondary  Name]],tblREGASSLookup[[#This Row],[Alloc4FUNC]])","v":"1823920DSR COSTS AMORTIZED104027A/C LOAD CONTROL - RESIDENTIAL/UTAH - 20OTHER"},1823920,"DSR COSTS AMORTIZED",104027,"A/C LOAD CONTROL - RESIDENTIAL/UTAH - 20","OTHER",null,{"$f":"IF(OR(tblREGASSLookup[[#This Row],[Alloc]]=\"IDU\",tblREGASSLookup[[#This Row],[Alloc]]=\"OR\",tblREGASSLookup[[#This Row],[Alloc]]=\"UT\",tblREGASSLookup[[#This Row],[Alloc]]=\"WYU\",tblREGASSLookup[[#This Row],[Alloc]]=\"WYP\",tblREGASSLookup[[#This Row],[Alloc]]=\"CA\",tblREGASSLookup[[#This Row],[Alloc]]=\"WA\"),\"SITUS\",tblREGASSLookup[[#This Row],[Alloc]])","v":"OTHER"},"CUST"]
[{"$f":"CONCATENATE(tblREGASSLookup[[#This Row],[Primary Account]],tblREGASSLookup[[#This Row],[Primary Name]],tblREGASSLookup[[#This Row],[Secondary Acct]],tblREGASSLookup[[#This Row],[Secondary  Name]],tblREGASSLookup[[#This Row],[Alloc4FUNC]])","v":"1823920DSR COSTS AMORTIZED104029HOME ENERGY EFF INCENTIVE PROG - UT 2016OTHER"},1823920,"DSR COSTS AMORTIZED",104029,"HOME ENERGY EFF INCENTIVE PROG - UT 2016","OTHER",null,{"$f":"IF(OR(tblREGASSLookup[[#This Row],[Alloc]]=\"IDU\",tblREGASSLookup[[#This Row],[Alloc]]=\"OR\",tblREGASSLookup[[#This Row],[Alloc]]=\"UT\",tblREGASSLookup[[#This Row],[Alloc]]=\"WYU\",tblREGASSLookup[[#This Row],[Alloc]]=\"WYP\",tblREGASSLookup[[#This Row],[Alloc]]=\"CA\",tblREGASSLookup[[#This Row],[Alloc]]=\"WA\"),\"SITUS\",tblREGASSLookup[[#This Row],[Alloc]])","v":"OTHER"},"CUST"]
[{"$f":"CONCATENATE(tblREGASSLookup[[#This Row],[Primary Account]],tblREGASSLookup[[#This Row],[Primary Name]],tblREGASSLookup[[#This Row],[Secondary Acct]],tblREGASSLookup[[#This Row],[Secondary  Name]],tblREGASSLookup[[#This Row],[Alloc4FUNC]])","v":"1823920DSR COSTS AMORTIZED104030HOME ENERGY REPORTING - UT 2016OTHER"},1823920,"DSR COSTS AMORTIZED",104030,"HOME ENERGY REPORTING - UT 2016","OTHER",null,{"$f":"IF(OR(tblREGASSLookup[[#This Row],[Alloc]]=\"IDU\",tblREGASSLookup[[#This Row],[Alloc]]=\"OR\",tblREGASSLookup[[#This Row],[Alloc]]=\"UT\",tblREGASSLookup[[#This Row],[Alloc]]=\"WYU\",tblREGASSLookup[[#This Row],[Alloc]]=\"WYP\",tblREGASSLookup[[#This Row],[Alloc]]=\"CA\",tblREGASSLookup[[#This Row],[Alloc]]=\"WA\"),\"SITUS\",tblREGASSLookup[[#This Row],[Alloc]])","v":"OTHER"},"CUST"]
[{"$f":"CONCATENATE(tblREGASSLookup[[#This Row],[Primary Account]],tblREGASSLookup[[#This Row],[Primary Name]],tblREGASSLookup[[#This Row],[Secondary Acct]],tblREGASSLookup[[#This Row],[Secondary  Name]],tblREGASSLookup[[#This Row],[Alloc4FUNC]])","v":"1823920DSR COSTS AMORTIZED104031IRRIGATION LOAD CONTROL  - UTAH - 2016OTHER"},1823920,"DSR COSTS AMORTIZED",104031,"IRRIGATION LOAD CONTROL  - UTAH - 2016","OTHER",null,{"$f":"IF(OR(tblREGASSLookup[[#This Row],[Alloc]]=\"IDU\",tblREGASSLookup[[#This Row],[Alloc]]=\"OR\",tblREGASSLookup[[#This Row],[Alloc]]=\"UT\",tblREGASSLookup[[#This Row],[Alloc]]=\"WYU\",tblREGASSLookup[[#This Row],[Alloc]]=\"WYP\",tblREGASSLookup[[#This Row],[Alloc]]=\"CA\",tblREGASSLookup[[#This Row],[Alloc]]=\"WA\"),\"SITUS\",tblREGASSLookup[[#This Row],[Alloc]])","v":"OTHER"},"CUST"]
[{"$f":"CONCATENATE(tblREGASSLookup[[#This Row],[Primary Account]],tblREGASSLookup[[#This Row],[Primary Name]],tblREGASSLookup[[#This Row],[Secondary Acct]],tblREGASSLookup[[#This Row],[Secondary  Name]],tblREGASSLookup[[#This Row],[Alloc4FUNC]])","v":"1823920DSR COSTS AMORTIZED104032LOW INCOME - UTAH - 2016OTHER"},1823920,"DSR COSTS AMORTIZED",104032,"LOW INCOME - UTAH - 2016","OTHER",null,{"$f":"IF(OR(tblREGASSLookup[[#This Row],[Alloc]]=\"IDU\",tblREGASSLookup[[#This Row],[Alloc]]=\"OR\",tblREGASSLookup[[#This Row],[Alloc]]=\"UT\",tblREGASSLookup[[#This Row],[Alloc]]=\"WYU\",tblREGASSLookup[[#This Row],[Alloc]]=\"WYP\",tblREGASSLookup[[#This Row],[Alloc]]=\"CA\",tblREGASSLookup[[#This Row],[Alloc]]=\"WA\"),\"SITUS\",tblREGASSLookup[[#This Row],[Alloc]])","v":"OTHER"},"CUST"]
[{"$f":"CONCATENATE(tblREGASSLookup[[#This Row],[Primary Account]],tblREGASSLookup[[#This Row],[Primary Name]],tblREGASSLookup[[#This Row],[Secondary Acct]],tblREGASSLookup[[#This Row],[Secondary  Name]],tblREGASSLookup[[#This Row],[Alloc4FUNC]])","v":"1823920DSR COSTS AMORTIZED104033OUTREACH and COMMUNICATIONS - UT 2016OTHER"},1823920,"DSR COSTS AMORTIZED",104033,"OUTREACH and COMMUNICATIONS - UT 2016","OTHER",null,{"$f":"IF(OR(tblREGASSLookup[[#This Row],[Alloc]]=\"IDU\",tblREGASSLookup[[#This Row],[Alloc]]=\"OR\",tblREGASSLookup[[#This Row],[Alloc]]=\"UT\",tblREGASSLookup[[#This Row],[Alloc]]=\"WYU\",tblREGASSLookup[[#This Row],[Alloc]]=\"WYP\",tblREGASSLookup[[#This Row],[Alloc]]=\"CA\",tblREGASSLookup[[#This Row],[Alloc]]=\"WA\"),\"SITUS\",tblREGASSLookup[[#This Row],[Alloc]])","v":"OTHER"},"CUST"]
[{"$f":"CONCATENATE(tblREGASSLookup[[#This Row],[Primary Account]],tblREGASSLookup[[#This Row],[Primary Name]],tblREGASSLookup[[#This Row],[Secondary Acct]],tblREGASSLookup[[#This Row],[Secondary  Name]],tblREGASSLookup[[#This Row],[Alloc4FUNC]])","v":"1823920DSR COSTS AMORTIZED104034PORTFOLIO - UTAH 2016OTHER"},1823920,"DSR COSTS AMORTIZED",104034,"PORTFOLIO - UTAH 2016","OTHER",null,{"$f":"IF(OR(tblREGASSLookup[[#This Row],[Alloc]]=\"IDU\",tblREGASSLookup[[#This Row],[Alloc]]=\"OR\",tblREGASSLookup[[#This Row],[Alloc]]=\"UT\",tblREGASSLookup[[#This Row],[Alloc]]=\"WYU\",tblREGASSLookup[[#This Row],[Alloc]]=\"WYP\",tblREGASSLookup[[#This Row],[Alloc]]=\"CA\",tblREGASSLookup[[#This Row],[Alloc]]=\"WA\"),\"SITUS\",tblREGASSLookup[[#This Row],[Alloc]])","v":"OTHER"},"CUST"]
[{"$f":"CONCATENATE(tblREGASSLookup[[#This Row],[Primary Account]],tblREGASSLookup[[#This Row],[Primary Name]],tblREGASSLookup[[#This Row],[Secondary Acct]],tblREGASSLookup[[#This Row],[Secondary  Name]],tblREGASSLookup[[#This Row],[Alloc4FUNC]])","v":"1823920DSR COSTS AMORTIZED104035REFRIGERATOR RECYCLING PGM- UTAH - 2016OTHER"},1823920,"DSR COSTS AMORTIZED",104035,"REFRIGERATOR RECYCLING PGM- UTAH - 2016","OTHER",null,{"$f":"IF(OR(tblREGASSLookup[[#This Row],[Alloc]]=\"IDU\",tblREGASSLookup[[#This Row],[Alloc]]=\"OR\",tblREGASSLookup[[#This Row],[Alloc]]=\"UT\",tblREGASSLookup[[#This Row],[Alloc]]=\"WYU\",tblREGASSLookup[[#This Row],[Alloc]]=\"WYP\",tblREGASSLookup[[#This Row],[Alloc]]=\"CA\",tblREGASSLookup[[#This Row],[Alloc]]=\"WA\"),\"SITUS\",tblREGASSLookup[[#This Row],[Alloc]])","v":"OTHER"},"CUST"]
[{"$f":"CONCATENATE(tblREGASSLookup[[#This Row],[Primary Account]],tblREGASSLookup[[#This Row],[Primary Name]],tblREGASSLookup[[#This Row],[Secondary Acct]],tblREGASSLookup[[#This Row],[Secondary  Name]],tblREGASSLookup[[#This Row],[Alloc4FUNC]])","v":"1823920DSR COSTS AMORTIZED104036RESIDENTIAL NEW CONSTRUCTION - UTAH - 20OTHER"},1823920,"DSR COSTS AMORTIZED",104036,"RESIDENTIAL NEW CONSTRUCTION - UTAH - 20","OTHER",null,{"$f":"IF(OR(tblREGASSLookup[[#This Row],[Alloc]]=\"IDU\",tblREGASSLookup[[#This Row],[Alloc]]=\"OR\",tblREGASSLookup[[#This Row],[Alloc]]=\"UT\",tblREGASSLookup[[#This Row],[Alloc]]=\"WYU\",tblREGASSLookup[[#This Row],[Alloc]]=\"WYP\",tblREGASSLookup[[#This Row],[Alloc]]=\"CA\",tblREGASSLookup[[#This Row],[Alloc]]=\"WA\"),\"SITUS\",tblREGASSLookup[[#This Row],[Alloc]])","v":"OTHER"},"CUST"]
[{"$f":"CONCATENATE(tblREGASSLookup[[#This Row],[Primary Account]],tblREGASSLookup[[#This Row],[Primary Name]],tblREGASSLookup[[#This Row],[Secondary Acct]],tblREGASSLookup[[#This Row],[Secondary  Name]],tblREGASSLookup[[#This Row],[Alloc4FUNC]])","v":"1823920DSR COSTS AMORTIZED104037COMMERCIAL (WSB) WATTSMART BUS - UT- 201OTHER"},1823920,"DSR COSTS AMORTIZED",104037,"COMMERCIAL (WSB) WATTSMART BUS - UT- 201","OTHER",null,{"$f":"IF(OR(tblREGASSLookup[[#This Row],[Alloc]]=\"IDU\",tblREGASSLookup[[#This Row],[Alloc]]=\"OR\",tblREGASSLookup[[#This Row],[Alloc]]=\"UT\",tblREGASSLookup[[#This Row],[Alloc]]=\"WYU\",tblREGASSLookup[[#This Row],[Alloc]]=\"WYP\",tblREGASSLookup[[#This Row],[Alloc]]=\"CA\",tblREGASSLookup[[#This Row],[Alloc]]=\"WA\"),\"SITUS\",tblREGASSLookup[[#This Row],[Alloc]])","v":"OTHER"},"CUST"]
[{"$f":"CONCATENATE(tblREGASSLookup[[#This Row],[Primary Account]],tblREGASSLookup[[#This Row],[Primary Name]],tblREGASSLookup[[#This Row],[Secondary Acct]],tblREGASSLookup[[#This Row],[Secondary  Name]],tblREGASSLookup[[#This Row],[Alloc4FUNC]])","v":"1823920DSR COSTS AMORTIZED104038INDUSTRIAL (WSB) WATTSMART BUS- UT- 2016OTHER"},1823920,"DSR COSTS AMORTIZED",104038,"INDUSTRIAL (WSB) WATTSMART BUS- UT- 2016","OTHER",null,{"$f":"IF(OR(tblREGASSLookup[[#This Row],[Alloc]]=\"IDU\",tblREGASSLookup[[#This Row],[Alloc]]=\"OR\",tblREGASSLookup[[#This Row],[Alloc]]=\"UT\",tblREGASSLookup[[#This Row],[Alloc]]=\"WYU\",tblREGASSLookup[[#This Row],[Alloc]]=\"WYP\",tblREGASSLookup[[#This Row],[Alloc]]=\"CA\",tblREGASSLookup[[#This Row],[Alloc]]=\"WA\"),\"SITUS\",tblREGASSLookup[[#This Row],[Alloc]])","v":"OTHER"},"CUST"]
[{"$f":"CONCATENATE(tblREGASSLookup[[#This Row],[Primary Account]],tblREGASSLookup[[#This Row],[Primary Name]],tblREGASSLookup[[#This Row],[Secondary Acct]],tblREGASSLookup[[#This Row],[Secondary  Name]],tblREGASSLookup[[#This Row],[Alloc4FUNC]])","v":"1823920DSR COSTS AMORTIZED104039WSB Small Business Comm- UT-2016OTHER"},1823920,"DSR COSTS AMORTIZED",104039,"WSB Small Business Comm- UT-2016","OTHER",null,{"$f":"IF(OR(tblREGASSLookup[[#This Row],[Alloc]]=\"IDU\",tblREGASSLookup[[#This Row],[Alloc]]=\"OR\",tblREGASSLookup[[#This Row],[Alloc]]=\"UT\",tblREGASSLookup[[#This Row],[Alloc]]=\"WYU\",tblREGASSLookup[[#This Row],[Alloc]]=\"WYP\",tblREGASSLookup[[#This Row],[Alloc]]=\"CA\",tblREGASSLookup[[#This Row],[Alloc]]=\"WA\"),\"SITUS\",tblREGASSLookup[[#This Row],[Alloc]])","v":"OTHER"},"CUST"]
[{"$f":"CONCATENATE(tblREGASSLookup[[#This Row],[Primary Account]],tblREGASSLookup[[#This Row],[Primary Name]],tblREGASSLookup[[#This Row],[Secondary Acct]],tblREGASSLookup[[#This Row],[Secondary  Name]],tblREGASSLookup[[#This Row],[Alloc4FUNC]])","v":"1823920DSR COSTS AMORTIZED104041WSB - WATTSMART BUS- UT- 2016OTHER"},1823920,"DSR COSTS AMORTIZED",104041,"WSB - WATTSMART BUS- UT- 2016","OTHER",null,{"$f":"IF(OR(tblREGASSLookup[[#This Row],[Alloc]]=\"IDU\",tblREGASSLookup[[#This Row],[Alloc]]=\"OR\",tblREGASSLookup[[#This Row],[Alloc]]=\"UT\",tblREGASSLookup[[#This Row],[Alloc]]=\"WYU\",tblREGASSLookup[[#This Row],[Alloc]]=\"WYP\",tblREGASSLookup[[#This Row],[Alloc]]=\"CA\",tblREGASSLookup[[#This Row],[Alloc]]=\"WA\"),\"SITUS\",tblREGASSLookup[[#This Row],[Alloc]])","v":"OTHER"},"CUST"]
[{"$f":"CONCATENATE(tblREGASSLookup[[#This Row],[Primary Account]],tblREGASSLookup[[#This Row],[Primary Name]],tblREGASSLookup[[#This Row],[Secondary Acct]],tblREGASSLookup[[#This Row],[Secondary  Name]],tblREGASSLookup[[#This Row],[Alloc4FUNC]])","v":"1823920DSR COSTS AMORTIZED104042AGRICULTURAL (WSB) WATTSMART BUS- UT- 20OTHER"},1823920,"DSR COSTS AMORTIZED",104042,"AGRICULTURAL (WSB) WATTSMART BUS- UT- 20","OTHER",null,{"$f":"IF(OR(tblREGASSLookup[[#This Row],[Alloc]]=\"IDU\",tblREGASSLookup[[#This Row],[Alloc]]=\"OR\",tblREGASSLookup[[#This Row],[Alloc]]=\"UT\",tblREGASSLookup[[#This Row],[Alloc]]=\"WYU\",tblREGASSLookup[[#This Row],[Alloc]]=\"WYP\",tblREGASSLookup[[#This Row],[Alloc]]=\"CA\",tblREGASSLookup[[#This Row],[Alloc]]=\"WA\"),\"SITUS\",tblREGASSLookup[[#This Row],[Alloc]])","v":"OTHER"},"CUST"]
[{"$f":"CONCATENATE(tblREGASSLookup[[#This Row],[Primary Account]],tblREGASSLookup[[#This Row],[Primary Name]],tblREGASSLookup[[#This Row],[Secondary Acct]],tblREGASSLookup[[#This Row],[Secondary  Name]],tblREGASSLookup[[#This Row],[Alloc4FUNC]])","v":"1823920DSR COSTS AMORTIZED104043U.of Utah Student Energy Sponsorship- UTOTHER"},1823920,"DSR COSTS AMORTIZED",104043,"U.of Utah Student Energy Sponsorship- UT","OTHER",null,{"$f":"IF(OR(tblREGASSLookup[[#This Row],[Alloc]]=\"IDU\",tblREGASSLookup[[#This Row],[Alloc]]=\"OR\",tblREGASSLookup[[#This Row],[Alloc]]=\"UT\",tblREGASSLookup[[#This Row],[Alloc]]=\"WYU\",tblREGASSLookup[[#This Row],[Alloc]]=\"WYP\",tblREGASSLookup[[#This Row],[Alloc]]=\"CA\",tblREGASSLookup[[#This Row],[Alloc]]=\"WA\"),\"SITUS\",tblREGASSLookup[[#This Row],[Alloc]])","v":"OTHER"},"CUST"]
[{"$f":"CONCATENATE(tblREGASSLookup[[#This Row],[Primary Account]],tblREGASSLookup[[#This Row],[Primary Name]],tblREGASSLookup[[#This Row],[Secondary Acct]],tblREGASSLookup[[#This Row],[Secondary  Name]],tblREGASSLookup[[#This Row],[Alloc4FUNC]])","v":"1823920DSR COSTS AMORTIZED104044HOME ENERGY REPORTING - WY 2016OTHER"},1823920,"DSR COSTS AMORTIZED",104044,"HOME ENERGY REPORTING - WY 2016","OTHER",null,{"$f":"IF(OR(tblREGASSLookup[[#This Row],[Alloc]]=\"IDU\",tblREGASSLookup[[#This Row],[Alloc]]=\"OR\",tblREGASSLookup[[#This Row],[Alloc]]=\"UT\",tblREGASSLookup[[#This Row],[Alloc]]=\"WYU\",tblREGASSLookup[[#This Row],[Alloc]]=\"WYP\",tblREGASSLookup[[#This Row],[Alloc]]=\"CA\",tblREGASSLookup[[#This Row],[Alloc]]=\"WA\"),\"SITUS\",tblREGASSLookup[[#This Row],[Alloc]])","v":"OTHER"},"CUST"]
[{"$f":"CONCATENATE(tblREGASSLookup[[#This Row],[Primary Account]],tblREGASSLookup[[#This Row],[Primary Name]],tblREGASSLookup[[#This Row],[Secondary Acct]],tblREGASSLookup[[#This Row],[Secondary  Name]],tblREGASSLookup[[#This Row],[Alloc4FUNC]])","v":"1823920DSR COSTS AMORTIZED104045HOME ENERGY EFF INCENT PROG Y-2016 CAT1OTHER"},1823920,"DSR COSTS AMORTIZED",104045,"HOME ENERGY EFF INCENT PROG Y-2016 CAT1","OTHER",null,{"$f":"IF(OR(tblREGASSLookup[[#This Row],[Alloc]]=\"IDU\",tblREGASSLookup[[#This Row],[Alloc]]=\"OR\",tblREGASSLookup[[#This Row],[Alloc]]=\"UT\",tblREGASSLookup[[#This Row],[Alloc]]=\"WYU\",tblREGASSLookup[[#This Row],[Alloc]]=\"WYP\",tblREGASSLookup[[#This Row],[Alloc]]=\"CA\",tblREGASSLookup[[#This Row],[Alloc]]=\"WA\"),\"SITUS\",tblREGASSLookup[[#This Row],[Alloc]])","v":"OTHER"},"CUST"]
[{"$f":"CONCATENATE(tblREGASSLookup[[#This Row],[Primary Account]],tblREGASSLookup[[#This Row],[Primary Name]],tblREGASSLookup[[#This Row],[Secondary Acct]],tblREGASSLookup[[#This Row],[Secondary  Name]],tblREGASSLookup[[#This Row],[Alloc4FUNC]])","v":"1823920DSR COSTS AMORTIZED104046LOW-INCOME WEATHERZTN - WY 2016 CAT1OTHER"},1823920,"DSR COSTS AMORTIZED",104046,"LOW-INCOME WEATHERZTN - WY 2016 CAT1","OTHER",null,{"$f":"IF(OR(tblREGASSLookup[[#This Row],[Alloc]]=\"IDU\",tblREGASSLookup[[#This Row],[Alloc]]=\"OR\",tblREGASSLookup[[#This Row],[Alloc]]=\"UT\",tblREGASSLookup[[#This Row],[Alloc]]=\"WYU\",tblREGASSLookup[[#This Row],[Alloc]]=\"WYP\",tblREGASSLookup[[#This Row],[Alloc]]=\"CA\",tblREGASSLookup[[#This Row],[Alloc]]=\"WA\"),\"SITUS\",tblREGASSLookup[[#This Row],[Alloc]])","v":"OTHER"},"CUST"]
[{"$f":"CONCATENATE(tblREGASSLookup[[#This Row],[Primary Account]],tblREGASSLookup[[#This Row],[Primary Name]],tblREGASSLookup[[#This Row],[Secondary Acct]],tblREGASSLookup[[#This Row],[Secondary  Name]],tblREGASSLookup[[#This Row],[Alloc4FUNC]])","v":"1823920DSR COSTS AMORTIZED104047OUTREACH AND COMMUNICATION WATTSMT  WY-2OTHER"},1823920,"DSR COSTS AMORTIZED",104047,"OUTREACH AND COMMUNICATION WATTSMT  WY-2","OTHER",null,{"$f":"IF(OR(tblREGASSLookup[[#This Row],[Alloc]]=\"IDU\",tblREGASSLookup[[#This Row],[Alloc]]=\"OR\",tblREGASSLookup[[#This Row],[Alloc]]=\"UT\",tblREGASSLookup[[#This Row],[Alloc]]=\"WYU\",tblREGASSLookup[[#This Row],[Alloc]]=\"WYP\",tblREGASSLookup[[#This Row],[Alloc]]=\"CA\",tblREGASSLookup[[#This Row],[Alloc]]=\"WA\"),\"SITUS\",tblREGASSLookup[[#This Row],[Alloc]])","v":"OTHER"},"CUST"]
[{"$f":"CONCATENATE(tblREGASSLookup[[#This Row],[Primary Account]],tblREGASSLookup[[#This Row],[Primary Name]],tblREGASSLookup[[#This Row],[Secondary Acct]],tblREGASSLookup[[#This Row],[Secondary  Name]],tblREGASSLookup[[#This Row],[Alloc4FUNC]])","v":"1823920DSR COSTS AMORTIZED104048PORTFOLIO WY-2016 CAT1OTHER"},1823920,"DSR COSTS AMORTIZED",104048,"PORTFOLIO WY-2016 CAT1","OTHER",null,{"$f":"IF(OR(tblREGASSLookup[[#This Row],[Alloc]]=\"IDU\",tblREGASSLookup[[#This Row],[Alloc]]=\"OR\",tblREGASSLookup[[#This Row],[Alloc]]=\"UT\",tblREGASSLookup[[#This Row],[Alloc]]=\"WYU\",tblREGASSLookup[[#This Row],[Alloc]]=\"WYP\",tblREGASSLookup[[#This Row],[Alloc]]=\"CA\",tblREGASSLookup[[#This Row],[Alloc]]=\"WA\"),\"SITUS\",tblREGASSLookup[[#This Row],[Alloc]])","v":"OTHER"},"CUST"]
[{"$f":"CONCATENATE(tblREGASSLookup[[#This Row],[Primary Account]],tblREGASSLookup[[#This Row],[Primary Name]],tblREGASSLookup[[#This Row],[Secondary Acct]],tblREGASSLookup[[#This Row],[Secondary  Name]],tblREGASSLookup[[#This Row],[Alloc4FUNC]])","v":"1823920DSR COSTS AMORTIZED104049PORTFOLIO WY-2016 CAT2OTHER"},1823920,"DSR COSTS AMORTIZED",104049,"PORTFOLIO WY-2016 CAT2","OTHER",null,{"$f":"IF(OR(tblREGASSLookup[[#This Row],[Alloc]]=\"IDU\",tblREGASSLookup[[#This Row],[Alloc]]=\"OR\",tblREGASSLookup[[#This Row],[Alloc]]=\"UT\",tblREGASSLookup[[#This Row],[Alloc]]=\"WYU\",tblREGASSLookup[[#This Row],[Alloc]]=\"WYP\",tblREGASSLookup[[#This Row],[Alloc]]=\"CA\",tblREGASSLookup[[#This Row],[Alloc]]=\"WA\"),\"SITUS\",tblREGASSLookup[[#This Row],[Alloc]])","v":"OTHER"},"CUST"]
[{"$f":"CONCATENATE(tblREGASSLookup[[#This Row],[Primary Account]],tblREGASSLookup[[#This Row],[Primary Name]],tblREGASSLookup[[#This Row],[Secondary Acct]],tblREGASSLookup[[#This Row],[Secondary  Name]],tblREGASSLookup[[#This Row],[Alloc4FUNC]])","v":"1823920DSR COSTS AMORTIZED104050PORTFOLIO WY-2016 CAT3OTHER"},1823920,"DSR COSTS AMORTIZED",104050,"PORTFOLIO WY-2016 CAT3","OTHER",null,{"$f":"IF(OR(tblREGASSLookup[[#This Row],[Alloc]]=\"IDU\",tblREGASSLookup[[#This Row],[Alloc]]=\"OR\",tblREGASSLookup[[#This Row],[Alloc]]=\"UT\",tblREGASSLookup[[#This Row],[Alloc]]=\"WYU\",tblREGASSLookup[[#This Row],[Alloc]]=\"WYP\",tblREGASSLookup[[#This Row],[Alloc]]=\"CA\",tblREGASSLookup[[#This Row],[Alloc]]=\"WA\"),\"SITUS\",tblREGASSLookup[[#This Row],[Alloc]])","v":"OTHER"},"CUST"]
[{"$f":"CONCATENATE(tblREGASSLookup[[#This Row],[Primary Account]],tblREGASSLookup[[#This Row],[Primary Name]],tblREGASSLookup[[#This Row],[Secondary Acct]],tblREGASSLookup[[#This Row],[Secondary  Name]],tblREGASSLookup[[#This Row],[Alloc4FUNC]])","v":"1823920DSR COSTS AMORTIZED104051REFRIGERATOR RECYCLING-WY -2016 CAT1OTHER"},1823920,"DSR COSTS AMORTIZED",104051,"REFRIGERATOR RECYCLING-WY -2016 CAT1","OTHER",null,{"$f":"IF(OR(tblREGASSLookup[[#This Row],[Alloc]]=\"IDU\",tblREGASSLookup[[#This Row],[Alloc]]=\"OR\",tblREGASSLookup[[#This Row],[Alloc]]=\"UT\",tblREGASSLookup[[#This Row],[Alloc]]=\"WYU\",tblREGASSLookup[[#This Row],[Alloc]]=\"WYP\",tblREGASSLookup[[#This Row],[Alloc]]=\"CA\",tblREGASSLookup[[#This Row],[Alloc]]=\"WA\"),\"SITUS\",tblREGASSLookup[[#This Row],[Alloc]])","v":"OTHER"},"CUST"]
[{"$f":"CONCATENATE(tblREGASSLookup[[#This Row],[Primary Account]],tblREGASSLookup[[#This Row],[Primary Name]],tblREGASSLookup[[#This Row],[Secondary Acct]],tblREGASSLookup[[#This Row],[Secondary  Name]],tblREGASSLookup[[#This Row],[Alloc4FUNC]])","v":"1823920DSR COSTS AMORTIZED104052REFRIG RECYCLE COMM -WY 2016 CAT2OTHER"},1823920,"DSR COSTS AMORTIZED",104052,"REFRIG RECYCLE COMM -WY 2016 CAT2","OTHER",null,{"$f":"IF(OR(tblREGASSLookup[[#This Row],[Alloc]]=\"IDU\",tblREGASSLookup[[#This Row],[Alloc]]=\"OR\",tblREGASSLookup[[#This Row],[Alloc]]=\"UT\",tblREGASSLookup[[#This Row],[Alloc]]=\"WYU\",tblREGASSLookup[[#This Row],[Alloc]]=\"WYP\",tblREGASSLookup[[#This Row],[Alloc]]=\"CA\",tblREGASSLookup[[#This Row],[Alloc]]=\"WA\"),\"SITUS\",tblREGASSLookup[[#This Row],[Alloc]])","v":"OTHER"},"CUST"]
[{"$f":"CONCATENATE(tblREGASSLookup[[#This Row],[Primary Account]],tblREGASSLookup[[#This Row],[Primary Name]],tblREGASSLookup[[#This Row],[Secondary Acct]],tblREGASSLookup[[#This Row],[Secondary  Name]],tblREGASSLookup[[#This Row],[Alloc4FUNC]])","v":"1823920DSR COSTS AMORTIZED104053REFRIG RECYCLE COMM -WY 2016 CAT3OTHER"},1823920,"DSR COSTS AMORTIZED",104053,"REFRIG RECYCLE COMM -WY 2016 CAT3","OTHER",null,{"$f":"IF(OR(tblREGASSLookup[[#This Row],[Alloc]]=\"IDU\",tblREGASSLookup[[#This Row],[Alloc]]=\"OR\",tblREGASSLookup[[#This Row],[Alloc]]=\"UT\",tblREGASSLookup[[#This Row],[Alloc]]=\"WYU\",tblREGASSLookup[[#This Row],[Alloc]]=\"WYP\",tblREGASSLookup[[#This Row],[Alloc]]=\"CA\",tblREGASSLookup[[#This Row],[Alloc]]=\"WA\"),\"SITUS\",tblREGASSLookup[[#This Row],[Alloc]])","v":"OTHER"},"CUST"]
[{"$f":"CONCATENATE(tblREGASSLookup[[#This Row],[Primary Account]],tblREGASSLookup[[#This Row],[Primary Name]],tblREGASSLookup[[#This Row],[Secondary Acct]],tblREGASSLookup[[#This Row],[Secondary  Name]],tblREGASSLookup[[#This Row],[Alloc4FUNC]])","v":"1823920DSR COSTS AMORTIZED104054WSB- Wattsmart Bus Comm- WY Cat2 -2016OTHER"},1823920,"DSR COSTS AMORTIZED",104054,"WSB- Wattsmart Bus Comm- WY Cat2 -2016","OTHER",null,{"$f":"IF(OR(tblREGASSLookup[[#This Row],[Alloc]]=\"IDU\",tblREGASSLookup[[#This Row],[Alloc]]=\"OR\",tblREGASSLookup[[#This Row],[Alloc]]=\"UT\",tblREGASSLookup[[#This Row],[Alloc]]=\"WYU\",tblREGASSLookup[[#This Row],[Alloc]]=\"WYP\",tblREGASSLookup[[#This Row],[Alloc]]=\"CA\",tblREGASSLookup[[#This Row],[Alloc]]=\"WA\"),\"SITUS\",tblREGASSLookup[[#This Row],[Alloc]])","v":"OTHER"},"CUST"]
[{"$f":"CONCATENATE(tblREGASSLookup[[#This Row],[Primary Account]],tblREGASSLookup[[#This Row],[Primary Name]],tblREGASSLookup[[#This Row],[Secondary Acct]],tblREGASSLookup[[#This Row],[Secondary  Name]],tblREGASSLookup[[#This Row],[Alloc4FUNC]])","v":"1823920DSR COSTS AMORTIZED104055WBS- Wattsmart Business Ind -WY Cat2-201OTHER"},1823920,"DSR COSTS AMORTIZED",104055,"WBS- Wattsmart Business Ind -WY Cat2-201","OTHER",null,{"$f":"IF(OR(tblREGASSLookup[[#This Row],[Alloc]]=\"IDU\",tblREGASSLookup[[#This Row],[Alloc]]=\"OR\",tblREGASSLookup[[#This Row],[Alloc]]=\"UT\",tblREGASSLookup[[#This Row],[Alloc]]=\"WYU\",tblREGASSLookup[[#This Row],[Alloc]]=\"WYP\",tblREGASSLookup[[#This Row],[Alloc]]=\"CA\",tblREGASSLookup[[#This Row],[Alloc]]=\"WA\"),\"SITUS\",tblREGASSLookup[[#This Row],[Alloc]])","v":"OTHER"},"CUST"]
[{"$f":"CONCATENATE(tblREGASSLookup[[#This Row],[Primary Account]],tblREGASSLookup[[#This Row],[Primary Name]],tblREGASSLookup[[#This Row],[Secondary Acct]],tblREGASSLookup[[#This Row],[Secondary  Name]],tblREGASSLookup[[#This Row],[Alloc4FUNC]])","v":"1823920DSR COSTS AMORTIZED104056WSB - Wattsmart Business - WY Cat 2- 201OTHER"},1823920,"DSR COSTS AMORTIZED",104056,"WSB - Wattsmart Business - WY Cat 2- 201","OTHER",null,{"$f":"IF(OR(tblREGASSLookup[[#This Row],[Alloc]]=\"IDU\",tblREGASSLookup[[#This Row],[Alloc]]=\"OR\",tblREGASSLookup[[#This Row],[Alloc]]=\"UT\",tblREGASSLookup[[#This Row],[Alloc]]=\"WYU\",tblREGASSLookup[[#This Row],[Alloc]]=\"WYP\",tblREGASSLookup[[#This Row],[Alloc]]=\"CA\",tblREGASSLookup[[#This Row],[Alloc]]=\"WA\"),\"SITUS\",tblREGASSLookup[[#This Row],[Alloc]])","v":"OTHER"},"CUST"]
[{"$f":"CONCATENATE(tblREGASSLookup[[#This Row],[Primary Account]],tblREGASSLookup[[#This Row],[Primary Name]],tblREGASSLookup[[#This Row],[Secondary Acct]],tblREGASSLookup[[#This Row],[Secondary  Name]],tblREGASSLookup[[#This Row],[Alloc4FUNC]])","v":"1823920DSR COSTS AMORTIZED104057WSB Wattsmart Business Comm- WY Cat3 -20OTHER"},1823920,"DSR COSTS AMORTIZED",104057,"WSB Wattsmart Business Comm- WY Cat3 -20","OTHER",null,{"$f":"IF(OR(tblREGASSLookup[[#This Row],[Alloc]]=\"IDU\",tblREGASSLookup[[#This Row],[Alloc]]=\"OR\",tblREGASSLookup[[#This Row],[Alloc]]=\"UT\",tblREGASSLookup[[#This Row],[Alloc]]=\"WYU\",tblREGASSLookup[[#This Row],[Alloc]]=\"WYP\",tblREGASSLookup[[#This Row],[Alloc]]=\"CA\",tblREGASSLookup[[#This Row],[Alloc]]=\"WA\"),\"SITUS\",tblREGASSLookup[[#This Row],[Alloc]])","v":"OTHER"},"CUST"]
[{"$f":"CONCATENATE(tblREGASSLookup[[#This Row],[Primary Account]],tblREGASSLookup[[#This Row],[Primary Name]],tblREGASSLookup[[#This Row],[Secondary Acct]],tblREGASSLookup[[#This Row],[Secondary  Name]],tblREGASSLookup[[#This Row],[Alloc4FUNC]])","v":"1823920DSR COSTS AMORTIZED104058WBS- Wattsmart Bus Ind- WY Cat3-2016OTHER"},1823920,"DSR COSTS AMORTIZED",104058,"WBS- Wattsmart Bus Ind- WY Cat3-2016","OTHER",null,{"$f":"IF(OR(tblREGASSLookup[[#This Row],[Alloc]]=\"IDU\",tblREGASSLookup[[#This Row],[Alloc]]=\"OR\",tblREGASSLookup[[#This Row],[Alloc]]=\"UT\",tblREGASSLookup[[#This Row],[Alloc]]=\"WYU\",tblREGASSLookup[[#This Row],[Alloc]]=\"WYP\",tblREGASSLookup[[#This Row],[Alloc]]=\"CA\",tblREGASSLookup[[#This Row],[Alloc]]=\"WA\"),\"SITUS\",tblREGASSLookup[[#This Row],[Alloc]])","v":"OTHER"},"CUST"]
[{"$f":"CONCATENATE(tblREGASSLookup[[#This Row],[Primary Account]],tblREGASSLookup[[#This Row],[Primary Name]],tblREGASSLookup[[#This Row],[Secondary Acct]],tblREGASSLookup[[#This Row],[Secondary  Name]],tblREGASSLookup[[#This Row],[Alloc4FUNC]])","v":"1823920DSR COSTS AMORTIZED104059WSB- Wattsmart Business Agric- WY Cat2 -OTHER"},1823920,"DSR COSTS AMORTIZED",104059,"WSB- Wattsmart Business Agric- WY Cat2 -","OTHER",null,{"$f":"IF(OR(tblREGASSLookup[[#This Row],[Alloc]]=\"IDU\",tblREGASSLookup[[#This Row],[Alloc]]=\"OR\",tblREGASSLookup[[#This Row],[Alloc]]=\"UT\",tblREGASSLookup[[#This Row],[Alloc]]=\"WYU\",tblREGASSLookup[[#This Row],[Alloc]]=\"WYP\",tblREGASSLookup[[#This Row],[Alloc]]=\"CA\",tblREGASSLookup[[#This Row],[Alloc]]=\"WA\"),\"SITUS\",tblREGASSLookup[[#This Row],[Alloc]])","v":"OTHER"},"CUST"]
[{"$f":"CONCATENATE(tblREGASSLookup[[#This Row],[Primary Account]],tblREGASSLookup[[#This Row],[Primary Name]],tblREGASSLookup[[#This Row],[Secondary Acct]],tblREGASSLookup[[#This Row],[Secondary  Name]],tblREGASSLookup[[#This Row],[Alloc4FUNC]])","v":"1823920DSR COSTS AMORTIZED104060WSB- Wattsmart Business Agric- WY Cat3 -OTHER"},1823920,"DSR COSTS AMORTIZED",104060,"WSB- Wattsmart Business Agric- WY Cat3 -","OTHER",null,{"$f":"IF(OR(tblREGASSLookup[[#This Row],[Alloc]]=\"IDU\",tblREGASSLookup[[#This Row],[Alloc]]=\"OR\",tblREGASSLookup[[#This Row],[Alloc]]=\"UT\",tblREGASSLookup[[#This Row],[Alloc]]=\"WYU\",tblREGASSLookup[[#This Row],[Alloc]]=\"WYP\",tblREGASSLookup[[#This Row],[Alloc]]=\"CA\",tblREGASSLookup[[#This Row],[Alloc]]=\"WA\"),\"SITUS\",tblREGASSLookup[[#This Row],[Alloc]])","v":"OTHER"},"CUST"]
[{"$f":"CONCATENATE(tblREGASSLookup[[#This Row],[Primary Account]],tblREGASSLookup[[#This Row],[Primary Name]],tblREGASSLookup[[#This Row],[Secondary Acct]],tblREGASSLookup[[#This Row],[Secondary  Name]],tblREGASSLookup[[#This Row],[Alloc4FUNC]])","v":"1823920DSR COSTS AMORTIZED104061WSB- Wattsmart Business- WY Cat 3- 2016OTHER"},1823920,"DSR COSTS AMORTIZED",104061,"WSB- Wattsmart Business- WY Cat 3- 2016","OTHER",null,{"$f":"IF(OR(tblREGASSLookup[[#This Row],[Alloc]]=\"IDU\",tblREGASSLookup[[#This Row],[Alloc]]=\"OR\",tblREGASSLookup[[#This Row],[Alloc]]=\"UT\",tblREGASSLookup[[#This Row],[Alloc]]=\"WYU\",tblREGASSLookup[[#This Row],[Alloc]]=\"WYP\",tblREGASSLookup[[#This Row],[Alloc]]=\"CA\",tblREGASSLookup[[#This Row],[Alloc]]=\"WA\"),\"SITUS\",tblREGASSLookup[[#This Row],[Alloc]])","v":"OTHER"},"CUST"]
[{"$f":"CONCATENATE(tblREGASSLookup[[#This Row],[Primary Account]],tblREGASSLookup[[#This Row],[Primary Name]],tblREGASSLookup[[#This Row],[Secondary Acct]],tblREGASSLookup[[#This Row],[Secondary  Name]],tblREGASSLookup[[#This Row],[Alloc4FUNC]])","v":"1823920DSR COSTS AMORTIZED104080OUTREACH & COMM WATTSMT WY-2016 CAT2OTHER"},1823920,"DSR COSTS AMORTIZED",104080,"OUTREACH & COMM WATTSMT WY-2016 CAT2","OTHER",null,{"$f":"IF(OR(tblREGASSLookup[[#This Row],[Alloc]]=\"IDU\",tblREGASSLookup[[#This Row],[Alloc]]=\"OR\",tblREGASSLookup[[#This Row],[Alloc]]=\"UT\",tblREGASSLookup[[#This Row],[Alloc]]=\"WYU\",tblREGASSLookup[[#This Row],[Alloc]]=\"WYP\",tblREGASSLookup[[#This Row],[Alloc]]=\"CA\",tblREGASSLookup[[#This Row],[Alloc]]=\"WA\"),\"SITUS\",tblREGASSLookup[[#This Row],[Alloc]])","v":"OTHER"},"CUST"]
[{"$f":"CONCATENATE(tblREGASSLookup[[#This Row],[Primary Account]],tblREGASSLookup[[#This Row],[Primary Name]],tblREGASSLookup[[#This Row],[Secondary Acct]],tblREGASSLookup[[#This Row],[Secondary  Name]],tblREGASSLookup[[#This Row],[Alloc4FUNC]])","v":"1823920DSR COSTS AMORTIZED104081OUTREACH & COMM WATTSMT WY-2016 CAT3OTHER"},1823920,"DSR COSTS AMORTIZED",104081,"OUTREACH & COMM WATTSMT WY-2016 CAT3","OTHER",null,{"$f":"IF(OR(tblREGASSLookup[[#This Row],[Alloc]]=\"IDU\",tblREGASSLookup[[#This Row],[Alloc]]=\"OR\",tblREGASSLookup[[#This Row],[Alloc]]=\"UT\",tblREGASSLookup[[#This Row],[Alloc]]=\"WYU\",tblREGASSLookup[[#This Row],[Alloc]]=\"WYP\",tblREGASSLookup[[#This Row],[Alloc]]=\"CA\",tblREGASSLookup[[#This Row],[Alloc]]=\"WA\"),\"SITUS\",tblREGASSLookup[[#This Row],[Alloc]])","v":"OTHER"},"CUST"]
[{"$f":"CONCATENATE(tblREGASSLookup[[#This Row],[Primary Account]],tblREGASSLookup[[#This Row],[Primary Name]],tblREGASSLookup[[#This Row],[Secondary Acct]],tblREGASSLookup[[#This Row],[Secondary  Name]],tblREGASSLookup[[#This Row],[Alloc4FUNC]])","v":"1823920DSR COSTS AMORTIZED104109WA DSM - 186055 Clear Acct BalanceOTHER"},1823920,"DSR COSTS AMORTIZED",104109,"WA DSM - 186055 Clear Acct Balance","OTHER",null,{"$f":"IF(OR(tblREGASSLookup[[#This Row],[Alloc]]=\"IDU\",tblREGASSLookup[[#This Row],[Alloc]]=\"OR\",tblREGASSLookup[[#This Row],[Alloc]]=\"UT\",tblREGASSLookup[[#This Row],[Alloc]]=\"WYU\",tblREGASSLookup[[#This Row],[Alloc]]=\"WYP\",tblREGASSLookup[[#This Row],[Alloc]]=\"CA\",tblREGASSLookup[[#This Row],[Alloc]]=\"WA\"),\"SITUS\",tblREGASSLookup[[#This Row],[Alloc]])","v":"OTHER"},"CUST"]
[{"$f":"CONCATENATE(tblREGASSLookup[[#This Row],[Primary Account]],tblREGASSLookup[[#This Row],[Primary Name]],tblREGASSLookup[[#This Row],[Secondary Acct]],tblREGASSLookup[[#This Row],[Secondary  Name]],tblREGASSLookup[[#This Row],[Alloc4FUNC]])","v":"1823920DSR COSTS AMORTIZED104110ID DSM - 186025 Clear Acct BalanceOTHER"},1823920,"DSR COSTS AMORTIZED",104110,"ID DSM - 186025 Clear Acct Balance","OTHER",null,{"$f":"IF(OR(tblREGASSLookup[[#This Row],[Alloc]]=\"IDU\",tblREGASSLookup[[#This Row],[Alloc]]=\"OR\",tblREGASSLookup[[#This Row],[Alloc]]=\"UT\",tblREGASSLookup[[#This Row],[Alloc]]=\"WYU\",tblREGASSLookup[[#This Row],[Alloc]]=\"WYP\",tblREGASSLookup[[#This Row],[Alloc]]=\"CA\",tblREGASSLookup[[#This Row],[Alloc]]=\"WA\"),\"SITUS\",tblREGASSLookup[[#This Row],[Alloc]])","v":"OTHER"},"CUST"]
[{"$f":"CONCATENATE(tblREGASSLookup[[#This Row],[Primary Account]],tblREGASSLookup[[#This Row],[Primary Name]],tblREGASSLookup[[#This Row],[Secondary Acct]],tblREGASSLookup[[#This Row],[Secondary  Name]],tblREGASSLookup[[#This Row],[Alloc4FUNC]])","v":"1823920DSR COSTS AMORTIZED104111WY DSM - 186065 Clear Acct BalanceOTHER"},1823920,"DSR COSTS AMORTIZED",104111,"WY DSM - 186065 Clear Acct Balance","OTHER",null,{"$f":"IF(OR(tblREGASSLookup[[#This Row],[Alloc]]=\"IDU\",tblREGASSLookup[[#This Row],[Alloc]]=\"OR\",tblREGASSLookup[[#This Row],[Alloc]]=\"UT\",tblREGASSLookup[[#This Row],[Alloc]]=\"WYU\",tblREGASSLookup[[#This Row],[Alloc]]=\"WYP\",tblREGASSLookup[[#This Row],[Alloc]]=\"CA\",tblREGASSLookup[[#This Row],[Alloc]]=\"WA\"),\"SITUS\",tblREGASSLookup[[#This Row],[Alloc]])","v":"OTHER"},"CUST"]
[{"$f":"CONCATENATE(tblREGASSLookup[[#This Row],[Primary Account]],tblREGASSLookup[[#This Row],[Primary Name]],tblREGASSLookup[[#This Row],[Secondary Acct]],tblREGASSLookup[[#This Row],[Secondary  Name]],tblREGASSLookup[[#This Row],[Alloc4FUNC]])","v":"1823930DSR COSTS NOT AMORT102352INDUSTRIAL FINANSWER - IDU 2004SITUS"},1823930,"DSR COSTS NOT AMORT",102352,"INDUSTRIAL FINANSWER - IDU 2004","SITUS",null,{"$f":"IF(OR(tblREGASSLookup[[#This Row],[Alloc]]=\"IDU\",tblREGASSLookup[[#This Row],[Alloc]]=\"OR\",tblREGASSLookup[[#This Row],[Alloc]]=\"UT\",tblREGASSLookup[[#This Row],[Alloc]]=\"WYU\",tblREGASSLookup[[#This Row],[Alloc]]=\"WYP\",tblREGASSLookup[[#This Row],[Alloc]]=\"CA\",tblREGASSLookup[[#This Row],[Alloc]]=\"WA\"),\"SITUS\",tblREGASSLookup[[#This Row],[Alloc]])","v":"SITUS"},"CUST"]
[{"$f":"CONCATENATE(tblREGASSLookup[[#This Row],[Primary Account]],tblREGASSLookup[[#This Row],[Primary Name]],tblREGASSLookup[[#This Row],[Secondary Acct]],tblREGASSLookup[[#This Row],[Secondary  Name]],tblREGASSLookup[[#This Row],[Alloc4FUNC]])","v":"1823930DSR COSTS NOT AMORT102353LOW INCOME WZ - IDU 2004SITUS"},1823930,"DSR COSTS NOT AMORT",102353,"LOW INCOME WZ - IDU 2004","SITUS",null,{"$f":"IF(OR(tblREGASSLookup[[#This Row],[Alloc]]=\"IDU\",tblREGASSLookup[[#This Row],[Alloc]]=\"OR\",tblREGASSLookup[[#This Row],[Alloc]]=\"UT\",tblREGASSLookup[[#This Row],[Alloc]]=\"WYU\",tblREGASSLookup[[#This Row],[Alloc]]=\"WYP\",tblREGASSLookup[[#This Row],[Alloc]]=\"CA\",tblREGASSLookup[[#This Row],[Alloc]]=\"WA\"),\"SITUS\",tblREGASSLookup[[#This Row],[Alloc]])","v":"SITUS"},"CUST"]
[{"$f":"CONCATENATE(tblREGASSLookup[[#This Row],[Primary Account]],tblREGASSLookup[[#This Row],[Primary Name]],tblREGASSLookup[[#This Row],[Secondary Acct]],tblREGASSLookup[[#This Row],[Secondary  Name]],tblREGASSLookup[[#This Row],[Alloc4FUNC]])","v":"1823930DSR COSTS NOT AMORT102354NEEA - IDU 2004SITUS"},1823930,"DSR COSTS NOT AMORT",102354,"NEEA - IDU 2004","SITUS",null,{"$f":"IF(OR(tblREGASSLookup[[#This Row],[Alloc]]=\"IDU\",tblREGASSLookup[[#This Row],[Alloc]]=\"OR\",tblREGASSLookup[[#This Row],[Alloc]]=\"UT\",tblREGASSLookup[[#This Row],[Alloc]]=\"WYU\",tblREGASSLookup[[#This Row],[Alloc]]=\"WYP\",tblREGASSLookup[[#This Row],[Alloc]]=\"CA\",tblREGASSLookup[[#This Row],[Alloc]]=\"WA\"),\"SITUS\",tblREGASSLookup[[#This Row],[Alloc]])","v":"SITUS"},"CUST"]
[{"$f":"CONCATENATE(tblREGASSLookup[[#This Row],[Primary Account]],tblREGASSLookup[[#This Row],[Primary Name]],tblREGASSLookup[[#This Row],[Secondary Acct]],tblREGASSLookup[[#This Row],[Secondary  Name]],tblREGASSLookup[[#This Row],[Alloc4FUNC]])","v":"1823930DSR COSTS NOT AMORT102356IRRIGATION INTERRUPTIBLE - IDU 2004SITUS"},1823930,"DSR COSTS NOT AMORT",102356,"IRRIGATION INTERRUPTIBLE - IDU 2004","SITUS",null,{"$f":"IF(OR(tblREGASSLookup[[#This Row],[Alloc]]=\"IDU\",tblREGASSLookup[[#This Row],[Alloc]]=\"OR\",tblREGASSLookup[[#This Row],[Alloc]]=\"UT\",tblREGASSLookup[[#This Row],[Alloc]]=\"WYU\",tblREGASSLookup[[#This Row],[Alloc]]=\"WYP\",tblREGASSLookup[[#This Row],[Alloc]]=\"CA\",tblREGASSLookup[[#This Row],[Alloc]]=\"WA\"),\"SITUS\",tblREGASSLookup[[#This Row],[Alloc]])","v":"SITUS"},"CUST"]
[{"$f":"CONCATENATE(tblREGASSLookup[[#This Row],[Primary Account]],tblREGASSLookup[[#This Row],[Primary Name]],tblREGASSLookup[[#This Row],[Secondary Acct]],tblREGASSLookup[[#This Row],[Secondary  Name]],tblREGASSLookup[[#This Row],[Alloc4FUNC]])","v":"1823930DSR COSTS NOT AMORT102519INDUSTRIAL FINANSWER - IDAHO-UT 2005SITUS"},1823930,"DSR COSTS NOT AMORT",102519,"INDUSTRIAL FINANSWER - IDAHO-UT 2005","SITUS",null,{"$f":"IF(OR(tblREGASSLookup[[#This Row],[Alloc]]=\"IDU\",tblREGASSLookup[[#This Row],[Alloc]]=\"OR\",tblREGASSLookup[[#This Row],[Alloc]]=\"UT\",tblREGASSLookup[[#This Row],[Alloc]]=\"WYU\",tblREGASSLookup[[#This Row],[Alloc]]=\"WYP\",tblREGASSLookup[[#This Row],[Alloc]]=\"CA\",tblREGASSLookup[[#This Row],[Alloc]]=\"WA\"),\"SITUS\",tblREGASSLookup[[#This Row],[Alloc]])","v":"SITUS"},"CUST"]
[{"$f":"CONCATENATE(tblREGASSLookup[[#This Row],[Primary Account]],tblREGASSLookup[[#This Row],[Primary Name]],tblREGASSLookup[[#This Row],[Secondary Acct]],tblREGASSLookup[[#This Row],[Secondary  Name]],tblREGASSLookup[[#This Row],[Alloc4FUNC]])","v":"1823930DSR COSTS NOT AMORT102520LOW INCOME WZ  - IDAHO-UT 2005SITUS"},1823930,"DSR COSTS NOT AMORT",102520,"LOW INCOME WZ  - IDAHO-UT 2005","SITUS",null,{"$f":"IF(OR(tblREGASSLookup[[#This Row],[Alloc]]=\"IDU\",tblREGASSLookup[[#This Row],[Alloc]]=\"OR\",tblREGASSLookup[[#This Row],[Alloc]]=\"UT\",tblREGASSLookup[[#This Row],[Alloc]]=\"WYU\",tblREGASSLookup[[#This Row],[Alloc]]=\"WYP\",tblREGASSLookup[[#This Row],[Alloc]]=\"CA\",tblREGASSLookup[[#This Row],[Alloc]]=\"WA\"),\"SITUS\",tblREGASSLookup[[#This Row],[Alloc]])","v":"SITUS"},"CUST"]
[{"$f":"CONCATENATE(tblREGASSLookup[[#This Row],[Primary Account]],tblREGASSLookup[[#This Row],[Primary Name]],tblREGASSLookup[[#This Row],[Secondary Acct]],tblREGASSLookup[[#This Row],[Secondary  Name]],tblREGASSLookup[[#This Row],[Alloc4FUNC]])","v":"1823930DSR COSTS NOT AMORT102521NEEA - IDAHO - UTAH 2005SITUS"},1823930,"DSR COSTS NOT AMORT",102521,"NEEA - IDAHO - UTAH 2005","SITUS",null,{"$f":"IF(OR(tblREGASSLookup[[#This Row],[Alloc]]=\"IDU\",tblREGASSLookup[[#This Row],[Alloc]]=\"OR\",tblREGASSLookup[[#This Row],[Alloc]]=\"UT\",tblREGASSLookup[[#This Row],[Alloc]]=\"WYU\",tblREGASSLookup[[#This Row],[Alloc]]=\"WYP\",tblREGASSLookup[[#This Row],[Alloc]]=\"CA\",tblREGASSLookup[[#This Row],[Alloc]]=\"WA\"),\"SITUS\",tblREGASSLookup[[#This Row],[Alloc]])","v":"SITUS"},"CUST"]
[{"$f":"CONCATENATE(tblREGASSLookup[[#This Row],[Primary Account]],tblREGASSLookup[[#This Row],[Primary Name]],tblREGASSLookup[[#This Row],[Secondary Acct]],tblREGASSLookup[[#This Row],[Secondary  Name]],tblREGASSLookup[[#This Row],[Alloc4FUNC]])","v":"1823930DSR COSTS NOT AMORT102522SELF AUDIT - IDAHO-UT 2005SITUS"},1823930,"DSR COSTS NOT AMORT",102522,"SELF AUDIT - IDAHO-UT 2005","SITUS",null,{"$f":"IF(OR(tblREGASSLookup[[#This Row],[Alloc]]=\"IDU\",tblREGASSLookup[[#This Row],[Alloc]]=\"OR\",tblREGASSLookup[[#This Row],[Alloc]]=\"UT\",tblREGASSLookup[[#This Row],[Alloc]]=\"WYU\",tblREGASSLookup[[#This Row],[Alloc]]=\"WYP\",tblREGASSLookup[[#This Row],[Alloc]]=\"CA\",tblREGASSLookup[[#This Row],[Alloc]]=\"WA\"),\"SITUS\",tblREGASSLookup[[#This Row],[Alloc]])","v":"SITUS"},"CUST"]
[{"$f":"CONCATENATE(tblREGASSLookup[[#This Row],[Primary Account]],tblREGASSLookup[[#This Row],[Primary Name]],tblREGASSLookup[[#This Row],[Secondary Acct]],tblREGASSLookup[[#This Row],[Secondary  Name]],tblREGASSLookup[[#This Row],[Alloc4FUNC]])","v":"1823930DSR COSTS NOT AMORT102523IRRIGATION INTERRUPTIBLE IDAHO - UT 2005SITUS"},1823930,"DSR COSTS NOT AMORT",102523,"IRRIGATION INTERRUPTIBLE IDAHO - UT 2005","SITUS",null,{"$f":"IF(OR(tblREGASSLookup[[#This Row],[Alloc]]=\"IDU\",tblREGASSLookup[[#This Row],[Alloc]]=\"OR\",tblREGASSLookup[[#This Row],[Alloc]]=\"UT\",tblREGASSLookup[[#This Row],[Alloc]]=\"WYU\",tblREGASSLookup[[#This Row],[Alloc]]=\"WYP\",tblREGASSLookup[[#This Row],[Alloc]]=\"CA\",tblREGASSLookup[[#This Row],[Alloc]]=\"WA\"),\"SITUS\",tblREGASSLookup[[#This Row],[Alloc]])","v":"SITUS"},"CUST"]
[{"$f":"CONCATENATE(tblREGASSLookup[[#This Row],[Primary Account]],tblREGASSLookup[[#This Row],[Primary Name]],tblREGASSLookup[[#This Row],[Secondary Acct]],tblREGASSLookup[[#This Row],[Secondary  Name]],tblREGASSLookup[[#This Row],[Alloc4FUNC]])","v":"1823930DSR COSTS NOT AMORT102524WEATHERIZATION LOANS - RESIDENTIAL/ID-UTSITUS"},1823930,"DSR COSTS NOT AMORT",102524,"WEATHERIZATION LOANS - RESIDENTIAL/ID-UT","SITUS",null,{"$f":"IF(OR(tblREGASSLookup[[#This Row],[Alloc]]=\"IDU\",tblREGASSLookup[[#This Row],[Alloc]]=\"OR\",tblREGASSLookup[[#This Row],[Alloc]]=\"UT\",tblREGASSLookup[[#This Row],[Alloc]]=\"WYU\",tblREGASSLookup[[#This Row],[Alloc]]=\"WYP\",tblREGASSLookup[[#This Row],[Alloc]]=\"CA\",tblREGASSLookup[[#This Row],[Alloc]]=\"WA\"),\"SITUS\",tblREGASSLookup[[#This Row],[Alloc]])","v":"SITUS"},"CUST"]
[{"$f":"CONCATENATE(tblREGASSLookup[[#This Row],[Primary Account]],tblREGASSLookup[[#This Row],[Primary Name]],tblREGASSLookup[[#This Row],[Secondary Acct]],tblREGASSLookup[[#This Row],[Secondary  Name]],tblREGASSLookup[[#This Row],[Alloc4FUNC]])","v":"1823930DSR COSTS NOT AMORT102573ENERGY FINANSWER ID/UT 2006SITUS"},1823930,"DSR COSTS NOT AMORT",102573,"ENERGY FINANSWER ID/UT 2006","SITUS",null,{"$f":"IF(OR(tblREGASSLookup[[#This Row],[Alloc]]=\"IDU\",tblREGASSLookup[[#This Row],[Alloc]]=\"OR\",tblREGASSLookup[[#This Row],[Alloc]]=\"UT\",tblREGASSLookup[[#This Row],[Alloc]]=\"WYU\",tblREGASSLookup[[#This Row],[Alloc]]=\"WYP\",tblREGASSLookup[[#This Row],[Alloc]]=\"CA\",tblREGASSLookup[[#This Row],[Alloc]]=\"WA\"),\"SITUS\",tblREGASSLookup[[#This Row],[Alloc]])","v":"SITUS"},"CUST"]
[{"$f":"CONCATENATE(tblREGASSLookup[[#This Row],[Primary Account]],tblREGASSLookup[[#This Row],[Primary Name]],tblREGASSLookup[[#This Row],[Secondary Acct]],tblREGASSLookup[[#This Row],[Secondary  Name]],tblREGASSLookup[[#This Row],[Alloc4FUNC]])","v":"1823930DSR COSTS NOT AMORT102574INDUSTRIAL FINANSWER-ID-UT 2006SITUS"},1823930,"DSR COSTS NOT AMORT",102574,"INDUSTRIAL FINANSWER-ID-UT 2006","SITUS",null,{"$f":"IF(OR(tblREGASSLookup[[#This Row],[Alloc]]=\"IDU\",tblREGASSLookup[[#This Row],[Alloc]]=\"OR\",tblREGASSLookup[[#This Row],[Alloc]]=\"UT\",tblREGASSLookup[[#This Row],[Alloc]]=\"WYU\",tblREGASSLookup[[#This Row],[Alloc]]=\"WYP\",tblREGASSLookup[[#This Row],[Alloc]]=\"CA\",tblREGASSLookup[[#This Row],[Alloc]]=\"WA\"),\"SITUS\",tblREGASSLookup[[#This Row],[Alloc]])","v":"SITUS"},"CUST"]
[{"$f":"CONCATENATE(tblREGASSLookup[[#This Row],[Primary Account]],tblREGASSLookup[[#This Row],[Primary Name]],tblREGASSLookup[[#This Row],[Secondary Acct]],tblREGASSLookup[[#This Row],[Secondary  Name]],tblREGASSLookup[[#This Row],[Alloc4FUNC]])","v":"1823930DSR COSTS NOT AMORT102575LOW INCOME WZ -ID-UT 2006SITUS"},1823930,"DSR COSTS NOT AMORT",102575,"LOW INCOME WZ -ID-UT 2006","SITUS",null,{"$f":"IF(OR(tblREGASSLookup[[#This Row],[Alloc]]=\"IDU\",tblREGASSLookup[[#This Row],[Alloc]]=\"OR\",tblREGASSLookup[[#This Row],[Alloc]]=\"UT\",tblREGASSLookup[[#This Row],[Alloc]]=\"WYU\",tblREGASSLookup[[#This Row],[Alloc]]=\"WYP\",tblREGASSLookup[[#This Row],[Alloc]]=\"CA\",tblREGASSLookup[[#This Row],[Alloc]]=\"WA\"),\"SITUS\",tblREGASSLookup[[#This Row],[Alloc]])","v":"SITUS"},"CUST"]
[{"$f":"CONCATENATE(tblREGASSLookup[[#This Row],[Primary Account]],tblREGASSLookup[[#This Row],[Primary Name]],tblREGASSLookup[[#This Row],[Secondary Acct]],tblREGASSLookup[[#This Row],[Secondary  Name]],tblREGASSLookup[[#This Row],[Alloc4FUNC]])","v":"1823930DSR COSTS NOT AMORT102576NEEA-IDAHO-UTAH 2006SITUS"},1823930,"DSR COSTS NOT AMORT",102576,"NEEA-IDAHO-UTAH 2006","SITUS",null,{"$f":"IF(OR(tblREGASSLookup[[#This Row],[Alloc]]=\"IDU\",tblREGASSLookup[[#This Row],[Alloc]]=\"OR\",tblREGASSLookup[[#This Row],[Alloc]]=\"UT\",tblREGASSLookup[[#This Row],[Alloc]]=\"WYU\",tblREGASSLookup[[#This Row],[Alloc]]=\"WYP\",tblREGASSLookup[[#This Row],[Alloc]]=\"CA\",tblREGASSLookup[[#This Row],[Alloc]]=\"WA\"),\"SITUS\",tblREGASSLookup[[#This Row],[Alloc]])","v":"SITUS"},"CUST"]
[{"$f":"CONCATENATE(tblREGASSLookup[[#This Row],[Primary Account]],tblREGASSLookup[[#This Row],[Primary Name]],tblREGASSLookup[[#This Row],[Secondary Acct]],tblREGASSLookup[[#This Row],[Secondary  Name]],tblREGASSLookup[[#This Row],[Alloc4FUNC]])","v":"1823930DSR COSTS NOT AMORT102577IRRIGATION INTERRUPTIBLE ID-UT 2006SITUS"},1823930,"DSR COSTS NOT AMORT",102577,"IRRIGATION INTERRUPTIBLE ID-UT 2006","SITUS",null,{"$f":"IF(OR(tblREGASSLookup[[#This Row],[Alloc]]=\"IDU\",tblREGASSLookup[[#This Row],[Alloc]]=\"OR\",tblREGASSLookup[[#This Row],[Alloc]]=\"UT\",tblREGASSLookup[[#This Row],[Alloc]]=\"WYU\",tblREGASSLookup[[#This Row],[Alloc]]=\"WYP\",tblREGASSLookup[[#This Row],[Alloc]]=\"CA\",tblREGASSLookup[[#This Row],[Alloc]]=\"WA\"),\"SITUS\",tblREGASSLookup[[#This Row],[Alloc]])","v":"SITUS"},"CUST"]
[{"$f":"CONCATENATE(tblREGASSLookup[[#This Row],[Primary Account]],tblREGASSLookup[[#This Row],[Primary Name]],tblREGASSLookup[[#This Row],[Secondary Acct]],tblREGASSLookup[[#This Row],[Secondary  Name]],tblREGASSLookup[[#This Row],[Alloc4FUNC]])","v":"1823930DSR COSTS NOT AMORT102578WEATHERIZATION LOANS-RESDL/ID-UT 2006SITUS"},1823930,"DSR COSTS NOT AMORT",102578,"WEATHERIZATION LOANS-RESDL/ID-UT 2006","SITUS",null,{"$f":"IF(OR(tblREGASSLookup[[#This Row],[Alloc]]=\"IDU\",tblREGASSLookup[[#This Row],[Alloc]]=\"OR\",tblREGASSLookup[[#This Row],[Alloc]]=\"UT\",tblREGASSLookup[[#This Row],[Alloc]]=\"WYU\",tblREGASSLookup[[#This Row],[Alloc]]=\"WYP\",tblREGASSLookup[[#This Row],[Alloc]]=\"CA\",tblREGASSLookup[[#This Row],[Alloc]]=\"WA\"),\"SITUS\",tblREGASSLookup[[#This Row],[Alloc]])","v":"SITUS"},"CUST"]
[{"$f":"CONCATENATE(tblREGASSLookup[[#This Row],[Primary Account]],tblREGASSLookup[[#This Row],[Primary Name]],tblREGASSLookup[[#This Row],[Secondary Acct]],tblREGASSLookup[[#This Row],[Secondary  Name]],tblREGASSLookup[[#This Row],[Alloc4FUNC]])","v":"1823930DSR COSTS NOT AMORT102579REFRIGERATOR RECYCLING PGM-ID-UT 2006SITUS"},1823930,"DSR COSTS NOT AMORT",102579,"REFRIGERATOR RECYCLING PGM-ID-UT 2006","SITUS",null,{"$f":"IF(OR(tblREGASSLookup[[#This Row],[Alloc]]=\"IDU\",tblREGASSLookup[[#This Row],[Alloc]]=\"OR\",tblREGASSLookup[[#This Row],[Alloc]]=\"UT\",tblREGASSLookup[[#This Row],[Alloc]]=\"WYU\",tblREGASSLookup[[#This Row],[Alloc]]=\"WYP\",tblREGASSLookup[[#This Row],[Alloc]]=\"CA\",tblREGASSLookup[[#This Row],[Alloc]]=\"WA\"),\"SITUS\",tblREGASSLookup[[#This Row],[Alloc]])","v":"SITUS"},"CUST"]
[{"$f":"CONCATENATE(tblREGASSLookup[[#This Row],[Primary Account]],tblREGASSLookup[[#This Row],[Primary Name]],tblREGASSLookup[[#This Row],[Secondary Acct]],tblREGASSLookup[[#This Row],[Secondary  Name]],tblREGASSLookup[[#This Row],[Alloc4FUNC]])","v":"1823930DSR COSTS NOT AMORT102580COMMERCIAL FINANSWER EXPR-ID-UT 2006SITUS"},1823930,"DSR COSTS NOT AMORT",102580,"COMMERCIAL FINANSWER EXPR-ID-UT 2006","SITUS",null,{"$f":"IF(OR(tblREGASSLookup[[#This Row],[Alloc]]=\"IDU\",tblREGASSLookup[[#This Row],[Alloc]]=\"OR\",tblREGASSLookup[[#This Row],[Alloc]]=\"UT\",tblREGASSLookup[[#This Row],[Alloc]]=\"WYU\",tblREGASSLookup[[#This Row],[Alloc]]=\"WYP\",tblREGASSLookup[[#This Row],[Alloc]]=\"CA\",tblREGASSLookup[[#This Row],[Alloc]]=\"WA\"),\"SITUS\",tblREGASSLookup[[#This Row],[Alloc]])","v":"SITUS"},"CUST"]
[{"$f":"CONCATENATE(tblREGASSLookup[[#This Row],[Primary Account]],tblREGASSLookup[[#This Row],[Primary Name]],tblREGASSLookup[[#This Row],[Secondary Acct]],tblREGASSLookup[[#This Row],[Secondary  Name]],tblREGASSLookup[[#This Row],[Alloc4FUNC]])","v":"1823930DSR COSTS NOT AMORT102581INDUSTRIAL FINANSWER EXPR-ID-UT 2006SITUS"},1823930,"DSR COSTS NOT AMORT",102581,"INDUSTRIAL FINANSWER EXPR-ID-UT 2006","SITUS",null,{"$f":"IF(OR(tblREGASSLookup[[#This Row],[Alloc]]=\"IDU\",tblREGASSLookup[[#This Row],[Alloc]]=\"OR\",tblREGASSLookup[[#This Row],[Alloc]]=\"UT\",tblREGASSLookup[[#This Row],[Alloc]]=\"WYU\",tblREGASSLookup[[#This Row],[Alloc]]=\"WYP\",tblREGASSLookup[[#This Row],[Alloc]]=\"CA\",tblREGASSLookup[[#This Row],[Alloc]]=\"WA\"),\"SITUS\",tblREGASSLookup[[#This Row],[Alloc]])","v":"SITUS"},"CUST"]
[{"$f":"CONCATENATE(tblREGASSLookup[[#This Row],[Primary Account]],tblREGASSLookup[[#This Row],[Primary Name]],tblREGASSLookup[[#This Row],[Secondary Acct]],tblREGASSLookup[[#This Row],[Secondary  Name]],tblREGASSLookup[[#This Row],[Alloc4FUNC]])","v":"1823930DSR COSTS NOT AMORT102582IRRIGATION EFFICIENCY PRGRM-ID-UT 2006SITUS"},1823930,"DSR COSTS NOT AMORT",102582,"IRRIGATION EFFICIENCY PRGRM-ID-UT 2006","SITUS",null,{"$f":"IF(OR(tblREGASSLookup[[#This Row],[Alloc]]=\"IDU\",tblREGASSLookup[[#This Row],[Alloc]]=\"OR\",tblREGASSLookup[[#This Row],[Alloc]]=\"UT\",tblREGASSLookup[[#This Row],[Alloc]]=\"WYU\",tblREGASSLookup[[#This Row],[Alloc]]=\"WYP\",tblREGASSLookup[[#This Row],[Alloc]]=\"CA\",tblREGASSLookup[[#This Row],[Alloc]]=\"WA\"),\"SITUS\",tblREGASSLookup[[#This Row],[Alloc]])","v":"SITUS"},"CUST"]
[{"$f":"CONCATENATE(tblREGASSLookup[[#This Row],[Primary Account]],tblREGASSLookup[[#This Row],[Primary Name]],tblREGASSLookup[[#This Row],[Secondary Acct]],tblREGASSLookup[[#This Row],[Secondary  Name]],tblREGASSLookup[[#This Row],[Alloc4FUNC]])","v":"1823930DSR COSTS NOT AMORT102758HOME ENERGY EFFICIENCY INCENTIVE PROGM-ISITUS"},1823930,"DSR COSTS NOT AMORT",102758,"HOME ENERGY EFFICIENCY INCENTIVE PROGM-I","SITUS",null,{"$f":"IF(OR(tblREGASSLookup[[#This Row],[Alloc]]=\"IDU\",tblREGASSLookup[[#This Row],[Alloc]]=\"OR\",tblREGASSLookup[[#This Row],[Alloc]]=\"UT\",tblREGASSLookup[[#This Row],[Alloc]]=\"WYU\",tblREGASSLookup[[#This Row],[Alloc]]=\"WYP\",tblREGASSLookup[[#This Row],[Alloc]]=\"CA\",tblREGASSLookup[[#This Row],[Alloc]]=\"WA\"),\"SITUS\",tblREGASSLookup[[#This Row],[Alloc]])","v":"SITUS"},"CUST"]
[{"$f":"CONCATENATE(tblREGASSLookup[[#This Row],[Primary Account]],tblREGASSLookup[[#This Row],[Primary Name]],tblREGASSLookup[[#This Row],[Secondary Acct]],tblREGASSLookup[[#This Row],[Secondary  Name]],tblREGASSLookup[[#This Row],[Alloc4FUNC]])","v":"1823930DSR COSTS NOT AMORT102808WEATHERIZATION LOANS RESIDTL/ ID-UT 2007OTHER"},1823930,"DSR COSTS NOT AMORT",102808,"WEATHERIZATION LOANS RESIDTL/ ID-UT 2007","OTHER",null,{"$f":"IF(OR(tblREGASSLookup[[#This Row],[Alloc]]=\"IDU\",tblREGASSLookup[[#This Row],[Alloc]]=\"OR\",tblREGASSLookup[[#This Row],[Alloc]]=\"UT\",tblREGASSLookup[[#This Row],[Alloc]]=\"WYU\",tblREGASSLookup[[#This Row],[Alloc]]=\"WYP\",tblREGASSLookup[[#This Row],[Alloc]]=\"CA\",tblREGASSLookup[[#This Row],[Alloc]]=\"WA\"),\"SITUS\",tblREGASSLookup[[#This Row],[Alloc]])","v":"OTHER"},"CUST"]
[{"$f":"CONCATENATE(tblREGASSLookup[[#This Row],[Primary Account]],tblREGASSLookup[[#This Row],[Primary Name]],tblREGASSLookup[[#This Row],[Secondary Acct]],tblREGASSLookup[[#This Row],[Secondary  Name]],tblREGASSLookup[[#This Row],[Alloc4FUNC]])","v":"1823930DSR COSTS NOT AMORT102809ENERGY FINANSWER IDU 2007OTHER"},1823930,"DSR COSTS NOT AMORT",102809,"ENERGY FINANSWER IDU 2007","OTHER",null,{"$f":"IF(OR(tblREGASSLookup[[#This Row],[Alloc]]=\"IDU\",tblREGASSLookup[[#This Row],[Alloc]]=\"OR\",tblREGASSLookup[[#This Row],[Alloc]]=\"UT\",tblREGASSLookup[[#This Row],[Alloc]]=\"WYU\",tblREGASSLookup[[#This Row],[Alloc]]=\"WYP\",tblREGASSLookup[[#This Row],[Alloc]]=\"CA\",tblREGASSLookup[[#This Row],[Alloc]]=\"WA\"),\"SITUS\",tblREGASSLookup[[#This Row],[Alloc]])","v":"OTHER"},"CUST"]
[{"$f":"CONCATENATE(tblREGASSLookup[[#This Row],[Primary Account]],tblREGASSLookup[[#This Row],[Primary Name]],tblREGASSLookup[[#This Row],[Secondary Acct]],tblREGASSLookup[[#This Row],[Secondary  Name]],tblREGASSLookup[[#This Row],[Alloc4FUNC]])","v":"1823930DSR COSTS NOT AMORT102810Industrial Finanswer ID - 2007OTHER"},1823930,"DSR COSTS NOT AMORT",102810,"Industrial Finanswer ID - 2007","OTHER",null,{"$f":"IF(OR(tblREGASSLookup[[#This Row],[Alloc]]=\"IDU\",tblREGASSLookup[[#This Row],[Alloc]]=\"OR\",tblREGASSLookup[[#This Row],[Alloc]]=\"UT\",tblREGASSLookup[[#This Row],[Alloc]]=\"WYU\",tblREGASSLookup[[#This Row],[Alloc]]=\"WYP\",tblREGASSLookup[[#This Row],[Alloc]]=\"CA\",tblREGASSLookup[[#This Row],[Alloc]]=\"WA\"),\"SITUS\",tblREGASSLookup[[#This Row],[Alloc]])","v":"OTHER"},"CUST"]
[{"$f":"CONCATENATE(tblREGASSLookup[[#This Row],[Primary Account]],tblREGASSLookup[[#This Row],[Primary Name]],tblREGASSLookup[[#This Row],[Secondary Acct]],tblREGASSLookup[[#This Row],[Secondary  Name]],tblREGASSLookup[[#This Row],[Alloc4FUNC]])","v":"1823930DSR COSTS NOT AMORT102811IRRIGATION INTERRUPTIBLE ID-UT 2007OTHER"},1823930,"DSR COSTS NOT AMORT",102811,"IRRIGATION INTERRUPTIBLE ID-UT 2007","OTHER",null,{"$f":"IF(OR(tblREGASSLookup[[#This Row],[Alloc]]=\"IDU\",tblREGASSLookup[[#This Row],[Alloc]]=\"OR\",tblREGASSLookup[[#This Row],[Alloc]]=\"UT\",tblREGASSLookup[[#This Row],[Alloc]]=\"WYU\",tblREGASSLookup[[#This Row],[Alloc]]=\"WYP\",tblREGASSLookup[[#This Row],[Alloc]]=\"CA\",tblREGASSLookup[[#This Row],[Alloc]]=\"WA\"),\"SITUS\",tblREGASSLookup[[#This Row],[Alloc]])","v":"OTHER"},"CUST"]
[{"$f":"CONCATENATE(tblREGASSLookup[[#This Row],[Primary Account]],tblREGASSLookup[[#This Row],[Primary Name]],tblREGASSLookup[[#This Row],[Secondary Acct]],tblREGASSLookup[[#This Row],[Secondary  Name]],tblREGASSLookup[[#This Row],[Alloc4FUNC]])","v":"1823930DSR COSTS NOT AMORT102812LOW INCOME WZ  - ID-UT 2007OTHER"},1823930,"DSR COSTS NOT AMORT",102812,"LOW INCOME WZ  - ID-UT 2007","OTHER",null,{"$f":"IF(OR(tblREGASSLookup[[#This Row],[Alloc]]=\"IDU\",tblREGASSLookup[[#This Row],[Alloc]]=\"OR\",tblREGASSLookup[[#This Row],[Alloc]]=\"UT\",tblREGASSLookup[[#This Row],[Alloc]]=\"WYU\",tblREGASSLookup[[#This Row],[Alloc]]=\"WYP\",tblREGASSLookup[[#This Row],[Alloc]]=\"CA\",tblREGASSLookup[[#This Row],[Alloc]]=\"WA\"),\"SITUS\",tblREGASSLookup[[#This Row],[Alloc]])","v":"OTHER"},"CUST"]
[{"$f":"CONCATENATE(tblREGASSLookup[[#This Row],[Primary Account]],tblREGASSLookup[[#This Row],[Primary Name]],tblREGASSLookup[[#This Row],[Secondary Acct]],tblREGASSLookup[[#This Row],[Secondary  Name]],tblREGASSLookup[[#This Row],[Alloc4FUNC]])","v":"1823930DSR COSTS NOT AMORT102813NEEA - IDAHO - UTAH 2007OTHER"},1823930,"DSR COSTS NOT AMORT",102813,"NEEA - IDAHO - UTAH 2007","OTHER",null,{"$f":"IF(OR(tblREGASSLookup[[#This Row],[Alloc]]=\"IDU\",tblREGASSLookup[[#This Row],[Alloc]]=\"OR\",tblREGASSLookup[[#This Row],[Alloc]]=\"UT\",tblREGASSLookup[[#This Row],[Alloc]]=\"WYU\",tblREGASSLookup[[#This Row],[Alloc]]=\"WYP\",tblREGASSLookup[[#This Row],[Alloc]]=\"CA\",tblREGASSLookup[[#This Row],[Alloc]]=\"WA\"),\"SITUS\",tblREGASSLookup[[#This Row],[Alloc]])","v":"OTHER"},"CUST"]
[{"$f":"CONCATENATE(tblREGASSLookup[[#This Row],[Primary Account]],tblREGASSLookup[[#This Row],[Primary Name]],tblREGASSLookup[[#This Row],[Secondary Acct]],tblREGASSLookup[[#This Row],[Secondary  Name]],tblREGASSLookup[[#This Row],[Alloc4FUNC]])","v":"1823930DSR COSTS NOT AMORT102814REFRIGERATOR RECYCLING PGM - ID-UT 2007OTHER"},1823930,"DSR COSTS NOT AMORT",102814,"REFRIGERATOR RECYCLING PGM - ID-UT 2007","OTHER",null,{"$f":"IF(OR(tblREGASSLookup[[#This Row],[Alloc]]=\"IDU\",tblREGASSLookup[[#This Row],[Alloc]]=\"OR\",tblREGASSLookup[[#This Row],[Alloc]]=\"UT\",tblREGASSLookup[[#This Row],[Alloc]]=\"WYU\",tblREGASSLookup[[#This Row],[Alloc]]=\"WYP\",tblREGASSLookup[[#This Row],[Alloc]]=\"CA\",tblREGASSLookup[[#This Row],[Alloc]]=\"WA\"),\"SITUS\",tblREGASSLookup[[#This Row],[Alloc]])","v":"OTHER"},"CUST"]
[{"$f":"CONCATENATE(tblREGASSLookup[[#This Row],[Primary Account]],tblREGASSLookup[[#This Row],[Primary Name]],tblREGASSLookup[[#This Row],[Secondary Acct]],tblREGASSLookup[[#This Row],[Secondary  Name]],tblREGASSLookup[[#This Row],[Alloc4FUNC]])","v":"1823930DSR COSTS NOT AMORT102815COMMERCIAL FINANSWER EXPR - ID-UT 2007OTHER"},1823930,"DSR COSTS NOT AMORT",102815,"COMMERCIAL FINANSWER EXPR - ID-UT 2007","OTHER",null,{"$f":"IF(OR(tblREGASSLookup[[#This Row],[Alloc]]=\"IDU\",tblREGASSLookup[[#This Row],[Alloc]]=\"OR\",tblREGASSLookup[[#This Row],[Alloc]]=\"UT\",tblREGASSLookup[[#This Row],[Alloc]]=\"WYU\",tblREGASSLookup[[#This Row],[Alloc]]=\"WYP\",tblREGASSLookup[[#This Row],[Alloc]]=\"CA\",tblREGASSLookup[[#This Row],[Alloc]]=\"WA\"),\"SITUS\",tblREGASSLookup[[#This Row],[Alloc]])","v":"OTHER"},"CUST"]
[{"$f":"CONCATENATE(tblREGASSLookup[[#This Row],[Primary Account]],tblREGASSLookup[[#This Row],[Primary Name]],tblREGASSLookup[[#This Row],[Secondary Acct]],tblREGASSLookup[[#This Row],[Secondary  Name]],tblREGASSLookup[[#This Row],[Alloc4FUNC]])","v":"1823930DSR COSTS NOT AMORT102816INDUSTRIAL FINANSWER EXPR - ID-UT 2007OTHER"},1823930,"DSR COSTS NOT AMORT",102816,"INDUSTRIAL FINANSWER EXPR - ID-UT 2007","OTHER",null,{"$f":"IF(OR(tblREGASSLookup[[#This Row],[Alloc]]=\"IDU\",tblREGASSLookup[[#This Row],[Alloc]]=\"OR\",tblREGASSLookup[[#This Row],[Alloc]]=\"UT\",tblREGASSLookup[[#This Row],[Alloc]]=\"WYU\",tblREGASSLookup[[#This Row],[Alloc]]=\"WYP\",tblREGASSLookup[[#This Row],[Alloc]]=\"CA\",tblREGASSLookup[[#This Row],[Alloc]]=\"WA\"),\"SITUS\",tblREGASSLookup[[#This Row],[Alloc]])","v":"OTHER"},"CUST"]
[{"$f":"CONCATENATE(tblREGASSLookup[[#This Row],[Primary Account]],tblREGASSLookup[[#This Row],[Primary Name]],tblREGASSLookup[[#This Row],[Secondary Acct]],tblREGASSLookup[[#This Row],[Secondary  Name]],tblREGASSLookup[[#This Row],[Alloc4FUNC]])","v":"1823930DSR COSTS NOT AMORT102817IRRIGATION EFFICIENCY PRGRM - ID-UT 2007OTHER"},1823930,"DSR COSTS NOT AMORT",102817,"IRRIGATION EFFICIENCY PRGRM - ID-UT 2007","OTHER",null,{"$f":"IF(OR(tblREGASSLookup[[#This Row],[Alloc]]=\"IDU\",tblREGASSLookup[[#This Row],[Alloc]]=\"OR\",tblREGASSLookup[[#This Row],[Alloc]]=\"UT\",tblREGASSLookup[[#This Row],[Alloc]]=\"WYU\",tblREGASSLookup[[#This Row],[Alloc]]=\"WYP\",tblREGASSLookup[[#This Row],[Alloc]]=\"CA\",tblREGASSLookup[[#This Row],[Alloc]]=\"WA\"),\"SITUS\",tblREGASSLookup[[#This Row],[Alloc]])","v":"OTHER"},"CUST"]
[{"$f":"CONCATENATE(tblREGASSLookup[[#This Row],[Primary Account]],tblREGASSLookup[[#This Row],[Primary Name]],tblREGASSLookup[[#This Row],[Secondary Acct]],tblREGASSLookup[[#This Row],[Secondary  Name]],tblREGASSLookup[[#This Row],[Alloc4FUNC]])","v":"1823930DSR COSTS NOT AMORT102818HOME ENERGY EFFICIENCY INCENTIVE PROG  -OTHER"},1823930,"DSR COSTS NOT AMORT",102818,"HOME ENERGY EFFICIENCY INCENTIVE PROG  -","OTHER",null,{"$f":"IF(OR(tblREGASSLookup[[#This Row],[Alloc]]=\"IDU\",tblREGASSLookup[[#This Row],[Alloc]]=\"OR\",tblREGASSLookup[[#This Row],[Alloc]]=\"UT\",tblREGASSLookup[[#This Row],[Alloc]]=\"WYU\",tblREGASSLookup[[#This Row],[Alloc]]=\"WYP\",tblREGASSLookup[[#This Row],[Alloc]]=\"CA\",tblREGASSLookup[[#This Row],[Alloc]]=\"WA\"),\"SITUS\",tblREGASSLookup[[#This Row],[Alloc]])","v":"OTHER"},"CUST"]
[{"$f":"CONCATENATE(tblREGASSLookup[[#This Row],[Primary Account]],tblREGASSLookup[[#This Row],[Primary Name]],tblREGASSLookup[[#This Row],[Secondary Acct]],tblREGASSLookup[[#This Row],[Secondary  Name]],tblREGASSLookup[[#This Row],[Alloc4FUNC]])","v":"1823930DSR COSTS NOT AMORT102896ENERGY FINANSWER - ID/UT 2008OTHER"},1823930,"DSR COSTS NOT AMORT",102896,"ENERGY FINANSWER - ID/UT 2008","OTHER",null,{"$f":"IF(OR(tblREGASSLookup[[#This Row],[Alloc]]=\"IDU\",tblREGASSLookup[[#This Row],[Alloc]]=\"OR\",tblREGASSLookup[[#This Row],[Alloc]]=\"UT\",tblREGASSLookup[[#This Row],[Alloc]]=\"WYU\",tblREGASSLookup[[#This Row],[Alloc]]=\"WYP\",tblREGASSLookup[[#This Row],[Alloc]]=\"CA\",tblREGASSLookup[[#This Row],[Alloc]]=\"WA\"),\"SITUS\",tblREGASSLookup[[#This Row],[Alloc]])","v":"OTHER"},"CUST"]
[{"$f":"CONCATENATE(tblREGASSLookup[[#This Row],[Primary Account]],tblREGASSLookup[[#This Row],[Primary Name]],tblREGASSLookup[[#This Row],[Secondary Acct]],tblREGASSLookup[[#This Row],[Secondary  Name]],tblREGASSLookup[[#This Row],[Alloc4FUNC]])","v":"1823930DSR COSTS NOT AMORT102897INDUSTRIAL FINANSWER - ID-UT 2008OTHER"},1823930,"DSR COSTS NOT AMORT",102897,"INDUSTRIAL FINANSWER - ID-UT 2008","OTHER",null,{"$f":"IF(OR(tblREGASSLookup[[#This Row],[Alloc]]=\"IDU\",tblREGASSLookup[[#This Row],[Alloc]]=\"OR\",tblREGASSLookup[[#This Row],[Alloc]]=\"UT\",tblREGASSLookup[[#This Row],[Alloc]]=\"WYU\",tblREGASSLookup[[#This Row],[Alloc]]=\"WYP\",tblREGASSLookup[[#This Row],[Alloc]]=\"CA\",tblREGASSLookup[[#This Row],[Alloc]]=\"WA\"),\"SITUS\",tblREGASSLookup[[#This Row],[Alloc]])","v":"OTHER"},"CUST"]
[{"$f":"CONCATENATE(tblREGASSLookup[[#This Row],[Primary Account]],tblREGASSLookup[[#This Row],[Primary Name]],tblREGASSLookup[[#This Row],[Secondary Acct]],tblREGASSLookup[[#This Row],[Secondary  Name]],tblREGASSLookup[[#This Row],[Alloc4FUNC]])","v":"1823930DSR COSTS NOT AMORT102898IRRIGATION INTERRUPTIBLE - IDAHO - 2008OTHER"},1823930,"DSR COSTS NOT AMORT",102898,"IRRIGATION INTERRUPTIBLE - IDAHO - 2008","OTHER",null,{"$f":"IF(OR(tblREGASSLookup[[#This Row],[Alloc]]=\"IDU\",tblREGASSLookup[[#This Row],[Alloc]]=\"OR\",tblREGASSLookup[[#This Row],[Alloc]]=\"UT\",tblREGASSLookup[[#This Row],[Alloc]]=\"WYU\",tblREGASSLookup[[#This Row],[Alloc]]=\"WYP\",tblREGASSLookup[[#This Row],[Alloc]]=\"CA\",tblREGASSLookup[[#This Row],[Alloc]]=\"WA\"),\"SITUS\",tblREGASSLookup[[#This Row],[Alloc]])","v":"OTHER"},"CUST"]
[{"$f":"CONCATENATE(tblREGASSLookup[[#This Row],[Primary Account]],tblREGASSLookup[[#This Row],[Primary Name]],tblREGASSLookup[[#This Row],[Secondary Acct]],tblREGASSLookup[[#This Row],[Secondary  Name]],tblREGASSLookup[[#This Row],[Alloc4FUNC]])","v":"1823930DSR COSTS NOT AMORT102899LOW INCOME WEATHERIZATION - IDAHO 2008OTHER"},1823930,"DSR COSTS NOT AMORT",102899,"LOW INCOME WEATHERIZATION - IDAHO 2008","OTHER",null,{"$f":"IF(OR(tblREGASSLookup[[#This Row],[Alloc]]=\"IDU\",tblREGASSLookup[[#This Row],[Alloc]]=\"OR\",tblREGASSLookup[[#This Row],[Alloc]]=\"UT\",tblREGASSLookup[[#This Row],[Alloc]]=\"WYU\",tblREGASSLookup[[#This Row],[Alloc]]=\"WYP\",tblREGASSLookup[[#This Row],[Alloc]]=\"CA\",tblREGASSLookup[[#This Row],[Alloc]]=\"WA\"),\"SITUS\",tblREGASSLookup[[#This Row],[Alloc]])","v":"OTHER"},"CUST"]
[{"$f":"CONCATENATE(tblREGASSLookup[[#This Row],[Primary Account]],tblREGASSLookup[[#This Row],[Primary Name]],tblREGASSLookup[[#This Row],[Secondary Acct]],tblREGASSLookup[[#This Row],[Secondary  Name]],tblREGASSLookup[[#This Row],[Alloc4FUNC]])","v":"1823930DSR COSTS NOT AMORT102900NEEA - IDAHO - 2008OTHER"},1823930,"DSR COSTS NOT AMORT",102900,"NEEA - IDAHO - 2008","OTHER",null,{"$f":"IF(OR(tblREGASSLookup[[#This Row],[Alloc]]=\"IDU\",tblREGASSLookup[[#This Row],[Alloc]]=\"OR\",tblREGASSLookup[[#This Row],[Alloc]]=\"UT\",tblREGASSLookup[[#This Row],[Alloc]]=\"WYU\",tblREGASSLookup[[#This Row],[Alloc]]=\"WYP\",tblREGASSLookup[[#This Row],[Alloc]]=\"CA\",tblREGASSLookup[[#This Row],[Alloc]]=\"WA\"),\"SITUS\",tblREGASSLookup[[#This Row],[Alloc]])","v":"OTHER"},"CUST"]
[{"$f":"CONCATENATE(tblREGASSLookup[[#This Row],[Primary Account]],tblREGASSLookup[[#This Row],[Primary Name]],tblREGASSLookup[[#This Row],[Secondary Acct]],tblREGASSLookup[[#This Row],[Secondary  Name]],tblREGASSLookup[[#This Row],[Alloc4FUNC]])","v":"1823930DSR COSTS NOT AMORT102901REFRIGERATOR RECYCLING PRGM - IDAHO 2008OTHER"},1823930,"DSR COSTS NOT AMORT",102901,"REFRIGERATOR RECYCLING PRGM - IDAHO 2008","OTHER",null,{"$f":"IF(OR(tblREGASSLookup[[#This Row],[Alloc]]=\"IDU\",tblREGASSLookup[[#This Row],[Alloc]]=\"OR\",tblREGASSLookup[[#This Row],[Alloc]]=\"UT\",tblREGASSLookup[[#This Row],[Alloc]]=\"WYU\",tblREGASSLookup[[#This Row],[Alloc]]=\"WYP\",tblREGASSLookup[[#This Row],[Alloc]]=\"CA\",tblREGASSLookup[[#This Row],[Alloc]]=\"WA\"),\"SITUS\",tblREGASSLookup[[#This Row],[Alloc]])","v":"OTHER"},"CUST"]
[{"$f":"CONCATENATE(tblREGASSLookup[[#This Row],[Primary Account]],tblREGASSLookup[[#This Row],[Primary Name]],tblREGASSLookup[[#This Row],[Secondary Acct]],tblREGASSLookup[[#This Row],[Secondary  Name]],tblREGASSLookup[[#This Row],[Alloc4FUNC]])","v":"1823930DSR COSTS NOT AMORT102902COMMERCIAL FINANSWER EXPRESS - IDAHO 200OTHER"},1823930,"DSR COSTS NOT AMORT",102902,"COMMERCIAL FINANSWER EXPRESS - IDAHO 200","OTHER",null,{"$f":"IF(OR(tblREGASSLookup[[#This Row],[Alloc]]=\"IDU\",tblREGASSLookup[[#This Row],[Alloc]]=\"OR\",tblREGASSLookup[[#This Row],[Alloc]]=\"UT\",tblREGASSLookup[[#This Row],[Alloc]]=\"WYU\",tblREGASSLookup[[#This Row],[Alloc]]=\"WYP\",tblREGASSLookup[[#This Row],[Alloc]]=\"CA\",tblREGASSLookup[[#This Row],[Alloc]]=\"WA\"),\"SITUS\",tblREGASSLookup[[#This Row],[Alloc]])","v":"OTHER"},"CUST"]
[{"$f":"CONCATENATE(tblREGASSLookup[[#This Row],[Primary Account]],tblREGASSLookup[[#This Row],[Primary Name]],tblREGASSLookup[[#This Row],[Secondary Acct]],tblREGASSLookup[[#This Row],[Secondary  Name]],tblREGASSLookup[[#This Row],[Alloc4FUNC]])","v":"1823930DSR COSTS NOT AMORT102903INDUSTRIAL FINANSWER - IDAHO - 2008OTHER"},1823930,"DSR COSTS NOT AMORT",102903,"INDUSTRIAL FINANSWER - IDAHO - 2008","OTHER",null,{"$f":"IF(OR(tblREGASSLookup[[#This Row],[Alloc]]=\"IDU\",tblREGASSLookup[[#This Row],[Alloc]]=\"OR\",tblREGASSLookup[[#This Row],[Alloc]]=\"UT\",tblREGASSLookup[[#This Row],[Alloc]]=\"WYU\",tblREGASSLookup[[#This Row],[Alloc]]=\"WYP\",tblREGASSLookup[[#This Row],[Alloc]]=\"CA\",tblREGASSLookup[[#This Row],[Alloc]]=\"WA\"),\"SITUS\",tblREGASSLookup[[#This Row],[Alloc]])","v":"OTHER"},"CUST"]
[{"$f":"CONCATENATE(tblREGASSLookup[[#This Row],[Primary Account]],tblREGASSLookup[[#This Row],[Primary Name]],tblREGASSLookup[[#This Row],[Secondary Acct]],tblREGASSLookup[[#This Row],[Secondary  Name]],tblREGASSLookup[[#This Row],[Alloc4FUNC]])","v":"1823930DSR COSTS NOT AMORT102904IRRIGATION EFFICIENCY PRGM - IDAHO - 200OTHER"},1823930,"DSR COSTS NOT AMORT",102904,"IRRIGATION EFFICIENCY PRGM - IDAHO - 200","OTHER",null,{"$f":"IF(OR(tblREGASSLookup[[#This Row],[Alloc]]=\"IDU\",tblREGASSLookup[[#This Row],[Alloc]]=\"OR\",tblREGASSLookup[[#This Row],[Alloc]]=\"UT\",tblREGASSLookup[[#This Row],[Alloc]]=\"WYU\",tblREGASSLookup[[#This Row],[Alloc]]=\"WYP\",tblREGASSLookup[[#This Row],[Alloc]]=\"CA\",tblREGASSLookup[[#This Row],[Alloc]]=\"WA\"),\"SITUS\",tblREGASSLookup[[#This Row],[Alloc]])","v":"OTHER"},"CUST"]
[{"$f":"CONCATENATE(tblREGASSLookup[[#This Row],[Primary Account]],tblREGASSLookup[[#This Row],[Primary Name]],tblREGASSLookup[[#This Row],[Secondary Acct]],tblREGASSLookup[[#This Row],[Secondary  Name]],tblREGASSLookup[[#This Row],[Alloc4FUNC]])","v":"1823930DSR COSTS NOT AMORT102905HOME ENERGY EFF INCENTIVE PROGRAM - IDAHOTHER"},1823930,"DSR COSTS NOT AMORT",102905,"HOME ENERGY EFF INCENTIVE PROGRAM - IDAH","OTHER",null,{"$f":"IF(OR(tblREGASSLookup[[#This Row],[Alloc]]=\"IDU\",tblREGASSLookup[[#This Row],[Alloc]]=\"OR\",tblREGASSLookup[[#This Row],[Alloc]]=\"UT\",tblREGASSLookup[[#This Row],[Alloc]]=\"WYU\",tblREGASSLookup[[#This Row],[Alloc]]=\"WYP\",tblREGASSLookup[[#This Row],[Alloc]]=\"CA\",tblREGASSLookup[[#This Row],[Alloc]]=\"WA\"),\"SITUS\",tblREGASSLookup[[#This Row],[Alloc]])","v":"OTHER"},"CUST"]
[{"$f":"CONCATENATE(tblREGASSLookup[[#This Row],[Primary Account]],tblREGASSLookup[[#This Row],[Primary Name]],tblREGASSLookup[[#This Row],[Secondary Acct]],tblREGASSLookup[[#This Row],[Secondary  Name]],tblREGASSLookup[[#This Row],[Alloc4FUNC]])","v":"1823930DSR COSTS NOT AMORT102957CATEGORY 1 - WYOMING - 2008OTHER"},1823930,"DSR COSTS NOT AMORT",102957,"CATEGORY 1 - WYOMING - 2008","OTHER",null,{"$f":"IF(OR(tblREGASSLookup[[#This Row],[Alloc]]=\"IDU\",tblREGASSLookup[[#This Row],[Alloc]]=\"OR\",tblREGASSLookup[[#This Row],[Alloc]]=\"UT\",tblREGASSLookup[[#This Row],[Alloc]]=\"WYU\",tblREGASSLookup[[#This Row],[Alloc]]=\"WYP\",tblREGASSLookup[[#This Row],[Alloc]]=\"CA\",tblREGASSLookup[[#This Row],[Alloc]]=\"WA\"),\"SITUS\",tblREGASSLookup[[#This Row],[Alloc]])","v":"OTHER"},"CUST"]
[{"$f":"CONCATENATE(tblREGASSLookup[[#This Row],[Primary Account]],tblREGASSLookup[[#This Row],[Primary Name]],tblREGASSLookup[[#This Row],[Secondary Acct]],tblREGASSLookup[[#This Row],[Secondary  Name]],tblREGASSLookup[[#This Row],[Alloc4FUNC]])","v":"1823930DSR COSTS NOT AMORT102958CATEGORY 2 - WYOMING - 2008OTHER"},1823930,"DSR COSTS NOT AMORT",102958,"CATEGORY 2 - WYOMING - 2008","OTHER",null,{"$f":"IF(OR(tblREGASSLookup[[#This Row],[Alloc]]=\"IDU\",tblREGASSLookup[[#This Row],[Alloc]]=\"OR\",tblREGASSLookup[[#This Row],[Alloc]]=\"UT\",tblREGASSLookup[[#This Row],[Alloc]]=\"WYU\",tblREGASSLookup[[#This Row],[Alloc]]=\"WYP\",tblREGASSLookup[[#This Row],[Alloc]]=\"CA\",tblREGASSLookup[[#This Row],[Alloc]]=\"WA\"),\"SITUS\",tblREGASSLookup[[#This Row],[Alloc]])","v":"OTHER"},"CUST"]
[{"$f":"CONCATENATE(tblREGASSLookup[[#This Row],[Primary Account]],tblREGASSLookup[[#This Row],[Primary Name]],tblREGASSLookup[[#This Row],[Secondary Acct]],tblREGASSLookup[[#This Row],[Secondary  Name]],tblREGASSLookup[[#This Row],[Alloc4FUNC]])","v":"1823930DSR COSTS NOT AMORT102959CATEGORY 3 - WYOMING - 2008OTHER"},1823930,"DSR COSTS NOT AMORT",102959,"CATEGORY 3 - WYOMING - 2008","OTHER",null,{"$f":"IF(OR(tblREGASSLookup[[#This Row],[Alloc]]=\"IDU\",tblREGASSLookup[[#This Row],[Alloc]]=\"OR\",tblREGASSLookup[[#This Row],[Alloc]]=\"UT\",tblREGASSLookup[[#This Row],[Alloc]]=\"WYU\",tblREGASSLookup[[#This Row],[Alloc]]=\"WYP\",tblREGASSLookup[[#This Row],[Alloc]]=\"CA\",tblREGASSLookup[[#This Row],[Alloc]]=\"WA\"),\"SITUS\",tblREGASSLookup[[#This Row],[Alloc]])","v":"OTHER"},"CUST"]
[{"$f":"CONCATENATE(tblREGASSLookup[[#This Row],[Primary Account]],tblREGASSLookup[[#This Row],[Primary Name]],tblREGASSLookup[[#This Row],[Secondary Acct]],tblREGASSLookup[[#This Row],[Secondary  Name]],tblREGASSLookup[[#This Row],[Alloc4FUNC]])","v":"1823930DSR COSTS NOT AMORT102966ENERGY FINANSWER - ID/UT 2009OTHER"},1823930,"DSR COSTS NOT AMORT",102966,"ENERGY FINANSWER - ID/UT 2009","OTHER",null,{"$f":"IF(OR(tblREGASSLookup[[#This Row],[Alloc]]=\"IDU\",tblREGASSLookup[[#This Row],[Alloc]]=\"OR\",tblREGASSLookup[[#This Row],[Alloc]]=\"UT\",tblREGASSLookup[[#This Row],[Alloc]]=\"WYU\",tblREGASSLookup[[#This Row],[Alloc]]=\"WYP\",tblREGASSLookup[[#This Row],[Alloc]]=\"CA\",tblREGASSLookup[[#This Row],[Alloc]]=\"WA\"),\"SITUS\",tblREGASSLookup[[#This Row],[Alloc]])","v":"OTHER"},"CUST"]
[{"$f":"CONCATENATE(tblREGASSLookup[[#This Row],[Primary Account]],tblREGASSLookup[[#This Row],[Primary Name]],tblREGASSLookup[[#This Row],[Secondary Acct]],tblREGASSLookup[[#This Row],[Secondary  Name]],tblREGASSLookup[[#This Row],[Alloc4FUNC]])","v":"1823930DSR COSTS NOT AMORT102967INDUSTRIAL FINANSWER - ID-UT 2009OTHER"},1823930,"DSR COSTS NOT AMORT",102967,"INDUSTRIAL FINANSWER - ID-UT 2009","OTHER",null,{"$f":"IF(OR(tblREGASSLookup[[#This Row],[Alloc]]=\"IDU\",tblREGASSLookup[[#This Row],[Alloc]]=\"OR\",tblREGASSLookup[[#This Row],[Alloc]]=\"UT\",tblREGASSLookup[[#This Row],[Alloc]]=\"WYU\",tblREGASSLookup[[#This Row],[Alloc]]=\"WYP\",tblREGASSLookup[[#This Row],[Alloc]]=\"CA\",tblREGASSLookup[[#This Row],[Alloc]]=\"WA\"),\"SITUS\",tblREGASSLookup[[#This Row],[Alloc]])","v":"OTHER"},"CUST"]
[{"$f":"CONCATENATE(tblREGASSLookup[[#This Row],[Primary Account]],tblREGASSLookup[[#This Row],[Primary Name]],tblREGASSLookup[[#This Row],[Secondary Acct]],tblREGASSLookup[[#This Row],[Secondary  Name]],tblREGASSLookup[[#This Row],[Alloc4FUNC]])","v":"1823930DSR COSTS NOT AMORT102968IRRIGATION INTERRUPTIBLE ID-UT 2009OTHER"},1823930,"DSR COSTS NOT AMORT",102968,"IRRIGATION INTERRUPTIBLE ID-UT 2009","OTHER",null,{"$f":"IF(OR(tblREGASSLookup[[#This Row],[Alloc]]=\"IDU\",tblREGASSLookup[[#This Row],[Alloc]]=\"OR\",tblREGASSLookup[[#This Row],[Alloc]]=\"UT\",tblREGASSLookup[[#This Row],[Alloc]]=\"WYU\",tblREGASSLookup[[#This Row],[Alloc]]=\"WYP\",tblREGASSLookup[[#This Row],[Alloc]]=\"CA\",tblREGASSLookup[[#This Row],[Alloc]]=\"WA\"),\"SITUS\",tblREGASSLookup[[#This Row],[Alloc]])","v":"OTHER"},"CUST"]
[{"$f":"CONCATENATE(tblREGASSLookup[[#This Row],[Primary Account]],tblREGASSLookup[[#This Row],[Primary Name]],tblREGASSLookup[[#This Row],[Secondary Acct]],tblREGASSLookup[[#This Row],[Secondary  Name]],tblREGASSLookup[[#This Row],[Alloc4FUNC]])","v":"1823930DSR COSTS NOT AMORT102969LOW INCOME WZ  - ID-UT 2009OTHER"},1823930,"DSR COSTS NOT AMORT",102969,"LOW INCOME WZ  - ID-UT 2009","OTHER",null,{"$f":"IF(OR(tblREGASSLookup[[#This Row],[Alloc]]=\"IDU\",tblREGASSLookup[[#This Row],[Alloc]]=\"OR\",tblREGASSLookup[[#This Row],[Alloc]]=\"UT\",tblREGASSLookup[[#This Row],[Alloc]]=\"WYU\",tblREGASSLookup[[#This Row],[Alloc]]=\"WYP\",tblREGASSLookup[[#This Row],[Alloc]]=\"CA\",tblREGASSLookup[[#This Row],[Alloc]]=\"WA\"),\"SITUS\",tblREGASSLookup[[#This Row],[Alloc]])","v":"OTHER"},"CUST"]
[{"$f":"CONCATENATE(tblREGASSLookup[[#This Row],[Primary Account]],tblREGASSLookup[[#This Row],[Primary Name]],tblREGASSLookup[[#This Row],[Secondary Acct]],tblREGASSLookup[[#This Row],[Secondary  Name]],tblREGASSLookup[[#This Row],[Alloc4FUNC]])","v":"1823930DSR COSTS NOT AMORT102970NEEA - IDAHO - UTAH 2009OTHER"},1823930,"DSR COSTS NOT AMORT",102970,"NEEA - IDAHO - UTAH 2009","OTHER",null,{"$f":"IF(OR(tblREGASSLookup[[#This Row],[Alloc]]=\"IDU\",tblREGASSLookup[[#This Row],[Alloc]]=\"OR\",tblREGASSLookup[[#This Row],[Alloc]]=\"UT\",tblREGASSLookup[[#This Row],[Alloc]]=\"WYU\",tblREGASSLookup[[#This Row],[Alloc]]=\"WYP\",tblREGASSLookup[[#This Row],[Alloc]]=\"CA\",tblREGASSLookup[[#This Row],[Alloc]]=\"WA\"),\"SITUS\",tblREGASSLookup[[#This Row],[Alloc]])","v":"OTHER"},"CUST"]
[{"$f":"CONCATENATE(tblREGASSLookup[[#This Row],[Primary Account]],tblREGASSLookup[[#This Row],[Primary Name]],tblREGASSLookup[[#This Row],[Secondary Acct]],tblREGASSLookup[[#This Row],[Secondary  Name]],tblREGASSLookup[[#This Row],[Alloc4FUNC]])","v":"1823930DSR COSTS NOT AMORT102971REFRIGERATOR RECYCLING PGM - ID-UT 2009OTHER"},1823930,"DSR COSTS NOT AMORT",102971,"REFRIGERATOR RECYCLING PGM - ID-UT 2009","OTHER",null,{"$f":"IF(OR(tblREGASSLookup[[#This Row],[Alloc]]=\"IDU\",tblREGASSLookup[[#This Row],[Alloc]]=\"OR\",tblREGASSLookup[[#This Row],[Alloc]]=\"UT\",tblREGASSLookup[[#This Row],[Alloc]]=\"WYU\",tblREGASSLookup[[#This Row],[Alloc]]=\"WYP\",tblREGASSLookup[[#This Row],[Alloc]]=\"CA\",tblREGASSLookup[[#This Row],[Alloc]]=\"WA\"),\"SITUS\",tblREGASSLookup[[#This Row],[Alloc]])","v":"OTHER"},"CUST"]
[{"$f":"CONCATENATE(tblREGASSLookup[[#This Row],[Primary Account]],tblREGASSLookup[[#This Row],[Primary Name]],tblREGASSLookup[[#This Row],[Secondary Acct]],tblREGASSLookup[[#This Row],[Secondary  Name]],tblREGASSLookup[[#This Row],[Alloc4FUNC]])","v":"1823930DSR COSTS NOT AMORT102972COMMERCIAL FINANSWER EXPR - ID-UT 2009OTHER"},1823930,"DSR COSTS NOT AMORT",102972,"COMMERCIAL FINANSWER EXPR - ID-UT 2009","OTHER",null,{"$f":"IF(OR(tblREGASSLookup[[#This Row],[Alloc]]=\"IDU\",tblREGASSLookup[[#This Row],[Alloc]]=\"OR\",tblREGASSLookup[[#This Row],[Alloc]]=\"UT\",tblREGASSLookup[[#This Row],[Alloc]]=\"WYU\",tblREGASSLookup[[#This Row],[Alloc]]=\"WYP\",tblREGASSLookup[[#This Row],[Alloc]]=\"CA\",tblREGASSLookup[[#This Row],[Alloc]]=\"WA\"),\"SITUS\",tblREGASSLookup[[#This Row],[Alloc]])","v":"OTHER"},"CUST"]
[{"$f":"CONCATENATE(tblREGASSLookup[[#This Row],[Primary Account]],tblREGASSLookup[[#This Row],[Primary Name]],tblREGASSLookup[[#This Row],[Secondary Acct]],tblREGASSLookup[[#This Row],[Secondary  Name]],tblREGASSLookup[[#This Row],[Alloc4FUNC]])","v":"1823930DSR COSTS NOT AMORT102973INDUSTRIAL FINANSWER EXPR - ID-UT 2009OTHER"},1823930,"DSR COSTS NOT AMORT",102973,"INDUSTRIAL FINANSWER EXPR - ID-UT 2009","OTHER",null,{"$f":"IF(OR(tblREGASSLookup[[#This Row],[Alloc]]=\"IDU\",tblREGASSLookup[[#This Row],[Alloc]]=\"OR\",tblREGASSLookup[[#This Row],[Alloc]]=\"UT\",tblREGASSLookup[[#This Row],[Alloc]]=\"WYU\",tblREGASSLookup[[#This Row],[Alloc]]=\"WYP\",tblREGASSLookup[[#This Row],[Alloc]]=\"CA\",tblREGASSLookup[[#This Row],[Alloc]]=\"WA\"),\"SITUS\",tblREGASSLookup[[#This Row],[Alloc]])","v":"OTHER"},"CUST"]
[{"$f":"CONCATENATE(tblREGASSLookup[[#This Row],[Primary Account]],tblREGASSLookup[[#This Row],[Primary Name]],tblREGASSLookup[[#This Row],[Secondary Acct]],tblREGASSLookup[[#This Row],[Secondary  Name]],tblREGASSLookup[[#This Row],[Alloc4FUNC]])","v":"1823930DSR COSTS NOT AMORT102974IRRIGATION EFFICIENCY PRGRM - ID-UT 2009OTHER"},1823930,"DSR COSTS NOT AMORT",102974,"IRRIGATION EFFICIENCY PRGRM - ID-UT 2009","OTHER",null,{"$f":"IF(OR(tblREGASSLookup[[#This Row],[Alloc]]=\"IDU\",tblREGASSLookup[[#This Row],[Alloc]]=\"OR\",tblREGASSLookup[[#This Row],[Alloc]]=\"UT\",tblREGASSLookup[[#This Row],[Alloc]]=\"WYU\",tblREGASSLookup[[#This Row],[Alloc]]=\"WYP\",tblREGASSLookup[[#This Row],[Alloc]]=\"CA\",tblREGASSLookup[[#This Row],[Alloc]]=\"WA\"),\"SITUS\",tblREGASSLookup[[#This Row],[Alloc]])","v":"OTHER"},"CUST"]
[{"$f":"CONCATENATE(tblREGASSLookup[[#This Row],[Primary Account]],tblREGASSLookup[[#This Row],[Primary Name]],tblREGASSLookup[[#This Row],[Secondary Acct]],tblREGASSLookup[[#This Row],[Secondary  Name]],tblREGASSLookup[[#This Row],[Alloc4FUNC]])","v":"1823930DSR COSTS NOT AMORT102975HOME ENERGY EFFICIENCY INCENTIVE PROG  -OTHER"},1823930,"DSR COSTS NOT AMORT",102975,"HOME ENERGY EFFICIENCY INCENTIVE PROG  -","OTHER",null,{"$f":"IF(OR(tblREGASSLookup[[#This Row],[Alloc]]=\"IDU\",tblREGASSLookup[[#This Row],[Alloc]]=\"OR\",tblREGASSLookup[[#This Row],[Alloc]]=\"UT\",tblREGASSLookup[[#This Row],[Alloc]]=\"WYU\",tblREGASSLookup[[#This Row],[Alloc]]=\"WYP\",tblREGASSLookup[[#This Row],[Alloc]]=\"CA\",tblREGASSLookup[[#This Row],[Alloc]]=\"WA\"),\"SITUS\",tblREGASSLookup[[#This Row],[Alloc]])","v":"OTHER"},"CUST"]
[{"$f":"CONCATENATE(tblREGASSLookup[[#This Row],[Primary Account]],tblREGASSLookup[[#This Row],[Primary Name]],tblREGASSLookup[[#This Row],[Secondary Acct]],tblREGASSLookup[[#This Row],[Secondary  Name]],tblREGASSLookup[[#This Row],[Alloc4FUNC]])","v":"1823930DSR COSTS NOT AMORT103061ENERGY FINANSWER - ID/UT 2010OTHER"},1823930,"DSR COSTS NOT AMORT",103061,"ENERGY FINANSWER - ID/UT 2010","OTHER",null,{"$f":"IF(OR(tblREGASSLookup[[#This Row],[Alloc]]=\"IDU\",tblREGASSLookup[[#This Row],[Alloc]]=\"OR\",tblREGASSLookup[[#This Row],[Alloc]]=\"UT\",tblREGASSLookup[[#This Row],[Alloc]]=\"WYU\",tblREGASSLookup[[#This Row],[Alloc]]=\"WYP\",tblREGASSLookup[[#This Row],[Alloc]]=\"CA\",tblREGASSLookup[[#This Row],[Alloc]]=\"WA\"),\"SITUS\",tblREGASSLookup[[#This Row],[Alloc]])","v":"OTHER"},"CUST"]
[{"$f":"CONCATENATE(tblREGASSLookup[[#This Row],[Primary Account]],tblREGASSLookup[[#This Row],[Primary Name]],tblREGASSLookup[[#This Row],[Secondary Acct]],tblREGASSLookup[[#This Row],[Secondary  Name]],tblREGASSLookup[[#This Row],[Alloc4FUNC]])","v":"1823930DSR COSTS NOT AMORT103062INDUSTRIAL FINANSWER - ID-UT 2010OTHER"},1823930,"DSR COSTS NOT AMORT",103062,"INDUSTRIAL FINANSWER - ID-UT 2010","OTHER",null,{"$f":"IF(OR(tblREGASSLookup[[#This Row],[Alloc]]=\"IDU\",tblREGASSLookup[[#This Row],[Alloc]]=\"OR\",tblREGASSLookup[[#This Row],[Alloc]]=\"UT\",tblREGASSLookup[[#This Row],[Alloc]]=\"WYU\",tblREGASSLookup[[#This Row],[Alloc]]=\"WYP\",tblREGASSLookup[[#This Row],[Alloc]]=\"CA\",tblREGASSLookup[[#This Row],[Alloc]]=\"WA\"),\"SITUS\",tblREGASSLookup[[#This Row],[Alloc]])","v":"OTHER"},"CUST"]
[{"$f":"CONCATENATE(tblREGASSLookup[[#This Row],[Primary Account]],tblREGASSLookup[[#This Row],[Primary Name]],tblREGASSLookup[[#This Row],[Secondary Acct]],tblREGASSLookup[[#This Row],[Secondary  Name]],tblREGASSLookup[[#This Row],[Alloc4FUNC]])","v":"1823930DSR COSTS NOT AMORT103063IRRIGATION INTERRUPTIBLE ID-UT 2010OTHER"},1823930,"DSR COSTS NOT AMORT",103063,"IRRIGATION INTERRUPTIBLE ID-UT 2010","OTHER",null,{"$f":"IF(OR(tblREGASSLookup[[#This Row],[Alloc]]=\"IDU\",tblREGASSLookup[[#This Row],[Alloc]]=\"OR\",tblREGASSLookup[[#This Row],[Alloc]]=\"UT\",tblREGASSLookup[[#This Row],[Alloc]]=\"WYU\",tblREGASSLookup[[#This Row],[Alloc]]=\"WYP\",tblREGASSLookup[[#This Row],[Alloc]]=\"CA\",tblREGASSLookup[[#This Row],[Alloc]]=\"WA\"),\"SITUS\",tblREGASSLookup[[#This Row],[Alloc]])","v":"OTHER"},"CUST"]
[{"$f":"CONCATENATE(tblREGASSLookup[[#This Row],[Primary Account]],tblREGASSLookup[[#This Row],[Primary Name]],tblREGASSLookup[[#This Row],[Secondary Acct]],tblREGASSLookup[[#This Row],[Secondary  Name]],tblREGASSLookup[[#This Row],[Alloc4FUNC]])","v":"1823930DSR COSTS NOT AMORT103064LOW INCOME WZ  - ID-UT 2010OTHER"},1823930,"DSR COSTS NOT AMORT",103064,"LOW INCOME WZ  - ID-UT 2010","OTHER",null,{"$f":"IF(OR(tblREGASSLookup[[#This Row],[Alloc]]=\"IDU\",tblREGASSLookup[[#This Row],[Alloc]]=\"OR\",tblREGASSLookup[[#This Row],[Alloc]]=\"UT\",tblREGASSLookup[[#This Row],[Alloc]]=\"WYU\",tblREGASSLookup[[#This Row],[Alloc]]=\"WYP\",tblREGASSLookup[[#This Row],[Alloc]]=\"CA\",tblREGASSLookup[[#This Row],[Alloc]]=\"WA\"),\"SITUS\",tblREGASSLookup[[#This Row],[Alloc]])","v":"OTHER"},"CUST"]
[{"$f":"CONCATENATE(tblREGASSLookup[[#This Row],[Primary Account]],tblREGASSLookup[[#This Row],[Primary Name]],tblREGASSLookup[[#This Row],[Secondary Acct]],tblREGASSLookup[[#This Row],[Secondary  Name]],tblREGASSLookup[[#This Row],[Alloc4FUNC]])","v":"1823930DSR COSTS NOT AMORT103065NEEA - IDAHO - UTAH 2010OTHER"},1823930,"DSR COSTS NOT AMORT",103065,"NEEA - IDAHO - UTAH 2010","OTHER",null,{"$f":"IF(OR(tblREGASSLookup[[#This Row],[Alloc]]=\"IDU\",tblREGASSLookup[[#This Row],[Alloc]]=\"OR\",tblREGASSLookup[[#This Row],[Alloc]]=\"UT\",tblREGASSLookup[[#This Row],[Alloc]]=\"WYU\",tblREGASSLookup[[#This Row],[Alloc]]=\"WYP\",tblREGASSLookup[[#This Row],[Alloc]]=\"CA\",tblREGASSLookup[[#This Row],[Alloc]]=\"WA\"),\"SITUS\",tblREGASSLookup[[#This Row],[Alloc]])","v":"OTHER"},"CUST"]
[{"$f":"CONCATENATE(tblREGASSLookup[[#This Row],[Primary Account]],tblREGASSLookup[[#This Row],[Primary Name]],tblREGASSLookup[[#This Row],[Secondary Acct]],tblREGASSLookup[[#This Row],[Secondary  Name]],tblREGASSLookup[[#This Row],[Alloc4FUNC]])","v":"1823930DSR COSTS NOT AMORT103066REFRIGERATOR RECYCLING PGM - ID-UT 2010OTHER"},1823930,"DSR COSTS NOT AMORT",103066,"REFRIGERATOR RECYCLING PGM - ID-UT 2010","OTHER",null,{"$f":"IF(OR(tblREGASSLookup[[#This Row],[Alloc]]=\"IDU\",tblREGASSLookup[[#This Row],[Alloc]]=\"OR\",tblREGASSLookup[[#This Row],[Alloc]]=\"UT\",tblREGASSLookup[[#This Row],[Alloc]]=\"WYU\",tblREGASSLookup[[#This Row],[Alloc]]=\"WYP\",tblREGASSLookup[[#This Row],[Alloc]]=\"CA\",tblREGASSLookup[[#This Row],[Alloc]]=\"WA\"),\"SITUS\",tblREGASSLookup[[#This Row],[Alloc]])","v":"OTHER"},"CUST"]
[{"$f":"CONCATENATE(tblREGASSLookup[[#This Row],[Primary Account]],tblREGASSLookup[[#This Row],[Primary Name]],tblREGASSLookup[[#This Row],[Secondary Acct]],tblREGASSLookup[[#This Row],[Secondary  Name]],tblREGASSLookup[[#This Row],[Alloc4FUNC]])","v":"1823930DSR COSTS NOT AMORT103067COMMERCIAL FINANSWER EXPR - ID-UT 2010OTHER"},1823930,"DSR COSTS NOT AMORT",103067,"COMMERCIAL FINANSWER EXPR - ID-UT 2010","OTHER",null,{"$f":"IF(OR(tblREGASSLookup[[#This Row],[Alloc]]=\"IDU\",tblREGASSLookup[[#This Row],[Alloc]]=\"OR\",tblREGASSLookup[[#This Row],[Alloc]]=\"UT\",tblREGASSLookup[[#This Row],[Alloc]]=\"WYU\",tblREGASSLookup[[#This Row],[Alloc]]=\"WYP\",tblREGASSLookup[[#This Row],[Alloc]]=\"CA\",tblREGASSLookup[[#This Row],[Alloc]]=\"WA\"),\"SITUS\",tblREGASSLookup[[#This Row],[Alloc]])","v":"OTHER"},"CUST"]
[{"$f":"CONCATENATE(tblREGASSLookup[[#This Row],[Primary Account]],tblREGASSLookup[[#This Row],[Primary Name]],tblREGASSLookup[[#This Row],[Secondary Acct]],tblREGASSLookup[[#This Row],[Secondary  Name]],tblREGASSLookup[[#This Row],[Alloc4FUNC]])","v":"1823930DSR COSTS NOT AMORT103068INDUSTRIAL FINANSWER EXPR - ID-UT 2010OTHER"},1823930,"DSR COSTS NOT AMORT",103068,"INDUSTRIAL FINANSWER EXPR - ID-UT 2010","OTHER",null,{"$f":"IF(OR(tblREGASSLookup[[#This Row],[Alloc]]=\"IDU\",tblREGASSLookup[[#This Row],[Alloc]]=\"OR\",tblREGASSLookup[[#This Row],[Alloc]]=\"UT\",tblREGASSLookup[[#This Row],[Alloc]]=\"WYU\",tblREGASSLookup[[#This Row],[Alloc]]=\"WYP\",tblREGASSLookup[[#This Row],[Alloc]]=\"CA\",tblREGASSLookup[[#This Row],[Alloc]]=\"WA\"),\"SITUS\",tblREGASSLookup[[#This Row],[Alloc]])","v":"OTHER"},"CUST"]
[{"$f":"CONCATENATE(tblREGASSLookup[[#This Row],[Primary Account]],tblREGASSLookup[[#This Row],[Primary Name]],tblREGASSLookup[[#This Row],[Secondary Acct]],tblREGASSLookup[[#This Row],[Secondary  Name]],tblREGASSLookup[[#This Row],[Alloc4FUNC]])","v":"1823930DSR COSTS NOT AMORT103069IRRIGATION EFFICIENCY PRGRM - ID-UT 2010OTHER"},1823930,"DSR COSTS NOT AMORT",103069,"IRRIGATION EFFICIENCY PRGRM - ID-UT 2010","OTHER",null,{"$f":"IF(OR(tblREGASSLookup[[#This Row],[Alloc]]=\"IDU\",tblREGASSLookup[[#This Row],[Alloc]]=\"OR\",tblREGASSLookup[[#This Row],[Alloc]]=\"UT\",tblREGASSLookup[[#This Row],[Alloc]]=\"WYU\",tblREGASSLookup[[#This Row],[Alloc]]=\"WYP\",tblREGASSLookup[[#This Row],[Alloc]]=\"CA\",tblREGASSLookup[[#This Row],[Alloc]]=\"WA\"),\"SITUS\",tblREGASSLookup[[#This Row],[Alloc]])","v":"OTHER"},"CUST"]
[{"$f":"CONCATENATE(tblREGASSLookup[[#This Row],[Primary Account]],tblREGASSLookup[[#This Row],[Primary Name]],tblREGASSLookup[[#This Row],[Secondary Acct]],tblREGASSLookup[[#This Row],[Secondary  Name]],tblREGASSLookup[[#This Row],[Alloc4FUNC]])","v":"1823930DSR COSTS NOT AMORT103070HOME ENERGY EFFICIENCY INCENTIVE PROG  -OTHER"},1823930,"DSR COSTS NOT AMORT",103070,"HOME ENERGY EFFICIENCY INCENTIVE PROG  -","OTHER",null,{"$f":"IF(OR(tblREGASSLookup[[#This Row],[Alloc]]=\"IDU\",tblREGASSLookup[[#This Row],[Alloc]]=\"OR\",tblREGASSLookup[[#This Row],[Alloc]]=\"UT\",tblREGASSLookup[[#This Row],[Alloc]]=\"WYU\",tblREGASSLookup[[#This Row],[Alloc]]=\"WYP\",tblREGASSLookup[[#This Row],[Alloc]]=\"CA\",tblREGASSLookup[[#This Row],[Alloc]]=\"WA\"),\"SITUS\",tblREGASSLookup[[#This Row],[Alloc]])","v":"OTHER"},"CUST"]
[{"$f":"CONCATENATE(tblREGASSLookup[[#This Row],[Primary Account]],tblREGASSLookup[[#This Row],[Primary Name]],tblREGASSLookup[[#This Row],[Secondary Acct]],tblREGASSLookup[[#This Row],[Secondary  Name]],tblREGASSLookup[[#This Row],[Alloc4FUNC]])","v":"1823930DSR COSTS NOT AMORT103171ENERGY FINANSWER - ID/UT 2011OTHER"},1823930,"DSR COSTS NOT AMORT",103171,"ENERGY FINANSWER - ID/UT 2011","OTHER",null,{"$f":"IF(OR(tblREGASSLookup[[#This Row],[Alloc]]=\"IDU\",tblREGASSLookup[[#This Row],[Alloc]]=\"OR\",tblREGASSLookup[[#This Row],[Alloc]]=\"UT\",tblREGASSLookup[[#This Row],[Alloc]]=\"WYU\",tblREGASSLookup[[#This Row],[Alloc]]=\"WYP\",tblREGASSLookup[[#This Row],[Alloc]]=\"CA\",tblREGASSLookup[[#This Row],[Alloc]]=\"WA\"),\"SITUS\",tblREGASSLookup[[#This Row],[Alloc]])","v":"OTHER"},"CUST"]
[{"$f":"CONCATENATE(tblREGASSLookup[[#This Row],[Primary Account]],tblREGASSLookup[[#This Row],[Primary Name]],tblREGASSLookup[[#This Row],[Secondary Acct]],tblREGASSLookup[[#This Row],[Secondary  Name]],tblREGASSLookup[[#This Row],[Alloc4FUNC]])","v":"1823930DSR COSTS NOT AMORT103172INDUSTRIAL FINANSWER - ID-UT 2011OTHER"},1823930,"DSR COSTS NOT AMORT",103172,"INDUSTRIAL FINANSWER - ID-UT 2011","OTHER",null,{"$f":"IF(OR(tblREGASSLookup[[#This Row],[Alloc]]=\"IDU\",tblREGASSLookup[[#This Row],[Alloc]]=\"OR\",tblREGASSLookup[[#This Row],[Alloc]]=\"UT\",tblREGASSLookup[[#This Row],[Alloc]]=\"WYU\",tblREGASSLookup[[#This Row],[Alloc]]=\"WYP\",tblREGASSLookup[[#This Row],[Alloc]]=\"CA\",tblREGASSLookup[[#This Row],[Alloc]]=\"WA\"),\"SITUS\",tblREGASSLookup[[#This Row],[Alloc]])","v":"OTHER"},"CUST"]
[{"$f":"CONCATENATE(tblREGASSLookup[[#This Row],[Primary Account]],tblREGASSLookup[[#This Row],[Primary Name]],tblREGASSLookup[[#This Row],[Secondary Acct]],tblREGASSLookup[[#This Row],[Secondary  Name]],tblREGASSLookup[[#This Row],[Alloc4FUNC]])","v":"1823930DSR COSTS NOT AMORT103173IRRIGATION INTERRUPTIBLE ID-UT 2011OTHER"},1823930,"DSR COSTS NOT AMORT",103173,"IRRIGATION INTERRUPTIBLE ID-UT 2011","OTHER",null,{"$f":"IF(OR(tblREGASSLookup[[#This Row],[Alloc]]=\"IDU\",tblREGASSLookup[[#This Row],[Alloc]]=\"OR\",tblREGASSLookup[[#This Row],[Alloc]]=\"UT\",tblREGASSLookup[[#This Row],[Alloc]]=\"WYU\",tblREGASSLookup[[#This Row],[Alloc]]=\"WYP\",tblREGASSLookup[[#This Row],[Alloc]]=\"CA\",tblREGASSLookup[[#This Row],[Alloc]]=\"WA\"),\"SITUS\",tblREGASSLookup[[#This Row],[Alloc]])","v":"OTHER"},"CUST"]
[{"$f":"CONCATENATE(tblREGASSLookup[[#This Row],[Primary Account]],tblREGASSLookup[[#This Row],[Primary Name]],tblREGASSLookup[[#This Row],[Secondary Acct]],tblREGASSLookup[[#This Row],[Secondary  Name]],tblREGASSLookup[[#This Row],[Alloc4FUNC]])","v":"1823930DSR COSTS NOT AMORT103174LOW INCOME WZ  - ID-UT 2011OTHER"},1823930,"DSR COSTS NOT AMORT",103174,"LOW INCOME WZ  - ID-UT 2011","OTHER",null,{"$f":"IF(OR(tblREGASSLookup[[#This Row],[Alloc]]=\"IDU\",tblREGASSLookup[[#This Row],[Alloc]]=\"OR\",tblREGASSLookup[[#This Row],[Alloc]]=\"UT\",tblREGASSLookup[[#This Row],[Alloc]]=\"WYU\",tblREGASSLookup[[#This Row],[Alloc]]=\"WYP\",tblREGASSLookup[[#This Row],[Alloc]]=\"CA\",tblREGASSLookup[[#This Row],[Alloc]]=\"WA\"),\"SITUS\",tblREGASSLookup[[#This Row],[Alloc]])","v":"OTHER"},"CUST"]
[{"$f":"CONCATENATE(tblREGASSLookup[[#This Row],[Primary Account]],tblREGASSLookup[[#This Row],[Primary Name]],tblREGASSLookup[[#This Row],[Secondary Acct]],tblREGASSLookup[[#This Row],[Secondary  Name]],tblREGASSLookup[[#This Row],[Alloc4FUNC]])","v":"1823930DSR COSTS NOT AMORT103176REFRIGERATOR RECYCLING PGM - ID-UT 2011OTHER"},1823930,"DSR COSTS NOT AMORT",103176,"REFRIGERATOR RECYCLING PGM - ID-UT 2011","OTHER",null,{"$f":"IF(OR(tblREGASSLookup[[#This Row],[Alloc]]=\"IDU\",tblREGASSLookup[[#This Row],[Alloc]]=\"OR\",tblREGASSLookup[[#This Row],[Alloc]]=\"UT\",tblREGASSLookup[[#This Row],[Alloc]]=\"WYU\",tblREGASSLookup[[#This Row],[Alloc]]=\"WYP\",tblREGASSLookup[[#This Row],[Alloc]]=\"CA\",tblREGASSLookup[[#This Row],[Alloc]]=\"WA\"),\"SITUS\",tblREGASSLookup[[#This Row],[Alloc]])","v":"OTHER"},"CUST"]
[{"$f":"CONCATENATE(tblREGASSLookup[[#This Row],[Primary Account]],tblREGASSLookup[[#This Row],[Primary Name]],tblREGASSLookup[[#This Row],[Secondary Acct]],tblREGASSLookup[[#This Row],[Secondary  Name]],tblREGASSLookup[[#This Row],[Alloc4FUNC]])","v":"1823930DSR COSTS NOT AMORT103177COMMERCIAL FINANSWER EXPR - ID-UT 2011OTHER"},1823930,"DSR COSTS NOT AMORT",103177,"COMMERCIAL FINANSWER EXPR - ID-UT 2011","OTHER",null,{"$f":"IF(OR(tblREGASSLookup[[#This Row],[Alloc]]=\"IDU\",tblREGASSLookup[[#This Row],[Alloc]]=\"OR\",tblREGASSLookup[[#This Row],[Alloc]]=\"UT\",tblREGASSLookup[[#This Row],[Alloc]]=\"WYU\",tblREGASSLookup[[#This Row],[Alloc]]=\"WYP\",tblREGASSLookup[[#This Row],[Alloc]]=\"CA\",tblREGASSLookup[[#This Row],[Alloc]]=\"WA\"),\"SITUS\",tblREGASSLookup[[#This Row],[Alloc]])","v":"OTHER"},"CUST"]
[{"$f":"CONCATENATE(tblREGASSLookup[[#This Row],[Primary Account]],tblREGASSLookup[[#This Row],[Primary Name]],tblREGASSLookup[[#This Row],[Secondary Acct]],tblREGASSLookup[[#This Row],[Secondary  Name]],tblREGASSLookup[[#This Row],[Alloc4FUNC]])","v":"1823930DSR COSTS NOT AMORT103178INDUSTRIAL FINANSWER EXPR - ID-UT 2011OTHER"},1823930,"DSR COSTS NOT AMORT",103178,"INDUSTRIAL FINANSWER EXPR - ID-UT 2011","OTHER",null,{"$f":"IF(OR(tblREGASSLookup[[#This Row],[Alloc]]=\"IDU\",tblREGASSLookup[[#This Row],[Alloc]]=\"OR\",tblREGASSLookup[[#This Row],[Alloc]]=\"UT\",tblREGASSLookup[[#This Row],[Alloc]]=\"WYU\",tblREGASSLookup[[#This Row],[Alloc]]=\"WYP\",tblREGASSLookup[[#This Row],[Alloc]]=\"CA\",tblREGASSLookup[[#This Row],[Alloc]]=\"WA\"),\"SITUS\",tblREGASSLookup[[#This Row],[Alloc]])","v":"OTHER"},"CUST"]
[{"$f":"CONCATENATE(tblREGASSLookup[[#This Row],[Primary Account]],tblREGASSLookup[[#This Row],[Primary Name]],tblREGASSLookup[[#This Row],[Secondary Acct]],tblREGASSLookup[[#This Row],[Secondary  Name]],tblREGASSLookup[[#This Row],[Alloc4FUNC]])","v":"1823930DSR COSTS NOT AMORT103179IRRIGATION EFFICIENCY PRGRM - ID-UT 2011OTHER"},1823930,"DSR COSTS NOT AMORT",103179,"IRRIGATION EFFICIENCY PRGRM - ID-UT 2011","OTHER",null,{"$f":"IF(OR(tblREGASSLookup[[#This Row],[Alloc]]=\"IDU\",tblREGASSLookup[[#This Row],[Alloc]]=\"OR\",tblREGASSLookup[[#This Row],[Alloc]]=\"UT\",tblREGASSLookup[[#This Row],[Alloc]]=\"WYU\",tblREGASSLookup[[#This Row],[Alloc]]=\"WYP\",tblREGASSLookup[[#This Row],[Alloc]]=\"CA\",tblREGASSLookup[[#This Row],[Alloc]]=\"WA\"),\"SITUS\",tblREGASSLookup[[#This Row],[Alloc]])","v":"OTHER"},"CUST"]
[{"$f":"CONCATENATE(tblREGASSLookup[[#This Row],[Primary Account]],tblREGASSLookup[[#This Row],[Primary Name]],tblREGASSLookup[[#This Row],[Secondary Acct]],tblREGASSLookup[[#This Row],[Secondary  Name]],tblREGASSLookup[[#This Row],[Alloc4FUNC]])","v":"1823930DSR COSTS NOT AMORT103180HOME ENERGY EFFICIENCY INCENTIVE PROG  -OTHER"},1823930,"DSR COSTS NOT AMORT",103180,"HOME ENERGY EFFICIENCY INCENTIVE PROG  -","OTHER",null,{"$f":"IF(OR(tblREGASSLookup[[#This Row],[Alloc]]=\"IDU\",tblREGASSLookup[[#This Row],[Alloc]]=\"OR\",tblREGASSLookup[[#This Row],[Alloc]]=\"UT\",tblREGASSLookup[[#This Row],[Alloc]]=\"WYU\",tblREGASSLookup[[#This Row],[Alloc]]=\"WYP\",tblREGASSLookup[[#This Row],[Alloc]]=\"CA\",tblREGASSLookup[[#This Row],[Alloc]]=\"WA\"),\"SITUS\",tblREGASSLookup[[#This Row],[Alloc]])","v":"OTHER"},"CUST"]
[{"$f":"CONCATENATE(tblREGASSLookup[[#This Row],[Primary Account]],tblREGASSLookup[[#This Row],[Primary Name]],tblREGASSLookup[[#This Row],[Secondary Acct]],tblREGASSLookup[[#This Row],[Secondary  Name]],tblREGASSLookup[[#This Row],[Alloc4FUNC]])","v":"1823930DSR COSTS NOT AMORT103312ENERGY FINANSWER - ID 2012OTHER"},1823930,"DSR COSTS NOT AMORT",103312,"ENERGY FINANSWER - ID 2012","OTHER",null,{"$f":"IF(OR(tblREGASSLookup[[#This Row],[Alloc]]=\"IDU\",tblREGASSLookup[[#This Row],[Alloc]]=\"OR\",tblREGASSLookup[[#This Row],[Alloc]]=\"UT\",tblREGASSLookup[[#This Row],[Alloc]]=\"WYU\",tblREGASSLookup[[#This Row],[Alloc]]=\"WYP\",tblREGASSLookup[[#This Row],[Alloc]]=\"CA\",tblREGASSLookup[[#This Row],[Alloc]]=\"WA\"),\"SITUS\",tblREGASSLookup[[#This Row],[Alloc]])","v":"OTHER"},"CUST"]
[{"$f":"CONCATENATE(tblREGASSLookup[[#This Row],[Primary Account]],tblREGASSLookup[[#This Row],[Primary Name]],tblREGASSLookup[[#This Row],[Secondary Acct]],tblREGASSLookup[[#This Row],[Secondary  Name]],tblREGASSLookup[[#This Row],[Alloc4FUNC]])","v":"1823930DSR COSTS NOT AMORT103313INDUSTRIAL FINANSWER - ID 2012OTHER"},1823930,"DSR COSTS NOT AMORT",103313,"INDUSTRIAL FINANSWER - ID 2012","OTHER",null,{"$f":"IF(OR(tblREGASSLookup[[#This Row],[Alloc]]=\"IDU\",tblREGASSLookup[[#This Row],[Alloc]]=\"OR\",tblREGASSLookup[[#This Row],[Alloc]]=\"UT\",tblREGASSLookup[[#This Row],[Alloc]]=\"WYU\",tblREGASSLookup[[#This Row],[Alloc]]=\"WYP\",tblREGASSLookup[[#This Row],[Alloc]]=\"CA\",tblREGASSLookup[[#This Row],[Alloc]]=\"WA\"),\"SITUS\",tblREGASSLookup[[#This Row],[Alloc]])","v":"OTHER"},"CUST"]
[{"$f":"CONCATENATE(tblREGASSLookup[[#This Row],[Primary Account]],tblREGASSLookup[[#This Row],[Primary Name]],tblREGASSLookup[[#This Row],[Secondary Acct]],tblREGASSLookup[[#This Row],[Secondary  Name]],tblREGASSLookup[[#This Row],[Alloc4FUNC]])","v":"1823930DSR COSTS NOT AMORT103314IRRIGATION INTERRUPTIBLE- ID 2012OTHER"},1823930,"DSR COSTS NOT AMORT",103314,"IRRIGATION INTERRUPTIBLE- ID 2012","OTHER",null,{"$f":"IF(OR(tblREGASSLookup[[#This Row],[Alloc]]=\"IDU\",tblREGASSLookup[[#This Row],[Alloc]]=\"OR\",tblREGASSLookup[[#This Row],[Alloc]]=\"UT\",tblREGASSLookup[[#This Row],[Alloc]]=\"WYU\",tblREGASSLookup[[#This Row],[Alloc]]=\"WYP\",tblREGASSLookup[[#This Row],[Alloc]]=\"CA\",tblREGASSLookup[[#This Row],[Alloc]]=\"WA\"),\"SITUS\",tblREGASSLookup[[#This Row],[Alloc]])","v":"OTHER"},"CUST"]
[{"$f":"CONCATENATE(tblREGASSLookup[[#This Row],[Primary Account]],tblREGASSLookup[[#This Row],[Primary Name]],tblREGASSLookup[[#This Row],[Secondary Acct]],tblREGASSLookup[[#This Row],[Secondary  Name]],tblREGASSLookup[[#This Row],[Alloc4FUNC]])","v":"1823930DSR COSTS NOT AMORT103315LOW INCOME WZ  - ID- 2012OTHER"},1823930,"DSR COSTS NOT AMORT",103315,"LOW INCOME WZ  - ID- 2012","OTHER",null,{"$f":"IF(OR(tblREGASSLookup[[#This Row],[Alloc]]=\"IDU\",tblREGASSLookup[[#This Row],[Alloc]]=\"OR\",tblREGASSLookup[[#This Row],[Alloc]]=\"UT\",tblREGASSLookup[[#This Row],[Alloc]]=\"WYU\",tblREGASSLookup[[#This Row],[Alloc]]=\"WYP\",tblREGASSLookup[[#This Row],[Alloc]]=\"CA\",tblREGASSLookup[[#This Row],[Alloc]]=\"WA\"),\"SITUS\",tblREGASSLookup[[#This Row],[Alloc]])","v":"OTHER"},"CUST"]
[{"$f":"CONCATENATE(tblREGASSLookup[[#This Row],[Primary Account]],tblREGASSLookup[[#This Row],[Primary Name]],tblREGASSLookup[[#This Row],[Secondary Acct]],tblREGASSLookup[[#This Row],[Secondary  Name]],tblREGASSLookup[[#This Row],[Alloc4FUNC]])","v":"1823930DSR COSTS NOT AMORT103317REFRIGERATOR RECYCLING PGM - ID 2012OTHER"},1823930,"DSR COSTS NOT AMORT",103317,"REFRIGERATOR RECYCLING PGM - ID 2012","OTHER",null,{"$f":"IF(OR(tblREGASSLookup[[#This Row],[Alloc]]=\"IDU\",tblREGASSLookup[[#This Row],[Alloc]]=\"OR\",tblREGASSLookup[[#This Row],[Alloc]]=\"UT\",tblREGASSLookup[[#This Row],[Alloc]]=\"WYU\",tblREGASSLookup[[#This Row],[Alloc]]=\"WYP\",tblREGASSLookup[[#This Row],[Alloc]]=\"CA\",tblREGASSLookup[[#This Row],[Alloc]]=\"WA\"),\"SITUS\",tblREGASSLookup[[#This Row],[Alloc]])","v":"OTHER"},"CUST"]
[{"$f":"CONCATENATE(tblREGASSLookup[[#This Row],[Primary Account]],tblREGASSLookup[[#This Row],[Primary Name]],tblREGASSLookup[[#This Row],[Secondary Acct]],tblREGASSLookup[[#This Row],[Secondary  Name]],tblREGASSLookup[[#This Row],[Alloc4FUNC]])","v":"1823930DSR COSTS NOT AMORT103318COMMERCIAL FINANSWER EXPR - ID 2012OTHER"},1823930,"DSR COSTS NOT AMORT",103318,"COMMERCIAL FINANSWER EXPR - ID 2012","OTHER",null,{"$f":"IF(OR(tblREGASSLookup[[#This Row],[Alloc]]=\"IDU\",tblREGASSLookup[[#This Row],[Alloc]]=\"OR\",tblREGASSLookup[[#This Row],[Alloc]]=\"UT\",tblREGASSLookup[[#This Row],[Alloc]]=\"WYU\",tblREGASSLookup[[#This Row],[Alloc]]=\"WYP\",tblREGASSLookup[[#This Row],[Alloc]]=\"CA\",tblREGASSLookup[[#This Row],[Alloc]]=\"WA\"),\"SITUS\",tblREGASSLookup[[#This Row],[Alloc]])","v":"OTHER"},"CUST"]
[{"$f":"CONCATENATE(tblREGASSLookup[[#This Row],[Primary Account]],tblREGASSLookup[[#This Row],[Primary Name]],tblREGASSLookup[[#This Row],[Secondary Acct]],tblREGASSLookup[[#This Row],[Secondary  Name]],tblREGASSLookup[[#This Row],[Alloc4FUNC]])","v":"1823930DSR COSTS NOT AMORT103319INDUSTRIAL FINANSWER EXPR - ID 2012OTHER"},1823930,"DSR COSTS NOT AMORT",103319,"INDUSTRIAL FINANSWER EXPR - ID 2012","OTHER",null,{"$f":"IF(OR(tblREGASSLookup[[#This Row],[Alloc]]=\"IDU\",tblREGASSLookup[[#This Row],[Alloc]]=\"OR\",tblREGASSLookup[[#This Row],[Alloc]]=\"UT\",tblREGASSLookup[[#This Row],[Alloc]]=\"WYU\",tblREGASSLookup[[#This Row],[Alloc]]=\"WYP\",tblREGASSLookup[[#This Row],[Alloc]]=\"CA\",tblREGASSLookup[[#This Row],[Alloc]]=\"WA\"),\"SITUS\",tblREGASSLookup[[#This Row],[Alloc]])","v":"OTHER"},"CUST"]
[{"$f":"CONCATENATE(tblREGASSLookup[[#This Row],[Primary Account]],tblREGASSLookup[[#This Row],[Primary Name]],tblREGASSLookup[[#This Row],[Secondary Acct]],tblREGASSLookup[[#This Row],[Secondary  Name]],tblREGASSLookup[[#This Row],[Alloc4FUNC]])","v":"1823930DSR COSTS NOT AMORT103320IRRIGATION EFFICIENCY PRGRM - ID 2012OTHER"},1823930,"DSR COSTS NOT AMORT",103320,"IRRIGATION EFFICIENCY PRGRM - ID 2012","OTHER",null,{"$f":"IF(OR(tblREGASSLookup[[#This Row],[Alloc]]=\"IDU\",tblREGASSLookup[[#This Row],[Alloc]]=\"OR\",tblREGASSLookup[[#This Row],[Alloc]]=\"UT\",tblREGASSLookup[[#This Row],[Alloc]]=\"WYU\",tblREGASSLookup[[#This Row],[Alloc]]=\"WYP\",tblREGASSLookup[[#This Row],[Alloc]]=\"CA\",tblREGASSLookup[[#This Row],[Alloc]]=\"WA\"),\"SITUS\",tblREGASSLookup[[#This Row],[Alloc]])","v":"OTHER"},"CUST"]
[{"$f":"CONCATENATE(tblREGASSLookup[[#This Row],[Primary Account]],tblREGASSLookup[[#This Row],[Primary Name]],tblREGASSLookup[[#This Row],[Secondary Acct]],tblREGASSLookup[[#This Row],[Secondary  Name]],tblREGASSLookup[[#This Row],[Alloc4FUNC]])","v":"1823930DSR COSTS NOT AMORT103321HOME ENERGY EFFICIENCY INCENTIVE PROG  -OTHER"},1823930,"DSR COSTS NOT AMORT",103321,"HOME ENERGY EFFICIENCY INCENTIVE PROG  -","OTHER",null,{"$f":"IF(OR(tblREGASSLookup[[#This Row],[Alloc]]=\"IDU\",tblREGASSLookup[[#This Row],[Alloc]]=\"OR\",tblREGASSLookup[[#This Row],[Alloc]]=\"UT\",tblREGASSLookup[[#This Row],[Alloc]]=\"WYU\",tblREGASSLookup[[#This Row],[Alloc]]=\"WYP\",tblREGASSLookup[[#This Row],[Alloc]]=\"CA\",tblREGASSLookup[[#This Row],[Alloc]]=\"WA\"),\"SITUS\",tblREGASSLookup[[#This Row],[Alloc]])","v":"OTHER"},"CUST"]
[{"$f":"CONCATENATE(tblREGASSLookup[[#This Row],[Primary Account]],tblREGASSLookup[[#This Row],[Primary Name]],tblREGASSLookup[[#This Row],[Secondary Acct]],tblREGASSLookup[[#This Row],[Secondary  Name]],tblREGASSLookup[[#This Row],[Alloc4FUNC]])","v":"1823930DSR COSTS NOT AMORT103322COMMERCIAL DIRECT INSTALL - ID 2012OTHER"},1823930,"DSR COSTS NOT AMORT",103322,"COMMERCIAL DIRECT INSTALL - ID 2012","OTHER",null,{"$f":"IF(OR(tblREGASSLookup[[#This Row],[Alloc]]=\"IDU\",tblREGASSLookup[[#This Row],[Alloc]]=\"OR\",tblREGASSLookup[[#This Row],[Alloc]]=\"UT\",tblREGASSLookup[[#This Row],[Alloc]]=\"WYU\",tblREGASSLookup[[#This Row],[Alloc]]=\"WYP\",tblREGASSLookup[[#This Row],[Alloc]]=\"CA\",tblREGASSLookup[[#This Row],[Alloc]]=\"WA\"),\"SITUS\",tblREGASSLookup[[#This Row],[Alloc]])","v":"OTHER"},"CUST"]
[{"$f":"CONCATENATE(tblREGASSLookup[[#This Row],[Primary Account]],tblREGASSLookup[[#This Row],[Primary Name]],tblREGASSLookup[[#This Row],[Secondary Acct]],tblREGASSLookup[[#This Row],[Secondary  Name]],tblREGASSLookup[[#This Row],[Alloc4FUNC]])","v":"1823930DSR COSTS NOT AMORT103323AGRICULURAL FINANSWER EXPR - ID 2012OTHER"},1823930,"DSR COSTS NOT AMORT",103323,"AGRICULURAL FINANSWER EXPR - ID 2012","OTHER",null,{"$f":"IF(OR(tblREGASSLookup[[#This Row],[Alloc]]=\"IDU\",tblREGASSLookup[[#This Row],[Alloc]]=\"OR\",tblREGASSLookup[[#This Row],[Alloc]]=\"UT\",tblREGASSLookup[[#This Row],[Alloc]]=\"WYU\",tblREGASSLookup[[#This Row],[Alloc]]=\"WYP\",tblREGASSLookup[[#This Row],[Alloc]]=\"CA\",tblREGASSLookup[[#This Row],[Alloc]]=\"WA\"),\"SITUS\",tblREGASSLookup[[#This Row],[Alloc]])","v":"OTHER"},"CUST"]
[{"$f":"CONCATENATE(tblREGASSLookup[[#This Row],[Primary Account]],tblREGASSLookup[[#This Row],[Primary Name]],tblREGASSLookup[[#This Row],[Secondary Acct]],tblREGASSLookup[[#This Row],[Secondary  Name]],tblREGASSLookup[[#This Row],[Alloc4FUNC]])","v":"1823930DSR COSTS NOT AMORT103398RECOMMISSIONING INDUSTRIAL - UT 2012OTHER"},1823930,"DSR COSTS NOT AMORT",103398,"RECOMMISSIONING INDUSTRIAL - UT 2012","OTHER",null,{"$f":"IF(OR(tblREGASSLookup[[#This Row],[Alloc]]=\"IDU\",tblREGASSLookup[[#This Row],[Alloc]]=\"OR\",tblREGASSLookup[[#This Row],[Alloc]]=\"UT\",tblREGASSLookup[[#This Row],[Alloc]]=\"WYU\",tblREGASSLookup[[#This Row],[Alloc]]=\"WYP\",tblREGASSLookup[[#This Row],[Alloc]]=\"CA\",tblREGASSLookup[[#This Row],[Alloc]]=\"WA\"),\"SITUS\",tblREGASSLookup[[#This Row],[Alloc]])","v":"OTHER"},"CUST"]
[{"$f":"CONCATENATE(tblREGASSLookup[[#This Row],[Primary Account]],tblREGASSLookup[[#This Row],[Primary Name]],tblREGASSLookup[[#This Row],[Secondary Acct]],tblREGASSLookup[[#This Row],[Secondary  Name]],tblREGASSLookup[[#This Row],[Alloc4FUNC]])","v":"1823930DSR COSTS NOT AMORT103634AGRICULURAL FINANSWER EXPR - ID 2013OTHER"},1823930,"DSR COSTS NOT AMORT",103634,"AGRICULURAL FINANSWER EXPR - ID 2013","OTHER",null,{"$f":"IF(OR(tblREGASSLookup[[#This Row],[Alloc]]=\"IDU\",tblREGASSLookup[[#This Row],[Alloc]]=\"OR\",tblREGASSLookup[[#This Row],[Alloc]]=\"UT\",tblREGASSLookup[[#This Row],[Alloc]]=\"WYU\",tblREGASSLookup[[#This Row],[Alloc]]=\"WYP\",tblREGASSLookup[[#This Row],[Alloc]]=\"CA\",tblREGASSLookup[[#This Row],[Alloc]]=\"WA\"),\"SITUS\",tblREGASSLookup[[#This Row],[Alloc]])","v":"OTHER"},"CUST"]
[{"$f":"CONCATENATE(tblREGASSLookup[[#This Row],[Primary Account]],tblREGASSLookup[[#This Row],[Primary Name]],tblREGASSLookup[[#This Row],[Secondary Acct]],tblREGASSLookup[[#This Row],[Secondary  Name]],tblREGASSLookup[[#This Row],[Alloc4FUNC]])","v":"1823930DSR COSTS NOT AMORT103635ENERGY FINANSWER - ID 2013OTHER"},1823930,"DSR COSTS NOT AMORT",103635,"ENERGY FINANSWER - ID 2013","OTHER",null,{"$f":"IF(OR(tblREGASSLookup[[#This Row],[Alloc]]=\"IDU\",tblREGASSLookup[[#This Row],[Alloc]]=\"OR\",tblREGASSLookup[[#This Row],[Alloc]]=\"UT\",tblREGASSLookup[[#This Row],[Alloc]]=\"WYU\",tblREGASSLookup[[#This Row],[Alloc]]=\"WYP\",tblREGASSLookup[[#This Row],[Alloc]]=\"CA\",tblREGASSLookup[[#This Row],[Alloc]]=\"WA\"),\"SITUS\",tblREGASSLookup[[#This Row],[Alloc]])","v":"OTHER"},"CUST"]
[{"$f":"CONCATENATE(tblREGASSLookup[[#This Row],[Primary Account]],tblREGASSLookup[[#This Row],[Primary Name]],tblREGASSLookup[[#This Row],[Secondary Acct]],tblREGASSLookup[[#This Row],[Secondary  Name]],tblREGASSLookup[[#This Row],[Alloc4FUNC]])","v":"1823930DSR COSTS NOT AMORT103636INDUSTRIAL FINANSWER - ID 2013OTHER"},1823930,"DSR COSTS NOT AMORT",103636,"INDUSTRIAL FINANSWER - ID 2013","OTHER",null,{"$f":"IF(OR(tblREGASSLookup[[#This Row],[Alloc]]=\"IDU\",tblREGASSLookup[[#This Row],[Alloc]]=\"OR\",tblREGASSLookup[[#This Row],[Alloc]]=\"UT\",tblREGASSLookup[[#This Row],[Alloc]]=\"WYU\",tblREGASSLookup[[#This Row],[Alloc]]=\"WYP\",tblREGASSLookup[[#This Row],[Alloc]]=\"CA\",tblREGASSLookup[[#This Row],[Alloc]]=\"WA\"),\"SITUS\",tblREGASSLookup[[#This Row],[Alloc]])","v":"OTHER"},"CUST"]
[{"$f":"CONCATENATE(tblREGASSLookup[[#This Row],[Primary Account]],tblREGASSLookup[[#This Row],[Primary Name]],tblREGASSLookup[[#This Row],[Secondary Acct]],tblREGASSLookup[[#This Row],[Secondary  Name]],tblREGASSLookup[[#This Row],[Alloc4FUNC]])","v":"1823930DSR COSTS NOT AMORT103638LOW INCOME WZ  - ID- 2013OTHER"},1823930,"DSR COSTS NOT AMORT",103638,"LOW INCOME WZ  - ID- 2013","OTHER",null,{"$f":"IF(OR(tblREGASSLookup[[#This Row],[Alloc]]=\"IDU\",tblREGASSLookup[[#This Row],[Alloc]]=\"OR\",tblREGASSLookup[[#This Row],[Alloc]]=\"UT\",tblREGASSLookup[[#This Row],[Alloc]]=\"WYU\",tblREGASSLookup[[#This Row],[Alloc]]=\"WYP\",tblREGASSLookup[[#This Row],[Alloc]]=\"CA\",tblREGASSLookup[[#This Row],[Alloc]]=\"WA\"),\"SITUS\",tblREGASSLookup[[#This Row],[Alloc]])","v":"OTHER"},"CUST"]
[{"$f":"CONCATENATE(tblREGASSLookup[[#This Row],[Primary Account]],tblREGASSLookup[[#This Row],[Primary Name]],tblREGASSLookup[[#This Row],[Secondary Acct]],tblREGASSLookup[[#This Row],[Secondary  Name]],tblREGASSLookup[[#This Row],[Alloc4FUNC]])","v":"1823930DSR COSTS NOT AMORT103640REFRIGERATOR RECYCLING PGM - ID 2013OTHER"},1823930,"DSR COSTS NOT AMORT",103640,"REFRIGERATOR RECYCLING PGM - ID 2013","OTHER",null,{"$f":"IF(OR(tblREGASSLookup[[#This Row],[Alloc]]=\"IDU\",tblREGASSLookup[[#This Row],[Alloc]]=\"OR\",tblREGASSLookup[[#This Row],[Alloc]]=\"UT\",tblREGASSLookup[[#This Row],[Alloc]]=\"WYU\",tblREGASSLookup[[#This Row],[Alloc]]=\"WYP\",tblREGASSLookup[[#This Row],[Alloc]]=\"CA\",tblREGASSLookup[[#This Row],[Alloc]]=\"WA\"),\"SITUS\",tblREGASSLookup[[#This Row],[Alloc]])","v":"OTHER"},"CUST"]
[{"$f":"CONCATENATE(tblREGASSLookup[[#This Row],[Primary Account]],tblREGASSLookup[[#This Row],[Primary Name]],tblREGASSLookup[[#This Row],[Secondary Acct]],tblREGASSLookup[[#This Row],[Secondary  Name]],tblREGASSLookup[[#This Row],[Alloc4FUNC]])","v":"1823930DSR COSTS NOT AMORT103641COMMERCIAL FINANSWER EXPR - ID 2013OTHER"},1823930,"DSR COSTS NOT AMORT",103641,"COMMERCIAL FINANSWER EXPR - ID 2013","OTHER",null,{"$f":"IF(OR(tblREGASSLookup[[#This Row],[Alloc]]=\"IDU\",tblREGASSLookup[[#This Row],[Alloc]]=\"OR\",tblREGASSLookup[[#This Row],[Alloc]]=\"UT\",tblREGASSLookup[[#This Row],[Alloc]]=\"WYU\",tblREGASSLookup[[#This Row],[Alloc]]=\"WYP\",tblREGASSLookup[[#This Row],[Alloc]]=\"CA\",tblREGASSLookup[[#This Row],[Alloc]]=\"WA\"),\"SITUS\",tblREGASSLookup[[#This Row],[Alloc]])","v":"OTHER"},"CUST"]
[{"$f":"CONCATENATE(tblREGASSLookup[[#This Row],[Primary Account]],tblREGASSLookup[[#This Row],[Primary Name]],tblREGASSLookup[[#This Row],[Secondary Acct]],tblREGASSLookup[[#This Row],[Secondary  Name]],tblREGASSLookup[[#This Row],[Alloc4FUNC]])","v":"1823930DSR COSTS NOT AMORT103642INDUSTRIAL FINANSWER EXPR - ID 2013OTHER"},1823930,"DSR COSTS NOT AMORT",103642,"INDUSTRIAL FINANSWER EXPR - ID 2013","OTHER",null,{"$f":"IF(OR(tblREGASSLookup[[#This Row],[Alloc]]=\"IDU\",tblREGASSLookup[[#This Row],[Alloc]]=\"OR\",tblREGASSLookup[[#This Row],[Alloc]]=\"UT\",tblREGASSLookup[[#This Row],[Alloc]]=\"WYU\",tblREGASSLookup[[#This Row],[Alloc]]=\"WYP\",tblREGASSLookup[[#This Row],[Alloc]]=\"CA\",tblREGASSLookup[[#This Row],[Alloc]]=\"WA\"),\"SITUS\",tblREGASSLookup[[#This Row],[Alloc]])","v":"OTHER"},"CUST"]
[{"$f":"CONCATENATE(tblREGASSLookup[[#This Row],[Primary Account]],tblREGASSLookup[[#This Row],[Primary Name]],tblREGASSLookup[[#This Row],[Secondary Acct]],tblREGASSLookup[[#This Row],[Secondary  Name]],tblREGASSLookup[[#This Row],[Alloc4FUNC]])","v":"1823930DSR COSTS NOT AMORT103643IRRIGATION EFFICIENCY PRGRM - ID 2013OTHER"},1823930,"DSR COSTS NOT AMORT",103643,"IRRIGATION EFFICIENCY PRGRM - ID 2013","OTHER",null,{"$f":"IF(OR(tblREGASSLookup[[#This Row],[Alloc]]=\"IDU\",tblREGASSLookup[[#This Row],[Alloc]]=\"OR\",tblREGASSLookup[[#This Row],[Alloc]]=\"UT\",tblREGASSLookup[[#This Row],[Alloc]]=\"WYU\",tblREGASSLookup[[#This Row],[Alloc]]=\"WYP\",tblREGASSLookup[[#This Row],[Alloc]]=\"CA\",tblREGASSLookup[[#This Row],[Alloc]]=\"WA\"),\"SITUS\",tblREGASSLookup[[#This Row],[Alloc]])","v":"OTHER"},"CUST"]
[{"$f":"CONCATENATE(tblREGASSLookup[[#This Row],[Primary Account]],tblREGASSLookup[[#This Row],[Primary Name]],tblREGASSLookup[[#This Row],[Secondary Acct]],tblREGASSLookup[[#This Row],[Secondary  Name]],tblREGASSLookup[[#This Row],[Alloc4FUNC]])","v":"1823930DSR COSTS NOT AMORT103644HOME ENERGY EFFICIENCY INCENTIVE PROG  -OTHER"},1823930,"DSR COSTS NOT AMORT",103644,"HOME ENERGY EFFICIENCY INCENTIVE PROG  -","OTHER",null,{"$f":"IF(OR(tblREGASSLookup[[#This Row],[Alloc]]=\"IDU\",tblREGASSLookup[[#This Row],[Alloc]]=\"OR\",tblREGASSLookup[[#This Row],[Alloc]]=\"UT\",tblREGASSLookup[[#This Row],[Alloc]]=\"WYU\",tblREGASSLookup[[#This Row],[Alloc]]=\"WYP\",tblREGASSLookup[[#This Row],[Alloc]]=\"CA\",tblREGASSLookup[[#This Row],[Alloc]]=\"WA\"),\"SITUS\",tblREGASSLookup[[#This Row],[Alloc]])","v":"OTHER"},"CUST"]
[{"$f":"CONCATENATE(tblREGASSLookup[[#This Row],[Primary Account]],tblREGASSLookup[[#This Row],[Primary Name]],tblREGASSLookup[[#This Row],[Secondary Acct]],tblREGASSLookup[[#This Row],[Secondary  Name]],tblREGASSLookup[[#This Row],[Alloc4FUNC]])","v":"1823930DSR COSTS NOT AMORT103672RECOMMISSIONING INDUSTRIAL - UT 2013OTHER"},1823930,"DSR COSTS NOT AMORT",103672,"RECOMMISSIONING INDUSTRIAL - UT 2013","OTHER",null,{"$f":"IF(OR(tblREGASSLookup[[#This Row],[Alloc]]=\"IDU\",tblREGASSLookup[[#This Row],[Alloc]]=\"OR\",tblREGASSLookup[[#This Row],[Alloc]]=\"UT\",tblREGASSLookup[[#This Row],[Alloc]]=\"WYU\",tblREGASSLookup[[#This Row],[Alloc]]=\"WYP\",tblREGASSLookup[[#This Row],[Alloc]]=\"CA\",tblREGASSLookup[[#This Row],[Alloc]]=\"WA\"),\"SITUS\",tblREGASSLookup[[#This Row],[Alloc]])","v":"OTHER"},"CUST"]
[{"$f":"CONCATENATE(tblREGASSLookup[[#This Row],[Primary Account]],tblREGASSLookup[[#This Row],[Primary Name]],tblREGASSLookup[[#This Row],[Secondary Acct]],tblREGASSLookup[[#This Row],[Secondary  Name]],tblREGASSLookup[[#This Row],[Alloc4FUNC]])","v":"1823930DSR COSTS NOT AMORT103746AGRICULURAL FINANSWER EXPR - ID 2014OTHER"},1823930,"DSR COSTS NOT AMORT",103746,"AGRICULURAL FINANSWER EXPR - ID 2014","OTHER",null,{"$f":"IF(OR(tblREGASSLookup[[#This Row],[Alloc]]=\"IDU\",tblREGASSLookup[[#This Row],[Alloc]]=\"OR\",tblREGASSLookup[[#This Row],[Alloc]]=\"UT\",tblREGASSLookup[[#This Row],[Alloc]]=\"WYU\",tblREGASSLookup[[#This Row],[Alloc]]=\"WYP\",tblREGASSLookup[[#This Row],[Alloc]]=\"CA\",tblREGASSLookup[[#This Row],[Alloc]]=\"WA\"),\"SITUS\",tblREGASSLookup[[#This Row],[Alloc]])","v":"OTHER"},"CUST"]
[{"$f":"CONCATENATE(tblREGASSLookup[[#This Row],[Primary Account]],tblREGASSLookup[[#This Row],[Primary Name]],tblREGASSLookup[[#This Row],[Secondary Acct]],tblREGASSLookup[[#This Row],[Secondary  Name]],tblREGASSLookup[[#This Row],[Alloc4FUNC]])","v":"1823930DSR COSTS NOT AMORT103747COMMERCIAL FINANSWER EXPR - ID 2014OTHER"},1823930,"DSR COSTS NOT AMORT",103747,"COMMERCIAL FINANSWER EXPR - ID 2014","OTHER",null,{"$f":"IF(OR(tblREGASSLookup[[#This Row],[Alloc]]=\"IDU\",tblREGASSLookup[[#This Row],[Alloc]]=\"OR\",tblREGASSLookup[[#This Row],[Alloc]]=\"UT\",tblREGASSLookup[[#This Row],[Alloc]]=\"WYU\",tblREGASSLookup[[#This Row],[Alloc]]=\"WYP\",tblREGASSLookup[[#This Row],[Alloc]]=\"CA\",tblREGASSLookup[[#This Row],[Alloc]]=\"WA\"),\"SITUS\",tblREGASSLookup[[#This Row],[Alloc]])","v":"OTHER"},"CUST"]
[{"$f":"CONCATENATE(tblREGASSLookup[[#This Row],[Primary Account]],tblREGASSLookup[[#This Row],[Primary Name]],tblREGASSLookup[[#This Row],[Secondary Acct]],tblREGASSLookup[[#This Row],[Secondary  Name]],tblREGASSLookup[[#This Row],[Alloc4FUNC]])","v":"1823930DSR COSTS NOT AMORT103748ENERGY FINANSWER - ID 2014OTHER"},1823930,"DSR COSTS NOT AMORT",103748,"ENERGY FINANSWER - ID 2014","OTHER",null,{"$f":"IF(OR(tblREGASSLookup[[#This Row],[Alloc]]=\"IDU\",tblREGASSLookup[[#This Row],[Alloc]]=\"OR\",tblREGASSLookup[[#This Row],[Alloc]]=\"UT\",tblREGASSLookup[[#This Row],[Alloc]]=\"WYU\",tblREGASSLookup[[#This Row],[Alloc]]=\"WYP\",tblREGASSLookup[[#This Row],[Alloc]]=\"CA\",tblREGASSLookup[[#This Row],[Alloc]]=\"WA\"),\"SITUS\",tblREGASSLookup[[#This Row],[Alloc]])","v":"OTHER"},"CUST"]
[{"$f":"CONCATENATE(tblREGASSLookup[[#This Row],[Primary Account]],tblREGASSLookup[[#This Row],[Primary Name]],tblREGASSLookup[[#This Row],[Secondary Acct]],tblREGASSLookup[[#This Row],[Secondary  Name]],tblREGASSLookup[[#This Row],[Alloc4FUNC]])","v":"1823930DSR COSTS NOT AMORT103749HOME ENERGY EFFICIENCY INCENTIVE PROG  -OTHER"},1823930,"DSR COSTS NOT AMORT",103749,"HOME ENERGY EFFICIENCY INCENTIVE PROG  -","OTHER",null,{"$f":"IF(OR(tblREGASSLookup[[#This Row],[Alloc]]=\"IDU\",tblREGASSLookup[[#This Row],[Alloc]]=\"OR\",tblREGASSLookup[[#This Row],[Alloc]]=\"UT\",tblREGASSLookup[[#This Row],[Alloc]]=\"WYU\",tblREGASSLookup[[#This Row],[Alloc]]=\"WYP\",tblREGASSLookup[[#This Row],[Alloc]]=\"CA\",tblREGASSLookup[[#This Row],[Alloc]]=\"WA\"),\"SITUS\",tblREGASSLookup[[#This Row],[Alloc]])","v":"OTHER"},"CUST"]
[{"$f":"CONCATENATE(tblREGASSLookup[[#This Row],[Primary Account]],tblREGASSLookup[[#This Row],[Primary Name]],tblREGASSLookup[[#This Row],[Secondary Acct]],tblREGASSLookup[[#This Row],[Secondary  Name]],tblREGASSLookup[[#This Row],[Alloc4FUNC]])","v":"1823930DSR COSTS NOT AMORT103750INDUSTRIAL FINANSWER - ID 2014OTHER"},1823930,"DSR COSTS NOT AMORT",103750,"INDUSTRIAL FINANSWER - ID 2014","OTHER",null,{"$f":"IF(OR(tblREGASSLookup[[#This Row],[Alloc]]=\"IDU\",tblREGASSLookup[[#This Row],[Alloc]]=\"OR\",tblREGASSLookup[[#This Row],[Alloc]]=\"UT\",tblREGASSLookup[[#This Row],[Alloc]]=\"WYU\",tblREGASSLookup[[#This Row],[Alloc]]=\"WYP\",tblREGASSLookup[[#This Row],[Alloc]]=\"CA\",tblREGASSLookup[[#This Row],[Alloc]]=\"WA\"),\"SITUS\",tblREGASSLookup[[#This Row],[Alloc]])","v":"OTHER"},"CUST"]
[{"$f":"CONCATENATE(tblREGASSLookup[[#This Row],[Primary Account]],tblREGASSLookup[[#This Row],[Primary Name]],tblREGASSLookup[[#This Row],[Secondary Acct]],tblREGASSLookup[[#This Row],[Secondary  Name]],tblREGASSLookup[[#This Row],[Alloc4FUNC]])","v":"1823930DSR COSTS NOT AMORT103751INDUSTRIAL FINANSWER EXPR - ID 2014OTHER"},1823930,"DSR COSTS NOT AMORT",103751,"INDUSTRIAL FINANSWER EXPR - ID 2014","OTHER",null,{"$f":"IF(OR(tblREGASSLookup[[#This Row],[Alloc]]=\"IDU\",tblREGASSLookup[[#This Row],[Alloc]]=\"OR\",tblREGASSLookup[[#This Row],[Alloc]]=\"UT\",tblREGASSLookup[[#This Row],[Alloc]]=\"WYU\",tblREGASSLookup[[#This Row],[Alloc]]=\"WYP\",tblREGASSLookup[[#This Row],[Alloc]]=\"CA\",tblREGASSLookup[[#This Row],[Alloc]]=\"WA\"),\"SITUS\",tblREGASSLookup[[#This Row],[Alloc]])","v":"OTHER"},"CUST"]
[{"$f":"CONCATENATE(tblREGASSLookup[[#This Row],[Primary Account]],tblREGASSLookup[[#This Row],[Primary Name]],tblREGASSLookup[[#This Row],[Secondary Acct]],tblREGASSLookup[[#This Row],[Secondary  Name]],tblREGASSLookup[[#This Row],[Alloc4FUNC]])","v":"1823930DSR COSTS NOT AMORT103752IRRIGATION EFFICIENCY PRGRM - ID 2014OTHER"},1823930,"DSR COSTS NOT AMORT",103752,"IRRIGATION EFFICIENCY PRGRM - ID 2014","OTHER",null,{"$f":"IF(OR(tblREGASSLookup[[#This Row],[Alloc]]=\"IDU\",tblREGASSLookup[[#This Row],[Alloc]]=\"OR\",tblREGASSLookup[[#This Row],[Alloc]]=\"UT\",tblREGASSLookup[[#This Row],[Alloc]]=\"WYU\",tblREGASSLookup[[#This Row],[Alloc]]=\"WYP\",tblREGASSLookup[[#This Row],[Alloc]]=\"CA\",tblREGASSLookup[[#This Row],[Alloc]]=\"WA\"),\"SITUS\",tblREGASSLookup[[#This Row],[Alloc]])","v":"OTHER"},"CUST"]
[{"$f":"CONCATENATE(tblREGASSLookup[[#This Row],[Primary Account]],tblREGASSLookup[[#This Row],[Primary Name]],tblREGASSLookup[[#This Row],[Secondary Acct]],tblREGASSLookup[[#This Row],[Secondary  Name]],tblREGASSLookup[[#This Row],[Alloc4FUNC]])","v":"1823930DSR COSTS NOT AMORT103753LOW INCOME WZ  - ID- 2014OTHER"},1823930,"DSR COSTS NOT AMORT",103753,"LOW INCOME WZ  - ID- 2014","OTHER",null,{"$f":"IF(OR(tblREGASSLookup[[#This Row],[Alloc]]=\"IDU\",tblREGASSLookup[[#This Row],[Alloc]]=\"OR\",tblREGASSLookup[[#This Row],[Alloc]]=\"UT\",tblREGASSLookup[[#This Row],[Alloc]]=\"WYU\",tblREGASSLookup[[#This Row],[Alloc]]=\"WYP\",tblREGASSLookup[[#This Row],[Alloc]]=\"CA\",tblREGASSLookup[[#This Row],[Alloc]]=\"WA\"),\"SITUS\",tblREGASSLookup[[#This Row],[Alloc]])","v":"OTHER"},"CUST"]
[{"$f":"CONCATENATE(tblREGASSLookup[[#This Row],[Primary Account]],tblREGASSLookup[[#This Row],[Primary Name]],tblREGASSLookup[[#This Row],[Secondary Acct]],tblREGASSLookup[[#This Row],[Secondary  Name]],tblREGASSLookup[[#This Row],[Alloc4FUNC]])","v":"1823930DSR COSTS NOT AMORT103755REFRIGERATOR RECYCLING PGM - ID 2014OTHER"},1823930,"DSR COSTS NOT AMORT",103755,"REFRIGERATOR RECYCLING PGM - ID 2014","OTHER",null,{"$f":"IF(OR(tblREGASSLookup[[#This Row],[Alloc]]=\"IDU\",tblREGASSLookup[[#This Row],[Alloc]]=\"OR\",tblREGASSLookup[[#This Row],[Alloc]]=\"UT\",tblREGASSLookup[[#This Row],[Alloc]]=\"WYU\",tblREGASSLookup[[#This Row],[Alloc]]=\"WYP\",tblREGASSLookup[[#This Row],[Alloc]]=\"CA\",tblREGASSLookup[[#This Row],[Alloc]]=\"WA\"),\"SITUS\",tblREGASSLookup[[#This Row],[Alloc]])","v":"OTHER"},"CUST"]
[{"$f":"CONCATENATE(tblREGASSLookup[[#This Row],[Primary Account]],tblREGASSLookup[[#This Row],[Primary Name]],tblREGASSLookup[[#This Row],[Secondary Acct]],tblREGASSLookup[[#This Row],[Secondary  Name]],tblREGASSLookup[[#This Row],[Alloc4FUNC]])","v":"1823930DSR COSTS NOT AMORT103866AGRICULURAL FINANSWER EXPR - ID 2015OTHER"},1823930,"DSR COSTS NOT AMORT",103866,"AGRICULURAL FINANSWER EXPR - ID 2015","OTHER",null,{"$f":"IF(OR(tblREGASSLookup[[#This Row],[Alloc]]=\"IDU\",tblREGASSLookup[[#This Row],[Alloc]]=\"OR\",tblREGASSLookup[[#This Row],[Alloc]]=\"UT\",tblREGASSLookup[[#This Row],[Alloc]]=\"WYU\",tblREGASSLookup[[#This Row],[Alloc]]=\"WYP\",tblREGASSLookup[[#This Row],[Alloc]]=\"CA\",tblREGASSLookup[[#This Row],[Alloc]]=\"WA\"),\"SITUS\",tblREGASSLookup[[#This Row],[Alloc]])","v":"OTHER"},"CUST"]
[{"$f":"CONCATENATE(tblREGASSLookup[[#This Row],[Primary Account]],tblREGASSLookup[[#This Row],[Primary Name]],tblREGASSLookup[[#This Row],[Secondary Acct]],tblREGASSLookup[[#This Row],[Secondary  Name]],tblREGASSLookup[[#This Row],[Alloc4FUNC]])","v":"1823930DSR COSTS NOT AMORT103867COMMERCIAL FINANSWER EXPR - ID 2015OTHER"},1823930,"DSR COSTS NOT AMORT",103867,"COMMERCIAL FINANSWER EXPR - ID 2015","OTHER",null,{"$f":"IF(OR(tblREGASSLookup[[#This Row],[Alloc]]=\"IDU\",tblREGASSLookup[[#This Row],[Alloc]]=\"OR\",tblREGASSLookup[[#This Row],[Alloc]]=\"UT\",tblREGASSLookup[[#This Row],[Alloc]]=\"WYU\",tblREGASSLookup[[#This Row],[Alloc]]=\"WYP\",tblREGASSLookup[[#This Row],[Alloc]]=\"CA\",tblREGASSLookup[[#This Row],[Alloc]]=\"WA\"),\"SITUS\",tblREGASSLookup[[#This Row],[Alloc]])","v":"OTHER"},"CUST"]
[{"$f":"CONCATENATE(tblREGASSLookup[[#This Row],[Primary Account]],tblREGASSLookup[[#This Row],[Primary Name]],tblREGASSLookup[[#This Row],[Secondary Acct]],tblREGASSLookup[[#This Row],[Secondary  Name]],tblREGASSLookup[[#This Row],[Alloc4FUNC]])","v":"1823930DSR COSTS NOT AMORT103868ENERGY FINANSWER - ID 2015OTHER"},1823930,"DSR COSTS NOT AMORT",103868,"ENERGY FINANSWER - ID 2015","OTHER",null,{"$f":"IF(OR(tblREGASSLookup[[#This Row],[Alloc]]=\"IDU\",tblREGASSLookup[[#This Row],[Alloc]]=\"OR\",tblREGASSLookup[[#This Row],[Alloc]]=\"UT\",tblREGASSLookup[[#This Row],[Alloc]]=\"WYU\",tblREGASSLookup[[#This Row],[Alloc]]=\"WYP\",tblREGASSLookup[[#This Row],[Alloc]]=\"CA\",tblREGASSLookup[[#This Row],[Alloc]]=\"WA\"),\"SITUS\",tblREGASSLookup[[#This Row],[Alloc]])","v":"OTHER"},"CUST"]
[{"$f":"CONCATENATE(tblREGASSLookup[[#This Row],[Primary Account]],tblREGASSLookup[[#This Row],[Primary Name]],tblREGASSLookup[[#This Row],[Secondary Acct]],tblREGASSLookup[[#This Row],[Secondary  Name]],tblREGASSLookup[[#This Row],[Alloc4FUNC]])","v":"1823930DSR COSTS NOT AMORT103869HOME ENERGY EFFICIENCY INCENTIVE PROG  -OTHER"},1823930,"DSR COSTS NOT AMORT",103869,"HOME ENERGY EFFICIENCY INCENTIVE PROG  -","OTHER",null,{"$f":"IF(OR(tblREGASSLookup[[#This Row],[Alloc]]=\"IDU\",tblREGASSLookup[[#This Row],[Alloc]]=\"OR\",tblREGASSLookup[[#This Row],[Alloc]]=\"UT\",tblREGASSLookup[[#This Row],[Alloc]]=\"WYU\",tblREGASSLookup[[#This Row],[Alloc]]=\"WYP\",tblREGASSLookup[[#This Row],[Alloc]]=\"CA\",tblREGASSLookup[[#This Row],[Alloc]]=\"WA\"),\"SITUS\",tblREGASSLookup[[#This Row],[Alloc]])","v":"OTHER"},"CUST"]
[{"$f":"CONCATENATE(tblREGASSLookup[[#This Row],[Primary Account]],tblREGASSLookup[[#This Row],[Primary Name]],tblREGASSLookup[[#This Row],[Secondary Acct]],tblREGASSLookup[[#This Row],[Secondary  Name]],tblREGASSLookup[[#This Row],[Alloc4FUNC]])","v":"1823930DSR COSTS NOT AMORT103870INDUSTRIAL FINANSWER - ID 2015OTHER"},1823930,"DSR COSTS NOT AMORT",103870,"INDUSTRIAL FINANSWER - ID 2015","OTHER",null,{"$f":"IF(OR(tblREGASSLookup[[#This Row],[Alloc]]=\"IDU\",tblREGASSLookup[[#This Row],[Alloc]]=\"OR\",tblREGASSLookup[[#This Row],[Alloc]]=\"UT\",tblREGASSLookup[[#This Row],[Alloc]]=\"WYU\",tblREGASSLookup[[#This Row],[Alloc]]=\"WYP\",tblREGASSLookup[[#This Row],[Alloc]]=\"CA\",tblREGASSLookup[[#This Row],[Alloc]]=\"WA\"),\"SITUS\",tblREGASSLookup[[#This Row],[Alloc]])","v":"OTHER"},"CUST"]
[{"$f":"CONCATENATE(tblREGASSLookup[[#This Row],[Primary Account]],tblREGASSLookup[[#This Row],[Primary Name]],tblREGASSLookup[[#This Row],[Secondary Acct]],tblREGASSLookup[[#This Row],[Secondary  Name]],tblREGASSLookup[[#This Row],[Alloc4FUNC]])","v":"1823930DSR COSTS NOT AMORT103871INDUSTRIAL FINANSWER EXPR - ID 2015OTHER"},1823930,"DSR COSTS NOT AMORT",103871,"INDUSTRIAL FINANSWER EXPR - ID 2015","OTHER",null,{"$f":"IF(OR(tblREGASSLookup[[#This Row],[Alloc]]=\"IDU\",tblREGASSLookup[[#This Row],[Alloc]]=\"OR\",tblREGASSLookup[[#This Row],[Alloc]]=\"UT\",tblREGASSLookup[[#This Row],[Alloc]]=\"WYU\",tblREGASSLookup[[#This Row],[Alloc]]=\"WYP\",tblREGASSLookup[[#This Row],[Alloc]]=\"CA\",tblREGASSLookup[[#This Row],[Alloc]]=\"WA\"),\"SITUS\",tblREGASSLookup[[#This Row],[Alloc]])","v":"OTHER"},"CUST"]
[{"$f":"CONCATENATE(tblREGASSLookup[[#This Row],[Primary Account]],tblREGASSLookup[[#This Row],[Primary Name]],tblREGASSLookup[[#This Row],[Secondary Acct]],tblREGASSLookup[[#This Row],[Secondary  Name]],tblREGASSLookup[[#This Row],[Alloc4FUNC]])","v":"1823930DSR COSTS NOT AMORT103872IRRIGATION EFFICIENCY PRGRM - ID 2015OTHER"},1823930,"DSR COSTS NOT AMORT",103872,"IRRIGATION EFFICIENCY PRGRM - ID 2015","OTHER",null,{"$f":"IF(OR(tblREGASSLookup[[#This Row],[Alloc]]=\"IDU\",tblREGASSLookup[[#This Row],[Alloc]]=\"OR\",tblREGASSLookup[[#This Row],[Alloc]]=\"UT\",tblREGASSLookup[[#This Row],[Alloc]]=\"WYU\",tblREGASSLookup[[#This Row],[Alloc]]=\"WYP\",tblREGASSLookup[[#This Row],[Alloc]]=\"CA\",tblREGASSLookup[[#This Row],[Alloc]]=\"WA\"),\"SITUS\",tblREGASSLookup[[#This Row],[Alloc]])","v":"OTHER"},"CUST"]
[{"$f":"CONCATENATE(tblREGASSLookup[[#This Row],[Primary Account]],tblREGASSLookup[[#This Row],[Primary Name]],tblREGASSLookup[[#This Row],[Secondary Acct]],tblREGASSLookup[[#This Row],[Secondary  Name]],tblREGASSLookup[[#This Row],[Alloc4FUNC]])","v":"1823930DSR COSTS NOT AMORT103873LOW INCOME WZ  - ID- 2015OTHER"},1823930,"DSR COSTS NOT AMORT",103873,"LOW INCOME WZ  - ID- 2015","OTHER",null,{"$f":"IF(OR(tblREGASSLookup[[#This Row],[Alloc]]=\"IDU\",tblREGASSLookup[[#This Row],[Alloc]]=\"OR\",tblREGASSLookup[[#This Row],[Alloc]]=\"UT\",tblREGASSLookup[[#This Row],[Alloc]]=\"WYU\",tblREGASSLookup[[#This Row],[Alloc]]=\"WYP\",tblREGASSLookup[[#This Row],[Alloc]]=\"CA\",tblREGASSLookup[[#This Row],[Alloc]]=\"WA\"),\"SITUS\",tblREGASSLookup[[#This Row],[Alloc]])","v":"OTHER"},"CUST"]
[{"$f":"CONCATENATE(tblREGASSLookup[[#This Row],[Primary Account]],tblREGASSLookup[[#This Row],[Primary Name]],tblREGASSLookup[[#This Row],[Secondary Acct]],tblREGASSLookup[[#This Row],[Secondary  Name]],tblREGASSLookup[[#This Row],[Alloc4FUNC]])","v":"1823930DSR COSTS NOT AMORT103875REFRIGERATOR RECYCLING PGM - ID 2015OTHER"},1823930,"DSR COSTS NOT AMORT",103875,"REFRIGERATOR RECYCLING PGM - ID 2015","OTHER",null,{"$f":"IF(OR(tblREGASSLookup[[#This Row],[Alloc]]=\"IDU\",tblREGASSLookup[[#This Row],[Alloc]]=\"OR\",tblREGASSLookup[[#This Row],[Alloc]]=\"UT\",tblREGASSLookup[[#This Row],[Alloc]]=\"WYU\",tblREGASSLookup[[#This Row],[Alloc]]=\"WYP\",tblREGASSLookup[[#This Row],[Alloc]]=\"CA\",tblREGASSLookup[[#This Row],[Alloc]]=\"WA\"),\"SITUS\",tblREGASSLookup[[#This Row],[Alloc]])","v":"OTHER"},"CUST"]
[{"$f":"CONCATENATE(tblREGASSLookup[[#This Row],[Primary Account]],tblREGASSLookup[[#This Row],[Primary Name]],tblREGASSLookup[[#This Row],[Secondary Acct]],tblREGASSLookup[[#This Row],[Secondary  Name]],tblREGASSLookup[[#This Row],[Alloc4FUNC]])","v":"1823930DSR COSTS NOT AMORT104014HOME ENERGY EFFICIENCY INCENTIVE PROG  -OTHER"},1823930,"DSR COSTS NOT AMORT",104014,"HOME ENERGY EFFICIENCY INCENTIVE PROG  -","OTHER",null,{"$f":"IF(OR(tblREGASSLookup[[#This Row],[Alloc]]=\"IDU\",tblREGASSLookup[[#This Row],[Alloc]]=\"OR\",tblREGASSLookup[[#This Row],[Alloc]]=\"UT\",tblREGASSLookup[[#This Row],[Alloc]]=\"WYU\",tblREGASSLookup[[#This Row],[Alloc]]=\"WYP\",tblREGASSLookup[[#This Row],[Alloc]]=\"CA\",tblREGASSLookup[[#This Row],[Alloc]]=\"WA\"),\"SITUS\",tblREGASSLookup[[#This Row],[Alloc]])","v":"OTHER"},"CUST"]
[{"$f":"CONCATENATE(tblREGASSLookup[[#This Row],[Primary Account]],tblREGASSLookup[[#This Row],[Primary Name]],tblREGASSLookup[[#This Row],[Secondary Acct]],tblREGASSLookup[[#This Row],[Secondary  Name]],tblREGASSLookup[[#This Row],[Alloc4FUNC]])","v":"1823930DSR COSTS NOT AMORT104016IRRIGATION EFFICIENCY PRGRM - ID 2016OTHER"},1823930,"DSR COSTS NOT AMORT",104016,"IRRIGATION EFFICIENCY PRGRM - ID 2016","OTHER",null,{"$f":"IF(OR(tblREGASSLookup[[#This Row],[Alloc]]=\"IDU\",tblREGASSLookup[[#This Row],[Alloc]]=\"OR\",tblREGASSLookup[[#This Row],[Alloc]]=\"UT\",tblREGASSLookup[[#This Row],[Alloc]]=\"WYU\",tblREGASSLookup[[#This Row],[Alloc]]=\"WYP\",tblREGASSLookup[[#This Row],[Alloc]]=\"CA\",tblREGASSLookup[[#This Row],[Alloc]]=\"WA\"),\"SITUS\",tblREGASSLookup[[#This Row],[Alloc]])","v":"OTHER"},"CUST"]
[{"$f":"CONCATENATE(tblREGASSLookup[[#This Row],[Primary Account]],tblREGASSLookup[[#This Row],[Primary Name]],tblREGASSLookup[[#This Row],[Secondary Acct]],tblREGASSLookup[[#This Row],[Secondary  Name]],tblREGASSLookup[[#This Row],[Alloc4FUNC]])","v":"1823930DSR COSTS NOT AMORT104017LOW INCOME WZ  - ID- 2016OTHER"},1823930,"DSR COSTS NOT AMORT",104017,"LOW INCOME WZ  - ID- 2016","OTHER",null,{"$f":"IF(OR(tblREGASSLookup[[#This Row],[Alloc]]=\"IDU\",tblREGASSLookup[[#This Row],[Alloc]]=\"OR\",tblREGASSLookup[[#This Row],[Alloc]]=\"UT\",tblREGASSLookup[[#This Row],[Alloc]]=\"WYU\",tblREGASSLookup[[#This Row],[Alloc]]=\"WYP\",tblREGASSLookup[[#This Row],[Alloc]]=\"CA\",tblREGASSLookup[[#This Row],[Alloc]]=\"WA\"),\"SITUS\",tblREGASSLookup[[#This Row],[Alloc]])","v":"OTHER"},"CUST"]
[{"$f":"CONCATENATE(tblREGASSLookup[[#This Row],[Primary Account]],tblREGASSLookup[[#This Row],[Primary Name]],tblREGASSLookup[[#This Row],[Secondary Acct]],tblREGASSLookup[[#This Row],[Secondary  Name]],tblREGASSLookup[[#This Row],[Alloc4FUNC]])","v":"1823930DSR COSTS NOT AMORT104022REFRIGERATOR RECYCLING PGM - ID 2016OTHER"},1823930,"DSR COSTS NOT AMORT",104022,"REFRIGERATOR RECYCLING PGM - ID 2016","OTHER",null,{"$f":"IF(OR(tblREGASSLookup[[#This Row],[Alloc]]=\"IDU\",tblREGASSLookup[[#This Row],[Alloc]]=\"OR\",tblREGASSLookup[[#This Row],[Alloc]]=\"UT\",tblREGASSLookup[[#This Row],[Alloc]]=\"WYU\",tblREGASSLookup[[#This Row],[Alloc]]=\"WYP\",tblREGASSLookup[[#This Row],[Alloc]]=\"CA\",tblREGASSLookup[[#This Row],[Alloc]]=\"WA\"),\"SITUS\",tblREGASSLookup[[#This Row],[Alloc]])","v":"OTHER"},"CUST"]
[{"$f":"CONCATENATE(tblREGASSLookup[[#This Row],[Primary Account]],tblREGASSLookup[[#This Row],[Primary Name]],tblREGASSLookup[[#This Row],[Secondary Acct]],tblREGASSLookup[[#This Row],[Secondary  Name]],tblREGASSLookup[[#This Row],[Alloc4FUNC]])","v":"1823940DSR CARRYING CHARGES102146UT CARRYING CHARGE - 2001/2002OTHER"},1823940,"DSR CARRYING CHARGES",102146,"UT CARRYING CHARGE - 2001/2002","OTHER",null,{"$f":"IF(OR(tblREGASSLookup[[#This Row],[Alloc]]=\"IDU\",tblREGASSLookup[[#This Row],[Alloc]]=\"OR\",tblREGASSLookup[[#This Row],[Alloc]]=\"UT\",tblREGASSLookup[[#This Row],[Alloc]]=\"WYU\",tblREGASSLookup[[#This Row],[Alloc]]=\"WYP\",tblREGASSLookup[[#This Row],[Alloc]]=\"CA\",tblREGASSLookup[[#This Row],[Alloc]]=\"WA\"),\"SITUS\",tblREGASSLookup[[#This Row],[Alloc]])","v":"OTHER"},"CUST"]
[{"$f":"CONCATENATE(tblREGASSLookup[[#This Row],[Primary Account]],tblREGASSLookup[[#This Row],[Primary Name]],tblREGASSLookup[[#This Row],[Secondary Acct]],tblREGASSLookup[[#This Row],[Secondary  Name]],tblREGASSLookup[[#This Row],[Alloc4FUNC]])","v":"1823940DSR CARRYING CHARGES102188WA REVENUE RECOVERY - CARRYING CHG PENALOTHER"},1823940,"DSR CARRYING CHARGES",102188,"WA REVENUE RECOVERY - CARRYING CHG PENAL","OTHER",null,{"$f":"IF(OR(tblREGASSLookup[[#This Row],[Alloc]]=\"IDU\",tblREGASSLookup[[#This Row],[Alloc]]=\"OR\",tblREGASSLookup[[#This Row],[Alloc]]=\"UT\",tblREGASSLookup[[#This Row],[Alloc]]=\"WYU\",tblREGASSLookup[[#This Row],[Alloc]]=\"WYP\",tblREGASSLookup[[#This Row],[Alloc]]=\"CA\",tblREGASSLookup[[#This Row],[Alloc]]=\"WA\"),\"SITUS\",tblREGASSLookup[[#This Row],[Alloc]])","v":"OTHER"},"CUST"]
[{"$f":"CONCATENATE(tblREGASSLookup[[#This Row],[Primary Account]],tblREGASSLookup[[#This Row],[Primary Name]],tblREGASSLookup[[#This Row],[Secondary Acct]],tblREGASSLookup[[#This Row],[Secondary  Name]],tblREGASSLookup[[#This Row],[Alloc4FUNC]])","v":"1823940DSR CARRYING CHARGES102766DSR CARRYING CHARGESSITUS"},1823940,"DSR CARRYING CHARGES",102766,"DSR CARRYING CHARGES","SITUS",null,{"$f":"IF(OR(tblREGASSLookup[[#This Row],[Alloc]]=\"IDU\",tblREGASSLookup[[#This Row],[Alloc]]=\"OR\",tblREGASSLookup[[#This Row],[Alloc]]=\"UT\",tblREGASSLookup[[#This Row],[Alloc]]=\"WYU\",tblREGASSLookup[[#This Row],[Alloc]]=\"WYP\",tblREGASSLookup[[#This Row],[Alloc]]=\"CA\",tblREGASSLookup[[#This Row],[Alloc]]=\"WA\"),\"SITUS\",tblREGASSLookup[[#This Row],[Alloc]])","v":"SITUS"},"CUST"]
[{"$f":"CONCATENATE(tblREGASSLookup[[#This Row],[Primary Account]],tblREGASSLookup[[#This Row],[Primary Name]],tblREGASSLookup[[#This Row],[Secondary Acct]],tblREGASSLookup[[#This Row],[Secondary  Name]],tblREGASSLookup[[#This Row],[Alloc4FUNC]])","v":"1823940DSR CARRYING CHARGES103140Wy DSM - Cat1 - Carrying ChargesOTHER"},1823940,"DSR CARRYING CHARGES",103140,"Wy DSM - Cat1 - Carrying Charges","OTHER",null,{"$f":"IF(OR(tblREGASSLookup[[#This Row],[Alloc]]=\"IDU\",tblREGASSLookup[[#This Row],[Alloc]]=\"OR\",tblREGASSLookup[[#This Row],[Alloc]]=\"UT\",tblREGASSLookup[[#This Row],[Alloc]]=\"WYU\",tblREGASSLookup[[#This Row],[Alloc]]=\"WYP\",tblREGASSLookup[[#This Row],[Alloc]]=\"CA\",tblREGASSLookup[[#This Row],[Alloc]]=\"WA\"),\"SITUS\",tblREGASSLookup[[#This Row],[Alloc]])","v":"OTHER"},"CUST"]
[{"$f":"CONCATENATE(tblREGASSLookup[[#This Row],[Primary Account]],tblREGASSLookup[[#This Row],[Primary Name]],tblREGASSLookup[[#This Row],[Secondary Acct]],tblREGASSLookup[[#This Row],[Secondary  Name]],tblREGASSLookup[[#This Row],[Alloc4FUNC]])","v":"1823940DSR CARRYING CHARGES103141Wy DSM - Cat2 - Carrying ChargesOTHER"},1823940,"DSR CARRYING CHARGES",103141,"Wy DSM - Cat2 - Carrying Charges","OTHER",null,{"$f":"IF(OR(tblREGASSLookup[[#This Row],[Alloc]]=\"IDU\",tblREGASSLookup[[#This Row],[Alloc]]=\"OR\",tblREGASSLookup[[#This Row],[Alloc]]=\"UT\",tblREGASSLookup[[#This Row],[Alloc]]=\"WYU\",tblREGASSLookup[[#This Row],[Alloc]]=\"WYP\",tblREGASSLookup[[#This Row],[Alloc]]=\"CA\",tblREGASSLookup[[#This Row],[Alloc]]=\"WA\"),\"SITUS\",tblREGASSLookup[[#This Row],[Alloc]])","v":"OTHER"},"CUST"]
[{"$f":"CONCATENATE(tblREGASSLookup[[#This Row],[Primary Account]],tblREGASSLookup[[#This Row],[Primary Name]],tblREGASSLookup[[#This Row],[Secondary Acct]],tblREGASSLookup[[#This Row],[Secondary  Name]],tblREGASSLookup[[#This Row],[Alloc4FUNC]])","v":"1823940DSR CARRYING CHARGES103142Wy DSM - Cat3 - Carrying ChargesOTHER"},1823940,"DSR CARRYING CHARGES",103142,"Wy DSM - Cat3 - Carrying Charges","OTHER",null,{"$f":"IF(OR(tblREGASSLookup[[#This Row],[Alloc]]=\"IDU\",tblREGASSLookup[[#This Row],[Alloc]]=\"OR\",tblREGASSLookup[[#This Row],[Alloc]]=\"UT\",tblREGASSLookup[[#This Row],[Alloc]]=\"WYU\",tblREGASSLookup[[#This Row],[Alloc]]=\"WYP\",tblREGASSLookup[[#This Row],[Alloc]]=\"CA\",tblREGASSLookup[[#This Row],[Alloc]]=\"WA\"),\"SITUS\",tblREGASSLookup[[#This Row],[Alloc]])","v":"OTHER"},"CUST"]
[{"$f":"CONCATENATE(tblREGASSLookup[[#This Row],[Primary Account]],tblREGASSLookup[[#This Row],[Primary Name]],tblREGASSLookup[[#This Row],[Secondary Acct]],tblREGASSLookup[[#This Row],[Secondary  Name]],tblREGASSLookup[[#This Row],[Alloc4FUNC]])","v":"1823940DSR CARRYING CHARGES103279CA CARRYING CHRG LIEE - 2011OTHER"},1823940,"DSR CARRYING CHARGES",103279,"CA CARRYING CHRG LIEE - 2011","OTHER",null,{"$f":"IF(OR(tblREGASSLookup[[#This Row],[Alloc]]=\"IDU\",tblREGASSLookup[[#This Row],[Alloc]]=\"OR\",tblREGASSLookup[[#This Row],[Alloc]]=\"UT\",tblREGASSLookup[[#This Row],[Alloc]]=\"WYU\",tblREGASSLookup[[#This Row],[Alloc]]=\"WYP\",tblREGASSLookup[[#This Row],[Alloc]]=\"CA\",tblREGASSLookup[[#This Row],[Alloc]]=\"WA\"),\"SITUS\",tblREGASSLookup[[#This Row],[Alloc]])","v":"OTHER"},"CUST"]
[{"$f":"CONCATENATE(tblREGASSLookup[[#This Row],[Primary Account]],tblREGASSLookup[[#This Row],[Primary Name]],tblREGASSLookup[[#This Row],[Secondary Acct]],tblREGASSLookup[[#This Row],[Secondary  Name]],tblREGASSLookup[[#This Row],[Alloc4FUNC]])","v":"1823990OTHR REG ASSET-N CST138015Reg Asset Current - Energy West MiningSE"},1823990,"OTHR REG ASSET-N CST",138015,"Reg Asset Current - Energy West Mining","SE",null,{"$f":"IF(OR(tblREGASSLookup[[#This Row],[Alloc]]=\"IDU\",tblREGASSLookup[[#This Row],[Alloc]]=\"OR\",tblREGASSLookup[[#This Row],[Alloc]]=\"UT\",tblREGASSLookup[[#This Row],[Alloc]]=\"WYU\",tblREGASSLookup[[#This Row],[Alloc]]=\"WYP\",tblREGASSLookup[[#This Row],[Alloc]]=\"CA\",tblREGASSLookup[[#This Row],[Alloc]]=\"WA\"),\"SITUS\",tblREGASSLookup[[#This Row],[Alloc]])","v":"SE"},"P"]
[{"$f":"CONCATENATE(tblREGASSLookup[[#This Row],[Primary Account]],tblREGASSLookup[[#This Row],[Primary Name]],tblREGASSLookup[[#This Row],[Secondary Acct]],tblREGASSLookup[[#This Row],[Secondary  Name]],tblREGASSLookup[[#This Row],[Alloc4FUNC]])","v":"1823990OTHR REG ASSET-N CST138020Reg Asset Current - DSMOTHER"},1823990,"OTHR REG ASSET-N CST",138020,"Reg Asset Current - DSM","OTHER",null,{"$f":"IF(OR(tblREGASSLookup[[#This Row],[Alloc]]=\"IDU\",tblREGASSLookup[[#This Row],[Alloc]]=\"OR\",tblREGASSLookup[[#This Row],[Alloc]]=\"UT\",tblREGASSLookup[[#This Row],[Alloc]]=\"WYU\",tblREGASSLookup[[#This Row],[Alloc]]=\"WYP\",tblREGASSLookup[[#This Row],[Alloc]]=\"CA\",tblREGASSLookup[[#This Row],[Alloc]]=\"WA\"),\"SITUS\",tblREGASSLookup[[#This Row],[Alloc]])","v":"OTHER"},"P"]
[{"$f":"CONCATENATE(tblREGASSLookup[[#This Row],[Primary Account]],tblREGASSLookup[[#This Row],[Primary Name]],tblREGASSLookup[[#This Row],[Secondary Acct]],tblREGASSLookup[[#This Row],[Secondary  Name]],tblREGASSLookup[[#This Row],[Alloc4FUNC]])","v":"1823990OTHR REG ASSET-N CST138045Reg Asset Current - GHG AllowancesOTHER"},1823990,"OTHR REG ASSET-N CST",138045,"Reg Asset Current - GHG Allowances","OTHER",null,{"$f":"IF(OR(tblREGASSLookup[[#This Row],[Alloc]]=\"IDU\",tblREGASSLookup[[#This Row],[Alloc]]=\"OR\",tblREGASSLookup[[#This Row],[Alloc]]=\"UT\",tblREGASSLookup[[#This Row],[Alloc]]=\"WYU\",tblREGASSLookup[[#This Row],[Alloc]]=\"WYP\",tblREGASSLookup[[#This Row],[Alloc]]=\"CA\",tblREGASSLookup[[#This Row],[Alloc]]=\"WA\"),\"SITUS\",tblREGASSLookup[[#This Row],[Alloc]])","v":"OTHER"},"P"]
[{"$f":"CONCATENATE(tblREGASSLookup[[#This Row],[Primary Account]],tblREGASSLookup[[#This Row],[Primary Name]],tblREGASSLookup[[#This Row],[Secondary Acct]],tblREGASSLookup[[#This Row],[Secondary  Name]],tblREGASSLookup[[#This Row],[Alloc4FUNC]])","v":"1823990OTHR REG ASSET-N CST138050Reg Asset Current - Def Net Power CostsOTHER"},1823990,"OTHR REG ASSET-N CST",138050,"Reg Asset Current - Def Net Power Costs","OTHER",null,{"$f":"IF(OR(tblREGASSLookup[[#This Row],[Alloc]]=\"IDU\",tblREGASSLookup[[#This Row],[Alloc]]=\"OR\",tblREGASSLookup[[#This Row],[Alloc]]=\"UT\",tblREGASSLookup[[#This Row],[Alloc]]=\"WYU\",tblREGASSLookup[[#This Row],[Alloc]]=\"WYP\",tblREGASSLookup[[#This Row],[Alloc]]=\"CA\",tblREGASSLookup[[#This Row],[Alloc]]=\"WA\"),\"SITUS\",tblREGASSLookup[[#This Row],[Alloc]])","v":"OTHER"},"P"]
[{"$f":"CONCATENATE(tblREGASSLookup[[#This Row],[Primary Account]],tblREGASSLookup[[#This Row],[Primary Name]],tblREGASSLookup[[#This Row],[Secondary Acct]],tblREGASSLookup[[#This Row],[Secondary  Name]],tblREGASSLookup[[#This Row],[Alloc4FUNC]])","v":"1823990OTHR REG ASSET-N CST138055Reg Asset Current - Def RECs in RatesOTHER"},1823990,"OTHR REG ASSET-N CST",138055,"Reg Asset Current - Def RECs in Rates","OTHER",null,{"$f":"IF(OR(tblREGASSLookup[[#This Row],[Alloc]]=\"IDU\",tblREGASSLookup[[#This Row],[Alloc]]=\"OR\",tblREGASSLookup[[#This Row],[Alloc]]=\"UT\",tblREGASSLookup[[#This Row],[Alloc]]=\"WYU\",tblREGASSLookup[[#This Row],[Alloc]]=\"WYP\",tblREGASSLookup[[#This Row],[Alloc]]=\"CA\",tblREGASSLookup[[#This Row],[Alloc]]=\"WA\"),\"SITUS\",tblREGASSLookup[[#This Row],[Alloc]])","v":"OTHER"},"P"]
[{"$f":"CONCATENATE(tblREGASSLookup[[#This Row],[Primary Account]],tblREGASSLookup[[#This Row],[Primary Name]],tblREGASSLookup[[#This Row],[Secondary Acct]],tblREGASSLookup[[#This Row],[Secondary  Name]],tblREGASSLookup[[#This Row],[Alloc4FUNC]])","v":"1823990OTHR REG ASSET-N CST138060Reg Asset Current - BPA Balancing AcctsOTHER"},1823990,"OTHR REG ASSET-N CST",138060,"Reg Asset Current - BPA Balancing Accts","OTHER",null,{"$f":"IF(OR(tblREGASSLookup[[#This Row],[Alloc]]=\"IDU\",tblREGASSLookup[[#This Row],[Alloc]]=\"OR\",tblREGASSLookup[[#This Row],[Alloc]]=\"UT\",tblREGASSLookup[[#This Row],[Alloc]]=\"WYU\",tblREGASSLookup[[#This Row],[Alloc]]=\"WYP\",tblREGASSLookup[[#This Row],[Alloc]]=\"CA\",tblREGASSLookup[[#This Row],[Alloc]]=\"WA\"),\"SITUS\",tblREGASSLookup[[#This Row],[Alloc]])","v":"OTHER"},"CUST"]
[{"$f":"CONCATENATE(tblREGASSLookup[[#This Row],[Primary Account]],tblREGASSLookup[[#This Row],[Primary Name]],tblREGASSLookup[[#This Row],[Secondary Acct]],tblREGASSLookup[[#This Row],[Secondary  Name]],tblREGASSLookup[[#This Row],[Alloc4FUNC]])","v":"1823990OTHR REG ASSET-N CST138090Reg Asset Current - Solar Feed-InOTHER"},1823990,"OTHR REG ASSET-N CST",138090,"Reg Asset Current - Solar Feed-In","OTHER",null,{"$f":"IF(OR(tblREGASSLookup[[#This Row],[Alloc]]=\"IDU\",tblREGASSLookup[[#This Row],[Alloc]]=\"OR\",tblREGASSLookup[[#This Row],[Alloc]]=\"UT\",tblREGASSLookup[[#This Row],[Alloc]]=\"WYU\",tblREGASSLookup[[#This Row],[Alloc]]=\"WYP\",tblREGASSLookup[[#This Row],[Alloc]]=\"CA\",tblREGASSLookup[[#This Row],[Alloc]]=\"WA\"),\"SITUS\",tblREGASSLookup[[#This Row],[Alloc]])","v":"OTHER"},"p"]
[{"$f":"CONCATENATE(tblREGASSLookup[[#This Row],[Primary Account]],tblREGASSLookup[[#This Row],[Primary Name]],tblREGASSLookup[[#This Row],[Secondary Acct]],tblREGASSLookup[[#This Row],[Secondary  Name]],tblREGASSLookup[[#This Row],[Alloc4FUNC]])","v":"1823990OTHR REG ASSET-N CST138190Reg Asset Current - OtherOTHER"},1823990,"OTHR REG ASSET-N CST",138190,"Reg Asset Current - Other","OTHER",null,{"$f":"IF(OR(tblREGASSLookup[[#This Row],[Alloc]]=\"IDU\",tblREGASSLookup[[#This Row],[Alloc]]=\"OR\",tblREGASSLookup[[#This Row],[Alloc]]=\"UT\",tblREGASSLookup[[#This Row],[Alloc]]=\"WYU\",tblREGASSLookup[[#This Row],[Alloc]]=\"WYP\",tblREGASSLookup[[#This Row],[Alloc]]=\"CA\",tblREGASSLookup[[#This Row],[Alloc]]=\"WA\"),\"SITUS\",tblREGASSLookup[[#This Row],[Alloc]])","v":"OTHER"},"PTD"]
[{"$f":"CONCATENATE(tblREGASSLookup[[#This Row],[Primary Account]],tblREGASSLookup[[#This Row],[Primary Name]],tblREGASSLookup[[#This Row],[Secondary Acct]],tblREGASSLookup[[#This Row],[Secondary  Name]],tblREGASSLookup[[#This Row],[Alloc4FUNC]])","v":"1823990OTHR REG ASSET-N CST186095RegA - DSM - Recl to CurrOTHER"},1823990,"OTHR REG ASSET-N CST",186095,"RegA - DSM - Recl to Curr","OTHER",null,{"$f":"IF(OR(tblREGASSLookup[[#This Row],[Alloc]]=\"IDU\",tblREGASSLookup[[#This Row],[Alloc]]=\"OR\",tblREGASSLookup[[#This Row],[Alloc]]=\"UT\",tblREGASSLookup[[#This Row],[Alloc]]=\"WYU\",tblREGASSLookup[[#This Row],[Alloc]]=\"WYP\",tblREGASSLookup[[#This Row],[Alloc]]=\"CA\",tblREGASSLookup[[#This Row],[Alloc]]=\"WA\"),\"SITUS\",tblREGASSLookup[[#This Row],[Alloc]])","v":"OTHER"},"P"]
[{"$f":"CONCATENATE(tblREGASSLookup[[#This Row],[Primary Account]],tblREGASSLookup[[#This Row],[Primary Name]],tblREGASSLookup[[#This Row],[Secondary Acct]],tblREGASSLookup[[#This Row],[Secondary  Name]],tblREGASSLookup[[#This Row],[Alloc4FUNC]])","v":"1823990OTHR REG ASSET-N CST186099Regulatory Asset - Balance ReclassOTHER"},1823990,"OTHR REG ASSET-N CST",186099,"Regulatory Asset - Balance Reclass","OTHER",null,{"$f":"IF(OR(tblREGASSLookup[[#This Row],[Alloc]]=\"IDU\",tblREGASSLookup[[#This Row],[Alloc]]=\"OR\",tblREGASSLookup[[#This Row],[Alloc]]=\"UT\",tblREGASSLookup[[#This Row],[Alloc]]=\"WYU\",tblREGASSLookup[[#This Row],[Alloc]]=\"WYP\",tblREGASSLookup[[#This Row],[Alloc]]=\"CA\",tblREGASSLookup[[#This Row],[Alloc]]=\"WA\"),\"SITUS\",tblREGASSLookup[[#This Row],[Alloc]])","v":"OTHER"},"P"]
[{"$f":"CONCATENATE(tblREGASSLookup[[#This Row],[Primary Account]],tblREGASSLookup[[#This Row],[Primary Name]],tblREGASSLookup[[#This Row],[Secondary Acct]],tblREGASSLookup[[#This Row],[Secondary  Name]],tblREGASSLookup[[#This Row],[Alloc4FUNC]])","v":"1823990OTHR REG ASSET-N CST186100Calif Alternative Rate for Energy (CARE)OTHER"},1823990,"OTHR REG ASSET-N CST",186100,"Calif Alternative Rate for Energy (CARE)","OTHER",null,{"$f":"IF(OR(tblREGASSLookup[[#This Row],[Alloc]]=\"IDU\",tblREGASSLookup[[#This Row],[Alloc]]=\"OR\",tblREGASSLookup[[#This Row],[Alloc]]=\"UT\",tblREGASSLookup[[#This Row],[Alloc]]=\"WYU\",tblREGASSLookup[[#This Row],[Alloc]]=\"WYP\",tblREGASSLookup[[#This Row],[Alloc]]=\"CA\",tblREGASSLookup[[#This Row],[Alloc]]=\"WA\"),\"SITUS\",tblREGASSLookup[[#This Row],[Alloc]])","v":"OTHER"},"CUST"]
[{"$f":"CONCATENATE(tblREGASSLookup[[#This Row],[Primary Account]],tblREGASSLookup[[#This Row],[Primary Name]],tblREGASSLookup[[#This Row],[Secondary Acct]],tblREGASSLookup[[#This Row],[Secondary  Name]],tblREGASSLookup[[#This Row],[Alloc4FUNC]])","v":"1823990OTHR REG ASSET-N CST186119Reg Asset - DSM - CA - Balance ReclassOTHER"},1823990,"OTHR REG ASSET-N CST",186119,"Reg Asset - DSM - CA - Balance Reclass","OTHER",null,{"$f":"IF(OR(tblREGASSLookup[[#This Row],[Alloc]]=\"IDU\",tblREGASSLookup[[#This Row],[Alloc]]=\"OR\",tblREGASSLookup[[#This Row],[Alloc]]=\"UT\",tblREGASSLookup[[#This Row],[Alloc]]=\"WYU\",tblREGASSLookup[[#This Row],[Alloc]]=\"WYP\",tblREGASSLookup[[#This Row],[Alloc]]=\"CA\",tblREGASSLookup[[#This Row],[Alloc]]=\"WA\"),\"SITUS\",tblREGASSLookup[[#This Row],[Alloc]])","v":"OTHER"},"P"]
[{"$f":"CONCATENATE(tblREGASSLookup[[#This Row],[Primary Account]],tblREGASSLookup[[#This Row],[Primary Name]],tblREGASSLookup[[#This Row],[Secondary Acct]],tblREGASSLookup[[#This Row],[Secondary  Name]],tblREGASSLookup[[#This Row],[Alloc4FUNC]])","v":"1823990OTHR REG ASSET-N CST186129Reg Asset - DSM - ID - Balance ReclassOTHER"},1823990,"OTHR REG ASSET-N CST",186129,"Reg Asset - DSM - ID - Balance Reclass","OTHER",null,{"$f":"IF(OR(tblREGASSLookup[[#This Row],[Alloc]]=\"IDU\",tblREGASSLookup[[#This Row],[Alloc]]=\"OR\",tblREGASSLookup[[#This Row],[Alloc]]=\"UT\",tblREGASSLookup[[#This Row],[Alloc]]=\"WYU\",tblREGASSLookup[[#This Row],[Alloc]]=\"WYP\",tblREGASSLookup[[#This Row],[Alloc]]=\"CA\",tblREGASSLookup[[#This Row],[Alloc]]=\"WA\"),\"SITUS\",tblREGASSLookup[[#This Row],[Alloc]])","v":"OTHER"},"P"]
[{"$f":"CONCATENATE(tblREGASSLookup[[#This Row],[Primary Account]],tblREGASSLookup[[#This Row],[Primary Name]],tblREGASSLookup[[#This Row],[Secondary Acct]],tblREGASSLookup[[#This Row],[Secondary  Name]],tblREGASSLookup[[#This Row],[Alloc4FUNC]])","v":"1823990OTHR REG ASSET-N CST186137RegA - DSM - OR - Reclass to CurrentOTHER"},1823990,"OTHR REG ASSET-N CST",186137,"RegA - DSM - OR - Reclass to Current","OTHER",null,{"$f":"IF(OR(tblREGASSLookup[[#This Row],[Alloc]]=\"IDU\",tblREGASSLookup[[#This Row],[Alloc]]=\"OR\",tblREGASSLookup[[#This Row],[Alloc]]=\"UT\",tblREGASSLookup[[#This Row],[Alloc]]=\"WYU\",tblREGASSLookup[[#This Row],[Alloc]]=\"WYP\",tblREGASSLookup[[#This Row],[Alloc]]=\"CA\",tblREGASSLookup[[#This Row],[Alloc]]=\"WA\"),\"SITUS\",tblREGASSLookup[[#This Row],[Alloc]])","v":"OTHER"},"P"]
[{"$f":"CONCATENATE(tblREGASSLookup[[#This Row],[Primary Account]],tblREGASSLookup[[#This Row],[Primary Name]],tblREGASSLookup[[#This Row],[Secondary Acct]],tblREGASSLookup[[#This Row],[Secondary  Name]],tblREGASSLookup[[#This Row],[Alloc4FUNC]])","v":"1823990OTHR REG ASSET-N CST186139Reg Asset - DSM - OR - Balance ReclassOTHER"},1823990,"OTHR REG ASSET-N CST",186139,"Reg Asset - DSM - OR - Balance Reclass","OTHER",null,{"$f":"IF(OR(tblREGASSLookup[[#This Row],[Alloc]]=\"IDU\",tblREGASSLookup[[#This Row],[Alloc]]=\"OR\",tblREGASSLookup[[#This Row],[Alloc]]=\"UT\",tblREGASSLookup[[#This Row],[Alloc]]=\"WYU\",tblREGASSLookup[[#This Row],[Alloc]]=\"WYP\",tblREGASSLookup[[#This Row],[Alloc]]=\"CA\",tblREGASSLookup[[#This Row],[Alloc]]=\"WA\"),\"SITUS\",tblREGASSLookup[[#This Row],[Alloc]])","v":"OTHER"},"P"]
[{"$f":"CONCATENATE(tblREGASSLookup[[#This Row],[Primary Account]],tblREGASSLookup[[#This Row],[Primary Name]],tblREGASSLookup[[#This Row],[Secondary Acct]],tblREGASSLookup[[#This Row],[Secondary  Name]],tblREGASSLookup[[#This Row],[Alloc4FUNC]])","v":"1823990OTHR REG ASSET-N CST186149Reg Asset - DSM - UT - Balance ReclassOTHER"},1823990,"OTHR REG ASSET-N CST",186149,"Reg Asset - DSM - UT - Balance Reclass","OTHER",null,{"$f":"IF(OR(tblREGASSLookup[[#This Row],[Alloc]]=\"IDU\",tblREGASSLookup[[#This Row],[Alloc]]=\"OR\",tblREGASSLookup[[#This Row],[Alloc]]=\"UT\",tblREGASSLookup[[#This Row],[Alloc]]=\"WYU\",tblREGASSLookup[[#This Row],[Alloc]]=\"WYP\",tblREGASSLookup[[#This Row],[Alloc]]=\"CA\",tblREGASSLookup[[#This Row],[Alloc]]=\"WA\"),\"SITUS\",tblREGASSLookup[[#This Row],[Alloc]])","v":"OTHER"},"P"]
[{"$f":"CONCATENATE(tblREGASSLookup[[#This Row],[Primary Account]],tblREGASSLookup[[#This Row],[Primary Name]],tblREGASSLookup[[#This Row],[Secondary Acct]],tblREGASSLookup[[#This Row],[Secondary  Name]],tblREGASSLookup[[#This Row],[Alloc4FUNC]])","v":"1823990OTHR REG ASSET-N CST186157RegA - DSM - WA - Reclass to CurrentOTHER"},1823990,"OTHR REG ASSET-N CST",186157,"RegA - DSM - WA - Reclass to Current","OTHER",null,{"$f":"IF(OR(tblREGASSLookup[[#This Row],[Alloc]]=\"IDU\",tblREGASSLookup[[#This Row],[Alloc]]=\"OR\",tblREGASSLookup[[#This Row],[Alloc]]=\"UT\",tblREGASSLookup[[#This Row],[Alloc]]=\"WYU\",tblREGASSLookup[[#This Row],[Alloc]]=\"WYP\",tblREGASSLookup[[#This Row],[Alloc]]=\"CA\",tblREGASSLookup[[#This Row],[Alloc]]=\"WA\"),\"SITUS\",tblREGASSLookup[[#This Row],[Alloc]])","v":"OTHER"},"P"]
[{"$f":"CONCATENATE(tblREGASSLookup[[#This Row],[Primary Account]],tblREGASSLookup[[#This Row],[Primary Name]],tblREGASSLookup[[#This Row],[Secondary Acct]],tblREGASSLookup[[#This Row],[Secondary  Name]],tblREGASSLookup[[#This Row],[Alloc4FUNC]])","v":"1823990OTHR REG ASSET-N CST186167RegA - DSM - WY - Reclass to CurrentOTHER"},1823990,"OTHR REG ASSET-N CST",186167,"RegA - DSM - WY - Reclass to Current","OTHER",null,{"$f":"IF(OR(tblREGASSLookup[[#This Row],[Alloc]]=\"IDU\",tblREGASSLookup[[#This Row],[Alloc]]=\"OR\",tblREGASSLookup[[#This Row],[Alloc]]=\"UT\",tblREGASSLookup[[#This Row],[Alloc]]=\"WYU\",tblREGASSLookup[[#This Row],[Alloc]]=\"WYP\",tblREGASSLookup[[#This Row],[Alloc]]=\"CA\",tblREGASSLookup[[#This Row],[Alloc]]=\"WA\"),\"SITUS\",tblREGASSLookup[[#This Row],[Alloc]])","v":"OTHER"},"P"]
[{"$f":"CONCATENATE(tblREGASSLookup[[#This Row],[Primary Account]],tblREGASSLookup[[#This Row],[Primary Name]],tblREGASSLookup[[#This Row],[Secondary Acct]],tblREGASSLookup[[#This Row],[Secondary  Name]],tblREGASSLookup[[#This Row],[Alloc4FUNC]])","v":"1823990OTHR REG ASSET-N CST186502POWERDALE HYDRO DECOM REG ASSET - IDSITUS"},1823990,"OTHR REG ASSET-N CST",186502,"POWERDALE HYDRO DECOM REG ASSET - ID","SITUS",null,{"$f":"IF(OR(tblREGASSLookup[[#This Row],[Alloc]]=\"IDU\",tblREGASSLookup[[#This Row],[Alloc]]=\"OR\",tblREGASSLookup[[#This Row],[Alloc]]=\"UT\",tblREGASSLookup[[#This Row],[Alloc]]=\"WYU\",tblREGASSLookup[[#This Row],[Alloc]]=\"WYP\",tblREGASSLookup[[#This Row],[Alloc]]=\"CA\",tblREGASSLookup[[#This Row],[Alloc]]=\"WA\"),\"SITUS\",tblREGASSLookup[[#This Row],[Alloc]])","v":"SITUS"},"P"]
[{"$f":"CONCATENATE(tblREGASSLookup[[#This Row],[Primary Account]],tblREGASSLookup[[#This Row],[Primary Name]],tblREGASSLookup[[#This Row],[Secondary Acct]],tblREGASSLookup[[#This Row],[Secondary  Name]],tblREGASSLookup[[#This Row],[Alloc4FUNC]])","v":"1823990OTHR REG ASSET-N CST186793RegA - Deer Creek - OR - Recl to CurrSE"},1823990,"OTHR REG ASSET-N CST",186793,"RegA - Deer Creek - OR - Recl to Curr","SE",null,{"$f":"IF(OR(tblREGASSLookup[[#This Row],[Alloc]]=\"IDU\",tblREGASSLookup[[#This Row],[Alloc]]=\"OR\",tblREGASSLookup[[#This Row],[Alloc]]=\"UT\",tblREGASSLookup[[#This Row],[Alloc]]=\"WYU\",tblREGASSLookup[[#This Row],[Alloc]]=\"WYP\",tblREGASSLookup[[#This Row],[Alloc]]=\"CA\",tblREGASSLookup[[#This Row],[Alloc]]=\"WA\"),\"SITUS\",tblREGASSLookup[[#This Row],[Alloc]])","v":"SE"},"P"]
[{"$f":"CONCATENATE(tblREGASSLookup[[#This Row],[Primary Account]],tblREGASSLookup[[#This Row],[Primary Name]],tblREGASSLookup[[#This Row],[Secondary Acct]],tblREGASSLookup[[#This Row],[Secondary  Name]],tblREGASSLookup[[#This Row],[Alloc4FUNC]])","v":"1823990OTHR REG ASSET-N CST187028TRANSITION COSTS-RETIREMENT & DISPLACESO"},1823990,"OTHR REG ASSET-N CST",187028,"TRANSITION COSTS-RETIREMENT & DISPLACE","SO",null,{"$f":"IF(OR(tblREGASSLookup[[#This Row],[Alloc]]=\"IDU\",tblREGASSLookup[[#This Row],[Alloc]]=\"OR\",tblREGASSLookup[[#This Row],[Alloc]]=\"UT\",tblREGASSLookup[[#This Row],[Alloc]]=\"WYU\",tblREGASSLookup[[#This Row],[Alloc]]=\"WYP\",tblREGASSLookup[[#This Row],[Alloc]]=\"CA\",tblREGASSLookup[[#This Row],[Alloc]]=\"WA\"),\"SITUS\",tblREGASSLookup[[#This Row],[Alloc]])","v":"SO"},"P"]
[{"$f":"CONCATENATE(tblREGASSLookup[[#This Row],[Primary Account]],tblREGASSLookup[[#This Row],[Primary Name]],tblREGASSLookup[[#This Row],[Secondary Acct]],tblREGASSLookup[[#This Row],[Secondary  Name]],tblREGASSLookup[[#This Row],[Alloc4FUNC]])","v":"1823990OTHR REG ASSET-N CST187042Reg Asset - CA GHG AllowancesOTHER"},1823990,"OTHR REG ASSET-N CST",187042,"Reg Asset - CA GHG Allowances","OTHER",null,{"$f":"IF(OR(tblREGASSLookup[[#This Row],[Alloc]]=\"IDU\",tblREGASSLookup[[#This Row],[Alloc]]=\"OR\",tblREGASSLookup[[#This Row],[Alloc]]=\"UT\",tblREGASSLookup[[#This Row],[Alloc]]=\"WYU\",tblREGASSLookup[[#This Row],[Alloc]]=\"WYP\",tblREGASSLookup[[#This Row],[Alloc]]=\"CA\",tblREGASSLookup[[#This Row],[Alloc]]=\"WA\"),\"SITUS\",tblREGASSLookup[[#This Row],[Alloc]])","v":"OTHER"},"P"]
[{"$f":"CONCATENATE(tblREGASSLookup[[#This Row],[Primary Account]],tblREGASSLookup[[#This Row],[Primary Name]],tblREGASSLookup[[#This Row],[Secondary Acct]],tblREGASSLookup[[#This Row],[Secondary  Name]],tblREGASSLookup[[#This Row],[Alloc4FUNC]])","v":"1823990OTHR REG ASSET-N CST187048RegA - CA GHG Allowances - Recl to CurrOTHER"},1823990,"OTHR REG ASSET-N CST",187048,"RegA - CA GHG Allowances - Recl to Curr","OTHER",null,{"$f":"IF(OR(tblREGASSLookup[[#This Row],[Alloc]]=\"IDU\",tblREGASSLookup[[#This Row],[Alloc]]=\"OR\",tblREGASSLookup[[#This Row],[Alloc]]=\"UT\",tblREGASSLookup[[#This Row],[Alloc]]=\"WYU\",tblREGASSLookup[[#This Row],[Alloc]]=\"WYP\",tblREGASSLookup[[#This Row],[Alloc]]=\"CA\",tblREGASSLookup[[#This Row],[Alloc]]=\"WA\"),\"SITUS\",tblREGASSLookup[[#This Row],[Alloc]])","v":"OTHER"},"P"]
[{"$f":"CONCATENATE(tblREGASSLookup[[#This Row],[Primary Account]],tblREGASSLookup[[#This Row],[Primary Name]],tblREGASSLookup[[#This Row],[Secondary Acct]],tblREGASSLookup[[#This Row],[Secondary  Name]],tblREGASSLookup[[#This Row],[Alloc4FUNC]])","v":"1823990OTHR REG ASSET-N CST187049RegA - CA GHG Allowances - Balance ReclOTHER"},1823990,"OTHR REG ASSET-N CST",187049,"RegA - CA GHG Allowances - Balance Recl","OTHER",null,{"$f":"IF(OR(tblREGASSLookup[[#This Row],[Alloc]]=\"IDU\",tblREGASSLookup[[#This Row],[Alloc]]=\"OR\",tblREGASSLookup[[#This Row],[Alloc]]=\"UT\",tblREGASSLookup[[#This Row],[Alloc]]=\"WYU\",tblREGASSLookup[[#This Row],[Alloc]]=\"WYP\",tblREGASSLookup[[#This Row],[Alloc]]=\"CA\",tblREGASSLookup[[#This Row],[Alloc]]=\"WA\"),\"SITUS\",tblREGASSLookup[[#This Row],[Alloc]])","v":"OTHER"},"P"]
[{"$f":"CONCATENATE(tblREGASSLookup[[#This Row],[Primary Account]],tblREGASSLookup[[#This Row],[Primary Name]],tblREGASSLookup[[#This Row],[Secondary Acct]],tblREGASSLookup[[#This Row],[Secondary  Name]],tblREGASSLookup[[#This Row],[Alloc4FUNC]])","v":"1823990OTHR REG ASSET-N CST187050CHOLLA PLANT TRANSACTION COSTSSGCT"},1823990,"OTHR REG ASSET-N CST",187050,"CHOLLA PLANT TRANSACTION COSTS","SGCT",null,{"$f":"IF(OR(tblREGASSLookup[[#This Row],[Alloc]]=\"IDU\",tblREGASSLookup[[#This Row],[Alloc]]=\"OR\",tblREGASSLookup[[#This Row],[Alloc]]=\"UT\",tblREGASSLookup[[#This Row],[Alloc]]=\"WYU\",tblREGASSLookup[[#This Row],[Alloc]]=\"WYP\",tblREGASSLookup[[#This Row],[Alloc]]=\"CA\",tblREGASSLookup[[#This Row],[Alloc]]=\"WA\"),\"SITUS\",tblREGASSLookup[[#This Row],[Alloc]])","v":"SGCT"},"P"]
[{"$f":"CONCATENATE(tblREGASSLookup[[#This Row],[Primary Account]],tblREGASSLookup[[#This Row],[Primary Name]],tblREGASSLookup[[#This Row],[Secondary Acct]],tblREGASSLookup[[#This Row],[Secondary  Name]],tblREGASSLookup[[#This Row],[Alloc4FUNC]])","v":"1823990OTHR REG ASSET-N CST187051WASHINGTON COLSTRIP #3 REGULATORY ASSETSE"},1823990,"OTHR REG ASSET-N CST",187051,"WASHINGTON COLSTRIP #3 REGULATORY ASSET","SE",null,{"$f":"IF(OR(tblREGASSLookup[[#This Row],[Alloc]]=\"IDU\",tblREGASSLookup[[#This Row],[Alloc]]=\"OR\",tblREGASSLookup[[#This Row],[Alloc]]=\"UT\",tblREGASSLookup[[#This Row],[Alloc]]=\"WYU\",tblREGASSLookup[[#This Row],[Alloc]]=\"WYP\",tblREGASSLookup[[#This Row],[Alloc]]=\"CA\",tblREGASSLookup[[#This Row],[Alloc]]=\"WA\"),\"SITUS\",tblREGASSLookup[[#This Row],[Alloc]])","v":"SE"},"P"]
[{"$f":"CONCATENATE(tblREGASSLookup[[#This Row],[Primary Account]],tblREGASSLookup[[#This Row],[Primary Name]],tblREGASSLookup[[#This Row],[Secondary Acct]],tblREGASSLookup[[#This Row],[Secondary  Name]],tblREGASSLookup[[#This Row],[Alloc4FUNC]])","v":"1823990OTHR REG ASSET-N CST187051WASHINGTON COLSTRIP #3 REGULATORY ASSETSITUS"},1823990,"OTHR REG ASSET-N CST",187051,"WASHINGTON COLSTRIP #3 REGULATORY ASSET","SITUS",null,{"$f":"IF(OR(tblREGASSLookup[[#This Row],[Alloc]]=\"IDU\",tblREGASSLookup[[#This Row],[Alloc]]=\"OR\",tblREGASSLookup[[#This Row],[Alloc]]=\"UT\",tblREGASSLookup[[#This Row],[Alloc]]=\"WYU\",tblREGASSLookup[[#This Row],[Alloc]]=\"WYP\",tblREGASSLookup[[#This Row],[Alloc]]=\"CA\",tblREGASSLookup[[#This Row],[Alloc]]=\"WA\"),\"SITUS\",tblREGASSLookup[[#This Row],[Alloc]])","v":"SITUS"},"P"]
[{"$f":"CONCATENATE(tblREGASSLookup[[#This Row],[Primary Account]],tblREGASSLookup[[#This Row],[Primary Name]],tblREGASSLookup[[#This Row],[Secondary Acct]],tblREGASSLookup[[#This Row],[Secondary  Name]],tblREGASSLookup[[#This Row],[Alloc4FUNC]])","v":"1823990OTHR REG ASSET-N CST187058TRAIL MOUNTAIN MINE CLOSURE COSTSSE"},1823990,"OTHR REG ASSET-N CST",187058,"TRAIL MOUNTAIN MINE CLOSURE COSTS","SE",null,{"$f":"IF(OR(tblREGASSLookup[[#This Row],[Alloc]]=\"IDU\",tblREGASSLookup[[#This Row],[Alloc]]=\"OR\",tblREGASSLookup[[#This Row],[Alloc]]=\"UT\",tblREGASSLookup[[#This Row],[Alloc]]=\"WYU\",tblREGASSLookup[[#This Row],[Alloc]]=\"WYP\",tblREGASSLookup[[#This Row],[Alloc]]=\"CA\",tblREGASSLookup[[#This Row],[Alloc]]=\"WA\"),\"SITUS\",tblREGASSLookup[[#This Row],[Alloc]])","v":"SE"},"P"]
[{"$f":"CONCATENATE(tblREGASSLookup[[#This Row],[Primary Account]],tblREGASSLookup[[#This Row],[Primary Name]],tblREGASSLookup[[#This Row],[Secondary Acct]],tblREGASSLookup[[#This Row],[Secondary  Name]],tblREGASSLookup[[#This Row],[Alloc4FUNC]])","v":"1823990OTHR REG ASSET-N CST187070Trail Mtn Mine Costs - Deseret SettlemenSE"},1823990,"OTHR REG ASSET-N CST",187070,"Trail Mtn Mine Costs - Deseret Settlemen","SE",null,{"$f":"IF(OR(tblREGASSLookup[[#This Row],[Alloc]]=\"IDU\",tblREGASSLookup[[#This Row],[Alloc]]=\"OR\",tblREGASSLookup[[#This Row],[Alloc]]=\"UT\",tblREGASSLookup[[#This Row],[Alloc]]=\"WYU\",tblREGASSLookup[[#This Row],[Alloc]]=\"WYP\",tblREGASSLookup[[#This Row],[Alloc]]=\"CA\",tblREGASSLookup[[#This Row],[Alloc]]=\"WA\"),\"SITUS\",tblREGASSLookup[[#This Row],[Alloc]])","v":"SE"},"P"]
[{"$f":"CONCATENATE(tblREGASSLookup[[#This Row],[Primary Account]],tblREGASSLookup[[#This Row],[Primary Name]],tblREGASSLookup[[#This Row],[Secondary Acct]],tblREGASSLookup[[#This Row],[Secondary  Name]],tblREGASSLookup[[#This Row],[Alloc4FUNC]])","v":"1823990OTHR REG ASSET-N CST187190Reg Asset-WA REC CY2014 ForwardOTHER"},1823990,"OTHR REG ASSET-N CST",187190,"Reg Asset-WA REC CY2014 Forward","OTHER",null,{"$f":"IF(OR(tblREGASSLookup[[#This Row],[Alloc]]=\"IDU\",tblREGASSLookup[[#This Row],[Alloc]]=\"OR\",tblREGASSLookup[[#This Row],[Alloc]]=\"UT\",tblREGASSLookup[[#This Row],[Alloc]]=\"WYU\",tblREGASSLookup[[#This Row],[Alloc]]=\"WYP\",tblREGASSLookup[[#This Row],[Alloc]]=\"CA\",tblREGASSLookup[[#This Row],[Alloc]]=\"WA\"),\"SITUS\",tblREGASSLookup[[#This Row],[Alloc]])","v":"OTHER"},"P"]
[{"$f":"CONCATENATE(tblREGASSLookup[[#This Row],[Primary Account]],tblREGASSLookup[[#This Row],[Primary Name]],tblREGASSLookup[[#This Row],[Secondary Acct]],tblREGASSLookup[[#This Row],[Secondary  Name]],tblREGASSLookup[[#This Row],[Alloc4FUNC]])","v":"1823990OTHR REG ASSET-N CST187191Reg Asset  - WA RPS PurchaseOTHER"},1823990,"OTHR REG ASSET-N CST",187191,"Reg Asset  - WA RPS Purchase","OTHER",null,{"$f":"IF(OR(tblREGASSLookup[[#This Row],[Alloc]]=\"IDU\",tblREGASSLookup[[#This Row],[Alloc]]=\"OR\",tblREGASSLookup[[#This Row],[Alloc]]=\"UT\",tblREGASSLookup[[#This Row],[Alloc]]=\"WYU\",tblREGASSLookup[[#This Row],[Alloc]]=\"WYP\",tblREGASSLookup[[#This Row],[Alloc]]=\"CA\",tblREGASSLookup[[#This Row],[Alloc]]=\"WA\"),\"SITUS\",tblREGASSLookup[[#This Row],[Alloc]])","v":"OTHER"},"P"]
[{"$f":"CONCATENATE(tblREGASSLookup[[#This Row],[Primary Account]],tblREGASSLookup[[#This Row],[Primary Name]],tblREGASSLookup[[#This Row],[Secondary Acct]],tblREGASSLookup[[#This Row],[Secondary  Name]],tblREGASSLookup[[#This Row],[Alloc4FUNC]])","v":"1823990OTHR REG ASSET-N CST187223Reg Asset - Tax Adj on PR Benefits - OROTHER"},1823990,"OTHR REG ASSET-N CST",187223,"Reg Asset - Tax Adj on PR Benefits - OR","OTHER",null,{"$f":"IF(OR(tblREGASSLookup[[#This Row],[Alloc]]=\"IDU\",tblREGASSLookup[[#This Row],[Alloc]]=\"OR\",tblREGASSLookup[[#This Row],[Alloc]]=\"UT\",tblREGASSLookup[[#This Row],[Alloc]]=\"WYU\",tblREGASSLookup[[#This Row],[Alloc]]=\"WYP\",tblREGASSLookup[[#This Row],[Alloc]]=\"CA\",tblREGASSLookup[[#This Row],[Alloc]]=\"WA\"),\"SITUS\",tblREGASSLookup[[#This Row],[Alloc]])","v":"OTHER"},"LABOR"]
[{"$f":"CONCATENATE(tblREGASSLookup[[#This Row],[Primary Account]],tblREGASSLookup[[#This Row],[Primary Name]],tblREGASSLookup[[#This Row],[Secondary Acct]],tblREGASSLookup[[#This Row],[Secondary  Name]],tblREGASSLookup[[#This Row],[Alloc4FUNC]])","v":"1823990OTHR REG ASSET-N CST187255RegA - BPA Balancing Accts - Recl to CurOTHER"},1823990,"OTHR REG ASSET-N CST",187255,"RegA - BPA Balancing Accts - Recl to Cur","OTHER",null,{"$f":"IF(OR(tblREGASSLookup[[#This Row],[Alloc]]=\"IDU\",tblREGASSLookup[[#This Row],[Alloc]]=\"OR\",tblREGASSLookup[[#This Row],[Alloc]]=\"UT\",tblREGASSLookup[[#This Row],[Alloc]]=\"WYU\",tblREGASSLookup[[#This Row],[Alloc]]=\"WYP\",tblREGASSLookup[[#This Row],[Alloc]]=\"CA\",tblREGASSLookup[[#This Row],[Alloc]]=\"WA\"),\"SITUS\",tblREGASSLookup[[#This Row],[Alloc]])","v":"OTHER"},"CUST"]
[{"$f":"CONCATENATE(tblREGASSLookup[[#This Row],[Primary Account]],tblREGASSLookup[[#This Row],[Primary Name]],tblREGASSLookup[[#This Row],[Secondary Acct]],tblREGASSLookup[[#This Row],[Secondary  Name]],tblREGASSLookup[[#This Row],[Alloc4FUNC]])","v":"1823990OTHR REG ASSET-N CST187300CA - Jan 2010 Storm CostsOTHER"},1823990,"OTHR REG ASSET-N CST",187300,"CA - Jan 2010 Storm Costs","OTHER",null,{"$f":"IF(OR(tblREGASSLookup[[#This Row],[Alloc]]=\"IDU\",tblREGASSLookup[[#This Row],[Alloc]]=\"OR\",tblREGASSLookup[[#This Row],[Alloc]]=\"UT\",tblREGASSLookup[[#This Row],[Alloc]]=\"WYU\",tblREGASSLookup[[#This Row],[Alloc]]=\"WYP\",tblREGASSLookup[[#This Row],[Alloc]]=\"CA\",tblREGASSLookup[[#This Row],[Alloc]]=\"WA\"),\"SITUS\",tblREGASSLookup[[#This Row],[Alloc]])","v":"OTHER"},"P"]
[{"$f":"CONCATENATE(tblREGASSLookup[[#This Row],[Primary Account]],tblREGASSLookup[[#This Row],[Primary Name]],tblREGASSLookup[[#This Row],[Secondary Acct]],tblREGASSLookup[[#This Row],[Secondary  Name]],tblREGASSLookup[[#This Row],[Alloc4FUNC]])","v":"1823990OTHR REG ASSET-N CST187305RegA - ID 2017 Protocol - MSP DeferralSITUS"},1823990,"OTHR REG ASSET-N CST",187305,"RegA - ID 2017 Protocol - MSP Deferral","SITUS",null,{"$f":"IF(OR(tblREGASSLookup[[#This Row],[Alloc]]=\"IDU\",tblREGASSLookup[[#This Row],[Alloc]]=\"OR\",tblREGASSLookup[[#This Row],[Alloc]]=\"UT\",tblREGASSLookup[[#This Row],[Alloc]]=\"WYU\",tblREGASSLookup[[#This Row],[Alloc]]=\"WYP\",tblREGASSLookup[[#This Row],[Alloc]]=\"CA\",tblREGASSLookup[[#This Row],[Alloc]]=\"WA\"),\"SITUS\",tblREGASSLookup[[#This Row],[Alloc]])","v":"SITUS"},"P"]
[{"$f":"CONCATENATE(tblREGASSLookup[[#This Row],[Primary Account]],tblREGASSLookup[[#This Row],[Primary Name]],tblREGASSLookup[[#This Row],[Secondary Acct]],tblREGASSLookup[[#This Row],[Secondary  Name]],tblREGASSLookup[[#This Row],[Alloc4FUNC]])","v":"1823990OTHR REG ASSET-N CST187306RegA - UT 2017 Protocol - MSP DeferralSITUS"},1823990,"OTHR REG ASSET-N CST",187306,"RegA - UT 2017 Protocol - MSP Deferral","SITUS",null,{"$f":"IF(OR(tblREGASSLookup[[#This Row],[Alloc]]=\"IDU\",tblREGASSLookup[[#This Row],[Alloc]]=\"OR\",tblREGASSLookup[[#This Row],[Alloc]]=\"UT\",tblREGASSLookup[[#This Row],[Alloc]]=\"WYU\",tblREGASSLookup[[#This Row],[Alloc]]=\"WYP\",tblREGASSLookup[[#This Row],[Alloc]]=\"CA\",tblREGASSLookup[[#This Row],[Alloc]]=\"WA\"),\"SITUS\",tblREGASSLookup[[#This Row],[Alloc]])","v":"SITUS"},"P"]
[{"$f":"CONCATENATE(tblREGASSLookup[[#This Row],[Primary Account]],tblREGASSLookup[[#This Row],[Primary Name]],tblREGASSLookup[[#This Row],[Secondary Acct]],tblREGASSLookup[[#This Row],[Secondary  Name]],tblREGASSLookup[[#This Row],[Alloc4FUNC]])","v":"1823990OTHR REG ASSET-N CST187307RegA - WY 2017 Protocol - MSP DeferralSITUS"},1823990,"OTHR REG ASSET-N CST",187307,"RegA - WY 2017 Protocol - MSP Deferral","SITUS",null,{"$f":"IF(OR(tblREGASSLookup[[#This Row],[Alloc]]=\"IDU\",tblREGASSLookup[[#This Row],[Alloc]]=\"OR\",tblREGASSLookup[[#This Row],[Alloc]]=\"UT\",tblREGASSLookup[[#This Row],[Alloc]]=\"WYU\",tblREGASSLookup[[#This Row],[Alloc]]=\"WYP\",tblREGASSLookup[[#This Row],[Alloc]]=\"CA\",tblREGASSLookup[[#This Row],[Alloc]]=\"WA\"),\"SITUS\",tblREGASSLookup[[#This Row],[Alloc]])","v":"SITUS"},"P"]
[{"$f":"CONCATENATE(tblREGASSLookup[[#This Row],[Primary Account]],tblREGASSLookup[[#This Row],[Primary Name]],tblREGASSLookup[[#This Row],[Secondary Acct]],tblREGASSLookup[[#This Row],[Secondary  Name]],tblREGASSLookup[[#This Row],[Alloc4FUNC]])","v":"1823990OTHR REG ASSET-N CST187311Contra Reg Asset-Carbon Plt Dec/Inv-CASITUS"},1823990,"OTHR REG ASSET-N CST",187311,"Contra Reg Asset-Carbon Plt Dec/Inv-CA","SITUS",null,{"$f":"IF(OR(tblREGASSLookup[[#This Row],[Alloc]]=\"IDU\",tblREGASSLookup[[#This Row],[Alloc]]=\"OR\",tblREGASSLookup[[#This Row],[Alloc]]=\"UT\",tblREGASSLookup[[#This Row],[Alloc]]=\"WYU\",tblREGASSLookup[[#This Row],[Alloc]]=\"WYP\",tblREGASSLookup[[#This Row],[Alloc]]=\"CA\",tblREGASSLookup[[#This Row],[Alloc]]=\"WA\"),\"SITUS\",tblREGASSLookup[[#This Row],[Alloc]])","v":"SITUS"},"P"]
[{"$f":"CONCATENATE(tblREGASSLookup[[#This Row],[Primary Account]],tblREGASSLookup[[#This Row],[Primary Name]],tblREGASSLookup[[#This Row],[Secondary Acct]],tblREGASSLookup[[#This Row],[Secondary  Name]],tblREGASSLookup[[#This Row],[Alloc4FUNC]])","v":"1823990OTHR REG ASSET-N CST187320Reg Asset - Deprec Increase - IDSITUS"},1823990,"OTHR REG ASSET-N CST",187320,"Reg Asset - Deprec Increase - ID","SITUS",null,{"$f":"IF(OR(tblREGASSLookup[[#This Row],[Alloc]]=\"IDU\",tblREGASSLookup[[#This Row],[Alloc]]=\"OR\",tblREGASSLookup[[#This Row],[Alloc]]=\"UT\",tblREGASSLookup[[#This Row],[Alloc]]=\"WYU\",tblREGASSLookup[[#This Row],[Alloc]]=\"WYP\",tblREGASSLookup[[#This Row],[Alloc]]=\"CA\",tblREGASSLookup[[#This Row],[Alloc]]=\"WA\"),\"SITUS\",tblREGASSLookup[[#This Row],[Alloc]])","v":"SITUS"},"P"]
[{"$f":"CONCATENATE(tblREGASSLookup[[#This Row],[Primary Account]],tblREGASSLookup[[#This Row],[Primary Name]],tblREGASSLookup[[#This Row],[Secondary Acct]],tblREGASSLookup[[#This Row],[Secondary  Name]],tblREGASSLookup[[#This Row],[Alloc4FUNC]])","v":"1823990OTHR REG ASSET-N CST187321Reg Asset - Deprec Increase - UTSITUS"},1823990,"OTHR REG ASSET-N CST",187321,"Reg Asset - Deprec Increase - UT","SITUS",null,{"$f":"IF(OR(tblREGASSLookup[[#This Row],[Alloc]]=\"IDU\",tblREGASSLookup[[#This Row],[Alloc]]=\"OR\",tblREGASSLookup[[#This Row],[Alloc]]=\"UT\",tblREGASSLookup[[#This Row],[Alloc]]=\"WYU\",tblREGASSLookup[[#This Row],[Alloc]]=\"WYP\",tblREGASSLookup[[#This Row],[Alloc]]=\"CA\",tblREGASSLookup[[#This Row],[Alloc]]=\"WA\"),\"SITUS\",tblREGASSLookup[[#This Row],[Alloc]])","v":"SITUS"},"P"]
[{"$f":"CONCATENATE(tblREGASSLookup[[#This Row],[Primary Account]],tblREGASSLookup[[#This Row],[Primary Name]],tblREGASSLookup[[#This Row],[Secondary Acct]],tblREGASSLookup[[#This Row],[Secondary  Name]],tblREGASSLookup[[#This Row],[Alloc4FUNC]])","v":"1823990OTHR REG ASSET-N CST187322Reg Asset - Deprec Increase - WYSITUS"},1823990,"OTHR REG ASSET-N CST",187322,"Reg Asset - Deprec Increase - WY","SITUS",null,{"$f":"IF(OR(tblREGASSLookup[[#This Row],[Alloc]]=\"IDU\",tblREGASSLookup[[#This Row],[Alloc]]=\"OR\",tblREGASSLookup[[#This Row],[Alloc]]=\"UT\",tblREGASSLookup[[#This Row],[Alloc]]=\"WYU\",tblREGASSLookup[[#This Row],[Alloc]]=\"WYP\",tblREGASSLookup[[#This Row],[Alloc]]=\"CA\",tblREGASSLookup[[#This Row],[Alloc]]=\"WA\"),\"SITUS\",tblREGASSLookup[[#This Row],[Alloc]])","v":"SITUS"},"P"]
[{"$f":"CONCATENATE(tblREGASSLookup[[#This Row],[Primary Account]],tblREGASSLookup[[#This Row],[Primary Name]],tblREGASSLookup[[#This Row],[Secondary Acct]],tblREGASSLookup[[#This Row],[Secondary  Name]],tblREGASSLookup[[#This Row],[Alloc4FUNC]])","v":"1823990OTHR REG ASSET-N CST187330Reg Asset - Carbon Unrec Plant - IDSITUS"},1823990,"OTHR REG ASSET-N CST",187330,"Reg Asset - Carbon Unrec Plant - ID","SITUS",null,{"$f":"IF(OR(tblREGASSLookup[[#This Row],[Alloc]]=\"IDU\",tblREGASSLookup[[#This Row],[Alloc]]=\"OR\",tblREGASSLookup[[#This Row],[Alloc]]=\"UT\",tblREGASSLookup[[#This Row],[Alloc]]=\"WYU\",tblREGASSLookup[[#This Row],[Alloc]]=\"WYP\",tblREGASSLookup[[#This Row],[Alloc]]=\"CA\",tblREGASSLookup[[#This Row],[Alloc]]=\"WA\"),\"SITUS\",tblREGASSLookup[[#This Row],[Alloc]])","v":"SITUS"},"P"]
[{"$f":"CONCATENATE(tblREGASSLookup[[#This Row],[Primary Account]],tblREGASSLookup[[#This Row],[Primary Name]],tblREGASSLookup[[#This Row],[Secondary Acct]],tblREGASSLookup[[#This Row],[Secondary  Name]],tblREGASSLookup[[#This Row],[Alloc4FUNC]])","v":"1823990OTHR REG ASSET-N CST187332Reg Asset - Carbon Unrec Plant - UTSITUS"},1823990,"OTHR REG ASSET-N CST",187332,"Reg Asset - Carbon Unrec Plant - UT","SITUS",null,{"$f":"IF(OR(tblREGASSLookup[[#This Row],[Alloc]]=\"IDU\",tblREGASSLookup[[#This Row],[Alloc]]=\"OR\",tblREGASSLookup[[#This Row],[Alloc]]=\"UT\",tblREGASSLookup[[#This Row],[Alloc]]=\"WYU\",tblREGASSLookup[[#This Row],[Alloc]]=\"WYP\",tblREGASSLookup[[#This Row],[Alloc]]=\"CA\",tblREGASSLookup[[#This Row],[Alloc]]=\"WA\"),\"SITUS\",tblREGASSLookup[[#This Row],[Alloc]])","v":"SITUS"},"P"]
[{"$f":"CONCATENATE(tblREGASSLookup[[#This Row],[Primary Account]],tblREGASSLookup[[#This Row],[Primary Name]],tblREGASSLookup[[#This Row],[Secondary Acct]],tblREGASSLookup[[#This Row],[Secondary  Name]],tblREGASSLookup[[#This Row],[Alloc4FUNC]])","v":"1823990OTHR REG ASSET-N CST187334Reg Asset - Carbon Unrec Plant - WYSITUS"},1823990,"OTHR REG ASSET-N CST",187334,"Reg Asset - Carbon Unrec Plant - WY","SITUS",null,{"$f":"IF(OR(tblREGASSLookup[[#This Row],[Alloc]]=\"IDU\",tblREGASSLookup[[#This Row],[Alloc]]=\"OR\",tblREGASSLookup[[#This Row],[Alloc]]=\"UT\",tblREGASSLookup[[#This Row],[Alloc]]=\"WYU\",tblREGASSLookup[[#This Row],[Alloc]]=\"WYP\",tblREGASSLookup[[#This Row],[Alloc]]=\"CA\",tblREGASSLookup[[#This Row],[Alloc]]=\"WA\"),\"SITUS\",tblREGASSLookup[[#This Row],[Alloc]])","v":"SITUS"},"P"]
[{"$f":"CONCATENATE(tblREGASSLookup[[#This Row],[Primary Account]],tblREGASSLookup[[#This Row],[Primary Name]],tblREGASSLookup[[#This Row],[Secondary Acct]],tblREGASSLookup[[#This Row],[Secondary  Name]],tblREGASSLookup[[#This Row],[Alloc4FUNC]])","v":"1823990OTHR REG ASSET-N CST187338Reg Asset - Carbon Plt Decom/InventorySG"},1823990,"OTHR REG ASSET-N CST",187338,"Reg Asset - Carbon Plt Decom/Inventory","SG",null,{"$f":"IF(OR(tblREGASSLookup[[#This Row],[Alloc]]=\"IDU\",tblREGASSLookup[[#This Row],[Alloc]]=\"OR\",tblREGASSLookup[[#This Row],[Alloc]]=\"UT\",tblREGASSLookup[[#This Row],[Alloc]]=\"WYU\",tblREGASSLookup[[#This Row],[Alloc]]=\"WYP\",tblREGASSLookup[[#This Row],[Alloc]]=\"CA\",tblREGASSLookup[[#This Row],[Alloc]]=\"WA\"),\"SITUS\",tblREGASSLookup[[#This Row],[Alloc]])","v":"SG"},"P"]
[{"$f":"CONCATENATE(tblREGASSLookup[[#This Row],[Primary Account]],tblREGASSLookup[[#This Row],[Primary Name]],tblREGASSLookup[[#This Row],[Secondary Acct]],tblREGASSLookup[[#This Row],[Secondary  Name]],tblREGASSLookup[[#This Row],[Alloc4FUNC]])","v":"1823990OTHR REG ASSET-N CST187345Reg Asset - UT - Pref Stock Redemp LossOTHER"},1823990,"OTHR REG ASSET-N CST",187345,"Reg Asset - UT - Pref Stock Redemp Loss","OTHER",null,{"$f":"IF(OR(tblREGASSLookup[[#This Row],[Alloc]]=\"IDU\",tblREGASSLookup[[#This Row],[Alloc]]=\"OR\",tblREGASSLookup[[#This Row],[Alloc]]=\"UT\",tblREGASSLookup[[#This Row],[Alloc]]=\"WYU\",tblREGASSLookup[[#This Row],[Alloc]]=\"WYP\",tblREGASSLookup[[#This Row],[Alloc]]=\"CA\",tblREGASSLookup[[#This Row],[Alloc]]=\"WA\"),\"SITUS\",tblREGASSLookup[[#This Row],[Alloc]])","v":"OTHER"},"P"]
[{"$f":"CONCATENATE(tblREGASSLookup[[#This Row],[Primary Account]],tblREGASSLookup[[#This Row],[Primary Name]],tblREGASSLookup[[#This Row],[Secondary Acct]],tblREGASSLookup[[#This Row],[Secondary  Name]],tblREGASSLookup[[#This Row],[Alloc4FUNC]])","v":"1823990OTHR REG ASSET-N CST187346Reg Asset - WY - Pref Stock Redemp LossOTHER"},1823990,"OTHR REG ASSET-N CST",187346,"Reg Asset - WY - Pref Stock Redemp Loss","OTHER",null,{"$f":"IF(OR(tblREGASSLookup[[#This Row],[Alloc]]=\"IDU\",tblREGASSLookup[[#This Row],[Alloc]]=\"OR\",tblREGASSLookup[[#This Row],[Alloc]]=\"UT\",tblREGASSLookup[[#This Row],[Alloc]]=\"WYU\",tblREGASSLookup[[#This Row],[Alloc]]=\"WYP\",tblREGASSLookup[[#This Row],[Alloc]]=\"CA\",tblREGASSLookup[[#This Row],[Alloc]]=\"WA\"),\"SITUS\",tblREGASSLookup[[#This Row],[Alloc]])","v":"OTHER"},"P"]
[{"$f":"CONCATENATE(tblREGASSLookup[[#This Row],[Primary Account]],tblREGASSLookup[[#This Row],[Primary Name]],tblREGASSLookup[[#This Row],[Secondary Acct]],tblREGASSLookup[[#This Row],[Secondary  Name]],tblREGASSLookup[[#This Row],[Alloc4FUNC]])","v":"1823990OTHR REG ASSET-N CST187347Reg Asset - WA - Pref Stock Redemp LossOTHER"},1823990,"OTHR REG ASSET-N CST",187347,"Reg Asset - WA - Pref Stock Redemp Loss","OTHER",null,{"$f":"IF(OR(tblREGASSLookup[[#This Row],[Alloc]]=\"IDU\",tblREGASSLookup[[#This Row],[Alloc]]=\"OR\",tblREGASSLookup[[#This Row],[Alloc]]=\"UT\",tblREGASSLookup[[#This Row],[Alloc]]=\"WYU\",tblREGASSLookup[[#This Row],[Alloc]]=\"WYP\",tblREGASSLookup[[#This Row],[Alloc]]=\"CA\",tblREGASSLookup[[#This Row],[Alloc]]=\"WA\"),\"SITUS\",tblREGASSLookup[[#This Row],[Alloc]])","v":"OTHER"},"P"]
[{"$f":"CONCATENATE(tblREGASSLookup[[#This Row],[Primary Account]],tblREGASSLookup[[#This Row],[Primary Name]],tblREGASSLookup[[#This Row],[Secondary Acct]],tblREGASSLookup[[#This Row],[Secondary  Name]],tblREGASSLookup[[#This Row],[Alloc4FUNC]])","v":"1823990OTHR REG ASSET-N CST187350ID - Deferred Overburden CostsOTHER"},1823990,"OTHR REG ASSET-N CST",187350,"ID - Deferred Overburden Costs","OTHER",null,{"$f":"IF(OR(tblREGASSLookup[[#This Row],[Alloc]]=\"IDU\",tblREGASSLookup[[#This Row],[Alloc]]=\"OR\",tblREGASSLookup[[#This Row],[Alloc]]=\"UT\",tblREGASSLookup[[#This Row],[Alloc]]=\"WYU\",tblREGASSLookup[[#This Row],[Alloc]]=\"WYP\",tblREGASSLookup[[#This Row],[Alloc]]=\"CA\",tblREGASSLookup[[#This Row],[Alloc]]=\"WA\"),\"SITUS\",tblREGASSLookup[[#This Row],[Alloc]])","v":"OTHER"},"P"]
[{"$f":"CONCATENATE(tblREGASSLookup[[#This Row],[Primary Account]],tblREGASSLookup[[#This Row],[Primary Name]],tblREGASSLookup[[#This Row],[Secondary Acct]],tblREGASSLookup[[#This Row],[Secondary  Name]],tblREGASSLookup[[#This Row],[Alloc4FUNC]])","v":"1823990OTHR REG ASSET-N CST187351WY - Deferred Overburden CostsSITUS"},1823990,"OTHR REG ASSET-N CST",187351,"WY - Deferred Overburden Costs","SITUS",null,{"$f":"IF(OR(tblREGASSLookup[[#This Row],[Alloc]]=\"IDU\",tblREGASSLookup[[#This Row],[Alloc]]=\"OR\",tblREGASSLookup[[#This Row],[Alloc]]=\"UT\",tblREGASSLookup[[#This Row],[Alloc]]=\"WYU\",tblREGASSLookup[[#This Row],[Alloc]]=\"WYP\",tblREGASSLookup[[#This Row],[Alloc]]=\"CA\",tblREGASSLookup[[#This Row],[Alloc]]=\"WA\"),\"SITUS\",tblREGASSLookup[[#This Row],[Alloc]])","v":"SITUS"},"P"]
[{"$f":"CONCATENATE(tblREGASSLookup[[#This Row],[Primary Account]],tblREGASSLookup[[#This Row],[Primary Name]],tblREGASSLookup[[#This Row],[Secondary Acct]],tblREGASSLookup[[#This Row],[Secondary  Name]],tblREGASSLookup[[#This Row],[Alloc4FUNC]])","v":"1823990OTHR REG ASSET-N CST187356Reg Asset-WA-Merwin ProjectOTHER"},1823990,"OTHR REG ASSET-N CST",187356,"Reg Asset-WA-Merwin Project","OTHER",null,{"$f":"IF(OR(tblREGASSLookup[[#This Row],[Alloc]]=\"IDU\",tblREGASSLookup[[#This Row],[Alloc]]=\"OR\",tblREGASSLookup[[#This Row],[Alloc]]=\"UT\",tblREGASSLookup[[#This Row],[Alloc]]=\"WYU\",tblREGASSLookup[[#This Row],[Alloc]]=\"WYP\",tblREGASSLookup[[#This Row],[Alloc]]=\"CA\",tblREGASSLookup[[#This Row],[Alloc]]=\"WA\"),\"SITUS\",tblREGASSLookup[[#This Row],[Alloc]])","v":"OTHER"},"P"]
[{"$f":"CONCATENATE(tblREGASSLookup[[#This Row],[Primary Account]],tblREGASSLookup[[#This Row],[Primary Name]],tblREGASSLookup[[#This Row],[Secondary Acct]],tblREGASSLookup[[#This Row],[Secondary  Name]],tblREGASSLookup[[#This Row],[Alloc4FUNC]])","v":"1823990OTHR REG ASSET-N CST187357CA Mobile Home Park Conversion (MHPCBA)OTHER"},1823990,"OTHR REG ASSET-N CST",187357,"CA Mobile Home Park Conversion (MHPCBA)","OTHER",null,{"$f":"IF(OR(tblREGASSLookup[[#This Row],[Alloc]]=\"IDU\",tblREGASSLookup[[#This Row],[Alloc]]=\"OR\",tblREGASSLookup[[#This Row],[Alloc]]=\"UT\",tblREGASSLookup[[#This Row],[Alloc]]=\"WYU\",tblREGASSLookup[[#This Row],[Alloc]]=\"WYP\",tblREGASSLookup[[#This Row],[Alloc]]=\"CA\",tblREGASSLookup[[#This Row],[Alloc]]=\"WA\"),\"SITUS\",tblREGASSLookup[[#This Row],[Alloc]])","v":"OTHER"},"CUST"]
[{"$f":"CONCATENATE(tblREGASSLookup[[#This Row],[Primary Account]],tblREGASSLookup[[#This Row],[Primary Name]],tblREGASSLookup[[#This Row],[Secondary Acct]],tblREGASSLookup[[#This Row],[Secondary  Name]],tblREGASSLookup[[#This Row],[Alloc4FUNC]])","v":"1823990OTHR REG ASSET-N CST187371REG ASSET - CA SOLAR FEED-IN TARIFFOTHER"},1823990,"OTHR REG ASSET-N CST",187371,"REG ASSET - CA SOLAR FEED-IN TARIFF","OTHER",null,{"$f":"IF(OR(tblREGASSLookup[[#This Row],[Alloc]]=\"IDU\",tblREGASSLookup[[#This Row],[Alloc]]=\"OR\",tblREGASSLookup[[#This Row],[Alloc]]=\"UT\",tblREGASSLookup[[#This Row],[Alloc]]=\"WYU\",tblREGASSLookup[[#This Row],[Alloc]]=\"WYP\",tblREGASSLookup[[#This Row],[Alloc]]=\"CA\",tblREGASSLookup[[#This Row],[Alloc]]=\"WA\"),\"SITUS\",tblREGASSLookup[[#This Row],[Alloc]])","v":"OTHER"},"P"]
[{"$f":"CONCATENATE(tblREGASSLookup[[#This Row],[Primary Account]],tblREGASSLookup[[#This Row],[Primary Name]],tblREGASSLookup[[#This Row],[Secondary Acct]],tblREGASSLookup[[#This Row],[Secondary  Name]],tblREGASSLookup[[#This Row],[Alloc4FUNC]])","v":"1823990OTHR REG ASSET-N CST187375Reg Asset-OR Solar Feed-In Tariff 2015OTHER"},1823990,"OTHR REG ASSET-N CST",187375,"Reg Asset-OR Solar Feed-In Tariff 2015","OTHER",null,{"$f":"IF(OR(tblREGASSLookup[[#This Row],[Alloc]]=\"IDU\",tblREGASSLookup[[#This Row],[Alloc]]=\"OR\",tblREGASSLookup[[#This Row],[Alloc]]=\"UT\",tblREGASSLookup[[#This Row],[Alloc]]=\"WYU\",tblREGASSLookup[[#This Row],[Alloc]]=\"WYP\",tblREGASSLookup[[#This Row],[Alloc]]=\"CA\",tblREGASSLookup[[#This Row],[Alloc]]=\"WA\"),\"SITUS\",tblREGASSLookup[[#This Row],[Alloc]])","v":"OTHER"},"P"]
[{"$f":"CONCATENATE(tblREGASSLookup[[#This Row],[Primary Account]],tblREGASSLookup[[#This Row],[Primary Name]],tblREGASSLookup[[#This Row],[Secondary Acct]],tblREGASSLookup[[#This Row],[Secondary  Name]],tblREGASSLookup[[#This Row],[Alloc4FUNC]])","v":"1823990OTHR REG ASSET-N CST187376Reg Asset-OR Solar Feed-In Tariff 2016OTHER"},1823990,"OTHR REG ASSET-N CST",187376,"Reg Asset-OR Solar Feed-In Tariff 2016","OTHER",null,{"$f":"IF(OR(tblREGASSLookup[[#This Row],[Alloc]]=\"IDU\",tblREGASSLookup[[#This Row],[Alloc]]=\"OR\",tblREGASSLookup[[#This Row],[Alloc]]=\"UT\",tblREGASSLookup[[#This Row],[Alloc]]=\"WYU\",tblREGASSLookup[[#This Row],[Alloc]]=\"WYP\",tblREGASSLookup[[#This Row],[Alloc]]=\"CA\",tblREGASSLookup[[#This Row],[Alloc]]=\"WA\"),\"SITUS\",tblREGASSLookup[[#This Row],[Alloc]])","v":"OTHER"},"P"]
[{"$f":"CONCATENATE(tblREGASSLookup[[#This Row],[Primary Account]],tblREGASSLookup[[#This Row],[Primary Name]],tblREGASSLookup[[#This Row],[Secondary Acct]],tblREGASSLookup[[#This Row],[Secondary  Name]],tblREGASSLookup[[#This Row],[Alloc4FUNC]])","v":"1823990OTHR REG ASSET-N CST187377Reg Asset-OR Solar Feed-In Tariff 2017OTHER"},1823990,"OTHR REG ASSET-N CST",187377,"Reg Asset-OR Solar Feed-In Tariff 2017","OTHER",null,{"$f":"IF(OR(tblREGASSLookup[[#This Row],[Alloc]]=\"IDU\",tblREGASSLookup[[#This Row],[Alloc]]=\"OR\",tblREGASSLookup[[#This Row],[Alloc]]=\"UT\",tblREGASSLookup[[#This Row],[Alloc]]=\"WYU\",tblREGASSLookup[[#This Row],[Alloc]]=\"WYP\",tblREGASSLookup[[#This Row],[Alloc]]=\"CA\",tblREGASSLookup[[#This Row],[Alloc]]=\"WA\"),\"SITUS\",tblREGASSLookup[[#This Row],[Alloc]])","v":"OTHER"},"P"]
[{"$f":"CONCATENATE(tblREGASSLookup[[#This Row],[Primary Account]],tblREGASSLookup[[#This Row],[Primary Name]],tblREGASSLookup[[#This Row],[Secondary Acct]],tblREGASSLookup[[#This Row],[Secondary  Name]],tblREGASSLookup[[#This Row],[Alloc4FUNC]])","v":"1823990OTHR REG ASSET-N CST187380Reg Asset - UT Solar Incentive ProgramOTHER"},1823990,"OTHR REG ASSET-N CST",187380,"Reg Asset - UT Solar Incentive Program","OTHER",null,{"$f":"IF(OR(tblREGASSLookup[[#This Row],[Alloc]]=\"IDU\",tblREGASSLookup[[#This Row],[Alloc]]=\"OR\",tblREGASSLookup[[#This Row],[Alloc]]=\"UT\",tblREGASSLookup[[#This Row],[Alloc]]=\"WYU\",tblREGASSLookup[[#This Row],[Alloc]]=\"WYP\",tblREGASSLookup[[#This Row],[Alloc]]=\"CA\",tblREGASSLookup[[#This Row],[Alloc]]=\"WA\"),\"SITUS\",tblREGASSLookup[[#This Row],[Alloc]])","v":"OTHER"},"P"]
[{"$f":"CONCATENATE(tblREGASSLookup[[#This Row],[Primary Account]],tblREGASSLookup[[#This Row],[Primary Name]],tblREGASSLookup[[#This Row],[Secondary Acct]],tblREGASSLookup[[#This Row],[Secondary  Name]],tblREGASSLookup[[#This Row],[Alloc4FUNC]])","v":"1823990OTHR REG ASSET-N CST187383RegA - OR Solar Feed-In - Recl to CurrOTHER"},1823990,"OTHR REG ASSET-N CST",187383,"RegA - OR Solar Feed-In - Recl to Curr","OTHER",null,{"$f":"IF(OR(tblREGASSLookup[[#This Row],[Alloc]]=\"IDU\",tblREGASSLookup[[#This Row],[Alloc]]=\"OR\",tblREGASSLookup[[#This Row],[Alloc]]=\"UT\",tblREGASSLookup[[#This Row],[Alloc]]=\"WYU\",tblREGASSLookup[[#This Row],[Alloc]]=\"WYP\",tblREGASSLookup[[#This Row],[Alloc]]=\"CA\",tblREGASSLookup[[#This Row],[Alloc]]=\"WA\"),\"SITUS\",tblREGASSLookup[[#This Row],[Alloc]])","v":"OTHER"},"P"]
[{"$f":"CONCATENATE(tblREGASSLookup[[#This Row],[Primary Account]],tblREGASSLookup[[#This Row],[Primary Name]],tblREGASSLookup[[#This Row],[Secondary Acct]],tblREGASSLookup[[#This Row],[Secondary  Name]],tblREGASSLookup[[#This Row],[Alloc4FUNC]])","v":"1823990OTHR REG ASSET-N CST187384RegA - UT Solar Feed-In - Recl to CurrOTHER"},1823990,"OTHR REG ASSET-N CST",187384,"RegA - UT Solar Feed-In - Recl to Curr","OTHER",null,{"$f":"IF(OR(tblREGASSLookup[[#This Row],[Alloc]]=\"IDU\",tblREGASSLookup[[#This Row],[Alloc]]=\"OR\",tblREGASSLookup[[#This Row],[Alloc]]=\"UT\",tblREGASSLookup[[#This Row],[Alloc]]=\"WYU\",tblREGASSLookup[[#This Row],[Alloc]]=\"WYP\",tblREGASSLookup[[#This Row],[Alloc]]=\"CA\",tblREGASSLookup[[#This Row],[Alloc]]=\"WA\"),\"SITUS\",tblREGASSLookup[[#This Row],[Alloc]])","v":"OTHER"},"P"]
[{"$f":"CONCATENATE(tblREGASSLookup[[#This Row],[Primary Account]],tblREGASSLookup[[#This Row],[Primary Name]],tblREGASSLookup[[#This Row],[Secondary Acct]],tblREGASSLookup[[#This Row],[Secondary  Name]],tblREGASSLookup[[#This Row],[Alloc4FUNC]])","v":"1823990OTHR REG ASSET-N CST187387Reg Asset-Utah STEP Pilot Prog Bal AcctOTHER"},1823990,"OTHR REG ASSET-N CST",187387,"Reg Asset-Utah STEP Pilot Prog Bal Acct","OTHER",null,{"$f":"IF(OR(tblREGASSLookup[[#This Row],[Alloc]]=\"IDU\",tblREGASSLookup[[#This Row],[Alloc]]=\"OR\",tblREGASSLookup[[#This Row],[Alloc]]=\"UT\",tblREGASSLookup[[#This Row],[Alloc]]=\"WYU\",tblREGASSLookup[[#This Row],[Alloc]]=\"WYP\",tblREGASSLookup[[#This Row],[Alloc]]=\"CA\",tblREGASSLookup[[#This Row],[Alloc]]=\"WA\"),\"SITUS\",tblREGASSLookup[[#This Row],[Alloc]])","v":"OTHER"},"P"]
[{"$f":"CONCATENATE(tblREGASSLookup[[#This Row],[Primary Account]],tblREGASSLookup[[#This Row],[Primary Name]],tblREGASSLookup[[#This Row],[Secondary Acct]],tblREGASSLookup[[#This Row],[Secondary  Name]],tblREGASSLookup[[#This Row],[Alloc4FUNC]])","v":"1823990OTHR REG ASSET-N CST187390UT-Klamath Hydro Relicensing CostsOTHER"},1823990,"OTHR REG ASSET-N CST",187390,"UT-Klamath Hydro Relicensing Costs","OTHER",null,{"$f":"IF(OR(tblREGASSLookup[[#This Row],[Alloc]]=\"IDU\",tblREGASSLookup[[#This Row],[Alloc]]=\"OR\",tblREGASSLookup[[#This Row],[Alloc]]=\"UT\",tblREGASSLookup[[#This Row],[Alloc]]=\"WYU\",tblREGASSLookup[[#This Row],[Alloc]]=\"WYP\",tblREGASSLookup[[#This Row],[Alloc]]=\"CA\",tblREGASSLookup[[#This Row],[Alloc]]=\"WA\"),\"SITUS\",tblREGASSLookup[[#This Row],[Alloc]])","v":"OTHER"},"P"]
[{"$f":"CONCATENATE(tblREGASSLookup[[#This Row],[Primary Account]],tblREGASSLookup[[#This Row],[Primary Name]],tblREGASSLookup[[#This Row],[Secondary Acct]],tblREGASSLookup[[#This Row],[Secondary  Name]],tblREGASSLookup[[#This Row],[Alloc4FUNC]])","v":"1823990OTHR REG ASSET-N CST187391RegA - CA Solar Feed-In - Recl to LiabOTHER"},1823990,"OTHR REG ASSET-N CST",187391,"RegA - CA Solar Feed-In - Recl to Liab","OTHER",null,{"$f":"IF(OR(tblREGASSLookup[[#This Row],[Alloc]]=\"IDU\",tblREGASSLookup[[#This Row],[Alloc]]=\"OR\",tblREGASSLookup[[#This Row],[Alloc]]=\"UT\",tblREGASSLookup[[#This Row],[Alloc]]=\"WYU\",tblREGASSLookup[[#This Row],[Alloc]]=\"WYP\",tblREGASSLookup[[#This Row],[Alloc]]=\"CA\",tblREGASSLookup[[#This Row],[Alloc]]=\"WA\"),\"SITUS\",tblREGASSLookup[[#This Row],[Alloc]])","v":"OTHER"},"P"]
[{"$f":"CONCATENATE(tblREGASSLookup[[#This Row],[Primary Account]],tblREGASSLookup[[#This Row],[Primary Name]],tblREGASSLookup[[#This Row],[Secondary Acct]],tblREGASSLookup[[#This Row],[Secondary  Name]],tblREGASSLookup[[#This Row],[Alloc4FUNC]])","v":"1823990OTHR REG ASSET-N CST187394RegA - UT Solar Feed-In - Recl to LiabOTHER"},1823990,"OTHR REG ASSET-N CST",187394,"RegA - UT Solar Feed-In - Recl to Liab","OTHER",null,{"$f":"IF(OR(tblREGASSLookup[[#This Row],[Alloc]]=\"IDU\",tblREGASSLookup[[#This Row],[Alloc]]=\"OR\",tblREGASSLookup[[#This Row],[Alloc]]=\"UT\",tblREGASSLookup[[#This Row],[Alloc]]=\"WYU\",tblREGASSLookup[[#This Row],[Alloc]]=\"WYP\",tblREGASSLookup[[#This Row],[Alloc]]=\"CA\",tblREGASSLookup[[#This Row],[Alloc]]=\"WA\"),\"SITUS\",tblREGASSLookup[[#This Row],[Alloc]])","v":"OTHER"},"P"]
[{"$f":"CONCATENATE(tblREGASSLookup[[#This Row],[Primary Account]],tblREGASSLookup[[#This Row],[Primary Name]],tblREGASSLookup[[#This Row],[Secondary Acct]],tblREGASSLookup[[#This Row],[Secondary  Name]],tblREGASSLookup[[#This Row],[Alloc4FUNC]])","v":"1823990OTHR REG ASSET-N CST187415Reg Asset-UT Subscriber Solar ProgramOTHER"},1823990,"OTHR REG ASSET-N CST",187415,"Reg Asset-UT Subscriber Solar Program","OTHER",null,{"$f":"IF(OR(tblREGASSLookup[[#This Row],[Alloc]]=\"IDU\",tblREGASSLookup[[#This Row],[Alloc]]=\"OR\",tblREGASSLookup[[#This Row],[Alloc]]=\"UT\",tblREGASSLookup[[#This Row],[Alloc]]=\"WYU\",tblREGASSLookup[[#This Row],[Alloc]]=\"WYP\",tblREGASSLookup[[#This Row],[Alloc]]=\"CA\",tblREGASSLookup[[#This Row],[Alloc]]=\"WA\"),\"SITUS\",tblREGASSLookup[[#This Row],[Alloc]])","v":"OTHER"},"P"]
[{"$f":"CONCATENATE(tblREGASSLookup[[#This Row],[Primary Account]],tblREGASSLookup[[#This Row],[Primary Name]],tblREGASSLookup[[#This Row],[Secondary Acct]],tblREGASSLookup[[#This Row],[Secondary  Name]],tblREGASSLookup[[#This Row],[Alloc4FUNC]])","v":"1823990OTHR REG ASSET-N CST187470Reg A-WA Decoupling Mech Sep16-Jun17OTHER"},1823990,"OTHR REG ASSET-N CST",187470,"Reg A-WA Decoupling Mech Sep16-Jun17","OTHER",null,{"$f":"IF(OR(tblREGASSLookup[[#This Row],[Alloc]]=\"IDU\",tblREGASSLookup[[#This Row],[Alloc]]=\"OR\",tblREGASSLookup[[#This Row],[Alloc]]=\"UT\",tblREGASSLookup[[#This Row],[Alloc]]=\"WYU\",tblREGASSLookup[[#This Row],[Alloc]]=\"WYP\",tblREGASSLookup[[#This Row],[Alloc]]=\"CA\",tblREGASSLookup[[#This Row],[Alloc]]=\"WA\"),\"SITUS\",tblREGASSLookup[[#This Row],[Alloc]])","v":"OTHER"},"P"]
[{"$f":"CONCATENATE(tblREGASSLookup[[#This Row],[Primary Account]],tblREGASSLookup[[#This Row],[Primary Name]],tblREGASSLookup[[#This Row],[Secondary Acct]],tblREGASSLookup[[#This Row],[Secondary  Name]],tblREGASSLookup[[#This Row],[Alloc4FUNC]])","v":"1823990OTHR REG ASSET-N CST187480Contra Reg A-WA Decoupling Sep16-Jun17OTHER"},1823990,"OTHR REG ASSET-N CST",187480,"Contra Reg A-WA Decoupling Sep16-Jun17","OTHER",null,{"$f":"IF(OR(tblREGASSLookup[[#This Row],[Alloc]]=\"IDU\",tblREGASSLookup[[#This Row],[Alloc]]=\"OR\",tblREGASSLookup[[#This Row],[Alloc]]=\"UT\",tblREGASSLookup[[#This Row],[Alloc]]=\"WYU\",tblREGASSLookup[[#This Row],[Alloc]]=\"WYP\",tblREGASSLookup[[#This Row],[Alloc]]=\"CA\",tblREGASSLookup[[#This Row],[Alloc]]=\"WA\"),\"SITUS\",tblREGASSLookup[[#This Row],[Alloc]])","v":"OTHER"},"P"]
[{"$f":"CONCATENATE(tblREGASSLookup[[#This Row],[Primary Account]],tblREGASSLookup[[#This Row],[Primary Name]],tblREGASSLookup[[#This Row],[Secondary Acct]],tblREGASSLookup[[#This Row],[Secondary  Name]],tblREGASSLookup[[#This Row],[Alloc4FUNC]])","v":"1823990OTHR REG ASSET-N CST187489Reg A-WA Decoupling Mechanism-ReclassOTHER"},1823990,"OTHR REG ASSET-N CST",187489,"Reg A-WA Decoupling Mechanism-Reclass","OTHER",null,{"$f":"IF(OR(tblREGASSLookup[[#This Row],[Alloc]]=\"IDU\",tblREGASSLookup[[#This Row],[Alloc]]=\"OR\",tblREGASSLookup[[#This Row],[Alloc]]=\"UT\",tblREGASSLookup[[#This Row],[Alloc]]=\"WYU\",tblREGASSLookup[[#This Row],[Alloc]]=\"WYP\",tblREGASSLookup[[#This Row],[Alloc]]=\"CA\",tblREGASSLookup[[#This Row],[Alloc]]=\"WA\"),\"SITUS\",tblREGASSLookup[[#This Row],[Alloc]])","v":"OTHER"},"P"]
[{"$f":"CONCATENATE(tblREGASSLookup[[#This Row],[Primary Account]],tblREGASSLookup[[#This Row],[Primary Name]],tblREGASSLookup[[#This Row],[Secondary Acct]],tblREGASSLookup[[#This Row],[Secondary  Name]],tblREGASSLookup[[#This Row],[Alloc4FUNC]])","v":"1823990OTHR REG ASSET-N CST187495RegA - Other - Recl to CurrOTHER"},1823990,"OTHR REG ASSET-N CST",187495,"RegA - Other - Recl to Curr","OTHER",null,{"$f":"IF(OR(tblREGASSLookup[[#This Row],[Alloc]]=\"IDU\",tblREGASSLookup[[#This Row],[Alloc]]=\"OR\",tblREGASSLookup[[#This Row],[Alloc]]=\"UT\",tblREGASSLookup[[#This Row],[Alloc]]=\"WYU\",tblREGASSLookup[[#This Row],[Alloc]]=\"WYP\",tblREGASSLookup[[#This Row],[Alloc]]=\"CA\",tblREGASSLookup[[#This Row],[Alloc]]=\"WA\"),\"SITUS\",tblREGASSLookup[[#This Row],[Alloc]])","v":"OTHER"},"P"]
[{"$f":"CONCATENATE(tblREGASSLookup[[#This Row],[Primary Account]],tblREGASSLookup[[#This Row],[Primary Name]],tblREGASSLookup[[#This Row],[Secondary Acct]],tblREGASSLookup[[#This Row],[Secondary  Name]],tblREGASSLookup[[#This Row],[Alloc4FUNC]])","v":"1823990OTHR REG ASSET-N CST187630Reg Asset - UT EIM Expense DeferralOTHER"},1823990,"OTHR REG ASSET-N CST",187630,"Reg Asset - UT EIM Expense Deferral","OTHER",null,{"$f":"IF(OR(tblREGASSLookup[[#This Row],[Alloc]]=\"IDU\",tblREGASSLookup[[#This Row],[Alloc]]=\"OR\",tblREGASSLookup[[#This Row],[Alloc]]=\"UT\",tblREGASSLookup[[#This Row],[Alloc]]=\"WYU\",tblREGASSLookup[[#This Row],[Alloc]]=\"WYP\",tblREGASSLookup[[#This Row],[Alloc]]=\"CA\",tblREGASSLookup[[#This Row],[Alloc]]=\"WA\"),\"SITUS\",tblREGASSLookup[[#This Row],[Alloc]])","v":"OTHER"},"P"]
[{"$f":"CONCATENATE(tblREGASSLookup[[#This Row],[Primary Account]],tblREGASSLookup[[#This Row],[Primary Name]],tblREGASSLookup[[#This Row],[Secondary Acct]],tblREGASSLookup[[#This Row],[Secondary  Name]],tblREGASSLookup[[#This Row],[Alloc4FUNC]])","v":"1823990OTHR REG ASSET-N CST187631Contra Reg Asset - UT EIM  DeferralOTHER"},1823990,"OTHR REG ASSET-N CST",187631,"Contra Reg Asset - UT EIM  Deferral","OTHER",null,{"$f":"IF(OR(tblREGASSLookup[[#This Row],[Alloc]]=\"IDU\",tblREGASSLookup[[#This Row],[Alloc]]=\"OR\",tblREGASSLookup[[#This Row],[Alloc]]=\"UT\",tblREGASSLookup[[#This Row],[Alloc]]=\"WYU\",tblREGASSLookup[[#This Row],[Alloc]]=\"WYP\",tblREGASSLookup[[#This Row],[Alloc]]=\"CA\",tblREGASSLookup[[#This Row],[Alloc]]=\"WA\"),\"SITUS\",tblREGASSLookup[[#This Row],[Alloc]])","v":"OTHER"},"P"]
[{"$f":"CONCATENATE(tblREGASSLookup[[#This Row],[Primary Account]],tblREGASSLookup[[#This Row],[Primary Name]],tblREGASSLookup[[#This Row],[Secondary Acct]],tblREGASSLookup[[#This Row],[Secondary  Name]],tblREGASSLookup[[#This Row],[Alloc4FUNC]])","v":"1823990OTHR REG ASSET-N CST187650Reg Asset - RPS Compliance PurchasesOTHER"},1823990,"OTHR REG ASSET-N CST",187650,"Reg Asset - RPS Compliance Purchases","OTHER",null,{"$f":"IF(OR(tblREGASSLookup[[#This Row],[Alloc]]=\"IDU\",tblREGASSLookup[[#This Row],[Alloc]]=\"OR\",tblREGASSLookup[[#This Row],[Alloc]]=\"UT\",tblREGASSLookup[[#This Row],[Alloc]]=\"WYU\",tblREGASSLookup[[#This Row],[Alloc]]=\"WYP\",tblREGASSLookup[[#This Row],[Alloc]]=\"CA\",tblREGASSLookup[[#This Row],[Alloc]]=\"WA\"),\"SITUS\",tblREGASSLookup[[#This Row],[Alloc]])","v":"OTHER"},"P"]
[{"$f":"CONCATENATE(tblREGASSLookup[[#This Row],[Primary Account]],tblREGASSLookup[[#This Row],[Primary Name]],tblREGASSLookup[[#This Row],[Secondary Acct]],tblREGASSLookup[[#This Row],[Secondary  Name]],tblREGASSLookup[[#This Row],[Alloc4FUNC]])","v":"1823990OTHR REG ASSET-N CST187805Reg Asset  - CA ECAC CY2015OTHER"},1823990,"OTHR REG ASSET-N CST",187805,"Reg Asset  - CA ECAC CY2015","OTHER",null,{"$f":"IF(OR(tblREGASSLookup[[#This Row],[Alloc]]=\"IDU\",tblREGASSLookup[[#This Row],[Alloc]]=\"OR\",tblREGASSLookup[[#This Row],[Alloc]]=\"UT\",tblREGASSLookup[[#This Row],[Alloc]]=\"WYU\",tblREGASSLookup[[#This Row],[Alloc]]=\"WYP\",tblREGASSLookup[[#This Row],[Alloc]]=\"CA\",tblREGASSLookup[[#This Row],[Alloc]]=\"WA\"),\"SITUS\",tblREGASSLookup[[#This Row],[Alloc]])","v":"OTHER"},"P"]
[{"$f":"CONCATENATE(tblREGASSLookup[[#This Row],[Primary Account]],tblREGASSLookup[[#This Row],[Primary Name]],tblREGASSLookup[[#This Row],[Secondary Acct]],tblREGASSLookup[[#This Row],[Secondary  Name]],tblREGASSLookup[[#This Row],[Alloc4FUNC]])","v":"1823990OTHR REG ASSET-N CST187806Reg Asset  - CA ECAC CY2016OTHER"},1823990,"OTHR REG ASSET-N CST",187806,"Reg Asset  - CA ECAC CY2016","OTHER",null,{"$f":"IF(OR(tblREGASSLookup[[#This Row],[Alloc]]=\"IDU\",tblREGASSLookup[[#This Row],[Alloc]]=\"OR\",tblREGASSLookup[[#This Row],[Alloc]]=\"UT\",tblREGASSLookup[[#This Row],[Alloc]]=\"WYU\",tblREGASSLookup[[#This Row],[Alloc]]=\"WYP\",tblREGASSLookup[[#This Row],[Alloc]]=\"CA\",tblREGASSLookup[[#This Row],[Alloc]]=\"WA\"),\"SITUS\",tblREGASSLookup[[#This Row],[Alloc]])","v":"OTHER"},"P"]
[{"$f":"CONCATENATE(tblREGASSLookup[[#This Row],[Primary Account]],tblREGASSLookup[[#This Row],[Primary Name]],tblREGASSLookup[[#This Row],[Secondary Acct]],tblREGASSLookup[[#This Row],[Secondary  Name]],tblREGASSLookup[[#This Row],[Alloc4FUNC]])","v":"1823990OTHR REG ASSET-N CST187825Reg Asset  - UT EBA CY2014OTHER"},1823990,"OTHR REG ASSET-N CST",187825,"Reg Asset  - UT EBA CY2014","OTHER",null,{"$f":"IF(OR(tblREGASSLookup[[#This Row],[Alloc]]=\"IDU\",tblREGASSLookup[[#This Row],[Alloc]]=\"OR\",tblREGASSLookup[[#This Row],[Alloc]]=\"UT\",tblREGASSLookup[[#This Row],[Alloc]]=\"WYU\",tblREGASSLookup[[#This Row],[Alloc]]=\"WYP\",tblREGASSLookup[[#This Row],[Alloc]]=\"CA\",tblREGASSLookup[[#This Row],[Alloc]]=\"WA\"),\"SITUS\",tblREGASSLookup[[#This Row],[Alloc]])","v":"OTHER"},"P"]
[{"$f":"CONCATENATE(tblREGASSLookup[[#This Row],[Primary Account]],tblREGASSLookup[[#This Row],[Primary Name]],tblREGASSLookup[[#This Row],[Secondary Acct]],tblREGASSLookup[[#This Row],[Secondary  Name]],tblREGASSLookup[[#This Row],[Alloc4FUNC]])","v":"1823990OTHR REG ASSET-N CST187826Reg Asset  - UT EBA CY2015OTHER"},1823990,"OTHR REG ASSET-N CST",187826,"Reg Asset  - UT EBA CY2015","OTHER",null,{"$f":"IF(OR(tblREGASSLookup[[#This Row],[Alloc]]=\"IDU\",tblREGASSLookup[[#This Row],[Alloc]]=\"OR\",tblREGASSLookup[[#This Row],[Alloc]]=\"UT\",tblREGASSLookup[[#This Row],[Alloc]]=\"WYU\",tblREGASSLookup[[#This Row],[Alloc]]=\"WYP\",tblREGASSLookup[[#This Row],[Alloc]]=\"CA\",tblREGASSLookup[[#This Row],[Alloc]]=\"WA\"),\"SITUS\",tblREGASSLookup[[#This Row],[Alloc]])","v":"OTHER"},"P"]
[{"$f":"CONCATENATE(tblREGASSLookup[[#This Row],[Primary Account]],tblREGASSLookup[[#This Row],[Primary Name]],tblREGASSLookup[[#This Row],[Secondary Acct]],tblREGASSLookup[[#This Row],[Secondary  Name]],tblREGASSLookup[[#This Row],[Alloc4FUNC]])","v":"1823990OTHR REG ASSET-N CST187827Reg Asset  - UT EBA CY2016OTHER"},1823990,"OTHR REG ASSET-N CST",187827,"Reg Asset  - UT EBA CY2016","OTHER",null,{"$f":"IF(OR(tblREGASSLookup[[#This Row],[Alloc]]=\"IDU\",tblREGASSLookup[[#This Row],[Alloc]]=\"OR\",tblREGASSLookup[[#This Row],[Alloc]]=\"UT\",tblREGASSLookup[[#This Row],[Alloc]]=\"WYU\",tblREGASSLookup[[#This Row],[Alloc]]=\"WYP\",tblREGASSLookup[[#This Row],[Alloc]]=\"CA\",tblREGASSLookup[[#This Row],[Alloc]]=\"WA\"),\"SITUS\",tblREGASSLookup[[#This Row],[Alloc]])","v":"OTHER"},"P"]
[{"$f":"CONCATENATE(tblREGASSLookup[[#This Row],[Primary Account]],tblREGASSLookup[[#This Row],[Primary Name]],tblREGASSLookup[[#This Row],[Secondary Acct]],tblREGASSLookup[[#This Row],[Secondary  Name]],tblREGASSLookup[[#This Row],[Alloc4FUNC]])","v":"1823990OTHR REG ASSET-N CST187828Reg Asset - UT EBA CY2017OTHER"},1823990,"OTHR REG ASSET-N CST",187828,"Reg Asset - UT EBA CY2017","OTHER",null,{"$f":"IF(OR(tblREGASSLookup[[#This Row],[Alloc]]=\"IDU\",tblREGASSLookup[[#This Row],[Alloc]]=\"OR\",tblREGASSLookup[[#This Row],[Alloc]]=\"UT\",tblREGASSLookup[[#This Row],[Alloc]]=\"WYU\",tblREGASSLookup[[#This Row],[Alloc]]=\"WYP\",tblREGASSLookup[[#This Row],[Alloc]]=\"CA\",tblREGASSLookup[[#This Row],[Alloc]]=\"WA\"),\"SITUS\",tblREGASSLookup[[#This Row],[Alloc]])","v":"OTHER"},"P"]
[{"$f":"CONCATENATE(tblREGASSLookup[[#This Row],[Primary Account]],tblREGASSLookup[[#This Row],[Primary Name]],tblREGASSLookup[[#This Row],[Secondary Acct]],tblREGASSLookup[[#This Row],[Secondary  Name]],tblREGASSLookup[[#This Row],[Alloc4FUNC]])","v":"1823990OTHR REG ASSET-N CST187835Reg Asset  - UT RBA CY2014OTHER"},1823990,"OTHR REG ASSET-N CST",187835,"Reg Asset  - UT RBA CY2014","OTHER",null,{"$f":"IF(OR(tblREGASSLookup[[#This Row],[Alloc]]=\"IDU\",tblREGASSLookup[[#This Row],[Alloc]]=\"OR\",tblREGASSLookup[[#This Row],[Alloc]]=\"UT\",tblREGASSLookup[[#This Row],[Alloc]]=\"WYU\",tblREGASSLookup[[#This Row],[Alloc]]=\"WYP\",tblREGASSLookup[[#This Row],[Alloc]]=\"CA\",tblREGASSLookup[[#This Row],[Alloc]]=\"WA\"),\"SITUS\",tblREGASSLookup[[#This Row],[Alloc]])","v":"OTHER"},"P"]
[{"$f":"CONCATENATE(tblREGASSLookup[[#This Row],[Primary Account]],tblREGASSLookup[[#This Row],[Primary Name]],tblREGASSLookup[[#This Row],[Secondary Acct]],tblREGASSLookup[[#This Row],[Secondary  Name]],tblREGASSLookup[[#This Row],[Alloc4FUNC]])","v":"1823990OTHR REG ASSET-N CST187836Reg Asset  - UT RBA CY2015OTHER"},1823990,"OTHR REG ASSET-N CST",187836,"Reg Asset  - UT RBA CY2015","OTHER",null,{"$f":"IF(OR(tblREGASSLookup[[#This Row],[Alloc]]=\"IDU\",tblREGASSLookup[[#This Row],[Alloc]]=\"OR\",tblREGASSLookup[[#This Row],[Alloc]]=\"UT\",tblREGASSLookup[[#This Row],[Alloc]]=\"WYU\",tblREGASSLookup[[#This Row],[Alloc]]=\"WYP\",tblREGASSLookup[[#This Row],[Alloc]]=\"CA\",tblREGASSLookup[[#This Row],[Alloc]]=\"WA\"),\"SITUS\",tblREGASSLookup[[#This Row],[Alloc]])","v":"OTHER"},"P"]
[{"$f":"CONCATENATE(tblREGASSLookup[[#This Row],[Primary Account]],tblREGASSLookup[[#This Row],[Primary Name]],tblREGASSLookup[[#This Row],[Secondary Acct]],tblREGASSLookup[[#This Row],[Secondary  Name]],tblREGASSLookup[[#This Row],[Alloc4FUNC]])","v":"1823990OTHR REG ASSET-N CST187837Reg Asset  - UT RBA CY2016OTHER"},1823990,"OTHR REG ASSET-N CST",187837,"Reg Asset  - UT RBA CY2016","OTHER",null,{"$f":"IF(OR(tblREGASSLookup[[#This Row],[Alloc]]=\"IDU\",tblREGASSLookup[[#This Row],[Alloc]]=\"OR\",tblREGASSLookup[[#This Row],[Alloc]]=\"UT\",tblREGASSLookup[[#This Row],[Alloc]]=\"WYU\",tblREGASSLookup[[#This Row],[Alloc]]=\"WYP\",tblREGASSLookup[[#This Row],[Alloc]]=\"CA\",tblREGASSLookup[[#This Row],[Alloc]]=\"WA\"),\"SITUS\",tblREGASSLookup[[#This Row],[Alloc]])","v":"OTHER"},"P"]
[{"$f":"CONCATENATE(tblREGASSLookup[[#This Row],[Primary Account]],tblREGASSLookup[[#This Row],[Primary Name]],tblREGASSLookup[[#This Row],[Secondary Acct]],tblREGASSLookup[[#This Row],[Secondary  Name]],tblREGASSLookup[[#This Row],[Alloc4FUNC]])","v":"1823990OTHR REG ASSET-N CST187838Reg Asset - UT RBA CY2017OTHER"},1823990,"OTHR REG ASSET-N CST",187838,"Reg Asset - UT RBA CY2017","OTHER",null,{"$f":"IF(OR(tblREGASSLookup[[#This Row],[Alloc]]=\"IDU\",tblREGASSLookup[[#This Row],[Alloc]]=\"OR\",tblREGASSLookup[[#This Row],[Alloc]]=\"UT\",tblREGASSLookup[[#This Row],[Alloc]]=\"WYU\",tblREGASSLookup[[#This Row],[Alloc]]=\"WYP\",tblREGASSLookup[[#This Row],[Alloc]]=\"CA\",tblREGASSLookup[[#This Row],[Alloc]]=\"WA\"),\"SITUS\",tblREGASSLookup[[#This Row],[Alloc]])","v":"OTHER"},"P"]
[{"$f":"CONCATENATE(tblREGASSLookup[[#This Row],[Primary Account]],tblREGASSLookup[[#This Row],[Primary Name]],tblREGASSLookup[[#This Row],[Secondary Acct]],tblREGASSLookup[[#This Row],[Secondary  Name]],tblREGASSLookup[[#This Row],[Alloc4FUNC]])","v":"1823990OTHR REG ASSET-N CST187846Contra Reg Asset - UT EBA CY2015OTHER"},1823990,"OTHR REG ASSET-N CST",187846,"Contra Reg Asset - UT EBA CY2015","OTHER",null,{"$f":"IF(OR(tblREGASSLookup[[#This Row],[Alloc]]=\"IDU\",tblREGASSLookup[[#This Row],[Alloc]]=\"OR\",tblREGASSLookup[[#This Row],[Alloc]]=\"UT\",tblREGASSLookup[[#This Row],[Alloc]]=\"WYU\",tblREGASSLookup[[#This Row],[Alloc]]=\"WYP\",tblREGASSLookup[[#This Row],[Alloc]]=\"CA\",tblREGASSLookup[[#This Row],[Alloc]]=\"WA\"),\"SITUS\",tblREGASSLookup[[#This Row],[Alloc]])","v":"OTHER"},"P"]
[{"$f":"CONCATENATE(tblREGASSLookup[[#This Row],[Primary Account]],tblREGASSLookup[[#This Row],[Primary Name]],tblREGASSLookup[[#This Row],[Secondary Acct]],tblREGASSLookup[[#This Row],[Secondary  Name]],tblREGASSLookup[[#This Row],[Alloc4FUNC]])","v":"1823990OTHR REG ASSET-N CST187847Contra Reg Asset - UT EBA CY2016OTHER"},1823990,"OTHR REG ASSET-N CST",187847,"Contra Reg Asset - UT EBA CY2016","OTHER",null,{"$f":"IF(OR(tblREGASSLookup[[#This Row],[Alloc]]=\"IDU\",tblREGASSLookup[[#This Row],[Alloc]]=\"OR\",tblREGASSLookup[[#This Row],[Alloc]]=\"UT\",tblREGASSLookup[[#This Row],[Alloc]]=\"WYU\",tblREGASSLookup[[#This Row],[Alloc]]=\"WYP\",tblREGASSLookup[[#This Row],[Alloc]]=\"CA\",tblREGASSLookup[[#This Row],[Alloc]]=\"WA\"),\"SITUS\",tblREGASSLookup[[#This Row],[Alloc]])","v":"OTHER"},"P"]
[{"$f":"CONCATENATE(tblREGASSLookup[[#This Row],[Primary Account]],tblREGASSLookup[[#This Row],[Primary Name]],tblREGASSLookup[[#This Row],[Secondary Acct]],tblREGASSLookup[[#This Row],[Secondary  Name]],tblREGASSLookup[[#This Row],[Alloc4FUNC]])","v":"1823990OTHR REG ASSET-N CST187848Contra Reg Asset - UT EBA CY2017OTHER"},1823990,"OTHR REG ASSET-N CST",187848,"Contra Reg Asset - UT EBA CY2017","OTHER",null,{"$f":"IF(OR(tblREGASSLookup[[#This Row],[Alloc]]=\"IDU\",tblREGASSLookup[[#This Row],[Alloc]]=\"OR\",tblREGASSLookup[[#This Row],[Alloc]]=\"UT\",tblREGASSLookup[[#This Row],[Alloc]]=\"WYU\",tblREGASSLookup[[#This Row],[Alloc]]=\"WYP\",tblREGASSLookup[[#This Row],[Alloc]]=\"CA\",tblREGASSLookup[[#This Row],[Alloc]]=\"WA\"),\"SITUS\",tblREGASSLookup[[#This Row],[Alloc]])","v":"OTHER"},"P"]
[{"$f":"CONCATENATE(tblREGASSLookup[[#This Row],[Primary Account]],tblREGASSLookup[[#This Row],[Primary Name]],tblREGASSLookup[[#This Row],[Secondary Acct]],tblREGASSLookup[[#This Row],[Secondary  Name]],tblREGASSLookup[[#This Row],[Alloc4FUNC]])","v":"1823990OTHR REG ASSET-N CST187855Reg Asset  - WY ECAM CY2015OTHER"},1823990,"OTHR REG ASSET-N CST",187855,"Reg Asset  - WY ECAM CY2015","OTHER",null,{"$f":"IF(OR(tblREGASSLookup[[#This Row],[Alloc]]=\"IDU\",tblREGASSLookup[[#This Row],[Alloc]]=\"OR\",tblREGASSLookup[[#This Row],[Alloc]]=\"UT\",tblREGASSLookup[[#This Row],[Alloc]]=\"WYU\",tblREGASSLookup[[#This Row],[Alloc]]=\"WYP\",tblREGASSLookup[[#This Row],[Alloc]]=\"CA\",tblREGASSLookup[[#This Row],[Alloc]]=\"WA\"),\"SITUS\",tblREGASSLookup[[#This Row],[Alloc]])","v":"OTHER"},"P"]
[{"$f":"CONCATENATE(tblREGASSLookup[[#This Row],[Primary Account]],tblREGASSLookup[[#This Row],[Primary Name]],tblREGASSLookup[[#This Row],[Secondary Acct]],tblREGASSLookup[[#This Row],[Secondary  Name]],tblREGASSLookup[[#This Row],[Alloc4FUNC]])","v":"1823990OTHR REG ASSET-N CST187856Reg Asset  - WY ECAM CY2016OTHER"},1823990,"OTHR REG ASSET-N CST",187856,"Reg Asset  - WY ECAM CY2016","OTHER",null,{"$f":"IF(OR(tblREGASSLookup[[#This Row],[Alloc]]=\"IDU\",tblREGASSLookup[[#This Row],[Alloc]]=\"OR\",tblREGASSLookup[[#This Row],[Alloc]]=\"UT\",tblREGASSLookup[[#This Row],[Alloc]]=\"WYU\",tblREGASSLookup[[#This Row],[Alloc]]=\"WYP\",tblREGASSLookup[[#This Row],[Alloc]]=\"CA\",tblREGASSLookup[[#This Row],[Alloc]]=\"WA\"),\"SITUS\",tblREGASSLookup[[#This Row],[Alloc]])","v":"OTHER"},"P"]
[{"$f":"CONCATENATE(tblREGASSLookup[[#This Row],[Primary Account]],tblREGASSLookup[[#This Row],[Primary Name]],tblREGASSLookup[[#This Row],[Secondary Acct]],tblREGASSLookup[[#This Row],[Secondary  Name]],tblREGASSLookup[[#This Row],[Alloc4FUNC]])","v":"1823990OTHR REG ASSET-N CST187857Reg Asset - WY ECAM CY2017OTHER"},1823990,"OTHR REG ASSET-N CST",187857,"Reg Asset - WY ECAM CY2017","OTHER",null,{"$f":"IF(OR(tblREGASSLookup[[#This Row],[Alloc]]=\"IDU\",tblREGASSLookup[[#This Row],[Alloc]]=\"OR\",tblREGASSLookup[[#This Row],[Alloc]]=\"UT\",tblREGASSLookup[[#This Row],[Alloc]]=\"WYU\",tblREGASSLookup[[#This Row],[Alloc]]=\"WYP\",tblREGASSLookup[[#This Row],[Alloc]]=\"CA\",tblREGASSLookup[[#This Row],[Alloc]]=\"WA\"),\"SITUS\",tblREGASSLookup[[#This Row],[Alloc]])","v":"OTHER"},"P"]
[{"$f":"CONCATENATE(tblREGASSLookup[[#This Row],[Primary Account]],tblREGASSLookup[[#This Row],[Primary Name]],tblREGASSLookup[[#This Row],[Secondary Acct]],tblREGASSLookup[[#This Row],[Secondary  Name]],tblREGASSLookup[[#This Row],[Alloc4FUNC]])","v":"1823990OTHR REG ASSET-N CST187865Reg Asset  - WY RRA CY2015OTHER"},1823990,"OTHR REG ASSET-N CST",187865,"Reg Asset  - WY RRA CY2015","OTHER",null,{"$f":"IF(OR(tblREGASSLookup[[#This Row],[Alloc]]=\"IDU\",tblREGASSLookup[[#This Row],[Alloc]]=\"OR\",tblREGASSLookup[[#This Row],[Alloc]]=\"UT\",tblREGASSLookup[[#This Row],[Alloc]]=\"WYU\",tblREGASSLookup[[#This Row],[Alloc]]=\"WYP\",tblREGASSLookup[[#This Row],[Alloc]]=\"CA\",tblREGASSLookup[[#This Row],[Alloc]]=\"WA\"),\"SITUS\",tblREGASSLookup[[#This Row],[Alloc]])","v":"OTHER"},"P"]
[{"$f":"CONCATENATE(tblREGASSLookup[[#This Row],[Primary Account]],tblREGASSLookup[[#This Row],[Primary Name]],tblREGASSLookup[[#This Row],[Secondary Acct]],tblREGASSLookup[[#This Row],[Secondary  Name]],tblREGASSLookup[[#This Row],[Alloc4FUNC]])","v":"1823990OTHR REG ASSET-N CST187866Reg Asset  - WY RRA CY2016OTHER"},1823990,"OTHR REG ASSET-N CST",187866,"Reg Asset  - WY RRA CY2016","OTHER",null,{"$f":"IF(OR(tblREGASSLookup[[#This Row],[Alloc]]=\"IDU\",tblREGASSLookup[[#This Row],[Alloc]]=\"OR\",tblREGASSLookup[[#This Row],[Alloc]]=\"UT\",tblREGASSLookup[[#This Row],[Alloc]]=\"WYU\",tblREGASSLookup[[#This Row],[Alloc]]=\"WYP\",tblREGASSLookup[[#This Row],[Alloc]]=\"CA\",tblREGASSLookup[[#This Row],[Alloc]]=\"WA\"),\"SITUS\",tblREGASSLookup[[#This Row],[Alloc]])","v":"OTHER"},"P"]
[{"$f":"CONCATENATE(tblREGASSLookup[[#This Row],[Primary Account]],tblREGASSLookup[[#This Row],[Primary Name]],tblREGASSLookup[[#This Row],[Secondary Acct]],tblREGASSLookup[[#This Row],[Secondary  Name]],tblREGASSLookup[[#This Row],[Alloc4FUNC]])","v":"1823990OTHR REG ASSET-N CST187867Reg Asset - WY RRA CY2017OTHER"},1823990,"OTHR REG ASSET-N CST",187867,"Reg Asset - WY RRA CY2017","OTHER",null,{"$f":"IF(OR(tblREGASSLookup[[#This Row],[Alloc]]=\"IDU\",tblREGASSLookup[[#This Row],[Alloc]]=\"OR\",tblREGASSLookup[[#This Row],[Alloc]]=\"UT\",tblREGASSLookup[[#This Row],[Alloc]]=\"WYU\",tblREGASSLookup[[#This Row],[Alloc]]=\"WYP\",tblREGASSLookup[[#This Row],[Alloc]]=\"CA\",tblREGASSLookup[[#This Row],[Alloc]]=\"WA\"),\"SITUS\",tblREGASSLookup[[#This Row],[Alloc]])","v":"OTHER"},"P"]
[{"$f":"CONCATENATE(tblREGASSLookup[[#This Row],[Primary Account]],tblREGASSLookup[[#This Row],[Primary Name]],tblREGASSLookup[[#This Row],[Secondary Acct]],tblREGASSLookup[[#This Row],[Secondary  Name]],tblREGASSLookup[[#This Row],[Alloc4FUNC]])","v":"1823990OTHR REG ASSET-N CST187875Contra Reg Asset - WY ECAM CY2015OTHER"},1823990,"OTHR REG ASSET-N CST",187875,"Contra Reg Asset - WY ECAM CY2015","OTHER",null,{"$f":"IF(OR(tblREGASSLookup[[#This Row],[Alloc]]=\"IDU\",tblREGASSLookup[[#This Row],[Alloc]]=\"OR\",tblREGASSLookup[[#This Row],[Alloc]]=\"UT\",tblREGASSLookup[[#This Row],[Alloc]]=\"WYU\",tblREGASSLookup[[#This Row],[Alloc]]=\"WYP\",tblREGASSLookup[[#This Row],[Alloc]]=\"CA\",tblREGASSLookup[[#This Row],[Alloc]]=\"WA\"),\"SITUS\",tblREGASSLookup[[#This Row],[Alloc]])","v":"OTHER"},"P"]
[{"$f":"CONCATENATE(tblREGASSLookup[[#This Row],[Primary Account]],tblREGASSLookup[[#This Row],[Primary Name]],tblREGASSLookup[[#This Row],[Secondary Acct]],tblREGASSLookup[[#This Row],[Secondary  Name]],tblREGASSLookup[[#This Row],[Alloc4FUNC]])","v":"1823990OTHR REG ASSET-N CST187876CONTRA REG ASSET - WY ECAM CY2016OTHER"},1823990,"OTHR REG ASSET-N CST",187876,"CONTRA REG ASSET - WY ECAM CY2016","OTHER",null,{"$f":"IF(OR(tblREGASSLookup[[#This Row],[Alloc]]=\"IDU\",tblREGASSLookup[[#This Row],[Alloc]]=\"OR\",tblREGASSLookup[[#This Row],[Alloc]]=\"UT\",tblREGASSLookup[[#This Row],[Alloc]]=\"WYU\",tblREGASSLookup[[#This Row],[Alloc]]=\"WYP\",tblREGASSLookup[[#This Row],[Alloc]]=\"CA\",tblREGASSLookup[[#This Row],[Alloc]]=\"WA\"),\"SITUS\",tblREGASSLookup[[#This Row],[Alloc]])","v":"OTHER"},"P"]
[{"$f":"CONCATENATE(tblREGASSLookup[[#This Row],[Primary Account]],tblREGASSLookup[[#This Row],[Primary Name]],tblREGASSLookup[[#This Row],[Secondary Acct]],tblREGASSLookup[[#This Row],[Secondary  Name]],tblREGASSLookup[[#This Row],[Alloc4FUNC]])","v":"1823990OTHR REG ASSET-N CST187878Contra Reg Asset - WY ECAM CY2017OTHER"},1823990,"OTHR REG ASSET-N CST",187878,"Contra Reg Asset - WY ECAM CY2017","OTHER",null,{"$f":"IF(OR(tblREGASSLookup[[#This Row],[Alloc]]=\"IDU\",tblREGASSLookup[[#This Row],[Alloc]]=\"OR\",tblREGASSLookup[[#This Row],[Alloc]]=\"UT\",tblREGASSLookup[[#This Row],[Alloc]]=\"WYU\",tblREGASSLookup[[#This Row],[Alloc]]=\"WYP\",tblREGASSLookup[[#This Row],[Alloc]]=\"CA\",tblREGASSLookup[[#This Row],[Alloc]]=\"WA\"),\"SITUS\",tblREGASSLookup[[#This Row],[Alloc]])","v":"OTHER"},"P"]
[{"$f":"CONCATENATE(tblREGASSLookup[[#This Row],[Primary Account]],tblREGASSLookup[[#This Row],[Primary Name]],tblREGASSLookup[[#This Row],[Secondary Acct]],tblREGASSLookup[[#This Row],[Secondary  Name]],tblREGASSLookup[[#This Row],[Alloc4FUNC]])","v":"1823990OTHR REG ASSET-N CST187886Reg Asset-OR RPS Compliance PurchasesOTHER"},1823990,"OTHR REG ASSET-N CST",187886,"Reg Asset-OR RPS Compliance Purchases","OTHER",null,{"$f":"IF(OR(tblREGASSLookup[[#This Row],[Alloc]]=\"IDU\",tblREGASSLookup[[#This Row],[Alloc]]=\"OR\",tblREGASSLookup[[#This Row],[Alloc]]=\"UT\",tblREGASSLookup[[#This Row],[Alloc]]=\"WYU\",tblREGASSLookup[[#This Row],[Alloc]]=\"WYP\",tblREGASSLookup[[#This Row],[Alloc]]=\"CA\",tblREGASSLookup[[#This Row],[Alloc]]=\"WA\"),\"SITUS\",tblREGASSLookup[[#This Row],[Alloc]])","v":"OTHER"},"P"]
[{"$f":"CONCATENATE(tblREGASSLookup[[#This Row],[Primary Account]],tblREGASSLookup[[#This Row],[Primary Name]],tblREGASSLookup[[#This Row],[Secondary Acct]],tblREGASSLookup[[#This Row],[Secondary  Name]],tblREGASSLookup[[#This Row],[Alloc4FUNC]])","v":"1823990OTHR REG ASSET-N CST187888RegA - WA RECs in Rates - Recl to CurrOTHER"},1823990,"OTHR REG ASSET-N CST",187888,"RegA - WA RECs in Rates - Recl to Curr","OTHER",null,{"$f":"IF(OR(tblREGASSLookup[[#This Row],[Alloc]]=\"IDU\",tblREGASSLookup[[#This Row],[Alloc]]=\"OR\",tblREGASSLookup[[#This Row],[Alloc]]=\"UT\",tblREGASSLookup[[#This Row],[Alloc]]=\"WYU\",tblREGASSLookup[[#This Row],[Alloc]]=\"WYP\",tblREGASSLookup[[#This Row],[Alloc]]=\"CA\",tblREGASSLookup[[#This Row],[Alloc]]=\"WA\"),\"SITUS\",tblREGASSLookup[[#This Row],[Alloc]])","v":"OTHER"},"P"]
[{"$f":"CONCATENATE(tblREGASSLookup[[#This Row],[Primary Account]],tblREGASSLookup[[#This Row],[Primary Name]],tblREGASSLookup[[#This Row],[Secondary Acct]],tblREGASSLookup[[#This Row],[Secondary  Name]],tblREGASSLookup[[#This Row],[Alloc4FUNC]])","v":"1823990OTHR REG ASSET-N CST187889RegA - WA RECs in Rates - Balance ReclOTHER"},1823990,"OTHR REG ASSET-N CST",187889,"RegA - WA RECs in Rates - Balance Recl","OTHER",null,{"$f":"IF(OR(tblREGASSLookup[[#This Row],[Alloc]]=\"IDU\",tblREGASSLookup[[#This Row],[Alloc]]=\"OR\",tblREGASSLookup[[#This Row],[Alloc]]=\"UT\",tblREGASSLookup[[#This Row],[Alloc]]=\"WYU\",tblREGASSLookup[[#This Row],[Alloc]]=\"WYP\",tblREGASSLookup[[#This Row],[Alloc]]=\"CA\",tblREGASSLookup[[#This Row],[Alloc]]=\"WA\"),\"SITUS\",tblREGASSLookup[[#This Row],[Alloc]])","v":"OTHER"},"P"]
[{"$f":"CONCATENATE(tblREGASSLookup[[#This Row],[Primary Account]],tblREGASSLookup[[#This Row],[Primary Name]],tblREGASSLookup[[#This Row],[Secondary Acct]],tblREGASSLookup[[#This Row],[Secondary  Name]],tblREGASSLookup[[#This Row],[Alloc4FUNC]])","v":"1823990OTHR REG ASSET-N CST187892Deferral of Excess RECs in Rates - WAOTHER"},1823990,"OTHR REG ASSET-N CST",187892,"Deferral of Excess RECs in Rates - WA","OTHER",null,{"$f":"IF(OR(tblREGASSLookup[[#This Row],[Alloc]]=\"IDU\",tblREGASSLookup[[#This Row],[Alloc]]=\"OR\",tblREGASSLookup[[#This Row],[Alloc]]=\"UT\",tblREGASSLookup[[#This Row],[Alloc]]=\"WYU\",tblREGASSLookup[[#This Row],[Alloc]]=\"WYP\",tblREGASSLookup[[#This Row],[Alloc]]=\"CA\",tblREGASSLookup[[#This Row],[Alloc]]=\"WA\"),\"SITUS\",tblREGASSLookup[[#This Row],[Alloc]])","v":"OTHER"},"P"]
[{"$f":"CONCATENATE(tblREGASSLookup[[#This Row],[Primary Account]],tblREGASSLookup[[#This Row],[Primary Name]],tblREGASSLookup[[#This Row],[Secondary Acct]],tblREGASSLookup[[#This Row],[Secondary  Name]],tblREGASSLookup[[#This Row],[Alloc4FUNC]])","v":"1823990OTHR REG ASSET-N CST187895RegA - OR RECs in Rates - Balance ReclOTHER"},1823990,"OTHR REG ASSET-N CST",187895,"RegA - OR RECs in Rates - Balance Recl","OTHER",null,{"$f":"IF(OR(tblREGASSLookup[[#This Row],[Alloc]]=\"IDU\",tblREGASSLookup[[#This Row],[Alloc]]=\"OR\",tblREGASSLookup[[#This Row],[Alloc]]=\"UT\",tblREGASSLookup[[#This Row],[Alloc]]=\"WYU\",tblREGASSLookup[[#This Row],[Alloc]]=\"WYP\",tblREGASSLookup[[#This Row],[Alloc]]=\"CA\",tblREGASSLookup[[#This Row],[Alloc]]=\"WA\"),\"SITUS\",tblREGASSLookup[[#This Row],[Alloc]])","v":"OTHER"},"P"]
[{"$f":"CONCATENATE(tblREGASSLookup[[#This Row],[Primary Account]],tblREGASSLookup[[#This Row],[Primary Name]],tblREGASSLookup[[#This Row],[Secondary Acct]],tblREGASSLookup[[#This Row],[Secondary  Name]],tblREGASSLookup[[#This Row],[Alloc4FUNC]])","v":"1823990OTHR REG ASSET-N CST187896RegA - UT RECs in Rates - Recl to CurrOTHER"},1823990,"OTHR REG ASSET-N CST",187896,"RegA - UT RECs in Rates - Recl to Curr","OTHER",null,{"$f":"IF(OR(tblREGASSLookup[[#This Row],[Alloc]]=\"IDU\",tblREGASSLookup[[#This Row],[Alloc]]=\"OR\",tblREGASSLookup[[#This Row],[Alloc]]=\"UT\",tblREGASSLookup[[#This Row],[Alloc]]=\"WYU\",tblREGASSLookup[[#This Row],[Alloc]]=\"WYP\",tblREGASSLookup[[#This Row],[Alloc]]=\"CA\",tblREGASSLookup[[#This Row],[Alloc]]=\"WA\"),\"SITUS\",tblREGASSLookup[[#This Row],[Alloc]])","v":"OTHER"},"P"]
[{"$f":"CONCATENATE(tblREGASSLookup[[#This Row],[Primary Account]],tblREGASSLookup[[#This Row],[Primary Name]],tblREGASSLookup[[#This Row],[Secondary Acct]],tblREGASSLookup[[#This Row],[Secondary  Name]],tblREGASSLookup[[#This Row],[Alloc4FUNC]])","v":"1823990OTHR REG ASSET-N CST187897RegA - UT RECs in Rates - Recl to LiabOTHER"},1823990,"OTHR REG ASSET-N CST",187897,"RegA - UT RECs in Rates - Recl to Liab","OTHER",null,{"$f":"IF(OR(tblREGASSLookup[[#This Row],[Alloc]]=\"IDU\",tblREGASSLookup[[#This Row],[Alloc]]=\"OR\",tblREGASSLookup[[#This Row],[Alloc]]=\"UT\",tblREGASSLookup[[#This Row],[Alloc]]=\"WYU\",tblREGASSLookup[[#This Row],[Alloc]]=\"WYP\",tblREGASSLookup[[#This Row],[Alloc]]=\"CA\",tblREGASSLookup[[#This Row],[Alloc]]=\"WA\"),\"SITUS\",tblREGASSLookup[[#This Row],[Alloc]])","v":"OTHER"},"P"]
[{"$f":"CONCATENATE(tblREGASSLookup[[#This Row],[Primary Account]],tblREGASSLookup[[#This Row],[Primary Name]],tblREGASSLookup[[#This Row],[Secondary Acct]],tblREGASSLookup[[#This Row],[Secondary  Name]],tblREGASSLookup[[#This Row],[Alloc4FUNC]])","v":"1823990OTHR REG ASSET-N CST187898RegA - Def RECs in Rates - Recl to CurrOTHER"},1823990,"OTHR REG ASSET-N CST",187898,"RegA - Def RECs in Rates - Recl to Curr","OTHER",null,{"$f":"IF(OR(tblREGASSLookup[[#This Row],[Alloc]]=\"IDU\",tblREGASSLookup[[#This Row],[Alloc]]=\"OR\",tblREGASSLookup[[#This Row],[Alloc]]=\"UT\",tblREGASSLookup[[#This Row],[Alloc]]=\"WYU\",tblREGASSLookup[[#This Row],[Alloc]]=\"WYP\",tblREGASSLookup[[#This Row],[Alloc]]=\"CA\",tblREGASSLookup[[#This Row],[Alloc]]=\"WA\"),\"SITUS\",tblREGASSLookup[[#This Row],[Alloc]])","v":"OTHER"},"P"]
[{"$f":"CONCATENATE(tblREGASSLookup[[#This Row],[Primary Account]],tblREGASSLookup[[#This Row],[Primary Name]],tblREGASSLookup[[#This Row],[Secondary Acct]],tblREGASSLookup[[#This Row],[Secondary  Name]],tblREGASSLookup[[#This Row],[Alloc4FUNC]])","v":"1823990OTHR REG ASSET-N CST187899RegA - WY RECs in Rates - Recl to LiabOTHER"},1823990,"OTHR REG ASSET-N CST",187899,"RegA - WY RECs in Rates - Recl to Liab","OTHER",null,{"$f":"IF(OR(tblREGASSLookup[[#This Row],[Alloc]]=\"IDU\",tblREGASSLookup[[#This Row],[Alloc]]=\"OR\",tblREGASSLookup[[#This Row],[Alloc]]=\"UT\",tblREGASSLookup[[#This Row],[Alloc]]=\"WYU\",tblREGASSLookup[[#This Row],[Alloc]]=\"WYP\",tblREGASSLookup[[#This Row],[Alloc]]=\"CA\",tblREGASSLookup[[#This Row],[Alloc]]=\"WA\"),\"SITUS\",tblREGASSLookup[[#This Row],[Alloc]])","v":"OTHER"},"P"]
[{"$f":"CONCATENATE(tblREGASSLookup[[#This Row],[Primary Account]],tblREGASSLookup[[#This Row],[Primary Name]],tblREGASSLookup[[#This Row],[Secondary Acct]],tblREGASSLookup[[#This Row],[Secondary  Name]],tblREGASSLookup[[#This Row],[Alloc4FUNC]])","v":"1823990OTHR REG ASSET-N CST187911REG ASSET - LAKE SIDE LIQ. DAMAGES - WYSITUS"},1823990,"OTHR REG ASSET-N CST",187911,"REG ASSET - LAKE SIDE LIQ. DAMAGES - WY","SITUS",null,{"$f":"IF(OR(tblREGASSLookup[[#This Row],[Alloc]]=\"IDU\",tblREGASSLookup[[#This Row],[Alloc]]=\"OR\",tblREGASSLookup[[#This Row],[Alloc]]=\"UT\",tblREGASSLookup[[#This Row],[Alloc]]=\"WYU\",tblREGASSLookup[[#This Row],[Alloc]]=\"WYP\",tblREGASSLookup[[#This Row],[Alloc]]=\"CA\",tblREGASSLookup[[#This Row],[Alloc]]=\"WA\"),\"SITUS\",tblREGASSLookup[[#This Row],[Alloc]])","v":"SITUS"},"P"]
[{"$f":"CONCATENATE(tblREGASSLookup[[#This Row],[Primary Account]],tblREGASSLookup[[#This Row],[Primary Name]],tblREGASSLookup[[#This Row],[Secondary Acct]],tblREGASSLookup[[#This Row],[Secondary  Name]],tblREGASSLookup[[#This Row],[Alloc4FUNC]])","v":"1823990OTHR REG ASSET-N CST187912CONTRA - REGULATORY ASSETSSITUS"},1823990,"OTHR REG ASSET-N CST",187912,"CONTRA - REGULATORY ASSETS","SITUS",null,{"$f":"IF(OR(tblREGASSLookup[[#This Row],[Alloc]]=\"IDU\",tblREGASSLookup[[#This Row],[Alloc]]=\"OR\",tblREGASSLookup[[#This Row],[Alloc]]=\"UT\",tblREGASSLookup[[#This Row],[Alloc]]=\"WYU\",tblREGASSLookup[[#This Row],[Alloc]]=\"WYP\",tblREGASSLookup[[#This Row],[Alloc]]=\"CA\",tblREGASSLookup[[#This Row],[Alloc]]=\"WA\"),\"SITUS\",tblREGASSLookup[[#This Row],[Alloc]])","v":"SITUS"},"P"]
[{"$f":"CONCATENATE(tblREGASSLookup[[#This Row],[Primary Account]],tblREGASSLookup[[#This Row],[Primary Name]],tblREGASSLookup[[#This Row],[Secondary Acct]],tblREGASSLookup[[#This Row],[Secondary  Name]],tblREGASSLookup[[#This Row],[Alloc4FUNC]])","v":"1823990OTHR REG ASSET-N CST187913Reg Asset - Goodnoe Hills Liq. Damages -SITUS"},1823990,"OTHR REG ASSET-N CST",187913,"Reg Asset - Goodnoe Hills Liq. Damages -","SITUS",null,{"$f":"IF(OR(tblREGASSLookup[[#This Row],[Alloc]]=\"IDU\",tblREGASSLookup[[#This Row],[Alloc]]=\"OR\",tblREGASSLookup[[#This Row],[Alloc]]=\"UT\",tblREGASSLookup[[#This Row],[Alloc]]=\"WYU\",tblREGASSLookup[[#This Row],[Alloc]]=\"WYP\",tblREGASSLookup[[#This Row],[Alloc]]=\"CA\",tblREGASSLookup[[#This Row],[Alloc]]=\"WA\"),\"SITUS\",tblREGASSLookup[[#This Row],[Alloc]])","v":"SITUS"},"P"]
[{"$f":"CONCATENATE(tblREGASSLookup[[#This Row],[Primary Account]],tblREGASSLookup[[#This Row],[Primary Name]],tblREGASSLookup[[#This Row],[Secondary Acct]],tblREGASSLookup[[#This Row],[Secondary  Name]],tblREGASSLookup[[#This Row],[Alloc4FUNC]])","v":"1823990OTHR REG ASSET-N CST187914\"Reg Asset-UT-Liq. Damages JB4, N1&2\"SITUS"},1823990,"OTHR REG ASSET-N CST",187914,"\"Reg Asset-UT-Liq. Damages JB4, N1&2\"","SITUS",null,{"$f":"IF(OR(tblREGASSLookup[[#This Row],[Alloc]]=\"IDU\",tblREGASSLookup[[#This Row],[Alloc]]=\"OR\",tblREGASSLookup[[#This Row],[Alloc]]=\"UT\",tblREGASSLookup[[#This Row],[Alloc]]=\"WYU\",tblREGASSLookup[[#This Row],[Alloc]]=\"WYP\",tblREGASSLookup[[#This Row],[Alloc]]=\"CA\",tblREGASSLookup[[#This Row],[Alloc]]=\"WA\"),\"SITUS\",tblREGASSLookup[[#This Row],[Alloc]])","v":"SITUS"},"P"]
[{"$f":"CONCATENATE(tblREGASSLookup[[#This Row],[Primary Account]],tblREGASSLookup[[#This Row],[Primary Name]],tblREGASSLookup[[#This Row],[Secondary Acct]],tblREGASSLookup[[#This Row],[Secondary  Name]],tblREGASSLookup[[#This Row],[Alloc4FUNC]])","v":"1823990OTHR REG ASSET-N CST187915Reg Asset-WY-Liq. Damages N2SITUS"},1823990,"OTHR REG ASSET-N CST",187915,"Reg Asset-WY-Liq. Damages N2","SITUS",null,{"$f":"IF(OR(tblREGASSLookup[[#This Row],[Alloc]]=\"IDU\",tblREGASSLookup[[#This Row],[Alloc]]=\"OR\",tblREGASSLookup[[#This Row],[Alloc]]=\"UT\",tblREGASSLookup[[#This Row],[Alloc]]=\"WYU\",tblREGASSLookup[[#This Row],[Alloc]]=\"WYP\",tblREGASSLookup[[#This Row],[Alloc]]=\"CA\",tblREGASSLookup[[#This Row],[Alloc]]=\"WA\"),\"SITUS\",tblREGASSLookup[[#This Row],[Alloc]])","v":"SITUS"},"P"]
[{"$f":"CONCATENATE(tblREGASSLookup[[#This Row],[Primary Account]],tblREGASSLookup[[#This Row],[Primary Name]],tblREGASSLookup[[#This Row],[Secondary Acct]],tblREGASSLookup[[#This Row],[Secondary  Name]],tblREGASSLookup[[#This Row],[Alloc4FUNC]])","v":"1823990OTHR REG ASSET-N CST187952DEFERRED INTERVENEROTHER"},1823990,"OTHR REG ASSET-N CST",187952,"DEFERRED INTERVENER","OTHER",null,{"$f":"IF(OR(tblREGASSLookup[[#This Row],[Alloc]]=\"IDU\",tblREGASSLookup[[#This Row],[Alloc]]=\"OR\",tblREGASSLookup[[#This Row],[Alloc]]=\"UT\",tblREGASSLookup[[#This Row],[Alloc]]=\"WYU\",tblREGASSLookup[[#This Row],[Alloc]]=\"WYP\",tblREGASSLookup[[#This Row],[Alloc]]=\"CA\",tblREGASSLookup[[#This Row],[Alloc]]=\"WA\"),\"SITUS\",tblREGASSLookup[[#This Row],[Alloc]])","v":"OTHER"},"COMMON"]
[{"$f":"CONCATENATE(tblREGASSLookup[[#This Row],[Primary Account]],tblREGASSLookup[[#This Row],[Primary Name]],tblREGASSLookup[[#This Row],[Secondary Acct]],tblREGASSLookup[[#This Row],[Secondary  Name]],tblREGASSLookup[[#This Row],[Alloc4FUNC]])","v":"1823990OTHR REG ASSET-N CST187956CA DEFERRED INTERVENOR FUNDINGOTHER"},1823990,"OTHR REG ASSET-N CST",187956,"CA DEFERRED INTERVENOR FUNDING","OTHER",null,{"$f":"IF(OR(tblREGASSLookup[[#This Row],[Alloc]]=\"IDU\",tblREGASSLookup[[#This Row],[Alloc]]=\"OR\",tblREGASSLookup[[#This Row],[Alloc]]=\"UT\",tblREGASSLookup[[#This Row],[Alloc]]=\"WYU\",tblREGASSLookup[[#This Row],[Alloc]]=\"WYP\",tblREGASSLookup[[#This Row],[Alloc]]=\"CA\",tblREGASSLookup[[#This Row],[Alloc]]=\"WA\"),\"SITUS\",tblREGASSLookup[[#This Row],[Alloc]])","v":"OTHER"},"COMMON"]
[{"$f":"CONCATENATE(tblREGASSLookup[[#This Row],[Primary Account]],tblREGASSLookup[[#This Row],[Primary Name]],tblREGASSLookup[[#This Row],[Secondary Acct]],tblREGASSLookup[[#This Row],[Secondary  Name]],tblREGASSLookup[[#This Row],[Alloc4FUNC]])","v":"1823990OTHR REG ASSET-N CST187958ID Deferred Intervenor FundingSITUS"},1823990,"OTHR REG ASSET-N CST",187958,"ID Deferred Intervenor Funding","SITUS",null,{"$f":"IF(OR(tblREGASSLookup[[#This Row],[Alloc]]=\"IDU\",tblREGASSLookup[[#This Row],[Alloc]]=\"OR\",tblREGASSLookup[[#This Row],[Alloc]]=\"UT\",tblREGASSLookup[[#This Row],[Alloc]]=\"WYU\",tblREGASSLookup[[#This Row],[Alloc]]=\"WYP\",tblREGASSLookup[[#This Row],[Alloc]]=\"CA\",tblREGASSLookup[[#This Row],[Alloc]]=\"WA\"),\"SITUS\",tblREGASSLookup[[#This Row],[Alloc]])","v":"SITUS"},"COMMON"]
[{"$f":"CONCATENATE(tblREGASSLookup[[#This Row],[Primary Account]],tblREGASSLookup[[#This Row],[Primary Name]],tblREGASSLookup[[#This Row],[Secondary Acct]],tblREGASSLookup[[#This Row],[Secondary  Name]],tblREGASSLookup[[#This Row],[Alloc4FUNC]])","v":"1823990OTHR REG ASSET-N CST187967RegA - OR Asset Sale Gain-Balance ReclOTHER"},1823990,"OTHR REG ASSET-N CST",187967,"RegA - OR Asset Sale Gain-Balance Recl","OTHER",null,{"$f":"IF(OR(tblREGASSLookup[[#This Row],[Alloc]]=\"IDU\",tblREGASSLookup[[#This Row],[Alloc]]=\"OR\",tblREGASSLookup[[#This Row],[Alloc]]=\"UT\",tblREGASSLookup[[#This Row],[Alloc]]=\"WYU\",tblREGASSLookup[[#This Row],[Alloc]]=\"WYP\",tblREGASSLookup[[#This Row],[Alloc]]=\"CA\",tblREGASSLookup[[#This Row],[Alloc]]=\"WA\"),\"SITUS\",tblREGASSLookup[[#This Row],[Alloc]])","v":"OTHER"},"P"]
[{"$f":"CONCATENATE(tblREGASSLookup[[#This Row],[Primary Account]],tblREGASSLookup[[#This Row],[Primary Name]],tblREGASSLookup[[#This Row],[Secondary Acct]],tblREGASSLookup[[#This Row],[Secondary  Name]],tblREGASSLookup[[#This Row],[Alloc4FUNC]])","v":"1823990OTHR REG ASSET-N CST187968Reg A - Insurance Reserves - ReclassOTHER"},1823990,"OTHR REG ASSET-N CST",187968,"Reg A - Insurance Reserves - Reclass","OTHER",null,{"$f":"IF(OR(tblREGASSLookup[[#This Row],[Alloc]]=\"IDU\",tblREGASSLookup[[#This Row],[Alloc]]=\"OR\",tblREGASSLookup[[#This Row],[Alloc]]=\"UT\",tblREGASSLookup[[#This Row],[Alloc]]=\"WYU\",tblREGASSLookup[[#This Row],[Alloc]]=\"WYP\",tblREGASSLookup[[#This Row],[Alloc]]=\"CA\",tblREGASSLookup[[#This Row],[Alloc]]=\"WA\"),\"SITUS\",tblREGASSLookup[[#This Row],[Alloc]])","v":"OTHER"},"LABOR"]
[{"$f":"CONCATENATE(tblREGASSLookup[[#This Row],[Primary Account]],tblREGASSLookup[[#This Row],[Primary Name]],tblREGASSLookup[[#This Row],[Secondary Acct]],tblREGASSLookup[[#This Row],[Secondary  Name]],tblREGASSLookup[[#This Row],[Alloc4FUNC]])","v":"1823990OTHR REG ASSET-N CST187973Contra Reg Asset - CA ECAC CY2015OTHER"},1823990,"OTHR REG ASSET-N CST",187973,"Contra Reg Asset - CA ECAC CY2015","OTHER",null,{"$f":"IF(OR(tblREGASSLookup[[#This Row],[Alloc]]=\"IDU\",tblREGASSLookup[[#This Row],[Alloc]]=\"OR\",tblREGASSLookup[[#This Row],[Alloc]]=\"UT\",tblREGASSLookup[[#This Row],[Alloc]]=\"WYU\",tblREGASSLookup[[#This Row],[Alloc]]=\"WYP\",tblREGASSLookup[[#This Row],[Alloc]]=\"CA\",tblREGASSLookup[[#This Row],[Alloc]]=\"WA\"),\"SITUS\",tblREGASSLookup[[#This Row],[Alloc]])","v":"OTHER"},"P"]
[{"$f":"CONCATENATE(tblREGASSLookup[[#This Row],[Primary Account]],tblREGASSLookup[[#This Row],[Primary Name]],tblREGASSLookup[[#This Row],[Secondary Acct]],tblREGASSLookup[[#This Row],[Secondary  Name]],tblREGASSLookup[[#This Row],[Alloc4FUNC]])","v":"1823990OTHR REG ASSET-N CST187974Contra Reg Asset - CA ECAC CY2016OTHER"},1823990,"OTHR REG ASSET-N CST",187974,"Contra Reg Asset - CA ECAC CY2016","OTHER",null,{"$f":"IF(OR(tblREGASSLookup[[#This Row],[Alloc]]=\"IDU\",tblREGASSLookup[[#This Row],[Alloc]]=\"OR\",tblREGASSLookup[[#This Row],[Alloc]]=\"UT\",tblREGASSLookup[[#This Row],[Alloc]]=\"WYU\",tblREGASSLookup[[#This Row],[Alloc]]=\"WYP\",tblREGASSLookup[[#This Row],[Alloc]]=\"CA\",tblREGASSLookup[[#This Row],[Alloc]]=\"WA\"),\"SITUS\",tblREGASSLookup[[#This Row],[Alloc]])","v":"OTHER"},"P"]
[{"$f":"CONCATENATE(tblREGASSLookup[[#This Row],[Primary Account]],tblREGASSLookup[[#This Row],[Primary Name]],tblREGASSLookup[[#This Row],[Secondary Acct]],tblREGASSLookup[[#This Row],[Secondary  Name]],tblREGASSLookup[[#This Row],[Alloc4FUNC]])","v":"1823990OTHR REG ASSET-N CST187975Reg Asset - CA ECACOTHER"},1823990,"OTHR REG ASSET-N CST",187975,"Reg Asset - CA ECAC","OTHER",null,{"$f":"IF(OR(tblREGASSLookup[[#This Row],[Alloc]]=\"IDU\",tblREGASSLookup[[#This Row],[Alloc]]=\"OR\",tblREGASSLookup[[#This Row],[Alloc]]=\"UT\",tblREGASSLookup[[#This Row],[Alloc]]=\"WYU\",tblREGASSLookup[[#This Row],[Alloc]]=\"WYP\",tblREGASSLookup[[#This Row],[Alloc]]=\"CA\",tblREGASSLookup[[#This Row],[Alloc]]=\"WA\"),\"SITUS\",tblREGASSLookup[[#This Row],[Alloc]])","v":"OTHER"},"P"]
[{"$f":"CONCATENATE(tblREGASSLookup[[#This Row],[Primary Account]],tblREGASSLookup[[#This Row],[Primary Name]],tblREGASSLookup[[#This Row],[Secondary Acct]],tblREGASSLookup[[#This Row],[Secondary  Name]],tblREGASSLookup[[#This Row],[Alloc4FUNC]])","v":"1823990OTHR REG ASSET-N CST187976Reg Asset - CA ECAC CY2017OTHER"},1823990,"OTHR REG ASSET-N CST",187976,"Reg Asset - CA ECAC CY2017","OTHER",null,{"$f":"IF(OR(tblREGASSLookup[[#This Row],[Alloc]]=\"IDU\",tblREGASSLookup[[#This Row],[Alloc]]=\"OR\",tblREGASSLookup[[#This Row],[Alloc]]=\"UT\",tblREGASSLookup[[#This Row],[Alloc]]=\"WYU\",tblREGASSLookup[[#This Row],[Alloc]]=\"WYP\",tblREGASSLookup[[#This Row],[Alloc]]=\"CA\",tblREGASSLookup[[#This Row],[Alloc]]=\"WA\"),\"SITUS\",tblREGASSLookup[[#This Row],[Alloc]])","v":"OTHER"},"P"]
[{"$f":"CONCATENATE(tblREGASSLookup[[#This Row],[Primary Account]],tblREGASSLookup[[#This Row],[Primary Name]],tblREGASSLookup[[#This Row],[Secondary Acct]],tblREGASSLookup[[#This Row],[Secondary  Name]],tblREGASSLookup[[#This Row],[Alloc4FUNC]])","v":"1823990OTHR REG ASSET-N CST187977Contra Reg Asset - CA ECAC CY2017OTHER"},1823990,"OTHR REG ASSET-N CST",187977,"Contra Reg Asset - CA ECAC CY2017","OTHER",null,{"$f":"IF(OR(tblREGASSLookup[[#This Row],[Alloc]]=\"IDU\",tblREGASSLookup[[#This Row],[Alloc]]=\"OR\",tblREGASSLookup[[#This Row],[Alloc]]=\"UT\",tblREGASSLookup[[#This Row],[Alloc]]=\"WYU\",tblREGASSLookup[[#This Row],[Alloc]]=\"WYP\",tblREGASSLookup[[#This Row],[Alloc]]=\"CA\",tblREGASSLookup[[#This Row],[Alloc]]=\"WA\"),\"SITUS\",tblREGASSLookup[[#This Row],[Alloc]])","v":"OTHER"},"P"]
[{"$f":"CONCATENATE(tblREGASSLookup[[#This Row],[Primary Account]],tblREGASSLookup[[#This Row],[Primary Name]],tblREGASSLookup[[#This Row],[Secondary Acct]],tblREGASSLookup[[#This Row],[Secondary  Name]],tblREGASSLookup[[#This Row],[Alloc4FUNC]])","v":"1823990OTHR REG ASSET-N CST189528RegA - CA Def Exc NPC - Recl to CurrOTHER"},1823990,"OTHR REG ASSET-N CST",189528,"RegA - CA Def Exc NPC - Recl to Curr","OTHER",null,{"$f":"IF(OR(tblREGASSLookup[[#This Row],[Alloc]]=\"IDU\",tblREGASSLookup[[#This Row],[Alloc]]=\"OR\",tblREGASSLookup[[#This Row],[Alloc]]=\"UT\",tblREGASSLookup[[#This Row],[Alloc]]=\"WYU\",tblREGASSLookup[[#This Row],[Alloc]]=\"WYP\",tblREGASSLookup[[#This Row],[Alloc]]=\"CA\",tblREGASSLookup[[#This Row],[Alloc]]=\"WA\"),\"SITUS\",tblREGASSLookup[[#This Row],[Alloc]])","v":"OTHER"},"P"]
[{"$f":"CONCATENATE(tblREGASSLookup[[#This Row],[Primary Account]],tblREGASSLookup[[#This Row],[Primary Name]],tblREGASSLookup[[#This Row],[Secondary Acct]],tblREGASSLookup[[#This Row],[Secondary  Name]],tblREGASSLookup[[#This Row],[Alloc4FUNC]])","v":"1823990OTHR REG ASSET-N CST189530Reg Asset  - ID ECAM Dec14-Nov15OTHER"},1823990,"OTHR REG ASSET-N CST",189530,"Reg Asset  - ID ECAM Dec14-Nov15","OTHER",null,{"$f":"IF(OR(tblREGASSLookup[[#This Row],[Alloc]]=\"IDU\",tblREGASSLookup[[#This Row],[Alloc]]=\"OR\",tblREGASSLookup[[#This Row],[Alloc]]=\"UT\",tblREGASSLookup[[#This Row],[Alloc]]=\"WYU\",tblREGASSLookup[[#This Row],[Alloc]]=\"WYP\",tblREGASSLookup[[#This Row],[Alloc]]=\"CA\",tblREGASSLookup[[#This Row],[Alloc]]=\"WA\"),\"SITUS\",tblREGASSLookup[[#This Row],[Alloc]])","v":"OTHER"},"P"]
[{"$f":"CONCATENATE(tblREGASSLookup[[#This Row],[Primary Account]],tblREGASSLookup[[#This Row],[Primary Name]],tblREGASSLookup[[#This Row],[Secondary Acct]],tblREGASSLookup[[#This Row],[Secondary  Name]],tblREGASSLookup[[#This Row],[Alloc4FUNC]])","v":"1823990OTHR REG ASSET-N CST189531Reg Asset  - ID ECAM Dec15-Dec16OTHER"},1823990,"OTHR REG ASSET-N CST",189531,"Reg Asset  - ID ECAM Dec15-Dec16","OTHER",null,{"$f":"IF(OR(tblREGASSLookup[[#This Row],[Alloc]]=\"IDU\",tblREGASSLookup[[#This Row],[Alloc]]=\"OR\",tblREGASSLookup[[#This Row],[Alloc]]=\"UT\",tblREGASSLookup[[#This Row],[Alloc]]=\"WYU\",tblREGASSLookup[[#This Row],[Alloc]]=\"WYP\",tblREGASSLookup[[#This Row],[Alloc]]=\"CA\",tblREGASSLookup[[#This Row],[Alloc]]=\"WA\"),\"SITUS\",tblREGASSLookup[[#This Row],[Alloc]])","v":"OTHER"},"P"]
[{"$f":"CONCATENATE(tblREGASSLookup[[#This Row],[Primary Account]],tblREGASSLookup[[#This Row],[Primary Name]],tblREGASSLookup[[#This Row],[Secondary Acct]],tblREGASSLookup[[#This Row],[Secondary  Name]],tblREGASSLookup[[#This Row],[Alloc4FUNC]])","v":"1823990OTHR REG ASSET-N CST189532Reg Asset  - ID ECAM CY 2017OTHER"},1823990,"OTHR REG ASSET-N CST",189532,"Reg Asset  - ID ECAM CY 2017","OTHER",null,{"$f":"IF(OR(tblREGASSLookup[[#This Row],[Alloc]]=\"IDU\",tblREGASSLookup[[#This Row],[Alloc]]=\"OR\",tblREGASSLookup[[#This Row],[Alloc]]=\"UT\",tblREGASSLookup[[#This Row],[Alloc]]=\"WYU\",tblREGASSLookup[[#This Row],[Alloc]]=\"WYP\",tblREGASSLookup[[#This Row],[Alloc]]=\"CA\",tblREGASSLookup[[#This Row],[Alloc]]=\"WA\"),\"SITUS\",tblREGASSLookup[[#This Row],[Alloc]])","v":"OTHER"},"P"]
[{"$f":"CONCATENATE(tblREGASSLookup[[#This Row],[Primary Account]],tblREGASSLookup[[#This Row],[Primary Name]],tblREGASSLookup[[#This Row],[Secondary Acct]],tblREGASSLookup[[#This Row],[Secondary  Name]],tblREGASSLookup[[#This Row],[Alloc4FUNC]])","v":"1823990OTHR REG ASSET-N CST189541Contra Reg Asset - ID ECAM Dec15-Dec16OTHER"},1823990,"OTHR REG ASSET-N CST",189541,"Contra Reg Asset - ID ECAM Dec15-Dec16","OTHER",null,{"$f":"IF(OR(tblREGASSLookup[[#This Row],[Alloc]]=\"IDU\",tblREGASSLookup[[#This Row],[Alloc]]=\"OR\",tblREGASSLookup[[#This Row],[Alloc]]=\"UT\",tblREGASSLookup[[#This Row],[Alloc]]=\"WYU\",tblREGASSLookup[[#This Row],[Alloc]]=\"WYP\",tblREGASSLookup[[#This Row],[Alloc]]=\"CA\",tblREGASSLookup[[#This Row],[Alloc]]=\"WA\"),\"SITUS\",tblREGASSLookup[[#This Row],[Alloc]])","v":"OTHER"},"P"]
[{"$f":"CONCATENATE(tblREGASSLookup[[#This Row],[Primary Account]],tblREGASSLookup[[#This Row],[Primary Name]],tblREGASSLookup[[#This Row],[Secondary Acct]],tblREGASSLookup[[#This Row],[Secondary  Name]],tblREGASSLookup[[#This Row],[Alloc4FUNC]])","v":"1823990OTHR REG ASSET-N CST189542Contra Reg Asset - ID ECAM CY 2017OTHER"},1823990,"OTHR REG ASSET-N CST",189542,"Contra Reg Asset - ID ECAM CY 2017","OTHER",null,{"$f":"IF(OR(tblREGASSLookup[[#This Row],[Alloc]]=\"IDU\",tblREGASSLookup[[#This Row],[Alloc]]=\"OR\",tblREGASSLookup[[#This Row],[Alloc]]=\"UT\",tblREGASSLookup[[#This Row],[Alloc]]=\"WYU\",tblREGASSLookup[[#This Row],[Alloc]]=\"WYP\",tblREGASSLookup[[#This Row],[Alloc]]=\"CA\",tblREGASSLookup[[#This Row],[Alloc]]=\"WA\"),\"SITUS\",tblREGASSLookup[[#This Row],[Alloc]])","v":"OTHER"},"P"]
[{"$f":"CONCATENATE(tblREGASSLookup[[#This Row],[Primary Account]],tblREGASSLookup[[#This Row],[Primary Name]],tblREGASSLookup[[#This Row],[Secondary Acct]],tblREGASSLookup[[#This Row],[Secondary  Name]],tblREGASSLookup[[#This Row],[Alloc4FUNC]])","v":"1823990OTHR REG ASSET-N CST189568RegA - ID Def Exc NPC - Recl to CurrOTHER"},1823990,"OTHR REG ASSET-N CST",189568,"RegA - ID Def Exc NPC - Recl to Curr","OTHER",null,{"$f":"IF(OR(tblREGASSLookup[[#This Row],[Alloc]]=\"IDU\",tblREGASSLookup[[#This Row],[Alloc]]=\"OR\",tblREGASSLookup[[#This Row],[Alloc]]=\"UT\",tblREGASSLookup[[#This Row],[Alloc]]=\"WYU\",tblREGASSLookup[[#This Row],[Alloc]]=\"WYP\",tblREGASSLookup[[#This Row],[Alloc]]=\"CA\",tblREGASSLookup[[#This Row],[Alloc]]=\"WA\"),\"SITUS\",tblREGASSLookup[[#This Row],[Alloc]])","v":"OTHER"},"P"]
[{"$f":"CONCATENATE(tblREGASSLookup[[#This Row],[Primary Account]],tblREGASSLookup[[#This Row],[Primary Name]],tblREGASSLookup[[#This Row],[Secondary Acct]],tblREGASSLookup[[#This Row],[Secondary  Name]],tblREGASSLookup[[#This Row],[Alloc4FUNC]])","v":"1823990OTHR REG ASSET-N CST189638RegA - UT Def Exc NPC - Recl to CurrOTHER"},1823990,"OTHR REG ASSET-N CST",189638,"RegA - UT Def Exc NPC - Recl to Curr","OTHER",null,{"$f":"IF(OR(tblREGASSLookup[[#This Row],[Alloc]]=\"IDU\",tblREGASSLookup[[#This Row],[Alloc]]=\"OR\",tblREGASSLookup[[#This Row],[Alloc]]=\"UT\",tblREGASSLookup[[#This Row],[Alloc]]=\"WYU\",tblREGASSLookup[[#This Row],[Alloc]]=\"WYP\",tblREGASSLookup[[#This Row],[Alloc]]=\"CA\",tblREGASSLookup[[#This Row],[Alloc]]=\"WA\"),\"SITUS\",tblREGASSLookup[[#This Row],[Alloc]])","v":"OTHER"},"P"]
[{"$f":"CONCATENATE(tblREGASSLookup[[#This Row],[Primary Account]],tblREGASSLookup[[#This Row],[Primary Name]],tblREGASSLookup[[#This Row],[Secondary Acct]],tblREGASSLookup[[#This Row],[Secondary  Name]],tblREGASSLookup[[#This Row],[Alloc4FUNC]])","v":"1823990OTHR REG ASSET-N CST189639RegA - UT Def Exc NPC - Recl to LiabOTHER"},1823990,"OTHR REG ASSET-N CST",189639,"RegA - UT Def Exc NPC - Recl to Liab","OTHER",null,{"$f":"IF(OR(tblREGASSLookup[[#This Row],[Alloc]]=\"IDU\",tblREGASSLookup[[#This Row],[Alloc]]=\"OR\",tblREGASSLookup[[#This Row],[Alloc]]=\"UT\",tblREGASSLookup[[#This Row],[Alloc]]=\"WYU\",tblREGASSLookup[[#This Row],[Alloc]]=\"WYP\",tblREGASSLookup[[#This Row],[Alloc]]=\"CA\",tblREGASSLookup[[#This Row],[Alloc]]=\"WA\"),\"SITUS\",tblREGASSLookup[[#This Row],[Alloc]])","v":"OTHER"},"P"]
[{"$f":"CONCATENATE(tblREGASSLookup[[#This Row],[Primary Account]],tblREGASSLookup[[#This Row],[Primary Name]],tblREGASSLookup[[#This Row],[Secondary Acct]],tblREGASSLookup[[#This Row],[Secondary  Name]],tblREGASSLookup[[#This Row],[Alloc4FUNC]])","v":"1823990OTHR REG ASSET-N CST189649RegA - WA Def Exc NPC - Recl to LiabOTHER"},1823990,"OTHR REG ASSET-N CST",189649,"RegA - WA Def Exc NPC - Recl to Liab","OTHER",null,{"$f":"IF(OR(tblREGASSLookup[[#This Row],[Alloc]]=\"IDU\",tblREGASSLookup[[#This Row],[Alloc]]=\"OR\",tblREGASSLookup[[#This Row],[Alloc]]=\"UT\",tblREGASSLookup[[#This Row],[Alloc]]=\"WYU\",tblREGASSLookup[[#This Row],[Alloc]]=\"WYP\",tblREGASSLookup[[#This Row],[Alloc]]=\"CA\",tblREGASSLookup[[#This Row],[Alloc]]=\"WA\"),\"SITUS\",tblREGASSLookup[[#This Row],[Alloc]])","v":"OTHER"},"P"]
[{"$f":"CONCATENATE(tblREGASSLookup[[#This Row],[Primary Account]],tblREGASSLookup[[#This Row],[Primary Name]],tblREGASSLookup[[#This Row],[Secondary Acct]],tblREGASSLookup[[#This Row],[Secondary  Name]],tblREGASSLookup[[#This Row],[Alloc4FUNC]])","v":"1823990OTHR REG ASSET-N CST189688RegA - WY Def Exc NPC - Recl to CurrOTHER"},1823990,"OTHR REG ASSET-N CST",189688,"RegA - WY Def Exc NPC - Recl to Curr","OTHER",null,{"$f":"IF(OR(tblREGASSLookup[[#This Row],[Alloc]]=\"IDU\",tblREGASSLookup[[#This Row],[Alloc]]=\"OR\",tblREGASSLookup[[#This Row],[Alloc]]=\"UT\",tblREGASSLookup[[#This Row],[Alloc]]=\"WYU\",tblREGASSLookup[[#This Row],[Alloc]]=\"WYP\",tblREGASSLookup[[#This Row],[Alloc]]=\"CA\",tblREGASSLookup[[#This Row],[Alloc]]=\"WA\"),\"SITUS\",tblREGASSLookup[[#This Row],[Alloc]])","v":"OTHER"},"P"]
[{"$f":"CONCATENATE(tblREGASSLookup[[#This Row],[Primary Account]],tblREGASSLookup[[#This Row],[Primary Name]],tblREGASSLookup[[#This Row],[Secondary Acct]],tblREGASSLookup[[#This Row],[Secondary  Name]],tblREGASSLookup[[#This Row],[Alloc4FUNC]])","v":"1823990OTHR REG ASSET-N CST189689RegA - WY Def Exc NPC - Recl to LiabOTHER"},1823990,"OTHR REG ASSET-N CST",189689,"RegA - WY Def Exc NPC - Recl to Liab","OTHER",null,{"$f":"IF(OR(tblREGASSLookup[[#This Row],[Alloc]]=\"IDU\",tblREGASSLookup[[#This Row],[Alloc]]=\"OR\",tblREGASSLookup[[#This Row],[Alloc]]=\"UT\",tblREGASSLookup[[#This Row],[Alloc]]=\"WYU\",tblREGASSLookup[[#This Row],[Alloc]]=\"WYP\",tblREGASSLookup[[#This Row],[Alloc]]=\"CA\",tblREGASSLookup[[#This Row],[Alloc]]=\"WA\"),\"SITUS\",tblREGASSLookup[[#This Row],[Alloc]])","v":"OTHER"},"P"]
[{"$f":"CONCATENATE(tblREGASSLookup[[#This Row],[Primary Account]],tblREGASSLookup[[#This Row],[Primary Name]],tblREGASSLookup[[#This Row],[Secondary Acct]],tblREGASSLookup[[#This Row],[Secondary  Name]],tblREGASSLookup[[#This Row],[Alloc4FUNC]])","v":"1823990OTHR REG ASSET-N CST288712Reg Liab - OR Property Insurance ReserveSITUS"},1823990,"OTHR REG ASSET-N CST",288712,"Reg Liab - OR Property Insurance Reserve","SITUS",null,{"$f":"IF(OR(tblREGASSLookup[[#This Row],[Alloc]]=\"IDU\",tblREGASSLookup[[#This Row],[Alloc]]=\"OR\",tblREGASSLookup[[#This Row],[Alloc]]=\"UT\",tblREGASSLookup[[#This Row],[Alloc]]=\"WYU\",tblREGASSLookup[[#This Row],[Alloc]]=\"WYP\",tblREGASSLookup[[#This Row],[Alloc]]=\"CA\",tblREGASSLookup[[#This Row],[Alloc]]=\"WA\"),\"SITUS\",tblREGASSLookup[[#This Row],[Alloc]])","v":"SITUS"},"P"]
[{"$f":"CONCATENATE(tblREGASSLookup[[#This Row],[Primary Account]],tblREGASSLookup[[#This Row],[Primary Name]],tblREGASSLookup[[#This Row],[Secondary Acct]],tblREGASSLookup[[#This Row],[Secondary  Name]],tblREGASSLookup[[#This Row],[Alloc4FUNC]])","v":"1823993OTH REG ASSET-NON CO187060CHOLLA PLANT TRANSACTION COSTS-ORSITUS"},1823993,"OTH REG ASSET-NON CO",187060,"CHOLLA PLANT TRANSACTION COSTS-OR","SITUS",null,{"$f":"IF(OR(tblREGASSLookup[[#This Row],[Alloc]]=\"IDU\",tblREGASSLookup[[#This Row],[Alloc]]=\"OR\",tblREGASSLookup[[#This Row],[Alloc]]=\"UT\",tblREGASSLookup[[#This Row],[Alloc]]=\"WYU\",tblREGASSLookup[[#This Row],[Alloc]]=\"WYP\",tblREGASSLookup[[#This Row],[Alloc]]=\"CA\",tblREGASSLookup[[#This Row],[Alloc]]=\"WA\"),\"SITUS\",tblREGASSLookup[[#This Row],[Alloc]])","v":"SITUS"},"P"]
[{"$f":"CONCATENATE(tblREGASSLookup[[#This Row],[Primary Account]],tblREGASSLookup[[#This Row],[Primary Name]],tblREGASSLookup[[#This Row],[Secondary Acct]],tblREGASSLookup[[#This Row],[Secondary  Name]],tblREGASSLookup[[#This Row],[Alloc4FUNC]])","v":"1823994OTH REG ASSET-NON CO187061CHOLLA PLANT TRANSACTION COSTS-WASITUS"},1823994,"OTH REG ASSET-NON CO",187061,"CHOLLA PLANT TRANSACTION COSTS-WA","SITUS",null,{"$f":"IF(OR(tblREGASSLookup[[#This Row],[Alloc]]=\"IDU\",tblREGASSLookup[[#This Row],[Alloc]]=\"OR\",tblREGASSLookup[[#This Row],[Alloc]]=\"UT\",tblREGASSLookup[[#This Row],[Alloc]]=\"WYU\",tblREGASSLookup[[#This Row],[Alloc]]=\"WYP\",tblREGASSLookup[[#This Row],[Alloc]]=\"CA\",tblREGASSLookup[[#This Row],[Alloc]]=\"WA\"),\"SITUS\",tblREGASSLookup[[#This Row],[Alloc]])","v":"SITUS"},"P"]
[{"$f":"CONCATENATE(tblREGASSLookup[[#This Row],[Primary Account]],tblREGASSLookup[[#This Row],[Primary Name]],tblREGASSLookup[[#This Row],[Secondary Acct]],tblREGASSLookup[[#This Row],[Secondary  Name]],tblREGASSLookup[[#This Row],[Alloc4FUNC]])","v":"1823995OTH REG ASSET-NON CO187062CHOLLA PLANT TRANSACTION COSTS-IDSITUS"},1823995,"OTH REG ASSET-NON CO",187062,"CHOLLA PLANT TRANSACTION COSTS-ID","SITUS",null,{"$f":"IF(OR(tblREGASSLookup[[#This Row],[Alloc]]=\"IDU\",tblREGASSLookup[[#This Row],[Alloc]]=\"OR\",tblREGASSLookup[[#This Row],[Alloc]]=\"UT\",tblREGASSLookup[[#This Row],[Alloc]]=\"WYU\",tblREGASSLookup[[#This Row],[Alloc]]=\"WYP\",tblREGASSLookup[[#This Row],[Alloc]]=\"CA\",tblREGASSLookup[[#This Row],[Alloc]]=\"WA\"),\"SITUS\",tblREGASSLookup[[#This Row],[Alloc]])","v":"SITUS"},"P"]
[{"$f":"CONCATENATE(tblREGASSLookup[[#This Row],[Primary Account]],tblREGASSLookup[[#This Row],[Primary Name]],tblREGASSLookup[[#This Row],[Secondary Acct]],tblREGASSLookup[[#This Row],[Secondary  Name]],tblREGASSLookup[[#This Row],[Alloc4FUNC]])","v":"1823999REGULATORY ASST-OTH186001DSM Regulatory Assets-AccrualsOTHER"},1823999,"REGULATORY ASST-OTH",186001,"DSM Regulatory Assets-Accruals","OTHER",null,{"$f":"IF(OR(tblREGASSLookup[[#This Row],[Alloc]]=\"IDU\",tblREGASSLookup[[#This Row],[Alloc]]=\"OR\",tblREGASSLookup[[#This Row],[Alloc]]=\"UT\",tblREGASSLookup[[#This Row],[Alloc]]=\"WYU\",tblREGASSLookup[[#This Row],[Alloc]]=\"WYP\",tblREGASSLookup[[#This Row],[Alloc]]=\"CA\",tblREGASSLookup[[#This Row],[Alloc]]=\"WA\"),\"SITUS\",tblREGASSLookup[[#This Row],[Alloc]])","v":"OTHER"},"P"]
[{"$f":"CONCATENATE(tblREGASSLookup[[#This Row],[Primary Account]],tblREGASSLookup[[#This Row],[Primary Name]],tblREGASSLookup[[#This Row],[Secondary Acct]],tblREGASSLookup[[#This Row],[Secondary  Name]],tblREGASSLookup[[#This Row],[Alloc4FUNC]])","v":"1823999REGULATORY ASST-OTH186011DSM Reg Asset - Accruals - CAOTHER"},1823999,"REGULATORY ASST-OTH",186011,"DSM Reg Asset - Accruals - CA","OTHER",null,{"$f":"IF(OR(tblREGASSLookup[[#This Row],[Alloc]]=\"IDU\",tblREGASSLookup[[#This Row],[Alloc]]=\"OR\",tblREGASSLookup[[#This Row],[Alloc]]=\"UT\",tblREGASSLookup[[#This Row],[Alloc]]=\"WYU\",tblREGASSLookup[[#This Row],[Alloc]]=\"WYP\",tblREGASSLookup[[#This Row],[Alloc]]=\"CA\",tblREGASSLookup[[#This Row],[Alloc]]=\"WA\"),\"SITUS\",tblREGASSLookup[[#This Row],[Alloc]])","v":"OTHER"},"P"]
[{"$f":"CONCATENATE(tblREGASSLookup[[#This Row],[Primary Account]],tblREGASSLookup[[#This Row],[Primary Name]],tblREGASSLookup[[#This Row],[Secondary Acct]],tblREGASSLookup[[#This Row],[Secondary  Name]],tblREGASSLookup[[#This Row],[Alloc4FUNC]])","v":"1823999REGULATORY ASST-OTH186015DSM Reg Asset - Balancing Acct - CAOTHER"},1823999,"REGULATORY ASST-OTH",186015,"DSM Reg Asset - Balancing Acct - CA","OTHER",null,{"$f":"IF(OR(tblREGASSLookup[[#This Row],[Alloc]]=\"IDU\",tblREGASSLookup[[#This Row],[Alloc]]=\"OR\",tblREGASSLookup[[#This Row],[Alloc]]=\"UT\",tblREGASSLookup[[#This Row],[Alloc]]=\"WYU\",tblREGASSLookup[[#This Row],[Alloc]]=\"WYP\",tblREGASSLookup[[#This Row],[Alloc]]=\"CA\",tblREGASSLookup[[#This Row],[Alloc]]=\"WA\"),\"SITUS\",tblREGASSLookup[[#This Row],[Alloc]])","v":"OTHER"},"P"]
[{"$f":"CONCATENATE(tblREGASSLookup[[#This Row],[Primary Account]],tblREGASSLookup[[#This Row],[Primary Name]],tblREGASSLookup[[#This Row],[Secondary Acct]],tblREGASSLookup[[#This Row],[Secondary  Name]],tblREGASSLookup[[#This Row],[Alloc4FUNC]])","v":"1823999REGULATORY ASST-OTH186021DSM Reg Asset - Accruals - IDOTHER"},1823999,"REGULATORY ASST-OTH",186021,"DSM Reg Asset - Accruals - ID","OTHER",null,{"$f":"IF(OR(tblREGASSLookup[[#This Row],[Alloc]]=\"IDU\",tblREGASSLookup[[#This Row],[Alloc]]=\"OR\",tblREGASSLookup[[#This Row],[Alloc]]=\"UT\",tblREGASSLookup[[#This Row],[Alloc]]=\"WYU\",tblREGASSLookup[[#This Row],[Alloc]]=\"WYP\",tblREGASSLookup[[#This Row],[Alloc]]=\"CA\",tblREGASSLookup[[#This Row],[Alloc]]=\"WA\"),\"SITUS\",tblREGASSLookup[[#This Row],[Alloc]])","v":"OTHER"},"P"]
[{"$f":"CONCATENATE(tblREGASSLookup[[#This Row],[Primary Account]],tblREGASSLookup[[#This Row],[Primary Name]],tblREGASSLookup[[#This Row],[Secondary Acct]],tblREGASSLookup[[#This Row],[Secondary  Name]],tblREGASSLookup[[#This Row],[Alloc4FUNC]])","v":"1823999REGULATORY ASST-OTH186025DSM Reg Asset - Balancing Acct - IDOTHER"},1823999,"REGULATORY ASST-OTH",186025,"DSM Reg Asset - Balancing Acct - ID","OTHER",null,{"$f":"IF(OR(tblREGASSLookup[[#This Row],[Alloc]]=\"IDU\",tblREGASSLookup[[#This Row],[Alloc]]=\"OR\",tblREGASSLookup[[#This Row],[Alloc]]=\"UT\",tblREGASSLookup[[#This Row],[Alloc]]=\"WYU\",tblREGASSLookup[[#This Row],[Alloc]]=\"WYP\",tblREGASSLookup[[#This Row],[Alloc]]=\"CA\",tblREGASSLookup[[#This Row],[Alloc]]=\"WA\"),\"SITUS\",tblREGASSLookup[[#This Row],[Alloc]])","v":"OTHER"},"P"]
[{"$f":"CONCATENATE(tblREGASSLookup[[#This Row],[Primary Account]],tblREGASSLookup[[#This Row],[Primary Name]],tblREGASSLookup[[#This Row],[Secondary Acct]],tblREGASSLookup[[#This Row],[Secondary  Name]],tblREGASSLookup[[#This Row],[Alloc4FUNC]])","v":"1823999REGULATORY ASST-OTH186035DSM Reg Asset - Balancing Acct - OROTHER"},1823999,"REGULATORY ASST-OTH",186035,"DSM Reg Asset - Balancing Acct - OR","OTHER",null,{"$f":"IF(OR(tblREGASSLookup[[#This Row],[Alloc]]=\"IDU\",tblREGASSLookup[[#This Row],[Alloc]]=\"OR\",tblREGASSLookup[[#This Row],[Alloc]]=\"UT\",tblREGASSLookup[[#This Row],[Alloc]]=\"WYU\",tblREGASSLookup[[#This Row],[Alloc]]=\"WYP\",tblREGASSLookup[[#This Row],[Alloc]]=\"CA\",tblREGASSLookup[[#This Row],[Alloc]]=\"WA\"),\"SITUS\",tblREGASSLookup[[#This Row],[Alloc]])","v":"OTHER"},"P"]
[{"$f":"CONCATENATE(tblREGASSLookup[[#This Row],[Primary Account]],tblREGASSLookup[[#This Row],[Primary Name]],tblREGASSLookup[[#This Row],[Secondary Acct]],tblREGASSLookup[[#This Row],[Secondary  Name]],tblREGASSLookup[[#This Row],[Alloc4FUNC]])","v":"1823999REGULATORY ASST-OTH186041DSM Reg Asset - Accruals - UTOTHER"},1823999,"REGULATORY ASST-OTH",186041,"DSM Reg Asset - Accruals - UT","OTHER",null,{"$f":"IF(OR(tblREGASSLookup[[#This Row],[Alloc]]=\"IDU\",tblREGASSLookup[[#This Row],[Alloc]]=\"OR\",tblREGASSLookup[[#This Row],[Alloc]]=\"UT\",tblREGASSLookup[[#This Row],[Alloc]]=\"WYU\",tblREGASSLookup[[#This Row],[Alloc]]=\"WYP\",tblREGASSLookup[[#This Row],[Alloc]]=\"CA\",tblREGASSLookup[[#This Row],[Alloc]]=\"WA\"),\"SITUS\",tblREGASSLookup[[#This Row],[Alloc]])","v":"OTHER"},"P"]
[{"$f":"CONCATENATE(tblREGASSLookup[[#This Row],[Primary Account]],tblREGASSLookup[[#This Row],[Primary Name]],tblREGASSLookup[[#This Row],[Secondary Acct]],tblREGASSLookup[[#This Row],[Secondary  Name]],tblREGASSLookup[[#This Row],[Alloc4FUNC]])","v":"1823999REGULATORY ASST-OTH186045DSM Reg Asset - Balancing Acct - UTOTHER"},1823999,"REGULATORY ASST-OTH",186045,"DSM Reg Asset - Balancing Acct - UT","OTHER",null,{"$f":"IF(OR(tblREGASSLookup[[#This Row],[Alloc]]=\"IDU\",tblREGASSLookup[[#This Row],[Alloc]]=\"OR\",tblREGASSLookup[[#This Row],[Alloc]]=\"UT\",tblREGASSLookup[[#This Row],[Alloc]]=\"WYU\",tblREGASSLookup[[#This Row],[Alloc]]=\"WYP\",tblREGASSLookup[[#This Row],[Alloc]]=\"CA\",tblREGASSLookup[[#This Row],[Alloc]]=\"WA\"),\"SITUS\",tblREGASSLookup[[#This Row],[Alloc]])","v":"OTHER"},"P"]
[{"$f":"CONCATENATE(tblREGASSLookup[[#This Row],[Primary Account]],tblREGASSLookup[[#This Row],[Primary Name]],tblREGASSLookup[[#This Row],[Secondary Acct]],tblREGASSLookup[[#This Row],[Secondary  Name]],tblREGASSLookup[[#This Row],[Alloc4FUNC]])","v":"1823999REGULATORY ASST-OTH186051DSM Reg Asset - Accruals - WAOTHER"},1823999,"REGULATORY ASST-OTH",186051,"DSM Reg Asset - Accruals - WA","OTHER",null,{"$f":"IF(OR(tblREGASSLookup[[#This Row],[Alloc]]=\"IDU\",tblREGASSLookup[[#This Row],[Alloc]]=\"OR\",tblREGASSLookup[[#This Row],[Alloc]]=\"UT\",tblREGASSLookup[[#This Row],[Alloc]]=\"WYU\",tblREGASSLookup[[#This Row],[Alloc]]=\"WYP\",tblREGASSLookup[[#This Row],[Alloc]]=\"CA\",tblREGASSLookup[[#This Row],[Alloc]]=\"WA\"),\"SITUS\",tblREGASSLookup[[#This Row],[Alloc]])","v":"OTHER"},"P"]
[{"$f":"CONCATENATE(tblREGASSLookup[[#This Row],[Primary Account]],tblREGASSLookup[[#This Row],[Primary Name]],tblREGASSLookup[[#This Row],[Secondary Acct]],tblREGASSLookup[[#This Row],[Secondary  Name]],tblREGASSLookup[[#This Row],[Alloc4FUNC]])","v":"1823999REGULATORY ASST-OTH186055DSM Reg Asset - Balancing Acct - WAOTHER"},1823999,"REGULATORY ASST-OTH",186055,"DSM Reg Asset - Balancing Acct - WA","OTHER",null,{"$f":"IF(OR(tblREGASSLookup[[#This Row],[Alloc]]=\"IDU\",tblREGASSLookup[[#This Row],[Alloc]]=\"OR\",tblREGASSLookup[[#This Row],[Alloc]]=\"UT\",tblREGASSLookup[[#This Row],[Alloc]]=\"WYU\",tblREGASSLookup[[#This Row],[Alloc]]=\"WYP\",tblREGASSLookup[[#This Row],[Alloc]]=\"CA\",tblREGASSLookup[[#This Row],[Alloc]]=\"WA\"),\"SITUS\",tblREGASSLookup[[#This Row],[Alloc]])","v":"OTHER"},"P"]
[{"$f":"CONCATENATE(tblREGASSLookup[[#This Row],[Primary Account]],tblREGASSLookup[[#This Row],[Primary Name]],tblREGASSLookup[[#This Row],[Secondary Acct]],tblREGASSLookup[[#This Row],[Secondary  Name]],tblREGASSLookup[[#This Row],[Alloc4FUNC]])","v":"1823999REGULATORY ASST-OTH186061DSM Reg Asset - Accruals - WYOTHER"},1823999,"REGULATORY ASST-OTH",186061,"DSM Reg Asset - Accruals - WY","OTHER",null,{"$f":"IF(OR(tblREGASSLookup[[#This Row],[Alloc]]=\"IDU\",tblREGASSLookup[[#This Row],[Alloc]]=\"OR\",tblREGASSLookup[[#This Row],[Alloc]]=\"UT\",tblREGASSLookup[[#This Row],[Alloc]]=\"WYU\",tblREGASSLookup[[#This Row],[Alloc]]=\"WYP\",tblREGASSLookup[[#This Row],[Alloc]]=\"CA\",tblREGASSLookup[[#This Row],[Alloc]]=\"WA\"),\"SITUS\",tblREGASSLookup[[#This Row],[Alloc]])","v":"OTHER"},"P"]
[{"$f":"CONCATENATE(tblREGASSLookup[[#This Row],[Primary Account]],tblREGASSLookup[[#This Row],[Primary Name]],tblREGASSLookup[[#This Row],[Secondary Acct]],tblREGASSLookup[[#This Row],[Secondary  Name]],tblREGASSLookup[[#This Row],[Alloc4FUNC]])","v":"1823999REGULATORY ASST-OTH186065DSM Reg Asset - Balancing Acct - WYOTHER"},1823999,"REGULATORY ASST-OTH",186065,"DSM Reg Asset - Balancing Acct - WY","OTHER",null,{"$f":"IF(OR(tblREGASSLookup[[#This Row],[Alloc]]=\"IDU\",tblREGASSLookup[[#This Row],[Alloc]]=\"OR\",tblREGASSLookup[[#This Row],[Alloc]]=\"UT\",tblREGASSLookup[[#This Row],[Alloc]]=\"WYU\",tblREGASSLookup[[#This Row],[Alloc]]=\"WYP\",tblREGASSLookup[[#This Row],[Alloc]]=\"CA\",tblREGASSLookup[[#This Row],[Alloc]]=\"WA\"),\"SITUS\",tblREGASSLookup[[#This Row],[Alloc]])","v":"OTHER"},"P"]
[{"$f":"CONCATENATE(tblREGASSLookup[[#This Row],[Primary Account]],tblREGASSLookup[[#This Row],[Primary Name]],tblREGASSLookup[[#This Row],[Secondary Acct]],tblREGASSLookup[[#This Row],[Secondary  Name]],tblREGASSLookup[[#This Row],[Alloc4FUNC]])","v":"1823870DEFERRED PENSION187649Reg Asset-FAS 158 Post-Ret - ReclassSO"},1823870,"DEFERRED PENSION",187649,"Reg Asset-FAS 158 Post-Ret - Reclass","SO",null,{"$f":"IF(OR(tblREGASSLookup[[#This Row],[Alloc]]=\"IDU\",tblREGASSLookup[[#This Row],[Alloc]]=\"OR\",tblREGASSLookup[[#This Row],[Alloc]]=\"UT\",tblREGASSLookup[[#This Row],[Alloc]]=\"WYU\",tblREGASSLookup[[#This Row],[Alloc]]=\"WYP\",tblREGASSLookup[[#This Row],[Alloc]]=\"CA\",tblREGASSLookup[[#This Row],[Alloc]]=\"WA\"),\"SITUS\",tblREGASSLookup[[#This Row],[Alloc]])","v":"SO"},"LABOR"]
[{"$f":"CONCATENATE(tblREGASSLookup[[#This Row],[Primary Account]],tblREGASSLookup[[#This Row],[Primary Name]],tblREGASSLookup[[#This Row],[Secondary Acct]],tblREGASSLookup[[#This Row],[Secondary  Name]],tblREGASSLookup[[#This Row],[Alloc4FUNC]])","v":"1823910ENVIR CST UNDR AMORT104143Hunter Fuel Oil Spills - 2017SO"},1823910,"ENVIR CST UNDR AMORT",104143,"Hunter Fuel Oil Spills - 2017","SO",null,{"$f":"IF(OR(tblREGASSLookup[[#This Row],[Alloc]]=\"IDU\",tblREGASSLookup[[#This Row],[Alloc]]=\"OR\",tblREGASSLookup[[#This Row],[Alloc]]=\"UT\",tblREGASSLookup[[#This Row],[Alloc]]=\"WYU\",tblREGASSLookup[[#This Row],[Alloc]]=\"WYP\",tblREGASSLookup[[#This Row],[Alloc]]=\"CA\",tblREGASSLookup[[#This Row],[Alloc]]=\"WA\"),\"SITUS\",tblREGASSLookup[[#This Row],[Alloc]])","v":"SO"},"ESD"]
[{"$f":"CONCATENATE(tblREGASSLookup[[#This Row],[Primary Account]],tblREGASSLookup[[#This Row],[Primary Name]],tblREGASSLookup[[#This Row],[Secondary Acct]],tblREGASSLookup[[#This Row],[Secondary  Name]],tblREGASSLookup[[#This Row],[Alloc4FUNC]])","v":"1823910ENVIR CST UNDR AMORT104144Naughton Oil SpillSO"},1823910,"ENVIR CST UNDR AMORT",104144,"Naughton Oil Spill","SO",null,{"$f":"IF(OR(tblREGASSLookup[[#This Row],[Alloc]]=\"IDU\",tblREGASSLookup[[#This Row],[Alloc]]=\"OR\",tblREGASSLookup[[#This Row],[Alloc]]=\"UT\",tblREGASSLookup[[#This Row],[Alloc]]=\"WYU\",tblREGASSLookup[[#This Row],[Alloc]]=\"WYP\",tblREGASSLookup[[#This Row],[Alloc]]=\"CA\",tblREGASSLookup[[#This Row],[Alloc]]=\"WA\"),\"SITUS\",tblREGASSLookup[[#This Row],[Alloc]])","v":"SO"},"ESD"]
[{"$f":"CONCATENATE(tblREGASSLookup[[#This Row],[Primary Account]],tblREGASSLookup[[#This Row],[Primary Name]],tblREGASSLookup[[#This Row],[Secondary Acct]],tblREGASSLookup[[#This Row],[Secondary  Name]],tblREGASSLookup[[#This Row],[Alloc4FUNC]])","v":"1823910ENVIR CST UNDR AMORT104175Ririe SubstationSO"},1823910,"ENVIR CST UNDR AMORT",104175,"Ririe Substation","SO",null,{"$f":"IF(OR(tblREGASSLookup[[#This Row],[Alloc]]=\"IDU\",tblREGASSLookup[[#This Row],[Alloc]]=\"OR\",tblREGASSLookup[[#This Row],[Alloc]]=\"UT\",tblREGASSLookup[[#This Row],[Alloc]]=\"WYU\",tblREGASSLookup[[#This Row],[Alloc]]=\"WYP\",tblREGASSLookup[[#This Row],[Alloc]]=\"CA\",tblREGASSLookup[[#This Row],[Alloc]]=\"WA\"),\"SITUS\",tblREGASSLookup[[#This Row],[Alloc]])","v":"SO"},"ESD"]
[{"$f":"CONCATENATE(tblREGASSLookup[[#This Row],[Primary Account]],tblREGASSLookup[[#This Row],[Primary Name]],tblREGASSLookup[[#This Row],[Secondary Acct]],tblREGASSLookup[[#This Row],[Secondary  Name]],tblREGASSLookup[[#This Row],[Alloc4FUNC]])","v":"1823910ENVIR CST UNDR AMORT104177Bridger Plant - FGD Pond 1SO"},1823910,"ENVIR CST UNDR AMORT",104177,"Bridger Plant - FGD Pond 1","SO",null,{"$f":"IF(OR(tblREGASSLookup[[#This Row],[Alloc]]=\"IDU\",tblREGASSLookup[[#This Row],[Alloc]]=\"OR\",tblREGASSLookup[[#This Row],[Alloc]]=\"UT\",tblREGASSLookup[[#This Row],[Alloc]]=\"WYU\",tblREGASSLookup[[#This Row],[Alloc]]=\"WYP\",tblREGASSLookup[[#This Row],[Alloc]]=\"CA\",tblREGASSLookup[[#This Row],[Alloc]]=\"WA\"),\"SITUS\",tblREGASSLookup[[#This Row],[Alloc]])","v":"SO"},"ESD"]
[{"$f":"CONCATENATE(tblREGASSLookup[[#This Row],[Primary Account]],tblREGASSLookup[[#This Row],[Primary Name]],tblREGASSLookup[[#This Row],[Secondary Acct]],tblREGASSLookup[[#This Row],[Secondary  Name]],tblREGASSLookup[[#This Row],[Alloc4FUNC]])","v":"1823910ENVIR CST UNDR AMORT104199Naughton Plant - FGD Pond 1SO"},1823910,"ENVIR CST UNDR AMORT",104199,"Naughton Plant - FGD Pond 1","SO",null,{"$f":"IF(OR(tblREGASSLookup[[#This Row],[Alloc]]=\"IDU\",tblREGASSLookup[[#This Row],[Alloc]]=\"OR\",tblREGASSLookup[[#This Row],[Alloc]]=\"UT\",tblREGASSLookup[[#This Row],[Alloc]]=\"WYU\",tblREGASSLookup[[#This Row],[Alloc]]=\"WYP\",tblREGASSLookup[[#This Row],[Alloc]]=\"CA\",tblREGASSLookup[[#This Row],[Alloc]]=\"WA\"),\"SITUS\",tblREGASSLookup[[#This Row],[Alloc]])","v":"SO"},"ESD"]
[{"$f":"CONCATENATE(tblREGASSLookup[[#This Row],[Primary Account]],tblREGASSLookup[[#This Row],[Primary Name]],tblREGASSLookup[[#This Row],[Secondary Acct]],tblREGASSLookup[[#This Row],[Secondary  Name]],tblREGASSLookup[[#This Row],[Alloc4FUNC]])","v":"1823990OTHR REG ASSET-N CST186159Reg Asset - DSM - WA - Balance ReclassOTHER"},1823990,"OTHR REG ASSET-N CST",186159,"Reg Asset - DSM - WA - Balance Reclass","OTHER",null,{"$f":"IF(OR(tblREGASSLookup[[#This Row],[Alloc]]=\"IDU\",tblREGASSLookup[[#This Row],[Alloc]]=\"OR\",tblREGASSLookup[[#This Row],[Alloc]]=\"UT\",tblREGASSLookup[[#This Row],[Alloc]]=\"WYU\",tblREGASSLookup[[#This Row],[Alloc]]=\"WYP\",tblREGASSLookup[[#This Row],[Alloc]]=\"CA\",tblREGASSLookup[[#This Row],[Alloc]]=\"WA\"),\"SITUS\",tblREGASSLookup[[#This Row],[Alloc]])","v":"OTHER"},"P"]
[{"$f":"CONCATENATE(tblREGASSLookup[[#This Row],[Primary Account]],tblREGASSLookup[[#This Row],[Primary Name]],tblREGASSLookup[[#This Row],[Secondary Acct]],tblREGASSLookup[[#This Row],[Secondary  Name]],tblREGASSLookup[[#This Row],[Alloc4FUNC]])","v":"1823990OTHR REG ASSET-N CST187378Reg Asset-OR Solar Feed-In Tariff 2018OTHER"},1823990,"OTHR REG ASSET-N CST",187378,"Reg Asset-OR Solar Feed-In Tariff 2018","OTHER",null,{"$f":"IF(OR(tblREGASSLookup[[#This Row],[Alloc]]=\"IDU\",tblREGASSLookup[[#This Row],[Alloc]]=\"OR\",tblREGASSLookup[[#This Row],[Alloc]]=\"UT\",tblREGASSLookup[[#This Row],[Alloc]]=\"WYU\",tblREGASSLookup[[#This Row],[Alloc]]=\"WYP\",tblREGASSLookup[[#This Row],[Alloc]]=\"CA\",tblREGASSLookup[[#This Row],[Alloc]]=\"WA\"),\"SITUS\",tblREGASSLookup[[#This Row],[Alloc]])","v":"OTHER"},"P"]
[{"$f":"CONCATENATE(tblREGASSLookup[[#This Row],[Primary Account]],tblREGASSLookup[[#This Row],[Primary Name]],tblREGASSLookup[[#This Row],[Secondary Acct]],tblREGASSLookup[[#This Row],[Secondary  Name]],tblREGASSLookup[[#This Row],[Alloc4FUNC]])","v":"1823990OTHR REG ASSET-N CST187471Reg A-WA Decoupling Mech Jul17-Jun18OTHER"},1823990,"OTHR REG ASSET-N CST",187471,"Reg A-WA Decoupling Mech Jul17-Jun18","OTHER",null,{"$f":"IF(OR(tblREGASSLookup[[#This Row],[Alloc]]=\"IDU\",tblREGASSLookup[[#This Row],[Alloc]]=\"OR\",tblREGASSLookup[[#This Row],[Alloc]]=\"UT\",tblREGASSLookup[[#This Row],[Alloc]]=\"WYU\",tblREGASSLookup[[#This Row],[Alloc]]=\"WYP\",tblREGASSLookup[[#This Row],[Alloc]]=\"CA\",tblREGASSLookup[[#This Row],[Alloc]]=\"WA\"),\"SITUS\",tblREGASSLookup[[#This Row],[Alloc]])","v":"OTHER"},"P"]
[{"$f":"CONCATENATE(tblREGASSLookup[[#This Row],[Primary Account]],tblREGASSLookup[[#This Row],[Primary Name]],tblREGASSLookup[[#This Row],[Secondary Acct]],tblREGASSLookup[[#This Row],[Secondary  Name]],tblREGASSLookup[[#This Row],[Alloc4FUNC]])","v":"1823990OTHR REG ASSET-N CST187481Contra Reg A-WA Decoupling Jul17-Jun18OTHER"},1823990,"OTHR REG ASSET-N CST",187481,"Contra Reg A-WA Decoupling Jul17-Jun18","OTHER",null,{"$f":"IF(OR(tblREGASSLookup[[#This Row],[Alloc]]=\"IDU\",tblREGASSLookup[[#This Row],[Alloc]]=\"OR\",tblREGASSLookup[[#This Row],[Alloc]]=\"UT\",tblREGASSLookup[[#This Row],[Alloc]]=\"WYU\",tblREGASSLookup[[#This Row],[Alloc]]=\"WYP\",tblREGASSLookup[[#This Row],[Alloc]]=\"CA\",tblREGASSLookup[[#This Row],[Alloc]]=\"WA\"),\"SITUS\",tblREGASSLookup[[#This Row],[Alloc]])","v":"OTHER"},"P"]
[{"$f":"CONCATENATE(tblREGASSLookup[[#This Row],[Primary Account]],tblREGASSLookup[[#This Row],[Primary Name]],tblREGASSLookup[[#This Row],[Secondary Acct]],tblREGASSLookup[[#This Row],[Secondary  Name]],tblREGASSLookup[[#This Row],[Alloc4FUNC]])","v":"1823990OTHR REG ASSET-N CST187858Reg Asset - WY ECAM CY2018OTHER"},1823990,"OTHR REG ASSET-N CST",187858,"Reg Asset - WY ECAM CY2018","OTHER",null,{"$f":"IF(OR(tblREGASSLookup[[#This Row],[Alloc]]=\"IDU\",tblREGASSLookup[[#This Row],[Alloc]]=\"OR\",tblREGASSLookup[[#This Row],[Alloc]]=\"UT\",tblREGASSLookup[[#This Row],[Alloc]]=\"WYU\",tblREGASSLookup[[#This Row],[Alloc]]=\"WYP\",tblREGASSLookup[[#This Row],[Alloc]]=\"CA\",tblREGASSLookup[[#This Row],[Alloc]]=\"WA\"),\"SITUS\",tblREGASSLookup[[#This Row],[Alloc]])","v":"OTHER"},"P"]
[{"$f":"CONCATENATE(tblREGASSLookup[[#This Row],[Primary Account]],tblREGASSLookup[[#This Row],[Primary Name]],tblREGASSLookup[[#This Row],[Secondary Acct]],tblREGASSLookup[[#This Row],[Secondary  Name]],tblREGASSLookup[[#This Row],[Alloc4FUNC]])","v":"1823990OTHR REG ASSET-N CST187877Contra Reg Asset - WY ECAM CY2018OTHER"},1823990,"OTHR REG ASSET-N CST",187877,"Contra Reg Asset - WY ECAM CY2018","OTHER",null,{"$f":"IF(OR(tblREGASSLookup[[#This Row],[Alloc]]=\"IDU\",tblREGASSLookup[[#This Row],[Alloc]]=\"OR\",tblREGASSLookup[[#This Row],[Alloc]]=\"UT\",tblREGASSLookup[[#This Row],[Alloc]]=\"WYU\",tblREGASSLookup[[#This Row],[Alloc]]=\"WYP\",tblREGASSLookup[[#This Row],[Alloc]]=\"CA\",tblREGASSLookup[[#This Row],[Alloc]]=\"WA\"),\"SITUS\",tblREGASSLookup[[#This Row],[Alloc]])","v":"OTHER"},"P"]
[{"$f":"CONCATENATE(tblREGASSLookup[[#This Row],[Primary Account]],tblREGASSLookup[[#This Row],[Primary Name]],tblREGASSLookup[[#This Row],[Secondary Acct]],tblREGASSLookup[[#This Row],[Secondary  Name]],tblREGASSLookup[[#This Row],[Alloc4FUNC]])","v":"1823990OTHR REG ASSET-N CST187894RegA - OR RECs in Rates - Recl to CurrOTHER"},1823990,"OTHR REG ASSET-N CST",187894,"RegA - OR RECs in Rates - Recl to Curr","OTHER",null,{"$f":"IF(OR(tblREGASSLookup[[#This Row],[Alloc]]=\"IDU\",tblREGASSLookup[[#This Row],[Alloc]]=\"OR\",tblREGASSLookup[[#This Row],[Alloc]]=\"UT\",tblREGASSLookup[[#This Row],[Alloc]]=\"WYU\",tblREGASSLookup[[#This Row],[Alloc]]=\"WYP\",tblREGASSLookup[[#This Row],[Alloc]]=\"CA\",tblREGASSLookup[[#This Row],[Alloc]]=\"WA\"),\"SITUS\",tblREGASSLookup[[#This Row],[Alloc]])","v":"OTHER"},"P"]
[{"$f":"CONCATENATE(tblREGASSLookup[[#This Row],[Primary Account]],tblREGASSLookup[[#This Row],[Primary Name]],tblREGASSLookup[[#This Row],[Secondary Acct]],tblREGASSLookup[[#This Row],[Secondary  Name]],tblREGASSLookup[[#This Row],[Alloc4FUNC]])","v":"1823990OTHR REG ASSET-N CST187955Defd UT Ind Eval FeeSITUS"},1823990,"OTHR REG ASSET-N CST",187955,"Defd UT Ind Eval Fee","UT",null,{"$f":"IF(OR(tblREGASSLookup[[#This Row],[Alloc]]=\"IDU\",tblREGASSLookup[[#This Row],[Alloc]]=\"OR\",tblREGASSLookup[[#This Row],[Alloc]]=\"UT\",tblREGASSLookup[[#This Row],[Alloc]]=\"WYU\",tblREGASSLookup[[#This Row],[Alloc]]=\"WYP\",tblREGASSLookup[[#This Row],[Alloc]]=\"CA\",tblREGASSLookup[[#This Row],[Alloc]]=\"WA\"),\"SITUS\",tblREGASSLookup[[#This Row],[Alloc]])","v":"SITUS"},"COMMON"]
[{"$f":"CONCATENATE(tblREGASSLookup[[#This Row],[Primary Account]],tblREGASSLookup[[#This Row],[Primary Name]],tblREGASSLookup[[#This Row],[Secondary Acct]],tblREGASSLookup[[#This Row],[Secondary  Name]],tblREGASSLookup[[#This Row],[Alloc4FUNC]])","v":"1823990OTHR REG ASSET-N CST187957DEFERRED OR INDEPENDENT EVALUATOR FEESOTHER"},1823990,"OTHR REG ASSET-N CST",187957,"DEFERRED OR INDEPENDENT EVALUATOR FEES","OTHER",null,{"$f":"IF(OR(tblREGASSLookup[[#This Row],[Alloc]]=\"IDU\",tblREGASSLookup[[#This Row],[Alloc]]=\"OR\",tblREGASSLookup[[#This Row],[Alloc]]=\"UT\",tblREGASSLookup[[#This Row],[Alloc]]=\"WYU\",tblREGASSLookup[[#This Row],[Alloc]]=\"WYP\",tblREGASSLookup[[#This Row],[Alloc]]=\"CA\",tblREGASSLookup[[#This Row],[Alloc]]=\"WA\"),\"SITUS\",tblREGASSLookup[[#This Row],[Alloc]])","v":"OTHER"},"COMMON"]
[{"$f":"CONCATENATE(tblREGASSLookup[[#This Row],[Primary Account]],tblREGASSLookup[[#This Row],[Primary Name]],tblREGASSLookup[[#This Row],[Secondary Acct]],tblREGASSLookup[[#This Row],[Secondary  Name]],tblREGASSLookup[[#This Row],[Alloc4FUNC]])","v":"1823990OTHR REG ASSET-N CST187964RegA - Intervenor Fees - Recl to LiabOTHER"},1823990,"OTHR REG ASSET-N CST",187964,"RegA - Intervenor Fees - Recl to Liab","OTHER",null,{"$f":"IF(OR(tblREGASSLookup[[#This Row],[Alloc]]=\"IDU\",tblREGASSLookup[[#This Row],[Alloc]]=\"OR\",tblREGASSLookup[[#This Row],[Alloc]]=\"UT\",tblREGASSLookup[[#This Row],[Alloc]]=\"WYU\",tblREGASSLookup[[#This Row],[Alloc]]=\"WYP\",tblREGASSLookup[[#This Row],[Alloc]]=\"CA\",tblREGASSLookup[[#This Row],[Alloc]]=\"WA\"),\"SITUS\",tblREGASSLookup[[#This Row],[Alloc]])","v":"OTHER"},"COMMON"]
[{"$f":"CONCATENATE(tblREGASSLookup[[#This Row],[Primary Account]],tblREGASSLookup[[#This Row],[Primary Name]],tblREGASSLookup[[#This Row],[Secondary Acct]],tblREGASSLookup[[#This Row],[Secondary  Name]],tblREGASSLookup[[#This Row],[Alloc4FUNC]])","v":"1823990OTHR REG ASSET-N CST189608Reg Asset - UT EBA CY2018OTHER"},1823990,"OTHR REG ASSET-N CST",189608,"Reg Asset - UT EBA CY2018","OTHER",null,{"$f":"IF(OR(tblREGASSLookup[[#This Row],[Alloc]]=\"IDU\",tblREGASSLookup[[#This Row],[Alloc]]=\"OR\",tblREGASSLookup[[#This Row],[Alloc]]=\"UT\",tblREGASSLookup[[#This Row],[Alloc]]=\"WYU\",tblREGASSLookup[[#This Row],[Alloc]]=\"WYP\",tblREGASSLookup[[#This Row],[Alloc]]=\"CA\",tblREGASSLookup[[#This Row],[Alloc]]=\"WA\"),\"SITUS\",tblREGASSLookup[[#This Row],[Alloc]])","v":"OTHER"},"P"]
[{"$f":"CONCATENATE(tblREGASSLookup[[#This Row],[Primary Account]],tblREGASSLookup[[#This Row],[Primary Name]],tblREGASSLookup[[#This Row],[Secondary Acct]],tblREGASSLookup[[#This Row],[Secondary  Name]],tblREGASSLookup[[#This Row],[Alloc4FUNC]])","v":"1823990OTHR REG ASSET-N CST189618Contra Reg Asset - UT EBA CY2018OTHER"},1823990,"OTHR REG ASSET-N CST",189618,"Contra Reg Asset - UT EBA CY2018","OTHER",null,{"$f":"IF(OR(tblREGASSLookup[[#This Row],[Alloc]]=\"IDU\",tblREGASSLookup[[#This Row],[Alloc]]=\"OR\",tblREGASSLookup[[#This Row],[Alloc]]=\"UT\",tblREGASSLookup[[#This Row],[Alloc]]=\"WYU\",tblREGASSLookup[[#This Row],[Alloc]]=\"WYP\",tblREGASSLookup[[#This Row],[Alloc]]=\"CA\",tblREGASSLookup[[#This Row],[Alloc]]=\"WA\"),\"SITUS\",tblREGASSLookup[[#This Row],[Alloc]])","v":"OTHER"},"P"]
[{"$f":"CONCATENATE(tblREGASSLookup[[#This Row],[Primary Account]],tblREGASSLookup[[#This Row],[Primary Name]],tblREGASSLookup[[#This Row],[Secondary Acct]],tblREGASSLookup[[#This Row],[Secondary  Name]],tblREGASSLookup[[#This Row],[Alloc4FUNC]])","v":"1823990OTHR REG ASSET-N CST530190Miscellaneous Contracts & ServicesOTHER"},1823990,"OTHR REG ASSET-N CST",530190,"Miscellaneous Contracts & Services","OTHER",null,{"$f":"IF(OR(tblREGASSLookup[[#This Row],[Alloc]]=\"IDU\",tblREGASSLookup[[#This Row],[Alloc]]=\"OR\",tblREGASSLookup[[#This Row],[Alloc]]=\"UT\",tblREGASSLookup[[#This Row],[Alloc]]=\"WYU\",tblREGASSLookup[[#This Row],[Alloc]]=\"WYP\",tblREGASSLookup[[#This Row],[Alloc]]=\"CA\",tblREGASSLookup[[#This Row],[Alloc]]=\"WA\"),\"SITUS\",tblREGASSLookup[[#This Row],[Alloc]])","v":"OTHER"},"P"]
[{"$f":"CONCATENATE(tblREGASSLookup[[#This Row],[Primary Account]],tblREGASSLookup[[#This Row],[Primary Name]],tblREGASSLookup[[#This Row],[Secondary Acct]],tblREGASSLookup[[#This Row],[Secondary  Name]],tblREGASSLookup[[#This Row],[Alloc4FUNC]])","v":"1823910ENVIR CST UNDR AMORT104197Bridger Plant - FGD Pond 1SO"},1823910,"ENVIR CST UNDR AMORT",104197,"Bridger Plant - FGD Pond 1","SO",null,{"$f":"IF(OR(tblREGASSLookup[[#This Row],[Alloc]]=\"IDU\",tblREGASSLookup[[#This Row],[Alloc]]=\"OR\",tblREGASSLookup[[#This Row],[Alloc]]=\"UT\",tblREGASSLookup[[#This Row],[Alloc]]=\"WYU\",tblREGASSLookup[[#This Row],[Alloc]]=\"WYP\",tblREGASSLookup[[#This Row],[Alloc]]=\"CA\",tblREGASSLookup[[#This Row],[Alloc]]=\"WA\"),\"SITUS\",tblREGASSLookup[[#This Row],[Alloc]])","v":"SO"},"ESD"]
[{"$f":"CONCATENATE(tblREGASSLookup[[#This Row],[Primary Account]],tblREGASSLookup[[#This Row],[Primary Name]],tblREGASSLookup[[#This Row],[Secondary Acct]],tblREGASSLookup[[#This Row],[Secondary  Name]],tblREGASSLookup[[#This Row],[Alloc4FUNC]])","v":"1823910ENVIR CST UNDR AMORT104198Bridger Plant - FGD Pond 2SO"},1823910,"ENVIR CST UNDR AMORT",104198,"Bridger Plant - FGD Pond 2","SO",null,{"$f":"IF(OR(tblREGASSLookup[[#This Row],[Alloc]]=\"IDU\",tblREGASSLookup[[#This Row],[Alloc]]=\"OR\",tblREGASSLookup[[#This Row],[Alloc]]=\"UT\",tblREGASSLookup[[#This Row],[Alloc]]=\"WYU\",tblREGASSLookup[[#This Row],[Alloc]]=\"WYP\",tblREGASSLookup[[#This Row],[Alloc]]=\"CA\",tblREGASSLookup[[#This Row],[Alloc]]=\"WA\"),\"SITUS\",tblREGASSLookup[[#This Row],[Alloc]])","v":"SO"},"ESD"]
[{"$f":"CONCATENATE(tblREGASSLookup[[#This Row],[Primary Account]],tblREGASSLookup[[#This Row],[Primary Name]],tblREGASSLookup[[#This Row],[Secondary Acct]],tblREGASSLookup[[#This Row],[Secondary  Name]],tblREGASSLookup[[#This Row],[Alloc4FUNC]])","v":"1823999REGULATORY ASST-OTH186071DSM Reg Asset - Accruals - WY Cat 1OTHER"},1823999,"REGULATORY ASST-OTH",186071,"DSM Reg Asset - Accruals - WY Cat 1","OTHER",null,{"$f":"IF(OR(tblREGASSLookup[[#This Row],[Alloc]]=\"IDU\",tblREGASSLookup[[#This Row],[Alloc]]=\"OR\",tblREGASSLookup[[#This Row],[Alloc]]=\"UT\",tblREGASSLookup[[#This Row],[Alloc]]=\"WYU\",tblREGASSLookup[[#This Row],[Alloc]]=\"WYP\",tblREGASSLookup[[#This Row],[Alloc]]=\"CA\",tblREGASSLookup[[#This Row],[Alloc]]=\"WA\"),\"SITUS\",tblREGASSLookup[[#This Row],[Alloc]])","v":"OTHER"},"P"]
[{"$f":"CONCATENATE(tblREGASSLookup[[#This Row],[Primary Account]],tblREGASSLookup[[#This Row],[Primary Name]],tblREGASSLookup[[#This Row],[Secondary Acct]],tblREGASSLookup[[#This Row],[Secondary  Name]],tblREGASSLookup[[#This Row],[Alloc4FUNC]])","v":"1823999REGULATORY ASST-OTH186075DSM Reg Asset-Balancing Acct-WY Cat 1OTHER"},1823999,"REGULATORY ASST-OTH",186075,"DSM Reg Asset-Balancing Acct-WY Cat 1","OTHER",null,{"$f":"IF(OR(tblREGASSLookup[[#This Row],[Alloc]]=\"IDU\",tblREGASSLookup[[#This Row],[Alloc]]=\"OR\",tblREGASSLookup[[#This Row],[Alloc]]=\"UT\",tblREGASSLookup[[#This Row],[Alloc]]=\"WYU\",tblREGASSLookup[[#This Row],[Alloc]]=\"WYP\",tblREGASSLookup[[#This Row],[Alloc]]=\"CA\",tblREGASSLookup[[#This Row],[Alloc]]=\"WA\"),\"SITUS\",tblREGASSLookup[[#This Row],[Alloc]])","v":"OTHER"},"P"]
[{"$f":"CONCATENATE(tblREGASSLookup[[#This Row],[Primary Account]],tblREGASSLookup[[#This Row],[Primary Name]],tblREGASSLookup[[#This Row],[Secondary Acct]],tblREGASSLookup[[#This Row],[Secondary  Name]],tblREGASSLookup[[#This Row],[Alloc4FUNC]])","v":"1823999REGULATORY ASST-OTH186081DSM Reg Asset - Accruals - WY Cat 2OTHER"},1823999,"REGULATORY ASST-OTH",186081,"DSM Reg Asset - Accruals - WY Cat 2","OTHER",null,{"$f":"IF(OR(tblREGASSLookup[[#This Row],[Alloc]]=\"IDU\",tblREGASSLookup[[#This Row],[Alloc]]=\"OR\",tblREGASSLookup[[#This Row],[Alloc]]=\"UT\",tblREGASSLookup[[#This Row],[Alloc]]=\"WYU\",tblREGASSLookup[[#This Row],[Alloc]]=\"WYP\",tblREGASSLookup[[#This Row],[Alloc]]=\"CA\",tblREGASSLookup[[#This Row],[Alloc]]=\"WA\"),\"SITUS\",tblREGASSLookup[[#This Row],[Alloc]])","v":"OTHER"},"P"]
[{"$f":"CONCATENATE(tblREGASSLookup[[#This Row],[Primary Account]],tblREGASSLookup[[#This Row],[Primary Name]],tblREGASSLookup[[#This Row],[Secondary Acct]],tblREGASSLookup[[#This Row],[Secondary  Name]],tblREGASSLookup[[#This Row],[Alloc4FUNC]])","v":"1823999REGULATORY ASST-OTH186085DSM Reg Asset-Balancing Acct-WY Cat 2OTHER"},1823999,"REGULATORY ASST-OTH",186085,"DSM Reg Asset-Balancing Acct-WY Cat 2","OTHER",null,{"$f":"IF(OR(tblREGASSLookup[[#This Row],[Alloc]]=\"IDU\",tblREGASSLookup[[#This Row],[Alloc]]=\"OR\",tblREGASSLookup[[#This Row],[Alloc]]=\"UT\",tblREGASSLookup[[#This Row],[Alloc]]=\"WYU\",tblREGASSLookup[[#This Row],[Alloc]]=\"WYP\",tblREGASSLookup[[#This Row],[Alloc]]=\"CA\",tblREGASSLookup[[#This Row],[Alloc]]=\"WA\"),\"SITUS\",tblREGASSLookup[[#This Row],[Alloc]])","v":"OTHER"},"P"]
[{"$f":"CONCATENATE(tblREGASSLookup[[#This Row],[Primary Account]],tblREGASSLookup[[#This Row],[Primary Name]],tblREGASSLookup[[#This Row],[Secondary Acct]],tblREGASSLookup[[#This Row],[Secondary  Name]],tblREGASSLookup[[#This Row],[Alloc4FUNC]])","v":"1823990OTHR REG ASSET-N CST189619Contra Reg Asset - UT EBA CY2019OTHER"},1823990,"OTHR REG ASSET-N CST",189619,"Contra Reg Asset - UT EBA CY2019","OTHER",null,{"$f":"IF(OR(tblREGASSLookup[[#This Row],[Alloc]]=\"IDU\",tblREGASSLookup[[#This Row],[Alloc]]=\"OR\",tblREGASSLookup[[#This Row],[Alloc]]=\"UT\",tblREGASSLookup[[#This Row],[Alloc]]=\"WYU\",tblREGASSLookup[[#This Row],[Alloc]]=\"WYP\",tblREGASSLookup[[#This Row],[Alloc]]=\"CA\",tblREGASSLookup[[#This Row],[Alloc]]=\"WA\"),\"SITUS\",tblREGASSLookup[[#This Row],[Alloc]])","v":"OTHER"},"P"]
[{"$f":"CONCATENATE(tblREGASSLookup[[#This Row],[Primary Account]],tblREGASSLookup[[#This Row],[Primary Name]],tblREGASSLookup[[#This Row],[Secondary Acct]],tblREGASSLookup[[#This Row],[Secondary  Name]],tblREGASSLookup[[#This Row],[Alloc4FUNC]])","v":"1823990OTHR REG ASSET-N CST189609Reg Asset - UT EBA CY2019OTHER"},1823990,"OTHR REG ASSET-N CST",189609,"Reg Asset - UT EBA CY2019","OTHER",null,{"$f":"IF(OR(tblREGASSLookup[[#This Row],[Alloc]]=\"IDU\",tblREGASSLookup[[#This Row],[Alloc]]=\"OR\",tblREGASSLookup[[#This Row],[Alloc]]=\"UT\",tblREGASSLookup[[#This Row],[Alloc]]=\"WYU\",tblREGASSLookup[[#This Row],[Alloc]]=\"WYP\",tblREGASSLookup[[#This Row],[Alloc]]=\"CA\",tblREGASSLookup[[#This Row],[Alloc]]=\"WA\"),\"SITUS\",tblREGASSLookup[[#This Row],[Alloc]])","v":"OTHER"},"P"]
[{"$f":"CONCATENATE(tblREGASSLookup[[#This Row],[Primary Account]],tblREGASSLookup[[#This Row],[Primary Name]],tblREGASSLookup[[#This Row],[Secondary Acct]],tblREGASSLookup[[#This Row],[Secondary  Name]],tblREGASSLookup[[#This Row],[Alloc4FUNC]])","v":"1823990OTHR REG ASSET-N CST189543Contra Reg Asset - ID ECAM CY 2018OTHER"},1823990,"OTHR REG ASSET-N CST",189543,"Contra Reg Asset - ID ECAM CY 2018","OTHER",null,{"$f":"IF(OR(tblREGASSLookup[[#This Row],[Alloc]]=\"IDU\",tblREGASSLookup[[#This Row],[Alloc]]=\"OR\",tblREGASSLookup[[#This Row],[Alloc]]=\"UT\",tblREGASSLookup[[#This Row],[Alloc]]=\"WYU\",tblREGASSLookup[[#This Row],[Alloc]]=\"WYP\",tblREGASSLookup[[#This Row],[Alloc]]=\"CA\",tblREGASSLookup[[#This Row],[Alloc]]=\"WA\"),\"SITUS\",tblREGASSLookup[[#This Row],[Alloc]])","v":"OTHER"},"P"]
[{"$f":"CONCATENATE(tblREGASSLookup[[#This Row],[Primary Account]],tblREGASSLookup[[#This Row],[Primary Name]],tblREGASSLookup[[#This Row],[Secondary Acct]],tblREGASSLookup[[#This Row],[Secondary  Name]],tblREGASSLookup[[#This Row],[Alloc4FUNC]])","v":"1823990OTHR REG ASSET-N CST189544Contra Reg Asset - ID ECAM CY 2019OTHER"},1823990,"OTHR REG ASSET-N CST",189544,"Contra Reg Asset - ID ECAM CY 2019","OTHER",null,{"$f":"IF(OR(tblREGASSLookup[[#This Row],[Alloc]]=\"IDU\",tblREGASSLookup[[#This Row],[Alloc]]=\"OR\",tblREGASSLookup[[#This Row],[Alloc]]=\"UT\",tblREGASSLookup[[#This Row],[Alloc]]=\"WYU\",tblREGASSLookup[[#This Row],[Alloc]]=\"WYP\",tblREGASSLookup[[#This Row],[Alloc]]=\"CA\",tblREGASSLookup[[#This Row],[Alloc]]=\"WA\"),\"SITUS\",tblREGASSLookup[[#This Row],[Alloc]])","v":"OTHER"},"P"]
[{"$f":"CONCATENATE(tblREGASSLookup[[#This Row],[Primary Account]],tblREGASSLookup[[#This Row],[Primary Name]],tblREGASSLookup[[#This Row],[Secondary Acct]],tblREGASSLookup[[#This Row],[Secondary  Name]],tblREGASSLookup[[#This Row],[Alloc4FUNC]])","v":"1823990OTHR REG ASSET-N CST189533Reg Asset  - ID ECAM CY 2018OTHER"},1823990,"OTHR REG ASSET-N CST",189533,"Reg Asset  - ID ECAM CY 2018","OTHER",null,{"$f":"IF(OR(tblREGASSLookup[[#This Row],[Alloc]]=\"IDU\",tblREGASSLookup[[#This Row],[Alloc]]=\"OR\",tblREGASSLookup[[#This Row],[Alloc]]=\"UT\",tblREGASSLookup[[#This Row],[Alloc]]=\"WYU\",tblREGASSLookup[[#This Row],[Alloc]]=\"WYP\",tblREGASSLookup[[#This Row],[Alloc]]=\"CA\",tblREGASSLookup[[#This Row],[Alloc]]=\"WA\"),\"SITUS\",tblREGASSLookup[[#This Row],[Alloc]])","v":"OTHER"},"P"]
[{"$f":"CONCATENATE(tblREGASSLookup[[#This Row],[Primary Account]],tblREGASSLookup[[#This Row],[Primary Name]],tblREGASSLookup[[#This Row],[Secondary Acct]],tblREGASSLookup[[#This Row],[Secondary  Name]],tblREGASSLookup[[#This Row],[Alloc4FUNC]])","v":"1823990OTHR REG ASSET-N CST189534Reg Asset-ID ECAM CY 2019OTHER"},1823990,"OTHR REG ASSET-N CST",189534,"Reg Asset-ID ECAM CY 2019","OTHER",null,{"$f":"IF(OR(tblREGASSLookup[[#This Row],[Alloc]]=\"IDU\",tblREGASSLookup[[#This Row],[Alloc]]=\"OR\",tblREGASSLookup[[#This Row],[Alloc]]=\"UT\",tblREGASSLookup[[#This Row],[Alloc]]=\"WYU\",tblREGASSLookup[[#This Row],[Alloc]]=\"WYP\",tblREGASSLookup[[#This Row],[Alloc]]=\"CA\",tblREGASSLookup[[#This Row],[Alloc]]=\"WA\"),\"SITUS\",tblREGASSLookup[[#This Row],[Alloc]])","v":"OTHER"},"P"]
[{"$f":"CONCATENATE(tblREGASSLookup[[#This Row],[Primary Account]],tblREGASSLookup[[#This Row],[Primary Name]],tblREGASSLookup[[#This Row],[Secondary Acct]],tblREGASSLookup[[#This Row],[Secondary  Name]],tblREGASSLookup[[#This Row],[Alloc4FUNC]])","v":"1823990OTHR REG ASSET-N CST189500Reg Asset - CA ECAC CY2019OTHER"},1823990,"OTHR REG ASSET-N CST",189500,"Reg Asset - CA ECAC CY2019","OTHER",null,{"$f":"IF(OR(tblREGASSLookup[[#This Row],[Alloc]]=\"IDU\",tblREGASSLookup[[#This Row],[Alloc]]=\"OR\",tblREGASSLookup[[#This Row],[Alloc]]=\"UT\",tblREGASSLookup[[#This Row],[Alloc]]=\"WYU\",tblREGASSLookup[[#This Row],[Alloc]]=\"WYP\",tblREGASSLookup[[#This Row],[Alloc]]=\"CA\",tblREGASSLookup[[#This Row],[Alloc]]=\"WA\"),\"SITUS\",tblREGASSLookup[[#This Row],[Alloc]])","v":"OTHER"},"P"]
[{"$f":"CONCATENATE(tblREGASSLookup[[#This Row],[Primary Account]],tblREGASSLookup[[#This Row],[Primary Name]],tblREGASSLookup[[#This Row],[Secondary Acct]],tblREGASSLookup[[#This Row],[Secondary  Name]],tblREGASSLookup[[#This Row],[Alloc4FUNC]])","v":"1823990OTHR REG ASSET-N CST189501Contra Reg Asset - CA ECAC CY2019OTHER"},1823990,"OTHR REG ASSET-N CST",189501,"Contra Reg Asset - CA ECAC CY2019","OTHER",null,{"$f":"IF(OR(tblREGASSLookup[[#This Row],[Alloc]]=\"IDU\",tblREGASSLookup[[#This Row],[Alloc]]=\"OR\",tblREGASSLookup[[#This Row],[Alloc]]=\"UT\",tblREGASSLookup[[#This Row],[Alloc]]=\"WYU\",tblREGASSLookup[[#This Row],[Alloc]]=\"WYP\",tblREGASSLookup[[#This Row],[Alloc]]=\"CA\",tblREGASSLookup[[#This Row],[Alloc]]=\"WA\"),\"SITUS\",tblREGASSLookup[[#This Row],[Alloc]])","v":"OTHER"},"P"]
[{"$f":"CONCATENATE(tblREGASSLookup[[#This Row],[Primary Account]],tblREGASSLookup[[#This Row],[Primary Name]],tblREGASSLookup[[#This Row],[Secondary Acct]],tblREGASSLookup[[#This Row],[Secondary  Name]],tblREGASSLookup[[#This Row],[Alloc4FUNC]])","v":"1823990OTHR REG ASSET-N CST187978Reg Asset - CA ECAC CY2018OTHER"},1823990,"OTHR REG ASSET-N CST",187978,"Reg Asset - CA ECAC CY2018","OTHER",null,{"$f":"IF(OR(tblREGASSLookup[[#This Row],[Alloc]]=\"IDU\",tblREGASSLookup[[#This Row],[Alloc]]=\"OR\",tblREGASSLookup[[#This Row],[Alloc]]=\"UT\",tblREGASSLookup[[#This Row],[Alloc]]=\"WYU\",tblREGASSLookup[[#This Row],[Alloc]]=\"WYP\",tblREGASSLookup[[#This Row],[Alloc]]=\"CA\",tblREGASSLookup[[#This Row],[Alloc]]=\"WA\"),\"SITUS\",tblREGASSLookup[[#This Row],[Alloc]])","v":"OTHER"},"P"]
[{"$f":"CONCATENATE(tblREGASSLookup[[#This Row],[Primary Account]],tblREGASSLookup[[#This Row],[Primary Name]],tblREGASSLookup[[#This Row],[Secondary Acct]],tblREGASSLookup[[#This Row],[Secondary  Name]],tblREGASSLookup[[#This Row],[Alloc4FUNC]])","v":"1823990OTHR REG ASSET-N CST187979Contra Reg Asset - CA ECAC CY2018OTHER"},1823990,"OTHR REG ASSET-N CST",187979,"Contra Reg Asset - CA ECAC CY2018","OTHER",null,{"$f":"IF(OR(tblREGASSLookup[[#This Row],[Alloc]]=\"IDU\",tblREGASSLookup[[#This Row],[Alloc]]=\"OR\",tblREGASSLookup[[#This Row],[Alloc]]=\"UT\",tblREGASSLookup[[#This Row],[Alloc]]=\"WYU\",tblREGASSLookup[[#This Row],[Alloc]]=\"WYP\",tblREGASSLookup[[#This Row],[Alloc]]=\"CA\",tblREGASSLookup[[#This Row],[Alloc]]=\"WA\"),\"SITUS\",tblREGASSLookup[[#This Row],[Alloc]])","v":"OTHER"},"P"]
[{"$f":"CONCATENATE(tblREGASSLookup[[#This Row],[Primary Account]],tblREGASSLookup[[#This Row],[Primary Name]],tblREGASSLookup[[#This Row],[Secondary Acct]],tblREGASSLookup[[#This Row],[Secondary  Name]],tblREGASSLookup[[#This Row],[Alloc4FUNC]])","v":"1823990OTHR REG ASSET-N CST187879Contra Reg Asset - WY ECAM CY2019OTHER"},1823990,"OTHR REG ASSET-N CST",187879,"Contra Reg Asset - WY ECAM CY2019","OTHER",null,{"$f":"IF(OR(tblREGASSLookup[[#This Row],[Alloc]]=\"IDU\",tblREGASSLookup[[#This Row],[Alloc]]=\"OR\",tblREGASSLookup[[#This Row],[Alloc]]=\"UT\",tblREGASSLookup[[#This Row],[Alloc]]=\"WYU\",tblREGASSLookup[[#This Row],[Alloc]]=\"WYP\",tblREGASSLookup[[#This Row],[Alloc]]=\"CA\",tblREGASSLookup[[#This Row],[Alloc]]=\"WA\"),\"SITUS\",tblREGASSLookup[[#This Row],[Alloc]])","v":"OTHER"},"P"]
[{"$f":"CONCATENATE(tblREGASSLookup[[#This Row],[Primary Account]],tblREGASSLookup[[#This Row],[Primary Name]],tblREGASSLookup[[#This Row],[Secondary Acct]],tblREGASSLookup[[#This Row],[Secondary  Name]],tblREGASSLookup[[#This Row],[Alloc4FUNC]])","v":"1823990OTHR REG ASSET-N CST187868Reg Asset - WY RRA CY2018OTHER"},1823990,"OTHR REG ASSET-N CST",187868,"Reg Asset - WY RRA CY2018","OTHER",null,{"$f":"IF(OR(tblREGASSLookup[[#This Row],[Alloc]]=\"IDU\",tblREGASSLookup[[#This Row],[Alloc]]=\"OR\",tblREGASSLookup[[#This Row],[Alloc]]=\"UT\",tblREGASSLookup[[#This Row],[Alloc]]=\"WYU\",tblREGASSLookup[[#This Row],[Alloc]]=\"WYP\",tblREGASSLookup[[#This Row],[Alloc]]=\"CA\",tblREGASSLookup[[#This Row],[Alloc]]=\"WA\"),\"SITUS\",tblREGASSLookup[[#This Row],[Alloc]])","v":"OTHER"},"P"]
[{"$f":"CONCATENATE(tblREGASSLookup[[#This Row],[Primary Account]],tblREGASSLookup[[#This Row],[Primary Name]],tblREGASSLookup[[#This Row],[Secondary Acct]],tblREGASSLookup[[#This Row],[Secondary  Name]],tblREGASSLookup[[#This Row],[Alloc4FUNC]])","v":"1823990OTHR REG ASSET-N CST187859Reg Asset - WY ECAM CY2019OTHER"},1823990,"OTHR REG ASSET-N CST",187859,"Reg Asset - WY ECAM CY2019","OTHER",null,{"$f":"IF(OR(tblREGASSLookup[[#This Row],[Alloc]]=\"IDU\",tblREGASSLookup[[#This Row],[Alloc]]=\"OR\",tblREGASSLookup[[#This Row],[Alloc]]=\"UT\",tblREGASSLookup[[#This Row],[Alloc]]=\"WYU\",tblREGASSLookup[[#This Row],[Alloc]]=\"WYP\",tblREGASSLookup[[#This Row],[Alloc]]=\"CA\",tblREGASSLookup[[#This Row],[Alloc]]=\"WA\"),\"SITUS\",tblREGASSLookup[[#This Row],[Alloc]])","v":"OTHER"},"P"]
[{"$f":"CONCATENATE(tblREGASSLookup[[#This Row],[Primary Account]],tblREGASSLookup[[#This Row],[Primary Name]],tblREGASSLookup[[#This Row],[Secondary Acct]],tblREGASSLookup[[#This Row],[Secondary  Name]],tblREGASSLookup[[#This Row],[Alloc4FUNC]])","v":"1823990OTHR REG ASSET-N CST187839Reg Asset - UT RBA CY2018OTHER"},1823990,"OTHR REG ASSET-N CST",187839,"Reg Asset - UT RBA CY2018","OTHER",null,{"$f":"IF(OR(tblREGASSLookup[[#This Row],[Alloc]]=\"IDU\",tblREGASSLookup[[#This Row],[Alloc]]=\"OR\",tblREGASSLookup[[#This Row],[Alloc]]=\"UT\",tblREGASSLookup[[#This Row],[Alloc]]=\"WYU\",tblREGASSLookup[[#This Row],[Alloc]]=\"WYP\",tblREGASSLookup[[#This Row],[Alloc]]=\"CA\",tblREGASSLookup[[#This Row],[Alloc]]=\"WA\"),\"SITUS\",tblREGASSLookup[[#This Row],[Alloc]])","v":"OTHER"},"P"]
[{"$f":"CONCATENATE(tblREGASSLookup[[#This Row],[Primary Account]],tblREGASSLookup[[#This Row],[Primary Name]],tblREGASSLookup[[#This Row],[Secondary Acct]],tblREGASSLookup[[#This Row],[Secondary  Name]],tblREGASSLookup[[#This Row],[Alloc4FUNC]])","v":"1823990OTHR REG ASSET-N CST187660RegA-OR Transp Electrification PilotOTHER"},1823990,"OTHR REG ASSET-N CST",187660,"RegA-OR Transp Electrification Pilot","OTHER",null,{"$f":"IF(OR(tblREGASSLookup[[#This Row],[Alloc]]=\"IDU\",tblREGASSLookup[[#This Row],[Alloc]]=\"OR\",tblREGASSLookup[[#This Row],[Alloc]]=\"UT\",tblREGASSLookup[[#This Row],[Alloc]]=\"WYU\",tblREGASSLookup[[#This Row],[Alloc]]=\"WYP\",tblREGASSLookup[[#This Row],[Alloc]]=\"CA\",tblREGASSLookup[[#This Row],[Alloc]]=\"WA\"),\"SITUS\",tblREGASSLookup[[#This Row],[Alloc]])","v":"OTHER"},"P"]
[{"$f":"CONCATENATE(tblREGASSLookup[[#This Row],[Primary Account]],tblREGASSLookup[[#This Row],[Primary Name]],tblREGASSLookup[[#This Row],[Secondary Acct]],tblREGASSLookup[[#This Row],[Secondary  Name]],tblREGASSLookup[[#This Row],[Alloc4FUNC]])","v":"1823990OTHR REG ASSET-N CST187662RegA-CA Transp Electrification PilotOTHER"},1823990,"OTHR REG ASSET-N CST",187662,"RegA-CA Transp Electrification Pilot","OTHER",null,{"$f":"IF(OR(tblREGASSLookup[[#This Row],[Alloc]]=\"IDU\",tblREGASSLookup[[#This Row],[Alloc]]=\"OR\",tblREGASSLookup[[#This Row],[Alloc]]=\"UT\",tblREGASSLookup[[#This Row],[Alloc]]=\"WYU\",tblREGASSLookup[[#This Row],[Alloc]]=\"WYP\",tblREGASSLookup[[#This Row],[Alloc]]=\"CA\",tblREGASSLookup[[#This Row],[Alloc]]=\"WA\"),\"SITUS\",tblREGASSLookup[[#This Row],[Alloc]])","v":"OTHER"},"P"]
[{"$f":"CONCATENATE(tblREGASSLookup[[#This Row],[Primary Account]],tblREGASSLookup[[#This Row],[Primary Name]],tblREGASSLookup[[#This Row],[Secondary Acct]],tblREGASSLookup[[#This Row],[Secondary  Name]],tblREGASSLookup[[#This Row],[Alloc4FUNC]])","v":"1823990OTHR REG ASSET-N CST187482Contra Reg A-WA Decoupling Jul18-Jun19OTHER"},1823990,"OTHR REG ASSET-N CST",187482,"Contra Reg A-WA Decoupling Jul18-Jun19","OTHER",null,{"$f":"IF(OR(tblREGASSLookup[[#This Row],[Alloc]]=\"IDU\",tblREGASSLookup[[#This Row],[Alloc]]=\"OR\",tblREGASSLookup[[#This Row],[Alloc]]=\"UT\",tblREGASSLookup[[#This Row],[Alloc]]=\"WYU\",tblREGASSLookup[[#This Row],[Alloc]]=\"WYP\",tblREGASSLookup[[#This Row],[Alloc]]=\"CA\",tblREGASSLookup[[#This Row],[Alloc]]=\"WA\"),\"SITUS\",tblREGASSLookup[[#This Row],[Alloc]])","v":"OTHER"},"P"]
[{"$f":"CONCATENATE(tblREGASSLookup[[#This Row],[Primary Account]],tblREGASSLookup[[#This Row],[Primary Name]],tblREGASSLookup[[#This Row],[Secondary Acct]],tblREGASSLookup[[#This Row],[Secondary  Name]],tblREGASSLookup[[#This Row],[Alloc4FUNC]])","v":"1823990OTHR REG ASSET-N CST187472Reg A-WA Decoupling Mech Jul18-Jun19OTHER"},1823990,"OTHR REG ASSET-N CST",187472,"Reg A-WA Decoupling Mech Jul18-Jun19","OTHER",null,{"$f":"IF(OR(tblREGASSLookup[[#This Row],[Alloc]]=\"IDU\",tblREGASSLookup[[#This Row],[Alloc]]=\"OR\",tblREGASSLookup[[#This Row],[Alloc]]=\"UT\",tblREGASSLookup[[#This Row],[Alloc]]=\"WYU\",tblREGASSLookup[[#This Row],[Alloc]]=\"WYP\",tblREGASSLookup[[#This Row],[Alloc]]=\"CA\",tblREGASSLookup[[#This Row],[Alloc]]=\"WA\"),\"SITUS\",tblREGASSLookup[[#This Row],[Alloc]])","v":"OTHER"},"P"]
[{"$f":"CONCATENATE(tblREGASSLookup[[#This Row],[Primary Account]],tblREGASSLookup[[#This Row],[Primary Name]],tblREGASSLookup[[#This Row],[Secondary Acct]],tblREGASSLookup[[#This Row],[Secondary  Name]],tblREGASSLookup[[#This Row],[Alloc4FUNC]])","v":"1823990OTHR REG ASSET-N CST187379Reg Asset-OR Solar Feed-In Tariff 2019OTHER"},1823990,"OTHR REG ASSET-N CST",187379,"Reg Asset-OR Solar Feed-In Tariff 2019","OTHER",null,{"$f":"IF(OR(tblREGASSLookup[[#This Row],[Alloc]]=\"IDU\",tblREGASSLookup[[#This Row],[Alloc]]=\"OR\",tblREGASSLookup[[#This Row],[Alloc]]=\"UT\",tblREGASSLookup[[#This Row],[Alloc]]=\"WYU\",tblREGASSLookup[[#This Row],[Alloc]]=\"WYP\",tblREGASSLookup[[#This Row],[Alloc]]=\"CA\",tblREGASSLookup[[#This Row],[Alloc]]=\"WA\"),\"SITUS\",tblREGASSLookup[[#This Row],[Alloc]])","v":"OTHER"},"P"]
[{"$f":"CONCATENATE(tblREGASSLookup[[#This Row],[Primary Account]],tblREGASSLookup[[#This Row],[Primary Name]],tblREGASSLookup[[#This Row],[Secondary Acct]],tblREGASSLookup[[#This Row],[Secondary  Name]],tblREGASSLookup[[#This Row],[Alloc4FUNC]])","v":"1823990OTHR REG ASSET-N CST186169Reg Asset - DSM - WY - Balance ReclassOTHER"},1823990,"OTHR REG ASSET-N CST",186169,"Reg Asset - DSM - WY - Balance Reclass","OTHER",null,{"$f":"IF(OR(tblREGASSLookup[[#This Row],[Alloc]]=\"IDU\",tblREGASSLookup[[#This Row],[Alloc]]=\"OR\",tblREGASSLookup[[#This Row],[Alloc]]=\"UT\",tblREGASSLookup[[#This Row],[Alloc]]=\"WYU\",tblREGASSLookup[[#This Row],[Alloc]]=\"WYP\",tblREGASSLookup[[#This Row],[Alloc]]=\"CA\",tblREGASSLookup[[#This Row],[Alloc]]=\"WA\"),\"SITUS\",tblREGASSLookup[[#This Row],[Alloc]])","v":"OTHER"},"P"]
[{"$f":"CONCATENATE(tblREGASSLookup[[#This Row],[Primary Account]],tblREGASSLookup[[#This Row],[Primary Name]],tblREGASSLookup[[#This Row],[Secondary Acct]],tblREGASSLookup[[#This Row],[Secondary  Name]],tblREGASSLookup[[#This Row],[Alloc4FUNC]])","v":"1823910ENVIR CST UNDR AMORT104200Naughton Plant - FGD Pond 2SO"},1823910,"ENVIR CST UNDR AMORT",104200,"Naughton Plant - FGD Pond 2","SO",null,{"$f":"IF(OR(tblREGASSLookup[[#This Row],[Alloc]]=\"IDU\",tblREGASSLookup[[#This Row],[Alloc]]=\"OR\",tblREGASSLookup[[#This Row],[Alloc]]=\"UT\",tblREGASSLookup[[#This Row],[Alloc]]=\"WYU\",tblREGASSLookup[[#This Row],[Alloc]]=\"WYP\",tblREGASSLookup[[#This Row],[Alloc]]=\"CA\",tblREGASSLookup[[#This Row],[Alloc]]=\"WA\"),\"SITUS\",tblREGASSLookup[[#This Row],[Alloc]])","v":"SO"},"ESD"]
[{"$f":"CONCATENATE(tblREGASSLookup[[#This Row],[Primary Account]],tblREGASSLookup[[#This Row],[Primary Name]],tblREGASSLookup[[#This Row],[Secondary Acct]],tblREGASSLookup[[#This Row],[Secondary  Name]],tblREGASSLookup[[#This Row],[Alloc4FUNC]])","v":"1823910ENVIR CST UNDR AMORT104201Huntington Plant Ash LandfillSO"},1823910,"ENVIR CST UNDR AMORT",104201,"Huntington Plant Ash Landfill","SO",null,{"$f":"IF(OR(tblREGASSLookup[[#This Row],[Alloc]]=\"IDU\",tblREGASSLookup[[#This Row],[Alloc]]=\"OR\",tblREGASSLookup[[#This Row],[Alloc]]=\"UT\",tblREGASSLookup[[#This Row],[Alloc]]=\"WYU\",tblREGASSLookup[[#This Row],[Alloc]]=\"WYP\",tblREGASSLookup[[#This Row],[Alloc]]=\"CA\",tblREGASSLookup[[#This Row],[Alloc]]=\"WA\"),\"SITUS\",tblREGASSLookup[[#This Row],[Alloc]])","v":"SO"},"ESD"]
[{"$f":"CONCATENATE(tblREGASSLookup[[#This Row],[Primary Account]],tblREGASSLookup[[#This Row],[Primary Name]],tblREGASSLookup[[#This Row],[Secondary Acct]],tblREGASSLookup[[#This Row],[Secondary  Name]],tblREGASSLookup[[#This Row],[Alloc4FUNC]])","v":"1823910ENVIR CST UNDR AMORT104202Dave Johnston Pond 4A & 4BSO"},1823910,"ENVIR CST UNDR AMORT",104202,"Dave Johnston Pond 4A & 4B","SO",null,{"$f":"IF(OR(tblREGASSLookup[[#This Row],[Alloc]]=\"IDU\",tblREGASSLookup[[#This Row],[Alloc]]=\"OR\",tblREGASSLookup[[#This Row],[Alloc]]=\"UT\",tblREGASSLookup[[#This Row],[Alloc]]=\"WYU\",tblREGASSLookup[[#This Row],[Alloc]]=\"WYP\",tblREGASSLookup[[#This Row],[Alloc]]=\"CA\",tblREGASSLookup[[#This Row],[Alloc]]=\"WA\"),\"SITUS\",tblREGASSLookup[[#This Row],[Alloc]])","v":"SO"},"ESD"]
[{"$f":"CONCATENATE(tblREGASSLookup[[#This Row],[Primary Account]],tblREGASSLookup[[#This Row],[Primary Name]],tblREGASSLookup[[#This Row],[Secondary Acct]],tblREGASSLookup[[#This Row],[Secondary  Name]],tblREGASSLookup[[#This Row],[Alloc4FUNC]])","v":"1823910ENVIR CST UNDR AMORT104205Naughton North Ash PondSO"},1823910,"ENVIR CST UNDR AMORT",104205,"Naughton North Ash Pond","SO",null,{"$f":"IF(OR(tblREGASSLookup[[#This Row],[Alloc]]=\"IDU\",tblREGASSLookup[[#This Row],[Alloc]]=\"OR\",tblREGASSLookup[[#This Row],[Alloc]]=\"UT\",tblREGASSLookup[[#This Row],[Alloc]]=\"WYU\",tblREGASSLookup[[#This Row],[Alloc]]=\"WYP\",tblREGASSLookup[[#This Row],[Alloc]]=\"CA\",tblREGASSLookup[[#This Row],[Alloc]]=\"WA\"),\"SITUS\",tblREGASSLookup[[#This Row],[Alloc]])","v":"SO"},"ESD"]
[{"$f":"CONCATENATE(tblREGASSLookup[[#This Row],[Primary Account]],tblREGASSLookup[[#This Row],[Primary Name]],tblREGASSLookup[[#This Row],[Secondary Acct]],tblREGASSLookup[[#This Row],[Secondary  Name]],tblREGASSLookup[[#This Row],[Alloc4FUNC]])","v":"1823910ENVIR CST UNDR AMORT104206Naughton South Ash PondSO"},1823910,"ENVIR CST UNDR AMORT",104206,"Naughton South Ash Pond","SO",null,{"$f":"IF(OR(tblREGASSLookup[[#This Row],[Alloc]]=\"IDU\",tblREGASSLookup[[#This Row],[Alloc]]=\"OR\",tblREGASSLookup[[#This Row],[Alloc]]=\"UT\",tblREGASSLookup[[#This Row],[Alloc]]=\"WYU\",tblREGASSLookup[[#This Row],[Alloc]]=\"WYP\",tblREGASSLookup[[#This Row],[Alloc]]=\"CA\",tblREGASSLookup[[#This Row],[Alloc]]=\"WA\"),\"SITUS\",tblREGASSLookup[[#This Row],[Alloc]])","v":"SO"},"ESD"]
[{"$f":"CONCATENATE(tblREGASSLookup[[#This Row],[Primary Account]],tblREGASSLookup[[#This Row],[Primary Name]],tblREGASSLookup[[#This Row],[Secondary Acct]],tblREGASSLookup[[#This Row],[Secondary  Name]],tblREGASSLookup[[#This Row],[Alloc4FUNC]])","v":"1823910ENVIR CST UNDR AMORT104210American Barrel (UT)-WASITUS"},1823910,"ENVIR CST UNDR AMORT",104210,"American Barrel (UT)-WA","WA",null,{"$f":"IF(OR(tblREGASSLookup[[#This Row],[Alloc]]=\"IDU\",tblREGASSLookup[[#This Row],[Alloc]]=\"OR\",tblREGASSLookup[[#This Row],[Alloc]]=\"UT\",tblREGASSLookup[[#This Row],[Alloc]]=\"WYU\",tblREGASSLookup[[#This Row],[Alloc]]=\"WYP\",tblREGASSLookup[[#This Row],[Alloc]]=\"CA\",tblREGASSLookup[[#This Row],[Alloc]]=\"WA\"),\"SITUS\",tblREGASSLookup[[#This Row],[Alloc]])","v":"SITUS"},"ESD"]
[{"$f":"CONCATENATE(tblREGASSLookup[[#This Row],[Primary Account]],tblREGASSLookup[[#This Row],[Primary Name]],tblREGASSLookup[[#This Row],[Secondary Acct]],tblREGASSLookup[[#This Row],[Secondary  Name]],tblREGASSLookup[[#This Row],[Alloc4FUNC]])","v":"1823910ENVIR CST UNDR AMORT104211Astoria/Unocal (Downtown)-WASITUS"},1823910,"ENVIR CST UNDR AMORT",104211,"Astoria/Unocal (Downtown)-WA","WA",null,{"$f":"IF(OR(tblREGASSLookup[[#This Row],[Alloc]]=\"IDU\",tblREGASSLookup[[#This Row],[Alloc]]=\"OR\",tblREGASSLookup[[#This Row],[Alloc]]=\"UT\",tblREGASSLookup[[#This Row],[Alloc]]=\"WYU\",tblREGASSLookup[[#This Row],[Alloc]]=\"WYP\",tblREGASSLookup[[#This Row],[Alloc]]=\"CA\",tblREGASSLookup[[#This Row],[Alloc]]=\"WA\"),\"SITUS\",tblREGASSLookup[[#This Row],[Alloc]])","v":"SITUS"},"ESD"]
[{"$f":"CONCATENATE(tblREGASSLookup[[#This Row],[Primary Account]],tblREGASSLookup[[#This Row],[Primary Name]],tblREGASSLookup[[#This Row],[Secondary Acct]],tblREGASSLookup[[#This Row],[Secondary  Name]],tblREGASSLookup[[#This Row],[Alloc4FUNC]])","v":"1823910ENVIR CST UNDR AMORT104212ASTORIA YOUNGS BAY CLEANUP-WASITUS"},1823910,"ENVIR CST UNDR AMORT",104212,"ASTORIA YOUNGS BAY CLEANUP-WA","WA",null,{"$f":"IF(OR(tblREGASSLookup[[#This Row],[Alloc]]=\"IDU\",tblREGASSLookup[[#This Row],[Alloc]]=\"OR\",tblREGASSLookup[[#This Row],[Alloc]]=\"UT\",tblREGASSLookup[[#This Row],[Alloc]]=\"WYU\",tblREGASSLookup[[#This Row],[Alloc]]=\"WYP\",tblREGASSLookup[[#This Row],[Alloc]]=\"CA\",tblREGASSLookup[[#This Row],[Alloc]]=\"WA\"),\"SITUS\",tblREGASSLookup[[#This Row],[Alloc]])","v":"SITUS"},"ESD"]
[{"$f":"CONCATENATE(tblREGASSLookup[[#This Row],[Primary Account]],tblREGASSLookup[[#This Row],[Primary Name]],tblREGASSLookup[[#This Row],[Secondary Acct]],tblREGASSLookup[[#This Row],[Secondary  Name]],tblREGASSLookup[[#This Row],[Alloc4FUNC]])","v":"1823910ENVIR CST UNDR AMORT104213Big Fork Hydro Plant (MT)-WASITUS"},1823910,"ENVIR CST UNDR AMORT",104213,"Big Fork Hydro Plant (MT)-WA","WA",null,{"$f":"IF(OR(tblREGASSLookup[[#This Row],[Alloc]]=\"IDU\",tblREGASSLookup[[#This Row],[Alloc]]=\"OR\",tblREGASSLookup[[#This Row],[Alloc]]=\"UT\",tblREGASSLookup[[#This Row],[Alloc]]=\"WYU\",tblREGASSLookup[[#This Row],[Alloc]]=\"WYP\",tblREGASSLookup[[#This Row],[Alloc]]=\"CA\",tblREGASSLookup[[#This Row],[Alloc]]=\"WA\"),\"SITUS\",tblREGASSLookup[[#This Row],[Alloc]])","v":"SITUS"},"ESD"]
[{"$f":"CONCATENATE(tblREGASSLookup[[#This Row],[Primary Account]],tblREGASSLookup[[#This Row],[Primary Name]],tblREGASSLookup[[#This Row],[Secondary Acct]],tblREGASSLookup[[#This Row],[Secondary  Name]],tblREGASSLookup[[#This Row],[Alloc4FUNC]])","v":"1823910ENVIR CST UNDR AMORT104214Bors Property  (OR) - WASITUS"},1823910,"ENVIR CST UNDR AMORT",104214,"Bors Property  (OR) - WA","WA",null,{"$f":"IF(OR(tblREGASSLookup[[#This Row],[Alloc]]=\"IDU\",tblREGASSLookup[[#This Row],[Alloc]]=\"OR\",tblREGASSLookup[[#This Row],[Alloc]]=\"UT\",tblREGASSLookup[[#This Row],[Alloc]]=\"WYU\",tblREGASSLookup[[#This Row],[Alloc]]=\"WYP\",tblREGASSLookup[[#This Row],[Alloc]]=\"CA\",tblREGASSLookup[[#This Row],[Alloc]]=\"WA\"),\"SITUS\",tblREGASSLookup[[#This Row],[Alloc]])","v":"SITUS"},"ESD"]
[{"$f":"CONCATENATE(tblREGASSLookup[[#This Row],[Primary Account]],tblREGASSLookup[[#This Row],[Primary Name]],tblREGASSLookup[[#This Row],[Secondary Acct]],tblREGASSLookup[[#This Row],[Secondary  Name]],tblREGASSLookup[[#This Row],[Alloc4FUNC]])","v":"1823910ENVIR CST UNDR AMORT104215Bridger Coal Fuel Oil Spill - WASITUS"},1823910,"ENVIR CST UNDR AMORT",104215,"Bridger Coal Fuel Oil Spill - WA","WA",null,{"$f":"IF(OR(tblREGASSLookup[[#This Row],[Alloc]]=\"IDU\",tblREGASSLookup[[#This Row],[Alloc]]=\"OR\",tblREGASSLookup[[#This Row],[Alloc]]=\"UT\",tblREGASSLookup[[#This Row],[Alloc]]=\"WYU\",tblREGASSLookup[[#This Row],[Alloc]]=\"WYP\",tblREGASSLookup[[#This Row],[Alloc]]=\"CA\",tblREGASSLookup[[#This Row],[Alloc]]=\"WA\"),\"SITUS\",tblREGASSLookup[[#This Row],[Alloc]])","v":"SITUS"},"ESD"]
[{"$f":"CONCATENATE(tblREGASSLookup[[#This Row],[Primary Account]],tblREGASSLookup[[#This Row],[Primary Name]],tblREGASSLookup[[#This Row],[Secondary Acct]],tblREGASSLookup[[#This Row],[Secondary  Name]],tblREGASSLookup[[#This Row],[Alloc4FUNC]])","v":"1823910ENVIR CST UNDR AMORT104216Bridger FGD Pond 1 Closure-WASITUS"},1823910,"ENVIR CST UNDR AMORT",104216,"Bridger FGD Pond 1 Closure-WA","WA",null,{"$f":"IF(OR(tblREGASSLookup[[#This Row],[Alloc]]=\"IDU\",tblREGASSLookup[[#This Row],[Alloc]]=\"OR\",tblREGASSLookup[[#This Row],[Alloc]]=\"UT\",tblREGASSLookup[[#This Row],[Alloc]]=\"WYU\",tblREGASSLookup[[#This Row],[Alloc]]=\"WYP\",tblREGASSLookup[[#This Row],[Alloc]]=\"CA\",tblREGASSLookup[[#This Row],[Alloc]]=\"WA\"),\"SITUS\",tblREGASSLookup[[#This Row],[Alloc]])","v":"SITUS"},"ESD"]
[{"$f":"CONCATENATE(tblREGASSLookup[[#This Row],[Primary Account]],tblREGASSLookup[[#This Row],[Primary Name]],tblREGASSLookup[[#This Row],[Secondary Acct]],tblREGASSLookup[[#This Row],[Secondary  Name]],tblREGASSLookup[[#This Row],[Alloc4FUNC]])","v":"1823910ENVIR CST UNDR AMORT104218Bridger Plant - FGD Pond 1-WASITUS"},1823910,"ENVIR CST UNDR AMORT",104218,"Bridger Plant - FGD Pond 1-WA","WA",null,{"$f":"IF(OR(tblREGASSLookup[[#This Row],[Alloc]]=\"IDU\",tblREGASSLookup[[#This Row],[Alloc]]=\"OR\",tblREGASSLookup[[#This Row],[Alloc]]=\"UT\",tblREGASSLookup[[#This Row],[Alloc]]=\"WYU\",tblREGASSLookup[[#This Row],[Alloc]]=\"WYP\",tblREGASSLookup[[#This Row],[Alloc]]=\"CA\",tblREGASSLookup[[#This Row],[Alloc]]=\"WA\"),\"SITUS\",tblREGASSLookup[[#This Row],[Alloc]])","v":"SITUS"},"ESD"]
[{"$f":"CONCATENATE(tblREGASSLookup[[#This Row],[Primary Account]],tblREGASSLookup[[#This Row],[Primary Name]],tblREGASSLookup[[#This Row],[Secondary Acct]],tblREGASSLookup[[#This Row],[Secondary  Name]],tblREGASSLookup[[#This Row],[Alloc4FUNC]])","v":"1823910ENVIR CST UNDR AMORT104219Bridger Plant - FGD Pond 2-WASITUS"},1823910,"ENVIR CST UNDR AMORT",104219,"Bridger Plant - FGD Pond 2-WA","WA",null,{"$f":"IF(OR(tblREGASSLookup[[#This Row],[Alloc]]=\"IDU\",tblREGASSLookup[[#This Row],[Alloc]]=\"OR\",tblREGASSLookup[[#This Row],[Alloc]]=\"UT\",tblREGASSLookup[[#This Row],[Alloc]]=\"WYU\",tblREGASSLookup[[#This Row],[Alloc]]=\"WYP\",tblREGASSLookup[[#This Row],[Alloc]]=\"CA\",tblREGASSLookup[[#This Row],[Alloc]]=\"WA\"),\"SITUS\",tblREGASSLookup[[#This Row],[Alloc]])","v":"SITUS"},"ESD"]
[{"$f":"CONCATENATE(tblREGASSLookup[[#This Row],[Primary Account]],tblREGASSLookup[[#This Row],[Primary Name]],tblREGASSLookup[[#This Row],[Secondary Acct]],tblREGASSLookup[[#This Row],[Secondary  Name]],tblREGASSLookup[[#This Row],[Alloc4FUNC]])","v":"1823910ENVIR CST UNDR AMORT104220Bridger Plant Oil Spills-2018SITUS"},1823910,"ENVIR CST UNDR AMORT",104220,"Bridger Plant Oil Spills-2018","WA",null,{"$f":"IF(OR(tblREGASSLookup[[#This Row],[Alloc]]=\"IDU\",tblREGASSLookup[[#This Row],[Alloc]]=\"OR\",tblREGASSLookup[[#This Row],[Alloc]]=\"UT\",tblREGASSLookup[[#This Row],[Alloc]]=\"WYU\",tblREGASSLookup[[#This Row],[Alloc]]=\"WYP\",tblREGASSLookup[[#This Row],[Alloc]]=\"CA\",tblREGASSLookup[[#This Row],[Alloc]]=\"WA\"),\"SITUS\",tblREGASSLookup[[#This Row],[Alloc]])","v":"SITUS"},"ESD"]
[{"$f":"CONCATENATE(tblREGASSLookup[[#This Row],[Primary Account]],tblREGASSLookup[[#This Row],[Primary Name]],tblREGASSLookup[[#This Row],[Secondary Acct]],tblREGASSLookup[[#This Row],[Secondary  Name]],tblREGASSLookup[[#This Row],[Alloc4FUNC]])","v":"1823910ENVIR CST UNDR AMORT104221Carbon Ash Spill  (UT) - WASITUS"},1823910,"ENVIR CST UNDR AMORT",104221,"Carbon Ash Spill  (UT) - WA","WA",null,{"$f":"IF(OR(tblREGASSLookup[[#This Row],[Alloc]]=\"IDU\",tblREGASSLookup[[#This Row],[Alloc]]=\"OR\",tblREGASSLookup[[#This Row],[Alloc]]=\"UT\",tblREGASSLookup[[#This Row],[Alloc]]=\"WYU\",tblREGASSLookup[[#This Row],[Alloc]]=\"WYP\",tblREGASSLookup[[#This Row],[Alloc]]=\"CA\",tblREGASSLookup[[#This Row],[Alloc]]=\"WA\"),\"SITUS\",tblREGASSLookup[[#This Row],[Alloc]])","v":"SITUS"},"ESD"]
[{"$f":"CONCATENATE(tblREGASSLookup[[#This Row],[Primary Account]],tblREGASSLookup[[#This Row],[Primary Name]],tblREGASSLookup[[#This Row],[Secondary Acct]],tblREGASSLookup[[#This Row],[Secondary  Name]],tblREGASSLookup[[#This Row],[Alloc4FUNC]])","v":"1823910ENVIR CST UNDR AMORT104222Cedar Steam - WASITUS"},1823910,"ENVIR CST UNDR AMORT",104222,"Cedar Steam - WA","WA",null,{"$f":"IF(OR(tblREGASSLookup[[#This Row],[Alloc]]=\"IDU\",tblREGASSLookup[[#This Row],[Alloc]]=\"OR\",tblREGASSLookup[[#This Row],[Alloc]]=\"UT\",tblREGASSLookup[[#This Row],[Alloc]]=\"WYU\",tblREGASSLookup[[#This Row],[Alloc]]=\"WYP\",tblREGASSLookup[[#This Row],[Alloc]]=\"CA\",tblREGASSLookup[[#This Row],[Alloc]]=\"WA\"),\"SITUS\",tblREGASSLookup[[#This Row],[Alloc]])","v":"SITUS"},"ESD"]
[{"$f":"CONCATENATE(tblREGASSLookup[[#This Row],[Primary Account]],tblREGASSLookup[[#This Row],[Primary Name]],tblREGASSLookup[[#This Row],[Secondary Acct]],tblREGASSLookup[[#This Row],[Secondary  Name]],tblREGASSLookup[[#This Row],[Alloc4FUNC]])","v":"1823910ENVIR CST UNDR AMORT104225DJ Oil Spill - WASITUS"},1823910,"ENVIR CST UNDR AMORT",104225,"DJ Oil Spill - WA","WA",null,{"$f":"IF(OR(tblREGASSLookup[[#This Row],[Alloc]]=\"IDU\",tblREGASSLookup[[#This Row],[Alloc]]=\"OR\",tblREGASSLookup[[#This Row],[Alloc]]=\"UT\",tblREGASSLookup[[#This Row],[Alloc]]=\"WYU\",tblREGASSLookup[[#This Row],[Alloc]]=\"WYP\",tblREGASSLookup[[#This Row],[Alloc]]=\"CA\",tblREGASSLookup[[#This Row],[Alloc]]=\"WA\"),\"SITUS\",tblREGASSLookup[[#This Row],[Alloc]])","v":"SITUS"},"ESD"]
[{"$f":"CONCATENATE(tblREGASSLookup[[#This Row],[Primary Account]],tblREGASSLookup[[#This Row],[Primary Name]],tblREGASSLookup[[#This Row],[Secondary Acct]],tblREGASSLookup[[#This Row],[Secondary  Name]],tblREGASSLookup[[#This Row],[Alloc4FUNC]])","v":"1823910ENVIR CST UNDR AMORT104226DJ 4A&4B - WASITUS"},1823910,"ENVIR CST UNDR AMORT",104226,"DJ 4A&4B - WA","WA",null,{"$f":"IF(OR(tblREGASSLookup[[#This Row],[Alloc]]=\"IDU\",tblREGASSLookup[[#This Row],[Alloc]]=\"OR\",tblREGASSLookup[[#This Row],[Alloc]]=\"UT\",tblREGASSLookup[[#This Row],[Alloc]]=\"WYU\",tblREGASSLookup[[#This Row],[Alloc]]=\"WYP\",tblREGASSLookup[[#This Row],[Alloc]]=\"CA\",tblREGASSLookup[[#This Row],[Alloc]]=\"WA\"),\"SITUS\",tblREGASSLookup[[#This Row],[Alloc]])","v":"SITUS"},"ESD"]
[{"$f":"CONCATENATE(tblREGASSLookup[[#This Row],[Primary Account]],tblREGASSLookup[[#This Row],[Primary Name]],tblREGASSLookup[[#This Row],[Secondary Acct]],tblREGASSLookup[[#This Row],[Secondary  Name]],tblREGASSLookup[[#This Row],[Alloc4FUNC]])","v":"1823910ENVIR CST UNDR AMORT104227Eugene MGP (50%PCRP) - WASITUS"},1823910,"ENVIR CST UNDR AMORT",104227,"Eugene MGP (50%PCRP) - WA","WA",null,{"$f":"IF(OR(tblREGASSLookup[[#This Row],[Alloc]]=\"IDU\",tblREGASSLookup[[#This Row],[Alloc]]=\"OR\",tblREGASSLookup[[#This Row],[Alloc]]=\"UT\",tblREGASSLookup[[#This Row],[Alloc]]=\"WYU\",tblREGASSLookup[[#This Row],[Alloc]]=\"WYP\",tblREGASSLookup[[#This Row],[Alloc]]=\"CA\",tblREGASSLookup[[#This Row],[Alloc]]=\"WA\"),\"SITUS\",tblREGASSLookup[[#This Row],[Alloc]])","v":"SITUS"},"ESD"]
[{"$f":"CONCATENATE(tblREGASSLookup[[#This Row],[Primary Account]],tblREGASSLookup[[#This Row],[Primary Name]],tblREGASSLookup[[#This Row],[Secondary Acct]],tblREGASSLookup[[#This Row],[Secondary  Name]],tblREGASSLookup[[#This Row],[Alloc4FUNC]])","v":"1823910ENVIR CST UNDR AMORT104228Everett MGP (2/3 PCRP) - WASITUS"},1823910,"ENVIR CST UNDR AMORT",104228,"Everett MGP (2/3 PCRP) - WA","WA",null,{"$f":"IF(OR(tblREGASSLookup[[#This Row],[Alloc]]=\"IDU\",tblREGASSLookup[[#This Row],[Alloc]]=\"OR\",tblREGASSLookup[[#This Row],[Alloc]]=\"UT\",tblREGASSLookup[[#This Row],[Alloc]]=\"WYU\",tblREGASSLookup[[#This Row],[Alloc]]=\"WYP\",tblREGASSLookup[[#This Row],[Alloc]]=\"CA\",tblREGASSLookup[[#This Row],[Alloc]]=\"WA\"),\"SITUS\",tblREGASSLookup[[#This Row],[Alloc]])","v":"SITUS"},"ESD"]
[{"$f":"CONCATENATE(tblREGASSLookup[[#This Row],[Primary Account]],tblREGASSLookup[[#This Row],[Primary Name]],tblREGASSLookup[[#This Row],[Secondary Acct]],tblREGASSLookup[[#This Row],[Secondary  Name]],tblREGASSLookup[[#This Row],[Alloc4FUNC]])","v":"1823910ENVIR CST UNDR AMORT104229Hunter Plant - WASITUS"},1823910,"ENVIR CST UNDR AMORT",104229,"Hunter Plant - WA","WA",null,{"$f":"IF(OR(tblREGASSLookup[[#This Row],[Alloc]]=\"IDU\",tblREGASSLookup[[#This Row],[Alloc]]=\"OR\",tblREGASSLookup[[#This Row],[Alloc]]=\"UT\",tblREGASSLookup[[#This Row],[Alloc]]=\"WYU\",tblREGASSLookup[[#This Row],[Alloc]]=\"WYP\",tblREGASSLookup[[#This Row],[Alloc]]=\"CA\",tblREGASSLookup[[#This Row],[Alloc]]=\"WA\"),\"SITUS\",tblREGASSLookup[[#This Row],[Alloc]])","v":"SITUS"},"ESD"]
[{"$f":"CONCATENATE(tblREGASSLookup[[#This Row],[Primary Account]],tblREGASSLookup[[#This Row],[Primary Name]],tblREGASSLookup[[#This Row],[Secondary Acct]],tblREGASSLookup[[#This Row],[Secondary  Name]],tblREGASSLookup[[#This Row],[Alloc4FUNC]])","v":"1823910ENVIR CST UNDR AMORT104230Huntington Ash- WASITUS"},1823910,"ENVIR CST UNDR AMORT",104230,"Huntington Ash- WA","WA",null,{"$f":"IF(OR(tblREGASSLookup[[#This Row],[Alloc]]=\"IDU\",tblREGASSLookup[[#This Row],[Alloc]]=\"OR\",tblREGASSLookup[[#This Row],[Alloc]]=\"UT\",tblREGASSLookup[[#This Row],[Alloc]]=\"WYU\",tblREGASSLookup[[#This Row],[Alloc]]=\"WYP\",tblREGASSLookup[[#This Row],[Alloc]]=\"CA\",tblREGASSLookup[[#This Row],[Alloc]]=\"WA\"),\"SITUS\",tblREGASSLookup[[#This Row],[Alloc]])","v":"SITUS"},"ESD"]
[{"$f":"CONCATENATE(tblREGASSLookup[[#This Row],[Primary Account]],tblREGASSLookup[[#This Row],[Primary Name]],tblREGASSLookup[[#This Row],[Secondary Acct]],tblREGASSLookup[[#This Row],[Secondary  Name]],tblREGASSLookup[[#This Row],[Alloc4FUNC]])","v":"1823910ENVIR CST UNDR AMORT104231Idaho Falls Pole Yard- WASITUS"},1823910,"ENVIR CST UNDR AMORT",104231,"Idaho Falls Pole Yard- WA","WA",null,{"$f":"IF(OR(tblREGASSLookup[[#This Row],[Alloc]]=\"IDU\",tblREGASSLookup[[#This Row],[Alloc]]=\"OR\",tblREGASSLookup[[#This Row],[Alloc]]=\"UT\",tblREGASSLookup[[#This Row],[Alloc]]=\"WYU\",tblREGASSLookup[[#This Row],[Alloc]]=\"WYP\",tblREGASSLookup[[#This Row],[Alloc]]=\"CA\",tblREGASSLookup[[#This Row],[Alloc]]=\"WA\"),\"SITUS\",tblREGASSLookup[[#This Row],[Alloc]])","v":"SITUS"},"ESD"]
[{"$f":"CONCATENATE(tblREGASSLookup[[#This Row],[Primary Account]],tblREGASSLookup[[#This Row],[Primary Name]],tblREGASSLookup[[#This Row],[Secondary Acct]],tblREGASSLookup[[#This Row],[Secondary  Name]],tblREGASSLookup[[#This Row],[Alloc4FUNC]])","v":"1823910ENVIR CST UNDR AMORT104232Jordan Plant Substation- WASITUS"},1823910,"ENVIR CST UNDR AMORT",104232,"Jordan Plant Substation- WA","WA",null,{"$f":"IF(OR(tblREGASSLookup[[#This Row],[Alloc]]=\"IDU\",tblREGASSLookup[[#This Row],[Alloc]]=\"OR\",tblREGASSLookup[[#This Row],[Alloc]]=\"UT\",tblREGASSLookup[[#This Row],[Alloc]]=\"WYU\",tblREGASSLookup[[#This Row],[Alloc]]=\"WYP\",tblREGASSLookup[[#This Row],[Alloc]]=\"CA\",tblREGASSLookup[[#This Row],[Alloc]]=\"WA\"),\"SITUS\",tblREGASSLookup[[#This Row],[Alloc]])","v":"SITUS"},"ESD"]
[{"$f":"CONCATENATE(tblREGASSLookup[[#This Row],[Primary Account]],tblREGASSLookup[[#This Row],[Primary Name]],tblREGASSLookup[[#This Row],[Secondary Acct]],tblREGASSLookup[[#This Row],[Secondary  Name]],tblREGASSLookup[[#This Row],[Alloc4FUNC]])","v":"1823910ENVIR CST UNDR AMORT104233Montague Ranch - WASITUS"},1823910,"ENVIR CST UNDR AMORT",104233,"Montague Ranch - WA","WA",null,{"$f":"IF(OR(tblREGASSLookup[[#This Row],[Alloc]]=\"IDU\",tblREGASSLookup[[#This Row],[Alloc]]=\"OR\",tblREGASSLookup[[#This Row],[Alloc]]=\"UT\",tblREGASSLookup[[#This Row],[Alloc]]=\"WYU\",tblREGASSLookup[[#This Row],[Alloc]]=\"WYP\",tblREGASSLookup[[#This Row],[Alloc]]=\"CA\",tblREGASSLookup[[#This Row],[Alloc]]=\"WA\"),\"SITUS\",tblREGASSLookup[[#This Row],[Alloc]])","v":"SITUS"},"ESD"]
[{"$f":"CONCATENATE(tblREGASSLookup[[#This Row],[Primary Account]],tblREGASSLookup[[#This Row],[Primary Name]],tblREGASSLookup[[#This Row],[Secondary Acct]],tblREGASSLookup[[#This Row],[Secondary  Name]],tblREGASSLookup[[#This Row],[Alloc4FUNC]])","v":"1823910ENVIR CST UNDR AMORT104234Naughton Plant FGDP 1 - WASITUS"},1823910,"ENVIR CST UNDR AMORT",104234,"Naughton Plant FGDP 1 - WA","WA",null,{"$f":"IF(OR(tblREGASSLookup[[#This Row],[Alloc]]=\"IDU\",tblREGASSLookup[[#This Row],[Alloc]]=\"OR\",tblREGASSLookup[[#This Row],[Alloc]]=\"UT\",tblREGASSLookup[[#This Row],[Alloc]]=\"WYU\",tblREGASSLookup[[#This Row],[Alloc]]=\"WYP\",tblREGASSLookup[[#This Row],[Alloc]]=\"CA\",tblREGASSLookup[[#This Row],[Alloc]]=\"WA\"),\"SITUS\",tblREGASSLookup[[#This Row],[Alloc]])","v":"SITUS"},"ESD"]
[{"$f":"CONCATENATE(tblREGASSLookup[[#This Row],[Primary Account]],tblREGASSLookup[[#This Row],[Primary Name]],tblREGASSLookup[[#This Row],[Secondary Acct]],tblREGASSLookup[[#This Row],[Secondary  Name]],tblREGASSLookup[[#This Row],[Alloc4FUNC]])","v":"1823910ENVIR CST UNDR AMORT104235Naughton Plant FGDP 2 - WASITUS"},1823910,"ENVIR CST UNDR AMORT",104235,"Naughton Plant FGDP 2 - WA","WA",null,{"$f":"IF(OR(tblREGASSLookup[[#This Row],[Alloc]]=\"IDU\",tblREGASSLookup[[#This Row],[Alloc]]=\"OR\",tblREGASSLookup[[#This Row],[Alloc]]=\"UT\",tblREGASSLookup[[#This Row],[Alloc]]=\"WYU\",tblREGASSLookup[[#This Row],[Alloc]]=\"WYP\",tblREGASSLookup[[#This Row],[Alloc]]=\"CA\",tblREGASSLookup[[#This Row],[Alloc]]=\"WA\"),\"SITUS\",tblREGASSLookup[[#This Row],[Alloc]])","v":"SITUS"},"ESD"]
[{"$f":"CONCATENATE(tblREGASSLookup[[#This Row],[Primary Account]],tblREGASSLookup[[#This Row],[Primary Name]],tblREGASSLookup[[#This Row],[Secondary Acct]],tblREGASSLookup[[#This Row],[Secondary  Name]],tblREGASSLookup[[#This Row],[Alloc4FUNC]])","v":"1823910ENVIR CST UNDR AMORT104236Naughton Plant FGDP Closure - WASITUS"},1823910,"ENVIR CST UNDR AMORT",104236,"Naughton Plant FGDP Closure - WA","WA",null,{"$f":"IF(OR(tblREGASSLookup[[#This Row],[Alloc]]=\"IDU\",tblREGASSLookup[[#This Row],[Alloc]]=\"OR\",tblREGASSLookup[[#This Row],[Alloc]]=\"UT\",tblREGASSLookup[[#This Row],[Alloc]]=\"WYU\",tblREGASSLookup[[#This Row],[Alloc]]=\"WYP\",tblREGASSLookup[[#This Row],[Alloc]]=\"CA\",tblREGASSLookup[[#This Row],[Alloc]]=\"WA\"),\"SITUS\",tblREGASSLookup[[#This Row],[Alloc]])","v":"SITUS"},"ESD"]
[{"$f":"CONCATENATE(tblREGASSLookup[[#This Row],[Primary Account]],tblREGASSLookup[[#This Row],[Primary Name]],tblREGASSLookup[[#This Row],[Secondary Acct]],tblREGASSLookup[[#This Row],[Secondary  Name]],tblREGASSLookup[[#This Row],[Alloc4FUNC]])","v":"1823910ENVIR CST UNDR AMORT104239Naughton South Ash Pond - WASITUS"},1823910,"ENVIR CST UNDR AMORT",104239,"Naughton South Ash Pond - WA","WA",null,{"$f":"IF(OR(tblREGASSLookup[[#This Row],[Alloc]]=\"IDU\",tblREGASSLookup[[#This Row],[Alloc]]=\"OR\",tblREGASSLookup[[#This Row],[Alloc]]=\"UT\",tblREGASSLookup[[#This Row],[Alloc]]=\"WYU\",tblREGASSLookup[[#This Row],[Alloc]]=\"WYP\",tblREGASSLookup[[#This Row],[Alloc]]=\"CA\",tblREGASSLookup[[#This Row],[Alloc]]=\"WA\"),\"SITUS\",tblREGASSLookup[[#This Row],[Alloc]])","v":"SITUS"},"ESD"]
[{"$f":"CONCATENATE(tblREGASSLookup[[#This Row],[Primary Account]],tblREGASSLookup[[#This Row],[Primary Name]],tblREGASSLookup[[#This Row],[Secondary Acct]],tblREGASSLookup[[#This Row],[Secondary  Name]],tblREGASSLookup[[#This Row],[Alloc4FUNC]])","v":"1823910ENVIR CST UNDR AMORT104240Ogden MGP - WASITUS"},1823910,"ENVIR CST UNDR AMORT",104240,"Ogden MGP - WA","WA",null,{"$f":"IF(OR(tblREGASSLookup[[#This Row],[Alloc]]=\"IDU\",tblREGASSLookup[[#This Row],[Alloc]]=\"OR\",tblREGASSLookup[[#This Row],[Alloc]]=\"UT\",tblREGASSLookup[[#This Row],[Alloc]]=\"WYU\",tblREGASSLookup[[#This Row],[Alloc]]=\"WYP\",tblREGASSLookup[[#This Row],[Alloc]]=\"CA\",tblREGASSLookup[[#This Row],[Alloc]]=\"WA\"),\"SITUS\",tblREGASSLookup[[#This Row],[Alloc]])","v":"SITUS"},"ESD"]
[{"$f":"CONCATENATE(tblREGASSLookup[[#This Row],[Primary Account]],tblREGASSLookup[[#This Row],[Primary Name]],tblREGASSLookup[[#This Row],[Secondary Acct]],tblREGASSLookup[[#This Row],[Secondary  Name]],tblREGASSLookup[[#This Row],[Alloc4FUNC]])","v":"1823910ENVIR CST UNDR AMORT104241Olympia - WASITUS"},1823910,"ENVIR CST UNDR AMORT",104241,"Olympia - WA","WA",null,{"$f":"IF(OR(tblREGASSLookup[[#This Row],[Alloc]]=\"IDU\",tblREGASSLookup[[#This Row],[Alloc]]=\"OR\",tblREGASSLookup[[#This Row],[Alloc]]=\"UT\",tblREGASSLookup[[#This Row],[Alloc]]=\"WYU\",tblREGASSLookup[[#This Row],[Alloc]]=\"WYP\",tblREGASSLookup[[#This Row],[Alloc]]=\"CA\",tblREGASSLookup[[#This Row],[Alloc]]=\"WA\"),\"SITUS\",tblREGASSLookup[[#This Row],[Alloc]])","v":"SITUS"},"ESD"]
[{"$f":"CONCATENATE(tblREGASSLookup[[#This Row],[Primary Account]],tblREGASSLookup[[#This Row],[Primary Name]],tblREGASSLookup[[#This Row],[Secondary Acct]],tblREGASSLookup[[#This Row],[Secondary  Name]],tblREGASSLookup[[#This Row],[Alloc4FUNC]])","v":"1823910ENVIR CST UNDR AMORT104242Portland Harbor Srce Cntrl - WASITUS"},1823910,"ENVIR CST UNDR AMORT",104242,"Portland Harbor Srce Cntrl - WA","WA",null,{"$f":"IF(OR(tblREGASSLookup[[#This Row],[Alloc]]=\"IDU\",tblREGASSLookup[[#This Row],[Alloc]]=\"OR\",tblREGASSLookup[[#This Row],[Alloc]]=\"UT\",tblREGASSLookup[[#This Row],[Alloc]]=\"WYU\",tblREGASSLookup[[#This Row],[Alloc]]=\"WYP\",tblREGASSLookup[[#This Row],[Alloc]]=\"CA\",tblREGASSLookup[[#This Row],[Alloc]]=\"WA\"),\"SITUS\",tblREGASSLookup[[#This Row],[Alloc]])","v":"SITUS"},"ESD"]
[{"$f":"CONCATENATE(tblREGASSLookup[[#This Row],[Primary Account]],tblREGASSLookup[[#This Row],[Primary Name]],tblREGASSLookup[[#This Row],[Secondary Acct]],tblREGASSLookup[[#This Row],[Secondary  Name]],tblREGASSLookup[[#This Row],[Alloc4FUNC]])","v":"1823910ENVIR CST UNDR AMORT104244Silver Bell/Telluride - WASITUS"},1823910,"ENVIR CST UNDR AMORT",104244,"Silver Bell/Telluride - WA","WA",null,{"$f":"IF(OR(tblREGASSLookup[[#This Row],[Alloc]]=\"IDU\",tblREGASSLookup[[#This Row],[Alloc]]=\"OR\",tblREGASSLookup[[#This Row],[Alloc]]=\"UT\",tblREGASSLookup[[#This Row],[Alloc]]=\"WYU\",tblREGASSLookup[[#This Row],[Alloc]]=\"WYP\",tblREGASSLookup[[#This Row],[Alloc]]=\"CA\",tblREGASSLookup[[#This Row],[Alloc]]=\"WA\"),\"SITUS\",tblREGASSLookup[[#This Row],[Alloc]])","v":"SITUS"},"ESD"]
[{"$f":"CONCATENATE(tblREGASSLookup[[#This Row],[Primary Account]],tblREGASSLookup[[#This Row],[Primary Name]],tblREGASSLookup[[#This Row],[Secondary Acct]],tblREGASSLookup[[#This Row],[Secondary  Name]],tblREGASSLookup[[#This Row],[Alloc4FUNC]])","v":"1823910ENVIR CST UNDR AMORT104245Tacoma A St. (25% PCRP) - WASITUS"},1823910,"ENVIR CST UNDR AMORT",104245,"Tacoma A St. (25% PCRP) - WA","WA",null,{"$f":"IF(OR(tblREGASSLookup[[#This Row],[Alloc]]=\"IDU\",tblREGASSLookup[[#This Row],[Alloc]]=\"OR\",tblREGASSLookup[[#This Row],[Alloc]]=\"UT\",tblREGASSLookup[[#This Row],[Alloc]]=\"WYU\",tblREGASSLookup[[#This Row],[Alloc]]=\"WYP\",tblREGASSLookup[[#This Row],[Alloc]]=\"CA\",tblREGASSLookup[[#This Row],[Alloc]]=\"WA\"),\"SITUS\",tblREGASSLookup[[#This Row],[Alloc]])","v":"SITUS"},"ESD"]
[{"$f":"CONCATENATE(tblREGASSLookup[[#This Row],[Primary Account]],tblREGASSLookup[[#This Row],[Primary Name]],tblREGASSLookup[[#This Row],[Secondary Acct]],tblREGASSLookup[[#This Row],[Secondary  Name]],tblREGASSLookup[[#This Row],[Alloc4FUNC]])","v":"1823910ENVIR CST UNDR AMORT104246Utah Metal East - WASITUS"},1823910,"ENVIR CST UNDR AMORT",104246,"Utah Metal East - WA","WA",null,{"$f":"IF(OR(tblREGASSLookup[[#This Row],[Alloc]]=\"IDU\",tblREGASSLookup[[#This Row],[Alloc]]=\"OR\",tblREGASSLookup[[#This Row],[Alloc]]=\"UT\",tblREGASSLookup[[#This Row],[Alloc]]=\"WYU\",tblREGASSLookup[[#This Row],[Alloc]]=\"WYP\",tblREGASSLookup[[#This Row],[Alloc]]=\"CA\",tblREGASSLookup[[#This Row],[Alloc]]=\"WA\"),\"SITUS\",tblREGASSLookup[[#This Row],[Alloc]])","v":"SITUS"},"ESD"]
[{"$f":"CONCATENATE(tblREGASSLookup[[#This Row],[Primary Account]],tblREGASSLookup[[#This Row],[Primary Name]],tblREGASSLookup[[#This Row],[Secondary Acct]],tblREGASSLookup[[#This Row],[Secondary  Name]],tblREGASSLookup[[#This Row],[Alloc4FUNC]])","v":"1823910ENVIR CST UNDR AMORT104247Wyodak Oil Spill - WASITUS"},1823910,"ENVIR CST UNDR AMORT",104247,"Wyodak Oil Spill - WA","WA",null,{"$f":"IF(OR(tblREGASSLookup[[#This Row],[Alloc]]=\"IDU\",tblREGASSLookup[[#This Row],[Alloc]]=\"OR\",tblREGASSLookup[[#This Row],[Alloc]]=\"UT\",tblREGASSLookup[[#This Row],[Alloc]]=\"WYU\",tblREGASSLookup[[#This Row],[Alloc]]=\"WYP\",tblREGASSLookup[[#This Row],[Alloc]]=\"CA\",tblREGASSLookup[[#This Row],[Alloc]]=\"WA\"),\"SITUS\",tblREGASSLookup[[#This Row],[Alloc]])","v":"SITUS"},"ESD"]
[{"$f":"CONCATENATE(tblREGASSLookup[[#This Row],[Primary Account]],tblREGASSLookup[[#This Row],[Primary Name]],tblREGASSLookup[[#This Row],[Secondary Acct]],tblREGASSLookup[[#This Row],[Secondary  Name]],tblREGASSLookup[[#This Row],[Alloc4FUNC]])","v":"1823910ENVIR CST UNDR AMORT104268Rocky Mountain - WASITUS"},1823910,"ENVIR CST UNDR AMORT",104268,"Rocky Mountain - WA","WA",null,{"$f":"IF(OR(tblREGASSLookup[[#This Row],[Alloc]]=\"IDU\",tblREGASSLookup[[#This Row],[Alloc]]=\"OR\",tblREGASSLookup[[#This Row],[Alloc]]=\"UT\",tblREGASSLookup[[#This Row],[Alloc]]=\"WYU\",tblREGASSLookup[[#This Row],[Alloc]]=\"WYP\",tblREGASSLookup[[#This Row],[Alloc]]=\"CA\",tblREGASSLookup[[#This Row],[Alloc]]=\"WA\"),\"SITUS\",tblREGASSLookup[[#This Row],[Alloc]])","v":"SITUS"},"ESD"]
[{"$f":"CONCATENATE(tblREGASSLookup[[#This Row],[Primary Account]],tblREGASSLookup[[#This Row],[Primary Name]],tblREGASSLookup[[#This Row],[Secondary Acct]],tblREGASSLookup[[#This Row],[Secondary  Name]],tblREGASSLookup[[#This Row],[Alloc4FUNC]])","v":"1823910ENVIR CST UNDR AMORT104269Pac Power - WASITUS"},1823910,"ENVIR CST UNDR AMORT",104269,"Pac Power - WA","WA",null,{"$f":"IF(OR(tblREGASSLookup[[#This Row],[Alloc]]=\"IDU\",tblREGASSLookup[[#This Row],[Alloc]]=\"OR\",tblREGASSLookup[[#This Row],[Alloc]]=\"UT\",tblREGASSLookup[[#This Row],[Alloc]]=\"WYU\",tblREGASSLookup[[#This Row],[Alloc]]=\"WYP\",tblREGASSLookup[[#This Row],[Alloc]]=\"CA\",tblREGASSLookup[[#This Row],[Alloc]]=\"WA\"),\"SITUS\",tblREGASSLookup[[#This Row],[Alloc]])","v":"SITUS"},"ESD"]
[{"$f":"CONCATENATE(tblREGASSLookup[[#This Row],[Primary Account]],tblREGASSLookup[[#This Row],[Primary Name]],tblREGASSLookup[[#This Row],[Secondary Acct]],tblREGASSLookup[[#This Row],[Secondary  Name]],tblREGASSLookup[[#This Row],[Alloc4FUNC]])","v":"1823910ENVIR CST UNDR AMORT104296NTO Parking Lot-Asbestos 2018SO"},1823910,"ENVIR CST UNDR AMORT",104296,"NTO Parking Lot-Asbestos 2018","SO",null,{"$f":"IF(OR(tblREGASSLookup[[#This Row],[Alloc]]=\"IDU\",tblREGASSLookup[[#This Row],[Alloc]]=\"OR\",tblREGASSLookup[[#This Row],[Alloc]]=\"UT\",tblREGASSLookup[[#This Row],[Alloc]]=\"WYU\",tblREGASSLookup[[#This Row],[Alloc]]=\"WYP\",tblREGASSLookup[[#This Row],[Alloc]]=\"CA\",tblREGASSLookup[[#This Row],[Alloc]]=\"WA\"),\"SITUS\",tblREGASSLookup[[#This Row],[Alloc]])","v":"SO"},"ESD"]
[{"$f":"CONCATENATE(tblREGASSLookup[[#This Row],[Primary Account]],tblREGASSLookup[[#This Row],[Primary Name]],tblREGASSLookup[[#This Row],[Secondary Acct]],tblREGASSLookup[[#This Row],[Secondary  Name]],tblREGASSLookup[[#This Row],[Alloc4FUNC]])","v":"1823910ENVIR CST UNDR AMORT104297NTO Parking Lot Asbestos - WA 2018SITUS"},1823910,"ENVIR CST UNDR AMORT",104297,"NTO Parking Lot Asbestos - WA 2018","WA",null,{"$f":"IF(OR(tblREGASSLookup[[#This Row],[Alloc]]=\"IDU\",tblREGASSLookup[[#This Row],[Alloc]]=\"OR\",tblREGASSLookup[[#This Row],[Alloc]]=\"UT\",tblREGASSLookup[[#This Row],[Alloc]]=\"WYU\",tblREGASSLookup[[#This Row],[Alloc]]=\"WYP\",tblREGASSLookup[[#This Row],[Alloc]]=\"CA\",tblREGASSLookup[[#This Row],[Alloc]]=\"WA\"),\"SITUS\",tblREGASSLookup[[#This Row],[Alloc]])","v":"SITUS"},"ESD"]
[{"$f":"CONCATENATE(tblREGASSLookup[[#This Row],[Primary Account]],tblREGASSLookup[[#This Row],[Primary Name]],tblREGASSLookup[[#This Row],[Secondary Acct]],tblREGASSLookup[[#This Row],[Secondary  Name]],tblREGASSLookup[[#This Row],[Alloc4FUNC]])","v":"1823700OTH REGA-ENERGY WEST186829Contra RA-DCM Closure-Royalties AmortzSITUS"},1823700,"OTH REGA-ENERGY WEST",186829,"Contra RA-DCM Closure-Royalties Amortz","WYU",null,{"$f":"IF(OR(tblREGASSLookup[[#This Row],[Alloc]]=\"IDU\",tblREGASSLookup[[#This Row],[Alloc]]=\"OR\",tblREGASSLookup[[#This Row],[Alloc]]=\"UT\",tblREGASSLookup[[#This Row],[Alloc]]=\"WYU\",tblREGASSLookup[[#This Row],[Alloc]]=\"WYP\",tblREGASSLookup[[#This Row],[Alloc]]=\"CA\",tblREGASSLookup[[#This Row],[Alloc]]=\"WA\"),\"SITUS\",tblREGASSLookup[[#This Row],[Alloc]])","v":"SITUS"},"P"]
[{"$f":"CONCATENATE(tblREGASSLookup[[#This Row],[Primary Account]],tblREGASSLookup[[#This Row],[Primary Name]],tblREGASSLookup[[#This Row],[Secondary Acct]],tblREGASSLookup[[#This Row],[Secondary  Name]],tblREGASSLookup[[#This Row],[Alloc4FUNC]])","v":"1823870DEFERRED PENSION187018CONTRA FAS 158 PENSION REG ASSETSO"},1823870,"DEFERRED PENSION",187018,"CONTRA FAS 158 PENSION REG ASSET","SO",null,{"$f":"IF(OR(tblREGASSLookup[[#This Row],[Alloc]]=\"IDU\",tblREGASSLookup[[#This Row],[Alloc]]=\"OR\",tblREGASSLookup[[#This Row],[Alloc]]=\"UT\",tblREGASSLookup[[#This Row],[Alloc]]=\"WYU\",tblREGASSLookup[[#This Row],[Alloc]]=\"WYP\",tblREGASSLookup[[#This Row],[Alloc]]=\"CA\",tblREGASSLookup[[#This Row],[Alloc]]=\"WA\"),\"SITUS\",tblREGASSLookup[[#This Row],[Alloc]])","v":"SO"},"LABOR"]
[{"$f":"CONCATENATE(tblREGASSLookup[[#This Row],[Primary Account]],tblREGASSLookup[[#This Row],[Primary Name]],tblREGASSLookup[[#This Row],[Secondary Acct]],tblREGASSLookup[[#This Row],[Secondary  Name]],tblREGASSLookup[[#This Row],[Alloc4FUNC]])","v":"1823910ENVIR CST UNDR AMORT104203Colstrip PondSO"},1823910,"ENVIR CST UNDR AMORT",104203,"Colstrip Pond","SO",null,{"$f":"IF(OR(tblREGASSLookup[[#This Row],[Alloc]]=\"IDU\",tblREGASSLookup[[#This Row],[Alloc]]=\"OR\",tblREGASSLookup[[#This Row],[Alloc]]=\"UT\",tblREGASSLookup[[#This Row],[Alloc]]=\"WYU\",tblREGASSLookup[[#This Row],[Alloc]]=\"WYP\",tblREGASSLookup[[#This Row],[Alloc]]=\"CA\",tblREGASSLookup[[#This Row],[Alloc]]=\"WA\"),\"SITUS\",tblREGASSLookup[[#This Row],[Alloc]])","v":"SO"},"ESD"]
[{"$f":"CONCATENATE(tblREGASSLookup[[#This Row],[Primary Account]],tblREGASSLookup[[#This Row],[Primary Name]],tblREGASSLookup[[#This Row],[Secondary Acct]],tblREGASSLookup[[#This Row],[Secondary  Name]],tblREGASSLookup[[#This Row],[Alloc4FUNC]])","v":"1823910ENVIR CST UNDR AMORT104204Cholla Ash-Flyash PondSO"},1823910,"ENVIR CST UNDR AMORT",104204,"Cholla Ash-Flyash Pond","SO",null,{"$f":"IF(OR(tblREGASSLookup[[#This Row],[Alloc]]=\"IDU\",tblREGASSLookup[[#This Row],[Alloc]]=\"OR\",tblREGASSLookup[[#This Row],[Alloc]]=\"UT\",tblREGASSLookup[[#This Row],[Alloc]]=\"WYU\",tblREGASSLookup[[#This Row],[Alloc]]=\"WYP\",tblREGASSLookup[[#This Row],[Alloc]]=\"CA\",tblREGASSLookup[[#This Row],[Alloc]]=\"WA\"),\"SITUS\",tblREGASSLookup[[#This Row],[Alloc]])","v":"SO"},"ESD"]
[{"$f":"CONCATENATE(tblREGASSLookup[[#This Row],[Primary Account]],tblREGASSLookup[[#This Row],[Primary Name]],tblREGASSLookup[[#This Row],[Secondary Acct]],tblREGASSLookup[[#This Row],[Secondary  Name]],tblREGASSLookup[[#This Row],[Alloc4FUNC]])","v":"1823910ENVIR CST UNDR AMORT104223Colstrip Pond - WASITUS"},1823910,"ENVIR CST UNDR AMORT",104223,"Colstrip Pond - WA","WA",null,{"$f":"IF(OR(tblREGASSLookup[[#This Row],[Alloc]]=\"IDU\",tblREGASSLookup[[#This Row],[Alloc]]=\"OR\",tblREGASSLookup[[#This Row],[Alloc]]=\"UT\",tblREGASSLookup[[#This Row],[Alloc]]=\"WYU\",tblREGASSLookup[[#This Row],[Alloc]]=\"WYP\",tblREGASSLookup[[#This Row],[Alloc]]=\"CA\",tblREGASSLookup[[#This Row],[Alloc]]=\"WA\"),\"SITUS\",tblREGASSLookup[[#This Row],[Alloc]])","v":"SITUS"},"ESD"]
[{"$f":"CONCATENATE(tblREGASSLookup[[#This Row],[Primary Account]],tblREGASSLookup[[#This Row],[Primary Name]],tblREGASSLookup[[#This Row],[Secondary Acct]],tblREGASSLookup[[#This Row],[Secondary  Name]],tblREGASSLookup[[#This Row],[Alloc4FUNC]])","v":"1823910ENVIR CST UNDR AMORT104224Cholla Ash - WASITUS"},1823910,"ENVIR CST UNDR AMORT",104224,"Cholla Ash - WA","WA",null,{"$f":"IF(OR(tblREGASSLookup[[#This Row],[Alloc]]=\"IDU\",tblREGASSLookup[[#This Row],[Alloc]]=\"OR\",tblREGASSLookup[[#This Row],[Alloc]]=\"UT\",tblREGASSLookup[[#This Row],[Alloc]]=\"WYU\",tblREGASSLookup[[#This Row],[Alloc]]=\"WYP\",tblREGASSLookup[[#This Row],[Alloc]]=\"CA\",tblREGASSLookup[[#This Row],[Alloc]]=\"WA\"),\"SITUS\",tblREGASSLookup[[#This Row],[Alloc]])","v":"SITUS"},"ESD"]
[{"$f":"CONCATENATE(tblREGASSLookup[[#This Row],[Primary Account]],tblREGASSLookup[[#This Row],[Primary Name]],tblREGASSLookup[[#This Row],[Secondary Acct]],tblREGASSLookup[[#This Row],[Secondary  Name]],tblREGASSLookup[[#This Row],[Alloc4FUNC]])","v":"1823990OTHR REG ASSET-N CST186147RegA - DSM - UT - Reclass to CurrentOTHER"},1823990,"OTHR REG ASSET-N CST",186147,"RegA - DSM - UT - Reclass to Current","OTHER",null,{"$f":"IF(OR(tblREGASSLookup[[#This Row],[Alloc]]=\"IDU\",tblREGASSLookup[[#This Row],[Alloc]]=\"OR\",tblREGASSLookup[[#This Row],[Alloc]]=\"UT\",tblREGASSLookup[[#This Row],[Alloc]]=\"WYU\",tblREGASSLookup[[#This Row],[Alloc]]=\"WYP\",tblREGASSLookup[[#This Row],[Alloc]]=\"CA\",tblREGASSLookup[[#This Row],[Alloc]]=\"WA\"),\"SITUS\",tblREGASSLookup[[#This Row],[Alloc]])","v":"OTHER"},"P"]
[{"$f":"CONCATENATE(tblREGASSLookup[[#This Row],[Primary Account]],tblREGASSLookup[[#This Row],[Primary Name]],tblREGASSLookup[[#This Row],[Secondary Acct]],tblREGASSLookup[[#This Row],[Secondary  Name]],tblREGASSLookup[[#This Row],[Alloc4FUNC]])","v":"1823990OTHR REG ASSET-N CST187420RegA - OR Community SolarOTHER"},1823990,"OTHR REG ASSET-N CST",187420,"RegA - OR Community Solar","OTHER",null,{"$f":"IF(OR(tblREGASSLookup[[#This Row],[Alloc]]=\"IDU\",tblREGASSLookup[[#This Row],[Alloc]]=\"OR\",tblREGASSLookup[[#This Row],[Alloc]]=\"UT\",tblREGASSLookup[[#This Row],[Alloc]]=\"WYU\",tblREGASSLookup[[#This Row],[Alloc]]=\"WYP\",tblREGASSLookup[[#This Row],[Alloc]]=\"CA\",tblREGASSLookup[[#This Row],[Alloc]]=\"WA\"),\"SITUS\",tblREGASSLookup[[#This Row],[Alloc]])","v":"OTHER"},"P"]
[{"$f":"CONCATENATE(tblREGASSLookup[[#This Row],[Primary Account]],tblREGASSLookup[[#This Row],[Primary Name]],tblREGASSLookup[[#This Row],[Secondary Acct]],tblREGASSLookup[[#This Row],[Secondary  Name]],tblREGASSLookup[[#This Row],[Alloc4FUNC]])","v":"1823990OTHR REG ASSET-N CST187664RegA-WA Transp Electrification PilotOTHER"},1823990,"OTHR REG ASSET-N CST",187664,"RegA-WA Transp Electrification Pilot","OTHER",null,{"$f":"IF(OR(tblREGASSLookup[[#This Row],[Alloc]]=\"IDU\",tblREGASSLookup[[#This Row],[Alloc]]=\"OR\",tblREGASSLookup[[#This Row],[Alloc]]=\"UT\",tblREGASSLookup[[#This Row],[Alloc]]=\"WYU\",tblREGASSLookup[[#This Row],[Alloc]]=\"WYP\",tblREGASSLookup[[#This Row],[Alloc]]=\"CA\",tblREGASSLookup[[#This Row],[Alloc]]=\"WA\"),\"SITUS\",tblREGASSLookup[[#This Row],[Alloc]])","v":"OTHER"},"P"]
[{"$f":"CONCATENATE(tblREGASSLookup[[#This Row],[Primary Account]],tblREGASSLookup[[#This Row],[Primary Name]],tblREGASSLookup[[#This Row],[Secondary Acct]],tblREGASSLookup[[#This Row],[Secondary  Name]],tblREGASSLookup[[#This Row],[Alloc4FUNC]])","v":"1823990OTHR REG ASSET-N CST187869Reg Asset - WY RRA CY2019OTHER"},1823990,"OTHR REG ASSET-N CST",187869,"Reg Asset - WY RRA CY2019","OTHER",null,{"$f":"IF(OR(tblREGASSLookup[[#This Row],[Alloc]]=\"IDU\",tblREGASSLookup[[#This Row],[Alloc]]=\"OR\",tblREGASSLookup[[#This Row],[Alloc]]=\"UT\",tblREGASSLookup[[#This Row],[Alloc]]=\"WYU\",tblREGASSLookup[[#This Row],[Alloc]]=\"WYP\",tblREGASSLookup[[#This Row],[Alloc]]=\"CA\",tblREGASSLookup[[#This Row],[Alloc]]=\"WA\"),\"SITUS\",tblREGASSLookup[[#This Row],[Alloc]])","v":"OTHER"},"P"]
[{"$f":"CONCATENATE(tblREGASSLookup[[#This Row],[Primary Account]],tblREGASSLookup[[#This Row],[Primary Name]],tblREGASSLookup[[#This Row],[Secondary Acct]],tblREGASSLookup[[#This Row],[Secondary  Name]],tblREGASSLookup[[#This Row],[Alloc4FUNC]])","v":"1823990OTHR REG ASSET-N CST187880Reg Asset - UT RBA CY2019OTHER"},1823990,"OTHR REG ASSET-N CST",187880,"Reg Asset - UT RBA CY2019","OTHER",null,{"$f":"IF(OR(tblREGASSLookup[[#This Row],[Alloc]]=\"IDU\",tblREGASSLookup[[#This Row],[Alloc]]=\"OR\",tblREGASSLookup[[#This Row],[Alloc]]=\"UT\",tblREGASSLookup[[#This Row],[Alloc]]=\"WYU\",tblREGASSLookup[[#This Row],[Alloc]]=\"WYP\",tblREGASSLookup[[#This Row],[Alloc]]=\"CA\",tblREGASSLookup[[#This Row],[Alloc]]=\"WA\"),\"SITUS\",tblREGASSLookup[[#This Row],[Alloc]])","v":"OTHER"},"P"]
[{"$f":"CONCATENATE(tblREGASSLookup[[#This Row],[Primary Account]],tblREGASSLookup[[#This Row],[Primary Name]],tblREGASSLookup[[#This Row],[Secondary Acct]],tblREGASSLookup[[#This Row],[Secondary  Name]],tblREGASSLookup[[#This Row],[Alloc4FUNC]])","v":"1823990OTHR REG ASSET-N CST189502Reg Asset - CA ECAC CY2020OTHER"},1823990,"OTHR REG ASSET-N CST",189502,"Reg Asset - CA ECAC CY2020","OTHER",null,{"$f":"IF(OR(tblREGASSLookup[[#This Row],[Alloc]]=\"IDU\",tblREGASSLookup[[#This Row],[Alloc]]=\"OR\",tblREGASSLookup[[#This Row],[Alloc]]=\"UT\",tblREGASSLookup[[#This Row],[Alloc]]=\"WYU\",tblREGASSLookup[[#This Row],[Alloc]]=\"WYP\",tblREGASSLookup[[#This Row],[Alloc]]=\"CA\",tblREGASSLookup[[#This Row],[Alloc]]=\"WA\"),\"SITUS\",tblREGASSLookup[[#This Row],[Alloc]])","v":"OTHER"},"P"]
[{"$f":"CONCATENATE(tblREGASSLookup[[#This Row],[Primary Account]],tblREGASSLookup[[#This Row],[Primary Name]],tblREGASSLookup[[#This Row],[Secondary Acct]],tblREGASSLookup[[#This Row],[Secondary  Name]],tblREGASSLookup[[#This Row],[Alloc4FUNC]])","v":"1823990OTHR REG ASSET-N CST189503Contra Reg Asset - CA ECAC CY2020OTHER"},1823990,"OTHR REG ASSET-N CST",189503,"Contra Reg Asset - CA ECAC CY2020","OTHER",null,{"$f":"IF(OR(tblREGASSLookup[[#This Row],[Alloc]]=\"IDU\",tblREGASSLookup[[#This Row],[Alloc]]=\"OR\",tblREGASSLookup[[#This Row],[Alloc]]=\"UT\",tblREGASSLookup[[#This Row],[Alloc]]=\"WYU\",tblREGASSLookup[[#This Row],[Alloc]]=\"WYP\",tblREGASSLookup[[#This Row],[Alloc]]=\"CA\",tblREGASSLookup[[#This Row],[Alloc]]=\"WA\"),\"SITUS\",tblREGASSLookup[[#This Row],[Alloc]])","v":"OTHER"},"P"]
[{"$f":"CONCATENATE(tblREGASSLookup[[#This Row],[Primary Account]],tblREGASSLookup[[#This Row],[Primary Name]],tblREGASSLookup[[#This Row],[Secondary Acct]],tblREGASSLookup[[#This Row],[Secondary  Name]],tblREGASSLookup[[#This Row],[Alloc4FUNC]])","v":"1823990OTHR REG ASSET-N CST189504Reg Asset - CA ECAC CY2021OTHER"},1823990,"OTHR REG ASSET-N CST",189504,"Reg Asset - CA ECAC CY2021","OTHER",null,{"$f":"IF(OR(tblREGASSLookup[[#This Row],[Alloc]]=\"IDU\",tblREGASSLookup[[#This Row],[Alloc]]=\"OR\",tblREGASSLookup[[#This Row],[Alloc]]=\"UT\",tblREGASSLookup[[#This Row],[Alloc]]=\"WYU\",tblREGASSLookup[[#This Row],[Alloc]]=\"WYP\",tblREGASSLookup[[#This Row],[Alloc]]=\"CA\",tblREGASSLookup[[#This Row],[Alloc]]=\"WA\"),\"SITUS\",tblREGASSLookup[[#This Row],[Alloc]])","v":"OTHER"},"P"]
[{"$f":"CONCATENATE(tblREGASSLookup[[#This Row],[Primary Account]],tblREGASSLookup[[#This Row],[Primary Name]],tblREGASSLookup[[#This Row],[Secondary Acct]],tblREGASSLookup[[#This Row],[Secondary  Name]],tblREGASSLookup[[#This Row],[Alloc4FUNC]])","v":"1823990OTHR REG ASSET-N CST189505Contra Reg Asset - CA ECAC CY2021OTHER"},1823990,"OTHR REG ASSET-N CST",189505,"Contra Reg Asset - CA ECAC CY2021","OTHER",null,{"$f":"IF(OR(tblREGASSLookup[[#This Row],[Alloc]]=\"IDU\",tblREGASSLookup[[#This Row],[Alloc]]=\"OR\",tblREGASSLookup[[#This Row],[Alloc]]=\"UT\",tblREGASSLookup[[#This Row],[Alloc]]=\"WYU\",tblREGASSLookup[[#This Row],[Alloc]]=\"WYP\",tblREGASSLookup[[#This Row],[Alloc]]=\"CA\",tblREGASSLookup[[#This Row],[Alloc]]=\"WA\"),\"SITUS\",tblREGASSLookup[[#This Row],[Alloc]])","v":"OTHER"},"P"]
[{"$f":"CONCATENATE(tblREGASSLookup[[#This Row],[Primary Account]],tblREGASSLookup[[#This Row],[Primary Name]],tblREGASSLookup[[#This Row],[Secondary Acct]],tblREGASSLookup[[#This Row],[Secondary  Name]],tblREGASSLookup[[#This Row],[Alloc4FUNC]])","v":"1823990OTHR REG ASSET-N CST189535Reg Asset-ID ECAM CY 2020OTHER"},1823990,"OTHR REG ASSET-N CST",189535,"Reg Asset-ID ECAM CY 2020","OTHER",null,{"$f":"IF(OR(tblREGASSLookup[[#This Row],[Alloc]]=\"IDU\",tblREGASSLookup[[#This Row],[Alloc]]=\"OR\",tblREGASSLookup[[#This Row],[Alloc]]=\"UT\",tblREGASSLookup[[#This Row],[Alloc]]=\"WYU\",tblREGASSLookup[[#This Row],[Alloc]]=\"WYP\",tblREGASSLookup[[#This Row],[Alloc]]=\"CA\",tblREGASSLookup[[#This Row],[Alloc]]=\"WA\"),\"SITUS\",tblREGASSLookup[[#This Row],[Alloc]])","v":"OTHER"},"P"]
[{"$f":"CONCATENATE(tblREGASSLookup[[#This Row],[Primary Account]],tblREGASSLookup[[#This Row],[Primary Name]],tblREGASSLookup[[#This Row],[Secondary Acct]],tblREGASSLookup[[#This Row],[Secondary  Name]],tblREGASSLookup[[#This Row],[Alloc4FUNC]])","v":"1823990OTHR REG ASSET-N CST189536Reg Asset-ID ECAM CY 2021OTHER"},1823990,"OTHR REG ASSET-N CST",189536,"Reg Asset-ID ECAM CY 2021","OTHER",null,{"$f":"IF(OR(tblREGASSLookup[[#This Row],[Alloc]]=\"IDU\",tblREGASSLookup[[#This Row],[Alloc]]=\"OR\",tblREGASSLookup[[#This Row],[Alloc]]=\"UT\",tblREGASSLookup[[#This Row],[Alloc]]=\"WYU\",tblREGASSLookup[[#This Row],[Alloc]]=\"WYP\",tblREGASSLookup[[#This Row],[Alloc]]=\"CA\",tblREGASSLookup[[#This Row],[Alloc]]=\"WA\"),\"SITUS\",tblREGASSLookup[[#This Row],[Alloc]])","v":"OTHER"},"P"]
[{"$f":"CONCATENATE(tblREGASSLookup[[#This Row],[Primary Account]],tblREGASSLookup[[#This Row],[Primary Name]],tblREGASSLookup[[#This Row],[Secondary Acct]],tblREGASSLookup[[#This Row],[Secondary  Name]],tblREGASSLookup[[#This Row],[Alloc4FUNC]])","v":"1823990OTHR REG ASSET-N CST189545Contra Reg Asset - ID ECAM CY 2020OTHER"},1823990,"OTHR REG ASSET-N CST",189545,"Contra Reg Asset - ID ECAM CY 2020","OTHER",null,{"$f":"IF(OR(tblREGASSLookup[[#This Row],[Alloc]]=\"IDU\",tblREGASSLookup[[#This Row],[Alloc]]=\"OR\",tblREGASSLookup[[#This Row],[Alloc]]=\"UT\",tblREGASSLookup[[#This Row],[Alloc]]=\"WYU\",tblREGASSLookup[[#This Row],[Alloc]]=\"WYP\",tblREGASSLookup[[#This Row],[Alloc]]=\"CA\",tblREGASSLookup[[#This Row],[Alloc]]=\"WA\"),\"SITUS\",tblREGASSLookup[[#This Row],[Alloc]])","v":"OTHER"},"P"]
[{"$f":"CONCATENATE(tblREGASSLookup[[#This Row],[Primary Account]],tblREGASSLookup[[#This Row],[Primary Name]],tblREGASSLookup[[#This Row],[Secondary Acct]],tblREGASSLookup[[#This Row],[Secondary  Name]],tblREGASSLookup[[#This Row],[Alloc4FUNC]])","v":"1823990OTHR REG ASSET-N CST189546Contra Reg Asset - ID ECAM CY 2021OTHER"},1823990,"OTHR REG ASSET-N CST",189546,"Contra Reg Asset - ID ECAM CY 2021","OTHER",null,{"$f":"IF(OR(tblREGASSLookup[[#This Row],[Alloc]]=\"IDU\",tblREGASSLookup[[#This Row],[Alloc]]=\"OR\",tblREGASSLookup[[#This Row],[Alloc]]=\"UT\",tblREGASSLookup[[#This Row],[Alloc]]=\"WYU\",tblREGASSLookup[[#This Row],[Alloc]]=\"WYP\",tblREGASSLookup[[#This Row],[Alloc]]=\"CA\",tblREGASSLookup[[#This Row],[Alloc]]=\"WA\"),\"SITUS\",tblREGASSLookup[[#This Row],[Alloc]])","v":"OTHER"},"P"]
[{"$f":"CONCATENATE(tblREGASSLookup[[#This Row],[Primary Account]],tblREGASSLookup[[#This Row],[Primary Name]],tblREGASSLookup[[#This Row],[Secondary Acct]],tblREGASSLookup[[#This Row],[Secondary  Name]],tblREGASSLookup[[#This Row],[Alloc4FUNC]])","v":"1823990OTHR REG ASSET-N CST189570Reg Asset - OR TAM CY2020OTHER"},1823990,"OTHR REG ASSET-N CST",189570,"Reg Asset - OR TAM CY2020","OTHER",null,{"$f":"IF(OR(tblREGASSLookup[[#This Row],[Alloc]]=\"IDU\",tblREGASSLookup[[#This Row],[Alloc]]=\"OR\",tblREGASSLookup[[#This Row],[Alloc]]=\"UT\",tblREGASSLookup[[#This Row],[Alloc]]=\"WYU\",tblREGASSLookup[[#This Row],[Alloc]]=\"WYP\",tblREGASSLookup[[#This Row],[Alloc]]=\"CA\",tblREGASSLookup[[#This Row],[Alloc]]=\"WA\"),\"SITUS\",tblREGASSLookup[[#This Row],[Alloc]])","v":"OTHER"},"P"]
[{"$f":"CONCATENATE(tblREGASSLookup[[#This Row],[Primary Account]],tblREGASSLookup[[#This Row],[Primary Name]],tblREGASSLookup[[#This Row],[Secondary Acct]],tblREGASSLookup[[#This Row],[Secondary  Name]],tblREGASSLookup[[#This Row],[Alloc4FUNC]])","v":"1823990OTHR REG ASSET-N CST189571Reg Asset - OR TAM CY2021OTHER"},1823990,"OTHR REG ASSET-N CST",189571,"Reg Asset - OR TAM CY2021","OTHER",null,{"$f":"IF(OR(tblREGASSLookup[[#This Row],[Alloc]]=\"IDU\",tblREGASSLookup[[#This Row],[Alloc]]=\"OR\",tblREGASSLookup[[#This Row],[Alloc]]=\"UT\",tblREGASSLookup[[#This Row],[Alloc]]=\"WYU\",tblREGASSLookup[[#This Row],[Alloc]]=\"WYP\",tblREGASSLookup[[#This Row],[Alloc]]=\"CA\",tblREGASSLookup[[#This Row],[Alloc]]=\"WA\"),\"SITUS\",tblREGASSLookup[[#This Row],[Alloc]])","v":"OTHER"},"P"]
[{"$f":"CONCATENATE(tblREGASSLookup[[#This Row],[Primary Account]],tblREGASSLookup[[#This Row],[Primary Name]],tblREGASSLookup[[#This Row],[Secondary Acct]],tblREGASSLookup[[#This Row],[Secondary  Name]],tblREGASSLookup[[#This Row],[Alloc4FUNC]])","v":"1823990OTHR REG ASSET-N CST189580Contra Reg Asset - OR TAM CY2020OTHER"},1823990,"OTHR REG ASSET-N CST",189580,"Contra Reg Asset - OR TAM CY2020","OTHER",null,{"$f":"IF(OR(tblREGASSLookup[[#This Row],[Alloc]]=\"IDU\",tblREGASSLookup[[#This Row],[Alloc]]=\"OR\",tblREGASSLookup[[#This Row],[Alloc]]=\"UT\",tblREGASSLookup[[#This Row],[Alloc]]=\"WYU\",tblREGASSLookup[[#This Row],[Alloc]]=\"WYP\",tblREGASSLookup[[#This Row],[Alloc]]=\"CA\",tblREGASSLookup[[#This Row],[Alloc]]=\"WA\"),\"SITUS\",tblREGASSLookup[[#This Row],[Alloc]])","v":"OTHER"},"P"]
[{"$f":"CONCATENATE(tblREGASSLookup[[#This Row],[Primary Account]],tblREGASSLookup[[#This Row],[Primary Name]],tblREGASSLookup[[#This Row],[Secondary Acct]],tblREGASSLookup[[#This Row],[Secondary  Name]],tblREGASSLookup[[#This Row],[Alloc4FUNC]])","v":"1823990OTHR REG ASSET-N CST189581Contra Reg Asset - OR TAM CY2021OTHER"},1823990,"OTHR REG ASSET-N CST",189581,"Contra Reg Asset - OR TAM CY2021","OTHER",null,{"$f":"IF(OR(tblREGASSLookup[[#This Row],[Alloc]]=\"IDU\",tblREGASSLookup[[#This Row],[Alloc]]=\"OR\",tblREGASSLookup[[#This Row],[Alloc]]=\"UT\",tblREGASSLookup[[#This Row],[Alloc]]=\"WYU\",tblREGASSLookup[[#This Row],[Alloc]]=\"WYP\",tblREGASSLookup[[#This Row],[Alloc]]=\"CA\",tblREGASSLookup[[#This Row],[Alloc]]=\"WA\"),\"SITUS\",tblREGASSLookup[[#This Row],[Alloc]])","v":"OTHER"},"P"]
[{"$f":"CONCATENATE(tblREGASSLookup[[#This Row],[Primary Account]],tblREGASSLookup[[#This Row],[Primary Name]],tblREGASSLookup[[#This Row],[Secondary Acct]],tblREGASSLookup[[#This Row],[Secondary  Name]],tblREGASSLookup[[#This Row],[Alloc4FUNC]])","v":"1823990OTHR REG ASSET-N CST189610Reg Asset - UT EBA CY2020OTHER"},1823990,"OTHR REG ASSET-N CST",189610,"Reg Asset - UT EBA CY2020","OTHER",null,{"$f":"IF(OR(tblREGASSLookup[[#This Row],[Alloc]]=\"IDU\",tblREGASSLookup[[#This Row],[Alloc]]=\"OR\",tblREGASSLookup[[#This Row],[Alloc]]=\"UT\",tblREGASSLookup[[#This Row],[Alloc]]=\"WYU\",tblREGASSLookup[[#This Row],[Alloc]]=\"WYP\",tblREGASSLookup[[#This Row],[Alloc]]=\"CA\",tblREGASSLookup[[#This Row],[Alloc]]=\"WA\"),\"SITUS\",tblREGASSLookup[[#This Row],[Alloc]])","v":"OTHER"},"P"]
[{"$f":"CONCATENATE(tblREGASSLookup[[#This Row],[Primary Account]],tblREGASSLookup[[#This Row],[Primary Name]],tblREGASSLookup[[#This Row],[Secondary Acct]],tblREGASSLookup[[#This Row],[Secondary  Name]],tblREGASSLookup[[#This Row],[Alloc4FUNC]])","v":"1823990OTHR REG ASSET-N CST189611Reg Asset - UT EBA CY2021OTHER"},1823990,"OTHR REG ASSET-N CST",189611,"Reg Asset - UT EBA CY2021","OTHER",null,{"$f":"IF(OR(tblREGASSLookup[[#This Row],[Alloc]]=\"IDU\",tblREGASSLookup[[#This Row],[Alloc]]=\"OR\",tblREGASSLookup[[#This Row],[Alloc]]=\"UT\",tblREGASSLookup[[#This Row],[Alloc]]=\"WYU\",tblREGASSLookup[[#This Row],[Alloc]]=\"WYP\",tblREGASSLookup[[#This Row],[Alloc]]=\"CA\",tblREGASSLookup[[#This Row],[Alloc]]=\"WA\"),\"SITUS\",tblREGASSLookup[[#This Row],[Alloc]])","v":"OTHER"},"P"]
[{"$f":"CONCATENATE(tblREGASSLookup[[#This Row],[Primary Account]],tblREGASSLookup[[#This Row],[Primary Name]],tblREGASSLookup[[#This Row],[Secondary Acct]],tblREGASSLookup[[#This Row],[Secondary  Name]],tblREGASSLookup[[#This Row],[Alloc4FUNC]])","v":"1823990OTHR REG ASSET-N CST189620Contra Reg Asset - UT EBA CY2020OTHER"},1823990,"OTHR REG ASSET-N CST",189620,"Contra Reg Asset - UT EBA CY2020","OTHER",null,{"$f":"IF(OR(tblREGASSLookup[[#This Row],[Alloc]]=\"IDU\",tblREGASSLookup[[#This Row],[Alloc]]=\"OR\",tblREGASSLookup[[#This Row],[Alloc]]=\"UT\",tblREGASSLookup[[#This Row],[Alloc]]=\"WYU\",tblREGASSLookup[[#This Row],[Alloc]]=\"WYP\",tblREGASSLookup[[#This Row],[Alloc]]=\"CA\",tblREGASSLookup[[#This Row],[Alloc]]=\"WA\"),\"SITUS\",tblREGASSLookup[[#This Row],[Alloc]])","v":"OTHER"},"P"]
[{"$f":"CONCATENATE(tblREGASSLookup[[#This Row],[Primary Account]],tblREGASSLookup[[#This Row],[Primary Name]],tblREGASSLookup[[#This Row],[Secondary Acct]],tblREGASSLookup[[#This Row],[Secondary  Name]],tblREGASSLookup[[#This Row],[Alloc4FUNC]])","v":"1823990OTHR REG ASSET-N CST189621Contra Reg Asset - UT EBA CY2021OTHER"},1823990,"OTHR REG ASSET-N CST",189621,"Contra Reg Asset - UT EBA CY2021","OTHER",null,{"$f":"IF(OR(tblREGASSLookup[[#This Row],[Alloc]]=\"IDU\",tblREGASSLookup[[#This Row],[Alloc]]=\"OR\",tblREGASSLookup[[#This Row],[Alloc]]=\"UT\",tblREGASSLookup[[#This Row],[Alloc]]=\"WYU\",tblREGASSLookup[[#This Row],[Alloc]]=\"WYP\",tblREGASSLookup[[#This Row],[Alloc]]=\"CA\",tblREGASSLookup[[#This Row],[Alloc]]=\"WA\"),\"SITUS\",tblREGASSLookup[[#This Row],[Alloc]])","v":"OTHER"},"P"]
[{"$f":"CONCATENATE(tblREGASSLookup[[#This Row],[Primary Account]],tblREGASSLookup[[#This Row],[Primary Name]],tblREGASSLookup[[#This Row],[Secondary Acct]],tblREGASSLookup[[#This Row],[Secondary  Name]],tblREGASSLookup[[#This Row],[Alloc4FUNC]])","v":"1823990OTHR REG ASSET-N CST189650Reg Asset - WY ECAM CY2020OTHER"},1823990,"OTHR REG ASSET-N CST",189650,"Reg Asset - WY ECAM CY2020","OTHER",null,{"$f":"IF(OR(tblREGASSLookup[[#This Row],[Alloc]]=\"IDU\",tblREGASSLookup[[#This Row],[Alloc]]=\"OR\",tblREGASSLookup[[#This Row],[Alloc]]=\"UT\",tblREGASSLookup[[#This Row],[Alloc]]=\"WYU\",tblREGASSLookup[[#This Row],[Alloc]]=\"WYP\",tblREGASSLookup[[#This Row],[Alloc]]=\"CA\",tblREGASSLookup[[#This Row],[Alloc]]=\"WA\"),\"SITUS\",tblREGASSLookup[[#This Row],[Alloc]])","v":"OTHER"},"P"]
[{"$f":"CONCATENATE(tblREGASSLookup[[#This Row],[Primary Account]],tblREGASSLookup[[#This Row],[Primary Name]],tblREGASSLookup[[#This Row],[Secondary Acct]],tblREGASSLookup[[#This Row],[Secondary  Name]],tblREGASSLookup[[#This Row],[Alloc4FUNC]])","v":"1823990OTHR REG ASSET-N CST189651Reg Asset - WY ECAM CY2021OTHER"},1823990,"OTHR REG ASSET-N CST",189651,"Reg Asset - WY ECAM CY2021","OTHER",null,{"$f":"IF(OR(tblREGASSLookup[[#This Row],[Alloc]]=\"IDU\",tblREGASSLookup[[#This Row],[Alloc]]=\"OR\",tblREGASSLookup[[#This Row],[Alloc]]=\"UT\",tblREGASSLookup[[#This Row],[Alloc]]=\"WYU\",tblREGASSLookup[[#This Row],[Alloc]]=\"WYP\",tblREGASSLookup[[#This Row],[Alloc]]=\"CA\",tblREGASSLookup[[#This Row],[Alloc]]=\"WA\"),\"SITUS\",tblREGASSLookup[[#This Row],[Alloc]])","v":"OTHER"},"P"]
[{"$f":"CONCATENATE(tblREGASSLookup[[#This Row],[Primary Account]],tblREGASSLookup[[#This Row],[Primary Name]],tblREGASSLookup[[#This Row],[Secondary Acct]],tblREGASSLookup[[#This Row],[Secondary  Name]],tblREGASSLookup[[#This Row],[Alloc4FUNC]])","v":"1823990OTHR REG ASSET-N CST189660Contra Reg Asset - WY ECAM CY2020OTHER"},1823990,"OTHR REG ASSET-N CST",189660,"Contra Reg Asset - WY ECAM CY2020","OTHER",null,{"$f":"IF(OR(tblREGASSLookup[[#This Row],[Alloc]]=\"IDU\",tblREGASSLookup[[#This Row],[Alloc]]=\"OR\",tblREGASSLookup[[#This Row],[Alloc]]=\"UT\",tblREGASSLookup[[#This Row],[Alloc]]=\"WYU\",tblREGASSLookup[[#This Row],[Alloc]]=\"WYP\",tblREGASSLookup[[#This Row],[Alloc]]=\"CA\",tblREGASSLookup[[#This Row],[Alloc]]=\"WA\"),\"SITUS\",tblREGASSLookup[[#This Row],[Alloc]])","v":"OTHER"},"P"]
[{"$f":"CONCATENATE(tblREGASSLookup[[#This Row],[Primary Account]],tblREGASSLookup[[#This Row],[Primary Name]],tblREGASSLookup[[#This Row],[Secondary Acct]],tblREGASSLookup[[#This Row],[Secondary  Name]],tblREGASSLookup[[#This Row],[Alloc4FUNC]])","v":"1823990OTHR REG ASSET-N CST189661Contra Reg Asset - WY ECAM CY2021OTHER"},1823990,"OTHR REG ASSET-N CST",189661,"Contra Reg Asset - WY ECAM CY2021","OTHER",null,{"$f":"IF(OR(tblREGASSLookup[[#This Row],[Alloc]]=\"IDU\",tblREGASSLookup[[#This Row],[Alloc]]=\"OR\",tblREGASSLookup[[#This Row],[Alloc]]=\"UT\",tblREGASSLookup[[#This Row],[Alloc]]=\"WYU\",tblREGASSLookup[[#This Row],[Alloc]]=\"WYP\",tblREGASSLookup[[#This Row],[Alloc]]=\"CA\",tblREGASSLookup[[#This Row],[Alloc]]=\"WA\"),\"SITUS\",tblREGASSLookup[[#This Row],[Alloc]])","v":"OTHER"},"P"]
[null,null,null,null,null,null,{"$f":"SUBTOTAL(109,tblREGASSLookup[Total ($000)])","v":0}]

{"sheet":"DDS June19data","index":24,"n_rows":90,"n_cols":10,"rows_kept":90,"cut":false,"hidden":false,"merged":[]}
["Concat","Primary Account","Primary Name","Secondary Acct","Secondary  Name","Alloc","Total ($000)","Alloc4FUNC","FUNC","Investigate?"]
[{"$f":"CONCATENATE(tblDDSJune19[[#This Row],[Primary Account]],tblDDSJune19[[#This Row],[Primary Name]],tblDDSJune19[[#This Row],[Secondary Acct]],tblDDSJune19[[#This Row],[Secondary  Name]],tblDDSJune19[[#This Row],[Alloc4FUNC]])","v":"1861000MS DEF DB-OTH WIP185016EMISSION REDUCTION CREDITS PURCHASEDSE"},1861000,"MS DEF DB-OTH WIP",185016,"EMISSION REDUCTION CREDITS PURCHASED","SE",2346.5100000000002,{"$f":"IF(OR(tblDDSJune19[[#This Row],[Alloc]]=\"IDU\",tblDDSJune19[[#This Row],[Alloc]]=\"OR\",tblDDSJune19[[#This Row],[Alloc]]=\"UT\",tblDDSJune19[[#This Row],[Alloc]]=\"WYU\",tblDDSJune19[[#This Row],[Alloc]]=\"WYP\",tblDDSJune19[[#This Row],[Alloc]]=\"CA\",tblDDSJune19[[#This Row],[Alloc]]=\"WA\"),\"SITUS\",tblDDSJune19[[#This Row],[Alloc]])","v":"SE"},{"$f":"INDEX(tblDDSLookup[FUNC],MATCH(tblDDSJune19[[#This Row],[Concat]],tblDDSLookup[Concat],0))","v":"P"},{"$f":"IF(tblDDSJune19[[#This Row],[Total ($000)]]=0,\"NO\",IF(ISNA(tblDDSJune19[[#This Row],[FUNC]]),\"YES\",IF(_xlfn.ISFORMULA(tblDDSJune19[[#This Row],[FUNC]]),\"NO\",\"YES\")))","v":"NO"}]
[{"$f":"CONCATENATE(tblDDSJune19[[#This Row],[Primary Account]],tblDDSJune19[[#This Row],[Primary Name]],tblDDSJune19[[#This Row],[Secondary Acct]],tblDDSJune19[[#This Row],[Secondary  Name]],tblDDSJune19[[#This Row],[Alloc4FUNC]])","v":"1861000MS DEF DB-OTH WIP185017ERCs - Impairment ReserveSE"},1861000,"MS DEF DB-OTH WIP",185017,"ERCs - Impairment Reserve","SE",-2040,{"$f":"IF(OR(tblDDSJune19[[#This Row],[Alloc]]=\"IDU\",tblDDSJune19[[#This Row],[Alloc]]=\"OR\",tblDDSJune19[[#This Row],[Alloc]]=\"UT\",tblDDSJune19[[#This Row],[Alloc]]=\"WYU\",tblDDSJune19[[#This Row],[Alloc]]=\"WYP\",tblDDSJune19[[#This Row],[Alloc]]=\"CA\",tblDDSJune19[[#This Row],[Alloc]]=\"WA\"),\"SITUS\",tblDDSJune19[[#This Row],[Alloc]])","v":"SE"},{"$f":"INDEX(tblDDSLookup[FUNC],MATCH(tblDDSJune19[[#This Row],[Concat]],tblDDSLookup[Concat],0))","v":"P"},{"$f":"IF(tblDDSJune19[[#This Row],[Total ($000)]]=0,\"NO\",IF(ISNA(tblDDSJune19[[#This Row],[FUNC]]),\"YES\",IF(_xlfn.ISFORMULA(tblDDSJune19[[#This Row],[FUNC]]),\"NO\",\"YES\")))","v":"NO"}]
[{"$f":"CONCATENATE(tblDDSJune19[[#This Row],[Primary Account]],tblDDSJune19[[#This Row],[Primary Name]],tblDDSJune19[[#This Row],[Secondary Acct]],tblDDSJune19[[#This Row],[Secondary  Name]],tblDDSJune19[[#This Row],[Alloc4FUNC]])","v":"1861200FINANCING COSTS DEFR185025FINANCING COST DEFERREDSO"},1861200,"FINANCING COSTS DEFR",185025,"FINANCING COST DEFERRED","SO",83.301147692307694,{"$f":"IF(OR(tblDDSJune19[[#This Row],[Alloc]]=\"IDU\",tblDDSJune19[[#This Row],[Alloc]]=\"OR\",tblDDSJune19[[#This Row],[Alloc]]=\"UT\",tblDDSJune19[[#This Row],[Alloc]]=\"WYU\",tblDDSJune19[[#This Row],[Alloc]]=\"WYP\",tblDDSJune19[[#This Row],[Alloc]]=\"CA\",tblDDSJune19[[#This Row],[Alloc]]=\"WA\"),\"SITUS\",tblDDSJune19[[#This Row],[Alloc]])","v":"SO"},{"$f":"INDEX(tblDDSLookup[FUNC],MATCH(tblDDSJune19[[#This Row],[Concat]],tblDDSLookup[Concat],0))","v":"PTD"},{"$f":"IF(tblDDSJune19[[#This Row],[Total ($000)]]=0,\"NO\",IF(ISNA(tblDDSJune19[[#This Row],[FUNC]]),\"YES\",IF(_xlfn.ISFORMULA(tblDDSJune19[[#This Row],[FUNC]]),\"NO\",\"YES\")))","v":"NO"}]
[{"$f":"CONCATENATE(tblDDSJune19[[#This Row],[Primary Account]],tblDDSJune19[[#This Row],[Primary Name]],tblDDSJune19[[#This Row],[Secondary Acct]],tblDDSJune19[[#This Row],[Secondary  Name]],tblDDSJune19[[#This Row],[Alloc4FUNC]])","v":"1861200FINANCING COSTS DEFR185026DEFERRED - S-3 SHELF REGISTRATION COSTSSO"},1861200,"FINANCING COSTS DEFR",185026,"DEFERRED - S-3 SHELF REGISTRATION COSTS","SO",216.236523846154,{"$f":"IF(OR(tblDDSJune19[[#This Row],[Alloc]]=\"IDU\",tblDDSJune19[[#This Row],[Alloc]]=\"OR\",tblDDSJune19[[#This Row],[Alloc]]=\"UT\",tblDDSJune19[[#This Row],[Alloc]]=\"WYU\",tblDDSJune19[[#This Row],[Alloc]]=\"WYP\",tblDDSJune19[[#This Row],[Alloc]]=\"CA\",tblDDSJune19[[#This Row],[Alloc]]=\"WA\"),\"SITUS\",tblDDSJune19[[#This Row],[Alloc]])","v":"SO"},{"$f":"INDEX(tblDDSLookup[FUNC],MATCH(tblDDSJune19[[#This Row],[Concat]],tblDDSLookup[Concat],0))","v":"PTD"},{"$f":"IF(tblDDSJune19[[#This Row],[Total ($000)]]=0,\"NO\",IF(ISNA(tblDDSJune19[[#This Row],[FUNC]]),\"YES\",IF(_xlfn.ISFORMULA(tblDDSJune19[[#This Row],[FUNC]]),\"NO\",\"YES\")))","v":"NO"}]
[{"$f":"CONCATENATE(tblDDSJune19[[#This Row],[Primary Account]],tblDDSJune19[[#This Row],[Primary Name]],tblDDSJune19[[#This Row],[Secondary Acct]],tblDDSJune19[[#This Row],[Secondary  Name]],tblDDSJune19[[#This Row],[Alloc4FUNC]])","v":"1861200FINANCING COSTS DEFR185027UNAMORTIZED CREDIT AGREEMENT COSTSOTHER"},1861200,"FINANCING COSTS DEFR",185027,"UNAMORTIZED CREDIT AGREEMENT COSTS","OTHER",1932.1073469230801,{"$f":"IF(OR(tblDDSJune19[[#This Row],[Alloc]]=\"IDU\",tblDDSJune19[[#This Row],[Alloc]]=\"OR\",tblDDSJune19[[#This Row],[Alloc]]=\"UT\",tblDDSJune19[[#This Row],[Alloc]]=\"WYU\",tblDDSJune19[[#This Row],[Alloc]]=\"WYP\",tblDDSJune19[[#This Row],[Alloc]]=\"CA\",tblDDSJune19[[#This Row],[Alloc]]=\"WA\"),\"SITUS\",tblDDSJune19[[#This Row],[Alloc]])","v":"OTHER"},{"$f":"INDEX(tblDDSLookup[FUNC],MATCH(tblDDSJune19[[#This Row],[Concat]],tblDDSLookup[Concat],0))","v":"PTD"},{"$f":"IF(tblDDSJune19[[#This Row],[Total ($000)]]=0,\"NO\",IF(ISNA(tblDDSJune19[[#This Row],[FUNC]]),\"YES\",IF(_xlfn.ISFORMULA(tblDDSJune19[[#This Row],[FUNC]]),\"NO\",\"YES\")))","v":"NO"}]
[{"$f":"CONCATENATE(tblDDSJune19[[#This Row],[Primary Account]],tblDDSJune19[[#This Row],[Primary Name]],tblDDSJune19[[#This Row],[Secondary Acct]],tblDDSJune19[[#This Row],[Secondary  Name]],tblDDSJune19[[#This Row],[Alloc4FUNC]])","v":"1861200FINANCING COSTS DEFR185028UNAMORTIZED PCRB LOC/SBBPA COSTSOTHER"},1861200,"FINANCING COSTS DEFR",185028,"UNAMORTIZED PCRB LOC/SBBPA COSTS","OTHER",0.743545384615385,{"$f":"IF(OR(tblDDSJune19[[#This Row],[Alloc]]=\"IDU\",tblDDSJune19[[#This Row],[Alloc]]=\"OR\",tblDDSJune19[[#This Row],[Alloc]]=\"UT\",tblDDSJune19[[#This Row],[Alloc]]=\"WYU\",tblDDSJune19[[#This Row],[Alloc]]=\"WYP\",tblDDSJune19[[#This Row],[Alloc]]=\"CA\",tblDDSJune19[[#This Row],[Alloc]]=\"WA\"),\"SITUS\",tblDDSJune19[[#This Row],[Alloc]])","v":"OTHER"},{"$f":"INDEX(tblDDSLookup[FUNC],MATCH(tblDDSJune19[[#This Row],[Concat]],tblDDSLookup[Concat],0))","v":"PTD"},{"$f":"IF(tblDDSJune19[[#This Row],[Total ($000)]]=0,\"NO\",IF(ISNA(tblDDSJune19[[#This Row],[FUNC]]),\"YES\",IF(_xlfn.ISFORMULA(tblDDSJune19[[#This Row],[FUNC]]),\"NO\",\"YES\")))","v":"NO"}]
[{"$f":"CONCATENATE(tblDDSJune19[[#This Row],[Primary Account]],tblDDSJune19[[#This Row],[Primary Name]],tblDDSJune19[[#This Row],[Secondary Acct]],tblDDSJune19[[#This Row],[Secondary  Name]],tblDDSJune19[[#This Row],[Alloc4FUNC]])","v":"1861200FINANCING COSTS DEFR185029UNAMORTIZED PCRB MADE CONVERSION COSTSOTHER"},1861200,"FINANCING COSTS DEFR",185029,"UNAMORTIZED PCRB MADE CONVERSION COSTS","OTHER",319.16831538461503,{"$f":"IF(OR(tblDDSJune19[[#This Row],[Alloc]]=\"IDU\",tblDDSJune19[[#This Row],[Alloc]]=\"OR\",tblDDSJune19[[#This Row],[Alloc]]=\"UT\",tblDDSJune19[[#This Row],[Alloc]]=\"WYU\",tblDDSJune19[[#This Row],[Alloc]]=\"WYP\",tblDDSJune19[[#This Row],[Alloc]]=\"CA\",tblDDSJune19[[#This Row],[Alloc]]=\"WA\"),\"SITUS\",tblDDSJune19[[#This Row],[Alloc]])","v":"OTHER"},{"$f":"INDEX(tblDDSLookup[FUNC],MATCH(tblDDSJune19[[#This Row],[Concat]],tblDDSLookup[Concat],0))","v":"PTD"},{"$f":"IF(tblDDSJune19[[#This Row],[Total ($000)]]=0,\"NO\",IF(ISNA(tblDDSJune19[[#This Row],[FUNC]]),\"YES\",IF(_xlfn.ISFORMULA(tblDDSJune19[[#This Row],[FUNC]]),\"NO\",\"YES\")))","v":"NO"}]
[{"$f":"CONCATENATE(tblDDSJune19[[#This Row],[Primary Account]],tblDDSJune19[[#This Row],[Primary Name]],tblDDSJune19[[#This Row],[Secondary Acct]],tblDDSJune19[[#This Row],[Secondary  Name]],tblDDSJune19[[#This Row],[Alloc4FUNC]])","v":"1861200FINANCING COSTS DEFR185030UNAMORTIZED '94 SERIES RESTRUCTURING COSOTHER"},1861200,"FINANCING COSTS DEFR",185030,"UNAMORTIZED '94 SERIES RESTRUCTURING COS","OTHER",342.82078000000001,{"$f":"IF(OR(tblDDSJune19[[#This Row],[Alloc]]=\"IDU\",tblDDSJune19[[#This Row],[Alloc]]=\"OR\",tblDDSJune19[[#This Row],[Alloc]]=\"UT\",tblDDSJune19[[#This Row],[Alloc]]=\"WYU\",tblDDSJune19[[#This Row],[Alloc]]=\"WYP\",tblDDSJune19[[#This Row],[Alloc]]=\"CA\",tblDDSJune19[[#This Row],[Alloc]]=\"WA\"),\"SITUS\",tblDDSJune19[[#This Row],[Alloc]])","v":"OTHER"},{"$f":"INDEX(tblDDSLookup[FUNC],MATCH(tblDDSJune19[[#This Row],[Concat]],tblDDSLookup[Concat],0))","v":"PTD"},{"$f":"IF(tblDDSJune19[[#This Row],[Total ($000)]]=0,\"NO\",IF(ISNA(tblDDSJune19[[#This Row],[FUNC]]),\"YES\",IF(_xlfn.ISFORMULA(tblDDSJune19[[#This Row],[FUNC]]),\"NO\",\"YES\")))","v":"NO"}]
[{"$f":"CONCATENATE(tblDDSJune19[[#This Row],[Primary Account]],tblDDSJune19[[#This Row],[Primary Name]],tblDDSJune19[[#This Row],[Secondary Acct]],tblDDSJune19[[#This Row],[Secondary  Name]],tblDDSJune19[[#This Row],[Alloc4FUNC]])","v":"1861310DEF N PD PRJ SPC WST184690Deferred Development CostsSG"},1861310,"DEF N PD PRJ SPC WST",184690,"Deferred Development Costs","SG",0,{"$f":"IF(OR(tblDDSJune19[[#This Row],[Alloc]]=\"IDU\",tblDDSJune19[[#This Row],[Alloc]]=\"OR\",tblDDSJune19[[#This Row],[Alloc]]=\"UT\",tblDDSJune19[[#This Row],[Alloc]]=\"WYU\",tblDDSJune19[[#This Row],[Alloc]]=\"WYP\",tblDDSJune19[[#This Row],[Alloc]]=\"CA\",tblDDSJune19[[#This Row],[Alloc]]=\"WA\"),\"SITUS\",tblDDSJune19[[#This Row],[Alloc]])","v":"SG"},{"$f":"INDEX(tblDDSLookup[FUNC],MATCH(tblDDSJune19[[#This Row],[Concat]],tblDDSLookup[Concat],0))","v":{"$error":"#N/A"}},{"$f":"IF(tblDDSJune19[[#This Row],[Total ($000)]]=0,\"NO\",IF(ISNA(tblDDSJune19[[#This Row],[FUNC]]),\"YES\",IF(_xlfn.ISFORMULA(tblDDSJune19[[#This Row],[FUNC]]),\"NO\",\"YES\")))","v":"NO"}]
[{"$f":"CONCATENATE(tblDDSJune19[[#This Row],[Primary Account]],tblDDSJune19[[#This Row],[Primary Name]],tblDDSJune19[[#This Row],[Secondary Acct]],tblDDSJune19[[#This Row],[Secondary  Name]],tblDDSJune19[[#This Row],[Alloc4FUNC]])","v":"1862000DEF REGULATORY EXP184500DEFERRED REGULATORY EXPENSESITUS"},1862000,"DEF REGULATORY EXP",184500,"DEFERRED REGULATORY EXPENSE","IDU",0,{"$f":"IF(OR(tblDDSJune19[[#This Row],[Alloc]]=\"IDU\",tblDDSJune19[[#This Row],[Alloc]]=\"OR\",tblDDSJune19[[#This Row],[Alloc]]=\"UT\",tblDDSJune19[[#This Row],[Alloc]]=\"WYU\",tblDDSJune19[[#This Row],[Alloc]]=\"WYP\",tblDDSJune19[[#This Row],[Alloc]]=\"CA\",tblDDSJune19[[#This Row],[Alloc]]=\"WA\"),\"SITUS\",tblDDSJune19[[#This Row],[Alloc]])","v":"SITUS"},{"$f":"INDEX(tblDDSLookup[FUNC],MATCH(tblDDSJune19[[#This Row],[Concat]],tblDDSLookup[Concat],0))","v":{"$error":"#N/A"}},{"$f":"IF(tblDDSJune19[[#This Row],[Total ($000)]]=0,\"NO\",IF(ISNA(tblDDSJune19[[#This Row],[FUNC]]),\"YES\",IF(_xlfn.ISFORMULA(tblDDSJune19[[#This Row],[FUNC]]),\"NO\",\"YES\")))","v":"NO"}]
[{"$f":"CONCATENATE(tblDDSJune19[[#This Row],[Primary Account]],tblDDSJune19[[#This Row],[Primary Name]],tblDDSJune19[[#This Row],[Secondary Acct]],tblDDSJune19[[#This Row],[Secondary  Name]],tblDDSJune19[[#This Row],[Alloc4FUNC]])","v":"1863500ENVIRONMENTAL DEFFED188498ENVIRONMENTAL DEFERREDSO"},1863500,"ENVIRONMENTAL DEFFED",188498,"ENVIRONMENTAL DEFERRED","SO",0,{"$f":"IF(OR(tblDDSJune19[[#This Row],[Alloc]]=\"IDU\",tblDDSJune19[[#This Row],[Alloc]]=\"OR\",tblDDSJune19[[#This Row],[Alloc]]=\"UT\",tblDDSJune19[[#This Row],[Alloc]]=\"WYU\",tblDDSJune19[[#This Row],[Alloc]]=\"WYP\",tblDDSJune19[[#This Row],[Alloc]]=\"CA\",tblDDSJune19[[#This Row],[Alloc]]=\"WA\"),\"SITUS\",tblDDSJune19[[#This Row],[Alloc]])","v":"SO"},{"$f":"INDEX(tblDDSLookup[FUNC],MATCH(tblDDSJune19[[#This Row],[Concat]],tblDDSLookup[Concat],0))","v":{"$error":"#N/A"}},{"$f":"IF(tblDDSJune19[[#This Row],[Total ($000)]]=0,\"NO\",IF(ISNA(tblDDSJune19[[#This Row],[FUNC]]),\"YES\",IF(_xlfn.ISFORMULA(tblDDSJune19[[#This Row],[FUNC]]),\"NO\",\"YES\")))","v":"NO"}]
[{"$f":"CONCATENATE(tblDDSJune19[[#This Row],[Primary Account]],tblDDSJune19[[#This Row],[Primary Name]],tblDDSJune19[[#This Row],[Secondary Acct]],tblDDSJune19[[#This Row],[Secondary  Name]],tblDDSJune19[[#This Row],[Alloc4FUNC]])","v":"1865000DEF COAL MINE COSTS134200Deferred Longwall CostsSE"},1865000,"DEF COAL MINE COSTS",134200,"Deferred Longwall Costs","SE",0,{"$f":"IF(OR(tblDDSJune19[[#This Row],[Alloc]]=\"IDU\",tblDDSJune19[[#This Row],[Alloc]]=\"OR\",tblDDSJune19[[#This Row],[Alloc]]=\"UT\",tblDDSJune19[[#This Row],[Alloc]]=\"WYU\",tblDDSJune19[[#This Row],[Alloc]]=\"WYP\",tblDDSJune19[[#This Row],[Alloc]]=\"CA\",tblDDSJune19[[#This Row],[Alloc]]=\"WA\"),\"SITUS\",tblDDSJune19[[#This Row],[Alloc]])","v":"SE"},{"$f":"INDEX(tblDDSLookup[FUNC],MATCH(tblDDSJune19[[#This Row],[Concat]],tblDDSLookup[Concat],0))","v":{"$error":"#N/A"}},{"$f":"IF(tblDDSJune19[[#This Row],[Total ($000)]]=0,\"NO\",IF(ISNA(tblDDSJune19[[#This Row],[FUNC]]),\"YES\",IF(_xlfn.ISFORMULA(tblDDSJune19[[#This Row],[FUNC]]),\"NO\",\"YES\")))","v":"NO"}]
[{"$f":"CONCATENATE(tblDDSJune19[[#This Row],[Primary Account]],tblDDSJune19[[#This Row],[Primary Name]],tblDDSJune19[[#This Row],[Secondary Acct]],tblDDSJune19[[#This Row],[Secondary  Name]],tblDDSJune19[[#This Row],[Alloc4FUNC]])","v":"1865000DEF COAL MINE COSTS184401CMC DEFERRED STRIPPING/INPIT INVENTORYSE"},1865000,"DEF COAL MINE COSTS",184401,"CMC DEFERRED STRIPPING/INPIT INVENTORY","SE",0,{"$f":"IF(OR(tblDDSJune19[[#This Row],[Alloc]]=\"IDU\",tblDDSJune19[[#This Row],[Alloc]]=\"OR\",tblDDSJune19[[#This Row],[Alloc]]=\"UT\",tblDDSJune19[[#This Row],[Alloc]]=\"WYU\",tblDDSJune19[[#This Row],[Alloc]]=\"WYP\",tblDDSJune19[[#This Row],[Alloc]]=\"CA\",tblDDSJune19[[#This Row],[Alloc]]=\"WA\"),\"SITUS\",tblDDSJune19[[#This Row],[Alloc]])","v":"SE"},{"$f":"INDEX(tblDDSLookup[FUNC],MATCH(tblDDSJune19[[#This Row],[Concat]],tblDDSLookup[Concat],0))","v":{"$error":"#N/A"}},{"$f":"IF(tblDDSJune19[[#This Row],[Total ($000)]]=0,\"NO\",IF(ISNA(tblDDSJune19[[#This Row],[FUNC]]),\"YES\",IF(_xlfn.ISFORMULA(tblDDSJune19[[#This Row],[FUNC]]),\"NO\",\"YES\")))","v":"NO"}]
[{"$f":"CONCATENATE(tblDDSJune19[[#This Row],[Primary Account]],tblDDSJune19[[#This Row],[Primary Name]],tblDDSJune19[[#This Row],[Secondary Acct]],tblDDSJune19[[#This Row],[Secondary  Name]],tblDDSJune19[[#This Row],[Alloc4FUNC]])","v":"1865000DEF COAL MINE COSTS184402CMC PACIFIC DEFERRED STRIPPINGSE"},1865000,"DEF COAL MINE COSTS",184402,"CMC PACIFIC DEFERRED STRIPPING","SE",0,{"$f":"IF(OR(tblDDSJune19[[#This Row],[Alloc]]=\"IDU\",tblDDSJune19[[#This Row],[Alloc]]=\"OR\",tblDDSJune19[[#This Row],[Alloc]]=\"UT\",tblDDSJune19[[#This Row],[Alloc]]=\"WYU\",tblDDSJune19[[#This Row],[Alloc]]=\"WYP\",tblDDSJune19[[#This Row],[Alloc]]=\"CA\",tblDDSJune19[[#This Row],[Alloc]]=\"WA\"),\"SITUS\",tblDDSJune19[[#This Row],[Alloc]])","v":"SE"},{"$f":"INDEX(tblDDSLookup[FUNC],MATCH(tblDDSJune19[[#This Row],[Concat]],tblDDSLookup[Concat],0))","v":{"$error":"#N/A"}},{"$f":"IF(tblDDSJune19[[#This Row],[Total ($000)]]=0,\"NO\",IF(ISNA(tblDDSJune19[[#This Row],[FUNC]]),\"YES\",IF(_xlfn.ISFORMULA(tblDDSJune19[[#This Row],[FUNC]]),\"NO\",\"YES\")))","v":"NO"}]
[{"$f":"CONCATENATE(tblDDSJune19[[#This Row],[Primary Account]],tblDDSJune19[[#This Row],[Primary Name]],tblDDSJune19[[#This Row],[Secondary Acct]],tblDDSJune19[[#This Row],[Secondary  Name]],tblDDSJune19[[#This Row],[Alloc4FUNC]])","v":"1865000DEF COAL MINE COSTS184403D J MINE GLENROCK COAL - OVERBURDENSE"},1865000,"DEF COAL MINE COSTS",184403,"D J MINE GLENROCK COAL - OVERBURDEN","SE",0,{"$f":"IF(OR(tblDDSJune19[[#This Row],[Alloc]]=\"IDU\",tblDDSJune19[[#This Row],[Alloc]]=\"OR\",tblDDSJune19[[#This Row],[Alloc]]=\"UT\",tblDDSJune19[[#This Row],[Alloc]]=\"WYU\",tblDDSJune19[[#This Row],[Alloc]]=\"WYP\",tblDDSJune19[[#This Row],[Alloc]]=\"CA\",tblDDSJune19[[#This Row],[Alloc]]=\"WA\"),\"SITUS\",tblDDSJune19[[#This Row],[Alloc]])","v":"SE"},{"$f":"INDEX(tblDDSLookup[FUNC],MATCH(tblDDSJune19[[#This Row],[Concat]],tblDDSLookup[Concat],0))","v":{"$error":"#N/A"}},{"$f":"IF(tblDDSJune19[[#This Row],[Total ($000)]]=0,\"NO\",IF(ISNA(tblDDSJune19[[#This Row],[FUNC]]),\"YES\",IF(_xlfn.ISFORMULA(tblDDSJune19[[#This Row],[FUNC]]),\"NO\",\"YES\")))","v":"NO"}]
[{"$f":"CONCATENATE(tblDDSJune19[[#This Row],[Primary Account]],tblDDSJune19[[#This Row],[Primary Name]],tblDDSJune19[[#This Row],[Secondary Acct]],tblDDSJune19[[#This Row],[Secondary  Name]],tblDDSJune19[[#This Row],[Alloc4FUNC]])","v":"1865000DEF COAL MINE COSTS184404TRAIL MOUNTAIN - DRILLINGSE"},1865000,"DEF COAL MINE COSTS",184404,"TRAIL MOUNTAIN - DRILLING","SE",0,{"$f":"IF(OR(tblDDSJune19[[#This Row],[Alloc]]=\"IDU\",tblDDSJune19[[#This Row],[Alloc]]=\"OR\",tblDDSJune19[[#This Row],[Alloc]]=\"UT\",tblDDSJune19[[#This Row],[Alloc]]=\"WYU\",tblDDSJune19[[#This Row],[Alloc]]=\"WYP\",tblDDSJune19[[#This Row],[Alloc]]=\"CA\",tblDDSJune19[[#This Row],[Alloc]]=\"WA\"),\"SITUS\",tblDDSJune19[[#This Row],[Alloc]])","v":"SE"},{"$f":"INDEX(tblDDSLookup[FUNC],MATCH(tblDDSJune19[[#This Row],[Concat]],tblDDSLookup[Concat],0))","v":{"$error":"#N/A"}},{"$f":"IF(tblDDSJune19[[#This Row],[Total ($000)]]=0,\"NO\",IF(ISNA(tblDDSJune19[[#This Row],[FUNC]]),\"YES\",IF(_xlfn.ISFORMULA(tblDDSJune19[[#This Row],[FUNC]]),\"NO\",\"YES\")))","v":"NO"}]
[{"$f":"CONCATENATE(tblDDSJune19[[#This Row],[Primary Account]],tblDDSJune19[[#This Row],[Primary Name]],tblDDSJune19[[#This Row],[Secondary Acct]],tblDDSJune19[[#This Row],[Secondary  Name]],tblDDSJune19[[#This Row],[Alloc4FUNC]])","v":"1865000DEF COAL MINE COSTS184405BRIDGER DEFERRED BILLINGSSE"},1865000,"DEF COAL MINE COSTS",184405,"BRIDGER DEFERRED BILLINGS","SE",0,{"$f":"IF(OR(tblDDSJune19[[#This Row],[Alloc]]=\"IDU\",tblDDSJune19[[#This Row],[Alloc]]=\"OR\",tblDDSJune19[[#This Row],[Alloc]]=\"UT\",tblDDSJune19[[#This Row],[Alloc]]=\"WYU\",tblDDSJune19[[#This Row],[Alloc]]=\"WYP\",tblDDSJune19[[#This Row],[Alloc]]=\"CA\",tblDDSJune19[[#This Row],[Alloc]]=\"WA\"),\"SITUS\",tblDDSJune19[[#This Row],[Alloc]])","v":"SE"},{"$f":"INDEX(tblDDSLookup[FUNC],MATCH(tblDDSJune19[[#This Row],[Concat]],tblDDSLookup[Concat],0))","v":{"$error":"#N/A"}},{"$f":"IF(tblDDSJune19[[#This Row],[Total ($000)]]=0,\"NO\",IF(ISNA(tblDDSJune19[[#This Row],[FUNC]]),\"YES\",IF(_xlfn.ISFORMULA(tblDDSJune19[[#This Row],[FUNC]]),\"NO\",\"YES\")))","v":"NO"}]
[{"$f":"CONCATENATE(tblDDSJune19[[#This Row],[Primary Account]],tblDDSJune19[[#This Row],[Primary Name]],tblDDSJune19[[#This Row],[Secondary Acct]],tblDDSJune19[[#This Row],[Secondary  Name]],tblDDSJune19[[#This Row],[Alloc4FUNC]])","v":"1865000DEF COAL MINE COSTS184406CHOLLA CONTRACT REVIEWSE"},1865000,"DEF COAL MINE COSTS",184406,"CHOLLA CONTRACT REVIEW","SE",0,{"$f":"IF(OR(tblDDSJune19[[#This Row],[Alloc]]=\"IDU\",tblDDSJune19[[#This Row],[Alloc]]=\"OR\",tblDDSJune19[[#This Row],[Alloc]]=\"UT\",tblDDSJune19[[#This Row],[Alloc]]=\"WYU\",tblDDSJune19[[#This Row],[Alloc]]=\"WYP\",tblDDSJune19[[#This Row],[Alloc]]=\"CA\",tblDDSJune19[[#This Row],[Alloc]]=\"WA\"),\"SITUS\",tblDDSJune19[[#This Row],[Alloc]])","v":"SE"},{"$f":"INDEX(tblDDSLookup[FUNC],MATCH(tblDDSJune19[[#This Row],[Concat]],tblDDSLookup[Concat],0))","v":{"$error":"#N/A"}},{"$f":"IF(tblDDSJune19[[#This Row],[Total ($000)]]=0,\"NO\",IF(ISNA(tblDDSJune19[[#This Row],[FUNC]]),\"YES\",IF(_xlfn.ISFORMULA(tblDDSJune19[[#This Row],[FUNC]]),\"NO\",\"YES\")))","v":"NO"}]
[{"$f":"CONCATENATE(tblDDSJune19[[#This Row],[Primary Account]],tblDDSJune19[[#This Row],[Primary Name]],tblDDSJune19[[#This Row],[Secondary Acct]],tblDDSJune19[[#This Row],[Secondary  Name]],tblDDSJune19[[#This Row],[Alloc4FUNC]])","v":"1865000DEF COAL MINE COSTS184407CENTRALIA TIMBER OPERATIONSSE"},1865000,"DEF COAL MINE COSTS",184407,"CENTRALIA TIMBER OPERATIONS","SE",0,{"$f":"IF(OR(tblDDSJune19[[#This Row],[Alloc]]=\"IDU\",tblDDSJune19[[#This Row],[Alloc]]=\"OR\",tblDDSJune19[[#This Row],[Alloc]]=\"UT\",tblDDSJune19[[#This Row],[Alloc]]=\"WYU\",tblDDSJune19[[#This Row],[Alloc]]=\"WYP\",tblDDSJune19[[#This Row],[Alloc]]=\"CA\",tblDDSJune19[[#This Row],[Alloc]]=\"WA\"),\"SITUS\",tblDDSJune19[[#This Row],[Alloc]])","v":"SE"},{"$f":"INDEX(tblDDSLookup[FUNC],MATCH(tblDDSJune19[[#This Row],[Concat]],tblDDSLookup[Concat],0))","v":{"$error":"#N/A"}},{"$f":"IF(tblDDSJune19[[#This Row],[Total ($000)]]=0,\"NO\",IF(ISNA(tblDDSJune19[[#This Row],[FUNC]]),\"YES\",IF(_xlfn.ISFORMULA(tblDDSJune19[[#This Row],[FUNC]]),\"NO\",\"YES\")))","v":"NO"}]
[{"$f":"CONCATENATE(tblDDSJune19[[#This Row],[Primary Account]],tblDDSJune19[[#This Row],[Primary Name]],tblDDSJune19[[#This Row],[Secondary Acct]],tblDDSJune19[[#This Row],[Secondary  Name]],tblDDSJune19[[#This Row],[Alloc4FUNC]])","v":"1865000DEF COAL MINE COSTS184408GLENROCK LOADOUT CHARGESSE"},1865000,"DEF COAL MINE COSTS",184408,"GLENROCK LOADOUT CHARGES","SE",0,{"$f":"IF(OR(tblDDSJune19[[#This Row],[Alloc]]=\"IDU\",tblDDSJune19[[#This Row],[Alloc]]=\"OR\",tblDDSJune19[[#This Row],[Alloc]]=\"UT\",tblDDSJune19[[#This Row],[Alloc]]=\"WYU\",tblDDSJune19[[#This Row],[Alloc]]=\"WYP\",tblDDSJune19[[#This Row],[Alloc]]=\"CA\",tblDDSJune19[[#This Row],[Alloc]]=\"WA\"),\"SITUS\",tblDDSJune19[[#This Row],[Alloc]])","v":"SE"},{"$f":"INDEX(tblDDSLookup[FUNC],MATCH(tblDDSJune19[[#This Row],[Concat]],tblDDSLookup[Concat],0))","v":{"$error":"#N/A"}},{"$f":"IF(tblDDSJune19[[#This Row],[Total ($000)]]=0,\"NO\",IF(ISNA(tblDDSJune19[[#This Row],[FUNC]]),\"YES\",IF(_xlfn.ISFORMULA(tblDDSJune19[[#This Row],[FUNC]]),\"NO\",\"YES\")))","v":"NO"}]
[{"$f":"CONCATENATE(tblDDSJune19[[#This Row],[Primary Account]],tblDDSJune19[[#This Row],[Primary Name]],tblDDSJune19[[#This Row],[Secondary Acct]],tblDDSJune19[[#This Row],[Secondary  Name]],tblDDSJune19[[#This Row],[Alloc4FUNC]])","v":"1865000DEF COAL MINE COSTS184412CMC DEFERRED BOX CUT - KOPIAHSE"},1865000,"DEF COAL MINE COSTS",184412,"CMC DEFERRED BOX CUT - KOPIAH","SE",0,{"$f":"IF(OR(tblDDSJune19[[#This Row],[Alloc]]=\"IDU\",tblDDSJune19[[#This Row],[Alloc]]=\"OR\",tblDDSJune19[[#This Row],[Alloc]]=\"UT\",tblDDSJune19[[#This Row],[Alloc]]=\"WYU\",tblDDSJune19[[#This Row],[Alloc]]=\"WYP\",tblDDSJune19[[#This Row],[Alloc]]=\"CA\",tblDDSJune19[[#This Row],[Alloc]]=\"WA\"),\"SITUS\",tblDDSJune19[[#This Row],[Alloc]])","v":"SE"},{"$f":"INDEX(tblDDSLookup[FUNC],MATCH(tblDDSJune19[[#This Row],[Concat]],tblDDSLookup[Concat],0))","v":{"$error":"#N/A"}},{"$f":"IF(tblDDSJune19[[#This Row],[Total ($000)]]=0,\"NO\",IF(ISNA(tblDDSJune19[[#This Row],[FUNC]]),\"YES\",IF(_xlfn.ISFORMULA(tblDDSJune19[[#This Row],[FUNC]]),\"NO\",\"YES\")))","v":"NO"}]
[{"$f":"CONCATENATE(tblDDSJune19[[#This Row],[Primary Account]],tblDDSJune19[[#This Row],[Primary Name]],tblDDSJune19[[#This Row],[Secondary Acct]],tblDDSJune19[[#This Row],[Secondary  Name]],tblDDSJune19[[#This Row],[Alloc4FUNC]])","v":"1865000DEF COAL MINE COSTS184414DEFERRED COAL COSTS - WYODAK SETTLEMENTSE"},1865000,"DEF COAL MINE COSTS",184414,"DEFERRED COAL COSTS - WYODAK SETTLEMENT","SE",1340.7268799999999,{"$f":"IF(OR(tblDDSJune19[[#This Row],[Alloc]]=\"IDU\",tblDDSJune19[[#This Row],[Alloc]]=\"OR\",tblDDSJune19[[#This Row],[Alloc]]=\"UT\",tblDDSJune19[[#This Row],[Alloc]]=\"WYU\",tblDDSJune19[[#This Row],[Alloc]]=\"WYP\",tblDDSJune19[[#This Row],[Alloc]]=\"CA\",tblDDSJune19[[#This Row],[Alloc]]=\"WA\"),\"SITUS\",tblDDSJune19[[#This Row],[Alloc]])","v":"SE"},{"$f":"INDEX(tblDDSLookup[FUNC],MATCH(tblDDSJune19[[#This Row],[Concat]],tblDDSLookup[Concat],0))","v":"P"},{"$f":"IF(tblDDSJune19[[#This Row],[Total ($000)]]=0,\"NO\",IF(ISNA(tblDDSJune19[[#This Row],[FUNC]]),\"YES\",IF(_xlfn.ISFORMULA(tblDDSJune19[[#This Row],[FUNC]]),\"NO\",\"YES\")))","v":"NO"}]
[{"$f":"CONCATENATE(tblDDSJune19[[#This Row],[Primary Account]],tblDDSJune19[[#This Row],[Primary Name]],tblDDSJune19[[#This Row],[Secondary Acct]],tblDDSJune19[[#This Row],[Secondary  Name]],tblDDSJune19[[#This Row],[Alloc4FUNC]])","v":"1865000DEF COAL MINE COSTS184415DEFERRED COAL COSTS ARCH SETTLEMENTSE"},1865000,"DEF COAL MINE COSTS",184415,"DEFERRED COAL COSTS ARCH SETTLEMENT","SE",0,{"$f":"IF(OR(tblDDSJune19[[#This Row],[Alloc]]=\"IDU\",tblDDSJune19[[#This Row],[Alloc]]=\"OR\",tblDDSJune19[[#This Row],[Alloc]]=\"UT\",tblDDSJune19[[#This Row],[Alloc]]=\"WYU\",tblDDSJune19[[#This Row],[Alloc]]=\"WYP\",tblDDSJune19[[#This Row],[Alloc]]=\"CA\",tblDDSJune19[[#This Row],[Alloc]]=\"WA\"),\"SITUS\",tblDDSJune19[[#This Row],[Alloc]])","v":"SE"},{"$f":"INDEX(tblDDSLookup[FUNC],MATCH(tblDDSJune19[[#This Row],[Concat]],tblDDSLookup[Concat],0))","v":{"$error":"#N/A"}},{"$f":"IF(tblDDSJune19[[#This Row],[Total ($000)]]=0,\"NO\",IF(ISNA(tblDDSJune19[[#This Row],[FUNC]]),\"YES\",IF(_xlfn.ISFORMULA(tblDDSJune19[[#This Row],[FUNC]]),\"NO\",\"YES\")))","v":"NO"}]
[{"$f":"CONCATENATE(tblDDSJune19[[#This Row],[Primary Account]],tblDDSJune19[[#This Row],[Primary Name]],tblDDSJune19[[#This Row],[Secondary Acct]],tblDDSJune19[[#This Row],[Secondary  Name]],tblDDSJune19[[#This Row],[Alloc4FUNC]])","v":"1865000DEF COAL MINE COSTS184416Deferred Coal Costs - Naughton ContractSE"},1865000,"DEF COAL MINE COSTS",184416,"Deferred Coal Costs - Naughton Contract","SE",0,{"$f":"IF(OR(tblDDSJune19[[#This Row],[Alloc]]=\"IDU\",tblDDSJune19[[#This Row],[Alloc]]=\"OR\",tblDDSJune19[[#This Row],[Alloc]]=\"UT\",tblDDSJune19[[#This Row],[Alloc]]=\"WYU\",tblDDSJune19[[#This Row],[Alloc]]=\"WYP\",tblDDSJune19[[#This Row],[Alloc]]=\"CA\",tblDDSJune19[[#This Row],[Alloc]]=\"WA\"),\"SITUS\",tblDDSJune19[[#This Row],[Alloc]])","v":"SE"},{"$f":"INDEX(tblDDSLookup[FUNC],MATCH(tblDDSJune19[[#This Row],[Concat]],tblDDSLookup[Concat],0))","v":"P"},{"$f":"IF(tblDDSJune19[[#This Row],[Total ($000)]]=0,\"NO\",IF(ISNA(tblDDSJune19[[#This Row],[FUNC]]),\"YES\",IF(_xlfn.ISFORMULA(tblDDSJune19[[#This Row],[FUNC]]),\"NO\",\"YES\")))","v":"NO"}]
[{"$f":"CONCATENATE(tblDDSJune19[[#This Row],[Primary Account]],tblDDSJune19[[#This Row],[Primary Name]],tblDDSJune19[[#This Row],[Secondary Acct]],tblDDSJune19[[#This Row],[Secondary  Name]],tblDDSJune19[[#This Row],[Alloc4FUNC]])","v":"1865000DEF COAL MINE COSTS184420LT Prepaid Coal CostsSE"},1865000,"DEF COAL MINE COSTS",184420,"LT Prepaid Coal Costs","SE",0,{"$f":"IF(OR(tblDDSJune19[[#This Row],[Alloc]]=\"IDU\",tblDDSJune19[[#This Row],[Alloc]]=\"OR\",tblDDSJune19[[#This Row],[Alloc]]=\"UT\",tblDDSJune19[[#This Row],[Alloc]]=\"WYU\",tblDDSJune19[[#This Row],[Alloc]]=\"WYP\",tblDDSJune19[[#This Row],[Alloc]]=\"CA\",tblDDSJune19[[#This Row],[Alloc]]=\"WA\"),\"SITUS\",tblDDSJune19[[#This Row],[Alloc]])","v":"SE"},{"$f":"INDEX(tblDDSLookup[FUNC],MATCH(tblDDSJune19[[#This Row],[Concat]],tblDDSLookup[Concat],0))","v":{"$error":"#N/A"}},{"$f":"IF(tblDDSJune19[[#This Row],[Total ($000)]]=0,\"NO\",IF(ISNA(tblDDSJune19[[#This Row],[FUNC]]),\"YES\",IF(_xlfn.ISFORMULA(tblDDSJune19[[#This Row],[FUNC]]),\"NO\",\"YES\")))","v":"NO"}]
[{"$f":"CONCATENATE(tblDDSJune19[[#This Row],[Primary Account]],tblDDSJune19[[#This Row],[Primary Name]],tblDDSJune19[[#This Row],[Secondary Acct]],tblDDSJune19[[#This Row],[Secondary  Name]],tblDDSJune19[[#This Row],[Alloc4FUNC]])","v":"1865000DEF COAL MINE COSTS184425ColoWyo Royalty Reduction ReceivableSE"},1865000,"DEF COAL MINE COSTS",184425,"ColoWyo Royalty Reduction Receivable","SE",0,{"$f":"IF(OR(tblDDSJune19[[#This Row],[Alloc]]=\"IDU\",tblDDSJune19[[#This Row],[Alloc]]=\"OR\",tblDDSJune19[[#This Row],[Alloc]]=\"UT\",tblDDSJune19[[#This Row],[Alloc]]=\"WYU\",tblDDSJune19[[#This Row],[Alloc]]=\"WYP\",tblDDSJune19[[#This Row],[Alloc]]=\"CA\",tblDDSJune19[[#This Row],[Alloc]]=\"WA\"),\"SITUS\",tblDDSJune19[[#This Row],[Alloc]])","v":"SE"},{"$f":"INDEX(tblDDSLookup[FUNC],MATCH(tblDDSJune19[[#This Row],[Concat]],tblDDSLookup[Concat],0))","v":{"$error":"#N/A"}},{"$f":"IF(tblDDSJune19[[#This Row],[Total ($000)]]=0,\"NO\",IF(ISNA(tblDDSJune19[[#This Row],[FUNC]]),\"YES\",IF(_xlfn.ISFORMULA(tblDDSJune19[[#This Row],[FUNC]]),\"NO\",\"YES\")))","v":"NO"}]
[{"$f":"CONCATENATE(tblDDSJune19[[#This Row],[Primary Account]],tblDDSJune19[[#This Row],[Primary Name]],tblDDSJune19[[#This Row],[Secondary Acct]],tblDDSJune19[[#This Row],[Secondary  Name]],tblDDSJune19[[#This Row],[Alloc4FUNC]])","v":"1867000MSC DF DR-BAL TRAN134300DEFERRED CHARGESSE"},1867000,"MSC DF DR-BAL TRAN",134300,"DEFERRED CHARGES","SE",0.94938461538461505,{"$f":"IF(OR(tblDDSJune19[[#This Row],[Alloc]]=\"IDU\",tblDDSJune19[[#This Row],[Alloc]]=\"OR\",tblDDSJune19[[#This Row],[Alloc]]=\"UT\",tblDDSJune19[[#This Row],[Alloc]]=\"WYU\",tblDDSJune19[[#This Row],[Alloc]]=\"WYP\",tblDDSJune19[[#This Row],[Alloc]]=\"CA\",tblDDSJune19[[#This Row],[Alloc]]=\"WA\"),\"SITUS\",tblDDSJune19[[#This Row],[Alloc]])","v":"SE"},{"$f":"INDEX(tblDDSLookup[FUNC],MATCH(tblDDSJune19[[#This Row],[Concat]],tblDDSLookup[Concat],0))","v":"P"},{"$f":"IF(tblDDSJune19[[#This Row],[Total ($000)]]=0,\"NO\",IF(ISNA(tblDDSJune19[[#This Row],[FUNC]]),\"YES\",IF(_xlfn.ISFORMULA(tblDDSJune19[[#This Row],[FUNC]]),\"NO\",\"YES\")))","v":"NO"}]
[{"$f":"CONCATENATE(tblDDSJune19[[#This Row],[Primary Account]],tblDDSJune19[[#This Row],[Primary Name]],tblDDSJune19[[#This Row],[Secondary Acct]],tblDDSJune19[[#This Row],[Secondary  Name]],tblDDSJune19[[#This Row],[Alloc4FUNC]])","v":"1868000MISC DF DR-OTH-CST134305Oth Def Chrg - IT Licenses/MaintenanceOTHER"},1868000,"MISC DF DR-OTH-CST",134305,"Oth Def Chrg - IT Licenses/Maintenance","OTHER",128.10347692307701,{"$f":"IF(OR(tblDDSJune19[[#This Row],[Alloc]]=\"IDU\",tblDDSJune19[[#This Row],[Alloc]]=\"OR\",tblDDSJune19[[#This Row],[Alloc]]=\"UT\",tblDDSJune19[[#This Row],[Alloc]]=\"WYU\",tblDDSJune19[[#This Row],[Alloc]]=\"WYP\",tblDDSJune19[[#This Row],[Alloc]]=\"CA\",tblDDSJune19[[#This Row],[Alloc]]=\"WA\"),\"SITUS\",tblDDSJune19[[#This Row],[Alloc]])","v":"OTHER"},{"$f":"INDEX(tblDDSLookup[FUNC],MATCH(tblDDSJune19[[#This Row],[Concat]],tblDDSLookup[Concat],0))","v":"PTD"},{"$f":"IF(tblDDSJune19[[#This Row],[Total ($000)]]=0,\"NO\",IF(ISNA(tblDDSJune19[[#This Row],[FUNC]]),\"YES\",IF(_xlfn.ISFORMULA(tblDDSJune19[[#This Row],[FUNC]]),\"NO\",\"YES\")))","v":"NO"}]
[{"$f":"CONCATENATE(tblDDSJune19[[#This Row],[Primary Account]],tblDDSJune19[[#This Row],[Primary Name]],tblDDSJune19[[#This Row],[Secondary Acct]],tblDDSJune19[[#This Row],[Secondary  Name]],tblDDSJune19[[#This Row],[Alloc4FUNC]])","v":"1868000MISC DF DR-OTH-CST134359Lake Side 2 Maint. Prepayment - CurrentSG"},1868000,"MISC DF DR-OTH-CST",134359,"Lake Side 2 Maint. Prepayment - Current","SG",0,{"$f":"IF(OR(tblDDSJune19[[#This Row],[Alloc]]=\"IDU\",tblDDSJune19[[#This Row],[Alloc]]=\"OR\",tblDDSJune19[[#This Row],[Alloc]]=\"UT\",tblDDSJune19[[#This Row],[Alloc]]=\"WYU\",tblDDSJune19[[#This Row],[Alloc]]=\"WYP\",tblDDSJune19[[#This Row],[Alloc]]=\"CA\",tblDDSJune19[[#This Row],[Alloc]]=\"WA\"),\"SITUS\",tblDDSJune19[[#This Row],[Alloc]])","v":"SG"},{"$f":"INDEX(tblDDSLookup[FUNC],MATCH(tblDDSJune19[[#This Row],[Concat]],tblDDSLookup[Concat],0))","v":{"$error":"#N/A"}},{"$f":"IF(tblDDSJune19[[#This Row],[Total ($000)]]=0,\"NO\",IF(ISNA(tblDDSJune19[[#This Row],[FUNC]]),\"YES\",IF(_xlfn.ISFORMULA(tblDDSJune19[[#This Row],[FUNC]]),\"NO\",\"YES\")))","v":"NO"}]
[{"$f":"CONCATENATE(tblDDSJune19[[#This Row],[Primary Account]],tblDDSJune19[[#This Row],[Primary Name]],tblDDSJune19[[#This Row],[Secondary Acct]],tblDDSJune19[[#This Row],[Secondary  Name]],tblDDSJune19[[#This Row],[Alloc4FUNC]])","v":"1868000MISC DF DR-OTH-CST134360LAKE SIDE MAINT. PREPAYMENT - CURRENTSG"},1868000,"MISC DF DR-OTH-CST",134360,"LAKE SIDE MAINT. PREPAYMENT - CURRENT","SG",0,{"$f":"IF(OR(tblDDSJune19[[#This Row],[Alloc]]=\"IDU\",tblDDSJune19[[#This Row],[Alloc]]=\"OR\",tblDDSJune19[[#This Row],[Alloc]]=\"UT\",tblDDSJune19[[#This Row],[Alloc]]=\"WYU\",tblDDSJune19[[#This Row],[Alloc]]=\"WYP\",tblDDSJune19[[#This Row],[Alloc]]=\"CA\",tblDDSJune19[[#This Row],[Alloc]]=\"WA\"),\"SITUS\",tblDDSJune19[[#This Row],[Alloc]])","v":"SG"},{"$f":"INDEX(tblDDSLookup[FUNC],MATCH(tblDDSJune19[[#This Row],[Concat]],tblDDSLookup[Concat],0))","v":{"$error":"#N/A"}},{"$f":"IF(tblDDSJune19[[#This Row],[Total ($000)]]=0,\"NO\",IF(ISNA(tblDDSJune19[[#This Row],[FUNC]]),\"YES\",IF(_xlfn.ISFORMULA(tblDDSJune19[[#This Row],[FUNC]]),\"NO\",\"YES\")))","v":"NO"}]
[{"$f":"CONCATENATE(tblDDSJune19[[#This Row],[Primary Account]],tblDDSJune19[[#This Row],[Primary Name]],tblDDSJune19[[#This Row],[Secondary Acct]],tblDDSJune19[[#This Row],[Secondary  Name]],tblDDSJune19[[#This Row],[Alloc4FUNC]])","v":"1868000MISC DF DR-OTH-CST134361PREPAID OUTAGE MAINTENANCESG"},1868000,"MISC DF DR-OTH-CST",134361,"PREPAID OUTAGE MAINTENANCE","SG",0,{"$f":"IF(OR(tblDDSJune19[[#This Row],[Alloc]]=\"IDU\",tblDDSJune19[[#This Row],[Alloc]]=\"OR\",tblDDSJune19[[#This Row],[Alloc]]=\"UT\",tblDDSJune19[[#This Row],[Alloc]]=\"WYU\",tblDDSJune19[[#This Row],[Alloc]]=\"WYP\",tblDDSJune19[[#This Row],[Alloc]]=\"CA\",tblDDSJune19[[#This Row],[Alloc]]=\"WA\"),\"SITUS\",tblDDSJune19[[#This Row],[Alloc]])","v":"SG"},{"$f":"INDEX(tblDDSLookup[FUNC],MATCH(tblDDSJune19[[#This Row],[Concat]],tblDDSLookup[Concat],0))","v":{"$error":"#N/A"}},{"$f":"IF(tblDDSJune19[[#This Row],[Total ($000)]]=0,\"NO\",IF(ISNA(tblDDSJune19[[#This Row],[FUNC]]),\"YES\",IF(_xlfn.ISFORMULA(tblDDSJune19[[#This Row],[FUNC]]),\"NO\",\"YES\")))","v":"NO"}]
[{"$f":"CONCATENATE(tblDDSJune19[[#This Row],[Primary Account]],tblDDSJune19[[#This Row],[Primary Name]],tblDDSJune19[[#This Row],[Secondary Acct]],tblDDSJune19[[#This Row],[Secondary  Name]],tblDDSJune19[[#This Row],[Alloc4FUNC]])","v":"1868000MISC DF DR-OTH-CST134362Currant Creek Maint Prepayment - CurrentSG"},1868000,"MISC DF DR-OTH-CST",134362,"Currant Creek Maint Prepayment - Current","SG",0,{"$f":"IF(OR(tblDDSJune19[[#This Row],[Alloc]]=\"IDU\",tblDDSJune19[[#This Row],[Alloc]]=\"OR\",tblDDSJune19[[#This Row],[Alloc]]=\"UT\",tblDDSJune19[[#This Row],[Alloc]]=\"WYU\",tblDDSJune19[[#This Row],[Alloc]]=\"WYP\",tblDDSJune19[[#This Row],[Alloc]]=\"CA\",tblDDSJune19[[#This Row],[Alloc]]=\"WA\"),\"SITUS\",tblDDSJune19[[#This Row],[Alloc]])","v":"SG"},{"$f":"INDEX(tblDDSLookup[FUNC],MATCH(tblDDSJune19[[#This Row],[Concat]],tblDDSLookup[Concat],0))","v":{"$error":"#N/A"}},{"$f":"IF(tblDDSJune19[[#This Row],[Total ($000)]]=0,\"NO\",IF(ISNA(tblDDSJune19[[#This Row],[FUNC]]),\"YES\",IF(_xlfn.ISFORMULA(tblDDSJune19[[#This Row],[FUNC]]),\"NO\",\"YES\")))","v":"NO"}]
[{"$f":"CONCATENATE(tblDDSJune19[[#This Row],[Primary Account]],tblDDSJune19[[#This Row],[Primary Name]],tblDDSJune19[[#This Row],[Secondary Acct]],tblDDSJune19[[#This Row],[Secondary  Name]],tblDDSJune19[[#This Row],[Alloc4FUNC]])","v":"1868000MISC DF DR-OTH-CST184413HAYDEN FUEL CONTRACT NEGOTIATION COSTSSG"},1868000,"MISC DF DR-OTH-CST",184413,"HAYDEN FUEL CONTRACT NEGOTIATION COSTS","SG",0,{"$f":"IF(OR(tblDDSJune19[[#This Row],[Alloc]]=\"IDU\",tblDDSJune19[[#This Row],[Alloc]]=\"OR\",tblDDSJune19[[#This Row],[Alloc]]=\"UT\",tblDDSJune19[[#This Row],[Alloc]]=\"WYU\",tblDDSJune19[[#This Row],[Alloc]]=\"WYP\",tblDDSJune19[[#This Row],[Alloc]]=\"CA\",tblDDSJune19[[#This Row],[Alloc]]=\"WA\"),\"SITUS\",tblDDSJune19[[#This Row],[Alloc]])","v":"SG"},{"$f":"INDEX(tblDDSLookup[FUNC],MATCH(tblDDSJune19[[#This Row],[Concat]],tblDDSLookup[Concat],0))","v":{"$error":"#N/A"}},{"$f":"IF(tblDDSJune19[[#This Row],[Total ($000)]]=0,\"NO\",IF(ISNA(tblDDSJune19[[#This Row],[FUNC]]),\"YES\",IF(_xlfn.ISFORMULA(tblDDSJune19[[#This Row],[FUNC]]),\"NO\",\"YES\")))","v":"NO"}]
[{"$f":"CONCATENATE(tblDDSJune19[[#This Row],[Primary Account]],tblDDSJune19[[#This Row],[Primary Name]],tblDDSJune19[[#This Row],[Secondary Acct]],tblDDSJune19[[#This Row],[Secondary  Name]],tblDDSJune19[[#This Row],[Alloc4FUNC]])","v":"1868000MISC DF DR-OTH-CST185010MILL FORK COAL LEASESE"},1868000,"MISC DF DR-OTH-CST",185010,"MILL FORK COAL LEASE","SE",0,{"$f":"IF(OR(tblDDSJune19[[#This Row],[Alloc]]=\"IDU\",tblDDSJune19[[#This Row],[Alloc]]=\"OR\",tblDDSJune19[[#This Row],[Alloc]]=\"UT\",tblDDSJune19[[#This Row],[Alloc]]=\"WYU\",tblDDSJune19[[#This Row],[Alloc]]=\"WYP\",tblDDSJune19[[#This Row],[Alloc]]=\"CA\",tblDDSJune19[[#This Row],[Alloc]]=\"WA\"),\"SITUS\",tblDDSJune19[[#This Row],[Alloc]])","v":"SE"},{"$f":"INDEX(tblDDSLookup[FUNC],MATCH(tblDDSJune19[[#This Row],[Concat]],tblDDSLookup[Concat],0))","v":{"$error":"#N/A"}},{"$f":"IF(tblDDSJune19[[#This Row],[Total ($000)]]=0,\"NO\",IF(ISNA(tblDDSJune19[[#This Row],[FUNC]]),\"YES\",IF(_xlfn.ISFORMULA(tblDDSJune19[[#This Row],[FUNC]]),\"NO\",\"YES\")))","v":"NO"}]
[{"$f":"CONCATENATE(tblDDSJune19[[#This Row],[Primary Account]],tblDDSJune19[[#This Row],[Primary Name]],tblDDSJune19[[#This Row],[Secondary Acct]],tblDDSJune19[[#This Row],[Secondary  Name]],tblDDSJune19[[#This Row],[Alloc4FUNC]])","v":"1868000MISC DF DR-OTH-CST185303HPT OPTIONSG"},1868000,"MISC DF DR-OTH-CST",185303,"HPT OPTION","SG",0,{"$f":"IF(OR(tblDDSJune19[[#This Row],[Alloc]]=\"IDU\",tblDDSJune19[[#This Row],[Alloc]]=\"OR\",tblDDSJune19[[#This Row],[Alloc]]=\"UT\",tblDDSJune19[[#This Row],[Alloc]]=\"WYU\",tblDDSJune19[[#This Row],[Alloc]]=\"WYP\",tblDDSJune19[[#This Row],[Alloc]]=\"CA\",tblDDSJune19[[#This Row],[Alloc]]=\"WA\"),\"SITUS\",tblDDSJune19[[#This Row],[Alloc]])","v":"SG"},{"$f":"INDEX(tblDDSLookup[FUNC],MATCH(tblDDSJune19[[#This Row],[Concat]],tblDDSLookup[Concat],0))","v":{"$error":"#N/A"}},{"$f":"IF(tblDDSJune19[[#This Row],[Total ($000)]]=0,\"NO\",IF(ISNA(tblDDSJune19[[#This Row],[FUNC]]),\"YES\",IF(_xlfn.ISFORMULA(tblDDSJune19[[#This Row],[FUNC]]),\"NO\",\"YES\")))","v":"NO"}]
[{"$f":"CONCATENATE(tblDDSJune19[[#This Row],[Primary Account]],tblDDSJune19[[#This Row],[Primary Name]],tblDDSJune19[[#This Row],[Secondary Acct]],tblDDSJune19[[#This Row],[Secondary  Name]],tblDDSJune19[[#This Row],[Alloc4FUNC]])","v":"1868000MISC DF DR-OTH-CST185306TGS BUYOUTSG"},1868000,"MISC DF DR-OTH-CST",185306,"TGS BUYOUT","SG",16.762979999999999,{"$f":"IF(OR(tblDDSJune19[[#This Row],[Alloc]]=\"IDU\",tblDDSJune19[[#This Row],[Alloc]]=\"OR\",tblDDSJune19[[#This Row],[Alloc]]=\"UT\",tblDDSJune19[[#This Row],[Alloc]]=\"WYU\",tblDDSJune19[[#This Row],[Alloc]]=\"WYP\",tblDDSJune19[[#This Row],[Alloc]]=\"CA\",tblDDSJune19[[#This Row],[Alloc]]=\"WA\"),\"SITUS\",tblDDSJune19[[#This Row],[Alloc]])","v":"SG"},{"$f":"INDEX(tblDDSLookup[FUNC],MATCH(tblDDSJune19[[#This Row],[Concat]],tblDDSLookup[Concat],0))","v":"P"},{"$f":"IF(tblDDSJune19[[#This Row],[Total ($000)]]=0,\"NO\",IF(ISNA(tblDDSJune19[[#This Row],[FUNC]]),\"YES\",IF(_xlfn.ISFORMULA(tblDDSJune19[[#This Row],[FUNC]]),\"NO\",\"YES\")))","v":"NO"}]
[{"$f":"CONCATENATE(tblDDSJune19[[#This Row],[Primary Account]],tblDDSJune19[[#This Row],[Primary Name]],tblDDSJune19[[#This Row],[Secondary Acct]],tblDDSJune19[[#This Row],[Secondary  Name]],tblDDSJune19[[#This Row],[Alloc4FUNC]])","v":"1868000MISC DF DR-OTH-CST185309LAKEVIEW BUYOUTSG"},1868000,"MISC DF DR-OTH-CST",185309,"LAKEVIEW BUYOUT","SG",0,{"$f":"IF(OR(tblDDSJune19[[#This Row],[Alloc]]=\"IDU\",tblDDSJune19[[#This Row],[Alloc]]=\"OR\",tblDDSJune19[[#This Row],[Alloc]]=\"UT\",tblDDSJune19[[#This Row],[Alloc]]=\"WYU\",tblDDSJune19[[#This Row],[Alloc]]=\"WYP\",tblDDSJune19[[#This Row],[Alloc]]=\"CA\",tblDDSJune19[[#This Row],[Alloc]]=\"WA\"),\"SITUS\",tblDDSJune19[[#This Row],[Alloc]])","v":"SG"},{"$f":"INDEX(tblDDSLookup[FUNC],MATCH(tblDDSJune19[[#This Row],[Concat]],tblDDSLookup[Concat],0))","v":"P"},{"$f":"IF(tblDDSJune19[[#This Row],[Total ($000)]]=0,\"NO\",IF(ISNA(tblDDSJune19[[#This Row],[FUNC]]),\"YES\",IF(_xlfn.ISFORMULA(tblDDSJune19[[#This Row],[FUNC]]),\"NO\",\"YES\")))","v":"NO"}]
[{"$f":"CONCATENATE(tblDDSJune19[[#This Row],[Primary Account]],tblDDSJune19[[#This Row],[Primary Name]],tblDDSJune19[[#This Row],[Secondary Acct]],tblDDSJune19[[#This Row],[Secondary  Name]],tblDDSJune19[[#This Row],[Alloc4FUNC]])","v":"1868000MISC DF DR-OTH-CST185310BUFFALO SETTLEMENTSG"},1868000,"MISC DF DR-OTH-CST",185310,"BUFFALO SETTLEMENT","SG",0,{"$f":"IF(OR(tblDDSJune19[[#This Row],[Alloc]]=\"IDU\",tblDDSJune19[[#This Row],[Alloc]]=\"OR\",tblDDSJune19[[#This Row],[Alloc]]=\"UT\",tblDDSJune19[[#This Row],[Alloc]]=\"WYU\",tblDDSJune19[[#This Row],[Alloc]]=\"WYP\",tblDDSJune19[[#This Row],[Alloc]]=\"CA\",tblDDSJune19[[#This Row],[Alloc]]=\"WA\"),\"SITUS\",tblDDSJune19[[#This Row],[Alloc]])","v":"SG"},{"$f":"INDEX(tblDDSLookup[FUNC],MATCH(tblDDSJune19[[#This Row],[Concat]],tblDDSLookup[Concat],0))","v":"P"},{"$f":"IF(tblDDSJune19[[#This Row],[Total ($000)]]=0,\"NO\",IF(ISNA(tblDDSJune19[[#This Row],[FUNC]]),\"YES\",IF(_xlfn.ISFORMULA(tblDDSJune19[[#This Row],[FUNC]]),\"NO\",\"YES\")))","v":"NO"}]
[{"$f":"CONCATENATE(tblDDSJune19[[#This Row],[Primary Account]],tblDDSJune19[[#This Row],[Primary Name]],tblDDSJune19[[#This Row],[Secondary Acct]],tblDDSJune19[[#This Row],[Secondary  Name]],tblDDSJune19[[#This Row],[Alloc4FUNC]])","v":"1868000MISC DF DR-OTH-CST185311JOSEPH SETTLEMENTSG"},1868000,"MISC DF DR-OTH-CST",185311,"JOSEPH SETTLEMENT","SG",0,{"$f":"IF(OR(tblDDSJune19[[#This Row],[Alloc]]=\"IDU\",tblDDSJune19[[#This Row],[Alloc]]=\"OR\",tblDDSJune19[[#This Row],[Alloc]]=\"UT\",tblDDSJune19[[#This Row],[Alloc]]=\"WYU\",tblDDSJune19[[#This Row],[Alloc]]=\"WYP\",tblDDSJune19[[#This Row],[Alloc]]=\"CA\",tblDDSJune19[[#This Row],[Alloc]]=\"WA\"),\"SITUS\",tblDDSJune19[[#This Row],[Alloc]])","v":"SG"},{"$f":"INDEX(tblDDSLookup[FUNC],MATCH(tblDDSJune19[[#This Row],[Concat]],tblDDSLookup[Concat],0))","v":"P"},{"$f":"IF(tblDDSJune19[[#This Row],[Total ($000)]]=0,\"NO\",IF(ISNA(tblDDSJune19[[#This Row],[FUNC]]),\"YES\",IF(_xlfn.ISFORMULA(tblDDSJune19[[#This Row],[FUNC]]),\"NO\",\"YES\")))","v":"NO"}]
[{"$f":"CONCATENATE(tblDDSJune19[[#This Row],[Primary Account]],tblDDSJune19[[#This Row],[Primary Name]],tblDDSJune19[[#This Row],[Secondary Acct]],tblDDSJune19[[#This Row],[Secondary  Name]],tblDDSJune19[[#This Row],[Alloc4FUNC]])","v":"1868000MISC DF DR-OTH-CST185312TRI-STATE FIRM WHEELINGSG"},1868000,"MISC DF DR-OTH-CST",185312,"TRI-STATE FIRM WHEELING","SG",0,{"$f":"IF(OR(tblDDSJune19[[#This Row],[Alloc]]=\"IDU\",tblDDSJune19[[#This Row],[Alloc]]=\"OR\",tblDDSJune19[[#This Row],[Alloc]]=\"UT\",tblDDSJune19[[#This Row],[Alloc]]=\"WYU\",tblDDSJune19[[#This Row],[Alloc]]=\"WYP\",tblDDSJune19[[#This Row],[Alloc]]=\"CA\",tblDDSJune19[[#This Row],[Alloc]]=\"WA\"),\"SITUS\",tblDDSJune19[[#This Row],[Alloc]])","v":"SG"},{"$f":"INDEX(tblDDSLookup[FUNC],MATCH(tblDDSJune19[[#This Row],[Concat]],tblDDSLookup[Concat],0))","v":"P"},{"$f":"IF(tblDDSJune19[[#This Row],[Total ($000)]]=0,\"NO\",IF(ISNA(tblDDSJune19[[#This Row],[FUNC]]),\"YES\",IF(_xlfn.ISFORMULA(tblDDSJune19[[#This Row],[FUNC]]),\"NO\",\"YES\")))","v":"NO"}]
[{"$f":"CONCATENATE(tblDDSJune19[[#This Row],[Primary Account]],tblDDSJune19[[#This Row],[Primary Name]],tblDDSJune19[[#This Row],[Secondary Acct]],tblDDSJune19[[#This Row],[Secondary  Name]],tblDDSJune19[[#This Row],[Alloc4FUNC]])","v":"1868000MISC DF DR-OTH-CST185313MEAD-PHOENIX-AVAILABILITY & TRANS CHARGESG"},1868000,"MISC DF DR-OTH-CST",185313,"MEAD-PHOENIX-AVAILABILITY & TRANS CHARGE","SG",10434.08258,{"$f":"IF(OR(tblDDSJune19[[#This Row],[Alloc]]=\"IDU\",tblDDSJune19[[#This Row],[Alloc]]=\"OR\",tblDDSJune19[[#This Row],[Alloc]]=\"UT\",tblDDSJune19[[#This Row],[Alloc]]=\"WYU\",tblDDSJune19[[#This Row],[Alloc]]=\"WYP\",tblDDSJune19[[#This Row],[Alloc]]=\"CA\",tblDDSJune19[[#This Row],[Alloc]]=\"WA\"),\"SITUS\",tblDDSJune19[[#This Row],[Alloc]])","v":"SG"},{"$f":"INDEX(tblDDSLookup[FUNC],MATCH(tblDDSJune19[[#This Row],[Concat]],tblDDSLookup[Concat],0))","v":"T"},{"$f":"IF(tblDDSJune19[[#This Row],[Total ($000)]]=0,\"NO\",IF(ISNA(tblDDSJune19[[#This Row],[FUNC]]),\"YES\",IF(_xlfn.ISFORMULA(tblDDSJune19[[#This Row],[FUNC]]),\"NO\",\"YES\")))","v":"NO"}]
[{"$f":"CONCATENATE(tblDDSJune19[[#This Row],[Primary Account]],tblDDSJune19[[#This Row],[Primary Name]],tblDDSJune19[[#This Row],[Secondary Acct]],tblDDSJune19[[#This Row],[Secondary  Name]],tblDDSJune19[[#This Row],[Alloc4FUNC]])","v":"1868000MISC DF DR-OTH-CST185314CLARK FIRM TRANSMISSIONSG"},1868000,"MISC DF DR-OTH-CST",185314,"CLARK FIRM TRANSMISSION","SG",0,{"$f":"IF(OR(tblDDSJune19[[#This Row],[Alloc]]=\"IDU\",tblDDSJune19[[#This Row],[Alloc]]=\"OR\",tblDDSJune19[[#This Row],[Alloc]]=\"UT\",tblDDSJune19[[#This Row],[Alloc]]=\"WYU\",tblDDSJune19[[#This Row],[Alloc]]=\"WYP\",tblDDSJune19[[#This Row],[Alloc]]=\"CA\",tblDDSJune19[[#This Row],[Alloc]]=\"WA\"),\"SITUS\",tblDDSJune19[[#This Row],[Alloc]])","v":"SG"},{"$f":"INDEX(tblDDSLookup[FUNC],MATCH(tblDDSJune19[[#This Row],[Concat]],tblDDSLookup[Concat],0))","v":{"$error":"#N/A"}},{"$f":"IF(tblDDSJune19[[#This Row],[Total ($000)]]=0,\"NO\",IF(ISNA(tblDDSJune19[[#This Row],[FUNC]]),\"YES\",IF(_xlfn.ISFORMULA(tblDDSJune19[[#This Row],[FUNC]]),\"NO\",\"YES\")))","v":"NO"}]
[{"$f":"CONCATENATE(tblDDSJune19[[#This Row],[Primary Account]],tblDDSJune19[[#This Row],[Primary Name]],tblDDSJune19[[#This Row],[Secondary Acct]],tblDDSJune19[[#This Row],[Secondary  Name]],tblDDSJune19[[#This Row],[Alloc4FUNC]])","v":"1868000MISC DF DR-OTH-CST185315BIOMASS ONE POST COD PREPAYMENTSG"},1868000,"MISC DF DR-OTH-CST",185315,"BIOMASS ONE POST COD PREPAYMENT","SG",0,{"$f":"IF(OR(tblDDSJune19[[#This Row],[Alloc]]=\"IDU\",tblDDSJune19[[#This Row],[Alloc]]=\"OR\",tblDDSJune19[[#This Row],[Alloc]]=\"UT\",tblDDSJune19[[#This Row],[Alloc]]=\"WYU\",tblDDSJune19[[#This Row],[Alloc]]=\"WYP\",tblDDSJune19[[#This Row],[Alloc]]=\"CA\",tblDDSJune19[[#This Row],[Alloc]]=\"WA\"),\"SITUS\",tblDDSJune19[[#This Row],[Alloc]])","v":"SG"},{"$f":"INDEX(tblDDSLookup[FUNC],MATCH(tblDDSJune19[[#This Row],[Concat]],tblDDSLookup[Concat],0))","v":{"$error":"#N/A"}},{"$f":"IF(tblDDSJune19[[#This Row],[Total ($000)]]=0,\"NO\",IF(ISNA(tblDDSJune19[[#This Row],[FUNC]]),\"YES\",IF(_xlfn.ISFORMULA(tblDDSJune19[[#This Row],[FUNC]]),\"NO\",\"YES\")))","v":"NO"}]
[{"$f":"CONCATENATE(tblDDSJune19[[#This Row],[Primary Account]],tblDDSJune19[[#This Row],[Primary Name]],tblDDSJune19[[#This Row],[Secondary Acct]],tblDDSJune19[[#This Row],[Secondary  Name]],tblDDSJune19[[#This Row],[Alloc4FUNC]])","v":"1868000MISC DF DR-OTH-CST185318BOGUS CREEK SETTLEMENTSG"},1868000,"MISC DF DR-OTH-CST",185318,"BOGUS CREEK SETTLEMENT","SG",0,{"$f":"IF(OR(tblDDSJune19[[#This Row],[Alloc]]=\"IDU\",tblDDSJune19[[#This Row],[Alloc]]=\"OR\",tblDDSJune19[[#This Row],[Alloc]]=\"UT\",tblDDSJune19[[#This Row],[Alloc]]=\"WYU\",tblDDSJune19[[#This Row],[Alloc]]=\"WYP\",tblDDSJune19[[#This Row],[Alloc]]=\"CA\",tblDDSJune19[[#This Row],[Alloc]]=\"WA\"),\"SITUS\",tblDDSJune19[[#This Row],[Alloc]])","v":"SG"},{"$f":"INDEX(tblDDSLookup[FUNC],MATCH(tblDDSJune19[[#This Row],[Concat]],tblDDSLookup[Concat],0))","v":{"$error":"#N/A"}},{"$f":"IF(tblDDSJune19[[#This Row],[Total ($000)]]=0,\"NO\",IF(ISNA(tblDDSJune19[[#This Row],[FUNC]]),\"YES\",IF(_xlfn.ISFORMULA(tblDDSJune19[[#This Row],[FUNC]]),\"NO\",\"YES\")))","v":"NO"}]
[{"$f":"CONCATENATE(tblDDSJune19[[#This Row],[Primary Account]],tblDDSJune19[[#This Row],[Primary Name]],tblDDSJune19[[#This Row],[Secondary Acct]],tblDDSJune19[[#This Row],[Secondary  Name]],tblDDSJune19[[#This Row],[Alloc4FUNC]])","v":"1868000MISC DF DR-OTH-CST185335LACOMB IRRIGATIONSG"},1868000,"MISC DF DR-OTH-CST",185335,"LACOMB IRRIGATION","SG",140.97,{"$f":"IF(OR(tblDDSJune19[[#This Row],[Alloc]]=\"IDU\",tblDDSJune19[[#This Row],[Alloc]]=\"OR\",tblDDSJune19[[#This Row],[Alloc]]=\"UT\",tblDDSJune19[[#This Row],[Alloc]]=\"WYU\",tblDDSJune19[[#This Row],[Alloc]]=\"WYP\",tblDDSJune19[[#This Row],[Alloc]]=\"CA\",tblDDSJune19[[#This Row],[Alloc]]=\"WA\"),\"SITUS\",tblDDSJune19[[#This Row],[Alloc]])","v":"SG"},{"$f":"INDEX(tblDDSLookup[FUNC],MATCH(tblDDSJune19[[#This Row],[Concat]],tblDDSLookup[Concat],0))","v":"P"},{"$f":"IF(tblDDSJune19[[#This Row],[Total ($000)]]=0,\"NO\",IF(ISNA(tblDDSJune19[[#This Row],[FUNC]]),\"YES\",IF(_xlfn.ISFORMULA(tblDDSJune19[[#This Row],[FUNC]]),\"NO\",\"YES\")))","v":"NO"}]
[{"$f":"CONCATENATE(tblDDSJune19[[#This Row],[Primary Account]],tblDDSJune19[[#This Row],[Primary Name]],tblDDSJune19[[#This Row],[Secondary Acct]],tblDDSJune19[[#This Row],[Secondary  Name]],tblDDSJune19[[#This Row],[Alloc4FUNC]])","v":"1868000MISC DF DR-OTH-CST185336BOGUS CREEKSG"},1868000,"MISC DF DR-OTH-CST",185336,"BOGUS CREEK","SG",870.32,{"$f":"IF(OR(tblDDSJune19[[#This Row],[Alloc]]=\"IDU\",tblDDSJune19[[#This Row],[Alloc]]=\"OR\",tblDDSJune19[[#This Row],[Alloc]]=\"UT\",tblDDSJune19[[#This Row],[Alloc]]=\"WYU\",tblDDSJune19[[#This Row],[Alloc]]=\"WYP\",tblDDSJune19[[#This Row],[Alloc]]=\"CA\",tblDDSJune19[[#This Row],[Alloc]]=\"WA\"),\"SITUS\",tblDDSJune19[[#This Row],[Alloc]])","v":"SG"},{"$f":"INDEX(tblDDSLookup[FUNC],MATCH(tblDDSJune19[[#This Row],[Concat]],tblDDSLookup[Concat],0))","v":"P"},{"$f":"IF(tblDDSJune19[[#This Row],[Total ($000)]]=0,\"NO\",IF(ISNA(tblDDSJune19[[#This Row],[FUNC]]),\"YES\",IF(_xlfn.ISFORMULA(tblDDSJune19[[#This Row],[FUNC]]),\"NO\",\"YES\")))","v":"NO"}]
[{"$f":"CONCATENATE(tblDDSJune19[[#This Row],[Primary Account]],tblDDSJune19[[#This Row],[Primary Name]],tblDDSJune19[[#This Row],[Secondary Acct]],tblDDSJune19[[#This Row],[Secondary  Name]],tblDDSJune19[[#This Row],[Alloc4FUNC]])","v":"1868000MISC DF DR-OTH-CST185337POINT-TO-POINT TRANS RESERVATIONSSG"},1868000,"MISC DF DR-OTH-CST",185337,"POINT-TO-POINT TRANS RESERVATIONS","SG",957.90237923076904,{"$f":"IF(OR(tblDDSJune19[[#This Row],[Alloc]]=\"IDU\",tblDDSJune19[[#This Row],[Alloc]]=\"OR\",tblDDSJune19[[#This Row],[Alloc]]=\"UT\",tblDDSJune19[[#This Row],[Alloc]]=\"WYU\",tblDDSJune19[[#This Row],[Alloc]]=\"WYP\",tblDDSJune19[[#This Row],[Alloc]]=\"CA\",tblDDSJune19[[#This Row],[Alloc]]=\"WA\"),\"SITUS\",tblDDSJune19[[#This Row],[Alloc]])","v":"SG"},{"$f":"INDEX(tblDDSLookup[FUNC],MATCH(tblDDSJune19[[#This Row],[Concat]],tblDDSLookup[Concat],0))","v":"T"},{"$f":"IF(tblDDSJune19[[#This Row],[Total ($000)]]=0,\"NO\",IF(ISNA(tblDDSJune19[[#This Row],[FUNC]]),\"YES\",IF(_xlfn.ISFORMULA(tblDDSJune19[[#This Row],[FUNC]]),\"NO\",\"YES\")))","v":"NO"}]
[{"$f":"CONCATENATE(tblDDSJune19[[#This Row],[Primary Account]],tblDDSJune19[[#This Row],[Primary Name]],tblDDSJune19[[#This Row],[Secondary Acct]],tblDDSJune19[[#This Row],[Secondary  Name]],tblDDSJune19[[#This Row],[Alloc4FUNC]])","v":"1868000MISC DF DR-OTH-CST185340TRANSITION COSTS - WASHINGTON STATESITUS"},1868000,"MISC DF DR-OTH-CST",185340,"TRANSITION COSTS - WASHINGTON STATE","WA",0,{"$f":"IF(OR(tblDDSJune19[[#This Row],[Alloc]]=\"IDU\",tblDDSJune19[[#This Row],[Alloc]]=\"OR\",tblDDSJune19[[#This Row],[Alloc]]=\"UT\",tblDDSJune19[[#This Row],[Alloc]]=\"WYU\",tblDDSJune19[[#This Row],[Alloc]]=\"WYP\",tblDDSJune19[[#This Row],[Alloc]]=\"CA\",tblDDSJune19[[#This Row],[Alloc]]=\"WA\"),\"SITUS\",tblDDSJune19[[#This Row],[Alloc]])","v":"SITUS"},{"$f":"INDEX(tblDDSLookup[FUNC],MATCH(tblDDSJune19[[#This Row],[Concat]],tblDDSLookup[Concat],0))","v":{"$error":"#N/A"}},{"$f":"IF(tblDDSJune19[[#This Row],[Total ($000)]]=0,\"NO\",IF(ISNA(tblDDSJune19[[#This Row],[FUNC]]),\"YES\",IF(_xlfn.ISFORMULA(tblDDSJune19[[#This Row],[FUNC]]),\"NO\",\"YES\")))","v":"NO"}]
[{"$f":"CONCATENATE(tblDDSJune19[[#This Row],[Primary Account]],tblDDSJune19[[#This Row],[Primary Name]],tblDDSJune19[[#This Row],[Secondary Acct]],tblDDSJune19[[#This Row],[Secondary  Name]],tblDDSJune19[[#This Row],[Alloc4FUNC]])","v":"1868000MISC DF DR-OTH-CST185342JIM BOYD HYDRO BUYOUTSG"},1868000,"MISC DF DR-OTH-CST",185342,"JIM BOYD HYDRO BUYOUT","SG",0,{"$f":"IF(OR(tblDDSJune19[[#This Row],[Alloc]]=\"IDU\",tblDDSJune19[[#This Row],[Alloc]]=\"OR\",tblDDSJune19[[#This Row],[Alloc]]=\"UT\",tblDDSJune19[[#This Row],[Alloc]]=\"WYU\",tblDDSJune19[[#This Row],[Alloc]]=\"WYP\",tblDDSJune19[[#This Row],[Alloc]]=\"CA\",tblDDSJune19[[#This Row],[Alloc]]=\"WA\"),\"SITUS\",tblDDSJune19[[#This Row],[Alloc]])","v":"SG"},{"$f":"INDEX(tblDDSLookup[FUNC],MATCH(tblDDSJune19[[#This Row],[Concat]],tblDDSLookup[Concat],0))","v":{"$error":"#N/A"}},{"$f":"IF(tblDDSJune19[[#This Row],[Total ($000)]]=0,\"NO\",IF(ISNA(tblDDSJune19[[#This Row],[FUNC]]),\"YES\",IF(_xlfn.ISFORMULA(tblDDSJune19[[#This Row],[FUNC]]),\"NO\",\"YES\")))","v":"NO"}]
[{"$f":"CONCATENATE(tblDDSJune19[[#This Row],[Primary Account]],tblDDSJune19[[#This Row],[Primary Name]],tblDDSJune19[[#This Row],[Secondary Acct]],tblDDSJune19[[#This Row],[Secondary  Name]],tblDDSJune19[[#This Row],[Alloc4FUNC]])","v":"1868000MISC DF DR-OTH-CST185346RTO Grid West N/R w/o - WASITUS"},1868000,"MISC DF DR-OTH-CST",185346,"RTO Grid West N/R w/o - WA","WA",0,{"$f":"IF(OR(tblDDSJune19[[#This Row],[Alloc]]=\"IDU\",tblDDSJune19[[#This Row],[Alloc]]=\"OR\",tblDDSJune19[[#This Row],[Alloc]]=\"UT\",tblDDSJune19[[#This Row],[Alloc]]=\"WYU\",tblDDSJune19[[#This Row],[Alloc]]=\"WYP\",tblDDSJune19[[#This Row],[Alloc]]=\"CA\",tblDDSJune19[[#This Row],[Alloc]]=\"WA\"),\"SITUS\",tblDDSJune19[[#This Row],[Alloc]])","v":"SITUS"},{"$f":"INDEX(tblDDSLookup[FUNC],MATCH(tblDDSJune19[[#This Row],[Concat]],tblDDSLookup[Concat],0))","v":{"$error":"#N/A"}},{"$f":"IF(tblDDSJune19[[#This Row],[Total ($000)]]=0,\"NO\",IF(ISNA(tblDDSJune19[[#This Row],[FUNC]]),\"YES\",IF(_xlfn.ISFORMULA(tblDDSJune19[[#This Row],[FUNC]]),\"NO\",\"YES\")))","v":"NO"}]
[{"$f":"CONCATENATE(tblDDSJune19[[#This Row],[Primary Account]],tblDDSJune19[[#This Row],[Primary Name]],tblDDSJune19[[#This Row],[Secondary Acct]],tblDDSJune19[[#This Row],[Secondary  Name]],tblDDSJune19[[#This Row],[Alloc4FUNC]])","v":"1868000MISC DF DR-OTH-CST185349LGIA LT Transmission PrepaidOTHER"},1868000,"MISC DF DR-OTH-CST",185349,"LGIA LT Transmission Prepaid","OTHER",0,{"$f":"IF(OR(tblDDSJune19[[#This Row],[Alloc]]=\"IDU\",tblDDSJune19[[#This Row],[Alloc]]=\"OR\",tblDDSJune19[[#This Row],[Alloc]]=\"UT\",tblDDSJune19[[#This Row],[Alloc]]=\"WYU\",tblDDSJune19[[#This Row],[Alloc]]=\"WYP\",tblDDSJune19[[#This Row],[Alloc]]=\"CA\",tblDDSJune19[[#This Row],[Alloc]]=\"WA\"),\"SITUS\",tblDDSJune19[[#This Row],[Alloc]])","v":"OTHER"},{"$f":"INDEX(tblDDSLookup[FUNC],MATCH(tblDDSJune19[[#This Row],[Concat]],tblDDSLookup[Concat],0))","v":{"$error":"#N/A"}},{"$f":"IF(tblDDSJune19[[#This Row],[Total ($000)]]=0,\"NO\",IF(ISNA(tblDDSJune19[[#This Row],[FUNC]]),\"YES\",IF(_xlfn.ISFORMULA(tblDDSJune19[[#This Row],[FUNC]]),\"NO\",\"YES\")))","v":"NO"}]
[{"$f":"CONCATENATE(tblDDSJune19[[#This Row],[Primary Account]],tblDDSJune19[[#This Row],[Primary Name]],tblDDSJune19[[#This Row],[Secondary Acct]],tblDDSJune19[[#This Row],[Secondary  Name]],tblDDSJune19[[#This Row],[Alloc4FUNC]])","v":"1868000MISC DF DR-OTH-CST185351BPA LT TRANSMISSION PREPAIDOTHER"},1868000,"MISC DF DR-OTH-CST",185351,"BPA LT TRANSMISSION PREPAID","OTHER",1370.02169307692,{"$f":"IF(OR(tblDDSJune19[[#This Row],[Alloc]]=\"IDU\",tblDDSJune19[[#This Row],[Alloc]]=\"OR\",tblDDSJune19[[#This Row],[Alloc]]=\"UT\",tblDDSJune19[[#This Row],[Alloc]]=\"WYU\",tblDDSJune19[[#This Row],[Alloc]]=\"WYP\",tblDDSJune19[[#This Row],[Alloc]]=\"CA\",tblDDSJune19[[#This Row],[Alloc]]=\"WA\"),\"SITUS\",tblDDSJune19[[#This Row],[Alloc]])","v":"OTHER"},{"$f":"INDEX(tblDDSLookup[FUNC],MATCH(tblDDSJune19[[#This Row],[Concat]],tblDDSLookup[Concat],0))","v":"T"},{"$f":"IF(tblDDSJune19[[#This Row],[Total ($000)]]=0,\"NO\",IF(ISNA(tblDDSJune19[[#This Row],[FUNC]]),\"YES\",IF(_xlfn.ISFORMULA(tblDDSJune19[[#This Row],[FUNC]]),\"NO\",\"YES\")))","v":"NO"}]
[{"$f":"CONCATENATE(tblDDSJune19[[#This Row],[Primary Account]],tblDDSJune19[[#This Row],[Primary Name]],tblDDSJune19[[#This Row],[Secondary Acct]],tblDDSJune19[[#This Row],[Secondary  Name]],tblDDSJune19[[#This Row],[Alloc4FUNC]])","v":"1868000MISC DF DR-OTH-CST185357LT Prepaid RECs for RPS (OR)OTHER"},1868000,"MISC DF DR-OTH-CST",185357,"LT Prepaid RECs for RPS (OR)","OTHER",0,{"$f":"IF(OR(tblDDSJune19[[#This Row],[Alloc]]=\"IDU\",tblDDSJune19[[#This Row],[Alloc]]=\"OR\",tblDDSJune19[[#This Row],[Alloc]]=\"UT\",tblDDSJune19[[#This Row],[Alloc]]=\"WYU\",tblDDSJune19[[#This Row],[Alloc]]=\"WYP\",tblDDSJune19[[#This Row],[Alloc]]=\"CA\",tblDDSJune19[[#This Row],[Alloc]]=\"WA\"),\"SITUS\",tblDDSJune19[[#This Row],[Alloc]])","v":"OTHER"},{"$f":"INDEX(tblDDSLookup[FUNC],MATCH(tblDDSJune19[[#This Row],[Concat]],tblDDSLookup[Concat],0))","v":"P"},{"$f":"IF(tblDDSJune19[[#This Row],[Total ($000)]]=0,\"NO\",IF(ISNA(tblDDSJune19[[#This Row],[FUNC]]),\"YES\",IF(_xlfn.ISFORMULA(tblDDSJune19[[#This Row],[FUNC]]),\"NO\",\"YES\")))","v":"NO"}]
[{"$f":"CONCATENATE(tblDDSJune19[[#This Row],[Primary Account]],tblDDSJune19[[#This Row],[Primary Name]],tblDDSJune19[[#This Row],[Secondary Acct]],tblDDSJune19[[#This Row],[Secondary  Name]],tblDDSJune19[[#This Row],[Alloc4FUNC]])","v":"1868000MISC DF DR-OTH-CST185358LT Prepaid RECs for RPS (CA)OTHER"},1868000,"MISC DF DR-OTH-CST",185358,"LT Prepaid RECs for RPS (CA)","OTHER",0,{"$f":"IF(OR(tblDDSJune19[[#This Row],[Alloc]]=\"IDU\",tblDDSJune19[[#This Row],[Alloc]]=\"OR\",tblDDSJune19[[#This Row],[Alloc]]=\"UT\",tblDDSJune19[[#This Row],[Alloc]]=\"WYU\",tblDDSJune19[[#This Row],[Alloc]]=\"WYP\",tblDDSJune19[[#This Row],[Alloc]]=\"CA\",tblDDSJune19[[#This Row],[Alloc]]=\"WA\"),\"SITUS\",tblDDSJune19[[#This Row],[Alloc]])","v":"OTHER"},{"$f":"INDEX(tblDDSLookup[FUNC],MATCH(tblDDSJune19[[#This Row],[Concat]],tblDDSLookup[Concat],0))","v":"P"},{"$f":"IF(tblDDSJune19[[#This Row],[Total ($000)]]=0,\"NO\",IF(ISNA(tblDDSJune19[[#This Row],[FUNC]]),\"YES\",IF(_xlfn.ISFORMULA(tblDDSJune19[[#This Row],[FUNC]]),\"NO\",\"YES\")))","v":"NO"}]
[{"$f":"CONCATENATE(tblDDSJune19[[#This Row],[Primary Account]],tblDDSJune19[[#This Row],[Primary Name]],tblDDSJune19[[#This Row],[Secondary Acct]],tblDDSJune19[[#This Row],[Secondary  Name]],tblDDSJune19[[#This Row],[Alloc4FUNC]])","v":"1868000MISC DF DR-OTH-CST185359LT Lake Side 2 Maint. PrepaymentSG"},1868000,"MISC DF DR-OTH-CST",185359,"LT Lake Side 2 Maint. Prepayment","SG",8608.3460076923093,{"$f":"IF(OR(tblDDSJune19[[#This Row],[Alloc]]=\"IDU\",tblDDSJune19[[#This Row],[Alloc]]=\"OR\",tblDDSJune19[[#This Row],[Alloc]]=\"UT\",tblDDSJune19[[#This Row],[Alloc]]=\"WYU\",tblDDSJune19[[#This Row],[Alloc]]=\"WYP\",tblDDSJune19[[#This Row],[Alloc]]=\"CA\",tblDDSJune19[[#This Row],[Alloc]]=\"WA\"),\"SITUS\",tblDDSJune19[[#This Row],[Alloc]])","v":"SG"},{"$f":"INDEX(tblDDSLookup[FUNC],MATCH(tblDDSJune19[[#This Row],[Concat]],tblDDSLookup[Concat],0))","v":"P"},{"$f":"IF(tblDDSJune19[[#This Row],[Total ($000)]]=0,\"NO\",IF(ISNA(tblDDSJune19[[#This Row],[FUNC]]),\"YES\",IF(_xlfn.ISFORMULA(tblDDSJune19[[#This Row],[FUNC]]),\"NO\",\"YES\")))","v":"NO"}]
[{"$f":"CONCATENATE(tblDDSJune19[[#This Row],[Primary Account]],tblDDSJune19[[#This Row],[Primary Name]],tblDDSJune19[[#This Row],[Secondary Acct]],tblDDSJune19[[#This Row],[Secondary  Name]],tblDDSJune19[[#This Row],[Alloc4FUNC]])","v":"1868000MISC DF DR-OTH-CST185360LT LAKE SIDE MAINT PREPAYMENTSG"},1868000,"MISC DF DR-OTH-CST",185360,"LT LAKE SIDE MAINT PREPAYMENT","SG",21656.457579999998,{"$f":"IF(OR(tblDDSJune19[[#This Row],[Alloc]]=\"IDU\",tblDDSJune19[[#This Row],[Alloc]]=\"OR\",tblDDSJune19[[#This Row],[Alloc]]=\"UT\",tblDDSJune19[[#This Row],[Alloc]]=\"WYU\",tblDDSJune19[[#This Row],[Alloc]]=\"WYP\",tblDDSJune19[[#This Row],[Alloc]]=\"CA\",tblDDSJune19[[#This Row],[Alloc]]=\"WA\"),\"SITUS\",tblDDSJune19[[#This Row],[Alloc]])","v":"SG"},{"$f":"INDEX(tblDDSLookup[FUNC],MATCH(tblDDSJune19[[#This Row],[Concat]],tblDDSLookup[Concat],0))","v":"P"},{"$f":"IF(tblDDSJune19[[#This Row],[Total ($000)]]=0,\"NO\",IF(ISNA(tblDDSJune19[[#This Row],[FUNC]]),\"YES\",IF(_xlfn.ISFORMULA(tblDDSJune19[[#This Row],[FUNC]]),\"NO\",\"YES\")))","v":"NO"}]
[{"$f":"CONCATENATE(tblDDSJune19[[#This Row],[Primary Account]],tblDDSJune19[[#This Row],[Primary Name]],tblDDSJune19[[#This Row],[Secondary Acct]],tblDDSJune19[[#This Row],[Secondary  Name]],tblDDSJune19[[#This Row],[Alloc4FUNC]])","v":"1868000MISC DF DR-OTH-CST185361LT CHEHALIS CSA MAINT. PREPAYMENTSG"},1868000,"MISC DF DR-OTH-CST",185361,"LT CHEHALIS CSA MAINT. PREPAYMENT","SG",12413.332858461499,{"$f":"IF(OR(tblDDSJune19[[#This Row],[Alloc]]=\"IDU\",tblDDSJune19[[#This Row],[Alloc]]=\"OR\",tblDDSJune19[[#This Row],[Alloc]]=\"UT\",tblDDSJune19[[#This Row],[Alloc]]=\"WYU\",tblDDSJune19[[#This Row],[Alloc]]=\"WYP\",tblDDSJune19[[#This Row],[Alloc]]=\"CA\",tblDDSJune19[[#This Row],[Alloc]]=\"WA\"),\"SITUS\",tblDDSJune19[[#This Row],[Alloc]])","v":"SG"},{"$f":"INDEX(tblDDSLookup[FUNC],MATCH(tblDDSJune19[[#This Row],[Concat]],tblDDSLookup[Concat],0))","v":"P"},{"$f":"IF(tblDDSJune19[[#This Row],[Total ($000)]]=0,\"NO\",IF(ISNA(tblDDSJune19[[#This Row],[FUNC]]),\"YES\",IF(_xlfn.ISFORMULA(tblDDSJune19[[#This Row],[FUNC]]),\"NO\",\"YES\")))","v":"NO"}]
[{"$f":"CONCATENATE(tblDDSJune19[[#This Row],[Primary Account]],tblDDSJune19[[#This Row],[Primary Name]],tblDDSJune19[[#This Row],[Secondary Acct]],tblDDSJune19[[#This Row],[Secondary  Name]],tblDDSJune19[[#This Row],[Alloc4FUNC]])","v":"1868000MISC DF DR-OTH-CST185362LT Currant Creek CSA Maint PrepaymentSG"},1868000,"MISC DF DR-OTH-CST",185362,"LT Currant Creek CSA Maint Prepayment","SG",10226.152639230801,{"$f":"IF(OR(tblDDSJune19[[#This Row],[Alloc]]=\"IDU\",tblDDSJune19[[#This Row],[Alloc]]=\"OR\",tblDDSJune19[[#This Row],[Alloc]]=\"UT\",tblDDSJune19[[#This Row],[Alloc]]=\"WYU\",tblDDSJune19[[#This Row],[Alloc]]=\"WYP\",tblDDSJune19[[#This Row],[Alloc]]=\"CA\",tblDDSJune19[[#This Row],[Alloc]]=\"WA\"),\"SITUS\",tblDDSJune19[[#This Row],[Alloc]])","v":"SG"},{"$f":"INDEX(tblDDSLookup[FUNC],MATCH(tblDDSJune19[[#This Row],[Concat]],tblDDSLookup[Concat],0))","v":"P"},{"$f":"IF(tblDDSJune19[[#This Row],[Total ($000)]]=0,\"NO\",IF(ISNA(tblDDSJune19[[#This Row],[FUNC]]),\"YES\",IF(_xlfn.ISFORMULA(tblDDSJune19[[#This Row],[FUNC]]),\"NO\",\"YES\")))","v":"NO"}]
[{"$f":"CONCATENATE(tblDDSJune19[[#This Row],[Primary Account]],tblDDSJune19[[#This Row],[Primary Name]],tblDDSJune19[[#This Row],[Secondary Acct]],tblDDSJune19[[#This Row],[Secondary  Name]],tblDDSJune19[[#This Row],[Alloc4FUNC]])","v":"1868000MISC DF DR-OTH-CST185371LT Chehalis CSA Prepaid O&MSG"},1868000,"MISC DF DR-OTH-CST",185371,"LT Chehalis CSA Prepaid O&M","SG",505.081426923077,{"$f":"IF(OR(tblDDSJune19[[#This Row],[Alloc]]=\"IDU\",tblDDSJune19[[#This Row],[Alloc]]=\"OR\",tblDDSJune19[[#This Row],[Alloc]]=\"UT\",tblDDSJune19[[#This Row],[Alloc]]=\"WYU\",tblDDSJune19[[#This Row],[Alloc]]=\"WYP\",tblDDSJune19[[#This Row],[Alloc]]=\"CA\",tblDDSJune19[[#This Row],[Alloc]]=\"WA\"),\"SITUS\",tblDDSJune19[[#This Row],[Alloc]])","v":"SG"},{"$f":"INDEX(tblDDSLookup[FUNC],MATCH(tblDDSJune19[[#This Row],[Concat]],tblDDSLookup[Concat],0))","v":"P"},{"$f":"IF(tblDDSJune19[[#This Row],[Total ($000)]]=0,\"NO\",IF(ISNA(tblDDSJune19[[#This Row],[FUNC]]),\"YES\",IF(_xlfn.ISFORMULA(tblDDSJune19[[#This Row],[FUNC]]),\"NO\",\"YES\")))","v":"NO"}]
[{"$f":"CONCATENATE(tblDDSJune19[[#This Row],[Primary Account]],tblDDSJune19[[#This Row],[Primary Name]],tblDDSJune19[[#This Row],[Secondary Acct]],tblDDSJune19[[#This Row],[Secondary  Name]],tblDDSJune19[[#This Row],[Alloc4FUNC]])","v":"1868000MISC DF DR-OTH-CST185372LT Currant Creek CSA Prepaid O&MSG"},1868000,"MISC DF DR-OTH-CST",185372,"LT Currant Creek CSA Prepaid O&M","SG",785.25028538461504,{"$f":"IF(OR(tblDDSJune19[[#This Row],[Alloc]]=\"IDU\",tblDDSJune19[[#This Row],[Alloc]]=\"OR\",tblDDSJune19[[#This Row],[Alloc]]=\"UT\",tblDDSJune19[[#This Row],[Alloc]]=\"WYU\",tblDDSJune19[[#This Row],[Alloc]]=\"WYP\",tblDDSJune19[[#This Row],[Alloc]]=\"CA\",tblDDSJune19[[#This Row],[Alloc]]=\"WA\"),\"SITUS\",tblDDSJune19[[#This Row],[Alloc]])","v":"SG"},{"$f":"INDEX(tblDDSLookup[FUNC],MATCH(tblDDSJune19[[#This Row],[Concat]],tblDDSLookup[Concat],0))","v":"P"},{"$f":"IF(tblDDSJune19[[#This Row],[Total ($000)]]=0,\"NO\",IF(ISNA(tblDDSJune19[[#This Row],[FUNC]]),\"YES\",IF(_xlfn.ISFORMULA(tblDDSJune19[[#This Row],[FUNC]]),\"NO\",\"YES\")))","v":"NO"}]
[{"$f":"CONCATENATE(tblDDSJune19[[#This Row],[Primary Account]],tblDDSJune19[[#This Row],[Primary Name]],tblDDSJune19[[#This Row],[Secondary Acct]],tblDDSJune19[[#This Row],[Secondary  Name]],tblDDSJune19[[#This Row],[Alloc4FUNC]])","v":"1868200MISC DEF COST MT GEN184441DEFERRED MONTANA COLSTRIP PLANT COSTSSG"},1868200,"MISC DEF COST MT GEN",184441,"DEFERRED MONTANA COLSTRIP PLANT COSTS","SG",0,{"$f":"IF(OR(tblDDSJune19[[#This Row],[Alloc]]=\"IDU\",tblDDSJune19[[#This Row],[Alloc]]=\"OR\",tblDDSJune19[[#This Row],[Alloc]]=\"UT\",tblDDSJune19[[#This Row],[Alloc]]=\"WYU\",tblDDSJune19[[#This Row],[Alloc]]=\"WYP\",tblDDSJune19[[#This Row],[Alloc]]=\"CA\",tblDDSJune19[[#This Row],[Alloc]]=\"WA\"),\"SITUS\",tblDDSJune19[[#This Row],[Alloc]])","v":"SG"},{"$f":"INDEX(tblDDSLookup[FUNC],MATCH(tblDDSJune19[[#This Row],[Concat]],tblDDSLookup[Concat],0))","v":{"$error":"#N/A"}},{"$f":"IF(tblDDSJune19[[#This Row],[Total ($000)]]=0,\"NO\",IF(ISNA(tblDDSJune19[[#This Row],[FUNC]]),\"YES\",IF(_xlfn.ISFORMULA(tblDDSJune19[[#This Row],[FUNC]]),\"NO\",\"YES\")))","v":"NO"}]
[{"$f":"CONCATENATE(tblDDSJune19[[#This Row],[Primary Account]],tblDDSJune19[[#This Row],[Primary Name]],tblDDSJune19[[#This Row],[Secondary Acct]],tblDDSJune19[[#This Row],[Secondary  Name]],tblDDSJune19[[#This Row],[Alloc4FUNC]])","v":"1869000MISC DF DR-OTH-NC134301Prepaid IBEW 57 Pension Contr - CurrentOTHER"},1869000,"MISC DF DR-OTH-NC",134301,"Prepaid IBEW 57 Pension Contr - Current","OTHER",0,{"$f":"IF(OR(tblDDSJune19[[#This Row],[Alloc]]=\"IDU\",tblDDSJune19[[#This Row],[Alloc]]=\"OR\",tblDDSJune19[[#This Row],[Alloc]]=\"UT\",tblDDSJune19[[#This Row],[Alloc]]=\"WYU\",tblDDSJune19[[#This Row],[Alloc]]=\"WYP\",tblDDSJune19[[#This Row],[Alloc]]=\"CA\",tblDDSJune19[[#This Row],[Alloc]]=\"WA\"),\"SITUS\",tblDDSJune19[[#This Row],[Alloc]])","v":"OTHER"},{"$f":"INDEX(tblDDSLookup[FUNC],MATCH(tblDDSJune19[[#This Row],[Concat]],tblDDSLookup[Concat],0))","v":{"$error":"#N/A"}},{"$f":"IF(tblDDSJune19[[#This Row],[Total ($000)]]=0,\"NO\",IF(ISNA(tblDDSJune19[[#This Row],[FUNC]]),\"YES\",IF(_xlfn.ISFORMULA(tblDDSJune19[[#This Row],[FUNC]]),\"NO\",\"YES\")))","v":"NO"}]
[{"$f":"CONCATENATE(tblDDSJune19[[#This Row],[Primary Account]],tblDDSJune19[[#This Row],[Primary Name]],tblDDSJune19[[#This Row],[Secondary Acct]],tblDDSJune19[[#This Row],[Secondary  Name]],tblDDSJune19[[#This Row],[Alloc4FUNC]])","v":"1869000MISC DF DR-OTH-NC135010UNDISTRIB PURCHASE CARD TRANSSO"},1869000,"MISC DF DR-OTH-NC",135010,"UNDISTRIB PURCHASE CARD TRANS","SO",0,{"$f":"IF(OR(tblDDSJune19[[#This Row],[Alloc]]=\"IDU\",tblDDSJune19[[#This Row],[Alloc]]=\"OR\",tblDDSJune19[[#This Row],[Alloc]]=\"UT\",tblDDSJune19[[#This Row],[Alloc]]=\"WYU\",tblDDSJune19[[#This Row],[Alloc]]=\"WYP\",tblDDSJune19[[#This Row],[Alloc]]=\"CA\",tblDDSJune19[[#This Row],[Alloc]]=\"WA\"),\"SITUS\",tblDDSJune19[[#This Row],[Alloc]])","v":"SO"},{"$f":"INDEX(tblDDSLookup[FUNC],MATCH(tblDDSJune19[[#This Row],[Concat]],tblDDSLookup[Concat],0))","v":{"$error":"#N/A"}},{"$f":"IF(tblDDSJune19[[#This Row],[Total ($000)]]=0,\"NO\",IF(ISNA(tblDDSJune19[[#This Row],[FUNC]]),\"YES\",IF(_xlfn.ISFORMULA(tblDDSJune19[[#This Row],[FUNC]]),\"NO\",\"YES\")))","v":"NO"}]
[{"$f":"CONCATENATE(tblDDSJune19[[#This Row],[Primary Account]],tblDDSJune19[[#This Row],[Primary Name]],tblDDSJune19[[#This Row],[Secondary Acct]],tblDDSJune19[[#This Row],[Secondary  Name]],tblDDSJune19[[#This Row],[Alloc4FUNC]])","v":"1869000MISC DF DR-OTH-NC135033BETC SUPER GOOD CENTSOTHER"},1869000,"MISC DF DR-OTH-NC",135033,"BETC SUPER GOOD CENTS","OTHER",0,{"$f":"IF(OR(tblDDSJune19[[#This Row],[Alloc]]=\"IDU\",tblDDSJune19[[#This Row],[Alloc]]=\"OR\",tblDDSJune19[[#This Row],[Alloc]]=\"UT\",tblDDSJune19[[#This Row],[Alloc]]=\"WYU\",tblDDSJune19[[#This Row],[Alloc]]=\"WYP\",tblDDSJune19[[#This Row],[Alloc]]=\"CA\",tblDDSJune19[[#This Row],[Alloc]]=\"WA\"),\"SITUS\",tblDDSJune19[[#This Row],[Alloc]])","v":"OTHER"},{"$f":"INDEX(tblDDSLookup[FUNC],MATCH(tblDDSJune19[[#This Row],[Concat]],tblDDSLookup[Concat],0))","v":{"$error":"#N/A"}},{"$f":"IF(tblDDSJune19[[#This Row],[Total ($000)]]=0,\"NO\",IF(ISNA(tblDDSJune19[[#This Row],[FUNC]]),\"YES\",IF(_xlfn.ISFORMULA(tblDDSJune19[[#This Row],[FUNC]]),\"NO\",\"YES\")))","v":"NO"}]
[{"$f":"CONCATENATE(tblDDSJune19[[#This Row],[Primary Account]],tblDDSJune19[[#This Row],[Primary Name]],tblDDSJune19[[#This Row],[Secondary Acct]],tblDDSJune19[[#This Row],[Secondary  Name]],tblDDSJune19[[#This Row],[Alloc4FUNC]])","v":"1869000MISC DF DR-OTH-NC135034BETC WZ TAX CREDIT LOAN PROGRAMOTHER"},1869000,"MISC DF DR-OTH-NC",135034,"BETC WZ TAX CREDIT LOAN PROGRAM","OTHER",0,{"$f":"IF(OR(tblDDSJune19[[#This Row],[Alloc]]=\"IDU\",tblDDSJune19[[#This Row],[Alloc]]=\"OR\",tblDDSJune19[[#This Row],[Alloc]]=\"UT\",tblDDSJune19[[#This Row],[Alloc]]=\"WYU\",tblDDSJune19[[#This Row],[Alloc]]=\"WYP\",tblDDSJune19[[#This Row],[Alloc]]=\"CA\",tblDDSJune19[[#This Row],[Alloc]]=\"WA\"),\"SITUS\",tblDDSJune19[[#This Row],[Alloc]])","v":"OTHER"},{"$f":"INDEX(tblDDSLookup[FUNC],MATCH(tblDDSJune19[[#This Row],[Concat]],tblDDSLookup[Concat],0))","v":{"$error":"#N/A"}},{"$f":"IF(tblDDSJune19[[#This Row],[Total ($000)]]=0,\"NO\",IF(ISNA(tblDDSJune19[[#This Row],[FUNC]]),\"YES\",IF(_xlfn.ISFORMULA(tblDDSJune19[[#This Row],[FUNC]]),\"NO\",\"YES\")))","v":"NO"}]
[{"$f":"CONCATENATE(tblDDSJune19[[#This Row],[Primary Account]],tblDDSJune19[[#This Row],[Primary Name]],tblDDSJune19[[#This Row],[Secondary Acct]],tblDDSJune19[[#This Row],[Secondary  Name]],tblDDSJune19[[#This Row],[Alloc4FUNC]])","v":"1869000MISC DF DR-OTH-NC135035BETC ZERO INTEREST WEATHERIZATION LOANSOTHER"},1869000,"MISC DF DR-OTH-NC",135035,"BETC ZERO INTEREST WEATHERIZATION LOANS","OTHER",0,{"$f":"IF(OR(tblDDSJune19[[#This Row],[Alloc]]=\"IDU\",tblDDSJune19[[#This Row],[Alloc]]=\"OR\",tblDDSJune19[[#This Row],[Alloc]]=\"UT\",tblDDSJune19[[#This Row],[Alloc]]=\"WYU\",tblDDSJune19[[#This Row],[Alloc]]=\"WYP\",tblDDSJune19[[#This Row],[Alloc]]=\"CA\",tblDDSJune19[[#This Row],[Alloc]]=\"WA\"),\"SITUS\",tblDDSJune19[[#This Row],[Alloc]])","v":"OTHER"},{"$f":"INDEX(tblDDSLookup[FUNC],MATCH(tblDDSJune19[[#This Row],[Concat]],tblDDSLookup[Concat],0))","v":{"$error":"#N/A"}},{"$f":"IF(tblDDSJune19[[#This Row],[Total ($000)]]=0,\"NO\",IF(ISNA(tblDDSJune19[[#This Row],[FUNC]]),\"YES\",IF(_xlfn.ISFORMULA(tblDDSJune19[[#This Row],[FUNC]]),\"NO\",\"YES\")))","v":"NO"}]
[{"$f":"CONCATENATE(tblDDSJune19[[#This Row],[Primary Account]],tblDDSJune19[[#This Row],[Primary Name]],tblDDSJune19[[#This Row],[Secondary Acct]],tblDDSJune19[[#This Row],[Secondary  Name]],tblDDSJune19[[#This Row],[Alloc4FUNC]])","v":"1869000MISC DF DR-OTH-NC135036BETC ENERGY FINANSWEROTHER"},1869000,"MISC DF DR-OTH-NC",135036,"BETC ENERGY FINANSWER","OTHER",0,{"$f":"IF(OR(tblDDSJune19[[#This Row],[Alloc]]=\"IDU\",tblDDSJune19[[#This Row],[Alloc]]=\"OR\",tblDDSJune19[[#This Row],[Alloc]]=\"UT\",tblDDSJune19[[#This Row],[Alloc]]=\"WYU\",tblDDSJune19[[#This Row],[Alloc]]=\"WYP\",tblDDSJune19[[#This Row],[Alloc]]=\"CA\",tblDDSJune19[[#This Row],[Alloc]]=\"WA\"),\"SITUS\",tblDDSJune19[[#This Row],[Alloc]])","v":"OTHER"},{"$f":"INDEX(tblDDSLookup[FUNC],MATCH(tblDDSJune19[[#This Row],[Concat]],tblDDSLookup[Concat],0))","v":{"$error":"#N/A"}},{"$f":"IF(tblDDSJune19[[#This Row],[Total ($000)]]=0,\"NO\",IF(ISNA(tblDDSJune19[[#This Row],[FUNC]]),\"YES\",IF(_xlfn.ISFORMULA(tblDDSJune19[[#This Row],[FUNC]]),\"NO\",\"YES\")))","v":"NO"}]
[{"$f":"CONCATENATE(tblDDSJune19[[#This Row],[Primary Account]],tblDDSJune19[[#This Row],[Primary Name]],tblDDSJune19[[#This Row],[Secondary Acct]],tblDDSJune19[[#This Row],[Secondary  Name]],tblDDSJune19[[#This Row],[Alloc4FUNC]])","v":"1869000MISC DF DR-OTH-NC135037BETC INDUSTRIAL FINANSWEROTHER"},1869000,"MISC DF DR-OTH-NC",135037,"BETC INDUSTRIAL FINANSWER","OTHER",0,{"$f":"IF(OR(tblDDSJune19[[#This Row],[Alloc]]=\"IDU\",tblDDSJune19[[#This Row],[Alloc]]=\"OR\",tblDDSJune19[[#This Row],[Alloc]]=\"UT\",tblDDSJune19[[#This Row],[Alloc]]=\"WYU\",tblDDSJune19[[#This Row],[Alloc]]=\"WYP\",tblDDSJune19[[#This Row],[Alloc]]=\"CA\",tblDDSJune19[[#This Row],[Alloc]]=\"WA\"),\"SITUS\",tblDDSJune19[[#This Row],[Alloc]])","v":"OTHER"},{"$f":"INDEX(tblDDSLookup[FUNC],MATCH(tblDDSJune19[[#This Row],[Concat]],tblDDSLookup[Concat],0))","v":{"$error":"#N/A"}},{"$f":"IF(tblDDSJune19[[#This Row],[Total ($000)]]=0,\"NO\",IF(ISNA(tblDDSJune19[[#This Row],[FUNC]]),\"YES\",IF(_xlfn.ISFORMULA(tblDDSJune19[[#This Row],[FUNC]]),\"NO\",\"YES\")))","v":"NO"}]
[{"$f":"CONCATENATE(tblDDSJune19[[#This Row],[Primary Account]],tblDDSJune19[[#This Row],[Primary Name]],tblDDSJune19[[#This Row],[Secondary Acct]],tblDDSJune19[[#This Row],[Secondary  Name]],tblDDSJune19[[#This Row],[Alloc4FUNC]])","v":"1869000MISC DF DR-OTH-NC135038\"BETC FINANSWER 12,000\"OTHER"},1869000,"MISC DF DR-OTH-NC",135038,"\"BETC FINANSWER 12,000\"","OTHER",0,{"$f":"IF(OR(tblDDSJune19[[#This Row],[Alloc]]=\"IDU\",tblDDSJune19[[#This Row],[Alloc]]=\"OR\",tblDDSJune19[[#This Row],[Alloc]]=\"UT\",tblDDSJune19[[#This Row],[Alloc]]=\"WYU\",tblDDSJune19[[#This Row],[Alloc]]=\"WYP\",tblDDSJune19[[#This Row],[Alloc]]=\"CA\",tblDDSJune19[[#This Row],[Alloc]]=\"WA\"),\"SITUS\",tblDDSJune19[[#This Row],[Alloc]])","v":"OTHER"},{"$f":"INDEX(tblDDSLookup[FUNC],MATCH(tblDDSJune19[[#This Row],[Concat]],tblDDSLookup[Concat],0))","v":{"$error":"#N/A"}},{"$f":"IF(tblDDSJune19[[#This Row],[Total ($000)]]=0,\"NO\",IF(ISNA(tblDDSJune19[[#This Row],[FUNC]]),\"YES\",IF(_xlfn.ISFORMULA(tblDDSJune19[[#This Row],[FUNC]]),\"NO\",\"YES\")))","v":"NO"}]
[{"$f":"CONCATENATE(tblDDSJune19[[#This Row],[Primary Account]],tblDDSJune19[[#This Row],[Primary Name]],tblDDSJune19[[#This Row],[Secondary Acct]],tblDDSJune19[[#This Row],[Secondary  Name]],tblDDSJune19[[#This Row],[Alloc4FUNC]])","v":"1869000MISC DF DR-OTH-NC135039BETC CASH REBATE/INCENTIVEOTHER"},1869000,"MISC DF DR-OTH-NC",135039,"BETC CASH REBATE/INCENTIVE","OTHER",0,{"$f":"IF(OR(tblDDSJune19[[#This Row],[Alloc]]=\"IDU\",tblDDSJune19[[#This Row],[Alloc]]=\"OR\",tblDDSJune19[[#This Row],[Alloc]]=\"UT\",tblDDSJune19[[#This Row],[Alloc]]=\"WYU\",tblDDSJune19[[#This Row],[Alloc]]=\"WYP\",tblDDSJune19[[#This Row],[Alloc]]=\"CA\",tblDDSJune19[[#This Row],[Alloc]]=\"WA\"),\"SITUS\",tblDDSJune19[[#This Row],[Alloc]])","v":"OTHER"},{"$f":"INDEX(tblDDSLookup[FUNC],MATCH(tblDDSJune19[[#This Row],[Concat]],tblDDSLookup[Concat],0))","v":{"$error":"#N/A"}},{"$f":"IF(tblDDSJune19[[#This Row],[Total ($000)]]=0,\"NO\",IF(ISNA(tblDDSJune19[[#This Row],[FUNC]]),\"YES\",IF(_xlfn.ISFORMULA(tblDDSJune19[[#This Row],[FUNC]]),\"NO\",\"YES\")))","v":"NO"}]
[{"$f":"CONCATENATE(tblDDSJune19[[#This Row],[Primary Account]],tblDDSJune19[[#This Row],[Primary Name]],tblDDSJune19[[#This Row],[Secondary Acct]],tblDDSJune19[[#This Row],[Secondary  Name]],tblDDSJune19[[#This Row],[Alloc4FUNC]])","v":"1869000MISC DF DR-OTH-NC135040BETC COMMERCIAL RETROFITOTHER"},1869000,"MISC DF DR-OTH-NC",135040,"BETC COMMERCIAL RETROFIT","OTHER",0,{"$f":"IF(OR(tblDDSJune19[[#This Row],[Alloc]]=\"IDU\",tblDDSJune19[[#This Row],[Alloc]]=\"OR\",tblDDSJune19[[#This Row],[Alloc]]=\"UT\",tblDDSJune19[[#This Row],[Alloc]]=\"WYU\",tblDDSJune19[[#This Row],[Alloc]]=\"WYP\",tblDDSJune19[[#This Row],[Alloc]]=\"CA\",tblDDSJune19[[#This Row],[Alloc]]=\"WA\"),\"SITUS\",tblDDSJune19[[#This Row],[Alloc]])","v":"OTHER"},{"$f":"INDEX(tblDDSLookup[FUNC],MATCH(tblDDSJune19[[#This Row],[Concat]],tblDDSLookup[Concat],0))","v":{"$error":"#N/A"}},{"$f":"IF(tblDDSJune19[[#This Row],[Total ($000)]]=0,\"NO\",IF(ISNA(tblDDSJune19[[#This Row],[FUNC]]),\"YES\",IF(_xlfn.ISFORMULA(tblDDSJune19[[#This Row],[FUNC]]),\"NO\",\"YES\")))","v":"NO"}]
[{"$f":"CONCATENATE(tblDDSJune19[[#This Row],[Primary Account]],tblDDSJune19[[#This Row],[Primary Name]],tblDDSJune19[[#This Row],[Secondary Acct]],tblDDSJune19[[#This Row],[Secondary  Name]],tblDDSJune19[[#This Row],[Alloc4FUNC]])","v":"1869000MISC DF DR-OTH-NC135041BETC LOW INCOME WEATHERIZATIONOTHER"},1869000,"MISC DF DR-OTH-NC",135041,"BETC LOW INCOME WEATHERIZATION","OTHER",0,{"$f":"IF(OR(tblDDSJune19[[#This Row],[Alloc]]=\"IDU\",tblDDSJune19[[#This Row],[Alloc]]=\"OR\",tblDDSJune19[[#This Row],[Alloc]]=\"UT\",tblDDSJune19[[#This Row],[Alloc]]=\"WYU\",tblDDSJune19[[#This Row],[Alloc]]=\"WYP\",tblDDSJune19[[#This Row],[Alloc]]=\"CA\",tblDDSJune19[[#This Row],[Alloc]]=\"WA\"),\"SITUS\",tblDDSJune19[[#This Row],[Alloc]])","v":"OTHER"},{"$f":"INDEX(tblDDSLookup[FUNC],MATCH(tblDDSJune19[[#This Row],[Concat]],tblDDSLookup[Concat],0))","v":{"$error":"#N/A"}},{"$f":"IF(tblDDSJune19[[#This Row],[Total ($000)]]=0,\"NO\",IF(ISNA(tblDDSJune19[[#This Row],[FUNC]]),\"YES\",IF(_xlfn.ISFORMULA(tblDDSJune19[[#This Row],[FUNC]]),\"NO\",\"YES\")))","v":"NO"}]
[{"$f":"CONCATENATE(tblDDSJune19[[#This Row],[Primary Account]],tblDDSJune19[[#This Row],[Primary Name]],tblDDSJune19[[#This Row],[Secondary Acct]],tblDDSJune19[[#This Row],[Secondary  Name]],tblDDSJune19[[#This Row],[Alloc4FUNC]])","v":"1869000MISC DF DR-OTH-NC135049BETC - COMMERCIAL RETROFITOTHER"},1869000,"MISC DF DR-OTH-NC",135049,"BETC - COMMERCIAL RETROFIT","OTHER",0,{"$f":"IF(OR(tblDDSJune19[[#This Row],[Alloc]]=\"IDU\",tblDDSJune19[[#This Row],[Alloc]]=\"OR\",tblDDSJune19[[#This Row],[Alloc]]=\"UT\",tblDDSJune19[[#This Row],[Alloc]]=\"WYU\",tblDDSJune19[[#This Row],[Alloc]]=\"WYP\",tblDDSJune19[[#This Row],[Alloc]]=\"CA\",tblDDSJune19[[#This Row],[Alloc]]=\"WA\"),\"SITUS\",tblDDSJune19[[#This Row],[Alloc]])","v":"OTHER"},{"$f":"INDEX(tblDDSLookup[FUNC],MATCH(tblDDSJune19[[#This Row],[Concat]],tblDDSLookup[Concat],0))","v":{"$error":"#N/A"}},{"$f":"IF(tblDDSJune19[[#This Row],[Total ($000)]]=0,\"NO\",IF(ISNA(tblDDSJune19[[#This Row],[FUNC]]),\"YES\",IF(_xlfn.ISFORMULA(tblDDSJune19[[#This Row],[FUNC]]),\"NO\",\"YES\")))","v":"NO"}]
[{"$f":"CONCATENATE(tblDDSJune19[[#This Row],[Primary Account]],tblDDSJune19[[#This Row],[Primary Name]],tblDDSJune19[[#This Row],[Secondary Acct]],tblDDSJune19[[#This Row],[Secondary  Name]],tblDDSJune19[[#This Row],[Alloc4FUNC]])","v":"1869000MISC DF DR-OTH-NC135050BETC - INDUSTRIAL RETROFITOTHER"},1869000,"MISC DF DR-OTH-NC",135050,"BETC - INDUSTRIAL RETROFIT","OTHER",0,{"$f":"IF(OR(tblDDSJune19[[#This Row],[Alloc]]=\"IDU\",tblDDSJune19[[#This Row],[Alloc]]=\"OR\",tblDDSJune19[[#This Row],[Alloc]]=\"UT\",tblDDSJune19[[#This Row],[Alloc]]=\"WYU\",tblDDSJune19[[#This Row],[Alloc]]=\"WYP\",tblDDSJune19[[#This Row],[Alloc]]=\"CA\",tblDDSJune19[[#This Row],[Alloc]]=\"WA\"),\"SITUS\",tblDDSJune19[[#This Row],[Alloc]])","v":"OTHER"},{"$f":"INDEX(tblDDSLookup[FUNC],MATCH(tblDDSJune19[[#This Row],[Concat]],tblDDSLookup[Concat],0))","v":{"$error":"#N/A"}},{"$f":"IF(tblDDSJune19[[#This Row],[Total ($000)]]=0,\"NO\",IF(ISNA(tblDDSJune19[[#This Row],[FUNC]]),\"YES\",IF(_xlfn.ISFORMULA(tblDDSJune19[[#This Row],[FUNC]]),\"NO\",\"YES\")))","v":"NO"}]
[{"$f":"CONCATENATE(tblDDSJune19[[#This Row],[Primary Account]],tblDDSJune19[[#This Row],[Primary Name]],tblDDSJune19[[#This Row],[Secondary Acct]],tblDDSJune19[[#This Row],[Secondary  Name]],tblDDSJune19[[#This Row],[Alloc4FUNC]])","v":"1869000MISC DF DR-OTH-NC135051BETC - COMMERCIAL SMALL RETROFITOTHER"},1869000,"MISC DF DR-OTH-NC",135051,"BETC - COMMERCIAL SMALL RETROFIT","OTHER",0,{"$f":"IF(OR(tblDDSJune19[[#This Row],[Alloc]]=\"IDU\",tblDDSJune19[[#This Row],[Alloc]]=\"OR\",tblDDSJune19[[#This Row],[Alloc]]=\"UT\",tblDDSJune19[[#This Row],[Alloc]]=\"WYU\",tblDDSJune19[[#This Row],[Alloc]]=\"WYP\",tblDDSJune19[[#This Row],[Alloc]]=\"CA\",tblDDSJune19[[#This Row],[Alloc]]=\"WA\"),\"SITUS\",tblDDSJune19[[#This Row],[Alloc]])","v":"OTHER"},{"$f":"INDEX(tblDDSLookup[FUNC],MATCH(tblDDSJune19[[#This Row],[Concat]],tblDDSLookup[Concat],0))","v":{"$error":"#N/A"}},{"$f":"IF(tblDDSJune19[[#This Row],[Total ($000)]]=0,\"NO\",IF(ISNA(tblDDSJune19[[#This Row],[FUNC]]),\"YES\",IF(_xlfn.ISFORMULA(tblDDSJune19[[#This Row],[FUNC]]),\"NO\",\"YES\")))","v":"NO"}]
[{"$f":"CONCATENATE(tblDDSJune19[[#This Row],[Primary Account]],tblDDSJune19[[#This Row],[Primary Name]],tblDDSJune19[[#This Row],[Secondary Acct]],tblDDSJune19[[#This Row],[Secondary  Name]],tblDDSJune19[[#This Row],[Alloc4FUNC]])","v":"1869000MISC DF DR-OTH-NC135052BETC-INDUSTRIAL SMALL RETRO FITOTHER"},1869000,"MISC DF DR-OTH-NC",135052,"BETC-INDUSTRIAL SMALL RETRO FIT","OTHER",0,{"$f":"IF(OR(tblDDSJune19[[#This Row],[Alloc]]=\"IDU\",tblDDSJune19[[#This Row],[Alloc]]=\"OR\",tblDDSJune19[[#This Row],[Alloc]]=\"UT\",tblDDSJune19[[#This Row],[Alloc]]=\"WYU\",tblDDSJune19[[#This Row],[Alloc]]=\"WYP\",tblDDSJune19[[#This Row],[Alloc]]=\"CA\",tblDDSJune19[[#This Row],[Alloc]]=\"WA\"),\"SITUS\",tblDDSJune19[[#This Row],[Alloc]])","v":"OTHER"},{"$f":"INDEX(tblDDSLookup[FUNC],MATCH(tblDDSJune19[[#This Row],[Concat]],tblDDSLookup[Concat],0))","v":{"$error":"#N/A"}},{"$f":"IF(tblDDSJune19[[#This Row],[Total ($000)]]=0,\"NO\",IF(ISNA(tblDDSJune19[[#This Row],[FUNC]]),\"YES\",IF(_xlfn.ISFORMULA(tblDDSJune19[[#This Row],[FUNC]]),\"NO\",\"YES\")))","v":"NO"}]
[{"$f":"CONCATENATE(tblDDSJune19[[#This Row],[Primary Account]],tblDDSJune19[[#This Row],[Primary Name]],tblDDSJune19[[#This Row],[Secondary Acct]],tblDDSJune19[[#This Row],[Secondary  Name]],tblDDSJune19[[#This Row],[Alloc4FUNC]])","v":"1869000MISC DF DR-OTH-NC185321PREPAID CMC PENSION COSTSSO"},1869000,"MISC DF DR-OTH-NC",185321,"PREPAID CMC PENSION COSTS","SO",0,{"$f":"IF(OR(tblDDSJune19[[#This Row],[Alloc]]=\"IDU\",tblDDSJune19[[#This Row],[Alloc]]=\"OR\",tblDDSJune19[[#This Row],[Alloc]]=\"UT\",tblDDSJune19[[#This Row],[Alloc]]=\"WYU\",tblDDSJune19[[#This Row],[Alloc]]=\"WYP\",tblDDSJune19[[#This Row],[Alloc]]=\"CA\",tblDDSJune19[[#This Row],[Alloc]]=\"WA\"),\"SITUS\",tblDDSJune19[[#This Row],[Alloc]])","v":"SO"},{"$f":"INDEX(tblDDSLookup[FUNC],MATCH(tblDDSJune19[[#This Row],[Concat]],tblDDSLookup[Concat],0))","v":{"$error":"#N/A"}},{"$f":"IF(tblDDSJune19[[#This Row],[Total ($000)]]=0,\"NO\",IF(ISNA(tblDDSJune19[[#This Row],[FUNC]]),\"YES\",IF(_xlfn.ISFORMULA(tblDDSJune19[[#This Row],[FUNC]]),\"NO\",\"YES\")))","v":"NO"}]
[{"$f":"CONCATENATE(tblDDSJune19[[#This Row],[Primary Account]],tblDDSJune19[[#This Row],[Primary Name]],tblDDSJune19[[#This Row],[Secondary Acct]],tblDDSJune19[[#This Row],[Secondary  Name]],tblDDSJune19[[#This Row],[Alloc4FUNC]])","v":"1869000MISC DF DR-OTH-NC185323UNAM COSTS-COVE HYDRO PROJECTSG"},1869000,"MISC DF DR-OTH-NC",185323,"UNAM COSTS-COVE HYDRO PROJECT","SG",0,{"$f":"IF(OR(tblDDSJune19[[#This Row],[Alloc]]=\"IDU\",tblDDSJune19[[#This Row],[Alloc]]=\"OR\",tblDDSJune19[[#This Row],[Alloc]]=\"UT\",tblDDSJune19[[#This Row],[Alloc]]=\"WYU\",tblDDSJune19[[#This Row],[Alloc]]=\"WYP\",tblDDSJune19[[#This Row],[Alloc]]=\"CA\",tblDDSJune19[[#This Row],[Alloc]]=\"WA\"),\"SITUS\",tblDDSJune19[[#This Row],[Alloc]])","v":"SG"},{"$f":"INDEX(tblDDSLookup[FUNC],MATCH(tblDDSJune19[[#This Row],[Concat]],tblDDSLookup[Concat],0))","v":{"$error":"#N/A"}},{"$f":"IF(tblDDSJune19[[#This Row],[Total ($000)]]=0,\"NO\",IF(ISNA(tblDDSJune19[[#This Row],[FUNC]]),\"YES\",IF(_xlfn.ISFORMULA(tblDDSJune19[[#This Row],[FUNC]]),\"NO\",\"YES\")))","v":"NO"}]
[{"$f":"CONCATENATE(tblDDSJune19[[#This Row],[Primary Account]],tblDDSJune19[[#This Row],[Primary Name]],tblDDSJune19[[#This Row],[Secondary Acct]],tblDDSJune19[[#This Row],[Secondary  Name]],tblDDSJune19[[#This Row],[Alloc4FUNC]])","v":"1869000MISC DF DR-OTH-NC185326STRATEGIC PLANNING SOLAR II PROJECTSG"},1869000,"MISC DF DR-OTH-NC",185326,"STRATEGIC PLANNING SOLAR II PROJECT","SG",0,{"$f":"IF(OR(tblDDSJune19[[#This Row],[Alloc]]=\"IDU\",tblDDSJune19[[#This Row],[Alloc]]=\"OR\",tblDDSJune19[[#This Row],[Alloc]]=\"UT\",tblDDSJune19[[#This Row],[Alloc]]=\"WYU\",tblDDSJune19[[#This Row],[Alloc]]=\"WYP\",tblDDSJune19[[#This Row],[Alloc]]=\"CA\",tblDDSJune19[[#This Row],[Alloc]]=\"WA\"),\"SITUS\",tblDDSJune19[[#This Row],[Alloc]])","v":"SG"},{"$f":"INDEX(tblDDSLookup[FUNC],MATCH(tblDDSJune19[[#This Row],[Concat]],tblDDSLookup[Concat],0))","v":{"$error":"#N/A"}},{"$f":"IF(tblDDSJune19[[#This Row],[Total ($000)]]=0,\"NO\",IF(ISNA(tblDDSJune19[[#This Row],[FUNC]]),\"YES\",IF(_xlfn.ISFORMULA(tblDDSJune19[[#This Row],[FUNC]]),\"NO\",\"YES\")))","v":"NO"}]
[{"$f":"CONCATENATE(tblDDSJune19[[#This Row],[Primary Account]],tblDDSJune19[[#This Row],[Primary Name]],tblDDSJune19[[#This Row],[Secondary Acct]],tblDDSJune19[[#This Row],[Secondary  Name]],tblDDSJune19[[#This Row],[Alloc4FUNC]])","v":"1869000MISC DF DR-OTH-NC185327FIRTH COGENERATION BUYOUTSG"},1869000,"MISC DF DR-OTH-NC",185327,"FIRTH COGENERATION BUYOUT","SG",0,{"$f":"IF(OR(tblDDSJune19[[#This Row],[Alloc]]=\"IDU\",tblDDSJune19[[#This Row],[Alloc]]=\"OR\",tblDDSJune19[[#This Row],[Alloc]]=\"UT\",tblDDSJune19[[#This Row],[Alloc]]=\"WYU\",tblDDSJune19[[#This Row],[Alloc]]=\"WYP\",tblDDSJune19[[#This Row],[Alloc]]=\"CA\",tblDDSJune19[[#This Row],[Alloc]]=\"WA\"),\"SITUS\",tblDDSJune19[[#This Row],[Alloc]])","v":"SG"},{"$f":"INDEX(tblDDSLookup[FUNC],MATCH(tblDDSJune19[[#This Row],[Concat]],tblDDSLookup[Concat],0))","v":{"$error":"#N/A"}},{"$f":"IF(tblDDSJune19[[#This Row],[Total ($000)]]=0,\"NO\",IF(ISNA(tblDDSJune19[[#This Row],[FUNC]]),\"YES\",IF(_xlfn.ISFORMULA(tblDDSJune19[[#This Row],[FUNC]]),\"NO\",\"YES\")))","v":"NO"}]
[{"$f":"CONCATENATE(tblDDSJune19[[#This Row],[Primary Account]],tblDDSJune19[[#This Row],[Primary Name]],tblDDSJune19[[#This Row],[Secondary Acct]],tblDDSJune19[[#This Row],[Secondary  Name]],tblDDSJune19[[#This Row],[Alloc4FUNC]])","v":"1869000MISC DF DR-OTH-NC185328Firth Cogeneration Buyout-CASG"},1869000,"MISC DF DR-OTH-NC",185328,"Firth Cogeneration Buyout-CA","SG",0,{"$f":"IF(OR(tblDDSJune19[[#This Row],[Alloc]]=\"IDU\",tblDDSJune19[[#This Row],[Alloc]]=\"OR\",tblDDSJune19[[#This Row],[Alloc]]=\"UT\",tblDDSJune19[[#This Row],[Alloc]]=\"WYU\",tblDDSJune19[[#This Row],[Alloc]]=\"WYP\",tblDDSJune19[[#This Row],[Alloc]]=\"CA\",tblDDSJune19[[#This Row],[Alloc]]=\"WA\"),\"SITUS\",tblDDSJune19[[#This Row],[Alloc]])","v":"SG"},{"$f":"INDEX(tblDDSLookup[FUNC],MATCH(tblDDSJune19[[#This Row],[Concat]],tblDDSLookup[Concat],0))","v":{"$error":"#N/A"}},{"$f":"IF(tblDDSJune19[[#This Row],[Total ($000)]]=0,\"NO\",IF(ISNA(tblDDSJune19[[#This Row],[FUNC]]),\"YES\",IF(_xlfn.ISFORMULA(tblDDSJune19[[#This Row],[FUNC]]),\"NO\",\"YES\")))","v":"NO"}]
[{"$f":"CONCATENATE(tblDDSJune19[[#This Row],[Primary Account]],tblDDSJune19[[#This Row],[Primary Name]],tblDDSJune19[[#This Row],[Secondary Acct]],tblDDSJune19[[#This Row],[Secondary  Name]],tblDDSJune19[[#This Row],[Alloc4FUNC]])","v":"1869000MISC DF DR-OTH-NC185329Firth Cogeneration Buyout-MTSG"},1869000,"MISC DF DR-OTH-NC",185329,"Firth Cogeneration Buyout-MT","SG",0,{"$f":"IF(OR(tblDDSJune19[[#This Row],[Alloc]]=\"IDU\",tblDDSJune19[[#This Row],[Alloc]]=\"OR\",tblDDSJune19[[#This Row],[Alloc]]=\"UT\",tblDDSJune19[[#This Row],[Alloc]]=\"WYU\",tblDDSJune19[[#This Row],[Alloc]]=\"WYP\",tblDDSJune19[[#This Row],[Alloc]]=\"CA\",tblDDSJune19[[#This Row],[Alloc]]=\"WA\"),\"SITUS\",tblDDSJune19[[#This Row],[Alloc]])","v":"SG"},{"$f":"INDEX(tblDDSLookup[FUNC],MATCH(tblDDSJune19[[#This Row],[Concat]],tblDDSLookup[Concat],0))","v":{"$error":"#N/A"}},{"$f":"IF(tblDDSJune19[[#This Row],[Total ($000)]]=0,\"NO\",IF(ISNA(tblDDSJune19[[#This Row],[FUNC]]),\"YES\",IF(_xlfn.ISFORMULA(tblDDSJune19[[#This Row],[FUNC]]),\"NO\",\"YES\")))","v":"NO"}]
[{"$f":"CONCATENATE(tblDDSJune19[[#This Row],[Primary Account]],tblDDSJune19[[#This Row],[Primary Name]],tblDDSJune19[[#This Row],[Secondary Acct]],tblDDSJune19[[#This Row],[Secondary  Name]],tblDDSJune19[[#This Row],[Alloc4FUNC]])","v":"1869000MISC DF DR-OTH-NC185333OPTION PURCHASESSG"},1869000,"MISC DF DR-OTH-NC",185333,"OPTION PURCHASES","SG",0,{"$f":"IF(OR(tblDDSJune19[[#This Row],[Alloc]]=\"IDU\",tblDDSJune19[[#This Row],[Alloc]]=\"OR\",tblDDSJune19[[#This Row],[Alloc]]=\"UT\",tblDDSJune19[[#This Row],[Alloc]]=\"WYU\",tblDDSJune19[[#This Row],[Alloc]]=\"WYP\",tblDDSJune19[[#This Row],[Alloc]]=\"CA\",tblDDSJune19[[#This Row],[Alloc]]=\"WA\"),\"SITUS\",tblDDSJune19[[#This Row],[Alloc]])","v":"SG"},{"$f":"INDEX(tblDDSLookup[FUNC],MATCH(tblDDSJune19[[#This Row],[Concat]],tblDDSLookup[Concat],0))","v":{"$error":"#N/A"}},{"$f":"IF(tblDDSJune19[[#This Row],[Total ($000)]]=0,\"NO\",IF(ISNA(tblDDSJune19[[#This Row],[FUNC]]),\"YES\",IF(_xlfn.ISFORMULA(tblDDSJune19[[#This Row],[FUNC]]),\"NO\",\"YES\")))","v":"NO"}]
[{"$f":"CONCATENATE(tblDDSJune19[[#This Row],[Primary Account]],tblDDSJune19[[#This Row],[Primary Name]],tblDDSJune19[[#This Row],[Secondary Acct]],tblDDSJune19[[#This Row],[Secondary  Name]],tblDDSJune19[[#This Row],[Alloc4FUNC]])","v":"1869000MISC DF DR-OTH-NC185334HERMISTON SWAPSG"},1869000,"MISC DF DR-OTH-NC",185334,"HERMISTON SWAP","SG",3018.9384799999998,{"$f":"IF(OR(tblDDSJune19[[#This Row],[Alloc]]=\"IDU\",tblDDSJune19[[#This Row],[Alloc]]=\"OR\",tblDDSJune19[[#This Row],[Alloc]]=\"UT\",tblDDSJune19[[#This Row],[Alloc]]=\"WYU\",tblDDSJune19[[#This Row],[Alloc]]=\"WYP\",tblDDSJune19[[#This Row],[Alloc]]=\"CA\",tblDDSJune19[[#This Row],[Alloc]]=\"WA\"),\"SITUS\",tblDDSJune19[[#This Row],[Alloc]])","v":"SG"},{"$f":"INDEX(tblDDSLookup[FUNC],MATCH(tblDDSJune19[[#This Row],[Concat]],tblDDSLookup[Concat],0))","v":"P"},{"$f":"IF(tblDDSJune19[[#This Row],[Total ($000)]]=0,\"NO\",IF(ISNA(tblDDSJune19[[#This Row],[FUNC]]),\"YES\",IF(_xlfn.ISFORMULA(tblDDSJune19[[#This Row],[FUNC]]),\"NO\",\"YES\")))","v":"NO"}]
[{"$f":"CONCATENATE(tblDDSJune19[[#This Row],[Primary Account]],tblDDSJune19[[#This Row],[Primary Name]],tblDDSJune19[[#This Row],[Secondary Acct]],tblDDSJune19[[#This Row],[Secondary  Name]],tblDDSJune19[[#This Row],[Alloc4FUNC]])","v":"1869000MISC DF DR-OTH-NC185338OR CUSTOMER BALANCING ACCTSITUS"},1869000,"MISC DF DR-OTH-NC",185338,"OR CUSTOMER BALANCING ACCT","OR",0,{"$f":"IF(OR(tblDDSJune19[[#This Row],[Alloc]]=\"IDU\",tblDDSJune19[[#This Row],[Alloc]]=\"OR\",tblDDSJune19[[#This Row],[Alloc]]=\"UT\",tblDDSJune19[[#This Row],[Alloc]]=\"WYU\",tblDDSJune19[[#This Row],[Alloc]]=\"WYP\",tblDDSJune19[[#This Row],[Alloc]]=\"CA\",tblDDSJune19[[#This Row],[Alloc]]=\"WA\"),\"SITUS\",tblDDSJune19[[#This Row],[Alloc]])","v":"SITUS"},{"$f":"INDEX(tblDDSLookup[FUNC],MATCH(tblDDSJune19[[#This Row],[Concat]],tblDDSLookup[Concat],0))","v":{"$error":"#N/A"}},{"$f":"IF(tblDDSJune19[[#This Row],[Total ($000)]]=0,\"NO\",IF(ISNA(tblDDSJune19[[#This Row],[FUNC]]),\"YES\",IF(_xlfn.ISFORMULA(tblDDSJune19[[#This Row],[FUNC]]),\"NO\",\"YES\")))","v":"NO"}]
[{"$f":"CONCATENATE(tblDDSJune19[[#This Row],[Primary Account]],tblDDSJune19[[#This Row],[Primary Name]],tblDDSJune19[[#This Row],[Secondary Acct]],tblDDSJune19[[#This Row],[Secondary  Name]],tblDDSJune19[[#This Row],[Alloc4FUNC]])","v":"1869000MISC DF DR-OTH-NC185345YAKIMA HYDRO - TRANSACTION COSTSSG"},1869000,"MISC DF DR-OTH-NC",185345,"YAKIMA HYDRO - TRANSACTION COSTS","SG",0,{"$f":"IF(OR(tblDDSJune19[[#This Row],[Alloc]]=\"IDU\",tblDDSJune19[[#This Row],[Alloc]]=\"OR\",tblDDSJune19[[#This Row],[Alloc]]=\"UT\",tblDDSJune19[[#This Row],[Alloc]]=\"WYU\",tblDDSJune19[[#This Row],[Alloc]]=\"WYP\",tblDDSJune19[[#This Row],[Alloc]]=\"CA\",tblDDSJune19[[#This Row],[Alloc]]=\"WA\"),\"SITUS\",tblDDSJune19[[#This Row],[Alloc]])","v":"SG"},{"$f":"INDEX(tblDDSLookup[FUNC],MATCH(tblDDSJune19[[#This Row],[Concat]],tblDDSLookup[Concat],0))","v":{"$error":"#N/A"}},{"$f":"IF(tblDDSJune19[[#This Row],[Total ($000)]]=0,\"NO\",IF(ISNA(tblDDSJune19[[#This Row],[FUNC]]),\"YES\",IF(_xlfn.ISFORMULA(tblDDSJune19[[#This Row],[FUNC]]),\"NO\",\"YES\")))","v":"NO"}]
[{"$f":"CONCATENATE(tblDDSJune19[[#This Row],[Primary Account]],tblDDSJune19[[#This Row],[Primary Name]],tblDDSJune19[[#This Row],[Secondary Acct]],tblDDSJune19[[#This Row],[Secondary  Name]],tblDDSJune19[[#This Row],[Alloc4FUNC]])","v":"1869000MISC DF DR-OTH-NC185380LT Prepaid IBEW 57 Pension ContributionOTHER"},1869000,"MISC DF DR-OTH-NC",185380,"LT Prepaid IBEW 57 Pension Contribution","OTHER",0,{"$f":"IF(OR(tblDDSJune19[[#This Row],[Alloc]]=\"IDU\",tblDDSJune19[[#This Row],[Alloc]]=\"OR\",tblDDSJune19[[#This Row],[Alloc]]=\"UT\",tblDDSJune19[[#This Row],[Alloc]]=\"WYU\",tblDDSJune19[[#This Row],[Alloc]]=\"WYP\",tblDDSJune19[[#This Row],[Alloc]]=\"CA\",tblDDSJune19[[#This Row],[Alloc]]=\"WA\"),\"SITUS\",tblDDSJune19[[#This Row],[Alloc]])","v":"OTHER"},{"$f":"INDEX(tblDDSLookup[FUNC],MATCH(tblDDSJune19[[#This Row],[Concat]],tblDDSLookup[Concat],0))","v":{"$error":"#N/A"}},{"$f":"IF(tblDDSJune19[[#This Row],[Total ($000)]]=0,\"NO\",IF(ISNA(tblDDSJune19[[#This Row],[FUNC]]),\"YES\",IF(_xlfn.ISFORMULA(tblDDSJune19[[#This Row],[FUNC]]),\"NO\",\"YES\")))","v":"NO"}]
[{"$f":"CONCATENATE(tblDDSJune19[[#This Row],[Primary Account]],tblDDSJune19[[#This Row],[Primary Name]],tblDDSJune19[[#This Row],[Secondary Acct]],tblDDSJune19[[#This Row],[Secondary  Name]],tblDDSJune19[[#This Row],[Alloc4FUNC]])","v":"1869000MISC DF DR-OTH-NC185381Prepaid IBEW 57 - Reclass to CurrentOTHER"},1869000,"MISC DF DR-OTH-NC",185381,"Prepaid IBEW 57 - Reclass to Current","OTHER",0,{"$f":"IF(OR(tblDDSJune19[[#This Row],[Alloc]]=\"IDU\",tblDDSJune19[[#This Row],[Alloc]]=\"OR\",tblDDSJune19[[#This Row],[Alloc]]=\"UT\",tblDDSJune19[[#This Row],[Alloc]]=\"WYU\",tblDDSJune19[[#This Row],[Alloc]]=\"WYP\",tblDDSJune19[[#This Row],[Alloc]]=\"CA\",tblDDSJune19[[#This Row],[Alloc]]=\"WA\"),\"SITUS\",tblDDSJune19[[#This Row],[Alloc]])","v":"OTHER"},{"$f":"INDEX(tblDDSLookup[FUNC],MATCH(tblDDSJune19[[#This Row],[Concat]],tblDDSLookup[Concat],0))","v":{"$error":"#N/A"}},{"$f":"IF(tblDDSJune19[[#This Row],[Total ($000)]]=0,\"NO\",IF(ISNA(tblDDSJune19[[#This Row],[FUNC]]),\"YES\",IF(_xlfn.ISFORMULA(tblDDSJune19[[#This Row],[FUNC]]),\"NO\",\"YES\")))","v":"NO"}]
[null,null,null,null,null,null,{"$f":"SUBTOTAL(109,tblDDSJune19[Total ($000)])","v":75674.28631076921}]

{"sheet":"DDS Lookup","index":25,"n_rows":33,"n_cols":9,"rows_kept":33,"cut":false,"hidden":false,"merged":[]}
["Concat","Primary Account","Primary Name","Secondary Acct","Secondary  Name","Alloc","Total ($000)","Alloc4FUNC","FUNC"]
[{"$f":"CONCATENATE(tblDDSLookup[[#This Row],[Primary Account]],tblDDSLookup[[#This Row],[Primary Name]],tblDDSLookup[[#This Row],[Secondary Acct]],tblDDSLookup[[#This Row],[Secondary  Name]],tblDDSLookup[[#This Row],[Alloc4FUNC]])","v":"1861000MS DEF DB-OTH WIP185016EMISSION REDUCTION CREDITS PURCHASEDSE"},1861000,"MS DEF DB-OTH WIP",185016,"EMISSION REDUCTION CREDITS PURCHASED","SE",null,{"$f":"IF(OR(tblDDSLookup[[#This Row],[Alloc]]=\"IDU\",tblDDSLookup[[#This Row],[Alloc]]=\"OR\",tblDDSLookup[[#This Row],[Alloc]]=\"UT\",tblDDSLookup[[#This Row],[Alloc]]=\"WYU\",tblDDSLookup[[#This Row],[Alloc]]=\"WYP\",tblDDSLookup[[#This Row],[Alloc]]=\"CA\",tblDDSLookup[[#This Row],[Alloc]]=\"WA\"),\"SITUS\",tblDDSLookup[[#This Row],[Alloc]])","v":"SE"},"P"]
[{"$f":"CONCATENATE(tblDDSLookup[[#This Row],[Primary Account]],tblDDSLookup[[#This Row],[Primary Name]],tblDDSLookup[[#This Row],[Secondary Acct]],tblDDSLookup[[#This Row],[Secondary  Name]],tblDDSLookup[[#This Row],[Alloc4FUNC]])","v":"1861000MS DEF DB-OTH WIP185017ERCs - Impairment ReserveSE"},1861000,"MS DEF DB-OTH WIP",185017,"ERCs - Impairment Reserve","SE",null,{"$f":"IF(OR(tblDDSLookup[[#This Row],[Alloc]]=\"IDU\",tblDDSLookup[[#This Row],[Alloc]]=\"OR\",tblDDSLookup[[#This Row],[Alloc]]=\"UT\",tblDDSLookup[[#This Row],[Alloc]]=\"WYU\",tblDDSLookup[[#This Row],[Alloc]]=\"WYP\",tblDDSLookup[[#This Row],[Alloc]]=\"CA\",tblDDSLookup[[#This Row],[Alloc]]=\"WA\"),\"SITUS\",tblDDSLookup[[#This Row],[Alloc]])","v":"SE"},"P"]
[{"$f":"CONCATENATE(tblDDSLookup[[#This Row],[Primary Account]],tblDDSLookup[[#This Row],[Primary Name]],tblDDSLookup[[#This Row],[Secondary Acct]],tblDDSLookup[[#This Row],[Secondary  Name]],tblDDSLookup[[#This Row],[Alloc4FUNC]])","v":"1861200FINANCING COSTS DEFR185025FINANCING COST DEFERREDSO"},1861200,"FINANCING COSTS DEFR",185025,"FINANCING COST DEFERRED","SO",null,{"$f":"IF(OR(tblDDSLookup[[#This Row],[Alloc]]=\"IDU\",tblDDSLookup[[#This Row],[Alloc]]=\"OR\",tblDDSLookup[[#This Row],[Alloc]]=\"UT\",tblDDSLookup[[#This Row],[Alloc]]=\"WYU\",tblDDSLookup[[#This Row],[Alloc]]=\"WYP\",tblDDSLookup[[#This Row],[Alloc]]=\"CA\",tblDDSLookup[[#This Row],[Alloc]]=\"WA\"),\"SITUS\",tblDDSLookup[[#This Row],[Alloc]])","v":"SO"},"PTD"]
[{"$f":"CONCATENATE(tblDDSLookup[[#This Row],[Primary Account]],tblDDSLookup[[#This Row],[Primary Name]],tblDDSLookup[[#This Row],[Secondary Acct]],tblDDSLookup[[#This Row],[Secondary  Name]],tblDDSLookup[[#This Row],[Alloc4FUNC]])","v":"1861200FINANCING COSTS DEFR185026DEFERRED - S-3 SHELF REGISTRATION COSTSSO"},1861200,"FINANCING COSTS DEFR",185026,"DEFERRED - S-3 SHELF REGISTRATION COSTS","SO",null,{"$f":"IF(OR(tblDDSLookup[[#This Row],[Alloc]]=\"IDU\",tblDDSLookup[[#This Row],[Alloc]]=\"OR\",tblDDSLookup[[#This Row],[Alloc]]=\"UT\",tblDDSLookup[[#This Row],[Alloc]]=\"WYU\",tblDDSLookup[[#This Row],[Alloc]]=\"WYP\",tblDDSLookup[[#This Row],[Alloc]]=\"CA\",tblDDSLookup[[#This Row],[Alloc]]=\"WA\"),\"SITUS\",tblDDSLookup[[#This Row],[Alloc]])","v":"SO"},"PTD"]
[{"$f":"CONCATENATE(tblDDSLookup[[#This Row],[Primary Account]],tblDDSLookup[[#This Row],[Primary Name]],tblDDSLookup[[#This Row],[Secondary Acct]],tblDDSLookup[[#This Row],[Secondary  Name]],tblDDSLookup[[#This Row],[Alloc4FUNC]])","v":"1861200FINANCING COSTS DEFR185027UNAMORTIZED CREDIT AGREEMENT COSTSOTHER"},1861200,"FINANCING COSTS DEFR",185027,"UNAMORTIZED CREDIT AGREEMENT COSTS","OTHER",null,{"$f":"IF(OR(tblDDSLookup[[#This Row],[Alloc]]=\"IDU\",tblDDSLookup[[#This Row],[Alloc]]=\"OR\",tblDDSLookup[[#This Row],[Alloc]]=\"UT\",tblDDSLookup[[#This Row],[Alloc]]=\"WYU\",tblDDSLookup[[#This Row],[Alloc]]=\"WYP\",tblDDSLookup[[#This Row],[Alloc]]=\"CA\",tblDDSLookup[[#This Row],[Alloc]]=\"WA\"),\"SITUS\",tblDDSLookup[[#This Row],[Alloc]])","v":"OTHER"},"PTD"]
[{"$f":"CONCATENATE(tblDDSLookup[[#This Row],[Primary Account]],tblDDSLookup[[#This Row],[Primary Name]],tblDDSLookup[[#This Row],[Secondary Acct]],tblDDSLookup[[#This Row],[Secondary  Name]],tblDDSLookup[[#This Row],[Alloc4FUNC]])","v":"1861200FINANCING COSTS DEFR185028UNAMORTIZED PCRB LOC/SBBPA COSTSOTHER"},1861200,"FINANCING COSTS DEFR",185028,"UNAMORTIZED PCRB LOC/SBBPA COSTS","OTHER",null,{"$f":"IF(OR(tblDDSLookup[[#This Row],[Alloc]]=\"IDU\",tblDDSLookup[[#This Row],[Alloc]]=\"OR\",tblDDSLookup[[#This Row],[Alloc]]=\"UT\",tblDDSLookup[[#This Row],[Alloc]]=\"WYU\",tblDDSLookup[[#This Row],[Alloc]]=\"WYP\",tblDDSLookup[[#This Row],[Alloc]]=\"CA\",tblDDSLookup[[#This Row],[Alloc]]=\"WA\"),\"SITUS\",tblDDSLookup[[#This Row],[Alloc]])","v":"OTHER"},"PTD"]
[{"$f":"CONCATENATE(tblDDSLookup[[#This Row],[Primary Account]],tblDDSLookup[[#This Row],[Primary Name]],tblDDSLookup[[#This Row],[Secondary Acct]],tblDDSLookup[[#This Row],[Secondary  Name]],tblDDSLookup[[#This Row],[Alloc4FUNC]])","v":"1861200FINANCING COSTS DEFR185029UNAMORTIZED PCRB MADE CONVERSION COSTSOTHER"},1861200,"FINANCING COSTS DEFR",185029,"UNAMORTIZED PCRB MADE CONVERSION COSTS","OTHER",null,{"$f":"IF(OR(tblDDSLookup[[#This Row],[Alloc]]=\"IDU\",tblDDSLookup[[#This Row],[Alloc]]=\"OR\",tblDDSLookup[[#This Row],[Alloc]]=\"UT\",tblDDSLookup[[#This Row],[Alloc]]=\"WYU\",tblDDSLookup[[#This Row],[Alloc]]=\"WYP\",tblDDSLookup[[#This Row],[Alloc]]=\"CA\",tblDDSLookup[[#This Row],[Alloc]]=\"WA\"),\"SITUS\",tblDDSLookup[[#This Row],[Alloc]])","v":"OTHER"},"PTD"]
[{"$f":"CONCATENATE(tblDDSLookup[[#This Row],[Primary Account]],tblDDSLookup[[#This Row],[Primary Name]],tblDDSLookup[[#This Row],[Secondary Acct]],tblDDSLookup[[#This Row],[Secondary  Name]],tblDDSLookup[[#This Row],[Alloc4FUNC]])","v":"1861200FINANCING COSTS DEFR185030UNAMORTIZED '94 SERIES RESTRUCTURING COSOTHER"},1861200,"FINANCING COSTS DEFR",185030,"UNAMORTIZED '94 SERIES RESTRUCTURING COS","OTHER",null,{"$f":"IF(OR(tblDDSLookup[[#This Row],[Alloc]]=\"IDU\",tblDDSLookup[[#This Row],[Alloc]]=\"OR\",tblDDSLookup[[#This Row],[Alloc]]=\"UT\",tblDDSLookup[[#This Row],[Alloc]]=\"WYU\",tblDDSLookup[[#This Row],[Alloc]]=\"WYP\",tblDDSLookup[[#This Row],[Alloc]]=\"CA\",tblDDSLookup[[#This Row],[Alloc]]=\"WA\"),\"SITUS\",tblDDSLookup[[#This Row],[Alloc]])","v":"OTHER"},"PTD"]
[{"$f":"CONCATENATE(tblDDSLookup[[#This Row],[Primary Account]],tblDDSLookup[[#This Row],[Primary Name]],tblDDSLookup[[#This Row],[Secondary Acct]],tblDDSLookup[[#This Row],[Secondary  Name]],tblDDSLookup[[#This Row],[Alloc4FUNC]])","v":"1865000DEF COAL MINE COSTS184414DEFERRED COAL COSTS - WYODAK SETTLEMENTSE"},1865000,"DEF COAL MINE COSTS",184414,"DEFERRED COAL COSTS - WYODAK SETTLEMENT","SE",null,{"$f":"IF(OR(tblDDSLookup[[#This Row],[Alloc]]=\"IDU\",tblDDSLookup[[#This Row],[Alloc]]=\"OR\",tblDDSLookup[[#This Row],[Alloc]]=\"UT\",tblDDSLookup[[#This Row],[Alloc]]=\"WYU\",tblDDSLookup[[#This Row],[Alloc]]=\"WYP\",tblDDSLookup[[#This Row],[Alloc]]=\"CA\",tblDDSLookup[[#This Row],[Alloc]]=\"WA\"),\"SITUS\",tblDDSLookup[[#This Row],[Alloc]])","v":"SE"},"P"]
[{"$f":"CONCATENATE(tblDDSLookup[[#This Row],[Primary Account]],tblDDSLookup[[#This Row],[Primary Name]],tblDDSLookup[[#This Row],[Secondary Acct]],tblDDSLookup[[#This Row],[Secondary  Name]],tblDDSLookup[[#This Row],[Alloc4FUNC]])","v":"1865000DEF COAL MINE COSTS184416Deferred Coal Costs - Naughton ContractSE"},1865000,"DEF COAL MINE COSTS",184416,"Deferred Coal Costs - Naughton Contract","SE",null,{"$f":"IF(OR(tblDDSLookup[[#This Row],[Alloc]]=\"IDU\",tblDDSLookup[[#This Row],[Alloc]]=\"OR\",tblDDSLookup[[#This Row],[Alloc]]=\"UT\",tblDDSLookup[[#This Row],[Alloc]]=\"WYU\",tblDDSLookup[[#This Row],[Alloc]]=\"WYP\",tblDDSLookup[[#This Row],[Alloc]]=\"CA\",tblDDSLookup[[#This Row],[Alloc]]=\"WA\"),\"SITUS\",tblDDSLookup[[#This Row],[Alloc]])","v":"SE"},"P"]
[{"$f":"CONCATENATE(tblDDSLookup[[#This Row],[Primary Account]],tblDDSLookup[[#This Row],[Primary Name]],tblDDSLookup[[#This Row],[Secondary Acct]],tblDDSLookup[[#This Row],[Secondary  Name]],tblDDSLookup[[#This Row],[Alloc4FUNC]])","v":"1867000MSC DF DR-BAL TRAN134300DEFERRED CHARGESSE"},1867000,"MSC DF DR-BAL TRAN",134300,"DEFERRED CHARGES","SE",null,{"$f":"IF(OR(tblDDSLookup[[#This Row],[Alloc]]=\"IDU\",tblDDSLookup[[#This Row],[Alloc]]=\"OR\",tblDDSLookup[[#This Row],[Alloc]]=\"UT\",tblDDSLookup[[#This Row],[Alloc]]=\"WYU\",tblDDSLookup[[#This Row],[Alloc]]=\"WYP\",tblDDSLookup[[#This Row],[Alloc]]=\"CA\",tblDDSLookup[[#This Row],[Alloc]]=\"WA\"),\"SITUS\",tblDDSLookup[[#This Row],[Alloc]])","v":"SE"},"P"]
[{"$f":"CONCATENATE(tblDDSLookup[[#This Row],[Primary Account]],tblDDSLookup[[#This Row],[Primary Name]],tblDDSLookup[[#This Row],[Secondary Acct]],tblDDSLookup[[#This Row],[Secondary  Name]],tblDDSLookup[[#This Row],[Alloc4FUNC]])","v":"1868000MISC DF DR-OTH-CST134305Oth Def Chrg - IT Licenses/MaintenanceOTHER"},1868000,"MISC DF DR-OTH-CST",134305,"Oth Def Chrg - IT Licenses/Maintenance","OTHER",null,{"$f":"IF(OR(tblDDSLookup[[#This Row],[Alloc]]=\"IDU\",tblDDSLookup[[#This Row],[Alloc]]=\"OR\",tblDDSLookup[[#This Row],[Alloc]]=\"UT\",tblDDSLookup[[#This Row],[Alloc]]=\"WYU\",tblDDSLookup[[#This Row],[Alloc]]=\"WYP\",tblDDSLookup[[#This Row],[Alloc]]=\"CA\",tblDDSLookup[[#This Row],[Alloc]]=\"WA\"),\"SITUS\",tblDDSLookup[[#This Row],[Alloc]])","v":"OTHER"},"PTD"]
[{"$f":"CONCATENATE(tblDDSLookup[[#This Row],[Primary Account]],tblDDSLookup[[#This Row],[Primary Name]],tblDDSLookup[[#This Row],[Secondary Acct]],tblDDSLookup[[#This Row],[Secondary  Name]],tblDDSLookup[[#This Row],[Alloc4FUNC]])","v":"1868000MISC DF DR-OTH-CST185306TGS BUYOUTSG"},1868000,"MISC DF DR-OTH-CST",185306,"TGS BUYOUT","SG",null,{"$f":"IF(OR(tblDDSLookup[[#This Row],[Alloc]]=\"IDU\",tblDDSLookup[[#This Row],[Alloc]]=\"OR\",tblDDSLookup[[#This Row],[Alloc]]=\"UT\",tblDDSLookup[[#This Row],[Alloc]]=\"WYU\",tblDDSLookup[[#This Row],[Alloc]]=\"WYP\",tblDDSLookup[[#This Row],[Alloc]]=\"CA\",tblDDSLookup[[#This Row],[Alloc]]=\"WA\"),\"SITUS\",tblDDSLookup[[#This Row],[Alloc]])","v":"SG"},"P"]
[{"$f":"CONCATENATE(tblDDSLookup[[#This Row],[Primary Account]],tblDDSLookup[[#This Row],[Primary Name]],tblDDSLookup[[#This Row],[Secondary Acct]],tblDDSLookup[[#This Row],[Secondary  Name]],tblDDSLookup[[#This Row],[Alloc4FUNC]])","v":"1868000MISC DF DR-OTH-CST185309LAKEVIEW BUYOUTSG"},1868000,"MISC DF DR-OTH-CST",185309,"LAKEVIEW BUYOUT","SG",null,{"$f":"IF(OR(tblDDSLookup[[#This Row],[Alloc]]=\"IDU\",tblDDSLookup[[#This Row],[Alloc]]=\"OR\",tblDDSLookup[[#This Row],[Alloc]]=\"UT\",tblDDSLookup[[#This Row],[Alloc]]=\"WYU\",tblDDSLookup[[#This Row],[Alloc]]=\"WYP\",tblDDSLookup[[#This Row],[Alloc]]=\"CA\",tblDDSLookup[[#This Row],[Alloc]]=\"WA\"),\"SITUS\",tblDDSLookup[[#This Row],[Alloc]])","v":"SG"},"P"]
[{"$f":"CONCATENATE(tblDDSLookup[[#This Row],[Primary Account]],tblDDSLookup[[#This Row],[Primary Name]],tblDDSLookup[[#This Row],[Secondary Acct]],tblDDSLookup[[#This Row],[Secondary  Name]],tblDDSLookup[[#This Row],[Alloc4FUNC]])","v":"1868000MISC DF DR-OTH-CST185310BUFFALO SETTLEMENTSG"},1868000,"MISC DF DR-OTH-CST",185310,"BUFFALO SETTLEMENT","SG",null,{"$f":"IF(OR(tblDDSLookup[[#This Row],[Alloc]]=\"IDU\",tblDDSLookup[[#This Row],[Alloc]]=\"OR\",tblDDSLookup[[#This Row],[Alloc]]=\"UT\",tblDDSLookup[[#This Row],[Alloc]]=\"WYU\",tblDDSLookup[[#This Row],[Alloc]]=\"WYP\",tblDDSLookup[[#This Row],[Alloc]]=\"CA\",tblDDSLookup[[#This Row],[Alloc]]=\"WA\"),\"SITUS\",tblDDSLookup[[#This Row],[Alloc]])","v":"SG"},"P"]
[{"$f":"CONCATENATE(tblDDSLookup[[#This Row],[Primary Account]],tblDDSLookup[[#This Row],[Primary Name]],tblDDSLookup[[#This Row],[Secondary Acct]],tblDDSLookup[[#This Row],[Secondary  Name]],tblDDSLookup[[#This Row],[Alloc4FUNC]])","v":"1868000MISC DF DR-OTH-CST185311JOSEPH SETTLEMENTSG"},1868000,"MISC DF DR-OTH-CST",185311,"JOSEPH SETTLEMENT","SG",null,{"$f":"IF(OR(tblDDSLookup[[#This Row],[Alloc]]=\"IDU\",tblDDSLookup[[#This Row],[Alloc]]=\"OR\",tblDDSLookup[[#This Row],[Alloc]]=\"UT\",tblDDSLookup[[#This Row],[Alloc]]=\"WYU\",tblDDSLookup[[#This Row],[Alloc]]=\"WYP\",tblDDSLookup[[#This Row],[Alloc]]=\"CA\",tblDDSLookup[[#This Row],[Alloc]]=\"WA\"),\"SITUS\",tblDDSLookup[[#This Row],[Alloc]])","v":"SG"},"P"]
[{"$f":"CONCATENATE(tblDDSLookup[[#This Row],[Primary Account]],tblDDSLookup[[#This Row],[Primary Name]],tblDDSLookup[[#This Row],[Secondary Acct]],tblDDSLookup[[#This Row],[Secondary  Name]],tblDDSLookup[[#This Row],[Alloc4FUNC]])","v":"1868000MISC DF DR-OTH-CST185312TRI-STATE FIRM WHEELINGSG"},1868000,"MISC DF DR-OTH-CST",185312,"TRI-STATE FIRM WHEELING","SG",null,{"$f":"IF(OR(tblDDSLookup[[#This Row],[Alloc]]=\"IDU\",tblDDSLookup[[#This Row],[Alloc]]=\"OR\",tblDDSLookup[[#This Row],[Alloc]]=\"UT\",tblDDSLookup[[#This Row],[Alloc]]=\"WYU\",tblDDSLookup[[#This Row],[Alloc]]=\"WYP\",tblDDSLookup[[#This Row],[Alloc]]=\"CA\",tblDDSLookup[[#This Row],[Alloc]]=\"WA\"),\"SITUS\",tblDDSLookup[[#This Row],[Alloc]])","v":"SG"},"P"]
[{"$f":"CONCATENATE(tblDDSLookup[[#This Row],[Primary Account]],tblDDSLookup[[#This Row],[Primary Name]],tblDDSLookup[[#This Row],[Secondary Acct]],tblDDSLookup[[#This Row],[Secondary  Name]],tblDDSLookup[[#This Row],[Alloc4FUNC]])","v":"1868000MISC DF DR-OTH-CST185313MEAD-PHOENIX-AVAILABILITY & TRANS CHARGESG"},1868000,"MISC DF DR-OTH-CST",185313,"MEAD-PHOENIX-AVAILABILITY & TRANS CHARGE","SG",null,{"$f":"IF(OR(tblDDSLookup[[#This Row],[Alloc]]=\"IDU\",tblDDSLookup[[#This Row],[Alloc]]=\"OR\",tblDDSLookup[[#This Row],[Alloc]]=\"UT\",tblDDSLookup[[#This Row],[Alloc]]=\"WYU\",tblDDSLookup[[#This Row],[Alloc]]=\"WYP\",tblDDSLookup[[#This Row],[Alloc]]=\"CA\",tblDDSLookup[[#This Row],[Alloc]]=\"WA\"),\"SITUS\",tblDDSLookup[[#This Row],[Alloc]])","v":"SG"},"T"]
[{"$f":"CONCATENATE(tblDDSLookup[[#This Row],[Primary Account]],tblDDSLookup[[#This Row],[Primary Name]],tblDDSLookup[[#This Row],[Secondary Acct]],tblDDSLookup[[#This Row],[Secondary  Name]],tblDDSLookup[[#This Row],[Alloc4FUNC]])","v":"1868000MISC DF DR-OTH-CST185335LACOMB IRRIGATIONSG"},1868000,"MISC DF DR-OTH-CST",185335,"LACOMB IRRIGATION","SG",null,{"$f":"IF(OR(tblDDSLookup[[#This Row],[Alloc]]=\"IDU\",tblDDSLookup[[#This Row],[Alloc]]=\"OR\",tblDDSLookup[[#This Row],[Alloc]]=\"UT\",tblDDSLookup[[#This Row],[Alloc]]=\"WYU\",tblDDSLookup[[#This Row],[Alloc]]=\"WYP\",tblDDSLookup[[#This Row],[Alloc]]=\"CA\",tblDDSLookup[[#This Row],[Alloc]]=\"WA\"),\"SITUS\",tblDDSLookup[[#This Row],[Alloc]])","v":"SG"},"P"]
[{"$f":"CONCATENATE(tblDDSLookup[[#This Row],[Primary Account]],tblDDSLookup[[#This Row],[Primary Name]],tblDDSLookup[[#This Row],[Secondary Acct]],tblDDSLookup[[#This Row],[Secondary  Name]],tblDDSLookup[[#This Row],[Alloc4FUNC]])","v":"1868000MISC DF DR-OTH-CST185336BOGUS CREEKSG"},1868000,"MISC DF DR-OTH-CST",185336,"BOGUS CREEK","SG",null,{"$f":"IF(OR(tblDDSLookup[[#This Row],[Alloc]]=\"IDU\",tblDDSLookup[[#This Row],[Alloc]]=\"OR\",tblDDSLookup[[#This Row],[Alloc]]=\"UT\",tblDDSLookup[[#This Row],[Alloc]]=\"WYU\",tblDDSLookup[[#This Row],[Alloc]]=\"WYP\",tblDDSLookup[[#This Row],[Alloc]]=\"CA\",tblDDSLookup[[#This Row],[Alloc]]=\"WA\"),\"SITUS\",tblDDSLookup[[#This Row],[Alloc]])","v":"SG"},"P"]
[{"$f":"CONCATENATE(tblDDSLookup[[#This Row],[Primary Account]],tblDDSLookup[[#This Row],[Primary Name]],tblDDSLookup[[#This Row],[Secondary Acct]],tblDDSLookup[[#This Row],[Secondary  Name]],tblDDSLookup[[#This Row],[Alloc4FUNC]])","v":"1868000MISC DF DR-OTH-CST185337POINT-TO-POINT TRANS RESERVATIONSSG"},1868000,"MISC DF DR-OTH-CST",185337,"POINT-TO-POINT TRANS RESERVATIONS","SG",null,{"$f":"IF(OR(tblDDSLookup[[#This Row],[Alloc]]=\"IDU\",tblDDSLookup[[#This Row],[Alloc]]=\"OR\",tblDDSLookup[[#This Row],[Alloc]]=\"UT\",tblDDSLookup[[#This Row],[Alloc]]=\"WYU\",tblDDSLookup[[#This Row],[Alloc]]=\"WYP\",tblDDSLookup[[#This Row],[Alloc]]=\"CA\",tblDDSLookup[[#This Row],[Alloc]]=\"WA\"),\"SITUS\",tblDDSLookup[[#This Row],[Alloc]])","v":"SG"},"T"]
[{"$f":"CONCATENATE(tblDDSLookup[[#This Row],[Primary Account]],tblDDSLookup[[#This Row],[Primary Name]],tblDDSLookup[[#This Row],[Secondary Acct]],tblDDSLookup[[#This Row],[Secondary  Name]],tblDDSLookup[[#This Row],[Alloc4FUNC]])","v":"1868000MISC DF DR-OTH-CST185351BPA LT TRANSMISSION PREPAIDOTHER"},1868000,"MISC DF DR-OTH-CST",185351,"BPA LT TRANSMISSION PREPAID","OTHER",null,{"$f":"IF(OR(tblDDSLookup[[#This Row],[Alloc]]=\"IDU\",tblDDSLookup[[#This Row],[Alloc]]=\"OR\",tblDDSLookup[[#This Row],[Alloc]]=\"UT\",tblDDSLookup[[#This Row],[Alloc]]=\"WYU\",tblDDSLookup[[#This Row],[Alloc]]=\"WYP\",tblDDSLookup[[#This Row],[Alloc]]=\"CA\",tblDDSLookup[[#This Row],[Alloc]]=\"WA\"),\"SITUS\",tblDDSLookup[[#This Row],[Alloc]])","v":"OTHER"},"T"]
[{"$f":"CONCATENATE(tblDDSLookup[[#This Row],[Primary Account]],tblDDSLookup[[#This Row],[Primary Name]],tblDDSLookup[[#This Row],[Secondary Acct]],tblDDSLookup[[#This Row],[Secondary  Name]],tblDDSLookup[[#This Row],[Alloc4FUNC]])","v":"1868000MISC DF DR-OTH-CST185357LT Prepaid RECs for RPS (OR)OTHER"},1868000,"MISC DF DR-OTH-CST",185357,"LT Prepaid RECs for RPS (OR)","OTHER",null,{"$f":"IF(OR(tblDDSLookup[[#This Row],[Alloc]]=\"IDU\",tblDDSLookup[[#This Row],[Alloc]]=\"OR\",tblDDSLookup[[#This Row],[Alloc]]=\"UT\",tblDDSLookup[[#This Row],[Alloc]]=\"WYU\",tblDDSLookup[[#This Row],[Alloc]]=\"WYP\",tblDDSLookup[[#This Row],[Alloc]]=\"CA\",tblDDSLookup[[#This Row],[Alloc]]=\"WA\"),\"SITUS\",tblDDSLookup[[#This Row],[Alloc]])","v":"OTHER"},"P"]
[{"$f":"CONCATENATE(tblDDSLookup[[#This Row],[Primary Account]],tblDDSLookup[[#This Row],[Primary Name]],tblDDSLookup[[#This Row],[Secondary Acct]],tblDDSLookup[[#This Row],[Secondary  Name]],tblDDSLookup[[#This Row],[Alloc4FUNC]])","v":"1868000MISC DF DR-OTH-CST185358LT Prepaid RECs for RPS (CA)OTHER"},1868000,"MISC DF DR-OTH-CST",185358,"LT Prepaid RECs for RPS (CA)","OTHER",null,{"$f":"IF(OR(tblDDSLookup[[#This Row],[Alloc]]=\"IDU\",tblDDSLookup[[#This Row],[Alloc]]=\"OR\",tblDDSLookup[[#This Row],[Alloc]]=\"UT\",tblDDSLookup[[#This Row],[Alloc]]=\"WYU\",tblDDSLookup[[#This Row],[Alloc]]=\"WYP\",tblDDSLookup[[#This Row],[Alloc]]=\"CA\",tblDDSLookup[[#This Row],[Alloc]]=\"WA\"),\"SITUS\",tblDDSLookup[[#This Row],[Alloc]])","v":"OTHER"},"P"]
[{"$f":"CONCATENATE(tblDDSLookup[[#This Row],[Primary Account]],tblDDSLookup[[#This Row],[Primary Name]],tblDDSLookup[[#This Row],[Secondary Acct]],tblDDSLookup[[#This Row],[Secondary  Name]],tblDDSLookup[[#This Row],[Alloc4FUNC]])","v":"1868000MISC DF DR-OTH-CST185359LT Lake Side 2 Maint. PrepaymentSG"},1868000,"MISC DF DR-OTH-CST",185359,"LT Lake Side 2 Maint. Prepayment","SG",null,{"$f":"IF(OR(tblDDSLookup[[#This Row],[Alloc]]=\"IDU\",tblDDSLookup[[#This Row],[Alloc]]=\"OR\",tblDDSLookup[[#This Row],[Alloc]]=\"UT\",tblDDSLookup[[#This Row],[Alloc]]=\"WYU\",tblDDSLookup[[#This Row],[Alloc]]=\"WYP\",tblDDSLookup[[#This Row],[Alloc]]=\"CA\",tblDDSLookup[[#This Row],[Alloc]]=\"WA\"),\"SITUS\",tblDDSLookup[[#This Row],[Alloc]])","v":"SG"},"P"]
[{"$f":"CONCATENATE(tblDDSLookup[[#This Row],[Primary Account]],tblDDSLookup[[#This Row],[Primary Name]],tblDDSLookup[[#This Row],[Secondary Acct]],tblDDSLookup[[#This Row],[Secondary  Name]],tblDDSLookup[[#This Row],[Alloc4FUNC]])","v":"1868000MISC DF DR-OTH-CST185360LT LAKE SIDE MAINT PREPAYMENTSG"},1868000,"MISC DF DR-OTH-CST",185360,"LT LAKE SIDE MAINT PREPAYMENT","SG",null,{"$f":"IF(OR(tblDDSLookup[[#This Row],[Alloc]]=\"IDU\",tblDDSLookup[[#This Row],[Alloc]]=\"OR\",tblDDSLookup[[#This Row],[Alloc]]=\"UT\",tblDDSLookup[[#This Row],[Alloc]]=\"WYU\",tblDDSLookup[[#This Row],[Alloc]]=\"WYP\",tblDDSLookup[[#This Row],[Alloc]]=\"CA\",tblDDSLookup[[#This Row],[Alloc]]=\"WA\"),\"SITUS\",tblDDSLookup[[#This Row],[Alloc]])","v":"SG"},"P"]
[{"$f":"CONCATENATE(tblDDSLookup[[#This Row],[Primary Account]],tblDDSLookup[[#This Row],[Primary Name]],tblDDSLookup[[#This Row],[Secondary Acct]],tblDDSLookup[[#This Row],[Secondary  Name]],tblDDSLookup[[#This Row],[Alloc4FUNC]])","v":"1868000MISC DF DR-OTH-CST185361LT CHEHALIS CSA MAINT. PREPAYMENTSG"},1868000,"MISC DF DR-OTH-CST",185361,"LT CHEHALIS CSA MAINT. PREPAYMENT","SG",null,{"$f":"IF(OR(tblDDSLookup[[#This Row],[Alloc]]=\"IDU\",tblDDSLookup[[#This Row],[Alloc]]=\"OR\",tblDDSLookup[[#This Row],[Alloc]]=\"UT\",tblDDSLookup[[#This Row],[Alloc]]=\"WYU\",tblDDSLookup[[#This Row],[Alloc]]=\"WYP\",tblDDSLookup[[#This Row],[Alloc]]=\"CA\",tblDDSLookup[[#This Row],[Alloc]]=\"WA\"),\"SITUS\",tblDDSLookup[[#This Row],[Alloc]])","v":"SG"},"P"]
[{"$f":"CONCATENATE(tblDDSLookup[[#This Row],[Primary Account]],tblDDSLookup[[#This Row],[Primary Name]],tblDDSLookup[[#This Row],[Secondary Acct]],tblDDSLookup[[#This Row],[Secondary  Name]],tblDDSLookup[[#This Row],[Alloc4FUNC]])","v":"1868000MISC DF DR-OTH-CST185362LT Currant Creek CSA Maint PrepaymentSG"},1868000,"MISC DF DR-OTH-CST",185362,"LT Currant Creek CSA Maint Prepayment","SG",null,{"$f":"IF(OR(tblDDSLookup[[#This Row],[Alloc]]=\"IDU\",tblDDSLookup[[#This Row],[Alloc]]=\"OR\",tblDDSLookup[[#This Row],[Alloc]]=\"UT\",tblDDSLookup[[#This Row],[Alloc]]=\"WYU\",tblDDSLookup[[#This Row],[Alloc]]=\"WYP\",tblDDSLookup[[#This Row],[Alloc]]=\"CA\",tblDDSLookup[[#This Row],[Alloc]]=\"WA\"),\"SITUS\",tblDDSLookup[[#This Row],[Alloc]])","v":"SG"},"P"]
[{"$f":"CONCATENATE(tblDDSLookup[[#This Row],[Primary Account]],tblDDSLookup[[#This Row],[Primary Name]],tblDDSLookup[[#This Row],[Secondary Acct]],tblDDSLookup[[#This Row],[Secondary  Name]],tblDDSLookup[[#This Row],[Alloc4FUNC]])","v":"1868000MISC DF DR-OTH-CST185371LT Chehalis CSA Prepaid O&MSG"},1868000,"MISC DF DR-OTH-CST",185371,"LT Chehalis CSA Prepaid O&M","SG",null,{"$f":"IF(OR(tblDDSLookup[[#This Row],[Alloc]]=\"IDU\",tblDDSLookup[[#This Row],[Alloc]]=\"OR\",tblDDSLookup[[#This Row],[Alloc]]=\"UT\",tblDDSLookup[[#This Row],[Alloc]]=\"WYU\",tblDDSLookup[[#This Row],[Alloc]]=\"WYP\",tblDDSLookup[[#This Row],[Alloc]]=\"CA\",tblDDSLookup[[#This Row],[Alloc]]=\"WA\"),\"SITUS\",tblDDSLookup[[#This Row],[Alloc]])","v":"SG"},"P"]
[{"$f":"CONCATENATE(tblDDSLookup[[#This Row],[Primary Account]],tblDDSLookup[[#This Row],[Primary Name]],tblDDSLookup[[#This Row],[Secondary Acct]],tblDDSLookup[[#This Row],[Secondary  Name]],tblDDSLookup[[#This Row],[Alloc4FUNC]])","v":"1868000MISC DF DR-OTH-CST185372LT Currant Creek CSA Prepaid O&MSG"},1868000,"MISC DF DR-OTH-CST",185372,"LT Currant Creek CSA Prepaid O&M","SG",null,{"$f":"IF(OR(tblDDSLookup[[#This Row],[Alloc]]=\"IDU\",tblDDSLookup[[#This Row],[Alloc]]=\"OR\",tblDDSLookup[[#This Row],[Alloc]]=\"UT\",tblDDSLookup[[#This Row],[Alloc]]=\"WYU\",tblDDSLookup[[#This Row],[Alloc]]=\"WYP\",tblDDSLookup[[#This Row],[Alloc]]=\"CA\",tblDDSLookup[[#This Row],[Alloc]]=\"WA\"),\"SITUS\",tblDDSLookup[[#This Row],[Alloc]])","v":"SG"},"P"]
[{"$f":"CONCATENATE(tblDDSLookup[[#This Row],[Primary Account]],tblDDSLookup[[#This Row],[Primary Name]],tblDDSLookup[[#This Row],[Secondary Acct]],tblDDSLookup[[#This Row],[Secondary  Name]],tblDDSLookup[[#This Row],[Alloc4FUNC]])","v":"1869000MISC DF DR-OTH-NC185334HERMISTON SWAPSG"},1869000,"MISC DF DR-OTH-NC",185334,"HERMISTON SWAP","SG",null,{"$f":"IF(OR(tblDDSLookup[[#This Row],[Alloc]]=\"IDU\",tblDDSLookup[[#This Row],[Alloc]]=\"OR\",tblDDSLookup[[#This Row],[Alloc]]=\"UT\",tblDDSLookup[[#This Row],[Alloc]]=\"WYU\",tblDDSLookup[[#This Row],[Alloc]]=\"WYP\",tblDDSLookup[[#This Row],[Alloc]]=\"CA\",tblDDSLookup[[#This Row],[Alloc]]=\"WA\"),\"SITUS\",tblDDSLookup[[#This Row],[Alloc]])","v":"SG"},"P"]
[null,null,null,null,null,null,{"$f":"SUBTOTAL(109,tblDDSLookup[Total ($000)])","v":0}]